{"text_format":"1","workbook":"xlsx","n_sheets":19,"sheets":["Introduction","User Guide","Options","Results","Evidence","SHEETS TO BE HIDDEN ->","Calculations","Inequalities","Population 2016","Lists","Demographic data","Health outcome totals 2016","Prevalence Rates","Population at Risk","Pop2016fraction","Pop2016fractionQ1","Pop2016fractionQ1&2","PARfraction","Targeting"],"not_rendered":{"charts":0,"images":5,"macros":1,"external_links":0,"defined_names":2,"comments":0,"pivot_tables":0},"unopened":[],"bounds":{"document_bytes":16777216,"sheet_cells":100000,"rows_first":2000,"rows_last":500,"rows_between":2000,"halvings":0,"cell_chars":16384,"cell_head_chars":4096},"cells_cut":0,"cells_raw":0,"read":"whole","date_system":"1900"}

{"sheet":"Introduction","index":0,"n_rows":51,"n_cols":10,"rows_kept":51,"cut":false,"hidden":false,"merged":[]}
[]
[null,"Informing Interventions to reduce health Inequalities ('Triple I'):"]
[null,"Physical Activity Interventions"]
[]
[]
[]
[null,"Informing Interventions to reduce health Inequalities ('Triple I') is a collaboration between NHS Health Scotland and the Scottish Public Health Observatory (ScotPHO)."]
[null,"Triple I provides national and local decision makers with practical tools and interpreted results about investing in interventions to reduce health inequalities in Scotland. "]
[null,"It does this by modelling the potential impact of different interventions and policies on overall population health and health inequalities."]
[null,"This tool is part of a set of 9 spreadsheets and associated documentation, produced as an update and extension of our 2014 Triple I work.  "]
[null,"Data and evidence have been updated where applicable, new interventions have been included, and presentation of the results has been improved.  "]
[null,"The tool can be used to produce detailed results for different geographies (Scotland, Local Authorities, Health Boards, City Regions, or Integrated Joint Boards)."]
[null,"Results are provided for three health outcomes: premature mortality, years of life lost, and hospital stays.  "]
[]
[null,"The interventions:"]
[null,"The interventions were chosen based on the highest quality and most generalisable evidence linking them to changes in all-cause mortality and hospital admissions."]
[null,"The topics addressed by the interventions span the determinants of health (including ‘upstream’, ‘downstream’, individual-level and population-wide)."]
[null,"There are 9 Triple I spreadsheet tools (corresponding to the topic areas below)."]
[]
[null,null,"Individual-level interventions: ",null,null,null,null,"Population-wide interventions:"]
[null,null,"(N.B. modelled as being implemented in year 1 only)",null,null,null,null,"(N.B. permanent: modelled as remaining "]
[null,null,"Topic","Intervention(s) ",null,null,null,"in place after implementation in year 1)"]
[null,null,"Mental Health","Interventions for depression",null,null,null,"Topic",null,"Intervention(s) "]
[null,null,"Obesity","Weight management service",null,null,null,"Physical Environment",null,"20 mph speed limits "]
[null,null,"Physical inactivity","Physical activity interventions",null,null,null,"Smoking",null,"Tobacco taxation"]
[null,null,"Smoking","Smoking cessation",null,null,null,"Income",null,"Income-based policies"]
[null,null,"Alcohol consumption","Alcohol Brief Interventions (ABIs)"]
[null,null,"Unemployment","Job provision"]
[]
[null,"Pages in this spreadsheet tool:"]
[null,null,"Introduction",null,">>","Information about the Triple I project"]
[null,null,"User guide",null,">>","How to use this spreadsheet tool"]
[null,null,"Options",null,">>","Where users can change the model options, and see high-level results"]
[null,null,"Results",null,">>","Full results for the chosen model options"]
[null,null,"Evidence",null,">>","Summary of the evidence underpinning the model, and definitions of the policies/interventions"]
[]
[null,"Further information is available on the Triple I website:",null,null,null,null,"Triple I website"]
[null,null,"Interactive results browser",null,">>","An online interactive results browser for comparing different interventions (April 2019)"]
[null,null,"National Overview Report",null,">>","A summary report of the national-level findings (April 2019)"]
[null,null,"Technical Report",null,">>","Details of Triple I's methods and data sources (April 2019)"]
[null,null,"Frequently Asked Questions",null,">>","Answers to frequently-asked questions about Triple I (April 2019)"]
[null,null,"Income-based policies",null,">>","Report and Supplementary Information about the income-based policies work (October 2018)"]
[null,null,"nhs.triple.i@nhs.net",null,">>","Email us for more information."]
[]
[null,"Abbreviations used"]
[null,"IJB","Integrated Joint Board"]
[null,"LA","Local Authority"]
[null,"RII","Relative Index of Inequality"]
[null,"SII","Slope Index of Inequality"]
[null,"SIMD","Scottish Index of Multiple Deprivation"]
[null,"Q1 - Q5","Quintiles of the SIMD: Q1 contains the 20% most deprived areas, and Q5 contains the 20% least deprived areas."]

{"sheet":"User Guide","index":1,"n_rows":72,"n_cols":10,"rows_kept":72,"cut":false,"hidden":false,"merged":[]}
[]
[null,"User Guide"]
[]
[null,"Please note: Macros need to be enabled for the tools to work properly."]
[null,"How to do this in a recent version of Excel: File > Options > Trust Center > Trust Center Settings > Macro Settings > \"Enable all macros\""]
[null,"How to do this in an older version of Excel: Tools > Options > Security > Macro Security > \"Medium\""]
[]
[null,"Changing the intervention details:"]
[null,"You can interact with the Triple I model from the Options tab."]
[null,"Any changes made to the blue cells on this tab will cause Excel to recalculate the model and present new results.   "]
[null,"Below are the options available (N.B. not every spreadsheet will have all of these options):"]
[]
[null,"Intervention:"]
[null,"Choose the intervention of interest (only relevant for tools covering more than one intervention: Mental health, Physical activity, and Income-based interventions)"]
[]
[null,"Area:"]
[null,"Choose the area to run the model for.  The available geographies are listed below. "]
[null,null,"1. Health Boards:",null,null,"The 14 territorial NHS health boards responsible for delivery of frontline healthcare services in Scotland (2014 boundaries). "]
[null,null,"2. Local Authorities:",null,null,"The 32 elected councils that provide a range of services to local people, including education and care.  "]
[null,null,null,null,null,"The Gaelic name of Eilean Siar is used for the local authority covering the Western Isles.  "]
[null,null,"3. Integrated Joint Boards:",null,null,"31 integration authorities were created by The Public Bodies (Joint Working) Act 2014, in order to integrate the health "]
[null,null,null,null,null,"and social care functions of health boards and local authorities.  These Integrated Joint Boards (IJBs) or Partnerships "]
[null,null,null,null,null,"correspond to local authority areas, with the exception of Clackmannanshire and Stirling IJB which combines two "]
[null,null,null,null,null,"local authorities.  The Gaelic name of Eilean Siar is used for the IJB covering the Western Isles.  "]
[null,null,"4. City Region Deals: ",null,null,"City Region Deals are agreements between the Scottish Government, the UK Government and local government."]
[null,null,null,null,null,"They have been designed to bring about long-term strategic approaches to improving regional economies.  "]
[null,null,null,null,null,"The following 6 city regions are included:"]
[]
[null,null,null,null,null,"City Region:",null,null,null,"Local Authorities (LAs) included: "]
[null,null,null,null,null,"Aberdeen City Region Deal",null,null,null,"Aberdeen and Aberdeenshire "]
[null,null,null,null,null,"Edinburgh & Southeast Scotland City Region Deal",null,null,null,"Edinburgh, Fife, East Lothian, Midlothian, West Lothian, Borders "]
[null,null,null,null,null,"Glasgow City Region Deal",null,null,null,"East Dunbartonshire, East Renfrewshire, Glasgow City, Inverclyde, "]
[null,null,null,null,null,null,null,null,null,"North Lanarkshire, Renfrewshire, South Lanarkshire, West Dunbartonshire "]
[null,null,null,null,null,"Inverness & Highland City Region Deal",null,null,null,"Highland "]
[null,null,null,null,null,"Stirling and Clackmannanshire City Region Deal",null,null,null,"Stirling and Clackmannanshire "]
[null,null,null,null,null,"Tay Cities Region Deal ",null,null,null,"Dundee, Perth & Kinross, Angus, Fife "]
[]
[null,"Targeting strategy:"]
[null,"The strategy for delivering the individual-level* interventions can be altered by the user.  "]
[null,"*Interventions delivered to individuals: mental health, weight management, physical activity, smoking cessation, alcohol brief interventions, and job provision. "]
[null,"Four options are available:"]
[null,"·       Even distribution: treat the same proportion of the eligible population in each subgroup (i.e., age group, sex and SIMD 2016 quintile)."]
[null,"·       Proportionate to need: the proportion of each subgroup treated is proportionate to the subgroup's prevalence of the exposure (e.g., smoking, depression, or hazardous/harmful drinking)."]
[null,"·       Most deprived 20% only**: treat only those in SIMD quintile 1 (even distribution within this quintile).    "]
[null,"·       Most deprived 40% only: treat only those in SIMD quintiles 1 and 2 (even distribution within these quintiles).  "]
[null,"**The Orkney Islands, Shetland Islands and the Western Isles do not have population in SIMD 2016 quintile 1, so targeting to this quintile will produce an error message."]
[]
[null,"Number to treat:"]
[null,"For individual-level interventions you can choose the number of people to be treated."]
[null,"·       For information the maximum number of people who are eligible to be treated will be calculated in the preceding cell (unshaded)."]
[null,"·       If a higher number is entered an error message will prevent the calculation from occurring."]
[null,"·       Be aware that the model will run and produce results if changes to another cell mean that the number of people then exceeds the new maximum number.  "]
[]
[null,"Number of years:"]
[null,"The interventions are delivered in year 1.  "]
[null,"Their effects can be modelled from year 2 (the first year of follow-up) to year 20."]
[null,"N.B. Individual-level interventions are delivered for a single year, while the population-level interventions are modelled as remaining in place after year 1. "]
[]
[null,"Viewing the results:"]
[null,"Options tab",null,"A summary of the results is shown on the Options tab."]
[null,"Results tab",null,"More detailed results are shown on the Results tab."]
[null,"Technical Report",null,"Further information about how the results are calculated, and how to interpret them, can be found in the Triple I Technical Report.  "]
[]
[null,"For advanced users: How to make more advanced changes to the model"]
[null,"The inner workings of the Triple I tools are described in the Technical Report.  We recommend you consult the report before making any advanced changes."]
[null,"The model data and calculations can be found in a number of 'hidden' tabs."]
[null,"These are hidden to simplify the spreadsheet for users.  "]
[null,"To see the hidden tabs, right-click on any tab, select 'Unhide', then select the tab you want to unhide. "]
[null,"The hidden tabs include population data, prevalence data, targeting calculations, and result calculations."]
[null,"VBA (Visual Basic for Applications) code has been written to create bespoke functions for the calculations.   "]
[null,"The code can be found from the Developer tab > Visual Basic."]
[null,"If the Developer tab is not shown in your version of Excel go to File > Options > Customize Ribbon and switch on the Developer tab (recent Excel versions only)."]

{"sheet":"Options","index":2,"n_rows":31,"n_cols":8,"rows_kept":31,"cut":false,"hidden":false,"merged":[]}
[]
[null,"Options for changing the model:",null,null,"Results summary:"]
[]
[null,"Change the shaded cells (blue) to recalculate.",null,null,"Check the Results tab for a detailed breakdown of the results"]
[null,"N.B. Results may take a few seconds to change.",null,null,"Results shown as cumulative difference from baseline over the follow-up period (% difference in brackets).  "]
[]
[null,"Intervention: (defined on Evidence tab)",null,null,"POLICY IMPACT ON HEALTH*","Whole population","SIMD Q1 & Q2","SIMD Q1"]
[null,"Pedometer-based interventions",null,null,"Hospital stays prevented$","N/A","N/A","N/A"]
[null,null,null,null,"Premature deaths prevented",{"$f":"CONCATENATE(FIXED(Results!E20,0),\" (\",FIXED(Results!F20,2),\"%)\")","v":"163 (0.75%)"},{"$f":"CONCATENATE(FIXED(Results!E21,0),\" (\",FIXED(Results!F21,2),\"%)\")","v":"84 (0.74%)"},{"$f":"IF(OR(Calculations!$E$2=\"Orkney Health Board\",Calculations!$E$2=\"Orkney Islands Local Authority\",Calculations!$E$2=\"Shetland Health Board\",Calculations!$E$2=\"Western Isles Health Board\",Calculations!$E$2=\"Shetland Islands Local Authority\",Calculations!$E$2=\"Eilean Siar Local Authority\"),\"N/A\", CONCATENATE(FIXED(Results!E22,0),\" (\",FIXED(Results!F22,2),\"%)\"))","v":"46 (0.72%)"}]
[null,"Choose the area to run the model for:",null,null,"Years of life saved",{"$f":"CONCATENATE(FIXED(Results!E24,0),\" (\",FIXED(Results!F24,2),\"%)\")","v":"4,438 (0.75%)"},{"$f":"CONCATENATE(FIXED(Results!E25,0),\" (\",FIXED(Results!F25,2),\"%)\")","v":"2,314 (0.73%)"},{"$f":"IF(OR(Calculations!$E$2=\"Orkney Health Board\",Calculations!$E$2=\"Orkney Islands Local Authority\",Calculations!$E$2=\"Shetland Health Board\",Calculations!$E$2=\"Western Isles Health Board\",Calculations!$E$2=\"Shetland Islands Local Authority\",Calculations!$E$2=\"Eilean Siar Local Authority\"),\"N/A\", CONCATENATE(FIXED(Results!E26,0),\" (\",FIXED(Results!F26,2),\"%)\"))","v":"1,292 (0.72%)"}]
[null,"Scotland",null,null,"*N.B. a positive figure indicates an improvement in health outcomes."]
[null,null,null,null,"$ No evidence found to quantify the relationship between physical activity and all-cause hospitalisation risk."]
[null,"Choose the targeting strategy:"]
[null,"Even distribution",null,null,"POLICY IMPACT ON HEALTH INEQUALITIES**"]
[null,null,null,null,"Gap between most and least deprived","Absolute","Relative"]
[null,"Max no. people available to be treated:",null,null,"Hospital stays","N/A","N/A"]
[null,{"$f":"ROUNDDOWN(IF(OR($B$14=\"Even distribution\",$B$14=\"Proportionate to need\"),HLOOKUP(Calculations!$E$2,'Population at Risk'!$C$3:$BC$257,'Population at Risk'!BD255,FALSE),IF($B$14=\"Targeting to SIMD Q1\",HLOOKUP(Calculations!$E$2,'Population at Risk'!$C$3:$BC$257,'Population at Risk'!BD256,FALSE),IF($B$14=\"Targeting to SIMD Q1 & Q2\",HLOOKUP(Calculations!$E$2,'Population at Risk'!$C$3:$BC$257,'Population at Risk'!BD257,FALSE),\"error\"))),0)","v":737010},null,null,"Premature deaths",{"$f":"CONCATENATE(FIXED(Results!E30,0),\" (\",FIXED(Results!F30,3),\"%)\")","v":"-3 (-0.683%)"},{"$f":"CONCATENATE(FIXED(Results!E34,4),\" (\",FIXED(Results!F34,3),\"%)\")","v":"0.0023 (0.077%)"}]
[null,null,null,null,"Years of life lost",{"$f":"CONCATENATE(FIXED(Results!E31,0),\" (\",FIXED(Results!F31,3),\"%)\")","v":"-85 (-0.682%)"},{"$f":"CONCATENATE(FIXED(Results!E35,4),\" (\",FIXED(Results!F35,3),\"%)\")","v":"0.0020 (0.066%)"}]
[null,"Choose the number of people to treat:",null,null,"Population-wide inequalities slope","Absolute (SII)","Relative (RII)"]
[null,"(in addition to current number treated)",null,null,"Hospital stays","N/A","N/A"]
[null,737010,null,null,"Premature deaths",{"$f":"CONCATENATE(FIXED(Results!E38,0),\" (\",FIXED(Results!F38,3),\"%)\")","v":"-4 (-0.685%)"},{"$f":"CONCATENATE(FIXED(Results!E42,4),\" (\",FIXED(Results!F42,3),\"%)\")","v":"0.0009 (0.067%)"}]
[null,{"$f":"IF(AND(OR(Calculations!$E$2=\"Orkney Health Board\",Calculations!$E$2=\"Orkney Islands Local Authority\",Calculations!$E$2=\"Shetland Health Board\",Calculations!$E$2=\"Western Isles Health Board\",Calculations!$E$2=\"Shetland Islands Local Authority\",Calculations!$E$2=\"Eilean Siar Local Authority\"),B14=\"Targeting to SIMD Q1\"),\"Error: No Q1 population for this area\", IF(B21>B17,\"Too high: please check and re-enter\",\"\"))","v":""},null,null,"Years of life lost",{"$f":"CONCATENATE(FIXED(Results!E39,0),\" (\",FIXED(Results!F39,3),\"%)\")","v":"-100 (-0.682%)"},{"$f":"CONCATENATE(FIXED(Results!E43,4),\" (\",FIXED(Results!F43,3),\"%)\")","v":"0.0008 (0.060%)"}]
[null,"Calculate health impact after this many years:",null,null,"**N.B. Based on rates per 100,000.  A negative figure indicates reduced inequalities / narrowing of the gap."]
[null,2]
[null,null,null,null,"SELECTED COSTS AND SAVINGS***",null,"£"]
[null,null,null,null,"Direct financial cost of the intervention (£):",null,{"$f":"Results!D50","v":5159070}]
[null,null,null,null,"Direct financial savings from reduced hospitalisations (£):"]
[null,null,null,null,null,"Whole population","N/A"]
[null,null,null,null,null,"SIMD Q1 & Q2","N/A"]
[null,null,null,null,null,"SIMD Q1","N/A"]
[null,null,null,null,"***Costs/savings from changes to other health outcomes and to health inequalities have not been estimated."]

{"sheet":"Results","index":3,"n_rows":59,"n_cols":8,"rows_kept":59,"cut":false,"hidden":false,"merged":[]}
[]
[null,"Detailed results for intervention:",null,{"$f":"Options!B8","v":"Pedometer-based interventions"}]
[]
[null,"Area of interest:",{"$f":"Options!B11","v":"Scotland"},"Targeting strategy:",{"$f":"Options!B14","v":"Even distribution"}]
[null,"Age group:","16+ years","Additional people to be treated:",{"$f":"Options!B21","v":737010}]
[null,"Baseline year (prevalence and population data):",2016,"Health impact calculated after:",{"$f":"CONCATENATE(Options!B24,\" years\")","v":"2 years"}]
[]
[null,"Baseline situation (2016):","No. not meeting the 2011 physical activity guidelines","No. available for intervention","No. all-cause hospital stays","No. all-cause deaths","No. premature all-cause deaths","Years of life lost (all causes)"]
[null,"Whole population",{"$f":"HLOOKUP(Calculations!$E$2,'Population at Risk'!$C$3:$BC$257,'Population at Risk'!BD251,FALSE)","v":1630555.179},{"$f":"ROUNDDOWN(HLOOKUP(Calculations!$E$2,'Population at Risk'!$C$3:$BC$257,'Population at Risk'!BD255,FALSE),0)","v":737010},{"$f":"HLOOKUP(Calculations!$E$2,'Health outcome totals 2016'!$C$3:$BC$17,'Health outcome totals 2016'!$BD6,FALSE)","v":1125093},{"$f":"HLOOKUP(Calculations!$E$2,'Health outcome totals 2016'!$C$3:$BC$17,'Health outcome totals 2016'!$BD9,FALSE)","v":56725},{"$f":"HLOOKUP(Calculations!$E$2,'Health outcome totals 2016'!$C$3:$BC$17,'Health outcome totals 2016'!$BD12,FALSE)","v":21313},{"$f":"HLOOKUP(Calculations!$E$2,'Health outcome totals 2016'!$C$3:$BC$17,'Health outcome totals 2016'!$BD15,FALSE)","v":708624.04837918223}]
[null,"Most deprived 40% (Q1 & Q2)",{"$f":"HLOOKUP(Calculations!$E$2,'Population at Risk'!$C$3:$BC$257,'Population at Risk'!BD253,FALSE)","v":760779.348},{"$f":"ROUNDDOWN(HLOOKUP(Calculations!$E$2,'Population at Risk'!$C$3:$BC$257,'Population at Risk'!BD257,FALSE),0)","v":343872},{"$f":"HLOOKUP(Calculations!$E$2,'Health outcome totals 2016'!$C$3:$BC$17,'Health outcome totals 2016'!$BD8,FALSE)","v":534382},{"$f":"HLOOKUP(Calculations!$E$2,'Health outcome totals 2016'!$C$3:$BC$17,'Health outcome totals 2016'!$BD11,FALSE)","v":26567},{"$f":"HLOOKUP(Calculations!$E$2,'Health outcome totals 2016'!$C$3:$BC$17,'Health outcome totals 2016'!$BD14,FALSE)","v":11618},{"$f":"HLOOKUP(Calculations!$E$2,'Health outcome totals 2016'!$C$3:$BC$17,'Health outcome totals 2016'!$BD17,FALSE)","v":372328.97050476068}]
[null,"Most deprived 20% (Q1)",{"$f":"IF(OR(Calculations!$E$2=\"Orkney Health Board\",Calculations!$E$2=\"Orkney Islands Local Authority\",Calculations!$E$2=\"Shetland Health Board\",Calculations!$E$2=\"Western Isles Health Board\",Calculations!$E$2=\"Shetland Islands Local Authority\",Calculations!$E$2=\"Eilean Siar Local Authority\"),\"N/A\", HLOOKUP(Calculations!$E$2,'Population at Risk'!$C$3:$BC$257,'Population at Risk'!BD252,FALSE))","v":397917.53700000001},{"$f":"IF(OR(Calculations!$E$2=\"Orkney Health Board\",Calculations!$E$2=\"Orkney Islands Local Authority\",Calculations!$E$2=\"Shetland Health Board\",Calculations!$E$2=\"Western Isles Health Board\",Calculations!$E$2=\"Shetland Islands Local Authority\",Calculations!$E$2=\"Eilean Siar Local Authority\"),\"N/A\", ROUNDDOWN(HLOOKUP(Calculations!$E$2,'Population at Risk'!$C$3:$BC$257,'Population at Risk'!BD256,FALSE),0))","v":179858},{"$f":"IF(OR(Calculations!$E$2=\"Orkney Health Board\",Calculations!$E$2=\"Orkney Islands Local Authority\",Calculations!$E$2=\"Shetland Health Board\",Calculations!$E$2=\"Western Isles Health Board\",Calculations!$E$2=\"Shetland Islands Local Authority\",Calculations!$E$2=\"Eilean Siar Local Authority\"),\"N/A\", HLOOKUP(Calculations!$E$2,'Health outcome totals 2016'!$C$3:$BC$17,'Health outcome totals 2016'!$BD7,FALSE))","v":283718},{"$f":"IF(OR(Calculations!$E$2=\"Orkney Health Board\",Calculations!$E$2=\"Orkney Islands Local Authority\",Calculations!$E$2=\"Shetland Health Board\",Calculations!$E$2=\"Western Isles Health Board\",Calculations!$E$2=\"Shetland Islands Local Authority\",Calculations!$E$2=\"Eilean Siar Local Authority\"),\"N/A\", HLOOKUP(Calculations!$E$2,'Health outcome totals 2016'!$C$3:$BC$17,'Health outcome totals 2016'!$BD10,FALSE))","v":13665},{"$f":"IF(OR(Calculations!$E$2=\"Orkney Health Board\",Calculations!$E$2=\"Orkney Islands Local Authority\",Calculations!$E$2=\"Shetland Health Board\",Calculations!$E$2=\"Western Isles Health Board\",Calculations!$E$2=\"Shetland Islands Local Authority\",Calculations!$E$2=\"Eilean Siar Local Authority\"),\"N/A\", HLOOKUP(Calculations!$E$2,'Health outcome totals 2016'!$C$3:$BC$17,'Health outcome totals 2016'!$BD13,FALSE))","v":6443},{"$f":"IF(OR(Calculations!$E$2=\"Orkney Health Board\",Calculations!$E$2=\"Orkney Islands Local Authority\",Calculations!$E$2=\"Shetland Health Board\",Calculations!$E$2=\"Western Isles Health Board\",Calculations!$E$2=\"Shetland Islands Local Authority\",Calculations!$E$2=\"Eilean Siar Local Authority\"),\"N/A\", HLOOKUP(Calculations!$E$2,'Health outcome totals 2016'!$C$3:$BC$17,'Health outcome totals 2016'!$BD16,FALSE))","v":203545.71069335938}]
[]
[null,"Health impact","Without intervention","With intervention","Difference","Difference","Interpretation"]
[null,"HEALTH OUTCOMES","n","n","n","%"]
[null,"Hospital stays",null,null,null,"% prevented"]
[null,"Whole population","N/A","N/A","N/A","N/A","Hospital stays prevented"]
[null,"Q1 & Q2","N/A","N/A","N/A","N/A","(N.B. positive difference = "]
[null,"Q1","N/A","N/A","N/A","N/A","fewer stays)"]
[null,"Premature deaths (<75 years)",null,null,null,"% prevented"]
[null,"Whole population",{"$f":"Calculations!Q5","v":21620.7169807428},{"$f":"Calculations!R5","v":21457.606124255002},{"$f":"C20-D20","v":163.11085648779772},{"$f":"E20*100/C20","v":0.7544192758874636},"Premature deaths prevented"]
[null,"Q1 & Q2",{"$f":"Calculations!Q6","v":11403.526775820599},{"$f":"Calculations!R6","v":11319.707010686401},{"$f":"C21-D21","v":83.819765134197951},{"$f":"E21*100/C21","v":0.73503370301128856},"(N.B. positive difference = "]
[null,"Q1",{"$f":"IF(OR(Calculations!$E$2=\"Orkney Health Board\",Calculations!$E$2=\"Orkney Islands Local Authority\",Calculations!$E$2=\"Shetland Health Board\",Calculations!$E$2=\"Western Isles Health Board\",Calculations!$E$2=\"Shetland Islands Local Authority\",Calculations!$E$2=\"Eilean Siar Local Authority\"),\"N/A\", Calculations!Q7)","v":6422.9969074233995},{"$f":"IF(OR(Calculations!$E$2=\"Orkney Health Board\",Calculations!$E$2=\"Orkney Islands Local Authority\",Calculations!$E$2=\"Shetland Health Board\",Calculations!$E$2=\"Western Isles Health Board\",Calculations!$E$2=\"Shetland Islands Local Authority\",Calculations!$E$2=\"Eilean Siar Local Authority\"),\"N/A\", Calculations!R7)","v":6376.5005460088005},{"$f":"IF(OR(Calculations!$E$2=\"Orkney Health Board\",Calculations!$E$2=\"Orkney Islands Local Authority\",Calculations!$E$2=\"Shetland Health Board\",Calculations!$E$2=\"Western Isles Health Board\",Calculations!$E$2=\"Shetland Islands Local Authority\",Calculations!$E$2=\"Eilean Siar Local Authority\"),\"N/A\", C22-D22)","v":46.49636141459905},{"$f":"IF(OR(Calculations!$E$2=\"Orkney Health Board\",Calculations!$E$2=\"Orkney Islands Local Authority\",Calculations!$E$2=\"Shetland Health Board\",Calculations!$E$2=\"Western Isles Health Board\",Calculations!$E$2=\"Shetland Islands Local Authority\",Calculations!$E$2=\"Eilean Siar Local Authority\"),\"N/A\", E22*100/C22)","v":0.7239044652327441},"fewer premature deaths)"]
[null,"Years of life lost",null,null,null,"% saved"]
[null,"Whole population",{"$f":"Calculations!M5","v":595542.87286199734},{"$f":"Calculations!N5","v":591104.74937704531},{"$f":"C24-D24","v":4438.123484952026},{"$f":"E24*100/C24","v":0.74522317152814854},"Years of life saved"]
[null,"Q1 & Q2",{"$f":"Calculations!M6","v":317987.14478002698},{"$f":"Calculations!N6","v":315673.38906837848},{"$f":"C25-D25","v":2313.7557116484968},{"$f":"E25*100/C25","v":0.72762555016149366},"(N.B. positive difference ="]
[null,"Q1",{"$f":"IF(OR(Calculations!$E$2=\"Orkney Health Board\",Calculations!$E$2=\"Orkney Islands Local Authority\",Calculations!$E$2=\"Shetland Health Board\",Calculations!$E$2=\"Western Isles Health Board\",Calculations!$E$2=\"Shetland Islands Local Authority\",Calculations!$E$2=\"Eilean Siar Local Authority\"),\"N/A\", Calculations!M7)","v":179558.49437185682},{"$f":"IF(OR(Calculations!$E$2=\"Orkney Health Board\",Calculations!$E$2=\"Orkney Islands Local Authority\",Calculations!$E$2=\"Shetland Health Board\",Calculations!$E$2=\"Western Isles Health Board\",Calculations!$E$2=\"Shetland Islands Local Authority\",Calculations!$E$2=\"Eilean Siar Local Authority\"),\"N/A\", Calculations!N7)","v":178266.32383606618},{"$f":"IF(OR(Calculations!$E$2=\"Orkney Health Board\",Calculations!$E$2=\"Orkney Islands Local Authority\",Calculations!$E$2=\"Shetland Health Board\",Calculations!$E$2=\"Western Isles Health Board\",Calculations!$E$2=\"Shetland Islands Local Authority\",Calculations!$E$2=\"Eilean Siar Local Authority\"),\"N/A\", C26-D26)","v":1292.1705357906467},{"$f":"IF(OR(Calculations!$E$2=\"Orkney Health Board\",Calculations!$E$2=\"Orkney Islands Local Authority\",Calculations!$E$2=\"Shetland Health Board\",Calculations!$E$2=\"Western Isles Health Board\",Calculations!$E$2=\"Shetland Islands Local Authority\",Calculations!$E$2=\"Eilean Siar Local Authority\"),\"N/A\", E26*100/C26)","v":0.71963765362981102},"years of life saved)"]
[null,"HEALTH INEQUALITIES ","rate*","rate*","rate*","%"]
[null,"Absolute gap (Q1 minus Q5**)",null,null,null,"% increase"]
[null,"Hospital stays","N/A","N/A","N/A","N/A","Change in the absolute gap"]
[null,"Premature deaths",{"$f":"Inequalities!N17","v":453.39399717472872},{"$f":"Inequalities!P17","v":450.29588530122072},{"$f":"D30-C30","v":-3.0981118735080031},{"$f":"E30*100/C30","v":-0.68331559147530008},"(N.B. negative = narrower gap)"]
[null,"YLL",{"$f":"Inequalities!T17","v":12487.25288998876},{"$f":"Inequalities!V17","v":12402.089804608953},{"$f":"D31-C31","v":-85.163085379806944},{"$f":"E31*100/C31","v":-0.68200016552947063}]
[null,"Relative gap Q1 to Q5**",null,null,null,"% increase"]
[null,"Hospital stays","N/A","N/A","N/A","N/A","Change in the relative gap"]
[null,"Premature deaths",{"$f":"Inequalities!N18","v":3.0043631921387255},{"$f":"Inequalities!P18","v":3.0066652538115712},{"$f":"D34-C34","v":2.3020616728457455E-3},{"$f":"E34*100/C34","v":7.6623947426508368E-2},"(N.B. negative = narrower gap)"]
[null,"YLL",{"$f":"Inequalities!T18","v":2.9920415938628535},{"$f":"Inequalities!V18","v":2.9940287949893745},{"$f":"D35-C35","v":1.9872011265209544E-3},{"$f":"E35*100/C35","v":6.6416226652631277E-2}]
[null,"Slope Index of Inequality (SII)",null,null,null,"% increase"]
[null,"Hospital stays","N/A","N/A","N/A","N/A","Change in absolute inequalities"]
[null,"Premature deaths",{"$f":"Inequalities!N15","v":534.08662162945086},{"$f":"Inequalities!P15","v":530.42874641024491},{"$f":"D38-C38","v":-3.6578752192059483},{"$f":"E38*100/C38","v":-0.68488426241535427},"(N.B. negative = decreased inequalities)"]
[null,"YLL",{"$f":"Inequalities!T15","v":14712.660743482789},{"$f":"Inequalities!V15","v":14612.355356706954},{"$f":"D39-C39","v":-100.30538677583536},{"$f":"E39*100/C39","v":-0.68176238495995534}]
[null,"Relative Index of Inequality (RII)",null,null,null,"% increase"]
[null,"Hospital stays","N/A","N/A","N/A","N/A","Change in relative inequalities"]
[null,"Premature deaths",{"$f":"Inequalities!N16","v":1.2858179655121522},{"$f":"Inequalities!P16","v":1.2866830350899221},{"$f":"D42-C42","v":8.6506957776988358E-4},{"$f":"E42*100/C42","v":6.7277764113780988E-2},"(N.B. negative = decreased inequalities)"]
[null,"YLL",{"$f":"Inequalities!T16","v":1.2810555271902646},{"$f":"Inequalities!V16","v":1.2818224086123422},{"$f":"D43-C43","v":7.6688142207759213E-4},{"$f":"E43*100/C43","v":5.9863246034275418E-2}]
[]
[null,"* European age-standardised rate per 100,000"]
[null,"** or the most and least deprived quintiles in the area"]
[]
[null,"Economic impact","Without intervention","With intervention","Difference","Difference","Interpretation"]
[null,null,"£","£","£"]
[null,"Direct financial cost:",0,{"$f":"VLOOKUP($D$2,Evidence!$B$186:$C$186,2,TRUE)*Results!E5","v":5159070},{"$f":"D50-C50","v":5159070},null,"Positive difference = net cost incurred"]
[]
[null,"Direct financial savings:","£","£","£","% saved"]
[null,"Hospital stays"]
[null,"Whole population","N/A","N/A","N/A","N/A","Reduction in hospital stay costs"]
[null,"Q1 & Q2","N/A","N/A","N/A","N/A","(N.B. positive difference = "]
[null,"Q1","N/A","N/A","N/A","N/A","money saved)"]
[null,"Premature deaths (<75 years)",null,null,"Savings not estimated"]
[null,"Years of life lost",null,null,"Savings not estimated"]
[null,"Inequalities",null,null,"Savings not estimated"]

{"sheet":"Evidence","index":4,"n_rows":208,"n_cols":9,"rows_kept":208,"cut":false,"hidden":false,"merged":[]}
[]
[null,"The interventions"]
[]
[null,"Two interventions that have been shown to be effective in increasing physical activity (PA) levels are included in this tool:"]
[]
[null,"1. Pedometer-based interventions"]
[null,"12-week pedometer-based intervention to increase walking among adults delivered in a primary care-setting.  "]
[null,"Participants receive a pedometer, diary and 12-week pedometer-based walking programme, either by post or via a consultation with a practice nurse.  "]
[]
[null,"2. Physical activity brief interventions"]
[null,"Physical activity brief interventions are verbal advice, discussion, negotiation or encouragement, with or without written or other support or follow-up."]
[null,"It aims to improve health and wellbeing by raising awareness of the importance of physical activity and encouraging people to increase or maintain their activity level. "]
[null,"It can vary from basic advice to a more extended, individually-focused discussion."]
[null,"It could be opportunistic and can take between 1-20 minutes."]
[null,"(Source: NICE PH44)"]
[]
[]
[null,"Exposure Rate Ratios (ERR) for physical inactivity"]
[]
[null,"Outcome","ERR for least active relative to most active group","Source","Quoted/calculated?"]
[null,"All-cause hospitalisation","none identified"]
[null,"All-cause mortality",1.429,"Department of Health (2011)","Calculated"]
[]
[null,"We did not identify any evidence of the relationship between physical activity and all-cause hospitalisation."]
[null,"The UK Chief Medical Officer (Department of Health 2011) reports review-level evidence of a 30% reduction in all-cause mortality risk for the most active groups "]
[null,"compared to the least active groups. We inverted the rate ratio (RR) to give 1/0.7 = 1.429 (RR for least vs. most active groups)."]
[null,"N.B. Comparing the least and most active groups may overestimate the effect for those who don't meet the PA guidelines, compared with those that do meet them."]
[]
[]
[null,"Intervention Rate Ratios (IRR) for successful physical activity interventions"]
[]
[null,"Effect of pedometer-based interventions:"]
[null,"A randomised control trial of a pedometer-based walking intervention (Harris et al 2017) involving 1,023 individuals (45-75 years old) that did not meet "]
[null,"the 2011 PA guidelines.  On average the intervention groups recorded an additional 33 minutes of moderate/vigorous PA per week (postal intervention, n=312), "]
[null,"or 35 minutes per week (nurse-supported intervention, n=321). These effect sizes did not differ significantly, however the cost of delivering the nurse-led "]
[null,"intervention is substantially higher, therefore we use the postal intervention estimate of 33 minutes per week."]
[]
[null,"Effect of this increase in PA:"]
[null,"In the large cohort study conducted by Wen et al (2011, n=416,175) it was found that, relative to inactive individuals, those who exercised for 15 mins a day had a "]
[null,"14% reduced risk of all-cause mortality.  For the effect size of 33 minutes we calculated a reduction in all-cause mortality risk of 0.954, relative to individuals "]
[null,"not meeting the 2011 PA guidelines. This was calculated as follows:"]
[null,"33.00 minutes per week = 33/7 = 4.71 minutes per day"]
[null,"RR for additional 15 minutes per day = ",null,0.86]
[null,"Regression coefficient per additional minute per day = loge(0.86)/15 =",null,{"$f":"LN(0.86)/15","v":-1.005485931563891E-2}]
[null,"RR for additional 4.71 minutes per day = e^(coefficient*4.71) =",null,{"$f":"EXP(D44*4.71)","v":0.95374552597573981}]
[]
[null,"Effect of Physical activity brief interventions:"]
[null,"A review undertaken to support NICE guidance PH44 (NICE 2013) investigated the effectiveness of PA brief interventions addressing physical activity delivered "]
[null,"in a primary care setting (Campbell et al 2012). Three studies included in the review reported additional minutes per week of physical activity."]
[null,"This was pooled to 34.91 additional minutes of physical activity per week for those in the intervention group (95% CI 4.87 to 64.94)."]
[]
[null,"Effect of this increase in PA:"]
[null,"As for pedometer-based interventions we estimated the effect of this increase in PA using the RR from Wen et al 2011."]
[null,"For the effect size of 34.91 minutes we calculated a reduction in all-cause mortality risk of 0.951, relative to individuals not meeting the 2011 PA guidelines."]
[null,"This was calculated as follows:"]
[null,"34.91 minutes per week = 34.91/7 = 4.99 minutes per day"]
[null,"RR for additional 15 minutes per day = ",null,0.86]
[null,"Regression coefficient per additional minute per day = loge(0.86)/15 =",null,{"$f":"LN(0.86)/15","v":-1.005485931563891E-2}]
[null,"RR for additional 4.99 minutes per day = e^(coefficient*4.99) =",null,{"$f":"EXP(D58*4.99)","v":0.95106416466209576}]
[]
[]
[null,"Intervention","additional minutes PA per week","mortality IRR relative to untreated","Sources","Quoted/calculated?"]
[null,"Pedometer-based interventions",33,0.95399999999999996,"Harris et al (2017); Wen et al (2011)","Calculated"]
[null,"PA brief interventions",34.909999999999997,0.95099999999999996,"Campbell et al (2012); Wen et al (2011)","Calculated"]
[]
[]
[null,"'Eligible' population"]
[]
[null,"Based on % of adults not meeting 2011 PA guidelines in 2008-11 SHeS pooled dataset (Knowledge and Attitudes module) who indicated that they were in the "]
[null,"contemplation, preparation, action or maintenance stage of change. It was not possible to get an exact match for the PA 2011 guidelines variable in the 2008-11 data. "]
[null,"The estimate presented is the closest possible based on advice from ScotCen Social Research."]
[]
[null,"Eligibility criteria","%","Source","Quoted/calculated?"]
[null,"Adults not meeting the PA 2011 guidelines who are motivated to increase their PA levels",45.2,"SHeS 2008-11 (Knowledge and Attitudes Module)","Calculated"]
[]
[]
[null,"Change in intervention effect over time"]
[]
[null,"Pedometer-based interventions:"]
[null,"After 3 years the sustained effect sizes, relative to the control group, were 28 mins for postal and 24 mins for nurse-supported (Harris et al 2018)"]
[null,"We use the postal estimate of 28 minutes per week."]
[null,"Using the calculation above this gives an all-cause mortality effect size of 0.961 at 3 years.  "]
[null,"The NICE Technical Report (Mallender et al 2013) notes that the health impact from a physical activity intervention can be assumed to last for 10 years, "]
[null,"after which the effect is null, relative to an inactive person.   We therefore assumed a linear effect decay to baseline at 10 years.  "]
[null,"Drop-out from the intervention was also included in the calculations."]
[null,"Loss to follow up was assumed to equate to drop out.  The rates were 7% within 12 months (Harris et al 2017) and 33% within 3 years (Harris et al 2018)."]
[null,"We assumed that drop-out increased linearly over time, reaching 100% drop out by year 10."]
[]
[null,"PA brief interventions:"]
[null,"Lamming et al (2017) note a lack of longer term evidence for the effect of PA brief interventions over time. "]
[null,"We therefore assumed a linear effect decay to baseline at 10 years as per the pedometer-based intervention.  "]
[null,"We also assumed that drop-out increased linearly over time, reaching 100% drop out by year 10 as per the pedometer-based intervention."]
[]
[null,null,null,null,"Pedometer-based interventions",null,"PA brief interventions"]
[null,null,null,null,"mortality IRR",null,"mortality IRR"]
[null,"year","proportion of treated group who have dropped out","proportion continuing treatment ","for those continuing treatment","for treated group (continuers + drop outs)","for those continuing treatment","for treated group (continuers + drop outs)"]
[null,"1 (intervention)",7.0000000000000007E-2,{"$f":"1-C97","v":0.92999999999999994},{"$f":"D45","v":0.95374552597573981},{"$f":"(C97*1)+(D97*E97)","v":0.95698333915743805},{"$f":"D64","v":0.95099999999999996},{"$f":"(C97*1)+(D97*G97)","v":0.95442999999999989}]
[null,2,{"$f":"C97+0.5*(C99-C97)","v":0.2},{"$f":"1-C98","v":0.8},{"$f":"E97+0.5*(E99-E97)","v":0.95737276298786989},0.965898210390296,{"$f":"G97+(G$106-G$97)/9","v":0.95644444444444443},{"$f":"(C98*1)+(D98*G98)","v":0.96515555555555554}]
[null,3,0.33,0.66999999999999993,0.96099999999999997,0.97387000000000001,{"$f":"G98+(G$106-G$97)/9","v":0.9618888888888889},0.97446555555555547]
[null,4,{"$f":"C99+(C$106-C$99)/7","v":0.42571428571428571},0.57428571428571429,{"$f":"E99+(E$106-E$99)/7","v":0.96657142857142853},0.98080244897959179,0.96733333333333338,0.98124]
[null,5,{"$f":"C100+(C$106-C$99)/7","v":0.52142857142857146},0.47857142857142854,{"$f":"E100+(E$106-E$99)/7","v":0.97214285714285709},0.98666836734693875,0.97277777777777785,0.98697222222222225]
[null,6,0.61714285714285722,0.38285714285714278,{"$f":"E101+(E$106-E$99)/7","v":0.97771428571428565},0.99146775510204077,0.97822222222222233,0.99166222222222222]
[null,7,0.71285714285714297,0.28714285714285703,{"$f":"E102+(E$106-E$99)/7","v":0.98328571428571421},0.99520061224489798,0.9836666666666668,0.99531000000000003]
[null,8,0.80857142857142872,0.19142857142857128,{"$f":"E103+(E$106-E$99)/7","v":0.98885714285714277},0.99786693877551014,0.98911111111111127,0.99791555555555556]
[null,9,0.90428571428571447,9.571428571428553E-2,{"$f":"E104+(E$106-E$99)/7","v":0.99442857142857133},0.99946673469387759,0.99455555555555575,0.99947888888888892]
[null,10,1,0,1,1,1,1]
[null,11,1,0,1,1,1,1]
[null,12,1,0,1,1,1,1]
[null,13,1,0,1,1,1,1]
[null,14,1,0,1,1,1,1]
[null,15,1,0,1,1,1,1]
[null,16,1,0,1,1,1,1]
[null,17,1,0,1,1,1,1]
[null,18,1,0,1,1,1,1]
[null,19,1,0,1,1,1,1]
[null,20,1,0,1,1,1,1]
[null,21,1,0,1,1,1,1]
[]
[]
[null,"Prevalence of physical inactivity"]
[]
[null,"Proportion of the population who do not meet recommended physical activity guidelines (2011 guidelines of 150 mins/week moderate or 75 mins/week vigorous PA "]
[null,"(Department of Health 2011)).  The figures are weighted proportions from the Scottish Health Survey (2013-2016 combined)."]
[null,"* have sample base <450, combined LA estimate used"]
[]
[null,"Prevalence by Area (proportion)",null,null,null,"Prevalence by deprivation quintile (proportion)"]
[null,"Area ","Females","Males",null,"SIMD 2016 quintile ","age group","Females","Males"]
[null,"SCOTLAND",0.41210000000000002,0.31400000000000006,null,"Q1 (most deprived)","16-24",0.39600000000000002,0.26]
[null,"Ayrshire & Arran Health Board",0.45469999999999999,0.33870000000000006,null,null,"25-34",0.34499999999999997,0.19500000000000001]
[null,"Borders Health Board",0.42499000000000003,0.35688999999999993,null,null,"35-44",0.33700000000000002,0.28900000000000003]
[null,"Dumfries & Galloway Health Board",0.47627999999999998,0.32141000000000003,null,null,"45-54",0.47899999999999998,0.47100000000000003]
[null,"Fife Health Board",0.41020000000000001,0.29120000000000007,null,null,"55-64",0.59299999999999997,0.59299999999999997]
[null,"Forth Valley Health Board",0.42959999999999998,0.29609999999999997,null,null,"65-74",0.7,0.61499999999999999]
[null,"Grampian Health Board",0.39640000000000003,0.31040000000000006,null,null,"75+",0.85,0.72099999999999997]
[null,"Greater Glasgow & Clyde Health Board",0.43189999999999995,0.31140000000000001,null,"Q2","16-24",0.17900000000000005,0.30200000000000005]
[null,"Highland Health Board",0.40340000000000004,0.30780000000000002,null,null,"25-34",0.26200000000000001,0.34700000000000003]
[null,"Lanarkshire Health Board",0.4158,0.35400000000000004,null,null,"35-44",0.31099999999999994,0.34499999999999997]
[null,"Lothian Health Board",0.36959999999999998,0.28739999999999993,null,null,"45-54",0.31400000000000006,0.36899999999999999]
[null,"Orkney Health Board",0.42076000000000002,0.33638999999999997,null,null,"55-64",0.40200000000000002,0.52100000000000002]
[null,"Shetland Health Board",0.39234999999999998,0.30265000000000003,null,null,"65-74",0.48899999999999999,0.58799999999999997]
[null,"Tayside Health Board",0.38780000000000003,0.32180000000000009,null,null,"75+",0.72599999999999998,0.83299999999999996]
[null,"Western Isles Health Board",0.40847,0.30194999999999994,null,"Q3","16-24",0.11700000000000003,0.34700000000000003]
[null,"Aberdeen City Local Authority",0.35099999999999992,0.29299999999999998,null,null,"25-34",0.115,0.29200000000000004]
[null,"Aberdeenshire Local Authority",0.41200000000000003,0.31799999999999995,null,null,"35-44",0.22799999999999998,0.32299999999999995]
[null,"Angus Local Authority",0.42700000000000005,0.32900000000000007,"*",null,"45-54",0.25900000000000006,0.33500000000000002]
[null,"Argyll & Bute Local Authority",0.40299999999999997,0.308,"*",null,"55-64",0.41499999999999998,0.434]
[null,"Clackmannanshire Local Authority",0.45899999999999996,0.31,"*",null,"65-74",0.48499999999999999,0.52700000000000002]
[null,"Dumfries & Galloway Local Authority",0.47600000000000003,0.32099999999999995,null,null,"75+",0.61699999999999999,0.79500000000000004]
[null,"Dundee City Local Authority",0.44299999999999995,0.32900000000000007,"*","Q4","16-24",0.19299999999999998,0.34200000000000003]
[null,"East Ayrshire Local Authority",0.46899999999999997,0.36099999999999999,null,null,"25-34",0.16900000000000007,0.19700000000000004]
[null,"East Dunbartonshire Local Authority",0.40100000000000002,0.28299999999999997,"*",null,"35-44",0.22,0.27200000000000002]
[null,"East Lothian Local Authority",0.38900000000000001,0.37,"*",null,"45-54",0.23099999999999996,0.32]
[null,"East Renfrewshire Local Authority",0.40100000000000002,0.28299999999999997,"*",null,"55-64",0.35200000000000004,0.40500000000000003]
[null,"Edinburgh, City of Local Authority",0.33400000000000007,0.245,null,null,"65-74",0.34599999999999992,0.46500000000000002]
[null,"Eilean Siar Local Authority",0.40799999999999997,0.30200000000000005,null,null,"75+",0.56000000000000005,0.71099999999999997]
[null,"Falkirk Local Authority",0.45899999999999996,0.31,"*","Q5 (least deprived)","16-24",0.14599999999999994,0.18299999999999997]
[null,"Fife Local Authority",0.41,0.29099999999999993,null,null,"25-34",0.18200000000000002,0.17900000000000005]
[null,"Glasgow City Local Authority",0.46,0.31599999999999995,null,null,"35-44",0.14599999999999994,0.25099999999999995]
[null,"Highland Local Authority",0.43099999999999999,0.33700000000000002,null,null,"45-54",0.22599999999999995,0.23799999999999996]
[null,"Inverclyde Local Authority",0.36700000000000005,0.31299999999999994,"*",null,"55-64",0.29799999999999999,0.35200000000000004]
[null,"Midlothian Local Authority",0.38900000000000001,0.37,"*",null,"65-74",0.28700000000000003,0.4]
[null,"Moray Local Authority",0.439,0.31400000000000006,"*",null,"75+",0.53500000000000003,0.72199999999999998]
[null,"North Ayrshire Local Authority",0.47600000000000003,0.34200000000000003]
[null,"North Lanarkshire Local Authority",0.441,0.38500000000000001]
[null,"Orkney Islands Local Authority",0.42100000000000004,0.33599999999999997]
[null,"Perth & Kinross Local Authority",0.40700000000000003,0.315,"*"]
[null,"Renfrewshire Local Authority",0.37799999999999995,0.308,"*"]
[null,"Scottish Borders Local Authority",0.42499999999999999,0.35700000000000004]
[null,"Shetland Islands Local Authority",0.39200000000000002,0.30299999999999999]
[null,"South Ayrshire Local Authority",0.41299999999999998,0.30900000000000005]
[null,"South Lanarkshire Local Authority",0.38900000000000001,0.31900000000000006]
[null,"Stirling Local Authority",0.40200000000000002,0.28499999999999998,"*"]
[null,"West Dunbartonshire Local Authority",0.39600000000000002,0.30499999999999999,"*"]
[null,"West Lothian Local Authority",0.441,0.33,"*"]
[null,"Aberdeen City Region Deal",0.38400000000000001,0.30700000000000005]
[null,"Edinburgh & SE Scotland City Region Deal",0.38600000000000001,0.29400000000000004]
[null,"Glasgow City Region Deal",0.42599999999999999,0.32700000000000001]
[null,"Inverness & Highland City Region Deal",0.43099999999999999,0.33700000000000002]
[null,"Tay Cities Region Deal ",0.39799999999999996,0.308]
[null,"Clackmannanshire & Stirling IJB",0.42200000000000004,0.25900000000000006]
[]
[]
[null,"Intervention costs"]
[]
[null,"Cost of one intervention:"]
[null,"Pedometer-based interventions",7,"*"]
[null,"Physical activity brief intervention",7,"**"]
[]
[null,"*The figure is based on Harris et al (2018) and has been inflation adjusted for 2015/16 using HCHS inflation index"]
[null,"**Figure is based on Personal Social Services Research Unit's 2016 Unit Costs of Health and Social Care for staff costs - Band 5 nurse delivering 10 minute intervention"]
[]
[null,"Hospitalisation costs"]
[]
[null,"The cost of a continuous inpatient stay was estimated to be £2,113 in 2006/07 (Geue et al 2012; based on healthcare resource groups and the English tariff)."]
[null,"This was inflated to £2,512 for 2015/16 using the Hospital and Community Health Service (HCHS) inflation index."]
[null,"Cost of continuous Inpatient stay ",2512]
[]
[null,"References"]
[]
[null,"Campbell et al. (2012) Physical activity: Brief advice for adults in primary care (National Institute for Health and Clinical Excellence Public Health Intervention Guidance)"]
[null,"Department of Health (2011) Start active, stay active: a report on physical activity for health from the four home countries' Chief Medical Officers, Department of Health, London."]
[null,"Geue et al (2012) Spoilt for choice: implications of using alternative methods of costing hospital episode statistics. Health Economics 21: 1201-1216. https://onlinelibrary.wiley.com/doi/abs/10.1002/hec.1785"]
[null,"Harris et al. (2017) Effect of a Primary Care Walking Intervention with and without Nurse Support on Physical Activity Levels in 45- to 75-Year-Olds: The Pedometer And Consultation Evaluation (PACE-UP) Cluster Randomised Clinical Trial. PLoS Med 14(1): e1002210. doi:10.1371/journal.pmed.1002210"]
[null,"Harris et al. (2018) Physical activity levels in adults and older adults 3±4 years after pedometer-based walking interventions: Long-term follow-up of participants from two randomised controlled trials in UK primary care. PLoS Med 15 (3): e1002526. https://doi.org/10.1371/journal.pmed.1002526"]
[null,"Lamming et al (2017) \"What do we know about brief interventions for physical activity that could be delivered in primary care consultations? A systematic review of reviews\", Preventive Medicine, vol. 99, pp. 152-163"]
[null,"Mallender et al (2013) Physical Activity Return on Investment Tool. London: National Institute of Health and Care Excellence"]
[null,"Personal Social Services Research Unit (2016) Unit costs of health and social care 2016. https://www.pssru.ac.uk/project-pages/unit-costs/unit-costs-2016/"]
[null,"Wen et al. (2011) Minimum amount of physical activity for reduced mortality and extended life expectancy: a prospective cohort study, The Lancet, vol. 378, no. 9798, pp. 1244-1253."]

{"sheet":"SHEETS TO BE HIDDEN ->","index":5,"n_rows":0,"n_cols":0,"rows_kept":0,"cut":false,"hidden":true,"merged":[]}

{"sheet":"Calculations","index":6,"n_rows":249,"n_cols":43,"rows_kept":249,"cut":false,"hidden":true,"merged":[]}
["Calculating the deaths, years of life lost, hospital stays, and premature deaths for each group ",null,null,null,null,null,null,null,null,null,"COUNTS",null,null,null,null,null,null,null,null,null,null,null,null,null,null,null,null,null,null,null,null,null,null,null,null,"EUROPEAN AGE-STANDARDISED RATE (EASR) PER 100000"]
["AREA:",{"$f":"Options!B11","v":"Scotland"},"EQUIVALENT AREA:",null,{"$f":"VLOOKUP(B2,Lists!D2:E85,2)","v":"Scotland"},null,null,null,null,null,"CUMULATIVE INCIDENCE (DEATHS)",null,"YEARS OF LIFE LOST",null,"HOSPITALISATIONS",null,"PREMATURE MORTALITY",null,"AGE STANDARDISED RATE (ASR)",null,null,null,null,null,null,null,"ASR*EUROPEAN STANDARD POPULATION (ESP2013)",null,null,null,null,null,null,null,null,"CUMULATIVE INCIDENCE (DEATHS)",null,"YEARS OF LIFE LOST",null,"HOSPITALISATIONS",null,"PREMATURE MORTALITY"]
["SIMD","group","mean age (2016)","life exp (2014-16)","sex","SIMD","prevalence exposure","population (2016)","no. treated at base","additional no. treated under policy","Baseline","Policy","Baseline","Policy","Baseline","Policy","Baseline","Policy","CI_BASE","CI_POLICY","YLL_BASE","YLL_POLICY","HOSP_BASE","HOSP_POLICY","PREM_BASE","PREM_POLICY","CI_BASE","CI_POLICY","YLL_BASE","YLL_POLICY","HOSP_BASE","HOSP_POLICY","PREM_BASE","PREM_POLICY","ESP2013","Baseline","Policy","Baseline","Policy","Baseline","Policy","Baseline","Policy"]
[]
["All quintiles","16+ Males and Females","N/A",null,"BOTH","ALL",null,{"$f":"SUM(H7:H11)","v":4488783},{"$f":"SUM(I7:I11)","v":0},{"$f":"SUM(J7:J11)","v":737006},{"$f":"SUMIF(K7:K11,\">0\")","v":44507.832174243995},44191.987988176799,595542.87286199734,591104.74937704531,0,0,21620.7169807428,21457.606124255002,null,null,null,null,null,null,null,null,{"$f":"SUMIF(AA7:AA11,\">0\")","v":906180759.70156717},{"$f":"SUMIF(AB7:AB11,\">0\")","v":899804958.32457924},11484795491.848839,11399672262.342327,0,0,415367210.56523705,412245076.63861048,{"$f":"SUM(AI7:AI11)","v":1000000},{"$f":"AA5/$AI5","v":906.18075970156713},{"$f":"AB5/$AI5","v":899.80495832457927},{"$f":"AC5/$AI5","v":11484.795491848839},11399.672262342327,0,0,415.36721056523703,412.2450766386105]
["Q1 and Q2","16+ Males and Females","N/A",null,"BOTH","Q1&2",null,{"$f":"SUM(H7:H8)","v":1769266},0,290492,23408.662028338498,23247.1475061069,317987.14478002698,315673.38906837848,0,0,11403.526775820599,11319.707010686401,null,null,null,null,null,null,null,null,{"$f":"SUMIF(AA7:AA8,\">0\")","v":502570137.48311764},{"$f":"SUMIF(AB7:AB8,\">0\")","v":499126426.51181728},6391007549.6699123,6344762332.5214968,0,0,231396098.32467899,229701477.12855107,{"$f":"SUM(AI7:AI8)","v":400000},{"$f":"AA6/$AI6","v":1256.4253437077941},1247.8160662795433,15977.518874174781,15861.905831303742,0,0,578.49024581169749,574.25369282137763]
["SIMD Q1 (most deprived)","16+ Males and Females","N/A",null,"BOTH",1,null,{"$f":"H12+H17","v":872234},0,143210,12905.153015406999,12817.1795434342,{"$f":"M12+M17","v":179558.49437185682},178266.32383606618,0,0,6422.9969074233995,6376.5005460088005,null,null,null,null,null,null,null,null,{"$f":"AA12+AA17","v":294298949.09230691},{"$f":"AB12+AB17","v":292304270.88353175},3751164649.8785696,3724340800.5290332,0,0,135919502.21306267,134939197.22762421,{"$f":"AI12+AI17","v":200000},{"$f":"AA7/$AI7","v":1471.4947454615346},1461.5213544176588,{"$f":"AC7/$AI7","v":18755.823249392848},{"$f":"AD7/$AI7","v":18621.704002645165},{"$f":"AE7/$AI7","v":0},{"$f":"AF7/$AI7","v":0},{"$f":"AG7/$AI7","v":679.59751106531337},{"$f":"AH7/$AI7","v":674.69598613812104}]
["SIMD Q2",null,"N/A",null,"BOTH",2,null,{"$f":"H13+H18","v":897032},0,147282,{"$f":"K13+K18","v":10503.509012931499},10429.967962672701,138428.65040817013,137407.06523231228,0,0,4980.5298683971996,4943.2064646775998,null,null,null,null,null,null,null,null,{"$f":"AA13+AA18","v":208271188.39081073},{"$f":"AB13+AB18","v":206822155.62828553},2639842899.7913427,2620421531.9924636,0,0,95476596.111616313,94762279.900926858,{"$f":"AI13+AI18","v":200000},1041.3559419540536,1034.1107781414275,13199.214498956713,13102.107659962317,0,0,477.38298055808156,473.81139950463427]
["SIMD Q3",null,"N/A",null,"BOTH",3,null,907978,0,149080,8988.8664337361006,8924.4163837753003,117502.98361123182,116619.7487702803,0,0,4321.6056364506003,4288.7328488712001,null,null,null,null,null,null,null,null,{"$f":"AA14+AA19","v":169215925.61009786},{"$f":"AB14+AB19","v":168010744.77435005},2139514191.3930895,2123466187.0126815,0,0,77318732.144433543,76730555.837106884,{"$f":"AI14+AI19","v":200000},846.0796280504893,840.05372387175021,10697.570956965448,10617.330935063408,0,0,386.59366072216773,383.65277918553443]
["SIMD Q4",null,"N/A",null,"BOTH",4,null,910792,0,149542,7030.4176644577001,6978.5890859626998,93226.627971929498,92509.434315748891,0,0,3451.6782031078001,3424.7624625325998,null,null,null,null,null,null,null,null,{"$f":"AA15+AA20","v":134793270.31776863},{"$f":"AB15+AB20","v":133806898.13821867},1700559678.9050193,1687520903.2009077,0,0,61411677.318007588,60933023.50557249,{"$f":"AI15+AI20","v":200000},673.96635158884317,669.03449069109331,8502.7983945250962,8437.6045160045378,0,0,307.05838659003797,304.66511752786244]
["SIMD Q5 (least deprived)",null,"N/A",null,"BOTH",5,null,900747,0,147892,5079.8860477116996,5041.8350123318996,66826.116498809104,66302.177222637692,0,0,2443.9063653638,2424.4038021648003,null,null,null,null,null,null,null,null,{"$f":"AA16+AA21","v":99601426.290583089},{"$f":"AB16+AB21","v":98860888.900193185},1253714071.8808177,1243922839.6072423,0,0,45240702.778116927,44880020.167380065,{"$f":"AI16+AI21","v":200000},{"$f":"AA11/$AI11","v":498.00713145291547},494.30444450096593,6268.5703594040879,6219.6141980362117,0,0,226.20351389058465,224.40010083690032]
["SIMD Q1 (most deprived)","16+ Females","N/A",null,"female",1,null,{"$f":"SUM(H60:H78)","v":457633},{"$f":"SUM(I60:I78)","v":0},{"$f":"SUM(J60:J78)","v":75137},{"$f":"SUMIF(K60:K78,\">0\")","v":6429.899585904499},6387.0896516955008,82571.598750088117,81989.993410822586,0,0,2638.5679964559999,2619.6777963758,null,null,null,null,null,null,null,null,{"$f":"SUMIF(AA60:AA78,\">0\")","v":124090722.66733456},{"$f":"SUMIF(AB60:AB78,\">0\")","v":123264158.31875485},{"$f":"SUMIF(AC60:AC78,\">0\")","v":1590121766.279249},1578941864.8114481,0,0,53075549.871836364,52696785.869701445,{"$f":"SUM(AI60:AI78)","v":100000},1240.9072266733456,1232.6415831875486,15901.217662792489,15789.418648114481,0,0,530.7554987183637,526.96785869701444]
["SIMD Q2",null,"N/A",null,"female",2,null,{"$f":"SUM(H98:H116)","v":469079},{"$f":"SUM(I98:I116)","v":0},{"$f":"SUM(J98:J116)","v":77017},{"$f":"SUMIF(K98:K116,\">0\")","v":5240.5545382758},5203.6828381849,64034.218434740411,63558.477882499101,0,0,2052.4764613235002,2036.8115863885,null,null,null,null,null,null,null,null,{"$f":"SUMIF(AA98:AA116,\">0\")","v":87740916.183588013},{"$f":"SUMIF(AB98:AB116,\">0\")","v":87120849.814754248},1118510312.6064725,1110172749.577879,0,0,37256923.347247578,36972653.064133547,{"$f":"SUM(AI98:AI116)","v":100000},877.40916183588013,871.20849814754251,11185.103126064725,11101.72749577879,0,0,372.56923347247579,369.7265306413355]
["SIMD Q3",null,"N/A",null,"female",3,null,{"$f":"SUM(H136:H154)","v":469093},{"$f":"SUM(I136:I154)","v":0},{"$f":"SUM(J136:J154)","v":77021},{"$f":"SUMIF(K136:K154,\">0\")","v":4355.1727089483993},4323.6659731816999,53290.135998890502,52886.515279212399,0,0,1753.0945036347,1739.6309417790999,null,null,null,null,null,null,null,null,{"$f":"SUMIF(AA136:AA154,\">0\")","v":71266976.141291216},{"$f":"SUMIF(AB136:AB154,\">0\")","v":70749958.781239435},906368157.79311204,899483628.24717879,0,0,30162567.219178766,29930728.49623251,{"$f":"SUM(AI136:AI154)","v":100000},712.66976141291218,707.49958781239434,9063.68157793112,8994.8362824717879,0,0,301.62567219178766,299.30728496232507]
["SIMD Q4",null,"N/A",null,"female",4,null,{"$f":"SUM(H174:H192)","v":468792},{"$f":"SUM(I174:I192)","v":0},{"$f":"SUM(J174:J192)","v":76970},{"$f":"SUMIF(K174:K192,\">0\")","v":3353.5251663736999},3328.5039284764002,41823.601923463691,41498.125330569303,0,0,1387.3769134574,1376.3478062874999,null,null,null,null,null,null,null,null,{"$f":"SUMIF(AA174:AA192,\">0\")","v":56758211.043071285},{"$f":"SUMIF(AB174:AB192,\">0\")","v":56334202.781760857},720320334.52795696,714711106.43007553,0,0,23950882.811271228,23760475.261564329,{"$f":"SUM(AI174:AI192)","v":100000},567.58211043071287,563.3420278176086,7203.2033452795695,7147.1110643007551,0,0,239.50882811271228,237.60475261564329]
["SIMD Q5 (least deprived)",null,"N/A",null,"female",5,null,{"$f":"SUM(H212:H230)","v":465079},{"$f":"SUM(I212:I230)","v":0},{"$f":"SUM(J212:J230)","v":76360},{"$f":"SUMIF(K212:K230,\">0\")","v":2445.4388713569997},2426.8814621218999,30216.229047762597,29977.106617049798,0,0,993.49842961719992,985.43956907339998,null,null,null,null,null,null,null,null,{"$f":"SUMIF(AA212:AA230,\">0\")","v":41929401.287863895},{"$f":"SUMIF(AB212:AB230,\">0\")","v":41610583.870553643},530968693.66639227,526762635.73337156,0,0,17639425.899839338,17496329.55054865,{"$f":"SUM(AI212:AI230)","v":100000},419.29401287863897,416.10583870553643,5309.686936663923,5267.6263573337155,0,0,176.39425899839338,174.96329550548651]
["SIMD Q1 (most deprived)","16+ Males","N/A",null,"male",1,null,{"$f":"SUM(H79:H97)","v":414601},{"$f":"SUM(I79:I97)","v":0},{"$f":"SUM(J79:J97)","v":68073},{"$f":"SUMIF(K79:K97,\">0\")","v":6475.2534295024989},6430.0898917386994,96986.895621768708,96276.330425243606,0,0,3784.4289109673996,3756.8227496330005,null,null,null,null,null,null,null,null,{"$f":"SUMIF(AA79:AA97,\">0\")","v":170208226.42497236},{"$f":"SUMIF(AB79:AB97,\">0\")","v":169040112.5647769},2161042883.5993204,2145398935.7175851,0,0,82843952.34122631,82242411.357922763,{"$f":"SUM(AI79:AI97)","v":100000},1702.0822642497235,1690.401125647769,21610.428835993203,21453.989357175851,0,0,828.43952341226304,822.42411357922765]
["SIMD Q2",null,"N/A",null,"male",2,null,{"$f":"SUM(H117:H135)","v":427953},{"$f":"SUM(I117:I135)","v":0},{"$f":"SUM(J117:J135)","v":70265},{"$f":"SUMIF(K117:K135,\">0\")","v":5262.9544746556994},5226.2851244878002,74394.431973429702,73848.587349813184,0,0,2928.0534070736999,2906.3948782891002,null,null,null,null,null,null,null,null,{"$f":"SUMIF(AA117:AA135,\">0\")","v":120530272.20722272},{"$f":"SUMIF(AB117:AB135,\">0\")","v":119701305.81353128},1521332587.18487,1510248782.4145846,0,0,58219672.764368728,57789626.836793303,{"$f":"SUM(AI117:AI135)","v":100000},1205.3027220722272,1197.0130581353128,15213.3258718487,15102.487824145846,0,0,582.19672764368727,577.89626836793309]
["SIMD Q3",null,"N/A",null,"male",3,null,{"$f":"SUM(H155:H173)","v":438885},{"$f":"SUM(I155:I173)","v":0},{"$f":"SUM(J155:J173)","v":72059},{"$f":"SUMIF(K155:K173,\">0\")","v":4633.6937247877004},4600.7504105936005,64212.847612341306,63733.233491067906,0,0,2568.5111328159001,2549.1019070921002,null,null,null,null,null,null,null,null,{"$f":"SUMIF(AA155:AA173,\">0\")","v":97948949.468806639},{"$f":"SUMIF(AB155:AB173,\">0\")","v":97260785.993110612},1233146033.5999775,1223982558.7655027,0,0,47156164.925254777,46799827.340874374,{"$f":"SUM(AI155:AI173)","v":100000},{"$f":"AA19/$AI19","v":979.48949468806643},{"$f":"AB19/$AI19","v":972.60785993110608},{"$f":"AC19/$AI19","v":12331.460335999775},{"$f":"AD19/$AI19","v":12239.825587655027},0,0,471.5616492525478,467.99827340874373]
["SIMD Q4",null,"N/A",null,"male",4,null,{"$f":"SUM(H193:H211)","v":442000},{"$f":"SUM(I193:I211)","v":0},{"$f":"SUM(J193:J211)","v":72572},{"$f":"SUMIF(K193:K211,\">0\")","v":3676.8924980840002},3650.0851574863,51403.026048465799,51011.308985179596,0,0,2064.3012896504001,2048.4146562450996,null,null,null,null,null,null,null,null,{"$f":"SUMIF(AA193:AA211,\">0\")","v":78035059.274697334},{"$f":"SUMIF(AB193:AB211,\">0\")","v":77472695.356457815},980239344.3770622,972809796.77083206,0,0,37460794.50673636,37172548.244008161,{"$f":"SUM(AI193:AI211)","v":100000},780.35059274697335,774.72695356457814,9802.3934437706212,9728.0979677083214,0,0,374.60794506736363,371.72548244008163]
["SIMD Q5 (least deprived)",null,"N/A",null,"male",5,null,{"$f":"SUM(H231:H249)","v":435668},{"$f":"SUM(I231:I249)","v":0},{"$f":"SUM(J231:J249)","v":71532},{"$f":"SUMIF(K231:K249,\">0\")","v":2634.4471763547003},2614.9535502099998,36609.887451046503,36325.070605587898,0,0,1450.4079357466001,1438.9642330914,null,null,null,null,null,null,null,null,{"$f":"SUMIF(AA231:AA249,\">0\")","v":57672025.002719194},{"$f":"SUMIF(AB231:AB249,\">0\")","v":57250305.02963955},722745378.21442533,717160203.87387085,0,0,27601276.878277592,27383690.616831418,{"$f":"SUM(AI231:AI249)","v":100000},{"$f":"AA21/$AI21","v":576.72025002719192},572.50305029639549,7227.4537821442536,7171.6020387387089,0,0,276.01276878277594,273.83690616831416]
[null,"Female 0-4",2.0384007,81.468401,"female","ALL",null,{"$f":"SUM(H60,H98,H136,H174,H212)","v":0},0,0,{"$f":"SUM(K60,K98,K136,K174,K212)","v":{"$error":"#VALUE!"}},{"$error":"#VALUE!"},{"$error":"#VALUE!"},{"$error":"#VALUE!"},{"$error":"#NAME?"},{"$error":"#NAME?"},{"$error":"#VALUE!"},{"$error":"#VALUE!"},null,null,null,null,null,null,null,null,{"$f":"SUM(AA60,AA98,AA136,AA174,AA212)","v":{"$error":"#VALUE!"}},{"$error":"#VALUE!"},{"$error":"#VALUE!"},{"$error":"#VALUE!"},{"$error":"#NAME?"},{"$error":"#NAME?"},{"$error":"#VALUE!"},{"$error":"#VALUE!"},25000,{"$error":"#VALUE!"},{"$error":"#VALUE!"},{"$error":"#VALUE!"},{"$error":"#VALUE!"},{"$error":"#NAME?"},{"$error":"#NAME?"},{"$error":"#VALUE!"},{"$error":"#VALUE!"}]
[null,"Female 5-9",6.9792794999999996,81.439279999999997,"female","ALL",null,{"$f":"SUM(H61,H99,H137,H175,H213)","v":0},0,0,{"$f":"SUM(K61,K99,K137,K175,K213)","v":{"$error":"#VALUE!"}},{"$error":"#VALUE!"},{"$f":"SUM(M61,M99,M137,M175,M213)","v":{"$error":"#VALUE!"}},{"$error":"#VALUE!"},{"$error":"#NAME?"},{"$error":"#NAME?"},{"$error":"#VALUE!"},{"$error":"#VALUE!"},null,null,null,null,null,null,null,null,{"$f":"SUM(AA61,AA99,AA137,AA175,AA213)","v":{"$error":"#VALUE!"}},{"$error":"#VALUE!"},{"$error":"#VALUE!"},{"$error":"#VALUE!"},{"$error":"#NAME?"},{"$error":"#NAME?"},{"$error":"#VALUE!"},{"$error":"#VALUE!"},27500,{"$error":"#VALUE!"},{"$error":"#VALUE!"},{"$error":"#VALUE!"},{"$error":"#VALUE!"},{"$error":"#NAME?"},{"$error":"#NAME?"},{"$error":"#VALUE!"},{"$error":"#VALUE!"}]
[null,"Female 10-15",12.478312000000001,81.948309999999992,"female","ALL",null,{"$f":"SUM(H62,H100,H138,H176,H214)","v":0},0,0,{"$f":"SUM(K62,K100,K138,K176,K214)","v":{"$error":"#VALUE!"}},{"$f":"SUM(L62,L100,L138,L176,L214)","v":{"$error":"#VALUE!"}},{"$error":"#VALUE!"},{"$error":"#VALUE!"},{"$f":"SUM(O62,O100,O138,O176,O214)","v":{"$error":"#NAME?"}},{"$f":"SUM(P62,P100,P138,P176,P214)","v":{"$error":"#NAME?"}},{"$error":"#VALUE!"},{"$error":"#VALUE!"},null,null,null,null,null,null,null,null,{"$f":"SUM(AA62,AA100,AA138,AA176,AA214)","v":{"$error":"#VALUE!"}},{"$error":"#VALUE!"},{"$error":"#VALUE!"},{"$error":"#VALUE!"},{"$error":"#NAME?"},{"$error":"#NAME?"},{"$error":"#VALUE!"},{"$error":"#VALUE!"},33000,{"$error":"#VALUE!"},{"$error":"#VALUE!"},{"$error":"#VALUE!"},{"$error":"#VALUE!"},{"$error":"#NAME?"},{"$error":"#NAME?"},{"$error":"#VALUE!"},{"$error":"#VALUE!"}]
["All quintiles","Female 16-19",17.570053000000001,81.100049999999996,"female","ALL",null,{"$f":"SUM(H63,H101,H139,H177,H215)","v":118803},0,19506,22.937507215,22.747973650200002,1434.2822573414001,1422.4307241030001,{"$error":"#NAME?"},{"$error":"#NAME?"},22.937507215,22.747973650200002,null,null,null,null,null,null,null,null,{"$f":"SUM(AA63,AA101,AA139,AA177,AA215)","v":426137.66258936009},422614.45048104186,26646386.763299141,26426080.320734631,{"$error":"#NAME?"},{"$error":"#NAME?"},426137.66258936009,422614.45048104186,22000,19.369893754061824,19.209747749138266,1211.1993983317791,1201.1854691243013,{"$error":"#NAME?"},{"$error":"#NAME?"},19.369893754061824,19.209747749138266]
[null,"Female 20-24",22.077057,81.667060000000006,"female","ALL",null,{"$f":"SUM(H64,H102,H140,H178,H216)","v":182279},0,29927,51.980819210100002,51.5514790167,3045.5563534621001,3020.4013102429003,{"$error":"#NAME?"},{"$error":"#NAME?"},51.980819210100002,51.5514790167,null,null,null,null,null,null,null,null,{"$f":"SUM(AA64,AA102,AA140,AA178,AA216)","v":852526.79339845327},845479.04758463532,49949547.382793792,49536619.934421182,{"$error":"#NAME?"},{"$error":"#NAME?"},852526.79339845327,845479.04758463532,30000,28.417559779948441,28.182634919487842,1664.9849127597931,1651.2206644807061,{"$error":"#NAME?"},{"$error":"#NAME?"},28.417559779948441,28.182634919487842]
[null,"Female 25-29",26.975186999999998,81.645189999999999,"female","ALL",null,{"$f":"SUM(H65,H103,H141,H179,H217)","v":187975},0,30864,84.832823379100006,84.135324902800008,4552.9778852547997,4515.5431399392992,{"$error":"#NAME?"},{"$error":"#NAME?"},84.832823379100006,84.135324902800008,null,null,null,null,null,null,null,null,{"$f":"SUM(AA65,AA103,AA141,AA179,AA217)","v":1293006.3687604526},1282335.3539755505,69395655.690393329,68822942.294874489,{"$error":"#NAME?"},{"$error":"#NAME?"},1293006.3687604526,1282335.3539755505,30000,43.100212292015087,42.74451179918502,2313.1885230131111,2294.0980764958163,{"$error":"#NAME?"},{"$error":"#NAME?"},43.100212292015087,42.74451179918502]
[null,"Female 30-34",31.999904999999998,81.799899999999994,"female","ALL",null,{"$f":"SUM(H66,H104,H142,H180,H218)","v":179608},0,29490,122.85416478600001,121.84334691589999,5995.2826272860002,5945.9547202791,{"$error":"#NAME?"},{"$error":"#NAME?"},122.85416478600001,121.84334691589999,null,null,null,null,null,null,null,null,{"$f":"SUM(AA66,AA104,AA142,AA180,AA218)","v":2147386.972248924},2129668.6412381697,104792473.50881304,103927819.04407792,{"$error":"#NAME?"},{"$error":"#NAME?"},2147386.972248924,2129668.6412381697,32500,66.073445299966892,65.528265884251383,3224.3838002711705,3197.7790475100896,{"$error":"#NAME?"},{"$error":"#NAME?"},66.073445299966892,65.528265884251383]
[null,"Female 35-39",36.918118,81.898120000000006,"female","ALL",null,{"$f":"SUM(H67,H105,H143,H181,H219)","v":166485},0,27335,168.2341520919,166.86556370539998,7398.9383454700001,7338.7478254944999,{"$error":"#NAME?"},{"$error":"#NAME?"},168.2341520919,166.86556370539998,null,null,null,null,null,null,null,null,{"$f":"SUM(AA67,AA105,AA143,AA181,AA219)","v":3513006.6341308523},3484413.8105370435,154502038.79508674,153244526.35624418,{"$error":"#NAME?"},{"$error":"#NAME?"},3513006.6341308523,3484413.8105370435,35000,100.37161811802436,99.554680301058383,4414.3439655739066,4378.4150387498339,{"$error":"#NAME?"},{"$error":"#NAME?"},100.37161811802436,99.554680301058383]
[null,"Female 40-44",42.077438000000001,82.30744,"female","ALL",null,{"$f":"SUM(H68,H106,H144,H182,H220)","v":172709},0,28357,265.8474974678,263.68335408669998,10429.197857356699,10344.298508188,{"$error":"#NAME?"},{"$error":"#NAME?"},265.8474974678,263.68335408669998,null,null,null,null,null,null,null,null,{"$f":"SUM(AA68,AA106,AA144,AA182,AA220)","v":5446478.1354205227},5402169.1626467239,213665348.14550155,211927107.05497032,{"$error":"#NAME?"},{"$error":"#NAME?"},5446478.1354205227,5402169.1626467239,35000,155.61366101201494,154.34769036133497,6104.7242327286158,6055.0602015705808,{"$error":"#NAME?"},{"$error":"#NAME?"},155.61366101201494,154.34769036133497]
[null,"Female 45-49",47.025772000000003,82.585769999999997,"female","ALL",null,{"$f":"SUM(H69,H107,H145,H183,H221)","v":202829},0,33303,475.67657206159998,471.89410547679995,16439.381379095601,16308.6593414899,{"$error":"#NAME?"},{"$error":"#NAME?"},475.67657206159998,471.89410547679995,null,null,null,null,null,null,null,null,{"$f":"SUM(AA69,AA107,AA145,AA183,AA221)","v":8292619.2689198218},8226738.0363259073,286592905.34862781,284316050.0819456,{"$error":"#NAME?"},{"$error":"#NAME?"},8292619.2689198218,8226738.0363259073,35000,236.93197911199491,235.04965818074021,8188.3687242465085,8123.3157166270175,{"$error":"#NAME?"},{"$error":"#NAME?"},236.93197911199491,235.04965818074021]
[null,"Female 50-54",51.990825999999998,82.980829999999997,"female","ALL",null,{"$f":"SUM(H70,H108,H146,H184,H222)","v":209262},0,34359,746.86539797799992,740.92977732849999,22398.496272821802,22220.486985800799,{"$error":"#NAME?"},{"$error":"#NAME?"},746.86539797799992,740.92977732849999,null,null,null,null,null,null,null,null,{"$f":"SUM(AA70,AA108,AA146,AA184,AA222)","v":12640822.402600588},12540494.42450094,379098314.41728103,376089477.95276046,{"$error":"#NAME?"},{"$error":"#NAME?"},12640822.402600588,12540494.42450094,35000,361.16635436001678,358.29984070002689,10831.380411922315,10745.413655793156,{"$error":"#NAME?"},{"$error":"#NAME?"},361.16635436001678,358.29984070002689]
[null,"Female 55-59",56.953040999999999,83.473039999999997,"female","ALL",null,{"$f":"SUM(H71,H109,H147,H185,H223)","v":190084},0,31210,1032.6949186740999,1024.8283100005999,26354.3732918682,26153.617446387001,{"$error":"#NAME?"},{"$error":"#NAME?"},1032.6949186740999,1024.8283100005999,null,null,null,null,null,null,null,null,{"$f":"SUM(AA71,AA109,AA147,AA185,AA223)","v":17881446.235511921},17745428.170304056,456334490.04881966,452863309.16073126,{"$error":"#NAME?"},{"$error":"#NAME?"},17881446.235511921,17745428.170304056,32500,550.19834570805915,546.013174470894,14041.061232271375,13934.255666484039,{"$error":"#NAME?"},{"$error":"#NAME?"},550.19834570805915,546.013174470894]
[null,"Female 60-64",61.947387999999997,84.167389999999997,"female","ALL",null,{"$f":"SUM(H72,H110,H148,H186,H224)","v":165146},0,27115,1358.4731699729,1348.1352350218999,28826.803383771301,28607.4323834352,{"$error":"#NAME?"},{"$error":"#NAME?"},1358.4731699729,1348.1352350218999,null,null,null,null,null,null,null,null,{"$f":"SUM(AA72,AA110,AA148,AA186,AA224)","v":25198755.436860133},25007485.0677437,534717640.76768309,530658883.15249157,{"$error":"#NAME?"},{"$error":"#NAME?"},25198755.436860133,25007485.0677437,30000,839.95851456200444,833.58283559145661,17823.921358922769,17688.629438416385,{"$error":"#NAME?"},{"$error":"#NAME?"},839.95851456200444,833.58283559145661]
[null,"Female 65-69",67.063927000000007,85.193929999999995,"female","ALL",null,{"$f":"SUM(H73,H111,H149,H187,H225)","v":164057},0,26936,2066.9504398201998,2051.5828510675001,35406.867234971403,35143.6203935347,{"$error":"#NAME?"},{"$error":"#NAME?"},2066.9504398201998,2051.5828510675001,null,null,null,null,null,null,null,null,{"$f":"SUM(AA73,AA111,AA149,AA187,AA225)","v":35597869.276532054},35334374.109215699,609791607.50060296,605277934.49398506,{"$error":"#NAME?"},{"$error":"#NAME?"},35597869.276532054,35334374.109215699,27500,1294.4679736920748,1284.8863312442072,22174.240272749197,22010.106708872183,{"$error":"#NAME?"},{"$error":"#NAME?"},1294.4679736920748,1284.8863312442072]
[null,"Female 70-74",71.938164,86.248159999999999,"female","ALL",null,{"$f":"SUM(H74,H112,H150,H188,H226)","v":127150},0,20876,2427.6668418320996,2409.7103787313004,32312.235954117998,32073.235502072097,{"$error":"#NAME?"},{"$error":"#NAME?"},2427.6668418320996,2409.7103787313004,null,null,null,null,null,null,null,null,{"$f":"SUM(AA74,AA112,AA150,AA188,AA226)","v":48795293.962400198},48435771.967627011,649465167.45837283,644679931.14602792,{"$error":"#NAME?"},{"$error":"#NAME?"},48795293.962400198,48435771.967627011,25000,1951.811758496008,1937.4308787050804,25978.606698334912,25787.197245841118,{"$error":"#NAME?"},{"$error":"#NAME?"},1951.811758496008,1937.4308787050804]
[null,"Female 75-79",76.942824999999999,87.812830000000005,"female","ALL",null,{"$f":"SUM(H75,H113,H151,H189,H227)","v":104331},0,17130,3078.3648355455002,3057.1822853251997,30383.476318658297,30174.4044420713,{"$error":"#NAME?"},{"$error":"#NAME?"},0,0,null,null,null,null,null,null,null,null,{"$f":"SUM(AA75,AA113,AA151,AA189,AA227)","v":59393536.393397681},58985413.642355651,586214501.1705178,582186327.57712126,{"$error":"#NAME?"},{"$error":"#NAME?"},0,0,20000,2969.676819669884,2949.2706821177826,29310.725058525892,29109.316378856063,{"$error":"#NAME?"},{"$error":"#NAME?"},0,0]
[null,"Female 80-84",81.856712000000002,89.736710000000002,"female","ALL",null,{"$f":"SUM(H76,H114,H152,H190,H228)","v":80217},0,13170,3570.6671149046997,3546.3434278774002,24566.182609209998,24398.8356911097,{"$error":"#NAME?"},{"$error":"#NAME?"},0,0,null,null,null,null,null,null,null,null,{"$f":"SUM(AA76,AA114,AA152,AA190,AA228)","v":55873574.703698315},55493382.037865601,384410082.21429336,381794357.43375194,{"$error":"#NAME?"},{"$error":"#NAME?"},0,0,12500,4469.8859762958655,4439.4705630292483,30752.80657714347,30543.548594700154,{"$error":"#NAME?"},{"$error":"#NAME?"},0,0]
[null,"Female 85-89",86.730819999999994,92.220819999999989,"female","ALL",null,{"$f":"SUM(H77,H115,H153,H191,H229)","v":49691},0,8158,3274.0603386489997,3252.0518460490998,14700.530920534,14601.7127887604,{"$error":"#NAME?"},{"$error":"#NAME?"},0,0,null,null,null,null,null,null,null,null,{"$f":"SUM(AA77,AA115,AA153,AA191,AA229)","v":50064749.284648255},49729053.632642083,224790724.28807056,223283450.81056204,{"$error":"#NAME?"},{"$error":"#NAME?"},0,0,7500,6675.2999046197674,6630.5404843522774,29972.096571742743,29771.126774741606,{"$error":"#NAME?"},{"$error":"#NAME?"},0,0]
[null,"Female 90+",92.779342999999997,96.279340000000005,"female","ALL",null,{"$f":"SUM(H78,H116,H154,H192,H230)","v":29050},0,4769,3076.4842772713996,3056.3385945044001,7691.2014637256998,7640.8373172453003,{"$error":"#NAME?"},{"$error":"#NAME?"},0,0,null,null,null,null,null,null,null,null,{"$f":"SUM(AA78,AA116,AA154,AA192,AA230)","v":54369017.792031452},54014932.012019247,135922381.37302589,135037167.98525345,{"$error":"#NAME?"},{"$error":"#NAME?"},0,0,5000,10873.803558406291,10802.986402403849,27184.476274605178,27007.433597050691,{"$error":"#NAME?"},{"$error":"#NAME?"},0,0]
[null,"Male 0-4",2.0320822999999999,77.402082000000007,"male","ALL",null,{"$f":"SUM(H79,H117,H155,H193,H231)","v":0},0,0,{"$error":"#VALUE!"},{"$error":"#VALUE!"},{"$error":"#VALUE!"},{"$error":"#VALUE!"},{"$error":"#NAME?"},{"$error":"#NAME?"},{"$error":"#VALUE!"},{"$error":"#VALUE!"},null,null,null,null,null,null,null,null,{"$f":"SUM(AA79,AA117,AA155,AA193,AA231)","v":{"$error":"#VALUE!"}},{"$error":"#VALUE!"},{"$error":"#VALUE!"},{"$error":"#VALUE!"},{"$error":"#NAME?"},{"$error":"#NAME?"},{"$error":"#VALUE!"},{"$error":"#VALUE!"},25000,{"$error":"#VALUE!"},{"$error":"#VALUE!"},{"$error":"#VALUE!"},{"$error":"#VALUE!"},{"$error":"#NAME?"},{"$error":"#NAME?"},{"$error":"#VALUE!"},{"$error":"#VALUE!"}]
[null,"Male 5-9",6.9784756000000003,77.398476000000002,"male","ALL",null,{"$f":"SUM(H80,H118,H156,H194,H232)","v":0},0,0,{"$error":"#VALUE!"},{"$error":"#VALUE!"},{"$error":"#VALUE!"},{"$error":"#VALUE!"},{"$error":"#NAME?"},{"$error":"#NAME?"},{"$error":"#VALUE!"},{"$error":"#VALUE!"},null,null,null,null,null,null,null,null,{"$f":"SUM(AA80,AA118,AA156,AA194,AA232)","v":{"$error":"#VALUE!"}},{"$error":"#VALUE!"},{"$error":"#VALUE!"},{"$error":"#VALUE!"},{"$error":"#NAME?"},{"$error":"#NAME?"},{"$error":"#VALUE!"},{"$error":"#VALUE!"},27500,{"$error":"#VALUE!"},{"$error":"#VALUE!"},{"$error":"#VALUE!"},{"$error":"#VALUE!"},{"$error":"#NAME?"},{"$error":"#NAME?"},{"$error":"#VALUE!"},{"$error":"#VALUE!"}]
[null,"Male 10-15",12.471144000000001,77.921140000000008,"male","ALL",null,{"$f":"SUM(H81,H119,H157,H195,H233)","v":0},0,0,{"$error":"#VALUE!"},{"$error":"#VALUE!"},{"$error":"#VALUE!"},{"$error":"#VALUE!"},{"$error":"#NAME?"},{"$error":"#NAME?"},{"$error":"#VALUE!"},{"$error":"#VALUE!"},null,null,null,null,null,null,null,null,{"$f":"SUM(AA81,AA119,AA157,AA195,AA233)","v":{"$error":"#VALUE!"}},{"$error":"#VALUE!"},{"$error":"#VALUE!"},{"$error":"#VALUE!"},{"$error":"#NAME?"},{"$error":"#NAME?"},{"$error":"#VALUE!"},{"$error":"#VALUE!"},33000,{"$error":"#VALUE!"},{"$error":"#VALUE!"},{"$error":"#VALUE!"},{"$error":"#VALUE!"},{"$error":"#NAME?"},{"$error":"#NAME?"},{"$error":"#VALUE!"},{"$error":"#VALUE!"}]
[null,"Male 16-19",17.556318000000001,77.07632000000001,"male","ALL",null,{"$f":"SUM(H82,H120,H158,H196,H234)","v":124418},0,20429,56.984169244200004,56.522787351000005,3334.7136981390004,3307.7136288262004,{"$error":"#NAME?"},{"$error":"#NAME?"},56.984169244200004,56.522787351000005,null,null,null,null,null,null,null,null,{"$f":"SUM(AA82,AA120,AA158,AA196,AA234)","v":1013127.7111564423},1004930.5430524582,59288235.683131784,58808537.389292829,{"$error":"#NAME?"},{"$error":"#NAME?"},1013127.7111564423,1004930.5430524582,22000,46.051259598020103,45.678661047839007,2694.9198037787173,2673.1153358769466,{"$error":"#NAME?"},{"$error":"#NAME?"},46.051259598020103,45.678661047839007]
[null,"Male 20-24",22.054632000000002,77.704629999999995,"male","ALL",null,{"$f":"SUM(H83,H121,H159,H197,H235)","v":181688},0,29832,117.53239904590001,116.5811143514,6423.1453727936005,6371.1576661417994,{"$error":"#NAME?"},{"$error":"#NAME?"},117.53239904590001,116.5811143514,null,null,null,null,null,null,null,null,{"$f":"SUM(AA83,AA121,AA159,AA197,AA235)","v":1940023.1494812779},1924329.1923100871,106022261.23910493,105164586.51108824,{"$error":"#NAME?"},{"$error":"#NAME?"},1940023.1494812779,1924329.1923100871,30000,64.667438316042592,64.144306410336242,3534.0753746368309,3505.4862170362744,{"$error":"#NAME?"},{"$error":"#NAME?"},64.667438316042592,64.144306410336242]
[null,"Male 25-29",26.959762999999999,77.789760000000001,"male","ALL",null,{"$f":"SUM(H84,H122,H160,H198,H236)","v":186149},0,30563,180.07437771880001,178.59343261360002,8973.1057015048009,8899.3102113554996,{"$error":"#NAME?"},{"$error":"#NAME?"},180.07437771880001,178.59343261360002,null,null,null,null,null,null,null,null,{"$f":"SUM(AA84,AA122,AA160,AA198,AA236)","v":2809079.3561994424},2785976.6732493467,139976415.89218232,138825209.27008668,{"$error":"#NAME?"},{"$error":"#NAME?"},2809079.3561994424,2785976.6732493467,30000,93.635978539981409,92.865889108311549,4665.880529739411,4627.5069756695557,{"$error":"#NAME?"},{"$error":"#NAME?"},93.635978539981409,92.865889108311549]
[null,"Male 30-34",31.981521999999998,78.061520000000002,"male","ALL",null,{"$f":"SUM(H85,H123,H161,H199,H237)","v":172305},0,28291,242.74861109450003,240.754020177,10943.106902642799,10853.1907480711,{"$error":"#NAME?"},{"$error":"#NAME?"},242.74861109450003,240.754020177,null,null,null,null,null,null,null,null,{"$f":"SUM(AA85,AA123,AA161,AA199,AA237)","v":4444988.4243046204},4408444.2725739004,200380069.27767462,198732658.99074253,{"$error":"#NAME?"},{"$error":"#NAME?"},4444988.4243046204,4408444.2725739004,32500,136.76887459398833,135.64443915612,6165.5405931592186,6114.8510458690007,{"$error":"#NAME?"},{"$error":"#NAME?"},136.76887459398833,135.64443915612]
[null,"Male 35-39",36.926009999999998,78.336009999999987,"male","ALL",null,{"$f":"SUM(H86,H124,H162,H200,H238)","v":161268},0,26479,321.67494572940001,319.08809255350002,12998.884556925101,12894.349820086898,{"$error":"#NAME?"},{"$error":"#NAME?"},321.67494572940001,319.08809255350002,null,null,null,null,null,null,null,null,{"$f":"SUM(AA86,AA124,AA162,AA200,AA238)","v":6950512.8250597436},6894617.7386773648,280870223.26066524,278611502.81995153,{"$error":"#NAME?"},{"$error":"#NAME?"},6950512.8250597436,6894617.7386773648,35000,198.58608071599267,196.98907824792471,8024.8635217332921,7960.328651998615,{"$error":"#NAME?"},{"$error":"#NAME?"},198.58608071599267,196.98907824792471]
[null,"Male 40-44",42.067703000000002,78.907700000000006,"male","ALL",null,{"$f":"SUM(H87,H125,H163,H201,H239)","v":164929},0,27079,475.97106912149997,472.14528016180003,17058.801689401302,16921.6854245631,{"$error":"#NAME?"},{"$error":"#NAME?"},475.97106912149997,472.14528016180003,null,null,null,null,null,null,null,null,{"$f":"SUM(AA87,AA125,AA163,AA201,AA239)","v":10241482.092027638},10159190.204867097,367054687.45382303,364105346.4648667,{"$error":"#NAME?"},{"$error":"#NAME?"},10241482.092027638,10159190.204867097,35000,292.61377405793252,290.26257728191706,10487.276784394944,10403.009898996192,{"$error":"#NAME?"},{"$error":"#NAME?"},292.61377405793252,290.26257728191706]
[null,"Male 45-49",47.038155000000003,79.418149999999997,"male","ALL",null,{"$f":"SUM(H88,H126,H164,H202,H240)","v":189422},0,31101,794.82534796349989,788.60620646849998,24941.615444967898,24746.458815950402,{"$error":"#NAME?"},{"$error":"#NAME?"},794.82534796349989,788.60620646849998,null,null,null,null,null,null,null,null,{"$f":"SUM(AA88,AA126,AA164,AA202,AA240)","v":14893366.495349472},14776949.966067031,467353766.15723413,463700616.05043179,{"$error":"#NAME?"},{"$error":"#NAME?"},14893366.495349472,14776949.966067031,35000,425.52475700998491,422.19857045905803,13352.964747349546,13248.589030012337,{"$error":"#NAME?"},{"$error":"#NAME?"},425.52475700998491,422.19857045905803]
[null,"Male 50-54",51.998646000000001,79.988649999999993,"male","ALL",null,{"$f":"SUM(H89,H127,H165,H203,H241)","v":197429},0,32415,1202.2309620154001,1192.8369597916999,32448.218473719502,32194.674316125802,{"$error":"#NAME?"},{"$error":"#NAME?"},1202.2309620154001,1192.8369597916999,null,null,null,null,null,null,null,null,{"$f":"SUM(AA89,AA127,AA165,AA203,AA241)","v":21634312.513728764},21465462.136909924,583910181.28278947,579352908.937047,{"$error":"#NAME?"},{"$error":"#NAME?"},21634312.513728764,21465462.136909924,35000,618.12321467796471,613.29891819742636,16683.148036651128,16552.940255344201,{"$error":"#NAME?"},{"$error":"#NAME?"},618.12321467796471,613.29891819742636]
[null,"Male 55-59",56.950867000000002,80.660870000000003,"male","ALL",null,{"$f":"SUM(H90,H128,H166,H204,H242)","v":180737},0,29674,1595.4522720764,1583.5206509318,36232.725885211803,35961.758733223098,{"$error":"#NAME?"},{"$error":"#NAME?"},1595.4522720764,1583.5206509318,null,null,null,null,null,null,null,null,{"$f":"SUM(AA90,AA128,AA166,AA204,AA242)","v":29148594.91771514},28930955.149557196,661964678.02709436,657022078.2393086,{"$error":"#NAME?"},{"$error":"#NAME?"},29148594.91771514,28930955.149557196,32500,896.87984362200427,890.18323537099059,20368.143939295212,20216.063945824881,{"$error":"#NAME?"},{"$error":"#NAME?"},896.87984362200427,890.18323537099059]
[null,"Male 60-64",61.942988999999997,81.612989999999996,"male","ALL",null,{"$f":"SUM(H91,H129,H167,H205,H243)","v":156406},0,25680,1990.1539920081,1975.2994582095002,37156.177020945201,36878.842860070799,{"$error":"#NAME?"},{"$error":"#NAME?"},1990.1539920081,1975.2994582095002,null,null,null,null,null,null,null,null,{"$f":"SUM(AA91,AA129,AA167,AA205,AA243)","v":39127889.451721594},38836583.091628686,730517735.1915313,725079045.15729046,{"$error":"#NAME?"},{"$error":"#NAME?"},39127889.451721594,38836583.091628686,30000,1304.2629817240531,1294.5527697209561,24350.591173051042,24169.301505243016,{"$error":"#NAME?"},{"$error":"#NAME?"},1304.2629817240531,1294.5527697209561]
[null,"Male 65-69",67.054419999999993,82.954419999999999,"male","ALL",null,{"$f":"SUM(H92,H130,H168,H206,H244)","v":153467},0,25198,2844.5725876954998,2823.8288134700001,42384.131556662993,42075.049320703096,{"$error":"#NAME?"},{"$error":"#NAME?"},2844.5725876954998,2823.8288134700001,null,null,null,null,null,null,null,null,{"$f":"SUM(AA92,AA130,AA168,AA206,AA244)","v":52568215.660620227},52185824.357284032,783266413.34324241,777568782.92353368,{"$error":"#NAME?"},{"$error":"#NAME?"},52568215.660620227,52185824.357284032,27500,1911.5714785680082,1897.666340264874,28482.41503066336,28275.22846994668,{"$error":"#NAME?"},{"$error":"#NAME?"},1911.5714785680082,1897.666340264874]
[null,"Male 70-74",71.891098,84.341099999999997,"male","ALL",null,{"$f":"SUM(H93,H131,H169,H207,H245)","v":111869},0,18368,2973.4819425408004,2951.9216082708999,34046.3741890561,33799.508318544904,{"$error":"#NAME?"},{"$error":"#NAME?"},2973.4819425408004,2951.9216082708999,null,null,null,null,null,null,null,null,{"$f":"SUM(AA93,AA131,AA169,AA207,AA245)","v":68510268.818499416},68014841.07025291,784442714.99235725,778770066.28407526,{"$error":"#NAME?"},{"$error":"#NAME?"},68510268.818499416,68014841.07025291,25000,2740.4107527399765,2720.5936428101163,31377.708599694291,31150.80265136301,{"$error":"#NAME?"},{"$error":"#NAME?"},2740.4107527399765,2720.5936428101163]
[null,"Male 75-79",76.907700000000006,86.357700000000008,"male","ALL",null,{"$f":"SUM(H94,H132,H170,H208,H246)","v":82515},0,13548,3203.6087360421998,3182.1772804558,27070.493819556701,26889.3980198516,{"$error":"#NAME?"},{"$error":"#NAME?"},0,0,null,null,null,null,null,null,null,null,{"$f":"SUM(AA94,AA132,AA170,AA208,AA246)","v":79466406.632159829},78934774.17953147,671491136.04175341,666998841.81704295,{"$error":"#NAME?"},{"$error":"#NAME?"},0,0,20000,3973.3203316079916,3946.7387089765734,33574.556802087667,33349.94209085215,{"$error":"#NAME?"},{"$error":"#NAME?"},0,0]
[null,"Male 80-84",81.797089,88.627089999999995,"male","ALL",null,{"$f":"SUM(H95,H133,H171,H209,H247)","v":56201},0,9227,3102.1139963169999,3081.5865075259999,18085.327700642098,17965.652420463,{"$error":"#NAME?"},{"$error":"#NAME?"},0,0,null,null,null,null,null,null,null,null,{"$f":"SUM(AA95,AA133,AA171,AA209,AA247)","v":71096664.867727414},70626478.663325533,414493627.2755155,411752441.23366445,{"$error":"#NAME?"},{"$error":"#NAME?"},0,0,12500,5687.7331894181934,5650.1182930660425,33159.490182041241,32940.195298693157,{"$error":"#NAME?"},{"$error":"#NAME?"},0,0]
[null,"Male 85-89",86.630752999999999,91.420750000000012,"male","ALL",null,{"$f":"SUM(H96,H134,H172,H210,H248)","v":28287},0,4643,2196.0352803174001,2181.7238564626,8322.9671242970999,8268.7268708217016,{"$error":"#NAME?"},{"$error":"#NAME?"},0,0,null,null,null,null,null,null,null,null,{"$f":"SUM(AA96,AA134,AA172,AA210,AA248)","v":60543627.319723941},60149803.847854733,229460165.91087189,227967576.13395879,{"$error":"#NAME?"},{"$error":"#NAME?"},0,0,7500,8072.4836426298589,8019.9738463806307,30594.688788116251,30395.676817861171,{"$error":"#NAME?"},{"$error":"#NAME?"},0,0]
[null,"Male 90+",92.215477000000007,95.515479999999997,"male","ALL",null,{"$f":"SUM(H97,H135,H173,H211,H249)","v":12017},0,1974,1385.780614454,1376.9780657213003,3187.2995705860003,3167.0536820931998,{"$error":"#NAME?"},{"$error":"#NAME?"},0,0,null,null,null,null,null,null,null,null,{"$f":"SUM(AA97,AA135,AA173,AA211,AA249)","v":60005972.142943256},59626043.670374416,138013915.94668376,137140079.31999284,{"$error":"#NAME?"},{"$error":"#NAME?"},0,0,5000,{"$f":"AA59/$AI59","v":12001.194428588651},11925.208734074884,{"$f":"AC59/$AI59","v":27602.783189336751},27428.015863998568,{"$error":"#NAME?"},{"$error":"#NAME?"},0,0]
[null,"Female 0-4",2.0384007,81.468401,"female",1,{"$f":"HLOOKUP(Calculations!$E$2,'Prevalence Rates'!$C$3:$BC$249,'Prevalence Rates'!$BD60,FALSE)","v":0},{"$f":"HLOOKUP(Calculations!$E$2,'Population 2016'!$C$3:$BC$249,'Population 2016'!BD60,FALSE)","v":0},0,{"$f":"HLOOKUP(Results!E$4,Targeting!$C$3:$F$249,Targeting!$G60,FALSE)","v":0},{"$f":"IF(AND(OR(Calculations!$E$2=\"Orkney Health Board\",Calculations!$E$2=\"Orkney Islands Local Authority\"),$F60=1),0,IF(AND(OR(Calculations!$E$2=\"Shetland Health Board\",Calculations!$E$2=\"Western Isles Health Board\",Calculations!$E$2=\"Shetland Islands Local Authority\",Calculations!$E$2=\"Eilean Siar Local Authority\"),OR($F60=1,$F60=5)),0,new_ci(VALUE(LEFT(Options!$B$24,2)),$C60,$E60,$F60,2016,$I60,1,$H60,$G60*$H60,Options!$B$8)))","v":{"$error":"#VALUE!"}},{"$f":"IF(AND(OR(Calculations!$E$2=\"Orkney Health Board\",Calculations!$E$2=\"Orkney Islands Local Authority\"),$F60=1),0,IF(AND(OR(Calculations!$E$2=\"Shetland Health Board\",Calculations!$E$2=\"Western Isles Health Board\",Calculations!$E$2=\"Shetland Islands Local Authority\",Calculations!$E$2=\"Eilean Siar Local Authority\"),OR($F60=1,$F60=5)),0,new_ci(VALUE(LEFT(Options!$B$24,2)),$C60,$E60,$F60,2016,$I60+$J60,1,$H60,$G60*$H60,Options!$B$8)))","v":{"$error":"#VALUE!"}},{"$f":"IF(AND(OR(Calculations!$E$2=\"Orkney Health Board\",Calculations!$E$2=\"Orkney Islands Local Authority\"),$F60=1),0,IF(AND(OR(Calculations!$E$2=\"Shetland Health Board\",Calculations!$E$2=\"Western Isles Health Board\",Calculations!$E$2=\"Shetland Islands Local Authority\",Calculations!$E$2=\"Eilean Siar Local Authority\"),OR($F60=1,$F60=5)),0,new_yllv2(VALUE(LEFT(Options!$B$24,2)),$C60,$D60,$E60,$F60,2016,$I60,1,$H60,$G60*$H60,Options!$B$8)))","v":{"$error":"#VALUE!"}},{"$f":"IF(AND(OR(Calculations!$E$2=\"Orkney Health Board\",Calculations!$E$2=\"Orkney Islands Local Authority\"),$F60=1),0,IF(AND(OR(Calculations!$E$2=\"Shetland Health Board\",Calculations!$E$2=\"Western Isles Health Board\",Calculations!$E$2=\"Shetland Islands Local Authority\",Calculations!$E$2=\"Eilean Siar Local Authority\"),OR($F60=1,$F60=5)),0,new_yllv2(VALUE(LEFT(Options!$B$24,2)),$C60,$D60,$E60,$F60,2016,$I60+$J60,1,$H60,$G60*$H60,Options!$B$8)))","v":{"$error":"#VALUE!"}},{"$f":"IF(AND(OR(Calculations!$E$2=\"Orkney Health Board\",Calculations!$E$2=\"Orkney Islands Local Authority\"),$F60=1),0,IF(AND(OR(Calculations!$E$2=\"Shetland Health Board\",Calculations!$E$2=\"Western Isles Health Board\",Calculations!$E$2=\"Shetland Islands Local Authority\",Calculations!$E$2=\"Eilean Siar Local Authority\"),OR($F60=1,$F60=5)),0,hosp_count(VALUE(LEFT(Options!$B$24,2)),$C60,$E60,$F60,2016,$I60,1,$H60,$G60*$H60, Options!$B$8)))","v":{"$error":"#NAME?"}},{"$f":"IF(AND(OR(Calculations!$E$2=\"Orkney Health Board\",Calculations!$E$2=\"Orkney Islands Local Authority\"),$F60=1),0,IF(AND(OR(Calculations!$E$2=\"Shetland Health Board\",Calculations!$E$2=\"Western Isles Health Board\",Calculations!$E$2=\"Shetland Islands Local Authority\",Calculations!$E$2=\"Eilean Siar Local Authority\"),OR($F60=1,$F60=5)),0,hosp_count(VALUE(LEFT(Options!$B$24,2)),$C60,$E60,$F60,2016,$I60+$J60,1,$H60,$G60*$H60, Options!$B$8)))","v":{"$error":"#NAME?"}},{"$f":"IF(AND(OR(Calculations!$E$2=\"Orkney Health Board\",Calculations!$E$2=\"Orkney Islands Local Authority\"),$F60=1),0,IF(AND(OR(Calculations!$E$2=\"Shetland Health Board\",Calculations!$E$2=\"Western Isles Health Board\",Calculations!$E$2=\"Shetland Islands Local Authority\",Calculations!$E$2=\"Eilean Siar Local Authority\"),OR($F60=1,$F60=5)),0,prem_mort(VALUE(LEFT(Options!$B$24,2)),$C60,$E60,$F60,2016,$I60,1,$H60,$G60*$H60,Options!$B$8)))","v":{"$error":"#VALUE!"}},{"$f":"IF(AND(OR(Calculations!$E$2=\"Orkney Health Board\",Calculations!$E$2=\"Orkney Islands Local Authority\"),$F60=1),0,IF(AND(OR(Calculations!$E$2=\"Shetland Health Board\",Calculations!$E$2=\"Western Isles Health Board\",Calculations!$E$2=\"Shetland Islands Local Authority\",Calculations!$E$2=\"Eilean Siar Local Authority\"),OR($F60=1,$F60=5)),0,prem_mort(VALUE(LEFT(Options!$B$24,2)),$C60,$E60,$F60,2016,$I60+$J60,1,$H60,$G60*$H60,Options!$B$8)))","v":{"$error":"#VALUE!"}},{"$f":"K60*100000/$H60","v":{"$error":"#VALUE!"}},{"$error":"#VALUE!"},{"$error":"#VALUE!"},{"$error":"#VALUE!"},{"$error":"#NAME?"},{"$error":"#NAME?"},{"$error":"#VALUE!"},{"$error":"#VALUE!"},{"$f":"S60*$AI60","v":{"$error":"#VALUE!"}},{"$f":"T60*$AI60","v":{"$error":"#VALUE!"}},{"$f":"U60*$AI60","v":{"$error":"#VALUE!"}},{"$f":"V60*$AI60","v":{"$error":"#VALUE!"}},{"$f":"W60*$AI60","v":{"$error":"#NAME?"}},{"$f":"X60*$AI60","v":{"$error":"#NAME?"}},{"$f":"Y60*$AI60","v":{"$error":"#VALUE!"}},{"$f":"Z60*$AI60","v":{"$error":"#VALUE!"}},5000]
[null,"Female 5-9",6.9792794999999996,81.439279999999997,"female",1,{"$f":"HLOOKUP(Calculations!$E$2,'Prevalence Rates'!$C$3:$BC$249,'Prevalence Rates'!$BD61,FALSE)","v":0},{"$f":"HLOOKUP(Calculations!$E$2,'Population 2016'!$C$3:$BC$249,'Population 2016'!BD61,FALSE)","v":0},0,{"$f":"HLOOKUP(Results!E$4,Targeting!$C$3:$F$249,Targeting!$G61,FALSE)","v":0},{"$f":"IF(AND(OR(Calculations!$E$2=\"Orkney Health Board\",Calculations!$E$2=\"Orkney Islands Local Authority\"),$F61=1),0,IF(AND(OR(Calculations!$E$2=\"Shetland Health Board\",Calculations!$E$2=\"Western Isles Health Board\",Calculations!$E$2=\"Shetland Islands Local Authority\",Calculations!$E$2=\"Eilean Siar Local Authority\"),OR($F61=1,$F61=5)),0,new_ci(VALUE(LEFT(Options!$B$24,2)),$C61,$E61,$F61,2016,$I61,1,$H61,$G61*$H61,Options!$B$8)))","v":{"$error":"#VALUE!"}},{"$f":"IF(AND(OR(Calculations!$E$2=\"Orkney Health Board\",Calculations!$E$2=\"Orkney Islands Local Authority\"),$F61=1),0,IF(AND(OR(Calculations!$E$2=\"Shetland Health Board\",Calculations!$E$2=\"Western Isles Health Board\",Calculations!$E$2=\"Shetland Islands Local Authority\",Calculations!$E$2=\"Eilean Siar Local Authority\"),OR($F61=1,$F61=5)),0,new_ci(VALUE(LEFT(Options!$B$24,2)),$C61,$E61,$F61,2016,$I61+$J61,1,$H61,$G61*$H61,Options!$B$8)))","v":{"$error":"#VALUE!"}},{"$f":"IF(AND(OR(Calculations!$E$2=\"Orkney Health Board\",Calculations!$E$2=\"Orkney Islands Local Authority\"),$F61=1),0,IF(AND(OR(Calculations!$E$2=\"Shetland Health Board\",Calculations!$E$2=\"Western Isles Health Board\",Calculations!$E$2=\"Shetland Islands Local Authority\",Calculations!$E$2=\"Eilean Siar Local Authority\"),OR($F61=1,$F61=5)),0,new_yllv2(VALUE(LEFT(Options!$B$24,2)),$C61,$D61,$E61,$F61,2016,$I61,1,$H61,$G61*$H61,Options!$B$8)))","v":{"$error":"#VALUE!"}},{"$f":"IF(AND(OR(Calculations!$E$2=\"Orkney Health Board\",Calculations!$E$2=\"Orkney Islands Local Authority\"),$F61=1),0,IF(AND(OR(Calculations!$E$2=\"Shetland Health Board\",Calculations!$E$2=\"Western Isles Health Board\",Calculations!$E$2=\"Shetland Islands Local Authority\",Calculations!$E$2=\"Eilean Siar Local Authority\"),OR($F61=1,$F61=5)),0,new_yllv2(VALUE(LEFT(Options!$B$24,2)),$C61,$D61,$E61,$F61,2016,$I61+$J61,1,$H61,$G61*$H61,Options!$B$8)))","v":{"$error":"#VALUE!"}},{"$f":"IF(AND(OR(Calculations!$E$2=\"Orkney Health Board\",Calculations!$E$2=\"Orkney Islands Local Authority\"),$F61=1),0,IF(AND(OR(Calculations!$E$2=\"Shetland Health Board\",Calculations!$E$2=\"Western Isles Health Board\",Calculations!$E$2=\"Shetland Islands Local Authority\",Calculations!$E$2=\"Eilean Siar Local Authority\"),OR($F61=1,$F61=5)),0,hosp_count(VALUE(LEFT(Options!$B$24,2)),$C61,$E61,$F61,2016,$I61,1,$H61,$G61*$H61, Options!$B$8)))","v":{"$error":"#NAME?"}},{"$f":"IF(AND(OR(Calculations!$E$2=\"Orkney Health Board\",Calculations!$E$2=\"Orkney Islands Local Authority\"),$F61=1),0,IF(AND(OR(Calculations!$E$2=\"Shetland Health Board\",Calculations!$E$2=\"Western Isles Health Board\",Calculations!$E$2=\"Shetland Islands Local Authority\",Calculations!$E$2=\"Eilean Siar Local Authority\"),OR($F61=1,$F61=5)),0,hosp_count(VALUE(LEFT(Options!$B$24,2)),$C61,$E61,$F61,2016,$I61+$J61,1,$H61,$G61*$H61, Options!$B$8)))","v":{"$error":"#NAME?"}},{"$f":"IF(AND(OR(Calculations!$E$2=\"Orkney Health Board\",Calculations!$E$2=\"Orkney Islands Local Authority\"),$F61=1),0,IF(AND(OR(Calculations!$E$2=\"Shetland Health Board\",Calculations!$E$2=\"Western Isles Health Board\",Calculations!$E$2=\"Shetland Islands Local Authority\",Calculations!$E$2=\"Eilean Siar Local Authority\"),OR($F61=1,$F61=5)),0,prem_mort(VALUE(LEFT(Options!$B$24,2)),$C61,$E61,$F61,2016,$I61,1,$H61,$G61*$H61,Options!$B$8)))","v":{"$error":"#VALUE!"}},{"$f":"IF(AND(OR(Calculations!$E$2=\"Orkney Health Board\",Calculations!$E$2=\"Orkney Islands Local Authority\"),$F61=1),0,IF(AND(OR(Calculations!$E$2=\"Shetland Health Board\",Calculations!$E$2=\"Western Isles Health Board\",Calculations!$E$2=\"Shetland Islands Local Authority\",Calculations!$E$2=\"Eilean Siar Local Authority\"),OR($F61=1,$F61=5)),0,prem_mort(VALUE(LEFT(Options!$B$24,2)),$C61,$E61,$F61,2016,$I61+$J61,1,$H61,$G61*$H61,Options!$B$8)))","v":{"$error":"#VALUE!"}},{"$f":"K61*100000/$H61","v":{"$error":"#VALUE!"}},{"$f":"L61*100000/$H61","v":{"$error":"#VALUE!"}},{"$f":"M61*100000/$H61","v":{"$error":"#VALUE!"}},{"$f":"N61*100000/$H61","v":{"$error":"#VALUE!"}},{"$f":"O61*100000/$H61","v":{"$error":"#NAME?"}},{"$f":"P61*100000/$H61","v":{"$error":"#NAME?"}},{"$f":"Q61*100000/$H61","v":{"$error":"#VALUE!"}},{"$f":"R61*100000/$H61","v":{"$error":"#VALUE!"}},{"$f":"S61*$AI61","v":{"$error":"#VALUE!"}},{"$f":"T61*$AI61","v":{"$error":"#VALUE!"}},{"$f":"U61*$AI61","v":{"$error":"#VALUE!"}},{"$error":"#VALUE!"},{"$error":"#NAME?"},{"$error":"#NAME?"},{"$error":"#VALUE!"},{"$error":"#VALUE!"},5500]
[null,"Female 10-15",12.478312000000001,81.948309999999992,"female",1,{"$f":"HLOOKUP(Calculations!$E$2,'Prevalence Rates'!$C$3:$BC$249,'Prevalence Rates'!$BD62,FALSE)","v":0},{"$f":"HLOOKUP(Calculations!$E$2,'Population 2016'!$C$3:$BC$249,'Population 2016'!BD62,FALSE)","v":0},0,{"$f":"HLOOKUP(Results!E$4,Targeting!$C$3:$F$249,Targeting!$G62,FALSE)","v":0},{"$f":"IF(AND(OR(Calculations!$E$2=\"Orkney Health Board\",Calculations!$E$2=\"Orkney Islands Local Authority\"),$F62=1),0,IF(AND(OR(Calculations!$E$2=\"Shetland Health Board\",Calculations!$E$2=\"Western Isles Health Board\",Calculations!$E$2=\"Shetland Islands Local Authority\",Calculations!$E$2=\"Eilean Siar Local Authority\"),OR($F62=1,$F62=5)),0,new_ci(VALUE(LEFT(Options!$B$24,2)),$C62,$E62,$F62,2016,$I62,1,$H62,$G62*$H62,Options!$B$8)))","v":{"$error":"#VALUE!"}},{"$f":"IF(AND(OR(Calculations!$E$2=\"Orkney Health Board\",Calculations!$E$2=\"Orkney Islands Local Authority\"),$F62=1),0,IF(AND(OR(Calculations!$E$2=\"Shetland Health Board\",Calculations!$E$2=\"Western Isles Health Board\",Calculations!$E$2=\"Shetland Islands Local Authority\",Calculations!$E$2=\"Eilean Siar Local Authority\"),OR($F62=1,$F62=5)),0,new_ci(VALUE(LEFT(Options!$B$24,2)),$C62,$E62,$F62,2016,$I62+$J62,1,$H62,$G62*$H62,Options!$B$8)))","v":{"$error":"#VALUE!"}},{"$f":"IF(AND(OR(Calculations!$E$2=\"Orkney Health Board\",Calculations!$E$2=\"Orkney Islands Local Authority\"),$F62=1),0,IF(AND(OR(Calculations!$E$2=\"Shetland Health Board\",Calculations!$E$2=\"Western Isles Health Board\",Calculations!$E$2=\"Shetland Islands Local Authority\",Calculations!$E$2=\"Eilean Siar Local Authority\"),OR($F62=1,$F62=5)),0,new_yllv2(VALUE(LEFT(Options!$B$24,2)),$C62,$D62,$E62,$F62,2016,$I62,1,$H62,$G62*$H62,Options!$B$8)))","v":{"$error":"#VALUE!"}},{"$f":"IF(AND(OR(Calculations!$E$2=\"Orkney Health Board\",Calculations!$E$2=\"Orkney Islands Local Authority\"),$F62=1),0,IF(AND(OR(Calculations!$E$2=\"Shetland Health Board\",Calculations!$E$2=\"Western Isles Health Board\",Calculations!$E$2=\"Shetland Islands Local Authority\",Calculations!$E$2=\"Eilean Siar Local Authority\"),OR($F62=1,$F62=5)),0,new_yllv2(VALUE(LEFT(Options!$B$24,2)),$C62,$D62,$E62,$F62,2016,$I62+$J62,1,$H62,$G62*$H62,Options!$B$8)))","v":{"$error":"#VALUE!"}},{"$f":"IF(AND(OR(Calculations!$E$2=\"Orkney Health Board\",Calculations!$E$2=\"Orkney Islands Local Authority\"),$F62=1),0,IF(AND(OR(Calculations!$E$2=\"Shetland Health Board\",Calculations!$E$2=\"Western Isles Health Board\",Calculations!$E$2=\"Shetland Islands Local Authority\",Calculations!$E$2=\"Eilean Siar Local Authority\"),OR($F62=1,$F62=5)),0,hosp_count(VALUE(LEFT(Options!$B$24,2)),$C62,$E62,$F62,2016,$I62,1,$H62,$G62*$H62, Options!$B$8)))","v":{"$error":"#NAME?"}},{"$f":"IF(AND(OR(Calculations!$E$2=\"Orkney Health Board\",Calculations!$E$2=\"Orkney Islands Local Authority\"),$F62=1),0,IF(AND(OR(Calculations!$E$2=\"Shetland Health Board\",Calculations!$E$2=\"Western Isles Health Board\",Calculations!$E$2=\"Shetland Islands Local Authority\",Calculations!$E$2=\"Eilean Siar Local Authority\"),OR($F62=1,$F62=5)),0,hosp_count(VALUE(LEFT(Options!$B$24,2)),$C62,$E62,$F62,2016,$I62+$J62,1,$H62,$G62*$H62, Options!$B$8)))","v":{"$error":"#NAME?"}},{"$f":"IF(AND(OR(Calculations!$E$2=\"Orkney Health Board\",Calculations!$E$2=\"Orkney Islands Local Authority\"),$F62=1),0,IF(AND(OR(Calculations!$E$2=\"Shetland Health Board\",Calculations!$E$2=\"Western Isles Health Board\",Calculations!$E$2=\"Shetland Islands Local Authority\",Calculations!$E$2=\"Eilean Siar Local Authority\"),OR($F62=1,$F62=5)),0,prem_mort(VALUE(LEFT(Options!$B$24,2)),$C62,$E62,$F62,2016,$I62,1,$H62,$G62*$H62,Options!$B$8)))","v":{"$error":"#VALUE!"}},{"$f":"IF(AND(OR(Calculations!$E$2=\"Orkney Health Board\",Calculations!$E$2=\"Orkney Islands Local Authority\"),$F62=1),0,IF(AND(OR(Calculations!$E$2=\"Shetland Health Board\",Calculations!$E$2=\"Western Isles Health Board\",Calculations!$E$2=\"Shetland Islands Local Authority\",Calculations!$E$2=\"Eilean Siar Local Authority\"),OR($F62=1,$F62=5)),0,prem_mort(VALUE(LEFT(Options!$B$24,2)),$C62,$E62,$F62,2016,$I62+$J62,1,$H62,$G62*$H62,Options!$B$8)))","v":{"$error":"#VALUE!"}},{"$error":"#VALUE!"},{"$error":"#VALUE!"},{"$error":"#VALUE!"},{"$error":"#VALUE!"},{"$error":"#NAME?"},{"$error":"#NAME?"},{"$error":"#VALUE!"},{"$error":"#VALUE!"},{"$error":"#VALUE!"},{"$error":"#VALUE!"},{"$error":"#VALUE!"},{"$error":"#VALUE!"},{"$error":"#NAME?"},{"$error":"#NAME?"},{"$error":"#VALUE!"},{"$error":"#VALUE!"},6600]
["SIMD Q1 (most deprived)","Female 16-19",17.570053000000001,81.100049999999996,"female",1,{"$f":"HLOOKUP(Calculations!$E$2,'Prevalence Rates'!$C$3:$BC$249,'Prevalence Rates'!$BD63,FALSE)","v":0.39600000000000002},{"$f":"HLOOKUP(Calculations!$E$2,'Population 2016'!$C$3:$BC$249,'Population 2016'!BD63,FALSE)","v":24142},0,{"$f":"HLOOKUP(Results!E$4,Targeting!$C$3:$F$249,Targeting!$G63,FALSE)","v":3964},{"$f":"IF(AND(OR(Calculations!$E$2=\"Orkney Health Board\",Calculations!$E$2=\"Orkney Islands Local Authority\"),$F63=1),0,IF(AND(OR(Calculations!$E$2=\"Shetland Health Board\",Calculations!$E$2=\"Western Isles Health Board\",Calculations!$E$2=\"Shetland Islands Local Authority\",Calculations!$E$2=\"Eilean Siar Local Authority\"),OR($F63=1,$F63=5)),0,new_ci(VALUE(LEFT(Options!$B$24,2)),$C63,$E63,$F63,2016,$I63,1,$H63,$G63*$H63,Options!$B$8)))","v":7.6776644402000001},{"$f":"IF(AND(OR(Calculations!$E$2=\"Orkney Health Board\",Calculations!$E$2=\"Orkney Islands Local Authority\"),$F63=1),0,IF(AND(OR(Calculations!$E$2=\"Shetland Health Board\",Calculations!$E$2=\"Western Isles Health Board\",Calculations!$E$2=\"Shetland Islands Local Authority\",Calculations!$E$2=\"Eilean Siar Local Authority\"),OR($F63=1,$F63=5)),0,new_ci(VALUE(LEFT(Options!$B$24,2)),$C63,$E63,$F63,2016,$I63+$J63,1,$H63,$G63*$H63,Options!$B$8)))","v":7.6179983122000001},{"$f":"IF(AND(OR(Calculations!$E$2=\"Orkney Health Board\",Calculations!$E$2=\"Orkney Islands Local Authority\"),$F63=1),0,IF(AND(OR(Calculations!$E$2=\"Shetland Health Board\",Calculations!$E$2=\"Western Isles Health Board\",Calculations!$E$2=\"Shetland Islands Local Authority\",Calculations!$E$2=\"Eilean Siar Local Authority\"),OR($F63=1,$F63=5)),0,new_yllv2(VALUE(LEFT(Options!$B$24,2)),$C63,$D63,$E63,$F63,2016,$I63,1,$H63,$G63*$H63,Options!$B$8)))","v":480.0843344127},{"$f":"IF(AND(OR(Calculations!$E$2=\"Orkney Health Board\",Calculations!$E$2=\"Orkney Islands Local Authority\"),$F63=1),0,IF(AND(OR(Calculations!$E$2=\"Shetland Health Board\",Calculations!$E$2=\"Western Isles Health Board\",Calculations!$E$2=\"Shetland Islands Local Authority\",Calculations!$E$2=\"Eilean Siar Local Authority\"),OR($F63=1,$F63=5)),0,new_yllv2(VALUE(LEFT(Options!$B$24,2)),$C63,$D63,$E63,$F63,2016,$I63+$J63,1,$H63,$G63*$H63,Options!$B$8)))","v":476.3534116079},{"$f":"IF(AND(OR(Calculations!$E$2=\"Orkney Health Board\",Calculations!$E$2=\"Orkney Islands Local Authority\"),$F63=1),0,IF(AND(OR(Calculations!$E$2=\"Shetland Health Board\",Calculations!$E$2=\"Western Isles Health Board\",Calculations!$E$2=\"Shetland Islands Local Authority\",Calculations!$E$2=\"Eilean Siar Local Authority\"),OR($F63=1,$F63=5)),0,hosp_count(VALUE(LEFT(Options!$B$24,2)),$C63,$E63,$F63,2016,$I63,1,$H63,$G63*$H63, Options!$B$8)))","v":{"$error":"#NAME?"}},{"$f":"IF(AND(OR(Calculations!$E$2=\"Orkney Health Board\",Calculations!$E$2=\"Orkney Islands Local Authority\"),$F63=1),0,IF(AND(OR(Calculations!$E$2=\"Shetland Health Board\",Calculations!$E$2=\"Western Isles Health Board\",Calculations!$E$2=\"Shetland Islands Local Authority\",Calculations!$E$2=\"Eilean Siar Local Authority\"),OR($F63=1,$F63=5)),0,hosp_count(VALUE(LEFT(Options!$B$24,2)),$C63,$E63,$F63,2016,$I63+$J63,1,$H63,$G63*$H63, Options!$B$8)))","v":{"$error":"#NAME?"}},{"$f":"IF(AND(OR(Calculations!$E$2=\"Orkney Health Board\",Calculations!$E$2=\"Orkney Islands Local Authority\"),$F63=1),0,IF(AND(OR(Calculations!$E$2=\"Shetland Health Board\",Calculations!$E$2=\"Western Isles Health Board\",Calculations!$E$2=\"Shetland Islands Local Authority\",Calculations!$E$2=\"Eilean Siar Local Authority\"),OR($F63=1,$F63=5)),0,prem_mort(VALUE(LEFT(Options!$B$24,2)),$C63,$E63,$F63,2016,$I63,1,$H63,$G63*$H63,Options!$B$8)))","v":7.6776644402000001},{"$f":"IF(AND(OR(Calculations!$E$2=\"Orkney Health Board\",Calculations!$E$2=\"Orkney Islands Local Authority\"),$F63=1),0,IF(AND(OR(Calculations!$E$2=\"Shetland Health Board\",Calculations!$E$2=\"Western Isles Health Board\",Calculations!$E$2=\"Shetland Islands Local Authority\",Calculations!$E$2=\"Eilean Siar Local Authority\"),OR($F63=1,$F63=5)),0,prem_mort(VALUE(LEFT(Options!$B$24,2)),$C63,$E63,$F63,2016,$I63+$J63,1,$H63,$G63*$H63,Options!$B$8)))","v":7.6179983122000001},31.802106040096099,31.554959457377187,1988.5855952808383,1973.1315202050366,{"$error":"#NAME?"},{"$error":"#NAME?"},31.802106040096099,31.554959457377187,{"$f":"S63*$AI63","v":139929.26657642284},138841.82161245964,8749776.6192356888,8681778.688902162,{"$error":"#NAME?"},{"$error":"#NAME?"},139929.26657642284,{"$f":"Z63*$AI63","v":138841.82161245964},4400]
[null,"Female 20-24",22.077057,81.667060000000006,"female",1,{"$f":"HLOOKUP(Calculations!$E$2,'Prevalence Rates'!$C$3:$BC$249,'Prevalence Rates'!$BD64,FALSE)","v":0.39600000000000002},{"$f":"HLOOKUP(Calculations!$E$2,'Population 2016'!$C$3:$BC$249,'Population 2016'!BD64,FALSE)","v":37624},0,{"$f":"HLOOKUP(Results!E$4,Targeting!$C$3:$F$249,Targeting!$G64,FALSE)","v":6177},{"$f":"IF(AND(OR(Calculations!$E$2=\"Orkney Health Board\",Calculations!$E$2=\"Orkney Islands Local Authority\"),$F64=1),0,IF(AND(OR(Calculations!$E$2=\"Shetland Health Board\",Calculations!$E$2=\"Western Isles Health Board\",Calculations!$E$2=\"Shetland Islands Local Authority\",Calculations!$E$2=\"Eilean Siar Local Authority\"),OR($F64=1,$F64=5)),0,new_ci(VALUE(LEFT(Options!$B$24,2)),$C64,$E64,$F64,2016,$I64,1,$H64,$G64*$H64,Options!$B$8)))","v":17.553759906700002},{"$f":"IF(AND(OR(Calculations!$E$2=\"Orkney Health Board\",Calculations!$E$2=\"Orkney Islands Local Authority\"),$F64=1),0,IF(AND(OR(Calculations!$E$2=\"Shetland Health Board\",Calculations!$E$2=\"Western Isles Health Board\",Calculations!$E$2=\"Shetland Islands Local Authority\",Calculations!$E$2=\"Eilean Siar Local Authority\"),OR($F64=1,$F64=5)),0,new_ci(VALUE(LEFT(Options!$B$24,2)),$C64,$E64,$F64,2016,$I64+$J64,1,$H64,$G64*$H64,Options!$B$8)))","v":17.4173698936},{"$f":"IF(AND(OR(Calculations!$E$2=\"Orkney Health Board\",Calculations!$E$2=\"Orkney Islands Local Authority\"),$F64=1),0,IF(AND(OR(Calculations!$E$2=\"Shetland Health Board\",Calculations!$E$2=\"Western Isles Health Board\",Calculations!$E$2=\"Shetland Islands Local Authority\",Calculations!$E$2=\"Eilean Siar Local Authority\"),OR($F64=1,$F64=5)),0,new_yllv2(VALUE(LEFT(Options!$B$24,2)),$C64,$D64,$E64,$F64,2016,$I64,1,$H64,$G64*$H64,Options!$B$8)))","v":1028.4748455947999},{"$f":"IF(AND(OR(Calculations!$E$2=\"Orkney Health Board\",Calculations!$E$2=\"Orkney Islands Local Authority\"),$F64=1),0,IF(AND(OR(Calculations!$E$2=\"Shetland Health Board\",Calculations!$E$2=\"Western Isles Health Board\",Calculations!$E$2=\"Shetland Islands Local Authority\",Calculations!$E$2=\"Eilean Siar Local Authority\"),OR($F64=1,$F64=5)),0,new_yllv2(VALUE(LEFT(Options!$B$24,2)),$C64,$D64,$E64,$F64,2016,$I64+$J64,1,$H64,$G64*$H64,Options!$B$8)))","v":1020.4837543181},{"$f":"IF(AND(OR(Calculations!$E$2=\"Orkney Health Board\",Calculations!$E$2=\"Orkney Islands Local Authority\"),$F64=1),0,IF(AND(OR(Calculations!$E$2=\"Shetland Health Board\",Calculations!$E$2=\"Western Isles Health Board\",Calculations!$E$2=\"Shetland Islands Local Authority\",Calculations!$E$2=\"Eilean Siar Local Authority\"),OR($F64=1,$F64=5)),0,hosp_count(VALUE(LEFT(Options!$B$24,2)),$C64,$E64,$F64,2016,$I64,1,$H64,$G64*$H64, Options!$B$8)))","v":{"$error":"#NAME?"}},{"$f":"IF(AND(OR(Calculations!$E$2=\"Orkney Health Board\",Calculations!$E$2=\"Orkney Islands Local Authority\"),$F64=1),0,IF(AND(OR(Calculations!$E$2=\"Shetland Health Board\",Calculations!$E$2=\"Western Isles Health Board\",Calculations!$E$2=\"Shetland Islands Local Authority\",Calculations!$E$2=\"Eilean Siar Local Authority\"),OR($F64=1,$F64=5)),0,hosp_count(VALUE(LEFT(Options!$B$24,2)),$C64,$E64,$F64,2016,$I64+$J64,1,$H64,$G64*$H64, Options!$B$8)))","v":{"$error":"#NAME?"}},{"$f":"IF(AND(OR(Calculations!$E$2=\"Orkney Health Board\",Calculations!$E$2=\"Orkney Islands Local Authority\"),$F64=1),0,IF(AND(OR(Calculations!$E$2=\"Shetland Health Board\",Calculations!$E$2=\"Western Isles Health Board\",Calculations!$E$2=\"Shetland Islands Local Authority\",Calculations!$E$2=\"Eilean Siar Local Authority\"),OR($F64=1,$F64=5)),0,prem_mort(VALUE(LEFT(Options!$B$24,2)),$C64,$E64,$F64,2016,$I64,1,$H64,$G64*$H64,Options!$B$8)))","v":17.553759906700002},{"$f":"IF(AND(OR(Calculations!$E$2=\"Orkney Health Board\",Calculations!$E$2=\"Orkney Islands Local Authority\"),$F64=1),0,IF(AND(OR(Calculations!$E$2=\"Shetland Health Board\",Calculations!$E$2=\"Western Isles Health Board\",Calculations!$E$2=\"Shetland Islands Local Authority\",Calculations!$E$2=\"Eilean Siar Local Authority\"),OR($F64=1,$F64=5)),0,prem_mort(VALUE(LEFT(Options!$B$24,2)),$C64,$E64,$F64,2016,$I64+$J64,1,$H64,$G64*$H64,Options!$B$8)))","v":17.4173698936},46.655751399904325,46.293243391452265,2733.560614487561,2712.3212691848285,{"$error":"#NAME?"},{"$error":"#NAME?"},46.655751399904325,46.293243391452265,279934.50839942595,277759.46034871356,16401363.686925367,16273927.615108971,{"$error":"#NAME?"},{"$error":"#NAME?"},279934.50839942595,277759.46034871356,6000]
[null,"Female 25-29",26.975186999999998,81.645189999999999,"female",1,{"$f":"HLOOKUP(Calculations!$E$2,'Prevalence Rates'!$C$3:$BC$249,'Prevalence Rates'!$BD65,FALSE)","v":0.34499999999999997},{"$f":"HLOOKUP(Calculations!$E$2,'Population 2016'!$C$3:$BC$249,'Population 2016'!BD65,FALSE)","v":45129},0,{"$f":"HLOOKUP(Results!E$4,Targeting!$C$3:$F$249,Targeting!$G65,FALSE)","v":7410},{"$f":"IF(AND(OR(Calculations!$E$2=\"Orkney Health Board\",Calculations!$E$2=\"Orkney Islands Local Authority\"),$F65=1),0,IF(AND(OR(Calculations!$E$2=\"Shetland Health Board\",Calculations!$E$2=\"Western Isles Health Board\",Calculations!$E$2=\"Shetland Islands Local Authority\",Calculations!$E$2=\"Eilean Siar Local Authority\"),OR($F65=1,$F65=5)),0,new_ci(VALUE(LEFT(Options!$B$24,2)),$C65,$E65,$F65,2016,$I65,1,$H65,$G65*$H65,Options!$B$8)))","v":31.932809027600001},{"$f":"IF(AND(OR(Calculations!$E$2=\"Orkney Health Board\",Calculations!$E$2=\"Orkney Islands Local Authority\"),$F65=1),0,IF(AND(OR(Calculations!$E$2=\"Shetland Health Board\",Calculations!$E$2=\"Western Isles Health Board\",Calculations!$E$2=\"Shetland Islands Local Authority\",Calculations!$E$2=\"Eilean Siar Local Authority\"),OR($F65=1,$F65=5)),0,new_ci(VALUE(LEFT(Options!$B$24,2)),$C65,$E65,$F65,2016,$I65+$J65,1,$H65,$G65*$H65,Options!$B$8)))","v":31.679984273599999},{"$f":"IF(AND(OR(Calculations!$E$2=\"Orkney Health Board\",Calculations!$E$2=\"Orkney Islands Local Authority\"),$F65=1),0,IF(AND(OR(Calculations!$E$2=\"Shetland Health Board\",Calculations!$E$2=\"Western Isles Health Board\",Calculations!$E$2=\"Shetland Islands Local Authority\",Calculations!$E$2=\"Eilean Siar Local Authority\"),OR($F65=1,$F65=5)),0,new_yllv2(VALUE(LEFT(Options!$B$24,2)),$C65,$D65,$E65,$F65,2016,$I65,1,$H65,$G65*$H65,Options!$B$8)))","v":1713.8339563096999},{"$f":"IF(AND(OR(Calculations!$E$2=\"Orkney Health Board\",Calculations!$E$2=\"Orkney Islands Local Authority\"),$F65=1),0,IF(AND(OR(Calculations!$E$2=\"Shetland Health Board\",Calculations!$E$2=\"Western Isles Health Board\",Calculations!$E$2=\"Shetland Islands Local Authority\",Calculations!$E$2=\"Eilean Siar Local Authority\"),OR($F65=1,$F65=5)),0,new_yllv2(VALUE(LEFT(Options!$B$24,2)),$C65,$D65,$E65,$F65,2016,$I65+$J65,1,$H65,$G65*$H65,Options!$B$8)))","v":1700.2648510040999},{"$f":"IF(AND(OR(Calculations!$E$2=\"Orkney Health Board\",Calculations!$E$2=\"Orkney Islands Local Authority\"),$F65=1),0,IF(AND(OR(Calculations!$E$2=\"Shetland Health Board\",Calculations!$E$2=\"Western Isles Health Board\",Calculations!$E$2=\"Shetland Islands Local Authority\",Calculations!$E$2=\"Eilean Siar Local Authority\"),OR($F65=1,$F65=5)),0,hosp_count(VALUE(LEFT(Options!$B$24,2)),$C65,$E65,$F65,2016,$I65,1,$H65,$G65*$H65, Options!$B$8)))","v":{"$error":"#NAME?"}},{"$f":"IF(AND(OR(Calculations!$E$2=\"Orkney Health Board\",Calculations!$E$2=\"Orkney Islands Local Authority\"),$F65=1),0,IF(AND(OR(Calculations!$E$2=\"Shetland Health Board\",Calculations!$E$2=\"Western Isles Health Board\",Calculations!$E$2=\"Shetland Islands Local Authority\",Calculations!$E$2=\"Eilean Siar Local Authority\"),OR($F65=1,$F65=5)),0,hosp_count(VALUE(LEFT(Options!$B$24,2)),$C65,$E65,$F65,2016,$I65+$J65,1,$H65,$G65*$H65, Options!$B$8)))","v":{"$error":"#NAME?"}},{"$f":"IF(AND(OR(Calculations!$E$2=\"Orkney Health Board\",Calculations!$E$2=\"Orkney Islands Local Authority\"),$F65=1),0,IF(AND(OR(Calculations!$E$2=\"Shetland Health Board\",Calculations!$E$2=\"Western Isles Health Board\",Calculations!$E$2=\"Shetland Islands Local Authority\",Calculations!$E$2=\"Eilean Siar Local Authority\"),OR($F65=1,$F65=5)),0,prem_mort(VALUE(LEFT(Options!$B$24,2)),$C65,$E65,$F65,2016,$I65,1,$H65,$G65*$H65,Options!$B$8)))","v":31.932809027600001},{"$f":"IF(AND(OR(Calculations!$E$2=\"Orkney Health Board\",Calculations!$E$2=\"Orkney Islands Local Authority\"),$F65=1),0,IF(AND(OR(Calculations!$E$2=\"Shetland Health Board\",Calculations!$E$2=\"Western Isles Health Board\",Calculations!$E$2=\"Shetland Islands Local Authority\",Calculations!$E$2=\"Eilean Siar Local Authority\"),OR($F65=1,$F65=5)),0,prem_mort(VALUE(LEFT(Options!$B$24,2)),$C65,$E65,$F65,2016,$I65+$J65,1,$H65,$G65*$H65,Options!$B$8)))","v":31.679984273599999},70.758955500011083,70.198728696846814,3797.6333539624188,3767.5659797560324,{"$error":"#NAME?"},{"$error":"#NAME?"},70.758955500011083,70.198728696846814,424553.73300006648,421192.37218108086,22785800.123774514,22605395.878536195,{"$error":"#NAME?"},{"$error":"#NAME?"},424553.73300006648,421192.37218108086,6000]
[null,"Female 30-34",31.999904999999998,81.799899999999994,"female",1,{"$f":"HLOOKUP(Calculations!$E$2,'Prevalence Rates'!$C$3:$BC$249,'Prevalence Rates'!$BD66,FALSE)","v":0.34499999999999997},{"$f":"HLOOKUP(Calculations!$E$2,'Population 2016'!$C$3:$BC$249,'Population 2016'!BD66,FALSE)","v":41240},0,{"$f":"HLOOKUP(Results!E$4,Targeting!$C$3:$F$249,Targeting!$G66,FALSE)","v":6771},{"$f":"IF(AND(OR(Calculations!$E$2=\"Orkney Health Board\",Calculations!$E$2=\"Orkney Islands Local Authority\"),$F66=1),0,IF(AND(OR(Calculations!$E$2=\"Shetland Health Board\",Calculations!$E$2=\"Western Isles Health Board\",Calculations!$E$2=\"Shetland Islands Local Authority\",Calculations!$E$2=\"Eilean Siar Local Authority\"),OR($F66=1,$F66=5)),0,new_ci(VALUE(LEFT(Options!$B$24,2)),$C66,$E66,$F66,2016,$I66,1,$H66,$G66*$H66,Options!$B$8)))","v":44.732352509400002},{"$f":"IF(AND(OR(Calculations!$E$2=\"Orkney Health Board\",Calculations!$E$2=\"Orkney Islands Local Authority\"),$F66=1),0,IF(AND(OR(Calculations!$E$2=\"Shetland Health Board\",Calculations!$E$2=\"Western Isles Health Board\",Calculations!$E$2=\"Shetland Islands Local Authority\",Calculations!$E$2=\"Eilean Siar Local Authority\"),OR($F66=1,$F66=5)),0,new_ci(VALUE(LEFT(Options!$B$24,2)),$C66,$E66,$F66,2016,$I66+$J66,1,$H66,$G66*$H66,Options!$B$8)))","v":44.378307075899997},{"$f":"IF(AND(OR(Calculations!$E$2=\"Orkney Health Board\",Calculations!$E$2=\"Orkney Islands Local Authority\"),$F66=1),0,IF(AND(OR(Calculations!$E$2=\"Shetland Health Board\",Calculations!$E$2=\"Western Isles Health Board\",Calculations!$E$2=\"Shetland Islands Local Authority\",Calculations!$E$2=\"Eilean Siar Local Authority\"),OR($F66=1,$F66=5)),0,new_yllv2(VALUE(LEFT(Options!$B$24,2)),$C66,$D66,$E66,$F66,2016,$I66,1,$H66,$G66*$H66,Options!$B$8)))","v":2182.938578797},{"$f":"IF(AND(OR(Calculations!$E$2=\"Orkney Health Board\",Calculations!$E$2=\"Orkney Islands Local Authority\"),$F66=1),0,IF(AND(OR(Calculations!$E$2=\"Shetland Health Board\",Calculations!$E$2=\"Western Isles Health Board\",Calculations!$E$2=\"Shetland Islands Local Authority\",Calculations!$E$2=\"Eilean Siar Local Authority\"),OR($F66=1,$F66=5)),0,new_yllv2(VALUE(LEFT(Options!$B$24,2)),$C66,$D66,$E66,$F66,2016,$I66+$J66,1,$H66,$G66*$H66,Options!$B$8)))","v":2165.6611634124001},{"$f":"IF(AND(OR(Calculations!$E$2=\"Orkney Health Board\",Calculations!$E$2=\"Orkney Islands Local Authority\"),$F66=1),0,IF(AND(OR(Calculations!$E$2=\"Shetland Health Board\",Calculations!$E$2=\"Western Isles Health Board\",Calculations!$E$2=\"Shetland Islands Local Authority\",Calculations!$E$2=\"Eilean Siar Local Authority\"),OR($F66=1,$F66=5)),0,hosp_count(VALUE(LEFT(Options!$B$24,2)),$C66,$E66,$F66,2016,$I66,1,$H66,$G66*$H66, Options!$B$8)))","v":{"$error":"#NAME?"}},{"$f":"IF(AND(OR(Calculations!$E$2=\"Orkney Health Board\",Calculations!$E$2=\"Orkney Islands Local Authority\"),$F66=1),0,IF(AND(OR(Calculations!$E$2=\"Shetland Health Board\",Calculations!$E$2=\"Western Isles Health Board\",Calculations!$E$2=\"Shetland Islands Local Authority\",Calculations!$E$2=\"Eilean Siar Local Authority\"),OR($F66=1,$F66=5)),0,hosp_count(VALUE(LEFT(Options!$B$24,2)),$C66,$E66,$F66,2016,$I66+$J66,1,$H66,$G66*$H66, Options!$B$8)))","v":{"$error":"#NAME?"}},{"$f":"IF(AND(OR(Calculations!$E$2=\"Orkney Health Board\",Calculations!$E$2=\"Orkney Islands Local Authority\"),$F66=1),0,IF(AND(OR(Calculations!$E$2=\"Shetland Health Board\",Calculations!$E$2=\"Western Isles Health Board\",Calculations!$E$2=\"Shetland Islands Local Authority\",Calculations!$E$2=\"Eilean Siar Local Authority\"),OR($F66=1,$F66=5)),0,prem_mort(VALUE(LEFT(Options!$B$24,2)),$C66,$E66,$F66,2016,$I66,1,$H66,$G66*$H66,Options!$B$8)))","v":44.732352509400002},{"$f":"IF(AND(OR(Calculations!$E$2=\"Orkney Health Board\",Calculations!$E$2=\"Orkney Islands Local Authority\"),$F66=1),0,IF(AND(OR(Calculations!$E$2=\"Shetland Health Board\",Calculations!$E$2=\"Western Isles Health Board\",Calculations!$E$2=\"Shetland Islands Local Authority\",Calculations!$E$2=\"Eilean Siar Local Authority\"),OR($F66=1,$F66=5)),0,prem_mort(VALUE(LEFT(Options!$B$24,2)),$C66,$E66,$F66,2016,$I66+$J66,1,$H66,$G66*$H66,Options!$B$8)))","v":44.378307075899997},108.46836204995152,107.60986196871968,5293.2555256959267,5251.3607260242488,{"$error":"#NAME?"},{"$error":"#NAME?"},108.46836204995152,107.60986196871968,705044.3533246849,699464.10279667797,34406160.917023525,34133844.719157614,{"$error":"#NAME?"},{"$error":"#NAME?"},705044.3533246849,699464.10279667797,6500]
[null,"Female 35-39",36.918118,81.898120000000006,"female",1,{"$f":"HLOOKUP(Calculations!$E$2,'Prevalence Rates'!$C$3:$BC$249,'Prevalence Rates'!$BD67,FALSE)","v":0.33700000000000002},{"$f":"HLOOKUP(Calculations!$E$2,'Population 2016'!$C$3:$BC$249,'Population 2016'!BD67,FALSE)","v":35038},0,{"$f":"HLOOKUP(Results!E$4,Targeting!$C$3:$F$249,Targeting!$G67,FALSE)","v":5753},{"$f":"IF(AND(OR(Calculations!$E$2=\"Orkney Health Board\",Calculations!$E$2=\"Orkney Islands Local Authority\"),$F67=1),0,IF(AND(OR(Calculations!$E$2=\"Shetland Health Board\",Calculations!$E$2=\"Western Isles Health Board\",Calculations!$E$2=\"Shetland Islands Local Authority\",Calculations!$E$2=\"Eilean Siar Local Authority\"),OR($F67=1,$F67=5)),0,new_ci(VALUE(LEFT(Options!$B$24,2)),$C67,$E67,$F67,2016,$I67,1,$H67,$G67*$H67,Options!$B$8)))","v":57.728231503799996},{"$f":"IF(AND(OR(Calculations!$E$2=\"Orkney Health Board\",Calculations!$E$2=\"Orkney Islands Local Authority\"),$F67=1),0,IF(AND(OR(Calculations!$E$2=\"Shetland Health Board\",Calculations!$E$2=\"Western Isles Health Board\",Calculations!$E$2=\"Shetland Islands Local Authority\",Calculations!$E$2=\"Eilean Siar Local Authority\"),OR($F67=1,$F67=5)),0,new_ci(VALUE(LEFT(Options!$B$24,2)),$C67,$E67,$F67,2016,$I67+$J67,1,$H67,$G67*$H67,Options!$B$8)))","v":57.270119538499998},{"$f":"IF(AND(OR(Calculations!$E$2=\"Orkney Health Board\",Calculations!$E$2=\"Orkney Islands Local Authority\"),$F67=1),0,IF(AND(OR(Calculations!$E$2=\"Shetland Health Board\",Calculations!$E$2=\"Western Isles Health Board\",Calculations!$E$2=\"Shetland Islands Local Authority\",Calculations!$E$2=\"Eilean Siar Local Authority\"),OR($F67=1,$F67=5)),0,new_yllv2(VALUE(LEFT(Options!$B$24,2)),$C67,$D67,$E67,$F67,2016,$I67,1,$H67,$G67*$H67,Options!$B$8)))","v":2538.8877369935999},{"$f":"IF(AND(OR(Calculations!$E$2=\"Orkney Health Board\",Calculations!$E$2=\"Orkney Islands Local Authority\"),$F67=1),0,IF(AND(OR(Calculations!$E$2=\"Shetland Health Board\",Calculations!$E$2=\"Western Isles Health Board\",Calculations!$E$2=\"Shetland Islands Local Authority\",Calculations!$E$2=\"Eilean Siar Local Authority\"),OR($F67=1,$F67=5)),0,new_yllv2(VALUE(LEFT(Options!$B$24,2)),$C67,$D67,$E67,$F67,2016,$I67+$J67,1,$H67,$G67*$H67,Options!$B$8)))","v":2518.7399718434999},{"$f":"IF(AND(OR(Calculations!$E$2=\"Orkney Health Board\",Calculations!$E$2=\"Orkney Islands Local Authority\"),$F67=1),0,IF(AND(OR(Calculations!$E$2=\"Shetland Health Board\",Calculations!$E$2=\"Western Isles Health Board\",Calculations!$E$2=\"Shetland Islands Local Authority\",Calculations!$E$2=\"Eilean Siar Local Authority\"),OR($F67=1,$F67=5)),0,hosp_count(VALUE(LEFT(Options!$B$24,2)),$C67,$E67,$F67,2016,$I67,1,$H67,$G67*$H67, Options!$B$8)))","v":{"$error":"#NAME?"}},{"$f":"IF(AND(OR(Calculations!$E$2=\"Orkney Health Board\",Calculations!$E$2=\"Orkney Islands Local Authority\"),$F67=1),0,IF(AND(OR(Calculations!$E$2=\"Shetland Health Board\",Calculations!$E$2=\"Western Isles Health Board\",Calculations!$E$2=\"Shetland Islands Local Authority\",Calculations!$E$2=\"Eilean Siar Local Authority\"),OR($F67=1,$F67=5)),0,hosp_count(VALUE(LEFT(Options!$B$24,2)),$C67,$E67,$F67,2016,$I67+$J67,1,$H67,$G67*$H67, Options!$B$8)))","v":{"$error":"#NAME?"}},{"$f":"IF(AND(OR(Calculations!$E$2=\"Orkney Health Board\",Calculations!$E$2=\"Orkney Islands Local Authority\"),$F67=1),0,IF(AND(OR(Calculations!$E$2=\"Shetland Health Board\",Calculations!$E$2=\"Western Isles Health Board\",Calculations!$E$2=\"Shetland Islands Local Authority\",Calculations!$E$2=\"Eilean Siar Local Authority\"),OR($F67=1,$F67=5)),0,prem_mort(VALUE(LEFT(Options!$B$24,2)),$C67,$E67,$F67,2016,$I67,1,$H67,$G67*$H67,Options!$B$8)))","v":57.728231503799996},{"$f":"IF(AND(OR(Calculations!$E$2=\"Orkney Health Board\",Calculations!$E$2=\"Orkney Islands Local Authority\"),$F67=1),0,IF(AND(OR(Calculations!$E$2=\"Shetland Health Board\",Calculations!$E$2=\"Western Isles Health Board\",Calculations!$E$2=\"Shetland Islands Local Authority\",Calculations!$E$2=\"Eilean Siar Local Authority\"),OR($F67=1,$F67=5)),0,prem_mort(VALUE(LEFT(Options!$B$24,2)),$C67,$E67,$F67,2016,$I67+$J67,1,$H67,$G67*$H67,Options!$B$8)))","v":57.270119538499998},164.75892317997602,163.45145139134655,7246.0977709732288,7188.5951590944114,{"$error":"#NAME?"},{"$error":"#NAME?"},164.75892317997602,163.45145139134655,1153312.4622598321,1144160.1597394259,50722684.396812603,50320166.113660879,{"$error":"#NAME?"},{"$error":"#NAME?"},1153312.4622598321,1144160.1597394259,7000]
[null,"Female 40-44",42.077438000000001,82.30744,"female",1,{"$f":"HLOOKUP(Calculations!$E$2,'Prevalence Rates'!$C$3:$BC$249,'Prevalence Rates'!$BD68,FALSE)","v":0.33700000000000002},{"$f":"HLOOKUP(Calculations!$E$2,'Population 2016'!$C$3:$BC$249,'Population 2016'!BD68,FALSE)","v":33663},0,{"$f":"HLOOKUP(Results!E$4,Targeting!$C$3:$F$249,Targeting!$G68,FALSE)","v":5527},{"$f":"IF(AND(OR(Calculations!$E$2=\"Orkney Health Board\",Calculations!$E$2=\"Orkney Islands Local Authority\"),$F68=1),0,IF(AND(OR(Calculations!$E$2=\"Shetland Health Board\",Calculations!$E$2=\"Western Isles Health Board\",Calculations!$E$2=\"Shetland Islands Local Authority\",Calculations!$E$2=\"Eilean Siar Local Authority\"),OR($F68=1,$F68=5)),0,new_ci(VALUE(LEFT(Options!$B$24,2)),$C68,$E68,$F68,2016,$I68,1,$H68,$G68*$H68,Options!$B$8)))","v":85.975872759500007},{"$f":"IF(AND(OR(Calculations!$E$2=\"Orkney Health Board\",Calculations!$E$2=\"Orkney Islands Local Authority\"),$F68=1),0,IF(AND(OR(Calculations!$E$2=\"Shetland Health Board\",Calculations!$E$2=\"Western Isles Health Board\",Calculations!$E$2=\"Shetland Islands Local Authority\",Calculations!$E$2=\"Eilean Siar Local Authority\"),OR($F68=1,$F68=5)),0,new_ci(VALUE(LEFT(Options!$B$24,2)),$C68,$E68,$F68,2016,$I68+$J68,1,$H68,$G68*$H68,Options!$B$8)))","v":85.294065355699999},{"$f":"IF(AND(OR(Calculations!$E$2=\"Orkney Health Board\",Calculations!$E$2=\"Orkney Islands Local Authority\"),$F68=1),0,IF(AND(OR(Calculations!$E$2=\"Shetland Health Board\",Calculations!$E$2=\"Western Isles Health Board\",Calculations!$E$2=\"Shetland Islands Local Authority\",Calculations!$E$2=\"Eilean Siar Local Authority\"),OR($F68=1,$F68=5)),0,new_yllv2(VALUE(LEFT(Options!$B$24,2)),$C68,$D68,$E68,$F68,2016,$I68,1,$H68,$G68*$H68,Options!$B$8)))","v":3372.8336603069001},{"$f":"IF(AND(OR(Calculations!$E$2=\"Orkney Health Board\",Calculations!$E$2=\"Orkney Islands Local Authority\"),$F68=1),0,IF(AND(OR(Calculations!$E$2=\"Shetland Health Board\",Calculations!$E$2=\"Western Isles Health Board\",Calculations!$E$2=\"Shetland Islands Local Authority\",Calculations!$E$2=\"Eilean Siar Local Authority\"),OR($F68=1,$F68=5)),0,new_yllv2(VALUE(LEFT(Options!$B$24,2)),$C68,$D68,$E68,$F68,2016,$I68+$J68,1,$H68,$G68*$H68,Options!$B$8)))","v":3346.0863544921999},{"$f":"IF(AND(OR(Calculations!$E$2=\"Orkney Health Board\",Calculations!$E$2=\"Orkney Islands Local Authority\"),$F68=1),0,IF(AND(OR(Calculations!$E$2=\"Shetland Health Board\",Calculations!$E$2=\"Western Isles Health Board\",Calculations!$E$2=\"Shetland Islands Local Authority\",Calculations!$E$2=\"Eilean Siar Local Authority\"),OR($F68=1,$F68=5)),0,hosp_count(VALUE(LEFT(Options!$B$24,2)),$C68,$E68,$F68,2016,$I68,1,$H68,$G68*$H68, Options!$B$8)))","v":{"$error":"#NAME?"}},{"$f":"IF(AND(OR(Calculations!$E$2=\"Orkney Health Board\",Calculations!$E$2=\"Orkney Islands Local Authority\"),$F68=1),0,IF(AND(OR(Calculations!$E$2=\"Shetland Health Board\",Calculations!$E$2=\"Western Isles Health Board\",Calculations!$E$2=\"Shetland Islands Local Authority\",Calculations!$E$2=\"Eilean Siar Local Authority\"),OR($F68=1,$F68=5)),0,hosp_count(VALUE(LEFT(Options!$B$24,2)),$C68,$E68,$F68,2016,$I68+$J68,1,$H68,$G68*$H68, Options!$B$8)))","v":{"$error":"#NAME?"}},{"$f":"IF(AND(OR(Calculations!$E$2=\"Orkney Health Board\",Calculations!$E$2=\"Orkney Islands Local Authority\"),$F68=1),0,IF(AND(OR(Calculations!$E$2=\"Shetland Health Board\",Calculations!$E$2=\"Western Isles Health Board\",Calculations!$E$2=\"Shetland Islands Local Authority\",Calculations!$E$2=\"Eilean Siar Local Authority\"),OR($F68=1,$F68=5)),0,prem_mort(VALUE(LEFT(Options!$B$24,2)),$C68,$E68,$F68,2016,$I68,1,$H68,$G68*$H68,Options!$B$8)))","v":85.975872759500007},{"$f":"IF(AND(OR(Calculations!$E$2=\"Orkney Health Board\",Calculations!$E$2=\"Orkney Islands Local Authority\"),$F68=1),0,IF(AND(OR(Calculations!$E$2=\"Shetland Health Board\",Calculations!$E$2=\"Western Isles Health Board\",Calculations!$E$2=\"Shetland Islands Local Authority\",Calculations!$E$2=\"Eilean Siar Local Authority\"),OR($F68=1,$F68=5)),0,prem_mort(VALUE(LEFT(Options!$B$24,2)),$C68,$E68,$F68,2016,$I68+$J68,1,$H68,$G68*$H68,Options!$B$8)))","v":85.294065355699999},255.40169550990706,253.37630441642156,10019.409025656953,9939.9529290087048,{"$error":"#NAME?"},{"$error":"#NAME?"},255.40169550990706,253.37630441642156,1787811.8685693494,1773634.130914951,70135863.179598674,69579670.503060937,{"$error":"#NAME?"},{"$error":"#NAME?"},1787811.8685693494,1773634.130914951,7000]
[null,"Female 45-49",47.025772000000003,82.585769999999997,"female",1,{"$f":"HLOOKUP(Calculations!$E$2,'Prevalence Rates'!$C$3:$BC$249,'Prevalence Rates'!$BD69,FALSE)","v":0.47899999999999998},{"$f":"HLOOKUP(Calculations!$E$2,'Population 2016'!$C$3:$BC$249,'Population 2016'!BD69,FALSE)","v":39197},0,{"$f":"HLOOKUP(Results!E$4,Targeting!$C$3:$F$249,Targeting!$G69,FALSE)","v":6436},{"$f":"IF(AND(OR(Calculations!$E$2=\"Orkney Health Board\",Calculations!$E$2=\"Orkney Islands Local Authority\"),$F69=1),0,IF(AND(OR(Calculations!$E$2=\"Shetland Health Board\",Calculations!$E$2=\"Western Isles Health Board\",Calculations!$E$2=\"Shetland Islands Local Authority\",Calculations!$E$2=\"Eilean Siar Local Authority\"),OR($F69=1,$F69=5)),0,new_ci(VALUE(LEFT(Options!$B$24,2)),$C69,$E69,$F69,2016,$I69,1,$H69,$G69*$H69,Options!$B$8)))","v":152.3917834625},{"$f":"IF(AND(OR(Calculations!$E$2=\"Orkney Health Board\",Calculations!$E$2=\"Orkney Islands Local Authority\"),$F69=1),0,IF(AND(OR(Calculations!$E$2=\"Shetland Health Board\",Calculations!$E$2=\"Western Isles Health Board\",Calculations!$E$2=\"Shetland Islands Local Authority\",Calculations!$E$2=\"Eilean Siar Local Authority\"),OR($F69=1,$F69=5)),0,new_ci(VALUE(LEFT(Options!$B$24,2)),$C69,$E69,$F69,2016,$I69+$J69,1,$H69,$G69*$H69,Options!$B$8)))","v":151.2450935709},{"$f":"IF(AND(OR(Calculations!$E$2=\"Orkney Health Board\",Calculations!$E$2=\"Orkney Islands Local Authority\"),$F69=1),0,IF(AND(OR(Calculations!$E$2=\"Shetland Health Board\",Calculations!$E$2=\"Western Isles Health Board\",Calculations!$E$2=\"Shetland Islands Local Authority\",Calculations!$E$2=\"Eilean Siar Local Authority\"),OR($F69=1,$F69=5)),0,new_yllv2(VALUE(LEFT(Options!$B$24,2)),$C69,$D69,$E69,$F69,2016,$I69,1,$H69,$G69*$H69,Options!$B$8)))","v":5266.6597316804},{"$f":"IF(AND(OR(Calculations!$E$2=\"Orkney Health Board\",Calculations!$E$2=\"Orkney Islands Local Authority\"),$F69=1),0,IF(AND(OR(Calculations!$E$2=\"Shetland Health Board\",Calculations!$E$2=\"Western Isles Health Board\",Calculations!$E$2=\"Shetland Islands Local Authority\",Calculations!$E$2=\"Eilean Siar Local Authority\"),OR($F69=1,$F69=5)),0,new_yllv2(VALUE(LEFT(Options!$B$24,2)),$C69,$D69,$E69,$F69,2016,$I69+$J69,1,$H69,$G69*$H69,Options!$B$8)))","v":5227.0301313200998},{"$f":"IF(AND(OR(Calculations!$E$2=\"Orkney Health Board\",Calculations!$E$2=\"Orkney Islands Local Authority\"),$F69=1),0,IF(AND(OR(Calculations!$E$2=\"Shetland Health Board\",Calculations!$E$2=\"Western Isles Health Board\",Calculations!$E$2=\"Shetland Islands Local Authority\",Calculations!$E$2=\"Eilean Siar Local Authority\"),OR($F69=1,$F69=5)),0,hosp_count(VALUE(LEFT(Options!$B$24,2)),$C69,$E69,$F69,2016,$I69,1,$H69,$G69*$H69, Options!$B$8)))","v":{"$error":"#NAME?"}},{"$f":"IF(AND(OR(Calculations!$E$2=\"Orkney Health Board\",Calculations!$E$2=\"Orkney Islands Local Authority\"),$F69=1),0,IF(AND(OR(Calculations!$E$2=\"Shetland Health Board\",Calculations!$E$2=\"Western Isles Health Board\",Calculations!$E$2=\"Shetland Islands Local Authority\",Calculations!$E$2=\"Eilean Siar Local Authority\"),OR($F69=1,$F69=5)),0,hosp_count(VALUE(LEFT(Options!$B$24,2)),$C69,$E69,$F69,2016,$I69+$J69,1,$H69,$G69*$H69, Options!$B$8)))","v":{"$error":"#NAME?"}},{"$f":"IF(AND(OR(Calculations!$E$2=\"Orkney Health Board\",Calculations!$E$2=\"Orkney Islands Local Authority\"),$F69=1),0,IF(AND(OR(Calculations!$E$2=\"Shetland Health Board\",Calculations!$E$2=\"Western Isles Health Board\",Calculations!$E$2=\"Shetland Islands Local Authority\",Calculations!$E$2=\"Eilean Siar Local Authority\"),OR($F69=1,$F69=5)),0,prem_mort(VALUE(LEFT(Options!$B$24,2)),$C69,$E69,$F69,2016,$I69,1,$H69,$G69*$H69,Options!$B$8)))","v":152.3917834625},{"$f":"IF(AND(OR(Calculations!$E$2=\"Orkney Health Board\",Calculations!$E$2=\"Orkney Islands Local Authority\"),$F69=1),0,IF(AND(OR(Calculations!$E$2=\"Shetland Health Board\",Calculations!$E$2=\"Western Isles Health Board\",Calculations!$E$2=\"Shetland Islands Local Authority\",Calculations!$E$2=\"Eilean Siar Local Authority\"),OR($F69=1,$F69=5)),0,prem_mort(VALUE(LEFT(Options!$B$24,2)),$C69,$E69,$F69,2016,$I69+$J69,1,$H69,$G69*$H69,Options!$B$8)))","v":151.2450935709},388.78430355001655,385.85885034798582,13436.384753119881,13335.281096308645,{"$error":"#NAME?"},{"$error":"#NAME?"},388.78430355001655,385.85885034798582,2721490.1248501157,2701011.9524359009,94054693.271839172,93346967.67416051,{"$error":"#NAME?"},{"$error":"#NAME?"},2721490.1248501157,2701011.9524359009,7000]
[null,"Female 50-54",51.990825999999998,82.980829999999997,"female",1,{"$f":"HLOOKUP(Calculations!$E$2,'Prevalence Rates'!$C$3:$BC$249,'Prevalence Rates'!$BD70,FALSE)","v":0.47899999999999998},{"$f":"HLOOKUP(Calculations!$E$2,'Population 2016'!$C$3:$BC$249,'Population 2016'!BD70,FALSE)","v":39704},0,{"$f":"HLOOKUP(Results!E$4,Targeting!$C$3:$F$249,Targeting!$G70,FALSE)","v":6519},{"$f":"IF(AND(OR(Calculations!$E$2=\"Orkney Health Board\",Calculations!$E$2=\"Orkney Islands Local Authority\"),$F70=1),0,IF(AND(OR(Calculations!$E$2=\"Shetland Health Board\",Calculations!$E$2=\"Western Isles Health Board\",Calculations!$E$2=\"Shetland Islands Local Authority\",Calculations!$E$2=\"Eilean Siar Local Authority\"),OR($F70=1,$F70=5)),0,new_ci(VALUE(LEFT(Options!$B$24,2)),$C70,$E70,$F70,2016,$I70,1,$H70,$G70*$H70,Options!$B$8)))","v":235.2269829345},{"$f":"IF(AND(OR(Calculations!$E$2=\"Orkney Health Board\",Calculations!$E$2=\"Orkney Islands Local Authority\"),$F70=1),0,IF(AND(OR(Calculations!$E$2=\"Shetland Health Board\",Calculations!$E$2=\"Western Isles Health Board\",Calculations!$E$2=\"Shetland Islands Local Authority\",Calculations!$E$2=\"Eilean Siar Local Authority\"),OR($F70=1,$F70=5)),0,new_ci(VALUE(LEFT(Options!$B$24,2)),$C70,$E70,$F70,2016,$I70+$J70,1,$H70,$G70*$H70,Options!$B$8)))","v":233.45940106559999},{"$f":"IF(AND(OR(Calculations!$E$2=\"Orkney Health Board\",Calculations!$E$2=\"Orkney Islands Local Authority\"),$F70=1),0,IF(AND(OR(Calculations!$E$2=\"Shetland Health Board\",Calculations!$E$2=\"Western Isles Health Board\",Calculations!$E$2=\"Shetland Islands Local Authority\",Calculations!$E$2=\"Eilean Siar Local Authority\"),OR($F70=1,$F70=5)),0,new_yllv2(VALUE(LEFT(Options!$B$24,2)),$C70,$D70,$E70,$F70,2016,$I70,1,$H70,$G70*$H70,Options!$B$8)))","v":7054.4581591136002},{"$f":"IF(AND(OR(Calculations!$E$2=\"Orkney Health Board\",Calculations!$E$2=\"Orkney Islands Local Authority\"),$F70=1),0,IF(AND(OR(Calculations!$E$2=\"Shetland Health Board\",Calculations!$E$2=\"Western Isles Health Board\",Calculations!$E$2=\"Shetland Islands Local Authority\",Calculations!$E$2=\"Eilean Siar Local Authority\"),OR($F70=1,$F70=5)),0,new_yllv2(VALUE(LEFT(Options!$B$24,2)),$C70,$D70,$E70,$F70,2016,$I70+$J70,1,$H70,$G70*$H70,Options!$B$8)))","v":7001.4483717948997},{"$f":"IF(AND(OR(Calculations!$E$2=\"Orkney Health Board\",Calculations!$E$2=\"Orkney Islands Local Authority\"),$F70=1),0,IF(AND(OR(Calculations!$E$2=\"Shetland Health Board\",Calculations!$E$2=\"Western Isles Health Board\",Calculations!$E$2=\"Shetland Islands Local Authority\",Calculations!$E$2=\"Eilean Siar Local Authority\"),OR($F70=1,$F70=5)),0,hosp_count(VALUE(LEFT(Options!$B$24,2)),$C70,$E70,$F70,2016,$I70,1,$H70,$G70*$H70, Options!$B$8)))","v":{"$error":"#NAME?"}},{"$f":"IF(AND(OR(Calculations!$E$2=\"Orkney Health Board\",Calculations!$E$2=\"Orkney Islands Local Authority\"),$F70=1),0,IF(AND(OR(Calculations!$E$2=\"Shetland Health Board\",Calculations!$E$2=\"Western Isles Health Board\",Calculations!$E$2=\"Shetland Islands Local Authority\",Calculations!$E$2=\"Eilean Siar Local Authority\"),OR($F70=1,$F70=5)),0,hosp_count(VALUE(LEFT(Options!$B$24,2)),$C70,$E70,$F70,2016,$I70+$J70,1,$H70,$G70*$H70, Options!$B$8)))","v":{"$error":"#NAME?"}},{"$f":"IF(AND(OR(Calculations!$E$2=\"Orkney Health Board\",Calculations!$E$2=\"Orkney Islands Local Authority\"),$F70=1),0,IF(AND(OR(Calculations!$E$2=\"Shetland Health Board\",Calculations!$E$2=\"Western Isles Health Board\",Calculations!$E$2=\"Shetland Islands Local Authority\",Calculations!$E$2=\"Eilean Siar Local Authority\"),OR($F70=1,$F70=5)),0,prem_mort(VALUE(LEFT(Options!$B$24,2)),$C70,$E70,$F70,2016,$I70,1,$H70,$G70*$H70,Options!$B$8)))","v":235.2269829345},{"$f":"IF(AND(OR(Calculations!$E$2=\"Orkney Health Board\",Calculations!$E$2=\"Orkney Islands Local Authority\"),$F70=1),0,IF(AND(OR(Calculations!$E$2=\"Shetland Health Board\",Calculations!$E$2=\"Western Isles Health Board\",Calculations!$E$2=\"Shetland Islands Local Authority\",Calculations!$E$2=\"Eilean Siar Local Authority\"),OR($F70=1,$F70=5)),0,prem_mort(VALUE(LEFT(Options!$B$24,2)),$C70,$E70,$F70,2016,$I70+$J70,1,$H70,$G70*$H70,Options!$B$8)))","v":233.45940106559999},592.45159917010881,587.99970044731003,17767.625828917993,17634.113368413509,{"$error":"#NAME?"},{"$error":"#NAME?"},592.45159917010881,587.99970044731003,4147161.1941907615,4115997.9031311702,124373380.80242595,123438793.57889457,{"$error":"#NAME?"},{"$error":"#NAME?"},4147161.1941907615,4115997.9031311702,7000]
[null,"Female 55-59",56.953040999999999,83.473039999999997,"female",1,{"$f":"HLOOKUP(Calculations!$E$2,'Prevalence Rates'!$C$3:$BC$249,'Prevalence Rates'!$BD71,FALSE)","v":0.59299999999999997},{"$f":"HLOOKUP(Calculations!$E$2,'Population 2016'!$C$3:$BC$249,'Population 2016'!BD71,FALSE)","v":35528},0,{"$f":"HLOOKUP(Results!E$4,Targeting!$C$3:$F$249,Targeting!$G71,FALSE)","v":5833},{"$f":"IF(AND(OR(Calculations!$E$2=\"Orkney Health Board\",Calculations!$E$2=\"Orkney Islands Local Authority\"),$F71=1),0,IF(AND(OR(Calculations!$E$2=\"Shetland Health Board\",Calculations!$E$2=\"Western Isles Health Board\",Calculations!$E$2=\"Shetland Islands Local Authority\",Calculations!$E$2=\"Eilean Siar Local Authority\"),OR($F71=1,$F71=5)),0,new_ci(VALUE(LEFT(Options!$B$24,2)),$C71,$E71,$F71,2016,$I71,1,$H71,$G71*$H71,Options!$B$8)))","v":320.50117963589997},{"$f":"IF(AND(OR(Calculations!$E$2=\"Orkney Health Board\",Calculations!$E$2=\"Orkney Islands Local Authority\"),$F71=1),0,IF(AND(OR(Calculations!$E$2=\"Shetland Health Board\",Calculations!$E$2=\"Western Isles Health Board\",Calculations!$E$2=\"Shetland Islands Local Authority\",Calculations!$E$2=\"Eilean Siar Local Authority\"),OR($F71=1,$F71=5)),0,new_ci(VALUE(LEFT(Options!$B$24,2)),$C71,$E71,$F71,2016,$I71+$J71,1,$H71,$G71*$H71,Options!$B$8)))","v":318.19060525959998},{"$f":"IF(AND(OR(Calculations!$E$2=\"Orkney Health Board\",Calculations!$E$2=\"Orkney Islands Local Authority\"),$F71=1),0,IF(AND(OR(Calculations!$E$2=\"Shetland Health Board\",Calculations!$E$2=\"Western Isles Health Board\",Calculations!$E$2=\"Shetland Islands Local Authority\",Calculations!$E$2=\"Eilean Siar Local Authority\"),OR($F71=1,$F71=5)),0,new_yllv2(VALUE(LEFT(Options!$B$24,2)),$C71,$D71,$E71,$F71,2016,$I71,1,$H71,$G71*$H71,Options!$B$8)))","v":8179.1897838069999},{"$f":"IF(AND(OR(Calculations!$E$2=\"Orkney Health Board\",Calculations!$E$2=\"Orkney Islands Local Authority\"),$F71=1),0,IF(AND(OR(Calculations!$E$2=\"Shetland Health Board\",Calculations!$E$2=\"Western Isles Health Board\",Calculations!$E$2=\"Shetland Islands Local Authority\",Calculations!$E$2=\"Eilean Siar Local Authority\"),OR($F71=1,$F71=5)),0,new_yllv2(VALUE(LEFT(Options!$B$24,2)),$C71,$D71,$E71,$F71,2016,$I71+$J71,1,$H71,$G71*$H71,Options!$B$8)))","v":8120.2239280344002},{"$f":"IF(AND(OR(Calculations!$E$2=\"Orkney Health Board\",Calculations!$E$2=\"Orkney Islands Local Authority\"),$F71=1),0,IF(AND(OR(Calculations!$E$2=\"Shetland Health Board\",Calculations!$E$2=\"Western Isles Health Board\",Calculations!$E$2=\"Shetland Islands Local Authority\",Calculations!$E$2=\"Eilean Siar Local Authority\"),OR($F71=1,$F71=5)),0,hosp_count(VALUE(LEFT(Options!$B$24,2)),$C71,$E71,$F71,2016,$I71,1,$H71,$G71*$H71, Options!$B$8)))","v":{"$error":"#NAME?"}},{"$f":"IF(AND(OR(Calculations!$E$2=\"Orkney Health Board\",Calculations!$E$2=\"Orkney Islands Local Authority\"),$F71=1),0,IF(AND(OR(Calculations!$E$2=\"Shetland Health Board\",Calculations!$E$2=\"Western Isles Health Board\",Calculations!$E$2=\"Shetland Islands Local Authority\",Calculations!$E$2=\"Eilean Siar Local Authority\"),OR($F71=1,$F71=5)),0,hosp_count(VALUE(LEFT(Options!$B$24,2)),$C71,$E71,$F71,2016,$I71+$J71,1,$H71,$G71*$H71, Options!$B$8)))","v":{"$error":"#NAME?"}},{"$f":"IF(AND(OR(Calculations!$E$2=\"Orkney Health Board\",Calculations!$E$2=\"Orkney Islands Local Authority\"),$F71=1),0,IF(AND(OR(Calculations!$E$2=\"Shetland Health Board\",Calculations!$E$2=\"Western Isles Health Board\",Calculations!$E$2=\"Shetland Islands Local Authority\",Calculations!$E$2=\"Eilean Siar Local Authority\"),OR($F71=1,$F71=5)),0,prem_mort(VALUE(LEFT(Options!$B$24,2)),$C71,$E71,$F71,2016,$I71,1,$H71,$G71*$H71,Options!$B$8)))","v":320.50117963589997},{"$f":"IF(AND(OR(Calculations!$E$2=\"Orkney Health Board\",Calculations!$E$2=\"Orkney Islands Local Authority\"),$F71=1),0,IF(AND(OR(Calculations!$E$2=\"Shetland Health Board\",Calculations!$E$2=\"Western Isles Health Board\",Calculations!$E$2=\"Shetland Islands Local Authority\",Calculations!$E$2=\"Eilean Siar Local Authority\"),OR($F71=1,$F71=5)),0,prem_mort(VALUE(LEFT(Options!$B$24,2)),$C71,$E71,$F71,2016,$I71+$J71,1,$H71,$G71*$H71,Options!$B$8)))","v":318.19060525959998},902.10870196999542,895.60517130038272,23021.813172165617,22855.843075980636,{"$error":"#NAME?"},{"$error":"#NAME?"},902.10870196999542,895.60517130038272,5863706.56280497,5821433.6134524876,149641785.61907652,148562979.99387413,{"$error":"#NAME?"},{"$error":"#NAME?"},5863706.56280497,5821433.6134524876,6500]
[null,"Female 60-64",61.947387999999997,84.167389999999997,"female",1,{"$f":"HLOOKUP(Calculations!$E$2,'Prevalence Rates'!$C$3:$BC$249,'Prevalence Rates'!$BD72,FALSE)","v":0.59299999999999997},{"$f":"HLOOKUP(Calculations!$E$2,'Population 2016'!$C$3:$BC$249,'Population 2016'!BD72,FALSE)","v":29212},0,{"$f":"HLOOKUP(Results!E$4,Targeting!$C$3:$F$249,Targeting!$G72,FALSE)","v":4796},{"$f":"IF(AND(OR(Calculations!$E$2=\"Orkney Health Board\",Calculations!$E$2=\"Orkney Islands Local Authority\"),$F72=1),0,IF(AND(OR(Calculations!$E$2=\"Shetland Health Board\",Calculations!$E$2=\"Western Isles Health Board\",Calculations!$E$2=\"Shetland Islands Local Authority\",Calculations!$E$2=\"Eilean Siar Local Authority\"),OR($F72=1,$F72=5)),0,new_ci(VALUE(LEFT(Options!$B$24,2)),$C72,$E72,$F72,2016,$I72,1,$H72,$G72*$H72,Options!$B$8)))","v":402.0089854853},{"$f":"IF(AND(OR(Calculations!$E$2=\"Orkney Health Board\",Calculations!$E$2=\"Orkney Islands Local Authority\"),$F72=1),0,IF(AND(OR(Calculations!$E$2=\"Shetland Health Board\",Calculations!$E$2=\"Western Isles Health Board\",Calculations!$E$2=\"Shetland Islands Local Authority\",Calculations!$E$2=\"Eilean Siar Local Authority\"),OR($F72=1,$F72=5)),0,new_ci(VALUE(LEFT(Options!$B$24,2)),$C72,$E72,$F72,2016,$I72+$J72,1,$H72,$G72*$H72,Options!$B$8)))","v":399.11920892090001},{"$f":"IF(AND(OR(Calculations!$E$2=\"Orkney Health Board\",Calculations!$E$2=\"Orkney Islands Local Authority\"),$F72=1),0,IF(AND(OR(Calculations!$E$2=\"Shetland Health Board\",Calculations!$E$2=\"Western Isles Health Board\",Calculations!$E$2=\"Shetland Islands Local Authority\",Calculations!$E$2=\"Eilean Siar Local Authority\"),OR($F72=1,$F72=5)),0,new_yllv2(VALUE(LEFT(Options!$B$24,2)),$C72,$D72,$E72,$F72,2016,$I72,1,$H72,$G72*$H72,Options!$B$8)))","v":8530.6314760160003},{"$f":"IF(AND(OR(Calculations!$E$2=\"Orkney Health Board\",Calculations!$E$2=\"Orkney Islands Local Authority\"),$F72=1),0,IF(AND(OR(Calculations!$E$2=\"Shetland Health Board\",Calculations!$E$2=\"Western Isles Health Board\",Calculations!$E$2=\"Shetland Islands Local Authority\",Calculations!$E$2=\"Eilean Siar Local Authority\"),OR($F72=1,$F72=5)),0,new_yllv2(VALUE(LEFT(Options!$B$24,2)),$C72,$D72,$E72,$F72,2016,$I72+$J72,1,$H72,$G72*$H72,Options!$B$8)))","v":8469.3104115399001},{"$f":"IF(AND(OR(Calculations!$E$2=\"Orkney Health Board\",Calculations!$E$2=\"Orkney Islands Local Authority\"),$F72=1),0,IF(AND(OR(Calculations!$E$2=\"Shetland Health Board\",Calculations!$E$2=\"Western Isles Health Board\",Calculations!$E$2=\"Shetland Islands Local Authority\",Calculations!$E$2=\"Eilean Siar Local Authority\"),OR($F72=1,$F72=5)),0,hosp_count(VALUE(LEFT(Options!$B$24,2)),$C72,$E72,$F72,2016,$I72,1,$H72,$G72*$H72, Options!$B$8)))","v":{"$error":"#NAME?"}},{"$f":"IF(AND(OR(Calculations!$E$2=\"Orkney Health Board\",Calculations!$E$2=\"Orkney Islands Local Authority\"),$F72=1),0,IF(AND(OR(Calculations!$E$2=\"Shetland Health Board\",Calculations!$E$2=\"Western Isles Health Board\",Calculations!$E$2=\"Shetland Islands Local Authority\",Calculations!$E$2=\"Eilean Siar Local Authority\"),OR($F72=1,$F72=5)),0,hosp_count(VALUE(LEFT(Options!$B$24,2)),$C72,$E72,$F72,2016,$I72+$J72,1,$H72,$G72*$H72, Options!$B$8)))","v":{"$error":"#NAME?"}},{"$f":"IF(AND(OR(Calculations!$E$2=\"Orkney Health Board\",Calculations!$E$2=\"Orkney Islands Local Authority\"),$F72=1),0,IF(AND(OR(Calculations!$E$2=\"Shetland Health Board\",Calculations!$E$2=\"Western Isles Health Board\",Calculations!$E$2=\"Shetland Islands Local Authority\",Calculations!$E$2=\"Eilean Siar Local Authority\"),OR($F72=1,$F72=5)),0,prem_mort(VALUE(LEFT(Options!$B$24,2)),$C72,$E72,$F72,2016,$I72,1,$H72,$G72*$H72,Options!$B$8)))","v":402.0089854853},{"$f":"IF(AND(OR(Calculations!$E$2=\"Orkney Health Board\",Calculations!$E$2=\"Orkney Islands Local Authority\"),$F72=1),0,IF(AND(OR(Calculations!$E$2=\"Shetland Health Board\",Calculations!$E$2=\"Western Isles Health Board\",Calculations!$E$2=\"Shetland Islands Local Authority\",Calculations!$E$2=\"Eilean Siar Local Authority\"),OR($F72=1,$F72=5)),0,prem_mort(VALUE(LEFT(Options!$B$24,2)),$C72,$E72,$F72,2016,$I72+$J72,1,$H72,$G72*$H72,Options!$B$8)))","v":399.11920892090001},1376.1775485598384,1366.2851188583459,29202.490332794743,28992.572954744282,{"$error":"#NAME?"},{"$error":"#NAME?"},1376.1775485598384,1366.2851188583459,8257065.2913590306,8197710.7131500756,175214941.99676844,173955437.72846571,{"$error":"#NAME?"},{"$error":"#NAME?"},8257065.2913590306,8197710.7131500756,6000]
[null,"Female 65-69",67.063927000000007,85.193929999999995,"female",1,{"$f":"HLOOKUP(Calculations!$E$2,'Prevalence Rates'!$C$3:$BC$249,'Prevalence Rates'!$BD73,FALSE)","v":0.7},{"$f":"HLOOKUP(Calculations!$E$2,'Population 2016'!$C$3:$BC$249,'Population 2016'!BD73,FALSE)","v":27762},0,{"$f":"HLOOKUP(Results!E$4,Targeting!$C$3:$F$249,Targeting!$G73,FALSE)","v":4558},{"$f":"IF(AND(OR(Calculations!$E$2=\"Orkney Health Board\",Calculations!$E$2=\"Orkney Islands Local Authority\"),$F73=1),0,IF(AND(OR(Calculations!$E$2=\"Shetland Health Board\",Calculations!$E$2=\"Western Isles Health Board\",Calculations!$E$2=\"Shetland Islands Local Authority\",Calculations!$E$2=\"Eilean Siar Local Authority\"),OR($F73=1,$F73=5)),0,new_ci(VALUE(LEFT(Options!$B$24,2)),$C73,$E73,$F73,2016,$I73,1,$H73,$G73*$H73,Options!$B$8)))","v":588.12016706229997},{"$f":"IF(AND(OR(Calculations!$E$2=\"Orkney Health Board\",Calculations!$E$2=\"Orkney Islands Local Authority\"),$F73=1),0,IF(AND(OR(Calculations!$E$2=\"Shetland Health Board\",Calculations!$E$2=\"Western Isles Health Board\",Calculations!$E$2=\"Shetland Islands Local Authority\",Calculations!$E$2=\"Eilean Siar Local Authority\"),OR($F73=1,$F73=5)),0,new_ci(VALUE(LEFT(Options!$B$24,2)),$C73,$E73,$F73,2016,$I73+$J73,1,$H73,$G73*$H73,Options!$B$8)))","v":584.05714489549996},{"$f":"IF(AND(OR(Calculations!$E$2=\"Orkney Health Board\",Calculations!$E$2=\"Orkney Islands Local Authority\"),$F73=1),0,IF(AND(OR(Calculations!$E$2=\"Shetland Health Board\",Calculations!$E$2=\"Western Isles Health Board\",Calculations!$E$2=\"Shetland Islands Local Authority\",Calculations!$E$2=\"Eilean Siar Local Authority\"),OR($F73=1,$F73=5)),0,new_yllv2(VALUE(LEFT(Options!$B$24,2)),$C73,$D73,$E73,$F73,2016,$I73,1,$H73,$G73*$H73,Options!$B$8)))","v":10074.500226137699},{"$f":"IF(AND(OR(Calculations!$E$2=\"Orkney Health Board\",Calculations!$E$2=\"Orkney Islands Local Authority\"),$F73=1),0,IF(AND(OR(Calculations!$E$2=\"Shetland Health Board\",Calculations!$E$2=\"Western Isles Health Board\",Calculations!$E$2=\"Shetland Islands Local Authority\",Calculations!$E$2=\"Eilean Siar Local Authority\"),OR($F73=1,$F73=5)),0,new_yllv2(VALUE(LEFT(Options!$B$24,2)),$C73,$D73,$E73,$F73,2016,$I73+$J73,1,$H73,$G73*$H73,Options!$B$8)))","v":10004.9006442313},{"$f":"IF(AND(OR(Calculations!$E$2=\"Orkney Health Board\",Calculations!$E$2=\"Orkney Islands Local Authority\"),$F73=1),0,IF(AND(OR(Calculations!$E$2=\"Shetland Health Board\",Calculations!$E$2=\"Western Isles Health Board\",Calculations!$E$2=\"Shetland Islands Local Authority\",Calculations!$E$2=\"Eilean Siar Local Authority\"),OR($F73=1,$F73=5)),0,hosp_count(VALUE(LEFT(Options!$B$24,2)),$C73,$E73,$F73,2016,$I73,1,$H73,$G73*$H73, Options!$B$8)))","v":{"$error":"#NAME?"}},{"$f":"IF(AND(OR(Calculations!$E$2=\"Orkney Health Board\",Calculations!$E$2=\"Orkney Islands Local Authority\"),$F73=1),0,IF(AND(OR(Calculations!$E$2=\"Shetland Health Board\",Calculations!$E$2=\"Western Isles Health Board\",Calculations!$E$2=\"Shetland Islands Local Authority\",Calculations!$E$2=\"Eilean Siar Local Authority\"),OR($F73=1,$F73=5)),0,hosp_count(VALUE(LEFT(Options!$B$24,2)),$C73,$E73,$F73,2016,$I73+$J73,1,$H73,$G73*$H73, Options!$B$8)))","v":{"$error":"#NAME?"}},{"$f":"IF(AND(OR(Calculations!$E$2=\"Orkney Health Board\",Calculations!$E$2=\"Orkney Islands Local Authority\"),$F73=1),0,IF(AND(OR(Calculations!$E$2=\"Shetland Health Board\",Calculations!$E$2=\"Western Isles Health Board\",Calculations!$E$2=\"Shetland Islands Local Authority\",Calculations!$E$2=\"Eilean Siar Local Authority\"),OR($F73=1,$F73=5)),0,prem_mort(VALUE(LEFT(Options!$B$24,2)),$C73,$E73,$F73,2016,$I73,1,$H73,$G73*$H73,Options!$B$8)))","v":588.12016706229997},{"$f":"IF(AND(OR(Calculations!$E$2=\"Orkney Health Board\",Calculations!$E$2=\"Orkney Islands Local Authority\"),$F73=1),0,IF(AND(OR(Calculations!$E$2=\"Shetland Health Board\",Calculations!$E$2=\"Western Isles Health Board\",Calculations!$E$2=\"Shetland Islands Local Authority\",Calculations!$E$2=\"Eilean Siar Local Authority\"),OR($F73=1,$F73=5)),0,prem_mort(VALUE(LEFT(Options!$B$24,2)),$C73,$E73,$F73,2016,$I73+$J73,1,$H73,$G73*$H73,Options!$B$8)))","v":584.05714489549996},2118.4358730001441,2103.8006804102729,36288.812859800084,36038.111966829842,{"$error":"#NAME?"},{"$error":"#NAME?"},2118.4358730001441,2103.8006804102729,11651397.301500792,11570903.742256502,199588470.72890046,198209615.81756413,{"$error":"#NAME?"},{"$error":"#NAME?"},11651397.301500792,11570903.742256502,5500]
[null,"Female 70-74",71.938164,86.248159999999999,"female",1,{"$f":"HLOOKUP(Calculations!$E$2,'Prevalence Rates'!$C$3:$BC$249,'Prevalence Rates'!$BD74,FALSE)","v":0.7},{"$f":"HLOOKUP(Calculations!$E$2,'Population 2016'!$C$3:$BC$249,'Population 2016'!BD74,FALSE)","v":21786},0,{"$f":"HLOOKUP(Results!E$4,Targeting!$C$3:$F$249,Targeting!$G74,FALSE)","v":3577},{"$f":"IF(AND(OR(Calculations!$E$2=\"Orkney Health Board\",Calculations!$E$2=\"Orkney Islands Local Authority\"),$F74=1),0,IF(AND(OR(Calculations!$E$2=\"Shetland Health Board\",Calculations!$E$2=\"Western Isles Health Board\",Calculations!$E$2=\"Shetland Islands Local Authority\",Calculations!$E$2=\"Eilean Siar Local Authority\"),OR($F74=1,$F74=5)),0,new_ci(VALUE(LEFT(Options!$B$24,2)),$C74,$E74,$F74,2016,$I74,1,$H74,$G74*$H74,Options!$B$8)))","v":694.71820772829994},{"$f":"IF(AND(OR(Calculations!$E$2=\"Orkney Health Board\",Calculations!$E$2=\"Orkney Islands Local Authority\"),$F74=1),0,IF(AND(OR(Calculations!$E$2=\"Shetland Health Board\",Calculations!$E$2=\"Western Isles Health Board\",Calculations!$E$2=\"Shetland Islands Local Authority\",Calculations!$E$2=\"Eilean Siar Local Authority\"),OR($F74=1,$F74=5)),0,new_ci(VALUE(LEFT(Options!$B$24,2)),$C74,$E74,$F74,2016,$I74+$J74,1,$H74,$G74*$H74,Options!$B$8)))","v":689.94849821380001},{"$f":"IF(AND(OR(Calculations!$E$2=\"Orkney Health Board\",Calculations!$E$2=\"Orkney Islands Local Authority\"),$F74=1),0,IF(AND(OR(Calculations!$E$2=\"Shetland Health Board\",Calculations!$E$2=\"Western Isles Health Board\",Calculations!$E$2=\"Shetland Islands Local Authority\",Calculations!$E$2=\"Eilean Siar Local Authority\"),OR($F74=1,$F74=5)),0,new_yllv2(VALUE(LEFT(Options!$B$24,2)),$C74,$D74,$E74,$F74,2016,$I74,1,$H74,$G74*$H74,Options!$B$8)))","v":9246.6965659908001},{"$f":"IF(AND(OR(Calculations!$E$2=\"Orkney Health Board\",Calculations!$E$2=\"Orkney Islands Local Authority\"),$F74=1),0,IF(AND(OR(Calculations!$E$2=\"Shetland Health Board\",Calculations!$E$2=\"Western Isles Health Board\",Calculations!$E$2=\"Shetland Islands Local Authority\",Calculations!$E$2=\"Eilean Siar Local Authority\"),OR($F74=1,$F74=5)),0,new_yllv2(VALUE(LEFT(Options!$B$24,2)),$C74,$D74,$E74,$F74,2016,$I74+$J74,1,$H74,$G74*$H74,Options!$B$8)))","v":9183.2117514316997},{"$f":"IF(AND(OR(Calculations!$E$2=\"Orkney Health Board\",Calculations!$E$2=\"Orkney Islands Local Authority\"),$F74=1),0,IF(AND(OR(Calculations!$E$2=\"Shetland Health Board\",Calculations!$E$2=\"Western Isles Health Board\",Calculations!$E$2=\"Shetland Islands Local Authority\",Calculations!$E$2=\"Eilean Siar Local Authority\"),OR($F74=1,$F74=5)),0,hosp_count(VALUE(LEFT(Options!$B$24,2)),$C74,$E74,$F74,2016,$I74,1,$H74,$G74*$H74, Options!$B$8)))","v":{"$error":"#NAME?"}},{"$f":"IF(AND(OR(Calculations!$E$2=\"Orkney Health Board\",Calculations!$E$2=\"Orkney Islands Local Authority\"),$F74=1),0,IF(AND(OR(Calculations!$E$2=\"Shetland Health Board\",Calculations!$E$2=\"Western Isles Health Board\",Calculations!$E$2=\"Shetland Islands Local Authority\",Calculations!$E$2=\"Eilean Siar Local Authority\"),OR($F74=1,$F74=5)),0,hosp_count(VALUE(LEFT(Options!$B$24,2)),$C74,$E74,$F74,2016,$I74+$J74,1,$H74,$G74*$H74, Options!$B$8)))","v":{"$error":"#NAME?"}},{"$f":"IF(AND(OR(Calculations!$E$2=\"Orkney Health Board\",Calculations!$E$2=\"Orkney Islands Local Authority\"),$F74=1),0,IF(AND(OR(Calculations!$E$2=\"Shetland Health Board\",Calculations!$E$2=\"Western Isles Health Board\",Calculations!$E$2=\"Shetland Islands Local Authority\",Calculations!$E$2=\"Eilean Siar Local Authority\"),OR($F74=1,$F74=5)),0,prem_mort(VALUE(LEFT(Options!$B$24,2)),$C74,$E74,$F74,2016,$I74,1,$H74,$G74*$H74,Options!$B$8)))","v":694.71820772829994},{"$f":"IF(AND(OR(Calculations!$E$2=\"Orkney Health Board\",Calculations!$E$2=\"Orkney Islands Local Authority\"),$F74=1),0,IF(AND(OR(Calculations!$E$2=\"Shetland Health Board\",Calculations!$E$2=\"Western Isles Health Board\",Calculations!$E$2=\"Shetland Islands Local Authority\",Calculations!$E$2=\"Eilean Siar Local Authority\"),OR($F74=1,$F74=5)),0,prem_mort(VALUE(LEFT(Options!$B$24,2)),$C74,$E74,$F74,2016,$I74+$J74,1,$H74,$G74*$H74,Options!$B$8)))","v":689.94849821380001},3188.8286410001833,3166.9351795363996,42443.296456397686,42151.894571888828,{"$error":"#NAME?"},{"$error":"#NAME?"},3188.8286410001833,3166.9351795363996,15944143.205000916,15834675.897681998,212216482.28198844,210759472.85944414,{"$error":"#NAME?"},{"$error":"#NAME?"},15944143.205000916,15834675.897681998,5000]
[null,"Female 75-79",76.942824999999999,87.812830000000005,"female",1,{"$f":"HLOOKUP(Calculations!$E$2,'Prevalence Rates'!$C$3:$BC$249,'Prevalence Rates'!$BD75,FALSE)","v":0.85},{"$f":"HLOOKUP(Calculations!$E$2,'Population 2016'!$C$3:$BC$249,'Population 2016'!BD75,FALSE)","v":19138},0,{"$f":"HLOOKUP(Results!E$4,Targeting!$C$3:$F$249,Targeting!$G75,FALSE)","v":3142},{"$f":"IF(AND(OR(Calculations!$E$2=\"Orkney Health Board\",Calculations!$E$2=\"Orkney Islands Local Authority\"),$F75=1),0,IF(AND(OR(Calculations!$E$2=\"Shetland Health Board\",Calculations!$E$2=\"Western Isles Health Board\",Calculations!$E$2=\"Shetland Islands Local Authority\",Calculations!$E$2=\"Eilean Siar Local Authority\"),OR($F75=1,$F75=5)),0,new_ci(VALUE(LEFT(Options!$B$24,2)),$C75,$E75,$F75,2016,$I75,1,$H75,$G75*$H75,Options!$B$8)))","v":926.20852575820004},{"$f":"IF(AND(OR(Calculations!$E$2=\"Orkney Health Board\",Calculations!$E$2=\"Orkney Islands Local Authority\"),$F75=1),0,IF(AND(OR(Calculations!$E$2=\"Shetland Health Board\",Calculations!$E$2=\"Western Isles Health Board\",Calculations!$E$2=\"Shetland Islands Local Authority\",Calculations!$E$2=\"Eilean Siar Local Authority\"),OR($F75=1,$F75=5)),0,new_ci(VALUE(LEFT(Options!$B$24,2)),$C75,$E75,$F75,2016,$I75+$J75,1,$H75,$G75*$H75,Options!$B$8)))","v":920.19525587400005},{"$f":"IF(AND(OR(Calculations!$E$2=\"Orkney Health Board\",Calculations!$E$2=\"Orkney Islands Local Authority\"),$F75=1),0,IF(AND(OR(Calculations!$E$2=\"Shetland Health Board\",Calculations!$E$2=\"Western Isles Health Board\",Calculations!$E$2=\"Shetland Islands Local Authority\",Calculations!$E$2=\"Eilean Siar Local Authority\"),OR($F75=1,$F75=5)),0,new_yllv2(VALUE(LEFT(Options!$B$24,2)),$C75,$D75,$E75,$F75,2016,$I75,1,$H75,$G75*$H75,Options!$B$8)))","v":9141.6827802760999},{"$f":"IF(AND(OR(Calculations!$E$2=\"Orkney Health Board\",Calculations!$E$2=\"Orkney Islands Local Authority\"),$F75=1),0,IF(AND(OR(Calculations!$E$2=\"Shetland Health Board\",Calculations!$E$2=\"Western Isles Health Board\",Calculations!$E$2=\"Shetland Islands Local Authority\",Calculations!$E$2=\"Eilean Siar Local Authority\"),OR($F75=1,$F75=5)),0,new_yllv2(VALUE(LEFT(Options!$B$24,2)),$C75,$D75,$E75,$F75,2016,$I75+$J75,1,$H75,$G75*$H75,Options!$B$8)))","v":9082.3317764527001},{"$f":"IF(AND(OR(Calculations!$E$2=\"Orkney Health Board\",Calculations!$E$2=\"Orkney Islands Local Authority\"),$F75=1),0,IF(AND(OR(Calculations!$E$2=\"Shetland Health Board\",Calculations!$E$2=\"Western Isles Health Board\",Calculations!$E$2=\"Shetland Islands Local Authority\",Calculations!$E$2=\"Eilean Siar Local Authority\"),OR($F75=1,$F75=5)),0,hosp_count(VALUE(LEFT(Options!$B$24,2)),$C75,$E75,$F75,2016,$I75,1,$H75,$G75*$H75, Options!$B$8)))","v":{"$error":"#NAME?"}},{"$f":"IF(AND(OR(Calculations!$E$2=\"Orkney Health Board\",Calculations!$E$2=\"Orkney Islands Local Authority\"),$F75=1),0,IF(AND(OR(Calculations!$E$2=\"Shetland Health Board\",Calculations!$E$2=\"Western Isles Health Board\",Calculations!$E$2=\"Shetland Islands Local Authority\",Calculations!$E$2=\"Eilean Siar Local Authority\"),OR($F75=1,$F75=5)),0,hosp_count(VALUE(LEFT(Options!$B$24,2)),$C75,$E75,$F75,2016,$I75+$J75,1,$H75,$G75*$H75, Options!$B$8)))","v":{"$error":"#NAME?"}},{"$f":"IF(AND(OR(Calculations!$E$2=\"Orkney Health Board\",Calculations!$E$2=\"Orkney Islands Local Authority\"),$F75=1),0,IF(AND(OR(Calculations!$E$2=\"Shetland Health Board\",Calculations!$E$2=\"Western Isles Health Board\",Calculations!$E$2=\"Shetland Islands Local Authority\",Calculations!$E$2=\"Eilean Siar Local Authority\"),OR($F75=1,$F75=5)),0,prem_mort(VALUE(LEFT(Options!$B$24,2)),$C75,$E75,$F75,2016,$I75,1,$H75,$G75*$H75,Options!$B$8)))","v":0},{"$f":"IF(AND(OR(Calculations!$E$2=\"Orkney Health Board\",Calculations!$E$2=\"Orkney Islands Local Authority\"),$F75=1),0,IF(AND(OR(Calculations!$E$2=\"Shetland Health Board\",Calculations!$E$2=\"Western Isles Health Board\",Calculations!$E$2=\"Shetland Islands Local Authority\",Calculations!$E$2=\"Eilean Siar Local Authority\"),OR($F75=1,$F75=5)),0,prem_mort(VALUE(LEFT(Options!$B$24,2)),$C75,$E75,$F75,2016,$I75+$J75,1,$H75,$G75*$H75,Options!$B$8)))","v":0},4839.6307124997384,4808.2101362420317,47767.179330526174,47457.058085759745,{"$error":"#NAME?"},{"$error":"#NAME?"},0,0,19358522.849998955,19232840.544968128,191068717.32210469,189828232.34303898,{"$error":"#NAME?"},{"$error":"#NAME?"},0,0,4000]
[null,"Female 80-84",81.856712000000002,89.736710000000002,"female",1,{"$f":"HLOOKUP(Calculations!$E$2,'Prevalence Rates'!$C$3:$BC$249,'Prevalence Rates'!$BD76,FALSE)","v":0.85},{"$f":"HLOOKUP(Calculations!$E$2,'Population 2016'!$C$3:$BC$249,'Population 2016'!BD76,FALSE)","v":14776},0,{"$f":"HLOOKUP(Results!E$4,Targeting!$C$3:$F$249,Targeting!$G76,FALSE)","v":2426},{"$f":"IF(AND(OR(Calculations!$E$2=\"Orkney Health Board\",Calculations!$E$2=\"Orkney Islands Local Authority\"),$F76=1),0,IF(AND(OR(Calculations!$E$2=\"Shetland Health Board\",Calculations!$E$2=\"Western Isles Health Board\",Calculations!$E$2=\"Shetland Islands Local Authority\",Calculations!$E$2=\"Eilean Siar Local Authority\"),OR($F76=1,$F76=5)),0,new_ci(VALUE(LEFT(Options!$B$24,2)),$C76,$E76,$F76,2016,$I76,1,$H76,$G76*$H76,Options!$B$8)))","v":1072.2156468871999},{"$f":"IF(AND(OR(Calculations!$E$2=\"Orkney Health Board\",Calculations!$E$2=\"Orkney Islands Local Authority\"),$F76=1),0,IF(AND(OR(Calculations!$E$2=\"Shetland Health Board\",Calculations!$E$2=\"Western Isles Health Board\",Calculations!$E$2=\"Shetland Islands Local Authority\",Calculations!$E$2=\"Eilean Siar Local Authority\"),OR($F76=1,$F76=5)),0,new_ci(VALUE(LEFT(Options!$B$24,2)),$C76,$E76,$F76,2016,$I76+$J76,1,$H76,$G76*$H76,Options!$B$8)))","v":1065.3477158506},{"$f":"IF(AND(OR(Calculations!$E$2=\"Orkney Health Board\",Calculations!$E$2=\"Orkney Islands Local Authority\"),$F76=1),0,IF(AND(OR(Calculations!$E$2=\"Shetland Health Board\",Calculations!$E$2=\"Western Isles Health Board\",Calculations!$E$2=\"Shetland Islands Local Authority\",Calculations!$E$2=\"Eilean Siar Local Authority\"),OR($F76=1,$F76=5)),0,new_yllv2(VALUE(LEFT(Options!$B$24,2)),$C76,$D76,$E76,$F76,2016,$I76,1,$H76,$G76*$H76,Options!$B$8)))","v":7376.8415061526002},{"$f":"IF(AND(OR(Calculations!$E$2=\"Orkney Health Board\",Calculations!$E$2=\"Orkney Islands Local Authority\"),$F76=1),0,IF(AND(OR(Calculations!$E$2=\"Shetland Health Board\",Calculations!$E$2=\"Western Isles Health Board\",Calculations!$E$2=\"Shetland Islands Local Authority\",Calculations!$E$2=\"Eilean Siar Local Authority\"),OR($F76=1,$F76=5)),0,new_yllv2(VALUE(LEFT(Options!$B$24,2)),$C76,$D76,$E76,$F76,2016,$I76+$J76,1,$H76,$G76*$H76,Options!$B$8)))","v":7329.5901543566997},{"$f":"IF(AND(OR(Calculations!$E$2=\"Orkney Health Board\",Calculations!$E$2=\"Orkney Islands Local Authority\"),$F76=1),0,IF(AND(OR(Calculations!$E$2=\"Shetland Health Board\",Calculations!$E$2=\"Western Isles Health Board\",Calculations!$E$2=\"Shetland Islands Local Authority\",Calculations!$E$2=\"Eilean Siar Local Authority\"),OR($F76=1,$F76=5)),0,hosp_count(VALUE(LEFT(Options!$B$24,2)),$C76,$E76,$F76,2016,$I76,1,$H76,$G76*$H76, Options!$B$8)))","v":{"$error":"#NAME?"}},{"$f":"IF(AND(OR(Calculations!$E$2=\"Orkney Health Board\",Calculations!$E$2=\"Orkney Islands Local Authority\"),$F76=1),0,IF(AND(OR(Calculations!$E$2=\"Shetland Health Board\",Calculations!$E$2=\"Western Isles Health Board\",Calculations!$E$2=\"Shetland Islands Local Authority\",Calculations!$E$2=\"Eilean Siar Local Authority\"),OR($F76=1,$F76=5)),0,hosp_count(VALUE(LEFT(Options!$B$24,2)),$C76,$E76,$F76,2016,$I76+$J76,1,$H76,$G76*$H76, Options!$B$8)))","v":{"$error":"#NAME?"}},{"$f":"IF(AND(OR(Calculations!$E$2=\"Orkney Health Board\",Calculations!$E$2=\"Orkney Islands Local Authority\"),$F76=1),0,IF(AND(OR(Calculations!$E$2=\"Shetland Health Board\",Calculations!$E$2=\"Western Isles Health Board\",Calculations!$E$2=\"Shetland Islands Local Authority\",Calculations!$E$2=\"Eilean Siar Local Authority\"),OR($F76=1,$F76=5)),0,prem_mort(VALUE(LEFT(Options!$B$24,2)),$C76,$E76,$F76,2016,$I76,1,$H76,$G76*$H76,Options!$B$8)))","v":0},{"$f":"IF(AND(OR(Calculations!$E$2=\"Orkney Health Board\",Calculations!$E$2=\"Orkney Islands Local Authority\"),$F76=1),0,IF(AND(OR(Calculations!$E$2=\"Shetland Health Board\",Calculations!$E$2=\"Western Isles Health Board\",Calculations!$E$2=\"Shetland Islands Local Authority\",Calculations!$E$2=\"Eilean Siar Local Authority\"),OR($F76=1,$F76=5)),0,prem_mort(VALUE(LEFT(Options!$B$24,2)),$C76,$E76,$F76,2016,$I76+$J76,1,$H76,$G76*$H76,Options!$B$8)))","v":0},7256.4675614997286,7209.9872485828373,49924.482310182728,49604.69785027545,{"$error":"#NAME?"},{"$error":"#NAME?"},0,0,18141168.903749321,18024968.121457092,124811205.77545682,124011744.62568863,{"$error":"#NAME?"},{"$error":"#NAME?"},0,0,2500]
[null,"Female 85-89",86.730819999999994,92.220819999999989,"female",1,{"$f":"HLOOKUP(Calculations!$E$2,'Prevalence Rates'!$C$3:$BC$249,'Prevalence Rates'!$BD77,FALSE)","v":0.85},{"$f":"HLOOKUP(Calculations!$E$2,'Population 2016'!$C$3:$BC$249,'Population 2016'!BD77,FALSE)","v":8869},0,{"$f":"HLOOKUP(Results!E$4,Targeting!$C$3:$F$249,Targeting!$G77,FALSE)","v":1456},{"$f":"IF(AND(OR(Calculations!$E$2=\"Orkney Health Board\",Calculations!$E$2=\"Orkney Islands Local Authority\"),$F77=1),0,IF(AND(OR(Calculations!$E$2=\"Shetland Health Board\",Calculations!$E$2=\"Western Isles Health Board\",Calculations!$E$2=\"Shetland Islands Local Authority\",Calculations!$E$2=\"Eilean Siar Local Authority\"),OR($F77=1,$F77=5)),0,new_ci(VALUE(LEFT(Options!$B$24,2)),$C77,$E77,$F77,2016,$I77,1,$H77,$G77*$H77,Options!$B$8)))","v":955.58762736220001},{"$f":"IF(AND(OR(Calculations!$E$2=\"Orkney Health Board\",Calculations!$E$2=\"Orkney Islands Local Authority\"),$F77=1),0,IF(AND(OR(Calculations!$E$2=\"Shetland Health Board\",Calculations!$E$2=\"Western Isles Health Board\",Calculations!$E$2=\"Shetland Islands Local Authority\",Calculations!$E$2=\"Eilean Siar Local Authority\"),OR($F77=1,$F77=5)),0,new_ci(VALUE(LEFT(Options!$B$24,2)),$C77,$E77,$F77,2016,$I77+$J77,1,$H77,$G77*$H77,Options!$B$8)))","v":949.59146875739998},{"$f":"IF(AND(OR(Calculations!$E$2=\"Orkney Health Board\",Calculations!$E$2=\"Orkney Islands Local Authority\"),$F77=1),0,IF(AND(OR(Calculations!$E$2=\"Shetland Health Board\",Calculations!$E$2=\"Western Isles Health Board\",Calculations!$E$2=\"Shetland Islands Local Authority\",Calculations!$E$2=\"Eilean Siar Local Authority\"),OR($F77=1,$F77=5)),0,new_yllv2(VALUE(LEFT(Options!$B$24,2)),$C77,$D77,$E77,$F77,2016,$I77,1,$H77,$G77*$H77,Options!$B$8)))","v":4290.5884468562999},{"$f":"IF(AND(OR(Calculations!$E$2=\"Orkney Health Board\",Calculations!$E$2=\"Orkney Islands Local Authority\"),$F77=1),0,IF(AND(OR(Calculations!$E$2=\"Shetland Health Board\",Calculations!$E$2=\"Western Isles Health Board\",Calculations!$E$2=\"Shetland Islands Local Authority\",Calculations!$E$2=\"Eilean Siar Local Authority\"),OR($F77=1,$F77=5)),0,new_yllv2(VALUE(LEFT(Options!$B$24,2)),$C77,$D77,$E77,$F77,2016,$I77+$J77,1,$H77,$G77*$H77,Options!$B$8)))","v":4263.6656947207002},{"$f":"IF(AND(OR(Calculations!$E$2=\"Orkney Health Board\",Calculations!$E$2=\"Orkney Islands Local Authority\"),$F77=1),0,IF(AND(OR(Calculations!$E$2=\"Shetland Health Board\",Calculations!$E$2=\"Western Isles Health Board\",Calculations!$E$2=\"Shetland Islands Local Authority\",Calculations!$E$2=\"Eilean Siar Local Authority\"),OR($F77=1,$F77=5)),0,hosp_count(VALUE(LEFT(Options!$B$24,2)),$C77,$E77,$F77,2016,$I77,1,$H77,$G77*$H77, Options!$B$8)))","v":{"$error":"#NAME?"}},{"$f":"IF(AND(OR(Calculations!$E$2=\"Orkney Health Board\",Calculations!$E$2=\"Orkney Islands Local Authority\"),$F77=1),0,IF(AND(OR(Calculations!$E$2=\"Shetland Health Board\",Calculations!$E$2=\"Western Isles Health Board\",Calculations!$E$2=\"Shetland Islands Local Authority\",Calculations!$E$2=\"Eilean Siar Local Authority\"),OR($F77=1,$F77=5)),0,hosp_count(VALUE(LEFT(Options!$B$24,2)),$C77,$E77,$F77,2016,$I77+$J77,1,$H77,$G77*$H77, Options!$B$8)))","v":{"$error":"#NAME?"}},{"$f":"IF(AND(OR(Calculations!$E$2=\"Orkney Health Board\",Calculations!$E$2=\"Orkney Islands Local Authority\"),$F77=1),0,IF(AND(OR(Calculations!$E$2=\"Shetland Health Board\",Calculations!$E$2=\"Western Isles Health Board\",Calculations!$E$2=\"Shetland Islands Local Authority\",Calculations!$E$2=\"Eilean Siar Local Authority\"),OR($F77=1,$F77=5)),0,prem_mort(VALUE(LEFT(Options!$B$24,2)),$C77,$E77,$F77,2016,$I77,1,$H77,$G77*$H77,Options!$B$8)))","v":0},{"$f":"IF(AND(OR(Calculations!$E$2=\"Orkney Health Board\",Calculations!$E$2=\"Orkney Islands Local Authority\"),$F77=1),0,IF(AND(OR(Calculations!$E$2=\"Shetland Health Board\",Calculations!$E$2=\"Western Isles Health Board\",Calculations!$E$2=\"Shetland Islands Local Authority\",Calculations!$E$2=\"Eilean Siar Local Authority\"),OR($F77=1,$F77=5)),0,prem_mort(VALUE(LEFT(Options!$B$24,2)),$C77,$E77,$F77,2016,$I77+$J77,1,$H77,$G77*$H77,Options!$B$8)))","v":0},10774.468681499606,10706.860624167324,48377.364379933475,48073.804202510997,{"$error":"#NAME?"},{"$error":"#NAME?"},0,0,16161703.022249408,16060290.936250987,72566046.569900215,72110706.303766489,{"$error":"#NAME?"},{"$error":"#NAME?"},0,0,1500]
[null,"Female 90+",92.779342999999997,96.279340000000005,"female",1,{"$f":"HLOOKUP(Calculations!$E$2,'Prevalence Rates'!$C$3:$BC$249,'Prevalence Rates'!$BD78,FALSE)","v":0.85},{"$f":"HLOOKUP(Calculations!$E$2,'Population 2016'!$C$3:$BC$249,'Population 2016'!BD78,FALSE)","v":4825},0,{"$f":"HLOOKUP(Results!E$4,Targeting!$C$3:$F$249,Targeting!$G78,FALSE)","v":792},{"$f":"IF(AND(OR(Calculations!$E$2=\"Orkney Health Board\",Calculations!$E$2=\"Orkney Islands Local Authority\"),$F78=1),0,IF(AND(OR(Calculations!$E$2=\"Shetland Health Board\",Calculations!$E$2=\"Western Isles Health Board\",Calculations!$E$2=\"Shetland Islands Local Authority\",Calculations!$E$2=\"Eilean Siar Local Authority\"),OR($F78=1,$F78=5)),0,new_ci(VALUE(LEFT(Options!$B$24,2)),$C78,$E78,$F78,2016,$I78,1,$H78,$G78*$H78,Options!$B$8)))","v":837.31978944089997},{"$f":"IF(AND(OR(Calculations!$E$2=\"Orkney Health Board\",Calculations!$E$2=\"Orkney Islands Local Authority\"),$F78=1),0,IF(AND(OR(Calculations!$E$2=\"Shetland Health Board\",Calculations!$E$2=\"Western Isles Health Board\",Calculations!$E$2=\"Shetland Islands Local Authority\",Calculations!$E$2=\"Eilean Siar Local Authority\"),OR($F78=1,$F78=5)),0,new_ci(VALUE(LEFT(Options!$B$24,2)),$C78,$E78,$F78,2016,$I78+$J78,1,$H78,$G78*$H78,Options!$B$8)))","v":832.27741483770001},{"$f":"IF(AND(OR(Calculations!$E$2=\"Orkney Health Board\",Calculations!$E$2=\"Orkney Islands Local Authority\"),$F78=1),0,IF(AND(OR(Calculations!$E$2=\"Shetland Health Board\",Calculations!$E$2=\"Western Isles Health Board\",Calculations!$E$2=\"Shetland Islands Local Authority\",Calculations!$E$2=\"Eilean Siar Local Authority\"),OR($F78=1,$F78=5)),0,new_yllv2(VALUE(LEFT(Options!$B$24,2)),$C78,$D78,$E78,$F78,2016,$I78,1,$H78,$G78*$H78,Options!$B$8)))","v":2093.2969616429},{"$f":"IF(AND(OR(Calculations!$E$2=\"Orkney Health Board\",Calculations!$E$2=\"Orkney Islands Local Authority\"),$F78=1),0,IF(AND(OR(Calculations!$E$2=\"Shetland Health Board\",Calculations!$E$2=\"Western Isles Health Board\",Calculations!$E$2=\"Shetland Islands Local Authority\",Calculations!$E$2=\"Eilean Siar Local Authority\"),OR($F78=1,$F78=5)),0,new_yllv2(VALUE(LEFT(Options!$B$24,2)),$C78,$D78,$E78,$F78,2016,$I78+$J78,1,$H78,$G78*$H78,Options!$B$8)))","v":2080.6910402620001},{"$f":"IF(AND(OR(Calculations!$E$2=\"Orkney Health Board\",Calculations!$E$2=\"Orkney Islands Local Authority\"),$F78=1),0,IF(AND(OR(Calculations!$E$2=\"Shetland Health Board\",Calculations!$E$2=\"Western Isles Health Board\",Calculations!$E$2=\"Shetland Islands Local Authority\",Calculations!$E$2=\"Eilean Siar Local Authority\"),OR($F78=1,$F78=5)),0,hosp_count(VALUE(LEFT(Options!$B$24,2)),$C78,$E78,$F78,2016,$I78,1,$H78,$G78*$H78, Options!$B$8)))","v":{"$error":"#NAME?"}},{"$f":"IF(AND(OR(Calculations!$E$2=\"Orkney Health Board\",Calculations!$E$2=\"Orkney Islands Local Authority\"),$F78=1),0,IF(AND(OR(Calculations!$E$2=\"Shetland Health Board\",Calculations!$E$2=\"Western Isles Health Board\",Calculations!$E$2=\"Shetland Islands Local Authority\",Calculations!$E$2=\"Eilean Siar Local Authority\"),OR($F78=1,$F78=5)),0,hosp_count(VALUE(LEFT(Options!$B$24,2)),$C78,$E78,$F78,2016,$I78+$J78,1,$H78,$G78*$H78, Options!$B$8)))","v":{"$error":"#NAME?"}},{"$f":"IF(AND(OR(Calculations!$E$2=\"Orkney Health Board\",Calculations!$E$2=\"Orkney Islands Local Authority\"),$F78=1),0,IF(AND(OR(Calculations!$E$2=\"Shetland Health Board\",Calculations!$E$2=\"Western Isles Health Board\",Calculations!$E$2=\"Shetland Islands Local Authority\",Calculations!$E$2=\"Eilean Siar Local Authority\"),OR($F78=1,$F78=5)),0,prem_mort(VALUE(LEFT(Options!$B$24,2)),$C78,$E78,$F78,2016,$I78,1,$H78,$G78*$H78,Options!$B$8)))","v":0},{"$f":"IF(AND(OR(Calculations!$E$2=\"Orkney Health Board\",Calculations!$E$2=\"Orkney Islands Local Authority\"),$F78=1),0,IF(AND(OR(Calculations!$E$2=\"Shetland Health Board\",Calculations!$E$2=\"Western Isles Health Board\",Calculations!$E$2=\"Shetland Islands Local Authority\",Calculations!$E$2=\"Eilean Siar Local Authority\"),OR($F78=1,$F78=5)),0,prem_mort(VALUE(LEFT(Options!$B$24,2)),$C78,$E78,$F78,2016,$I78+$J78,1,$H78,$G78*$H78,Options!$B$8)))","v":0},17353.778019500518,17249.2728463772,43384.392987417617,43123.130368124359,{"$error":"#NAME?"},{"$error":"#NAME?"},0,0,17353778.019500516,17249272.846377201,43384392.987417616,43123130.368124358,{"$error":"#NAME?"},{"$error":"#NAME?"},0,0,1000]
[null,"Male 0-4",2.0320822999999999,77.402082000000007,"male",1,{"$f":"HLOOKUP(Calculations!$E$2,'Prevalence Rates'!$C$3:$BC$249,'Prevalence Rates'!$BD79,FALSE)","v":0},{"$f":"HLOOKUP(Calculations!$E$2,'Population 2016'!$C$3:$BC$249,'Population 2016'!BD79,FALSE)","v":0},0,{"$f":"HLOOKUP(Results!E$4,Targeting!$C$3:$F$249,Targeting!$G79,FALSE)","v":0},{"$f":"IF(AND(OR(Calculations!$E$2=\"Orkney Health Board\",Calculations!$E$2=\"Orkney Islands Local Authority\"),$F79=1),0,IF(AND(OR(Calculations!$E$2=\"Shetland Health Board\",Calculations!$E$2=\"Western Isles Health Board\",Calculations!$E$2=\"Shetland Islands Local Authority\",Calculations!$E$2=\"Eilean Siar Local Authority\"),OR($F79=1,$F79=5)),0,new_ci(VALUE(LEFT(Options!$B$24,2)),$C79,$E79,$F79,2016,$I79,1,$H79,$G79*$H79,Options!$B$8)))","v":{"$error":"#VALUE!"}},{"$f":"IF(AND(OR(Calculations!$E$2=\"Orkney Health Board\",Calculations!$E$2=\"Orkney Islands Local Authority\"),$F79=1),0,IF(AND(OR(Calculations!$E$2=\"Shetland Health Board\",Calculations!$E$2=\"Western Isles Health Board\",Calculations!$E$2=\"Shetland Islands Local Authority\",Calculations!$E$2=\"Eilean Siar Local Authority\"),OR($F79=1,$F79=5)),0,new_ci(VALUE(LEFT(Options!$B$24,2)),$C79,$E79,$F79,2016,$I79+$J79,1,$H79,$G79*$H79,Options!$B$8)))","v":{"$error":"#VALUE!"}},{"$f":"IF(AND(OR(Calculations!$E$2=\"Orkney Health Board\",Calculations!$E$2=\"Orkney Islands Local Authority\"),$F79=1),0,IF(AND(OR(Calculations!$E$2=\"Shetland Health Board\",Calculations!$E$2=\"Western Isles Health Board\",Calculations!$E$2=\"Shetland Islands Local Authority\",Calculations!$E$2=\"Eilean Siar Local Authority\"),OR($F79=1,$F79=5)),0,new_yllv2(VALUE(LEFT(Options!$B$24,2)),$C79,$D79,$E79,$F79,2016,$I79,1,$H79,$G79*$H79,Options!$B$8)))","v":{"$error":"#VALUE!"}},{"$f":"IF(AND(OR(Calculations!$E$2=\"Orkney Health Board\",Calculations!$E$2=\"Orkney Islands Local Authority\"),$F79=1),0,IF(AND(OR(Calculations!$E$2=\"Shetland Health Board\",Calculations!$E$2=\"Western Isles Health Board\",Calculations!$E$2=\"Shetland Islands Local Authority\",Calculations!$E$2=\"Eilean Siar Local Authority\"),OR($F79=1,$F79=5)),0,new_yllv2(VALUE(LEFT(Options!$B$24,2)),$C79,$D79,$E79,$F79,2016,$I79+$J79,1,$H79,$G79*$H79,Options!$B$8)))","v":{"$error":"#VALUE!"}},{"$f":"IF(AND(OR(Calculations!$E$2=\"Orkney Health Board\",Calculations!$E$2=\"Orkney Islands Local Authority\"),$F79=1),0,IF(AND(OR(Calculations!$E$2=\"Shetland Health Board\",Calculations!$E$2=\"Western Isles Health Board\",Calculations!$E$2=\"Shetland Islands Local Authority\",Calculations!$E$2=\"Eilean Siar Local Authority\"),OR($F79=1,$F79=5)),0,hosp_count(VALUE(LEFT(Options!$B$24,2)),$C79,$E79,$F79,2016,$I79,1,$H79,$G79*$H79, Options!$B$8)))","v":{"$error":"#NAME?"}},{"$f":"IF(AND(OR(Calculations!$E$2=\"Orkney Health Board\",Calculations!$E$2=\"Orkney Islands Local Authority\"),$F79=1),0,IF(AND(OR(Calculations!$E$2=\"Shetland Health Board\",Calculations!$E$2=\"Western Isles Health Board\",Calculations!$E$2=\"Shetland Islands Local Authority\",Calculations!$E$2=\"Eilean Siar Local Authority\"),OR($F79=1,$F79=5)),0,hosp_count(VALUE(LEFT(Options!$B$24,2)),$C79,$E79,$F79,2016,$I79+$J79,1,$H79,$G79*$H79, Options!$B$8)))","v":{"$error":"#NAME?"}},{"$f":"IF(AND(OR(Calculations!$E$2=\"Orkney Health Board\",Calculations!$E$2=\"Orkney Islands Local Authority\"),$F79=1),0,IF(AND(OR(Calculations!$E$2=\"Shetland Health Board\",Calculations!$E$2=\"Western Isles Health Board\",Calculations!$E$2=\"Shetland Islands Local Authority\",Calculations!$E$2=\"Eilean Siar Local Authority\"),OR($F79=1,$F79=5)),0,prem_mort(VALUE(LEFT(Options!$B$24,2)),$C79,$E79,$F79,2016,$I79,1,$H79,$G79*$H79,Options!$B$8)))","v":{"$error":"#VALUE!"}},{"$f":"IF(AND(OR(Calculations!$E$2=\"Orkney Health Board\",Calculations!$E$2=\"Orkney Islands Local Authority\"),$F79=1),0,IF(AND(OR(Calculations!$E$2=\"Shetland Health Board\",Calculations!$E$2=\"Western Isles Health Board\",Calculations!$E$2=\"Shetland Islands Local Authority\",Calculations!$E$2=\"Eilean Siar Local Authority\"),OR($F79=1,$F79=5)),0,prem_mort(VALUE(LEFT(Options!$B$24,2)),$C79,$E79,$F79,2016,$I79+$J79,1,$H79,$G79*$H79,Options!$B$8)))","v":{"$error":"#VALUE!"}},{"$error":"#VALUE!"},{"$error":"#VALUE!"},{"$error":"#VALUE!"},{"$error":"#VALUE!"},{"$error":"#NAME?"},{"$error":"#NAME?"},{"$error":"#VALUE!"},{"$error":"#VALUE!"},{"$error":"#VALUE!"},{"$error":"#VALUE!"},{"$error":"#VALUE!"},{"$error":"#VALUE!"},{"$error":"#NAME?"},{"$error":"#NAME?"},{"$error":"#VALUE!"},{"$error":"#VALUE!"},5000]
[null,"Male 5-9",6.9784756000000003,77.398476000000002,"male",1,{"$f":"HLOOKUP(Calculations!$E$2,'Prevalence Rates'!$C$3:$BC$249,'Prevalence Rates'!$BD80,FALSE)","v":0},{"$f":"HLOOKUP(Calculations!$E$2,'Population 2016'!$C$3:$BC$249,'Population 2016'!BD80,FALSE)","v":0},0,{"$f":"HLOOKUP(Results!E$4,Targeting!$C$3:$F$249,Targeting!$G80,FALSE)","v":0},{"$f":"IF(AND(OR(Calculations!$E$2=\"Orkney Health Board\",Calculations!$E$2=\"Orkney Islands Local Authority\"),$F80=1),0,IF(AND(OR(Calculations!$E$2=\"Shetland Health Board\",Calculations!$E$2=\"Western Isles Health Board\",Calculations!$E$2=\"Shetland Islands Local Authority\",Calculations!$E$2=\"Eilean Siar Local Authority\"),OR($F80=1,$F80=5)),0,new_ci(VALUE(LEFT(Options!$B$24,2)),$C80,$E80,$F80,2016,$I80,1,$H80,$G80*$H80,Options!$B$8)))","v":{"$error":"#VALUE!"}},{"$f":"IF(AND(OR(Calculations!$E$2=\"Orkney Health Board\",Calculations!$E$2=\"Orkney Islands Local Authority\"),$F80=1),0,IF(AND(OR(Calculations!$E$2=\"Shetland Health Board\",Calculations!$E$2=\"Western Isles Health Board\",Calculations!$E$2=\"Shetland Islands Local Authority\",Calculations!$E$2=\"Eilean Siar Local Authority\"),OR($F80=1,$F80=5)),0,new_ci(VALUE(LEFT(Options!$B$24,2)),$C80,$E80,$F80,2016,$I80+$J80,1,$H80,$G80*$H80,Options!$B$8)))","v":{"$error":"#VALUE!"}},{"$f":"IF(AND(OR(Calculations!$E$2=\"Orkney Health Board\",Calculations!$E$2=\"Orkney Islands Local Authority\"),$F80=1),0,IF(AND(OR(Calculations!$E$2=\"Shetland Health Board\",Calculations!$E$2=\"Western Isles Health Board\",Calculations!$E$2=\"Shetland Islands Local Authority\",Calculations!$E$2=\"Eilean Siar Local Authority\"),OR($F80=1,$F80=5)),0,new_yllv2(VALUE(LEFT(Options!$B$24,2)),$C80,$D80,$E80,$F80,2016,$I80,1,$H80,$G80*$H80,Options!$B$8)))","v":{"$error":"#VALUE!"}},{"$f":"IF(AND(OR(Calculations!$E$2=\"Orkney Health Board\",Calculations!$E$2=\"Orkney Islands Local Authority\"),$F80=1),0,IF(AND(OR(Calculations!$E$2=\"Shetland Health Board\",Calculations!$E$2=\"Western Isles Health Board\",Calculations!$E$2=\"Shetland Islands Local Authority\",Calculations!$E$2=\"Eilean Siar Local Authority\"),OR($F80=1,$F80=5)),0,new_yllv2(VALUE(LEFT(Options!$B$24,2)),$C80,$D80,$E80,$F80,2016,$I80+$J80,1,$H80,$G80*$H80,Options!$B$8)))","v":{"$error":"#VALUE!"}},{"$f":"IF(AND(OR(Calculations!$E$2=\"Orkney Health Board\",Calculations!$E$2=\"Orkney Islands Local Authority\"),$F80=1),0,IF(AND(OR(Calculations!$E$2=\"Shetland Health Board\",Calculations!$E$2=\"Western Isles Health Board\",Calculations!$E$2=\"Shetland Islands Local Authority\",Calculations!$E$2=\"Eilean Siar Local Authority\"),OR($F80=1,$F80=5)),0,hosp_count(VALUE(LEFT(Options!$B$24,2)),$C80,$E80,$F80,2016,$I80,1,$H80,$G80*$H80, Options!$B$8)))","v":{"$error":"#NAME?"}},{"$f":"IF(AND(OR(Calculations!$E$2=\"Orkney Health Board\",Calculations!$E$2=\"Orkney Islands Local Authority\"),$F80=1),0,IF(AND(OR(Calculations!$E$2=\"Shetland Health Board\",Calculations!$E$2=\"Western Isles Health Board\",Calculations!$E$2=\"Shetland Islands Local Authority\",Calculations!$E$2=\"Eilean Siar Local Authority\"),OR($F80=1,$F80=5)),0,hosp_count(VALUE(LEFT(Options!$B$24,2)),$C80,$E80,$F80,2016,$I80+$J80,1,$H80,$G80*$H80, Options!$B$8)))","v":{"$error":"#NAME?"}},{"$f":"IF(AND(OR(Calculations!$E$2=\"Orkney Health Board\",Calculations!$E$2=\"Orkney Islands Local Authority\"),$F80=1),0,IF(AND(OR(Calculations!$E$2=\"Shetland Health Board\",Calculations!$E$2=\"Western Isles Health Board\",Calculations!$E$2=\"Shetland Islands Local Authority\",Calculations!$E$2=\"Eilean Siar Local Authority\"),OR($F80=1,$F80=5)),0,prem_mort(VALUE(LEFT(Options!$B$24,2)),$C80,$E80,$F80,2016,$I80,1,$H80,$G80*$H80,Options!$B$8)))","v":{"$error":"#VALUE!"}},{"$f":"IF(AND(OR(Calculations!$E$2=\"Orkney Health Board\",Calculations!$E$2=\"Orkney Islands Local Authority\"),$F80=1),0,IF(AND(OR(Calculations!$E$2=\"Shetland Health Board\",Calculations!$E$2=\"Western Isles Health Board\",Calculations!$E$2=\"Shetland Islands Local Authority\",Calculations!$E$2=\"Eilean Siar Local Authority\"),OR($F80=1,$F80=5)),0,prem_mort(VALUE(LEFT(Options!$B$24,2)),$C80,$E80,$F80,2016,$I80+$J80,1,$H80,$G80*$H80,Options!$B$8)))","v":{"$error":"#VALUE!"}},{"$error":"#VALUE!"},{"$error":"#VALUE!"},{"$error":"#VALUE!"},{"$error":"#VALUE!"},{"$error":"#NAME?"},{"$error":"#NAME?"},{"$error":"#VALUE!"},{"$error":"#VALUE!"},{"$error":"#VALUE!"},{"$error":"#VALUE!"},{"$error":"#VALUE!"},{"$error":"#VALUE!"},{"$error":"#NAME?"},{"$error":"#NAME?"},{"$error":"#VALUE!"},{"$error":"#VALUE!"},5500]
[null,"Male 10-15",12.471144000000001,77.921140000000008,"male",1,{"$f":"HLOOKUP(Calculations!$E$2,'Prevalence Rates'!$C$3:$BC$249,'Prevalence Rates'!$BD81,FALSE)","v":0},{"$f":"HLOOKUP(Calculations!$E$2,'Population 2016'!$C$3:$BC$249,'Population 2016'!BD81,FALSE)","v":0},0,{"$f":"HLOOKUP(Results!E$4,Targeting!$C$3:$F$249,Targeting!$G81,FALSE)","v":0},{"$f":"IF(AND(OR(Calculations!$E$2=\"Orkney Health Board\",Calculations!$E$2=\"Orkney Islands Local Authority\"),$F81=1),0,IF(AND(OR(Calculations!$E$2=\"Shetland Health Board\",Calculations!$E$2=\"Western Isles Health Board\",Calculations!$E$2=\"Shetland Islands Local Authority\",Calculations!$E$2=\"Eilean Siar Local Authority\"),OR($F81=1,$F81=5)),0,new_ci(VALUE(LEFT(Options!$B$24,2)),$C81,$E81,$F81,2016,$I81,1,$H81,$G81*$H81,Options!$B$8)))","v":{"$error":"#VALUE!"}},{"$f":"IF(AND(OR(Calculations!$E$2=\"Orkney Health Board\",Calculations!$E$2=\"Orkney Islands Local Authority\"),$F81=1),0,IF(AND(OR(Calculations!$E$2=\"Shetland Health Board\",Calculations!$E$2=\"Western Isles Health Board\",Calculations!$E$2=\"Shetland Islands Local Authority\",Calculations!$E$2=\"Eilean Siar Local Authority\"),OR($F81=1,$F81=5)),0,new_ci(VALUE(LEFT(Options!$B$24,2)),$C81,$E81,$F81,2016,$I81+$J81,1,$H81,$G81*$H81,Options!$B$8)))","v":{"$error":"#VALUE!"}},{"$f":"IF(AND(OR(Calculations!$E$2=\"Orkney Health Board\",Calculations!$E$2=\"Orkney Islands Local Authority\"),$F81=1),0,IF(AND(OR(Calculations!$E$2=\"Shetland Health Board\",Calculations!$E$2=\"Western Isles Health Board\",Calculations!$E$2=\"Shetland Islands Local Authority\",Calculations!$E$2=\"Eilean Siar Local Authority\"),OR($F81=1,$F81=5)),0,new_yllv2(VALUE(LEFT(Options!$B$24,2)),$C81,$D81,$E81,$F81,2016,$I81,1,$H81,$G81*$H81,Options!$B$8)))","v":{"$error":"#VALUE!"}},{"$f":"IF(AND(OR(Calculations!$E$2=\"Orkney Health Board\",Calculations!$E$2=\"Orkney Islands Local Authority\"),$F81=1),0,IF(AND(OR(Calculations!$E$2=\"Shetland Health Board\",Calculations!$E$2=\"Western Isles Health Board\",Calculations!$E$2=\"Shetland Islands Local Authority\",Calculations!$E$2=\"Eilean Siar Local Authority\"),OR($F81=1,$F81=5)),0,new_yllv2(VALUE(LEFT(Options!$B$24,2)),$C81,$D81,$E81,$F81,2016,$I81+$J81,1,$H81,$G81*$H81,Options!$B$8)))","v":{"$error":"#VALUE!"}},{"$f":"IF(AND(OR(Calculations!$E$2=\"Orkney Health Board\",Calculations!$E$2=\"Orkney Islands Local Authority\"),$F81=1),0,IF(AND(OR(Calculations!$E$2=\"Shetland Health Board\",Calculations!$E$2=\"Western Isles Health Board\",Calculations!$E$2=\"Shetland Islands Local Authority\",Calculations!$E$2=\"Eilean Siar Local Authority\"),OR($F81=1,$F81=5)),0,hosp_count(VALUE(LEFT(Options!$B$24,2)),$C81,$E81,$F81,2016,$I81,1,$H81,$G81*$H81, Options!$B$8)))","v":{"$error":"#NAME?"}},{"$f":"IF(AND(OR(Calculations!$E$2=\"Orkney Health Board\",Calculations!$E$2=\"Orkney Islands Local Authority\"),$F81=1),0,IF(AND(OR(Calculations!$E$2=\"Shetland Health Board\",Calculations!$E$2=\"Western Isles Health Board\",Calculations!$E$2=\"Shetland Islands Local Authority\",Calculations!$E$2=\"Eilean Siar Local Authority\"),OR($F81=1,$F81=5)),0,hosp_count(VALUE(LEFT(Options!$B$24,2)),$C81,$E81,$F81,2016,$I81+$J81,1,$H81,$G81*$H81, Options!$B$8)))","v":{"$error":"#NAME?"}},{"$f":"IF(AND(OR(Calculations!$E$2=\"Orkney Health Board\",Calculations!$E$2=\"Orkney Islands Local Authority\"),$F81=1),0,IF(AND(OR(Calculations!$E$2=\"Shetland Health Board\",Calculations!$E$2=\"Western Isles Health Board\",Calculations!$E$2=\"Shetland Islands Local Authority\",Calculations!$E$2=\"Eilean Siar Local Authority\"),OR($F81=1,$F81=5)),0,prem_mort(VALUE(LEFT(Options!$B$24,2)),$C81,$E81,$F81,2016,$I81,1,$H81,$G81*$H81,Options!$B$8)))","v":{"$error":"#VALUE!"}},{"$f":"IF(AND(OR(Calculations!$E$2=\"Orkney Health Board\",Calculations!$E$2=\"Orkney Islands Local Authority\"),$F81=1),0,IF(AND(OR(Calculations!$E$2=\"Shetland Health Board\",Calculations!$E$2=\"Western Isles Health Board\",Calculations!$E$2=\"Shetland Islands Local Authority\",Calculations!$E$2=\"Eilean Siar Local Authority\"),OR($F81=1,$F81=5)),0,prem_mort(VALUE(LEFT(Options!$B$24,2)),$C81,$E81,$F81,2016,$I81+$J81,1,$H81,$G81*$H81,Options!$B$8)))","v":{"$error":"#VALUE!"}},{"$error":"#VALUE!"},{"$error":"#VALUE!"},{"$error":"#VALUE!"},{"$error":"#VALUE!"},{"$error":"#NAME?"},{"$error":"#NAME?"},{"$error":"#VALUE!"},{"$error":"#VALUE!"},{"$error":"#VALUE!"},{"$error":"#VALUE!"},{"$error":"#VALUE!"},{"$error":"#VALUE!"},{"$error":"#NAME?"},{"$error":"#NAME?"},{"$error":"#VALUE!"},{"$error":"#VALUE!"},6600]
[null,"Male 16-19",17.556318000000001,77.07632000000001,"male",1,{"$f":"HLOOKUP(Calculations!$E$2,'Prevalence Rates'!$C$3:$BC$249,'Prevalence Rates'!$BD82,FALSE)","v":0.26},{"$f":"HLOOKUP(Calculations!$E$2,'Population 2016'!$C$3:$BC$249,'Population 2016'!BD82,FALSE)","v":25359},0,{"$f":"HLOOKUP(Results!E$4,Targeting!$C$3:$F$249,Targeting!$G82,FALSE)","v":4164},{"$f":"IF(AND(OR(Calculations!$E$2=\"Orkney Health Board\",Calculations!$E$2=\"Orkney Islands Local Authority\"),$F82=1),0,IF(AND(OR(Calculations!$E$2=\"Shetland Health Board\",Calculations!$E$2=\"Western Isles Health Board\",Calculations!$E$2=\"Shetland Islands Local Authority\",Calculations!$E$2=\"Eilean Siar Local Authority\"),OR($F82=1,$F82=5)),0,new_ci(VALUE(LEFT(Options!$B$24,2)),$C82,$E82,$F82,2016,$I82,1,$H82,$G82*$H82,Options!$B$8)))","v":19.1722475925},{"$f":"IF(AND(OR(Calculations!$E$2=\"Orkney Health Board\",Calculations!$E$2=\"Orkney Islands Local Authority\"),$F82=1),0,IF(AND(OR(Calculations!$E$2=\"Shetland Health Board\",Calculations!$E$2=\"Western Isles Health Board\",Calculations!$E$2=\"Shetland Islands Local Authority\",Calculations!$E$2=\"Eilean Siar Local Authority\"),OR($F82=1,$F82=5)),0,new_ci(VALUE(LEFT(Options!$B$24,2)),$C82,$E82,$F82,2016,$I82+$J82,1,$H82,$G82*$H82,Options!$B$8)))","v":19.015438431300002},{"$f":"IF(AND(OR(Calculations!$E$2=\"Orkney Health Board\",Calculations!$E$2=\"Orkney Islands Local Authority\"),$F82=1),0,IF(AND(OR(Calculations!$E$2=\"Shetland Health Board\",Calculations!$E$2=\"Western Isles Health Board\",Calculations!$E$2=\"Shetland Islands Local Authority\",Calculations!$E$2=\"Eilean Siar Local Authority\"),OR($F82=1,$F82=5)),0,new_yllv2(VALUE(LEFT(Options!$B$24,2)),$C82,$D82,$E82,$F82,2016,$I82,1,$H82,$G82*$H82,Options!$B$8)))","v":1121.9599674576},{"$f":"IF(AND(OR(Calculations!$E$2=\"Orkney Health Board\",Calculations!$E$2=\"Orkney Islands Local Authority\"),$F82=1),0,IF(AND(OR(Calculations!$E$2=\"Shetland Health Board\",Calculations!$E$2=\"Western Isles Health Board\",Calculations!$E$2=\"Shetland Islands Local Authority\",Calculations!$E$2=\"Eilean Siar Local Authority\"),OR($F82=1,$F82=5)),0,new_yllv2(VALUE(LEFT(Options!$B$24,2)),$C82,$D82,$E82,$F82,2016,$I82+$J82,1,$H82,$G82*$H82,Options!$B$8)))","v":1112.7834950306001},{"$f":"IF(AND(OR(Calculations!$E$2=\"Orkney Health Board\",Calculations!$E$2=\"Orkney Islands Local Authority\"),$F82=1),0,IF(AND(OR(Calculations!$E$2=\"Shetland Health Board\",Calculations!$E$2=\"Western Isles Health Board\",Calculations!$E$2=\"Shetland Islands Local Authority\",Calculations!$E$2=\"Eilean Siar Local Authority\"),OR($F82=1,$F82=5)),0,hosp_count(VALUE(LEFT(Options!$B$24,2)),$C82,$E82,$F82,2016,$I82,1,$H82,$G82*$H82, Options!$B$8)))","v":{"$error":"#NAME?"}},{"$f":"IF(AND(OR(Calculations!$E$2=\"Orkney Health Board\",Calculations!$E$2=\"Orkney Islands Local Authority\"),$F82=1),0,IF(AND(OR(Calculations!$E$2=\"Shetland Health Board\",Calculations!$E$2=\"Western Isles Health Board\",Calculations!$E$2=\"Shetland Islands Local Authority\",Calculations!$E$2=\"Eilean Siar Local Authority\"),OR($F82=1,$F82=5)),0,hosp_count(VALUE(LEFT(Options!$B$24,2)),$C82,$E82,$F82,2016,$I82+$J82,1,$H82,$G82*$H82, Options!$B$8)))","v":{"$error":"#NAME?"}},{"$f":"IF(AND(OR(Calculations!$E$2=\"Orkney Health Board\",Calculations!$E$2=\"Orkney Islands Local Authority\"),$F82=1),0,IF(AND(OR(Calculations!$E$2=\"Shetland Health Board\",Calculations!$E$2=\"Western Isles Health Board\",Calculations!$E$2=\"Shetland Islands Local Authority\",Calculations!$E$2=\"Eilean Siar Local Authority\"),OR($F82=1,$F82=5)),0,prem_mort(VALUE(LEFT(Options!$B$24,2)),$C82,$E82,$F82,2016,$I82,1,$H82,$G82*$H82,Options!$B$8)))","v":19.1722475925},{"$f":"IF(AND(OR(Calculations!$E$2=\"Orkney Health Board\",Calculations!$E$2=\"Orkney Islands Local Authority\"),$F82=1),0,IF(AND(OR(Calculations!$E$2=\"Shetland Health Board\",Calculations!$E$2=\"Western Isles Health Board\",Calculations!$E$2=\"Shetland Islands Local Authority\",Calculations!$E$2=\"Eilean Siar Local Authority\"),OR($F82=1,$F82=5)),0,prem_mort(VALUE(LEFT(Options!$B$24,2)),$C82,$E82,$F82,2016,$I82+$J82,1,$H82,$G82*$H82,Options!$B$8)))","v":19.015438431300002},75.603326600023649,74.984969562285585,4424.3068238400565,4388.1205687550773,{"$error":"#NAME?"},{"$error":"#NAME?"},75.603326600023649,74.984969562285585,332654.63704010408,329933.8660740566,19466950.024896249,19307730.502522342,{"$error":"#NAME?"},{"$error":"#NAME?"},332654.63704010408,329933.8660740566,4400]
[null,"Male 20-24",22.054632000000002,77.704629999999995,"male",1,{"$f":"HLOOKUP(Calculations!$E$2,'Prevalence Rates'!$C$3:$BC$249,'Prevalence Rates'!$BD83,FALSE)","v":0.26},{"$f":"HLOOKUP(Calculations!$E$2,'Population 2016'!$C$3:$BC$249,'Population 2016'!BD83,FALSE)","v":37180},0,{"$f":"HLOOKUP(Results!E$4,Targeting!$C$3:$F$249,Targeting!$G83,FALSE)","v":6105},{"$f":"IF(AND(OR(Calculations!$E$2=\"Orkney Health Board\",Calculations!$E$2=\"Orkney Islands Local Authority\"),$F83=1),0,IF(AND(OR(Calculations!$E$2=\"Shetland Health Board\",Calculations!$E$2=\"Western Isles Health Board\",Calculations!$E$2=\"Shetland Islands Local Authority\",Calculations!$E$2=\"Eilean Siar Local Authority\"),OR($F83=1,$F83=5)),0,new_ci(VALUE(LEFT(Options!$B$24,2)),$C83,$E83,$F83,2016,$I83,1,$H83,$G83*$H83,Options!$B$8)))","v":39.470603955599998},{"$f":"IF(AND(OR(Calculations!$E$2=\"Orkney Health Board\",Calculations!$E$2=\"Orkney Islands Local Authority\"),$F83=1),0,IF(AND(OR(Calculations!$E$2=\"Shetland Health Board\",Calculations!$E$2=\"Western Isles Health Board\",Calculations!$E$2=\"Shetland Islands Local Authority\",Calculations!$E$2=\"Eilean Siar Local Authority\"),OR($F83=1,$F83=5)),0,new_ci(VALUE(LEFT(Options!$B$24,2)),$C83,$E83,$F83,2016,$I83+$J83,1,$H83,$G83*$H83,Options!$B$8)))","v":39.147849089099999},{"$f":"IF(AND(OR(Calculations!$E$2=\"Orkney Health Board\",Calculations!$E$2=\"Orkney Islands Local Authority\"),$F83=1),0,IF(AND(OR(Calculations!$E$2=\"Shetland Health Board\",Calculations!$E$2=\"Western Isles Health Board\",Calculations!$E$2=\"Shetland Islands Local Authority\",Calculations!$E$2=\"Eilean Siar Local Authority\"),OR($F83=1,$F83=5)),0,new_yllv2(VALUE(LEFT(Options!$B$24,2)),$C83,$D83,$E83,$F83,2016,$I83,1,$H83,$G83*$H83,Options!$B$8)))","v":2157.0684272323001},{"$f":"IF(AND(OR(Calculations!$E$2=\"Orkney Health Board\",Calculations!$E$2=\"Orkney Islands Local Authority\"),$F83=1),0,IF(AND(OR(Calculations!$E$2=\"Shetland Health Board\",Calculations!$E$2=\"Western Isles Health Board\",Calculations!$E$2=\"Shetland Islands Local Authority\",Calculations!$E$2=\"Eilean Siar Local Authority\"),OR($F83=1,$F83=5)),0,new_yllv2(VALUE(LEFT(Options!$B$24,2)),$C83,$D83,$E83,$F83,2016,$I83+$J83,1,$H83,$G83*$H83,Options!$B$8)))","v":2139.4298744235998},{"$f":"IF(AND(OR(Calculations!$E$2=\"Orkney Health Board\",Calculations!$E$2=\"Orkney Islands Local Authority\"),$F83=1),0,IF(AND(OR(Calculations!$E$2=\"Shetland Health Board\",Calculations!$E$2=\"Western Isles Health Board\",Calculations!$E$2=\"Shetland Islands Local Authority\",Calculations!$E$2=\"Eilean Siar Local Authority\"),OR($F83=1,$F83=5)),0,hosp_count(VALUE(LEFT(Options!$B$24,2)),$C83,$E83,$F83,2016,$I83,1,$H83,$G83*$H83, Options!$B$8)))","v":{"$error":"#NAME?"}},{"$f":"IF(AND(OR(Calculations!$E$2=\"Orkney Health Board\",Calculations!$E$2=\"Orkney Islands Local Authority\"),$F83=1),0,IF(AND(OR(Calculations!$E$2=\"Shetland Health Board\",Calculations!$E$2=\"Western Isles Health Board\",Calculations!$E$2=\"Shetland Islands Local Authority\",Calculations!$E$2=\"Eilean Siar Local Authority\"),OR($F83=1,$F83=5)),0,hosp_count(VALUE(LEFT(Options!$B$24,2)),$C83,$E83,$F83,2016,$I83+$J83,1,$H83,$G83*$H83, Options!$B$8)))","v":{"$error":"#NAME?"}},{"$f":"IF(AND(OR(Calculations!$E$2=\"Orkney Health Board\",Calculations!$E$2=\"Orkney Islands Local Authority\"),$F83=1),0,IF(AND(OR(Calculations!$E$2=\"Shetland Health Board\",Calculations!$E$2=\"Western Isles Health Board\",Calculations!$E$2=\"Shetland Islands Local Authority\",Calculations!$E$2=\"Eilean Siar Local Authority\"),OR($F83=1,$F83=5)),0,prem_mort(VALUE(LEFT(Options!$B$24,2)),$C83,$E83,$F83,2016,$I83,1,$H83,$G83*$H83,Options!$B$8)))","v":39.470603955599998},{"$f":"IF(AND(OR(Calculations!$E$2=\"Orkney Health Board\",Calculations!$E$2=\"Orkney Islands Local Authority\"),$F83=1),0,IF(AND(OR(Calculations!$E$2=\"Shetland Health Board\",Calculations!$E$2=\"Western Isles Health Board\",Calculations!$E$2=\"Shetland Islands Local Authority\",Calculations!$E$2=\"Eilean Siar Local Authority\"),OR($F83=1,$F83=5)),0,prem_mort(VALUE(LEFT(Options!$B$24,2)),$C83,$E83,$F83,2016,$I83+$J83,1,$H83,$G83*$H83,Options!$B$8)))","v":39.147849089099999},106.1608497998924,105.29276247740721,5801.6902292423347,5754.2492588047335,{"$error":"#NAME?"},{"$error":"#NAME?"},106.1608497998924,105.29276247740721,636965.0987993544,631756.57486444328,34810141.375454009,34525495.552828401,{"$error":"#NAME?"},{"$error":"#NAME?"},636965.0987993544,631756.57486444328,6000]
[null,"Male 25-29",26.959762999999999,77.789760000000001,"male",1,{"$f":"HLOOKUP(Calculations!$E$2,'Prevalence Rates'!$C$3:$BC$249,'Prevalence Rates'!$BD84,FALSE)","v":0.19500000000000001},{"$f":"HLOOKUP(Calculations!$E$2,'Population 2016'!$C$3:$BC$249,'Population 2016'!BD84,FALSE)","v":42600},0,{"$f":"HLOOKUP(Results!E$4,Targeting!$C$3:$F$249,Targeting!$G84,FALSE)","v":6994},{"$f":"IF(AND(OR(Calculations!$E$2=\"Orkney Health Board\",Calculations!$E$2=\"Orkney Islands Local Authority\"),$F84=1),0,IF(AND(OR(Calculations!$E$2=\"Shetland Health Board\",Calculations!$E$2=\"Western Isles Health Board\",Calculations!$E$2=\"Shetland Islands Local Authority\",Calculations!$E$2=\"Eilean Siar Local Authority\"),OR($F84=1,$F84=5)),0,new_ci(VALUE(LEFT(Options!$B$24,2)),$C84,$E84,$F84,2016,$I84,1,$H84,$G84*$H84,Options!$B$8)))","v":65.478636592200004},{"$f":"IF(AND(OR(Calculations!$E$2=\"Orkney Health Board\",Calculations!$E$2=\"Orkney Islands Local Authority\"),$F84=1),0,IF(AND(OR(Calculations!$E$2=\"Shetland Health Board\",Calculations!$E$2=\"Western Isles Health Board\",Calculations!$E$2=\"Shetland Islands Local Authority\",Calculations!$E$2=\"Eilean Siar Local Authority\"),OR($F84=1,$F84=5)),0,new_ci(VALUE(LEFT(Options!$B$24,2)),$C84,$E84,$F84,2016,$I84+$J84,1,$H84,$G84*$H84,Options!$B$8)))","v":64.929735582399999},{"$f":"IF(AND(OR(Calculations!$E$2=\"Orkney Health Board\",Calculations!$E$2=\"Orkney Islands Local Authority\"),$F84=1),0,IF(AND(OR(Calculations!$E$2=\"Shetland Health Board\",Calculations!$E$2=\"Western Isles Health Board\",Calculations!$E$2=\"Shetland Islands Local Authority\",Calculations!$E$2=\"Eilean Siar Local Authority\"),OR($F84=1,$F84=5)),0,new_yllv2(VALUE(LEFT(Options!$B$24,2)),$C84,$D84,$E84,$F84,2016,$I84,1,$H84,$G84*$H84,Options!$B$8)))","v":3262.8002649534001},{"$f":"IF(AND(OR(Calculations!$E$2=\"Orkney Health Board\",Calculations!$E$2=\"Orkney Islands Local Authority\"),$F84=1),0,IF(AND(OR(Calculations!$E$2=\"Shetland Health Board\",Calculations!$E$2=\"Western Isles Health Board\",Calculations!$E$2=\"Shetland Islands Local Authority\",Calculations!$E$2=\"Eilean Siar Local Authority\"),OR($F84=1,$F84=5)),0,new_yllv2(VALUE(LEFT(Options!$B$24,2)),$C84,$D84,$E84,$F84,2016,$I84+$J84,1,$H84,$G84*$H84,Options!$B$8)))","v":3235.4485292817999},{"$f":"IF(AND(OR(Calculations!$E$2=\"Orkney Health Board\",Calculations!$E$2=\"Orkney Islands Local Authority\"),$F84=1),0,IF(AND(OR(Calculations!$E$2=\"Shetland Health Board\",Calculations!$E$2=\"Western Isles Health Board\",Calculations!$E$2=\"Shetland Islands Local Authority\",Calculations!$E$2=\"Eilean Siar Local Authority\"),OR($F84=1,$F84=5)),0,hosp_count(VALUE(LEFT(Options!$B$24,2)),$C84,$E84,$F84,2016,$I84,1,$H84,$G84*$H84, Options!$B$8)))","v":{"$error":"#NAME?"}},{"$f":"IF(AND(OR(Calculations!$E$2=\"Orkney Health Board\",Calculations!$E$2=\"Orkney Islands Local Authority\"),$F84=1),0,IF(AND(OR(Calculations!$E$2=\"Shetland Health Board\",Calculations!$E$2=\"Western Isles Health Board\",Calculations!$E$2=\"Shetland Islands Local Authority\",Calculations!$E$2=\"Eilean Siar Local Authority\"),OR($F84=1,$F84=5)),0,hosp_count(VALUE(LEFT(Options!$B$24,2)),$C84,$E84,$F84,2016,$I84+$J84,1,$H84,$G84*$H84, Options!$B$8)))","v":{"$error":"#NAME?"}},{"$f":"IF(AND(OR(Calculations!$E$2=\"Orkney Health Board\",Calculations!$E$2=\"Orkney Islands Local Authority\"),$F84=1),0,IF(AND(OR(Calculations!$E$2=\"Shetland Health Board\",Calculations!$E$2=\"Western Isles Health Board\",Calculations!$E$2=\"Shetland Islands Local Authority\",Calculations!$E$2=\"Eilean Siar Local Authority\"),OR($F84=1,$F84=5)),0,prem_mort(VALUE(LEFT(Options!$B$24,2)),$C84,$E84,$F84,2016,$I84,1,$H84,$G84*$H84,Options!$B$8)))","v":65.478636592200004},{"$f":"IF(AND(OR(Calculations!$E$2=\"Orkney Health Board\",Calculations!$E$2=\"Orkney Islands Local Authority\"),$F84=1),0,IF(AND(OR(Calculations!$E$2=\"Shetland Health Board\",Calculations!$E$2=\"Western Isles Health Board\",Calculations!$E$2=\"Shetland Islands Local Authority\",Calculations!$E$2=\"Eilean Siar Local Authority\"),OR($F84=1,$F84=5)),0,prem_mort(VALUE(LEFT(Options!$B$24,2)),$C84,$E84,$F84,2016,$I84+$J84,1,$H84,$G84*$H84,Options!$B$8)))","v":64.929735582399999},153.7057197,152.4172196769953,7659.1555515338023,7594.949599253051,{"$error":"#NAME?"},{"$error":"#NAME?"},153.7057197,152.4172196769953,922234.31819999998,914503.3180619718,45954933.309202813,45569697.595518306,{"$error":"#NAME?"},{"$error":"#NAME?"},922234.31819999998,914503.3180619718,6000]
[null,"Male 30-34",31.981521999999998,78.061520000000002,"male",1,{"$f":"HLOOKUP(Calculations!$E$2,'Prevalence Rates'!$C$3:$BC$249,'Prevalence Rates'!$BD85,FALSE)","v":0.19500000000000001},{"$f":"HLOOKUP(Calculations!$E$2,'Population 2016'!$C$3:$BC$249,'Population 2016'!BD85,FALSE)","v":38006},0,{"$f":"HLOOKUP(Results!E$4,Targeting!$C$3:$F$249,Targeting!$G85,FALSE)","v":6240},{"$f":"IF(AND(OR(Calculations!$E$2=\"Orkney Health Board\",Calculations!$E$2=\"Orkney Islands Local Authority\"),$F85=1),0,IF(AND(OR(Calculations!$E$2=\"Shetland Health Board\",Calculations!$E$2=\"Western Isles Health Board\",Calculations!$E$2=\"Shetland Islands Local Authority\",Calculations!$E$2=\"Eilean Siar Local Authority\"),OR($F85=1,$F85=5)),0,new_ci(VALUE(LEFT(Options!$B$24,2)),$C85,$E85,$F85,2016,$I85,1,$H85,$G85*$H85,Options!$B$8)))","v":85.317691320700007},{"$f":"IF(AND(OR(Calculations!$E$2=\"Orkney Health Board\",Calculations!$E$2=\"Orkney Islands Local Authority\"),$F85=1),0,IF(AND(OR(Calculations!$E$2=\"Shetland Health Board\",Calculations!$E$2=\"Western Isles Health Board\",Calculations!$E$2=\"Shetland Islands Local Authority\",Calculations!$E$2=\"Eilean Siar Local Authority\"),OR($F85=1,$F85=5)),0,new_ci(VALUE(LEFT(Options!$B$24,2)),$C85,$E85,$F85,2016,$I85+$J85,1,$H85,$G85*$H85,Options!$B$8)))","v":84.602850024700004},{"$f":"IF(AND(OR(Calculations!$E$2=\"Orkney Health Board\",Calculations!$E$2=\"Orkney Islands Local Authority\"),$F85=1),0,IF(AND(OR(Calculations!$E$2=\"Shetland Health Board\",Calculations!$E$2=\"Western Isles Health Board\",Calculations!$E$2=\"Shetland Islands Local Authority\",Calculations!$E$2=\"Eilean Siar Local Authority\"),OR($F85=1,$F85=5)),0,new_yllv2(VALUE(LEFT(Options!$B$24,2)),$C85,$D85,$E85,$F85,2016,$I85,1,$H85,$G85*$H85,Options!$B$8)))","v":3846.1213541018001},{"$f":"IF(AND(OR(Calculations!$E$2=\"Orkney Health Board\",Calculations!$E$2=\"Orkney Islands Local Authority\"),$F85=1),0,IF(AND(OR(Calculations!$E$2=\"Shetland Health Board\",Calculations!$E$2=\"Western Isles Health Board\",Calculations!$E$2=\"Shetland Islands Local Authority\",Calculations!$E$2=\"Eilean Siar Local Authority\"),OR($F85=1,$F85=5)),0,new_yllv2(VALUE(LEFT(Options!$B$24,2)),$C85,$D85,$E85,$F85,2016,$I85+$J85,1,$H85,$G85*$H85,Options!$B$8)))","v":3813.8963099078001},{"$f":"IF(AND(OR(Calculations!$E$2=\"Orkney Health Board\",Calculations!$E$2=\"Orkney Islands Local Authority\"),$F85=1),0,IF(AND(OR(Calculations!$E$2=\"Shetland Health Board\",Calculations!$E$2=\"Western Isles Health Board\",Calculations!$E$2=\"Shetland Islands Local Authority\",Calculations!$E$2=\"Eilean Siar Local Authority\"),OR($F85=1,$F85=5)),0,hosp_count(VALUE(LEFT(Options!$B$24,2)),$C85,$E85,$F85,2016,$I85,1,$H85,$G85*$H85, Options!$B$8)))","v":{"$error":"#NAME?"}},{"$f":"IF(AND(OR(Calculations!$E$2=\"Orkney Health Board\",Calculations!$E$2=\"Orkney Islands Local Authority\"),$F85=1),0,IF(AND(OR(Calculations!$E$2=\"Shetland Health Board\",Calculations!$E$2=\"Western Isles Health Board\",Calculations!$E$2=\"Shetland Islands Local Authority\",Calculations!$E$2=\"Eilean Siar Local Authority\"),OR($F85=1,$F85=5)),0,hosp_count(VALUE(LEFT(Options!$B$24,2)),$C85,$E85,$F85,2016,$I85+$J85,1,$H85,$G85*$H85, Options!$B$8)))","v":{"$error":"#NAME?"}},{"$f":"IF(AND(OR(Calculations!$E$2=\"Orkney Health Board\",Calculations!$E$2=\"Orkney Islands Local Authority\"),$F85=1),0,IF(AND(OR(Calculations!$E$2=\"Shetland Health Board\",Calculations!$E$2=\"Western Isles Health Board\",Calculations!$E$2=\"Shetland Islands Local Authority\",Calculations!$E$2=\"Eilean Siar Local Authority\"),OR($F85=1,$F85=5)),0,prem_mort(VALUE(LEFT(Options!$B$24,2)),$C85,$E85,$F85,2016,$I85,1,$H85,$G85*$H85,Options!$B$8)))","v":85.317691320700007},{"$f":"IF(AND(OR(Calculations!$E$2=\"Orkney Health Board\",Calculations!$E$2=\"Orkney Islands Local Authority\"),$F85=1),0,IF(AND(OR(Calculations!$E$2=\"Shetland Health Board\",Calculations!$E$2=\"Western Isles Health Board\",Calculations!$E$2=\"Shetland Islands Local Authority\",Calculations!$E$2=\"Eilean Siar Local Authority\"),OR($F85=1,$F85=5)),0,prem_mort(VALUE(LEFT(Options!$B$24,2)),$C85,$E85,$F85,2016,$I85+$J85,1,$H85,$G85*$H85,Options!$B$8)))","v":84.602850024700004},224.48479534994479,222.60393102325949,10119.774125405989,10034.984765320738,{"$error":"#NAME?"},{"$error":"#NAME?"},224.48479534994479,222.60393102325949,1459151.1697746411,1446925.5516511868,65778531.815138929,65227400.974584796,{"$error":"#NAME?"},{"$error":"#NAME?"},1459151.1697746411,1446925.5516511868,6500]
[null,"Male 35-39",36.926009999999998,78.336009999999987,"male",1,{"$f":"HLOOKUP(Calculations!$E$2,'Prevalence Rates'!$C$3:$BC$249,'Prevalence Rates'!$BD86,FALSE)","v":0.28900000000000003},{"$f":"HLOOKUP(Calculations!$E$2,'Population 2016'!$C$3:$BC$249,'Population 2016'!BD86,FALSE)","v":32984},0,{"$f":"HLOOKUP(Results!E$4,Targeting!$C$3:$F$249,Targeting!$G86,FALSE)","v":5416},{"$f":"IF(AND(OR(Calculations!$E$2=\"Orkney Health Board\",Calculations!$E$2=\"Orkney Islands Local Authority\"),$F86=1),0,IF(AND(OR(Calculations!$E$2=\"Shetland Health Board\",Calculations!$E$2=\"Western Isles Health Board\",Calculations!$E$2=\"Shetland Islands Local Authority\",Calculations!$E$2=\"Eilean Siar Local Authority\"),OR($F86=1,$F86=5)),0,new_ci(VALUE(LEFT(Options!$B$24,2)),$C86,$E86,$F86,2016,$I86,1,$H86,$G86*$H86,Options!$B$8)))","v":107.4932959261},{"$f":"IF(AND(OR(Calculations!$E$2=\"Orkney Health Board\",Calculations!$E$2=\"Orkney Islands Local Authority\"),$F86=1),0,IF(AND(OR(Calculations!$E$2=\"Shetland Health Board\",Calculations!$E$2=\"Western Isles Health Board\",Calculations!$E$2=\"Shetland Islands Local Authority\",Calculations!$E$2=\"Eilean Siar Local Authority\"),OR($F86=1,$F86=5)),0,new_ci(VALUE(LEFT(Options!$B$24,2)),$C86,$E86,$F86,2016,$I86+$J86,1,$H86,$G86*$H86,Options!$B$8)))","v":106.6254328365},{"$f":"IF(AND(OR(Calculations!$E$2=\"Orkney Health Board\",Calculations!$E$2=\"Orkney Islands Local Authority\"),$F86=1),0,IF(AND(OR(Calculations!$E$2=\"Shetland Health Board\",Calculations!$E$2=\"Western Isles Health Board\",Calculations!$E$2=\"Shetland Islands Local Authority\",Calculations!$E$2=\"Eilean Siar Local Authority\"),OR($F86=1,$F86=5)),0,new_yllv2(VALUE(LEFT(Options!$B$24,2)),$C86,$D86,$E86,$F86,2016,$I86,1,$H86,$G86*$H86,Options!$B$8)))","v":4343.8040883737003},{"$f":"IF(AND(OR(Calculations!$E$2=\"Orkney Health Board\",Calculations!$E$2=\"Orkney Islands Local Authority\"),$F86=1),0,IF(AND(OR(Calculations!$E$2=\"Shetland Health Board\",Calculations!$E$2=\"Western Isles Health Board\",Calculations!$E$2=\"Shetland Islands Local Authority\",Calculations!$E$2=\"Eilean Siar Local Authority\"),OR($F86=1,$F86=5)),0,new_yllv2(VALUE(LEFT(Options!$B$24,2)),$C86,$D86,$E86,$F86,2016,$I86+$J86,1,$H86,$G86*$H86,Options!$B$8)))","v":4308.7337409230004},{"$f":"IF(AND(OR(Calculations!$E$2=\"Orkney Health Board\",Calculations!$E$2=\"Orkney Islands Local Authority\"),$F86=1),0,IF(AND(OR(Calculations!$E$2=\"Shetland Health Board\",Calculations!$E$2=\"Western Isles Health Board\",Calculations!$E$2=\"Shetland Islands Local Authority\",Calculations!$E$2=\"Eilean Siar Local Authority\"),OR($F86=1,$F86=5)),0,hosp_count(VALUE(LEFT(Options!$B$24,2)),$C86,$E86,$F86,2016,$I86,1,$H86,$G86*$H86, Options!$B$8)))","v":{"$error":"#NAME?"}},{"$f":"IF(AND(OR(Calculations!$E$2=\"Orkney Health Board\",Calculations!$E$2=\"Orkney Islands Local Authority\"),$F86=1),0,IF(AND(OR(Calculations!$E$2=\"Shetland Health Board\",Calculations!$E$2=\"Western Isles Health Board\",Calculations!$E$2=\"Shetland Islands Local Authority\",Calculations!$E$2=\"Eilean Siar Local Authority\"),OR($F86=1,$F86=5)),0,hosp_count(VALUE(LEFT(Options!$B$24,2)),$C86,$E86,$F86,2016,$I86+$J86,1,$H86,$G86*$H86, Options!$B$8)))","v":{"$error":"#NAME?"}},{"$f":"IF(AND(OR(Calculations!$E$2=\"Orkney Health Board\",Calculations!$E$2=\"Orkney Islands Local Authority\"),$F86=1),0,IF(AND(OR(Calculations!$E$2=\"Shetland Health Board\",Calculations!$E$2=\"Western Isles Health Board\",Calculations!$E$2=\"Shetland Islands Local Authority\",Calculations!$E$2=\"Eilean Siar Local Authority\"),OR($F86=1,$F86=5)),0,prem_mort(VALUE(LEFT(Options!$B$24,2)),$C86,$E86,$F86,2016,$I86,1,$H86,$G86*$H86,Options!$B$8)))","v":107.4932959261},{"$f":"IF(AND(OR(Calculations!$E$2=\"Orkney Health Board\",Calculations!$E$2=\"Orkney Islands Local Authority\"),$F86=1),0,IF(AND(OR(Calculations!$E$2=\"Shetland Health Board\",Calculations!$E$2=\"Western Isles Health Board\",Calculations!$E$2=\"Shetland Islands Local Authority\",Calculations!$E$2=\"Eilean Siar Local Authority\"),OR($F86=1,$F86=5)),0,prem_mort(VALUE(LEFT(Options!$B$24,2)),$C86,$E86,$F86,2016,$I86+$J86,1,$H86,$G86*$H86,Options!$B$8)))","v":106.6254328365},325.89527021010184,323.26410634398496,13169.427869190215,13063.102537360541,{"$error":"#NAME?"},{"$error":"#NAME?"},325.89527021010184,323.26410634398496,2281266.8914707131,2262848.7444078946,92185995.084331498,91441717.761523783,{"$error":"#NAME?"},{"$error":"#NAME?"},2281266.8914707131,2262848.7444078946,7000]
[null,"Male 40-44",42.067703000000002,78.907700000000006,"male",1,{"$f":"HLOOKUP(Calculations!$E$2,'Prevalence Rates'!$C$3:$BC$249,'Prevalence Rates'!$BD87,FALSE)","v":0.28900000000000003},{"$f":"HLOOKUP(Calculations!$E$2,'Population 2016'!$C$3:$BC$249,'Population 2016'!BD87,FALSE)","v":31623},0,{"$f":"HLOOKUP(Results!E$4,Targeting!$C$3:$F$249,Targeting!$G87,FALSE)","v":5192},{"$f":"IF(AND(OR(Calculations!$E$2=\"Orkney Health Board\",Calculations!$E$2=\"Orkney Islands Local Authority\"),$F87=1),0,IF(AND(OR(Calculations!$E$2=\"Shetland Health Board\",Calculations!$E$2=\"Western Isles Health Board\",Calculations!$E$2=\"Shetland Islands Local Authority\",Calculations!$E$2=\"Eilean Siar Local Authority\"),OR($F87=1,$F87=5)),0,new_ci(VALUE(LEFT(Options!$B$24,2)),$C87,$E87,$F87,2016,$I87,1,$H87,$G87*$H87,Options!$B$8)))","v":151.8176170907},{"$f":"IF(AND(OR(Calculations!$E$2=\"Orkney Health Board\",Calculations!$E$2=\"Orkney Islands Local Authority\"),$F87=1),0,IF(AND(OR(Calculations!$E$2=\"Shetland Health Board\",Calculations!$E$2=\"Western Isles Health Board\",Calculations!$E$2=\"Shetland Islands Local Authority\",Calculations!$E$2=\"Eilean Siar Local Authority\"),OR($F87=1,$F87=5)),0,new_ci(VALUE(LEFT(Options!$B$24,2)),$C87,$E87,$F87,2016,$I87+$J87,1,$H87,$G87*$H87,Options!$B$8)))","v":150.5934068331},{"$f":"IF(AND(OR(Calculations!$E$2=\"Orkney Health Board\",Calculations!$E$2=\"Orkney Islands Local Authority\"),$F87=1),0,IF(AND(OR(Calculations!$E$2=\"Shetland Health Board\",Calculations!$E$2=\"Western Isles Health Board\",Calculations!$E$2=\"Shetland Islands Local Authority\",Calculations!$E$2=\"Eilean Siar Local Authority\"),OR($F87=1,$F87=5)),0,new_yllv2(VALUE(LEFT(Options!$B$24,2)),$C87,$D87,$E87,$F87,2016,$I87,1,$H87,$G87*$H87,Options!$B$8)))","v":5441.1429410778001},{"$f":"IF(AND(OR(Calculations!$E$2=\"Orkney Health Board\",Calculations!$E$2=\"Orkney Islands Local Authority\"),$F87=1),0,IF(AND(OR(Calculations!$E$2=\"Shetland Health Board\",Calculations!$E$2=\"Western Isles Health Board\",Calculations!$E$2=\"Shetland Islands Local Authority\",Calculations!$E$2=\"Eilean Siar Local Authority\"),OR($F87=1,$F87=5)),0,new_yllv2(VALUE(LEFT(Options!$B$24,2)),$C87,$D87,$E87,$F87,2016,$I87+$J87,1,$H87,$G87*$H87,Options!$B$8)))","v":5397.2672491181002},{"$f":"IF(AND(OR(Calculations!$E$2=\"Orkney Health Board\",Calculations!$E$2=\"Orkney Islands Local Authority\"),$F87=1),0,IF(AND(OR(Calculations!$E$2=\"Shetland Health Board\",Calculations!$E$2=\"Western Isles Health Board\",Calculations!$E$2=\"Shetland Islands Local Authority\",Calculations!$E$2=\"Eilean Siar Local Authority\"),OR($F87=1,$F87=5)),0,hosp_count(VALUE(LEFT(Options!$B$24,2)),$C87,$E87,$F87,2016,$I87,1,$H87,$G87*$H87, Options!$B$8)))","v":{"$error":"#NAME?"}},{"$f":"IF(AND(OR(Calculations!$E$2=\"Orkney Health Board\",Calculations!$E$2=\"Orkney Islands Local Authority\"),$F87=1),0,IF(AND(OR(Calculations!$E$2=\"Shetland Health Board\",Calculations!$E$2=\"Western Isles Health Board\",Calculations!$E$2=\"Shetland Islands Local Authority\",Calculations!$E$2=\"Eilean Siar Local Authority\"),OR($F87=1,$F87=5)),0,hosp_count(VALUE(LEFT(Options!$B$24,2)),$C87,$E87,$F87,2016,$I87+$J87,1,$H87,$G87*$H87, Options!$B$8)))","v":{"$error":"#NAME?"}},{"$f":"IF(AND(OR(Calculations!$E$2=\"Orkney Health Board\",Calculations!$E$2=\"Orkney Islands Local Authority\"),$F87=1),0,IF(AND(OR(Calculations!$E$2=\"Shetland Health Board\",Calculations!$E$2=\"Western Isles Health Board\",Calculations!$E$2=\"Shetland Islands Local Authority\",Calculations!$E$2=\"Eilean Siar Local Authority\"),OR($F87=1,$F87=5)),0,prem_mort(VALUE(LEFT(Options!$B$24,2)),$C87,$E87,$F87,2016,$I87,1,$H87,$G87*$H87,Options!$B$8)))","v":151.8176170907},{"$f":"IF(AND(OR(Calculations!$E$2=\"Orkney Health Board\",Calculations!$E$2=\"Orkney Islands Local Authority\"),$F87=1),0,IF(AND(OR(Calculations!$E$2=\"Shetland Health Board\",Calculations!$E$2=\"Western Isles Health Board\",Calculations!$E$2=\"Shetland Islands Local Authority\",Calculations!$E$2=\"Eilean Siar Local Authority\"),OR($F87=1,$F87=5)),0,prem_mort(VALUE(LEFT(Options!$B$24,2)),$C87,$E87,$F87,2016,$I87+$J87,1,$H87,$G87*$H87,Options!$B$8)))","v":150.5934068331},480.08606738987442,476.21480198937485,17206.283214994783,17067.53707465484,{"$error":"#NAME?"},{"$error":"#NAME?"},480.08606738987442,476.21480198937485,3360602.4717291207,3333503.6139256237,120443982.50496347,119472759.52258387,{"$error":"#NAME?"},{"$error":"#NAME?"},3360602.4717291207,3333503.6139256237,7000]
[null,"Male 45-49",47.038155000000003,79.418149999999997,"male",1,{"$f":"HLOOKUP(Calculations!$E$2,'Prevalence Rates'!$C$3:$BC$249,'Prevalence Rates'!$BD88,FALSE)","v":0.47100000000000003},{"$f":"HLOOKUP(Calculations!$E$2,'Population 2016'!$C$3:$BC$249,'Population 2016'!BD88,FALSE)","v":35878},0,{"$f":"HLOOKUP(Results!E$4,Targeting!$C$3:$F$249,Targeting!$G88,FALSE)","v":5891},{"$f":"IF(AND(OR(Calculations!$E$2=\"Orkney Health Board\",Calculations!$E$2=\"Orkney Islands Local Authority\"),$F88=1),0,IF(AND(OR(Calculations!$E$2=\"Shetland Health Board\",Calculations!$E$2=\"Western Isles Health Board\",Calculations!$E$2=\"Shetland Islands Local Authority\",Calculations!$E$2=\"Eilean Siar Local Authority\"),OR($F88=1,$F88=5)),0,new_ci(VALUE(LEFT(Options!$B$24,2)),$C88,$E88,$F88,2016,$I88,1,$H88,$G88*$H88,Options!$B$8)))","v":250.3959888764},{"$f":"IF(AND(OR(Calculations!$E$2=\"Orkney Health Board\",Calculations!$E$2=\"Orkney Islands Local Authority\"),$F88=1),0,IF(AND(OR(Calculations!$E$2=\"Shetland Health Board\",Calculations!$E$2=\"Western Isles Health Board\",Calculations!$E$2=\"Shetland Islands Local Authority\",Calculations!$E$2=\"Eilean Siar Local Authority\"),OR($F88=1,$F88=5)),0,new_ci(VALUE(LEFT(Options!$B$24,2)),$C88,$E88,$F88,2016,$I88+$J88,1,$H88,$G88*$H88,Options!$B$8)))","v":248.509841486},{"$f":"IF(AND(OR(Calculations!$E$2=\"Orkney Health Board\",Calculations!$E$2=\"Orkney Islands Local Authority\"),$F88=1),0,IF(AND(OR(Calculations!$E$2=\"Shetland Health Board\",Calculations!$E$2=\"Western Isles Health Board\",Calculations!$E$2=\"Shetland Islands Local Authority\",Calculations!$E$2=\"Eilean Siar Local Authority\"),OR($F88=1,$F88=5)),0,new_yllv2(VALUE(LEFT(Options!$B$24,2)),$C88,$D88,$E88,$F88,2016,$I88,1,$H88,$G88*$H88,Options!$B$8)))","v":7857.4248789615003},{"$f":"IF(AND(OR(Calculations!$E$2=\"Orkney Health Board\",Calculations!$E$2=\"Orkney Islands Local Authority\"),$F88=1),0,IF(AND(OR(Calculations!$E$2=\"Shetland Health Board\",Calculations!$E$2=\"Western Isles Health Board\",Calculations!$E$2=\"Shetland Islands Local Authority\",Calculations!$E$2=\"Eilean Siar Local Authority\"),OR($F88=1,$F88=5)),0,new_yllv2(VALUE(LEFT(Options!$B$24,2)),$C88,$D88,$E88,$F88,2016,$I88+$J88,1,$H88,$G88*$H88,Options!$B$8)))","v":7798.2375832814996},{"$f":"IF(AND(OR(Calculations!$E$2=\"Orkney Health Board\",Calculations!$E$2=\"Orkney Islands Local Authority\"),$F88=1),0,IF(AND(OR(Calculations!$E$2=\"Shetland Health Board\",Calculations!$E$2=\"Western Isles Health Board\",Calculations!$E$2=\"Shetland Islands Local Authority\",Calculations!$E$2=\"Eilean Siar Local Authority\"),OR($F88=1,$F88=5)),0,hosp_count(VALUE(LEFT(Options!$B$24,2)),$C88,$E88,$F88,2016,$I88,1,$H88,$G88*$H88, Options!$B$8)))","v":{"$error":"#NAME?"}},{"$f":"IF(AND(OR(Calculations!$E$2=\"Orkney Health Board\",Calculations!$E$2=\"Orkney Islands Local Authority\"),$F88=1),0,IF(AND(OR(Calculations!$E$2=\"Shetland Health Board\",Calculations!$E$2=\"Western Isles Health Board\",Calculations!$E$2=\"Shetland Islands Local Authority\",Calculations!$E$2=\"Eilean Siar Local Authority\"),OR($F88=1,$F88=5)),0,hosp_count(VALUE(LEFT(Options!$B$24,2)),$C88,$E88,$F88,2016,$I88+$J88,1,$H88,$G88*$H88, Options!$B$8)))","v":{"$error":"#NAME?"}},{"$f":"IF(AND(OR(Calculations!$E$2=\"Orkney Health Board\",Calculations!$E$2=\"Orkney Islands Local Authority\"),$F88=1),0,IF(AND(OR(Calculations!$E$2=\"Shetland Health Board\",Calculations!$E$2=\"Western Isles Health Board\",Calculations!$E$2=\"Shetland Islands Local Authority\",Calculations!$E$2=\"Eilean Siar Local Authority\"),OR($F88=1,$F88=5)),0,prem_mort(VALUE(LEFT(Options!$B$24,2)),$C88,$E88,$F88,2016,$I88,1,$H88,$G88*$H88,Options!$B$8)))","v":250.3959888764},{"$f":"IF(AND(OR(Calculations!$E$2=\"Orkney Health Board\",Calculations!$E$2=\"Orkney Islands Local Authority\"),$F88=1),0,IF(AND(OR(Calculations!$E$2=\"Shetland Health Board\",Calculations!$E$2=\"Western Isles Health Board\",Calculations!$E$2=\"Shetland Islands Local Authority\",Calculations!$E$2=\"Eilean Siar Local Authority\"),OR($F88=1,$F88=5)),0,prem_mort(VALUE(LEFT(Options!$B$24,2)),$C88,$E88,$F88,2016,$I88+$J88,1,$H88,$G88*$H88,Options!$B$8)))","v":248.509841486},697.90955146998158,692.6524373878143,21900.398235580298,21735.430021967499,{"$error":"#NAME?"},{"$error":"#NAME?"},697.90955146998158,692.6524373878143,4885366.8602898708,4848567.0617147004,153302787.6490621,152148010.1537725,{"$error":"#NAME?"},{"$error":"#NAME?"},4885366.8602898708,4848567.0617147004,7000]
[null,"Male 50-54",51.998646000000001,79.988649999999993,"male",1,{"$f":"HLOOKUP(Calculations!$E$2,'Prevalence Rates'!$C$3:$BC$249,'Prevalence Rates'!$BD89,FALSE)","v":0.47100000000000003},{"$f":"HLOOKUP(Calculations!$E$2,'Population 2016'!$C$3:$BC$249,'Population 2016'!BD89,FALSE)","v":36922},0,{"$f":"HLOOKUP(Results!E$4,Targeting!$C$3:$F$249,Targeting!$G89,FALSE)","v":6062},{"$f":"IF(AND(OR(Calculations!$E$2=\"Orkney Health Board\",Calculations!$E$2=\"Orkney Islands Local Authority\"),$F89=1),0,IF(AND(OR(Calculations!$E$2=\"Shetland Health Board\",Calculations!$E$2=\"Western Isles Health Board\",Calculations!$E$2=\"Shetland Islands Local Authority\",Calculations!$E$2=\"Eilean Siar Local Authority\"),OR($F89=1,$F89=5)),0,new_ci(VALUE(LEFT(Options!$B$24,2)),$C89,$E89,$F89,2016,$I89,1,$H89,$G89*$H89,Options!$B$8)))","v":374.12647296170002},{"$f":"IF(AND(OR(Calculations!$E$2=\"Orkney Health Board\",Calculations!$E$2=\"Orkney Islands Local Authority\"),$F89=1),0,IF(AND(OR(Calculations!$E$2=\"Shetland Health Board\",Calculations!$E$2=\"Western Isles Health Board\",Calculations!$E$2=\"Shetland Islands Local Authority\",Calculations!$E$2=\"Eilean Siar Local Authority\"),OR($F89=1,$F89=5)),0,new_ci(VALUE(LEFT(Options!$B$24,2)),$C89,$E89,$F89,2016,$I89+$J89,1,$H89,$G89*$H89,Options!$B$8)))","v":371.31433056010002},{"$f":"IF(AND(OR(Calculations!$E$2=\"Orkney Health Board\",Calculations!$E$2=\"Orkney Islands Local Authority\"),$F89=1),0,IF(AND(OR(Calculations!$E$2=\"Shetland Health Board\",Calculations!$E$2=\"Western Isles Health Board\",Calculations!$E$2=\"Shetland Islands Local Authority\",Calculations!$E$2=\"Eilean Siar Local Authority\"),OR($F89=1,$F89=5)),0,new_yllv2(VALUE(LEFT(Options!$B$24,2)),$C89,$D89,$E89,$F89,2016,$I89,1,$H89,$G89*$H89,Options!$B$8)))","v":10097.6750017422},{"$f":"IF(AND(OR(Calculations!$E$2=\"Orkney Health Board\",Calculations!$E$2=\"Orkney Islands Local Authority\"),$F89=1),0,IF(AND(OR(Calculations!$E$2=\"Shetland Health Board\",Calculations!$E$2=\"Western Isles Health Board\",Calculations!$E$2=\"Shetland Islands Local Authority\",Calculations!$E$2=\"Eilean Siar Local Authority\"),OR($F89=1,$F89=5)),0,new_yllv2(VALUE(LEFT(Options!$B$24,2)),$C89,$D89,$E89,$F89,2016,$I89+$J89,1,$H89,$G89*$H89,Options!$B$8)))","v":10021.775267074399},{"$f":"IF(AND(OR(Calculations!$E$2=\"Orkney Health Board\",Calculations!$E$2=\"Orkney Islands Local Authority\"),$F89=1),0,IF(AND(OR(Calculations!$E$2=\"Shetland Health Board\",Calculations!$E$2=\"Western Isles Health Board\",Calculations!$E$2=\"Shetland Islands Local Authority\",Calculations!$E$2=\"Eilean Siar Local Authority\"),OR($F89=1,$F89=5)),0,hosp_count(VALUE(LEFT(Options!$B$24,2)),$C89,$E89,$F89,2016,$I89,1,$H89,$G89*$H89, Options!$B$8)))","v":{"$error":"#NAME?"}},{"$f":"IF(AND(OR(Calculations!$E$2=\"Orkney Health Board\",Calculations!$E$2=\"Orkney Islands Local Authority\"),$F89=1),0,IF(AND(OR(Calculations!$E$2=\"Shetland Health Board\",Calculations!$E$2=\"Western Isles Health Board\",Calculations!$E$2=\"Shetland Islands Local Authority\",Calculations!$E$2=\"Eilean Siar Local Authority\"),OR($F89=1,$F89=5)),0,hosp_count(VALUE(LEFT(Options!$B$24,2)),$C89,$E89,$F89,2016,$I89+$J89,1,$H89,$G89*$H89, Options!$B$8)))","v":{"$error":"#NAME?"}},{"$f":"IF(AND(OR(Calculations!$E$2=\"Orkney Health Board\",Calculations!$E$2=\"Orkney Islands Local Authority\"),$F89=1),0,IF(AND(OR(Calculations!$E$2=\"Shetland Health Board\",Calculations!$E$2=\"Western Isles Health Board\",Calculations!$E$2=\"Shetland Islands Local Authority\",Calculations!$E$2=\"Eilean Siar Local Authority\"),OR($F89=1,$F89=5)),0,prem_mort(VALUE(LEFT(Options!$B$24,2)),$C89,$E89,$F89,2016,$I89,1,$H89,$G89*$H89,Options!$B$8)))","v":374.12647296170002},{"$f":"IF(AND(OR(Calculations!$E$2=\"Orkney Health Board\",Calculations!$E$2=\"Orkney Islands Local Authority\"),$F89=1),0,IF(AND(OR(Calculations!$E$2=\"Shetland Health Board\",Calculations!$E$2=\"Western Isles Health Board\",Calculations!$E$2=\"Shetland Islands Local Authority\",Calculations!$E$2=\"Eilean Siar Local Authority\"),OR($F89=1,$F89=5)),0,prem_mort(VALUE(LEFT(Options!$B$24,2)),$C89,$E89,$F89,2016,$I89+$J89,1,$H89,$G89*$H89,Options!$B$8)))","v":371.31433056010002},1013.2887518598668,1005.6723107093331,27348.667465852879,27143.099688734084,{"$error":"#NAME?"},{"$error":"#NAME?"},1013.2887518598668,1005.6723107093331,7093021.2630190672,7039706.1749653323,191440672.26097015,190001697.82113859,{"$error":"#NAME?"},{"$error":"#NAME?"},7093021.2630190672,7039706.1749653323,7000]
[null,"Male 55-59",56.950867000000002,80.660870000000003,"male",1,{"$f":"HLOOKUP(Calculations!$E$2,'Prevalence Rates'!$C$3:$BC$249,'Prevalence Rates'!$BD90,FALSE)","v":0.59299999999999997},{"$f":"HLOOKUP(Calculations!$E$2,'Population 2016'!$C$3:$BC$249,'Population 2016'!BD90,FALSE)","v":33251},0,{"$f":"HLOOKUP(Results!E$4,Targeting!$C$3:$F$249,Targeting!$G90,FALSE)","v":5459},{"$f":"IF(AND(OR(Calculations!$E$2=\"Orkney Health Board\",Calculations!$E$2=\"Orkney Islands Local Authority\"),$F90=1),0,IF(AND(OR(Calculations!$E$2=\"Shetland Health Board\",Calculations!$E$2=\"Western Isles Health Board\",Calculations!$E$2=\"Shetland Islands Local Authority\",Calculations!$E$2=\"Eilean Siar Local Authority\"),OR($F90=1,$F90=5)),0,new_ci(VALUE(LEFT(Options!$B$24,2)),$C90,$E90,$F90,2016,$I90,1,$H90,$G90*$H90,Options!$B$8)))","v":488.53034902309997},{"$f":"IF(AND(OR(Calculations!$E$2=\"Orkney Health Board\",Calculations!$E$2=\"Orkney Islands Local Authority\"),$F90=1),0,IF(AND(OR(Calculations!$E$2=\"Shetland Health Board\",Calculations!$E$2=\"Western Isles Health Board\",Calculations!$E$2=\"Shetland Islands Local Authority\",Calculations!$E$2=\"Eilean Siar Local Authority\"),OR($F90=1,$F90=5)),0,new_ci(VALUE(LEFT(Options!$B$24,2)),$C90,$E90,$F90,2016,$I90+$J90,1,$H90,$G90*$H90,Options!$B$8)))","v":485.0198042358},{"$f":"IF(AND(OR(Calculations!$E$2=\"Orkney Health Board\",Calculations!$E$2=\"Orkney Islands Local Authority\"),$F90=1),0,IF(AND(OR(Calculations!$E$2=\"Shetland Health Board\",Calculations!$E$2=\"Western Isles Health Board\",Calculations!$E$2=\"Shetland Islands Local Authority\",Calculations!$E$2=\"Eilean Siar Local Authority\"),OR($F90=1,$F90=5)),0,new_yllv2(VALUE(LEFT(Options!$B$24,2)),$C90,$D90,$E90,$F90,2016,$I90,1,$H90,$G90*$H90,Options!$B$8)))","v":11094.525691905599},{"$f":"IF(AND(OR(Calculations!$E$2=\"Orkney Health Board\",Calculations!$E$2=\"Orkney Islands Local Authority\"),$F90=1),0,IF(AND(OR(Calculations!$E$2=\"Shetland Health Board\",Calculations!$E$2=\"Western Isles Health Board\",Calculations!$E$2=\"Shetland Islands Local Authority\",Calculations!$E$2=\"Eilean Siar Local Authority\"),OR($F90=1,$F90=5)),0,new_yllv2(VALUE(LEFT(Options!$B$24,2)),$C90,$D90,$E90,$F90,2016,$I90+$J90,1,$H90,$G90*$H90,Options!$B$8)))","v":11014.8012092544},{"$f":"IF(AND(OR(Calculations!$E$2=\"Orkney Health Board\",Calculations!$E$2=\"Orkney Islands Local Authority\"),$F90=1),0,IF(AND(OR(Calculations!$E$2=\"Shetland Health Board\",Calculations!$E$2=\"Western Isles Health Board\",Calculations!$E$2=\"Shetland Islands Local Authority\",Calculations!$E$2=\"Eilean Siar Local Authority\"),OR($F90=1,$F90=5)),0,hosp_count(VALUE(LEFT(Options!$B$24,2)),$C90,$E90,$F90,2016,$I90,1,$H90,$G90*$H90, Options!$B$8)))","v":{"$error":"#NAME?"}},{"$f":"IF(AND(OR(Calculations!$E$2=\"Orkney Health Board\",Calculations!$E$2=\"Orkney Islands Local Authority\"),$F90=1),0,IF(AND(OR(Calculations!$E$2=\"Shetland Health Board\",Calculations!$E$2=\"Western Isles Health Board\",Calculations!$E$2=\"Shetland Islands Local Authority\",Calculations!$E$2=\"Eilean Siar Local Authority\"),OR($F90=1,$F90=5)),0,hosp_count(VALUE(LEFT(Options!$B$24,2)),$C90,$E90,$F90,2016,$I90+$J90,1,$H90,$G90*$H90, Options!$B$8)))","v":{"$error":"#NAME?"}},{"$f":"IF(AND(OR(Calculations!$E$2=\"Orkney Health Board\",Calculations!$E$2=\"Orkney Islands Local Authority\"),$F90=1),0,IF(AND(OR(Calculations!$E$2=\"Shetland Health Board\",Calculations!$E$2=\"Western Isles Health Board\",Calculations!$E$2=\"Shetland Islands Local Authority\",Calculations!$E$2=\"Eilean Siar Local Authority\"),OR($F90=1,$F90=5)),0,prem_mort(VALUE(LEFT(Options!$B$24,2)),$C90,$E90,$F90,2016,$I90,1,$H90,$G90*$H90,Options!$B$8)))","v":488.53034902309997},{"$f":"IF(AND(OR(Calculations!$E$2=\"Orkney Health Board\",Calculations!$E$2=\"Orkney Islands Local Authority\"),$F90=1),0,IF(AND(OR(Calculations!$E$2=\"Shetland Health Board\",Calculations!$E$2=\"Western Isles Health Board\",Calculations!$E$2=\"Shetland Islands Local Authority\",Calculations!$E$2=\"Eilean Siar Local Authority\"),OR($F90=1,$F90=5)),0,prem_mort(VALUE(LEFT(Options!$B$24,2)),$C90,$E90,$F90,2016,$I90+$J90,1,$H90,$G90*$H90,Options!$B$8)))","v":485.0198042358},1469.2200205199842,1458.6623086096658,33365.99107366876,33126.225404512341,{"$error":"#NAME?"},{"$error":"#NAME?"},1469.2200205199842,1458.6623086096658,9549930.1333798971,9481305.0059628282,216878941.97884694,215320465.12933022,{"$error":"#NAME?"},{"$error":"#NAME?"},9549930.1333798971,9481305.0059628282,6500]
[null,"Male 60-64",61.942988999999997,81.612989999999996,"male",1,{"$f":"HLOOKUP(Calculations!$E$2,'Prevalence Rates'!$C$3:$BC$249,'Prevalence Rates'!$BD91,FALSE)","v":0.59299999999999997},{"$f":"HLOOKUP(Calculations!$E$2,'Population 2016'!$C$3:$BC$249,'Population 2016'!BD91,FALSE)","v":27358},0,{"$f":"HLOOKUP(Results!E$4,Targeting!$C$3:$F$249,Targeting!$G91,FALSE)","v":4492},{"$f":"IF(AND(OR(Calculations!$E$2=\"Orkney Health Board\",Calculations!$E$2=\"Orkney Islands Local Authority\"),$F91=1),0,IF(AND(OR(Calculations!$E$2=\"Shetland Health Board\",Calculations!$E$2=\"Western Isles Health Board\",Calculations!$E$2=\"Shetland Islands Local Authority\",Calculations!$E$2=\"Eilean Siar Local Authority\"),OR($F91=1,$F91=5)),0,new_ci(VALUE(LEFT(Options!$B$24,2)),$C91,$E91,$F91,2016,$I91,1,$H91,$G91*$H91,Options!$B$8)))","v":583.91034736929998},{"$f":"IF(AND(OR(Calculations!$E$2=\"Orkney Health Board\",Calculations!$E$2=\"Orkney Islands Local Authority\"),$F91=1),0,IF(AND(OR(Calculations!$E$2=\"Shetland Health Board\",Calculations!$E$2=\"Western Isles Health Board\",Calculations!$E$2=\"Shetland Islands Local Authority\",Calculations!$E$2=\"Eilean Siar Local Authority\"),OR($F91=1,$F91=5)),0,new_ci(VALUE(LEFT(Options!$B$24,2)),$C91,$E91,$F91,2016,$I91+$J91,1,$H91,$G91*$H91,Options!$B$8)))","v":579.73111634530005},{"$f":"IF(AND(OR(Calculations!$E$2=\"Orkney Health Board\",Calculations!$E$2=\"Orkney Islands Local Authority\"),$F91=1),0,IF(AND(OR(Calculations!$E$2=\"Shetland Health Board\",Calculations!$E$2=\"Western Isles Health Board\",Calculations!$E$2=\"Shetland Islands Local Authority\",Calculations!$E$2=\"Eilean Siar Local Authority\"),OR($F91=1,$F91=5)),0,new_yllv2(VALUE(LEFT(Options!$B$24,2)),$C91,$D91,$E91,$F91,2016,$I91,1,$H91,$G91*$H91,Options!$B$8)))","v":10901.6067692952},{"$f":"IF(AND(OR(Calculations!$E$2=\"Orkney Health Board\",Calculations!$E$2=\"Orkney Islands Local Authority\"),$F91=1),0,IF(AND(OR(Calculations!$E$2=\"Shetland Health Board\",Calculations!$E$2=\"Western Isles Health Board\",Calculations!$E$2=\"Shetland Islands Local Authority\",Calculations!$E$2=\"Eilean Siar Local Authority\"),OR($F91=1,$F91=5)),0,new_yllv2(VALUE(LEFT(Options!$B$24,2)),$C91,$D91,$E91,$F91,2016,$I91+$J91,1,$H91,$G91*$H91,Options!$B$8)))","v":10823.5805218979},{"$f":"IF(AND(OR(Calculations!$E$2=\"Orkney Health Board\",Calculations!$E$2=\"Orkney Islands Local Authority\"),$F91=1),0,IF(AND(OR(Calculations!$E$2=\"Shetland Health Board\",Calculations!$E$2=\"Western Isles Health Board\",Calculations!$E$2=\"Shetland Islands Local Authority\",Calculations!$E$2=\"Eilean Siar Local Authority\"),OR($F91=1,$F91=5)),0,hosp_count(VALUE(LEFT(Options!$B$24,2)),$C91,$E91,$F91,2016,$I91,1,$H91,$G91*$H91, Options!$B$8)))","v":{"$error":"#NAME?"}},{"$f":"IF(AND(OR(Calculations!$E$2=\"Orkney Health Board\",Calculations!$E$2=\"Orkney Islands Local Authority\"),$F91=1),0,IF(AND(OR(Calculations!$E$2=\"Shetland Health Board\",Calculations!$E$2=\"Western Isles Health Board\",Calculations!$E$2=\"Shetland Islands Local Authority\",Calculations!$E$2=\"Eilean Siar Local Authority\"),OR($F91=1,$F91=5)),0,hosp_count(VALUE(LEFT(Options!$B$24,2)),$C91,$E91,$F91,2016,$I91+$J91,1,$H91,$G91*$H91, Options!$B$8)))","v":{"$error":"#NAME?"}},{"$f":"IF(AND(OR(Calculations!$E$2=\"Orkney Health Board\",Calculations!$E$2=\"Orkney Islands Local Authority\"),$F91=1),0,IF(AND(OR(Calculations!$E$2=\"Shetland Health Board\",Calculations!$E$2=\"Western Isles Health Board\",Calculations!$E$2=\"Shetland Islands Local Authority\",Calculations!$E$2=\"Eilean Siar Local Authority\"),OR($F91=1,$F91=5)),0,prem_mort(VALUE(LEFT(Options!$B$24,2)),$C91,$E91,$F91,2016,$I91,1,$H91,$G91*$H91,Options!$B$8)))","v":583.91034736929998},{"$f":"IF(AND(OR(Calculations!$E$2=\"Orkney Health Board\",Calculations!$E$2=\"Orkney Islands Local Authority\"),$F91=1),0,IF(AND(OR(Calculations!$E$2=\"Shetland Health Board\",Calculations!$E$2=\"Western Isles Health Board\",Calculations!$E$2=\"Shetland Islands Local Authority\",Calculations!$E$2=\"Eilean Siar Local Authority\"),OR($F91=1,$F91=5)),0,prem_mort(VALUE(LEFT(Options!$B$24,2)),$C91,$E91,$F91,2016,$I91+$J91,1,$H91,$G91*$H91,Options!$B$8)))","v":579.73111634530005},2134.3312646001168,2119.0551807343377,39847.966844415532,39562.762343365379,{"$error":"#NAME?"},{"$error":"#NAME?"},2134.3312646001168,2119.0551807343377,12805987.587600701,12714331.084406026,239087801.06649318,237376574.06019229,{"$error":"#NAME?"},{"$error":"#NAME?"},12805987.587600701,12714331.084406026,6000]
[null,"Male 65-69",67.054419999999993,82.954419999999999,"male",1,{"$f":"HLOOKUP(Calculations!$E$2,'Prevalence Rates'!$C$3:$BC$249,'Prevalence Rates'!$BD92,FALSE)","v":0.61499999999999999},{"$f":"HLOOKUP(Calculations!$E$2,'Population 2016'!$C$3:$BC$249,'Population 2016'!BD92,FALSE)","v":25567},0,{"$f":"HLOOKUP(Results!E$4,Targeting!$C$3:$F$249,Targeting!$G92,FALSE)","v":4198},{"$f":"IF(AND(OR(Calculations!$E$2=\"Orkney Health Board\",Calculations!$E$2=\"Orkney Islands Local Authority\"),$F92=1),0,IF(AND(OR(Calculations!$E$2=\"Shetland Health Board\",Calculations!$E$2=\"Western Isles Health Board\",Calculations!$E$2=\"Shetland Islands Local Authority\",Calculations!$E$2=\"Eilean Siar Local Authority\"),OR($F92=1,$F92=5)),0,new_ci(VALUE(LEFT(Options!$B$24,2)),$C92,$E92,$F92,2016,$I92,1,$H92,$G92*$H92,Options!$B$8)))","v":798.51844312050002},{"$f":"IF(AND(OR(Calculations!$E$2=\"Orkney Health Board\",Calculations!$E$2=\"Orkney Islands Local Authority\"),$F92=1),0,IF(AND(OR(Calculations!$E$2=\"Shetland Health Board\",Calculations!$E$2=\"Western Isles Health Board\",Calculations!$E$2=\"Shetland Islands Local Authority\",Calculations!$E$2=\"Eilean Siar Local Authority\"),OR($F92=1,$F92=5)),0,new_ci(VALUE(LEFT(Options!$B$24,2)),$C92,$E92,$F92,2016,$I92+$J92,1,$H92,$G92*$H92,Options!$B$8)))","v":792.87917442590003},{"$f":"IF(AND(OR(Calculations!$E$2=\"Orkney Health Board\",Calculations!$E$2=\"Orkney Islands Local Authority\"),$F92=1),0,IF(AND(OR(Calculations!$E$2=\"Shetland Health Board\",Calculations!$E$2=\"Western Isles Health Board\",Calculations!$E$2=\"Shetland Islands Local Authority\",Calculations!$E$2=\"Eilean Siar Local Authority\"),OR($F92=1,$F92=5)),0,new_yllv2(VALUE(LEFT(Options!$B$24,2)),$C92,$D92,$E92,$F92,2016,$I92,1,$H92,$G92*$H92,Options!$B$8)))","v":11897.9248024955},{"$f":"IF(AND(OR(Calculations!$E$2=\"Orkney Health Board\",Calculations!$E$2=\"Orkney Islands Local Authority\"),$F92=1),0,IF(AND(OR(Calculations!$E$2=\"Shetland Health Board\",Calculations!$E$2=\"Western Isles Health Board\",Calculations!$E$2=\"Shetland Islands Local Authority\",Calculations!$E$2=\"Eilean Siar Local Authority\"),OR($F92=1,$F92=5)),0,new_yllv2(VALUE(LEFT(Options!$B$24,2)),$C92,$D92,$E92,$F92,2016,$I92+$J92,1,$H92,$G92*$H92,Options!$B$8)))","v":11813.899698945899},{"$f":"IF(AND(OR(Calculations!$E$2=\"Orkney Health Board\",Calculations!$E$2=\"Orkney Islands Local Authority\"),$F92=1),0,IF(AND(OR(Calculations!$E$2=\"Shetland Health Board\",Calculations!$E$2=\"Western Isles Health Board\",Calculations!$E$2=\"Shetland Islands Local Authority\",Calculations!$E$2=\"Eilean Siar Local Authority\"),OR($F92=1,$F92=5)),0,hosp_count(VALUE(LEFT(Options!$B$24,2)),$C92,$E92,$F92,2016,$I92,1,$H92,$G92*$H92, Options!$B$8)))","v":{"$error":"#NAME?"}},{"$f":"IF(AND(OR(Calculations!$E$2=\"Orkney Health Board\",Calculations!$E$2=\"Orkney Islands Local Authority\"),$F92=1),0,IF(AND(OR(Calculations!$E$2=\"Shetland Health Board\",Calculations!$E$2=\"Western Isles Health Board\",Calculations!$E$2=\"Shetland Islands Local Authority\",Calculations!$E$2=\"Eilean Siar Local Authority\"),OR($F92=1,$F92=5)),0,hosp_count(VALUE(LEFT(Options!$B$24,2)),$C92,$E92,$F92,2016,$I92+$J92,1,$H92,$G92*$H92, Options!$B$8)))","v":{"$error":"#NAME?"}},{"$f":"IF(AND(OR(Calculations!$E$2=\"Orkney Health Board\",Calculations!$E$2=\"Orkney Islands Local Authority\"),$F92=1),0,IF(AND(OR(Calculations!$E$2=\"Shetland Health Board\",Calculations!$E$2=\"Western Isles Health Board\",Calculations!$E$2=\"Shetland Islands Local Authority\",Calculations!$E$2=\"Eilean Siar Local Authority\"),OR($F92=1,$F92=5)),0,prem_mort(VALUE(LEFT(Options!$B$24,2)),$C92,$E92,$F92,2016,$I92,1,$H92,$G92*$H92,Options!$B$8)))","v":798.51844312050002},{"$f":"IF(AND(OR(Calculations!$E$2=\"Orkney Health Board\",Calculations!$E$2=\"Orkney Islands Local Authority\"),$F92=1),0,IF(AND(OR(Calculations!$E$2=\"Shetland Health Board\",Calculations!$E$2=\"Western Isles Health Board\",Calculations!$E$2=\"Shetland Islands Local Authority\",Calculations!$E$2=\"Eilean Siar Local Authority\"),OR($F92=1,$F92=5)),0,prem_mort(VALUE(LEFT(Options!$B$24,2)),$C92,$E92,$F92,2016,$I92+$J92,1,$H92,$G92*$H92,Options!$B$8)))","v":792.87917442590003},3123.2387183498258,3101.1818923843234,46536.256903412599,46207.610196526381,{"$error":"#NAME?"},{"$error":"#NAME?"},3123.2387183498258,3101.1818923843234,17177812.950924043,17056500.408113778,255949412.96876928,254141856.0808951,{"$f":"W92*$AI92","v":{"$error":"#NAME?"}},{"$f":"X92*$AI92","v":{"$error":"#NAME?"}},{"$f":"Y92*$AI92","v":17177812.950924043},{"$f":"Z92*$AI92","v":17056500.408113778},5500]
[null,"Male 70-74",71.891098,84.341099999999997,"male",1,{"$f":"HLOOKUP(Calculations!$E$2,'Prevalence Rates'!$C$3:$BC$249,'Prevalence Rates'!$BD93,FALSE)","v":0.61499999999999999},{"$f":"HLOOKUP(Calculations!$E$2,'Population 2016'!$C$3:$BC$249,'Population 2016'!BD93,FALSE)","v":18358},0,{"$f":"HLOOKUP(Results!E$4,Targeting!$C$3:$F$249,Targeting!$G93,FALSE)","v":3014},{"$f":"IF(AND(OR(Calculations!$E$2=\"Orkney Health Board\",Calculations!$E$2=\"Orkney Islands Local Authority\"),$F93=1),0,IF(AND(OR(Calculations!$E$2=\"Shetland Health Board\",Calculations!$E$2=\"Western Isles Health Board\",Calculations!$E$2=\"Shetland Islands Local Authority\",Calculations!$E$2=\"Eilean Siar Local Authority\"),OR($F93=1,$F93=5)),0,new_ci(VALUE(LEFT(Options!$B$24,2)),$C93,$E93,$F93,2016,$I93,1,$H93,$G93*$H93,Options!$B$8)))","v":820.19721713859997},{"$f":"IF(AND(OR(Calculations!$E$2=\"Orkney Health Board\",Calculations!$E$2=\"Orkney Islands Local Authority\"),$F93=1),0,IF(AND(OR(Calculations!$E$2=\"Shetland Health Board\",Calculations!$E$2=\"Western Isles Health Board\",Calculations!$E$2=\"Shetland Islands Local Authority\",Calculations!$E$2=\"Eilean Siar Local Authority\"),OR($F93=1,$F93=5)),0,new_ci(VALUE(LEFT(Options!$B$24,2)),$C93,$E93,$F93,2016,$I93+$J93,1,$H93,$G93*$H93,Options!$B$8)))","v":814.45376978280001},{"$f":"IF(AND(OR(Calculations!$E$2=\"Orkney Health Board\",Calculations!$E$2=\"Orkney Islands Local Authority\"),$F93=1),0,IF(AND(OR(Calculations!$E$2=\"Shetland Health Board\",Calculations!$E$2=\"Western Isles Health Board\",Calculations!$E$2=\"Shetland Islands Local Authority\",Calculations!$E$2=\"Eilean Siar Local Authority\"),OR($F93=1,$F93=5)),0,new_yllv2(VALUE(LEFT(Options!$B$24,2)),$C93,$D93,$E93,$F93,2016,$I93,1,$H93,$G93*$H93,Options!$B$8)))","v":9391.2597766313993},{"$f":"IF(AND(OR(Calculations!$E$2=\"Orkney Health Board\",Calculations!$E$2=\"Orkney Islands Local Authority\"),$F93=1),0,IF(AND(OR(Calculations!$E$2=\"Shetland Health Board\",Calculations!$E$2=\"Western Isles Health Board\",Calculations!$E$2=\"Shetland Islands Local Authority\",Calculations!$E$2=\"Eilean Siar Local Authority\"),OR($F93=1,$F93=5)),0,new_yllv2(VALUE(LEFT(Options!$B$24,2)),$C93,$D93,$E93,$F93,2016,$I93+$J93,1,$H93,$G93*$H93,Options!$B$8)))","v":9325.4972929205996},{"$f":"IF(AND(OR(Calculations!$E$2=\"Orkney Health Board\",Calculations!$E$2=\"Orkney Islands Local Authority\"),$F93=1),0,IF(AND(OR(Calculations!$E$2=\"Shetland Health Board\",Calculations!$E$2=\"Western Isles Health Board\",Calculations!$E$2=\"Shetland Islands Local Authority\",Calculations!$E$2=\"Eilean Siar Local Authority\"),OR($F93=1,$F93=5)),0,hosp_count(VALUE(LEFT(Options!$B$24,2)),$C93,$E93,$F93,2016,$I93,1,$H93,$G93*$H93, Options!$B$8)))","v":{"$error":"#NAME?"}},{"$f":"IF(AND(OR(Calculations!$E$2=\"Orkney Health Board\",Calculations!$E$2=\"Orkney Islands Local Authority\"),$F93=1),0,IF(AND(OR(Calculations!$E$2=\"Shetland Health Board\",Calculations!$E$2=\"Western Isles Health Board\",Calculations!$E$2=\"Shetland Islands Local Authority\",Calculations!$E$2=\"Eilean Siar Local Authority\"),OR($F93=1,$F93=5)),0,hosp_count(VALUE(LEFT(Options!$B$24,2)),$C93,$E93,$F93,2016,$I93+$J93,1,$H93,$G93*$H93, Options!$B$8)))","v":{"$error":"#NAME?"}},{"$f":"IF(AND(OR(Calculations!$E$2=\"Orkney Health Board\",Calculations!$E$2=\"Orkney Islands Local Authority\"),$F93=1),0,IF(AND(OR(Calculations!$E$2=\"Shetland Health Board\",Calculations!$E$2=\"Western Isles Health Board\",Calculations!$E$2=\"Shetland Islands Local Authority\",Calculations!$E$2=\"Eilean Siar Local Authority\"),OR($F93=1,$F93=5)),0,prem_mort(VALUE(LEFT(Options!$B$24,2)),$C93,$E93,$F93,2016,$I93,1,$H93,$G93*$H93,Options!$B$8)))","v":820.19721713859997},{"$f":"IF(AND(OR(Calculations!$E$2=\"Orkney Health Board\",Calculations!$E$2=\"Orkney Islands Local Authority\"),$F93=1),0,IF(AND(OR(Calculations!$E$2=\"Shetland Health Board\",Calculations!$E$2=\"Western Isles Health Board\",Calculations!$E$2=\"Shetland Islands Local Authority\",Calculations!$E$2=\"Eilean Siar Local Authority\"),OR($F93=1,$F93=5)),0,prem_mort(VALUE(LEFT(Options!$B$24,2)),$C93,$E93,$F93,2016,$I93+$J93,1,$H93,$G93*$H93,Options!$B$8)))","v":814.45376978280001},4467.7917917997602,4436.5059907549849,51156.224951690812,50798.002467156555,{"$error":"#NAME?"},{"$error":"#NAME?"},4467.7917917997602,4436.5059907549849,22338958.958998799,22182529.953774925,255781124.75845405,253990012.33578277,{"$error":"#NAME?"},{"$error":"#NAME?"},22338958.958998799,22182529.953774925,5000]
[null,"Male 75-79",76.907700000000006,86.357700000000008,"male",1,{"$f":"HLOOKUP(Calculations!$E$2,'Prevalence Rates'!$C$3:$BC$249,'Prevalence Rates'!$BD94,FALSE)","v":0.72099999999999997},{"$f":"HLOOKUP(Calculations!$E$2,'Population 2016'!$C$3:$BC$249,'Population 2016'!BD94,FALSE)","v":13914},0,{"$f":"HLOOKUP(Results!E$4,Targeting!$C$3:$F$249,Targeting!$G94,FALSE)","v":2285},{"$f":"IF(AND(OR(Calculations!$E$2=\"Orkney Health Board\",Calculations!$E$2=\"Orkney Islands Local Authority\"),$F94=1),0,IF(AND(OR(Calculations!$E$2=\"Shetland Health Board\",Calculations!$E$2=\"Western Isles Health Board\",Calculations!$E$2=\"Shetland Islands Local Authority\",Calculations!$E$2=\"Eilean Siar Local Authority\"),OR($F94=1,$F94=5)),0,new_ci(VALUE(LEFT(Options!$B$24,2)),$C94,$E94,$F94,2016,$I94,1,$H94,$G94*$H94,Options!$B$8)))","v":898.38344664900001},{"$f":"IF(AND(OR(Calculations!$E$2=\"Orkney Health Board\",Calculations!$E$2=\"Orkney Islands Local Authority\"),$F94=1),0,IF(AND(OR(Calculations!$E$2=\"Shetland Health Board\",Calculations!$E$2=\"Western Isles Health Board\",Calculations!$E$2=\"Shetland Islands Local Authority\",Calculations!$E$2=\"Eilean Siar Local Authority\"),OR($F94=1,$F94=5)),0,new_ci(VALUE(LEFT(Options!$B$24,2)),$C94,$E94,$F94,2016,$I94+$J94,1,$H94,$G94*$H94,Options!$B$8)))","v":892.37134795999998},{"$f":"IF(AND(OR(Calculations!$E$2=\"Orkney Health Board\",Calculations!$E$2=\"Orkney Islands Local Authority\"),$F94=1),0,IF(AND(OR(Calculations!$E$2=\"Shetland Health Board\",Calculations!$E$2=\"Western Isles Health Board\",Calculations!$E$2=\"Shetland Islands Local Authority\",Calculations!$E$2=\"Eilean Siar Local Authority\"),OR($F94=1,$F94=5)),0,new_yllv2(VALUE(LEFT(Options!$B$24,2)),$C94,$D94,$E94,$F94,2016,$I94,1,$H94,$G94*$H94,Options!$B$8)))","v":7591.3401241841002},{"$f":"IF(AND(OR(Calculations!$E$2=\"Orkney Health Board\",Calculations!$E$2=\"Orkney Islands Local Authority\"),$F94=1),0,IF(AND(OR(Calculations!$E$2=\"Shetland Health Board\",Calculations!$E$2=\"Western Isles Health Board\",Calculations!$E$2=\"Shetland Islands Local Authority\",Calculations!$E$2=\"Eilean Siar Local Authority\"),OR($F94=1,$F94=5)),0,new_yllv2(VALUE(LEFT(Options!$B$24,2)),$C94,$D94,$E94,$F94,2016,$I94+$J94,1,$H94,$G94*$H94,Options!$B$8)))","v":7540.5378902619996},{"$f":"IF(AND(OR(Calculations!$E$2=\"Orkney Health Board\",Calculations!$E$2=\"Orkney Islands Local Authority\"),$F94=1),0,IF(AND(OR(Calculations!$E$2=\"Shetland Health Board\",Calculations!$E$2=\"Western Isles Health Board\",Calculations!$E$2=\"Shetland Islands Local Authority\",Calculations!$E$2=\"Eilean Siar Local Authority\"),OR($F94=1,$F94=5)),0,hosp_count(VALUE(LEFT(Options!$B$24,2)),$C94,$E94,$F94,2016,$I94,1,$H94,$G94*$H94, Options!$B$8)))","v":{"$error":"#NAME?"}},{"$f":"IF(AND(OR(Calculations!$E$2=\"Orkney Health Board\",Calculations!$E$2=\"Orkney Islands Local Authority\"),$F94=1),0,IF(AND(OR(Calculations!$E$2=\"Shetland Health Board\",Calculations!$E$2=\"Western Isles Health Board\",Calculations!$E$2=\"Shetland Islands Local Authority\",Calculations!$E$2=\"Eilean Siar Local Authority\"),OR($F94=1,$F94=5)),0,hosp_count(VALUE(LEFT(Options!$B$24,2)),$C94,$E94,$F94,2016,$I94+$J94,1,$H94,$G94*$H94, Options!$B$8)))","v":{"$error":"#NAME?"}},{"$f":"IF(AND(OR(Calculations!$E$2=\"Orkney Health Board\",Calculations!$E$2=\"Orkney Islands Local Authority\"),$F94=1),0,IF(AND(OR(Calculations!$E$2=\"Shetland Health Board\",Calculations!$E$2=\"Western Isles Health Board\",Calculations!$E$2=\"Shetland Islands Local Authority\",Calculations!$E$2=\"Eilean Siar Local Authority\"),OR($F94=1,$F94=5)),0,prem_mort(VALUE(LEFT(Options!$B$24,2)),$C94,$E94,$F94,2016,$I94,1,$H94,$G94*$H94,Options!$B$8)))","v":0},{"$f":"IF(AND(OR(Calculations!$E$2=\"Orkney Health Board\",Calculations!$E$2=\"Orkney Islands Local Authority\"),$F94=1),0,IF(AND(OR(Calculations!$E$2=\"Shetland Health Board\",Calculations!$E$2=\"Western Isles Health Board\",Calculations!$E$2=\"Shetland Islands Local Authority\",Calculations!$E$2=\"Eilean Siar Local Authority\"),OR($F94=1,$F94=5)),0,prem_mort(VALUE(LEFT(Options!$B$24,2)),$C94,$E94,$F94,2016,$I94+$J94,1,$H94,$G94*$H94,Options!$B$8)))","v":0},6456.6871255498063,6413.4781368405929,54559.006210896223,54193.890256302999,{"$error":"#NAME?"},{"$error":"#NAME?"},0,0,25826748.502199225,25653912.547362372,218236024.8435849,216775561.02521199,{"$error":"#NAME?"},{"$error":"#NAME?"},0,0,4000]
[null,"Male 80-84",81.797089,88.627089999999995,"male",1,{"$f":"HLOOKUP(Calculations!$E$2,'Prevalence Rates'!$C$3:$BC$249,'Prevalence Rates'!$BD95,FALSE)","v":0.72099999999999997},{"$f":"HLOOKUP(Calculations!$E$2,'Population 2016'!$C$3:$BC$249,'Population 2016'!BD95,FALSE)","v":9236},0,{"$f":"HLOOKUP(Results!E$4,Targeting!$C$3:$F$249,Targeting!$G95,FALSE)","v":1516},{"$f":"IF(AND(OR(Calculations!$E$2=\"Orkney Health Board\",Calculations!$E$2=\"Orkney Islands Local Authority\"),$F95=1),0,IF(AND(OR(Calculations!$E$2=\"Shetland Health Board\",Calculations!$E$2=\"Western Isles Health Board\",Calculations!$E$2=\"Shetland Islands Local Authority\",Calculations!$E$2=\"Eilean Siar Local Authority\"),OR($F95=1,$F95=5)),0,new_ci(VALUE(LEFT(Options!$B$24,2)),$C95,$E95,$F95,2016,$I95,1,$H95,$G95*$H95,Options!$B$8)))","v":849.74884163649995},{"$f":"IF(AND(OR(Calculations!$E$2=\"Orkney Health Board\",Calculations!$E$2=\"Orkney Islands Local Authority\"),$F95=1),0,IF(AND(OR(Calculations!$E$2=\"Shetland Health Board\",Calculations!$E$2=\"Western Isles Health Board\",Calculations!$E$2=\"Shetland Islands Local Authority\",Calculations!$E$2=\"Eilean Siar Local Authority\"),OR($F95=1,$F95=5)),0,new_ci(VALUE(LEFT(Options!$B$24,2)),$C95,$E95,$F95,2016,$I95+$J95,1,$H95,$G95*$H95,Options!$B$8)))","v":844.1603844581},{"$f":"IF(AND(OR(Calculations!$E$2=\"Orkney Health Board\",Calculations!$E$2=\"Orkney Islands Local Authority\"),$F95=1),0,IF(AND(OR(Calculations!$E$2=\"Shetland Health Board\",Calculations!$E$2=\"Western Isles Health Board\",Calculations!$E$2=\"Shetland Islands Local Authority\",Calculations!$E$2=\"Eilean Siar Local Authority\"),OR($F95=1,$F95=5)),0,new_yllv2(VALUE(LEFT(Options!$B$24,2)),$C95,$D95,$E95,$F95,2016,$I95,1,$H95,$G95*$H95,Options!$B$8)))","v":4954.0365964896},{"$f":"IF(AND(OR(Calculations!$E$2=\"Orkney Health Board\",Calculations!$E$2=\"Orkney Islands Local Authority\"),$F95=1),0,IF(AND(OR(Calculations!$E$2=\"Shetland Health Board\",Calculations!$E$2=\"Western Isles Health Board\",Calculations!$E$2=\"Shetland Islands Local Authority\",Calculations!$E$2=\"Eilean Siar Local Authority\"),OR($F95=1,$F95=5)),0,new_yllv2(VALUE(LEFT(Options!$B$24,2)),$C95,$D95,$E95,$F95,2016,$I95+$J95,1,$H95,$G95*$H95,Options!$B$8)))","v":4921.4558855511004},{"$f":"IF(AND(OR(Calculations!$E$2=\"Orkney Health Board\",Calculations!$E$2=\"Orkney Islands Local Authority\"),$F95=1),0,IF(AND(OR(Calculations!$E$2=\"Shetland Health Board\",Calculations!$E$2=\"Western Isles Health Board\",Calculations!$E$2=\"Shetland Islands Local Authority\",Calculations!$E$2=\"Eilean Siar Local Authority\"),OR($F95=1,$F95=5)),0,hosp_count(VALUE(LEFT(Options!$B$24,2)),$C95,$E95,$F95,2016,$I95,1,$H95,$G95*$H95, Options!$B$8)))","v":{"$error":"#NAME?"}},{"$f":"IF(AND(OR(Calculations!$E$2=\"Orkney Health Board\",Calculations!$E$2=\"Orkney Islands Local Authority\"),$F95=1),0,IF(AND(OR(Calculations!$E$2=\"Shetland Health Board\",Calculations!$E$2=\"Western Isles Health Board\",Calculations!$E$2=\"Shetland Islands Local Authority\",Calculations!$E$2=\"Eilean Siar Local Authority\"),OR($F95=1,$F95=5)),0,hosp_count(VALUE(LEFT(Options!$B$24,2)),$C95,$E95,$F95,2016,$I95+$J95,1,$H95,$G95*$H95, Options!$B$8)))","v":{"$error":"#NAME?"}},{"$f":"IF(AND(OR(Calculations!$E$2=\"Orkney Health Board\",Calculations!$E$2=\"Orkney Islands Local Authority\"),$F95=1),0,IF(AND(OR(Calculations!$E$2=\"Shetland Health Board\",Calculations!$E$2=\"Western Isles Health Board\",Calculations!$E$2=\"Shetland Islands Local Authority\",Calculations!$E$2=\"Eilean Siar Local Authority\"),OR($F95=1,$F95=5)),0,prem_mort(VALUE(LEFT(Options!$B$24,2)),$C95,$E95,$F95,2016,$I95,1,$H95,$G95*$H95,Options!$B$8)))","v":0},{"$f":"IF(AND(OR(Calculations!$E$2=\"Orkney Health Board\",Calculations!$E$2=\"Orkney Islands Local Authority\"),$F95=1),0,IF(AND(OR(Calculations!$E$2=\"Shetland Health Board\",Calculations!$E$2=\"Western Isles Health Board\",Calculations!$E$2=\"Shetland Islands Local Authority\",Calculations!$E$2=\"Eilean Siar Local Authority\"),OR($F95=1,$F95=5)),0,prem_mort(VALUE(LEFT(Options!$B$24,2)),$C95,$E95,$F95,2016,$I95+$J95,1,$H95,$G95*$H95,Options!$B$8)))","v":0},9200.3988916901253,9139.8915597455616,53638.334738951926,53285.576933208104,{"$error":"#NAME?"},{"$error":"#NAME?"},0,0,23000997.229225311,22849728.899363905,134095836.84737982,133213942.33302025,{"$error":"#NAME?"},{"$error":"#NAME?"},0,0,2500]
[null,"Male 85-89",86.630752999999999,91.420750000000012,"male",1,{"$f":"HLOOKUP(Calculations!$E$2,'Prevalence Rates'!$C$3:$BC$249,'Prevalence Rates'!$BD96,FALSE)","v":0.72099999999999997},{"$f":"HLOOKUP(Calculations!$E$2,'Population 2016'!$C$3:$BC$249,'Population 2016'!BD96,FALSE)","v":4449},0,{"$f":"HLOOKUP(Results!E$4,Targeting!$C$3:$F$249,Targeting!$G96,FALSE)","v":730},{"$f":"IF(AND(OR(Calculations!$E$2=\"Orkney Health Board\",Calculations!$E$2=\"Orkney Islands Local Authority\"),$F96=1),0,IF(AND(OR(Calculations!$E$2=\"Shetland Health Board\",Calculations!$E$2=\"Western Isles Health Board\",Calculations!$E$2=\"Shetland Islands Local Authority\",Calculations!$E$2=\"Eilean Siar Local Authority\"),OR($F96=1,$F96=5)),0,new_ci(VALUE(LEFT(Options!$B$24,2)),$C96,$E96,$F96,2016,$I96,1,$H96,$G96*$H96,Options!$B$8)))","v":577.19022977019995},{"$f":"IF(AND(OR(Calculations!$E$2=\"Orkney Health Board\",Calculations!$E$2=\"Orkney Islands Local Authority\"),$F96=1),0,IF(AND(OR(Calculations!$E$2=\"Shetland Health Board\",Calculations!$E$2=\"Western Isles Health Board\",Calculations!$E$2=\"Shetland Islands Local Authority\",Calculations!$E$2=\"Eilean Siar Local Authority\"),OR($F96=1,$F96=5)),0,new_ci(VALUE(LEFT(Options!$B$24,2)),$C96,$E96,$F96,2016,$I96+$J96,1,$H96,$G96*$H96,Options!$B$8)))","v":573.48662134419999},{"$f":"IF(AND(OR(Calculations!$E$2=\"Orkney Health Board\",Calculations!$E$2=\"Orkney Islands Local Authority\"),$F96=1),0,IF(AND(OR(Calculations!$E$2=\"Shetland Health Board\",Calculations!$E$2=\"Western Isles Health Board\",Calculations!$E$2=\"Shetland Islands Local Authority\",Calculations!$E$2=\"Eilean Siar Local Authority\"),OR($F96=1,$F96=5)),0,new_yllv2(VALUE(LEFT(Options!$B$24,2)),$C96,$D96,$E96,$F96,2016,$I96,1,$H96,$G96*$H96,Options!$B$8)))","v":2187.5492392584001},{"$f":"IF(AND(OR(Calculations!$E$2=\"Orkney Health Board\",Calculations!$E$2=\"Orkney Islands Local Authority\"),$F96=1),0,IF(AND(OR(Calculations!$E$2=\"Shetland Health Board\",Calculations!$E$2=\"Western Isles Health Board\",Calculations!$E$2=\"Shetland Islands Local Authority\",Calculations!$E$2=\"Eilean Siar Local Authority\"),OR($F96=1,$F96=5)),0,new_yllv2(VALUE(LEFT(Options!$B$24,2)),$C96,$D96,$E96,$F96,2016,$I96+$J96,1,$H96,$G96*$H96,Options!$B$8)))","v":2173.5125744347001},{"$f":"IF(AND(OR(Calculations!$E$2=\"Orkney Health Board\",Calculations!$E$2=\"Orkney Islands Local Authority\"),$F96=1),0,IF(AND(OR(Calculations!$E$2=\"Shetland Health Board\",Calculations!$E$2=\"Western Isles Health Board\",Calculations!$E$2=\"Shetland Islands Local Authority\",Calculations!$E$2=\"Eilean Siar Local Authority\"),OR($F96=1,$F96=5)),0,hosp_count(VALUE(LEFT(Options!$B$24,2)),$C96,$E96,$F96,2016,$I96,1,$H96,$G96*$H96, Options!$B$8)))","v":{"$error":"#NAME?"}},{"$f":"IF(AND(OR(Calculations!$E$2=\"Orkney Health Board\",Calculations!$E$2=\"Orkney Islands Local Authority\"),$F96=1),0,IF(AND(OR(Calculations!$E$2=\"Shetland Health Board\",Calculations!$E$2=\"Western Isles Health Board\",Calculations!$E$2=\"Shetland Islands Local Authority\",Calculations!$E$2=\"Eilean Siar Local Authority\"),OR($F96=1,$F96=5)),0,hosp_count(VALUE(LEFT(Options!$B$24,2)),$C96,$E96,$F96,2016,$I96+$J96,1,$H96,$G96*$H96, Options!$B$8)))","v":{"$error":"#NAME?"}},{"$f":"IF(AND(OR(Calculations!$E$2=\"Orkney Health Board\",Calculations!$E$2=\"Orkney Islands Local Authority\"),$F96=1),0,IF(AND(OR(Calculations!$E$2=\"Shetland Health Board\",Calculations!$E$2=\"Western Isles Health Board\",Calculations!$E$2=\"Shetland Islands Local Authority\",Calculations!$E$2=\"Eilean Siar Local Authority\"),OR($F96=1,$F96=5)),0,prem_mort(VALUE(LEFT(Options!$B$24,2)),$C96,$E96,$F96,2016,$I96,1,$H96,$G96*$H96,Options!$B$8)))","v":0},{"$f":"IF(AND(OR(Calculations!$E$2=\"Orkney Health Board\",Calculations!$E$2=\"Orkney Islands Local Authority\"),$F96=1),0,IF(AND(OR(Calculations!$E$2=\"Shetland Health Board\",Calculations!$E$2=\"Western Isles Health Board\",Calculations!$E$2=\"Shetland Islands Local Authority\",Calculations!$E$2=\"Eilean Siar Local Authority\"),OR($F96=1,$F96=5)),0,prem_mort(VALUE(LEFT(Options!$B$24,2)),$C96,$E96,$F96,2016,$I96+$J96,1,$H96,$G96*$H96,Options!$B$8)))","v":0},12973.482350420318,12890.236487844459,49169.459187646666,48853.95761822207,{"$error":"#NAME?"},{"$error":"#NAME?"},0,0,19460223.525630478,19335354.73176669,73754188.781470001,73280936.427333102,{"$error":"#NAME?"},{"$error":"#NAME?"},0,0,1500]
[null,"Male 90+",92.215477000000007,95.515479999999997,"male",1,{"$f":"HLOOKUP(Calculations!$E$2,'Prevalence Rates'!$C$3:$BC$249,'Prevalence Rates'!$BD97,FALSE)","v":0.72099999999999997},{"$f":"HLOOKUP(Calculations!$E$2,'Population 2016'!$C$3:$BC$249,'Population 2016'!BD97,FALSE)","v":1916},0,{"$f":"HLOOKUP(Results!E$4,Targeting!$C$3:$F$249,Targeting!$G97,FALSE)","v":315},{"$f":"IF(AND(OR(Calculations!$E$2=\"Orkney Health Board\",Calculations!$E$2=\"Orkney Islands Local Authority\"),$F97=1),0,IF(AND(OR(Calculations!$E$2=\"Shetland Health Board\",Calculations!$E$2=\"Western Isles Health Board\",Calculations!$E$2=\"Shetland Islands Local Authority\",Calculations!$E$2=\"Eilean Siar Local Authority\"),OR($F97=1,$F97=5)),0,new_ci(VALUE(LEFT(Options!$B$24,2)),$C97,$E97,$F97,2016,$I97,1,$H97,$G97*$H97,Options!$B$8)))","v":365.50200047940001},{"$f":"IF(AND(OR(Calculations!$E$2=\"Orkney Health Board\",Calculations!$E$2=\"Orkney Islands Local Authority\"),$F97=1),0,IF(AND(OR(Calculations!$E$2=\"Shetland Health Board\",Calculations!$E$2=\"Western Isles Health Board\",Calculations!$E$2=\"Shetland Islands Local Authority\",Calculations!$E$2=\"Eilean Siar Local Authority\"),OR($F97=1,$F97=5)),0,new_ci(VALUE(LEFT(Options!$B$24,2)),$C97,$E97,$F97,2016,$I97+$J97,1,$H97,$G97*$H97,Options!$B$8)))","v":363.24878834340001},{"$f":"IF(AND(OR(Calculations!$E$2=\"Orkney Health Board\",Calculations!$E$2=\"Orkney Islands Local Authority\"),$F97=1),0,IF(AND(OR(Calculations!$E$2=\"Shetland Health Board\",Calculations!$E$2=\"Western Isles Health Board\",Calculations!$E$2=\"Shetland Islands Local Authority\",Calculations!$E$2=\"Eilean Siar Local Authority\"),OR($F97=1,$F97=5)),0,new_yllv2(VALUE(LEFT(Options!$B$24,2)),$C97,$D97,$E97,$F97,2016,$I97,1,$H97,$G97*$H97,Options!$B$8)))","v":840.65569760860001},{"$f":"IF(AND(OR(Calculations!$E$2=\"Orkney Health Board\",Calculations!$E$2=\"Orkney Islands Local Authority\"),$F97=1),0,IF(AND(OR(Calculations!$E$2=\"Shetland Health Board\",Calculations!$E$2=\"Western Isles Health Board\",Calculations!$E$2=\"Shetland Islands Local Authority\",Calculations!$E$2=\"Eilean Siar Local Authority\"),OR($F97=1,$F97=5)),0,new_yllv2(VALUE(LEFT(Options!$B$24,2)),$C97,$D97,$E97,$F97,2016,$I97+$J97,1,$H97,$G97*$H97,Options!$B$8)))","v":835.47330293619996},{"$f":"IF(AND(OR(Calculations!$E$2=\"Orkney Health Board\",Calculations!$E$2=\"Orkney Islands Local Authority\"),$F97=1),0,IF(AND(OR(Calculations!$E$2=\"Shetland Health Board\",Calculations!$E$2=\"Western Isles Health Board\",Calculations!$E$2=\"Shetland Islands Local Authority\",Calculations!$E$2=\"Eilean Siar Local Authority\"),OR($F97=1,$F97=5)),0,hosp_count(VALUE(LEFT(Options!$B$24,2)),$C97,$E97,$F97,2016,$I97,1,$H97,$G97*$H97, Options!$B$8)))","v":{"$error":"#NAME?"}},{"$f":"IF(AND(OR(Calculations!$E$2=\"Orkney Health Board\",Calculations!$E$2=\"Orkney Islands Local Authority\"),$F97=1),0,IF(AND(OR(Calculations!$E$2=\"Shetland Health Board\",Calculations!$E$2=\"Western Isles Health Board\",Calculations!$E$2=\"Shetland Islands Local Authority\",Calculations!$E$2=\"Eilean Siar Local Authority\"),OR($F97=1,$F97=5)),0,hosp_count(VALUE(LEFT(Options!$B$24,2)),$C97,$E97,$F97,2016,$I97+$J97,1,$H97,$G97*$H97, Options!$B$8)))","v":{"$error":"#NAME?"}},{"$f":"IF(AND(OR(Calculations!$E$2=\"Orkney Health Board\",Calculations!$E$2=\"Orkney Islands Local Authority\"),$F97=1),0,IF(AND(OR(Calculations!$E$2=\"Shetland Health Board\",Calculations!$E$2=\"Western Isles Health Board\",Calculations!$E$2=\"Shetland Islands Local Authority\",Calculations!$E$2=\"Eilean Siar Local Authority\"),OR($F97=1,$F97=5)),0,prem_mort(VALUE(LEFT(Options!$B$24,2)),$C97,$E97,$F97,2016,$I97,1,$H97,$G97*$H97,Options!$B$8)))","v":0},{"$f":"IF(AND(OR(Calculations!$E$2=\"Orkney Health Board\",Calculations!$E$2=\"Orkney Islands Local Authority\"),$F97=1),0,IF(AND(OR(Calculations!$E$2=\"Shetland Health Board\",Calculations!$E$2=\"Western Isles Health Board\",Calculations!$E$2=\"Shetland Islands Local Authority\",Calculations!$E$2=\"Eilean Siar Local Authority\"),OR($F97=1,$F97=5)),0,prem_mort(VALUE(LEFT(Options!$B$24,2)),$C97,$E97,$F97,2016,$I97+$J97,1,$H97,$G97*$H97,Options!$B$8)))","v":0},19076.304826691023,18958.705028361168,43875.558330302709,43605.078441346552,{"$error":"#NAME?"},{"$error":"#NAME?"},0,0,19076304.826691024,18958705.028361168,43875558.330302708,43605078.441346548,{"$error":"#NAME?"},{"$error":"#NAME?"},0,0,1000]
[null,"Female 0-4",2.0384007,81.468401,"female",2,{"$f":"HLOOKUP(Calculations!$E$2,'Prevalence Rates'!$C$3:$BC$249,'Prevalence Rates'!$BD98,FALSE)","v":0},{"$f":"HLOOKUP(Calculations!$E$2,'Population 2016'!$C$3:$BC$249,'Population 2016'!BD98,FALSE)","v":0},0,{"$f":"HLOOKUP(Results!E$4,Targeting!$C$3:$F$249,Targeting!$G98,FALSE)","v":0},{"$f":"IF(AND(OR(Calculations!$E$2=\"Orkney Health Board\",Calculations!$E$2=\"Orkney Islands Local Authority\"),$F98=1),0,IF(AND(OR(Calculations!$E$2=\"Shetland Health Board\",Calculations!$E$2=\"Western Isles Health Board\",Calculations!$E$2=\"Shetland Islands Local Authority\",Calculations!$E$2=\"Eilean Siar Local Authority\"),OR($F98=1,$F98=5)),0,new_ci(VALUE(LEFT(Options!$B$24,2)),$C98,$E98,$F98,2016,$I98,1,$H98,$G98*$H98,Options!$B$8)))","v":{"$error":"#VALUE!"}},{"$f":"IF(AND(OR(Calculations!$E$2=\"Orkney Health Board\",Calculations!$E$2=\"Orkney Islands Local Authority\"),$F98=1),0,IF(AND(OR(Calculations!$E$2=\"Shetland Health Board\",Calculations!$E$2=\"Western Isles Health Board\",Calculations!$E$2=\"Shetland Islands Local Authority\",Calculations!$E$2=\"Eilean Siar Local Authority\"),OR($F98=1,$F98=5)),0,new_ci(VALUE(LEFT(Options!$B$24,2)),$C98,$E98,$F98,2016,$I98+$J98,1,$H98,$G98*$H98,Options!$B$8)))","v":{"$error":"#VALUE!"}},{"$f":"IF(AND(OR(Calculations!$E$2=\"Orkney Health Board\",Calculations!$E$2=\"Orkney Islands Local Authority\"),$F98=1),0,IF(AND(OR(Calculations!$E$2=\"Shetland Health Board\",Calculations!$E$2=\"Western Isles Health Board\",Calculations!$E$2=\"Shetland Islands Local Authority\",Calculations!$E$2=\"Eilean Siar Local Authority\"),OR($F98=1,$F98=5)),0,new_yllv2(VALUE(LEFT(Options!$B$24,2)),$C98,$D98,$E98,$F98,2016,$I98,1,$H98,$G98*$H98,Options!$B$8)))","v":{"$error":"#VALUE!"}},{"$f":"IF(AND(OR(Calculations!$E$2=\"Orkney Health Board\",Calculations!$E$2=\"Orkney Islands Local Authority\"),$F98=1),0,IF(AND(OR(Calculations!$E$2=\"Shetland Health Board\",Calculations!$E$2=\"Western Isles Health Board\",Calculations!$E$2=\"Shetland Islands Local Authority\",Calculations!$E$2=\"Eilean Siar Local Authority\"),OR($F98=1,$F98=5)),0,new_yllv2(VALUE(LEFT(Options!$B$24,2)),$C98,$D98,$E98,$F98,2016,$I98+$J98,1,$H98,$G98*$H98,Options!$B$8)))","v":{"$error":"#VALUE!"}},{"$f":"IF(AND(OR(Calculations!$E$2=\"Orkney Health Board\",Calculations!$E$2=\"Orkney Islands Local Authority\"),$F98=1),0,IF(AND(OR(Calculations!$E$2=\"Shetland Health Board\",Calculations!$E$2=\"Western Isles Health Board\",Calculations!$E$2=\"Shetland Islands Local Authority\",Calculations!$E$2=\"Eilean Siar Local Authority\"),OR($F98=1,$F98=5)),0,hosp_count(VALUE(LEFT(Options!$B$24,2)),$C98,$E98,$F98,2016,$I98,1,$H98,$G98*$H98, Options!$B$8)))","v":{"$error":"#NAME?"}},{"$f":"IF(AND(OR(Calculations!$E$2=\"Orkney Health Board\",Calculations!$E$2=\"Orkney Islands Local Authority\"),$F98=1),0,IF(AND(OR(Calculations!$E$2=\"Shetland Health Board\",Calculations!$E$2=\"Western Isles Health Board\",Calculations!$E$2=\"Shetland Islands Local Authority\",Calculations!$E$2=\"Eilean Siar Local Authority\"),OR($F98=1,$F98=5)),0,hosp_count(VALUE(LEFT(Options!$B$24,2)),$C98,$E98,$F98,2016,$I98+$J98,1,$H98,$G98*$H98, Options!$B$8)))","v":{"$error":"#NAME?"}},{"$f":"IF(AND(OR(Calculations!$E$2=\"Orkney Health Board\",Calculations!$E$2=\"Orkney Islands Local Authority\"),$F98=1),0,IF(AND(OR(Calculations!$E$2=\"Shetland Health Board\",Calculations!$E$2=\"Western Isles Health Board\",Calculations!$E$2=\"Shetland Islands Local Authority\",Calculations!$E$2=\"Eilean Siar Local Authority\"),OR($F98=1,$F98=5)),0,prem_mort(VALUE(LEFT(Options!$B$24,2)),$C98,$E98,$F98,2016,$I98,1,$H98,$G98*$H98,Options!$B$8)))","v":{"$error":"#VALUE!"}},{"$f":"IF(AND(OR(Calculations!$E$2=\"Orkney Health Board\",Calculations!$E$2=\"Orkney Islands Local Authority\"),$F98=1),0,IF(AND(OR(Calculations!$E$2=\"Shetland Health Board\",Calculations!$E$2=\"Western Isles Health Board\",Calculations!$E$2=\"Shetland Islands Local Authority\",Calculations!$E$2=\"Eilean Siar Local Authority\"),OR($F98=1,$F98=5)),0,prem_mort(VALUE(LEFT(Options!$B$24,2)),$C98,$E98,$F98,2016,$I98+$J98,1,$H98,$G98*$H98,Options!$B$8)))","v":{"$error":"#VALUE!"}},{"$error":"#VALUE!"},{"$error":"#VALUE!"},{"$error":"#VALUE!"},{"$error":"#VALUE!"},{"$error":"#NAME?"},{"$error":"#NAME?"},{"$error":"#VALUE!"},{"$error":"#VALUE!"},{"$error":"#VALUE!"},{"$error":"#VALUE!"},{"$error":"#VALUE!"},{"$error":"#VALUE!"},{"$error":"#NAME?"},{"$error":"#NAME?"},{"$error":"#VALUE!"},{"$error":"#VALUE!"},5000]
[null,"Female 5-9",6.9792794999999996,81.439279999999997,"female",2,{"$f":"HLOOKUP(Calculations!$E$2,'Prevalence Rates'!$C$3:$BC$249,'Prevalence Rates'!$BD99,FALSE)","v":0},{"$f":"HLOOKUP(Calculations!$E$2,'Population 2016'!$C$3:$BC$249,'Population 2016'!BD99,FALSE)","v":0},0,{"$f":"HLOOKUP(Results!E$4,Targeting!$C$3:$F$249,Targeting!$G99,FALSE)","v":0},{"$f":"IF(AND(OR(Calculations!$E$2=\"Orkney Health Board\",Calculations!$E$2=\"Orkney Islands Local Authority\"),$F99=1),0,IF(AND(OR(Calculations!$E$2=\"Shetland Health Board\",Calculations!$E$2=\"Western Isles Health Board\",Calculations!$E$2=\"Shetland Islands Local Authority\",Calculations!$E$2=\"Eilean Siar Local Authority\"),OR($F99=1,$F99=5)),0,new_ci(VALUE(LEFT(Options!$B$24,2)),$C99,$E99,$F99,2016,$I99,1,$H99,$G99*$H99,Options!$B$8)))","v":{"$error":"#VALUE!"}},{"$f":"IF(AND(OR(Calculations!$E$2=\"Orkney Health Board\",Calculations!$E$2=\"Orkney Islands Local Authority\"),$F99=1),0,IF(AND(OR(Calculations!$E$2=\"Shetland Health Board\",Calculations!$E$2=\"Western Isles Health Board\",Calculations!$E$2=\"Shetland Islands Local Authority\",Calculations!$E$2=\"Eilean Siar Local Authority\"),OR($F99=1,$F99=5)),0,new_ci(VALUE(LEFT(Options!$B$24,2)),$C99,$E99,$F99,2016,$I99+$J99,1,$H99,$G99*$H99,Options!$B$8)))","v":{"$error":"#VALUE!"}},{"$f":"IF(AND(OR(Calculations!$E$2=\"Orkney Health Board\",Calculations!$E$2=\"Orkney Islands Local Authority\"),$F99=1),0,IF(AND(OR(Calculations!$E$2=\"Shetland Health Board\",Calculations!$E$2=\"Western Isles Health Board\",Calculations!$E$2=\"Shetland Islands Local Authority\",Calculations!$E$2=\"Eilean Siar Local Authority\"),OR($F99=1,$F99=5)),0,new_yllv2(VALUE(LEFT(Options!$B$24,2)),$C99,$D99,$E99,$F99,2016,$I99,1,$H99,$G99*$H99,Options!$B$8)))","v":{"$error":"#VALUE!"}},{"$f":"IF(AND(OR(Calculations!$E$2=\"Orkney Health Board\",Calculations!$E$2=\"Orkney Islands Local Authority\"),$F99=1),0,IF(AND(OR(Calculations!$E$2=\"Shetland Health Board\",Calculations!$E$2=\"Western Isles Health Board\",Calculations!$E$2=\"Shetland Islands Local Authority\",Calculations!$E$2=\"Eilean Siar Local Authority\"),OR($F99=1,$F99=5)),0,new_yllv2(VALUE(LEFT(Options!$B$24,2)),$C99,$D99,$E99,$F99,2016,$I99+$J99,1,$H99,$G99*$H99,Options!$B$8)))","v":{"$error":"#VALUE!"}},{"$f":"IF(AND(OR(Calculations!$E$2=\"Orkney Health Board\",Calculations!$E$2=\"Orkney Islands Local Authority\"),$F99=1),0,IF(AND(OR(Calculations!$E$2=\"Shetland Health Board\",Calculations!$E$2=\"Western Isles Health Board\",Calculations!$E$2=\"Shetland Islands Local Authority\",Calculations!$E$2=\"Eilean Siar Local Authority\"),OR($F99=1,$F99=5)),0,hosp_count(VALUE(LEFT(Options!$B$24,2)),$C99,$E99,$F99,2016,$I99,1,$H99,$G99*$H99, Options!$B$8)))","v":{"$error":"#NAME?"}},{"$f":"IF(AND(OR(Calculations!$E$2=\"Orkney Health Board\",Calculations!$E$2=\"Orkney Islands Local Authority\"),$F99=1),0,IF(AND(OR(Calculations!$E$2=\"Shetland Health Board\",Calculations!$E$2=\"Western Isles Health Board\",Calculations!$E$2=\"Shetland Islands Local Authority\",Calculations!$E$2=\"Eilean Siar Local Authority\"),OR($F99=1,$F99=5)),0,hosp_count(VALUE(LEFT(Options!$B$24,2)),$C99,$E99,$F99,2016,$I99+$J99,1,$H99,$G99*$H99, Options!$B$8)))","v":{"$error":"#NAME?"}},{"$f":"IF(AND(OR(Calculations!$E$2=\"Orkney Health Board\",Calculations!$E$2=\"Orkney Islands Local Authority\"),$F99=1),0,IF(AND(OR(Calculations!$E$2=\"Shetland Health Board\",Calculations!$E$2=\"Western Isles Health Board\",Calculations!$E$2=\"Shetland Islands Local Authority\",Calculations!$E$2=\"Eilean Siar Local Authority\"),OR($F99=1,$F99=5)),0,prem_mort(VALUE(LEFT(Options!$B$24,2)),$C99,$E99,$F99,2016,$I99,1,$H99,$G99*$H99,Options!$B$8)))","v":{"$error":"#VALUE!"}},{"$f":"IF(AND(OR(Calculations!$E$2=\"Orkney Health Board\",Calculations!$E$2=\"Orkney Islands Local Authority\"),$F99=1),0,IF(AND(OR(Calculations!$E$2=\"Shetland Health Board\",Calculations!$E$2=\"Western Isles Health Board\",Calculations!$E$2=\"Shetland Islands Local Authority\",Calculations!$E$2=\"Eilean Siar Local Authority\"),OR($F99=1,$F99=5)),0,prem_mort(VALUE(LEFT(Options!$B$24,2)),$C99,$E99,$F99,2016,$I99+$J99,1,$H99,$G99*$H99,Options!$B$8)))","v":{"$error":"#VALUE!"}},{"$error":"#VALUE!"},{"$error":"#VALUE!"},{"$error":"#VALUE!"},{"$error":"#VALUE!"},{"$error":"#NAME?"},{"$error":"#NAME?"},{"$error":"#VALUE!"},{"$error":"#VALUE!"},{"$error":"#VALUE!"},{"$error":"#VALUE!"},{"$error":"#VALUE!"},{"$error":"#VALUE!"},{"$error":"#NAME?"},{"$error":"#NAME?"},{"$error":"#VALUE!"},{"$error":"#VALUE!"},5500]
[null,"Female 10-15",12.478312000000001,81.948309999999992,"female",2,{"$f":"HLOOKUP(Calculations!$E$2,'Prevalence Rates'!$C$3:$BC$249,'Prevalence Rates'!$BD100,FALSE)","v":0},{"$f":"HLOOKUP(Calculations!$E$2,'Population 2016'!$C$3:$BC$249,'Population 2016'!BD100,FALSE)","v":0},0,{"$f":"HLOOKUP(Results!E$4,Targeting!$C$3:$F$249,Targeting!$G100,FALSE)","v":0},{"$f":"IF(AND(OR(Calculations!$E$2=\"Orkney Health Board\",Calculations!$E$2=\"Orkney Islands Local Authority\"),$F100=1),0,IF(AND(OR(Calculations!$E$2=\"Shetland Health Board\",Calculations!$E$2=\"Western Isles Health Board\",Calculations!$E$2=\"Shetland Islands Local Authority\",Calculations!$E$2=\"Eilean Siar Local Authority\"),OR($F100=1,$F100=5)),0,new_ci(VALUE(LEFT(Options!$B$24,2)),$C100,$E100,$F100,2016,$I100,1,$H100,$G100*$H100,Options!$B$8)))","v":{"$error":"#VALUE!"}},{"$f":"IF(AND(OR(Calculations!$E$2=\"Orkney Health Board\",Calculations!$E$2=\"Orkney Islands Local Authority\"),$F100=1),0,IF(AND(OR(Calculations!$E$2=\"Shetland Health Board\",Calculations!$E$2=\"Western Isles Health Board\",Calculations!$E$2=\"Shetland Islands Local Authority\",Calculations!$E$2=\"Eilean Siar Local Authority\"),OR($F100=1,$F100=5)),0,new_ci(VALUE(LEFT(Options!$B$24,2)),$C100,$E100,$F100,2016,$I100+$J100,1,$H100,$G100*$H100,Options!$B$8)))","v":{"$error":"#VALUE!"}},{"$f":"IF(AND(OR(Calculations!$E$2=\"Orkney Health Board\",Calculations!$E$2=\"Orkney Islands Local Authority\"),$F100=1),0,IF(AND(OR(Calculations!$E$2=\"Shetland Health Board\",Calculations!$E$2=\"Western Isles Health Board\",Calculations!$E$2=\"Shetland Islands Local Authority\",Calculations!$E$2=\"Eilean Siar Local Authority\"),OR($F100=1,$F100=5)),0,new_yllv2(VALUE(LEFT(Options!$B$24,2)),$C100,$D100,$E100,$F100,2016,$I100,1,$H100,$G100*$H100,Options!$B$8)))","v":{"$error":"#VALUE!"}},{"$f":"IF(AND(OR(Calculations!$E$2=\"Orkney Health Board\",Calculations!$E$2=\"Orkney Islands Local Authority\"),$F100=1),0,IF(AND(OR(Calculations!$E$2=\"Shetland Health Board\",Calculations!$E$2=\"Western Isles Health Board\",Calculations!$E$2=\"Shetland Islands Local Authority\",Calculations!$E$2=\"Eilean Siar Local Authority\"),OR($F100=1,$F100=5)),0,new_yllv2(VALUE(LEFT(Options!$B$24,2)),$C100,$D100,$E100,$F100,2016,$I100+$J100,1,$H100,$G100*$H100,Options!$B$8)))","v":{"$error":"#VALUE!"}},{"$f":"IF(AND(OR(Calculations!$E$2=\"Orkney Health Board\",Calculations!$E$2=\"Orkney Islands Local Authority\"),$F100=1),0,IF(AND(OR(Calculations!$E$2=\"Shetland Health Board\",Calculations!$E$2=\"Western Isles Health Board\",Calculations!$E$2=\"Shetland Islands Local Authority\",Calculations!$E$2=\"Eilean Siar Local Authority\"),OR($F100=1,$F100=5)),0,hosp_count(VALUE(LEFT(Options!$B$24,2)),$C100,$E100,$F100,2016,$I100,1,$H100,$G100*$H100, Options!$B$8)))","v":{"$error":"#NAME?"}},{"$f":"IF(AND(OR(Calculations!$E$2=\"Orkney Health Board\",Calculations!$E$2=\"Orkney Islands Local Authority\"),$F100=1),0,IF(AND(OR(Calculations!$E$2=\"Shetland Health Board\",Calculations!$E$2=\"Western Isles Health Board\",Calculations!$E$2=\"Shetland Islands Local Authority\",Calculations!$E$2=\"Eilean Siar Local Authority\"),OR($F100=1,$F100=5)),0,hosp_count(VALUE(LEFT(Options!$B$24,2)),$C100,$E100,$F100,2016,$I100+$J100,1,$H100,$G100*$H100, Options!$B$8)))","v":{"$error":"#NAME?"}},{"$f":"IF(AND(OR(Calculations!$E$2=\"Orkney Health Board\",Calculations!$E$2=\"Orkney Islands Local Authority\"),$F100=1),0,IF(AND(OR(Calculations!$E$2=\"Shetland Health Board\",Calculations!$E$2=\"Western Isles Health Board\",Calculations!$E$2=\"Shetland Islands Local Authority\",Calculations!$E$2=\"Eilean Siar Local Authority\"),OR($F100=1,$F100=5)),0,prem_mort(VALUE(LEFT(Options!$B$24,2)),$C100,$E100,$F100,2016,$I100,1,$H100,$G100*$H100,Options!$B$8)))","v":{"$error":"#VALUE!"}},{"$f":"IF(AND(OR(Calculations!$E$2=\"Orkney Health Board\",Calculations!$E$2=\"Orkney Islands Local Authority\"),$F100=1),0,IF(AND(OR(Calculations!$E$2=\"Shetland Health Board\",Calculations!$E$2=\"Western Isles Health Board\",Calculations!$E$2=\"Shetland Islands Local Authority\",Calculations!$E$2=\"Eilean Siar Local Authority\"),OR($F100=1,$F100=5)),0,prem_mort(VALUE(LEFT(Options!$B$24,2)),$C100,$E100,$F100,2016,$I100+$J100,1,$H100,$G100*$H100,Options!$B$8)))","v":{"$error":"#VALUE!"}},{"$error":"#VALUE!"},{"$error":"#VALUE!"},{"$error":"#VALUE!"},{"$error":"#VALUE!"},{"$error":"#NAME?"},{"$error":"#NAME?"},{"$error":"#VALUE!"},{"$error":"#VALUE!"},{"$error":"#VALUE!"},{"$error":"#VALUE!"},{"$error":"#VALUE!"},{"$error":"#VALUE!"},{"$error":"#NAME?"},{"$error":"#NAME?"},{"$error":"#VALUE!"},{"$error":"#VALUE!"},6600]
["SIMD Q2","Female 16-19",17.570053000000001,81.100049999999996,"female",2,{"$f":"HLOOKUP(Calculations!$E$2,'Prevalence Rates'!$C$3:$BC$249,'Prevalence Rates'!$BD101,FALSE)","v":0.17900000000000005},{"$f":"HLOOKUP(Calculations!$E$2,'Population 2016'!$C$3:$BC$249,'Population 2016'!BD101,FALSE)","v":23121},0,{"$f":"HLOOKUP(Results!E$4,Targeting!$C$3:$F$249,Targeting!$G101,FALSE)","v":3796},{"$f":"IF(AND(OR(Calculations!$E$2=\"Orkney Health Board\",Calculations!$E$2=\"Orkney Islands Local Authority\"),$F101=1),0,IF(AND(OR(Calculations!$E$2=\"Shetland Health Board\",Calculations!$E$2=\"Western Isles Health Board\",Calculations!$E$2=\"Shetland Islands Local Authority\",Calculations!$E$2=\"Eilean Siar Local Authority\"),OR($F101=1,$F101=5)),0,new_ci(VALUE(LEFT(Options!$B$24,2)),$C101,$E101,$F101,2016,$I101,1,$H101,$G101*$H101,Options!$B$8)))","v":5.1474634294000001},{"$f":"IF(AND(OR(Calculations!$E$2=\"Orkney Health Board\",Calculations!$E$2=\"Orkney Islands Local Authority\"),$F101=1),0,IF(AND(OR(Calculations!$E$2=\"Shetland Health Board\",Calculations!$E$2=\"Western Isles Health Board\",Calculations!$E$2=\"Shetland Islands Local Authority\",Calculations!$E$2=\"Eilean Siar Local Authority\"),OR($F101=1,$F101=5)),0,new_ci(VALUE(LEFT(Options!$B$24,2)),$C101,$E101,$F101,2016,$I101+$J101,1,$H101,$G101*$H101,Options!$B$8)))","v":5.1040041642},{"$f":"IF(AND(OR(Calculations!$E$2=\"Orkney Health Board\",Calculations!$E$2=\"Orkney Islands Local Authority\"),$F101=1),0,IF(AND(OR(Calculations!$E$2=\"Shetland Health Board\",Calculations!$E$2=\"Western Isles Health Board\",Calculations!$E$2=\"Shetland Islands Local Authority\",Calculations!$E$2=\"Eilean Siar Local Authority\"),OR($F101=1,$F101=5)),0,new_yllv2(VALUE(LEFT(Options!$B$24,2)),$C101,$D101,$E101,$F101,2016,$I101,1,$H101,$G101*$H101,Options!$B$8)))","v":321.87087279799999},{"$f":"IF(AND(OR(Calculations!$E$2=\"Orkney Health Board\",Calculations!$E$2=\"Orkney Islands Local Authority\"),$F101=1),0,IF(AND(OR(Calculations!$E$2=\"Shetland Health Board\",Calculations!$E$2=\"Western Isles Health Board\",Calculations!$E$2=\"Shetland Islands Local Authority\",Calculations!$E$2=\"Eilean Siar Local Authority\"),OR($F101=1,$F101=5)),0,new_yllv2(VALUE(LEFT(Options!$B$24,2)),$C101,$D101,$E101,$F101,2016,$I101+$J101,1,$H101,$G101*$H101,Options!$B$8)))","v":319.15336507540002},{"$f":"IF(AND(OR(Calculations!$E$2=\"Orkney Health Board\",Calculations!$E$2=\"Orkney Islands Local Authority\"),$F101=1),0,IF(AND(OR(Calculations!$E$2=\"Shetland Health Board\",Calculations!$E$2=\"Western Isles Health Board\",Calculations!$E$2=\"Shetland Islands Local Authority\",Calculations!$E$2=\"Eilean Siar Local Authority\"),OR($F101=1,$F101=5)),0,hosp_count(VALUE(LEFT(Options!$B$24,2)),$C101,$E101,$F101,2016,$I101,1,$H101,$G101*$H101, Options!$B$8)))","v":{"$error":"#NAME?"}},{"$f":"IF(AND(OR(Calculations!$E$2=\"Orkney Health Board\",Calculations!$E$2=\"Orkney Islands Local Authority\"),$F101=1),0,IF(AND(OR(Calculations!$E$2=\"Shetland Health Board\",Calculations!$E$2=\"Western Isles Health Board\",Calculations!$E$2=\"Shetland Islands Local Authority\",Calculations!$E$2=\"Eilean Siar Local Authority\"),OR($F101=1,$F101=5)),0,hosp_count(VALUE(LEFT(Options!$B$24,2)),$C101,$E101,$F101,2016,$I101+$J101,1,$H101,$G101*$H101, Options!$B$8)))","v":{"$error":"#NAME?"}},{"$f":"IF(AND(OR(Calculations!$E$2=\"Orkney Health Board\",Calculations!$E$2=\"Orkney Islands Local Authority\"),$F101=1),0,IF(AND(OR(Calculations!$E$2=\"Shetland Health Board\",Calculations!$E$2=\"Western Isles Health Board\",Calculations!$E$2=\"Shetland Islands Local Authority\",Calculations!$E$2=\"Eilean Siar Local Authority\"),OR($F101=1,$F101=5)),0,prem_mort(VALUE(LEFT(Options!$B$24,2)),$C101,$E101,$F101,2016,$I101,1,$H101,$G101*$H101,Options!$B$8)))","v":5.1474634294000001},{"$f":"IF(AND(OR(Calculations!$E$2=\"Orkney Health Board\",Calculations!$E$2=\"Orkney Islands Local Authority\"),$F101=1),0,IF(AND(OR(Calculations!$E$2=\"Shetland Health Board\",Calculations!$E$2=\"Western Isles Health Board\",Calculations!$E$2=\"Shetland Islands Local Authority\",Calculations!$E$2=\"Eilean Siar Local Authority\"),OR($F101=1,$F101=5)),0,prem_mort(VALUE(LEFT(Options!$B$24,2)),$C101,$E101,$F101,2016,$I101+$J101,1,$H101,$G101*$H101,Options!$B$8)))","v":5.1040041642},22.263152239955019,22.075187769560142,1392.1148427749663,1380.3614250049739,{"$error":"#NAME?"},{"$error":"#NAME?"},22.263152239955019,22.075187769560142,97957.869855802084,97130.826186064616,6125305.3082098514,6073590.2700218847,{"$error":"#NAME?"},{"$error":"#NAME?"},97957.869855802084,97130.826186064616,4400]
[null,"Female 20-24",22.077057,81.667060000000006,"female",2,{"$f":"HLOOKUP(Calculations!$E$2,'Prevalence Rates'!$C$3:$BC$249,'Prevalence Rates'!$BD102,FALSE)","v":0.17900000000000005},{"$f":"HLOOKUP(Calculations!$E$2,'Population 2016'!$C$3:$BC$249,'Population 2016'!BD102,FALSE)","v":36899},0,{"$f":"HLOOKUP(Results!E$4,Targeting!$C$3:$F$249,Targeting!$G102,FALSE)","v":6058},{"$f":"IF(AND(OR(Calculations!$E$2=\"Orkney Health Board\",Calculations!$E$2=\"Orkney Islands Local Authority\"),$F102=1),0,IF(AND(OR(Calculations!$E$2=\"Shetland Health Board\",Calculations!$E$2=\"Western Isles Health Board\",Calculations!$E$2=\"Shetland Islands Local Authority\",Calculations!$E$2=\"Eilean Siar Local Authority\"),OR($F102=1,$F102=5)),0,new_ci(VALUE(LEFT(Options!$B$24,2)),$C102,$E102,$F102,2016,$I102,1,$H102,$G102*$H102,Options!$B$8)))","v":12.052046428100001},{"$f":"IF(AND(OR(Calculations!$E$2=\"Orkney Health Board\",Calculations!$E$2=\"Orkney Islands Local Authority\"),$F102=1),0,IF(AND(OR(Calculations!$E$2=\"Shetland Health Board\",Calculations!$E$2=\"Western Isles Health Board\",Calculations!$E$2=\"Shetland Islands Local Authority\",Calculations!$E$2=\"Eilean Siar Local Authority\"),OR($F102=1,$F102=5)),0,new_ci(VALUE(LEFT(Options!$B$24,2)),$C102,$E102,$F102,2016,$I102+$J102,1,$H102,$G102*$H102,Options!$B$8)))","v":11.9503023181},{"$f":"IF(AND(OR(Calculations!$E$2=\"Orkney Health Board\",Calculations!$E$2=\"Orkney Islands Local Authority\"),$F102=1),0,IF(AND(OR(Calculations!$E$2=\"Shetland Health Board\",Calculations!$E$2=\"Western Isles Health Board\",Calculations!$E$2=\"Shetland Islands Local Authority\",Calculations!$E$2=\"Eilean Siar Local Authority\"),OR($F102=1,$F102=5)),0,new_yllv2(VALUE(LEFT(Options!$B$24,2)),$C102,$D102,$E102,$F102,2016,$I102,1,$H102,$G102*$H102,Options!$B$8)))","v":706.12943637850003},{"$f":"IF(AND(OR(Calculations!$E$2=\"Orkney Health Board\",Calculations!$E$2=\"Orkney Islands Local Authority\"),$F102=1),0,IF(AND(OR(Calculations!$E$2=\"Shetland Health Board\",Calculations!$E$2=\"Western Isles Health Board\",Calculations!$E$2=\"Shetland Islands Local Authority\",Calculations!$E$2=\"Eilean Siar Local Authority\"),OR($F102=1,$F102=5)),0,new_yllv2(VALUE(LEFT(Options!$B$24,2)),$C102,$D102,$E102,$F102,2016,$I102+$J102,1,$H102,$G102*$H102,Options!$B$8)))","v":700.1682486684},{"$f":"IF(AND(OR(Calculations!$E$2=\"Orkney Health Board\",Calculations!$E$2=\"Orkney Islands Local Authority\"),$F102=1),0,IF(AND(OR(Calculations!$E$2=\"Shetland Health Board\",Calculations!$E$2=\"Western Isles Health Board\",Calculations!$E$2=\"Shetland Islands Local Authority\",Calculations!$E$2=\"Eilean Siar Local Authority\"),OR($F102=1,$F102=5)),0,hosp_count(VALUE(LEFT(Options!$B$24,2)),$C102,$E102,$F102,2016,$I102,1,$H102,$G102*$H102, Options!$B$8)))","v":{"$error":"#NAME?"}},{"$f":"IF(AND(OR(Calculations!$E$2=\"Orkney Health Board\",Calculations!$E$2=\"Orkney Islands Local Authority\"),$F102=1),0,IF(AND(OR(Calculations!$E$2=\"Shetland Health Board\",Calculations!$E$2=\"Western Isles Health Board\",Calculations!$E$2=\"Shetland Islands Local Authority\",Calculations!$E$2=\"Eilean Siar Local Authority\"),OR($F102=1,$F102=5)),0,hosp_count(VALUE(LEFT(Options!$B$24,2)),$C102,$E102,$F102,2016,$I102+$J102,1,$H102,$G102*$H102, Options!$B$8)))","v":{"$error":"#NAME?"}},{"$f":"IF(AND(OR(Calculations!$E$2=\"Orkney Health Board\",Calculations!$E$2=\"Orkney Islands Local Authority\"),$F102=1),0,IF(AND(OR(Calculations!$E$2=\"Shetland Health Board\",Calculations!$E$2=\"Western Isles Health Board\",Calculations!$E$2=\"Shetland Islands Local Authority\",Calculations!$E$2=\"Eilean Siar Local Authority\"),OR($F102=1,$F102=5)),0,prem_mort(VALUE(LEFT(Options!$B$24,2)),$C102,$E102,$F102,2016,$I102,1,$H102,$G102*$H102,Options!$B$8)))","v":12.052046428100001},{"$f":"IF(AND(OR(Calculations!$E$2=\"Orkney Health Board\",Calculations!$E$2=\"Orkney Islands Local Authority\"),$F102=1),0,IF(AND(OR(Calculations!$E$2=\"Shetland Health Board\",Calculations!$E$2=\"Western Isles Health Board\",Calculations!$E$2=\"Shetland Islands Local Authority\",Calculations!$E$2=\"Eilean Siar Local Authority\"),OR($F102=1,$F102=5)),0,prem_mort(VALUE(LEFT(Options!$B$24,2)),$C102,$E102,$F102,2016,$I102+$J102,1,$H102,$G102*$H102,Options!$B$8)))","v":11.9503023181},32.66225758990759,32.386520821973498,1913.6817701794087,1897.5263521190277,{"$error":"#NAME?"},{"$error":"#NAME?"},32.66225758990759,32.386520821973498,195973.54553944553,194319.12493184098,11482090.621076452,11385158.112714166,{"$error":"#NAME?"},{"$error":"#NAME?"},195973.54553944553,194319.12493184098,6000]
[null,"Female 25-29",26.975186999999998,81.645189999999999,"female",2,{"$f":"HLOOKUP(Calculations!$E$2,'Prevalence Rates'!$C$3:$BC$249,'Prevalence Rates'!$BD103,FALSE)","v":0.26200000000000001},{"$f":"HLOOKUP(Calculations!$E$2,'Population 2016'!$C$3:$BC$249,'Population 2016'!BD103,FALSE)","v":40610},0,{"$f":"HLOOKUP(Results!E$4,Targeting!$C$3:$F$249,Targeting!$G103,FALSE)","v":6668},{"$f":"IF(AND(OR(Calculations!$E$2=\"Orkney Health Board\",Calculations!$E$2=\"Orkney Islands Local Authority\"),$F103=1),0,IF(AND(OR(Calculations!$E$2=\"Shetland Health Board\",Calculations!$E$2=\"Western Isles Health Board\",Calculations!$E$2=\"Shetland Islands Local Authority\",Calculations!$E$2=\"Eilean Siar Local Authority\"),OR($F103=1,$F103=5)),0,new_ci(VALUE(LEFT(Options!$B$24,2)),$C103,$E103,$F103,2016,$I103,1,$H103,$G103*$H103,Options!$B$8)))","v":20.117371996700001},{"$f":"IF(AND(OR(Calculations!$E$2=\"Orkney Health Board\",Calculations!$E$2=\"Orkney Islands Local Authority\"),$F103=1),0,IF(AND(OR(Calculations!$E$2=\"Shetland Health Board\",Calculations!$E$2=\"Western Isles Health Board\",Calculations!$E$2=\"Shetland Islands Local Authority\",Calculations!$E$2=\"Eilean Siar Local Authority\"),OR($F103=1,$F103=5)),0,new_ci(VALUE(LEFT(Options!$B$24,2)),$C103,$E103,$F103,2016,$I103+$J103,1,$H103,$G103*$H103,Options!$B$8)))","v":19.952974457100002},{"$f":"IF(AND(OR(Calculations!$E$2=\"Orkney Health Board\",Calculations!$E$2=\"Orkney Islands Local Authority\"),$F103=1),0,IF(AND(OR(Calculations!$E$2=\"Shetland Health Board\",Calculations!$E$2=\"Western Isles Health Board\",Calculations!$E$2=\"Shetland Islands Local Authority\",Calculations!$E$2=\"Eilean Siar Local Authority\"),OR($F103=1,$F103=5)),0,new_yllv2(VALUE(LEFT(Options!$B$24,2)),$C103,$D103,$E103,$F103,2016,$I103,1,$H103,$G103*$H103,Options!$B$8)))","v":1079.699415415},{"$f":"IF(AND(OR(Calculations!$E$2=\"Orkney Health Board\",Calculations!$E$2=\"Orkney Islands Local Authority\"),$F103=1),0,IF(AND(OR(Calculations!$E$2=\"Shetland Health Board\",Calculations!$E$2=\"Western Isles Health Board\",Calculations!$E$2=\"Shetland Islands Local Authority\",Calculations!$E$2=\"Eilean Siar Local Authority\"),OR($F103=1,$F103=5)),0,new_yllv2(VALUE(LEFT(Options!$B$24,2)),$C103,$D103,$E103,$F103,2016,$I103+$J103,1,$H103,$G103*$H103,Options!$B$8)))","v":1070.8761989714999},{"$f":"IF(AND(OR(Calculations!$E$2=\"Orkney Health Board\",Calculations!$E$2=\"Orkney Islands Local Authority\"),$F103=1),0,IF(AND(OR(Calculations!$E$2=\"Shetland Health Board\",Calculations!$E$2=\"Western Isles Health Board\",Calculations!$E$2=\"Shetland Islands Local Authority\",Calculations!$E$2=\"Eilean Siar Local Authority\"),OR($F103=1,$F103=5)),0,hosp_count(VALUE(LEFT(Options!$B$24,2)),$C103,$E103,$F103,2016,$I103,1,$H103,$G103*$H103, Options!$B$8)))","v":{"$error":"#NAME?"}},{"$f":"IF(AND(OR(Calculations!$E$2=\"Orkney Health Board\",Calculations!$E$2=\"Orkney Islands Local Authority\"),$F103=1),0,IF(AND(OR(Calculations!$E$2=\"Shetland Health Board\",Calculations!$E$2=\"Western Isles Health Board\",Calculations!$E$2=\"Shetland Islands Local Authority\",Calculations!$E$2=\"Eilean Siar Local Authority\"),OR($F103=1,$F103=5)),0,hosp_count(VALUE(LEFT(Options!$B$24,2)),$C103,$E103,$F103,2016,$I103+$J103,1,$H103,$G103*$H103, Options!$B$8)))","v":{"$error":"#NAME?"}},{"$f":"IF(AND(OR(Calculations!$E$2=\"Orkney Health Board\",Calculations!$E$2=\"Orkney Islands Local Authority\"),$F103=1),0,IF(AND(OR(Calculations!$E$2=\"Shetland Health Board\",Calculations!$E$2=\"Western Isles Health Board\",Calculations!$E$2=\"Shetland Islands Local Authority\",Calculations!$E$2=\"Eilean Siar Local Authority\"),OR($F103=1,$F103=5)),0,prem_mort(VALUE(LEFT(Options!$B$24,2)),$C103,$E103,$F103,2016,$I103,1,$H103,$G103*$H103,Options!$B$8)))","v":20.117371996700001},{"$f":"IF(AND(OR(Calculations!$E$2=\"Orkney Health Board\",Calculations!$E$2=\"Orkney Islands Local Authority\"),$F103=1),0,IF(AND(OR(Calculations!$E$2=\"Shetland Health Board\",Calculations!$E$2=\"Western Isles Health Board\",Calculations!$E$2=\"Shetland Islands Local Authority\",Calculations!$E$2=\"Eilean Siar Local Authority\"),OR($F103=1,$F103=5)),0,prem_mort(VALUE(LEFT(Options!$B$24,2)),$C103,$E103,$F103,2016,$I103+$J103,1,$H103,$G103*$H103,Options!$B$8)))","v":19.952974457100002},49.537975859886728,49.133155521053929,2658.7033130140362,2636.9766042144793,{"$error":"#NAME?"},{"$error":"#NAME?"},49.537975859886728,49.133155521053929,297227.85515932034,294798.93312632357,15952219.878084218,15821859.625286875,{"$error":"#NAME?"},{"$error":"#NAME?"},297227.85515932034,294798.93312632357,6000]
[null,"Female 30-34",31.999904999999998,81.799899999999994,"female",2,{"$f":"HLOOKUP(Calculations!$E$2,'Prevalence Rates'!$C$3:$BC$249,'Prevalence Rates'!$BD104,FALSE)","v":0.26200000000000001},{"$f":"HLOOKUP(Calculations!$E$2,'Population 2016'!$C$3:$BC$249,'Population 2016'!BD104,FALSE)","v":38102},0,{"$f":"HLOOKUP(Results!E$4,Targeting!$C$3:$F$249,Targeting!$G104,FALSE)","v":6256},{"$f":"IF(AND(OR(Calculations!$E$2=\"Orkney Health Board\",Calculations!$E$2=\"Orkney Islands Local Authority\"),$F104=1),0,IF(AND(OR(Calculations!$E$2=\"Shetland Health Board\",Calculations!$E$2=\"Western Isles Health Board\",Calculations!$E$2=\"Shetland Islands Local Authority\",Calculations!$E$2=\"Eilean Siar Local Authority\"),OR($F104=1,$F104=5)),0,new_ci(VALUE(LEFT(Options!$B$24,2)),$C104,$E104,$F104,2016,$I104,1,$H104,$G104*$H104,Options!$B$8)))","v":28.935646990599999},{"$f":"IF(AND(OR(Calculations!$E$2=\"Orkney Health Board\",Calculations!$E$2=\"Orkney Islands Local Authority\"),$F104=1),0,IF(AND(OR(Calculations!$E$2=\"Shetland Health Board\",Calculations!$E$2=\"Western Isles Health Board\",Calculations!$E$2=\"Shetland Islands Local Authority\",Calculations!$E$2=\"Eilean Siar Local Authority\"),OR($F104=1,$F104=5)),0,new_ci(VALUE(LEFT(Options!$B$24,2)),$C104,$E104,$F104,2016,$I104+$J104,1,$H104,$G104*$H104,Options!$B$8)))","v":28.699242760200001},{"$f":"IF(AND(OR(Calculations!$E$2=\"Orkney Health Board\",Calculations!$E$2=\"Orkney Islands Local Authority\"),$F104=1),0,IF(AND(OR(Calculations!$E$2=\"Shetland Health Board\",Calculations!$E$2=\"Western Isles Health Board\",Calculations!$E$2=\"Shetland Islands Local Authority\",Calculations!$E$2=\"Eilean Siar Local Authority\"),OR($F104=1,$F104=5)),0,new_yllv2(VALUE(LEFT(Options!$B$24,2)),$C104,$D104,$E104,$F104,2016,$I104,1,$H104,$G104*$H104,Options!$B$8)))","v":1412.0594284629999},{"$f":"IF(AND(OR(Calculations!$E$2=\"Orkney Health Board\",Calculations!$E$2=\"Orkney Islands Local Authority\"),$F104=1),0,IF(AND(OR(Calculations!$E$2=\"Shetland Health Board\",Calculations!$E$2=\"Western Isles Health Board\",Calculations!$E$2=\"Shetland Islands Local Authority\",Calculations!$E$2=\"Eilean Siar Local Authority\"),OR($F104=1,$F104=5)),0,new_yllv2(VALUE(LEFT(Options!$B$24,2)),$C104,$D104,$E104,$F104,2016,$I104+$J104,1,$H104,$G104*$H104,Options!$B$8)))","v":1400.5229032015},{"$f":"IF(AND(OR(Calculations!$E$2=\"Orkney Health Board\",Calculations!$E$2=\"Orkney Islands Local Authority\"),$F104=1),0,IF(AND(OR(Calculations!$E$2=\"Shetland Health Board\",Calculations!$E$2=\"Western Isles Health Board\",Calculations!$E$2=\"Shetland Islands Local Authority\",Calculations!$E$2=\"Eilean Siar Local Authority\"),OR($F104=1,$F104=5)),0,hosp_count(VALUE(LEFT(Options!$B$24,2)),$C104,$E104,$F104,2016,$I104,1,$H104,$G104*$H104, Options!$B$8)))","v":{"$error":"#NAME?"}},{"$f":"IF(AND(OR(Calculations!$E$2=\"Orkney Health Board\",Calculations!$E$2=\"Orkney Islands Local Authority\"),$F104=1),0,IF(AND(OR(Calculations!$E$2=\"Shetland Health Board\",Calculations!$E$2=\"Western Isles Health Board\",Calculations!$E$2=\"Shetland Islands Local Authority\",Calculations!$E$2=\"Eilean Siar Local Authority\"),OR($F104=1,$F104=5)),0,hosp_count(VALUE(LEFT(Options!$B$24,2)),$C104,$E104,$F104,2016,$I104+$J104,1,$H104,$G104*$H104, Options!$B$8)))","v":{"$error":"#NAME?"}},{"$f":"IF(AND(OR(Calculations!$E$2=\"Orkney Health Board\",Calculations!$E$2=\"Orkney Islands Local Authority\"),$F104=1),0,IF(AND(OR(Calculations!$E$2=\"Shetland Health Board\",Calculations!$E$2=\"Western Isles Health Board\",Calculations!$E$2=\"Shetland Islands Local Authority\",Calculations!$E$2=\"Eilean Siar Local Authority\"),OR($F104=1,$F104=5)),0,prem_mort(VALUE(LEFT(Options!$B$24,2)),$C104,$E104,$F104,2016,$I104,1,$H104,$G104*$H104,Options!$B$8)))","v":28.935646990599999},{"$f":"IF(AND(OR(Calculations!$E$2=\"Orkney Health Board\",Calculations!$E$2=\"Orkney Islands Local Authority\"),$F104=1),0,IF(AND(OR(Calculations!$E$2=\"Shetland Health Board\",Calculations!$E$2=\"Western Isles Health Board\",Calculations!$E$2=\"Shetland Islands Local Authority\",Calculations!$E$2=\"Eilean Siar Local Authority\"),OR($F104=1,$F104=5)),0,prem_mort(VALUE(LEFT(Options!$B$24,2)),$C104,$E104,$F104,2016,$I104+$J104,1,$H104,$G104*$H104,Options!$B$8)))","v":28.699242760200001},75.942593539971654,75.322142565219679,3705.9981850375302,3675.7201805718855,{"$error":"#NAME?"},{"$error":"#NAME?"},75.942593539971654,75.322142565219679,493626.85800981574,489593.92667392793,24088988.202743948,23892181.173717257,{"$error":"#NAME?"},{"$error":"#NAME?"},493626.85800981574,489593.92667392793,6500]
[null,"Female 35-39",36.918118,81.898120000000006,"female",2,{"$f":"HLOOKUP(Calculations!$E$2,'Prevalence Rates'!$C$3:$BC$249,'Prevalence Rates'!$BD105,FALSE)","v":0.31099999999999994},{"$f":"HLOOKUP(Calculations!$E$2,'Population 2016'!$C$3:$BC$249,'Population 2016'!BD105,FALSE)","v":33014},0,{"$f":"HLOOKUP(Results!E$4,Targeting!$C$3:$F$249,Targeting!$G105,FALSE)","v":5421},{"$f":"IF(AND(OR(Calculations!$E$2=\"Orkney Health Board\",Calculations!$E$2=\"Orkney Islands Local Authority\"),$F105=1),0,IF(AND(OR(Calculations!$E$2=\"Shetland Health Board\",Calculations!$E$2=\"Western Isles Health Board\",Calculations!$E$2=\"Shetland Islands Local Authority\",Calculations!$E$2=\"Eilean Siar Local Authority\"),OR($F105=1,$F105=5)),0,new_ci(VALUE(LEFT(Options!$B$24,2)),$C105,$E105,$F105,2016,$I105,1,$H105,$G105*$H105,Options!$B$8)))","v":38.086144216000001},{"$f":"IF(AND(OR(Calculations!$E$2=\"Orkney Health Board\",Calculations!$E$2=\"Orkney Islands Local Authority\"),$F105=1),0,IF(AND(OR(Calculations!$E$2=\"Shetland Health Board\",Calculations!$E$2=\"Western Isles Health Board\",Calculations!$E$2=\"Shetland Islands Local Authority\",Calculations!$E$2=\"Eilean Siar Local Authority\"),OR($F105=1,$F105=5)),0,new_ci(VALUE(LEFT(Options!$B$24,2)),$C105,$E105,$F105,2016,$I105+$J105,1,$H105,$G105*$H105,Options!$B$8)))","v":37.780809643600001},{"$f":"IF(AND(OR(Calculations!$E$2=\"Orkney Health Board\",Calculations!$E$2=\"Orkney Islands Local Authority\"),$F105=1),0,IF(AND(OR(Calculations!$E$2=\"Shetland Health Board\",Calculations!$E$2=\"Western Isles Health Board\",Calculations!$E$2=\"Shetland Islands Local Authority\",Calculations!$E$2=\"Eilean Siar Local Authority\"),OR($F105=1,$F105=5)),0,new_yllv2(VALUE(LEFT(Options!$B$24,2)),$C105,$D105,$E105,$F105,2016,$I105,1,$H105,$G105*$H105,Options!$B$8)))","v":1675.0286987919999},{"$f":"IF(AND(OR(Calculations!$E$2=\"Orkney Health Board\",Calculations!$E$2=\"Orkney Islands Local Authority\"),$F105=1),0,IF(AND(OR(Calculations!$E$2=\"Shetland Health Board\",Calculations!$E$2=\"Western Isles Health Board\",Calculations!$E$2=\"Shetland Islands Local Authority\",Calculations!$E$2=\"Eilean Siar Local Authority\"),OR($F105=1,$F105=5)),0,new_yllv2(VALUE(LEFT(Options!$B$24,2)),$C105,$D105,$E105,$F105,2016,$I105+$J105,1,$H105,$G105*$H105,Options!$B$8)))","v":1661.6000836871001},{"$f":"IF(AND(OR(Calculations!$E$2=\"Orkney Health Board\",Calculations!$E$2=\"Orkney Islands Local Authority\"),$F105=1),0,IF(AND(OR(Calculations!$E$2=\"Shetland Health Board\",Calculations!$E$2=\"Western Isles Health Board\",Calculations!$E$2=\"Shetland Islands Local Authority\",Calculations!$E$2=\"Eilean Siar Local Authority\"),OR($F105=1,$F105=5)),0,hosp_count(VALUE(LEFT(Options!$B$24,2)),$C105,$E105,$F105,2016,$I105,1,$H105,$G105*$H105, Options!$B$8)))","v":{"$error":"#NAME?"}},{"$f":"IF(AND(OR(Calculations!$E$2=\"Orkney Health Board\",Calculations!$E$2=\"Orkney Islands Local Authority\"),$F105=1),0,IF(AND(OR(Calculations!$E$2=\"Shetland Health Board\",Calculations!$E$2=\"Western Isles Health Board\",Calculations!$E$2=\"Shetland Islands Local Authority\",Calculations!$E$2=\"Eilean Siar Local Authority\"),OR($F105=1,$F105=5)),0,hosp_count(VALUE(LEFT(Options!$B$24,2)),$C105,$E105,$F105,2016,$I105+$J105,1,$H105,$G105*$H105, Options!$B$8)))","v":{"$error":"#NAME?"}},{"$f":"IF(AND(OR(Calculations!$E$2=\"Orkney Health Board\",Calculations!$E$2=\"Orkney Islands Local Authority\"),$F105=1),0,IF(AND(OR(Calculations!$E$2=\"Shetland Health Board\",Calculations!$E$2=\"Western Isles Health Board\",Calculations!$E$2=\"Shetland Islands Local Authority\",Calculations!$E$2=\"Eilean Siar Local Authority\"),OR($F105=1,$F105=5)),0,prem_mort(VALUE(LEFT(Options!$B$24,2)),$C105,$E105,$F105,2016,$I105,1,$H105,$G105*$H105,Options!$B$8)))","v":38.086144216000001},{"$f":"IF(AND(OR(Calculations!$E$2=\"Orkney Health Board\",Calculations!$E$2=\"Orkney Islands Local Authority\"),$F105=1),0,IF(AND(OR(Calculations!$E$2=\"Shetland Health Board\",Calculations!$E$2=\"Western Isles Health Board\",Calculations!$E$2=\"Shetland Islands Local Authority\",Calculations!$E$2=\"Eilean Siar Local Authority\"),OR($F105=1,$F105=5)),0,prem_mort(VALUE(LEFT(Options!$B$24,2)),$C105,$E105,$F105,2016,$I105+$J105,1,$H105,$G105*$H105,Options!$B$8)))","v":37.780809643600001},115.36361609014358,114.43875217665233,5073.692066371842,5033.016549606531,{"$error":"#NAME?"},{"$error":"#NAME?"},115.36361609014358,114.43875217665233,807545.31263100507,801071.26523656631,35515844.464602895,35231115.847245716,{"$error":"#NAME?"},{"$error":"#NAME?"},807545.31263100507,801071.26523656631,7000]
[null,"Female 40-44",42.077438000000001,82.30744,"female",2,{"$f":"HLOOKUP(Calculations!$E$2,'Prevalence Rates'!$C$3:$BC$249,'Prevalence Rates'!$BD106,FALSE)","v":0.31099999999999994},{"$f":"HLOOKUP(Calculations!$E$2,'Population 2016'!$C$3:$BC$249,'Population 2016'!BD106,FALSE)","v":33442},0,{"$f":"HLOOKUP(Results!E$4,Targeting!$C$3:$F$249,Targeting!$G106,FALSE)","v":5491},{"$f":"IF(AND(OR(Calculations!$E$2=\"Orkney Health Board\",Calculations!$E$2=\"Orkney Islands Local Authority\"),$F106=1),0,IF(AND(OR(Calculations!$E$2=\"Shetland Health Board\",Calculations!$E$2=\"Western Isles Health Board\",Calculations!$E$2=\"Shetland Islands Local Authority\",Calculations!$E$2=\"Eilean Siar Local Authority\"),OR($F106=1,$F106=5)),0,new_ci(VALUE(LEFT(Options!$B$24,2)),$C106,$E106,$F106,2016,$I106,1,$H106,$G106*$H106,Options!$B$8)))","v":59.813195562399997},{"$f":"IF(AND(OR(Calculations!$E$2=\"Orkney Health Board\",Calculations!$E$2=\"Orkney Islands Local Authority\"),$F106=1),0,IF(AND(OR(Calculations!$E$2=\"Shetland Health Board\",Calculations!$E$2=\"Western Isles Health Board\",Calculations!$E$2=\"Shetland Islands Local Authority\",Calculations!$E$2=\"Eilean Siar Local Authority\"),OR($F106=1,$F106=5)),0,new_ci(VALUE(LEFT(Options!$B$24,2)),$C106,$E106,$F106,2016,$I106+$J106,1,$H106,$G106*$H106,Options!$B$8)))","v":59.3339207657},{"$f":"IF(AND(OR(Calculations!$E$2=\"Orkney Health Board\",Calculations!$E$2=\"Orkney Islands Local Authority\"),$F106=1),0,IF(AND(OR(Calculations!$E$2=\"Shetland Health Board\",Calculations!$E$2=\"Western Isles Health Board\",Calculations!$E$2=\"Shetland Islands Local Authority\",Calculations!$E$2=\"Eilean Siar Local Authority\"),OR($F106=1,$F106=5)),0,new_yllv2(VALUE(LEFT(Options!$B$24,2)),$C106,$D106,$E106,$F106,2016,$I106,1,$H106,$G106*$H106,Options!$B$8)))","v":2346.4717815393001},{"$f":"IF(AND(OR(Calculations!$E$2=\"Orkney Health Board\",Calculations!$E$2=\"Orkney Islands Local Authority\"),$F106=1),0,IF(AND(OR(Calculations!$E$2=\"Shetland Health Board\",Calculations!$E$2=\"Western Isles Health Board\",Calculations!$E$2=\"Shetland Islands Local Authority\",Calculations!$E$2=\"Eilean Siar Local Authority\"),OR($F106=1,$F106=5)),0,new_yllv2(VALUE(LEFT(Options!$B$24,2)),$C106,$D106,$E106,$F106,2016,$I106+$J106,1,$H106,$G106*$H106,Options!$B$8)))","v":2327.6698303062999},{"$f":"IF(AND(OR(Calculations!$E$2=\"Orkney Health Board\",Calculations!$E$2=\"Orkney Islands Local Authority\"),$F106=1),0,IF(AND(OR(Calculations!$E$2=\"Shetland Health Board\",Calculations!$E$2=\"Western Isles Health Board\",Calculations!$E$2=\"Shetland Islands Local Authority\",Calculations!$E$2=\"Eilean Siar Local Authority\"),OR($F106=1,$F106=5)),0,hosp_count(VALUE(LEFT(Options!$B$24,2)),$C106,$E106,$F106,2016,$I106,1,$H106,$G106*$H106, Options!$B$8)))","v":{"$error":"#NAME?"}},{"$f":"IF(AND(OR(Calculations!$E$2=\"Orkney Health Board\",Calculations!$E$2=\"Orkney Islands Local Authority\"),$F106=1),0,IF(AND(OR(Calculations!$E$2=\"Shetland Health Board\",Calculations!$E$2=\"Western Isles Health Board\",Calculations!$E$2=\"Shetland Islands Local Authority\",Calculations!$E$2=\"Eilean Siar Local Authority\"),OR($F106=1,$F106=5)),0,hosp_count(VALUE(LEFT(Options!$B$24,2)),$C106,$E106,$F106,2016,$I106+$J106,1,$H106,$G106*$H106, Options!$B$8)))","v":{"$error":"#NAME?"}},{"$f":"IF(AND(OR(Calculations!$E$2=\"Orkney Health Board\",Calculations!$E$2=\"Orkney Islands Local Authority\"),$F106=1),0,IF(AND(OR(Calculations!$E$2=\"Shetland Health Board\",Calculations!$E$2=\"Western Isles Health Board\",Calculations!$E$2=\"Shetland Islands Local Authority\",Calculations!$E$2=\"Eilean Siar Local Authority\"),OR($F106=1,$F106=5)),0,prem_mort(VALUE(LEFT(Options!$B$24,2)),$C106,$E106,$F106,2016,$I106,1,$H106,$G106*$H106,Options!$B$8)))","v":59.813195562399997},{"$f":"IF(AND(OR(Calculations!$E$2=\"Orkney Health Board\",Calculations!$E$2=\"Orkney Islands Local Authority\"),$F106=1),0,IF(AND(OR(Calculations!$E$2=\"Shetland Health Board\",Calculations!$E$2=\"Western Isles Health Board\",Calculations!$E$2=\"Shetland Islands Local Authority\",Calculations!$E$2=\"Eilean Siar Local Authority\"),OR($F106=1,$F106=5)),0,prem_mort(VALUE(LEFT(Options!$B$24,2)),$C106,$E106,$F106,2016,$I106+$J106,1,$H106,$G106*$H106,Options!$B$8)))","v":59.3339207657},178.8565144500927,177.42336213653488,7016.5414195900366,6960.3188514631302,{"$error":"#NAME?"},{"$error":"#NAME?"},178.8565144500927,177.42336213653488,1251995.6011506489,1241963.5349557442,49115789.937130257,48722231.960241914,{"$error":"#NAME?"},{"$error":"#NAME?"},1251995.6011506489,1241963.5349557442,7000]
[null,"Female 45-49",47.025772000000003,82.585769999999997,"female",2,{"$f":"HLOOKUP(Calculations!$E$2,'Prevalence Rates'!$C$3:$BC$249,'Prevalence Rates'!$BD107,FALSE)","v":0.31400000000000006},{"$f":"HLOOKUP(Calculations!$E$2,'Population 2016'!$C$3:$BC$249,'Population 2016'!BD107,FALSE)","v":39170},0,{"$f":"HLOOKUP(Results!E$4,Targeting!$C$3:$F$249,Targeting!$G107,FALSE)","v":6431},{"$f":"IF(AND(OR(Calculations!$E$2=\"Orkney Health Board\",Calculations!$E$2=\"Orkney Islands Local Authority\"),$F107=1),0,IF(AND(OR(Calculations!$E$2=\"Shetland Health Board\",Calculations!$E$2=\"Western Isles Health Board\",Calculations!$E$2=\"Shetland Islands Local Authority\",Calculations!$E$2=\"Eilean Siar Local Authority\"),OR($F107=1,$F107=5)),0,new_ci(VALUE(LEFT(Options!$B$24,2)),$C107,$E107,$F107,2016,$I107,1,$H107,$G107*$H107,Options!$B$8)))","v":106.66780736920001},{"$f":"IF(AND(OR(Calculations!$E$2=\"Orkney Health Board\",Calculations!$E$2=\"Orkney Islands Local Authority\"),$F107=1),0,IF(AND(OR(Calculations!$E$2=\"Shetland Health Board\",Calculations!$E$2=\"Western Isles Health Board\",Calculations!$E$2=\"Shetland Islands Local Authority\",Calculations!$E$2=\"Eilean Siar Local Authority\"),OR($F107=1,$F107=5)),0,new_ci(VALUE(LEFT(Options!$B$24,2)),$C107,$E107,$F107,2016,$I107+$J107,1,$H107,$G107*$H107,Options!$B$8)))","v":105.8147030642},{"$f":"IF(AND(OR(Calculations!$E$2=\"Orkney Health Board\",Calculations!$E$2=\"Orkney Islands Local Authority\"),$F107=1),0,IF(AND(OR(Calculations!$E$2=\"Shetland Health Board\",Calculations!$E$2=\"Western Isles Health Board\",Calculations!$E$2=\"Shetland Islands Local Authority\",Calculations!$E$2=\"Eilean Siar Local Authority\"),OR($F107=1,$F107=5)),0,new_yllv2(VALUE(LEFT(Options!$B$24,2)),$C107,$D107,$E107,$F107,2016,$I107,1,$H107,$G107*$H107,Options!$B$8)))","v":3686.4392093439001},{"$f":"IF(AND(OR(Calculations!$E$2=\"Orkney Health Board\",Calculations!$E$2=\"Orkney Islands Local Authority\"),$F107=1),0,IF(AND(OR(Calculations!$E$2=\"Shetland Health Board\",Calculations!$E$2=\"Western Isles Health Board\",Calculations!$E$2=\"Shetland Islands Local Authority\",Calculations!$E$2=\"Eilean Siar Local Authority\"),OR($F107=1,$F107=5)),0,new_yllv2(VALUE(LEFT(Options!$B$24,2)),$C107,$D107,$E107,$F107,2016,$I107+$J107,1,$H107,$G107*$H107,Options!$B$8)))","v":3656.9559262693001},{"$f":"IF(AND(OR(Calculations!$E$2=\"Orkney Health Board\",Calculations!$E$2=\"Orkney Islands Local Authority\"),$F107=1),0,IF(AND(OR(Calculations!$E$2=\"Shetland Health Board\",Calculations!$E$2=\"Western Isles Health Board\",Calculations!$E$2=\"Shetland Islands Local Authority\",Calculations!$E$2=\"Eilean Siar Local Authority\"),OR($F107=1,$F107=5)),0,hosp_count(VALUE(LEFT(Options!$B$24,2)),$C107,$E107,$F107,2016,$I107,1,$H107,$G107*$H107, Options!$B$8)))","v":{"$error":"#NAME?"}},{"$f":"IF(AND(OR(Calculations!$E$2=\"Orkney Health Board\",Calculations!$E$2=\"Orkney Islands Local Authority\"),$F107=1),0,IF(AND(OR(Calculations!$E$2=\"Shetland Health Board\",Calculations!$E$2=\"Western Isles Health Board\",Calculations!$E$2=\"Shetland Islands Local Authority\",Calculations!$E$2=\"Eilean Siar Local Authority\"),OR($F107=1,$F107=5)),0,hosp_count(VALUE(LEFT(Options!$B$24,2)),$C107,$E107,$F107,2016,$I107+$J107,1,$H107,$G107*$H107, Options!$B$8)))","v":{"$error":"#NAME?"}},{"$f":"IF(AND(OR(Calculations!$E$2=\"Orkney Health Board\",Calculations!$E$2=\"Orkney Islands Local Authority\"),$F107=1),0,IF(AND(OR(Calculations!$E$2=\"Shetland Health Board\",Calculations!$E$2=\"Western Isles Health Board\",Calculations!$E$2=\"Shetland Islands Local Authority\",Calculations!$E$2=\"Eilean Siar Local Authority\"),OR($F107=1,$F107=5)),0,prem_mort(VALUE(LEFT(Options!$B$24,2)),$C107,$E107,$F107,2016,$I107,1,$H107,$G107*$H107,Options!$B$8)))","v":106.66780736920001},{"$f":"IF(AND(OR(Calculations!$E$2=\"Orkney Health Board\",Calculations!$E$2=\"Orkney Islands Local Authority\"),$F107=1),0,IF(AND(OR(Calculations!$E$2=\"Shetland Health Board\",Calculations!$E$2=\"Western Isles Health Board\",Calculations!$E$2=\"Shetland Islands Local Authority\",Calculations!$E$2=\"Eilean Siar Local Authority\"),OR($F107=1,$F107=5)),0,prem_mort(VALUE(LEFT(Options!$B$24,2)),$C107,$E107,$F107,2016,$I107+$J107,1,$H107,$G107*$H107,Options!$B$8)))","v":105.8147030642},272.32016177993364,270.14220848659687,9411.3842464740883,9336.1141850122549,{"$error":"#NAME?"},{"$error":"#NAME?"},272.32016177993364,270.14220848659687,1906241.1324595355,1890995.4594061782,65879689.725318618,65352799.295085788,{"$error":"#NAME?"},{"$error":"#NAME?"},1906241.1324595355,1890995.4594061782,7000]
[null,"Female 50-54",51.990825999999998,82.980829999999997,"female",2,{"$f":"HLOOKUP(Calculations!$E$2,'Prevalence Rates'!$C$3:$BC$249,'Prevalence Rates'!$BD108,FALSE)","v":0.31400000000000006},{"$f":"HLOOKUP(Calculations!$E$2,'Population 2016'!$C$3:$BC$249,'Population 2016'!BD108,FALSE)","v":40518},0,{"$f":"HLOOKUP(Results!E$4,Targeting!$C$3:$F$249,Targeting!$G108,FALSE)","v":6653},{"$f":"IF(AND(OR(Calculations!$E$2=\"Orkney Health Board\",Calculations!$E$2=\"Orkney Islands Local Authority\"),$F108=1),0,IF(AND(OR(Calculations!$E$2=\"Shetland Health Board\",Calculations!$E$2=\"Western Isles Health Board\",Calculations!$E$2=\"Shetland Islands Local Authority\",Calculations!$E$2=\"Eilean Siar Local Authority\"),OR($F108=1,$F108=5)),0,new_ci(VALUE(LEFT(Options!$B$24,2)),$C108,$E108,$F108,2016,$I108,1,$H108,$G108*$H108,Options!$B$8)))","v":168.19362930770001},{"$f":"IF(AND(OR(Calculations!$E$2=\"Orkney Health Board\",Calculations!$E$2=\"Orkney Islands Local Authority\"),$F108=1),0,IF(AND(OR(Calculations!$E$2=\"Shetland Health Board\",Calculations!$E$2=\"Western Isles Health Board\",Calculations!$E$2=\"Shetland Islands Local Authority\",Calculations!$E$2=\"Eilean Siar Local Authority\"),OR($F108=1,$F108=5)),0,new_ci(VALUE(LEFT(Options!$B$24,2)),$C108,$E108,$F108,2016,$I108+$J108,1,$H108,$G108*$H108,Options!$B$8)))","v":166.84970600989999},{"$f":"IF(AND(OR(Calculations!$E$2=\"Orkney Health Board\",Calculations!$E$2=\"Orkney Islands Local Authority\"),$F108=1),0,IF(AND(OR(Calculations!$E$2=\"Shetland Health Board\",Calculations!$E$2=\"Western Isles Health Board\",Calculations!$E$2=\"Shetland Islands Local Authority\",Calculations!$E$2=\"Eilean Siar Local Authority\"),OR($F108=1,$F108=5)),0,new_yllv2(VALUE(LEFT(Options!$B$24,2)),$C108,$D108,$E108,$F108,2016,$I108,1,$H108,$G108*$H108,Options!$B$8)))","v":5044.1276157124003},{"$f":"IF(AND(OR(Calculations!$E$2=\"Orkney Health Board\",Calculations!$E$2=\"Orkney Islands Local Authority\"),$F108=1),0,IF(AND(OR(Calculations!$E$2=\"Shetland Health Board\",Calculations!$E$2=\"Western Isles Health Board\",Calculations!$E$2=\"Shetland Islands Local Authority\",Calculations!$E$2=\"Eilean Siar Local Authority\"),OR($F108=1,$F108=5)),0,new_yllv2(VALUE(LEFT(Options!$B$24,2)),$C108,$D108,$E108,$F108,2016,$I108+$J108,1,$H108,$G108*$H108,Options!$B$8)))","v":5003.8233506357001},{"$f":"IF(AND(OR(Calculations!$E$2=\"Orkney Health Board\",Calculations!$E$2=\"Orkney Islands Local Authority\"),$F108=1),0,IF(AND(OR(Calculations!$E$2=\"Shetland Health Board\",Calculations!$E$2=\"Western Isles Health Board\",Calculations!$E$2=\"Shetland Islands Local Authority\",Calculations!$E$2=\"Eilean Siar Local Authority\"),OR($F108=1,$F108=5)),0,hosp_count(VALUE(LEFT(Options!$B$24,2)),$C108,$E108,$F108,2016,$I108,1,$H108,$G108*$H108, Options!$B$8)))","v":{"$error":"#NAME?"}},{"$f":"IF(AND(OR(Calculations!$E$2=\"Orkney Health Board\",Calculations!$E$2=\"Orkney Islands Local Authority\"),$F108=1),0,IF(AND(OR(Calculations!$E$2=\"Shetland Health Board\",Calculations!$E$2=\"Western Isles Health Board\",Calculations!$E$2=\"Shetland Islands Local Authority\",Calculations!$E$2=\"Eilean Siar Local Authority\"),OR($F108=1,$F108=5)),0,hosp_count(VALUE(LEFT(Options!$B$24,2)),$C108,$E108,$F108,2016,$I108+$J108,1,$H108,$G108*$H108, Options!$B$8)))","v":{"$error":"#NAME?"}},{"$f":"IF(AND(OR(Calculations!$E$2=\"Orkney Health Board\",Calculations!$E$2=\"Orkney Islands Local Authority\"),$F108=1),0,IF(AND(OR(Calculations!$E$2=\"Shetland Health Board\",Calculations!$E$2=\"Western Isles Health Board\",Calculations!$E$2=\"Shetland Islands Local Authority\",Calculations!$E$2=\"Eilean Siar Local Authority\"),OR($F108=1,$F108=5)),0,prem_mort(VALUE(LEFT(Options!$B$24,2)),$C108,$E108,$F108,2016,$I108,1,$H108,$G108*$H108,Options!$B$8)))","v":168.19362930770001},{"$f":"IF(AND(OR(Calculations!$E$2=\"Orkney Health Board\",Calculations!$E$2=\"Orkney Islands Local Authority\"),$F108=1),0,IF(AND(OR(Calculations!$E$2=\"Shetland Health Board\",Calculations!$E$2=\"Western Isles Health Board\",Calculations!$E$2=\"Shetland Islands Local Authority\",Calculations!$E$2=\"Eilean Siar Local Authority\"),OR($F108=1,$F108=5)),0,prem_mort(VALUE(LEFT(Options!$B$24,2)),$C108,$E108,$F108,2016,$I108+$J108,1,$H108,$G108*$H108,Options!$B$8)))","v":166.84970600989999},415.10841924009088,411.79156426748602,12449.103153443903,12349.630659548102,{"$error":"#NAME?"},{"$error":"#NAME?"},415.10841924009088,411.79156426748602,2905758.934680636,2882540.949872402,87143722.074107319,86447414.616836712,{"$error":"#NAME?"},{"$error":"#NAME?"},2905758.934680636,2882540.949872402,7000]
[null,"Female 55-59",56.953040999999999,83.473039999999997,"female",2,{"$f":"HLOOKUP(Calculations!$E$2,'Prevalence Rates'!$C$3:$BC$249,'Prevalence Rates'!$BD109,FALSE)","v":0.40200000000000002},{"$f":"HLOOKUP(Calculations!$E$2,'Population 2016'!$C$3:$BC$249,'Population 2016'!BD109,FALSE)","v":37275},0,{"$f":"HLOOKUP(Results!E$4,Targeting!$C$3:$F$249,Targeting!$G109,FALSE)","v":6120},{"$f":"IF(AND(OR(Calculations!$E$2=\"Orkney Health Board\",Calculations!$E$2=\"Orkney Islands Local Authority\"),$F109=1),0,IF(AND(OR(Calculations!$E$2=\"Shetland Health Board\",Calculations!$E$2=\"Western Isles Health Board\",Calculations!$E$2=\"Shetland Islands Local Authority\",Calculations!$E$2=\"Eilean Siar Local Authority\"),OR($F109=1,$F109=5)),0,new_ci(VALUE(LEFT(Options!$B$24,2)),$C109,$E109,$F109,2016,$I109,1,$H109,$G109*$H109,Options!$B$8)))","v":235.7144662501},{"$f":"IF(AND(OR(Calculations!$E$2=\"Orkney Health Board\",Calculations!$E$2=\"Orkney Islands Local Authority\"),$F109=1),0,IF(AND(OR(Calculations!$E$2=\"Shetland Health Board\",Calculations!$E$2=\"Western Isles Health Board\",Calculations!$E$2=\"Shetland Islands Local Authority\",Calculations!$E$2=\"Eilean Siar Local Authority\"),OR($F109=1,$F109=5)),0,new_ci(VALUE(LEFT(Options!$B$24,2)),$C109,$E109,$F109,2016,$I109+$J109,1,$H109,$G109*$H109,Options!$B$8)))","v":233.89422035410001},{"$f":"IF(AND(OR(Calculations!$E$2=\"Orkney Health Board\",Calculations!$E$2=\"Orkney Islands Local Authority\"),$F109=1),0,IF(AND(OR(Calculations!$E$2=\"Shetland Health Board\",Calculations!$E$2=\"Western Isles Health Board\",Calculations!$E$2=\"Shetland Islands Local Authority\",Calculations!$E$2=\"Eilean Siar Local Authority\"),OR($F109=1,$F109=5)),0,new_yllv2(VALUE(LEFT(Options!$B$24,2)),$C109,$D109,$E109,$F109,2016,$I109,1,$H109,$G109*$H109,Options!$B$8)))","v":6015.4329429881},{"$f":"IF(AND(OR(Calculations!$E$2=\"Orkney Health Board\",Calculations!$E$2=\"Orkney Islands Local Authority\"),$F109=1),0,IF(AND(OR(Calculations!$E$2=\"Shetland Health Board\",Calculations!$E$2=\"Western Isles Health Board\",Calculations!$E$2=\"Shetland Islands Local Authority\",Calculations!$E$2=\"Eilean Siar Local Authority\"),OR($F109=1,$F109=5)),0,new_yllv2(VALUE(LEFT(Options!$B$24,2)),$C109,$D109,$E109,$F109,2016,$I109+$J109,1,$H109,$G109*$H109,Options!$B$8)))","v":5968.9802695423996},{"$f":"IF(AND(OR(Calculations!$E$2=\"Orkney Health Board\",Calculations!$E$2=\"Orkney Islands Local Authority\"),$F109=1),0,IF(AND(OR(Calculations!$E$2=\"Shetland Health Board\",Calculations!$E$2=\"Western Isles Health Board\",Calculations!$E$2=\"Shetland Islands Local Authority\",Calculations!$E$2=\"Eilean Siar Local Authority\"),OR($F109=1,$F109=5)),0,hosp_count(VALUE(LEFT(Options!$B$24,2)),$C109,$E109,$F109,2016,$I109,1,$H109,$G109*$H109, Options!$B$8)))","v":{"$error":"#NAME?"}},{"$f":"IF(AND(OR(Calculations!$E$2=\"Orkney Health Board\",Calculations!$E$2=\"Orkney Islands Local Authority\"),$F109=1),0,IF(AND(OR(Calculations!$E$2=\"Shetland Health Board\",Calculations!$E$2=\"Western Isles Health Board\",Calculations!$E$2=\"Shetland Islands Local Authority\",Calculations!$E$2=\"Eilean Siar Local Authority\"),OR($F109=1,$F109=5)),0,hosp_count(VALUE(LEFT(Options!$B$24,2)),$C109,$E109,$F109,2016,$I109+$J109,1,$H109,$G109*$H109, Options!$B$8)))","v":{"$error":"#NAME?"}},{"$f":"IF(AND(OR(Calculations!$E$2=\"Orkney Health Board\",Calculations!$E$2=\"Orkney Islands Local Authority\"),$F109=1),0,IF(AND(OR(Calculations!$E$2=\"Shetland Health Board\",Calculations!$E$2=\"Western Isles Health Board\",Calculations!$E$2=\"Shetland Islands Local Authority\",Calculations!$E$2=\"Eilean Siar Local Authority\"),OR($F109=1,$F109=5)),0,prem_mort(VALUE(LEFT(Options!$B$24,2)),$C109,$E109,$F109,2016,$I109,1,$H109,$G109*$H109,Options!$B$8)))","v":235.7144662501},{"$f":"IF(AND(OR(Calculations!$E$2=\"Orkney Health Board\",Calculations!$E$2=\"Orkney Islands Local Authority\"),$F109=1),0,IF(AND(OR(Calculations!$E$2=\"Shetland Health Board\",Calculations!$E$2=\"Western Isles Health Board\",Calculations!$E$2=\"Shetland Islands Local Authority\",Calculations!$E$2=\"Eilean Siar Local Authority\"),OR($F109=1,$F109=5)),0,prem_mort(VALUE(LEFT(Options!$B$24,2)),$C109,$E109,$F109,2016,$I109+$J109,1,$H109,$G109*$H109,Options!$B$8)))","v":233.89422035410001},632.36610664010732,627.48281785137499,16137.982409089471,16013.360884084237,{"$error":"#NAME?"},{"$error":"#NAME?"},632.36610664010732,627.48281785137499,4110379.6931606974,4078638.3160339375,104896885.65908156,104086845.74654754,{"$error":"#NAME?"},{"$error":"#NAME?"},4110379.6931606974,4078638.3160339375,6500]
[null,"Female 60-64",61.947387999999997,84.167389999999997,"female",2,{"$f":"HLOOKUP(Calculations!$E$2,'Prevalence Rates'!$C$3:$BC$249,'Prevalence Rates'!$BD110,FALSE)","v":0.40200000000000002},{"$f":"HLOOKUP(Calculations!$E$2,'Population 2016'!$C$3:$BC$249,'Population 2016'!BD110,FALSE)","v":32644},0,{"$f":"HLOOKUP(Results!E$4,Targeting!$C$3:$F$249,Targeting!$G110,FALSE)","v":5360},{"$f":"IF(AND(OR(Calculations!$E$2=\"Orkney Health Board\",Calculations!$E$2=\"Orkney Islands Local Authority\"),$F110=1),0,IF(AND(OR(Calculations!$E$2=\"Shetland Health Board\",Calculations!$E$2=\"Western Isles Health Board\",Calculations!$E$2=\"Shetland Islands Local Authority\",Calculations!$E$2=\"Eilean Siar Local Authority\"),OR($F110=1,$F110=5)),0,new_ci(VALUE(LEFT(Options!$B$24,2)),$C110,$E110,$F110,2016,$I110,1,$H110,$G110*$H110,Options!$B$8)))","v":315.14093608629997},{"$f":"IF(AND(OR(Calculations!$E$2=\"Orkney Health Board\",Calculations!$E$2=\"Orkney Islands Local Authority\"),$F110=1),0,IF(AND(OR(Calculations!$E$2=\"Shetland Health Board\",Calculations!$E$2=\"Western Isles Health Board\",Calculations!$E$2=\"Shetland Islands Local Authority\",Calculations!$E$2=\"Eilean Siar Local Authority\"),OR($F110=1,$F110=5)),0,new_ci(VALUE(LEFT(Options!$B$24,2)),$C110,$E110,$F110,2016,$I110+$J110,1,$H110,$G110*$H110,Options!$B$8)))","v":312.71273441429997},{"$f":"IF(AND(OR(Calculations!$E$2=\"Orkney Health Board\",Calculations!$E$2=\"Orkney Islands Local Authority\"),$F110=1),0,IF(AND(OR(Calculations!$E$2=\"Shetland Health Board\",Calculations!$E$2=\"Western Isles Health Board\",Calculations!$E$2=\"Shetland Islands Local Authority\",Calculations!$E$2=\"Eilean Siar Local Authority\"),OR($F110=1,$F110=5)),0,new_yllv2(VALUE(LEFT(Options!$B$24,2)),$C110,$D110,$E110,$F110,2016,$I110,1,$H110,$G110*$H110,Options!$B$8)))","v":6687.2912940331998},{"$f":"IF(AND(OR(Calculations!$E$2=\"Orkney Health Board\",Calculations!$E$2=\"Orkney Islands Local Authority\"),$F110=1),0,IF(AND(OR(Calculations!$E$2=\"Shetland Health Board\",Calculations!$E$2=\"Western Isles Health Board\",Calculations!$E$2=\"Shetland Islands Local Authority\",Calculations!$E$2=\"Eilean Siar Local Authority\"),OR($F110=1,$F110=5)),0,new_yllv2(VALUE(LEFT(Options!$B$24,2)),$C110,$D110,$E110,$F110,2016,$I110+$J110,1,$H110,$G110*$H110,Options!$B$8)))","v":6635.7648496968995},{"$f":"IF(AND(OR(Calculations!$E$2=\"Orkney Health Board\",Calculations!$E$2=\"Orkney Islands Local Authority\"),$F110=1),0,IF(AND(OR(Calculations!$E$2=\"Shetland Health Board\",Calculations!$E$2=\"Western Isles Health Board\",Calculations!$E$2=\"Shetland Islands Local Authority\",Calculations!$E$2=\"Eilean Siar Local Authority\"),OR($F110=1,$F110=5)),0,hosp_count(VALUE(LEFT(Options!$B$24,2)),$C110,$E110,$F110,2016,$I110,1,$H110,$G110*$H110, Options!$B$8)))","v":{"$error":"#NAME?"}},{"$f":"IF(AND(OR(Calculations!$E$2=\"Orkney Health Board\",Calculations!$E$2=\"Orkney Islands Local Authority\"),$F110=1),0,IF(AND(OR(Calculations!$E$2=\"Shetland Health Board\",Calculations!$E$2=\"Western Isles Health Board\",Calculations!$E$2=\"Shetland Islands Local Authority\",Calculations!$E$2=\"Eilean Siar Local Authority\"),OR($F110=1,$F110=5)),0,hosp_count(VALUE(LEFT(Options!$B$24,2)),$C110,$E110,$F110,2016,$I110+$J110,1,$H110,$G110*$H110, Options!$B$8)))","v":{"$error":"#NAME?"}},{"$f":"IF(AND(OR(Calculations!$E$2=\"Orkney Health Board\",Calculations!$E$2=\"Orkney Islands Local Authority\"),$F110=1),0,IF(AND(OR(Calculations!$E$2=\"Shetland Health Board\",Calculations!$E$2=\"Western Isles Health Board\",Calculations!$E$2=\"Shetland Islands Local Authority\",Calculations!$E$2=\"Eilean Siar Local Authority\"),OR($F110=1,$F110=5)),0,prem_mort(VALUE(LEFT(Options!$B$24,2)),$C110,$E110,$F110,2016,$I110,1,$H110,$G110*$H110,Options!$B$8)))","v":315.14093608629997},{"$f":"IF(AND(OR(Calculations!$E$2=\"Orkney Health Board\",Calculations!$E$2=\"Orkney Islands Local Authority\"),$F110=1),0,IF(AND(OR(Calculations!$E$2=\"Shetland Health Board\",Calculations!$E$2=\"Western Isles Health Board\",Calculations!$E$2=\"Shetland Islands Local Authority\",Calculations!$E$2=\"Eilean Siar Local Authority\"),OR($F110=1,$F110=5)),0,prem_mort(VALUE(LEFT(Options!$B$24,2)),$C110,$E110,$F110,2016,$I110+$J110,1,$H110,$G110*$H110,Options!$B$8)))","v":312.71273441429997},965.38701166002932,957.94857987470891,20485.514318199974,20327.670780838438,{"$error":"#NAME?"},{"$error":"#NAME?"},965.38701166002932,957.94857987470891,5792322.069960176,5747691.4792482536,122913085.90919985,121966024.68503062,{"$error":"#NAME?"},{"$error":"#NAME?"},5792322.069960176,5747691.4792482536,6000]
[null,"Female 65-69",67.063927000000007,85.193929999999995,"female",2,{"$f":"HLOOKUP(Calculations!$E$2,'Prevalence Rates'!$C$3:$BC$249,'Prevalence Rates'!$BD111,FALSE)","v":0.48899999999999999},{"$f":"HLOOKUP(Calculations!$E$2,'Population 2016'!$C$3:$BC$249,'Population 2016'!BD111,FALSE)","v":32580},0,{"$f":"HLOOKUP(Results!E$4,Targeting!$C$3:$F$249,Targeting!$G111,FALSE)","v":5349},{"$f":"IF(AND(OR(Calculations!$E$2=\"Orkney Health Board\",Calculations!$E$2=\"Orkney Islands Local Authority\"),$F111=1),0,IF(AND(OR(Calculations!$E$2=\"Shetland Health Board\",Calculations!$E$2=\"Western Isles Health Board\",Calculations!$E$2=\"Shetland Islands Local Authority\",Calculations!$E$2=\"Eilean Siar Local Authority\"),OR($F111=1,$F111=5)),0,new_ci(VALUE(LEFT(Options!$B$24,2)),$C111,$E111,$F111,2016,$I111,1,$H111,$G111*$H111,Options!$B$8)))","v":484.6966406505},{"$f":"IF(AND(OR(Calculations!$E$2=\"Orkney Health Board\",Calculations!$E$2=\"Orkney Islands Local Authority\"),$F111=1),0,IF(AND(OR(Calculations!$E$2=\"Shetland Health Board\",Calculations!$E$2=\"Western Isles Health Board\",Calculations!$E$2=\"Shetland Islands Local Authority\",Calculations!$E$2=\"Eilean Siar Local Authority\"),OR($F111=1,$F111=5)),0,new_ci(VALUE(LEFT(Options!$B$24,2)),$C111,$E111,$F111,2016,$I111+$J111,1,$H111,$G111*$H111,Options!$B$8)))","v":481.08856844759998},{"$f":"IF(AND(OR(Calculations!$E$2=\"Orkney Health Board\",Calculations!$E$2=\"Orkney Islands Local Authority\"),$F111=1),0,IF(AND(OR(Calculations!$E$2=\"Shetland Health Board\",Calculations!$E$2=\"Western Isles Health Board\",Calculations!$E$2=\"Shetland Islands Local Authority\",Calculations!$E$2=\"Eilean Siar Local Authority\"),OR($F111=1,$F111=5)),0,new_yllv2(VALUE(LEFT(Options!$B$24,2)),$C111,$D111,$E111,$F111,2016,$I111,1,$H111,$G111*$H111,Options!$B$8)))","v":8302.8549084330007},{"$f":"IF(AND(OR(Calculations!$E$2=\"Orkney Health Board\",Calculations!$E$2=\"Orkney Islands Local Authority\"),$F111=1),0,IF(AND(OR(Calculations!$E$2=\"Shetland Health Board\",Calculations!$E$2=\"Western Isles Health Board\",Calculations!$E$2=\"Shetland Islands Local Authority\",Calculations!$E$2=\"Eilean Siar Local Authority\"),OR($F111=1,$F111=5)),0,new_yllv2(VALUE(LEFT(Options!$B$24,2)),$C111,$D111,$E111,$F111,2016,$I111+$J111,1,$H111,$G111*$H111,Options!$B$8)))","v":8241.0486207730992},{"$f":"IF(AND(OR(Calculations!$E$2=\"Orkney Health Board\",Calculations!$E$2=\"Orkney Islands Local Authority\"),$F111=1),0,IF(AND(OR(Calculations!$E$2=\"Shetland Health Board\",Calculations!$E$2=\"Western Isles Health Board\",Calculations!$E$2=\"Shetland Islands Local Authority\",Calculations!$E$2=\"Eilean Siar Local Authority\"),OR($F111=1,$F111=5)),0,hosp_count(VALUE(LEFT(Options!$B$24,2)),$C111,$E111,$F111,2016,$I111,1,$H111,$G111*$H111, Options!$B$8)))","v":{"$error":"#NAME?"}},{"$f":"IF(AND(OR(Calculations!$E$2=\"Orkney Health Board\",Calculations!$E$2=\"Orkney Islands Local Authority\"),$F111=1),0,IF(AND(OR(Calculations!$E$2=\"Shetland Health Board\",Calculations!$E$2=\"Western Isles Health Board\",Calculations!$E$2=\"Shetland Islands Local Authority\",Calculations!$E$2=\"Eilean Siar Local Authority\"),OR($F111=1,$F111=5)),0,hosp_count(VALUE(LEFT(Options!$B$24,2)),$C111,$E111,$F111,2016,$I111+$J111,1,$H111,$G111*$H111, Options!$B$8)))","v":{"$error":"#NAME?"}},{"$f":"IF(AND(OR(Calculations!$E$2=\"Orkney Health Board\",Calculations!$E$2=\"Orkney Islands Local Authority\"),$F111=1),0,IF(AND(OR(Calculations!$E$2=\"Shetland Health Board\",Calculations!$E$2=\"Western Isles Health Board\",Calculations!$E$2=\"Shetland Islands Local Authority\",Calculations!$E$2=\"Eilean Siar Local Authority\"),OR($F111=1,$F111=5)),0,prem_mort(VALUE(LEFT(Options!$B$24,2)),$C111,$E111,$F111,2016,$I111,1,$H111,$G111*$H111,Options!$B$8)))","v":484.6966406505},{"$f":"IF(AND(OR(Calculations!$E$2=\"Orkney Health Board\",Calculations!$E$2=\"Orkney Islands Local Authority\"),$F111=1),0,IF(AND(OR(Calculations!$E$2=\"Shetland Health Board\",Calculations!$E$2=\"Western Isles Health Board\",Calculations!$E$2=\"Shetland Islands Local Authority\",Calculations!$E$2=\"Eilean Siar Local Authority\"),OR($F111=1,$F111=5)),0,prem_mort(VALUE(LEFT(Options!$B$24,2)),$C111,$E111,$F111,2016,$I111+$J111,1,$H111,$G111*$H111,Options!$B$8)))","v":481.08856844759998},1487.7122180801105,1476.6377177642726,25484.514758848989,25294.808535215161,{"$error":"#NAME?"},{"$error":"#NAME?"},1487.7122180801105,1476.6377177642726,8182417.1994406078,8121507.4477034993,140164831.17366943,139121446.94368339,{"$error":"#NAME?"},{"$error":"#NAME?"},8182417.1994406078,8121507.4477034993,5500]
[null,"Female 70-74",71.938164,86.248159999999999,"female",2,{"$f":"HLOOKUP(Calculations!$E$2,'Prevalence Rates'!$C$3:$BC$249,'Prevalence Rates'!$BD112,FALSE)","v":0.48899999999999999},{"$f":"HLOOKUP(Calculations!$E$2,'Population 2016'!$C$3:$BC$249,'Population 2016'!BD112,FALSE)","v":25764},0,{"$f":"HLOOKUP(Results!E$4,Targeting!$C$3:$F$249,Targeting!$G112,FALSE)","v":4230},{"$f":"IF(AND(OR(Calculations!$E$2=\"Orkney Health Board\",Calculations!$E$2=\"Orkney Islands Local Authority\"),$F112=1),0,IF(AND(OR(Calculations!$E$2=\"Shetland Health Board\",Calculations!$E$2=\"Western Isles Health Board\",Calculations!$E$2=\"Shetland Islands Local Authority\",Calculations!$E$2=\"Eilean Siar Local Authority\"),OR($F112=1,$F112=5)),0,new_ci(VALUE(LEFT(Options!$B$24,2)),$C112,$E112,$F112,2016,$I112,1,$H112,$G112*$H112,Options!$B$8)))","v":577.91111303649996},{"$f":"IF(AND(OR(Calculations!$E$2=\"Orkney Health Board\",Calculations!$E$2=\"Orkney Islands Local Authority\"),$F112=1),0,IF(AND(OR(Calculations!$E$2=\"Shetland Health Board\",Calculations!$E$2=\"Western Isles Health Board\",Calculations!$E$2=\"Shetland Islands Local Authority\",Calculations!$E$2=\"Eilean Siar Local Authority\"),OR($F112=1,$F112=5)),0,new_ci(VALUE(LEFT(Options!$B$24,2)),$C112,$E112,$F112,2016,$I112+$J112,1,$H112,$G112*$H112,Options!$B$8)))","v":573.63039998950001},{"$f":"IF(AND(OR(Calculations!$E$2=\"Orkney Health Board\",Calculations!$E$2=\"Orkney Islands Local Authority\"),$F112=1),0,IF(AND(OR(Calculations!$E$2=\"Shetland Health Board\",Calculations!$E$2=\"Western Isles Health Board\",Calculations!$E$2=\"Shetland Islands Local Authority\",Calculations!$E$2=\"Eilean Siar Local Authority\"),OR($F112=1,$F112=5)),0,new_yllv2(VALUE(LEFT(Options!$B$24,2)),$C112,$D112,$E112,$F112,2016,$I112,1,$H112,$G112*$H112,Options!$B$8)))","v":7691.9946028714003},{"$f":"IF(AND(OR(Calculations!$E$2=\"Orkney Health Board\",Calculations!$E$2=\"Orkney Islands Local Authority\"),$F112=1),0,IF(AND(OR(Calculations!$E$2=\"Shetland Health Board\",Calculations!$E$2=\"Western Isles Health Board\",Calculations!$E$2=\"Shetland Islands Local Authority\",Calculations!$E$2=\"Eilean Siar Local Authority\"),OR($F112=1,$F112=5)),0,new_yllv2(VALUE(LEFT(Options!$B$24,2)),$C112,$D112,$E112,$F112,2016,$I112+$J112,1,$H112,$G112*$H112,Options!$B$8)))","v":7635.0183293385999},{"$f":"IF(AND(OR(Calculations!$E$2=\"Orkney Health Board\",Calculations!$E$2=\"Orkney Islands Local Authority\"),$F112=1),0,IF(AND(OR(Calculations!$E$2=\"Shetland Health Board\",Calculations!$E$2=\"Western Isles Health Board\",Calculations!$E$2=\"Shetland Islands Local Authority\",Calculations!$E$2=\"Eilean Siar Local Authority\"),OR($F112=1,$F112=5)),0,hosp_count(VALUE(LEFT(Options!$B$24,2)),$C112,$E112,$F112,2016,$I112,1,$H112,$G112*$H112, Options!$B$8)))","v":{"$error":"#NAME?"}},{"$f":"IF(AND(OR(Calculations!$E$2=\"Orkney Health Board\",Calculations!$E$2=\"Orkney Islands Local Authority\"),$F112=1),0,IF(AND(OR(Calculations!$E$2=\"Shetland Health Board\",Calculations!$E$2=\"Western Isles Health Board\",Calculations!$E$2=\"Shetland Islands Local Authority\",Calculations!$E$2=\"Eilean Siar Local Authority\"),OR($F112=1,$F112=5)),0,hosp_count(VALUE(LEFT(Options!$B$24,2)),$C112,$E112,$F112,2016,$I112+$J112,1,$H112,$G112*$H112, Options!$B$8)))","v":{"$error":"#NAME?"}},{"$f":"IF(AND(OR(Calculations!$E$2=\"Orkney Health Board\",Calculations!$E$2=\"Orkney Islands Local Authority\"),$F112=1),0,IF(AND(OR(Calculations!$E$2=\"Shetland Health Board\",Calculations!$E$2=\"Western Isles Health Board\",Calculations!$E$2=\"Shetland Islands Local Authority\",Calculations!$E$2=\"Eilean Siar Local Authority\"),OR($F112=1,$F112=5)),0,prem_mort(VALUE(LEFT(Options!$B$24,2)),$C112,$E112,$F112,2016,$I112,1,$H112,$G112*$H112,Options!$B$8)))","v":577.91111303649996},{"$f":"IF(AND(OR(Calculations!$E$2=\"Orkney Health Board\",Calculations!$E$2=\"Orkney Islands Local Authority\"),$F112=1),0,IF(AND(OR(Calculations!$E$2=\"Shetland Health Board\",Calculations!$E$2=\"Western Isles Health Board\",Calculations!$E$2=\"Shetland Islands Local Authority\",Calculations!$E$2=\"Eilean Siar Local Authority\"),OR($F112=1,$F112=5)),0,prem_mort(VALUE(LEFT(Options!$B$24,2)),$C112,$E112,$F112,2016,$I112+$J112,1,$H112,$G112*$H112,Options!$B$8)))","v":573.63039998950001},2243.0954550399783,2226.4803601517619,29855.591534200434,29634.444687698338,{"$error":"#NAME?"},{"$error":"#NAME?"},2243.0954550399783,2226.4803601517619,11215477.275199892,11132401.800758809,149277957.67100218,148172223.4384917,{"$error":"#NAME?"},{"$error":"#NAME?"},11215477.275199892,11132401.800758809,5000]
[null,"Female 75-79",76.942824999999999,87.812830000000005,"female",2,{"$f":"HLOOKUP(Calculations!$E$2,'Prevalence Rates'!$C$3:$BC$249,'Prevalence Rates'!$BD113,FALSE)","v":0.72599999999999998},{"$f":"HLOOKUP(Calculations!$E$2,'Population 2016'!$C$3:$BC$249,'Population 2016'!BD113,FALSE)","v":22167},0,{"$f":"HLOOKUP(Results!E$4,Targeting!$C$3:$F$249,Targeting!$G113,FALSE)","v":3640},{"$f":"IF(AND(OR(Calculations!$E$2=\"Orkney Health Board\",Calculations!$E$2=\"Orkney Islands Local Authority\"),$F113=1),0,IF(AND(OR(Calculations!$E$2=\"Shetland Health Board\",Calculations!$E$2=\"Western Isles Health Board\",Calculations!$E$2=\"Shetland Islands Local Authority\",Calculations!$E$2=\"Eilean Siar Local Authority\"),OR($F113=1,$F113=5)),0,new_ci(VALUE(LEFT(Options!$B$24,2)),$C113,$E113,$F113,2016,$I113,1,$H113,$G113*$H113,Options!$B$8)))","v":756.50647258009997},{"$f":"IF(AND(OR(Calculations!$E$2=\"Orkney Health Board\",Calculations!$E$2=\"Orkney Islands Local Authority\"),$F113=1),0,IF(AND(OR(Calculations!$E$2=\"Shetland Health Board\",Calculations!$E$2=\"Western Isles Health Board\",Calculations!$E$2=\"Shetland Islands Local Authority\",Calculations!$E$2=\"Eilean Siar Local Authority\"),OR($F113=1,$F113=5)),0,new_ci(VALUE(LEFT(Options!$B$24,2)),$C113,$E113,$F113,2016,$I113+$J113,1,$H113,$G113*$H113,Options!$B$8)))","v":751.36138062810005},{"$f":"IF(AND(OR(Calculations!$E$2=\"Orkney Health Board\",Calculations!$E$2=\"Orkney Islands Local Authority\"),$F113=1),0,IF(AND(OR(Calculations!$E$2=\"Shetland Health Board\",Calculations!$E$2=\"Western Isles Health Board\",Calculations!$E$2=\"Shetland Islands Local Authority\",Calculations!$E$2=\"Eilean Siar Local Authority\"),OR($F113=1,$F113=5)),0,new_yllv2(VALUE(LEFT(Options!$B$24,2)),$C113,$D113,$E113,$F113,2016,$I113,1,$H113,$G113*$H113,Options!$B$8)))","v":7466.7226668980002},{"$f":"IF(AND(OR(Calculations!$E$2=\"Orkney Health Board\",Calculations!$E$2=\"Orkney Islands Local Authority\"),$F113=1),0,IF(AND(OR(Calculations!$E$2=\"Shetland Health Board\",Calculations!$E$2=\"Western Isles Health Board\",Calculations!$E$2=\"Shetland Islands Local Authority\",Calculations!$E$2=\"Eilean Siar Local Authority\"),OR($F113=1,$F113=5)),0,new_yllv2(VALUE(LEFT(Options!$B$24,2)),$C113,$D113,$E113,$F113,2016,$I113+$J113,1,$H113,$G113*$H113,Options!$B$8)))","v":7415.9405836062997},{"$f":"IF(AND(OR(Calculations!$E$2=\"Orkney Health Board\",Calculations!$E$2=\"Orkney Islands Local Authority\"),$F113=1),0,IF(AND(OR(Calculations!$E$2=\"Shetland Health Board\",Calculations!$E$2=\"Western Isles Health Board\",Calculations!$E$2=\"Shetland Islands Local Authority\",Calculations!$E$2=\"Eilean Siar Local Authority\"),OR($F113=1,$F113=5)),0,hosp_count(VALUE(LEFT(Options!$B$24,2)),$C113,$E113,$F113,2016,$I113,1,$H113,$G113*$H113, Options!$B$8)))","v":{"$error":"#NAME?"}},{"$f":"IF(AND(OR(Calculations!$E$2=\"Orkney Health Board\",Calculations!$E$2=\"Orkney Islands Local Authority\"),$F113=1),0,IF(AND(OR(Calculations!$E$2=\"Shetland Health Board\",Calculations!$E$2=\"Western Isles Health Board\",Calculations!$E$2=\"Shetland Islands Local Authority\",Calculations!$E$2=\"Eilean Siar Local Authority\"),OR($F113=1,$F113=5)),0,hosp_count(VALUE(LEFT(Options!$B$24,2)),$C113,$E113,$F113,2016,$I113+$J113,1,$H113,$G113*$H113, Options!$B$8)))","v":{"$error":"#NAME?"}},{"$f":"IF(AND(OR(Calculations!$E$2=\"Orkney Health Board\",Calculations!$E$2=\"Orkney Islands Local Authority\"),$F113=1),0,IF(AND(OR(Calculations!$E$2=\"Shetland Health Board\",Calculations!$E$2=\"Western Isles Health Board\",Calculations!$E$2=\"Shetland Islands Local Authority\",Calculations!$E$2=\"Eilean Siar Local Authority\"),OR($F113=1,$F113=5)),0,prem_mort(VALUE(LEFT(Options!$B$24,2)),$C113,$E113,$F113,2016,$I113,1,$H113,$G113*$H113,Options!$B$8)))","v":0},{"$f":"IF(AND(OR(Calculations!$E$2=\"Orkney Health Board\",Calculations!$E$2=\"Orkney Islands Local Authority\"),$F113=1),0,IF(AND(OR(Calculations!$E$2=\"Shetland Health Board\",Calculations!$E$2=\"Western Isles Health Board\",Calculations!$E$2=\"Shetland Islands Local Authority\",Calculations!$E$2=\"Eilean Siar Local Authority\"),OR($F113=1,$F113=5)),0,prem_mort(VALUE(LEFT(Options!$B$24,2)),$C113,$E113,$F113,2016,$I113+$J113,1,$H113,$G113*$H113,Options!$B$8)))","v":0},3412.7598347999278,3389.5492426945461,33683.956633274691,33454.867973141605,{"$error":"#NAME?"},{"$error":"#NAME?"},0,0,13651039.339199711,13558196.970778184,134735826.53309876,133819471.89256641,{"$error":"#NAME?"},{"$error":"#NAME?"},0,0,4000]
[null,"Female 80-84",81.856712000000002,89.736710000000002,"female",2,{"$f":"HLOOKUP(Calculations!$E$2,'Prevalence Rates'!$C$3:$BC$249,'Prevalence Rates'!$BD114,FALSE)","v":0.72599999999999998},{"$f":"HLOOKUP(Calculations!$E$2,'Population 2016'!$C$3:$BC$249,'Population 2016'!BD114,FALSE)","v":17470},0,{"$f":"HLOOKUP(Results!E$4,Targeting!$C$3:$F$249,Targeting!$G114,FALSE)","v":2868},{"$f":"IF(AND(OR(Calculations!$E$2=\"Orkney Health Board\",Calculations!$E$2=\"Orkney Islands Local Authority\"),$F114=1),0,IF(AND(OR(Calculations!$E$2=\"Shetland Health Board\",Calculations!$E$2=\"Western Isles Health Board\",Calculations!$E$2=\"Shetland Islands Local Authority\",Calculations!$E$2=\"Eilean Siar Local Authority\"),OR($F114=1,$F114=5)),0,new_ci(VALUE(LEFT(Options!$B$24,2)),$C114,$E114,$F114,2016,$I114,1,$H114,$G114*$H114,Options!$B$8)))","v":897.31669387479997},{"$f":"IF(AND(OR(Calculations!$E$2=\"Orkney Health Board\",Calculations!$E$2=\"Orkney Islands Local Authority\"),$F114=1),0,IF(AND(OR(Calculations!$E$2=\"Shetland Health Board\",Calculations!$E$2=\"Western Isles Health Board\",Calculations!$E$2=\"Shetland Islands Local Authority\",Calculations!$E$2=\"Eilean Siar Local Authority\"),OR($F114=1,$F114=5)),0,new_ci(VALUE(LEFT(Options!$B$24,2)),$C114,$E114,$F114,2016,$I114+$J114,1,$H114,$G114*$H114,Options!$B$8)))","v":891.27693252280005},{"$f":"IF(AND(OR(Calculations!$E$2=\"Orkney Health Board\",Calculations!$E$2=\"Orkney Islands Local Authority\"),$F114=1),0,IF(AND(OR(Calculations!$E$2=\"Shetland Health Board\",Calculations!$E$2=\"Western Isles Health Board\",Calculations!$E$2=\"Shetland Islands Local Authority\",Calculations!$E$2=\"Eilean Siar Local Authority\"),OR($F114=1,$F114=5)),0,new_yllv2(VALUE(LEFT(Options!$B$24,2)),$C114,$D114,$E114,$F114,2016,$I114,1,$H114,$G114*$H114,Options!$B$8)))","v":6173.5370592252002},{"$f":"IF(AND(OR(Calculations!$E$2=\"Orkney Health Board\",Calculations!$E$2=\"Orkney Islands Local Authority\"),$F114=1),0,IF(AND(OR(Calculations!$E$2=\"Shetland Health Board\",Calculations!$E$2=\"Western Isles Health Board\",Calculations!$E$2=\"Shetland Islands Local Authority\",Calculations!$E$2=\"Eilean Siar Local Authority\"),OR($F114=1,$F114=5)),0,new_yllv2(VALUE(LEFT(Options!$B$24,2)),$C114,$D114,$E114,$F114,2016,$I114+$J114,1,$H114,$G114*$H114,Options!$B$8)))","v":6131.9835132030003},{"$f":"IF(AND(OR(Calculations!$E$2=\"Orkney Health Board\",Calculations!$E$2=\"Orkney Islands Local Authority\"),$F114=1),0,IF(AND(OR(Calculations!$E$2=\"Shetland Health Board\",Calculations!$E$2=\"Western Isles Health Board\",Calculations!$E$2=\"Shetland Islands Local Authority\",Calculations!$E$2=\"Eilean Siar Local Authority\"),OR($F114=1,$F114=5)),0,hosp_count(VALUE(LEFT(Options!$B$24,2)),$C114,$E114,$F114,2016,$I114,1,$H114,$G114*$H114, Options!$B$8)))","v":{"$error":"#NAME?"}},{"$f":"IF(AND(OR(Calculations!$E$2=\"Orkney Health Board\",Calculations!$E$2=\"Orkney Islands Local Authority\"),$F114=1),0,IF(AND(OR(Calculations!$E$2=\"Shetland Health Board\",Calculations!$E$2=\"Western Isles Health Board\",Calculations!$E$2=\"Shetland Islands Local Authority\",Calculations!$E$2=\"Eilean Siar Local Authority\"),OR($F114=1,$F114=5)),0,hosp_count(VALUE(LEFT(Options!$B$24,2)),$C114,$E114,$F114,2016,$I114+$J114,1,$H114,$G114*$H114, Options!$B$8)))","v":{"$error":"#NAME?"}},{"$f":"IF(AND(OR(Calculations!$E$2=\"Orkney Health Board\",Calculations!$E$2=\"Orkney Islands Local Authority\"),$F114=1),0,IF(AND(OR(Calculations!$E$2=\"Shetland Health Board\",Calculations!$E$2=\"Western Isles Health Board\",Calculations!$E$2=\"Shetland Islands Local Authority\",Calculations!$E$2=\"Eilean Siar Local Authority\"),OR($F114=1,$F114=5)),0,prem_mort(VALUE(LEFT(Options!$B$24,2)),$C114,$E114,$F114,2016,$I114,1,$H114,$G114*$H114,Options!$B$8)))","v":0},{"$f":"IF(AND(OR(Calculations!$E$2=\"Orkney Health Board\",Calculations!$E$2=\"Orkney Islands Local Authority\"),$F114=1),0,IF(AND(OR(Calculations!$E$2=\"Shetland Health Board\",Calculations!$E$2=\"Western Isles Health Board\",Calculations!$E$2=\"Shetland Islands Local Authority\",Calculations!$E$2=\"Eilean Siar Local Authority\"),OR($F114=1,$F114=5)),0,prem_mort(VALUE(LEFT(Options!$B$24,2)),$C114,$E114,$F114,2016,$I114+$J114,1,$H114,$G114*$H114,Options!$B$8)))","v":0},5136.3291005998854,5101.7569119793943,35337.933939468807,35100.077350904408,{"$error":"#NAME?"},{"$error":"#NAME?"},0,0,12840822.751499712,12754392.279948486,88344834.848672017,87750193.377261028,{"$error":"#NAME?"},{"$error":"#NAME?"},0,0,2500]
[null,"Female 85-89",86.730819999999994,92.220819999999989,"female",2,{"$f":"HLOOKUP(Calculations!$E$2,'Prevalence Rates'!$C$3:$BC$249,'Prevalence Rates'!$BD115,FALSE)","v":0.72599999999999998},{"$f":"HLOOKUP(Calculations!$E$2,'Population 2016'!$C$3:$BC$249,'Population 2016'!BD115,FALSE)","v":10411},0,{"$f":"HLOOKUP(Results!E$4,Targeting!$C$3:$F$249,Targeting!$G115,FALSE)","v":1709},{"$f":"IF(AND(OR(Calculations!$E$2=\"Orkney Health Board\",Calculations!$E$2=\"Orkney Islands Local Authority\"),$F115=1),0,IF(AND(OR(Calculations!$E$2=\"Shetland Health Board\",Calculations!$E$2=\"Western Isles Health Board\",Calculations!$E$2=\"Shetland Islands Local Authority\",Calculations!$E$2=\"Eilean Siar Local Authority\"),OR($F115=1,$F115=5)),0,new_ci(VALUE(LEFT(Options!$B$24,2)),$C115,$E115,$F115,2016,$I115,1,$H115,$G115*$H115,Options!$B$8)))","v":798.45398643650003},{"$f":"IF(AND(OR(Calculations!$E$2=\"Orkney Health Board\",Calculations!$E$2=\"Orkney Islands Local Authority\"),$F115=1),0,IF(AND(OR(Calculations!$E$2=\"Shetland Health Board\",Calculations!$E$2=\"Western Isles Health Board\",Calculations!$E$2=\"Shetland Islands Local Authority\",Calculations!$E$2=\"Eilean Siar Local Authority\"),OR($F115=1,$F115=5)),0,new_ci(VALUE(LEFT(Options!$B$24,2)),$C115,$E115,$F115,2016,$I115+$J115,1,$H115,$G115*$H115,Options!$B$8)))","v":793.16163624310002},{"$f":"IF(AND(OR(Calculations!$E$2=\"Orkney Health Board\",Calculations!$E$2=\"Orkney Islands Local Authority\"),$F115=1),0,IF(AND(OR(Calculations!$E$2=\"Shetland Health Board\",Calculations!$E$2=\"Western Isles Health Board\",Calculations!$E$2=\"Shetland Islands Local Authority\",Calculations!$E$2=\"Eilean Siar Local Authority\"),OR($F115=1,$F115=5)),0,new_yllv2(VALUE(LEFT(Options!$B$24,2)),$C115,$D115,$E115,$F115,2016,$I115,1,$H115,$G115*$H115,Options!$B$8)))","v":3585.0583990998998},{"$f":"IF(AND(OR(Calculations!$E$2=\"Orkney Health Board\",Calculations!$E$2=\"Orkney Islands Local Authority\"),$F115=1),0,IF(AND(OR(Calculations!$E$2=\"Shetland Health Board\",Calculations!$E$2=\"Western Isles Health Board\",Calculations!$E$2=\"Shetland Islands Local Authority\",Calculations!$E$2=\"Eilean Siar Local Authority\"),OR($F115=1,$F115=5)),0,new_yllv2(VALUE(LEFT(Options!$B$24,2)),$C115,$D115,$E115,$F115,2016,$I115+$J115,1,$H115,$G115*$H115,Options!$B$8)))","v":3561.2957467315},{"$f":"IF(AND(OR(Calculations!$E$2=\"Orkney Health Board\",Calculations!$E$2=\"Orkney Islands Local Authority\"),$F115=1),0,IF(AND(OR(Calculations!$E$2=\"Shetland Health Board\",Calculations!$E$2=\"Western Isles Health Board\",Calculations!$E$2=\"Shetland Islands Local Authority\",Calculations!$E$2=\"Eilean Siar Local Authority\"),OR($F115=1,$F115=5)),0,hosp_count(VALUE(LEFT(Options!$B$24,2)),$C115,$E115,$F115,2016,$I115,1,$H115,$G115*$H115, Options!$B$8)))","v":{"$error":"#NAME?"}},{"$f":"IF(AND(OR(Calculations!$E$2=\"Orkney Health Board\",Calculations!$E$2=\"Orkney Islands Local Authority\"),$F115=1),0,IF(AND(OR(Calculations!$E$2=\"Shetland Health Board\",Calculations!$E$2=\"Western Isles Health Board\",Calculations!$E$2=\"Shetland Islands Local Authority\",Calculations!$E$2=\"Eilean Siar Local Authority\"),OR($F115=1,$F115=5)),0,hosp_count(VALUE(LEFT(Options!$B$24,2)),$C115,$E115,$F115,2016,$I115+$J115,1,$H115,$G115*$H115, Options!$B$8)))","v":{"$error":"#NAME?"}},{"$f":"IF(AND(OR(Calculations!$E$2=\"Orkney Health Board\",Calculations!$E$2=\"Orkney Islands Local Authority\"),$F115=1),0,IF(AND(OR(Calculations!$E$2=\"Shetland Health Board\",Calculations!$E$2=\"Western Isles Health Board\",Calculations!$E$2=\"Shetland Islands Local Authority\",Calculations!$E$2=\"Eilean Siar Local Authority\"),OR($F115=1,$F115=5)),0,prem_mort(VALUE(LEFT(Options!$B$24,2)),$C115,$E115,$F115,2016,$I115,1,$H115,$G115*$H115,Options!$B$8)))","v":0},{"$f":"IF(AND(OR(Calculations!$E$2=\"Orkney Health Board\",Calculations!$E$2=\"Orkney Islands Local Authority\"),$F115=1),0,IF(AND(OR(Calculations!$E$2=\"Shetland Health Board\",Calculations!$E$2=\"Western Isles Health Board\",Calculations!$E$2=\"Shetland Islands Local Authority\",Calculations!$E$2=\"Eilean Siar Local Authority\"),OR($F115=1,$F115=5)),0,prem_mort(VALUE(LEFT(Options!$B$24,2)),$C115,$E115,$F115,2016,$I115+$J115,1,$H115,$G115*$H115,Options!$B$8)))","v":0},7669.3303855201239,7618.4961698501584,34435.29343098549,34207.047802627028,{"$error":"#NAME?"},{"$error":"#NAME?"},0,0,11503995.578280186,11427744.254775237,51652940.146478236,51310571.703940541,{"$error":"#NAME?"},{"$error":"#NAME?"},0,0,1500]
[null,"Female 90+",92.779342999999997,96.279340000000005,"female",2,{"$f":"HLOOKUP(Calculations!$E$2,'Prevalence Rates'!$C$3:$BC$249,'Prevalence Rates'!$BD116,FALSE)","v":0.72599999999999998},{"$f":"HLOOKUP(Calculations!$E$2,'Population 2016'!$C$3:$BC$249,'Population 2016'!BD116,FALSE)","v":5892},0,{"$f":"HLOOKUP(Results!E$4,Targeting!$C$3:$F$249,Targeting!$G116,FALSE)","v":967},{"$f":"IF(AND(OR(Calculations!$E$2=\"Orkney Health Board\",Calculations!$E$2=\"Orkney Islands Local Authority\"),$F116=1),0,IF(AND(OR(Calculations!$E$2=\"Shetland Health Board\",Calculations!$E$2=\"Western Isles Health Board\",Calculations!$E$2=\"Shetland Islands Local Authority\",Calculations!$E$2=\"Eilean Siar Local Authority\"),OR($F116=1,$F116=5)),0,new_ci(VALUE(LEFT(Options!$B$24,2)),$C116,$E116,$F116,2016,$I116,1,$H116,$G116*$H116,Options!$B$8)))","v":735.8009240609},{"$f":"IF(AND(OR(Calculations!$E$2=\"Orkney Health Board\",Calculations!$E$2=\"Orkney Islands Local Authority\"),$F116=1),0,IF(AND(OR(Calculations!$E$2=\"Shetland Health Board\",Calculations!$E$2=\"Western Isles Health Board\",Calculations!$E$2=\"Shetland Islands Local Authority\",Calculations!$E$2=\"Eilean Siar Local Authority\"),OR($F116=1,$F116=5)),0,new_ci(VALUE(LEFT(Options!$B$24,2)),$C116,$E116,$F116,2016,$I116+$J116,1,$H116,$G116*$H116,Options!$B$8)))","v":731.07130240239997},{"$f":"IF(AND(OR(Calculations!$E$2=\"Orkney Health Board\",Calculations!$E$2=\"Orkney Islands Local Authority\"),$F116=1),0,IF(AND(OR(Calculations!$E$2=\"Shetland Health Board\",Calculations!$E$2=\"Western Isles Health Board\",Calculations!$E$2=\"Shetland Islands Local Authority\",Calculations!$E$2=\"Eilean Siar Local Authority\"),OR($F116=1,$F116=5)),0,new_yllv2(VALUE(LEFT(Options!$B$24,2)),$C116,$D116,$E116,$F116,2016,$I116,1,$H116,$G116*$H116,Options!$B$8)))","v":1839.5001027495},{"$f":"IF(AND(OR(Calculations!$E$2=\"Orkney Health Board\",Calculations!$E$2=\"Orkney Islands Local Authority\"),$F116=1),0,IF(AND(OR(Calculations!$E$2=\"Shetland Health Board\",Calculations!$E$2=\"Western Isles Health Board\",Calculations!$E$2=\"Shetland Islands Local Authority\",Calculations!$E$2=\"Eilean Siar Local Authority\"),OR($F116=1,$F116=5)),0,new_yllv2(VALUE(LEFT(Options!$B$24,2)),$C116,$D116,$E116,$F116,2016,$I116+$J116,1,$H116,$G116*$H116,Options!$B$8)))","v":1827.6760627921001},{"$f":"IF(AND(OR(Calculations!$E$2=\"Orkney Health Board\",Calculations!$E$2=\"Orkney Islands Local Authority\"),$F116=1),0,IF(AND(OR(Calculations!$E$2=\"Shetland Health Board\",Calculations!$E$2=\"Western Isles Health Board\",Calculations!$E$2=\"Shetland Islands Local Authority\",Calculations!$E$2=\"Eilean Siar Local Authority\"),OR($F116=1,$F116=5)),0,hosp_count(VALUE(LEFT(Options!$B$24,2)),$C116,$E116,$F116,2016,$I116,1,$H116,$G116*$H116, Options!$B$8)))","v":{"$error":"#NAME?"}},{"$f":"IF(AND(OR(Calculations!$E$2=\"Orkney Health Board\",Calculations!$E$2=\"Orkney Islands Local Authority\"),$F116=1),0,IF(AND(OR(Calculations!$E$2=\"Shetland Health Board\",Calculations!$E$2=\"Western Isles Health Board\",Calculations!$E$2=\"Shetland Islands Local Authority\",Calculations!$E$2=\"Eilean Siar Local Authority\"),OR($F116=1,$F116=5)),0,hosp_count(VALUE(LEFT(Options!$B$24,2)),$C116,$E116,$F116,2016,$I116+$J116,1,$H116,$G116*$H116, Options!$B$8)))","v":{"$error":"#NAME?"}},{"$f":"IF(AND(OR(Calculations!$E$2=\"Orkney Health Board\",Calculations!$E$2=\"Orkney Islands Local Authority\"),$F116=1),0,IF(AND(OR(Calculations!$E$2=\"Shetland Health Board\",Calculations!$E$2=\"Western Isles Health Board\",Calculations!$E$2=\"Shetland Islands Local Authority\",Calculations!$E$2=\"Eilean Siar Local Authority\"),OR($F116=1,$F116=5)),0,prem_mort(VALUE(LEFT(Options!$B$24,2)),$C116,$E116,$F116,2016,$I116,1,$H116,$G116*$H116,Options!$B$8)))","v":0},{"$f":"IF(AND(OR(Calculations!$E$2=\"Orkney Health Board\",Calculations!$E$2=\"Orkney Islands Local Authority\"),$F116=1),0,IF(AND(OR(Calculations!$E$2=\"Shetland Health Board\",Calculations!$E$2=\"Western Isles Health Board\",Calculations!$E$2=\"Shetland Islands Local Authority\",Calculations!$E$2=\"Eilean Siar Local Authority\"),OR($F116=1,$F116=5)),0,prem_mort(VALUE(LEFT(Options!$B$24,2)),$C116,$E116,$F116,2016,$I116+$J116,1,$H116,$G116*$H116,Options!$B$8)))","v":0},12488.13516736083,12407.863245118804,31220.300453996944,31019.620889207399,{"$error":"#NAME?"},{"$error":"#NAME?"},0,0,12488135.167360829,12407863.245118804,31220300.453996945,31019620.8892074,{"$error":"#NAME?"},{"$error":"#NAME?"},0,0,1000]
[null,"Male 0-4",2.0320822999999999,77.402082000000007,"male",2,{"$f":"HLOOKUP(Calculations!$E$2,'Prevalence Rates'!$C$3:$BC$249,'Prevalence Rates'!$BD117,FALSE)","v":0},{"$f":"HLOOKUP(Calculations!$E$2,'Population 2016'!$C$3:$BC$249,'Population 2016'!BD117,FALSE)","v":0},0,{"$f":"HLOOKUP(Results!E$4,Targeting!$C$3:$F$249,Targeting!$G117,FALSE)","v":0},{"$f":"IF(AND(OR(Calculations!$E$2=\"Orkney Health Board\",Calculations!$E$2=\"Orkney Islands Local Authority\"),$F117=1),0,IF(AND(OR(Calculations!$E$2=\"Shetland Health Board\",Calculations!$E$2=\"Western Isles Health Board\",Calculations!$E$2=\"Shetland Islands Local Authority\",Calculations!$E$2=\"Eilean Siar Local Authority\"),OR($F117=1,$F117=5)),0,new_ci(VALUE(LEFT(Options!$B$24,2)),$C117,$E117,$F117,2016,$I117,1,$H117,$G117*$H117,Options!$B$8)))","v":{"$error":"#VALUE!"}},{"$f":"IF(AND(OR(Calculations!$E$2=\"Orkney Health Board\",Calculations!$E$2=\"Orkney Islands Local Authority\"),$F117=1),0,IF(AND(OR(Calculations!$E$2=\"Shetland Health Board\",Calculations!$E$2=\"Western Isles Health Board\",Calculations!$E$2=\"Shetland Islands Local Authority\",Calculations!$E$2=\"Eilean Siar Local Authority\"),OR($F117=1,$F117=5)),0,new_ci(VALUE(LEFT(Options!$B$24,2)),$C117,$E117,$F117,2016,$I117+$J117,1,$H117,$G117*$H117,Options!$B$8)))","v":{"$error":"#VALUE!"}},{"$f":"IF(AND(OR(Calculations!$E$2=\"Orkney Health Board\",Calculations!$E$2=\"Orkney Islands Local Authority\"),$F117=1),0,IF(AND(OR(Calculations!$E$2=\"Shetland Health Board\",Calculations!$E$2=\"Western Isles Health Board\",Calculations!$E$2=\"Shetland Islands Local Authority\",Calculations!$E$2=\"Eilean Siar Local Authority\"),OR($F117=1,$F117=5)),0,new_yllv2(VALUE(LEFT(Options!$B$24,2)),$C117,$D117,$E117,$F117,2016,$I117,1,$H117,$G117*$H117,Options!$B$8)))","v":{"$error":"#VALUE!"}},{"$f":"IF(AND(OR(Calculations!$E$2=\"Orkney Health Board\",Calculations!$E$2=\"Orkney Islands Local Authority\"),$F117=1),0,IF(AND(OR(Calculations!$E$2=\"Shetland Health Board\",Calculations!$E$2=\"Western Isles Health Board\",Calculations!$E$2=\"Shetland Islands Local Authority\",Calculations!$E$2=\"Eilean Siar Local Authority\"),OR($F117=1,$F117=5)),0,new_yllv2(VALUE(LEFT(Options!$B$24,2)),$C117,$D117,$E117,$F117,2016,$I117+$J117,1,$H117,$G117*$H117,Options!$B$8)))","v":{"$error":"#VALUE!"}},{"$f":"IF(AND(OR(Calculations!$E$2=\"Orkney Health Board\",Calculations!$E$2=\"Orkney Islands Local Authority\"),$F117=1),0,IF(AND(OR(Calculations!$E$2=\"Shetland Health Board\",Calculations!$E$2=\"Western Isles Health Board\",Calculations!$E$2=\"Shetland Islands Local Authority\",Calculations!$E$2=\"Eilean Siar Local Authority\"),OR($F117=1,$F117=5)),0,hosp_count(VALUE(LEFT(Options!$B$24,2)),$C117,$E117,$F117,2016,$I117,1,$H117,$G117*$H117, Options!$B$8)))","v":{"$error":"#NAME?"}},{"$f":"IF(AND(OR(Calculations!$E$2=\"Orkney Health Board\",Calculations!$E$2=\"Orkney Islands Local Authority\"),$F117=1),0,IF(AND(OR(Calculations!$E$2=\"Shetland Health Board\",Calculations!$E$2=\"Western Isles Health Board\",Calculations!$E$2=\"Shetland Islands Local Authority\",Calculations!$E$2=\"Eilean Siar Local Authority\"),OR($F117=1,$F117=5)),0,hosp_count(VALUE(LEFT(Options!$B$24,2)),$C117,$E117,$F117,2016,$I117+$J117,1,$H117,$G117*$H117, Options!$B$8)))","v":{"$error":"#NAME?"}},{"$f":"IF(AND(OR(Calculations!$E$2=\"Orkney Health Board\",Calculations!$E$2=\"Orkney Islands Local Authority\"),$F117=1),0,IF(AND(OR(Calculations!$E$2=\"Shetland Health Board\",Calculations!$E$2=\"Western Isles Health Board\",Calculations!$E$2=\"Shetland Islands Local Authority\",Calculations!$E$2=\"Eilean Siar Local Authority\"),OR($F117=1,$F117=5)),0,prem_mort(VALUE(LEFT(Options!$B$24,2)),$C117,$E117,$F117,2016,$I117,1,$H117,$G117*$H117,Options!$B$8)))","v":{"$error":"#VALUE!"}},{"$f":"IF(AND(OR(Calculations!$E$2=\"Orkney Health Board\",Calculations!$E$2=\"Orkney Islands Local Authority\"),$F117=1),0,IF(AND(OR(Calculations!$E$2=\"Shetland Health Board\",Calculations!$E$2=\"Western Isles Health Board\",Calculations!$E$2=\"Shetland Islands Local Authority\",Calculations!$E$2=\"Eilean Siar Local Authority\"),OR($F117=1,$F117=5)),0,prem_mort(VALUE(LEFT(Options!$B$24,2)),$C117,$E117,$F117,2016,$I117+$J117,1,$H117,$G117*$H117,Options!$B$8)))","v":{"$error":"#VALUE!"}},{"$error":"#VALUE!"},{"$error":"#VALUE!"},{"$error":"#VALUE!"},{"$error":"#VALUE!"},{"$error":"#NAME?"},{"$error":"#NAME?"},{"$error":"#VALUE!"},{"$error":"#VALUE!"},{"$error":"#VALUE!"},{"$error":"#VALUE!"},{"$error":"#VALUE!"},{"$error":"#VALUE!"},{"$error":"#NAME?"},{"$error":"#NAME?"},{"$error":"#VALUE!"},{"$error":"#VALUE!"},5000]
[null,"Male 5-9",6.9784756000000003,77.398476000000002,"male",2,{"$f":"HLOOKUP(Calculations!$E$2,'Prevalence Rates'!$C$3:$BC$249,'Prevalence Rates'!$BD118,FALSE)","v":0},{"$f":"HLOOKUP(Calculations!$E$2,'Population 2016'!$C$3:$BC$249,'Population 2016'!BD118,FALSE)","v":0},0,{"$f":"HLOOKUP(Results!E$4,Targeting!$C$3:$F$249,Targeting!$G118,FALSE)","v":0},{"$f":"IF(AND(OR(Calculations!$E$2=\"Orkney Health Board\",Calculations!$E$2=\"Orkney Islands Local Authority\"),$F118=1),0,IF(AND(OR(Calculations!$E$2=\"Shetland Health Board\",Calculations!$E$2=\"Western Isles Health Board\",Calculations!$E$2=\"Shetland Islands Local Authority\",Calculations!$E$2=\"Eilean Siar Local Authority\"),OR($F118=1,$F118=5)),0,new_ci(VALUE(LEFT(Options!$B$24,2)),$C118,$E118,$F118,2016,$I118,1,$H118,$G118*$H118,Options!$B$8)))","v":{"$error":"#VALUE!"}},{"$f":"IF(AND(OR(Calculations!$E$2=\"Orkney Health Board\",Calculations!$E$2=\"Orkney Islands Local Authority\"),$F118=1),0,IF(AND(OR(Calculations!$E$2=\"Shetland Health Board\",Calculations!$E$2=\"Western Isles Health Board\",Calculations!$E$2=\"Shetland Islands Local Authority\",Calculations!$E$2=\"Eilean Siar Local Authority\"),OR($F118=1,$F118=5)),0,new_ci(VALUE(LEFT(Options!$B$24,2)),$C118,$E118,$F118,2016,$I118+$J118,1,$H118,$G118*$H118,Options!$B$8)))","v":{"$error":"#VALUE!"}},{"$f":"IF(AND(OR(Calculations!$E$2=\"Orkney Health Board\",Calculations!$E$2=\"Orkney Islands Local Authority\"),$F118=1),0,IF(AND(OR(Calculations!$E$2=\"Shetland Health Board\",Calculations!$E$2=\"Western Isles Health Board\",Calculations!$E$2=\"Shetland Islands Local Authority\",Calculations!$E$2=\"Eilean Siar Local Authority\"),OR($F118=1,$F118=5)),0,new_yllv2(VALUE(LEFT(Options!$B$24,2)),$C118,$D118,$E118,$F118,2016,$I118,1,$H118,$G118*$H118,Options!$B$8)))","v":{"$error":"#VALUE!"}},{"$f":"IF(AND(OR(Calculations!$E$2=\"Orkney Health Board\",Calculations!$E$2=\"Orkney Islands Local Authority\"),$F118=1),0,IF(AND(OR(Calculations!$E$2=\"Shetland Health Board\",Calculations!$E$2=\"Western Isles Health Board\",Calculations!$E$2=\"Shetland Islands Local Authority\",Calculations!$E$2=\"Eilean Siar Local Authority\"),OR($F118=1,$F118=5)),0,new_yllv2(VALUE(LEFT(Options!$B$24,2)),$C118,$D118,$E118,$F118,2016,$I118+$J118,1,$H118,$G118*$H118,Options!$B$8)))","v":{"$error":"#VALUE!"}},{"$f":"IF(AND(OR(Calculations!$E$2=\"Orkney Health Board\",Calculations!$E$2=\"Orkney Islands Local Authority\"),$F118=1),0,IF(AND(OR(Calculations!$E$2=\"Shetland Health Board\",Calculations!$E$2=\"Western Isles Health Board\",Calculations!$E$2=\"Shetland Islands Local Authority\",Calculations!$E$2=\"Eilean Siar Local Authority\"),OR($F118=1,$F118=5)),0,hosp_count(VALUE(LEFT(Options!$B$24,2)),$C118,$E118,$F118,2016,$I118,1,$H118,$G118*$H118, Options!$B$8)))","v":{"$error":"#NAME?"}},{"$f":"IF(AND(OR(Calculations!$E$2=\"Orkney Health Board\",Calculations!$E$2=\"Orkney Islands Local Authority\"),$F118=1),0,IF(AND(OR(Calculations!$E$2=\"Shetland Health Board\",Calculations!$E$2=\"Western Isles Health Board\",Calculations!$E$2=\"Shetland Islands Local Authority\",Calculations!$E$2=\"Eilean Siar Local Authority\"),OR($F118=1,$F118=5)),0,hosp_count(VALUE(LEFT(Options!$B$24,2)),$C118,$E118,$F118,2016,$I118+$J118,1,$H118,$G118*$H118, Options!$B$8)))","v":{"$error":"#NAME?"}},{"$f":"IF(AND(OR(Calculations!$E$2=\"Orkney Health Board\",Calculations!$E$2=\"Orkney Islands Local Authority\"),$F118=1),0,IF(AND(OR(Calculations!$E$2=\"Shetland Health Board\",Calculations!$E$2=\"Western Isles Health Board\",Calculations!$E$2=\"Shetland Islands Local Authority\",Calculations!$E$2=\"Eilean Siar Local Authority\"),OR($F118=1,$F118=5)),0,prem_mort(VALUE(LEFT(Options!$B$24,2)),$C118,$E118,$F118,2016,$I118,1,$H118,$G118*$H118,Options!$B$8)))","v":{"$error":"#VALUE!"}},{"$f":"IF(AND(OR(Calculations!$E$2=\"Orkney Health Board\",Calculations!$E$2=\"Orkney Islands Local Authority\"),$F118=1),0,IF(AND(OR(Calculations!$E$2=\"Shetland Health Board\",Calculations!$E$2=\"Western Isles Health Board\",Calculations!$E$2=\"Shetland Islands Local Authority\",Calculations!$E$2=\"Eilean Siar Local Authority\"),OR($F118=1,$F118=5)),0,prem_mort(VALUE(LEFT(Options!$B$24,2)),$C118,$E118,$F118,2016,$I118+$J118,1,$H118,$G118*$H118,Options!$B$8)))","v":{"$error":"#VALUE!"}},{"$error":"#VALUE!"},{"$error":"#VALUE!"},{"$error":"#VALUE!"},{"$error":"#VALUE!"},{"$error":"#NAME?"},{"$error":"#NAME?"},{"$error":"#VALUE!"},{"$error":"#VALUE!"},{"$error":"#VALUE!"},{"$error":"#VALUE!"},{"$error":"#VALUE!"},{"$error":"#VALUE!"},{"$error":"#NAME?"},{"$error":"#NAME?"},{"$error":"#VALUE!"},{"$error":"#VALUE!"},5500]
[null,"Male 10-15",12.471144000000001,77.921140000000008,"male",2,{"$f":"HLOOKUP(Calculations!$E$2,'Prevalence Rates'!$C$3:$BC$249,'Prevalence Rates'!$BD119,FALSE)","v":0},{"$f":"HLOOKUP(Calculations!$E$2,'Population 2016'!$C$3:$BC$249,'Population 2016'!BD119,FALSE)","v":0},0,{"$f":"HLOOKUP(Results!E$4,Targeting!$C$3:$F$249,Targeting!$G119,FALSE)","v":0},{"$f":"IF(AND(OR(Calculations!$E$2=\"Orkney Health Board\",Calculations!$E$2=\"Orkney Islands Local Authority\"),$F119=1),0,IF(AND(OR(Calculations!$E$2=\"Shetland Health Board\",Calculations!$E$2=\"Western Isles Health Board\",Calculations!$E$2=\"Shetland Islands Local Authority\",Calculations!$E$2=\"Eilean Siar Local Authority\"),OR($F119=1,$F119=5)),0,new_ci(VALUE(LEFT(Options!$B$24,2)),$C119,$E119,$F119,2016,$I119,1,$H119,$G119*$H119,Options!$B$8)))","v":{"$error":"#VALUE!"}},{"$f":"IF(AND(OR(Calculations!$E$2=\"Orkney Health Board\",Calculations!$E$2=\"Orkney Islands Local Authority\"),$F119=1),0,IF(AND(OR(Calculations!$E$2=\"Shetland Health Board\",Calculations!$E$2=\"Western Isles Health Board\",Calculations!$E$2=\"Shetland Islands Local Authority\",Calculations!$E$2=\"Eilean Siar Local Authority\"),OR($F119=1,$F119=5)),0,new_ci(VALUE(LEFT(Options!$B$24,2)),$C119,$E119,$F119,2016,$I119+$J119,1,$H119,$G119*$H119,Options!$B$8)))","v":{"$error":"#VALUE!"}},{"$f":"IF(AND(OR(Calculations!$E$2=\"Orkney Health Board\",Calculations!$E$2=\"Orkney Islands Local Authority\"),$F119=1),0,IF(AND(OR(Calculations!$E$2=\"Shetland Health Board\",Calculations!$E$2=\"Western Isles Health Board\",Calculations!$E$2=\"Shetland Islands Local Authority\",Calculations!$E$2=\"Eilean Siar Local Authority\"),OR($F119=1,$F119=5)),0,new_yllv2(VALUE(LEFT(Options!$B$24,2)),$C119,$D119,$E119,$F119,2016,$I119,1,$H119,$G119*$H119,Options!$B$8)))","v":{"$error":"#VALUE!"}},{"$f":"IF(AND(OR(Calculations!$E$2=\"Orkney Health Board\",Calculations!$E$2=\"Orkney Islands Local Authority\"),$F119=1),0,IF(AND(OR(Calculations!$E$2=\"Shetland Health Board\",Calculations!$E$2=\"Western Isles Health Board\",Calculations!$E$2=\"Shetland Islands Local Authority\",Calculations!$E$2=\"Eilean Siar Local Authority\"),OR($F119=1,$F119=5)),0,new_yllv2(VALUE(LEFT(Options!$B$24,2)),$C119,$D119,$E119,$F119,2016,$I119+$J119,1,$H119,$G119*$H119,Options!$B$8)))","v":{"$error":"#VALUE!"}},{"$f":"IF(AND(OR(Calculations!$E$2=\"Orkney Health Board\",Calculations!$E$2=\"Orkney Islands Local Authority\"),$F119=1),0,IF(AND(OR(Calculations!$E$2=\"Shetland Health Board\",Calculations!$E$2=\"Western Isles Health Board\",Calculations!$E$2=\"Shetland Islands Local Authority\",Calculations!$E$2=\"Eilean Siar Local Authority\"),OR($F119=1,$F119=5)),0,hosp_count(VALUE(LEFT(Options!$B$24,2)),$C119,$E119,$F119,2016,$I119,1,$H119,$G119*$H119, Options!$B$8)))","v":{"$error":"#NAME?"}},{"$f":"IF(AND(OR(Calculations!$E$2=\"Orkney Health Board\",Calculations!$E$2=\"Orkney Islands Local Authority\"),$F119=1),0,IF(AND(OR(Calculations!$E$2=\"Shetland Health Board\",Calculations!$E$2=\"Western Isles Health Board\",Calculations!$E$2=\"Shetland Islands Local Authority\",Calculations!$E$2=\"Eilean Siar Local Authority\"),OR($F119=1,$F119=5)),0,hosp_count(VALUE(LEFT(Options!$B$24,2)),$C119,$E119,$F119,2016,$I119+$J119,1,$H119,$G119*$H119, Options!$B$8)))","v":{"$error":"#NAME?"}},{"$f":"IF(AND(OR(Calculations!$E$2=\"Orkney Health Board\",Calculations!$E$2=\"Orkney Islands Local Authority\"),$F119=1),0,IF(AND(OR(Calculations!$E$2=\"Shetland Health Board\",Calculations!$E$2=\"Western Isles Health Board\",Calculations!$E$2=\"Shetland Islands Local Authority\",Calculations!$E$2=\"Eilean Siar Local Authority\"),OR($F119=1,$F119=5)),0,prem_mort(VALUE(LEFT(Options!$B$24,2)),$C119,$E119,$F119,2016,$I119,1,$H119,$G119*$H119,Options!$B$8)))","v":{"$error":"#VALUE!"}},{"$f":"IF(AND(OR(Calculations!$E$2=\"Orkney Health Board\",Calculations!$E$2=\"Orkney Islands Local Authority\"),$F119=1),0,IF(AND(OR(Calculations!$E$2=\"Shetland Health Board\",Calculations!$E$2=\"Western Isles Health Board\",Calculations!$E$2=\"Shetland Islands Local Authority\",Calculations!$E$2=\"Eilean Siar Local Authority\"),OR($F119=1,$F119=5)),0,prem_mort(VALUE(LEFT(Options!$B$24,2)),$C119,$E119,$F119,2016,$I119+$J119,1,$H119,$G119*$H119,Options!$B$8)))","v":{"$error":"#VALUE!"}},{"$error":"#VALUE!"},{"$error":"#VALUE!"},{"$error":"#VALUE!"},{"$error":"#VALUE!"},{"$error":"#NAME?"},{"$error":"#NAME?"},{"$error":"#VALUE!"},{"$error":"#VALUE!"},{"$error":"#VALUE!"},{"$error":"#VALUE!"},{"$error":"#VALUE!"},{"$error":"#VALUE!"},{"$error":"#NAME?"},{"$error":"#NAME?"},{"$error":"#VALUE!"},{"$error":"#VALUE!"},6600]
[null,"Male 16-19",17.556318000000001,77.07632000000001,"male",2,{"$f":"HLOOKUP(Calculations!$E$2,'Prevalence Rates'!$C$3:$BC$249,'Prevalence Rates'!$BD120,FALSE)","v":0.30200000000000005},{"$f":"HLOOKUP(Calculations!$E$2,'Population 2016'!$C$3:$BC$249,'Population 2016'!BD120,FALSE)","v":23693},0,{"$f":"HLOOKUP(Results!E$4,Targeting!$C$3:$F$249,Targeting!$G120,FALSE)","v":3890},{"$f":"IF(AND(OR(Calculations!$E$2=\"Orkney Health Board\",Calculations!$E$2=\"Orkney Islands Local Authority\"),$F120=1),0,IF(AND(OR(Calculations!$E$2=\"Shetland Health Board\",Calculations!$E$2=\"Western Isles Health Board\",Calculations!$E$2=\"Shetland Islands Local Authority\",Calculations!$E$2=\"Eilean Siar Local Authority\"),OR($F120=1,$F120=5)),0,new_ci(VALUE(LEFT(Options!$B$24,2)),$C120,$E120,$F120,2016,$I120,1,$H120,$G120*$H120,Options!$B$8)))","v":12.5406598786},{"$f":"IF(AND(OR(Calculations!$E$2=\"Orkney Health Board\",Calculations!$E$2=\"Orkney Islands Local Authority\"),$F120=1),0,IF(AND(OR(Calculations!$E$2=\"Shetland Health Board\",Calculations!$E$2=\"Western Isles Health Board\",Calculations!$E$2=\"Shetland Islands Local Authority\",Calculations!$E$2=\"Eilean Siar Local Authority\"),OR($F120=1,$F120=5)),0,new_ci(VALUE(LEFT(Options!$B$24,2)),$C120,$E120,$F120,2016,$I120+$J120,1,$H120,$G120*$H120,Options!$B$8)))","v":12.439719435600001},{"$f":"IF(AND(OR(Calculations!$E$2=\"Orkney Health Board\",Calculations!$E$2=\"Orkney Islands Local Authority\"),$F120=1),0,IF(AND(OR(Calculations!$E$2=\"Shetland Health Board\",Calculations!$E$2=\"Western Isles Health Board\",Calculations!$E$2=\"Shetland Islands Local Authority\",Calculations!$E$2=\"Eilean Siar Local Authority\"),OR($F120=1,$F120=5)),0,new_yllv2(VALUE(LEFT(Options!$B$24,2)),$C120,$D120,$E120,$F120,2016,$I120,1,$H120,$G120*$H120,Options!$B$8)))","v":733.87944117699999},{"$f":"IF(AND(OR(Calculations!$E$2=\"Orkney Health Board\",Calculations!$E$2=\"Orkney Islands Local Authority\"),$F120=1),0,IF(AND(OR(Calculations!$E$2=\"Shetland Health Board\",Calculations!$E$2=\"Western Isles Health Board\",Calculations!$E$2=\"Shetland Islands Local Authority\",Calculations!$E$2=\"Eilean Siar Local Authority\"),OR($F120=1,$F120=5)),0,new_yllv2(VALUE(LEFT(Options!$B$24,2)),$C120,$D120,$E120,$F120,2016,$I120+$J120,1,$H120,$G120*$H120,Options!$B$8)))","v":727.97240625079996},{"$f":"IF(AND(OR(Calculations!$E$2=\"Orkney Health Board\",Calculations!$E$2=\"Orkney Islands Local Authority\"),$F120=1),0,IF(AND(OR(Calculations!$E$2=\"Shetland Health Board\",Calculations!$E$2=\"Western Isles Health Board\",Calculations!$E$2=\"Shetland Islands Local Authority\",Calculations!$E$2=\"Eilean Siar Local Authority\"),OR($F120=1,$F120=5)),0,hosp_count(VALUE(LEFT(Options!$B$24,2)),$C120,$E120,$F120,2016,$I120,1,$H120,$G120*$H120, Options!$B$8)))","v":{"$error":"#NAME?"}},{"$f":"IF(AND(OR(Calculations!$E$2=\"Orkney Health Board\",Calculations!$E$2=\"Orkney Islands Local Authority\"),$F120=1),0,IF(AND(OR(Calculations!$E$2=\"Shetland Health Board\",Calculations!$E$2=\"Western Isles Health Board\",Calculations!$E$2=\"Shetland Islands Local Authority\",Calculations!$E$2=\"Eilean Siar Local Authority\"),OR($F120=1,$F120=5)),0,hosp_count(VALUE(LEFT(Options!$B$24,2)),$C120,$E120,$F120,2016,$I120+$J120,1,$H120,$G120*$H120, Options!$B$8)))","v":{"$error":"#NAME?"}},{"$f":"IF(AND(OR(Calculations!$E$2=\"Orkney Health Board\",Calculations!$E$2=\"Orkney Islands Local Authority\"),$F120=1),0,IF(AND(OR(Calculations!$E$2=\"Shetland Health Board\",Calculations!$E$2=\"Western Isles Health Board\",Calculations!$E$2=\"Shetland Islands Local Authority\",Calculations!$E$2=\"Eilean Siar Local Authority\"),OR($F120=1,$F120=5)),0,prem_mort(VALUE(LEFT(Options!$B$24,2)),$C120,$E120,$F120,2016,$I120,1,$H120,$G120*$H120,Options!$B$8)))","v":12.5406598786},{"$f":"IF(AND(OR(Calculations!$E$2=\"Orkney Health Board\",Calculations!$E$2=\"Orkney Islands Local Authority\"),$F120=1),0,IF(AND(OR(Calculations!$E$2=\"Shetland Health Board\",Calculations!$E$2=\"Western Isles Health Board\",Calculations!$E$2=\"Shetland Islands Local Authority\",Calculations!$E$2=\"Eilean Siar Local Authority\"),OR($F120=1,$F120=5)),0,prem_mort(VALUE(LEFT(Options!$B$24,2)),$C120,$E120,$F120,2016,$I120+$J120,1,$H120,$G120*$H120,Options!$B$8)))","v":12.439719435600001},52.929809980162915,52.503775104883303,3097.4525858987886,3072.5210241455279,{"$error":"#NAME?"},{"$error":"#NAME?"},52.929809980162915,52.503775104883303,232891.16391271682,231016.61046148653,13628791.377954669,13519092.506240323,{"$error":"#NAME?"},{"$error":"#NAME?"},232891.16391271682,231016.61046148653,4400]
[null,"Male 20-24",22.054632000000002,77.704629999999995,"male",2,{"$f":"HLOOKUP(Calculations!$E$2,'Prevalence Rates'!$C$3:$BC$249,'Prevalence Rates'!$BD121,FALSE)","v":0.30200000000000005},{"$f":"HLOOKUP(Calculations!$E$2,'Population 2016'!$C$3:$BC$249,'Population 2016'!BD121,FALSE)","v":35964},0,{"$f":"HLOOKUP(Results!E$4,Targeting!$C$3:$F$249,Targeting!$G121,FALSE)","v":5905},{"$f":"IF(AND(OR(Calculations!$E$2=\"Orkney Health Board\",Calculations!$E$2=\"Orkney Islands Local Authority\"),$F121=1),0,IF(AND(OR(Calculations!$E$2=\"Shetland Health Board\",Calculations!$E$2=\"Western Isles Health Board\",Calculations!$E$2=\"Shetland Islands Local Authority\",Calculations!$E$2=\"Eilean Siar Local Authority\"),OR($F121=1,$F121=5)),0,new_ci(VALUE(LEFT(Options!$B$24,2)),$C121,$E121,$F121,2016,$I121,1,$H121,$G121*$H121,Options!$B$8)))","v":26.7308141659},{"$f":"IF(AND(OR(Calculations!$E$2=\"Orkney Health Board\",Calculations!$E$2=\"Orkney Islands Local Authority\"),$F121=1),0,IF(AND(OR(Calculations!$E$2=\"Shetland Health Board\",Calculations!$E$2=\"Western Isles Health Board\",Calculations!$E$2=\"Shetland Islands Local Authority\",Calculations!$E$2=\"Eilean Siar Local Authority\"),OR($F121=1,$F121=5)),0,new_ci(VALUE(LEFT(Options!$B$24,2)),$C121,$E121,$F121,2016,$I121+$J121,1,$H121,$G121*$H121,Options!$B$8)))","v":26.5156784819},{"$f":"IF(AND(OR(Calculations!$E$2=\"Orkney Health Board\",Calculations!$E$2=\"Orkney Islands Local Authority\"),$F121=1),0,IF(AND(OR(Calculations!$E$2=\"Shetland Health Board\",Calculations!$E$2=\"Western Isles Health Board\",Calculations!$E$2=\"Shetland Islands Local Authority\",Calculations!$E$2=\"Eilean Siar Local Authority\"),OR($F121=1,$F121=5)),0,new_yllv2(VALUE(LEFT(Options!$B$24,2)),$C121,$D121,$E121,$F121,2016,$I121,1,$H121,$G121*$H121,Options!$B$8)))","v":1460.8389407048001},{"$f":"IF(AND(OR(Calculations!$E$2=\"Orkney Health Board\",Calculations!$E$2=\"Orkney Islands Local Authority\"),$F121=1),0,IF(AND(OR(Calculations!$E$2=\"Shetland Health Board\",Calculations!$E$2=\"Western Isles Health Board\",Calculations!$E$2=\"Shetland Islands Local Authority\",Calculations!$E$2=\"Eilean Siar Local Authority\"),OR($F121=1,$F121=5)),0,new_yllv2(VALUE(LEFT(Options!$B$24,2)),$C121,$D121,$E121,$F121,2016,$I121+$J121,1,$H121,$G121*$H121,Options!$B$8)))","v":1449.0817760044999},{"$f":"IF(AND(OR(Calculations!$E$2=\"Orkney Health Board\",Calculations!$E$2=\"Orkney Islands Local Authority\"),$F121=1),0,IF(AND(OR(Calculations!$E$2=\"Shetland Health Board\",Calculations!$E$2=\"Western Isles Health Board\",Calculations!$E$2=\"Shetland Islands Local Authority\",Calculations!$E$2=\"Eilean Siar Local Authority\"),OR($F121=1,$F121=5)),0,hosp_count(VALUE(LEFT(Options!$B$24,2)),$C121,$E121,$F121,2016,$I121,1,$H121,$G121*$H121, Options!$B$8)))","v":{"$error":"#NAME?"}},{"$f":"IF(AND(OR(Calculations!$E$2=\"Orkney Health Board\",Calculations!$E$2=\"Orkney Islands Local Authority\"),$F121=1),0,IF(AND(OR(Calculations!$E$2=\"Shetland Health Board\",Calculations!$E$2=\"Western Isles Health Board\",Calculations!$E$2=\"Shetland Islands Local Authority\",Calculations!$E$2=\"Eilean Siar Local Authority\"),OR($F121=1,$F121=5)),0,hosp_count(VALUE(LEFT(Options!$B$24,2)),$C121,$E121,$F121,2016,$I121+$J121,1,$H121,$G121*$H121, Options!$B$8)))","v":{"$error":"#NAME?"}},{"$f":"IF(AND(OR(Calculations!$E$2=\"Orkney Health Board\",Calculations!$E$2=\"Orkney Islands Local Authority\"),$F121=1),0,IF(AND(OR(Calculations!$E$2=\"Shetland Health Board\",Calculations!$E$2=\"Western Isles Health Board\",Calculations!$E$2=\"Shetland Islands Local Authority\",Calculations!$E$2=\"Eilean Siar Local Authority\"),OR($F121=1,$F121=5)),0,prem_mort(VALUE(LEFT(Options!$B$24,2)),$C121,$E121,$F121,2016,$I121,1,$H121,$G121*$H121,Options!$B$8)))","v":26.7308141659},{"$f":"IF(AND(OR(Calculations!$E$2=\"Orkney Health Board\",Calculations!$E$2=\"Orkney Islands Local Authority\"),$F121=1),0,IF(AND(OR(Calculations!$E$2=\"Shetland Health Board\",Calculations!$E$2=\"Western Isles Health Board\",Calculations!$E$2=\"Shetland Islands Local Authority\",Calculations!$E$2=\"Eilean Siar Local Authority\"),OR($F121=1,$F121=5)),0,prem_mort(VALUE(LEFT(Options!$B$24,2)),$C121,$E121,$F121,2016,$I121+$J121,1,$H121,$G121*$H121,Options!$B$8)))","v":26.5156784819},74.326588160104549,73.728390840562781,4061.9478942965193,4029.2564119800359,{"$error":"#NAME?"},{"$error":"#NAME?"},74.326588160104549,73.728390840562781,445959.52896062727,442370.34504337667,24371687.365779117,24175538.471880216,{"$error":"#NAME?"},{"$error":"#NAME?"},445959.52896062727,442370.34504337667,6000]
[null,"Male 25-29",26.959762999999999,77.789760000000001,"male",2,{"$f":"HLOOKUP(Calculations!$E$2,'Prevalence Rates'!$C$3:$BC$249,'Prevalence Rates'!$BD122,FALSE)","v":0.34700000000000003},{"$f":"HLOOKUP(Calculations!$E$2,'Population 2016'!$C$3:$BC$249,'Population 2016'!BD122,FALSE)","v":39611},0,{"$f":"HLOOKUP(Results!E$4,Targeting!$C$3:$F$249,Targeting!$G122,FALSE)","v":6504},{"$f":"IF(AND(OR(Calculations!$E$2=\"Orkney Health Board\",Calculations!$E$2=\"Orkney Islands Local Authority\"),$F122=1),0,IF(AND(OR(Calculations!$E$2=\"Shetland Health Board\",Calculations!$E$2=\"Western Isles Health Board\",Calculations!$E$2=\"Shetland Islands Local Authority\",Calculations!$E$2=\"Eilean Siar Local Authority\"),OR($F122=1,$F122=5)),0,new_ci(VALUE(LEFT(Options!$B$24,2)),$C122,$E122,$F122,2016,$I122,1,$H122,$G122*$H122,Options!$B$8)))","v":42.630047364100001},{"$f":"IF(AND(OR(Calculations!$E$2=\"Orkney Health Board\",Calculations!$E$2=\"Orkney Islands Local Authority\"),$F122=1),0,IF(AND(OR(Calculations!$E$2=\"Shetland Health Board\",Calculations!$E$2=\"Western Isles Health Board\",Calculations!$E$2=\"Shetland Islands Local Authority\",Calculations!$E$2=\"Eilean Siar Local Authority\"),OR($F122=1,$F122=5)),0,new_ci(VALUE(LEFT(Options!$B$24,2)),$C122,$E122,$F122,2016,$I122+$J122,1,$H122,$G122*$H122,Options!$B$8)))","v":42.2927804929},{"$f":"IF(AND(OR(Calculations!$E$2=\"Orkney Health Board\",Calculations!$E$2=\"Orkney Islands Local Authority\"),$F122=1),0,IF(AND(OR(Calculations!$E$2=\"Shetland Health Board\",Calculations!$E$2=\"Western Isles Health Board\",Calculations!$E$2=\"Shetland Islands Local Authority\",Calculations!$E$2=\"Eilean Siar Local Authority\"),OR($F122=1,$F122=5)),0,new_yllv2(VALUE(LEFT(Options!$B$24,2)),$C122,$D122,$E122,$F122,2016,$I122,1,$H122,$G122*$H122,Options!$B$8)))","v":2124.2551322630002},{"$f":"IF(AND(OR(Calculations!$E$2=\"Orkney Health Board\",Calculations!$E$2=\"Orkney Islands Local Authority\"),$F122=1),0,IF(AND(OR(Calculations!$E$2=\"Shetland Health Board\",Calculations!$E$2=\"Western Isles Health Board\",Calculations!$E$2=\"Shetland Islands Local Authority\",Calculations!$E$2=\"Eilean Siar Local Authority\"),OR($F122=1,$F122=5)),0,new_yllv2(VALUE(LEFT(Options!$B$24,2)),$C122,$D122,$E122,$F122,2016,$I122+$J122,1,$H122,$G122*$H122,Options!$B$8)))","v":2107.4491250829001},{"$f":"IF(AND(OR(Calculations!$E$2=\"Orkney Health Board\",Calculations!$E$2=\"Orkney Islands Local Authority\"),$F122=1),0,IF(AND(OR(Calculations!$E$2=\"Shetland Health Board\",Calculations!$E$2=\"Western Isles Health Board\",Calculations!$E$2=\"Shetland Islands Local Authority\",Calculations!$E$2=\"Eilean Siar Local Authority\"),OR($F122=1,$F122=5)),0,hosp_count(VALUE(LEFT(Options!$B$24,2)),$C122,$E122,$F122,2016,$I122,1,$H122,$G122*$H122, Options!$B$8)))","v":{"$error":"#NAME?"}},{"$f":"IF(AND(OR(Calculations!$E$2=\"Orkney Health Board\",Calculations!$E$2=\"Orkney Islands Local Authority\"),$F122=1),0,IF(AND(OR(Calculations!$E$2=\"Shetland Health Board\",Calculations!$E$2=\"Western Isles Health Board\",Calculations!$E$2=\"Shetland Islands Local Authority\",Calculations!$E$2=\"Eilean Siar Local Authority\"),OR($F122=1,$F122=5)),0,hosp_count(VALUE(LEFT(Options!$B$24,2)),$C122,$E122,$F122,2016,$I122+$J122,1,$H122,$G122*$H122, Options!$B$8)))","v":{"$error":"#NAME?"}},{"$f":"IF(AND(OR(Calculations!$E$2=\"Orkney Health Board\",Calculations!$E$2=\"Orkney Islands Local Authority\"),$F122=1),0,IF(AND(OR(Calculations!$E$2=\"Shetland Health Board\",Calculations!$E$2=\"Western Isles Health Board\",Calculations!$E$2=\"Shetland Islands Local Authority\",Calculations!$E$2=\"Eilean Siar Local Authority\"),OR($F122=1,$F122=5)),0,prem_mort(VALUE(LEFT(Options!$B$24,2)),$C122,$E122,$F122,2016,$I122,1,$H122,$G122*$H122,Options!$B$8)))","v":42.630047364100001},{"$f":"IF(AND(OR(Calculations!$E$2=\"Orkney Health Board\",Calculations!$E$2=\"Orkney Islands Local Authority\"),$F122=1),0,IF(AND(OR(Calculations!$E$2=\"Shetland Health Board\",Calculations!$E$2=\"Western Isles Health Board\",Calculations!$E$2=\"Shetland Islands Local Authority\",Calculations!$E$2=\"Eilean Siar Local Authority\"),OR($F122=1,$F122=5)),0,prem_mort(VALUE(LEFT(Options!$B$24,2)),$C122,$E122,$F122,2016,$I122+$J122,1,$H122,$G122*$H122,Options!$B$8)))","v":42.2927804929},107.62173983009771,106.77029232511173,5362.7909728686482,5320.3633462495272,{"$error":"#NAME?"},{"$error":"#NAME?"},107.62173983009771,106.77029232511173,645730.43898058624,640621.75395067036,32176745.837211888,31922180.077497162,{"$error":"#NAME?"},{"$error":"#NAME?"},645730.43898058624,640621.75395067036,6000]
[null,"Male 30-34",31.981521999999998,78.061520000000002,"male",2,{"$f":"HLOOKUP(Calculations!$E$2,'Prevalence Rates'!$C$3:$BC$249,'Prevalence Rates'!$BD123,FALSE)","v":0.34700000000000003},{"$f":"HLOOKUP(Calculations!$E$2,'Population 2016'!$C$3:$BC$249,'Population 2016'!BD123,FALSE)","v":37146},0,{"$f":"HLOOKUP(Results!E$4,Targeting!$C$3:$F$249,Targeting!$G123,FALSE)","v":6099},{"$f":"IF(AND(OR(Calculations!$E$2=\"Orkney Health Board\",Calculations!$E$2=\"Orkney Islands Local Authority\"),$F123=1),0,IF(AND(OR(Calculations!$E$2=\"Shetland Health Board\",Calculations!$E$2=\"Western Isles Health Board\",Calculations!$E$2=\"Shetland Islands Local Authority\",Calculations!$E$2=\"Eilean Siar Local Authority\"),OR($F123=1,$F123=5)),0,new_ci(VALUE(LEFT(Options!$B$24,2)),$C123,$E123,$F123,2016,$I123,1,$H123,$G123*$H123,Options!$B$8)))","v":58.392288667099997},{"$f":"IF(AND(OR(Calculations!$E$2=\"Orkney Health Board\",Calculations!$E$2=\"Orkney Islands Local Authority\"),$F123=1),0,IF(AND(OR(Calculations!$E$2=\"Shetland Health Board\",Calculations!$E$2=\"Western Isles Health Board\",Calculations!$E$2=\"Shetland Islands Local Authority\",Calculations!$E$2=\"Eilean Siar Local Authority\"),OR($F123=1,$F123=5)),0,new_ci(VALUE(LEFT(Options!$B$24,2)),$C123,$E123,$F123,2016,$I123+$J123,1,$H123,$G123*$H123,Options!$B$8)))","v":57.9304992227},{"$f":"IF(AND(OR(Calculations!$E$2=\"Orkney Health Board\",Calculations!$E$2=\"Orkney Islands Local Authority\"),$F123=1),0,IF(AND(OR(Calculations!$E$2=\"Shetland Health Board\",Calculations!$E$2=\"Western Isles Health Board\",Calculations!$E$2=\"Shetland Islands Local Authority\",Calculations!$E$2=\"Eilean Siar Local Authority\"),OR($F123=1,$F123=5)),0,new_yllv2(VALUE(LEFT(Options!$B$24,2)),$C123,$D123,$E123,$F123,2016,$I123,1,$H123,$G123*$H123,Options!$B$8)))","v":2632.3242563283002},{"$f":"IF(AND(OR(Calculations!$E$2=\"Orkney Health Board\",Calculations!$E$2=\"Orkney Islands Local Authority\"),$F123=1),0,IF(AND(OR(Calculations!$E$2=\"Shetland Health Board\",Calculations!$E$2=\"Western Isles Health Board\",Calculations!$E$2=\"Shetland Islands Local Authority\",Calculations!$E$2=\"Eilean Siar Local Authority\"),OR($F123=1,$F123=5)),0,new_yllv2(VALUE(LEFT(Options!$B$24,2)),$C123,$D123,$E123,$F123,2016,$I123+$J123,1,$H123,$G123*$H123,Options!$B$8)))","v":2611.5067890983},{"$f":"IF(AND(OR(Calculations!$E$2=\"Orkney Health Board\",Calculations!$E$2=\"Orkney Islands Local Authority\"),$F123=1),0,IF(AND(OR(Calculations!$E$2=\"Shetland Health Board\",Calculations!$E$2=\"Western Isles Health Board\",Calculations!$E$2=\"Shetland Islands Local Authority\",Calculations!$E$2=\"Eilean Siar Local Authority\"),OR($F123=1,$F123=5)),0,hosp_count(VALUE(LEFT(Options!$B$24,2)),$C123,$E123,$F123,2016,$I123,1,$H123,$G123*$H123, Options!$B$8)))","v":{"$error":"#NAME?"}},{"$f":"IF(AND(OR(Calculations!$E$2=\"Orkney Health Board\",Calculations!$E$2=\"Orkney Islands Local Authority\"),$F123=1),0,IF(AND(OR(Calculations!$E$2=\"Shetland Health Board\",Calculations!$E$2=\"Western Isles Health Board\",Calculations!$E$2=\"Shetland Islands Local Authority\",Calculations!$E$2=\"Eilean Siar Local Authority\"),OR($F123=1,$F123=5)),0,hosp_count(VALUE(LEFT(Options!$B$24,2)),$C123,$E123,$F123,2016,$I123+$J123,1,$H123,$G123*$H123, Options!$B$8)))","v":{"$error":"#NAME?"}},{"$f":"IF(AND(OR(Calculations!$E$2=\"Orkney Health Board\",Calculations!$E$2=\"Orkney Islands Local Authority\"),$F123=1),0,IF(AND(OR(Calculations!$E$2=\"Shetland Health Board\",Calculations!$E$2=\"Western Isles Health Board\",Calculations!$E$2=\"Shetland Islands Local Authority\",Calculations!$E$2=\"Eilean Siar Local Authority\"),OR($F123=1,$F123=5)),0,prem_mort(VALUE(LEFT(Options!$B$24,2)),$C123,$E123,$F123,2016,$I123,1,$H123,$G123*$H123,Options!$B$8)))","v":58.392288667099997},{"$f":"IF(AND(OR(Calculations!$E$2=\"Orkney Health Board\",Calculations!$E$2=\"Orkney Islands Local Authority\"),$F123=1),0,IF(AND(OR(Calculations!$E$2=\"Shetland Health Board\",Calculations!$E$2=\"Western Isles Health Board\",Calculations!$E$2=\"Shetland Islands Local Authority\",Calculations!$E$2=\"Eilean Siar Local Authority\"),OR($F123=1,$F123=5)),0,prem_mort(VALUE(LEFT(Options!$B$24,2)),$C123,$E123,$F123,2016,$I123+$J123,1,$H123,$G123*$H123,Options!$B$8)))","v":57.9304992227},157.19670669008775,155.95353260835623,7086.4272231957684,7030.3849380775855,{"$error":"#NAME?"},{"$error":"#NAME?"},157.19670669008775,155.95353260835623,1021778.5934855704,1013697.9619543154,46061776.950772494,45697502.097504303,{"$error":"#NAME?"},{"$error":"#NAME?"},1021778.5934855704,1013697.9619543154,6500]
[null,"Male 35-39",36.926009999999998,78.336009999999987,"male",2,{"$f":"HLOOKUP(Calculations!$E$2,'Prevalence Rates'!$C$3:$BC$249,'Prevalence Rates'!$BD124,FALSE)","v":0.34499999999999997},{"$f":"HLOOKUP(Calculations!$E$2,'Population 2016'!$C$3:$BC$249,'Population 2016'!BD124,FALSE)","v":32341},0,{"$f":"HLOOKUP(Results!E$4,Targeting!$C$3:$F$249,Targeting!$G124,FALSE)","v":5310},{"$f":"IF(AND(OR(Calculations!$E$2=\"Orkney Health Board\",Calculations!$E$2=\"Orkney Islands Local Authority\"),$F124=1),0,IF(AND(OR(Calculations!$E$2=\"Shetland Health Board\",Calculations!$E$2=\"Western Isles Health Board\",Calculations!$E$2=\"Shetland Islands Local Authority\",Calculations!$E$2=\"Eilean Siar Local Authority\"),OR($F124=1,$F124=5)),0,new_ci(VALUE(LEFT(Options!$B$24,2)),$C124,$E124,$F124,2016,$I124,1,$H124,$G124*$H124,Options!$B$8)))","v":73.8173692071},{"$f":"IF(AND(OR(Calculations!$E$2=\"Orkney Health Board\",Calculations!$E$2=\"Orkney Islands Local Authority\"),$F124=1),0,IF(AND(OR(Calculations!$E$2=\"Shetland Health Board\",Calculations!$E$2=\"Western Isles Health Board\",Calculations!$E$2=\"Shetland Islands Local Authority\",Calculations!$E$2=\"Eilean Siar Local Authority\"),OR($F124=1,$F124=5)),0,new_ci(VALUE(LEFT(Options!$B$24,2)),$C124,$E124,$F124,2016,$I124+$J124,1,$H124,$G124*$H124,Options!$B$8)))","v":73.233456650099995},{"$f":"IF(AND(OR(Calculations!$E$2=\"Orkney Health Board\",Calculations!$E$2=\"Orkney Islands Local Authority\"),$F124=1),0,IF(AND(OR(Calculations!$E$2=\"Shetland Health Board\",Calculations!$E$2=\"Western Isles Health Board\",Calculations!$E$2=\"Shetland Islands Local Authority\",Calculations!$E$2=\"Eilean Siar Local Authority\"),OR($F124=1,$F124=5)),0,new_yllv2(VALUE(LEFT(Options!$B$24,2)),$C124,$D124,$E124,$F124,2016,$I124,1,$H124,$G124*$H124,Options!$B$8)))","v":2982.9598896589},{"$f":"IF(AND(OR(Calculations!$E$2=\"Orkney Health Board\",Calculations!$E$2=\"Orkney Islands Local Authority\"),$F124=1),0,IF(AND(OR(Calculations!$E$2=\"Shetland Health Board\",Calculations!$E$2=\"Western Isles Health Board\",Calculations!$E$2=\"Shetland Islands Local Authority\",Calculations!$E$2=\"Eilean Siar Local Authority\"),OR($F124=1,$F124=5)),0,new_yllv2(VALUE(LEFT(Options!$B$24,2)),$C124,$D124,$E124,$F124,2016,$I124+$J124,1,$H124,$G124*$H124,Options!$B$8)))","v":2959.3639832304998},{"$f":"IF(AND(OR(Calculations!$E$2=\"Orkney Health Board\",Calculations!$E$2=\"Orkney Islands Local Authority\"),$F124=1),0,IF(AND(OR(Calculations!$E$2=\"Shetland Health Board\",Calculations!$E$2=\"Western Isles Health Board\",Calculations!$E$2=\"Shetland Islands Local Authority\",Calculations!$E$2=\"Eilean Siar Local Authority\"),OR($F124=1,$F124=5)),0,hosp_count(VALUE(LEFT(Options!$B$24,2)),$C124,$E124,$F124,2016,$I124,1,$H124,$G124*$H124, Options!$B$8)))","v":{"$error":"#NAME?"}},{"$f":"IF(AND(OR(Calculations!$E$2=\"Orkney Health Board\",Calculations!$E$2=\"Orkney Islands Local Authority\"),$F124=1),0,IF(AND(OR(Calculations!$E$2=\"Shetland Health Board\",Calculations!$E$2=\"Western Isles Health Board\",Calculations!$E$2=\"Shetland Islands Local Authority\",Calculations!$E$2=\"Eilean Siar Local Authority\"),OR($F124=1,$F124=5)),0,hosp_count(VALUE(LEFT(Options!$B$24,2)),$C124,$E124,$F124,2016,$I124+$J124,1,$H124,$G124*$H124, Options!$B$8)))","v":{"$error":"#NAME?"}},{"$f":"IF(AND(OR(Calculations!$E$2=\"Orkney Health Board\",Calculations!$E$2=\"Orkney Islands Local Authority\"),$F124=1),0,IF(AND(OR(Calculations!$E$2=\"Shetland Health Board\",Calculations!$E$2=\"Western Isles Health Board\",Calculations!$E$2=\"Shetland Islands Local Authority\",Calculations!$E$2=\"Eilean Siar Local Authority\"),OR($F124=1,$F124=5)),0,prem_mort(VALUE(LEFT(Options!$B$24,2)),$C124,$E124,$F124,2016,$I124,1,$H124,$G124*$H124,Options!$B$8)))","v":73.8173692071},{"$f":"IF(AND(OR(Calculations!$E$2=\"Orkney Health Board\",Calculations!$E$2=\"Orkney Islands Local Authority\"),$F124=1),0,IF(AND(OR(Calculations!$E$2=\"Shetland Health Board\",Calculations!$E$2=\"Western Isles Health Board\",Calculations!$E$2=\"Shetland Islands Local Authority\",Calculations!$E$2=\"Eilean Siar Local Authority\"),OR($F124=1,$F124=5)),0,prem_mort(VALUE(LEFT(Options!$B$24,2)),$C124,$E124,$F124,2016,$I124+$J124,1,$H124,$G124*$H124,Options!$B$8)))","v":73.233456650099995},228.24702144986242,226.44153443028972,9223.4621367889049,9150.5024063278797,{"$error":"#NAME?"},{"$error":"#NAME?"},228.24702144986242,226.44153443028972,1597729.1501490369,1585090.741012028,{"$f":"U124*$AI124","v":64564234.957522333},{"$f":"V124*$AI124","v":64053516.844295159},{"$f":"W124*$AI124","v":{"$error":"#NAME?"}},{"$f":"X124*$AI124","v":{"$error":"#NAME?"}},{"$f":"Y124*$AI124","v":1597729.1501490369},{"$f":"Z124*$AI124","v":1585090.741012028},7000]
[null,"Male 40-44",42.067703000000002,78.907700000000006,"male",2,{"$f":"HLOOKUP(Calculations!$E$2,'Prevalence Rates'!$C$3:$BC$249,'Prevalence Rates'!$BD125,FALSE)","v":0.34499999999999997},{"$f":"HLOOKUP(Calculations!$E$2,'Population 2016'!$C$3:$BC$249,'Population 2016'!BD125,FALSE)","v":32014},0,{"$f":"HLOOKUP(Results!E$4,Targeting!$C$3:$F$249,Targeting!$G125,FALSE)","v":5256},{"$f":"IF(AND(OR(Calculations!$E$2=\"Orkney Health Board\",Calculations!$E$2=\"Orkney Islands Local Authority\"),$F125=1),0,IF(AND(OR(Calculations!$E$2=\"Shetland Health Board\",Calculations!$E$2=\"Western Isles Health Board\",Calculations!$E$2=\"Shetland Islands Local Authority\",Calculations!$E$2=\"Eilean Siar Local Authority\"),OR($F125=1,$F125=5)),0,new_ci(VALUE(LEFT(Options!$B$24,2)),$C125,$E125,$F125,2016,$I125,1,$H125,$G125*$H125,Options!$B$8)))","v":107.6686971275},{"$f":"IF(AND(OR(Calculations!$E$2=\"Orkney Health Board\",Calculations!$E$2=\"Orkney Islands Local Authority\"),$F125=1),0,IF(AND(OR(Calculations!$E$2=\"Shetland Health Board\",Calculations!$E$2=\"Western Isles Health Board\",Calculations!$E$2=\"Shetland Islands Local Authority\",Calculations!$E$2=\"Eilean Siar Local Authority\"),OR($F125=1,$F125=5)),0,new_ci(VALUE(LEFT(Options!$B$24,2)),$C125,$E125,$F125,2016,$I125+$J125,1,$H125,$G125*$H125,Options!$B$8)))","v":106.8177144611},{"$f":"IF(AND(OR(Calculations!$E$2=\"Orkney Health Board\",Calculations!$E$2=\"Orkney Islands Local Authority\"),$F125=1),0,IF(AND(OR(Calculations!$E$2=\"Shetland Health Board\",Calculations!$E$2=\"Western Isles Health Board\",Calculations!$E$2=\"Shetland Islands Local Authority\",Calculations!$E$2=\"Eilean Siar Local Authority\"),OR($F125=1,$F125=5)),0,new_yllv2(VALUE(LEFT(Options!$B$24,2)),$C125,$D125,$E125,$F125,2016,$I125,1,$H125,$G125*$H125,Options!$B$8)))","v":3858.8457820435001},{"$f":"IF(AND(OR(Calculations!$E$2=\"Orkney Health Board\",Calculations!$E$2=\"Orkney Islands Local Authority\"),$F125=1),0,IF(AND(OR(Calculations!$E$2=\"Shetland Health Board\",Calculations!$E$2=\"Western Isles Health Board\",Calculations!$E$2=\"Shetland Islands Local Authority\",Calculations!$E$2=\"Eilean Siar Local Authority\"),OR($F125=1,$F125=5)),0,new_yllv2(VALUE(LEFT(Options!$B$24,2)),$C125,$D125,$E125,$F125,2016,$I125+$J125,1,$H125,$G125*$H125,Options!$B$8)))","v":3828.3465658327},{"$f":"IF(AND(OR(Calculations!$E$2=\"Orkney Health Board\",Calculations!$E$2=\"Orkney Islands Local Authority\"),$F125=1),0,IF(AND(OR(Calculations!$E$2=\"Shetland Health Board\",Calculations!$E$2=\"Western Isles Health Board\",Calculations!$E$2=\"Shetland Islands Local Authority\",Calculations!$E$2=\"Eilean Siar Local Authority\"),OR($F125=1,$F125=5)),0,hosp_count(VALUE(LEFT(Options!$B$24,2)),$C125,$E125,$F125,2016,$I125,1,$H125,$G125*$H125, Options!$B$8)))","v":{"$error":"#NAME?"}},{"$f":"IF(AND(OR(Calculations!$E$2=\"Orkney Health Board\",Calculations!$E$2=\"Orkney Islands Local Authority\"),$F125=1),0,IF(AND(OR(Calculations!$E$2=\"Shetland Health Board\",Calculations!$E$2=\"Western Isles Health Board\",Calculations!$E$2=\"Shetland Islands Local Authority\",Calculations!$E$2=\"Eilean Siar Local Authority\"),OR($F125=1,$F125=5)),0,hosp_count(VALUE(LEFT(Options!$B$24,2)),$C125,$E125,$F125,2016,$I125+$J125,1,$H125,$G125*$H125, Options!$B$8)))","v":{"$error":"#NAME?"}},{"$f":"IF(AND(OR(Calculations!$E$2=\"Orkney Health Board\",Calculations!$E$2=\"Orkney Islands Local Authority\"),$F125=1),0,IF(AND(OR(Calculations!$E$2=\"Shetland Health Board\",Calculations!$E$2=\"Western Isles Health Board\",Calculations!$E$2=\"Shetland Islands Local Authority\",Calculations!$E$2=\"Eilean Siar Local Authority\"),OR($F125=1,$F125=5)),0,prem_mort(VALUE(LEFT(Options!$B$24,2)),$C125,$E125,$F125,2016,$I125,1,$H125,$G125*$H125,Options!$B$8)))","v":107.6686971275},{"$f":"IF(AND(OR(Calculations!$E$2=\"Orkney Health Board\",Calculations!$E$2=\"Orkney Islands Local Authority\"),$F125=1),0,IF(AND(OR(Calculations!$E$2=\"Shetland Health Board\",Calculations!$E$2=\"Western Isles Health Board\",Calculations!$E$2=\"Shetland Islands Local Authority\",Calculations!$E$2=\"Eilean Siar Local Authority\"),OR($F125=1,$F125=5)),0,prem_mort(VALUE(LEFT(Options!$B$24,2)),$C125,$E125,$F125,2016,$I125+$J125,1,$H125,$G125*$H125,Options!$B$8)))","v":106.8177144611},{"$f":"K125*100000/$H125","v":336.31753959986253},{"$f":"L125*100000/$H125","v":333.6593817114387},{"$f":"M125*100000/$H125","v":12053.619610306429},{"$f":"N125*100000/$H125","v":11958.351239559881},{"$f":"O125*100000/$H125","v":{"$error":"#NAME?"}},{"$f":"P125*100000/$H125","v":{"$error":"#NAME?"}},{"$f":"Q125*100000/$H125","v":336.31753959986253},{"$f":"R125*100000/$H125","v":333.6593817114387},{"$f":"S125*$AI125","v":2354222.7771990378},{"$f":"T125*$AI125","v":2335615.6719800709},84375337.272145003,83708458.676919162,{"$error":"#NAME?"},{"$error":"#NAME?"},2354222.7771990378,2335615.6719800709,7000]
[null,"Male 45-49",47.038155000000003,79.418149999999997,"male",2,{"$f":"HLOOKUP(Calculations!$E$2,'Prevalence Rates'!$C$3:$BC$249,'Prevalence Rates'!$BD126,FALSE)","v":0.36899999999999999},{"$f":"HLOOKUP(Calculations!$E$2,'Population 2016'!$C$3:$BC$249,'Population 2016'!BD126,FALSE)","v":36688},0,{"$f":"HLOOKUP(Results!E$4,Targeting!$C$3:$F$249,Targeting!$G126,FALSE)","v":6024},{"$f":"IF(AND(OR(Calculations!$E$2=\"Orkney Health Board\",Calculations!$E$2=\"Orkney Islands Local Authority\"),$F126=1),0,IF(AND(OR(Calculations!$E$2=\"Shetland Health Board\",Calculations!$E$2=\"Western Isles Health Board\",Calculations!$E$2=\"Shetland Islands Local Authority\",Calculations!$E$2=\"Eilean Siar Local Authority\"),OR($F126=1,$F126=5)),0,new_ci(VALUE(LEFT(Options!$B$24,2)),$C126,$E126,$F126,2016,$I126,1,$H126,$G126*$H126,Options!$B$8)))","v":179.43292659849999},{"$f":"IF(AND(OR(Calculations!$E$2=\"Orkney Health Board\",Calculations!$E$2=\"Orkney Islands Local Authority\"),$F126=1),0,IF(AND(OR(Calculations!$E$2=\"Shetland Health Board\",Calculations!$E$2=\"Western Isles Health Board\",Calculations!$E$2=\"Shetland Islands Local Authority\",Calculations!$E$2=\"Eilean Siar Local Authority\"),OR($F126=1,$F126=5)),0,new_ci(VALUE(LEFT(Options!$B$24,2)),$C126,$E126,$F126,2016,$I126+$J126,1,$H126,$G126*$H126,Options!$B$8)))","v":178.02864304330001},{"$f":"IF(AND(OR(Calculations!$E$2=\"Orkney Health Board\",Calculations!$E$2=\"Orkney Islands Local Authority\"),$F126=1),0,IF(AND(OR(Calculations!$E$2=\"Shetland Health Board\",Calculations!$E$2=\"Western Isles Health Board\",Calculations!$E$2=\"Shetland Islands Local Authority\",Calculations!$E$2=\"Eilean Siar Local Authority\"),OR($F126=1,$F126=5)),0,new_yllv2(VALUE(LEFT(Options!$B$24,2)),$C126,$D126,$E126,$F126,2016,$I126,1,$H126,$G126*$H126,Options!$B$8)))","v":5630.6043394962999},{"$f":"IF(AND(OR(Calculations!$E$2=\"Orkney Health Board\",Calculations!$E$2=\"Orkney Islands Local Authority\"),$F126=1),0,IF(AND(OR(Calculations!$E$2=\"Shetland Health Board\",Calculations!$E$2=\"Western Isles Health Board\",Calculations!$E$2=\"Shetland Islands Local Authority\",Calculations!$E$2=\"Eilean Siar Local Authority\"),OR($F126=1,$F126=5)),0,new_yllv2(VALUE(LEFT(Options!$B$24,2)),$C126,$D126,$E126,$F126,2016,$I126+$J126,1,$H126,$G126*$H126,Options!$B$8)))","v":5586.5379285555},{"$f":"IF(AND(OR(Calculations!$E$2=\"Orkney Health Board\",Calculations!$E$2=\"Orkney Islands Local Authority\"),$F126=1),0,IF(AND(OR(Calculations!$E$2=\"Shetland Health Board\",Calculations!$E$2=\"Western Isles Health Board\",Calculations!$E$2=\"Shetland Islands Local Authority\",Calculations!$E$2=\"Eilean Siar Local Authority\"),OR($F126=1,$F126=5)),0,hosp_count(VALUE(LEFT(Options!$B$24,2)),$C126,$E126,$F126,2016,$I126,1,$H126,$G126*$H126, Options!$B$8)))","v":{"$error":"#NAME?"}},{"$f":"IF(AND(OR(Calculations!$E$2=\"Orkney Health Board\",Calculations!$E$2=\"Orkney Islands Local Authority\"),$F126=1),0,IF(AND(OR(Calculations!$E$2=\"Shetland Health Board\",Calculations!$E$2=\"Western Isles Health Board\",Calculations!$E$2=\"Shetland Islands Local Authority\",Calculations!$E$2=\"Eilean Siar Local Authority\"),OR($F126=1,$F126=5)),0,hosp_count(VALUE(LEFT(Options!$B$24,2)),$C126,$E126,$F126,2016,$I126+$J126,1,$H126,$G126*$H126, Options!$B$8)))","v":{"$error":"#NAME?"}},{"$f":"IF(AND(OR(Calculations!$E$2=\"Orkney Health Board\",Calculations!$E$2=\"Orkney Islands Local Authority\"),$F126=1),0,IF(AND(OR(Calculations!$E$2=\"Shetland Health Board\",Calculations!$E$2=\"Western Isles Health Board\",Calculations!$E$2=\"Shetland Islands Local Authority\",Calculations!$E$2=\"Eilean Siar Local Authority\"),OR($F126=1,$F126=5)),0,prem_mort(VALUE(LEFT(Options!$B$24,2)),$C126,$E126,$F126,2016,$I126,1,$H126,$G126*$H126,Options!$B$8)))","v":179.43292659849999},{"$f":"IF(AND(OR(Calculations!$E$2=\"Orkney Health Board\",Calculations!$E$2=\"Orkney Islands Local Authority\"),$F126=1),0,IF(AND(OR(Calculations!$E$2=\"Shetland Health Board\",Calculations!$E$2=\"Western Isles Health Board\",Calculations!$E$2=\"Shetland Islands Local Authority\",Calculations!$E$2=\"Eilean Siar Local Authority\"),OR($F126=1,$F126=5)),0,prem_mort(VALUE(LEFT(Options!$B$24,2)),$C126,$E126,$F126,2016,$I126+$J126,1,$H126,$G126*$H126,Options!$B$8)))","v":178.02864304330001},489.07797263001521,485.25033537750772,15347.264335740025,15227.153097894408,{"$error":"#NAME?"},{"$error":"#NAME?"},489.07797263001521,485.25033537750772,3423545.8084101067,3396752.347642554,107430850.35018018,106590071.68526086,{"$error":"#NAME?"},{"$error":"#NAME?"},3423545.8084101067,3396752.347642554,7000]
[null,"Male 50-54",51.998646000000001,79.988649999999993,"male",2,{"$f":"HLOOKUP(Calculations!$E$2,'Prevalence Rates'!$C$3:$BC$249,'Prevalence Rates'!$BD127,FALSE)","v":0.36899999999999999},{"$f":"HLOOKUP(Calculations!$E$2,'Population 2016'!$C$3:$BC$249,'Population 2016'!BD127,FALSE)","v":37819},0,{"$f":"HLOOKUP(Results!E$4,Targeting!$C$3:$F$249,Targeting!$G127,FALSE)","v":6209},{"$f":"IF(AND(OR(Calculations!$E$2=\"Orkney Health Board\",Calculations!$E$2=\"Orkney Islands Local Authority\"),$F127=1),0,IF(AND(OR(Calculations!$E$2=\"Shetland Health Board\",Calculations!$E$2=\"Western Isles Health Board\",Calculations!$E$2=\"Shetland Islands Local Authority\",Calculations!$E$2=\"Eilean Siar Local Authority\"),OR($F127=1,$F127=5)),0,new_ci(VALUE(LEFT(Options!$B$24,2)),$C127,$E127,$F127,2016,$I127,1,$H127,$G127*$H127,Options!$B$8)))","v":268.68002555980001},{"$f":"IF(AND(OR(Calculations!$E$2=\"Orkney Health Board\",Calculations!$E$2=\"Orkney Islands Local Authority\"),$F127=1),0,IF(AND(OR(Calculations!$E$2=\"Shetland Health Board\",Calculations!$E$2=\"Western Isles Health Board\",Calculations!$E$2=\"Shetland Islands Local Authority\",Calculations!$E$2=\"Eilean Siar Local Authority\"),OR($F127=1,$F127=5)),0,new_ci(VALUE(LEFT(Options!$B$24,2)),$C127,$E127,$F127,2016,$I127+$J127,1,$H127,$G127*$H127,Options!$B$8)))","v":266.58076141800001},{"$f":"IF(AND(OR(Calculations!$E$2=\"Orkney Health Board\",Calculations!$E$2=\"Orkney Islands Local Authority\"),$F127=1),0,IF(AND(OR(Calculations!$E$2=\"Shetland Health Board\",Calculations!$E$2=\"Western Isles Health Board\",Calculations!$E$2=\"Shetland Islands Local Authority\",Calculations!$E$2=\"Eilean Siar Local Authority\"),OR($F127=1,$F127=5)),0,new_yllv2(VALUE(LEFT(Options!$B$24,2)),$C127,$D127,$E127,$F127,2016,$I127,1,$H127,$G127*$H127,Options!$B$8)))","v":7251.6749645790997},{"$f":"IF(AND(OR(Calculations!$E$2=\"Orkney Health Board\",Calculations!$E$2=\"Orkney Islands Local Authority\"),$F127=1),0,IF(AND(OR(Calculations!$E$2=\"Shetland Health Board\",Calculations!$E$2=\"Western Isles Health Board\",Calculations!$E$2=\"Shetland Islands Local Authority\",Calculations!$E$2=\"Eilean Siar Local Authority\"),OR($F127=1,$F127=5)),0,new_yllv2(VALUE(LEFT(Options!$B$24,2)),$C127,$D127,$E127,$F127,2016,$I127+$J127,1,$H127,$G127*$H127,Options!$B$8)))","v":7195.0158169949},{"$f":"IF(AND(OR(Calculations!$E$2=\"Orkney Health Board\",Calculations!$E$2=\"Orkney Islands Local Authority\"),$F127=1),0,IF(AND(OR(Calculations!$E$2=\"Shetland Health Board\",Calculations!$E$2=\"Western Isles Health Board\",Calculations!$E$2=\"Shetland Islands Local Authority\",Calculations!$E$2=\"Eilean Siar Local Authority\"),OR($F127=1,$F127=5)),0,hosp_count(VALUE(LEFT(Options!$B$24,2)),$C127,$E127,$F127,2016,$I127,1,$H127,$G127*$H127, Options!$B$8)))","v":{"$error":"#NAME?"}},{"$f":"IF(AND(OR(Calculations!$E$2=\"Orkney Health Board\",Calculations!$E$2=\"Orkney Islands Local Authority\"),$F127=1),0,IF(AND(OR(Calculations!$E$2=\"Shetland Health Board\",Calculations!$E$2=\"Western Isles Health Board\",Calculations!$E$2=\"Shetland Islands Local Authority\",Calculations!$E$2=\"Eilean Siar Local Authority\"),OR($F127=1,$F127=5)),0,hosp_count(VALUE(LEFT(Options!$B$24,2)),$C127,$E127,$F127,2016,$I127+$J127,1,$H127,$G127*$H127, Options!$B$8)))","v":{"$error":"#NAME?"}},{"$f":"IF(AND(OR(Calculations!$E$2=\"Orkney Health Board\",Calculations!$E$2=\"Orkney Islands Local Authority\"),$F127=1),0,IF(AND(OR(Calculations!$E$2=\"Shetland Health Board\",Calculations!$E$2=\"Western Isles Health Board\",Calculations!$E$2=\"Shetland Islands Local Authority\",Calculations!$E$2=\"Eilean Siar Local Authority\"),OR($F127=1,$F127=5)),0,prem_mort(VALUE(LEFT(Options!$B$24,2)),$C127,$E127,$F127,2016,$I127,1,$H127,$G127*$H127,Options!$B$8)))","v":268.68002555980001},{"$f":"IF(AND(OR(Calculations!$E$2=\"Orkney Health Board\",Calculations!$E$2=\"Orkney Islands Local Authority\"),$F127=1),0,IF(AND(OR(Calculations!$E$2=\"Shetland Health Board\",Calculations!$E$2=\"Western Isles Health Board\",Calculations!$E$2=\"Shetland Islands Local Authority\",Calculations!$E$2=\"Eilean Siar Local Authority\"),OR($F127=1,$F127=5)),0,prem_mort(VALUE(LEFT(Options!$B$24,2)),$C127,$E127,$F127,2016,$I127+$J127,1,$H127,$G127*$H127,Options!$B$8)))","v":266.58076141800001},710.43662063989007,704.88580189322829,19174.687232817101,19024.870612641527,{"$error":"#NAME?"},{"$error":"#NAME?"},710.43662063989007,704.88580189322829,4973056.3444792302,4934200.6132525979,134222810.6297197,133174094.2884907,{"$error":"#NAME?"},{"$error":"#NAME?"},4973056.3444792302,4934200.6132525979,7000]
[null,"Male 55-59",56.950867000000002,80.660870000000003,"male",2,{"$f":"HLOOKUP(Calculations!$E$2,'Prevalence Rates'!$C$3:$BC$249,'Prevalence Rates'!$BD128,FALSE)","v":0.52100000000000002},{"$f":"HLOOKUP(Calculations!$E$2,'Population 2016'!$C$3:$BC$249,'Population 2016'!BD128,FALSE)","v":35036},0,{"$f":"HLOOKUP(Results!E$4,Targeting!$C$3:$F$249,Targeting!$G128,FALSE)","v":5753},{"$f":"IF(AND(OR(Calculations!$E$2=\"Orkney Health Board\",Calculations!$E$2=\"Orkney Islands Local Authority\"),$F128=1),0,IF(AND(OR(Calculations!$E$2=\"Shetland Health Board\",Calculations!$E$2=\"Western Isles Health Board\",Calculations!$E$2=\"Shetland Islands Local Authority\",Calculations!$E$2=\"Eilean Siar Local Authority\"),OR($F128=1,$F128=5)),0,new_ci(VALUE(LEFT(Options!$B$24,2)),$C128,$E128,$F128,2016,$I128,1,$H128,$G128*$H128,Options!$B$8)))","v":361.15537272760002},{"$f":"IF(AND(OR(Calculations!$E$2=\"Orkney Health Board\",Calculations!$E$2=\"Orkney Islands Local Authority\"),$F128=1),0,IF(AND(OR(Calculations!$E$2=\"Shetland Health Board\",Calculations!$E$2=\"Western Isles Health Board\",Calculations!$E$2=\"Shetland Islands Local Authority\",Calculations!$E$2=\"Eilean Siar Local Authority\"),OR($F128=1,$F128=5)),0,new_ci(VALUE(LEFT(Options!$B$24,2)),$C128,$E128,$F128,2016,$I128+$J128,1,$H128,$G128*$H128,Options!$B$8)))","v":358.4877750883},{"$f":"IF(AND(OR(Calculations!$E$2=\"Orkney Health Board\",Calculations!$E$2=\"Orkney Islands Local Authority\"),$F128=1),0,IF(AND(OR(Calculations!$E$2=\"Shetland Health Board\",Calculations!$E$2=\"Western Isles Health Board\",Calculations!$E$2=\"Shetland Islands Local Authority\",Calculations!$E$2=\"Eilean Siar Local Authority\"),OR($F128=1,$F128=5)),0,new_yllv2(VALUE(LEFT(Options!$B$24,2)),$C128,$D128,$E128,$F128,2016,$I128,1,$H128,$G128*$H128,Options!$B$8)))","v":8201.8395981099002},{"$f":"IF(AND(OR(Calculations!$E$2=\"Orkney Health Board\",Calculations!$E$2=\"Orkney Islands Local Authority\"),$F128=1),0,IF(AND(OR(Calculations!$E$2=\"Shetland Health Board\",Calculations!$E$2=\"Western Isles Health Board\",Calculations!$E$2=\"Shetland Islands Local Authority\",Calculations!$E$2=\"Eilean Siar Local Authority\"),OR($F128=1,$F128=5)),0,new_yllv2(VALUE(LEFT(Options!$B$24,2)),$C128,$D128,$E128,$F128,2016,$I128+$J128,1,$H128,$G128*$H128,Options!$B$8)))","v":8141.2584477186001},{"$f":"IF(AND(OR(Calculations!$E$2=\"Orkney Health Board\",Calculations!$E$2=\"Orkney Islands Local Authority\"),$F128=1),0,IF(AND(OR(Calculations!$E$2=\"Shetland Health Board\",Calculations!$E$2=\"Western Isles Health Board\",Calculations!$E$2=\"Shetland Islands Local Authority\",Calculations!$E$2=\"Eilean Siar Local Authority\"),OR($F128=1,$F128=5)),0,hosp_count(VALUE(LEFT(Options!$B$24,2)),$C128,$E128,$F128,2016,$I128,1,$H128,$G128*$H128, Options!$B$8)))","v":{"$error":"#NAME?"}},{"$f":"IF(AND(OR(Calculations!$E$2=\"Orkney Health Board\",Calculations!$E$2=\"Orkney Islands Local Authority\"),$F128=1),0,IF(AND(OR(Calculations!$E$2=\"Shetland Health Board\",Calculations!$E$2=\"Western Isles Health Board\",Calculations!$E$2=\"Shetland Islands Local Authority\",Calculations!$E$2=\"Eilean Siar Local Authority\"),OR($F128=1,$F128=5)),0,hosp_count(VALUE(LEFT(Options!$B$24,2)),$C128,$E128,$F128,2016,$I128+$J128,1,$H128,$G128*$H128, Options!$B$8)))","v":{"$error":"#NAME?"}},{"$f":"IF(AND(OR(Calculations!$E$2=\"Orkney Health Board\",Calculations!$E$2=\"Orkney Islands Local Authority\"),$F128=1),0,IF(AND(OR(Calculations!$E$2=\"Shetland Health Board\",Calculations!$E$2=\"Western Isles Health Board\",Calculations!$E$2=\"Shetland Islands Local Authority\",Calculations!$E$2=\"Eilean Siar Local Authority\"),OR($F128=1,$F128=5)),0,prem_mort(VALUE(LEFT(Options!$B$24,2)),$C128,$E128,$F128,2016,$I128,1,$H128,$G128*$H128,Options!$B$8)))","v":361.15537272760002},{"$f":"IF(AND(OR(Calculations!$E$2=\"Orkney Health Board\",Calculations!$E$2=\"Orkney Islands Local Authority\"),$F128=1),0,IF(AND(OR(Calculations!$E$2=\"Shetland Health Board\",Calculations!$E$2=\"Western Isles Health Board\",Calculations!$E$2=\"Shetland Islands Local Authority\",Calculations!$E$2=\"Eilean Siar Local Authority\"),OR($F128=1,$F128=5)),0,prem_mort(VALUE(LEFT(Options!$B$24,2)),$C128,$E128,$F128,2016,$I128+$J128,1,$H128,$G128*$H128,Options!$B$8)))","v":358.4877750883},1030.812229499943,1023.1983533745291,23409.748824380353,23236.837674730563,{"$error":"#NAME?"},{"$error":"#NAME?"},1030.812229499943,1023.1983533745291,6700279.4917496294,6650789.2969344389,152163367.35847229,151039444.88574865,{"$error":"#NAME?"},{"$error":"#NAME?"},6700279.4917496294,6650789.2969344389,6500]
[null,"Male 60-64",61.942988999999997,81.612989999999996,"male",2,{"$f":"HLOOKUP(Calculations!$E$2,'Prevalence Rates'!$C$3:$BC$249,'Prevalence Rates'!$BD129,FALSE)","v":0.52100000000000002},{"$f":"HLOOKUP(Calculations!$E$2,'Population 2016'!$C$3:$BC$249,'Population 2016'!BD129,FALSE)","v":29980},0,{"$f":"HLOOKUP(Results!E$4,Targeting!$C$3:$F$249,Targeting!$G129,FALSE)","v":4922},{"$f":"IF(AND(OR(Calculations!$E$2=\"Orkney Health Board\",Calculations!$E$2=\"Orkney Islands Local Authority\"),$F129=1),0,IF(AND(OR(Calculations!$E$2=\"Shetland Health Board\",Calculations!$E$2=\"Western Isles Health Board\",Calculations!$E$2=\"Shetland Islands Local Authority\",Calculations!$E$2=\"Eilean Siar Local Authority\"),OR($F129=1,$F129=5)),0,new_ci(VALUE(LEFT(Options!$B$24,2)),$C129,$E129,$F129,2016,$I129,1,$H129,$G129*$H129,Options!$B$8)))","v":449.40194970779999},{"$f":"IF(AND(OR(Calculations!$E$2=\"Orkney Health Board\",Calculations!$E$2=\"Orkney Islands Local Authority\"),$F129=1),0,IF(AND(OR(Calculations!$E$2=\"Shetland Health Board\",Calculations!$E$2=\"Western Isles Health Board\",Calculations!$E$2=\"Shetland Islands Local Authority\",Calculations!$E$2=\"Eilean Siar Local Authority\"),OR($F129=1,$F129=5)),0,new_ci(VALUE(LEFT(Options!$B$24,2)),$C129,$E129,$F129,2016,$I129+$J129,1,$H129,$G129*$H129,Options!$B$8)))","v":446.09299443859999},{"$f":"IF(AND(OR(Calculations!$E$2=\"Orkney Health Board\",Calculations!$E$2=\"Orkney Islands Local Authority\"),$F129=1),0,IF(AND(OR(Calculations!$E$2=\"Shetland Health Board\",Calculations!$E$2=\"Western Isles Health Board\",Calculations!$E$2=\"Shetland Islands Local Authority\",Calculations!$E$2=\"Eilean Siar Local Authority\"),OR($F129=1,$F129=5)),0,new_yllv2(VALUE(LEFT(Options!$B$24,2)),$C129,$D129,$E129,$F129,2016,$I129,1,$H129,$G129*$H129,Options!$B$8)))","v":8390.3348504465994},{"$f":"IF(AND(OR(Calculations!$E$2=\"Orkney Health Board\",Calculations!$E$2=\"Orkney Islands Local Authority\"),$F129=1),0,IF(AND(OR(Calculations!$E$2=\"Shetland Health Board\",Calculations!$E$2=\"Western Isles Health Board\",Calculations!$E$2=\"Shetland Islands Local Authority\",Calculations!$E$2=\"Eilean Siar Local Authority\"),OR($F129=1,$F129=5)),0,new_yllv2(VALUE(LEFT(Options!$B$24,2)),$C129,$D129,$E129,$F129,2016,$I129+$J129,1,$H129,$G129*$H129,Options!$B$8)))","v":8328.5566522616991},{"$f":"IF(AND(OR(Calculations!$E$2=\"Orkney Health Board\",Calculations!$E$2=\"Orkney Islands Local Authority\"),$F129=1),0,IF(AND(OR(Calculations!$E$2=\"Shetland Health Board\",Calculations!$E$2=\"Western Isles Health Board\",Calculations!$E$2=\"Shetland Islands Local Authority\",Calculations!$E$2=\"Eilean Siar Local Authority\"),OR($F129=1,$F129=5)),0,hosp_count(VALUE(LEFT(Options!$B$24,2)),$C129,$E129,$F129,2016,$I129,1,$H129,$G129*$H129, Options!$B$8)))","v":{"$error":"#NAME?"}},{"$f":"IF(AND(OR(Calculations!$E$2=\"Orkney Health Board\",Calculations!$E$2=\"Orkney Islands Local Authority\"),$F129=1),0,IF(AND(OR(Calculations!$E$2=\"Shetland Health Board\",Calculations!$E$2=\"Western Isles Health Board\",Calculations!$E$2=\"Shetland Islands Local Authority\",Calculations!$E$2=\"Eilean Siar Local Authority\"),OR($F129=1,$F129=5)),0,hosp_count(VALUE(LEFT(Options!$B$24,2)),$C129,$E129,$F129,2016,$I129+$J129,1,$H129,$G129*$H129, Options!$B$8)))","v":{"$error":"#NAME?"}},{"$f":"IF(AND(OR(Calculations!$E$2=\"Orkney Health Board\",Calculations!$E$2=\"Orkney Islands Local Authority\"),$F129=1),0,IF(AND(OR(Calculations!$E$2=\"Shetland Health Board\",Calculations!$E$2=\"Western Isles Health Board\",Calculations!$E$2=\"Shetland Islands Local Authority\",Calculations!$E$2=\"Eilean Siar Local Authority\"),OR($F129=1,$F129=5)),0,prem_mort(VALUE(LEFT(Options!$B$24,2)),$C129,$E129,$F129,2016,$I129,1,$H129,$G129*$H129,Options!$B$8)))","v":449.40194970779999},{"$f":"IF(AND(OR(Calculations!$E$2=\"Orkney Health Board\",Calculations!$E$2=\"Orkney Islands Local Authority\"),$F129=1),0,IF(AND(OR(Calculations!$E$2=\"Shetland Health Board\",Calculations!$E$2=\"Western Isles Health Board\",Calculations!$E$2=\"Shetland Islands Local Authority\",Calculations!$E$2=\"Eilean Siar Local Authority\"),OR($F129=1,$F129=5)),0,prem_mort(VALUE(LEFT(Options!$B$24,2)),$C129,$E129,$F129,2016,$I129+$J129,1,$H129,$G129*$H129,Options!$B$8)))","v":446.09299443859999},1499.0058362501668,1487.9686272134757,27986.44046179653,27780.37575804436,{"$error":"#NAME?"},{"$error":"#NAME?"},1499.0058362501668,1487.9686272134757,8994035.0175010003,8927811.7632808536,167918642.77077919,166682254.54826617,{"$error":"#NAME?"},{"$error":"#NAME?"},8994035.0175010003,8927811.7632808536,6000]
[null,"Male 65-69",67.054419999999993,82.954419999999999,"male",2,{"$f":"HLOOKUP(Calculations!$E$2,'Prevalence Rates'!$C$3:$BC$249,'Prevalence Rates'!$BD130,FALSE)","v":0.58799999999999997},{"$f":"HLOOKUP(Calculations!$E$2,'Population 2016'!$C$3:$BC$249,'Population 2016'!BD130,FALSE)","v":29727},0,{"$f":"HLOOKUP(Results!E$4,Targeting!$C$3:$F$249,Targeting!$G130,FALSE)","v":4881},{"$f":"IF(AND(OR(Calculations!$E$2=\"Orkney Health Board\",Calculations!$E$2=\"Orkney Islands Local Authority\"),$F130=1),0,IF(AND(OR(Calculations!$E$2=\"Shetland Health Board\",Calculations!$E$2=\"Western Isles Health Board\",Calculations!$E$2=\"Shetland Islands Local Authority\",Calculations!$E$2=\"Eilean Siar Local Authority\"),OR($F130=1,$F130=5)),0,new_ci(VALUE(LEFT(Options!$B$24,2)),$C130,$E130,$F130,2016,$I130,1,$H130,$G130*$H130,Options!$B$8)))","v":653.09038608610001},{"$f":"IF(AND(OR(Calculations!$E$2=\"Orkney Health Board\",Calculations!$E$2=\"Orkney Islands Local Authority\"),$F130=1),0,IF(AND(OR(Calculations!$E$2=\"Shetland Health Board\",Calculations!$E$2=\"Western Isles Health Board\",Calculations!$E$2=\"Shetland Islands Local Authority\",Calculations!$E$2=\"Eilean Siar Local Authority\"),OR($F130=1,$F130=5)),0,new_ci(VALUE(LEFT(Options!$B$24,2)),$C130,$E130,$F130,2016,$I130+$J130,1,$H130,$G130*$H130,Options!$B$8)))","v":648.4099824955},{"$f":"IF(AND(OR(Calculations!$E$2=\"Orkney Health Board\",Calculations!$E$2=\"Orkney Islands Local Authority\"),$F130=1),0,IF(AND(OR(Calculations!$E$2=\"Shetland Health Board\",Calculations!$E$2=\"Western Isles Health Board\",Calculations!$E$2=\"Shetland Islands Local Authority\",Calculations!$E$2=\"Eilean Siar Local Authority\"),OR($F130=1,$F130=5)),0,new_yllv2(VALUE(LEFT(Options!$B$24,2)),$C130,$D130,$E130,$F130,2016,$I130,1,$H130,$G130*$H130,Options!$B$8)))","v":9731.0467526828998},{"$f":"IF(AND(OR(Calculations!$E$2=\"Orkney Health Board\",Calculations!$E$2=\"Orkney Islands Local Authority\"),$F130=1),0,IF(AND(OR(Calculations!$E$2=\"Shetland Health Board\",Calculations!$E$2=\"Western Isles Health Board\",Calculations!$E$2=\"Shetland Islands Local Authority\",Calculations!$E$2=\"Eilean Siar Local Authority\"),OR($F130=1,$F130=5)),0,new_yllv2(VALUE(LEFT(Options!$B$24,2)),$C130,$D130,$E130,$F130,2016,$I130+$J130,1,$H130,$G130*$H130,Options!$B$8)))","v":9661.3087391829995},{"$f":"IF(AND(OR(Calculations!$E$2=\"Orkney Health Board\",Calculations!$E$2=\"Orkney Islands Local Authority\"),$F130=1),0,IF(AND(OR(Calculations!$E$2=\"Shetland Health Board\",Calculations!$E$2=\"Western Isles Health Board\",Calculations!$E$2=\"Shetland Islands Local Authority\",Calculations!$E$2=\"Eilean Siar Local Authority\"),OR($F130=1,$F130=5)),0,hosp_count(VALUE(LEFT(Options!$B$24,2)),$C130,$E130,$F130,2016,$I130,1,$H130,$G130*$H130, Options!$B$8)))","v":{"$error":"#NAME?"}},{"$f":"IF(AND(OR(Calculations!$E$2=\"Orkney Health Board\",Calculations!$E$2=\"Orkney Islands Local Authority\"),$F130=1),0,IF(AND(OR(Calculations!$E$2=\"Shetland Health Board\",Calculations!$E$2=\"Western Isles Health Board\",Calculations!$E$2=\"Shetland Islands Local Authority\",Calculations!$E$2=\"Eilean Siar Local Authority\"),OR($F130=1,$F130=5)),0,hosp_count(VALUE(LEFT(Options!$B$24,2)),$C130,$E130,$F130,2016,$I130+$J130,1,$H130,$G130*$H130, Options!$B$8)))","v":{"$error":"#NAME?"}},{"$f":"IF(AND(OR(Calculations!$E$2=\"Orkney Health Board\",Calculations!$E$2=\"Orkney Islands Local Authority\"),$F130=1),0,IF(AND(OR(Calculations!$E$2=\"Shetland Health Board\",Calculations!$E$2=\"Western Isles Health Board\",Calculations!$E$2=\"Shetland Islands Local Authority\",Calculations!$E$2=\"Eilean Siar Local Authority\"),OR($F130=1,$F130=5)),0,prem_mort(VALUE(LEFT(Options!$B$24,2)),$C130,$E130,$F130,2016,$I130,1,$H130,$G130*$H130,Options!$B$8)))","v":653.09038608610001},{"$f":"IF(AND(OR(Calculations!$E$2=\"Orkney Health Board\",Calculations!$E$2=\"Orkney Islands Local Authority\"),$F130=1),0,IF(AND(OR(Calculations!$E$2=\"Shetland Health Board\",Calculations!$E$2=\"Western Isles Health Board\",Calculations!$E$2=\"Shetland Islands Local Authority\",Calculations!$E$2=\"Eilean Siar Local Authority\"),OR($F130=1,$F130=5)),0,prem_mort(VALUE(LEFT(Options!$B$24,2)),$C130,$E130,$F130,2016,$I130+$J130,1,$H130,$G130*$H130,Options!$B$8)))","v":648.4099824955},2196.9602922800823,2181.2156709237393,32734.708354973252,32500.113496763883,{"$error":"#NAME?"},{"$error":"#NAME?"},2196.9602922800823,2181.2156709237393,12083281.607540453,11996686.190080566,180040895.95235288,178750624.23220137,{"$error":"#NAME?"},{"$error":"#NAME?"},12083281.607540453,11996686.190080566,5500]
[null,"Male 70-74",71.891098,84.341099999999997,"male",2,{"$f":"HLOOKUP(Calculations!$E$2,'Prevalence Rates'!$C$3:$BC$249,'Prevalence Rates'!$BD131,FALSE)","v":0.58799999999999997},{"$f":"HLOOKUP(Calculations!$E$2,'Population 2016'!$C$3:$BC$249,'Population 2016'!BD131,FALSE)","v":22052},0,{"$f":"HLOOKUP(Results!E$4,Targeting!$C$3:$F$249,Targeting!$G131,FALSE)","v":3621},{"$f":"IF(AND(OR(Calculations!$E$2=\"Orkney Health Board\",Calculations!$E$2=\"Orkney Islands Local Authority\"),$F131=1),0,IF(AND(OR(Calculations!$E$2=\"Shetland Health Board\",Calculations!$E$2=\"Western Isles Health Board\",Calculations!$E$2=\"Shetland Islands Local Authority\",Calculations!$E$2=\"Eilean Siar Local Authority\"),OR($F131=1,$F131=5)),0,new_ci(VALUE(LEFT(Options!$B$24,2)),$C131,$E131,$F131,2016,$I131,1,$H131,$G131*$H131,Options!$B$8)))","v":694.51286998360001},{"$f":"IF(AND(OR(Calculations!$E$2=\"Orkney Health Board\",Calculations!$E$2=\"Orkney Islands Local Authority\"),$F131=1),0,IF(AND(OR(Calculations!$E$2=\"Shetland Health Board\",Calculations!$E$2=\"Western Isles Health Board\",Calculations!$E$2=\"Shetland Islands Local Authority\",Calculations!$E$2=\"Eilean Siar Local Authority\"),OR($F131=1,$F131=5)),0,new_ci(VALUE(LEFT(Options!$B$24,2)),$C131,$E131,$F131,2016,$I131+$J131,1,$H131,$G131*$H131,Options!$B$8)))","v":689.5648730611},{"$f":"IF(AND(OR(Calculations!$E$2=\"Orkney Health Board\",Calculations!$E$2=\"Orkney Islands Local Authority\"),$F131=1),0,IF(AND(OR(Calculations!$E$2=\"Shetland Health Board\",Calculations!$E$2=\"Western Isles Health Board\",Calculations!$E$2=\"Shetland Islands Local Authority\",Calculations!$E$2=\"Eilean Siar Local Authority\"),OR($F131=1,$F131=5)),0,new_yllv2(VALUE(LEFT(Options!$B$24,2)),$C131,$D131,$E131,$F131,2016,$I131,1,$H131,$G131*$H131,Options!$B$8)))","v":7952.173750338},{"$f":"IF(AND(OR(Calculations!$E$2=\"Orkney Health Board\",Calculations!$E$2=\"Orkney Islands Local Authority\"),$F131=1),0,IF(AND(OR(Calculations!$E$2=\"Shetland Health Board\",Calculations!$E$2=\"Western Isles Health Board\",Calculations!$E$2=\"Shetland Islands Local Authority\",Calculations!$E$2=\"Eilean Siar Local Authority\"),OR($F131=1,$F131=5)),0,new_yllv2(VALUE(LEFT(Options!$B$24,2)),$C131,$D131,$E131,$F131,2016,$I131+$J131,1,$H131,$G131*$H131,Options!$B$8)))","v":7895.5191756793001},{"$f":"IF(AND(OR(Calculations!$E$2=\"Orkney Health Board\",Calculations!$E$2=\"Orkney Islands Local Authority\"),$F131=1),0,IF(AND(OR(Calculations!$E$2=\"Shetland Health Board\",Calculations!$E$2=\"Western Isles Health Board\",Calculations!$E$2=\"Shetland Islands Local Authority\",Calculations!$E$2=\"Eilean Siar Local Authority\"),OR($F131=1,$F131=5)),0,hosp_count(VALUE(LEFT(Options!$B$24,2)),$C131,$E131,$F131,2016,$I131,1,$H131,$G131*$H131, Options!$B$8)))","v":{"$error":"#NAME?"}},{"$f":"IF(AND(OR(Calculations!$E$2=\"Orkney Health Board\",Calculations!$E$2=\"Orkney Islands Local Authority\"),$F131=1),0,IF(AND(OR(Calculations!$E$2=\"Shetland Health Board\",Calculations!$E$2=\"Western Isles Health Board\",Calculations!$E$2=\"Shetland Islands Local Authority\",Calculations!$E$2=\"Eilean Siar Local Authority\"),OR($F131=1,$F131=5)),0,hosp_count(VALUE(LEFT(Options!$B$24,2)),$C131,$E131,$F131,2016,$I131+$J131,1,$H131,$G131*$H131, Options!$B$8)))","v":{"$error":"#NAME?"}},{"$f":"IF(AND(OR(Calculations!$E$2=\"Orkney Health Board\",Calculations!$E$2=\"Orkney Islands Local Authority\"),$F131=1),0,IF(AND(OR(Calculations!$E$2=\"Shetland Health Board\",Calculations!$E$2=\"Western Isles Health Board\",Calculations!$E$2=\"Shetland Islands Local Authority\",Calculations!$E$2=\"Eilean Siar Local Authority\"),OR($F131=1,$F131=5)),0,prem_mort(VALUE(LEFT(Options!$B$24,2)),$C131,$E131,$F131,2016,$I131,1,$H131,$G131*$H131,Options!$B$8)))","v":694.51286998360001},{"$f":"IF(AND(OR(Calculations!$E$2=\"Orkney Health Board\",Calculations!$E$2=\"Orkney Islands Local Authority\"),$F131=1),0,IF(AND(OR(Calculations!$E$2=\"Shetland Health Board\",Calculations!$E$2=\"Western Isles Health Board\",Calculations!$E$2=\"Shetland Islands Local Authority\",Calculations!$E$2=\"Eilean Siar Local Authority\"),OR($F131=1,$F131=5)),0,prem_mort(VALUE(LEFT(Options!$B$24,2)),$C131,$E131,$F131,2016,$I131+$J131,1,$H131,$G131*$H131,Options!$B$8)))","v":689.5648730611},3149.4325684001456,3126.9947082400686,36061.009207046984,35804.095663338019,{"$error":"#NAME?"},{"$error":"#NAME?"},3149.4325684001456,3126.9947082400686,15747162.842000728,15634973.541200344,180305046.03523493,179020478.31669009,{"$error":"#NAME?"},{"$error":"#NAME?"},15747162.842000728,15634973.541200344,5000]
[null,"Male 75-79",76.907700000000006,86.357700000000008,"male",2,{"$f":"HLOOKUP(Calculations!$E$2,'Prevalence Rates'!$C$3:$BC$249,'Prevalence Rates'!$BD132,FALSE)","v":0.83299999999999996},{"$f":"HLOOKUP(Calculations!$E$2,'Population 2016'!$C$3:$BC$249,'Population 2016'!BD132,FALSE)","v":16695},0,{"$f":"HLOOKUP(Results!E$4,Targeting!$C$3:$F$249,Targeting!$G132,FALSE)","v":2741},{"$f":"IF(AND(OR(Calculations!$E$2=\"Orkney Health Board\",Calculations!$E$2=\"Orkney Islands Local Authority\"),$F132=1),0,IF(AND(OR(Calculations!$E$2=\"Shetland Health Board\",Calculations!$E$2=\"Western Isles Health Board\",Calculations!$E$2=\"Shetland Islands Local Authority\",Calculations!$E$2=\"Eilean Siar Local Authority\"),OR($F132=1,$F132=5)),0,new_ci(VALUE(LEFT(Options!$B$24,2)),$C132,$E132,$F132,2016,$I132,1,$H132,$G132*$H132,Options!$B$8)))","v":762.3960338206},{"$f":"IF(AND(OR(Calculations!$E$2=\"Orkney Health Board\",Calculations!$E$2=\"Orkney Islands Local Authority\"),$F132=1),0,IF(AND(OR(Calculations!$E$2=\"Shetland Health Board\",Calculations!$E$2=\"Western Isles Health Board\",Calculations!$E$2=\"Shetland Islands Local Authority\",Calculations!$E$2=\"Eilean Siar Local Authority\"),OR($F132=1,$F132=5)),0,new_ci(VALUE(LEFT(Options!$B$24,2)),$C132,$E132,$F132,2016,$I132+$J132,1,$H132,$G132*$H132,Options!$B$8)))","v":757.41191289799997},{"$f":"IF(AND(OR(Calculations!$E$2=\"Orkney Health Board\",Calculations!$E$2=\"Orkney Islands Local Authority\"),$F132=1),0,IF(AND(OR(Calculations!$E$2=\"Shetland Health Board\",Calculations!$E$2=\"Western Isles Health Board\",Calculations!$E$2=\"Shetland Islands Local Authority\",Calculations!$E$2=\"Eilean Siar Local Authority\"),OR($F132=1,$F132=5)),0,new_yllv2(VALUE(LEFT(Options!$B$24,2)),$C132,$D132,$E132,$F132,2016,$I132,1,$H132,$G132*$H132,Options!$B$8)))","v":6442.2464857840996},{"$f":"IF(AND(OR(Calculations!$E$2=\"Orkney Health Board\",Calculations!$E$2=\"Orkney Islands Local Authority\"),$F132=1),0,IF(AND(OR(Calculations!$E$2=\"Shetland Health Board\",Calculations!$E$2=\"Western Isles Health Board\",Calculations!$E$2=\"Shetland Islands Local Authority\",Calculations!$E$2=\"Eilean Siar Local Authority\"),OR($F132=1,$F132=5)),0,new_yllv2(VALUE(LEFT(Options!$B$24,2)),$C132,$D132,$E132,$F132,2016,$I132+$J132,1,$H132,$G132*$H132,Options!$B$8)))","v":6400.1306639881004},{"$f":"IF(AND(OR(Calculations!$E$2=\"Orkney Health Board\",Calculations!$E$2=\"Orkney Islands Local Authority\"),$F132=1),0,IF(AND(OR(Calculations!$E$2=\"Shetland Health Board\",Calculations!$E$2=\"Western Isles Health Board\",Calculations!$E$2=\"Shetland Islands Local Authority\",Calculations!$E$2=\"Eilean Siar Local Authority\"),OR($F132=1,$F132=5)),0,hosp_count(VALUE(LEFT(Options!$B$24,2)),$C132,$E132,$F132,2016,$I132,1,$H132,$G132*$H132, Options!$B$8)))","v":{"$error":"#NAME?"}},{"$f":"IF(AND(OR(Calculations!$E$2=\"Orkney Health Board\",Calculations!$E$2=\"Orkney Islands Local Authority\"),$F132=1),0,IF(AND(OR(Calculations!$E$2=\"Shetland Health Board\",Calculations!$E$2=\"Western Isles Health Board\",Calculations!$E$2=\"Shetland Islands Local Authority\",Calculations!$E$2=\"Eilean Siar Local Authority\"),OR($F132=1,$F132=5)),0,hosp_count(VALUE(LEFT(Options!$B$24,2)),$C132,$E132,$F132,2016,$I132+$J132,1,$H132,$G132*$H132, Options!$B$8)))","v":{"$error":"#NAME?"}},{"$f":"IF(AND(OR(Calculations!$E$2=\"Orkney Health Board\",Calculations!$E$2=\"Orkney Islands Local Authority\"),$F132=1),0,IF(AND(OR(Calculations!$E$2=\"Shetland Health Board\",Calculations!$E$2=\"Western Isles Health Board\",Calculations!$E$2=\"Shetland Islands Local Authority\",Calculations!$E$2=\"Eilean Siar Local Authority\"),OR($F132=1,$F132=5)),0,prem_mort(VALUE(LEFT(Options!$B$24,2)),$C132,$E132,$F132,2016,$I132,1,$H132,$G132*$H132,Options!$B$8)))","v":0},{"$f":"IF(AND(OR(Calculations!$E$2=\"Orkney Health Board\",Calculations!$E$2=\"Orkney Islands Local Authority\"),$F132=1),0,IF(AND(OR(Calculations!$E$2=\"Shetland Health Board\",Calculations!$E$2=\"Western Isles Health Board\",Calculations!$E$2=\"Shetland Islands Local Authority\",Calculations!$E$2=\"Eilean Siar Local Authority\"),OR($F132=1,$F132=5)),0,prem_mort(VALUE(LEFT(Options!$B$24,2)),$C132,$E132,$F132,2016,$I132+$J132,1,$H132,$G132*$H132,Options!$B$8)))","v":0},4566.6129608900874,4536.7589871099135,38587.879519521412,38335.613441078771,{"$error":"#NAME?"},{"$error":"#NAME?"},0,0,18266451.843560349,18147035.948439654,154351518.07808566,153342453.76431507,{"$error":"#NAME?"},{"$error":"#NAME?"},0,0,4000]
[null,"Male 80-84",81.797089,88.627089999999995,"male",2,{"$f":"HLOOKUP(Calculations!$E$2,'Prevalence Rates'!$C$3:$BC$249,'Prevalence Rates'!$BD133,FALSE)","v":0.83299999999999996},{"$f":"HLOOKUP(Calculations!$E$2,'Population 2016'!$C$3:$BC$249,'Population 2016'!BD133,FALSE)","v":11333},0,{"$f":"HLOOKUP(Results!E$4,Targeting!$C$3:$F$249,Targeting!$G133,FALSE)","v":1861},{"$f":"IF(AND(OR(Calculations!$E$2=\"Orkney Health Board\",Calculations!$E$2=\"Orkney Islands Local Authority\"),$F133=1),0,IF(AND(OR(Calculations!$E$2=\"Shetland Health Board\",Calculations!$E$2=\"Western Isles Health Board\",Calculations!$E$2=\"Shetland Islands Local Authority\",Calculations!$E$2=\"Eilean Siar Local Authority\"),OR($F133=1,$F133=5)),0,new_ci(VALUE(LEFT(Options!$B$24,2)),$C133,$E133,$F133,2016,$I133,1,$H133,$G133*$H133,Options!$B$8)))","v":740.80441764249997},{"$f":"IF(AND(OR(Calculations!$E$2=\"Orkney Health Board\",Calculations!$E$2=\"Orkney Islands Local Authority\"),$F133=1),0,IF(AND(OR(Calculations!$E$2=\"Shetland Health Board\",Calculations!$E$2=\"Western Isles Health Board\",Calculations!$E$2=\"Shetland Islands Local Authority\",Calculations!$E$2=\"Eilean Siar Local Authority\"),OR($F133=1,$F133=5)),0,new_ci(VALUE(LEFT(Options!$B$24,2)),$C133,$E133,$F133,2016,$I133+$J133,1,$H133,$G133*$H133,Options!$B$8)))","v":736.01392225929999},{"$f":"IF(AND(OR(Calculations!$E$2=\"Orkney Health Board\",Calculations!$E$2=\"Orkney Islands Local Authority\"),$F133=1),0,IF(AND(OR(Calculations!$E$2=\"Shetland Health Board\",Calculations!$E$2=\"Western Isles Health Board\",Calculations!$E$2=\"Shetland Islands Local Authority\",Calculations!$E$2=\"Eilean Siar Local Authority\"),OR($F133=1,$F133=5)),0,new_yllv2(VALUE(LEFT(Options!$B$24,2)),$C133,$D133,$E133,$F133,2016,$I133,1,$H133,$G133*$H133,Options!$B$8)))","v":4318.8904956602},{"$f":"IF(AND(OR(Calculations!$E$2=\"Orkney Health Board\",Calculations!$E$2=\"Orkney Islands Local Authority\"),$F133=1),0,IF(AND(OR(Calculations!$E$2=\"Shetland Health Board\",Calculations!$E$2=\"Western Isles Health Board\",Calculations!$E$2=\"Shetland Islands Local Authority\",Calculations!$E$2=\"Eilean Siar Local Authority\"),OR($F133=1,$F133=5)),0,new_yllv2(VALUE(LEFT(Options!$B$24,2)),$C133,$D133,$E133,$F133,2016,$I133+$J133,1,$H133,$G133*$H133,Options!$B$8)))","v":4290.9619027855997},{"$f":"IF(AND(OR(Calculations!$E$2=\"Orkney Health Board\",Calculations!$E$2=\"Orkney Islands Local Authority\"),$F133=1),0,IF(AND(OR(Calculations!$E$2=\"Shetland Health Board\",Calculations!$E$2=\"Western Isles Health Board\",Calculations!$E$2=\"Shetland Islands Local Authority\",Calculations!$E$2=\"Eilean Siar Local Authority\"),OR($F133=1,$F133=5)),0,hosp_count(VALUE(LEFT(Options!$B$24,2)),$C133,$E133,$F133,2016,$I133,1,$H133,$G133*$H133, Options!$B$8)))","v":{"$error":"#NAME?"}},{"$f":"IF(AND(OR(Calculations!$E$2=\"Orkney Health Board\",Calculations!$E$2=\"Orkney Islands Local Authority\"),$F133=1),0,IF(AND(OR(Calculations!$E$2=\"Shetland Health Board\",Calculations!$E$2=\"Western Isles Health Board\",Calculations!$E$2=\"Shetland Islands Local Authority\",Calculations!$E$2=\"Eilean Siar Local Authority\"),OR($F133=1,$F133=5)),0,hosp_count(VALUE(LEFT(Options!$B$24,2)),$C133,$E133,$F133,2016,$I133+$J133,1,$H133,$G133*$H133, Options!$B$8)))","v":{"$error":"#NAME?"}},{"$f":"IF(AND(OR(Calculations!$E$2=\"Orkney Health Board\",Calculations!$E$2=\"Orkney Islands Local Authority\"),$F133=1),0,IF(AND(OR(Calculations!$E$2=\"Shetland Health Board\",Calculations!$E$2=\"Western Isles Health Board\",Calculations!$E$2=\"Shetland Islands Local Authority\",Calculations!$E$2=\"Eilean Siar Local Authority\"),OR($F133=1,$F133=5)),0,prem_mort(VALUE(LEFT(Options!$B$24,2)),$C133,$E133,$F133,2016,$I133,1,$H133,$G133*$H133,Options!$B$8)))","v":0},{"$f":"IF(AND(OR(Calculations!$E$2=\"Orkney Health Board\",Calculations!$E$2=\"Orkney Islands Local Authority\"),$F133=1),0,IF(AND(OR(Calculations!$E$2=\"Shetland Health Board\",Calculations!$E$2=\"Western Isles Health Board\",Calculations!$E$2=\"Shetland Islands Local Authority\",Calculations!$E$2=\"Eilean Siar Local Authority\"),OR($F133=1,$F133=5)),0,prem_mort(VALUE(LEFT(Options!$B$24,2)),$C133,$E133,$F133,2016,$I133+$J133,1,$H133,$G133*$H133,Options!$B$8)))","v":0},6536.7018233698045,6494.4315032145068,38108.978166947854,37862.542158171709,{"$error":"#NAME?"},{"$error":"#NAME?"},0,0,16341754.558424512,16236078.758036267,95272445.417369634,94656355.395429268,{"$error":"#NAME?"},{"$error":"#NAME?"},0,0,2500]
[null,"Male 85-89",86.630752999999999,91.420750000000012,"male",2,{"$f":"HLOOKUP(Calculations!$E$2,'Prevalence Rates'!$C$3:$BC$249,'Prevalence Rates'!$BD134,FALSE)","v":0.83299999999999996},{"$f":"HLOOKUP(Calculations!$E$2,'Population 2016'!$C$3:$BC$249,'Population 2016'!BD134,FALSE)","v":5568},0,{"$f":"HLOOKUP(Results!E$4,Targeting!$C$3:$F$249,Targeting!$G134,FALSE)","v":914},{"$f":"IF(AND(OR(Calculations!$E$2=\"Orkney Health Board\",Calculations!$E$2=\"Orkney Islands Local Authority\"),$F134=1),0,IF(AND(OR(Calculations!$E$2=\"Shetland Health Board\",Calculations!$E$2=\"Western Isles Health Board\",Calculations!$E$2=\"Shetland Islands Local Authority\",Calculations!$E$2=\"Eilean Siar Local Authority\"),OR($F134=1,$F134=5)),0,new_ci(VALUE(LEFT(Options!$B$24,2)),$C134,$E134,$F134,2016,$I134,1,$H134,$G134*$H134,Options!$B$8)))","v":516.51441682439997},{"$f":"IF(AND(OR(Calculations!$E$2=\"Orkney Health Board\",Calculations!$E$2=\"Orkney Islands Local Authority\"),$F134=1),0,IF(AND(OR(Calculations!$E$2=\"Shetland Health Board\",Calculations!$E$2=\"Western Isles Health Board\",Calculations!$E$2=\"Shetland Islands Local Authority\",Calculations!$E$2=\"Eilean Siar Local Authority\"),OR($F134=1,$F134=5)),0,new_ci(VALUE(LEFT(Options!$B$24,2)),$C134,$E134,$F134,2016,$I134+$J134,1,$H134,$G134*$H134,Options!$B$8)))","v":513.2280749844},{"$f":"IF(AND(OR(Calculations!$E$2=\"Orkney Health Board\",Calculations!$E$2=\"Orkney Islands Local Authority\"),$F134=1),0,IF(AND(OR(Calculations!$E$2=\"Shetland Health Board\",Calculations!$E$2=\"Western Isles Health Board\",Calculations!$E$2=\"Shetland Islands Local Authority\",Calculations!$E$2=\"Eilean Siar Local Authority\"),OR($F134=1,$F134=5)),0,new_yllv2(VALUE(LEFT(Options!$B$24,2)),$C134,$D134,$E134,$F134,2016,$I134,1,$H134,$G134*$H134,Options!$B$8)))","v":1957.5880902212},{"$f":"IF(AND(OR(Calculations!$E$2=\"Orkney Health Board\",Calculations!$E$2=\"Orkney Islands Local Authority\"),$F134=1),0,IF(AND(OR(Calculations!$E$2=\"Shetland Health Board\",Calculations!$E$2=\"Western Isles Health Board\",Calculations!$E$2=\"Shetland Islands Local Authority\",Calculations!$E$2=\"Eilean Siar Local Authority\"),OR($F134=1,$F134=5)),0,new_yllv2(VALUE(LEFT(Options!$B$24,2)),$C134,$D134,$E134,$F134,2016,$I134+$J134,1,$H134,$G134*$H134,Options!$B$8)))","v":1945.1328645066999},{"$f":"IF(AND(OR(Calculations!$E$2=\"Orkney Health Board\",Calculations!$E$2=\"Orkney Islands Local Authority\"),$F134=1),0,IF(AND(OR(Calculations!$E$2=\"Shetland Health Board\",Calculations!$E$2=\"Western Isles Health Board\",Calculations!$E$2=\"Shetland Islands Local Authority\",Calculations!$E$2=\"Eilean Siar Local Authority\"),OR($F134=1,$F134=5)),0,hosp_count(VALUE(LEFT(Options!$B$24,2)),$C134,$E134,$F134,2016,$I134,1,$H134,$G134*$H134, Options!$B$8)))","v":{"$error":"#NAME?"}},{"$f":"IF(AND(OR(Calculations!$E$2=\"Orkney Health Board\",Calculations!$E$2=\"Orkney Islands Local Authority\"),$F134=1),0,IF(AND(OR(Calculations!$E$2=\"Shetland Health Board\",Calculations!$E$2=\"Western Isles Health Board\",Calculations!$E$2=\"Shetland Islands Local Authority\",Calculations!$E$2=\"Eilean Siar Local Authority\"),OR($F134=1,$F134=5)),0,hosp_count(VALUE(LEFT(Options!$B$24,2)),$C134,$E134,$F134,2016,$I134+$J134,1,$H134,$G134*$H134, Options!$B$8)))","v":{"$error":"#NAME?"}},{"$f":"IF(AND(OR(Calculations!$E$2=\"Orkney Health Board\",Calculations!$E$2=\"Orkney Islands Local Authority\"),$F134=1),0,IF(AND(OR(Calculations!$E$2=\"Shetland Health Board\",Calculations!$E$2=\"Western Isles Health Board\",Calculations!$E$2=\"Shetland Islands Local Authority\",Calculations!$E$2=\"Eilean Siar Local Authority\"),OR($F134=1,$F134=5)),0,prem_mort(VALUE(LEFT(Options!$B$24,2)),$C134,$E134,$F134,2016,$I134,1,$H134,$G134*$H134,Options!$B$8)))","v":0},{"$f":"IF(AND(OR(Calculations!$E$2=\"Orkney Health Board\",Calculations!$E$2=\"Orkney Islands Local Authority\"),$F134=1),0,IF(AND(OR(Calculations!$E$2=\"Shetland Health Board\",Calculations!$E$2=\"Western Isles Health Board\",Calculations!$E$2=\"Shetland Islands Local Authority\",Calculations!$E$2=\"Eilean Siar Local Authority\"),OR($F134=1,$F134=5)),0,prem_mort(VALUE(LEFT(Options!$B$24,2)),$C134,$E134,$F134,2016,$I134+$J134,1,$H134,$G134*$H134,Options!$B$8)))","v":0},9276.4801872198277,9217.4582432543102,35157.832080122127,34934.139089559983,{"$error":"#NAME?"},{"$error":"#NAME?"},0,0,13914720.280829741,13826187.364881465,52736748.120183192,52401208.634339973,{"$error":"#NAME?"},{"$error":"#NAME?"},0,0,1500]
[null,"Male 90+",92.215477000000007,95.515479999999997,"male",2,{"$f":"HLOOKUP(Calculations!$E$2,'Prevalence Rates'!$C$3:$BC$249,'Prevalence Rates'!$BD135,FALSE)","v":0.83299999999999996},{"$f":"HLOOKUP(Calculations!$E$2,'Population 2016'!$C$3:$BC$249,'Population 2016'!BD135,FALSE)","v":2286},0,{"$f":"HLOOKUP(Results!E$4,Targeting!$C$3:$F$249,Targeting!$G135,FALSE)","v":375},{"$f":"IF(AND(OR(Calculations!$E$2=\"Orkney Health Board\",Calculations!$E$2=\"Orkney Islands Local Authority\"),$F135=1),0,IF(AND(OR(Calculations!$E$2=\"Shetland Health Board\",Calculations!$E$2=\"Western Isles Health Board\",Calculations!$E$2=\"Shetland Islands Local Authority\",Calculations!$E$2=\"Eilean Siar Local Authority\"),OR($F135=1,$F135=5)),0,new_ci(VALUE(LEFT(Options!$B$24,2)),$C135,$E135,$F135,2016,$I135,1,$H135,$G135*$H135,Options!$B$8)))","v":315.1861992945},{"$f":"IF(AND(OR(Calculations!$E$2=\"Orkney Health Board\",Calculations!$E$2=\"Orkney Islands Local Authority\"),$F135=1),0,IF(AND(OR(Calculations!$E$2=\"Shetland Health Board\",Calculations!$E$2=\"Western Isles Health Board\",Calculations!$E$2=\"Shetland Islands Local Authority\",Calculations!$E$2=\"Eilean Siar Local Authority\"),OR($F135=1,$F135=5)),0,new_ci(VALUE(LEFT(Options!$B$24,2)),$C135,$E135,$F135,2016,$I135+$J135,1,$H135,$G135*$H135,Options!$B$8)))","v":313.23633605700002},{"$f":"IF(AND(OR(Calculations!$E$2=\"Orkney Health Board\",Calculations!$E$2=\"Orkney Islands Local Authority\"),$F135=1),0,IF(AND(OR(Calculations!$E$2=\"Shetland Health Board\",Calculations!$E$2=\"Western Isles Health Board\",Calculations!$E$2=\"Shetland Islands Local Authority\",Calculations!$E$2=\"Eilean Siar Local Authority\"),OR($F135=1,$F135=5)),0,new_yllv2(VALUE(LEFT(Options!$B$24,2)),$C135,$D135,$E135,$F135,2016,$I135,1,$H135,$G135*$H135,Options!$B$8)))","v":724.92920393589998},{"$f":"IF(AND(OR(Calculations!$E$2=\"Orkney Health Board\",Calculations!$E$2=\"Orkney Islands Local Authority\"),$F135=1),0,IF(AND(OR(Calculations!$E$2=\"Shetland Health Board\",Calculations!$E$2=\"Western Isles Health Board\",Calculations!$E$2=\"Shetland Islands Local Authority\",Calculations!$E$2=\"Eilean Siar Local Authority\"),OR($F135=1,$F135=5)),0,new_yllv2(VALUE(LEFT(Options!$B$24,2)),$C135,$D135,$E135,$F135,2016,$I135+$J135,1,$H135,$G135*$H135,Options!$B$8)))","v":720.44451264010002},{"$f":"IF(AND(OR(Calculations!$E$2=\"Orkney Health Board\",Calculations!$E$2=\"Orkney Islands Local Authority\"),$F135=1),0,IF(AND(OR(Calculations!$E$2=\"Shetland Health Board\",Calculations!$E$2=\"Western Isles Health Board\",Calculations!$E$2=\"Shetland Islands Local Authority\",Calculations!$E$2=\"Eilean Siar Local Authority\"),OR($F135=1,$F135=5)),0,hosp_count(VALUE(LEFT(Options!$B$24,2)),$C135,$E135,$F135,2016,$I135,1,$H135,$G135*$H135, Options!$B$8)))","v":{"$error":"#NAME?"}},{"$f":"IF(AND(OR(Calculations!$E$2=\"Orkney Health Board\",Calculations!$E$2=\"Orkney Islands Local Authority\"),$F135=1),0,IF(AND(OR(Calculations!$E$2=\"Shetland Health Board\",Calculations!$E$2=\"Western Isles Health Board\",Calculations!$E$2=\"Shetland Islands Local Authority\",Calculations!$E$2=\"Eilean Siar Local Authority\"),OR($F135=1,$F135=5)),0,hosp_count(VALUE(LEFT(Options!$B$24,2)),$C135,$E135,$F135,2016,$I135+$J135,1,$H135,$G135*$H135, Options!$B$8)))","v":{"$error":"#NAME?"}},{"$f":"IF(AND(OR(Calculations!$E$2=\"Orkney Health Board\",Calculations!$E$2=\"Orkney Islands Local Authority\"),$F135=1),0,IF(AND(OR(Calculations!$E$2=\"Shetland Health Board\",Calculations!$E$2=\"Western Isles Health Board\",Calculations!$E$2=\"Shetland Islands Local Authority\",Calculations!$E$2=\"Eilean Siar Local Authority\"),OR($F135=1,$F135=5)),0,prem_mort(VALUE(LEFT(Options!$B$24,2)),$C135,$E135,$F135,2016,$I135,1,$H135,$G135*$H135,Options!$B$8)))","v":0},{"$f":"IF(AND(OR(Calculations!$E$2=\"Orkney Health Board\",Calculations!$E$2=\"Orkney Islands Local Authority\"),$F135=1),0,IF(AND(OR(Calculations!$E$2=\"Shetland Health Board\",Calculations!$E$2=\"Western Isles Health Board\",Calculations!$E$2=\"Shetland Islands Local Authority\",Calculations!$E$2=\"Eilean Siar Local Authority\"),OR($F135=1,$F135=5)),0,prem_mort(VALUE(LEFT(Options!$B$24,2)),$C135,$E135,$F135,2016,$I135+$J135,1,$H135,$G135*$H135,Options!$B$8)))","v":0},13787.672760039371,13702.376905380577,31711.688711106737,31515.507989505684,{"$error":"#NAME?"},{"$error":"#NAME?"},0,0,13787672.760039372,13702376.905380577,31711688.711106736,31515507.989505686,{"$error":"#NAME?"},{"$error":"#NAME?"},0,0,1000]
[null,"Female 0-4",2.0384007,81.468401,"female",3,{"$f":"HLOOKUP(Calculations!$E$2,'Prevalence Rates'!$C$3:$BC$249,'Prevalence Rates'!$BD136,FALSE)","v":0},{"$f":"HLOOKUP(Calculations!$E$2,'Population 2016'!$C$3:$BC$249,'Population 2016'!BD136,FALSE)","v":0},0,{"$f":"HLOOKUP(Results!E$4,Targeting!$C$3:$F$249,Targeting!$G136,FALSE)","v":0},{"$f":"IF(AND(OR(Calculations!$E$2=\"Orkney Health Board\",Calculations!$E$2=\"Orkney Islands Local Authority\"),$F136=1),0,IF(AND(OR(Calculations!$E$2=\"Shetland Health Board\",Calculations!$E$2=\"Western Isles Health Board\",Calculations!$E$2=\"Shetland Islands Local Authority\",Calculations!$E$2=\"Eilean Siar Local Authority\"),OR($F136=1,$F136=5)),0,new_ci(VALUE(LEFT(Options!$B$24,2)),$C136,$E136,$F136,2016,$I136,1,$H136,$G136*$H136,Options!$B$8)))","v":{"$error":"#VALUE!"}},{"$f":"IF(AND(OR(Calculations!$E$2=\"Orkney Health Board\",Calculations!$E$2=\"Orkney Islands Local Authority\"),$F136=1),0,IF(AND(OR(Calculations!$E$2=\"Shetland Health Board\",Calculations!$E$2=\"Western Isles Health Board\",Calculations!$E$2=\"Shetland Islands Local Authority\",Calculations!$E$2=\"Eilean Siar Local Authority\"),OR($F136=1,$F136=5)),0,new_ci(VALUE(LEFT(Options!$B$24,2)),$C136,$E136,$F136,2016,$I136+$J136,1,$H136,$G136*$H136,Options!$B$8)))","v":{"$error":"#VALUE!"}},{"$f":"IF(AND(OR(Calculations!$E$2=\"Orkney Health Board\",Calculations!$E$2=\"Orkney Islands Local Authority\"),$F136=1),0,IF(AND(OR(Calculations!$E$2=\"Shetland Health Board\",Calculations!$E$2=\"Western Isles Health Board\",Calculations!$E$2=\"Shetland Islands Local Authority\",Calculations!$E$2=\"Eilean Siar Local Authority\"),OR($F136=1,$F136=5)),0,new_yllv2(VALUE(LEFT(Options!$B$24,2)),$C136,$D136,$E136,$F136,2016,$I136,1,$H136,$G136*$H136,Options!$B$8)))","v":{"$error":"#VALUE!"}},{"$f":"IF(AND(OR(Calculations!$E$2=\"Orkney Health Board\",Calculations!$E$2=\"Orkney Islands Local Authority\"),$F136=1),0,IF(AND(OR(Calculations!$E$2=\"Shetland Health Board\",Calculations!$E$2=\"Western Isles Health Board\",Calculations!$E$2=\"Shetland Islands Local Authority\",Calculations!$E$2=\"Eilean Siar Local Authority\"),OR($F136=1,$F136=5)),0,new_yllv2(VALUE(LEFT(Options!$B$24,2)),$C136,$D136,$E136,$F136,2016,$I136+$J136,1,$H136,$G136*$H136,Options!$B$8)))","v":{"$error":"#VALUE!"}},{"$f":"IF(AND(OR(Calculations!$E$2=\"Orkney Health Board\",Calculations!$E$2=\"Orkney Islands Local Authority\"),$F136=1),0,IF(AND(OR(Calculations!$E$2=\"Shetland Health Board\",Calculations!$E$2=\"Western Isles Health Board\",Calculations!$E$2=\"Shetland Islands Local Authority\",Calculations!$E$2=\"Eilean Siar Local Authority\"),OR($F136=1,$F136=5)),0,hosp_count(VALUE(LEFT(Options!$B$24,2)),$C136,$E136,$F136,2016,$I136,1,$H136,$G136*$H136, Options!$B$8)))","v":{"$error":"#NAME?"}},{"$f":"IF(AND(OR(Calculations!$E$2=\"Orkney Health Board\",Calculations!$E$2=\"Orkney Islands Local Authority\"),$F136=1),0,IF(AND(OR(Calculations!$E$2=\"Shetland Health Board\",Calculations!$E$2=\"Western Isles Health Board\",Calculations!$E$2=\"Shetland Islands Local Authority\",Calculations!$E$2=\"Eilean Siar Local Authority\"),OR($F136=1,$F136=5)),0,hosp_count(VALUE(LEFT(Options!$B$24,2)),$C136,$E136,$F136,2016,$I136+$J136,1,$H136,$G136*$H136, Options!$B$8)))","v":{"$error":"#NAME?"}},{"$f":"IF(AND(OR(Calculations!$E$2=\"Orkney Health Board\",Calculations!$E$2=\"Orkney Islands Local Authority\"),$F136=1),0,IF(AND(OR(Calculations!$E$2=\"Shetland Health Board\",Calculations!$E$2=\"Western Isles Health Board\",Calculations!$E$2=\"Shetland Islands Local Authority\",Calculations!$E$2=\"Eilean Siar Local Authority\"),OR($F136=1,$F136=5)),0,prem_mort(VALUE(LEFT(Options!$B$24,2)),$C136,$E136,$F136,2016,$I136,1,$H136,$G136*$H136,Options!$B$8)))","v":{"$error":"#VALUE!"}},{"$f":"IF(AND(OR(Calculations!$E$2=\"Orkney Health Board\",Calculations!$E$2=\"Orkney Islands Local Authority\"),$F136=1),0,IF(AND(OR(Calculations!$E$2=\"Shetland Health Board\",Calculations!$E$2=\"Western Isles Health Board\",Calculations!$E$2=\"Shetland Islands Local Authority\",Calculations!$E$2=\"Eilean Siar Local Authority\"),OR($F136=1,$F136=5)),0,prem_mort(VALUE(LEFT(Options!$B$24,2)),$C136,$E136,$F136,2016,$I136+$J136,1,$H136,$G136*$H136,Options!$B$8)))","v":{"$error":"#VALUE!"}},{"$error":"#VALUE!"},{"$error":"#VALUE!"},{"$error":"#VALUE!"},{"$error":"#VALUE!"},{"$error":"#NAME?"},{"$error":"#NAME?"},{"$error":"#VALUE!"},{"$error":"#VALUE!"},{"$error":"#VALUE!"},{"$error":"#VALUE!"},{"$error":"#VALUE!"},{"$error":"#VALUE!"},{"$error":"#NAME?"},{"$error":"#NAME?"},{"$error":"#VALUE!"},{"$error":"#VALUE!"},5000]
[null,"Female 5-9",6.9792794999999996,81.439279999999997,"female",3,{"$f":"HLOOKUP(Calculations!$E$2,'Prevalence Rates'!$C$3:$BC$249,'Prevalence Rates'!$BD137,FALSE)","v":0},{"$f":"HLOOKUP(Calculations!$E$2,'Population 2016'!$C$3:$BC$249,'Population 2016'!BD137,FALSE)","v":0},0,{"$f":"HLOOKUP(Results!E$4,Targeting!$C$3:$F$249,Targeting!$G137,FALSE)","v":0},{"$f":"IF(AND(OR(Calculations!$E$2=\"Orkney Health Board\",Calculations!$E$2=\"Orkney Islands Local Authority\"),$F137=1),0,IF(AND(OR(Calculations!$E$2=\"Shetland Health Board\",Calculations!$E$2=\"Western Isles Health Board\",Calculations!$E$2=\"Shetland Islands Local Authority\",Calculations!$E$2=\"Eilean Siar Local Authority\"),OR($F137=1,$F137=5)),0,new_ci(VALUE(LEFT(Options!$B$24,2)),$C137,$E137,$F137,2016,$I137,1,$H137,$G137*$H137,Options!$B$8)))","v":{"$error":"#VALUE!"}},{"$f":"IF(AND(OR(Calculations!$E$2=\"Orkney Health Board\",Calculations!$E$2=\"Orkney Islands Local Authority\"),$F137=1),0,IF(AND(OR(Calculations!$E$2=\"Shetland Health Board\",Calculations!$E$2=\"Western Isles Health Board\",Calculations!$E$2=\"Shetland Islands Local Authority\",Calculations!$E$2=\"Eilean Siar Local Authority\"),OR($F137=1,$F137=5)),0,new_ci(VALUE(LEFT(Options!$B$24,2)),$C137,$E137,$F137,2016,$I137+$J137,1,$H137,$G137*$H137,Options!$B$8)))","v":{"$error":"#VALUE!"}},{"$f":"IF(AND(OR(Calculations!$E$2=\"Orkney Health Board\",Calculations!$E$2=\"Orkney Islands Local Authority\"),$F137=1),0,IF(AND(OR(Calculations!$E$2=\"Shetland Health Board\",Calculations!$E$2=\"Western Isles Health Board\",Calculations!$E$2=\"Shetland Islands Local Authority\",Calculations!$E$2=\"Eilean Siar Local Authority\"),OR($F137=1,$F137=5)),0,new_yllv2(VALUE(LEFT(Options!$B$24,2)),$C137,$D137,$E137,$F137,2016,$I137,1,$H137,$G137*$H137,Options!$B$8)))","v":{"$error":"#VALUE!"}},{"$f":"IF(AND(OR(Calculations!$E$2=\"Orkney Health Board\",Calculations!$E$2=\"Orkney Islands Local Authority\"),$F137=1),0,IF(AND(OR(Calculations!$E$2=\"Shetland Health Board\",Calculations!$E$2=\"Western Isles Health Board\",Calculations!$E$2=\"Shetland Islands Local Authority\",Calculations!$E$2=\"Eilean Siar Local Authority\"),OR($F137=1,$F137=5)),0,new_yllv2(VALUE(LEFT(Options!$B$24,2)),$C137,$D137,$E137,$F137,2016,$I137+$J137,1,$H137,$G137*$H137,Options!$B$8)))","v":{"$error":"#VALUE!"}},{"$f":"IF(AND(OR(Calculations!$E$2=\"Orkney Health Board\",Calculations!$E$2=\"Orkney Islands Local Authority\"),$F137=1),0,IF(AND(OR(Calculations!$E$2=\"Shetland Health Board\",Calculations!$E$2=\"Western Isles Health Board\",Calculations!$E$2=\"Shetland Islands Local Authority\",Calculations!$E$2=\"Eilean Siar Local Authority\"),OR($F137=1,$F137=5)),0,hosp_count(VALUE(LEFT(Options!$B$24,2)),$C137,$E137,$F137,2016,$I137,1,$H137,$G137*$H137, Options!$B$8)))","v":{"$error":"#NAME?"}},{"$f":"IF(AND(OR(Calculations!$E$2=\"Orkney Health Board\",Calculations!$E$2=\"Orkney Islands Local Authority\"),$F137=1),0,IF(AND(OR(Calculations!$E$2=\"Shetland Health Board\",Calculations!$E$2=\"Western Isles Health Board\",Calculations!$E$2=\"Shetland Islands Local Authority\",Calculations!$E$2=\"Eilean Siar Local Authority\"),OR($F137=1,$F137=5)),0,hosp_count(VALUE(LEFT(Options!$B$24,2)),$C137,$E137,$F137,2016,$I137+$J137,1,$H137,$G137*$H137, Options!$B$8)))","v":{"$error":"#NAME?"}},{"$f":"IF(AND(OR(Calculations!$E$2=\"Orkney Health Board\",Calculations!$E$2=\"Orkney Islands Local Authority\"),$F137=1),0,IF(AND(OR(Calculations!$E$2=\"Shetland Health Board\",Calculations!$E$2=\"Western Isles Health Board\",Calculations!$E$2=\"Shetland Islands Local Authority\",Calculations!$E$2=\"Eilean Siar Local Authority\"),OR($F137=1,$F137=5)),0,prem_mort(VALUE(LEFT(Options!$B$24,2)),$C137,$E137,$F137,2016,$I137,1,$H137,$G137*$H137,Options!$B$8)))","v":{"$error":"#VALUE!"}},{"$f":"IF(AND(OR(Calculations!$E$2=\"Orkney Health Board\",Calculations!$E$2=\"Orkney Islands Local Authority\"),$F137=1),0,IF(AND(OR(Calculations!$E$2=\"Shetland Health Board\",Calculations!$E$2=\"Western Isles Health Board\",Calculations!$E$2=\"Shetland Islands Local Authority\",Calculations!$E$2=\"Eilean Siar Local Authority\"),OR($F137=1,$F137=5)),0,prem_mort(VALUE(LEFT(Options!$B$24,2)),$C137,$E137,$F137,2016,$I137+$J137,1,$H137,$G137*$H137,Options!$B$8)))","v":{"$error":"#VALUE!"}},{"$error":"#VALUE!"},{"$error":"#VALUE!"},{"$error":"#VALUE!"},{"$error":"#VALUE!"},{"$error":"#NAME?"},{"$error":"#NAME?"},{"$error":"#VALUE!"},{"$error":"#VALUE!"},{"$error":"#VALUE!"},{"$error":"#VALUE!"},{"$error":"#VALUE!"},{"$error":"#VALUE!"},{"$error":"#NAME?"},{"$error":"#NAME?"},{"$error":"#VALUE!"},{"$error":"#VALUE!"},5500]
[null,"Female 10-15",12.478312000000001,81.948309999999992,"female",3,{"$f":"HLOOKUP(Calculations!$E$2,'Prevalence Rates'!$C$3:$BC$249,'Prevalence Rates'!$BD138,FALSE)","v":0},{"$f":"HLOOKUP(Calculations!$E$2,'Population 2016'!$C$3:$BC$249,'Population 2016'!BD138,FALSE)","v":0},0,{"$f":"HLOOKUP(Results!E$4,Targeting!$C$3:$F$249,Targeting!$G138,FALSE)","v":0},{"$f":"IF(AND(OR(Calculations!$E$2=\"Orkney Health Board\",Calculations!$E$2=\"Orkney Islands Local Authority\"),$F138=1),0,IF(AND(OR(Calculations!$E$2=\"Shetland Health Board\",Calculations!$E$2=\"Western Isles Health Board\",Calculations!$E$2=\"Shetland Islands Local Authority\",Calculations!$E$2=\"Eilean Siar Local Authority\"),OR($F138=1,$F138=5)),0,new_ci(VALUE(LEFT(Options!$B$24,2)),$C138,$E138,$F138,2016,$I138,1,$H138,$G138*$H138,Options!$B$8)))","v":{"$error":"#VALUE!"}},{"$f":"IF(AND(OR(Calculations!$E$2=\"Orkney Health Board\",Calculations!$E$2=\"Orkney Islands Local Authority\"),$F138=1),0,IF(AND(OR(Calculations!$E$2=\"Shetland Health Board\",Calculations!$E$2=\"Western Isles Health Board\",Calculations!$E$2=\"Shetland Islands Local Authority\",Calculations!$E$2=\"Eilean Siar Local Authority\"),OR($F138=1,$F138=5)),0,new_ci(VALUE(LEFT(Options!$B$24,2)),$C138,$E138,$F138,2016,$I138+$J138,1,$H138,$G138*$H138,Options!$B$8)))","v":{"$error":"#VALUE!"}},{"$f":"IF(AND(OR(Calculations!$E$2=\"Orkney Health Board\",Calculations!$E$2=\"Orkney Islands Local Authority\"),$F138=1),0,IF(AND(OR(Calculations!$E$2=\"Shetland Health Board\",Calculations!$E$2=\"Western Isles Health Board\",Calculations!$E$2=\"Shetland Islands Local Authority\",Calculations!$E$2=\"Eilean Siar Local Authority\"),OR($F138=1,$F138=5)),0,new_yllv2(VALUE(LEFT(Options!$B$24,2)),$C138,$D138,$E138,$F138,2016,$I138,1,$H138,$G138*$H138,Options!$B$8)))","v":{"$error":"#VALUE!"}},{"$f":"IF(AND(OR(Calculations!$E$2=\"Orkney Health Board\",Calculations!$E$2=\"Orkney Islands Local Authority\"),$F138=1),0,IF(AND(OR(Calculations!$E$2=\"Shetland Health Board\",Calculations!$E$2=\"Western Isles Health Board\",Calculations!$E$2=\"Shetland Islands Local Authority\",Calculations!$E$2=\"Eilean Siar Local Authority\"),OR($F138=1,$F138=5)),0,new_yllv2(VALUE(LEFT(Options!$B$24,2)),$C138,$D138,$E138,$F138,2016,$I138+$J138,1,$H138,$G138*$H138,Options!$B$8)))","v":{"$error":"#VALUE!"}},{"$f":"IF(AND(OR(Calculations!$E$2=\"Orkney Health Board\",Calculations!$E$2=\"Orkney Islands Local Authority\"),$F138=1),0,IF(AND(OR(Calculations!$E$2=\"Shetland Health Board\",Calculations!$E$2=\"Western Isles Health Board\",Calculations!$E$2=\"Shetland Islands Local Authority\",Calculations!$E$2=\"Eilean Siar Local Authority\"),OR($F138=1,$F138=5)),0,hosp_count(VALUE(LEFT(Options!$B$24,2)),$C138,$E138,$F138,2016,$I138,1,$H138,$G138*$H138, Options!$B$8)))","v":{"$error":"#NAME?"}},{"$f":"IF(AND(OR(Calculations!$E$2=\"Orkney Health Board\",Calculations!$E$2=\"Orkney Islands Local Authority\"),$F138=1),0,IF(AND(OR(Calculations!$E$2=\"Shetland Health Board\",Calculations!$E$2=\"Western Isles Health Board\",Calculations!$E$2=\"Shetland Islands Local Authority\",Calculations!$E$2=\"Eilean Siar Local Authority\"),OR($F138=1,$F138=5)),0,hosp_count(VALUE(LEFT(Options!$B$24,2)),$C138,$E138,$F138,2016,$I138+$J138,1,$H138,$G138*$H138, Options!$B$8)))","v":{"$error":"#NAME?"}},{"$f":"IF(AND(OR(Calculations!$E$2=\"Orkney Health Board\",Calculations!$E$2=\"Orkney Islands Local Authority\"),$F138=1),0,IF(AND(OR(Calculations!$E$2=\"Shetland Health Board\",Calculations!$E$2=\"Western Isles Health Board\",Calculations!$E$2=\"Shetland Islands Local Authority\",Calculations!$E$2=\"Eilean Siar Local Authority\"),OR($F138=1,$F138=5)),0,prem_mort(VALUE(LEFT(Options!$B$24,2)),$C138,$E138,$F138,2016,$I138,1,$H138,$G138*$H138,Options!$B$8)))","v":{"$error":"#VALUE!"}},{"$f":"IF(AND(OR(Calculations!$E$2=\"Orkney Health Board\",Calculations!$E$2=\"Orkney Islands Local Authority\"),$F138=1),0,IF(AND(OR(Calculations!$E$2=\"Shetland Health Board\",Calculations!$E$2=\"Western Isles Health Board\",Calculations!$E$2=\"Shetland Islands Local Authority\",Calculations!$E$2=\"Eilean Siar Local Authority\"),OR($F138=1,$F138=5)),0,prem_mort(VALUE(LEFT(Options!$B$24,2)),$C138,$E138,$F138,2016,$I138+$J138,1,$H138,$G138*$H138,Options!$B$8)))","v":{"$error":"#VALUE!"}},{"$error":"#VALUE!"},{"$error":"#VALUE!"},{"$error":"#VALUE!"},{"$error":"#VALUE!"},{"$error":"#NAME?"},{"$error":"#NAME?"},{"$error":"#VALUE!"},{"$error":"#VALUE!"},{"$error":"#VALUE!"},{"$error":"#VALUE!"},{"$error":"#VALUE!"},{"$error":"#VALUE!"},{"$error":"#NAME?"},{"$error":"#NAME?"},{"$error":"#VALUE!"},{"$error":"#VALUE!"},6600]
["SIMD Q3","Female 16-19",17.570053000000001,81.100049999999996,"female",3,{"$f":"HLOOKUP(Calculations!$E$2,'Prevalence Rates'!$C$3:$BC$249,'Prevalence Rates'!$BD139,FALSE)","v":0.11700000000000003},{"$f":"HLOOKUP(Calculations!$E$2,'Population 2016'!$C$3:$BC$249,'Population 2016'!BD139,FALSE)","v":22864},0,{"$f":"HLOOKUP(Results!E$4,Targeting!$C$3:$F$249,Targeting!$G139,FALSE)","v":3754},{"$f":"IF(AND(OR(Calculations!$E$2=\"Orkney Health Board\",Calculations!$E$2=\"Orkney Islands Local Authority\"),$F139=1),0,IF(AND(OR(Calculations!$E$2=\"Shetland Health Board\",Calculations!$E$2=\"Western Isles Health Board\",Calculations!$E$2=\"Shetland Islands Local Authority\",Calculations!$E$2=\"Eilean Siar Local Authority\"),OR($F139=1,$F139=5)),0,new_ci(VALUE(LEFT(Options!$B$24,2)),$C139,$E139,$F139,2016,$I139,1,$H139,$G139*$H139,Options!$B$8)))","v":4.1158378210000004},{"$f":"IF(AND(OR(Calculations!$E$2=\"Orkney Health Board\",Calculations!$E$2=\"Orkney Islands Local Authority\"),$F139=1),0,IF(AND(OR(Calculations!$E$2=\"Shetland Health Board\",Calculations!$E$2=\"Western Isles Health Board\",Calculations!$E$2=\"Shetland Islands Local Authority\",Calculations!$E$2=\"Eilean Siar Local Authority\"),OR($F139=1,$F139=5)),0,new_ci(VALUE(LEFT(Options!$B$24,2)),$C139,$E139,$F139,2016,$I139+$J139,1,$H139,$G139*$H139,Options!$B$8)))","v":4.0802052283999997},{"$f":"IF(AND(OR(Calculations!$E$2=\"Orkney Health Board\",Calculations!$E$2=\"Orkney Islands Local Authority\"),$F139=1),0,IF(AND(OR(Calculations!$E$2=\"Shetland Health Board\",Calculations!$E$2=\"Western Isles Health Board\",Calculations!$E$2=\"Shetland Islands Local Authority\",Calculations!$E$2=\"Eilean Siar Local Authority\"),OR($F139=1,$F139=5)),0,new_yllv2(VALUE(LEFT(Options!$B$24,2)),$C139,$D139,$E139,$F139,2016,$I139,1,$H139,$G139*$H139,Options!$B$8)))","v":257.36332659959999},{"$f":"IF(AND(OR(Calculations!$E$2=\"Orkney Health Board\",Calculations!$E$2=\"Orkney Islands Local Authority\"),$F139=1),0,IF(AND(OR(Calculations!$E$2=\"Shetland Health Board\",Calculations!$E$2=\"Western Isles Health Board\",Calculations!$E$2=\"Shetland Islands Local Authority\",Calculations!$E$2=\"Eilean Siar Local Authority\"),OR($F139=1,$F139=5)),0,new_yllv2(VALUE(LEFT(Options!$B$24,2)),$C139,$D139,$E139,$F139,2016,$I139+$J139,1,$H139,$G139*$H139,Options!$B$8)))","v":255.1352206912},{"$f":"IF(AND(OR(Calculations!$E$2=\"Orkney Health Board\",Calculations!$E$2=\"Orkney Islands Local Authority\"),$F139=1),0,IF(AND(OR(Calculations!$E$2=\"Shetland Health Board\",Calculations!$E$2=\"Western Isles Health Board\",Calculations!$E$2=\"Shetland Islands Local Authority\",Calculations!$E$2=\"Eilean Siar Local Authority\"),OR($F139=1,$F139=5)),0,hosp_count(VALUE(LEFT(Options!$B$24,2)),$C139,$E139,$F139,2016,$I139,1,$H139,$G139*$H139, Options!$B$8)))","v":{"$error":"#NAME?"}},{"$f":"IF(AND(OR(Calculations!$E$2=\"Orkney Health Board\",Calculations!$E$2=\"Orkney Islands Local Authority\"),$F139=1),0,IF(AND(OR(Calculations!$E$2=\"Shetland Health Board\",Calculations!$E$2=\"Western Isles Health Board\",Calculations!$E$2=\"Shetland Islands Local Authority\",Calculations!$E$2=\"Eilean Siar Local Authority\"),OR($F139=1,$F139=5)),0,hosp_count(VALUE(LEFT(Options!$B$24,2)),$C139,$E139,$F139,2016,$I139+$J139,1,$H139,$G139*$H139, Options!$B$8)))","v":{"$error":"#NAME?"}},{"$f":"IF(AND(OR(Calculations!$E$2=\"Orkney Health Board\",Calculations!$E$2=\"Orkney Islands Local Authority\"),$F139=1),0,IF(AND(OR(Calculations!$E$2=\"Shetland Health Board\",Calculations!$E$2=\"Western Isles Health Board\",Calculations!$E$2=\"Shetland Islands Local Authority\",Calculations!$E$2=\"Eilean Siar Local Authority\"),OR($F139=1,$F139=5)),0,prem_mort(VALUE(LEFT(Options!$B$24,2)),$C139,$E139,$F139,2016,$I139,1,$H139,$G139*$H139,Options!$B$8)))","v":4.1158378210000004},{"$f":"IF(AND(OR(Calculations!$E$2=\"Orkney Health Board\",Calculations!$E$2=\"Orkney Islands Local Authority\"),$F139=1),0,IF(AND(OR(Calculations!$E$2=\"Shetland Health Board\",Calculations!$E$2=\"Western Isles Health Board\",Calculations!$E$2=\"Shetland Islands Local Authority\",Calculations!$E$2=\"Eilean Siar Local Authority\"),OR($F139=1,$F139=5)),0,prem_mort(VALUE(LEFT(Options!$B$24,2)),$C139,$E139,$F139,2016,$I139+$J139,1,$H139,$G139*$H139,Options!$B$8)))","v":4.0802052283999997},18.001390049860042,17.845544210986702,1125.6268658135059,1115.8818259762072,{"$error":"#NAME?"},{"$error":"#NAME?"},18.001390049860042,17.845544210986702,79206.116219384188,78520.394528341494,4952758.2095794259,4909880.0342953121,{"$error":"#NAME?"},{"$error":"#NAME?"},79206.116219384188,78520.394528341494,4400]
[null,"Female 20-24",22.077057,81.667060000000006,"female",3,{"$f":"HLOOKUP(Calculations!$E$2,'Prevalence Rates'!$C$3:$BC$249,'Prevalence Rates'!$BD140,FALSE)","v":0.11700000000000003},{"$f":"HLOOKUP(Calculations!$E$2,'Population 2016'!$C$3:$BC$249,'Population 2016'!BD140,FALSE)","v":34910},0,{"$f":"HLOOKUP(Results!E$4,Targeting!$C$3:$F$249,Targeting!$G140,FALSE)","v":5732},{"$f":"IF(AND(OR(Calculations!$E$2=\"Orkney Health Board\",Calculations!$E$2=\"Orkney Islands Local Authority\"),$F140=1),0,IF(AND(OR(Calculations!$E$2=\"Shetland Health Board\",Calculations!$E$2=\"Western Isles Health Board\",Calculations!$E$2=\"Shetland Islands Local Authority\",Calculations!$E$2=\"Eilean Siar Local Authority\"),OR($F140=1,$F140=5)),0,new_ci(VALUE(LEFT(Options!$B$24,2)),$C140,$E140,$F140,2016,$I140,1,$H140,$G140*$H140,Options!$B$8)))","v":9.2197658611000008},{"$f":"IF(AND(OR(Calculations!$E$2=\"Orkney Health Board\",Calculations!$E$2=\"Orkney Islands Local Authority\"),$F140=1),0,IF(AND(OR(Calculations!$E$2=\"Shetland Health Board\",Calculations!$E$2=\"Western Isles Health Board\",Calculations!$E$2=\"Shetland Islands Local Authority\",Calculations!$E$2=\"Eilean Siar Local Authority\"),OR($F140=1,$F140=5)),0,new_ci(VALUE(LEFT(Options!$B$24,2)),$C140,$E140,$F140,2016,$I140+$J140,1,$H140,$G140*$H140,Options!$B$8)))","v":9.1399494807000004},{"$f":"IF(AND(OR(Calculations!$E$2=\"Orkney Health Board\",Calculations!$E$2=\"Orkney Islands Local Authority\"),$F140=1),0,IF(AND(OR(Calculations!$E$2=\"Shetland Health Board\",Calculations!$E$2=\"Western Isles Health Board\",Calculations!$E$2=\"Shetland Islands Local Authority\",Calculations!$E$2=\"Eilean Siar Local Authority\"),OR($F140=1,$F140=5)),0,new_yllv2(VALUE(LEFT(Options!$B$24,2)),$C140,$D140,$E140,$F140,2016,$I140,1,$H140,$G140*$H140,Options!$B$8)))","v":540.18610946110005},{"$f":"IF(AND(OR(Calculations!$E$2=\"Orkney Health Board\",Calculations!$E$2=\"Orkney Islands Local Authority\"),$F140=1),0,IF(AND(OR(Calculations!$E$2=\"Shetland Health Board\",Calculations!$E$2=\"Western Isles Health Board\",Calculations!$E$2=\"Shetland Islands Local Authority\",Calculations!$E$2=\"Eilean Siar Local Authority\"),OR($F140=1,$F140=5)),0,new_yllv2(VALUE(LEFT(Options!$B$24,2)),$C140,$D140,$E140,$F140,2016,$I140+$J140,1,$H140,$G140*$H140,Options!$B$8)))","v":535.50966749409997},{"$f":"IF(AND(OR(Calculations!$E$2=\"Orkney Health Board\",Calculations!$E$2=\"Orkney Islands Local Authority\"),$F140=1),0,IF(AND(OR(Calculations!$E$2=\"Shetland Health Board\",Calculations!$E$2=\"Western Isles Health Board\",Calculations!$E$2=\"Shetland Islands Local Authority\",Calculations!$E$2=\"Eilean Siar Local Authority\"),OR($F140=1,$F140=5)),0,hosp_count(VALUE(LEFT(Options!$B$24,2)),$C140,$E140,$F140,2016,$I140,1,$H140,$G140*$H140, Options!$B$8)))","v":{"$error":"#NAME?"}},{"$f":"IF(AND(OR(Calculations!$E$2=\"Orkney Health Board\",Calculations!$E$2=\"Orkney Islands Local Authority\"),$F140=1),0,IF(AND(OR(Calculations!$E$2=\"Shetland Health Board\",Calculations!$E$2=\"Western Isles Health Board\",Calculations!$E$2=\"Shetland Islands Local Authority\",Calculations!$E$2=\"Eilean Siar Local Authority\"),OR($F140=1,$F140=5)),0,hosp_count(VALUE(LEFT(Options!$B$24,2)),$C140,$E140,$F140,2016,$I140+$J140,1,$H140,$G140*$H140, Options!$B$8)))","v":{"$error":"#NAME?"}},{"$f":"IF(AND(OR(Calculations!$E$2=\"Orkney Health Board\",Calculations!$E$2=\"Orkney Islands Local Authority\"),$F140=1),0,IF(AND(OR(Calculations!$E$2=\"Shetland Health Board\",Calculations!$E$2=\"Western Isles Health Board\",Calculations!$E$2=\"Shetland Islands Local Authority\",Calculations!$E$2=\"Eilean Siar Local Authority\"),OR($F140=1,$F140=5)),0,prem_mort(VALUE(LEFT(Options!$B$24,2)),$C140,$E140,$F140,2016,$I140,1,$H140,$G140*$H140,Options!$B$8)))","v":9.2197658611000008},{"$f":"IF(AND(OR(Calculations!$E$2=\"Orkney Health Board\",Calculations!$E$2=\"Orkney Islands Local Authority\"),$F140=1),0,IF(AND(OR(Calculations!$E$2=\"Shetland Health Board\",Calculations!$E$2=\"Western Isles Health Board\",Calculations!$E$2=\"Shetland Islands Local Authority\",Calculations!$E$2=\"Eilean Siar Local Authority\"),OR($F140=1,$F140=5)),0,prem_mort(VALUE(LEFT(Options!$B$24,2)),$C140,$E140,$F140,2016,$I140+$J140,1,$H140,$G140*$H140,Options!$B$8)))","v":9.1399494807000004},26.410099859925523,26.181465140933831,1547.3678300232025,1533.9721211518188,{"$error":"#NAME?"},{"$error":"#NAME?"},26.410099859925523,26.181465140933831,158460.59915955315,157088.79084560298,9284206.9801392145,9203832.7269109134,{"$error":"#NAME?"},{"$error":"#NAME?"},158460.59915955315,157088.79084560298,6000]
[null,"Female 25-29",26.975186999999998,81.645189999999999,"female",3,{"$f":"HLOOKUP(Calculations!$E$2,'Prevalence Rates'!$C$3:$BC$249,'Prevalence Rates'!$BD141,FALSE)","v":0.115},{"$f":"HLOOKUP(Calculations!$E$2,'Population 2016'!$C$3:$BC$249,'Population 2016'!BD141,FALSE)","v":36432},0,{"$f":"HLOOKUP(Results!E$4,Targeting!$C$3:$F$249,Targeting!$G141,FALSE)","v":5982},{"$f":"IF(AND(OR(Calculations!$E$2=\"Orkney Health Board\",Calculations!$E$2=\"Orkney Islands Local Authority\"),$F141=1),0,IF(AND(OR(Calculations!$E$2=\"Shetland Health Board\",Calculations!$E$2=\"Western Isles Health Board\",Calculations!$E$2=\"Shetland Islands Local Authority\",Calculations!$E$2=\"Eilean Siar Local Authority\"),OR($F141=1,$F141=5)),0,new_ci(VALUE(LEFT(Options!$B$24,2)),$C141,$E141,$F141,2016,$I141,1,$H141,$G141*$H141,Options!$B$8)))","v":14.593287262},{"$f":"IF(AND(OR(Calculations!$E$2=\"Orkney Health Board\",Calculations!$E$2=\"Orkney Islands Local Authority\"),$F141=1),0,IF(AND(OR(Calculations!$E$2=\"Shetland Health Board\",Calculations!$E$2=\"Western Isles Health Board\",Calculations!$E$2=\"Shetland Islands Local Authority\",Calculations!$E$2=\"Eilean Siar Local Authority\"),OR($F141=1,$F141=5)),0,new_ci(VALUE(LEFT(Options!$B$24,2)),$C141,$E141,$F141,2016,$I141+$J141,1,$H141,$G141*$H141,Options!$B$8)))","v":14.466860683},{"$f":"IF(AND(OR(Calculations!$E$2=\"Orkney Health Board\",Calculations!$E$2=\"Orkney Islands Local Authority\"),$F141=1),0,IF(AND(OR(Calculations!$E$2=\"Shetland Health Board\",Calculations!$E$2=\"Western Isles Health Board\",Calculations!$E$2=\"Shetland Islands Local Authority\",Calculations!$E$2=\"Eilean Siar Local Authority\"),OR($F141=1,$F141=5)),0,new_yllv2(VALUE(LEFT(Options!$B$24,2)),$C141,$D141,$E141,$F141,2016,$I141,1,$H141,$G141*$H141,Options!$B$8)))","v":783.22177113140003},{"$f":"IF(AND(OR(Calculations!$E$2=\"Orkney Health Board\",Calculations!$E$2=\"Orkney Islands Local Authority\"),$F141=1),0,IF(AND(OR(Calculations!$E$2=\"Shetland Health Board\",Calculations!$E$2=\"Western Isles Health Board\",Calculations!$E$2=\"Shetland Islands Local Authority\",Calculations!$E$2=\"Eilean Siar Local Authority\"),OR($F141=1,$F141=5)),0,new_yllv2(VALUE(LEFT(Options!$B$24,2)),$C141,$D141,$E141,$F141,2016,$I141+$J141,1,$H141,$G141*$H141,Options!$B$8)))","v":776.43645625720001},{"$f":"IF(AND(OR(Calculations!$E$2=\"Orkney Health Board\",Calculations!$E$2=\"Orkney Islands Local Authority\"),$F141=1),0,IF(AND(OR(Calculations!$E$2=\"Shetland Health Board\",Calculations!$E$2=\"Western Isles Health Board\",Calculations!$E$2=\"Shetland Islands Local Authority\",Calculations!$E$2=\"Eilean Siar Local Authority\"),OR($F141=1,$F141=5)),0,hosp_count(VALUE(LEFT(Options!$B$24,2)),$C141,$E141,$F141,2016,$I141,1,$H141,$G141*$H141, Options!$B$8)))","v":{"$error":"#NAME?"}},{"$f":"IF(AND(OR(Calculations!$E$2=\"Orkney Health Board\",Calculations!$E$2=\"Orkney Islands Local Authority\"),$F141=1),0,IF(AND(OR(Calculations!$E$2=\"Shetland Health Board\",Calculations!$E$2=\"Western Isles Health Board\",Calculations!$E$2=\"Shetland Islands Local Authority\",Calculations!$E$2=\"Eilean Siar Local Authority\"),OR($F141=1,$F141=5)),0,hosp_count(VALUE(LEFT(Options!$B$24,2)),$C141,$E141,$F141,2016,$I141+$J141,1,$H141,$G141*$H141, Options!$B$8)))","v":{"$error":"#NAME?"}},{"$f":"IF(AND(OR(Calculations!$E$2=\"Orkney Health Board\",Calculations!$E$2=\"Orkney Islands Local Authority\"),$F141=1),0,IF(AND(OR(Calculations!$E$2=\"Shetland Health Board\",Calculations!$E$2=\"Western Isles Health Board\",Calculations!$E$2=\"Shetland Islands Local Authority\",Calculations!$E$2=\"Eilean Siar Local Authority\"),OR($F141=1,$F141=5)),0,prem_mort(VALUE(LEFT(Options!$B$24,2)),$C141,$E141,$F141,2016,$I141,1,$H141,$G141*$H141,Options!$B$8)))","v":14.593287262},{"$f":"IF(AND(OR(Calculations!$E$2=\"Orkney Health Board\",Calculations!$E$2=\"Orkney Islands Local Authority\"),$F141=1),0,IF(AND(OR(Calculations!$E$2=\"Shetland Health Board\",Calculations!$E$2=\"Western Isles Health Board\",Calculations!$E$2=\"Shetland Islands Local Authority\",Calculations!$E$2=\"Eilean Siar Local Authority\"),OR($F141=1,$F141=5)),0,prem_mort(VALUE(LEFT(Options!$B$24,2)),$C141,$E141,$F141,2016,$I141+$J141,1,$H141,$G141*$H141,Options!$B$8)))","v":14.466860683},40.056234250109796,39.709213556763281,2149.8182123720903,2131.1936107191477,{"$error":"#NAME?"},{"$error":"#NAME?"},40.056234250109796,39.709213556763281,240337.40550065879,238255.28134057968,12898909.274232542,12787161.664314887,{"$error":"#NAME?"},{"$error":"#NAME?"},240337.40550065879,238255.28134057968,6000]
[null,"Female 30-34",31.999904999999998,81.799899999999994,"female",3,{"$f":"HLOOKUP(Calculations!$E$2,'Prevalence Rates'!$C$3:$BC$249,'Prevalence Rates'!$BD142,FALSE)","v":0.115},{"$f":"HLOOKUP(Calculations!$E$2,'Population 2016'!$C$3:$BC$249,'Population 2016'!BD142,FALSE)","v":34795},0,{"$f":"HLOOKUP(Results!E$4,Targeting!$C$3:$F$249,Targeting!$G142,FALSE)","v":5713},{"$f":"IF(AND(OR(Calculations!$E$2=\"Orkney Health Board\",Calculations!$E$2=\"Orkney Islands Local Authority\"),$F142=1),0,IF(AND(OR(Calculations!$E$2=\"Shetland Health Board\",Calculations!$E$2=\"Western Isles Health Board\",Calculations!$E$2=\"Shetland Islands Local Authority\",Calculations!$E$2=\"Eilean Siar Local Authority\"),OR($F142=1,$F142=5)),0,new_ci(VALUE(LEFT(Options!$B$24,2)),$C142,$E142,$F142,2016,$I142,1,$H142,$G142*$H142,Options!$B$8)))","v":21.367120003899998},{"$f":"IF(AND(OR(Calculations!$E$2=\"Orkney Health Board\",Calculations!$E$2=\"Orkney Islands Local Authority\"),$F142=1),0,IF(AND(OR(Calculations!$E$2=\"Shetland Health Board\",Calculations!$E$2=\"Western Isles Health Board\",Calculations!$E$2=\"Shetland Islands Local Authority\",Calculations!$E$2=\"Eilean Siar Local Authority\"),OR($F142=1,$F142=5)),0,new_ci(VALUE(LEFT(Options!$B$24,2)),$C142,$E142,$F142,2016,$I142+$J142,1,$H142,$G142*$H142,Options!$B$8)))","v":21.182049654099998},{"$f":"IF(AND(OR(Calculations!$E$2=\"Orkney Health Board\",Calculations!$E$2=\"Orkney Islands Local Authority\"),$F142=1),0,IF(AND(OR(Calculations!$E$2=\"Shetland Health Board\",Calculations!$E$2=\"Western Isles Health Board\",Calculations!$E$2=\"Shetland Islands Local Authority\",Calculations!$E$2=\"Eilean Siar Local Authority\"),OR($F142=1,$F142=5)),0,new_yllv2(VALUE(LEFT(Options!$B$24,2)),$C142,$D142,$E142,$F142,2016,$I142,1,$H142,$G142*$H142,Options!$B$8)))","v":1042.7153493547},{"$f":"IF(AND(OR(Calculations!$E$2=\"Orkney Health Board\",Calculations!$E$2=\"Orkney Islands Local Authority\"),$F142=1),0,IF(AND(OR(Calculations!$E$2=\"Shetland Health Board\",Calculations!$E$2=\"Western Isles Health Board\",Calculations!$E$2=\"Shetland Islands Local Authority\",Calculations!$E$2=\"Eilean Siar Local Authority\"),OR($F142=1,$F142=5)),0,new_yllv2(VALUE(LEFT(Options!$B$24,2)),$C142,$D142,$E142,$F142,2016,$I142+$J142,1,$H142,$G142*$H142,Options!$B$8)))","v":1033.6839172098},{"$f":"IF(AND(OR(Calculations!$E$2=\"Orkney Health Board\",Calculations!$E$2=\"Orkney Islands Local Authority\"),$F142=1),0,IF(AND(OR(Calculations!$E$2=\"Shetland Health Board\",Calculations!$E$2=\"Western Isles Health Board\",Calculations!$E$2=\"Shetland Islands Local Authority\",Calculations!$E$2=\"Eilean Siar Local Authority\"),OR($F142=1,$F142=5)),0,hosp_count(VALUE(LEFT(Options!$B$24,2)),$C142,$E142,$F142,2016,$I142,1,$H142,$G142*$H142, Options!$B$8)))","v":{"$error":"#NAME?"}},{"$f":"IF(AND(OR(Calculations!$E$2=\"Orkney Health Board\",Calculations!$E$2=\"Orkney Islands Local Authority\"),$F142=1),0,IF(AND(OR(Calculations!$E$2=\"Shetland Health Board\",Calculations!$E$2=\"Western Isles Health Board\",Calculations!$E$2=\"Shetland Islands Local Authority\",Calculations!$E$2=\"Eilean Siar Local Authority\"),OR($F142=1,$F142=5)),0,hosp_count(VALUE(LEFT(Options!$B$24,2)),$C142,$E142,$F142,2016,$I142+$J142,1,$H142,$G142*$H142, Options!$B$8)))","v":{"$error":"#NAME?"}},{"$f":"IF(AND(OR(Calculations!$E$2=\"Orkney Health Board\",Calculations!$E$2=\"Orkney Islands Local Authority\"),$F142=1),0,IF(AND(OR(Calculations!$E$2=\"Shetland Health Board\",Calculations!$E$2=\"Western Isles Health Board\",Calculations!$E$2=\"Shetland Islands Local Authority\",Calculations!$E$2=\"Eilean Siar Local Authority\"),OR($F142=1,$F142=5)),0,prem_mort(VALUE(LEFT(Options!$B$24,2)),$C142,$E142,$F142,2016,$I142,1,$H142,$G142*$H142,Options!$B$8)))","v":21.367120003899998},{"$f":"IF(AND(OR(Calculations!$E$2=\"Orkney Health Board\",Calculations!$E$2=\"Orkney Islands Local Authority\"),$F142=1),0,IF(AND(OR(Calculations!$E$2=\"Shetland Health Board\",Calculations!$E$2=\"Western Isles Health Board\",Calculations!$E$2=\"Shetland Islands Local Authority\",Calculations!$E$2=\"Eilean Siar Local Authority\"),OR($F142=1,$F142=5)),0,prem_mort(VALUE(LEFT(Options!$B$24,2)),$C142,$E142,$F142,2016,$I142+$J142,1,$H142,$G142*$H142,Options!$B$8)))","v":21.182049654099998},61.408593199885033,60.876705429228331,2996.7390411113665,2970.7829205627245,{"$error":"#NAME?"},{"$error":"#NAME?"},61.408593199885033,60.876705429228331,399155.85579925269,395698.58528998413,19478803.767223883,19310088.98365771,{"$error":"#NAME?"},{"$error":"#NAME?"},399155.85579925269,395698.58528998413,6500]
[null,"Female 35-39",36.918118,81.898120000000006,"female",3,{"$f":"HLOOKUP(Calculations!$E$2,'Prevalence Rates'!$C$3:$BC$249,'Prevalence Rates'!$BD143,FALSE)","v":0.22799999999999998},{"$f":"HLOOKUP(Calculations!$E$2,'Population 2016'!$C$3:$BC$249,'Population 2016'!BD143,FALSE)","v":31957},0,{"$f":"HLOOKUP(Results!E$4,Targeting!$C$3:$F$249,Targeting!$G143,FALSE)","v":5247},{"$f":"IF(AND(OR(Calculations!$E$2=\"Orkney Health Board\",Calculations!$E$2=\"Orkney Islands Local Authority\"),$F143=1),0,IF(AND(OR(Calculations!$E$2=\"Shetland Health Board\",Calculations!$E$2=\"Western Isles Health Board\",Calculations!$E$2=\"Shetland Islands Local Authority\",Calculations!$E$2=\"Eilean Siar Local Authority\"),OR($F143=1,$F143=5)),0,new_ci(VALUE(LEFT(Options!$B$24,2)),$C143,$E143,$F143,2016,$I143,1,$H143,$G143*$H143,Options!$B$8)))","v":29.812247322899999},{"$f":"IF(AND(OR(Calculations!$E$2=\"Orkney Health Board\",Calculations!$E$2=\"Orkney Islands Local Authority\"),$F143=1),0,IF(AND(OR(Calculations!$E$2=\"Shetland Health Board\",Calculations!$E$2=\"Western Isles Health Board\",Calculations!$E$2=\"Shetland Islands Local Authority\",Calculations!$E$2=\"Eilean Siar Local Authority\"),OR($F143=1,$F143=5)),0,new_ci(VALUE(LEFT(Options!$B$24,2)),$C143,$E143,$F143,2016,$I143+$J143,1,$H143,$G143*$H143,Options!$B$8)))","v":29.565483536399999},{"$f":"IF(AND(OR(Calculations!$E$2=\"Orkney Health Board\",Calculations!$E$2=\"Orkney Islands Local Authority\"),$F143=1),0,IF(AND(OR(Calculations!$E$2=\"Shetland Health Board\",Calculations!$E$2=\"Western Isles Health Board\",Calculations!$E$2=\"Shetland Islands Local Authority\",Calculations!$E$2=\"Eilean Siar Local Authority\"),OR($F143=1,$F143=5)),0,new_yllv2(VALUE(LEFT(Options!$B$24,2)),$C143,$D143,$E143,$F143,2016,$I143,1,$H143,$G143*$H143,Options!$B$8)))","v":1311.1426968855999},{"$f":"IF(AND(OR(Calculations!$E$2=\"Orkney Health Board\",Calculations!$E$2=\"Orkney Islands Local Authority\"),$F143=1),0,IF(AND(OR(Calculations!$E$2=\"Shetland Health Board\",Calculations!$E$2=\"Western Isles Health Board\",Calculations!$E$2=\"Shetland Islands Local Authority\",Calculations!$E$2=\"Eilean Siar Local Authority\"),OR($F143=1,$F143=5)),0,new_yllv2(VALUE(LEFT(Options!$B$24,2)),$C143,$D143,$E143,$F143,2016,$I143+$J143,1,$H143,$G143*$H143,Options!$B$8)))","v":1300.2900250618},{"$f":"IF(AND(OR(Calculations!$E$2=\"Orkney Health Board\",Calculations!$E$2=\"Orkney Islands Local Authority\"),$F143=1),0,IF(AND(OR(Calculations!$E$2=\"Shetland Health Board\",Calculations!$E$2=\"Western Isles Health Board\",Calculations!$E$2=\"Shetland Islands Local Authority\",Calculations!$E$2=\"Eilean Siar Local Authority\"),OR($F143=1,$F143=5)),0,hosp_count(VALUE(LEFT(Options!$B$24,2)),$C143,$E143,$F143,2016,$I143,1,$H143,$G143*$H143, Options!$B$8)))","v":{"$error":"#NAME?"}},{"$f":"IF(AND(OR(Calculations!$E$2=\"Orkney Health Board\",Calculations!$E$2=\"Orkney Islands Local Authority\"),$F143=1),0,IF(AND(OR(Calculations!$E$2=\"Shetland Health Board\",Calculations!$E$2=\"Western Isles Health Board\",Calculations!$E$2=\"Shetland Islands Local Authority\",Calculations!$E$2=\"Eilean Siar Local Authority\"),OR($F143=1,$F143=5)),0,hosp_count(VALUE(LEFT(Options!$B$24,2)),$C143,$E143,$F143,2016,$I143+$J143,1,$H143,$G143*$H143, Options!$B$8)))","v":{"$error":"#NAME?"}},{"$f":"IF(AND(OR(Calculations!$E$2=\"Orkney Health Board\",Calculations!$E$2=\"Orkney Islands Local Authority\"),$F143=1),0,IF(AND(OR(Calculations!$E$2=\"Shetland Health Board\",Calculations!$E$2=\"Western Isles Health Board\",Calculations!$E$2=\"Shetland Islands Local Authority\",Calculations!$E$2=\"Eilean Siar Local Authority\"),OR($F143=1,$F143=5)),0,prem_mort(VALUE(LEFT(Options!$B$24,2)),$C143,$E143,$F143,2016,$I143,1,$H143,$G143*$H143,Options!$B$8)))","v":29.812247322899999},{"$f":"IF(AND(OR(Calculations!$E$2=\"Orkney Health Board\",Calculations!$E$2=\"Orkney Islands Local Authority\"),$F143=1),0,IF(AND(OR(Calculations!$E$2=\"Shetland Health Board\",Calculations!$E$2=\"Western Isles Health Board\",Calculations!$E$2=\"Shetland Islands Local Authority\",Calculations!$E$2=\"Eilean Siar Local Authority\"),OR($F143=1,$F143=5)),0,prem_mort(VALUE(LEFT(Options!$B$24,2)),$C143,$E143,$F143,2016,$I143+$J143,1,$H143,$G143*$H143,Options!$B$8)))","v":29.565483536399999},93.288629479926144,92.516455037706919,4102.8341111042964,4068.8738775911379,{"$error":"#NAME?"},{"$error":"#NAME?"},93.288629479926144,92.516455037706919,653020.40635948302,647615.1852639484,28719838.777730074,28482117.143137965,{"$error":"#NAME?"},{"$error":"#NAME?"},653020.40635948302,647615.1852639484,7000]
[null,"Female 40-44",42.077438000000001,82.30744,"female",3,{"$f":"HLOOKUP(Calculations!$E$2,'Prevalence Rates'!$C$3:$BC$249,'Prevalence Rates'!$BD144,FALSE)","v":0.22799999999999998},{"$f":"HLOOKUP(Calculations!$E$2,'Population 2016'!$C$3:$BC$249,'Population 2016'!BD144,FALSE)","v":33291},0,{"$f":"HLOOKUP(Results!E$4,Targeting!$C$3:$F$249,Targeting!$G144,FALSE)","v":5466},{"$f":"IF(AND(OR(Calculations!$E$2=\"Orkney Health Board\",Calculations!$E$2=\"Orkney Islands Local Authority\"),$F144=1),0,IF(AND(OR(Calculations!$E$2=\"Shetland Health Board\",Calculations!$E$2=\"Western Isles Health Board\",Calculations!$E$2=\"Shetland Islands Local Authority\",Calculations!$E$2=\"Eilean Siar Local Authority\"),OR($F144=1,$F144=5)),0,new_ci(VALUE(LEFT(Options!$B$24,2)),$C144,$E144,$F144,2016,$I144,1,$H144,$G144*$H144,Options!$B$8)))","v":48.152529656699997},{"$f":"IF(AND(OR(Calculations!$E$2=\"Orkney Health Board\",Calculations!$E$2=\"Orkney Islands Local Authority\"),$F144=1),0,IF(AND(OR(Calculations!$E$2=\"Shetland Health Board\",Calculations!$E$2=\"Western Isles Health Board\",Calculations!$E$2=\"Shetland Islands Local Authority\",Calculations!$E$2=\"Eilean Siar Local Authority\"),OR($F144=1,$F144=5)),0,new_ci(VALUE(LEFT(Options!$B$24,2)),$C144,$E144,$F144,2016,$I144+$J144,1,$H144,$G144*$H144,Options!$B$8)))","v":47.754116742900003},{"$f":"IF(AND(OR(Calculations!$E$2=\"Orkney Health Board\",Calculations!$E$2=\"Orkney Islands Local Authority\"),$F144=1),0,IF(AND(OR(Calculations!$E$2=\"Shetland Health Board\",Calculations!$E$2=\"Western Isles Health Board\",Calculations!$E$2=\"Shetland Islands Local Authority\",Calculations!$E$2=\"Eilean Siar Local Authority\"),OR($F144=1,$F144=5)),0,new_yllv2(VALUE(LEFT(Options!$B$24,2)),$C144,$D144,$E144,$F144,2016,$I144,1,$H144,$G144*$H144,Options!$B$8)))","v":1889.0238347374},{"$f":"IF(AND(OR(Calculations!$E$2=\"Orkney Health Board\",Calculations!$E$2=\"Orkney Islands Local Authority\"),$F144=1),0,IF(AND(OR(Calculations!$E$2=\"Shetland Health Board\",Calculations!$E$2=\"Western Isles Health Board\",Calculations!$E$2=\"Shetland Islands Local Authority\",Calculations!$E$2=\"Eilean Siar Local Authority\"),OR($F144=1,$F144=5)),0,new_yllv2(VALUE(LEFT(Options!$B$24,2)),$C144,$D144,$E144,$F144,2016,$I144+$J144,1,$H144,$G144*$H144,Options!$B$8)))","v":1873.3940953322001},{"$f":"IF(AND(OR(Calculations!$E$2=\"Orkney Health Board\",Calculations!$E$2=\"Orkney Islands Local Authority\"),$F144=1),0,IF(AND(OR(Calculations!$E$2=\"Shetland Health Board\",Calculations!$E$2=\"Western Isles Health Board\",Calculations!$E$2=\"Shetland Islands Local Authority\",Calculations!$E$2=\"Eilean Siar Local Authority\"),OR($F144=1,$F144=5)),0,hosp_count(VALUE(LEFT(Options!$B$24,2)),$C144,$E144,$F144,2016,$I144,1,$H144,$G144*$H144, Options!$B$8)))","v":{"$error":"#NAME?"}},{"$f":"IF(AND(OR(Calculations!$E$2=\"Orkney Health Board\",Calculations!$E$2=\"Orkney Islands Local Authority\"),$F144=1),0,IF(AND(OR(Calculations!$E$2=\"Shetland Health Board\",Calculations!$E$2=\"Western Isles Health Board\",Calculations!$E$2=\"Shetland Islands Local Authority\",Calculations!$E$2=\"Eilean Siar Local Authority\"),OR($F144=1,$F144=5)),0,hosp_count(VALUE(LEFT(Options!$B$24,2)),$C144,$E144,$F144,2016,$I144+$J144,1,$H144,$G144*$H144, Options!$B$8)))","v":{"$error":"#NAME?"}},{"$f":"IF(AND(OR(Calculations!$E$2=\"Orkney Health Board\",Calculations!$E$2=\"Orkney Islands Local Authority\"),$F144=1),0,IF(AND(OR(Calculations!$E$2=\"Shetland Health Board\",Calculations!$E$2=\"Western Isles Health Board\",Calculations!$E$2=\"Shetland Islands Local Authority\",Calculations!$E$2=\"Eilean Siar Local Authority\"),OR($F144=1,$F144=5)),0,prem_mort(VALUE(LEFT(Options!$B$24,2)),$C144,$E144,$F144,2016,$I144,1,$H144,$G144*$H144,Options!$B$8)))","v":48.152529656699997},{"$f":"IF(AND(OR(Calculations!$E$2=\"Orkney Health Board\",Calculations!$E$2=\"Orkney Islands Local Authority\"),$F144=1),0,IF(AND(OR(Calculations!$E$2=\"Shetland Health Board\",Calculations!$E$2=\"Western Isles Health Board\",Calculations!$E$2=\"Shetland Islands Local Authority\",Calculations!$E$2=\"Eilean Siar Local Authority\"),OR($F144=1,$F144=5)),0,prem_mort(VALUE(LEFT(Options!$B$24,2)),$C144,$E144,$F144,2016,$I144+$J144,1,$H144,$G144*$H144,Options!$B$8)))","v":47.754116742900003},144.64128340001801,143.44452477516447,5674.2778370652732,5627.3289938187509,{"$error":"#NAME?"},{"$error":"#NAME?"},144.64128340001801,143.44452477516447,1012488.9838001261,1004111.6734261513,39719944.859456912,39391302.956731252,{"$error":"#NAME?"},{"$error":"#NAME?"},1012488.9838001261,1004111.6734261513,7000]
[null,"Female 45-49",47.025772000000003,82.585769999999997,"female",3,{"$f":"HLOOKUP(Calculations!$E$2,'Prevalence Rates'!$C$3:$BC$249,'Prevalence Rates'!$BD145,FALSE)","v":0.25900000000000006},{"$f":"HLOOKUP(Calculations!$E$2,'Population 2016'!$C$3:$BC$249,'Population 2016'!BD145,FALSE)","v":40488},0,{"$f":"HLOOKUP(Results!E$4,Targeting!$C$3:$F$249,Targeting!$G145,FALSE)","v":6648},{"$f":"IF(AND(OR(Calculations!$E$2=\"Orkney Health Board\",Calculations!$E$2=\"Orkney Islands Local Authority\"),$F145=1),0,IF(AND(OR(Calculations!$E$2=\"Shetland Health Board\",Calculations!$E$2=\"Western Isles Health Board\",Calculations!$E$2=\"Shetland Islands Local Authority\",Calculations!$E$2=\"Eilean Siar Local Authority\"),OR($F145=1,$F145=5)),0,new_ci(VALUE(LEFT(Options!$B$24,2)),$C145,$E145,$F145,2016,$I145,1,$H145,$G145*$H145,Options!$B$8)))","v":89.173045747000003},{"$f":"IF(AND(OR(Calculations!$E$2=\"Orkney Health Board\",Calculations!$E$2=\"Orkney Islands Local Authority\"),$F145=1),0,IF(AND(OR(Calculations!$E$2=\"Shetland Health Board\",Calculations!$E$2=\"Western Isles Health Board\",Calculations!$E$2=\"Shetland Islands Local Authority\",Calculations!$E$2=\"Eilean Siar Local Authority\"),OR($F145=1,$F145=5)),0,new_ci(VALUE(LEFT(Options!$B$24,2)),$C145,$E145,$F145,2016,$I145+$J145,1,$H145,$G145*$H145,Options!$B$8)))","v":88.444419628600002},{"$f":"IF(AND(OR(Calculations!$E$2=\"Orkney Health Board\",Calculations!$E$2=\"Orkney Islands Local Authority\"),$F145=1),0,IF(AND(OR(Calculations!$E$2=\"Shetland Health Board\",Calculations!$E$2=\"Western Isles Health Board\",Calculations!$E$2=\"Shetland Islands Local Authority\",Calculations!$E$2=\"Eilean Siar Local Authority\"),OR($F145=1,$F145=5)),0,new_yllv2(VALUE(LEFT(Options!$B$24,2)),$C145,$D145,$E145,$F145,2016,$I145,1,$H145,$G145*$H145,Options!$B$8)))","v":3081.8202826702},{"$f":"IF(AND(OR(Calculations!$E$2=\"Orkney Health Board\",Calculations!$E$2=\"Orkney Islands Local Authority\"),$F145=1),0,IF(AND(OR(Calculations!$E$2=\"Shetland Health Board\",Calculations!$E$2=\"Western Isles Health Board\",Calculations!$E$2=\"Shetland Islands Local Authority\",Calculations!$E$2=\"Eilean Siar Local Authority\"),OR($F145=1,$F145=5)),0,new_yllv2(VALUE(LEFT(Options!$B$24,2)),$C145,$D145,$E145,$F145,2016,$I145+$J145,1,$H145,$G145*$H145,Options!$B$8)))","v":3056.6389654755999},{"$f":"IF(AND(OR(Calculations!$E$2=\"Orkney Health Board\",Calculations!$E$2=\"Orkney Islands Local Authority\"),$F145=1),0,IF(AND(OR(Calculations!$E$2=\"Shetland Health Board\",Calculations!$E$2=\"Western Isles Health Board\",Calculations!$E$2=\"Shetland Islands Local Authority\",Calculations!$E$2=\"Eilean Siar Local Authority\"),OR($F145=1,$F145=5)),0,hosp_count(VALUE(LEFT(Options!$B$24,2)),$C145,$E145,$F145,2016,$I145,1,$H145,$G145*$H145, Options!$B$8)))","v":{"$error":"#NAME?"}},{"$f":"IF(AND(OR(Calculations!$E$2=\"Orkney Health Board\",Calculations!$E$2=\"Orkney Islands Local Authority\"),$F145=1),0,IF(AND(OR(Calculations!$E$2=\"Shetland Health Board\",Calculations!$E$2=\"Western Isles Health Board\",Calculations!$E$2=\"Shetland Islands Local Authority\",Calculations!$E$2=\"Eilean Siar Local Authority\"),OR($F145=1,$F145=5)),0,hosp_count(VALUE(LEFT(Options!$B$24,2)),$C145,$E145,$F145,2016,$I145+$J145,1,$H145,$G145*$H145, Options!$B$8)))","v":{"$error":"#NAME?"}},{"$f":"IF(AND(OR(Calculations!$E$2=\"Orkney Health Board\",Calculations!$E$2=\"Orkney Islands Local Authority\"),$F145=1),0,IF(AND(OR(Calculations!$E$2=\"Shetland Health Board\",Calculations!$E$2=\"Western Isles Health Board\",Calculations!$E$2=\"Shetland Islands Local Authority\",Calculations!$E$2=\"Eilean Siar Local Authority\"),OR($F145=1,$F145=5)),0,prem_mort(VALUE(LEFT(Options!$B$24,2)),$C145,$E145,$F145,2016,$I145,1,$H145,$G145*$H145,Options!$B$8)))","v":89.173045747000003},{"$f":"IF(AND(OR(Calculations!$E$2=\"Orkney Health Board\",Calculations!$E$2=\"Orkney Islands Local Authority\"),$F145=1),0,IF(AND(OR(Calculations!$E$2=\"Shetland Health Board\",Calculations!$E$2=\"Western Isles Health Board\",Calculations!$E$2=\"Shetland Islands Local Authority\",Calculations!$E$2=\"Eilean Siar Local Authority\"),OR($F145=1,$F145=5)),0,prem_mort(VALUE(LEFT(Options!$B$24,2)),$C145,$E145,$F145,2016,$I145+$J145,1,$H145,$G145*$H145,Options!$B$8)))","v":88.444419628600002},220.24561782997432,218.44600777662515,7611.6881117126059,7549.4935918682077,{"$error":"#NAME?"},{"$error":"#NAME?"},220.24561782997432,218.44600777662515,1541719.3248098202,1529122.0544363761,53281816.781988241,52846455.143077455,{"$error":"#NAME?"},{"$error":"#NAME?"},1541719.3248098202,1529122.0544363761,7000]
[null,"Female 50-54",51.990825999999998,82.980829999999997,"female",3,{"$f":"HLOOKUP(Calculations!$E$2,'Prevalence Rates'!$C$3:$BC$249,'Prevalence Rates'!$BD146,FALSE)","v":0.25900000000000006},{"$f":"HLOOKUP(Calculations!$E$2,'Population 2016'!$C$3:$BC$249,'Population 2016'!BD146,FALSE)","v":42537},0,{"$f":"HLOOKUP(Results!E$4,Targeting!$C$3:$F$249,Targeting!$G146,FALSE)","v":6984},{"$f":"IF(AND(OR(Calculations!$E$2=\"Orkney Health Board\",Calculations!$E$2=\"Orkney Islands Local Authority\"),$F146=1),0,IF(AND(OR(Calculations!$E$2=\"Shetland Health Board\",Calculations!$E$2=\"Western Isles Health Board\",Calculations!$E$2=\"Shetland Islands Local Authority\",Calculations!$E$2=\"Eilean Siar Local Authority\"),OR($F146=1,$F146=5)),0,new_ci(VALUE(LEFT(Options!$B$24,2)),$C146,$E146,$F146,2016,$I146,1,$H146,$G146*$H146,Options!$B$8)))","v":142.8294494269},{"$f":"IF(AND(OR(Calculations!$E$2=\"Orkney Health Board\",Calculations!$E$2=\"Orkney Islands Local Authority\"),$F146=1),0,IF(AND(OR(Calculations!$E$2=\"Shetland Health Board\",Calculations!$E$2=\"Western Isles Health Board\",Calculations!$E$2=\"Shetland Islands Local Authority\",Calculations!$E$2=\"Eilean Siar Local Authority\"),OR($F146=1,$F146=5)),0,new_ci(VALUE(LEFT(Options!$B$24,2)),$C146,$E146,$F146,2016,$I146+$J146,1,$H146,$G146*$H146,Options!$B$8)))","v":141.6634838965},{"$f":"IF(AND(OR(Calculations!$E$2=\"Orkney Health Board\",Calculations!$E$2=\"Orkney Islands Local Authority\"),$F146=1),0,IF(AND(OR(Calculations!$E$2=\"Shetland Health Board\",Calculations!$E$2=\"Western Isles Health Board\",Calculations!$E$2=\"Shetland Islands Local Authority\",Calculations!$E$2=\"Eilean Siar Local Authority\"),OR($F146=1,$F146=5)),0,new_yllv2(VALUE(LEFT(Options!$B$24,2)),$C146,$D146,$E146,$F146,2016,$I146,1,$H146,$G146*$H146,Options!$B$8)))","v":4283.4557596305003},{"$f":"IF(AND(OR(Calculations!$E$2=\"Orkney Health Board\",Calculations!$E$2=\"Orkney Islands Local Authority\"),$F146=1),0,IF(AND(OR(Calculations!$E$2=\"Shetland Health Board\",Calculations!$E$2=\"Western Isles Health Board\",Calculations!$E$2=\"Shetland Islands Local Authority\",Calculations!$E$2=\"Eilean Siar Local Authority\"),OR($F146=1,$F146=5)),0,new_yllv2(VALUE(LEFT(Options!$B$24,2)),$C146,$D146,$E146,$F146,2016,$I146+$J146,1,$H146,$G146*$H146,Options!$B$8)))","v":4248.4884487099998},{"$f":"IF(AND(OR(Calculations!$E$2=\"Orkney Health Board\",Calculations!$E$2=\"Orkney Islands Local Authority\"),$F146=1),0,IF(AND(OR(Calculations!$E$2=\"Shetland Health Board\",Calculations!$E$2=\"Western Isles Health Board\",Calculations!$E$2=\"Shetland Islands Local Authority\",Calculations!$E$2=\"Eilean Siar Local Authority\"),OR($F146=1,$F146=5)),0,hosp_count(VALUE(LEFT(Options!$B$24,2)),$C146,$E146,$F146,2016,$I146,1,$H146,$G146*$H146, Options!$B$8)))","v":{"$error":"#NAME?"}},{"$f":"IF(AND(OR(Calculations!$E$2=\"Orkney Health Board\",Calculations!$E$2=\"Orkney Islands Local Authority\"),$F146=1),0,IF(AND(OR(Calculations!$E$2=\"Shetland Health Board\",Calculations!$E$2=\"Western Isles Health Board\",Calculations!$E$2=\"Shetland Islands Local Authority\",Calculations!$E$2=\"Eilean Siar Local Authority\"),OR($F146=1,$F146=5)),0,hosp_count(VALUE(LEFT(Options!$B$24,2)),$C146,$E146,$F146,2016,$I146+$J146,1,$H146,$G146*$H146, Options!$B$8)))","v":{"$error":"#NAME?"}},{"$f":"IF(AND(OR(Calculations!$E$2=\"Orkney Health Board\",Calculations!$E$2=\"Orkney Islands Local Authority\"),$F146=1),0,IF(AND(OR(Calculations!$E$2=\"Shetland Health Board\",Calculations!$E$2=\"Western Isles Health Board\",Calculations!$E$2=\"Shetland Islands Local Authority\",Calculations!$E$2=\"Eilean Siar Local Authority\"),OR($F146=1,$F146=5)),0,prem_mort(VALUE(LEFT(Options!$B$24,2)),$C146,$E146,$F146,2016,$I146,1,$H146,$G146*$H146,Options!$B$8)))","v":142.8294494269},{"$f":"IF(AND(OR(Calculations!$E$2=\"Orkney Health Board\",Calculations!$E$2=\"Orkney Islands Local Authority\"),$F146=1),0,IF(AND(OR(Calculations!$E$2=\"Shetland Health Board\",Calculations!$E$2=\"Western Isles Health Board\",Calculations!$E$2=\"Shetland Islands Local Authority\",Calculations!$E$2=\"Eilean Siar Local Authority\"),OR($F146=1,$F146=5)),0,prem_mort(VALUE(LEFT(Options!$B$24,2)),$C146,$E146,$F146,2016,$I146+$J146,1,$H146,$G146*$H146,Options!$B$8)))","v":141.6634838965},335.77696929002985,333.0359073195101,10069.952652115806,9987.7481926558048,{"$error":"#NAME?"},{"$error":"#NAME?"},335.77696929002985,333.0359073195101,2350438.785030209,2331251.3512365706,70489668.564810649,69914237.348590627,{"$error":"#NAME?"},{"$error":"#NAME?"},2350438.785030209,2331251.3512365706,7000]
[null,"Female 55-59",56.953040999999999,83.473039999999997,"female",3,{"$f":"HLOOKUP(Calculations!$E$2,'Prevalence Rates'!$C$3:$BC$249,'Prevalence Rates'!$BD147,FALSE)","v":0.41499999999999998},{"$f":"HLOOKUP(Calculations!$E$2,'Population 2016'!$C$3:$BC$249,'Population 2016'!BD147,FALSE)","v":39153},0,{"$f":"HLOOKUP(Results!E$4,Targeting!$C$3:$F$249,Targeting!$G147,FALSE)","v":6429},{"$f":"IF(AND(OR(Calculations!$E$2=\"Orkney Health Board\",Calculations!$E$2=\"Orkney Islands Local Authority\"),$F147=1),0,IF(AND(OR(Calculations!$E$2=\"Shetland Health Board\",Calculations!$E$2=\"Western Isles Health Board\",Calculations!$E$2=\"Shetland Islands Local Authority\",Calculations!$E$2=\"Eilean Siar Local Authority\"),OR($F147=1,$F147=5)),0,new_ci(VALUE(LEFT(Options!$B$24,2)),$C147,$E147,$F147,2016,$I147,1,$H147,$G147*$H147,Options!$B$8)))","v":200.31579138379999},{"$f":"IF(AND(OR(Calculations!$E$2=\"Orkney Health Board\",Calculations!$E$2=\"Orkney Islands Local Authority\"),$F147=1),0,IF(AND(OR(Calculations!$E$2=\"Shetland Health Board\",Calculations!$E$2=\"Western Isles Health Board\",Calculations!$E$2=\"Shetland Islands Local Authority\",Calculations!$E$2=\"Eilean Siar Local Authority\"),OR($F147=1,$F147=5)),0,new_ci(VALUE(LEFT(Options!$B$24,2)),$C147,$E147,$F147,2016,$I147+$J147,1,$H147,$G147*$H147,Options!$B$8)))","v":198.77475108319999},{"$f":"IF(AND(OR(Calculations!$E$2=\"Orkney Health Board\",Calculations!$E$2=\"Orkney Islands Local Authority\"),$F147=1),0,IF(AND(OR(Calculations!$E$2=\"Shetland Health Board\",Calculations!$E$2=\"Western Isles Health Board\",Calculations!$E$2=\"Shetland Islands Local Authority\",Calculations!$E$2=\"Eilean Siar Local Authority\"),OR($F147=1,$F147=5)),0,new_yllv2(VALUE(LEFT(Options!$B$24,2)),$C147,$D147,$E147,$F147,2016,$I147,1,$H147,$G147*$H147,Options!$B$8)))","v":5112.0587957988},{"$f":"IF(AND(OR(Calculations!$E$2=\"Orkney Health Board\",Calculations!$E$2=\"Orkney Islands Local Authority\"),$F147=1),0,IF(AND(OR(Calculations!$E$2=\"Shetland Health Board\",Calculations!$E$2=\"Western Isles Health Board\",Calculations!$E$2=\"Shetland Islands Local Authority\",Calculations!$E$2=\"Eilean Siar Local Authority\"),OR($F147=1,$F147=5)),0,new_yllv2(VALUE(LEFT(Options!$B$24,2)),$C147,$D147,$E147,$F147,2016,$I147+$J147,1,$H147,$G147*$H147,Options!$B$8)))","v":5072.7314488684997},{"$f":"IF(AND(OR(Calculations!$E$2=\"Orkney Health Board\",Calculations!$E$2=\"Orkney Islands Local Authority\"),$F147=1),0,IF(AND(OR(Calculations!$E$2=\"Shetland Health Board\",Calculations!$E$2=\"Western Isles Health Board\",Calculations!$E$2=\"Shetland Islands Local Authority\",Calculations!$E$2=\"Eilean Siar Local Authority\"),OR($F147=1,$F147=5)),0,hosp_count(VALUE(LEFT(Options!$B$24,2)),$C147,$E147,$F147,2016,$I147,1,$H147,$G147*$H147, Options!$B$8)))","v":{"$error":"#NAME?"}},{"$f":"IF(AND(OR(Calculations!$E$2=\"Orkney Health Board\",Calculations!$E$2=\"Orkney Islands Local Authority\"),$F147=1),0,IF(AND(OR(Calculations!$E$2=\"Shetland Health Board\",Calculations!$E$2=\"Western Isles Health Board\",Calculations!$E$2=\"Shetland Islands Local Authority\",Calculations!$E$2=\"Eilean Siar Local Authority\"),OR($F147=1,$F147=5)),0,hosp_count(VALUE(LEFT(Options!$B$24,2)),$C147,$E147,$F147,2016,$I147+$J147,1,$H147,$G147*$H147, Options!$B$8)))","v":{"$error":"#NAME?"}},{"$f":"IF(AND(OR(Calculations!$E$2=\"Orkney Health Board\",Calculations!$E$2=\"Orkney Islands Local Authority\"),$F147=1),0,IF(AND(OR(Calculations!$E$2=\"Shetland Health Board\",Calculations!$E$2=\"Western Isles Health Board\",Calculations!$E$2=\"Shetland Islands Local Authority\",Calculations!$E$2=\"Eilean Siar Local Authority\"),OR($F147=1,$F147=5)),0,prem_mort(VALUE(LEFT(Options!$B$24,2)),$C147,$E147,$F147,2016,$I147,1,$H147,$G147*$H147,Options!$B$8)))","v":200.31579138379999},{"$f":"IF(AND(OR(Calculations!$E$2=\"Orkney Health Board\",Calculations!$E$2=\"Orkney Islands Local Authority\"),$F147=1),0,IF(AND(OR(Calculations!$E$2=\"Shetland Health Board\",Calculations!$E$2=\"Western Isles Health Board\",Calculations!$E$2=\"Shetland Islands Local Authority\",Calculations!$E$2=\"Eilean Siar Local Authority\"),OR($F147=1,$F147=5)),0,prem_mort(VALUE(LEFT(Options!$B$24,2)),$C147,$E147,$F147,2016,$I147+$J147,1,$H147,$G147*$H147,Options!$B$8)))","v":198.77475108319999},511.62309755012382,507.6871531765126,13056.620937856103,12956.175641377415,{"$error":"#NAME?"},{"$error":"#NAME?"},511.62309755012382,507.6871531765126,3325550.1340758046,3299966.4956473317,84868036.096064672,84215141.668953195,{"$error":"#NAME?"},{"$error":"#NAME?"},3325550.1340758046,3299966.4956473317,6500]
[null,"Female 60-64",61.947387999999997,84.167389999999997,"female",3,{"$f":"HLOOKUP(Calculations!$E$2,'Prevalence Rates'!$C$3:$BC$249,'Prevalence Rates'!$BD148,FALSE)","v":0.41499999999999998},{"$f":"HLOOKUP(Calculations!$E$2,'Population 2016'!$C$3:$BC$249,'Population 2016'!BD148,FALSE)","v":34585},0,{"$f":"HLOOKUP(Results!E$4,Targeting!$C$3:$F$249,Targeting!$G148,FALSE)","v":5678},{"$f":"IF(AND(OR(Calculations!$E$2=\"Orkney Health Board\",Calculations!$E$2=\"Orkney Islands Local Authority\"),$F148=1),0,IF(AND(OR(Calculations!$E$2=\"Shetland Health Board\",Calculations!$E$2=\"Western Isles Health Board\",Calculations!$E$2=\"Shetland Islands Local Authority\",Calculations!$E$2=\"Eilean Siar Local Authority\"),OR($F148=1,$F148=5)),0,new_ci(VALUE(LEFT(Options!$B$24,2)),$C148,$E148,$F148,2016,$I148,1,$H148,$G148*$H148,Options!$B$8)))","v":270.21811534160003},{"$f":"IF(AND(OR(Calculations!$E$2=\"Orkney Health Board\",Calculations!$E$2=\"Orkney Islands Local Authority\"),$F148=1),0,IF(AND(OR(Calculations!$E$2=\"Shetland Health Board\",Calculations!$E$2=\"Western Isles Health Board\",Calculations!$E$2=\"Shetland Islands Local Authority\",Calculations!$E$2=\"Eilean Siar Local Authority\"),OR($F148=1,$F148=5)),0,new_ci(VALUE(LEFT(Options!$B$24,2)),$C148,$E148,$F148,2016,$I148+$J148,1,$H148,$G148*$H148,Options!$B$8)))","v":268.14345249799999},{"$f":"IF(AND(OR(Calculations!$E$2=\"Orkney Health Board\",Calculations!$E$2=\"Orkney Islands Local Authority\"),$F148=1),0,IF(AND(OR(Calculations!$E$2=\"Shetland Health Board\",Calculations!$E$2=\"Western Isles Health Board\",Calculations!$E$2=\"Shetland Islands Local Authority\",Calculations!$E$2=\"Eilean Siar Local Authority\"),OR($F148=1,$F148=5)),0,new_yllv2(VALUE(LEFT(Options!$B$24,2)),$C148,$D148,$E148,$F148,2016,$I148,1,$H148,$G148*$H148,Options!$B$8)))","v":5734.0289479849998},{"$f":"IF(AND(OR(Calculations!$E$2=\"Orkney Health Board\",Calculations!$E$2=\"Orkney Islands Local Authority\"),$F148=1),0,IF(AND(OR(Calculations!$E$2=\"Shetland Health Board\",Calculations!$E$2=\"Western Isles Health Board\",Calculations!$E$2=\"Shetland Islands Local Authority\",Calculations!$E$2=\"Eilean Siar Local Authority\"),OR($F148=1,$F148=5)),0,new_yllv2(VALUE(LEFT(Options!$B$24,2)),$C148,$D148,$E148,$F148,2016,$I148+$J148,1,$H148,$G148*$H148,Options!$B$8)))","v":5690.0045982945003},{"$f":"IF(AND(OR(Calculations!$E$2=\"Orkney Health Board\",Calculations!$E$2=\"Orkney Islands Local Authority\"),$F148=1),0,IF(AND(OR(Calculations!$E$2=\"Shetland Health Board\",Calculations!$E$2=\"Western Isles Health Board\",Calculations!$E$2=\"Shetland Islands Local Authority\",Calculations!$E$2=\"Eilean Siar Local Authority\"),OR($F148=1,$F148=5)),0,hosp_count(VALUE(LEFT(Options!$B$24,2)),$C148,$E148,$F148,2016,$I148,1,$H148,$G148*$H148, Options!$B$8)))","v":{"$error":"#NAME?"}},{"$f":"IF(AND(OR(Calculations!$E$2=\"Orkney Health Board\",Calculations!$E$2=\"Orkney Islands Local Authority\"),$F148=1),0,IF(AND(OR(Calculations!$E$2=\"Shetland Health Board\",Calculations!$E$2=\"Western Isles Health Board\",Calculations!$E$2=\"Shetland Islands Local Authority\",Calculations!$E$2=\"Eilean Siar Local Authority\"),OR($F148=1,$F148=5)),0,hosp_count(VALUE(LEFT(Options!$B$24,2)),$C148,$E148,$F148,2016,$I148+$J148,1,$H148,$G148*$H148, Options!$B$8)))","v":{"$error":"#NAME?"}},{"$f":"IF(AND(OR(Calculations!$E$2=\"Orkney Health Board\",Calculations!$E$2=\"Orkney Islands Local Authority\"),$F148=1),0,IF(AND(OR(Calculations!$E$2=\"Shetland Health Board\",Calculations!$E$2=\"Western Isles Health Board\",Calculations!$E$2=\"Shetland Islands Local Authority\",Calculations!$E$2=\"Eilean Siar Local Authority\"),OR($F148=1,$F148=5)),0,prem_mort(VALUE(LEFT(Options!$B$24,2)),$C148,$E148,$F148,2016,$I148,1,$H148,$G148*$H148,Options!$B$8)))","v":270.21811534160003},{"$f":"IF(AND(OR(Calculations!$E$2=\"Orkney Health Board\",Calculations!$E$2=\"Orkney Islands Local Authority\"),$F148=1),0,IF(AND(OR(Calculations!$E$2=\"Shetland Health Board\",Calculations!$E$2=\"Western Isles Health Board\",Calculations!$E$2=\"Shetland Islands Local Authority\",Calculations!$E$2=\"Eilean Siar Local Authority\"),OR($F148=1,$F148=5)),0,prem_mort(VALUE(LEFT(Options!$B$24,2)),$C148,$E148,$F148,2016,$I148+$J148,1,$H148,$G148*$H148,Options!$B$8)))","v":268.14345249799999},781.31593275003627,775.31719675581905,16579.52565558768,16452.232465792975,{"$error":"#NAME?"},{"$error":"#NAME?"},781.31593275003627,775.31719675581905,4687895.5965002179,4651903.1805349141,99477153.933526084,98713394.794757843,{"$error":"#NAME?"},{"$error":"#NAME?"},4687895.5965002179,4651903.1805349141,6000]
[null,"Female 65-69",67.063927000000007,85.193929999999995,"female",3,{"$f":"HLOOKUP(Calculations!$E$2,'Prevalence Rates'!$C$3:$BC$249,'Prevalence Rates'!$BD149,FALSE)","v":0.48499999999999999},{"$f":"HLOOKUP(Calculations!$E$2,'Population 2016'!$C$3:$BC$249,'Population 2016'!BD149,FALSE)","v":35061},0,{"$f":"HLOOKUP(Results!E$4,Targeting!$C$3:$F$249,Targeting!$G149,FALSE)","v":5757},{"$f":"IF(AND(OR(Calculations!$E$2=\"Orkney Health Board\",Calculations!$E$2=\"Orkney Islands Local Authority\"),$F149=1),0,IF(AND(OR(Calculations!$E$2=\"Shetland Health Board\",Calculations!$E$2=\"Western Isles Health Board\",Calculations!$E$2=\"Shetland Islands Local Authority\",Calculations!$E$2=\"Eilean Siar Local Authority\"),OR($F149=1,$F149=5)),0,new_ci(VALUE(LEFT(Options!$B$24,2)),$C149,$E149,$F149,2016,$I149,1,$H149,$G149*$H149,Options!$B$8)))","v":422.37075792429999},{"$f":"IF(AND(OR(Calculations!$E$2=\"Orkney Health Board\",Calculations!$E$2=\"Orkney Islands Local Authority\"),$F149=1),0,IF(AND(OR(Calculations!$E$2=\"Shetland Health Board\",Calculations!$E$2=\"Western Isles Health Board\",Calculations!$E$2=\"Shetland Islands Local Authority\",Calculations!$E$2=\"Eilean Siar Local Authority\"),OR($F149=1,$F149=5)),0,new_ci(VALUE(LEFT(Options!$B$24,2)),$C149,$E149,$F149,2016,$I149+$J149,1,$H149,$G149*$H149,Options!$B$8)))","v":419.21604282129999},{"$f":"IF(AND(OR(Calculations!$E$2=\"Orkney Health Board\",Calculations!$E$2=\"Orkney Islands Local Authority\"),$F149=1),0,IF(AND(OR(Calculations!$E$2=\"Shetland Health Board\",Calculations!$E$2=\"Western Isles Health Board\",Calculations!$E$2=\"Shetland Islands Local Authority\",Calculations!$E$2=\"Eilean Siar Local Authority\"),OR($F149=1,$F149=5)),0,new_yllv2(VALUE(LEFT(Options!$B$24,2)),$C149,$D149,$E149,$F149,2016,$I149,1,$H149,$G149*$H149,Options!$B$8)))","v":7235.2123503555003},{"$f":"IF(AND(OR(Calculations!$E$2=\"Orkney Health Board\",Calculations!$E$2=\"Orkney Islands Local Authority\"),$F149=1),0,IF(AND(OR(Calculations!$E$2=\"Shetland Health Board\",Calculations!$E$2=\"Western Isles Health Board\",Calculations!$E$2=\"Shetland Islands Local Authority\",Calculations!$E$2=\"Eilean Siar Local Authority\"),OR($F149=1,$F149=5)),0,new_yllv2(VALUE(LEFT(Options!$B$24,2)),$C149,$D149,$E149,$F149,2016,$I149+$J149,1,$H149,$G149*$H149,Options!$B$8)))","v":7181.1720711770004},{"$f":"IF(AND(OR(Calculations!$E$2=\"Orkney Health Board\",Calculations!$E$2=\"Orkney Islands Local Authority\"),$F149=1),0,IF(AND(OR(Calculations!$E$2=\"Shetland Health Board\",Calculations!$E$2=\"Western Isles Health Board\",Calculations!$E$2=\"Shetland Islands Local Authority\",Calculations!$E$2=\"Eilean Siar Local Authority\"),OR($F149=1,$F149=5)),0,hosp_count(VALUE(LEFT(Options!$B$24,2)),$C149,$E149,$F149,2016,$I149,1,$H149,$G149*$H149, Options!$B$8)))","v":{"$error":"#NAME?"}},{"$f":"IF(AND(OR(Calculations!$E$2=\"Orkney Health Board\",Calculations!$E$2=\"Orkney Islands Local Authority\"),$F149=1),0,IF(AND(OR(Calculations!$E$2=\"Shetland Health Board\",Calculations!$E$2=\"Western Isles Health Board\",Calculations!$E$2=\"Shetland Islands Local Authority\",Calculations!$E$2=\"Eilean Siar Local Authority\"),OR($F149=1,$F149=5)),0,hosp_count(VALUE(LEFT(Options!$B$24,2)),$C149,$E149,$F149,2016,$I149+$J149,1,$H149,$G149*$H149, Options!$B$8)))","v":{"$error":"#NAME?"}},{"$f":"IF(AND(OR(Calculations!$E$2=\"Orkney Health Board\",Calculations!$E$2=\"Orkney Islands Local Authority\"),$F149=1),0,IF(AND(OR(Calculations!$E$2=\"Shetland Health Board\",Calculations!$E$2=\"Western Isles Health Board\",Calculations!$E$2=\"Shetland Islands Local Authority\",Calculations!$E$2=\"Eilean Siar Local Authority\"),OR($F149=1,$F149=5)),0,prem_mort(VALUE(LEFT(Options!$B$24,2)),$C149,$E149,$F149,2016,$I149,1,$H149,$G149*$H149,Options!$B$8)))","v":422.37075792429999},{"$f":"IF(AND(OR(Calculations!$E$2=\"Orkney Health Board\",Calculations!$E$2=\"Orkney Islands Local Authority\"),$F149=1),0,IF(AND(OR(Calculations!$E$2=\"Shetland Health Board\",Calculations!$E$2=\"Western Isles Health Board\",Calculations!$E$2=\"Shetland Islands Local Authority\",Calculations!$E$2=\"Eilean Siar Local Authority\"),OR($F149=1,$F149=5)),0,prem_mort(VALUE(LEFT(Options!$B$24,2)),$C149,$E149,$F149,2016,$I149+$J149,1,$H149,$G149*$H149,Options!$B$8)))","v":419.21604282129999},1204.67401934999,1195.6762294894613,20636.069565487294,20481.937398183167,{"$error":"#NAME?"},{"$error":"#NAME?"},1204.67401934999,1195.6762294894613,6625707.1064249445,6576219.262192037,113498382.61018012,112650655.69000742,{"$error":"#NAME?"},{"$error":"#NAME?"},6625707.1064249445,6576219.262192037,5500]
[null,"Female 70-74",71.938164,86.248159999999999,"female",3,{"$f":"HLOOKUP(Calculations!$E$2,'Prevalence Rates'!$C$3:$BC$249,'Prevalence Rates'!$BD150,FALSE)","v":0.48499999999999999},{"$f":"HLOOKUP(Calculations!$E$2,'Population 2016'!$C$3:$BC$249,'Population 2016'!BD150,FALSE)","v":27558},0,{"$f":"HLOOKUP(Results!E$4,Targeting!$C$3:$F$249,Targeting!$G150,FALSE)","v":4525},{"$f":"IF(AND(OR(Calculations!$E$2=\"Orkney Health Board\",Calculations!$E$2=\"Orkney Islands Local Authority\"),$F150=1),0,IF(AND(OR(Calculations!$E$2=\"Shetland Health Board\",Calculations!$E$2=\"Western Isles Health Board\",Calculations!$E$2=\"Shetland Islands Local Authority\",Calculations!$E$2=\"Eilean Siar Local Authority\"),OR($F150=1,$F150=5)),0,new_ci(VALUE(LEFT(Options!$B$24,2)),$C150,$E150,$F150,2016,$I150,1,$H150,$G150*$H150,Options!$B$8)))","v":500.92655588349999},{"$f":"IF(AND(OR(Calculations!$E$2=\"Orkney Health Board\",Calculations!$E$2=\"Orkney Islands Local Authority\"),$F150=1),0,IF(AND(OR(Calculations!$E$2=\"Shetland Health Board\",Calculations!$E$2=\"Western Isles Health Board\",Calculations!$E$2=\"Shetland Islands Local Authority\",Calculations!$E$2=\"Eilean Siar Local Authority\"),OR($F150=1,$F150=5)),0,new_ci(VALUE(LEFT(Options!$B$24,2)),$C150,$E150,$F150,2016,$I150+$J150,1,$H150,$G150*$H150,Options!$B$8)))","v":497.20012652600002},{"$f":"IF(AND(OR(Calculations!$E$2=\"Orkney Health Board\",Calculations!$E$2=\"Orkney Islands Local Authority\"),$F150=1),0,IF(AND(OR(Calculations!$E$2=\"Shetland Health Board\",Calculations!$E$2=\"Western Isles Health Board\",Calculations!$E$2=\"Shetland Islands Local Authority\",Calculations!$E$2=\"Eilean Siar Local Authority\"),OR($F150=1,$F150=5)),0,new_yllv2(VALUE(LEFT(Options!$B$24,2)),$C150,$D150,$E150,$F150,2016,$I150,1,$H150,$G150*$H150,Options!$B$8)))","v":6667.3304551031997},{"$f":"IF(AND(OR(Calculations!$E$2=\"Orkney Health Board\",Calculations!$E$2=\"Orkney Islands Local Authority\"),$F150=1),0,IF(AND(OR(Calculations!$E$2=\"Shetland Health Board\",Calculations!$E$2=\"Western Isles Health Board\",Calculations!$E$2=\"Shetland Islands Local Authority\",Calculations!$E$2=\"Eilean Siar Local Authority\"),OR($F150=1,$F150=5)),0,new_yllv2(VALUE(LEFT(Options!$B$24,2)),$C150,$D150,$E150,$F150,2016,$I150+$J150,1,$H150,$G150*$H150,Options!$B$8)))","v":6617.7316952605997},{"$f":"IF(AND(OR(Calculations!$E$2=\"Orkney Health Board\",Calculations!$E$2=\"Orkney Islands Local Authority\"),$F150=1),0,IF(AND(OR(Calculations!$E$2=\"Shetland Health Board\",Calculations!$E$2=\"Western Isles Health Board\",Calculations!$E$2=\"Shetland Islands Local Authority\",Calculations!$E$2=\"Eilean Siar Local Authority\"),OR($F150=1,$F150=5)),0,hosp_count(VALUE(LEFT(Options!$B$24,2)),$C150,$E150,$F150,2016,$I150,1,$H150,$G150*$H150, Options!$B$8)))","v":{"$error":"#NAME?"}},{"$f":"IF(AND(OR(Calculations!$E$2=\"Orkney Health Board\",Calculations!$E$2=\"Orkney Islands Local Authority\"),$F150=1),0,IF(AND(OR(Calculations!$E$2=\"Shetland Health Board\",Calculations!$E$2=\"Western Isles Health Board\",Calculations!$E$2=\"Shetland Islands Local Authority\",Calculations!$E$2=\"Eilean Siar Local Authority\"),OR($F150=1,$F150=5)),0,hosp_count(VALUE(LEFT(Options!$B$24,2)),$C150,$E150,$F150,2016,$I150+$J150,1,$H150,$G150*$H150, Options!$B$8)))","v":{"$error":"#NAME?"}},{"$f":"IF(AND(OR(Calculations!$E$2=\"Orkney Health Board\",Calculations!$E$2=\"Orkney Islands Local Authority\"),$F150=1),0,IF(AND(OR(Calculations!$E$2=\"Shetland Health Board\",Calculations!$E$2=\"Western Isles Health Board\",Calculations!$E$2=\"Shetland Islands Local Authority\",Calculations!$E$2=\"Eilean Siar Local Authority\"),OR($F150=1,$F150=5)),0,prem_mort(VALUE(LEFT(Options!$B$24,2)),$C150,$E150,$F150,2016,$I150,1,$H150,$G150*$H150,Options!$B$8)))","v":500.92655588349999},{"$f":"IF(AND(OR(Calculations!$E$2=\"Orkney Health Board\",Calculations!$E$2=\"Orkney Islands Local Authority\"),$F150=1),0,IF(AND(OR(Calculations!$E$2=\"Shetland Health Board\",Calculations!$E$2=\"Western Isles Health Board\",Calculations!$E$2=\"Shetland Islands Local Authority\",Calculations!$E$2=\"Eilean Siar Local Authority\"),OR($F150=1,$F150=5)),0,prem_mort(VALUE(LEFT(Options!$B$24,2)),$C150,$E150,$F150,2016,$I150+$J150,1,$H150,$G150*$H150,Options!$B$8)))","v":497.20012652600002},1817.717381099862,1804.1952482981351,24193.811071569777,24013.831538067348,{"$error":"#NAME?"},{"$error":"#NAME?"},1817.717381099862,1804.1952482981351,9088586.9054993093,9020976.2414906751,120969055.35784888,120069157.69033675,{"$error":"#NAME?"},{"$error":"#NAME?"},9088586.9054993093,9020976.2414906751,5000]
[null,"Female 75-79",76.942824999999999,87.812830000000005,"female",3,{"$f":"HLOOKUP(Calculations!$E$2,'Prevalence Rates'!$C$3:$BC$249,'Prevalence Rates'!$BD151,FALSE)","v":0.61699999999999999},{"$f":"HLOOKUP(Calculations!$E$2,'Population 2016'!$C$3:$BC$249,'Population 2016'!BD151,FALSE)","v":22028},0,{"$f":"HLOOKUP(Results!E$4,Targeting!$C$3:$F$249,Targeting!$G151,FALSE)","v":3617},{"$f":"IF(AND(OR(Calculations!$E$2=\"Orkney Health Board\",Calculations!$E$2=\"Orkney Islands Local Authority\"),$F151=1),0,IF(AND(OR(Calculations!$E$2=\"Shetland Health Board\",Calculations!$E$2=\"Western Isles Health Board\",Calculations!$E$2=\"Shetland Islands Local Authority\",Calculations!$E$2=\"Eilean Siar Local Authority\"),OR($F151=1,$F151=5)),0,new_ci(VALUE(LEFT(Options!$B$24,2)),$C151,$E151,$F151,2016,$I151,1,$H151,$G151*$H151,Options!$B$8)))","v":609.84762977790001},{"$f":"IF(AND(OR(Calculations!$E$2=\"Orkney Health Board\",Calculations!$E$2=\"Orkney Islands Local Authority\"),$F151=1),0,IF(AND(OR(Calculations!$E$2=\"Shetland Health Board\",Calculations!$E$2=\"Western Isles Health Board\",Calculations!$E$2=\"Shetland Islands Local Authority\",Calculations!$E$2=\"Eilean Siar Local Authority\"),OR($F151=1,$F151=5)),0,new_ci(VALUE(LEFT(Options!$B$24,2)),$C151,$E151,$F151,2016,$I151+$J151,1,$H151,$G151*$H151,Options!$B$8)))","v":605.53520076229995},{"$f":"IF(AND(OR(Calculations!$E$2=\"Orkney Health Board\",Calculations!$E$2=\"Orkney Islands Local Authority\"),$F151=1),0,IF(AND(OR(Calculations!$E$2=\"Shetland Health Board\",Calculations!$E$2=\"Western Isles Health Board\",Calculations!$E$2=\"Shetland Islands Local Authority\",Calculations!$E$2=\"Eilean Siar Local Authority\"),OR($F151=1,$F151=5)),0,new_yllv2(VALUE(LEFT(Options!$B$24,2)),$C151,$D151,$E151,$F151,2016,$I151,1,$H151,$G151*$H151,Options!$B$8)))","v":6019.1991551459996},{"$f":"IF(AND(OR(Calculations!$E$2=\"Orkney Health Board\",Calculations!$E$2=\"Orkney Islands Local Authority\"),$F151=1),0,IF(AND(OR(Calculations!$E$2=\"Shetland Health Board\",Calculations!$E$2=\"Western Isles Health Board\",Calculations!$E$2=\"Shetland Islands Local Authority\",Calculations!$E$2=\"Eilean Siar Local Authority\"),OR($F151=1,$F151=5)),0,new_yllv2(VALUE(LEFT(Options!$B$24,2)),$C151,$D151,$E151,$F151,2016,$I151+$J151,1,$H151,$G151*$H151,Options!$B$8)))","v":5976.6354591998997},{"$f":"IF(AND(OR(Calculations!$E$2=\"Orkney Health Board\",Calculations!$E$2=\"Orkney Islands Local Authority\"),$F151=1),0,IF(AND(OR(Calculations!$E$2=\"Shetland Health Board\",Calculations!$E$2=\"Western Isles Health Board\",Calculations!$E$2=\"Shetland Islands Local Authority\",Calculations!$E$2=\"Eilean Siar Local Authority\"),OR($F151=1,$F151=5)),0,hosp_count(VALUE(LEFT(Options!$B$24,2)),$C151,$E151,$F151,2016,$I151,1,$H151,$G151*$H151, Options!$B$8)))","v":{"$error":"#NAME?"}},{"$f":"IF(AND(OR(Calculations!$E$2=\"Orkney Health Board\",Calculations!$E$2=\"Orkney Islands Local Authority\"),$F151=1),0,IF(AND(OR(Calculations!$E$2=\"Shetland Health Board\",Calculations!$E$2=\"Western Isles Health Board\",Calculations!$E$2=\"Shetland Islands Local Authority\",Calculations!$E$2=\"Eilean Siar Local Authority\"),OR($F151=1,$F151=5)),0,hosp_count(VALUE(LEFT(Options!$B$24,2)),$C151,$E151,$F151,2016,$I151+$J151,1,$H151,$G151*$H151, Options!$B$8)))","v":{"$error":"#NAME?"}},{"$f":"IF(AND(OR(Calculations!$E$2=\"Orkney Health Board\",Calculations!$E$2=\"Orkney Islands Local Authority\"),$F151=1),0,IF(AND(OR(Calculations!$E$2=\"Shetland Health Board\",Calculations!$E$2=\"Western Isles Health Board\",Calculations!$E$2=\"Shetland Islands Local Authority\",Calculations!$E$2=\"Eilean Siar Local Authority\"),OR($F151=1,$F151=5)),0,prem_mort(VALUE(LEFT(Options!$B$24,2)),$C151,$E151,$F151,2016,$I151,1,$H151,$G151*$H151,Options!$B$8)))","v":0},{"$f":"IF(AND(OR(Calculations!$E$2=\"Orkney Health Board\",Calculations!$E$2=\"Orkney Islands Local Authority\"),$F151=1),0,IF(AND(OR(Calculations!$E$2=\"Shetland Health Board\",Calculations!$E$2=\"Western Isles Health Board\",Calculations!$E$2=\"Shetland Islands Local Authority\",Calculations!$E$2=\"Eilean Siar Local Authority\"),OR($F151=1,$F151=5)),0,prem_mort(VALUE(LEFT(Options!$B$24,2)),$C151,$E151,$F151,2016,$I151+$J151,1,$H151,$G151*$H151,Options!$B$8)))","v":0},2768.5111211998365,2748.9340873538222,27325.218608797892,27131.99318685264,{"$error":"#NAME?"},{"$error":"#NAME?"},0,0,11074044.484799346,10995736.349415289,109300874.43519157,108527972.74741057,{"$error":"#NAME?"},{"$error":"#NAME?"},0,0,4000]
[null,"Female 80-84",81.856712000000002,89.736710000000002,"female",3,{"$f":"HLOOKUP(Calculations!$E$2,'Prevalence Rates'!$C$3:$BC$249,'Prevalence Rates'!$BD152,FALSE)","v":0.61699999999999999},{"$f":"HLOOKUP(Calculations!$E$2,'Population 2016'!$C$3:$BC$249,'Population 2016'!BD152,FALSE)","v":16697},0,{"$f":"HLOOKUP(Results!E$4,Targeting!$C$3:$F$249,Targeting!$G152,FALSE)","v":2741},{"$f":"IF(AND(OR(Calculations!$E$2=\"Orkney Health Board\",Calculations!$E$2=\"Orkney Islands Local Authority\"),$F152=1),0,IF(AND(OR(Calculations!$E$2=\"Shetland Health Board\",Calculations!$E$2=\"Western Isles Health Board\",Calculations!$E$2=\"Shetland Islands Local Authority\",Calculations!$E$2=\"Eilean Siar Local Authority\"),OR($F152=1,$F152=5)),0,new_ci(VALUE(LEFT(Options!$B$24,2)),$C152,$E152,$F152,2016,$I152,1,$H152,$G152*$H152,Options!$B$8)))","v":696.89612938870005},{"$f":"IF(AND(OR(Calculations!$E$2=\"Orkney Health Board\",Calculations!$E$2=\"Orkney Islands Local Authority\"),$F152=1),0,IF(AND(OR(Calculations!$E$2=\"Shetland Health Board\",Calculations!$E$2=\"Western Isles Health Board\",Calculations!$E$2=\"Shetland Islands Local Authority\",Calculations!$E$2=\"Eilean Siar Local Authority\"),OR($F152=1,$F152=5)),0,new_ci(VALUE(LEFT(Options!$B$24,2)),$C152,$E152,$F152,2016,$I152+$J152,1,$H152,$G152*$H152,Options!$B$8)))","v":692.01205304739995},{"$f":"IF(AND(OR(Calculations!$E$2=\"Orkney Health Board\",Calculations!$E$2=\"Orkney Islands Local Authority\"),$F152=1),0,IF(AND(OR(Calculations!$E$2=\"Shetland Health Board\",Calculations!$E$2=\"Western Isles Health Board\",Calculations!$E$2=\"Shetland Islands Local Authority\",Calculations!$E$2=\"Eilean Siar Local Authority\"),OR($F152=1,$F152=5)),0,new_yllv2(VALUE(LEFT(Options!$B$24,2)),$C152,$D152,$E152,$F152,2016,$I152,1,$H152,$G152*$H152,Options!$B$8)))","v":4794.6439764019997},{"$f":"IF(AND(OR(Calculations!$E$2=\"Orkney Health Board\",Calculations!$E$2=\"Orkney Islands Local Authority\"),$F152=1),0,IF(AND(OR(Calculations!$E$2=\"Shetland Health Board\",Calculations!$E$2=\"Western Isles Health Board\",Calculations!$E$2=\"Shetland Islands Local Authority\",Calculations!$E$2=\"Eilean Siar Local Authority\"),OR($F152=1,$F152=5)),0,new_yllv2(VALUE(LEFT(Options!$B$24,2)),$C152,$D152,$E152,$F152,2016,$I152+$J152,1,$H152,$G152*$H152,Options!$B$8)))","v":4761.0415409420002},{"$f":"IF(AND(OR(Calculations!$E$2=\"Orkney Health Board\",Calculations!$E$2=\"Orkney Islands Local Authority\"),$F152=1),0,IF(AND(OR(Calculations!$E$2=\"Shetland Health Board\",Calculations!$E$2=\"Western Isles Health Board\",Calculations!$E$2=\"Shetland Islands Local Authority\",Calculations!$E$2=\"Eilean Siar Local Authority\"),OR($F152=1,$F152=5)),0,hosp_count(VALUE(LEFT(Options!$B$24,2)),$C152,$E152,$F152,2016,$I152,1,$H152,$G152*$H152, Options!$B$8)))","v":{"$error":"#NAME?"}},{"$f":"IF(AND(OR(Calculations!$E$2=\"Orkney Health Board\",Calculations!$E$2=\"Orkney Islands Local Authority\"),$F152=1),0,IF(AND(OR(Calculations!$E$2=\"Shetland Health Board\",Calculations!$E$2=\"Western Isles Health Board\",Calculations!$E$2=\"Shetland Islands Local Authority\",Calculations!$E$2=\"Eilean Siar Local Authority\"),OR($F152=1,$F152=5)),0,hosp_count(VALUE(LEFT(Options!$B$24,2)),$C152,$E152,$F152,2016,$I152+$J152,1,$H152,$G152*$H152, Options!$B$8)))","v":{"$error":"#NAME?"}},{"$f":"IF(AND(OR(Calculations!$E$2=\"Orkney Health Board\",Calculations!$E$2=\"Orkney Islands Local Authority\"),$F152=1),0,IF(AND(OR(Calculations!$E$2=\"Shetland Health Board\",Calculations!$E$2=\"Western Isles Health Board\",Calculations!$E$2=\"Shetland Islands Local Authority\",Calculations!$E$2=\"Eilean Siar Local Authority\"),OR($F152=1,$F152=5)),0,prem_mort(VALUE(LEFT(Options!$B$24,2)),$C152,$E152,$F152,2016,$I152,1,$H152,$G152*$H152,Options!$B$8)))","v":0},{"$f":"IF(AND(OR(Calculations!$E$2=\"Orkney Health Board\",Calculations!$E$2=\"Orkney Islands Local Authority\"),$F152=1),0,IF(AND(OR(Calculations!$E$2=\"Shetland Health Board\",Calculations!$E$2=\"Western Isles Health Board\",Calculations!$E$2=\"Shetland Islands Local Authority\",Calculations!$E$2=\"Eilean Siar Local Authority\"),OR($F152=1,$F152=5)),0,prem_mort(VALUE(LEFT(Options!$B$24,2)),$C152,$E152,$F152,2016,$I152+$J152,1,$H152,$G152*$H152,Options!$B$8)))","v":0},4173.7804958297893,4144.5292750038925,28715.601463747975,28514.353122968198,{"$error":"#NAME?"},{"$error":"#NAME?"},0,0,10434451.239574473,10361323.18750973,71789003.659369931,71285882.807420492,{"$error":"#NAME?"},{"$error":"#NAME?"},0,0,2500]
[null,"Female 85-89",86.730819999999994,92.220819999999989,"female",3,{"$f":"HLOOKUP(Calculations!$E$2,'Prevalence Rates'!$C$3:$BC$249,'Prevalence Rates'!$BD153,FALSE)","v":0.61699999999999999},{"$f":"HLOOKUP(Calculations!$E$2,'Population 2016'!$C$3:$BC$249,'Population 2016'!BD153,FALSE)","v":10459},0,{"$f":"HLOOKUP(Results!E$4,Targeting!$C$3:$F$249,Targeting!$G153,FALSE)","v":1717},{"$f":"IF(AND(OR(Calculations!$E$2=\"Orkney Health Board\",Calculations!$E$2=\"Orkney Islands Local Authority\"),$F153=1),0,IF(AND(OR(Calculations!$E$2=\"Shetland Health Board\",Calculations!$E$2=\"Western Isles Health Board\",Calculations!$E$2=\"Shetland Islands Local Authority\",Calculations!$E$2=\"Eilean Siar Local Authority\"),OR($F153=1,$F153=5)),0,new_ci(VALUE(LEFT(Options!$B$24,2)),$C153,$E153,$F153,2016,$I153,1,$H153,$G153*$H153,Options!$B$8)))","v":653.46683309779996},{"$f":"IF(AND(OR(Calculations!$E$2=\"Orkney Health Board\",Calculations!$E$2=\"Orkney Islands Local Authority\"),$F153=1),0,IF(AND(OR(Calculations!$E$2=\"Shetland Health Board\",Calculations!$E$2=\"Western Isles Health Board\",Calculations!$E$2=\"Shetland Islands Local Authority\",Calculations!$E$2=\"Eilean Siar Local Authority\"),OR($F153=1,$F153=5)),0,new_ci(VALUE(LEFT(Options!$B$24,2)),$C153,$E153,$F153,2016,$I153+$J153,1,$H153,$G153*$H153,Options!$B$8)))","v":648.94680295410001},{"$f":"IF(AND(OR(Calculations!$E$2=\"Orkney Health Board\",Calculations!$E$2=\"Orkney Islands Local Authority\"),$F153=1),0,IF(AND(OR(Calculations!$E$2=\"Shetland Health Board\",Calculations!$E$2=\"Western Isles Health Board\",Calculations!$E$2=\"Shetland Islands Local Authority\",Calculations!$E$2=\"Eilean Siar Local Authority\"),OR($F153=1,$F153=5)),0,new_yllv2(VALUE(LEFT(Options!$B$24,2)),$C153,$D153,$E153,$F153,2016,$I153,1,$H153,$G153*$H153,Options!$B$8)))","v":2934.0660806091},{"$f":"IF(AND(OR(Calculations!$E$2=\"Orkney Health Board\",Calculations!$E$2=\"Orkney Islands Local Authority\"),$F153=1),0,IF(AND(OR(Calculations!$E$2=\"Shetland Health Board\",Calculations!$E$2=\"Western Isles Health Board\",Calculations!$E$2=\"Shetland Islands Local Authority\",Calculations!$E$2=\"Eilean Siar Local Authority\"),OR($F153=1,$F153=5)),0,new_yllv2(VALUE(LEFT(Options!$B$24,2)),$C153,$D153,$E153,$F153,2016,$I153+$J153,1,$H153,$G153*$H153,Options!$B$8)))","v":2913.7711452639001},{"$f":"IF(AND(OR(Calculations!$E$2=\"Orkney Health Board\",Calculations!$E$2=\"Orkney Islands Local Authority\"),$F153=1),0,IF(AND(OR(Calculations!$E$2=\"Shetland Health Board\",Calculations!$E$2=\"Western Isles Health Board\",Calculations!$E$2=\"Shetland Islands Local Authority\",Calculations!$E$2=\"Eilean Siar Local Authority\"),OR($F153=1,$F153=5)),0,hosp_count(VALUE(LEFT(Options!$B$24,2)),$C153,$E153,$F153,2016,$I153,1,$H153,$G153*$H153, Options!$B$8)))","v":{"$error":"#NAME?"}},{"$f":"IF(AND(OR(Calculations!$E$2=\"Orkney Health Board\",Calculations!$E$2=\"Orkney Islands Local Authority\"),$F153=1),0,IF(AND(OR(Calculations!$E$2=\"Shetland Health Board\",Calculations!$E$2=\"Western Isles Health Board\",Calculations!$E$2=\"Shetland Islands Local Authority\",Calculations!$E$2=\"Eilean Siar Local Authority\"),OR($F153=1,$F153=5)),0,hosp_count(VALUE(LEFT(Options!$B$24,2)),$C153,$E153,$F153,2016,$I153+$J153,1,$H153,$G153*$H153, Options!$B$8)))","v":{"$error":"#NAME?"}},{"$f":"IF(AND(OR(Calculations!$E$2=\"Orkney Health Board\",Calculations!$E$2=\"Orkney Islands Local Authority\"),$F153=1),0,IF(AND(OR(Calculations!$E$2=\"Shetland Health Board\",Calculations!$E$2=\"Western Isles Health Board\",Calculations!$E$2=\"Shetland Islands Local Authority\",Calculations!$E$2=\"Eilean Siar Local Authority\"),OR($F153=1,$F153=5)),0,prem_mort(VALUE(LEFT(Options!$B$24,2)),$C153,$E153,$F153,2016,$I153,1,$H153,$G153*$H153,Options!$B$8)))","v":0},{"$f":"IF(AND(OR(Calculations!$E$2=\"Orkney Health Board\",Calculations!$E$2=\"Orkney Islands Local Authority\"),$F153=1),0,IF(AND(OR(Calculations!$E$2=\"Shetland Health Board\",Calculations!$E$2=\"Western Isles Health Board\",Calculations!$E$2=\"Shetland Islands Local Authority\",Calculations!$E$2=\"Eilean Siar Local Authority\"),OR($F153=1,$F153=5)),0,prem_mort(VALUE(LEFT(Options!$B$24,2)),$C153,$E153,$F153,2016,$I153+$J153,1,$H153,$G153*$H153,Options!$B$8)))","v":0},6247.8901720795484,6204.6735151936127,28053.026872636961,27858.984083219239,{"$error":"#NAME?"},{"$error":"#NAME?"},0,0,9371835.2581193224,9307010.2727904189,42079540.308955438,41788476.12482886,{"$error":"#NAME?"},{"$error":"#NAME?"},0,0,1500]
[null,"Female 90+",92.779342999999997,96.279340000000005,"female",3,{"$f":"HLOOKUP(Calculations!$E$2,'Prevalence Rates'!$C$3:$BC$249,'Prevalence Rates'!$BD154,FALSE)","v":0.61699999999999999},{"$f":"HLOOKUP(Calculations!$E$2,'Population 2016'!$C$3:$BC$249,'Population 2016'!BD154,FALSE)","v":6278},0,{"$f":"HLOOKUP(Results!E$4,Targeting!$C$3:$F$249,Targeting!$G154,FALSE)","v":1031},{"$f":"IF(AND(OR(Calculations!$E$2=\"Orkney Health Board\",Calculations!$E$2=\"Orkney Islands Local Authority\"),$F154=1),0,IF(AND(OR(Calculations!$E$2=\"Shetland Health Board\",Calculations!$E$2=\"Western Isles Health Board\",Calculations!$E$2=\"Shetland Islands Local Authority\",Calculations!$E$2=\"Eilean Siar Local Authority\"),OR($F154=1,$F154=5)),0,new_ci(VALUE(LEFT(Options!$B$24,2)),$C154,$E154,$F154,2016,$I154,1,$H154,$G154*$H154,Options!$B$8)))","v":641.86761304929996},{"$f":"IF(AND(OR(Calculations!$E$2=\"Orkney Health Board\",Calculations!$E$2=\"Orkney Islands Local Authority\"),$F154=1),0,IF(AND(OR(Calculations!$E$2=\"Shetland Health Board\",Calculations!$E$2=\"Western Isles Health Board\",Calculations!$E$2=\"Shetland Islands Local Authority\",Calculations!$E$2=\"Eilean Siar Local Authority\"),OR($F154=1,$F154=5)),0,new_ci(VALUE(LEFT(Options!$B$24,2)),$C154,$E154,$F154,2016,$I154+$J154,1,$H154,$G154*$H154,Options!$B$8)))","v":637.54097463879998},{"$f":"IF(AND(OR(Calculations!$E$2=\"Orkney Health Board\",Calculations!$E$2=\"Orkney Islands Local Authority\"),$F154=1),0,IF(AND(OR(Calculations!$E$2=\"Shetland Health Board\",Calculations!$E$2=\"Western Isles Health Board\",Calculations!$E$2=\"Shetland Islands Local Authority\",Calculations!$E$2=\"Eilean Siar Local Authority\"),OR($F154=1,$F154=5)),0,new_yllv2(VALUE(LEFT(Options!$B$24,2)),$C154,$D154,$E154,$F154,2016,$I154,1,$H154,$G154*$H154,Options!$B$8)))","v":1604.6671070204},{"$f":"IF(AND(OR(Calculations!$E$2=\"Orkney Health Board\",Calculations!$E$2=\"Orkney Islands Local Authority\"),$F154=1),0,IF(AND(OR(Calculations!$E$2=\"Shetland Health Board\",Calculations!$E$2=\"Western Isles Health Board\",Calculations!$E$2=\"Shetland Islands Local Authority\",Calculations!$E$2=\"Eilean Siar Local Authority\"),OR($F154=1,$F154=5)),0,new_yllv2(VALUE(LEFT(Options!$B$24,2)),$C154,$D154,$E154,$F154,2016,$I154+$J154,1,$H154,$G154*$H154,Options!$B$8)))","v":1593.8505239741},{"$f":"IF(AND(OR(Calculations!$E$2=\"Orkney Health Board\",Calculations!$E$2=\"Orkney Islands Local Authority\"),$F154=1),0,IF(AND(OR(Calculations!$E$2=\"Shetland Health Board\",Calculations!$E$2=\"Western Isles Health Board\",Calculations!$E$2=\"Shetland Islands Local Authority\",Calculations!$E$2=\"Eilean Siar Local Authority\"),OR($F154=1,$F154=5)),0,hosp_count(VALUE(LEFT(Options!$B$24,2)),$C154,$E154,$F154,2016,$I154,1,$H154,$G154*$H154, Options!$B$8)))","v":{"$error":"#NAME?"}},{"$f":"IF(AND(OR(Calculations!$E$2=\"Orkney Health Board\",Calculations!$E$2=\"Orkney Islands Local Authority\"),$F154=1),0,IF(AND(OR(Calculations!$E$2=\"Shetland Health Board\",Calculations!$E$2=\"Western Isles Health Board\",Calculations!$E$2=\"Shetland Islands Local Authority\",Calculations!$E$2=\"Eilean Siar Local Authority\"),OR($F154=1,$F154=5)),0,hosp_count(VALUE(LEFT(Options!$B$24,2)),$C154,$E154,$F154,2016,$I154+$J154,1,$H154,$G154*$H154, Options!$B$8)))","v":{"$error":"#NAME?"}},{"$f":"IF(AND(OR(Calculations!$E$2=\"Orkney Health Board\",Calculations!$E$2=\"Orkney Islands Local Authority\"),$F154=1),0,IF(AND(OR(Calculations!$E$2=\"Shetland Health Board\",Calculations!$E$2=\"Western Isles Health Board\",Calculations!$E$2=\"Shetland Islands Local Authority\",Calculations!$E$2=\"Eilean Siar Local Authority\"),OR($F154=1,$F154=5)),0,prem_mort(VALUE(LEFT(Options!$B$24,2)),$C154,$E154,$F154,2016,$I154,1,$H154,$G154*$H154,Options!$B$8)))","v":0},{"$f":"IF(AND(OR(Calculations!$E$2=\"Orkney Health Board\",Calculations!$E$2=\"Orkney Islands Local Authority\"),$F154=1),0,IF(AND(OR(Calculations!$E$2=\"Shetland Health Board\",Calculations!$E$2=\"Western Isles Health Board\",Calculations!$E$2=\"Shetland Islands Local Authority\",Calculations!$E$2=\"Eilean Siar Local Authority\"),OR($F154=1,$F154=5)),0,prem_mort(VALUE(LEFT(Options!$B$24,2)),$C154,$E154,$F154,2016,$I154+$J154,1,$H154,$G154*$H154,Options!$B$8)))","v":0},10224.077939619305,10155.160475291494,25560.164176814269,25387.870722747692,{"$error":"#NAME?"},{"$error":"#NAME?"},0,0,10224077.939619305,10155160.475291494,25560164.176814269,25387870.722747691,{"$error":"#NAME?"},{"$error":"#NAME?"},0,0,1000]
[null,"Male 0-4",2.0320822999999999,77.402082000000007,"male",3,{"$f":"HLOOKUP(Calculations!$E$2,'Prevalence Rates'!$C$3:$BC$249,'Prevalence Rates'!$BD155,FALSE)","v":0},{"$f":"HLOOKUP(Calculations!$E$2,'Population 2016'!$C$3:$BC$249,'Population 2016'!BD155,FALSE)","v":0},0,{"$f":"HLOOKUP(Results!E$4,Targeting!$C$3:$F$249,Targeting!$G155,FALSE)","v":0},{"$f":"IF(AND(OR(Calculations!$E$2=\"Orkney Health Board\",Calculations!$E$2=\"Orkney Islands Local Authority\"),$F155=1),0,IF(AND(OR(Calculations!$E$2=\"Shetland Health Board\",Calculations!$E$2=\"Western Isles Health Board\",Calculations!$E$2=\"Shetland Islands Local Authority\",Calculations!$E$2=\"Eilean Siar Local Authority\"),OR($F155=1,$F155=5)),0,new_ci(VALUE(LEFT(Options!$B$24,2)),$C155,$E155,$F155,2016,$I155,1,$H155,$G155*$H155,Options!$B$8)))","v":{"$error":"#VALUE!"}},{"$f":"IF(AND(OR(Calculations!$E$2=\"Orkney Health Board\",Calculations!$E$2=\"Orkney Islands Local Authority\"),$F155=1),0,IF(AND(OR(Calculations!$E$2=\"Shetland Health Board\",Calculations!$E$2=\"Western Isles Health Board\",Calculations!$E$2=\"Shetland Islands Local Authority\",Calculations!$E$2=\"Eilean Siar Local Authority\"),OR($F155=1,$F155=5)),0,new_ci(VALUE(LEFT(Options!$B$24,2)),$C155,$E155,$F155,2016,$I155+$J155,1,$H155,$G155*$H155,Options!$B$8)))","v":{"$error":"#VALUE!"}},{"$f":"IF(AND(OR(Calculations!$E$2=\"Orkney Health Board\",Calculations!$E$2=\"Orkney Islands Local Authority\"),$F155=1),0,IF(AND(OR(Calculations!$E$2=\"Shetland Health Board\",Calculations!$E$2=\"Western Isles Health Board\",Calculations!$E$2=\"Shetland Islands Local Authority\",Calculations!$E$2=\"Eilean Siar Local Authority\"),OR($F155=1,$F155=5)),0,new_yllv2(VALUE(LEFT(Options!$B$24,2)),$C155,$D155,$E155,$F155,2016,$I155,1,$H155,$G155*$H155,Options!$B$8)))","v":{"$error":"#VALUE!"}},{"$f":"IF(AND(OR(Calculations!$E$2=\"Orkney Health Board\",Calculations!$E$2=\"Orkney Islands Local Authority\"),$F155=1),0,IF(AND(OR(Calculations!$E$2=\"Shetland Health Board\",Calculations!$E$2=\"Western Isles Health Board\",Calculations!$E$2=\"Shetland Islands Local Authority\",Calculations!$E$2=\"Eilean Siar Local Authority\"),OR($F155=1,$F155=5)),0,new_yllv2(VALUE(LEFT(Options!$B$24,2)),$C155,$D155,$E155,$F155,2016,$I155+$J155,1,$H155,$G155*$H155,Options!$B$8)))","v":{"$error":"#VALUE!"}},{"$f":"IF(AND(OR(Calculations!$E$2=\"Orkney Health Board\",Calculations!$E$2=\"Orkney Islands Local Authority\"),$F155=1),0,IF(AND(OR(Calculations!$E$2=\"Shetland Health Board\",Calculations!$E$2=\"Western Isles Health Board\",Calculations!$E$2=\"Shetland Islands Local Authority\",Calculations!$E$2=\"Eilean Siar Local Authority\"),OR($F155=1,$F155=5)),0,hosp_count(VALUE(LEFT(Options!$B$24,2)),$C155,$E155,$F155,2016,$I155,1,$H155,$G155*$H155, Options!$B$8)))","v":{"$error":"#NAME?"}},{"$f":"IF(AND(OR(Calculations!$E$2=\"Orkney Health Board\",Calculations!$E$2=\"Orkney Islands Local Authority\"),$F155=1),0,IF(AND(OR(Calculations!$E$2=\"Shetland Health Board\",Calculations!$E$2=\"Western Isles Health Board\",Calculations!$E$2=\"Shetland Islands Local Authority\",Calculations!$E$2=\"Eilean Siar Local Authority\"),OR($F155=1,$F155=5)),0,hosp_count(VALUE(LEFT(Options!$B$24,2)),$C155,$E155,$F155,2016,$I155+$J155,1,$H155,$G155*$H155, Options!$B$8)))","v":{"$error":"#NAME?"}},{"$f":"IF(AND(OR(Calculations!$E$2=\"Orkney Health Board\",Calculations!$E$2=\"Orkney Islands Local Authority\"),$F155=1),0,IF(AND(OR(Calculations!$E$2=\"Shetland Health Board\",Calculations!$E$2=\"Western Isles Health Board\",Calculations!$E$2=\"Shetland Islands Local Authority\",Calculations!$E$2=\"Eilean Siar Local Authority\"),OR($F155=1,$F155=5)),0,prem_mort(VALUE(LEFT(Options!$B$24,2)),$C155,$E155,$F155,2016,$I155,1,$H155,$G155*$H155,Options!$B$8)))","v":{"$error":"#VALUE!"}},{"$f":"IF(AND(OR(Calculations!$E$2=\"Orkney Health Board\",Calculations!$E$2=\"Orkney Islands Local Authority\"),$F155=1),0,IF(AND(OR(Calculations!$E$2=\"Shetland Health Board\",Calculations!$E$2=\"Western Isles Health Board\",Calculations!$E$2=\"Shetland Islands Local Authority\",Calculations!$E$2=\"Eilean Siar Local Authority\"),OR($F155=1,$F155=5)),0,prem_mort(VALUE(LEFT(Options!$B$24,2)),$C155,$E155,$F155,2016,$I155+$J155,1,$H155,$G155*$H155,Options!$B$8)))","v":{"$error":"#VALUE!"}},{"$error":"#VALUE!"},{"$error":"#VALUE!"},{"$error":"#VALUE!"},{"$error":"#VALUE!"},{"$error":"#NAME?"},{"$error":"#NAME?"},{"$error":"#VALUE!"},{"$error":"#VALUE!"},{"$error":"#VALUE!"},{"$error":"#VALUE!"},{"$error":"#VALUE!"},{"$error":"#VALUE!"},{"$error":"#NAME?"},{"$error":"#NAME?"},{"$error":"#VALUE!"},{"$error":"#VALUE!"},5000]
[null,"Male 5-9",6.9784756000000003,77.398476000000002,"male",3,{"$f":"HLOOKUP(Calculations!$E$2,'Prevalence Rates'!$C$3:$BC$249,'Prevalence Rates'!$BD156,FALSE)","v":0},{"$f":"HLOOKUP(Calculations!$E$2,'Population 2016'!$C$3:$BC$249,'Population 2016'!BD156,FALSE)","v":0},0,{"$f":"HLOOKUP(Results!E$4,Targeting!$C$3:$F$249,Targeting!$G156,FALSE)","v":0},{"$f":"IF(AND(OR(Calculations!$E$2=\"Orkney Health Board\",Calculations!$E$2=\"Orkney Islands Local Authority\"),$F156=1),0,IF(AND(OR(Calculations!$E$2=\"Shetland Health Board\",Calculations!$E$2=\"Western Isles Health Board\",Calculations!$E$2=\"Shetland Islands Local Authority\",Calculations!$E$2=\"Eilean Siar Local Authority\"),OR($F156=1,$F156=5)),0,new_ci(VALUE(LEFT(Options!$B$24,2)),$C156,$E156,$F156,2016,$I156,1,$H156,$G156*$H156,Options!$B$8)))","v":{"$error":"#VALUE!"}},{"$f":"IF(AND(OR(Calculations!$E$2=\"Orkney Health Board\",Calculations!$E$2=\"Orkney Islands Local Authority\"),$F156=1),0,IF(AND(OR(Calculations!$E$2=\"Shetland Health Board\",Calculations!$E$2=\"Western Isles Health Board\",Calculations!$E$2=\"Shetland Islands Local Authority\",Calculations!$E$2=\"Eilean Siar Local Authority\"),OR($F156=1,$F156=5)),0,new_ci(VALUE(LEFT(Options!$B$24,2)),$C156,$E156,$F156,2016,$I156+$J156,1,$H156,$G156*$H156,Options!$B$8)))","v":{"$error":"#VALUE!"}},{"$f":"IF(AND(OR(Calculations!$E$2=\"Orkney Health Board\",Calculations!$E$2=\"Orkney Islands Local Authority\"),$F156=1),0,IF(AND(OR(Calculations!$E$2=\"Shetland Health Board\",Calculations!$E$2=\"Western Isles Health Board\",Calculations!$E$2=\"Shetland Islands Local Authority\",Calculations!$E$2=\"Eilean Siar Local Authority\"),OR($F156=1,$F156=5)),0,new_yllv2(VALUE(LEFT(Options!$B$24,2)),$C156,$D156,$E156,$F156,2016,$I156,1,$H156,$G156*$H156,Options!$B$8)))","v":{"$error":"#VALUE!"}},{"$f":"IF(AND(OR(Calculations!$E$2=\"Orkney Health Board\",Calculations!$E$2=\"Orkney Islands Local Authority\"),$F156=1),0,IF(AND(OR(Calculations!$E$2=\"Shetland Health Board\",Calculations!$E$2=\"Western Isles Health Board\",Calculations!$E$2=\"Shetland Islands Local Authority\",Calculations!$E$2=\"Eilean Siar Local Authority\"),OR($F156=1,$F156=5)),0,new_yllv2(VALUE(LEFT(Options!$B$24,2)),$C156,$D156,$E156,$F156,2016,$I156+$J156,1,$H156,$G156*$H156,Options!$B$8)))","v":{"$error":"#VALUE!"}},{"$f":"IF(AND(OR(Calculations!$E$2=\"Orkney Health Board\",Calculations!$E$2=\"Orkney Islands Local Authority\"),$F156=1),0,IF(AND(OR(Calculations!$E$2=\"Shetland Health Board\",Calculations!$E$2=\"Western Isles Health Board\",Calculations!$E$2=\"Shetland Islands Local Authority\",Calculations!$E$2=\"Eilean Siar Local Authority\"),OR($F156=1,$F156=5)),0,hosp_count(VALUE(LEFT(Options!$B$24,2)),$C156,$E156,$F156,2016,$I156,1,$H156,$G156*$H156, Options!$B$8)))","v":{"$error":"#NAME?"}},{"$f":"IF(AND(OR(Calculations!$E$2=\"Orkney Health Board\",Calculations!$E$2=\"Orkney Islands Local Authority\"),$F156=1),0,IF(AND(OR(Calculations!$E$2=\"Shetland Health Board\",Calculations!$E$2=\"Western Isles Health Board\",Calculations!$E$2=\"Shetland Islands Local Authority\",Calculations!$E$2=\"Eilean Siar Local Authority\"),OR($F156=1,$F156=5)),0,hosp_count(VALUE(LEFT(Options!$B$24,2)),$C156,$E156,$F156,2016,$I156+$J156,1,$H156,$G156*$H156, Options!$B$8)))","v":{"$error":"#NAME?"}},{"$f":"IF(AND(OR(Calculations!$E$2=\"Orkney Health Board\",Calculations!$E$2=\"Orkney Islands Local Authority\"),$F156=1),0,IF(AND(OR(Calculations!$E$2=\"Shetland Health Board\",Calculations!$E$2=\"Western Isles Health Board\",Calculations!$E$2=\"Shetland Islands Local Authority\",Calculations!$E$2=\"Eilean Siar Local Authority\"),OR($F156=1,$F156=5)),0,prem_mort(VALUE(LEFT(Options!$B$24,2)),$C156,$E156,$F156,2016,$I156,1,$H156,$G156*$H156,Options!$B$8)))","v":{"$error":"#VALUE!"}},{"$f":"IF(AND(OR(Calculations!$E$2=\"Orkney Health Board\",Calculations!$E$2=\"Orkney Islands Local Authority\"),$F156=1),0,IF(AND(OR(Calculations!$E$2=\"Shetland Health Board\",Calculations!$E$2=\"Western Isles Health Board\",Calculations!$E$2=\"Shetland Islands Local Authority\",Calculations!$E$2=\"Eilean Siar Local Authority\"),OR($F156=1,$F156=5)),0,prem_mort(VALUE(LEFT(Options!$B$24,2)),$C156,$E156,$F156,2016,$I156+$J156,1,$H156,$G156*$H156,Options!$B$8)))","v":{"$error":"#VALUE!"}},{"$error":"#VALUE!"},{"$error":"#VALUE!"},{"$error":"#VALUE!"},{"$error":"#VALUE!"},{"$error":"#NAME?"},{"$error":"#NAME?"},{"$error":"#VALUE!"},{"$error":"#VALUE!"},{"$error":"#VALUE!"},{"$error":"#VALUE!"},{"$error":"#VALUE!"},{"$error":"#VALUE!"},{"$f":"W156*$AI156","v":{"$error":"#NAME?"}},{"$f":"X156*$AI156","v":{"$error":"#NAME?"}},{"$f":"Y156*$AI156","v":{"$error":"#VALUE!"}},{"$f":"Z156*$AI156","v":{"$error":"#VALUE!"}},5500]
[null,"Male 10-15",12.471144000000001,77.921140000000008,"male",3,{"$f":"HLOOKUP(Calculations!$E$2,'Prevalence Rates'!$C$3:$BC$249,'Prevalence Rates'!$BD157,FALSE)","v":0},{"$f":"HLOOKUP(Calculations!$E$2,'Population 2016'!$C$3:$BC$249,'Population 2016'!BD157,FALSE)","v":0},0,{"$f":"HLOOKUP(Results!E$4,Targeting!$C$3:$F$249,Targeting!$G157,FALSE)","v":0},{"$f":"IF(AND(OR(Calculations!$E$2=\"Orkney Health Board\",Calculations!$E$2=\"Orkney Islands Local Authority\"),$F157=1),0,IF(AND(OR(Calculations!$E$2=\"Shetland Health Board\",Calculations!$E$2=\"Western Isles Health Board\",Calculations!$E$2=\"Shetland Islands Local Authority\",Calculations!$E$2=\"Eilean Siar Local Authority\"),OR($F157=1,$F157=5)),0,new_ci(VALUE(LEFT(Options!$B$24,2)),$C157,$E157,$F157,2016,$I157,1,$H157,$G157*$H157,Options!$B$8)))","v":{"$error":"#VALUE!"}},{"$f":"IF(AND(OR(Calculations!$E$2=\"Orkney Health Board\",Calculations!$E$2=\"Orkney Islands Local Authority\"),$F157=1),0,IF(AND(OR(Calculations!$E$2=\"Shetland Health Board\",Calculations!$E$2=\"Western Isles Health Board\",Calculations!$E$2=\"Shetland Islands Local Authority\",Calculations!$E$2=\"Eilean Siar Local Authority\"),OR($F157=1,$F157=5)),0,new_ci(VALUE(LEFT(Options!$B$24,2)),$C157,$E157,$F157,2016,$I157+$J157,1,$H157,$G157*$H157,Options!$B$8)))","v":{"$error":"#VALUE!"}},{"$f":"IF(AND(OR(Calculations!$E$2=\"Orkney Health Board\",Calculations!$E$2=\"Orkney Islands Local Authority\"),$F157=1),0,IF(AND(OR(Calculations!$E$2=\"Shetland Health Board\",Calculations!$E$2=\"Western Isles Health Board\",Calculations!$E$2=\"Shetland Islands Local Authority\",Calculations!$E$2=\"Eilean Siar Local Authority\"),OR($F157=1,$F157=5)),0,new_yllv2(VALUE(LEFT(Options!$B$24,2)),$C157,$D157,$E157,$F157,2016,$I157,1,$H157,$G157*$H157,Options!$B$8)))","v":{"$error":"#VALUE!"}},{"$f":"IF(AND(OR(Calculations!$E$2=\"Orkney Health Board\",Calculations!$E$2=\"Orkney Islands Local Authority\"),$F157=1),0,IF(AND(OR(Calculations!$E$2=\"Shetland Health Board\",Calculations!$E$2=\"Western Isles Health Board\",Calculations!$E$2=\"Shetland Islands Local Authority\",Calculations!$E$2=\"Eilean Siar Local Authority\"),OR($F157=1,$F157=5)),0,new_yllv2(VALUE(LEFT(Options!$B$24,2)),$C157,$D157,$E157,$F157,2016,$I157+$J157,1,$H157,$G157*$H157,Options!$B$8)))","v":{"$error":"#VALUE!"}},{"$f":"IF(AND(OR(Calculations!$E$2=\"Orkney Health Board\",Calculations!$E$2=\"Orkney Islands Local Authority\"),$F157=1),0,IF(AND(OR(Calculations!$E$2=\"Shetland Health Board\",Calculations!$E$2=\"Western Isles Health Board\",Calculations!$E$2=\"Shetland Islands Local Authority\",Calculations!$E$2=\"Eilean Siar Local Authority\"),OR($F157=1,$F157=5)),0,hosp_count(VALUE(LEFT(Options!$B$24,2)),$C157,$E157,$F157,2016,$I157,1,$H157,$G157*$H157, Options!$B$8)))","v":{"$error":"#NAME?"}},{"$f":"IF(AND(OR(Calculations!$E$2=\"Orkney Health Board\",Calculations!$E$2=\"Orkney Islands Local Authority\"),$F157=1),0,IF(AND(OR(Calculations!$E$2=\"Shetland Health Board\",Calculations!$E$2=\"Western Isles Health Board\",Calculations!$E$2=\"Shetland Islands Local Authority\",Calculations!$E$2=\"Eilean Siar Local Authority\"),OR($F157=1,$F157=5)),0,hosp_count(VALUE(LEFT(Options!$B$24,2)),$C157,$E157,$F157,2016,$I157+$J157,1,$H157,$G157*$H157, Options!$B$8)))","v":{"$error":"#NAME?"}},{"$f":"IF(AND(OR(Calculations!$E$2=\"Orkney Health Board\",Calculations!$E$2=\"Orkney Islands Local Authority\"),$F157=1),0,IF(AND(OR(Calculations!$E$2=\"Shetland Health Board\",Calculations!$E$2=\"Western Isles Health Board\",Calculations!$E$2=\"Shetland Islands Local Authority\",Calculations!$E$2=\"Eilean Siar Local Authority\"),OR($F157=1,$F157=5)),0,prem_mort(VALUE(LEFT(Options!$B$24,2)),$C157,$E157,$F157,2016,$I157,1,$H157,$G157*$H157,Options!$B$8)))","v":{"$error":"#VALUE!"}},{"$f":"IF(AND(OR(Calculations!$E$2=\"Orkney Health Board\",Calculations!$E$2=\"Orkney Islands Local Authority\"),$F157=1),0,IF(AND(OR(Calculations!$E$2=\"Shetland Health Board\",Calculations!$E$2=\"Western Isles Health Board\",Calculations!$E$2=\"Shetland Islands Local Authority\",Calculations!$E$2=\"Eilean Siar Local Authority\"),OR($F157=1,$F157=5)),0,prem_mort(VALUE(LEFT(Options!$B$24,2)),$C157,$E157,$F157,2016,$I157+$J157,1,$H157,$G157*$H157,Options!$B$8)))","v":{"$error":"#VALUE!"}},{"$error":"#VALUE!"},{"$error":"#VALUE!"},{"$error":"#VALUE!"},{"$error":"#VALUE!"},{"$error":"#NAME?"},{"$error":"#NAME?"},{"$error":"#VALUE!"},{"$error":"#VALUE!"},{"$error":"#VALUE!"},{"$error":"#VALUE!"},{"$error":"#VALUE!"},{"$error":"#VALUE!"},{"$error":"#NAME?"},{"$error":"#NAME?"},{"$error":"#VALUE!"},{"$error":"#VALUE!"},6600]
[null,"Male 16-19",17.556318000000001,77.07632000000001,"male",3,{"$f":"HLOOKUP(Calculations!$E$2,'Prevalence Rates'!$C$3:$BC$249,'Prevalence Rates'!$BD158,FALSE)","v":0.34700000000000003},{"$f":"HLOOKUP(Calculations!$E$2,'Population 2016'!$C$3:$BC$249,'Population 2016'!BD158,FALSE)","v":23727},0,{"$f":"HLOOKUP(Results!E$4,Targeting!$C$3:$F$249,Targeting!$G158,FALSE)","v":3896},{"$f":"IF(AND(OR(Calculations!$E$2=\"Orkney Health Board\",Calculations!$E$2=\"Orkney Islands Local Authority\"),$F158=1),0,IF(AND(OR(Calculations!$E$2=\"Shetland Health Board\",Calculations!$E$2=\"Western Isles Health Board\",Calculations!$E$2=\"Shetland Islands Local Authority\",Calculations!$E$2=\"Eilean Siar Local Authority\"),OR($F158=1,$F158=5)),0,new_ci(VALUE(LEFT(Options!$B$24,2)),$C158,$E158,$F158,2016,$I158,1,$H158,$G158*$H158,Options!$B$8)))","v":10.1548938594},{"$f":"IF(AND(OR(Calculations!$E$2=\"Orkney Health Board\",Calculations!$E$2=\"Orkney Islands Local Authority\"),$F158=1),0,IF(AND(OR(Calculations!$E$2=\"Shetland Health Board\",Calculations!$E$2=\"Western Isles Health Board\",Calculations!$E$2=\"Shetland Islands Local Authority\",Calculations!$E$2=\"Eilean Siar Local Authority\"),OR($F158=1,$F158=5)),0,new_ci(VALUE(LEFT(Options!$B$24,2)),$C158,$E158,$F158,2016,$I158+$J158,1,$H158,$G158*$H158,Options!$B$8)))","v":10.0745143146},{"$f":"IF(AND(OR(Calculations!$E$2=\"Orkney Health Board\",Calculations!$E$2=\"Orkney Islands Local Authority\"),$F158=1),0,IF(AND(OR(Calculations!$E$2=\"Shetland Health Board\",Calculations!$E$2=\"Western Isles Health Board\",Calculations!$E$2=\"Shetland Islands Local Authority\",Calculations!$E$2=\"Eilean Siar Local Authority\"),OR($F158=1,$F158=5)),0,new_yllv2(VALUE(LEFT(Options!$B$24,2)),$C158,$D158,$E158,$F158,2016,$I158,1,$H158,$G158*$H158,Options!$B$8)))","v":594.26440896190002},{"$f":"IF(AND(OR(Calculations!$E$2=\"Orkney Health Board\",Calculations!$E$2=\"Orkney Islands Local Authority\"),$F158=1),0,IF(AND(OR(Calculations!$E$2=\"Shetland Health Board\",Calculations!$E$2=\"Western Isles Health Board\",Calculations!$E$2=\"Shetland Islands Local Authority\",Calculations!$E$2=\"Eilean Siar Local Authority\"),OR($F158=1,$F158=5)),0,new_yllv2(VALUE(LEFT(Options!$B$24,2)),$C158,$D158,$E158,$F158,2016,$I158+$J158,1,$H158,$G158*$H158,Options!$B$8)))","v":589.56059783939997},{"$f":"IF(AND(OR(Calculations!$E$2=\"Orkney Health Board\",Calculations!$E$2=\"Orkney Islands Local Authority\"),$F158=1),0,IF(AND(OR(Calculations!$E$2=\"Shetland Health Board\",Calculations!$E$2=\"Western Isles Health Board\",Calculations!$E$2=\"Shetland Islands Local Authority\",Calculations!$E$2=\"Eilean Siar Local Authority\"),OR($F158=1,$F158=5)),0,hosp_count(VALUE(LEFT(Options!$B$24,2)),$C158,$E158,$F158,2016,$I158,1,$H158,$G158*$H158, Options!$B$8)))","v":{"$error":"#NAME?"}},{"$f":"IF(AND(OR(Calculations!$E$2=\"Orkney Health Board\",Calculations!$E$2=\"Orkney Islands Local Authority\"),$F158=1),0,IF(AND(OR(Calculations!$E$2=\"Shetland Health Board\",Calculations!$E$2=\"Western Isles Health Board\",Calculations!$E$2=\"Shetland Islands Local Authority\",Calculations!$E$2=\"Eilean Siar Local Authority\"),OR($F158=1,$F158=5)),0,hosp_count(VALUE(LEFT(Options!$B$24,2)),$C158,$E158,$F158,2016,$I158+$J158,1,$H158,$G158*$H158, Options!$B$8)))","v":{"$error":"#NAME?"}},{"$f":"IF(AND(OR(Calculations!$E$2=\"Orkney Health Board\",Calculations!$E$2=\"Orkney Islands Local Authority\"),$F158=1),0,IF(AND(OR(Calculations!$E$2=\"Shetland Health Board\",Calculations!$E$2=\"Western Isles Health Board\",Calculations!$E$2=\"Shetland Islands Local Authority\",Calculations!$E$2=\"Eilean Siar Local Authority\"),OR($F158=1,$F158=5)),0,prem_mort(VALUE(LEFT(Options!$B$24,2)),$C158,$E158,$F158,2016,$I158,1,$H158,$G158*$H158,Options!$B$8)))","v":10.1548938594},{"$f":"IF(AND(OR(Calculations!$E$2=\"Orkney Health Board\",Calculations!$E$2=\"Orkney Islands Local Authority\"),$F158=1),0,IF(AND(OR(Calculations!$E$2=\"Shetland Health Board\",Calculations!$E$2=\"Western Isles Health Board\",Calculations!$E$2=\"Shetland Islands Local Authority\",Calculations!$E$2=\"Eilean Siar Local Authority\"),OR($F158=1,$F158=5)),0,prem_mort(VALUE(LEFT(Options!$B$24,2)),$C158,$E158,$F158,2016,$I158+$J158,1,$H158,$G158*$H158,Options!$B$8)))","v":10.0745143146},42.798895180174483,42.460126921228976,2504.5914315417035,2484.7667123504866,{"$error":"#NAME?"},{"$error":"#NAME?"},42.798895180174483,42.460126921228976,188315.13879276771,186824.55845340749,11020202.298783496,10932973.534342142,{"$error":"#NAME?"},{"$error":"#NAME?"},188315.13879276771,186824.55845340749,4400]
[null,"Male 20-24",22.054632000000002,77.704629999999995,"male",3,{"$f":"HLOOKUP(Calculations!$E$2,'Prevalence Rates'!$C$3:$BC$249,'Prevalence Rates'!$BD159,FALSE)","v":0.34700000000000003},{"$f":"HLOOKUP(Calculations!$E$2,'Population 2016'!$C$3:$BC$249,'Population 2016'!BD159,FALSE)","v":35247},0,{"$f":"HLOOKUP(Results!E$4,Targeting!$C$3:$F$249,Targeting!$G159,FALSE)","v":5787},{"$f":"IF(AND(OR(Calculations!$E$2=\"Orkney Health Board\",Calculations!$E$2=\"Orkney Islands Local Authority\"),$F159=1),0,IF(AND(OR(Calculations!$E$2=\"Shetland Health Board\",Calculations!$E$2=\"Western Isles Health Board\",Calculations!$E$2=\"Shetland Islands Local Authority\",Calculations!$E$2=\"Eilean Siar Local Authority\"),OR($F159=1,$F159=5)),0,new_ci(VALUE(LEFT(Options!$B$24,2)),$C159,$E159,$F159,2016,$I159,1,$H159,$G159*$H159,Options!$B$8)))","v":21.183987473999998},{"$f":"IF(AND(OR(Calculations!$E$2=\"Orkney Health Board\",Calculations!$E$2=\"Orkney Islands Local Authority\"),$F159=1),0,IF(AND(OR(Calculations!$E$2=\"Shetland Health Board\",Calculations!$E$2=\"Western Isles Health Board\",Calculations!$E$2=\"Shetland Islands Local Authority\",Calculations!$E$2=\"Eilean Siar Local Authority\"),OR($F159=1,$F159=5)),0,new_ci(VALUE(LEFT(Options!$B$24,2)),$C159,$E159,$F159,2016,$I159+$J159,1,$H159,$G159*$H159,Options!$B$8)))","v":21.0163473432},{"$f":"IF(AND(OR(Calculations!$E$2=\"Orkney Health Board\",Calculations!$E$2=\"Orkney Islands Local Authority\"),$F159=1),0,IF(AND(OR(Calculations!$E$2=\"Shetland Health Board\",Calculations!$E$2=\"Western Isles Health Board\",Calculations!$E$2=\"Shetland Islands Local Authority\",Calculations!$E$2=\"Eilean Siar Local Authority\"),OR($F159=1,$F159=5)),0,new_yllv2(VALUE(LEFT(Options!$B$24,2)),$C159,$D159,$E159,$F159,2016,$I159,1,$H159,$G159*$H159,Options!$B$8)))","v":1157.7048730861},{"$f":"IF(AND(OR(Calculations!$E$2=\"Orkney Health Board\",Calculations!$E$2=\"Orkney Islands Local Authority\"),$F159=1),0,IF(AND(OR(Calculations!$E$2=\"Shetland Health Board\",Calculations!$E$2=\"Western Isles Health Board\",Calculations!$E$2=\"Shetland Islands Local Authority\",Calculations!$E$2=\"Eilean Siar Local Authority\"),OR($F159=1,$F159=5)),0,new_yllv2(VALUE(LEFT(Options!$B$24,2)),$C159,$D159,$E159,$F159,2016,$I159+$J159,1,$H159,$G159*$H159,Options!$B$8)))","v":1148.5433402732001},{"$f":"IF(AND(OR(Calculations!$E$2=\"Orkney Health Board\",Calculations!$E$2=\"Orkney Islands Local Authority\"),$F159=1),0,IF(AND(OR(Calculations!$E$2=\"Shetland Health Board\",Calculations!$E$2=\"Western Isles Health Board\",Calculations!$E$2=\"Shetland Islands Local Authority\",Calculations!$E$2=\"Eilean Siar Local Authority\"),OR($F159=1,$F159=5)),0,hosp_count(VALUE(LEFT(Options!$B$24,2)),$C159,$E159,$F159,2016,$I159,1,$H159,$G159*$H159, Options!$B$8)))","v":{"$error":"#NAME?"}},{"$f":"IF(AND(OR(Calculations!$E$2=\"Orkney Health Board\",Calculations!$E$2=\"Orkney Islands Local Authority\"),$F159=1),0,IF(AND(OR(Calculations!$E$2=\"Shetland Health Board\",Calculations!$E$2=\"Western Isles Health Board\",Calculations!$E$2=\"Shetland Islands Local Authority\",Calculations!$E$2=\"Eilean Siar Local Authority\"),OR($F159=1,$F159=5)),0,hosp_count(VALUE(LEFT(Options!$B$24,2)),$C159,$E159,$F159,2016,$I159+$J159,1,$H159,$G159*$H159, Options!$B$8)))","v":{"$error":"#NAME?"}},{"$f":"IF(AND(OR(Calculations!$E$2=\"Orkney Health Board\",Calculations!$E$2=\"Orkney Islands Local Authority\"),$F159=1),0,IF(AND(OR(Calculations!$E$2=\"Shetland Health Board\",Calculations!$E$2=\"Western Isles Health Board\",Calculations!$E$2=\"Shetland Islands Local Authority\",Calculations!$E$2=\"Eilean Siar Local Authority\"),OR($F159=1,$F159=5)),0,prem_mort(VALUE(LEFT(Options!$B$24,2)),$C159,$E159,$F159,2016,$I159,1,$H159,$G159*$H159,Options!$B$8)))","v":21.183987473999998},{"$f":"IF(AND(OR(Calculations!$E$2=\"Orkney Health Board\",Calculations!$E$2=\"Orkney Islands Local Authority\"),$F159=1),0,IF(AND(OR(Calculations!$E$2=\"Shetland Health Board\",Calculations!$E$2=\"Western Isles Health Board\",Calculations!$E$2=\"Shetland Islands Local Authority\",Calculations!$E$2=\"Eilean Siar Local Authority\"),OR($F159=1,$F159=5)),0,prem_mort(VALUE(LEFT(Options!$B$24,2)),$C159,$E159,$F159,2016,$I159+$J159,1,$H159,$G159*$H159,Options!$B$8)))","v":21.0163473432},60.101533390075744,59.625918073027485,3284.5486795645015,3258.5563034391585,{"$error":"#NAME?"},{"$error":"#NAME?"},60.101533390075744,59.625918073027485,360609.20034045447,357755.50843816489,19707292.077387009,19551337.82063495,{"$error":"#NAME?"},{"$error":"#NAME?"},360609.20034045447,357755.50843816489,6000]
[null,"Male 25-29",26.959762999999999,77.789760000000001,"male",3,{"$f":"HLOOKUP(Calculations!$E$2,'Prevalence Rates'!$C$3:$BC$249,'Prevalence Rates'!$BD160,FALSE)","v":0.29200000000000004},{"$f":"HLOOKUP(Calculations!$E$2,'Population 2016'!$C$3:$BC$249,'Population 2016'!BD160,FALSE)","v":35940},0,{"$f":"HLOOKUP(Results!E$4,Targeting!$C$3:$F$249,Targeting!$G160,FALSE)","v":5901},{"$f":"IF(AND(OR(Calculations!$E$2=\"Orkney Health Board\",Calculations!$E$2=\"Orkney Islands Local Authority\"),$F160=1),0,IF(AND(OR(Calculations!$E$2=\"Shetland Health Board\",Calculations!$E$2=\"Western Isles Health Board\",Calculations!$E$2=\"Shetland Islands Local Authority\",Calculations!$E$2=\"Eilean Siar Local Authority\"),OR($F160=1,$F160=5)),0,new_ci(VALUE(LEFT(Options!$B$24,2)),$C160,$E160,$F160,2016,$I160,1,$H160,$G160*$H160,Options!$B$8)))","v":31.277654719200001},{"$f":"IF(AND(OR(Calculations!$E$2=\"Orkney Health Board\",Calculations!$E$2=\"Orkney Islands Local Authority\"),$F160=1),0,IF(AND(OR(Calculations!$E$2=\"Shetland Health Board\",Calculations!$E$2=\"Western Isles Health Board\",Calculations!$E$2=\"Shetland Islands Local Authority\",Calculations!$E$2=\"Eilean Siar Local Authority\"),OR($F160=1,$F160=5)),0,new_ci(VALUE(LEFT(Options!$B$24,2)),$C160,$E160,$F160,2016,$I160+$J160,1,$H160,$G160*$H160,Options!$B$8)))","v":31.0249916022},{"$f":"IF(AND(OR(Calculations!$E$2=\"Orkney Health Board\",Calculations!$E$2=\"Orkney Islands Local Authority\"),$F160=1),0,IF(AND(OR(Calculations!$E$2=\"Shetland Health Board\",Calculations!$E$2=\"Western Isles Health Board\",Calculations!$E$2=\"Shetland Islands Local Authority\",Calculations!$E$2=\"Eilean Siar Local Authority\"),OR($F160=1,$F160=5)),0,new_yllv2(VALUE(LEFT(Options!$B$24,2)),$C160,$D160,$E160,$F160,2016,$I160,1,$H160,$G160*$H160,Options!$B$8)))","v":1558.5654408247999},{"$f":"IF(AND(OR(Calculations!$E$2=\"Orkney Health Board\",Calculations!$E$2=\"Orkney Islands Local Authority\"),$F160=1),0,IF(AND(OR(Calculations!$E$2=\"Shetland Health Board\",Calculations!$E$2=\"Western Isles Health Board\",Calculations!$E$2=\"Shetland Islands Local Authority\",Calculations!$E$2=\"Eilean Siar Local Authority\"),OR($F160=1,$F160=5)),0,new_yllv2(VALUE(LEFT(Options!$B$24,2)),$C160,$D160,$E160,$F160,2016,$I160+$J160,1,$H160,$G160*$H160,Options!$B$8)))","v":1545.9752384627},{"$f":"IF(AND(OR(Calculations!$E$2=\"Orkney Health Board\",Calculations!$E$2=\"Orkney Islands Local Authority\"),$F160=1),0,IF(AND(OR(Calculations!$E$2=\"Shetland Health Board\",Calculations!$E$2=\"Western Isles Health Board\",Calculations!$E$2=\"Shetland Islands Local Authority\",Calculations!$E$2=\"Eilean Siar Local Authority\"),OR($F160=1,$F160=5)),0,hosp_count(VALUE(LEFT(Options!$B$24,2)),$C160,$E160,$F160,2016,$I160,1,$H160,$G160*$H160, Options!$B$8)))","v":{"$error":"#NAME?"}},{"$f":"IF(AND(OR(Calculations!$E$2=\"Orkney Health Board\",Calculations!$E$2=\"Orkney Islands Local Authority\"),$F160=1),0,IF(AND(OR(Calculations!$E$2=\"Shetland Health Board\",Calculations!$E$2=\"Western Isles Health Board\",Calculations!$E$2=\"Shetland Islands Local Authority\",Calculations!$E$2=\"Eilean Siar Local Authority\"),OR($F160=1,$F160=5)),0,hosp_count(VALUE(LEFT(Options!$B$24,2)),$C160,$E160,$F160,2016,$I160+$J160,1,$H160,$G160*$H160, Options!$B$8)))","v":{"$error":"#NAME?"}},{"$f":"IF(AND(OR(Calculations!$E$2=\"Orkney Health Board\",Calculations!$E$2=\"Orkney Islands Local Authority\"),$F160=1),0,IF(AND(OR(Calculations!$E$2=\"Shetland Health Board\",Calculations!$E$2=\"Western Isles Health Board\",Calculations!$E$2=\"Shetland Islands Local Authority\",Calculations!$E$2=\"Eilean Siar Local Authority\"),OR($F160=1,$F160=5)),0,prem_mort(VALUE(LEFT(Options!$B$24,2)),$C160,$E160,$F160,2016,$I160,1,$H160,$G160*$H160,Options!$B$8)))","v":31.277654719200001},{"$f":"IF(AND(OR(Calculations!$E$2=\"Orkney Health Board\",Calculations!$E$2=\"Orkney Islands Local Authority\"),$F160=1),0,IF(AND(OR(Calculations!$E$2=\"Shetland Health Board\",Calculations!$E$2=\"Western Isles Health Board\",Calculations!$E$2=\"Shetland Islands Local Authority\",Calculations!$E$2=\"Eilean Siar Local Authority\"),OR($F160=1,$F160=5)),0,prem_mort(VALUE(LEFT(Options!$B$24,2)),$C160,$E160,$F160,2016,$I160+$J160,1,$H160,$G160*$H160,Options!$B$8)))","v":31.0249916022},87.027419919866446,86.324406238731214,4336.5760735247632,4301.5449039028936,{"$error":"#NAME?"},{"$error":"#NAME?"},87.027419919866446,86.324406238731214,522164.51951919869,517946.43743238726,26019456.441148579,25809269.42341736,{"$error":"#NAME?"},{"$error":"#NAME?"},522164.51951919869,517946.43743238726,6000]
[null,"Male 30-34",31.981521999999998,78.061520000000002,"male",3,{"$f":"HLOOKUP(Calculations!$E$2,'Prevalence Rates'!$C$3:$BC$249,'Prevalence Rates'!$BD161,FALSE)","v":0.29200000000000004},{"$f":"HLOOKUP(Calculations!$E$2,'Population 2016'!$C$3:$BC$249,'Population 2016'!BD161,FALSE)","v":34643},0,{"$f":"HLOOKUP(Results!E$4,Targeting!$C$3:$F$249,Targeting!$G161,FALSE)","v":5688},{"$f":"IF(AND(OR(Calculations!$E$2=\"Orkney Health Board\",Calculations!$E$2=\"Orkney Islands Local Authority\"),$F161=1),0,IF(AND(OR(Calculations!$E$2=\"Shetland Health Board\",Calculations!$E$2=\"Western Isles Health Board\",Calculations!$E$2=\"Shetland Islands Local Authority\",Calculations!$E$2=\"Eilean Siar Local Authority\"),OR($F161=1,$F161=5)),0,new_ci(VALUE(LEFT(Options!$B$24,2)),$C161,$E161,$F161,2016,$I161,1,$H161,$G161*$H161,Options!$B$8)))","v":44.038901689399999},{"$f":"IF(AND(OR(Calculations!$E$2=\"Orkney Health Board\",Calculations!$E$2=\"Orkney Islands Local Authority\"),$F161=1),0,IF(AND(OR(Calculations!$E$2=\"Shetland Health Board\",Calculations!$E$2=\"Western Isles Health Board\",Calculations!$E$2=\"Shetland Islands Local Authority\",Calculations!$E$2=\"Eilean Siar Local Authority\"),OR($F161=1,$F161=5)),0,new_ci(VALUE(LEFT(Options!$B$24,2)),$C161,$E161,$F161,2016,$I161+$J161,1,$H161,$G161*$H161,Options!$B$8)))","v":43.683260627000003},{"$f":"IF(AND(OR(Calculations!$E$2=\"Orkney Health Board\",Calculations!$E$2=\"Orkney Islands Local Authority\"),$F161=1),0,IF(AND(OR(Calculations!$E$2=\"Shetland Health Board\",Calculations!$E$2=\"Western Isles Health Board\",Calculations!$E$2=\"Shetland Islands Local Authority\",Calculations!$E$2=\"Eilean Siar Local Authority\"),OR($F161=1,$F161=5)),0,new_yllv2(VALUE(LEFT(Options!$B$24,2)),$C161,$D161,$E161,$F161,2016,$I161,1,$H161,$G161*$H161,Options!$B$8)))","v":1985.2736000803},{"$f":"IF(AND(OR(Calculations!$E$2=\"Orkney Health Board\",Calculations!$E$2=\"Orkney Islands Local Authority\"),$F161=1),0,IF(AND(OR(Calculations!$E$2=\"Shetland Health Board\",Calculations!$E$2=\"Western Isles Health Board\",Calculations!$E$2=\"Shetland Islands Local Authority\",Calculations!$E$2=\"Eilean Siar Local Authority\"),OR($F161=1,$F161=5)),0,new_yllv2(VALUE(LEFT(Options!$B$24,2)),$C161,$D161,$E161,$F161,2016,$I161+$J161,1,$H161,$G161*$H161,Options!$B$8)))","v":1969.2413016986},{"$f":"IF(AND(OR(Calculations!$E$2=\"Orkney Health Board\",Calculations!$E$2=\"Orkney Islands Local Authority\"),$F161=1),0,IF(AND(OR(Calculations!$E$2=\"Shetland Health Board\",Calculations!$E$2=\"Western Isles Health Board\",Calculations!$E$2=\"Shetland Islands Local Authority\",Calculations!$E$2=\"Eilean Siar Local Authority\"),OR($F161=1,$F161=5)),0,hosp_count(VALUE(LEFT(Options!$B$24,2)),$C161,$E161,$F161,2016,$I161,1,$H161,$G161*$H161, Options!$B$8)))","v":{"$error":"#NAME?"}},{"$f":"IF(AND(OR(Calculations!$E$2=\"Orkney Health Board\",Calculations!$E$2=\"Orkney Islands Local Authority\"),$F161=1),0,IF(AND(OR(Calculations!$E$2=\"Shetland Health Board\",Calculations!$E$2=\"Western Isles Health Board\",Calculations!$E$2=\"Shetland Islands Local Authority\",Calculations!$E$2=\"Eilean Siar Local Authority\"),OR($F161=1,$F161=5)),0,hosp_count(VALUE(LEFT(Options!$B$24,2)),$C161,$E161,$F161,2016,$I161+$J161,1,$H161,$G161*$H161, Options!$B$8)))","v":{"$error":"#NAME?"}},{"$f":"IF(AND(OR(Calculations!$E$2=\"Orkney Health Board\",Calculations!$E$2=\"Orkney Islands Local Authority\"),$F161=1),0,IF(AND(OR(Calculations!$E$2=\"Shetland Health Board\",Calculations!$E$2=\"Western Isles Health Board\",Calculations!$E$2=\"Shetland Islands Local Authority\",Calculations!$E$2=\"Eilean Siar Local Authority\"),OR($F161=1,$F161=5)),0,prem_mort(VALUE(LEFT(Options!$B$24,2)),$C161,$E161,$F161,2016,$I161,1,$H161,$G161*$H161,Options!$B$8)))","v":44.038901689399999},{"$f":"IF(AND(OR(Calculations!$E$2=\"Orkney Health Board\",Calculations!$E$2=\"Orkney Islands Local Authority\"),$F161=1),0,IF(AND(OR(Calculations!$E$2=\"Shetland Health Board\",Calculations!$E$2=\"Western Isles Health Board\",Calculations!$E$2=\"Shetland Islands Local Authority\",Calculations!$E$2=\"Eilean Siar Local Authority\"),OR($F161=1,$F161=5)),0,prem_mort(VALUE(LEFT(Options!$B$24,2)),$C161,$E161,$F161,2016,$I161+$J161,1,$H161,$G161*$H161,Options!$B$8)))","v":43.683260627000003},127.12207860000578,126.09549007591723,5730.6630490439629,5684.3844404312558,{"$error":"#NAME?"},{"$error":"#NAME?"},127.12207860000578,126.09549007591723,826293.5109000376,819620.68549346202,37249309.818785757,36948498.862803161,{"$error":"#NAME?"},{"$error":"#NAME?"},826293.5109000376,819620.68549346202,6500]
[null,"Male 35-39",36.926009999999998,78.336009999999987,"male",3,{"$f":"HLOOKUP(Calculations!$E$2,'Prevalence Rates'!$C$3:$BC$249,'Prevalence Rates'!$BD162,FALSE)","v":0.32299999999999995},{"$f":"HLOOKUP(Calculations!$E$2,'Population 2016'!$C$3:$BC$249,'Population 2016'!BD162,FALSE)","v":32007},0,{"$f":"HLOOKUP(Results!E$4,Targeting!$C$3:$F$249,Targeting!$G162,FALSE)","v":5255},{"$f":"IF(AND(OR(Calculations!$E$2=\"Orkney Health Board\",Calculations!$E$2=\"Orkney Islands Local Authority\"),$F162=1),0,IF(AND(OR(Calculations!$E$2=\"Shetland Health Board\",Calculations!$E$2=\"Western Isles Health Board\",Calculations!$E$2=\"Shetland Islands Local Authority\",Calculations!$E$2=\"Eilean Siar Local Authority\"),OR($F162=1,$F162=5)),0,new_ci(VALUE(LEFT(Options!$B$24,2)),$C162,$E162,$F162,2016,$I162,1,$H162,$G162*$H162,Options!$B$8)))","v":59.0823671148},{"$f":"IF(AND(OR(Calculations!$E$2=\"Orkney Health Board\",Calculations!$E$2=\"Orkney Islands Local Authority\"),$F162=1),0,IF(AND(OR(Calculations!$E$2=\"Shetland Health Board\",Calculations!$E$2=\"Western Isles Health Board\",Calculations!$E$2=\"Shetland Islands Local Authority\",Calculations!$E$2=\"Eilean Siar Local Authority\"),OR($F162=1,$F162=5)),0,new_ci(VALUE(LEFT(Options!$B$24,2)),$C162,$E162,$F162,2016,$I162+$J162,1,$H162,$G162*$H162,Options!$B$8)))","v":58.611016211299997},{"$f":"IF(AND(OR(Calculations!$E$2=\"Orkney Health Board\",Calculations!$E$2=\"Orkney Islands Local Authority\"),$F162=1),0,IF(AND(OR(Calculations!$E$2=\"Shetland Health Board\",Calculations!$E$2=\"Western Isles Health Board\",Calculations!$E$2=\"Shetland Islands Local Authority\",Calculations!$E$2=\"Eilean Siar Local Authority\"),OR($F162=1,$F162=5)),0,new_yllv2(VALUE(LEFT(Options!$B$24,2)),$C162,$D162,$E162,$F162,2016,$I162,1,$H162,$G162*$H162,Options!$B$8)))","v":2387.5184551091002},{"$f":"IF(AND(OR(Calculations!$E$2=\"Orkney Health Board\",Calculations!$E$2=\"Orkney Islands Local Authority\"),$F162=1),0,IF(AND(OR(Calculations!$E$2=\"Shetland Health Board\",Calculations!$E$2=\"Western Isles Health Board\",Calculations!$E$2=\"Shetland Islands Local Authority\",Calculations!$E$2=\"Eilean Siar Local Authority\"),OR($F162=1,$F162=5)),0,new_yllv2(VALUE(LEFT(Options!$B$24,2)),$C162,$D162,$E162,$F162,2016,$I162+$J162,1,$H162,$G162*$H162,Options!$B$8)))","v":2368.4711650986001},{"$f":"IF(AND(OR(Calculations!$E$2=\"Orkney Health Board\",Calculations!$E$2=\"Orkney Islands Local Authority\"),$F162=1),0,IF(AND(OR(Calculations!$E$2=\"Shetland Health Board\",Calculations!$E$2=\"Western Isles Health Board\",Calculations!$E$2=\"Shetland Islands Local Authority\",Calculations!$E$2=\"Eilean Siar Local Authority\"),OR($F162=1,$F162=5)),0,hosp_count(VALUE(LEFT(Options!$B$24,2)),$C162,$E162,$F162,2016,$I162,1,$H162,$G162*$H162, Options!$B$8)))","v":{"$error":"#NAME?"}},{"$f":"IF(AND(OR(Calculations!$E$2=\"Orkney Health Board\",Calculations!$E$2=\"Orkney Islands Local Authority\"),$F162=1),0,IF(AND(OR(Calculations!$E$2=\"Shetland Health Board\",Calculations!$E$2=\"Western Isles Health Board\",Calculations!$E$2=\"Shetland Islands Local Authority\",Calculations!$E$2=\"Eilean Siar Local Authority\"),OR($F162=1,$F162=5)),0,hosp_count(VALUE(LEFT(Options!$B$24,2)),$C162,$E162,$F162,2016,$I162+$J162,1,$H162,$G162*$H162, Options!$B$8)))","v":{"$error":"#NAME?"}},{"$f":"IF(AND(OR(Calculations!$E$2=\"Orkney Health Board\",Calculations!$E$2=\"Orkney Islands Local Authority\"),$F162=1),0,IF(AND(OR(Calculations!$E$2=\"Shetland Health Board\",Calculations!$E$2=\"Western Isles Health Board\",Calculations!$E$2=\"Shetland Islands Local Authority\",Calculations!$E$2=\"Eilean Siar Local Authority\"),OR($F162=1,$F162=5)),0,prem_mort(VALUE(LEFT(Options!$B$24,2)),$C162,$E162,$F162,2016,$I162,1,$H162,$G162*$H162,Options!$B$8)))","v":59.0823671148},{"$f":"IF(AND(OR(Calculations!$E$2=\"Orkney Health Board\",Calculations!$E$2=\"Orkney Islands Local Authority\"),$F162=1),0,IF(AND(OR(Calculations!$E$2=\"Shetland Health Board\",Calculations!$E$2=\"Western Isles Health Board\",Calculations!$E$2=\"Shetland Islands Local Authority\",Calculations!$E$2=\"Eilean Siar Local Authority\"),OR($F162=1,$F162=5)),0,prem_mort(VALUE(LEFT(Options!$B$24,2)),$C162,$E162,$F162,2016,$I162+$J162,1,$H162,$G162*$H162,Options!$B$8)))","v":58.611016211299997},184.5920177298716,183.11936829849719,7459.3634364642112,7399.8536729421694,{"$error":"#NAME?"},{"$error":"#NAME?"},184.5920177298716,183.11936829849719,1292144.1241091012,1281835.5780894803,52215544.055249475,51798975.710595183,{"$error":"#NAME?"},{"$error":"#NAME?"},1292144.1241091012,1281835.5780894803,7000]
[null,"Male 40-44",42.067703000000002,78.907700000000006,"male",3,{"$f":"HLOOKUP(Calculations!$E$2,'Prevalence Rates'!$C$3:$BC$249,'Prevalence Rates'!$BD163,FALSE)","v":0.32299999999999995},{"$f":"HLOOKUP(Calculations!$E$2,'Population 2016'!$C$3:$BC$249,'Population 2016'!BD163,FALSE)","v":31831},0,{"$f":"HLOOKUP(Results!E$4,Targeting!$C$3:$F$249,Targeting!$G163,FALSE)","v":5226},{"$f":"IF(AND(OR(Calculations!$E$2=\"Orkney Health Board\",Calculations!$E$2=\"Orkney Islands Local Authority\"),$F163=1),0,IF(AND(OR(Calculations!$E$2=\"Shetland Health Board\",Calculations!$E$2=\"Western Isles Health Board\",Calculations!$E$2=\"Shetland Islands Local Authority\",Calculations!$E$2=\"Eilean Siar Local Authority\"),OR($F163=1,$F163=5)),0,new_ci(VALUE(LEFT(Options!$B$24,2)),$C163,$E163,$F163,2016,$I163,1,$H163,$G163*$H163,Options!$B$8)))","v":86.587287140599997},{"$f":"IF(AND(OR(Calculations!$E$2=\"Orkney Health Board\",Calculations!$E$2=\"Orkney Islands Local Authority\"),$F163=1),0,IF(AND(OR(Calculations!$E$2=\"Shetland Health Board\",Calculations!$E$2=\"Western Isles Health Board\",Calculations!$E$2=\"Shetland Islands Local Authority\",Calculations!$E$2=\"Eilean Siar Local Authority\"),OR($F163=1,$F163=5)),0,new_ci(VALUE(LEFT(Options!$B$24,2)),$C163,$E163,$F163,2016,$I163+$J163,1,$H163,$G163*$H163,Options!$B$8)))","v":85.896952399400007},{"$f":"IF(AND(OR(Calculations!$E$2=\"Orkney Health Board\",Calculations!$E$2=\"Orkney Islands Local Authority\"),$F163=1),0,IF(AND(OR(Calculations!$E$2=\"Shetland Health Board\",Calculations!$E$2=\"Western Isles Health Board\",Calculations!$E$2=\"Shetland Islands Local Authority\",Calculations!$E$2=\"Eilean Siar Local Authority\"),OR($F163=1,$F163=5)),0,new_yllv2(VALUE(LEFT(Options!$B$24,2)),$C163,$D163,$E163,$F163,2016,$I163,1,$H163,$G163*$H163,Options!$B$8)))","v":3103.2881113571998},{"$f":"IF(AND(OR(Calculations!$E$2=\"Orkney Health Board\",Calculations!$E$2=\"Orkney Islands Local Authority\"),$F163=1),0,IF(AND(OR(Calculations!$E$2=\"Shetland Health Board\",Calculations!$E$2=\"Western Isles Health Board\",Calculations!$E$2=\"Shetland Islands Local Authority\",Calculations!$E$2=\"Eilean Siar Local Authority\"),OR($F163=1,$F163=5)),0,new_yllv2(VALUE(LEFT(Options!$B$24,2)),$C163,$D163,$E163,$F163,2016,$I163+$J163,1,$H163,$G163*$H163,Options!$B$8)))","v":3078.5465163036001},{"$f":"IF(AND(OR(Calculations!$E$2=\"Orkney Health Board\",Calculations!$E$2=\"Orkney Islands Local Authority\"),$F163=1),0,IF(AND(OR(Calculations!$E$2=\"Shetland Health Board\",Calculations!$E$2=\"Western Isles Health Board\",Calculations!$E$2=\"Shetland Islands Local Authority\",Calculations!$E$2=\"Eilean Siar Local Authority\"),OR($F163=1,$F163=5)),0,hosp_count(VALUE(LEFT(Options!$B$24,2)),$C163,$E163,$F163,2016,$I163,1,$H163,$G163*$H163, Options!$B$8)))","v":{"$error":"#NAME?"}},{"$f":"IF(AND(OR(Calculations!$E$2=\"Orkney Health Board\",Calculations!$E$2=\"Orkney Islands Local Authority\"),$F163=1),0,IF(AND(OR(Calculations!$E$2=\"Shetland Health Board\",Calculations!$E$2=\"Western Isles Health Board\",Calculations!$E$2=\"Shetland Islands Local Authority\",Calculations!$E$2=\"Eilean Siar Local Authority\"),OR($F163=1,$F163=5)),0,hosp_count(VALUE(LEFT(Options!$B$24,2)),$C163,$E163,$F163,2016,$I163+$J163,1,$H163,$G163*$H163, Options!$B$8)))","v":{"$error":"#NAME?"}},{"$f":"IF(AND(OR(Calculations!$E$2=\"Orkney Health Board\",Calculations!$E$2=\"Orkney Islands Local Authority\"),$F163=1),0,IF(AND(OR(Calculations!$E$2=\"Shetland Health Board\",Calculations!$E$2=\"Western Isles Health Board\",Calculations!$E$2=\"Shetland Islands Local Authority\",Calculations!$E$2=\"Eilean Siar Local Authority\"),OR($F163=1,$F163=5)),0,prem_mort(VALUE(LEFT(Options!$B$24,2)),$C163,$E163,$F163,2016,$I163,1,$H163,$G163*$H163,Options!$B$8)))","v":86.587287140599997},{"$f":"IF(AND(OR(Calculations!$E$2=\"Orkney Health Board\",Calculations!$E$2=\"Orkney Islands Local Authority\"),$F163=1),0,IF(AND(OR(Calculations!$E$2=\"Shetland Health Board\",Calculations!$E$2=\"Western Isles Health Board\",Calculations!$E$2=\"Shetland Islands Local Authority\",Calculations!$E$2=\"Eilean Siar Local Authority\"),OR($F163=1,$F163=5)),0,prem_mort(VALUE(LEFT(Options!$B$24,2)),$C163,$E163,$F163,2016,$I163+$J163,1,$H163,$G163*$H163,Options!$B$8)))","v":85.896952399400007},272.02188790989914,269.85313813389467,9749.263646624986,9671.535661159247,{"$error":"#NAME?"},{"$error":"#NAME?"},272.02188790989914,269.85313813389467,1904153.2153692939,1888971.9669372628,68244845.526374906,67700749.62811473,{"$error":"#NAME?"},{"$error":"#NAME?"},1904153.2153692939,1888971.9669372628,7000]
[null,"Male 45-49",47.038155000000003,79.418149999999997,"male",3,{"$f":"HLOOKUP(Calculations!$E$2,'Prevalence Rates'!$C$3:$BC$249,'Prevalence Rates'!$BD164,FALSE)","v":0.33500000000000002},{"$f":"HLOOKUP(Calculations!$E$2,'Population 2016'!$C$3:$BC$249,'Population 2016'!BD164,FALSE)","v":37651},0,{"$f":"HLOOKUP(Results!E$4,Targeting!$C$3:$F$249,Targeting!$G164,FALSE)","v":6182},{"$f":"IF(AND(OR(Calculations!$E$2=\"Orkney Health Board\",Calculations!$E$2=\"Orkney Islands Local Authority\"),$F164=1),0,IF(AND(OR(Calculations!$E$2=\"Shetland Health Board\",Calculations!$E$2=\"Western Isles Health Board\",Calculations!$E$2=\"Shetland Islands Local Authority\",Calculations!$E$2=\"Eilean Siar Local Authority\"),OR($F164=1,$F164=5)),0,new_ci(VALUE(LEFT(Options!$B$24,2)),$C164,$E164,$F164,2016,$I164,1,$H164,$G164*$H164,Options!$B$8)))","v":148.9618078657},{"$f":"IF(AND(OR(Calculations!$E$2=\"Orkney Health Board\",Calculations!$E$2=\"Orkney Islands Local Authority\"),$F164=1),0,IF(AND(OR(Calculations!$E$2=\"Shetland Health Board\",Calculations!$E$2=\"Western Isles Health Board\",Calculations!$E$2=\"Shetland Islands Local Authority\",Calculations!$E$2=\"Eilean Siar Local Authority\"),OR($F164=1,$F164=5)),0,new_ci(VALUE(LEFT(Options!$B$24,2)),$C164,$E164,$F164,2016,$I164+$J164,1,$H164,$G164*$H164,Options!$B$8)))","v":147.7804573393},{"$f":"IF(AND(OR(Calculations!$E$2=\"Orkney Health Board\",Calculations!$E$2=\"Orkney Islands Local Authority\"),$F164=1),0,IF(AND(OR(Calculations!$E$2=\"Shetland Health Board\",Calculations!$E$2=\"Western Isles Health Board\",Calculations!$E$2=\"Shetland Islands Local Authority\",Calculations!$E$2=\"Eilean Siar Local Authority\"),OR($F164=1,$F164=5)),0,new_yllv2(VALUE(LEFT(Options!$B$24,2)),$C164,$D164,$E164,$F164,2016,$I164,1,$H164,$G164*$H164,Options!$B$8)))","v":4674.4207860165998},{"$f":"IF(AND(OR(Calculations!$E$2=\"Orkney Health Board\",Calculations!$E$2=\"Orkney Islands Local Authority\"),$F164=1),0,IF(AND(OR(Calculations!$E$2=\"Shetland Health Board\",Calculations!$E$2=\"Western Isles Health Board\",Calculations!$E$2=\"Shetland Islands Local Authority\",Calculations!$E$2=\"Eilean Siar Local Authority\"),OR($F164=1,$F164=5)),0,new_yllv2(VALUE(LEFT(Options!$B$24,2)),$C164,$D164,$E164,$F164,2016,$I164+$J164,1,$H164,$G164*$H164,Options!$B$8)))","v":4637.3500124048996},{"$f":"IF(AND(OR(Calculations!$E$2=\"Orkney Health Board\",Calculations!$E$2=\"Orkney Islands Local Authority\"),$F164=1),0,IF(AND(OR(Calculations!$E$2=\"Shetland Health Board\",Calculations!$E$2=\"Western Isles Health Board\",Calculations!$E$2=\"Shetland Islands Local Authority\",Calculations!$E$2=\"Eilean Siar Local Authority\"),OR($F164=1,$F164=5)),0,hosp_count(VALUE(LEFT(Options!$B$24,2)),$C164,$E164,$F164,2016,$I164,1,$H164,$G164*$H164, Options!$B$8)))","v":{"$error":"#NAME?"}},{"$f":"IF(AND(OR(Calculations!$E$2=\"Orkney Health Board\",Calculations!$E$2=\"Orkney Islands Local Authority\"),$F164=1),0,IF(AND(OR(Calculations!$E$2=\"Shetland Health Board\",Calculations!$E$2=\"Western Isles Health Board\",Calculations!$E$2=\"Shetland Islands Local Authority\",Calculations!$E$2=\"Eilean Siar Local Authority\"),OR($F164=1,$F164=5)),0,hosp_count(VALUE(LEFT(Options!$B$24,2)),$C164,$E164,$F164,2016,$I164+$J164,1,$H164,$G164*$H164, Options!$B$8)))","v":{"$error":"#NAME?"}},{"$f":"IF(AND(OR(Calculations!$E$2=\"Orkney Health Board\",Calculations!$E$2=\"Orkney Islands Local Authority\"),$F164=1),0,IF(AND(OR(Calculations!$E$2=\"Shetland Health Board\",Calculations!$E$2=\"Western Isles Health Board\",Calculations!$E$2=\"Shetland Islands Local Authority\",Calculations!$E$2=\"Eilean Siar Local Authority\"),OR($F164=1,$F164=5)),0,prem_mort(VALUE(LEFT(Options!$B$24,2)),$C164,$E164,$F164,2016,$I164,1,$H164,$G164*$H164,Options!$B$8)))","v":148.9618078657},{"$f":"IF(AND(OR(Calculations!$E$2=\"Orkney Health Board\",Calculations!$E$2=\"Orkney Islands Local Authority\"),$F164=1),0,IF(AND(OR(Calculations!$E$2=\"Shetland Health Board\",Calculations!$E$2=\"Western Isles Health Board\",Calculations!$E$2=\"Shetland Islands Local Authority\",Calculations!$E$2=\"Eilean Siar Local Authority\"),OR($F164=1,$F164=5)),0,prem_mort(VALUE(LEFT(Options!$B$24,2)),$C164,$E164,$F164,2016,$I164+$J164,1,$H164,$G164*$H164,Options!$B$8)))","v":147.7804573393},395.63838374996681,392.500749885262,12415.130503881968,12316.671568895646,{"$error":"#NAME?"},{"$error":"#NAME?"},395.63838374996681,392.500749885262,2769468.6862497674,2747505.2491968339,86905913.527173772,86216700.982269526,{"$error":"#NAME?"},{"$error":"#NAME?"},2769468.6862497674,2747505.2491968339,7000]
[null,"Male 50-54",51.998646000000001,79.988649999999993,"male",3,{"$f":"HLOOKUP(Calculations!$E$2,'Prevalence Rates'!$C$3:$BC$249,'Prevalence Rates'!$BD165,FALSE)","v":0.33500000000000002},{"$f":"HLOOKUP(Calculations!$E$2,'Population 2016'!$C$3:$BC$249,'Population 2016'!BD165,FALSE)","v":40386},0,{"$f":"HLOOKUP(Results!E$4,Targeting!$C$3:$F$249,Targeting!$G165,FALSE)","v":6631},{"$f":"IF(AND(OR(Calculations!$E$2=\"Orkney Health Board\",Calculations!$E$2=\"Orkney Islands Local Authority\"),$F165=1),0,IF(AND(OR(Calculations!$E$2=\"Shetland Health Board\",Calculations!$E$2=\"Western Isles Health Board\",Calculations!$E$2=\"Shetland Islands Local Authority\",Calculations!$E$2=\"Eilean Siar Local Authority\"),OR($F165=1,$F165=5)),0,new_ci(VALUE(LEFT(Options!$B$24,2)),$C165,$E165,$F165,2016,$I165,1,$H165,$G165*$H165,Options!$B$8)))","v":232.1518087629},{"$f":"IF(AND(OR(Calculations!$E$2=\"Orkney Health Board\",Calculations!$E$2=\"Orkney Islands Local Authority\"),$F165=1),0,IF(AND(OR(Calculations!$E$2=\"Shetland Health Board\",Calculations!$E$2=\"Western Isles Health Board\",Calculations!$E$2=\"Shetland Islands Local Authority\",Calculations!$E$2=\"Eilean Siar Local Authority\"),OR($F165=1,$F165=5)),0,new_ci(VALUE(LEFT(Options!$B$24,2)),$C165,$E165,$F165,2016,$I165+$J165,1,$H165,$G165*$H165,Options!$B$8)))","v":230.31308617400001},{"$f":"IF(AND(OR(Calculations!$E$2=\"Orkney Health Board\",Calculations!$E$2=\"Orkney Islands Local Authority\"),$F165=1),0,IF(AND(OR(Calculations!$E$2=\"Shetland Health Board\",Calculations!$E$2=\"Western Isles Health Board\",Calculations!$E$2=\"Shetland Islands Local Authority\",Calculations!$E$2=\"Eilean Siar Local Authority\"),OR($F165=1,$F165=5)),0,new_yllv2(VALUE(LEFT(Options!$B$24,2)),$C165,$D165,$E165,$F165,2016,$I165,1,$H165,$G165*$H165,Options!$B$8)))","v":6265.7782471178998},{"$f":"IF(AND(OR(Calculations!$E$2=\"Orkney Health Board\",Calculations!$E$2=\"Orkney Islands Local Authority\"),$F165=1),0,IF(AND(OR(Calculations!$E$2=\"Shetland Health Board\",Calculations!$E$2=\"Western Isles Health Board\",Calculations!$E$2=\"Shetland Islands Local Authority\",Calculations!$E$2=\"Eilean Siar Local Authority\"),OR($F165=1,$F165=5)),0,new_yllv2(VALUE(LEFT(Options!$B$24,2)),$C165,$D165,$E165,$F165,2016,$I165+$J165,1,$H165,$G165*$H165,Options!$B$8)))","v":6216.1511170885997},{"$f":"IF(AND(OR(Calculations!$E$2=\"Orkney Health Board\",Calculations!$E$2=\"Orkney Islands Local Authority\"),$F165=1),0,IF(AND(OR(Calculations!$E$2=\"Shetland Health Board\",Calculations!$E$2=\"Western Isles Health Board\",Calculations!$E$2=\"Shetland Islands Local Authority\",Calculations!$E$2=\"Eilean Siar Local Authority\"),OR($F165=1,$F165=5)),0,hosp_count(VALUE(LEFT(Options!$B$24,2)),$C165,$E165,$F165,2016,$I165,1,$H165,$G165*$H165, Options!$B$8)))","v":{"$error":"#NAME?"}},{"$f":"IF(AND(OR(Calculations!$E$2=\"Orkney Health Board\",Calculations!$E$2=\"Orkney Islands Local Authority\"),$F165=1),0,IF(AND(OR(Calculations!$E$2=\"Shetland Health Board\",Calculations!$E$2=\"Western Isles Health Board\",Calculations!$E$2=\"Shetland Islands Local Authority\",Calculations!$E$2=\"Eilean Siar Local Authority\"),OR($F165=1,$F165=5)),0,hosp_count(VALUE(LEFT(Options!$B$24,2)),$C165,$E165,$F165,2016,$I165+$J165,1,$H165,$G165*$H165, Options!$B$8)))","v":{"$error":"#NAME?"}},{"$f":"IF(AND(OR(Calculations!$E$2=\"Orkney Health Board\",Calculations!$E$2=\"Orkney Islands Local Authority\"),$F165=1),0,IF(AND(OR(Calculations!$E$2=\"Shetland Health Board\",Calculations!$E$2=\"Western Isles Health Board\",Calculations!$E$2=\"Shetland Islands Local Authority\",Calculations!$E$2=\"Eilean Siar Local Authority\"),OR($F165=1,$F165=5)),0,prem_mort(VALUE(LEFT(Options!$B$24,2)),$C165,$E165,$F165,2016,$I165,1,$H165,$G165*$H165,Options!$B$8)))","v":232.1518087629},{"$f":"IF(AND(OR(Calculations!$E$2=\"Orkney Health Board\",Calculations!$E$2=\"Orkney Islands Local Authority\"),$F165=1),0,IF(AND(OR(Calculations!$E$2=\"Shetland Health Board\",Calculations!$E$2=\"Western Isles Health Board\",Calculations!$E$2=\"Shetland Islands Local Authority\",Calculations!$E$2=\"Eilean Siar Local Authority\"),OR($F165=1,$F165=5)),0,prem_mort(VALUE(LEFT(Options!$B$24,2)),$C165,$E165,$F165,2016,$I165+$J165,1,$H165,$G165*$H165,Options!$B$8)))","v":230.31308617400001},574.83238935002225,570.27951808547516,15514.728487886643,15391.846474245034,{"$error":"#NAME?"},{"$error":"#NAME?"},574.83238935002225,570.27951808547516,4023826.7254501558,3991956.626598326,108603099.41520651,107742925.31971525,{"$error":"#NAME?"},{"$error":"#NAME?"},4023826.7254501558,3991956.626598326,7000]
[null,"Male 55-59",56.950867000000002,80.660870000000003,"male",3,{"$f":"HLOOKUP(Calculations!$E$2,'Prevalence Rates'!$C$3:$BC$249,'Prevalence Rates'!$BD166,FALSE)","v":0.434},{"$f":"HLOOKUP(Calculations!$E$2,'Population 2016'!$C$3:$BC$249,'Population 2016'!BD166,FALSE)","v":37545},0,{"$f":"HLOOKUP(Results!E$4,Targeting!$C$3:$F$249,Targeting!$G166,FALSE)","v":6164},{"$f":"IF(AND(OR(Calculations!$E$2=\"Orkney Health Board\",Calculations!$E$2=\"Orkney Islands Local Authority\"),$F166=1),0,IF(AND(OR(Calculations!$E$2=\"Shetland Health Board\",Calculations!$E$2=\"Western Isles Health Board\",Calculations!$E$2=\"Shetland Islands Local Authority\",Calculations!$E$2=\"Eilean Siar Local Authority\"),OR($F166=1,$F166=5)),0,new_ci(VALUE(LEFT(Options!$B$24,2)),$C166,$E166,$F166,2016,$I166,1,$H166,$G166*$H166,Options!$B$8)))","v":313.24340351939998},{"$f":"IF(AND(OR(Calculations!$E$2=\"Orkney Health Board\",Calculations!$E$2=\"Orkney Islands Local Authority\"),$F166=1),0,IF(AND(OR(Calculations!$E$2=\"Shetland Health Board\",Calculations!$E$2=\"Western Isles Health Board\",Calculations!$E$2=\"Shetland Islands Local Authority\",Calculations!$E$2=\"Eilean Siar Local Authority\"),OR($F166=1,$F166=5)),0,new_ci(VALUE(LEFT(Options!$B$24,2)),$C166,$E166,$F166,2016,$I166+$J166,1,$H166,$G166*$H166,Options!$B$8)))","v":310.85499714060001},{"$f":"IF(AND(OR(Calculations!$E$2=\"Orkney Health Board\",Calculations!$E$2=\"Orkney Islands Local Authority\"),$F166=1),0,IF(AND(OR(Calculations!$E$2=\"Shetland Health Board\",Calculations!$E$2=\"Western Isles Health Board\",Calculations!$E$2=\"Shetland Islands Local Authority\",Calculations!$E$2=\"Eilean Siar Local Authority\"),OR($F166=1,$F166=5)),0,new_yllv2(VALUE(LEFT(Options!$B$24,2)),$C166,$D166,$E166,$F166,2016,$I166,1,$H166,$G166*$H166,Options!$B$8)))","v":7113.7586336557997},{"$f":"IF(AND(OR(Calculations!$E$2=\"Orkney Health Board\",Calculations!$E$2=\"Orkney Islands Local Authority\"),$F166=1),0,IF(AND(OR(Calculations!$E$2=\"Shetland Health Board\",Calculations!$E$2=\"Western Isles Health Board\",Calculations!$E$2=\"Shetland Islands Local Authority\",Calculations!$E$2=\"Eilean Siar Local Authority\"),OR($F166=1,$F166=5)),0,new_yllv2(VALUE(LEFT(Options!$B$24,2)),$C166,$D166,$E166,$F166,2016,$I166+$J166,1,$H166,$G166*$H166,Options!$B$8)))","v":7059.5179176279999},{"$f":"IF(AND(OR(Calculations!$E$2=\"Orkney Health Board\",Calculations!$E$2=\"Orkney Islands Local Authority\"),$F166=1),0,IF(AND(OR(Calculations!$E$2=\"Shetland Health Board\",Calculations!$E$2=\"Western Isles Health Board\",Calculations!$E$2=\"Shetland Islands Local Authority\",Calculations!$E$2=\"Eilean Siar Local Authority\"),OR($F166=1,$F166=5)),0,hosp_count(VALUE(LEFT(Options!$B$24,2)),$C166,$E166,$F166,2016,$I166,1,$H166,$G166*$H166, Options!$B$8)))","v":{"$error":"#NAME?"}},{"$f":"IF(AND(OR(Calculations!$E$2=\"Orkney Health Board\",Calculations!$E$2=\"Orkney Islands Local Authority\"),$F166=1),0,IF(AND(OR(Calculations!$E$2=\"Shetland Health Board\",Calculations!$E$2=\"Western Isles Health Board\",Calculations!$E$2=\"Shetland Islands Local Authority\",Calculations!$E$2=\"Eilean Siar Local Authority\"),OR($F166=1,$F166=5)),0,hosp_count(VALUE(LEFT(Options!$B$24,2)),$C166,$E166,$F166,2016,$I166+$J166,1,$H166,$G166*$H166, Options!$B$8)))","v":{"$error":"#NAME?"}},{"$f":"IF(AND(OR(Calculations!$E$2=\"Orkney Health Board\",Calculations!$E$2=\"Orkney Islands Local Authority\"),$F166=1),0,IF(AND(OR(Calculations!$E$2=\"Shetland Health Board\",Calculations!$E$2=\"Western Isles Health Board\",Calculations!$E$2=\"Shetland Islands Local Authority\",Calculations!$E$2=\"Eilean Siar Local Authority\"),OR($F166=1,$F166=5)),0,prem_mort(VALUE(LEFT(Options!$B$24,2)),$C166,$E166,$F166,2016,$I166,1,$H166,$G166*$H166,Options!$B$8)))","v":313.24340351939998},{"$f":"IF(AND(OR(Calculations!$E$2=\"Orkney Health Board\",Calculations!$E$2=\"Orkney Islands Local Authority\"),$F166=1),0,IF(AND(OR(Calculations!$E$2=\"Shetland Health Board\",Calculations!$E$2=\"Western Isles Health Board\",Calculations!$E$2=\"Shetland Islands Local Authority\",Calculations!$E$2=\"Eilean Siar Local Authority\"),OR($F166=1,$F166=5)),0,prem_mort(VALUE(LEFT(Options!$B$24,2)),$C166,$E166,$F166,2016,$I166+$J166,1,$H166,$G166*$H166,Options!$B$8)))","v":310.85499714060001},834.31456524011185,827.95311530323613,18947.286279546675,18802.81773239579,{"$error":"#NAME?"},{"$error":"#NAME?"},834.31456524011185,827.95311530323613,5423044.6740607275,5381695.2494710349,123157360.81705339,122218315.26057263,{"$error":"#NAME?"},{"$error":"#NAME?"},5423044.6740607275,5381695.2494710349,6500]
[null,"Male 60-64",61.942988999999997,81.612989999999996,"male",3,{"$f":"HLOOKUP(Calculations!$E$2,'Prevalence Rates'!$C$3:$BC$249,'Prevalence Rates'!$BD167,FALSE)","v":0.434},{"$f":"HLOOKUP(Calculations!$E$2,'Population 2016'!$C$3:$BC$249,'Population 2016'!BD167,FALSE)","v":33247},0,{"$f":"HLOOKUP(Results!E$4,Targeting!$C$3:$F$249,Targeting!$G167,FALSE)","v":5459},{"$f":"IF(AND(OR(Calculations!$E$2=\"Orkney Health Board\",Calculations!$E$2=\"Orkney Islands Local Authority\"),$F167=1),0,IF(AND(OR(Calculations!$E$2=\"Shetland Health Board\",Calculations!$E$2=\"Western Isles Health Board\",Calculations!$E$2=\"Shetland Islands Local Authority\",Calculations!$E$2=\"Eilean Siar Local Authority\"),OR($F167=1,$F167=5)),0,new_ci(VALUE(LEFT(Options!$B$24,2)),$C167,$E167,$F167,2016,$I167,1,$H167,$G167*$H167,Options!$B$8)))","v":403.55918162789999},{"$f":"IF(AND(OR(Calculations!$E$2=\"Orkney Health Board\",Calculations!$E$2=\"Orkney Islands Local Authority\"),$F167=1),0,IF(AND(OR(Calculations!$E$2=\"Shetland Health Board\",Calculations!$E$2=\"Western Isles Health Board\",Calculations!$E$2=\"Shetland Islands Local Authority\",Calculations!$E$2=\"Eilean Siar Local Authority\"),OR($F167=1,$F167=5)),0,new_ci(VALUE(LEFT(Options!$B$24,2)),$C167,$E167,$F167,2016,$I167+$J167,1,$H167,$G167*$H167,Options!$B$8)))","v":400.48963833430003},{"$f":"IF(AND(OR(Calculations!$E$2=\"Orkney Health Board\",Calculations!$E$2=\"Orkney Islands Local Authority\"),$F167=1),0,IF(AND(OR(Calculations!$E$2=\"Shetland Health Board\",Calculations!$E$2=\"Western Isles Health Board\",Calculations!$E$2=\"Shetland Islands Local Authority\",Calculations!$E$2=\"Eilean Siar Local Authority\"),OR($F167=1,$F167=5)),0,new_yllv2(VALUE(LEFT(Options!$B$24,2)),$C167,$D167,$E167,$F167,2016,$I167,1,$H167,$G167*$H167,Options!$B$8)))","v":7534.4503245521},{"$f":"IF(AND(OR(Calculations!$E$2=\"Orkney Health Board\",Calculations!$E$2=\"Orkney Islands Local Authority\"),$F167=1),0,IF(AND(OR(Calculations!$E$2=\"Shetland Health Board\",Calculations!$E$2=\"Western Isles Health Board\",Calculations!$E$2=\"Shetland Islands Local Authority\",Calculations!$E$2=\"Eilean Siar Local Authority\"),OR($F167=1,$F167=5)),0,new_yllv2(VALUE(LEFT(Options!$B$24,2)),$C167,$D167,$E167,$F167,2016,$I167+$J167,1,$H167,$G167*$H167,Options!$B$8)))","v":7477.1419481909998},{"$f":"IF(AND(OR(Calculations!$E$2=\"Orkney Health Board\",Calculations!$E$2=\"Orkney Islands Local Authority\"),$F167=1),0,IF(AND(OR(Calculations!$E$2=\"Shetland Health Board\",Calculations!$E$2=\"Western Isles Health Board\",Calculations!$E$2=\"Shetland Islands Local Authority\",Calculations!$E$2=\"Eilean Siar Local Authority\"),OR($F167=1,$F167=5)),0,hosp_count(VALUE(LEFT(Options!$B$24,2)),$C167,$E167,$F167,2016,$I167,1,$H167,$G167*$H167, Options!$B$8)))","v":{"$error":"#NAME?"}},{"$f":"IF(AND(OR(Calculations!$E$2=\"Orkney Health Board\",Calculations!$E$2=\"Orkney Islands Local Authority\"),$F167=1),0,IF(AND(OR(Calculations!$E$2=\"Shetland Health Board\",Calculations!$E$2=\"Western Isles Health Board\",Calculations!$E$2=\"Shetland Islands Local Authority\",Calculations!$E$2=\"Eilean Siar Local Authority\"),OR($F167=1,$F167=5)),0,hosp_count(VALUE(LEFT(Options!$B$24,2)),$C167,$E167,$F167,2016,$I167+$J167,1,$H167,$G167*$H167, Options!$B$8)))","v":{"$error":"#NAME?"}},{"$f":"IF(AND(OR(Calculations!$E$2=\"Orkney Health Board\",Calculations!$E$2=\"Orkney Islands Local Authority\"),$F167=1),0,IF(AND(OR(Calculations!$E$2=\"Shetland Health Board\",Calculations!$E$2=\"Western Isles Health Board\",Calculations!$E$2=\"Shetland Islands Local Authority\",Calculations!$E$2=\"Eilean Siar Local Authority\"),OR($F167=1,$F167=5)),0,prem_mort(VALUE(LEFT(Options!$B$24,2)),$C167,$E167,$F167,2016,$I167,1,$H167,$G167*$H167,Options!$B$8)))","v":403.55918162789999},{"$f":"IF(AND(OR(Calculations!$E$2=\"Orkney Health Board\",Calculations!$E$2=\"Orkney Islands Local Authority\"),$F167=1),0,IF(AND(OR(Calculations!$E$2=\"Shetland Health Board\",Calculations!$E$2=\"Western Isles Health Board\",Calculations!$E$2=\"Shetland Islands Local Authority\",Calculations!$E$2=\"Eilean Siar Local Authority\"),OR($F167=1,$F167=5)),0,prem_mort(VALUE(LEFT(Options!$B$24,2)),$C167,$E167,$F167,2016,$I167+$J167,1,$H167,$G167*$H167,Options!$B$8)))","v":400.48963833430003},1213.8213421598941,1204.5887999948868,22662.045671946642,22489.674100493277,{"$error":"#NAME?"},{"$error":"#NAME?"},1213.8213421598941,1204.5887999948868,7282928.0529593648,7227532.7999693211,135972274.03167984,134938044.60295966,{"$error":"#NAME?"},{"$error":"#NAME?"},7282928.0529593648,7227532.7999693211,6000]
[null,"Male 65-69",67.054419999999993,82.954419999999999,"male",3,{"$f":"HLOOKUP(Calculations!$E$2,'Prevalence Rates'!$C$3:$BC$249,'Prevalence Rates'!$BD168,FALSE)","v":0.52700000000000002},{"$f":"HLOOKUP(Calculations!$E$2,'Population 2016'!$C$3:$BC$249,'Population 2016'!BD168,FALSE)","v":33371},0,{"$f":"HLOOKUP(Results!E$4,Targeting!$C$3:$F$249,Targeting!$G168,FALSE)","v":5479},{"$f":"IF(AND(OR(Calculations!$E$2=\"Orkney Health Board\",Calculations!$E$2=\"Orkney Islands Local Authority\"),$F168=1),0,IF(AND(OR(Calculations!$E$2=\"Shetland Health Board\",Calculations!$E$2=\"Western Isles Health Board\",Calculations!$E$2=\"Shetland Islands Local Authority\",Calculations!$E$2=\"Eilean Siar Local Authority\"),OR($F168=1,$F168=5)),0,new_ci(VALUE(LEFT(Options!$B$24,2)),$C168,$E168,$F168,2016,$I168,1,$H168,$G168*$H168,Options!$B$8)))","v":594.07255324009998},{"$f":"IF(AND(OR(Calculations!$E$2=\"Orkney Health Board\",Calculations!$E$2=\"Orkney Islands Local Authority\"),$F168=1),0,IF(AND(OR(Calculations!$E$2=\"Shetland Health Board\",Calculations!$E$2=\"Western Isles Health Board\",Calculations!$E$2=\"Shetland Islands Local Authority\",Calculations!$E$2=\"Eilean Siar Local Authority\"),OR($F168=1,$F168=5)),0,new_ci(VALUE(LEFT(Options!$B$24,2)),$C168,$E168,$F168,2016,$I168+$J168,1,$H168,$G168*$H168,Options!$B$8)))","v":589.71504317530002},{"$f":"IF(AND(OR(Calculations!$E$2=\"Orkney Health Board\",Calculations!$E$2=\"Orkney Islands Local Authority\"),$F168=1),0,IF(AND(OR(Calculations!$E$2=\"Shetland Health Board\",Calculations!$E$2=\"Western Isles Health Board\",Calculations!$E$2=\"Shetland Islands Local Authority\",Calculations!$E$2=\"Eilean Siar Local Authority\"),OR($F168=1,$F168=5)),0,new_yllv2(VALUE(LEFT(Options!$B$24,2)),$C168,$D168,$E168,$F168,2016,$I168,1,$H168,$G168*$H168,Options!$B$8)))","v":8851.6810432775001},{"$f":"IF(AND(OR(Calculations!$E$2=\"Orkney Health Board\",Calculations!$E$2=\"Orkney Islands Local Authority\"),$F168=1),0,IF(AND(OR(Calculations!$E$2=\"Shetland Health Board\",Calculations!$E$2=\"Western Isles Health Board\",Calculations!$E$2=\"Shetland Islands Local Authority\",Calculations!$E$2=\"Eilean Siar Local Authority\"),OR($F168=1,$F168=5)),0,new_yllv2(VALUE(LEFT(Options!$B$24,2)),$C168,$D168,$E168,$F168,2016,$I168+$J168,1,$H168,$G168*$H168,Options!$B$8)))","v":8786.7541433120005},{"$f":"IF(AND(OR(Calculations!$E$2=\"Orkney Health Board\",Calculations!$E$2=\"Orkney Islands Local Authority\"),$F168=1),0,IF(AND(OR(Calculations!$E$2=\"Shetland Health Board\",Calculations!$E$2=\"Western Isles Health Board\",Calculations!$E$2=\"Shetland Islands Local Authority\",Calculations!$E$2=\"Eilean Siar Local Authority\"),OR($F168=1,$F168=5)),0,hosp_count(VALUE(LEFT(Options!$B$24,2)),$C168,$E168,$F168,2016,$I168,1,$H168,$G168*$H168, Options!$B$8)))","v":{"$error":"#NAME?"}},{"$f":"IF(AND(OR(Calculations!$E$2=\"Orkney Health Board\",Calculations!$E$2=\"Orkney Islands Local Authority\"),$F168=1),0,IF(AND(OR(Calculations!$E$2=\"Shetland Health Board\",Calculations!$E$2=\"Western Isles Health Board\",Calculations!$E$2=\"Shetland Islands Local Authority\",Calculations!$E$2=\"Eilean Siar Local Authority\"),OR($F168=1,$F168=5)),0,hosp_count(VALUE(LEFT(Options!$B$24,2)),$C168,$E168,$F168,2016,$I168+$J168,1,$H168,$G168*$H168, Options!$B$8)))","v":{"$error":"#NAME?"}},{"$f":"IF(AND(OR(Calculations!$E$2=\"Orkney Health Board\",Calculations!$E$2=\"Orkney Islands Local Authority\"),$F168=1),0,IF(AND(OR(Calculations!$E$2=\"Shetland Health Board\",Calculations!$E$2=\"Western Isles Health Board\",Calculations!$E$2=\"Shetland Islands Local Authority\",Calculations!$E$2=\"Eilean Siar Local Authority\"),OR($F168=1,$F168=5)),0,prem_mort(VALUE(LEFT(Options!$B$24,2)),$C168,$E168,$F168,2016,$I168,1,$H168,$G168*$H168,Options!$B$8)))","v":594.07255324009998},{"$f":"IF(AND(OR(Calculations!$E$2=\"Orkney Health Board\",Calculations!$E$2=\"Orkney Islands Local Authority\"),$F168=1),0,IF(AND(OR(Calculations!$E$2=\"Shetland Health Board\",Calculations!$E$2=\"Western Isles Health Board\",Calculations!$E$2=\"Shetland Islands Local Authority\",Calculations!$E$2=\"Eilean Siar Local Authority\"),OR($F168=1,$F168=5)),0,prem_mort(VALUE(LEFT(Options!$B$24,2)),$C168,$E168,$F168,2016,$I168+$J168,1,$H168,$G168*$H168,Options!$B$8)))","v":589.71504317530002},1780.2060269098918,1767.1482520011389,26525.069800957419,26330.508954817058,{"$error":"#NAME?"},{"$error":"#NAME?"},1780.2060269098918,1767.1482520011389,9791133.1480044052,9719315.386006264,145887883.90526581,144817799.25149381,{"$error":"#NAME?"},{"$error":"#NAME?"},9791133.1480044052,9719315.386006264,5500]
[null,"Male 70-74",71.891098,84.341099999999997,"male",3,{"$f":"HLOOKUP(Calculations!$E$2,'Prevalence Rates'!$C$3:$BC$249,'Prevalence Rates'!$BD169,FALSE)","v":0.52700000000000002},{"$f":"HLOOKUP(Calculations!$E$2,'Population 2016'!$C$3:$BC$249,'Population 2016'!BD169,FALSE)","v":24436},0,{"$f":"HLOOKUP(Results!E$4,Targeting!$C$3:$F$249,Targeting!$G169,FALSE)","v":4012},{"$f":"IF(AND(OR(Calculations!$E$2=\"Orkney Health Board\",Calculations!$E$2=\"Orkney Islands Local Authority\"),$F169=1),0,IF(AND(OR(Calculations!$E$2=\"Shetland Health Board\",Calculations!$E$2=\"Western Isles Health Board\",Calculations!$E$2=\"Shetland Islands Local Authority\",Calculations!$E$2=\"Eilean Siar Local Authority\"),OR($F169=1,$F169=5)),0,new_ci(VALUE(LEFT(Options!$B$24,2)),$C169,$E169,$F169,2016,$I169,1,$H169,$G169*$H169,Options!$B$8)))","v":624.19728580250001},{"$f":"IF(AND(OR(Calculations!$E$2=\"Orkney Health Board\",Calculations!$E$2=\"Orkney Islands Local Authority\"),$F169=1),0,IF(AND(OR(Calculations!$E$2=\"Shetland Health Board\",Calculations!$E$2=\"Western Isles Health Board\",Calculations!$E$2=\"Shetland Islands Local Authority\",Calculations!$E$2=\"Eilean Siar Local Authority\"),OR($F169=1,$F169=5)),0,new_ci(VALUE(LEFT(Options!$B$24,2)),$C169,$E169,$F169,2016,$I169+$J169,1,$H169,$G169*$H169,Options!$B$8)))","v":619.64160243089998},{"$f":"IF(AND(OR(Calculations!$E$2=\"Orkney Health Board\",Calculations!$E$2=\"Orkney Islands Local Authority\"),$F169=1),0,IF(AND(OR(Calculations!$E$2=\"Shetland Health Board\",Calculations!$E$2=\"Western Isles Health Board\",Calculations!$E$2=\"Shetland Islands Local Authority\",Calculations!$E$2=\"Eilean Siar Local Authority\"),OR($F169=1,$F169=5)),0,new_yllv2(VALUE(LEFT(Options!$B$24,2)),$C169,$D169,$E169,$F169,2016,$I169,1,$H169,$G169*$H169,Options!$B$8)))","v":7147.0601708331997},{"$f":"IF(AND(OR(Calculations!$E$2=\"Orkney Health Board\",Calculations!$E$2=\"Orkney Islands Local Authority\"),$F169=1),0,IF(AND(OR(Calculations!$E$2=\"Shetland Health Board\",Calculations!$E$2=\"Western Isles Health Board\",Calculations!$E$2=\"Shetland Islands Local Authority\",Calculations!$E$2=\"Eilean Siar Local Authority\"),OR($F169=1,$F169=5)),0,new_yllv2(VALUE(LEFT(Options!$B$24,2)),$C169,$D169,$E169,$F169,2016,$I169+$J169,1,$H169,$G169*$H169,Options!$B$8)))","v":7094.8975871169996},{"$f":"IF(AND(OR(Calculations!$E$2=\"Orkney Health Board\",Calculations!$E$2=\"Orkney Islands Local Authority\"),$F169=1),0,IF(AND(OR(Calculations!$E$2=\"Shetland Health Board\",Calculations!$E$2=\"Western Isles Health Board\",Calculations!$E$2=\"Shetland Islands Local Authority\",Calculations!$E$2=\"Eilean Siar Local Authority\"),OR($F169=1,$F169=5)),0,hosp_count(VALUE(LEFT(Options!$B$24,2)),$C169,$E169,$F169,2016,$I169,1,$H169,$G169*$H169, Options!$B$8)))","v":{"$error":"#NAME?"}},{"$f":"IF(AND(OR(Calculations!$E$2=\"Orkney Health Board\",Calculations!$E$2=\"Orkney Islands Local Authority\"),$F169=1),0,IF(AND(OR(Calculations!$E$2=\"Shetland Health Board\",Calculations!$E$2=\"Western Isles Health Board\",Calculations!$E$2=\"Shetland Islands Local Authority\",Calculations!$E$2=\"Eilean Siar Local Authority\"),OR($F169=1,$F169=5)),0,hosp_count(VALUE(LEFT(Options!$B$24,2)),$C169,$E169,$F169,2016,$I169+$J169,1,$H169,$G169*$H169, Options!$B$8)))","v":{"$error":"#NAME?"}},{"$f":"IF(AND(OR(Calculations!$E$2=\"Orkney Health Board\",Calculations!$E$2=\"Orkney Islands Local Authority\"),$F169=1),0,IF(AND(OR(Calculations!$E$2=\"Shetland Health Board\",Calculations!$E$2=\"Western Isles Health Board\",Calculations!$E$2=\"Shetland Islands Local Authority\",Calculations!$E$2=\"Eilean Siar Local Authority\"),OR($F169=1,$F169=5)),0,prem_mort(VALUE(LEFT(Options!$B$24,2)),$C169,$E169,$F169,2016,$I169,1,$H169,$G169*$H169,Options!$B$8)))","v":624.19728580250001},{"$f":"IF(AND(OR(Calculations!$E$2=\"Orkney Health Board\",Calculations!$E$2=\"Orkney Islands Local Authority\"),$F169=1),0,IF(AND(OR(Calculations!$E$2=\"Shetland Health Board\",Calculations!$E$2=\"Western Isles Health Board\",Calculations!$E$2=\"Shetland Islands Local Authority\",Calculations!$E$2=\"Eilean Siar Local Authority\"),OR($F169=1,$F169=5)),0,prem_mort(VALUE(LEFT(Options!$B$24,2)),$C169,$E169,$F169,2016,$I169+$J169,1,$H169,$G169*$H169,Options!$B$8)))","v":619.64160243089998},2554.4167858999017,2535.7734589576853,29248.077307387462,29034.611176612372,{"$error":"#NAME?"},{"$error":"#NAME?"},2554.4167858999017,2535.7734589576853,12772083.929499509,12678867.294788426,146240386.53693733,145173055.88306186,{"$error":"#NAME?"},{"$error":"#NAME?"},12772083.929499509,12678867.294788426,5000]
[null,"Male 75-79",76.907700000000006,86.357700000000008,"male",3,{"$f":"HLOOKUP(Calculations!$E$2,'Prevalence Rates'!$C$3:$BC$249,'Prevalence Rates'!$BD170,FALSE)","v":0.79500000000000004},{"$f":"HLOOKUP(Calculations!$E$2,'Population 2016'!$C$3:$BC$249,'Population 2016'!BD170,FALSE)","v":18146},0,{"$f":"HLOOKUP(Results!E$4,Targeting!$C$3:$F$249,Targeting!$G170,FALSE)","v":2979},{"$f":"IF(AND(OR(Calculations!$E$2=\"Orkney Health Board\",Calculations!$E$2=\"Orkney Islands Local Authority\"),$F170=1),0,IF(AND(OR(Calculations!$E$2=\"Shetland Health Board\",Calculations!$E$2=\"Western Isles Health Board\",Calculations!$E$2=\"Shetland Islands Local Authority\",Calculations!$E$2=\"Eilean Siar Local Authority\"),OR($F170=1,$F170=5)),0,new_ci(VALUE(LEFT(Options!$B$24,2)),$C170,$E170,$F170,2016,$I170,1,$H170,$G170*$H170,Options!$B$8)))","v":673.00520461639996},{"$f":"IF(AND(OR(Calculations!$E$2=\"Orkney Health Board\",Calculations!$E$2=\"Orkney Islands Local Authority\"),$F170=1),0,IF(AND(OR(Calculations!$E$2=\"Shetland Health Board\",Calculations!$E$2=\"Western Isles Health Board\",Calculations!$E$2=\"Shetland Islands Local Authority\",Calculations!$E$2=\"Eilean Siar Local Authority\"),OR($F170=1,$F170=5)),0,new_ci(VALUE(LEFT(Options!$B$24,2)),$C170,$E170,$F170,2016,$I170+$J170,1,$H170,$G170*$H170,Options!$B$8)))","v":668.53307410909997},{"$f":"IF(AND(OR(Calculations!$E$2=\"Orkney Health Board\",Calculations!$E$2=\"Orkney Islands Local Authority\"),$F170=1),0,IF(AND(OR(Calculations!$E$2=\"Shetland Health Board\",Calculations!$E$2=\"Western Isles Health Board\",Calculations!$E$2=\"Shetland Islands Local Authority\",Calculations!$E$2=\"Eilean Siar Local Authority\"),OR($F170=1,$F170=5)),0,new_yllv2(VALUE(LEFT(Options!$B$24,2)),$C170,$D170,$E170,$F170,2016,$I170,1,$H170,$G170*$H170,Options!$B$8)))","v":5686.8939790085997},{"$f":"IF(AND(OR(Calculations!$E$2=\"Orkney Health Board\",Calculations!$E$2=\"Orkney Islands Local Authority\"),$F170=1),0,IF(AND(OR(Calculations!$E$2=\"Shetland Health Board\",Calculations!$E$2=\"Western Isles Health Board\",Calculations!$E$2=\"Shetland Islands Local Authority\",Calculations!$E$2=\"Eilean Siar Local Authority\"),OR($F170=1,$F170=5)),0,new_yllv2(VALUE(LEFT(Options!$B$24,2)),$C170,$D170,$E170,$F170,2016,$I170+$J170,1,$H170,$G170*$H170,Options!$B$8)))","v":5649.1044762218999},{"$f":"IF(AND(OR(Calculations!$E$2=\"Orkney Health Board\",Calculations!$E$2=\"Orkney Islands Local Authority\"),$F170=1),0,IF(AND(OR(Calculations!$E$2=\"Shetland Health Board\",Calculations!$E$2=\"Western Isles Health Board\",Calculations!$E$2=\"Shetland Islands Local Authority\",Calculations!$E$2=\"Eilean Siar Local Authority\"),OR($F170=1,$F170=5)),0,hosp_count(VALUE(LEFT(Options!$B$24,2)),$C170,$E170,$F170,2016,$I170,1,$H170,$G170*$H170, Options!$B$8)))","v":{"$error":"#NAME?"}},{"$f":"IF(AND(OR(Calculations!$E$2=\"Orkney Health Board\",Calculations!$E$2=\"Orkney Islands Local Authority\"),$F170=1),0,IF(AND(OR(Calculations!$E$2=\"Shetland Health Board\",Calculations!$E$2=\"Western Isles Health Board\",Calculations!$E$2=\"Shetland Islands Local Authority\",Calculations!$E$2=\"Eilean Siar Local Authority\"),OR($F170=1,$F170=5)),0,hosp_count(VALUE(LEFT(Options!$B$24,2)),$C170,$E170,$F170,2016,$I170+$J170,1,$H170,$G170*$H170, Options!$B$8)))","v":{"$error":"#NAME?"}},{"$f":"IF(AND(OR(Calculations!$E$2=\"Orkney Health Board\",Calculations!$E$2=\"Orkney Islands Local Authority\"),$F170=1),0,IF(AND(OR(Calculations!$E$2=\"Shetland Health Board\",Calculations!$E$2=\"Western Isles Health Board\",Calculations!$E$2=\"Shetland Islands Local Authority\",Calculations!$E$2=\"Eilean Siar Local Authority\"),OR($F170=1,$F170=5)),0,prem_mort(VALUE(LEFT(Options!$B$24,2)),$C170,$E170,$F170,2016,$I170,1,$H170,$G170*$H170,Options!$B$8)))","v":0},{"$f":"IF(AND(OR(Calculations!$E$2=\"Orkney Health Board\",Calculations!$E$2=\"Orkney Islands Local Authority\"),$F170=1),0,IF(AND(OR(Calculations!$E$2=\"Shetland Health Board\",Calculations!$E$2=\"Western Isles Health Board\",Calculations!$E$2=\"Shetland Islands Local Authority\",Calculations!$E$2=\"Eilean Siar Local Authority\"),OR($F170=1,$F170=5)),0,prem_mort(VALUE(LEFT(Options!$B$24,2)),$C170,$E170,$F170,2016,$I170+$J170,1,$H170,$G170*$H170,Options!$B$8)))","v":0},3708.8350304000883,3684.1897614300669,31339.656006880854,31131.403484084094,{"$error":"#NAME?"},{"$error":"#NAME?"},0,0,14835340.121600352,14736759.045720268,125358624.02752341,124525613.93633638,{"$error":"#NAME?"},{"$error":"#NAME?"},0,0,4000]
[null,"Male 80-84",81.797089,88.627089999999995,"male",3,{"$f":"HLOOKUP(Calculations!$E$2,'Prevalence Rates'!$C$3:$BC$249,'Prevalence Rates'!$BD171,FALSE)","v":0.79500000000000004},{"$f":"HLOOKUP(Calculations!$E$2,'Population 2016'!$C$3:$BC$249,'Population 2016'!BD171,FALSE)","v":12096},0,{"$f":"HLOOKUP(Results!E$4,Targeting!$C$3:$F$249,Targeting!$G171,FALSE)","v":1986},{"$f":"IF(AND(OR(Calculations!$E$2=\"Orkney Health Board\",Calculations!$E$2=\"Orkney Islands Local Authority\"),$F171=1),0,IF(AND(OR(Calculations!$E$2=\"Shetland Health Board\",Calculations!$E$2=\"Western Isles Health Board\",Calculations!$E$2=\"Shetland Islands Local Authority\",Calculations!$E$2=\"Eilean Siar Local Authority\"),OR($F171=1,$F171=5)),0,new_ci(VALUE(LEFT(Options!$B$24,2)),$C171,$E171,$F171,2016,$I171,1,$H171,$G171*$H171,Options!$B$8)))","v":643.42497985320006},{"$f":"IF(AND(OR(Calculations!$E$2=\"Orkney Health Board\",Calculations!$E$2=\"Orkney Islands Local Authority\"),$F171=1),0,IF(AND(OR(Calculations!$E$2=\"Shetland Health Board\",Calculations!$E$2=\"Western Isles Health Board\",Calculations!$E$2=\"Shetland Islands Local Authority\",Calculations!$E$2=\"Eilean Siar Local Authority\"),OR($F171=1,$F171=5)),0,new_ci(VALUE(LEFT(Options!$B$24,2)),$C171,$E171,$F171,2016,$I171+$J171,1,$H171,$G171*$H171,Options!$B$8)))","v":639.18779284799996},{"$f":"IF(AND(OR(Calculations!$E$2=\"Orkney Health Board\",Calculations!$E$2=\"Orkney Islands Local Authority\"),$F171=1),0,IF(AND(OR(Calculations!$E$2=\"Shetland Health Board\",Calculations!$E$2=\"Western Isles Health Board\",Calculations!$E$2=\"Shetland Islands Local Authority\",Calculations!$E$2=\"Eilean Siar Local Authority\"),OR($F171=1,$F171=5)),0,new_yllv2(VALUE(LEFT(Options!$B$24,2)),$C171,$D171,$E171,$F171,2016,$I171,1,$H171,$G171*$H171,Options!$B$8)))","v":3751.1682759690998},{"$f":"IF(AND(OR(Calculations!$E$2=\"Orkney Health Board\",Calculations!$E$2=\"Orkney Islands Local Authority\"),$F171=1),0,IF(AND(OR(Calculations!$E$2=\"Shetland Health Board\",Calculations!$E$2=\"Western Isles Health Board\",Calculations!$E$2=\"Shetland Islands Local Authority\",Calculations!$E$2=\"Eilean Siar Local Authority\"),OR($F171=1,$F171=5)),0,new_yllv2(VALUE(LEFT(Options!$B$24,2)),$C171,$D171,$E171,$F171,2016,$I171+$J171,1,$H171,$G171*$H171,Options!$B$8)))","v":3726.4654714916001},{"$f":"IF(AND(OR(Calculations!$E$2=\"Orkney Health Board\",Calculations!$E$2=\"Orkney Islands Local Authority\"),$F171=1),0,IF(AND(OR(Calculations!$E$2=\"Shetland Health Board\",Calculations!$E$2=\"Western Isles Health Board\",Calculations!$E$2=\"Shetland Islands Local Authority\",Calculations!$E$2=\"Eilean Siar Local Authority\"),OR($F171=1,$F171=5)),0,hosp_count(VALUE(LEFT(Options!$B$24,2)),$C171,$E171,$F171,2016,$I171,1,$H171,$G171*$H171, Options!$B$8)))","v":{"$error":"#NAME?"}},{"$f":"IF(AND(OR(Calculations!$E$2=\"Orkney Health Board\",Calculations!$E$2=\"Orkney Islands Local Authority\"),$F171=1),0,IF(AND(OR(Calculations!$E$2=\"Shetland Health Board\",Calculations!$E$2=\"Western Isles Health Board\",Calculations!$E$2=\"Shetland Islands Local Authority\",Calculations!$E$2=\"Eilean Siar Local Authority\"),OR($F171=1,$F171=5)),0,hosp_count(VALUE(LEFT(Options!$B$24,2)),$C171,$E171,$F171,2016,$I171+$J171,1,$H171,$G171*$H171, Options!$B$8)))","v":{"$error":"#NAME?"}},{"$f":"IF(AND(OR(Calculations!$E$2=\"Orkney Health Board\",Calculations!$E$2=\"Orkney Islands Local Authority\"),$F171=1),0,IF(AND(OR(Calculations!$E$2=\"Shetland Health Board\",Calculations!$E$2=\"Western Isles Health Board\",Calculations!$E$2=\"Shetland Islands Local Authority\",Calculations!$E$2=\"Eilean Siar Local Authority\"),OR($F171=1,$F171=5)),0,prem_mort(VALUE(LEFT(Options!$B$24,2)),$C171,$E171,$F171,2016,$I171,1,$H171,$G171*$H171,Options!$B$8)))","v":0},{"$f":"IF(AND(OR(Calculations!$E$2=\"Orkney Health Board\",Calculations!$E$2=\"Orkney Islands Local Authority\"),$F171=1),0,IF(AND(OR(Calculations!$E$2=\"Shetland Health Board\",Calculations!$E$2=\"Western Isles Health Board\",Calculations!$E$2=\"Shetland Islands Local Authority\",Calculations!$E$2=\"Eilean Siar Local Authority\"),OR($F171=1,$F171=5)),0,prem_mort(VALUE(LEFT(Options!$B$24,2)),$C171,$E171,$F171,2016,$I171+$J171,1,$H171,$G171*$H171,Options!$B$8)))","v":0},5319.3202699503972,5284.2906154761895,31011.642493130788,30807.419572516537,{"$error":"#NAME?"},{"$error":"#NAME?"},0,0,13298300.674875993,13210726.538690474,77529106.232826978,77018548.931291342,{"$error":"#NAME?"},{"$error":"#NAME?"},0,0,2500]
[null,"Male 85-89",86.630752999999999,91.420750000000012,"male",3,{"$f":"HLOOKUP(Calculations!$E$2,'Prevalence Rates'!$C$3:$BC$249,'Prevalence Rates'!$BD172,FALSE)","v":0.79500000000000004},{"$f":"HLOOKUP(Calculations!$E$2,'Population 2016'!$C$3:$BC$249,'Population 2016'!BD172,FALSE)","v":6019},0,{"$f":"HLOOKUP(Results!E$4,Targeting!$C$3:$F$249,Targeting!$G172,FALSE)","v":988},{"$f":"IF(AND(OR(Calculations!$E$2=\"Orkney Health Board\",Calculations!$E$2=\"Orkney Islands Local Authority\"),$F172=1),0,IF(AND(OR(Calculations!$E$2=\"Shetland Health Board\",Calculations!$E$2=\"Western Isles Health Board\",Calculations!$E$2=\"Shetland Islands Local Authority\",Calculations!$E$2=\"Eilean Siar Local Authority\"),OR($F172=1,$F172=5)),0,new_ci(VALUE(LEFT(Options!$B$24,2)),$C172,$E172,$F172,2016,$I172,1,$H172,$G172*$H172,Options!$B$8)))","v":455.63168642210002},{"$f":"IF(AND(OR(Calculations!$E$2=\"Orkney Health Board\",Calculations!$E$2=\"Orkney Islands Local Authority\"),$F172=1),0,IF(AND(OR(Calculations!$E$2=\"Shetland Health Board\",Calculations!$E$2=\"Western Isles Health Board\",Calculations!$E$2=\"Shetland Islands Local Authority\",Calculations!$E$2=\"Eilean Siar Local Authority\"),OR($F172=1,$F172=5)),0,new_ci(VALUE(LEFT(Options!$B$24,2)),$C172,$E172,$F172,2016,$I172+$J172,1,$H172,$G172*$H172,Options!$B$8)))","v":452.67085780330001},{"$f":"IF(AND(OR(Calculations!$E$2=\"Orkney Health Board\",Calculations!$E$2=\"Orkney Islands Local Authority\"),$F172=1),0,IF(AND(OR(Calculations!$E$2=\"Shetland Health Board\",Calculations!$E$2=\"Western Isles Health Board\",Calculations!$E$2=\"Shetland Islands Local Authority\",Calculations!$E$2=\"Eilean Siar Local Authority\"),OR($F172=1,$F172=5)),0,new_yllv2(VALUE(LEFT(Options!$B$24,2)),$C172,$D172,$E172,$F172,2016,$I172,1,$H172,$G172*$H172,Options!$B$8)))","v":1726.8427246447},{"$f":"IF(AND(OR(Calculations!$E$2=\"Orkney Health Board\",Calculations!$E$2=\"Orkney Islands Local Authority\"),$F172=1),0,IF(AND(OR(Calculations!$E$2=\"Shetland Health Board\",Calculations!$E$2=\"Western Isles Health Board\",Calculations!$E$2=\"Shetland Islands Local Authority\",Calculations!$E$2=\"Eilean Siar Local Authority\"),OR($F172=1,$F172=5)),0,new_yllv2(VALUE(LEFT(Options!$B$24,2)),$C172,$D172,$E172,$F172,2016,$I172+$J172,1,$H172,$G172*$H172,Options!$B$8)))","v":1715.6211930618999},{"$f":"IF(AND(OR(Calculations!$E$2=\"Orkney Health Board\",Calculations!$E$2=\"Orkney Islands Local Authority\"),$F172=1),0,IF(AND(OR(Calculations!$E$2=\"Shetland Health Board\",Calculations!$E$2=\"Western Isles Health Board\",Calculations!$E$2=\"Shetland Islands Local Authority\",Calculations!$E$2=\"Eilean Siar Local Authority\"),OR($F172=1,$F172=5)),0,hosp_count(VALUE(LEFT(Options!$B$24,2)),$C172,$E172,$F172,2016,$I172,1,$H172,$G172*$H172, Options!$B$8)))","v":{"$error":"#NAME?"}},{"$f":"IF(AND(OR(Calculations!$E$2=\"Orkney Health Board\",Calculations!$E$2=\"Orkney Islands Local Authority\"),$F172=1),0,IF(AND(OR(Calculations!$E$2=\"Shetland Health Board\",Calculations!$E$2=\"Western Isles Health Board\",Calculations!$E$2=\"Shetland Islands Local Authority\",Calculations!$E$2=\"Eilean Siar Local Authority\"),OR($F172=1,$F172=5)),0,hosp_count(VALUE(LEFT(Options!$B$24,2)),$C172,$E172,$F172,2016,$I172+$J172,1,$H172,$G172*$H172, Options!$B$8)))","v":{"$error":"#NAME?"}},{"$f":"IF(AND(OR(Calculations!$E$2=\"Orkney Health Board\",Calculations!$E$2=\"Orkney Islands Local Authority\"),$F172=1),0,IF(AND(OR(Calculations!$E$2=\"Shetland Health Board\",Calculations!$E$2=\"Western Isles Health Board\",Calculations!$E$2=\"Shetland Islands Local Authority\",Calculations!$E$2=\"Eilean Siar Local Authority\"),OR($F172=1,$F172=5)),0,prem_mort(VALUE(LEFT(Options!$B$24,2)),$C172,$E172,$F172,2016,$I172,1,$H172,$G172*$H172,Options!$B$8)))","v":0},{"$f":"IF(AND(OR(Calculations!$E$2=\"Orkney Health Board\",Calculations!$E$2=\"Orkney Islands Local Authority\"),$F172=1),0,IF(AND(OR(Calculations!$E$2=\"Shetland Health Board\",Calculations!$E$2=\"Western Isles Health Board\",Calculations!$E$2=\"Shetland Islands Local Authority\",Calculations!$E$2=\"Eilean Siar Local Authority\"),OR($F172=1,$F172=5)),0,prem_mort(VALUE(LEFT(Options!$B$24,2)),$C172,$E172,$F172,2016,$I172+$J172,1,$H172,$G172*$H172,Options!$B$8)))","v":0},7569.8901216497752,7520.6987506778542,28689.860851382291,28503.42570297225,{"$error":"#NAME?"},{"$error":"#NAME?"},0,0,11354835.182474663,11281048.126016781,43034791.277073435,42755138.554458372,{"$error":"#NAME?"},{"$error":"#NAME?"},0,0,1500]
[null,"Male 90+",92.215477000000007,95.515479999999997,"male",3,{"$f":"HLOOKUP(Calculations!$E$2,'Prevalence Rates'!$C$3:$BC$249,'Prevalence Rates'!$BD173,FALSE)","v":0.79500000000000004},{"$f":"HLOOKUP(Calculations!$E$2,'Population 2016'!$C$3:$BC$249,'Population 2016'!BD173,FALSE)","v":2593},0,{"$f":"HLOOKUP(Results!E$4,Targeting!$C$3:$F$249,Targeting!$G173,FALSE)","v":426},{"$f":"IF(AND(OR(Calculations!$E$2=\"Orkney Health Board\",Calculations!$E$2=\"Orkney Islands Local Authority\"),$F173=1),0,IF(AND(OR(Calculations!$E$2=\"Shetland Health Board\",Calculations!$E$2=\"Western Isles Health Board\",Calculations!$E$2=\"Shetland Islands Local Authority\",Calculations!$E$2=\"Eilean Siar Local Authority\"),OR($F173=1,$F173=5)),0,new_ci(VALUE(LEFT(Options!$B$24,2)),$C173,$E173,$F173,2016,$I173,1,$H173,$G173*$H173,Options!$B$8)))","v":293.1207210801},{"$f":"IF(AND(OR(Calculations!$E$2=\"Orkney Health Board\",Calculations!$E$2=\"Orkney Islands Local Authority\"),$F173=1),0,IF(AND(OR(Calculations!$E$2=\"Shetland Health Board\",Calculations!$E$2=\"Western Isles Health Board\",Calculations!$E$2=\"Shetland Islands Local Authority\",Calculations!$E$2=\"Eilean Siar Local Authority\"),OR($F173=1,$F173=5)),0,new_ci(VALUE(LEFT(Options!$B$24,2)),$C173,$E173,$F173,2016,$I173+$J173,1,$H173,$G173*$H173,Options!$B$8)))","v":291.25677874109999},{"$f":"IF(AND(OR(Calculations!$E$2=\"Orkney Health Board\",Calculations!$E$2=\"Orkney Islands Local Authority\"),$F173=1),0,IF(AND(OR(Calculations!$E$2=\"Shetland Health Board\",Calculations!$E$2=\"Western Isles Health Board\",Calculations!$E$2=\"Shetland Islands Local Authority\",Calculations!$E$2=\"Eilean Siar Local Authority\"),OR($F173=1,$F173=5)),0,new_yllv2(VALUE(LEFT(Options!$B$24,2)),$C173,$D173,$E173,$F173,2016,$I173,1,$H173,$G173*$H173,Options!$B$8)))","v":674.17853784639999},{"$f":"IF(AND(OR(Calculations!$E$2=\"Orkney Health Board\",Calculations!$E$2=\"Orkney Islands Local Authority\"),$F173=1),0,IF(AND(OR(Calculations!$E$2=\"Shetland Health Board\",Calculations!$E$2=\"Western Isles Health Board\",Calculations!$E$2=\"Shetland Islands Local Authority\",Calculations!$E$2=\"Eilean Siar Local Authority\"),OR($F173=1,$F173=5)),0,new_yllv2(VALUE(LEFT(Options!$B$24,2)),$C173,$D173,$E173,$F173,2016,$I173+$J173,1,$H173,$G173*$H173,Options!$B$8)))","v":669.89146487489995},{"$f":"IF(AND(OR(Calculations!$E$2=\"Orkney Health Board\",Calculations!$E$2=\"Orkney Islands Local Authority\"),$F173=1),0,IF(AND(OR(Calculations!$E$2=\"Shetland Health Board\",Calculations!$E$2=\"Western Isles Health Board\",Calculations!$E$2=\"Shetland Islands Local Authority\",Calculations!$E$2=\"Eilean Siar Local Authority\"),OR($F173=1,$F173=5)),0,hosp_count(VALUE(LEFT(Options!$B$24,2)),$C173,$E173,$F173,2016,$I173,1,$H173,$G173*$H173, Options!$B$8)))","v":{"$error":"#NAME?"}},{"$f":"IF(AND(OR(Calculations!$E$2=\"Orkney Health Board\",Calculations!$E$2=\"Orkney Islands Local Authority\"),$F173=1),0,IF(AND(OR(Calculations!$E$2=\"Shetland Health Board\",Calculations!$E$2=\"Western Isles Health Board\",Calculations!$E$2=\"Shetland Islands Local Authority\",Calculations!$E$2=\"Eilean Siar Local Authority\"),OR($F173=1,$F173=5)),0,hosp_count(VALUE(LEFT(Options!$B$24,2)),$C173,$E173,$F173,2016,$I173+$J173,1,$H173,$G173*$H173, Options!$B$8)))","v":{"$error":"#NAME?"}},{"$f":"IF(AND(OR(Calculations!$E$2=\"Orkney Health Board\",Calculations!$E$2=\"Orkney Islands Local Authority\"),$F173=1),0,IF(AND(OR(Calculations!$E$2=\"Shetland Health Board\",Calculations!$E$2=\"Western Isles Health Board\",Calculations!$E$2=\"Shetland Islands Local Authority\",Calculations!$E$2=\"Eilean Siar Local Authority\"),OR($F173=1,$F173=5)),0,prem_mort(VALUE(LEFT(Options!$B$24,2)),$C173,$E173,$F173,2016,$I173,1,$H173,$G173*$H173,Options!$B$8)))","v":0},{"$f":"IF(AND(OR(Calculations!$E$2=\"Orkney Health Board\",Calculations!$E$2=\"Orkney Islands Local Authority\"),$F173=1),0,IF(AND(OR(Calculations!$E$2=\"Shetland Health Board\",Calculations!$E$2=\"Western Isles Health Board\",Calculations!$E$2=\"Shetland Islands Local Authority\",Calculations!$E$2=\"Eilean Siar Local Authority\"),OR($F173=1,$F173=5)),0,prem_mort(VALUE(LEFT(Options!$B$24,2)),$C173,$E173,$F173,2016,$I173+$J173,1,$H173,$G173*$H173,Options!$B$8)))","v":0},11304.308564600849,11232.424941808715,25999.943611507904,25834.611063436172,{"$error":"#NAME?"},{"$error":"#NAME?"},0,0,11304308.56460085,11232424.941808715,25999943.611507904,25834611.063436173,{"$error":"#NAME?"},{"$error":"#NAME?"},0,0,1000]
[null,"Female 0-4",2.0384007,81.468401,"female",4,{"$f":"HLOOKUP(Calculations!$E$2,'Prevalence Rates'!$C$3:$BC$249,'Prevalence Rates'!$BD174,FALSE)","v":0},{"$f":"HLOOKUP(Calculations!$E$2,'Population 2016'!$C$3:$BC$249,'Population 2016'!BD174,FALSE)","v":0},0,{"$f":"HLOOKUP(Results!E$4,Targeting!$C$3:$F$249,Targeting!$G174,FALSE)","v":0},{"$f":"IF(AND(OR(Calculations!$E$2=\"Orkney Health Board\",Calculations!$E$2=\"Orkney Islands Local Authority\"),$F174=1),0,IF(AND(OR(Calculations!$E$2=\"Shetland Health Board\",Calculations!$E$2=\"Western Isles Health Board\",Calculations!$E$2=\"Shetland Islands Local Authority\",Calculations!$E$2=\"Eilean Siar Local Authority\"),OR($F174=1,$F174=5)),0,new_ci(VALUE(LEFT(Options!$B$24,2)),$C174,$E174,$F174,2016,$I174,1,$H174,$G174*$H174,Options!$B$8)))","v":{"$error":"#VALUE!"}},{"$f":"IF(AND(OR(Calculations!$E$2=\"Orkney Health Board\",Calculations!$E$2=\"Orkney Islands Local Authority\"),$F174=1),0,IF(AND(OR(Calculations!$E$2=\"Shetland Health Board\",Calculations!$E$2=\"Western Isles Health Board\",Calculations!$E$2=\"Shetland Islands Local Authority\",Calculations!$E$2=\"Eilean Siar Local Authority\"),OR($F174=1,$F174=5)),0,new_ci(VALUE(LEFT(Options!$B$24,2)),$C174,$E174,$F174,2016,$I174+$J174,1,$H174,$G174*$H174,Options!$B$8)))","v":{"$error":"#VALUE!"}},{"$f":"IF(AND(OR(Calculations!$E$2=\"Orkney Health Board\",Calculations!$E$2=\"Orkney Islands Local Authority\"),$F174=1),0,IF(AND(OR(Calculations!$E$2=\"Shetland Health Board\",Calculations!$E$2=\"Western Isles Health Board\",Calculations!$E$2=\"Shetland Islands Local Authority\",Calculations!$E$2=\"Eilean Siar Local Authority\"),OR($F174=1,$F174=5)),0,new_yllv2(VALUE(LEFT(Options!$B$24,2)),$C174,$D174,$E174,$F174,2016,$I174,1,$H174,$G174*$H174,Options!$B$8)))","v":{"$error":"#VALUE!"}},{"$f":"IF(AND(OR(Calculations!$E$2=\"Orkney Health Board\",Calculations!$E$2=\"Orkney Islands Local Authority\"),$F174=1),0,IF(AND(OR(Calculations!$E$2=\"Shetland Health Board\",Calculations!$E$2=\"Western Isles Health Board\",Calculations!$E$2=\"Shetland Islands Local Authority\",Calculations!$E$2=\"Eilean Siar Local Authority\"),OR($F174=1,$F174=5)),0,new_yllv2(VALUE(LEFT(Options!$B$24,2)),$C174,$D174,$E174,$F174,2016,$I174+$J174,1,$H174,$G174*$H174,Options!$B$8)))","v":{"$error":"#VALUE!"}},{"$f":"IF(AND(OR(Calculations!$E$2=\"Orkney Health Board\",Calculations!$E$2=\"Orkney Islands Local Authority\"),$F174=1),0,IF(AND(OR(Calculations!$E$2=\"Shetland Health Board\",Calculations!$E$2=\"Western Isles Health Board\",Calculations!$E$2=\"Shetland Islands Local Authority\",Calculations!$E$2=\"Eilean Siar Local Authority\"),OR($F174=1,$F174=5)),0,hosp_count(VALUE(LEFT(Options!$B$24,2)),$C174,$E174,$F174,2016,$I174,1,$H174,$G174*$H174, Options!$B$8)))","v":{"$error":"#NAME?"}},{"$f":"IF(AND(OR(Calculations!$E$2=\"Orkney Health Board\",Calculations!$E$2=\"Orkney Islands Local Authority\"),$F174=1),0,IF(AND(OR(Calculations!$E$2=\"Shetland Health Board\",Calculations!$E$2=\"Western Isles Health Board\",Calculations!$E$2=\"Shetland Islands Local Authority\",Calculations!$E$2=\"Eilean Siar Local Authority\"),OR($F174=1,$F174=5)),0,hosp_count(VALUE(LEFT(Options!$B$24,2)),$C174,$E174,$F174,2016,$I174+$J174,1,$H174,$G174*$H174, Options!$B$8)))","v":{"$error":"#NAME?"}},{"$f":"IF(AND(OR(Calculations!$E$2=\"Orkney Health Board\",Calculations!$E$2=\"Orkney Islands Local Authority\"),$F174=1),0,IF(AND(OR(Calculations!$E$2=\"Shetland Health Board\",Calculations!$E$2=\"Western Isles Health Board\",Calculations!$E$2=\"Shetland Islands Local Authority\",Calculations!$E$2=\"Eilean Siar Local Authority\"),OR($F174=1,$F174=5)),0,prem_mort(VALUE(LEFT(Options!$B$24,2)),$C174,$E174,$F174,2016,$I174,1,$H174,$G174*$H174,Options!$B$8)))","v":{"$error":"#VALUE!"}},{"$f":"IF(AND(OR(Calculations!$E$2=\"Orkney Health Board\",Calculations!$E$2=\"Orkney Islands Local Authority\"),$F174=1),0,IF(AND(OR(Calculations!$E$2=\"Shetland Health Board\",Calculations!$E$2=\"Western Isles Health Board\",Calculations!$E$2=\"Shetland Islands Local Authority\",Calculations!$E$2=\"Eilean Siar Local Authority\"),OR($F174=1,$F174=5)),0,prem_mort(VALUE(LEFT(Options!$B$24,2)),$C174,$E174,$F174,2016,$I174+$J174,1,$H174,$G174*$H174,Options!$B$8)))","v":{"$error":"#VALUE!"}},{"$error":"#VALUE!"},{"$error":"#VALUE!"},{"$error":"#VALUE!"},{"$error":"#VALUE!"},{"$error":"#NAME?"},{"$error":"#NAME?"},{"$error":"#VALUE!"},{"$error":"#VALUE!"},{"$error":"#VALUE!"},{"$error":"#VALUE!"},{"$error":"#VALUE!"},{"$error":"#VALUE!"},{"$error":"#NAME?"},{"$error":"#NAME?"},{"$error":"#VALUE!"},{"$error":"#VALUE!"},5000]
[null,"Female 5-9",6.9792794999999996,81.439279999999997,"female",4,{"$f":"HLOOKUP(Calculations!$E$2,'Prevalence Rates'!$C$3:$BC$249,'Prevalence Rates'!$BD175,FALSE)","v":0},{"$f":"HLOOKUP(Calculations!$E$2,'Population 2016'!$C$3:$BC$249,'Population 2016'!BD175,FALSE)","v":0},0,{"$f":"HLOOKUP(Results!E$4,Targeting!$C$3:$F$249,Targeting!$G175,FALSE)","v":0},{"$f":"IF(AND(OR(Calculations!$E$2=\"Orkney Health Board\",Calculations!$E$2=\"Orkney Islands Local Authority\"),$F175=1),0,IF(AND(OR(Calculations!$E$2=\"Shetland Health Board\",Calculations!$E$2=\"Western Isles Health Board\",Calculations!$E$2=\"Shetland Islands Local Authority\",Calculations!$E$2=\"Eilean Siar Local Authority\"),OR($F175=1,$F175=5)),0,new_ci(VALUE(LEFT(Options!$B$24,2)),$C175,$E175,$F175,2016,$I175,1,$H175,$G175*$H175,Options!$B$8)))","v":{"$error":"#VALUE!"}},{"$f":"IF(AND(OR(Calculations!$E$2=\"Orkney Health Board\",Calculations!$E$2=\"Orkney Islands Local Authority\"),$F175=1),0,IF(AND(OR(Calculations!$E$2=\"Shetland Health Board\",Calculations!$E$2=\"Western Isles Health Board\",Calculations!$E$2=\"Shetland Islands Local Authority\",Calculations!$E$2=\"Eilean Siar Local Authority\"),OR($F175=1,$F175=5)),0,new_ci(VALUE(LEFT(Options!$B$24,2)),$C175,$E175,$F175,2016,$I175+$J175,1,$H175,$G175*$H175,Options!$B$8)))","v":{"$error":"#VALUE!"}},{"$f":"IF(AND(OR(Calculations!$E$2=\"Orkney Health Board\",Calculations!$E$2=\"Orkney Islands Local Authority\"),$F175=1),0,IF(AND(OR(Calculations!$E$2=\"Shetland Health Board\",Calculations!$E$2=\"Western Isles Health Board\",Calculations!$E$2=\"Shetland Islands Local Authority\",Calculations!$E$2=\"Eilean Siar Local Authority\"),OR($F175=1,$F175=5)),0,new_yllv2(VALUE(LEFT(Options!$B$24,2)),$C175,$D175,$E175,$F175,2016,$I175,1,$H175,$G175*$H175,Options!$B$8)))","v":{"$error":"#VALUE!"}},{"$f":"IF(AND(OR(Calculations!$E$2=\"Orkney Health Board\",Calculations!$E$2=\"Orkney Islands Local Authority\"),$F175=1),0,IF(AND(OR(Calculations!$E$2=\"Shetland Health Board\",Calculations!$E$2=\"Western Isles Health Board\",Calculations!$E$2=\"Shetland Islands Local Authority\",Calculations!$E$2=\"Eilean Siar Local Authority\"),OR($F175=1,$F175=5)),0,new_yllv2(VALUE(LEFT(Options!$B$24,2)),$C175,$D175,$E175,$F175,2016,$I175+$J175,1,$H175,$G175*$H175,Options!$B$8)))","v":{"$error":"#VALUE!"}},{"$f":"IF(AND(OR(Calculations!$E$2=\"Orkney Health Board\",Calculations!$E$2=\"Orkney Islands Local Authority\"),$F175=1),0,IF(AND(OR(Calculations!$E$2=\"Shetland Health Board\",Calculations!$E$2=\"Western Isles Health Board\",Calculations!$E$2=\"Shetland Islands Local Authority\",Calculations!$E$2=\"Eilean Siar Local Authority\"),OR($F175=1,$F175=5)),0,hosp_count(VALUE(LEFT(Options!$B$24,2)),$C175,$E175,$F175,2016,$I175,1,$H175,$G175*$H175, Options!$B$8)))","v":{"$error":"#NAME?"}},{"$f":"IF(AND(OR(Calculations!$E$2=\"Orkney Health Board\",Calculations!$E$2=\"Orkney Islands Local Authority\"),$F175=1),0,IF(AND(OR(Calculations!$E$2=\"Shetland Health Board\",Calculations!$E$2=\"Western Isles Health Board\",Calculations!$E$2=\"Shetland Islands Local Authority\",Calculations!$E$2=\"Eilean Siar Local Authority\"),OR($F175=1,$F175=5)),0,hosp_count(VALUE(LEFT(Options!$B$24,2)),$C175,$E175,$F175,2016,$I175+$J175,1,$H175,$G175*$H175, Options!$B$8)))","v":{"$error":"#NAME?"}},{"$f":"IF(AND(OR(Calculations!$E$2=\"Orkney Health Board\",Calculations!$E$2=\"Orkney Islands Local Authority\"),$F175=1),0,IF(AND(OR(Calculations!$E$2=\"Shetland Health Board\",Calculations!$E$2=\"Western Isles Health Board\",Calculations!$E$2=\"Shetland Islands Local Authority\",Calculations!$E$2=\"Eilean Siar Local Authority\"),OR($F175=1,$F175=5)),0,prem_mort(VALUE(LEFT(Options!$B$24,2)),$C175,$E175,$F175,2016,$I175,1,$H175,$G175*$H175,Options!$B$8)))","v":{"$error":"#VALUE!"}},{"$f":"IF(AND(OR(Calculations!$E$2=\"Orkney Health Board\",Calculations!$E$2=\"Orkney Islands Local Authority\"),$F175=1),0,IF(AND(OR(Calculations!$E$2=\"Shetland Health Board\",Calculations!$E$2=\"Western Isles Health Board\",Calculations!$E$2=\"Shetland Islands Local Authority\",Calculations!$E$2=\"Eilean Siar Local Authority\"),OR($F175=1,$F175=5)),0,prem_mort(VALUE(LEFT(Options!$B$24,2)),$C175,$E175,$F175,2016,$I175+$J175,1,$H175,$G175*$H175,Options!$B$8)))","v":{"$error":"#VALUE!"}},{"$error":"#VALUE!"},{"$error":"#VALUE!"},{"$error":"#VALUE!"},{"$error":"#VALUE!"},{"$error":"#NAME?"},{"$error":"#NAME?"},{"$error":"#VALUE!"},{"$error":"#VALUE!"},{"$error":"#VALUE!"},{"$error":"#VALUE!"},{"$error":"#VALUE!"},{"$error":"#VALUE!"},{"$error":"#NAME?"},{"$error":"#NAME?"},{"$error":"#VALUE!"},{"$error":"#VALUE!"},5500]
[null,"Female 10-15",12.478312000000001,81.948309999999992,"female",4,{"$f":"HLOOKUP(Calculations!$E$2,'Prevalence Rates'!$C$3:$BC$249,'Prevalence Rates'!$BD176,FALSE)","v":0},{"$f":"HLOOKUP(Calculations!$E$2,'Population 2016'!$C$3:$BC$249,'Population 2016'!BD176,FALSE)","v":0},0,{"$f":"HLOOKUP(Results!E$4,Targeting!$C$3:$F$249,Targeting!$G176,FALSE)","v":0},{"$f":"IF(AND(OR(Calculations!$E$2=\"Orkney Health Board\",Calculations!$E$2=\"Orkney Islands Local Authority\"),$F176=1),0,IF(AND(OR(Calculations!$E$2=\"Shetland Health Board\",Calculations!$E$2=\"Western Isles Health Board\",Calculations!$E$2=\"Shetland Islands Local Authority\",Calculations!$E$2=\"Eilean Siar Local Authority\"),OR($F176=1,$F176=5)),0,new_ci(VALUE(LEFT(Options!$B$24,2)),$C176,$E176,$F176,2016,$I176,1,$H176,$G176*$H176,Options!$B$8)))","v":{"$error":"#VALUE!"}},{"$f":"IF(AND(OR(Calculations!$E$2=\"Orkney Health Board\",Calculations!$E$2=\"Orkney Islands Local Authority\"),$F176=1),0,IF(AND(OR(Calculations!$E$2=\"Shetland Health Board\",Calculations!$E$2=\"Western Isles Health Board\",Calculations!$E$2=\"Shetland Islands Local Authority\",Calculations!$E$2=\"Eilean Siar Local Authority\"),OR($F176=1,$F176=5)),0,new_ci(VALUE(LEFT(Options!$B$24,2)),$C176,$E176,$F176,2016,$I176+$J176,1,$H176,$G176*$H176,Options!$B$8)))","v":{"$error":"#VALUE!"}},{"$f":"IF(AND(OR(Calculations!$E$2=\"Orkney Health Board\",Calculations!$E$2=\"Orkney Islands Local Authority\"),$F176=1),0,IF(AND(OR(Calculations!$E$2=\"Shetland Health Board\",Calculations!$E$2=\"Western Isles Health Board\",Calculations!$E$2=\"Shetland Islands Local Authority\",Calculations!$E$2=\"Eilean Siar Local Authority\"),OR($F176=1,$F176=5)),0,new_yllv2(VALUE(LEFT(Options!$B$24,2)),$C176,$D176,$E176,$F176,2016,$I176,1,$H176,$G176*$H176,Options!$B$8)))","v":{"$error":"#VALUE!"}},{"$f":"IF(AND(OR(Calculations!$E$2=\"Orkney Health Board\",Calculations!$E$2=\"Orkney Islands Local Authority\"),$F176=1),0,IF(AND(OR(Calculations!$E$2=\"Shetland Health Board\",Calculations!$E$2=\"Western Isles Health Board\",Calculations!$E$2=\"Shetland Islands Local Authority\",Calculations!$E$2=\"Eilean Siar Local Authority\"),OR($F176=1,$F176=5)),0,new_yllv2(VALUE(LEFT(Options!$B$24,2)),$C176,$D176,$E176,$F176,2016,$I176+$J176,1,$H176,$G176*$H176,Options!$B$8)))","v":{"$error":"#VALUE!"}},{"$f":"IF(AND(OR(Calculations!$E$2=\"Orkney Health Board\",Calculations!$E$2=\"Orkney Islands Local Authority\"),$F176=1),0,IF(AND(OR(Calculations!$E$2=\"Shetland Health Board\",Calculations!$E$2=\"Western Isles Health Board\",Calculations!$E$2=\"Shetland Islands Local Authority\",Calculations!$E$2=\"Eilean Siar Local Authority\"),OR($F176=1,$F176=5)),0,hosp_count(VALUE(LEFT(Options!$B$24,2)),$C176,$E176,$F176,2016,$I176,1,$H176,$G176*$H176, Options!$B$8)))","v":{"$error":"#NAME?"}},{"$f":"IF(AND(OR(Calculations!$E$2=\"Orkney Health Board\",Calculations!$E$2=\"Orkney Islands Local Authority\"),$F176=1),0,IF(AND(OR(Calculations!$E$2=\"Shetland Health Board\",Calculations!$E$2=\"Western Isles Health Board\",Calculations!$E$2=\"Shetland Islands Local Authority\",Calculations!$E$2=\"Eilean Siar Local Authority\"),OR($F176=1,$F176=5)),0,hosp_count(VALUE(LEFT(Options!$B$24,2)),$C176,$E176,$F176,2016,$I176+$J176,1,$H176,$G176*$H176, Options!$B$8)))","v":{"$error":"#NAME?"}},{"$f":"IF(AND(OR(Calculations!$E$2=\"Orkney Health Board\",Calculations!$E$2=\"Orkney Islands Local Authority\"),$F176=1),0,IF(AND(OR(Calculations!$E$2=\"Shetland Health Board\",Calculations!$E$2=\"Western Isles Health Board\",Calculations!$E$2=\"Shetland Islands Local Authority\",Calculations!$E$2=\"Eilean Siar Local Authority\"),OR($F176=1,$F176=5)),0,prem_mort(VALUE(LEFT(Options!$B$24,2)),$C176,$E176,$F176,2016,$I176,1,$H176,$G176*$H176,Options!$B$8)))","v":{"$error":"#VALUE!"}},{"$f":"IF(AND(OR(Calculations!$E$2=\"Orkney Health Board\",Calculations!$E$2=\"Orkney Islands Local Authority\"),$F176=1),0,IF(AND(OR(Calculations!$E$2=\"Shetland Health Board\",Calculations!$E$2=\"Western Isles Health Board\",Calculations!$E$2=\"Shetland Islands Local Authority\",Calculations!$E$2=\"Eilean Siar Local Authority\"),OR($F176=1,$F176=5)),0,prem_mort(VALUE(LEFT(Options!$B$24,2)),$C176,$E176,$F176,2016,$I176+$J176,1,$H176,$G176*$H176,Options!$B$8)))","v":{"$error":"#VALUE!"}},{"$error":"#VALUE!"},{"$error":"#VALUE!"},{"$error":"#VALUE!"},{"$error":"#VALUE!"},{"$error":"#NAME?"},{"$error":"#NAME?"},{"$error":"#VALUE!"},{"$error":"#VALUE!"},{"$error":"#VALUE!"},{"$error":"#VALUE!"},{"$error":"#VALUE!"},{"$error":"#VALUE!"},{"$error":"#NAME?"},{"$error":"#NAME?"},{"$error":"#VALUE!"},{"$error":"#VALUE!"},6600]
["SIMD Q4","Female 16-19",17.570053000000001,81.100049999999996,"female",4,{"$f":"HLOOKUP(Calculations!$E$2,'Prevalence Rates'!$C$3:$BC$249,'Prevalence Rates'!$BD177,FALSE)","v":0.19299999999999998},{"$f":"HLOOKUP(Calculations!$E$2,'Population 2016'!$C$3:$BC$249,'Population 2016'!BD177,FALSE)","v":23408},0,{"$f":"HLOOKUP(Results!E$4,Targeting!$C$3:$F$249,Targeting!$G177,FALSE)","v":3843},{"$f":"IF(AND(OR(Calculations!$E$2=\"Orkney Health Board\",Calculations!$E$2=\"Orkney Islands Local Authority\"),$F177=1),0,IF(AND(OR(Calculations!$E$2=\"Shetland Health Board\",Calculations!$E$2=\"Western Isles Health Board\",Calculations!$E$2=\"Shetland Islands Local Authority\",Calculations!$E$2=\"Eilean Siar Local Authority\"),OR($F177=1,$F177=5)),0,new_ci(VALUE(LEFT(Options!$B$24,2)),$C177,$E177,$F177,2016,$I177,1,$H177,$G177*$H177,Options!$B$8)))","v":3.3423294587000001},{"$f":"IF(AND(OR(Calculations!$E$2=\"Orkney Health Board\",Calculations!$E$2=\"Orkney Islands Local Authority\"),$F177=1),0,IF(AND(OR(Calculations!$E$2=\"Shetland Health Board\",Calculations!$E$2=\"Western Isles Health Board\",Calculations!$E$2=\"Shetland Islands Local Authority\",Calculations!$E$2=\"Eilean Siar Local Authority\"),OR($F177=1,$F177=5)),0,new_ci(VALUE(LEFT(Options!$B$24,2)),$C177,$E177,$F177,2016,$I177+$J177,1,$H177,$G177*$H177,Options!$B$8)))","v":3.3142663355000002},{"$f":"IF(AND(OR(Calculations!$E$2=\"Orkney Health Board\",Calculations!$E$2=\"Orkney Islands Local Authority\"),$F177=1),0,IF(AND(OR(Calculations!$E$2=\"Shetland Health Board\",Calculations!$E$2=\"Western Isles Health Board\",Calculations!$E$2=\"Shetland Islands Local Authority\",Calculations!$E$2=\"Eilean Siar Local Authority\"),OR($F177=1,$F177=5)),0,new_yllv2(VALUE(LEFT(Options!$B$24,2)),$C177,$D177,$E177,$F177,2016,$I177,1,$H177,$G177*$H177,Options!$B$8)))","v":208.9958510255},{"$f":"IF(AND(OR(Calculations!$E$2=\"Orkney Health Board\",Calculations!$E$2=\"Orkney Islands Local Authority\"),$F177=1),0,IF(AND(OR(Calculations!$E$2=\"Shetland Health Board\",Calculations!$E$2=\"Western Isles Health Board\",Calculations!$E$2=\"Shetland Islands Local Authority\",Calculations!$E$2=\"Eilean Siar Local Authority\"),OR($F177=1,$F177=5)),0,new_yllv2(VALUE(LEFT(Options!$B$24,2)),$C177,$D177,$E177,$F177,2016,$I177+$J177,1,$H177,$G177*$H177,Options!$B$8)))","v":207.241064016},{"$f":"IF(AND(OR(Calculations!$E$2=\"Orkney Health Board\",Calculations!$E$2=\"Orkney Islands Local Authority\"),$F177=1),0,IF(AND(OR(Calculations!$E$2=\"Shetland Health Board\",Calculations!$E$2=\"Western Isles Health Board\",Calculations!$E$2=\"Shetland Islands Local Authority\",Calculations!$E$2=\"Eilean Siar Local Authority\"),OR($F177=1,$F177=5)),0,hosp_count(VALUE(LEFT(Options!$B$24,2)),$C177,$E177,$F177,2016,$I177,1,$H177,$G177*$H177, Options!$B$8)))","v":{"$error":"#NAME?"}},{"$f":"IF(AND(OR(Calculations!$E$2=\"Orkney Health Board\",Calculations!$E$2=\"Orkney Islands Local Authority\"),$F177=1),0,IF(AND(OR(Calculations!$E$2=\"Shetland Health Board\",Calculations!$E$2=\"Western Isles Health Board\",Calculations!$E$2=\"Shetland Islands Local Authority\",Calculations!$E$2=\"Eilean Siar Local Authority\"),OR($F177=1,$F177=5)),0,hosp_count(VALUE(LEFT(Options!$B$24,2)),$C177,$E177,$F177,2016,$I177+$J177,1,$H177,$G177*$H177, Options!$B$8)))","v":{"$error":"#NAME?"}},{"$f":"IF(AND(OR(Calculations!$E$2=\"Orkney Health Board\",Calculations!$E$2=\"Orkney Islands Local Authority\"),$F177=1),0,IF(AND(OR(Calculations!$E$2=\"Shetland Health Board\",Calculations!$E$2=\"Western Isles Health Board\",Calculations!$E$2=\"Shetland Islands Local Authority\",Calculations!$E$2=\"Eilean Siar Local Authority\"),OR($F177=1,$F177=5)),0,prem_mort(VALUE(LEFT(Options!$B$24,2)),$C177,$E177,$F177,2016,$I177,1,$H177,$G177*$H177,Options!$B$8)))","v":3.3423294587000001},{"$f":"IF(AND(OR(Calculations!$E$2=\"Orkney Health Board\",Calculations!$E$2=\"Orkney Islands Local Authority\"),$F177=1),0,IF(AND(OR(Calculations!$E$2=\"Shetland Health Board\",Calculations!$E$2=\"Western Isles Health Board\",Calculations!$E$2=\"Shetland Islands Local Authority\",Calculations!$E$2=\"Eilean Siar Local Authority\"),OR($F177=1,$F177=5)),0,prem_mort(VALUE(LEFT(Options!$B$24,2)),$C177,$E177,$F177,2016,$I177+$J177,1,$H177,$G177*$H177,Options!$B$8)))","v":3.3142663355000002},14.278577660201639,14.158690770249489,892.83941825657894,885.3428913875598,{"$error":"#NAME?"},{"$error":"#NAME?"},14.278577660201639,14.158690770249489,62825.741704887216,62298.239389097755,3928493.4403289473,3895508.7221052633,{"$error":"#NAME?"},{"$error":"#NAME?"},62825.741704887216,62298.239389097755,4400]
[null,"Female 20-24",22.077057,81.667060000000006,"female",4,{"$f":"HLOOKUP(Calculations!$E$2,'Prevalence Rates'!$C$3:$BC$249,'Prevalence Rates'!$BD178,FALSE)","v":0.19299999999999998},{"$f":"HLOOKUP(Calculations!$E$2,'Population 2016'!$C$3:$BC$249,'Population 2016'!BD178,FALSE)","v":34833},0,{"$f":"HLOOKUP(Results!E$4,Targeting!$C$3:$F$249,Targeting!$G178,FALSE)","v":5719},{"$f":"IF(AND(OR(Calculations!$E$2=\"Orkney Health Board\",Calculations!$E$2=\"Orkney Islands Local Authority\"),$F178=1),0,IF(AND(OR(Calculations!$E$2=\"Shetland Health Board\",Calculations!$E$2=\"Western Isles Health Board\",Calculations!$E$2=\"Shetland Islands Local Authority\",Calculations!$E$2=\"Eilean Siar Local Authority\"),OR($F178=1,$F178=5)),0,new_ci(VALUE(LEFT(Options!$B$24,2)),$C178,$E178,$F178,2016,$I178,1,$H178,$G178*$H178,Options!$B$8)))","v":7.2969873301000003},{"$f":"IF(AND(OR(Calculations!$E$2=\"Orkney Health Board\",Calculations!$E$2=\"Orkney Islands Local Authority\"),$F178=1),0,IF(AND(OR(Calculations!$E$2=\"Shetland Health Board\",Calculations!$E$2=\"Western Isles Health Board\",Calculations!$E$2=\"Shetland Islands Local Authority\",Calculations!$E$2=\"Eilean Siar Local Authority\"),OR($F178=1,$F178=5)),0,new_ci(VALUE(LEFT(Options!$B$24,2)),$C178,$E178,$F178,2016,$I178+$J178,1,$H178,$G178*$H178,Options!$B$8)))","v":7.2357191111999999},{"$f":"IF(AND(OR(Calculations!$E$2=\"Orkney Health Board\",Calculations!$E$2=\"Orkney Islands Local Authority\"),$F178=1),0,IF(AND(OR(Calculations!$E$2=\"Shetland Health Board\",Calculations!$E$2=\"Western Isles Health Board\",Calculations!$E$2=\"Shetland Islands Local Authority\",Calculations!$E$2=\"Eilean Siar Local Authority\"),OR($F178=1,$F178=5)),0,new_yllv2(VALUE(LEFT(Options!$B$24,2)),$C178,$D178,$E178,$F178,2016,$I178,1,$H178,$G178*$H178,Options!$B$8)))","v":427.53050956150003},{"$f":"IF(AND(OR(Calculations!$E$2=\"Orkney Health Board\",Calculations!$E$2=\"Orkney Islands Local Authority\"),$F178=1),0,IF(AND(OR(Calculations!$E$2=\"Shetland Health Board\",Calculations!$E$2=\"Western Isles Health Board\",Calculations!$E$2=\"Shetland Islands Local Authority\",Calculations!$E$2=\"Eilean Siar Local Authority\"),OR($F178=1,$F178=5)),0,new_yllv2(VALUE(LEFT(Options!$B$24,2)),$C178,$D178,$E178,$F178,2016,$I178+$J178,1,$H178,$G178*$H178,Options!$B$8)))","v":423.9408044324},{"$f":"IF(AND(OR(Calculations!$E$2=\"Orkney Health Board\",Calculations!$E$2=\"Orkney Islands Local Authority\"),$F178=1),0,IF(AND(OR(Calculations!$E$2=\"Shetland Health Board\",Calculations!$E$2=\"Western Isles Health Board\",Calculations!$E$2=\"Shetland Islands Local Authority\",Calculations!$E$2=\"Eilean Siar Local Authority\"),OR($F178=1,$F178=5)),0,hosp_count(VALUE(LEFT(Options!$B$24,2)),$C178,$E178,$F178,2016,$I178,1,$H178,$G178*$H178, Options!$B$8)))","v":{"$error":"#NAME?"}},{"$f":"IF(AND(OR(Calculations!$E$2=\"Orkney Health Board\",Calculations!$E$2=\"Orkney Islands Local Authority\"),$F178=1),0,IF(AND(OR(Calculations!$E$2=\"Shetland Health Board\",Calculations!$E$2=\"Western Isles Health Board\",Calculations!$E$2=\"Shetland Islands Local Authority\",Calculations!$E$2=\"Eilean Siar Local Authority\"),OR($F178=1,$F178=5)),0,hosp_count(VALUE(LEFT(Options!$B$24,2)),$C178,$E178,$F178,2016,$I178+$J178,1,$H178,$G178*$H178, Options!$B$8)))","v":{"$error":"#NAME?"}},{"$f":"IF(AND(OR(Calculations!$E$2=\"Orkney Health Board\",Calculations!$E$2=\"Orkney Islands Local Authority\"),$F178=1),0,IF(AND(OR(Calculations!$E$2=\"Shetland Health Board\",Calculations!$E$2=\"Western Isles Health Board\",Calculations!$E$2=\"Shetland Islands Local Authority\",Calculations!$E$2=\"Eilean Siar Local Authority\"),OR($F178=1,$F178=5)),0,prem_mort(VALUE(LEFT(Options!$B$24,2)),$C178,$E178,$F178,2016,$I178,1,$H178,$G178*$H178,Options!$B$8)))","v":7.2969873301000003},{"$f":"IF(AND(OR(Calculations!$E$2=\"Orkney Health Board\",Calculations!$E$2=\"Orkney Islands Local Authority\"),$F178=1),0,IF(AND(OR(Calculations!$E$2=\"Shetland Health Board\",Calculations!$E$2=\"Western Isles Health Board\",Calculations!$E$2=\"Shetland Islands Local Authority\",Calculations!$E$2=\"Eilean Siar Local Authority\"),OR($F178=1,$F178=5)),0,prem_mort(VALUE(LEFT(Options!$B$24,2)),$C178,$E178,$F178,2016,$I178+$J178,1,$H178,$G178*$H178,Options!$B$8)))","v":7.2357191111999999},20.948489449946891,20.772598143140126,1227.3720597177964,1217.066587524474,{"$error":"#NAME?"},{"$error":"#NAME?"},20.948489449946891,20.772598143140126,125690.93669968135,124635.58885884075,7364232.3583067786,7302399.5251468439,{"$error":"#NAME?"},{"$error":"#NAME?"},125690.93669968135,124635.58885884075,6000]
[null,"Female 25-29",26.975186999999998,81.645189999999999,"female",4,{"$f":"HLOOKUP(Calculations!$E$2,'Prevalence Rates'!$C$3:$BC$249,'Prevalence Rates'!$BD179,FALSE)","v":0.16900000000000007},{"$f":"HLOOKUP(Calculations!$E$2,'Population 2016'!$C$3:$BC$249,'Population 2016'!BD179,FALSE)","v":33433},0,{"$f":"HLOOKUP(Results!E$4,Targeting!$C$3:$F$249,Targeting!$G179,FALSE)","v":5489},{"$f":"IF(AND(OR(Calculations!$E$2=\"Orkney Health Board\",Calculations!$E$2=\"Orkney Islands Local Authority\"),$F179=1),0,IF(AND(OR(Calculations!$E$2=\"Shetland Health Board\",Calculations!$E$2=\"Western Isles Health Board\",Calculations!$E$2=\"Shetland Islands Local Authority\",Calculations!$E$2=\"Eilean Siar Local Authority\"),OR($F179=1,$F179=5)),0,new_ci(VALUE(LEFT(Options!$B$24,2)),$C179,$E179,$F179,2016,$I179,1,$H179,$G179*$H179,Options!$B$8)))","v":10.6226817972},{"$f":"IF(AND(OR(Calculations!$E$2=\"Orkney Health Board\",Calculations!$E$2=\"Orkney Islands Local Authority\"),$F179=1),0,IF(AND(OR(Calculations!$E$2=\"Shetland Health Board\",Calculations!$E$2=\"Western Isles Health Board\",Calculations!$E$2=\"Shetland Islands Local Authority\",Calculations!$E$2=\"Eilean Siar Local Authority\"),OR($F179=1,$F179=5)),0,new_ci(VALUE(LEFT(Options!$B$24,2)),$C179,$E179,$F179,2016,$I179+$J179,1,$H179,$G179*$H179,Options!$B$8)))","v":10.532644083499999},{"$f":"IF(AND(OR(Calculations!$E$2=\"Orkney Health Board\",Calculations!$E$2=\"Orkney Islands Local Authority\"),$F179=1),0,IF(AND(OR(Calculations!$E$2=\"Shetland Health Board\",Calculations!$E$2=\"Western Isles Health Board\",Calculations!$E$2=\"Shetland Islands Local Authority\",Calculations!$E$2=\"Eilean Siar Local Authority\"),OR($F179=1,$F179=5)),0,new_yllv2(VALUE(LEFT(Options!$B$24,2)),$C179,$D179,$E179,$F179,2016,$I179,1,$H179,$G179*$H179,Options!$B$8)))","v":570.11936392380005},{"$f":"IF(AND(OR(Calculations!$E$2=\"Orkney Health Board\",Calculations!$E$2=\"Orkney Islands Local Authority\"),$F179=1),0,IF(AND(OR(Calculations!$E$2=\"Shetland Health Board\",Calculations!$E$2=\"Western Isles Health Board\",Calculations!$E$2=\"Shetland Islands Local Authority\",Calculations!$E$2=\"Eilean Siar Local Authority\"),OR($F179=1,$F179=5)),0,new_yllv2(VALUE(LEFT(Options!$B$24,2)),$C179,$D179,$E179,$F179,2016,$I179+$J179,1,$H179,$G179*$H179,Options!$B$8)))","v":565.2870395594},{"$f":"IF(AND(OR(Calculations!$E$2=\"Orkney Health Board\",Calculations!$E$2=\"Orkney Islands Local Authority\"),$F179=1),0,IF(AND(OR(Calculations!$E$2=\"Shetland Health Board\",Calculations!$E$2=\"Western Isles Health Board\",Calculations!$E$2=\"Shetland Islands Local Authority\",Calculations!$E$2=\"Eilean Siar Local Authority\"),OR($F179=1,$F179=5)),0,hosp_count(VALUE(LEFT(Options!$B$24,2)),$C179,$E179,$F179,2016,$I179,1,$H179,$G179*$H179, Options!$B$8)))","v":{"$error":"#NAME?"}},{"$f":"IF(AND(OR(Calculations!$E$2=\"Orkney Health Board\",Calculations!$E$2=\"Orkney Islands Local Authority\"),$F179=1),0,IF(AND(OR(Calculations!$E$2=\"Shetland Health Board\",Calculations!$E$2=\"Western Isles Health Board\",Calculations!$E$2=\"Shetland Islands Local Authority\",Calculations!$E$2=\"Eilean Siar Local Authority\"),OR($F179=1,$F179=5)),0,hosp_count(VALUE(LEFT(Options!$B$24,2)),$C179,$E179,$F179,2016,$I179+$J179,1,$H179,$G179*$H179, Options!$B$8)))","v":{"$error":"#NAME?"}},{"$f":"IF(AND(OR(Calculations!$E$2=\"Orkney Health Board\",Calculations!$E$2=\"Orkney Islands Local Authority\"),$F179=1),0,IF(AND(OR(Calculations!$E$2=\"Shetland Health Board\",Calculations!$E$2=\"Western Isles Health Board\",Calculations!$E$2=\"Shetland Islands Local Authority\",Calculations!$E$2=\"Eilean Siar Local Authority\"),OR($F179=1,$F179=5)),0,prem_mort(VALUE(LEFT(Options!$B$24,2)),$C179,$E179,$F179,2016,$I179,1,$H179,$G179*$H179,Options!$B$8)))","v":10.6226817972},{"$f":"IF(AND(OR(Calculations!$E$2=\"Orkney Health Board\",Calculations!$E$2=\"Orkney Islands Local Authority\"),$F179=1),0,IF(AND(OR(Calculations!$E$2=\"Shetland Health Board\",Calculations!$E$2=\"Western Isles Health Board\",Calculations!$E$2=\"Shetland Islands Local Authority\",Calculations!$E$2=\"Eilean Siar Local Authority\"),OR($F179=1,$F179=5)),0,prem_mort(VALUE(LEFT(Options!$B$24,2)),$C179,$E179,$F179,2016,$I179+$J179,1,$H179,$G179*$H179,Options!$B$8)))","v":10.532644083499999},31.773043990069695,31.503736079621927,1705.2593662662641,1690.8056099045853,{"$error":"#NAME?"},{"$error":"#NAME?"},31.773043990069695,31.503736079621927,190638.26394041817,189022.41647773157,10231556.197597586,10144833.659427512,{"$error":"#NAME?"},{"$error":"#NAME?"},190638.26394041817,189022.41647773157,6000]
[null,"Female 30-34",31.999904999999998,81.799899999999994,"female",4,{"$f":"HLOOKUP(Calculations!$E$2,'Prevalence Rates'!$C$3:$BC$249,'Prevalence Rates'!$BD180,FALSE)","v":0.16900000000000007},{"$f":"HLOOKUP(Calculations!$E$2,'Population 2016'!$C$3:$BC$249,'Population 2016'!BD180,FALSE)","v":33838},0,{"$f":"HLOOKUP(Results!E$4,Targeting!$C$3:$F$249,Targeting!$G180,FALSE)","v":5556},{"$f":"IF(AND(OR(Calculations!$E$2=\"Orkney Health Board\",Calculations!$E$2=\"Orkney Islands Local Authority\"),$F180=1),0,IF(AND(OR(Calculations!$E$2=\"Shetland Health Board\",Calculations!$E$2=\"Western Isles Health Board\",Calculations!$E$2=\"Shetland Islands Local Authority\",Calculations!$E$2=\"Eilean Siar Local Authority\"),OR($F180=1,$F180=5)),0,new_ci(VALUE(LEFT(Options!$B$24,2)),$C180,$E180,$F180,2016,$I180,1,$H180,$G180*$H180,Options!$B$8)))","v":16.4828411027},{"$f":"IF(AND(OR(Calculations!$E$2=\"Orkney Health Board\",Calculations!$E$2=\"Orkney Islands Local Authority\"),$F180=1),0,IF(AND(OR(Calculations!$E$2=\"Shetland Health Board\",Calculations!$E$2=\"Western Isles Health Board\",Calculations!$E$2=\"Shetland Islands Local Authority\",Calculations!$E$2=\"Eilean Siar Local Authority\"),OR($F180=1,$F180=5)),0,new_ci(VALUE(LEFT(Options!$B$24,2)),$C180,$E180,$F180,2016,$I180+$J180,1,$H180,$G180*$H180,Options!$B$8)))","v":16.343138816300002},{"$f":"IF(AND(OR(Calculations!$E$2=\"Orkney Health Board\",Calculations!$E$2=\"Orkney Islands Local Authority\"),$F180=1),0,IF(AND(OR(Calculations!$E$2=\"Shetland Health Board\",Calculations!$E$2=\"Western Isles Health Board\",Calculations!$E$2=\"Shetland Islands Local Authority\",Calculations!$E$2=\"Eilean Siar Local Authority\"),OR($F180=1,$F180=5)),0,new_yllv2(VALUE(LEFT(Options!$B$24,2)),$C180,$D180,$E180,$F180,2016,$I180,1,$H180,$G180*$H180,Options!$B$8)))","v":804.36256339759996},{"$f":"IF(AND(OR(Calculations!$E$2=\"Orkney Health Board\",Calculations!$E$2=\"Orkney Islands Local Authority\"),$F180=1),0,IF(AND(OR(Calculations!$E$2=\"Shetland Health Board\",Calculations!$E$2=\"Western Isles Health Board\",Calculations!$E$2=\"Shetland Islands Local Authority\",Calculations!$E$2=\"Eilean Siar Local Authority\"),OR($F180=1,$F180=5)),0,new_yllv2(VALUE(LEFT(Options!$B$24,2)),$C180,$D180,$E180,$F180,2016,$I180+$J180,1,$H180,$G180*$H180,Options!$B$8)))","v":797.54509251970001},{"$f":"IF(AND(OR(Calculations!$E$2=\"Orkney Health Board\",Calculations!$E$2=\"Orkney Islands Local Authority\"),$F180=1),0,IF(AND(OR(Calculations!$E$2=\"Shetland Health Board\",Calculations!$E$2=\"Western Isles Health Board\",Calculations!$E$2=\"Shetland Islands Local Authority\",Calculations!$E$2=\"Eilean Siar Local Authority\"),OR($F180=1,$F180=5)),0,hosp_count(VALUE(LEFT(Options!$B$24,2)),$C180,$E180,$F180,2016,$I180,1,$H180,$G180*$H180, Options!$B$8)))","v":{"$error":"#NAME?"}},{"$f":"IF(AND(OR(Calculations!$E$2=\"Orkney Health Board\",Calculations!$E$2=\"Orkney Islands Local Authority\"),$F180=1),0,IF(AND(OR(Calculations!$E$2=\"Shetland Health Board\",Calculations!$E$2=\"Western Isles Health Board\",Calculations!$E$2=\"Shetland Islands Local Authority\",Calculations!$E$2=\"Eilean Siar Local Authority\"),OR($F180=1,$F180=5)),0,hosp_count(VALUE(LEFT(Options!$B$24,2)),$C180,$E180,$F180,2016,$I180+$J180,1,$H180,$G180*$H180, Options!$B$8)))","v":{"$error":"#NAME?"}},{"$f":"IF(AND(OR(Calculations!$E$2=\"Orkney Health Board\",Calculations!$E$2=\"Orkney Islands Local Authority\"),$F180=1),0,IF(AND(OR(Calculations!$E$2=\"Shetland Health Board\",Calculations!$E$2=\"Western Isles Health Board\",Calculations!$E$2=\"Shetland Islands Local Authority\",Calculations!$E$2=\"Eilean Siar Local Authority\"),OR($F180=1,$F180=5)),0,prem_mort(VALUE(LEFT(Options!$B$24,2)),$C180,$E180,$F180,2016,$I180,1,$H180,$G180*$H180,Options!$B$8)))","v":16.4828411027},{"$f":"IF(AND(OR(Calculations!$E$2=\"Orkney Health Board\",Calculations!$E$2=\"Orkney Islands Local Authority\"),$F180=1),0,IF(AND(OR(Calculations!$E$2=\"Shetland Health Board\",Calculations!$E$2=\"Western Isles Health Board\",Calculations!$E$2=\"Shetland Islands Local Authority\",Calculations!$E$2=\"Eilean Siar Local Authority\"),OR($F180=1,$F180=5)),0,prem_mort(VALUE(LEFT(Options!$B$24,2)),$C180,$E180,$F180,2016,$I180+$J180,1,$H180,$G180*$H180,Options!$B$8)))","v":16.343138816300002},48.711038189904841,48.298181973816426,2377.0984201122997,2356.951038831196,{"$error":"#NAME?"},{"$error":"#NAME?"},48.711038189904841,48.298181973816426,316621.74823438149,313938.18282980676,15451139.730729949,15320181.752402773,{"$error":"#NAME?"},{"$error":"#NAME?"},316621.74823438149,313938.18282980676,6500]
[null,"Female 35-39",36.918118,81.898120000000006,"female",4,{"$f":"HLOOKUP(Calculations!$E$2,'Prevalence Rates'!$C$3:$BC$249,'Prevalence Rates'!$BD181,FALSE)","v":0.22},{"$f":"HLOOKUP(Calculations!$E$2,'Population 2016'!$C$3:$BC$249,'Population 2016'!BD181,FALSE)","v":32800},0,{"$f":"HLOOKUP(Results!E$4,Targeting!$C$3:$F$249,Targeting!$G181,FALSE)","v":5385},{"$f":"IF(AND(OR(Calculations!$E$2=\"Orkney Health Board\",Calculations!$E$2=\"Orkney Islands Local Authority\"),$F181=1),0,IF(AND(OR(Calculations!$E$2=\"Shetland Health Board\",Calculations!$E$2=\"Western Isles Health Board\",Calculations!$E$2=\"Shetland Islands Local Authority\",Calculations!$E$2=\"Eilean Siar Local Authority\"),OR($F181=1,$F181=5)),0,new_ci(VALUE(LEFT(Options!$B$24,2)),$C181,$E181,$F181,2016,$I181,1,$H181,$G181*$H181,Options!$B$8)))","v":24.272612179199999},{"$f":"IF(AND(OR(Calculations!$E$2=\"Orkney Health Board\",Calculations!$E$2=\"Orkney Islands Local Authority\"),$F181=1),0,IF(AND(OR(Calculations!$E$2=\"Shetland Health Board\",Calculations!$E$2=\"Western Isles Health Board\",Calculations!$E$2=\"Shetland Islands Local Authority\",Calculations!$E$2=\"Eilean Siar Local Authority\"),OR($F181=1,$F181=5)),0,new_ci(VALUE(LEFT(Options!$B$24,2)),$C181,$E181,$F181,2016,$I181+$J181,1,$H181,$G181*$H181,Options!$B$8)))","v":24.071057014200001},{"$f":"IF(AND(OR(Calculations!$E$2=\"Orkney Health Board\",Calculations!$E$2=\"Orkney Islands Local Authority\"),$F181=1),0,IF(AND(OR(Calculations!$E$2=\"Shetland Health Board\",Calculations!$E$2=\"Western Isles Health Board\",Calculations!$E$2=\"Shetland Islands Local Authority\",Calculations!$E$2=\"Eilean Siar Local Authority\"),OR($F181=1,$F181=5)),0,new_yllv2(VALUE(LEFT(Options!$B$24,2)),$C181,$D181,$E181,$F181,2016,$I181,1,$H181,$G181*$H181,Options!$B$8)))","v":1067.5095321864001},{"$f":"IF(AND(OR(Calculations!$E$2=\"Orkney Health Board\",Calculations!$E$2=\"Orkney Islands Local Authority\"),$F181=1),0,IF(AND(OR(Calculations!$E$2=\"Shetland Health Board\",Calculations!$E$2=\"Western Isles Health Board\",Calculations!$E$2=\"Shetland Islands Local Authority\",Calculations!$E$2=\"Eilean Siar Local Authority\"),OR($F181=1,$F181=5)),0,new_yllv2(VALUE(LEFT(Options!$B$24,2)),$C181,$D181,$E181,$F181,2016,$I181+$J181,1,$H181,$G181*$H181,Options!$B$8)))","v":1058.6451356266},{"$f":"IF(AND(OR(Calculations!$E$2=\"Orkney Health Board\",Calculations!$E$2=\"Orkney Islands Local Authority\"),$F181=1),0,IF(AND(OR(Calculations!$E$2=\"Shetland Health Board\",Calculations!$E$2=\"Western Isles Health Board\",Calculations!$E$2=\"Shetland Islands Local Authority\",Calculations!$E$2=\"Eilean Siar Local Authority\"),OR($F181=1,$F181=5)),0,hosp_count(VALUE(LEFT(Options!$B$24,2)),$C181,$E181,$F181,2016,$I181,1,$H181,$G181*$H181, Options!$B$8)))","v":{"$error":"#NAME?"}},{"$f":"IF(AND(OR(Calculations!$E$2=\"Orkney Health Board\",Calculations!$E$2=\"Orkney Islands Local Authority\"),$F181=1),0,IF(AND(OR(Calculations!$E$2=\"Shetland Health Board\",Calculations!$E$2=\"Western Isles Health Board\",Calculations!$E$2=\"Shetland Islands Local Authority\",Calculations!$E$2=\"Eilean Siar Local Authority\"),OR($F181=1,$F181=5)),0,hosp_count(VALUE(LEFT(Options!$B$24,2)),$C181,$E181,$F181,2016,$I181+$J181,1,$H181,$G181*$H181, Options!$B$8)))","v":{"$error":"#NAME?"}},{"$f":"IF(AND(OR(Calculations!$E$2=\"Orkney Health Board\",Calculations!$E$2=\"Orkney Islands Local Authority\"),$F181=1),0,IF(AND(OR(Calculations!$E$2=\"Shetland Health Board\",Calculations!$E$2=\"Western Isles Health Board\",Calculations!$E$2=\"Shetland Islands Local Authority\",Calculations!$E$2=\"Eilean Siar Local Authority\"),OR($F181=1,$F181=5)),0,prem_mort(VALUE(LEFT(Options!$B$24,2)),$C181,$E181,$F181,2016,$I181,1,$H181,$G181*$H181,Options!$B$8)))","v":24.272612179199999},{"$f":"IF(AND(OR(Calculations!$E$2=\"Orkney Health Board\",Calculations!$E$2=\"Orkney Islands Local Authority\"),$F181=1),0,IF(AND(OR(Calculations!$E$2=\"Shetland Health Board\",Calculations!$E$2=\"Western Isles Health Board\",Calculations!$E$2=\"Shetland Islands Local Authority\",Calculations!$E$2=\"Eilean Siar Local Authority\"),OR($F181=1,$F181=5)),0,prem_mort(VALUE(LEFT(Options!$B$24,2)),$C181,$E181,$F181,2016,$I181+$J181,1,$H181,$G181*$H181,Options!$B$8)))","v":24.071057014200001},74.001866399999997,73.387368945731723,3254.6022322756098,3227.5766330079268,{"$error":"#NAME?"},{"$error":"#NAME?"},74.001866399999997,73.387368945731723,518013.06479999999,513711.58262012206,22782215.62592927,22593036.431055486,{"$error":"#NAME?"},{"$error":"#NAME?"},518013.06479999999,513711.58262012206,7000]
[null,"Female 40-44",42.077438000000001,82.30744,"female",4,{"$f":"HLOOKUP(Calculations!$E$2,'Prevalence Rates'!$C$3:$BC$249,'Prevalence Rates'!$BD182,FALSE)","v":0.22},{"$f":"HLOOKUP(Calculations!$E$2,'Population 2016'!$C$3:$BC$249,'Population 2016'!BD182,FALSE)","v":35805},0,{"$f":"HLOOKUP(Results!E$4,Targeting!$C$3:$F$249,Targeting!$G182,FALSE)","v":5879},{"$f":"IF(AND(OR(Calculations!$E$2=\"Orkney Health Board\",Calculations!$E$2=\"Orkney Islands Local Authority\"),$F182=1),0,IF(AND(OR(Calculations!$E$2=\"Shetland Health Board\",Calculations!$E$2=\"Western Isles Health Board\",Calculations!$E$2=\"Shetland Islands Local Authority\",Calculations!$E$2=\"Eilean Siar Local Authority\"),OR($F182=1,$F182=5)),0,new_ci(VALUE(LEFT(Options!$B$24,2)),$C182,$E182,$F182,2016,$I182,1,$H182,$G182*$H182,Options!$B$8)))","v":41.084087481399997},{"$f":"IF(AND(OR(Calculations!$E$2=\"Orkney Health Board\",Calculations!$E$2=\"Orkney Islands Local Authority\"),$F182=1),0,IF(AND(OR(Calculations!$E$2=\"Shetland Health Board\",Calculations!$E$2=\"Western Isles Health Board\",Calculations!$E$2=\"Shetland Islands Local Authority\",Calculations!$E$2=\"Eilean Siar Local Authority\"),OR($F182=1,$F182=5)),0,new_ci(VALUE(LEFT(Options!$B$24,2)),$C182,$E182,$F182,2016,$I182+$J182,1,$H182,$G182*$H182,Options!$B$8)))","v":40.743003186800003},{"$f":"IF(AND(OR(Calculations!$E$2=\"Orkney Health Board\",Calculations!$E$2=\"Orkney Islands Local Authority\"),$F182=1),0,IF(AND(OR(Calculations!$E$2=\"Shetland Health Board\",Calculations!$E$2=\"Western Isles Health Board\",Calculations!$E$2=\"Shetland Islands Local Authority\",Calculations!$E$2=\"Eilean Siar Local Authority\"),OR($F182=1,$F182=5)),0,new_yllv2(VALUE(LEFT(Options!$B$24,2)),$C182,$D182,$E182,$F182,2016,$I182,1,$H182,$G182*$H182,Options!$B$8)))","v":1611.7288340635},{"$f":"IF(AND(OR(Calculations!$E$2=\"Orkney Health Board\",Calculations!$E$2=\"Orkney Islands Local Authority\"),$F182=1),0,IF(AND(OR(Calculations!$E$2=\"Shetland Health Board\",Calculations!$E$2=\"Western Isles Health Board\",Calculations!$E$2=\"Shetland Islands Local Authority\",Calculations!$E$2=\"Eilean Siar Local Authority\"),OR($F182=1,$F182=5)),0,new_yllv2(VALUE(LEFT(Options!$B$24,2)),$C182,$D182,$E182,$F182,2016,$I182+$J182,1,$H182,$G182*$H182,Options!$B$8)))","v":1598.3480965041999},{"$f":"IF(AND(OR(Calculations!$E$2=\"Orkney Health Board\",Calculations!$E$2=\"Orkney Islands Local Authority\"),$F182=1),0,IF(AND(OR(Calculations!$E$2=\"Shetland Health Board\",Calculations!$E$2=\"Western Isles Health Board\",Calculations!$E$2=\"Shetland Islands Local Authority\",Calculations!$E$2=\"Eilean Siar Local Authority\"),OR($F182=1,$F182=5)),0,hosp_count(VALUE(LEFT(Options!$B$24,2)),$C182,$E182,$F182,2016,$I182,1,$H182,$G182*$H182, Options!$B$8)))","v":{"$error":"#NAME?"}},{"$f":"IF(AND(OR(Calculations!$E$2=\"Orkney Health Board\",Calculations!$E$2=\"Orkney Islands Local Authority\"),$F182=1),0,IF(AND(OR(Calculations!$E$2=\"Shetland Health Board\",Calculations!$E$2=\"Western Isles Health Board\",Calculations!$E$2=\"Shetland Islands Local Authority\",Calculations!$E$2=\"Eilean Siar Local Authority\"),OR($F182=1,$F182=5)),0,hosp_count(VALUE(LEFT(Options!$B$24,2)),$C182,$E182,$F182,2016,$I182+$J182,1,$H182,$G182*$H182, Options!$B$8)))","v":{"$error":"#NAME?"}},{"$f":"IF(AND(OR(Calculations!$E$2=\"Orkney Health Board\",Calculations!$E$2=\"Orkney Islands Local Authority\"),$F182=1),0,IF(AND(OR(Calculations!$E$2=\"Shetland Health Board\",Calculations!$E$2=\"Western Isles Health Board\",Calculations!$E$2=\"Shetland Islands Local Authority\",Calculations!$E$2=\"Eilean Siar Local Authority\"),OR($F182=1,$F182=5)),0,prem_mort(VALUE(LEFT(Options!$B$24,2)),$C182,$E182,$F182,2016,$I182,1,$H182,$G182*$H182,Options!$B$8)))","v":41.084087481399997},{"$f":"IF(AND(OR(Calculations!$E$2=\"Orkney Health Board\",Calculations!$E$2=\"Orkney Islands Local Authority\"),$F182=1),0,IF(AND(OR(Calculations!$E$2=\"Shetland Health Board\",Calculations!$E$2=\"Western Isles Health Board\",Calculations!$E$2=\"Shetland Islands Local Authority\",Calculations!$E$2=\"Eilean Siar Local Authority\"),OR($F182=1,$F182=5)),0,prem_mort(VALUE(LEFT(Options!$B$24,2)),$C182,$E182,$F182,2016,$I182+$J182,1,$H182,$G182*$H182,Options!$B$8)))","v":40.743003186800003},114.74399520011171,113.79137882083509,4501.407161188381,4464.0360187242004,{"$error":"#NAME?"},{"$error":"#NAME?"},114.74399520011171,113.79137882083509,803207.966400782,796539.65174584568,31509850.128318667,31248252.131069403,{"$error":"#NAME?"},{"$error":"#NAME?"},803207.966400782,796539.65174584568,7000]
[null,"Female 45-49",47.025772000000003,82.585769999999997,"female",4,{"$f":"HLOOKUP(Calculations!$E$2,'Prevalence Rates'!$C$3:$BC$249,'Prevalence Rates'!$BD183,FALSE)","v":0.23099999999999996},{"$f":"HLOOKUP(Calculations!$E$2,'Population 2016'!$C$3:$BC$249,'Population 2016'!BD183,FALSE)","v":42189},0,{"$f":"HLOOKUP(Results!E$4,Targeting!$C$3:$F$249,Targeting!$G183,FALSE)","v":6927},{"$f":"IF(AND(OR(Calculations!$E$2=\"Orkney Health Board\",Calculations!$E$2=\"Orkney Islands Local Authority\"),$F183=1),0,IF(AND(OR(Calculations!$E$2=\"Shetland Health Board\",Calculations!$E$2=\"Western Isles Health Board\",Calculations!$E$2=\"Shetland Islands Local Authority\",Calculations!$E$2=\"Eilean Siar Local Authority\"),OR($F183=1,$F183=5)),0,new_ci(VALUE(LEFT(Options!$B$24,2)),$C183,$E183,$F183,2016,$I183,1,$H183,$G183*$H183,Options!$B$8)))","v":73.719050606099998},{"$f":"IF(AND(OR(Calculations!$E$2=\"Orkney Health Board\",Calculations!$E$2=\"Orkney Islands Local Authority\"),$F183=1),0,IF(AND(OR(Calculations!$E$2=\"Shetland Health Board\",Calculations!$E$2=\"Western Isles Health Board\",Calculations!$E$2=\"Shetland Islands Local Authority\",Calculations!$E$2=\"Eilean Siar Local Authority\"),OR($F183=1,$F183=5)),0,new_ci(VALUE(LEFT(Options!$B$24,2)),$C183,$E183,$F183,2016,$I183+$J183,1,$H183,$G183*$H183,Options!$B$8)))","v":73.109949105599995},{"$f":"IF(AND(OR(Calculations!$E$2=\"Orkney Health Board\",Calculations!$E$2=\"Orkney Islands Local Authority\"),$F183=1),0,IF(AND(OR(Calculations!$E$2=\"Shetland Health Board\",Calculations!$E$2=\"Western Isles Health Board\",Calculations!$E$2=\"Shetland Islands Local Authority\",Calculations!$E$2=\"Eilean Siar Local Authority\"),OR($F183=1,$F183=5)),0,new_yllv2(VALUE(LEFT(Options!$B$24,2)),$C183,$D183,$E183,$F183,2016,$I183,1,$H183,$G183*$H183,Options!$B$8)))","v":2547.7302415087001},{"$f":"IF(AND(OR(Calculations!$E$2=\"Orkney Health Board\",Calculations!$E$2=\"Orkney Islands Local Authority\"),$F183=1),0,IF(AND(OR(Calculations!$E$2=\"Shetland Health Board\",Calculations!$E$2=\"Western Isles Health Board\",Calculations!$E$2=\"Shetland Islands Local Authority\",Calculations!$E$2=\"Eilean Siar Local Authority\"),OR($F183=1,$F183=5)),0,new_yllv2(VALUE(LEFT(Options!$B$24,2)),$C183,$D183,$E183,$F183,2016,$I183+$J183,1,$H183,$G183*$H183,Options!$B$8)))","v":2526.6796948696001},{"$f":"IF(AND(OR(Calculations!$E$2=\"Orkney Health Board\",Calculations!$E$2=\"Orkney Islands Local Authority\"),$F183=1),0,IF(AND(OR(Calculations!$E$2=\"Shetland Health Board\",Calculations!$E$2=\"Western Isles Health Board\",Calculations!$E$2=\"Shetland Islands Local Authority\",Calculations!$E$2=\"Eilean Siar Local Authority\"),OR($F183=1,$F183=5)),0,hosp_count(VALUE(LEFT(Options!$B$24,2)),$C183,$E183,$F183,2016,$I183,1,$H183,$G183*$H183, Options!$B$8)))","v":{"$error":"#NAME?"}},{"$f":"IF(AND(OR(Calculations!$E$2=\"Orkney Health Board\",Calculations!$E$2=\"Orkney Islands Local Authority\"),$F183=1),0,IF(AND(OR(Calculations!$E$2=\"Shetland Health Board\",Calculations!$E$2=\"Western Isles Health Board\",Calculations!$E$2=\"Shetland Islands Local Authority\",Calculations!$E$2=\"Eilean Siar Local Authority\"),OR($F183=1,$F183=5)),0,hosp_count(VALUE(LEFT(Options!$B$24,2)),$C183,$E183,$F183,2016,$I183+$J183,1,$H183,$G183*$H183, Options!$B$8)))","v":{"$error":"#NAME?"}},{"$f":"IF(AND(OR(Calculations!$E$2=\"Orkney Health Board\",Calculations!$E$2=\"Orkney Islands Local Authority\"),$F183=1),0,IF(AND(OR(Calculations!$E$2=\"Shetland Health Board\",Calculations!$E$2=\"Western Isles Health Board\",Calculations!$E$2=\"Shetland Islands Local Authority\",Calculations!$E$2=\"Eilean Siar Local Authority\"),OR($F183=1,$F183=5)),0,prem_mort(VALUE(LEFT(Options!$B$24,2)),$C183,$E183,$F183,2016,$I183,1,$H183,$G183*$H183,Options!$B$8)))","v":73.719050606099998},{"$f":"IF(AND(OR(Calculations!$E$2=\"Orkney Health Board\",Calculations!$E$2=\"Orkney Islands Local Authority\"),$F183=1),0,IF(AND(OR(Calculations!$E$2=\"Shetland Health Board\",Calculations!$E$2=\"Western Isles Health Board\",Calculations!$E$2=\"Shetland Islands Local Authority\",Calculations!$E$2=\"Eilean Siar Local Authority\"),OR($F183=1,$F183=5)),0,prem_mort(VALUE(LEFT(Options!$B$24,2)),$C183,$E183,$F183,2016,$I183+$J183,1,$H183,$G183*$H183,Options!$B$8)))","v":73.109949105599995},174.73524047998293,173.29149566379863,6038.8495615176944,5988.9537435578004,{"$error":"#NAME?"},{"$error":"#NAME?"},174.73524047998293,173.29149566379863,1223146.6833598805,1213040.4696465903,42271946.930623859,41922676.204904601,{"$error":"#NAME?"},{"$error":"#NAME?"},1223146.6833598805,1213040.4696465903,7000]
[null,"Female 50-54",51.990825999999998,82.980829999999997,"female",4,{"$f":"HLOOKUP(Calculations!$E$2,'Prevalence Rates'!$C$3:$BC$249,'Prevalence Rates'!$BD184,FALSE)","v":0.23099999999999996},{"$f":"HLOOKUP(Calculations!$E$2,'Population 2016'!$C$3:$BC$249,'Population 2016'!BD184,FALSE)","v":44075},0,{"$f":"HLOOKUP(Results!E$4,Targeting!$C$3:$F$249,Targeting!$G184,FALSE)","v":7237},{"$f":"IF(AND(OR(Calculations!$E$2=\"Orkney Health Board\",Calculations!$E$2=\"Orkney Islands Local Authority\"),$F184=1),0,IF(AND(OR(Calculations!$E$2=\"Shetland Health Board\",Calculations!$E$2=\"Western Isles Health Board\",Calculations!$E$2=\"Shetland Islands Local Authority\",Calculations!$E$2=\"Eilean Siar Local Authority\"),OR($F184=1,$F184=5)),0,new_ci(VALUE(LEFT(Options!$B$24,2)),$C184,$E184,$F184,2016,$I184,1,$H184,$G184*$H184,Options!$B$8)))","v":117.4276098257},{"$f":"IF(AND(OR(Calculations!$E$2=\"Orkney Health Board\",Calculations!$E$2=\"Orkney Islands Local Authority\"),$F184=1),0,IF(AND(OR(Calculations!$E$2=\"Shetland Health Board\",Calculations!$E$2=\"Western Isles Health Board\",Calculations!$E$2=\"Shetland Islands Local Authority\",Calculations!$E$2=\"Eilean Siar Local Authority\"),OR($F184=1,$F184=5)),0,new_ci(VALUE(LEFT(Options!$B$24,2)),$C184,$E184,$F184,2016,$I184+$J184,1,$H184,$G184*$H184,Options!$B$8)))","v":116.4580009079},{"$f":"IF(AND(OR(Calculations!$E$2=\"Orkney Health Board\",Calculations!$E$2=\"Orkney Islands Local Authority\"),$F184=1),0,IF(AND(OR(Calculations!$E$2=\"Shetland Health Board\",Calculations!$E$2=\"Western Isles Health Board\",Calculations!$E$2=\"Shetland Islands Local Authority\",Calculations!$E$2=\"Eilean Siar Local Authority\"),OR($F184=1,$F184=5)),0,new_yllv2(VALUE(LEFT(Options!$B$24,2)),$C184,$D184,$E184,$F184,2016,$I184,1,$H184,$G184*$H184,Options!$B$8)))","v":3521.6544883831998},{"$f":"IF(AND(OR(Calculations!$E$2=\"Orkney Health Board\",Calculations!$E$2=\"Orkney Islands Local Authority\"),$F184=1),0,IF(AND(OR(Calculations!$E$2=\"Shetland Health Board\",Calculations!$E$2=\"Western Isles Health Board\",Calculations!$E$2=\"Shetland Islands Local Authority\",Calculations!$E$2=\"Eilean Siar Local Authority\"),OR($F184=1,$F184=5)),0,new_yllv2(VALUE(LEFT(Options!$B$24,2)),$C184,$D184,$E184,$F184,2016,$I184+$J184,1,$H184,$G184*$H184,Options!$B$8)))","v":3492.5759130598999},{"$f":"IF(AND(OR(Calculations!$E$2=\"Orkney Health Board\",Calculations!$E$2=\"Orkney Islands Local Authority\"),$F184=1),0,IF(AND(OR(Calculations!$E$2=\"Shetland Health Board\",Calculations!$E$2=\"Western Isles Health Board\",Calculations!$E$2=\"Shetland Islands Local Authority\",Calculations!$E$2=\"Eilean Siar Local Authority\"),OR($F184=1,$F184=5)),0,hosp_count(VALUE(LEFT(Options!$B$24,2)),$C184,$E184,$F184,2016,$I184,1,$H184,$G184*$H184, Options!$B$8)))","v":{"$error":"#NAME?"}},{"$f":"IF(AND(OR(Calculations!$E$2=\"Orkney Health Board\",Calculations!$E$2=\"Orkney Islands Local Authority\"),$F184=1),0,IF(AND(OR(Calculations!$E$2=\"Shetland Health Board\",Calculations!$E$2=\"Western Isles Health Board\",Calculations!$E$2=\"Shetland Islands Local Authority\",Calculations!$E$2=\"Eilean Siar Local Authority\"),OR($F184=1,$F184=5)),0,hosp_count(VALUE(LEFT(Options!$B$24,2)),$C184,$E184,$F184,2016,$I184+$J184,1,$H184,$G184*$H184, Options!$B$8)))","v":{"$error":"#NAME?"}},{"$f":"IF(AND(OR(Calculations!$E$2=\"Orkney Health Board\",Calculations!$E$2=\"Orkney Islands Local Authority\"),$F184=1),0,IF(AND(OR(Calculations!$E$2=\"Shetland Health Board\",Calculations!$E$2=\"Western Isles Health Board\",Calculations!$E$2=\"Shetland Islands Local Authority\",Calculations!$E$2=\"Eilean Siar Local Authority\"),OR($F184=1,$F184=5)),0,prem_mort(VALUE(LEFT(Options!$B$24,2)),$C184,$E184,$F184,2016,$I184,1,$H184,$G184*$H184,Options!$B$8)))","v":117.4276098257},{"$f":"IF(AND(OR(Calculations!$E$2=\"Orkney Health Board\",Calculations!$E$2=\"Orkney Islands Local Authority\"),$F184=1),0,IF(AND(OR(Calculations!$E$2=\"Shetland Health Board\",Calculations!$E$2=\"Western Isles Health Board\",Calculations!$E$2=\"Shetland Islands Local Authority\",Calculations!$E$2=\"Eilean Siar Local Authority\"),OR($F184=1,$F184=5)),0,prem_mort(VALUE(LEFT(Options!$B$24,2)),$C184,$E184,$F184,2016,$I184+$J184,1,$H184,$G184*$H184,Options!$B$8)))","v":116.4580009079},266.42679483993192,264.226888049688,7990.1406429567769,7924.1654295176395,{"$error":"#NAME?"},{"$error":"#NAME?"},266.42679483993192,264.226888049688,1864987.5638795234,1849588.2163478159,55930984.500697441,55469158.006623477,{"$error":"#NAME?"},{"$error":"#NAME?"},1864987.5638795234,1849588.2163478159,7000]
[null,"Female 55-59",56.953040999999999,83.473039999999997,"female",4,{"$f":"HLOOKUP(Calculations!$E$2,'Prevalence Rates'!$C$3:$BC$249,'Prevalence Rates'!$BD185,FALSE)","v":0.35200000000000004},{"$f":"HLOOKUP(Calculations!$E$2,'Population 2016'!$C$3:$BC$249,'Population 2016'!BD185,FALSE)","v":39814},0,{"$f":"HLOOKUP(Results!E$4,Targeting!$C$3:$F$249,Targeting!$G185,FALSE)","v":6537},{"$f":"IF(AND(OR(Calculations!$E$2=\"Orkney Health Board\",Calculations!$E$2=\"Orkney Islands Local Authority\"),$F185=1),0,IF(AND(OR(Calculations!$E$2=\"Shetland Health Board\",Calculations!$E$2=\"Western Isles Health Board\",Calculations!$E$2=\"Shetland Islands Local Authority\",Calculations!$E$2=\"Eilean Siar Local Authority\"),OR($F185=1,$F185=5)),0,new_ci(VALUE(LEFT(Options!$B$24,2)),$C185,$E185,$F185,2016,$I185,1,$H185,$G185*$H185,Options!$B$8)))","v":161.65711061109999},{"$f":"IF(AND(OR(Calculations!$E$2=\"Orkney Health Board\",Calculations!$E$2=\"Orkney Islands Local Authority\"),$F185=1),0,IF(AND(OR(Calculations!$E$2=\"Shetland Health Board\",Calculations!$E$2=\"Western Isles Health Board\",Calculations!$E$2=\"Shetland Islands Local Authority\",Calculations!$E$2=\"Eilean Siar Local Authority\"),OR($F185=1,$F185=5)),0,new_ci(VALUE(LEFT(Options!$B$24,2)),$C185,$E185,$F185,2016,$I185+$J185,1,$H185,$G185*$H185,Options!$B$8)))","v":160.3836121468},{"$f":"IF(AND(OR(Calculations!$E$2=\"Orkney Health Board\",Calculations!$E$2=\"Orkney Islands Local Authority\"),$F185=1),0,IF(AND(OR(Calculations!$E$2=\"Shetland Health Board\",Calculations!$E$2=\"Western Isles Health Board\",Calculations!$E$2=\"Shetland Islands Local Authority\",Calculations!$E$2=\"Eilean Siar Local Authority\"),OR($F185=1,$F185=5)),0,new_yllv2(VALUE(LEFT(Options!$B$24,2)),$C185,$D185,$E185,$F185,2016,$I185,1,$H185,$G185*$H185,Options!$B$8)))","v":4125.4893011382001},{"$f":"IF(AND(OR(Calculations!$E$2=\"Orkney Health Board\",Calculations!$E$2=\"Orkney Islands Local Authority\"),$F185=1),0,IF(AND(OR(Calculations!$E$2=\"Shetland Health Board\",Calculations!$E$2=\"Western Isles Health Board\",Calculations!$E$2=\"Shetland Islands Local Authority\",Calculations!$E$2=\"Eilean Siar Local Authority\"),OR($F185=1,$F185=5)),0,new_yllv2(VALUE(LEFT(Options!$B$24,2)),$C185,$D185,$E185,$F185,2016,$I185+$J185,1,$H185,$G185*$H185,Options!$B$8)))","v":4092.9896216027},{"$f":"IF(AND(OR(Calculations!$E$2=\"Orkney Health Board\",Calculations!$E$2=\"Orkney Islands Local Authority\"),$F185=1),0,IF(AND(OR(Calculations!$E$2=\"Shetland Health Board\",Calculations!$E$2=\"Western Isles Health Board\",Calculations!$E$2=\"Shetland Islands Local Authority\",Calculations!$E$2=\"Eilean Siar Local Authority\"),OR($F185=1,$F185=5)),0,hosp_count(VALUE(LEFT(Options!$B$24,2)),$C185,$E185,$F185,2016,$I185,1,$H185,$G185*$H185, Options!$B$8)))","v":{"$error":"#NAME?"}},{"$f":"IF(AND(OR(Calculations!$E$2=\"Orkney Health Board\",Calculations!$E$2=\"Orkney Islands Local Authority\"),$F185=1),0,IF(AND(OR(Calculations!$E$2=\"Shetland Health Board\",Calculations!$E$2=\"Western Isles Health Board\",Calculations!$E$2=\"Shetland Islands Local Authority\",Calculations!$E$2=\"Eilean Siar Local Authority\"),OR($F185=1,$F185=5)),0,hosp_count(VALUE(LEFT(Options!$B$24,2)),$C185,$E185,$F185,2016,$I185+$J185,1,$H185,$G185*$H185, Options!$B$8)))","v":{"$error":"#NAME?"}},{"$f":"IF(AND(OR(Calculations!$E$2=\"Orkney Health Board\",Calculations!$E$2=\"Orkney Islands Local Authority\"),$F185=1),0,IF(AND(OR(Calculations!$E$2=\"Shetland Health Board\",Calculations!$E$2=\"Western Isles Health Board\",Calculations!$E$2=\"Shetland Islands Local Authority\",Calculations!$E$2=\"Eilean Siar Local Authority\"),OR($F185=1,$F185=5)),0,prem_mort(VALUE(LEFT(Options!$B$24,2)),$C185,$E185,$F185,2016,$I185,1,$H185,$G185*$H185,Options!$B$8)))","v":161.65711061109999},{"$f":"IF(AND(OR(Calculations!$E$2=\"Orkney Health Board\",Calculations!$E$2=\"Orkney Islands Local Authority\"),$F185=1),0,IF(AND(OR(Calculations!$E$2=\"Shetland Health Board\",Calculations!$E$2=\"Western Isles Health Board\",Calculations!$E$2=\"Shetland Islands Local Authority\",Calculations!$E$2=\"Eilean Siar Local Authority\"),OR($F185=1,$F185=5)),0,prem_mort(VALUE(LEFT(Options!$B$24,2)),$C185,$E185,$F185,2016,$I185+$J185,1,$H185,$G185*$H185,Options!$B$8)))","v":160.3836121468},406.03081984000602,402.83220009745321,10361.906116286231,10280.277343654743,{"$error":"#NAME?"},{"$error":"#NAME?"},406.03081984000602,402.83220009745321,2639200.3289600392,2618409.3006334458,67352389.755860507,66821802.733755827,{"$error":"#NAME?"},{"$error":"#NAME?"},2639200.3289600392,2618409.3006334458,6500]
[null,"Female 60-64",61.947387999999997,84.167389999999997,"female",4,{"$f":"HLOOKUP(Calculations!$E$2,'Prevalence Rates'!$C$3:$BC$249,'Prevalence Rates'!$BD186,FALSE)","v":0.35200000000000004},{"$f":"HLOOKUP(Calculations!$E$2,'Population 2016'!$C$3:$BC$249,'Population 2016'!BD186,FALSE)","v":35061},0,{"$f":"HLOOKUP(Results!E$4,Targeting!$C$3:$F$249,Targeting!$G186,FALSE)","v":5757},{"$f":"IF(AND(OR(Calculations!$E$2=\"Orkney Health Board\",Calculations!$E$2=\"Orkney Islands Local Authority\"),$F186=1),0,IF(AND(OR(Calculations!$E$2=\"Shetland Health Board\",Calculations!$E$2=\"Western Isles Health Board\",Calculations!$E$2=\"Shetland Islands Local Authority\",Calculations!$E$2=\"Eilean Siar Local Authority\"),OR($F186=1,$F186=5)),0,new_ci(VALUE(LEFT(Options!$B$24,2)),$C186,$E186,$F186,2016,$I186,1,$H186,$G186*$H186,Options!$B$8)))","v":217.46314110669999},{"$f":"IF(AND(OR(Calculations!$E$2=\"Orkney Health Board\",Calculations!$E$2=\"Orkney Islands Local Authority\"),$F186=1),0,IF(AND(OR(Calculations!$E$2=\"Shetland Health Board\",Calculations!$E$2=\"Western Isles Health Board\",Calculations!$E$2=\"Shetland Islands Local Authority\",Calculations!$E$2=\"Eilean Siar Local Authority\"),OR($F186=1,$F186=5)),0,new_ci(VALUE(LEFT(Options!$B$24,2)),$C186,$E186,$F186,2016,$I186+$J186,1,$H186,$G186*$H186,Options!$B$8)))","v":215.75248885569999},{"$f":"IF(AND(OR(Calculations!$E$2=\"Orkney Health Board\",Calculations!$E$2=\"Orkney Islands Local Authority\"),$F186=1),0,IF(AND(OR(Calculations!$E$2=\"Shetland Health Board\",Calculations!$E$2=\"Western Isles Health Board\",Calculations!$E$2=\"Shetland Islands Local Authority\",Calculations!$E$2=\"Eilean Siar Local Authority\"),OR($F186=1,$F186=5)),0,new_yllv2(VALUE(LEFT(Options!$B$24,2)),$C186,$D186,$E186,$F186,2016,$I186,1,$H186,$G186*$H186,Options!$B$8)))","v":4614.5682892104996},{"$f":"IF(AND(OR(Calculations!$E$2=\"Orkney Health Board\",Calculations!$E$2=\"Orkney Islands Local Authority\"),$F186=1),0,IF(AND(OR(Calculations!$E$2=\"Shetland Health Board\",Calculations!$E$2=\"Western Isles Health Board\",Calculations!$E$2=\"Shetland Islands Local Authority\",Calculations!$E$2=\"Eilean Siar Local Authority\"),OR($F186=1,$F186=5)),0,new_yllv2(VALUE(LEFT(Options!$B$24,2)),$C186,$D186,$E186,$F186,2016,$I186+$J186,1,$H186,$G186*$H186,Options!$B$8)))","v":4578.2682450229004},{"$f":"IF(AND(OR(Calculations!$E$2=\"Orkney Health Board\",Calculations!$E$2=\"Orkney Islands Local Authority\"),$F186=1),0,IF(AND(OR(Calculations!$E$2=\"Shetland Health Board\",Calculations!$E$2=\"Western Isles Health Board\",Calculations!$E$2=\"Shetland Islands Local Authority\",Calculations!$E$2=\"Eilean Siar Local Authority\"),OR($F186=1,$F186=5)),0,hosp_count(VALUE(LEFT(Options!$B$24,2)),$C186,$E186,$F186,2016,$I186,1,$H186,$G186*$H186, Options!$B$8)))","v":{"$error":"#NAME?"}},{"$f":"IF(AND(OR(Calculations!$E$2=\"Orkney Health Board\",Calculations!$E$2=\"Orkney Islands Local Authority\"),$F186=1),0,IF(AND(OR(Calculations!$E$2=\"Shetland Health Board\",Calculations!$E$2=\"Western Isles Health Board\",Calculations!$E$2=\"Shetland Islands Local Authority\",Calculations!$E$2=\"Eilean Siar Local Authority\"),OR($F186=1,$F186=5)),0,hosp_count(VALUE(LEFT(Options!$B$24,2)),$C186,$E186,$F186,2016,$I186+$J186,1,$H186,$G186*$H186, Options!$B$8)))","v":{"$error":"#NAME?"}},{"$f":"IF(AND(OR(Calculations!$E$2=\"Orkney Health Board\",Calculations!$E$2=\"Orkney Islands Local Authority\"),$F186=1),0,IF(AND(OR(Calculations!$E$2=\"Shetland Health Board\",Calculations!$E$2=\"Western Isles Health Board\",Calculations!$E$2=\"Shetland Islands Local Authority\",Calculations!$E$2=\"Eilean Siar Local Authority\"),OR($F186=1,$F186=5)),0,prem_mort(VALUE(LEFT(Options!$B$24,2)),$C186,$E186,$F186,2016,$I186,1,$H186,$G186*$H186,Options!$B$8)))","v":217.46314110669999},{"$f":"IF(AND(OR(Calculations!$E$2=\"Orkney Health Board\",Calculations!$E$2=\"Orkney Islands Local Authority\"),$F186=1),0,IF(AND(OR(Calculations!$E$2=\"Shetland Health Board\",Calculations!$E$2=\"Western Isles Health Board\",Calculations!$E$2=\"Shetland Islands Local Authority\",Calculations!$E$2=\"Eilean Siar Local Authority\"),OR($F186=1,$F186=5)),0,prem_mort(VALUE(LEFT(Options!$B$24,2)),$C186,$E186,$F186,2016,$I186+$J186,1,$H186,$G186*$H186,Options!$B$8)))","v":215.75248885569999},620.24226664014145,615.36319230968888,13161.542138588458,13058.008171537891,{"$error":"#NAME?"},{"$error":"#NAME?"},620.24226664014145,615.36319230968888,3721453.5998408487,3692179.1538581331,78969252.83153075,78348049.029227346,{"$error":"#NAME?"},{"$error":"#NAME?"},3721453.5998408487,3692179.1538581331,6000]
[null,"Female 65-69",67.063927000000007,85.193929999999995,"female",4,{"$f":"HLOOKUP(Calculations!$E$2,'Prevalence Rates'!$C$3:$BC$249,'Prevalence Rates'!$BD187,FALSE)","v":0.34599999999999992},{"$f":"HLOOKUP(Calculations!$E$2,'Population 2016'!$C$3:$BC$249,'Population 2016'!BD187,FALSE)","v":34888},0,{"$f":"HLOOKUP(Results!E$4,Targeting!$C$3:$F$249,Targeting!$G187,FALSE)","v":5728},{"$f":"IF(AND(OR(Calculations!$E$2=\"Orkney Health Board\",Calculations!$E$2=\"Orkney Islands Local Authority\"),$F187=1),0,IF(AND(OR(Calculations!$E$2=\"Shetland Health Board\",Calculations!$E$2=\"Western Isles Health Board\",Calculations!$E$2=\"Shetland Islands Local Authority\",Calculations!$E$2=\"Eilean Siar Local Authority\"),OR($F187=1,$F187=5)),0,new_ci(VALUE(LEFT(Options!$B$24,2)),$C187,$E187,$F187,2016,$I187,1,$H187,$G187*$H187,Options!$B$8)))","v":333.7925882138},{"$f":"IF(AND(OR(Calculations!$E$2=\"Orkney Health Board\",Calculations!$E$2=\"Orkney Islands Local Authority\"),$F187=1),0,IF(AND(OR(Calculations!$E$2=\"Shetland Health Board\",Calculations!$E$2=\"Western Isles Health Board\",Calculations!$E$2=\"Shetland Islands Local Authority\",Calculations!$E$2=\"Eilean Siar Local Authority\"),OR($F187=1,$F187=5)),0,new_ci(VALUE(LEFT(Options!$B$24,2)),$C187,$E187,$F187,2016,$I187+$J187,1,$H187,$G187*$H187,Options!$B$8)))","v":331.16756266499999},{"$f":"IF(AND(OR(Calculations!$E$2=\"Orkney Health Board\",Calculations!$E$2=\"Orkney Islands Local Authority\"),$F187=1),0,IF(AND(OR(Calculations!$E$2=\"Shetland Health Board\",Calculations!$E$2=\"Western Isles Health Board\",Calculations!$E$2=\"Shetland Islands Local Authority\",Calculations!$E$2=\"Eilean Siar Local Authority\"),OR($F187=1,$F187=5)),0,new_yllv2(VALUE(LEFT(Options!$B$24,2)),$C187,$D187,$E187,$F187,2016,$I187,1,$H187,$G187*$H187,Options!$B$8)))","v":5717.8680374801997},{"$f":"IF(AND(OR(Calculations!$E$2=\"Orkney Health Board\",Calculations!$E$2=\"Orkney Islands Local Authority\"),$F187=1),0,IF(AND(OR(Calculations!$E$2=\"Shetland Health Board\",Calculations!$E$2=\"Western Isles Health Board\",Calculations!$E$2=\"Shetland Islands Local Authority\",Calculations!$E$2=\"Eilean Siar Local Authority\"),OR($F187=1,$F187=5)),0,new_yllv2(VALUE(LEFT(Options!$B$24,2)),$C187,$D187,$E187,$F187,2016,$I187+$J187,1,$H187,$G187*$H187,Options!$B$8)))","v":5672.9013419540997},{"$f":"IF(AND(OR(Calculations!$E$2=\"Orkney Health Board\",Calculations!$E$2=\"Orkney Islands Local Authority\"),$F187=1),0,IF(AND(OR(Calculations!$E$2=\"Shetland Health Board\",Calculations!$E$2=\"Western Isles Health Board\",Calculations!$E$2=\"Shetland Islands Local Authority\",Calculations!$E$2=\"Eilean Siar Local Authority\"),OR($F187=1,$F187=5)),0,hosp_count(VALUE(LEFT(Options!$B$24,2)),$C187,$E187,$F187,2016,$I187,1,$H187,$G187*$H187, Options!$B$8)))","v":{"$error":"#NAME?"}},{"$f":"IF(AND(OR(Calculations!$E$2=\"Orkney Health Board\",Calculations!$E$2=\"Orkney Islands Local Authority\"),$F187=1),0,IF(AND(OR(Calculations!$E$2=\"Shetland Health Board\",Calculations!$E$2=\"Western Isles Health Board\",Calculations!$E$2=\"Shetland Islands Local Authority\",Calculations!$E$2=\"Eilean Siar Local Authority\"),OR($F187=1,$F187=5)),0,hosp_count(VALUE(LEFT(Options!$B$24,2)),$C187,$E187,$F187,2016,$I187+$J187,1,$H187,$G187*$H187, Options!$B$8)))","v":{"$error":"#NAME?"}},{"$f":"IF(AND(OR(Calculations!$E$2=\"Orkney Health Board\",Calculations!$E$2=\"Orkney Islands Local Authority\"),$F187=1),0,IF(AND(OR(Calculations!$E$2=\"Shetland Health Board\",Calculations!$E$2=\"Western Isles Health Board\",Calculations!$E$2=\"Shetland Islands Local Authority\",Calculations!$E$2=\"Eilean Siar Local Authority\"),OR($F187=1,$F187=5)),0,prem_mort(VALUE(LEFT(Options!$B$24,2)),$C187,$E187,$F187,2016,$I187,1,$H187,$G187*$H187,Options!$B$8)))","v":333.7925882138},{"$f":"IF(AND(OR(Calculations!$E$2=\"Orkney Health Board\",Calculations!$E$2=\"Orkney Islands Local Authority\"),$F187=1),0,IF(AND(OR(Calculations!$E$2=\"Shetland Health Board\",Calculations!$E$2=\"Western Isles Health Board\",Calculations!$E$2=\"Shetland Islands Local Authority\",Calculations!$E$2=\"Eilean Siar Local Authority\"),OR($F187=1,$F187=5)),0,prem_mort(VALUE(LEFT(Options!$B$24,2)),$C187,$E187,$F187,2016,$I187+$J187,1,$H187,$G187*$H187,Options!$B$8)))","v":331.16756266499999},956.75472430004584,949.23057402258655,16389.211297524074,16260.322580698521,{"$error":"#NAME?"},{"$error":"#NAME?"},956.75472430004584,949.23057402258655,5262150.9836502522,5220768.157124226,90140662.136382416,89431774.19384186,{"$error":"#NAME?"},{"$error":"#NAME?"},5262150.9836502522,5220768.157124226,5500]
[null,"Female 70-74",71.938164,86.248159999999999,"female",4,{"$f":"HLOOKUP(Calculations!$E$2,'Prevalence Rates'!$C$3:$BC$249,'Prevalence Rates'!$BD188,FALSE)","v":0.34599999999999992},{"$f":"HLOOKUP(Calculations!$E$2,'Population 2016'!$C$3:$BC$249,'Population 2016'!BD188,FALSE)","v":26320},0,{"$f":"HLOOKUP(Results!E$4,Targeting!$C$3:$F$249,Targeting!$G188,FALSE)","v":4321},{"$f":"IF(AND(OR(Calculations!$E$2=\"Orkney Health Board\",Calculations!$E$2=\"Orkney Islands Local Authority\"),$F188=1),0,IF(AND(OR(Calculations!$E$2=\"Shetland Health Board\",Calculations!$E$2=\"Western Isles Health Board\",Calculations!$E$2=\"Shetland Islands Local Authority\",Calculations!$E$2=\"Eilean Siar Local Authority\"),OR($F188=1,$F188=5)),0,new_ci(VALUE(LEFT(Options!$B$24,2)),$C188,$E188,$F188,2016,$I188,1,$H188,$G188*$H188,Options!$B$8)))","v":380.21587374469999},{"$f":"IF(AND(OR(Calculations!$E$2=\"Orkney Health Board\",Calculations!$E$2=\"Orkney Islands Local Authority\"),$F188=1),0,IF(AND(OR(Calculations!$E$2=\"Shetland Health Board\",Calculations!$E$2=\"Western Isles Health Board\",Calculations!$E$2=\"Shetland Islands Local Authority\",Calculations!$E$2=\"Eilean Siar Local Authority\"),OR($F188=1,$F188=5)),0,new_ci(VALUE(LEFT(Options!$B$24,2)),$C188,$E188,$F188,2016,$I188+$J188,1,$H188,$G188*$H188,Options!$B$8)))","v":377.23636405899998},{"$f":"IF(AND(OR(Calculations!$E$2=\"Orkney Health Board\",Calculations!$E$2=\"Orkney Islands Local Authority\"),$F188=1),0,IF(AND(OR(Calculations!$E$2=\"Shetland Health Board\",Calculations!$E$2=\"Western Isles Health Board\",Calculations!$E$2=\"Shetland Islands Local Authority\",Calculations!$E$2=\"Eilean Siar Local Authority\"),OR($F188=1,$F188=5)),0,new_yllv2(VALUE(LEFT(Options!$B$24,2)),$C188,$D188,$E188,$F188,2016,$I188,1,$H188,$G188*$H188,Options!$B$8)))","v":5060.6717586784998},{"$f":"IF(AND(OR(Calculations!$E$2=\"Orkney Health Board\",Calculations!$E$2=\"Orkney Islands Local Authority\"),$F188=1),0,IF(AND(OR(Calculations!$E$2=\"Shetland Health Board\",Calculations!$E$2=\"Western Isles Health Board\",Calculations!$E$2=\"Shetland Islands Local Authority\",Calculations!$E$2=\"Eilean Siar Local Authority\"),OR($F188=1,$F188=5)),0,new_yllv2(VALUE(LEFT(Options!$B$24,2)),$C188,$D188,$E188,$F188,2016,$I188+$J188,1,$H188,$G188*$H188,Options!$B$8)))","v":5021.0144966797998},{"$f":"IF(AND(OR(Calculations!$E$2=\"Orkney Health Board\",Calculations!$E$2=\"Orkney Islands Local Authority\"),$F188=1),0,IF(AND(OR(Calculations!$E$2=\"Shetland Health Board\",Calculations!$E$2=\"Western Isles Health Board\",Calculations!$E$2=\"Shetland Islands Local Authority\",Calculations!$E$2=\"Eilean Siar Local Authority\"),OR($F188=1,$F188=5)),0,hosp_count(VALUE(LEFT(Options!$B$24,2)),$C188,$E188,$F188,2016,$I188,1,$H188,$G188*$H188, Options!$B$8)))","v":{"$error":"#NAME?"}},{"$f":"IF(AND(OR(Calculations!$E$2=\"Orkney Health Board\",Calculations!$E$2=\"Orkney Islands Local Authority\"),$F188=1),0,IF(AND(OR(Calculations!$E$2=\"Shetland Health Board\",Calculations!$E$2=\"Western Isles Health Board\",Calculations!$E$2=\"Shetland Islands Local Authority\",Calculations!$E$2=\"Eilean Siar Local Authority\"),OR($F188=1,$F188=5)),0,hosp_count(VALUE(LEFT(Options!$B$24,2)),$C188,$E188,$F188,2016,$I188+$J188,1,$H188,$G188*$H188, Options!$B$8)))","v":{"$error":"#NAME?"}},{"$f":"IF(AND(OR(Calculations!$E$2=\"Orkney Health Board\",Calculations!$E$2=\"Orkney Islands Local Authority\"),$F188=1),0,IF(AND(OR(Calculations!$E$2=\"Shetland Health Board\",Calculations!$E$2=\"Western Isles Health Board\",Calculations!$E$2=\"Shetland Islands Local Authority\",Calculations!$E$2=\"Eilean Siar Local Authority\"),OR($F188=1,$F188=5)),0,prem_mort(VALUE(LEFT(Options!$B$24,2)),$C188,$E188,$F188,2016,$I188,1,$H188,$G188*$H188,Options!$B$8)))","v":380.21587374469999},{"$f":"IF(AND(OR(Calculations!$E$2=\"Orkney Health Board\",Calculations!$E$2=\"Orkney Islands Local Authority\"),$F188=1),0,IF(AND(OR(Calculations!$E$2=\"Shetland Health Board\",Calculations!$E$2=\"Western Isles Health Board\",Calculations!$E$2=\"Shetland Islands Local Authority\",Calculations!$E$2=\"Eilean Siar Local Authority\"),OR($F188=1,$F188=5)),0,prem_mort(VALUE(LEFT(Options!$B$24,2)),$C188,$E188,$F188,2016,$I188+$J188,1,$H188,$G188*$H188,Options!$B$8)))","v":377.23636405899998},1444.5891859601063,1433.2688604065349,19227.476286772417,19076.802798935409,{"$error":"#NAME?"},{"$error":"#NAME?"},1444.5891859601063,1433.2688604065349,7222945.9298005318,7166344.3020326747,{"$f":"U188*$AI188","v":96137381.43386209},{"$f":"V188*$AI188","v":95384013.994677037},{"$f":"W188*$AI188","v":{"$error":"#NAME?"}},{"$f":"X188*$AI188","v":{"$error":"#NAME?"}},{"$f":"Y188*$AI188","v":7222945.9298005318},{"$f":"Z188*$AI188","v":7166344.3020326747},5000]
[null,"Female 75-79",76.942824999999999,87.812830000000005,"female",4,{"$f":"HLOOKUP(Calculations!$E$2,'Prevalence Rates'!$C$3:$BC$249,'Prevalence Rates'!$BD189,FALSE)","v":0.56000000000000005},{"$f":"HLOOKUP(Calculations!$E$2,'Population 2016'!$C$3:$BC$249,'Population 2016'!BD189,FALSE)","v":20708},0,{"$f":"HLOOKUP(Results!E$4,Targeting!$C$3:$F$249,Targeting!$G189,FALSE)","v":3400},{"$f":"IF(AND(OR(Calculations!$E$2=\"Orkney Health Board\",Calculations!$E$2=\"Orkney Islands Local Authority\"),$F189=1),0,IF(AND(OR(Calculations!$E$2=\"Shetland Health Board\",Calculations!$E$2=\"Western Isles Health Board\",Calculations!$E$2=\"Shetland Islands Local Authority\",Calculations!$E$2=\"Eilean Siar Local Authority\"),OR($F189=1,$F189=5)),0,new_ci(VALUE(LEFT(Options!$B$24,2)),$C189,$E189,$F189,2016,$I189,1,$H189,$G189*$H189,Options!$B$8)))","v":456.07251704129999},{"$f":"IF(AND(OR(Calculations!$E$2=\"Orkney Health Board\",Calculations!$E$2=\"Orkney Islands Local Authority\"),$F189=1),0,IF(AND(OR(Calculations!$E$2=\"Shetland Health Board\",Calculations!$E$2=\"Western Isles Health Board\",Calculations!$E$2=\"Shetland Islands Local Authority\",Calculations!$E$2=\"Eilean Siar Local Authority\"),OR($F189=1,$F189=5)),0,new_ci(VALUE(LEFT(Options!$B$24,2)),$C189,$E189,$F189,2016,$I189+$J189,1,$H189,$G189*$H189,Options!$B$8)))","v":452.77424538129998},{"$f":"IF(AND(OR(Calculations!$E$2=\"Orkney Health Board\",Calculations!$E$2=\"Orkney Islands Local Authority\"),$F189=1),0,IF(AND(OR(Calculations!$E$2=\"Shetland Health Board\",Calculations!$E$2=\"Western Isles Health Board\",Calculations!$E$2=\"Shetland Islands Local Authority\",Calculations!$E$2=\"Eilean Siar Local Authority\"),OR($F189=1,$F189=5)),0,new_yllv2(VALUE(LEFT(Options!$B$24,2)),$C189,$D189,$E189,$F189,2016,$I189,1,$H189,$G189*$H189,Options!$B$8)))","v":4501.4380235602002},{"$f":"IF(AND(OR(Calculations!$E$2=\"Orkney Health Board\",Calculations!$E$2=\"Orkney Islands Local Authority\"),$F189=1),0,IF(AND(OR(Calculations!$E$2=\"Shetland Health Board\",Calculations!$E$2=\"Western Isles Health Board\",Calculations!$E$2=\"Shetland Islands Local Authority\",Calculations!$E$2=\"Eilean Siar Local Authority\"),OR($F189=1,$F189=5)),0,new_yllv2(VALUE(LEFT(Options!$B$24,2)),$C189,$D189,$E189,$F189,2016,$I189+$J189,1,$H189,$G189*$H189,Options!$B$8)))","v":4468.8840657847004},{"$f":"IF(AND(OR(Calculations!$E$2=\"Orkney Health Board\",Calculations!$E$2=\"Orkney Islands Local Authority\"),$F189=1),0,IF(AND(OR(Calculations!$E$2=\"Shetland Health Board\",Calculations!$E$2=\"Western Isles Health Board\",Calculations!$E$2=\"Shetland Islands Local Authority\",Calculations!$E$2=\"Eilean Siar Local Authority\"),OR($F189=1,$F189=5)),0,hosp_count(VALUE(LEFT(Options!$B$24,2)),$C189,$E189,$F189,2016,$I189,1,$H189,$G189*$H189, Options!$B$8)))","v":{"$error":"#NAME?"}},{"$f":"IF(AND(OR(Calculations!$E$2=\"Orkney Health Board\",Calculations!$E$2=\"Orkney Islands Local Authority\"),$F189=1),0,IF(AND(OR(Calculations!$E$2=\"Shetland Health Board\",Calculations!$E$2=\"Western Isles Health Board\",Calculations!$E$2=\"Shetland Islands Local Authority\",Calculations!$E$2=\"Eilean Siar Local Authority\"),OR($F189=1,$F189=5)),0,hosp_count(VALUE(LEFT(Options!$B$24,2)),$C189,$E189,$F189,2016,$I189+$J189,1,$H189,$G189*$H189, Options!$B$8)))","v":{"$error":"#NAME?"}},{"$f":"IF(AND(OR(Calculations!$E$2=\"Orkney Health Board\",Calculations!$E$2=\"Orkney Islands Local Authority\"),$F189=1),0,IF(AND(OR(Calculations!$E$2=\"Shetland Health Board\",Calculations!$E$2=\"Western Isles Health Board\",Calculations!$E$2=\"Shetland Islands Local Authority\",Calculations!$E$2=\"Eilean Siar Local Authority\"),OR($F189=1,$F189=5)),0,prem_mort(VALUE(LEFT(Options!$B$24,2)),$C189,$E189,$F189,2016,$I189,1,$H189,$G189*$H189,Options!$B$8)))","v":0},{"$f":"IF(AND(OR(Calculations!$E$2=\"Orkney Health Board\",Calculations!$E$2=\"Orkney Islands Local Authority\"),$F189=1),0,IF(AND(OR(Calculations!$E$2=\"Shetland Health Board\",Calculations!$E$2=\"Western Isles Health Board\",Calculations!$E$2=\"Shetland Islands Local Authority\",Calculations!$E$2=\"Eilean Siar Local Authority\"),OR($F189=1,$F189=5)),0,prem_mort(VALUE(LEFT(Options!$B$24,2)),$C189,$E189,$F189,2016,$I189+$J189,1,$H189,$G189*$H189,Options!$B$8)))","v":0},{"$f":"K189*100000/$H189","v":2202.3977063999423},{"$f":"L189*100000/$H189","v":2186.4701824478461},{"$f":"M189*100000/$H189","v":21737.676374155883},{"$f":"N189*100000/$H189","v":21580.47163311136},{"$f":"O189*100000/$H189","v":{"$error":"#NAME?"}},{"$f":"P189*100000/$H189","v":{"$error":"#NAME?"}},{"$f":"Q189*100000/$H189","v":0},{"$f":"R189*100000/$H189","v":0},{"$f":"S189*$AI189","v":8809590.8255997691},{"$f":"T189*$AI189","v":8745880.7297913842},86950705.496623531,86321886.532445431,{"$error":"#NAME?"},{"$error":"#NAME?"},0,0,4000]
[null,"Female 80-84",81.856712000000002,89.736710000000002,"female",4,{"$f":"HLOOKUP(Calculations!$E$2,'Prevalence Rates'!$C$3:$BC$249,'Prevalence Rates'!$BD190,FALSE)","v":0.56000000000000005},{"$f":"HLOOKUP(Calculations!$E$2,'Population 2016'!$C$3:$BC$249,'Population 2016'!BD190,FALSE)","v":15634},0,{"$f":"HLOOKUP(Results!E$4,Targeting!$C$3:$F$249,Targeting!$G190,FALSE)","v":2567},{"$f":"IF(AND(OR(Calculations!$E$2=\"Orkney Health Board\",Calculations!$E$2=\"Orkney Islands Local Authority\"),$F190=1),0,IF(AND(OR(Calculations!$E$2=\"Shetland Health Board\",Calculations!$E$2=\"Western Isles Health Board\",Calculations!$E$2=\"Shetland Islands Local Authority\",Calculations!$E$2=\"Eilean Siar Local Authority\"),OR($F190=1,$F190=5)),0,new_ci(VALUE(LEFT(Options!$B$24,2)),$C190,$E190,$F190,2016,$I190,1,$H190,$G190*$H190,Options!$B$8)))","v":519.88576412630005},{"$f":"IF(AND(OR(Calculations!$E$2=\"Orkney Health Board\",Calculations!$E$2=\"Orkney Islands Local Authority\"),$F190=1),0,IF(AND(OR(Calculations!$E$2=\"Shetland Health Board\",Calculations!$E$2=\"Western Isles Health Board\",Calculations!$E$2=\"Shetland Islands Local Authority\",Calculations!$E$2=\"Eilean Siar Local Authority\"),OR($F190=1,$F190=5)),0,new_ci(VALUE(LEFT(Options!$B$24,2)),$C190,$E190,$F190,2016,$I190+$J190,1,$H190,$G190*$H190,Options!$B$8)))","v":516.15262685289997},{"$f":"IF(AND(OR(Calculations!$E$2=\"Orkney Health Board\",Calculations!$E$2=\"Orkney Islands Local Authority\"),$F190=1),0,IF(AND(OR(Calculations!$E$2=\"Shetland Health Board\",Calculations!$E$2=\"Western Isles Health Board\",Calculations!$E$2=\"Shetland Islands Local Authority\",Calculations!$E$2=\"Eilean Siar Local Authority\"),OR($F190=1,$F190=5)),0,new_yllv2(VALUE(LEFT(Options!$B$24,2)),$C190,$D190,$E190,$F190,2016,$I190,1,$H190,$G190*$H190,Options!$B$8)))","v":3576.8130174173998},{"$f":"IF(AND(OR(Calculations!$E$2=\"Orkney Health Board\",Calculations!$E$2=\"Orkney Islands Local Authority\"),$F190=1),0,IF(AND(OR(Calculations!$E$2=\"Shetland Health Board\",Calculations!$E$2=\"Western Isles Health Board\",Calculations!$E$2=\"Shetland Islands Local Authority\",Calculations!$E$2=\"Eilean Siar Local Authority\"),OR($F190=1,$F190=5)),0,new_yllv2(VALUE(LEFT(Options!$B$24,2)),$C190,$D190,$E190,$F190,2016,$I190+$J190,1,$H190,$G190*$H190,Options!$B$8)))","v":3551.1290404427},{"$f":"IF(AND(OR(Calculations!$E$2=\"Orkney Health Board\",Calculations!$E$2=\"Orkney Islands Local Authority\"),$F190=1),0,IF(AND(OR(Calculations!$E$2=\"Shetland Health Board\",Calculations!$E$2=\"Western Isles Health Board\",Calculations!$E$2=\"Shetland Islands Local Authority\",Calculations!$E$2=\"Eilean Siar Local Authority\"),OR($F190=1,$F190=5)),0,hosp_count(VALUE(LEFT(Options!$B$24,2)),$C190,$E190,$F190,2016,$I190,1,$H190,$G190*$H190, Options!$B$8)))","v":{"$error":"#NAME?"}},{"$f":"IF(AND(OR(Calculations!$E$2=\"Orkney Health Board\",Calculations!$E$2=\"Orkney Islands Local Authority\"),$F190=1),0,IF(AND(OR(Calculations!$E$2=\"Shetland Health Board\",Calculations!$E$2=\"Western Isles Health Board\",Calculations!$E$2=\"Shetland Islands Local Authority\",Calculations!$E$2=\"Eilean Siar Local Authority\"),OR($F190=1,$F190=5)),0,hosp_count(VALUE(LEFT(Options!$B$24,2)),$C190,$E190,$F190,2016,$I190+$J190,1,$H190,$G190*$H190, Options!$B$8)))","v":{"$error":"#NAME?"}},{"$f":"IF(AND(OR(Calculations!$E$2=\"Orkney Health Board\",Calculations!$E$2=\"Orkney Islands Local Authority\"),$F190=1),0,IF(AND(OR(Calculations!$E$2=\"Shetland Health Board\",Calculations!$E$2=\"Western Isles Health Board\",Calculations!$E$2=\"Shetland Islands Local Authority\",Calculations!$E$2=\"Eilean Siar Local Authority\"),OR($F190=1,$F190=5)),0,prem_mort(VALUE(LEFT(Options!$B$24,2)),$C190,$E190,$F190,2016,$I190,1,$H190,$G190*$H190,Options!$B$8)))","v":0},{"$f":"IF(AND(OR(Calculations!$E$2=\"Orkney Health Board\",Calculations!$E$2=\"Orkney Islands Local Authority\"),$F190=1),0,IF(AND(OR(Calculations!$E$2=\"Shetland Health Board\",Calculations!$E$2=\"Western Isles Health Board\",Calculations!$E$2=\"Shetland Islands Local Authority\",Calculations!$E$2=\"Eilean Siar Local Authority\"),OR($F190=1,$F190=5)),0,prem_mort(VALUE(LEFT(Options!$B$24,2)),$C190,$E190,$F190,2016,$I190+$J190,1,$H190,$G190*$H190,Options!$B$8)))","v":0},3325.3534867999238,3301.4751621651526,22878.425338476398,22714.142512745937,{"$error":"#NAME?"},{"$error":"#NAME?"},0,0,8313383.7169998093,8253687.9054128816,57196063.346190996,56785356.281864844,{"$error":"#NAME?"},{"$error":"#NAME?"},0,0,2500]
[null,"Female 85-89",86.730819999999994,92.220819999999989,"female",4,{"$f":"HLOOKUP(Calculations!$E$2,'Prevalence Rates'!$C$3:$BC$249,'Prevalence Rates'!$BD191,FALSE)","v":0.56000000000000005},{"$f":"HLOOKUP(Calculations!$E$2,'Population 2016'!$C$3:$BC$249,'Population 2016'!BD191,FALSE)","v":9988},0,{"$f":"HLOOKUP(Results!E$4,Targeting!$C$3:$F$249,Targeting!$G191,FALSE)","v":1640},{"$f":"IF(AND(OR(Calculations!$E$2=\"Orkney Health Board\",Calculations!$E$2=\"Orkney Islands Local Authority\"),$F191=1),0,IF(AND(OR(Calculations!$E$2=\"Shetland Health Board\",Calculations!$E$2=\"Western Isles Health Board\",Calculations!$E$2=\"Shetland Islands Local Authority\",Calculations!$E$2=\"Eilean Siar Local Authority\"),OR($F191=1,$F191=5)),0,new_ci(VALUE(LEFT(Options!$B$24,2)),$C191,$E191,$F191,2016,$I191,1,$H191,$G191*$H191,Options!$B$8)))","v":498.31590863259999},{"$f":"IF(AND(OR(Calculations!$E$2=\"Orkney Health Board\",Calculations!$E$2=\"Orkney Islands Local Authority\"),$F191=1),0,IF(AND(OR(Calculations!$E$2=\"Shetland Health Board\",Calculations!$E$2=\"Western Isles Health Board\",Calculations!$E$2=\"Shetland Islands Local Authority\",Calculations!$E$2=\"Eilean Siar Local Authority\"),OR($F191=1,$F191=5)),0,new_ci(VALUE(LEFT(Options!$B$24,2)),$C191,$E191,$F191,2016,$I191+$J191,1,$H191,$G191*$H191,Options!$B$8)))","v":494.77588892860001},{"$f":"IF(AND(OR(Calculations!$E$2=\"Orkney Health Board\",Calculations!$E$2=\"Orkney Islands Local Authority\"),$F191=1),0,IF(AND(OR(Calculations!$E$2=\"Shetland Health Board\",Calculations!$E$2=\"Western Isles Health Board\",Calculations!$E$2=\"Shetland Islands Local Authority\",Calculations!$E$2=\"Eilean Siar Local Authority\"),OR($F191=1,$F191=5)),0,new_yllv2(VALUE(LEFT(Options!$B$24,2)),$C191,$D191,$E191,$F191,2016,$I191,1,$H191,$G191*$H191,Options!$B$8)))","v":2237.4384297604001},{"$f":"IF(AND(OR(Calculations!$E$2=\"Orkney Health Board\",Calculations!$E$2=\"Orkney Islands Local Authority\"),$F191=1),0,IF(AND(OR(Calculations!$E$2=\"Shetland Health Board\",Calculations!$E$2=\"Western Isles Health Board\",Calculations!$E$2=\"Shetland Islands Local Authority\",Calculations!$E$2=\"Eilean Siar Local Authority\"),OR($F191=1,$F191=5)),0,new_yllv2(VALUE(LEFT(Options!$B$24,2)),$C191,$D191,$E191,$F191,2016,$I191+$J191,1,$H191,$G191*$H191,Options!$B$8)))","v":2221.5437412893998},{"$f":"IF(AND(OR(Calculations!$E$2=\"Orkney Health Board\",Calculations!$E$2=\"Orkney Islands Local Authority\"),$F191=1),0,IF(AND(OR(Calculations!$E$2=\"Shetland Health Board\",Calculations!$E$2=\"Western Isles Health Board\",Calculations!$E$2=\"Shetland Islands Local Authority\",Calculations!$E$2=\"Eilean Siar Local Authority\"),OR($F191=1,$F191=5)),0,hosp_count(VALUE(LEFT(Options!$B$24,2)),$C191,$E191,$F191,2016,$I191,1,$H191,$G191*$H191, Options!$B$8)))","v":{"$error":"#NAME?"}},{"$f":"IF(AND(OR(Calculations!$E$2=\"Orkney Health Board\",Calculations!$E$2=\"Orkney Islands Local Authority\"),$F191=1),0,IF(AND(OR(Calculations!$E$2=\"Shetland Health Board\",Calculations!$E$2=\"Western Isles Health Board\",Calculations!$E$2=\"Shetland Islands Local Authority\",Calculations!$E$2=\"Eilean Siar Local Authority\"),OR($F191=1,$F191=5)),0,hosp_count(VALUE(LEFT(Options!$B$24,2)),$C191,$E191,$F191,2016,$I191+$J191,1,$H191,$G191*$H191, Options!$B$8)))","v":{"$error":"#NAME?"}},{"$f":"IF(AND(OR(Calculations!$E$2=\"Orkney Health Board\",Calculations!$E$2=\"Orkney Islands Local Authority\"),$F191=1),0,IF(AND(OR(Calculations!$E$2=\"Shetland Health Board\",Calculations!$E$2=\"Western Isles Health Board\",Calculations!$E$2=\"Shetland Islands Local Authority\",Calculations!$E$2=\"Eilean Siar Local Authority\"),OR($F191=1,$F191=5)),0,prem_mort(VALUE(LEFT(Options!$B$24,2)),$C191,$E191,$F191,2016,$I191,1,$H191,$G191*$H191,Options!$B$8)))","v":0},{"$f":"IF(AND(OR(Calculations!$E$2=\"Orkney Health Board\",Calculations!$E$2=\"Orkney Islands Local Authority\"),$F191=1),0,IF(AND(OR(Calculations!$E$2=\"Shetland Health Board\",Calculations!$E$2=\"Western Isles Health Board\",Calculations!$E$2=\"Shetland Islands Local Authority\",Calculations!$E$2=\"Eilean Siar Local Authority\"),OR($F191=1,$F191=5)),0,prem_mort(VALUE(LEFT(Options!$B$24,2)),$C191,$E191,$F191,2016,$I191+$J191,1,$H191,$G191*$H191,Options!$B$8)))","v":0},4989.1460615999204,4953.7033332859437,22401.265816583902,22242.127966453743,{"$error":"#NAME?"},{"$error":"#NAME?"},0,0,7483719.0923998803,7430554.9999289159,33601898.724875852,33363191.949680615,{"$error":"#NAME?"},{"$error":"#NAME?"},0,0,1500]
[null,"Female 90+",92.779342999999997,96.279340000000005,"female",4,{"$f":"HLOOKUP(Calculations!$E$2,'Prevalence Rates'!$C$3:$BC$249,'Prevalence Rates'!$BD192,FALSE)","v":0.56000000000000005},{"$f":"HLOOKUP(Calculations!$E$2,'Population 2016'!$C$3:$BC$249,'Population 2016'!BD192,FALSE)","v":5998},0,{"$f":"HLOOKUP(Results!E$4,Targeting!$C$3:$F$249,Targeting!$G192,FALSE)","v":985},{"$f":"IF(AND(OR(Calculations!$E$2=\"Orkney Health Board\",Calculations!$E$2=\"Orkney Islands Local Authority\"),$F192=1),0,IF(AND(OR(Calculations!$E$2=\"Shetland Health Board\",Calculations!$E$2=\"Western Isles Health Board\",Calculations!$E$2=\"Shetland Islands Local Authority\",Calculations!$E$2=\"Eilean Siar Local Authority\"),OR($F192=1,$F192=5)),0,new_ci(VALUE(LEFT(Options!$B$24,2)),$C192,$E192,$F192,2016,$I192,1,$H192,$G192*$H192,Options!$B$8)))","v":491.87406311609999},{"$f":"IF(AND(OR(Calculations!$E$2=\"Orkney Health Board\",Calculations!$E$2=\"Orkney Islands Local Authority\"),$F192=1),0,IF(AND(OR(Calculations!$E$2=\"Shetland Health Board\",Calculations!$E$2=\"Western Isles Health Board\",Calculations!$E$2=\"Shetland Islands Local Authority\",Calculations!$E$2=\"Eilean Siar Local Authority\"),OR($F192=1,$F192=5)),0,new_ci(VALUE(LEFT(Options!$B$24,2)),$C192,$E192,$F192,2016,$I192+$J192,1,$H192,$G192*$H192,Options!$B$8)))","v":488.45336102610003},{"$f":"IF(AND(OR(Calculations!$E$2=\"Orkney Health Board\",Calculations!$E$2=\"Orkney Islands Local Authority\"),$F192=1),0,IF(AND(OR(Calculations!$E$2=\"Shetland Health Board\",Calculations!$E$2=\"Western Isles Health Board\",Calculations!$E$2=\"Shetland Islands Local Authority\",Calculations!$E$2=\"Eilean Siar Local Authority\"),OR($F192=1,$F192=5)),0,new_yllv2(VALUE(LEFT(Options!$B$24,2)),$C192,$D192,$E192,$F192,2016,$I192,1,$H192,$G192*$H192,Options!$B$8)))","v":1229.6836821680999},{"$f":"IF(AND(OR(Calculations!$E$2=\"Orkney Health Board\",Calculations!$E$2=\"Orkney Islands Local Authority\"),$F192=1),0,IF(AND(OR(Calculations!$E$2=\"Shetland Health Board\",Calculations!$E$2=\"Western Isles Health Board\",Calculations!$E$2=\"Shetland Islands Local Authority\",Calculations!$E$2=\"Eilean Siar Local Authority\"),OR($F192=1,$F192=5)),0,new_yllv2(VALUE(LEFT(Options!$B$24,2)),$C192,$D192,$E192,$F192,2016,$I192+$J192,1,$H192,$G192*$H192,Options!$B$8)))","v":1221.1319372052001},{"$f":"IF(AND(OR(Calculations!$E$2=\"Orkney Health Board\",Calculations!$E$2=\"Orkney Islands Local Authority\"),$F192=1),0,IF(AND(OR(Calculations!$E$2=\"Shetland Health Board\",Calculations!$E$2=\"Western Isles Health Board\",Calculations!$E$2=\"Shetland Islands Local Authority\",Calculations!$E$2=\"Eilean Siar Local Authority\"),OR($F192=1,$F192=5)),0,hosp_count(VALUE(LEFT(Options!$B$24,2)),$C192,$E192,$F192,2016,$I192,1,$H192,$G192*$H192, Options!$B$8)))","v":{"$error":"#NAME?"}},{"$f":"IF(AND(OR(Calculations!$E$2=\"Orkney Health Board\",Calculations!$E$2=\"Orkney Islands Local Authority\"),$F192=1),0,IF(AND(OR(Calculations!$E$2=\"Shetland Health Board\",Calculations!$E$2=\"Western Isles Health Board\",Calculations!$E$2=\"Shetland Islands Local Authority\",Calculations!$E$2=\"Eilean Siar Local Authority\"),OR($F192=1,$F192=5)),0,hosp_count(VALUE(LEFT(Options!$B$24,2)),$C192,$E192,$F192,2016,$I192+$J192,1,$H192,$G192*$H192, Options!$B$8)))","v":{"$error":"#NAME?"}},{"$f":"IF(AND(OR(Calculations!$E$2=\"Orkney Health Board\",Calculations!$E$2=\"Orkney Islands Local Authority\"),$F192=1),0,IF(AND(OR(Calculations!$E$2=\"Shetland Health Board\",Calculations!$E$2=\"Western Isles Health Board\",Calculations!$E$2=\"Shetland Islands Local Authority\",Calculations!$E$2=\"Eilean Siar Local Authority\"),OR($F192=1,$F192=5)),0,prem_mort(VALUE(LEFT(Options!$B$24,2)),$C192,$E192,$F192,2016,$I192,1,$H192,$G192*$H192,Options!$B$8)))","v":0},{"$f":"IF(AND(OR(Calculations!$E$2=\"Orkney Health Board\",Calculations!$E$2=\"Orkney Islands Local Authority\"),$F192=1),0,IF(AND(OR(Calculations!$E$2=\"Shetland Health Board\",Calculations!$E$2=\"Western Isles Health Board\",Calculations!$E$2=\"Shetland Islands Local Authority\",Calculations!$E$2=\"Eilean Siar Local Authority\"),OR($F192=1,$F192=5)),0,prem_mort(VALUE(LEFT(Options!$B$24,2)),$C192,$E192,$F192,2016,$I192+$J192,1,$H192,$G192*$H192,Options!$B$8)))","v":0},8200.6345968006008,8143.603885063354,20501.561890098365,20358.985281847283,{"$error":"#NAME?"},{"$error":"#NAME?"},0,0,8200634.5968006011,8143603.8850633539,20501561.890098363,20358985.281847283,{"$error":"#NAME?"},{"$error":"#NAME?"},0,0,1000]
[null,"Male 0-4",2.0320822999999999,77.402082000000007,"male",4,{"$f":"HLOOKUP(Calculations!$E$2,'Prevalence Rates'!$C$3:$BC$249,'Prevalence Rates'!$BD193,FALSE)","v":0},{"$f":"HLOOKUP(Calculations!$E$2,'Population 2016'!$C$3:$BC$249,'Population 2016'!BD193,FALSE)","v":0},0,{"$f":"HLOOKUP(Results!E$4,Targeting!$C$3:$F$249,Targeting!$G193,FALSE)","v":0},{"$f":"IF(AND(OR(Calculations!$E$2=\"Orkney Health Board\",Calculations!$E$2=\"Orkney Islands Local Authority\"),$F193=1),0,IF(AND(OR(Calculations!$E$2=\"Shetland Health Board\",Calculations!$E$2=\"Western Isles Health Board\",Calculations!$E$2=\"Shetland Islands Local Authority\",Calculations!$E$2=\"Eilean Siar Local Authority\"),OR($F193=1,$F193=5)),0,new_ci(VALUE(LEFT(Options!$B$24,2)),$C193,$E193,$F193,2016,$I193,1,$H193,$G193*$H193,Options!$B$8)))","v":{"$error":"#VALUE!"}},{"$f":"IF(AND(OR(Calculations!$E$2=\"Orkney Health Board\",Calculations!$E$2=\"Orkney Islands Local Authority\"),$F193=1),0,IF(AND(OR(Calculations!$E$2=\"Shetland Health Board\",Calculations!$E$2=\"Western Isles Health Board\",Calculations!$E$2=\"Shetland Islands Local Authority\",Calculations!$E$2=\"Eilean Siar Local Authority\"),OR($F193=1,$F193=5)),0,new_ci(VALUE(LEFT(Options!$B$24,2)),$C193,$E193,$F193,2016,$I193+$J193,1,$H193,$G193*$H193,Options!$B$8)))","v":{"$error":"#VALUE!"}},{"$f":"IF(AND(OR(Calculations!$E$2=\"Orkney Health Board\",Calculations!$E$2=\"Orkney Islands Local Authority\"),$F193=1),0,IF(AND(OR(Calculations!$E$2=\"Shetland Health Board\",Calculations!$E$2=\"Western Isles Health Board\",Calculations!$E$2=\"Shetland Islands Local Authority\",Calculations!$E$2=\"Eilean Siar Local Authority\"),OR($F193=1,$F193=5)),0,new_yllv2(VALUE(LEFT(Options!$B$24,2)),$C193,$D193,$E193,$F193,2016,$I193,1,$H193,$G193*$H193,Options!$B$8)))","v":{"$error":"#VALUE!"}},{"$f":"IF(AND(OR(Calculations!$E$2=\"Orkney Health Board\",Calculations!$E$2=\"Orkney Islands Local Authority\"),$F193=1),0,IF(AND(OR(Calculations!$E$2=\"Shetland Health Board\",Calculations!$E$2=\"Western Isles Health Board\",Calculations!$E$2=\"Shetland Islands Local Authority\",Calculations!$E$2=\"Eilean Siar Local Authority\"),OR($F193=1,$F193=5)),0,new_yllv2(VALUE(LEFT(Options!$B$24,2)),$C193,$D193,$E193,$F193,2016,$I193+$J193,1,$H193,$G193*$H193,Options!$B$8)))","v":{"$error":"#VALUE!"}},{"$f":"IF(AND(OR(Calculations!$E$2=\"Orkney Health Board\",Calculations!$E$2=\"Orkney Islands Local Authority\"),$F193=1),0,IF(AND(OR(Calculations!$E$2=\"Shetland Health Board\",Calculations!$E$2=\"Western Isles Health Board\",Calculations!$E$2=\"Shetland Islands Local Authority\",Calculations!$E$2=\"Eilean Siar Local Authority\"),OR($F193=1,$F193=5)),0,hosp_count(VALUE(LEFT(Options!$B$24,2)),$C193,$E193,$F193,2016,$I193,1,$H193,$G193*$H193, Options!$B$8)))","v":{"$error":"#NAME?"}},{"$f":"IF(AND(OR(Calculations!$E$2=\"Orkney Health Board\",Calculations!$E$2=\"Orkney Islands Local Authority\"),$F193=1),0,IF(AND(OR(Calculations!$E$2=\"Shetland Health Board\",Calculations!$E$2=\"Western Isles Health Board\",Calculations!$E$2=\"Shetland Islands Local Authority\",Calculations!$E$2=\"Eilean Siar Local Authority\"),OR($F193=1,$F193=5)),0,hosp_count(VALUE(LEFT(Options!$B$24,2)),$C193,$E193,$F193,2016,$I193+$J193,1,$H193,$G193*$H193, Options!$B$8)))","v":{"$error":"#NAME?"}},{"$f":"IF(AND(OR(Calculations!$E$2=\"Orkney Health Board\",Calculations!$E$2=\"Orkney Islands Local Authority\"),$F193=1),0,IF(AND(OR(Calculations!$E$2=\"Shetland Health Board\",Calculations!$E$2=\"Western Isles Health Board\",Calculations!$E$2=\"Shetland Islands Local Authority\",Calculations!$E$2=\"Eilean Siar Local Authority\"),OR($F193=1,$F193=5)),0,prem_mort(VALUE(LEFT(Options!$B$24,2)),$C193,$E193,$F193,2016,$I193,1,$H193,$G193*$H193,Options!$B$8)))","v":{"$error":"#VALUE!"}},{"$f":"IF(AND(OR(Calculations!$E$2=\"Orkney Health Board\",Calculations!$E$2=\"Orkney Islands Local Authority\"),$F193=1),0,IF(AND(OR(Calculations!$E$2=\"Shetland Health Board\",Calculations!$E$2=\"Western Isles Health Board\",Calculations!$E$2=\"Shetland Islands Local Authority\",Calculations!$E$2=\"Eilean Siar Local Authority\"),OR($F193=1,$F193=5)),0,prem_mort(VALUE(LEFT(Options!$B$24,2)),$C193,$E193,$F193,2016,$I193+$J193,1,$H193,$G193*$H193,Options!$B$8)))","v":{"$error":"#VALUE!"}},{"$error":"#VALUE!"},{"$error":"#VALUE!"},{"$error":"#VALUE!"},{"$error":"#VALUE!"},{"$error":"#NAME?"},{"$error":"#NAME?"},{"$error":"#VALUE!"},{"$error":"#VALUE!"},{"$error":"#VALUE!"},{"$error":"#VALUE!"},{"$error":"#VALUE!"},{"$error":"#VALUE!"},{"$error":"#NAME?"},{"$error":"#NAME?"},{"$error":"#VALUE!"},{"$error":"#VALUE!"},5000]
[null,"Male 5-9",6.9784756000000003,77.398476000000002,"male",4,{"$f":"HLOOKUP(Calculations!$E$2,'Prevalence Rates'!$C$3:$BC$249,'Prevalence Rates'!$BD194,FALSE)","v":0},{"$f":"HLOOKUP(Calculations!$E$2,'Population 2016'!$C$3:$BC$249,'Population 2016'!BD194,FALSE)","v":0},0,{"$f":"HLOOKUP(Results!E$4,Targeting!$C$3:$F$249,Targeting!$G194,FALSE)","v":0},{"$f":"IF(AND(OR(Calculations!$E$2=\"Orkney Health Board\",Calculations!$E$2=\"Orkney Islands Local Authority\"),$F194=1),0,IF(AND(OR(Calculations!$E$2=\"Shetland Health Board\",Calculations!$E$2=\"Western Isles Health Board\",Calculations!$E$2=\"Shetland Islands Local Authority\",Calculations!$E$2=\"Eilean Siar Local Authority\"),OR($F194=1,$F194=5)),0,new_ci(VALUE(LEFT(Options!$B$24,2)),$C194,$E194,$F194,2016,$I194,1,$H194,$G194*$H194,Options!$B$8)))","v":{"$error":"#VALUE!"}},{"$f":"IF(AND(OR(Calculations!$E$2=\"Orkney Health Board\",Calculations!$E$2=\"Orkney Islands Local Authority\"),$F194=1),0,IF(AND(OR(Calculations!$E$2=\"Shetland Health Board\",Calculations!$E$2=\"Western Isles Health Board\",Calculations!$E$2=\"Shetland Islands Local Authority\",Calculations!$E$2=\"Eilean Siar Local Authority\"),OR($F194=1,$F194=5)),0,new_ci(VALUE(LEFT(Options!$B$24,2)),$C194,$E194,$F194,2016,$I194+$J194,1,$H194,$G194*$H194,Options!$B$8)))","v":{"$error":"#VALUE!"}},{"$f":"IF(AND(OR(Calculations!$E$2=\"Orkney Health Board\",Calculations!$E$2=\"Orkney Islands Local Authority\"),$F194=1),0,IF(AND(OR(Calculations!$E$2=\"Shetland Health Board\",Calculations!$E$2=\"Western Isles Health Board\",Calculations!$E$2=\"Shetland Islands Local Authority\",Calculations!$E$2=\"Eilean Siar Local Authority\"),OR($F194=1,$F194=5)),0,new_yllv2(VALUE(LEFT(Options!$B$24,2)),$C194,$D194,$E194,$F194,2016,$I194,1,$H194,$G194*$H194,Options!$B$8)))","v":{"$error":"#VALUE!"}},{"$f":"IF(AND(OR(Calculations!$E$2=\"Orkney Health Board\",Calculations!$E$2=\"Orkney Islands Local Authority\"),$F194=1),0,IF(AND(OR(Calculations!$E$2=\"Shetland Health Board\",Calculations!$E$2=\"Western Isles Health Board\",Calculations!$E$2=\"Shetland Islands Local Authority\",Calculations!$E$2=\"Eilean Siar Local Authority\"),OR($F194=1,$F194=5)),0,new_yllv2(VALUE(LEFT(Options!$B$24,2)),$C194,$D194,$E194,$F194,2016,$I194+$J194,1,$H194,$G194*$H194,Options!$B$8)))","v":{"$error":"#VALUE!"}},{"$f":"IF(AND(OR(Calculations!$E$2=\"Orkney Health Board\",Calculations!$E$2=\"Orkney Islands Local Authority\"),$F194=1),0,IF(AND(OR(Calculations!$E$2=\"Shetland Health Board\",Calculations!$E$2=\"Western Isles Health Board\",Calculations!$E$2=\"Shetland Islands Local Authority\",Calculations!$E$2=\"Eilean Siar Local Authority\"),OR($F194=1,$F194=5)),0,hosp_count(VALUE(LEFT(Options!$B$24,2)),$C194,$E194,$F194,2016,$I194,1,$H194,$G194*$H194, Options!$B$8)))","v":{"$error":"#NAME?"}},{"$f":"IF(AND(OR(Calculations!$E$2=\"Orkney Health Board\",Calculations!$E$2=\"Orkney Islands Local Authority\"),$F194=1),0,IF(AND(OR(Calculations!$E$2=\"Shetland Health Board\",Calculations!$E$2=\"Western Isles Health Board\",Calculations!$E$2=\"Shetland Islands Local Authority\",Calculations!$E$2=\"Eilean Siar Local Authority\"),OR($F194=1,$F194=5)),0,hosp_count(VALUE(LEFT(Options!$B$24,2)),$C194,$E194,$F194,2016,$I194+$J194,1,$H194,$G194*$H194, Options!$B$8)))","v":{"$error":"#NAME?"}},{"$f":"IF(AND(OR(Calculations!$E$2=\"Orkney Health Board\",Calculations!$E$2=\"Orkney Islands Local Authority\"),$F194=1),0,IF(AND(OR(Calculations!$E$2=\"Shetland Health Board\",Calculations!$E$2=\"Western Isles Health Board\",Calculations!$E$2=\"Shetland Islands Local Authority\",Calculations!$E$2=\"Eilean Siar Local Authority\"),OR($F194=1,$F194=5)),0,prem_mort(VALUE(LEFT(Options!$B$24,2)),$C194,$E194,$F194,2016,$I194,1,$H194,$G194*$H194,Options!$B$8)))","v":{"$error":"#VALUE!"}},{"$f":"IF(AND(OR(Calculations!$E$2=\"Orkney Health Board\",Calculations!$E$2=\"Orkney Islands Local Authority\"),$F194=1),0,IF(AND(OR(Calculations!$E$2=\"Shetland Health Board\",Calculations!$E$2=\"Western Isles Health Board\",Calculations!$E$2=\"Shetland Islands Local Authority\",Calculations!$E$2=\"Eilean Siar Local Authority\"),OR($F194=1,$F194=5)),0,prem_mort(VALUE(LEFT(Options!$B$24,2)),$C194,$E194,$F194,2016,$I194+$J194,1,$H194,$G194*$H194,Options!$B$8)))","v":{"$error":"#VALUE!"}},{"$error":"#VALUE!"},{"$error":"#VALUE!"},{"$error":"#VALUE!"},{"$error":"#VALUE!"},{"$error":"#NAME?"},{"$error":"#NAME?"},{"$error":"#VALUE!"},{"$error":"#VALUE!"},{"$error":"#VALUE!"},{"$error":"#VALUE!"},{"$error":"#VALUE!"},{"$error":"#VALUE!"},{"$error":"#NAME?"},{"$error":"#NAME?"},{"$error":"#VALUE!"},{"$error":"#VALUE!"},5500]
[null,"Male 10-15",12.471144000000001,77.921140000000008,"male",4,{"$f":"HLOOKUP(Calculations!$E$2,'Prevalence Rates'!$C$3:$BC$249,'Prevalence Rates'!$BD195,FALSE)","v":0},{"$f":"HLOOKUP(Calculations!$E$2,'Population 2016'!$C$3:$BC$249,'Population 2016'!BD195,FALSE)","v":0},0,{"$f":"HLOOKUP(Results!E$4,Targeting!$C$3:$F$249,Targeting!$G195,FALSE)","v":0},{"$f":"IF(AND(OR(Calculations!$E$2=\"Orkney Health Board\",Calculations!$E$2=\"Orkney Islands Local Authority\"),$F195=1),0,IF(AND(OR(Calculations!$E$2=\"Shetland Health Board\",Calculations!$E$2=\"Western Isles Health Board\",Calculations!$E$2=\"Shetland Islands Local Authority\",Calculations!$E$2=\"Eilean Siar Local Authority\"),OR($F195=1,$F195=5)),0,new_ci(VALUE(LEFT(Options!$B$24,2)),$C195,$E195,$F195,2016,$I195,1,$H195,$G195*$H195,Options!$B$8)))","v":{"$error":"#VALUE!"}},{"$f":"IF(AND(OR(Calculations!$E$2=\"Orkney Health Board\",Calculations!$E$2=\"Orkney Islands Local Authority\"),$F195=1),0,IF(AND(OR(Calculations!$E$2=\"Shetland Health Board\",Calculations!$E$2=\"Western Isles Health Board\",Calculations!$E$2=\"Shetland Islands Local Authority\",Calculations!$E$2=\"Eilean Siar Local Authority\"),OR($F195=1,$F195=5)),0,new_ci(VALUE(LEFT(Options!$B$24,2)),$C195,$E195,$F195,2016,$I195+$J195,1,$H195,$G195*$H195,Options!$B$8)))","v":{"$error":"#VALUE!"}},{"$f":"IF(AND(OR(Calculations!$E$2=\"Orkney Health Board\",Calculations!$E$2=\"Orkney Islands Local Authority\"),$F195=1),0,IF(AND(OR(Calculations!$E$2=\"Shetland Health Board\",Calculations!$E$2=\"Western Isles Health Board\",Calculations!$E$2=\"Shetland Islands Local Authority\",Calculations!$E$2=\"Eilean Siar Local Authority\"),OR($F195=1,$F195=5)),0,new_yllv2(VALUE(LEFT(Options!$B$24,2)),$C195,$D195,$E195,$F195,2016,$I195,1,$H195,$G195*$H195,Options!$B$8)))","v":{"$error":"#VALUE!"}},{"$f":"IF(AND(OR(Calculations!$E$2=\"Orkney Health Board\",Calculations!$E$2=\"Orkney Islands Local Authority\"),$F195=1),0,IF(AND(OR(Calculations!$E$2=\"Shetland Health Board\",Calculations!$E$2=\"Western Isles Health Board\",Calculations!$E$2=\"Shetland Islands Local Authority\",Calculations!$E$2=\"Eilean Siar Local Authority\"),OR($F195=1,$F195=5)),0,new_yllv2(VALUE(LEFT(Options!$B$24,2)),$C195,$D195,$E195,$F195,2016,$I195+$J195,1,$H195,$G195*$H195,Options!$B$8)))","v":{"$error":"#VALUE!"}},{"$f":"IF(AND(OR(Calculations!$E$2=\"Orkney Health Board\",Calculations!$E$2=\"Orkney Islands Local Authority\"),$F195=1),0,IF(AND(OR(Calculations!$E$2=\"Shetland Health Board\",Calculations!$E$2=\"Western Isles Health Board\",Calculations!$E$2=\"Shetland Islands Local Authority\",Calculations!$E$2=\"Eilean Siar Local Authority\"),OR($F195=1,$F195=5)),0,hosp_count(VALUE(LEFT(Options!$B$24,2)),$C195,$E195,$F195,2016,$I195,1,$H195,$G195*$H195, Options!$B$8)))","v":{"$error":"#NAME?"}},{"$f":"IF(AND(OR(Calculations!$E$2=\"Orkney Health Board\",Calculations!$E$2=\"Orkney Islands Local Authority\"),$F195=1),0,IF(AND(OR(Calculations!$E$2=\"Shetland Health Board\",Calculations!$E$2=\"Western Isles Health Board\",Calculations!$E$2=\"Shetland Islands Local Authority\",Calculations!$E$2=\"Eilean Siar Local Authority\"),OR($F195=1,$F195=5)),0,hosp_count(VALUE(LEFT(Options!$B$24,2)),$C195,$E195,$F195,2016,$I195+$J195,1,$H195,$G195*$H195, Options!$B$8)))","v":{"$error":"#NAME?"}},{"$f":"IF(AND(OR(Calculations!$E$2=\"Orkney Health Board\",Calculations!$E$2=\"Orkney Islands Local Authority\"),$F195=1),0,IF(AND(OR(Calculations!$E$2=\"Shetland Health Board\",Calculations!$E$2=\"Western Isles Health Board\",Calculations!$E$2=\"Shetland Islands Local Authority\",Calculations!$E$2=\"Eilean Siar Local Authority\"),OR($F195=1,$F195=5)),0,prem_mort(VALUE(LEFT(Options!$B$24,2)),$C195,$E195,$F195,2016,$I195,1,$H195,$G195*$H195,Options!$B$8)))","v":{"$error":"#VALUE!"}},{"$f":"IF(AND(OR(Calculations!$E$2=\"Orkney Health Board\",Calculations!$E$2=\"Orkney Islands Local Authority\"),$F195=1),0,IF(AND(OR(Calculations!$E$2=\"Shetland Health Board\",Calculations!$E$2=\"Western Isles Health Board\",Calculations!$E$2=\"Shetland Islands Local Authority\",Calculations!$E$2=\"Eilean Siar Local Authority\"),OR($F195=1,$F195=5)),0,prem_mort(VALUE(LEFT(Options!$B$24,2)),$C195,$E195,$F195,2016,$I195+$J195,1,$H195,$G195*$H195,Options!$B$8)))","v":{"$error":"#VALUE!"}},{"$error":"#VALUE!"},{"$error":"#VALUE!"},{"$error":"#VALUE!"},{"$error":"#VALUE!"},{"$error":"#NAME?"},{"$error":"#NAME?"},{"$error":"#VALUE!"},{"$error":"#VALUE!"},{"$error":"#VALUE!"},{"$error":"#VALUE!"},{"$error":"#VALUE!"},{"$error":"#VALUE!"},{"$error":"#NAME?"},{"$error":"#NAME?"},{"$error":"#VALUE!"},{"$error":"#VALUE!"},6600]
[null,"Male 16-19",17.556318000000001,77.07632000000001,"male",4,{"$f":"HLOOKUP(Calculations!$E$2,'Prevalence Rates'!$C$3:$BC$249,'Prevalence Rates'!$BD196,FALSE)","v":0.34200000000000003},{"$f":"HLOOKUP(Calculations!$E$2,'Population 2016'!$C$3:$BC$249,'Population 2016'!BD196,FALSE)","v":24732},0,{"$f":"HLOOKUP(Results!E$4,Targeting!$C$3:$F$249,Targeting!$G196,FALSE)","v":4061},{"$f":"IF(AND(OR(Calculations!$E$2=\"Orkney Health Board\",Calculations!$E$2=\"Orkney Islands Local Authority\"),$F196=1),0,IF(AND(OR(Calculations!$E$2=\"Shetland Health Board\",Calculations!$E$2=\"Western Isles Health Board\",Calculations!$E$2=\"Shetland Islands Local Authority\",Calculations!$E$2=\"Eilean Siar Local Authority\"),OR($F196=1,$F196=5)),0,new_ci(VALUE(LEFT(Options!$B$24,2)),$C196,$E196,$F196,2016,$I196,1,$H196,$G196*$H196,Options!$B$8)))","v":8.3961944823000003},{"$f":"IF(AND(OR(Calculations!$E$2=\"Orkney Health Board\",Calculations!$E$2=\"Orkney Islands Local Authority\"),$F196=1),0,IF(AND(OR(Calculations!$E$2=\"Shetland Health Board\",Calculations!$E$2=\"Western Isles Health Board\",Calculations!$E$2=\"Shetland Islands Local Authority\",Calculations!$E$2=\"Eilean Siar Local Authority\"),OR($F196=1,$F196=5)),0,new_ci(VALUE(LEFT(Options!$B$24,2)),$C196,$E196,$F196,2016,$I196+$J196,1,$H196,$G196*$H196,Options!$B$8)))","v":8.3296078897000001},{"$f":"IF(AND(OR(Calculations!$E$2=\"Orkney Health Board\",Calculations!$E$2=\"Orkney Islands Local Authority\"),$F196=1),0,IF(AND(OR(Calculations!$E$2=\"Shetland Health Board\",Calculations!$E$2=\"Western Isles Health Board\",Calculations!$E$2=\"Shetland Islands Local Authority\",Calculations!$E$2=\"Eilean Siar Local Authority\"),OR($F196=1,$F196=5)),0,new_yllv2(VALUE(LEFT(Options!$B$24,2)),$C196,$D196,$E196,$F196,2016,$I196,1,$H196,$G196*$H196,Options!$B$8)))","v":491.34531789660002},{"$f":"IF(AND(OR(Calculations!$E$2=\"Orkney Health Board\",Calculations!$E$2=\"Orkney Islands Local Authority\"),$F196=1),0,IF(AND(OR(Calculations!$E$2=\"Shetland Health Board\",Calculations!$E$2=\"Western Isles Health Board\",Calculations!$E$2=\"Shetland Islands Local Authority\",Calculations!$E$2=\"Eilean Siar Local Authority\"),OR($F196=1,$F196=5)),0,new_yllv2(VALUE(LEFT(Options!$B$24,2)),$C196,$D196,$E196,$F196,2016,$I196+$J196,1,$H196,$G196*$H196,Options!$B$8)))","v":487.4486703645},{"$f":"IF(AND(OR(Calculations!$E$2=\"Orkney Health Board\",Calculations!$E$2=\"Orkney Islands Local Authority\"),$F196=1),0,IF(AND(OR(Calculations!$E$2=\"Shetland Health Board\",Calculations!$E$2=\"Western Isles Health Board\",Calculations!$E$2=\"Shetland Islands Local Authority\",Calculations!$E$2=\"Eilean Siar Local Authority\"),OR($F196=1,$F196=5)),0,hosp_count(VALUE(LEFT(Options!$B$24,2)),$C196,$E196,$F196,2016,$I196,1,$H196,$G196*$H196, Options!$B$8)))","v":{"$error":"#NAME?"}},{"$f":"IF(AND(OR(Calculations!$E$2=\"Orkney Health Board\",Calculations!$E$2=\"Orkney Islands Local Authority\"),$F196=1),0,IF(AND(OR(Calculations!$E$2=\"Shetland Health Board\",Calculations!$E$2=\"Western Isles Health Board\",Calculations!$E$2=\"Shetland Islands Local Authority\",Calculations!$E$2=\"Eilean Siar Local Authority\"),OR($F196=1,$F196=5)),0,hosp_count(VALUE(LEFT(Options!$B$24,2)),$C196,$E196,$F196,2016,$I196+$J196,1,$H196,$G196*$H196, Options!$B$8)))","v":{"$error":"#NAME?"}},{"$f":"IF(AND(OR(Calculations!$E$2=\"Orkney Health Board\",Calculations!$E$2=\"Orkney Islands Local Authority\"),$F196=1),0,IF(AND(OR(Calculations!$E$2=\"Shetland Health Board\",Calculations!$E$2=\"Western Isles Health Board\",Calculations!$E$2=\"Shetland Islands Local Authority\",Calculations!$E$2=\"Eilean Siar Local Authority\"),OR($F196=1,$F196=5)),0,prem_mort(VALUE(LEFT(Options!$B$24,2)),$C196,$E196,$F196,2016,$I196,1,$H196,$G196*$H196,Options!$B$8)))","v":8.3961944823000003},{"$f":"IF(AND(OR(Calculations!$E$2=\"Orkney Health Board\",Calculations!$E$2=\"Orkney Islands Local Authority\"),$F196=1),0,IF(AND(OR(Calculations!$E$2=\"Shetland Health Board\",Calculations!$E$2=\"Western Isles Health Board\",Calculations!$E$2=\"Shetland Islands Local Authority\",Calculations!$E$2=\"Eilean Siar Local Authority\"),OR($F196=1,$F196=5)),0,prem_mort(VALUE(LEFT(Options!$B$24,2)),$C196,$E196,$F196,2016,$I196+$J196,1,$H196,$G196*$H196,Options!$B$8)))","v":8.3296078897000001},33.948708079815624,33.679475536551834,1986.6784647282873,1970.922975758127,{"$error":"#NAME?"},{"$error":"#NAME?"},33.948708079815624,33.679475536551834,149374.31555118875,148189.69236082808,8741385.2448044643,8672061.0933357589,{"$error":"#NAME?"},{"$error":"#NAME?"},149374.31555118875,148189.69236082808,4400]
[null,"Male 20-24",22.054632000000002,77.704629999999995,"male",4,{"$f":"HLOOKUP(Calculations!$E$2,'Prevalence Rates'!$C$3:$BC$249,'Prevalence Rates'!$BD197,FALSE)","v":0.34200000000000003},{"$f":"HLOOKUP(Calculations!$E$2,'Population 2016'!$C$3:$BC$249,'Population 2016'!BD197,FALSE)","v":35228},0,{"$f":"HLOOKUP(Results!E$4,Targeting!$C$3:$F$249,Targeting!$G197,FALSE)","v":5784},{"$f":"IF(AND(OR(Calculations!$E$2=\"Orkney Health Board\",Calculations!$E$2=\"Orkney Islands Local Authority\"),$F197=1),0,IF(AND(OR(Calculations!$E$2=\"Shetland Health Board\",Calculations!$E$2=\"Western Isles Health Board\",Calculations!$E$2=\"Shetland Islands Local Authority\",Calculations!$E$2=\"Eilean Siar Local Authority\"),OR($F197=1,$F197=5)),0,new_ci(VALUE(LEFT(Options!$B$24,2)),$C197,$E197,$F197,2016,$I197,1,$H197,$G197*$H197,Options!$B$8)))","v":16.794698014600002},{"$f":"IF(AND(OR(Calculations!$E$2=\"Orkney Health Board\",Calculations!$E$2=\"Orkney Islands Local Authority\"),$F197=1),0,IF(AND(OR(Calculations!$E$2=\"Shetland Health Board\",Calculations!$E$2=\"Western Isles Health Board\",Calculations!$E$2=\"Shetland Islands Local Authority\",Calculations!$E$2=\"Eilean Siar Local Authority\"),OR($F197=1,$F197=5)),0,new_ci(VALUE(LEFT(Options!$B$24,2)),$C197,$E197,$F197,2016,$I197+$J197,1,$H197,$G197*$H197,Options!$B$8)))","v":16.661529512200001},{"$f":"IF(AND(OR(Calculations!$E$2=\"Orkney Health Board\",Calculations!$E$2=\"Orkney Islands Local Authority\"),$F197=1),0,IF(AND(OR(Calculations!$E$2=\"Shetland Health Board\",Calculations!$E$2=\"Western Isles Health Board\",Calculations!$E$2=\"Shetland Islands Local Authority\",Calculations!$E$2=\"Eilean Siar Local Authority\"),OR($F197=1,$F197=5)),0,new_yllv2(VALUE(LEFT(Options!$B$24,2)),$C197,$D197,$E197,$F197,2016,$I197,1,$H197,$G197*$H197,Options!$B$8)))","v":917.83021290850002},{"$f":"IF(AND(OR(Calculations!$E$2=\"Orkney Health Board\",Calculations!$E$2=\"Orkney Islands Local Authority\"),$F197=1),0,IF(AND(OR(Calculations!$E$2=\"Shetland Health Board\",Calculations!$E$2=\"Western Isles Health Board\",Calculations!$E$2=\"Shetland Islands Local Authority\",Calculations!$E$2=\"Eilean Siar Local Authority\"),OR($F197=1,$F197=5)),0,new_yllv2(VALUE(LEFT(Options!$B$24,2)),$C197,$D197,$E197,$F197,2016,$I197+$J197,1,$H197,$G197*$H197,Options!$B$8)))","v":910.55255451870005},{"$f":"IF(AND(OR(Calculations!$E$2=\"Orkney Health Board\",Calculations!$E$2=\"Orkney Islands Local Authority\"),$F197=1),0,IF(AND(OR(Calculations!$E$2=\"Shetland Health Board\",Calculations!$E$2=\"Western Isles Health Board\",Calculations!$E$2=\"Shetland Islands Local Authority\",Calculations!$E$2=\"Eilean Siar Local Authority\"),OR($F197=1,$F197=5)),0,hosp_count(VALUE(LEFT(Options!$B$24,2)),$C197,$E197,$F197,2016,$I197,1,$H197,$G197*$H197, Options!$B$8)))","v":{"$error":"#NAME?"}},{"$f":"IF(AND(OR(Calculations!$E$2=\"Orkney Health Board\",Calculations!$E$2=\"Orkney Islands Local Authority\"),$F197=1),0,IF(AND(OR(Calculations!$E$2=\"Shetland Health Board\",Calculations!$E$2=\"Western Isles Health Board\",Calculations!$E$2=\"Shetland Islands Local Authority\",Calculations!$E$2=\"Eilean Siar Local Authority\"),OR($F197=1,$F197=5)),0,hosp_count(VALUE(LEFT(Options!$B$24,2)),$C197,$E197,$F197,2016,$I197+$J197,1,$H197,$G197*$H197, Options!$B$8)))","v":{"$error":"#NAME?"}},{"$f":"IF(AND(OR(Calculations!$E$2=\"Orkney Health Board\",Calculations!$E$2=\"Orkney Islands Local Authority\"),$F197=1),0,IF(AND(OR(Calculations!$E$2=\"Shetland Health Board\",Calculations!$E$2=\"Western Isles Health Board\",Calculations!$E$2=\"Shetland Islands Local Authority\",Calculations!$E$2=\"Eilean Siar Local Authority\"),OR($F197=1,$F197=5)),0,prem_mort(VALUE(LEFT(Options!$B$24,2)),$C197,$E197,$F197,2016,$I197,1,$H197,$G197*$H197,Options!$B$8)))","v":16.794698014600002},{"$f":"IF(AND(OR(Calculations!$E$2=\"Orkney Health Board\",Calculations!$E$2=\"Orkney Islands Local Authority\"),$F197=1),0,IF(AND(OR(Calculations!$E$2=\"Shetland Health Board\",Calculations!$E$2=\"Western Isles Health Board\",Calculations!$E$2=\"Shetland Islands Local Authority\",Calculations!$E$2=\"Eilean Siar Local Authority\"),OR($F197=1,$F197=5)),0,prem_mort(VALUE(LEFT(Options!$B$24,2)),$C197,$E197,$F197,2016,$I197+$J197,1,$H197,$G197*$H197,Options!$B$8)))","v":16.661529512200001},47.674287540024984,47.296268627796074,2605.399718713807,2584.7409859166005,{"$error":"#NAME?"},{"$error":"#NAME?"},47.674287540024984,47.296268627796074,286045.72524014988,283777.61176677642,15632398.312282842,15508445.915499603,{"$error":"#NAME?"},{"$error":"#NAME?"},286045.72524014988,283777.61176677642,6000]
[null,"Male 25-29",26.959762999999999,77.789760000000001,"male",4,{"$f":"HLOOKUP(Calculations!$E$2,'Prevalence Rates'!$C$3:$BC$249,'Prevalence Rates'!$BD198,FALSE)","v":0.19700000000000004},{"$f":"HLOOKUP(Calculations!$E$2,'Population 2016'!$C$3:$BC$249,'Population 2016'!BD198,FALSE)","v":33718},0,{"$f":"HLOOKUP(Results!E$4,Targeting!$C$3:$F$249,Targeting!$G198,FALSE)","v":5536},{"$f":"IF(AND(OR(Calculations!$E$2=\"Orkney Health Board\",Calculations!$E$2=\"Orkney Islands Local Authority\"),$F198=1),0,IF(AND(OR(Calculations!$E$2=\"Shetland Health Board\",Calculations!$E$2=\"Western Isles Health Board\",Calculations!$E$2=\"Shetland Islands Local Authority\",Calculations!$E$2=\"Eilean Siar Local Authority\"),OR($F198=1,$F198=5)),0,new_ci(VALUE(LEFT(Options!$B$24,2)),$C198,$E198,$F198,2016,$I198,1,$H198,$G198*$H198,Options!$B$8)))","v":23.277149231100001},{"$f":"IF(AND(OR(Calculations!$E$2=\"Orkney Health Board\",Calculations!$E$2=\"Orkney Islands Local Authority\"),$F198=1),0,IF(AND(OR(Calculations!$E$2=\"Shetland Health Board\",Calculations!$E$2=\"Western Isles Health Board\",Calculations!$E$2=\"Shetland Islands Local Authority\",Calculations!$E$2=\"Eilean Siar Local Authority\"),OR($F198=1,$F198=5)),0,new_ci(VALUE(LEFT(Options!$B$24,2)),$C198,$E198,$F198,2016,$I198+$J198,1,$H198,$G198*$H198,Options!$B$8)))","v":23.082036232699998},{"$f":"IF(AND(OR(Calculations!$E$2=\"Orkney Health Board\",Calculations!$E$2=\"Orkney Islands Local Authority\"),$F198=1),0,IF(AND(OR(Calculations!$E$2=\"Shetland Health Board\",Calculations!$E$2=\"Western Isles Health Board\",Calculations!$E$2=\"Shetland Islands Local Authority\",Calculations!$E$2=\"Eilean Siar Local Authority\"),OR($F198=1,$F198=5)),0,new_yllv2(VALUE(LEFT(Options!$B$24,2)),$C198,$D198,$E198,$F198,2016,$I198,1,$H198,$G198*$H198,Options!$B$8)))","v":1159.9002763543001},{"$f":"IF(AND(OR(Calculations!$E$2=\"Orkney Health Board\",Calculations!$E$2=\"Orkney Islands Local Authority\"),$F198=1),0,IF(AND(OR(Calculations!$E$2=\"Shetland Health Board\",Calculations!$E$2=\"Western Isles Health Board\",Calculations!$E$2=\"Shetland Islands Local Authority\",Calculations!$E$2=\"Eilean Siar Local Authority\"),OR($F198=1,$F198=5)),0,new_yllv2(VALUE(LEFT(Options!$B$24,2)),$C198,$D198,$E198,$F198,2016,$I198+$J198,1,$H198,$G198*$H198,Options!$B$8)))","v":1150.1777962292999},{"$f":"IF(AND(OR(Calculations!$E$2=\"Orkney Health Board\",Calculations!$E$2=\"Orkney Islands Local Authority\"),$F198=1),0,IF(AND(OR(Calculations!$E$2=\"Shetland Health Board\",Calculations!$E$2=\"Western Isles Health Board\",Calculations!$E$2=\"Shetland Islands Local Authority\",Calculations!$E$2=\"Eilean Siar Local Authority\"),OR($F198=1,$F198=5)),0,hosp_count(VALUE(LEFT(Options!$B$24,2)),$C198,$E198,$F198,2016,$I198,1,$H198,$G198*$H198, Options!$B$8)))","v":{"$error":"#NAME?"}},{"$f":"IF(AND(OR(Calculations!$E$2=\"Orkney Health Board\",Calculations!$E$2=\"Orkney Islands Local Authority\"),$F198=1),0,IF(AND(OR(Calculations!$E$2=\"Shetland Health Board\",Calculations!$E$2=\"Western Isles Health Board\",Calculations!$E$2=\"Shetland Islands Local Authority\",Calculations!$E$2=\"Eilean Siar Local Authority\"),OR($F198=1,$F198=5)),0,hosp_count(VALUE(LEFT(Options!$B$24,2)),$C198,$E198,$F198,2016,$I198+$J198,1,$H198,$G198*$H198, Options!$B$8)))","v":{"$error":"#NAME?"}},{"$f":"IF(AND(OR(Calculations!$E$2=\"Orkney Health Board\",Calculations!$E$2=\"Orkney Islands Local Authority\"),$F198=1),0,IF(AND(OR(Calculations!$E$2=\"Shetland Health Board\",Calculations!$E$2=\"Western Isles Health Board\",Calculations!$E$2=\"Shetland Islands Local Authority\",Calculations!$E$2=\"Eilean Siar Local Authority\"),OR($F198=1,$F198=5)),0,prem_mort(VALUE(LEFT(Options!$B$24,2)),$C198,$E198,$F198,2016,$I198,1,$H198,$G198*$H198,Options!$B$8)))","v":23.277149231100001},{"$f":"IF(AND(OR(Calculations!$E$2=\"Orkney Health Board\",Calculations!$E$2=\"Orkney Islands Local Authority\"),$F198=1),0,IF(AND(OR(Calculations!$E$2=\"Shetland Health Board\",Calculations!$E$2=\"Western Isles Health Board\",Calculations!$E$2=\"Shetland Islands Local Authority\",Calculations!$E$2=\"Eilean Siar Local Authority\"),OR($F198=1,$F198=5)),0,prem_mort(VALUE(LEFT(Options!$B$24,2)),$C198,$E198,$F198,2016,$I198+$J198,1,$H198,$G198*$H198,Options!$B$8)))","v":23.082036232699998},69.034786259861207,68.456125015422032,3440.003192224628,3411.1685041500086,{"$error":"#NAME?"},{"$error":"#NAME?"},69.034786259861207,68.456125015422032,414208.71755916724,410736.75009253219,20640019.153347768,20467011.024900053,{"$error":"#NAME?"},{"$error":"#NAME?"},414208.71755916724,410736.75009253219,6000]
[null,"Male 30-34",31.981521999999998,78.061520000000002,"male",4,{"$f":"HLOOKUP(Calculations!$E$2,'Prevalence Rates'!$C$3:$BC$249,'Prevalence Rates'!$BD199,FALSE)","v":0.19700000000000004},{"$f":"HLOOKUP(Calculations!$E$2,'Population 2016'!$C$3:$BC$249,'Population 2016'!BD199,FALSE)","v":32346},0,{"$f":"HLOOKUP(Results!E$4,Targeting!$C$3:$F$249,Targeting!$G199,FALSE)","v":5311},{"$f":"IF(AND(OR(Calculations!$E$2=\"Orkney Health Board\",Calculations!$E$2=\"Orkney Islands Local Authority\"),$F199=1),0,IF(AND(OR(Calculations!$E$2=\"Shetland Health Board\",Calculations!$E$2=\"Western Isles Health Board\",Calculations!$E$2=\"Shetland Islands Local Authority\",Calculations!$E$2=\"Eilean Siar Local Authority\"),OR($F199=1,$F199=5)),0,new_ci(VALUE(LEFT(Options!$B$24,2)),$C199,$E199,$F199,2016,$I199,1,$H199,$G199*$H199,Options!$B$8)))","v":32.619129785699997},{"$f":"IF(AND(OR(Calculations!$E$2=\"Orkney Health Board\",Calculations!$E$2=\"Orkney Islands Local Authority\"),$F199=1),0,IF(AND(OR(Calculations!$E$2=\"Shetland Health Board\",Calculations!$E$2=\"Western Isles Health Board\",Calculations!$E$2=\"Shetland Islands Local Authority\",Calculations!$E$2=\"Eilean Siar Local Authority\"),OR($F199=1,$F199=5)),0,new_ci(VALUE(LEFT(Options!$B$24,2)),$C199,$E199,$F199,2016,$I199+$J199,1,$H199,$G199*$H199,Options!$B$8)))","v":32.345764649199999},{"$f":"IF(AND(OR(Calculations!$E$2=\"Orkney Health Board\",Calculations!$E$2=\"Orkney Islands Local Authority\"),$F199=1),0,IF(AND(OR(Calculations!$E$2=\"Shetland Health Board\",Calculations!$E$2=\"Western Isles Health Board\",Calculations!$E$2=\"Shetland Islands Local Authority\",Calculations!$E$2=\"Eilean Siar Local Authority\"),OR($F199=1,$F199=5)),0,new_yllv2(VALUE(LEFT(Options!$B$24,2)),$C199,$D199,$E199,$F199,2016,$I199,1,$H199,$G199*$H199,Options!$B$8)))","v":1470.4703055011},{"$f":"IF(AND(OR(Calculations!$E$2=\"Orkney Health Board\",Calculations!$E$2=\"Orkney Islands Local Authority\"),$F199=1),0,IF(AND(OR(Calculations!$E$2=\"Shetland Health Board\",Calculations!$E$2=\"Western Isles Health Board\",Calculations!$E$2=\"Shetland Islands Local Authority\",Calculations!$E$2=\"Eilean Siar Local Authority\"),OR($F199=1,$F199=5)),0,new_yllv2(VALUE(LEFT(Options!$B$24,2)),$C199,$D199,$E199,$F199,2016,$I199+$J199,1,$H199,$G199*$H199,Options!$B$8)))","v":1458.1470056943999},{"$f":"IF(AND(OR(Calculations!$E$2=\"Orkney Health Board\",Calculations!$E$2=\"Orkney Islands Local Authority\"),$F199=1),0,IF(AND(OR(Calculations!$E$2=\"Shetland Health Board\",Calculations!$E$2=\"Western Isles Health Board\",Calculations!$E$2=\"Shetland Islands Local Authority\",Calculations!$E$2=\"Eilean Siar Local Authority\"),OR($F199=1,$F199=5)),0,hosp_count(VALUE(LEFT(Options!$B$24,2)),$C199,$E199,$F199,2016,$I199,1,$H199,$G199*$H199, Options!$B$8)))","v":{"$error":"#NAME?"}},{"$f":"IF(AND(OR(Calculations!$E$2=\"Orkney Health Board\",Calculations!$E$2=\"Orkney Islands Local Authority\"),$F199=1),0,IF(AND(OR(Calculations!$E$2=\"Shetland Health Board\",Calculations!$E$2=\"Western Isles Health Board\",Calculations!$E$2=\"Shetland Islands Local Authority\",Calculations!$E$2=\"Eilean Siar Local Authority\"),OR($F199=1,$F199=5)),0,hosp_count(VALUE(LEFT(Options!$B$24,2)),$C199,$E199,$F199,2016,$I199+$J199,1,$H199,$G199*$H199, Options!$B$8)))","v":{"$error":"#NAME?"}},{"$f":"IF(AND(OR(Calculations!$E$2=\"Orkney Health Board\",Calculations!$E$2=\"Orkney Islands Local Authority\"),$F199=1),0,IF(AND(OR(Calculations!$E$2=\"Shetland Health Board\",Calculations!$E$2=\"Western Isles Health Board\",Calculations!$E$2=\"Shetland Islands Local Authority\",Calculations!$E$2=\"Eilean Siar Local Authority\"),OR($F199=1,$F199=5)),0,prem_mort(VALUE(LEFT(Options!$B$24,2)),$C199,$E199,$F199,2016,$I199,1,$H199,$G199*$H199,Options!$B$8)))","v":32.619129785699997},{"$f":"IF(AND(OR(Calculations!$E$2=\"Orkney Health Board\",Calculations!$E$2=\"Orkney Islands Local Authority\"),$F199=1),0,IF(AND(OR(Calculations!$E$2=\"Shetland Health Board\",Calculations!$E$2=\"Western Isles Health Board\",Calculations!$E$2=\"Shetland Islands Local Authority\",Calculations!$E$2=\"Eilean Siar Local Authority\"),OR($F199=1,$F199=5)),0,prem_mort(VALUE(LEFT(Options!$B$24,2)),$C199,$E199,$F199,2016,$I199+$J199,1,$H199,$G199*$H199,Options!$B$8)))","v":32.345764649199999},100.84440049990725,99.999272395968589,4546.0653728470297,4507.9669996116982,{"$error":"#NAME?"},{"$error":"#NAME?"},100.84440049990725,99.999272395968589,655488.60324939713,649995.27057379577,29549424.923505694,29301785.497476038,{"$error":"#NAME?"},{"$error":"#NAME?"},655488.60324939713,649995.27057379577,6500]
[null,"Male 35-39",36.926009999999998,78.336009999999987,"male",4,{"$f":"HLOOKUP(Calculations!$E$2,'Prevalence Rates'!$C$3:$BC$249,'Prevalence Rates'!$BD200,FALSE)","v":0.27200000000000002},{"$f":"HLOOKUP(Calculations!$E$2,'Population 2016'!$C$3:$BC$249,'Population 2016'!BD200,FALSE)","v":32021},0,{"$f":"HLOOKUP(Results!E$4,Targeting!$C$3:$F$249,Targeting!$G200,FALSE)","v":5258},{"$f":"IF(AND(OR(Calculations!$E$2=\"Orkney Health Board\",Calculations!$E$2=\"Orkney Islands Local Authority\"),$F200=1),0,IF(AND(OR(Calculations!$E$2=\"Shetland Health Board\",Calculations!$E$2=\"Western Isles Health Board\",Calculations!$E$2=\"Shetland Islands Local Authority\",Calculations!$E$2=\"Eilean Siar Local Authority\"),OR($F200=1,$F200=5)),0,new_ci(VALUE(LEFT(Options!$B$24,2)),$C200,$E200,$F200,2016,$I200,1,$H200,$G200*$H200,Options!$B$8)))","v":46.892646134899998},{"$f":"IF(AND(OR(Calculations!$E$2=\"Orkney Health Board\",Calculations!$E$2=\"Orkney Islands Local Authority\"),$F200=1),0,IF(AND(OR(Calculations!$E$2=\"Shetland Health Board\",Calculations!$E$2=\"Western Isles Health Board\",Calculations!$E$2=\"Shetland Islands Local Authority\",Calculations!$E$2=\"Eilean Siar Local Authority\"),OR($F200=1,$F200=5)),0,new_ci(VALUE(LEFT(Options!$B$24,2)),$C200,$E200,$F200,2016,$I200+$J200,1,$H200,$G200*$H200,Options!$B$8)))","v":46.5110725491},{"$f":"IF(AND(OR(Calculations!$E$2=\"Orkney Health Board\",Calculations!$E$2=\"Orkney Islands Local Authority\"),$F200=1),0,IF(AND(OR(Calculations!$E$2=\"Shetland Health Board\",Calculations!$E$2=\"Western Isles Health Board\",Calculations!$E$2=\"Shetland Islands Local Authority\",Calculations!$E$2=\"Eilean Siar Local Authority\"),OR($F200=1,$F200=5)),0,new_yllv2(VALUE(LEFT(Options!$B$24,2)),$C200,$D200,$E200,$F200,2016,$I200,1,$H200,$G200*$H200,Options!$B$8)))","v":1894.9318303113},{"$f":"IF(AND(OR(Calculations!$E$2=\"Orkney Health Board\",Calculations!$E$2=\"Orkney Islands Local Authority\"),$F200=1),0,IF(AND(OR(Calculations!$E$2=\"Shetland Health Board\",Calculations!$E$2=\"Western Isles Health Board\",Calculations!$E$2=\"Shetland Islands Local Authority\",Calculations!$E$2=\"Eilean Siar Local Authority\"),OR($F200=1,$F200=5)),0,new_yllv2(VALUE(LEFT(Options!$B$24,2)),$C200,$D200,$E200,$F200,2016,$I200+$J200,1,$H200,$G200*$H200,Options!$B$8)))","v":1879.5124417090999},{"$f":"IF(AND(OR(Calculations!$E$2=\"Orkney Health Board\",Calculations!$E$2=\"Orkney Islands Local Authority\"),$F200=1),0,IF(AND(OR(Calculations!$E$2=\"Shetland Health Board\",Calculations!$E$2=\"Western Isles Health Board\",Calculations!$E$2=\"Shetland Islands Local Authority\",Calculations!$E$2=\"Eilean Siar Local Authority\"),OR($F200=1,$F200=5)),0,hosp_count(VALUE(LEFT(Options!$B$24,2)),$C200,$E200,$F200,2016,$I200,1,$H200,$G200*$H200, Options!$B$8)))","v":{"$error":"#NAME?"}},{"$f":"IF(AND(OR(Calculations!$E$2=\"Orkney Health Board\",Calculations!$E$2=\"Orkney Islands Local Authority\"),$F200=1),0,IF(AND(OR(Calculations!$E$2=\"Shetland Health Board\",Calculations!$E$2=\"Western Isles Health Board\",Calculations!$E$2=\"Shetland Islands Local Authority\",Calculations!$E$2=\"Eilean Siar Local Authority\"),OR($F200=1,$F200=5)),0,hosp_count(VALUE(LEFT(Options!$B$24,2)),$C200,$E200,$F200,2016,$I200+$J200,1,$H200,$G200*$H200, Options!$B$8)))","v":{"$error":"#NAME?"}},{"$f":"IF(AND(OR(Calculations!$E$2=\"Orkney Health Board\",Calculations!$E$2=\"Orkney Islands Local Authority\"),$F200=1),0,IF(AND(OR(Calculations!$E$2=\"Shetland Health Board\",Calculations!$E$2=\"Western Isles Health Board\",Calculations!$E$2=\"Shetland Islands Local Authority\",Calculations!$E$2=\"Eilean Siar Local Authority\"),OR($F200=1,$F200=5)),0,prem_mort(VALUE(LEFT(Options!$B$24,2)),$C200,$E200,$F200,2016,$I200,1,$H200,$G200*$H200,Options!$B$8)))","v":46.892646134899998},{"$f":"IF(AND(OR(Calculations!$E$2=\"Orkney Health Board\",Calculations!$E$2=\"Orkney Islands Local Authority\"),$F200=1),0,IF(AND(OR(Calculations!$E$2=\"Shetland Health Board\",Calculations!$E$2=\"Western Isles Health Board\",Calculations!$E$2=\"Shetland Islands Local Authority\",Calculations!$E$2=\"Eilean Siar Local Authority\"),OR($F200=1,$F200=5)),0,prem_mort(VALUE(LEFT(Options!$B$24,2)),$C200,$E200,$F200,2016,$I200+$J200,1,$H200,$G200*$H200,Options!$B$8)))","v":46.5110725491},146.44341568002247,145.25178023515818,5917.7784276296807,5869.6244393026454,{"$error":"#NAME?"},{"$error":"#NAME?"},146.44341568002247,145.25178023515818,1025103.9097601572,1016762.4616461073,41424448.993407764,41087371.075118519,{"$error":"#NAME?"},{"$error":"#NAME?"},1025103.9097601572,1016762.4616461073,7000]
[null,"Male 40-44",42.067703000000002,78.907700000000006,"male",4,{"$f":"HLOOKUP(Calculations!$E$2,'Prevalence Rates'!$C$3:$BC$249,'Prevalence Rates'!$BD201,FALSE)","v":0.27200000000000002},{"$f":"HLOOKUP(Calculations!$E$2,'Population 2016'!$C$3:$BC$249,'Population 2016'!BD201,FALSE)","v":34348},0,{"$f":"HLOOKUP(Results!E$4,Targeting!$C$3:$F$249,Targeting!$G201,FALSE)","v":5640},{"$f":"IF(AND(OR(Calculations!$E$2=\"Orkney Health Board\",Calculations!$E$2=\"Orkney Islands Local Authority\"),$F201=1),0,IF(AND(OR(Calculations!$E$2=\"Shetland Health Board\",Calculations!$E$2=\"Western Isles Health Board\",Calculations!$E$2=\"Shetland Islands Local Authority\",Calculations!$E$2=\"Eilean Siar Local Authority\"),OR($F201=1,$F201=5)),0,new_ci(VALUE(LEFT(Options!$B$24,2)),$C201,$E201,$F201,2016,$I201,1,$H201,$G201*$H201,Options!$B$8)))","v":74.131543521599994},{"$f":"IF(AND(OR(Calculations!$E$2=\"Orkney Health Board\",Calculations!$E$2=\"Orkney Islands Local Authority\"),$F201=1),0,IF(AND(OR(Calculations!$E$2=\"Shetland Health Board\",Calculations!$E$2=\"Western Isles Health Board\",Calculations!$E$2=\"Shetland Islands Local Authority\",Calculations!$E$2=\"Eilean Siar Local Authority\"),OR($F201=1,$F201=5)),0,new_ci(VALUE(LEFT(Options!$B$24,2)),$C201,$E201,$F201,2016,$I201+$J201,1,$H201,$G201*$H201,Options!$B$8)))","v":73.5286433136},{"$f":"IF(AND(OR(Calculations!$E$2=\"Orkney Health Board\",Calculations!$E$2=\"Orkney Islands Local Authority\"),$F201=1),0,IF(AND(OR(Calculations!$E$2=\"Shetland Health Board\",Calculations!$E$2=\"Western Isles Health Board\",Calculations!$E$2=\"Shetland Islands Local Authority\",Calculations!$E$2=\"Eilean Siar Local Authority\"),OR($F201=1,$F201=5)),0,new_yllv2(VALUE(LEFT(Options!$B$24,2)),$C201,$D201,$E201,$F201,2016,$I201,1,$H201,$G201*$H201,Options!$B$8)))","v":2656.8742974195002},{"$f":"IF(AND(OR(Calculations!$E$2=\"Orkney Health Board\",Calculations!$E$2=\"Orkney Islands Local Authority\"),$F201=1),0,IF(AND(OR(Calculations!$E$2=\"Shetland Health Board\",Calculations!$E$2=\"Western Isles Health Board\",Calculations!$E$2=\"Shetland Islands Local Authority\",Calculations!$E$2=\"Eilean Siar Local Authority\"),OR($F201=1,$F201=5)),0,new_yllv2(VALUE(LEFT(Options!$B$24,2)),$C201,$D201,$E201,$F201,2016,$I201+$J201,1,$H201,$G201*$H201,Options!$B$8)))","v":2635.2663557735},{"$f":"IF(AND(OR(Calculations!$E$2=\"Orkney Health Board\",Calculations!$E$2=\"Orkney Islands Local Authority\"),$F201=1),0,IF(AND(OR(Calculations!$E$2=\"Shetland Health Board\",Calculations!$E$2=\"Western Isles Health Board\",Calculations!$E$2=\"Shetland Islands Local Authority\",Calculations!$E$2=\"Eilean Siar Local Authority\"),OR($F201=1,$F201=5)),0,hosp_count(VALUE(LEFT(Options!$B$24,2)),$C201,$E201,$F201,2016,$I201,1,$H201,$G201*$H201, Options!$B$8)))","v":{"$error":"#NAME?"}},{"$f":"IF(AND(OR(Calculations!$E$2=\"Orkney Health Board\",Calculations!$E$2=\"Orkney Islands Local Authority\"),$F201=1),0,IF(AND(OR(Calculations!$E$2=\"Shetland Health Board\",Calculations!$E$2=\"Western Isles Health Board\",Calculations!$E$2=\"Shetland Islands Local Authority\",Calculations!$E$2=\"Eilean Siar Local Authority\"),OR($F201=1,$F201=5)),0,hosp_count(VALUE(LEFT(Options!$B$24,2)),$C201,$E201,$F201,2016,$I201+$J201,1,$H201,$G201*$H201, Options!$B$8)))","v":{"$error":"#NAME?"}},{"$f":"IF(AND(OR(Calculations!$E$2=\"Orkney Health Board\",Calculations!$E$2=\"Orkney Islands Local Authority\"),$F201=1),0,IF(AND(OR(Calculations!$E$2=\"Shetland Health Board\",Calculations!$E$2=\"Western Isles Health Board\",Calculations!$E$2=\"Shetland Islands Local Authority\",Calculations!$E$2=\"Eilean Siar Local Authority\"),OR($F201=1,$F201=5)),0,prem_mort(VALUE(LEFT(Options!$B$24,2)),$C201,$E201,$F201,2016,$I201,1,$H201,$G201*$H201,Options!$B$8)))","v":74.131543521599994},{"$f":"IF(AND(OR(Calculations!$E$2=\"Orkney Health Board\",Calculations!$E$2=\"Orkney Islands Local Authority\"),$F201=1),0,IF(AND(OR(Calculations!$E$2=\"Shetland Health Board\",Calculations!$E$2=\"Western Isles Health Board\",Calculations!$E$2=\"Shetland Islands Local Authority\",Calculations!$E$2=\"Eilean Siar Local Authority\"),OR($F201=1,$F201=5)),0,prem_mort(VALUE(LEFT(Options!$B$24,2)),$C201,$E201,$F201,2016,$I201+$J201,1,$H201,$G201*$H201,Options!$B$8)))","v":73.5286433136},215.82491999999999,214.06964980086178,7735.164485325201,7672.2556066539537,{"$error":"#NAME?"},{"$error":"#NAME?"},215.82491999999999,214.06964980086178,1510774.44,1498487.5486060325,54146151.397276409,53705789.246577673,{"$error":"#NAME?"},{"$error":"#NAME?"},1510774.44,1498487.5486060325,7000]
[null,"Male 45-49",47.038155000000003,79.418149999999997,"male",4,{"$f":"HLOOKUP(Calculations!$E$2,'Prevalence Rates'!$C$3:$BC$249,'Prevalence Rates'!$BD202,FALSE)","v":0.32},{"$f":"HLOOKUP(Calculations!$E$2,'Population 2016'!$C$3:$BC$249,'Population 2016'!BD202,FALSE)","v":39846},0,{"$f":"HLOOKUP(Results!E$4,Targeting!$C$3:$F$249,Targeting!$G202,FALSE)","v":6542},{"$f":"IF(AND(OR(Calculations!$E$2=\"Orkney Health Board\",Calculations!$E$2=\"Orkney Islands Local Authority\"),$F202=1),0,IF(AND(OR(Calculations!$E$2=\"Shetland Health Board\",Calculations!$E$2=\"Western Isles Health Board\",Calculations!$E$2=\"Shetland Islands Local Authority\",Calculations!$E$2=\"Eilean Siar Local Authority\"),OR($F202=1,$F202=5)),0,new_ci(VALUE(LEFT(Options!$B$24,2)),$C202,$E202,$F202,2016,$I202,1,$H202,$G202*$H202,Options!$B$8)))","v":125.0943598969},{"$f":"IF(AND(OR(Calculations!$E$2=\"Orkney Health Board\",Calculations!$E$2=\"Orkney Islands Local Authority\"),$F202=1),0,IF(AND(OR(Calculations!$E$2=\"Shetland Health Board\",Calculations!$E$2=\"Western Isles Health Board\",Calculations!$E$2=\"Shetland Islands Local Authority\",Calculations!$E$2=\"Eilean Siar Local Authority\"),OR($F202=1,$F202=5)),0,new_ci(VALUE(LEFT(Options!$B$24,2)),$C202,$E202,$F202,2016,$I202+$J202,1,$H202,$G202*$H202,Options!$B$8)))","v":124.0961815369},{"$f":"IF(AND(OR(Calculations!$E$2=\"Orkney Health Board\",Calculations!$E$2=\"Orkney Islands Local Authority\"),$F202=1),0,IF(AND(OR(Calculations!$E$2=\"Shetland Health Board\",Calculations!$E$2=\"Western Isles Health Board\",Calculations!$E$2=\"Shetland Islands Local Authority\",Calculations!$E$2=\"Eilean Siar Local Authority\"),OR($F202=1,$F202=5)),0,new_yllv2(VALUE(LEFT(Options!$B$24,2)),$C202,$D202,$E202,$F202,2016,$I202,1,$H202,$G202*$H202,Options!$B$8)))","v":3925.4603880928998},{"$f":"IF(AND(OR(Calculations!$E$2=\"Orkney Health Board\",Calculations!$E$2=\"Orkney Islands Local Authority\"),$F202=1),0,IF(AND(OR(Calculations!$E$2=\"Shetland Health Board\",Calculations!$E$2=\"Western Isles Health Board\",Calculations!$E$2=\"Shetland Islands Local Authority\",Calculations!$E$2=\"Eilean Siar Local Authority\"),OR($F202=1,$F202=5)),0,new_yllv2(VALUE(LEFT(Options!$B$24,2)),$C202,$D202,$E202,$F202,2016,$I202+$J202,1,$H202,$G202*$H202,Options!$B$8)))","v":3894.1375561469999},{"$f":"IF(AND(OR(Calculations!$E$2=\"Orkney Health Board\",Calculations!$E$2=\"Orkney Islands Local Authority\"),$F202=1),0,IF(AND(OR(Calculations!$E$2=\"Shetland Health Board\",Calculations!$E$2=\"Western Isles Health Board\",Calculations!$E$2=\"Shetland Islands Local Authority\",Calculations!$E$2=\"Eilean Siar Local Authority\"),OR($F202=1,$F202=5)),0,hosp_count(VALUE(LEFT(Options!$B$24,2)),$C202,$E202,$F202,2016,$I202,1,$H202,$G202*$H202, Options!$B$8)))","v":{"$error":"#NAME?"}},{"$f":"IF(AND(OR(Calculations!$E$2=\"Orkney Health Board\",Calculations!$E$2=\"Orkney Islands Local Authority\"),$F202=1),0,IF(AND(OR(Calculations!$E$2=\"Shetland Health Board\",Calculations!$E$2=\"Western Isles Health Board\",Calculations!$E$2=\"Shetland Islands Local Authority\",Calculations!$E$2=\"Eilean Siar Local Authority\"),OR($F202=1,$F202=5)),0,hosp_count(VALUE(LEFT(Options!$B$24,2)),$C202,$E202,$F202,2016,$I202+$J202,1,$H202,$G202*$H202, Options!$B$8)))","v":{"$error":"#NAME?"}},{"$f":"IF(AND(OR(Calculations!$E$2=\"Orkney Health Board\",Calculations!$E$2=\"Orkney Islands Local Authority\"),$F202=1),0,IF(AND(OR(Calculations!$E$2=\"Shetland Health Board\",Calculations!$E$2=\"Western Isles Health Board\",Calculations!$E$2=\"Shetland Islands Local Authority\",Calculations!$E$2=\"Eilean Siar Local Authority\"),OR($F202=1,$F202=5)),0,prem_mort(VALUE(LEFT(Options!$B$24,2)),$C202,$E202,$F202,2016,$I202,1,$H202,$G202*$H202,Options!$B$8)))","v":125.0943598969},{"$f":"IF(AND(OR(Calculations!$E$2=\"Orkney Health Board\",Calculations!$E$2=\"Orkney Islands Local Authority\"),$F202=1),0,IF(AND(OR(Calculations!$E$2=\"Shetland Health Board\",Calculations!$E$2=\"Western Isles Health Board\",Calculations!$E$2=\"Shetland Islands Local Authority\",Calculations!$E$2=\"Eilean Siar Local Authority\"),OR($F202=1,$F202=5)),0,prem_mort(VALUE(LEFT(Options!$B$24,2)),$C202,$E202,$F202,2016,$I202+$J202,1,$H202,$G202*$H202,Options!$B$8)))","v":124.0961815369},313.9445863998896,311.43949590147071,9851.579551505547,9772.9698241906335,{"$error":"#NAME?"},{"$error":"#NAME?"},313.9445863998896,311.43949590147071,2197612.1047992273,2180076.4713102952,68961056.860538825,68410788.769334435,{"$error":"#NAME?"},{"$error":"#NAME?"},2197612.1047992273,2180076.4713102952,7000]
[null,"Male 50-54",51.998646000000001,79.988649999999993,"male",4,{"$f":"HLOOKUP(Calculations!$E$2,'Prevalence Rates'!$C$3:$BC$249,'Prevalence Rates'!$BD203,FALSE)","v":0.32},{"$f":"HLOOKUP(Calculations!$E$2,'Population 2016'!$C$3:$BC$249,'Population 2016'!BD203,FALSE)","v":42258},0,{"$f":"HLOOKUP(Results!E$4,Targeting!$C$3:$F$249,Targeting!$G203,FALSE)","v":6938},{"$f":"IF(AND(OR(Calculations!$E$2=\"Orkney Health Board\",Calculations!$E$2=\"Orkney Islands Local Authority\"),$F203=1),0,IF(AND(OR(Calculations!$E$2=\"Shetland Health Board\",Calculations!$E$2=\"Western Isles Health Board\",Calculations!$E$2=\"Shetland Islands Local Authority\",Calculations!$E$2=\"Eilean Siar Local Authority\"),OR($F203=1,$F203=5)),0,new_ci(VALUE(LEFT(Options!$B$24,2)),$C203,$E203,$F203,2016,$I203,1,$H203,$G203*$H203,Options!$B$8)))","v":192.79161695670001},{"$f":"IF(AND(OR(Calculations!$E$2=\"Orkney Health Board\",Calculations!$E$2=\"Orkney Islands Local Authority\"),$F203=1),0,IF(AND(OR(Calculations!$E$2=\"Shetland Health Board\",Calculations!$E$2=\"Western Isles Health Board\",Calculations!$E$2=\"Shetland Islands Local Authority\",Calculations!$E$2=\"Eilean Siar Local Authority\"),OR($F203=1,$F203=5)),0,new_ci(VALUE(LEFT(Options!$B$24,2)),$C203,$E203,$F203,2016,$I203+$J203,1,$H203,$G203*$H203,Options!$B$8)))","v":191.25483053030001},{"$f":"IF(AND(OR(Calculations!$E$2=\"Orkney Health Board\",Calculations!$E$2=\"Orkney Islands Local Authority\"),$F203=1),0,IF(AND(OR(Calculations!$E$2=\"Shetland Health Board\",Calculations!$E$2=\"Western Isles Health Board\",Calculations!$E$2=\"Shetland Islands Local Authority\",Calculations!$E$2=\"Eilean Siar Local Authority\"),OR($F203=1,$F203=5)),0,new_yllv2(VALUE(LEFT(Options!$B$24,2)),$C203,$D203,$E203,$F203,2016,$I203,1,$H203,$G203*$H203,Options!$B$8)))","v":5203.4465128277998},{"$f":"IF(AND(OR(Calculations!$E$2=\"Orkney Health Board\",Calculations!$E$2=\"Orkney Islands Local Authority\"),$F203=1),0,IF(AND(OR(Calculations!$E$2=\"Shetland Health Board\",Calculations!$E$2=\"Western Isles Health Board\",Calculations!$E$2=\"Shetland Islands Local Authority\",Calculations!$E$2=\"Eilean Siar Local Authority\"),OR($F203=1,$F203=5)),0,new_yllv2(VALUE(LEFT(Options!$B$24,2)),$C203,$D203,$E203,$F203,2016,$I203+$J203,1,$H203,$G203*$H203,Options!$B$8)))","v":5161.9686410321001},{"$f":"IF(AND(OR(Calculations!$E$2=\"Orkney Health Board\",Calculations!$E$2=\"Orkney Islands Local Authority\"),$F203=1),0,IF(AND(OR(Calculations!$E$2=\"Shetland Health Board\",Calculations!$E$2=\"Western Isles Health Board\",Calculations!$E$2=\"Shetland Islands Local Authority\",Calculations!$E$2=\"Eilean Siar Local Authority\"),OR($F203=1,$F203=5)),0,hosp_count(VALUE(LEFT(Options!$B$24,2)),$C203,$E203,$F203,2016,$I203,1,$H203,$G203*$H203, Options!$B$8)))","v":{"$error":"#NAME?"}},{"$f":"IF(AND(OR(Calculations!$E$2=\"Orkney Health Board\",Calculations!$E$2=\"Orkney Islands Local Authority\"),$F203=1),0,IF(AND(OR(Calculations!$E$2=\"Shetland Health Board\",Calculations!$E$2=\"Western Isles Health Board\",Calculations!$E$2=\"Shetland Islands Local Authority\",Calculations!$E$2=\"Eilean Siar Local Authority\"),OR($F203=1,$F203=5)),0,hosp_count(VALUE(LEFT(Options!$B$24,2)),$C203,$E203,$F203,2016,$I203+$J203,1,$H203,$G203*$H203, Options!$B$8)))","v":{"$error":"#NAME?"}},{"$f":"IF(AND(OR(Calculations!$E$2=\"Orkney Health Board\",Calculations!$E$2=\"Orkney Islands Local Authority\"),$F203=1),0,IF(AND(OR(Calculations!$E$2=\"Shetland Health Board\",Calculations!$E$2=\"Western Isles Health Board\",Calculations!$E$2=\"Shetland Islands Local Authority\",Calculations!$E$2=\"Eilean Siar Local Authority\"),OR($F203=1,$F203=5)),0,prem_mort(VALUE(LEFT(Options!$B$24,2)),$C203,$E203,$F203,2016,$I203,1,$H203,$G203*$H203,Options!$B$8)))","v":192.79161695670001},{"$f":"IF(AND(OR(Calculations!$E$2=\"Orkney Health Board\",Calculations!$E$2=\"Orkney Islands Local Authority\"),$F203=1),0,IF(AND(OR(Calculations!$E$2=\"Shetland Health Board\",Calculations!$E$2=\"Western Isles Health Board\",Calculations!$E$2=\"Shetland Islands Local Authority\",Calculations!$E$2=\"Eilean Siar Local Authority\"),OR($F203=1,$F203=5)),0,prem_mort(VALUE(LEFT(Options!$B$24,2)),$C203,$E203,$F203,2016,$I203+$J203,1,$H203,$G203*$H203,Options!$B$8)))","v":191.25483053030001},456.22513360002841,452.58845787850828,12313.518180765299,12215.364288494724,{"$error":"#NAME?"},{"$error":"#NAME?"},456.22513360002841,452.58845787850828,3193575.935200199,3168119.2051495579,86194627.265357092,85507550.019463062,{"$error":"#NAME?"},{"$error":"#NAME?"},3193575.935200199,3168119.2051495579,7000]
[null,"Male 55-59",56.950867000000002,80.660870000000003,"male",4,{"$f":"HLOOKUP(Calculations!$E$2,'Prevalence Rates'!$C$3:$BC$249,'Prevalence Rates'!$BD204,FALSE)","v":0.40500000000000003},{"$f":"HLOOKUP(Calculations!$E$2,'Population 2016'!$C$3:$BC$249,'Population 2016'!BD204,FALSE)","v":38483},0,{"$f":"HLOOKUP(Results!E$4,Targeting!$C$3:$F$249,Targeting!$G204,FALSE)","v":6318},{"$f":"IF(AND(OR(Calculations!$E$2=\"Orkney Health Board\",Calculations!$E$2=\"Orkney Islands Local Authority\"),$F204=1),0,IF(AND(OR(Calculations!$E$2=\"Shetland Health Board\",Calculations!$E$2=\"Western Isles Health Board\",Calculations!$E$2=\"Shetland Islands Local Authority\",Calculations!$E$2=\"Eilean Siar Local Authority\"),OR($F204=1,$F204=5)),0,new_ci(VALUE(LEFT(Options!$B$24,2)),$C204,$E204,$F204,2016,$I204,1,$H204,$G204*$H204,Options!$B$8)))","v":254.8926572634},{"$f":"IF(AND(OR(Calculations!$E$2=\"Orkney Health Board\",Calculations!$E$2=\"Orkney Islands Local Authority\"),$F204=1),0,IF(AND(OR(Calculations!$E$2=\"Shetland Health Board\",Calculations!$E$2=\"Western Isles Health Board\",Calculations!$E$2=\"Shetland Islands Local Authority\",Calculations!$E$2=\"Eilean Siar Local Authority\"),OR($F204=1,$F204=5)),0,new_ci(VALUE(LEFT(Options!$B$24,2)),$C204,$E204,$F204,2016,$I204+$J204,1,$H204,$G204*$H204,Options!$B$8)))","v":252.92645522820001},{"$f":"IF(AND(OR(Calculations!$E$2=\"Orkney Health Board\",Calculations!$E$2=\"Orkney Islands Local Authority\"),$F204=1),0,IF(AND(OR(Calculations!$E$2=\"Shetland Health Board\",Calculations!$E$2=\"Western Isles Health Board\",Calculations!$E$2=\"Shetland Islands Local Authority\",Calculations!$E$2=\"Eilean Siar Local Authority\"),OR($F204=1,$F204=5)),0,new_yllv2(VALUE(LEFT(Options!$B$24,2)),$C204,$D204,$E204,$F204,2016,$I204,1,$H204,$G204*$H204,Options!$B$8)))","v":5788.6130111297998},{"$f":"IF(AND(OR(Calculations!$E$2=\"Orkney Health Board\",Calculations!$E$2=\"Orkney Islands Local Authority\"),$F204=1),0,IF(AND(OR(Calculations!$E$2=\"Shetland Health Board\",Calculations!$E$2=\"Western Isles Health Board\",Calculations!$E$2=\"Shetland Islands Local Authority\",Calculations!$E$2=\"Eilean Siar Local Authority\"),OR($F204=1,$F204=5)),0,new_yllv2(VALUE(LEFT(Options!$B$24,2)),$C204,$D204,$E204,$F204,2016,$I204+$J204,1,$H204,$G204*$H204,Options!$B$8)))","v":5743.9605570118001},{"$f":"IF(AND(OR(Calculations!$E$2=\"Orkney Health Board\",Calculations!$E$2=\"Orkney Islands Local Authority\"),$F204=1),0,IF(AND(OR(Calculations!$E$2=\"Shetland Health Board\",Calculations!$E$2=\"Western Isles Health Board\",Calculations!$E$2=\"Shetland Islands Local Authority\",Calculations!$E$2=\"Eilean Siar Local Authority\"),OR($F204=1,$F204=5)),0,hosp_count(VALUE(LEFT(Options!$B$24,2)),$C204,$E204,$F204,2016,$I204,1,$H204,$G204*$H204, Options!$B$8)))","v":{"$error":"#NAME?"}},{"$f":"IF(AND(OR(Calculations!$E$2=\"Orkney Health Board\",Calculations!$E$2=\"Orkney Islands Local Authority\"),$F204=1),0,IF(AND(OR(Calculations!$E$2=\"Shetland Health Board\",Calculations!$E$2=\"Western Isles Health Board\",Calculations!$E$2=\"Shetland Islands Local Authority\",Calculations!$E$2=\"Eilean Siar Local Authority\"),OR($F204=1,$F204=5)),0,hosp_count(VALUE(LEFT(Options!$B$24,2)),$C204,$E204,$F204,2016,$I204+$J204,1,$H204,$G204*$H204, Options!$B$8)))","v":{"$error":"#NAME?"}},{"$f":"IF(AND(OR(Calculations!$E$2=\"Orkney Health Board\",Calculations!$E$2=\"Orkney Islands Local Authority\"),$F204=1),0,IF(AND(OR(Calculations!$E$2=\"Shetland Health Board\",Calculations!$E$2=\"Western Isles Health Board\",Calculations!$E$2=\"Shetland Islands Local Authority\",Calculations!$E$2=\"Eilean Siar Local Authority\"),OR($F204=1,$F204=5)),0,prem_mort(VALUE(LEFT(Options!$B$24,2)),$C204,$E204,$F204,2016,$I204,1,$H204,$G204*$H204,Options!$B$8)))","v":254.8926572634},{"$f":"IF(AND(OR(Calculations!$E$2=\"Orkney Health Board\",Calculations!$E$2=\"Orkney Islands Local Authority\"),$F204=1),0,IF(AND(OR(Calculations!$E$2=\"Shetland Health Board\",Calculations!$E$2=\"Western Isles Health Board\",Calculations!$E$2=\"Shetland Islands Local Authority\",Calculations!$E$2=\"Eilean Siar Local Authority\"),OR($F204=1,$F204=5)),0,prem_mort(VALUE(LEFT(Options!$B$24,2)),$C204,$E204,$F204,2016,$I204+$J204,1,$H204,$G204*$H204,Options!$B$8)))","v":252.92645522820001},662.35131685003762,657.2420425335863,15042.000392718342,14925.968757663903,{"$error":"#NAME?"},{"$error":"#NAME?"},662.35131685003762,657.2420425335863,4305283.5595252449,4272073.2764683105,97773002.552669227,97018796.924815372,{"$error":"#NAME?"},{"$error":"#NAME?"},4305283.5595252449,4272073.2764683105,6500]
[null,"Male 60-64",61.942988999999997,81.612989999999996,"male",4,{"$f":"HLOOKUP(Calculations!$E$2,'Prevalence Rates'!$C$3:$BC$249,'Prevalence Rates'!$BD205,FALSE)","v":0.40500000000000003},{"$f":"HLOOKUP(Calculations!$E$2,'Population 2016'!$C$3:$BC$249,'Population 2016'!BD205,FALSE)","v":33820},0,{"$f":"HLOOKUP(Results!E$4,Targeting!$C$3:$F$249,Targeting!$G205,FALSE)","v":5553},{"$f":"IF(AND(OR(Calculations!$E$2=\"Orkney Health Board\",Calculations!$E$2=\"Orkney Islands Local Authority\"),$F205=1),0,IF(AND(OR(Calculations!$E$2=\"Shetland Health Board\",Calculations!$E$2=\"Western Isles Health Board\",Calculations!$E$2=\"Shetland Islands Local Authority\",Calculations!$E$2=\"Eilean Siar Local Authority\"),OR($F205=1,$F205=5)),0,new_ci(VALUE(LEFT(Options!$B$24,2)),$C205,$E205,$F205,2016,$I205,1,$H205,$G205*$H205,Options!$B$8)))","v":326.03489102560002},{"$f":"IF(AND(OR(Calculations!$E$2=\"Orkney Health Board\",Calculations!$E$2=\"Orkney Islands Local Authority\"),$F205=1),0,IF(AND(OR(Calculations!$E$2=\"Shetland Health Board\",Calculations!$E$2=\"Western Isles Health Board\",Calculations!$E$2=\"Shetland Islands Local Authority\",Calculations!$E$2=\"Eilean Siar Local Authority\"),OR($F205=1,$F205=5)),0,new_ci(VALUE(LEFT(Options!$B$24,2)),$C205,$E205,$F205,2016,$I205+$J205,1,$H205,$G205*$H205,Options!$B$8)))","v":323.524845067},{"$f":"IF(AND(OR(Calculations!$E$2=\"Orkney Health Board\",Calculations!$E$2=\"Orkney Islands Local Authority\"),$F205=1),0,IF(AND(OR(Calculations!$E$2=\"Shetland Health Board\",Calculations!$E$2=\"Western Isles Health Board\",Calculations!$E$2=\"Shetland Islands Local Authority\",Calculations!$E$2=\"Eilean Siar Local Authority\"),OR($F205=1,$F205=5)),0,new_yllv2(VALUE(LEFT(Options!$B$24,2)),$C205,$D205,$E205,$F205,2016,$I205,1,$H205,$G205*$H205,Options!$B$8)))","v":6087.0717414827996},{"$f":"IF(AND(OR(Calculations!$E$2=\"Orkney Health Board\",Calculations!$E$2=\"Orkney Islands Local Authority\"),$F205=1),0,IF(AND(OR(Calculations!$E$2=\"Shetland Health Board\",Calculations!$E$2=\"Western Isles Health Board\",Calculations!$E$2=\"Shetland Islands Local Authority\",Calculations!$E$2=\"Eilean Siar Local Authority\"),OR($F205=1,$F205=5)),0,new_yllv2(VALUE(LEFT(Options!$B$24,2)),$C205,$D205,$E205,$F205,2016,$I205+$J205,1,$H205,$G205*$H205,Options!$B$8)))","v":6040.2091809256999},{"$f":"IF(AND(OR(Calculations!$E$2=\"Orkney Health Board\",Calculations!$E$2=\"Orkney Islands Local Authority\"),$F205=1),0,IF(AND(OR(Calculations!$E$2=\"Shetland Health Board\",Calculations!$E$2=\"Western Isles Health Board\",Calculations!$E$2=\"Shetland Islands Local Authority\",Calculations!$E$2=\"Eilean Siar Local Authority\"),OR($F205=1,$F205=5)),0,hosp_count(VALUE(LEFT(Options!$B$24,2)),$C205,$E205,$F205,2016,$I205,1,$H205,$G205*$H205, Options!$B$8)))","v":{"$error":"#NAME?"}},{"$f":"IF(AND(OR(Calculations!$E$2=\"Orkney Health Board\",Calculations!$E$2=\"Orkney Islands Local Authority\"),$F205=1),0,IF(AND(OR(Calculations!$E$2=\"Shetland Health Board\",Calculations!$E$2=\"Western Isles Health Board\",Calculations!$E$2=\"Shetland Islands Local Authority\",Calculations!$E$2=\"Eilean Siar Local Authority\"),OR($F205=1,$F205=5)),0,hosp_count(VALUE(LEFT(Options!$B$24,2)),$C205,$E205,$F205,2016,$I205+$J205,1,$H205,$G205*$H205, Options!$B$8)))","v":{"$error":"#NAME?"}},{"$f":"IF(AND(OR(Calculations!$E$2=\"Orkney Health Board\",Calculations!$E$2=\"Orkney Islands Local Authority\"),$F205=1),0,IF(AND(OR(Calculations!$E$2=\"Shetland Health Board\",Calculations!$E$2=\"Western Isles Health Board\",Calculations!$E$2=\"Shetland Islands Local Authority\",Calculations!$E$2=\"Eilean Siar Local Authority\"),OR($F205=1,$F205=5)),0,prem_mort(VALUE(LEFT(Options!$B$24,2)),$C205,$E205,$F205,2016,$I205,1,$H205,$G205*$H205,Options!$B$8)))","v":326.03489102560002},{"$f":"IF(AND(OR(Calculations!$E$2=\"Orkney Health Board\",Calculations!$E$2=\"Orkney Islands Local Authority\"),$F205=1),0,IF(AND(OR(Calculations!$E$2=\"Shetland Health Board\",Calculations!$E$2=\"Western Isles Health Board\",Calculations!$E$2=\"Shetland Islands Local Authority\",Calculations!$E$2=\"Eilean Siar Local Authority\"),OR($F205=1,$F205=5)),0,prem_mort(VALUE(LEFT(Options!$B$24,2)),$C205,$E205,$F205,2016,$I205+$J205,1,$H205,$G205*$H205,Options!$B$8)))","v":323.524845067},964.02983745002962,956.60805756061507,17998.438029221761,17859.873391264635,{"$error":"#NAME?"},{"$error":"#NAME?"},964.02983745002962,956.60805756061507,5784179.0247001778,5739648.3453636905,107990628.17533056,107159240.34758781,{"$error":"#NAME?"},{"$error":"#NAME?"},5784179.0247001778,5739648.3453636905,6000]
[null,"Male 65-69",67.054419999999993,82.954419999999999,"male",4,{"$f":"HLOOKUP(Calculations!$E$2,'Prevalence Rates'!$C$3:$BC$249,'Prevalence Rates'!$BD206,FALSE)","v":0.46500000000000002},{"$f":"HLOOKUP(Calculations!$E$2,'Population 2016'!$C$3:$BC$249,'Population 2016'!BD206,FALSE)","v":33114},0,{"$f":"HLOOKUP(Results!E$4,Targeting!$C$3:$F$249,Targeting!$G206,FALSE)","v":5437},{"$f":"IF(AND(OR(Calculations!$E$2=\"Orkney Health Board\",Calculations!$E$2=\"Orkney Islands Local Authority\"),$F206=1),0,IF(AND(OR(Calculations!$E$2=\"Shetland Health Board\",Calculations!$E$2=\"Western Isles Health Board\",Calculations!$E$2=\"Shetland Islands Local Authority\",Calculations!$E$2=\"Eilean Siar Local Authority\"),OR($F206=1,$F206=5)),0,new_ci(VALUE(LEFT(Options!$B$24,2)),$C206,$E206,$F206,2016,$I206,1,$H206,$G206*$H206,Options!$B$8)))","v":468.4656366566},{"$f":"IF(AND(OR(Calculations!$E$2=\"Orkney Health Board\",Calculations!$E$2=\"Orkney Islands Local Authority\"),$F206=1),0,IF(AND(OR(Calculations!$E$2=\"Shetland Health Board\",Calculations!$E$2=\"Western Isles Health Board\",Calculations!$E$2=\"Shetland Islands Local Authority\",Calculations!$E$2=\"Eilean Siar Local Authority\"),OR($F206=1,$F206=5)),0,new_ci(VALUE(LEFT(Options!$B$24,2)),$C206,$E206,$F206,2016,$I206+$J206,1,$H206,$G206*$H206,Options!$B$8)))","v":464.94614585519997},{"$f":"IF(AND(OR(Calculations!$E$2=\"Orkney Health Board\",Calculations!$E$2=\"Orkney Islands Local Authority\"),$F206=1),0,IF(AND(OR(Calculations!$E$2=\"Shetland Health Board\",Calculations!$E$2=\"Western Isles Health Board\",Calculations!$E$2=\"Shetland Islands Local Authority\",Calculations!$E$2=\"Eilean Siar Local Authority\"),OR($F206=1,$F206=5)),0,new_yllv2(VALUE(LEFT(Options!$B$24,2)),$C206,$D206,$E206,$F206,2016,$I206,1,$H206,$G206*$H206,Options!$B$8)))","v":6980.1379861833002},{"$f":"IF(AND(OR(Calculations!$E$2=\"Orkney Health Board\",Calculations!$E$2=\"Orkney Islands Local Authority\"),$F206=1),0,IF(AND(OR(Calculations!$E$2=\"Shetland Health Board\",Calculations!$E$2=\"Western Isles Health Board\",Calculations!$E$2=\"Shetland Islands Local Authority\",Calculations!$E$2=\"Eilean Siar Local Authority\"),OR($F206=1,$F206=5)),0,new_yllv2(VALUE(LEFT(Options!$B$24,2)),$C206,$D206,$E206,$F206,2016,$I206+$J206,1,$H206,$G206*$H206,Options!$B$8)))","v":6927.6975732424999},{"$f":"IF(AND(OR(Calculations!$E$2=\"Orkney Health Board\",Calculations!$E$2=\"Orkney Islands Local Authority\"),$F206=1),0,IF(AND(OR(Calculations!$E$2=\"Shetland Health Board\",Calculations!$E$2=\"Western Isles Health Board\",Calculations!$E$2=\"Shetland Islands Local Authority\",Calculations!$E$2=\"Eilean Siar Local Authority\"),OR($F206=1,$F206=5)),0,hosp_count(VALUE(LEFT(Options!$B$24,2)),$C206,$E206,$F206,2016,$I206,1,$H206,$G206*$H206, Options!$B$8)))","v":{"$error":"#NAME?"}},{"$f":"IF(AND(OR(Calculations!$E$2=\"Orkney Health Board\",Calculations!$E$2=\"Orkney Islands Local Authority\"),$F206=1),0,IF(AND(OR(Calculations!$E$2=\"Shetland Health Board\",Calculations!$E$2=\"Western Isles Health Board\",Calculations!$E$2=\"Shetland Islands Local Authority\",Calculations!$E$2=\"Eilean Siar Local Authority\"),OR($F206=1,$F206=5)),0,hosp_count(VALUE(LEFT(Options!$B$24,2)),$C206,$E206,$F206,2016,$I206+$J206,1,$H206,$G206*$H206, Options!$B$8)))","v":{"$error":"#NAME?"}},{"$f":"IF(AND(OR(Calculations!$E$2=\"Orkney Health Board\",Calculations!$E$2=\"Orkney Islands Local Authority\"),$F206=1),0,IF(AND(OR(Calculations!$E$2=\"Shetland Health Board\",Calculations!$E$2=\"Western Isles Health Board\",Calculations!$E$2=\"Shetland Islands Local Authority\",Calculations!$E$2=\"Eilean Siar Local Authority\"),OR($F206=1,$F206=5)),0,prem_mort(VALUE(LEFT(Options!$B$24,2)),$C206,$E206,$F206,2016,$I206,1,$H206,$G206*$H206,Options!$B$8)))","v":468.4656366566},{"$f":"IF(AND(OR(Calculations!$E$2=\"Orkney Health Board\",Calculations!$E$2=\"Orkney Islands Local Authority\"),$F206=1),0,IF(AND(OR(Calculations!$E$2=\"Shetland Health Board\",Calculations!$E$2=\"Western Isles Health Board\",Calculations!$E$2=\"Shetland Islands Local Authority\",Calculations!$E$2=\"Eilean Siar Local Authority\"),OR($F206=1,$F206=5)),0,prem_mort(VALUE(LEFT(Options!$B$24,2)),$C206,$E206,$F206,2016,$I206+$J206,1,$H206,$G206*$H206,Options!$B$8)))","v":464.94614585519997},1414.7056733001148,1404.0772659757201,21079.114532171589,20920.751263038292,{"$error":"#NAME?"},{"$error":"#NAME?"},1414.7056733001148,1404.0772659757201,7780881.2031506309,7722424.9628664609,115935129.92694373,115064131.9467106,{"$error":"#NAME?"},{"$error":"#NAME?"},7780881.2031506309,7722424.9628664609,5500]
[null,"Male 70-74",71.891098,84.341099999999997,"male",4,{"$f":"HLOOKUP(Calculations!$E$2,'Prevalence Rates'!$C$3:$BC$249,'Prevalence Rates'!$BD207,FALSE)","v":0.46500000000000002},{"$f":"HLOOKUP(Calculations!$E$2,'Population 2016'!$C$3:$BC$249,'Population 2016'!BD207,FALSE)","v":24360},0,{"$f":"HLOOKUP(Results!E$4,Targeting!$C$3:$F$249,Targeting!$G207,FALSE)","v":4000},{"$f":"IF(AND(OR(Calculations!$E$2=\"Orkney Health Board\",Calculations!$E$2=\"Orkney Islands Local Authority\"),$F207=1),0,IF(AND(OR(Calculations!$E$2=\"Shetland Health Board\",Calculations!$E$2=\"Western Isles Health Board\",Calculations!$E$2=\"Shetland Islands Local Authority\",Calculations!$E$2=\"Eilean Siar Local Authority\"),OR($F207=1,$F207=5)),0,new_ci(VALUE(LEFT(Options!$B$24,2)),$C207,$E207,$F207,2016,$I207,1,$H207,$G207*$H207,Options!$B$8)))","v":494.91076668099998},{"$f":"IF(AND(OR(Calculations!$E$2=\"Orkney Health Board\",Calculations!$E$2=\"Orkney Islands Local Authority\"),$F207=1),0,IF(AND(OR(Calculations!$E$2=\"Shetland Health Board\",Calculations!$E$2=\"Western Isles Health Board\",Calculations!$E$2=\"Shetland Islands Local Authority\",Calculations!$E$2=\"Eilean Siar Local Authority\"),OR($F207=1,$F207=5)),0,new_ci(VALUE(LEFT(Options!$B$24,2)),$C207,$E207,$F207,2016,$I207+$J207,1,$H207,$G207*$H207,Options!$B$8)))","v":491.20754388099999},{"$f":"IF(AND(OR(Calculations!$E$2=\"Orkney Health Board\",Calculations!$E$2=\"Orkney Islands Local Authority\"),$F207=1),0,IF(AND(OR(Calculations!$E$2=\"Shetland Health Board\",Calculations!$E$2=\"Western Isles Health Board\",Calculations!$E$2=\"Shetland Islands Local Authority\",Calculations!$E$2=\"Eilean Siar Local Authority\"),OR($F207=1,$F207=5)),0,new_yllv2(VALUE(LEFT(Options!$B$24,2)),$C207,$D207,$E207,$F207,2016,$I207,1,$H207,$G207*$H207,Options!$B$8)))","v":5666.7292683189999},{"$f":"IF(AND(OR(Calculations!$E$2=\"Orkney Health Board\",Calculations!$E$2=\"Orkney Islands Local Authority\"),$F207=1),0,IF(AND(OR(Calculations!$E$2=\"Shetland Health Board\",Calculations!$E$2=\"Western Isles Health Board\",Calculations!$E$2=\"Shetland Islands Local Authority\",Calculations!$E$2=\"Eilean Siar Local Authority\"),OR($F207=1,$F207=5)),0,new_yllv2(VALUE(LEFT(Options!$B$24,2)),$C207,$D207,$E207,$F207,2016,$I207+$J207,1,$H207,$G207*$H207,Options!$B$8)))","v":5624.3273598525002},{"$f":"IF(AND(OR(Calculations!$E$2=\"Orkney Health Board\",Calculations!$E$2=\"Orkney Islands Local Authority\"),$F207=1),0,IF(AND(OR(Calculations!$E$2=\"Shetland Health Board\",Calculations!$E$2=\"Western Isles Health Board\",Calculations!$E$2=\"Shetland Islands Local Authority\",Calculations!$E$2=\"Eilean Siar Local Authority\"),OR($F207=1,$F207=5)),0,hosp_count(VALUE(LEFT(Options!$B$24,2)),$C207,$E207,$F207,2016,$I207,1,$H207,$G207*$H207, Options!$B$8)))","v":{"$error":"#NAME?"}},{"$f":"IF(AND(OR(Calculations!$E$2=\"Orkney Health Board\",Calculations!$E$2=\"Orkney Islands Local Authority\"),$F207=1),0,IF(AND(OR(Calculations!$E$2=\"Shetland Health Board\",Calculations!$E$2=\"Western Isles Health Board\",Calculations!$E$2=\"Shetland Islands Local Authority\",Calculations!$E$2=\"Eilean Siar Local Authority\"),OR($F207=1,$F207=5)),0,hosp_count(VALUE(LEFT(Options!$B$24,2)),$C207,$E207,$F207,2016,$I207+$J207,1,$H207,$G207*$H207, Options!$B$8)))","v":{"$error":"#NAME?"}},{"$f":"IF(AND(OR(Calculations!$E$2=\"Orkney Health Board\",Calculations!$E$2=\"Orkney Islands Local Authority\"),$F207=1),0,IF(AND(OR(Calculations!$E$2=\"Shetland Health Board\",Calculations!$E$2=\"Western Isles Health Board\",Calculations!$E$2=\"Shetland Islands Local Authority\",Calculations!$E$2=\"Eilean Siar Local Authority\"),OR($F207=1,$F207=5)),0,prem_mort(VALUE(LEFT(Options!$B$24,2)),$C207,$E207,$F207,2016,$I207,1,$H207,$G207*$H207,Options!$B$8)))","v":494.91076668099998},{"$f":"IF(AND(OR(Calculations!$E$2=\"Orkney Health Board\",Calculations!$E$2=\"Orkney Islands Local Authority\"),$F207=1),0,IF(AND(OR(Calculations!$E$2=\"Shetland Health Board\",Calculations!$E$2=\"Western Isles Health Board\",Calculations!$E$2=\"Shetland Islands Local Authority\",Calculations!$E$2=\"Eilean Siar Local Authority\"),OR($F207=1,$F207=5)),0,prem_mort(VALUE(LEFT(Options!$B$24,2)),$C207,$E207,$F207,2016,$I207+$J207,1,$H207,$G207*$H207,Options!$B$8)))","v":491.20754388099999},2031.6533936001642,2016.4513295607553,23262.435420028734,23088.371756373152,{"$error":"#NAME?"},{"$error":"#NAME?"},2031.6533936001642,2016.4513295607553,10158266.968000822,10082256.647803776,116312177.10014367,115441858.78186576,{"$error":"#NAME?"},{"$error":"#NAME?"},10158266.968000822,10082256.647803776,5000]
[null,"Male 75-79",76.907700000000006,86.357700000000008,"male",4,{"$f":"HLOOKUP(Calculations!$E$2,'Prevalence Rates'!$C$3:$BC$249,'Prevalence Rates'!$BD208,FALSE)","v":0.71099999999999997},{"$f":"HLOOKUP(Calculations!$E$2,'Population 2016'!$C$3:$BC$249,'Population 2016'!BD208,FALSE)","v":17285},0,{"$f":"HLOOKUP(Results!E$4,Targeting!$C$3:$F$249,Targeting!$G208,FALSE)","v":2838},{"$f":"IF(AND(OR(Calculations!$E$2=\"Orkney Health Board\",Calculations!$E$2=\"Orkney Islands Local Authority\"),$F208=1),0,IF(AND(OR(Calculations!$E$2=\"Shetland Health Board\",Calculations!$E$2=\"Western Isles Health Board\",Calculations!$E$2=\"Shetland Islands Local Authority\",Calculations!$E$2=\"Eilean Siar Local Authority\"),OR($F208=1,$F208=5)),0,new_ci(VALUE(LEFT(Options!$B$24,2)),$C208,$E208,$F208,2016,$I208,1,$H208,$G208*$H208,Options!$B$8)))","v":510.45567549779997},{"$f":"IF(AND(OR(Calculations!$E$2=\"Orkney Health Board\",Calculations!$E$2=\"Orkney Islands Local Authority\"),$F208=1),0,IF(AND(OR(Calculations!$E$2=\"Shetland Health Board\",Calculations!$E$2=\"Western Isles Health Board\",Calculations!$E$2=\"Shetland Islands Local Authority\",Calculations!$E$2=\"Eilean Siar Local Authority\"),OR($F208=1,$F208=5)),0,new_ci(VALUE(LEFT(Options!$B$24,2)),$C208,$E208,$F208,2016,$I208+$J208,1,$H208,$G208*$H208,Options!$B$8)))","v":506.95759784879999},{"$f":"IF(AND(OR(Calculations!$E$2=\"Orkney Health Board\",Calculations!$E$2=\"Orkney Islands Local Authority\"),$F208=1),0,IF(AND(OR(Calculations!$E$2=\"Shetland Health Board\",Calculations!$E$2=\"Western Isles Health Board\",Calculations!$E$2=\"Shetland Islands Local Authority\",Calculations!$E$2=\"Eilean Siar Local Authority\"),OR($F208=1,$F208=5)),0,new_yllv2(VALUE(LEFT(Options!$B$24,2)),$C208,$D208,$E208,$F208,2016,$I208,1,$H208,$G208*$H208,Options!$B$8)))","v":4313.3504579563996},{"$f":"IF(AND(OR(Calculations!$E$2=\"Orkney Health Board\",Calculations!$E$2=\"Orkney Islands Local Authority\"),$F208=1),0,IF(AND(OR(Calculations!$E$2=\"Shetland Health Board\",Calculations!$E$2=\"Western Isles Health Board\",Calculations!$E$2=\"Shetland Islands Local Authority\",Calculations!$E$2=\"Eilean Siar Local Authority\"),OR($F208=1,$F208=5)),0,new_yllv2(VALUE(LEFT(Options!$B$24,2)),$C208,$D208,$E208,$F208,2016,$I208+$J208,1,$H208,$G208*$H208,Options!$B$8)))","v":4283.7917018223998},{"$f":"IF(AND(OR(Calculations!$E$2=\"Orkney Health Board\",Calculations!$E$2=\"Orkney Islands Local Authority\"),$F208=1),0,IF(AND(OR(Calculations!$E$2=\"Shetland Health Board\",Calculations!$E$2=\"Western Isles Health Board\",Calculations!$E$2=\"Shetland Islands Local Authority\",Calculations!$E$2=\"Eilean Siar Local Authority\"),OR($F208=1,$F208=5)),0,hosp_count(VALUE(LEFT(Options!$B$24,2)),$C208,$E208,$F208,2016,$I208,1,$H208,$G208*$H208, Options!$B$8)))","v":{"$error":"#NAME?"}},{"$f":"IF(AND(OR(Calculations!$E$2=\"Orkney Health Board\",Calculations!$E$2=\"Orkney Islands Local Authority\"),$F208=1),0,IF(AND(OR(Calculations!$E$2=\"Shetland Health Board\",Calculations!$E$2=\"Western Isles Health Board\",Calculations!$E$2=\"Shetland Islands Local Authority\",Calculations!$E$2=\"Eilean Siar Local Authority\"),OR($F208=1,$F208=5)),0,hosp_count(VALUE(LEFT(Options!$B$24,2)),$C208,$E208,$F208,2016,$I208+$J208,1,$H208,$G208*$H208, Options!$B$8)))","v":{"$error":"#NAME?"}},{"$f":"IF(AND(OR(Calculations!$E$2=\"Orkney Health Board\",Calculations!$E$2=\"Orkney Islands Local Authority\"),$F208=1),0,IF(AND(OR(Calculations!$E$2=\"Shetland Health Board\",Calculations!$E$2=\"Western Isles Health Board\",Calculations!$E$2=\"Shetland Islands Local Authority\",Calculations!$E$2=\"Eilean Siar Local Authority\"),OR($F208=1,$F208=5)),0,prem_mort(VALUE(LEFT(Options!$B$24,2)),$C208,$E208,$F208,2016,$I208,1,$H208,$G208*$H208,Options!$B$8)))","v":0},{"$f":"IF(AND(OR(Calculations!$E$2=\"Orkney Health Board\",Calculations!$E$2=\"Orkney Islands Local Authority\"),$F208=1),0,IF(AND(OR(Calculations!$E$2=\"Shetland Health Board\",Calculations!$E$2=\"Western Isles Health Board\",Calculations!$E$2=\"Shetland Islands Local Authority\",Calculations!$E$2=\"Eilean Siar Local Authority\"),OR($F208=1,$F208=5)),0,prem_mort(VALUE(LEFT(Options!$B$24,2)),$C208,$E208,$F208,2016,$I208+$J208,1,$H208,$G208*$H208,Options!$B$8)))","v":0},2953.1713942597626,2932.9337451478159,24954.298281494939,24783.290146499276,{"$error":"#NAME?"},{"$error":"#NAME?"},0,0,11812685.57703905,11731734.980591264,99817193.125979751,99133160.585997105,{"$error":"#NAME?"},{"$error":"#NAME?"},0,0,4000]
[null,"Male 80-84",81.797089,88.627089999999995,"male",4,{"$f":"HLOOKUP(Calculations!$E$2,'Prevalence Rates'!$C$3:$BC$249,'Prevalence Rates'!$BD209,FALSE)","v":0.71099999999999997},{"$f":"HLOOKUP(Calculations!$E$2,'Population 2016'!$C$3:$BC$249,'Population 2016'!BD209,FALSE)","v":11713},0,{"$f":"HLOOKUP(Results!E$4,Targeting!$C$3:$F$249,Targeting!$G209,FALSE)","v":1923},{"$f":"IF(AND(OR(Calculations!$E$2=\"Orkney Health Board\",Calculations!$E$2=\"Orkney Islands Local Authority\"),$F209=1),0,IF(AND(OR(Calculations!$E$2=\"Shetland Health Board\",Calculations!$E$2=\"Western Isles Health Board\",Calculations!$E$2=\"Shetland Islands Local Authority\",Calculations!$E$2=\"Eilean Siar Local Authority\"),OR($F209=1,$F209=5)),0,new_ci(VALUE(LEFT(Options!$B$24,2)),$C209,$E209,$F209,2016,$I209,1,$H209,$G209*$H209,Options!$B$8)))","v":496.9575329109},{"$f":"IF(AND(OR(Calculations!$E$2=\"Orkney Health Board\",Calculations!$E$2=\"Orkney Islands Local Authority\"),$F209=1),0,IF(AND(OR(Calculations!$E$2=\"Shetland Health Board\",Calculations!$E$2=\"Western Isles Health Board\",Calculations!$E$2=\"Shetland Islands Local Authority\",Calculations!$E$2=\"Eilean Siar Local Authority\"),OR($F209=1,$F209=5)),0,new_ci(VALUE(LEFT(Options!$B$24,2)),$C209,$E209,$F209,2016,$I209+$J209,1,$H209,$G209*$H209,Options!$B$8)))","v":493.57791733170001},{"$f":"IF(AND(OR(Calculations!$E$2=\"Orkney Health Board\",Calculations!$E$2=\"Orkney Islands Local Authority\"),$F209=1),0,IF(AND(OR(Calculations!$E$2=\"Shetland Health Board\",Calculations!$E$2=\"Western Isles Health Board\",Calculations!$E$2=\"Shetland Islands Local Authority\",Calculations!$E$2=\"Eilean Siar Local Authority\"),OR($F209=1,$F209=5)),0,new_yllv2(VALUE(LEFT(Options!$B$24,2)),$C209,$D209,$E209,$F209,2016,$I209,1,$H209,$G209*$H209,Options!$B$8)))","v":2897.2629138281},{"$f":"IF(AND(OR(Calculations!$E$2=\"Orkney Health Board\",Calculations!$E$2=\"Orkney Islands Local Authority\"),$F209=1),0,IF(AND(OR(Calculations!$E$2=\"Shetland Health Board\",Calculations!$E$2=\"Western Isles Health Board\",Calculations!$E$2=\"Shetland Islands Local Authority\",Calculations!$E$2=\"Eilean Siar Local Authority\"),OR($F209=1,$F209=5)),0,new_yllv2(VALUE(LEFT(Options!$B$24,2)),$C209,$D209,$E209,$F209,2016,$I209+$J209,1,$H209,$G209*$H209,Options!$B$8)))","v":2877.5597516216999},{"$f":"IF(AND(OR(Calculations!$E$2=\"Orkney Health Board\",Calculations!$E$2=\"Orkney Islands Local Authority\"),$F209=1),0,IF(AND(OR(Calculations!$E$2=\"Shetland Health Board\",Calculations!$E$2=\"Western Isles Health Board\",Calculations!$E$2=\"Shetland Islands Local Authority\",Calculations!$E$2=\"Eilean Siar Local Authority\"),OR($F209=1,$F209=5)),0,hosp_count(VALUE(LEFT(Options!$B$24,2)),$C209,$E209,$F209,2016,$I209,1,$H209,$G209*$H209, Options!$B$8)))","v":{"$error":"#NAME?"}},{"$f":"IF(AND(OR(Calculations!$E$2=\"Orkney Health Board\",Calculations!$E$2=\"Orkney Islands Local Authority\"),$F209=1),0,IF(AND(OR(Calculations!$E$2=\"Shetland Health Board\",Calculations!$E$2=\"Western Isles Health Board\",Calculations!$E$2=\"Shetland Islands Local Authority\",Calculations!$E$2=\"Eilean Siar Local Authority\"),OR($F209=1,$F209=5)),0,hosp_count(VALUE(LEFT(Options!$B$24,2)),$C209,$E209,$F209,2016,$I209+$J209,1,$H209,$G209*$H209, Options!$B$8)))","v":{"$error":"#NAME?"}},{"$f":"IF(AND(OR(Calculations!$E$2=\"Orkney Health Board\",Calculations!$E$2=\"Orkney Islands Local Authority\"),$F209=1),0,IF(AND(OR(Calculations!$E$2=\"Shetland Health Board\",Calculations!$E$2=\"Western Isles Health Board\",Calculations!$E$2=\"Shetland Islands Local Authority\",Calculations!$E$2=\"Eilean Siar Local Authority\"),OR($F209=1,$F209=5)),0,prem_mort(VALUE(LEFT(Options!$B$24,2)),$C209,$E209,$F209,2016,$I209,1,$H209,$G209*$H209,Options!$B$8)))","v":0},{"$f":"IF(AND(OR(Calculations!$E$2=\"Orkney Health Board\",Calculations!$E$2=\"Orkney Islands Local Authority\"),$F209=1),0,IF(AND(OR(Calculations!$E$2=\"Shetland Health Board\",Calculations!$E$2=\"Western Isles Health Board\",Calculations!$E$2=\"Shetland Islands Local Authority\",Calculations!$E$2=\"Eilean Siar Local Authority\"),OR($F209=1,$F209=5)),0,prem_mort(VALUE(LEFT(Options!$B$24,2)),$C209,$E209,$F209,2016,$I209+$J209,1,$H209,$G209*$H209,Options!$B$8)))","v":0},4242.786074540254,4213.9325307922827,24735.44705735593,24567.230868451294,{"$error":"#NAME?"},{"$error":"#NAME?"},0,0,10606965.186350634,10534831.326980706,61838617.643389829,61418077.171128236,{"$error":"#NAME?"},{"$error":"#NAME?"},0,0,2500]
[null,"Male 85-89",86.630752999999999,91.420750000000012,"male",4,{"$f":"HLOOKUP(Calculations!$E$2,'Prevalence Rates'!$C$3:$BC$249,'Prevalence Rates'!$BD210,FALSE)","v":0.71099999999999997},{"$f":"HLOOKUP(Calculations!$E$2,'Population 2016'!$C$3:$BC$249,'Population 2016'!BD210,FALSE)","v":6184},0,{"$f":"HLOOKUP(Results!E$4,Targeting!$C$3:$F$249,Targeting!$G210,FALSE)","v":1015},{"$f":"IF(AND(OR(Calculations!$E$2=\"Orkney Health Board\",Calculations!$E$2=\"Orkney Islands Local Authority\"),$F210=1),0,IF(AND(OR(Calculations!$E$2=\"Shetland Health Board\",Calculations!$E$2=\"Western Isles Health Board\",Calculations!$E$2=\"Shetland Islands Local Authority\",Calculations!$E$2=\"Eilean Siar Local Authority\"),OR($F210=1,$F210=5)),0,new_ci(VALUE(LEFT(Options!$B$24,2)),$C210,$E210,$F210,2016,$I210,1,$H210,$G210*$H210,Options!$B$8)))","v":374.29030765430002},{"$f":"IF(AND(OR(Calculations!$E$2=\"Orkney Health Board\",Calculations!$E$2=\"Orkney Islands Local Authority\"),$F210=1),0,IF(AND(OR(Calculations!$E$2=\"Shetland Health Board\",Calculations!$E$2=\"Western Isles Health Board\",Calculations!$E$2=\"Shetland Islands Local Authority\",Calculations!$E$2=\"Eilean Siar Local Authority\"),OR($F210=1,$F210=5)),0,new_ci(VALUE(LEFT(Options!$B$24,2)),$C210,$E210,$F210,2016,$I210+$J210,1,$H210,$G210*$H210,Options!$B$8)))","v":371.77301914629999},{"$f":"IF(AND(OR(Calculations!$E$2=\"Orkney Health Board\",Calculations!$E$2=\"Orkney Islands Local Authority\"),$F210=1),0,IF(AND(OR(Calculations!$E$2=\"Shetland Health Board\",Calculations!$E$2=\"Western Isles Health Board\",Calculations!$E$2=\"Shetland Islands Local Authority\",Calculations!$E$2=\"Eilean Siar Local Authority\"),OR($F210=1,$F210=5)),0,new_yllv2(VALUE(LEFT(Options!$B$24,2)),$C210,$D210,$E210,$F210,2016,$I210,1,$H210,$G210*$H210,Options!$B$8)))","v":1418.5591431389},{"$f":"IF(AND(OR(Calculations!$E$2=\"Orkney Health Board\",Calculations!$E$2=\"Orkney Islands Local Authority\"),$F210=1),0,IF(AND(OR(Calculations!$E$2=\"Shetland Health Board\",Calculations!$E$2=\"Western Isles Health Board\",Calculations!$E$2=\"Shetland Islands Local Authority\",Calculations!$E$2=\"Eilean Siar Local Authority\"),OR($F210=1,$F210=5)),0,new_yllv2(VALUE(LEFT(Options!$B$24,2)),$C210,$D210,$E210,$F210,2016,$I210+$J210,1,$H210,$G210*$H210,Options!$B$8)))","v":1409.0186272454},{"$f":"IF(AND(OR(Calculations!$E$2=\"Orkney Health Board\",Calculations!$E$2=\"Orkney Islands Local Authority\"),$F210=1),0,IF(AND(OR(Calculations!$E$2=\"Shetland Health Board\",Calculations!$E$2=\"Western Isles Health Board\",Calculations!$E$2=\"Shetland Islands Local Authority\",Calculations!$E$2=\"Eilean Siar Local Authority\"),OR($F210=1,$F210=5)),0,hosp_count(VALUE(LEFT(Options!$B$24,2)),$C210,$E210,$F210,2016,$I210,1,$H210,$G210*$H210, Options!$B$8)))","v":{"$error":"#NAME?"}},{"$f":"IF(AND(OR(Calculations!$E$2=\"Orkney Health Board\",Calculations!$E$2=\"Orkney Islands Local Authority\"),$F210=1),0,IF(AND(OR(Calculations!$E$2=\"Shetland Health Board\",Calculations!$E$2=\"Western Isles Health Board\",Calculations!$E$2=\"Shetland Islands Local Authority\",Calculations!$E$2=\"Eilean Siar Local Authority\"),OR($F210=1,$F210=5)),0,hosp_count(VALUE(LEFT(Options!$B$24,2)),$C210,$E210,$F210,2016,$I210+$J210,1,$H210,$G210*$H210, Options!$B$8)))","v":{"$error":"#NAME?"}},{"$f":"IF(AND(OR(Calculations!$E$2=\"Orkney Health Board\",Calculations!$E$2=\"Orkney Islands Local Authority\"),$F210=1),0,IF(AND(OR(Calculations!$E$2=\"Shetland Health Board\",Calculations!$E$2=\"Western Isles Health Board\",Calculations!$E$2=\"Shetland Islands Local Authority\",Calculations!$E$2=\"Eilean Siar Local Authority\"),OR($F210=1,$F210=5)),0,prem_mort(VALUE(LEFT(Options!$B$24,2)),$C210,$E210,$F210,2016,$I210,1,$H210,$G210*$H210,Options!$B$8)))","v":0},{"$f":"IF(AND(OR(Calculations!$E$2=\"Orkney Health Board\",Calculations!$E$2=\"Orkney Islands Local Authority\"),$F210=1),0,IF(AND(OR(Calculations!$E$2=\"Shetland Health Board\",Calculations!$E$2=\"Western Isles Health Board\",Calculations!$E$2=\"Shetland Islands Local Authority\",Calculations!$E$2=\"Eilean Siar Local Authority\"),OR($F210=1,$F210=5)),0,prem_mort(VALUE(LEFT(Options!$B$24,2)),$C210,$E210,$F210,2016,$I210+$J210,1,$H210,$G210*$H210,Options!$B$8)))","v":0},6052.5599555999361,6011.8534790798831,22939.184074044311,22784.906650152003,{"$error":"#NAME?"},{"$error":"#NAME?"},0,0,9078839.9333999045,9017780.2186198253,34408776.111066468,34177359.975228004,{"$error":"#NAME?"},{"$error":"#NAME?"},0,0,1500]
[null,"Male 90+",92.215477000000007,95.515479999999997,"male",4,{"$f":"HLOOKUP(Calculations!$E$2,'Prevalence Rates'!$C$3:$BC$249,'Prevalence Rates'!$BD211,FALSE)","v":0.71099999999999997},{"$f":"HLOOKUP(Calculations!$E$2,'Population 2016'!$C$3:$BC$249,'Population 2016'!BD211,FALSE)","v":2544},0,{"$f":"HLOOKUP(Results!E$4,Targeting!$C$3:$F$249,Targeting!$G211,FALSE)","v":418},{"$f":"IF(AND(OR(Calculations!$E$2=\"Orkney Health Board\",Calculations!$E$2=\"Orkney Islands Local Authority\"),$F211=1),0,IF(AND(OR(Calculations!$E$2=\"Shetland Health Board\",Calculations!$E$2=\"Western Isles Health Board\",Calculations!$E$2=\"Shetland Islands Local Authority\",Calculations!$E$2=\"Eilean Siar Local Authority\"),OR($F211=1,$F211=5)),0,new_ci(VALUE(LEFT(Options!$B$24,2)),$C211,$E211,$F211,2016,$I211,1,$H211,$G211*$H211,Options!$B$8)))","v":230.88769237060001},{"$f":"IF(AND(OR(Calculations!$E$2=\"Orkney Health Board\",Calculations!$E$2=\"Orkney Islands Local Authority\"),$F211=1),0,IF(AND(OR(Calculations!$E$2=\"Shetland Health Board\",Calculations!$E$2=\"Western Isles Health Board\",Calculations!$E$2=\"Shetland Islands Local Authority\",Calculations!$E$2=\"Eilean Siar Local Authority\"),OR($F211=1,$F211=5)),0,new_ci(VALUE(LEFT(Options!$B$24,2)),$C211,$E211,$F211,2016,$I211+$J211,1,$H211,$G211*$H211,Options!$B$8)))","v":229.3619669144},{"$f":"IF(AND(OR(Calculations!$E$2=\"Orkney Health Board\",Calculations!$E$2=\"Orkney Islands Local Authority\"),$F211=1),0,IF(AND(OR(Calculations!$E$2=\"Shetland Health Board\",Calculations!$E$2=\"Western Isles Health Board\",Calculations!$E$2=\"Shetland Islands Local Authority\",Calculations!$E$2=\"Eilean Siar Local Authority\"),OR($F211=1,$F211=5)),0,new_yllv2(VALUE(LEFT(Options!$B$24,2)),$C211,$D211,$E211,$F211,2016,$I211,1,$H211,$G211*$H211,Options!$B$8)))","v":531.0423851155},{"$f":"IF(AND(OR(Calculations!$E$2=\"Orkney Health Board\",Calculations!$E$2=\"Orkney Islands Local Authority\"),$F211=1),0,IF(AND(OR(Calculations!$E$2=\"Shetland Health Board\",Calculations!$E$2=\"Western Isles Health Board\",Calculations!$E$2=\"Shetland Islands Local Authority\",Calculations!$E$2=\"Eilean Siar Local Authority\"),OR($F211=1,$F211=5)),0,new_yllv2(VALUE(LEFT(Options!$B$24,2)),$C211,$D211,$E211,$F211,2016,$I211+$J211,1,$H211,$G211*$H211,Options!$B$8)))","v":527.53321198900005},{"$f":"IF(AND(OR(Calculations!$E$2=\"Orkney Health Board\",Calculations!$E$2=\"Orkney Islands Local Authority\"),$F211=1),0,IF(AND(OR(Calculations!$E$2=\"Shetland Health Board\",Calculations!$E$2=\"Western Isles Health Board\",Calculations!$E$2=\"Shetland Islands Local Authority\",Calculations!$E$2=\"Eilean Siar Local Authority\"),OR($F211=1,$F211=5)),0,hosp_count(VALUE(LEFT(Options!$B$24,2)),$C211,$E211,$F211,2016,$I211,1,$H211,$G211*$H211, Options!$B$8)))","v":{"$error":"#NAME?"}},{"$f":"IF(AND(OR(Calculations!$E$2=\"Orkney Health Board\",Calculations!$E$2=\"Orkney Islands Local Authority\"),$F211=1),0,IF(AND(OR(Calculations!$E$2=\"Shetland Health Board\",Calculations!$E$2=\"Western Isles Health Board\",Calculations!$E$2=\"Shetland Islands Local Authority\",Calculations!$E$2=\"Eilean Siar Local Authority\"),OR($F211=1,$F211=5)),0,hosp_count(VALUE(LEFT(Options!$B$24,2)),$C211,$E211,$F211,2016,$I211+$J211,1,$H211,$G211*$H211, Options!$B$8)))","v":{"$error":"#NAME?"}},{"$f":"IF(AND(OR(Calculations!$E$2=\"Orkney Health Board\",Calculations!$E$2=\"Orkney Islands Local Authority\"),$F211=1),0,IF(AND(OR(Calculations!$E$2=\"Shetland Health Board\",Calculations!$E$2=\"Western Isles Health Board\",Calculations!$E$2=\"Shetland Islands Local Authority\",Calculations!$E$2=\"Eilean Siar Local Authority\"),OR($F211=1,$F211=5)),0,prem_mort(VALUE(LEFT(Options!$B$24,2)),$C211,$E211,$F211,2016,$I211,1,$H211,$G211*$H211,Options!$B$8)))","v":0},{"$f":"IF(AND(OR(Calculations!$E$2=\"Orkney Health Board\",Calculations!$E$2=\"Orkney Islands Local Authority\"),$F211=1),0,IF(AND(OR(Calculations!$E$2=\"Shetland Health Board\",Calculations!$E$2=\"Western Isles Health Board\",Calculations!$E$2=\"Shetland Islands Local Authority\",Calculations!$E$2=\"Eilean Siar Local Authority\"),OR($F211=1,$F211=5)),0,prem_mort(VALUE(LEFT(Options!$B$24,2)),$C211,$E211,$F211,2016,$I211+$J211,1,$H211,$G211*$H211,Options!$B$8)))","v":0},9075.7740711713832,9015.800586257863,20874.307591018081,20736.368395794027,{"$error":"#NAME?"},{"$error":"#NAME?"},0,0,9075774.0711713824,9015800.5862578638,20874307.591018081,20736368.395794027,{"$error":"#NAME?"},{"$error":"#NAME?"},0,0,1000]
[null,"Female 0-4",2.0384007,81.468401,"female",5,{"$f":"HLOOKUP(Calculations!$E$2,'Prevalence Rates'!$C$3:$BC$249,'Prevalence Rates'!$BD212,FALSE)","v":0},{"$f":"HLOOKUP(Calculations!$E$2,'Population 2016'!$C$3:$BC$249,'Population 2016'!BD212,FALSE)","v":0},0,{"$f":"HLOOKUP(Results!E$4,Targeting!$C$3:$F$249,Targeting!$G212,FALSE)","v":0},{"$f":"IF(AND(OR(Calculations!$E$2=\"Orkney Health Board\",Calculations!$E$2=\"Orkney Islands Local Authority\"),$F212=1),0,IF(AND(OR(Calculations!$E$2=\"Shetland Health Board\",Calculations!$E$2=\"Western Isles Health Board\",Calculations!$E$2=\"Shetland Islands Local Authority\",Calculations!$E$2=\"Eilean Siar Local Authority\"),OR($F212=1,$F212=5)),0,new_ci(VALUE(LEFT(Options!$B$24,2)),$C212,$E212,$F212,2016,$I212,1,$H212,$G212*$H212,Options!$B$8)))","v":{"$error":"#VALUE!"}},{"$f":"IF(AND(OR(Calculations!$E$2=\"Orkney Health Board\",Calculations!$E$2=\"Orkney Islands Local Authority\"),$F212=1),0,IF(AND(OR(Calculations!$E$2=\"Shetland Health Board\",Calculations!$E$2=\"Western Isles Health Board\",Calculations!$E$2=\"Shetland Islands Local Authority\",Calculations!$E$2=\"Eilean Siar Local Authority\"),OR($F212=1,$F212=5)),0,new_ci(VALUE(LEFT(Options!$B$24,2)),$C212,$E212,$F212,2016,$I212+$J212,1,$H212,$G212*$H212,Options!$B$8)))","v":{"$error":"#VALUE!"}},{"$f":"IF(AND(OR(Calculations!$E$2=\"Orkney Health Board\",Calculations!$E$2=\"Orkney Islands Local Authority\"),$F212=1),0,IF(AND(OR(Calculations!$E$2=\"Shetland Health Board\",Calculations!$E$2=\"Western Isles Health Board\",Calculations!$E$2=\"Shetland Islands Local Authority\",Calculations!$E$2=\"Eilean Siar Local Authority\"),OR($F212=1,$F212=5)),0,new_yllv2(VALUE(LEFT(Options!$B$24,2)),$C212,$D212,$E212,$F212,2016,$I212,1,$H212,$G212*$H212,Options!$B$8)))","v":{"$error":"#VALUE!"}},{"$f":"IF(AND(OR(Calculations!$E$2=\"Orkney Health Board\",Calculations!$E$2=\"Orkney Islands Local Authority\"),$F212=1),0,IF(AND(OR(Calculations!$E$2=\"Shetland Health Board\",Calculations!$E$2=\"Western Isles Health Board\",Calculations!$E$2=\"Shetland Islands Local Authority\",Calculations!$E$2=\"Eilean Siar Local Authority\"),OR($F212=1,$F212=5)),0,new_yllv2(VALUE(LEFT(Options!$B$24,2)),$C212,$D212,$E212,$F212,2016,$I212+$J212,1,$H212,$G212*$H212,Options!$B$8)))","v":{"$error":"#VALUE!"}},{"$f":"IF(AND(OR(Calculations!$E$2=\"Orkney Health Board\",Calculations!$E$2=\"Orkney Islands Local Authority\"),$F212=1),0,IF(AND(OR(Calculations!$E$2=\"Shetland Health Board\",Calculations!$E$2=\"Western Isles Health Board\",Calculations!$E$2=\"Shetland Islands Local Authority\",Calculations!$E$2=\"Eilean Siar Local Authority\"),OR($F212=1,$F212=5)),0,hosp_count(VALUE(LEFT(Options!$B$24,2)),$C212,$E212,$F212,2016,$I212,1,$H212,$G212*$H212, Options!$B$8)))","v":{"$error":"#NAME?"}},{"$f":"IF(AND(OR(Calculations!$E$2=\"Orkney Health Board\",Calculations!$E$2=\"Orkney Islands Local Authority\"),$F212=1),0,IF(AND(OR(Calculations!$E$2=\"Shetland Health Board\",Calculations!$E$2=\"Western Isles Health Board\",Calculations!$E$2=\"Shetland Islands Local Authority\",Calculations!$E$2=\"Eilean Siar Local Authority\"),OR($F212=1,$F212=5)),0,hosp_count(VALUE(LEFT(Options!$B$24,2)),$C212,$E212,$F212,2016,$I212+$J212,1,$H212,$G212*$H212, Options!$B$8)))","v":{"$error":"#NAME?"}},{"$f":"IF(AND(OR(Calculations!$E$2=\"Orkney Health Board\",Calculations!$E$2=\"Orkney Islands Local Authority\"),$F212=1),0,IF(AND(OR(Calculations!$E$2=\"Shetland Health Board\",Calculations!$E$2=\"Western Isles Health Board\",Calculations!$E$2=\"Shetland Islands Local Authority\",Calculations!$E$2=\"Eilean Siar Local Authority\"),OR($F212=1,$F212=5)),0,prem_mort(VALUE(LEFT(Options!$B$24,2)),$C212,$E212,$F212,2016,$I212,1,$H212,$G212*$H212,Options!$B$8)))","v":{"$error":"#VALUE!"}},{"$f":"IF(AND(OR(Calculations!$E$2=\"Orkney Health Board\",Calculations!$E$2=\"Orkney Islands Local Authority\"),$F212=1),0,IF(AND(OR(Calculations!$E$2=\"Shetland Health Board\",Calculations!$E$2=\"Western Isles Health Board\",Calculations!$E$2=\"Shetland Islands Local Authority\",Calculations!$E$2=\"Eilean Siar Local Authority\"),OR($F212=1,$F212=5)),0,prem_mort(VALUE(LEFT(Options!$B$24,2)),$C212,$E212,$F212,2016,$I212+$J212,1,$H212,$G212*$H212,Options!$B$8)))","v":{"$error":"#VALUE!"}},{"$error":"#VALUE!"},{"$error":"#VALUE!"},{"$error":"#VALUE!"},{"$error":"#VALUE!"},{"$error":"#NAME?"},{"$error":"#NAME?"},{"$error":"#VALUE!"},{"$error":"#VALUE!"},{"$error":"#VALUE!"},{"$error":"#VALUE!"},{"$error":"#VALUE!"},{"$error":"#VALUE!"},{"$error":"#NAME?"},{"$error":"#NAME?"},{"$error":"#VALUE!"},{"$error":"#VALUE!"},5000]
[null,"Female 5-9",6.9792794999999996,81.439279999999997,"female",5,{"$f":"HLOOKUP(Calculations!$E$2,'Prevalence Rates'!$C$3:$BC$249,'Prevalence Rates'!$BD213,FALSE)","v":0},{"$f":"HLOOKUP(Calculations!$E$2,'Population 2016'!$C$3:$BC$249,'Population 2016'!BD213,FALSE)","v":0},0,{"$f":"HLOOKUP(Results!E$4,Targeting!$C$3:$F$249,Targeting!$G213,FALSE)","v":0},{"$f":"IF(AND(OR(Calculations!$E$2=\"Orkney Health Board\",Calculations!$E$2=\"Orkney Islands Local Authority\"),$F213=1),0,IF(AND(OR(Calculations!$E$2=\"Shetland Health Board\",Calculations!$E$2=\"Western Isles Health Board\",Calculations!$E$2=\"Shetland Islands Local Authority\",Calculations!$E$2=\"Eilean Siar Local Authority\"),OR($F213=1,$F213=5)),0,new_ci(VALUE(LEFT(Options!$B$24,2)),$C213,$E213,$F213,2016,$I213,1,$H213,$G213*$H213,Options!$B$8)))","v":{"$error":"#VALUE!"}},{"$f":"IF(AND(OR(Calculations!$E$2=\"Orkney Health Board\",Calculations!$E$2=\"Orkney Islands Local Authority\"),$F213=1),0,IF(AND(OR(Calculations!$E$2=\"Shetland Health Board\",Calculations!$E$2=\"Western Isles Health Board\",Calculations!$E$2=\"Shetland Islands Local Authority\",Calculations!$E$2=\"Eilean Siar Local Authority\"),OR($F213=1,$F213=5)),0,new_ci(VALUE(LEFT(Options!$B$24,2)),$C213,$E213,$F213,2016,$I213+$J213,1,$H213,$G213*$H213,Options!$B$8)))","v":{"$error":"#VALUE!"}},{"$f":"IF(AND(OR(Calculations!$E$2=\"Orkney Health Board\",Calculations!$E$2=\"Orkney Islands Local Authority\"),$F213=1),0,IF(AND(OR(Calculations!$E$2=\"Shetland Health Board\",Calculations!$E$2=\"Western Isles Health Board\",Calculations!$E$2=\"Shetland Islands Local Authority\",Calculations!$E$2=\"Eilean Siar Local Authority\"),OR($F213=1,$F213=5)),0,new_yllv2(VALUE(LEFT(Options!$B$24,2)),$C213,$D213,$E213,$F213,2016,$I213,1,$H213,$G213*$H213,Options!$B$8)))","v":{"$error":"#VALUE!"}},{"$f":"IF(AND(OR(Calculations!$E$2=\"Orkney Health Board\",Calculations!$E$2=\"Orkney Islands Local Authority\"),$F213=1),0,IF(AND(OR(Calculations!$E$2=\"Shetland Health Board\",Calculations!$E$2=\"Western Isles Health Board\",Calculations!$E$2=\"Shetland Islands Local Authority\",Calculations!$E$2=\"Eilean Siar Local Authority\"),OR($F213=1,$F213=5)),0,new_yllv2(VALUE(LEFT(Options!$B$24,2)),$C213,$D213,$E213,$F213,2016,$I213+$J213,1,$H213,$G213*$H213,Options!$B$8)))","v":{"$error":"#VALUE!"}},{"$f":"IF(AND(OR(Calculations!$E$2=\"Orkney Health Board\",Calculations!$E$2=\"Orkney Islands Local Authority\"),$F213=1),0,IF(AND(OR(Calculations!$E$2=\"Shetland Health Board\",Calculations!$E$2=\"Western Isles Health Board\",Calculations!$E$2=\"Shetland Islands Local Authority\",Calculations!$E$2=\"Eilean Siar Local Authority\"),OR($F213=1,$F213=5)),0,hosp_count(VALUE(LEFT(Options!$B$24,2)),$C213,$E213,$F213,2016,$I213,1,$H213,$G213*$H213, Options!$B$8)))","v":{"$error":"#NAME?"}},{"$f":"IF(AND(OR(Calculations!$E$2=\"Orkney Health Board\",Calculations!$E$2=\"Orkney Islands Local Authority\"),$F213=1),0,IF(AND(OR(Calculations!$E$2=\"Shetland Health Board\",Calculations!$E$2=\"Western Isles Health Board\",Calculations!$E$2=\"Shetland Islands Local Authority\",Calculations!$E$2=\"Eilean Siar Local Authority\"),OR($F213=1,$F213=5)),0,hosp_count(VALUE(LEFT(Options!$B$24,2)),$C213,$E213,$F213,2016,$I213+$J213,1,$H213,$G213*$H213, Options!$B$8)))","v":{"$error":"#NAME?"}},{"$f":"IF(AND(OR(Calculations!$E$2=\"Orkney Health Board\",Calculations!$E$2=\"Orkney Islands Local Authority\"),$F213=1),0,IF(AND(OR(Calculations!$E$2=\"Shetland Health Board\",Calculations!$E$2=\"Western Isles Health Board\",Calculations!$E$2=\"Shetland Islands Local Authority\",Calculations!$E$2=\"Eilean Siar Local Authority\"),OR($F213=1,$F213=5)),0,prem_mort(VALUE(LEFT(Options!$B$24,2)),$C213,$E213,$F213,2016,$I213,1,$H213,$G213*$H213,Options!$B$8)))","v":{"$error":"#VALUE!"}},{"$f":"IF(AND(OR(Calculations!$E$2=\"Orkney Health Board\",Calculations!$E$2=\"Orkney Islands Local Authority\"),$F213=1),0,IF(AND(OR(Calculations!$E$2=\"Shetland Health Board\",Calculations!$E$2=\"Western Isles Health Board\",Calculations!$E$2=\"Shetland Islands Local Authority\",Calculations!$E$2=\"Eilean Siar Local Authority\"),OR($F213=1,$F213=5)),0,prem_mort(VALUE(LEFT(Options!$B$24,2)),$C213,$E213,$F213,2016,$I213+$J213,1,$H213,$G213*$H213,Options!$B$8)))","v":{"$error":"#VALUE!"}},{"$error":"#VALUE!"},{"$error":"#VALUE!"},{"$error":"#VALUE!"},{"$error":"#VALUE!"},{"$error":"#NAME?"},{"$error":"#NAME?"},{"$error":"#VALUE!"},{"$error":"#VALUE!"},{"$error":"#VALUE!"},{"$error":"#VALUE!"},{"$error":"#VALUE!"},{"$error":"#VALUE!"},{"$error":"#NAME?"},{"$error":"#NAME?"},{"$error":"#VALUE!"},{"$error":"#VALUE!"},5500]
[null,"Female 10-15",12.478312000000001,81.948309999999992,"female",5,{"$f":"HLOOKUP(Calculations!$E$2,'Prevalence Rates'!$C$3:$BC$249,'Prevalence Rates'!$BD214,FALSE)","v":0},{"$f":"HLOOKUP(Calculations!$E$2,'Population 2016'!$C$3:$BC$249,'Population 2016'!BD214,FALSE)","v":0},0,{"$f":"HLOOKUP(Results!E$4,Targeting!$C$3:$F$249,Targeting!$G214,FALSE)","v":0},{"$f":"IF(AND(OR(Calculations!$E$2=\"Orkney Health Board\",Calculations!$E$2=\"Orkney Islands Local Authority\"),$F214=1),0,IF(AND(OR(Calculations!$E$2=\"Shetland Health Board\",Calculations!$E$2=\"Western Isles Health Board\",Calculations!$E$2=\"Shetland Islands Local Authority\",Calculations!$E$2=\"Eilean Siar Local Authority\"),OR($F214=1,$F214=5)),0,new_ci(VALUE(LEFT(Options!$B$24,2)),$C214,$E214,$F214,2016,$I214,1,$H214,$G214*$H214,Options!$B$8)))","v":{"$error":"#VALUE!"}},{"$f":"IF(AND(OR(Calculations!$E$2=\"Orkney Health Board\",Calculations!$E$2=\"Orkney Islands Local Authority\"),$F214=1),0,IF(AND(OR(Calculations!$E$2=\"Shetland Health Board\",Calculations!$E$2=\"Western Isles Health Board\",Calculations!$E$2=\"Shetland Islands Local Authority\",Calculations!$E$2=\"Eilean Siar Local Authority\"),OR($F214=1,$F214=5)),0,new_ci(VALUE(LEFT(Options!$B$24,2)),$C214,$E214,$F214,2016,$I214+$J214,1,$H214,$G214*$H214,Options!$B$8)))","v":{"$error":"#VALUE!"}},{"$f":"IF(AND(OR(Calculations!$E$2=\"Orkney Health Board\",Calculations!$E$2=\"Orkney Islands Local Authority\"),$F214=1),0,IF(AND(OR(Calculations!$E$2=\"Shetland Health Board\",Calculations!$E$2=\"Western Isles Health Board\",Calculations!$E$2=\"Shetland Islands Local Authority\",Calculations!$E$2=\"Eilean Siar Local Authority\"),OR($F214=1,$F214=5)),0,new_yllv2(VALUE(LEFT(Options!$B$24,2)),$C214,$D214,$E214,$F214,2016,$I214,1,$H214,$G214*$H214,Options!$B$8)))","v":{"$error":"#VALUE!"}},{"$f":"IF(AND(OR(Calculations!$E$2=\"Orkney Health Board\",Calculations!$E$2=\"Orkney Islands Local Authority\"),$F214=1),0,IF(AND(OR(Calculations!$E$2=\"Shetland Health Board\",Calculations!$E$2=\"Western Isles Health Board\",Calculations!$E$2=\"Shetland Islands Local Authority\",Calculations!$E$2=\"Eilean Siar Local Authority\"),OR($F214=1,$F214=5)),0,new_yllv2(VALUE(LEFT(Options!$B$24,2)),$C214,$D214,$E214,$F214,2016,$I214+$J214,1,$H214,$G214*$H214,Options!$B$8)))","v":{"$error":"#VALUE!"}},{"$f":"IF(AND(OR(Calculations!$E$2=\"Orkney Health Board\",Calculations!$E$2=\"Orkney Islands Local Authority\"),$F214=1),0,IF(AND(OR(Calculations!$E$2=\"Shetland Health Board\",Calculations!$E$2=\"Western Isles Health Board\",Calculations!$E$2=\"Shetland Islands Local Authority\",Calculations!$E$2=\"Eilean Siar Local Authority\"),OR($F214=1,$F214=5)),0,hosp_count(VALUE(LEFT(Options!$B$24,2)),$C214,$E214,$F214,2016,$I214,1,$H214,$G214*$H214, Options!$B$8)))","v":{"$error":"#NAME?"}},{"$f":"IF(AND(OR(Calculations!$E$2=\"Orkney Health Board\",Calculations!$E$2=\"Orkney Islands Local Authority\"),$F214=1),0,IF(AND(OR(Calculations!$E$2=\"Shetland Health Board\",Calculations!$E$2=\"Western Isles Health Board\",Calculations!$E$2=\"Shetland Islands Local Authority\",Calculations!$E$2=\"Eilean Siar Local Authority\"),OR($F214=1,$F214=5)),0,hosp_count(VALUE(LEFT(Options!$B$24,2)),$C214,$E214,$F214,2016,$I214+$J214,1,$H214,$G214*$H214, Options!$B$8)))","v":{"$error":"#NAME?"}},{"$f":"IF(AND(OR(Calculations!$E$2=\"Orkney Health Board\",Calculations!$E$2=\"Orkney Islands Local Authority\"),$F214=1),0,IF(AND(OR(Calculations!$E$2=\"Shetland Health Board\",Calculations!$E$2=\"Western Isles Health Board\",Calculations!$E$2=\"Shetland Islands Local Authority\",Calculations!$E$2=\"Eilean Siar Local Authority\"),OR($F214=1,$F214=5)),0,prem_mort(VALUE(LEFT(Options!$B$24,2)),$C214,$E214,$F214,2016,$I214,1,$H214,$G214*$H214,Options!$B$8)))","v":{"$error":"#VALUE!"}},{"$f":"IF(AND(OR(Calculations!$E$2=\"Orkney Health Board\",Calculations!$E$2=\"Orkney Islands Local Authority\"),$F214=1),0,IF(AND(OR(Calculations!$E$2=\"Shetland Health Board\",Calculations!$E$2=\"Western Isles Health Board\",Calculations!$E$2=\"Shetland Islands Local Authority\",Calculations!$E$2=\"Eilean Siar Local Authority\"),OR($F214=1,$F214=5)),0,prem_mort(VALUE(LEFT(Options!$B$24,2)),$C214,$E214,$F214,2016,$I214+$J214,1,$H214,$G214*$H214,Options!$B$8)))","v":{"$error":"#VALUE!"}},{"$error":"#VALUE!"},{"$error":"#VALUE!"},{"$error":"#VALUE!"},{"$error":"#VALUE!"},{"$error":"#NAME?"},{"$error":"#NAME?"},{"$error":"#VALUE!"},{"$error":"#VALUE!"},{"$error":"#VALUE!"},{"$error":"#VALUE!"},{"$error":"#VALUE!"},{"$error":"#VALUE!"},{"$error":"#NAME?"},{"$error":"#NAME?"},{"$error":"#VALUE!"},{"$error":"#VALUE!"},6600]
["SIMD Q5 (least deprived)","Female 16-19",17.570053000000001,81.100049999999996,"female",5,{"$f":"HLOOKUP(Calculations!$E$2,'Prevalence Rates'!$C$3:$BC$249,'Prevalence Rates'!$BD215,FALSE)","v":0.14599999999999994},{"$f":"HLOOKUP(Calculations!$E$2,'Population 2016'!$C$3:$BC$249,'Population 2016'!BD215,FALSE)","v":25268},0,{"$f":"HLOOKUP(Results!E$4,Targeting!$C$3:$F$249,Targeting!$G215,FALSE)","v":4149},{"$f":"IF(AND(OR(Calculations!$E$2=\"Orkney Health Board\",Calculations!$E$2=\"Orkney Islands Local Authority\"),$F215=1),0,IF(AND(OR(Calculations!$E$2=\"Shetland Health Board\",Calculations!$E$2=\"Western Isles Health Board\",Calculations!$E$2=\"Shetland Islands Local Authority\",Calculations!$E$2=\"Eilean Siar Local Authority\"),OR($F215=1,$F215=5)),0,new_ci(VALUE(LEFT(Options!$B$24,2)),$C215,$E215,$F215,2016,$I215,1,$H215,$G215*$H215,Options!$B$8)))","v":2.6542120656999999},{"$f":"IF(AND(OR(Calculations!$E$2=\"Orkney Health Board\",Calculations!$E$2=\"Orkney Islands Local Authority\"),$F215=1),0,IF(AND(OR(Calculations!$E$2=\"Shetland Health Board\",Calculations!$E$2=\"Western Isles Health Board\",Calculations!$E$2=\"Shetland Islands Local Authority\",Calculations!$E$2=\"Eilean Siar Local Authority\"),OR($F215=1,$F215=5)),0,new_ci(VALUE(LEFT(Options!$B$24,2)),$C215,$E215,$F215,2016,$I215+$J215,1,$H215,$G215*$H215,Options!$B$8)))","v":2.6314996099000001},{"$f":"IF(AND(OR(Calculations!$E$2=\"Orkney Health Board\",Calculations!$E$2=\"Orkney Islands Local Authority\"),$F215=1),0,IF(AND(OR(Calculations!$E$2=\"Shetland Health Board\",Calculations!$E$2=\"Western Isles Health Board\",Calculations!$E$2=\"Shetland Islands Local Authority\",Calculations!$E$2=\"Eilean Siar Local Authority\"),OR($F215=1,$F215=5)),0,new_yllv2(VALUE(LEFT(Options!$B$24,2)),$C215,$D215,$E215,$F215,2016,$I215,1,$H215,$G215*$H215,Options!$B$8)))","v":165.96787250560001},{"$f":"IF(AND(OR(Calculations!$E$2=\"Orkney Health Board\",Calculations!$E$2=\"Orkney Islands Local Authority\"),$F215=1),0,IF(AND(OR(Calculations!$E$2=\"Shetland Health Board\",Calculations!$E$2=\"Western Isles Health Board\",Calculations!$E$2=\"Shetland Islands Local Authority\",Calculations!$E$2=\"Eilean Siar Local Authority\"),OR($F215=1,$F215=5)),0,new_yllv2(VALUE(LEFT(Options!$B$24,2)),$C215,$D215,$E215,$F215,2016,$I215+$J215,1,$H215,$G215*$H215,Options!$B$8)))","v":164.5476627125},{"$f":"IF(AND(OR(Calculations!$E$2=\"Orkney Health Board\",Calculations!$E$2=\"Orkney Islands Local Authority\"),$F215=1),0,IF(AND(OR(Calculations!$E$2=\"Shetland Health Board\",Calculations!$E$2=\"Western Isles Health Board\",Calculations!$E$2=\"Shetland Islands Local Authority\",Calculations!$E$2=\"Eilean Siar Local Authority\"),OR($F215=1,$F215=5)),0,hosp_count(VALUE(LEFT(Options!$B$24,2)),$C215,$E215,$F215,2016,$I215,1,$H215,$G215*$H215, Options!$B$8)))","v":{"$error":"#NAME?"}},{"$f":"IF(AND(OR(Calculations!$E$2=\"Orkney Health Board\",Calculations!$E$2=\"Orkney Islands Local Authority\"),$F215=1),0,IF(AND(OR(Calculations!$E$2=\"Shetland Health Board\",Calculations!$E$2=\"Western Isles Health Board\",Calculations!$E$2=\"Shetland Islands Local Authority\",Calculations!$E$2=\"Eilean Siar Local Authority\"),OR($F215=1,$F215=5)),0,hosp_count(VALUE(LEFT(Options!$B$24,2)),$C215,$E215,$F215,2016,$I215+$J215,1,$H215,$G215*$H215, Options!$B$8)))","v":{"$error":"#NAME?"}},{"$f":"IF(AND(OR(Calculations!$E$2=\"Orkney Health Board\",Calculations!$E$2=\"Orkney Islands Local Authority\"),$F215=1),0,IF(AND(OR(Calculations!$E$2=\"Shetland Health Board\",Calculations!$E$2=\"Western Isles Health Board\",Calculations!$E$2=\"Shetland Islands Local Authority\",Calculations!$E$2=\"Eilean Siar Local Authority\"),OR($F215=1,$F215=5)),0,prem_mort(VALUE(LEFT(Options!$B$24,2)),$C215,$E215,$F215,2016,$I215,1,$H215,$G215*$H215,Options!$B$8)))","v":2.6542120656999999},{"$f":"IF(AND(OR(Calculations!$E$2=\"Orkney Health Board\",Calculations!$E$2=\"Orkney Islands Local Authority\"),$F215=1),0,IF(AND(OR(Calculations!$E$2=\"Shetland Health Board\",Calculations!$E$2=\"Western Isles Health Board\",Calculations!$E$2=\"Shetland Islands Local Authority\",Calculations!$E$2=\"Eilean Siar Local Authority\"),OR($F215=1,$F215=5)),0,prem_mort(VALUE(LEFT(Options!$B$24,2)),$C215,$E215,$F215,2016,$I215+$J215,1,$H215,$G215*$H215,Options!$B$8)))","v":2.6314996099000001},10.504242780196295,10.41435653751781,656.83026953300623,651.20968304772839,{"$error":"#NAME?"},{"$error":"#NAME?"},10.504242780196295,10.41435653751781,46218.668232863696,45823.168765078364,2890053.1859452273,2865322.605410005,{"$error":"#NAME?"},{"$error":"#NAME?"},46218.668232863696,45823.168765078364,4400]
[null,"Female 20-24",22.077057,81.667060000000006,"female",5,{"$f":"HLOOKUP(Calculations!$E$2,'Prevalence Rates'!$C$3:$BC$249,'Prevalence Rates'!$BD216,FALSE)","v":0.14599999999999994},{"$f":"HLOOKUP(Calculations!$E$2,'Population 2016'!$C$3:$BC$249,'Population 2016'!BD216,FALSE)","v":38013},0,{"$f":"HLOOKUP(Results!E$4,Targeting!$C$3:$F$249,Targeting!$G216,FALSE)","v":6241},{"$f":"IF(AND(OR(Calculations!$E$2=\"Orkney Health Board\",Calculations!$E$2=\"Orkney Islands Local Authority\"),$F216=1),0,IF(AND(OR(Calculations!$E$2=\"Shetland Health Board\",Calculations!$E$2=\"Western Isles Health Board\",Calculations!$E$2=\"Shetland Islands Local Authority\",Calculations!$E$2=\"Eilean Siar Local Authority\"),OR($F216=1,$F216=5)),0,new_ci(VALUE(LEFT(Options!$B$24,2)),$C216,$E216,$F216,2016,$I216,1,$H216,$G216*$H216,Options!$B$8)))","v":5.8582596841000001},{"$f":"IF(AND(OR(Calculations!$E$2=\"Orkney Health Board\",Calculations!$E$2=\"Orkney Islands Local Authority\"),$F216=1),0,IF(AND(OR(Calculations!$E$2=\"Shetland Health Board\",Calculations!$E$2=\"Western Isles Health Board\",Calculations!$E$2=\"Shetland Islands Local Authority\",Calculations!$E$2=\"Eilean Siar Local Authority\"),OR($F216=1,$F216=5)),0,new_ci(VALUE(LEFT(Options!$B$24,2)),$C216,$E216,$F216,2016,$I216+$J216,1,$H216,$G216*$H216,Options!$B$8)))","v":5.8081382131000003},{"$f":"IF(AND(OR(Calculations!$E$2=\"Orkney Health Board\",Calculations!$E$2=\"Orkney Islands Local Authority\"),$F216=1),0,IF(AND(OR(Calculations!$E$2=\"Shetland Health Board\",Calculations!$E$2=\"Western Isles Health Board\",Calculations!$E$2=\"Shetland Islands Local Authority\",Calculations!$E$2=\"Eilean Siar Local Authority\"),OR($F216=1,$F216=5)),0,new_yllv2(VALUE(LEFT(Options!$B$24,2)),$C216,$D216,$E216,$F216,2016,$I216,1,$H216,$G216*$H216,Options!$B$8)))","v":343.2354524662},{"$f":"IF(AND(OR(Calculations!$E$2=\"Orkney Health Board\",Calculations!$E$2=\"Orkney Islands Local Authority\"),$F216=1),0,IF(AND(OR(Calculations!$E$2=\"Shetland Health Board\",Calculations!$E$2=\"Western Isles Health Board\",Calculations!$E$2=\"Shetland Islands Local Authority\",Calculations!$E$2=\"Eilean Siar Local Authority\"),OR($F216=1,$F216=5)),0,new_yllv2(VALUE(LEFT(Options!$B$24,2)),$C216,$D216,$E216,$F216,2016,$I216+$J216,1,$H216,$G216*$H216,Options!$B$8)))","v":340.29883532989999},{"$f":"IF(AND(OR(Calculations!$E$2=\"Orkney Health Board\",Calculations!$E$2=\"Orkney Islands Local Authority\"),$F216=1),0,IF(AND(OR(Calculations!$E$2=\"Shetland Health Board\",Calculations!$E$2=\"Western Isles Health Board\",Calculations!$E$2=\"Shetland Islands Local Authority\",Calculations!$E$2=\"Eilean Siar Local Authority\"),OR($F216=1,$F216=5)),0,hosp_count(VALUE(LEFT(Options!$B$24,2)),$C216,$E216,$F216,2016,$I216,1,$H216,$G216*$H216, Options!$B$8)))","v":{"$error":"#NAME?"}},{"$f":"IF(AND(OR(Calculations!$E$2=\"Orkney Health Board\",Calculations!$E$2=\"Orkney Islands Local Authority\"),$F216=1),0,IF(AND(OR(Calculations!$E$2=\"Shetland Health Board\",Calculations!$E$2=\"Western Isles Health Board\",Calculations!$E$2=\"Shetland Islands Local Authority\",Calculations!$E$2=\"Eilean Siar Local Authority\"),OR($F216=1,$F216=5)),0,hosp_count(VALUE(LEFT(Options!$B$24,2)),$C216,$E216,$F216,2016,$I216+$J216,1,$H216,$G216*$H216, Options!$B$8)))","v":{"$error":"#NAME?"}},{"$f":"IF(AND(OR(Calculations!$E$2=\"Orkney Health Board\",Calculations!$E$2=\"Orkney Islands Local Authority\"),$F216=1),0,IF(AND(OR(Calculations!$E$2=\"Shetland Health Board\",Calculations!$E$2=\"Western Isles Health Board\",Calculations!$E$2=\"Shetland Islands Local Authority\",Calculations!$E$2=\"Eilean Siar Local Authority\"),OR($F216=1,$F216=5)),0,prem_mort(VALUE(LEFT(Options!$B$24,2)),$C216,$E216,$F216,2016,$I216,1,$H216,$G216*$H216,Options!$B$8)))","v":5.8582596841000001},{"$f":"IF(AND(OR(Calculations!$E$2=\"Orkney Health Board\",Calculations!$E$2=\"Orkney Islands Local Authority\"),$F216=1),0,IF(AND(OR(Calculations!$E$2=\"Shetland Health Board\",Calculations!$E$2=\"Western Isles Health Board\",Calculations!$E$2=\"Shetland Islands Local Authority\",Calculations!$E$2=\"Eilean Siar Local Authority\"),OR($F216=1,$F216=5)),0,prem_mort(VALUE(LEFT(Options!$B$24,2)),$C216,$E216,$F216,2016,$I216+$J216,1,$H216,$G216*$H216,Options!$B$8)))","v":5.8081382131000003},15.411200600057875,15.279347099939494,902.94228939099776,895.2169924233815,{"$error":"#NAME?"},{"$error":"#NAME?"},15.411200600057875,15.279347099939494,92467.203600347246,91676.082599636968,5417653.7363459868,5371301.954540289,{"$error":"#NAME?"},{"$error":"#NAME?"},92467.203600347246,91676.082599636968,6000]
[null,"Female 25-29",26.975186999999998,81.645189999999999,"female",5,{"$f":"HLOOKUP(Calculations!$E$2,'Prevalence Rates'!$C$3:$BC$249,'Prevalence Rates'!$BD217,FALSE)","v":0.18200000000000002},{"$f":"HLOOKUP(Calculations!$E$2,'Population 2016'!$C$3:$BC$249,'Population 2016'!BD217,FALSE)","v":32371},0,{"$f":"HLOOKUP(Results!E$4,Targeting!$C$3:$F$249,Targeting!$G217,FALSE)","v":5315},{"$f":"IF(AND(OR(Calculations!$E$2=\"Orkney Health Board\",Calculations!$E$2=\"Orkney Islands Local Authority\"),$F217=1),0,IF(AND(OR(Calculations!$E$2=\"Shetland Health Board\",Calculations!$E$2=\"Western Isles Health Board\",Calculations!$E$2=\"Shetland Islands Local Authority\",Calculations!$E$2=\"Eilean Siar Local Authority\"),OR($F217=1,$F217=5)),0,new_ci(VALUE(LEFT(Options!$B$24,2)),$C217,$E217,$F217,2016,$I217,1,$H217,$G217*$H217,Options!$B$8)))","v":7.5666732956000002},{"$f":"IF(AND(OR(Calculations!$E$2=\"Orkney Health Board\",Calculations!$E$2=\"Orkney Islands Local Authority\"),$F217=1),0,IF(AND(OR(Calculations!$E$2=\"Shetland Health Board\",Calculations!$E$2=\"Western Isles Health Board\",Calculations!$E$2=\"Shetland Islands Local Authority\",Calculations!$E$2=\"Eilean Siar Local Authority\"),OR($F217=1,$F217=5)),0,new_ci(VALUE(LEFT(Options!$B$24,2)),$C217,$E217,$F217,2016,$I217+$J217,1,$H217,$G217*$H217,Options!$B$8)))","v":7.5028614056},{"$f":"IF(AND(OR(Calculations!$E$2=\"Orkney Health Board\",Calculations!$E$2=\"Orkney Islands Local Authority\"),$F217=1),0,IF(AND(OR(Calculations!$E$2=\"Shetland Health Board\",Calculations!$E$2=\"Western Isles Health Board\",Calculations!$E$2=\"Shetland Islands Local Authority\",Calculations!$E$2=\"Eilean Siar Local Authority\"),OR($F217=1,$F217=5)),0,new_yllv2(VALUE(LEFT(Options!$B$24,2)),$C217,$D217,$E217,$F217,2016,$I217,1,$H217,$G217*$H217,Options!$B$8)))","v":406.10337847490001},{"$f":"IF(AND(OR(Calculations!$E$2=\"Orkney Health Board\",Calculations!$E$2=\"Orkney Islands Local Authority\"),$F217=1),0,IF(AND(OR(Calculations!$E$2=\"Shetland Health Board\",Calculations!$E$2=\"Western Isles Health Board\",Calculations!$E$2=\"Shetland Islands Local Authority\",Calculations!$E$2=\"Eilean Siar Local Authority\"),OR($F217=1,$F217=5)),0,new_yllv2(VALUE(LEFT(Options!$B$24,2)),$C217,$D217,$E217,$F217,2016,$I217+$J217,1,$H217,$G217*$H217,Options!$B$8)))","v":402.6785941471},{"$f":"IF(AND(OR(Calculations!$E$2=\"Orkney Health Board\",Calculations!$E$2=\"Orkney Islands Local Authority\"),$F217=1),0,IF(AND(OR(Calculations!$E$2=\"Shetland Health Board\",Calculations!$E$2=\"Western Isles Health Board\",Calculations!$E$2=\"Shetland Islands Local Authority\",Calculations!$E$2=\"Eilean Siar Local Authority\"),OR($F217=1,$F217=5)),0,hosp_count(VALUE(LEFT(Options!$B$24,2)),$C217,$E217,$F217,2016,$I217,1,$H217,$G217*$H217, Options!$B$8)))","v":{"$error":"#NAME?"}},{"$f":"IF(AND(OR(Calculations!$E$2=\"Orkney Health Board\",Calculations!$E$2=\"Orkney Islands Local Authority\"),$F217=1),0,IF(AND(OR(Calculations!$E$2=\"Shetland Health Board\",Calculations!$E$2=\"Western Isles Health Board\",Calculations!$E$2=\"Shetland Islands Local Authority\",Calculations!$E$2=\"Eilean Siar Local Authority\"),OR($F217=1,$F217=5)),0,hosp_count(VALUE(LEFT(Options!$B$24,2)),$C217,$E217,$F217,2016,$I217+$J217,1,$H217,$G217*$H217, Options!$B$8)))","v":{"$error":"#NAME?"}},{"$f":"IF(AND(OR(Calculations!$E$2=\"Orkney Health Board\",Calculations!$E$2=\"Orkney Islands Local Authority\"),$F217=1),0,IF(AND(OR(Calculations!$E$2=\"Shetland Health Board\",Calculations!$E$2=\"Western Isles Health Board\",Calculations!$E$2=\"Shetland Islands Local Authority\",Calculations!$E$2=\"Eilean Siar Local Authority\"),OR($F217=1,$F217=5)),0,prem_mort(VALUE(LEFT(Options!$B$24,2)),$C217,$E217,$F217,2016,$I217,1,$H217,$G217*$H217,Options!$B$8)))","v":7.5666732956000002},{"$f":"IF(AND(OR(Calculations!$E$2=\"Orkney Health Board\",Calculations!$E$2=\"Orkney Islands Local Authority\"),$F217=1),0,IF(AND(OR(Calculations!$E$2=\"Shetland Health Board\",Calculations!$E$2=\"Western Isles Health Board\",Calculations!$E$2=\"Shetland Islands Local Authority\",Calculations!$E$2=\"Eilean Siar Local Authority\"),OR($F217=1,$F217=5)),0,prem_mort(VALUE(LEFT(Options!$B$24,2)),$C217,$E217,$F217,2016,$I217+$J217,1,$H217,$G217*$H217,Options!$B$8)))","v":7.5028614056},23.374851859998145,23.177725141639119,1254.528369450743,1243.9485778848352,{"$error":"#NAME?"},{"$error":"#NAME?"},23.374851859998145,23.177725141639119,140249.11115998888,139066.35084983471,7527170.216704458,7463691.4673090111,{"$error":"#NAME?"},{"$error":"#NAME?"},140249.11115998888,139066.35084983471,6000]
[null,"Female 30-34",31.999904999999998,81.799899999999994,"female",5,{"$f":"HLOOKUP(Calculations!$E$2,'Prevalence Rates'!$C$3:$BC$249,'Prevalence Rates'!$BD218,FALSE)","v":0.18200000000000002},{"$f":"HLOOKUP(Calculations!$E$2,'Population 2016'!$C$3:$BC$249,'Population 2016'!BD218,FALSE)","v":31633},0,{"$f":"HLOOKUP(Results!E$4,Targeting!$C$3:$F$249,Targeting!$G218,FALSE)","v":5194},{"$f":"IF(AND(OR(Calculations!$E$2=\"Orkney Health Board\",Calculations!$E$2=\"Orkney Islands Local Authority\"),$F218=1),0,IF(AND(OR(Calculations!$E$2=\"Shetland Health Board\",Calculations!$E$2=\"Western Isles Health Board\",Calculations!$E$2=\"Shetland Islands Local Authority\",Calculations!$E$2=\"Eilean Siar Local Authority\"),OR($F218=1,$F218=5)),0,new_ci(VALUE(LEFT(Options!$B$24,2)),$C218,$E218,$F218,2016,$I218,1,$H218,$G218*$H218,Options!$B$8)))","v":11.336204179399999},{"$f":"IF(AND(OR(Calculations!$E$2=\"Orkney Health Board\",Calculations!$E$2=\"Orkney Islands Local Authority\"),$F218=1),0,IF(AND(OR(Calculations!$E$2=\"Shetland Health Board\",Calculations!$E$2=\"Western Isles Health Board\",Calculations!$E$2=\"Shetland Islands Local Authority\",Calculations!$E$2=\"Eilean Siar Local Authority\"),OR($F218=1,$F218=5)),0,new_ci(VALUE(LEFT(Options!$B$24,2)),$C218,$E218,$F218,2016,$I218+$J218,1,$H218,$G218*$H218,Options!$B$8)))","v":11.240608609400001},{"$f":"IF(AND(OR(Calculations!$E$2=\"Orkney Health Board\",Calculations!$E$2=\"Orkney Islands Local Authority\"),$F218=1),0,IF(AND(OR(Calculations!$E$2=\"Shetland Health Board\",Calculations!$E$2=\"Western Isles Health Board\",Calculations!$E$2=\"Shetland Islands Local Authority\",Calculations!$E$2=\"Eilean Siar Local Authority\"),OR($F218=1,$F218=5)),0,new_yllv2(VALUE(LEFT(Options!$B$24,2)),$C218,$D218,$E218,$F218,2016,$I218,1,$H218,$G218*$H218,Options!$B$8)))","v":553.20670727369998},{"$f":"IF(AND(OR(Calculations!$E$2=\"Orkney Health Board\",Calculations!$E$2=\"Orkney Islands Local Authority\"),$F218=1),0,IF(AND(OR(Calculations!$E$2=\"Shetland Health Board\",Calculations!$E$2=\"Western Isles Health Board\",Calculations!$E$2=\"Shetland Islands Local Authority\",Calculations!$E$2=\"Eilean Siar Local Authority\"),OR($F218=1,$F218=5)),0,new_yllv2(VALUE(LEFT(Options!$B$24,2)),$C218,$D218,$E218,$F218,2016,$I218+$J218,1,$H218,$G218*$H218,Options!$B$8)))","v":548.54164393569999},{"$f":"IF(AND(OR(Calculations!$E$2=\"Orkney Health Board\",Calculations!$E$2=\"Orkney Islands Local Authority\"),$F218=1),0,IF(AND(OR(Calculations!$E$2=\"Shetland Health Board\",Calculations!$E$2=\"Western Isles Health Board\",Calculations!$E$2=\"Shetland Islands Local Authority\",Calculations!$E$2=\"Eilean Siar Local Authority\"),OR($F218=1,$F218=5)),0,hosp_count(VALUE(LEFT(Options!$B$24,2)),$C218,$E218,$F218,2016,$I218,1,$H218,$G218*$H218, Options!$B$8)))","v":{"$error":"#NAME?"}},{"$f":"IF(AND(OR(Calculations!$E$2=\"Orkney Health Board\",Calculations!$E$2=\"Orkney Islands Local Authority\"),$F218=1),0,IF(AND(OR(Calculations!$E$2=\"Shetland Health Board\",Calculations!$E$2=\"Western Isles Health Board\",Calculations!$E$2=\"Shetland Islands Local Authority\",Calculations!$E$2=\"Eilean Siar Local Authority\"),OR($F218=1,$F218=5)),0,hosp_count(VALUE(LEFT(Options!$B$24,2)),$C218,$E218,$F218,2016,$I218+$J218,1,$H218,$G218*$H218, Options!$B$8)))","v":{"$error":"#NAME?"}},{"$f":"IF(AND(OR(Calculations!$E$2=\"Orkney Health Board\",Calculations!$E$2=\"Orkney Islands Local Authority\"),$F218=1),0,IF(AND(OR(Calculations!$E$2=\"Shetland Health Board\",Calculations!$E$2=\"Western Isles Health Board\",Calculations!$E$2=\"Shetland Islands Local Authority\",Calculations!$E$2=\"Eilean Siar Local Authority\"),OR($F218=1,$F218=5)),0,prem_mort(VALUE(LEFT(Options!$B$24,2)),$C218,$E218,$F218,2016,$I218,1,$H218,$G218*$H218,Options!$B$8)))","v":11.336204179399999},{"$f":"IF(AND(OR(Calculations!$E$2=\"Orkney Health Board\",Calculations!$E$2=\"Orkney Islands Local Authority\"),$F218=1),0,IF(AND(OR(Calculations!$E$2=\"Shetland Health Board\",Calculations!$E$2=\"Western Isles Health Board\",Calculations!$E$2=\"Shetland Islands Local Authority\",Calculations!$E$2=\"Eilean Siar Local Authority\"),OR($F218=1,$F218=5)),0,prem_mort(VALUE(LEFT(Options!$B$24,2)),$C218,$E218,$F218,2016,$I218+$J218,1,$H218,$G218*$H218,Options!$B$8)))","v":11.240608609400001},35.836639520121388,35.534437484272758,1748.8278293987289,1734.0803715603956,{"$error":"#NAME?"},{"$error":"#NAME?"},35.836639520121388,35.534437484272758,232938.15688078903,230973.84364777291,11367380.891091738,11271522.415142572,{"$error":"#NAME?"},{"$error":"#NAME?"},232938.15688078903,230973.84364777291,6500]
[null,"Female 35-39",36.918118,81.898120000000006,"female",5,{"$f":"HLOOKUP(Calculations!$E$2,'Prevalence Rates'!$C$3:$BC$249,'Prevalence Rates'!$BD219,FALSE)","v":0.14599999999999994},{"$f":"HLOOKUP(Calculations!$E$2,'Population 2016'!$C$3:$BC$249,'Population 2016'!BD219,FALSE)","v":33676},0,{"$f":"HLOOKUP(Results!E$4,Targeting!$C$3:$F$249,Targeting!$G219,FALSE)","v":5529},{"$f":"IF(AND(OR(Calculations!$E$2=\"Orkney Health Board\",Calculations!$E$2=\"Orkney Islands Local Authority\"),$F219=1),0,IF(AND(OR(Calculations!$E$2=\"Shetland Health Board\",Calculations!$E$2=\"Western Isles Health Board\",Calculations!$E$2=\"Shetland Islands Local Authority\",Calculations!$E$2=\"Eilean Siar Local Authority\"),OR($F219=1,$F219=5)),0,new_ci(VALUE(LEFT(Options!$B$24,2)),$C219,$E219,$F219,2016,$I219,1,$H219,$G219*$H219,Options!$B$8)))","v":18.334916870000001},{"$f":"IF(AND(OR(Calculations!$E$2=\"Orkney Health Board\",Calculations!$E$2=\"Orkney Islands Local Authority\"),$F219=1),0,IF(AND(OR(Calculations!$E$2=\"Shetland Health Board\",Calculations!$E$2=\"Western Isles Health Board\",Calculations!$E$2=\"Shetland Islands Local Authority\",Calculations!$E$2=\"Eilean Siar Local Authority\"),OR($F219=1,$F219=5)),0,new_ci(VALUE(LEFT(Options!$B$24,2)),$C219,$E219,$F219,2016,$I219+$J219,1,$H219,$G219*$H219,Options!$B$8)))","v":18.178093972700001},{"$f":"IF(AND(OR(Calculations!$E$2=\"Orkney Health Board\",Calculations!$E$2=\"Orkney Islands Local Authority\"),$F219=1),0,IF(AND(OR(Calculations!$E$2=\"Shetland Health Board\",Calculations!$E$2=\"Western Isles Health Board\",Calculations!$E$2=\"Shetland Islands Local Authority\",Calculations!$E$2=\"Eilean Siar Local Authority\"),OR($F219=1,$F219=5)),0,new_yllv2(VALUE(LEFT(Options!$B$24,2)),$C219,$D219,$E219,$F219,2016,$I219,1,$H219,$G219*$H219,Options!$B$8)))","v":806.36968061239997},{"$f":"IF(AND(OR(Calculations!$E$2=\"Orkney Health Board\",Calculations!$E$2=\"Orkney Islands Local Authority\"),$F219=1),0,IF(AND(OR(Calculations!$E$2=\"Shetland Health Board\",Calculations!$E$2=\"Western Isles Health Board\",Calculations!$E$2=\"Shetland Islands Local Authority\",Calculations!$E$2=\"Eilean Siar Local Authority\"),OR($F219=1,$F219=5)),0,new_yllv2(VALUE(LEFT(Options!$B$24,2)),$C219,$D219,$E219,$F219,2016,$I219+$J219,1,$H219,$G219*$H219,Options!$B$8)))","v":799.47260927549996},{"$f":"IF(AND(OR(Calculations!$E$2=\"Orkney Health Board\",Calculations!$E$2=\"Orkney Islands Local Authority\"),$F219=1),0,IF(AND(OR(Calculations!$E$2=\"Shetland Health Board\",Calculations!$E$2=\"Western Isles Health Board\",Calculations!$E$2=\"Shetland Islands Local Authority\",Calculations!$E$2=\"Eilean Siar Local Authority\"),OR($F219=1,$F219=5)),0,hosp_count(VALUE(LEFT(Options!$B$24,2)),$C219,$E219,$F219,2016,$I219,1,$H219,$G219*$H219, Options!$B$8)))","v":{"$error":"#NAME?"}},{"$f":"IF(AND(OR(Calculations!$E$2=\"Orkney Health Board\",Calculations!$E$2=\"Orkney Islands Local Authority\"),$F219=1),0,IF(AND(OR(Calculations!$E$2=\"Shetland Health Board\",Calculations!$E$2=\"Western Isles Health Board\",Calculations!$E$2=\"Shetland Islands Local Authority\",Calculations!$E$2=\"Eilean Siar Local Authority\"),OR($F219=1,$F219=5)),0,hosp_count(VALUE(LEFT(Options!$B$24,2)),$C219,$E219,$F219,2016,$I219+$J219,1,$H219,$G219*$H219, Options!$B$8)))","v":{"$error":"#NAME?"}},{"$f":"IF(AND(OR(Calculations!$E$2=\"Orkney Health Board\",Calculations!$E$2=\"Orkney Islands Local Authority\"),$F219=1),0,IF(AND(OR(Calculations!$E$2=\"Shetland Health Board\",Calculations!$E$2=\"Western Isles Health Board\",Calculations!$E$2=\"Shetland Islands Local Authority\",Calculations!$E$2=\"Eilean Siar Local Authority\"),OR($F219=1,$F219=5)),0,prem_mort(VALUE(LEFT(Options!$B$24,2)),$C219,$E219,$F219,2016,$I219,1,$H219,$G219*$H219,Options!$B$8)))","v":18.334916870000001},{"$f":"IF(AND(OR(Calculations!$E$2=\"Orkney Health Board\",Calculations!$E$2=\"Orkney Islands Local Authority\"),$F219=1),0,IF(AND(OR(Calculations!$E$2=\"Shetland Health Board\",Calculations!$E$2=\"Western Isles Health Board\",Calculations!$E$2=\"Shetland Islands Local Authority\",Calculations!$E$2=\"Eilean Siar Local Authority\"),OR($F219=1,$F219=5)),0,prem_mort(VALUE(LEFT(Options!$B$24,2)),$C219,$E219,$F219,2016,$I219+$J219,1,$H219,$G219*$H219,Options!$B$8)))","v":18.178093972700001},54.445055440076025,53.979373953854378,2394.493647144554,2374.0129744491628,{"$error":"#NAME?"},{"$error":"#NAME?"},54.445055440076025,53.979373953854378,381115.3880805322,377855.61767698062,16761455.530011877,16618090.821144139,{"$error":"#NAME?"},{"$error":"#NAME?"},381115.3880805322,377855.61767698062,7000]
[null,"Female 40-44",42.077438000000001,82.30744,"female",5,{"$f":"HLOOKUP(Calculations!$E$2,'Prevalence Rates'!$C$3:$BC$249,'Prevalence Rates'!$BD220,FALSE)","v":0.14599999999999994},{"$f":"HLOOKUP(Calculations!$E$2,'Population 2016'!$C$3:$BC$249,'Population 2016'!BD220,FALSE)","v":36508},0,{"$f":"HLOOKUP(Results!E$4,Targeting!$C$3:$F$249,Targeting!$G220,FALSE)","v":5994},{"$f":"IF(AND(OR(Calculations!$E$2=\"Orkney Health Board\",Calculations!$E$2=\"Orkney Islands Local Authority\"),$F220=1),0,IF(AND(OR(Calculations!$E$2=\"Shetland Health Board\",Calculations!$E$2=\"Western Isles Health Board\",Calculations!$E$2=\"Shetland Islands Local Authority\",Calculations!$E$2=\"Eilean Siar Local Authority\"),OR($F220=1,$F220=5)),0,new_ci(VALUE(LEFT(Options!$B$24,2)),$C220,$E220,$F220,2016,$I220,1,$H220,$G220*$H220,Options!$B$8)))","v":30.821812007799998},{"$f":"IF(AND(OR(Calculations!$E$2=\"Orkney Health Board\",Calculations!$E$2=\"Orkney Islands Local Authority\"),$F220=1),0,IF(AND(OR(Calculations!$E$2=\"Shetland Health Board\",Calculations!$E$2=\"Western Isles Health Board\",Calculations!$E$2=\"Shetland Islands Local Authority\",Calculations!$E$2=\"Eilean Siar Local Authority\"),OR($F220=1,$F220=5)),0,new_ci(VALUE(LEFT(Options!$B$24,2)),$C220,$E220,$F220,2016,$I220+$J220,1,$H220,$G220*$H220,Options!$B$8)))","v":30.558248035599998},{"$f":"IF(AND(OR(Calculations!$E$2=\"Orkney Health Board\",Calculations!$E$2=\"Orkney Islands Local Authority\"),$F220=1),0,IF(AND(OR(Calculations!$E$2=\"Shetland Health Board\",Calculations!$E$2=\"Western Isles Health Board\",Calculations!$E$2=\"Shetland Islands Local Authority\",Calculations!$E$2=\"Eilean Siar Local Authority\"),OR($F220=1,$F220=5)),0,new_yllv2(VALUE(LEFT(Options!$B$24,2)),$C220,$D220,$E220,$F220,2016,$I220,1,$H220,$G220*$H220,Options!$B$8)))","v":1209.1397467096001},{"$f":"IF(AND(OR(Calculations!$E$2=\"Orkney Health Board\",Calculations!$E$2=\"Orkney Islands Local Authority\"),$F220=1),0,IF(AND(OR(Calculations!$E$2=\"Shetland Health Board\",Calculations!$E$2=\"Western Isles Health Board\",Calculations!$E$2=\"Shetland Islands Local Authority\",Calculations!$E$2=\"Eilean Siar Local Authority\"),OR($F220=1,$F220=5)),0,new_yllv2(VALUE(LEFT(Options!$B$24,2)),$C220,$D220,$E220,$F220,2016,$I220+$J220,1,$H220,$G220*$H220,Options!$B$8)))","v":1198.8001315531001},{"$f":"IF(AND(OR(Calculations!$E$2=\"Orkney Health Board\",Calculations!$E$2=\"Orkney Islands Local Authority\"),$F220=1),0,IF(AND(OR(Calculations!$E$2=\"Shetland Health Board\",Calculations!$E$2=\"Western Isles Health Board\",Calculations!$E$2=\"Shetland Islands Local Authority\",Calculations!$E$2=\"Eilean Siar Local Authority\"),OR($F220=1,$F220=5)),0,hosp_count(VALUE(LEFT(Options!$B$24,2)),$C220,$E220,$F220,2016,$I220,1,$H220,$G220*$H220, Options!$B$8)))","v":{"$error":"#NAME?"}},{"$f":"IF(AND(OR(Calculations!$E$2=\"Orkney Health Board\",Calculations!$E$2=\"Orkney Islands Local Authority\"),$F220=1),0,IF(AND(OR(Calculations!$E$2=\"Shetland Health Board\",Calculations!$E$2=\"Western Isles Health Board\",Calculations!$E$2=\"Shetland Islands Local Authority\",Calculations!$E$2=\"Eilean Siar Local Authority\"),OR($F220=1,$F220=5)),0,hosp_count(VALUE(LEFT(Options!$B$24,2)),$C220,$E220,$F220,2016,$I220+$J220,1,$H220,$G220*$H220, Options!$B$8)))","v":{"$error":"#NAME?"}},{"$f":"IF(AND(OR(Calculations!$E$2=\"Orkney Health Board\",Calculations!$E$2=\"Orkney Islands Local Authority\"),$F220=1),0,IF(AND(OR(Calculations!$E$2=\"Shetland Health Board\",Calculations!$E$2=\"Western Isles Health Board\",Calculations!$E$2=\"Shetland Islands Local Authority\",Calculations!$E$2=\"Eilean Siar Local Authority\"),OR($F220=1,$F220=5)),0,prem_mort(VALUE(LEFT(Options!$B$24,2)),$C220,$E220,$F220,2016,$I220,1,$H220,$G220*$H220,Options!$B$8)))","v":30.821812007799998},{"$f":"IF(AND(OR(Calculations!$E$2=\"Orkney Health Board\",Calculations!$E$2=\"Orkney Islands Local Authority\"),$F220=1),0,IF(AND(OR(Calculations!$E$2=\"Shetland Health Board\",Calculations!$E$2=\"Western Isles Health Board\",Calculations!$E$2=\"Shetland Islands Local Authority\",Calculations!$E$2=\"Eilean Siar Local Authority\"),OR($F220=1,$F220=5)),0,prem_mort(VALUE(LEFT(Options!$B$24,2)),$C220,$E220,$F220,2016,$I220+$J220,1,$H220,$G220*$H220,Options!$B$8)))","v":30.558248035599998},84.424816499945223,83.702881657718848,3311.9857201424347,3283.6642148381179,{"$error":"#NAME?"},{"$error":"#NAME?"},84.424816499945223,83.702881657718848,590973.71549961658,585920.17160403193,23183900.040997043,22985649.503866825,{"$f":"W220*$AI220","v":{"$error":"#NAME?"}},{"$f":"X220*$AI220","v":{"$error":"#NAME?"}},{"$f":"Y220*$AI220","v":590973.71549961658},{"$f":"Z220*$AI220","v":585920.17160403193},7000]
[null,"Female 45-49",47.025772000000003,82.585769999999997,"female",5,{"$f":"HLOOKUP(Calculations!$E$2,'Prevalence Rates'!$C$3:$BC$249,'Prevalence Rates'!$BD221,FALSE)","v":0.22599999999999995},{"$f":"HLOOKUP(Calculations!$E$2,'Population 2016'!$C$3:$BC$249,'Population 2016'!BD221,FALSE)","v":41785},0,{"$f":"HLOOKUP(Results!E$4,Targeting!$C$3:$F$249,Targeting!$G221,FALSE)","v":6861},{"$f":"IF(AND(OR(Calculations!$E$2=\"Orkney Health Board\",Calculations!$E$2=\"Orkney Islands Local Authority\"),$F221=1),0,IF(AND(OR(Calculations!$E$2=\"Shetland Health Board\",Calculations!$E$2=\"Western Isles Health Board\",Calculations!$E$2=\"Shetland Islands Local Authority\",Calculations!$E$2=\"Eilean Siar Local Authority\"),OR($F221=1,$F221=5)),0,new_ci(VALUE(LEFT(Options!$B$24,2)),$C221,$E221,$F221,2016,$I221,1,$H221,$G221*$H221,Options!$B$8)))","v":53.724884876799997},{"$f":"IF(AND(OR(Calculations!$E$2=\"Orkney Health Board\",Calculations!$E$2=\"Orkney Islands Local Authority\"),$F221=1),0,IF(AND(OR(Calculations!$E$2=\"Shetland Health Board\",Calculations!$E$2=\"Western Isles Health Board\",Calculations!$E$2=\"Shetland Islands Local Authority\",Calculations!$E$2=\"Eilean Siar Local Authority\"),OR($F221=1,$F221=5)),0,new_ci(VALUE(LEFT(Options!$B$24,2)),$C221,$E221,$F221,2016,$I221+$J221,1,$H221,$G221*$H221,Options!$B$8)))","v":53.279940107500003},{"$f":"IF(AND(OR(Calculations!$E$2=\"Orkney Health Board\",Calculations!$E$2=\"Orkney Islands Local Authority\"),$F221=1),0,IF(AND(OR(Calculations!$E$2=\"Shetland Health Board\",Calculations!$E$2=\"Western Isles Health Board\",Calculations!$E$2=\"Shetland Islands Local Authority\",Calculations!$E$2=\"Eilean Siar Local Authority\"),OR($F221=1,$F221=5)),0,new_yllv2(VALUE(LEFT(Options!$B$24,2)),$C221,$D221,$E221,$F221,2016,$I221,1,$H221,$G221*$H221,Options!$B$8)))","v":1856.7319138923999},{"$f":"IF(AND(OR(Calculations!$E$2=\"Orkney Health Board\",Calculations!$E$2=\"Orkney Islands Local Authority\"),$F221=1),0,IF(AND(OR(Calculations!$E$2=\"Shetland Health Board\",Calculations!$E$2=\"Western Isles Health Board\",Calculations!$E$2=\"Shetland Islands Local Authority\",Calculations!$E$2=\"Eilean Siar Local Authority\"),OR($F221=1,$F221=5)),0,new_yllv2(VALUE(LEFT(Options!$B$24,2)),$C221,$D221,$E221,$F221,2016,$I221+$J221,1,$H221,$G221*$H221,Options!$B$8)))","v":1841.3546235552999},{"$f":"IF(AND(OR(Calculations!$E$2=\"Orkney Health Board\",Calculations!$E$2=\"Orkney Islands Local Authority\"),$F221=1),0,IF(AND(OR(Calculations!$E$2=\"Shetland Health Board\",Calculations!$E$2=\"Western Isles Health Board\",Calculations!$E$2=\"Shetland Islands Local Authority\",Calculations!$E$2=\"Eilean Siar Local Authority\"),OR($F221=1,$F221=5)),0,hosp_count(VALUE(LEFT(Options!$B$24,2)),$C221,$E221,$F221,2016,$I221,1,$H221,$G221*$H221, Options!$B$8)))","v":{"$error":"#NAME?"}},{"$f":"IF(AND(OR(Calculations!$E$2=\"Orkney Health Board\",Calculations!$E$2=\"Orkney Islands Local Authority\"),$F221=1),0,IF(AND(OR(Calculations!$E$2=\"Shetland Health Board\",Calculations!$E$2=\"Western Isles Health Board\",Calculations!$E$2=\"Shetland Islands Local Authority\",Calculations!$E$2=\"Eilean Siar Local Authority\"),OR($F221=1,$F221=5)),0,hosp_count(VALUE(LEFT(Options!$B$24,2)),$C221,$E221,$F221,2016,$I221+$J221,1,$H221,$G221*$H221, Options!$B$8)))","v":{"$error":"#NAME?"}},{"$f":"IF(AND(OR(Calculations!$E$2=\"Orkney Health Board\",Calculations!$E$2=\"Orkney Islands Local Authority\"),$F221=1),0,IF(AND(OR(Calculations!$E$2=\"Shetland Health Board\",Calculations!$E$2=\"Western Isles Health Board\",Calculations!$E$2=\"Shetland Islands Local Authority\",Calculations!$E$2=\"Eilean Siar Local Authority\"),OR($F221=1,$F221=5)),0,prem_mort(VALUE(LEFT(Options!$B$24,2)),$C221,$E221,$F221,2016,$I221,1,$H221,$G221*$H221,Options!$B$8)))","v":53.724884876799997},{"$f":"IF(AND(OR(Calculations!$E$2=\"Orkney Health Board\",Calculations!$E$2=\"Orkney Islands Local Authority\"),$F221=1),0,IF(AND(OR(Calculations!$E$2=\"Shetland Health Board\",Calculations!$E$2=\"Western Isles Health Board\",Calculations!$E$2=\"Shetland Islands Local Authority\",Calculations!$E$2=\"Eilean Siar Local Authority\"),OR($F221=1,$F221=5)),0,prem_mort(VALUE(LEFT(Options!$B$24,2)),$C221,$E221,$F221,2016,$I221+$J221,1,$H221,$G221*$H221,Options!$B$8)))","v":53.279940107500003},128.574571920067,127.50972862869452,4443.5369484082803,4406.7359663881771,{"$error":"#NAME?"},{"$error":"#NAME?"},128.574571920067,127.50972862869452,900022.00344046904,892568.10040086159,31104758.638857961,30847151.76471724,{"$error":"#NAME?"},{"$error":"#NAME?"},900022.00344046904,892568.10040086159,7000]
[null,"Female 50-54",51.990825999999998,82.980829999999997,"female",5,{"$f":"HLOOKUP(Calculations!$E$2,'Prevalence Rates'!$C$3:$BC$249,'Prevalence Rates'!$BD222,FALSE)","v":0.22599999999999995},{"$f":"HLOOKUP(Calculations!$E$2,'Population 2016'!$C$3:$BC$249,'Population 2016'!BD222,FALSE)","v":42428},0,{"$f":"HLOOKUP(Results!E$4,Targeting!$C$3:$F$249,Targeting!$G222,FALSE)","v":6966},{"$f":"IF(AND(OR(Calculations!$E$2=\"Orkney Health Board\",Calculations!$E$2=\"Orkney Islands Local Authority\"),$F222=1),0,IF(AND(OR(Calculations!$E$2=\"Shetland Health Board\",Calculations!$E$2=\"Western Isles Health Board\",Calculations!$E$2=\"Shetland Islands Local Authority\",Calculations!$E$2=\"Eilean Siar Local Authority\"),OR($F222=1,$F222=5)),0,new_ci(VALUE(LEFT(Options!$B$24,2)),$C222,$E222,$F222,2016,$I222,1,$H222,$G222*$H222,Options!$B$8)))","v":83.187726483199995},{"$f":"IF(AND(OR(Calculations!$E$2=\"Orkney Health Board\",Calculations!$E$2=\"Orkney Islands Local Authority\"),$F222=1),0,IF(AND(OR(Calculations!$E$2=\"Shetland Health Board\",Calculations!$E$2=\"Western Isles Health Board\",Calculations!$E$2=\"Shetland Islands Local Authority\",Calculations!$E$2=\"Eilean Siar Local Authority\"),OR($F222=1,$F222=5)),0,new_ci(VALUE(LEFT(Options!$B$24,2)),$C222,$E222,$F222,2016,$I222+$J222,1,$H222,$G222*$H222,Options!$B$8)))","v":82.499185448600002},{"$f":"IF(AND(OR(Calculations!$E$2=\"Orkney Health Board\",Calculations!$E$2=\"Orkney Islands Local Authority\"),$F222=1),0,IF(AND(OR(Calculations!$E$2=\"Shetland Health Board\",Calculations!$E$2=\"Western Isles Health Board\",Calculations!$E$2=\"Shetland Islands Local Authority\",Calculations!$E$2=\"Eilean Siar Local Authority\"),OR($F222=1,$F222=5)),0,new_yllv2(VALUE(LEFT(Options!$B$24,2)),$C222,$D222,$E222,$F222,2016,$I222,1,$H222,$G222*$H222,Options!$B$8)))","v":2494.8002499821},{"$f":"IF(AND(OR(Calculations!$E$2=\"Orkney Health Board\",Calculations!$E$2=\"Orkney Islands Local Authority\"),$F222=1),0,IF(AND(OR(Calculations!$E$2=\"Shetland Health Board\",Calculations!$E$2=\"Western Isles Health Board\",Calculations!$E$2=\"Shetland Islands Local Authority\",Calculations!$E$2=\"Eilean Siar Local Authority\"),OR($F222=1,$F222=5)),0,new_yllv2(VALUE(LEFT(Options!$B$24,2)),$C222,$D222,$E222,$F222,2016,$I222+$J222,1,$H222,$G222*$H222,Options!$B$8)))","v":2474.1509016003001},{"$f":"IF(AND(OR(Calculations!$E$2=\"Orkney Health Board\",Calculations!$E$2=\"Orkney Islands Local Authority\"),$F222=1),0,IF(AND(OR(Calculations!$E$2=\"Shetland Health Board\",Calculations!$E$2=\"Western Isles Health Board\",Calculations!$E$2=\"Shetland Islands Local Authority\",Calculations!$E$2=\"Eilean Siar Local Authority\"),OR($F222=1,$F222=5)),0,hosp_count(VALUE(LEFT(Options!$B$24,2)),$C222,$E222,$F222,2016,$I222,1,$H222,$G222*$H222, Options!$B$8)))","v":{"$error":"#NAME?"}},{"$f":"IF(AND(OR(Calculations!$E$2=\"Orkney Health Board\",Calculations!$E$2=\"Orkney Islands Local Authority\"),$F222=1),0,IF(AND(OR(Calculations!$E$2=\"Shetland Health Board\",Calculations!$E$2=\"Western Isles Health Board\",Calculations!$E$2=\"Shetland Islands Local Authority\",Calculations!$E$2=\"Eilean Siar Local Authority\"),OR($F222=1,$F222=5)),0,hosp_count(VALUE(LEFT(Options!$B$24,2)),$C222,$E222,$F222,2016,$I222+$J222,1,$H222,$G222*$H222, Options!$B$8)))","v":{"$error":"#NAME?"}},{"$f":"IF(AND(OR(Calculations!$E$2=\"Orkney Health Board\",Calculations!$E$2=\"Orkney Islands Local Authority\"),$F222=1),0,IF(AND(OR(Calculations!$E$2=\"Shetland Health Board\",Calculations!$E$2=\"Western Isles Health Board\",Calculations!$E$2=\"Shetland Islands Local Authority\",Calculations!$E$2=\"Eilean Siar Local Authority\"),OR($F222=1,$F222=5)),0,prem_mort(VALUE(LEFT(Options!$B$24,2)),$C222,$E222,$F222,2016,$I222,1,$H222,$G222*$H222,Options!$B$8)))","v":83.187726483199995},{"$f":"IF(AND(OR(Calculations!$E$2=\"Orkney Health Board\",Calculations!$E$2=\"Orkney Islands Local Authority\"),$F222=1),0,IF(AND(OR(Calculations!$E$2=\"Shetland Health Board\",Calculations!$E$2=\"Western Isles Health Board\",Calculations!$E$2=\"Shetland Islands Local Authority\",Calculations!$E$2=\"Eilean Siar Local Authority\"),OR($F222=1,$F222=5)),0,prem_mort(VALUE(LEFT(Options!$B$24,2)),$C222,$E222,$F222,2016,$I222+$J222,1,$H222,$G222*$H222,Options!$B$8)))","v":82.499185448600002},196.06798925992268,194.44514341614027,5880.0797821771002,5831.4106288307248,{"$error":"#NAME?"},{"$error":"#NAME?"},196.06798925992268,194.44514341614027,1372475.9248194587,1361116.0039129818,41160558.475239702,40819874.401815072,{"$error":"#NAME?"},{"$error":"#NAME?"},1372475.9248194587,1361116.0039129818,7000]
[null,"Female 55-59",56.953040999999999,83.473039999999997,"female",5,{"$f":"HLOOKUP(Calculations!$E$2,'Prevalence Rates'!$C$3:$BC$249,'Prevalence Rates'!$BD223,FALSE)","v":0.29799999999999999},{"$f":"HLOOKUP(Calculations!$E$2,'Population 2016'!$C$3:$BC$249,'Population 2016'!BD223,FALSE)","v":38314},0,{"$f":"HLOOKUP(Results!E$4,Targeting!$C$3:$F$249,Targeting!$G223,FALSE)","v":6291},{"$f":"IF(AND(OR(Calculations!$E$2=\"Orkney Health Board\",Calculations!$E$2=\"Orkney Islands Local Authority\"),$F223=1),0,IF(AND(OR(Calculations!$E$2=\"Shetland Health Board\",Calculations!$E$2=\"Western Isles Health Board\",Calculations!$E$2=\"Shetland Islands Local Authority\",Calculations!$E$2=\"Eilean Siar Local Authority\"),OR($F223=1,$F223=5)),0,new_ci(VALUE(LEFT(Options!$B$24,2)),$C223,$E223,$F223,2016,$I223,1,$H223,$G223*$H223,Options!$B$8)))","v":114.50637079320001},{"$f":"IF(AND(OR(Calculations!$E$2=\"Orkney Health Board\",Calculations!$E$2=\"Orkney Islands Local Authority\"),$F223=1),0,IF(AND(OR(Calculations!$E$2=\"Shetland Health Board\",Calculations!$E$2=\"Western Isles Health Board\",Calculations!$E$2=\"Shetland Islands Local Authority\",Calculations!$E$2=\"Eilean Siar Local Authority\"),OR($F223=1,$F223=5)),0,new_ci(VALUE(LEFT(Options!$B$24,2)),$C223,$E223,$F223,2016,$I223+$J223,1,$H223,$G223*$H223,Options!$B$8)))","v":113.5851211569},{"$f":"IF(AND(OR(Calculations!$E$2=\"Orkney Health Board\",Calculations!$E$2=\"Orkney Islands Local Authority\"),$F223=1),0,IF(AND(OR(Calculations!$E$2=\"Shetland Health Board\",Calculations!$E$2=\"Western Isles Health Board\",Calculations!$E$2=\"Shetland Islands Local Authority\",Calculations!$E$2=\"Eilean Siar Local Authority\"),OR($F223=1,$F223=5)),0,new_yllv2(VALUE(LEFT(Options!$B$24,2)),$C223,$D223,$E223,$F223,2016,$I223,1,$H223,$G223*$H223,Options!$B$8)))","v":2922.2024681360999},{"$f":"IF(AND(OR(Calculations!$E$2=\"Orkney Health Board\",Calculations!$E$2=\"Orkney Islands Local Authority\"),$F223=1),0,IF(AND(OR(Calculations!$E$2=\"Shetland Health Board\",Calculations!$E$2=\"Western Isles Health Board\",Calculations!$E$2=\"Shetland Islands Local Authority\",Calculations!$E$2=\"Eilean Siar Local Authority\"),OR($F223=1,$F223=5)),0,new_yllv2(VALUE(LEFT(Options!$B$24,2)),$C223,$D223,$E223,$F223,2016,$I223+$J223,1,$H223,$G223*$H223,Options!$B$8)))","v":2898.6921783389998},{"$f":"IF(AND(OR(Calculations!$E$2=\"Orkney Health Board\",Calculations!$E$2=\"Orkney Islands Local Authority\"),$F223=1),0,IF(AND(OR(Calculations!$E$2=\"Shetland Health Board\",Calculations!$E$2=\"Western Isles Health Board\",Calculations!$E$2=\"Shetland Islands Local Authority\",Calculations!$E$2=\"Eilean Siar Local Authority\"),OR($F223=1,$F223=5)),0,hosp_count(VALUE(LEFT(Options!$B$24,2)),$C223,$E223,$F223,2016,$I223,1,$H223,$G223*$H223, Options!$B$8)))","v":{"$error":"#NAME?"}},{"$f":"IF(AND(OR(Calculations!$E$2=\"Orkney Health Board\",Calculations!$E$2=\"Orkney Islands Local Authority\"),$F223=1),0,IF(AND(OR(Calculations!$E$2=\"Shetland Health Board\",Calculations!$E$2=\"Western Isles Health Board\",Calculations!$E$2=\"Shetland Islands Local Authority\",Calculations!$E$2=\"Eilean Siar Local Authority\"),OR($F223=1,$F223=5)),0,hosp_count(VALUE(LEFT(Options!$B$24,2)),$C223,$E223,$F223,2016,$I223+$J223,1,$H223,$G223*$H223, Options!$B$8)))","v":{"$error":"#NAME?"}},{"$f":"IF(AND(OR(Calculations!$E$2=\"Orkney Health Board\",Calculations!$E$2=\"Orkney Islands Local Authority\"),$F223=1),0,IF(AND(OR(Calculations!$E$2=\"Shetland Health Board\",Calculations!$E$2=\"Western Isles Health Board\",Calculations!$E$2=\"Shetland Islands Local Authority\",Calculations!$E$2=\"Eilean Siar Local Authority\"),OR($F223=1,$F223=5)),0,prem_mort(VALUE(LEFT(Options!$B$24,2)),$C223,$E223,$F223,2016,$I223,1,$H223,$G223*$H223,Options!$B$8)))","v":114.50637079320001},{"$f":"IF(AND(OR(Calculations!$E$2=\"Orkney Health Board\",Calculations!$E$2=\"Orkney Islands Local Authority\"),$F223=1),0,IF(AND(OR(Calculations!$E$2=\"Shetland Health Board\",Calculations!$E$2=\"Western Isles Health Board\",Calculations!$E$2=\"Shetland Islands Local Authority\",Calculations!$E$2=\"Eilean Siar Local Authority\"),OR($F223=1,$F223=5)),0,prem_mort(VALUE(LEFT(Options!$B$24,2)),$C223,$E223,$F223,2016,$I223+$J223,1,$H223,$G223*$H223,Options!$B$8)))","v":113.5851211569},298.86300254006369,296.45852992874666,7626.9835259594411,7565.6213873231709,{"$error":"#NAME?"},{"$error":"#NAME?"},298.86300254006369,296.45852992874666,1942609.516510414,1926980.4445368533,49575392.918736368,49176539.017600611,{"$error":"#NAME?"},{"$error":"#NAME?"},1942609.516510414,1926980.4445368533,6500]
[null,"Female 60-64",61.947387999999997,84.167389999999997,"female",5,{"$f":"HLOOKUP(Calculations!$E$2,'Prevalence Rates'!$C$3:$BC$249,'Prevalence Rates'!$BD224,FALSE)","v":0.29799999999999999},{"$f":"HLOOKUP(Calculations!$E$2,'Population 2016'!$C$3:$BC$249,'Population 2016'!BD224,FALSE)","v":33644},0,{"$f":"HLOOKUP(Results!E$4,Targeting!$C$3:$F$249,Targeting!$G224,FALSE)","v":5524},{"$f":"IF(AND(OR(Calculations!$E$2=\"Orkney Health Board\",Calculations!$E$2=\"Orkney Islands Local Authority\"),$F224=1),0,IF(AND(OR(Calculations!$E$2=\"Shetland Health Board\",Calculations!$E$2=\"Western Isles Health Board\",Calculations!$E$2=\"Shetland Islands Local Authority\",Calculations!$E$2=\"Eilean Siar Local Authority\"),OR($F224=1,$F224=5)),0,new_ci(VALUE(LEFT(Options!$B$24,2)),$C224,$E224,$F224,2016,$I224,1,$H224,$G224*$H224,Options!$B$8)))","v":153.641991953},{"$f":"IF(AND(OR(Calculations!$E$2=\"Orkney Health Board\",Calculations!$E$2=\"Orkney Islands Local Authority\"),$F224=1),0,IF(AND(OR(Calculations!$E$2=\"Shetland Health Board\",Calculations!$E$2=\"Western Isles Health Board\",Calculations!$E$2=\"Shetland Islands Local Authority\",Calculations!$E$2=\"Eilean Siar Local Authority\"),OR($F224=1,$F224=5)),0,new_ci(VALUE(LEFT(Options!$B$24,2)),$C224,$E224,$F224,2016,$I224+$J224,1,$H224,$G224*$H224,Options!$B$8)))","v":152.40735033300001},{"$f":"IF(AND(OR(Calculations!$E$2=\"Orkney Health Board\",Calculations!$E$2=\"Orkney Islands Local Authority\"),$F224=1),0,IF(AND(OR(Calculations!$E$2=\"Shetland Health Board\",Calculations!$E$2=\"Western Isles Health Board\",Calculations!$E$2=\"Shetland Islands Local Authority\",Calculations!$E$2=\"Eilean Siar Local Authority\"),OR($F224=1,$F224=5)),0,new_yllv2(VALUE(LEFT(Options!$B$24,2)),$C224,$D224,$E224,$F224,2016,$I224,1,$H224,$G224*$H224,Options!$B$8)))","v":3260.2833765266},{"$f":"IF(AND(OR(Calculations!$E$2=\"Orkney Health Board\",Calculations!$E$2=\"Orkney Islands Local Authority\"),$F224=1),0,IF(AND(OR(Calculations!$E$2=\"Shetland Health Board\",Calculations!$E$2=\"Western Isles Health Board\",Calculations!$E$2=\"Shetland Islands Local Authority\",Calculations!$E$2=\"Eilean Siar Local Authority\"),OR($F224=1,$F224=5)),0,new_yllv2(VALUE(LEFT(Options!$B$24,2)),$C224,$D224,$E224,$F224,2016,$I224+$J224,1,$H224,$G224*$H224,Options!$B$8)))","v":3234.084278881},{"$f":"IF(AND(OR(Calculations!$E$2=\"Orkney Health Board\",Calculations!$E$2=\"Orkney Islands Local Authority\"),$F224=1),0,IF(AND(OR(Calculations!$E$2=\"Shetland Health Board\",Calculations!$E$2=\"Western Isles Health Board\",Calculations!$E$2=\"Shetland Islands Local Authority\",Calculations!$E$2=\"Eilean Siar Local Authority\"),OR($F224=1,$F224=5)),0,hosp_count(VALUE(LEFT(Options!$B$24,2)),$C224,$E224,$F224,2016,$I224,1,$H224,$G224*$H224, Options!$B$8)))","v":{"$error":"#NAME?"}},{"$f":"IF(AND(OR(Calculations!$E$2=\"Orkney Health Board\",Calculations!$E$2=\"Orkney Islands Local Authority\"),$F224=1),0,IF(AND(OR(Calculations!$E$2=\"Shetland Health Board\",Calculations!$E$2=\"Western Isles Health Board\",Calculations!$E$2=\"Shetland Islands Local Authority\",Calculations!$E$2=\"Eilean Siar Local Authority\"),OR($F224=1,$F224=5)),0,hosp_count(VALUE(LEFT(Options!$B$24,2)),$C224,$E224,$F224,2016,$I224+$J224,1,$H224,$G224*$H224, Options!$B$8)))","v":{"$error":"#NAME?"}},{"$f":"IF(AND(OR(Calculations!$E$2=\"Orkney Health Board\",Calculations!$E$2=\"Orkney Islands Local Authority\"),$F224=1),0,IF(AND(OR(Calculations!$E$2=\"Shetland Health Board\",Calculations!$E$2=\"Western Isles Health Board\",Calculations!$E$2=\"Shetland Islands Local Authority\",Calculations!$E$2=\"Eilean Siar Local Authority\"),OR($F224=1,$F224=5)),0,prem_mort(VALUE(LEFT(Options!$B$24,2)),$C224,$E224,$F224,2016,$I224,1,$H224,$G224*$H224,Options!$B$8)))","v":153.641991953},{"$f":"IF(AND(OR(Calculations!$E$2=\"Orkney Health Board\",Calculations!$E$2=\"Orkney Islands Local Authority\"),$F224=1),0,IF(AND(OR(Calculations!$E$2=\"Shetland Health Board\",Calculations!$E$2=\"Western Isles Health Board\",Calculations!$E$2=\"Shetland Islands Local Authority\",Calculations!$E$2=\"Eilean Siar Local Authority\"),OR($F224=1,$F224=5)),0,prem_mort(VALUE(LEFT(Options!$B$24,2)),$C224,$E224,$F224,2016,$I224+$J224,1,$H224,$G224*$H224,Options!$B$8)))","v":152.40735033300001},456.6698131999762,453.00009015872075,9690.5343494429908,9612.6628191683521,{"$error":"#NAME?"},{"$error":"#NAME?"},456.6698131999762,453.00009015872075,2740018.8791998574,2718000.5409523244,58143206.096657947,57675976.91501011,{"$error":"#NAME?"},{"$error":"#NAME?"},2740018.8791998574,2718000.5409523244,6000]
[null,"Female 65-69",67.063927000000007,85.193929999999995,"female",5,{"$f":"HLOOKUP(Calculations!$E$2,'Prevalence Rates'!$C$3:$BC$249,'Prevalence Rates'!$BD225,FALSE)","v":0.28700000000000003},{"$f":"HLOOKUP(Calculations!$E$2,'Population 2016'!$C$3:$BC$249,'Population 2016'!BD225,FALSE)","v":33766},0,{"$f":"HLOOKUP(Results!E$4,Targeting!$C$3:$F$249,Targeting!$G225,FALSE)","v":5544},{"$f":"IF(AND(OR(Calculations!$E$2=\"Orkney Health Board\",Calculations!$E$2=\"Orkney Islands Local Authority\"),$F225=1),0,IF(AND(OR(Calculations!$E$2=\"Shetland Health Board\",Calculations!$E$2=\"Western Isles Health Board\",Calculations!$E$2=\"Shetland Islands Local Authority\",Calculations!$E$2=\"Eilean Siar Local Authority\"),OR($F225=1,$F225=5)),0,new_ci(VALUE(LEFT(Options!$B$24,2)),$C225,$E225,$F225,2016,$I225,1,$H225,$G225*$H225,Options!$B$8)))","v":237.97028596929999},{"$f":"IF(AND(OR(Calculations!$E$2=\"Orkney Health Board\",Calculations!$E$2=\"Orkney Islands Local Authority\"),$F225=1),0,IF(AND(OR(Calculations!$E$2=\"Shetland Health Board\",Calculations!$E$2=\"Western Isles Health Board\",Calculations!$E$2=\"Shetland Islands Local Authority\",Calculations!$E$2=\"Eilean Siar Local Authority\"),OR($F225=1,$F225=5)),0,new_ci(VALUE(LEFT(Options!$B$24,2)),$C225,$E225,$F225,2016,$I225+$J225,1,$H225,$G225*$H225,Options!$B$8)))","v":236.05353223809999},{"$f":"IF(AND(OR(Calculations!$E$2=\"Orkney Health Board\",Calculations!$E$2=\"Orkney Islands Local Authority\"),$F225=1),0,IF(AND(OR(Calculations!$E$2=\"Shetland Health Board\",Calculations!$E$2=\"Western Isles Health Board\",Calculations!$E$2=\"Shetland Islands Local Authority\",Calculations!$E$2=\"Eilean Siar Local Authority\"),OR($F225=1,$F225=5)),0,new_yllv2(VALUE(LEFT(Options!$B$24,2)),$C225,$D225,$E225,$F225,2016,$I225,1,$H225,$G225*$H225,Options!$B$8)))","v":4076.431712565},{"$f":"IF(AND(OR(Calculations!$E$2=\"Orkney Health Board\",Calculations!$E$2=\"Orkney Islands Local Authority\"),$F225=1),0,IF(AND(OR(Calculations!$E$2=\"Shetland Health Board\",Calculations!$E$2=\"Western Isles Health Board\",Calculations!$E$2=\"Shetland Islands Local Authority\",Calculations!$E$2=\"Eilean Siar Local Authority\"),OR($F225=1,$F225=5)),0,new_yllv2(VALUE(LEFT(Options!$B$24,2)),$C225,$D225,$E225,$F225,2016,$I225+$J225,1,$H225,$G225*$H225,Options!$B$8)))","v":4043.5977153991998},{"$f":"IF(AND(OR(Calculations!$E$2=\"Orkney Health Board\",Calculations!$E$2=\"Orkney Islands Local Authority\"),$F225=1),0,IF(AND(OR(Calculations!$E$2=\"Shetland Health Board\",Calculations!$E$2=\"Western Isles Health Board\",Calculations!$E$2=\"Shetland Islands Local Authority\",Calculations!$E$2=\"Eilean Siar Local Authority\"),OR($F225=1,$F225=5)),0,hosp_count(VALUE(LEFT(Options!$B$24,2)),$C225,$E225,$F225,2016,$I225,1,$H225,$G225*$H225, Options!$B$8)))","v":{"$error":"#NAME?"}},{"$f":"IF(AND(OR(Calculations!$E$2=\"Orkney Health Board\",Calculations!$E$2=\"Orkney Islands Local Authority\"),$F225=1),0,IF(AND(OR(Calculations!$E$2=\"Shetland Health Board\",Calculations!$E$2=\"Western Isles Health Board\",Calculations!$E$2=\"Shetland Islands Local Authority\",Calculations!$E$2=\"Eilean Siar Local Authority\"),OR($F225=1,$F225=5)),0,hosp_count(VALUE(LEFT(Options!$B$24,2)),$C225,$E225,$F225,2016,$I225+$J225,1,$H225,$G225*$H225, Options!$B$8)))","v":{"$error":"#NAME?"}},{"$f":"IF(AND(OR(Calculations!$E$2=\"Orkney Health Board\",Calculations!$E$2=\"Orkney Islands Local Authority\"),$F225=1),0,IF(AND(OR(Calculations!$E$2=\"Shetland Health Board\",Calculations!$E$2=\"Western Isles Health Board\",Calculations!$E$2=\"Shetland Islands Local Authority\",Calculations!$E$2=\"Eilean Siar Local Authority\"),OR($F225=1,$F225=5)),0,prem_mort(VALUE(LEFT(Options!$B$24,2)),$C225,$E225,$F225,2016,$I225,1,$H225,$G225*$H225,Options!$B$8)))","v":237.97028596929999},{"$f":"IF(AND(OR(Calculations!$E$2=\"Orkney Health Board\",Calculations!$E$2=\"Orkney Islands Local Authority\"),$F225=1),0,IF(AND(OR(Calculations!$E$2=\"Shetland Health Board\",Calculations!$E$2=\"Western Isles Health Board\",Calculations!$E$2=\"Shetland Islands Local Authority\",Calculations!$E$2=\"Eilean Siar Local Authority\"),OR($F225=1,$F225=5)),0,prem_mort(VALUE(LEFT(Options!$B$24,2)),$C225,$E225,$F225,2016,$I225+$J225,1,$H225,$G225*$H225,Options!$B$8)))","v":236.05353223809999},704.76303373008352,699.08645453444285,12072.59288208553,11975.353063434222,{"$error":"#NAME?"},{"$error":"#NAME?"},704.76303373008352,699.08645453444285,3876196.6855154592,3844975.4999394356,66399260.851470411,65864441.848888226,{"$error":"#NAME?"},{"$error":"#NAME?"},3876196.6855154592,3844975.4999394356,5500]
[null,"Female 70-74",71.938164,86.248159999999999,"female",5,{"$f":"HLOOKUP(Calculations!$E$2,'Prevalence Rates'!$C$3:$BC$249,'Prevalence Rates'!$BD226,FALSE)","v":0.28700000000000003},{"$f":"HLOOKUP(Calculations!$E$2,'Population 2016'!$C$3:$BC$249,'Population 2016'!BD226,FALSE)","v":25722},0,{"$f":"HLOOKUP(Results!E$4,Targeting!$C$3:$F$249,Targeting!$G226,FALSE)","v":4223},{"$f":"IF(AND(OR(Calculations!$E$2=\"Orkney Health Board\",Calculations!$E$2=\"Orkney Islands Local Authority\"),$F226=1),0,IF(AND(OR(Calculations!$E$2=\"Shetland Health Board\",Calculations!$E$2=\"Western Isles Health Board\",Calculations!$E$2=\"Shetland Islands Local Authority\",Calculations!$E$2=\"Eilean Siar Local Authority\"),OR($F226=1,$F226=5)),0,new_ci(VALUE(LEFT(Options!$B$24,2)),$C226,$E226,$F226,2016,$I226,1,$H226,$G226*$H226,Options!$B$8)))","v":273.89509143909999},{"$f":"IF(AND(OR(Calculations!$E$2=\"Orkney Health Board\",Calculations!$E$2=\"Orkney Islands Local Authority\"),$F226=1),0,IF(AND(OR(Calculations!$E$2=\"Shetland Health Board\",Calculations!$E$2=\"Western Isles Health Board\",Calculations!$E$2=\"Shetland Islands Local Authority\",Calculations!$E$2=\"Eilean Siar Local Authority\"),OR($F226=1,$F226=5)),0,new_ci(VALUE(LEFT(Options!$B$24,2)),$C226,$E226,$F226,2016,$I226+$J226,1,$H226,$G226*$H226,Options!$B$8)))","v":271.694989943},{"$f":"IF(AND(OR(Calculations!$E$2=\"Orkney Health Board\",Calculations!$E$2=\"Orkney Islands Local Authority\"),$F226=1),0,IF(AND(OR(Calculations!$E$2=\"Shetland Health Board\",Calculations!$E$2=\"Western Isles Health Board\",Calculations!$E$2=\"Shetland Islands Local Authority\",Calculations!$E$2=\"Eilean Siar Local Authority\"),OR($F226=1,$F226=5)),0,new_yllv2(VALUE(LEFT(Options!$B$24,2)),$C226,$D226,$E226,$F226,2016,$I226,1,$H226,$G226*$H226,Options!$B$8)))","v":3645.5425714741},{"$f":"IF(AND(OR(Calculations!$E$2=\"Orkney Health Board\",Calculations!$E$2=\"Orkney Islands Local Authority\"),$F226=1),0,IF(AND(OR(Calculations!$E$2=\"Shetland Health Board\",Calculations!$E$2=\"Western Isles Health Board\",Calculations!$E$2=\"Shetland Islands Local Authority\",Calculations!$E$2=\"Eilean Siar Local Authority\"),OR($F226=1,$F226=5)),0,new_yllv2(VALUE(LEFT(Options!$B$24,2)),$C226,$D226,$E226,$F226,2016,$I226+$J226,1,$H226,$G226*$H226,Options!$B$8)))","v":3616.2592293613998},{"$f":"IF(AND(OR(Calculations!$E$2=\"Orkney Health Board\",Calculations!$E$2=\"Orkney Islands Local Authority\"),$F226=1),0,IF(AND(OR(Calculations!$E$2=\"Shetland Health Board\",Calculations!$E$2=\"Western Isles Health Board\",Calculations!$E$2=\"Shetland Islands Local Authority\",Calculations!$E$2=\"Eilean Siar Local Authority\"),OR($F226=1,$F226=5)),0,hosp_count(VALUE(LEFT(Options!$B$24,2)),$C226,$E226,$F226,2016,$I226,1,$H226,$G226*$H226, Options!$B$8)))","v":{"$error":"#NAME?"}},{"$f":"IF(AND(OR(Calculations!$E$2=\"Orkney Health Board\",Calculations!$E$2=\"Orkney Islands Local Authority\"),$F226=1),0,IF(AND(OR(Calculations!$E$2=\"Shetland Health Board\",Calculations!$E$2=\"Western Isles Health Board\",Calculations!$E$2=\"Shetland Islands Local Authority\",Calculations!$E$2=\"Eilean Siar Local Authority\"),OR($F226=1,$F226=5)),0,hosp_count(VALUE(LEFT(Options!$B$24,2)),$C226,$E226,$F226,2016,$I226+$J226,1,$H226,$G226*$H226, Options!$B$8)))","v":{"$error":"#NAME?"}},{"$f":"IF(AND(OR(Calculations!$E$2=\"Orkney Health Board\",Calculations!$E$2=\"Orkney Islands Local Authority\"),$F226=1),0,IF(AND(OR(Calculations!$E$2=\"Shetland Health Board\",Calculations!$E$2=\"Western Isles Health Board\",Calculations!$E$2=\"Shetland Islands Local Authority\",Calculations!$E$2=\"Eilean Siar Local Authority\"),OR($F226=1,$F226=5)),0,prem_mort(VALUE(LEFT(Options!$B$24,2)),$C226,$E226,$F226,2016,$I226,1,$H226,$G226*$H226,Options!$B$8)))","v":273.89509143909999},{"$f":"IF(AND(OR(Calculations!$E$2=\"Orkney Health Board\",Calculations!$E$2=\"Orkney Islands Local Authority\"),$F226=1),0,IF(AND(OR(Calculations!$E$2=\"Shetland Health Board\",Calculations!$E$2=\"Western Isles Health Board\",Calculations!$E$2=\"Shetland Islands Local Authority\",Calculations!$E$2=\"Eilean Siar Local Authority\"),OR($F226=1,$F226=5)),0,prem_mort(VALUE(LEFT(Options!$B$24,2)),$C226,$E226,$F226,2016,$I226+$J226,1,$H226,$G226*$H226,Options!$B$8)))","v":271.694989943},1064.8281293799082,1056.2747451325713,14172.858142734234,14059.012632615661,{"$error":"#NAME?"},{"$error":"#NAME?"},1064.8281293799082,1056.2747451325713,5324140.6468995409,5281373.7256628564,70864290.713671178,70295063.163078308,{"$error":"#NAME?"},{"$error":"#NAME?"},5324140.6468995409,5281373.7256628564,5000]
[null,"Female 75-79",76.942824999999999,87.812830000000005,"female",5,{"$f":"HLOOKUP(Calculations!$E$2,'Prevalence Rates'!$C$3:$BC$249,'Prevalence Rates'!$BD227,FALSE)","v":0.53500000000000003},{"$f":"HLOOKUP(Calculations!$E$2,'Population 2016'!$C$3:$BC$249,'Population 2016'!BD227,FALSE)","v":20290},0,{"$f":"HLOOKUP(Results!E$4,Targeting!$C$3:$F$249,Targeting!$G227,FALSE)","v":3331},{"$f":"IF(AND(OR(Calculations!$E$2=\"Orkney Health Board\",Calculations!$E$2=\"Orkney Islands Local Authority\"),$F227=1),0,IF(AND(OR(Calculations!$E$2=\"Shetland Health Board\",Calculations!$E$2=\"Western Isles Health Board\",Calculations!$E$2=\"Shetland Islands Local Authority\",Calculations!$E$2=\"Eilean Siar Local Authority\"),OR($F227=1,$F227=5)),0,new_ci(VALUE(LEFT(Options!$B$24,2)),$C227,$E227,$F227,2016,$I227,1,$H227,$G227*$H227,Options!$B$8)))","v":329.72969038799999},{"$f":"IF(AND(OR(Calculations!$E$2=\"Orkney Health Board\",Calculations!$E$2=\"Orkney Islands Local Authority\"),$F227=1),0,IF(AND(OR(Calculations!$E$2=\"Shetland Health Board\",Calculations!$E$2=\"Western Isles Health Board\",Calculations!$E$2=\"Shetland Islands Local Authority\",Calculations!$E$2=\"Eilean Siar Local Authority\"),OR($F227=1,$F227=5)),0,new_ci(VALUE(LEFT(Options!$B$24,2)),$C227,$E227,$F227,2016,$I227+$J227,1,$H227,$G227*$H227,Options!$B$8)))","v":327.31620267950001},{"$f":"IF(AND(OR(Calculations!$E$2=\"Orkney Health Board\",Calculations!$E$2=\"Orkney Islands Local Authority\"),$F227=1),0,IF(AND(OR(Calculations!$E$2=\"Shetland Health Board\",Calculations!$E$2=\"Western Isles Health Board\",Calculations!$E$2=\"Shetland Islands Local Authority\",Calculations!$E$2=\"Eilean Siar Local Authority\"),OR($F227=1,$F227=5)),0,new_yllv2(VALUE(LEFT(Options!$B$24,2)),$C227,$D227,$E227,$F227,2016,$I227,1,$H227,$G227*$H227,Options!$B$8)))","v":3254.433692778},{"$f":"IF(AND(OR(Calculations!$E$2=\"Orkney Health Board\",Calculations!$E$2=\"Orkney Islands Local Authority\"),$F227=1),0,IF(AND(OR(Calculations!$E$2=\"Shetland Health Board\",Calculations!$E$2=\"Western Isles Health Board\",Calculations!$E$2=\"Shetland Islands Local Authority\",Calculations!$E$2=\"Eilean Siar Local Authority\"),OR($F227=1,$F227=5)),0,new_yllv2(VALUE(LEFT(Options!$B$24,2)),$C227,$D227,$E227,$F227,2016,$I227+$J227,1,$H227,$G227*$H227,Options!$B$8)))","v":3230.6125570276999},{"$f":"IF(AND(OR(Calculations!$E$2=\"Orkney Health Board\",Calculations!$E$2=\"Orkney Islands Local Authority\"),$F227=1),0,IF(AND(OR(Calculations!$E$2=\"Shetland Health Board\",Calculations!$E$2=\"Western Isles Health Board\",Calculations!$E$2=\"Shetland Islands Local Authority\",Calculations!$E$2=\"Eilean Siar Local Authority\"),OR($F227=1,$F227=5)),0,hosp_count(VALUE(LEFT(Options!$B$24,2)),$C227,$E227,$F227,2016,$I227,1,$H227,$G227*$H227, Options!$B$8)))","v":{"$error":"#NAME?"}},{"$f":"IF(AND(OR(Calculations!$E$2=\"Orkney Health Board\",Calculations!$E$2=\"Orkney Islands Local Authority\"),$F227=1),0,IF(AND(OR(Calculations!$E$2=\"Shetland Health Board\",Calculations!$E$2=\"Western Isles Health Board\",Calculations!$E$2=\"Shetland Islands Local Authority\",Calculations!$E$2=\"Eilean Siar Local Authority\"),OR($F227=1,$F227=5)),0,hosp_count(VALUE(LEFT(Options!$B$24,2)),$C227,$E227,$F227,2016,$I227+$J227,1,$H227,$G227*$H227, Options!$B$8)))","v":{"$error":"#NAME?"}},{"$f":"IF(AND(OR(Calculations!$E$2=\"Orkney Health Board\",Calculations!$E$2=\"Orkney Islands Local Authority\"),$F227=1),0,IF(AND(OR(Calculations!$E$2=\"Shetland Health Board\",Calculations!$E$2=\"Western Isles Health Board\",Calculations!$E$2=\"Shetland Islands Local Authority\",Calculations!$E$2=\"Eilean Siar Local Authority\"),OR($F227=1,$F227=5)),0,prem_mort(VALUE(LEFT(Options!$B$24,2)),$C227,$E227,$F227,2016,$I227,1,$H227,$G227*$H227,Options!$B$8)))","v":0},{"$f":"IF(AND(OR(Calculations!$E$2=\"Orkney Health Board\",Calculations!$E$2=\"Orkney Islands Local Authority\"),$F227=1),0,IF(AND(OR(Calculations!$E$2=\"Shetland Health Board\",Calculations!$E$2=\"Western Isles Health Board\",Calculations!$E$2=\"Shetland Islands Local Authority\",Calculations!$E$2=\"Eilean Siar Local Authority\"),OR($F227=1,$F227=5)),0,prem_mort(VALUE(LEFT(Options!$B$24,2)),$C227,$E227,$F227,2016,$I227+$J227,1,$H227,$G227*$H227,Options!$B$8)))","v":0},1625.0847234499754,1613.1897618506655,16039.594345874817,15922.191015414983,{"$error":"#NAME?"},{"$error":"#NAME?"},0,0,6500338.8937999019,6452759.0474026622,64158377.383499265,63688764.061659932,{"$error":"#NAME?"},{"$error":"#NAME?"},0,0,4000]
[null,"Female 80-84",81.856712000000002,89.736710000000002,"female",5,{"$f":"HLOOKUP(Calculations!$E$2,'Prevalence Rates'!$C$3:$BC$249,'Prevalence Rates'!$BD228,FALSE)","v":0.53500000000000003},{"$f":"HLOOKUP(Calculations!$E$2,'Population 2016'!$C$3:$BC$249,'Population 2016'!BD228,FALSE)","v":15640},0,{"$f":"HLOOKUP(Results!E$4,Targeting!$C$3:$F$249,Targeting!$G228,FALSE)","v":2568},{"$f":"IF(AND(OR(Calculations!$E$2=\"Orkney Health Board\",Calculations!$E$2=\"Orkney Islands Local Authority\"),$F228=1),0,IF(AND(OR(Calculations!$E$2=\"Shetland Health Board\",Calculations!$E$2=\"Western Isles Health Board\",Calculations!$E$2=\"Shetland Islands Local Authority\",Calculations!$E$2=\"Eilean Siar Local Authority\"),OR($F228=1,$F228=5)),0,new_ci(VALUE(LEFT(Options!$B$24,2)),$C228,$E228,$F228,2016,$I228,1,$H228,$G228*$H228,Options!$B$8)))","v":384.35288062770002},{"$f":"IF(AND(OR(Calculations!$E$2=\"Orkney Health Board\",Calculations!$E$2=\"Orkney Islands Local Authority\"),$F228=1),0,IF(AND(OR(Calculations!$E$2=\"Shetland Health Board\",Calculations!$E$2=\"Western Isles Health Board\",Calculations!$E$2=\"Shetland Islands Local Authority\",Calculations!$E$2=\"Eilean Siar Local Authority\"),OR($F228=1,$F228=5)),0,new_ci(VALUE(LEFT(Options!$B$24,2)),$C228,$E228,$F228,2016,$I228+$J228,1,$H228,$G228*$H228,Options!$B$8)))","v":381.55409960370002},{"$f":"IF(AND(OR(Calculations!$E$2=\"Orkney Health Board\",Calculations!$E$2=\"Orkney Islands Local Authority\"),$F228=1),0,IF(AND(OR(Calculations!$E$2=\"Shetland Health Board\",Calculations!$E$2=\"Western Isles Health Board\",Calculations!$E$2=\"Shetland Islands Local Authority\",Calculations!$E$2=\"Eilean Siar Local Authority\"),OR($F228=1,$F228=5)),0,new_yllv2(VALUE(LEFT(Options!$B$24,2)),$C228,$D228,$E228,$F228,2016,$I228,1,$H228,$G228*$H228,Options!$B$8)))","v":2644.3470500128001},{"$f":"IF(AND(OR(Calculations!$E$2=\"Orkney Health Board\",Calculations!$E$2=\"Orkney Islands Local Authority\"),$F228=1),0,IF(AND(OR(Calculations!$E$2=\"Shetland Health Board\",Calculations!$E$2=\"Western Isles Health Board\",Calculations!$E$2=\"Shetland Islands Local Authority\",Calculations!$E$2=\"Eilean Siar Local Authority\"),OR($F228=1,$F228=5)),0,new_yllv2(VALUE(LEFT(Options!$B$24,2)),$C228,$D228,$E228,$F228,2016,$I228+$J228,1,$H228,$G228*$H228,Options!$B$8)))","v":2625.0914421653001},{"$f":"IF(AND(OR(Calculations!$E$2=\"Orkney Health Board\",Calculations!$E$2=\"Orkney Islands Local Authority\"),$F228=1),0,IF(AND(OR(Calculations!$E$2=\"Shetland Health Board\",Calculations!$E$2=\"Western Isles Health Board\",Calculations!$E$2=\"Shetland Islands Local Authority\",Calculations!$E$2=\"Eilean Siar Local Authority\"),OR($F228=1,$F228=5)),0,hosp_count(VALUE(LEFT(Options!$B$24,2)),$C228,$E228,$F228,2016,$I228,1,$H228,$G228*$H228, Options!$B$8)))","v":{"$error":"#NAME?"}},{"$f":"IF(AND(OR(Calculations!$E$2=\"Orkney Health Board\",Calculations!$E$2=\"Orkney Islands Local Authority\"),$F228=1),0,IF(AND(OR(Calculations!$E$2=\"Shetland Health Board\",Calculations!$E$2=\"Western Isles Health Board\",Calculations!$E$2=\"Shetland Islands Local Authority\",Calculations!$E$2=\"Eilean Siar Local Authority\"),OR($F228=1,$F228=5)),0,hosp_count(VALUE(LEFT(Options!$B$24,2)),$C228,$E228,$F228,2016,$I228+$J228,1,$H228,$G228*$H228, Options!$B$8)))","v":{"$error":"#NAME?"}},{"$f":"IF(AND(OR(Calculations!$E$2=\"Orkney Health Board\",Calculations!$E$2=\"Orkney Islands Local Authority\"),$F228=1),0,IF(AND(OR(Calculations!$E$2=\"Shetland Health Board\",Calculations!$E$2=\"Western Isles Health Board\",Calculations!$E$2=\"Shetland Islands Local Authority\",Calculations!$E$2=\"Eilean Siar Local Authority\"),OR($F228=1,$F228=5)),0,prem_mort(VALUE(LEFT(Options!$B$24,2)),$C228,$E228,$F228,2016,$I228,1,$H228,$G228*$H228,Options!$B$8)))","v":0},{"$f":"IF(AND(OR(Calculations!$E$2=\"Orkney Health Board\",Calculations!$E$2=\"Orkney Islands Local Authority\"),$F228=1),0,IF(AND(OR(Calculations!$E$2=\"Shetland Health Board\",Calculations!$E$2=\"Western Isles Health Board\",Calculations!$E$2=\"Shetland Islands Local Authority\",Calculations!$E$2=\"Eilean Siar Local Authority\"),OR($F228=1,$F228=5)),0,prem_mort(VALUE(LEFT(Options!$B$24,2)),$C228,$E228,$F228,2016,$I228+$J228,1,$H228,$G228*$H228,Options!$B$8)))","v":0},2457.4992367499999,2439.604217414962,16907.589833841434,16784.472136606779,{"$error":"#NAME?"},{"$error":"#NAME?"},0,0,6143748.0918749999,6099010.5435374053,42268974.584603585,41961180.341516949,{"$error":"#NAME?"},{"$error":"#NAME?"},0,0,2500]
[null,"Female 85-89",86.730819999999994,92.220819999999989,"female",5,{"$f":"HLOOKUP(Calculations!$E$2,'Prevalence Rates'!$C$3:$BC$249,'Prevalence Rates'!$BD229,FALSE)","v":0.53500000000000003},{"$f":"HLOOKUP(Calculations!$E$2,'Population 2016'!$C$3:$BC$249,'Population 2016'!BD229,FALSE)","v":9964},0,{"$f":"HLOOKUP(Results!E$4,Targeting!$C$3:$F$249,Targeting!$G229,FALSE)","v":1636},{"$f":"IF(AND(OR(Calculations!$E$2=\"Orkney Health Board\",Calculations!$E$2=\"Orkney Islands Local Authority\"),$F229=1),0,IF(AND(OR(Calculations!$E$2=\"Shetland Health Board\",Calculations!$E$2=\"Western Isles Health Board\",Calculations!$E$2=\"Shetland Islands Local Authority\",Calculations!$E$2=\"Eilean Siar Local Authority\"),OR($F229=1,$F229=5)),0,new_ci(VALUE(LEFT(Options!$B$24,2)),$C229,$E229,$F229,2016,$I229,1,$H229,$G229*$H229,Options!$B$8)))","v":368.23598311990003},{"$f":"IF(AND(OR(Calculations!$E$2=\"Orkney Health Board\",Calculations!$E$2=\"Orkney Islands Local Authority\"),$F229=1),0,IF(AND(OR(Calculations!$E$2=\"Shetland Health Board\",Calculations!$E$2=\"Western Isles Health Board\",Calculations!$E$2=\"Shetland Islands Local Authority\",Calculations!$E$2=\"Eilean Siar Local Authority\"),OR($F229=1,$F229=5)),0,new_ci(VALUE(LEFT(Options!$B$24,2)),$C229,$E229,$F229,2016,$I229+$J229,1,$H229,$G229*$H229,Options!$B$8)))","v":365.57604916589997},{"$f":"IF(AND(OR(Calculations!$E$2=\"Orkney Health Board\",Calculations!$E$2=\"Orkney Islands Local Authority\"),$F229=1),0,IF(AND(OR(Calculations!$E$2=\"Shetland Health Board\",Calculations!$E$2=\"Western Isles Health Board\",Calculations!$E$2=\"Shetland Islands Local Authority\",Calculations!$E$2=\"Eilean Siar Local Authority\"),OR($F229=1,$F229=5)),0,new_yllv2(VALUE(LEFT(Options!$B$24,2)),$C229,$D229,$E229,$F229,2016,$I229,1,$H229,$G229*$H229,Options!$B$8)))","v":1653.3795642083001},{"$f":"IF(AND(OR(Calculations!$E$2=\"Orkney Health Board\",Calculations!$E$2=\"Orkney Islands Local Authority\"),$F229=1),0,IF(AND(OR(Calculations!$E$2=\"Shetland Health Board\",Calculations!$E$2=\"Western Isles Health Board\",Calculations!$E$2=\"Shetland Islands Local Authority\",Calculations!$E$2=\"Eilean Siar Local Authority\"),OR($F229=1,$F229=5)),0,new_yllv2(VALUE(LEFT(Options!$B$24,2)),$C229,$D229,$E229,$F229,2016,$I229+$J229,1,$H229,$G229*$H229,Options!$B$8)))","v":1641.4364607549001},{"$f":"IF(AND(OR(Calculations!$E$2=\"Orkney Health Board\",Calculations!$E$2=\"Orkney Islands Local Authority\"),$F229=1),0,IF(AND(OR(Calculations!$E$2=\"Shetland Health Board\",Calculations!$E$2=\"Western Isles Health Board\",Calculations!$E$2=\"Shetland Islands Local Authority\",Calculations!$E$2=\"Eilean Siar Local Authority\"),OR($F229=1,$F229=5)),0,hosp_count(VALUE(LEFT(Options!$B$24,2)),$C229,$E229,$F229,2016,$I229,1,$H229,$G229*$H229, Options!$B$8)))","v":{"$error":"#NAME?"}},{"$f":"IF(AND(OR(Calculations!$E$2=\"Orkney Health Board\",Calculations!$E$2=\"Orkney Islands Local Authority\"),$F229=1),0,IF(AND(OR(Calculations!$E$2=\"Shetland Health Board\",Calculations!$E$2=\"Western Isles Health Board\",Calculations!$E$2=\"Shetland Islands Local Authority\",Calculations!$E$2=\"Eilean Siar Local Authority\"),OR($F229=1,$F229=5)),0,hosp_count(VALUE(LEFT(Options!$B$24,2)),$C229,$E229,$F229,2016,$I229+$J229,1,$H229,$G229*$H229, Options!$B$8)))","v":{"$error":"#NAME?"}},{"$f":"IF(AND(OR(Calculations!$E$2=\"Orkney Health Board\",Calculations!$E$2=\"Orkney Islands Local Authority\"),$F229=1),0,IF(AND(OR(Calculations!$E$2=\"Shetland Health Board\",Calculations!$E$2=\"Western Isles Health Board\",Calculations!$E$2=\"Shetland Islands Local Authority\",Calculations!$E$2=\"Eilean Siar Local Authority\"),OR($F229=1,$F229=5)),0,prem_mort(VALUE(LEFT(Options!$B$24,2)),$C229,$E229,$F229,2016,$I229,1,$H229,$G229*$H229,Options!$B$8)))","v":0},{"$f":"IF(AND(OR(Calculations!$E$2=\"Orkney Health Board\",Calculations!$E$2=\"Orkney Islands Local Authority\"),$F229=1),0,IF(AND(OR(Calculations!$E$2=\"Shetland Health Board\",Calculations!$E$2=\"Western Isles Health Board\",Calculations!$E$2=\"Shetland Islands Local Authority\",Calculations!$E$2=\"Eilean Siar Local Authority\"),OR($F229=1,$F229=5)),0,prem_mort(VALUE(LEFT(Options!$B$24,2)),$C229,$E229,$F229,2016,$I229+$J229,1,$H229,$G229*$H229,Options!$B$8)))","v":0},3695.6642223996387,3668.9687792643513,16593.532358573866,16473.669818897029,{"$error":"#NAME?"},{"$error":"#NAME?"},0,0,5543496.3335994584,5503453.168896527,24890298.5378608,24710504.728345543,{"$error":"#NAME?"},{"$error":"#NAME?"},0,0,1500]
[null,"Female 90+",92.779342999999997,96.279340000000005,"female",5,{"$f":"HLOOKUP(Calculations!$E$2,'Prevalence Rates'!$C$3:$BC$249,'Prevalence Rates'!$BD230,FALSE)","v":0.53500000000000003},{"$f":"HLOOKUP(Calculations!$E$2,'Population 2016'!$C$3:$BC$249,'Population 2016'!BD230,FALSE)","v":6057},0,{"$f":"HLOOKUP(Results!E$4,Targeting!$C$3:$F$249,Targeting!$G230,FALSE)","v":994},{"$f":"IF(AND(OR(Calculations!$E$2=\"Orkney Health Board\",Calculations!$E$2=\"Orkney Islands Local Authority\"),$F230=1),0,IF(AND(OR(Calculations!$E$2=\"Shetland Health Board\",Calculations!$E$2=\"Western Isles Health Board\",Calculations!$E$2=\"Shetland Islands Local Authority\",Calculations!$E$2=\"Eilean Siar Local Authority\"),OR($F230=1,$F230=5)),0,new_ci(VALUE(LEFT(Options!$B$24,2)),$C230,$E230,$F230,2016,$I230,1,$H230,$G230*$H230,Options!$B$8)))","v":369.62188760420003},{"$f":"IF(AND(OR(Calculations!$E$2=\"Orkney Health Board\",Calculations!$E$2=\"Orkney Islands Local Authority\"),$F230=1),0,IF(AND(OR(Calculations!$E$2=\"Shetland Health Board\",Calculations!$E$2=\"Western Isles Health Board\",Calculations!$E$2=\"Shetland Islands Local Authority\",Calculations!$E$2=\"Eilean Siar Local Authority\"),OR($F230=1,$F230=5)),0,new_ci(VALUE(LEFT(Options!$B$24,2)),$C230,$E230,$F230,2016,$I230+$J230,1,$H230,$G230*$H230,Options!$B$8)))","v":366.99554159939998},{"$f":"IF(AND(OR(Calculations!$E$2=\"Orkney Health Board\",Calculations!$E$2=\"Orkney Islands Local Authority\"),$F230=1),0,IF(AND(OR(Calculations!$E$2=\"Shetland Health Board\",Calculations!$E$2=\"Western Isles Health Board\",Calculations!$E$2=\"Shetland Islands Local Authority\",Calculations!$E$2=\"Eilean Siar Local Authority\"),OR($F230=1,$F230=5)),0,new_yllv2(VALUE(LEFT(Options!$B$24,2)),$C230,$D230,$E230,$F230,2016,$I230,1,$H230,$G230*$H230,Options!$B$8)))","v":924.05361014480002},{"$f":"IF(AND(OR(Calculations!$E$2=\"Orkney Health Board\",Calculations!$E$2=\"Orkney Islands Local Authority\"),$F230=1),0,IF(AND(OR(Calculations!$E$2=\"Shetland Health Board\",Calculations!$E$2=\"Western Isles Health Board\",Calculations!$E$2=\"Shetland Islands Local Authority\",Calculations!$E$2=\"Eilean Siar Local Authority\"),OR($F230=1,$F230=5)),0,new_yllv2(VALUE(LEFT(Options!$B$24,2)),$C230,$D230,$E230,$F230,2016,$I230+$J230,1,$H230,$G230*$H230,Options!$B$8)))","v":917.48775301190005},{"$f":"IF(AND(OR(Calculations!$E$2=\"Orkney Health Board\",Calculations!$E$2=\"Orkney Islands Local Authority\"),$F230=1),0,IF(AND(OR(Calculations!$E$2=\"Shetland Health Board\",Calculations!$E$2=\"Western Isles Health Board\",Calculations!$E$2=\"Shetland Islands Local Authority\",Calculations!$E$2=\"Eilean Siar Local Authority\"),OR($F230=1,$F230=5)),0,hosp_count(VALUE(LEFT(Options!$B$24,2)),$C230,$E230,$F230,2016,$I230,1,$H230,$G230*$H230, Options!$B$8)))","v":{"$error":"#NAME?"}},{"$f":"IF(AND(OR(Calculations!$E$2=\"Orkney Health Board\",Calculations!$E$2=\"Orkney Islands Local Authority\"),$F230=1),0,IF(AND(OR(Calculations!$E$2=\"Shetland Health Board\",Calculations!$E$2=\"Western Isles Health Board\",Calculations!$E$2=\"Shetland Islands Local Authority\",Calculations!$E$2=\"Eilean Siar Local Authority\"),OR($F230=1,$F230=5)),0,hosp_count(VALUE(LEFT(Options!$B$24,2)),$C230,$E230,$F230,2016,$I230+$J230,1,$H230,$G230*$H230, Options!$B$8)))","v":{"$error":"#NAME?"}},{"$f":"IF(AND(OR(Calculations!$E$2=\"Orkney Health Board\",Calculations!$E$2=\"Orkney Islands Local Authority\"),$F230=1),0,IF(AND(OR(Calculations!$E$2=\"Shetland Health Board\",Calculations!$E$2=\"Western Isles Health Board\",Calculations!$E$2=\"Shetland Islands Local Authority\",Calculations!$E$2=\"Eilean Siar Local Authority\"),OR($F230=1,$F230=5)),0,prem_mort(VALUE(LEFT(Options!$B$24,2)),$C230,$E230,$F230,2016,$I230,1,$H230,$G230*$H230,Options!$B$8)))","v":0},{"$f":"IF(AND(OR(Calculations!$E$2=\"Orkney Health Board\",Calculations!$E$2=\"Orkney Islands Local Authority\"),$F230=1),0,IF(AND(OR(Calculations!$E$2=\"Shetland Health Board\",Calculations!$E$2=\"Western Isles Health Board\",Calculations!$E$2=\"Shetland Islands Local Authority\",Calculations!$E$2=\"Eilean Siar Local Authority\"),OR($F230=1,$F230=5)),0,prem_mort(VALUE(LEFT(Options!$B$24,2)),$C230,$E230,$F230,2016,$I230+$J230,1,$H230,$G230*$H230,Options!$B$8)))","v":0},6102.3920687502068,6059.0315601683997,15255.961864698695,15147.560723326729,{"$error":"#NAME?"},{"$error":"#NAME?"},0,0,6102392.0687502064,6059031.5601683995,15255961.864698695,15147560.72332673,{"$error":"#NAME?"},{"$error":"#NAME?"},0,0,1000]
[null,"Male 0-4",2.0320822999999999,77.402082000000007,"male",5,{"$f":"HLOOKUP(Calculations!$E$2,'Prevalence Rates'!$C$3:$BC$249,'Prevalence Rates'!$BD231,FALSE)","v":0},{"$f":"HLOOKUP(Calculations!$E$2,'Population 2016'!$C$3:$BC$249,'Population 2016'!BD231,FALSE)","v":0},0,{"$f":"HLOOKUP(Results!E$4,Targeting!$C$3:$F$249,Targeting!$G231,FALSE)","v":0},{"$f":"IF(AND(OR(Calculations!$E$2=\"Orkney Health Board\",Calculations!$E$2=\"Orkney Islands Local Authority\"),$F231=1),0,IF(AND(OR(Calculations!$E$2=\"Shetland Health Board\",Calculations!$E$2=\"Western Isles Health Board\",Calculations!$E$2=\"Shetland Islands Local Authority\",Calculations!$E$2=\"Eilean Siar Local Authority\"),OR($F231=1,$F231=5)),0,new_ci(VALUE(LEFT(Options!$B$24,2)),$C231,$E231,$F231,2016,$I231,1,$H231,$G231*$H231,Options!$B$8)))","v":{"$error":"#VALUE!"}},{"$f":"IF(AND(OR(Calculations!$E$2=\"Orkney Health Board\",Calculations!$E$2=\"Orkney Islands Local Authority\"),$F231=1),0,IF(AND(OR(Calculations!$E$2=\"Shetland Health Board\",Calculations!$E$2=\"Western Isles Health Board\",Calculations!$E$2=\"Shetland Islands Local Authority\",Calculations!$E$2=\"Eilean Siar Local Authority\"),OR($F231=1,$F231=5)),0,new_ci(VALUE(LEFT(Options!$B$24,2)),$C231,$E231,$F231,2016,$I231+$J231,1,$H231,$G231*$H231,Options!$B$8)))","v":{"$error":"#VALUE!"}},{"$f":"IF(AND(OR(Calculations!$E$2=\"Orkney Health Board\",Calculations!$E$2=\"Orkney Islands Local Authority\"),$F231=1),0,IF(AND(OR(Calculations!$E$2=\"Shetland Health Board\",Calculations!$E$2=\"Western Isles Health Board\",Calculations!$E$2=\"Shetland Islands Local Authority\",Calculations!$E$2=\"Eilean Siar Local Authority\"),OR($F231=1,$F231=5)),0,new_yllv2(VALUE(LEFT(Options!$B$24,2)),$C231,$D231,$E231,$F231,2016,$I231,1,$H231,$G231*$H231,Options!$B$8)))","v":{"$error":"#VALUE!"}},{"$f":"IF(AND(OR(Calculations!$E$2=\"Orkney Health Board\",Calculations!$E$2=\"Orkney Islands Local Authority\"),$F231=1),0,IF(AND(OR(Calculations!$E$2=\"Shetland Health Board\",Calculations!$E$2=\"Western Isles Health Board\",Calculations!$E$2=\"Shetland Islands Local Authority\",Calculations!$E$2=\"Eilean Siar Local Authority\"),OR($F231=1,$F231=5)),0,new_yllv2(VALUE(LEFT(Options!$B$24,2)),$C231,$D231,$E231,$F231,2016,$I231+$J231,1,$H231,$G231*$H231,Options!$B$8)))","v":{"$error":"#VALUE!"}},{"$f":"IF(AND(OR(Calculations!$E$2=\"Orkney Health Board\",Calculations!$E$2=\"Orkney Islands Local Authority\"),$F231=1),0,IF(AND(OR(Calculations!$E$2=\"Shetland Health Board\",Calculations!$E$2=\"Western Isles Health Board\",Calculations!$E$2=\"Shetland Islands Local Authority\",Calculations!$E$2=\"Eilean Siar Local Authority\"),OR($F231=1,$F231=5)),0,hosp_count(VALUE(LEFT(Options!$B$24,2)),$C231,$E231,$F231,2016,$I231,1,$H231,$G231*$H231, Options!$B$8)))","v":{"$error":"#NAME?"}},{"$f":"IF(AND(OR(Calculations!$E$2=\"Orkney Health Board\",Calculations!$E$2=\"Orkney Islands Local Authority\"),$F231=1),0,IF(AND(OR(Calculations!$E$2=\"Shetland Health Board\",Calculations!$E$2=\"Western Isles Health Board\",Calculations!$E$2=\"Shetland Islands Local Authority\",Calculations!$E$2=\"Eilean Siar Local Authority\"),OR($F231=1,$F231=5)),0,hosp_count(VALUE(LEFT(Options!$B$24,2)),$C231,$E231,$F231,2016,$I231+$J231,1,$H231,$G231*$H231, Options!$B$8)))","v":{"$error":"#NAME?"}},{"$f":"IF(AND(OR(Calculations!$E$2=\"Orkney Health Board\",Calculations!$E$2=\"Orkney Islands Local Authority\"),$F231=1),0,IF(AND(OR(Calculations!$E$2=\"Shetland Health Board\",Calculations!$E$2=\"Western Isles Health Board\",Calculations!$E$2=\"Shetland Islands Local Authority\",Calculations!$E$2=\"Eilean Siar Local Authority\"),OR($F231=1,$F231=5)),0,prem_mort(VALUE(LEFT(Options!$B$24,2)),$C231,$E231,$F231,2016,$I231,1,$H231,$G231*$H231,Options!$B$8)))","v":{"$error":"#VALUE!"}},{"$f":"IF(AND(OR(Calculations!$E$2=\"Orkney Health Board\",Calculations!$E$2=\"Orkney Islands Local Authority\"),$F231=1),0,IF(AND(OR(Calculations!$E$2=\"Shetland Health Board\",Calculations!$E$2=\"Western Isles Health Board\",Calculations!$E$2=\"Shetland Islands Local Authority\",Calculations!$E$2=\"Eilean Siar Local Authority\"),OR($F231=1,$F231=5)),0,prem_mort(VALUE(LEFT(Options!$B$24,2)),$C231,$E231,$F231,2016,$I231+$J231,1,$H231,$G231*$H231,Options!$B$8)))","v":{"$error":"#VALUE!"}},{"$error":"#VALUE!"},{"$error":"#VALUE!"},{"$error":"#VALUE!"},{"$error":"#VALUE!"},{"$error":"#NAME?"},{"$error":"#NAME?"},{"$error":"#VALUE!"},{"$error":"#VALUE!"},{"$error":"#VALUE!"},{"$error":"#VALUE!"},{"$error":"#VALUE!"},{"$error":"#VALUE!"},{"$error":"#NAME?"},{"$error":"#NAME?"},{"$error":"#VALUE!"},{"$error":"#VALUE!"},5000]
[null,"Male 5-9",6.9784756000000003,77.398476000000002,"male",5,{"$f":"HLOOKUP(Calculations!$E$2,'Prevalence Rates'!$C$3:$BC$249,'Prevalence Rates'!$BD232,FALSE)","v":0},{"$f":"HLOOKUP(Calculations!$E$2,'Population 2016'!$C$3:$BC$249,'Population 2016'!BD232,FALSE)","v":0},0,{"$f":"HLOOKUP(Results!E$4,Targeting!$C$3:$F$249,Targeting!$G232,FALSE)","v":0},{"$f":"IF(AND(OR(Calculations!$E$2=\"Orkney Health Board\",Calculations!$E$2=\"Orkney Islands Local Authority\"),$F232=1),0,IF(AND(OR(Calculations!$E$2=\"Shetland Health Board\",Calculations!$E$2=\"Western Isles Health Board\",Calculations!$E$2=\"Shetland Islands Local Authority\",Calculations!$E$2=\"Eilean Siar Local Authority\"),OR($F232=1,$F232=5)),0,new_ci(VALUE(LEFT(Options!$B$24,2)),$C232,$E232,$F232,2016,$I232,1,$H232,$G232*$H232,Options!$B$8)))","v":{"$error":"#VALUE!"}},{"$f":"IF(AND(OR(Calculations!$E$2=\"Orkney Health Board\",Calculations!$E$2=\"Orkney Islands Local Authority\"),$F232=1),0,IF(AND(OR(Calculations!$E$2=\"Shetland Health Board\",Calculations!$E$2=\"Western Isles Health Board\",Calculations!$E$2=\"Shetland Islands Local Authority\",Calculations!$E$2=\"Eilean Siar Local Authority\"),OR($F232=1,$F232=5)),0,new_ci(VALUE(LEFT(Options!$B$24,2)),$C232,$E232,$F232,2016,$I232+$J232,1,$H232,$G232*$H232,Options!$B$8)))","v":{"$error":"#VALUE!"}},{"$f":"IF(AND(OR(Calculations!$E$2=\"Orkney Health Board\",Calculations!$E$2=\"Orkney Islands Local Authority\"),$F232=1),0,IF(AND(OR(Calculations!$E$2=\"Shetland Health Board\",Calculations!$E$2=\"Western Isles Health Board\",Calculations!$E$2=\"Shetland Islands Local Authority\",Calculations!$E$2=\"Eilean Siar Local Authority\"),OR($F232=1,$F232=5)),0,new_yllv2(VALUE(LEFT(Options!$B$24,2)),$C232,$D232,$E232,$F232,2016,$I232,1,$H232,$G232*$H232,Options!$B$8)))","v":{"$error":"#VALUE!"}},{"$f":"IF(AND(OR(Calculations!$E$2=\"Orkney Health Board\",Calculations!$E$2=\"Orkney Islands Local Authority\"),$F232=1),0,IF(AND(OR(Calculations!$E$2=\"Shetland Health Board\",Calculations!$E$2=\"Western Isles Health Board\",Calculations!$E$2=\"Shetland Islands Local Authority\",Calculations!$E$2=\"Eilean Siar Local Authority\"),OR($F232=1,$F232=5)),0,new_yllv2(VALUE(LEFT(Options!$B$24,2)),$C232,$D232,$E232,$F232,2016,$I232+$J232,1,$H232,$G232*$H232,Options!$B$8)))","v":{"$error":"#VALUE!"}},{"$f":"IF(AND(OR(Calculations!$E$2=\"Orkney Health Board\",Calculations!$E$2=\"Orkney Islands Local Authority\"),$F232=1),0,IF(AND(OR(Calculations!$E$2=\"Shetland Health Board\",Calculations!$E$2=\"Western Isles Health Board\",Calculations!$E$2=\"Shetland Islands Local Authority\",Calculations!$E$2=\"Eilean Siar Local Authority\"),OR($F232=1,$F232=5)),0,hosp_count(VALUE(LEFT(Options!$B$24,2)),$C232,$E232,$F232,2016,$I232,1,$H232,$G232*$H232, Options!$B$8)))","v":{"$error":"#NAME?"}},{"$f":"IF(AND(OR(Calculations!$E$2=\"Orkney Health Board\",Calculations!$E$2=\"Orkney Islands Local Authority\"),$F232=1),0,IF(AND(OR(Calculations!$E$2=\"Shetland Health Board\",Calculations!$E$2=\"Western Isles Health Board\",Calculations!$E$2=\"Shetland Islands Local Authority\",Calculations!$E$2=\"Eilean Siar Local Authority\"),OR($F232=1,$F232=5)),0,hosp_count(VALUE(LEFT(Options!$B$24,2)),$C232,$E232,$F232,2016,$I232+$J232,1,$H232,$G232*$H232, Options!$B$8)))","v":{"$error":"#NAME?"}},{"$f":"IF(AND(OR(Calculations!$E$2=\"Orkney Health Board\",Calculations!$E$2=\"Orkney Islands Local Authority\"),$F232=1),0,IF(AND(OR(Calculations!$E$2=\"Shetland Health Board\",Calculations!$E$2=\"Western Isles Health Board\",Calculations!$E$2=\"Shetland Islands Local Authority\",Calculations!$E$2=\"Eilean Siar Local Authority\"),OR($F232=1,$F232=5)),0,prem_mort(VALUE(LEFT(Options!$B$24,2)),$C232,$E232,$F232,2016,$I232,1,$H232,$G232*$H232,Options!$B$8)))","v":{"$error":"#VALUE!"}},{"$f":"IF(AND(OR(Calculations!$E$2=\"Orkney Health Board\",Calculations!$E$2=\"Orkney Islands Local Authority\"),$F232=1),0,IF(AND(OR(Calculations!$E$2=\"Shetland Health Board\",Calculations!$E$2=\"Western Isles Health Board\",Calculations!$E$2=\"Shetland Islands Local Authority\",Calculations!$E$2=\"Eilean Siar Local Authority\"),OR($F232=1,$F232=5)),0,prem_mort(VALUE(LEFT(Options!$B$24,2)),$C232,$E232,$F232,2016,$I232+$J232,1,$H232,$G232*$H232,Options!$B$8)))","v":{"$error":"#VALUE!"}},{"$error":"#VALUE!"},{"$error":"#VALUE!"},{"$error":"#VALUE!"},{"$error":"#VALUE!"},{"$error":"#NAME?"},{"$error":"#NAME?"},{"$error":"#VALUE!"},{"$error":"#VALUE!"},{"$error":"#VALUE!"},{"$error":"#VALUE!"},{"$error":"#VALUE!"},{"$error":"#VALUE!"},{"$error":"#NAME?"},{"$error":"#NAME?"},{"$error":"#VALUE!"},{"$error":"#VALUE!"},5500]
[null,"Male 10-15",12.471144000000001,77.921140000000008,"male",5,{"$f":"HLOOKUP(Calculations!$E$2,'Prevalence Rates'!$C$3:$BC$249,'Prevalence Rates'!$BD233,FALSE)","v":0},{"$f":"HLOOKUP(Calculations!$E$2,'Population 2016'!$C$3:$BC$249,'Population 2016'!BD233,FALSE)","v":0},0,{"$f":"HLOOKUP(Results!E$4,Targeting!$C$3:$F$249,Targeting!$G233,FALSE)","v":0},{"$f":"IF(AND(OR(Calculations!$E$2=\"Orkney Health Board\",Calculations!$E$2=\"Orkney Islands Local Authority\"),$F233=1),0,IF(AND(OR(Calculations!$E$2=\"Shetland Health Board\",Calculations!$E$2=\"Western Isles Health Board\",Calculations!$E$2=\"Shetland Islands Local Authority\",Calculations!$E$2=\"Eilean Siar Local Authority\"),OR($F233=1,$F233=5)),0,new_ci(VALUE(LEFT(Options!$B$24,2)),$C233,$E233,$F233,2016,$I233,1,$H233,$G233*$H233,Options!$B$8)))","v":{"$error":"#VALUE!"}},{"$f":"IF(AND(OR(Calculations!$E$2=\"Orkney Health Board\",Calculations!$E$2=\"Orkney Islands Local Authority\"),$F233=1),0,IF(AND(OR(Calculations!$E$2=\"Shetland Health Board\",Calculations!$E$2=\"Western Isles Health Board\",Calculations!$E$2=\"Shetland Islands Local Authority\",Calculations!$E$2=\"Eilean Siar Local Authority\"),OR($F233=1,$F233=5)),0,new_ci(VALUE(LEFT(Options!$B$24,2)),$C233,$E233,$F233,2016,$I233+$J233,1,$H233,$G233*$H233,Options!$B$8)))","v":{"$error":"#VALUE!"}},{"$f":"IF(AND(OR(Calculations!$E$2=\"Orkney Health Board\",Calculations!$E$2=\"Orkney Islands Local Authority\"),$F233=1),0,IF(AND(OR(Calculations!$E$2=\"Shetland Health Board\",Calculations!$E$2=\"Western Isles Health Board\",Calculations!$E$2=\"Shetland Islands Local Authority\",Calculations!$E$2=\"Eilean Siar Local Authority\"),OR($F233=1,$F233=5)),0,new_yllv2(VALUE(LEFT(Options!$B$24,2)),$C233,$D233,$E233,$F233,2016,$I233,1,$H233,$G233*$H233,Options!$B$8)))","v":{"$error":"#VALUE!"}},{"$f":"IF(AND(OR(Calculations!$E$2=\"Orkney Health Board\",Calculations!$E$2=\"Orkney Islands Local Authority\"),$F233=1),0,IF(AND(OR(Calculations!$E$2=\"Shetland Health Board\",Calculations!$E$2=\"Western Isles Health Board\",Calculations!$E$2=\"Shetland Islands Local Authority\",Calculations!$E$2=\"Eilean Siar Local Authority\"),OR($F233=1,$F233=5)),0,new_yllv2(VALUE(LEFT(Options!$B$24,2)),$C233,$D233,$E233,$F233,2016,$I233+$J233,1,$H233,$G233*$H233,Options!$B$8)))","v":{"$error":"#VALUE!"}},{"$f":"IF(AND(OR(Calculations!$E$2=\"Orkney Health Board\",Calculations!$E$2=\"Orkney Islands Local Authority\"),$F233=1),0,IF(AND(OR(Calculations!$E$2=\"Shetland Health Board\",Calculations!$E$2=\"Western Isles Health Board\",Calculations!$E$2=\"Shetland Islands Local Authority\",Calculations!$E$2=\"Eilean Siar Local Authority\"),OR($F233=1,$F233=5)),0,hosp_count(VALUE(LEFT(Options!$B$24,2)),$C233,$E233,$F233,2016,$I233,1,$H233,$G233*$H233, Options!$B$8)))","v":{"$error":"#NAME?"}},{"$f":"IF(AND(OR(Calculations!$E$2=\"Orkney Health Board\",Calculations!$E$2=\"Orkney Islands Local Authority\"),$F233=1),0,IF(AND(OR(Calculations!$E$2=\"Shetland Health Board\",Calculations!$E$2=\"Western Isles Health Board\",Calculations!$E$2=\"Shetland Islands Local Authority\",Calculations!$E$2=\"Eilean Siar Local Authority\"),OR($F233=1,$F233=5)),0,hosp_count(VALUE(LEFT(Options!$B$24,2)),$C233,$E233,$F233,2016,$I233+$J233,1,$H233,$G233*$H233, Options!$B$8)))","v":{"$error":"#NAME?"}},{"$f":"IF(AND(OR(Calculations!$E$2=\"Orkney Health Board\",Calculations!$E$2=\"Orkney Islands Local Authority\"),$F233=1),0,IF(AND(OR(Calculations!$E$2=\"Shetland Health Board\",Calculations!$E$2=\"Western Isles Health Board\",Calculations!$E$2=\"Shetland Islands Local Authority\",Calculations!$E$2=\"Eilean Siar Local Authority\"),OR($F233=1,$F233=5)),0,prem_mort(VALUE(LEFT(Options!$B$24,2)),$C233,$E233,$F233,2016,$I233,1,$H233,$G233*$H233,Options!$B$8)))","v":{"$error":"#VALUE!"}},{"$f":"IF(AND(OR(Calculations!$E$2=\"Orkney Health Board\",Calculations!$E$2=\"Orkney Islands Local Authority\"),$F233=1),0,IF(AND(OR(Calculations!$E$2=\"Shetland Health Board\",Calculations!$E$2=\"Western Isles Health Board\",Calculations!$E$2=\"Shetland Islands Local Authority\",Calculations!$E$2=\"Eilean Siar Local Authority\"),OR($F233=1,$F233=5)),0,prem_mort(VALUE(LEFT(Options!$B$24,2)),$C233,$E233,$F233,2016,$I233+$J233,1,$H233,$G233*$H233,Options!$B$8)))","v":{"$error":"#VALUE!"}},{"$error":"#VALUE!"},{"$error":"#VALUE!"},{"$error":"#VALUE!"},{"$error":"#VALUE!"},{"$error":"#NAME?"},{"$error":"#NAME?"},{"$error":"#VALUE!"},{"$error":"#VALUE!"},{"$error":"#VALUE!"},{"$error":"#VALUE!"},{"$error":"#VALUE!"},{"$error":"#VALUE!"},{"$error":"#NAME?"},{"$error":"#NAME?"},{"$error":"#VALUE!"},{"$error":"#VALUE!"},6600]
[null,"Male 16-19",17.556318000000001,77.07632000000001,"male",5,{"$f":"HLOOKUP(Calculations!$E$2,'Prevalence Rates'!$C$3:$BC$249,'Prevalence Rates'!$BD234,FALSE)","v":0.18299999999999997},{"$f":"HLOOKUP(Calculations!$E$2,'Population 2016'!$C$3:$BC$249,'Population 2016'!BD234,FALSE)","v":26907},0,{"$f":"HLOOKUP(Results!E$4,Targeting!$C$3:$F$249,Targeting!$G234,FALSE)","v":4418},{"$f":"IF(AND(OR(Calculations!$E$2=\"Orkney Health Board\",Calculations!$E$2=\"Orkney Islands Local Authority\"),$F234=1),0,IF(AND(OR(Calculations!$E$2=\"Shetland Health Board\",Calculations!$E$2=\"Western Isles Health Board\",Calculations!$E$2=\"Shetland Islands Local Authority\",Calculations!$E$2=\"Eilean Siar Local Authority\"),OR($F234=1,$F234=5)),0,new_ci(VALUE(LEFT(Options!$B$24,2)),$C234,$E234,$F234,2016,$I234,1,$H234,$G234*$H234,Options!$B$8)))","v":6.7201734314000001},{"$f":"IF(AND(OR(Calculations!$E$2=\"Orkney Health Board\",Calculations!$E$2=\"Orkney Islands Local Authority\"),$F234=1),0,IF(AND(OR(Calculations!$E$2=\"Shetland Health Board\",Calculations!$E$2=\"Western Isles Health Board\",Calculations!$E$2=\"Shetland Islands Local Authority\",Calculations!$E$2=\"Eilean Siar Local Authority\"),OR($F234=1,$F234=5)),0,new_ci(VALUE(LEFT(Options!$B$24,2)),$C234,$E234,$F234,2016,$I234+$J234,1,$H234,$G234*$H234,Options!$B$8)))","v":6.6635072798000001},{"$f":"IF(AND(OR(Calculations!$E$2=\"Orkney Health Board\",Calculations!$E$2=\"Orkney Islands Local Authority\"),$F234=1),0,IF(AND(OR(Calculations!$E$2=\"Shetland Health Board\",Calculations!$E$2=\"Western Isles Health Board\",Calculations!$E$2=\"Shetland Islands Local Authority\",Calculations!$E$2=\"Eilean Siar Local Authority\"),OR($F234=1,$F234=5)),0,new_yllv2(VALUE(LEFT(Options!$B$24,2)),$C234,$D234,$E234,$F234,2016,$I234,1,$H234,$G234*$H234,Options!$B$8)))","v":393.26456264590001},{"$f":"IF(AND(OR(Calculations!$E$2=\"Orkney Health Board\",Calculations!$E$2=\"Orkney Islands Local Authority\"),$F234=1),0,IF(AND(OR(Calculations!$E$2=\"Shetland Health Board\",Calculations!$E$2=\"Western Isles Health Board\",Calculations!$E$2=\"Shetland Islands Local Authority\",Calculations!$E$2=\"Eilean Siar Local Authority\"),OR($F234=1,$F234=5)),0,new_yllv2(VALUE(LEFT(Options!$B$24,2)),$C234,$D234,$E234,$F234,2016,$I234+$J234,1,$H234,$G234*$H234,Options!$B$8)))","v":389.9484593409},{"$f":"IF(AND(OR(Calculations!$E$2=\"Orkney Health Board\",Calculations!$E$2=\"Orkney Islands Local Authority\"),$F234=1),0,IF(AND(OR(Calculations!$E$2=\"Shetland Health Board\",Calculations!$E$2=\"Western Isles Health Board\",Calculations!$E$2=\"Shetland Islands Local Authority\",Calculations!$E$2=\"Eilean Siar Local Authority\"),OR($F234=1,$F234=5)),0,hosp_count(VALUE(LEFT(Options!$B$24,2)),$C234,$E234,$F234,2016,$I234,1,$H234,$G234*$H234, Options!$B$8)))","v":{"$error":"#NAME?"}},{"$f":"IF(AND(OR(Calculations!$E$2=\"Orkney Health Board\",Calculations!$E$2=\"Orkney Islands Local Authority\"),$F234=1),0,IF(AND(OR(Calculations!$E$2=\"Shetland Health Board\",Calculations!$E$2=\"Western Isles Health Board\",Calculations!$E$2=\"Shetland Islands Local Authority\",Calculations!$E$2=\"Eilean Siar Local Authority\"),OR($F234=1,$F234=5)),0,hosp_count(VALUE(LEFT(Options!$B$24,2)),$C234,$E234,$F234,2016,$I234+$J234,1,$H234,$G234*$H234, Options!$B$8)))","v":{"$error":"#NAME?"}},{"$f":"IF(AND(OR(Calculations!$E$2=\"Orkney Health Board\",Calculations!$E$2=\"Orkney Islands Local Authority\"),$F234=1),0,IF(AND(OR(Calculations!$E$2=\"Shetland Health Board\",Calculations!$E$2=\"Western Isles Health Board\",Calculations!$E$2=\"Shetland Islands Local Authority\",Calculations!$E$2=\"Eilean Siar Local Authority\"),OR($F234=1,$F234=5)),0,prem_mort(VALUE(LEFT(Options!$B$24,2)),$C234,$E234,$F234,2016,$I234,1,$H234,$G234*$H234,Options!$B$8)))","v":6.7201734314000001},{"$f":"IF(AND(OR(Calculations!$E$2=\"Orkney Health Board\",Calculations!$E$2=\"Orkney Islands Local Authority\"),$F234=1),0,IF(AND(OR(Calculations!$E$2=\"Shetland Health Board\",Calculations!$E$2=\"Western Isles Health Board\",Calculations!$E$2=\"Shetland Islands Local Authority\",Calculations!$E$2=\"Eilean Siar Local Authority\"),OR($F234=1,$F234=5)),0,prem_mort(VALUE(LEFT(Options!$B$24,2)),$C234,$E234,$F234,2016,$I234+$J234,1,$H234,$G234*$H234,Options!$B$8)))","v":6.6635072798000001},24.975558149923813,24.764958114245363,1461.5697128847512,1449.2453983755158,{"$error":"#NAME?"},{"$error":"#NAME?"},24.975558149923813,24.764958114245363,109892.45585966478,108965.8157026796,6430906.7366929054,6376679.7528522694,{"$error":"#NAME?"},{"$error":"#NAME?"},109892.45585966478,108965.8157026796,4400]
[null,"Male 20-24",22.054632000000002,77.704629999999995,"male",5,{"$f":"HLOOKUP(Calculations!$E$2,'Prevalence Rates'!$C$3:$BC$249,'Prevalence Rates'!$BD235,FALSE)","v":0.18299999999999997},{"$f":"HLOOKUP(Calculations!$E$2,'Population 2016'!$C$3:$BC$249,'Population 2016'!BD235,FALSE)","v":38069},0,{"$f":"HLOOKUP(Results!E$4,Targeting!$C$3:$F$249,Targeting!$G235,FALSE)","v":6251},{"$f":"IF(AND(OR(Calculations!$E$2=\"Orkney Health Board\",Calculations!$E$2=\"Orkney Islands Local Authority\"),$F235=1),0,IF(AND(OR(Calculations!$E$2=\"Shetland Health Board\",Calculations!$E$2=\"Western Isles Health Board\",Calculations!$E$2=\"Shetland Islands Local Authority\",Calculations!$E$2=\"Eilean Siar Local Authority\"),OR($F235=1,$F235=5)),0,new_ci(VALUE(LEFT(Options!$B$24,2)),$C235,$E235,$F235,2016,$I235,1,$H235,$G235*$H235,Options!$B$8)))","v":13.3522954358},{"$f":"IF(AND(OR(Calculations!$E$2=\"Orkney Health Board\",Calculations!$E$2=\"Orkney Islands Local Authority\"),$F235=1),0,IF(AND(OR(Calculations!$E$2=\"Shetland Health Board\",Calculations!$E$2=\"Western Isles Health Board\",Calculations!$E$2=\"Shetland Islands Local Authority\",Calculations!$E$2=\"Eilean Siar Local Authority\"),OR($F235=1,$F235=5)),0,new_ci(VALUE(LEFT(Options!$B$24,2)),$C235,$E235,$F235,2016,$I235+$J235,1,$H235,$G235*$H235,Options!$B$8)))","v":13.239709925},{"$f":"IF(AND(OR(Calculations!$E$2=\"Orkney Health Board\",Calculations!$E$2=\"Orkney Islands Local Authority\"),$F235=1),0,IF(AND(OR(Calculations!$E$2=\"Shetland Health Board\",Calculations!$E$2=\"Western Isles Health Board\",Calculations!$E$2=\"Shetland Islands Local Authority\",Calculations!$E$2=\"Eilean Siar Local Authority\"),OR($F235=1,$F235=5)),0,new_yllv2(VALUE(LEFT(Options!$B$24,2)),$C235,$D235,$E235,$F235,2016,$I235,1,$H235,$G235*$H235,Options!$B$8)))","v":729.7029188619},{"$f":"IF(AND(OR(Calculations!$E$2=\"Orkney Health Board\",Calculations!$E$2=\"Orkney Islands Local Authority\"),$F235=1),0,IF(AND(OR(Calculations!$E$2=\"Shetland Health Board\",Calculations!$E$2=\"Western Isles Health Board\",Calculations!$E$2=\"Shetland Islands Local Authority\",Calculations!$E$2=\"Eilean Siar Local Authority\"),OR($F235=1,$F235=5)),0,new_yllv2(VALUE(LEFT(Options!$B$24,2)),$C235,$D235,$E235,$F235,2016,$I235+$J235,1,$H235,$G235*$H235,Options!$B$8)))","v":723.55012092180004},{"$f":"IF(AND(OR(Calculations!$E$2=\"Orkney Health Board\",Calculations!$E$2=\"Orkney Islands Local Authority\"),$F235=1),0,IF(AND(OR(Calculations!$E$2=\"Shetland Health Board\",Calculations!$E$2=\"Western Isles Health Board\",Calculations!$E$2=\"Shetland Islands Local Authority\",Calculations!$E$2=\"Eilean Siar Local Authority\"),OR($F235=1,$F235=5)),0,hosp_count(VALUE(LEFT(Options!$B$24,2)),$C235,$E235,$F235,2016,$I235,1,$H235,$G235*$H235, Options!$B$8)))","v":{"$error":"#NAME?"}},{"$f":"IF(AND(OR(Calculations!$E$2=\"Orkney Health Board\",Calculations!$E$2=\"Orkney Islands Local Authority\"),$F235=1),0,IF(AND(OR(Calculations!$E$2=\"Shetland Health Board\",Calculations!$E$2=\"Western Isles Health Board\",Calculations!$E$2=\"Shetland Islands Local Authority\",Calculations!$E$2=\"Eilean Siar Local Authority\"),OR($F235=1,$F235=5)),0,hosp_count(VALUE(LEFT(Options!$B$24,2)),$C235,$E235,$F235,2016,$I235+$J235,1,$H235,$G235*$H235, Options!$B$8)))","v":{"$error":"#NAME?"}},{"$f":"IF(AND(OR(Calculations!$E$2=\"Orkney Health Board\",Calculations!$E$2=\"Orkney Islands Local Authority\"),$F235=1),0,IF(AND(OR(Calculations!$E$2=\"Shetland Health Board\",Calculations!$E$2=\"Western Isles Health Board\",Calculations!$E$2=\"Shetland Islands Local Authority\",Calculations!$E$2=\"Eilean Siar Local Authority\"),OR($F235=1,$F235=5)),0,prem_mort(VALUE(LEFT(Options!$B$24,2)),$C235,$E235,$F235,2016,$I235,1,$H235,$G235*$H235,Options!$B$8)))","v":13.3522954358},{"$f":"IF(AND(OR(Calculations!$E$2=\"Orkney Health Board\",Calculations!$E$2=\"Orkney Islands Local Authority\"),$F235=1),0,IF(AND(OR(Calculations!$E$2=\"Shetland Health Board\",Calculations!$E$2=\"Western Isles Health Board\",Calculations!$E$2=\"Shetland Islands Local Authority\",Calculations!$E$2=\"Eilean Siar Local Authority\"),OR($F235=1,$F235=5)),0,prem_mort(VALUE(LEFT(Options!$B$24,2)),$C235,$E235,$F235,2016,$I235+$J235,1,$H235,$G235*$H235,Options!$B$8)))","v":13.239709925},35.073932690115321,34.778192032887652,1916.7903513669914,1900.628125040847,{"$error":"#NAME?"},{"$error":"#NAME?"},35.073932690115321,34.778192032887652,210443.59614069192,208669.15219732592,11500742.108201949,11403768.750245081,{"$error":"#NAME?"},{"$error":"#NAME?"},210443.59614069192,208669.15219732592,6000]
[null,"Male 25-29",26.959762999999999,77.789760000000001,"male",5,{"$f":"HLOOKUP(Calculations!$E$2,'Prevalence Rates'!$C$3:$BC$249,'Prevalence Rates'!$BD236,FALSE)","v":0.17900000000000005},{"$f":"HLOOKUP(Calculations!$E$2,'Population 2016'!$C$3:$BC$249,'Population 2016'!BD236,FALSE)","v":34280},0,{"$f":"HLOOKUP(Results!E$4,Targeting!$C$3:$F$249,Targeting!$G236,FALSE)","v":5628},{"$f":"IF(AND(OR(Calculations!$E$2=\"Orkney Health Board\",Calculations!$E$2=\"Orkney Islands Local Authority\"),$F236=1),0,IF(AND(OR(Calculations!$E$2=\"Shetland Health Board\",Calculations!$E$2=\"Western Isles Health Board\",Calculations!$E$2=\"Shetland Islands Local Authority\",Calculations!$E$2=\"Eilean Siar Local Authority\"),OR($F236=1,$F236=5)),0,new_ci(VALUE(LEFT(Options!$B$24,2)),$C236,$E236,$F236,2016,$I236,1,$H236,$G236*$H236,Options!$B$8)))","v":17.410889812200001},{"$f":"IF(AND(OR(Calculations!$E$2=\"Orkney Health Board\",Calculations!$E$2=\"Orkney Islands Local Authority\"),$F236=1),0,IF(AND(OR(Calculations!$E$2=\"Shetland Health Board\",Calculations!$E$2=\"Western Isles Health Board\",Calculations!$E$2=\"Shetland Islands Local Authority\",Calculations!$E$2=\"Eilean Siar Local Authority\"),OR($F236=1,$F236=5)),0,new_ci(VALUE(LEFT(Options!$B$24,2)),$C236,$E236,$F236,2016,$I236+$J236,1,$H236,$G236*$H236,Options!$B$8)))","v":17.263888703399999},{"$f":"IF(AND(OR(Calculations!$E$2=\"Orkney Health Board\",Calculations!$E$2=\"Orkney Islands Local Authority\"),$F236=1),0,IF(AND(OR(Calculations!$E$2=\"Shetland Health Board\",Calculations!$E$2=\"Western Isles Health Board\",Calculations!$E$2=\"Shetland Islands Local Authority\",Calculations!$E$2=\"Eilean Siar Local Authority\"),OR($F236=1,$F236=5)),0,new_yllv2(VALUE(LEFT(Options!$B$24,2)),$C236,$D236,$E236,$F236,2016,$I236,1,$H236,$G236*$H236,Options!$B$8)))","v":867.58458710929995},{"$f":"IF(AND(OR(Calculations!$E$2=\"Orkney Health Board\",Calculations!$E$2=\"Orkney Islands Local Authority\"),$F236=1),0,IF(AND(OR(Calculations!$E$2=\"Shetland Health Board\",Calculations!$E$2=\"Western Isles Health Board\",Calculations!$E$2=\"Shetland Islands Local Authority\",Calculations!$E$2=\"Eilean Siar Local Authority\"),OR($F236=1,$F236=5)),0,new_yllv2(VALUE(LEFT(Options!$B$24,2)),$C236,$D236,$E236,$F236,2016,$I236+$J236,1,$H236,$G236*$H236,Options!$B$8)))","v":860.25952229879999},{"$f":"IF(AND(OR(Calculations!$E$2=\"Orkney Health Board\",Calculations!$E$2=\"Orkney Islands Local Authority\"),$F236=1),0,IF(AND(OR(Calculations!$E$2=\"Shetland Health Board\",Calculations!$E$2=\"Western Isles Health Board\",Calculations!$E$2=\"Shetland Islands Local Authority\",Calculations!$E$2=\"Eilean Siar Local Authority\"),OR($F236=1,$F236=5)),0,hosp_count(VALUE(LEFT(Options!$B$24,2)),$C236,$E236,$F236,2016,$I236,1,$H236,$G236*$H236, Options!$B$8)))","v":{"$error":"#NAME?"}},{"$f":"IF(AND(OR(Calculations!$E$2=\"Orkney Health Board\",Calculations!$E$2=\"Orkney Islands Local Authority\"),$F236=1),0,IF(AND(OR(Calculations!$E$2=\"Shetland Health Board\",Calculations!$E$2=\"Western Isles Health Board\",Calculations!$E$2=\"Shetland Islands Local Authority\",Calculations!$E$2=\"Eilean Siar Local Authority\"),OR($F236=1,$F236=5)),0,hosp_count(VALUE(LEFT(Options!$B$24,2)),$C236,$E236,$F236,2016,$I236+$J236,1,$H236,$G236*$H236, Options!$B$8)))","v":{"$error":"#NAME?"}},{"$f":"IF(AND(OR(Calculations!$E$2=\"Orkney Health Board\",Calculations!$E$2=\"Orkney Islands Local Authority\"),$F236=1),0,IF(AND(OR(Calculations!$E$2=\"Shetland Health Board\",Calculations!$E$2=\"Western Isles Health Board\",Calculations!$E$2=\"Shetland Islands Local Authority\",Calculations!$E$2=\"Eilean Siar Local Authority\"),OR($F236=1,$F236=5)),0,prem_mort(VALUE(LEFT(Options!$B$24,2)),$C236,$E236,$F236,2016,$I236,1,$H236,$G236*$H236,Options!$B$8)))","v":17.410889812200001},{"$f":"IF(AND(OR(Calculations!$E$2=\"Orkney Health Board\",Calculations!$E$2=\"Orkney Islands Local Authority\"),$F236=1),0,IF(AND(OR(Calculations!$E$2=\"Shetland Health Board\",Calculations!$E$2=\"Western Isles Health Board\",Calculations!$E$2=\"Shetland Islands Local Authority\",Calculations!$E$2=\"Eilean Siar Local Authority\"),OR($F236=1,$F236=5)),0,prem_mort(VALUE(LEFT(Options!$B$24,2)),$C236,$E236,$F236,2016,$I236+$J236,1,$H236,$G236*$H236,Options!$B$8)))","v":17.263888703399999},50.790226990081678,50.361402285297544,2530.8768585452158,2509.5085247922989,{"$error":"#NAME?"},{"$error":"#NAME?"},50.790226990081678,50.361402285297544,304741.36194049008,302168.41371178528,15185261.151271295,15057051.148753794,{"$error":"#NAME?"},{"$error":"#NAME?"},304741.36194049008,302168.41371178528,6000]
[null,"Male 30-34",31.981521999999998,78.061520000000002,"male",5,{"$f":"HLOOKUP(Calculations!$E$2,'Prevalence Rates'!$C$3:$BC$249,'Prevalence Rates'!$BD237,FALSE)","v":0.17900000000000005},{"$f":"HLOOKUP(Calculations!$E$2,'Population 2016'!$C$3:$BC$249,'Population 2016'!BD237,FALSE)","v":30164},0,{"$f":"HLOOKUP(Results!E$4,Targeting!$C$3:$F$249,Targeting!$G237,FALSE)","v":4953},{"$f":"IF(AND(OR(Calculations!$E$2=\"Orkney Health Board\",Calculations!$E$2=\"Orkney Islands Local Authority\"),$F237=1),0,IF(AND(OR(Calculations!$E$2=\"Shetland Health Board\",Calculations!$E$2=\"Western Isles Health Board\",Calculations!$E$2=\"Shetland Islands Local Authority\",Calculations!$E$2=\"Eilean Siar Local Authority\"),OR($F237=1,$F237=5)),0,new_ci(VALUE(LEFT(Options!$B$24,2)),$C237,$E237,$F237,2016,$I237,1,$H237,$G237*$H237,Options!$B$8)))","v":22.380599631599999},{"$f":"IF(AND(OR(Calculations!$E$2=\"Orkney Health Board\",Calculations!$E$2=\"Orkney Islands Local Authority\"),$F237=1),0,IF(AND(OR(Calculations!$E$2=\"Shetland Health Board\",Calculations!$E$2=\"Western Isles Health Board\",Calculations!$E$2=\"Shetland Islands Local Authority\",Calculations!$E$2=\"Eilean Siar Local Authority\"),OR($F237=1,$F237=5)),0,new_ci(VALUE(LEFT(Options!$B$24,2)),$C237,$E237,$F237,2016,$I237+$J237,1,$H237,$G237*$H237,Options!$B$8)))","v":22.191645653399998},{"$f":"IF(AND(OR(Calculations!$E$2=\"Orkney Health Board\",Calculations!$E$2=\"Orkney Islands Local Authority\"),$F237=1),0,IF(AND(OR(Calculations!$E$2=\"Shetland Health Board\",Calculations!$E$2=\"Western Isles Health Board\",Calculations!$E$2=\"Shetland Islands Local Authority\",Calculations!$E$2=\"Eilean Siar Local Authority\"),OR($F237=1,$F237=5)),0,new_yllv2(VALUE(LEFT(Options!$B$24,2)),$C237,$D237,$E237,$F237,2016,$I237,1,$H237,$G237*$H237,Options!$B$8)))","v":1008.9173866313},{"$f":"IF(AND(OR(Calculations!$E$2=\"Orkney Health Board\",Calculations!$E$2=\"Orkney Islands Local Authority\"),$F237=1),0,IF(AND(OR(Calculations!$E$2=\"Shetland Health Board\",Calculations!$E$2=\"Western Isles Health Board\",Calculations!$E$2=\"Shetland Islands Local Authority\",Calculations!$E$2=\"Eilean Siar Local Authority\"),OR($F237=1,$F237=5)),0,new_yllv2(VALUE(LEFT(Options!$B$24,2)),$C237,$D237,$E237,$F237,2016,$I237+$J237,1,$H237,$G237*$H237,Options!$B$8)))","v":1000.399341672},{"$f":"IF(AND(OR(Calculations!$E$2=\"Orkney Health Board\",Calculations!$E$2=\"Orkney Islands Local Authority\"),$F237=1),0,IF(AND(OR(Calculations!$E$2=\"Shetland Health Board\",Calculations!$E$2=\"Western Isles Health Board\",Calculations!$E$2=\"Shetland Islands Local Authority\",Calculations!$E$2=\"Eilean Siar Local Authority\"),OR($F237=1,$F237=5)),0,hosp_count(VALUE(LEFT(Options!$B$24,2)),$C237,$E237,$F237,2016,$I237,1,$H237,$G237*$H237, Options!$B$8)))","v":{"$error":"#NAME?"}},{"$f":"IF(AND(OR(Calculations!$E$2=\"Orkney Health Board\",Calculations!$E$2=\"Orkney Islands Local Authority\"),$F237=1),0,IF(AND(OR(Calculations!$E$2=\"Shetland Health Board\",Calculations!$E$2=\"Western Isles Health Board\",Calculations!$E$2=\"Shetland Islands Local Authority\",Calculations!$E$2=\"Eilean Siar Local Authority\"),OR($F237=1,$F237=5)),0,hosp_count(VALUE(LEFT(Options!$B$24,2)),$C237,$E237,$F237,2016,$I237+$J237,1,$H237,$G237*$H237, Options!$B$8)))","v":{"$error":"#NAME?"}},{"$f":"IF(AND(OR(Calculations!$E$2=\"Orkney Health Board\",Calculations!$E$2=\"Orkney Islands Local Authority\"),$F237=1),0,IF(AND(OR(Calculations!$E$2=\"Shetland Health Board\",Calculations!$E$2=\"Western Isles Health Board\",Calculations!$E$2=\"Shetland Islands Local Authority\",Calculations!$E$2=\"Eilean Siar Local Authority\"),OR($F237=1,$F237=5)),0,prem_mort(VALUE(LEFT(Options!$B$24,2)),$C237,$E237,$F237,2016,$I237,1,$H237,$G237*$H237,Options!$B$8)))","v":22.380599631599999},{"$f":"IF(AND(OR(Calculations!$E$2=\"Orkney Health Board\",Calculations!$E$2=\"Orkney Islands Local Authority\"),$F237=1),0,IF(AND(OR(Calculations!$E$2=\"Shetland Health Board\",Calculations!$E$2=\"Western Isles Health Board\",Calculations!$E$2=\"Shetland Islands Local Authority\",Calculations!$E$2=\"Eilean Siar Local Authority\"),OR($F237=1,$F237=5)),0,prem_mort(VALUE(LEFT(Options!$B$24,2)),$C237,$E237,$F237,2016,$I237+$J237,1,$H237,$G237*$H237,Options!$B$8)))","v":22.191645653399998},74.196391829996017,73.569969677098513,3344.7731953033417,3316.5340859037265,{"$error":"#NAME?"},{"$error":"#NAME?"},74.196391829996017,73.569969677098513,482276.54689497413,478204.80290114036,21741025.76947172,21557471.558374222,{"$error":"#NAME?"},{"$error":"#NAME?"},482276.54689497413,478204.80290114036,6500]
[null,"Male 35-39",36.926009999999998,78.336009999999987,"male",5,{"$f":"HLOOKUP(Calculations!$E$2,'Prevalence Rates'!$C$3:$BC$249,'Prevalence Rates'!$BD238,FALSE)","v":0.25099999999999995},{"$f":"HLOOKUP(Calculations!$E$2,'Population 2016'!$C$3:$BC$249,'Population 2016'!BD238,FALSE)","v":31915},0,{"$f":"HLOOKUP(Results!E$4,Targeting!$C$3:$F$249,Targeting!$G238,FALSE)","v":5240},{"$f":"IF(AND(OR(Calculations!$E$2=\"Orkney Health Board\",Calculations!$E$2=\"Orkney Islands Local Authority\"),$F238=1),0,IF(AND(OR(Calculations!$E$2=\"Shetland Health Board\",Calculations!$E$2=\"Western Isles Health Board\",Calculations!$E$2=\"Shetland Islands Local Authority\",Calculations!$E$2=\"Eilean Siar Local Authority\"),OR($F238=1,$F238=5)),0,new_ci(VALUE(LEFT(Options!$B$24,2)),$C238,$E238,$F238,2016,$I238,1,$H238,$G238*$H238,Options!$B$8)))","v":34.389267346499999},{"$f":"IF(AND(OR(Calculations!$E$2=\"Orkney Health Board\",Calculations!$E$2=\"Orkney Islands Local Authority\"),$F238=1),0,IF(AND(OR(Calculations!$E$2=\"Shetland Health Board\",Calculations!$E$2=\"Western Isles Health Board\",Calculations!$E$2=\"Shetland Islands Local Authority\",Calculations!$E$2=\"Eilean Siar Local Authority\"),OR($F238=1,$F238=5)),0,new_ci(VALUE(LEFT(Options!$B$24,2)),$C238,$E238,$F238,2016,$I238+$J238,1,$H238,$G238*$H238,Options!$B$8)))","v":34.107114306500002},{"$f":"IF(AND(OR(Calculations!$E$2=\"Orkney Health Board\",Calculations!$E$2=\"Orkney Islands Local Authority\"),$F238=1),0,IF(AND(OR(Calculations!$E$2=\"Shetland Health Board\",Calculations!$E$2=\"Western Isles Health Board\",Calculations!$E$2=\"Shetland Islands Local Authority\",Calculations!$E$2=\"Eilean Siar Local Authority\"),OR($F238=1,$F238=5)),0,new_yllv2(VALUE(LEFT(Options!$B$24,2)),$C238,$D238,$E238,$F238,2016,$I238,1,$H238,$G238*$H238,Options!$B$8)))","v":1389.6702934721},{"$f":"IF(AND(OR(Calculations!$E$2=\"Orkney Health Board\",Calculations!$E$2=\"Orkney Islands Local Authority\"),$F238=1),0,IF(AND(OR(Calculations!$E$2=\"Shetland Health Board\",Calculations!$E$2=\"Western Isles Health Board\",Calculations!$E$2=\"Shetland Islands Local Authority\",Calculations!$E$2=\"Eilean Siar Local Authority\"),OR($F238=1,$F238=5)),0,new_yllv2(VALUE(LEFT(Options!$B$24,2)),$C238,$D238,$E238,$F238,2016,$I238+$J238,1,$H238,$G238*$H238,Options!$B$8)))","v":1378.2684891256999},{"$f":"IF(AND(OR(Calculations!$E$2=\"Orkney Health Board\",Calculations!$E$2=\"Orkney Islands Local Authority\"),$F238=1),0,IF(AND(OR(Calculations!$E$2=\"Shetland Health Board\",Calculations!$E$2=\"Western Isles Health Board\",Calculations!$E$2=\"Shetland Islands Local Authority\",Calculations!$E$2=\"Eilean Siar Local Authority\"),OR($F238=1,$F238=5)),0,hosp_count(VALUE(LEFT(Options!$B$24,2)),$C238,$E238,$F238,2016,$I238,1,$H238,$G238*$H238, Options!$B$8)))","v":{"$error":"#NAME?"}},{"$f":"IF(AND(OR(Calculations!$E$2=\"Orkney Health Board\",Calculations!$E$2=\"Orkney Islands Local Authority\"),$F238=1),0,IF(AND(OR(Calculations!$E$2=\"Shetland Health Board\",Calculations!$E$2=\"Western Isles Health Board\",Calculations!$E$2=\"Shetland Islands Local Authority\",Calculations!$E$2=\"Eilean Siar Local Authority\"),OR($F238=1,$F238=5)),0,hosp_count(VALUE(LEFT(Options!$B$24,2)),$C238,$E238,$F238,2016,$I238+$J238,1,$H238,$G238*$H238, Options!$B$8)))","v":{"$error":"#NAME?"}},{"$f":"IF(AND(OR(Calculations!$E$2=\"Orkney Health Board\",Calculations!$E$2=\"Orkney Islands Local Authority\"),$F238=1),0,IF(AND(OR(Calculations!$E$2=\"Shetland Health Board\",Calculations!$E$2=\"Western Isles Health Board\",Calculations!$E$2=\"Shetland Islands Local Authority\",Calculations!$E$2=\"Eilean Siar Local Authority\"),OR($F238=1,$F238=5)),0,prem_mort(VALUE(LEFT(Options!$B$24,2)),$C238,$E238,$F238,2016,$I238,1,$H238,$G238*$H238,Options!$B$8)))","v":34.389267346499999},{"$f":"IF(AND(OR(Calculations!$E$2=\"Orkney Health Board\",Calculations!$E$2=\"Orkney Islands Local Authority\"),$F238=1),0,IF(AND(OR(Calculations!$E$2=\"Shetland Health Board\",Calculations!$E$2=\"Western Isles Health Board\",Calculations!$E$2=\"Shetland Islands Local Authority\",Calculations!$E$2=\"Eilean Siar Local Authority\"),OR($F238=1,$F238=5)),0,prem_mort(VALUE(LEFT(Options!$B$24,2)),$C238,$E238,$F238,2016,$I238+$J238,1,$H238,$G238*$H238,Options!$B$8)))","v":34.107114306500002},107.75267851010497,106.86860193169356,4354.2857385934512,4318.5602040598469,{"$error":"#NAME?"},{"$error":"#NAME?"},107.75267851010497,106.86860193169356,754268.7495707348,748080.21352185495,30480000.170154158,30229921.428418927,{"$error":"#NAME?"},{"$error":"#NAME?"},754268.7495707348,748080.21352185495,7000]
[null,"Male 40-44",42.067703000000002,78.907700000000006,"male",5,{"$f":"HLOOKUP(Calculations!$E$2,'Prevalence Rates'!$C$3:$BC$249,'Prevalence Rates'!$BD239,FALSE)","v":0.25099999999999995},{"$f":"HLOOKUP(Calculations!$E$2,'Population 2016'!$C$3:$BC$249,'Population 2016'!BD239,FALSE)","v":35113},0,{"$f":"HLOOKUP(Results!E$4,Targeting!$C$3:$F$249,Targeting!$G239,FALSE)","v":5765},{"$f":"IF(AND(OR(Calculations!$E$2=\"Orkney Health Board\",Calculations!$E$2=\"Orkney Islands Local Authority\"),$F239=1),0,IF(AND(OR(Calculations!$E$2=\"Shetland Health Board\",Calculations!$E$2=\"Western Isles Health Board\",Calculations!$E$2=\"Shetland Islands Local Authority\",Calculations!$E$2=\"Eilean Siar Local Authority\"),OR($F239=1,$F239=5)),0,new_ci(VALUE(LEFT(Options!$B$24,2)),$C239,$E239,$F239,2016,$I239,1,$H239,$G239*$H239,Options!$B$8)))","v":55.765924241100002},{"$f":"IF(AND(OR(Calculations!$E$2=\"Orkney Health Board\",Calculations!$E$2=\"Orkney Islands Local Authority\"),$F239=1),0,IF(AND(OR(Calculations!$E$2=\"Shetland Health Board\",Calculations!$E$2=\"Western Isles Health Board\",Calculations!$E$2=\"Shetland Islands Local Authority\",Calculations!$E$2=\"Eilean Siar Local Authority\"),OR($F239=1,$F239=5)),0,new_ci(VALUE(LEFT(Options!$B$24,2)),$C239,$E239,$F239,2016,$I239+$J239,1,$H239,$G239*$H239,Options!$B$8)))","v":55.308563154600002},{"$f":"IF(AND(OR(Calculations!$E$2=\"Orkney Health Board\",Calculations!$E$2=\"Orkney Islands Local Authority\"),$F239=1),0,IF(AND(OR(Calculations!$E$2=\"Shetland Health Board\",Calculations!$E$2=\"Western Isles Health Board\",Calculations!$E$2=\"Shetland Islands Local Authority\",Calculations!$E$2=\"Eilean Siar Local Authority\"),OR($F239=1,$F239=5)),0,new_yllv2(VALUE(LEFT(Options!$B$24,2)),$C239,$D239,$E239,$F239,2016,$I239,1,$H239,$G239*$H239,Options!$B$8)))","v":1998.6505575033},{"$f":"IF(AND(OR(Calculations!$E$2=\"Orkney Health Board\",Calculations!$E$2=\"Orkney Islands Local Authority\"),$F239=1),0,IF(AND(OR(Calculations!$E$2=\"Shetland Health Board\",Calculations!$E$2=\"Western Isles Health Board\",Calculations!$E$2=\"Shetland Islands Local Authority\",Calculations!$E$2=\"Eilean Siar Local Authority\"),OR($F239=1,$F239=5)),0,new_yllv2(VALUE(LEFT(Options!$B$24,2)),$C239,$D239,$E239,$F239,2016,$I239+$J239,1,$H239,$G239*$H239,Options!$B$8)))","v":1982.2587375352},{"$f":"IF(AND(OR(Calculations!$E$2=\"Orkney Health Board\",Calculations!$E$2=\"Orkney Islands Local Authority\"),$F239=1),0,IF(AND(OR(Calculations!$E$2=\"Shetland Health Board\",Calculations!$E$2=\"Western Isles Health Board\",Calculations!$E$2=\"Shetland Islands Local Authority\",Calculations!$E$2=\"Eilean Siar Local Authority\"),OR($F239=1,$F239=5)),0,hosp_count(VALUE(LEFT(Options!$B$24,2)),$C239,$E239,$F239,2016,$I239,1,$H239,$G239*$H239, Options!$B$8)))","v":{"$error":"#NAME?"}},{"$f":"IF(AND(OR(Calculations!$E$2=\"Orkney Health Board\",Calculations!$E$2=\"Orkney Islands Local Authority\"),$F239=1),0,IF(AND(OR(Calculations!$E$2=\"Shetland Health Board\",Calculations!$E$2=\"Western Isles Health Board\",Calculations!$E$2=\"Shetland Islands Local Authority\",Calculations!$E$2=\"Eilean Siar Local Authority\"),OR($F239=1,$F239=5)),0,hosp_count(VALUE(LEFT(Options!$B$24,2)),$C239,$E239,$F239,2016,$I239+$J239,1,$H239,$G239*$H239, Options!$B$8)))","v":{"$error":"#NAME?"}},{"$f":"IF(AND(OR(Calculations!$E$2=\"Orkney Health Board\",Calculations!$E$2=\"Orkney Islands Local Authority\"),$F239=1),0,IF(AND(OR(Calculations!$E$2=\"Shetland Health Board\",Calculations!$E$2=\"Western Isles Health Board\",Calculations!$E$2=\"Shetland Islands Local Authority\",Calculations!$E$2=\"Eilean Siar Local Authority\"),OR($F239=1,$F239=5)),0,prem_mort(VALUE(LEFT(Options!$B$24,2)),$C239,$E239,$F239,2016,$I239,1,$H239,$G239*$H239,Options!$B$8)))","v":55.765924241100002},{"$f":"IF(AND(OR(Calculations!$E$2=\"Orkney Health Board\",Calculations!$E$2=\"Orkney Islands Local Authority\"),$F239=1),0,IF(AND(OR(Calculations!$E$2=\"Shetland Health Board\",Calculations!$E$2=\"Western Isles Health Board\",Calculations!$E$2=\"Shetland Islands Local Authority\",Calculations!$E$2=\"Eilean Siar Local Authority\"),OR($F239=1,$F239=5)),0,prem_mort(VALUE(LEFT(Options!$B$24,2)),$C239,$E239,$F239,2016,$I239+$J239,1,$H239,$G239*$H239,Options!$B$8)))","v":55.308563154600002},158.81845539002649,157.51591477401533,5692.0529647233216,5645.3699129530378,{"$error":"#NAME?"},{"$error":"#NAME?"},158.81845539002649,157.51591477401533,1111729.1877301855,1102611.4034181072,39844370.753063254,39517589.390671268,{"$error":"#NAME?"},{"$error":"#NAME?"},1111729.1877301855,1102611.4034181072,7000]
[null,"Male 45-49",47.038155000000003,79.418149999999997,"male",5,{"$f":"HLOOKUP(Calculations!$E$2,'Prevalence Rates'!$C$3:$BC$249,'Prevalence Rates'!$BD240,FALSE)","v":0.23799999999999996},{"$f":"HLOOKUP(Calculations!$E$2,'Population 2016'!$C$3:$BC$249,'Population 2016'!BD240,FALSE)","v":39359},0,{"$f":"HLOOKUP(Results!E$4,Targeting!$C$3:$F$249,Targeting!$G240,FALSE)","v":6462},{"$f":"IF(AND(OR(Calculations!$E$2=\"Orkney Health Board\",Calculations!$E$2=\"Orkney Islands Local Authority\"),$F240=1),0,IF(AND(OR(Calculations!$E$2=\"Shetland Health Board\",Calculations!$E$2=\"Western Isles Health Board\",Calculations!$E$2=\"Shetland Islands Local Authority\",Calculations!$E$2=\"Eilean Siar Local Authority\"),OR($F240=1,$F240=5)),0,new_ci(VALUE(LEFT(Options!$B$24,2)),$C240,$E240,$F240,2016,$I240,1,$H240,$G240*$H240,Options!$B$8)))","v":90.940264725999995},{"$f":"IF(AND(OR(Calculations!$E$2=\"Orkney Health Board\",Calculations!$E$2=\"Orkney Islands Local Authority\"),$F240=1),0,IF(AND(OR(Calculations!$E$2=\"Shetland Health Board\",Calculations!$E$2=\"Western Isles Health Board\",Calculations!$E$2=\"Shetland Islands Local Authority\",Calculations!$E$2=\"Eilean Siar Local Authority\"),OR($F240=1,$F240=5)),0,new_ci(VALUE(LEFT(Options!$B$24,2)),$C240,$E240,$F240,2016,$I240+$J240,1,$H240,$G240*$H240,Options!$B$8)))","v":90.191083062999994},{"$f":"IF(AND(OR(Calculations!$E$2=\"Orkney Health Board\",Calculations!$E$2=\"Orkney Islands Local Authority\"),$F240=1),0,IF(AND(OR(Calculations!$E$2=\"Shetland Health Board\",Calculations!$E$2=\"Western Isles Health Board\",Calculations!$E$2=\"Shetland Islands Local Authority\",Calculations!$E$2=\"Eilean Siar Local Authority\"),OR($F240=1,$F240=5)),0,new_yllv2(VALUE(LEFT(Options!$B$24,2)),$C240,$D240,$E240,$F240,2016,$I240,1,$H240,$G240*$H240,Options!$B$8)))","v":2853.7050524005999},{"$f":"IF(AND(OR(Calculations!$E$2=\"Orkney Health Board\",Calculations!$E$2=\"Orkney Islands Local Authority\"),$F240=1),0,IF(AND(OR(Calculations!$E$2=\"Shetland Health Board\",Calculations!$E$2=\"Western Isles Health Board\",Calculations!$E$2=\"Shetland Islands Local Authority\",Calculations!$E$2=\"Eilean Siar Local Authority\"),OR($F240=1,$F240=5)),0,new_yllv2(VALUE(LEFT(Options!$B$24,2)),$C240,$D240,$E240,$F240,2016,$I240+$J240,1,$H240,$G240*$H240,Options!$B$8)))","v":2830.1957355615},{"$f":"IF(AND(OR(Calculations!$E$2=\"Orkney Health Board\",Calculations!$E$2=\"Orkney Islands Local Authority\"),$F240=1),0,IF(AND(OR(Calculations!$E$2=\"Shetland Health Board\",Calculations!$E$2=\"Western Isles Health Board\",Calculations!$E$2=\"Shetland Islands Local Authority\",Calculations!$E$2=\"Eilean Siar Local Authority\"),OR($F240=1,$F240=5)),0,hosp_count(VALUE(LEFT(Options!$B$24,2)),$C240,$E240,$F240,2016,$I240,1,$H240,$G240*$H240, Options!$B$8)))","v":{"$error":"#NAME?"}},{"$f":"IF(AND(OR(Calculations!$E$2=\"Orkney Health Board\",Calculations!$E$2=\"Orkney Islands Local Authority\"),$F240=1),0,IF(AND(OR(Calculations!$E$2=\"Shetland Health Board\",Calculations!$E$2=\"Western Isles Health Board\",Calculations!$E$2=\"Shetland Islands Local Authority\",Calculations!$E$2=\"Eilean Siar Local Authority\"),OR($F240=1,$F240=5)),0,hosp_count(VALUE(LEFT(Options!$B$24,2)),$C240,$E240,$F240,2016,$I240+$J240,1,$H240,$G240*$H240, Options!$B$8)))","v":{"$error":"#NAME?"}},{"$f":"IF(AND(OR(Calculations!$E$2=\"Orkney Health Board\",Calculations!$E$2=\"Orkney Islands Local Authority\"),$F240=1),0,IF(AND(OR(Calculations!$E$2=\"Shetland Health Board\",Calculations!$E$2=\"Western Isles Health Board\",Calculations!$E$2=\"Shetland Islands Local Authority\",Calculations!$E$2=\"Eilean Siar Local Authority\"),OR($F240=1,$F240=5)),0,prem_mort(VALUE(LEFT(Options!$B$24,2)),$C240,$E240,$F240,2016,$I240,1,$H240,$G240*$H240,Options!$B$8)))","v":90.940264725999995},{"$f":"IF(AND(OR(Calculations!$E$2=\"Orkney Health Board\",Calculations!$E$2=\"Orkney Islands Local Authority\"),$F240=1),0,IF(AND(OR(Calculations!$E$2=\"Shetland Health Board\",Calculations!$E$2=\"Western Isles Health Board\",Calculations!$E$2=\"Shetland Islands Local Authority\",Calculations!$E$2=\"Eilean Siar Local Authority\"),OR($F240=1,$F240=5)),0,prem_mort(VALUE(LEFT(Options!$B$24,2)),$C240,$E240,$F240,2016,$I240+$J240,1,$H240,$G240*$H240,Options!$B$8)))","v":90.191083062999994},231.05329080007115,229.14983374323532,7250.4511100398886,7190.7206371134944,{"$error":"#NAME?"},{"$error":"#NAME?"},231.05329080007115,229.14983374323532,1617373.0356004981,1604048.8362026473,50753157.770279221,50335044.459794462,{"$error":"#NAME?"},{"$error":"#NAME?"},1617373.0356004981,1604048.8362026473,7000]
[null,"Male 50-54",51.998646000000001,79.988649999999993,"male",5,{"$f":"HLOOKUP(Calculations!$E$2,'Prevalence Rates'!$C$3:$BC$249,'Prevalence Rates'!$BD241,FALSE)","v":0.23799999999999996},{"$f":"HLOOKUP(Calculations!$E$2,'Population 2016'!$C$3:$BC$249,'Population 2016'!BD241,FALSE)","v":40044},0,{"$f":"HLOOKUP(Results!E$4,Targeting!$C$3:$F$249,Targeting!$G241,FALSE)","v":6575},{"$f":"IF(AND(OR(Calculations!$E$2=\"Orkney Health Board\",Calculations!$E$2=\"Orkney Islands Local Authority\"),$F241=1),0,IF(AND(OR(Calculations!$E$2=\"Shetland Health Board\",Calculations!$E$2=\"Western Isles Health Board\",Calculations!$E$2=\"Shetland Islands Local Authority\",Calculations!$E$2=\"Eilean Siar Local Authority\"),OR($F241=1,$F241=5)),0,new_ci(VALUE(LEFT(Options!$B$24,2)),$C241,$E241,$F241,2016,$I241,1,$H241,$G241*$H241,Options!$B$8)))","v":134.48103777430001},{"$f":"IF(AND(OR(Calculations!$E$2=\"Orkney Health Board\",Calculations!$E$2=\"Orkney Islands Local Authority\"),$F241=1),0,IF(AND(OR(Calculations!$E$2=\"Shetland Health Board\",Calculations!$E$2=\"Western Isles Health Board\",Calculations!$E$2=\"Shetland Islands Local Authority\",Calculations!$E$2=\"Eilean Siar Local Authority\"),OR($F241=1,$F241=5)),0,new_ci(VALUE(LEFT(Options!$B$24,2)),$C241,$E241,$F241,2016,$I241+$J241,1,$H241,$G241*$H241,Options!$B$8)))","v":133.37395110930001},{"$f":"IF(AND(OR(Calculations!$E$2=\"Orkney Health Board\",Calculations!$E$2=\"Orkney Islands Local Authority\"),$F241=1),0,IF(AND(OR(Calculations!$E$2=\"Shetland Health Board\",Calculations!$E$2=\"Western Isles Health Board\",Calculations!$E$2=\"Shetland Islands Local Authority\",Calculations!$E$2=\"Eilean Siar Local Authority\"),OR($F241=1,$F241=5)),0,new_yllv2(VALUE(LEFT(Options!$B$24,2)),$C241,$D241,$E241,$F241,2016,$I241,1,$H241,$G241*$H241,Options!$B$8)))","v":3629.6437474525001},{"$f":"IF(AND(OR(Calculations!$E$2=\"Orkney Health Board\",Calculations!$E$2=\"Orkney Islands Local Authority\"),$F241=1),0,IF(AND(OR(Calculations!$E$2=\"Shetland Health Board\",Calculations!$E$2=\"Western Isles Health Board\",Calculations!$E$2=\"Shetland Islands Local Authority\",Calculations!$E$2=\"Eilean Siar Local Authority\"),OR($F241=1,$F241=5)),0,new_yllv2(VALUE(LEFT(Options!$B$24,2)),$C241,$D241,$E241,$F241,2016,$I241+$J241,1,$H241,$G241*$H241,Options!$B$8)))","v":3599.7634739358},{"$f":"IF(AND(OR(Calculations!$E$2=\"Orkney Health Board\",Calculations!$E$2=\"Orkney Islands Local Authority\"),$F241=1),0,IF(AND(OR(Calculations!$E$2=\"Shetland Health Board\",Calculations!$E$2=\"Western Isles Health Board\",Calculations!$E$2=\"Shetland Islands Local Authority\",Calculations!$E$2=\"Eilean Siar Local Authority\"),OR($F241=1,$F241=5)),0,hosp_count(VALUE(LEFT(Options!$B$24,2)),$C241,$E241,$F241,2016,$I241,1,$H241,$G241*$H241, Options!$B$8)))","v":{"$error":"#NAME?"}},{"$f":"IF(AND(OR(Calculations!$E$2=\"Orkney Health Board\",Calculations!$E$2=\"Orkney Islands Local Authority\"),$F241=1),0,IF(AND(OR(Calculations!$E$2=\"Shetland Health Board\",Calculations!$E$2=\"Western Isles Health Board\",Calculations!$E$2=\"Shetland Islands Local Authority\",Calculations!$E$2=\"Eilean Siar Local Authority\"),OR($F241=1,$F241=5)),0,hosp_count(VALUE(LEFT(Options!$B$24,2)),$C241,$E241,$F241,2016,$I241+$J241,1,$H241,$G241*$H241, Options!$B$8)))","v":{"$error":"#NAME?"}},{"$f":"IF(AND(OR(Calculations!$E$2=\"Orkney Health Board\",Calculations!$E$2=\"Orkney Islands Local Authority\"),$F241=1),0,IF(AND(OR(Calculations!$E$2=\"Shetland Health Board\",Calculations!$E$2=\"Western Isles Health Board\",Calculations!$E$2=\"Shetland Islands Local Authority\",Calculations!$E$2=\"Eilean Siar Local Authority\"),OR($F241=1,$F241=5)),0,prem_mort(VALUE(LEFT(Options!$B$24,2)),$C241,$E241,$F241,2016,$I241,1,$H241,$G241*$H241,Options!$B$8)))","v":134.48103777430001},{"$f":"IF(AND(OR(Calculations!$E$2=\"Orkney Health Board\",Calculations!$E$2=\"Orkney Islands Local Authority\"),$F241=1),0,IF(AND(OR(Calculations!$E$2=\"Shetland Health Board\",Calculations!$E$2=\"Western Isles Health Board\",Calculations!$E$2=\"Shetland Islands Local Authority\",Calculations!$E$2=\"Eilean Siar Local Authority\"),OR($F241=1,$F241=5)),0,prem_mort(VALUE(LEFT(Options!$B$24,2)),$C241,$E241,$F241,2016,$I241+$J241,1,$H241,$G241*$H241,Options!$B$8)))","v":133.37395110930001},335.83317794001596,333.06850242058738,9064.1388159337221,8989.5202126056338,{"$error":"#NAME?"},{"$error":"#NAME?"},335.83317794001596,333.06850242058738,2350832.2455801116,2331479.5169441118,63448971.711536057,62926641.488239437,{"$error":"#NAME?"},{"$error":"#NAME?"},2350832.2455801116,2331479.5169441118,7000]
[null,"Male 55-59",56.950867000000002,80.660870000000003,"male",5,{"$f":"HLOOKUP(Calculations!$E$2,'Prevalence Rates'!$C$3:$BC$249,'Prevalence Rates'!$BD242,FALSE)","v":0.35200000000000004},{"$f":"HLOOKUP(Calculations!$E$2,'Population 2016'!$C$3:$BC$249,'Population 2016'!BD242,FALSE)","v":36422},0,{"$f":"HLOOKUP(Results!E$4,Targeting!$C$3:$F$249,Targeting!$G242,FALSE)","v":5980},{"$f":"IF(AND(OR(Calculations!$E$2=\"Orkney Health Board\",Calculations!$E$2=\"Orkney Islands Local Authority\"),$F242=1),0,IF(AND(OR(Calculations!$E$2=\"Shetland Health Board\",Calculations!$E$2=\"Western Isles Health Board\",Calculations!$E$2=\"Shetland Islands Local Authority\",Calculations!$E$2=\"Eilean Siar Local Authority\"),OR($F242=1,$F242=5)),0,new_ci(VALUE(LEFT(Options!$B$24,2)),$C242,$E242,$F242,2016,$I242,1,$H242,$G242*$H242,Options!$B$8)))","v":177.63048954289999},{"$f":"IF(AND(OR(Calculations!$E$2=\"Orkney Health Board\",Calculations!$E$2=\"Orkney Islands Local Authority\"),$F242=1),0,IF(AND(OR(Calculations!$E$2=\"Shetland Health Board\",Calculations!$E$2=\"Western Isles Health Board\",Calculations!$E$2=\"Shetland Islands Local Authority\",Calculations!$E$2=\"Eilean Siar Local Authority\"),OR($F242=1,$F242=5)),0,new_ci(VALUE(LEFT(Options!$B$24,2)),$C242,$E242,$F242,2016,$I242+$J242,1,$H242,$G242*$H242,Options!$B$8)))","v":176.23161923890001},{"$f":"IF(AND(OR(Calculations!$E$2=\"Orkney Health Board\",Calculations!$E$2=\"Orkney Islands Local Authority\"),$F242=1),0,IF(AND(OR(Calculations!$E$2=\"Shetland Health Board\",Calculations!$E$2=\"Western Isles Health Board\",Calculations!$E$2=\"Shetland Islands Local Authority\",Calculations!$E$2=\"Eilean Siar Local Authority\"),OR($F242=1,$F242=5)),0,new_yllv2(VALUE(LEFT(Options!$B$24,2)),$C242,$D242,$E242,$F242,2016,$I242,1,$H242,$G242*$H242,Options!$B$8)))","v":4033.9889504107},{"$f":"IF(AND(OR(Calculations!$E$2=\"Orkney Health Board\",Calculations!$E$2=\"Orkney Islands Local Authority\"),$F242=1),0,IF(AND(OR(Calculations!$E$2=\"Shetland Health Board\",Calculations!$E$2=\"Western Isles Health Board\",Calculations!$E$2=\"Shetland Islands Local Authority\",Calculations!$E$2=\"Eilean Siar Local Authority\"),OR($F242=1,$F242=5)),0,new_yllv2(VALUE(LEFT(Options!$B$24,2)),$C242,$D242,$E242,$F242,2016,$I242+$J242,1,$H242,$G242*$H242,Options!$B$8)))","v":4002.2206016103},{"$f":"IF(AND(OR(Calculations!$E$2=\"Orkney Health Board\",Calculations!$E$2=\"Orkney Islands Local Authority\"),$F242=1),0,IF(AND(OR(Calculations!$E$2=\"Shetland Health Board\",Calculations!$E$2=\"Western Isles Health Board\",Calculations!$E$2=\"Shetland Islands Local Authority\",Calculations!$E$2=\"Eilean Siar Local Authority\"),OR($F242=1,$F242=5)),0,hosp_count(VALUE(LEFT(Options!$B$24,2)),$C242,$E242,$F242,2016,$I242,1,$H242,$G242*$H242, Options!$B$8)))","v":{"$error":"#NAME?"}},{"$f":"IF(AND(OR(Calculations!$E$2=\"Orkney Health Board\",Calculations!$E$2=\"Orkney Islands Local Authority\"),$F242=1),0,IF(AND(OR(Calculations!$E$2=\"Shetland Health Board\",Calculations!$E$2=\"Western Isles Health Board\",Calculations!$E$2=\"Shetland Islands Local Authority\",Calculations!$E$2=\"Eilean Siar Local Authority\"),OR($F242=1,$F242=5)),0,hosp_count(VALUE(LEFT(Options!$B$24,2)),$C242,$E242,$F242,2016,$I242+$J242,1,$H242,$G242*$H242, Options!$B$8)))","v":{"$error":"#NAME?"}},{"$f":"IF(AND(OR(Calculations!$E$2=\"Orkney Health Board\",Calculations!$E$2=\"Orkney Islands Local Authority\"),$F242=1),0,IF(AND(OR(Calculations!$E$2=\"Shetland Health Board\",Calculations!$E$2=\"Western Isles Health Board\",Calculations!$E$2=\"Shetland Islands Local Authority\",Calculations!$E$2=\"Eilean Siar Local Authority\"),OR($F242=1,$F242=5)),0,prem_mort(VALUE(LEFT(Options!$B$24,2)),$C242,$E242,$F242,2016,$I242,1,$H242,$G242*$H242,Options!$B$8)))","v":177.63048954289999},{"$f":"IF(AND(OR(Calculations!$E$2=\"Orkney Health Board\",Calculations!$E$2=\"Orkney Islands Local Authority\"),$F242=1),0,IF(AND(OR(Calculations!$E$2=\"Shetland Health Board\",Calculations!$E$2=\"Western Isles Health Board\",Calculations!$E$2=\"Shetland Islands Local Authority\",Calculations!$E$2=\"Eilean Siar Local Authority\"),OR($F242=1,$F242=5)),0,prem_mort(VALUE(LEFT(Options!$B$24,2)),$C242,$E242,$F242,2016,$I242+$J242,1,$H242,$G242*$H242,Options!$B$8)))","v":176.23161923890001},487.70108599994506,483.8603570339356,11075.693126161934,10988.470159821811,{"$error":"#NAME?"},{"$error":"#NAME?"},487.70108599994506,483.8603570339356,3170057.0589996427,3145092.3207205813,71992005.320052564,71425056.038841769,{"$error":"#NAME?"},{"$error":"#NAME?"},3170057.0589996427,3145092.3207205813,6500]
[null,"Male 60-64",61.942988999999997,81.612989999999996,"male",5,{"$f":"HLOOKUP(Calculations!$E$2,'Prevalence Rates'!$C$3:$BC$249,'Prevalence Rates'!$BD243,FALSE)","v":0.35200000000000004},{"$f":"HLOOKUP(Calculations!$E$2,'Population 2016'!$C$3:$BC$249,'Population 2016'!BD243,FALSE)","v":32001},0,{"$f":"HLOOKUP(Results!E$4,Targeting!$C$3:$F$249,Targeting!$G243,FALSE)","v":5254},{"$f":"IF(AND(OR(Calculations!$E$2=\"Orkney Health Board\",Calculations!$E$2=\"Orkney Islands Local Authority\"),$F243=1),0,IF(AND(OR(Calculations!$E$2=\"Shetland Health Board\",Calculations!$E$2=\"Western Isles Health Board\",Calculations!$E$2=\"Shetland Islands Local Authority\",Calculations!$E$2=\"Eilean Siar Local Authority\"),OR($F243=1,$F243=5)),0,new_ci(VALUE(LEFT(Options!$B$24,2)),$C243,$E243,$F243,2016,$I243,1,$H243,$G243*$H243,Options!$B$8)))","v":227.2476222775},{"$f":"IF(AND(OR(Calculations!$E$2=\"Orkney Health Board\",Calculations!$E$2=\"Orkney Islands Local Authority\"),$F243=1),0,IF(AND(OR(Calculations!$E$2=\"Shetland Health Board\",Calculations!$E$2=\"Western Isles Health Board\",Calculations!$E$2=\"Shetland Islands Local Authority\",Calculations!$E$2=\"Eilean Siar Local Authority\"),OR($F243=1,$F243=5)),0,new_ci(VALUE(LEFT(Options!$B$24,2)),$C243,$E243,$F243,2016,$I243+$J243,1,$H243,$G243*$H243,Options!$B$8)))","v":225.46086402430001},{"$f":"IF(AND(OR(Calculations!$E$2=\"Orkney Health Board\",Calculations!$E$2=\"Orkney Islands Local Authority\"),$F243=1),0,IF(AND(OR(Calculations!$E$2=\"Shetland Health Board\",Calculations!$E$2=\"Western Isles Health Board\",Calculations!$E$2=\"Shetland Islands Local Authority\",Calculations!$E$2=\"Eilean Siar Local Authority\"),OR($F243=1,$F243=5)),0,new_yllv2(VALUE(LEFT(Options!$B$24,2)),$C243,$D243,$E243,$F243,2016,$I243,1,$H243,$G243*$H243,Options!$B$8)))","v":4242.7133351684997},{"$f":"IF(AND(OR(Calculations!$E$2=\"Orkney Health Board\",Calculations!$E$2=\"Orkney Islands Local Authority\"),$F243=1),0,IF(AND(OR(Calculations!$E$2=\"Shetland Health Board\",Calculations!$E$2=\"Western Isles Health Board\",Calculations!$E$2=\"Shetland Islands Local Authority\",Calculations!$E$2=\"Eilean Siar Local Authority\"),OR($F243=1,$F243=5)),0,new_yllv2(VALUE(LEFT(Options!$B$24,2)),$C243,$D243,$E243,$F243,2016,$I243+$J243,1,$H243,$G243*$H243,Options!$B$8)))","v":4209.3545567945002},{"$f":"IF(AND(OR(Calculations!$E$2=\"Orkney Health Board\",Calculations!$E$2=\"Orkney Islands Local Authority\"),$F243=1),0,IF(AND(OR(Calculations!$E$2=\"Shetland Health Board\",Calculations!$E$2=\"Western Isles Health Board\",Calculations!$E$2=\"Shetland Islands Local Authority\",Calculations!$E$2=\"Eilean Siar Local Authority\"),OR($F243=1,$F243=5)),0,hosp_count(VALUE(LEFT(Options!$B$24,2)),$C243,$E243,$F243,2016,$I243,1,$H243,$G243*$H243, Options!$B$8)))","v":{"$error":"#NAME?"}},{"$f":"IF(AND(OR(Calculations!$E$2=\"Orkney Health Board\",Calculations!$E$2=\"Orkney Islands Local Authority\"),$F243=1),0,IF(AND(OR(Calculations!$E$2=\"Shetland Health Board\",Calculations!$E$2=\"Western Isles Health Board\",Calculations!$E$2=\"Shetland Islands Local Authority\",Calculations!$E$2=\"Eilean Siar Local Authority\"),OR($F243=1,$F243=5)),0,hosp_count(VALUE(LEFT(Options!$B$24,2)),$C243,$E243,$F243,2016,$I243+$J243,1,$H243,$G243*$H243, Options!$B$8)))","v":{"$error":"#NAME?"}},{"$f":"IF(AND(OR(Calculations!$E$2=\"Orkney Health Board\",Calculations!$E$2=\"Orkney Islands Local Authority\"),$F243=1),0,IF(AND(OR(Calculations!$E$2=\"Shetland Health Board\",Calculations!$E$2=\"Western Isles Health Board\",Calculations!$E$2=\"Shetland Islands Local Authority\",Calculations!$E$2=\"Eilean Siar Local Authority\"),OR($F243=1,$F243=5)),0,prem_mort(VALUE(LEFT(Options!$B$24,2)),$C243,$E243,$F243,2016,$I243,1,$H243,$G243*$H243,Options!$B$8)))","v":227.2476222775},{"$f":"IF(AND(OR(Calculations!$E$2=\"Orkney Health Board\",Calculations!$E$2=\"Orkney Islands Local Authority\"),$F243=1),0,IF(AND(OR(Calculations!$E$2=\"Shetland Health Board\",Calculations!$E$2=\"Western Isles Health Board\",Calculations!$E$2=\"Shetland Islands Local Authority\",Calculations!$E$2=\"Eilean Siar Local Authority\"),OR($F243=1,$F243=5)),0,prem_mort(VALUE(LEFT(Options!$B$24,2)),$C243,$E243,$F243,2016,$I243+$J243,1,$H243,$G243*$H243,Options!$B$8)))","v":225.46086402430001},710.12662816005752,704.54318310146562,13258.064857874753,13153.821933047406,{"$error":"#NAME?"},{"$error":"#NAME?"},710.12662816005752,704.54318310146562,4260759.7689603455,4227259.0986087937,79548389.147248521,78922931.598284438,{"$error":"#NAME?"},{"$error":"#NAME?"},4260759.7689603455,4227259.0986087937,6000]
[null,"Male 65-69",67.054419999999993,82.954419999999999,"male",5,{"$f":"HLOOKUP(Calculations!$E$2,'Prevalence Rates'!$C$3:$BC$249,'Prevalence Rates'!$BD244,FALSE)","v":0.4},{"$f":"HLOOKUP(Calculations!$E$2,'Population 2016'!$C$3:$BC$249,'Population 2016'!BD244,FALSE)","v":31688},0,{"$f":"HLOOKUP(Results!E$4,Targeting!$C$3:$F$249,Targeting!$G244,FALSE)","v":5203},{"$f":"IF(AND(OR(Calculations!$E$2=\"Orkney Health Board\",Calculations!$E$2=\"Orkney Islands Local Authority\"),$F244=1),0,IF(AND(OR(Calculations!$E$2=\"Shetland Health Board\",Calculations!$E$2=\"Western Isles Health Board\",Calculations!$E$2=\"Shetland Islands Local Authority\",Calculations!$E$2=\"Eilean Siar Local Authority\"),OR($F244=1,$F244=5)),0,new_ci(VALUE(LEFT(Options!$B$24,2)),$C244,$E244,$F244,2016,$I244,1,$H244,$G244*$H244,Options!$B$8)))","v":330.42556859220002},{"$f":"IF(AND(OR(Calculations!$E$2=\"Orkney Health Board\",Calculations!$E$2=\"Orkney Islands Local Authority\"),$F244=1),0,IF(AND(OR(Calculations!$E$2=\"Shetland Health Board\",Calculations!$E$2=\"Western Isles Health Board\",Calculations!$E$2=\"Shetland Islands Local Authority\",Calculations!$E$2=\"Eilean Siar Local Authority\"),OR($F244=1,$F244=5)),0,new_ci(VALUE(LEFT(Options!$B$24,2)),$C244,$E244,$F244,2016,$I244+$J244,1,$H244,$G244*$H244,Options!$B$8)))","v":327.87846751810002},{"$f":"IF(AND(OR(Calculations!$E$2=\"Orkney Health Board\",Calculations!$E$2=\"Orkney Islands Local Authority\"),$F244=1),0,IF(AND(OR(Calculations!$E$2=\"Shetland Health Board\",Calculations!$E$2=\"Western Isles Health Board\",Calculations!$E$2=\"Shetland Islands Local Authority\",Calculations!$E$2=\"Eilean Siar Local Authority\"),OR($F244=1,$F244=5)),0,new_yllv2(VALUE(LEFT(Options!$B$24,2)),$C244,$D244,$E244,$F244,2016,$I244,1,$H244,$G244*$H244,Options!$B$8)))","v":4923.3409720237996},{"$f":"IF(AND(OR(Calculations!$E$2=\"Orkney Health Board\",Calculations!$E$2=\"Orkney Islands Local Authority\"),$F244=1),0,IF(AND(OR(Calculations!$E$2=\"Shetland Health Board\",Calculations!$E$2=\"Western Isles Health Board\",Calculations!$E$2=\"Shetland Islands Local Authority\",Calculations!$E$2=\"Eilean Siar Local Authority\"),OR($F244=1,$F244=5)),0,new_yllv2(VALUE(LEFT(Options!$B$24,2)),$C244,$D244,$E244,$F244,2016,$I244+$J244,1,$H244,$G244*$H244,Options!$B$8)))","v":4885.3891660196996},{"$f":"IF(AND(OR(Calculations!$E$2=\"Orkney Health Board\",Calculations!$E$2=\"Orkney Islands Local Authority\"),$F244=1),0,IF(AND(OR(Calculations!$E$2=\"Shetland Health Board\",Calculations!$E$2=\"Western Isles Health Board\",Calculations!$E$2=\"Shetland Islands Local Authority\",Calculations!$E$2=\"Eilean Siar Local Authority\"),OR($F244=1,$F244=5)),0,hosp_count(VALUE(LEFT(Options!$B$24,2)),$C244,$E244,$F244,2016,$I244,1,$H244,$G244*$H244, Options!$B$8)))","v":{"$error":"#NAME?"}},{"$f":"IF(AND(OR(Calculations!$E$2=\"Orkney Health Board\",Calculations!$E$2=\"Orkney Islands Local Authority\"),$F244=1),0,IF(AND(OR(Calculations!$E$2=\"Shetland Health Board\",Calculations!$E$2=\"Western Isles Health Board\",Calculations!$E$2=\"Shetland Islands Local Authority\",Calculations!$E$2=\"Eilean Siar Local Authority\"),OR($F244=1,$F244=5)),0,hosp_count(VALUE(LEFT(Options!$B$24,2)),$C244,$E244,$F244,2016,$I244+$J244,1,$H244,$G244*$H244, Options!$B$8)))","v":{"$error":"#NAME?"}},{"$f":"IF(AND(OR(Calculations!$E$2=\"Orkney Health Board\",Calculations!$E$2=\"Orkney Islands Local Authority\"),$F244=1),0,IF(AND(OR(Calculations!$E$2=\"Shetland Health Board\",Calculations!$E$2=\"Western Isles Health Board\",Calculations!$E$2=\"Shetland Islands Local Authority\",Calculations!$E$2=\"Eilean Siar Local Authority\"),OR($F244=1,$F244=5)),0,prem_mort(VALUE(LEFT(Options!$B$24,2)),$C244,$E244,$F244,2016,$I244,1,$H244,$G244*$H244,Options!$B$8)))","v":330.42556859220002},{"$f":"IF(AND(OR(Calculations!$E$2=\"Orkney Health Board\",Calculations!$E$2=\"Orkney Islands Local Authority\"),$F244=1),0,IF(AND(OR(Calculations!$E$2=\"Shetland Health Board\",Calculations!$E$2=\"Western Isles Health Board\",Calculations!$E$2=\"Shetland Islands Local Authority\",Calculations!$E$2=\"Eilean Siar Local Authority\"),OR($F244=1,$F244=5)),0,prem_mort(VALUE(LEFT(Options!$B$24,2)),$C244,$E244,$F244,2016,$I244+$J244,1,$H244,$G244*$H244,Options!$B$8)))","v":327.87846751810002},1042.7466820001264,1034.7086200394472,15536.925561801942,15417.158438587792,{"$error":"#NAME?"},{"$error":"#NAME?"},1042.7466820001264,1034.7086200394472,5735106.7510006949,5690897.4102169592,85453090.589910671,84794371.412232861,{"$error":"#NAME?"},{"$error":"#NAME?"},5735106.7510006949,5690897.4102169592,5500]
[null,"Male 70-74",71.891098,84.341099999999997,"male",5,{"$f":"HLOOKUP(Calculations!$E$2,'Prevalence Rates'!$C$3:$BC$249,'Prevalence Rates'!$BD245,FALSE)","v":0.4},{"$f":"HLOOKUP(Calculations!$E$2,'Population 2016'!$C$3:$BC$249,'Population 2016'!BD245,FALSE)","v":22663},0,{"$f":"HLOOKUP(Results!E$4,Targeting!$C$3:$F$249,Targeting!$G245,FALSE)","v":3721},{"$f":"IF(AND(OR(Calculations!$E$2=\"Orkney Health Board\",Calculations!$E$2=\"Orkney Islands Local Authority\"),$F245=1),0,IF(AND(OR(Calculations!$E$2=\"Shetland Health Board\",Calculations!$E$2=\"Western Isles Health Board\",Calculations!$E$2=\"Shetland Islands Local Authority\",Calculations!$E$2=\"Eilean Siar Local Authority\"),OR($F245=1,$F245=5)),0,new_ci(VALUE(LEFT(Options!$B$24,2)),$C245,$E245,$F245,2016,$I245,1,$H245,$G245*$H245,Options!$B$8)))","v":339.66380293510002},{"$f":"IF(AND(OR(Calculations!$E$2=\"Orkney Health Board\",Calculations!$E$2=\"Orkney Islands Local Authority\"),$F245=1),0,IF(AND(OR(Calculations!$E$2=\"Shetland Health Board\",Calculations!$E$2=\"Western Isles Health Board\",Calculations!$E$2=\"Shetland Islands Local Authority\",Calculations!$E$2=\"Eilean Siar Local Authority\"),OR($F245=1,$F245=5)),0,new_ci(VALUE(LEFT(Options!$B$24,2)),$C245,$E245,$F245,2016,$I245+$J245,1,$H245,$G245*$H245,Options!$B$8)))","v":337.0538191151},{"$f":"IF(AND(OR(Calculations!$E$2=\"Orkney Health Board\",Calculations!$E$2=\"Orkney Islands Local Authority\"),$F245=1),0,IF(AND(OR(Calculations!$E$2=\"Shetland Health Board\",Calculations!$E$2=\"Western Isles Health Board\",Calculations!$E$2=\"Shetland Islands Local Authority\",Calculations!$E$2=\"Eilean Siar Local Authority\"),OR($F245=1,$F245=5)),0,new_yllv2(VALUE(LEFT(Options!$B$24,2)),$C245,$D245,$E245,$F245,2016,$I245,1,$H245,$G245*$H245,Options!$B$8)))","v":3889.1512229344999},{"$f":"IF(AND(OR(Calculations!$E$2=\"Orkney Health Board\",Calculations!$E$2=\"Orkney Islands Local Authority\"),$F245=1),0,IF(AND(OR(Calculations!$E$2=\"Shetland Health Board\",Calculations!$E$2=\"Western Isles Health Board\",Calculations!$E$2=\"Shetland Islands Local Authority\",Calculations!$E$2=\"Eilean Siar Local Authority\"),OR($F245=1,$F245=5)),0,new_yllv2(VALUE(LEFT(Options!$B$24,2)),$C245,$D245,$E245,$F245,2016,$I245+$J245,1,$H245,$G245*$H245,Options!$B$8)))","v":3859.2669029755002},{"$f":"IF(AND(OR(Calculations!$E$2=\"Orkney Health Board\",Calculations!$E$2=\"Orkney Islands Local Authority\"),$F245=1),0,IF(AND(OR(Calculations!$E$2=\"Shetland Health Board\",Calculations!$E$2=\"Western Isles Health Board\",Calculations!$E$2=\"Shetland Islands Local Authority\",Calculations!$E$2=\"Eilean Siar Local Authority\"),OR($F245=1,$F245=5)),0,hosp_count(VALUE(LEFT(Options!$B$24,2)),$C245,$E245,$F245,2016,$I245,1,$H245,$G245*$H245, Options!$B$8)))","v":{"$error":"#NAME?"}},{"$f":"IF(AND(OR(Calculations!$E$2=\"Orkney Health Board\",Calculations!$E$2=\"Orkney Islands Local Authority\"),$F245=1),0,IF(AND(OR(Calculations!$E$2=\"Shetland Health Board\",Calculations!$E$2=\"Western Isles Health Board\",Calculations!$E$2=\"Shetland Islands Local Authority\",Calculations!$E$2=\"Eilean Siar Local Authority\"),OR($F245=1,$F245=5)),0,hosp_count(VALUE(LEFT(Options!$B$24,2)),$C245,$E245,$F245,2016,$I245+$J245,1,$H245,$G245*$H245, Options!$B$8)))","v":{"$error":"#NAME?"}},{"$f":"IF(AND(OR(Calculations!$E$2=\"Orkney Health Board\",Calculations!$E$2=\"Orkney Islands Local Authority\"),$F245=1),0,IF(AND(OR(Calculations!$E$2=\"Shetland Health Board\",Calculations!$E$2=\"Western Isles Health Board\",Calculations!$E$2=\"Shetland Islands Local Authority\",Calculations!$E$2=\"Eilean Siar Local Authority\"),OR($F245=1,$F245=5)),0,prem_mort(VALUE(LEFT(Options!$B$24,2)),$C245,$E245,$F245,2016,$I245,1,$H245,$G245*$H245,Options!$B$8)))","v":339.66380293510002},{"$f":"IF(AND(OR(Calculations!$E$2=\"Orkney Health Board\",Calculations!$E$2=\"Orkney Islands Local Authority\"),$F245=1),0,IF(AND(OR(Calculations!$E$2=\"Shetland Health Board\",Calculations!$E$2=\"Western Isles Health Board\",Calculations!$E$2=\"Shetland Islands Local Authority\",Calculations!$E$2=\"Eilean Siar Local Authority\"),OR($F245=1,$F245=5)),0,prem_mort(VALUE(LEFT(Options!$B$24,2)),$C245,$E245,$F245,2016,$I245+$J245,1,$H245,$G245*$H245,Options!$B$8)))","v":337.0538191151},1498.7592239999119,1487.2427265370868,17160.796112317432,17028.932193334953,{"$error":"#NAME?"},{"$error":"#NAME?"},1498.7592239999119,1487.2427265370868,7493796.1199995596,7436213.6326854341,85803980.561587155,85144660.96667476,{"$error":"#NAME?"},{"$error":"#NAME?"},7493796.1199995596,7436213.6326854341,5000]
[null,"Male 75-79",76.907700000000006,86.357700000000008,"male",5,{"$f":"HLOOKUP(Calculations!$E$2,'Prevalence Rates'!$C$3:$BC$249,'Prevalence Rates'!$BD246,FALSE)","v":0.72199999999999998},{"$f":"HLOOKUP(Calculations!$E$2,'Population 2016'!$C$3:$BC$249,'Population 2016'!BD246,FALSE)","v":16475},0,{"$f":"HLOOKUP(Results!E$4,Targeting!$C$3:$F$249,Targeting!$G246,FALSE)","v":2705},{"$f":"IF(AND(OR(Calculations!$E$2=\"Orkney Health Board\",Calculations!$E$2=\"Orkney Islands Local Authority\"),$F246=1),0,IF(AND(OR(Calculations!$E$2=\"Shetland Health Board\",Calculations!$E$2=\"Western Isles Health Board\",Calculations!$E$2=\"Shetland Islands Local Authority\",Calculations!$E$2=\"Eilean Siar Local Authority\"),OR($F246=1,$F246=5)),0,new_ci(VALUE(LEFT(Options!$B$24,2)),$C246,$E246,$F246,2016,$I246,1,$H246,$G246*$H246,Options!$B$8)))","v":359.36837545840001},{"$f":"IF(AND(OR(Calculations!$E$2=\"Orkney Health Board\",Calculations!$E$2=\"Orkney Islands Local Authority\"),$F246=1),0,IF(AND(OR(Calculations!$E$2=\"Shetland Health Board\",Calculations!$E$2=\"Western Isles Health Board\",Calculations!$E$2=\"Shetland Islands Local Authority\",Calculations!$E$2=\"Eilean Siar Local Authority\"),OR($F246=1,$F246=5)),0,new_ci(VALUE(LEFT(Options!$B$24,2)),$C246,$E246,$F246,2016,$I246+$J246,1,$H246,$G246*$H246,Options!$B$8)))","v":356.90334763990001},{"$f":"IF(AND(OR(Calculations!$E$2=\"Orkney Health Board\",Calculations!$E$2=\"Orkney Islands Local Authority\"),$F246=1),0,IF(AND(OR(Calculations!$E$2=\"Shetland Health Board\",Calculations!$E$2=\"Western Isles Health Board\",Calculations!$E$2=\"Shetland Islands Local Authority\",Calculations!$E$2=\"Eilean Siar Local Authority\"),OR($F246=1,$F246=5)),0,new_yllv2(VALUE(LEFT(Options!$B$24,2)),$C246,$D246,$E246,$F246,2016,$I246,1,$H246,$G246*$H246,Options!$B$8)))","v":3036.6627726235001},{"$f":"IF(AND(OR(Calculations!$E$2=\"Orkney Health Board\",Calculations!$E$2=\"Orkney Islands Local Authority\"),$F246=1),0,IF(AND(OR(Calculations!$E$2=\"Shetland Health Board\",Calculations!$E$2=\"Western Isles Health Board\",Calculations!$E$2=\"Shetland Islands Local Authority\",Calculations!$E$2=\"Eilean Siar Local Authority\"),OR($F246=1,$F246=5)),0,new_yllv2(VALUE(LEFT(Options!$B$24,2)),$C246,$D246,$E246,$F246,2016,$I246+$J246,1,$H246,$G246*$H246,Options!$B$8)))","v":3015.8332875572},{"$f":"IF(AND(OR(Calculations!$E$2=\"Orkney Health Board\",Calculations!$E$2=\"Orkney Islands Local Authority\"),$F246=1),0,IF(AND(OR(Calculations!$E$2=\"Shetland Health Board\",Calculations!$E$2=\"Western Isles Health Board\",Calculations!$E$2=\"Shetland Islands Local Authority\",Calculations!$E$2=\"Eilean Siar Local Authority\"),OR($F246=1,$F246=5)),0,hosp_count(VALUE(LEFT(Options!$B$24,2)),$C246,$E246,$F246,2016,$I246,1,$H246,$G246*$H246, Options!$B$8)))","v":{"$error":"#NAME?"}},{"$f":"IF(AND(OR(Calculations!$E$2=\"Orkney Health Board\",Calculations!$E$2=\"Orkney Islands Local Authority\"),$F246=1),0,IF(AND(OR(Calculations!$E$2=\"Shetland Health Board\",Calculations!$E$2=\"Western Isles Health Board\",Calculations!$E$2=\"Shetland Islands Local Authority\",Calculations!$E$2=\"Eilean Siar Local Authority\"),OR($F246=1,$F246=5)),0,hosp_count(VALUE(LEFT(Options!$B$24,2)),$C246,$E246,$F246,2016,$I246+$J246,1,$H246,$G246*$H246, Options!$B$8)))","v":{"$error":"#NAME?"}},{"$f":"IF(AND(OR(Calculations!$E$2=\"Orkney Health Board\",Calculations!$E$2=\"Orkney Islands Local Authority\"),$F246=1),0,IF(AND(OR(Calculations!$E$2=\"Shetland Health Board\",Calculations!$E$2=\"Western Isles Health Board\",Calculations!$E$2=\"Shetland Islands Local Authority\",Calculations!$E$2=\"Eilean Siar Local Authority\"),OR($F246=1,$F246=5)),0,prem_mort(VALUE(LEFT(Options!$B$24,2)),$C246,$E246,$F246,2016,$I246,1,$H246,$G246*$H246,Options!$B$8)))","v":0},{"$f":"IF(AND(OR(Calculations!$E$2=\"Orkney Health Board\",Calculations!$E$2=\"Orkney Islands Local Authority\"),$F246=1),0,IF(AND(OR(Calculations!$E$2=\"Shetland Health Board\",Calculations!$E$2=\"Western Isles Health Board\",Calculations!$E$2=\"Shetland Islands Local Authority\",Calculations!$E$2=\"Eilean Siar Local Authority\"),OR($F246=1,$F246=5)),0,prem_mort(VALUE(LEFT(Options!$B$24,2)),$C246,$E246,$F246,2016,$I246+$J246,1,$H246,$G246*$H246,Options!$B$8)))","v":0},2181.2951469402128,2166.3329143544765,18431.943991644919,18305.513126295602,{"$error":"#NAME?"},{"$error":"#NAME?"},0,0,8725180.5877608508,8665331.6574179064,73727775.966579676,73222052.505182415,{"$error":"#NAME?"},{"$error":"#NAME?"},0,0,4000]
[null,"Male 80-84",81.797089,88.627089999999995,"male",5,{"$f":"HLOOKUP(Calculations!$E$2,'Prevalence Rates'!$C$3:$BC$249,'Prevalence Rates'!$BD247,FALSE)","v":0.72199999999999998},{"$f":"HLOOKUP(Calculations!$E$2,'Population 2016'!$C$3:$BC$249,'Population 2016'!BD247,FALSE)","v":11823},0,{"$f":"HLOOKUP(Results!E$4,Targeting!$C$3:$F$249,Targeting!$G247,FALSE)","v":1941},{"$f":"IF(AND(OR(Calculations!$E$2=\"Orkney Health Board\",Calculations!$E$2=\"Orkney Islands Local Authority\"),$F247=1),0,IF(AND(OR(Calculations!$E$2=\"Shetland Health Board\",Calculations!$E$2=\"Western Isles Health Board\",Calculations!$E$2=\"Shetland Islands Local Authority\",Calculations!$E$2=\"Eilean Siar Local Authority\"),OR($F247=1,$F247=5)),0,new_ci(VALUE(LEFT(Options!$B$24,2)),$C247,$E247,$F247,2016,$I247,1,$H247,$G247*$H247,Options!$B$8)))","v":371.17822427390001},{"$f":"IF(AND(OR(Calculations!$E$2=\"Orkney Health Board\",Calculations!$E$2=\"Orkney Islands Local Authority\"),$F247=1),0,IF(AND(OR(Calculations!$E$2=\"Shetland Health Board\",Calculations!$E$2=\"Western Isles Health Board\",Calculations!$E$2=\"Shetland Islands Local Authority\",Calculations!$E$2=\"Eilean Siar Local Authority\"),OR($F247=1,$F247=5)),0,new_ci(VALUE(LEFT(Options!$B$24,2)),$C247,$E247,$F247,2016,$I247+$J247,1,$H247,$G247*$H247,Options!$B$8)))","v":368.64649062889998},{"$f":"IF(AND(OR(Calculations!$E$2=\"Orkney Health Board\",Calculations!$E$2=\"Orkney Islands Local Authority\"),$F247=1),0,IF(AND(OR(Calculations!$E$2=\"Shetland Health Board\",Calculations!$E$2=\"Western Isles Health Board\",Calculations!$E$2=\"Shetland Islands Local Authority\",Calculations!$E$2=\"Eilean Siar Local Authority\"),OR($F247=1,$F247=5)),0,new_yllv2(VALUE(LEFT(Options!$B$24,2)),$C247,$D247,$E247,$F247,2016,$I247,1,$H247,$G247*$H247,Options!$B$8)))","v":2163.9694186951001},{"$f":"IF(AND(OR(Calculations!$E$2=\"Orkney Health Board\",Calculations!$E$2=\"Orkney Islands Local Authority\"),$F247=1),0,IF(AND(OR(Calculations!$E$2=\"Shetland Health Board\",Calculations!$E$2=\"Western Isles Health Board\",Calculations!$E$2=\"Shetland Islands Local Authority\",Calculations!$E$2=\"Eilean Siar Local Authority\"),OR($F247=1,$F247=5)),0,new_yllv2(VALUE(LEFT(Options!$B$24,2)),$C247,$D247,$E247,$F247,2016,$I247+$J247,1,$H247,$G247*$H247,Options!$B$8)))","v":2149.2094090129999},{"$f":"IF(AND(OR(Calculations!$E$2=\"Orkney Health Board\",Calculations!$E$2=\"Orkney Islands Local Authority\"),$F247=1),0,IF(AND(OR(Calculations!$E$2=\"Shetland Health Board\",Calculations!$E$2=\"Western Isles Health Board\",Calculations!$E$2=\"Shetland Islands Local Authority\",Calculations!$E$2=\"Eilean Siar Local Authority\"),OR($F247=1,$F247=5)),0,hosp_count(VALUE(LEFT(Options!$B$24,2)),$C247,$E247,$F247,2016,$I247,1,$H247,$G247*$H247, Options!$B$8)))","v":{"$error":"#NAME?"}},{"$f":"IF(AND(OR(Calculations!$E$2=\"Orkney Health Board\",Calculations!$E$2=\"Orkney Islands Local Authority\"),$F247=1),0,IF(AND(OR(Calculations!$E$2=\"Shetland Health Board\",Calculations!$E$2=\"Western Isles Health Board\",Calculations!$E$2=\"Shetland Islands Local Authority\",Calculations!$E$2=\"Eilean Siar Local Authority\"),OR($F247=1,$F247=5)),0,hosp_count(VALUE(LEFT(Options!$B$24,2)),$C247,$E247,$F247,2016,$I247+$J247,1,$H247,$G247*$H247, Options!$B$8)))","v":{"$error":"#NAME?"}},{"$f":"IF(AND(OR(Calculations!$E$2=\"Orkney Health Board\",Calculations!$E$2=\"Orkney Islands Local Authority\"),$F247=1),0,IF(AND(OR(Calculations!$E$2=\"Shetland Health Board\",Calculations!$E$2=\"Western Isles Health Board\",Calculations!$E$2=\"Shetland Islands Local Authority\",Calculations!$E$2=\"Eilean Siar Local Authority\"),OR($F247=1,$F247=5)),0,prem_mort(VALUE(LEFT(Options!$B$24,2)),$C247,$E247,$F247,2016,$I247,1,$H247,$G247*$H247,Options!$B$8)))","v":0},{"$f":"IF(AND(OR(Calculations!$E$2=\"Orkney Health Board\",Calculations!$E$2=\"Orkney Islands Local Authority\"),$F247=1),0,IF(AND(OR(Calculations!$E$2=\"Shetland Health Board\",Calculations!$E$2=\"Western Isles Health Board\",Calculations!$E$2=\"Shetland Islands Local Authority\",Calculations!$E$2=\"Eilean Siar Local Authority\"),OR($F247=1,$F247=5)),0,prem_mort(VALUE(LEFT(Options!$B$24,2)),$C247,$E247,$F247,2016,$I247+$J247,1,$H247,$G247*$H247,Options!$B$8)))","v":0},3139.4588875403874,3118.0452561016664,18303.048453819676,18178.206961118158,{"$error":"#NAME?"},{"$error":"#NAME?"},0,0,7848647.2188509684,7795113.140254166,45757621.134549193,45445517.402795397,{"$error":"#NAME?"},{"$error":"#NAME?"},0,0,2500]
[null,"Male 85-89",86.630752999999999,91.420750000000012,"male",5,{"$f":"HLOOKUP(Calculations!$E$2,'Prevalence Rates'!$C$3:$BC$249,'Prevalence Rates'!$BD248,FALSE)","v":0.72199999999999998},{"$f":"HLOOKUP(Calculations!$E$2,'Population 2016'!$C$3:$BC$249,'Population 2016'!BD248,FALSE)","v":6067},0,{"$f":"HLOOKUP(Results!E$4,Targeting!$C$3:$F$249,Targeting!$G248,FALSE)","v":996},{"$f":"IF(AND(OR(Calculations!$E$2=\"Orkney Health Board\",Calculations!$E$2=\"Orkney Islands Local Authority\"),$F248=1),0,IF(AND(OR(Calculations!$E$2=\"Shetland Health Board\",Calculations!$E$2=\"Western Isles Health Board\",Calculations!$E$2=\"Shetland Islands Local Authority\",Calculations!$E$2=\"Eilean Siar Local Authority\"),OR($F248=1,$F248=5)),0,new_ci(VALUE(LEFT(Options!$B$24,2)),$C248,$E248,$F248,2016,$I248,1,$H248,$G248*$H248,Options!$B$8)))","v":272.40863964639999},{"$f":"IF(AND(OR(Calculations!$E$2=\"Orkney Health Board\",Calculations!$E$2=\"Orkney Islands Local Authority\"),$F248=1),0,IF(AND(OR(Calculations!$E$2=\"Shetland Health Board\",Calculations!$E$2=\"Western Isles Health Board\",Calculations!$E$2=\"Shetland Islands Local Authority\",Calculations!$E$2=\"Eilean Siar Local Authority\"),OR($F248=1,$F248=5)),0,new_ci(VALUE(LEFT(Options!$B$24,2)),$C248,$E248,$F248,2016,$I248+$J248,1,$H248,$G248*$H248,Options!$B$8)))","v":270.56528318440002},{"$f":"IF(AND(OR(Calculations!$E$2=\"Orkney Health Board\",Calculations!$E$2=\"Orkney Islands Local Authority\"),$F248=1),0,IF(AND(OR(Calculations!$E$2=\"Shetland Health Board\",Calculations!$E$2=\"Western Isles Health Board\",Calculations!$E$2=\"Shetland Islands Local Authority\",Calculations!$E$2=\"Eilean Siar Local Authority\"),OR($F248=1,$F248=5)),0,new_yllv2(VALUE(LEFT(Options!$B$24,2)),$C248,$D248,$E248,$F248,2016,$I248,1,$H248,$G248*$H248,Options!$B$8)))","v":1032.4279270339},{"$f":"IF(AND(OR(Calculations!$E$2=\"Orkney Health Board\",Calculations!$E$2=\"Orkney Islands Local Authority\"),$F248=1),0,IF(AND(OR(Calculations!$E$2=\"Shetland Health Board\",Calculations!$E$2=\"Western Isles Health Board\",Calculations!$E$2=\"Shetland Islands Local Authority\",Calculations!$E$2=\"Eilean Siar Local Authority\"),OR($F248=1,$F248=5)),0,new_yllv2(VALUE(LEFT(Options!$B$24,2)),$C248,$D248,$E248,$F248,2016,$I248+$J248,1,$H248,$G248*$H248,Options!$B$8)))","v":1025.441611573},{"$f":"IF(AND(OR(Calculations!$E$2=\"Orkney Health Board\",Calculations!$E$2=\"Orkney Islands Local Authority\"),$F248=1),0,IF(AND(OR(Calculations!$E$2=\"Shetland Health Board\",Calculations!$E$2=\"Western Isles Health Board\",Calculations!$E$2=\"Shetland Islands Local Authority\",Calculations!$E$2=\"Eilean Siar Local Authority\"),OR($F248=1,$F248=5)),0,hosp_count(VALUE(LEFT(Options!$B$24,2)),$C248,$E248,$F248,2016,$I248,1,$H248,$G248*$H248, Options!$B$8)))","v":{"$error":"#NAME?"}},{"$f":"IF(AND(OR(Calculations!$E$2=\"Orkney Health Board\",Calculations!$E$2=\"Orkney Islands Local Authority\"),$F248=1),0,IF(AND(OR(Calculations!$E$2=\"Shetland Health Board\",Calculations!$E$2=\"Western Isles Health Board\",Calculations!$E$2=\"Shetland Islands Local Authority\",Calculations!$E$2=\"Eilean Siar Local Authority\"),OR($F248=1,$F248=5)),0,hosp_count(VALUE(LEFT(Options!$B$24,2)),$C248,$E248,$F248,2016,$I248+$J248,1,$H248,$G248*$H248, Options!$B$8)))","v":{"$error":"#NAME?"}},{"$f":"IF(AND(OR(Calculations!$E$2=\"Orkney Health Board\",Calculations!$E$2=\"Orkney Islands Local Authority\"),$F248=1),0,IF(AND(OR(Calculations!$E$2=\"Shetland Health Board\",Calculations!$E$2=\"Western Isles Health Board\",Calculations!$E$2=\"Shetland Islands Local Authority\",Calculations!$E$2=\"Eilean Siar Local Authority\"),OR($F248=1,$F248=5)),0,prem_mort(VALUE(LEFT(Options!$B$24,2)),$C248,$E248,$F248,2016,$I248,1,$H248,$G248*$H248,Options!$B$8)))","v":0},{"$f":"IF(AND(OR(Calculations!$E$2=\"Orkney Health Board\",Calculations!$E$2=\"Orkney Islands Local Authority\"),$F248=1),0,IF(AND(OR(Calculations!$E$2=\"Shetland Health Board\",Calculations!$E$2=\"Western Isles Health Board\",Calculations!$E$2=\"Shetland Islands Local Authority\",Calculations!$E$2=\"Eilean Siar Local Authority\"),OR($F248=1,$F248=5)),0,prem_mort(VALUE(LEFT(Options!$B$24,2)),$C248,$E248,$F248,2016,$I248+$J248,1,$H248,$G248*$H248,Options!$B$8)))","v":0},4490.0055982594358,4459.6222710466463,17017.107747385857,16901.955028399541,{"$error":"#NAME?"},{"$error":"#NAME?"},0,0,6735008.3973891539,6689433.4065699698,25525661.621078786,25352932.542599313,{"$error":"#NAME?"},{"$error":"#NAME?"},0,0,1500]
[null,"Male 90+",92.215477000000007,95.515479999999997,"male",5,{"$f":"HLOOKUP(Calculations!$E$2,'Prevalence Rates'!$C$3:$BC$249,'Prevalence Rates'!$BD249,FALSE)","v":0.72199999999999998},{"$f":"HLOOKUP(Calculations!$E$2,'Population 2016'!$C$3:$BC$249,'Population 2016'!BD249,FALSE)","v":2678},0,{"$f":"HLOOKUP(Results!E$4,Targeting!$C$3:$F$249,Targeting!$G249,FALSE)","v":440},{"$f":"IF(AND(OR(Calculations!$E$2=\"Orkney Health Board\",Calculations!$E$2=\"Orkney Islands Local Authority\"),$F249=1),0,IF(AND(OR(Calculations!$E$2=\"Shetland Health Board\",Calculations!$E$2=\"Western Isles Health Board\",Calculations!$E$2=\"Shetland Islands Local Authority\",Calculations!$E$2=\"Eilean Siar Local Authority\"),OR($F249=1,$F249=5)),0,new_ci(VALUE(LEFT(Options!$B$24,2)),$C249,$E249,$F249,2016,$I249,1,$H249,$G249*$H249,Options!$B$8)))","v":181.0840012294},{"$f":"IF(AND(OR(Calculations!$E$2=\"Orkney Health Board\",Calculations!$E$2=\"Orkney Islands Local Authority\"),$F249=1),0,IF(AND(OR(Calculations!$E$2=\"Shetland Health Board\",Calculations!$E$2=\"Western Isles Health Board\",Calculations!$E$2=\"Shetland Islands Local Authority\",Calculations!$E$2=\"Eilean Siar Local Authority\"),OR($F249=1,$F249=5)),0,new_ci(VALUE(LEFT(Options!$B$24,2)),$C249,$E249,$F249,2016,$I249+$J249,1,$H249,$G249*$H249,Options!$B$8)))","v":179.87419566540001},{"$f":"IF(AND(OR(Calculations!$E$2=\"Orkney Health Board\",Calculations!$E$2=\"Orkney Islands Local Authority\"),$F249=1),0,IF(AND(OR(Calculations!$E$2=\"Shetland Health Board\",Calculations!$E$2=\"Western Isles Health Board\",Calculations!$E$2=\"Shetland Islands Local Authority\",Calculations!$E$2=\"Eilean Siar Local Authority\"),OR($F249=1,$F249=5)),0,new_yllv2(VALUE(LEFT(Options!$B$24,2)),$C249,$D249,$E249,$F249,2016,$I249,1,$H249,$G249*$H249,Options!$B$8)))","v":416.49374607959999},{"$f":"IF(AND(OR(Calculations!$E$2=\"Orkney Health Board\",Calculations!$E$2=\"Orkney Islands Local Authority\"),$F249=1),0,IF(AND(OR(Calculations!$E$2=\"Shetland Health Board\",Calculations!$E$2=\"Western Isles Health Board\",Calculations!$E$2=\"Shetland Islands Local Authority\",Calculations!$E$2=\"Eilean Siar Local Authority\"),OR($F249=1,$F249=5)),0,new_yllv2(VALUE(LEFT(Options!$B$24,2)),$C249,$D249,$E249,$F249,2016,$I249+$J249,1,$H249,$G249*$H249,Options!$B$8)))","v":413.71118965300002},{"$f":"IF(AND(OR(Calculations!$E$2=\"Orkney Health Board\",Calculations!$E$2=\"Orkney Islands Local Authority\"),$F249=1),0,IF(AND(OR(Calculations!$E$2=\"Shetland Health Board\",Calculations!$E$2=\"Western Isles Health Board\",Calculations!$E$2=\"Shetland Islands Local Authority\",Calculations!$E$2=\"Eilean Siar Local Authority\"),OR($F249=1,$F249=5)),0,hosp_count(VALUE(LEFT(Options!$B$24,2)),$C249,$E249,$F249,2016,$I249,1,$H249,$G249*$H249, Options!$B$8)))","v":{"$error":"#NAME?"}},{"$f":"IF(AND(OR(Calculations!$E$2=\"Orkney Health Board\",Calculations!$E$2=\"Orkney Islands Local Authority\"),$F249=1),0,IF(AND(OR(Calculations!$E$2=\"Shetland Health Board\",Calculations!$E$2=\"Western Isles Health Board\",Calculations!$E$2=\"Shetland Islands Local Authority\",Calculations!$E$2=\"Eilean Siar Local Authority\"),OR($F249=1,$F249=5)),0,hosp_count(VALUE(LEFT(Options!$B$24,2)),$C249,$E249,$F249,2016,$I249+$J249,1,$H249,$G249*$H249, Options!$B$8)))","v":{"$error":"#NAME?"}},{"$f":"IF(AND(OR(Calculations!$E$2=\"Orkney Health Board\",Calculations!$E$2=\"Orkney Islands Local Authority\"),$F249=1),0,IF(AND(OR(Calculations!$E$2=\"Shetland Health Board\",Calculations!$E$2=\"Western Isles Health Board\",Calculations!$E$2=\"Shetland Islands Local Authority\",Calculations!$E$2=\"Eilean Siar Local Authority\"),OR($F249=1,$F249=5)),0,prem_mort(VALUE(LEFT(Options!$B$24,2)),$C249,$E249,$F249,2016,$I249,1,$H249,$G249*$H249,Options!$B$8)))","v":0},{"$f":"IF(AND(OR(Calculations!$E$2=\"Orkney Health Board\",Calculations!$E$2=\"Orkney Islands Local Authority\"),$F249=1),0,IF(AND(OR(Calculations!$E$2=\"Shetland Health Board\",Calculations!$E$2=\"Western Isles Health Board\",Calculations!$E$2=\"Shetland Islands Local Authority\",Calculations!$E$2=\"Eilean Siar Local Authority\"),OR($F249=1,$F249=5)),0,prem_mort(VALUE(LEFT(Options!$B$24,2)),$C249,$E249,$F249,2016,$I249+$J249,1,$H249,$G249*$H249,Options!$B$8)))","v":0},6761.911920440627,6716.7362085660934,15552.41770274832,15448.513429910381,{"$error":"#NAME?"},{"$error":"#NAME?"},0,0,6761911.9204406273,6716736.2085660938,15552417.702748321,15448513.42991038,{"$error":"#NAME?"},{"$error":"#NAME?"},0,0,1000]

{"sheet":"Inequalities","index":7,"n_rows":18,"n_cols":25,"rows_kept":18,"cut":false,"hidden":true,"merged":[]}
["Relative Index of Inequality calculation"]
["Area:",{"$f":"Options!$B$11","v":"Scotland"}]
["Years:",{"$f":"Options!B24","v":2},null,null,null,null,null,"STANDARDISED RATES"]
[null,null,null,null,null,null,null,"Hospital Stays",null,null,null,null,null,"Premature Death",null,null,null,null,null,"Years of Life Lost (YLL)"]
[null,null,null,null,null,null,null,"Without intervention",null,"With intervention",null,"Difference","% Difference","Without intervention",null,"With intervention",null,"Difference","% Difference","Without intervention",null,"With intervention",null,"Difference","% Difference"]
[null,null,"a",null,"b","√a","b*√a","Y","Y*√a","Y","Y*√a",null,null,"Y","Y*√a","Y","Y*√a",null,null,"Y","Y*√a","Y","Y*√a"]
["SIMD quintile","Population","Proportion of total population","Cumulative proportion","Relative rank"]
[null,null,null,0," "]
["Q1 (most dep)",{"$f":"Calculations!$H$7","v":872234},{"$f":"B9/$B$14","v":0.19431413815281337},{"$f":"D8+C9","v":0.19431413815281337},{"$f":"D8+(0.5*C9)","v":9.7157069076406685E-2},{"$f":"SQRT(C9)","v":0.44081077363514309},{"$f":"E9*SQRT(C9)","v":4.2827882783693871E-2},{"$f":"Calculations!$AN$7","v":0},{"$f":"SQRT($C9)*H9","v":0},{"$f":"Calculations!$AO$7","v":0},{"$f":"SQRT($C9)*J9","v":0},null,null,{"$f":"Calculations!$AP7/($B$3-1)","v":679.59751106531337},{"$f":"SQRT($C9)*N9","v":299.57390461321853},{"$f":"Calculations!$AQ7/($B$3-1)","v":674.69598613812104},{"$f":"SQRT($C9)*P9","v":297.41325961807092},null,null,{"$f":"Calculations!$AL7/($B$3-1)","v":18755.823249392848},{"$f":"SQRT($C9)*T9","v":8267.7689567288653},{"$f":"Calculations!$AM7/($B$3-1)","v":18621.704002645165},{"$f":"SQRT($C9)*V9","v":8208.6477478106553}]
["Q2",{"$f":"Calculations!$H$8","v":897032},{"$f":"B10/$B$14","v":0.19983857540005831},{"$f":"D9+C10","v":0.39415271355287168},{"$f":"D9+(0.5*C10)","v":0.29423342585284251},{"$f":"SQRT(C10)","v":0.44703308087887444},{"$f":"E10*SQRT(C10)","v":0.13153207485654206},{"$f":"Calculations!$AN$8","v":0},0,{"$f":"Calculations!$AO$8","v":0},0,null,null,{"$f":"Calculations!$AP8/($B$3-1)","v":477.38298055808156},213.40598455801901,{"$f":"Calculations!$AQ8/($B$3-1)","v":473.81139950463427},211.80936967608787,null,null,{"$f":"Calculations!$AL8/($B$3-1)","v":13199.214498956713},5900.4855226497284,{"$f":"Calculations!$AM8/($B$3-1)","v":13102.107659962317},5857.0755532396552]
["Q3",{"$f":"Calculations!$H$9","v":907978},{"$f":"B11/$B$14","v":0.2022770982691745},{"$f":"D10+C11","v":0.59642981182204613},{"$f":"D10+(0.5*C11)","v":0.49529126268745893},{"$f":"SQRT(C11)","v":0.44975226321740119},{"$f":"E11*SQRT(C11)","v":0.22275836634548904},{"$f":"Calculations!$AN$9","v":0},0,{"$f":"Calculations!$AO$9","v":0},0,null,null,{"$f":"Calculations!$AP9/($B$3-1)","v":386.59366072216773},173.87137385529508,{"$f":"Calculations!$AQ9/($B$3-1)","v":383.65277918553443},172.54870572833997,null,null,{"$f":"Calculations!$AL9/($B$3-1)","v":10697.570956965448},4811.2567488239511,{"$f":"Calculations!$AM9/($B$3-1)","v":10617.330935063408},4775.168617372894]
["Q4",{"$f":"Calculations!$H$10","v":910792},{"$f":"B12/$B$14","v":0.20290399424521077},{"$f":"D11+C12","v":0.7993338060672569},{"$f":"D11+(0.5*C12)","v":0.69788180894465146},{"$f":"SQRT(C12)","v":0.45044865883384622},{"$f":"E12*SQRT(C12)","v":0.31435992486365677},{"$f":"Calculations!$AN$10","v":0},0,{"$f":"Calculations!$AO$10","v":0},0,null,null,{"$f":"Calculations!$AP10/($B$3-1)","v":307.05838659003797},138.31403842316726,{"$f":"Calculations!$AQ10/($B$3-1)","v":304.66511752786244},137.23599358388176,null,null,{"$f":"Calculations!$AL10/($B$3-1)","v":8502.7983945250962},3830.0741331484105,{"$f":"Calculations!$AM10/($B$3-1)","v":8437.6045160045378},3800.7076380046483]
["Q5 (least dep)",{"$f":"Calculations!$H$11","v":900747},{"$f":"B13/$B$14","v":0.20066619393274301},{"$f":"D12+C13","v":0.99999999999999989},{"$f":"D12+(0.5*C13)","v":0.8996669030336284},{"$f":"SQRT(C13)","v":0.44795780374131561},{"$f":"E13*SQRT(C13)","v":0.40301280998169531},{"$f":"Calculations!$AN$11","v":0},0,{"$f":"Calculations!$AO$11","v":0},0,null,null,{"$f":"Calculations!$AP11/($B$3-1)","v":226.20351389058465},101.32962928099448,{"$f":"Calculations!$AQ11/($B$3-1)","v":224.40010083690032},100.52177633022762,null,null,{"$f":"Calculations!$AL11/($B$3-1)","v":6268.5703594040879},2808.0550107965646,{"$f":"Calculations!$AM11/($B$3-1)","v":6219.6141980362117},2786.1247162706054]
["Total",{"$f":"SUM(B9:B13)","v":4488783},null,null,null,null,{"$f":"E14*SQRT(D14)","v":0},{"$f":"IF(OR(Calculations!$E$2=\"Orkney Health Board\",Calculations!$E$2=\"Orkney Islands Local Authority\"),AVERAGE(H10:H13),IF(OR(Calculations!$E$2=\"Shetland Health Board\",Calculations!$E$2=\"Western Isles Health Board\",Calculations!$E$2=\"Shetland Islands Local Authority\",Calculations!$E$2=\"Eilean Siar Local Authority\"),AVERAGE(H10:H12),AVERAGE(H9:H13)))","v":0},0,{"$f":"IF(OR(Calculations!$E$2=\"Orkney Health Board\",Calculations!$E$2=\"Orkney Islands Local Authority\"),AVERAGE(J10:J13),IF(OR(Calculations!$E$2=\"Shetland Health Board\",Calculations!$E$2=\"Western Isles Health Board\",Calculations!$E$2=\"Shetland Islands Local Authority\",Calculations!$E$2=\"Eilean Siar Local Authority\"),AVERAGE(J10:J12),AVERAGE(J9:J13)))","v":0},0,null,null,{"$f":"IF(OR(Calculations!$E$2=\"Orkney Health Board\",Calculations!$E$2=\"Orkney Islands Local Authority\"),AVERAGE(N10:N13),IF(OR(Calculations!$E$2=\"Shetland Health Board\",Calculations!$E$2=\"Western Isles Health Board\",Calculations!$E$2=\"Shetland Islands Local Authority\",Calculations!$E$2=\"Eilean Siar Local Authority\"),AVERAGE(N10:N12),AVERAGE(N9:N13)))","v":415.36721056523709},0,{"$f":"IF(OR(Calculations!$E$2=\"Orkney Health Board\",Calculations!$E$2=\"Orkney Islands Local Authority\"),AVERAGE(P10:P13),IF(OR(Calculations!$E$2=\"Shetland Health Board\",Calculations!$E$2=\"Western Isles Health Board\",Calculations!$E$2=\"Shetland Islands Local Authority\",Calculations!$E$2=\"Eilean Siar Local Authority\"),AVERAGE(P10:P12),AVERAGE(P9:P13)))","v":412.2450766386105},0,null,null,{"$f":"IF(OR(Calculations!$E$2=\"Orkney Health Board\",Calculations!$E$2=\"Orkney Islands Local Authority\"),AVERAGE(T10:T13),IF(OR(Calculations!$E$2=\"Shetland Health Board\",Calculations!$E$2=\"Western Isles Health Board\",Calculations!$E$2=\"Shetland Islands Local Authority\",Calculations!$E$2=\"Eilean Siar Local Authority\"),AVERAGE(T10:T12),AVERAGE(T9:T13)))","v":11484.795491848839},0,{"$f":"IF(OR(Calculations!$E$2=\"Orkney Health Board\",Calculations!$E$2=\"Orkney Islands Local Authority\"),AVERAGE(V10:V13),IF(OR(Calculations!$E$2=\"Shetland Health Board\",Calculations!$E$2=\"Western Isles Health Board\",Calculations!$E$2=\"Shetland Islands Local Authority\",Calculations!$E$2=\"Eilean Siar Local Authority\"),AVERAGE(V10:V12),AVERAGE(V9:V13)))","v":11399.67226234233},0]
[null,null,null,null,"Slope Index of Inequality =",null,null,{"$f":"IF(OR(Calculations!$E$2=\"Orkney Health Board\",Calculations!$E$2=\"Orkney Islands Local Authority\"),-LINEST(I10:I13,$F10:$G13,0),IF(OR(Calculations!$E$2=\"Shetland Health Board\",Calculations!$E$2=\"Western Isles Health Board\",Calculations!$E$2=\"Shetland Islands Local Authority\",Calculations!$E$2=\"Eilean Siar Local Authority\"),-LINEST(I10:I12,$F10:$G12,0),-LINEST(I9:I13,$F9:$G13,0)))","v":0},null,{"$f":"IF(OR(Calculations!$E$2=\"Orkney Health Board\",Calculations!$E$2=\"Orkney Islands Local Authority\"),-LINEST(K10:K13,$F10:$G13,0),IF(OR(Calculations!$E$2=\"Shetland Health Board\",Calculations!$E$2=\"Western Isles Health Board\",Calculations!$E$2=\"Shetland Islands Local Authority\",Calculations!$E$2=\"Eilean Siar Local Authority\"),-LINEST(K10:K12,$F10:$G12,0),-LINEST(K9:K13,$F9:$G13,0)))","v":0},null,{"$f":"H15-J15","v":0},{"$f":"L15*100/H15","v":{"$error":"#DIV/0!"}},{"$f":"IF(OR(Calculations!$E$2=\"Orkney Health Board\",Calculations!$E$2=\"Orkney Islands Local Authority\"),-LINEST(O10:O13,$F10:$G13,0),IF(OR(Calculations!$E$2=\"Shetland Health Board\",Calculations!$E$2=\"Western Isles Health Board\",Calculations!$E$2=\"Shetland Islands Local Authority\",Calculations!$E$2=\"Eilean Siar Local Authority\"),-LINEST(O10:O12,$F10:$G12,0),-LINEST(O9:O13,$F9:$G13,0)))","v":534.08662162945086},null,{"$f":"IF(OR(Calculations!$E$2=\"Orkney Health Board\",Calculations!$E$2=\"Orkney Islands Local Authority\"),-LINEST(Q10:Q13,$F10:$G13,0),IF(OR(Calculations!$E$2=\"Shetland Health Board\",Calculations!$E$2=\"Western Isles Health Board\",Calculations!$E$2=\"Shetland Islands Local Authority\",Calculations!$E$2=\"Eilean Siar Local Authority\"),-LINEST(Q10:Q12,$F10:$G12,0),-LINEST(Q9:Q13,$F9:$G13,0)))","v":530.42874641024491},null,{"$f":"N15-P15","v":3.6578752192059483},{"$f":"R15*100/N15","v":0.68488426241535427},{"$f":"IF(OR(Calculations!$E$2=\"Orkney Health Board\",Calculations!$E$2=\"Orkney Islands Local Authority\"),-LINEST(U10:U13,$F10:$G13,0),IF(OR(Calculations!$E$2=\"Shetland Health Board\",Calculations!$E$2=\"Western Isles Health Board\",Calculations!$E$2=\"Shetland Islands Local Authority\",Calculations!$E$2=\"Eilean Siar Local Authority\"),-LINEST(U10:U12,$F10:$G12,0),-LINEST(U9:U13,$F9:$G13,0)))","v":14712.660743482789},null,{"$f":"IF(OR(Calculations!$E$2=\"Orkney Health Board\",Calculations!$E$2=\"Orkney Islands Local Authority\"),-LINEST(W10:W13,$F10:$G13,0),IF(OR(Calculations!$E$2=\"Shetland Health Board\",Calculations!$E$2=\"Western Isles Health Board\",Calculations!$E$2=\"Shetland Islands Local Authority\",Calculations!$E$2=\"Eilean Siar Local Authority\"),-LINEST(W10:W12,$F10:$G12,0),-LINEST(W9:W13,$F9:$G13,0)))","v":14612.355356706954},null,{"$f":"T15-V15","v":100.30538677583536},{"$f":"X15*100/T15","v":0.68176238495995534}]
[null,null,null,null,"Relative Index of Inequality =",null,null,{"$f":"H15/H14","v":{"$error":"#DIV/0!"}},null,{"$f":"J15/J14","v":{"$error":"#DIV/0!"}},null,{"$f":"H16-J16","v":{"$error":"#DIV/0!"}},{"$f":"L16*100/H16","v":{"$error":"#DIV/0!"}},{"$f":"N15/N14","v":1.2858179655121522},null,{"$f":"P15/P14","v":1.2866830350899221},null,{"$f":"N16-P16","v":-8.6506957776988358E-4},{"$f":"R16*100/N16","v":-6.7277764113780988E-2},{"$f":"T15/T14","v":1.2810555271902646},null,{"$f":"V15/V14","v":1.2818224086123422},null,{"$f":"T16-V16","v":-7.6688142207759213E-4},{"$f":"X16*100/T16","v":-5.9863246034275418E-2}]
[null,null,null,null,"Absolute difference (Q1-Q5) =",null,null,{"$f":"IF(OR(Calculations!$E$2=\"Orkney Health Board\",Calculations!$E$2=\"Orkney Islands Local Authority\"),H10-H13,IF(OR(Calculations!$E$2=\"Shetland Health Board\",Calculations!$E$2=\"Western Isles Health Board\",Calculations!$E$2=\"Shetland Islands Local Authority\",Calculations!$E$2=\"Eilean Siar Local Authority\"),H10-H12,H9-H13))","v":0},null,{"$f":"IF(OR(Calculations!$E$2=\"Orkney Health Board\",Calculations!$E$2=\"Orkney Islands Local Authority\"),J10-J13,IF(OR(Calculations!$E$2=\"Shetland Health Board\",Calculations!$E$2=\"Western Isles Health Board\",Calculations!$E$2=\"Shetland Islands Local Authority\",Calculations!$E$2=\"Eilean Siar Local Authority\"),J10-J12,J9-J13))","v":0},null,{"$f":"H17-J17","v":0},{"$f":"L17*100/H17","v":{"$error":"#DIV/0!"}},{"$f":"IF(OR(Calculations!$E$2=\"Orkney Health Board\",Calculations!$E$2=\"Orkney Islands Local Authority\"),N10-N13,IF(OR(Calculations!$E$2=\"Shetland Health Board\",Calculations!$E$2=\"Western Isles Health Board\",Calculations!$E$2=\"Shetland Islands Local Authority\",Calculations!$E$2=\"Eilean Siar Local Authority\"),N10-N12,N9-N13))","v":453.39399717472872},null,{"$f":"IF(OR(Calculations!$E$2=\"Orkney Health Board\",Calculations!$E$2=\"Orkney Islands Local Authority\"),P10-P13,IF(OR(Calculations!$E$2=\"Shetland Health Board\",Calculations!$E$2=\"Western Isles Health Board\",Calculations!$E$2=\"Shetland Islands Local Authority\",Calculations!$E$2=\"Eilean Siar Local Authority\"),P10-P12,P9-P13))","v":450.29588530122072},null,{"$f":"N17-P17","v":3.0981118735080031},{"$f":"R17*100/N17","v":0.68331559147530008},{"$f":"IF(OR(Calculations!$E$2=\"Orkney Health Board\",Calculations!$E$2=\"Orkney Islands Local Authority\"),T10-T13,IF(OR(Calculations!$E$2=\"Shetland Health Board\",Calculations!$E$2=\"Western Isles Health Board\",Calculations!$E$2=\"Shetland Islands Local Authority\",Calculations!$E$2=\"Eilean Siar Local Authority\"),T10-T12,T9-T13))","v":12487.25288998876},null,{"$f":"IF(OR(Calculations!$E$2=\"Orkney Health Board\",Calculations!$E$2=\"Orkney Islands Local Authority\"),V10-V13,IF(OR(Calculations!$E$2=\"Shetland Health Board\",Calculations!$E$2=\"Western Isles Health Board\",Calculations!$E$2=\"Shetland Islands Local Authority\",Calculations!$E$2=\"Eilean Siar Local Authority\"),V10-V12,V9-V13))","v":12402.089804608953},null,{"$f":"T17-V17","v":85.163085379806944},{"$f":"X17*100/T17","v":0.68200016552947063}]
[null,null,null,null,"Relative difference (Q1/Q5) =",null,null,{"$f":"IF(OR(Calculations!$E$2=\"Orkney Health Board\",Calculations!$E$2=\"Orkney Islands Local Authority\"),H10/H13,IF(OR(Calculations!$E$2=\"Shetland Health Board\",Calculations!$E$2=\"Western Isles Health Board\",Calculations!$E$2=\"Shetland Islands Local Authority\",Calculations!$E$2=\"Eilean Siar Local Authority\"),H10/H12,H9/H13))","v":{"$error":"#DIV/0!"}},null,{"$f":"IF(OR(Calculations!$E$2=\"Orkney Health Board\",Calculations!$E$2=\"Orkney Islands Local Authority\"),J10/J13,IF(OR(Calculations!$E$2=\"Shetland Health Board\",Calculations!$E$2=\"Western Isles Health Board\",Calculations!$E$2=\"Shetland Islands Local Authority\",Calculations!$E$2=\"Eilean Siar Local Authority\"),J10/J12,J9/J13))","v":{"$error":"#DIV/0!"}},null,{"$f":"H18-J18","v":{"$error":"#DIV/0!"}},{"$f":"L18*100/H18","v":{"$error":"#DIV/0!"}},{"$f":"IF(OR(Calculations!$E$2=\"Orkney Health Board\",Calculations!$E$2=\"Orkney Islands Local Authority\"),N10/N13,IF(OR(Calculations!$E$2=\"Shetland Health Board\",Calculations!$E$2=\"Western Isles Health Board\",Calculations!$E$2=\"Shetland Islands Local Authority\",Calculations!$E$2=\"Eilean Siar Local Authority\"),N10/N12,N9/N13))","v":3.0043631921387255},null,{"$f":"IF(OR(Calculations!$E$2=\"Orkney Health Board\",Calculations!$E$2=\"Orkney Islands Local Authority\"),P10/P13,IF(OR(Calculations!$E$2=\"Shetland Health Board\",Calculations!$E$2=\"Western Isles Health Board\",Calculations!$E$2=\"Shetland Islands Local Authority\",Calculations!$E$2=\"Eilean Siar Local Authority\"),P10/P12,P9/P13))","v":3.0066652538115712},null,{"$f":"N18-P18","v":-2.3020616728457455E-3},{"$f":"R18*100/N18","v":-7.6623947426508368E-2},{"$f":"IF(OR(Calculations!$E$2=\"Orkney Health Board\",Calculations!$E$2=\"Orkney Islands Local Authority\"),T10/T13,IF(OR(Calculations!$E$2=\"Shetland Health Board\",Calculations!$E$2=\"Western Isles Health Board\",Calculations!$E$2=\"Shetland Islands Local Authority\",Calculations!$E$2=\"Eilean Siar Local Authority\"),T10/T12,T9/T13))","v":2.9920415938628535},null,{"$f":"IF(OR(Calculations!$E$2=\"Orkney Health Board\",Calculations!$E$2=\"Orkney Islands Local Authority\"),V10/V13,IF(OR(Calculations!$E$2=\"Shetland Health Board\",Calculations!$E$2=\"Western Isles Health Board\",Calculations!$E$2=\"Shetland Islands Local Authority\",Calculations!$E$2=\"Eilean Siar Local Authority\"),V10/V12,V9/V13))","v":2.9940287949893745},null,{"$f":"T18-V18","v":-1.9872011265209544E-3},{"$f":"X18*100/T18","v":-6.6416226652631277E-2}]

{"sheet":"Population 2016","index":8,"n_rows":249,"n_cols":56,"rows_kept":249,"cut":false,"hidden":true,"merged":[]}
["Population 2016 (16+ only)"]
[]
["SIMD","group","Aberdeen City Local Authority","Aberdeen City Region Deal","Aberdeenshire Local Authority","Angus Local Authority","Argyll & Bute Local Authority","Ayrshire & Arran Health Board","Borders Health Board","Clackmannanshire & Stirling IJB","Clackmannanshire Local Authority","Dumfries & Galloway Health Board","Dumfries & Galloway Local Authority","Dundee City Local Authority","East Ayrshire Local Authority","East Dunbartonshire Local Authority","East Lothian Local Authority","East Renfrewshire Local Authority","Edinburgh & SE Scotland City Region Deal","Edinburgh, City of Local Authority","Eilean Siar Local Authority","Falkirk Local Authority","Fife Health Board","Fife Local Authority","Forth Valley Health Board","Glasgow City Local Authority","Glasgow City Region Deal","Grampian Health Board","Greater Glasgow & Clyde Health Board","Highland Health Board","Highland Local Authority","Inverclyde Local Authority","Inverness & Highland City Region Deal","Lanarkshire Health Board","Lothian Health Board","Midlothian Local Authority","Moray Local Authority","North Ayrshire Local Authority","North Lanarkshire Local Authority","Orkney Health Board","Orkney Islands Local Authority","Perth & Kinross Local Authority","Renfrewshire Local Authority","Scotland","Scottish Borders Local Authority","Shetland Health Board","Shetland Islands Local Authority","South Ayrshire Local Authority","South Lanarkshire Local Authority","Stirling Local Authority","Tay Cities Region Deal ","Tayside Health Board","West Dunbartonshire Local Authority","West Lothian Local Authority","Western Isles Health Board",1]
[null,null,"popS12000033","Aber_deal","popS12000034","popS12000041","popS12000035","popS08000015","popS08000016","ClacksStirIJB","popS12000005","popS08000017","popS12000006","popS12000042","popS12000008","popS12000045","popS12000010","popS12000011","EdinSE_deal","popS12000036","popS12000013","popS12000014","popS08000018","popS12000015","popS08000019","popS12000046","GClyde_deal","popS08000020","popS08000021","popS08000022","popS12000017","popS12000018","Inver_deal","popS08000023","popS08000024","popS12000019","popS12000020","popS12000021","popS12000044","popS08000025","popS12000023","popS12000024","popS12000038","popS00000001","popS12000026","popS08000026","popS12000027","popS12000028","popS12000029","popS12000030","Tay_deal","popS08000027","popS12000039","popS12000040","popS08000028",2]
["All quintiles","16+ Males and Females",195653,408972,213319,97075,73892,308413,95528,120583,42326,125906,125906,124421,100941,88730,85101,75148,1132942,429806,22593,131021,305958,305958,251604,516583,1505157,488515,966842,268690,194798,66309,194798,538315,731456,71726,79543,112762,276091,18334,18334,126166,145976,4488783,95528,18967,18967,94710,262224,78257,653620,347662,74096,144823,22593,3]
["Q1 and Q2","16+ Males and Females",55772,76466,20694,23106,17866,167717,20594,42609,21032,44748,44748,68009,58204,18917,25984,11714,380156,118643,5432,56576,120625,120625,99185,329151,800085,89168,514066,67593,49727,36156,49727,286019,238937,32594,12702,67548,163920,2601,2601,20837,67935,1769266,20594,629,629,41965,122099,21577,232577,111952,50193,61716,5432,4]
["SIMD Q1 (most deprived)","16+ Males and Females",15706,20077,4371,6722,5398,92567,5141,19886,9977,9984,9984,43099,31424,4139,2919,4928,153150,55966,0,19042,59089,59089,38928,237443,481887,20712,343232,18565,13167,27666,13167,138655,88920,7071,635,44986,86094,0,0,6620,40910,872234,5141,0,0,16157,52561,9909,115530,56441,28146,22964,0,5]
["SIMD Q2",null,40066,56389,16323,16384,12468,75150,15453,22723,11055,34764,34764,24910,26780,14778,23065,6786,227006,62677,5432,37534,61536,61536,60257,91708,318198,68456,170834,49028,36560,8490,36560,147364,150017,25523,12067,22562,77826,2601,2601,14217,27025,897032,15453,629,629,25808,69538,11668,117047,55511,22047,38752,5432,6]
["SIMD Q3",null,30458,73451,42993,31913,30426,53711,31989,20856,8000,46905,46905,15883,17462,5452,18382,8332,231265,65662,15862,24167,66386,66386,45023,73726,236775,95627,135271,92816,62390,10471,62390,101504,132890,16953,22176,16287,50065,5744,5744,30213,25960,907978,31989,6241,6241,19962,51439,12856,144395,78009,11330,31893,15862,7]
["SIMD Q4",null,33670,111128,77458,24649,18051,45109,34098,29073,7505,22879,22879,21569,13653,16324,26540,11252,219384,69016,1299,25092,52998,52998,54165,60616,224957,141579,135338,82327,64276,11701,64276,89619,132288,11108,30451,18431,37360,8622,8622,52156,25824,910792,34098,12097,12097,13025,52259,21568,151372,98374,9621,25624,1299,8]
["SIMD Q5 (least deprived)",null,75753,147927,72174,17407,7549,41876,8847,28045,5789,11374,11374,18960,11622,48037,14195,43850,302137,176485,0,25186,65949,65949,53231,53090,243340,162141,182167,25954,18405,7981,18405,61173,227341,11071,14214,10496,24746,1367,1367,22960,26257,900747,8847,0,0,19758,36427,22256,125276,59327,2952,25590,0,9]
["SIMD Q1 (most deprived)","16+ Females",7940,10084,2144,3486,2800,49250,2661,10561,5216,5227,5227,22625,16592,2201,1560,2687,79990,29099,0,9861,30881,30881,20422,124184,253184,10434,180380,9647,6847,14769,6847,72804,46448,3734,350,24175,45017,0,0,3368,21320,457633,2661,0,0,8483,27787,5345,60360,29479,15219,12055,0,10]
["SIMD Q2",null,20589,29017,8428,8582,6570,39721,7980,11880,5783,18133,18133,12948,14006,7886,12341,3614,118897,32276,2752,19564,32365,32365,31444,46945,166820,35348,89074,25793,19223,4529,19223,77746,78552,13662,6331,12037,41225,1291,1291,7061,14478,469079,7980,289,289,13678,36521,6097,60956,28591,11622,20273,2752,11]
["SIMD Q3",null,14775,36682,21907,16368,15775,28008,16557,10891,4166,24265,24265,8282,8844,2911,9630,4472,119474,33598,8104,12476,34614,34614,23367,37875,123784,48192,70410,47689,31914,5526,31914,53374,68303,8881,11510,8619,26311,2915,2915,15578,13674,469093,16557,3067,3067,10545,27063,6725,74842,40228,5952,16194,8104,12]
["SIMD Q4",null,17048,56213,39165,12745,9303,23680,17825,14853,3589,11799,11799,11465,7065,8598,14037,6065,113758,35609,688,12801,27274,27274,27654,31260,116221,71636,70387,42063,32760,6043,32760,45834,68659,5845,15423,9678,18881,4382,4382,26672,13379,468792,17825,6029,6029,6937,26953,11264,78156,50882,5042,13168,688,13]
["SIMD Q5 (least deprived)",null,38569,74964,36395,9014,2838,21882,4614,14673,3026,6007,6007,9920,6015,24782,7409,23171,157070,92126,0,12867,34322,34322,27540,27520,126501,81756,94858,12542,9704,4256,9704,31643,118134,5603,6792,5410,12785,683,683,12164,13607,465079,4614,0,0,10457,18858,11647,65420,31098,1522,12996,0,14]
["SIMD Q1 (most deprived)","16+ Males",7766,9993,2227,3236,2598,43317,2480,9325,4761,4757,4757,20474,14832,1938,1359,2241,73160,26867,0,9181,28208,28208,18506,113259,228703,10278,162852,8918,6320,12897,6320,65851,42472,3337,285,20811,41077,0,0,3252,19590,414601,2480,0,0,7674,24774,4564,55170,26962,12927,10909,0,15]
["SIMD Q2",null,19477,27372,7895,7802,5898,35429,7473,10843,5272,16631,16631,11962,12774,6892,10724,3172,108109,30401,2680,17970,29171,29171,28813,44763,151378,33108,81760,23235,17337,3961,17337,69618,71465,11861,5736,10525,36601,1310,1310,7156,12547,427953,7473,340,340,12130,33017,5571,56091,26920,10425,18479,2680,16]
["SIMD Q3",null,15683,36769,21086,15545,14651,25703,15432,9965,3834,22640,22640,7601,8618,2541,8752,3860,111791,32064,7758,11691,31772,31772,21656,35851,112991,47435,64861,45127,30476,4945,30476,48130,64587,8072,10666,7668,23754,2829,2829,14635,12286,438885,15432,3174,3174,9417,24376,6131,69553,37781,5378,15699,7758,17]
["SIMD Q4",null,16622,54915,38293,11904,8748,21429,16273,14220,3916,11080,11080,10104,6588,7726,12503,5187,105626,33407,611,12291,25724,25724,26511,29356,108736,69943,64951,40264,31516,5658,31516,43785,63629,5263,15028,8753,18479,4240,4240,25484,12445,442000,16273,6068,6068,6088,25306,10304,73216,47492,4579,12456,611,18]
["SIMD Q5 (least deprived)",null,37184,72963,35779,8393,4711,19994,4233,13372,2763,5367,5367,9040,5607,23255,6786,20679,145067,84359,0,12319,31627,31627,25691,25570,116839,80385,87309,13412,8701,3725,8701,29530,109207,5468,7422,5086,11961,684,684,10796,12650,435668,4233,0,0,9301,17569,10609,59856,28229,1430,12594,0,19]
["All quintiles","Female 0-4",null,null,null,null,null,null,null,null,null,null,null,null,null,null,null,null,null,null,null,null,null,null,null,null,null,null,null,null,null,null,null,null,null,null,null,null,null,null,null,null,null,null,null,null,null,null,null,null,null,null,null,null,null,20]
[null,"Female 5-9",null,null,null,null,null,null,null,null,null,null,null,null,null,null,null,null,null,null,null,null,null,null,null,null,null,null,null,null,null,null,null,null,null,null,null,null,null,null,null,null,null,null,null,null,null,null,null,null,null,null,null,null,null,21]
[null,"Female 10-15",null,null,null,null,null,null,null,null,null,null,null,null,null,null,null,null,null,null,null,null,null,null,null,null,null,null,null,null,null,null,null,null,null,null,null,null,null,null,null,null,null,null,null,null,null,null,null,null,null,null,null,null,null,22]
[null,"Female 16-19",5132,10449,5317,2420,1755,8055,2394,3878,1120,3007,3007,3946,2632,2319,2320,2269,29879,10481,506,3283,8533,8533,7161,13662,40734,12500,25770,6512,4757,1715,4757,14964,18952,2013,2051,3036,8055,395,395,3162,3858,118803,2394,526,526,2387,6909,2758,18061,9528,1947,4138,506,23]
[null,"Female 20-24",11186,17539,6353,3023,1897,10449,2757,5440,1411,3797,3797,7387,3516,2847,3144,2491,50597,24791,559,4465,12368,12368,9905,28898,64015,20059,44900,7538,5641,2383,5641,19115,35472,2476,2520,3967,10067,534,534,3854,5454,182279,2757,562,562,2966,9048,4029,26632,14264,2827,5061,559,24]
[null,"Female 25-29",11646,18412,6766,2919,1880,10393,2483,4660,1408,3846,3846,6884,3706,2469,2796,2248,52083,27486,611,4641,11146,11146,9301,32603,67710,21019,48136,8030,6150,2297,6150,19574,38454,2653,2607,3823,10607,595,595,3890,5624,187975,2483,694,694,2864,8967,3252,24839,13693,2895,5519,611,25]
[null,"Female 30-34",9712,17943,8231,3238,1920,10174,2828,3996,1462,3753,3753,5361,3622,2437,2969,2196,48660,22996,664,5214,10880,10880,9210,26708,63296,20877,42021,8755,6835,2230,6835,21275,34952,2878,2934,3676,11344,594,594,4385,5477,179608,2828,641,641,2876,9931,2534,23864,12984,2973,6109,664,26]
[null,"Female 35-39",7583,16085,8502,3276,2083,10193,2805,4130,1504,3612,3612,4328,3547,3044,3171,2902,44086,18399,746,5111,10973,10973,9241,21043,58299,18652,37236,8759,6676,2249,6676,21063,30308,2893,2567,3679,11088,587,587,4006,5318,166485,2805,700,700,2967,9975,2626,22583,11610,2680,5845,746,27]
[null,"Female 40-44",6824,15898,9074,3662,2531,11821,3657,4700,1736,4255,4255,3957,4002,3415,3457,3182,44368,16077,826,5798,11795,11795,10498,18545,58315,19026,36123,9983,7452,2474,7452,22192,28916,2880,3128,4405,11655,679,679,4598,5707,172709,3657,721,721,3414,10537,2964,24012,12217,2800,6502,826,28]
[null,"Female 45-49",7059,17560,10501,4288,3168,14637,4591,5736,2106,5713,5713,4585,4999,4300,4361,3828,50032,16115,994,6395,13972,13972,12131,21204,69713,21168,43438,12131,8963,3245,8963,26275,31469,3511,3608,5391,13605,825,825,5763,7211,202829,4591,849,849,4247,12670,3630,28608,14636,3650,7482,994,29]
[null,"Female 50-54",7514,18002,10488,4561,3606,15343,4773,5816,2099,6247,6247,5222,5016,4541,4176,3870,50162,16086,1055,6308,14461,14461,12124,22092,71857,21705,45100,13200,9594,3438,9594,26757,30928,3468,3703,5694,13668,884,884,6032,7332,209262,4773,870,870,4633,13089,3717,30276,15815,3827,7198,1055,30]
[null,"Female 55-59",6840,15898,9058,4348,3443,14228,4541,5068,1864,5813,5813,4949,4484,4332,3915,3436,45797,14875,972,5503,13155,13155,10571,19421,64733,19238,40548,12373,8930,3211,8930,24185,28101,3217,3340,5208,12011,805,805,5481,6630,190084,4541,776,776,4536,12174,3204,27933,14778,3518,6094,972,31]
[null,"Female 60-64",5820,14164,8344,3966,3221,12941,4117,4397,1655,5644,5644,3904,3948,3656,3310,2999,39293,12299,979,4825,11746,11746,9222,15156,53781,17262,32864,11540,8319,2621,8319,20917,23430,2702,3098,4810,10348,750,750,5122,5470,165146,4117,742,742,4183,10569,2742,24738,12992,2962,5119,979,32]
[null,"Female 65-69",5622,13715,8093,4306,3532,13256,4447,4573,1787,5665,5665,4107,4031,3622,3350,2876,40441,12277,1002,4943,12418,12418,9516,13288,50288,16937,30723,11757,8225,2639,8225,19565,23576,2896,3222,4928,9706,779,779,5320,5474,164057,4447,683,683,4297,9859,2786,26151,13733,2824,5053,1002,33]
[null,"Female 70-74",4129,10057,5928,3313,2739,10604,3466,3610,1346,4801,4801,3099,3110,2935,2627,2330,30842,9152,794,3713,9547,9547,7323,10260,39137,12629,23856,9093,6354,2076,6354,15281,17829,2151,2572,3901,7638,666,666,4272,4201,127150,3466,577,577,3593,7643,2264,20231,10684,2054,3899,794,34]
[null,"Female 75-79",3695,8281,4586,2642,2245,8316,2800,2850,983,3660,3660,2766,2449,2597,2148,1948,24775,7867,713,3109,7370,7370,5959,9530,33698,10254,21120,7233,4988,1746,4988,12578,14605,1653,1973,3062,6233,498,498,3398,3509,104331,2800,419,419,2805,6345,1867,16176,8806,1790,2937,713,35]
[null,"Female 80-84",3033,6388,3355,2034,1632,6246,2000,2054,662,2870,2870,2379,1804,1951,1635,1685,18839,6454,553,2196,5495,5495,4250,7853,26368,7981,16925,5426,3794,1382,3794,9443,11344,1238,1593,2273,4548,327,327,2633,2732,80217,2000,311,311,2169,4895,1392,12541,7046,1322,2017,553,36]
[null,"Female 85-89",2017,4180,2163,1315,1000,3632,1227,1203,412,1757,1757,1526,1048,1203,1030,1082,12103,4595,330,1285,3473,3473,2488,4753,15785,5134,10347,3415,2415,892,2415,5438,7403,693,954,1283,2478,219,219,1798,1579,49691,1227,189,189,1301,2960,791,8112,4639,838,1085,330,37]
[null,"Female 90+",1109,2389,1280,884,634,2253,751,747,225,991,991,840,608,710,568,667,7232,2758,240,780,2124,2124,1527,2768,8781,2925,6002,1989,1355,525,1355,2779,4357,403,536,783,1168,134,134,1129,882,29050,751,125,125,862,1611,522,4977,2853,450,628,240,38]
[null,"Male 0-4",null,null,null,null,null,null,null,null,null,null,null,null,null,null,null,null,null,null,null,null,null,null,null,null,null,null,null,null,null,null,null,null,null,null,null,null,null,null,null,null,null,null,null,null,null,null,null,null,null,null,null,null,null,39]
[null,"Male 5-9",null,null,null,null,null,null,null,null,null,null,null,null,null,null,null,null,null,null,null,null,null,null,null,null,null,null,null,null,null,null,null,null,null,null,null,null,null,null,null,null,null,null,null,null,null,null,null,null,null,null,null,null,null,40]
[null,"Male 10-15",null,null,null,null,null,null,null,null,null,null,null,null,null,null,null,null,null,null,null,null,null,null,null,null,null,null,null,null,null,null,null,null,null,null,null,null,null,null,null,null,null,null,null,null,null,null,null,null,null,null,null,null,null,41]
[null,"Male 16-19",4618,10741,6123,2762,2139,8596,2478,3910,1252,3221,3221,3524,2828,2623,2309,2475,30158,10532,556,3747,8648,8648,7657,13791,42639,13104,26871,7596,5457,1848,5457,15768,19032,1961,2363,3245,8401,494,494,3562,4118,124418,2478,549,549,2523,7367,2658,18496,9848,2016,4230,556,42]
[null,"Male 20-24",10055,17241,7186,3297,2955,10847,2809,5494,1591,3996,3996,6850,3689,3335,2990,2815,46618,20799,650,4670,12020,12020,10164,27102,64147,20259,44004,9133,6178,2412,6178,20143,31789,2508,3018,4148,10761,577,577,4430,5464,181688,2809,720,720,3010,9382,3903,26597,14577,2876,5492,650,43]
[null,"Male 25-29",13084,20153,7069,3008,2486,9915,2465,4320,1326,3672,3672,7015,3552,2823,2551,2235,49299,25953,613,4538,10466,10466,8858,31828,66712,23042,47795,8662,6176,2322,6176,18917,36368,2460,2889,3564,10197,605,605,4041,5719,186149,2465,707,707,2799,8720,2994,24530,14064,2868,5404,613,44]
[null,"Male 30-34",10533,18196,7663,3098,1993,9097,2438,3686,1379,3519,3519,5275,3358,2430,2530,1892,45742,22449,618,4657,10197,10197,8343,27904,61765,21010,42551,8457,6464,2227,6464,19214,33107,2518,2814,3224,10357,540,540,4186,5418,172305,2438,655,655,2515,8857,2307,22756,12559,2680,5610,618,45]
[null,"Male 35-39",8518,16872,8354,2990,2111,9060,2607,3767,1433,3252,3252,4008,3246,2566,2713,2396,42754,18925,687,4994,10280,10280,8761,22182,56216,19515,36499,8592,6481,2010,6481,19717,29867,2614,2643,3157,10380,536,536,4185,4942,161268,2607,712,712,2657,9337,2334,21463,11183,2403,5615,687,46]
[null,"Male 40-44",7308,16431,9123,3389,2439,10458,3273,4276,1613,3894,3894,3685,3714,3061,3382,2856,43545,16766,816,5398,11190,11190,9674,18717,55295,19411,34216,9153,6714,2118,6714,21079,29082,2717,2980,3700,11022,622,622,4187,5030,164929,3273,800,800,3044,10057,2663,22451,11261,2434,6217,816,47]
[null,"Male 45-49",7281,17228,9947,4018,3009,12866,4231,5337,2056,5061,5061,4514,4466,3704,3741,3208,47799,16303,1062,6279,13408,13408,11616,19948,63590,20910,38936,11193,8184,2694,8184,24654,30160,3128,3682,4645,12690,795,795,5184,6312,189422,4231,814,814,3755,11964,3281,27124,13716,3070,6988,1062,48]
[null,"Male 50-54",7284,17410,10126,4570,3357,13909,4657,5491,2021,5884,5884,4693,4685,4160,4090,3473,48325,16177,1035,6186,13327,13327,11677,19976,66121,21027,41191,12412,9055,3256,9055,24930,30341,3186,3617,5069,12858,908,908,5940,6814,197429,4657,928,928,4155,12072,3470,28530,15203,3512,6888,1035,49]
[null,"Male 55-59",6797,15936,9139,4032,3246,13173,4341,4964,1828,5552,5552,4632,4283,3876,3744,3233,44067,14276,1018,5421,12779,12779,10385,17580,59729,19197,37212,11962,8716,2965,8716,22517,26947,2942,3261,4790,11103,876,876,5288,6350,180737,4341,826,826,4100,11414,3136,26731,13952,3208,5985,1018,50]
[null,"Male 60-64",6027,14211,8184,3723,3097,11857,4040,4209,1579,5261,5261,3735,3731,3387,3034,2791,37412,12088,987,4431,10956,10956,8640,14433,50045,17177,30858,11077,7980,2425,7980,19187,22416,2609,2966,4304,9377,766,766,4954,5063,156406,4040,772,772,3822,9810,2630,23368,12412,2759,4685,987,51]
[null,"Male 65-69",5436,13667,8231,4139,3351,12280,4344,4311,1637,5663,5663,3703,3787,3321,3001,2478,37322,11191,1050,4682,11517,11517,8993,12473,45785,16610,27887,11360,8009,2361,8009,17898,21461,2602,2943,4478,8878,770,770,5018,4816,153467,4344,774,774,4015,9020,2674,24377,12860,2438,4667,1050,52]
[null,"Male 70-74",3551,9080,5529,2968,2599,9328,3194,3112,1185,4333,4333,2650,2773,2472,2305,1844,27189,7692,741,3266,8633,8633,6378,8760,33436,11338,20327,8593,5994,1795,5994,13109,15362,1939,2258,3391,6342,611,611,3766,3632,111869,3194,538,538,3164,6767,1927,18017,9384,1824,3426,741,53]
[null,"Male 75-79",2734,6713,3979,2218,1841,6859,2310,2318,810,3339,3339,2157,2086,2013,1690,1519,19727,5881,580,2408,6060,6060,4726,6503,24796,8457,15290,5897,4056,1293,4056,9506,11357,1321,1744,2461,4679,467,467,2901,2725,82515,2310,391,391,2312,4827,1508,13336,7276,1237,2465,580,54]
[null,"Male 80-84",2016,4681,2665,1505,1171,4512,1523,1512,486,2250,2250,1534,1329,1495,1188,1102,13669,4490,355,1683,4105,4105,3195,4488,16812,5789,10574,3989,2818,847,2818,6238,8041,862,1108,1620,2981,282,282,2077,1771,56201,1523,232,232,1563,3257,1026,9221,5116,871,1501,355,55]
[null,"Male 85-89",1046,2394,1348,820,580,2206,872,732,249,1098,1098,852,643,749,598,561,7057,2411,210,763,2030,2030,1495,2162,8120,2993,5207,2040,1460,423,1460,2913,4155,460,599,748,1326,147,147,1130,930,28287,872,119,119,815,1587,483,4832,2802,382,686,210,56]
[null,"Male 90+",444,1058,614,343,232,909,309,286,101,480,480,354,249,337,258,261,3070,1165,71,329,886,886,615,952,3439,1310,2315,840,608,190,608,1124,1875,174,252,299,520,67,67,474,414,12017,309,45,45,361,604,185,2057,1171,161,278,71,57]
["SIMD Q1 (most deprived)","Female 0-4",null,null,null,null,null,null,null,null,null,null,null,null,null,null,null,null,null,null,null,null,null,null,null,null,null,null,null,null,null,null,null,null,null,null,null,null,null,null,null,null,null,null,null,null,null,null,null,null,null,null,null,null,null,58]
[null,"Female 5-9",null,null,null,null,null,null,null,null,null,null,null,null,null,null,null,null,null,null,null,null,null,null,null,null,null,null,null,null,null,null,null,null,null,null,null,null,null,null,null,null,null,null,null,null,null,null,null,null,null,null,null,null,null,59]
[null,"Female 10-15",null,null,null,null,null,null,null,null,null,null,null,null,null,null,null,null,null,null,null,null,null,null,null,null,null,null,null,null,null,null,null,null,null,null,null,null,null,null,null,null,null,null,null,null,null,null,null,null,null,null,null,null,null,60]
[null,"Female 16-19",367,479,112,222,146,2710,169,594,274,315,315,1259,870,113,83,167,4509,1504,0,474,1829,1829,1068,6019,12832,495,8838,549,403,688,403,3994,2511,205,16,1351,2539,0,0,183,1046,24142,169,0,0,489,1455,320,3493,1664,805,719,0,61]
[null,"Female 20-24",782,982,200,320,208,4057,217,957,442,502,502,2144,1363,177,120,229,6262,2376,0,776,2248,2248,1733,10248,20452,1017,14969,811,603,1133,603,5483,3797,326,35,1946,3424,0,0,326,1925,37624,217,0,0,748,2059,515,5038,2790,1257,975,0,62]
[null,"Female 25-29",1031,1269,238,299,172,4063,204,1014,428,504,504,2793,1402,192,137,220,8045,3578,0,892,2758,2758,1906,14159,25059,1292,19205,767,595,1143,595,5854,5083,337,23,1950,3719,0,0,401,2185,45129,204,0,0,711,2135,586,6251,3493,1306,1031,0,63]
[null,"Female 30-34",906,1141,235,332,201,3606,207,887,409,430,430,2239,1246,165,124,214,7688,3523,0,874,2433,2433,1761,11989,22794,1174,16689,856,655,1118,655,6105,5048,296,33,1693,3760,0,0,360,1864,41240,207,0,0,667,2345,478,5364,2931,1339,1105,0,64]
[null,"Female 35-39",648,820,172,298,177,3239,192,774,422,361,361,1753,1095,151,145,215,6597,2822,0,690,2211,2211,1464,9938,19487,844,14051,699,522,993,522,5436,4194,280,24,1582,3365,0,0,296,1645,35038,192,0,0,562,2071,352,4558,2347,1109,947,0,65]
[null,"Female 40-44",661,829,168,255,208,3677,233,774,407,365,365,1449,1232,176,106,201,6089,2185,0,792,2275,2275,1566,8898,18428,857,12865,734,526,999,526,5563,3581,284,28,1837,3465,0,0,243,1486,33663,233,0,0,608,2098,367,4222,1947,1105,1006,0,66]
[null,"Female 45-49",594,790,196,304,239,4383,227,982,472,458,458,1647,1527,211,153,246,6820,2329,0,789,2760,2760,1771,10444,21908,818,15496,849,610,1343,610,6412,3833,312,28,2122,3984,0,0,239,1877,39197,227,0,0,734,2428,510,4950,2190,1375,1039,0,67]
[null,"Female 50-54",627,812,185,279,233,4464,220,905,457,473,473,1866,1566,212,125,258,6559,2093,0,840,2766,2766,1745,10956,22425,839,15965,795,562,1323,562,6460,3573,317,27,2202,4042,0,0,259,1798,39704,220,0,0,696,2418,448,5170,2404,1418,1038,0,68]
[null,"Female 55-59",541,700,159,260,223,3913,195,835,419,384,384,1669,1268,212,137,195,6082,2063,0,766,2446,2446,1601,9487,19924,723,14043,739,516,1263,516,5881,3441,310,23,1961,3571,0,0,233,1653,35528,195,0,0,684,2310,416,4608,2162,1233,931,0,69]
[null,"Female 60-64",440,565,125,209,200,3543,186,639,338,345,345,1330,1151,163,97,172,4925,1543,0,649,2086,2086,1288,7302,16077,602,10991,681,481,1042,481,5086,2653,232,37,1762,3061,0,0,212,1259,29212,186,0,0,630,2025,301,3837,1751,1053,781,0,70]
[null,"Female 65-69",408,525,117,187,225,3388,193,684,372,298,298,1327,1122,147,102,173,4911,1493,0,654,2098,2098,1338,6552,14944,557,10089,630,405,1045,405,4855,2620,261,32,1726,2902,0,0,182,1213,27762,193,0,0,540,1953,312,3794,1696,959,764,0,71]
[null,"Female 70-74",287,367,80,161,166,2652,149,528,279,311,311,958,867,102,87,124,3786,1086,0,473,1663,1663,1001,5396,11902,381,8053,483,317,788,317,3849,1974,198,14,1345,2379,0,0,151,960,21786,149,0,0,440,1470,249,2933,1270,683,603,0,72]
[null,"Female 75-79",243,297,54,166,144,2288,104,412,213,189,189,839,739,86,75,109,3115,962,0,508,1365,1365,920,5115,10810,307,7609,409,265,751,265,3201,1646,130,10,1167,1967,0,0,95,958,19138,104,0,0,382,1234,199,2465,1100,590,479,0,73]
[null,"Female 80-84",189,239,50,97,117,1672,82,311,140,151,151,671,560,56,42,94,2364,762,0,363,986,986,674,4049,8473,249,6032,316,199,598,199,2441,1296,136,10,821,1481,0,0,109,787,14776,82,0,0,291,960,171,1863,877,448,356,0,74]
[null,"Female 85-89",145,180,35,60,86,1027,59,165,88,101,101,442,381,33,21,44,1424,509,0,217,605,605,382,2360,4985,188,3577,208,122,361,122,1408,760,72,8,453,894,0,0,52,453,8869,59,0,0,193,514,77,1159,554,326,158,0,75]
[null,"Female 90+",71,89,18,37,55,568,24,100,56,40,40,239,203,5,6,26,814,271,0,104,352,352,204,1272,2684,91,1908,121,66,181,66,776,438,38,2,257,464,0,0,27,211,4825,24,0,0,108,312,44,655,303,213,123,0,76]
[null,"Male 0-4",null,null,null,null,null,null,null,null,null,null,null,null,null,null,null,null,null,null,null,null,null,null,null,null,null,null,null,null,null,null,null,null,null,null,null,null,null,null,null,null,null,null,null,null,null,null,null,null,null,null,null,null,null,77]
[null,"Male 5-9",null,null,null,null,null,null,null,null,null,null,null,null,null,null,null,null,null,null,null,null,null,null,null,null,null,null,null,null,null,null,null,null,null,null,null,null,null,null,null,null,null,null,null,null,null,null,null,null,null,null,null,null,null,78]
[null,"Male 10-15",null,null,null,null,null,null,null,null,null,null,null,null,null,null,null,null,null,null,null,null,null,null,null,null,null,null,null,null,null,null,null,null,null,null,null,null,null,null,null,null,null,null,null,null,null,null,null,null,null,null,null,null,null,79]
[null,"Male 16-19",377,466,89,241,178,2741,177,694,342,294,294,1171,940,136,88,163,4493,1501,0,502,1784,1784,1196,6797,13975,489,9777,588,410,774,410,4198,2532,207,23,1370,2730,0,0,171,1068,25359,177,0,0,431,1468,352,3367,1583,839,736,0,80]
[null,"Male 20-24",616,848,232,340,279,3842,211,887,427,439,439,1933,1299,169,119,194,6147,2198,0,737,2299,2299,1624,10608,20829,872,15004,845,566,1102,566,5825,3637,331,24,1872,3747,0,0,309,1746,37180,211,0,0,671,2078,460,4881,2582,1185,989,0,81]
[null,"Male 25-29",1034,1297,263,314,225,3699,158,865,346,496,496,2715,1282,163,105,196,7309,3335,0,832,2441,2441,1697,13525,23796,1309,18229,822,597,1111,597,5567,4710,255,12,1707,3574,0,0,443,2064,42600,158,0,0,710,1993,519,5913,3472,1170,1015,0,82]
[null,"Male 30-34",867,1140,273,258,176,3261,174,759,363,346,346,2130,1116,134,110,184,6619,2881,0,764,2287,2287,1523,11843,21614,1149,16292,796,620,1046,620,5322,4158,281,9,1550,3370,0,0,310,1941,38006,174,0,0,595,1952,396,4985,2698,1144,886,0,83]
[null,"Male 35-39",826,1033,207,256,150,2914,187,657,362,298,298,1533,948,136,86,165,6118,2620,0,721,2123,2123,1378,9660,18511,1059,13358,612,462,831,462,5153,3808,238,26,1384,3174,0,0,305,1610,32984,187,0,0,582,1979,295,4217,2094,956,864,0,84]
[null,"Male 40-44",675,887,212,251,167,3182,190,633,352,341,341,1296,1123,136,133,169,5949,2370,0,754,2102,2102,1387,8680,17348,917,12125,700,533,854,533,5223,3657,267,30,1491,3200,0,0,252,1408,31623,190,0,0,568,2023,281,3901,1799,878,887,0,85]
[null,"Male 45-49",626,815,189,277,203,3604,252,780,425,406,406,1626,1280,185,94,183,6621,2305,0,851,2635,2635,1631,9474,19864,854,13826,738,535,1118,535,6038,3734,309,39,1724,3787,0,0,257,1813,35878,252,0,0,600,2251,355,4795,2160,1053,1026,0,86]
[null,"Male 50-54",615,772,157,292,263,3880,260,861,454,437,437,1665,1353,189,143,241,6530,2390,0,858,2439,2439,1719,9703,20490,797,14561,815,552,1285,552,5929,3831,305,25,1895,3785,0,0,297,1800,36922,260,0,0,632,2144,407,4693,2254,1343,993,0,87]
[null,"Male 55-59",562,744,182,232,213,3779,197,814,428,389,389,1605,1264,173,112,193,5690,1884,0,727,2413,2413,1541,8490,18264,771,12759,747,534,1125,534,5505,3080,269,27,1860,3387,0,0,233,1675,33251,197,0,0,655,2118,386,4483,2070,1103,815,0,88]
[null,"Male 60-64",506,607,101,196,207,3230,154,635,333,322,322,1294,1045,160,87,146,4762,1610,0,623,2018,2018,1258,6842,14830,627,10291,645,438,964,438,4539,2590,244,20,1575,2722,0,0,194,1196,27358,154,0,0,610,1817,302,3702,1684,983,649,0,89]
[null,"Male 65-69",435,554,119,205,171,3104,200,620,337,371,371,1230,1089,127,101,136,4456,1314,0,644,1949,1949,1264,6096,13626,573,9229,577,406,978,406,4397,2307,203,19,1490,2667,0,0,161,1075,25567,200,0,0,525,1730,283,3545,1596,817,689,0,90]
[null,"Male 70-74",253,320,67,135,156,2302,139,445,245,226,226,875,747,88,64,87,3277,894,0,406,1490,1490,851,4417,9819,335,6634,419,263,674,263,3185,1648,152,15,1143,1879,0,0,119,770,18358,139,0,0,412,1306,200,2619,1129,598,538,0,91]
[null,"Male 75-79",167,225,58,122,90,1795,73,356,182,183,183,664,635,67,61,101,2383,725,0,350,1000,1000,706,3313,7452,232,5066,281,191,506,191,2386,1310,116,7,852,1478,0,0,96,679,13914,73,0,0,308,908,174,1882,882,400,408,0,92]
[null,"Male 80-84",120,162,42,69,69,1204,56,170,81,116,116,422,422,43,39,48,1646,496,0,256,725,725,426,2264,4928,165,3371,196,127,325,127,1557,865,74,3,555,970,0,0,64,425,9236,56,0,0,227,587,89,1280,555,266,256,0,93]
[null,"Male 85-89",62,83,21,37,39,565,38,104,55,67,67,224,208,23,10,24,789,234,0,104,347,347,208,1083,2336,87,1617,104,65,141,65,719,404,56,4,251,419,0,0,32,226,4449,38,0,0,106,300,49,640,293,120,104,0,94]
[null,"Male 90+",25,40,15,11,12,215,14,45,29,26,26,91,81,9,7,11,371,110,0,52,156,156,97,464,1021,42,713,33,21,63,21,308,201,30,2,92,188,0,0,9,94,1916,14,0,0,42,120,16,267,111,72,54,0,95]
["SIMD Q2","Female 0-4",null,null,null,null,null,null,null,null,null,null,null,null,null,null,null,null,null,null,null,null,null,null,null,null,null,null,null,null,null,null,null,null,null,null,null,null,null,null,null,null,null,null,null,null,null,null,null,null,null,null,null,null,null,96]
[null,"Female 5-9",null,null,null,null,null,null,null,null,null,null,null,null,null,null,null,null,null,null,null,null,null,null,null,null,null,null,null,null,null,null,null,null,null,null,null,null,null,null,null,null,null,null,null,null,null,null,null,null,null,null,null,null,null,97]
[null,"Female 10-15",null,null,null,null,null,null,null,null,null,null,null,null,null,null,null,null,null,null,null,null,null,null,null,null,null,null,null,null,null,null,null,null,null,null,null,null,null,null,null,null,null,null,null,null,null,null,null,null,null,null,null,null,null,98]
[null,"Female 16-19",959,1342,383,387,281,1847,362,646,329,884,884,668,690,359,552,215,5913,1606,118,929,1557,1557,1575,2401,8450,1616,4538,1238,957,231,957,3912,3994,760,274,561,2196,49,49,362,755,23121,362,14,14,596,1716,317,2974,1417,577,1076,118,99]
[null,"Female 20-24",2193,2788,595,753,365,2502,553,1032,376,1105,1105,1621,894,514,929,273,10080,4104,144,1303,2106,2106,2335,4568,12732,3344,7386,1593,1228,289,1228,5346,7421,953,556,762,2801,88,88,576,960,36899,553,26,26,846,2545,656,5056,2950,782,1435,144,100]
[null,"Female 25-29",2497,3162,665,776,428,2689,560,1019,434,1072,1072,1497,1016,584,927,254,11158,4643,157,1414,2393,2393,2433,5944,14679,3657,9066,1727,1299,357,1299,5613,8205,1001,495,763,3033,100,100,642,1074,40610,560,23,23,910,2580,585,5308,2915,853,1634,157,101]
[null,"Female 30-34",2127,2745,618,706,356,2556,474,846,403,1091,1091,1106,966,516,953,246,10451,3896,150,1505,2371,2371,2351,4938,13925,3276,7994,1718,1362,379,1362,5931,7606,1060,531,786,3202,62,62,694,1031,38102,474,16,16,804,2729,443,4877,2506,884,1697,150,102]
[null,"Female 35-39",1590,2207,617,566,373,2574,455,848,407,1065,1065,862,960,578,899,269,8704,2632,153,1467,2235,2235,2315,3687,11871,2646,6545,1625,1252,248,1252,5326,6014,1025,439,770,2945,71,71,528,956,33014,455,34,34,844,2381,441,4191,1956,807,1458,153,103]
[null,"Female 40-44",1433,2044,611,626,439,2816,494,905,462,1197,1197,767,1025,550,873,266,8657,2320,200,1535,2390,2390,2440,3234,11853,2501,6289,1806,1367,291,1367,5564,5773,971,457,916,3066,105,105,460,1112,33442,494,14,14,875,2498,443,4243,1853,836,1609,200,104]
[null,"Female 45-49",1498,2184,686,665,520,3587,664,1040,545,1566,1566,799,1328,754,1094,385,9718,2170,233,1758,2735,2735,2798,3645,14257,2712,7483,2134,1614,400,1614,6774,6319,1216,528,1140,3608,95,95,583,1267,39170,664,23,23,1119,3166,495,4782,2047,1032,1839,233,105]
[null,"Female 50-54",1562,2295,733,620,577,3706,713,1090,562,1695,1695,953,1254,740,1112,363,9801,2060,270,1752,2947,2947,2842,3735,14788,2808,7726,2331,1754,480,1754,7062,6141,1207,513,1189,3723,122,122,562,1315,40518,713,20,20,1263,3339,528,5082,2135,1093,1762,270,106]
[null,"Female 55-59",1390,2044,654,671,587,3484,693,936,471,1582,1582,900,1188,700,1053,288,9078,1871,231,1530,2660,2660,2466,3343,13419,2553,6938,2259,1672,438,1672,6481,5725,1183,509,1060,3369,109,109,509,1159,37275,693,14,14,1236,3112,465,4740,2080,1010,1618,231,107]
[null,"Female 60-64",1242,1852,610,563,526,3066,629,796,418,1556,1556,775,1040,528,882,251,7802,1536,248,1426,2425,2425,2222,2630,11399,2340,5533,2041,1515,318,1515,5866,4748,969,488,923,3059,104,104,498,941,32644,629,30,30,1103,2807,378,4261,1836,865,1361,248,108]
[null,"Female 65-69",1175,1846,671,601,577,3156,684,825,459,1539,1539,799,1047,523,858,247,8027,1507,236,1421,2498,2498,2246,2289,10956,2299,5323,2117,1540,360,1540,5633,4845,1041,453,976,2936,119,119,460,1056,32580,684,25,25,1133,2697,366,4358,1860,848,1439,236,109]
[null,"Female 70-74",810,1333,523,485,476,2542,547,672,353,1252,1252,642,854,468,694,146,6254,1136,173,1160,1922,1922,1832,1748,8804,1687,4127,1602,1126,274,1126,4677,3785,756,354,747,2486,103,103,369,855,25764,547,19,19,941,2191,319,3418,1496,636,1199,173,110]
[null,"Female 75-79",804,1228,424,427,440,2066,442,534,240,981,981,617,730,380,613,158,5240,1088,166,962,1578,1578,1496,1715,7811,1536,3868,1472,1032,202,1032,3943,3220,601,308,568,2070,63,63,282,805,22167,442,10,10,768,1873,294,2904,1326,608,918,166,111]
[null,"Female 80-84",713,1051,338,330,334,1620,350,357,161,817,817,502,541,350,483,151,4031,815,153,693,1257,1257,1050,1545,6306,1272,3305,1078,744,156,744,3001,2424,473,221,478,1529,60,60,236,671,17470,350,15,15,601,1472,196,2325,1068,432,653,153,112]
[null,"Female 85-89",401,587,186,245,187,890,213,208,102,455,455,275,289,203,272,67,2527,556,63,433,809,809,641,960,3673,728,1920,676,489,80,489,1753,1505,307,141,244,842,29,29,204,353,10411,213,5,5,357,911,106,1533,724,257,370,63,113]
[null,"Female 90+",195,309,114,161,104,620,147,126,61,276,276,165,184,139,147,35,1456,336,57,276,482,482,402,563,1897,373,1033,376,272,26,272,864,827,139,64,154,360,12,12,96,168,5892,147,1,1,282,504,65,904,422,102,205,57,114]
[null,"Male 0-4",null,null,null,null,null,null,null,null,null,null,null,null,null,null,null,null,null,null,null,null,null,null,null,null,null,null,null,null,null,null,null,null,null,null,null,null,null,null,null,null,null,null,null,null,null,null,null,null,null,null,null,null,null,115]
[null,"Male 5-9",null,null,null,null,null,null,null,null,null,null,null,null,null,null,null,null,null,null,null,null,null,null,null,null,null,null,null,null,null,null,null,null,null,null,null,null,null,null,null,null,null,null,null,null,null,null,null,null,null,null,null,null,null,116]
[null,"Male 10-15",null,null,null,null,null,null,null,null,null,null,null,null,null,null,null,null,null,null,null,null,null,null,null,null,null,null,null,null,null,null,null,null,null,null,null,null,null,null,null,null,null,null,null,null,null,null,null,null,null,null,null,null,null,117]
[null,"Male 16-19",925,1350,425,390,304,2032,365,621,306,904,904,564,727,419,608,218,5932,1517,140,1094,1635,1635,1715,2329,8547,1696,4487,1318,1014,213,1014,4060,3932,717,346,663,2211,67,67,380,725,23693,365,8,8,642,1849,315,2969,1334,583,1090,140,118]
[null,"Male 20-24",2227,2839,612,608,398,2609,540,1032,406,1220,1220,1679,978,616,853,295,8771,2929,156,1315,2030,2030,2347,4391,12741,3325,7435,1706,1308,322,1308,5306,6201,886,486,832,2832,91,91,669,976,35964,540,42,42,799,2474,626,4986,2956,835,1533,156,119]
[null,"Male 25-29",2659,3378,719,711,364,2551,568,1041,387,993,993,1555,940,580,850,258,10315,4305,177,1333,2157,2157,2374,6039,14465,3910,9057,1655,1291,320,1291,5408,7590,932,532,776,2896,104,104,755,1016,39611,568,46,46,835,2512,654,5178,3021,844,1503,177,120]
[null,"Male 30-34",2113,2753,640,719,387,2429,483,825,367,997,997,1196,961,508,831,220,9827,3889,146,1335,2107,2107,2160,5603,13940,3248,8561,1637,1250,319,1250,5379,7237,902,495,704,2963,71,71,752,1092,37146,483,24,24,764,2416,458,4774,2667,819,1615,146,121]
[null,"Male 35-39",1642,2265,623,614,377,2151,472,729,384,940,940,817,848,442,798,199,8615,2981,142,1335,2065,2065,2064,4380,11927,2731,6999,1557,1180,307,1180,4928,6078,886,466,603,2651,72,72,678,866,32341,472,33,33,700,2277,345,4174,2109,805,1413,142,122]
[null,"Male 40-44",1429,2014,585,580,360,2509,514,785,417,1122,1122,767,944,496,822,265,8563,2552,199,1446,2265,2265,2231,3379,11460,2417,6072,1530,1170,261,1170,5388,5784,883,403,743,2932,102,102,505,918,32014,514,29,29,822,2456,368,4117,1852,753,1527,199,123]
[null,"Male 45-49",1517,2140,623,666,498,3221,612,967,533,1351,1351,912,1179,566,936,284,9183,2341,235,1710,2595,2595,2677,3570,13124,2662,6727,1928,1430,319,1430,6397,5976,1025,522,992,3316,105,105,611,1061,36688,612,13,13,1050,3081,434,4784,2189,927,1674,235,124]
[null,"Male 50-54",1408,2065,657,667,512,3406,693,977,498,1582,1582,848,1234,726,1012,342,9438,2254,259,1662,2706,2706,2639,3451,13528,2570,7034,2125,1613,419,1613,6494,6039,1112,505,1006,3378,119,119,602,1120,37819,693,36,36,1166,3116,479,4823,2117,976,1661,259,125]
[null,"Male 55-59",1385,2032,647,563,542,3150,671,911,448,1530,1530,788,1136,622,950,282,8618,1937,257,1517,2522,2522,2428,3099,12461,2499,6391,2091,1549,381,1549,6070,5425,1049,467,914,3042,110,110,515,1055,35036,671,26,26,1100,3028,463,4388,1866,952,1489,257,126]
[null,"Male 60-64",1133,1677,544,560,505,2766,642,766,412,1384,1384,655,953,492,749,257,7336,1534,259,1249,2270,2270,2015,2467,10473,2051,5204,1879,1374,287,1374,5269,4424,921,374,847,2728,109,109,472,923,29980,642,21,21,966,2541,354,3957,1687,778,1220,259,127]
[null,"Male 65-69",1034,1670,636,598,547,2950,661,800,404,1537,1537,728,959,443,765,202,7355,1418,255,1398,2351,2351,2198,2048,9471,2054,4509,2003,1456,271,1456,4962,4343,881,384,883,2561,121,121,434,842,29727,661,23,23,1108,2401,396,4111,1760,703,1279,255,128]
[null,"Male 70-74",672,1103,431,406,433,2179,474,531,287,1161,1161,498,722,319,546,121,5419,1031,163,980,1692,1692,1511,1516,7393,1401,3466,1508,1075,216,1075,3927,3253,680,298,610,2005,98,98,291,704,22052,474,24,24,847,1922,244,2887,1195,590,996,163,129]
[null,"Male 75-79",558,884,326,303,321,1673,350,423,214,919,919,446,575,282,463,98,4030,750,145,725,1276,1276,1148,1131,5554,1091,2681,1066,745,152,745,2873,2404,472,207,468,1489,81,81,231,589,16695,350,8,8,630,1384,209,2256,980,429,719,145,130]
[null,"Male 80-84",451,719,268,227,211,1039,221,271,127,583,583,297,357,202,324,82,2740,546,89,525,878,878,796,800,3807,867,1869,697,486,107,486,1938,1641,294,148,292,1002,35,35,150,413,11333,221,6,6,390,936,144,1552,674,265,477,89,131]
[null,"Male 85-89",231,334,103,122,104,550,151,127,62,284,284,145,191,115,150,32,1369,272,49,253,430,430,380,396,1801,406,894,364,260,49,260,907,788,157,72,136,447,16,16,81,174,5568,151,1,1,223,460,65,778,348,128,209,49,132]
[null,"Male 90+",93,149,56,68,35,214,56,37,20,124,124,67,70,64,67,17,598,145,9,93,192,192,130,164,686,180,374,171,136,18,136,312,350,64,31,56,148,9,9,30,73,2286,56,0,0,88,164,17,357,165,38,74,9,133]
["SIMD Q3","Female 0-4",null,null,null,null,null,null,null,null,null,null,null,null,null,null,null,null,null,null,null,null,null,null,null,null,null,null,null,null,null,null,null,null,null,null,null,null,null,null,null,null,null,null,null,null,null,null,null,null,null,null,null,null,null,134]
[null,"Female 5-9",null,null,null,null,null,null,null,null,null,null,null,null,null,null,null,null,null,null,null,null,null,null,null,null,null,null,null,null,null,null,null,null,null,null,null,null,null,null,null,null,null,null,null,null,null,null,null,null,null,null,null,null,null,135]
[null,"Female 10-15",null,null,null,null,null,null,null,null,null,null,null,null,null,null,null,null,null,null,null,null,null,null,null,null,null,null,null,null,null,null,null,null,null,null,null,null,null,null,null,null,null,null,null,null,null,null,null,null,null,null,null,null,null,136]
[null,"Female 16-19",686,1739,1053,783,761,1343,778,521,175,1068,1068,476,417,164,454,231,5612,1436,359,598,1613,1613,1119,2366,6658,2309,3947,2204,1443,276,1443,2711,3221,478,570,407,1401,123,123,661,662,22864,778,149,149,519,1310,346,3533,1920,248,853,359,137]
[null,"Female 20-24",2047,3366,1319,892,679,1536,944,908,256,1258,1258,856,496,216,627,258,9979,4577,365,780,2249,2249,1688,5281,10715,4056,7340,2329,1650,319,1650,3375,6786,516,690,475,1711,169,169,894,872,34910,944,173,173,565,1664,652,4891,2642,394,1066,365,138]
[null,"Female 25-29",2001,3419,1418,811,728,1569,769,843,265,1309,1309,957,535,200,591,266,11165,5634,413,789,2483,2483,1632,4977,10596,4149,7016,2509,1781,307,1781,3580,7913,581,730,430,1886,184,184,928,883,36432,769,210,210,604,1694,578,5179,2696,383,1107,413,139]
[null,"Female 30-34",1580,3122,1542,1001,825,1684,948,690,274,1254,1254,616,555,161,607,281,10090,4317,453,918,2372,2372,1608,3952,9993,3968,6020,2744,1919,269,1919,3973,6770,615,846,465,2153,203,203,993,973,34795,948,188,188,664,1820,416,4982,2610,384,1231,453,140]
[null,"Female 35-39",986,2487,1501,1074,844,1712,901,700,237,1233,1233,481,545,195,619,295,8723,2948,547,934,2446,2446,1634,2996,9211,3196,5164,2899,2055,373,2055,4047,5376,619,709,499,2218,142,142,915,930,31957,901,190,190,668,1829,463,4916,2470,375,1190,547,141]
[null,"Female 40-44",869,2490,1621,1248,1048,1991,1201,773,293,1568,1568,422,658,213,683,311,8627,2347,574,1000,2434,2434,1773,2508,9074,3339,4878,3250,2202,415,2202,4196,4992,659,849,586,2292,193,193,1034,1027,33291,1201,198,198,747,1904,480,5138,2704,404,1303,574,142]
[null,"Female 45-49",895,2978,2083,1415,1294,2544,1550,940,393,2162,2162,536,868,310,942,357,10109,2094,709,1129,3028,3028,2069,2734,10876,3978,5847,4181,2887,489,2887,5029,5531,869,1000,744,2502,260,260,1369,1377,40488,1550,280,280,932,2527,547,6348,3320,580,1626,709,143]
[null,"Female 50-54",996,3074,2078,1588,1612,2825,1593,997,405,2340,2340,660,926,266,849,404,10273,2070,719,1196,3271,3271,2193,2861,10969,4168,5977,4739,3127,546,3127,4992,5409,875,1094,798,2428,284,284,1497,1329,42537,1593,282,282,1101,2564,592,7016,3745,571,1615,719,144]
[null,"Female 55-59",906,2768,1862,1542,1487,2500,1570,898,386,2173,2173,638,808,279,836,395,9353,1821,683,1070,2987,2987,1968,2555,10187,3724,5518,4507,3020,571,3020,4669,4796,764,956,764,2144,244,244,1372,1172,39153,1570,262,262,928,2525,512,6539,3552,546,1375,683,145]
[null,"Female 60-64",841,2642,1801,1362,1473,2298,1415,833,326,2131,2131,526,666,240,729,343,8015,1486,693,970,2581,2581,1803,1882,8296,3506,4371,4238,2765,397,2765,3925,4019,649,864,762,1815,221,221,1235,1017,34585,1415,261,261,870,2110,507,5704,3123,492,1155,693,146]
[null,"Female 65-69",794,2604,1810,1443,1556,2476,1515,823,359,2297,2297,548,770,211,739,327,8396,1422,707,1016,2823,2823,1839,1598,7763,3496,4058,4342,2786,395,2786,3705,4058,720,892,784,1794,227,227,1293,1042,35061,1515,234,234,922,1911,464,6107,3284,485,1177,707,147]
[null,"Female 70-74",599,1937,1338,1085,1160,1997,1143,657,279,1869,1869,415,608,162,589,261,6421,1066,575,729,2149,2149,1386,1242,6160,2692,3141,3394,2234,329,2234,3019,3129,545,755,653,1406,229,229,1119,795,27558,1143,216,216,736,1613,378,4768,2619,352,929,575,148]
[null,"Female 75-79",553,1598,1045,818,954,1479,921,537,217,1422,1422,400,433,119,501,257,5125,892,509,604,1689,1689,1141,1038,5134,2207,2637,2589,1635,296,1635,2497,2515,430,609,517,1087,185,185,851,639,22028,921,168,168,529,1410,320,3758,2069,288,692,509,149]
[null,"Female 80-84",501,1179,678,624,676,1081,680,386,148,1051,1051,397,318,78,390,250,3774,707,381,419,1223,1223,805,937,4117,1687,2178,1879,1203,216,1203,1939,1871,297,508,359,834,106,106,671,454,16697,680,124,124,404,1105,238,2915,1692,243,477,381,150]
[null,"Female 85-89",331,820,489,408,407,610,397,243,108,717,717,222,144,50,302,154,2406,491,245,220,815,815,463,565,2472,1088,1337,1219,812,175,812,1135,1194,155,268,227,441,78,78,458,259,10459,397,73,73,239,694,135,1903,1088,134,246,245,151]
[null,"Female 90+",190,459,269,274,271,363,232,142,45,413,413,132,97,47,172,82,1406,290,172,104,451,451,246,383,1563,629,981,666,395,153,395,582,723,109,170,149,199,67,67,288,243,6278,232,59,59,117,383,97,1145,694,73,152,172,152]
[null,"Male 0-4",null,null,null,null,null,null,null,null,null,null,null,null,null,null,null,null,null,null,null,null,null,null,null,null,null,null,null,null,null,null,null,null,null,null,null,null,null,null,null,null,null,null,null,null,null,null,null,null,null,null,null,null,null,153]
[null,"Male 5-9",null,null,null,null,null,null,null,null,null,null,null,null,null,null,null,null,null,null,null,null,null,null,null,null,null,null,null,null,null,null,null,null,null,null,null,null,null,null,null,null,null,null,null,null,null,null,null,null,null,null,null,null,null,154]
[null,"Male 10-15",null,null,null,null,null,null,null,null,null,null,null,null,null,null,null,null,null,null,null,null,null,null,null,null,null,null,null,null,null,null,null,null,null,null,null,null,null,null,null,null,null,null,null,null,null,null,null,null,null,null,null,null,null,155]
[null,"Male 16-19",619,1851,1232,925,815,1444,794,512,217,1208,1208,389,465,160,516,246,5571,1311,381,626,1656,1656,1138,2054,6634,2408,3768,2505,1690,260,1690,2866,3121,412,557,383,1487,150,150,807,785,23727,794,167,167,596,1379,295,3777,2121,263,882,381,156]
[null,"Male 20-24",2020,3535,1515,983,822,1804,938,931,293,1382,1382,762,629,221,635,326,9367,3675,447,830,2293,2293,1761,4734,10454,4210,6922,2598,1776,386,1776,3532,6136,599,675,528,1746,180,180,1070,864,35247,938,229,229,647,1786,638,5108,2815,391,1227,447,157]
[null,"Male 25-29",2507,3861,1354,874,741,1601,868,783,228,1315,1315,898,628,208,597,252,10586,5065,411,773,2284,2284,1556,4871,10361,4548,7046,2522,1781,364,1781,3315,7434,568,687,422,1654,203,203,863,916,35940,868,202,202,551,1661,555,4919,2635,435,1204,411,158]
[null,"Male 30-34",1901,3336,1435,977,702,1491,885,655,220,1233,1233,736,532,179,525,254,9969,4483,449,775,2265,2265,1430,4492,10217,4128,6576,2653,1951,323,1951,3641,6819,567,792,394,1927,175,175,963,950,34643,885,222,222,565,1714,435,4941,2676,378,1244,449,159]
[null,"Male 35-39",1378,2828,1450,967,788,1594,835,642,222,1144,1144,528,598,158,540,263,8852,3418,495,936,2232,2232,1578,3444,9199,3551,5375,2770,1982,347,1982,3824,5785,586,723,417,2112,162,162,942,831,32007,835,225,225,579,1712,420,4669,2437,332,1241,495,160]
[null,"Male 40-44",1063,2661,1598,1136,943,1780,1098,717,292,1367,1367,478,609,188,701,265,8689,2555,562,954,2385,2385,1671,2499,8483,3466,4552,2890,1947,349,1947,3931,5206,640,805,515,2101,166,166,923,847,31831,1098,220,220,656,1830,425,4922,2537,404,1310,562,161]
[null,"Male 45-49",1045,3055,2010,1368,1251,2296,1359,882,370,1886,1886,501,798,236,802,305,9492,2240,755,1160,2847,2847,2042,2602,9794,4032,5135,3799,2548,402,2548,4659,5286,743,977,674,2351,216,216,1207,1096,37651,1359,263,263,824,2308,512,5923,3076,494,1501,755,162]
[null,"Male 50-54",1068,3059,1991,1592,1399,2568,1561,946,380,2194,2194,642,905,242,819,388,9822,2201,720,1203,2967,2967,2149,2611,10234,4060,5533,4402,3003,479,3003,4701,5294,749,1001,756,2320,284,284,1419,1267,40386,1561,300,300,907,2381,566,6620,3653,546,1525,720,163]
[null,"Male 55-59",947,2791,1844,1476,1413,2249,1530,888,376,2106,2106,596,713,231,839,380,9193,1854,709,1022,2906,2906,1910,2317,9276,3753,5061,4380,2967,511,2967,4215,4757,692,962,722,1919,303,303,1324,1096,37545,1530,270,270,814,2296,512,6302,3396,526,1372,709,164]
[null,"Male 60-64",850,2574,1724,1256,1370,2167,1350,778,308,2038,2038,500,680,204,739,296,7823,1524,683,847,2431,2431,1625,1935,7810,3410,4163,4178,2808,383,2808,3647,4042,658,836,641,1637,242,242,1249,882,33247,1350,266,266,846,2010,470,5436,3005,463,1121,683,165]
[null,"Male 65-69",802,2600,1798,1465,1569,2320,1462,797,326,2190,2190,503,709,222,691,261,7857,1374,743,911,2594,2594,1708,1535,7064,3469,3692,4333,2764,358,2764,3372,3801,662,869,763,1649,234,234,1208,918,33371,1462,277,277,848,1723,471,5770,3176,398,1074,743,166]
[null,"Male 70-74",496,1770,1274,957,1133,1761,1079,571,249,1755,1755,354,545,123,526,217,5596,815,536,687,1900,1900,1258,1089,5184,2408,2713,3255,2122,301,2122,2471,2617,470,638,574,1160,195,195,970,679,24436,1079,207,207,642,1311,322,4181,2281,304,806,536,167]
[null,"Male 75-79",449,1329,880,715,851,1302,799,400,165,1317,1317,308,407,68,349,172,4159,651,413,488,1438,1438,888,776,3820,1893,1896,2293,1442,214,1442,1924,1922,344,564,429,846,140,140,742,479,18146,799,156,156,466,1078,235,3203,1765,187,578,413,168]
[null,"Male 80-84",317,916,599,470,508,803,522,283,105,892,892,210,259,69,274,129,2829,545,245,290,910,910,573,535,2594,1232,1373,1521,1013,141,1013,1221,1397,223,316,274,511,105,105,529,335,12096,522,93,93,270,710,178,2119,1209,164,355,245,169]
[null,"Male 85-89",158,417,259,267,245,374,259,124,56,413,413,144,106,20,140,71,1413,248,149,125,467,467,249,237,1267,607,694,740,495,89,495,573,687,121,190,117,244,53,53,286,208,6019,259,57,57,151,329,68,1164,697,69,178,149,170]
[null,"Male 90+",63,186,123,117,101,149,93,56,27,200,200,52,35,12,59,35,573,105,60,64,197,197,120,120,600,260,362,288,187,38,187,238,283,38,74,59,90,21,21,133,133,2593,93,20,20,55,148,29,499,302,24,81,60,171]
["SIMD Q4","Female 0-4",null,null,null,null,null,null,null,null,null,null,null,null,null,null,null,null,null,null,null,null,null,null,null,null,null,null,null,null,null,null,null,null,null,null,null,null,null,null,null,null,null,null,null,null,null,null,null,null,null,null,null,null,null,172]
[null,"Female 5-9",null,null,null,null,null,null,null,null,null,null,null,null,null,null,null,null,null,null,null,null,null,null,null,null,null,null,null,null,null,null,null,null,null,null,null,null,null,null,null,null,null,null,null,null,null,null,null,null,null,null,null,null,null,173]
[null,"Female 10-15",null,null,null,null,null,null,null,null,null,null,null,null,null,null,null,null,null,null,null,null,null,null,null,null,null,null,null,null,null,null,null,null,null,null,null,null,null,null,null,null,null,null,null,null,null,null,null,null,null,null,null,null,null,174]
[null,"Female 16-19",1082,2976,1894,569,433,1093,875,880,179,481,481,911,337,362,874,347,5276,1328,29,605,1236,1236,1485,1386,5855,3751,3282,1946,1513,325,1513,2573,3165,287,775,461,1132,197,197,1452,647,23408,875,363,363,295,1441,701,4168,2932,215,676,29,175]
[null,"Female 20-24",2572,4756,2184,634,461,1319,840,1254,191,624,624,1990,445,550,1110,357,8161,3456,50,805,1598,1598,2059,4937,10228,5560,7331,2129,1668,397,1668,2897,5723,332,804,535,1272,233,233,1483,814,34833,840,363,363,339,1625,1063,5705,4107,276,825,50,176]
[null,"Female 25-29",2096,4458,2362,631,406,1203,792,987,175,607,607,998,412,436,777,382,9342,4806,41,776,1580,1580,1763,4096,9115,5351,6268,2277,1871,319,1871,2847,6970,385,893,498,1234,257,257,1387,750,33433,792,461,461,293,1613,812,4596,3016,285,1002,41,177]
[null,"Female 30-34",1659,4533,2874,707,426,1307,920,894,235,624,624,781,461,467,863,341,9182,4054,61,882,1666,1666,1776,3266,8788,5547,5502,2667,2241,285,2241,3286,6596,481,1014,469,1365,290,290,1671,859,33838,920,437,437,377,1921,659,4825,3159,284,1198,61,178]
[null,"Female 35-39",1289,4279,2990,763,521,1435,946,980,244,605,605,660,543,502,958,404,8414,3028,46,941,1788,1788,1921,2401,8648,5267,4827,2670,2149,403,2149,3821,5680,492,988,512,1524,315,315,1580,853,32800,946,476,476,380,2297,736,4791,3003,264,1202,46,179]
[null,"Female 40-44",1032,4278,3246,824,642,1765,1248,1195,324,749,749,647,559,597,1156,463,8792,2583,52,1157,2062,2062,2352,2023,9050,5535,4898,3193,2551,466,2551,4152,5482,472,1257,661,1717,338,338,1999,1017,35805,1248,509,509,545,2435,871,5532,3470,332,1271,52,180]
[null,"Female 45-49",1060,4916,3856,1089,851,2127,1657,1405,401,1025,1025,749,671,762,1391,564,9998,2440,52,1304,2558,2558,2709,2256,10779,6352,5996,3821,2970,619,2970,4783,5783,552,1436,848,2076,395,395,2547,1313,42189,1657,546,546,608,2707,1004,6943,4385,482,1400,52,181]
[null,"Female 50-54",1120,5059,3939,1238,908,2293,1803,1481,361,1135,1135,834,692,853,1356,566,10326,2652,66,1218,2674,2674,2699,2381,11241,6550,6431,4130,3222,690,3222,4810,5849,539,1491,986,2063,411,411,2584,1401,44075,1803,568,568,615,2747,1120,7330,4656,540,1302,66,182]
[null,"Female 55-59",1037,4423,3386,1097,848,2195,1691,1228,322,1139,1139,841,660,914,1271,522,9310,2379,58,1067,2469,2469,2295,2093,10126,5775,5988,3761,2913,591,2913,4138,5150,462,1352,889,1694,399,399,2318,1309,39814,1691,500,500,646,2444,906,6725,4256,559,1038,58,183]
[null,"Female 60-64",959,3995,3036,1106,803,2041,1524,1023,264,1097,1097,601,589,730,1062,466,8119,1996,38,888,2250,2250,1911,1635,8356,5199,4848,3583,2780,464,2780,3508,4345,422,1204,891,1445,369,369,2190,1135,35061,1524,451,451,561,2063,759,6147,3897,418,865,38,184]
[null,"Female 65-69",988,3965,2977,1187,921,2080,1655,1061,293,1044,1044,664,582,714,1063,425,8269,1919,59,987,2316,2316,2048,1431,7576,5290,4498,3646,2725,434,2725,3078,4298,459,1325,914,1206,382,382,2219,1057,34888,1655,424,424,584,1872,768,6386,4070,437,857,59,185]
[null,"Female 70-74",696,2869,2173,943,729,1752,1324,844,227,900,900,466,431,507,761,332,6267,1445,46,739,1793,1793,1583,1025,5385,3866,3323,2793,2064,363,2064,2062,3150,354,997,745,790,289,289,1688,760,26320,1324,342,342,576,1272,617,4890,3097,336,590,46,186]
[null,"Female 75-79",592,2298,1706,734,561,1235,1068,619,149,709,709,407,305,480,570,302,4862,1182,38,582,1309,1309,1201,920,4486,3022,2785,2157,1596,242,1596,1701,2485,263,724,512,677,227,227,1389,570,20708,1068,241,241,418,1024,470,3839,2530,271,470,38,187]
[null,"Female 80-84",457,1728,1271,591,383,941,729,486,110,561,561,405,191,337,443,257,3631,1013,19,423,976,976,909,691,3303,2317,2127,1636,1253,226,1253,1176,1926,178,589,381,429,134,134,1015,439,15634,729,172,172,369,747,376,2987,2011,177,292,19,188]
[null,"Female 85-89",280,1087,807,349,250,552,474,299,69,328,328,324,116,258,253,169,2389,835,22,254,592,592,553,445,2100,1464,1421,1002,752,144,752,679,1323,96,377,226,178,98,98,696,294,9988,474,111,111,210,501,230,1961,1369,111,139,22,189]
[null,"Female 90+",129,593,464,283,160,342,279,217,45,171,171,187,71,129,129,168,1420,493,11,173,407,407,390,274,1185,790,862,652,492,75,492,323,734,71,197,150,79,48,48,454,161,5998,279,65,65,121,244,172,1331,924,55,41,11,190]
[null,"Male 0-4",null,null,null,null,null,null,null,null,null,null,null,null,null,null,null,null,null,null,null,null,null,null,null,null,null,null,null,null,null,null,null,null,null,null,null,null,null,null,null,null,null,null,null,null,null,null,null,null,null,null,null,null,null,191]
[null,"Male 5-9",null,null,null,null,null,null,null,null,null,null,null,null,null,null,null,null,null,null,null,null,null,null,null,null,null,null,null,null,null,null,null,null,null,null,null,null,null,null,null,null,null,null,null,null,null,null,null,null,null,null,null,null,null,192]
[null,"Male 10-15",null,null,null,null,null,null,null,null,null,null,null,null,null,null,null,null,null,null,null,null,null,null,null,null,null,null,null,null,null,null,null,null,null,null,null,null,null,null,null,null,null,null,null,null,null,null,null,null,null,null,null,null,null,193]
[null,"Male 16-19",864,3036,2172,703,506,1224,850,887,230,530,530,764,360,450,741,351,5165,1255,35,817,1393,1393,1704,1295,6138,3869,3424,2351,1845,396,1845,2714,2922,275,833,516,1150,247,247,1628,709,24732,850,374,374,348,1564,657,4488,3095,223,651,35,194]
[null,"Male 20-24",2141,4587,2446,841,566,1330,880,1289,301,642,642,1669,402,597,931,359,7703,2963,47,956,1822,1822,2245,4227,10081,5633,6841,2612,2046,415,2046,3240,5001,299,1046,586,1511,259,259,1717,915,35228,880,449,449,342,1729,988,6049,4227,328,808,47,195]
[null,"Male 25-29",2425,4870,2445,698,460,1183,705,923,250,607,607,1097,396,471,656,379,8535,4394,25,783,1592,1592,1706,4060,9419,5814,6535,2476,2016,329,2016,2884,6238,329,944,447,1294,253,253,1446,969,33718,705,459,459,340,1590,673,4833,3241,327,859,25,196]
[null,"Male 30-34",1793,4435,2642,681,400,1120,711,862,311,641,641,696,421,426,691,297,8655,4162,23,811,1593,1593,1673,3364,8697,5396,5455,2509,2109,350,2109,3242,6351,386,961,379,1407,253,253,1593,763,32346,711,409,409,320,1835,551,4563,2970,255,1112,23,197]
[null,"Male 35-39",1410,4392,2982,650,500,1313,843,1016,315,547,547,567,468,424,839,355,8327,3277,50,937,1744,1744,1953,2491,8318,5349,4664,2650,2150,338,2150,3654,5740,473,957,472,1527,241,241,1602,833,32021,843,454,454,373,2127,701,4563,2819,223,1151,50,198]
[null,"Male 40-44",1182,4472,3290,768,626,1567,1096,1129,340,713,713,578,556,506,1115,431,8523,2736,55,1029,1858,1858,2158,2165,8703,5637,4733,2996,2370,409,2370,3970,5569,453,1165,599,1714,308,308,1791,917,34348,1096,551,551,412,2256,789,4995,3137,305,1265,55,199]
[null,"Male 45-49",1108,4649,3541,985,767,1992,1507,1411,427,944,944,692,628,668,1232,447,9571,2552,72,1240,2496,2496,2651,2237,10048,6126,5484,3583,2816,566,2816,4564,5568,471,1477,782,1991,406,406,2238,1135,39846,1507,538,538,582,2573,984,6411,3915,431,1313,72,200]
[null,"Male 50-54",1144,4977,3833,1168,865,2145,1729,1457,400,1119,1119,765,662,716,1335,559,9927,2528,56,1183,2559,2559,2640,2180,10501,6471,5827,3900,3035,645,3035,4674,5639,485,1494,887,2030,442,442,2532,1256,42258,1729,592,592,596,2644,1057,7024,4465,471,1291,56,201]
[null,"Male 55-59",1038,4504,3466,1025,803,2055,1594,1286,335,1032,1032,828,629,765,1249,420,9120,2326,52,1095,2389,2389,2381,1892,9235,5816,5354,3697,2894,566,2894,3881,5137,464,1312,830,1589,390,390,2322,1225,38483,1594,530,530,596,2292,951,6564,4175,486,1098,52,202]
[null,"Male 60-64",999,4067,3068,1028,788,1873,1526,1018,257,1046,1046,623,584,688,957,435,7736,2022,45,849,2043,2043,1867,1603,7844,5335,4598,3435,2647,474,2647,3246,4167,392,1268,767,1323,361,361,2142,1002,33820,1526,485,485,522,1923,761,5836,3793,396,796,45,203]
[null,"Male 65-69",920,4039,3119,1056,822,1882,1618,974,265,1053,1053,585,538,687,936,388,7692,1704,52,891,2202,2202,1865,1386,7242,5241,4231,3458,2636,403,2636,3011,3872,430,1202,837,1159,352,352,2162,944,33114,1618,474,474,507,1852,709,6005,3803,423,802,52,204]
[null,"Male 70-74",663,2714,2051,866,675,1555,1242,803,207,826,826,410,439,479,744,277,5750,1199,42,643,1652,1652,1446,896,4974,3647,2962,2680,2005,307,2005,2012,2856,353,933,678,793,277,277,1580,720,24360,1242,307,307,438,1219,596,4508,2856,283,560,42,205]
[null,"Male 75-79",448,1947,1499,681,453,1024,911,527,128,609,609,317,253,373,491,207,4096,953,22,475,1142,1142,1002,699,3473,2624,2183,1770,1317,221,1317,1290,2043,207,677,461,506,224,224,1216,494,17285,911,227,227,310,784,399,3356,2214,189,392,22,206]
[null,"Male 80-84",305,1272,967,409,307,702,594,362,92,456,456,278,156,270,327,157,2720,696,21,341,720,720,703,501,2361,1719,1523,1230,923,133,923,838,1406,158,447,309,302,126,126,855,307,11713,594,133,133,237,536,270,2262,1542,155,225,21,207]
[null,"Male 85-89",141,684,543,250,140,324,344,200,42,229,229,152,63,144,197,76,1510,429,12,171,360,360,371,256,1204,898,792,639,499,77,499,412,806,70,214,153,129,68,68,466,180,6184,344,61,61,108,283,158,1228,868,59,110,12,208]
[null,"Male 90+",41,270,229,95,70,140,123,76,16,86,86,83,33,62,62,49,596,211,2,70,159,159,146,104,498,368,345,278,208,29,208,153,314,18,98,50,54,33,33,194,76,2544,123,25,25,57,99,60,531,372,25,23,2,209]
["SIMD Q5 (least deprived)","Female 0-4",null,null,null,null,null,null,null,null,null,null,null,null,null,null,null,null,null,null,null,null,null,null,null,null,null,null,null,null,null,null,null,null,null,null,null,null,null,null,null,null,null,null,null,null,null,null,null,null,null,null,null,null,null,210]
[null,"Female 5-9",null,null,null,null,null,null,null,null,null,null,null,null,null,null,null,null,null,null,null,null,null,null,null,null,null,null,null,null,null,null,null,null,null,null,null,null,null,null,null,null,null,null,null,null,null,null,null,null,null,null,null,null,null,211]
[null,"Female 10-15",null,null,null,null,null,null,null,null,null,null,null,null,null,null,null,null,null,null,null,null,null,null,null,null,null,null,null,null,null,null,null,null,null,null,null,null,null,null,null,null,null,null,null,null,null,null,null,null,null,null,null,null,null,212]
[null,"Female 16-19",2038,3913,1875,459,134,1062,210,1237,163,259,259,632,318,1321,357,1309,8569,4607,0,677,2298,2298,1914,1490,6939,4329,5165,575,441,195,441,1774,6061,283,416,256,787,26,26,504,748,25268,210,0,0,488,987,1074,3893,1595,102,814,0,213]
[null,"Female 20-24",3592,5647,2055,424,184,1035,203,1289,146,308,308,776,318,1390,358,1374,16115,10278,0,801,4167,4167,2090,3864,9888,6082,7874,676,492,245,492,2014,11745,349,435,249,859,44,44,575,883,38013,203,0,0,468,1155,1143,5942,1775,118,760,0,214]
[null,"Female 25-29",4021,6104,2083,402,146,869,158,797,106,354,354,639,341,1057,364,1126,12373,8825,0,770,1932,1932,1567,3427,8261,6570,6581,750,604,171,604,1680,10283,349,466,182,735,54,54,532,732,32371,158,0,0,346,945,691,3505,1573,68,745,0,215]
[null,"Female 30-34",3440,6402,2962,492,112,1021,279,679,141,354,354,619,394,1128,422,1114,11249,7206,0,1035,2038,2038,1714,2563,7796,6912,5816,770,658,179,658,1980,8932,426,510,263,864,39,39,667,750,31633,279,0,0,364,1116,538,3816,1778,82,878,0,216]
[null,"Female 35-39",3070,6292,3222,575,168,1233,311,828,194,348,348,572,404,1618,550,1719,11648,6969,0,1079,2293,2293,1907,2021,9082,6699,6649,866,698,232,698,2433,9044,477,407,316,1036,59,59,687,934,33676,311,0,0,513,1397,634,4127,1834,125,1048,0,217]
[null,"Female 40-44",2829,6257,3428,709,194,1572,481,1053,250,376,376,672,528,1879,639,1941,12203,6642,0,1314,2634,2634,2367,1882,9910,6794,7193,1000,806,303,806,2717,9088,494,537,405,1115,43,43,862,1065,36508,481,0,0,639,1602,803,4877,2243,123,1313,0,218]
[null,"Female 45-49",3012,6692,3680,815,264,1996,493,1369,295,502,502,854,605,2263,781,2276,13387,7082,0,1415,2891,2891,2784,2125,11893,7308,8616,1146,882,394,882,3277,10003,562,616,537,1435,75,75,1025,1377,41785,493,0,0,854,1842,1074,5585,2694,181,1578,0,219]
[null,"Female 50-54",3209,6762,3553,836,276,2055,444,1343,314,604,604,909,578,2470,734,2279,13203,7211,0,1302,2803,2803,2645,2159,12434,7340,9001,1205,929,399,929,3433,9956,530,578,519,1412,67,67,1130,1489,42428,444,0,0,958,2021,1029,5678,2875,205,1481,0,220]
[null,"Female 55-59",2966,5963,2997,778,298,2136,392,1171,266,535,535,901,560,2227,618,2036,11974,6741,0,1070,2593,2593,2241,1943,11077,6463,8061,1107,809,348,809,3016,8989,498,500,534,1233,53,53,1049,1337,38314,392,0,0,1042,1783,905,5321,2728,170,1132,0,221]
[null,"Female 60-64",2338,5110,2772,726,219,1993,363,1106,309,515,515,672,502,1995,540,1767,10432,5738,0,892,2404,2404,1998,1707,9653,5615,7121,997,778,400,778,2532,7665,430,505,472,968,56,56,987,1118,33644,363,0,0,1019,1564,797,4789,2385,134,957,0,222]
[null,"Female 65-69",2257,4775,2518,888,253,2156,400,1180,304,487,487,769,510,2027,588,1704,10838,5936,0,865,2683,2683,2045,1418,9049,5295,6755,1022,769,405,769,2294,7755,415,520,528,868,51,51,1166,1106,33766,400,0,0,1118,1426,876,5506,2823,95,816,0,223]
[null,"Female 70-74",1737,3551,1814,639,208,1661,303,909,208,469,469,618,350,1696,496,1467,8114,4419,0,612,2020,2020,1521,849,6886,4003,5212,821,613,322,613,1674,5791,298,452,411,577,45,45,945,831,25722,303,0,0,900,1097,701,4222,2202,47,578,0,224]
[null,"Female 75-79",1503,2860,1357,497,146,1248,265,748,164,359,359,503,242,1532,389,1122,6433,3743,0,453,1429,1429,1201,742,5457,3182,4221,606,460,255,460,1236,4739,229,322,298,432,23,23,781,537,20290,265,0,0,708,804,584,3210,1781,33,378,0,225]
[null,"Female 80-84",1173,2191,1018,392,122,932,159,514,103,290,290,404,194,1130,277,933,5039,3157,0,298,1053,1053,812,631,4169,2456,3283,517,395,186,395,886,3827,154,265,234,275,27,27,602,381,15640,159,0,0,504,611,411,2451,1398,22,239,0,226]
[null,"Female 85-89",860,1506,646,253,70,553,84,288,45,156,156,263,118,659,182,648,3357,2204,0,161,652,652,449,423,2555,1666,2092,310,240,132,240,463,2621,63,160,133,123,14,14,388,220,9964,84,0,0,302,340,243,1556,904,10,172,0,227]
[null,"Female 90+",524,939,415,129,44,360,69,162,18,91,91,117,53,390,114,356,2136,1368,0,123,432,432,285,276,1452,1042,1218,174,130,90,130,234,1635,46,103,73,66,7,7,264,99,6057,69,0,0,234,168,144,942,510,7,107,0,228]
[null,"Male 0-4",null,null,null,null,null,null,null,null,null,null,null,null,null,null,null,null,null,null,null,null,null,null,null,null,null,null,null,null,null,null,null,null,null,null,null,null,null,null,null,null,null,null,null,null,null,null,null,null,null,null,null,null,null,229]
[null,"Male 5-9",null,null,null,null,null,null,null,null,null,null,null,null,null,null,null,null,null,null,null,null,null,null,null,null,null,null,null,null,null,null,null,null,null,null,null,null,null,null,null,null,null,null,null,null,null,null,null,null,null,null,null,null,null,230]
[null,"Male 10-15",null,null,null,null,null,null,null,null,null,null,null,null,null,null,null,null,null,null,null,null,null,null,null,null,null,null,null,null,null,null,null,null,null,null,null,null,null,null,null,null,null,null,null,null,null,null,null,null,null,null,null,null,null,231]
[null,"Male 16-19",1833,4038,2205,503,336,1155,292,1196,157,285,285,636,336,1458,356,1497,8997,4948,0,708,2180,2180,1904,1316,7345,4642,5415,834,498,205,498,1930,6525,350,604,313,823,30,30,576,831,26907,292,0,0,506,1107,1039,3895,1715,108,871,0,232]
[null,"Male 20-24",3051,5432,2381,525,890,1262,240,1355,164,313,313,807,381,1732,452,1641,14630,9034,0,832,3576,3576,2187,3142,10042,6219,7802,1372,482,187,482,2240,10814,393,787,330,925,47,47,665,963,38069,240,0,0,551,1315,1191,5573,1997,137,935,0,233]
[null,"Male 25-29",4459,6747,2288,411,696,881,166,708,115,261,261,750,306,1401,343,1150,12554,8854,0,817,1992,1992,1525,3333,8671,7461,6928,1187,491,198,491,1743,10396,376,714,212,779,45,45,534,754,34280,166,0,0,363,964,593,3687,1695,92,823,0,234]
[null,"Male 30-34",3859,6532,2673,463,328,796,185,585,118,302,302,517,328,1183,373,937,10672,7034,0,972,1945,1945,1557,2602,7297,7089,5667,862,534,189,534,1630,8542,382,557,197,690,41,41,568,672,30164,185,0,0,271,940,467,3493,1548,84,753,0,235]
[null,"Male 35-39",3262,6354,3092,503,296,1088,270,723,150,323,323,563,384,1406,450,1414,10842,6629,0,1065,2116,2116,1788,2207,8261,6825,6103,1003,707,187,707,2158,8456,431,471,281,916,61,61,658,802,31915,270,0,0,423,1242,573,3840,1724,87,946,0,236]
[null,"Male 40-44",2959,6397,3438,654,343,1420,375,1012,212,351,351,566,482,1735,611,1726,11821,6553,0,1215,2580,2580,2227,1994,9301,6974,6734,1037,694,245,694,2567,8866,474,577,352,1075,46,46,716,940,35113,375,0,0,586,1492,800,4516,1936,94,1228,0,237]
[null,"Male 45-49",2985,6569,3584,722,290,1753,501,1297,301,474,474,783,581,2049,677,1989,12932,6865,0,1318,2835,2835,2615,2065,10760,7236,7764,1145,855,289,855,2996,9596,580,667,473,1245,68,68,871,1207,39359,501,0,0,699,1751,996,5211,2376,165,1474,0,238]
[null,"Male 50-54",3049,6537,3488,851,318,1910,414,1250,289,552,552,773,531,2287,781,1943,12608,6804,0,1280,2656,2656,2530,2031,11368,7129,8236,1170,852,428,852,3132,9538,535,592,525,1345,63,63,1090,1371,40044,414,0,0,854,1787,961,5370,2714,176,1418,0,239]
[null,"Male 55-59",2865,5865,3000,736,275,1940,349,1065,241,495,495,815,541,2085,594,1958,11446,6275,0,1060,2549,2549,2125,1782,10493,6358,7647,1047,772,382,772,2846,8548,468,493,464,1166,73,73,894,1299,36422,349,0,0,935,1680,824,4994,2445,141,1211,0,240]
[null,"Male 60-64",2539,5286,2747,683,227,1821,368,1012,269,471,471,663,469,1843,502,1657,9755,5398,0,863,2194,2194,1875,1586,9088,5754,6602,940,713,317,713,2486,7193,394,468,474,967,54,54,897,1060,32001,368,0,0,878,1519,743,4437,2243,139,899,0,241]
[null,"Male 65-69",2245,4804,2559,815,242,2024,403,1120,305,512,512,657,492,1842,508,1491,9962,5381,0,838,2421,2421,1958,1408,8382,5273,6226,989,747,351,747,2156,7138,426,469,505,842,63,63,1053,1037,31688,403,0,0,1027,1314,815,4946,2525,97,823,0,242]
[null,"Male 70-74",1467,3173,1706,604,202,1531,260,762,197,365,365,513,320,1463,425,1142,7147,3753,0,550,1899,1899,1312,842,6066,3547,4552,731,529,297,529,1514,4988,284,374,386,505,41,41,806,759,22663,260,0,0,825,1009,565,3822,1923,49,526,0,243]
[null,"Male 75-79",1112,2328,1216,397,126,1065,177,612,121,311,311,422,216,1223,326,941,5059,2802,0,370,1204,1204,982,584,4497,2617,3464,487,361,200,361,1033,3678,182,289,251,360,22,22,616,484,16475,177,0,0,598,673,491,2639,1435,32,368,0,244]
[null,"Male 80-84",823,1612,789,330,76,764,130,426,81,203,203,327,135,911,224,686,3734,2207,0,271,872,872,697,388,3122,1806,2438,345,269,141,269,684,2732,113,194,190,196,16,16,479,291,11823,130,0,0,439,488,345,2008,1136,21,188,0,245]
[null,"Male 85-89",454,876,422,144,52,393,80,177,34,105,105,187,75,447,101,358,1976,1228,0,110,426,426,287,190,1512,995,1210,193,141,67,141,302,1470,56,119,91,87,10,10,265,142,6067,80,0,0,227,215,143,1022,596,6,85,0,246]
[null,"Male 90+",222,413,191,52,14,191,23,72,9,44,44,61,30,190,63,149,932,594,0,50,182,182,122,100,634,460,521,70,56,42,56,113,727,24,47,42,40,4,4,108,38,2678,23,0,0,119,73,63,403,221,2,46,0,247]

{"sheet":"Lists","index":9,"n_rows":85,"n_cols":12,"rows_kept":85,"cut":false,"hidden":true,"merged":[]}
["AREA LOOK-UP",null,null,"AREA name","Equivalent to",null,"AREA CODE LOOK-UP",null,"INTERVENTIONS",null,"TARGETING OPTIONS"]
[1,"Scotland",null,"Aberdeen City IJB","Aberdeen City Local Authority",null,"Scotland","S00000001",1,"Pedometer-based interventions",1,"Even distribution"]
[2,"Ayrshire & Arran Health Board",null,"Aberdeen City Local Authority","Aberdeen City Local Authority",null,"Ayrshire & Arran Health Board","S08000015",2,"Physical activity brief intervention",2,"Targeting to SIMD Q1"]
[3,"Borders Health Board",null,"Aberdeen City Region Deal","Aberdeen City Region Deal",null,"Borders Health Board","S08000016",null,null,3,"Targeting to SIMD Q1 & Q2"]
[4,"Dumfries & Galloway Health Board",null,"Aberdeenshire IJB","Aberdeenshire Local Authority",null,"Dumfries & Galloway Health Board","S08000017",null,null,4,"Proportionate to need"]
[5,"Fife Health Board",null,"Aberdeenshire Local Authority","Aberdeenshire Local Authority",null,"Fife Health Board","S08000018"]
[6,"Forth Valley Health Board",null,"Angus IJB","Angus Local Authority",null,"Forth Valley Health Board","S08000019"]
[7,"Grampian Health Board",null,"Angus Local Authority","Angus Local Authority",null,"Grampian Health Board","S08000020"]
[8,"Greater Glasgow & Clyde Health Board",null,"Argyll & Bute IJB","Argyll & Bute Local Authority",null,"Greater Glasgow & Clyde Health Board","S08000021"]
[9,"Highland Health Board",null,"Argyll & Bute Local Authority","Argyll & Bute Local Authority",null,"Highland Health Board","S08000022"]
[10,"Lanarkshire Health Board",null,"Ayrshire & Arran Health Board","Ayrshire & Arran Health Board",null,"Lanarkshire Health Board","S08000023"]
[11,"Lothian Health Board",null,"Borders Health Board","Borders Health Board",null,"Lothian Health Board","S08000024"]
[12,"Orkney Health Board",null,"Clackmannanshire & Stirling IJB","Clackmannanshire & Stirling IJB",null,"Orkney Health Board","S08000025"]
[13,"Shetland Health Board",null,"Clackmannanshire Local Authority","Clackmannanshire Local Authority",null,"Shetland Health Board","S08000026"]
[14,"Tayside Health Board",null,"Dumfries & Galloway Health Board","Dumfries & Galloway Health Board",null,"Tayside Health Board","S08000027"]
[15,"Western Isles Health Board",null,"Dumfries & Galloway IJB","Dumfries & Galloway Local Authority",null,"Western Isles Health Board","S08000028"]
[16,"Aberdeen City Local Authority",null,"Dumfries & Galloway Local Authority","Dumfries & Galloway Local Authority",null,"Clackmannanshire Local Authority","S12000005"]
[17,"Aberdeenshire Local Authority",null,"Dundee City IJB","Dundee City Local Authority",null,"Dumfries & Galloway Local Authority","S12000006"]
[18,"Angus Local Authority",null,"Dundee City Local Authority","Dundee City Local Authority",null,"East Ayrshire Local Authority","S12000008"]
[19,"Argyll & Bute Local Authority",null,"East Ayrshire IJB","East Ayrshire Local Authority",null,"East Lothian Local Authority","S12000010"]
[20,"Clackmannanshire Local Authority",null,"East Ayrshire Local Authority","East Ayrshire Local Authority",null,"East Renfrewshire Local Authority","S12000011"]
[21,"Dumfries & Galloway Local Authority",null,"East Dunbartonshire IJB","East Dunbartonshire Local Authority",null,"Eilean Siar Local Authority","S12000013"]
[22,"Dundee City Local Authority",null,"East Dunbartonshire Local Authority","East Dunbartonshire Local Authority",null,"Falkirk Local Authority","S12000014"]
[23,"East Ayrshire Local Authority",null,"East Lothian IJB","East Lothian Local Authority",null,"Fife Local Authority","S12000015"]
[24,"East Dunbartonshire Local Authority",null,"East Lothian Local Authority","East Lothian Local Authority",null,"Highland Local Authority","S12000017"]
[25,"East Lothian Local Authority",null,"East Renfrewshire IJB","East Renfrewshire Local Authority",null,"Inverclyde Local Authority","S12000018"]
[26,"East Renfrewshire Local Authority",null,"East Renfrewshire Local Authority","East Renfrewshire Local Authority",null,"Midlothian Local Authority","S12000019"]
[27,"Edinburgh, City of Local Authority",null,"Edinburgh & SE Scotland City Region Deal","Edinburgh & SE Scotland City Region Deal",null,"Moray Local Authority","S12000020"]
[28,"Eilean Siar Local Authority",null,"Edinburgh, City of Local Authority","Edinburgh, City of Local Authority",null,"North Ayrshire Local Authority","S12000021"]
[29,"Falkirk Local Authority",null,"Edinburgh, City of, IJB","Edinburgh, City of Local Authority",null,"Orkney Islands Local Authority","S12000023"]
[30,"Fife Local Authority",null,"Eilean Siar IJB","Eilean Siar Local Authority",null,"Perth & Kinross Local Authority","S12000024"]
[31,"Glasgow City Local Authority",null,"Eilean Siar Local Authority","Eilean Siar Local Authority",null,"Scottish Borders Local Authority","S12000026"]
[32,"Highland Local Authority",null,"Falkirk IJB","Falkirk Local Authority",null,"Shetland Islands Local Authority","S12000027"]
[33,"Inverclyde Local Authority",null,"Falkirk Local Authority","Falkirk Local Authority",null,"South Ayrshire Local Authority","S12000028"]
[34,"Midlothian Local Authority",null,"Fife Health Board","Fife Health Board",null,"South Lanarkshire Local Authority","S12000029"]
[35,"Moray Local Authority",null,"Fife IJB","Fife Local Authority",null,"Stirling Local Authority","S12000030"]
[36,"North Ayrshire Local Authority",null,"Fife Local Authority","Fife Local Authority",null,"Aberdeen City Local Authority","S12000033"]
[37,"North Lanarkshire Local Authority",null,"Forth Valley Health Board","Forth Valley Health Board",null,"Aberdeenshire Local Authority","S12000034"]
[38,"Orkney Islands Local Authority",null,"Glasgow City IJB","Glasgow City Local Authority",null,"Argyll & Bute Local Authority","S12000035"]
[39,"Perth & Kinross Local Authority",null,"Glasgow City Local Authority","Glasgow City Local Authority",null,"Edinburgh, City of Local Authority","S12000036"]
[40,"Renfrewshire Local Authority",null,"Glasgow City Region Deal","Glasgow City Region Deal",null,"Renfrewshire Local Authority","S12000038"]
[41,"Scottish Borders Local Authority",null,"Grampian Health Board","Grampian Health Board",null,"West Dunbartonshire Local Authority","S12000039"]
[42,"Shetland Islands Local Authority",null,"Greater Glasgow & Clyde Health Board","Greater Glasgow & Clyde Health Board",null,"West Lothian Local Authority","S12000040"]
[43,"South Ayrshire Local Authority",null,"Highland Health Board","Highland Health Board",null,"Angus Local Authority","S12000041"]
[44,"South Lanarkshire Local Authority",null,"Highland Local Authority","Highland Local Authority",null,"Dundee City Local Authority","S12000042"]
[45,"Stirling Local Authority",null,"Highland Partnership","Highland Local Authority",null,"North Lanarkshire Local Authority","S12000044"]
[46,"West Dunbartonshire Local Authority",null,"Inverclyde IJB","Inverclyde Local Authority",null,"East Dunbartonshire Local Authority","S12000045"]
[47,"West Lothian Local Authority",null,"Inverclyde Local Authority","Inverclyde Local Authority",null,"Glasgow City Local Authority","S12000046"]
[48,"Aberdeen City Region Deal",null,"Inverness & Highland City Region Deal","Inverness & Highland City Region Deal"]
[49,"Edinburgh & SE Scotland City Region Deal",null,"Lanarkshire Health Board","Lanarkshire Health Board"]
[50,"Glasgow City Region Deal",null,"Lothian Health Board","Lothian Health Board"]
[51,"Inverness & Highland City Region Deal",null,"Midlothian IJB","Midlothian Local Authority"]
[52,"Stirling & Clackmannanshire City Region Deal",null,"Midlothian Local Authority","Midlothian Local Authority"]
[53,"Tay Cities Region Deal ",null,"Moray IJB","Moray Local Authority"]
[54,"Aberdeen City IJB",null,"Moray Local Authority","Moray Local Authority"]
[55,"Aberdeenshire IJB",null,"North Ayrshire IJB","North Ayrshire Local Authority"]
[56,"Angus IJB",null,"North Ayrshire Local Authority","North Ayrshire Local Authority"]
[57,"Argyll & Bute IJB",null,"North Lanarkshire IJB","North Lanarkshire Local Authority"]
[58,"Clackmannanshire & Stirling IJB",null,"North Lanarkshire Local Authority","North Lanarkshire Local Authority"]
[59,"Dumfries & Galloway IJB",null,"Orkney Health Board","Orkney Health Board"]
[60,"Dundee City IJB",null,"Orkney Islands IJB","Orkney Islands Local Authority"]
[61,"East Ayrshire IJB",null,"Orkney Islands Local Authority","Orkney Islands Local Authority"]
[62,"East Dunbartonshire IJB",null,"Perth & Kinross IJB","Perth & Kinross Local Authority"]
[63,"East Lothian IJB",null,"Perth & Kinross Local Authority","Perth & Kinross Local Authority"]
[64,"East Renfrewshire IJB",null,"Renfrewshire IJB","Renfrewshire Local Authority"]
[65,"Edinburgh, City of, IJB",null,"Renfrewshire Local Authority","Renfrewshire Local Authority"]
[66,"Eilean Siar IJB",null,"Scotland","Scotland"]
[67,"Falkirk IJB",null,"Scottish Borders IJB","Scottish Borders Local Authority"]
[68,"Fife IJB",null,"Scottish Borders Local Authority","Scottish Borders Local Authority"]
[69,"Glasgow City IJB",null,"Shetland Health Board","Shetland Health Board"]
[70,"Highland Partnership",null,"Shetland Islands IJB","Shetland Islands Local Authority"]
[71,"Inverclyde IJB",null,"Shetland Islands Local Authority","Shetland Islands Local Authority"]
[72,"Midlothian IJB",null,"South Ayrshire IJB","South Ayrshire Local Authority"]
[73,"Moray IJB",null,"South Ayrshire Local Authority","South Ayrshire Local Authority"]
[74,"North Ayrshire IJB",null,"South Lanarkshire IJB","South Lanarkshire Local Authority"]
[75,"North Lanarkshire IJB",null,"South Lanarkshire Local Authority","South Lanarkshire Local Authority"]
[76,"Orkney Islands IJB",null,"Stirling & Clackmannanshire City Region Deal","Clackmannanshire & Stirling IJB"]
[77,"Perth & Kinross IJB",null,"Stirling Local Authority","Stirling Local Authority"]
[78,"Renfrewshire IJB",null,"Tay Cities Region Deal ","Tay Cities Region Deal "]
[79,"Scottish Borders IJB",null,"Tayside Health Board","Tayside Health Board"]
[80,"Shetland Islands IJB",null,"West Dunbartonshire IJB","West Dunbartonshire Local Authority"]
[81,"South Ayrshire IJB",null,"West Dunbartonshire Local Authority","West Dunbartonshire Local Authority"]
[82,"South Lanarkshire IJB",null,"West Lothian IJB","West Lothian Local Authority"]
[83,"West Dunbartonshire IJB",null,"West Lothian Local Authority","West Lothian Local Authority"]
[84,"West Lothian IJB",null,"Western Isles Health Board","Western Isles Health Board"]

{"sheet":"Demographic data","index":10,"n_rows":41,"n_cols":4,"rows_kept":41,"cut":false,"hidden":true,"merged":[]}
["Demographic data"]
[]
["sub group","European Standard Population (ESP 2013)","mean age (2016)","life expectancy (2014-2016)"]
["Female 0-4",5000,2.0384009999999999,81.468401]
["Female 5-9",5500,6.9792800000000002,81.439279999999997]
["Female 10-15",6600,12.47831,81.948309999999992]
["Female 16-19",4400,17.570049999999998,81.100049999999996]
["Female 20-24",6000,22.077059999999999,81.667060000000006]
["Female 25-29",6000,26.975190000000001,81.645189999999999]
["Female 30-34",6500,31.9999,81.799899999999994]
["Female 35-39",7000,36.918120000000002,81.898120000000006]
["Female 40-44",7000,42.077440000000003,82.30744]
["Female 45-49",7000,47.025770000000001,82.585769999999997]
["Female 50-54",7000,51.990830000000003,82.980829999999997]
["Female 55-59",6500,56.953040000000001,83.473039999999997]
["Female 60-64",6000,61.947389999999999,84.167389999999997]
["Female 65-69",5500,67.063929999999999,85.193929999999995]
["Female 70-74",5000,71.938159999999996,86.248159999999999]
["Female 75-79",4000,76.942830000000001,87.812830000000005]
["Female 80-84",2500,81.856710000000007,89.736710000000002]
["Female 85-89",1500,86.730819999999994,92.220819999999989]
["Female 90+",1000,92.779340000000005,96.279340000000005]
["Male 0-4",5000,2.0320819999999999,77.402082000000007]
["Male 5-9",5500,6.9784759999999997,77.398476000000002]
["Male 10-15",6600,12.47114,77.921140000000008]
["Male 16-19",4400,17.556319999999999,77.07632000000001]
["Male 20-24",6000,22.05463,77.704629999999995]
["Male 25-29",6000,26.959759999999999,77.789760000000001]
["Male 30-34",6500,31.98152,78.061520000000002]
["Male 35-39",7000,36.926009999999998,78.336009999999987]
["Male 40-44",7000,42.067700000000002,78.907700000000006]
["Male 45-49",7000,47.038150000000002,79.418149999999997]
["Male 50-54",7000,51.998649999999998,79.988649999999993]
["Male 55-59",6500,56.950870000000002,80.660870000000003]
["Male 60-64",6000,61.942990000000002,81.612989999999996]
["Male 65-69",5500,67.054419999999993,82.954419999999999]
["Male 70-74",5000,71.891099999999994,84.341099999999997]
["Male 75-79",4000,76.907700000000006,86.357700000000008]
["Male 80-84",2500,81.797089999999997,88.627089999999995]
["Male 85-89",1500,86.630750000000006,91.420750000000012]
["Male 90+",1000,92.215479999999999,95.515479999999997]

{"sheet":"Health outcome totals 2016","index":11,"n_rows":17,"n_cols":56,"rows_kept":17,"cut":false,"hidden":true,"merged":[]}
["Health outcome totals, 2016"]
[]
[null,null,"Aberdeen City Local Authority","Aberdeen City Region Deal","Aberdeenshire Local Authority","Angus Local Authority","Argyll & Bute Local Authority","Ayrshire & Arran Health Board","Borders Health Board","Clackmannanshire & Stirling IJB","Clackmannanshire Local Authority","Dumfries & Galloway Health Board","Dumfries & Galloway Local Authority","Dundee City Local Authority","East Ayrshire Local Authority","East Dunbartonshire Local Authority","East Lothian Local Authority","East Renfrewshire Local Authority","Edinburgh & SE Scotland City Region Deal","Edinburgh, City of Local Authority","Eilean Siar Local Authority","Falkirk Local Authority","Fife Health Board","Fife Local Authority","Forth Valley Health Board","Glasgow City Local Authority","Glasgow City Region Deal","Grampian Health Board","Greater Glasgow & Clyde Health Board","Highland Health Board","Highland Local Authority","Inverclyde Local Authority","Inverness & Highland City Region Deal","Lanarkshire Health Board","Lothian Health Board","Midlothian Local Authority","Moray Local Authority","North Ayrshire Local Authority","North Lanarkshire Local Authority","Orkney Health Board","Orkney Islands Local Authority","Perth & Kinross Local Authority","Renfrewshire Local Authority","Scotland","Scottish Borders Local Authority","Shetland Health Board","Shetland Islands Local Authority","South Ayrshire Local Authority","South Lanarkshire Local Authority","Stirling Local Authority","Tay Cities Region Deal ","Tayside Health Board","West Dunbartonshire Local Authority","West Lothian Local Authority","Western Isles Health Board",1]
[null,null,"S12000033","Aber_deal","S12000034","S12000041","S12000035","S08000015","S08000016","ClacksStirIJB","S12000005","S08000017","S12000006","S12000042","S12000008","S12000045","S12000010","S12000011","EdinSE_deal","S12000036","S12000013","S12000014","S08000018","S12000015","S08000019","S12000046","GClyde_deal","S08000020","S08000021","S08000022","S12000017","S12000018","Inver_deal","S08000023","S08000024","S12000019","S12000020","S12000021","S12000044","S08000025","S12000023","S12000024","S12000038","S00000001","S12000026","S08000026","S12000027","S12000028","S12000029","S12000030","Tay_deal","S08000027","S12000039","S12000040","S08000028",2]
[null,null,null,null,null,null,null,null,null,null,null,null,null,null,null,null,null,null,null,null,null,null,null,null,null,null,null,null,null,null,null,null,null,null,null,null,null,null,null,null,null,null,null,null,null,null,null,null,null,null,null,null,null,null,null,3]
[null,"All hospital admissions (16+)",41626,84145,42519,18091,21023,90768,25209,20471,7651,34490,34490,23727,28249,28833,18105,21705,243108,77192,7253,24369,73148,73148,44840,155175,465272,101100,299797,63264,42241,21552,42241,165475,144751,16294,16955,33649,88230,4636,4636,23268,47578,1125093,25209,5276,5276,28870,77245,12820,138234,65086,24954,33160,7253,4]
[null,"All hospital admissions (SIMD Q1, 16+)",4722,5748,1026,1291,1909,30005,1818,4205,2064,3291,3291,9713,9944,1787,691,1667,41988,13947,0,4489,16974,16974,8694,88379,175909,5919,127063,5479,3570,10387,3570,48846,23196,1769,171,14603,30793,0,0,1429,14646,283718,1818,0,0,5458,18053,2141,29407,12433,10197,6789,0,5]
[null,"All hospital admissions (SIMD Q1 and Q2, 16+)",15717,21194,5477,4707,5862,52925,6550,8550,4153,13054,13054,14796,17671,7386,6437,3905,98104,26095,1759,12454,34033,34033,21004,114868,279835,24321,181891,18570,12708,13017,12708,97944,57521,8106,3127,21482,57322,758,758,4360,25069,534382,6550,189,189,13772,40622,4397,57896,23863,17646,16883,1759,6]
[null,"All deaths (16+)",2126,4486,2360,1434,1110,4492,1277,1445,546,1858,1858,1690,1454,1113,1001,883,13129,4361,359,1734,4091,4091,3179,6321,19540,5465,12443,3507,2397,1006,2397,7097,7761,848,979,1593,3569,223,223,1617,2070,56725,1277,232,232,1445,3528,899,8832,4741,1050,1551,359,7]
[null,"All deaths (SIMD Q1, 16+)",202,270,68,101,108,1512,66,296,141,153,153,703,542,54,27,76,2183,793,0,306,909,909,602,3747,7764,282,5491,286,178,495,178,2273,1208,86,12,699,1432,0,0,79,684,13665,66,0,0,271,841,155,1792,883,435,302,0,8]
[null,"All deaths (SIMD Q1 and Q2, 16+)",759,1068,309,366,335,2716,302,581,291,699,699,1072,985,270,354,152,5276,1482,88,941,1903,1903,1522,4890,12279,1233,7808,1019,684,593,684,4471,3071,440,165,1017,2551,35,35,252,1137,26567,302,10,10,714,1920,290,3593,1690,766,795,88,9]
[null,"Premature deaths (16+)",811,1608,797,476,393,1746,418,519,224,616,616,687,565,356,362,248,4764,1514,133,665,1511,1511,1184,2759,7841,1940,4946,1277,884,382,884,2895,2835,327,332,659,1546,66,66,520,784,21313,418,63,63,522,1349,295,3194,1683,417,632,133,10]
[null,"Premature deaths (SIMD Q1, 16+)",107,137,30,43,47,690,33,124,56,77,77,368,228,26,18,35,1042,380,0,144,431,431,268,1758,3631,142,2540,142,95,222,95,1091,578,43,5,329,672,0,0,40,308,6443,33,0,0,133,419,68,882,451,191,137,0,11]
[null,"Premature deaths (SIMD Q1 and Q2, 16+)",364,493,129,150,141,1182,114,247,124,288,288,516,405,100,145,71,2222,649,42,398,801,801,645,2232,5428,569,3464,449,308,273,308,1964,1307,173,76,469,1151,10,10,112,460,11618,114,5,5,308,813,123,1579,778,328,340,42,12]
[null,"Years of Life Lost (16+)",27478.849984764998,54444.2399408817,26965.3899561166,16090.8199598789,12686.9499692916,56848.409873366298,13994.529939413,17303.359948515801,7163.6299738883899,21118.8499506712,21118.8499506712,23122.199981927799,17993.719950675899,12374.2699501514,12200.3899704217,9172.4499734640103,160653.58962154301,53280.459909200603,4023.4899880886001,22452.289941430001,50451.919886112199,50451.919886112199,39755.649889945897,89197.719813108401,256885.999366998,65559.529895305604,162663.369581103,41357.789903044701,28670.839933752999,12320.2399550676,28670.839933752999,94222.629785895304,96207.1397960186,10264.6499630212,11115.289954423901,21125.3999617099,49180.329858660698,2374.0299997329698,2374.0299997329698,18424.4199427366,25842.089928984598,708624.04837918223,13994.529939413,2409.2700059413901,2409.2700059413901,17729.289960980401,45042.299927234599,10139.7299746275,108089.35977065501,57637.439884543397,13756.599960327099,20461.639953374801,4023.4899880886001,13]
[null,"Years of Life Lost (SIMD Q1, 16+)",3295.92993164062,4366.02978515625,1070.09997558593,1397.83996582031,1470.84997558593,22073.8203125,964.219970703125,4154.080078125,1917.78002929687,2255.6298828125,2255.6298828125,11311.849609375,7246.14013671875,801.34997558593705,506.52999877929602,1143.19995117187,33291.8515625,12423.990234375,0,4594.18994140625,13844.83984375,13844.83984375,8748.26953125,55460.6796875,114187.4921875,4533.0498046875,80170.8125,4432.89990234375,2962.05004882812,6832.72021484375,2962.05004882812,34016.6796875,18482.7890625,1343.33996582031,167.02000427246,10474.1796875,20828.01953125,0,0,1313.01000976562,9733.16015625,203545.71069335938,964.219970703125,0,0,4353.5,13188.66015625,2236.30004882812,27867.5390625,14022.7001953125,6199.7001953125,4208.93017578125,0,14]
[null,"Years of Life Lost (SIMD Q1 and Q2, 16+)",11539.6896972656,15803.310058593701,4263.6199951171802,4814.6199951171802,4330.8499755859302,37723.6103515625,3783.65991210937,8139.5300292968705,4124.93994140625,9004.40966796875,9004.40966796875,16525.039550781199,12834.580078125,3274.6199951171802,4628.5700378417896,2192.68994140625,71927.140625,21426.830078125,1201.05004882812,13288.649902343701,25972.349609375,25972.349609375,21428.1796875,71527.9296875,173737.29296875,18071.849609375,110859.11328125,13808.199707031201,9477.3498535156195,8312.5902099609302,9477.3498535156195,62878.1796875,42171.12890625,5422.7598876953098,2268.54002380371,14767.939453125,36228.279296875,369.36999511718699,369.36999511718699,3594.6298828125,14987.880371093701,372328.97050476068,3783.65991210937,123.58000183105401,123.58000183105401,10121.08984375,26649.900390625,4014.59008789062,50906.638671875,24934.2900390625,10563.400390625,10692.970214843701,1201.05004882812,15]

{"sheet":"Prevalence Rates","index":12,"n_rows":254,"n_cols":56,"rows_kept":254,"cut":false,"hidden":true,"merged":[]}
["Prevalence of physical inactivity (i.e. not meeting the 2011 physical activity guidelines)"]
[]
["SIMD","group","Aberdeen City Local Authority","Aberdeen City Region Deal","Aberdeenshire Local Authority","Angus Local Authority","Argyll & Bute Local Authority","Ayrshire & Arran Health Board","Borders Health Board","Clackmannanshire & Stirling IJB","Clackmannanshire Local Authority","Dumfries & Galloway Health Board","Dumfries & Galloway Local Authority","Dundee City Local Authority","East Ayrshire Local Authority","East Dunbartonshire Local Authority","East Lothian Local Authority","East Renfrewshire Local Authority","Edinburgh & SE Scotland City Region Deal","Edinburgh, City of Local Authority","Eilean Siar Local Authority","Falkirk Local Authority","Fife Health Board","Fife Local Authority","Forth Valley Health Board","Glasgow City Local Authority","Glasgow City Region Deal","Grampian Health Board","Greater Glasgow & Clyde Health Board","Highland Health Board","Highland Local Authority","Inverclyde Local Authority","Inverness & Highland City Region Deal","Lanarkshire Health Board","Lothian Health Board","Midlothian Local Authority","Moray Local Authority","North Ayrshire Local Authority","North Lanarkshire Local Authority","Orkney Health Board","Orkney Islands Local Authority","Perth & Kinross Local Authority","Renfrewshire Local Authority","Scotland","Scottish Borders Local Authority","Shetland Health Board","Shetland Islands Local Authority","South Ayrshire Local Authority","South Lanarkshire Local Authority","Stirling Local Authority","Tay Cities Region Deal ","Tayside Health Board","West Dunbartonshire Local Authority","West Lothian Local Authority","Western Isles Health Board",1]
[null,null,null,null,null,null,null,null,null,null,null,null,null,null,null,null,null,null,null,null,null,null,null,null,null,null,null,null,null,null,null,null,null,null,null,null,null,null,null,null,null,null,null,null,null,null,null,null,null,null,null,null,null,null,null,2]
["All quintiles","16+ Males and Females",null,null,null,null,null,null,null,null,null,null,null,null,null,null,null,null,null,null,null,null,null,null,null,null,null,null,null,null,null,null,null,null,null,null,null,null,null,null,null,null,null,null,null,null,null,null,null,null,null,null,null,null,null,3]
["Q1 and Q2","16+ Males and Females",null,null,null,null,null,null,null,null,null,null,null,null,null,null,null,null,null,null,null,null,null,null,null,null,null,null,null,null,null,null,null,null,null,null,null,null,null,null,null,null,null,null,null,null,null,null,null,null,null,null,null,null,null,4]
["SIMD Q1 (most deprived)","16+ Males and Females",null,null,null,null,null,null,null,null,null,null,null,null,null,null,null,null,null,null,null,null,null,null,null,null,null,null,null,null,null,null,null,null,null,null,null,null,null,null,null,null,null,null,null,null,null,null,null,null,null,null,null,null,null,5]
["SIMD Q2",null,null,null,null,null,null,null,null,null,null,null,null,null,null,null,null,null,null,null,null,null,null,null,null,null,null,null,null,null,null,null,null,null,null,null,null,null,null,null,null,null,null,null,null,null,null,null,null,null,null,null,null,null,null,6]
["SIMD Q3",null,null,null,null,null,null,null,null,null,null,null,null,null,null,null,null,null,null,null,null,null,null,null,null,null,null,null,null,null,null,null,null,null,null,null,null,null,null,null,null,null,null,null,null,null,null,null,null,null,null,null,null,null,null,7]
["SIMD Q4",null,null,null,null,null,null,null,null,null,null,null,null,null,null,null,null,null,null,null,null,null,null,null,null,null,null,null,null,null,null,null,null,null,null,null,null,null,null,null,null,null,null,null,null,null,null,null,null,null,null,null,null,null,null,8]
["SIMD Q5 (least deprived)",null,null,null,null,null,null,null,null,null,null,null,null,null,null,null,null,null,null,null,null,null,null,null,null,null,null,null,null,null,null,null,null,null,null,null,null,null,null,null,null,null,null,null,null,null,null,null,null,null,null,null,null,null,null,9]
["SIMD Q1 (most deprived)","16+ Females",null,null,null,null,null,null,null,null,null,null,null,null,null,null,null,null,null,null,null,null,null,null,null,null,null,null,null,null,null,null,null,null,null,null,null,null,null,null,null,null,null,null,null,null,null,null,null,null,null,null,null,null,null,10]
["SIMD Q2",null,null,null,null,null,null,null,null,null,null,null,null,null,null,null,null,null,null,null,null,null,null,null,null,null,null,null,null,null,null,null,null,null,null,null,null,null,null,null,null,null,null,null,null,null,null,null,null,null,null,null,null,null,null,11]
["SIMD Q3",null,null,null,null,null,null,null,null,null,null,null,null,null,null,null,null,null,null,null,null,null,null,null,null,null,null,null,null,null,null,null,null,null,null,null,null,null,null,null,null,null,null,null,null,null,null,null,null,null,null,null,null,null,null,12]
["SIMD Q4",null,null,null,null,null,null,null,null,null,null,null,null,null,null,null,null,null,null,null,null,null,null,null,null,null,null,null,null,null,null,null,null,null,null,null,null,null,null,null,null,null,null,null,null,null,null,null,null,null,null,null,null,null,null,13]
["SIMD Q5 (least deprived)",null,null,null,null,null,null,null,null,null,null,null,null,null,null,null,null,null,null,null,null,null,null,null,null,null,null,null,null,null,null,null,null,null,null,null,null,null,null,null,null,null,null,null,null,null,null,null,null,null,null,null,null,null,null,14]
["SIMD Q1 (most deprived)","16+ Males",null,null,null,null,null,null,null,null,null,null,null,null,null,null,null,null,null,null,null,null,null,null,null,null,null,null,null,null,null,null,null,null,null,null,null,null,null,null,null,null,null,null,null,null,null,null,null,null,null,null,null,null,null,15]
["SIMD Q2",null,null,null,null,null,null,null,null,null,null,null,null,null,null,null,null,null,null,null,null,null,null,null,null,null,null,null,null,null,null,null,null,null,null,null,null,null,null,null,null,null,null,null,null,null,null,null,null,null,null,null,null,null,null,16]
["SIMD Q3",null,null,null,null,null,null,null,null,null,null,null,null,null,null,null,null,null,null,null,null,null,null,null,null,null,null,null,null,null,null,null,null,null,null,null,null,null,null,null,null,null,null,null,null,null,null,null,null,null,null,null,null,null,null,17]
["SIMD Q4",null,null,null,null,null,null,null,null,null,null,null,null,null,null,null,null,null,null,null,null,null,null,null,null,null,null,null,null,null,null,null,null,null,null,null,null,null,null,null,null,null,null,null,null,null,null,null,null,null,null,null,null,null,null,18]
["SIMD Q5 (least deprived)",null,null,null,null,null,null,null,null,null,null,null,null,null,null,null,null,null,null,null,null,null,null,null,null,null,null,null,null,null,null,null,null,null,null,null,null,null,null,null,null,null,null,null,null,null,null,null,null,null,null,null,null,null,null,19]
["All quintiles","Female 0-4",null,null,null,null,null,null,null,null,null,null,null,null,null,null,null,null,null,null,null,null,null,null,null,null,null,null,null,null,null,null,null,null,null,null,null,null,null,null,null,null,null,null,null,null,null,null,null,null,null,null,null,null,null,20]
[null,"Female 5-9",null,null,null,null,null,null,null,null,null,null,null,null,null,null,null,null,null,null,null,null,null,null,null,null,null,null,null,null,null,null,null,null,null,null,null,null,null,null,null,null,null,null,null,null,null,null,null,null,null,null,null,null,null,21]
[null,"Female 10-15",null,null,null,null,null,null,null,null,null,null,null,null,null,null,null,null,null,null,null,null,null,null,null,null,null,null,null,null,null,null,null,null,null,null,null,null,null,null,null,null,null,null,null,null,null,null,null,null,null,null,null,null,null,22]
[null,"Female 16-19",null,null,null,null,null,null,null,null,null,null,null,null,null,null,null,null,null,null,null,null,null,null,null,null,null,null,null,null,null,null,null,null,null,null,null,null,null,null,null,null,null,null,null,null,null,null,null,null,null,null,null,null,null,23]
[null,"Female 20-24",null,null,null,null,null,null,null,null,null,null,null,null,null,null,null,null,null,null,null,null,null,null,null,null,null,null,null,null,null,null,null,null,null,null,null,null,null,null,null,null,null,null,null,null,null,null,null,null,null,null,null,null,null,24]
[null,"Female 25-29",null,null,null,null,null,null,null,null,null,null,null,null,null,null,null,null,null,null,null,null,null,null,null,null,null,null,null,null,null,null,null,null,null,null,null,null,null,null,null,null,null,null,null,null,null,null,null,null,null,null,null,null,null,25]
[null,"Female 30-34",null,null,null,null,null,null,null,null,null,null,null,null,null,null,null,null,null,null,null,null,null,null,null,null,null,null,null,null,null,null,null,null,null,null,null,null,null,null,null,null,null,null,null,null,null,null,null,null,null,null,null,null,null,26]
[null,"Female 35-39",null,null,null,null,null,null,null,null,null,null,null,null,null,null,null,null,null,null,null,null,null,null,null,null,null,null,null,null,null,null,null,null,null,null,null,null,null,null,null,null,null,null,null,null,null,null,null,null,null,null,null,null,null,27]
[null,"Female 40-44",null,null,null,null,null,null,null,null,null,null,null,null,null,null,null,null,null,null,null,null,null,null,null,null,null,null,null,null,null,null,null,null,null,null,null,null,null,null,null,null,null,null,null,null,null,null,null,null,null,null,null,null,null,28]
[null,"Female 45-49",null,null,null,null,null,null,null,null,null,null,null,null,null,null,null,null,null,null,null,null,null,null,null,null,null,null,null,null,null,null,null,null,null,null,null,null,null,null,null,null,null,null,null,null,null,null,null,null,null,null,null,null,null,29]
[null,"Female 50-54",null,null,null,null,null,null,null,null,null,null,null,null,null,null,null,null,null,null,null,null,null,null,null,null,null,null,null,null,null,null,null,null,null,null,null,null,null,null,null,null,null,null,null,null,null,null,null,null,null,null,null,null,null,30]
[null,"Female 55-59",null,null,null,null,null,null,null,null,null,null,null,null,null,null,null,null,null,null,null,null,null,null,null,null,null,null,null,null,null,null,null,null,null,null,null,null,null,null,null,null,null,null,null,null,null,null,null,null,null,null,null,null,null,31]
[null,"Female 60-64",null,null,null,null,null,null,null,null,null,null,null,null,null,null,null,null,null,null,null,null,null,null,null,null,null,null,null,null,null,null,null,null,null,null,null,null,null,null,null,null,null,null,null,null,null,null,null,null,null,null,null,null,null,32]
[null,"Female 65-69",null,null,null,null,null,null,null,null,null,null,null,null,null,null,null,null,null,null,null,null,null,null,null,null,null,null,null,null,null,null,null,null,null,null,null,null,null,null,null,null,null,null,null,null,null,null,null,null,null,null,null,null,null,33]
[null,"Female 70-74",null,null,null,null,null,null,null,null,null,null,null,null,null,null,null,null,null,null,null,null,null,null,null,null,null,null,null,null,null,null,null,null,null,null,null,null,null,null,null,null,null,null,null,null,null,null,null,null,null,null,null,null,null,34]
[null,"Female 75-79",null,null,null,null,null,null,null,null,null,null,null,null,null,null,null,null,null,null,null,null,null,null,null,null,null,null,null,null,null,null,null,null,null,null,null,null,null,null,null,null,null,null,null,null,null,null,null,null,null,null,null,null,null,35]
[null,"Female 80-84",null,null,null,null,null,null,null,null,null,null,null,null,null,null,null,null,null,null,null,null,null,null,null,null,null,null,null,null,null,null,null,null,null,null,null,null,null,null,null,null,null,null,null,null,null,null,null,null,null,null,null,null,null,36]
[null,"Female 85-89",null,null,null,null,null,null,null,null,null,null,null,null,null,null,null,null,null,null,null,null,null,null,null,null,null,null,null,null,null,null,null,null,null,null,null,null,null,null,null,null,null,null,null,null,null,null,null,null,null,null,null,null,null,37]
[null,"Female 90+",null,null,null,null,null,null,null,null,null,null,null,null,null,null,null,null,null,null,null,null,null,null,null,null,null,null,null,null,null,null,null,null,null,null,null,null,null,null,null,null,null,null,null,null,null,null,null,null,null,null,null,null,null,38]
[null,"Male 0-4",null,null,null,null,null,null,null,null,null,null,null,null,null,null,null,null,null,null,null,null,null,null,null,null,null,null,null,null,null,null,null,null,null,null,null,null,null,null,null,null,null,null,null,null,null,null,null,null,null,null,null,null,null,39]
[null,"Male 5-9",null,null,null,null,null,null,null,null,null,null,null,null,null,null,null,null,null,null,null,null,null,null,null,null,null,null,null,null,null,null,null,null,null,null,null,null,null,null,null,null,null,null,null,null,null,null,null,null,null,null,null,null,null,40]
[null,"Male 10-15",null,null,null,null,null,null,null,null,null,null,null,null,null,null,null,null,null,null,null,null,null,null,null,null,null,null,null,null,null,null,null,null,null,null,null,null,null,null,null,null,null,null,null,null,null,null,null,null,null,null,null,null,null,41]
[null,"Male 16-19",null,null,null,null,null,null,null,null,null,null,null,null,null,null,null,null,null,null,null,null,null,null,null,null,null,null,null,null,null,null,null,null,null,null,null,null,null,null,null,null,null,null,null,null,null,null,null,null,null,null,null,null,null,42]
[null,"Male 20-24",null,null,null,null,null,null,null,null,null,null,null,null,null,null,null,null,null,null,null,null,null,null,null,null,null,null,null,null,null,null,null,null,null,null,null,null,null,null,null,null,null,null,null,null,null,null,null,null,null,null,null,null,null,43]
[null,"Male 25-29",null,null,null,null,null,null,null,null,null,null,null,null,null,null,null,null,null,null,null,null,null,null,null,null,null,null,null,null,null,null,null,null,null,null,null,null,null,null,null,null,null,null,null,null,null,null,null,null,null,null,null,null,null,44]
[null,"Male 30-34",null,null,null,null,null,null,null,null,null,null,null,null,null,null,null,null,null,null,null,null,null,null,null,null,null,null,null,null,null,null,null,null,null,null,null,null,null,null,null,null,null,null,null,null,null,null,null,null,null,null,null,null,null,45]
[null,"Male 35-39",null,null,null,null,null,null,null,null,null,null,null,null,null,null,null,null,null,null,null,null,null,null,null,null,null,null,null,null,null,null,null,null,null,null,null,null,null,null,null,null,null,null,null,null,null,null,null,null,null,null,null,null,null,46]
[null,"Male 40-44",null,null,null,null,null,null,null,null,null,null,null,null,null,null,null,null,null,null,null,null,null,null,null,null,null,null,null,null,null,null,null,null,null,null,null,null,null,null,null,null,null,null,null,null,null,null,null,null,null,null,null,null,null,47]
[null,"Male 45-49",null,null,null,null,null,null,null,null,null,null,null,null,null,null,null,null,null,null,null,null,null,null,null,null,null,null,null,null,null,null,null,null,null,null,null,null,null,null,null,null,null,null,null,null,null,null,null,null,null,null,null,null,null,48]
[null,"Male 50-54",null,null,null,null,null,null,null,null,null,null,null,null,null,null,null,null,null,null,null,null,null,null,null,null,null,null,null,null,null,null,null,null,null,null,null,null,null,null,null,null,null,null,null,null,null,null,null,null,null,null,null,null,null,49]
[null,"Male 55-59",null,null,null,null,null,null,null,null,null,null,null,null,null,null,null,null,null,null,null,null,null,null,null,null,null,null,null,null,null,null,null,null,null,null,null,null,null,null,null,null,null,null,null,null,null,null,null,null,null,null,null,null,null,50]
[null,"Male 60-64",null,null,null,null,null,null,null,null,null,null,null,null,null,null,null,null,null,null,null,null,null,null,null,null,null,null,null,null,null,null,null,null,null,null,null,null,null,null,null,null,null,null,null,null,null,null,null,null,null,null,null,null,null,51]
[null,"Male 65-69",null,null,null,null,null,null,null,null,null,null,null,null,null,null,null,null,null,null,null,null,null,null,null,null,null,null,null,null,null,null,null,null,null,null,null,null,null,null,null,null,null,null,null,null,null,null,null,null,null,null,null,null,null,52]
[null,"Male 70-74",null,null,null,null,null,null,null,null,null,null,null,null,null,null,null,null,null,null,null,null,null,null,null,null,null,null,null,null,null,null,null,null,null,null,null,null,null,null,null,null,null,null,null,null,null,null,null,null,null,null,null,null,null,53]
[null,"Male 75-79",null,null,null,null,null,null,null,null,null,null,null,null,null,null,null,null,null,null,null,null,null,null,null,null,null,null,null,null,null,null,null,null,null,null,null,null,null,null,null,null,null,null,null,null,null,null,null,null,null,null,null,null,null,54]
[null,"Male 80-84",null,null,null,null,null,null,null,null,null,null,null,null,null,null,null,null,null,null,null,null,null,null,null,null,null,null,null,null,null,null,null,null,null,null,null,null,null,null,null,null,null,null,null,null,null,null,null,null,null,null,null,null,null,55]
[null,"Male 85-89",null,null,null,null,null,null,null,null,null,null,null,null,null,null,null,null,null,null,null,null,null,null,null,null,null,null,null,null,null,null,null,null,null,null,null,null,null,null,null,null,null,null,null,null,null,null,null,null,null,null,null,null,null,56]
[null,"Male 90+",null,null,null,null,null,null,null,null,null,null,null,null,null,null,null,null,null,null,null,null,null,null,null,null,null,null,null,null,null,null,null,null,null,null,null,null,null,null,null,null,null,null,null,null,null,null,null,null,null,null,null,null,null,57]
["SIMD Q1 (most deprived)","Female 0-4",null,null,null,null,null,null,null,null,null,null,null,null,null,null,null,null,null,null,null,null,null,null,null,null,null,null,null,null,null,null,null,null,null,null,null,null,null,null,null,null,null,null,null,null,null,null,null,null,null,null,null,null,null,58]
[null,"Female 5-9",null,null,null,null,null,null,null,null,null,null,null,null,null,null,null,null,null,null,null,null,null,null,null,null,null,null,null,null,null,null,null,null,null,null,null,null,null,null,null,null,null,null,null,null,null,null,null,null,null,null,null,null,null,59]
[null,"Female 10-15",null,null,null,null,null,null,null,null,null,null,null,null,null,null,null,null,null,null,null,null,null,null,null,null,null,null,null,null,null,null,null,null,null,null,null,null,null,null,null,null,null,null,null,null,null,null,null,null,null,null,null,null,null,60]
[null,"Female 16-19",{"$f":"$AR63*C$253","v":0.3372870662460567},0.36899781606406212,0.39590390681873333,0.41031788400873581,0.38725552050473183,0.4369356952196069,0.40838641106527546,0.40551322494540165,0.44106770201407419,0.45767260373695701,{"$f":"$AR63*M$253","v":0.45740354282941037},0.42569279301140489,0.45067702014074246,0.38533365687939825,0.37380247512739628,0.38533365687939825,0.37091967968939576,0.32095122543072074,0.39206017956806599,0.44106770201407419,{"$f":"$AR63*W$253","v":0.39417422955593301},0.39398204319339963,0.41281630672166941,0.44202863382674112,0.40935695219606888,0.38091337054113084,0.41502644989080312,0.38763989322979864,0.41416161125940304,0.35266197524872606,{"$f":"$AR63*AG$253","v":0.41416161125940304},0.39955544770686729,0.35516039796165977,0.37380247512739628,0.42184906576073766,0.45740354282941037,0.42377092938607136,0.40432166949769477,0.40455229313273483,0.39109924775539923,0.36323222518806109,0.39600000000000002,{"$f":"$AR63*AS$253","v":0.40839602038340206},0.3770215966998301,0.37668527056539675,0.3968648386314001,0.37380247512739628,0.38629458869206501,0.38245086144139767,0.37264935695219609,0.38052899781606409,0.42377092938607136,0.3925118175200194,61]
[null,"Female 20-24",0.3372870662460567,0.36899781606406212,0.39590390681873333,0.41031788400873581,0.38725552050473183,0.4369356952196069,0.40838641106527546,0.40551322494540165,0.44106770201407419,0.45767260373695701,0.45740354282941037,0.42569279301140489,0.45067702014074246,0.38533365687939825,0.37380247512739628,0.38533365687939825,0.37091967968939576,0.32095122543072074,0.39206017956806599,0.44106770201407419,0.39417422955593301,0.39398204319339963,0.41281630672166941,0.44202863382674112,0.40935695219606888,0.38091337054113084,0.41502644989080312,0.38763989322979864,0.41416161125940304,0.35266197524872606,0.41416161125940304,0.39955544770686729,0.35516039796165977,0.37380247512739628,0.42184906576073766,0.45740354282941037,0.42377092938607136,0.40432166949769477,0.40455229313273483,0.39109924775539923,0.36323222518806109,0.39600000000000002,0.40839602038340206,0.3770215966998301,0.37668527056539675,0.3968648386314001,0.37380247512739628,0.38629458869206501,0.38245086144139767,0.37264935695219609,0.38052899781606409,0.42377092938607136,0.3925118175200194,62]
[null,"Female 25-29",0.29384858044164031,0.32147537005581167,0.3449162824557146,0.35747391409851975,0.33738170347003149,0.3806636738655666,0.35579119145838384,0.35328803688425142,0.38426352826983734,0.39872991992234885,0.39849551079834994,0.37086872118417846,0.39263528269837406,0.33570735258432416,0.32566124727008006,0.33570735258432416,0.323149720941519,0.27961659791312787,0.34156758068429988,0.38426352826983734,0.34340936665857796,0.34324193157000721,0.35965057024993924,0.38510070371269106,0.35663673865566603,0.33185634554719728,0.36157607376850265,0.337716573647173,0.36082261586993442,0.30724338752729918,0.36082261586993442,0.34809754913855856,0.30942004367871867,0.32566124727008006,0.36752001941276385,0.39849551079834994,0.36919437029847124,0.35224993933511278,0.35245086144139776,0.34073040524144627,0.31645231739868956,0.34499999999999997,0.35579956321281236,0.32846578500363982,0.32817277359864111,0.34575345789856826,0.32566124727008006,0.33654452802717783,0.33319582625576311,0.32465663673865564,0.33152147537005577,0.36919437029847124,0.34196105314244113,63]
[null,"Female 30-34",0.29384858044164031,0.32147537005581167,0.3449162824557146,0.35747391409851975,0.33738170347003149,0.3806636738655666,0.35579119145838384,0.35328803688425142,0.38426352826983734,0.39872991992234885,0.39849551079834994,0.37086872118417846,0.39263528269837406,0.33570735258432416,0.32566124727008006,0.33570735258432416,0.323149720941519,0.27961659791312787,0.34156758068429988,0.38426352826983734,0.34340936665857796,0.34324193157000721,0.35965057024993924,0.38510070371269106,0.35663673865566603,0.33185634554719728,0.36157607376850265,0.337716573647173,0.36082261586993442,0.30724338752729918,0.36082261586993442,0.34809754913855856,0.30942004367871867,0.32566124727008006,0.36752001941276385,0.39849551079834994,0.36919437029847124,0.35224993933511278,0.35245086144139776,0.34073040524144627,0.31645231739868956,0.34499999999999997,0.35579956321281236,0.32846578500363982,0.32817277359864111,0.34575345789856826,0.32566124727008006,0.33654452802717783,0.33319582625576311,0.32465663673865564,0.33152147537005577,0.36919437029847124,0.34196105314244113,64]
[null,"Female 35-39",0.28703470031545736,0.31402086872118418,0.33691822373210389,0.34918466391652514,0.32955835962145108,0.37183669012375636,0.34754096093181269,0.34509585052171809,0.3753530696432904,0.38948400873574368,0.38925503518563459,0.36226886677990772,0.38353069643290461,0.32792283426352831,0.31810968211599128,0.32792283426352831,0.31565639407910701,0.27313273477311339,0.33364717301625818,0.3753530696432904,0.33544625090997332,0.33528269837418101,0.35131084688182473,0.3761708323222519,0.3483669012375637,0.32416112594030577,0.353191701043436,0.3298854646930357,0.35245571463237074,0.3001189031788401,0.35245571463237074,0.34002572191215724,0.30224508614413975,0.31810968211599128,0.35899781606406211,0.38925503518563459,0.360633341421985,0.34408182479980587,0.34427808784275671,0.33282941033729679,0.30911429264741563,0.33700000000000002,0.34754913855860231,0.32084918709051197,0.32056297015287555,0.33773598641106523,0.31810968211599128,0.32874059694248969,0.32546954622664398,0.31712836690123758,0.32383402086872121,0.360633341421985,0.33403152147537007,65]
[null,"Female 40-44",0.28703470031545736,0.31402086872118418,0.33691822373210389,0.34918466391652514,0.32955835962145108,0.37183669012375636,0.34754096093181269,0.34509585052171809,0.3753530696432904,0.38948400873574368,0.38925503518563459,0.36226886677990772,0.38353069643290461,0.32792283426352831,0.31810968211599128,0.32792283426352831,0.31565639407910701,0.27313273477311339,0.33364717301625818,0.3753530696432904,0.33544625090997332,0.33528269837418101,0.35131084688182473,0.3761708323222519,0.3483669012375637,0.32416112594030577,0.353191701043436,0.3298854646930357,0.35245571463237074,0.3001189031788401,0.35245571463237074,0.34002572191215724,0.30224508614413975,0.31810968211599128,0.35899781606406211,0.38925503518563459,0.360633341421985,0.34408182479980587,0.34427808784275671,0.33282941033729679,0.30911429264741563,0.33700000000000002,0.34754913855860231,0.32084918709051197,0.32056297015287555,0.33773598641106523,0.31810968211599128,0.32874059694248969,0.32546954622664398,0.31712836690123758,0.32383402086872121,0.360633341421985,0.33403152147537007,66]
[null,"Female 45-49",0.40798107255520494,0.44633826741082255,0.47888376607619509,0.49631885464693037,0.46842271293375387,0.52851565154088809,0.49398255277845182,0.4905071584566853,0.53351371026449879,0.55359893229798585,0.55327347731133225,0.51491628245571452,0.54513710264498894,0.46609803445765591,0.45214996360106763,0.46609803445765591,0.44866294588692063,0.38822130550837181,0.47423440912399895,0.53351371026449879,0.47679155544770685,0.47655908760009702,0.49934093666585772,0.53467604950254788,0.49515651540888128,0.46075127396263044,0.5020143169133704,0.46888764862897353,0.5009682115991263,0.42657850036398931,0.5009682115991263,0.48330065518078136,0.42960058238291671,0.45214996360106763,0.51026692550351849,0.55327347731133225,0.51259160397961656,0.48906585780150447,0.48934481921863632,0.47307206988595002,0.43936423198252839,0.47899999999999998,0.4939941761708323,0.45604380004853184,0.45563698131521474,0.48004610531424402,0.45214996360106763,0.46726037369570489,0.46261101674350874,0.45075515651540887,0.46028633826741083,0.51259160397961656,0.474780708565882,67]
[null,"Female 50-54",0.40798107255520494,0.44633826741082255,0.47888376607619509,0.49631885464693037,0.46842271293375387,0.52851565154088809,0.49398255277845182,0.4905071584566853,0.53351371026449879,0.55359893229798585,0.55327347731133225,0.51491628245571452,0.54513710264498894,0.46609803445765591,0.45214996360106763,0.46609803445765591,0.44866294588692063,0.38822130550837181,0.47423440912399895,0.53351371026449879,0.47679155544770685,0.47655908760009702,0.49934093666585772,0.53467604950254788,0.49515651540888128,0.46075127396263044,0.5020143169133704,0.46888764862897353,0.5009682115991263,0.42657850036398931,0.5009682115991263,0.48330065518078136,0.42960058238291671,0.45214996360106763,0.51026692550351849,0.55327347731133225,0.51259160397961656,0.48906585780150447,0.48934481921863632,0.47307206988595002,0.43936423198252839,0.47899999999999998,0.4939941761708323,0.45604380004853184,0.45563698131521474,0.48004610531424402,0.45214996360106763,0.46726037369570489,0.46261101674350874,0.45075515651540887,0.46028633826741083,0.51259160397961656,0.474780708565882,68]
[null,"Female 55-59",0.50507886435331217,0.55256491142926467,0.59285610288764856,0.61444066974035427,0.57990536277602511,0.65430016986168404,0.61154833778209172,0.60724581412278578,0.66048774569279289,0.68535316670710977,0.68495025479252614,0.63746420771657342,0.67487745692793,0.5770274205289978,0.55975976704683328,0.5770274205289978,0.55544285367629209,0.48061635525357926,0.58710021839359372,0.66048774569279289,0.59026595486532385,0.58997816064062114,0.61818199466148982,0.66192671681630666,0.61300169861684051,0.57040815336083472,0.62149162824557125,0.58048095122543075,0.620196554234409,0.52810240232953165,0.620196554234409,0.59832419315700069,0.5318437272506672,0.55975976704683328,0.63170832322251869,0.68495025479252614,0.63458626546954622,0.60546148992962867,0.60580684299927212,0.58566124727008007,0.5439310846881823,0.59299999999999997,0.61156272749332685,0.56458032031060412,0.56407668041737435,0.59429507401116222,0.55975976704683328,0.57846639165251146,0.57271050715845651,0.5580330016986168,0.56983256491142931,0.63458626546954622,0.58777653482164516,69]
[null,"Female 60-64",0.50507886435331217,0.55256491142926467,0.59285610288764856,0.61444066974035427,0.57990536277602511,0.65430016986168404,0.61154833778209172,0.60724581412278578,0.66048774569279289,0.68535316670710977,0.68495025479252614,0.63746420771657342,0.67487745692793,0.5770274205289978,0.55975976704683328,0.5770274205289978,0.55544285367629209,0.48061635525357926,0.58710021839359372,0.66048774569279289,0.59026595486532385,0.58997816064062114,0.61818199466148982,0.66192671681630666,0.61300169861684051,0.57040815336083472,0.62149162824557125,0.58048095122543075,0.620196554234409,0.52810240232953165,0.620196554234409,0.59832419315700069,0.5318437272506672,0.55975976704683328,0.63170832322251869,0.68495025479252614,0.63458626546954622,0.60546148992962867,0.60580684299927212,0.58566124727008007,0.5439310846881823,0.59299999999999997,0.61156272749332685,0.56458032031060412,0.56407668041737435,0.59429507401116222,0.55975976704683328,0.57846639165251146,0.57271050715845651,0.5580330016986168,0.56983256491142931,0.63458626546954622,0.58777653482164516,70]
[null,"Female 65-69",{"$f":"$AR73*C$253","v":0.59621451104100931},0.6522688667799077,0.69983013831594265,0.72530939092453284,0.6845425867507885,0.77236107740839599,0.7218951710749818,0.71681630672166952,0.7796651298228584,0.80901722882795424,{"$f":"$AR73*M$253","v":0.80854161611259401},0.75248726037369551,0.79665129822858505,0.6811453530696433,0.66076195098277113,0.6811453530696433,0.65566610046105311,0.56733802475127404,0.69303567095365193,0.7796651298228584,{"$f":"$AR73*W$253","v":0.69677262800291184},0.69643290463479723,0.72972579471002164,0.78136374666343111,0.72361077408396013,0.67333171560300897,0.73363261344333874,0.68522203348701771,0.73210385828682345,0.62339238049017232,{"$f":"$AR73*AG$253","v":0.73210385828682345},0.70628488231011888,0.62780878427566111,0.66076195098277113,0.7456927930114049,0.80854161611259401,0.74909002669255031,0.71471002183935928,0.71511768988109692,0.69133705411307933,0.64207716573647156,0.7,{"$f":"$AR73*AS$253","v":0.72191215724338742},0.66645231739868949,0.66585780150448914,0.70152875515651525,0.66076195098277113,0.6828439699102159,0.67604950254792506,0.65872361077408392,0.67265226886677987,0.74909002669255031,0.69383402086872115,71]
[null,"Female 70-74",0.59621451104100931,0.6522688667799077,0.69983013831594265,0.72530939092453284,0.6845425867507885,0.77236107740839599,0.7218951710749818,0.71681630672166952,0.7796651298228584,0.80901722882795424,0.80854161611259401,0.75248726037369551,0.79665129822858505,0.6811453530696433,0.66076195098277113,0.6811453530696433,0.65566610046105311,0.56733802475127404,0.69303567095365193,0.7796651298228584,0.69677262800291184,0.69643290463479723,0.72972579471002164,0.78136374666343111,0.72361077408396013,0.67333171560300897,0.73363261344333874,0.68522203348701771,0.73210385828682345,0.62339238049017232,0.73210385828682345,0.70628488231011888,0.62780878427566111,0.66076195098277113,0.7456927930114049,0.80854161611259401,0.74909002669255031,0.71471002183935928,0.71511768988109692,0.69133705411307933,0.64207716573647156,0.7,0.72191215724338742,0.66645231739868949,0.66585780150448914,0.70152875515651525,0.66076195098277113,0.6828439699102159,0.67604950254792506,0.65872361077408392,0.67265226886677987,0.74909002669255031,0.69383402086872115,72]
[null,"Female 75-79",0.72397476340693989,0.79204076680417368,0.84979373938364478,0.88073283183693285,0.83123028391167186,0.937867022567338,0.87658699344819213,0.87041980101917016,0.94673622907061372,0.98237806357680157,0.98180053385100707,0.91373453045377306,0.96736229070613911,0.82710507158456681,0.80235379762193637,0.82710507158456681,0.79616597913127873,0.68891045862654698,0.84154331472943444,0.94673622907061372,0.84608104828925013,0.84566852705653961,0.88609560786216923,0.94879883523416642,0.87867022567338016,0.81761708323222515,0.89083960203834001,0.8320553263770929,0.88898325649114274,0.75697646202378066,0.88898325649114274,0.85763164280514437,0.76233923804901715,0.80235379762193637,0.90548410579956307,0.98180053385100707,0.90960931812666834,0.86786216937636496,0.86835719485561769,0.83948070856588208,0.7796651298228584,0.85,0.87660761950982768,0.80926352826983727,0.80854161611259401,0.85185634554719714,0.80235379762193637,0.82916767774811939,0.82091725309390906,0.79987867022567338,0.81679204076680423,0.90960931812666834,0.84251273962630424,73]
[null,"Female 80-84",0.72397476340693989,0.79204076680417368,0.84979373938364478,0.88073283183693285,0.83123028391167186,0.937867022567338,0.87658699344819213,0.87041980101917016,0.94673622907061372,0.98237806357680157,0.98180053385100707,0.91373453045377306,0.96736229070613911,0.82710507158456681,0.80235379762193637,0.82710507158456681,0.79616597913127873,0.68891045862654698,0.84154331472943444,0.94673622907061372,0.84608104828925013,0.84566852705653961,0.88609560786216923,0.94879883523416642,0.87867022567338016,0.81761708323222515,0.89083960203834001,0.8320553263770929,0.88898325649114274,0.75697646202378066,0.88898325649114274,0.85763164280514437,0.76233923804901715,0.80235379762193637,0.90548410579956307,0.98180053385100707,0.90960931812666834,0.86786216937636496,0.86835719485561769,0.83948070856588208,0.7796651298228584,0.85,0.87660761950982768,0.80926352826983727,0.80854161611259401,0.85185634554719714,0.80235379762193637,0.82916767774811939,0.82091725309390906,0.79987867022567338,0.81679204076680423,0.90960931812666834,0.84251273962630424,74]
[null,"Female 85-89",0.72397476340693989,0.79204076680417368,0.84979373938364478,0.88073283183693285,0.83123028391167186,0.937867022567338,0.87658699344819213,0.87041980101917016,0.94673622907061372,0.98237806357680157,0.98180053385100707,0.91373453045377306,0.96736229070613911,0.82710507158456681,0.80235379762193637,0.82710507158456681,0.79616597913127873,0.68891045862654698,0.84154331472943444,0.94673622907061372,0.84608104828925013,0.84566852705653961,0.88609560786216923,0.94879883523416642,0.87867022567338016,0.81761708323222515,0.89083960203834001,0.8320553263770929,0.88898325649114274,0.75697646202378066,0.88898325649114274,0.85763164280514437,0.76233923804901715,0.80235379762193637,0.90548410579956307,0.98180053385100707,0.90960931812666834,0.86786216937636496,0.86835719485561769,0.83948070856588208,0.7796651298228584,0.85,0.87660761950982768,0.80926352826983727,0.80854161611259401,0.85185634554719714,0.80235379762193637,0.82916767774811939,0.82091725309390906,0.79987867022567338,0.81679204076680423,0.90960931812666834,0.84251273962630424,75]
[null,"Female 90+",0.72397476340693989,0.79204076680417368,0.84979373938364478,0.88073283183693285,0.83123028391167186,0.937867022567338,0.87658699344819213,0.87041980101917016,0.94673622907061372,0.98237806357680157,0.98180053385100707,0.91373453045377306,0.96736229070613911,0.82710507158456681,0.80235379762193637,0.82710507158456681,0.79616597913127873,0.68891045862654698,0.84154331472943444,0.94673622907061372,0.84608104828925013,0.84566852705653961,0.88609560786216923,0.94879883523416642,0.87867022567338016,0.81761708323222515,0.89083960203834001,0.8320553263770929,0.88898325649114274,0.75697646202378066,0.88898325649114274,0.85763164280514437,0.76233923804901715,0.80235379762193637,0.90548410579956307,0.98180053385100707,0.90960931812666834,0.86786216937636496,0.86835719485561769,0.83948070856588208,0.7796651298228584,0.85,0.87660761950982768,0.80926352826983727,0.80854161611259401,0.85185634554719714,0.80235379762193637,0.82916767774811939,0.82091725309390906,0.79987867022567338,0.81679204076680423,0.90960931812666834,0.84251273962630424,76]
[null,"Male 0-4",null,null,null,null,null,null,null,null,null,null,null,null,null,null,null,null,null,null,null,null,null,null,null,null,null,null,null,null,null,null,null,null,null,null,null,null,null,null,null,null,null,0,null,null,null,null,null,null,null,null,null,null,null,77]
[null,"Male 5-9",null,null,null,null,null,null,null,null,null,null,null,null,null,null,null,null,null,null,null,null,null,null,null,null,null,null,null,null,null,null,null,null,null,null,null,null,null,null,null,null,null,0,null,null,null,null,null,null,null,null,null,null,null,78]
[null,"Male 10-15",null,null,null,null,null,null,null,null,null,null,null,null,null,null,null,null,null,null,null,null,null,null,null,null,null,null,null,null,null,null,null,null,null,null,null,null,null,null,null,null,null,0,null,null,null,null,null,null,null,null,null,null,null,79]
[null,"Male 16-19",{"$f":"$AR82*C$254","v":0.24261146496815281},0.25420382165605099,0.26331210191082793,0.27242038216560516,0.25503184713375793,0.28045222929936303,0.29551401273885342,0.21445859872611467,0.25668789808917192,0.26613566878980888,{"$f":"$AR82*M$254","v":0.26579617834394897},0.27242038216560516,0.29891719745222928,0.23433121019108274,0.30636942675159229,0.23433121019108274,0.24343949044585986,0.20286624203821652,0.25006369426751596,0.25668789808917192,{"$f":"$AR82*W$254","v":0.24112101910828027},0.24095541401273876,0.24517834394904453,0.26165605095541389,0.27076433121019106,0.25701910828025476,0.25784713375796176,0.25486624203821656,0.27904458598726112,0.2591719745222929,{"$f":"$AR82*AG$254","v":0.27904458598726112},0.29312101910828026,0.23797452229299354,0.30636942675159229,0.26,0.2831847133757962,0.31878980891719744,0.27853949044585985,0.27821656050955407,0.260828025477707,0.25503184713375793,0.26,{"$f":"$AR82*AS$254","v":0.29560509554140124},0.25060191082802546,0.2508917197452229,0.25585987261146498,0.2641401273885351,0.23598726114649676,0.25503184713375793,0.26645859872611466,0.25254777070063689,0.27324840764331204,0.25002229299363049,80]
[null,"Male 20-24",0.24261146496815281,0.25420382165605099,0.26331210191082793,0.27242038216560516,0.25503184713375793,0.28045222929936303,0.29551401273885342,0.21445859872611467,0.25668789808917192,0.26613566878980888,0.26579617834394897,0.27242038216560516,0.29891719745222928,0.23433121019108274,0.30636942675159229,0.23433121019108274,0.24343949044585986,0.20286624203821652,0.25006369426751596,0.25668789808917192,0.24112101910828027,0.24095541401273876,0.24517834394904453,0.26165605095541389,0.27076433121019106,0.25701910828025476,0.25784713375796176,0.25486624203821656,0.27904458598726112,0.2591719745222929,0.27904458598726112,0.29312101910828026,0.23797452229299354,0.30636942675159229,0.26,0.2831847133757962,0.31878980891719744,0.27853949044585985,0.27821656050955407,0.260828025477707,0.25503184713375793,0.26,0.29560509554140124,0.25060191082802546,0.2508917197452229,0.25585987261146498,0.2641401273885351,0.23598726114649676,0.25503184713375793,0.26645859872611466,0.25254777070063689,0.27324840764331204,0.25002229299363049,81]
[null,"Male 25-29",0.18195859872611461,0.19065286624203823,0.19748407643312094,0.20431528662420384,0.19127388535031845,0.21033917197452229,0.22163550955414005,0.16084394904458599,0.19251592356687894,0.19960175159235666,0.19934713375796173,0.20431528662420384,0.22418789808917194,0.17574840764331207,0.22977707006369422,0.17574840764331207,0.18257961783439489,0.1521496815286624,0.18754777070063694,0.19251592356687894,0.18084076433121021,0.18071656050955406,0.18388375796178338,0.19624203821656042,0.20307324840764329,0.1927643312101911,0.19338535031847132,0.19114968152866241,0.20928343949044584,0.19437898089171968,0.20928343949044584,0.21984076433121019,0.17848089171974515,0.22977707006369422,0.19500000000000001,0.21238853503184713,0.23909235668789808,0.20890461783439487,0.20866242038216556,0.19562101910828025,0.19127388535031845,0.19500000000000001,0.22170382165605093,0.18795143312101911,0.18816878980891716,0.19189490445859872,0.19810509554140129,0.17699044585987259,0.19127388535031845,0.19984394904458602,0.18941082802547768,0.20493630573248403,0.18751671974522285,82]
[null,"Male 30-34",0.18195859872611461,0.19065286624203823,0.19748407643312094,0.20431528662420384,0.19127388535031845,0.21033917197452229,0.22163550955414005,0.16084394904458599,0.19251592356687894,0.19960175159235666,0.19934713375796173,0.20431528662420384,0.22418789808917194,0.17574840764331207,0.22977707006369422,0.17574840764331207,0.18257961783439489,0.1521496815286624,0.18754777070063694,0.19251592356687894,0.18084076433121021,0.18071656050955406,0.18388375796178338,0.19624203821656042,0.20307324840764329,0.1927643312101911,0.19338535031847132,0.19114968152866241,0.20928343949044584,0.19437898089171968,0.20928343949044584,0.21984076433121019,0.17848089171974515,0.22977707006369422,0.19500000000000001,0.21238853503184713,0.23909235668789808,0.20890461783439487,0.20866242038216556,0.19562101910828025,0.19127388535031845,0.19500000000000001,0.22170382165605093,0.18795143312101911,0.18816878980891716,0.19189490445859872,0.19810509554140129,0.17699044585987259,0.19127388535031845,0.19984394904458602,0.18941082802547768,0.20493630573248403,0.18751671974522285,83]
[null,"Male 35-39",0.26967197452229297,0.28255732484076435,0.29268152866242031,0.3028057324840765,0.28347770700636937,0.31173343949044585,0.32847519108280249,0.23837898089171977,0.28531847133757959,0.29582003184713374,0.29544267515923561,0.3028057324840765,0.33225796178343947,0.26046815286624203,0.34054140127388532,0.26046815286624203,0.27059235668789811,0.22549363057324839,0.27795541401273888,0.28531847133757959,0.26801528662420387,0.26783121019108269,0.27252515923566872,0.29084076433121009,0.30096496815286622,0.28568662420382168,0.28660700636942676,0.28329363057324841,0.31016878980891721,0.28807961783439484,0.31016878980891721,0.32581528662420384,0.26451783439490439,0.34054140127388532,0.28900000000000003,0.31477070063694268,0.35434713375796179,0.30960735668789807,0.30924840764331207,0.28992038216560512,0.28347770700636937,0.28900000000000003,0.32857643312101908,0.27855366242038215,0.2788757961783439,0.28439808917197457,0.29360191082802556,0.2623089171974522,0.28347770700636937,0.29617898089171979,0.28071656050955412,0.30372611464968152,0.27790939490445854,84]
[null,"Male 40-44",0.26967197452229297,0.28255732484076435,0.29268152866242031,0.3028057324840765,0.28347770700636937,0.31173343949044585,0.32847519108280249,0.23837898089171977,0.28531847133757959,0.29582003184713374,0.29544267515923561,0.3028057324840765,0.33225796178343947,0.26046815286624203,0.34054140127388532,0.26046815286624203,0.27059235668789811,0.22549363057324839,0.27795541401273888,0.28531847133757959,0.26801528662420387,0.26783121019108269,0.27252515923566872,0.29084076433121009,0.30096496815286622,0.28568662420382168,0.28660700636942676,0.28329363057324841,0.31016878980891721,0.28807961783439484,0.31016878980891721,0.32581528662420384,0.26451783439490439,0.34054140127388532,0.28900000000000003,0.31477070063694268,0.35434713375796179,0.30960735668789807,0.30924840764331207,0.28992038216560512,0.28347770700636937,0.28900000000000003,0.32857643312101908,0.27855366242038215,0.2788757961783439,0.28439808917197457,0.29360191082802556,0.2623089171974522,0.28347770700636937,0.29617898089171979,0.28071656050955412,0.30372611464968152,0.27790939490445854,85]
[null,"Male 45-49",0.43949999999999995,0.46050000000000002,0.47699999999999981,0.49350000000000011,0.46199999999999991,0.50805,0.53533499999999989,0.38850000000000007,0.46499999999999991,0.48211499999999996,0.48149999999999987,0.49350000000000011,0.54149999999999998,0.42449999999999993,0.55499999999999994,0.42449999999999993,0.441,0.36749999999999994,0.45300000000000001,0.46499999999999991,0.43680000000000002,0.43649999999999983,0.44414999999999988,0.47399999999999981,0.49049999999999999,0.46560000000000001,0.46709999999999996,0.4617,0.50549999999999995,0.46949999999999986,0.50549999999999995,0.53100000000000003,0.43109999999999982,0.55499999999999994,0.47100000000000003,0.51300000000000001,0.57750000000000001,0.50458499999999995,0.50399999999999989,0.47249999999999998,0.46199999999999991,0.47100000000000003,0.53549999999999998,0.45397500000000002,0.4544999999999999,0.46350000000000002,0.47850000000000009,0.42749999999999994,0.46199999999999991,0.48270000000000007,0.45749999999999991,0.49499999999999994,0.45292499999999986,86]
[null,"Male 50-54",0.43949999999999995,0.46050000000000002,0.47699999999999981,0.49350000000000011,0.46199999999999991,0.50805,0.53533499999999989,0.38850000000000007,0.46499999999999991,0.48211499999999996,0.48149999999999987,0.49350000000000011,0.54149999999999998,0.42449999999999993,0.55499999999999994,0.42449999999999993,0.441,0.36749999999999994,0.45300000000000001,0.46499999999999991,0.43680000000000002,0.43649999999999983,0.44414999999999988,0.47399999999999981,0.49049999999999999,0.46560000000000001,0.46709999999999996,0.4617,0.50549999999999995,0.46949999999999986,0.50549999999999995,0.53100000000000003,0.43109999999999982,0.55499999999999994,0.47100000000000003,0.51300000000000001,0.57750000000000001,0.50458499999999995,0.50399999999999989,0.47249999999999998,0.46199999999999991,0.47100000000000003,0.53549999999999998,0.45397500000000002,0.4544999999999999,0.46350000000000002,0.47850000000000009,0.42749999999999994,0.46199999999999991,0.48270000000000007,0.45749999999999991,0.49499999999999994,0.45292499999999986,87]
[null,"Male 55-59",0.55334076433121004,0.57978025477707007,0.60055414012738828,0.62132802547770705,0.58166878980891701,0.63964681528662415,0.67399926751592332,0.48913057324840764,0.58544585987261133,0.60699404458598716,0.60621974522292976,0.62132802547770705,0.68176114649681518,0.53445541401273866,0.6987579617834393,0.53445541401273866,0.5552292993630572,0.46269108280254767,0.57033757961783438,0.58544585987261133,0.54994140127388536,0.54956369426751561,0.55919522292993618,0.59677707006369396,0.61755095541401261,0.58620127388535026,0.58808980891719731,0.58129108280254771,0.636436305732484,0.59111146496815259,0.636436305732484,0.66854140127388528,0.54276496815286601,0.6987579617834393,0.59299999999999997,0.64587898089171969,0.72708598726114637,0.63528429936305719,0.63454777070063673,0.59488853503184702,0.58166878980891701,0.59299999999999997,0.67420700636942665,0.57156512738853493,0.57222611464968143,0.58355732484076428,0.60244267515923566,0.53823248407643298,0.58166878980891701,0.60773057324840762,0.57600318471337564,0.62321656050955399,0.57024315286624183,88]
[null,"Male 60-64",0.55334076433121004,0.57978025477707007,0.60055414012738828,0.62132802547770705,0.58166878980891701,0.63964681528662415,0.67399926751592332,0.48913057324840764,0.58544585987261133,0.60699404458598716,0.60621974522292976,0.62132802547770705,0.68176114649681518,0.53445541401273866,0.6987579617834393,0.53445541401273866,0.5552292993630572,0.46269108280254767,0.57033757961783438,0.58544585987261133,0.54994140127388536,0.54956369426751561,0.55919522292993618,0.59677707006369396,0.61755095541401261,0.58620127388535026,0.58808980891719731,0.58129108280254771,0.636436305732484,0.59111146496815259,0.636436305732484,0.66854140127388528,0.54276496815286601,0.6987579617834393,0.59299999999999997,0.64587898089171969,0.72708598726114637,0.63528429936305719,0.63454777070063673,0.59488853503184702,0.58166878980891701,0.59299999999999997,0.67420700636942665,0.57156512738853493,0.57222611464968143,0.58355732484076428,0.60244267515923566,0.53823248407643298,0.58166878980891701,0.60773057324840762,0.57600318471337564,0.62321656050955399,0.57024315286624183,89]
[null,"Male 65-69",{"$f":"$AR92*C$254","v":0.57386942675159225},0.60128980891719741,0.62283439490445835,0.64437898089171974,0.603248407643312,0.66337738853503181,0.69900429936305708,0.50727707006369427,0.60716560509554129,0.6295132165605094,{"$f":"$AR92*M$254","v":0.62871019108280235},0.64437898089171974,0.70705414012738843,0.55428343949044578,0.72468152866242019,0.55428343949044578,0.57582802547770695,0.47985668789808905,0.59149681528662423,0.60716560509554129,{"$f":"$AR92*W$254","v":0.57034394904458596},0.56995222929936273,0.57994108280254764,0.61891719745222906,0.64046178343949034,0.60794904458598731,0.60990764331210179,0.60285668789808911,0.6600477707006368,0.61304140127388518,{"$f":"$AR92*AG$254","v":0.6600477707006368},0.69334394904458596,0.56290127388535005,0.72468152866242019,0.61499999999999999,0.6698407643312102,0.75406050955414006,0.65885302547770686,0.6580891719745221,0.61695859872611458,0.603248407643312,0.61499999999999999,{"$f":"$AR92*AS$254","v":0.69921974522292984},0.59276990445859867,0.59345541401273871,0.6052070063694267,0.62479299363057328,0.55820063694267508,0.603248407643312,0.63027707006369438,0.59737261146496801,0.64633757961783422,0.59139888535031826,90]
[null,"Male 70-74",0.57386942675159225,0.60128980891719741,0.62283439490445835,0.64437898089171974,0.603248407643312,0.66337738853503181,0.69900429936305708,0.50727707006369427,0.60716560509554129,0.6295132165605094,0.62871019108280235,0.64437898089171974,0.70705414012738843,0.55428343949044578,0.72468152866242019,0.55428343949044578,0.57582802547770695,0.47985668789808905,0.59149681528662423,0.60716560509554129,0.57034394904458596,0.56995222929936273,0.57994108280254764,0.61891719745222906,0.64046178343949034,0.60794904458598731,0.60990764331210179,0.60285668789808911,0.6600477707006368,0.61304140127388518,0.6600477707006368,0.69334394904458596,0.56290127388535005,0.72468152866242019,0.61499999999999999,0.6698407643312102,0.75406050955414006,0.65885302547770686,0.6580891719745221,0.61695859872611458,0.603248407643312,0.61499999999999999,0.69921974522292984,0.59276990445859867,0.59345541401273871,0.6052070063694267,0.62479299363057328,0.55820063694267508,0.603248407643312,0.63027707006369438,0.59737261146496801,0.64633757961783422,0.59139888535031826,91]
[null,"Male 75-79",0.67278025477706993,0.70492675159235663,0.73018471337579582,0.75544267515923569,0.70722292993630553,0.77771560509554127,0.81948308917197421,0.59471019108280254,0.71181528662420368,0.73801468152866223,0.73707324840764299,0.75544267515923569,0.82892038216560493,0.64981847133757942,0.84958598726114631,0.64981847133757942,0.67507643312101906,0.56256369426751573,0.69344585987261143,0.71181528662420368,0.66864713375796181,0.66818789808917167,0.67989840764331189,0.72559235668789779,0.75085031847133743,0.7127337579617834,0.71502993630573242,0.70676369426751584,0.77381210191082794,0.71870382165605073,0.77381210191082794,0.81284713375796169,0.6599216560509551,0.84958598726114631,0.72099999999999997,0.78529299363057326,0.88402866242038203,0.7724114331210189,0.77151592356687881,0.72329617834394899,0.70722292993630553,0.72099999999999997,0.81973566878980875,0.69493837579617823,0.69574203821656033,0.70951910828025477,0.73248089171974529,0.65441082802547756,0.70722292993630553,0.73891019108280265,0.70033439490445837,0.75773885350318448,0.6933310509554137,92]
[null,"Male 80-84",0.67278025477706993,0.70492675159235663,0.73018471337579582,0.75544267515923569,0.70722292993630553,0.77771560509554127,0.81948308917197421,0.59471019108280254,0.71181528662420368,0.73801468152866223,0.73707324840764299,0.75544267515923569,0.82892038216560493,0.64981847133757942,0.84958598726114631,0.64981847133757942,0.67507643312101906,0.56256369426751573,0.69344585987261143,0.71181528662420368,0.66864713375796181,0.66818789808917167,0.67989840764331189,0.72559235668789779,0.75085031847133743,0.7127337579617834,0.71502993630573242,0.70676369426751584,0.77381210191082794,0.71870382165605073,0.77381210191082794,0.81284713375796169,0.6599216560509551,0.84958598726114631,0.72099999999999997,0.78529299363057326,0.88402866242038203,0.7724114331210189,0.77151592356687881,0.72329617834394899,0.70722292993630553,0.72099999999999997,0.81973566878980875,0.69493837579617823,0.69574203821656033,0.70951910828025477,0.73248089171974529,0.65441082802547756,0.70722292993630553,0.73891019108280265,0.70033439490445837,0.75773885350318448,0.6933310509554137,93]
[null,"Male 85-89",0.67278025477706993,0.70492675159235663,0.73018471337579582,0.75544267515923569,0.70722292993630553,0.77771560509554127,0.81948308917197421,0.59471019108280254,0.71181528662420368,0.73801468152866223,0.73707324840764299,0.75544267515923569,0.82892038216560493,0.64981847133757942,0.84958598726114631,0.64981847133757942,0.67507643312101906,0.56256369426751573,0.69344585987261143,0.71181528662420368,0.66864713375796181,0.66818789808917167,0.67989840764331189,0.72559235668789779,0.75085031847133743,0.7127337579617834,0.71502993630573242,0.70676369426751584,0.77381210191082794,0.71870382165605073,0.77381210191082794,0.81284713375796169,0.6599216560509551,0.84958598726114631,0.72099999999999997,0.78529299363057326,0.88402866242038203,0.7724114331210189,0.77151592356687881,0.72329617834394899,0.70722292993630553,0.72099999999999997,0.81973566878980875,0.69493837579617823,0.69574203821656033,0.70951910828025477,0.73248089171974529,0.65441082802547756,0.70722292993630553,0.73891019108280265,0.70033439490445837,0.75773885350318448,0.6933310509554137,94]
[null,"Male 90+",0.67278025477706993,0.70492675159235663,0.73018471337579582,0.75544267515923569,0.70722292993630553,0.77771560509554127,0.81948308917197421,0.59471019108280254,0.71181528662420368,0.73801468152866223,0.73707324840764299,0.75544267515923569,0.82892038216560493,0.64981847133757942,0.84958598726114631,0.64981847133757942,0.67507643312101906,0.56256369426751573,0.69344585987261143,0.71181528662420368,0.66864713375796181,0.66818789808917167,0.67989840764331189,0.72559235668789779,0.75085031847133743,0.7127337579617834,0.71502993630573242,0.70676369426751584,0.77381210191082794,0.71870382165605073,0.77381210191082794,0.81284713375796169,0.6599216560509551,0.84958598726114631,0.72099999999999997,0.78529299363057326,0.88402866242038203,0.7724114331210189,0.77151592356687881,0.72329617834394899,0.70722292993630553,0.72099999999999997,0.81973566878980875,0.69493837579617823,0.69574203821656033,0.70951910828025477,0.73248089171974529,0.65441082802547756,0.70722292993630553,0.73891019108280265,0.70033439490445837,0.75773885350318448,0.6933310509554137,95]
["SIMD Q2","Female 0-4",null,null,null,null,null,null,null,null,null,null,null,null,null,null,null,null,null,null,null,null,null,null,null,null,null,null,null,null,null,null,null,null,null,null,null,null,null,null,null,null,null,0,null,null,null,null,null,null,null,null,null,null,null,96]
[null,"Female 5-9",null,null,null,null,null,null,null,null,null,null,null,null,null,null,null,null,null,null,null,null,null,null,null,null,null,null,null,null,null,null,null,null,null,null,null,null,null,null,null,null,null,0,null,null,null,null,null,null,null,null,null,null,null,97]
[null,"Female 10-15",null,null,null,null,null,null,null,null,null,null,null,null,null,null,null,null,null,null,null,null,null,null,null,null,null,null,null,null,null,null,null,null,null,null,null,null,null,null,null,null,null,0,null,null,null,null,null,null,null,null,null,null,null,98]
[null,"Female 16-19",{"$f":"$AR101*C$253","v":0.15246056782334386},0.16679446736229075,0.17895656394079112,0.1854719728221306,0.17504731861198741,0.19750376122300417,0.18459890803203111,0.18330016986168413,0.19937151176898812,0.2068772628002912,{"$f":"$AR101*M$253","v":0.20675564183450626},0.19242174229555933,0.2037151176898811,0.17417859742780883,0.16896627032273723,0.17417859742780883,0.16766318854646933,0.14507643775782583,0.17721912157243391,0.19937151176898812,{"$f":"$AR101*W$253","v":0.17817471487503037},0.17808784275661249,0.18660131036156274,0.19980587236107747,0.18503761223004128,0.17218053870419806,0.18760033972336812,0.17522106284882316,0.18720941519048778,0.15941033729677268,{"$f":"$AR101*AG$253","v":0.18720941519048778},0.18060713419073046,0.16053967483620482,0.16896627032273723,0.19068429992720218,0.20675564183450626,0.19155302111138078,0.18276156272749336,0.18286580926959484,0.17678476098034462,0.16418830380975494,0.17900000000000005,{"$f":"$AR101*AS$253","v":0.18460325163795199},0.17042137830623638,0.17026935209900515,0.17939092453288039,0.16896627032273723,0.17461295801989812,0.17287551565154091,0.16844503761223009,0.17200679446736233,0.19155302111138078,0.17742327105071587,99]
[null,"Female 20-24",0.15246056782334386,0.16679446736229075,0.17895656394079112,0.1854719728221306,0.17504731861198741,0.19750376122300417,0.18459890803203111,0.18330016986168413,0.19937151176898812,0.2068772628002912,0.20675564183450626,0.19242174229555933,0.2037151176898811,0.17417859742780883,0.16896627032273723,0.17417859742780883,0.16766318854646933,0.14507643775782583,0.17721912157243391,0.19937151176898812,0.17817471487503037,0.17808784275661249,0.18660131036156274,0.19980587236107747,0.18503761223004128,0.17218053870419806,0.18760033972336812,0.17522106284882316,0.18720941519048778,0.15941033729677268,0.18720941519048778,0.18060713419073046,0.16053967483620482,0.16896627032273723,0.19068429992720218,0.20675564183450626,0.19155302111138078,0.18276156272749336,0.18286580926959484,0.17678476098034462,0.16418830380975494,0.17900000000000005,0.18460325163795199,0.17042137830623638,0.17026935209900515,0.17939092453288039,0.16896627032273723,0.17461295801989812,0.17287551565154091,0.16844503761223009,0.17200679446736233,0.19155302111138078,0.17742327105071587,100]
[null,"Female 25-29",0.22315457413249207,0.24413491870905121,0.26193642319825289,0.27147294346032519,0.25621451104100945,0.28908371754428536,0.27019504974520747,0.26829410337296777,0.29181752001941275,0.30280359136132001,0.30262557631642811,0.28164523173986888,0.29817520019412758,0.2549429750060665,0.24731375879640863,0.2549429750060665,0.24540645474399417,0.21234651783547687,0.25939335112836687,0.29181752001941275,0.26079204076680418,0.26066488716330988,0.27312594030575099,0.29245328803688425,0.27083717544285368,0.25201844212569768,0.27458820674593537,0.25646881824799805,0.2740160155302111,0.23332686241203593,0.2740160155302111,0.2643523416646445,0.23497985925746176,0.24731375879640863,0.27910215966998303,0.30262557631642811,0.28037369570492598,0.26750575103130309,0.26765833535549627,0.25875758311089542,0.24032031060422224,0.26200000000000001,0.27020140742538218,0.2494435816549381,0.24922106284882312,0.26257219121572434,0.24731375879640863,0.255578743023538,0.25303567095365198,0.24655083717544288,0.25176413491870908,0.28037369570492598,0.25969216209657847,101]
[null,"Female 30-34",0.22315457413249207,0.24413491870905121,0.26193642319825289,0.27147294346032519,0.25621451104100945,0.28908371754428536,0.27019504974520747,0.26829410337296777,0.29181752001941275,0.30280359136132001,0.30262557631642811,0.28164523173986888,0.29817520019412758,0.2549429750060665,0.24731375879640863,0.2549429750060665,0.24540645474399417,0.21234651783547687,0.25939335112836687,0.29181752001941275,0.26079204076680418,0.26066488716330988,0.27312594030575099,0.29245328803688425,0.27083717544285368,0.25201844212569768,0.27458820674593537,0.25646881824799805,0.2740160155302111,0.23332686241203593,0.2740160155302111,0.2643523416646445,0.23497985925746176,0.24731375879640863,0.27910215966998303,0.30262557631642811,0.28037369570492598,0.26750575103130309,0.26765833535549627,0.25875758311089542,0.24032031060422224,0.26200000000000001,0.27020140742538218,0.2494435816549381,0.24922106284882312,0.26257219121572434,0.24731375879640863,0.255578743023538,0.25303567095365198,0.24655083717544288,0.25176413491870908,0.28037369570492598,0.25969216209657847,102]
[null,"Female 35-39",0.26488958990536265,0.28979373938364467,0.31092453288036881,0.32224460082504242,0.30413249211356458,0.34314899296287305,0.32072771172045617,0.31847124484348455,0.34639407910701275,0.35943479737927675,0.3592234894443096,0.33431933996602753,0.35394079107012849,0.30262314972094145,0.29356709536520254,0.30262314972094145,0.29130308177626785,0.25206017956806598,0.30790584809512245,0.34639407910701275,0.30956612472700795,0.30941519048774563,0.32420674593545246,0.34714875030332437,0.3214899296287308,0.29915166221790823,0.32594248968696904,0.30443436059208923,0.32526328561028867,0.27696432904634793,0.32526328561028867,0.31379228342635279,0.27892647415675798,0.29356709536520254,0.33130065518078128,0.3592234894443096,0.33280999757340446,0.31753545256005816,0.31771657364717298,0.30715117689881094,0.28526571220577518,0.31099999999999994,0.32073525843241923,0.2960952438728463,0.29583110895413728,0.31167920407668032,0.29356709536520254,0.30337782091725302,0.30035913613200671,0.2926614899296287,0.29884979373938358,0.33280999757340446,0.30826054355738891,103]
[null,"Female 40-44",0.26488958990536265,0.28979373938364467,0.31092453288036881,0.32224460082504242,0.30413249211356458,0.34314899296287305,0.32072771172045617,0.31847124484348455,0.34639407910701275,0.35943479737927675,0.3592234894443096,0.33431933996602753,0.35394079107012849,0.30262314972094145,0.29356709536520254,0.30262314972094145,0.29130308177626785,0.25206017956806598,0.30790584809512245,0.34639407910701275,0.30956612472700795,0.30941519048774563,0.32420674593545246,0.34714875030332437,0.3214899296287308,0.29915166221790823,0.32594248968696904,0.30443436059208923,0.32526328561028867,0.27696432904634793,0.32526328561028867,0.31379228342635279,0.27892647415675798,0.29356709536520254,0.33130065518078128,0.3592234894443096,0.33280999757340446,0.31753545256005816,0.31771657364717298,0.30715117689881094,0.28526571220577518,0.31099999999999994,0.32073525843241923,0.2960952438728463,0.29583110895413728,0.31167920407668032,0.29356709536520254,0.30337782091725302,0.30035913613200671,0.2926614899296287,0.29884979373938358,0.33280999757340446,0.30826054355738891,104]
[null,"Female 45-49",0.26744479495268136,0.29258917738413009,0.31392380490172295,0.32535306964329053,0.30706624605678234,0.34645911186605199,0.32382154816792047,0.3215433147294347,0.34973550109196799,0.36290201407425382,0.36268866779907799,0.3375442853676292,0.35735501091967969,0.30554234409124004,0.29639893229798597,0.30554234409124004,0.29411307934967246,0.25449162824557153,0.31087600097063822,0.34973550109196799,0.3125522931327348,0.31239990293618058,0.32733414219849549,0.3504974520747392,0.32459111866051932,0.30203736957049265,0.32908662945886918,0.30737102644989089,0.3284008735743752,0.27963601067702021,0.3284008735743752,0.3168192186362534,0.28161708323222517,0.29639893229798597,0.33449648143654459,0.36268866779907799,0.33602038340208695,0.32059849551079839,0.32078136374666355,0.31011404998786707,0.28801747148750301,0.31400000000000006,0.32382916767774816,0.29895146809026935,0.29868478524629949,0.31468575588449405,0.29639893229798597,0.30630429507401119,0.30325649114292647,0.2954845911186606,0.30173258917738421,0.33602038340208695,0.31123411793254069,105]
[null,"Female 50-54",0.26744479495268136,0.29258917738413009,0.31392380490172295,0.32535306964329053,0.30706624605678234,0.34645911186605199,0.32382154816792047,0.3215433147294347,0.34973550109196799,0.36290201407425382,0.36268866779907799,0.3375442853676292,0.35735501091967969,0.30554234409124004,0.29639893229798597,0.30554234409124004,0.29411307934967246,0.25449162824557153,0.31087600097063822,0.34973550109196799,0.3125522931327348,0.31239990293618058,0.32733414219849549,0.3504974520747392,0.32459111866051932,0.30203736957049265,0.32908662945886918,0.30737102644989089,0.3284008735743752,0.27963601067702021,0.3284008735743752,0.3168192186362534,0.28161708323222517,0.29639893229798597,0.33449648143654459,0.36268866779907799,0.33602038340208695,0.32059849551079839,0.32078136374666355,0.31011404998786707,0.28801747148750301,0.31400000000000006,0.32382916767774816,0.29895146809026935,0.29868478524629949,0.31468575588449405,0.29639893229798597,0.30630429507401119,0.30325649114292647,0.2954845911186606,0.30173258917738421,0.33602038340208695,0.31123411793254069,106]
[null,"Female 55-59",0.34239747634069395,0.37458869206503276,0.40190245086144144,0.41653482164523181,0.3931230283911672,0.44355593302596458,0.41457408396020384,0.41165736471730169,0.44775054598398445,0.46460703712691087,0.46433389953894694,0.43214268381460802,0.45750545983984464,0.39117204561999519,0.37946614899296288,0.39117204561999519,0.37653967483620482,0.32581412278573169,0.39800048531909726,0.44775054598398445,0.40014656636738655,0.39995146809026932,0.41907109924775532,0.44872603736957051,0.4155593302596457,0.38668478524629946,0.42131472943460319,0.39351322494540164,0.42043678718757582,0.35800533851007038,0.42043678718757582,0.40560931812666828,0.360541616112594,0.37946614899296288,0.42824071827226401,0.46433389953894694,0.43019170104343613,0.410447755399175,0.41068187333171569,0.39702499393351132,0.36873574375151658,0.40200000000000002,0.4145838388740597,0.38273404513467602,0.38239262314972094,0.40287794224702739,0.37946614899296288,0.39214753700558119,0.38824557146323702,0.37829555933025971,0.38629458869206507,0.43019170104343613,0.39845896627032273,107]
[null,"Female 60-64",0.34239747634069395,0.37458869206503276,0.40190245086144144,0.41653482164523181,0.3931230283911672,0.44355593302596458,0.41457408396020384,0.41165736471730169,0.44775054598398445,0.46460703712691087,0.46433389953894694,0.43214268381460802,0.45750545983984464,0.39117204561999519,0.37946614899296288,0.39117204561999519,0.37653967483620482,0.32581412278573169,0.39800048531909726,0.44775054598398445,0.40014656636738655,0.39995146809026932,0.41907109924775532,0.44872603736957051,0.4155593302596457,0.38668478524629946,0.42131472943460319,0.39351322494540164,0.42043678718757582,0.35800533851007038,0.42043678718757582,0.40560931812666828,0.360541616112594,0.37946614899296288,0.42824071827226401,0.46433389953894694,0.43019170104343613,0.410447755399175,0.41068187333171569,0.39702499393351132,0.36873574375151658,0.40200000000000002,0.4145838388740597,0.38273404513467602,0.38239262314972094,0.40287794224702739,0.37946614899296288,0.39214753700558119,0.38824557146323702,0.37829555933025971,0.38629458869206507,0.43019170104343613,0.39845896627032273,108]
[null,"Female 65-69",{"$f":"$AR111*C$253","v":0.41649842271293364},0.45565639407910696,0.48888133948070855,0.50668041737442371,0.47820189274447944,0.53954938121815088,0.50429534093666584,0.50074739140985203,0.54465178354768251,0.56515632128124227,{"$f":"$AR111*M$253","v":0.56482407182722638},0.525666100461053,0.55651783547682587,0.47582868235865083,0.4615894200436787,0.47582868235865083,0.45802960446493568,0.39632613443338999,0.48413491870905112,0.54465178354768251,{"$f":"$AR111*W$253","v":0.48674545013346271},0.48650812909487984,0.50976559087600082,0.54583838874059698,0.50549381218150924,0.47037029847124484,0.51249478281970384,0.47867653482164524,0.51142683814608092,0.4354841057995632,{"$f":"$AR111*AG$253","v":0.51142683814608092},0.49339043921378306,0.43856927930114042,0.4615894200436787,0.52091967968939568,0.56482407182722638,0.5232928900752245,0.49927600097063818,0.49956078621693767,0.48294831351613687,0.44853676292162087,0.48899999999999999,{"$f":"$AR111*AS$253","v":0.50430720698859499},0.46556454743994169,0.46514923562242172,0.49006794467362286,0.4615894200436787,0.47701528755156514,0.4722688667799077,0.46016549381218153,0.4698956563940791,0.5232928900752245,0.48469262314972089,109]
[null,"Female 70-74",0.41649842271293364,0.45565639407910696,0.48888133948070855,0.50668041737442371,0.47820189274447944,0.53954938121815088,0.50429534093666584,0.50074739140985203,0.54465178354768251,0.56515632128124227,0.56482407182722638,0.525666100461053,0.55651783547682587,0.47582868235865083,0.4615894200436787,0.47582868235865083,0.45802960446493568,0.39632613443338999,0.48413491870905112,0.54465178354768251,0.48674545013346271,0.48650812909487984,0.50976559087600082,0.54583838874059698,0.50549381218150924,0.47037029847124484,0.51249478281970384,0.47867653482164524,0.51142683814608092,0.4354841057995632,0.51142683814608092,0.49339043921378306,0.43856927930114042,0.4615894200436787,0.52091967968939568,0.56482407182722638,0.5232928900752245,0.49927600097063818,0.49956078621693767,0.48294831351613687,0.44853676292162087,0.48899999999999999,0.50430720698859499,0.46556454743994169,0.46514923562242172,0.49006794467362286,0.4615894200436787,0.47701528755156514,0.4722688667799077,0.46016549381218153,0.4698956563940791,0.5232928900752245,0.48469262314972089,110]
[null,"Female 75-79",0.6183596214511039,0.67649599611744715,0.72582382916767774,0.75224945401601551,0.70996845425867494,0.80104877456927925,0.74870842028633822,0.74344091239990295,0.808624120359136,0.83906644018442111,0.83857316185391895,0.78043678718757559,0.82624120359136111,0.70644503761222999,0.6853045377335597,0.70644503761222999,0.68001941276389222,0.58841057995632129,0.71877699587478761,0.808624120359136,0.72265275418587716,0.72230041252123267,0.75682989565639391,0.81038582868235864,0.75048774569279286,0.69834117932540651,0.76088182479980571,0.71067313758796413,0.75929628730890553,0.64654695462266443,0.75929628730890553,0.73251832079592327,0.65112739626304283,0.6853045377335597,0.77338995389468568,0.83857316185391895,0.77691337054113085,0.74125639407910693,0.74167920407668053,0.71701528755156518,0.66592574617811195,0.72599999999999998,0.74872603736957044,0.69120626061635515,0.69058966270322741,0.72758553749090016,0.6853045377335597,0.70820674593545252,0.70115991264256239,0.6831904877456928,0.69763649599611743,0.77691337054113085,0.71960499878670214,111]
[null,"Female 80-84",0.6183596214511039,0.67649599611744715,0.72582382916767774,0.75224945401601551,0.70996845425867494,0.80104877456927925,0.74870842028633822,0.74344091239990295,0.808624120359136,0.83906644018442111,0.83857316185391895,0.78043678718757559,0.82624120359136111,0.70644503761222999,0.6853045377335597,0.70644503761222999,0.68001941276389222,0.58841057995632129,0.71877699587478761,0.808624120359136,0.72265275418587716,0.72230041252123267,0.75682989565639391,0.81038582868235864,0.75048774569279286,0.69834117932540651,0.76088182479980571,0.71067313758796413,0.75929628730890553,0.64654695462266443,0.75929628730890553,0.73251832079592327,0.65112739626304283,0.6853045377335597,0.77338995389468568,0.83857316185391895,0.77691337054113085,0.74125639407910693,0.74167920407668053,0.71701528755156518,0.66592574617811195,0.72599999999999998,0.74872603736957044,0.69120626061635515,0.69058966270322741,0.72758553749090016,0.6853045377335597,0.70820674593545252,0.70115991264256239,0.6831904877456928,0.69763649599611743,0.77691337054113085,0.71960499878670214,112]
[null,"Female 85-89",0.6183596214511039,0.67649599611744715,0.72582382916767774,0.75224945401601551,0.70996845425867494,0.80104877456927925,0.74870842028633822,0.74344091239990295,0.808624120359136,0.83906644018442111,0.83857316185391895,0.78043678718757559,0.82624120359136111,0.70644503761222999,0.6853045377335597,0.70644503761222999,0.68001941276389222,0.58841057995632129,0.71877699587478761,0.808624120359136,0.72265275418587716,0.72230041252123267,0.75682989565639391,0.81038582868235864,0.75048774569279286,0.69834117932540651,0.76088182479980571,0.71067313758796413,0.75929628730890553,0.64654695462266443,0.75929628730890553,0.73251832079592327,0.65112739626304283,0.6853045377335597,0.77338995389468568,0.83857316185391895,0.77691337054113085,0.74125639407910693,0.74167920407668053,0.71701528755156518,0.66592574617811195,0.72599999999999998,0.74872603736957044,0.69120626061635515,0.69058966270322741,0.72758553749090016,0.6853045377335597,0.70820674593545252,0.70115991264256239,0.6831904877456928,0.69763649599611743,0.77691337054113085,0.71960499878670214,113]
[null,"Female 90+",0.6183596214511039,0.67649599611744715,0.72582382916767774,0.75224945401601551,0.70996845425867494,0.80104877456927925,0.74870842028633822,0.74344091239990295,0.808624120359136,0.83906644018442111,0.83857316185391895,0.78043678718757559,0.82624120359136111,0.70644503761222999,0.6853045377335597,0.70644503761222999,0.68001941276389222,0.58841057995632129,0.71877699587478761,0.808624120359136,0.72265275418587716,0.72230041252123267,0.75682989565639391,0.81038582868235864,0.75048774569279286,0.69834117932540651,0.76088182479980571,0.71067313758796413,0.75929628730890553,0.64654695462266443,0.75929628730890553,0.73251832079592327,0.65112739626304283,0.6853045377335597,0.77338995389468568,0.83857316185391895,0.77691337054113085,0.74125639407910693,0.74167920407668053,0.71701528755156518,0.66592574617811195,0.72599999999999998,0.74872603736957044,0.69120626061635515,0.69058966270322741,0.72758553749090016,0.6853045377335597,0.70820674593545252,0.70115991264256239,0.6831904877456928,0.69763649599611743,0.77691337054113085,0.71960499878670214,114]
[null,"Male 0-4",null,null,null,null,null,null,null,null,null,null,null,null,null,null,null,null,null,null,null,null,null,null,null,null,null,null,null,null,null,null,null,null,null,null,null,null,null,null,null,null,null,0,null,null,null,null,null,null,null,null,null,null,null,115]
[null,"Male 5-9",null,null,null,null,null,null,null,null,null,null,null,null,null,null,null,null,null,null,null,null,null,null,null,null,null,null,null,null,null,null,null,null,null,null,null,null,null,null,null,null,null,0,null,null,null,null,null,null,null,null,null,null,null,116]
[null,"Male 10-15",null,null,null,null,null,null,null,null,null,null,null,null,null,null,null,null,null,null,null,null,null,null,null,null,null,null,null,null,null,null,null,null,null,null,null,null,null,null,null,null,null,0,null,null,null,null,null,null,null,null,null,null,null,117]
[null,"Male 16-19",{"$f":"$AR120*C$254","v":0.28180254777070063},0.29526751592356693,0.30584713375796169,0.31642675159235678,0.29622929936305731,0.32575605095541404,0.34325089171974515,0.24910191082802552,0.29815286624203818,0.30912681528662422,{"$f":"$AR120*M$254","v":0.30873248407643306},0.31642675159235678,0.34720382165605096,0.27218471337579614,0.35585987261146496,0.27218471337579614,0.28276433121019112,0.23563694267515922,0.29045859872611468,0.29815286624203818,{"$f":"$AR120*W$254","v":0.28007133757961789},0.27987898089171964,0.28478407643312098,0.30392356687898081,0.31450318471337579,0.29853757961783445,0.29949936305732483,0.29603694267515923,0.32412101910828028,0.3010382165605095,{"$f":"$AR120*AG$254","v":0.32412101910828028},0.34047133757961789,0.27641656050955404,0.35585987261146496,0.30200000000000005,0.32892993630573253,0.37028662420382169,0.3235343312101911,0.32315923566878979,0.30296178343949048,0.29622929936305731,0.30200000000000005,{"$f":"$AR120*AS$254","v":0.34335668789808921},0.29108375796178348,0.29142038216560506,0.2971910828025478,0.30680891719745229,0.27410828025477707,0.29622929936305731,0.30950191082802558,0.29334394904458599,0.31738853503184711,0.29041050955414005,118]
[null,"Male 20-24",0.28180254777070063,0.29526751592356693,0.30584713375796169,0.31642675159235678,0.29622929936305731,0.32575605095541404,0.34325089171974515,0.24910191082802552,0.29815286624203818,0.30912681528662422,0.30873248407643306,0.31642675159235678,0.34720382165605096,0.27218471337579614,0.35585987261146496,0.27218471337579614,0.28276433121019112,0.23563694267515922,0.29045859872611468,0.29815286624203818,0.28007133757961789,0.27987898089171964,0.28478407643312098,0.30392356687898081,0.31450318471337579,0.29853757961783445,0.29949936305732483,0.29603694267515923,0.32412101910828028,0.3010382165605095,0.32412101910828028,0.34047133757961789,0.27641656050955404,0.35585987261146496,0.30200000000000005,0.32892993630573253,0.37028662420382169,0.3235343312101911,0.32315923566878979,0.30296178343949048,0.29622929936305731,0.30200000000000005,0.34335668789808921,0.29108375796178348,0.29142038216560506,0.2971910828025478,0.30680891719745229,0.27410828025477707,0.29622929936305731,0.30950191082802558,0.29334394904458599,0.31738853503184711,0.29041050955414005,119]
[null,"Male 25-29",0.32379299363057318,0.33926433121019112,0.35142038216560495,0.36357643312101917,0.34036942675159232,0.37429585987261149,0.39439754777070052,0.28621974522292998,0.34257961783439483,0.3551887579617834,0.35473566878980883,0.36357643312101917,0.39893949044585986,0.31274203821656049,0.40888535031847129,0.31274203821656049,0.32489808917197449,0.27074840764331204,0.33373885350318472,0.34257961783439483,0.32180382165605098,0.32158280254777061,0.32721878980891711,0.34921019108280243,0.36136624203821655,0.34302165605095547,0.34412675159235667,0.34014840764331211,0.37241719745222929,0.34589490445859866,0.37241719745222929,0.391203821656051,0.31760445859872599,0.40888535031847129,0.34700000000000003,0.37794267515923569,0.42546178343949043,0.37174308917197446,0.37131210191082797,0.34810509554140129,0.34036942675159232,0.34700000000000003,0.39451910828025477,0.33445716560509553,0.33484394904458592,0.34147452229299369,0.35252547770700643,0.31495222929936301,0.34036942675159232,0.35561974522292999,0.33705414012738849,0.36468152866242032,0.33368359872611458,120]
[null,"Male 30-34",0.32379299363057318,0.33926433121019112,0.35142038216560495,0.36357643312101917,0.34036942675159232,0.37429585987261149,0.39439754777070052,0.28621974522292998,0.34257961783439483,0.3551887579617834,0.35473566878980883,0.36357643312101917,0.39893949044585986,0.31274203821656049,0.40888535031847129,0.31274203821656049,0.32489808917197449,0.27074840764331204,0.33373885350318472,0.34257961783439483,0.32180382165605098,0.32158280254777061,0.32721878980891711,0.34921019108280243,0.36136624203821655,0.34302165605095547,0.34412675159235667,0.34014840764331211,0.37241719745222929,0.34589490445859866,0.37241719745222929,0.391203821656051,0.31760445859872599,0.40888535031847129,0.34700000000000003,0.37794267515923569,0.42546178343949043,0.37174308917197446,0.37131210191082797,0.34810509554140129,0.34036942675159232,0.34700000000000003,0.39451910828025477,0.33445716560509553,0.33484394904458592,0.34147452229299369,0.35252547770700643,0.31495222929936301,0.34036942675159232,0.35561974522292999,0.33705414012738849,0.36468152866242032,0.33368359872611458,121]
[null,"Male 35-39",0.32192675159235662,0.33730891719745221,0.34939490445859855,0.36148089171974523,0.33840764331210182,0.37213853503184707,0.39212436305732468,0.28457006369426752,0.34060509554140117,0.35314156050955409,0.35269108280254763,0.36148089171974523,0.39664012738853494,0.31093949044585978,0.40652866242038205,0.31093949044585978,0.32302547770700629,0.26918789808917187,0.33181528662420379,0.34060509554140117,0.31994904458598722,0.31972929936305716,0.32533280254777058,0.34719745222929921,0.35928343949044578,0.34104458598726112,0.34214331210191079,0.33818789808917193,0.37027070063694262,0.34390127388535019,0.37027070063694262,0.38894904458598722,0.31577388535031831,0.40652866242038205,0.34499999999999997,0.37576433121019104,0.42300955414012731,0.36960047770700627,0.36917197452229289,0.34609872611464959,0.33840764331210182,0.34499999999999997,0.39224522292993624,0.33252945859872607,0.3329140127388534,0.33950636942675155,0.35049363057324839,0.31313694267515912,0.33840764331210182,0.35357006369426752,0.33511146496815275,0.3625796178343948,0.33176035031847118,122]
[null,"Male 40-44",0.32192675159235662,0.33730891719745221,0.34939490445859855,0.36148089171974523,0.33840764331210182,0.37213853503184707,0.39212436305732468,0.28457006369426752,0.34060509554140117,0.35314156050955409,0.35269108280254763,0.36148089171974523,0.39664012738853494,0.31093949044585978,0.40652866242038205,0.31093949044585978,0.32302547770700629,0.26918789808917187,0.33181528662420379,0.34060509554140117,0.31994904458598722,0.31972929936305716,0.32533280254777058,0.34719745222929921,0.35928343949044578,0.34104458598726112,0.34214331210191079,0.33818789808917193,0.37027070063694262,0.34390127388535019,0.37027070063694262,0.38894904458598722,0.31577388535031831,0.40652866242038205,0.34499999999999997,0.37576433121019104,0.42300955414012731,0.36960047770700627,0.36917197452229289,0.34609872611464959,0.33840764331210182,0.34499999999999997,0.39224522292993624,0.33252945859872607,0.3329140127388534,0.33950636942675155,0.35049363057324839,0.31313694267515912,0.33840764331210182,0.35357006369426752,0.33511146496815275,0.3625796178343948,0.33176035031847118,123]
[null,"Male 45-49",0.34432165605095533,0.36077388535031846,0.37370063694267497,0.38662738853503187,0.3619490445859872,0.3980264331210191,0.41940257961783423,0.30436624203821655,0.36429936305732474,0.3777079299363057,0.37722611464968142,0.38662738853503187,0.42423248407643305,0.33257006369426745,0.43480891719745213,0.33257006369426745,0.34549681528662418,0.28791401273885342,0.35489808917197452,0.36429936305732474,0.34220636942675159,0.34197133757961767,0.34796464968152857,0.37135031847133743,0.38427707006369421,0.36476942675159235,0.3659445859872611,0.36171401273885345,0.39602866242038209,0.36782484076433108,0.39602866242038209,0.41600636942675157,0.33774076433121003,0.43480891719745213,0.36899999999999999,0.40190445859872609,0.452436305732484,0.39531181528662412,0.39485350318471329,0.37017515923566874,0.3619490445859872,0.36899999999999999,0.41953184713375791,0.35566194267515922,0.35607324840764321,0.36312420382165606,0.37487579617834399,0.33492038216560499,0.3619490445859872,0.37816624203821658,0.3584235668789808,0.38780254777070056,0.35483933121019096,124]
[null,"Male 50-54",0.34432165605095533,0.36077388535031846,0.37370063694267497,0.38662738853503187,0.3619490445859872,0.3980264331210191,0.41940257961783423,0.30436624203821655,0.36429936305732474,0.3777079299363057,0.37722611464968142,0.38662738853503187,0.42423248407643305,0.33257006369426745,0.43480891719745213,0.33257006369426745,0.34549681528662418,0.28791401273885342,0.35489808917197452,0.36429936305732474,0.34220636942675159,0.34197133757961767,0.34796464968152857,0.37135031847133743,0.38427707006369421,0.36476942675159235,0.3659445859872611,0.36171401273885345,0.39602866242038209,0.36782484076433108,0.39602866242038209,0.41600636942675157,0.33774076433121003,0.43480891719745213,0.36899999999999999,0.40190445859872609,0.452436305732484,0.39531181528662412,0.39485350318471329,0.37017515923566874,0.3619490445859872,0.36899999999999999,0.41953184713375791,0.35566194267515922,0.35607324840764321,0.36312420382165606,0.37487579617834399,0.33492038216560499,0.3619490445859872,0.37816624203821658,0.3584235668789808,0.38780254777070056,0.35483933121019096,125]
[null,"Male 55-59",0.48615605095541392,0.50938535031847132,0.52763694267515904,0.5458885350318472,0.5110445859872611,0.5619831210191083,0.59216461783439478,0.42974203821656054,0.51436305732484067,0.53329493630573244,0.5326146496815285,0.5458885350318472,0.59898407643312102,0.46956369426751582,0.61391719745222917,0.46956369426751582,0.48781528662420381,0.40651273885350309,0.5010891719745223,0.51436305732484067,0.48316942675159236,0.48283757961783419,0.49129968152866232,0.52431847133757936,0.54257006369426752,0.51502675159235667,0.51668598726114645,0.5107127388535031,0.55916242038216557,0.51934076433121001,0.55916242038216557,0.58736942675159232,0.47686433121019089,0.61391719745222917,0.52100000000000002,0.5674585987261147,0.63880573248407635,0.55815028662420374,0.55750318471337568,0.5226592356687898,0.5110445859872611,0.52100000000000002,0.59234713375796177,0.50216767515923566,0.50274840764331197,0.512703821656051,0.52929617834394915,0.47288216560509544,0.5110445859872611,0.53394203821656061,0.50606687898089164,0.54754777070063687,0.5010062101910826,126]
[null,"Male 60-64",0.48615605095541392,0.50938535031847132,0.52763694267515904,0.5458885350318472,0.5110445859872611,0.5619831210191083,0.59216461783439478,0.42974203821656054,0.51436305732484067,0.53329493630573244,0.5326146496815285,0.5458885350318472,0.59898407643312102,0.46956369426751582,0.61391719745222917,0.46956369426751582,0.48781528662420381,0.40651273885350309,0.5010891719745223,0.51436305732484067,0.48316942675159236,0.48283757961783419,0.49129968152866232,0.52431847133757936,0.54257006369426752,0.51502675159235667,0.51668598726114645,0.5107127388535031,0.55916242038216557,0.51934076433121001,0.55916242038216557,0.58736942675159232,0.47686433121019089,0.61391719745222917,0.52100000000000002,0.5674585987261147,0.63880573248407635,0.55815028662420374,0.55750318471337568,0.5226592356687898,0.5110445859872611,0.52100000000000002,0.59234713375796177,0.50216767515923566,0.50274840764331197,0.512703821656051,0.52929617834394915,0.47288216560509544,0.5110445859872611,0.53394203821656061,0.50606687898089164,0.54754777070063687,0.5010062101910826,127]
[null,"Male 65-69",{"$f":"$AR130*C$254","v":0.54867515923566867},0.57489171974522291,0.59549044585987232,0.61608917197452229,0.57676433121019088,0.6342535031847133,0.6683163057324838,0.48500636942675157,0.58050955414012728,0.60187605095541385,{"$f":"$AR130*M$254","v":0.60110828025477681},0.61608917197452229,0.6760127388535031,0.52994904458598713,0.69286624203821634,0.52994904458598713,0.55054777070063687,0.45878980891719734,0.56552866242038213,0.58050955414012728,{"$f":"$AR130*W$254","v":0.54530445859872612},0.54492993630573217,0.55448025477706986,0.59174522292993603,0.61234394904458589,0.58125859872611463,0.58313121019108272,0.57638980891719738,0.63107006369426744,0.58612738853503166,{"$f":"$AR130*AG$254","v":0.63107006369426744},0.66290445859872604,0.53818853503184683,0.69286624203821634,0.58799999999999997,0.64043312101910821,0.72095541401273877,0.62992777070063677,0.62919745222929924,0.58987261146496806,0.57676433121019088,0.58799999999999997,{"$f":"$AR130*AS$254","v":0.66852229299363042},0.56674585987261139,0.56740127388535011,0.57863694267515919,0.59736305732484074,0.53369426751592342,0.57676433121019088,0.60260636942675161,0.57114649681528651,0.61796178343949026,0.56543503184713351,128]
[null,"Male 70-74",0.54867515923566867,0.57489171974522291,0.59549044585987232,0.61608917197452229,0.57676433121019088,0.6342535031847133,0.6683163057324838,0.48500636942675157,0.58050955414012728,0.60187605095541385,0.60110828025477681,0.61608917197452229,0.6760127388535031,0.52994904458598713,0.69286624203821634,0.52994904458598713,0.55054777070063687,0.45878980891719734,0.56552866242038213,0.58050955414012728,0.54530445859872612,0.54492993630573217,0.55448025477706986,0.59174522292993603,0.61234394904458589,0.58125859872611463,0.58313121019108272,0.57638980891719738,0.63107006369426744,0.58612738853503166,0.63107006369426744,0.66290445859872604,0.53818853503184683,0.69286624203821634,0.58799999999999997,0.64043312101910821,0.72095541401273877,0.62992777070063677,0.62919745222929924,0.58987261146496806,0.57676433121019088,0.58799999999999997,0.66852229299363042,0.56674585987261139,0.56740127388535011,0.57863694267515919,0.59736305732484074,0.53369426751592342,0.57676433121019088,0.60260636942675161,0.57114649681528651,0.61796178343949026,0.56543503184713351,129]
[null,"Male 75-79",0.77728980891719723,0.81442993630573246,0.84361146496815242,0.87279299363057328,0.81708280254777044,0.89852579617834383,0.9467814331210187,0.68709235668789814,0.82238853503184695,0.85265773885350304,0.85157006369426724,0.87279299363057328,0.95768471337579597,0.75076114649681513,0.98156050955413987,0.75076114649681513,0.77994267515923554,0.64995222929936292,0.80116560509554136,0.82238853503184695,0.77251464968152861,0.77198407643312061,0.78551369426751572,0.83830573248407603,0.86748726114649666,0.82344968152866238,0.82610254777070047,0.81655222929936289,0.89401592356687887,0.83034713375796143,0.89401592356687887,0.93911464968152858,0.76243375796178303,0.98156050955413987,0.83299999999999996,0.90728025477706997,1.0213535031847132,0.89239767515923551,0.89136305732484056,0.83565286624203805,0.81708280254777044,0.83299999999999996,0.94707324840764318,0.80288996815286617,0.80381847133757944,0.81973566878980886,0.84626433121019118,0.75606687898089153,0.81708280254777044,0.85369235668789811,0.80912420382165584,0.87544585987261125,0.80103296178343919,130]
[null,"Male 80-84",0.77728980891719723,0.81442993630573246,0.84361146496815242,0.87279299363057328,0.81708280254777044,0.89852579617834383,0.9467814331210187,0.68709235668789814,0.82238853503184695,0.85265773885350304,0.85157006369426724,0.87279299363057328,0.95768471337579597,0.75076114649681513,0.98156050955413987,0.75076114649681513,0.77994267515923554,0.64995222929936292,0.80116560509554136,0.82238853503184695,0.77251464968152861,0.77198407643312061,0.78551369426751572,0.83830573248407603,0.86748726114649666,0.82344968152866238,0.82610254777070047,0.81655222929936289,0.89401592356687887,0.83034713375796143,0.89401592356687887,0.93911464968152858,0.76243375796178303,0.98156050955413987,0.83299999999999996,0.90728025477706997,1.0213535031847132,0.89239767515923551,0.89136305732484056,0.83565286624203805,0.81708280254777044,0.83299999999999996,0.94707324840764318,0.80288996815286617,0.80381847133757944,0.81973566878980886,0.84626433121019118,0.75606687898089153,0.81708280254777044,0.85369235668789811,0.80912420382165584,0.87544585987261125,0.80103296178343919,131]
[null,"Male 85-89",0.77728980891719723,0.81442993630573246,0.84361146496815242,0.87279299363057328,0.81708280254777044,0.89852579617834383,0.9467814331210187,0.68709235668789814,0.82238853503184695,0.85265773885350304,0.85157006369426724,0.87279299363057328,0.95768471337579597,0.75076114649681513,0.98156050955413987,0.75076114649681513,0.77994267515923554,0.64995222929936292,0.80116560509554136,0.82238853503184695,0.77251464968152861,0.77198407643312061,0.78551369426751572,0.83830573248407603,0.86748726114649666,0.82344968152866238,0.82610254777070047,0.81655222929936289,0.89401592356687887,0.83034713375796143,0.89401592356687887,0.93911464968152858,0.76243375796178303,0.98156050955413987,0.83299999999999996,0.90728025477706997,1.0213535031847132,0.89239767515923551,0.89136305732484056,0.83565286624203805,0.81708280254777044,0.83299999999999996,0.94707324840764318,0.80288996815286617,0.80381847133757944,0.81973566878980886,0.84626433121019118,0.75606687898089153,0.81708280254777044,0.85369235668789811,0.80912420382165584,0.87544585987261125,0.80103296178343919,132]
[null,"Male 90+",0.77728980891719723,0.81442993630573246,0.84361146496815242,0.87279299363057328,0.81708280254777044,0.89852579617834383,0.9467814331210187,0.68709235668789814,0.82238853503184695,0.85265773885350304,0.85157006369426724,0.87279299363057328,0.95768471337579597,0.75076114649681513,0.98156050955413987,0.75076114649681513,0.77994267515923554,0.64995222929936292,0.80116560509554136,0.82238853503184695,0.77251464968152861,0.77198407643312061,0.78551369426751572,0.83830573248407603,0.86748726114649666,0.82344968152866238,0.82610254777070047,0.81655222929936289,0.89401592356687887,0.83034713375796143,0.89401592356687887,0.93911464968152858,0.76243375796178303,0.98156050955413987,0.83299999999999996,0.90728025477706997,1.0213535031847132,0.89239767515923551,0.89136305732484056,0.83565286624203805,0.81708280254777044,0.83299999999999996,0.94707324840764318,0.80288996815286617,0.80381847133757944,0.81973566878980886,0.84626433121019118,0.75606687898089153,0.81708280254777044,0.85369235668789811,0.80912420382165584,0.87544585987261125,0.80103296178343919,133]
["SIMD Q3","Female 0-4",null,null,null,null,null,null,null,null,null,null,null,null,null,null,null,null,null,null,null,null,null,null,null,null,null,null,null,null,null,null,null,null,null,null,null,null,null,null,null,null,null,0,null,null,null,null,null,null,null,null,null,null,null,134]
[null,"Female 5-9",null,null,null,null,null,null,null,null,null,null,null,null,null,null,null,null,null,null,null,null,null,null,null,null,null,null,null,null,null,null,null,null,null,null,null,null,null,null,null,null,null,0,null,null,null,null,null,null,null,null,null,null,null,135]
[null,"Female 10-15",null,null,null,null,null,null,null,null,null,null,null,null,null,null,null,null,null,null,null,null,null,null,null,null,null,null,null,null,null,null,null,null,null,null,null,null,null,null,null,null,null,0,null,null,null,null,null,null,null,null,null,null,null,136]
[null,"Female 16-19",{"$f":"$AR139*C$253","v":9.9652996845425876E-2},0.10902208201892748,0.11697160883280761,0.12123028391167197,0.11441640378548898,0.1290946372239748,0.12065962145110413,0.11981072555205052,0.13031545741324924,0.13522145110410097,{"$f":"$AR139*M$253","v":0.1351419558359622},0.12577287066246057,0.13315457413249213,0.11384858044164041,0.11044164037854892,0.11384858044164041,0.10958990536277606,9.4826498422712971E-2,0.11583596214511044,0.13031545741324924,{"$f":"$AR139*W$253","v":0.11646056782334388},0.11640378548895901,0.12196845425867509,0.13059936908517353,0.12094637223974766,0.11254258675078868,0.12262145110410096,0.11452996845425871,0.12236593059936911,0.10419558359621454,{"$f":"$AR139*AG$253","v":0.12236593059936911},0.11805047318611991,0.10493375394321768,0.11044164037854892,0.12463722397476343,0.1351419558359622,0.12520504731861204,0.11945867507886439,0.11952681388012623,0.11555205047318616,0.10731861198738171,0.11700000000000003,{"$f":"$AR139*AS$253","v":0.12066246056782337},0.11139274447949528,0.1112933753943218,0.11725552050473188,0.11044164037854892,0.1141324921135647,0.11299684542586752,0.11010094637223979,0.11242902208201896,0.12520504731861204,0.11596940063091485,137]
[null,"Female 20-24",9.9652996845425876E-2,0.10902208201892748,0.11697160883280761,0.12123028391167197,0.11441640378548898,0.1290946372239748,0.12065962145110413,0.11981072555205052,0.13031545741324924,0.13522145110410097,0.1351419558359622,0.12577287066246057,0.13315457413249213,0.11384858044164041,0.11044164037854892,0.11384858044164041,0.10958990536277606,9.4826498422712971E-2,0.11583596214511044,0.13031545741324924,0.11646056782334388,0.11640378548895901,0.12196845425867509,0.13059936908517353,0.12094637223974766,0.11254258675078868,0.12262145110410096,0.11452996845425871,0.12236593059936911,0.10419558359621454,0.12236593059936911,0.11805047318611991,0.10493375394321768,0.11044164037854892,0.12463722397476343,0.1351419558359622,0.12520504731861204,0.11945867507886439,0.11952681388012623,0.11555205047318616,0.10731861198738171,0.11700000000000003,0.12066246056782337,0.11139274447949528,0.1112933753943218,0.11725552050473188,0.11044164037854892,0.1141324921135647,0.11299684542586752,0.11010094637223979,0.11242902208201896,0.12520504731861204,0.11596940063091485,138]
[null,"Female 25-29",9.7949526813880111E-2,0.10715845668527056,0.11497209415190489,0.11915797136617327,0.11246056782334385,0.12688789128852221,0.11859706381946131,0.11776267896141715,0.12808784275661245,0.13290997330744964,0.13283183693278333,0.12362290706139284,0.13087842756612469,0.1119024508614414,0.10855374909002669,0.1119024508614414,0.10771657364717302,9.320553263770931E-2,0.11385586022809997,0.12808784275661245,0.11446978888619268,0.11441397719000242,0.11988352341664643,0.1283669012375637,0.11887891288522202,0.11061878184906578,0.12052535792283424,0.11257219121572434,0.12027420528997815,0.10241446250909975,0.12027420528997815,0.11603251637951954,0.1031400145595729,0.10855374909002669,0.12250667313758797,0.13283183693278333,0.12306479009949042,0.11741664644503762,0.11748362048046593,0.11357680174714876,0.1054841057995632,0.115,0.1185998544042708,0.10948859500121329,0.10939092453288038,0.1152511526328561,0.10855374909002669,0.11218150934239263,0.11106527541858771,0.10821887891288523,0.11050715845668528,0.12306479009949042,0.11398701771414704,139]
[null,"Female 30-34",9.7949526813880111E-2,0.10715845668527056,0.11497209415190489,0.11915797136617327,0.11246056782334385,0.12688789128852221,0.11859706381946131,0.11776267896141715,0.12808784275661245,0.13290997330744964,0.13283183693278333,0.12362290706139284,0.13087842756612469,0.1119024508614414,0.10855374909002669,0.1119024508614414,0.10771657364717302,9.320553263770931E-2,0.11385586022809997,0.12808784275661245,0.11446978888619268,0.11441397719000242,0.11988352341664643,0.1283669012375637,0.11887891288522202,0.11061878184906578,0.12052535792283424,0.11257219121572434,0.12027420528997815,0.10241446250909975,0.12027420528997815,0.11603251637951954,0.1031400145595729,0.10855374909002669,0.12250667313758797,0.13283183693278333,0.12306479009949042,0.11741664644503762,0.11748362048046593,0.11357680174714876,0.1054841057995632,0.115,0.1185998544042708,0.10948859500121329,0.10939092453288038,0.1152511526328561,0.10855374909002669,0.11218150934239263,0.11106527541858771,0.10821887891288523,0.11050715845668528,0.12306479009949042,0.11398701771414704,140]
[null,"Female 35-39",0.19419558359621444,0.21245328803688424,0.22794467362290705,0.23624363018684785,0.22296529968454254,0.2515690366415918,0.23513157000727977,0.23347731133220093,0.25394807085658816,0.26350846881824791,0.26335355496238777,0.24509585052171795,0.25948070856588201,0.22185877214268379,0.21521960689153116,0.22185877214268379,0.21355981557874301,0.18479009949041494,0.22573161853918947,0.25394807085658816,0.22694879883523414,0.22683814608104824,0.23768211599126418,0.25450133462751756,0.23569036641591842,0.21931375879640863,0.23895462266440176,0.22318660519291433,0.23845668527056535,0.20304780393108468,0.23845668527056535,0.2300470759524387,0.20448628973550104,0.21521960689153116,0.24288279543800045,0.26335355496238777,0.24398932297985926,0.23279126425624846,0.23292404756127155,0.22517835476826012,0.20913370541130788,0.22799999999999998,0.23513710264498905,0.21707304052414458,0.21687939820431931,0.22849793739383639,0.21521960689153116,0.22241203591361317,0.22019898082989559,0.21455569036641592,0.21909245328803686,0.24398932297985926,0.22599165251152628,141]
[null,"Female 40-44",0.19419558359621444,0.21245328803688424,0.22794467362290705,0.23624363018684785,0.22296529968454254,0.2515690366415918,0.23513157000727977,0.23347731133220093,0.25394807085658816,0.26350846881824791,0.26335355496238777,0.24509585052171795,0.25948070856588201,0.22185877214268379,0.21521960689153116,0.22185877214268379,0.21355981557874301,0.18479009949041494,0.22573161853918947,0.25394807085658816,0.22694879883523414,0.22683814608104824,0.23768211599126418,0.25450133462751756,0.23569036641591842,0.21931375879640863,0.23895462266440176,0.22318660519291433,0.23845668527056535,0.20304780393108468,0.23845668527056535,0.2300470759524387,0.20448628973550104,0.21521960689153116,0.24288279543800045,0.26335355496238777,0.24398932297985926,0.23279126425624846,0.23292404756127155,0.22517835476826012,0.20913370541130788,0.22799999999999998,0.23513710264498905,0.21707304052414458,0.21687939820431931,0.22849793739383639,0.21521960689153116,0.22241203591361317,0.22019898082989559,0.21455569036641592,0.21909245328803686,0.24398932297985926,0.22599165251152628,142]
[null,"Female 45-49",0.2205993690851735,0.24133948070856592,0.25893715117689886,0.26836447464207724,0.25328075709779185,0.28577359864110657,0.26710121329774333,0.26522203348701778,0.28847609803445767,0.29933637466634316,0.29916039796165989,0.27842028633826743,0.2947609803445766,0.25202378063576808,0.24448192186362538,0.25202378063576808,0.24259645717058972,0.20991506915797145,0.25642319825285126,0.28847609803445767,0.25780587236107744,0.25768017471487509,0.26999854404270812,0.28910458626546964,0.26773598641106533,0.2491327347731134,0.27144406697403545,0.25353215239019661,0.27087842756612474,0.23065518078136382,0.27087842756612474,0.26132540645474406,0.23228925018199467,0.24448192186362538,0.27590633341421988,0.29916039796165989,0.27716330987624371,0.26444270808056303,0.26459354525600592,0.25579471002183946,0.23756855132249455,0.25900000000000006,0.26710749818005342,0.2465873574375152,0.24636738655666107,0.25956563940791072,0.24448192186362538,0.25265226886677994,0.25013831594273234,0.24372773598641115,0.24888133948070865,0.27716330987624371,0.25671858772142686,143]
[null,"Female 50-54",0.2205993690851735,0.24133948070856592,0.25893715117689886,0.26836447464207724,0.25328075709779185,0.28577359864110657,0.26710121329774333,0.26522203348701778,0.28847609803445767,0.29933637466634316,0.29916039796165989,0.27842028633826743,0.2947609803445766,0.25202378063576808,0.24448192186362538,0.25202378063576808,0.24259645717058972,0.20991506915797145,0.25642319825285126,0.28847609803445767,0.25780587236107744,0.25768017471487509,0.26999854404270812,0.28910458626546964,0.26773598641106533,0.2491327347731134,0.27144406697403545,0.25353215239019661,0.27087842756612474,0.23065518078136382,0.27087842756612474,0.26132540645474406,0.23228925018199467,0.24448192186362538,0.27590633341421988,0.29916039796165989,0.27716330987624371,0.26444270808056303,0.26459354525600592,0.25579471002183946,0.23756855132249455,0.25900000000000006,0.26710749818005342,0.2465873574375152,0.24636738655666107,0.25956563940791072,0.24448192186362538,0.25265226886677994,0.25013831594273234,0.24372773598641115,0.24888133948070865,0.27716330987624371,0.25671858772142686,144]
[null,"Female 55-59",0.35347003154574125,0.38670225673380243,0.41489929628730887,0.43000485319097309,0.40583596214511036,0.45789978160640621,0.42798070856588205,0.42496966755641835,0.46223004125212319,0.47963164280514425,0.47934967240960935,0.44611744722154806,0.47230041252123262,0.40382188789128853,0.39173744236835717,0.40382188789128853,0.38871633098762431,0.33635040038825531,0.41087114777966505,0.46223004125212319,0.41308662945886915,0.41288522203348693,0.4326231497209414,0.46323707837903422,0.42899781606406207,0.39918951710749817,0.43493933511283656,0.4062387769958748,0.43403300169861675,0.36958262557631644,0.43403300169861675,0.41872603736957048,0.3722009221062848,0.39173744236835717,0.44208929871390434,0.47934967240960935,0.44410337296772628,0.42372094151904877,0.42396263042950744,0.40986411065275419,0.38066003397233672,0.41499999999999998,0.42799077893715115,0.39511101674350879,0.39475855374909002,0.41590633341421979,0.39173744236835717,0.40482892501819945,0.40080077651055562,0.39052899781606404,0.39878670225673379,0.44410337296772628,0.41134445522931323,145]
[null,"Female 60-64",0.35347003154574125,0.38670225673380243,0.41489929628730887,0.43000485319097309,0.40583596214511036,0.45789978160640621,0.42798070856588205,0.42496966755641835,0.46223004125212319,0.47963164280514425,0.47934967240960935,0.44611744722154806,0.47230041252123262,0.40382188789128853,0.39173744236835717,0.40382188789128853,0.38871633098762431,0.33635040038825531,0.41087114777966505,0.46223004125212319,0.41308662945886915,0.41288522203348693,0.4326231497209414,0.46323707837903422,0.42899781606406207,0.39918951710749817,0.43493933511283656,0.4062387769958748,0.43403300169861675,0.36958262557631644,0.43403300169861675,0.41872603736957048,0.3722009221062848,0.39173744236835717,0.44208929871390434,0.47934967240960935,0.44410337296772628,0.42372094151904877,0.42396263042950744,0.40986411065275419,0.38066003397233672,0.41499999999999998,0.42799077893715115,0.39511101674350879,0.39475855374909002,0.41590633341421979,0.39173744236835717,0.40482892501819945,0.40080077651055562,0.39052899781606404,0.39878670225673379,0.44410337296772628,0.41134445522931323,146]
[null,"Female 65-69",{"$f":"$AR149*C$253","v":0.41309148264984219},0.45192914341179324,0.4848823101189032,0.50253579228342637,0.47429022082018923,0.53513588934724576,0.50017022567338021,0.49665129822858534,0.54019655423440904,0.56053336568793966,{"$f":"$AR149*M$253","v":0.56020383402086871},0.52136617325891754,0.55196554234409112,0.47193642319825285,0.45781363746663428,0.47193642319825285,0.45428294103372963,0.39308420286338269,0.48017471487503027,0.54019655423440904,{"$f":"$AR149*W$253","v":0.48276389225916039},0.48252851249696671,0.50559572919194362,0.54137345304537732,0.5013588934724581,0.46652268866779906,0.50830259645717046,0.47476098034457653,0.50724338752729914,0.43192186362533364,{"$f":"$AR149*AG$253","v":0.50724338752729914},0.48935452560058235,0.43498180053385094,0.45781363746663428,0.51665857801504489,0.56020383402086871,0.51901237563698133,0.49519194370298469,0.49547439941761712,0.47899781606406211,0.44486775054598388,0.48499999999999999,{"$f":"$AR149*AS$253","v":0.50018199466148994},0.46175624848337776,0.46134433389953894,0.48605920892987131,0.45781363746663428,0.47311332200922102,0.46840572676534814,0.45640135889347244,0.46605192914341181,0.51901237563698133,0.48072785731618534,147]
[null,"Female 70-74",0.41309148264984219,0.45192914341179324,0.4848823101189032,0.50253579228342637,0.47429022082018923,0.53513588934724576,0.50017022567338021,0.49665129822858534,0.54019655423440904,0.56053336568793966,0.56020383402086871,0.52136617325891754,0.55196554234409112,0.47193642319825285,0.45781363746663428,0.47193642319825285,0.45428294103372963,0.39308420286338269,0.48017471487503027,0.54019655423440904,0.48276389225916039,0.48252851249696671,0.50559572919194362,0.54137345304537732,0.5013588934724581,0.46652268866779906,0.50830259645717046,0.47476098034457653,0.50724338752729914,0.43192186362533364,0.50724338752729914,0.48935452560058235,0.43498180053385094,0.45781363746663428,0.51665857801504489,0.56020383402086871,0.51901237563698133,0.49519194370298469,0.49547439941761712,0.47899781606406211,0.44486775054598388,0.48499999999999999,0.50018199466148994,0.46175624848337776,0.46134433389953894,0.48605920892987131,0.45781363746663428,0.47311332200922102,0.46840572676534814,0.45640135889347244,0.46605192914341181,0.51901237563698133,0.48072785731618534,148]
[null,"Female 75-79",0.52552050473186107,0.57492841543314721,0.616850279058481,0.63930842028633827,0.60337539432176646,0.68078112108711475,0.63629902936180538,0.63182237321038592,0.68721912157243381,0.71309090026692534,0.71267168163067218,0.66326377092938593,0.70219121572433862,0.60038097549138558,0.58241446250909967,0.60038097549138558,0.5779228342635282,0.50006794467362292,0.61086144139771892,0.68721912157243381,0.614155302111138,0.6138558602280999,0.64320116476583344,0.6887163309876243,0.63781121087114767,0.59349381218150932,0.64664474642077152,0.60397427808784276,0.64529725794710013,0.54947585537490906,0.64529725794710013,0.62253967483620476,0.55336859985440423,0.58241446250909967,0.65727493326862407,0.71267168163067218,0.66026935209900517,0.62996583353554958,0.63032516379519543,0.60936423198252854,0.56594515894200426,0.61699999999999999,0.63631400145595729,0.58743011404998779,0.58690609075467115,0.61834748847367138,0.58241446250909967,0.60187818490657607,0.59588934724581399,0.58061781121087119,0.59289492841543312,0.66026935209900517,0.61156512982285849,149]
[null,"Female 80-84",0.52552050473186107,0.57492841543314721,0.616850279058481,0.63930842028633827,0.60337539432176646,0.68078112108711475,0.63629902936180538,0.63182237321038592,0.68721912157243381,0.71309090026692534,0.71267168163067218,0.66326377092938593,0.70219121572433862,0.60038097549138558,0.58241446250909967,0.60038097549138558,0.5779228342635282,0.50006794467362292,0.61086144139771892,0.68721912157243381,0.614155302111138,0.6138558602280999,0.64320116476583344,0.6887163309876243,0.63781121087114767,0.59349381218150932,0.64664474642077152,0.60397427808784276,0.64529725794710013,0.54947585537490906,0.64529725794710013,0.62253967483620476,0.55336859985440423,0.58241446250909967,0.65727493326862407,0.71267168163067218,0.66026935209900517,0.62996583353554958,0.63032516379519543,0.60936423198252854,0.56594515894200426,0.61699999999999999,0.63631400145595729,0.58743011404998779,0.58690609075467115,0.61834748847367138,0.58241446250909967,0.60187818490657607,0.59588934724581399,0.58061781121087119,0.59289492841543312,0.66026935209900517,0.61156512982285849,150]
[null,"Female 85-89",0.52552050473186107,0.57492841543314721,0.616850279058481,0.63930842028633827,0.60337539432176646,0.68078112108711475,0.63629902936180538,0.63182237321038592,0.68721912157243381,0.71309090026692534,0.71267168163067218,0.66326377092938593,0.70219121572433862,0.60038097549138558,0.58241446250909967,0.60038097549138558,0.5779228342635282,0.50006794467362292,0.61086144139771892,0.68721912157243381,0.614155302111138,0.6138558602280999,0.64320116476583344,0.6887163309876243,0.63781121087114767,0.59349381218150932,0.64664474642077152,0.60397427808784276,0.64529725794710013,0.54947585537490906,0.64529725794710013,0.62253967483620476,0.55336859985440423,0.58241446250909967,0.65727493326862407,0.71267168163067218,0.66026935209900517,0.62996583353554958,0.63032516379519543,0.60936423198252854,0.56594515894200426,0.61699999999999999,0.63631400145595729,0.58743011404998779,0.58690609075467115,0.61834748847367138,0.58241446250909967,0.60187818490657607,0.59588934724581399,0.58061781121087119,0.59289492841543312,0.66026935209900517,0.61156512982285849,151]
[null,"Female 90+",0.52552050473186107,0.57492841543314721,0.616850279058481,0.63930842028633827,0.60337539432176646,0.68078112108711475,0.63629902936180538,0.63182237321038592,0.68721912157243381,0.71309090026692534,0.71267168163067218,0.66326377092938593,0.70219121572433862,0.60038097549138558,0.58241446250909967,0.60038097549138558,0.5779228342635282,0.50006794467362292,0.61086144139771892,0.68721912157243381,0.614155302111138,0.6138558602280999,0.64320116476583344,0.6887163309876243,0.63781121087114767,0.59349381218150932,0.64664474642077152,0.60397427808784276,0.64529725794710013,0.54947585537490906,0.64529725794710013,0.62253967483620476,0.55336859985440423,0.58241446250909967,0.65727493326862407,0.71267168163067218,0.66026935209900517,0.62996583353554958,0.63032516379519543,0.60936423198252854,0.56594515894200426,0.61699999999999999,0.63631400145595729,0.58743011404998779,0.58690609075467115,0.61834748847367138,0.58241446250909967,0.60187818490657607,0.59588934724581399,0.58061781121087119,0.59289492841543312,0.66026935209900517,0.61156512982285849,152]
[null,"Male 0-4",null,null,null,null,null,null,null,null,null,null,null,null,null,null,null,null,null,null,null,null,null,null,null,null,null,null,null,null,null,null,null,null,null,null,null,null,null,null,null,null,null,0,null,null,null,null,null,null,null,null,null,null,null,153]
[null,"Male 5-9",null,null,null,null,null,null,null,null,null,null,null,null,null,null,null,null,null,null,null,null,null,null,null,null,null,null,null,null,null,null,null,null,null,null,null,null,null,null,null,null,null,0,null,null,null,null,null,null,null,null,null,null,null,154]
[null,"Male 10-15",null,null,null,null,null,null,null,null,null,null,null,null,null,null,null,null,null,null,null,null,null,null,null,null,null,null,null,null,null,null,null,null,null,null,null,null,null,null,null,null,null,0,null,null,null,null,null,null,null,null,null,null,null,155]
[null,"Male 16-19",{"$f":"$AR158*C$254","v":0.32379299363057318},0.33926433121019112,0.35142038216560495,0.36357643312101917,0.34036942675159232,0.37429585987261149,0.39439754777070052,0.28621974522292998,0.34257961783439483,0.3551887579617834,{"$f":"$AR158*M$254","v":0.35473566878980883},0.36357643312101917,0.39893949044585986,0.31274203821656049,0.40888535031847129,0.31274203821656049,0.32489808917197449,0.27074840764331204,0.33373885350318472,0.34257961783439483,{"$f":"$AR158*W$254","v":0.32180382165605098},0.32158280254777061,0.32721878980891711,0.34921019108280243,0.36136624203821655,0.34302165605095547,0.34412675159235667,0.34014840764331211,0.37241719745222929,0.34589490445859866,{"$f":"$AR158*AG$254","v":0.37241719745222929},0.391203821656051,0.31760445859872599,0.40888535031847129,0.34700000000000003,0.37794267515923569,0.42546178343949043,0.37174308917197446,0.37131210191082797,0.34810509554140129,0.34036942675159232,0.34700000000000003,{"$f":"$AR158*AS$254","v":0.39451910828025477},0.33445716560509553,0.33484394904458592,0.34147452229299369,0.35252547770700643,0.31495222929936301,0.34036942675159232,0.35561974522292999,0.33705414012738849,0.36468152866242032,0.33368359872611458,156]
[null,"Male 20-24",0.32379299363057318,0.33926433121019112,0.35142038216560495,0.36357643312101917,0.34036942675159232,0.37429585987261149,0.39439754777070052,0.28621974522292998,0.34257961783439483,0.3551887579617834,0.35473566878980883,0.36357643312101917,0.39893949044585986,0.31274203821656049,0.40888535031847129,0.31274203821656049,0.32489808917197449,0.27074840764331204,0.33373885350318472,0.34257961783439483,0.32180382165605098,0.32158280254777061,0.32721878980891711,0.34921019108280243,0.36136624203821655,0.34302165605095547,0.34412675159235667,0.34014840764331211,0.37241719745222929,0.34589490445859866,0.37241719745222929,0.391203821656051,0.31760445859872599,0.40888535031847129,0.34700000000000003,0.37794267515923569,0.42546178343949043,0.37174308917197446,0.37131210191082797,0.34810509554140129,0.34036942675159232,0.34700000000000003,0.39451910828025477,0.33445716560509553,0.33484394904458592,0.34147452229299369,0.35252547770700643,0.31495222929936301,0.34036942675159232,0.35561974522292999,0.33705414012738849,0.36468152866242032,0.33368359872611458,157]
[null,"Male 25-29",0.27247133757961783,0.28549044585987265,0.29571974522292982,0.30594904458598732,0.28642038216560506,0.3149694267515924,0.33188496815286617,0.24085350318471341,0.28828025477707003,0.29889082802547767,0.29850955414012731,0.30594904458598732,0.33570700636942674,0.26317197452229296,0.3440764331210191,0.26317197452229296,0.27340127388535035,0.22783439490445859,0.28084076433121025,0.28828025477707003,0.27079745222929941,0.27061146496815275,0.27535414012738851,0.2938598726114649,0.30408917197452229,0.28865222929936307,0.28958216560509553,0.28623439490445862,0.31338853503184716,0.29107006369426747,0.31338853503184716,0.32919745222929941,0.26726369426751584,0.3440764331210191,0.29200000000000004,0.31803821656050957,0.35802547770700638,0.3128212738853503,0.31245859872611464,0.2929299363057325,0.28642038216560506,0.29200000000000004,0.33198726114649679,0.28144522292993635,0.28177070063694265,0.28735031847133763,0.2966496815286625,0.26503184713375794,0.28642038216560506,0.29925350318471344,0.28363057324840762,0.30687898089171972,0.28079426751592351,158]
[null,"Male 30-34",0.27247133757961783,0.28549044585987265,0.29571974522292982,0.30594904458598732,0.28642038216560506,0.3149694267515924,0.33188496815286617,0.24085350318471341,0.28828025477707003,0.29889082802547767,0.29850955414012731,0.30594904458598732,0.33570700636942674,0.26317197452229296,0.3440764331210191,0.26317197452229296,0.27340127388535035,0.22783439490445859,0.28084076433121025,0.28828025477707003,0.27079745222929941,0.27061146496815275,0.27535414012738851,0.2938598726114649,0.30408917197452229,0.28865222929936307,0.28958216560509553,0.28623439490445862,0.31338853503184716,0.29107006369426747,0.31338853503184716,0.32919745222929941,0.26726369426751584,0.3440764331210191,0.29200000000000004,0.31803821656050957,0.35802547770700638,0.3128212738853503,0.31245859872611464,0.2929299363057325,0.28642038216560506,0.29200000000000004,0.33198726114649679,0.28144522292993635,0.28177070063694265,0.28735031847133763,0.2966496815286625,0.26503184713375794,0.28642038216560506,0.29925350318471344,0.28363057324840762,0.30687898089171972,0.28079426751592351,159]
[null,"Male 35-39",0.30139808917197441,0.31579936305732481,0.32711464968152848,0.33842993630573248,0.31682802547770689,0.34840796178343941,0.36711933121019091,0.26642356687898089,0.31888535031847121,0.33062238853503173,0.33020063694267499,0.33842993630573248,0.37134713375796169,0.29111146496815277,0.38060509554140115,0.29111146496815277,0.3024267515923566,0.25202229299363049,0.31065605095541399,0.31888535031847121,0.29954649681528661,0.29934076433120999,0.30458694267515912,0.32505732484076416,0.33637261146496805,0.31929681528662418,0.32032547770700631,0.31662229299363048,0.3466592356687897,0.32197133757961766,0.3466592356687897,0.36414649681528655,0.29563757961783421,0.38060509554140115,0.32299999999999995,0.35180254777070058,0.39603503184713362,0.34603175159235655,0.34563057324840751,0.32402866242038209,0.31682802547770689,0.32299999999999995,0.367232484076433,0.31132468152866233,0.31168471337579606,0.31785668789808913,0.32814331210191083,0.29316878980891709,0.31682802547770689,0.33102356687898088,0.31374203821656038,0.3394585987261145,0.31060461783439475,160]
[null,"Male 40-44",0.30139808917197441,0.31579936305732481,0.32711464968152848,0.33842993630573248,0.31682802547770689,0.34840796178343941,0.36711933121019091,0.26642356687898089,0.31888535031847121,0.33062238853503173,0.33020063694267499,0.33842993630573248,0.37134713375796169,0.29111146496815277,0.38060509554140115,0.29111146496815277,0.3024267515923566,0.25202229299363049,0.31065605095541399,0.31888535031847121,0.29954649681528661,0.29934076433120999,0.30458694267515912,0.32505732484076416,0.33637261146496805,0.31929681528662418,0.32032547770700631,0.31662229299363048,0.3466592356687897,0.32197133757961766,0.3466592356687897,0.36414649681528655,0.29563757961783421,0.38060509554140115,0.32299999999999995,0.35180254777070058,0.39603503184713362,0.34603175159235655,0.34563057324840751,0.32402866242038209,0.31682802547770689,0.32299999999999995,0.367232484076433,0.31132468152866233,0.31168471337579606,0.31785668789808913,0.32814331210191083,0.29316878980891709,0.31682802547770689,0.33102356687898088,0.31374203821656038,0.3394585987261145,0.31060461783439475,161]
[null,"Male 45-49",0.31259554140127382,0.32753184713375799,0.33926751592356674,0.35100318471337583,0.32859872611464963,0.36135191082802548,0.38075843949044574,0.27632165605095543,0.33073248407643308,0.34290557324840759,0.34246815286624194,0.35100318471337583,0.38514331210191083,0.30192675159235666,0.39474522292993625,0.30192675159235666,0.31366242038216557,0.26138535031847132,0.32219745222929941,0.33073248407643308,0.3106751592356688,0.31046178343949032,0.31590286624203817,0.3371337579617833,0.34886942675159233,0.33115923566878985,0.33222611464968149,0.32838535031847133,0.35953821656050955,0.33393312101910821,0.35953821656050955,0.3776751592356688,0.30662101910828016,0.39474522292993625,0.33500000000000002,0.36487261146496819,0.41074840764331205,0.35888742038216553,0.3584713375796178,0.33606687898089171,0.32859872611464963,0.33500000000000002,0.38087579617834394,0.32289092356687898,0.32326433121019105,0.32966560509554144,0.34033439490445866,0.3040605095541401,0.32859872611464963,0.34332165605095549,0.32539808917197449,0.35207006369426747,0.32214410828025469,162]
[null,"Male 50-54",0.31259554140127382,0.32753184713375799,0.33926751592356674,0.35100318471337583,0.32859872611464963,0.36135191082802548,0.38075843949044574,0.27632165605095543,0.33073248407643308,0.34290557324840759,0.34246815286624194,0.35100318471337583,0.38514331210191083,0.30192675159235666,0.39474522292993625,0.30192675159235666,0.31366242038216557,0.26138535031847132,0.32219745222929941,0.33073248407643308,0.3106751592356688,0.31046178343949032,0.31590286624203817,0.3371337579617833,0.34886942675159233,0.33115923566878985,0.33222611464968149,0.32838535031847133,0.35953821656050955,0.33393312101910821,0.35953821656050955,0.3776751592356688,0.30662101910828016,0.39474522292993625,0.33500000000000002,0.36487261146496819,0.41074840764331205,0.35888742038216553,0.3584713375796178,0.33606687898089171,0.32859872611464963,0.33500000000000002,0.38087579617834394,0.32289092356687898,0.32326433121019105,0.32966560509554144,0.34033439490445866,0.3040605095541401,0.32859872611464963,0.34332165605095549,0.32539808917197449,0.35207006369426747,0.32214410828025469,163]
[null,"Male 55-59",0.40497452229299352,0.42432484076433119,0.43952866242038197,0.45473248407643319,0.42570700636942665,0.46813949044585984,0.49328108280254762,0.35798089171974523,0.42847133757961775,0.44424184713375792,0.44367515923566864,0.45473248407643319,0.49896178343949038,0.3911528662420381,0.51140127388535017,0.3911528662420381,0.40635668789808915,0.33863057324840756,0.41741401273885348,0.42847133757961775,0.40248662420382164,0.40221019108280237,0.40925923566878969,0.43676433121019087,0.45196815286624198,0.42902420382165607,0.43040636942675153,0.42543057324840761,0.4657898089171974,0.43261783439490431,0.4657898089171974,0.48928662420382163,0.39723439490445839,0.51140127388535017,0.434,0.47270063694267517,0.53213375796178342,0.46494668789808907,0.46440764331210183,0.43538216560509552,0.42570700636942665,0.434,0.49343312101910819,0.4183124203821656,0.41879617834394894,0.42708917197452229,0.44091082802547776,0.3939171974522292,0.42570700636942665,0.44478089171974527,0.42156050955414004,0.45611464968152854,0.41734490445859856,164]
[null,"Male 60-64",0.40497452229299352,0.42432484076433119,0.43952866242038197,0.45473248407643319,0.42570700636942665,0.46813949044585984,0.49328108280254762,0.35798089171974523,0.42847133757961775,0.44424184713375792,0.44367515923566864,0.45473248407643319,0.49896178343949038,0.3911528662420381,0.51140127388535017,0.3911528662420381,0.40635668789808915,0.33863057324840756,0.41741401273885348,0.42847133757961775,0.40248662420382164,0.40221019108280237,0.40925923566878969,0.43676433121019087,0.45196815286624198,0.42902420382165607,0.43040636942675153,0.42543057324840761,0.4657898089171974,0.43261783439490431,0.4657898089171974,0.48928662420382163,0.39723439490445839,0.51140127388535017,0.434,0.47270063694267517,0.53213375796178342,0.46494668789808907,0.46440764331210183,0.43538216560509552,0.42570700636942665,0.434,0.49343312101910819,0.4183124203821656,0.41879617834394894,0.42708917197452229,0.44091082802547776,0.3939171974522292,0.42570700636942665,0.44478089171974527,0.42156050955414004,0.45611464968152854,0.41734490445859856,165]
[null,"Male 65-69",{"$f":"$AR168*C$254","v":0.4917547770700636},0.51525159235668794,0.53371337579617817,0.55217515923566884,0.51692993630573236,0.56845509554140128,0.59898417197452214,0.43469108280254781,0.52028662420382155,0.53943652866242031,{"$f":"$AR168*M$254","v":0.538748407643312},0.55217515923566884,0.60588216560509545,0.47497133757961774,0.62098726114649672,0.47497133757961774,0.49343312101910825,0.41119426751592347,0.50685987261146503,0.52028662420382155,{"$f":"$AR168*W$254","v":0.48873375796178348},0.4883980891719743,0.49695764331210179,0.53035668789808899,0.54881847133757955,0.52095796178343956,0.5226363057324841,0.51659426751592352,0.56560191082802547,0.52532165605095527,{"$f":"$AR168*AG$254","v":0.56560191082802547},0.59413375796178347,0.48235605095541378,0.62098726114649672,0.52700000000000002,0.57399363057324837,0.64616242038216554,0.5645781210191082,0.56392356687898082,0.52867834394904456,0.51692993630573236,0.52700000000000002,{"$f":"$AR168*AS$254","v":0.59916878980891719},0.50795079617834393,0.50853821656050946,0.51860828025477712,0.53539171974522304,0.47832802547770692,0.51692993630573236,0.54009108280254781,0.51189490445859864,0.55385350318471327,0.50677595541401255,166]
[null,"Male 70-74",0.4917547770700636,0.51525159235668794,0.53371337579617817,0.55217515923566884,0.51692993630573236,0.56845509554140128,0.59898417197452214,0.43469108280254781,0.52028662420382155,0.53943652866242031,0.538748407643312,0.55217515923566884,0.60588216560509545,0.47497133757961774,0.62098726114649672,0.47497133757961774,0.49343312101910825,0.41119426751592347,0.50685987261146503,0.52028662420382155,0.48873375796178348,0.4883980891719743,0.49695764331210179,0.53035668789808899,0.54881847133757955,0.52095796178343956,0.5226363057324841,0.51659426751592352,0.56560191082802547,0.52532165605095527,0.56560191082802547,0.59413375796178347,0.48235605095541378,0.62098726114649672,0.52700000000000002,0.57399363057324837,0.64616242038216554,0.5645781210191082,0.56392356687898082,0.52867834394904456,0.51692993630573236,0.52700000000000002,0.59916878980891719,0.50795079617834393,0.50853821656050946,0.51860828025477712,0.53539171974522304,0.47832802547770692,0.51692993630573236,0.54009108280254781,0.51189490445859864,0.55385350318471327,0.50677595541401255,167]
[null,"Male 75-79",0.74183121019108267,0.77727707006369429,0.80512738853503152,0.83297770700636953,0.77980891719745205,0.8575366242038216,0.90359092356687876,0.65574840764331221,0.78487261146496801,0.81376098726114643,0.81272292993630546,0.83297770700636953,0.91399681528662413,0.71651273885350308,0.93678343949044574,0.71651273885350308,0.74436305732484076,0.62030254777070049,0.76461783439490449,0.78487261146496801,0.73727388535031857,0.7367675159235666,0.74967993630573226,0.80006369426751556,0.82791401273885346,0.7858853503184714,0.78841719745222927,0.77930254777070063,0.85323248407643304,0.79246815286624184,0.85323248407643304,0.89627388535031849,0.72765286624203795,0.93678343949044574,0.79500000000000004,0.86589171974522294,0.97476114649681522,0.85168805732484065,0.85070063694267506,0.79753184713375791,0.77980891719745205,0.79500000000000004,0.90386942675159232,0.76626353503184708,0.76714968152866225,0.78234076433121025,0.80765923566878994,0.72157643312101893,0.77980891719745205,0.81474840764331224,0.77221337579617821,0.83550955414012729,0.76449124203821628,168]
[null,"Male 80-84",0.74183121019108267,0.77727707006369429,0.80512738853503152,0.83297770700636953,0.77980891719745205,0.8575366242038216,0.90359092356687876,0.65574840764331221,0.78487261146496801,0.81376098726114643,0.81272292993630546,0.83297770700636953,0.91399681528662413,0.71651273885350308,0.93678343949044574,0.71651273885350308,0.74436305732484076,0.62030254777070049,0.76461783439490449,0.78487261146496801,0.73727388535031857,0.7367675159235666,0.74967993630573226,0.80006369426751556,0.82791401273885346,0.7858853503184714,0.78841719745222927,0.77930254777070063,0.85323248407643304,0.79246815286624184,0.85323248407643304,0.89627388535031849,0.72765286624203795,0.93678343949044574,0.79500000000000004,0.86589171974522294,0.97476114649681522,0.85168805732484065,0.85070063694267506,0.79753184713375791,0.77980891719745205,0.79500000000000004,0.90386942675159232,0.76626353503184708,0.76714968152866225,0.78234076433121025,0.80765923566878994,0.72157643312101893,0.77980891719745205,0.81474840764331224,0.77221337579617821,0.83550955414012729,0.76449124203821628,169]
[null,"Male 85-89",0.74183121019108267,0.77727707006369429,0.80512738853503152,0.83297770700636953,0.77980891719745205,0.8575366242038216,0.90359092356687876,0.65574840764331221,0.78487261146496801,0.81376098726114643,0.81272292993630546,0.83297770700636953,0.91399681528662413,0.71651273885350308,0.93678343949044574,0.71651273885350308,0.74436305732484076,0.62030254777070049,0.76461783439490449,0.78487261146496801,0.73727388535031857,0.7367675159235666,0.74967993630573226,0.80006369426751556,0.82791401273885346,0.7858853503184714,0.78841719745222927,0.77930254777070063,0.85323248407643304,0.79246815286624184,0.85323248407643304,0.89627388535031849,0.72765286624203795,0.93678343949044574,0.79500000000000004,0.86589171974522294,0.97476114649681522,0.85168805732484065,0.85070063694267506,0.79753184713375791,0.77980891719745205,0.79500000000000004,0.90386942675159232,0.76626353503184708,0.76714968152866225,0.78234076433121025,0.80765923566878994,0.72157643312101893,0.77980891719745205,0.81474840764331224,0.77221337579617821,0.83550955414012729,0.76449124203821628,170]
[null,"Male 90+",0.74183121019108267,0.77727707006369429,0.80512738853503152,0.83297770700636953,0.77980891719745205,0.8575366242038216,0.90359092356687876,0.65574840764331221,0.78487261146496801,0.81376098726114643,0.81272292993630546,0.83297770700636953,0.91399681528662413,0.71651273885350308,0.93678343949044574,0.71651273885350308,0.74436305732484076,0.62030254777070049,0.76461783439490449,0.78487261146496801,0.73727388535031857,0.7367675159235666,0.74967993630573226,0.80006369426751556,0.82791401273885346,0.7858853503184714,0.78841719745222927,0.77930254777070063,0.85323248407643304,0.79246815286624184,0.85323248407643304,0.89627388535031849,0.72765286624203795,0.93678343949044574,0.79500000000000004,0.86589171974522294,0.97476114649681522,0.85168805732484065,0.85070063694267506,0.79753184713375791,0.77980891719745205,0.79500000000000004,0.90386942675159232,0.76626353503184708,0.76714968152866225,0.78234076433121025,0.80765923566878994,0.72157643312101893,0.77980891719745205,0.81474840764331224,0.77221337579617821,0.83550955414012729,0.76449124203821628,171]
["SIMD Q4","Female 0-4",null,null,null,null,null,null,null,null,null,null,null,null,null,null,null,null,null,null,null,null,null,null,null,null,null,null,null,null,null,null,null,null,null,null,null,null,null,null,null,null,null,0,null,null,null,null,null,null,null,null,null,null,null,172]
[null,"Female 5-9",null,null,null,null,null,null,null,null,null,null,null,null,null,null,null,null,null,null,null,null,null,null,null,null,null,null,null,null,null,null,null,null,null,null,null,null,null,null,null,null,null,0,null,null,null,null,null,null,null,null,null,null,null,173]
[null,"Female 10-15",null,null,null,null,null,null,null,null,null,null,null,null,null,null,null,null,null,null,null,null,null,null,null,null,null,null,null,null,null,null,null,null,null,null,null,null,null,null,null,null,null,0,null,null,null,null,null,null,null,null,null,null,null,174]
[null,"Female 16-19",{"$f":"$AR177*C$253","v":0.16438485804416397},0.17983984469788883,0.19295316670710991,0.19997816064062121,0.1887381703470031,0.21295098277117203,0.19903681145353067,0.19763649599611743,0.21496481436544523,0.22305760737685021,{"$f":"$AR177*M$253","v":0.22292647415675806},0.20747148750303315,0.21964814365445273,0.18780150448920163,0.18218150934239258,0.18780150448920163,0.18077651055569033,0.15642319825285125,0.19107983499150688,0.21496481436544523,{"$f":"$AR177*W$253","v":0.19211016743508855},0.19201650084930838,0.2011958262557631,0.21543314729434601,0.19950982771172041,0.18564717301625819,0.20227299199223481,0.18892550351856344,0.20185149235622415,0.17187818490657605,{"$f":"$AR177*AG$253","v":0.20185149235622415},0.19473283183693277,0.173095850521718,0.18218150934239258,0.20559815578743021,0.22292647415675806,0.20653482164523174,0.1970557631642805,0.19716816306721671,0.19061150206260616,0.1770298471244843,0.19299999999999998,{"$f":"$AR177*AS$253","v":0.19904149478281966},0.1837504246542101,0.18358650812909486,0.19342149963601063,0.18218150934239258,0.18826983741810238,0.18639650570249933,0.18161950982771172,0.18545983984469788,0.20653482164523174,0.19129995146809023,175]
[null,"Female 20-24",0.16438485804416397,0.17983984469788883,0.19295316670710991,0.19997816064062121,0.1887381703470031,0.21295098277117203,0.19903681145353067,0.19763649599611743,0.21496481436544523,0.22305760737685021,0.22292647415675806,0.20747148750303315,0.21964814365445273,0.18780150448920163,0.18218150934239258,0.18780150448920163,0.18077651055569033,0.15642319825285125,0.19107983499150688,0.21496481436544523,0.19211016743508855,0.19201650084930838,0.2011958262557631,0.21543314729434601,0.19950982771172041,0.18564717301625819,0.20227299199223481,0.18892550351856344,0.20185149235622415,0.17187818490657605,0.20185149235622415,0.19473283183693277,0.173095850521718,0.18218150934239258,0.20559815578743021,0.22292647415675806,0.20653482164523174,0.1970557631642805,0.19716816306721671,0.19061150206260616,0.1770298471244843,0.19299999999999998,0.19904149478281966,0.1837504246542101,0.18358650812909486,0.19342149963601063,0.18218150934239258,0.18826983741810238,0.18639650570249933,0.18161950982771172,0.18545983984469788,0.20653482164523174,0.19129995146809023,176]
[null,"Female 25-29",0.14394321766561516,0.15747634069400637,0.16895899053627766,0.17511041009463729,0.16526813880126187,0.1864700315457414,0.17428611987381709,0.17305993690851743,0.18823343848580446,0.19531987381703475,0.19520504731861207,0.18167192429022083,0.19233438485804419,0.16444794952681394,0.15952681388012624,0.16444794952681394,0.15829652996845431,0.13697160883280765,0.16731861198738174,0.18823343848580446,0.16822082018927451,0.1681388012618297,0.17617665615141959,0.18864353312302848,0.1747003154574133,0.16256151419558368,0.17711987381703473,0.16543217665615148,0.17675078864353316,0.15050473186119881,0.17675078864353316,0.17051735015772879,0.1515709779179811,0.15952681388012624,0.18003154574132499,0.19520504731861207,0.18085173501577295,0.17255141955835968,0.17264984227129346,0.1669085173501578,0.15501577287066248,0.16900000000000007,0.17429022082018933,0.16090063091482654,0.16075709779179817,0.16936908517350163,0.15952681388012624,0.1648580441640379,0.163217665615142,0.15903470031545749,0.16239747634069407,0.18085173501577295,0.16751135646687704,177]
[null,"Female 30-34",0.14394321766561516,0.15747634069400637,0.16895899053627766,0.17511041009463729,0.16526813880126187,0.1864700315457414,0.17428611987381709,0.17305993690851743,0.18823343848580446,0.19531987381703475,0.19520504731861207,0.18167192429022083,0.19233438485804419,0.16444794952681394,0.15952681388012624,0.16444794952681394,0.15829652996845431,0.13697160883280765,0.16731861198738174,0.18823343848580446,0.16822082018927451,0.1681388012618297,0.17617665615141959,0.18864353312302848,0.1747003154574133,0.16256151419558368,0.17711987381703473,0.16543217665615148,0.17675078864353316,0.15050473186119881,0.17675078864353316,0.17051735015772879,0.1515709779179811,0.15952681388012624,0.18003154574132499,0.19520504731861207,0.18085173501577295,0.17255141955835968,0.17264984227129346,0.1669085173501578,0.15501577287066248,0.16900000000000007,0.17429022082018933,0.16090063091482654,0.16075709779179817,0.16936908517350163,0.15952681388012624,0.1648580441640379,0.163217665615142,0.15903470031545749,0.16239747634069407,0.18085173501577295,0.16751135646687704,178]
[null,"Female 35-39",0.1873817034700315,0.20499878670225671,0.21994661489929629,0.22795438000485321,0.21514195583596213,0.2427420528997816,0.22688133948070857,0.22528512496966757,0.24503761223004122,0.25426255763164274,0.25411307934967242,0.23649599611744715,0.25037612230041245,0.21407425382188788,0.20766804173744235,0.21407425382188788,0.20606648871633099,0.17830623635040041,0.21781121087114777,0.24503761223004122,0.21898568308662944,0.21887891288522202,0.22934239262314968,0.24557146323707837,0.22742052899781603,0.21161853918951712,0.23057024993933506,0.21535549623877701,0.23008978403300168,0.19592331958262557,0.23008978403300168,0.22197524872603738,0.19731133220092209,0.20766804173744235,0.23436059208929869,0.25411307934967242,0.23542829410337299,0.22462314972094152,0.22475127396263045,0.21727735986411068,0.20179568066003392,0.22,0.22688667799077891,0.2094564426110167,0.20926959475855375,0.22048046590633338,0.20766804173744235,0.21460810482892501,0.21247270080077649,0.20702742052899784,0.21140499878670227,0.23542829410337299,0.21806212084445523,179]
[null,"Female 40-44",0.1873817034700315,0.20499878670225671,0.21994661489929629,0.22795438000485321,0.21514195583596213,0.2427420528997816,0.22688133948070857,0.22528512496966757,0.24503761223004122,0.25426255763164274,0.25411307934967242,0.23649599611744715,0.25037612230041245,0.21407425382188788,0.20766804173744235,0.21407425382188788,0.20606648871633099,0.17830623635040041,0.21781121087114777,0.24503761223004122,0.21898568308662944,0.21887891288522202,0.22934239262314968,0.24557146323707837,0.22742052899781603,0.21161853918951712,0.23057024993933506,0.21535549623877701,0.23008978403300168,0.19592331958262557,0.23008978403300168,0.22197524872603738,0.19731133220092209,0.20766804173744235,0.23436059208929869,0.25411307934967242,0.23542829410337299,0.22462314972094152,0.22475127396263045,0.21727735986411068,0.20179568066003392,0.22,0.22688667799077891,0.2094564426110167,0.20926959475855375,0.22048046590633338,0.20766804173744235,0.21460810482892501,0.21247270080077649,0.20702742052899784,0.21140499878670227,0.23542829410337299,0.21806212084445523,180]
[null,"Female 45-49",0.19675078864353304,0.21524872603736953,0.23094394564426107,0.23935209900509583,0.22589905362776019,0.25487915554477064,0.23822540645474394,0.23654938121815092,0.25728949284154323,0.26697568551322487,0.266818733317156,0.24832079592331946,0.26289492841543305,0.22477796651298224,0.21805144382431443,0.22477796651298224,0.21636981315214748,0.18722154816792039,0.2287017714147051,0.25728949284154323,0.22993496724096088,0.22982285852948306,0.24080951225430711,0.25785003639893223,0.2387915554477068,0.22219946614899294,0.24209876243630177,0.22612327105071581,0.24159427323465171,0.20571948556175682,0.24159427323465171,0.2330740111623392,0.20717689881096815,0.21805144382431443,0.24607862169376357,0.266818733317156,0.24719970880854159,0.23585430720698855,0.23598883766076192,0.22814122785731616,0.2118854646930356,0.23099999999999996,0.23823101189031781,0.21992926474156752,0.21973307449648138,0.23150448920165001,0.21805144382431443,0.22533851007037123,0.22309633584081526,0.21737879155544768,0.22197524872603733,0.24719970880854159,0.22896522688667792,181]
[null,"Female 50-54",0.19675078864353304,0.21524872603736953,0.23094394564426107,0.23935209900509583,0.22589905362776019,0.25487915554477064,0.23822540645474394,0.23654938121815092,0.25728949284154323,0.26697568551322487,0.266818733317156,0.24832079592331946,0.26289492841543305,0.22477796651298224,0.21805144382431443,0.22477796651298224,0.21636981315214748,0.18722154816792039,0.2287017714147051,0.25728949284154323,0.22993496724096088,0.22982285852948306,0.24080951225430711,0.25785003639893223,0.2387915554477068,0.22219946614899294,0.24209876243630177,0.22612327105071581,0.24159427323465171,0.20571948556175682,0.24159427323465171,0.2330740111623392,0.20717689881096815,0.21805144382431443,0.24607862169376357,0.266818733317156,0.24719970880854159,0.23585430720698855,0.23598883766076192,0.22814122785731616,0.2118854646930356,0.23099999999999996,0.23823101189031781,0.21992926474156752,0.21973307449648138,0.23150448920165001,0.21805144382431443,0.22533851007037123,0.22309633584081526,0.21737879155544768,0.22197524872603733,0.24719970880854159,0.22896522688667792,182]
[null,"Female 55-59",0.29981072555205046,0.32799805872361082,0.35191458383887408,0.36472700800776514,0.34422712933753946,0.38838728463965061,0.36301014316913371,0.36045619995146816,0.39206017956806599,0.40682009221062848,0.40658092695947595,0.37839359378791548,0.40060179568066001,0.34251880611502067,0.3322688667799078,0.34251880611502067,0.32970638194612961,0.28528997816064067,0.34849793739383644,0.39206017956806599,0.35037709293860714,0.35020626061635524,0.36694782819703953,0.39291434117932544,0.36387284639650569,0.33858966270322743,0.36891239990293612,0.34456879398204326,0.36814365445280273,0.31347731133220097,0.36814365445280273,0.35516039796165982,0.31569813152147536,0.3322688667799078,0.37497694734287795,0.40658092695947595,0.3766852705653968,0.35939703955350644,0.35960203834020876,0.3476437757825771,0.32287308905605433,0.35200000000000004,0.36301868478524629,0.33513030817762679,0.33483135161368605,0.35276874545013343,0.3322688667799078,0.34337296772628007,0.33995632128124237,0.33124387284639656,0.33824799805872363,0.3766852705653968,0.34889939335112835,183]
[null,"Female 60-64",0.29981072555205046,0.32799805872361082,0.35191458383887408,0.36472700800776514,0.34422712933753946,0.38838728463965061,0.36301014316913371,0.36045619995146816,0.39206017956806599,0.40682009221062848,0.40658092695947595,0.37839359378791548,0.40060179568066001,0.34251880611502067,0.3322688667799078,0.34251880611502067,0.32970638194612961,0.28528997816064067,0.34849793739383644,0.39206017956806599,0.35037709293860714,0.35020626061635524,0.36694782819703953,0.39291434117932544,0.36387284639650569,0.33858966270322743,0.36891239990293612,0.34456879398204326,0.36814365445280273,0.31347731133220097,0.36814365445280273,0.35516039796165982,0.31569813152147536,0.3322688667799078,0.37497694734287795,0.40658092695947595,0.3766852705653968,0.35939703955350644,0.35960203834020876,0.3476437757825771,0.32287308905605433,0.35200000000000004,0.36301868478524629,0.33513030817762679,0.33483135161368605,0.35276874545013343,0.3322688667799078,0.34337296772628007,0.33995632128124237,0.33124387284639656,0.33824799805872363,0.3766852705653968,0.34889939335112835,184]
[null,"Female 65-69",{"$f":"$AR187*C$253","v":0.2947003154574131},0.32240718272264007,0.34591603979616592,0.35851007037126903,0.33835962145110399,0.38176704683329282,0.35682247027420522,0.35431206017956801,0.38537733559815562,0.39988565882067445,{"$f":"$AR187*M$253","v":0.39965057024993927},0.37194370298471224,0.39377335598155772,0.33668041737442361,0.32660519291434109,0.33668041737442361,0.32408638679932045,0.28042708080562967,0.342557631642805,0.38537733559815562,{"$f":"$AR187*W$253","v":0.34440475612715349},0.34423683571948543,0.36069303567095351,0.38621693763649589,0.35767046833292876,0.33281824799805865,0.36262412035913594,0.33869546226644009,0.36186847852462983,0.30813394807085653,{"$f":"$AR187*AG$253","v":0.36186847852462983},0.34910652754185867,0.31031691337054101,0.32660519291434109,0.3685852948313515,0.39965057024993927,0.37026449890803198,0.3532709536520261,0.3534724581412278,0.34171802960446485,0.31736957049259873,0.34599999999999992,{"$f":"$AR187*AS$253","v":0.3568308662945886},0.32941785974278076,0.32912399902936174,0.34675564183450608,0.32660519291434109,0.33752001941276383,0.33416161125940291,0.32559767046833288,0.33248240718272259,0.37026449890803198,0.34295224460082496,185]
[null,"Female 70-74",0.2947003154574131,0.32240718272264007,0.34591603979616592,0.35851007037126903,0.33835962145110399,0.38176704683329282,0.35682247027420522,0.35431206017956801,0.38537733559815562,0.39988565882067445,0.39965057024993927,0.37194370298471224,0.39377335598155772,0.33668041737442361,0.32660519291434109,0.33668041737442361,0.32408638679932045,0.28042708080562967,0.342557631642805,0.38537733559815562,0.34440475612715349,0.34423683571948543,0.36069303567095351,0.38621693763649589,0.35767046833292876,0.33281824799805865,0.36262412035913594,0.33869546226644009,0.36186847852462983,0.30813394807085653,0.36186847852462983,0.34910652754185867,0.31031691337054101,0.32660519291434109,0.3685852948313515,0.39965057024993927,0.37026449890803198,0.3532709536520261,0.3534724581412278,0.34171802960446485,0.31736957049259873,0.34599999999999992,0.3568308662945886,0.32941785974278076,0.32912399902936174,0.34675564183450608,0.32660519291434109,0.33752001941276383,0.33416161125940291,0.32559767046833288,0.33248240718272259,0.37026449890803198,0.34295224460082496,186]
[null,"Female 75-79",0.47697160883280754,0.52181509342392629,0.55986411065275421,0.58024751273962638,0.54763406940063097,0.61788886192671688,0.57751613685998548,0.57345304537733566,0.62373210385828681,0.64721378306236343,0.6468332928900753,0.60198980829895643,0.63732103858286815,0.54491628245571466,0.5286095607862169,0.54491628245571466,0.5245328803688426,0.45387041980101928,0.55442853676292159,0.62373210385828681,0.55741810240232958,0.5571463237078379,0.58378063576801742,0.62509099733074502,0.57888861926716817,0.53866537248240731,0.58690609075467115,0.54817762678961424,0.58568308662945889,0.49871390439213786,0.58568308662945889,0.56502790584809515,0.50224702742052896,0.5286095607862169,0.59655423440912403,0.6468332928900753,0.59927202135404034,0.57176801747148753,0.57209415190487756,0.5530696432904636,0.51366173258917736,0.56000000000000005,0.57752972579471007,0.53316185391895166,0.53268624120359143,0.56122300412521231,0.5286095607862169,0.54627517592817276,0.54083960203834014,0.52697888861926723,0.53812181509342405,0.59927202135404034,0.55506721669497694,187]
[null,"Female 80-84",0.47697160883280754,0.52181509342392629,0.55986411065275421,0.58024751273962638,0.54763406940063097,0.61788886192671688,0.57751613685998548,0.57345304537733566,0.62373210385828681,0.64721378306236343,0.6468332928900753,0.60198980829895643,0.63732103858286815,0.54491628245571466,0.5286095607862169,0.54491628245571466,0.5245328803688426,0.45387041980101928,0.55442853676292159,0.62373210385828681,0.55741810240232958,0.5571463237078379,0.58378063576801742,0.62509099733074502,0.57888861926716817,0.53866537248240731,0.58690609075467115,0.54817762678961424,0.58568308662945889,0.49871390439213786,0.58568308662945889,0.56502790584809515,0.50224702742052896,0.5286095607862169,0.59655423440912403,0.6468332928900753,0.59927202135404034,0.57176801747148753,0.57209415190487756,0.5530696432904636,0.51366173258917736,0.56000000000000005,0.57752972579471007,0.53316185391895166,0.53268624120359143,0.56122300412521231,0.5286095607862169,0.54627517592817276,0.54083960203834014,0.52697888861926723,0.53812181509342405,0.59927202135404034,0.55506721669497694,188]
[null,"Female 85-89",0.47697160883280754,0.52181509342392629,0.55986411065275421,0.58024751273962638,0.54763406940063097,0.61788886192671688,0.57751613685998548,0.57345304537733566,0.62373210385828681,0.64721378306236343,0.6468332928900753,0.60198980829895643,0.63732103858286815,0.54491628245571466,0.5286095607862169,0.54491628245571466,0.5245328803688426,0.45387041980101928,0.55442853676292159,0.62373210385828681,0.55741810240232958,0.5571463237078379,0.58378063576801742,0.62509099733074502,0.57888861926716817,0.53866537248240731,0.58690609075467115,0.54817762678961424,0.58568308662945889,0.49871390439213786,0.58568308662945889,0.56502790584809515,0.50224702742052896,0.5286095607862169,0.59655423440912403,0.6468332928900753,0.59927202135404034,0.57176801747148753,0.57209415190487756,0.5530696432904636,0.51366173258917736,0.56000000000000005,0.57752972579471007,0.53316185391895166,0.53268624120359143,0.56122300412521231,0.5286095607862169,0.54627517592817276,0.54083960203834014,0.52697888861926723,0.53812181509342405,0.59927202135404034,0.55506721669497694,189]
[null,"Female 90+",0.47697160883280754,0.52181509342392629,0.55986411065275421,0.58024751273962638,0.54763406940063097,0.61788886192671688,0.57751613685998548,0.57345304537733566,0.62373210385828681,0.64721378306236343,0.6468332928900753,0.60198980829895643,0.63732103858286815,0.54491628245571466,0.5286095607862169,0.54491628245571466,0.5245328803688426,0.45387041980101928,0.55442853676292159,0.62373210385828681,0.55741810240232958,0.5571463237078379,0.58378063576801742,0.62509099733074502,0.57888861926716817,0.53866537248240731,0.58690609075467115,0.54817762678961424,0.58568308662945889,0.49871390439213786,0.58568308662945889,0.56502790584809515,0.50224702742052896,0.5286095607862169,0.59655423440912403,0.6468332928900753,0.59927202135404034,0.57176801747148753,0.57209415190487756,0.5530696432904636,0.51366173258917736,0.56000000000000005,0.57752972579471007,0.53316185391895166,0.53268624120359143,0.56122300412521231,0.5286095607862169,0.54627517592817276,0.54083960203834014,0.52697888861926723,0.53812181509342405,0.59927202135404034,0.55506721669497694,190]
[null,"Male 0-4",null,null,null,null,null,null,null,null,null,null,null,null,null,null,null,null,null,null,null,null,null,null,null,null,null,null,null,null,null,null,null,null,null,null,null,null,null,null,null,null,null,0,null,null,null,null,null,null,null,null,null,null,null,191]
[null,"Male 5-9",null,null,null,null,null,null,null,null,null,null,null,null,null,null,null,null,null,null,null,null,null,null,null,null,null,null,null,null,null,null,null,null,null,null,null,null,null,null,null,null,null,0,null,null,null,null,null,null,null,null,null,null,null,192]
[null,"Male 10-15",null,null,null,null,null,null,null,null,null,null,null,null,null,null,null,null,null,null,null,null,null,null,null,null,null,null,null,null,null,null,null,null,null,null,null,null,null,null,null,null,null,0,null,null,null,null,null,null,null,null,null,null,null,193]
[null,"Male 16-19",{"$f":"$AR196*C$254","v":0.31912738853503181},0.33437579617834395,0.34635668789808904,0.35833757961783447,0.33546496815286619,0.36890254777070064,0.38871458598726105,0.28209554140127391,0.33764331210191079,0.35007076433121015,{"$f":"$AR196*M$254","v":0.34962420382165599},0.35833757961783447,0.39319108280254778,0.30823566878980885,0.40299363057324833,0.30823566878980885,0.3202165605095541,0.26684713375796176,0.32892993630573253,0.33764331210191079,{"$f":"$AR196*W$254","v":0.31716687898089174},0.31694904458598716,0.3225038216560509,0.34417834394904445,0.35615923566878982,0.33807898089171978,0.33916815286624202,0.33524713375796178,0.36705095541401273,0.34091082802547762,{"$f":"$AR196*AG$254","v":0.36705095541401273},0.38556687898089176,0.31302802547770686,0.40299363057324833,0.34200000000000003,0.37249681528662421,0.41933121019108277,0.36638656050955409,0.36596178343949037,0.34308917197452227,0.33546496815286619,0.34200000000000003,{"$f":"$AR196*AS$254","v":0.38883439490445859},0.32963789808917199,0.33001910828025471,0.33655414012738855,0.34744585987261151,0.31041401273885344,0.33546496815286619,0.35049554140127392,0.33219745222929931,0.35942675159235665,0.32887547770700626,194]
[null,"Male 20-24",0.31912738853503181,0.33437579617834395,0.34635668789808904,0.35833757961783447,0.33546496815286619,0.36890254777070064,0.38871458598726105,0.28209554140127391,0.33764331210191079,0.35007076433121015,0.34962420382165599,0.35833757961783447,0.39319108280254778,0.30823566878980885,0.40299363057324833,0.30823566878980885,0.3202165605095541,0.26684713375796176,0.32892993630573253,0.33764331210191079,0.31716687898089174,0.31694904458598716,0.3225038216560509,0.34417834394904445,0.35615923566878982,0.33807898089171978,0.33916815286624202,0.33524713375796178,0.36705095541401273,0.34091082802547762,0.36705095541401273,0.38556687898089176,0.31302802547770686,0.40299363057324833,0.34200000000000003,0.37249681528662421,0.41933121019108277,0.36638656050955409,0.36596178343949037,0.34308917197452227,0.33546496815286619,0.34200000000000003,0.38883439490445859,0.32963789808917199,0.33001910828025471,0.33655414012738855,0.34744585987261151,0.31041401273885344,0.33546496815286619,0.35049554140127392,0.33219745222929931,0.35942675159235665,0.32887547770700626,195]
[null,"Male 25-29",0.1838248407643312,0.19260828025477711,0.19950955414012733,0.20641082802547778,0.19323566878980891,0.21249649681528665,0.22390869426751589,0.16249363057324845,0.1944904458598726,0.201648949044586,0.20139171974522291,0.20641082802547778,0.22648726114649684,0.17755095541401272,0.23213375796178343,0.17755095541401272,0.18445222929936309,0.15371019108280254,0.18947133757961787,0.1944904458598726,0.18269554140127392,0.18257006369426745,0.18576974522292991,0.19825477707006364,0.20515605095541403,0.1947414012738854,0.1953687898089172,0.19311019108280256,0.21142993630573251,0.19637261146496812,0.21142993630573251,0.22209554140127391,0.18031146496815281,0.23213375796178343,0.19700000000000004,0.21456687898089175,0.24154458598726117,0.21104722929936306,0.21080254777070062,0.19762738853503187,0.19323566878980891,0.19700000000000004,0.22397770700636943,0.18987914012738855,0.19009872611464967,0.1938630573248408,0.2001369426751593,0.17880573248407641,0.19323566878980891,0.20189363057324847,0.19135350318471336,0.20703821656050955,0.18943996815286621,196]
[null,"Male 30-34",0.1838248407643312,0.19260828025477711,0.19950955414012733,0.20641082802547778,0.19323566878980891,0.21249649681528665,0.22390869426751589,0.16249363057324845,0.1944904458598726,0.201648949044586,0.20139171974522291,0.20641082802547778,0.22648726114649684,0.17755095541401272,0.23213375796178343,0.17755095541401272,0.18445222929936309,0.15371019108280254,0.18947133757961787,0.1944904458598726,0.18269554140127392,0.18257006369426745,0.18576974522292991,0.19825477707006364,0.20515605095541403,0.1947414012738854,0.1953687898089172,0.19311019108280256,0.21142993630573251,0.19637261146496812,0.21142993630573251,0.22209554140127391,0.18031146496815281,0.23213375796178343,0.19700000000000004,0.21456687898089175,0.24154458598726117,0.21104722929936306,0.21080254777070062,0.19762738853503187,0.19323566878980891,0.19700000000000004,0.22397770700636943,0.18987914012738855,0.19009872611464967,0.1938630573248408,0.2001369426751593,0.17880573248407641,0.19323566878980891,0.20189363057324847,0.19135350318471336,0.20703821656050955,0.18943996815286621,197]
[null,"Male 35-39",0.25380891719745219,0.26593630573248411,0.27546496815286614,0.28499363057324845,0.26680254777070062,0.29339617834394904,0.30915312101910819,0.22435668789808919,0.26853503184713373,0.27841885350318468,0.27806369426751587,0.28499363057324845,0.31271337579617831,0.24514649681528658,0.32050955414012733,0.24514649681528658,0.2546751592356688,0.21222929936305729,0.26160509554140132,0.26853503184713373,0.25224968152866245,0.25207643312101902,0.25649426751592352,0.27373248407643302,0.28326114649681527,0.26888152866242038,0.26974777070063694,0.26662929936305729,0.29192356687898086,0.27113375796178335,0.29192356687898086,0.30664968152866245,0.2489579617834394,0.32050955414012733,0.27200000000000002,0.2962547770700637,0.33350318471337576,0.29139515923566878,0.2910573248407643,0.27286624203821652,0.26680254777070062,0.27200000000000002,0.30924840764331207,0.26216815286624201,0.26247133757961777,0.26766878980891723,0.27633121019108287,0.2468789808917197,0.26680254777070062,0.27875668789808922,0.26420382165605094,0.28585987261146495,0.26156178343949038,198]
[null,"Male 40-44",0.25380891719745219,0.26593630573248411,0.27546496815286614,0.28499363057324845,0.26680254777070062,0.29339617834394904,0.30915312101910819,0.22435668789808919,0.26853503184713373,0.27841885350318468,0.27806369426751587,0.28499363057324845,0.31271337579617831,0.24514649681528658,0.32050955414012733,0.24514649681528658,0.2546751592356688,0.21222929936305729,0.26160509554140132,0.26853503184713373,0.25224968152866245,0.25207643312101902,0.25649426751592352,0.27373248407643302,0.28326114649681527,0.26888152866242038,0.26974777070063694,0.26662929936305729,0.29192356687898086,0.27113375796178335,0.29192356687898086,0.30664968152866245,0.2489579617834394,0.32050955414012733,0.27200000000000002,0.2962547770700637,0.33350318471337576,0.29139515923566878,0.2910573248407643,0.27286624203821652,0.26680254777070062,0.27200000000000002,0.30924840764331207,0.26216815286624201,0.26247133757961777,0.26766878980891723,0.27633121019108287,0.2468789808917197,0.26680254777070062,0.27875668789808922,0.26420382165605094,0.28585987261146495,0.26156178343949038,199]
[null,"Male 45-49",0.2985987261146496,0.31286624203821656,0.32407643312101897,0.33528662420382171,0.31388535031847126,0.34517197452229298,0.36370955414012729,0.26394904458598728,0.31592356687898082,0.32755159235668785,0.32713375796178334,0.33528662420382171,0.36789808917197447,0.28840764331210184,0.37707006369426743,0.28840764331210184,0.29961783439490441,0.24968152866242033,0.30777070063694267,0.31592356687898082,0.29676433121019108,0.29656050955413998,0.30175796178343939,0.3220382165605094,0.33324840764331209,0.31633121019108279,0.31735031847133754,0.31368152866242033,0.34343949044585986,0.31898089171974514,0.34343949044585986,0.36076433121019108,0.29289171974522282,0.37707006369426743,0.32,0.34853503184713375,0.39235668789808914,0.34281783439490437,0.34242038216560505,0.32101910828025476,0.31388535031847126,0.32,0.3638216560509554,0.30843312101910825,0.30878980891719737,0.31490445859872612,0.32509554140127395,0.2904458598726114,0.31388535031847126,0.32794904458598728,0.31082802547770694,0.33630573248407636,0.30771974522292983,200]
[null,"Male 50-54",0.2985987261146496,0.31286624203821656,0.32407643312101897,0.33528662420382171,0.31388535031847126,0.34517197452229298,0.36370955414012729,0.26394904458598728,0.31592356687898082,0.32755159235668785,0.32713375796178334,0.33528662420382171,0.36789808917197447,0.28840764331210184,0.37707006369426743,0.28840764331210184,0.29961783439490441,0.24968152866242033,0.30777070063694267,0.31592356687898082,0.29676433121019108,0.29656050955413998,0.30175796178343939,0.3220382165605094,0.33324840764331209,0.31633121019108279,0.31735031847133754,0.31368152866242033,0.34343949044585986,0.31898089171974514,0.34343949044585986,0.36076433121019108,0.29289171974522282,0.37707006369426743,0.32,0.34853503184713375,0.39235668789808914,0.34281783439490437,0.34242038216560505,0.32101910828025476,0.31388535031847126,0.32,0.3638216560509554,0.30843312101910825,0.30878980891719737,0.31490445859872612,0.32509554140127395,0.2904458598726114,0.31388535031847126,0.32794904458598728,0.31082802547770694,0.33630573248407636,0.30771974522292983,201]
[null,"Male 55-59",0.37791401273885344,0.39597133757961789,0.41015923566878965,0.42434713375796185,0.39726114649681521,0.43685828025477708,0.46031990445859861,0.33406050955414018,0.39984076433121013,0.41455748407643306,0.41402866242038205,0.42434713375796185,0.46562101910828024,0.3650159235668789,0.47722929936305725,0.3650159235668789,0.37920382165605093,0.31600318471337574,0.38952229299363061,0.39984076433121013,0.37559235668789814,0.37533439490445847,0.3819124203821655,0.40757961783439473,0.42176751592356687,0.4003566878980892,0.40164649681528658,0.39700318471337576,0.43466560509554136,0.40371019108280243,0.43466560509554136,0.4565923566878981,0.37069108280254764,0.47722929936305725,0.40500000000000003,0.44111464968152869,0.49657643312101907,0.43387882165605091,0.43337579617834388,0.40628980891719746,0.39726114649681521,0.40500000000000003,0.4604617834394904,0.39036066878980891,0.39081210191082799,0.39855095541401275,0.41144904458598736,0.36759554140127382,0.39726114649681521,0.4150605095541402,0.39339171974522286,0.42563694267515917,0.38945780254777057,202]
[null,"Male 60-64",0.37791401273885344,0.39597133757961789,0.41015923566878965,0.42434713375796185,0.39726114649681521,0.43685828025477708,0.46031990445859861,0.33406050955414018,0.39984076433121013,0.41455748407643306,0.41402866242038205,0.42434713375796185,0.46562101910828024,0.3650159235668789,0.47722929936305725,0.3650159235668789,0.37920382165605093,0.31600318471337574,0.38952229299363061,0.39984076433121013,0.37559235668789814,0.37533439490445847,0.3819124203821655,0.40757961783439473,0.42176751592356687,0.4003566878980892,0.40164649681528658,0.39700318471337576,0.43466560509554136,0.40371019108280243,0.43466560509554136,0.4565923566878981,0.37069108280254764,0.47722929936305725,0.40500000000000003,0.44111464968152869,0.49657643312101907,0.43387882165605091,0.43337579617834388,0.40628980891719746,0.39726114649681521,0.40500000000000003,0.4604617834394904,0.39036066878980891,0.39081210191082799,0.39855095541401275,0.41144904458598736,0.36759554140127382,0.39726114649681521,0.4150605095541402,0.39339171974522286,0.42563694267515917,0.38945780254777057,203]
[null,"Male 65-69",{"$f":"$AR206*C$254","v":0.43390127388535027},0.45463375796178346,0.47092356687898068,0.48721337579617841,0.45611464968152859,0.50157802547770702,0.52851544585987242,0.3835509554140128,0.45907643312101903,0.47597340764331203,{"$f":"$AR206*M$254","v":0.47536624203821642},0.48721337579617841,0.53460191082802544,0.41909235668789802,0.54792993630573239,0.41909235668789802,0.43538216560509552,0.36281847133757955,0.44722929936305733,0.45907643312101903,{"$f":"$AR206*W$254","v":0.43123566878980896},0.43093949044585972,0.43849203821656041,0.46796178343949024,0.48425159235668785,0.45966878980891723,0.46114968152866237,0.45581847133757958,0.49906050955414011,0.46351910828025467,{"$f":"$AR206*AG$254","v":0.49906050955414011},0.52423566878980898,0.42560828025477687,0.54792993630573239,0.46500000000000002,0.50646496815286624,0.57014331210191083,0.49815716560509549,0.49757961783439481,0.46648089171974522,0.45611464968152859,0.46500000000000002,{"$f":"$AR206*AS$254","v":0.52867834394904456},0.44819187898089169,0.44871019108280247,0.4575955414012739,0.47240445859872621,0.42205414012738846,0.45611464968152859,0.47655095541401282,0.45167197452229291,0.48869426751592349,0.44715525477706991,204]
[null,"Male 70-74",0.43390127388535027,0.45463375796178346,0.47092356687898068,0.48721337579617841,0.45611464968152859,0.50157802547770702,0.52851544585987242,0.3835509554140128,0.45907643312101903,0.47597340764331203,0.47536624203821642,0.48721337579617841,0.53460191082802544,0.41909235668789802,0.54792993630573239,0.41909235668789802,0.43538216560509552,0.36281847133757955,0.44722929936305733,0.45907643312101903,0.43123566878980896,0.43093949044585972,0.43849203821656041,0.46796178343949024,0.48425159235668785,0.45966878980891723,0.46114968152866237,0.45581847133757958,0.49906050955414011,0.46351910828025467,0.49906050955414011,0.52423566878980898,0.42560828025477687,0.54792993630573239,0.46500000000000002,0.50646496815286624,0.57014331210191083,0.49815716560509549,0.49757961783439481,0.46648089171974522,0.45611464968152859,0.46500000000000002,0.52867834394904456,0.44819187898089169,0.44871019108280247,0.4575955414012739,0.47240445859872621,0.42205414012738846,0.45611464968152859,0.47655095541401282,0.45167197452229291,0.48869426751592349,0.44715525477706991,205]
[null,"Male 75-79",0.66344904458598708,0.69514968152866241,0.72005732484076401,0.74496496815286628,0.69741401273885328,0.76692898089171968,0.80811716560509528,0.5864617834394904,0.70194267515923547,0.72777869426751574,0.7268503184713373,0.74496496815286628,0.81742356687898077,0.64080573248407624,0.8378025477707004,0.64080573248407624,0.66571337579617829,0.55476114649681518,0.68382802547770694,0.70194267515923547,0.65937324840764333,0.65892038216560478,0.67046847133757936,0.71552866242038182,0.74043630573248398,0.70284840764331202,0.70511273885350312,0.69696114649681518,0.76307961783439482,0.70873566878980865,0.76307961783439482,0.80157324840764321,0.65076878980891684,0.8378025477707004,0.71099999999999997,0.77440127388535029,0.87176751592356672,0.76169837579617816,0.76081528662420361,0.71326433121019095,0.69741401273885328,0.71099999999999997,0.80836624203821639,0.68529984076433115,0.68609235668789792,0.6996783439490446,0.72232165605095544,0.64533439490445843,0.69741401273885328,0.72866178343949051,0.69062101910828011,0.74722929936305715,0.68371480891719716,206]
[null,"Male 80-84",0.66344904458598708,0.69514968152866241,0.72005732484076401,0.74496496815286628,0.69741401273885328,0.76692898089171968,0.80811716560509528,0.5864617834394904,0.70194267515923547,0.72777869426751574,0.7268503184713373,0.74496496815286628,0.81742356687898077,0.64080573248407624,0.8378025477707004,0.64080573248407624,0.66571337579617829,0.55476114649681518,0.68382802547770694,0.70194267515923547,0.65937324840764333,0.65892038216560478,0.67046847133757936,0.71552866242038182,0.74043630573248398,0.70284840764331202,0.70511273885350312,0.69696114649681518,0.76307961783439482,0.70873566878980865,0.76307961783439482,0.80157324840764321,0.65076878980891684,0.8378025477707004,0.71099999999999997,0.77440127388535029,0.87176751592356672,0.76169837579617816,0.76081528662420361,0.71326433121019095,0.69741401273885328,0.71099999999999997,0.80836624203821639,0.68529984076433115,0.68609235668789792,0.6996783439490446,0.72232165605095544,0.64533439490445843,0.69741401273885328,0.72866178343949051,0.69062101910828011,0.74722929936305715,0.68371480891719716,207]
[null,"Male 85-89",0.66344904458598708,0.69514968152866241,0.72005732484076401,0.74496496815286628,0.69741401273885328,0.76692898089171968,0.80811716560509528,0.5864617834394904,0.70194267515923547,0.72777869426751574,0.7268503184713373,0.74496496815286628,0.81742356687898077,0.64080573248407624,0.8378025477707004,0.64080573248407624,0.66571337579617829,0.55476114649681518,0.68382802547770694,0.70194267515923547,0.65937324840764333,0.65892038216560478,0.67046847133757936,0.71552866242038182,0.74043630573248398,0.70284840764331202,0.70511273885350312,0.69696114649681518,0.76307961783439482,0.70873566878980865,0.76307961783439482,0.80157324840764321,0.65076878980891684,0.8378025477707004,0.71099999999999997,0.77440127388535029,0.87176751592356672,0.76169837579617816,0.76081528662420361,0.71326433121019095,0.69741401273885328,0.71099999999999997,0.80836624203821639,0.68529984076433115,0.68609235668789792,0.6996783439490446,0.72232165605095544,0.64533439490445843,0.69741401273885328,0.72866178343949051,0.69062101910828011,0.74722929936305715,0.68371480891719716,208]
[null,"Male 90+",0.66344904458598708,0.69514968152866241,0.72005732484076401,0.74496496815286628,0.69741401273885328,0.76692898089171968,0.80811716560509528,0.5864617834394904,0.70194267515923547,0.72777869426751574,0.7268503184713373,0.74496496815286628,0.81742356687898077,0.64080573248407624,0.8378025477707004,0.64080573248407624,0.66571337579617829,0.55476114649681518,0.68382802547770694,0.70194267515923547,0.65937324840764333,0.65892038216560478,0.67046847133757936,0.71552866242038182,0.74043630573248398,0.70284840764331202,0.70511273885350312,0.69696114649681518,0.76307961783439482,0.70873566878980865,0.76307961783439482,0.80157324840764321,0.65076878980891684,0.8378025477707004,0.71099999999999997,0.77440127388535029,0.87176751592356672,0.76169837579617816,0.76081528662420361,0.71326433121019095,0.69741401273885328,0.71099999999999997,0.80836624203821639,0.68529984076433115,0.68609235668789792,0.6996783439490446,0.72232165605095544,0.64533439490445843,0.69741401273885328,0.72866178343949051,0.69062101910828011,0.74722929936305715,0.68371480891719716,209]
["SIMD Q5 (least deprived)","Female 0-4",null,null,null,null,null,null,null,null,null,null,null,null,null,null,null,null,null,null,null,null,null,null,null,null,null,null,null,null,null,null,null,null,null,null,null,null,null,null,null,null,null,0,null,null,null,null,null,null,null,null,null,null,null,210]
[null,"Female 5-9",null,null,null,null,null,null,null,null,null,null,null,null,null,null,null,null,null,null,null,null,null,null,null,null,null,null,null,null,null,null,null,null,null,null,null,null,null,null,null,null,null,0,null,null,null,null,null,null,null,null,null,null,null,211]
[null,"Female 10-15",null,null,null,null,null,null,null,null,null,null,null,null,null,null,null,null,null,null,null,null,null,null,null,null,null,null,null,null,null,null,null,null,null,null,null,null,null,null,null,null,null,0,null,null,null,null,null,null,null,null,null,null,null,212]
[null,"Female 16-19",{"$f":"$AR215*C$253","v":0.12435331230283904},0.13604464935695212,0.14596457170589658,0.15127881582140251,0.142776025236593,0.16109245328803681,0.1505667071099247,0.14950740111623387,0.16261586993448182,0.16873787915554467,{"$f":"$AR215*M$253","v":0.16863867993205525},0.15694734287794213,0.16615869934481911,0.14206745935452553,0.13781606406212077,0.14206745935452553,0.13675321523901959,0.11833050230526568,0.14454743994176164,0.16261586993448182,{"$f":"$AR215*W$253","v":0.14532686241203585},0.14525600582382908,0.15219995146809018,0.16297015287551558,0.15092453288036875,0.14043775782577039,0.15301480223246774,0.14291773841300651,0.15269594758553739,0.13002183935937875,{"$f":"$AR215*AG$253","v":0.15269594758553739},0.14731084688182475,0.13094297500606641,0.13781606406212077,0.15553021111380724,0.16863867993205525,0.15623877699587471,0.14906809026935203,0.14915311817520016,0.14419315700072793,0.13391895171074975,0.14599999999999994,{"$f":"$AR215*AS$253","v":0.15057024993933504},0.13900291191458375,0.13887891288522197,0.14631885464693029,0.13781606406212077,0.14242174229555926,0.14100461053142432,0.13739092453288032,0.14029604464935688,0.15623877699587471,0.14471395292404748,213]
[null,"Female 20-24",0.12435331230283904,0.13604464935695212,0.14596457170589658,0.15127881582140251,0.142776025236593,0.16109245328803681,0.1505667071099247,0.14950740111623387,0.16261586993448182,0.16873787915554467,0.16863867993205525,0.15694734287794213,0.16615869934481911,0.14206745935452553,0.13781606406212077,0.14206745935452553,0.13675321523901959,0.11833050230526568,0.14454743994176164,0.16261586993448182,0.14532686241203585,0.14525600582382908,0.15219995146809018,0.16297015287551558,0.15092453288036875,0.14043775782577039,0.15301480223246774,0.14291773841300651,0.15269594758553739,0.13002183935937875,0.15269594758553739,0.14731084688182475,0.13094297500606641,0.13781606406212077,0.15553021111380724,0.16863867993205525,0.15623877699587471,0.14906809026935203,0.14915311817520016,0.14419315700072793,0.13391895171074975,0.14599999999999994,0.15057024993933504,0.13900291191458375,0.13887891288522197,0.14631885464693029,0.13781606406212077,0.14242174229555926,0.14100461053142432,0.13739092453288032,0.14029604464935688,0.15623877699587471,0.14471395292404748,214]
[null,"Female 25-29",0.15501577287066245,0.16958990536277604,0.18195583596214515,0.18858044164037857,0.17798107255520507,0.20081388012618298,0.1876927444794953,0.18637223974763412,0.2027129337539432,0.21034447949526813,0.21022082018927449,0.19564668769716087,0.20712933753943216,0.17709779179810728,0.17179810725552053,0.17709779179810728,0.17047318611987383,0.14750788643533128,0.18018927444794952,0.2027129337539432,0.18116088328075711,0.18107255520504734,0.18972870662460567,0.20315457413249213,0.18813880126182966,0.17506624605678237,0.19074447949526813,0.17815772870662464,0.19034700315457415,0.16208201892744481,0.19034700315457415,0.18363406940063093,0.16323028391167191,0.17179810725552053,0.1938801261829653,0.21022082018927449,0.19476340694006311,0.18582460567823345,0.18593059936908521,0.17974763406940067,0.16694006309148263,0.18200000000000002,0.18769716088328078,0.17327760252365931,0.17312302839116722,0.182397476340694,0.17179810725552053,0.17753943217665616,0.17577287066246056,0.17126813880126185,0.1748895899053628,0.19476340694006311,0.18039684542586751,215]
[null,"Female 30-34",0.15501577287066245,0.16958990536277604,0.18195583596214515,0.18858044164037857,0.17798107255520507,0.20081388012618298,0.1876927444794953,0.18637223974763412,0.2027129337539432,0.21034447949526813,0.21022082018927449,0.19564668769716087,0.20712933753943216,0.17709779179810728,0.17179810725552053,0.17709779179810728,0.17047318611987383,0.14750788643533128,0.18018927444794952,0.2027129337539432,0.18116088328075711,0.18107255520504734,0.18972870662460567,0.20315457413249213,0.18813880126182966,0.17506624605678237,0.19074447949526813,0.17815772870662464,0.19034700315457415,0.16208201892744481,0.19034700315457415,0.18363406940063093,0.16323028391167191,0.17179810725552053,0.1938801261829653,0.21022082018927449,0.19476340694006311,0.18582460567823345,0.18593059936908521,0.17974763406940067,0.16694006309148263,0.18200000000000002,0.18769716088328078,0.17327760252365931,0.17312302839116722,0.182397476340694,0.17179810725552053,0.17753943217665616,0.17577287066246056,0.17126813880126185,0.1748895899053628,0.19476340694006311,0.18039684542586751,216]
[null,"Female 35-39",0.12435331230283904,0.13604464935695212,0.14596457170589658,0.15127881582140251,0.142776025236593,0.16109245328803681,0.1505667071099247,0.14950740111623387,0.16261586993448182,0.16873787915554467,0.16863867993205525,0.15694734287794213,0.16615869934481911,0.14206745935452553,0.13781606406212077,0.14206745935452553,0.13675321523901959,0.11833050230526568,0.14454743994176164,0.16261586993448182,0.14532686241203585,0.14525600582382908,0.15219995146809018,0.16297015287551558,0.15092453288036875,0.14043775782577039,0.15301480223246774,0.14291773841300651,0.15269594758553739,0.13002183935937875,0.15269594758553739,0.14731084688182475,0.13094297500606641,0.13781606406212077,0.15553021111380724,0.16863867993205525,0.15623877699587471,0.14906809026935203,0.14915311817520016,0.14419315700072793,0.13391895171074975,0.14599999999999994,0.15057024993933504,0.13900291191458375,0.13887891288522197,0.14631885464693029,0.13781606406212077,0.14242174229555926,0.14100461053142432,0.13739092453288032,0.14029604464935688,0.15623877699587471,0.14471395292404748,217]
[null,"Female 40-44",0.12435331230283904,0.13604464935695212,0.14596457170589658,0.15127881582140251,0.142776025236593,0.16109245328803681,0.1505667071099247,0.14950740111623387,0.16261586993448182,0.16873787915554467,0.16863867993205525,0.15694734287794213,0.16615869934481911,0.14206745935452553,0.13781606406212077,0.14206745935452553,0.13675321523901959,0.11833050230526568,0.14454743994176164,0.16261586993448182,0.14532686241203585,0.14525600582382908,0.15219995146809018,0.16297015287551558,0.15092453288036875,0.14043775782577039,0.15301480223246774,0.14291773841300651,0.15269594758553739,0.13002183935937875,0.15269594758553739,0.14731084688182475,0.13094297500606641,0.13781606406212077,0.15553021111380724,0.16863867993205525,0.15623877699587471,0.14906809026935203,0.14915311817520016,0.14419315700072793,0.13391895171074975,0.14599999999999994,0.15057024993933504,0.13900291191458375,0.13887891288522197,0.14631885464693029,0.13781606406212077,0.14242174229555926,0.14100461053142432,0.13739092453288032,0.14029604464935688,0.15623877699587471,0.14471395292404748,218]
[null,"Female 45-49",0.19249211356466869,0.21058966270322732,0.22594515894200431,0.23417131764134916,0.22100946372239741,0.24936229070613922,0.23306901237563693,0.23142926474156755,0.25172045619995137,0.2611969910215966,0.26104343605920888,0.24294588692065022,0.25720456199951458,0.2199126425624848,0.21333171560300893,0.2199126425624848,0.21168648386313996,0.1831691337054113,0.22375151662217901,0.25172045619995137,0.22495801989808292,0.22484833778209165,0.23559718514923553,0.25226886677990773,0.2336229070613928,0.21738995389468571,0.23685852948313504,0.22122882795437995,0.2363649599611744,0.20126668284396987,0.2363649599611744,0.22802911914583834,0.20269255035185627,0.21333171560300893,0.24075224460082498,0.26104343605920888,0.24184906576073764,0.23074923562242169,0.23088085416161125,0.22320310604222274,0.20729919922348936,0.22599999999999995,0.23307449648143649,0.21516889104586256,0.21497694734287789,0.22649356952196062,0.21333171560300893,0.2204610531424411,0.21826741082261578,0.21267362290706135,0.2171705896627032,0.24184906576073764,0.22400926959475848,219]
[null,"Female 50-54",0.19249211356466869,0.21058966270322732,0.22594515894200431,0.23417131764134916,0.22100946372239741,0.24936229070613922,0.23306901237563693,0.23142926474156755,0.25172045619995137,0.2611969910215966,0.26104343605920888,0.24294588692065022,0.25720456199951458,0.2199126425624848,0.21333171560300893,0.2199126425624848,0.21168648386313996,0.1831691337054113,0.22375151662217901,0.25172045619995137,0.22495801989808292,0.22484833778209165,0.23559718514923553,0.25226886677990773,0.2336229070613928,0.21738995389468571,0.23685852948313504,0.22122882795437995,0.2363649599611744,0.20126668284396987,0.2363649599611744,0.22802911914583834,0.20269255035185627,0.21333171560300893,0.24075224460082498,0.26104343605920888,0.24184906576073764,0.23074923562242169,0.23088085416161125,0.22320310604222274,0.20729919922348936,0.22599999999999995,0.23307449648143649,0.21516889104586256,0.21497694734287789,0.22649356952196062,0.21333171560300893,0.2204610531424411,0.21826741082261578,0.21267362290706135,0.2171705896627032,0.24184906576073764,0.22400926959475848,220]
[null,"Female 55-59",0.25381703470031541,0.27768017471487499,0.29792768745450132,0.30877456927930114,0.29141955835962141,0.32880514438243141,0.30732108711477796,0.30515894200436788,0.33191458383887401,0.34441019170104337,0.34420771657364718,0.32034457655908749,0.33914583838874052,0.28997330744964811,0.28129580198980825,0.28997330744964811,0.2791264256248483,0.24152390196554235,0.29503518563455466,0.33191458383887401,0.29662606163552535,0.29648143654452797,0.31065469546226637,0.33263770929386072,0.30805144382431443,0.28664693035670952,0.31231788400873567,0.29170880854161613,0.31166707109924768,0.26538704198010193,0.31166707109924768,0.30067556418345059,0.26726716816306717,0.28129580198980825,0.31745207473914094,0.34420771657364718,0.3188983256491143,0.30426226644018439,0.30443581654938123,0.29431206017956807,0.27334142198495504,0.29799999999999999,0.30732831836932778,0.28371827226401353,0.28346517835476825,0.29865081290948792,0.28129580198980825,0.29069643290463476,0.2878039310846881,0.28042805144382432,0.28635768017471486,0.3188983256491143,0.29537505459839841,221]
[null,"Female 60-64",0.25381703470031541,0.27768017471487499,0.29792768745450132,0.30877456927930114,0.29141955835962141,0.32880514438243141,0.30732108711477796,0.30515894200436788,0.33191458383887401,0.34441019170104337,0.34420771657364718,0.32034457655908749,0.33914583838874052,0.28997330744964811,0.28129580198980825,0.28997330744964811,0.2791264256248483,0.24152390196554235,0.29503518563455466,0.33191458383887401,0.29662606163552535,0.29648143654452797,0.31065469546226637,0.33263770929386072,0.30805144382431443,0.28664693035670952,0.31231788400873567,0.29170880854161613,0.31166707109924768,0.26538704198010193,0.31166707109924768,0.30067556418345059,0.26726716816306717,0.28129580198980825,0.31745207473914094,0.34420771657364718,0.3188983256491143,0.30426226644018439,0.30443581654938123,0.29431206017956807,0.27334142198495504,0.29799999999999999,0.30732831836932778,0.28371827226401353,0.28346517835476825,0.29865081290948792,0.28129580198980825,0.29069643290463476,0.2878039310846881,0.28042805144382432,0.28635768017471486,0.3188983256491143,0.29537505459839841,222]
[null,"Female 65-69",{"$f":"$AR225*C$253","v":0.24444794952681384},0.26743023537976224,0.28693035670953654,0.29737685027905852,0.28066246056782335,0.3166680417374424,0.29597702014074256,0.29389468575588457,0.319662703227372,0.33169706381946129,{"$f":"$AR225*M$253","v":0.33150206260616361},0.30851977675321518,0.32662703227371992,0.27926959475855379,0.2709123999029362,0.27926959475855379,0.2688231011890318,0.23260859014802238,0.2841446250909973,0.319662703227372,{"$f":"$AR225*W$253","v":0.28567677748119391},0.28553749090026692,0.29918757583110894,0.32035913613200684,0.29668041737442369,0.27606600339723375,0.30078937151176893,0.28094103372967733,0.30016258189759765,0.25559087600097069,{"$f":"$AR225*AG$253","v":0.30016258189759765},0.28957680174714878,0.25740160155302111,0.2709123999029362,0.30573404513467606,0.33150206260616361,0.30712691094394567,0.29303110895413736,0.29319825285124979,0.28344819218636258,0.26325163795195339,0.28700000000000003,{"$f":"$AR225*AS$253","v":0.29598398446978891},0.27324545013346274,0.27300169861684059,0.28762678961417132,0.2709123999029362,0.27996602766318857,0.27718029604464933,0.27007668041737448,0.27578743023537983,0.30712691094394567,0.28447194855617569,223]
[null,"Female 70-74",0.24444794952681384,0.26743023537976224,0.28693035670953654,0.29737685027905852,0.28066246056782335,0.3166680417374424,0.29597702014074256,0.29389468575588457,0.319662703227372,0.33169706381946129,0.33150206260616361,0.30851977675321518,0.32662703227371992,0.27926959475855379,0.2709123999029362,0.27926959475855379,0.2688231011890318,0.23260859014802238,0.2841446250909973,0.319662703227372,0.28567677748119391,0.28553749090026692,0.29918757583110894,0.32035913613200684,0.29668041737442369,0.27606600339723375,0.30078937151176893,0.28094103372967733,0.30016258189759765,0.25559087600097069,0.30016258189759765,0.28957680174714878,0.25740160155302111,0.2709123999029362,0.30573404513467606,0.33150206260616361,0.30712691094394567,0.29303110895413736,0.29319825285124979,0.28344819218636258,0.26325163795195339,0.28700000000000003,0.29598398446978891,0.27324545013346274,0.27300169861684059,0.28762678961417132,0.2709123999029362,0.27996602766318857,0.27718029604464933,0.27007668041737448,0.27578743023537983,0.30712691094394567,0.28447194855617569,224]
[null,"Female 75-79",0.45567823343848574,0.49851977675321524,0.53487017714147056,0.55434360592089305,0.52318611987381702,0.59030453773355984,0.55173416646445039,0.54785246299441892,0.59588692065032756,0.61832031060422221,0.6179568066003398,0.57511526328561013,0.60886920650327581,0.52058966270322737,0.50501091967968936,0.52058966270322737,0.50111623392380489,0.43360834748847377,0.52967726280029115,0.59588692065032756,0.53253336568793985,0.5322737199708808,0.55771900024265952,0.59718514923562249,0.55304537733559811,0.51461781121087125,0.56070492598883759,0.52370541130793502,0.55953652026207223,0.47644989080320316,0.55953652026207223,0.53980344576559092,0.47982528512496964,0.50501091967968936,0.56992234894443095,0.6179568066003398,0.57251880611502071,0.54624265954865325,0.5465542344091241,0.52837903421499643,0.49073040524144618,0.53500000000000003,0.55174714875030328,0.50935998544042704,0.50890560543557395,0.53616840572676527,0.50501091967968936,0.5218878912885222,0.51669497694734279,0.5034530453773356,0.51409851977675325,0.57251880611502071,0.53028743023537972,225]
[null,"Female 80-84",0.45567823343848574,0.49851977675321524,0.53487017714147056,0.55434360592089305,0.52318611987381702,0.59030453773355984,0.55173416646445039,0.54785246299441892,0.59588692065032756,0.61832031060422221,0.6179568066003398,0.57511526328561013,0.60886920650327581,0.52058966270322737,0.50501091967968936,0.52058966270322737,0.50111623392380489,0.43360834748847377,0.52967726280029115,0.59588692065032756,0.53253336568793985,0.5322737199708808,0.55771900024265952,0.59718514923562249,0.55304537733559811,0.51461781121087125,0.56070492598883759,0.52370541130793502,0.55953652026207223,0.47644989080320316,0.55953652026207223,0.53980344576559092,0.47982528512496964,0.50501091967968936,0.56992234894443095,0.6179568066003398,0.57251880611502071,0.54624265954865325,0.5465542344091241,0.52837903421499643,0.49073040524144618,0.53500000000000003,0.55174714875030328,0.50935998544042704,0.50890560543557395,0.53616840572676527,0.50501091967968936,0.5218878912885222,0.51669497694734279,0.5034530453773356,0.51409851977675325,0.57251880611502071,0.53028743023537972,226]
[null,"Female 85-89",0.45567823343848574,0.49851977675321524,0.53487017714147056,0.55434360592089305,0.52318611987381702,0.59030453773355984,0.55173416646445039,0.54785246299441892,0.59588692065032756,0.61832031060422221,0.6179568066003398,0.57511526328561013,0.60886920650327581,0.52058966270322737,0.50501091967968936,0.52058966270322737,0.50111623392380489,0.43360834748847377,0.52967726280029115,0.59588692065032756,0.53253336568793985,0.5322737199708808,0.55771900024265952,0.59718514923562249,0.55304537733559811,0.51461781121087125,0.56070492598883759,0.52370541130793502,0.55953652026207223,0.47644989080320316,0.55953652026207223,0.53980344576559092,0.47982528512496964,0.50501091967968936,0.56992234894443095,0.6179568066003398,0.57251880611502071,0.54624265954865325,0.5465542344091241,0.52837903421499643,0.49073040524144618,0.53500000000000003,0.55174714875030328,0.50935998544042704,0.50890560543557395,0.53616840572676527,0.50501091967968936,0.5218878912885222,0.51669497694734279,0.5034530453773356,0.51409851977675325,0.57251880611502071,0.53028743023537972,227]
[null,"Female 90+",0.45567823343848574,0.49851977675321524,0.53487017714147056,0.55434360592089305,0.52318611987381702,0.59030453773355984,0.55173416646445039,0.54785246299441892,0.59588692065032756,0.61832031060422221,0.6179568066003398,0.57511526328561013,0.60886920650327581,0.52058966270322737,0.50501091967968936,0.52058966270322737,0.50111623392380489,0.43360834748847377,0.52967726280029115,0.59588692065032756,0.53253336568793985,0.5322737199708808,0.55771900024265952,0.59718514923562249,0.55304537733559811,0.51461781121087125,0.56070492598883759,0.52370541130793502,0.55953652026207223,0.47644989080320316,0.55953652026207223,0.53980344576559092,0.47982528512496964,0.50501091967968936,0.56992234894443095,0.6179568066003398,0.57251880611502071,0.54624265954865325,0.5465542344091241,0.52837903421499643,0.49073040524144618,0.53500000000000003,0.55174714875030328,0.50935998544042704,0.50890560543557395,0.53616840572676527,0.50501091967968936,0.5218878912885222,0.51669497694734279,0.5034530453773356,0.51409851977675325,0.57251880611502071,0.53028743023537972,228]
[null,"Male 0-4",null,null,null,null,null,null,null,null,null,null,null,null,null,null,null,null,null,null,null,null,null,null,null,null,null,null,null,null,null,null,null,null,null,null,null,null,null,null,null,null,null,0,null,null,null,null,null,null,null,null,null,null,null,229]
[null,"Male 5-9",null,null,null,null,null,null,null,null,null,null,null,null,null,null,null,null,null,null,null,null,null,null,null,null,null,null,null,null,null,null,null,null,null,null,null,null,null,null,null,null,null,0,null,null,null,null,null,null,null,null,null,null,null,230]
[null,"Male 10-15",null,null,null,null,null,null,null,null,null,null,null,null,null,null,null,null,null,null,null,null,null,null,null,null,null,null,null,null,null,null,null,null,null,null,null,null,null,null,null,null,null,0,null,null,null,null,null,null,null,null,null,null,null,231]
[null,"Male 16-19",{"$f":"$AR234*C$254","v":0.17076114649681523},0.17892038216560507,0.1853312101910827,0.1917420382165605,0.17950318471337573,0.19739522292993625,0.20799640127388525,0.15094585987261144,0.18066878980891712,0.18731856687898082,{"$f":"$AR234*M$254","v":0.18707961783439481},0.1917420382165605,0.21039171974522286,0.1649331210191082,0.21563694267515915,0.1649331210191082,0.17134394904458594,0.1427866242038216,0.17600636942675157,0.18066878980891712,{"$f":"$AR234*W$254","v":0.169712101910828},0.16959554140127378,0.17256783439490439,0.18416560509554128,0.19057643312101905,0.18090191082802545,0.18148471337579614,0.17938662420382159,0.19640445859872604,0.1824171974522292,{"$f":"$AR234*AG$254","v":0.19640445859872604},0.20631210191082799,0.16749745222929927,0.21563694267515915,0.18299999999999997,0.19931847133757957,0.22437898089171968,0.19604894904458592,0.19582165605095533,0.18358280254777065,0.17950318471337573,0.18299999999999997,{"$f":"$AR234*AS$254","v":0.20806050955414007},0.17638519108280251,0.17658917197452223,0.18008598726114647,0.1859140127388535,0.16609872611464963,0.17950318471337573,0.18754585987261146,0.17775477707006362,0.19232484076433112,0.17597722929936296,232]
[null,"Male 20-24",0.17076114649681523,0.17892038216560507,0.1853312101910827,0.1917420382165605,0.17950318471337573,0.19739522292993625,0.20799640127388525,0.15094585987261144,0.18066878980891712,0.18731856687898082,0.18707961783439481,0.1917420382165605,0.21039171974522286,0.1649331210191082,0.21563694267515915,0.1649331210191082,0.17134394904458594,0.1427866242038216,0.17600636942675157,0.18066878980891712,0.169712101910828,0.16959554140127378,0.17256783439490439,0.18416560509554128,0.19057643312101905,0.18090191082802545,0.18148471337579614,0.17938662420382159,0.19640445859872604,0.1824171974522292,0.19640445859872604,0.20631210191082799,0.16749745222929927,0.21563694267515915,0.18299999999999997,0.19931847133757957,0.22437898089171968,0.19604894904458592,0.19582165605095533,0.18358280254777065,0.17950318471337573,0.18299999999999997,0.20806050955414007,0.17638519108280251,0.17658917197452223,0.18008598726114647,0.1859140127388535,0.16609872611464963,0.17950318471337573,0.18754585987261146,0.17775477707006362,0.19232484076433112,0.17597722929936296,233]
[null,"Male 25-29",0.16702866242038217,0.17500955414012745,0.18128025477707002,0.18755095541401282,0.17557961783439491,0.19308057324840769,0.20345003184713376,0.14764649681528666,0.17671974522292994,0.18322417197452232,0.18299044585987259,0.18755095541401282,0.20579299363057327,0.16132802547770703,0.21092356687898089,0.16132802547770703,0.16759872611464971,0.13966560509554141,0.17215923566878985,0.17671974522292994,0.1660025477707007,0.16588853503184711,0.16879585987261148,0.18014012738853499,0.18641082802547773,0.176947770700637,0.17751783439490448,0.17546560509554143,0.1921114649681529,0.17842993630573248,0.1921114649681529,0.2018025477707007,0.16383630573248403,0.21092356687898089,0.17900000000000005,0.1949617834394905,0.21947452229299366,0.1917637261146497,0.19154140127388536,0.17957006369426753,0.17557961783439491,0.17900000000000005,0.20351273885350321,0.17252977707006373,0.17272929936305734,0.17614968152866248,0.18185031847133765,0.16246815286624205,0.17557961783439491,0.18344649681528669,0.17386942675159237,0.18812101910828027,0.17213073248407643,234]
[null,"Male 30-34",0.16702866242038217,0.17500955414012745,0.18128025477707002,0.18755095541401282,0.17557961783439491,0.19308057324840769,0.20345003184713376,0.14764649681528666,0.17671974522292994,0.18322417197452232,0.18299044585987259,0.18755095541401282,0.20579299363057327,0.16132802547770703,0.21092356687898089,0.16132802547770703,0.16759872611464971,0.13966560509554141,0.17215923566878985,0.17671974522292994,0.1660025477707007,0.16588853503184711,0.16879585987261148,0.18014012738853499,0.18641082802547773,0.176947770700637,0.17751783439490448,0.17546560509554143,0.1921114649681529,0.17842993630573248,0.1921114649681529,0.2018025477707007,0.16383630573248403,0.21092356687898089,0.17900000000000005,0.1949617834394905,0.21947452229299366,0.1917637261146497,0.19154140127388536,0.17957006369426753,0.17557961783439491,0.17900000000000005,0.20351273885350321,0.17252977707006373,0.17272929936305734,0.17614968152866248,0.18185031847133765,0.16246815286624205,0.17557961783439491,0.18344649681528669,0.17386942675159237,0.18812101910828027,0.17213073248407643,235]
[null,"Male 35-39",0.23421337579617824,0.24540445859872606,0.25419745222929918,0.26299044585987258,0.24620382165605084,0.27074426751592351,0.28528468152866227,0.20703503184713373,0.24780254777070052,0.25692328025477695,0.25659554140127372,0.26299044585987258,0.28857006369426741,0.22621974522292984,0.29576433121019097,0.22621974522292984,0.2350127388535031,0.19584394904458591,0.24140764331210185,0.24780254777070052,0.23277452229299359,0.23261464968152851,0.23669140127388524,0.25259872611464951,0.26139171974522285,0.24812229299363053,0.24892165605095534,0.2460439490445859,0.26938535031847127,0.25020063694267503,0.26938535031847127,0.28297452229299358,0.22973694267515907,0.29576433121019097,0.25099999999999995,0.27338216560509548,0.3077547770700636,0.2688977388535031,0.26858598726114635,0.25179936305732475,0.24620382165605084,0.25099999999999995,0.28537261146496806,0.24192722929936297,0.24220700636942666,0.24700318471337573,0.25499681528662416,0.22781847133757951,0.24620382165605084,0.25723503184713375,0.24380573248407633,0.26378980891719733,0.24136767515923552,236]
[null,"Male 40-44",0.23421337579617824,0.24540445859872606,0.25419745222929918,0.26299044585987258,0.24620382165605084,0.27074426751592351,0.28528468152866227,0.20703503184713373,0.24780254777070052,0.25692328025477695,0.25659554140127372,0.26299044585987258,0.28857006369426741,0.22621974522292984,0.29576433121019097,0.22621974522292984,0.2350127388535031,0.19584394904458591,0.24140764331210185,0.24780254777070052,0.23277452229299359,0.23261464968152851,0.23669140127388524,0.25259872611464951,0.26139171974522285,0.24812229299363053,0.24892165605095534,0.2460439490445859,0.26938535031847127,0.25020063694267503,0.26938535031847127,0.28297452229299358,0.22973694267515907,0.29576433121019097,0.25099999999999995,0.27338216560509548,0.3077547770700636,0.2688977388535031,0.26858598726114635,0.25179936305732475,0.24620382165605084,0.25099999999999995,0.28537261146496806,0.24192722929936297,0.24220700636942666,0.24700318471337573,0.25499681528662416,0.22781847133757951,0.24620382165605084,0.25723503184713375,0.24380573248407633,0.26378980891719733,0.24136767515923552,237]
[null,"Male 45-49",0.2220828025477706,0.23269426751592354,0.2410318471337578,0.24936942675159235,0.23345222929936296,0.25672165605095537,0.2705089808917196,0.19631210191082801,0.23496815286624195,0.24361649681528655,0.2433057324840763,0.24936942675159235,0.27362420382165598,0.21450318471337571,0.28044585987261134,0.21450318471337571,0.22284076433121014,0.18570063694267508,0.22890445859872607,0.23496815286624195,0.22071847133757957,0.22056687898089158,0.22443248407643301,0.23951592356687884,0.2478535031847133,0.2352713375796178,0.23602929936305725,0.23330063694267508,0.2554331210191082,0.2372420382165604,0.2554331210191082,0.26831847133757958,0.21783821656050942,0.28044585987261134,0.23799999999999996,0.25922292993630569,0.29181528662420375,0.25497076433121008,0.25467515923566869,0.23875796178343942,0.23345222929936296,0.23799999999999996,0.27059235668789799,0.22939713375796172,0.22966242038216553,0.2342101910828025,0.24178980891719745,0.2160191082802547,0.23345222929936296,0.24391210191082802,0.23117834394904449,0.25012738853503175,0.22886656050955401,238]
[null,"Male 50-54",0.2220828025477706,0.23269426751592354,0.2410318471337578,0.24936942675159235,0.23345222929936296,0.25672165605095537,0.2705089808917196,0.19631210191082801,0.23496815286624195,0.24361649681528655,0.2433057324840763,0.24936942675159235,0.27362420382165598,0.21450318471337571,0.28044585987261134,0.21450318471337571,0.22284076433121014,0.18570063694267508,0.22890445859872607,0.23496815286624195,0.22071847133757957,0.22056687898089158,0.22443248407643301,0.23951592356687884,0.2478535031847133,0.2352713375796178,0.23602929936305725,0.23330063694267508,0.2554331210191082,0.2372420382165604,0.2554331210191082,0.26831847133757958,0.21783821656050942,0.28044585987261134,0.23799999999999996,0.25922292993630569,0.29181528662420375,0.25497076433121008,0.25467515923566869,0.23875796178343942,0.23345222929936296,0.23799999999999996,0.27059235668789799,0.22939713375796172,0.22966242038216553,0.2342101910828025,0.24178980891719745,0.2160191082802547,0.23345222929936296,0.24391210191082802,0.23117834394904449,0.25012738853503175,0.22886656050955401,239]
[null,"Male 55-59",0.3284585987261146,0.34415286624203828,0.35648407643312091,0.36881528662420388,0.34527388535031844,0.37968917197452229,0.40008050955414004,0.29034394904458605,0.34751592356687894,0.36030675159235664,0.35984713375796168,0.36881528662420388,0.40468789808917194,0.31724840764331208,0.41477707006369424,0.31724840764331208,0.32957961783439488,0.27464968152866237,0.33854777070063696,0.34751592356687894,0.32644076433121022,0.326216560509554,0.33193375796178337,0.35424203821656036,0.36657324840764333,0.3479643312101911,0.34908535031847132,0.34504968152866244,0.37778343949044585,0.35087898089171965,0.37778343949044585,0.39684076433121024,0.32218089171974512,0.41477707006369424,0.35200000000000004,0.38338853503184717,0.43159235668789808,0.37709961783439488,0.37666242038216557,0.35312101910828025,0.34527388535031844,0.35200000000000004,0.40020382165605095,0.33927643312101913,0.33966878980891718,0.34639490445859877,0.35760509554140135,0.31949044585987257,0.34527388535031844,0.36074394904458607,0.34191082802547768,0.36993630573248404,0.33849171974522285,240]
[null,"Male 60-64",0.3284585987261146,0.34415286624203828,0.35648407643312091,0.36881528662420388,0.34527388535031844,0.37968917197452229,0.40008050955414004,0.29034394904458605,0.34751592356687894,0.36030675159235664,0.35984713375796168,0.36881528662420388,0.40468789808917194,0.31724840764331208,0.41477707006369424,0.31724840764331208,0.32957961783439488,0.27464968152866237,0.33854777070063696,0.34751592356687894,0.32644076433121022,0.326216560509554,0.33193375796178337,0.35424203821656036,0.36657324840764333,0.3479643312101911,0.34908535031847132,0.34504968152866244,0.37778343949044585,0.35087898089171965,0.37778343949044585,0.39684076433121024,0.32218089171974512,0.41477707006369424,0.35200000000000004,0.38338853503184717,0.43159235668789808,0.37709961783439488,0.37666242038216557,0.35312101910828025,0.34527388535031844,0.35200000000000004,0.40020382165605095,0.33927643312101913,0.33966878980891718,0.34639490445859877,0.35760509554140135,0.31949044585987257,0.34527388535031844,0.36074394904458607,0.34191082802547768,0.36993630573248404,0.33849171974522285,241]
[null,"Male 65-69",{"$f":"$AR244*C$254","v":0.37324840764331202},0.39108280254777072,0.40509554140127374,0.41910828025477714,0.39235668789808908,0.43146496815286622,0.45463694267515908,0.32993630573248411,0.39490445859872603,0.40943949044585981,{"$f":"$AR244*M$254","v":0.40891719745222921},0.41910828025477714,0.45987261146496811,0.36050955414012731,0.47133757961783429,0.36050955414012731,0.37452229299363055,0.31210191082802541,0.38471337579617837,0.39490445859872603,{"$f":"$AR244*W$254","v":0.3709554140127389},0.37070063694267502,0.37719745222929929,0.4025477707006368,0.41656050955414009,0.39541401273885352,0.39668789808917193,0.39210191082802548,0.4292993630573248,0.39872611464968144,{"$f":"$AR244*AG$254","v":0.4292993630573248},0.45095541401273886,0.36611464968152851,0.47133757961783429,0.4,0.43566878980891721,0.49044585987261141,0.42852229299363054,0.42802547770700627,0.40127388535031844,0.39235668789808908,0.4,{"$f":"$AR244*AS$254","v":0.45477707006369422},0.38554140127388536,0.38598726114649673,0.39363057324840767,0.40636942675159243,0.36305732484076425,0.39235668789808908,0.40993630573248413,0.38853503184713367,0.42038216560509545,0.3846496815286623,242]
[null,"Male 70-74",0.37324840764331202,0.39108280254777072,0.40509554140127374,0.41910828025477714,0.39235668789808908,0.43146496815286622,0.45463694267515908,0.32993630573248411,0.39490445859872603,0.40943949044585981,0.40891719745222921,0.41910828025477714,0.45987261146496811,0.36050955414012731,0.47133757961783429,0.36050955414012731,0.37452229299363055,0.31210191082802541,0.38471337579617837,0.39490445859872603,0.3709554140127389,0.37070063694267502,0.37719745222929929,0.4025477707006368,0.41656050955414009,0.39541401273885352,0.39668789808917193,0.39210191082802548,0.4292993630573248,0.39872611464968144,0.4292993630573248,0.45095541401273886,0.36611464968152851,0.47133757961783429,0.4,0.43566878980891721,0.49044585987261141,0.42852229299363054,0.42802547770700627,0.40127388535031844,0.39235668789808908,0.4,0.45477707006369422,0.38554140127388536,0.38598726114649673,0.39363057324840767,0.40636942675159243,0.36305732484076425,0.39235668789808908,0.40993630573248413,0.38853503184713367,0.42038216560509545,0.3846496815286623,243]
[null,"Male 75-79",0.67371337579617818,0.70590445859872608,0.73119745222929899,0.75649044585987268,0.70820382165605078,0.77879426751592351,0.82061968152866216,0.59553503184713374,0.7128025477707004,0.73903828025477691,0.73809554140127365,0.75649044585987268,0.83007006369426739,0.65071974522292975,0.8507643312101909,0.65071974522292975,0.6760127388535031,0.56334394904458585,0.69440764331210192,0.7128025477707004,0.66957452229299363,0.66911464968152834,0.68084140127388515,0.72659872611464937,0.75189171974522284,0.71372229299363055,0.71602165605095536,0.70774394904458593,0.77488535031847117,0.71970063694267494,0.77488535031847117,0.81397452229299361,0.66083694267515891,0.8507643312101909,0.72199999999999998,0.78638216560509555,0.8852547770700635,0.77348273885350305,0.77258598726114625,0.72429936305732479,0.70820382165605078,0.72199999999999998,0.82087261146496804,0.69590222929936296,0.69670700636942662,0.71050318471337581,0.73349681528662425,0.65531847133757948,0.70820382165605078,0.73993503184713383,0.70130573248407624,0.75878980891719727,0.69429267515923543,244]
[null,"Male 80-84",0.67371337579617818,0.70590445859872608,0.73119745222929899,0.75649044585987268,0.70820382165605078,0.77879426751592351,0.82061968152866216,0.59553503184713374,0.7128025477707004,0.73903828025477691,0.73809554140127365,0.75649044585987268,0.83007006369426739,0.65071974522292975,0.8507643312101909,0.65071974522292975,0.6760127388535031,0.56334394904458585,0.69440764331210192,0.7128025477707004,0.66957452229299363,0.66911464968152834,0.68084140127388515,0.72659872611464937,0.75189171974522284,0.71372229299363055,0.71602165605095536,0.70774394904458593,0.77488535031847117,0.71970063694267494,0.77488535031847117,0.81397452229299361,0.66083694267515891,0.8507643312101909,0.72199999999999998,0.78638216560509555,0.8852547770700635,0.77348273885350305,0.77258598726114625,0.72429936305732479,0.70820382165605078,0.72199999999999998,0.82087261146496804,0.69590222929936296,0.69670700636942662,0.71050318471337581,0.73349681528662425,0.65531847133757948,0.70820382165605078,0.73993503184713383,0.70130573248407624,0.75878980891719727,0.69429267515923543,245]
[null,"Male 85-89",0.67371337579617818,0.70590445859872608,0.73119745222929899,0.75649044585987268,0.70820382165605078,0.77879426751592351,0.82061968152866216,0.59553503184713374,0.7128025477707004,0.73903828025477691,0.73809554140127365,0.75649044585987268,0.83007006369426739,0.65071974522292975,0.8507643312101909,0.65071974522292975,0.6760127388535031,0.56334394904458585,0.69440764331210192,0.7128025477707004,0.66957452229299363,0.66911464968152834,0.68084140127388515,0.72659872611464937,0.75189171974522284,0.71372229299363055,0.71602165605095536,0.70774394904458593,0.77488535031847117,0.71970063694267494,0.77488535031847117,0.81397452229299361,0.66083694267515891,0.8507643312101909,0.72199999999999998,0.78638216560509555,0.8852547770700635,0.77348273885350305,0.77258598726114625,0.72429936305732479,0.70820382165605078,0.72199999999999998,0.82087261146496804,0.69590222929936296,0.69670700636942662,0.71050318471337581,0.73349681528662425,0.65531847133757948,0.70820382165605078,0.73993503184713383,0.70130573248407624,0.75878980891719727,0.69429267515923543,246]
[null,"Male 90+",0.67371337579617818,0.70590445859872608,0.73119745222929899,0.75649044585987268,0.70820382165605078,0.77879426751592351,0.82061968152866216,0.59553503184713374,0.7128025477707004,0.73903828025477691,0.73809554140127365,0.75649044585987268,0.83007006369426739,0.65071974522292975,0.8507643312101909,0.65071974522292975,0.6760127388535031,0.56334394904458585,0.69440764331210192,0.7128025477707004,0.66957452229299363,0.66911464968152834,0.68084140127388515,0.72659872611464937,0.75189171974522284,0.71372229299363055,0.71602165605095536,0.70774394904458593,0.77488535031847117,0.71970063694267494,0.77488535031847117,0.81397452229299361,0.66083694267515891,0.8507643312101909,0.72199999999999998,0.78638216560509555,0.8852547770700635,0.77348273885350305,0.77258598726114625,0.72429936305732479,0.70820382165605078,0.72199999999999998,0.82087261146496804,0.69590222929936296,0.69670700636942662,0.71050318471337581,0.73349681528662425,0.65531847133757948,0.70820382165605078,0.73993503184713383,0.70130573248407624,0.75878980891719727,0.69429267515923543,247]
[null,null,"Aberdeen City Local Authority","Aberdeen City Deal","Aberdeenshire Local Authority","Angus Local Authority","Argyll & Bute Local Authority","Ayrshire & Arran Health Board","Borders Health Board","Clacks & Stirling IJB","Clackmannanshire Local Authority","Dumfries & Galloway Health Board","Dumfries & Galloway Local Authority","Dundee City Local Authority","East Ayrshire Local Authority","East Dunbartonshire Local Authority","East Lothian Local Authority","East Renfrewshire Local Authority","Edinburgh & Southeast City Deal","Edinburgh, City of Local Authority","Eilean Siar Local Authority","Falkirk Local Authority","Fife Health Board","Fife Local Authority","Forth Valley Health Board","Glasgow City Local Authority","Glasgow & Clyde City Deal","Grampian Health Board","Greater Glasgow & Clyde Health Board","Highland Health Board","Highland Local Authority","Inverclyde Local Authority","Inverness City Deal","Lanarkshire Health Board","Lothian Health Board","Midlothian Local Authority","Moray Local Authority","North Ayrshire Local Authority","North Lanarkshire Local Authority","Orkney Health Board","Orkney Islands Local Authority","Perth & Kinross Local Authority","Renfrewshire Local Authority","Scotland","Scottish Borders Local Authority","Shetland Health Board","Shetland Islands Local Authority","South Ayrshire Local Authority","South Lanarkshire Local Authority","Stirling Local Authority","Tay Cities Deal ","Tayside Health Board","West Dunbartonshire Local Authority","West Lothian Local Authority","Western Isles Health Board",248]
["Overall prevalence","Female",0.35099999999999992,0.38400000000000001,0.41200000000000003,0.42700000000000005,0.40299999999999997,0.45469999999999999,0.42499000000000003,0.42200000000000004,0.45899999999999996,0.47627999999999998,0.47600000000000003,0.44299999999999995,0.46899999999999997,0.40100000000000002,0.38900000000000001,0.40100000000000002,0.38600000000000001,0.33400000000000007,0.40799999999999997,0.45899999999999996,0.41020000000000001,0.41,0.42959999999999998,0.46,0.42599999999999999,0.39640000000000003,0.43189999999999995,0.40340000000000004,0.43099999999999999,0.36700000000000005,0.43099999999999999,0.4158,0.36959999999999998,0.38900000000000001,0.439,0.47600000000000003,0.441,0.42076000000000002,0.42100000000000004,0.40700000000000003,0.37799999999999995,0.41210000000000002,0.42499999999999999,0.39234999999999998,0.39200000000000002,0.41299999999999998,0.38900000000000001,0.40200000000000002,0.39799999999999996,0.38780000000000003,0.39600000000000002,0.441,0.40847,249]
[null,"Male",0.29299999999999998,0.30700000000000005,0.31799999999999995,0.32900000000000007,0.308,0.33870000000000006,0.35688999999999993,0.25900000000000006,0.31,0.32141000000000003,0.32099999999999995,0.32900000000000007,0.36099999999999999,0.28299999999999997,0.37,0.28299999999999997,0.29400000000000004,0.245,0.30200000000000005,0.31,0.29120000000000007,0.29099999999999993,0.29609999999999997,0.31599999999999995,0.32700000000000001,0.31040000000000006,0.31140000000000001,0.30780000000000002,0.33700000000000002,0.31299999999999994,0.33700000000000002,0.35400000000000004,0.28739999999999993,0.37,0.31400000000000006,0.34200000000000003,0.38500000000000001,0.33638999999999997,0.33599999999999997,0.315,0.308,0.31400000000000006,0.35700000000000004,0.30265000000000003,0.30299999999999999,0.30900000000000005,0.31900000000000006,0.28499999999999998,0.308,0.32180000000000009,0.30499999999999999,0.33,0.30194999999999994,250]
["Crude weights","Female",{"$f":"C251/$AR251","v":0.85173501577287047},0.93181266682843966,0.99975734045134679,1.0361562727493328,0.97791798107255512,1.10337296772628,1.0312788158214026,1.0240232953166708,1.1138073283183691,1.1557388983256489,1.1550594515894201,1.0749818005338507,1.1380732831836931,0.97306479009949043,0.94394564426110161,0.97306479009949043,0.93666585780150446,0.81048289250182004,0.99005095850521707,1.1138073283183691,0.99538946857558841,0.99490414947828187,1.0424654210143167,1.1162339238049017,1.0337296772628002,0.96190245086144144,1.0480465906333412,0.97888861926716819,1.0458626546954621,0.89056054355738901,1.0458626546954621,1.0089784033001699,0.89686969182237308,0.94394564426110161,1.0652754185877213,1.1550594515894201,1.0701286095607863,1.0210143169133705,1.0215966998301385,0.98762436301868484,0.91725309390924514,"n/a",{"$f":"AS251/$AR251","v":1.0313030817762678},0.95207473914098506,0.95122543072069887,1.002183935937879,0.94394564426110161,0.97549138558602277,0.96578500363989306,0.94103372967726284,0.96093181266682848,1.0701286095607863,0.99119145838388734,251]
[null,"Male",{"$f":"C252/$AR252","v":0.93312101910828005},0.97770700636942676,1.0127388535031843,1.0477707006369428,0.98089171974522271,1.0786624203821655,1.1365923566878977,0.82484076433121023,0.98726114649681507,1.0235987261146495,1.0222929936305729,1.0477707006369428,1.1496815286624202,0.90127388535031827,1.1783439490445857,0.90127388535031827,0.93630573248407634,0.78025477707006352,0.96178343949044587,0.98726114649681507,0.92738853503184715,0.92675159235668747,0.94299363057324814,1.0063694267515919,1.0414012738853502,0.98853503184713376,0.99171974522292983,0.98025477707006359,1.073248407643312,0.99681528662420349,1.073248407643312,1.1273885350318471,0.91528662420382123,1.1783439490445857,1,1.089171974522293,1.2261146496815285,1.0713057324840762,1.0700636942675157,1.0031847133757961,0.98089171974522271,"n/a",{"$f":"AS252/$AR252","v":1.1369426751592355},0.9638535031847133,0.96496815286624182,0.98407643312101911,1.015923566878981,0.90764331210191063,0.98089171974522271,1.0248407643312103,0.97133757961783418,1.0509554140127386,0.9616242038216557,252]

{"sheet":"Population at Risk","index":13,"n_rows":257,"n_cols":56,"rows_kept":257,"cut":false,"hidden":true,"merged":[]}
["Population at Risk "]
["(=prevalence*population in 2016)"]
["SIMD","group","Aberdeen City Local Authority","Aberdeen City Region Deal","Aberdeenshire Local Authority","Angus Local Authority","Argyll & Bute Local Authority","Ayrshire & Arran Health Board","Borders Health Board","Clackmannanshire & Stirling IJB","Clackmannanshire Local Authority","Dumfries & Galloway Health Board","Dumfries & Galloway Local Authority","Dundee City Local Authority","East Ayrshire Local Authority","East Dunbartonshire Local Authority","East Lothian Local Authority","East Renfrewshire Local Authority","Edinburgh & SE Scotland City Region Deal","Edinburgh, City of Local Authority","Eilean Siar Local Authority","Falkirk Local Authority","Fife Health Board","Fife Local Authority","Forth Valley Health Board","Glasgow City Local Authority","Glasgow City Region Deal","Grampian Health Board","Greater Glasgow & Clyde Health Board","Highland Health Board","Highland Local Authority","Inverclyde Local Authority","Inverness & Highland City Region Deal","Lanarkshire Health Board","Lothian Health Board","Midlothian Local Authority","Moray Local Authority","North Ayrshire Local Authority","North Lanarkshire Local Authority","Orkney Health Board","Orkney Islands Local Authority","Perth & Kinross Local Authority","Renfrewshire Local Authority","Scotland","Scottish Borders Local Authority","Shetland Health Board","Shetland Islands Local Authority","South Ayrshire Local Authority","South Lanarkshire Local Authority","Stirling Local Authority","Tay Cities Region Deal ","Tayside Health Board","West Dunbartonshire Local Authority","West Lothian Local Authority","Western Isles Health Board",1]
[null,null,"popS12000033","Aber_deal","popS12000034","popS12000041","popS12000035","popS08000015","popS08000016","ClacksStirIJB","popS12000005","popS08000017","popS12000006","popS12000042","popS12000008","popS12000045","popS12000010","popS12000011","EdinSE_deal","popS12000036","popS12000013","popS12000014","popS08000018","popS12000015","popS08000019","popS12000046","GClyde_deal","popS08000020","popS08000021","popS08000022","popS12000017","popS12000018","Inver_deal","popS08000023","popS08000024","popS12000019","popS12000020","popS12000021","popS12000044","popS08000025","popS12000023","popS12000024","popS12000038","popS00000001","popS12000026","popS08000026","popS12000027","popS12000028","popS12000029","popS12000030","Tay_deal","popS08000027","popS12000039","popS12000040","popS08000028",2]
["All quintiles","16+ Males and Females",{"$f":"SUM(C7:C11)","v":55583.845625429472},125576.10214912279,69657.429131615747,37025.445592538294,27679.119624987441,134796.92625083053,38819.986161426474,39664.90276299118,16982.545728511875,53588.78370293256,53539.039602589342,49640.599111683667,45836.83598284149,27874.324054605349,32329.172172490755,22874.081998856251,367784.57984831149,107608.65865894278,8722.7287352491585,50133.872058100736,108699.89095874137,108636.25549670473,90051.42639046337,206684.45004870187,587655.89524110616,154997.32141594475,367929.08303810487,97839.767715137146,75941.037526394241,25267.574460145868,75941.037526394241,219955.36636186257,{"$f":"SUM(AI7:AI11)","v":221066.79175614828},28073.72199246673,28310.513702742053,52255.84995832284,122635.62879475871,6916.1595586884478,6913.3442096176632,44580.624929176643,52126.913048103765,1630555.179,38827.027833150692,6212.6793268792972,6214.369053540433,36692.726226164879,97081.366132137424,25247.489839010072,233816.89829802298,125033.85761117193,29115.207390022668,54914.750809246412,8726.6550130275682,3]
["Q1 and Q2","16+ Males and Females",{"$f":"SUM(C7:C8)","v":19775.57741923687},29394.298877449975,8681.5930237002631,10160.860374172524,7868.5723540758299,82240.217727516894,9757.7892726382561,16928.482804911771,9594.2630671780516,21290.684811987201,21271.248786900862,30796.318126035359,29644.224766880674,7521.0863456383868,11442.637872942223,4680.1544639588737,150009.85968690732,37834.75350978443,2306.4584909358159,25536.942371363388,51233.001611271146,51203.371939913151,42251.711464980661,150007.91784245981,359978.05178142327,35052.466178918294,227124.12297323754,28670.892813508101,22494.930275630333,15622.568031471548,22494.930275630333,133032.65510221996,{"$f":"SUM(AI7:AI8)","v":88761.828000022695},14447.248532064288,5322.9382945886919,34569.494327457476,81710.201669018556,1168.7120331147516,1168.2455780444113,8481.9359924080018,28218.831672029384,760779.348,9759.4821102655806,240.65790858639991,240.72652146532363,18558.492046997126,52292.356722277706,8588.2099657649087,97726.718441346704,46341.848701138035,21258.84185948698,27609.19499420399,2307.5197410583041,4]
["SIMD Q1 (most deprived)","16+ Males and Females",{"$f":"SUM(C12,C17)","v":5984.0114813739474},8205.4185083122484,1886.4889693429798,3163.0921460725476,2546.5027642106529,47898.06923887576,2596.1041429639236,8579.9200742136363,4914.5478661879406,5064.6240347988005,5060.2330923203663,20449.179932101692,16972.074844021685,1813.5513582899148,1414.7904045768371,2151.2645363873398,65003.569858017872,19339.806321659911,0,9408.1939577463254,26699.88068690581,26684.655825084963,18013.456583897911,113159.25752780304,227528.09550475737,8682.5130894702743,158623.41096618481,8389.5630166397987,6308.6652617662839,12373.90609639998,6308.6652617662839,68410.173177603603,{"$f":"SUM(AI12,AI17)","v":35613.022006119805},3427.754607123371,311.15688182479971,24092.889884140117,45328.372093394559,0,0,2869.6569094833512,17598.856182776733,397917.53700000001,2596.509141648261,0,0,7567.4478572698172,24067.629694721931,4254.5709448884609,51328.208765722244,24567.865434994448,12567.455993277403,11121.451998092725,0,5]
["SIMD Q2",null,{"$f":"SUM(C13,C18)","v":13791.565937862924},21188.880369137725,6795.1040543572835,6997.7682280999761,5322.0695898651766,34342.148488641142,7161.6851296743334,8348.5627306981351,4679.715200990111,16226.060777188401,16211.015694580497,10347.138193933666,12672.149922858991,5707.534987348472,10027.847468365386,2528.8899275715339,85006.289828889465,18494.947188124519,2306.4584909358159,16128.748413617061,24533.120924365336,24518.716114828188,24238.25488108275,36848.66031465678,132449.95627666591,26369.953089448019,68500.712007052731,20281.329796868304,16186.265013864049,3248.6619350715682,16186.265013864049,64622.481924616339,{"$f":"SUM(AI13,AI18)","v":53148.80599390289},11019.493924940918,5011.7814127638921,10476.604443317359,36381.829575623997,1168.7120331147516,1168.2455780444113,5612.2790829246496,10619.975489252651,362861.81100000005,7162.9729686173196,240.65790858639991,240.72652146532363,10991.044189727309,28224.727027555771,4333.6390208764478,46398.50967562446,21773.983266143583,8691.385866209579,16487.742996111265,2307.5197410583041,6]
["SIMD Q3",null,{"$f":"SUM(C14,C19)","v":8971.1332883521864},24611.369016642268,15834.162759538292,12547.809360743558,11680.09899801081,22009.692111543871,13311.797537690967,6889.9894394572166,3104.8552371494766,19885.865138055349,19867.17586338113,5927.4748120076292,7380.9375256059902,1802.6262604594763,7285.2216244588453,2922.7932233147912,75544.978230421475,15826.998728595339,5994.721731906021,9091.810273556137,23260.302161488846,23246.519036415928,16037.960722402033,24163.625154886337,84758.319647193886,33146.688255339672,46212.157017701313,34843.090777794328,25083.377665634456,3708.3613511685517,25083.377665634456,38845.076315361584,{"$f":"SUM(AI14,AI19)","v":40075.589418639487},6583.8140305364623,8483.4213994176171,7040.2011394658712,20063.865988833797,2300.8191843524155,2299.8808757753127,11470.378248484925,8937.8205137890873,326435.451,13314.257519120645,2257.7255415135619,2258.3581303359983,7401.9999622772593,18506.390695912814,4275.1655976032343,52027.187889307039,28760.532308449809,3995.1459066657189,11911.751089433181,5997.3932886834846,7]
["SIMD Q4",null,{"$f":"SUM(C15,C20)","v":8936.7902944101734},33724.515711397427,25441.130328676943,8936.8121503986877,6151.729830175409,16714.068111686611,12971.78372358703,8612.4928756416193,2528.8310499971403,8688.4316313411418,8680.2642963298113,7165.2198763232291,5087.8093559212793,5220.5246666607418,9225.6986370106806,3498.0642937672037,65822.901641778866,16388.505974904056,421.54851240732182,8528.53688582018,16942.648477362338,16932.613135053172,17370.471253250784,18580.773536047302,73252.308359104441,44332.354855092068,43216.187236245911,27183.991380306245,22775.01371904197,3647.076886281543,22775.01371904197,30191.233143181496,{"$f":"SUM(AI15,AI20)","v":36898.016601727977},3841.2837890206597,10458.843272991991,7117.7485713705009,13340.671103235411,3044.4219975152664,3043.1736825889448,17598.452622948789,8055.9647545753669,295144.93099999998,12974.169252333471,3714.2958767793352,3715.2844017391117,4496.0848404111603,16299.832832919627,6561.6958107997398,49355.295057034251,32551.159418724666,3129.9177570529691,8306.1828841014722,421.74198328578018,8]
["SIMD Q5 (least deprived)",null,{"$f":"SUM(C16,C21)","v":17900.344623430243},37845.918543633117,19700.543019700242,5379.9637072235273,1978.718442725391,13832.948300083153,2778.6156275102194,7233.9376429805707,1754.5963741872058,3723.8021215488702,3720.3506559775387,5751.5862973174517,3723.8643344335433,13330.086781846745,4375.6140380790011,11773.070017815382,76406.840289203799,37558.400445658946,0,6976.5825273610226,17263.938708619047,17253.751385322495,14391.282949829903,13932.133515308415,69667.215453384619,42465.812126594712,51376.615810920135,7141.7927435284855,5587.7158660874775,2289.5681912242244,5587.7158660874775,17886.401801099542,{"$f":"SUM(AI16,AI21)","v":55331.357735758109},3201.37564084532,4045.3107357437511,3528.4059200289958,7520.8900336709421,402.20634370601402,402.04407320899475,7029.8580653349236,6914.2961077099244,248195.44899999996,2779.1189514309954,0,0,6236.149376479334,9982.7858810272683,5822.4184648421851,34707.696910334969,17380.317182859428,731.30186681700206,7087.6218415077637,0,9]
["SIMD Q1 (most deprived)","16+ Females",{"$f":"SUM(C60:C78)","v":3209.5879495268136},4465.1270274205281,1023.3296190245086,1788.0555059451588,1458.0180126182963,27876.828366901238,1388.0724102887648,5384.183411793254,2922.3141082261582,3009.3360582382911,3007.5669012375643,11916.9106964329,9663.2561975248718,1070.8539092453289,737.8294491628244,1309.4873453045377,37046.469424896859,11236.437563698131,0,5597.093448192185,15623.731642319823,15616.11402572191,10719.73655714632,68377.365833535543,131027.92842513951,4779.2479174957525,94065.509057267613,4782.802807085659,3550.7152171802954,6863.3666537248237,3550.7152171802954,37331.624795437994,{"$f":"SUM(AI60:AI78)","v":20187.957385100701},1776.8134287794226,188.19688182479976,14364.995049745208,24401.439609318131,0,0,1601.7578330502306,9800.3530744964792,228743.677,1388.1050715845668,0,0,4347.0970929386067,13401.277490900269,2569.5964862897354,29098.402931327342,13582.10638340209,7359.286677990779,6400.9785586022808,0,10]
["SIMD Q2",null,{"$f":"SUM(C98:C116)","v":6166.0981703470015},9729.1902353797632,3200.9110798349921,3355.080228099976,2594.9689274447951,16893.380499150695,3229.9291563940792,4424.4380587236119,2369.3533220092208,8220.195225818974,8215.362659548653,5007.584496481436,6057.1583305023032,2939.5489395777722,4378.1360033972342,1291.1110167435088,40692.619242902212,8768.4612327105078,1095.323076923077,8205.1434773113306,12270.558162581896,12264.575442853675,12183.70514923562,18324.077117204564,63798.030837175436,12304.999550594517,33911.626764377579,9828.6613739383683,7725.8585488958979,1496.732154816792,7725.8585488958979,29622.974300412519,{"$f":"SUM(AI98:AI116)","v":25098.679489444301},4791.0376510555698,2504.6894127638921,5297.5230866294605,16501.734161611261,513.66107168163057,513.95406212084458,2556.7570128609559,5082.4003300169852,174306.06600000002,3230.005156515409,102.36517180296043,102.27385586022811,5413.8126546954618,13157.701756855133,2139.629148264984,22031.962669255037,9866.8308769716095,4200.8844649356943,7974.8958942004374,1096.5848461538462,11]
["SIMD Q3",null,{"$f":"SUM(C136:C154)","v":3421.1384858044162},10251.626847852462,6983.4459888376605,5650.4668575588448,5379.332208201894,10246.174050715845,5771.0744106527536,3506.4769521960689,1519.7344091239991,9709.6560425139523,9703.9478379034226,2701.0734457655903,3258.5371147779665,881.47117447221547,2983.5592040766805,1464.7213443338994,33476.308497937396,6630.6958942004376,2781.020470759524,4371.3395729191943,11003.26014365445,10997.895316670709,7660.9720475612712,10769.198301383158,38090.636491142926,14179.953274447947,21137.236306236344,15806.744939577771,11135.135484105796,1651.7440135889346,11135.135484105796,16829.306735743747,{"$f":"SUM(AI136:AI154)","v":17120.882772142682},2650.8683935937879,3983.8743994176175,3413.8890948798839,8463.4984251395308,999.66694957534571,1000.2371560300899,5175.7412739626316,3965.7098131521466,146522.22099999999,5771.2102038340199,965.75510106770196,964.89358893472456,3475.0006406212078,8279.0546226644019,2009.28398932298,23430.705226886668,12427.820295074012,1855.6563843727251,5285.8093059936909,2784.2240972822128,12]
["SIMD Q4",null,{"$f":"SUM(C174:C192)","v":3795.1208517350151},14649.567386556662,11263.093239504975,4096.2718223732109,2821.9104416403779,7890.0766537248237,5664.481432249454,4335.8774520747393,1154.7442028633825,4239.8050337296772,4237.312496966756,3389.6336884251382,2308.4473622907062,2548.3224023295315,3769.3911210871147,1772.2302523659305,30214.634724581414,7706.1912933753956,199.81703470031545,4102.9877456927925,8035.7493181266673,8031.831351613685,8254.1463392380483,8902.8317398689633,33390.932336811449,19505.930192671687,20538.688513952919,12345.600348459113,10172.293406940062,1573.4628512496965,10172.293406940062,12818.366347003152,{"$f":"SUM(AI174:AI192)","v":16764.286485804412},1569.6570055811694,4854.3652729919922,3405.7840427080805,5490.9968357194866,1318.8452141713176,1319.5974787672892,7885.9593108468816,3578.239174957534,134467.04399999999,5664.6147173016252,1614.2827073525843,1612.8426692550354,2178.6566779907789,7148.6381800533845,3119.0410337296776,22371.715209900503,14201.432676049501,1454.2050181994662,3775.1494127638921,200.04721608832807,13]
["SIMD Q5 (least deprived)",null,{"$f":"SUM(C212:C230)","v":7960.3597476340683},17000.256792040764,8896.0747585537501,2506.0910798349914,742.25832807570976,6571.5503707837915,1240.2901559815577,3808.3170347003156,876.97847609803421,1888.3964581412274,1887.2862897355012,2762.6537782091714,1727.7056369813147,6505.6562436301865,1825.8627323465178,5880.3511866051922,36143.257524872599,18318.066687697163,0,3419.408546469303,8380.4755850521688,8376.3895413734535,7077.2904460082491,6983.9798592574616,32763.431545741318,19225.578913855854,25055.206518563449,3209.5075670953652,2635.2674520747387,1043.3148313516135,2635.2674520747387,7857.7351259403058,{"$f":"SUM(AI212:AI230)","v":25977.988472700792},1289.6893351128365,1856.5087357437512,1689.566677990779,3251.8800655180776,175.7665936423198,175.86685027905853,3348.2895462266442,3115.6555981557858,116477.08099999999,1240.3193399660274,0,0,2981.5212618296523,4482.8337345304535,2859.7554234409117,16223.386872118414,7884.7729376364969,338.9494782819703,3278.0072555205038,0,14]
["SIMD Q1 (most deprived)","16+ Males",{"$f":"SUM(C79:C97)","v":2774.4235318471333},3740.2914808917199,863.15935031847118,1375.0366401273889,1088.4847515923566,20021.240871974522,1208.031732675159,3195.7366624203828,1992.2337579617829,2055.2879765605094,2052.666191082802,8532.2692356687912,7308.8186464968148,742.69744904458594,676.96095541401269,841.77719108280223,27957.10043312101,8103.3687579617817,0,3811.10050955414,11076.149044585985,11068.541799363051,7293.7200267515909,44781.891694267499,96500.167079617837,3903.2651719745218,64557.901908917192,3606.7602095541401,2757.9500445859881,5510.5394426751573,2757.9500445859881,31078.548382165602,{"$f":"SUM(AI79:AI97)","v":15425.064621019104},1650.9411783439486,122.95999999999998,9727.8948343949069,20926.932484076427,0,0,1267.8990764331209,7798.5031082802525,169173.86,1208.404070063694,0,0,3220.3507643312109,10666.35220382166,1684.974458598726,22229.805834394901,10985.759051592357,5208.1693152866228,4720.4734394904444,0,15]
["SIMD Q2",null,{"$f":"SUM(C117:C135)","v":7625.4677675159219},11459.690133757962,3594.192974522291,3642.6880000000006,2727.1006624203815,17448.767989490447,3931.7559732802538,3924.1246719745232,2310.3618789808907,8005.8655513694266,7995.6530350318444,5339.5536974522302,6614.9915923566878,2767.9860477707002,5649.7114649681516,1237.7789108280251,44313.670585987253,9726.4859554140094,1211.1354140127389,7923.6049363057309,12262.56276178344,12254.140671974515,12054.549731847128,18524.583197452219,68651.925439490456,14064.953538853504,34589.085242675152,10452.668422929937,8460.4064649681513,1751.9297802547762,8460.4064649681513,34999.507624203819,{"$f":"SUM(AI117:AI135)","v":28050.126504458585},6228.4562738853483,2507.0920000000001,5179.0813566878978,19880.095414012736,655.05096143312096,654.29151592356675,3055.5220700636937,5537.5751592356664,188555.74500000002,3932.9678121019101,138.29273678343949,138.45266560509552,5577.2315350318459,15067.025270700638,2194.0098726114643,24366.547006369419,11907.152389171973,4490.5014012738848,8512.8471019108256,1210.9348949044581,16]
["SIMD Q3",null,{"$f":"SUM(C155:C173)","v":5549.9948025477706},14359.742168789806,8850.716770700632,6897.3425031847146,6300.7667898089167,11763.518060828026,7540.7231270382135,3383.5124872611477,1585.1208280254775,10176.209095541399,10163.228025477707,3226.4013662420384,4122.4004108280242,921.15508598726092,4301.6624203821648,1458.0718789808916,42068.669732484079,9196.3028343949027,3213.701261146497,4720.4707006369417,12257.042017834396,12248.623719745217,8376.9886748407607,13394.426853503179,46667.68315605096,18966.734980891721,25074.920711464969,19036.345838216559,13948.24218152866,2056.617337579617,13948.24218152866,22015.769579617838,{"$f":"SUM(AI155:AI173)","v":22954.706646496801},3932.9456369426744,4499.5470000000005,3626.3120445859868,11600.367563694266,1301.1522347770697,1299.6437197452228,6294.6369745222928,4972.1107006369411,179913.23000000004,7543.0473152866243,1291.97044044586,1293.4645414012739,3926.9993216560515,10227.336073248413,2265.8816082802541,28596.482662420374,16332.712013375798,2139.4895222929936,6625.9417834394899,3213.1691914012722,17]
["SIMD Q4",null,{"$f":"SUM(C193:C211)","v":5141.6694426751583},19074.948324840763,14178.037089171969,4840.5403280254777,3329.8193885350311,8823.9914579617853,7307.3022913375762,4276.6154235668791,1374.0868471337578,4448.6265976114646,4442.9517993630552,3775.5861878980909,2779.3619936305731,2672.2022643312102,5456.3075159235659,1725.8340414012735,35608.266917197448,8682.31468152866,221.73147770700635,4425.5491401273875,8906.8991592356724,8900.7817834394864,9116.3249140127355,9677.9417961783402,39861.376022292992,24826.424662420377,22677.498722292992,14838.39103184713,12602.720312101908,2073.6140350318465,12602.720312101908,17372.866796178343,{"$f":"SUM(AI193:AI211)","v":20133.730115923565},2271.6267834394903,5604.4779999999992,3711.9645286624204,7849.6742675159239,1725.5767833439488,1723.5762038216558,9712.4933121019094,4477.7255796178333,160677.88700000002,7309.5545350318471,2100.0131694267511,2102.4417324840761,2317.4281624203818,9151.1946528662429,3442.6547770700622,26983.579847133751,18349.726742675168,1675.7127388535027,4531.0334713375796,221.69476719745214,18]
["SIMD Q5 (least deprived)",null,{"$f":"SUM(C231:C249)","v":9939.9848757961736},20845.661751592357,10804.468261146492,2873.8726273885354,1236.4601146496814,7261.3979292993627,1538.3254715286616,3425.6206082802551,877.6178980891716,1835.4056634076428,1833.0643662420375,2988.9325191082798,1996.1586974522288,6824.4305382165585,2549.7513057324832,5892.7188312101898,40263.582764331208,19240.33375796178,0,3557.1739808917191,8883.4631235668785,8877.3618439490401,7313.9925038216534,6948.1536560509521,36903.783907643308,23240.233212738854,26321.409292356682,3932.2851764331208,2952.4484140127383,1246.2533598726111,2952.4484140127383,10028.666675159237,{"$f":"SUM(AI231:AI249)","v":29353.369263057313},1911.6863057324836,2188.8020000000001,1838.8392420382165,4269.0099681528645,226.43975006369422,226.17722292993625,3681.5685191082794,3798.640509554139,131718.36799999996,1538.7996114649682,0,0,3254.6281146496817,5499.9521464968147,2962.6630414012734,18484.310038216554,9495.5442452229327,392.35238853503176,3809.6145859872604,0,19]
["All quintiles","Female 0-4",{"$f":"SUM(C60,C98,C136,C174,C212)","v":0},0,0,0,0,0,0,0,0,0,0,0,0,0,0,0,0,0,0,0,0,0,0,0,0,0,0,0,0,0,0,0,{"$f":"SUM(AI60,AI98,AI136,AI174,AI212)","v":0},0,0,0,0,0,0,0,0,0,0,0,0,0,0,0,0,0,0,0,0,20]
[null,"Female 5-9",{"$f":"SUM(C61,C99,C137,C175,C213)","v":0},0,0,0,0,0,0,0,0,0,0,0,0,0,0,0,0,0,0,0,0,0,0,0,0,0,0,0,0,0,0,0,{"$f":"SUM(AI61,AI99,AI137,AI175,AI213)","v":0},0,0,0,0,0,0,0,0,0,0,0,0,0,0,0,0,0,0,0,0,21]
[null,"Female 10-15",{"$f":"SUM(C62,C100,C138,C176,C214)","v":0},0,0,0,0,0,0,0,0,0,0,0,0,0,0,0,0,0,0,0,0,0,0,0,0,0,0,0,0,0,0,0,{"$f":"SUM(AI62,AI100,AI138,AI176,AI214)","v":0},0,0,0,0,0,0,0,0,0,0,0,0,0,0,0,0,0,0,0,0,22]
[null,"Female 16-19",{"$f":"SUM(C63,C101,C139,C177,C215)","v":769.65246056782314},1657.7236204804658,875.18957534578976,441.01608590148032,293.65410094637224,2126.0948883766077,435.49151218150934,780.56892501819948,274.23607134190729,622.45670012132962,622.09076437757835,1012.5500825042463,715.03778694491609,380.39924532880366,382.86246542101429,379.23156758068421,5404.5029895656389,1604.7528852220335,68.038281970395545,712.35552535792272,1757.6228895899053,1756.7659305993691,1461.3540888133946,3990.718223732104,9837.0925552050467,2030.9743013831592,6457.50238655666,1131.9887570977921,895.38079834991504,389.42787672894929,895.38079834991504,3384.7714185877217,{"$f":"SUM(AI63,AI101,AI139,AI177,AI215)","v":3212.4885804416399},349.12301625818975,354.07943945644257,934.88548410579961,2028.7744309633586,66.344489298713896,66.382331958262569,561.3884033001699,789.65768502790581,24580.850999999999,435.50175928172769,85.684822373210366,85.60838631400145,490.30245571463234,1377.0552802717787,503.39452560058237,3575.0820820189269,1821.8158927444797,487.64022324678479,884.39815821402567,68.116659403057525,23]
[null,"Female 20-24",{"$f":"SUM(C64,C102,C140,C178,C216)","v":1671.5691482649838},2817.9095947585529,1061.312399902936,570.02790342149967,335.40924290220823,2912.7049242902212,502.36169315700073,1126.5812763892259,368.07656636738653,819.61882174229538,819.13697646202399,1866.921967968939,1013.0206527541857,483.08774569279296,522.63249696675564,427.41092453288024,8785.436806600339,3548.7941713176415,77.353671438971134,1006.997660761951,2435.8285178354763,2434.6408881339476,2089.3675748604705,7825.628051443824,15556.935942732343,3305.9740761950984,11185.890345789854,1359.0781912157242,1093.3510943945644,578.96498665372485,1093.3510943945644,4415.533665615143,{"$f":"SUM(AI64,AI102,AI140,AI178,AI216)","v":5780.5422062606149},448.4544164037855,439.74143169133708,1273.104217422956,2598.6789128852224,88.744522397476345,88.795141955835987,698.21783305023052,1212.7773647173012,37861.161999999997,502.37351371026449,90.403304780393086,90.322659548653235,648.91610288764855,1838.6758505217178,750.82108711477792,5254.7550788643521,2817.2714850764382,724.87314729434627,1110.6565202620725,77.442779834991512,24]
[null,"Female 25-29",{"$f":"SUM(C65,C103,C141,C179,C217)","v":1981.1952681388011},3283.48793011405,1197.4033681145356,600.48882552778468,342.64485804416404,2921.9004346032516,482.7818335598156,1050.2485319097309,379.48529483135155,892.56559378791553,892.04086386799338,1882.0931861198733,1073.3134991506913,494.61467119631163,524.51755641834518,430.60841543314734,10128.711186605193,4471.5556903664165,94.607289492841545,1158.6124557146322,2471.2185950012131,2470.0137102644985,2153.5636379519528,9298.759912642563,17318.827905848091,3829.3990662460574,12644.567878912881,1494.7012516379521,1230.5149356952195,541.64515651540887,1230.5149356952195,4730.9372875515646,{"$f":"SUM(AI65,AI103,AI141,AI179,AI217)","v":7051.8854879883511},541.75400388255287,487.15471002183938,1200.5595535064306,2821.8296214511042,102.73548158214027,102.79408153360838,735.28238776995886,1281.1567483620477,41940.703999999998,482.79319339966031,102.90499818005341,102.81320067944677,667.11776753215236,1936.9122737199712,668.11404998786702,5367.3598155787422,2893.5328585294837,748.22186847852458,1301.3149138558601,94.7162733802475,25]
[null,"Female 30-34",{"$f":"SUM(C66,C104,C142,C180,C218)","v":1667.6929022082018},3171.0572773598642,1444.7603300169867,646.20300412521249,342.14416403785486,2773.997701771415,526.86075270565402,902.86188303809763,382.6796942489687,864.82323727250662,864.31481679204092,1481.0174763406937,1020.1734433389951,481.52208444552298,552.13457413249216,419.3656248483378,9507.1097500606647,3832.9843241931576,100.69214268381459,1268.4461101674351,2374.8370235379762,2373.6791312788155,2106.3211900024262,7705.2076195098271,16090.538932297986,3765.9337044406702,11038.847313030816,1616.9859757340453,1361.7016719242904,531.38500849308423,1361.7016719242904,5077.921933511283,{"$f":"SUM(AI66,AI104,AI142,AI180,AI218)","v":6505.2021548167913},575.22726037369569,545.40290463479744,1121.1226498422716,2966.0241009463721,97.708007085658849,97.763739383644776,813.81827711720462,1198.6369910215967,39687.776999999995,526.87314972094157,94.888528876486305,94.803882552778475,648.49719000242658,2134.340393108469,524.91484105799555,5032.9190924532877,2658.7816432904638,769.36332928900742,1422.9093472458142,100.80813608347488,26]
[null,"Female 35-39",{"$f":"SUM(C67,C105,C143,C181,C219)","v":1421.9494637223968},3158.625964571705,1719.8735549623875,801.08764377578268,496.03129337539428,3065.2925787430231,685.96851096821149,1045.1734724581411,450.90373453045368,1060.8573577287063,1060.233690851735,1286.9929361805382,1104.2486071341905,605.02541373453028,718.00847852462982,548.05733559815565,9807.5144139771892,3343.5207376850276,180.60410579956317,1410.3841470516861,2713.4496083474883,2712.1266197524865,2384.0423178840083,6699.7889347245809,16113.406066488717,3821.461447221548,10460.309874302351,2071.0796806600338,1682.2847221548166,551.56421984955102,1682.2847221548166,5657.21275806843,{"$f":"SUM(AI67,AI105,AI143,AI181,AI219)","v":6349.3746333414201},691.10885950012118,621.1098980829895,1207.2126959475854,3255.4810482892503,135.15268614413978,135.22977675321525,909.09044892016504,1272.9133948070853,41494.051999999996,685.98465178354752,151.01238267410821,150.87767046833292,764.34564426110148,2420.9676000970635,600.73003154574121,5424.6762581897592,2720.3770060664888,755.8113079349672,1563.8270929386069,180.81215464693031,27]
[null,"Female 40-44",{"$f":"SUM(C68,C106,C144,C182,C220)","v":1283.2461198738165},3109.8865712205766,1830.3887308905603,880.69034942974997,601.54962145110403,3516.1020856588207,877.38004685755891,1162.4456442611015,507.25570249939324,1239.4744929871383,1238.7458189759766,1143.2624945401597,1233.7294807085657,666.16015530211098,765.12741324921114,590.27764377578239,9766.7591458383868,2861.7932103858288,202.47730162581897,1580.1283838874056,2889.7360694006302,2888.3271293375392,2662.29823052657,5911.6373695704915,15922.797685027903,3883.7157738412998,9989.2527575831064,2347.8486910943943,1865.140211113807,595.37712691094384,1865.140211113807,5924.6656903664152,{"$f":"SUM(AI68,AI106,AI144,AI182,AI220)","v":5985.0482271293367},683.32697160883265,745.77481921863614,1434.7028099975735,3407.6501261829649,160.60248900752245,160.69409609318126,1013.6334506187818,1339.1895171074977,42542.508999999991,877.40069157971345,153.73912472700798,153.60198010191701,862.41034457655883,2536.955865081291,663.09026935209886,5643.0170686726506,2766.4622509099736,783.63124484348464,1720.577391409852,202.71054753700554,28]
[null,"Female 45-49",{"$f":"SUM(C69,C107,C145,C183,C221)","v":1628.7515772870659},4177.7597282213046,2570.5770735258429,1198.4805144382433,849.95936908517342,5326.096066003397,1250.8009496724096,1714.5703324435819,733.22604707595235,1873.7890742052898,1872.6874933268628,1660.4663382674107,1894.855598155787,1075.7961053142442,1093.6629750060665,949.56235622421741,13367.592132977432,3650.0007910701288,266.13064790099492,2053.1567871875754,4189.9386779907782,4187.8958019898082,3667.0962484833772,8769.9128366901223,23739.892516379517,5187.1666993448189,15321.299832322249,3231.578568793982,2543.6645256005822,1004.1791482649843,2543.6645256005822,8421.3070759524398,{"$f":"SUM(AI69,AI107,AI145,AI183,AI221)","v":7936.6268109682096},954.20350157728706,968.48023295316671,2176.5293472458143,4808.2290997330747,209.68060519291436,209.80020626061639,1453.9025649114292,2080.3933074496476,60750.204000000005,1250.8303809754914,196.00172239747633,195.82687697160881,1280.5826158699344,3637.2472264013586,991.13924290220803,8095.9564523173976,3927.3355753457899,1234.9328706624606,2328.9091215724338,266.4372199708809,29]
[null,"Female 50-54",{"$f":"SUM(C70,C108,C146,C184,C222)","v":1731.3379495268132},4288.7470031545736,2569.2423974763406,1258.4397694734289,960.72324921135646,5547.4591642805153,1298.0562075709781,1719.9566949769473,729.12166707109918,2038.1987111866054,2037.0004756127159,1894.2082310118899,1905.3440815336082,1126.8722761465665,1045.9427469060909,961.38801261829644,13346.707294346032,3588.6683086629459,283.3991167192429,2047.0241640378549,4328.583490900267,4326.47301625819,3666.8398019898077,9152.7364231982519,24429.857456927926,5324.1252560058238,15868.503822130546,3491.2062606163558,2702.595906333414,1046.7782213055084,2702.595906333414,8567.9459432176664,{"$f":"SUM(AI70,AI108,AI146,AI184,AI222)","v":7750.6106556660998},945.60226886677992,993.27345304537721,2286.8398349915069,4847.3155471972823,226.61106459597184,226.74032273719973,1521.4708857073524,2089.968512496966,62528.003999999994,1298.0867507886435,200.43648653239501,200.25768502790584,1376.6980684299926,3739.9570080077647,999.86501334627508,8562.4373695704908,4250.7876889104591,1288.9775976704684,2251.7892331958265,283.72558138801264,30]
[null,"Female 55-59",{"$f":"SUM(C71,C109,C147,C185,C223)","v":2133.1490536277597},5329.3888667799074,3214.1228730890562,1742.6490657607378,1342.3078233438482,6805.2127675321517,1812.8014967483618,2073.9656442611022,880.58832564911415,2688.0510461538461,2686.4707692307693,2344.3385852948309,2235.1986896384374,1467.649296287309,1399.9119801019169,1153.8680126182965,16843.920684299927,4520.4213249211361,392.77598641106516,2459.0549090026689,5376.3025746178109,5373.6812666828428,4412.863501091967,10432.045425867507,29256.899534093667,6694.1475263285611,18777.325693035666,4767.6848512496972,3658.3125212327104,1312.4511332200923,3658.3125212327104,10479.021667556419,{"$f":"SUM(AI71,AI109,AI147,AI185,AI223)","v":9707.5605920892976},1215.3149138558601,1320.8360567823343,2746.8618975976706,5698.8875103130322,307.65203397233682,307.82751759281734,2015.4499757340452,2560.7147245814112,77733.249000000011,1812.8441519048774,276.44251710749813,276.19591361320067,1829.4988012618292,4776.6962848823105,1204.4392137830623,10917.781281242416,5555.2627604950248,1548.2600630914828,2649.4843387527303,393.22844894443097,31]
[null,"Female 60-64",{"$f":"SUM(C72,C110,C148,C186,C224)","v":1825.7033753943215},4756.902732346518,2960.7693666585783,1576.152222761466,1260.7954258675079,6178.3887913127883,1644.8928050715847,1775.9615530211117,767.15707352584309,2605.1233129822854,2603.5917884008736,1860.0818587721421,1973.3473744236833,1226.0470395535062,1179.331705896627,1007.9404052414462,14377.612977432662,3697.1611696190248,396.6807473914098,2159.7292137830623,4769.2643072069886,4766.9389711235126,3829.339311817519,8095.5780635768015,24165.297088085415,6017.6367231254553,15075.571684542581,4445.5316277602524,3401.2938655666098,1062.4609924775539,3401.2938655666098,9073.0940077651048,{"$f":"SUM(AI72,AI110,AI148,AI186,AI224)","v":8039.0197330744959},1012.9792210628488,1226.1053749090026,2525.456636738656,4917.476389225917,285.98508915311817,286.14821402572198,1879.8866804173745,2090.9774909002663,67165.763000000006,1644.9315093423925,265.74976571220577,265.51270080077654,1682.8472215481677,4150.6583183693283,1019.9035573889832,9605.9767580684274,4850.9667682601312,1310.1411599126425,2225.0606309148266,397.13770805629696,32]
[null,"Female 65-69",{"$f":"SUM(C73,C111,C149,C187,C225)","v":1903.5187381703463},4915.7302014074248,3039.8391749575349,1854.9290317884008,1550.5769716088328,7121.3853948070846,1950.9536694734284,2034.883795195341,944.05418102402314,2977.4249515166211,2975.6745547197279,2188.4887988352334,2297.2862776025227,1255.0346396505702,1308.2435306964328,1008.6556078621693,16304.114530453771,3922.1690512011655,473.95026449890793,2489.566546954622,5604.6737850036388,5601.9411307934961,4401.6351060422221,8240.9798107255519,25638.251269109434,6309.7684212569766,15855.236600339718,5028.4656738655658,3714.1961004610521,1216.0728900752244,3714.1961004610521,9760.1790400388254,{"$f":"SUM(AI73,AI111,AI149,AI187,AI225)","v":8864.7748332928895},1244.9397039553505,1368.0554549866536,2926.3246396505701,5354.4805289978158,321.71650618781848,321.90001213297739,2056.096644018442,2342.662567338024,74131.694999999992,1950.9995753457897,259.36324836204795,259.13188061150203,1906.2911453530696,4407.9826207231254,1111.6251104100945,11143.744066974034,5559.5341125940304,1441.0748459111865,2504.1330502305264,474.49623661732585,33]
[null,"Female 70-74",{"$f":"SUM(C74,C112,C150,C188,C226)","v":1385.6365930599366},3596.7903712691095,2232.6111041009462,1435.8649526813879,1196.4767823343846,5683.343958747877,1517.2204876728947,1607.4708080562971,714.47398689638419,2522.2799487503025,2520.7971269109439,1638.71838146081,1785.5937345304535,1012.9565542344092,1030.4006818733315,798.57481193884996,12476.099796165978,2918.4978354768264,375.6134530453773,1874.8083887405967,4326.3020582382915,4324.192695947585,3391.1431419558353,6510.6073768502783,20120.150565396747,4697.7007134190735,12392.302016500846,3885.7698330502303,2872.0214729434597,946.81101917010426,2872.0214729434597,7708.0481349187085,{"$f":"SUM(AI74,AI112,AI150,AI188,AI226)","v":6728.4482678961413},925.65103372967712,1090.5938194612957,2309.2121815093424,4282.4438801261822,280.10608871633093,280.26586022809994,1663.2769546226643,1813.5258578015041,57703.359999999993,1517.2561878184904,221.24598410579949,221.04861926716814,1586.1615263285605,3433.7485925746173,905.53889832564903,8634.732171802958,4323.3865590876003,1047.0015141955835,1957.2673671438972,376.04614501334623,34]
[null,"Female 75-79",{"$f":"SUM(C75,C113,C151,C189,C227)","v":1930.9514195583592},4609.6064450376125,2679.1937102644993,1691.7769012375638,1391.3112933753941,6307.4746015530209,1771.1223634069402,1859.6600970638196,735.51269352098996,2703.660455714632,2702.0710021839359,2047.7511065275412,1963.8148726037366,1470.1286653724824,1269.8145595729191,1104.7369983013832,14779.172870662462,3908.4540596942497,451.31373938364476,2306.8676170832318,4823.2054578985681,4820.8538218878912,4052.2590749818,7976.0003882552783,24249.870647900992,5898.8619703955355,15427.960581897596,4449.8955132249457,3266.3723537976211,1103.9201480223248,3266.3723537976211,8816.3897223974764,{"$f":"SUM(AI75,AI113,AI151,AI189,AI227)","v":8265.1385197767522},1021.2840548410579,1262.9596432904634,2505.8518126668287,4768.160274205291,305.59775316670704,305.77206503275903,1981.395700072798,2200.9377917981064,68403.448000000004,1771.1640378548896,234.09232856102886,233.88350400388256,1825.4990851735015,4042.2093472458132,1127.3500315457413,10033.955690366412,5216.9818374181023,1239.6202960446494,2103.8856879398204,451.8336351128367,35]
[null,"Female 80-84",{"$f":"SUM(C76,C114,C152,C190,C228)","v":1593.4940063091478},3572.0889492841543,1962.1277553991749,1292.8308323222518,1015.8377287066245,4733.3343166707118,1275.3464167677748,1340.2867459354525,494.42686969182228,2125.7147277845179,2124.4650424654214,1744.3632928900745,1451.8651249696672,1112.3064693035672,965.90465178354759,960.2699611744722,11234.078995389467,3186.7247173016258,353.24523173986893,1633.3995607862166,3598.5200621208442,3596.765542344091,2893.2011938849791,6547.8214996360111,19021.132589177378,4605.0897073525848,12385.794695219605,3331.4770890560549,2472.9945401601549,873.54905605435579,2472.9945401601549,6641.6094205289974,{"$f":"SUM(AI76,AI114,AI152,AI190,AI228)","v":6405.2962523659298},778.11044164037844,1016.2695535064304,1853.7907206988596,3500.2269521960689,202.61722814850762,202.7328002911915,1549.0522712933755,1729.8375200194125,52667.309000000001,1275.3764256248483,174.91326692550351,174.75723368114535,1412.3016549381216,3126.0289201650085,843.73859257461777,7778.4903664159174,4177.1282737199708,917.93299684542592,1457.9132540645476,353.6521563940791,36]
[null,"Female 85-89",{"$f":"SUM(C77,C115,C153,C191,C229)","v":1052.3211671924287},2329.0955787430235,1263.7222712933753,840.73823586508126,623.35523659305989,2758.9123865566612,783.89255964571714,781.03178354768261,309.86454016015523,1301.0256794952677,1300.2608201892745,1112.0353482164519,854.24008250424652,684.37884736714386,604.79163795195336,605.61606406212081,7177.9879980587239,2257.9996651298234,207.14143169133703,961.1299611744721,2274.2449546226644,2273.1361077408392,1694.6651472943456,3937.0351856345542,11342.07891773841,2953.7850366415923,7518.9786462023767,2101.3498534336327,1578.45566124727,555.85672166949769,1578.45566124727,3831.8154438243146,{"$f":"SUM(AI77,AI115,AI153,AI191,AI229)","v":4142.141550109196},440.99441397718988,608.53006066488706,1039.5165445280272,1935.6208056297016,134.31443338995388,134.39104586265472,1058.9604707595245,993.8171269109439,32474.259000000002,783.91100461053145,105.51939541373451,105.42526571220577,851.72105071584565,1877.4550254792523,472.63142926474154,5024.862513952924,2746.0305265712204,589.88721184178598,775.37452560058239,207.38005049745206,37]
[null,"Female 90+",{"$f":"SUM(C78,C116,C154,C192,C230)","v":572.13596214511028},1320.9674545013345,745.72099975734056,564.59015530211116,393.71075709779177,1700.3098803688424,477.91626010677021,483.6257219121573,172.06206988595,732.32470701286081,731.8941810240234,614.56602038340191,494.03533608347476,403.87346032516376,331.49105556903658,372.33740354282941,4265.9678427566123,1346.3547294346035,152.13717058966267,574.3113588934724,1380.0467794224703,1379.3739140985197,1029.8609716088326,2262.9957291919432,6267.9299636010664,1669.9694258675079,4308.9230320310598,1218.675217665615,880.98972822130543,318.17679932055324,880.98972822130543,1969.5540946372237,{"$f":"SUM(AI78,AI116,AI154,AI192,AI230)","v":2425.6360999757335},249.99173258917733,339.2678500363989,629.78692550351866,918.26986896384369,82.371351031303078,82.418335355496268,657.58202863382689,545.19139043921371,18851.742999999999,477.92750545983984,70.005103494297487,69.942654695462267,562.89765348216451,1032.6151783547682,310.01018684785242,3060.4268429992712,1677.3079301140501,321.61234651783553,457.33979373938359,152.31242664401844,38]
[null,"Male 0-4",{"$f":"SUM(C79,C117,C155,C193,C231)","v":0},0,0,0,0,0,0,0,0,0,0,0,0,0,0,0,0,0,0,0,0,0,0,0,0,0,0,0,0,0,0,0,{"$f":"SUM(AI79,AI117,AI155,AI193,AI231)","v":0},0,0,0,0,0,0,0,0,0,0,0,0,0,0,0,0,0,0,0,0,39]
[null,"Male 5-9",{"$f":"SUM(C80,C118,C156,C194,C232)","v":0},0,0,0,0,0,0,0,0,0,0,0,0,0,0,0,0,0,0,0,0,0,0,0,0,0,0,0,0,0,0,0,{"$f":"SUM(AI80,AI118,AI156,AI194,AI232)","v":0},0,0,0,0,0,0,0,0,0,0,0,0,0,0,0,0,0,0,0,0,40]
[null,"Male 10-15",{"$f":"SUM(C81,C119,C157,C195,C233)","v":0},0,0,0,0,0,0,0,0,0,0,0,0,0,0,0,0,0,0,0,0,0,0,0,0,0,0,0,0,0,0,0,{"$f":"SUM(AI81,AI119,AI157,AI195,AI233)","v":0},0,0,0,0,0,0,0,0,0,0,0,0,0,0,0,0,0,0,0,0,41]
[null,"Male 16-19",{"$f":"SUM(C82,C120,C158,C196,C234)","v":1141.2909872611463},2882.6938248407646,1747.3117643312094,873.72550955414033,642.90880254777062,2650.6672786624204,881.88655592356668,880.82105732484092,359.38477707006365,1025.6858439171974,1024.3774490445858,1034.6180350318473,931.14661464968151,575.1317070063692,829.69318471337567,529.56239808917189,7776.6389426751575,2058.3160031847128,179.33125477707009,1073.2594904458597,2232.7695082802547,2231.2360127388529,2032.128642038216,3891.6647898089159,12455.183187898087,3605.7724738853503,7305.5461471337567,2329.8842579617835,1847.4704904458599,527.04913694267498,1847.4704904458599,5178.6366878980898,{"$f":"SUM(AI82,AI120,AI158,AI196,AI234)","v":4688.2536878980873},673.3269426751591,699.1690000000001,1005.3906878980893,2988.5563694267512,173.81721248407641,173.61569426751589,1104.9407484076432,1141.3420636942674,35364.22,882.15836942675151,181.46759060509555,181.67744904458596,712.83544585987261,2190.3921656050961,638.84111464968146,5228.5040254777059,2995.3738407643314,564.82988853503184,1270.2151910828022,179.30156417197449,42]
[null,"Male 20-24",{"$f":"SUM(C83,C121,C159,C197,C235)","v":2635.3287802547766},4758.8060222929935,2069.1308025477697,1044.4325031847136,818.46782165605077,3342.3778929936307,1009.6418099999997,1281.9213248407646,462.29194267515913,1268.2152788853502,1266.5975063694264,2087.7156019108284,1217.0137770700637,746.06460828025456,1072.3035987261144,609.02050636942658,11993.25903821656,4211.6834235668775,209.95251592356689,1338.6945222929935,3045.546731210191,3043.455009554139,2744.2170802547766,7796.8270063694245,18928.767821656049,5690.3071694267528,12213.754601273886,2725.8905235668794,2088.9556751592359,691.64726433121007,2088.9556751592359,6607.0785477707013,{"$f":"SUM(AI83,AI121,AI159,AI197,AI235)","v":7905.1639910827998},866.86286624203808,888.99,1287.4034522292995,3827.1734235668787,200.46379996815281,200.23138853503181,1366.9164171974523,1508.2965987261143,51773.240000000005,1009.953,236.82362500000002,237.09749999999997,844.40056050955423,2782.7497675159238,985.59807324840745,7490.0156050955411,4460.0270687898101,809.31264331210173,1674.5040764331206,209.91775557324834,43]
[null,"Male 25-29",{"$f":"SUM(C84,C122,C160,C198,C236)","v":2922.7524490445858},4614.3820764331222,1607.5841847133754,811.21550955414034,590.26042038216565,2658.6267286624206,738.74070474522273,880.18840445859882,333.86210191082796,1014.9687652547771,1013.6740414012735,1761.9154936305736,1025.8976178343949,574.42420700636944,801.71929936305719,434.27251273885349,11258.358286624205,4738.9741401273877,179.23411464968154,1136.3385668789806,2375.5929070063698,2373.9613184713367,2091.6560579617831,7599.7667898089139,16758.894754777073,5358.7673477707012,11188.952077070064,2128.3723031847135,1684.4472770700638,532.52663694267505,1684.4472770700638,5423.0387388535037,{"$f":"SUM(AI84,AI122,AI160,AI198,AI236)","v":8066.1262968152832},790.78898089171958,701.32200000000012,927.28616560509545,3162.3568949044584,164.18831656050955,163.99796178343951,983.93761146496831,1322.5981019108281,45325.063000000009,738.96839808917196,159.39148996815288,159.57581847133756,709.56240764331221,2266.6240222929941,661.60934713375786,5883.60727388535,3521.9974910828032,708.03224522292987,1458.2784076433118,179.20444012738849,44]
[null,"Male 30-34",{"$f":"SUM(C85,C123,C161,C199,C237)","v":2334.0622611464969},4101.1152292993638,1714.8463949044581,840.43888216560526,501.33866242038215,2456.3883114649689,719.61412856687878,742.41360191082811,340.37111464968143,976.30846496815286,975.06305732484054,1335.8332515923569,975.0219108280254,496.01878662420381,784.77824840764333,371.88363057324841,10511.852961783439,4134.8150636942664,179.18121656050957,1157.3464968152864,2318.8886624203824,2317.2960191082793,1954.2119073248405,6736.3913885350285,15678.031662420381,4832.3843057324848,10072.725884713374,2104.1227605095542,1755.1915191082805,510.13019108280236,1755.1915191082805,5521.8577261146502,{"$f":"SUM(AI85,AI123,AI161,AI199,AI237)","v":7407.7459834394876},798.64971337579618,693.80400000000009,840.30924840764339,3247.5902547770697,142.39474404458599,142.22965605095541,1021.3253025477708,1280.4737070063693,42188.106000000007,719.83592675159252,148.16837977707007,148.33972929936306,647.18967515923566,2285.050843949045,504.01977707006364,5488.661031847133,3172.0184694267518,663.34585987261141,1524.1733121019108,179.1515507961783,45]
[null,"Male 35-39",{"$f":"SUM(C86,C124,C162,C200,C238)","v":2288.5539490445854},4676.2591974522293,2359.9894012738841,944.25933757961786,626.03942675159226,2944.0224678343948,890.6951466878977,912.74321974522286,426.62910828025468,1033.620781242038,1032.3022643312099,1247.8770923566881,1130.5577261146495,640.86161146496795,961.22464968152849,588.31824522292982,11784.118299363054,4248.3795859872598,213.97277070063694,1474.4261464968149,2830.75334522293,2828.8091464968134,2451.8022993630566,6689.0970573248378,17466.150974522287,5499.4398369426744,10722.179344585988,2530.3277350318467,2085.3871242038213,595.12663694267485,2085.3871242038213,6719.3202229299368,{"$f":"SUM(AI86,AI124,AI162,AI200,AI238)","v":8008.495274522289},943.3432802547768,780.33799999999997,1025.5828471337579,3873.6848566878975,169.29737359872607,169.10109554140121,1231.1313535031845,1432.4462038216554,47748.659,890.96967515923552,200.04586687898086,200.27721019108273,791.53597452229292,2845.3560573248405,612.14641719745202,6250.0517452229278,3401.8707808917202,722.42066878980881,1774.5823566878978,213.93734474522282,46]
[null,"Male 40-44",{"$f":"SUM(C87,C125,C163,C201,C239)","v":1955.4875987261139},4529.430092356688,2569.384299363056,1060.9904235668791,719.40266242038194,3390.0062321656051,1112.8728107961779,1028.1252452229301,479.41499999999991,1237.752980796178,1236.1740668789805,1145.0404936305733,1286.6637834394901,760.9139968152864,1184.3428980891715,699.67604140127366,11952.289108280253,3729.3291401273873,255.0082229299363,1589.2643630573243,3071.7092891719744,3069.5995987261131,2693.4010394904449,5606.3089681528636,17088.403490445857,5439.0522089171973,9963.6803484076427,2684.7404082802545,2152.2945031847125,620.339085987261,2152.2945031847125,7172.645407643311,{"$f":"SUM(AI87,AI125,AI163,AI201,AI239)","v":7756.1617356687857},978.85974522292963,869.42699999999991,1203.3814585987261,4108.7052866242029,197.25952452229296,197.03082802547766,1215.9100318471335,1454.2376942675155,48621.309000000001,1113.2158184713373,222.58943646496812,222.84685031847127,904.14974522292982,3059.129742038217,690.58222929936278,6503.0335286624195,3399.9112853503184,729.05976114649661,1953.3015286624197,254.96600302547756,47]
[null,"Male 45-49",{"$f":"SUM(C88,C126,C164,C202,C240)","v":2117.8898471337575},5131.057210191083,3016.3089936305714,1384.6677484076433,993.56484076433094,5080.3349646496808,1592.6648155095536,1468.1167547770704,719.79235668789806,1777.4249371656051,1775.1576019108275,1758.1623789808921,1890.6501242038214,970.19520063694245,1430.1489808917195,819.78610828025444,14819.261006369425,4018.6195222929928,348.81961783439499,2103.7498407643307,4289.9463439490446,4286.9999522292974,3687.8349726114639,7908.6185477706986,24218.755127388533,6344.1410445859865,14198.69555541401,3676.7053089171973,2938.3877866242033,1025.5843726114647,2938.3877866242033,10077.369859872611,{"$f":"SUM(AI88,AI126,AI164,AI202,AI240)","v":8970.0615363057277},1250.7284394904457,1169.6680000000001,1924.192203821656,5797.4329936305721,275.54947614649672,275.23001273885347,1679.6411942675156,2219.8148535031842,65167.657000000007,1593.1557038216558,255.48093726114649,255.7763885350318,1278.0121910828025,4277.4323949044592,953.75068471337545,9121.9830318471322,4789.9509815286619,1146.8641082802544,2495.7658280254773,348.76186624203808,48]
[null,"Male 50-54",{"$f":"SUM(C89,C127,C165,C203,C241)","v":2107.6768375796173},5180.6817070063698,3078.795993630572,1564.6076974522293,1112.2821656050953,5485.5959866242038,1765.0415489171969,1523.2284904458597,712.48464968152848,2061.5595659554137,2058.9297802547762,1824.1384044585991,1993.5500700636942,1091.8112961783436,1565.1047133757957,911.19060191082781,15005.203834394903,3997.2943789808905,341.13592993630579,2076.8035350318464,4258.7870165605091,4255.8620254777052,3725.1030238853496,7949.5083439490409,25136.215070063692,6377.2757503184712,15006.842025477705,4086.7997961783435,3257.4913694267516,1224.6623407643308,3257.4913694267516,10151.881222929936,{"$f":"SUM(AI89,AI127,AI165,AI203,AI241)","v":9043.7695681528639},1281.3642038216558,1152.431,2097.5371910828026,5856.0792834394897,316.55477436305722,316.18777070063692,1913.123407643312,2367.620522292993,67927.815000000002,1765.5855668789807,292.2635146496815,292.60150318471329,1403.0400859872611,4295.9841751592357,1021.1132484076429,9547.5389808917189,5269.0076726114658,1328.9986464968151,2461.4332165605088,341.07945047770693,49]
[null,"Male 55-59",{"$f":"SUM(C90,C128,C166,C204,C242)","v":2701.1231433121011},6452.6296369426764,3752.2369490445844,1829.0723566878983,1416.3566369426749,6874.6586197452216,2158.2183964968144,1846.3524363057327,859.80869426751576,2593.8104315605092,2590.5016910828017,2350.3560923566879,2409.7635254777069,1415.5858280254774,1932.9848726114647,1158.6840159235667,18329.591044585988,4745.3964171974512,444.98161146496813,2449.9981210191077,5444.5756738853506,5440.8362675159206,4450.9733140127382,9105.8831719745176,29973.848904458595,7889.9725859872615,17803.735670063692,5194.498477070063,4137.5690159235664,1446.472681528662,4137.5690159235664,12209.439707006368,{"$f":"SUM(AI90,AI128,AI166,AI204,AI242)","v":10806.591470063689},1601.4047770700633,1381.7220000000002,2605.2993630573251,6719.3485987261147,399.01639050955407,398.55378343949036,2243.3196496815285,2915.1778216560506,82672.288,2158.8835987261145,332.89186751592354,333.27684076433115,1855.2704426751593,5434.8314458598743,1241.2312738853502,11864.810331210188,6379.7106210191087,1578.2458121019106,2864.3516560509552,444.90793901273867,50]
[null,"Male 60-64",{"$f":"SUM(C91,C129,C167,C205,C243)","v":2386.5260573248406},5727.9854681528668,3343.0681719745212,1686.7515668789811,1353.12050955414,6144.6123429936306,1999.572835350318,1552.1911242038218,735.0810828025476,2442.2287670063693,2439.1133885350309,1897.8144968152867,2084.2875350318468,1232.1531592356687,1563.4679936305729,998.9521464968152,15550.113171974521,4006.1135987261141,432.4043694267516,2009.4585031847132,4668.5675515923567,4665.3611178343926,3693.8889917197444,7436.9593630573218,25010.250296178343,7024.9302929936312,14684.079892356687,4800.0635598726112,3774.9054999999994,1187.1621496815283,3774.9054999999994,10382.432178343948,{"$f":"SUM(AI91,AI129,AI167,AI205,AI243)","v":8983.1473891719706},1422.9127707006364,1247.8140000000001,2320.9590382165602,5667.213487261145,350.34911369426743,349.94292993630569,2092.9181847133759,2306.8895923566874,71233.524000000005,2000.1891401273881,311.14154936305732,311.50136942675152,1724.7376242038217,4660.2293471337589,1032.2091878980891,10340.080853503183,5644.2182738853517,1358.4224044585983,2255.160095541401,432.33277929936287,51]
[null,"Male 65-69",{"$f":"SUM(C92,C130,C168,C206,C244)","v":2448.4824936305727},6347.8653980891722,3917.9159617834375,2165.5261974522296,1699.5851974522291,7066.2420095541393,2495.6294766878973,1792.072964968153,850.85522292993608,3050.8319087898085,3046.9401783439484,2079.2171337579621,2361.7217834394905,1362.5801082802545,1784.6396178343946,1006.5273535031845,17572.02326751592,4143.7396178343934,544.06261783439493,2416.5151592356683,5509.05050700637,5505.2668184713348,4356.9370461783428,7014.2932611464939,25401.855707006365,7843.6053503184721,14608.652663694267,5704.7691210191078,4386.3512165605089,1273.2112324840762,4386.3512165605089,10892.117770700637,{"$f":"SUM(AI92,AI130,AI168,AI206,AI244)","v":9730.683026751587},1605.0187579617832,1441.9700000000003,2645.446242038217,5996.7195382165601,410.6807673248407,410.20463694267505,2425.0515764331208,2446.1154012738848,78862.907999999996,2496.3986751592356,366.18047595541401,366.60394585987251,2034.9027707006371,4846.5029968152876,1189.734315286624,12171.844152866241,6629.2511484076449,1322.0487261146493,2568.4457006369425,543.97254124203801,52]
[null,"Male 70-74",{"$f":"SUM(C93,C131,C169,C207,C245)","v":1593.0409999999997},4213.2953757961786,2635.2943566878971,1540.6231783439491,1316.6607643312097,5350.7092509554132,1834.8692369426744,1290.8881687898088,617.73818471337563,2330.3586386305728,2327.3859649681522,1480.8740541401276,1728.3058949044582,1004.4228789808915,1359.3022292993628,743.20576751592353,12811.816834394906,2843.465318471337,382.6416942675159,1685.2291082802544,4117.9074242038214,4115.0791910828002,3085.4647863057316,4966.6404331210169,18596.351493630573,5351.4185783439498,10656.821046496814,4311.5271248407635,3279.9158216560509,958.63726114649648,3279.9158216560509,8017.1394649681524,{"$f":"SUM(AI93,AI131,AI169,AI207,AI245)","v":6982.4315101910788},1200.4437898089168,1104.1199999999999,1997.3159426751595,4311.7425159235663,327.38460401273875,327.00504458598715,1818.3555573248407,1847.7400636942671,57527.118000000002,1835.4347770700635,256.34262229299361,256.63907006369425,1597.5693630573248,3651.8977770700644,852.55480891719731,8962.0623694267506,4812.9822280254784,996.68269108280242,1904.4152866242032,382.57834299363043,53]
[null,"Male 75-79",{"$f":"SUM(C94,C132,C170,C208,C246)","v":1925.5586751592352},4908.3678184713372,2994.3821847133745,1759.847194267516,1394.7132611464965,5630.4970242038207,1994.6093365286615,1438.1890573248406,611.14328025477687,2663.4304989171969,2660.0329490445847,1702.8296082802549,1835.1331528662417,1338.8261337579615,1521.9349044585983,1007.4205159235665,13994.39250955414,3406.3169267515914,447.00039490445857,1825.5445859872607,4273.7476484076433,4270.8123821656036,3387.889444585986,4897.3488789808898,19528.784703821653,6263.5042649681527,11351.521719745222,4434.2785490445858,3328.9106847133753,960.03579299363025,3328.9106847133753,8236.825777070062,{"$f":"SUM(AI94,AI132,AI170,AI208,AI246)","v":7856.0158452229261},1212.36627388535,1315.8629999999998,2019.5252484076436,4411.8437420382152,379.15759614649676,378.71801273885342,2167.7387101910826,2022.2877834394897,62549.583999999995,1995.2241114649678,281.52329506369426,281.84886305732476,1741.3173439490445,3766.922675159236,1020.7057165605092,9881.5316305732449,5601.4321968152872,924.62109872611438,1993.6760828025472,446.92638821656038,54]
[null,"Male 80-84",{"$f":"SUM(C95,C133,C171,C209,C247)","v":1423.2698949044584},3433.9074363057325,2012.2371592356681,1196.0815955414014,885.2753757961782,3691.9227649681525,1313.506366783439,938.87664968152865,366.82773885350315,1790.4758209235665,1788.1918375796172,1207.4142834394904,1168.000554140127,994.85856050955385,1072.37076433121,732.18408917197439,9688.9937770700635,2601.3842515923561,272.99549681528663,1274.1236942675157,2892.573992356688,2890.5873343949033,2290.3580178343936,3381.8199235668781,13245.89938853503,4296.9215694267514,7856.3958878980893,2994.4156356687895,2309.8570286624204,629.90352866242017,2309.8570286624204,5408.4345477707011,{"$f":"SUM(AI95,AI133,AI171,AI209,AI247)","v":5558.9045292993605},788.86003184713365,834.55199999999991,1326.7203821656051,2815.7906847133754,229.01088382165599,228.74537579617831,1550.3136305732482,1319.4543439490442,42580.013999999996,1313.911213375796,167.22472738853503,167.41811464968146,1169.7244203821656,2540.6186082802551,695.88195859872599,6825.3967261146481,3934.6772955414012,649.12353503184704,1218.953789808917,272.95029888535021,55]
[null,"Male 85-89",{"$f":"SUM(C96,C134,C172,C210,C248)","v":737.88784076433103},1748.5077452229298,1010.3103057324836,652.01303821656052,438.07605095541385,1808.8683391719744,751.77628248407621,453.12544904458599,187.8076751592356,871.94540964968144,870.83313057324813,670.42132165605108,565.96982165605095,498.76136305732473,537.85391719745212,372.15130891719735,4993.1901974522289,1392.0408439490443,161.39110828025477,578.64264331210177,1431.1218751592357,1430.1389617834386,1070.7296617834393,1628.6297834394895,6393.6435477706991,2214.6723668789809,3866.7361127388531,1529.3650757961782,1195.1275700636941,315.3465031847133,1195.1275700636941,2525.8474968152864,{"$f":"SUM(AI96,AI134,AI172,AI210,AI248)","v":2863.2536197452214},421.32159235668786,451.98200000000003,611.85215923566875,1254.2699203821653,118.94814678343946,118.81024203821654,843.24797770700638,690.30450955413994,21408.175999999999,752.0079936305732,86.283201751592344,86.382984076433104,612.99301910828024,1236.864592356688,325.95105095541396,3576.2193885350307,2154.9449732484077,285.8452229299362,557.18608280254762,161.36438789808912,56]
[null,"Male 90+",{"$f":"SUM(C97,C135,C173,C211,C249)","v":312.60860509554135},773.34962101910821,461.77752229299335,275.22735987261149,174.57910828025473,743.38609490445856,266.79914343949036,176.35590445859873,75.928280254777064,382.77679082802547,382.28850955414003,278.51526433121023,218.0474490445859,225.86193949044582,232.52378980891714,173.3456114649681,2170.1881528662416,672.93775477706993,54.455216560509548,248.5044904458598,624.57763057324837,624.14866242038181,438.97956592356667,717.23949044585959,2703.8994745222926,969.44642038216557,1720.4969006369424,630.69004203821646,499.50483439490444,141.1191401273885,499.50483439490444,971.2937006369425,{"$f":"SUM(AI97,AI135,AI173,AI211,AI249)","v":1290.1916866242032},159.40401273885348,189.70699999999999,245.89037579617835,487.5718471337579,54.147005636942666,54.084229299363045,354.24859872611466,309.75579617834387,9089.4089999999997,266.8813757961783,32.457766719745223,32.495302547770692,269.3968280254777,471.27373566878987,124.25455414012737,1525.3847133757959,903.52011464968166,118.37205414012735,225.46777070063689,54.446200796178324,57]
["SIMD Q1 (most deprived)","Female 0-4",{"$f":"'Population 2016'!C60*'Prevalence Rates'!C60","v":0},{"$f":"'Population 2016'!D60*'Prevalence Rates'!D60","v":0},{"$f":"'Population 2016'!E60*'Prevalence Rates'!E60","v":0},{"$f":"'Population 2016'!F60*'Prevalence Rates'!F60","v":0},{"$f":"'Population 2016'!G60*'Prevalence Rates'!G60","v":0},{"$f":"'Population 2016'!H60*'Prevalence Rates'!H60","v":0},{"$f":"'Population 2016'!I60*'Prevalence Rates'!I60","v":0},{"$f":"'Population 2016'!J60*'Prevalence Rates'!J60","v":0},{"$f":"'Population 2016'!K60*'Prevalence Rates'!K60","v":0},{"$f":"'Population 2016'!L60*'Prevalence Rates'!L60","v":0},{"$f":"'Population 2016'!M60*'Prevalence Rates'!M60","v":0},{"$f":"'Population 2016'!N60*'Prevalence Rates'!N60","v":0},{"$f":"'Population 2016'!O60*'Prevalence Rates'!O60","v":0},{"$f":"'Population 2016'!P60*'Prevalence Rates'!P60","v":0},{"$f":"'Population 2016'!Q60*'Prevalence Rates'!Q60","v":0},{"$f":"'Population 2016'!R60*'Prevalence Rates'!R60","v":0},{"$f":"'Population 2016'!S60*'Prevalence Rates'!S60","v":0},{"$f":"'Population 2016'!T60*'Prevalence Rates'!T60","v":0},{"$f":"'Population 2016'!U60*'Prevalence Rates'!U60","v":0},{"$f":"'Population 2016'!V60*'Prevalence Rates'!V60","v":0},{"$f":"'Population 2016'!W60*'Prevalence Rates'!W60","v":0},{"$f":"'Population 2016'!X60*'Prevalence Rates'!X60","v":0},{"$f":"'Population 2016'!Y60*'Prevalence Rates'!Y60","v":0},{"$f":"'Population 2016'!Z60*'Prevalence Rates'!Z60","v":0},{"$f":"'Population 2016'!AA60*'Prevalence Rates'!AA60","v":0},{"$f":"'Population 2016'!AB60*'Prevalence Rates'!AB60","v":0},{"$f":"'Population 2016'!AC60*'Prevalence Rates'!AC60","v":0},{"$f":"'Population 2016'!AD60*'Prevalence Rates'!AD60","v":0},{"$f":"'Population 2016'!AE60*'Prevalence Rates'!AE60","v":0},{"$f":"'Population 2016'!AF60*'Prevalence Rates'!AF60","v":0},{"$f":"'Population 2016'!AG60*'Prevalence Rates'!AG60","v":0},{"$f":"'Population 2016'!AH60*'Prevalence Rates'!AH60","v":0},{"$f":"'Population 2016'!AI60*'Prevalence Rates'!AI60","v":0},{"$f":"'Population 2016'!AJ60*'Prevalence Rates'!AJ60","v":0},{"$f":"'Population 2016'!AK60*'Prevalence Rates'!AK60","v":0},{"$f":"'Population 2016'!AL60*'Prevalence Rates'!AL60","v":0},{"$f":"'Population 2016'!AM60*'Prevalence Rates'!AM60","v":0},{"$f":"'Population 2016'!AN60*'Prevalence Rates'!AN60","v":0},{"$f":"'Population 2016'!AO60*'Prevalence Rates'!AO60","v":0},{"$f":"'Population 2016'!AP60*'Prevalence Rates'!AP60","v":0},{"$f":"'Population 2016'!AQ60*'Prevalence Rates'!AQ60","v":0},{"$f":"'Population 2016'!AR60*'Prevalence Rates'!AR60","v":0},{"$f":"'Population 2016'!AS60*'Prevalence Rates'!AS60","v":0},{"$f":"'Population 2016'!AT60*'Prevalence Rates'!AT60","v":0},{"$f":"'Population 2016'!AU60*'Prevalence Rates'!AU60","v":0},{"$f":"'Population 2016'!AV60*'Prevalence Rates'!AV60","v":0},{"$f":"'Population 2016'!AW60*'Prevalence Rates'!AW60","v":0},{"$f":"'Population 2016'!AX60*'Prevalence Rates'!AX60","v":0},{"$f":"'Population 2016'!AY60*'Prevalence Rates'!AY60","v":0},{"$f":"'Population 2016'!AZ60*'Prevalence Rates'!AZ60","v":0},{"$f":"'Population 2016'!BA60*'Prevalence Rates'!BA60","v":0},{"$f":"'Population 2016'!BB60*'Prevalence Rates'!BB60","v":0},{"$f":"'Population 2016'!BC60*'Prevalence Rates'!BC60","v":0},58]
[null,"Female 5-9",{"$f":"'Population 2016'!C61*'Prevalence Rates'!C61","v":0},{"$f":"'Population 2016'!D61*'Prevalence Rates'!D61","v":0},{"$f":"'Population 2016'!E61*'Prevalence Rates'!E61","v":0},{"$f":"'Population 2016'!F61*'Prevalence Rates'!F61","v":0},{"$f":"'Population 2016'!G61*'Prevalence Rates'!G61","v":0},{"$f":"'Population 2016'!H61*'Prevalence Rates'!H61","v":0},{"$f":"'Population 2016'!I61*'Prevalence Rates'!I61","v":0},{"$f":"'Population 2016'!J61*'Prevalence Rates'!J61","v":0},{"$f":"'Population 2016'!K61*'Prevalence Rates'!K61","v":0},{"$f":"'Population 2016'!L61*'Prevalence Rates'!L61","v":0},{"$f":"'Population 2016'!M61*'Prevalence Rates'!M61","v":0},{"$f":"'Population 2016'!N61*'Prevalence Rates'!N61","v":0},{"$f":"'Population 2016'!O61*'Prevalence Rates'!O61","v":0},{"$f":"'Population 2016'!P61*'Prevalence Rates'!P61","v":0},{"$f":"'Population 2016'!Q61*'Prevalence Rates'!Q61","v":0},{"$f":"'Population 2016'!R61*'Prevalence Rates'!R61","v":0},{"$f":"'Population 2016'!S61*'Prevalence Rates'!S61","v":0},{"$f":"'Population 2016'!T61*'Prevalence Rates'!T61","v":0},{"$f":"'Population 2016'!U61*'Prevalence Rates'!U61","v":0},{"$f":"'Population 2016'!V61*'Prevalence Rates'!V61","v":0},{"$f":"'Population 2016'!W61*'Prevalence Rates'!W61","v":0},{"$f":"'Population 2016'!X61*'Prevalence Rates'!X61","v":0},{"$f":"'Population 2016'!Y61*'Prevalence Rates'!Y61","v":0},{"$f":"'Population 2016'!Z61*'Prevalence Rates'!Z61","v":0},{"$f":"'Population 2016'!AA61*'Prevalence Rates'!AA61","v":0},{"$f":"'Population 2016'!AB61*'Prevalence Rates'!AB61","v":0},{"$f":"'Population 2016'!AC61*'Prevalence Rates'!AC61","v":0},{"$f":"'Population 2016'!AD61*'Prevalence Rates'!AD61","v":0},{"$f":"'Population 2016'!AE61*'Prevalence Rates'!AE61","v":0},{"$f":"'Population 2016'!AF61*'Prevalence Rates'!AF61","v":0},{"$f":"'Population 2016'!AG61*'Prevalence Rates'!AG61","v":0},{"$f":"'Population 2016'!AH61*'Prevalence Rates'!AH61","v":0},{"$f":"'Population 2016'!AI61*'Prevalence Rates'!AI61","v":0},{"$f":"'Population 2016'!AJ61*'Prevalence Rates'!AJ61","v":0},{"$f":"'Population 2016'!AK61*'Prevalence Rates'!AK61","v":0},{"$f":"'Population 2016'!AL61*'Prevalence Rates'!AL61","v":0},{"$f":"'Population 2016'!AM61*'Prevalence Rates'!AM61","v":0},{"$f":"'Population 2016'!AN61*'Prevalence Rates'!AN61","v":0},{"$f":"'Population 2016'!AO61*'Prevalence Rates'!AO61","v":0},{"$f":"'Population 2016'!AP61*'Prevalence Rates'!AP61","v":0},{"$f":"'Population 2016'!AQ61*'Prevalence Rates'!AQ61","v":0},{"$f":"'Population 2016'!AR61*'Prevalence Rates'!AR61","v":0},{"$f":"'Population 2016'!AS61*'Prevalence Rates'!AS61","v":0},{"$f":"'Population 2016'!AT61*'Prevalence Rates'!AT61","v":0},{"$f":"'Population 2016'!AU61*'Prevalence Rates'!AU61","v":0},{"$f":"'Population 2016'!AV61*'Prevalence Rates'!AV61","v":0},{"$f":"'Population 2016'!AW61*'Prevalence Rates'!AW61","v":0},{"$f":"'Population 2016'!AX61*'Prevalence Rates'!AX61","v":0},{"$f":"'Population 2016'!AY61*'Prevalence Rates'!AY61","v":0},{"$f":"'Population 2016'!AZ61*'Prevalence Rates'!AZ61","v":0},{"$f":"'Population 2016'!BA61*'Prevalence Rates'!BA61","v":0},{"$f":"'Population 2016'!BB61*'Prevalence Rates'!BB61","v":0},{"$f":"'Population 2016'!BC61*'Prevalence Rates'!BC61","v":0},59]
[null,"Female 10-15",{"$f":"'Population 2016'!C62*'Prevalence Rates'!C62","v":0},{"$f":"'Population 2016'!D62*'Prevalence Rates'!D62","v":0},{"$f":"'Population 2016'!E62*'Prevalence Rates'!E62","v":0},{"$f":"'Population 2016'!F62*'Prevalence Rates'!F62","v":0},{"$f":"'Population 2016'!G62*'Prevalence Rates'!G62","v":0},{"$f":"'Population 2016'!H62*'Prevalence Rates'!H62","v":0},{"$f":"'Population 2016'!I62*'Prevalence Rates'!I62","v":0},{"$f":"'Population 2016'!J62*'Prevalence Rates'!J62","v":0},{"$f":"'Population 2016'!K62*'Prevalence Rates'!K62","v":0},{"$f":"'Population 2016'!L62*'Prevalence Rates'!L62","v":0},{"$f":"'Population 2016'!M62*'Prevalence Rates'!M62","v":0},{"$f":"'Population 2016'!N62*'Prevalence Rates'!N62","v":0},{"$f":"'Population 2016'!O62*'Prevalence Rates'!O62","v":0},{"$f":"'Population 2016'!P62*'Prevalence Rates'!P62","v":0},{"$f":"'Population 2016'!Q62*'Prevalence Rates'!Q62","v":0},{"$f":"'Population 2016'!R62*'Prevalence Rates'!R62","v":0},{"$f":"'Population 2016'!S62*'Prevalence Rates'!S62","v":0},{"$f":"'Population 2016'!T62*'Prevalence Rates'!T62","v":0},{"$f":"'Population 2016'!U62*'Prevalence Rates'!U62","v":0},{"$f":"'Population 2016'!V62*'Prevalence Rates'!V62","v":0},{"$f":"'Population 2016'!W62*'Prevalence Rates'!W62","v":0},{"$f":"'Population 2016'!X62*'Prevalence Rates'!X62","v":0},{"$f":"'Population 2016'!Y62*'Prevalence Rates'!Y62","v":0},{"$f":"'Population 2016'!Z62*'Prevalence Rates'!Z62","v":0},{"$f":"'Population 2016'!AA62*'Prevalence Rates'!AA62","v":0},{"$f":"'Population 2016'!AB62*'Prevalence Rates'!AB62","v":0},{"$f":"'Population 2016'!AC62*'Prevalence Rates'!AC62","v":0},{"$f":"'Population 2016'!AD62*'Prevalence Rates'!AD62","v":0},{"$f":"'Population 2016'!AE62*'Prevalence Rates'!AE62","v":0},{"$f":"'Population 2016'!AF62*'Prevalence Rates'!AF62","v":0},{"$f":"'Population 2016'!AG62*'Prevalence Rates'!AG62","v":0},{"$f":"'Population 2016'!AH62*'Prevalence Rates'!AH62","v":0},{"$f":"'Population 2016'!AI62*'Prevalence Rates'!AI62","v":0},{"$f":"'Population 2016'!AJ62*'Prevalence Rates'!AJ62","v":0},{"$f":"'Population 2016'!AK62*'Prevalence Rates'!AK62","v":0},{"$f":"'Population 2016'!AL62*'Prevalence Rates'!AL62","v":0},{"$f":"'Population 2016'!AM62*'Prevalence Rates'!AM62","v":0},{"$f":"'Population 2016'!AN62*'Prevalence Rates'!AN62","v":0},{"$f":"'Population 2016'!AO62*'Prevalence Rates'!AO62","v":0},{"$f":"'Population 2016'!AP62*'Prevalence Rates'!AP62","v":0},{"$f":"'Population 2016'!AQ62*'Prevalence Rates'!AQ62","v":0},{"$f":"'Population 2016'!AR62*'Prevalence Rates'!AR62","v":0},{"$f":"'Population 2016'!AS62*'Prevalence Rates'!AS62","v":0},{"$f":"'Population 2016'!AT62*'Prevalence Rates'!AT62","v":0},{"$f":"'Population 2016'!AU62*'Prevalence Rates'!AU62","v":0},{"$f":"'Population 2016'!AV62*'Prevalence Rates'!AV62","v":0},{"$f":"'Population 2016'!AW62*'Prevalence Rates'!AW62","v":0},{"$f":"'Population 2016'!AX62*'Prevalence Rates'!AX62","v":0},{"$f":"'Population 2016'!AY62*'Prevalence Rates'!AY62","v":0},{"$f":"'Population 2016'!AZ62*'Prevalence Rates'!AZ62","v":0},{"$f":"'Population 2016'!BA62*'Prevalence Rates'!BA62","v":0},{"$f":"'Population 2016'!BB62*'Prevalence Rates'!BB62","v":0},{"$f":"'Population 2016'!BC62*'Prevalence Rates'!BC62","v":0},60]
[null,"Female 16-19",{"$f":"'Population 2016'!C63*'Prevalence Rates'!C63","v":123.78435331230281},{"$f":"'Population 2016'!D63*'Prevalence Rates'!D63","v":176.74995389468575},{"$f":"'Population 2016'!E63*'Prevalence Rates'!E63","v":44.34123756369813},{"$f":"'Population 2016'!F63*'Prevalence Rates'!F63","v":91.090570249939347},{"$f":"'Population 2016'!G63*'Prevalence Rates'!G63","v":56.539305993690846},{"$f":"'Population 2016'!H63*'Prevalence Rates'!H63","v":1184.0957340451348},{"$f":"'Population 2016'!I63*'Prevalence Rates'!I63","v":69.01730347003155},{"$f":"'Population 2016'!J63*'Prevalence Rates'!J63","v":240.87485561756858},{"$f":"'Population 2016'!K63*'Prevalence Rates'!K63","v":120.85255035185632},{"$f":"'Population 2016'!L63*'Prevalence Rates'!L63","v":144.16687017714145},{"$f":"'Population 2016'!M63*'Prevalence Rates'!M63","v":144.08211599126426},{"$f":"'Population 2016'!N63*'Prevalence Rates'!N63","v":535.94722640135876},{"$f":"'Population 2016'!O63*'Prevalence Rates'!O63","v":392.08900752244591},{"$f":"'Population 2016'!P63*'Prevalence Rates'!P63","v":43.542703227372002},{"$f":"'Population 2016'!Q63*'Prevalence Rates'!Q63","v":31.02560543557389},{"$f":"'Population 2016'!R63*'Prevalence Rates'!R63","v":64.350720698859504},{"$f":"'Population 2016'!S63*'Prevalence Rates'!S63","v":1672.4768357194855},{"$f":"'Population 2016'!T63*'Prevalence Rates'!T63","v":482.71064304780401},{"$f":"'Population 2016'!U63*'Prevalence Rates'!U63","v":0},{"$f":"'Population 2016'!V63*'Prevalence Rates'!V63","v":209.06609075467117},{"$f":"'Population 2016'!W63*'Prevalence Rates'!W63","v":720.94466585780151},{"$f":"'Population 2016'!X63*'Prevalence Rates'!X63","v":720.59315700072796},{"$f":"'Population 2016'!Y63*'Prevalence Rates'!Y63","v":440.88781557874296},{"$f":"'Population 2016'!Z63*'Prevalence Rates'!Z63","v":2660.5703470031549},{"$f":"'Population 2016'!AA63*'Prevalence Rates'!AA63","v":5252.8684105799557},{"$f":"'Population 2016'!AB63*'Prevalence Rates'!AB63","v":188.55211841785976},{"$f":"'Population 2016'!AC63*'Prevalence Rates'!AC63","v":3668.0037641349181},{"$f":"'Population 2016'!AD63*'Prevalence Rates'!AD63","v":212.81430138315946},{"$f":"'Population 2016'!AE63*'Prevalence Rates'!AE63","v":166.90712933753943},{"$f":"'Population 2016'!AF63*'Prevalence Rates'!AF63","v":242.63143897112352},{"$f":"'Population 2016'!AG63*'Prevalence Rates'!AG63","v":166.90712933753943},{"$f":"'Population 2016'!AH63*'Prevalence Rates'!AH63","v":1595.824458141228},{"$f":"'Population 2016'!AI63*'Prevalence Rates'!AI63","v":891.80775928172773},{"$f":"'Population 2016'!AJ63*'Prevalence Rates'!AJ63","v":76.629507401116243},{"$f":"'Population 2016'!AK63*'Prevalence Rates'!AK63","v":6.7495850521718026},{"$f":"'Population 2016'!AL63*'Prevalence Rates'!AL63","v":617.95218636253344},{"$f":"'Population 2016'!AM63*'Prevalence Rates'!AM63","v":1075.9543897112351},{"$f":"'Population 2016'!AN63*'Prevalence Rates'!AN63","v":0},{"$f":"'Population 2016'!AO63*'Prevalence Rates'!AO63","v":0},{"$f":"'Population 2016'!AP63*'Prevalence Rates'!AP63","v":71.571162339238057},{"$f":"'Population 2016'!AQ63*'Prevalence Rates'!AQ63","v":379.94090754671191},{"$f":"'Population 2016'!AR63*'Prevalence Rates'!AR63","v":9560.232},{"$f":"'Population 2016'!AS63*'Prevalence Rates'!AS63","v":69.018927444794954},{"$f":"'Population 2016'!AT63*'Prevalence Rates'!AT63","v":0},{"$f":"'Population 2016'!AU63*'Prevalence Rates'!AU63","v":0},{"$f":"'Population 2016'!AV63*'Prevalence Rates'!AV63","v":194.06690609075466},{"$f":"'Population 2016'!AW63*'Prevalence Rates'!AW63","v":543.88260131036157},{"$f":"'Population 2016'!AX63*'Prevalence Rates'!AX63","v":123.6142683814608},{"$f":"'Population 2016'!AY63*'Prevalence Rates'!AY63","v":1335.9008590148021},{"$f":"'Population 2016'!AZ63*'Prevalence Rates'!AZ63","v":620.08852996845428},{"$f":"'Population 2016'!BA63*'Prevalence Rates'!BA63","v":306.32584324193158},{"$f":"'Population 2016'!BB63*'Prevalence Rates'!BB63","v":304.69129822858531},{"$f":"'Population 2016'!BC63*'Prevalence Rates'!BC63","v":0},61]
[null,"Female 20-24",{"$f":"'Population 2016'!C64*'Prevalence Rates'!C64","v":263.75848580441635},{"$f":"'Population 2016'!D64*'Prevalence Rates'!D64","v":362.35585537490903},{"$f":"'Population 2016'!E64*'Prevalence Rates'!E64","v":79.180781363746661},{"$f":"'Population 2016'!F64*'Prevalence Rates'!F64","v":131.30172288279545},{"$f":"'Population 2016'!G64*'Prevalence Rates'!G64","v":80.549148264984225},{"$f":"'Population 2016'!H64*'Prevalence Rates'!H64","v":1772.6481155059453},{"$f":"'Population 2016'!I64*'Prevalence Rates'!I64","v":88.619851201164778},{"$f":"'Population 2016'!J64*'Prevalence Rates'!J64","v":388.07615627274936},{"$f":"'Population 2016'!K64*'Prevalence Rates'!K64","v":194.9519242902208},{"$f":"'Population 2016'!L64*'Prevalence Rates'!L64","v":229.75164707595241},{"$f":"'Population 2016'!M64*'Prevalence Rates'!M64","v":229.616578500364},{"$f":"'Population 2016'!N64*'Prevalence Rates'!N64","v":912.6853482164521},{"$f":"'Population 2016'!O64*'Prevalence Rates'!O64","v":614.27277845183198},{"$f":"'Population 2016'!P64*'Prevalence Rates'!P64","v":68.204057267653496},{"$f":"'Population 2016'!Q64*'Prevalence Rates'!Q64","v":44.856297015287552},{"$f":"'Population 2016'!R64*'Prevalence Rates'!R64","v":88.241407425382192},{"$f":"'Population 2016'!S64*'Prevalence Rates'!S64","v":2322.6990342149961},{"$f":"'Population 2016'!T64*'Prevalence Rates'!T64","v":762.58011162339244},{"$f":"'Population 2016'!U64*'Prevalence Rates'!U64","v":0},{"$f":"'Population 2016'!V64*'Prevalence Rates'!V64","v":342.2685367629216},{"$f":"'Population 2016'!W64*'Prevalence Rates'!W64","v":886.10366804173736},{"$f":"'Population 2016'!X64*'Prevalence Rates'!X64","v":885.67163309876241},{"$f":"'Population 2016'!Y64*'Prevalence Rates'!Y64","v":715.41065954865314},{"$f":"'Population 2016'!Z64*'Prevalence Rates'!Z64","v":4529.9094394564427},{"$f":"'Population 2016'!AA64*'Prevalence Rates'!AA64","v":8372.1683863140006},{"$f":"'Population 2016'!AB64*'Prevalence Rates'!AB64","v":387.38889784033006},{"$f":"'Population 2016'!AC64*'Prevalence Rates'!AC64","v":6212.5309284154318},{"$f":"'Population 2016'!AD64*'Prevalence Rates'!AD64","v":314.37595340936667},{"$f":"'Population 2016'!AE64*'Prevalence Rates'!AE64","v":249.73945158942004},{"$f":"'Population 2016'!AF64*'Prevalence Rates'!AF64","v":399.5660179568066},{"$f":"'Population 2016'!AG64*'Prevalence Rates'!AG64","v":249.73945158942004},{"$f":"'Population 2016'!AH64*'Prevalence Rates'!AH64","v":2190.7625197767534},{"$f":"'Population 2016'!AI64*'Prevalence Rates'!AI64","v":1348.5440310604222},{"$f":"'Population 2016'!AJ64*'Prevalence Rates'!AJ64","v":121.85960689153119},{"$f":"'Population 2016'!AK64*'Prevalence Rates'!AK64","v":14.764717301625819},{"$f":"'Population 2016'!AL64*'Prevalence Rates'!AL64","v":890.10729434603263},{"$f":"'Population 2016'!AM64*'Prevalence Rates'!AM64","v":1450.9916622179082},{"$f":"'Population 2016'!AN64*'Prevalence Rates'!AN64","v":0},{"$f":"'Population 2016'!AO64*'Prevalence Rates'!AO64","v":0},{"$f":"'Population 2016'!AP64*'Prevalence Rates'!AP64","v":127.49835476826014},{"$f":"'Population 2016'!AQ64*'Prevalence Rates'!AQ64","v":699.2220334870176},{"$f":"'Population 2016'!AR64*'Prevalence Rates'!AR64","v":14899.104000000001},{"$f":"'Population 2016'!AS64*'Prevalence Rates'!AS64","v":88.62193642319825},{"$f":"'Population 2016'!AT64*'Prevalence Rates'!AT64","v":0},{"$f":"'Population 2016'!AU64*'Prevalence Rates'!AU64","v":0},{"$f":"'Population 2016'!AV64*'Prevalence Rates'!AV64","v":296.85489929628727},{"$f":"'Population 2016'!AW64*'Prevalence Rates'!AW64","v":769.65929628730896},{"$f":"'Population 2016'!AX64*'Prevalence Rates'!AX64","v":198.94171317641349},{"$f":"'Population 2016'!AY64*'Prevalence Rates'!AY64","v":1926.7874399417615},{"$f":"'Population 2016'!AZ64*'Prevalence Rates'!AZ64","v":1039.6917058966271},{"$f":"'Population 2016'!BA64*'Prevalence Rates'!BA64","v":478.32495025479255},{"$f":"'Population 2016'!BB64*'Prevalence Rates'!BB64","v":413.17665615141959},{"$f":"'Population 2016'!BC64*'Prevalence Rates'!BC64","v":0},62]
[null,"Female 25-29",{"$f":"'Population 2016'!C65*'Prevalence Rates'!C65","v":302.95788643533115},{"$f":"'Population 2016'!D65*'Prevalence Rates'!D65","v":407.952244600825},{"$f":"'Population 2016'!E65*'Prevalence Rates'!E65","v":82.09007522446008},{"$f":"'Population 2016'!F65*'Prevalence Rates'!F65","v":106.88470031545741},{"$f":"'Population 2016'!G65*'Prevalence Rates'!G65","v":58.029652996845414},{"$f":"'Population 2016'!H65*'Prevalence Rates'!H65","v":1546.6365069157971},{"$f":"'Population 2016'!I65*'Prevalence Rates'!I65","v":72.5814030575103},{"$f":"'Population 2016'!J65*'Prevalence Rates'!J65","v":358.23406940063091},{"$f":"'Population 2016'!K65*'Prevalence Rates'!K65","v":164.46479009949039},{"$f":"'Population 2016'!L65*'Prevalence Rates'!L65","v":200.95987964086382},{"$f":"'Population 2016'!M65*'Prevalence Rates'!M65","v":200.84173744236836},{"$f":"'Population 2016'!N65*'Prevalence Rates'!N65","v":1035.8363382674104},{"$f":"'Population 2016'!O65*'Prevalence Rates'!O65","v":550.47466634312048},{"$f":"'Population 2016'!P65*'Prevalence Rates'!P65","v":64.455811696190239},{"$f":"'Population 2016'!Q65*'Prevalence Rates'!Q65","v":44.615590876000965},{"$f":"'Population 2016'!R65*'Prevalence Rates'!R65","v":73.85561756855131},{"$f":"'Population 2016'!S65*'Prevalence Rates'!S65","v":2599.7395049745205},{"$f":"'Population 2016'!T65*'Prevalence Rates'!T65","v":1000.4681873331715},{"$f":"'Population 2016'!U65*'Prevalence Rates'!U65","v":0},{"$f":"'Population 2016'!V65*'Prevalence Rates'!V65","v":342.76306721669494},{"$f":"'Population 2016'!W65*'Prevalence Rates'!W65","v":947.123033244358},{"$f":"'Population 2016'!X65*'Prevalence Rates'!X65","v":946.66124727007991},{"$f":"'Population 2016'!Y65*'Prevalence Rates'!Y65","v":685.49398689638417},{"$f":"'Population 2016'!Z65*'Prevalence Rates'!Z65","v":5452.6408638679932},{"$f":"'Population 2016'!AA65*'Prevalence Rates'!AA65","v":8936.9600339723347},{"$f":"'Population 2016'!AB65*'Prevalence Rates'!AB65","v":428.7583984469789},{"$f":"'Population 2016'!AC65*'Prevalence Rates'!AC65","v":6944.0684967240932},{"$f":"'Population 2016'!AD65*'Prevalence Rates'!AD65","v":259.02861198738168},{"$f":"'Population 2016'!AE65*'Prevalence Rates'!AE65","v":214.68945644261098},{"$f":"'Population 2016'!AF65*'Prevalence Rates'!AF65","v":351.17919194370296},{"$f":"'Population 2016'!AG65*'Prevalence Rates'!AG65","v":214.68945644261098},{"$f":"'Population 2016'!AH65*'Prevalence Rates'!AH65","v":2037.7630526571218},{"$f":"'Population 2016'!AI65*'Prevalence Rates'!AI65","v":1572.782082018927},{"$f":"'Population 2016'!AJ65*'Prevalence Rates'!AJ65","v":109.74784033001698},{"$f":"'Population 2016'!AK65*'Prevalence Rates'!AK65","v":8.4529604464935684},{"$f":"'Population 2016'!AL65*'Prevalence Rates'!AL65","v":777.06624605678235},{"$f":"'Population 2016'!AM65*'Prevalence Rates'!AM65","v":1373.0338631400145},{"$f":"'Population 2016'!AN65*'Prevalence Rates'!AN65","v":0},{"$f":"'Population 2016'!AO65*'Prevalence Rates'!AO65","v":0},{"$f":"'Population 2016'!AP65*'Prevalence Rates'!AP65","v":136.63289250181995},{"$f":"'Population 2016'!AQ65*'Prevalence Rates'!AQ65","v":691.44831351613675},{"$f":"'Population 2016'!AR65*'Prevalence Rates'!AR65","v":15569.504999999999},{"$f":"'Population 2016'!AS65*'Prevalence Rates'!AS65","v":72.583110895413725},{"$f":"'Population 2016'!AT65*'Prevalence Rates'!AT65","v":0},{"$f":"'Population 2016'!AU65*'Prevalence Rates'!AU65","v":0},{"$f":"'Population 2016'!AV65*'Prevalence Rates'!AV65","v":245.83070856588202},{"$f":"'Population 2016'!AW65*'Prevalence Rates'!AW65","v":695.28676292162095},{"$f":"'Population 2016'!AX65*'Prevalence Rates'!AX65","v":197.21509342392619},{"$f":"'Population 2016'!AY65*'Prevalence Rates'!AY65","v":2082.807109924775},{"$f":"'Population 2016'!AZ65*'Prevalence Rates'!AZ65","v":1134.0256321281242},{"$f":"'Population 2016'!BA65*'Prevalence Rates'!BA65","v":432.96704683329284},{"$f":"'Population 2016'!BB65*'Prevalence Rates'!BB65","v":380.63939577772385},{"$f":"'Population 2016'!BC65*'Prevalence Rates'!BC65","v":0},63]
[null,"Female 30-34",{"$f":"'Population 2016'!C66*'Prevalence Rates'!C66","v":266.22681388012614},{"$f":"'Population 2016'!D66*'Prevalence Rates'!D66","v":366.8033972336811},{"$f":"'Population 2016'!E66*'Prevalence Rates'!E66","v":81.055326377092925},{"$f":"'Population 2016'!F66*'Prevalence Rates'!F66","v":118.68133948070856},{"$f":"'Population 2016'!G66*'Prevalence Rates'!G66","v":67.813722397476326},{"$f":"'Population 2016'!H66*'Prevalence Rates'!H66","v":1372.6732079592332},{"$f":"'Population 2016'!I66*'Prevalence Rates'!I66","v":73.648776631885454},{"$f":"'Population 2016'!J66*'Prevalence Rates'!J66","v":313.36648871633099},{"$f":"'Population 2016'!K66*'Prevalence Rates'!K66","v":157.16378306236348},{"$f":"'Population 2016'!L66*'Prevalence Rates'!L66","v":171.45386556661001},{"$f":"'Population 2016'!M66*'Prevalence Rates'!M66","v":171.35306964329047},{"$f":"'Population 2016'!N66*'Prevalence Rates'!N66","v":830.37506673137557},{"$f":"'Population 2016'!O66*'Prevalence Rates'!O66","v":489.22356224217407},{"$f":"'Population 2016'!P66*'Prevalence Rates'!P66","v":55.391713176413489},{"$f":"'Population 2016'!Q66*'Prevalence Rates'!Q66","v":40.381994661489927},{"$f":"'Population 2016'!R66*'Prevalence Rates'!R66","v":71.841373453045364},{"$f":"'Population 2016'!S66*'Prevalence Rates'!S66","v":2484.375054598398},{"$f":"'Population 2016'!T66*'Prevalence Rates'!T66","v":985.08927444794949},{"$f":"'Population 2016'!U66*'Prevalence Rates'!U66","v":0},{"$f":"'Population 2016'!V66*'Prevalence Rates'!V66","v":335.84632370783783},{"$f":"'Population 2016'!W66*'Prevalence Rates'!W66","v":835.51498908032022},{"$f":"'Population 2016'!X66*'Prevalence Rates'!X66","v":835.10761950982749},{"$f":"'Population 2016'!Y66*'Prevalence Rates'!Y66","v":633.34465421014295},{"$f":"'Population 2016'!Z66*'Prevalence Rates'!Z66","v":4616.9723368114528},{"$f":"'Population 2016'!AA66*'Prevalence Rates'!AA66","v":8129.1778209172517},{"$f":"'Population 2016'!AB66*'Prevalence Rates'!AB66","v":389.59934967240963},{"$f":"'Population 2016'!AC66*'Prevalence Rates'!AC66","v":6034.3430951225409},{"$f":"'Population 2016'!AD66*'Prevalence Rates'!AD66","v":289.08538704198008},{"$f":"'Population 2016'!AE66*'Prevalence Rates'!AE66","v":236.33881339480703},{"$f":"'Population 2016'!AF66*'Prevalence Rates'!AF66","v":343.49810725552049},{"$f":"'Population 2016'!AG66*'Prevalence Rates'!AG66","v":236.33881339480703},{"$f":"'Population 2016'!AH66*'Prevalence Rates'!AH66","v":2125.1355374908999},{"$f":"'Population 2016'!AI66*'Prevalence Rates'!AI66","v":1561.9523804901719},{"$f":"'Population 2016'!AJ66*'Prevalence Rates'!AJ66","v":96.395729191943701},{"$f":"'Population 2016'!AK66*'Prevalence Rates'!AK66","v":12.128160640621207},{"$f":"'Population 2016'!AL66*'Prevalence Rates'!AL66","v":674.65289978160649},{"$f":"'Population 2016'!AM66*'Prevalence Rates'!AM66","v":1388.170832322252},{"$f":"'Population 2016'!AN66*'Prevalence Rates'!AN66","v":0},{"$f":"'Population 2016'!AO66*'Prevalence Rates'!AO66","v":0},{"$f":"'Population 2016'!AP66*'Prevalence Rates'!AP66","v":122.66294588692065},{"$f":"'Population 2016'!AQ66*'Prevalence Rates'!AQ66","v":589.86711963115738},{"$f":"'Population 2016'!AR66*'Prevalence Rates'!AR66","v":14227.8},{"$f":"'Population 2016'!AS66*'Prevalence Rates'!AS66","v":73.650509585052163},{"$f":"'Population 2016'!AT66*'Prevalence Rates'!AT66","v":0},{"$f":"'Population 2016'!AU66*'Prevalence Rates'!AU66","v":0},{"$f":"'Population 2016'!AV66*'Prevalence Rates'!AV66","v":230.61755641834503},{"$f":"'Population 2016'!AW66*'Prevalence Rates'!AW66","v":763.67562484833775},{"$f":"'Population 2016'!AX66*'Prevalence Rates'!AX66","v":160.86828439699099},{"$f":"'Population 2016'!AY66*'Prevalence Rates'!AY66","v":1787.2624120359133},{"$f":"'Population 2016'!AZ66*'Prevalence Rates'!AZ66","v":951.5686022809997},{"$f":"'Population 2016'!BA66*'Prevalence Rates'!BA66","v":443.90725552050469},{"$f":"'Population 2016'!BB66*'Prevalence Rates'!BB66","v":407.95977917981071},{"$f":"'Population 2016'!BC66*'Prevalence Rates'!BC66","v":0},64]
[null,"Female 35-39",{"$f":"'Population 2016'!C67*'Prevalence Rates'!C67","v":185.99848580441636},{"$f":"'Population 2016'!D67*'Prevalence Rates'!D67","v":257.49711235137102},{"$f":"'Population 2016'!E67*'Prevalence Rates'!E67","v":57.949934481921872},{"$f":"'Population 2016'!F67*'Prevalence Rates'!F67","v":104.0570298471245},{"$f":"'Population 2016'!G67*'Prevalence Rates'!G67","v":58.331829652996838},{"$f":"'Population 2016'!H67*'Prevalence Rates'!H67","v":1204.3790393108468},{"$f":"'Population 2016'!I67*'Prevalence Rates'!I67","v":66.727864498908033},{"$f":"'Population 2016'!J67*'Prevalence Rates'!J67","v":267.10418830380979},{"$f":"'Population 2016'!K67*'Prevalence Rates'!K67","v":158.39899538946855},{"$f":"'Population 2016'!L67*'Prevalence Rates'!L67","v":140.60372715360347},{"$f":"'Population 2016'!M67*'Prevalence Rates'!M67","v":140.52106770201408},{"$f":"'Population 2016'!N67*'Prevalence Rates'!N67","v":635.05732346517823},{"$f":"'Population 2016'!O67*'Prevalence Rates'!O67","v":419.96611259403056},{"$f":"'Population 2016'!P67*'Prevalence Rates'!P67","v":49.516347973792776},{"$f":"'Population 2016'!Q67*'Prevalence Rates'!Q67","v":46.125903906818735},{"$f":"'Population 2016'!R67*'Prevalence Rates'!R67","v":70.503409366658587},{"$f":"'Population 2016'!S67*'Prevalence Rates'!S67","v":2082.3852317398691},{"$f":"'Population 2016'!T67*'Prevalence Rates'!T67","v":770.78057752972597},{"$f":"'Population 2016'!U67*'Prevalence Rates'!U67","v":0},{"$f":"'Population 2016'!V67*'Prevalence Rates'!V67","v":258.99361805387036},{"$f":"'Population 2016'!W67*'Prevalence Rates'!W67","v":741.67166076195099},{"$f":"'Population 2016'!X67*'Prevalence Rates'!X67","v":741.3100461053142},{"$f":"'Population 2016'!Y67*'Prevalence Rates'!Y67","v":514.31907983499138},{"$f":"'Population 2016'!Z67*'Prevalence Rates'!Z67","v":3738.3857316185395},{"$f":"'Population 2016'!AA67*'Prevalence Rates'!AA67","v":6788.6258044164042},{"$f":"'Population 2016'!AB67*'Prevalence Rates'!AB67","v":273.5919902936181},{"$f":"'Population 2016'!AC67*'Prevalence Rates'!AC67","v":4962.6965913613194},{"$f":"'Population 2016'!AD67*'Prevalence Rates'!AD67","v":230.58993982043197},{"$f":"'Population 2016'!AE67*'Prevalence Rates'!AE67","v":183.98188303809752},{"$f":"'Population 2016'!AF67*'Prevalence Rates'!AF67","v":298.01807085658822},{"$f":"'Population 2016'!AG67*'Prevalence Rates'!AG67","v":183.98188303809752},{"$f":"'Population 2016'!AH67*'Prevalence Rates'!AH67","v":1848.3798243144868},{"$f":"'Population 2016'!AI67*'Prevalence Rates'!AI67","v":1267.6158912885221},{"$f":"'Population 2016'!AJ67*'Prevalence Rates'!AJ67","v":89.070710992477558},{"$f":"'Population 2016'!AK67*'Prevalence Rates'!AK67","v":8.6159475855374907},{"$f":"'Population 2016'!AL67*'Prevalence Rates'!AL67","v":615.80146566367387},{"$f":"'Population 2016'!AM67*'Prevalence Rates'!AM67","v":1213.5311938849795},{"$f":"'Population 2016'!AN67*'Prevalence Rates'!AN67","v":0},{"$f":"'Population 2016'!AO67*'Prevalence Rates'!AO67","v":0},{"$f":"'Population 2016'!AP67*'Prevalence Rates'!AP67","v":98.517505459839853},{"$f":"'Population 2016'!AQ67*'Prevalence Rates'!AQ67","v":508.4930114049987},{"$f":"'Population 2016'!AR67*'Prevalence Rates'!AR67","v":11807.806},{"$f":"'Population 2016'!AS67*'Prevalence Rates'!AS67","v":66.729434603251647},{"$f":"'Population 2016'!AT67*'Prevalence Rates'!AT67","v":0},{"$f":"'Population 2016'!AU67*'Prevalence Rates'!AU67","v":0},{"$f":"'Population 2016'!AV67*'Prevalence Rates'!AV67","v":189.80762436301865},{"$f":"'Population 2016'!AW67*'Prevalence Rates'!AW67","v":658.8051516622179},{"$f":"'Population 2016'!AX67*'Prevalence Rates'!AX67","v":115.71669012375636},{"$f":"'Population 2016'!AY67*'Prevalence Rates'!AY67","v":1483.4901917010432},{"$f":"'Population 2016'!AZ67*'Prevalence Rates'!AZ67","v":744.30027711720459},{"$f":"'Population 2016'!BA67*'Prevalence Rates'!BA67","v":359.13192914341181},{"$f":"'Population 2016'!BB67*'Prevalence Rates'!BB67","v":341.51977432661977},{"$f":"'Population 2016'!BC67*'Prevalence Rates'!BC67","v":0},65]
[null,"Female 40-44",{"$f":"'Population 2016'!C68*'Prevalence Rates'!C68","v":189.72993690851732},{"$f":"'Population 2016'!D68*'Prevalence Rates'!D68","v":260.32330016986168},{"$f":"'Population 2016'!E68*'Prevalence Rates'!E68","v":56.602261586993457},{"$f":"'Population 2016'!F68*'Prevalence Rates'!F68","v":89.042089298713904},{"$f":"'Population 2016'!G68*'Prevalence Rates'!G68","v":68.548138801261828},{"$f":"'Population 2016'!H68*'Prevalence Rates'!H68","v":1367.2435095850522},{"$f":"'Population 2016'!I68*'Prevalence Rates'!I68","v":80.977043897112353},{"$f":"'Population 2016'!J68*'Prevalence Rates'!J68","v":267.10418830380979},{"$f":"'Population 2016'!K68*'Prevalence Rates'!K68","v":152.7686993448192},{"$f":"'Population 2016'!L68*'Prevalence Rates'!L68","v":142.16166318854644},{"$f":"'Population 2016'!M68*'Prevalence Rates'!M68","v":142.07808784275662},{"$f":"'Population 2016'!N68*'Prevalence Rates'!N68","v":524.92758796408623},{"$f":"'Population 2016'!O68*'Prevalence Rates'!O68","v":472.5098180053385},{"$f":"'Population 2016'!P68*'Prevalence Rates'!P68","v":57.714418830380978},{"$f":"'Population 2016'!Q68*'Prevalence Rates'!Q68","v":33.719626304295076},{"$f":"'Population 2016'!R68*'Prevalence Rates'!R68","v":65.912489686969195},{"$f":"'Population 2016'!S68*'Prevalence Rates'!S68","v":1922.0317835476826},{"$f":"'Population 2016'!T68*'Prevalence Rates'!T68","v":596.79502547925279},{"$f":"'Population 2016'!U68*'Prevalence Rates'!U68","v":0},{"$f":"'Population 2016'!V68*'Prevalence Rates'!V68","v":297.27963115748599},{"$f":"'Population 2016'!W68*'Prevalence Rates'!W68","v":763.14022082018926},{"$f":"'Population 2016'!X68*'Prevalence Rates'!X68","v":762.76813880126178},{"$f":"'Population 2016'!Y68*'Prevalence Rates'!Y68","v":550.15278621693756},{"$f":"'Population 2016'!Z68*'Prevalence Rates'!Z68","v":3347.1680660033976},{"$f":"'Population 2016'!AA68*'Prevalence Rates'!AA68","v":6419.7052560058237},{"$f":"'Population 2016'!AB68*'Prevalence Rates'!AB68","v":277.80608493084202},{"$f":"'Population 2016'!AC68*'Prevalence Rates'!AC68","v":4543.8112339238041},{"$f":"'Population 2016'!AD68*'Prevalence Rates'!AD68","v":242.1359310846882},{"$f":"'Population 2016'!AE68*'Prevalence Rates'!AE68","v":185.391705896627},{"$f":"'Population 2016'!AF68*'Prevalence Rates'!AF68","v":299.81878427566124},{"$f":"'Population 2016'!AG68*'Prevalence Rates'!AG68","v":185.391705896627},{"$f":"'Population 2016'!AH68*'Prevalence Rates'!AH68","v":1891.5630909973308},{"$f":"'Population 2016'!AI68*'Prevalence Rates'!AI68","v":1082.3396534821645},{"$f":"'Population 2016'!AJ68*'Prevalence Rates'!AJ68","v":90.343149720941526},{"$f":"'Population 2016'!AK68*'Prevalence Rates'!AK68","v":10.051938849793739},{"$f":"'Population 2016'!AL68*'Prevalence Rates'!AL68","v":715.06149963601069},{"$f":"'Population 2016'!AM68*'Prevalence Rates'!AM68","v":1249.5945280271781},{"$f":"'Population 2016'!AN68*'Prevalence Rates'!AN68","v":0},{"$f":"'Population 2016'!AO68*'Prevalence Rates'!AO68","v":0},{"$f":"'Population 2016'!AP68*'Prevalence Rates'!AP68","v":80.87754671196312},{"$f":"'Population 2016'!AQ68*'Prevalence Rates'!AQ68","v":459.34383887405966},{"$f":"'Population 2016'!AR68*'Prevalence Rates'!AR68","v":11344.431},{"$f":"'Population 2016'!AS68*'Prevalence Rates'!AS68","v":80.978949284154339},{"$f":"'Population 2016'!AT68*'Prevalence Rates'!AT68","v":0},{"$f":"'Population 2016'!AU68*'Prevalence Rates'!AU68","v":0},{"$f":"'Population 2016'!AV68*'Prevalence Rates'!AV68","v":205.34347973792765},{"$f":"'Population 2016'!AW68*'Prevalence Rates'!AW68","v":667.39411307934972},{"$f":"'Population 2016'!AX68*'Prevalence Rates'!AX68","v":120.64779907789372},{"$f":"'Population 2016'!AY68*'Prevalence Rates'!AY68","v":1374.1324241688908},{"$f":"'Population 2016'!AZ68*'Prevalence Rates'!AZ68","v":617.44893035670952},{"$f":"'Population 2016'!BA68*'Prevalence Rates'!BA68","v":357.83659305993694},{"$f":"'Population 2016'!BB68*'Prevalence Rates'!BB68","v":362.79714147051692},{"$f":"'Population 2016'!BC68*'Prevalence Rates'!BC68","v":0},66]
[null,"Female 45-49",{"$f":"'Population 2016'!C69*'Prevalence Rates'!C69","v":242.34075709779174},{"$f":"'Population 2016'!D69*'Prevalence Rates'!D69","v":352.60723125454984},{"$f":"'Population 2016'!E69*'Prevalence Rates'!E69","v":93.861218150934235},{"$f":"'Population 2016'!F69*'Prevalence Rates'!F69","v":150.88093181266683},{"$f":"'Population 2016'!G69*'Prevalence Rates'!G69","v":111.95302839116718},{"$f":"'Population 2016'!H69*'Prevalence Rates'!H69","v":2316.4841007037126},{"$f":"'Population 2016'!I69*'Prevalence Rates'!I69","v":112.13403948070857},{"$f":"'Population 2016'!J69*'Prevalence Rates'!J69","v":481.67802960446494},{"$f":"'Population 2016'!K69*'Prevalence Rates'!K69","v":251.81847124484344},{"$f":"'Population 2016'!L69*'Prevalence Rates'!L69","v":253.54831099247752},{"$f":"'Population 2016'!M69*'Prevalence Rates'!M69","v":253.39925260859016},{"$f":"'Population 2016'!N69*'Prevalence Rates'!N69","v":848.06711720456178},{"$f":"'Population 2016'!O69*'Prevalence Rates'!O69","v":832.42435573889816},{"$f":"'Population 2016'!P69*'Prevalence Rates'!P69","v":98.346685270565402},{"$f":"'Population 2016'!Q69*'Prevalence Rates'!Q69","v":69.178944430963341},{"$f":"'Population 2016'!R69*'Prevalence Rates'!R69","v":114.66011647658335},{"$f":"'Population 2016'!S69*'Prevalence Rates'!S69","v":3059.8812909487988},{"$f":"'Population 2016'!T69*'Prevalence Rates'!T69","v":904.16742052899792},{"$f":"'Population 2016'!U69*'Prevalence Rates'!U69","v":0},{"$f":"'Population 2016'!V69*'Prevalence Rates'!V69","v":420.94231739868957},{"$f":"'Population 2016'!W69*'Prevalence Rates'!W69","v":1315.944693035671},{"$f":"'Population 2016'!X69*'Prevalence Rates'!X69","v":1315.3030817762678},{"$f":"'Population 2016'!Y69*'Prevalence Rates'!Y69","v":884.33279883523403},{"$f":"'Population 2016'!Z69*'Prevalence Rates'!Z69","v":5584.1566610046102},{"$f":"'Population 2016'!AA69*'Prevalence Rates'!AA69","v":10847.888939577771},{"$f":"'Population 2016'!AB69*'Prevalence Rates'!AB69","v":376.89454210143168},{"$f":"'Population 2016'!AC69*'Prevalence Rates'!AC69","v":7779.2138548895873},{"$f":"'Population 2016'!AD69*'Prevalence Rates'!AD69","v":398.08561368599851},{"$f":"'Population 2016'!AE69*'Prevalence Rates'!AE69","v":305.59060907546706},{"$f":"'Population 2016'!AF69*'Prevalence Rates'!AF69","v":572.8949259888376},{"$f":"'Population 2016'!AG69*'Prevalence Rates'!AG69","v":305.59060907546706},{"$f":"'Population 2016'!AH69*'Prevalence Rates'!AH69","v":3098.9238010191702},{"$f":"'Population 2016'!AI69*'Prevalence Rates'!AI69","v":1646.6590322737197},{"$f":"'Population 2016'!AJ69*'Prevalence Rates'!AJ69","v":141.07078864353309},{"$f":"'Population 2016'!AK69*'Prevalence Rates'!AK69","v":14.287473914098518},{"$f":"'Population 2016'!AL69*'Prevalence Rates'!AL69","v":1174.0463188546471},{"$f":"'Population 2016'!AM69*'Prevalence Rates'!AM69","v":2042.1649502547923},{"$f":"'Population 2016'!AN69*'Prevalence Rates'!AN69","v":0},{"$f":"'Population 2016'!AO69*'Prevalence Rates'!AO69","v":0},{"$f":"'Population 2016'!AP69*'Prevalence Rates'!AP69","v":113.06422470274205},{"$f":"'Population 2016'!AQ69*'Prevalence Rates'!AQ69","v":824.68666343120583},{"$f":"'Population 2016'!AR69*'Prevalence Rates'!AR69","v":18775.362999999998},{"$f":"'Population 2016'!AS69*'Prevalence Rates'!AS69","v":112.13667799077894},{"$f":"'Population 2016'!AT69*'Prevalence Rates'!AT69","v":0},{"$f":"'Population 2016'!AU69*'Prevalence Rates'!AU69","v":0},{"$f":"'Population 2016'!AV69*'Prevalence Rates'!AV69","v":352.35384130065512},{"$f":"'Population 2016'!AW69*'Prevalence Rates'!AW69","v":1097.8201116233922},{"$f":"'Population 2016'!AX69*'Prevalence Rates'!AX69","v":238.30279058480949},{"$f":"'Population 2016'!AY69*'Prevalence Rates'!AY69","v":2289.9245328803681},{"$f":"'Population 2016'!AZ69*'Prevalence Rates'!AZ69","v":987.15379276874546},{"$f":"'Population 2016'!BA69*'Prevalence Rates'!BA69","v":632.89371511768991},{"$f":"'Population 2016'!BB69*'Prevalence Rates'!BB69","v":532.58267653482164},{"$f":"'Population 2016'!BC69*'Prevalence Rates'!BC69","v":0},67]
[null,"Female 50-54",{"$f":"'Population 2016'!C70*'Prevalence Rates'!C70","v":255.8041324921135},{"$f":"'Population 2016'!D70*'Prevalence Rates'!D70","v":362.4266731375879},{"$f":"'Population 2016'!E70*'Prevalence Rates'!E70","v":88.593496724096099},{"$f":"'Population 2016'!F70*'Prevalence Rates'!F70","v":138.47296044649357},{"$f":"'Population 2016'!G70*'Prevalence Rates'!G70","v":109.14249211356466},{"$f":"'Population 2016'!H70*'Prevalence Rates'!H70","v":2359.2938684785245},{"$f":"'Population 2016'!I70*'Prevalence Rates'!I70","v":108.6761616112594},{"$f":"'Population 2016'!J70*'Prevalence Rates'!J70","v":443.90897840330018},{"$f":"'Population 2016'!K70*'Prevalence Rates'!K70","v":243.81576559087594},{"$f":"'Population 2016'!L70*'Prevalence Rates'!L70","v":261.85229497694729},{"$f":"'Population 2016'!M70*'Prevalence Rates'!M70","v":261.69835476826017},{"$f":"'Population 2016'!N70*'Prevalence Rates'!N70","v":960.8337830623633},{"$f":"'Population 2016'!O70*'Prevalence Rates'!O70","v":853.68470274205265},{"$f":"'Population 2016'!P70*'Prevalence Rates'!P70","v":98.812783305023046},{"$f":"'Population 2016'!Q70*'Prevalence Rates'!Q70","v":56.518745450133451},{"$f":"'Population 2016'!R70*'Prevalence Rates'!R70","v":120.25329289007523},{"$f":"'Population 2016'!S70*'Prevalence Rates'!S70","v":2942.7802620723123},{"$f":"'Population 2016'!T70*'Prevalence Rates'!T70","v":812.54719242902218},{"$f":"'Population 2016'!U70*'Prevalence Rates'!U70","v":0},{"$f":"'Population 2016'!V70*'Prevalence Rates'!V70","v":448.15151662217897},{"$f":"'Population 2016'!W70*'Prevalence Rates'!W70","v":1318.805442368357},{"$f":"'Population 2016'!X70*'Prevalence Rates'!X70","v":1318.1624363018684},{"$f":"'Population 2016'!Y70*'Prevalence Rates'!Y70","v":871.34993448192176},{"$f":"'Population 2016'!Z70*'Prevalence Rates'!Z70","v":5857.9107983499143},{"$f":"'Population 2016'!AA70*'Prevalence Rates'!AA70","v":11103.884858044163},{"$f":"'Population 2016'!AB70*'Prevalence Rates'!AB70","v":386.57031885464693},{"$f":"'Population 2016'!AC70*'Prevalence Rates'!AC70","v":8014.6585695219583},{"$f":"'Population 2016'!AD70*'Prevalence Rates'!AD70","v":372.76568066003398},{"$f":"'Population 2016'!AE70*'Prevalence Rates'!AE70","v":281.54413491870901},{"$f":"'Population 2016'!AF70*'Prevalence Rates'!AF70","v":564.3633559815579},{"$f":"'Population 2016'!AG70*'Prevalence Rates'!AG70","v":281.54413491870901},{"$f":"'Population 2016'!AH70*'Prevalence Rates'!AH70","v":3122.1222324678474},{"$f":"'Population 2016'!AI70*'Prevalence Rates'!AI70","v":1534.9628808541613},{"$f":"'Population 2016'!AJ70*'Prevalence Rates'!AJ70","v":143.33153846153843},{"$f":"'Population 2016'!AK70*'Prevalence Rates'!AK70","v":13.777206988594999},{"$f":"'Population 2016'!AL70*'Prevalence Rates'!AL70","v":1218.3081970395535},{"$f":"'Population 2016'!AM70*'Prevalence Rates'!AM70","v":2071.8952632856103},{"$f":"'Population 2016'!AN70*'Prevalence Rates'!AN70","v":0},{"$f":"'Population 2016'!AO70*'Prevalence Rates'!AO70","v":0},{"$f":"'Population 2016'!AP70*'Prevalence Rates'!AP70","v":122.52566610046105},{"$f":"'Population 2016'!AQ70*'Prevalence Rates'!AQ70","v":789.97688910458601},{"$f":"'Population 2016'!AR70*'Prevalence Rates'!AR70","v":19018.216},{"$f":"'Population 2016'!AS70*'Prevalence Rates'!AS70","v":108.67871875758311},{"$f":"'Population 2016'!AT70*'Prevalence Rates'!AT70","v":0},{"$f":"'Population 2016'!AU70*'Prevalence Rates'!AU70","v":0},{"$f":"'Population 2016'!AV70*'Prevalence Rates'!AV70","v":334.11208929871384},{"$f":"'Population 2016'!AW70*'Prevalence Rates'!AW70","v":1093.2986119873815},{"$f":"'Population 2016'!AX70*'Prevalence Rates'!AX70","v":209.33264741567578},{"$f":"'Population 2016'!AY70*'Prevalence Rates'!AY70","v":2391.6989565639401},{"$f":"'Population 2016'!AZ70*'Prevalence Rates'!AZ70","v":1083.6153962630428},{"$f":"'Population 2016'!BA70*'Prevalence Rates'!BA70","v":652.68602766318861},{"$f":"'Population 2016'!BB70*'Prevalence Rates'!BB70","v":532.07008493084197},{"$f":"'Population 2016'!BC70*'Prevalence Rates'!BC70","v":0},68]
[null,"Female 55-59",{"$f":"'Population 2016'!C71*'Prevalence Rates'!C71","v":273.2476656151419},{"$f":"'Population 2016'!D71*'Prevalence Rates'!D71","v":386.79543800048526},{"$f":"'Population 2016'!E71*'Prevalence Rates'!E71","v":94.264120359136115},{"$f":"'Population 2016'!F71*'Prevalence Rates'!F71","v":159.75457413249211},{"$f":"'Population 2016'!G71*'Prevalence Rates'!G71","v":129.31889589905359},{"$f":"'Population 2016'!H71*'Prevalence Rates'!H71","v":2560.2765646687699},{"$f":"'Population 2016'!I71*'Prevalence Rates'!I71","v":119.25192586750788},{"$f":"'Population 2016'!J71*'Prevalence Rates'!J71","v":507.05025479252612},{"$f":"'Population 2016'!K71*'Prevalence Rates'!K71","v":276.74436544528021},{"$f":"'Population 2016'!L71*'Prevalence Rates'!L71","v":263.17561601553018},{"$f":"'Population 2016'!M71*'Prevalence Rates'!M71","v":263.02089784033001},{"$f":"'Population 2016'!N71*'Prevalence Rates'!N71","v":1063.927762678961},{"$f":"'Population 2016'!O71*'Prevalence Rates'!O71","v":855.74461538461526},{"$f":"'Population 2016'!P71*'Prevalence Rates'!P71","v":122.32981315214754},{"$f":"'Population 2016'!Q71*'Prevalence Rates'!Q71","v":76.687088085416164},{"$f":"'Population 2016'!R71*'Prevalence Rates'!R71","v":112.52034700315457},{"$f":"'Population 2016'!S71*'Prevalence Rates'!S71","v":3378.2034360592083},{"$f":"'Population 2016'!T71*'Prevalence Rates'!T71","v":991.51154088813405},{"$f":"'Population 2016'!U71*'Prevalence Rates'!U71","v":0},{"$f":"'Population 2016'!V71*'Prevalence Rates'!V71","v":505.93361320067936},{"$f":"'Population 2016'!W71*'Prevalence Rates'!W71","v":1443.7905256005822},{"$f":"'Population 2016'!X71*'Prevalence Rates'!X71","v":1443.0865809269594},{"$f":"'Population 2016'!Y71*'Prevalence Rates'!Y71","v":989.70937345304515},{"$f":"'Population 2016'!Z71*'Prevalence Rates'!Z71","v":6279.698762436301},{"$f":"'Population 2016'!AA71*'Prevalence Rates'!AA71","v":12213.445843241931},{"$f":"'Population 2016'!AB71*'Prevalence Rates'!AB71","v":412.40509487988351},{"$f":"'Population 2016'!AC71*'Prevalence Rates'!AC71","v":8727.6069354525571},{"$f":"'Population 2016'!AD71*'Prevalence Rates'!AD71","v":428.97542295559333},{"$f":"'Population 2016'!AE71*'Prevalence Rates'!AE71","v":320.02142198495505},{"$f":"'Population 2016'!AF71*'Prevalence Rates'!AF71","v":666.99333414219848},{"$f":"'Population 2016'!AG71*'Prevalence Rates'!AG71","v":320.02142198495505},{"$f":"'Population 2016'!AH71*'Prevalence Rates'!AH71","v":3518.7445799563211},{"$f":"'Population 2016'!AI71*'Prevalence Rates'!AI71","v":1830.0742654695459},{"$f":"'Population 2016'!AJ71*'Prevalence Rates'!AJ71","v":173.52552778451832},{"$f":"'Population 2016'!AK71*'Prevalence Rates'!AK71","v":14.52929143411793},{"$f":"'Population 2016'!AL71*'Prevalence Rates'!AL71","v":1343.1874496481437},{"$f":"'Population 2016'!AM71*'Prevalence Rates'!AM71","v":2266.1075539917497},{"$f":"'Population 2016'!AN71*'Prevalence Rates'!AN71","v":0},{"$f":"'Population 2016'!AO71*'Prevalence Rates'!AO71","v":0},{"$f":"'Population 2016'!AP71*'Prevalence Rates'!AP71","v":136.45907061392865},{"$f":"'Population 2016'!AQ71*'Prevalence Rates'!AQ71","v":899.11808298956532},{"$f":"'Population 2016'!AR71*'Prevalence Rates'!AR71","v":21068.103999999999},{"$f":"'Population 2016'!AS71*'Prevalence Rates'!AS71","v":119.25473186119874},{"$f":"'Population 2016'!AT71*'Prevalence Rates'!AT71","v":0},{"$f":"'Population 2016'!AU71*'Prevalence Rates'!AU71","v":0},{"$f":"'Population 2016'!AV71*'Prevalence Rates'!AV71","v":406.49783062363497},{"$f":"'Population 2016'!AW71*'Prevalence Rates'!AW71","v":1293.0450618781849},{"$f":"'Population 2016'!AX71*'Prevalence Rates'!AX71","v":240.64201892744478},{"$f":"'Population 2016'!AY71*'Prevalence Rates'!AY71","v":2639.0500169861675},{"$f":"'Population 2016'!AZ71*'Prevalence Rates'!AZ71","v":1206.4673496724095},{"$f":"'Population 2016'!BA71*'Prevalence Rates'!BA71","v":702.60355253579235},{"$f":"'Population 2016'!BB71*'Prevalence Rates'!BB71","v":590.79981315214752},{"$f":"'Population 2016'!BC71*'Prevalence Rates'!BC71","v":0},69]
[null,"Female 60-64",{"$f":"'Population 2016'!C72*'Prevalence Rates'!C72","v":222.23470031545736},{"$f":"'Population 2016'!D72*'Prevalence Rates'!D72","v":312.19917495753452},{"$f":"'Population 2016'!E72*'Prevalence Rates'!E72","v":74.107012860956075},{"$f":"'Population 2016'!F72*'Prevalence Rates'!F72","v":128.41809997573404},{"$f":"'Population 2016'!G72*'Prevalence Rates'!G72","v":115.98107255520502},{"$f":"'Population 2016'!H72*'Prevalence Rates'!H72","v":2318.1855018199467},{"$f":"'Population 2016'!I72*'Prevalence Rates'!I72","v":113.74799082746907},{"$f":"'Population 2016'!J72*'Prevalence Rates'!J72","v":388.03007522446012},{"$f":"'Population 2016'!K72*'Prevalence Rates'!K72","v":223.244858044164},{"$f":"'Population 2016'!L72*'Prevalence Rates'!L72","v":236.44684251395287},{"$f":"'Population 2016'!M72*'Prevalence Rates'!M72","v":236.30783790342153},{"$f":"'Population 2016'!N72*'Prevalence Rates'!N72","v":847.8273962630426},{"$f":"'Population 2016'!O72*'Prevalence Rates'!O72","v":776.78395292404741},{"$f":"'Population 2016'!P72*'Prevalence Rates'!P72","v":94.055469546226647},{"$f":"'Population 2016'!Q72*'Prevalence Rates'!Q72","v":54.296697403542829},{"$f":"'Population 2016'!R72*'Prevalence Rates'!R72","v":99.248716330987619},{"$f":"'Population 2016'!S72*'Prevalence Rates'!S72","v":2735.5560543557385},{"$f":"'Population 2016'!T72*'Prevalence Rates'!T72","v":741.59103615627282},{"$f":"'Population 2016'!U72*'Prevalence Rates'!U72","v":0},{"$f":"'Population 2016'!V72*'Prevalence Rates'!V72","v":428.65654695462257},{"$f":"'Population 2016'!W72*'Prevalence Rates'!W72","v":1231.2947818490657},{"$f":"'Population 2016'!X72*'Prevalence Rates'!X72","v":1230.6944430963356},{"$f":"'Population 2016'!Y72*'Prevalence Rates'!Y72","v":796.21840912399887},{"$f":"'Population 2016'!Z72*'Prevalence Rates'!Z72","v":4833.3888861926716},{"$f":"'Population 2016'!AA72*'Prevalence Rates'!AA72","v":9855.228308662945},{"$f":"'Population 2016'!AB72*'Prevalence Rates'!AB72","v":343.3857083232225},{"$f":"'Population 2016'!AC72*'Prevalence Rates'!AC72","v":6830.8144860470738},{"$f":"'Population 2016'!AD72*'Prevalence Rates'!AD72","v":395.30752778451836},{"$f":"'Population 2016'!AE72*'Prevalence Rates'!AE72","v":298.31454258675075},{"$f":"'Population 2016'!AF72*'Prevalence Rates'!AF72","v":550.28270322737194},{"$f":"'Population 2016'!AG72*'Prevalence Rates'!AG72","v":298.31454258675075},{"$f":"'Population 2016'!AH72*'Prevalence Rates'!AH72","v":3043.0768463965055},{"$f":"'Population 2016'!AI72*'Prevalence Rates'!AI72","v":1410.98140839602},{"$f":"'Population 2016'!AJ72*'Prevalence Rates'!AJ72","v":129.86426595486532},{"$f":"'Population 2016'!AK72*'Prevalence Rates'!AK72","v":23.373207959233191},{"$f":"'Population 2016'!AL72*'Prevalence Rates'!AL72","v":1206.882348944431},{"$f":"'Population 2016'!AM72*'Prevalence Rates'!AM72","v":1942.4685586022811},{"$f":"'Population 2016'!AN72*'Prevalence Rates'!AN72","v":0},{"$f":"'Population 2016'!AO72*'Prevalence Rates'!AO72","v":0},{"$f":"'Population 2016'!AP72*'Prevalence Rates'!AP72","v":124.16018442125697},{"$f":"'Population 2016'!AQ72*'Prevalence Rates'!AQ72","v":684.80923562242151},{"$f":"'Population 2016'!AR72*'Prevalence Rates'!AR72","v":17322.716},{"$f":"'Population 2016'!AS72*'Prevalence Rates'!AS72","v":113.7506673137588},{"$f":"'Population 2016'!AT72*'Prevalence Rates'!AT72","v":0},{"$f":"'Population 2016'!AU72*'Prevalence Rates'!AU72","v":0},{"$f":"'Population 2016'!AV72*'Prevalence Rates'!AV72","v":374.40589662703218},{"$f":"'Population 2016'!AW72*'Prevalence Rates'!AW72","v":1133.5135282698375},{"$f":"'Population 2016'!AX72*'Prevalence Rates'!AX72","v":174.11838388740594},{"$f":"'Population 2016'!AY72*'Prevalence Rates'!AY72","v":2197.4902159669978},{"$f":"'Population 2016'!AZ72*'Prevalence Rates'!AZ72","v":977.11578597427797},{"$f":"'Population 2016'!BA72*'Prevalence Rates'!BA72","v":600.03369085173506},{"$f":"'Population 2016'!BB72*'Prevalence Rates'!BB72","v":495.61187333171557},{"$f":"'Population 2016'!BC72*'Prevalence Rates'!BC72","v":0},70]
[null,"Female 65-69",{"$f":"'Population 2016'!C73*'Prevalence Rates'!C73","v":243.25552050473181},{"$f":"'Population 2016'!D73*'Prevalence Rates'!D73","v":342.44115505945155},{"$f":"'Population 2016'!E73*'Prevalence Rates'!E73","v":81.880126182965284},{"$f":"'Population 2016'!F73*'Prevalence Rates'!F73","v":135.63285610288764},{"$f":"'Population 2016'!G73*'Prevalence Rates'!G73","v":154.02208201892742},{"$f":"'Population 2016'!H73*'Prevalence Rates'!H73","v":2616.7593302596456},{"$f":"'Population 2016'!I73*'Prevalence Rates'!I73","v":139.32576801747149},{"$f":"'Population 2016'!J73*'Prevalence Rates'!J73","v":490.30235379762195},{"$f":"'Population 2016'!K73*'Prevalence Rates'!K73","v":290.03542829410333},{"$f":"'Population 2016'!L73*'Prevalence Rates'!L73","v":241.08713419073035},{"$f":"'Population 2016'!M73*'Prevalence Rates'!M73","v":240.94540160155302},{"$f":"'Population 2016'!N73*'Prevalence Rates'!N73","v":998.55059451589398},{"$f":"'Population 2016'!O73*'Prevalence Rates'!O73","v":893.84275661247239},{"$f":"'Population 2016'!P73*'Prevalence Rates'!P73","v":100.12836690123757},{"$f":"'Population 2016'!Q73*'Prevalence Rates'!Q73","v":67.39771900024266},{"$f":"'Population 2016'!R73*'Prevalence Rates'!R73","v":117.83814608104829},{"$f":"'Population 2016'!S73*'Prevalence Rates'!S73","v":3219.9762193642318},{"$f":"'Population 2016'!T73*'Prevalence Rates'!T73","v":847.03567095365213},{"$f":"'Population 2016'!U73*'Prevalence Rates'!U73","v":0},{"$f":"'Population 2016'!V73*'Prevalence Rates'!V73","v":509.9009949041494},{"$f":"'Population 2016'!W73*'Prevalence Rates'!W73","v":1461.8289735501091},{"$f":"'Population 2016'!X73*'Prevalence Rates'!X73","v":1461.1162339238047},{"$f":"'Population 2016'!Y73*'Prevalence Rates'!Y73","v":976.37311332200898},{"$f":"'Population 2016'!Z73*'Prevalence Rates'!Z73","v":5119.4952681388004},{"$f":"'Population 2016'!AA73*'Prevalence Rates'!AA73","v":10813.639407910699},{"$f":"'Population 2016'!AB73*'Prevalence Rates'!AB73","v":375.04576559087599},{"$f":"'Population 2016'!AC73*'Prevalence Rates'!AC73","v":7401.6194370298444},{"$f":"'Population 2016'!AD73*'Prevalence Rates'!AD73","v":431.68988109682118},{"$f":"'Population 2016'!AE73*'Prevalence Rates'!AE73","v":296.50206260616352},{"$f":"'Population 2016'!AF73*'Prevalence Rates'!AF73","v":651.44503761223007},{"$f":"'Population 2016'!AG73*'Prevalence Rates'!AG73","v":296.50206260616352},{"$f":"'Population 2016'!AH73*'Prevalence Rates'!AH73","v":3429.0131036156272},{"$f":"'Population 2016'!AI73*'Prevalence Rates'!AI73","v":1644.8590148022322},{"$f":"'Population 2016'!AJ73*'Prevalence Rates'!AJ73","v":172.45886920650327},{"$f":"'Population 2016'!AK73*'Prevalence Rates'!AK73","v":23.862169376364957},{"$f":"'Population 2016'!AL73*'Prevalence Rates'!AL73","v":1395.5428294103372},{"$f":"'Population 2016'!AM73*'Prevalence Rates'!AM73","v":2173.859257461781},{"$f":"'Population 2016'!AN73*'Prevalence Rates'!AN73","v":0},{"$f":"'Population 2016'!AO73*'Prevalence Rates'!AO73","v":0},{"$f":"'Population 2016'!AP73*'Prevalence Rates'!AP73","v":125.82334384858044},{"$f":"'Population 2016'!AQ73*'Prevalence Rates'!AQ73","v":778.83960203833999},{"$f":"'Population 2016'!AR73*'Prevalence Rates'!AR73","v":19433.399999999998},{"$f":"'Population 2016'!AS73*'Prevalence Rates'!AS73","v":139.32904634797376},{"$f":"'Population 2016'!AT73*'Prevalence Rates'!AT73","v":0},{"$f":"'Population 2016'!AU73*'Prevalence Rates'!AU73","v":0},{"$f":"'Population 2016'!AV73*'Prevalence Rates'!AV73","v":378.82552778451821},{"$f":"'Population 2016'!AW73*'Prevalence Rates'!AW73","v":1290.4680902693519},{"$f":"'Population 2016'!AX73*'Prevalence Rates'!AX73","v":213.04731861198735},{"$f":"'Population 2016'!AY73*'Prevalence Rates'!AY73","v":2564.9318126668277},{"$f":"'Population 2016'!AZ73*'Prevalence Rates'!AZ73","v":1117.1952438728463},{"$f":"'Population 2016'!BA73*'Prevalence Rates'!BA73","v":645.0735258432419},{"$f":"'Population 2016'!BB73*'Prevalence Rates'!BB73","v":572.30478039310844},{"$f":"'Population 2016'!BC73*'Prevalence Rates'!BC73","v":0},71]
[null,"Female 70-74",{"$f":"'Population 2016'!C74*'Prevalence Rates'!C74","v":171.11356466876967},{"$f":"'Population 2016'!D74*'Prevalence Rates'!D74","v":239.38267410822613},{"$f":"'Population 2016'!E74*'Prevalence Rates'!E74","v":55.986411065275412},{"$f":"'Population 2016'!F74*'Prevalence Rates'!F74","v":116.77481193884978},{"$f":"'Population 2016'!G74*'Prevalence Rates'!G74","v":113.63406940063089},{"$f":"'Population 2016'!H74*'Prevalence Rates'!H74","v":2048.3015772870663},{"$f":"'Population 2016'!I74*'Prevalence Rates'!I74","v":107.56238049017229},{"$f":"'Population 2016'!J74*'Prevalence Rates'!J74","v":378.47900994904148},{"$f":"'Population 2016'!K74*'Prevalence Rates'!K74","v":217.52657122057749},{"$f":"'Population 2016'!L74*'Prevalence Rates'!L74","v":251.60435816549378},{"$f":"'Population 2016'!M74*'Prevalence Rates'!M74","v":251.45644261101674},{"$f":"'Population 2016'!N74*'Prevalence Rates'!N74","v":720.88279543800024},{"$f":"'Population 2016'!O74*'Prevalence Rates'!O74","v":690.69667556418324},{"$f":"'Population 2016'!P74*'Prevalence Rates'!P74","v":69.476826013103619},{"$f":"'Population 2016'!Q74*'Prevalence Rates'!Q74","v":57.486289735501089},{"$f":"'Population 2016'!R74*'Prevalence Rates'!R74","v":84.462023780635775},{"$f":"'Population 2016'!S74*'Prevalence Rates'!S74","v":2482.3518563455473},{"$f":"'Population 2016'!T74*'Prevalence Rates'!T74","v":616.12909487988361},{"$f":"'Population 2016'!U74*'Prevalence Rates'!U74","v":0},{"$f":"'Population 2016'!V74*'Prevalence Rates'!V74","v":368.78160640621201},{"$f":"'Population 2016'!W74*'Prevalence Rates'!W74","v":1158.7328803688424},{"$f":"'Population 2016'!X74*'Prevalence Rates'!X74","v":1158.1679204076679},{"$f":"'Population 2016'!Y74*'Prevalence Rates'!Y74","v":730.45552050473168},{"$f":"'Population 2016'!Z74*'Prevalence Rates'!Z74","v":4216.2387769958741},{"$f":"'Population 2016'!AA74*'Prevalence Rates'!AA74","v":8612.4154331472928},{"$f":"'Population 2016'!AB74*'Prevalence Rates'!AB74","v":256.53938364474641},{"$f":"'Population 2016'!AC74*'Prevalence Rates'!AC74","v":5907.9434360592068},{"$f":"'Population 2016'!AD74*'Prevalence Rates'!AD74","v":330.96224217422957},{"$f":"'Population 2016'!AE74*'Prevalence Rates'!AE74","v":232.07692307692304},{"$f":"'Population 2016'!AF74*'Prevalence Rates'!AF74","v":491.23319582625578},{"$f":"'Population 2016'!AG74*'Prevalence Rates'!AG74","v":232.07692307692304},{"$f":"'Population 2016'!AH74*'Prevalence Rates'!AH74","v":2718.4905120116478},{"$f":"'Population 2016'!AI74*'Prevalence Rates'!AI74","v":1239.2945401601551},{"$f":"'Population 2016'!AJ74*'Prevalence Rates'!AJ74","v":130.83086629458867},{"$f":"'Population 2016'!AK74*'Prevalence Rates'!AK74","v":10.439699102159668},{"$f":"'Population 2016'!AL74*'Prevalence Rates'!AL74","v":1087.4884736714389},{"$f":"'Population 2016'!AM74*'Prevalence Rates'!AM74","v":1782.0851735015772},{"$f":"'Population 2016'!AN74*'Prevalence Rates'!AN74","v":0},{"$f":"'Population 2016'!AO74*'Prevalence Rates'!AO74","v":0},{"$f":"'Population 2016'!AP74*'Prevalence Rates'!AP74","v":104.39189517107498},{"$f":"'Population 2016'!AQ74*'Prevalence Rates'!AQ74","v":616.39407910701266},{"$f":"'Population 2016'!AR74*'Prevalence Rates'!AR74","v":15250.199999999999},{"$f":"'Population 2016'!AS74*'Prevalence Rates'!AS74","v":107.56491142926473},{"$f":"'Population 2016'!AT74*'Prevalence Rates'!AT74","v":0},{"$f":"'Population 2016'!AU74*'Prevalence Rates'!AU74","v":0},{"$f":"'Population 2016'!AV74*'Prevalence Rates'!AV74","v":308.67265226886673},{"$f":"'Population 2016'!AW74*'Prevalence Rates'!AW74","v":971.32006794467361},{"$f":"'Population 2016'!AX74*'Prevalence Rates'!AX74","v":170.02814850764375},{"$f":"'Population 2016'!AY74*'Prevalence Rates'!AY74","v":1982.8531909730641},{"$f":"'Population 2016'!AZ74*'Prevalence Rates'!AZ74","v":836.57898568308656},{"$f":"'Population 2016'!BA74*'Prevalence Rates'!BA74","v":459.42149963601065},{"$f":"'Population 2016'!BB74*'Prevalence Rates'!BB74","v":451.70128609560783},{"$f":"'Population 2016'!BC74*'Prevalence Rates'!BC74","v":0},72]
[null,"Female 75-79",{"$f":"'Population 2016'!C75*'Prevalence Rates'!C75","v":175.92586750788638},{"$f":"'Population 2016'!D75*'Prevalence Rates'!D75","v":235.23610774083957},{"$f":"'Population 2016'!E75*'Prevalence Rates'!E75","v":45.888861926716821},{"$f":"'Population 2016'!F75*'Prevalence Rates'!F75","v":146.20165008493086},{"$f":"'Population 2016'!G75*'Prevalence Rates'!G75","v":119.69716088328074},{"$f":"'Population 2016'!H75*'Prevalence Rates'!H75","v":2145.8397476340692},{"$f":"'Population 2016'!I75*'Prevalence Rates'!I75","v":91.165047318611983},{"$f":"'Population 2016'!J75*'Prevalence Rates'!J75","v":358.61295801989809},{"$f":"'Population 2016'!K75*'Prevalence Rates'!K75","v":201.65481679204072},{"$f":"'Population 2016'!L75*'Prevalence Rates'!L75","v":185.66945401601549},{"$f":"'Population 2016'!M75*'Prevalence Rates'!M75","v":185.56030089784034},{"$f":"'Population 2016'!N75*'Prevalence Rates'!N75","v":766.62327105071563},{"$f":"'Population 2016'!O75*'Prevalence Rates'!O75","v":714.88073283183678},{"$f":"'Population 2016'!P75*'Prevalence Rates'!P75","v":71.131036156272742},{"$f":"'Population 2016'!Q75*'Prevalence Rates'!Q75","v":60.176534821645227},{"$f":"'Population 2016'!R75*'Prevalence Rates'!R75","v":90.154452802717785},{"$f":"'Population 2016'!S75*'Prevalence Rates'!S75","v":2480.0570249939333},{"$f":"'Population 2016'!T75*'Prevalence Rates'!T75","v":662.73186119873822},{"$f":"'Population 2016'!U75*'Prevalence Rates'!U75","v":0},{"$f":"'Population 2016'!V75*'Prevalence Rates'!V75","v":480.94200436787179},{"$f":"'Population 2016'!W75*'Prevalence Rates'!W75","v":1154.9006309148265},{"$f":"'Population 2016'!X75*'Prevalence Rates'!X75","v":1154.3375394321765},{"$f":"'Population 2016'!Y75*'Prevalence Rates'!Y75","v":815.20795923319565},{"$f":"'Population 2016'!Z75*'Prevalence Rates'!Z75","v":4853.1060422227611},{"$f":"'Population 2016'!AA75*'Prevalence Rates'!AA75","v":9498.4251395292395},{"$f":"'Population 2016'!AB75*'Prevalence Rates'!AB75","v":251.00844455229313},{"$f":"'Population 2016'!AC75*'Prevalence Rates'!AC75","v":6778.3985319097292},{"$f":"'Population 2016'!AD75*'Prevalence Rates'!AD75","v":340.31062848823098},{"$f":"'Population 2016'!AE75*'Prevalence Rates'!AE75","v":235.58056297015281},{"$f":"'Population 2016'!AF75*'Prevalence Rates'!AF75","v":568.48932297985925},{"$f":"'Population 2016'!AG75*'Prevalence Rates'!AG75","v":235.58056297015281},{"$f":"'Population 2016'!AH75*'Prevalence Rates'!AH75","v":2745.278888619267},{"$f":"'Population 2016'!AI75*'Prevalence Rates'!AI75","v":1254.8103858286822},{"$f":"'Population 2016'!AJ75*'Prevalence Rates'!AJ75","v":104.30599369085172},{"$f":"'Population 2016'!AK75*'Prevalence Rates'!AK75","v":9.0548410579956311},{"$f":"'Population 2016'!AL75*'Prevalence Rates'!AL75","v":1145.7612230041252},{"$f":"'Population 2016'!AM75*'Prevalence Rates'!AM75","v":1789.2015287551567},{"$f":"'Population 2016'!AN75*'Prevalence Rates'!AN75","v":0},{"$f":"'Population 2016'!AO75*'Prevalence Rates'!AO75","v":0},{"$f":"'Population 2016'!AP75*'Prevalence Rates'!AP75","v":79.750667313758797},{"$f":"'Population 2016'!AQ75*'Prevalence Rates'!AQ75","v":746.91919437029833},{"$f":"'Population 2016'!AR75*'Prevalence Rates'!AR75","v":16267.3},{"$f":"'Population 2016'!AS75*'Prevalence Rates'!AS75","v":91.16719242902208},{"$f":"'Population 2016'!AT75*'Prevalence Rates'!AT75","v":0},{"$f":"'Population 2016'!AU75*'Prevalence Rates'!AU75","v":0},{"$f":"'Population 2016'!AV75*'Prevalence Rates'!AV75","v":325.4091239990293},{"$f":"'Population 2016'!AW75*'Prevalence Rates'!AW75","v":990.10458626546949},{"$f":"'Population 2016'!AX75*'Prevalence Rates'!AX75","v":165.00436787187576},{"$f":"'Population 2016'!AY75*'Prevalence Rates'!AY75","v":2023.5610288764858},{"$f":"'Population 2016'!AZ75*'Prevalence Rates'!AZ75","v":879.86653724824077},{"$f":"'Population 2016'!BA75*'Prevalence Rates'!BA75","v":481.90730405241447},{"$f":"'Population 2016'!BB75*'Prevalence Rates'!BB75","v":435.70286338267414},{"$f":"'Population 2016'!BC75*'Prevalence Rates'!BC75","v":0},73]
[null,"Female 80-84",{"$f":"'Population 2016'!C76*'Prevalence Rates'!C76","v":136.83123028391165},{"$f":"'Population 2016'!D76*'Prevalence Rates'!D76","v":189.2977432661975},{"$f":"'Population 2016'!E76*'Prevalence Rates'!E76","v":42.489686969182237},{"$f":"'Population 2016'!F76*'Prevalence Rates'!F76","v":85.43108468818248},{"$f":"'Population 2016'!G76*'Prevalence Rates'!G76","v":97.253943217665608},{"$f":"'Population 2016'!H76*'Prevalence Rates'!H76","v":1568.1136617325892},{"$f":"'Population 2016'!I76*'Prevalence Rates'!I76","v":71.880133462751758},{"$f":"'Population 2016'!J76*'Prevalence Rates'!J76","v":270.70055811696193},{"$f":"'Population 2016'!K76*'Prevalence Rates'!K76","v":132.54307206988591},{"$f":"'Population 2016'!L76*'Prevalence Rates'!L76","v":148.33908760009703},{"$f":"'Population 2016'!M76*'Prevalence Rates'!M76","v":148.25188061150206},{"$f":"'Population 2016'!N76*'Prevalence Rates'!N76","v":613.11586993448168},{"$f":"'Population 2016'!O76*'Prevalence Rates'!O76","v":541.72288279543795},{"$f":"'Population 2016'!P76*'Prevalence Rates'!P76","v":46.317884008735739},{"$f":"'Population 2016'!Q76*'Prevalence Rates'!Q76","v":33.69885950012133},{"$f":"'Population 2016'!R76*'Prevalence Rates'!R76","v":77.747876728949279},{"$f":"'Population 2016'!S76*'Prevalence Rates'!S76","v":1882.1363746663428},{"$f":"'Population 2016'!T76*'Prevalence Rates'!T76","v":524.94976947342877},{"$f":"'Population 2016'!U76*'Prevalence Rates'!U76","v":0},{"$f":"'Population 2016'!V76*'Prevalence Rates'!V76","v":343.66525115263278},{"$f":"'Population 2016'!W76*'Prevalence Rates'!W76","v":834.23591361320064},{"$f":"'Population 2016'!X76*'Prevalence Rates'!X76","v":833.82916767774805},{"$f":"'Population 2016'!Y76*'Prevalence Rates'!Y76","v":597.22843969910207},{"$f":"'Population 2016'!Z76*'Prevalence Rates'!Z76","v":3841.68648386314},{"$f":"'Population 2016'!AA76*'Prevalence Rates'!AA76","v":7444.9728221305504},{"$f":"'Population 2016'!AB76*'Prevalence Rates'!AB76","v":203.58665372482406},{"$f":"'Population 2016'!AC76*'Prevalence Rates'!AC76","v":5373.5444794952673},{"$f":"'Population 2016'!AD76*'Prevalence Rates'!AD76","v":262.92948313516138},{"$f":"'Population 2016'!AE76*'Prevalence Rates'!AE76","v":176.9076680417374},{"$f":"'Population 2016'!AF76*'Prevalence Rates'!AF76","v":452.67192429022083},{"$f":"'Population 2016'!AG76*'Prevalence Rates'!AG76","v":176.9076680417374},{"$f":"'Population 2016'!AH76*'Prevalence Rates'!AH76","v":2093.4788400873572},{"$f":"'Population 2016'!AI76*'Prevalence Rates'!AI76","v":987.99165251152624},{"$f":"'Population 2016'!AJ76*'Prevalence Rates'!AJ76","v":109.12011647658335},{"$f":"'Population 2016'!AK76*'Prevalence Rates'!AK76","v":9.0548410579956311},{"$f":"'Population 2016'!AL76*'Prevalence Rates'!AL76","v":806.05823829167684},{"$f":"'Population 2016'!AM76*'Prevalence Rates'!AM76","v":1347.1314001455958},{"$f":"'Population 2016'!AN76*'Prevalence Rates'!AN76","v":0},{"$f":"'Population 2016'!AO76*'Prevalence Rates'!AO76","v":0},{"$f":"'Population 2016'!AP76*'Prevalence Rates'!AP76","v":91.503397233681142},{"$f":"'Population 2016'!AQ76*'Prevalence Rates'!AQ76","v":613.59645717058959},{"$f":"'Population 2016'!AR76*'Prevalence Rates'!AR76","v":12559.6},{"$f":"'Population 2016'!AS76*'Prevalence Rates'!AS76","v":71.881824799805869},{"$f":"'Population 2016'!AT76*'Prevalence Rates'!AT76","v":0},{"$f":"'Population 2016'!AU76*'Prevalence Rates'!AU76","v":0},{"$f":"'Population 2016'!AV76*'Prevalence Rates'!AV76","v":247.89019655423436},{"$f":"'Population 2016'!AW76*'Prevalence Rates'!AW76","v":770.2596457170589},{"$f":"'Population 2016'!AX76*'Prevalence Rates'!AX76","v":141.78767289492842},{"$f":"'Population 2016'!AY76*'Prevalence Rates'!AY76","v":1529.3688425139526},{"$f":"'Population 2016'!AZ76*'Prevalence Rates'!AZ76","v":701.49359378791553},{"$f":"'Population 2016'!BA76*'Prevalence Rates'!BA76","v":365.92283426352827},{"$f":"'Population 2016'!BB76*'Prevalence Rates'!BB76","v":323.82091725309391},{"$f":"'Population 2016'!BC76*'Prevalence Rates'!BC76","v":0},74]
[null,"Female 85-89",{"$f":"'Population 2016'!C77*'Prevalence Rates'!C77","v":104.97634069400628},{"$f":"'Population 2016'!D77*'Prevalence Rates'!D77","v":142.56733802475125},{"$f":"'Population 2016'!E77*'Prevalence Rates'!E77","v":29.742780878427567},{"$f":"'Population 2016'!F77*'Prevalence Rates'!F77","v":52.843969910215968},{"$f":"'Population 2016'!G77*'Prevalence Rates'!G77","v":71.485804416403781},{"$f":"'Population 2016'!H77*'Prevalence Rates'!H77","v":963.18943217665617},{"$f":"'Population 2016'!I77*'Prevalence Rates'!I77","v":51.718632613443333},{"$f":"'Population 2016'!J77*'Prevalence Rates'!J77","v":143.61926716816308},{"$f":"'Population 2016'!K77*'Prevalence Rates'!K77","v":83.312788158214005},{"$f":"'Population 2016'!L77*'Prevalence Rates'!L77","v":99.22018442125696},{"$f":"'Population 2016'!M77*'Prevalence Rates'!M77","v":99.161853918951721},{"$f":"'Population 2016'!N77*'Prevalence Rates'!N77","v":403.8706624605677},{"$f":"'Population 2016'!O77*'Prevalence Rates'!O77","v":368.56503275903901},{"$f":"'Population 2016'!P77*'Prevalence Rates'!P77","v":27.294467362290703},{"$f":"'Population 2016'!Q77*'Prevalence Rates'!Q77","v":16.849429750060665},{"$f":"'Population 2016'!R77*'Prevalence Rates'!R77","v":36.39262314972094},{"$f":"'Population 2016'!S77*'Prevalence Rates'!S77","v":1133.7403542829409},{"$f":"'Population 2016'!T77*'Prevalence Rates'!T77","v":350.65542344091244},{"$f":"'Population 2016'!U77*'Prevalence Rates'!U77","v":0},{"$f":"'Population 2016'!V77*'Prevalence Rates'!V77","v":205.44176170832318},{"$f":"'Population 2016'!W77*'Prevalence Rates'!W77","v":511.87903421499635},{"$f":"'Population 2016'!X77*'Prevalence Rates'!X77","v":511.62945886920647},{"$f":"'Population 2016'!Y77*'Prevalence Rates'!Y77","v":338.48852220334862},{"$f":"'Population 2016'!Z77*'Prevalence Rates'!Z77","v":2239.1652511526327},{"$f":"'Population 2016'!AA77*'Prevalence Rates'!AA77","v":4380.1710749818003},{"$f":"'Population 2016'!AB77*'Prevalence Rates'!AB77","v":153.71201164765833},{"$f":"'Population 2016'!AC77*'Prevalence Rates'!AC77","v":3186.5332564911423},{"$f":"'Population 2016'!AD77*'Prevalence Rates'!AD77","v":173.06750788643532},{"$f":"'Population 2016'!AE77*'Prevalence Rates'!AE77","v":108.45595729191942},{"$f":"'Population 2016'!AF77*'Prevalence Rates'!AF77","v":273.26850279058482},{"$f":"'Population 2016'!AG77*'Prevalence Rates'!AG77","v":108.45595729191942},{"$f":"'Population 2016'!AH77*'Prevalence Rates'!AH77","v":1207.5453530696432},{"$f":"'Population 2016'!AI77*'Prevalence Rates'!AI77","v":579.37782091725308},{"$f":"'Population 2016'!AJ77*'Prevalence Rates'!AJ77","v":57.76947342877942},{"$f":"'Population 2016'!AK77*'Prevalence Rates'!AK77","v":7.2438728463965045},{"$f":"'Population 2016'!AL77*'Prevalence Rates'!AL77","v":444.75564183450621},{"$f":"'Population 2016'!AM77*'Prevalence Rates'!AM77","v":813.19073040524154},{"$f":"'Population 2016'!AN77*'Prevalence Rates'!AN77","v":0},{"$f":"'Population 2016'!AO77*'Prevalence Rates'!AO77","v":0},{"$f":"'Population 2016'!AP77*'Prevalence Rates'!AP77","v":43.652996845425868},{"$f":"'Population 2016'!AQ77*'Prevalence Rates'!AQ77","v":353.18830380975487},{"$f":"'Population 2016'!AR77*'Prevalence Rates'!AR77","v":7538.65},{"$f":"'Population 2016'!AS77*'Prevalence Rates'!AS77","v":51.719849551079832},{"$f":"'Population 2016'!AT77*'Prevalence Rates'!AT77","v":0},{"$f":"'Population 2016'!AU77*'Prevalence Rates'!AU77","v":0},{"$f":"'Population 2016'!AV77*'Prevalence Rates'!AV77","v":164.40827469060903},{"$f":"'Population 2016'!AW77*'Prevalence Rates'!AW77","v":412.40985197767532},{"$f":"'Population 2016'!AX77*'Prevalence Rates'!AX77","v":63.845911186605193},{"$f":"'Population 2016'!AY77*'Prevalence Rates'!AY77","v":951.44309633584055},{"$f":"'Population 2016'!AZ77*'Prevalence Rates'!AZ77","v":443.13278330502305},{"$f":"'Population 2016'!BA77*'Prevalence Rates'!BA77","v":266.27420528997817},{"$f":"'Population 2016'!BB77*'Prevalence Rates'!BB77","v":143.71827226401359},{"$f":"'Population 2016'!BC77*'Prevalence Rates'!BC77","v":0},75]
[null,"Female 90+",{"$f":"'Population 2016'!C78*'Prevalence Rates'!C78","v":51.402208201892734},{"$f":"'Population 2016'!D78*'Prevalence Rates'!D78","v":70.491628245571462},{"$f":"'Population 2016'!E78*'Prevalence Rates'!E78","v":15.296287308905606},{"$f":"'Population 2016'!F78*'Prevalence Rates'!F78","v":32.587114777966512},{"$f":"'Population 2016'!G78*'Prevalence Rates'!G78","v":45.717665615141954},{"$f":"'Population 2016'!H78*'Prevalence Rates'!H78","v":532.70846881824798},{"$f":"'Population 2016'!I78*'Prevalence Rates'!I78","v":21.03808784275661},{"$f":"'Population 2016'!J78*'Prevalence Rates'!J78","v":87.041980101917019},{"$f":"'Population 2016'!K78*'Prevalence Rates'!K78","v":53.017228827954369},{"$f":"'Population 2016'!L78*'Prevalence Rates'!L78","v":39.295122543072061},{"$f":"'Population 2016'!M78*'Prevalence Rates'!M78","v":39.272021354040284},{"$f":"'Population 2016'!N78*'Prevalence Rates'!N78","v":218.38255277845175},{"$f":"'Population 2016'!O78*'Prevalence Rates'!O78","v":196.37454501334625},{"$f":"'Population 2016'!P78*'Prevalence Rates'!P78","v":4.1355253579228339},{"$f":"'Population 2016'!Q78*'Prevalence Rates'!Q78","v":4.8141227857316178},{"$f":"'Population 2016'!R78*'Prevalence Rates'!R78","v":21.504731861198739},{"$f":"'Population 2016'!S78*'Prevalence Rates'!S78","v":648.07910701286085},{"$f":"'Population 2016'!T78*'Prevalence Rates'!T78","v":186.69473428779423},{"$f":"'Population 2016'!U78*'Prevalence Rates'!U78","v":0},{"$f":"'Population 2016'!V78*'Prevalence Rates'!V78","v":98.460567823343823},{"$f":"'Population 2016'!W78*'Prevalence Rates'!W78","v":297.82052899781604},{"$f":"'Population 2016'!X78*'Prevalence Rates'!X78","v":297.67532152390197},{"$f":"'Population 2016'!Y78*'Prevalence Rates'!Y78","v":180.76350400388253},{"$f":"'Population 2016'!Z78*'Prevalence Rates'!Z78","v":1206.8721184178596},{"$f":"'Population 2016'!AA78*'Prevalence Rates'!AA78","v":2358.3508857073525},{"$f":"'Population 2016'!AB78*'Prevalence Rates'!AB78","v":74.403154574132486},{"$f":"'Population 2016'!AC78*'Prevalence Rates'!AC78","v":1699.7219606891526},{"$f":"'Population 2016'!AD78*'Prevalence Rates'!AD78","v":100.67869449162824},{"$f":"'Population 2016'!AE78*'Prevalence Rates'!AE78","v":58.672894928415424},{"$f":"'Population 2016'!AF78*'Prevalence Rates'!AF78","v":137.0127396263043},{"$f":"'Population 2016'!AG78*'Prevalence Rates'!AG78","v":58.672894928415424},{"$f":"'Population 2016'!AH78*'Prevalence Rates'!AH78","v":665.52215481679207},{"$f":"'Population 2016'!AI78*'Prevalence Rates'!AI78","v":333.9045862654695},{"$f":"'Population 2016'!AJ78*'Prevalence Rates'!AJ78","v":30.489444309633583},{"$f":"'Population 2016'!AK78*'Prevalence Rates'!AK78","v":1.8109682115991261},{"$f":"'Population 2016'!AL78*'Prevalence Rates'!AL78","v":252.32273719970883},{"$f":"'Population 2016'!AM78*'Prevalence Rates'!AM78","v":422.05872361077411},{"$f":"'Population 2016'!AN78*'Prevalence Rates'!AN78","v":0},{"$f":"'Population 2016'!AO78*'Prevalence Rates'!AO78","v":0},{"$f":"'Population 2016'!AP78*'Prevalence Rates'!AP78","v":22.665979131278817},{"$f":"'Population 2016'!AQ78*'Prevalence Rates'!AQ78","v":164.50934239262313},{"$f":"'Population 2016'!AR78*'Prevalence Rates'!AR78","v":4101.25},{"$f":"'Population 2016'!AS78*'Prevalence Rates'!AS78","v":21.038582868235864},{"$f":"'Population 2016'!AT78*'Prevalence Rates'!AT78","v":0},{"$f":"'Population 2016'!AU78*'Prevalence Rates'!AU78","v":0},{"$f":"'Population 2016'!AV78*'Prevalence Rates'!AV78","v":92.000485319097294},{"$f":"'Population 2016'!AW78*'Prevalence Rates'!AW78","v":250.33438485804416},{"$f":"'Population 2016'!AX78*'Prevalence Rates'!AX78","v":36.483377820917255},{"$f":"'Population 2016'!AY78*'Prevalence Rates'!AY78","v":537.70080077651039},{"$f":"'Population 2016'!AZ78*'Prevalence Rates'!AZ78","v":242.36323707837903},{"$f":"'Population 2016'!BA78*'Prevalence Rates'!BA78","v":173.9767046833293},{"$f":"'Population 2016'!BB78*'Prevalence Rates'!BB78","v":111.8819461295802},{"$f":"'Population 2016'!BC78*'Prevalence Rates'!BC78","v":0},76]
[null,"Male 0-4",{"$f":"'Population 2016'!C79*'Prevalence Rates'!C79","v":0},{"$f":"'Population 2016'!D79*'Prevalence Rates'!D79","v":0},{"$f":"'Population 2016'!E79*'Prevalence Rates'!E79","v":0},{"$f":"'Population 2016'!F79*'Prevalence Rates'!F79","v":0},{"$f":"'Population 2016'!G79*'Prevalence Rates'!G79","v":0},{"$f":"'Population 2016'!H79*'Prevalence Rates'!H79","v":0},{"$f":"'Population 2016'!I79*'Prevalence Rates'!I79","v":0},{"$f":"'Population 2016'!J79*'Prevalence Rates'!J79","v":0},{"$f":"'Population 2016'!K79*'Prevalence Rates'!K79","v":0},{"$f":"'Population 2016'!L79*'Prevalence Rates'!L79","v":0},{"$f":"'Population 2016'!M79*'Prevalence Rates'!M79","v":0},{"$f":"'Population 2016'!N79*'Prevalence Rates'!N79","v":0},{"$f":"'Population 2016'!O79*'Prevalence Rates'!O79","v":0},{"$f":"'Population 2016'!P79*'Prevalence Rates'!P79","v":0},{"$f":"'Population 2016'!Q79*'Prevalence Rates'!Q79","v":0},{"$f":"'Population 2016'!R79*'Prevalence Rates'!R79","v":0},{"$f":"'Population 2016'!S79*'Prevalence Rates'!S79","v":0},{"$f":"'Population 2016'!T79*'Prevalence Rates'!T79","v":0},{"$f":"'Population 2016'!U79*'Prevalence Rates'!U79","v":0},{"$f":"'Population 2016'!V79*'Prevalence Rates'!V79","v":0},{"$f":"'Population 2016'!W79*'Prevalence Rates'!W79","v":0},{"$f":"'Population 2016'!X79*'Prevalence Rates'!X79","v":0},{"$f":"'Population 2016'!Y79*'Prevalence Rates'!Y79","v":0},{"$f":"'Population 2016'!Z79*'Prevalence Rates'!Z79","v":0},{"$f":"'Population 2016'!AA79*'Prevalence Rates'!AA79","v":0},{"$f":"'Population 2016'!AB79*'Prevalence Rates'!AB79","v":0},{"$f":"'Population 2016'!AC79*'Prevalence Rates'!AC79","v":0},{"$f":"'Population 2016'!AD79*'Prevalence Rates'!AD79","v":0},{"$f":"'Population 2016'!AE79*'Prevalence Rates'!AE79","v":0},{"$f":"'Population 2016'!AF79*'Prevalence Rates'!AF79","v":0},{"$f":"'Population 2016'!AG79*'Prevalence Rates'!AG79","v":0},{"$f":"'Population 2016'!AH79*'Prevalence Rates'!AH79","v":0},{"$f":"'Population 2016'!AI79*'Prevalence Rates'!AI79","v":0},{"$f":"'Population 2016'!AJ79*'Prevalence Rates'!AJ79","v":0},{"$f":"'Population 2016'!AK79*'Prevalence Rates'!AK79","v":0},{"$f":"'Population 2016'!AL79*'Prevalence Rates'!AL79","v":0},{"$f":"'Population 2016'!AM79*'Prevalence Rates'!AM79","v":0},{"$f":"'Population 2016'!AN79*'Prevalence Rates'!AN79","v":0},{"$f":"'Population 2016'!AO79*'Prevalence Rates'!AO79","v":0},{"$f":"'Population 2016'!AP79*'Prevalence Rates'!AP79","v":0},{"$f":"'Population 2016'!AQ79*'Prevalence Rates'!AQ79","v":0},{"$f":"'Population 2016'!AR79*'Prevalence Rates'!AR79","v":0},{"$f":"'Population 2016'!AS79*'Prevalence Rates'!AS79","v":0},{"$f":"'Population 2016'!AT79*'Prevalence Rates'!AT79","v":0},{"$f":"'Population 2016'!AU79*'Prevalence Rates'!AU79","v":0},{"$f":"'Population 2016'!AV79*'Prevalence Rates'!AV79","v":0},{"$f":"'Population 2016'!AW79*'Prevalence Rates'!AW79","v":0},{"$f":"'Population 2016'!AX79*'Prevalence Rates'!AX79","v":0},{"$f":"'Population 2016'!AY79*'Prevalence Rates'!AY79","v":0},{"$f":"'Population 2016'!AZ79*'Prevalence Rates'!AZ79","v":0},{"$f":"'Population 2016'!BA79*'Prevalence Rates'!BA79","v":0},{"$f":"'Population 2016'!BB79*'Prevalence Rates'!BB79","v":0},{"$f":"'Population 2016'!BC79*'Prevalence Rates'!BC79","v":0},77]
[null,"Male 5-9",{"$f":"'Population 2016'!C80*'Prevalence Rates'!C80","v":0},{"$f":"'Population 2016'!D80*'Prevalence Rates'!D80","v":0},{"$f":"'Population 2016'!E80*'Prevalence Rates'!E80","v":0},{"$f":"'Population 2016'!F80*'Prevalence Rates'!F80","v":0},{"$f":"'Population 2016'!G80*'Prevalence Rates'!G80","v":0},{"$f":"'Population 2016'!H80*'Prevalence Rates'!H80","v":0},{"$f":"'Population 2016'!I80*'Prevalence Rates'!I80","v":0},{"$f":"'Population 2016'!J80*'Prevalence Rates'!J80","v":0},{"$f":"'Population 2016'!K80*'Prevalence Rates'!K80","v":0},{"$f":"'Population 2016'!L80*'Prevalence Rates'!L80","v":0},{"$f":"'Population 2016'!M80*'Prevalence Rates'!M80","v":0},{"$f":"'Population 2016'!N80*'Prevalence Rates'!N80","v":0},{"$f":"'Population 2016'!O80*'Prevalence Rates'!O80","v":0},{"$f":"'Population 2016'!P80*'Prevalence Rates'!P80","v":0},{"$f":"'Population 2016'!Q80*'Prevalence Rates'!Q80","v":0},{"$f":"'Population 2016'!R80*'Prevalence Rates'!R80","v":0},{"$f":"'Population 2016'!S80*'Prevalence Rates'!S80","v":0},{"$f":"'Population 2016'!T80*'Prevalence Rates'!T80","v":0},{"$f":"'Population 2016'!U80*'Prevalence Rates'!U80","v":0},{"$f":"'Population 2016'!V80*'Prevalence Rates'!V80","v":0},{"$f":"'Population 2016'!W80*'Prevalence Rates'!W80","v":0},{"$f":"'Population 2016'!X80*'Prevalence Rates'!X80","v":0},{"$f":"'Population 2016'!Y80*'Prevalence Rates'!Y80","v":0},{"$f":"'Population 2016'!Z80*'Prevalence Rates'!Z80","v":0},{"$f":"'Population 2016'!AA80*'Prevalence Rates'!AA80","v":0},{"$f":"'Population 2016'!AB80*'Prevalence Rates'!AB80","v":0},{"$f":"'Population 2016'!AC80*'Prevalence Rates'!AC80","v":0},{"$f":"'Population 2016'!AD80*'Prevalence Rates'!AD80","v":0},{"$f":"'Population 2016'!AE80*'Prevalence Rates'!AE80","v":0},{"$f":"'Population 2016'!AF80*'Prevalence Rates'!AF80","v":0},{"$f":"'Population 2016'!AG80*'Prevalence Rates'!AG80","v":0},{"$f":"'Population 2016'!AH80*'Prevalence Rates'!AH80","v":0},{"$f":"'Population 2016'!AI80*'Prevalence Rates'!AI80","v":0},{"$f":"'Population 2016'!AJ80*'Prevalence Rates'!AJ80","v":0},{"$f":"'Population 2016'!AK80*'Prevalence Rates'!AK80","v":0},{"$f":"'Population 2016'!AL80*'Prevalence Rates'!AL80","v":0},{"$f":"'Population 2016'!AM80*'Prevalence Rates'!AM80","v":0},{"$f":"'Population 2016'!AN80*'Prevalence Rates'!AN80","v":0},{"$f":"'Population 2016'!AO80*'Prevalence Rates'!AO80","v":0},{"$f":"'Population 2016'!AP80*'Prevalence Rates'!AP80","v":0},{"$f":"'Population 2016'!AQ80*'Prevalence Rates'!AQ80","v":0},{"$f":"'Population 2016'!AR80*'Prevalence Rates'!AR80","v":0},{"$f":"'Population 2016'!AS80*'Prevalence Rates'!AS80","v":0},{"$f":"'Population 2016'!AT80*'Prevalence Rates'!AT80","v":0},{"$f":"'Population 2016'!AU80*'Prevalence Rates'!AU80","v":0},{"$f":"'Population 2016'!AV80*'Prevalence Rates'!AV80","v":0},{"$f":"'Population 2016'!AW80*'Prevalence Rates'!AW80","v":0},{"$f":"'Population 2016'!AX80*'Prevalence Rates'!AX80","v":0},{"$f":"'Population 2016'!AY80*'Prevalence Rates'!AY80","v":0},{"$f":"'Population 2016'!AZ80*'Prevalence Rates'!AZ80","v":0},{"$f":"'Population 2016'!BA80*'Prevalence Rates'!BA80","v":0},{"$f":"'Population 2016'!BB80*'Prevalence Rates'!BB80","v":0},{"$f":"'Population 2016'!BC80*'Prevalence Rates'!BC80","v":0},78]
[null,"Male 10-15",{"$f":"'Population 2016'!C81*'Prevalence Rates'!C81","v":0},{"$f":"'Population 2016'!D81*'Prevalence Rates'!D81","v":0},{"$f":"'Population 2016'!E81*'Prevalence Rates'!E81","v":0},{"$f":"'Population 2016'!F81*'Prevalence Rates'!F81","v":0},{"$f":"'Population 2016'!G81*'Prevalence Rates'!G81","v":0},{"$f":"'Population 2016'!H81*'Prevalence Rates'!H81","v":0},{"$f":"'Population 2016'!I81*'Prevalence Rates'!I81","v":0},{"$f":"'Population 2016'!J81*'Prevalence Rates'!J81","v":0},{"$f":"'Population 2016'!K81*'Prevalence Rates'!K81","v":0},{"$f":"'Population 2016'!L81*'Prevalence Rates'!L81","v":0},{"$f":"'Population 2016'!M81*'Prevalence Rates'!M81","v":0},{"$f":"'Population 2016'!N81*'Prevalence Rates'!N81","v":0},{"$f":"'Population 2016'!O81*'Prevalence Rates'!O81","v":0},{"$f":"'Population 2016'!P81*'Prevalence Rates'!P81","v":0},{"$f":"'Population 2016'!Q81*'Prevalence Rates'!Q81","v":0},{"$f":"'Population 2016'!R81*'Prevalence Rates'!R81","v":0},{"$f":"'Population 2016'!S81*'Prevalence Rates'!S81","v":0},{"$f":"'Population 2016'!T81*'Prevalence Rates'!T81","v":0},{"$f":"'Population 2016'!U81*'Prevalence Rates'!U81","v":0},{"$f":"'Population 2016'!V81*'Prevalence Rates'!V81","v":0},{"$f":"'Population 2016'!W81*'Prevalence Rates'!W81","v":0},{"$f":"'Population 2016'!X81*'Prevalence Rates'!X81","v":0},{"$f":"'Population 2016'!Y81*'Prevalence Rates'!Y81","v":0},{"$f":"'Population 2016'!Z81*'Prevalence Rates'!Z81","v":0},{"$f":"'Population 2016'!AA81*'Prevalence Rates'!AA81","v":0},{"$f":"'Population 2016'!AB81*'Prevalence Rates'!AB81","v":0},{"$f":"'Population 2016'!AC81*'Prevalence Rates'!AC81","v":0},{"$f":"'Population 2016'!AD81*'Prevalence Rates'!AD81","v":0},{"$f":"'Population 2016'!AE81*'Prevalence Rates'!AE81","v":0},{"$f":"'Population 2016'!AF81*'Prevalence Rates'!AF81","v":0},{"$f":"'Population 2016'!AG81*'Prevalence Rates'!AG81","v":0},{"$f":"'Population 2016'!AH81*'Prevalence Rates'!AH81","v":0},{"$f":"'Population 2016'!AI81*'Prevalence Rates'!AI81","v":0},{"$f":"'Population 2016'!AJ81*'Prevalence Rates'!AJ81","v":0},{"$f":"'Population 2016'!AK81*'Prevalence Rates'!AK81","v":0},{"$f":"'Population 2016'!AL81*'Prevalence Rates'!AL81","v":0},{"$f":"'Population 2016'!AM81*'Prevalence Rates'!AM81","v":0},{"$f":"'Population 2016'!AN81*'Prevalence Rates'!AN81","v":0},{"$f":"'Population 2016'!AO81*'Prevalence Rates'!AO81","v":0},{"$f":"'Population 2016'!AP81*'Prevalence Rates'!AP81","v":0},{"$f":"'Population 2016'!AQ81*'Prevalence Rates'!AQ81","v":0},{"$f":"'Population 2016'!AR81*'Prevalence Rates'!AR81","v":0},{"$f":"'Population 2016'!AS81*'Prevalence Rates'!AS81","v":0},{"$f":"'Population 2016'!AT81*'Prevalence Rates'!AT81","v":0},{"$f":"'Population 2016'!AU81*'Prevalence Rates'!AU81","v":0},{"$f":"'Population 2016'!AV81*'Prevalence Rates'!AV81","v":0},{"$f":"'Population 2016'!AW81*'Prevalence Rates'!AW81","v":0},{"$f":"'Population 2016'!AX81*'Prevalence Rates'!AX81","v":0},{"$f":"'Population 2016'!AY81*'Prevalence Rates'!AY81","v":0},{"$f":"'Population 2016'!AZ81*'Prevalence Rates'!AZ81","v":0},{"$f":"'Population 2016'!BA81*'Prevalence Rates'!BA81","v":0},{"$f":"'Population 2016'!BB81*'Prevalence Rates'!BB81","v":0},{"$f":"'Population 2016'!BC81*'Prevalence Rates'!BC81","v":0},79]
[null,"Male 16-19",{"$f":"'Population 2016'!C82*'Prevalence Rates'!C82","v":91.464522292993607},{"$f":"'Population 2016'!D82*'Prevalence Rates'!D82","v":118.45898089171976},{"$f":"'Population 2016'!E82*'Prevalence Rates'!E82","v":23.434777070063685},{"$f":"'Population 2016'!F82*'Prevalence Rates'!F82","v":65.653312101910842},{"$f":"'Population 2016'!G82*'Prevalence Rates'!G82","v":45.395668789808909},{"$f":"'Population 2016'!H82*'Prevalence Rates'!H82","v":768.71956050955407},{"$f":"'Population 2016'!I82*'Prevalence Rates'!I82","v":52.305980254777054},{"$f":"'Population 2016'!J82*'Prevalence Rates'!J82","v":148.83426751592359},{"$f":"'Population 2016'!K82*'Prevalence Rates'!K82","v":87.787261146496789},{"$f":"'Population 2016'!L82*'Prevalence Rates'!L82","v":78.24388662420381},{"$f":"'Population 2016'!M82*'Prevalence Rates'!M82","v":78.144076433121},{"$f":"'Population 2016'!N82*'Prevalence Rates'!N82","v":319.00426751592363},{"$f":"'Population 2016'!O82*'Prevalence Rates'!O82","v":280.98216560509553},{"$f":"'Population 2016'!P82*'Prevalence Rates'!P82","v":31.869044585987254},{"$f":"'Population 2016'!Q82*'Prevalence Rates'!Q82","v":26.960509554140121},{"$f":"'Population 2016'!R82*'Prevalence Rates'!R82","v":38.195987261146485},{"$f":"'Population 2016'!S82*'Prevalence Rates'!S82","v":1093.7736305732483},{"$f":"'Population 2016'!T82*'Prevalence Rates'!T82","v":304.50222929936297},{"$f":"'Population 2016'!U82*'Prevalence Rates'!U82","v":0},{"$f":"'Population 2016'!V82*'Prevalence Rates'!V82","v":128.85732484076431},{"$f":"'Population 2016'!W82*'Prevalence Rates'!W82","v":430.15989808917197},{"$f":"'Population 2016'!X82*'Prevalence Rates'!X82","v":429.86445859872595},{"$f":"'Population 2016'!Y82*'Prevalence Rates'!Y82","v":293.23329936305726},{"$f":"'Population 2016'!Z82*'Prevalence Rates'!Z82","v":1778.4761783439483},{"$f":"'Population 2016'!AA82*'Prevalence Rates'!AA82","v":3783.9315286624201},{"$f":"'Population 2016'!AB82*'Prevalence Rates'!AB82","v":125.68234394904458},{"$f":"'Population 2016'!AC82*'Prevalence Rates'!AC82","v":2520.9714267515919},{"$f":"'Population 2016'!AD82*'Prevalence Rates'!AD82","v":149.86135031847135},{"$f":"'Population 2016'!AE82*'Prevalence Rates'!AE82","v":114.40828025477705},{"$f":"'Population 2016'!AF82*'Prevalence Rates'!AF82","v":200.59910828025471},{"$f":"'Population 2016'!AG82*'Prevalence Rates'!AG82","v":114.40828025477705},{"$f":"'Population 2016'!AH82*'Prevalence Rates'!AH82","v":1230.5220382165605},{"$f":"'Population 2016'!AI82*'Prevalence Rates'!AI82","v":602.5514904458596},{"$f":"'Population 2016'!AJ82*'Prevalence Rates'!AJ82","v":63.418471337579604},{"$f":"'Population 2016'!AK82*'Prevalence Rates'!AK82","v":5.98},{"$f":"'Population 2016'!AL82*'Prevalence Rates'!AL82","v":387.9630573248408},{"$f":"'Population 2016'!AM82*'Prevalence Rates'!AM82","v":870.29617834394901},{"$f":"'Population 2016'!AN82*'Prevalence Rates'!AN82","v":0},{"$f":"'Population 2016'!AO82*'Prevalence Rates'!AO82","v":0},{"$f":"'Population 2016'!AP82*'Prevalence Rates'!AP82","v":44.601592356687895},{"$f":"'Population 2016'!AQ82*'Prevalence Rates'!AQ82","v":272.37401273885348},{"$f":"'Population 2016'!AR82*'Prevalence Rates'!AR82","v":6593.34},{"$f":"'Population 2016'!AS82*'Prevalence Rates'!AS82","v":52.322101910828017},{"$f":"'Population 2016'!AT82*'Prevalence Rates'!AT82","v":0},{"$f":"'Population 2016'!AU82*'Prevalence Rates'!AU82","v":0},{"$f":"'Population 2016'!AV82*'Prevalence Rates'!AV82","v":110.27560509554141},{"$f":"'Population 2016'!AW82*'Prevalence Rates'!AW82","v":387.75770700636951},{"$f":"'Population 2016'!AX82*'Prevalence Rates'!AX82","v":83.067515923566859},{"$f":"'Population 2016'!AY82*'Prevalence Rates'!AY82","v":858.69222929936291},{"$f":"'Population 2016'!AZ82*'Prevalence Rates'!AZ82","v":421.80396178343949},{"$f":"'Population 2016'!BA82*'Prevalence Rates'!BA82","v":211.88757961783435},{"$f":"'Population 2016'!BB82*'Prevalence Rates'!BB82","v":201.11082802547767},{"$f":"'Population 2016'!BC82*'Prevalence Rates'!BC82","v":0},80]
[null,"Male 20-24",{"$f":"'Population 2016'!C83*'Prevalence Rates'!C83","v":149.44866242038213},{"$f":"'Population 2016'!D83*'Prevalence Rates'!D83","v":215.56484076433125},{"$f":"'Population 2016'!E83*'Prevalence Rates'!E83","v":61.088407643312081},{"$f":"'Population 2016'!F83*'Prevalence Rates'!F83","v":92.622929936305752},{"$f":"'Population 2016'!G83*'Prevalence Rates'!G83","v":71.153885350318461},{"$f":"'Population 2016'!H83*'Prevalence Rates'!H83","v":1077.4974649681528},{"$f":"'Population 2016'!I83*'Prevalence Rates'!I83","v":62.353456687898074},{"$f":"'Population 2016'!J83*'Prevalence Rates'!J83","v":190.22477707006371},{"$f":"'Population 2016'!K83*'Prevalence Rates'!K83","v":109.60573248407641},{"$f":"'Population 2016'!L83*'Prevalence Rates'!L83","v":116.8335585987261},{"$f":"'Population 2016'!M83*'Prevalence Rates'!M83","v":116.68452229299361},{"$f":"'Population 2016'!N83*'Prevalence Rates'!N83","v":526.58859872611481},{"$f":"'Population 2016'!O83*'Prevalence Rates'!O83","v":388.29343949044585},{"$f":"'Population 2016'!P83*'Prevalence Rates'!P83","v":39.601974522292984},{"$f":"'Population 2016'!Q83*'Prevalence Rates'!Q83","v":36.45796178343948},{"$f":"'Population 2016'!R83*'Prevalence Rates'!R83","v":45.460254777070055},{"$f":"'Population 2016'!S83*'Prevalence Rates'!S83","v":1496.4225477707005},{"$f":"'Population 2016'!T83*'Prevalence Rates'!T83","v":445.89999999999992},{"$f":"'Population 2016'!U83*'Prevalence Rates'!U83","v":0},{"$f":"'Population 2016'!V83*'Prevalence Rates'!V83","v":189.1789808917197},{"$f":"'Population 2016'!W83*'Prevalence Rates'!W83","v":554.33722292993627},{"$f":"'Population 2016'!X83*'Prevalence Rates'!X83","v":553.95649681528641},{"$f":"'Population 2016'!Y83*'Prevalence Rates'!Y83","v":398.1696305732483},{"$f":"'Population 2016'!Z83*'Prevalence Rates'!Z83","v":2775.6473885350306},{"$f":"'Population 2016'!AA83*'Prevalence Rates'!AA83","v":5639.7502547770691},{"$f":"'Population 2016'!AB83*'Prevalence Rates'!AB83","v":224.12066242038216},{"$f":"'Population 2016'!AC83*'Prevalence Rates'!AC83","v":3868.7383949044583},{"$f":"'Population 2016'!AD83*'Prevalence Rates'!AD83","v":215.361974522293},{"$f":"'Population 2016'!AE83*'Prevalence Rates'!AE83","v":157.93923566878979},{"$f":"'Population 2016'!AF83*'Prevalence Rates'!AF83","v":285.60751592356678},{"$f":"'Population 2016'!AG83*'Prevalence Rates'!AG83","v":157.93923566878979},{"$f":"'Population 2016'!AH83*'Prevalence Rates'!AH83","v":1707.4299363057326},{"$f":"'Population 2016'!AI83*'Prevalence Rates'!AI83","v":865.51333757961754},{"$f":"'Population 2016'!AJ83*'Prevalence Rates'!AJ83","v":101.40828025477705},{"$f":"'Population 2016'!AK83*'Prevalence Rates'!AK83","v":6.24},{"$f":"'Population 2016'!AL83*'Prevalence Rates'!AL83","v":530.12178343949051},{"$f":"'Population 2016'!AM83*'Prevalence Rates'!AM83","v":1194.5054140127388},{"$f":"'Population 2016'!AN83*'Prevalence Rates'!AN83","v":0},{"$f":"'Population 2016'!AO83*'Prevalence Rates'!AO83","v":0},{"$f":"'Population 2016'!AP83*'Prevalence Rates'!AP83","v":80.59585987261147},{"$f":"'Population 2016'!AQ83*'Prevalence Rates'!AQ83","v":445.28560509554131},{"$f":"'Population 2016'!AR83*'Prevalence Rates'!AR83","v":9666.8000000000011},{"$f":"'Population 2016'!AS83*'Prevalence Rates'!AS83","v":62.372675159235662},{"$f":"'Population 2016'!AT83*'Prevalence Rates'!AT83","v":0},{"$f":"'Population 2016'!AU83*'Prevalence Rates'!AU83","v":0},{"$f":"'Population 2016'!AV83*'Prevalence Rates'!AV83","v":171.68197452229299},{"$f":"'Population 2016'!AW83*'Prevalence Rates'!AW83","v":548.88318471337595},{"$f":"'Population 2016'!AX83*'Prevalence Rates'!AX83","v":108.55414012738851},{"$f":"'Population 2016'!AY83*'Prevalence Rates'!AY83","v":1244.8104458598725},{"$f":"'Population 2016'!AZ83*'Prevalence Rates'!AZ83","v":687.99610191082809},{"$f":"'Population 2016'!BA83*'Prevalence Rates'!BA83","v":299.26910828025473},{"$f":"'Population 2016'!BB83*'Prevalence Rates'!BB83","v":270.2426751592356},{"$f":"'Population 2016'!BC83*'Prevalence Rates'!BC83","v":0},81]
[null,"Male 25-29",{"$f":"'Population 2016'!C84*'Prevalence Rates'!C84","v":188.14519108280251},{"$f":"'Population 2016'!D84*'Prevalence Rates'!D84","v":247.27676751592358},{"$f":"'Population 2016'!E84*'Prevalence Rates'!E84","v":51.938312101910803},{"$f":"'Population 2016'!F84*'Prevalence Rates'!F84","v":64.155000000000001},{"$f":"'Population 2016'!G84*'Prevalence Rates'!G84","v":43.036624203821653},{"$f":"'Population 2016'!H84*'Prevalence Rates'!H84","v":778.04459713375797},{"$f":"'Population 2016'!I84*'Prevalence Rates'!I84","v":35.01841050955413},{"$f":"'Population 2016'!J84*'Prevalence Rates'!J84","v":139.13001592356687},{"$f":"'Population 2016'!K84*'Prevalence Rates'!K84","v":66.610509554140108},{"$f":"'Population 2016'!L84*'Prevalence Rates'!L84","v":99.002468789808901},{"$f":"'Population 2016'!M84*'Prevalence Rates'!M84","v":98.876178343949022},{"$f":"'Population 2016'!N84*'Prevalence Rates'!N84","v":554.71600318471337},{"$f":"'Population 2016'!O84*'Prevalence Rates'!O84","v":287.40888535031843},{"$f":"'Population 2016'!P84*'Prevalence Rates'!P84","v":28.646990445859867},{"$f":"'Population 2016'!Q84*'Prevalence Rates'!Q84","v":24.126592356687894},{"$f":"'Population 2016'!R84*'Prevalence Rates'!R84","v":34.446687898089166},{"$f":"'Population 2016'!S84*'Prevalence Rates'!S84","v":1334.4744267515923},{"$f":"'Population 2016'!T84*'Prevalence Rates'!T84","v":507.41918789808909},{"$f":"'Population 2016'!U84*'Prevalence Rates'!U84","v":0},{"$f":"'Population 2016'!V84*'Prevalence Rates'!V84","v":160.17324840764329},{"$f":"'Population 2016'!W84*'Prevalence Rates'!W84","v":441.43230573248411},{"$f":"'Population 2016'!X84*'Prevalence Rates'!X84","v":441.12912420382145},{"$f":"'Population 2016'!Y84*'Prevalence Rates'!Y84","v":312.05073726114642},{"$f":"'Population 2016'!Z84*'Prevalence Rates'!Z84","v":2654.1735668789797},{"$f":"'Population 2016'!AA84*'Prevalence Rates'!AA84","v":4832.3310191082801},{"$f":"'Population 2016'!AB84*'Prevalence Rates'!AB84","v":252.32850955414014},{"$f":"'Population 2016'!AC84*'Prevalence Rates'!AC84","v":3525.2215509554135},{"$f":"'Population 2016'!AD84*'Prevalence Rates'!AD84","v":157.12503821656051},{"$f":"'Population 2016'!AE84*'Prevalence Rates'!AE84","v":124.94221337579617},{"$f":"'Population 2016'!AF84*'Prevalence Rates'!AF84","v":215.95504777070056},{"$f":"'Population 2016'!AG84*'Prevalence Rates'!AG84","v":124.94221337579617},{"$f":"'Population 2016'!AH84*'Prevalence Rates'!AH84","v":1223.8535350318471},{"$f":"'Population 2016'!AI84*'Prevalence Rates'!AI84","v":840.64499999999964},{"$f":"'Population 2016'!AJ84*'Prevalence Rates'!AJ84","v":58.593152866242022},{"$f":"'Population 2016'!AK84*'Prevalence Rates'!AK84","v":2.34},{"$f":"'Population 2016'!AL84*'Prevalence Rates'!AL84","v":362.54722929936304},{"$f":"'Population 2016'!AM84*'Prevalence Rates'!AM84","v":854.51608280254777},{"$f":"'Population 2016'!AN84*'Prevalence Rates'!AN84","v":0},{"$f":"'Population 2016'!AO84*'Prevalence Rates'!AO84","v":0},{"$f":"'Population 2016'!AP84*'Prevalence Rates'!AP84","v":86.660111464968153},{"$f":"'Population 2016'!AQ84*'Prevalence Rates'!AQ84","v":394.7892993630573},{"$f":"'Population 2016'!AR84*'Prevalence Rates'!AR84","v":8307},{"$f":"'Population 2016'!AS84*'Prevalence Rates'!AS84","v":35.029203821656047},{"$f":"'Population 2016'!AT84*'Prevalence Rates'!AT84","v":0},{"$f":"'Population 2016'!AU84*'Prevalence Rates'!AU84","v":0},{"$f":"'Population 2016'!AV84*'Prevalence Rates'!AV84","v":136.24538216560509},{"$f":"'Population 2016'!AW84*'Prevalence Rates'!AW84","v":394.82345541401276},{"$f":"'Population 2016'!AX84*'Prevalence Rates'!AX84","v":91.858041401273866},{"$f":"'Population 2016'!AY84*'Prevalence Rates'!AY84","v":1131.0024840764329},{"$f":"'Population 2016'!AZ84*'Prevalence Rates'!AZ84","v":693.8581910828027},{"$f":"'Population 2016'!BA84*'Prevalence Rates'!BA84","v":221.6106687898089},{"$f":"'Population 2016'!BB84*'Prevalence Rates'!BB84","v":208.0103503184713},{"$f":"'Population 2016'!BC84*'Prevalence Rates'!BC84","v":0},82]
[null,"Male 30-34",{"$f":"'Population 2016'!C85*'Prevalence Rates'!C85","v":157.75810509554137},{"$f":"'Population 2016'!D85*'Prevalence Rates'!D85","v":217.34426751592358},{"$f":"'Population 2016'!E85*'Prevalence Rates'!E85","v":53.913152866242015},{"$f":"'Population 2016'!F85*'Prevalence Rates'!F85","v":52.713343949044592},{"$f":"'Population 2016'!G85*'Prevalence Rates'!G85","v":33.664203821656045},{"$f":"'Population 2016'!H85*'Prevalence Rates'!H85","v":685.91603980891716},{"$f":"'Population 2016'!I85*'Prevalence Rates'!I85","v":38.564578662420367},{"$f":"'Population 2016'!J85*'Prevalence Rates'!J85","v":122.08055732484077},{"$f":"'Population 2016'!K85*'Prevalence Rates'!K85","v":69.883280254777048},{"$f":"'Population 2016'!L85*'Prevalence Rates'!L85","v":69.06220605095541},{"$f":"'Population 2016'!M85*'Prevalence Rates'!M85","v":68.974108280254754},{"$f":"'Population 2016'!N85*'Prevalence Rates'!N85","v":435.19156050955417},{"$f":"'Population 2016'!O85*'Prevalence Rates'!O85","v":250.19369426751589},{"$f":"'Population 2016'!P85*'Prevalence Rates'!P85","v":23.550286624203817},{"$f":"'Population 2016'!Q85*'Prevalence Rates'!Q85","v":25.275477707006363},{"$f":"'Population 2016'!R85*'Prevalence Rates'!R85","v":32.337707006369421},{"$f":"'Population 2016'!S85*'Prevalence Rates'!S85","v":1208.4944904458598},{"$f":"'Population 2016'!T85*'Prevalence Rates'!T85","v":438.3432324840764},{"$f":"'Population 2016'!U85*'Prevalence Rates'!U85","v":0},{"$f":"'Population 2016'!V85*'Prevalence Rates'!V85","v":147.0821656050955},{"$f":"'Population 2016'!W85*'Prevalence Rates'!W85","v":413.58282802547774},{"$f":"'Population 2016'!X85*'Prevalence Rates'!X85","v":413.29877388535016},{"$f":"'Population 2016'!Y85*'Prevalence Rates'!Y85","v":280.05496337579609},{"$f":"'Population 2016'!Z85*'Prevalence Rates'!Z85","v":2324.0944585987249},{"$f":"'Population 2016'!AA85*'Prevalence Rates'!AA85","v":4389.2251910828018},{"$f":"'Population 2016'!AB85*'Prevalence Rates'!AB85","v":221.48621656050958},{"$f":"'Population 2016'!AC85*'Prevalence Rates'!AC85","v":3150.6341273885346},{"$f":"'Population 2016'!AD85*'Prevalence Rates'!AD85","v":152.15514649681526},{"$f":"'Population 2016'!AE85*'Prevalence Rates'!AE85","v":129.75573248407642},{"$f":"'Population 2016'!AF85*'Prevalence Rates'!AF85","v":203.32041401273878},{"$f":"'Population 2016'!AG85*'Prevalence Rates'!AG85","v":129.75573248407642},{"$f":"'Population 2016'!AH85*'Prevalence Rates'!AH85","v":1169.9925477707006},{"$f":"'Population 2016'!AI85*'Prevalence Rates'!AI85","v":742.12354777070038},{"$f":"'Population 2016'!AJ85*'Prevalence Rates'!AJ85","v":64.567356687898069},{"$f":"'Population 2016'!AK85*'Prevalence Rates'!AK85","v":1.7550000000000001},{"$f":"'Population 2016'!AL85*'Prevalence Rates'!AL85","v":329.20222929936307},{"$f":"'Population 2016'!AM85*'Prevalence Rates'!AM85","v":805.74124203821657},{"$f":"'Population 2016'!AN85*'Prevalence Rates'!AN85","v":0},{"$f":"'Population 2016'!AO85*'Prevalence Rates'!AO85","v":0},{"$f":"'Population 2016'!AP85*'Prevalence Rates'!AP85","v":60.642515923566876},{"$f":"'Population 2016'!AQ85*'Prevalence Rates'!AQ85","v":371.26261146496807},{"$f":"'Population 2016'!AR85*'Prevalence Rates'!AR85","v":7411.17},{"$f":"'Population 2016'!AS85*'Prevalence Rates'!AS85","v":38.576464968152862},{"$f":"'Population 2016'!AT85*'Prevalence Rates'!AT85","v":0},{"$f":"'Population 2016'!AU85*'Prevalence Rates'!AU85","v":0},{"$f":"'Population 2016'!AV85*'Prevalence Rates'!AV85","v":114.17746815286624},{"$f":"'Population 2016'!AW85*'Prevalence Rates'!AW85","v":386.70114649681534},{"$f":"'Population 2016'!AX85*'Prevalence Rates'!AX85","v":70.088216560509551},{"$f":"'Population 2016'!AY85*'Prevalence Rates'!AY85","v":953.50031847133744},{"$f":"'Population 2016'!AZ85*'Prevalence Rates'!AZ85","v":539.17897452229306},{"$f":"'Population 2016'!BA85*'Prevalence Rates'!BA85","v":216.68598726114647},{"$f":"'Population 2016'!BB85*'Prevalence Rates'!BB85","v":181.57356687898084},{"$f":"'Population 2016'!BC85*'Prevalence Rates'!BC85","v":0},83]
[null,"Male 35-39",{"$f":"'Population 2016'!C86*'Prevalence Rates'!C86","v":222.74905095541399},{"$f":"'Population 2016'!D86*'Prevalence Rates'!D86","v":291.88171656050957},{"$f":"'Population 2016'!E86*'Prevalence Rates'!E86","v":60.585076433121003},{"$f":"'Population 2016'!F86*'Prevalence Rates'!F86","v":77.518267515923583},{"$f":"'Population 2016'!G86*'Prevalence Rates'!G86","v":42.521656050955407},{"$f":"'Population 2016'!H86*'Prevalence Rates'!H86","v":908.39124267515922},{"$f":"'Population 2016'!I86*'Prevalence Rates'!I86","v":61.424860732484063},{"$f":"'Population 2016'!J86*'Prevalence Rates'!J86","v":156.61499044585989},{"$f":"'Population 2016'!K86*'Prevalence Rates'!K86","v":103.28528662420381},{"$f":"'Population 2016'!L86*'Prevalence Rates'!L86","v":88.154369490445859},{"$f":"'Population 2016'!M86*'Prevalence Rates'!M86","v":88.041917197452207},{"$f":"'Population 2016'!N86*'Prevalence Rates'!N86","v":464.20118789808924},{"$f":"'Population 2016'!O86*'Prevalence Rates'!O86","v":314.98054777070064},{"$f":"'Population 2016'!P86*'Prevalence Rates'!P86","v":35.423668789808914},{"$f":"'Population 2016'!Q86*'Prevalence Rates'!Q86","v":29.286560509554139},{"$f":"'Population 2016'!R86*'Prevalence Rates'!R86","v":42.977245222929938},{"$f":"'Population 2016'!S86*'Prevalence Rates'!S86","v":1655.4840382165605},{"$f":"'Population 2016'!T86*'Prevalence Rates'!T86","v":590.79331210191083},{"$f":"'Population 2016'!U86*'Prevalence Rates'!U86","v":0},{"$f":"'Population 2016'!V86*'Prevalence Rates'!V86","v":205.71461783439489},{"$f":"'Population 2016'!W86*'Prevalence Rates'!W86","v":568.99645350318485},{"$f":"'Population 2016'!X86*'Prevalence Rates'!X86","v":568.60565923566855},{"$f":"'Population 2016'!Y86*'Prevalence Rates'!Y86","v":375.53966942675152},{"$f":"'Population 2016'!Z86*'Prevalence Rates'!Z86","v":2809.5217834394894},{"$f":"'Population 2016'!AA86*'Prevalence Rates'!AA86","v":5571.1625254777064},{"$f":"'Population 2016'!AB86*'Prevalence Rates'!AB86","v":302.54213503184718},{"$f":"'Population 2016'!AC86*'Prevalence Rates'!AC86","v":3828.4963910828028},{"$f":"'Population 2016'!AD86*'Prevalence Rates'!AD86","v":173.37570191082804},{"$f":"'Population 2016'!AE86*'Prevalence Rates'!AE86","v":143.29798089171976},{"$f":"'Population 2016'!AF86*'Prevalence Rates'!AF86","v":239.39416242038212},{"$f":"'Population 2016'!AG86*'Prevalence Rates'!AG86","v":143.29798089171976},{"$f":"'Population 2016'!AH86*'Prevalence Rates'!AH86","v":1678.9261719745223},{"$f":"'Population 2016'!AI86*'Prevalence Rates'!AI86","v":1007.2839133757959},{"$f":"'Population 2016'!AJ86*'Prevalence Rates'!AJ86","v":81.048853503184702},{"$f":"'Population 2016'!AK86*'Prevalence Rates'!AK86","v":7.5140000000000011},{"$f":"'Population 2016'!AL86*'Prevalence Rates'!AL86","v":435.64264968152867},{"$f":"'Population 2016'!AM86*'Prevalence Rates'!AM86","v":1124.6978025477706},{"$f":"'Population 2016'!AN86*'Prevalence Rates'!AN86","v":0},{"$f":"'Population 2016'!AO86*'Prevalence Rates'!AO86","v":0},{"$f":"'Population 2016'!AP86*'Prevalence Rates'!AP86","v":88.425716560509557},{"$f":"'Population 2016'!AQ86*'Prevalence Rates'!AQ86","v":456.39910828025467},{"$f":"'Population 2016'!AR86*'Prevalence Rates'!AR86","v":9532.376000000002},{"$f":"'Population 2016'!AS86*'Prevalence Rates'!AS86","v":61.443792993630566},{"$f":"'Population 2016'!AT86*'Prevalence Rates'!AT86","v":0},{"$f":"'Population 2016'!AU86*'Prevalence Rates'!AU86","v":0},{"$f":"'Population 2016'!AV86*'Prevalence Rates'!AV86","v":165.51968789808919},{"$f":"'Population 2016'!AW86*'Prevalence Rates'!AW86","v":581.03818152866256},{"$f":"'Population 2016'!AX86*'Prevalence Rates'!AX86","v":77.381130573248399},{"$f":"'Population 2016'!AY86*'Prevalence Rates'!AY86","v":1195.4254904458596},{"$f":"'Population 2016'!AZ86*'Prevalence Rates'!AZ86","v":620.1987859872612},{"$f":"'Population 2016'!BA86*'Prevalence Rates'!BA86","v":268.36503184713376},{"$f":"'Population 2016'!BB86*'Prevalence Rates'!BB86","v":262.41936305732486},{"$f":"'Population 2016'!BC86*'Prevalence Rates'!BC86","v":0},84]
[null,"Male 40-44",{"$f":"'Population 2016'!C87*'Prevalence Rates'!C87","v":182.02858280254776},{"$f":"'Population 2016'!D87*'Prevalence Rates'!D87","v":250.62834713375798},{"$f":"'Population 2016'!E87*'Prevalence Rates'!E87","v":62.048484076433105},{"$f":"'Population 2016'!F87*'Prevalence Rates'!F87","v":76.004238853503196},{"$f":"'Population 2016'!G87*'Prevalence Rates'!G87","v":47.340777070063687},{"$f":"'Population 2016'!H87*'Prevalence Rates'!H87","v":991.93580445859868},{"$f":"'Population 2016'!I87*'Prevalence Rates'!I87","v":62.41028630573247},{"$f":"'Population 2016'!J87*'Prevalence Rates'!J87","v":150.89389490445862},{"$f":"'Population 2016'!K87*'Prevalence Rates'!K87","v":100.43210191082801},{"$f":"'Population 2016'!L87*'Prevalence Rates'!L87","v":100.87463085987261},{"$f":"'Population 2016'!M87*'Prevalence Rates'!M87","v":100.74595222929935},{"$f":"'Population 2016'!N87*'Prevalence Rates'!N87","v":392.43622929936316},{"$f":"'Population 2016'!O87*'Prevalence Rates'!O87","v":373.12569108280252},{"$f":"'Population 2016'!P87*'Prevalence Rates'!P87","v":35.423668789808914},{"$f":"'Population 2016'!Q87*'Prevalence Rates'!Q87","v":45.292006369426751},{"$f":"'Population 2016'!R87*'Prevalence Rates'!R87","v":44.019117834394905},{"$f":"'Population 2016'!S87*'Prevalence Rates'!S87","v":1609.7539299363059},{"$f":"'Population 2016'!T87*'Prevalence Rates'!T87","v":534.41990445859869},{"$f":"'Population 2016'!U87*'Prevalence Rates'!U87","v":0},{"$f":"'Population 2016'!V87*'Prevalence Rates'!V87","v":215.13012738853502},{"$f":"'Population 2016'!W87*'Prevalence Rates'!W87","v":563.36813248407657},{"$f":"'Population 2016'!X87*'Prevalence Rates'!X87","v":562.98120382165587},{"$f":"'Population 2016'!Y87*'Prevalence Rates'!Y87","v":377.99239585987254},{"$f":"'Population 2016'!Z87*'Prevalence Rates'!Z87","v":2524.4978343949037},{"$f":"'Population 2016'!AA87*'Prevalence Rates'!AA87","v":5221.1402675159234},{"$f":"'Population 2016'!AB87*'Prevalence Rates'!AB87","v":261.97463439490446},{"$f":"'Population 2016'!AC87*'Prevalence Rates'!AC87","v":3475.1099522292993},{"$f":"'Population 2016'!AD87*'Prevalence Rates'!AD87","v":198.3055414012739},{"$f":"'Population 2016'!AE87*'Prevalence Rates'!AE87","v":165.31996496815287},{"$f":"'Population 2016'!AF87*'Prevalence Rates'!AF87","v":246.0199936305732},{"$f":"'Population 2016'!AG87*'Prevalence Rates'!AG87","v":165.31996496815287},{"$f":"'Population 2016'!AH87*'Prevalence Rates'!AH87","v":1701.7332420382165},{"$f":"'Population 2016'!AI87*'Prevalence Rates'!AI87","v":967.34172038216536},{"$f":"'Population 2016'!AJ87*'Prevalence Rates'!AJ87","v":90.924554140127384},{"$f":"'Population 2016'!AK87*'Prevalence Rates'!AK87","v":8.6700000000000017},{"$f":"'Population 2016'!AL87*'Prevalence Rates'!AL87","v":469.32311464968154},{"$f":"'Population 2016'!AM87*'Prevalence Rates'!AM87","v":1133.9108280254777},{"$f":"'Population 2016'!AN87*'Prevalence Rates'!AN87","v":0},{"$f":"'Population 2016'!AO87*'Prevalence Rates'!AO87","v":0},{"$f":"'Population 2016'!AP87*'Prevalence Rates'!AP87","v":73.059936305732492},{"$f":"'Population 2016'!AQ87*'Prevalence Rates'!AQ87","v":399.1366114649681},{"$f":"'Population 2016'!AR87*'Prevalence Rates'!AR87","v":9139.0470000000005},{"$f":"'Population 2016'!AS87*'Prevalence Rates'!AS87","v":62.429522292993624},{"$f":"'Population 2016'!AT87*'Prevalence Rates'!AT87","v":0},{"$f":"'Population 2016'!AU87*'Prevalence Rates'!AU87","v":0},{"$f":"'Population 2016'!AV87*'Prevalence Rates'!AV87","v":161.53811464968155},{"$f":"'Population 2016'!AW87*'Prevalence Rates'!AW87","v":593.95666560509574},{"$f":"'Population 2016'!AX87*'Prevalence Rates'!AX87","v":73.708805732484066},{"$f":"'Population 2016'!AY87*'Prevalence Rates'!AY87","v":1105.846535031847},{"$f":"'Population 2016'!AZ87*'Prevalence Rates'!AZ87","v":532.82598662420389},{"$f":"'Population 2016'!BA87*'Prevalence Rates'!BA87","v":246.46914012738853},{"$f":"'Population 2016'!BB87*'Prevalence Rates'!BB87","v":269.40506369426748},{"$f":"'Population 2016'!BC87*'Prevalence Rates'!BC87","v":0},85]
[null,"Male 45-49",{"$f":"'Population 2016'!C88*'Prevalence Rates'!C88","v":275.12699999999995},{"$f":"'Population 2016'!D88*'Prevalence Rates'!D88","v":375.3075},{"$f":"'Population 2016'!E88*'Prevalence Rates'!E88","v":90.152999999999963},{"$f":"'Population 2016'!F88*'Prevalence Rates'!F88","v":136.69950000000003},{"$f":"'Population 2016'!G88*'Prevalence Rates'!G88","v":93.785999999999987},{"$f":"'Population 2016'!H88*'Prevalence Rates'!H88","v":1831.0121999999999},{"$f":"'Population 2016'!I88*'Prevalence Rates'!I88","v":134.90441999999996},{"$f":"'Population 2016'!J88*'Prevalence Rates'!J88","v":303.03000000000003},{"$f":"'Population 2016'!K88*'Prevalence Rates'!K88","v":197.62499999999997},{"$f":"'Population 2016'!L88*'Prevalence Rates'!L88","v":195.73868999999999},{"$f":"'Population 2016'!M88*'Prevalence Rates'!M88","v":195.48899999999995},{"$f":"'Population 2016'!N88*'Prevalence Rates'!N88","v":802.43100000000015},{"$f":"'Population 2016'!O88*'Prevalence Rates'!O88","v":693.12},{"$f":"'Population 2016'!P88*'Prevalence Rates'!P88","v":78.532499999999985},{"$f":"'Population 2016'!Q88*'Prevalence Rates'!Q88","v":52.169999999999995},{"$f":"'Population 2016'!R88*'Prevalence Rates'!R88","v":77.683499999999981},{"$f":"'Population 2016'!S88*'Prevalence Rates'!S88","v":2919.8609999999999},{"$f":"'Population 2016'!T88*'Prevalence Rates'!T88","v":847.08749999999986},{"$f":"'Population 2016'!U88*'Prevalence Rates'!U88","v":0},{"$f":"'Population 2016'!V88*'Prevalence Rates'!V88","v":395.71499999999992},{"$f":"'Population 2016'!W88*'Prevalence Rates'!W88","v":1150.9680000000001},{"$f":"'Population 2016'!X88*'Prevalence Rates'!X88","v":1150.1774999999996},{"$f":"'Population 2016'!Y88*'Prevalence Rates'!Y88","v":724.40864999999985},{"$f":"'Population 2016'!Z88*'Prevalence Rates'!Z88","v":4490.6759999999986},{"$f":"'Population 2016'!AA88*'Prevalence Rates'!AA88","v":9743.2919999999995},{"$f":"'Population 2016'!AB88*'Prevalence Rates'!AB88","v":397.62240000000003},{"$f":"'Population 2016'!AC88*'Prevalence Rates'!AC88","v":6458.1245999999992},{"$f":"'Population 2016'!AD88*'Prevalence Rates'!AD88","v":340.7346},{"$f":"'Population 2016'!AE88*'Prevalence Rates'!AE88","v":270.4425},{"$f":"'Population 2016'!AF88*'Prevalence Rates'!AF88","v":524.90099999999984},{"$f":"'Population 2016'!AG88*'Prevalence Rates'!AG88","v":270.4425},{"$f":"'Population 2016'!AH88*'Prevalence Rates'!AH88","v":3206.1780000000003},{"$f":"'Population 2016'!AI88*'Prevalence Rates'!AI88","v":1609.7273999999993},{"$f":"'Population 2016'!AJ88*'Prevalence Rates'!AJ88","v":171.49499999999998},{"$f":"'Population 2016'!AK88*'Prevalence Rates'!AK88","v":18.369},{"$f":"'Population 2016'!AL88*'Prevalence Rates'!AL88","v":884.41200000000003},{"$f":"'Population 2016'!AM88*'Prevalence Rates'!AM88","v":2186.9924999999998},{"$f":"'Population 2016'!AN88*'Prevalence Rates'!AN88","v":0},{"$f":"'Population 2016'!AO88*'Prevalence Rates'!AO88","v":0},{"$f":"'Population 2016'!AP88*'Prevalence Rates'!AP88","v":121.43249999999999},{"$f":"'Population 2016'!AQ88*'Prevalence Rates'!AQ88","v":837.60599999999988},{"$f":"'Population 2016'!AR88*'Prevalence Rates'!AR88","v":16898.538},{"$f":"'Population 2016'!AS88*'Prevalence Rates'!AS88","v":134.946},{"$f":"'Population 2016'!AT88*'Prevalence Rates'!AT88","v":0},{"$f":"'Population 2016'!AU88*'Prevalence Rates'!AU88","v":0},{"$f":"'Population 2016'!AV88*'Prevalence Rates'!AV88","v":278.10000000000002},{"$f":"'Population 2016'!AW88*'Prevalence Rates'!AW88","v":1077.1035000000002},{"$f":"'Population 2016'!AX88*'Prevalence Rates'!AX88","v":151.76249999999999},{"$f":"'Population 2016'!AY88*'Prevalence Rates'!AY88","v":2215.2899999999995},{"$f":"'Population 2016'!AZ88*'Prevalence Rates'!AZ88","v":1042.6320000000001},{"$f":"'Population 2016'!BA88*'Prevalence Rates'!BA88","v":481.74749999999989},{"$f":"'Population 2016'!BB88*'Prevalence Rates'!BB88","v":507.86999999999995},{"$f":"'Population 2016'!BC88*'Prevalence Rates'!BC88","v":0},86]
[null,"Male 50-54",{"$f":"'Population 2016'!C89*'Prevalence Rates'!C89","v":270.29249999999996},{"$f":"'Population 2016'!D89*'Prevalence Rates'!D89","v":355.50600000000003},{"$f":"'Population 2016'!E89*'Prevalence Rates'!E89","v":74.888999999999967},{"$f":"'Population 2016'!F89*'Prevalence Rates'!F89","v":144.10200000000003},{"$f":"'Population 2016'!G89*'Prevalence Rates'!G89","v":121.50599999999997},{"$f":"'Population 2016'!H89*'Prevalence Rates'!H89","v":1971.2339999999999},{"$f":"'Population 2016'!I89*'Prevalence Rates'!I89","v":139.18709999999999},{"$f":"'Population 2016'!J89*'Prevalence Rates'!J89","v":334.49850000000004},{"$f":"'Population 2016'!K89*'Prevalence Rates'!K89","v":211.10999999999996},{"$f":"'Population 2016'!L89*'Prevalence Rates'!L89","v":210.68425499999998},{"$f":"'Population 2016'!M89*'Prevalence Rates'!M89","v":210.41549999999995},{"$f":"'Population 2016'!N89*'Prevalence Rates'!N89","v":821.67750000000012},{"$f":"'Population 2016'!O89*'Prevalence Rates'!O89","v":732.64949999999999},{"$f":"'Population 2016'!P89*'Prevalence Rates'!P89","v":80.230499999999992},{"$f":"'Population 2016'!Q89*'Prevalence Rates'!Q89","v":79.364999999999995},{"$f":"'Population 2016'!R89*'Prevalence Rates'!R89","v":102.30449999999999},{"$f":"'Population 2016'!S89*'Prevalence Rates'!S89","v":2879.73},{"$f":"'Population 2016'!T89*'Prevalence Rates'!T89","v":878.32499999999982},{"$f":"'Population 2016'!U89*'Prevalence Rates'!U89","v":0},{"$f":"'Population 2016'!V89*'Prevalence Rates'!V89","v":398.96999999999991},{"$f":"'Population 2016'!W89*'Prevalence Rates'!W89","v":1065.3552},{"$f":"'Population 2016'!X89*'Prevalence Rates'!X89","v":1064.6234999999997},{"$f":"'Population 2016'!Y89*'Prevalence Rates'!Y89","v":763.49384999999984},{"$f":"'Population 2016'!Z89*'Prevalence Rates'!Z89","v":4599.2219999999979},{"$f":"'Population 2016'!AA89*'Prevalence Rates'!AA89","v":10050.344999999999},{"$f":"'Population 2016'!AB89*'Prevalence Rates'!AB89","v":371.08320000000003},{"$f":"'Population 2016'!AC89*'Prevalence Rates'!AC89","v":6801.4430999999995},{"$f":"'Population 2016'!AD89*'Prevalence Rates'!AD89","v":376.28550000000001},{"$f":"'Population 2016'!AE89*'Prevalence Rates'!AE89","v":279.03599999999994},{"$f":"'Population 2016'!AF89*'Prevalence Rates'!AF89","v":603.30749999999978},{"$f":"'Population 2016'!AG89*'Prevalence Rates'!AG89","v":279.03599999999994},{"$f":"'Population 2016'!AH89*'Prevalence Rates'!AH89","v":3148.299},{"$f":"'Population 2016'!AI89*'Prevalence Rates'!AI89","v":1651.5440999999994},{"$f":"'Population 2016'!AJ89*'Prevalence Rates'!AJ89","v":169.27499999999998},{"$f":"'Population 2016'!AK89*'Prevalence Rates'!AK89","v":11.775},{"$f":"'Population 2016'!AL89*'Prevalence Rates'!AL89","v":972.13499999999999},{"$f":"'Population 2016'!AM89*'Prevalence Rates'!AM89","v":2185.8375000000001},{"$f":"'Population 2016'!AN89*'Prevalence Rates'!AN89","v":0},{"$f":"'Population 2016'!AO89*'Prevalence Rates'!AO89","v":0},{"$f":"'Population 2016'!AP89*'Prevalence Rates'!AP89","v":140.33249999999998},{"$f":"'Population 2016'!AQ89*'Prevalence Rates'!AQ89","v":831.5999999999998},{"$f":"'Population 2016'!AR89*'Prevalence Rates'!AR89","v":17390.262000000002},{"$f":"'Population 2016'!AS89*'Prevalence Rates'!AS89","v":139.22999999999999},{"$f":"'Population 2016'!AT89*'Prevalence Rates'!AT89","v":0},{"$f":"'Population 2016'!AU89*'Prevalence Rates'!AU89","v":0},{"$f":"'Population 2016'!AV89*'Prevalence Rates'!AV89","v":292.93200000000002},{"$f":"'Population 2016'!AW89*'Prevalence Rates'!AW89","v":1025.9040000000002},{"$f":"'Population 2016'!AX89*'Prevalence Rates'!AX89","v":173.99249999999998},{"$f":"'Population 2016'!AY89*'Prevalence Rates'!AY89","v":2168.1659999999997},{"$f":"'Population 2016'!AZ89*'Prevalence Rates'!AZ89","v":1088.0058000000001},{"$f":"'Population 2016'!BA89*'Prevalence Rates'!BA89","v":614.4224999999999},{"$f":"'Population 2016'!BB89*'Prevalence Rates'!BB89","v":491.53499999999997},{"$f":"'Population 2016'!BC89*'Prevalence Rates'!BC89","v":0},87]
[null,"Male 55-59",{"$f":"'Population 2016'!C90*'Prevalence Rates'!C90","v":310.97750955414006},{"$f":"'Population 2016'!D90*'Prevalence Rates'!D90","v":431.35650955414013},{"$f":"'Population 2016'!E90*'Prevalence Rates'!E90","v":109.30085350318467},{"$f":"'Population 2016'!F90*'Prevalence Rates'!F90","v":144.14810191082805},{"$f":"'Population 2016'!G90*'Prevalence Rates'!G90","v":123.89545222929932},{"$f":"'Population 2016'!H90*'Prevalence Rates'!H90","v":2417.2253149681528},{"$f":"'Population 2016'!I90*'Prevalence Rates'!I90","v":132.77785570063691},{"$f":"'Population 2016'!J90*'Prevalence Rates'!J90","v":398.15228662420384},{"$f":"'Population 2016'!K90*'Prevalence Rates'!K90","v":250.57082802547765},{"$f":"'Population 2016'!L90*'Prevalence Rates'!L90","v":236.120683343949},{"$f":"'Population 2016'!M90*'Prevalence Rates'!M90","v":235.81948089171968},{"$f":"'Population 2016'!N90*'Prevalence Rates'!N90","v":997.2314808917198},{"$f":"'Population 2016'!O90*'Prevalence Rates'!O90","v":861.7460891719744},{"$f":"'Population 2016'!P90*'Prevalence Rates'!P90","v":92.460786624203791},{"$f":"'Population 2016'!Q90*'Prevalence Rates'!Q90","v":78.260891719745203},{"$f":"'Population 2016'!R90*'Prevalence Rates'!R90","v":103.14989490445856},{"$f":"'Population 2016'!S90*'Prevalence Rates'!S90","v":3159.2547133757953},{"$f":"'Population 2016'!T90*'Prevalence Rates'!T90","v":871.70999999999981},{"$f":"'Population 2016'!U90*'Prevalence Rates'!U90","v":0},{"$f":"'Population 2016'!V90*'Prevalence Rates'!V90","v":425.61914012738845},{"$f":"'Population 2016'!W90*'Prevalence Rates'!W90","v":1327.0086012738855},{"$f":"'Population 2016'!X90*'Prevalence Rates'!X90","v":1326.0971942675151},{"$f":"'Population 2016'!Y90*'Prevalence Rates'!Y90","v":861.71983853503161},{"$f":"'Population 2016'!Z90*'Prevalence Rates'!Z90","v":5066.6373248407617},{"$f":"'Population 2016'!AA90*'Prevalence Rates'!AA90","v":11278.950649681527},{"$f":"'Population 2016'!AB90*'Prevalence Rates'!AB90","v":451.96118216560507},{"$f":"'Population 2016'!AC90*'Prevalence Rates'!AC90","v":7503.43787197452},{"$f":"'Population 2016'!AD90*'Prevalence Rates'!AD90","v":434.22443885350316},{"$f":"'Population 2016'!AE90*'Prevalence Rates'!AE90","v":339.85698726114646},{"$f":"'Population 2016'!AF90*'Prevalence Rates'!AF90","v":665.00039808917165},{"$f":"'Population 2016'!AG90*'Prevalence Rates'!AG90","v":339.85698726114646},{"$f":"'Population 2016'!AH90*'Prevalence Rates'!AH90","v":3680.3204140127386},{"$f":"'Population 2016'!AI90*'Prevalence Rates'!AI90","v":1671.7161019108273},{"$f":"'Population 2016'!AJ90*'Prevalence Rates'!AJ90","v":187.96589171974517},{"$f":"'Population 2016'!AK90*'Prevalence Rates'!AK90","v":16.010999999999999},{"$f":"'Population 2016'!AL90*'Prevalence Rates'!AL90","v":1201.3349044585987},{"$f":"'Population 2016'!AM90*'Prevalence Rates'!AM90","v":2462.640238853503},{"$f":"'Population 2016'!AN90*'Prevalence Rates'!AN90","v":0},{"$f":"'Population 2016'!AO90*'Prevalence Rates'!AO90","v":0},{"$f":"'Population 2016'!AP90*'Prevalence Rates'!AP90","v":138.60902866242034},{"$f":"'Population 2016'!AQ90*'Prevalence Rates'!AQ90","v":974.29522292993602},{"$f":"'Population 2016'!AR90*'Prevalence Rates'!AR90","v":19717.843000000001},{"$f":"'Population 2016'!AS90*'Prevalence Rates'!AS90","v":132.81878025477704},{"$f":"'Population 2016'!AT90*'Prevalence Rates'!AT90","v":0},{"$f":"'Population 2016'!AU90*'Prevalence Rates'!AU90","v":0},{"$f":"'Population 2016'!AV90*'Prevalence Rates'!AV90","v":382.23004777070059},{"$f":"'Population 2016'!AW90*'Prevalence Rates'!AW90","v":1275.9735859872612},{"$f":"'Population 2016'!AX90*'Prevalence Rates'!AX90","v":207.75773885350313},{"$f":"'Population 2016'!AY90*'Prevalence Rates'!AY90","v":2607.621184713375},{"$f":"'Population 2016'!AZ90*'Prevalence Rates'!AZ90","v":1258.0022866242039},{"$f":"'Population 2016'!BA90*'Prevalence Rates'!BA90","v":635.33151273885335},{"$f":"'Population 2016'!BB90*'Prevalence Rates'!BB90","v":507.9214968152865},{"$f":"'Population 2016'!BC90*'Prevalence Rates'!BC90","v":0},88]
[null,"Male 60-64",{"$f":"'Population 2016'!C91*'Prevalence Rates'!C91","v":279.99042675159228},{"$f":"'Population 2016'!D91*'Prevalence Rates'!D91","v":351.92661464968154},{"$f":"'Population 2016'!E91*'Prevalence Rates'!E91","v":60.655968152866215},{"$f":"'Population 2016'!F91*'Prevalence Rates'!F91","v":121.78029299363058},{"$f":"'Population 2016'!G91*'Prevalence Rates'!G91","v":120.40543949044581},{"$f":"'Population 2016'!H91*'Prevalence Rates'!H91","v":2066.0592133757959},{"$f":"'Population 2016'!I91*'Prevalence Rates'!I91","v":103.79588719745219},{"$f":"'Population 2016'!J91*'Prevalence Rates'!J91","v":310.59791401273884},{"$f":"'Population 2016'!K91*'Prevalence Rates'!K91","v":194.95347133757957},{"$f":"'Population 2016'!L91*'Prevalence Rates'!L91","v":195.45208235668787},{"$f":"'Population 2016'!M91*'Prevalence Rates'!M91","v":195.20275796178339},{"$f":"'Population 2016'!N91*'Prevalence Rates'!N91","v":803.99846496815292},{"$f":"'Population 2016'!O91*'Prevalence Rates'!O91","v":712.44039808917182},{"$f":"'Population 2016'!P91*'Prevalence Rates'!P91","v":85.512866242038186},{"$f":"'Population 2016'!Q91*'Prevalence Rates'!Q91","v":60.79194267515922},{"$f":"'Population 2016'!R91*'Prevalence Rates'!R91","v":78.03049044585984},{"$f":"'Population 2016'!S91*'Prevalence Rates'!S91","v":2644.0019235668783},{"$f":"'Population 2016'!T91*'Prevalence Rates'!T91","v":744.93264331210173},{"$f":"'Population 2016'!U91*'Prevalence Rates'!U91","v":0},{"$f":"'Population 2016'!V91*'Prevalence Rates'!V91","v":364.73277070063688},{"$f":"'Population 2016'!W91*'Prevalence Rates'!W91","v":1109.7817477707006},{"$f":"'Population 2016'!X91*'Prevalence Rates'!X91","v":1109.0195350318465},{"$f":"'Population 2016'!Y91*'Prevalence Rates'!Y91","v":703.46759044585974},{"$f":"'Population 2016'!Z91*'Prevalence Rates'!Z91","v":4083.1487133757942},{"$f":"'Population 2016'!AA91*'Prevalence Rates'!AA91","v":9158.2806687898064},{"$f":"'Population 2016'!AB91*'Prevalence Rates'!AB91","v":367.54819872611461},{"$f":"'Population 2016'!AC91*'Prevalence Rates'!AC91","v":6052.0322235668773},{"$f":"'Population 2016'!AD91*'Prevalence Rates'!AD91","v":374.93274840764326},{"$f":"'Population 2016'!AE91*'Prevalence Rates'!AE91","v":278.75910191082801},{"$f":"'Population 2016'!AF91*'Prevalence Rates'!AF91","v":569.83145222929909},{"$f":"'Population 2016'!AG91*'Prevalence Rates'!AG91","v":278.75910191082801},{"$f":"'Population 2016'!AH91*'Prevalence Rates'!AH91","v":3034.5094203821654},{"$f":"'Population 2016'!AI91*'Prevalence Rates'!AI91","v":1405.761267515923},{"$f":"'Population 2016'!AJ91*'Prevalence Rates'!AJ91","v":170.49694267515918},{"$f":"'Population 2016'!AK91*'Prevalence Rates'!AK91","v":11.86},{"$f":"'Population 2016'!AL91*'Prevalence Rates'!AL91","v":1017.2593949044585},{"$f":"'Population 2016'!AM91*'Prevalence Rates'!AM91","v":1979.1280573248405},{"$f":"'Population 2016'!AN91*'Prevalence Rates'!AN91","v":0},{"$f":"'Population 2016'!AO91*'Prevalence Rates'!AO91","v":0},{"$f":"'Population 2016'!AP91*'Prevalence Rates'!AP91","v":115.40837579617832},{"$f":"'Population 2016'!AQ91*'Prevalence Rates'!AQ91","v":695.6758726114648},{"$f":"'Population 2016'!AR91*'Prevalence Rates'!AR91","v":16223.294},{"$f":"'Population 2016'!AS91*'Prevalence Rates'!AS91","v":103.82787898089171},{"$f":"'Population 2016'!AT91*'Prevalence Rates'!AT91","v":0},{"$f":"'Population 2016'!AU91*'Prevalence Rates'!AU91","v":0},{"$f":"'Population 2016'!AV91*'Prevalence Rates'!AV91","v":355.96996815286622},{"$f":"'Population 2016'!AW91*'Prevalence Rates'!AW91","v":1094.6383407643311},{"$f":"'Population 2016'!AX91*'Prevalence Rates'!AX91","v":162.54621019108276},{"$f":"'Population 2016'!AY91*'Prevalence Rates'!AY91","v":2153.3378598726108},{"$f":"'Population 2016'!AZ91*'Prevalence Rates'!AZ91","v":1023.4182853503185},{"$f":"'Population 2016'!BA91*'Prevalence Rates'!BA91","v":566.21113057324828},{"$f":"'Population 2016'!BB91*'Prevalence Rates'!BB91","v":404.46754777070055},{"$f":"'Population 2016'!BC91*'Prevalence Rates'!BC91","v":0},89]
[null,"Male 65-69",{"$f":"'Population 2016'!C92*'Prevalence Rates'!C92","v":249.63320063694263},{"$f":"'Population 2016'!D92*'Prevalence Rates'!D92","v":333.11455414012738},{"$f":"'Population 2016'!E92*'Prevalence Rates'!E92","v":74.117292993630542},{"$f":"'Population 2016'!F92*'Prevalence Rates'!F92","v":132.09769108280256},{"$f":"'Population 2016'!G92*'Prevalence Rates'!G92","v":103.15547770700636},{"$f":"'Population 2016'!H92*'Prevalence Rates'!H92","v":2059.1234140127385},{"$f":"'Population 2016'!I92*'Prevalence Rates'!I92","v":139.80085987261143},{"$f":"'Population 2016'!J92*'Prevalence Rates'!J92","v":314.51178343949044},{"$f":"'Population 2016'!K92*'Prevalence Rates'!K92","v":204.61480891719742},{"$f":"'Population 2016'!L92*'Prevalence Rates'!L92","v":233.549403343949},{"$f":"'Population 2016'!M92*'Prevalence Rates'!M92","v":233.25148089171967},{"$f":"'Population 2016'!N92*'Prevalence Rates'!N92","v":792.58614649681533},{"$f":"'Population 2016'!O92*'Prevalence Rates'!O92","v":769.98195859872601},{"$f":"'Population 2016'!P92*'Prevalence Rates'!P92","v":70.393996815286613},{"$f":"'Population 2016'!Q92*'Prevalence Rates'!Q92","v":73.192834394904438},{"$f":"'Population 2016'!R92*'Prevalence Rates'!R92","v":75.382547770700626},{"$f":"'Population 2016'!S92*'Prevalence Rates'!S92","v":2565.8896815286621},{"$f":"'Population 2016'!T92*'Prevalence Rates'!T92","v":630.53168789808899},{"$f":"'Population 2016'!U92*'Prevalence Rates'!U92","v":0},{"$f":"'Population 2016'!V92*'Prevalence Rates'!V92","v":391.01464968152857},{"$f":"'Population 2016'!W92*'Prevalence Rates'!W92","v":1111.6003566878981},{"$f":"'Population 2016'!X92*'Prevalence Rates'!X92","v":1110.8368949044579},{"$f":"'Population 2016'!Y92*'Prevalence Rates'!Y92","v":733.04552866242022},{"$f":"'Population 2016'!Z92*'Prevalence Rates'!Z92","v":3772.9192356687886},{"$f":"'Population 2016'!AA92*'Prevalence Rates'!AA92","v":8726.9322611464959},{"$f":"'Population 2016'!AB92*'Prevalence Rates'!AB92","v":348.3548025477707},{"$f":"'Population 2016'!AC92*'Prevalence Rates'!AC92","v":5628.8376401273872},{"$f":"'Population 2016'!AD92*'Prevalence Rates'!AD92","v":347.84830891719741},{"$f":"'Population 2016'!AE92*'Prevalence Rates'!AE92","v":267.97939490445856},{"$f":"'Population 2016'!AF92*'Prevalence Rates'!AF92","v":599.55449044585976},{"$f":"'Population 2016'!AG92*'Prevalence Rates'!AG92","v":267.97939490445856},{"$f":"'Population 2016'!AH92*'Prevalence Rates'!AH92","v":3048.6333439490445},{"$f":"'Population 2016'!AI92*'Prevalence Rates'!AI92","v":1298.6132388535025},{"$f":"'Population 2016'!AJ92*'Prevalence Rates'!AJ92","v":147.11035031847129},{"$f":"'Population 2016'!AK92*'Prevalence Rates'!AK92","v":11.685},{"$f":"'Population 2016'!AL92*'Prevalence Rates'!AL92","v":998.06273885350322},{"$f":"'Population 2016'!AM92*'Prevalence Rates'!AM92","v":2011.0793789808915},{"$f":"'Population 2016'!AN92*'Prevalence Rates'!AN92","v":0},{"$f":"'Population 2016'!AO92*'Prevalence Rates'!AO92","v":0},{"$f":"'Population 2016'!AP92*'Prevalence Rates'!AP92","v":99.330334394904455},{"$f":"'Population 2016'!AQ92*'Prevalence Rates'!AQ92","v":648.49203821656045},{"$f":"'Population 2016'!AR92*'Prevalence Rates'!AR92","v":15723.705},{"$f":"'Population 2016'!AS92*'Prevalence Rates'!AS92","v":139.84394904458597},{"$f":"'Population 2016'!AT92*'Prevalence Rates'!AT92","v":0},{"$f":"'Population 2016'!AU92*'Prevalence Rates'!AU92","v":0},{"$f":"'Population 2016'!AV92*'Prevalence Rates'!AV92","v":317.73367834394901},{"$f":"'Population 2016'!AW92*'Prevalence Rates'!AW92","v":1080.8918789808918},{"$f":"'Population 2016'!AX92*'Prevalence Rates'!AX92","v":157.97078025477705},{"$f":"'Population 2016'!AY92*'Prevalence Rates'!AY92","v":2138.5156050955411},{"$f":"'Population 2016'!AZ92*'Prevalence Rates'!AZ92","v":1005.9222038216562},{"$f":"'Population 2016'!BA92*'Prevalence Rates'!BA92","v":488.05342356687885},{"$f":"'Population 2016'!BB92*'Prevalence Rates'!BB92","v":445.3265923566878},{"$f":"'Population 2016'!BC92*'Prevalence Rates'!BC92","v":0},90]
[null,"Male 70-74",{"$f":"'Population 2016'!C93*'Prevalence Rates'!C93","v":145.18896496815285},{"$f":"'Population 2016'!D93*'Prevalence Rates'!D93","v":192.41273885350319},{"$f":"'Population 2016'!E93*'Prevalence Rates'!E93","v":41.72990445859871},{"$f":"'Population 2016'!F93*'Prevalence Rates'!F93","v":86.991162420382167},{"$f":"'Population 2016'!G93*'Prevalence Rates'!G93","v":94.106751592356673},{"$f":"'Population 2016'!H93*'Prevalence Rates'!H93","v":1527.0947484076432},{"$f":"'Population 2016'!I93*'Prevalence Rates'!I93","v":97.161597611464927},{"$f":"'Population 2016'!J93*'Prevalence Rates'!J93","v":225.73829617834394},{"$f":"'Population 2016'!K93*'Prevalence Rates'!K93","v":148.75557324840761},{"$f":"'Population 2016'!L93*'Prevalence Rates'!L93","v":142.26998694267513},{"$f":"'Population 2016'!M93*'Prevalence Rates'!M93","v":142.08850318471332},{"$f":"'Population 2016'!N93*'Prevalence Rates'!N93","v":563.83160828025473},{"$f":"'Population 2016'!O93*'Prevalence Rates'!O93","v":528.16944267515919},{"$f":"'Population 2016'!P93*'Prevalence Rates'!P93","v":48.776942675159226},{"$f":"'Population 2016'!Q93*'Prevalence Rates'!Q93","v":46.379617834394892},{"$f":"'Population 2016'!R93*'Prevalence Rates'!R93","v":48.222659235668786},{"$f":"'Population 2016'!S93*'Prevalence Rates'!S93","v":1886.9884394904457},{"$f":"'Population 2016'!T93*'Prevalence Rates'!T93","v":428.99187898089161},{"$f":"'Population 2016'!U93*'Prevalence Rates'!U93","v":0},{"$f":"'Population 2016'!V93*'Prevalence Rates'!V93","v":246.50923566878976},{"$f":"'Population 2016'!W93*'Prevalence Rates'!W93","v":849.81248407643307},{"$f":"'Population 2016'!X93*'Prevalence Rates'!X93","v":849.22882165605051},{"$f":"'Population 2016'!Y93*'Prevalence Rates'!Y93","v":493.52986146496806},{"$f":"'Population 2016'!Z93*'Prevalence Rates'!Z93","v":2733.7572611464957},{"$f":"'Population 2016'!AA93*'Prevalence Rates'!AA93","v":6288.6942515923556},{"$f":"'Population 2016'!AB93*'Prevalence Rates'!AB93","v":203.66292993630574},{"$f":"'Population 2016'!AC93*'Prevalence Rates'!AC93","v":4046.1273057324834},{"$f":"'Population 2016'!AD93*'Prevalence Rates'!AD93","v":252.59695222929935},{"$f":"'Population 2016'!AE93*'Prevalence Rates'!AE93","v":173.59256369426748},{"$f":"'Population 2016'!AF93*'Prevalence Rates'!AF93","v":413.18990445859862},{"$f":"'Population 2016'!AG93*'Prevalence Rates'!AG93","v":173.59256369426748},{"$f":"'Population 2016'!AH93*'Prevalence Rates'!AH93","v":2208.3004777070064},{"$f":"'Population 2016'!AI93*'Prevalence Rates'!AI93","v":927.66129936305686},{"$f":"'Population 2016'!AJ93*'Prevalence Rates'!AJ93","v":110.15159235668787},{"$f":"'Population 2016'!AK93*'Prevalence Rates'!AK93","v":9.2249999999999996},{"$f":"'Population 2016'!AL93*'Prevalence Rates'!AL93","v":765.62799363057331},{"$f":"'Population 2016'!AM93*'Prevalence Rates'!AM93","v":1416.8796974522293},{"$f":"'Population 2016'!AN93*'Prevalence Rates'!AN93","v":0},{"$f":"'Population 2016'!AO93*'Prevalence Rates'!AO93","v":0},{"$f":"'Population 2016'!AP93*'Prevalence Rates'!AP93","v":73.418073248407637},{"$f":"'Population 2016'!AQ93*'Prevalence Rates'!AQ93","v":464.50127388535026},{"$f":"'Population 2016'!AR93*'Prevalence Rates'!AR93","v":11290.17},{"$f":"'Population 2016'!AS93*'Prevalence Rates'!AS93","v":97.191544585987245},{"$f":"'Population 2016'!AT93*'Prevalence Rates'!AT93","v":0},{"$f":"'Population 2016'!AU93*'Prevalence Rates'!AU93","v":0},{"$f":"'Population 2016'!AV93*'Prevalence Rates'!AV93","v":249.34528662420379},{"$f":"'Population 2016'!AW93*'Prevalence Rates'!AW93","v":815.97964968152871},{"$f":"'Population 2016'!AX93*'Prevalence Rates'!AX93","v":111.64012738853502},{"$f":"'Population 2016'!AY93*'Prevalence Rates'!AY93","v":1579.9075796178342},{"$f":"'Population 2016'!AZ93*'Prevalence Rates'!AZ93","v":711.58281210191092},{"$f":"'Population 2016'!BA93*'Prevalence Rates'!BA93","v":357.22882165605085},{"$f":"'Population 2016'!BB93*'Prevalence Rates'!BB93","v":347.72961783439479},{"$f":"'Population 2016'!BC93*'Prevalence Rates'!BC93","v":0},91]
[null,"Male 75-79",{"$f":"'Population 2016'!C94*'Prevalence Rates'!C94","v":112.35430254777067},{"$f":"'Population 2016'!D94*'Prevalence Rates'!D94","v":158.60851910828023},{"$f":"'Population 2016'!E94*'Prevalence Rates'!E94","v":42.350713375796161},{"$f":"'Population 2016'!F94*'Prevalence Rates'!F94","v":92.164006369426758},{"$f":"'Population 2016'!G94*'Prevalence Rates'!G94","v":63.650063694267502},{"$f":"'Population 2016'!H94*'Prevalence Rates'!H94","v":1395.9995111464966},{"$f":"'Population 2016'!I94*'Prevalence Rates'!I94","v":59.822265509554114},{"$f":"'Population 2016'!J94*'Prevalence Rates'!J94","v":211.7168280254777},{"$f":"'Population 2016'!K94*'Prevalence Rates'!K94","v":129.55038216560507},{"$f":"'Population 2016'!L94*'Prevalence Rates'!L94","v":135.05668671974519},{"$f":"'Population 2016'!M94*'Prevalence Rates'!M94","v":134.88440445859868},{"$f":"'Population 2016'!N94*'Prevalence Rates'!N94","v":501.61393630573252},{"$f":"'Population 2016'!O94*'Prevalence Rates'!O94","v":526.36444267515913},{"$f":"'Population 2016'!P94*'Prevalence Rates'!P94","v":43.537837579617822},{"$f":"'Population 2016'!Q94*'Prevalence Rates'!Q94","v":51.824745222929927},{"$f":"'Population 2016'!R94*'Prevalence Rates'!R94","v":65.63166560509552},{"$f":"'Population 2016'!S94*'Prevalence Rates'!S94","v":1608.7071401273884},{"$f":"'Population 2016'!T94*'Prevalence Rates'!T94","v":407.8586783439489},{"$f":"'Population 2016'!U94*'Prevalence Rates'!U94","v":0},{"$f":"'Population 2016'!V94*'Prevalence Rates'!V94","v":249.1353503184713},{"$f":"'Population 2016'!W94*'Prevalence Rates'!W94","v":668.6471337579618},{"$f":"'Population 2016'!X94*'Prevalence Rates'!X94","v":668.18789808917165},{"$f":"'Population 2016'!Y94*'Prevalence Rates'!Y94","v":480.00827579617817},{"$f":"'Population 2016'!Z94*'Prevalence Rates'!Z94","v":2403.8874777070055},{"$f":"'Population 2016'!AA94*'Prevalence Rates'!AA94","v":5595.3365732484062},{"$f":"'Population 2016'!AB94*'Prevalence Rates'!AB94","v":165.35423184713375},{"$f":"'Population 2016'!AC94*'Prevalence Rates'!AC94","v":3622.3416573248405},{"$f":"'Population 2016'!AD94*'Prevalence Rates'!AD94","v":198.60059808917194},{"$f":"'Population 2016'!AE94*'Prevalence Rates'!AE94","v":147.79811146496814},{"$f":"'Population 2016'!AF94*'Prevalence Rates'!AF94","v":363.66413375796168},{"$f":"'Population 2016'!AG94*'Prevalence Rates'!AG94","v":147.79811146496814},{"$f":"'Population 2016'!AH94*'Prevalence Rates'!AH94","v":1939.4532611464965},{"$f":"'Population 2016'!AI94*'Prevalence Rates'!AI94","v":864.49736942675122},{"$f":"'Population 2016'!AJ94*'Prevalence Rates'!AJ94","v":98.551974522292966},{"$f":"'Population 2016'!AK94*'Prevalence Rates'!AK94","v":5.0469999999999997},{"$f":"'Population 2016'!AL94*'Prevalence Rates'!AL94","v":669.06963057324845},{"$f":"'Population 2016'!AM94*'Prevalence Rates'!AM94","v":1306.5943630573247},{"$f":"'Population 2016'!AN94*'Prevalence Rates'!AN94","v":0},{"$f":"'Population 2016'!AO94*'Prevalence Rates'!AO94","v":0},{"$f":"'Population 2016'!AP94*'Prevalence Rates'!AP94","v":69.436433121019107},{"$f":"'Population 2016'!AQ94*'Prevalence Rates'!AQ94","v":480.20436942675144},{"$f":"'Population 2016'!AR94*'Prevalence Rates'!AR94","v":10031.993999999999},{"$f":"'Population 2016'!AS94*'Prevalence Rates'!AS94","v":59.840703821656035},{"$f":"'Population 2016'!AT94*'Prevalence Rates'!AT94","v":0},{"$f":"'Population 2016'!AU94*'Prevalence Rates'!AU94","v":0},{"$f":"'Population 2016'!AV94*'Prevalence Rates'!AV94","v":218.53188535031848},{"$f":"'Population 2016'!AW94*'Prevalence Rates'!AW94","v":665.09264968152877},{"$f":"'Population 2016'!AX94*'Prevalence Rates'!AX94","v":113.8674840764331},{"$f":"'Population 2016'!AY94*'Prevalence Rates'!AY94","v":1330.9935541401271},{"$f":"'Population 2016'!AZ94*'Prevalence Rates'!AZ94","v":651.71878853503199},{"$f":"'Population 2016'!BA94*'Prevalence Rates'!BA94","v":280.13375796178337},{"$f":"'Population 2016'!BB94*'Prevalence Rates'!BB94","v":309.15745222929928},{"$f":"'Population 2016'!BC94*'Prevalence Rates'!BC94","v":0},92]
[null,"Male 80-84",{"$f":"'Population 2016'!C95*'Prevalence Rates'!C95","v":80.733630573248391},{"$f":"'Population 2016'!D95*'Prevalence Rates'!D95","v":114.19813375796177},{"$f":"'Population 2016'!E95*'Prevalence Rates'!E95","v":30.667757961783426},{"$f":"'Population 2016'!F95*'Prevalence Rates'!F95","v":52.125544585987264},{"$f":"'Population 2016'!G95*'Prevalence Rates'!G95","v":48.798382165605084},{"$f":"'Population 2016'!H95*'Prevalence Rates'!H95","v":936.36958853503165},{"$f":"'Population 2016'!I95*'Prevalence Rates'!I95","v":45.891052993630552},{"$f":"'Population 2016'!J95*'Prevalence Rates'!J95","v":101.10073248407643},{"$f":"'Population 2016'!K95*'Prevalence Rates'!K95","v":57.657038216560501},{"$f":"'Population 2016'!L95*'Prevalence Rates'!L95","v":85.609703057324822},{"$f":"'Population 2016'!M95*'Prevalence Rates'!M95","v":85.500496815286581},{"$f":"'Population 2016'!N95*'Prevalence Rates'!N95","v":318.79680891719744},{"$f":"'Population 2016'!O95*'Prevalence Rates'!O95","v":349.80440127388528},{"$f":"'Population 2016'!P95*'Prevalence Rates'!P95","v":27.942194267515916},{"$f":"'Population 2016'!Q95*'Prevalence Rates'!Q95","v":33.133853503184703},{"$f":"'Population 2016'!R95*'Prevalence Rates'!R95","v":31.191286624203812},{"$f":"'Population 2016'!S95*'Prevalence Rates'!S95","v":1111.1758089171974},{"$f":"'Population 2016'!T95*'Prevalence Rates'!T95","v":279.03159235668778},{"$f":"'Population 2016'!U95*'Prevalence Rates'!U95","v":0},{"$f":"'Population 2016'!V95*'Prevalence Rates'!V95","v":182.22471337579614},{"$f":"'Population 2016'!W95*'Prevalence Rates'!W95","v":484.76917197452229},{"$f":"'Population 2016'!X95*'Prevalence Rates'!X95","v":484.43622611464946},{"$f":"'Population 2016'!Y95*'Prevalence Rates'!Y95","v":289.63672165605084},{"$f":"'Population 2016'!Z95*'Prevalence Rates'!Z95","v":1642.7410955414007},{"$f":"'Population 2016'!AA95*'Prevalence Rates'!AA95","v":3700.1903694267507},{"$f":"'Population 2016'!AB95*'Prevalence Rates'!AB95","v":117.60107006369427},{"$f":"'Population 2016'!AC95*'Prevalence Rates'!AC95","v":2410.3659152866239},{"$f":"'Population 2016'!AD95*'Prevalence Rates'!AD95","v":138.52568407643309},{"$f":"'Population 2016'!AE95*'Prevalence Rates'!AE95","v":98.274136942675142},{"$f":"'Population 2016'!AF95*'Prevalence Rates'!AF95","v":233.57874203821649},{"$f":"'Population 2016'!AG95*'Prevalence Rates'!AG95","v":98.274136942675142},{"$f":"'Population 2016'!AH95*'Prevalence Rates'!AH95","v":1265.6029872611464},{"$f":"'Population 2016'!AI95*'Prevalence Rates'!AI95","v":570.83223248407614},{"$f":"'Population 2016'!AJ95*'Prevalence Rates'!AJ95","v":62.869363057324826},{"$f":"'Population 2016'!AK95*'Prevalence Rates'!AK95","v":2.1629999999999998},{"$f":"'Population 2016'!AL95*'Prevalence Rates'!AL95","v":435.83761146496818},{"$f":"'Population 2016'!AM95*'Prevalence Rates'!AM95","v":857.50780254777055},{"$f":"'Population 2016'!AN95*'Prevalence Rates'!AN95","v":0},{"$f":"'Population 2016'!AO95*'Prevalence Rates'!AO95","v":0},{"$f":"'Population 2016'!AP95*'Prevalence Rates'!AP95","v":46.290955414012736},{"$f":"'Population 2016'!AQ95*'Prevalence Rates'!AQ95","v":300.56974522292984},{"$f":"'Population 2016'!AR95*'Prevalence Rates'!AR95","v":6659.1559999999999},{"$f":"'Population 2016'!AS95*'Prevalence Rates'!AS95","v":45.905197452229288},{"$f":"'Population 2016'!AT95*'Prevalence Rates'!AT95","v":0},{"$f":"'Population 2016'!AU95*'Prevalence Rates'!AU95","v":0},{"$f":"'Population 2016'!AV95*'Prevalence Rates'!AV95","v":161.06083757961784},{"$f":"'Population 2016'!AW95*'Prevalence Rates'!AW95","v":429.9662834394905},{"$f":"'Population 2016'!AX95*'Prevalence Rates'!AX95","v":58.242563694267503},{"$f":"'Population 2016'!AY95*'Prevalence Rates'!AY95","v":905.24535031847108},{"$f":"'Population 2016'!AZ95*'Prevalence Rates'!AZ95","v":410.0951560509555},{"$f":"'Population 2016'!BA95*'Prevalence Rates'!BA95","v":186.28894904458593},{"$f":"'Population 2016'!BB95*'Prevalence Rates'!BB95","v":193.98114649681523},{"$f":"'Population 2016'!BC95*'Prevalence Rates'!BC95","v":0},93]
[null,"Male 85-89",{"$f":"'Population 2016'!C96*'Prevalence Rates'!C96","v":41.712375796178335},{"$f":"'Population 2016'!D96*'Prevalence Rates'!D96","v":58.508920382165599},{"$f":"'Population 2016'!E96*'Prevalence Rates'!E96","v":15.333878980891713},{"$f":"'Population 2016'!F96*'Prevalence Rates'!F96","v":27.951378980891722},{"$f":"'Population 2016'!G96*'Prevalence Rates'!G96","v":27.581694267515914},{"$f":"'Population 2016'!H96*'Prevalence Rates'!H96","v":439.4093168789808},{"$f":"'Population 2016'!I96*'Prevalence Rates'!I96","v":31.140357388535019},{"$f":"'Population 2016'!J96*'Prevalence Rates'!J96","v":61.849859872611461},{"$f":"'Population 2016'!K96*'Prevalence Rates'!K96","v":39.149840764331202},{"$f":"'Population 2016'!L96*'Prevalence Rates'!L96","v":49.446983662420372},{"$f":"'Population 2016'!M96*'Prevalence Rates'!M96","v":49.383907643312078},{"$f":"'Population 2016'!N96*'Prevalence Rates'!N96","v":169.2191592356688},{"$f":"'Population 2016'!O96*'Prevalence Rates'!O96","v":172.41543949044583},{"$f":"'Population 2016'!P96*'Prevalence Rates'!P96","v":14.945824840764327},{"$f":"'Population 2016'!Q96*'Prevalence Rates'!Q96","v":8.4958598726114634},{"$f":"'Population 2016'!R96*'Prevalence Rates'!R96","v":15.595643312101906},{"$f":"'Population 2016'!S96*'Prevalence Rates'!S96","v":532.63530573248408},{"$f":"'Population 2016'!T96*'Prevalence Rates'!T96","v":131.63990445859869},{"$f":"'Population 2016'!U96*'Prevalence Rates'!U96","v":0},{"$f":"'Population 2016'!V96*'Prevalence Rates'!V96","v":74.028789808917182},{"$f":"'Population 2016'!W96*'Prevalence Rates'!W96","v":232.02055541401276},{"$f":"'Population 2016'!X96*'Prevalence Rates'!X96","v":231.86120063694258},{"$f":"'Population 2016'!Y96*'Prevalence Rates'!Y96","v":141.41886878980887},{"$f":"'Population 2016'!Z96*'Prevalence Rates'!Z96","v":785.81652229299334},{"$f":"'Population 2016'!AA96*'Prevalence Rates'!AA96","v":1753.9863439490443},{"$f":"'Population 2016'!AB96*'Prevalence Rates'!AB96","v":62.007836942675155},{"$f":"'Population 2016'!AC96*'Prevalence Rates'!AC96","v":1156.2034070063694},{"$f":"'Population 2016'!AD96*'Prevalence Rates'!AD96","v":73.503424203821652},{"$f":"'Population 2016'!AE96*'Prevalence Rates'!AE96","v":50.297786624203816},{"$f":"'Population 2016'!AF96*'Prevalence Rates'!AF96","v":101.33723885350315},{"$f":"'Population 2016'!AG96*'Prevalence Rates'!AG96","v":50.297786624203816},{"$f":"'Population 2016'!AH96*'Prevalence Rates'!AH96","v":584.43708917197443},{"$f":"'Population 2016'!AI96*'Prevalence Rates'!AI96","v":266.60834904458585},{"$f":"'Population 2016'!AJ96*'Prevalence Rates'!AJ96","v":47.576815286624196},{"$f":"'Population 2016'!AK96*'Prevalence Rates'!AK96","v":2.8839999999999999},{"$f":"'Population 2016'!AL96*'Prevalence Rates'!AL96","v":197.1085414012739},{"$f":"'Population 2016'!AM96*'Prevalence Rates'!AM96","v":370.40800955414005},{"$f":"'Population 2016'!AN96*'Prevalence Rates'!AN96","v":0},{"$f":"'Population 2016'!AO96*'Prevalence Rates'!AO96","v":0},{"$f":"'Population 2016'!AP96*'Prevalence Rates'!AP96","v":23.145477707006368},{"$f":"'Population 2016'!AQ96*'Prevalence Rates'!AQ96","v":159.83238216560505},{"$f":"'Population 2016'!AR96*'Prevalence Rates'!AR96","v":3207.7289999999998},{"$f":"'Population 2016'!AS96*'Prevalence Rates'!AS96","v":31.149955414012734},{"$f":"'Population 2016'!AT96*'Prevalence Rates'!AT96","v":0},{"$f":"'Population 2016'!AU96*'Prevalence Rates'!AU96","v":0},{"$f":"'Population 2016'!AV96*'Prevalence Rates'!AV96","v":75.209025477707002},{"$f":"'Population 2016'!AW96*'Prevalence Rates'!AW96","v":219.74426751592358},{"$f":"'Population 2016'!AX96*'Prevalence Rates'!AX96","v":32.066130573248401},{"$f":"'Population 2016'!AY96*'Prevalence Rates'!AY96","v":452.62267515923554},{"$f":"'Population 2016'!AZ96*'Prevalence Rates'!AZ96","v":216.50068598726116},{"$f":"'Population 2016'!BA96*'Prevalence Rates'!BA96","v":84.040127388534998},{"$f":"'Population 2016'!BB96*'Prevalence Rates'!BB96","v":78.804840764331189},{"$f":"'Population 2016'!BC96*'Prevalence Rates'!BC96","v":0},94]
[null,"Male 90+",{"$f":"'Population 2016'!C97*'Prevalence Rates'!C97","v":16.819506369426747},{"$f":"'Population 2016'!D97*'Prevalence Rates'!D97","v":28.197070063694266},{"$f":"'Population 2016'!E97*'Prevalence Rates'!E97","v":10.952770700636938},{"$f":"'Population 2016'!F97*'Prevalence Rates'!F97","v":8.3098694267515931},{"$f":"'Population 2016'!G97*'Prevalence Rates'!G97","v":8.4866751592356664},{"$f":"'Population 2016'!H97*'Prevalence Rates'!H97","v":167.20885509554137},{"$f":"'Population 2016'!I97*'Prevalence Rates'!I97","v":11.472763248407638},{"$f":"'Population 2016'!J97*'Prevalence Rates'!J97","v":26.761958598726114},{"$f":"'Population 2016'!K97*'Prevalence Rates'!K97","v":20.642643312101907},{"$f":"'Population 2016'!L97*'Prevalence Rates'!L97","v":19.18838171974522},{"$f":"'Population 2016'!M97*'Prevalence Rates'!M97","v":19.163904458598719},{"$f":"'Population 2016'!N97*'Prevalence Rates'!N97","v":68.74528343949045},{"$f":"'Population 2016'!O97*'Prevalence Rates'!O97","v":67.142550955413995},{"$f":"'Population 2016'!P97*'Prevalence Rates'!P97","v":5.8483662420382148},{"$f":"'Population 2016'!Q97*'Prevalence Rates'!Q97","v":5.9471019108280245},{"$f":"'Population 2016'!R97*'Prevalence Rates'!R97","v":7.1480031847133736},{"$f":"'Population 2016'!S97*'Prevalence Rates'!S97","v":250.45335668789807},{"$f":"'Population 2016'!T97*'Prevalence Rates'!T97","v":61.882006369426733},{"$f":"'Population 2016'!U97*'Prevalence Rates'!U97","v":0},{"$f":"'Population 2016'!V97*'Prevalence Rates'!V97","v":37.014394904458591},{"$f":"'Population 2016'!W97*'Prevalence Rates'!W97","v":104.30895286624204},{"$f":"'Population 2016'!X97*'Prevalence Rates'!X97","v":104.23731210191077},{"$f":"'Population 2016'!Y97*'Prevalence Rates'!Y97","v":65.950145541401255},{"$f":"'Population 2016'!Z97*'Prevalence Rates'!Z97","v":336.67485350318458},{"$f":"'Population 2016'!AA97*'Prevalence Rates'!AA97","v":766.61817515923553},{"$f":"'Population 2016'!AB97*'Prevalence Rates'!AB97","v":29.934817834394902},{"$f":"'Population 2016'!AC97*'Prevalence Rates'!AC97","v":509.81634458598722},{"$f":"'Population 2016'!AD97*'Prevalence Rates'!AD97","v":23.323201910828022},{"$f":"'Population 2016'!AE97*'Prevalence Rates'!AE97","v":16.250054140127386},{"$f":"'Population 2016'!AF97*'Prevalence Rates'!AF97","v":45.278340764331197},{"$f":"'Population 2016'!AG97*'Prevalence Rates'!AG97","v":16.250054140127386},{"$f":"'Population 2016'!AH97*'Prevalence Rates'!AH97","v":250.35691719745219},{"$f":"'Population 2016'!AI97*'Prevalence Rates'!AI97","v":132.64425286624197},{"$f":"'Population 2016'!AJ97*'Prevalence Rates'!AJ97","v":25.487579617834388},{"$f":"'Population 2016'!AK97*'Prevalence Rates'!AK97","v":1.4419999999999999},{"$f":"'Population 2016'!AL97*'Prevalence Rates'!AL97","v":72.246955414012746},{"$f":"'Population 2016'!AM97*'Prevalence Rates'!AM97","v":166.19738853503182},{"$f":"'Population 2016'!AN97*'Prevalence Rates'!AN97","v":0},{"$f":"'Population 2016'!AO97*'Prevalence Rates'!AO97","v":0},{"$f":"'Population 2016'!AP97*'Prevalence Rates'!AP97","v":6.5096656050955408},{"$f":"'Population 2016'!AQ97*'Prevalence Rates'!AQ97","v":66.478955414012717},{"$f":"'Population 2016'!AR97*'Prevalence Rates'!AR97","v":1381.4359999999999},{"$f":"'Population 2016'!AS97*'Prevalence Rates'!AS97","v":11.476299363057322},{"$f":"'Population 2016'!AT97*'Prevalence Rates'!AT97","v":0},{"$f":"'Population 2016'!AU97*'Prevalence Rates'!AU97","v":0},{"$f":"'Population 2016'!AV97*'Prevalence Rates'!AV97","v":29.7998025477707},{"$f":"'Population 2016'!AW97*'Prevalence Rates'!AW97","v":87.89770700636943},{"$f":"'Population 2016'!AX97*'Prevalence Rates'!AX97","v":10.470573248407641},{"$f":"'Population 2016'!AY97*'Prevalence Rates'!AY97","v":188.82852229299357},{"$f":"'Population 2016'!AZ97*'Prevalence Rates'!AZ97","v":82.019031210191088},{"$f":"'Population 2016'!BA97*'Prevalence Rates'!BA97","v":50.424076433121002},{"$f":"'Population 2016'!BB97*'Prevalence Rates'!BB97","v":40.917898089171963},{"$f":"'Population 2016'!BC97*'Prevalence Rates'!BC97","v":0},95]
["SIMD Q2","Female 0-4",{"$f":"'Population 2016'!C98*'Prevalence Rates'!C98","v":0},{"$f":"'Population 2016'!D98*'Prevalence Rates'!D98","v":0},{"$f":"'Population 2016'!E98*'Prevalence Rates'!E98","v":0},{"$f":"'Population 2016'!F98*'Prevalence Rates'!F98","v":0},{"$f":"'Population 2016'!G98*'Prevalence Rates'!G98","v":0},{"$f":"'Population 2016'!H98*'Prevalence Rates'!H98","v":0},{"$f":"'Population 2016'!I98*'Prevalence Rates'!I98","v":0},{"$f":"'Population 2016'!J98*'Prevalence Rates'!J98","v":0},{"$f":"'Population 2016'!K98*'Prevalence Rates'!K98","v":0},{"$f":"'Population 2016'!L98*'Prevalence Rates'!L98","v":0},{"$f":"'Population 2016'!M98*'Prevalence Rates'!M98","v":0},{"$f":"'Population 2016'!N98*'Prevalence Rates'!N98","v":0},{"$f":"'Population 2016'!O98*'Prevalence Rates'!O98","v":0},{"$f":"'Population 2016'!P98*'Prevalence Rates'!P98","v":0},{"$f":"'Population 2016'!Q98*'Prevalence Rates'!Q98","v":0},{"$f":"'Population 2016'!R98*'Prevalence Rates'!R98","v":0},{"$f":"'Population 2016'!S98*'Prevalence Rates'!S98","v":0},{"$f":"'Population 2016'!T98*'Prevalence Rates'!T98","v":0},{"$f":"'Population 2016'!U98*'Prevalence Rates'!U98","v":0},{"$f":"'Population 2016'!V98*'Prevalence Rates'!V98","v":0},{"$f":"'Population 2016'!W98*'Prevalence Rates'!W98","v":0},{"$f":"'Population 2016'!X98*'Prevalence Rates'!X98","v":0},{"$f":"'Population 2016'!Y98*'Prevalence Rates'!Y98","v":0},{"$f":"'Population 2016'!Z98*'Prevalence Rates'!Z98","v":0},{"$f":"'Population 2016'!AA98*'Prevalence Rates'!AA98","v":0},{"$f":"'Population 2016'!AB98*'Prevalence Rates'!AB98","v":0},{"$f":"'Population 2016'!AC98*'Prevalence Rates'!AC98","v":0},{"$f":"'Population 2016'!AD98*'Prevalence Rates'!AD98","v":0},{"$f":"'Population 2016'!AE98*'Prevalence Rates'!AE98","v":0},{"$f":"'Population 2016'!AF98*'Prevalence Rates'!AF98","v":0},{"$f":"'Population 2016'!AG98*'Prevalence Rates'!AG98","v":0},{"$f":"'Population 2016'!AH98*'Prevalence Rates'!AH98","v":0},{"$f":"'Population 2016'!AI98*'Prevalence Rates'!AI98","v":0},{"$f":"'Population 2016'!AJ98*'Prevalence Rates'!AJ98","v":0},{"$f":"'Population 2016'!AK98*'Prevalence Rates'!AK98","v":0},{"$f":"'Population 2016'!AL98*'Prevalence Rates'!AL98","v":0},{"$f":"'Population 2016'!AM98*'Prevalence Rates'!AM98","v":0},{"$f":"'Population 2016'!AN98*'Prevalence Rates'!AN98","v":0},{"$f":"'Population 2016'!AO98*'Prevalence Rates'!AO98","v":0},{"$f":"'Population 2016'!AP98*'Prevalence Rates'!AP98","v":0},{"$f":"'Population 2016'!AQ98*'Prevalence Rates'!AQ98","v":0},{"$f":"'Population 2016'!AR98*'Prevalence Rates'!AR98","v":0},{"$f":"'Population 2016'!AS98*'Prevalence Rates'!AS98","v":0},{"$f":"'Population 2016'!AT98*'Prevalence Rates'!AT98","v":0},{"$f":"'Population 2016'!AU98*'Prevalence Rates'!AU98","v":0},{"$f":"'Population 2016'!AV98*'Prevalence Rates'!AV98","v":0},{"$f":"'Population 2016'!AW98*'Prevalence Rates'!AW98","v":0},{"$f":"'Population 2016'!AX98*'Prevalence Rates'!AX98","v":0},{"$f":"'Population 2016'!AY98*'Prevalence Rates'!AY98","v":0},{"$f":"'Population 2016'!AZ98*'Prevalence Rates'!AZ98","v":0},{"$f":"'Population 2016'!BA98*'Prevalence Rates'!BA98","v":0},{"$f":"'Population 2016'!BB98*'Prevalence Rates'!BB98","v":0},{"$f":"'Population 2016'!BC98*'Prevalence Rates'!BC98","v":0},96]
[null,"Female 5-9",{"$f":"'Population 2016'!C99*'Prevalence Rates'!C99","v":0},{"$f":"'Population 2016'!D99*'Prevalence Rates'!D99","v":0},{"$f":"'Population 2016'!E99*'Prevalence Rates'!E99","v":0},{"$f":"'Population 2016'!F99*'Prevalence Rates'!F99","v":0},{"$f":"'Population 2016'!G99*'Prevalence Rates'!G99","v":0},{"$f":"'Population 2016'!H99*'Prevalence Rates'!H99","v":0},{"$f":"'Population 2016'!I99*'Prevalence Rates'!I99","v":0},{"$f":"'Population 2016'!J99*'Prevalence Rates'!J99","v":0},{"$f":"'Population 2016'!K99*'Prevalence Rates'!K99","v":0},{"$f":"'Population 2016'!L99*'Prevalence Rates'!L99","v":0},{"$f":"'Population 2016'!M99*'Prevalence Rates'!M99","v":0},{"$f":"'Population 2016'!N99*'Prevalence Rates'!N99","v":0},{"$f":"'Population 2016'!O99*'Prevalence Rates'!O99","v":0},{"$f":"'Population 2016'!P99*'Prevalence Rates'!P99","v":0},{"$f":"'Population 2016'!Q99*'Prevalence Rates'!Q99","v":0},{"$f":"'Population 2016'!R99*'Prevalence Rates'!R99","v":0},{"$f":"'Population 2016'!S99*'Prevalence Rates'!S99","v":0},{"$f":"'Population 2016'!T99*'Prevalence Rates'!T99","v":0},{"$f":"'Population 2016'!U99*'Prevalence Rates'!U99","v":0},{"$f":"'Population 2016'!V99*'Prevalence Rates'!V99","v":0},{"$f":"'Population 2016'!W99*'Prevalence Rates'!W99","v":0},{"$f":"'Population 2016'!X99*'Prevalence Rates'!X99","v":0},{"$f":"'Population 2016'!Y99*'Prevalence Rates'!Y99","v":0},{"$f":"'Population 2016'!Z99*'Prevalence Rates'!Z99","v":0},{"$f":"'Population 2016'!AA99*'Prevalence Rates'!AA99","v":0},{"$f":"'Population 2016'!AB99*'Prevalence Rates'!AB99","v":0},{"$f":"'Population 2016'!AC99*'Prevalence Rates'!AC99","v":0},{"$f":"'Population 2016'!AD99*'Prevalence Rates'!AD99","v":0},{"$f":"'Population 2016'!AE99*'Prevalence Rates'!AE99","v":0},{"$f":"'Population 2016'!AF99*'Prevalence Rates'!AF99","v":0},{"$f":"'Population 2016'!AG99*'Prevalence Rates'!AG99","v":0},{"$f":"'Population 2016'!AH99*'Prevalence Rates'!AH99","v":0},{"$f":"'Population 2016'!AI99*'Prevalence Rates'!AI99","v":0},{"$f":"'Population 2016'!AJ99*'Prevalence Rates'!AJ99","v":0},{"$f":"'Population 2016'!AK99*'Prevalence Rates'!AK99","v":0},{"$f":"'Population 2016'!AL99*'Prevalence Rates'!AL99","v":0},{"$f":"'Population 2016'!AM99*'Prevalence Rates'!AM99","v":0},{"$f":"'Population 2016'!AN99*'Prevalence Rates'!AN99","v":0},{"$f":"'Population 2016'!AO99*'Prevalence Rates'!AO99","v":0},{"$f":"'Population 2016'!AP99*'Prevalence Rates'!AP99","v":0},{"$f":"'Population 2016'!AQ99*'Prevalence Rates'!AQ99","v":0},{"$f":"'Population 2016'!AR99*'Prevalence Rates'!AR99","v":0},{"$f":"'Population 2016'!AS99*'Prevalence Rates'!AS99","v":0},{"$f":"'Population 2016'!AT99*'Prevalence Rates'!AT99","v":0},{"$f":"'Population 2016'!AU99*'Prevalence Rates'!AU99","v":0},{"$f":"'Population 2016'!AV99*'Prevalence Rates'!AV99","v":0},{"$f":"'Population 2016'!AW99*'Prevalence Rates'!AW99","v":0},{"$f":"'Population 2016'!AX99*'Prevalence Rates'!AX99","v":0},{"$f":"'Population 2016'!AY99*'Prevalence Rates'!AY99","v":0},{"$f":"'Population 2016'!AZ99*'Prevalence Rates'!AZ99","v":0},{"$f":"'Population 2016'!BA99*'Prevalence Rates'!BA99","v":0},{"$f":"'Population 2016'!BB99*'Prevalence Rates'!BB99","v":0},{"$f":"'Population 2016'!BC99*'Prevalence Rates'!BC99","v":0},97]
[null,"Female 10-15",{"$f":"'Population 2016'!C100*'Prevalence Rates'!C100","v":0},{"$f":"'Population 2016'!D100*'Prevalence Rates'!D100","v":0},{"$f":"'Population 2016'!E100*'Prevalence Rates'!E100","v":0},{"$f":"'Population 2016'!F100*'Prevalence Rates'!F100","v":0},{"$f":"'Population 2016'!G100*'Prevalence Rates'!G100","v":0},{"$f":"'Population 2016'!H100*'Prevalence Rates'!H100","v":0},{"$f":"'Population 2016'!I100*'Prevalence Rates'!I100","v":0},{"$f":"'Population 2016'!J100*'Prevalence Rates'!J100","v":0},{"$f":"'Population 2016'!K100*'Prevalence Rates'!K100","v":0},{"$f":"'Population 2016'!L100*'Prevalence Rates'!L100","v":0},{"$f":"'Population 2016'!M100*'Prevalence Rates'!M100","v":0},{"$f":"'Population 2016'!N100*'Prevalence Rates'!N100","v":0},{"$f":"'Population 2016'!O100*'Prevalence Rates'!O100","v":0},{"$f":"'Population 2016'!P100*'Prevalence Rates'!P100","v":0},{"$f":"'Population 2016'!Q100*'Prevalence Rates'!Q100","v":0},{"$f":"'Population 2016'!R100*'Prevalence Rates'!R100","v":0},{"$f":"'Population 2016'!S100*'Prevalence Rates'!S100","v":0},{"$f":"'Population 2016'!T100*'Prevalence Rates'!T100","v":0},{"$f":"'Population 2016'!U100*'Prevalence Rates'!U100","v":0},{"$f":"'Population 2016'!V100*'Prevalence Rates'!V100","v":0},{"$f":"'Population 2016'!W100*'Prevalence Rates'!W100","v":0},{"$f":"'Population 2016'!X100*'Prevalence Rates'!X100","v":0},{"$f":"'Population 2016'!Y100*'Prevalence Rates'!Y100","v":0},{"$f":"'Population 2016'!Z100*'Prevalence Rates'!Z100","v":0},{"$f":"'Population 2016'!AA100*'Prevalence Rates'!AA100","v":0},{"$f":"'Population 2016'!AB100*'Prevalence Rates'!AB100","v":0},{"$f":"'Population 2016'!AC100*'Prevalence Rates'!AC100","v":0},{"$f":"'Population 2016'!AD100*'Prevalence Rates'!AD100","v":0},{"$f":"'Population 2016'!AE100*'Prevalence Rates'!AE100","v":0},{"$f":"'Population 2016'!AF100*'Prevalence Rates'!AF100","v":0},{"$f":"'Population 2016'!AG100*'Prevalence Rates'!AG100","v":0},{"$f":"'Population 2016'!AH100*'Prevalence Rates'!AH100","v":0},{"$f":"'Population 2016'!AI100*'Prevalence Rates'!AI100","v":0},{"$f":"'Population 2016'!AJ100*'Prevalence Rates'!AJ100","v":0},{"$f":"'Population 2016'!AK100*'Prevalence Rates'!AK100","v":0},{"$f":"'Population 2016'!AL100*'Prevalence Rates'!AL100","v":0},{"$f":"'Population 2016'!AM100*'Prevalence Rates'!AM100","v":0},{"$f":"'Population 2016'!AN100*'Prevalence Rates'!AN100","v":0},{"$f":"'Population 2016'!AO100*'Prevalence Rates'!AO100","v":0},{"$f":"'Population 2016'!AP100*'Prevalence Rates'!AP100","v":0},{"$f":"'Population 2016'!AQ100*'Prevalence Rates'!AQ100","v":0},{"$f":"'Population 2016'!AR100*'Prevalence Rates'!AR100","v":0},{"$f":"'Population 2016'!AS100*'Prevalence Rates'!AS100","v":0},{"$f":"'Population 2016'!AT100*'Prevalence Rates'!AT100","v":0},{"$f":"'Population 2016'!AU100*'Prevalence Rates'!AU100","v":0},{"$f":"'Population 2016'!AV100*'Prevalence Rates'!AV100","v":0},{"$f":"'Population 2016'!AW100*'Prevalence Rates'!AW100","v":0},{"$f":"'Population 2016'!AX100*'Prevalence Rates'!AX100","v":0},{"$f":"'Population 2016'!AY100*'Prevalence Rates'!AY100","v":0},{"$f":"'Population 2016'!AZ100*'Prevalence Rates'!AZ100","v":0},{"$f":"'Population 2016'!BA100*'Prevalence Rates'!BA100","v":0},{"$f":"'Population 2016'!BB100*'Prevalence Rates'!BB100","v":0},{"$f":"'Population 2016'!BC100*'Prevalence Rates'!BC100","v":0},98]
[null,"Female 16-19",{"$f":"'Population 2016'!C101*'Prevalence Rates'!C101","v":146.20968454258676},{"$f":"'Population 2016'!D101*'Prevalence Rates'!D101","v":223.8381752001942},{"$f":"'Population 2016'!E101*'Prevalence Rates'!E101","v":68.540363989322998},{"$f":"'Population 2016'!F101*'Prevalence Rates'!F101","v":71.777653482164538},{"$f":"'Population 2016'!G101*'Prevalence Rates'!G101","v":49.188296529968461},{"$f":"'Population 2016'!H101*'Prevalence Rates'!H101","v":364.78944697888869},{"$f":"'Population 2016'!I101*'Prevalence Rates'!I101","v":66.824804707595263},{"$f":"'Population 2016'!J101*'Prevalence Rates'!J101","v":118.41190973064795},{"$f":"'Population 2016'!K101*'Prevalence Rates'!K101","v":65.593227371997088},{"$f":"'Population 2016'!L101*'Prevalence Rates'!L101","v":182.87950031545742},{"$f":"'Population 2016'!M101*'Prevalence Rates'!M101","v":182.77198738170352},{"$f":"'Population 2016'!N101*'Prevalence Rates'!N101","v":128.53772385343365},{"$f":"'Population 2016'!O101*'Prevalence Rates'!O101","v":140.56343120601795},{"$f":"'Population 2016'!P101*'Prevalence Rates'!P101","v":62.530116476583373},{"$f":"'Population 2016'!Q101*'Prevalence Rates'!Q101","v":93.269381218150954},{"$f":"'Population 2016'!R101*'Prevalence Rates'!R101","v":37.448398446978899},{"$f":"'Population 2016'!S101*'Prevalence Rates'!S101","v":991.39243387527313},{"$f":"'Population 2016'!T101*'Prevalence Rates'!T101","v":232.99275903906829},{"$f":"'Population 2016'!U101*'Prevalence Rates'!U101","v":20.9118563455472},{"$f":"'Population 2016'!V101*'Prevalence Rates'!V101","v":185.21613443338995},{"$f":"'Population 2016'!W101*'Prevalence Rates'!W101","v":277.41803106042227},{"$f":"'Population 2016'!X101*'Prevalence Rates'!X101","v":277.28277117204567},{"$f":"'Population 2016'!Y101*'Prevalence Rates'!Y101","v":293.89706381946132},{"$f":"'Population 2016'!Z101*'Prevalence Rates'!Z101","v":479.73389953894701},{"$f":"'Population 2016'!AA101*'Prevalence Rates'!AA101","v":1563.5678233438489},{"$f":"'Population 2016'!AB101*'Prevalence Rates'!AB101","v":278.24375054598408},{"$f":"'Population 2016'!AC101*'Prevalence Rates'!AC101","v":851.33034166464449},{"$f":"'Population 2016'!AD101*'Prevalence Rates'!AD101","v":216.92367580684308},{"$f":"'Population 2016'!AE101*'Prevalence Rates'!AE101","v":179.1594103372968},{"$f":"'Population 2016'!AF101*'Prevalence Rates'!AF101","v":36.82378791555449},{"$f":"'Population 2016'!AG101*'Prevalence Rates'!AG101","v":179.1594103372968},{"$f":"'Population 2016'!AH101*'Prevalence Rates'!AH101","v":706.53510895413751},{"$f":"'Population 2016'!AI101*'Prevalence Rates'!AI101","v":641.19546129580203},{"$f":"'Population 2016'!AJ101*'Prevalence Rates'!AJ101","v":128.41436544528028},{"$f":"'Population 2016'!AK101*'Prevalence Rates'!AK101","v":52.247498180053398},{"$f":"'Population 2016'!AL101*'Prevalence Rates'!AL101","v":115.98991506915802},{"$f":"'Population 2016'!AM101*'Prevalence Rates'!AM101","v":420.65043436059221},{"$f":"'Population 2016'!AN101*'Prevalence Rates'!AN101","v":8.955316573647174},{"$f":"'Population 2016'!AO101*'Prevalence Rates'!AO101","v":8.9604246542101471},{"$f":"'Population 2016'!AP101*'Prevalence Rates'!AP101","v":63.996083474884756},{"$f":"'Population 2016'!AQ101*'Prevalence Rates'!AQ101","v":123.96216937636498},{"$f":"'Population 2016'!AR101*'Prevalence Rates'!AR101","v":4138.6590000000015},{"$f":"'Population 2016'!AS101*'Prevalence Rates'!AS101","v":66.826377092938628},{"$f":"'Population 2016'!AT101*'Prevalence Rates'!AT101","v":2.3858992962873096},{"$f":"'Population 2016'!AU101*'Prevalence Rates'!AU101","v":2.3837709293860723},{"$f":"'Population 2016'!AV101*'Prevalence Rates'!AV101","v":106.91699102159671},{"$f":"'Population 2016'!AW101*'Prevalence Rates'!AW101","v":289.94611987381711},{"$f":"'Population 2016'!AX101*'Prevalence Rates'!AX101","v":55.352307692307704},{"$f":"'Population 2016'!AY101*'Prevalence Rates'!AY101","v":514.13178354768263},{"$f":"'Population 2016'!AZ101*'Prevalence Rates'!AZ101","v":238.68661829653004},{"$f":"'Population 2016'!BA101*'Prevalence Rates'!BA101","v":99.247920407668062},{"$f":"'Population 2016'!BB101*'Prevalence Rates'!BB101","v":206.11105071584572},{"$f":"'Population 2016'!BC101*'Prevalence Rates'!BC101","v":20.935945983984471},99]
[null,"Female 20-24",{"$f":"'Population 2016'!C102*'Prevalence Rates'!C102","v":334.34602523659305},{"$f":"'Population 2016'!D102*'Prevalence Rates'!D102","v":465.02297500606664},{"$f":"'Population 2016'!E102*'Prevalence Rates'!E102","v":106.47915554477072},{"$f":"'Population 2016'!F102*'Prevalence Rates'!F102","v":139.66039553506434},{"$f":"'Population 2016'!G102*'Prevalence Rates'!G102","v":63.892271293375408},{"$f":"'Population 2016'!H102*'Prevalence Rates'!H102","v":494.15441057995645},{"$f":"'Population 2016'!I102*'Prevalence Rates'!I102","v":102.0831961417132},{"$f":"'Population 2016'!J102*'Prevalence Rates'!J102","v":189.16577529725802},{"$f":"'Population 2016'!K102*'Prevalence Rates'!K102","v":74.963688425139537},{"$f":"'Population 2016'!L102*'Prevalence Rates'!L102","v":228.59937539432178},{"$f":"'Population 2016'!M102*'Prevalence Rates'!M102","v":228.46498422712941},{"$f":"'Population 2016'!N102*'Prevalence Rates'!N102","v":311.9156442611017},{"$f":"'Population 2016'!O102*'Prevalence Rates'!O102","v":182.12131521475371},{"$f":"'Population 2016'!P102*'Prevalence Rates'!P102","v":89.527799077893746},{"$f":"'Population 2016'!Q102*'Prevalence Rates'!Q102","v":156.96966512982289},{"$f":"'Population 2016'!R102*'Prevalence Rates'!R102","v":47.550757097791809},{"$f":"'Population 2016'!S102*'Prevalence Rates'!S102","v":1690.044940548411},{"$f":"'Population 2016'!T102*'Prevalence Rates'!T102","v":595.39370055811719},{"$f":"'Population 2016'!U102*'Prevalence Rates'!U102","v":25.519553506430483},{"$f":"'Population 2016'!V102*'Prevalence Rates'!V102","v":259.78107983499154},{"$f":"'Population 2016'!W102*'Prevalence Rates'!W102","v":375.23594952681395},{"$f":"'Population 2016'!X102*'Prevalence Rates'!X102","v":375.05299684542592},{"$f":"'Population 2016'!Y102*'Prevalence Rates'!Y102","v":435.71405969424899},{"$f":"'Population 2016'!Z102*'Prevalence Rates'!Z102","v":912.71322494540186},{"$f":"'Population 2016'!AA102*'Prevalence Rates'!AA102","v":2355.8988789128857},{"$f":"'Population 2016'!AB102*'Prevalence Rates'!AB102","v":575.77172142683833},{"$f":"'Population 2016'!AC102*'Prevalence Rates'!AC102","v":1385.616109196797},{"$f":"'Population 2016'!AD102*'Prevalence Rates'!AD102","v":279.12715311817527},{"$f":"'Population 2016'!AE102*'Prevalence Rates'!AE102","v":229.893161853919},{"$f":"'Population 2016'!AF102*'Prevalence Rates'!AF102","v":46.069587478767303},{"$f":"'Population 2016'!AG102*'Prevalence Rates'!AG102","v":229.893161853919},{"$f":"'Population 2016'!AH102*'Prevalence Rates'!AH102","v":965.52573938364503},{"$f":"'Population 2016'!AI102*'Prevalence Rates'!AI102","v":1191.364926959476},{"$f":"'Population 2016'!AJ102*'Prevalence Rates'!AJ102","v":161.02485561756859},{"$f":"'Population 2016'!AK102*'Prevalence Rates'!AK102","v":106.02047075952441},{"$f":"'Population 2016'!AL102*'Prevalence Rates'!AL102","v":157.54779907789376},{"$f":"'Population 2016'!AM102*'Prevalence Rates'!AM102","v":536.54001213297761},{"$f":"'Population 2016'!AN102*'Prevalence Rates'!AN102","v":16.083017520019414},{"$f":"'Population 2016'!AO102*'Prevalence Rates'!AO102","v":16.092191215724345},{"$f":"'Population 2016'!AP102*'Prevalence Rates'!AP102","v":101.8280223246785},{"$f":"'Population 2016'!AQ102*'Prevalence Rates'!AQ102","v":157.62077165736474},{"$f":"'Population 2016'!AR102*'Prevalence Rates'!AR102","v":6604.9210000000021},{"$f":"'Population 2016'!AS102*'Prevalence Rates'!AS102","v":102.08559815578745},{"$f":"'Population 2016'!AT102*'Prevalence Rates'!AT102","v":4.4309558359621457},{"$f":"'Population 2016'!AU102*'Prevalence Rates'!AU102","v":4.427003154574134},{"$f":"'Population 2016'!AV102*'Prevalence Rates'!AV102","v":151.76472215481681},{"$f":"'Population 2016'!AW102*'Prevalence Rates'!AW102","v":430.01915797136627},{"$f":"'Population 2016'!AX102*'Prevalence Rates'!AX102","v":114.54610046105317},{"$f":"'Population 2016'!AY102*'Prevalence Rates'!AY102","v":874.05860713419088},{"$f":"'Population 2016'!AZ102*'Prevalence Rates'!AZ102","v":496.91286095607876},{"$f":"'Population 2016'!BA102*'Prevalence Rates'!BA102","v":134.50931327347735},{"$f":"'Population 2016'!BB102*'Prevalence Rates'!BB102","v":274.8785852948314},{"$f":"'Population 2016'!BC102*'Prevalence Rates'!BC102","v":25.548951031303083},100]
[null,"Female 25-29",{"$f":"'Population 2016'!C103*'Prevalence Rates'!C103","v":557.21697160883264},{"$f":"'Population 2016'!D103*'Prevalence Rates'!D103","v":771.95461295801988},{"$f":"'Population 2016'!E103*'Prevalence Rates'!E103","v":174.18772142683818},{"$f":"'Population 2016'!F103*'Prevalence Rates'!F103","v":210.66300412521235},{"$f":"'Population 2016'!G103*'Prevalence Rates'!G103","v":109.65981072555205},{"$f":"'Population 2016'!H103*'Prevalence Rates'!H103","v":777.34611647658335},{"$f":"'Population 2016'!I103*'Prevalence Rates'!I103","v":151.30922785731619},{"$f":"'Population 2016'!J103*'Prevalence Rates'!J103","v":273.39169133705417},{"$f":"'Population 2016'!K103*'Prevalence Rates'!K103","v":126.64880368842513},{"$f":"'Population 2016'!L103*'Prevalence Rates'!L103","v":324.60544993933507},{"$f":"'Population 2016'!M103*'Prevalence Rates'!M103","v":324.41461781121092},{"$f":"'Population 2016'!N103*'Prevalence Rates'!N103","v":421.62291191458371},{"$f":"'Population 2016'!O103*'Prevalence Rates'!O103","v":302.9460033972336},{"$f":"'Population 2016'!P103*'Prevalence Rates'!P103","v":148.88669740354283},{"$f":"'Population 2016'!Q103*'Prevalence Rates'!Q103","v":229.25985440427081},{"$f":"'Population 2016'!R103*'Prevalence Rates'!R103","v":64.75551565154089},{"$f":"'Population 2016'!S103*'Prevalence Rates'!S103","v":2738.2452220334872},{"$f":"'Population 2016'!T103*'Prevalence Rates'!T103","v":985.92488231011907},{"$f":"'Population 2016'!U103*'Prevalence Rates'!U103","v":40.724756127153597},{"$f":"'Population 2016'!V103*'Prevalence Rates'!V103","v":412.62997330744963},{"$f":"'Population 2016'!W103*'Prevalence Rates'!W103","v":624.07535355496236},{"$f":"'Population 2016'!X103*'Prevalence Rates'!X103","v":623.77107498180055},{"$f":"'Population 2016'!Y103*'Prevalence Rates'!Y103","v":664.51541276389219},{"$f":"'Population 2016'!Z103*'Prevalence Rates'!Z103","v":1738.34234409124},{"$f":"'Population 2016'!AA103*'Prevalence Rates'!AA103","v":3975.6188983256493},{"$f":"'Population 2016'!AB103*'Prevalence Rates'!AB103","v":921.63144285367639},{"$f":"'Population 2016'!AC103*'Prevalence Rates'!AC103","v":2489.4166823586502},{"$f":"'Population 2016'!AD103*'Prevalence Rates'!AD103","v":442.92164911429262},{"$f":"'Population 2016'!AE103*'Prevalence Rates'!AE103","v":355.94680417374423},{"$f":"'Population 2016'!AF103*'Prevalence Rates'!AF103","v":83.297689881096829},{"$f":"'Population 2016'!AG103*'Prevalence Rates'!AG103","v":355.94680417374423},{"$f":"'Population 2016'!AH103*'Prevalence Rates'!AH103","v":1483.8096937636496},{"$f":"'Population 2016'!AI103*'Prevalence Rates'!AI103","v":1928.0097452074738},{"$f":"'Population 2016'!AJ103*'Prevalence Rates'!AJ103","v":247.56107255520504},{"$f":"'Population 2016'!AK103*'Prevalence Rates'!AK103","v":138.15556903664159},{"$f":"'Population 2016'!AL103*'Prevalence Rates'!AL103","v":230.90331472943464},{"$f":"'Population 2016'!AM103*'Prevalence Rates'!AM103","v":850.37341907304051},{"$f":"'Population 2016'!AN103*'Prevalence Rates'!AN103","v":26.750575103130309},{"$f":"'Population 2016'!AO103*'Prevalence Rates'!AO103","v":26.765833535549628},{"$f":"'Population 2016'!AP103*'Prevalence Rates'!AP103","v":166.12236835719486},{"$f":"'Population 2016'!AQ103*'Prevalence Rates'!AQ103","v":258.10401358893466},{"$f":"'Population 2016'!AR103*'Prevalence Rates'!AR103","v":10639.82},{"$f":"'Population 2016'!AS103*'Prevalence Rates'!AS103","v":151.31278815821403},{"$f":"'Population 2016'!AT103*'Prevalence Rates'!AT103","v":5.7372023780635759},{"$f":"'Population 2016'!AU103*'Prevalence Rates'!AU103","v":5.7320844455229318},{"$f":"'Population 2016'!AV103*'Prevalence Rates'!AV103","v":238.94069400630914},{"$f":"'Population 2016'!AW103*'Prevalence Rates'!AW103","v":638.06949769473431},{"$f":"'Population 2016'!AX103*'Prevalence Rates'!AX103","v":149.51356466876973},{"$f":"'Population 2016'!AY103*'Prevalence Rates'!AY103","v":1343.1133414219846},{"$f":"'Population 2016'!AZ103*'Prevalence Rates'!AZ103","v":718.69569036641599},{"$f":"'Population 2016'!BA103*'Prevalence Rates'!BA103","v":214.75480708565885},{"$f":"'Population 2016'!BB103*'Prevalence Rates'!BB103","v":458.13061878184908},{"$f":"'Population 2016'!BC103*'Prevalence Rates'!BC103","v":40.771669449162822},101]
[null,"Female 30-34",{"$f":"'Population 2016'!C104*'Prevalence Rates'!C104","v":474.64977917981065},{"$f":"'Population 2016'!D104*'Prevalence Rates'!D104","v":670.15035185634554},{"$f":"'Population 2016'!E104*'Prevalence Rates'!E104","v":161.87670953652028},{"$f":"'Population 2016'!F104*'Prevalence Rates'!F104","v":191.65989808298957},{"$f":"'Population 2016'!G104*'Prevalence Rates'!G104","v":91.212365930599361},{"$f":"'Population 2016'!H104*'Prevalence Rates'!H104","v":738.89798204319334},{"$f":"'Population 2016'!I104*'Prevalence Rates'!I104","v":128.07245357922835},{"$f":"'Population 2016'!J104*'Prevalence Rates'!J104","v":226.97681145353073},{"$f":"'Population 2016'!K104*'Prevalence Rates'!K104","v":117.60246056782334},{"$f":"'Population 2016'!L104*'Prevalence Rates'!L104","v":330.35871817520012},{"$f":"'Population 2016'!M104*'Prevalence Rates'!M104","v":330.16450376122305},{"$f":"'Population 2016'!N104*'Prevalence Rates'!N104","v":311.49962630429496},{"$f":"'Population 2016'!O104*'Prevalence Rates'!O104","v":288.03724338752721},{"$f":"'Population 2016'!P104*'Prevalence Rates'!P104","v":131.55057510313031},{"$f":"'Population 2016'!Q104*'Prevalence Rates'!Q104","v":235.69001213297742},{"$f":"'Population 2016'!R104*'Prevalence Rates'!R104","v":62.715971851492355},{"$f":"'Population 2016'!S104*'Prevalence Rates'!S104","v":2564.7428585294829},{"$f":"'Population 2016'!T104*'Prevalence Rates'!T104","v":827.30203348701787},{"$f":"'Population 2016'!U104*'Prevalence Rates'!U104","v":38.909002669255031},{"$f":"'Population 2016'!V104*'Prevalence Rates'!V104","v":439.18536762921616},{"$f":"'Population 2016'!W104*'Prevalence Rates'!W104","v":618.33792865809266},{"$f":"'Population 2016'!X104*'Prevalence Rates'!X104","v":618.03644746420775},{"$f":"'Population 2016'!Y104*'Prevalence Rates'!Y104","v":642.11908565882061},{"$f":"'Population 2016'!Z104*'Prevalence Rates'!Z104","v":1444.1343363261344},{"$f":"'Population 2016'!AA104*'Prevalence Rates'!AA104","v":3771.4076680417375},{"$f":"'Population 2016'!AB104*'Prevalence Rates'!AB104","v":825.61241640378557},{"$f":"'Population 2016'!AC104*'Prevalence Rates'!AC104","v":2195.0581247270075},{"$f":"'Population 2016'!AD104*'Prevalence Rates'!AD104","v":440.61342975006067},{"$f":"'Population 2016'!AE104*'Prevalence Rates'!AE104","v":373.20981315214749},{"$f":"'Population 2016'!AF104*'Prevalence Rates'!AF104","v":88.430880854161614},{"$f":"'Population 2016'!AG104*'Prevalence Rates'!AG104","v":373.20981315214749},{"$f":"'Population 2016'!AH104*'Prevalence Rates'!AH104","v":1567.8737384130065},{"$f":"'Population 2016'!AI104*'Prevalence Rates'!AI104","v":1787.2568095122542},{"$f":"'Population 2016'!AJ104*'Prevalence Rates'!AJ104","v":262.15258432419313},{"$f":"'Population 2016'!AK104*'Prevalence Rates'!AK104","v":148.20324678476098},{"$f":"'Population 2016'!AL104*'Prevalence Rates'!AL104","v":237.86370298471249},{"$f":"'Population 2016'!AM104*'Prevalence Rates'!AM104","v":897.75657364717301},{"$f":"'Population 2016'!AN104*'Prevalence Rates'!AN104","v":16.585356563940792},{"$f":"'Population 2016'!AO104*'Prevalence Rates'!AO104","v":16.594816792040767},{"$f":"'Population 2016'!AP104*'Prevalence Rates'!AP104","v":179.57776267896142},{"$f":"'Population 2016'!AQ104*'Prevalence Rates'!AQ104","v":247.77024023295311},{"$f":"'Population 2016'!AR104*'Prevalence Rates'!AR104","v":9982.7240000000002},{"$f":"'Population 2016'!AS104*'Prevalence Rates'!AS104","v":128.07546711963116},{"$f":"'Population 2016'!AT104*'Prevalence Rates'!AT104","v":3.9910973064790096},{"$f":"'Population 2016'!AU104*'Prevalence Rates'!AU104","v":3.9875370055811699},{"$f":"'Population 2016'!AV104*'Prevalence Rates'!AV104","v":211.10804173744236},{"$f":"'Population 2016'!AW104*'Prevalence Rates'!AW104","v":674.91924775539917},{"$f":"'Population 2016'!AX104*'Prevalence Rates'!AX104","v":113.22138315942733},{"$f":"'Population 2016'!AY104*'Prevalence Rates'!AY104","v":1234.0549672409607},{"$f":"'Population 2016'!AZ104*'Prevalence Rates'!AZ104","v":617.85639796165981},{"$f":"'Population 2016'!BA104*'Prevalence Rates'!BA104","v":222.55949526813882},{"$f":"'Population 2016'!BB104*'Prevalence Rates'!BB104","v":475.79416161125937},{"$f":"'Population 2016'!BC104*'Prevalence Rates'!BC104","v":38.953824314486774},102]
[null,"Female 35-39",{"$f":"'Population 2016'!C105*'Prevalence Rates'!C105","v":421.17444794952661},{"$f":"'Population 2016'!D105*'Prevalence Rates'!D105","v":639.57478281970373},{"$f":"'Population 2016'!E105*'Prevalence Rates'!E105","v":191.84043678718754},{"$f":"'Population 2016'!F105*'Prevalence Rates'!F105","v":182.390444066974},{"$f":"'Population 2016'!G105*'Prevalence Rates'!G105","v":113.44141955835958},{"$f":"'Population 2016'!H105*'Prevalence Rates'!H105","v":883.26550788643522},{"$f":"'Population 2016'!I105*'Prevalence Rates'!I105","v":145.93110883280755},{"$f":"'Population 2016'!J105*'Prevalence Rates'!J105","v":270.06361562727488},{"$f":"'Population 2016'!K105*'Prevalence Rates'!K105","v":140.98239019655418},{"$f":"'Population 2016'!L105*'Prevalence Rates'!L105","v":382.79805920892971},{"$f":"'Population 2016'!M105*'Prevalence Rates'!M105","v":382.57301625818974},{"$f":"'Population 2016'!N105*'Prevalence Rates'!N105","v":288.18327105071575},{"$f":"'Population 2016'!O105*'Prevalence Rates'!O105","v":339.78315942732337},{"$f":"'Population 2016'!P105*'Prevalence Rates'!P105","v":174.91618053870417},{"$f":"'Population 2016'!Q105*'Prevalence Rates'!Q105","v":263.91681873331709},{"$f":"'Population 2016'!R105*'Prevalence Rates'!R105","v":81.405627274933252},{"$f":"'Population 2016'!S105*'Prevalence Rates'!S105","v":2535.5020237806352},{"$f":"'Population 2016'!T105*'Prevalence Rates'!T105","v":663.42239262314968},{"$f":"'Population 2016'!U105*'Prevalence Rates'!U105","v":47.109594758553733},{"$f":"'Population 2016'!V105*'Prevalence Rates'!V105","v":508.16011404998773},{"$f":"'Population 2016'!W105*'Prevalence Rates'!W105","v":691.88028876486283},{"$f":"'Population 2016'!X105*'Prevalence Rates'!X105","v":691.54295074011145},{"$f":"'Population 2016'!Y105*'Prevalence Rates'!Y105","v":750.53861684057244},{"$f":"'Population 2016'!Z105*'Prevalence Rates'!Z105","v":1279.9374423683569},{"$f":"'Population 2016'!AA105*'Prevalence Rates'!AA105","v":3816.4069546226633},{"$f":"'Population 2016'!AB105*'Prevalence Rates'!AB105","v":791.55529822858523},{"$f":"'Population 2016'!AC105*'Prevalence Rates'!AC105","v":2133.2935950012125},{"$f":"'Population 2016'!AD105*'Prevalence Rates'!AD105","v":494.70583596214499},{"$f":"'Population 2016'!AE105*'Prevalence Rates'!AE105","v":407.2296335840814},{"$f":"'Population 2016'!AF105*'Prevalence Rates'!AF105","v":68.687153603494295},{"$f":"'Population 2016'!AG105*'Prevalence Rates'!AG105","v":407.2296335840814},{"$f":"'Population 2016'!AH105*'Prevalence Rates'!AH105","v":1671.257701528755},{"$f":"'Population 2016'!AI105*'Prevalence Rates'!AI105","v":1677.4638155787425},{"$f":"'Population 2016'!AJ105*'Prevalence Rates'!AJ105","v":300.90627274933257},{"$f":"'Population 2016'!AK105*'Prevalence Rates'!AK105","v":145.44098762436298},{"$f":"'Population 2016'!AL105*'Prevalence Rates'!AL105","v":276.60208687211838},{"$f":"'Population 2016'!AM105*'Prevalence Rates'!AM105","v":980.12544285367608},{"$f":"'Population 2016'!AN105*'Prevalence Rates'!AN105","v":22.54501713176413},{"$f":"'Population 2016'!AO105*'Prevalence Rates'!AO105","v":22.557876728949282},{"$f":"'Population 2016'!AP105*'Prevalence Rates'!AP105","v":162.17582140257218},{"$f":"'Population 2016'!AQ105*'Prevalence Rates'!AQ105","v":272.71402086872109},{"$f":"'Population 2016'!AR105*'Prevalence Rates'!AR105","v":10267.353999999998},{"$f":"'Population 2016'!AS105*'Prevalence Rates'!AS105","v":145.93454258675075},{"$f":"'Population 2016'!AT105*'Prevalence Rates'!AT105","v":10.067238291676775},{"$f":"'Population 2016'!AU105*'Prevalence Rates'!AU105","v":10.058257704440667},{"$f":"'Population 2016'!AV105*'Prevalence Rates'!AV105","v":263.0572482407182},{"$f":"'Population 2016'!AW105*'Prevalence Rates'!AW105","v":698.98325406454728},{"$f":"'Population 2016'!AX105*'Prevalence Rates'!AX105","v":133.78961902450857},{"$f":"'Population 2016'!AY105*'Prevalence Rates'!AY105","v":1258.80513952924},{"$f":"'Population 2016'!AZ105*'Prevalence Rates'!AZ105","v":572.44587430235379},{"$f":"'Population 2016'!BA105*'Prevalence Rates'!BA105","v":241.17178354768257},{"$f":"'Population 2016'!BB105*'Prevalence Rates'!BB105","v":485.23697646202368},{"$f":"'Population 2016'!BC105*'Prevalence Rates'!BC105","v":47.163863164280507},103]
[null,"Female 40-44",{"$f":"'Population 2016'!C106*'Prevalence Rates'!C106","v":379.58678233438468},{"$f":"'Population 2016'!D106*'Prevalence Rates'!D106","v":592.33840330016972},{"$f":"'Population 2016'!E106*'Prevalence Rates'!E106","v":189.97488958990533},{"$f":"'Population 2016'!F106*'Prevalence Rates'!F106","v":201.72512011647655},{"$f":"'Population 2016'!G106*'Prevalence Rates'!G106","v":133.51416403785484},{"$f":"'Population 2016'!H106*'Prevalence Rates'!H106","v":966.30756418345049},{"$f":"'Population 2016'!I106*'Prevalence Rates'!I106","v":158.43948958990535},{"$f":"'Population 2016'!J106*'Prevalence Rates'!J106","v":288.21647658335354},{"$f":"'Population 2016'!K106*'Prevalence Rates'!K106","v":160.0340645474399},{"$f":"'Population 2016'!L106*'Prevalence Rates'!L106","v":430.24345246299424},{"$f":"'Population 2016'!M106*'Prevalence Rates'!M106","v":429.99051686483858},{"$f":"'Population 2016'!N106*'Prevalence Rates'!N106","v":256.42293375394314},{"$f":"'Population 2016'!O106*'Prevalence Rates'!O106","v":362.78931084688168},{"$f":"'Population 2016'!P106*'Prevalence Rates'!P106","v":166.4427323465178},{"$f":"'Population 2016'!Q106*'Prevalence Rates'!Q106","v":256.28407425382181},{"$f":"'Population 2016'!R106*'Prevalence Rates'!R106","v":80.497757825770421},{"$f":"'Population 2016'!S106*'Prevalence Rates'!S106","v":2521.8107789371506},{"$f":"'Population 2016'!T106*'Prevalence Rates'!T106","v":584.7796165979131},{"$f":"'Population 2016'!U106*'Prevalence Rates'!U106","v":61.581169619024493},{"$f":"'Population 2016'!V106*'Prevalence Rates'!V106","v":531.71491142926459},{"$f":"'Population 2016'!W106*'Prevalence Rates'!W106","v":739.86303809754895},{"$f":"'Population 2016'!X106*'Prevalence Rates'!X106","v":739.50230526571204},{"$f":"'Population 2016'!Y106*'Prevalence Rates'!Y106","v":791.06446008250396},{"$f":"'Population 2016'!Z106*'Prevalence Rates'!Z106","v":1122.679058480951},{"$f":"'Population 2016'!AA106*'Prevalence Rates'!AA106","v":3810.6201358893463},{"$f":"'Population 2016'!AB106*'Prevalence Rates'!AB106","v":748.17830720698851},{"$f":"'Population 2016'!AC106*'Prevalence Rates'!AC106","v":2049.8523176413482},{"$f":"'Population 2016'!AD106*'Prevalence Rates'!AD106","v":549.80845522931315},{"$f":"'Population 2016'!AE106*'Prevalence Rates'!AE106","v":444.6349114292646},{"$f":"'Population 2016'!AF106*'Prevalence Rates'!AF106","v":80.596619752487243},{"$f":"'Population 2016'!AG106*'Prevalence Rates'!AG106","v":444.6349114292646},{"$f":"'Population 2016'!AH106*'Prevalence Rates'!AH106","v":1745.940264984227},{"$f":"'Population 2016'!AI106*'Prevalence Rates'!AI106","v":1610.2425353069639},{"$f":"'Population 2016'!AJ106*'Prevalence Rates'!AJ106","v":285.05364959961167},{"$f":"'Population 2016'!AK106*'Prevalence Rates'!AK106","v":151.40439941761704},{"$f":"'Population 2016'!AL106*'Prevalence Rates'!AL106","v":329.04871633098759},{"$f":"'Population 2016'!AM106*'Prevalence Rates'!AM106","v":1020.3954525600581},{"$f":"'Population 2016'!AN106*'Prevalence Rates'!AN106","v":33.341222518806106},{"$f":"'Population 2016'!AO106*'Prevalence Rates'!AO106","v":33.36024023295316},{"$f":"'Population 2016'!AP106*'Prevalence Rates'!AP106","v":141.28954137345303},{"$f":"'Population 2016'!AQ106*'Prevalence Rates'!AQ106","v":317.215471972822},{"$f":"'Population 2016'!AR106*'Prevalence Rates'!AR106","v":10400.461999999998},{"$f":"'Population 2016'!AS106*'Prevalence Rates'!AS106","v":158.44321766561509},{"$f":"'Population 2016'!AT106*'Prevalence Rates'!AT106","v":4.1453334142198486},{"$f":"'Population 2016'!AU106*'Prevalence Rates'!AU106","v":4.1416355253579216},{"$f":"'Population 2016'!AV106*'Prevalence Rates'!AV106","v":272.71930356709527},{"$f":"'Population 2016'!AW106*'Prevalence Rates'!AW106","v":733.33060422227595},{"$f":"'Population 2016'!AX106*'Prevalence Rates'!AX106","v":134.39637466634309},{"$f":"'Population 2016'!AY106*'Prevalence Rates'!AY106","v":1274.4238146081045},{"$f":"'Population 2016'!AZ106*'Prevalence Rates'!AZ106","v":542.30174083960196},{"$f":"'Population 2016'!BA106*'Prevalence Rates'!BA106","v":249.83842756612466},{"$f":"'Population 2016'!BB106*'Prevalence Rates'!BB106","v":535.49128609560773},{"$f":"'Population 2016'!BC106*'Prevalence Rates'!BC106","v":61.65210871147778},104]
[null,"Female 45-49",{"$f":"'Population 2016'!C107*'Prevalence Rates'!C107","v":400.63230283911668},{"$f":"'Population 2016'!D107*'Prevalence Rates'!D107","v":639.01476340694012},{"$f":"'Population 2016'!E107*'Prevalence Rates'!E107","v":215.35173016258193},{"$f":"'Population 2016'!F107*'Prevalence Rates'!F107","v":216.35979131278819},{"$f":"'Population 2016'!G107*'Prevalence Rates'!G107","v":159.67444794952681},{"$f":"'Population 2016'!H107*'Prevalence Rates'!H107","v":1242.7488342635286},{"$f":"'Population 2016'!I107*'Prevalence Rates'!I107","v":215.0175079834992},{"$f":"'Population 2016'!J107*'Prevalence Rates'!J107","v":334.40504731861211},{"$f":"'Population 2016'!K107*'Prevalence Rates'!K107","v":190.60584809512255},{"$f":"'Population 2016'!L107*'Prevalence Rates'!L107","v":568.30455404028146},{"$f":"'Population 2016'!M107*'Prevalence Rates'!M107","v":567.9704537733561},{"$f":"'Population 2016'!N107*'Prevalence Rates'!N107","v":269.69788400873574},{"$f":"'Population 2016'!O107*'Prevalence Rates'!O107","v":474.56745450133462},{"$f":"'Population 2016'!P107*'Prevalence Rates'!P107","v":230.37892744479498},{"$f":"'Population 2016'!Q107*'Prevalence Rates'!Q107","v":324.26043193399664},{"$f":"'Population 2016'!R107*'Prevalence Rates'!R107","v":117.63380247512741},{"$f":"'Population 2016'!S107*'Prevalence Rates'!S107","v":2858.1909051201169},{"$f":"'Population 2016'!T107*'Prevalence Rates'!T107","v":552.24683329289019},{"$f":"'Population 2016'!U107*'Prevalence Rates'!U107","v":72.434108226158699},{"$f":"'Population 2016'!V107*'Prevalence Rates'!V107","v":614.83501091967969},{"$f":"'Population 2016'!W107*'Prevalence Rates'!W107","v":854.83052171802967},{"$f":"'Population 2016'!X107*'Prevalence Rates'!X107","v":854.41373453045389},{"$f":"'Population 2016'!Y107*'Prevalence Rates'!Y107","v":915.88092987139044},{"$f":"'Population 2016'!Z107*'Prevalence Rates'!Z107","v":1277.5632128124244},{"$f":"'Population 2016'!AA107*'Prevalence Rates'!AA107","v":4627.6955787430243},{"$f":"'Population 2016'!AB107*'Prevalence Rates'!AB107","v":819.12534627517607},{"$f":"'Population 2016'!AC107*'Prevalence Rates'!AC107","v":2462.5552482407179},{"$f":"'Population 2016'!AD107*'Prevalence Rates'!AD107","v":655.92977044406712},{"$f":"'Population 2016'!AE107*'Prevalence Rates'!AE107","v":530.03900994904154},{"$f":"'Population 2016'!AF107*'Prevalence Rates'!AF107","v":111.85440427080809},{"$f":"'Population 2016'!AG107*'Prevalence Rates'!AG107","v":530.03900994904154},{"$f":"'Population 2016'!AH107*'Prevalence Rates'!AH107","v":2146.1333870419803},{"$f":"'Population 2016'!AI107*'Prevalence Rates'!AI107","v":1779.5383489444309},{"$f":"'Population 2016'!AJ107*'Prevalence Rates'!AJ107","v":360.42110167435095},{"$f":"'Population 2016'!AK107*'Prevalence Rates'!AK107","v":176.61414219849556},{"$f":"'Population 2016'!AL107*'Prevalence Rates'!AL107","v":413.46508129094889},{"$f":"'Population 2016'!AM107*'Prevalence Rates'!AM107","v":1212.3615433147297},{"$f":"'Population 2016'!AN107*'Prevalence Rates'!AN107","v":30.456857073525846},{"$f":"'Population 2016'!AO107*'Prevalence Rates'!AO107","v":30.474229555933036},{"$f":"'Population 2016'!AP107*'Prevalence Rates'!AP107","v":180.7964911429265},{"$f":"'Population 2016'!AQ107*'Prevalence Rates'!AQ107","v":364.91813637466629},{"$f":"'Population 2016'!AR107*'Prevalence Rates'!AR107","v":12299.380000000003},{"$f":"'Population 2016'!AS107*'Prevalence Rates'!AS107","v":215.02256733802477},{"$f":"'Population 2016'!AT107*'Prevalence Rates'!AT107","v":6.8758837660761953},{"$f":"'Population 2016'!AU107*'Prevalence Rates'!AU107","v":6.869750060664888},{"$f":"'Population 2016'!AV107*'Prevalence Rates'!AV107","v":352.13336083474883},{"$f":"'Population 2016'!AW107*'Prevalence Rates'!AW107","v":938.39901965542356},{"$f":"'Population 2016'!AX107*'Prevalence Rates'!AX107","v":151.62062606163553},{"$f":"'Population 2016'!AY107*'Prevalence Rates'!AY107","v":1450.1725406454743},{"$f":"'Population 2016'!AZ107*'Prevalence Rates'!AZ107","v":604.85695801989823},{"$f":"'Population 2016'!BA107*'Prevalence Rates'!BA107","v":311.3880320310605},{"$f":"'Population 2016'!BB107*'Prevalence Rates'!BB107","v":617.94148507643786},{"$f":"'Population 2016'!BC107*'Prevalence Rates'!BC107","v":72.517549478281978},105]
[null,"Female 50-54",{"$f":"'Population 2016'!C108*'Prevalence Rates'!C108","v":417.7487697160883},{"$f":"'Population 2016'!D108*'Prevalence Rates'!D108","v":671.49216209657857},{"$f":"'Population 2016'!E108*'Prevalence Rates'!E108","v":230.10614899296291},{"$f":"'Population 2016'!F108*'Prevalence Rates'!F108","v":201.71890317884012},{"$f":"'Population 2016'!G108*'Prevalence Rates'!G108","v":177.17722397476342},{"$f":"'Population 2016'!H108*'Prevalence Rates'!H108","v":1283.9774685755888},{"$f":"'Population 2016'!I108*'Prevalence Rates'!I108","v":230.88476384372728},{"$f":"'Population 2016'!J108*'Prevalence Rates'!J108","v":350.48221305508383},{"$f":"'Population 2016'!K108*'Prevalence Rates'!K108","v":196.55135161368602},{"$f":"'Population 2016'!L108*'Prevalence Rates'!L108","v":615.11891385586023},{"$f":"'Population 2016'!M108*'Prevalence Rates'!M108","v":614.75729191943719},{"$f":"'Population 2016'!N108*'Prevalence Rates'!N108","v":321.67970395535065},{"$f":"'Population 2016'!O108*'Prevalence Rates'!O108","v":448.12318369327835},{"$f":"'Population 2016'!P108*'Prevalence Rates'!P108","v":226.10133462751762},{"$f":"'Population 2016'!Q108*'Prevalence Rates'!Q108","v":329.5956127153604},{"$f":"'Population 2016'!R108*'Prevalence Rates'!R108","v":110.91187090512014},{"$f":"'Population 2016'!S108*'Prevalence Rates'!S108","v":2882.6022907061397},{"$f":"'Population 2016'!T108*'Prevalence Rates'!T108","v":524.25275418587739},{"$f":"'Population 2016'!U108*'Prevalence Rates'!U108","v":83.936520262072321},{"$f":"'Population 2016'!V108*'Prevalence Rates'!V108","v":612.73659791312798},{"$f":"'Population 2016'!W108*'Prevalence Rates'!W108","v":921.09160786216944},{"$f":"'Population 2016'!X108*'Prevalence Rates'!X108","v":920.64251395292422},{"$f":"'Population 2016'!Y108*'Prevalence Rates'!Y108","v":930.28363212812417},{"$f":"'Population 2016'!Z108*'Prevalence Rates'!Z108","v":1309.107983499151},{"$f":"'Population 2016'!AA108*'Prevalence Rates'!AA108","v":4800.05346275176},{"$f":"'Population 2016'!AB108*'Prevalence Rates'!AB108","v":848.1209337539434},{"$f":"'Population 2016'!AC108*'Prevalence Rates'!AC108","v":2542.5232991992234},{"$f":"'Population 2016'!AD108*'Prevalence Rates'!AD108","v":716.48186265469565},{"$f":"'Population 2016'!AE108*'Prevalence Rates'!AE108","v":576.01513224945404},{"$f":"'Population 2016'!AF108*'Prevalence Rates'!AF108","v":134.2252851249697},{"$f":"'Population 2016'!AG108*'Prevalence Rates'!AG108","v":576.01513224945404},{"$f":"'Population 2016'!AH108*'Prevalence Rates'!AH108","v":2237.3773220092216},{"$f":"'Population 2016'!AI108*'Prevalence Rates'!AI108","v":1729.4105081290948},{"$f":"'Population 2016'!AJ108*'Prevalence Rates'!AJ108","v":357.75351128366907},{"$f":"'Population 2016'!AK108*'Prevalence Rates'!AK108","v":171.59669497694736},{"$f":"'Population 2016'!AL108*'Prevalence Rates'!AL108","v":431.23682601310372},{"$f":"'Population 2016'!AM108*'Prevalence Rates'!AM108","v":1251.0038874059696},{"$f":"'Population 2016'!AN108*'Prevalence Rates'!AN108","v":39.113016452317403},{"$f":"'Population 2016'!AO108*'Prevalence Rates'!AO108","v":39.135326377092952},{"$f":"'Population 2016'!AP108*'Prevalence Rates'!AP108","v":174.28409609318129},{"$f":"'Population 2016'!AQ108*'Prevalence Rates'!AQ108","v":378.74297500606644},{"$f":"'Population 2016'!AR108*'Prevalence Rates'!AR108","v":12722.652000000002},{"$f":"'Population 2016'!AS108*'Prevalence Rates'!AS108","v":230.89019655423445},{"$f":"'Population 2016'!AT108*'Prevalence Rates'!AT108","v":5.9790293618053871},{"$f":"'Population 2016'!AU108*'Prevalence Rates'!AU108","v":5.9736957049259898},{"$f":"'Population 2016'!AV108*'Prevalence Rates'!AV108","v":397.44810968211596},{"$f":"'Population 2016'!AW108*'Prevalence Rates'!AW108","v":989.67603494297521},{"$f":"'Population 2016'!AX108*'Prevalence Rates'!AX108","v":161.7286677990779},{"$f":"'Population 2016'!AY108*'Prevalence Rates'!AY108","v":1541.1494879883523},{"$f":"'Population 2016'!AZ108*'Prevalence Rates'!AZ108","v":630.85960203834043},{"$f":"'Population 2016'!BA108*'Prevalence Rates'!BA108","v":329.79371997088094},{"$f":"'Population 2016'!BB108*'Prevalence Rates'!BB108","v":592.06791555447717},{"$f":"'Population 2016'!BC108*'Prevalence Rates'!BC108","v":84.033211841785985},106]
[null,"Female 55-59",{"$f":"'Population 2016'!C109*'Prevalence Rates'!C109","v":475.93249211356459},{"$f":"'Population 2016'!D109*'Prevalence Rates'!D109","v":765.65928658092696},{"$f":"'Population 2016'!E109*'Prevalence Rates'!E109","v":262.84420286338269},{"$f":"'Population 2016'!F109*'Prevalence Rates'!F109","v":279.49486532395053},{"$f":"'Population 2016'!G109*'Prevalence Rates'!G109","v":230.76321766561514},{"$f":"'Population 2016'!H109*'Prevalence Rates'!H109","v":1545.3488706624605},{"$f":"'Population 2016'!I109*'Prevalence Rates'!I109","v":287.29984018442127},{"$f":"'Population 2016'!J109*'Prevalence Rates'!J109","v":385.31129337539437},{"$f":"'Population 2016'!K109*'Prevalence Rates'!K109","v":210.89050715845667},{"$f":"'Population 2016'!L109*'Prevalence Rates'!L109","v":735.00833273477303},{"$f":"'Population 2016'!M109*'Prevalence Rates'!M109","v":734.57622907061409},{"$f":"'Population 2016'!N109*'Prevalence Rates'!N109","v":388.92841543314722},{"$f":"'Population 2016'!O109*'Prevalence Rates'!O109","v":543.51648628973544},{"$f":"'Population 2016'!P109*'Prevalence Rates'!P109","v":273.82043193399664},{"$f":"'Population 2016'!Q109*'Prevalence Rates'!Q109","v":399.5778548895899},{"$f":"'Population 2016'!R109*'Prevalence Rates'!R109","v":112.65754913855861},{"$f":"'Population 2016'!S109*'Prevalence Rates'!S109","v":3418.2271681630673},{"$f":"'Population 2016'!T109*'Prevalence Rates'!T109","v":609.59822373210397},{"$f":"'Population 2016'!U109*'Prevalence Rates'!U109","v":91.938112108711465},{"$f":"'Population 2016'!V109*'Prevalence Rates'!V109","v":685.05833535549618},{"$f":"'Population 2016'!W109*'Prevalence Rates'!W109","v":1064.3898665372483},{"$f":"'Population 2016'!X109*'Prevalence Rates'!X109","v":1063.8709051201165},{"$f":"'Population 2016'!Y109*'Prevalence Rates'!Y109","v":1033.4293307449645},{"$f":"'Population 2016'!Z109*'Prevalence Rates'!Z109","v":1500.0911429264743},{"$f":"'Population 2016'!AA109*'Prevalence Rates'!AA109","v":5576.3906527541858},{"$f":"'Population 2016'!AB109*'Prevalence Rates'!AB109","v":987.20625673380255},{"$f":"'Population 2016'!AC109*'Prevalence Rates'!AC109","v":2923.0815928172769},{"$f":"'Population 2016'!AD109*'Prevalence Rates'!AD109","v":888.94637515166232},{"$f":"'Population 2016'!AE109*'Prevalence Rates'!AE109","v":702.97030817762675},{"$f":"'Population 2016'!AF109*'Prevalence Rates'!AF109","v":156.80633826741084},{"$f":"'Population 2016'!AG109*'Prevalence Rates'!AG109","v":702.97030817762675},{"$f":"'Population 2016'!AH109*'Prevalence Rates'!AH109","v":2628.7539907789374},{"$f":"'Population 2016'!AI109*'Prevalence Rates'!AI109","v":2064.1007522446007},{"$f":"'Population 2016'!AJ109*'Prevalence Rates'!AJ109","v":448.90845425867508},{"$f":"'Population 2016'!AK109*'Prevalence Rates'!AK109","v":217.97452560058238},{"$f":"'Population 2016'!AL109*'Prevalence Rates'!AL109","v":492.19393351128377},{"$f":"'Population 2016'!AM109*'Prevalence Rates'!AM109","v":1449.3158408153363},{"$f":"'Population 2016'!AN109*'Prevalence Rates'!AN109","v":44.738805338510076},{"$f":"'Population 2016'!AO109*'Prevalence Rates'!AO109","v":44.764324193157009},{"$f":"'Population 2016'!AP109*'Prevalence Rates'!AP109","v":202.08572191215725},{"$f":"'Population 2016'!AQ109*'Prevalence Rates'!AQ109","v":427.36472700800772},{"$f":"'Population 2016'!AR109*'Prevalence Rates'!AR109","v":14984.550000000001},{"$f":"'Population 2016'!AS109*'Prevalence Rates'!AS109","v":287.30660033972339},{"$f":"'Population 2016'!AT109*'Prevalence Rates'!AT109","v":5.358276631885464},{"$f":"'Population 2016'!AU109*'Prevalence Rates'!AU109","v":5.3534967240960931},{"$f":"'Population 2016'!AV109*'Prevalence Rates'!AV109","v":497.95713661732583},{"$f":"'Population 2016'!AW109*'Prevalence Rates'!AW109","v":1180.8986556661005},{"$f":"'Population 2016'!AX109*'Prevalence Rates'!AX109","v":182.34860470759526},{"$f":"'Population 2016'!AY109*'Prevalence Rates'!AY109","v":1840.2840087357436},{"$f":"'Population 2016'!AZ109*'Prevalence Rates'!AZ109","v":786.85476340694015},{"$f":"'Population 2016'!BA109*'Prevalence Rates'!BA109","v":390.15753457898569},{"$f":"'Population 2016'!BB109*'Prevalence Rates'!BB109","v":696.05017228827967},{"$f":"'Population 2016'!BC109*'Prevalence Rates'!BC109","v":92.044021208444548},107]
[null,"Female 60-64",{"$f":"'Population 2016'!C110*'Prevalence Rates'!C110","v":425.25766561514189},{"$f":"'Population 2016'!D110*'Prevalence Rates'!D110","v":693.73825770444068},{"$f":"'Population 2016'!E110*'Prevalence Rates'!E110","v":245.16049502547929},{"$f":"'Population 2016'!F110*'Prevalence Rates'!F110","v":234.50910458626552},{"$f":"'Population 2016'!G110*'Prevalence Rates'!G110","v":206.78271293375394},{"$f":"'Population 2016'!H110*'Prevalence Rates'!H110","v":1359.9424906576073},{"$f":"'Population 2016'!I110*'Prevalence Rates'!I110","v":260.76709881096821},{"$f":"'Population 2016'!J110*'Prevalence Rates'!J110","v":327.67926231497216},{"$f":"'Population 2016'!K110*'Prevalence Rates'!K110","v":187.1597282213055},{"$f":"'Population 2016'!L110*'Prevalence Rates'!L110","v":722.92854976947331},{"$f":"'Population 2016'!M110*'Prevalence Rates'!M110","v":722.50354768260138},{"$f":"'Population 2016'!N110*'Prevalence Rates'!N110","v":334.91057995632121},{"$f":"'Population 2016'!O110*'Prevalence Rates'!O110","v":475.80567823343841},{"$f":"'Population 2016'!P110*'Prevalence Rates'!P110","v":206.53884008735747},{"$f":"'Population 2016'!Q110*'Prevalence Rates'!Q110","v":334.68914341179328},{"$f":"'Population 2016'!R110*'Prevalence Rates'!R110","v":98.184183450618789},{"$f":"'Population 2016'!S110*'Prevalence Rates'!S110","v":2937.76254307207},{"$f":"'Population 2016'!T110*'Prevalence Rates'!T110","v":500.4504925988839},{"$f":"'Population 2016'!U110*'Prevalence Rates'!U110","v":98.704120359136127},{"$f":"'Population 2016'!V110*'Prevalence Rates'!V110","v":638.4922785731618},{"$f":"'Population 2016'!W110*'Prevalence Rates'!W110","v":970.35542344091243},{"$f":"'Population 2016'!X110*'Prevalence Rates'!X110","v":969.88231011890309},{"$f":"'Population 2016'!Y110*'Prevalence Rates'!Y110","v":931.17598252851235},{"$f":"'Population 2016'!Z110*'Prevalence Rates'!Z110","v":1180.1494782819705},{"$f":"'Population 2016'!AA110*'Prevalence Rates'!AA110","v":4736.9608056297011},{"$f":"'Population 2016'!AB110*'Prevalence Rates'!AB110","v":904.84239747634069},{"$f":"'Population 2016'!AC110*'Prevalence Rates'!AC110","v":2331.1343979616595},{"$f":"'Population 2016'!AD110*'Prevalence Rates'!AD110","v":803.16049211356471},{"$f":"'Population 2016'!AE110*'Prevalence Rates'!AE110","v":636.96173258917736},{"$f":"'Population 2016'!AF110*'Prevalence Rates'!AF110","v":113.84569764620238},{"$f":"'Population 2016'!AG110*'Prevalence Rates'!AG110","v":636.96173258917736},{"$f":"'Population 2016'!AH110*'Prevalence Rates'!AH110","v":2379.3042601310362},{"$f":"'Population 2016'!AI110*'Prevalence Rates'!AI110","v":1711.8515933025963},{"$f":"'Population 2016'!AJ110*'Prevalence Rates'!AJ110","v":367.70269837418101},{"$f":"'Population 2016'!AK110*'Prevalence Rates'!AK110","v":208.98147051686485},{"$f":"'Population 2016'!AL110*'Prevalence Rates'!AL110","v":428.580189274448},{"$f":"'Population 2016'!AM110*'Prevalence Rates'!AM110","v":1315.9564134918712},{"$f":"'Population 2016'!AN110*'Prevalence Rates'!AN110","v":42.686566561514198},{"$f":"'Population 2016'!AO110*'Prevalence Rates'!AO110","v":42.710914826498431},{"$f":"'Population 2016'!AP110*'Prevalence Rates'!AP110","v":197.71844697888864},{"$f":"'Population 2016'!AQ110*'Prevalence Rates'!AQ110","v":346.9803348701771},{"$f":"'Population 2016'!AR110*'Prevalence Rates'!AR110","v":13122.888000000001},{"$f":"'Population 2016'!AS110*'Prevalence Rates'!AS110","v":260.77323465178353},{"$f":"'Population 2016'!AT110*'Prevalence Rates'!AT110","v":11.482021354040281},{"$f":"'Population 2016'!AU110*'Prevalence Rates'!AU110","v":11.471778694491629},{"$f":"'Population 2016'!AV110*'Prevalence Rates'!AV110","v":444.37437029847121},{"$f":"'Population 2016'!AW110*'Prevalence Rates'!AW110","v":1065.1614802232468},{"$f":"'Population 2016'!AX110*'Prevalence Rates'!AX110","v":148.23176898810968},{"$f":"'Population 2016'!AY110*'Prevalence Rates'!AY110","v":1654.3143800048529},{"$f":"'Population 2016'!AZ110*'Prevalence Rates'!AZ110","v":694.55064693035683},{"$f":"'Population 2016'!BA110*'Prevalence Rates'!BA110","v":334.14481921863626},{"$f":"'Population 2016'!BB110*'Prevalence Rates'!BB110","v":585.49090512011662},{"$f":"'Population 2016'!BC110*'Prevalence Rates'!BC110","v":98.817823635040043},108]
[null,"Female 65-69",{"$f":"'Population 2016'!C111*'Prevalence Rates'!C111","v":489.38564668769703},{"$f":"'Population 2016'!D111*'Prevalence Rates'!D111","v":841.14170347003142},{"$f":"'Population 2016'!E111*'Prevalence Rates'!E111","v":328.03937879155546},{"$f":"'Population 2016'!F111*'Prevalence Rates'!F111","v":304.51493084202866},{"$f":"'Population 2016'!G111*'Prevalence Rates'!G111","v":275.92249211356466},{"$f":"'Population 2016'!H111*'Prevalence Rates'!H111","v":1702.8178471244842},{"$f":"'Population 2016'!I111*'Prevalence Rates'!I111","v":344.93801320067945},{"$f":"'Population 2016'!J111*'Prevalence Rates'!J111","v":413.11659791312792},{"$f":"'Population 2016'!K111*'Prevalence Rates'!K111","v":249.99516864838628},{"$f":"'Population 2016'!L111*'Prevalence Rates'!L111","v":869.77557845183185},{"$f":"'Population 2016'!M111*'Prevalence Rates'!M111","v":869.26424654210143},{"$f":"'Population 2016'!N111*'Prevalence Rates'!N111","v":420.00721426838135},{"$f":"'Population 2016'!O111*'Prevalence Rates'!O111","v":582.67417374423667},{"$f":"'Population 2016'!P111*'Prevalence Rates'!P111","v":248.8584008735744},{"$f":"'Population 2016'!Q111*'Prevalence Rates'!Q111","v":396.0437223974763},{"$f":"'Population 2016'!R111*'Prevalence Rates'!R111","v":117.52968454258675},{"$f":"'Population 2016'!S111*'Prevalence Rates'!S111","v":3676.6036350400386},{"$f":"'Population 2016'!T111*'Prevalence Rates'!T111","v":597.26348459111875},{"$f":"'Population 2016'!U111*'Prevalence Rates'!U111","v":114.25584081533606},{"$f":"'Population 2016'!V111*'Prevalence Rates'!V111","v":773.95018442125684},{"$f":"'Population 2016'!W111*'Prevalence Rates'!W111","v":1215.8901344333899},{"$f":"'Population 2016'!X111*'Prevalence Rates'!X111","v":1215.2973064790099},{"$f":"'Population 2016'!Y111*'Prevalence Rates'!Y111","v":1144.9335171074979},{"$f":"'Population 2016'!Z111*'Prevalence Rates'!Z111","v":1249.4240718272265},{"$f":"'Population 2016'!AA111*'Prevalence Rates'!AA111","v":5538.190206260615},{"$f":"'Population 2016'!AB111*'Prevalence Rates'!AB111","v":1081.3813161853918},{"$f":"'Population 2016'!AC111*'Prevalence Rates'!AC111","v":2728.0097289492837},{"$f":"'Population 2016'!AD111*'Prevalence Rates'!AD111","v":1013.358224217423},{"$f":"'Population 2016'!AE111*'Prevalence Rates'!AE111","v":787.59733074496467},{"$f":"'Population 2016'!AF111*'Prevalence Rates'!AF111","v":156.77427808784276},{"$f":"'Population 2016'!AG111*'Prevalence Rates'!AG111","v":787.59733074496467},{"$f":"'Population 2016'!AH111*'Prevalence Rates'!AH111","v":2779.2683440912401},{"$f":"'Population 2016'!AI111*'Prevalence Rates'!AI111","v":2124.8681582140252},{"$f":"'Population 2016'!AJ111*'Prevalence Rates'!AJ111","v":480.51458626546952},{"$f":"'Population 2016'!AK111*'Prevalence Rates'!AK111","v":235.97661489929624},{"$f":"'Population 2016'!AL111*'Prevalence Rates'!AL111","v":551.26829410337291},{"$f":"'Population 2016'!AM111*'Prevalence Rates'!AM111","v":1536.3879252608592},{"$f":"'Population 2016'!AN111*'Prevalence Rates'!AN111","v":59.413844115505945},{"$f":"'Population 2016'!AO111*'Prevalence Rates'!AO111","v":59.447733559815582},{"$f":"'Population 2016'!AP111*'Prevalence Rates'!AP111","v":222.15622421742296},{"$f":"'Population 2016'!AQ111*'Prevalence Rates'!AQ111","v":473.65482164523166},{"$f":"'Population 2016'!AR111*'Prevalence Rates'!AR111","v":15931.619999999999},{"$f":"'Population 2016'!AS111*'Prevalence Rates'!AS111","v":344.946129580199},{"$f":"'Population 2016'!AT111*'Prevalence Rates'!AT111","v":11.639113685998542},{"$f":"'Population 2016'!AU111*'Prevalence Rates'!AU111","v":11.628730890560544},{"$f":"'Population 2016'!AV111*'Prevalence Rates'!AV111","v":555.24698131521473},{"$f":"'Population 2016'!AW111*'Prevalence Rates'!AW111","v":1244.9066658578015},{"$f":"'Population 2016'!AX111*'Prevalence Rates'!AX111","v":174.58759524387284},{"$f":"'Population 2016'!AY111*'Prevalence Rates'!AY111","v":2058.147721426838},{"$f":"'Population 2016'!AZ111*'Prevalence Rates'!AZ111","v":855.90781849065763},{"$f":"'Population 2016'!BA111*'Prevalence Rates'!BA111","v":398.47151662217908},{"$f":"'Population 2016'!BB111*'Prevalence Rates'!BB111","v":753.01846881824804},{"$f":"'Population 2016'!BC111*'Prevalence Rates'!BC111","v":114.38745906333413},109]
[null,"Female 70-74",{"$f":"'Population 2016'!C112*'Prevalence Rates'!C112","v":337.36372239747624},{"$f":"'Population 2016'!D112*'Prevalence Rates'!D112","v":607.38997330744962},{"$f":"'Population 2016'!E112*'Prevalence Rates'!E112","v":255.68494054841057},{"$f":"'Population 2016'!F112*'Prevalence Rates'!F112","v":245.74000242659551},{"$f":"'Population 2016'!G112*'Prevalence Rates'!G112","v":227.62410094637221},{"$f":"'Population 2016'!H112*'Prevalence Rates'!H112","v":1371.5345270565394},{"$f":"'Population 2016'!I112*'Prevalence Rates'!I112","v":275.84955149235623},{"$f":"'Population 2016'!J112*'Prevalence Rates'!J112","v":336.50224702742054},{"$f":"'Population 2016'!K112*'Prevalence Rates'!K112","v":192.26207959233193},{"$f":"'Population 2016'!L112*'Prevalence Rates'!L112","v":707.57571424411537},{"$f":"'Population 2016'!M112*'Prevalence Rates'!M112","v":707.15973792768739},{"$f":"'Population 2016'!N112*'Prevalence Rates'!N112","v":337.47763649599602},{"$f":"'Population 2016'!O112*'Prevalence Rates'!O112","v":475.26623149720928},{"$f":"'Population 2016'!P112*'Prevalence Rates'!P112","v":222.68782334384858},{"$f":"'Population 2016'!Q112*'Prevalence Rates'!Q112","v":320.34305751031303},{"$f":"'Population 2016'!R112*'Prevalence Rates'!R112","v":69.470987624363019},{"$f":"'Population 2016'!S112*'Prevalence Rates'!S112","v":2864.5171463237079},{"$f":"'Population 2016'!T112*'Prevalence Rates'!T112","v":450.226488716331},{"$f":"'Population 2016'!U112*'Prevalence Rates'!U112","v":83.755340936665846},{"$f":"'Population 2016'!V112*'Prevalence Rates'!V112","v":631.79606891531171},{"$f":"'Population 2016'!W112*'Prevalence Rates'!W112","v":935.52475515651531},{"$f":"'Population 2016'!X112*'Prevalence Rates'!X112","v":935.068624120359},{"$f":"'Population 2016'!Y112*'Prevalence Rates'!Y112","v":933.89056248483348},{"$f":"'Population 2016'!Z112*'Prevalence Rates'!Z112","v":954.12550351856351},{"$f":"'Population 2016'!AA112*'Prevalence Rates'!AA112","v":4450.3675224460076},{"$f":"'Population 2016'!AB112*'Prevalence Rates'!AB112","v":793.51469352099002},{"$f":"'Population 2016'!AC112*'Prevalence Rates'!AC112","v":2115.0659686969179},{"$f":"'Population 2016'!AD112*'Prevalence Rates'!AD112","v":766.83980878427565},{"$f":"'Population 2016'!AE112*'Prevalence Rates'!AE112","v":575.86661975248717},{"$f":"'Population 2016'!AF112*'Prevalence Rates'!AF112","v":119.32264498908032},{"$f":"'Population 2016'!AG112*'Prevalence Rates'!AG112","v":575.86661975248717},{"$f":"'Population 2016'!AH112*'Prevalence Rates'!AH112","v":2307.5870842028635},{"$f":"'Population 2016'!AI112*'Prevalence Rates'!AI112","v":1659.9847221548166},{"$f":"'Population 2016'!AJ112*'Prevalence Rates'!AJ112","v":348.96160155302107},{"$f":"'Population 2016'!AK112*'Prevalence Rates'!AK112","v":184.40556661004607},{"$f":"'Population 2016'!AL112*'Prevalence Rates'!AL112","v":421.92358165493812},{"$f":"'Population 2016'!AM112*'Prevalence Rates'!AM112","v":1300.9061247270081},{"$f":"'Population 2016'!AN112*'Prevalence Rates'!AN112","v":51.425428099975733},{"$f":"'Population 2016'!AO112*'Prevalence Rates'!AO112","v":51.454760980344581},{"$f":"'Population 2016'!AP112*'Prevalence Rates'!AP112","v":178.20792768745451},{"$f":"'Population 2016'!AQ112*'Prevalence Rates'!AQ112","v":383.49893229798585},{"$f":"'Population 2016'!AR112*'Prevalence Rates'!AR112","v":12598.596},{"$f":"'Population 2016'!AS112*'Prevalence Rates'!AS112","v":275.85604222276146},{"$f":"'Population 2016'!AT112*'Prevalence Rates'!AT112","v":8.8457264013588919},{"$f":"'Population 2016'!AU112*'Prevalence Rates'!AU112","v":8.8378354768260134},{"$f":"'Population 2016'!AV112*'Prevalence Rates'!AV112","v":461.15393593787911},{"$f":"'Population 2016'!AW112*'Prevalence Rates'!AW112","v":1011.3424193157},{"$f":"'Population 2016'!AX112*'Prevalence Rates'!AX112","v":152.16787672894927},{"$f":"'Population 2016'!AY112*'Prevalence Rates'!AY112","v":1614.2149866537245},{"$f":"'Population 2016'!AZ112*'Prevalence Rates'!AZ112","v":688.40757874302358},{"$f":"'Population 2016'!BA112*'Prevalence Rates'!BA112","v":298.85363746663432},{"$f":"'Population 2016'!BB112*'Prevalence Rates'!BB112","v":627.42817520019423},{"$f":"'Population 2016'!BC112*'Prevalence Rates'!BC112","v":83.851823804901713},110]
[null,"Female 75-79",{"$f":"'Population 2016'!C113*'Prevalence Rates'!C113","v":497.16113564668751},{"$f":"'Population 2016'!D113*'Prevalence Rates'!D113","v":830.73708323222513},{"$f":"'Population 2016'!E113*'Prevalence Rates'!E113","v":307.74930356709535},{"$f":"'Population 2016'!F113*'Prevalence Rates'!F113","v":321.21051686483861},{"$f":"'Population 2016'!G113*'Prevalence Rates'!G113","v":312.38611987381699},{"$f":"'Population 2016'!H113*'Prevalence Rates'!H113","v":1654.9667682601309},{"$f":"'Population 2016'!I113*'Prevalence Rates'!I113","v":330.92912176656148},{"$f":"'Population 2016'!J113*'Prevalence Rates'!J113","v":396.99744722154816},{"$f":"'Population 2016'!K113*'Prevalence Rates'!K113","v":194.06978888619264},{"$f":"'Population 2016'!L113*'Prevalence Rates'!L113","v":823.12417782091711},{"$f":"'Population 2016'!M113*'Prevalence Rates'!M113","v":822.64027177869445},{"$f":"'Population 2016'!N113*'Prevalence Rates'!N113","v":481.52949769473412},{"$f":"'Population 2016'!O113*'Prevalence Rates'!O113","v":603.15607862169361},{"$f":"'Population 2016'!P113*'Prevalence Rates'!P113","v":268.44911429264738},{"$f":"'Population 2016'!Q113*'Prevalence Rates'!Q113","v":420.0916816306721},{"$f":"'Population 2016'!R113*'Prevalence Rates'!R113","v":111.61831594273234},{"$f":"'Population 2016'!S113*'Prevalence Rates'!S113","v":3563.3017228827953},{"$f":"'Population 2016'!T113*'Prevalence Rates'!T113","v":640.19071099247753},{"$f":"'Population 2016'!U113*'Prevalence Rates'!U113","v":119.31698131521475},{"$f":"'Population 2016'!V113*'Prevalence Rates'!V113","v":777.89640378548881},{"$f":"'Population 2016'!W113*'Prevalence Rates'!W113","v":1140.3460461053141},{"$f":"'Population 2016'!X113*'Prevalence Rates'!X113","v":1139.7900509585052},{"$f":"'Population 2016'!Y113*'Prevalence Rates'!Y113","v":1132.2175239019653},{"$f":"'Population 2016'!Z113*'Prevalence Rates'!Z113","v":1389.8116961902451},{"$f":"'Population 2016'!AA113*'Prevalence Rates'!AA113","v":5862.0597816064046},{"$f":"'Population 2016'!AB113*'Prevalence Rates'!AB113","v":1072.6520514438243},{"$f":"'Population 2016'!AC113*'Prevalence Rates'!AC113","v":2943.0908983256486},{"$f":"'Population 2016'!AD113*'Prevalence Rates'!AD113","v":1046.1108585294833},{"$f":"'Population 2016'!AE113*'Prevalence Rates'!AE113","v":783.59376850279045},{"$f":"'Population 2016'!AF113*'Prevalence Rates'!AF113","v":130.60248483377822},{"$f":"'Population 2016'!AG113*'Prevalence Rates'!AG113","v":783.59376850279045},{"$f":"'Population 2016'!AH113*'Prevalence Rates'!AH113","v":2888.3197388983253},{"$f":"'Population 2016'!AI113*'Prevalence Rates'!AI113","v":2096.6302159669981},{"$f":"'Population 2016'!AJ113*'Prevalence Rates'!AJ113","v":411.86802717786941},{"$f":"'Population 2016'!AK113*'Prevalence Rates'!AK113","v":238.20410579956319},{"$f":"'Population 2016'!AL113*'Prevalence Rates'!AL113","v":476.30955593302599},{"$f":"'Population 2016'!AM113*'Prevalence Rates'!AM113","v":1608.2106770201408},{"$f":"'Population 2016'!AN113*'Prevalence Rates'!AN113","v":46.699152826983735},{"$f":"'Population 2016'!AO113*'Prevalence Rates'!AO113","v":46.725789856830872},{"$f":"'Population 2016'!AP113*'Prevalence Rates'!AP113","v":202.19831108954139},{"$f":"'Population 2016'!AQ113*'Prevalence Rates'!AQ113","v":536.07022567338015},{"$f":"'Population 2016'!AR113*'Prevalence Rates'!AR113","v":16093.242},{"$f":"'Population 2016'!AS113*'Prevalence Rates'!AS113","v":330.93690851735016},{"$f":"'Population 2016'!AT113*'Prevalence Rates'!AT113","v":6.9120626061635519},{"$f":"'Population 2016'!AU113*'Prevalence Rates'!AU113","v":6.9058966270322744},{"$f":"'Population 2016'!AV113*'Prevalence Rates'!AV113","v":558.78569279301132},{"$f":"'Population 2016'!AW113*'Prevalence Rates'!AW113","v":1283.5753991749573},{"$f":"'Population 2016'!AX113*'Prevalence Rates'!AX113","v":208.21278330502304},{"$f":"'Population 2016'!AY113*'Prevalence Rates'!AY113","v":2036.1683863140013},{"$f":"'Population 2016'!AZ113*'Prevalence Rates'!AZ113","v":905.91058675078864},{"$f":"'Population 2016'!BA113*'Prevalence Rates'!BA113","v":424.16298956563941},{"$f":"'Population 2016'!BB113*'Prevalence Rates'!BB113","v":713.20647415675808},{"$f":"'Population 2016'!BC113*'Prevalence Rates'!BC113","v":119.45442979859256},111]
[null,"Female 80-84",{"$f":"'Population 2016'!C114*'Prevalence Rates'!C114","v":440.8904100946371},{"$f":"'Population 2016'!D114*'Prevalence Rates'!D114","v":710.99729191943698},{"$f":"'Population 2016'!E114*'Prevalence Rates'!E114","v":245.32845425867507},{"$f":"'Population 2016'!F114*'Prevalence Rates'!F114","v":248.24231982528511},{"$f":"'Population 2016'!G114*'Prevalence Rates'!G114","v":237.12946372239742},{"$f":"'Population 2016'!H114*'Prevalence Rates'!H114","v":1297.6990148022323},{"$f":"'Population 2016'!I114*'Prevalence Rates'!I114","v":262.04794710021838},{"$f":"'Population 2016'!J114*'Prevalence Rates'!J114","v":265.40840572676535},{"$f":"'Population 2016'!K114*'Prevalence Rates'!K114","v":130.18848337782089},{"$f":"'Population 2016'!L114*'Prevalence Rates'!L114","v":685.51728163067207},{"$f":"'Population 2016'!M114*'Prevalence Rates'!M114","v":685.11427323465182},{"$f":"'Population 2016'!N114*'Prevalence Rates'!N114","v":391.77926716816296},{"$f":"'Population 2016'!O114*'Prevalence Rates'!O114","v":446.99649114292635},{"$f":"'Population 2016'!P114*'Prevalence Rates'!P114","v":247.25576316428049},{"$f":"'Population 2016'!Q114*'Prevalence Rates'!Q114","v":331.00209172530936},{"$f":"'Population 2016'!R114*'Prevalence Rates'!R114","v":106.67320067944672},{"$f":"'Population 2016'!S114*'Prevalence Rates'!S114","v":2741.1582528512495},{"$f":"'Population 2016'!T114*'Prevalence Rates'!T114","v":479.55462266440185},{"$f":"'Population 2016'!U114*'Prevalence Rates'!U114","v":109.97288036884251},{"$f":"'Population 2016'!V114*'Prevalence Rates'!V114","v":560.37651540888123},{"$f":"'Population 2016'!W114*'Prevalence Rates'!W114","v":908.37451201164754},{"$f":"'Population 2016'!X114*'Prevalence Rates'!X114","v":907.93161853918946},{"$f":"'Population 2016'!Y114*'Prevalence Rates'!Y114","v":794.67139043921361},{"$f":"'Population 2016'!Z114*'Prevalence Rates'!Z114","v":1252.0461053142442},{"$f":"'Population 2016'!AA114*'Prevalence Rates'!AA114","v":4732.5757243387516},{"$f":"'Population 2016'!AB114*'Prevalence Rates'!AB114","v":888.28998010191708},{"$f":"'Population 2016'!AC114*'Prevalence Rates'!AC114","v":2514.7144309633577},{"$f":"'Population 2016'!AD114*'Prevalence Rates'!AD114","v":766.10564231982528},{"$f":"'Population 2016'!AE114*'Prevalence Rates'!AE114","v":564.91643775782575},{"$f":"'Population 2016'!AF114*'Prevalence Rates'!AF114","v":100.86132492113565},{"$f":"'Population 2016'!AG114*'Prevalence Rates'!AG114","v":564.91643775782575},{"$f":"'Population 2016'!AH114*'Prevalence Rates'!AH114","v":2198.2874807085659},{"$f":"'Population 2016'!AI114*'Prevalence Rates'!AI114","v":1578.3328085416158},{"$f":"'Population 2016'!AJ114*'Prevalence Rates'!AJ114","v":324.14904634797375},{"$f":"'Population 2016'!AK114*'Prevalence Rates'!AK114","v":170.91917981072552},{"$f":"'Population 2016'!AL114*'Prevalence Rates'!AL114","v":400.83797136617324},{"$f":"'Population 2016'!AM114*'Prevalence Rates'!AM114","v":1187.900543557389},{"$f":"'Population 2016'!AN114*'Prevalence Rates'!AN114","v":44.475383644746415},{"$f":"'Population 2016'!AO114*'Prevalence Rates'!AO114","v":44.500752244600832},{"$f":"'Population 2016'!AP114*'Prevalence Rates'!AP114","v":169.21560786216938},{"$f":"'Population 2016'!AQ114*'Prevalence Rates'!AQ114","v":446.83617568551313},{"$f":"'Population 2016'!AR114*'Prevalence Rates'!AR114","v":12683.22},{"$f":"'Population 2016'!AS114*'Prevalence Rates'!AS114","v":262.05411307934963},{"$f":"'Population 2016'!AT114*'Prevalence Rates'!AT114","v":10.368093909245328},{"$f":"'Population 2016'!AU114*'Prevalence Rates'!AU114","v":10.358844940548412},{"$f":"'Population 2016'!AV114*'Prevalence Rates'!AV114","v":437.27890803203098},{"$f":"'Population 2016'!AW114*'Prevalence Rates'!AW114","v":1008.7682795437998},{"$f":"'Population 2016'!AX114*'Prevalence Rates'!AX114","v":138.8085222033487},{"$f":"'Population 2016'!AY114*'Prevalence Rates'!AY114","v":1630.1967968939575},{"$f":"'Population 2016'!AZ114*'Prevalence Rates'!AZ114","v":729.64744091239993},{"$f":"'Population 2016'!BA114*'Prevalence Rates'!BA114","v":301.37896627032273},{"$f":"'Population 2016'!BB114*'Prevalence Rates'!BB114","v":507.32443096335845},{"$f":"'Population 2016'!BC114*'Prevalence Rates'!BC114","v":110.09956481436542},112]
[null,"Female 85-89",{"$f":"'Population 2016'!C115*'Prevalence Rates'!C115","v":247.96220820189268},{"$f":"'Population 2016'!D115*'Prevalence Rates'!D115","v":397.10314972094147},{"$f":"'Population 2016'!E115*'Prevalence Rates'!E115","v":135.00323222518807},{"$f":"'Population 2016'!F115*'Prevalence Rates'!F115","v":184.30111623392381},{"$f":"'Population 2016'!G115*'Prevalence Rates'!G115","v":132.76410094637222},{"$f":"'Population 2016'!H115*'Prevalence Rates'!H115","v":712.93340936665857},{"$f":"'Population 2016'!I115*'Prevalence Rates'!I115","v":159.47489352099004},{"$f":"'Population 2016'!J115*'Prevalence Rates'!J115","v":154.63570977917982},{"$f":"'Population 2016'!K115*'Prevalence Rates'!K115","v":82.479660276631876},{"$f":"'Population 2016'!L115*'Prevalence Rates'!L115","v":381.77523028391158},{"$f":"'Population 2016'!M115*'Prevalence Rates'!M115","v":381.55078864353311},{"$f":"'Population 2016'!N115*'Prevalence Rates'!N115","v":214.62011647658329},{"$f":"'Population 2016'!O115*'Prevalence Rates'!O115","v":238.78370783790336},{"$f":"'Population 2016'!P115*'Prevalence Rates'!P115","v":143.40834263528268},{"$f":"'Population 2016'!Q115*'Prevalence Rates'!Q115","v":186.40283426352823},{"$f":"'Population 2016'!R115*'Prevalence Rates'!R115","v":47.331817520019406},{"$f":"'Population 2016'!S115*'Prevalence Rates'!S115","v":1718.4090560543557},{"$f":"'Population 2016'!T115*'Prevalence Rates'!T115","v":327.15628245571463},{"$f":"'Population 2016'!U115*'Prevalence Rates'!U115","v":45.282950740111616},{"$f":"'Population 2016'!V115*'Prevalence Rates'!V115","v":350.13424411550591},{"$f":"'Population 2016'!W115*'Prevalence Rates'!W115","v":584.62607813637464},{"$f":"'Population 2016'!X115*'Prevalence Rates'!X115","v":584.34103372967718},{"$f":"'Population 2016'!Y115*'Prevalence Rates'!Y115","v":485.12796311574851},{"$f":"'Population 2016'!Z115*'Prevalence Rates'!Z115","v":777.97039553506431},{"$f":"'Population 2016'!AA115*'Prevalence Rates'!AA115","v":2756.5414899296284},{"$f":"'Population 2016'!AB115*'Prevalence Rates'!AB115","v":508.39237854889592},{"$f":"'Population 2016'!AC115*'Prevalence Rates'!AC115","v":1460.8931036156268},{"$f":"'Population 2016'!AD115*'Prevalence Rates'!AD115","v":480.41504100946378},{"$f":"'Population 2016'!AE115*'Prevalence Rates'!AE115","v":371.2958844940548},{"$f":"'Population 2016'!AF115*'Prevalence Rates'!AF115","v":51.723756369813152},{"$f":"'Population 2016'!AG115*'Prevalence Rates'!AG115","v":371.2958844940548},{"$f":"'Population 2016'!AH115*'Prevalence Rates'!AH115","v":1284.1046163552535},{"$f":"'Population 2016'!AI115*'Prevalence Rates'!AI115","v":979.94673137587949},{"$f":"'Population 2016'!AJ115*'Prevalence Rates'!AJ115","v":210.38849308420282},{"$f":"'Population 2016'!AK115*'Prevalence Rates'!AK115","v":109.04798349915067},{"$f":"'Population 2016'!AL115*'Prevalence Rates'!AL115","v":204.61185149235621},{"$f":"'Population 2016'!AM115*'Prevalence Rates'!AM115","v":654.16105799563218},{"$f":"'Population 2016'!AN115*'Prevalence Rates'!AN115","v":21.496435428294102},{"$f":"'Population 2016'!AO115*'Prevalence Rates'!AO115","v":21.508696918223734},{"$f":"'Population 2016'!AP115*'Prevalence Rates'!AP115","v":146.27111866051931},{"$f":"'Population 2016'!AQ115*'Prevalence Rates'!AQ115","v":235.07178840087352},{"$f":"'Population 2016'!AR115*'Prevalence Rates'!AR115","v":7558.3859999999995},{"$f":"'Population 2016'!AS115*'Prevalence Rates'!AS115","v":159.47864595971851},{"$f":"'Population 2016'!AT115*'Prevalence Rates'!AT115","v":3.456031303081776},{"$f":"'Population 2016'!AU115*'Prevalence Rates'!AU115","v":3.4529483135161372},{"$f":"'Population 2016'!AV115*'Prevalence Rates'!AV115","v":259.74803688425135},{"$f":"'Population 2016'!AW115*'Prevalence Rates'!AW115","v":624.31243387527286},{"$f":"'Population 2016'!AX115*'Prevalence Rates'!AX115","v":75.069915069157972},{"$f":"'Population 2016'!AY115*'Prevalence Rates'!AY115","v":1074.878146081048},{"$f":"'Population 2016'!AZ115*'Prevalence Rates'!AZ115","v":494.62991312788159},{"$f":"'Population 2016'!BA115*'Prevalence Rates'!BA115","v":179.29257947100217},{"$f":"'Population 2016'!BB115*'Prevalence Rates'!BB115","v":287.45794710021841},{"$f":"'Population 2016'!BC115*'Prevalence Rates'!BC115","v":45.335114923562237},113]
[null,"Female 90+",{"$f":"'Population 2016'!C116*'Prevalence Rates'!C116","v":120.58012618296526},{"$f":"'Population 2016'!D116*'Prevalence Rates'!D116","v":209.03726280029116},{"$f":"'Population 2016'!E116*'Prevalence Rates'!E116","v":82.743916525115267},{"$f":"'Population 2016'!F116*'Prevalence Rates'!F116","v":121.1121620965785},{"$f":"'Population 2016'!G116*'Prevalence Rates'!G116","v":73.836719242902191},{"$f":"'Population 2016'!H116*'Prevalence Rates'!H116","v":496.65024023295314},{"$f":"'Population 2016'!I116*'Prevalence Rates'!I116","v":110.06013778209172},{"$f":"'Population 2016'!J116*'Prevalence Rates'!J116","v":93.673554962387769},{"$f":"'Population 2016'!K116*'Prevalence Rates'!K116","v":49.326071341907294},{"$f":"'Population 2016'!L116*'Prevalence Rates'!L116","v":231.58233749090022},{"$f":"'Population 2016'!M116*'Prevalence Rates'!M116","v":231.44619267168162},{"$f":"'Population 2016'!N116*'Prevalence Rates'!N116","v":128.77206988594997},{"$f":"'Population 2016'!O116*'Prevalence Rates'!O116","v":152.02838146081044},{"$f":"'Population 2016'!P116*'Prevalence Rates'!P116","v":98.195860228099974},{"$f":"'Population 2016'!Q116*'Prevalence Rates'!Q116","v":100.73976704683328},{"$f":"'Population 2016'!R116*'Prevalence Rates'!R116","v":24.72557631642805},{"$f":"'Population 2016'!S116*'Prevalence Rates'!S116","v":990.10826498422705},{"$f":"'Population 2016'!T116*'Prevalence Rates'!T116","v":197.70595486532395},{"$f":"'Population 2016'!U116*'Prevalence Rates'!U116","v":40.970288764862893},{"$f":"'Population 2016'!V116*'Prevalence Rates'!V116","v":223.18025721912153},{"$f":"'Population 2016'!W116*'Prevalence Rates'!W116","v":348.3186275175928},{"$f":"'Population 2016'!X116*'Prevalence Rates'!X116","v":348.14879883523417},{"$f":"'Population 2016'!Y116*'Prevalence Rates'!Y116","v":304.24561805387037},{"$f":"'Population 2016'!Z116*'Prevalence Rates'!Z116","v":456.24722154816794},{"$f":"'Population 2016'!AA116*'Prevalence Rates'!AA116","v":1423.675253579228},{"$f":"'Population 2016'!AB116*'Prevalence Rates'!AB116","v":260.48125988837666},{"$f":"'Population 2016'!AC116*'Prevalence Rates'!AC116","v":785.99092501819928},{"$f":"'Population 2016'!AD116*'Prevalence Rates'!AD116","v":267.2130997330745},{"$f":"'Population 2016'!AE116*'Prevalence Rates'!AE116","v":206.52859014802232},{"$f":"'Population 2016'!AF116*'Prevalence Rates'!AF116","v":16.810220820189276},{"$f":"'Population 2016'!AG116*'Prevalence Rates'!AG116","v":206.52859014802232},{"$f":"'Population 2016'!AH116*'Prevalence Rates'!AH116","v":632.89582916767768},{"$f":"'Population 2016'!AI116*'Prevalence Rates'!AI116","v":538.48235670953648},{"$f":"'Population 2016'!AJ116*'Prevalence Rates'!AJ116","v":95.257330744964804},{"$f":"'Population 2016'!AK116*'Prevalence Rates'!AK116","v":49.496957049259883},{"$f":"'Population 2016'!AL116*'Prevalence Rates'!AL116","v":129.14026692550351},{"$f":"'Population 2016'!AM116*'Prevalence Rates'!AM116","v":279.68881339480708},{"$f":"'Population 2016'!AN116*'Prevalence Rates'!AN116","v":8.8950767289492827},{"$f":"'Population 2016'!AO116*'Prevalence Rates'!AO116","v":8.9001504489201668},{"$f":"'Population 2016'!AP116*'Prevalence Rates'!AP116","v":68.833467604950258},{"$f":"'Population 2016'!AQ116*'Prevalence Rates'!AQ116","v":111.87552535792281},{"$f":"'Population 2016'!AR116*'Prevalence Rates'!AR116","v":4277.5919999999996},{"$f":"'Population 2016'!AS116*'Prevalence Rates'!AS116","v":110.06272749332686},{"$f":"'Population 2016'!AT116*'Prevalence Rates'!AT116","v":0.69120626061635515},{"$f":"'Population 2016'!AU116*'Prevalence Rates'!AU116","v":0.69058966270322741},{"$f":"'Population 2016'!AV116*'Prevalence Rates'!AV116","v":205.17912157243384},{"$f":"'Population 2016'!AW116*'Prevalence Rates'!AW116","v":345.39348701771411},{"$f":"'Population 2016'!AX116*'Prevalence Rates'!AX116","v":46.03343848580441},{"$f":"'Population 2016'!AY116*'Prevalence Rates'!AY116","v":633.84856102887636},{"$f":"'Population 2016'!AZ116*'Prevalence Rates'!AZ116","v":288.30638582868238},{"$f":"'Population 2016'!BA116*'Prevalence Rates'!BA116","v":71.158922591603982},{"$f":"'Population 2016'!BB116*'Prevalence Rates'!BB116","v":159.26724096093182},{"$f":"'Population 2016'!BC116*'Prevalence Rates'!BC116","v":41.017484930842024},114]
[null,"Male 0-4",{"$f":"'Population 2016'!C117*'Prevalence Rates'!C117","v":0},{"$f":"'Population 2016'!D117*'Prevalence Rates'!D117","v":0},{"$f":"'Population 2016'!E117*'Prevalence Rates'!E117","v":0},{"$f":"'Population 2016'!F117*'Prevalence Rates'!F117","v":0},{"$f":"'Population 2016'!G117*'Prevalence Rates'!G117","v":0},{"$f":"'Population 2016'!H117*'Prevalence Rates'!H117","v":0},{"$f":"'Population 2016'!I117*'Prevalence Rates'!I117","v":0},{"$f":"'Population 2016'!J117*'Prevalence Rates'!J117","v":0},{"$f":"'Population 2016'!K117*'Prevalence Rates'!K117","v":0},{"$f":"'Population 2016'!L117*'Prevalence Rates'!L117","v":0},{"$f":"'Population 2016'!M117*'Prevalence Rates'!M117","v":0},{"$f":"'Population 2016'!N117*'Prevalence Rates'!N117","v":0},{"$f":"'Population 2016'!O117*'Prevalence Rates'!O117","v":0},{"$f":"'Population 2016'!P117*'Prevalence Rates'!P117","v":0},{"$f":"'Population 2016'!Q117*'Prevalence Rates'!Q117","v":0},{"$f":"'Population 2016'!R117*'Prevalence Rates'!R117","v":0},{"$f":"'Population 2016'!S117*'Prevalence Rates'!S117","v":0},{"$f":"'Population 2016'!T117*'Prevalence Rates'!T117","v":0},{"$f":"'Population 2016'!U117*'Prevalence Rates'!U117","v":0},{"$f":"'Population 2016'!V117*'Prevalence Rates'!V117","v":0},{"$f":"'Population 2016'!W117*'Prevalence Rates'!W117","v":0},{"$f":"'Population 2016'!X117*'Prevalence Rates'!X117","v":0},{"$f":"'Population 2016'!Y117*'Prevalence Rates'!Y117","v":0},{"$f":"'Population 2016'!Z117*'Prevalence Rates'!Z117","v":0},{"$f":"'Population 2016'!AA117*'Prevalence Rates'!AA117","v":0},{"$f":"'Population 2016'!AB117*'Prevalence Rates'!AB117","v":0},{"$f":"'Population 2016'!AC117*'Prevalence Rates'!AC117","v":0},{"$f":"'Population 2016'!AD117*'Prevalence Rates'!AD117","v":0},{"$f":"'Population 2016'!AE117*'Prevalence Rates'!AE117","v":0},{"$f":"'Population 2016'!AF117*'Prevalence Rates'!AF117","v":0},{"$f":"'Population 2016'!AG117*'Prevalence Rates'!AG117","v":0},{"$f":"'Population 2016'!AH117*'Prevalence Rates'!AH117","v":0},{"$f":"'Population 2016'!AI117*'Prevalence Rates'!AI117","v":0},{"$f":"'Population 2016'!AJ117*'Prevalence Rates'!AJ117","v":0},{"$f":"'Population 2016'!AK117*'Prevalence Rates'!AK117","v":0},{"$f":"'Population 2016'!AL117*'Prevalence Rates'!AL117","v":0},{"$f":"'Population 2016'!AM117*'Prevalence Rates'!AM117","v":0},{"$f":"'Population 2016'!AN117*'Prevalence Rates'!AN117","v":0},{"$f":"'Population 2016'!AO117*'Prevalence Rates'!AO117","v":0},{"$f":"'Population 2016'!AP117*'Prevalence Rates'!AP117","v":0},{"$f":"'Population 2016'!AQ117*'Prevalence Rates'!AQ117","v":0},{"$f":"'Population 2016'!AR117*'Prevalence Rates'!AR117","v":0},{"$f":"'Population 2016'!AS117*'Prevalence Rates'!AS117","v":0},{"$f":"'Population 2016'!AT117*'Prevalence Rates'!AT117","v":0},{"$f":"'Population 2016'!AU117*'Prevalence Rates'!AU117","v":0},{"$f":"'Population 2016'!AV117*'Prevalence Rates'!AV117","v":0},{"$f":"'Population 2016'!AW117*'Prevalence Rates'!AW117","v":0},{"$f":"'Population 2016'!AX117*'Prevalence Rates'!AX117","v":0},{"$f":"'Population 2016'!AY117*'Prevalence Rates'!AY117","v":0},{"$f":"'Population 2016'!AZ117*'Prevalence Rates'!AZ117","v":0},{"$f":"'Population 2016'!BA117*'Prevalence Rates'!BA117","v":0},{"$f":"'Population 2016'!BB117*'Prevalence Rates'!BB117","v":0},{"$f":"'Population 2016'!BC117*'Prevalence Rates'!BC117","v":0},115]
[null,"Male 5-9",{"$f":"'Population 2016'!C118*'Prevalence Rates'!C118","v":0},{"$f":"'Population 2016'!D118*'Prevalence Rates'!D118","v":0},{"$f":"'Population 2016'!E118*'Prevalence Rates'!E118","v":0},{"$f":"'Population 2016'!F118*'Prevalence Rates'!F118","v":0},{"$f":"'Population 2016'!G118*'Prevalence Rates'!G118","v":0},{"$f":"'Population 2016'!H118*'Prevalence Rates'!H118","v":0},{"$f":"'Population 2016'!I118*'Prevalence Rates'!I118","v":0},{"$f":"'Population 2016'!J118*'Prevalence Rates'!J118","v":0},{"$f":"'Population 2016'!K118*'Prevalence Rates'!K118","v":0},{"$f":"'Population 2016'!L118*'Prevalence Rates'!L118","v":0},{"$f":"'Population 2016'!M118*'Prevalence Rates'!M118","v":0},{"$f":"'Population 2016'!N118*'Prevalence Rates'!N118","v":0},{"$f":"'Population 2016'!O118*'Prevalence Rates'!O118","v":0},{"$f":"'Population 2016'!P118*'Prevalence Rates'!P118","v":0},{"$f":"'Population 2016'!Q118*'Prevalence Rates'!Q118","v":0},{"$f":"'Population 2016'!R118*'Prevalence Rates'!R118","v":0},{"$f":"'Population 2016'!S118*'Prevalence Rates'!S118","v":0},{"$f":"'Population 2016'!T118*'Prevalence Rates'!T118","v":0},{"$f":"'Population 2016'!U118*'Prevalence Rates'!U118","v":0},{"$f":"'Population 2016'!V118*'Prevalence Rates'!V118","v":0},{"$f":"'Population 2016'!W118*'Prevalence Rates'!W118","v":0},{"$f":"'Population 2016'!X118*'Prevalence Rates'!X118","v":0},{"$f":"'Population 2016'!Y118*'Prevalence Rates'!Y118","v":0},{"$f":"'Population 2016'!Z118*'Prevalence Rates'!Z118","v":0},{"$f":"'Population 2016'!AA118*'Prevalence Rates'!AA118","v":0},{"$f":"'Population 2016'!AB118*'Prevalence Rates'!AB118","v":0},{"$f":"'Population 2016'!AC118*'Prevalence Rates'!AC118","v":0},{"$f":"'Population 2016'!AD118*'Prevalence Rates'!AD118","v":0},{"$f":"'Population 2016'!AE118*'Prevalence Rates'!AE118","v":0},{"$f":"'Population 2016'!AF118*'Prevalence Rates'!AF118","v":0},{"$f":"'Population 2016'!AG118*'Prevalence Rates'!AG118","v":0},{"$f":"'Population 2016'!AH118*'Prevalence Rates'!AH118","v":0},{"$f":"'Population 2016'!AI118*'Prevalence Rates'!AI118","v":0},{"$f":"'Population 2016'!AJ118*'Prevalence Rates'!AJ118","v":0},{"$f":"'Population 2016'!AK118*'Prevalence Rates'!AK118","v":0},{"$f":"'Population 2016'!AL118*'Prevalence Rates'!AL118","v":0},{"$f":"'Population 2016'!AM118*'Prevalence Rates'!AM118","v":0},{"$f":"'Population 2016'!AN118*'Prevalence Rates'!AN118","v":0},{"$f":"'Population 2016'!AO118*'Prevalence Rates'!AO118","v":0},{"$f":"'Population 2016'!AP118*'Prevalence Rates'!AP118","v":0},{"$f":"'Population 2016'!AQ118*'Prevalence Rates'!AQ118","v":0},{"$f":"'Population 2016'!AR118*'Prevalence Rates'!AR118","v":0},{"$f":"'Population 2016'!AS118*'Prevalence Rates'!AS118","v":0},{"$f":"'Population 2016'!AT118*'Prevalence Rates'!AT118","v":0},{"$f":"'Population 2016'!AU118*'Prevalence Rates'!AU118","v":0},{"$f":"'Population 2016'!AV118*'Prevalence Rates'!AV118","v":0},{"$f":"'Population 2016'!AW118*'Prevalence Rates'!AW118","v":0},{"$f":"'Population 2016'!AX118*'Prevalence Rates'!AX118","v":0},{"$f":"'Population 2016'!AY118*'Prevalence Rates'!AY118","v":0},{"$f":"'Population 2016'!AZ118*'Prevalence Rates'!AZ118","v":0},{"$f":"'Population 2016'!BA118*'Prevalence Rates'!BA118","v":0},{"$f":"'Population 2016'!BB118*'Prevalence Rates'!BB118","v":0},{"$f":"'Population 2016'!BC118*'Prevalence Rates'!BC118","v":0},116]
[null,"Male 10-15",{"$f":"'Population 2016'!C119*'Prevalence Rates'!C119","v":0},{"$f":"'Population 2016'!D119*'Prevalence Rates'!D119","v":0},{"$f":"'Population 2016'!E119*'Prevalence Rates'!E119","v":0},{"$f":"'Population 2016'!F119*'Prevalence Rates'!F119","v":0},{"$f":"'Population 2016'!G119*'Prevalence Rates'!G119","v":0},{"$f":"'Population 2016'!H119*'Prevalence Rates'!H119","v":0},{"$f":"'Population 2016'!I119*'Prevalence Rates'!I119","v":0},{"$f":"'Population 2016'!J119*'Prevalence Rates'!J119","v":0},{"$f":"'Population 2016'!K119*'Prevalence Rates'!K119","v":0},{"$f":"'Population 2016'!L119*'Prevalence Rates'!L119","v":0},{"$f":"'Population 2016'!M119*'Prevalence Rates'!M119","v":0},{"$f":"'Population 2016'!N119*'Prevalence Rates'!N119","v":0},{"$f":"'Population 2016'!O119*'Prevalence Rates'!O119","v":0},{"$f":"'Population 2016'!P119*'Prevalence Rates'!P119","v":0},{"$f":"'Population 2016'!Q119*'Prevalence Rates'!Q119","v":0},{"$f":"'Population 2016'!R119*'Prevalence Rates'!R119","v":0},{"$f":"'Population 2016'!S119*'Prevalence Rates'!S119","v":0},{"$f":"'Population 2016'!T119*'Prevalence Rates'!T119","v":0},{"$f":"'Population 2016'!U119*'Prevalence Rates'!U119","v":0},{"$f":"'Population 2016'!V119*'Prevalence Rates'!V119","v":0},{"$f":"'Population 2016'!W119*'Prevalence Rates'!W119","v":0},{"$f":"'Population 2016'!X119*'Prevalence Rates'!X119","v":0},{"$f":"'Population 2016'!Y119*'Prevalence Rates'!Y119","v":0},{"$f":"'Population 2016'!Z119*'Prevalence Rates'!Z119","v":0},{"$f":"'Population 2016'!AA119*'Prevalence Rates'!AA119","v":0},{"$f":"'Population 2016'!AB119*'Prevalence Rates'!AB119","v":0},{"$f":"'Population 2016'!AC119*'Prevalence Rates'!AC119","v":0},{"$f":"'Population 2016'!AD119*'Prevalence Rates'!AD119","v":0},{"$f":"'Population 2016'!AE119*'Prevalence Rates'!AE119","v":0},{"$f":"'Population 2016'!AF119*'Prevalence Rates'!AF119","v":0},{"$f":"'Population 2016'!AG119*'Prevalence Rates'!AG119","v":0},{"$f":"'Population 2016'!AH119*'Prevalence Rates'!AH119","v":0},{"$f":"'Population 2016'!AI119*'Prevalence Rates'!AI119","v":0},{"$f":"'Population 2016'!AJ119*'Prevalence Rates'!AJ119","v":0},{"$f":"'Population 2016'!AK119*'Prevalence Rates'!AK119","v":0},{"$f":"'Population 2016'!AL119*'Prevalence Rates'!AL119","v":0},{"$f":"'Population 2016'!AM119*'Prevalence Rates'!AM119","v":0},{"$f":"'Population 2016'!AN119*'Prevalence Rates'!AN119","v":0},{"$f":"'Population 2016'!AO119*'Prevalence Rates'!AO119","v":0},{"$f":"'Population 2016'!AP119*'Prevalence Rates'!AP119","v":0},{"$f":"'Population 2016'!AQ119*'Prevalence Rates'!AQ119","v":0},{"$f":"'Population 2016'!AR119*'Prevalence Rates'!AR119","v":0},{"$f":"'Population 2016'!AS119*'Prevalence Rates'!AS119","v":0},{"$f":"'Population 2016'!AT119*'Prevalence Rates'!AT119","v":0},{"$f":"'Population 2016'!AU119*'Prevalence Rates'!AU119","v":0},{"$f":"'Population 2016'!AV119*'Prevalence Rates'!AV119","v":0},{"$f":"'Population 2016'!AW119*'Prevalence Rates'!AW119","v":0},{"$f":"'Population 2016'!AX119*'Prevalence Rates'!AX119","v":0},{"$f":"'Population 2016'!AY119*'Prevalence Rates'!AY119","v":0},{"$f":"'Population 2016'!AZ119*'Prevalence Rates'!AZ119","v":0},{"$f":"'Population 2016'!BA119*'Prevalence Rates'!BA119","v":0},{"$f":"'Population 2016'!BB119*'Prevalence Rates'!BB119","v":0},{"$f":"'Population 2016'!BC119*'Prevalence Rates'!BC119","v":0},117]
[null,"Male 16-19",{"$f":"'Population 2016'!C120*'Prevalence Rates'!C120","v":260.66735668789806},{"$f":"'Population 2016'!D120*'Prevalence Rates'!D120","v":398.61114649681537},{"$f":"'Population 2016'!E120*'Prevalence Rates'!E120","v":129.98503184713371},{"$f":"'Population 2016'!F120*'Prevalence Rates'!F120","v":123.40643312101915},{"$f":"'Population 2016'!G120*'Prevalence Rates'!G120","v":90.053707006369422},{"$f":"'Population 2016'!H120*'Prevalence Rates'!H120","v":661.93629554140136},{"$f":"'Population 2016'!I120*'Prevalence Rates'!I120","v":125.28657547770698},{"$f":"'Population 2016'!J120*'Prevalence Rates'!J120","v":154.69228662420386},{"$f":"'Population 2016'!K120*'Prevalence Rates'!K120","v":91.234777070063686},{"$f":"'Population 2016'!L120*'Prevalence Rates'!L120","v":279.45064101910828},{"$f":"'Population 2016'!M120*'Prevalence Rates'!M120","v":279.0941656050955},{"$f":"'Population 2016'!N120*'Prevalence Rates'!N120","v":178.46468789808924},{"$f":"'Population 2016'!O120*'Prevalence Rates'!O120","v":252.41717834394905},{"$f":"'Population 2016'!P120*'Prevalence Rates'!P120","v":114.04539490445858},{"$f":"'Population 2016'!Q120*'Prevalence Rates'!Q120","v":216.36280254777068},{"$f":"'Population 2016'!R120*'Prevalence Rates'!R120","v":59.336267515923559},{"$f":"'Population 2016'!S120*'Prevalence Rates'!S120","v":1677.3580127388536},{"$f":"'Population 2016'!T120*'Prevalence Rates'!T120","v":357.46124203821654},{"$f":"'Population 2016'!U120*'Prevalence Rates'!U120","v":40.664203821656052},{"$f":"'Population 2016'!V120*'Prevalence Rates'!V120","v":326.17923566878977},{"$f":"'Population 2016'!W120*'Prevalence Rates'!W120","v":457.91663694267527},{"$f":"'Population 2016'!X120*'Prevalence Rates'!X120","v":457.60213375796161},{"$f":"'Population 2016'!Y120*'Prevalence Rates'!Y120","v":488.40469108280246},{"$f":"'Population 2016'!Z120*'Prevalence Rates'!Z120","v":707.83798726114628},{"$f":"'Population 2016'!AA120*'Prevalence Rates'!AA120","v":2688.0587197452228},{"$f":"'Population 2016'!AB120*'Prevalence Rates'!AB120","v":506.31973503184724},{"$f":"'Population 2016'!AC120*'Prevalence Rates'!AC120","v":1343.8536420382165},{"$f":"'Population 2016'!AD120*'Prevalence Rates'!AD120","v":390.17669044585989},{"$f":"'Population 2016'!AE120*'Prevalence Rates'!AE120","v":328.6587133757962},{"$f":"'Population 2016'!AF120*'Prevalence Rates'!AF120","v":64.121140127388529},{"$f":"'Population 2016'!AG120*'Prevalence Rates'!AG120","v":328.6587133757962},{"$f":"'Population 2016'!AH120*'Prevalence Rates'!AH120","v":1382.3136305732487},{"$f":"'Population 2016'!AI120*'Prevalence Rates'!AI120","v":1086.8699159235664},{"$f":"'Population 2016'!AJ120*'Prevalence Rates'!AJ120","v":255.15152866242036},{"$f":"'Population 2016'!AK120*'Prevalence Rates'!AK120","v":104.49200000000002},{"$f":"'Population 2016'!AL120*'Prevalence Rates'!AL120","v":218.08054777070066},{"$f":"'Population 2016'!AM120*'Prevalence Rates'!AM120","v":818.70372611464973},{"$f":"'Population 2016'!AN120*'Prevalence Rates'!AN120","v":21.676800191082805},{"$f":"'Population 2016'!AO120*'Prevalence Rates'!AO120","v":21.651668789808916},{"$f":"'Population 2016'!AP120*'Prevalence Rates'!AP120","v":115.12547770700638},{"$f":"'Population 2016'!AQ120*'Prevalence Rates'!AQ120","v":214.76624203821655},{"$f":"'Population 2016'!AR120*'Prevalence Rates'!AR120","v":7155.286000000001},{"$f":"'Population 2016'!AS120*'Prevalence Rates'!AS120","v":125.32519108280256},{"$f":"'Population 2016'!AT120*'Prevalence Rates'!AT120","v":2.3286700636942679},{"$f":"'Population 2016'!AU120*'Prevalence Rates'!AU120","v":2.3313630573248405},{"$f":"'Population 2016'!AV120*'Prevalence Rates'!AV120","v":190.79667515923569},{"$f":"'Population 2016'!AW120*'Prevalence Rates'!AW120","v":567.28968789808926},{"$f":"'Population 2016'!AX120*'Prevalence Rates'!AX120","v":86.344108280254773},{"$f":"'Population 2016'!AY120*'Prevalence Rates'!AY120","v":879.50478980891717},{"$f":"'Population 2016'!AZ120*'Prevalence Rates'!AZ120","v":412.87554904458614},{"$f":"'Population 2016'!BA120*'Prevalence Rates'!BA120","v":171.01952229299363},{"$f":"'Population 2016'!BB120*'Prevalence Rates'!BB120","v":345.95350318471333},{"$f":"'Population 2016'!BC120*'Prevalence Rates'!BC120","v":40.657471337579608},118]
[null,"Male 20-24",{"$f":"'Population 2016'!C121*'Prevalence Rates'!C121","v":627.57427388535029},{"$f":"'Population 2016'!D121*'Prevalence Rates'!D121","v":838.26447770700645},{"$f":"'Population 2016'!E121*'Prevalence Rates'!E121","v":187.17844585987254},{"$f":"'Population 2016'!F121*'Prevalence Rates'!F121","v":192.38746496815293},{"$f":"'Population 2016'!G121*'Prevalence Rates'!G121","v":117.89926114649681},{"$f":"'Population 2016'!H121*'Prevalence Rates'!H121","v":849.89753694267529},{"$f":"'Population 2016'!I121*'Prevalence Rates'!I121","v":185.35548152866238},{"$f":"'Population 2016'!J121*'Prevalence Rates'!J121","v":257.07317197452232},{"$f":"'Population 2016'!K121*'Prevalence Rates'!K121","v":121.05006369426751},{"$f":"'Population 2016'!L121*'Prevalence Rates'!L121","v":377.13471464968154},{"$f":"'Population 2016'!M121*'Prevalence Rates'!M121","v":376.65363057324834},{"$f":"'Population 2016'!N121*'Prevalence Rates'!N121","v":531.28051592356701},{"$f":"'Population 2016'!O121*'Prevalence Rates'!O121","v":339.56533757961785},{"$f":"'Population 2016'!P121*'Prevalence Rates'!P121","v":167.66578343949041},{"$f":"'Population 2016'!Q121*'Prevalence Rates'!Q121","v":303.5484713375796},{"$f":"'Population 2016'!R121*'Prevalence Rates'!R121","v":80.294490445859864},{"$f":"'Population 2016'!S121*'Prevalence Rates'!S121","v":2480.1259490445864},{"$f":"'Population 2016'!T121*'Prevalence Rates'!T121","v":690.18060509554141},{"$f":"'Population 2016'!U121*'Prevalence Rates'!U121","v":45.311541401273892},{"$f":"'Population 2016'!V121*'Prevalence Rates'!V121","v":392.07101910828021},{"$f":"'Population 2016'!W121*'Prevalence Rates'!W121","v":568.54481528662427},{"$f":"'Population 2016'!X121*'Prevalence Rates'!X121","v":568.15433121019089},{"$f":"'Population 2016'!Y121*'Prevalence Rates'!Y121","v":668.38822738853492},{"$f":"'Population 2016'!Z121*'Prevalence Rates'!Z121","v":1334.5283821656049},{"$f":"'Population 2016'!AA121*'Prevalence Rates'!AA121","v":4007.0850764331208},{"$f":"'Population 2016'!AB121*'Prevalence Rates'!AB121","v":992.63745222929958},{"$f":"'Population 2016'!AC121*'Prevalence Rates'!AC121","v":2226.7777643312102},{"$f":"'Population 2016'!AD121*'Prevalence Rates'!AD121","v":505.03902420382167},{"$f":"'Population 2016'!AE121*'Prevalence Rates'!AE121","v":423.95029299363063},{"$f":"'Population 2016'!AF121*'Prevalence Rates'!AF121","v":96.934305732484063},{"$f":"'Population 2016'!AG121*'Prevalence Rates'!AG121","v":423.95029299363063},{"$f":"'Population 2016'!AH121*'Prevalence Rates'!AH121","v":1806.5409171974525},{"$f":"'Population 2016'!AI121*'Prevalence Rates'!AI121","v":1714.0590917197446},{"$f":"'Population 2016'!AJ121*'Prevalence Rates'!AJ121","v":315.29184713375793},{"$f":"'Population 2016'!AK121*'Prevalence Rates'!AK121","v":146.77200000000002},{"$f":"'Population 2016'!AL121*'Prevalence Rates'!AL121","v":273.66970700636944},{"$f":"'Population 2016'!AM121*'Prevalence Rates'!AM121","v":1048.6517197452231},{"$f":"'Population 2016'!AN121*'Prevalence Rates'!AN121","v":29.441624140127388},{"$f":"'Population 2016'!AO121*'Prevalence Rates'!AO121","v":29.407490445859871},{"$f":"'Population 2016'!AP121*'Prevalence Rates'!AP121","v":202.68143312101913},{"$f":"'Population 2016'!AQ121*'Prevalence Rates'!AQ121","v":289.1197961783439},{"$f":"'Population 2016'!AR121*'Prevalence Rates'!AR121","v":10861.128000000002},{"$f":"'Population 2016'!AS121*'Prevalence Rates'!AS121","v":185.41261146496817},{"$f":"'Population 2016'!AT121*'Prevalence Rates'!AT121","v":12.225517834394907},{"$f":"'Population 2016'!AU121*'Prevalence Rates'!AU121","v":12.239656050955412},{"$f":"'Population 2016'!AV121*'Prevalence Rates'!AV121","v":237.45567515923568},{"$f":"'Population 2016'!AW121*'Prevalence Rates'!AW121","v":759.04526114649696},{"$f":"'Population 2016'!AX121*'Prevalence Rates'!AX121","v":171.59178343949046},{"$f":"'Population 2016'!AY121*'Prevalence Rates'!AY121","v":1476.9992866242037},{"$f":"'Population 2016'!AZ121*'Prevalence Rates'!AZ121","v":914.88764840764361},{"$f":"'Population 2016'!BA121*'Prevalence Rates'!BA121","v":244.94219745222929},{"$f":"'Population 2016'!BB121*'Prevalence Rates'!BB121","v":486.55662420382163},{"$f":"'Population 2016'!BC121*'Prevalence Rates'!BC121","v":45.304039490445845},119]
[null,"Male 25-29",{"$f":"'Population 2016'!C122*'Prevalence Rates'!C122","v":860.96557006369403},{"$f":"'Population 2016'!D122*'Prevalence Rates'!D122","v":1146.0349108280257},{"$f":"'Population 2016'!E122*'Prevalence Rates'!E122","v":252.67125477706995},{"$f":"'Population 2016'!F122*'Prevalence Rates'!F122","v":258.50284394904463},{"$f":"'Population 2016'!G122*'Prevalence Rates'!G122","v":123.8944713375796},{"$f":"'Population 2016'!H122*'Prevalence Rates'!H122","v":954.8287385350319},{"$f":"'Population 2016'!I122*'Prevalence Rates'!I122","v":224.01780713375788},{"$f":"'Population 2016'!J122*'Prevalence Rates'!J122","v":297.95475477707009},{"$f":"'Population 2016'!K122*'Prevalence Rates'!K122","v":132.5783121019108},{"$f":"'Population 2016'!L122*'Prevalence Rates'!L122","v":352.70243665605091},{"$f":"'Population 2016'!M122*'Prevalence Rates'!M122","v":352.25251910828018},{"$f":"'Population 2016'!N122*'Prevalence Rates'!N122","v":565.36135350318477},{"$f":"'Population 2016'!O122*'Prevalence Rates'!O122","v":375.00312101910828},{"$f":"'Population 2016'!P122*'Prevalence Rates'!P122","v":181.39038216560508},{"$f":"'Population 2016'!Q122*'Prevalence Rates'!Q122","v":347.55254777070058},{"$f":"'Population 2016'!R122*'Prevalence Rates'!R122","v":80.687445859872611},{"$f":"'Population 2016'!S122*'Prevalence Rates'!S122","v":3351.3237898089169},{"$f":"'Population 2016'!T122*'Prevalence Rates'!T122","v":1165.5718949044583},{"$f":"'Population 2016'!U122*'Prevalence Rates'!U122","v":59.071777070063696},{"$f":"'Population 2016'!V122*'Prevalence Rates'!V122","v":456.65863057324833},{"$f":"'Population 2016'!W122*'Prevalence Rates'!W122","v":694.130843312102},{"$f":"'Population 2016'!X122*'Prevalence Rates'!X122","v":693.65410509554124},{"$f":"'Population 2016'!Y122*'Prevalence Rates'!Y122","v":776.81740700636919},{"$f":"'Population 2016'!Z122*'Prevalence Rates'!Z122","v":2108.8803439490439},{"$f":"'Population 2016'!AA122*'Prevalence Rates'!AA122","v":5227.1626910828027},{"$f":"'Population 2016'!AB122*'Prevalence Rates'!AB122","v":1341.2146751592359},{"$f":"'Population 2016'!AC122*'Prevalence Rates'!AC122","v":3116.7559891719743},{"$f":"'Population 2016'!AD122*'Prevalence Rates'!AD122","v":562.9456146496816},{"$f":"'Population 2016'!AE122*'Prevalence Rates'!AE122","v":480.790601910828},{"$f":"'Population 2016'!AF122*'Prevalence Rates'!AF122","v":110.68636942675157},{"$f":"'Population 2016'!AG122*'Prevalence Rates'!AG122","v":480.790601910828},{"$f":"'Population 2016'!AH122*'Prevalence Rates'!AH122","v":2115.6302675159236},{"$f":"'Population 2016'!AI122*'Prevalence Rates'!AI122","v":2410.6178407643301},{"$f":"'Population 2016'!AJ122*'Prevalence Rates'!AJ122","v":381.08114649681522},{"$f":"'Population 2016'!AK122*'Prevalence Rates'!AK122","v":184.60400000000001},{"$f":"'Population 2016'!AL122*'Prevalence Rates'!AL122","v":293.28351592356688},{"$f":"'Population 2016'!AM122*'Prevalence Rates'!AM122","v":1232.1373248407642},{"$f":"'Population 2016'!AN122*'Prevalence Rates'!AN122","v":38.661281273885344},{"$f":"'Population 2016'!AO122*'Prevalence Rates'!AO122","v":38.616458598726112},{"$f":"'Population 2016'!AP122*'Prevalence Rates'!AP122","v":262.81934713375796},{"$f":"'Population 2016'!AQ122*'Prevalence Rates'!AQ122","v":345.81533757961779},{"$f":"'Population 2016'!AR122*'Prevalence Rates'!AR122","v":13745.017000000002},{"$f":"'Population 2016'!AS122*'Prevalence Rates'!AS122","v":224.0868535031847},{"$f":"'Population 2016'!AT122*'Prevalence Rates'!AT122","v":15.385029617834395},{"$f":"'Population 2016'!AU122*'Prevalence Rates'!AU122","v":15.402821656050952},{"$f":"'Population 2016'!AV122*'Prevalence Rates'!AV122","v":285.13122611464973},{"$f":"'Population 2016'!AW122*'Prevalence Rates'!AW122","v":885.5440000000001},{"$f":"'Population 2016'!AX122*'Prevalence Rates'!AX122","v":205.9787579617834},{"$f":"'Population 2016'!AY122*'Prevalence Rates'!AY122","v":1762.4328917197449},{"$f":"'Population 2016'!AZ122*'Prevalence Rates'!AZ122","v":1074.3272503184714},{"$f":"'Population 2016'!BA122*'Prevalence Rates'!BA122","v":284.4736942675159},{"$f":"'Population 2016'!BB122*'Prevalence Rates'!BB122","v":548.11633757961772},{"$f":"'Population 2016'!BC122*'Prevalence Rates'!BC122","v":59.06199697452228},120]
[null,"Male 30-34",{"$f":"'Population 2016'!C123*'Prevalence Rates'!C123","v":684.17459554140112},{"$f":"'Population 2016'!D123*'Prevalence Rates'!D123","v":933.99470382165612},{"$f":"'Population 2016'!E123*'Prevalence Rates'!E123","v":224.90904458598717},{"$f":"'Population 2016'!F123*'Prevalence Rates'!F123","v":261.41145541401278},{"$f":"'Population 2016'!G123*'Prevalence Rates'!G123","v":131.72296815286623},{"$f":"'Population 2016'!H123*'Prevalence Rates'!H123","v":909.16464363057332},{"$f":"'Population 2016'!I123*'Prevalence Rates'!I123","v":190.49401557324836},{"$f":"'Population 2016'!J123*'Prevalence Rates'!J123","v":236.13128980891724},{"$f":"'Population 2016'!K123*'Prevalence Rates'!K123","v":125.72671974522291},{"$f":"'Population 2016'!L123*'Prevalence Rates'!L123","v":354.12319168789804},{"$f":"'Population 2016'!M123*'Prevalence Rates'!M123","v":353.67146178343938},{"$f":"'Population 2016'!N123*'Prevalence Rates'!N123","v":434.83741401273892},{"$f":"'Population 2016'!O123*'Prevalence Rates'!O123","v":383.38085031847135},{"$f":"'Population 2016'!P123*'Prevalence Rates'!P123","v":158.87295541401272},{"$f":"'Population 2016'!Q123*'Prevalence Rates'!Q123","v":339.78372611464965},{"$f":"'Population 2016'!R123*'Prevalence Rates'!R123","v":68.803248407643309},{"$f":"'Population 2016'!S123*'Prevalence Rates'!S123","v":3192.7735222929932},{"$f":"'Population 2016'!T123*'Prevalence Rates'!T123","v":1052.9405573248405},{"$f":"'Population 2016'!U123*'Prevalence Rates'!U123","v":48.725872611464972},{"$f":"'Population 2016'!V123*'Prevalence Rates'!V123","v":457.34378980891711},{"$f":"'Population 2016'!W123*'Prevalence Rates'!W123","v":678.04065222929944},{"$f":"'Population 2016'!X123*'Prevalence Rates'!X123","v":677.5749649681527},{"$f":"'Population 2016'!Y123*'Prevalence Rates'!Y123","v":706.79258598726096},{"$f":"'Population 2016'!Z123*'Prevalence Rates'!Z123","v":1956.624700636942},{"$f":"'Population 2016'!AA123*'Prevalence Rates'!AA123","v":5037.4454140127391},{"$f":"'Population 2016'!AB123*'Prevalence Rates'!AB123","v":1114.1343388535033},{"$f":"'Population 2016'!AC123*'Prevalence Rates'!AC123","v":2946.0691203821657},{"$f":"'Population 2016'!AD123*'Prevalence Rates'!AD123","v":556.82294331210187},{"$f":"'Population 2016'!AE123*'Prevalence Rates'!AE123","v":465.52149681528658},{"$f":"'Population 2016'!AF123*'Prevalence Rates'!AF123","v":110.34047452229298},{"$f":"'Population 2016'!AG123*'Prevalence Rates'!AG123","v":465.52149681528658},{"$f":"'Population 2016'!AH123*'Prevalence Rates'!AH123","v":2104.2853566878985},{"$f":"'Population 2016'!AI123*'Prevalence Rates'!AI123","v":2298.5034668789799},{"$f":"'Population 2016'!AJ123*'Prevalence Rates'!AJ123","v":368.81458598726113},{"$f":"'Population 2016'!AK123*'Prevalence Rates'!AK123","v":171.76500000000001},{"$f":"'Population 2016'!AL123*'Prevalence Rates'!AL123","v":266.07164331210191},{"$f":"'Population 2016'!AM123*'Prevalence Rates'!AM123","v":1260.64326433121},{"$f":"'Population 2016'!AN123*'Prevalence Rates'!AN123","v":26.393759331210187},{"$f":"'Population 2016'!AO123*'Prevalence Rates'!AO123","v":26.363159235668785},{"$f":"'Population 2016'!AP123*'Prevalence Rates'!AP123","v":261.77503184713379},{"$f":"'Population 2016'!AQ123*'Prevalence Rates'!AQ123","v":371.68341401273881},{"$f":"'Population 2016'!AR123*'Prevalence Rates'!AR123","v":12889.662},{"$f":"'Population 2016'!AS123*'Prevalence Rates'!AS123","v":190.55272929936305},{"$f":"'Population 2016'!AT123*'Prevalence Rates'!AT123","v":8.0269719745222936},{"$f":"'Population 2016'!AU123*'Prevalence Rates'!AU123","v":8.036254777070063},{"$f":"'Population 2016'!AV123*'Prevalence Rates'!AV123","v":260.88653503184719},{"$f":"'Population 2016'!AW123*'Prevalence Rates'!AW123","v":851.70155414012754},{"$f":"'Population 2016'!AX123*'Prevalence Rates'!AX123","v":144.24812101910825},{"$f":"'Population 2016'!AY123*'Prevalence Rates'!AY123","v":1624.9236433121018},{"$f":"'Population 2016'!AZ123*'Prevalence Rates'!AZ123","v":948.4378605095543},{"$f":"'Population 2016'!BA123*'Prevalence Rates'!BA123","v":276.04734076433118},{"$f":"'Population 2016'!BB123*'Prevalence Rates'!BB123","v":588.96066878980878},{"$f":"'Population 2016'!BC123*'Prevalence Rates'!BC123","v":48.71780541401273},121]
[null,"Male 35-39",{"$f":"'Population 2016'!C124*'Prevalence Rates'!C124","v":528.60372611464959},{"$f":"'Population 2016'!D124*'Prevalence Rates'!D124","v":764.00469745222927},{"$f":"'Population 2016'!E124*'Prevalence Rates'!E124","v":217.67302547770689},{"$f":"'Population 2016'!F124*'Prevalence Rates'!F124","v":221.94926751592357},{"$f":"'Population 2016'!G124*'Prevalence Rates'!G124","v":127.57968152866239},{"$f":"'Population 2016'!H124*'Prevalence Rates'!H124","v":800.46998885350308},{"$f":"'Population 2016'!I124*'Prevalence Rates'!I124","v":185.08269936305726},{"$f":"'Population 2016'!J124*'Prevalence Rates'!J124","v":207.45157643312103},{"$f":"'Population 2016'!K124*'Prevalence Rates'!K124","v":130.79235668789806},{"$f":"'Population 2016'!L124*'Prevalence Rates'!L124","v":331.95306687898085},{"$f":"'Population 2016'!M124*'Prevalence Rates'!M124","v":331.5296178343948},{"$f":"'Population 2016'!N124*'Prevalence Rates'!N124","v":295.32988853503184},{"$f":"'Population 2016'!O124*'Prevalence Rates'!O124","v":336.35082802547765},{"$f":"'Population 2016'!P124*'Prevalence Rates'!P124","v":137.43525477707001},{"$f":"'Population 2016'!Q124*'Prevalence Rates'!Q124","v":324.40987261146489},{"$f":"'Population 2016'!R124*'Prevalence Rates'!R124","v":61.876958598726098},{"$f":"'Population 2016'!S124*'Prevalence Rates'!S124","v":2782.8644904458592},{"$f":"'Population 2016'!T124*'Prevalence Rates'!T124","v":802.44912420382138},{"$f":"'Population 2016'!U124*'Prevalence Rates'!U124","v":47.117770700636939},{"$f":"'Population 2016'!V124*'Prevalence Rates'!V124","v":454.70780254777054},{"$f":"'Population 2016'!W124*'Prevalence Rates'!W124","v":660.69477707006365},{"$f":"'Population 2016'!X124*'Prevalence Rates'!X124","v":660.24100318471301},{"$f":"'Population 2016'!Y124*'Prevalence Rates'!Y124","v":671.48690445859847},{"$f":"'Population 2016'!Z124*'Prevalence Rates'!Z124","v":1520.7248407643306},{"$f":"'Population 2016'!AA124*'Prevalence Rates'!AA124","v":4285.1735828025467},{"$f":"'Population 2016'!AB124*'Prevalence Rates'!AB124","v":931.39276433121006},{"$f":"'Population 2016'!AC124*'Prevalence Rates'!AC124","v":2394.6610414012735},{"$f":"'Population 2016'!AD124*'Prevalence Rates'!AD124","v":526.55855732484065},{"$f":"'Population 2016'!AE124*'Prevalence Rates'!AE124","v":436.91942675159231},{"$f":"'Population 2016'!AF124*'Prevalence Rates'!AF124","v":105.5776910828025},{"$f":"'Population 2016'!AG124*'Prevalence Rates'!AG124","v":436.91942675159231},{"$f":"'Population 2016'!AH124*'Prevalence Rates'!AH124","v":1916.7408917197452},{"$f":"'Population 2016'!AI124*'Prevalence Rates'!AI124","v":1919.2736751592347},{"$f":"'Population 2016'!AJ124*'Prevalence Rates'!AJ124","v":360.18439490445849},{"$f":"'Population 2016'!AK124*'Prevalence Rates'!AK124","v":160.76999999999998},{"$f":"'Population 2016'!AL124*'Prevalence Rates'!AL124","v":226.58589171974521},{"$f":"'Population 2016'!AM124*'Prevalence Rates'!AM124","v":1121.3983280254774},{"$f":"'Population 2016'!AN124*'Prevalence Rates'!AN124","v":26.61123439490445},{"$f":"'Population 2016'!AO124*'Prevalence Rates'!AO124","v":26.580382165605087},{"$f":"'Population 2016'!AP124*'Prevalence Rates'!AP124","v":234.65493630573243},{"$f":"'Population 2016'!AQ124*'Prevalence Rates'!AQ124","v":293.06101910828016},{"$f":"'Population 2016'!AR124*'Prevalence Rates'!AR124","v":11157.644999999999},{"$f":"'Population 2016'!AS124*'Prevalence Rates'!AS124","v":185.13974522292992},{"$f":"'Population 2016'!AT124*'Prevalence Rates'!AT124","v":10.97347213375796},{"$f":"'Population 2016'!AU124*'Prevalence Rates'!AU124","v":10.986162420382163},{"$f":"'Population 2016'!AV124*'Prevalence Rates'!AV124","v":237.65445859872608},{"$f":"'Population 2016'!AW124*'Prevalence Rates'!AW124","v":798.07399681528659},{"$f":"'Population 2016'!AX124*'Prevalence Rates'!AX124","v":108.0322452229299},{"$f":"'Population 2016'!AY124*'Prevalence Rates'!AY124","v":1412.513503184713},{"$f":"'Population 2016'!AZ124*'Prevalence Rates'!AZ124","v":745.67926433121022},{"$f":"'Population 2016'!BA124*'Prevalence Rates'!BA124","v":269.76472929936295},{"$f":"'Population 2016'!BB124*'Prevalence Rates'!BB124","v":512.32499999999982},{"$f":"'Population 2016'!BC124*'Prevalence Rates'!BC124","v":47.109969745222905},122]
[null,"Male 40-44",{"$f":"'Population 2016'!C125*'Prevalence Rates'!C125","v":460.0333280254776},{"$f":"'Population 2016'!D125*'Prevalence Rates'!D125","v":679.34015923566869},{"$f":"'Population 2016'!E125*'Prevalence Rates'!E125","v":204.39601910828014},{"$f":"'Population 2016'!F125*'Prevalence Rates'!F125","v":209.65891719745224},{"$f":"'Population 2016'!G125*'Prevalence Rates'!G125","v":121.82675159235666},{"$f":"'Population 2016'!H125*'Prevalence Rates'!H125","v":933.69558439490436},{"$f":"'Population 2016'!I125*'Prevalence Rates'!I125","v":201.55192261146487},{"$f":"'Population 2016'!J125*'Prevalence Rates'!J125","v":223.38749999999999},{"$f":"'Population 2016'!K125*'Prevalence Rates'!K125","v":142.03232484076429},{"$f":"'Population 2016'!L125*'Prevalence Rates'!L125","v":396.22483089171971},{"$f":"'Population 2016'!M125*'Prevalence Rates'!M125","v":395.71939490445845},{"$f":"'Population 2016'!N125*'Prevalence Rates'!N125","v":277.25584394904462},{"$f":"'Population 2016'!O125*'Prevalence Rates'!O125","v":374.42828025477695},{"$f":"'Population 2016'!P125*'Prevalence Rates'!P125","v":154.22598726114646},{"$f":"'Population 2016'!Q125*'Prevalence Rates'!Q125","v":334.16656050955402},{"$f":"'Population 2016'!R125*'Prevalence Rates'!R125","v":82.398964968152839},{"$f":"'Population 2016'!S125*'Prevalence Rates'!S125","v":2766.0671656050949},{"$f":"'Population 2016'!T125*'Prevalence Rates'!T125","v":686.96751592356657},{"$f":"'Population 2016'!U125*'Prevalence Rates'!U125","v":66.031242038216547},{"$f":"'Population 2016'!V125*'Prevalence Rates'!V125","v":492.51496815286612},{"$f":"'Population 2016'!W125*'Prevalence Rates'!W125","v":724.68458598726102},{"$f":"'Population 2016'!X125*'Prevalence Rates'!X125","v":724.18686305732444},{"$f":"'Population 2016'!Y125*'Prevalence Rates'!Y125","v":725.81748248407621},{"$f":"'Population 2016'!Z125*'Prevalence Rates'!Z125","v":1173.1801910828019},{"$f":"'Population 2016'!AA125*'Prevalence Rates'!AA125","v":4117.3882165605082},{"$f":"'Population 2016'!AB125*'Prevalence Rates'!AB125","v":824.30476433121009},{"$f":"'Population 2016'!AC125*'Prevalence Rates'!AC125","v":2077.4941910828024},{"$f":"'Population 2016'!AD125*'Prevalence Rates'!AD125","v":517.42748407643307},{"$f":"'Population 2016'!AE125*'Prevalence Rates'!AE125","v":433.21671974522286},{"$f":"'Population 2016'!AF125*'Prevalence Rates'!AF125","v":89.758232484076402},{"$f":"'Population 2016'!AG125*'Prevalence Rates'!AG125","v":433.21671974522286},{"$f":"'Population 2016'!AH125*'Prevalence Rates'!AH125","v":2095.657452229299},{"$f":"'Population 2016'!AI125*'Prevalence Rates'!AI125","v":1826.4361528662412},{"$f":"'Population 2016'!AJ125*'Prevalence Rates'!AJ125","v":358.96480891719733},{"$f":"'Population 2016'!AK125*'Prevalence Rates'!AK125","v":139.035},{"$f":"'Population 2016'!AL125*'Prevalence Rates'!AL125","v":279.19289808917193},{"$f":"'Population 2016'!AM125*'Prevalence Rates'!AM125","v":1240.2640127388534},{"$f":"'Population 2016'!AN125*'Prevalence Rates'!AN125","v":37.699248726114639},{"$f":"'Population 2016'!AO125*'Prevalence Rates'!AO125","v":37.655541401273872},{"$f":"'Population 2016'!AP125*'Prevalence Rates'!AP125","v":174.77985668789805},{"$f":"'Population 2016'!AQ125*'Prevalence Rates'!AQ125","v":310.65821656050946},{"$f":"'Population 2016'!AR125*'Prevalence Rates'!AR125","v":11044.83},{"$f":"'Population 2016'!AS125*'Prevalence Rates'!AS125","v":201.61404458598722},{"$f":"'Population 2016'!AT125*'Prevalence Rates'!AT125","v":9.6433542993630557},{"$f":"'Population 2016'!AU125*'Prevalence Rates'!AU125","v":9.6545063694267483},{"$f":"'Population 2016'!AV125*'Prevalence Rates'!AV125","v":279.07423566878975},{"$f":"'Population 2016'!AW125*'Prevalence Rates'!AW125","v":860.81235668789805},{"$f":"'Population 2016'!AX125*'Prevalence Rates'!AX125","v":115.23439490445855},{"$f":"'Population 2016'!AY125*'Prevalence Rates'!AY125","v":1393.2242675159232},{"$f":"'Population 2016'!AZ125*'Prevalence Rates'!AZ125","v":654.81175796178343},{"$f":"'Population 2016'!BA125*'Prevalence Rates'!BA125","v":252.33893312101901},{"$f":"'Population 2016'!BB125*'Prevalence Rates'!BB125","v":553.65907643312084},{"$f":"'Population 2016'!BC125*'Prevalence Rates'!BC125","v":66.020309713375767},123]
[null,"Male 45-49",{"$f":"'Population 2016'!C126*'Prevalence Rates'!C126","v":522.33595222929921},{"$f":"'Population 2016'!D126*'Prevalence Rates'!D126","v":772.05611464968149},{"$f":"'Population 2016'!E126*'Prevalence Rates'!E126","v":232.81549681528651},{"$f":"'Population 2016'!F126*'Prevalence Rates'!F126","v":257.4938407643312},{"$f":"'Population 2016'!G126*'Prevalence Rates'!G126","v":180.25062420382162},{"$f":"'Population 2016'!H126*'Prevalence Rates'!H126","v":1282.0431410828025},{"$f":"'Population 2016'!I126*'Prevalence Rates'!I126","v":256.67437872611453},{"$f":"'Population 2016'!J126*'Prevalence Rates'!J126","v":294.32215605095541},{"$f":"'Population 2016'!K126*'Prevalence Rates'!K126","v":194.1715605095541},{"$f":"'Population 2016'!L126*'Prevalence Rates'!L126","v":510.28341334394901},{"$f":"'Population 2016'!M126*'Prevalence Rates'!M126","v":509.63248089171958},{"$f":"'Population 2016'!N126*'Prevalence Rates'!N126","v":352.60417834394906},{"$f":"'Population 2016'!O126*'Prevalence Rates'!O126","v":500.17009872611459},{"$f":"'Population 2016'!P126*'Prevalence Rates'!P126","v":188.23465605095538},{"$f":"'Population 2016'!Q126*'Prevalence Rates'!Q126","v":406.9811464968152},{"$f":"'Population 2016'!R126*'Prevalence Rates'!R126","v":94.449898089171953},{"$f":"'Population 2016'!S126*'Prevalence Rates'!S126","v":3172.6972547770697},{"$f":"'Population 2016'!T126*'Prevalence Rates'!T126","v":674.00670382165583},{"$f":"'Population 2016'!U126*'Prevalence Rates'!U126","v":83.401050955414007},{"$f":"'Population 2016'!V126*'Prevalence Rates'!V126","v":622.95191082802535},{"$f":"'Population 2016'!W126*'Prevalence Rates'!W126","v":888.02552866242036},{"$f":"'Population 2016'!X126*'Prevalence Rates'!X126","v":887.4156210191079},{"$f":"'Population 2016'!Y126*'Prevalence Rates'!Y126","v":931.50136719745194},{"$f":"'Population 2016'!Z126*'Prevalence Rates'!Z126","v":1325.7206369426747},{"$f":"'Population 2016'!AA126*'Prevalence Rates'!AA126","v":5043.2522675159225},{"$f":"'Population 2016'!AB126*'Prevalence Rates'!AB126","v":971.01621401273883},{"$f":"'Population 2016'!AC126*'Prevalence Rates'!AC126","v":2461.7092299363053},{"$f":"'Population 2016'!AD126*'Prevalence Rates'!AD126","v":697.38461656050947},{"$f":"'Population 2016'!AE126*'Prevalence Rates'!AE126","v":566.32098726114634},{"$f":"'Population 2016'!AF126*'Prevalence Rates'!AF126","v":117.33612420382161},{"$f":"'Population 2016'!AG126*'Prevalence Rates'!AG126","v":566.32098726114634},{"$f":"'Population 2016'!AH126*'Prevalence Rates'!AH126","v":2661.1927452229297},{"$f":"'Population 2016'!AI126*'Prevalence Rates'!AI126","v":2018.3388076433112},{"$f":"'Population 2016'!AJ126*'Prevalence Rates'!AJ126","v":445.67914012738845},{"$f":"'Population 2016'!AK126*'Prevalence Rates'!AK126","v":192.61799999999999},{"$f":"'Population 2016'!AL126*'Prevalence Rates'!AL126","v":398.68922292993631},{"$f":"'Population 2016'!AM126*'Prevalence Rates'!AM126","v":1500.2787898089171},{"$f":"'Population 2016'!AN126*'Prevalence Rates'!AN126","v":41.507740605095535},{"$f":"'Population 2016'!AO126*'Prevalence Rates'!AO126","v":41.459617834394898},{"$f":"'Population 2016'!AP126*'Prevalence Rates'!AP126","v":226.1770222929936},{"$f":"'Population 2016'!AQ126*'Prevalence Rates'!AQ126","v":384.0279363057324},{"$f":"'Population 2016'!AR126*'Prevalence Rates'!AR126","v":13537.871999999999},{"$f":"'Population 2016'!AS126*'Prevalence Rates'!AS126","v":256.75349044585982},{"$f":"'Population 2016'!AT126*'Prevalence Rates'!AT126","v":4.6236052547770701},{"$f":"'Population 2016'!AU126*'Prevalence Rates'!AU126","v":4.6289522292993617},{"$f":"'Population 2016'!AV126*'Prevalence Rates'!AV126","v":381.28041401273885},{"$f":"'Population 2016'!AW126*'Prevalence Rates'!AW126","v":1154.9923280254779},{"$f":"'Population 2016'!AX126*'Prevalence Rates'!AX126","v":145.35544585987256},{"$f":"'Population 2016'!AY126*'Prevalence Rates'!AY126","v":1731.5642292993628},{"$f":"'Population 2016'!AZ126*'Prevalence Rates'!AZ126","v":827.8059038216561},{"$f":"'Population 2016'!BA126*'Prevalence Rates'!BA126","v":332.25864649681523},{"$f":"'Population 2016'!BB126*'Prevalence Rates'!BB126","v":649.18146496815268},{"$f":"'Population 2016'!BC126*'Prevalence Rates'!BC126","v":83.387242834394868},124]
[null,"Male 50-54",{"$f":"'Population 2016'!C127*'Prevalence Rates'!C127","v":484.80489171974511},{"$f":"'Population 2016'!D127*'Prevalence Rates'!D127","v":744.99807324840765},{"$f":"'Population 2016'!E127*'Prevalence Rates'!E127","v":245.52131847133745},{"$f":"'Population 2016'!F127*'Prevalence Rates'!F127","v":257.88046815286623},{"$f":"'Population 2016'!G127*'Prevalence Rates'!G127","v":185.31791082802545},{"$f":"'Population 2016'!H127*'Prevalence Rates'!H127","v":1355.678031210191},{"$f":"'Population 2016'!I127*'Prevalence Rates'!I127","v":290.64598767515912},{"$f":"'Population 2016'!J127*'Prevalence Rates'!J127","v":297.36581847133755},{"$f":"'Population 2016'!K127*'Prevalence Rates'!K127","v":181.42108280254772},{"$f":"'Population 2016'!L127*'Prevalence Rates'!L127","v":597.5339451592356},{"$f":"'Population 2016'!M127*'Prevalence Rates'!M127","v":596.77171337579603},{"$f":"'Population 2016'!N127*'Prevalence Rates'!N127","v":327.86002547770704},{"$f":"'Population 2016'!O127*'Prevalence Rates'!O127","v":523.50288535031837},{"$f":"'Population 2016'!P127*'Prevalence Rates'!P127","v":241.44586624203816},{"$f":"'Population 2016'!Q127*'Prevalence Rates'!Q127","v":440.02662420382154},{"$f":"'Population 2016'!R127*'Prevalence Rates'!R127","v":113.73896178343946},{"$f":"'Population 2016'!S127*'Prevalence Rates'!S127","v":3260.7989426751592},{"$f":"'Population 2016'!T127*'Prevalence Rates'!T127","v":648.95818471337566},{"$f":"'Population 2016'!U127*'Prevalence Rates'!U127","v":91.918605095541395},{"$f":"'Population 2016'!V127*'Prevalence Rates'!V127","v":605.46554140127375},{"$f":"'Population 2016'!W127*'Prevalence Rates'!W127","v":926.0104356687898},{"$f":"'Population 2016'!X127*'Prevalence Rates'!X127","v":925.37443949044541},{"$f":"'Population 2016'!Y127*'Prevalence Rates'!Y127","v":918.27871050955389},{"$f":"'Population 2016'!Z127*'Prevalence Rates'!Z127","v":1281.5299490445855},{"$f":"'Population 2016'!AA127*'Prevalence Rates'!AA127","v":5198.5002038216553},{"$f":"'Population 2016'!AB127*'Prevalence Rates'!AB127","v":937.45742675159238},{"$f":"'Population 2016'!AC127*'Prevalence Rates'!AC127","v":2574.0542178343944},{"$f":"'Population 2016'!AD127*'Prevalence Rates'!AD127","v":768.64227707006364},{"$f":"'Population 2016'!AE127*'Prevalence Rates'!AE127","v":638.79423248407636},{"$f":"'Population 2016'!AF127*'Prevalence Rates'!AF127","v":154.11860828025473},{"$f":"'Population 2016'!AG127*'Prevalence Rates'!AG127","v":638.79423248407636},{"$f":"'Population 2016'!AH127*'Prevalence Rates'!AH127","v":2701.5453630573247},{"$f":"'Population 2016'!AI127*'Prevalence Rates'!AI127","v":2039.6164757961774},{"$f":"'Population 2016'!AJ127*'Prevalence Rates'!AJ127","v":483.50751592356676},{"$f":"'Population 2016'!AK127*'Prevalence Rates'!AK127","v":186.345},{"$f":"'Population 2016'!AL127*'Prevalence Rates'!AL127","v":404.31588535031847},{"$f":"'Population 2016'!AM127*'Prevalence Rates'!AM127","v":1528.329840764331},{"$f":"'Population 2016'!AN127*'Prevalence Rates'!AN127","v":47.042106019108267},{"$f":"'Population 2016'!AO127*'Prevalence Rates'!AO127","v":46.987566878980886},{"$f":"'Population 2016'!AP127*'Prevalence Rates'!AP127","v":222.84544585987257},{"$f":"'Population 2016'!AQ127*'Prevalence Rates'!AQ127","v":405.38292993630569},{"$f":"'Population 2016'!AR127*'Prevalence Rates'!AR127","v":13955.210999999999},{"$f":"'Population 2016'!AS127*'Prevalence Rates'!AS127","v":290.73557006369424},{"$f":"'Population 2016'!AT127*'Prevalence Rates'!AT127","v":12.803829936305732},{"$f":"'Population 2016'!AU127*'Prevalence Rates'!AU127","v":12.818636942675155},{"$f":"'Population 2016'!AV127*'Prevalence Rates'!AV127","v":423.40282165605095},{"$f":"'Population 2016'!AW127*'Prevalence Rates'!AW127","v":1168.1129808917199},{"$f":"'Population 2016'!AX127*'Prevalence Rates'!AX127","v":160.42686305732479},{"$f":"'Population 2016'!AY127*'Prevalence Rates'!AY127","v":1745.6802420382162},{"$f":"'Population 2016'!AZ127*'Prevalence Rates'!AZ127","v":800.57793439490456},{"$f":"'Population 2016'!BA127*'Prevalence Rates'!BA127","v":349.82140127388527},{"$f":"'Population 2016'!BB127*'Prevalence Rates'!BB127","v":644.14003184713363},{"$f":"'Population 2016'!BC127*'Prevalence Rates'!BC127","v":91.903386783439458},125]
[null,"Male 55-59",{"$f":"'Population 2016'!C128*'Prevalence Rates'!C128","v":673.32613057324829},{"$f":"'Population 2016'!D128*'Prevalence Rates'!D128","v":1035.0710318471338},{"$f":"'Population 2016'!E128*'Prevalence Rates'!E128","v":341.38110191082791},{"$f":"'Population 2016'!F128*'Prevalence Rates'!F128","v":307.33524522292998},{"$f":"'Population 2016'!G128*'Prevalence Rates'!G128","v":276.98616560509549},{"$f":"'Population 2016'!H128*'Prevalence Rates'!H128","v":1770.2468312101912},{"$f":"'Population 2016'!I128*'Prevalence Rates'!I128","v":397.34245856687892},{"$f":"'Population 2016'!J128*'Prevalence Rates'!J128","v":391.49499681528664},{"$f":"'Population 2016'!K128*'Prevalence Rates'!K128","v":230.43464968152861},{"$f":"'Population 2016'!L128*'Prevalence Rates'!L128","v":815.94125254777066},{"$f":"'Population 2016'!M128*'Prevalence Rates'!M128","v":814.90041401273857},{"$f":"'Population 2016'!N128*'Prevalence Rates'!N128","v":430.16016560509559},{"$f":"'Population 2016'!O128*'Prevalence Rates'!O128","v":680.44591082802549},{"$f":"'Population 2016'!P128*'Prevalence Rates'!P128","v":292.06861783439484},{"$f":"'Population 2016'!Q128*'Prevalence Rates'!Q128","v":583.22133757961774},{"$f":"'Population 2016'!R128*'Prevalence Rates'!R128","v":132.41696178343946},{"$f":"'Population 2016'!S128*'Prevalence Rates'!S128","v":4203.9921401273887},{"$f":"'Population 2016'!T128*'Prevalence Rates'!T128","v":787.41517515923545},{"$f":"'Population 2016'!U128*'Prevalence Rates'!U128","v":128.77991719745222},{"$f":"'Population 2016'!V128*'Prevalence Rates'!V128","v":780.28875796178329},{"$f":"'Population 2016'!W128*'Prevalence Rates'!W128","v":1218.5532942675159},{"$f":"'Population 2016'!X128*'Prevalence Rates'!X128","v":1217.7163757961778},{"$f":"'Population 2016'!Y128*'Prevalence Rates'!Y128","v":1192.8756267515921},{"$f":"'Population 2016'!Z128*'Prevalence Rates'!Z128","v":1624.8629426751584},{"$f":"'Population 2016'!AA128*'Prevalence Rates'!AA128","v":6760.965563694268},{"$f":"'Population 2016'!AB128*'Prevalence Rates'!AB128","v":1287.0518522292994},{"$f":"'Population 2016'!AC128*'Prevalence Rates'!AC128","v":3302.1401445859869},{"$f":"'Population 2016'!AD128*'Prevalence Rates'!AD128","v":1067.900336942675},{"$f":"'Population 2016'!AE128*'Prevalence Rates'!AE128","v":866.14258917197446},{"$f":"'Population 2016'!AF128*'Prevalence Rates'!AF128","v":197.86883121019102},{"$f":"'Population 2016'!AG128*'Prevalence Rates'!AG128","v":866.14258917197446},{"$f":"'Population 2016'!AH128*'Prevalence Rates'!AH128","v":3565.3324203821653},{"$f":"'Population 2016'!AI128*'Prevalence Rates'!AI128","v":2586.9889968152856},{"$f":"'Population 2016'!AJ128*'Prevalence Rates'!AJ128","v":643.99914012738839},{"$f":"'Population 2016'!AK128*'Prevalence Rates'!AK128","v":243.30700000000002},{"$f":"'Population 2016'!AL128*'Prevalence Rates'!AL128","v":518.65715923566881},{"$f":"'Population 2016'!AM128*'Prevalence Rates'!AM128","v":1943.2470382165602},{"$f":"'Population 2016'!AN128*'Prevalence Rates'!AN128","v":61.396531528662415},{"$f":"'Population 2016'!AO128*'Prevalence Rates'!AO128","v":61.325350318471322},{"$f":"'Population 2016'!AP128*'Prevalence Rates'!AP128","v":269.16950636942676},{"$f":"'Population 2016'!AQ128*'Prevalence Rates'!AQ128","v":539.15203821656041},{"$f":"'Population 2016'!AR128*'Prevalence Rates'!AR128","v":18253.756000000001},{"$f":"'Population 2016'!AS128*'Prevalence Rates'!AS128","v":397.46492675159237},{"$f":"'Population 2016'!AT128*'Prevalence Rates'!AT128","v":13.056359554140126},{"$f":"'Population 2016'!AU128*'Prevalence Rates'!AU128","v":13.07145859872611},{"$f":"'Population 2016'!AV128*'Prevalence Rates'!AV128","v":563.97420382165615},{"$f":"'Population 2016'!AW128*'Prevalence Rates'!AW128","v":1602.7088280254779},{"$f":"'Population 2016'!AX128*'Prevalence Rates'!AX128","v":218.94444267515919},{"$f":"'Population 2016'!AY128*'Prevalence Rates'!AY128","v":2242.4636433121018},{"$f":"'Population 2016'!AZ128*'Prevalence Rates'!AZ128","v":996.33584331210204},{"$f":"'Population 2016'!BA128*'Prevalence Rates'!BA128","v":481.77566878980883},{"$f":"'Population 2016'!BB128*'Prevalence Rates'!BB128","v":815.29863057324826},{"$f":"'Population 2016'!BC128*'Prevalence Rates'!BC128","v":128.75859601910824},126]
[null,"Male 60-64",{"$f":"'Population 2016'!C129*'Prevalence Rates'!C129","v":550.81480573248393},{"$f":"'Population 2016'!D129*'Prevalence Rates'!D129","v":854.23923248407641},{"$f":"'Population 2016'!E129*'Prevalence Rates'!E129","v":287.0344968152865},{"$f":"'Population 2016'!F129*'Prevalence Rates'!F129","v":305.69757961783444},{"$f":"'Population 2016'!G129*'Prevalence Rates'!G129","v":258.07751592356686},{"$f":"'Population 2016'!H129*'Prevalence Rates'!H129","v":1554.4453127388535},{"$f":"'Population 2016'!I129*'Prevalence Rates'!I129","v":380.16968464968147},{"$f":"'Population 2016'!J129*'Prevalence Rates'!J129","v":329.18240127388538},{"$f":"'Population 2016'!K129*'Prevalence Rates'!K129","v":211.91757961783435},{"$f":"'Population 2016'!L129*'Prevalence Rates'!L129","v":738.08019184713373},{"$f":"'Population 2016'!M129*'Prevalence Rates'!M129","v":737.13867515923539},{"$f":"'Population 2016'!N129*'Prevalence Rates'!N129","v":357.55699044585992},{"$f":"'Population 2016'!O129*'Prevalence Rates'!O129","v":570.83182484076428},{"$f":"'Population 2016'!P129*'Prevalence Rates'!P129","v":231.02533757961777},{"$f":"'Population 2016'!Q129*'Prevalence Rates'!Q129","v":459.82398089171966},{"$f":"'Population 2016'!R129*'Prevalence Rates'!R129","v":120.67786942675157},{"$f":"'Population 2016'!S129*'Prevalence Rates'!S129","v":3578.612942675159},{"$f":"'Population 2016'!T129*'Prevalence Rates'!T129","v":623.59054140127375},{"$f":"'Population 2016'!U129*'Prevalence Rates'!U129","v":129.78209554140128},{"$f":"'Population 2016'!V129*'Prevalence Rates'!V129","v":642.43945859872599},{"$f":"'Population 2016'!W129*'Prevalence Rates'!W129","v":1096.7945987261146},{"$f":"'Population 2016'!X129*'Prevalence Rates'!X129","v":1096.0413057324836},{"$f":"'Population 2016'!Y129*'Prevalence Rates'!Y129","v":989.96885828025461},{"$f":"'Population 2016'!Z129*'Prevalence Rates'!Z129","v":1293.4936687898082},{"$f":"'Population 2016'!AA129*'Prevalence Rates'!AA129","v":5682.3362770700642},{"$f":"'Population 2016'!AB129*'Prevalence Rates'!AB129","v":1056.3198675159235},{"$f":"'Population 2016'!AC129*'Prevalence Rates'!AC129","v":2688.8338777070062},{"$f":"'Population 2016'!AD129*'Prevalence Rates'!AD129","v":959.62923630573232},{"$f":"'Population 2016'!AE129*'Prevalence Rates'!AE129","v":768.28916560509549},{"$f":"'Population 2016'!AF129*'Prevalence Rates'!AF129","v":149.05079936305728},{"$f":"'Population 2016'!AG129*'Prevalence Rates'!AG129","v":768.28916560509549},{"$f":"'Population 2016'!AH129*'Prevalence Rates'!AH129","v":3094.8495095541398},{"$f":"'Population 2016'!AI129*'Prevalence Rates'!AI129","v":2109.6478012738844},{"$f":"'Population 2016'!AJ129*'Prevalence Rates'!AJ129","v":565.41773885350301},{"$f":"'Population 2016'!AK129*'Prevalence Rates'!AK129","v":194.85400000000001},{"$f":"'Population 2016'!AL129*'Prevalence Rates'!AL129","v":480.63743312101917},{"$f":"'Population 2016'!AM129*'Prevalence Rates'!AM129","v":1742.6620382165602},{"$f":"'Population 2016'!AN129*'Prevalence Rates'!AN129","v":60.83838124203821},{"$f":"'Population 2016'!AO129*'Prevalence Rates'!AO129","v":60.767847133757947},{"$f":"'Population 2016'!AP129*'Prevalence Rates'!AP129","v":246.6951592356688},{"$f":"'Population 2016'!AQ129*'Prevalence Rates'!AQ129","v":471.69415286624201},{"$f":"'Population 2016'!AR129*'Prevalence Rates'!AR129","v":15619.58},{"$f":"'Population 2016'!AS129*'Prevalence Rates'!AS129","v":380.28685987261144},{"$f":"'Population 2016'!AT129*'Prevalence Rates'!AT129","v":10.545521178343948},{"$f":"'Population 2016'!AU129*'Prevalence Rates'!AU129","v":10.557716560509551},{"$f":"'Population 2016'!AV129*'Prevalence Rates'!AV129","v":495.27189171974527},{"$f":"'Population 2016'!AW129*'Prevalence Rates'!AW129","v":1344.9415891719748},{"$f":"'Population 2016'!AX129*'Prevalence Rates'!AX129","v":167.40028662420377},{"$f":"'Population 2016'!AY129*'Prevalence Rates'!AY129","v":2022.2034267515921},{"$f":"'Population 2016'!AZ129*'Prevalence Rates'!AZ129","v":900.76021847133779},{"$f":"'Population 2016'!BA129*'Prevalence Rates'!BA129","v":393.72003184713373},{"$f":"'Population 2016'!BB129*'Prevalence Rates'!BB129","v":668.00828025477699},{"$f":"'Population 2016'!BC129*'Prevalence Rates'!BC129","v":129.7606084394904},127]
[null,"Male 65-69",{"$f":"'Population 2016'!C130*'Prevalence Rates'!C130","v":567.33011464968138},{"$f":"'Population 2016'!D130*'Prevalence Rates'!D130","v":960.06917197452231},{"$f":"'Population 2016'!E130*'Prevalence Rates'!E130","v":378.73192356687878},{"$f":"'Population 2016'!F130*'Prevalence Rates'!F130","v":368.42132484076433},{"$f":"'Population 2016'!G130*'Prevalence Rates'!G130","v":315.49008917197443},{"$f":"'Population 2016'!H130*'Prevalence Rates'!H130","v":1871.0478343949042},{"$f":"'Population 2016'!I130*'Prevalence Rates'!I130","v":441.75707808917178},{"$f":"'Population 2016'!J130*'Prevalence Rates'!J130","v":388.00509554140126},{"$f":"'Population 2016'!K130*'Prevalence Rates'!K130","v":234.52585987261142},{"$f":"'Population 2016'!L130*'Prevalence Rates'!L130","v":925.08349031847115},{"$f":"'Population 2016'!M130*'Prevalence Rates'!M130","v":923.90342675159195},{"$f":"'Population 2016'!N130*'Prevalence Rates'!N130","v":448.51291719745223},{"$f":"'Population 2016'!O130*'Prevalence Rates'!O130","v":648.29621656050949},{"$f":"'Population 2016'!P130*'Prevalence Rates'!P130","v":234.7674267515923},{"$f":"'Population 2016'!Q130*'Prevalence Rates'!Q130","v":530.0426751592355},{"$f":"'Population 2016'!R130*'Prevalence Rates'!R130","v":107.0497070063694},{"$f":"'Population 2016'!S130*'Prevalence Rates'!S130","v":4049.2788535031841},{"$f":"'Population 2016'!T130*'Prevalence Rates'!T130","v":650.5639490445858},{"$f":"'Population 2016'!U130*'Prevalence Rates'!U130","v":144.20980891719745},{"$f":"'Population 2016'!V130*'Prevalence Rates'!V130","v":811.55235668789794},{"$f":"'Population 2016'!W130*'Prevalence Rates'!W130","v":1282.0107821656052},{"$f":"'Population 2016'!X130*'Prevalence Rates'!X130","v":1281.1302802547764},{"$f":"'Population 2016'!Y130*'Prevalence Rates'!Y130","v":1218.7475999999995},{"$f":"'Population 2016'!Z130*'Prevalence Rates'!Z130","v":1211.894216560509},{"$f":"'Population 2016'!AA130*'Prevalence Rates'!AA130","v":5799.5095414012731},{"$f":"'Population 2016'!AB130*'Prevalence Rates'!AB130","v":1193.9051617834396},{"$f":"'Population 2016'!AC130*'Prevalence Rates'!AC130","v":2629.3386267515921},{"$f":"'Population 2016'!AD130*'Prevalence Rates'!AD130","v":1154.5087872611464},{"$f":"'Population 2016'!AE130*'Prevalence Rates'!AE130","v":918.83801273885342},{"$f":"'Population 2016'!AF130*'Prevalence Rates'!AF130","v":158.84052229299357},{"$f":"'Population 2016'!AG130*'Prevalence Rates'!AG130","v":918.83801273885342},{"$f":"'Population 2016'!AH130*'Prevalence Rates'!AH130","v":3289.3319235668787},{"$f":"'Population 2016'!AI130*'Prevalence Rates'!AI130","v":2337.3528076433108},{"$f":"'Population 2016'!AJ130*'Prevalence Rates'!AJ130","v":610.41515923566863},{"$f":"'Population 2016'!AK130*'Prevalence Rates'!AK130","v":225.79199999999997},{"$f":"'Population 2016'!AL130*'Prevalence Rates'!AL130","v":565.50244585987252},{"$f":"'Population 2016'!AM130*'Prevalence Rates'!AM130","v":1846.3668152866239},{"$f":"'Population 2016'!AN130*'Prevalence Rates'!AN130","v":76.22126025477705},{"$f":"'Population 2016'!AO130*'Prevalence Rates'!AO130","v":76.132891719745203},{"$f":"'Population 2016'!AP130*'Prevalence Rates'!AP130","v":256.00471337579614},{"$f":"'Population 2016'!AQ130*'Prevalence Rates'!AQ130","v":485.63556687898074},{"$f":"'Population 2016'!AR130*'Prevalence Rates'!AR130","v":17479.475999999999},{"$f":"'Population 2016'!AS130*'Prevalence Rates'!AS130","v":441.89323566878971},{"$f":"'Population 2016'!AT130*'Prevalence Rates'!AT130","v":13.035154777070062},{"$f":"'Population 2016'!AU130*'Prevalence Rates'!AU130","v":13.050229299363053},{"$f":"'Population 2016'!AV130*'Prevalence Rates'!AV130","v":641.12973248407638},{"$f":"'Population 2016'!AW130*'Prevalence Rates'!AW130","v":1434.2687006369426},{"$f":"'Population 2016'!AX130*'Prevalence Rates'!AX130","v":211.34292993630567},{"$f":"'Population 2016'!AY130*'Prevalence Rates'!AY130","v":2371.0781656050949},{"$f":"'Population 2016'!AZ130*'Prevalence Rates'!AZ130","v":1060.5872101910829},{"$f":"'Population 2016'!BA130*'Prevalence Rates'!BA130","v":401.51598726114639},{"$f":"'Population 2016'!BB130*'Prevalence Rates'!BB130","v":790.373121019108},{"$f":"'Population 2016'!BC130*'Prevalence Rates'!BC130","v":144.18593312101905},128]
[null,"Male 70-74",{"$f":"'Population 2016'!C131*'Prevalence Rates'!C131","v":368.70970700636934},{"$f":"'Population 2016'!D131*'Prevalence Rates'!D131","v":634.10556687898088},{"$f":"'Population 2016'!E131*'Prevalence Rates'!E131","v":256.65638216560495},{"$f":"'Population 2016'!F131*'Prevalence Rates'!F131","v":250.13220382165605},{"$f":"'Population 2016'!G131*'Prevalence Rates'!G131","v":249.73895541401265},{"$f":"'Population 2016'!H131*'Prevalence Rates'!H131","v":1382.0383834394902},{"$f":"'Population 2016'!I131*'Prevalence Rates'!I131","v":316.78192891719732},{"$f":"'Population 2016'!J131*'Prevalence Rates'!J131","v":257.53838216560507},{"$f":"'Population 2016'!K131*'Prevalence Rates'!K131","v":166.60624203821652},{"$f":"'Population 2016'!L131*'Prevalence Rates'!L131","v":698.77809515923548},{"$f":"'Population 2016'!M131*'Prevalence Rates'!M131","v":697.88671337579592},{"$f":"'Population 2016'!N131*'Prevalence Rates'!N131","v":306.8124076433121},{"$f":"'Population 2016'!O131*'Prevalence Rates'!O131","v":488.08119745222922},{"$f":"'Population 2016'!P131*'Prevalence Rates'!P131","v":169.0537452229299},{"$f":"'Population 2016'!Q131*'Prevalence Rates'!Q131","v":378.30496815286614},{"$f":"'Population 2016'!R131*'Prevalence Rates'!R131","v":64.123834394904449},{"$f":"'Population 2016'!S131*'Prevalence Rates'!S131","v":2983.4183694267513},{"$f":"'Population 2016'!T131*'Prevalence Rates'!T131","v":473.01229299363047},{"$f":"'Population 2016'!U131*'Prevalence Rates'!U131","v":92.181171974522286},{"$f":"'Population 2016'!V131*'Prevalence Rates'!V131","v":568.89936305732476},{"$f":"'Population 2016'!W131*'Prevalence Rates'!W131","v":922.6551439490446},{"$f":"'Population 2016'!X131*'Prevalence Rates'!X131","v":922.0214522292988},{"$f":"'Population 2016'!Y131*'Prevalence Rates'!Y131","v":837.81966496815255},{"$f":"'Population 2016'!Z131*'Prevalence Rates'!Z131","v":897.08575796178297},{"$f":"'Population 2016'!AA131*'Prevalence Rates'!AA131","v":4527.058815286623},{"$f":"'Population 2016'!AB131*'Prevalence Rates'!AB131","v":814.34329681528664},{"$f":"'Population 2016'!AC131*'Prevalence Rates'!AC131","v":2021.1327745222927},{"$f":"'Population 2016'!AD131*'Prevalence Rates'!AD131","v":869.1958318471336},{"$f":"'Population 2016'!AE131*'Prevalence Rates'!AE131","v":678.40031847133753},{"$f":"'Population 2016'!AF131*'Prevalence Rates'!AF131","v":126.60351592356683},{"$f":"'Population 2016'!AG131*'Prevalence Rates'!AG131","v":678.40031847133753},{"$f":"'Population 2016'!AH131*'Prevalence Rates'!AH131","v":2603.2258089171974},{"$f":"'Population 2016'!AI131*'Prevalence Rates'!AI131","v":1750.7273044585977},{"$f":"'Population 2016'!AJ131*'Prevalence Rates'!AJ131","v":471.1490445859871},{"$f":"'Population 2016'!AK131*'Prevalence Rates'!AK131","v":175.22399999999999},{"$f":"'Population 2016'!AL131*'Prevalence Rates'!AL131","v":390.66420382165603},{"$f":"'Population 2016'!AM131*'Prevalence Rates'!AM131","v":1445.5156050955413},{"$f":"'Population 2016'!AN131*'Prevalence Rates'!AN131","v":61.732921528662402},{"$f":"'Population 2016'!AO131*'Prevalence Rates'!AO131","v":61.661350318471328},{"$f":"'Population 2016'!AP131*'Prevalence Rates'!AP131","v":171.6529299363057},{"$f":"'Population 2016'!AQ131*'Prevalence Rates'!AQ131","v":406.0420891719744},{"$f":"'Population 2016'!AR131*'Prevalence Rates'!AR131","v":12966.575999999999},{"$f":"'Population 2016'!AS131*'Prevalence Rates'!AS131","v":316.87956687898082},{"$f":"'Population 2016'!AT131*'Prevalence Rates'!AT131","v":13.601900636942673},{"$f":"'Population 2016'!AU131*'Prevalence Rates'!AU131","v":13.617630573248402},{"$f":"'Population 2016'!AV131*'Prevalence Rates'!AV131","v":490.10549044585986},{"$f":"'Population 2016'!AW131*'Prevalence Rates'!AW131","v":1148.1317961783438},{"$f":"'Population 2016'!AX131*'Prevalence Rates'!AX131","v":130.22140127388531},{"$f":"'Population 2016'!AY131*'Prevalence Rates'!AY131","v":1665.1186242038211},{"$f":"'Population 2016'!AZ131*'Prevalence Rates'!AZ131","v":720.11461146496822},{"$f":"'Population 2016'!BA131*'Prevalence Rates'!BA131","v":336.97643312101906},{"$f":"'Population 2016'!BB131*'Prevalence Rates'!BB131","v":615.48993630573227},{"$f":"'Population 2016'!BC131*'Prevalence Rates'!BC131","v":92.165910191082759},129]
[null,"Male 75-79",{"$f":"'Population 2016'!C132*'Prevalence Rates'!C132","v":433.72771337579604},{"$f":"'Population 2016'!D132*'Prevalence Rates'!D132","v":719.95606369426753},{"$f":"'Population 2016'!E132*'Prevalence Rates'!E132","v":275.01733757961767},{"$f":"'Population 2016'!F132*'Prevalence Rates'!F132","v":264.45627707006372},{"$f":"'Population 2016'!G132*'Prevalence Rates'!G132","v":262.28357961783433},{"$f":"'Population 2016'!H132*'Prevalence Rates'!H132","v":1503.2336570063692},{"$f":"'Population 2016'!I132*'Prevalence Rates'!I132","v":331.37350159235655},{"$f":"'Population 2016'!J132*'Prevalence Rates'!J132","v":290.64006687898092},{"$f":"'Population 2016'!K132*'Prevalence Rates'!K132","v":175.99114649681525},{"$f":"'Population 2016'!L132*'Prevalence Rates'!L132","v":783.59246200636926},{"$f":"'Population 2016'!M132*'Prevalence Rates'!M132","v":782.59288853503165},{"$f":"'Population 2016'!N132*'Prevalence Rates'!N132","v":389.26567515923568},{"$f":"'Population 2016'!O132*'Prevalence Rates'!O132","v":550.66871019108271},{"$f":"'Population 2016'!P132*'Prevalence Rates'!P132","v":211.71464331210186},{"$f":"'Population 2016'!Q132*'Prevalence Rates'!Q132","v":454.46251592356674},{"$f":"'Population 2016'!R132*'Prevalence Rates'!R132","v":73.574592356687887},{"$f":"'Population 2016'!S132*'Prevalence Rates'!S132","v":3143.1689808917195},{"$f":"'Population 2016'!T132*'Prevalence Rates'!T132","v":487.46417197452217},{"$f":"'Population 2016'!U132*'Prevalence Rates'!U132","v":116.1690127388535},{"$f":"'Population 2016'!V132*'Prevalence Rates'!V132","v":596.23168789808904},{"$f":"'Population 2016'!W132*'Prevalence Rates'!W132","v":985.72869299363049},{"$f":"'Population 2016'!X132*'Prevalence Rates'!X132","v":985.0516815286619},{"$f":"'Population 2016'!Y132*'Prevalence Rates'!Y132","v":901.76972101910803},{"$f":"'Population 2016'!Z132*'Prevalence Rates'!Z132","v":948.12378343949001},{"$f":"'Population 2016'!AA132*'Prevalence Rates'!AA132","v":4818.0242484076425},{"$f":"'Population 2016'!AB132*'Prevalence Rates'!AB132","v":898.38360254777069},{"$f":"'Population 2016'!AC132*'Prevalence Rates'!AC132","v":2214.780930573248},{"$f":"'Population 2016'!AD132*'Prevalence Rates'!AD132","v":870.44467643312089},{"$f":"'Population 2016'!AE132*'Prevalence Rates'!AE132","v":666.0418630573248},{"$f":"'Population 2016'!AF132*'Prevalence Rates'!AF132","v":126.21276433121014},{"$f":"'Population 2016'!AG132*'Prevalence Rates'!AG132","v":666.0418630573248},{"$f":"'Population 2016'!AH132*'Prevalence Rates'!AH132","v":2698.0763885350316},{"$f":"'Population 2016'!AI132*'Prevalence Rates'!AI132","v":1832.8907541401263},{"$f":"'Population 2016'!AJ132*'Prevalence Rates'!AJ132","v":463.29656050955401},{"$f":"'Population 2016'!AK132*'Prevalence Rates'!AK132","v":172.43099999999998},{"$f":"'Population 2016'!AL132*'Prevalence Rates'!AL132","v":424.60715923566875},{"$f":"'Population 2016'!AM132*'Prevalence Rates'!AM132","v":1520.795366242038},{"$f":"'Population 2016'!AN132*'Prevalence Rates'!AN132","v":72.284211687898079},{"$f":"'Population 2016'!AO132*'Prevalence Rates'!AO132","v":72.20040764331209},{"$f":"'Population 2016'!AP132*'Prevalence Rates'!AP132","v":193.03581210191078},{"$f":"'Population 2016'!AQ132*'Prevalence Rates'!AQ132","v":481.26177070063676},{"$f":"'Population 2016'!AR132*'Prevalence Rates'!AR132","v":13906.934999999999},{"$f":"'Population 2016'!AS132*'Prevalence Rates'!AS132","v":331.47563694267512},{"$f":"'Population 2016'!AT132*'Prevalence Rates'!AT132","v":6.4231197452229294},{"$f":"'Population 2016'!AU132*'Prevalence Rates'!AU132","v":6.4305477707006355},{"$f":"'Population 2016'!AV132*'Prevalence Rates'!AV132","v":516.43347133757959},{"$f":"'Population 2016'!AW132*'Prevalence Rates'!AW132","v":1171.2298343949046},{"$f":"'Population 2016'!AX132*'Prevalence Rates'!AX132","v":158.01797770700634},{"$f":"'Population 2016'!AY132*'Prevalence Rates'!AY132","v":1843.33880254777},{"$f":"'Population 2016'!AZ132*'Prevalence Rates'!AZ132","v":836.61850955414013},{"$f":"'Population 2016'!BA132*'Prevalence Rates'!BA132","v":347.11428343949035},{"$f":"'Population 2016'!BB132*'Prevalence Rates'!BB132","v":629.44557324840753},{"$f":"'Population 2016'!BC132*'Prevalence Rates'!BC132","v":116.14977945859869},130]
[null,"Male 80-84",{"$f":"'Population 2016'!C133*'Prevalence Rates'!C133","v":350.55770382165593},{"$f":"'Population 2016'!D133*'Prevalence Rates'!D133","v":585.57512420382159},{"$f":"'Population 2016'!E133*'Prevalence Rates'!E133","v":226.08787261146486},{"$f":"'Population 2016'!F133*'Prevalence Rates'!F133","v":198.12400955414014},{"$f":"'Population 2016'!G133*'Prevalence Rates'!G133","v":172.40447133757957},{"$f":"'Population 2016'!H133*'Prevalence Rates'!H133","v":933.56830222929921},{"$f":"'Population 2016'!I133*'Prevalence Rates'!I133","v":209.23869671974512},{"$f":"'Population 2016'!J133*'Prevalence Rates'!J133","v":186.20202866242039},{"$f":"'Population 2016'!K133*'Prevalence Rates'!K133","v":104.44334394904456},{"$f":"'Population 2016'!L133*'Prevalence Rates'!L133","v":497.09946175159229},{"$f":"'Population 2016'!M133*'Prevalence Rates'!M133","v":496.4653471337578},{"$f":"'Population 2016'!N133*'Prevalence Rates'!N133","v":259.21951910828028},{"$f":"'Population 2016'!O133*'Prevalence Rates'!O133","v":341.89344267515918},{"$f":"'Population 2016'!P133*'Prevalence Rates'!P133","v":151.65375159235666},{"$f":"'Population 2016'!Q133*'Prevalence Rates'!Q133","v":318.02560509554132},{"$f":"'Population 2016'!R133*'Prevalence Rates'!R133","v":61.562414012738842},{"$f":"'Population 2016'!S133*'Prevalence Rates'!S133","v":2137.0429299363054},{"$f":"'Population 2016'!T133*'Prevalence Rates'!T133","v":354.87391719745216},{"$f":"'Population 2016'!U133*'Prevalence Rates'!U133","v":71.303738853503177},{"$f":"'Population 2016'!V133*'Prevalence Rates'!V133","v":431.75398089171966},{"$f":"'Population 2016'!W133*'Prevalence Rates'!W133","v":678.26786242038213},{"$f":"'Population 2016'!X133*'Prevalence Rates'!X133","v":677.80201910827986},{"$f":"'Population 2016'!Y133*'Prevalence Rates'!Y133","v":625.26890063694248},{"$f":"'Population 2016'!Z133*'Prevalence Rates'!Z133","v":670.64458598726083},{"$f":"'Population 2016'!AA133*'Prevalence Rates'!AA133","v":3302.5240031847129},{"$f":"'Population 2016'!AB133*'Prevalence Rates'!AB133","v":713.93087388535025},{"$f":"'Population 2016'!AC133*'Prevalence Rates'!AC133","v":1543.9856617834391},{"$f":"'Population 2016'!AD133*'Prevalence Rates'!AD133","v":569.13690382165589},{"$f":"'Population 2016'!AE133*'Prevalence Rates'!AE133","v":434.49173885350314},{"$f":"'Population 2016'!AF133*'Prevalence Rates'!AF133","v":88.847143312101878},{"$f":"'Population 2016'!AG133*'Prevalence Rates'!AG133","v":434.49173885350314},{"$f":"'Population 2016'!AH133*'Prevalence Rates'!AH133","v":1820.0041910828024},{"$f":"'Population 2016'!AI133*'Prevalence Rates'!AI133","v":1251.1537968152859},{"$f":"'Population 2016'!AJ133*'Prevalence Rates'!AJ133","v":288.57878980891712},{"$f":"'Population 2016'!AK133*'Prevalence Rates'!AK133","v":123.28399999999999},{"$f":"'Population 2016'!AL133*'Prevalence Rates'!AL133","v":264.92583439490443},{"$f":"'Population 2016'!AM133*'Prevalence Rates'!AM133","v":1023.3962101910826},{"$f":"'Population 2016'!AN133*'Prevalence Rates'!AN133","v":31.233918630573243},{"$f":"'Population 2016'!AO133*'Prevalence Rates'!AO133","v":31.19770700636942},{"$f":"'Population 2016'!AP133*'Prevalence Rates'!AP133","v":125.3479299363057},{"$f":"'Population 2016'!AQ133*'Prevalence Rates'!AQ133","v":337.45519745222919},{"$f":"'Population 2016'!AR133*'Prevalence Rates'!AR133","v":9440.3889999999992},{"$f":"'Population 2016'!AS133*'Prevalence Rates'!AS133","v":209.30318789808913},{"$f":"'Population 2016'!AT133*'Prevalence Rates'!AT133","v":4.8173398089171968},{"$f":"'Population 2016'!AU133*'Prevalence Rates'!AU133","v":4.8229108280254769},{"$f":"'Population 2016'!AV133*'Prevalence Rates'!AV133","v":319.69691082802547},{"$f":"'Population 2016'!AW133*'Prevalence Rates'!AW133","v":792.10341401273899},{"$f":"'Population 2016'!AX133*'Prevalence Rates'!AX133","v":108.87363057324838},{"$f":"'Population 2016'!AY133*'Prevalence Rates'!AY133","v":1268.1125095541397},{"$f":"'Population 2016'!AZ133*'Prevalence Rates'!AZ133","v":575.38864840764336},{"$f":"'Population 2016'!BA133*'Prevalence Rates'!BA133","v":214.41791401273881},{"$f":"'Population 2016'!BB133*'Prevalence Rates'!BB133","v":417.58767515923557},{"$f":"'Population 2016'!BC133*'Prevalence Rates'!BC133","v":71.291933598726089},131]
[null,"Male 85-89",{"$f":"'Population 2016'!C134*'Prevalence Rates'!C134","v":179.55394585987256},{"$f":"'Population 2016'!D134*'Prevalence Rates'!D134","v":272.01959872611462},{"$f":"'Population 2016'!E134*'Prevalence Rates'!E134","v":86.891980891719697},{"$f":"'Population 2016'!F134*'Prevalence Rates'!F134","v":106.48074522292994},{"$f":"'Population 2016'!G134*'Prevalence Rates'!G134","v":84.97661146496813},{"$f":"'Population 2016'!H134*'Prevalence Rates'!H134","v":494.18918789808913},{"$f":"'Population 2016'!I134*'Prevalence Rates'!I134","v":142.96399640127382},{"$f":"'Population 2016'!J134*'Prevalence Rates'!J134","v":87.260729299363064},{"$f":"'Population 2016'!K134*'Prevalence Rates'!K134","v":50.988089171974508},{"$f":"'Population 2016'!L134*'Prevalence Rates'!L134","v":242.15479783439486},{"$f":"'Population 2016'!M134*'Prevalence Rates'!M134","v":241.8458980891719},{"$f":"'Population 2016'!N134*'Prevalence Rates'!N134","v":126.55498407643313},{"$f":"'Population 2016'!O134*'Prevalence Rates'!O134","v":182.91778025477703},{"$f":"'Population 2016'!P134*'Prevalence Rates'!P134","v":86.337531847133747},{"$f":"'Population 2016'!Q134*'Prevalence Rates'!Q134","v":147.23407643312098},{"$f":"'Population 2016'!R134*'Prevalence Rates'!R134","v":24.024356687898084},{"$f":"'Population 2016'!S134*'Prevalence Rates'!S134","v":1067.7415222929935},{"$f":"'Population 2016'!T134*'Prevalence Rates'!T134","v":176.78700636942671},{"$f":"'Population 2016'!U134*'Prevalence Rates'!U134","v":39.257114649681526},{"$f":"'Population 2016'!V134*'Prevalence Rates'!V134","v":208.06429936305727},{"$f":"'Population 2016'!W134*'Prevalence Rates'!W134","v":332.18129936305729},{"$f":"'Population 2016'!X134*'Prevalence Rates'!X134","v":331.95315286624185},{"$f":"'Population 2016'!Y134*'Prevalence Rates'!Y134","v":298.49520382165599},{"$f":"'Population 2016'!Z134*'Prevalence Rates'!Z134","v":331.96907006369412},{"$f":"'Population 2016'!AA134*'Prevalence Rates'!AA134","v":1562.3445573248405},{"$f":"'Population 2016'!AB134*'Prevalence Rates'!AB134","v":334.32057070063695},{"$f":"'Population 2016'!AC134*'Prevalence Rates'!AC134","v":738.53567770700624},{"$f":"'Population 2016'!AD134*'Prevalence Rates'!AD134","v":297.22501146496808},{"$f":"'Population 2016'!AE134*'Prevalence Rates'!AE134","v":232.44414012738849},{"$f":"'Population 2016'!AF134*'Prevalence Rates'!AF134","v":40.687009554140111},{"$f":"'Population 2016'!AG134*'Prevalence Rates'!AG134","v":232.44414012738849},{"$f":"'Population 2016'!AH134*'Prevalence Rates'!AH134","v":851.77698726114647},{"$f":"'Population 2016'!AI134*'Prevalence Rates'!AI134","v":600.79780127388506},{"$f":"'Population 2016'!AJ134*'Prevalence Rates'!AJ134","v":154.10499999999996},{"$f":"'Population 2016'!AK134*'Prevalence Rates'!AK134","v":59.975999999999999},{"$f":"'Population 2016'!AL134*'Prevalence Rates'!AL134","v":123.39011464968152},{"$f":"'Population 2016'!AM134*'Prevalence Rates'!AM134","v":456.54501592356678},{"$f":"'Population 2016'!AN134*'Prevalence Rates'!AN134","v":14.278362802547768},{"$f":"'Population 2016'!AO134*'Prevalence Rates'!AO134","v":14.261808917197449},{"$f":"'Population 2016'!AP134*'Prevalence Rates'!AP134","v":67.687882165605089},{"$f":"'Population 2016'!AQ134*'Prevalence Rates'!AQ134","v":142.17240764331206},{"$f":"'Population 2016'!AR134*'Prevalence Rates'!AR134","v":4638.1440000000002},{"$f":"'Population 2016'!AS134*'Prevalence Rates'!AS134","v":143.00806050955413},{"$f":"'Population 2016'!AT134*'Prevalence Rates'!AT134","v":0.80288996815286617},{"$f":"'Population 2016'!AU134*'Prevalence Rates'!AU134","v":0.80381847133757944},{"$f":"'Population 2016'!AV134*'Prevalence Rates'!AV134","v":182.80105414012738},{"$f":"'Population 2016'!AW134*'Prevalence Rates'!AW134","v":389.28159235668795},{"$f":"'Population 2016'!AX134*'Prevalence Rates'!AX134","v":49.144347133757947},{"$f":"'Population 2016'!AY134*'Prevalence Rates'!AY134","v":635.69042038216537},{"$f":"'Population 2016'!AZ134*'Prevalence Rates'!AZ134","v":297.08494012738856},{"$f":"'Population 2016'!BA134*'Prevalence Rates'!BA134","v":103.56789808917195},{"$f":"'Population 2016'!BB134*'Prevalence Rates'!BB134","v":182.96818471337576},{"$f":"'Population 2016'!BC134*'Prevalence Rates'!BC134","v":39.250615127388521},132]
[null,"Male 90+",{"$f":"'Population 2016'!C135*'Prevalence Rates'!C135","v":72.287952229299336},{"$f":"'Population 2016'!D135*'Prevalence Rates'!D135","v":121.35006050955414},{"$f":"'Population 2016'!E135*'Prevalence Rates'!E135","v":47.242242038216538},{"$f":"'Population 2016'!F135*'Prevalence Rates'!F135","v":59.349923566878985},{"$f":"'Population 2016'!G135*'Prevalence Rates'!G135","v":28.597898089171967},{"$f":"'Population 2016'!H135*'Prevalence Rates'!H135","v":192.28452038216557},{"$f":"'Population 2016'!I135*'Prevalence Rates'!I135","v":53.019760254777047},{"$f":"'Population 2016'!J135*'Prevalence Rates'!J135","v":25.42241719745223},{"$f":"'Population 2016'!K135*'Prevalence Rates'!K135","v":16.447770700636937},{"$f":"'Population 2016'!L135*'Prevalence Rates'!L135","v":105.72955961783438},{"$f":"'Population 2016'!M135*'Prevalence Rates'!M135","v":105.59468789808913},{"$f":"'Population 2016'!N135*'Prevalence Rates'!N135","v":58.477130573248409},{"$f":"'Population 2016'!O135*'Prevalence Rates'!O135","v":67.037929936305716},{"$f":"'Population 2016'!P135*'Prevalence Rates'!P135","v":48.048713375796169},{"$f":"'Population 2016'!Q135*'Prevalence Rates'!Q135","v":65.764554140127373},{"$f":"'Population 2016'!R135*'Prevalence Rates'!R135","v":12.762939490445858},{"$f":"'Population 2016'!S135*'Prevalence Rates'!S135","v":466.40571974522288},{"$f":"'Population 2016'!T135*'Prevalence Rates'!T135","v":94.243073248407626},{"$f":"'Population 2016'!U135*'Prevalence Rates'!U135","v":7.2104904458598718},{"$f":"'Population 2016'!V135*'Prevalence Rates'!V135","v":76.482133757961762},{"$f":"'Population 2016'!W135*'Prevalence Rates'!W135","v":148.32281273885349},{"$f":"'Population 2016'!X135*'Prevalence Rates'!X135","v":148.22094267515916},{"$f":"'Population 2016'!Y135*'Prevalence Rates'!Y135","v":102.11678025477704},{"$f":"'Population 2016'!Z135*'Prevalence Rates'!Z135","v":137.48214012738848},{"$f":"'Population 2016'!AA135*'Prevalence Rates'!AA135","v":595.09626114649666},{"$f":"'Population 2016'!AB135*'Prevalence Rates'!AB135","v":148.22094267515922},{"$f":"'Population 2016'!AC135*'Prevalence Rates'!AC135","v":308.96235286624199},{"$f":"'Population 2016'!AD135*'Prevalence Rates'!AD135","v":139.63043121019106},{"$f":"'Population 2016'!AE135*'Prevalence Rates'!AE135","v":121.58616560509553},{"$f":"'Population 2016'!AF135*'Prevalence Rates'!AF135","v":14.946248407643306},{"$f":"'Population 2016'!AG135*'Prevalence Rates'!AG135","v":121.58616560509553},{"$f":"'Population 2016'!AH135*'Prevalence Rates'!AH135","v":293.00377070063689},{"$f":"'Population 2016'!AI135*'Prevalence Rates'!AI135","v":266.85181528662406},{"$f":"'Population 2016'!AJ135*'Prevalence Rates'!AJ135","v":62.819872611464952},{"$f":"'Population 2016'!AK135*'Prevalence Rates'!AK135","v":25.823},{"$f":"'Population 2016'!AL135*'Prevalence Rates'!AL135","v":50.80769426751592},{"$f":"'Population 2016'!AM135*'Prevalence Rates'!AM135","v":151.16031847133755},{"$f":"'Population 2016'!AN135*'Prevalence Rates'!AN135","v":8.0315790764331201},{"$f":"'Population 2016'!AO135*'Prevalence Rates'!AO135","v":8.0222675159235646},{"$f":"'Population 2016'!AP135*'Prevalence Rates'!AP135","v":25.069585987261142},{"$f":"'Population 2016'!AQ135*'Prevalence Rates'!AQ135","v":59.647044585987238},{"$f":"'Population 2016'!AR135*'Prevalence Rates'!AR135","v":1904.2379999999998},{"$f":"'Population 2016'!AS135*'Prevalence Rates'!AS135","v":53.036101910828016},{"$f":"'Population 2016'!AT135*'Prevalence Rates'!AT135","v":0},{"$f":"'Population 2016'!AU135*'Prevalence Rates'!AU135","v":0},{"$f":"'Population 2016'!AV135*'Prevalence Rates'!AV135","v":72.136738853503175},{"$f":"'Population 2016'!AW135*'Prevalence Rates'!AW135","v":138.78735031847134},{"$f":"'Population 2016'!AX135*'Prevalence Rates'!AX135","v":12.853136942675157},{"$f":"'Population 2016'!AY135*'Prevalence Rates'!AY135","v":291.69856050955406},{"$f":"'Population 2016'!AZ135*'Prevalence Rates'!AZ135","v":140.8592388535032},{"$f":"'Population 2016'!BA135*'Prevalence Rates'!BA135","v":30.746719745222922},{"$f":"'Population 2016'!BB135*'Prevalence Rates'!BB135","v":64.78299363057323},{"$f":"'Population 2016'!BC135*'Prevalence Rates'!BC135","v":7.2092966560509524},133]
["SIMD Q3","Female 0-4",{"$f":"'Population 2016'!C136*'Prevalence Rates'!C136","v":0},{"$f":"'Population 2016'!D136*'Prevalence Rates'!D136","v":0},{"$f":"'Population 2016'!E136*'Prevalence Rates'!E136","v":0},{"$f":"'Population 2016'!F136*'Prevalence Rates'!F136","v":0},{"$f":"'Population 2016'!G136*'Prevalence Rates'!G136","v":0},{"$f":"'Population 2016'!H136*'Prevalence Rates'!H136","v":0},{"$f":"'Population 2016'!I136*'Prevalence Rates'!I136","v":0},{"$f":"'Population 2016'!J136*'Prevalence Rates'!J136","v":0},{"$f":"'Population 2016'!K136*'Prevalence Rates'!K136","v":0},{"$f":"'Population 2016'!L136*'Prevalence Rates'!L136","v":0},{"$f":"'Population 2016'!M136*'Prevalence Rates'!M136","v":0},{"$f":"'Population 2016'!N136*'Prevalence Rates'!N136","v":0},{"$f":"'Population 2016'!O136*'Prevalence Rates'!O136","v":0},{"$f":"'Population 2016'!P136*'Prevalence Rates'!P136","v":0},{"$f":"'Population 2016'!Q136*'Prevalence Rates'!Q136","v":0},{"$f":"'Population 2016'!R136*'Prevalence Rates'!R136","v":0},{"$f":"'Population 2016'!S136*'Prevalence Rates'!S136","v":0},{"$f":"'Population 2016'!T136*'Prevalence Rates'!T136","v":0},{"$f":"'Population 2016'!U136*'Prevalence Rates'!U136","v":0},{"$f":"'Population 2016'!V136*'Prevalence Rates'!V136","v":0},{"$f":"'Population 2016'!W136*'Prevalence Rates'!W136","v":0},{"$f":"'Population 2016'!X136*'Prevalence Rates'!X136","v":0},{"$f":"'Population 2016'!Y136*'Prevalence Rates'!Y136","v":0},{"$f":"'Population 2016'!Z136*'Prevalence Rates'!Z136","v":0},{"$f":"'Population 2016'!AA136*'Prevalence Rates'!AA136","v":0},{"$f":"'Population 2016'!AB136*'Prevalence Rates'!AB136","v":0},{"$f":"'Population 2016'!AC136*'Prevalence Rates'!AC136","v":0},{"$f":"'Population 2016'!AD136*'Prevalence Rates'!AD136","v":0},{"$f":"'Population 2016'!AE136*'Prevalence Rates'!AE136","v":0},{"$f":"'Population 2016'!AF136*'Prevalence Rates'!AF136","v":0},{"$f":"'Population 2016'!AG136*'Prevalence Rates'!AG136","v":0},{"$f":"'Population 2016'!AH136*'Prevalence Rates'!AH136","v":0},{"$f":"'Population 2016'!AI136*'Prevalence Rates'!AI136","v":0},{"$f":"'Population 2016'!AJ136*'Prevalence Rates'!AJ136","v":0},{"$f":"'Population 2016'!AK136*'Prevalence Rates'!AK136","v":0},{"$f":"'Population 2016'!AL136*'Prevalence Rates'!AL136","v":0},{"$f":"'Population 2016'!AM136*'Prevalence Rates'!AM136","v":0},{"$f":"'Population 2016'!AN136*'Prevalence Rates'!AN136","v":0},{"$f":"'Population 2016'!AO136*'Prevalence Rates'!AO136","v":0},{"$f":"'Population 2016'!AP136*'Prevalence Rates'!AP136","v":0},{"$f":"'Population 2016'!AQ136*'Prevalence Rates'!AQ136","v":0},{"$f":"'Population 2016'!AR136*'Prevalence Rates'!AR136","v":0},{"$f":"'Population 2016'!AS136*'Prevalence Rates'!AS136","v":0},{"$f":"'Population 2016'!AT136*'Prevalence Rates'!AT136","v":0},{"$f":"'Population 2016'!AU136*'Prevalence Rates'!AU136","v":0},{"$f":"'Population 2016'!AV136*'Prevalence Rates'!AV136","v":0},{"$f":"'Population 2016'!AW136*'Prevalence Rates'!AW136","v":0},{"$f":"'Population 2016'!AX136*'Prevalence Rates'!AX136","v":0},{"$f":"'Population 2016'!AY136*'Prevalence Rates'!AY136","v":0},{"$f":"'Population 2016'!AZ136*'Prevalence Rates'!AZ136","v":0},{"$f":"'Population 2016'!BA136*'Prevalence Rates'!BA136","v":0},{"$f":"'Population 2016'!BB136*'Prevalence Rates'!BB136","v":0},{"$f":"'Population 2016'!BC136*'Prevalence Rates'!BC136","v":0},134]
[null,"Female 5-9",{"$f":"'Population 2016'!C137*'Prevalence Rates'!C137","v":0},{"$f":"'Population 2016'!D137*'Prevalence Rates'!D137","v":0},{"$f":"'Population 2016'!E137*'Prevalence Rates'!E137","v":0},{"$f":"'Population 2016'!F137*'Prevalence Rates'!F137","v":0},{"$f":"'Population 2016'!G137*'Prevalence Rates'!G137","v":0},{"$f":"'Population 2016'!H137*'Prevalence Rates'!H137","v":0},{"$f":"'Population 2016'!I137*'Prevalence Rates'!I137","v":0},{"$f":"'Population 2016'!J137*'Prevalence Rates'!J137","v":0},{"$f":"'Population 2016'!K137*'Prevalence Rates'!K137","v":0},{"$f":"'Population 2016'!L137*'Prevalence Rates'!L137","v":0},{"$f":"'Population 2016'!M137*'Prevalence Rates'!M137","v":0},{"$f":"'Population 2016'!N137*'Prevalence Rates'!N137","v":0},{"$f":"'Population 2016'!O137*'Prevalence Rates'!O137","v":0},{"$f":"'Population 2016'!P137*'Prevalence Rates'!P137","v":0},{"$f":"'Population 2016'!Q137*'Prevalence Rates'!Q137","v":0},{"$f":"'Population 2016'!R137*'Prevalence Rates'!R137","v":0},{"$f":"'Population 2016'!S137*'Prevalence Rates'!S137","v":0},{"$f":"'Population 2016'!T137*'Prevalence Rates'!T137","v":0},{"$f":"'Population 2016'!U137*'Prevalence Rates'!U137","v":0},{"$f":"'Population 2016'!V137*'Prevalence Rates'!V137","v":0},{"$f":"'Population 2016'!W137*'Prevalence Rates'!W137","v":0},{"$f":"'Population 2016'!X137*'Prevalence Rates'!X137","v":0},{"$f":"'Population 2016'!Y137*'Prevalence Rates'!Y137","v":0},{"$f":"'Population 2016'!Z137*'Prevalence Rates'!Z137","v":0},{"$f":"'Population 2016'!AA137*'Prevalence Rates'!AA137","v":0},{"$f":"'Population 2016'!AB137*'Prevalence Rates'!AB137","v":0},{"$f":"'Population 2016'!AC137*'Prevalence Rates'!AC137","v":0},{"$f":"'Population 2016'!AD137*'Prevalence Rates'!AD137","v":0},{"$f":"'Population 2016'!AE137*'Prevalence Rates'!AE137","v":0},{"$f":"'Population 2016'!AF137*'Prevalence Rates'!AF137","v":0},{"$f":"'Population 2016'!AG137*'Prevalence Rates'!AG137","v":0},{"$f":"'Population 2016'!AH137*'Prevalence Rates'!AH137","v":0},{"$f":"'Population 2016'!AI137*'Prevalence Rates'!AI137","v":0},{"$f":"'Population 2016'!AJ137*'Prevalence Rates'!AJ137","v":0},{"$f":"'Population 2016'!AK137*'Prevalence Rates'!AK137","v":0},{"$f":"'Population 2016'!AL137*'Prevalence Rates'!AL137","v":0},{"$f":"'Population 2016'!AM137*'Prevalence Rates'!AM137","v":0},{"$f":"'Population 2016'!AN137*'Prevalence Rates'!AN137","v":0},{"$f":"'Population 2016'!AO137*'Prevalence Rates'!AO137","v":0},{"$f":"'Population 2016'!AP137*'Prevalence Rates'!AP137","v":0},{"$f":"'Population 2016'!AQ137*'Prevalence Rates'!AQ137","v":0},{"$f":"'Population 2016'!AR137*'Prevalence Rates'!AR137","v":0},{"$f":"'Population 2016'!AS137*'Prevalence Rates'!AS137","v":0},{"$f":"'Population 2016'!AT137*'Prevalence Rates'!AT137","v":0},{"$f":"'Population 2016'!AU137*'Prevalence Rates'!AU137","v":0},{"$f":"'Population 2016'!AV137*'Prevalence Rates'!AV137","v":0},{"$f":"'Population 2016'!AW137*'Prevalence Rates'!AW137","v":0},{"$f":"'Population 2016'!AX137*'Prevalence Rates'!AX137","v":0},{"$f":"'Population 2016'!AY137*'Prevalence Rates'!AY137","v":0},{"$f":"'Population 2016'!AZ137*'Prevalence Rates'!AZ137","v":0},{"$f":"'Population 2016'!BA137*'Prevalence Rates'!BA137","v":0},{"$f":"'Population 2016'!BB137*'Prevalence Rates'!BB137","v":0},{"$f":"'Population 2016'!BC137*'Prevalence Rates'!BC137","v":0},135]
[null,"Female 10-15",{"$f":"'Population 2016'!C138*'Prevalence Rates'!C138","v":0},{"$f":"'Population 2016'!D138*'Prevalence Rates'!D138","v":0},{"$f":"'Population 2016'!E138*'Prevalence Rates'!E138","v":0},{"$f":"'Population 2016'!F138*'Prevalence Rates'!F138","v":0},{"$f":"'Population 2016'!G138*'Prevalence Rates'!G138","v":0},{"$f":"'Population 2016'!H138*'Prevalence Rates'!H138","v":0},{"$f":"'Population 2016'!I138*'Prevalence Rates'!I138","v":0},{"$f":"'Population 2016'!J138*'Prevalence Rates'!J138","v":0},{"$f":"'Population 2016'!K138*'Prevalence Rates'!K138","v":0},{"$f":"'Population 2016'!L138*'Prevalence Rates'!L138","v":0},{"$f":"'Population 2016'!M138*'Prevalence Rates'!M138","v":0},{"$f":"'Population 2016'!N138*'Prevalence Rates'!N138","v":0},{"$f":"'Population 2016'!O138*'Prevalence Rates'!O138","v":0},{"$f":"'Population 2016'!P138*'Prevalence Rates'!P138","v":0},{"$f":"'Population 2016'!Q138*'Prevalence Rates'!Q138","v":0},{"$f":"'Population 2016'!R138*'Prevalence Rates'!R138","v":0},{"$f":"'Population 2016'!S138*'Prevalence Rates'!S138","v":0},{"$f":"'Population 2016'!T138*'Prevalence Rates'!T138","v":0},{"$f":"'Population 2016'!U138*'Prevalence Rates'!U138","v":0},{"$f":"'Population 2016'!V138*'Prevalence Rates'!V138","v":0},{"$f":"'Population 2016'!W138*'Prevalence Rates'!W138","v":0},{"$f":"'Population 2016'!X138*'Prevalence Rates'!X138","v":0},{"$f":"'Population 2016'!Y138*'Prevalence Rates'!Y138","v":0},{"$f":"'Population 2016'!Z138*'Prevalence Rates'!Z138","v":0},{"$f":"'Population 2016'!AA138*'Prevalence Rates'!AA138","v":0},{"$f":"'Population 2016'!AB138*'Prevalence Rates'!AB138","v":0},{"$f":"'Population 2016'!AC138*'Prevalence Rates'!AC138","v":0},{"$f":"'Population 2016'!AD138*'Prevalence Rates'!AD138","v":0},{"$f":"'Population 2016'!AE138*'Prevalence Rates'!AE138","v":0},{"$f":"'Population 2016'!AF138*'Prevalence Rates'!AF138","v":0},{"$f":"'Population 2016'!AG138*'Prevalence Rates'!AG138","v":0},{"$f":"'Population 2016'!AH138*'Prevalence Rates'!AH138","v":0},{"$f":"'Population 2016'!AI138*'Prevalence Rates'!AI138","v":0},{"$f":"'Population 2016'!AJ138*'Prevalence Rates'!AJ138","v":0},{"$f":"'Population 2016'!AK138*'Prevalence Rates'!AK138","v":0},{"$f":"'Population 2016'!AL138*'Prevalence Rates'!AL138","v":0},{"$f":"'Population 2016'!AM138*'Prevalence Rates'!AM138","v":0},{"$f":"'Population 2016'!AN138*'Prevalence Rates'!AN138","v":0},{"$f":"'Population 2016'!AO138*'Prevalence Rates'!AO138","v":0},{"$f":"'Population 2016'!AP138*'Prevalence Rates'!AP138","v":0},{"$f":"'Population 2016'!AQ138*'Prevalence Rates'!AQ138","v":0},{"$f":"'Population 2016'!AR138*'Prevalence Rates'!AR138","v":0},{"$f":"'Population 2016'!AS138*'Prevalence Rates'!AS138","v":0},{"$f":"'Population 2016'!AT138*'Prevalence Rates'!AT138","v":0},{"$f":"'Population 2016'!AU138*'Prevalence Rates'!AU138","v":0},{"$f":"'Population 2016'!AV138*'Prevalence Rates'!AV138","v":0},{"$f":"'Population 2016'!AW138*'Prevalence Rates'!AW138","v":0},{"$f":"'Population 2016'!AX138*'Prevalence Rates'!AX138","v":0},{"$f":"'Population 2016'!AY138*'Prevalence Rates'!AY138","v":0},{"$f":"'Population 2016'!AZ138*'Prevalence Rates'!AZ138","v":0},{"$f":"'Population 2016'!BA138*'Prevalence Rates'!BA138","v":0},{"$f":"'Population 2016'!BB138*'Prevalence Rates'!BB138","v":0},{"$f":"'Population 2016'!BC138*'Prevalence Rates'!BC138","v":0},136]
[null,"Female 16-19",{"$f":"'Population 2016'!C139*'Prevalence Rates'!C139","v":68.361955835962149},{"$f":"'Population 2016'!D139*'Prevalence Rates'!D139","v":189.58940063091489},{"$f":"'Population 2016'!E139*'Prevalence Rates'!E139","v":123.17110410094641},{"$f":"'Population 2016'!F139*'Prevalence Rates'!F139","v":94.92331230283915},{"$f":"'Population 2016'!G139*'Prevalence Rates'!G139","v":87.070883280757116},{"$f":"'Population 2016'!H139*'Prevalence Rates'!H139","v":173.37409779179816},{"$f":"'Population 2016'!I139*'Prevalence Rates'!I139","v":93.873185488959024},{"$f":"'Population 2016'!J139*'Prevalence Rates'!J139","v":62.421388012618323},{"$f":"'Population 2016'!K139*'Prevalence Rates'!K139","v":22.805205047318616},{"$f":"'Population 2016'!L139*'Prevalence Rates'!L139","v":144.41650977917985},{"$f":"'Population 2016'!M139*'Prevalence Rates'!M139","v":144.33160883280763},{"$f":"'Population 2016'!N139*'Prevalence Rates'!N139","v":59.867886435331229},{"$f":"'Population 2016'!O139*'Prevalence Rates'!O139","v":55.525457413249214},{"$f":"'Population 2016'!P139*'Prevalence Rates'!P139","v":18.671167192429028},{"$f":"'Population 2016'!Q139*'Prevalence Rates'!Q139","v":50.140504731861213},{"$f":"'Population 2016'!R139*'Prevalence Rates'!R139","v":26.299022082018933},{"$f":"'Population 2016'!S139*'Prevalence Rates'!S139","v":615.01854889589924},{"$f":"'Population 2016'!T139*'Prevalence Rates'!T139","v":136.17085173501582},{"$f":"'Population 2016'!U139*'Prevalence Rates'!U139","v":41.58511041009465},{"$f":"'Population 2016'!V139*'Prevalence Rates'!V139","v":77.928643533123036},{"$f":"'Population 2016'!W139*'Prevalence Rates'!W139","v":187.85089589905368},{"$f":"'Population 2016'!X139*'Prevalence Rates'!X139","v":187.75930599369087},{"$f":"'Population 2016'!Y139*'Prevalence Rates'!Y139","v":136.48270031545741},{"$f":"'Population 2016'!Z139*'Prevalence Rates'!Z139","v":308.99810725552055},{"$f":"'Population 2016'!AA139*'Prevalence Rates'!AA139","v":805.26094637223991},{"$f":"'Population 2016'!AB139*'Prevalence Rates'!AB139","v":259.86083280757106},{"$f":"'Population 2016'!AC139*'Prevalence Rates'!AC139","v":483.98686750788647},{"$f":"'Population 2016'!AD139*'Prevalence Rates'!AD139","v":252.42405047318618},{"$f":"'Population 2016'!AE139*'Prevalence Rates'!AE139","v":176.57403785488961},{"$f":"'Population 2016'!AF139*'Prevalence Rates'!AF139","v":28.757981072555214},{"$f":"'Population 2016'!AG139*'Prevalence Rates'!AG139","v":176.57403785488961},{"$f":"'Population 2016'!AH139*'Prevalence Rates'!AH139","v":320.03483280757109},{"$f":"'Population 2016'!AI139*'Prevalence Rates'!AI139","v":337.99162145110415},{"$f":"'Population 2016'!AJ139*'Prevalence Rates'!AJ139","v":52.791104100946384},{"$f":"'Population 2016'!AK139*'Prevalence Rates'!AK139","v":71.04321766561516},{"$f":"'Population 2016'!AL139*'Prevalence Rates'!AL139","v":55.002776025236614},{"$f":"'Population 2016'!AM139*'Prevalence Rates'!AM139","v":175.41227129337545},{"$f":"'Population 2016'!AN139*'Prevalence Rates'!AN139","v":14.693417034700319},{"$f":"'Population 2016'!AO139*'Prevalence Rates'!AO139","v":14.701798107255527},{"$f":"'Population 2016'!AP139*'Prevalence Rates'!AP139","v":76.379905362776057},{"$f":"'Population 2016'!AQ139*'Prevalence Rates'!AQ139","v":71.044921135646689},{"$f":"'Population 2016'!AR139*'Prevalence Rates'!AR139","v":2675.0880000000006},{"$f":"'Population 2016'!AS139*'Prevalence Rates'!AS139","v":93.875394321766578},{"$f":"'Population 2016'!AT139*'Prevalence Rates'!AT139","v":16.597518927444796},{"$f":"'Population 2016'!AU139*'Prevalence Rates'!AU139","v":16.582712933753946},{"$f":"'Population 2016'!AV139*'Prevalence Rates'!AV139","v":60.855615141955845},{"$f":"'Population 2016'!AW139*'Prevalence Rates'!AW139","v":144.6785488958991},{"$f":"'Population 2016'!AX139*'Prevalence Rates'!AX139","v":39.489842271293384},{"$f":"'Population 2016'!AY139*'Prevalence Rates'!AY139","v":399.21785488958994},{"$f":"'Population 2016'!AZ139*'Prevalence Rates'!AZ139","v":211.39381703470039},{"$f":"'Population 2016'!BA139*'Prevalence Rates'!BA139","v":27.882397476340703},{"$f":"'Population 2016'!BB139*'Prevalence Rates'!BB139","v":106.79990536277607},{"$f":"'Population 2016'!BC139*'Prevalence Rates'!BC139","v":41.633014826498432},137]
[null,"Female 20-24",{"$f":"'Population 2016'!C140*'Prevalence Rates'!C140","v":203.98968454258676},{"$f":"'Population 2016'!D140*'Prevalence Rates'!D140","v":366.96832807570991},{"$f":"'Population 2016'!E140*'Prevalence Rates'!E140","v":154.28555205047323},{"$f":"'Population 2016'!F140*'Prevalence Rates'!F140","v":108.13741324921139},{"$f":"'Population 2016'!G140*'Prevalence Rates'!G140","v":77.688738170347023},{"$f":"'Population 2016'!H140*'Prevalence Rates'!H140","v":198.28936277602529},{"$f":"'Population 2016'!I140*'Prevalence Rates'!I140","v":113.9026826498423},{"$f":"'Population 2016'!J140*'Prevalence Rates'!J140","v":108.78813880126188},{"$f":"'Population 2016'!K140*'Prevalence Rates'!K140","v":33.360757097791804},{"$f":"'Population 2016'!L140*'Prevalence Rates'!L140","v":170.10858548895902},{"$f":"'Population 2016'!M140*'Prevalence Rates'!M140","v":170.00858044164045},{"$f":"'Population 2016'!N140*'Prevalence Rates'!N140","v":107.66157728706625},{"$f":"'Population 2016'!O140*'Prevalence Rates'!O140","v":66.044668769716097},{"$f":"'Population 2016'!P140*'Prevalence Rates'!P140","v":24.591293375394329},{"$f":"'Population 2016'!Q140*'Prevalence Rates'!Q140","v":69.246908517350178},{"$f":"'Population 2016'!R140*'Prevalence Rates'!R140","v":29.372933753943226},{"$f":"'Population 2016'!S140*'Prevalence Rates'!S140","v":1093.5976656151422},{"$f":"'Population 2016'!T140*'Prevalence Rates'!T140","v":434.02088328075729},{"$f":"'Population 2016'!U140*'Prevalence Rates'!U140","v":42.280126182965311},{"$f":"'Population 2016'!V140*'Prevalence Rates'!V140","v":101.6460567823344},{"$f":"'Population 2016'!W140*'Prevalence Rates'!W140","v":261.91981703470037},{"$f":"'Population 2016'!X140*'Prevalence Rates'!X140","v":261.7921135646688},{"$f":"'Population 2016'!Y140*'Prevalence Rates'!Y140","v":205.88275078864353},{"$f":"'Population 2016'!Z140*'Prevalence Rates'!Z140","v":689.69526813880145},{"$f":"'Population 2016'!AA140*'Prevalence Rates'!AA140","v":1295.9403785488962},{"$f":"'Population 2016'!AB140*'Prevalence Rates'!AB140","v":456.47273186119889},{"$f":"'Population 2016'!AC140*'Prevalence Rates'!AC140","v":900.04145110410104},{"$f":"'Population 2016'!AD140*'Prevalence Rates'!AD140","v":266.74029652996853},{"$f":"'Population 2016'!AE140*'Prevalence Rates'!AE140","v":201.90378548895902},{"$f":"'Population 2016'!AF140*'Prevalence Rates'!AF140","v":33.238391167192439},{"$f":"'Population 2016'!AG140*'Prevalence Rates'!AG140","v":201.90378548895902},{"$f":"'Population 2016'!AH140*'Prevalence Rates'!AH140","v":398.42034700315469},{"$f":"'Population 2016'!AI140*'Prevalence Rates'!AI140","v":712.0804542586751},{"$f":"'Population 2016'!AJ140*'Prevalence Rates'!AJ140","v":56.987886435331241},{"$f":"'Population 2016'!AK140*'Prevalence Rates'!AK140","v":85.999684542586763},{"$f":"'Population 2016'!AL140*'Prevalence Rates'!AL140","v":64.192429022082038},{"$f":"'Population 2016'!AM140*'Prevalence Rates'!AM140","v":214.2258359621452},{"$f":"'Population 2016'!AN140*'Prevalence Rates'!AN140","v":20.188516088328083},{"$f":"'Population 2016'!AO140*'Prevalence Rates'!AO140","v":20.200031545741332},{"$f":"'Population 2016'!AP140*'Prevalence Rates'!AP140","v":103.30353312302843},{"$f":"'Population 2016'!AQ140*'Prevalence Rates'!AQ140","v":93.581829652996859},{"$f":"'Population 2016'!AR140*'Prevalence Rates'!AR140","v":4084.4700000000012},{"$f":"'Population 2016'!AS140*'Prevalence Rates'!AS140","v":113.90536277602526},{"$f":"'Population 2016'!AT140*'Prevalence Rates'!AT140","v":19.270944794952683},{"$f":"'Population 2016'!AU140*'Prevalence Rates'!AU140","v":19.253753943217671},{"$f":"'Population 2016'!AV140*'Prevalence Rates'!AV140","v":66.249369085173512},{"$f":"'Population 2016'!AW140*'Prevalence Rates'!AW140","v":183.7748895899054},{"$f":"'Population 2016'!AX140*'Prevalence Rates'!AX140","v":74.414384858044187},{"$f":"'Population 2016'!AY140*'Prevalence Rates'!AY140","v":552.66757097791799},{"$f":"'Population 2016'!AZ140*'Prevalence Rates'!AZ140","v":290.88670031545752},{"$f":"'Population 2016'!BA140*'Prevalence Rates'!BA140","v":44.297034700315471},{"$f":"'Population 2016'!BB140*'Prevalence Rates'!BB140","v":133.46858044164043},{"$f":"'Population 2016'!BC140*'Prevalence Rates'!BC140","v":42.328831230283917},138]
[null,"Female 25-29",{"$f":"'Population 2016'!C141*'Prevalence Rates'!C141","v":195.99700315457412},{"$f":"'Population 2016'!D141*'Prevalence Rates'!D141","v":366.37476340694008},{"$f":"'Population 2016'!E141*'Prevalence Rates'!E141","v":163.03042950740112},{"$f":"'Population 2016'!F141*'Prevalence Rates'!F141","v":96.637114777966531},{"$f":"'Population 2016'!G141*'Prevalence Rates'!G141","v":81.871293375394316},{"$f":"'Population 2016'!H141*'Prevalence Rates'!H141","v":199.08710143169134},{"$f":"'Population 2016'!I141*'Prevalence Rates'!I141","v":91.201142077165741},{"$f":"'Population 2016'!J141*'Prevalence Rates'!J141","v":99.27393836447466},{"$f":"'Population 2016'!K141*'Prevalence Rates'!K141","v":33.943278330502295},{"$f":"'Population 2016'!L141*'Prevalence Rates'!L141","v":173.97915505945159},{"$f":"'Population 2016'!M141*'Prevalence Rates'!M141","v":173.87687454501338},{"$f":"'Population 2016'!N141*'Prevalence Rates'!N141","v":118.30712205775295},{"$f":"'Population 2016'!O141*'Prevalence Rates'!O141","v":70.019958747876714},{"$f":"'Population 2016'!P141*'Prevalence Rates'!P141","v":22.38049017228828},{"$f":"'Population 2016'!Q141*'Prevalence Rates'!Q141","v":64.155265712205775},{"$f":"'Population 2016'!R141*'Prevalence Rates'!R141","v":29.766051929143412},{"$f":"'Population 2016'!S141*'Prevalence Rates'!S141","v":1202.6555447706867},{"$f":"'Population 2016'!T141*'Prevalence Rates'!T141","v":525.11997088085423},{"$f":"'Population 2016'!U141*'Prevalence Rates'!U141","v":47.02247027420529},{"$f":"'Population 2016'!V141*'Prevalence Rates'!V141","v":101.06130793496722},{"$f":"'Population 2016'!W141*'Prevalence Rates'!W141","v":284.22848580441644},{"$f":"'Population 2016'!X141*'Prevalence Rates'!X141","v":284.08990536277599},{"$f":"'Population 2016'!Y141*'Prevalence Rates'!Y141","v":195.64991021596697},{"$f":"'Population 2016'!Z141*'Prevalence Rates'!Z141","v":638.88206745935452},{"$f":"'Population 2016'!AA141*'Prevalence Rates'!AA141","v":1259.6409609318125},{"$f":"'Population 2016'!AB141*'Prevalence Rates'!AB141","v":458.95732589177391},{"$f":"'Population 2016'!AC141*'Prevalence Rates'!AC141","v":845.605911186605},{"$f":"'Population 2016'!AD141*'Prevalence Rates'!AD141","v":282.44362776025235},{"$f":"'Population 2016'!AE141*'Prevalence Rates'!AE141","v":214.20835962145108},{"$f":"'Population 2016'!AF141*'Prevalence Rates'!AF141","v":31.441239990293621},{"$f":"'Population 2016'!AG141*'Prevalence Rates'!AG141","v":214.20835962145108},{"$f":"'Population 2016'!AH141*'Prevalence Rates'!AH141","v":415.39640863867999},{"$f":"'Population 2016'!AI141*'Prevalence Rates'!AI141","v":816.14693520990033},{"$f":"'Population 2016'!AJ141*'Prevalence Rates'!AJ141","v":63.069728221305503},{"$f":"'Population 2016'!AK141*'Prevalence Rates'!AK141","v":89.429871390439217},{"$f":"'Population 2016'!AL141*'Prevalence Rates'!AL141","v":57.11768988109683},{"$f":"'Population 2016'!AM141*'Prevalence Rates'!AM141","v":232.10019412763893},{"$f":"'Population 2016'!AN141*'Prevalence Rates'!AN141","v":21.604662945886922},{"$f":"'Population 2016'!AO141*'Prevalence Rates'!AO141","v":21.616986168405731},{"$f":"'Population 2016'!AP141*'Prevalence Rates'!AP141","v":105.39927202135405},{"$f":"'Population 2016'!AQ141*'Prevalence Rates'!AQ141","v":93.142465421014307},{"$f":"'Population 2016'!AR141*'Prevalence Rates'!AR141","v":4189.68},{"$f":"'Population 2016'!AS141*'Prevalence Rates'!AS141","v":91.203288036884246},{"$f":"'Population 2016'!AT141*'Prevalence Rates'!AT141","v":22.99260495025479},{"$f":"'Population 2016'!AU141*'Prevalence Rates'!AU141","v":22.97209415190488},{"$f":"'Population 2016'!AV141*'Prevalence Rates'!AV141","v":69.611696190245084},{"$f":"'Population 2016'!AW141*'Prevalence Rates'!AW141","v":183.89005095850521},{"$f":"'Population 2016'!AX141*'Prevalence Rates'!AX141","v":64.840912399902933},{"$f":"'Population 2016'!AY141*'Prevalence Rates'!AY141","v":575.20706139286574},{"$f":"'Population 2016'!AZ141*'Prevalence Rates'!AZ141","v":291.7580975491386},{"$f":"'Population 2016'!BA141*'Prevalence Rates'!BA141","v":42.324241688910462},{"$f":"'Population 2016'!BB141*'Prevalence Rates'!BB141","v":136.2327226401359},{"$f":"'Population 2016'!BC141*'Prevalence Rates'!BC141","v":47.076638315942731},139]
[null,"Female 30-34",{"$f":"'Population 2016'!C142*'Prevalence Rates'!C142","v":154.76025236593057},{"$f":"'Population 2016'!D142*'Prevalence Rates'!D142","v":334.5487017714147},{"$f":"'Population 2016'!E142*'Prevalence Rates'!E142","v":177.28696918223733},{"$f":"'Population 2016'!F142*'Prevalence Rates'!F142","v":119.27712933753945},{"$f":"'Population 2016'!G142*'Prevalence Rates'!G142","v":92.779968454258679},{"$f":"'Population 2016'!H142*'Prevalence Rates'!H142","v":213.67920892987141},{"$f":"'Population 2016'!I142*'Prevalence Rates'!I142","v":112.43001650084932},{"$f":"'Population 2016'!J142*'Prevalence Rates'!J142","v":81.256248483377831},{"$f":"'Population 2016'!K142*'Prevalence Rates'!K142","v":35.096068915311811},{"$f":"'Population 2016'!L142*'Prevalence Rates'!L142","v":166.66910652754186},{"$f":"'Population 2016'!M142*'Prevalence Rates'!M142","v":166.57112351371029},{"$f":"'Population 2016'!N142*'Prevalence Rates'!N142","v":76.151710749817994},{"$f":"'Population 2016'!O142*'Prevalence Rates'!O142","v":72.637527299199206},{"$f":"'Population 2016'!P142*'Prevalence Rates'!P142","v":18.016294588692066},{"$f":"'Population 2016'!Q142*'Prevalence Rates'!Q142","v":65.892125697646193},{"$f":"'Population 2016'!R142*'Prevalence Rates'!R142","v":31.444588692065036},{"$f":"'Population 2016'!S142*'Prevalence Rates'!S142","v":1086.8602280999758},{"$f":"'Population 2016'!T142*'Prevalence Rates'!T142","v":402.3682843969911},{"$f":"'Population 2016'!U142*'Prevalence Rates'!U142","v":51.576704683329289},{"$f":"'Population 2016'!V142*'Prevalence Rates'!V142","v":117.58463965057022},{"$f":"'Population 2016'!W142*'Prevalence Rates'!W142","v":271.52233923804903},{"$f":"'Population 2016'!X142*'Prevalence Rates'!X142","v":271.38995389468573},{"$f":"'Population 2016'!Y142*'Prevalence Rates'!Y142","v":192.77270565396745},{"$f":"'Population 2016'!Z142*'Prevalence Rates'!Z142","v":507.30599369085172},{"$f":"'Population 2016'!AA142*'Prevalence Rates'!AA142","v":1187.9569764620237},{"$f":"'Population 2016'!AB142*'Prevalence Rates'!AB142","v":438.93532637709302},{"$f":"'Population 2016'!AC142*'Prevalence Rates'!AC142","v":725.56265469546213},{"$f":"'Population 2016'!AD142*'Prevalence Rates'!AD142","v":308.89809269594758},{"$f":"'Population 2016'!AE142*'Prevalence Rates'!AE142","v":230.80619995146807},{"$f":"'Population 2016'!AF142*'Prevalence Rates'!AF142","v":27.549490414947833},{"$f":"'Population 2016'!AG142*'Prevalence Rates'!AG142","v":230.80619995146807},{"$f":"'Population 2016'!AH142*'Prevalence Rates'!AH142","v":460.99718757583116},{"$f":"'Population 2016'!AI142*'Prevalence Rates'!AI142","v":698.25789856830852},{"$f":"'Population 2016'!AJ142*'Prevalence Rates'!AJ142","v":66.760555690366417},{"$f":"'Population 2016'!AK142*'Prevalence Rates'!AK142","v":103.64064547439942},{"$f":"'Population 2016'!AL142*'Prevalence Rates'!AL142","v":61.766804173744248},{"$f":"'Population 2016'!AM142*'Prevalence Rates'!AM142","v":264.95849308420287},{"$f":"'Population 2016'!AN142*'Prevalence Rates'!AN142","v":23.835579228342635},{"$f":"'Population 2016'!AO142*'Prevalence Rates'!AO142","v":23.849174957534583},{"$f":"'Population 2016'!AP142*'Prevalence Rates'!AP142","v":112.78176413491872},{"$f":"'Population 2016'!AQ142*'Prevalence Rates'!AQ142","v":102.636034942975},{"$f":"'Population 2016'!AR142*'Prevalence Rates'!AR142","v":4001.4250000000002},{"$f":"'Population 2016'!AS142*'Prevalence Rates'!AS142","v":112.43266197524872},{"$f":"'Population 2016'!AT142*'Prevalence Rates'!AT142","v":20.583855860228098},{"$f":"'Population 2016'!AU142*'Prevalence Rates'!AU142","v":20.565493812181511},{"$f":"'Population 2016'!AV142*'Prevalence Rates'!AV142","v":76.526765348216443},{"$f":"'Population 2016'!AW142*'Prevalence Rates'!AW142","v":197.56782334384857},{"$f":"'Population 2016'!AX142*'Prevalence Rates'!AX142","v":46.667507886435331},{"$f":"'Population 2016'!AY142*'Prevalence Rates'!AY142","v":553.32720213540392},{"$f":"'Population 2016'!AZ142*'Prevalence Rates'!AZ142","v":282.45127396263047},{"$f":"'Population 2016'!BA142*'Prevalence Rates'!BA142","v":42.434748847367146},{"$f":"'Population 2016'!BB142*'Prevalence Rates'!BB142","v":151.4927566124727},{"$f":"'Population 2016'!BC142*'Prevalence Rates'!BC142","v":51.636119024508609},140]
[null,"Female 35-39",{"$f":"'Population 2016'!C143*'Prevalence Rates'!C143","v":191.47684542586745},{"$f":"'Population 2016'!D143*'Prevalence Rates'!D143","v":528.37132734773104},{"$f":"'Population 2016'!E143*'Prevalence Rates'!E143","v":342.14495510798349},{"$f":"'Population 2016'!F143*'Prevalence Rates'!F143","v":253.7256588206746},{"$f":"'Population 2016'!G143*'Prevalence Rates'!G143","v":188.18271293375389},{"$f":"'Population 2016'!H143*'Prevalence Rates'!H143","v":430.68619073040514},{"$f":"'Population 2016'!I143*'Prevalence Rates'!I143","v":211.85354457655907},{"$f":"'Population 2016'!J143*'Prevalence Rates'!J143","v":163.43411793254066},{"$f":"'Population 2016'!K143*'Prevalence Rates'!K143","v":60.185692793011391},{"$f":"'Population 2016'!L143*'Prevalence Rates'!L143","v":324.90594205289966},{"$f":"'Population 2016'!M143*'Prevalence Rates'!M143","v":324.71493326862412},{"$f":"'Population 2016'!N143*'Prevalence Rates'!N143","v":117.89110410094634},{"$f":"'Population 2016'!O143*'Prevalence Rates'!O143","v":141.41698616840569},{"$f":"'Population 2016'!P143*'Prevalence Rates'!P143","v":43.262460567823339},{"$f":"'Population 2016'!Q143*'Prevalence Rates'!Q143","v":133.22093666585778},{"$f":"'Population 2016'!R143*'Prevalence Rates'!R143","v":65.448337782091713},{"$f":"'Population 2016'!S143*'Prevalence Rates'!S143","v":1862.8822712933752},{"$f":"'Population 2016'!T143*'Prevalence Rates'!T143","v":544.76121329774321},{"$f":"'Population 2016'!U143*'Prevalence Rates'!U143","v":123.47519534093664},{"$f":"'Population 2016'!V143*'Prevalence Rates'!V143","v":237.18749818005335},{"$f":"'Population 2016'!W143*'Prevalence Rates'!W143","v":555.11676195098266},{"$f":"'Population 2016'!X143*'Prevalence Rates'!X143","v":554.84610531424403},{"$f":"'Population 2016'!Y143*'Prevalence Rates'!Y143","v":388.37257752972567},{"$f":"'Population 2016'!Z143*'Prevalence Rates'!Z143","v":762.48599854404256},{"$f":"'Population 2016'!AA143*'Prevalence Rates'!AA143","v":2170.9439650570248},{"$f":"'Population 2016'!AB143*'Prevalence Rates'!AB143","v":700.92677311332193},{"$f":"'Population 2016'!AC143*'Prevalence Rates'!AC143","v":1233.9616714389706},{"$f":"'Population 2016'!AD143*'Prevalence Rates'!AD143","v":647.01796845425861},{"$f":"'Population 2016'!AE143*'Prevalence Rates'!AE143","v":490.02848823101181},{"$f":"'Population 2016'!AF143*'Prevalence Rates'!AF143","v":75.736830866294582},{"$f":"'Population 2016'!AG143*'Prevalence Rates'!AG143","v":490.02848823101181},{"$f":"'Population 2016'!AH143*'Prevalence Rates'!AH143","v":931.00051637951947},{"$f":"'Population 2016'!AI143*'Prevalence Rates'!AI143","v":1099.3182936180535},{"$f":"'Population 2016'!AJ143*'Prevalence Rates'!AJ143","v":133.22093666585778},{"$f":"'Population 2016'!AK143*'Prevalence Rates'!AK143","v":172.20390196554231},{"$f":"'Population 2016'!AL143*'Prevalence Rates'!AL143","v":131.4134239262315},{"$f":"'Population 2016'!AM143*'Prevalence Rates'!AM143","v":541.16831836932784},{"$f":"'Population 2016'!AN143*'Prevalence Rates'!AN143","v":33.056359524387283},{"$f":"'Population 2016'!AO143*'Prevalence Rates'!AO143","v":33.075214753700557},{"$f":"'Population 2016'!AP143*'Prevalence Rates'!AP143","v":206.03819461295802},{"$f":"'Population 2016'!AQ143*'Prevalence Rates'!AQ143","v":194.49434603251632},{"$f":"'Population 2016'!AR143*'Prevalence Rates'!AR143","v":7286.195999999999},{"$f":"'Population 2016'!AS143*'Prevalence Rates'!AS143","v":211.85852948313513},{"$f":"'Population 2016'!AT143*'Prevalence Rates'!AT143","v":41.243877699587472},{"$f":"'Population 2016'!AU143*'Prevalence Rates'!AU143","v":41.207085658820667},{"$f":"'Population 2016'!AV143*'Prevalence Rates'!AV143","v":152.63662217908271},{"$f":"'Population 2016'!AW143*'Prevalence Rates'!AW143","v":393.63666100461052},{"$f":"'Population 2016'!AX143*'Prevalence Rates'!AX143","v":102.97677262800289},{"$f":"'Population 2016'!AY143*'Prevalence Rates'!AY143","v":1082.4981897597668},{"$f":"'Population 2016'!AZ143*'Prevalence Rates'!AZ143","v":529.95255520504736},{"$f":"'Population 2016'!BA143*'Prevalence Rates'!BA143","v":82.159669983013828},{"$f":"'Population 2016'!BB143*'Prevalence Rates'!BB143","v":290.34729434603253},{"$f":"'Population 2016'!BC143*'Prevalence Rates'!BC143","v":123.61743392380488},141]
[null,"Female 40-44",{"$f":"'Population 2016'!C144*'Prevalence Rates'!C144","v":168.75596214511035},{"$f":"'Population 2016'!D144*'Prevalence Rates'!D144","v":529.00868721184179},{"$f":"'Population 2016'!E144*'Prevalence Rates'!E144","v":369.49831594273235},{"$f":"'Population 2016'!F144*'Prevalence Rates'!F144","v":294.83205047318614},{"$f":"'Population 2016'!G144*'Prevalence Rates'!G144","v":233.66763406940058},{"$f":"'Population 2016'!H144*'Prevalence Rates'!H144","v":500.87395195340929},{"$f":"'Population 2016'!I144*'Prevalence Rates'!I144","v":282.39301557874302},{"$f":"'Population 2016'!J144*'Prevalence Rates'!J144","v":180.4779616597913},{"$f":"'Population 2016'!K144*'Prevalence Rates'!K144","v":74.406784760980329},{"$f":"'Population 2016'!L144*'Prevalence Rates'!L144","v":413.1812791070127},{"$f":"'Population 2016'!M144*'Prevalence Rates'!M144","v":412.93837418102402},{"$f":"'Population 2016'!N144*'Prevalence Rates'!N144","v":103.43044892016498},{"$f":"'Population 2016'!O144*'Prevalence Rates'!O144","v":170.73830623635035},{"$f":"'Population 2016'!P144*'Prevalence Rates'!P144","v":47.255918466391648},{"$f":"'Population 2016'!Q144*'Prevalence Rates'!Q144","v":146.9949915069158},{"$f":"'Population 2016'!R144*'Prevalence Rates'!R144","v":68.998078136374659},{"$f":"'Population 2016'!S144*'Prevalence Rates'!S144","v":1842.3805289978159},{"$f":"'Population 2016'!T144*'Prevalence Rates'!T144","v":433.70236350400387},{"$f":"'Population 2016'!U144*'Prevalence Rates'!U144","v":129.56994904149477},{"$f":"'Population 2016'!V144*'Prevalence Rates'!V144","v":253.94807085658815},{"$f":"'Population 2016'!W144*'Prevalence Rates'!W144","v":552.39337636495986},{"$f":"'Population 2016'!X144*'Prevalence Rates'!X144","v":552.12404756127137},{"$f":"'Population 2016'!Y144*'Prevalence Rates'!Y144","v":421.41039165251141},{"$f":"'Population 2016'!Z144*'Prevalence Rates'!Z144","v":638.28934724581404},{"$f":"'Population 2016'!AA144*'Prevalence Rates'!AA144","v":2138.6543848580436},{"$f":"'Population 2016'!AB144*'Prevalence Rates'!AB144","v":732.2886406212084},{"$f":"'Population 2016'!AC144*'Prevalence Rates'!AC144","v":1165.6206493569518},{"$f":"'Population 2016'!AD144*'Prevalence Rates'!AD144","v":725.35646687697158},{"$f":"'Population 2016'!AE144*'Prevalence Rates'!AE144","v":525.08162096578485},{"$f":"'Population 2016'!AF144*'Prevalence Rates'!AF144","v":84.264838631400139},{"$f":"'Population 2016'!AG144*'Prevalence Rates'!AG144","v":525.08162096578485},{"$f":"'Population 2016'!AH144*'Prevalence Rates'!AH144","v":965.27753069643279},{"$f":"'Population 2016'!AI144*'Prevalence Rates'!AI144","v":1020.7955583596212},{"$f":"'Population 2016'!AJ144*'Prevalence Rates'!AJ144","v":141.82972094151904},{"$f":"'Population 2016'!AK144*'Prevalence Rates'!AK144","v":206.20749332686239},{"$f":"'Population 2016'!AL144*'Prevalence Rates'!AL144","v":154.32518320795924},{"$f":"'Population 2016'!AM144*'Prevalence Rates'!AM144","v":559.2235282698374},{"$f":"'Population 2016'!AN144*'Prevalence Rates'!AN144","v":44.928714001455951},{"$f":"'Population 2016'!AO144*'Prevalence Rates'!AO144","v":44.954341179325411},{"$f":"'Population 2016'!AP144*'Prevalence Rates'!AP144","v":232.83441883038097},{"$f":"'Population 2016'!AQ144*'Prevalence Rates'!AQ144","v":214.7803154574132},{"$f":"'Population 2016'!AR144*'Prevalence Rates'!AR144","v":7590.347999999999},{"$f":"'Population 2016'!AS144*'Prevalence Rates'!AS144","v":282.39966027663183},{"$f":"'Population 2016'!AT144*'Prevalence Rates'!AT144","v":42.980462023780625},{"$f":"'Population 2016'!AU144*'Prevalence Rates'!AU144","v":42.942120844455225},{"$f":"'Population 2016'!AV144*'Prevalence Rates'!AV144","v":170.68795923319578},{"$f":"'Population 2016'!AW144*'Prevalence Rates'!AW144","v":409.77813152147536},{"$f":"'Population 2016'!AX144*'Prevalence Rates'!AX144","v":106.75777723853432},{"$f":"'Population 2016'!AY144*'Prevalence Rates'!AY144","v":1131.3823635040035},{"$f":"'Population 2016'!AZ144*'Prevalence Rates'!AZ144","v":580.15858675078869},{"$f":"'Population 2016'!BA144*'Prevalence Rates'!BA144","v":88.513351128366892},{"$f":"'Population 2016'!BB144*'Prevalence Rates'!BB144","v":317.91808784275662},{"$f":"'Population 2016'!BC144*'Prevalence Rates'!BC144","v":129.7192085416161},142]
[null,"Female 45-49",{"$f":"'Population 2016'!C145*'Prevalence Rates'!C145","v":197.43643533123029},{"$f":"'Population 2016'!D145*'Prevalence Rates'!D145","v":718.70897355010936},{"$f":"'Population 2016'!E145*'Prevalence Rates'!E145","v":539.36608590148035},{"$f":"'Population 2016'!F145*'Prevalence Rates'!F145","v":379.73573161853932},{"$f":"'Population 2016'!G145*'Prevalence Rates'!G145","v":327.74529968454266},{"$f":"'Population 2016'!H145*'Prevalence Rates'!H145","v":727.00803494297509},{"$f":"'Population 2016'!I145*'Prevalence Rates'!I145","v":414.00688061150214},{"$f":"'Population 2016'!J145*'Prevalence Rates'!J145","v":249.30871147779672},{"$f":"'Population 2016'!K145*'Prevalence Rates'!K145","v":113.37110652754187},{"$f":"'Population 2016'!L145*'Prevalence Rates'!L145","v":647.16524202863388},{"$f":"'Population 2016'!M145*'Prevalence Rates'!M145","v":646.78478039310869},{"$f":"'Population 2016'!N145*'Prevalence Rates'!N145","v":149.23327347731134},{"$f":"'Population 2016'!O145*'Prevalence Rates'!O145","v":255.85253093909247},{"$f":"'Population 2016'!P145*'Prevalence Rates'!P145","v":78.127371997088105},{"$f":"'Population 2016'!Q145*'Prevalence Rates'!Q145","v":230.30197039553511},{"$f":"'Population 2016'!R145*'Prevalence Rates'!R145","v":89.972489686969197},{"$f":"'Population 2016'!S145*'Prevalence Rates'!S145","v":2452.4075855374917},{"$f":"'Population 2016'!T145*'Prevalence Rates'!T145","v":439.5621548167922},{"$f":"'Population 2016'!U145*'Prevalence Rates'!U145","v":181.80404756127155},{"$f":"'Population 2016'!V145*'Prevalence Rates'!V145","v":325.68951468090273},{"$f":"'Population 2016'!W145*'Prevalence Rates'!W145","v":780.63618150934246},{"$f":"'Population 2016'!X145*'Prevalence Rates'!X145","v":780.25556903664176},{"$f":"'Population 2016'!Y145*'Prevalence Rates'!Y145","v":558.6269876243631},{"$f":"'Population 2016'!Z145*'Prevalence Rates'!Z145","v":790.41193884979396},{"$f":"'Population 2016'!AA145*'Prevalence Rates'!AA145","v":2911.8965882067464},{"$f":"'Population 2016'!AB145*'Prevalence Rates'!AB145","v":991.05001892744508},{"$f":"'Population 2016'!AC145*'Prevalence Rates'!AC145","v":1587.1334595971853},{"$f":"'Population 2016'!AD145*'Prevalence Rates'!AD145","v":1060.0179291434119},{"$f":"'Population 2016'!AE145*'Prevalence Rates'!AE145","v":782.02602038340206},{"$f":"'Population 2016'!AF145*'Prevalence Rates'!AF145","v":112.7903834020869},{"$f":"'Population 2016'!AG145*'Prevalence Rates'!AG145","v":782.02602038340206},{"$f":"'Population 2016'!AH145*'Prevalence Rates'!AH145","v":1314.2054690609079},{"$f":"'Population 2016'!AI145*'Prevalence Rates'!AI145","v":1284.7918427566126},{"$f":"'Population 2016'!AJ145*'Prevalence Rates'!AJ145","v":212.45479009949045},{"$f":"'Population 2016'!AK145*'Prevalence Rates'!AK145","v":275.90633341421989},{"$f":"'Population 2016'!AL145*'Prevalence Rates'!AL145","v":222.57533608347495},{"$f":"'Population 2016'!AM145*'Prevalence Rates'!AM145","v":693.46260131036172},{"$f":"'Population 2016'!AN145*'Prevalence Rates'!AN145","v":68.755104100946383},{"$f":"'Population 2016'!AO145*'Prevalence Rates'!AO145","v":68.794321766561538},{"$f":"'Population 2016'!AP145*'Prevalence Rates'!AP145","v":350.18295801989819},{"$f":"'Population 2016'!AQ145*'Prevalence Rates'!AQ145","v":327.13189517107497},{"$f":"'Population 2016'!AR145*'Prevalence Rates'!AR145","v":10486.392000000003},{"$f":"'Population 2016'!AS145*'Prevalence Rates'!AS145","v":414.01662217908279},{"$f":"'Population 2016'!AT145*'Prevalence Rates'!AT145","v":69.044460082504258},{"$f":"'Population 2016'!AU145*'Prevalence Rates'!AU145","v":68.982868235865098},{"$f":"'Population 2016'!AV145*'Prevalence Rates'!AV145","v":241.9151759281728},{"$f":"'Population 2016'!AW145*'Prevalence Rates'!AW145","v":617.80581654938135},{"$f":"'Population 2016'!AX145*'Prevalence Rates'!AX145","v":138.20079107012862},{"$f":"'Population 2016'!AY145*'Prevalence Rates'!AY145","v":1587.8780296044649},{"$f":"'Population 2016'!AZ145*'Prevalence Rates'!AZ145","v":809.17608347488499},{"$f":"'Population 2016'!BA145*'Prevalence Rates'!BA145","v":144.35117689881102},{"$f":"'Population 2016'!BB145*'Prevalence Rates'!BB145","v":450.66754185877227},{"$f":"'Population 2016'!BC145*'Prevalence Rates'!BC145","v":182.01347869449165},143]
[null,"Female 50-54",{"$f":"'Population 2016'!C146*'Prevalence Rates'!C146","v":219.71697160883281},{"$f":"'Population 2016'!D146*'Prevalence Rates'!D146","v":741.87756369813167},{"$f":"'Population 2016'!E146*'Prevalence Rates'!E146","v":538.07140014559582},{"$f":"'Population 2016'!F146*'Prevalence Rates'!F146","v":426.16278573161867},{"$f":"'Population 2016'!G146*'Prevalence Rates'!G146","v":408.28858044164048},{"$f":"'Population 2016'!H146*'Prevalence Rates'!H146","v":807.31041616112611},{"$f":"'Population 2016'!I146*'Prevalence Rates'!I146","v":425.49223278330516},{"$f":"'Population 2016'!J146*'Prevalence Rates'!J146","v":264.42636738655671},{"$f":"'Population 2016'!K146*'Prevalence Rates'!K146","v":116.83281970395535},{"$f":"'Population 2016'!L146*'Prevalence Rates'!L146","v":700.44711671924301},{"$f":"'Population 2016'!M146*'Prevalence Rates'!M146","v":700.0353312302841},{"$f":"'Population 2016'!N146*'Prevalence Rates'!N146","v":183.7573889832565},{"$f":"'Population 2016'!O146*'Prevalence Rates'!O146","v":272.94866779907795},{"$f":"'Population 2016'!P146*'Prevalence Rates'!P146","v":67.038325649114313},{"$f":"'Population 2016'!Q146*'Prevalence Rates'!Q146","v":207.56515166221794},{"$f":"'Population 2016'!R146*'Prevalence Rates'!R146","v":101.8176073768503},{"$f":"'Population 2016'!S146*'Prevalence Rates'!S146","v":2492.1934045134681},{"$f":"'Population 2016'!T146*'Prevalence Rates'!T146","v":434.52419315700092},{"$f":"'Population 2016'!U146*'Prevalence Rates'!U146","v":184.36827954380004},{"$f":"'Population 2016'!V146*'Prevalence Rates'!V146","v":345.01741324921136},{"$f":"'Population 2016'!W146*'Prevalence Rates'!W146","v":843.28300849308425},{"$f":"'Population 2016'!X146*'Prevalence Rates'!X146","v":842.87185149235643},{"$f":"'Population 2016'!Y146*'Prevalence Rates'!Y146","v":592.10680708565894},{"$f":"'Population 2016'!Z146*'Prevalence Rates'!Z146","v":827.12822130550865},{"$f":"'Population 2016'!AA146*'Prevalence Rates'!AA146","v":2936.7960349429754},{"$f":"'Population 2016'!AB146*'Prevalence Rates'!AB146","v":1038.3852385343366},{"$f":"'Population 2016'!AC146*'Prevalence Rates'!AC146","v":1622.4211883038099},{"$f":"'Population 2016'!AD146*'Prevalence Rates'!AD146","v":1201.4888701771417},{"$f":"'Population 2016'!AE146*'Prevalence Rates'!AE146","v":847.03684299927204},{"$f":"'Population 2016'!AF146*'Prevalence Rates'!AF146","v":125.93772870662465},{"$f":"'Population 2016'!AG146*'Prevalence Rates'!AG146","v":847.03684299927204},{"$f":"'Population 2016'!AH146*'Prevalence Rates'!AH146","v":1304.5364290220823},{"$f":"'Population 2016'!AI146*'Prevalence Rates'!AI146","v":1256.4525542344093},{"$f":"'Population 2016'!AJ146*'Prevalence Rates'!AJ146","v":213.92168163067223},{"$f":"'Population 2016'!AK146*'Prevalence Rates'!AK146","v":301.84152875515656},{"$f":"'Population 2016'!AL146*'Prevalence Rates'!AL146","v":238.72999757340457},{"$f":"'Population 2016'!AM146*'Prevalence Rates'!AM146","v":672.95251637951969},{"$f":"'Population 2016'!AN146*'Prevalence Rates'!AN146","v":75.1017290948799},{"$f":"'Population 2016'!AO146*'Prevalence Rates'!AO146","v":75.14456685270568},{"$f":"'Population 2016'!AP146*'Prevalence Rates'!AP146","v":382.92468090269364},{"$f":"'Population 2016'!AQ146*'Prevalence Rates'!AQ146","v":315.72860470759525},{"$f":"'Population 2016'!AR146*'Prevalence Rates'!AR146","v":11017.083000000002},{"$f":"'Population 2016'!AS146*'Prevalence Rates'!AS146","v":425.50224460082507},{"$f":"'Population 2016'!AT146*'Prevalence Rates'!AT146","v":69.537634797379283},{"$f":"'Population 2016'!AU146*'Prevalence Rates'!AU146","v":69.475603008978425},{"$f":"'Population 2016'!AV146*'Prevalence Rates'!AV146","v":285.78176898810972},{"$f":"'Population 2016'!AW146*'Prevalence Rates'!AW146","v":626.85164765833554},{"$f":"'Population 2016'!AX146*'Prevalence Rates'!AX146","v":149.57014316913373},{"$f":"'Population 2016'!AY146*'Prevalence Rates'!AY146","v":1754.9704246542101},{"$f":"'Population 2016'!AZ146*'Prevalence Rates'!AZ146","v":912.76037126910978},{"$f":"'Population 2016'!BA146*'Prevalence Rates'!BA146","v":142.11124484348463},{"$f":"'Population 2016'!BB146*'Prevalence Rates'!BB146","v":447.61874545013359},{"$f":"'Population 2016'!BC146*'Prevalence Rates'!BC146","v":184.58066457170591},144]
[null,"Female 55-59",{"$f":"'Population 2016'!C147*'Prevalence Rates'!C147","v":320.24384858044158},{"$f":"'Population 2016'!D147*'Prevalence Rates'!D147","v":1070.3918466391651},{"$f":"'Population 2016'!E147*'Prevalence Rates'!E147","v":772.54248968696913},{"$f":"'Population 2016'!F147*'Prevalence Rates'!F147","v":663.06748362048052},{"$f":"'Population 2016'!G147*'Prevalence Rates'!G147","v":603.47807570977909},{"$f":"'Population 2016'!H147*'Prevalence Rates'!H147","v":1144.7494540160155},{"$f":"'Population 2016'!I147*'Prevalence Rates'!I147","v":671.92971244843477},{"$f":"'Population 2016'!J147*'Prevalence Rates'!J147","v":381.6227614656637},{"$f":"'Population 2016'!K147*'Prevalence Rates'!K147","v":178.42079592331956},{"$f":"'Population 2016'!L147*'Prevalence Rates'!L147","v":1042.2395598155786},{"$f":"'Population 2016'!M147*'Prevalence Rates'!M147","v":1041.6268381460811},{"$f":"'Population 2016'!N147*'Prevalence Rates'!N147","v":284.62293132734766},{"$f":"'Population 2016'!O147*'Prevalence Rates'!O147","v":381.61873331715594},{"$f":"'Population 2016'!P147*'Prevalence Rates'!P147","v":112.6663067216695},{"$f":"'Population 2016'!Q147*'Prevalence Rates'!Q147","v":327.4925018199466},{"$f":"'Population 2016'!R147*'Prevalence Rates'!R147","v":159.50964571705896},{"$f":"'Population 2016'!S147*'Prevalence Rates'!S147","v":3635.6638437272504},{"$f":"'Population 2016'!T147*'Prevalence Rates'!T147","v":612.49407910701291},{"$f":"'Population 2016'!U147*'Prevalence Rates'!U147","v":280.62499393351123},{"$f":"'Population 2016'!V147*'Prevalence Rates'!V147","v":494.58614413977182},{"$f":"'Population 2016'!W147*'Prevalence Rates'!W147","v":1233.8897621936421},{"$f":"'Population 2016'!X147*'Prevalence Rates'!X147","v":1233.2881582140255},{"$f":"'Population 2016'!Y147*'Prevalence Rates'!Y147","v":851.40235865081263},{"$f":"'Population 2016'!Z147*'Prevalence Rates'!Z147","v":1183.5707352584325},{"$f":"'Population 2016'!AA147*'Prevalence Rates'!AA147","v":4370.2007522446002},{"$f":"'Population 2016'!AB147*'Prevalence Rates'!AB147","v":1486.5817617083233},{"$f":"'Population 2016'!AC147*'Prevalence Rates'!AC147","v":2399.9952511526321},{"$f":"'Population 2016'!AD147*'Prevalence Rates'!AD147","v":1830.9181679204078},{"$f":"'Population 2016'!AE147*'Prevalence Rates'!AE147","v":1310.7796651298227},{"$f":"'Population 2016'!AF147*'Prevalence Rates'!AF147","v":211.03167920407668},{"$f":"'Population 2016'!AG147*'Prevalence Rates'!AG147","v":1310.7796651298227},{"$f":"'Population 2016'!AH147*'Prevalence Rates'!AH147","v":1955.0318684785245},{"$f":"'Population 2016'!AI147*'Prevalence Rates'!AI147","v":1785.0756224217419},{"$f":"'Population 2016'!AJ147*'Prevalence Rates'!AJ147","v":299.28740596942487},{"$f":"'Population 2016'!AK147*'Prevalence Rates'!AK147","v":422.63736957049258},{"$f":"'Population 2016'!AL147*'Prevalence Rates'!AL147","v":366.22314972094154},{"$f":"'Population 2016'!AM147*'Prevalence Rates'!AM147","v":952.1576316428052},{"$f":"'Population 2016'!AN147*'Prevalence Rates'!AN147","v":103.38790973064791},{"$f":"'Population 2016'!AO147*'Prevalence Rates'!AO147","v":103.44688182479982},{"$f":"'Population 2016'!AP147*'Prevalence Rates'!AP147","v":562.33355981557872},{"$f":"'Population 2016'!AQ147*'Prevalence Rates'!AQ147","v":446.13355981557862},{"$f":"'Population 2016'!AR147*'Prevalence Rates'!AR147","v":16248.494999999999},{"$f":"'Population 2016'!AS147*'Prevalence Rates'!AS147","v":671.94552293132733},{"$f":"'Population 2016'!AT147*'Prevalence Rates'!AT147","v":103.5190863867993},{"$f":"'Population 2016'!AU147*'Prevalence Rates'!AU147","v":103.42674108226159},{"$f":"'Population 2016'!AV147*'Prevalence Rates'!AV147","v":385.96107740839597},{"$f":"'Population 2016'!AW147*'Prevalence Rates'!AW147","v":989.1370419801018},{"$f":"'Population 2016'!AX147*'Prevalence Rates'!AX147","v":207.27240960931812},{"$f":"'Population 2016'!AY147*'Prevalence Rates'!AY147","v":2620.8362776025233},{"$f":"'Population 2016'!AZ147*'Prevalence Rates'!AZ147","v":1387.1590002426594},{"$f":"'Population 2016'!BA147*'Prevalence Rates'!BA147","v":217.73753943217665},{"$f":"'Population 2016'!BB147*'Prevalence Rates'!BB147","v":610.6421378306236},{"$f":"'Population 2016'!BC147*'Prevalence Rates'!BC147","v":280.94826292162094},145]
[null,"Female 60-64",{"$f":"'Population 2016'!C148*'Prevalence Rates'!C148","v":297.26829652996838},{"$f":"'Population 2016'!D148*'Prevalence Rates'!D148","v":1021.667362290706},{"$f":"'Population 2016'!E148*'Prevalence Rates'!E148","v":747.23363261344332},{"$f":"'Population 2016'!F148*'Prevalence Rates'!F148","v":585.66661004610535},{"$f":"'Population 2016'!G148*'Prevalence Rates'!G148","v":597.7963722397476},{"$f":"'Population 2016'!H148*'Prevalence Rates'!H148","v":1052.2536981315216},{"$f":"'Population 2016'!I148*'Prevalence Rates'!I148","v":605.59270262072312},{"$f":"'Population 2016'!J148*'Prevalence Rates'!J148","v":353.99973307449648},{"$f":"'Population 2016'!K148*'Prevalence Rates'!K148","v":150.68699344819217},{"$f":"'Population 2016'!L148*'Prevalence Rates'!L148","v":1022.0950308177624},{"$f":"'Population 2016'!M148*'Prevalence Rates'!M148","v":1021.4941519048775},{"$f":"'Population 2016'!N148*'Prevalence Rates'!N148","v":234.65777723853427},{"$f":"'Population 2016'!O148*'Prevalence Rates'!O148","v":314.55207473914095},{"$f":"'Population 2016'!P148*'Prevalence Rates'!P148","v":96.917253093909252},{"$f":"'Population 2016'!Q148*'Prevalence Rates'!Q148","v":285.57659548653237},{"$f":"'Population 2016'!R148*'Prevalence Rates'!R148","v":138.51090754671196},{"$f":"'Population 2016'!S148*'Prevalence Rates'!S148","v":3115.561392865809},{"$f":"'Population 2016'!T148*'Prevalence Rates'!T148","v":499.81669497694742},{"$f":"'Population 2016'!U148*'Prevalence Rates'!U148","v":284.73370541130788},{"$f":"'Population 2016'!V148*'Prevalence Rates'!V148","v":448.36314001455952},{"$f":"'Population 2016'!W148*'Prevalence Rates'!W148","v":1066.1765906333412},{"$f":"'Population 2016'!X148*'Prevalence Rates'!X148","v":1065.6567580684298},{"$f":"'Population 2016'!Y148*'Prevalence Rates'!Y148","v":780.01953894685732},{"$f":"'Population 2016'!Z148*'Prevalence Rates'!Z148","v":871.81218150934239},{"$f":"'Population 2016'!AA148*'Prevalence Rates'!AA148","v":3558.965882067459},{"$f":"'Population 2016'!AB148*'Prevalence Rates'!AB148","v":1399.5584469788887},{"$f":"'Population 2016'!AC148*'Prevalence Rates'!AC148","v":1901.1198337782087},{"$f":"'Population 2016'!AD148*'Prevalence Rates'!AD148","v":1721.6399369085175},{"$f":"'Population 2016'!AE148*'Prevalence Rates'!AE148","v":1200.1012496966753},{"$f":"'Population 2016'!AF148*'Prevalence Rates'!AF148","v":146.72430235379761},{"$f":"'Population 2016'!AG148*'Prevalence Rates'!AG148","v":1200.1012496966753},{"$f":"'Population 2016'!AH148*'Prevalence Rates'!AH148","v":1643.4996966755641},{"$f":"'Population 2016'!AI148*'Prevalence Rates'!AI148","v":1495.8755059451587},{"$f":"'Population 2016'!AJ148*'Prevalence Rates'!AJ148","v":254.23760009706379},{"$f":"'Population 2016'!AK148*'Prevalence Rates'!AK148","v":381.96515408881334},{"$f":"'Population 2016'!AL148*'Prevalence Rates'!AL148","v":365.26445037612234},{"$f":"'Population 2016'!AM148*'Prevalence Rates'!AM148","v":806.04762193642318},{"$f":"'Population 2016'!AN148*'Prevalence Rates'!AN148","v":93.642328075709784},{"$f":"'Population 2016'!AO148*'Prevalence Rates'!AO148","v":93.695741324921144},{"$f":"'Population 2016'!AP148*'Prevalence Rates'!AP148","v":506.1821766561514},{"$f":"'Population 2016'!AQ148*'Prevalence Rates'!AQ148","v":387.13125454986647},{"$f":"'Population 2016'!AR148*'Prevalence Rates'!AR148","v":14352.775},{"$f":"'Population 2016'!AS148*'Prevalence Rates'!AS148","v":605.60695219606885},{"$f":"'Population 2016'!AT148*'Prevalence Rates'!AT148","v":103.12397537005579},{"$f":"'Population 2016'!AU148*'Prevalence Rates'!AU148","v":103.0319825285125},{"$f":"'Population 2016'!AV148*'Prevalence Rates'!AV148","v":361.83851007037123},{"$f":"'Population 2016'!AW148*'Prevalence Rates'!AW148","v":826.56600339723366},{"$f":"'Population 2016'!AX148*'Prevalence Rates'!AX148","v":205.24826498422712},{"$f":"'Population 2016'!AY148*'Prevalence Rates'!AY148","v":2286.1676292162092},{"$f":"'Population 2016'!AZ148*'Prevalence Rates'!AZ148","v":1219.6220601795681},{"$f":"'Population 2016'!BA148*'Prevalence Rates'!BA148","v":196.20305751031302},{"$f":"'Population 2016'!BB148*'Prevalence Rates'!BB148","v":512.9393957777238},{"$f":"'Population 2016'!BC148*'Prevalence Rates'!BC148","v":285.06170747391405},146]
[null,"Female 65-69",{"$f":"'Population 2016'!C149*'Prevalence Rates'!C149","v":327.99463722397468},{"$f":"'Population 2016'!D149*'Prevalence Rates'!D149","v":1176.8234894443096},{"$f":"'Population 2016'!E149*'Prevalence Rates'!E149","v":877.63698131521483},{"$f":"'Population 2016'!F149*'Prevalence Rates'!F149","v":725.15914826498431},{"$f":"'Population 2016'!G149*'Prevalence Rates'!G149","v":737.99558359621449},{"$f":"'Population 2016'!H149*'Prevalence Rates'!H149","v":1324.9964620237806},{"$f":"'Population 2016'!I149*'Prevalence Rates'!I149","v":757.75789189517104},{"$f":"'Population 2016'!J149*'Prevalence Rates'!J149","v":408.74401844212571},{"$f":"'Population 2016'!K149*'Prevalence Rates'!K149","v":193.93056297015283},{"$f":"'Population 2016'!L149*'Prevalence Rates'!L149","v":1287.5451409851973},{"$f":"'Population 2016'!M149*'Prevalence Rates'!M149","v":1286.7882067459354},{"$f":"'Population 2016'!N149*'Prevalence Rates'!N149","v":285.70866294588683},{"$f":"'Population 2016'!O149*'Prevalence Rates'!O149","v":425.01346760495016},{"$f":"'Population 2016'!P149*'Prevalence Rates'!P149","v":99.578585294831356},{"$f":"'Population 2016'!Q149*'Prevalence Rates'!Q149","v":338.32427808784274},{"$f":"'Population 2016'!R149*'Prevalence Rates'!R149","v":154.32321038582867},{"$f":"'Population 2016'!S149*'Prevalence Rates'!S149","v":3814.159572919194},{"$f":"'Population 2016'!T149*'Prevalence Rates'!T149","v":558.96573647173022},{"$f":"'Population 2016'!U149*'Prevalence Rates'!U149","v":339.48352341664639},{"$f":"'Population 2016'!V149*'Prevalence Rates'!V149","v":548.83969910215956},{"$f":"'Population 2016'!W149*'Prevalence Rates'!W149","v":1362.8424678476097},{"$f":"'Population 2016'!X149*'Prevalence Rates'!X149","v":1362.1779907789371},{"$f":"'Population 2016'!Y149*'Prevalence Rates'!Y149","v":929.79054598398432},{"$f":"'Population 2016'!Z149*'Prevalence Rates'!Z149","v":865.11477796651297},{"$f":"'Population 2016'!AA149*'Prevalence Rates'!AA149","v":3892.0490900266923},{"$f":"'Population 2016'!AB149*'Prevalence Rates'!AB149","v":1630.9633195826254},{"$f":"'Population 2016'!AC149*'Prevalence Rates'!AC149","v":2062.6919364231976},{"$f":"'Population 2016'!AD149*'Prevalence Rates'!AD149","v":2061.4121766561511},{"$f":"'Population 2016'!AE149*'Prevalence Rates'!AE149","v":1413.1800776510554},{"$f":"'Population 2016'!AF149*'Prevalence Rates'!AF149","v":170.6091361320068},{"$f":"'Population 2016'!AG149*'Prevalence Rates'!AG149","v":1413.1800776510554},{"$f":"'Population 2016'!AH149*'Prevalence Rates'!AH149","v":1813.0585173501577},{"$f":"'Population 2016'!AI149*'Prevalence Rates'!AI149","v":1765.1561465663672},{"$f":"'Population 2016'!AJ149*'Prevalence Rates'!AJ149","v":329.6258189759767},{"$f":"'Population 2016'!AK149*'Prevalence Rates'!AK149","v":460.85945158942002},{"$f":"'Population 2016'!AL149*'Prevalence Rates'!AL149","v":439.19980587236108},{"$f":"'Population 2016'!AM149*'Prevalence Rates'!AM149","v":931.10820189274455},{"$f":"'Population 2016'!AN149*'Prevalence Rates'!AN149","v":112.40857122057753},{"$f":"'Population 2016'!AO149*'Prevalence Rates'!AO149","v":112.47268866779909},{"$f":"'Population 2016'!AP149*'Prevalence Rates'!AP149","v":619.34417617083227},{"$f":"'Population 2016'!AQ149*'Prevalence Rates'!AQ149","v":463.55219606891518},{"$f":"'Population 2016'!AR149*'Prevalence Rates'!AR149","v":17004.584999999999},{"$f":"'Population 2016'!AS149*'Prevalence Rates'!AS149","v":757.77572191215722},{"$f":"'Population 2016'!AT149*'Prevalence Rates'!AT149","v":108.05096214511039},{"$f":"'Population 2016'!AU149*'Prevalence Rates'!AU149","v":107.95457413249211},{"$f":"'Population 2016'!AV149*'Prevalence Rates'!AV149","v":448.14659063334136},{"$f":"'Population 2016'!AW149*'Prevalence Rates'!AW149","v":874.88186119873808},{"$f":"'Population 2016'!AX149*'Prevalence Rates'!AX149","v":219.52458141227856},{"$f":"'Population 2016'!AY149*'Prevalence Rates'!AY149","v":2860.5537733559813},{"$f":"'Population 2016'!AZ149*'Prevalence Rates'!AZ149","v":1498.8220626061634},{"$f":"'Population 2016'!BA149*'Prevalence Rates'!BA149","v":226.03518563455472},{"$f":"'Population 2016'!BB149*'Prevalence Rates'!BB149","v":610.87756612472697},{"$f":"'Population 2016'!BC149*'Prevalence Rates'!BC149","v":339.87459512254304},147]
[null,"Female 70-74",{"$f":"'Population 2016'!C150*'Prevalence Rates'!C150","v":247.44179810725547},{"$f":"'Population 2016'!D150*'Prevalence Rates'!D150","v":875.38675078864355},{"$f":"'Population 2016'!E150*'Prevalence Rates'!E150","v":648.77253093909246},{"$f":"'Population 2016'!F150*'Prevalence Rates'!F150","v":545.25133462751762},{"$f":"'Population 2016'!G150*'Prevalence Rates'!G150","v":550.17665615141948},{"$f":"'Population 2016'!H150*'Prevalence Rates'!H150","v":1068.6663710264497},{"$f":"'Population 2016'!I150*'Prevalence Rates'!I150","v":571.69456794467362},{"$f":"'Population 2016'!J150*'Prevalence Rates'!J150","v":326.29990293618056},{"$f":"'Population 2016'!K150*'Prevalence Rates'!K150","v":150.71483863140011},{"$f":"'Population 2016'!L150*'Prevalence Rates'!L150","v":1047.6368604707593},{"$f":"'Population 2016'!M150*'Prevalence Rates'!M150","v":1047.0209657850037},{"$f":"'Population 2016'!N150*'Prevalence Rates'!N150","v":216.36696190245078},{"$f":"'Population 2016'!O150*'Prevalence Rates'!O150","v":335.5950497452074},{"$f":"'Population 2016'!P150*'Prevalence Rates'!P150","v":76.453700558116964},{"$f":"'Population 2016'!Q150*'Prevalence Rates'!Q150","v":269.65223246784757},{"$f":"'Population 2016'!R150*'Prevalence Rates'!R150","v":123.17540645474399},{"$f":"'Population 2016'!S150*'Prevalence Rates'!S150","v":2916.9507643775778},{"$f":"'Population 2016'!T150*'Prevalence Rates'!T150","v":419.02776025236597},{"$f":"'Population 2016'!U150*'Prevalence Rates'!U150","v":276.1004610531424},{"$f":"'Population 2016'!V150*'Prevalence Rates'!V150","v":393.80328803688417},{"$f":"'Population 2016'!W150*'Prevalence Rates'!W150","v":1037.4596044649356},{"$f":"'Population 2016'!X150*'Prevalence Rates'!X150","v":1036.9537733559814},{"$f":"'Population 2016'!Y150*'Prevalence Rates'!Y150","v":700.75568066003382},{"$f":"'Population 2016'!Z150*'Prevalence Rates'!Z150","v":672.38582868235858},{"$f":"'Population 2016'!AA150*'Prevalence Rates'!AA150","v":3088.3707837903421},{"$f":"'Population 2016'!AB150*'Prevalence Rates'!AB150","v":1255.879077893715},{"$f":"'Population 2016'!AC150*'Prevalence Rates'!AC150","v":1596.5784554719723},{"$f":"'Population 2016'!AD150*'Prevalence Rates'!AD150","v":1611.3387672894928},{"$f":"'Population 2016'!AE150*'Prevalence Rates'!AE150","v":1133.1817277359862},{"$f":"'Population 2016'!AF150*'Prevalence Rates'!AF150","v":142.10229313273476},{"$f":"'Population 2016'!AG150*'Prevalence Rates'!AG150","v":1133.1817277359862},{"$f":"'Population 2016'!AH150*'Prevalence Rates'!AH150","v":1477.3613127881581},{"$f":"'Population 2016'!AI150*'Prevalence Rates'!AI150","v":1361.0580538704196},{"$f":"'Population 2016'!AJ150*'Prevalence Rates'!AJ150","v":249.50843241931568},{"$f":"'Population 2016'!AK150*'Prevalence Rates'!AK150","v":390.07722640135887},{"$f":"'Population 2016'!AL150*'Prevalence Rates'!AL150","v":365.81310361562726},{"$f":"'Population 2016'!AM150*'Prevalence Rates'!AM150","v":729.73140014559579},{"$f":"'Population 2016'!AN150*'Prevalence Rates'!AN150","v":113.3989551079835},{"$f":"'Population 2016'!AO150*'Prevalence Rates'!AO150","v":113.46363746663432},{"$f":"'Population 2016'!AP150*'Prevalence Rates'!AP150","v":535.99855617568551},{"$f":"'Population 2016'!AQ150*'Prevalence Rates'!AQ150","v":353.6698616840572},{"$f":"'Population 2016'!AR150*'Prevalence Rates'!AR150","v":13365.63},{"$f":"'Population 2016'!AS150*'Prevalence Rates'!AS150","v":571.70801989808297},{"$f":"'Population 2016'!AT150*'Prevalence Rates'!AT150","v":99.739349672409602},{"$f":"'Population 2016'!AU150*'Prevalence Rates'!AU150","v":99.650376122300415},{"$f":"'Population 2016'!AV150*'Prevalence Rates'!AV150","v":357.7395777723853},{"$f":"'Population 2016'!AW150*'Prevalence Rates'!AW150","v":738.45339723368113},{"$f":"'Population 2016'!AX150*'Prevalence Rates'!AX150","v":178.83683571948555},{"$f":"'Population 2016'!AY150*'Prevalence Rates'!AY150","v":2233.3585052171798},{"$f":"'Population 2016'!AZ150*'Prevalence Rates'!AZ150","v":1195.3151589420042},{"$f":"'Population 2016'!BA150*'Prevalence Rates'!BA150","v":164.05027905848095},{"$f":"'Population 2016'!BB150*'Prevalence Rates'!BB150","v":482.16249696675567},{"$f":"'Population 2016'!BC150*'Prevalence Rates'!BC150","v":276.41851795680657},148]
[null,"Female 75-79",{"$f":"'Population 2016'!C151*'Prevalence Rates'!C151","v":290.61283911671916},{"$f":"'Population 2016'!D151*'Prevalence Rates'!D151","v":918.73560786216922},{"$f":"'Population 2016'!E151*'Prevalence Rates'!E151","v":644.60854161611269},{"$f":"'Population 2016'!F151*'Prevalence Rates'!F151","v":522.95428779422468},{"$f":"'Population 2016'!G151*'Prevalence Rates'!G151","v":575.62012618296524},{"$f":"'Population 2016'!H151*'Prevalence Rates'!H151","v":1006.8752780878427},{"$f":"'Population 2016'!I151*'Prevalence Rates'!I151","v":586.03140604222278},{"$f":"'Population 2016'!J151*'Prevalence Rates'!J151","v":339.28861441397726},{"$f":"'Population 2016'!K151*'Prevalence Rates'!K151","v":149.12654938121813},{"$f":"'Population 2016'!L151*'Prevalence Rates'!L151","v":1014.0152601795678},{"$f":"'Population 2016'!M151*'Prevalence Rates'!M151","v":1013.4191312788158},{"$f":"'Population 2016'!N151*'Prevalence Rates'!N151","v":265.3055083717544},{"$f":"'Population 2016'!O151*'Prevalence Rates'!O151","v":304.04879640863862},{"$f":"'Population 2016'!P151*'Prevalence Rates'!P151","v":71.445336083474885},{"$f":"'Population 2016'!Q151*'Prevalence Rates'!Q151","v":291.78964571705893},{"$f":"'Population 2016'!R151*'Prevalence Rates'!R151","v":154.2979107012861},{"$f":"'Population 2016'!S151*'Prevalence Rates'!S151","v":2961.8545256005818},{"$f":"'Population 2016'!T151*'Prevalence Rates'!T151","v":446.06060664887167},{"$f":"'Population 2016'!U151*'Prevalence Rates'!U151","v":310.92847367143895},{"$f":"'Population 2016'!V151*'Prevalence Rates'!V151","v":415.08034942975002},{"$f":"'Population 2016'!W151*'Prevalence Rates'!W151","v":1037.3083052657121},{"$f":"'Population 2016'!X151*'Prevalence Rates'!X151","v":1036.8025479252608},{"$f":"'Population 2016'!Y151*'Prevalence Rates'!Y151","v":733.89252899781593},{"$f":"'Population 2016'!Z151*'Prevalence Rates'!Z151","v":714.88755156515401},{"$f":"'Population 2016'!AA151*'Prevalence Rates'!AA151","v":3274.5227566124722},{"$f":"'Population 2016'!AB151*'Prevalence Rates'!AB151","v":1309.840843484591},{"$f":"'Population 2016'!AC151*'Prevalence Rates'!AC151","v":1705.2021963115744},{"$f":"'Population 2016'!AD151*'Prevalence Rates'!AD151","v":1563.689405969425},{"$f":"'Population 2016'!AE151*'Prevalence Rates'!AE151","v":1055.0610167435086},{"$f":"'Population 2016'!AF151*'Prevalence Rates'!AF151","v":162.64485319097309},{"$f":"'Population 2016'!AG151*'Prevalence Rates'!AG151","v":1055.0610167435086},{"$f":"'Population 2016'!AH151*'Prevalence Rates'!AH151","v":1554.4815680660033},{"$f":"'Population 2016'!AI151*'Prevalence Rates'!AI151","v":1391.7220286338265},{"$f":"'Population 2016'!AJ151*'Prevalence Rates'!AJ151","v":250.43821887891286},{"$f":"'Population 2016'!AK151*'Prevalence Rates'!AK151","v":400.28043436059204},{"$f":"'Population 2016'!AL151*'Prevalence Rates'!AL151","v":368.45125940305752},{"$f":"'Population 2016'!AM151*'Prevalence Rates'!AM151","v":717.71278573161862},{"$f":"'Population 2016'!AN151*'Prevalence Rates'!AN151","v":116.54367920407667},{"$f":"'Population 2016'!AO151*'Prevalence Rates'!AO151","v":116.61015530211115},{"$f":"'Population 2016'!AP151*'Prevalence Rates'!AP151","v":518.56896141713173},{"$f":"'Population 2016'!AQ151*'Prevalence Rates'!AQ151","v":361.63895656394072},{"$f":"'Population 2016'!AR151*'Prevalence Rates'!AR151","v":13591.276},{"$f":"'Population 2016'!AS151*'Prevalence Rates'!AS151","v":586.04519534093663},{"$f":"'Population 2016'!AT151*'Prevalence Rates'!AT151","v":98.688259160397948},{"$f":"'Population 2016'!AU151*'Prevalence Rates'!AU151","v":98.600223246784751},{"$f":"'Population 2016'!AV151*'Prevalence Rates'!AV151","v":327.10582140257213},{"$f":"'Population 2016'!AW151*'Prevalence Rates'!AW151","v":821.2043921378305},{"$f":"'Population 2016'!AX151*'Prevalence Rates'!AX151","v":192.60101917010434},{"$f":"'Population 2016'!AY151*'Prevalence Rates'!AY151","v":2239.3521669497691},{"$f":"'Population 2016'!AZ151*'Prevalence Rates'!AZ151","v":1201.2982513952925},{"$f":"'Population 2016'!BA151*'Prevalence Rates'!BA151","v":170.75373938364473},{"$f":"'Population 2016'!BB151*'Prevalence Rates'!BB151","v":456.90639165251156},{"$f":"'Population 2016'!BC151*'Prevalence Rates'!BC151","v":311.286651079835},149]
[null,"Female 80-84",{"$f":"'Population 2016'!C152*'Prevalence Rates'!C152","v":263.28577287066241},{"$f":"'Population 2016'!D152*'Prevalence Rates'!D152","v":677.84060179568053},{"$f":"'Population 2016'!E152*'Prevalence Rates'!E152","v":418.2244892016501},{"$f":"'Population 2016'!F152*'Prevalence Rates'!F152","v":398.92845425867506},{"$f":"'Population 2016'!G152*'Prevalence Rates'!G152","v":407.8817665615141},{"$f":"'Population 2016'!H152*'Prevalence Rates'!H152","v":735.92439189517108},{"$f":"'Population 2016'!I152*'Prevalence Rates'!I152","v":432.68333996602763},{"$f":"'Population 2016'!J152*'Prevalence Rates'!J152","v":243.88343605920898},{"$f":"'Population 2016'!K152*'Prevalence Rates'!K152","v":101.7084299927202},{"$f":"'Population 2016'!L152*'Prevalence Rates'!L152","v":749.45853618053854},{"$f":"'Population 2016'!M152*'Prevalence Rates'!M152","v":749.01793739383652},{"$f":"'Population 2016'!N152*'Prevalence Rates'!N152","v":263.31571705896624},{"$f":"'Population 2016'!O152*'Prevalence Rates'!O152","v":223.29680660033969},{"$f":"'Population 2016'!P152*'Prevalence Rates'!P152","v":46.829716088328077},{"$f":"'Population 2016'!Q152*'Prevalence Rates'!Q152","v":227.14164037854889},{"$f":"'Population 2016'!R152*'Prevalence Rates'!R152","v":150.0952438728464},{"$f":"'Population 2016'!S152*'Prevalence Rates'!S152","v":2181.0807765105556},{"$f":"'Population 2016'!T152*'Prevalence Rates'!T152","v":353.54803688425142},{"$f":"'Population 2016'!U152*'Prevalence Rates'!U152","v":232.7382091725309},{"$f":"'Population 2016'!V152*'Prevalence Rates'!V152","v":287.94481193884974},{"$f":"'Population 2016'!W152*'Prevalence Rates'!W152","v":751.11193448192182},{"$f":"'Population 2016'!X152*'Prevalence Rates'!X152","v":750.74571705896619},{"$f":"'Population 2016'!Y152*'Prevalence Rates'!Y152","v":517.77693763649597},{"$f":"'Population 2016'!Z152*'Prevalence Rates'!Z152","v":645.32720213540392},{"$f":"'Population 2016'!AA152*'Prevalence Rates'!AA152","v":2625.8687551565149},{"$f":"'Population 2016'!AB152*'Prevalence Rates'!AB152","v":1001.2240611502062},{"$f":"'Population 2016'!AC152*'Prevalence Rates'!AC152","v":1408.3922577044405},{"$f":"'Population 2016'!AD152*'Prevalence Rates'!AD152","v":1134.8676685270566},{"$f":"'Population 2016'!AE152*'Prevalence Rates'!AE152","v":776.29260131036142},{"$f":"'Population 2016'!AF152*'Prevalence Rates'!AF152","v":118.68678476098036},{"$f":"'Population 2016'!AG152*'Prevalence Rates'!AG152","v":776.29260131036142},{"$f":"'Population 2016'!AH152*'Prevalence Rates'!AH152","v":1207.1044295074009},{"$f":"'Population 2016'!AI152*'Prevalence Rates'!AI152","v":1035.3526503275903},{"$f":"'Population 2016'!AJ152*'Prevalence Rates'!AJ152","v":172.97709536520262},{"$f":"'Population 2016'!AK152*'Prevalence Rates'!AK152","v":333.89566610046103},{"$f":"'Population 2016'!AL152*'Prevalence Rates'!AL152","v":255.8491337054113},{"$f":"'Population 2016'!AM152*'Prevalence Rates'!AM152","v":550.66463965057028},{"$f":"'Population 2016'!AN152*'Prevalence Rates'!AN152","v":66.776378354768255},{"$f":"'Population 2016'!AO152*'Prevalence Rates'!AO152","v":66.814467362290713},{"$f":"'Population 2016'!AP152*'Prevalence Rates'!AP152","v":408.88339966027667},{"$f":"'Population 2016'!AQ152*'Prevalence Rates'!AQ152","v":256.93910215966991},{"$f":"'Population 2016'!AR152*'Prevalence Rates'!AR152","v":10302.048999999999},{"$f":"'Population 2016'!AS152*'Prevalence Rates'!AS152","v":432.69352099005096},{"$f":"'Population 2016'!AT152*'Prevalence Rates'!AT152","v":72.841334142198491},{"$f":"'Population 2016'!AU152*'Prevalence Rates'!AU152","v":72.776355253579226},{"$f":"'Population 2016'!AV152*'Prevalence Rates'!AV152","v":249.81238534336325},{"$f":"'Population 2016'!AW152*'Prevalence Rates'!AW152","v":643.56798107255509},{"$f":"'Population 2016'!AX152*'Prevalence Rates'!AX152","v":143.24700800776512},{"$f":"'Population 2016'!AY152*'Prevalence Rates'!AY152","v":1737.0174472215479},{"$f":"'Population 2016'!AZ152*'Prevalence Rates'!AZ152","v":982.40533656879404},{"$f":"'Population 2016'!BA152*'Prevalence Rates'!BA152","v":144.07346760495025},{"$f":"'Population 2016'!BB152*'Prevalence Rates'!BB152","v":314.94848095122546},{"$f":"'Population 2016'!BC152*'Prevalence Rates'!BC152","v":233.0063144625091},150]
[null,"Female 85-89",{"$f":"'Population 2016'!C153*'Prevalence Rates'!C153","v":173.94728706624602},{"$f":"'Population 2016'!D153*'Prevalence Rates'!D153","v":471.44130065518073},{"$f":"'Population 2016'!E153*'Prevalence Rates'!E153","v":301.63978645959719},{"$f":"'Population 2016'!F153*'Prevalence Rates'!F153","v":260.837835476826},{"$f":"'Population 2016'!G153*'Prevalence Rates'!G153","v":245.57378548895895},{"$f":"'Population 2016'!H153*'Prevalence Rates'!H153","v":415.27648386314002},{"$f":"'Population 2016'!I153*'Prevalence Rates'!I153","v":252.61071465663673},{"$f":"'Population 2016'!J153*'Prevalence Rates'!J153","v":153.53283669012379},{"$f":"'Population 2016'!K153*'Prevalence Rates'!K153","v":74.219665129822857},{"$f":"'Population 2016'!L153*'Prevalence Rates'!L153","v":511.28617549138545},{"$f":"'Population 2016'!M153*'Prevalence Rates'!M153","v":510.98559572919197},{"$f":"'Population 2016'!N153*'Prevalence Rates'!N153","v":147.24455714632367},{"$f":"'Population 2016'!O153*'Prevalence Rates'!O153","v":101.11553506430477},{"$f":"'Population 2016'!P153*'Prevalence Rates'!P153","v":30.019048774569278},{"$f":"'Population 2016'!Q153*'Prevalence Rates'!Q153","v":175.88916767774811},{"$f":"'Population 2016'!R153*'Prevalence Rates'!R153","v":92.458670225673373},{"$f":"'Population 2016'!S153*'Prevalence Rates'!S153","v":1390.4823392380488},{"$f":"'Population 2016'!T153*'Prevalence Rates'!T153","v":245.53336083474886},{"$f":"'Population 2016'!U153*'Prevalence Rates'!U153","v":149.66105314244115},{"$f":"'Population 2016'!V153*'Prevalence Rates'!V153","v":151.18820674593545},{"$f":"'Population 2016'!W153*'Prevalence Rates'!W153","v":500.53657122057746},{"$f":"'Population 2016'!X153*'Prevalence Rates'!X153","v":500.29252608590144},{"$f":"'Population 2016'!Y153*'Prevalence Rates'!Y153","v":297.80213928658088},{"$f":"'Population 2016'!Z153*'Prevalence Rates'!Z153","v":389.12472700800771},{"$f":"'Population 2016'!AA153*'Prevalence Rates'!AA153","v":1576.669313273477},{"$f":"'Population 2016'!AB153*'Prevalence Rates'!AB153","v":645.72126765348219},{"$f":"'Population 2016'!AC153*'Prevalence Rates'!AC153","v":864.56402596457156},{"$f":"'Population 2016'!AD153*'Prevalence Rates'!AD153","v":736.24464498908037},{"$f":"'Population 2016'!AE153*'Prevalence Rates'!AE153","v":523.98137345304531},{"$f":"'Population 2016'!AF153*'Prevalence Rates'!AF153","v":96.15827469060909},{"$f":"'Population 2016'!AG153*'Prevalence Rates'!AG153","v":523.98137345304531},{"$f":"'Population 2016'!AH153*'Prevalence Rates'!AH153","v":706.58253093909241},{"$f":"'Population 2016'!AI153*'Prevalence Rates'!AI153","v":660.72210822615864},{"$f":"'Population 2016'!AJ153*'Prevalence Rates'!AJ153","v":90.27424168891045},{"$f":"'Population 2016'!AK153*'Prevalence Rates'!AK153","v":176.14968211599125},{"$f":"'Population 2016'!AL153*'Prevalence Rates'!AL153","v":161.7764717301626},{"$f":"'Population 2016'!AM153*'Prevalence Rates'!AM153","v":291.17878427566126},{"$f":"'Population 2016'!AN153*'Prevalence Rates'!AN153","v":49.137335015772869},{"$f":"'Population 2016'!AO153*'Prevalence Rates'!AO153","v":49.165362776025241},{"$f":"'Population 2016'!AP153*'Prevalence Rates'!AP153","v":279.08881824799806},{"$f":"'Population 2016'!AQ153*'Prevalence Rates'!AQ153","v":146.5797961659791},{"$f":"'Population 2016'!AR153*'Prevalence Rates'!AR153","v":6453.2029999999995},{"$f":"'Population 2016'!AS153*'Prevalence Rates'!AS153","v":252.61665857801503},{"$f":"'Population 2016'!AT153*'Prevalence Rates'!AT153","v":42.882398325649106},{"$f":"'Population 2016'!AU153*'Prevalence Rates'!AU153","v":42.844144625090991},{"$f":"'Population 2016'!AV153*'Prevalence Rates'!AV153","v":147.78504974520746},{"$f":"'Population 2016'!AW153*'Prevalence Rates'!AW153","v":404.19563698131515},{"$f":"'Population 2016'!AX153*'Prevalence Rates'!AX153","v":81.253554962387767},{"$f":"'Population 2016'!AY153*'Prevalence Rates'!AY153","v":1133.9774278087841},{"$f":"'Population 2016'!AZ153*'Prevalence Rates'!AZ153","v":631.71217859742785},{"$f":"'Population 2016'!BA153*'Prevalence Rates'!BA153","v":79.447920407668036},{"$f":"'Population 2016'!BB153*'Prevalence Rates'!BB153","v":162.42626061635528},{"$f":"'Population 2016'!BC153*'Prevalence Rates'!BC153","v":149.83345680660034},151]
[null,"Female 90+",{"$f":"'Population 2016'!C154*'Prevalence Rates'!C154","v":99.848895899053602},{"$f":"'Population 2016'!D154*'Prevalence Rates'!D154","v":263.8921426838146},{"$f":"'Population 2016'!E154*'Prevalence Rates'!E154","v":165.93272506673139},{"$f":"'Population 2016'!F154*'Prevalence Rates'!F154","v":175.1705071584567},{"$f":"'Population 2016'!G154*'Prevalence Rates'!G154","v":163.5147318611987},{"$f":"'Population 2016'!H154*'Prevalence Rates'!H154","v":247.12354695462264},{"$f":"'Population 2016'!I154*'Prevalence Rates'!I154","v":147.62137481193884},{"$f":"'Population 2016'!J154*'Prevalence Rates'!J154","v":89.718776995874805},{"$f":"'Population 2016'!K154*'Prevalence Rates'!K154","v":30.924860470759523},{"$f":"'Population 2016'!L154*'Prevalence Rates'!L154","v":294.50654181024015},{"$f":"'Population 2016'!M154*'Prevalence Rates'!M154","v":294.3334045134676},{"$f":"'Population 2016'!N154*'Prevalence Rates'!N154","v":87.550817762678946},{"$f":"'Population 2016'!O154*'Prevalence Rates'!O154","v":68.112547925260841},{"$f":"'Population 2016'!P154*'Prevalence Rates'!P154","v":28.217905848095121},{"$f":"'Population 2016'!Q154*'Prevalence Rates'!Q154","v":100.17528755156515},{"$f":"'Population 2016'!R154*'Prevalence Rates'!R154","v":49.231239990293616},{"$f":"'Population 2016'!S154*'Prevalence Rates'!S154","v":812.55950497452068},{"$f":"'Population 2016'!T154*'Prevalence Rates'!T154","v":145.01970395535065},{"$f":"'Population 2016'!U154*'Prevalence Rates'!U154","v":105.06816792040766},{"$f":"'Population 2016'!V154*'Prevalence Rates'!V154","v":71.470788643533112},{"$f":"'Population 2016'!W154*'Prevalence Rates'!W154","v":276.98404125212323},{"$f":"'Population 2016'!X154*'Prevalence Rates'!X154","v":276.84899296287307},{"$f":"'Population 2016'!Y154*'Prevalence Rates'!Y154","v":158.22748653239503},{"$f":"'Population 2016'!Z154*'Prevalence Rates'!Z154","v":263.7783547682601},{"$f":"'Population 2016'!AA154*'Prevalence Rates'!AA154","v":996.89892259160376},{"$f":"'Population 2016'!AB154*'Prevalence Rates'!AB154","v":373.30760786216933},{"$f":"'Population 2016'!AC154*'Prevalence Rates'!AC154","v":634.35849623877687},{"$f":"'Population 2016'!AD154*'Prevalence Rates'!AD154","v":402.24686920650328},{"$f":"'Population 2016'!AE154*'Prevalence Rates'!AE154","v":254.89241688910457},{"$f":"'Population 2016'!AF154*'Prevalence Rates'!AF154","v":84.069805872361087},{"$f":"'Population 2016'!AG154*'Prevalence Rates'!AG154","v":254.89241688910457},{"$f":"'Population 2016'!AH154*'Prevalence Rates'!AH154","v":362.31809075467118},{"$f":"'Population 2016'!AI154*'Prevalence Rates'!AI154","v":400.08549769473427},{"$f":"'Population 2016'!AJ154*'Prevalence Rates'!AJ154","v":63.483176413491861},{"$f":"'Population 2016'!AK154*'Prevalence Rates'!AK154","v":111.73673865566609},{"$f":"'Population 2016'!AL154*'Prevalence Rates'!AL154","v":106.18808056297016},{"$f":"'Population 2016'!AM154*'Prevalence Rates'!AM154","v":131.39360106770204},{"$f":"'Population 2016'!AN154*'Prevalence Rates'!AN154","v":42.207710846881824},{"$f":"'Population 2016'!AO154*'Prevalence Rates'!AO154","v":42.231785974278097},{"$f":"'Population 2016'!AP154*'Prevalence Rates'!AP154","v":175.49689881096822},{"$f":"'Population 2016'!AQ154*'Prevalence Rates'!AQ154","v":137.52467362290705},{"$f":"'Population 2016'!AR154*'Prevalence Rates'!AR154","v":3873.5259999999998},{"$f":"'Population 2016'!AS154*'Prevalence Rates'!AS154","v":147.62484833778208},{"$f":"'Population 2016'!AT154*'Prevalence Rates'!AT154","v":34.658376728949278},{"$f":"'Population 2016'!AU154*'Prevalence Rates'!AU154","v":34.627459354525598},{"$f":"'Population 2016'!AV154*'Prevalence Rates'!AV154","v":72.346656151419552},{"$f":"'Population 2016'!AW154*'Prevalence Rates'!AW154","v":223.06473914098518},{"$f":"'Population 2016'!AX154*'Prevalence Rates'!AX154","v":58.382183935937881},{"$f":"'Population 2016'!AY154*'Prevalence Rates'!AY154","v":682.29330259645701},{"$f":"'Population 2016'!AZ154*'Prevalence Rates'!AZ154","v":402.94876098034462},{"$f":"'Population 2016'!BA154*'Prevalence Rates'!BA154","v":43.281329774326615},{"$f":"'Population 2016'!BB154*'Prevalence Rates'!BB154","v":100.36094151904878},{"$f":"'Population 2016'!BC154*'Prevalence Rates'!BC154","v":105.18920232953165},152]
[null,"Male 0-4",{"$f":"'Population 2016'!C155*'Prevalence Rates'!C155","v":0},{"$f":"'Population 2016'!D155*'Prevalence Rates'!D155","v":0},{"$f":"'Population 2016'!E155*'Prevalence Rates'!E155","v":0},{"$f":"'Population 2016'!F155*'Prevalence Rates'!F155","v":0},{"$f":"'Population 2016'!G155*'Prevalence Rates'!G155","v":0},{"$f":"'Population 2016'!H155*'Prevalence Rates'!H155","v":0},{"$f":"'Population 2016'!I155*'Prevalence Rates'!I155","v":0},{"$f":"'Population 2016'!J155*'Prevalence Rates'!J155","v":0},{"$f":"'Population 2016'!K155*'Prevalence Rates'!K155","v":0},{"$f":"'Population 2016'!L155*'Prevalence Rates'!L155","v":0},{"$f":"'Population 2016'!M155*'Prevalence Rates'!M155","v":0},{"$f":"'Population 2016'!N155*'Prevalence Rates'!N155","v":0},{"$f":"'Population 2016'!O155*'Prevalence Rates'!O155","v":0},{"$f":"'Population 2016'!P155*'Prevalence Rates'!P155","v":0},{"$f":"'Population 2016'!Q155*'Prevalence Rates'!Q155","v":0},{"$f":"'Population 2016'!R155*'Prevalence Rates'!R155","v":0},{"$f":"'Population 2016'!S155*'Prevalence Rates'!S155","v":0},{"$f":"'Population 2016'!T155*'Prevalence Rates'!T155","v":0},{"$f":"'Population 2016'!U155*'Prevalence Rates'!U155","v":0},{"$f":"'Population 2016'!V155*'Prevalence Rates'!V155","v":0},{"$f":"'Population 2016'!W155*'Prevalence Rates'!W155","v":0},{"$f":"'Population 2016'!X155*'Prevalence Rates'!X155","v":0},{"$f":"'Population 2016'!Y155*'Prevalence Rates'!Y155","v":0},{"$f":"'Population 2016'!Z155*'Prevalence Rates'!Z155","v":0},{"$f":"'Population 2016'!AA155*'Prevalence Rates'!AA155","v":0},{"$f":"'Population 2016'!AB155*'Prevalence Rates'!AB155","v":0},{"$f":"'Population 2016'!AC155*'Prevalence Rates'!AC155","v":0},{"$f":"'Population 2016'!AD155*'Prevalence Rates'!AD155","v":0},{"$f":"'Population 2016'!AE155*'Prevalence Rates'!AE155","v":0},{"$f":"'Population 2016'!AF155*'Prevalence Rates'!AF155","v":0},{"$f":"'Population 2016'!AG155*'Prevalence Rates'!AG155","v":0},{"$f":"'Population 2016'!AH155*'Prevalence Rates'!AH155","v":0},{"$f":"'Population 2016'!AI155*'Prevalence Rates'!AI155","v":0},{"$f":"'Population 2016'!AJ155*'Prevalence Rates'!AJ155","v":0},{"$f":"'Population 2016'!AK155*'Prevalence Rates'!AK155","v":0},{"$f":"'Population 2016'!AL155*'Prevalence Rates'!AL155","v":0},{"$f":"'Population 2016'!AM155*'Prevalence Rates'!AM155","v":0},{"$f":"'Population 2016'!AN155*'Prevalence Rates'!AN155","v":0},{"$f":"'Population 2016'!AO155*'Prevalence Rates'!AO155","v":0},{"$f":"'Population 2016'!AP155*'Prevalence Rates'!AP155","v":0},{"$f":"'Population 2016'!AQ155*'Prevalence Rates'!AQ155","v":0},{"$f":"'Population 2016'!AR155*'Prevalence Rates'!AR155","v":0},{"$f":"'Population 2016'!AS155*'Prevalence Rates'!AS155","v":0},{"$f":"'Population 2016'!AT155*'Prevalence Rates'!AT155","v":0},{"$f":"'Population 2016'!AU155*'Prevalence Rates'!AU155","v":0},{"$f":"'Population 2016'!AV155*'Prevalence Rates'!AV155","v":0},{"$f":"'Population 2016'!AW155*'Prevalence Rates'!AW155","v":0},{"$f":"'Population 2016'!AX155*'Prevalence Rates'!AX155","v":0},{"$f":"'Population 2016'!AY155*'Prevalence Rates'!AY155","v":0},{"$f":"'Population 2016'!AZ155*'Prevalence Rates'!AZ155","v":0},{"$f":"'Population 2016'!BA155*'Prevalence Rates'!BA155","v":0},{"$f":"'Population 2016'!BB155*'Prevalence Rates'!BB155","v":0},{"$f":"'Population 2016'!BC155*'Prevalence Rates'!BC155","v":0},153]
[null,"Male 5-9",{"$f":"'Population 2016'!C156*'Prevalence Rates'!C156","v":0},{"$f":"'Population 2016'!D156*'Prevalence Rates'!D156","v":0},{"$f":"'Population 2016'!E156*'Prevalence Rates'!E156","v":0},{"$f":"'Population 2016'!F156*'Prevalence Rates'!F156","v":0},{"$f":"'Population 2016'!G156*'Prevalence Rates'!G156","v":0},{"$f":"'Population 2016'!H156*'Prevalence Rates'!H156","v":0},{"$f":"'Population 2016'!I156*'Prevalence Rates'!I156","v":0},{"$f":"'Population 2016'!J156*'Prevalence Rates'!J156","v":0},{"$f":"'Population 2016'!K156*'Prevalence Rates'!K156","v":0},{"$f":"'Population 2016'!L156*'Prevalence Rates'!L156","v":0},{"$f":"'Population 2016'!M156*'Prevalence Rates'!M156","v":0},{"$f":"'Population 2016'!N156*'Prevalence Rates'!N156","v":0},{"$f":"'Population 2016'!O156*'Prevalence Rates'!O156","v":0},{"$f":"'Population 2016'!P156*'Prevalence Rates'!P156","v":0},{"$f":"'Population 2016'!Q156*'Prevalence Rates'!Q156","v":0},{"$f":"'Population 2016'!R156*'Prevalence Rates'!R156","v":0},{"$f":"'Population 2016'!S156*'Prevalence Rates'!S156","v":0},{"$f":"'Population 2016'!T156*'Prevalence Rates'!T156","v":0},{"$f":"'Population 2016'!U156*'Prevalence Rates'!U156","v":0},{"$f":"'Population 2016'!V156*'Prevalence Rates'!V156","v":0},{"$f":"'Population 2016'!W156*'Prevalence Rates'!W156","v":0},{"$f":"'Population 2016'!X156*'Prevalence Rates'!X156","v":0},{"$f":"'Population 2016'!Y156*'Prevalence Rates'!Y156","v":0},{"$f":"'Population 2016'!Z156*'Prevalence Rates'!Z156","v":0},{"$f":"'Population 2016'!AA156*'Prevalence Rates'!AA156","v":0},{"$f":"'Population 2016'!AB156*'Prevalence Rates'!AB156","v":0},{"$f":"'Population 2016'!AC156*'Prevalence Rates'!AC156","v":0},{"$f":"'Population 2016'!AD156*'Prevalence Rates'!AD156","v":0},{"$f":"'Population 2016'!AE156*'Prevalence Rates'!AE156","v":0},{"$f":"'Population 2016'!AF156*'Prevalence Rates'!AF156","v":0},{"$f":"'Population 2016'!AG156*'Prevalence Rates'!AG156","v":0},{"$f":"'Population 2016'!AH156*'Prevalence Rates'!AH156","v":0},{"$f":"'Population 2016'!AI156*'Prevalence Rates'!AI156","v":0},{"$f":"'Population 2016'!AJ156*'Prevalence Rates'!AJ156","v":0},{"$f":"'Population 2016'!AK156*'Prevalence Rates'!AK156","v":0},{"$f":"'Population 2016'!AL156*'Prevalence Rates'!AL156","v":0},{"$f":"'Population 2016'!AM156*'Prevalence Rates'!AM156","v":0},{"$f":"'Population 2016'!AN156*'Prevalence Rates'!AN156","v":0},{"$f":"'Population 2016'!AO156*'Prevalence Rates'!AO156","v":0},{"$f":"'Population 2016'!AP156*'Prevalence Rates'!AP156","v":0},{"$f":"'Population 2016'!AQ156*'Prevalence Rates'!AQ156","v":0},{"$f":"'Population 2016'!AR156*'Prevalence Rates'!AR156","v":0},{"$f":"'Population 2016'!AS156*'Prevalence Rates'!AS156","v":0},{"$f":"'Population 2016'!AT156*'Prevalence Rates'!AT156","v":0},{"$f":"'Population 2016'!AU156*'Prevalence Rates'!AU156","v":0},{"$f":"'Population 2016'!AV156*'Prevalence Rates'!AV156","v":0},{"$f":"'Population 2016'!AW156*'Prevalence Rates'!AW156","v":0},{"$f":"'Population 2016'!AX156*'Prevalence Rates'!AX156","v":0},{"$f":"'Population 2016'!AY156*'Prevalence Rates'!AY156","v":0},{"$f":"'Population 2016'!AZ156*'Prevalence Rates'!AZ156","v":0},{"$f":"'Population 2016'!BA156*'Prevalence Rates'!BA156","v":0},{"$f":"'Population 2016'!BB156*'Prevalence Rates'!BB156","v":0},{"$f":"'Population 2016'!BC156*'Prevalence Rates'!BC156","v":0},154]
[null,"Male 10-15",{"$f":"'Population 2016'!C157*'Prevalence Rates'!C157","v":0},{"$f":"'Population 2016'!D157*'Prevalence Rates'!D157","v":0},{"$f":"'Population 2016'!E157*'Prevalence Rates'!E157","v":0},{"$f":"'Population 2016'!F157*'Prevalence Rates'!F157","v":0},{"$f":"'Population 2016'!G157*'Prevalence Rates'!G157","v":0},{"$f":"'Population 2016'!H157*'Prevalence Rates'!H157","v":0},{"$f":"'Population 2016'!I157*'Prevalence Rates'!I157","v":0},{"$f":"'Population 2016'!J157*'Prevalence Rates'!J157","v":0},{"$f":"'Population 2016'!K157*'Prevalence Rates'!K157","v":0},{"$f":"'Population 2016'!L157*'Prevalence Rates'!L157","v":0},{"$f":"'Population 2016'!M157*'Prevalence Rates'!M157","v":0},{"$f":"'Population 2016'!N157*'Prevalence Rates'!N157","v":0},{"$f":"'Population 2016'!O157*'Prevalence Rates'!O157","v":0},{"$f":"'Population 2016'!P157*'Prevalence Rates'!P157","v":0},{"$f":"'Population 2016'!Q157*'Prevalence Rates'!Q157","v":0},{"$f":"'Population 2016'!R157*'Prevalence Rates'!R157","v":0},{"$f":"'Population 2016'!S157*'Prevalence Rates'!S157","v":0},{"$f":"'Population 2016'!T157*'Prevalence Rates'!T157","v":0},{"$f":"'Population 2016'!U157*'Prevalence Rates'!U157","v":0},{"$f":"'Population 2016'!V157*'Prevalence Rates'!V157","v":0},{"$f":"'Population 2016'!W157*'Prevalence Rates'!W157","v":0},{"$f":"'Population 2016'!X157*'Prevalence Rates'!X157","v":0},{"$f":"'Population 2016'!Y157*'Prevalence Rates'!Y157","v":0},{"$f":"'Population 2016'!Z157*'Prevalence Rates'!Z157","v":0},{"$f":"'Population 2016'!AA157*'Prevalence Rates'!AA157","v":0},{"$f":"'Population 2016'!AB157*'Prevalence Rates'!AB157","v":0},{"$f":"'Population 2016'!AC157*'Prevalence Rates'!AC157","v":0},{"$f":"'Population 2016'!AD157*'Prevalence Rates'!AD157","v":0},{"$f":"'Population 2016'!AE157*'Prevalence Rates'!AE157","v":0},{"$f":"'Population 2016'!AF157*'Prevalence Rates'!AF157","v":0},{"$f":"'Population 2016'!AG157*'Prevalence Rates'!AG157","v":0},{"$f":"'Population 2016'!AH157*'Prevalence Rates'!AH157","v":0},{"$f":"'Population 2016'!AI157*'Prevalence Rates'!AI157","v":0},{"$f":"'Population 2016'!AJ157*'Prevalence Rates'!AJ157","v":0},{"$f":"'Population 2016'!AK157*'Prevalence Rates'!AK157","v":0},{"$f":"'Population 2016'!AL157*'Prevalence Rates'!AL157","v":0},{"$f":"'Population 2016'!AM157*'Prevalence Rates'!AM157","v":0},{"$f":"'Population 2016'!AN157*'Prevalence Rates'!AN157","v":0},{"$f":"'Population 2016'!AO157*'Prevalence Rates'!AO157","v":0},{"$f":"'Population 2016'!AP157*'Prevalence Rates'!AP157","v":0},{"$f":"'Population 2016'!AQ157*'Prevalence Rates'!AQ157","v":0},{"$f":"'Population 2016'!AR157*'Prevalence Rates'!AR157","v":0},{"$f":"'Population 2016'!AS157*'Prevalence Rates'!AS157","v":0},{"$f":"'Population 2016'!AT157*'Prevalence Rates'!AT157","v":0},{"$f":"'Population 2016'!AU157*'Prevalence Rates'!AU157","v":0},{"$f":"'Population 2016'!AV157*'Prevalence Rates'!AV157","v":0},{"$f":"'Population 2016'!AW157*'Prevalence Rates'!AW157","v":0},{"$f":"'Population 2016'!AX157*'Prevalence Rates'!AX157","v":0},{"$f":"'Population 2016'!AY157*'Prevalence Rates'!AY157","v":0},{"$f":"'Population 2016'!AZ157*'Prevalence Rates'!AZ157","v":0},{"$f":"'Population 2016'!BA157*'Prevalence Rates'!BA157","v":0},{"$f":"'Population 2016'!BB157*'Prevalence Rates'!BB157","v":0},{"$f":"'Population 2016'!BC157*'Prevalence Rates'!BC157","v":0},155]
[null,"Male 16-19",{"$f":"'Population 2016'!C158*'Prevalence Rates'!C158","v":200.4278630573248},{"$f":"'Population 2016'!D158*'Prevalence Rates'!D158","v":627.97827707006377},{"$f":"'Population 2016'!E158*'Prevalence Rates'!E158","v":432.94991082802528},{"$f":"'Population 2016'!F158*'Prevalence Rates'!F158","v":336.30820063694273},{"$f":"'Population 2016'!G158*'Prevalence Rates'!G158","v":277.40108280254776},{"$f":"'Population 2016'!H158*'Prevalence Rates'!H158","v":540.483221656051},{"$f":"'Population 2016'!I158*'Prevalence Rates'!I158","v":313.15165292993623},{"$f":"'Population 2016'!J158*'Prevalence Rates'!J158","v":146.54450955414015},{"$f":"'Population 2016'!K158*'Prevalence Rates'!K158","v":74.339777070063676},{"$f":"'Population 2016'!L158*'Prevalence Rates'!L158","v":429.06801961783435},{"$f":"'Population 2016'!M158*'Prevalence Rates'!M158","v":428.52068789808908},{"$f":"'Population 2016'!N158*'Prevalence Rates'!N158","v":141.43123248407645},{"$f":"'Population 2016'!O158*'Prevalence Rates'!O158","v":185.50686305732484},{"$f":"'Population 2016'!P158*'Prevalence Rates'!P158","v":50.038726114649677},{"$f":"'Population 2016'!Q158*'Prevalence Rates'!Q158","v":210.98484076433118},{"$f":"'Population 2016'!R158*'Prevalence Rates'!R158","v":76.934541401273876},{"$f":"'Population 2016'!S158*'Prevalence Rates'!S158","v":1810.0072547770699},{"$f":"'Population 2016'!T158*'Prevalence Rates'!T158","v":354.9511624203821},{"$f":"'Population 2016'!U158*'Prevalence Rates'!U158","v":127.15450318471338},{"$f":"'Population 2016'!V158*'Prevalence Rates'!V158","v":214.45484076433115},{"$f":"'Population 2016'!W158*'Prevalence Rates'!W158","v":532.9071286624204},{"$f":"'Population 2016'!X158*'Prevalence Rates'!X158","v":532.54112101910812},{"$f":"'Population 2016'!Y158*'Prevalence Rates'!Y158","v":372.37498280254766},{"$f":"'Population 2016'!Z158*'Prevalence Rates'!Z158","v":717.27773248407618},{"$f":"'Population 2016'!AA158*'Prevalence Rates'!AA158","v":2397.3036496815284},{"$f":"'Population 2016'!AB158*'Prevalence Rates'!AB158","v":825.99614777070076},{"$f":"'Population 2016'!AC158*'Prevalence Rates'!AC158","v":1296.6695999999999},{"$f":"'Population 2016'!AD158*'Prevalence Rates'!AD158","v":852.07176114649678},{"$f":"'Population 2016'!AE158*'Prevalence Rates'!AE158","v":629.3850636942675},{"$f":"'Population 2016'!AF158*'Prevalence Rates'!AF158","v":89.932675159235657},{"$f":"'Population 2016'!AG158*'Prevalence Rates'!AG158","v":629.3850636942675},{"$f":"'Population 2016'!AH158*'Prevalence Rates'!AH158","v":1121.1901528662422},{"$f":"'Population 2016'!AI158*'Prevalence Rates'!AI158","v":991.24351528662385},{"$f":"'Population 2016'!AJ158*'Prevalence Rates'!AJ158","v":168.46076433121016},{"$f":"'Population 2016'!AK158*'Prevalence Rates'!AK158","v":193.27900000000002},{"$f":"'Population 2016'!AL158*'Prevalence Rates'!AL158","v":144.75204458598728},{"$f":"'Population 2016'!AM158*'Prevalence Rates'!AM158","v":632.66167197452228},{"$f":"'Population 2016'!AN158*'Prevalence Rates'!AN158","v":55.761463375796168},{"$f":"'Population 2016'!AO158*'Prevalence Rates'!AO158","v":55.696815286624194},{"$f":"'Population 2016'!AP158*'Prevalence Rates'!AP158","v":280.92081210191083},{"$f":"'Population 2016'!AQ158*'Prevalence Rates'!AQ158","v":267.19},{"$f":"'Population 2016'!AR158*'Prevalence Rates'!AR158","v":8233.2690000000002},{"$f":"'Population 2016'!AS158*'Prevalence Rates'!AS158","v":313.24817197452228},{"$f":"'Population 2016'!AT158*'Prevalence Rates'!AT158","v":55.85434665605095},{"$f":"'Population 2016'!AU158*'Prevalence Rates'!AU158","v":55.918939490445851},{"$f":"'Population 2016'!AV158*'Prevalence Rates'!AV158","v":203.51881528662423},{"$f":"'Population 2016'!AW158*'Prevalence Rates'!AW158","v":486.13263375796186},{"$f":"'Population 2016'!AX158*'Prevalence Rates'!AX158","v":92.910907643312086},{"$f":"'Population 2016'!AY158*'Prevalence Rates'!AY158","v":1285.5753248407641},{"$f":"'Population 2016'!AZ158*'Prevalence Rates'!AZ158","v":754.26947961783446},{"$f":"'Population 2016'!BA158*'Prevalence Rates'!BA158","v":88.645238853503173},{"$f":"'Population 2016'!BB158*'Prevalence Rates'!BB158","v":321.64910828025472},{"$f":"'Population 2016'!BC158*'Prevalence Rates'!BC158","v":127.13345111464966},156]
[null,"Male 20-24",{"$f":"'Population 2016'!C159*'Prevalence Rates'!C159","v":654.06184713375785},{"$f":"'Population 2016'!D159*'Prevalence Rates'!D159","v":1199.2994108280257},{"$f":"'Population 2016'!E159*'Prevalence Rates'!E159","v":532.40187898089152},{"$f":"'Population 2016'!F159*'Prevalence Rates'!F159","v":357.39563375796183},{"$f":"'Population 2016'!G159*'Prevalence Rates'!G159","v":279.78366878980887},{"$f":"'Population 2016'!H159*'Prevalence Rates'!H159","v":675.22973121019118},{"$f":"'Population 2016'!I159*'Prevalence Rates'!I159","v":369.94489980891711},{"$f":"'Population 2016'!J159*'Prevalence Rates'!J159","v":266.47058280254782},{"$f":"'Population 2016'!K159*'Prevalence Rates'!K159","v":100.37582802547769},{"$f":"'Population 2016'!L159*'Prevalence Rates'!L159","v":490.87086350318464},{"$f":"'Population 2016'!M159*'Prevalence Rates'!M159","v":490.2446942675158},{"$f":"'Population 2016'!N159*'Prevalence Rates'!N159","v":277.0452420382166},{"$f":"'Population 2016'!O159*'Prevalence Rates'!O159","v":250.93293949044585},{"$f":"'Population 2016'!P159*'Prevalence Rates'!P159","v":69.115990445859865},{"$f":"'Population 2016'!Q159*'Prevalence Rates'!Q159","v":259.64219745222925},{"$f":"'Population 2016'!R159*'Prevalence Rates'!R159","v":101.95390445859871},{"$f":"'Population 2016'!S159*'Prevalence Rates'!S159","v":3043.3204012738852},{"$f":"'Population 2016'!T159*'Prevalence Rates'!T159","v":995.00039808917177},{"$f":"'Population 2016'!U159*'Prevalence Rates'!U159","v":149.18126751592357},{"$f":"'Population 2016'!V159*'Prevalence Rates'!V159","v":284.3410828025477},{"$f":"'Population 2016'!W159*'Prevalence Rates'!W159","v":737.89616305732488},{"$f":"'Population 2016'!X159*'Prevalence Rates'!X159","v":737.38936624203802},{"$f":"'Population 2016'!Y159*'Prevalence Rates'!Y159","v":576.23228885350306},{"$f":"'Population 2016'!Z159*'Prevalence Rates'!Z159","v":1653.1610445859867},{"$f":"'Population 2016'!AA159*'Prevalence Rates'!AA159","v":3777.7226942675156},{"$f":"'Population 2016'!AB159*'Prevalence Rates'!AB159","v":1444.1211719745224},{"$f":"'Population 2016'!AC159*'Prevalence Rates'!AC159","v":2382.0453745222931},{"$f":"'Population 2016'!AD159*'Prevalence Rates'!AD159","v":883.70556305732487},{"$f":"'Population 2016'!AE159*'Prevalence Rates'!AE159","v":661.41294267515923},{"$f":"'Population 2016'!AF159*'Prevalence Rates'!AF159","v":133.51543312101907},{"$f":"'Population 2016'!AG159*'Prevalence Rates'!AG159","v":661.41294267515923},{"$f":"'Population 2016'!AH159*'Prevalence Rates'!AH159","v":1381.7318980891721},{"$f":"'Population 2016'!AI159*'Prevalence Rates'!AI159","v":1948.8209579617826},{"$f":"'Population 2016'!AJ159*'Prevalence Rates'!AJ159","v":244.9223248407643},{"$f":"'Population 2016'!AK159*'Prevalence Rates'!AK159","v":234.22500000000002},{"$f":"'Population 2016'!AL159*'Prevalence Rates'!AL159","v":199.55373248407645},{"$f":"'Population 2016'!AM159*'Prevalence Rates'!AM159","v":742.85627388535033},{"$f":"'Population 2016'!AN159*'Prevalence Rates'!AN159","v":66.913756050955399},{"$f":"'Population 2016'!AO159*'Prevalence Rates'!AO159","v":66.83617834394903},{"$f":"'Population 2016'!AP159*'Prevalence Rates'!AP159","v":372.47245222929939},{"$f":"'Population 2016'!AQ159*'Prevalence Rates'!AQ159","v":294.07918471337575},{"$f":"'Population 2016'!AR159*'Prevalence Rates'!AR159","v":12230.709000000001},{"$f":"'Population 2016'!AS159*'Prevalence Rates'!AS159","v":370.058923566879},{"$f":"'Population 2016'!AT159*'Prevalence Rates'!AT159","v":76.590690923566882},{"$f":"'Population 2016'!AU159*'Prevalence Rates'!AU159","v":76.679264331210177},{"$f":"'Population 2016'!AV159*'Prevalence Rates'!AV159","v":220.9340159235669},{"$f":"'Population 2016'!AW159*'Prevalence Rates'!AW159","v":629.61050318471348},{"$f":"'Population 2016'!AX159*'Prevalence Rates'!AX159","v":200.93952229299359},{"$f":"'Population 2016'!AY159*'Prevalence Rates'!AY159","v":1738.6070318471336},{"$f":"'Population 2016'!AZ159*'Prevalence Rates'!AZ159","v":1001.069582802548},{"$f":"'Population 2016'!BA159*'Prevalence Rates'!BA159","v":131.78816878980891},{"$f":"'Population 2016'!BB159*'Prevalence Rates'!BB159","v":447.46423566878974},{"$f":"'Population 2016'!BC159*'Prevalence Rates'!BC159","v":149.15656863057322},157]
[null,"Male 25-29",{"$f":"'Population 2016'!C160*'Prevalence Rates'!C160","v":683.08564331210187},{"$f":"'Population 2016'!D160*'Prevalence Rates'!D160","v":1102.2786114649682},{"$f":"'Population 2016'!E160*'Prevalence Rates'!E160","v":400.40453503184699},{"$f":"'Population 2016'!F160*'Prevalence Rates'!F160","v":267.39946496815293},{"$f":"'Population 2016'!G160*'Prevalence Rates'!G160","v":212.23750318471335},{"$f":"'Population 2016'!H160*'Prevalence Rates'!H160","v":504.26605222929942},{"$f":"'Population 2016'!I160*'Prevalence Rates'!I160","v":288.07615235668783},{"$f":"'Population 2016'!J160*'Prevalence Rates'!J160","v":188.5882929936306},{"$f":"'Population 2016'!K160*'Prevalence Rates'!K160","v":65.727898089171973},{"$f":"'Population 2016'!L160*'Prevalence Rates'!L160","v":393.04143885350317},{"$f":"'Population 2016'!M160*'Prevalence Rates'!M160","v":392.54006369426742},{"$f":"'Population 2016'!N160*'Prevalence Rates'!N160","v":274.7422420382166},{"$f":"'Population 2016'!O160*'Prevalence Rates'!O160","v":210.82399999999998},{"$f":"'Population 2016'!P160*'Prevalence Rates'!P160","v":54.739770700636939},{"$f":"'Population 2016'!Q160*'Prevalence Rates'!Q160","v":205.41363057324841},{"$f":"'Population 2016'!R160*'Prevalence Rates'!R160","v":66.319337579617823},{"$f":"'Population 2016'!S160*'Prevalence Rates'!S160","v":2894.225885350319},{"$f":"'Population 2016'!T160*'Prevalence Rates'!T160","v":1153.9812101910827},{"$f":"'Population 2016'!U160*'Prevalence Rates'!U160","v":115.42555414012742},{"$f":"'Population 2016'!V160*'Prevalence Rates'!V160","v":222.84063694267513},{"$f":"'Population 2016'!W160*'Prevalence Rates'!W160","v":618.5013808917198},{"$f":"'Population 2016'!X160*'Prevalence Rates'!X160","v":618.07658598726084},{"$f":"'Population 2016'!Y160*'Prevalence Rates'!Y160","v":428.45104203821654},{"$f":"'Population 2016'!Z160*'Prevalence Rates'!Z160","v":1431.3914394904455},{"$f":"'Population 2016'!AA160*'Prevalence Rates'!AA160","v":3150.6679108280255},{"$f":"'Population 2016'!AB160*'Prevalence Rates'!AB160","v":1312.7903388535033},{"$f":"'Population 2016'!AC160*'Prevalence Rates'!AC160","v":2040.3959388535031},{"$f":"'Population 2016'!AD160*'Prevalence Rates'!AD160","v":721.88314394904467},{"$f":"'Population 2016'!AE160*'Prevalence Rates'!AE160","v":558.1449808917198},{"$f":"'Population 2016'!AF160*'Prevalence Rates'!AF160","v":105.94950318471336},{"$f":"'Population 2016'!AG160*'Prevalence Rates'!AG160","v":558.1449808917198},{"$f":"'Population 2016'!AH160*'Prevalence Rates'!AH160","v":1091.2895541401276},{"$f":"'Population 2016'!AI160*'Prevalence Rates'!AI160","v":1986.8383031847127},{"$f":"'Population 2016'!AJ160*'Prevalence Rates'!AJ160","v":195.43541401273885},{"$f":"'Population 2016'!AK160*'Prevalence Rates'!AK160","v":200.60400000000001},{"$f":"'Population 2016'!AL160*'Prevalence Rates'!AL160","v":134.21212738853504},{"$f":"'Population 2016'!AM160*'Prevalence Rates'!AM160","v":592.17414012738857},{"$f":"'Population 2016'!AN160*'Prevalence Rates'!AN160","v":63.502718598726112},{"$f":"'Population 2016'!AO160*'Prevalence Rates'!AO160","v":63.429095541401274},{"$f":"'Population 2016'!AP160*'Prevalence Rates'!AP160","v":252.79853503184714},{"$f":"'Population 2016'!AQ160*'Prevalence Rates'!AQ160","v":262.36107006369423},{"$f":"'Population 2016'!AR160*'Prevalence Rates'!AR160","v":10494.480000000001},{"$f":"'Population 2016'!AS160*'Prevalence Rates'!AS160","v":288.16494267515924},{"$f":"'Population 2016'!AT160*'Prevalence Rates'!AT160","v":56.851935031847141},{"$f":"'Population 2016'!AU160*'Prevalence Rates'!AU160","v":56.917681528662413},{"$f":"'Population 2016'!AV160*'Prevalence Rates'!AV160","v":158.33002547770704},{"$f":"'Population 2016'!AW160*'Prevalence Rates'!AW160","v":492.73512101910842},{"$f":"'Population 2016'!AX160*'Prevalence Rates'!AX160","v":147.09267515923565},{"$f":"'Population 2016'!AY160*'Prevalence Rates'!AY160","v":1408.9018598726113},{"$f":"'Population 2016'!AZ160*'Prevalence Rates'!AZ160","v":788.53298089171994},{"$f":"'Population 2016'!BA160*'Prevalence Rates'!BA160","v":123.37929936305731},{"$f":"'Population 2016'!BB160*'Prevalence Rates'!BB160","v":369.48229299363055},{"$f":"'Population 2016'!BC160*'Prevalence Rates'!BC160","v":115.40644394904456},158]
[null,"Male 30-34",{"$f":"'Population 2016'!C161*'Prevalence Rates'!C161","v":517.96801273885353},{"$f":"'Population 2016'!D161*'Prevalence Rates'!D161","v":952.39612738853521},{"$f":"'Population 2016'!E161*'Prevalence Rates'!E161","v":424.35783439490427},{"$f":"'Population 2016'!F161*'Prevalence Rates'!F161","v":298.91221656050959},{"$f":"'Population 2016'!G161*'Prevalence Rates'!G161","v":201.06710828025476},{"$f":"'Population 2016'!H161*'Prevalence Rates'!H161","v":469.61941528662425},{"$f":"'Population 2016'!I161*'Prevalence Rates'!I161","v":293.71819681528655},{"$f":"'Population 2016'!J161*'Prevalence Rates'!J161","v":157.75904458598728},{"$f":"'Population 2016'!K161*'Prevalence Rates'!K161","v":63.421656050955406},{"$f":"'Population 2016'!L161*'Prevalence Rates'!L161","v":368.53239095541397},{"$f":"'Population 2016'!M161*'Prevalence Rates'!M161","v":368.06228025477697},{"$f":"'Population 2016'!N161*'Prevalence Rates'!N161","v":225.17849681528668},{"$f":"'Population 2016'!O161*'Prevalence Rates'!O161","v":178.59612738853502},{"$f":"'Population 2016'!P161*'Prevalence Rates'!P161","v":47.10778343949044},{"$f":"'Population 2016'!Q161*'Prevalence Rates'!Q161","v":180.64012738853503},{"$f":"'Population 2016'!R161*'Prevalence Rates'!R161","v":66.845681528662411},{"$f":"'Population 2016'!S161*'Prevalence Rates'!S161","v":2725.5372993630576},{"$f":"'Population 2016'!T161*'Prevalence Rates'!T161","v":1021.3815923566879},{"$f":"'Population 2016'!U161*'Prevalence Rates'!U161","v":126.0975031847134},{"$f":"'Population 2016'!V161*'Prevalence Rates'!V161","v":223.41719745222929},{"$f":"'Population 2016'!W161*'Prevalence Rates'!W161","v":613.35622929936312},{"$f":"'Population 2016'!X161*'Prevalence Rates'!X161","v":612.93496815286596},{"$f":"'Population 2016'!Y161*'Prevalence Rates'!Y161","v":393.75642038216557},{"$f":"'Population 2016'!Z161*'Prevalence Rates'!Z161","v":1320.0185477707003},{"$f":"'Population 2016'!AA161*'Prevalence Rates'!AA161","v":3106.8790700636941},{"$f":"'Population 2016'!AB161*'Prevalence Rates'!AB161","v":1191.5564025477709},{"$f":"'Population 2016'!AC161*'Prevalence Rates'!AC161","v":1904.2923210191082},{"$f":"'Population 2016'!AD161*'Prevalence Rates'!AD161","v":759.37984968152875},{"$f":"'Population 2016'!AE161*'Prevalence Rates'!AE161","v":611.4210318471338},{"$f":"'Population 2016'!AF161*'Prevalence Rates'!AF161","v":94.015630573248387},{"$f":"'Population 2016'!AG161*'Prevalence Rates'!AG161","v":611.4210318471338},{"$f":"'Population 2016'!AH161*'Prevalence Rates'!AH161","v":1198.6079235668792},{"$f":"'Population 2016'!AI161*'Prevalence Rates'!AI161","v":1822.4711312101906},{"$f":"'Population 2016'!AJ161*'Prevalence Rates'!AJ161","v":195.09133757961783},{"$f":"'Population 2016'!AK161*'Prevalence Rates'!AK161","v":231.26400000000004},{"$f":"'Population 2016'!AL161*'Prevalence Rates'!AL161","v":125.30705732484077},{"$f":"'Population 2016'!AM161*'Prevalence Rates'!AM161","v":689.91509554140134},{"$f":"'Population 2016'!AN161*'Prevalence Rates'!AN161","v":54.743722929936304},{"$f":"'Population 2016'!AO161*'Prevalence Rates'!AO161","v":54.680254777070061},{"$f":"'Population 2016'!AP161*'Prevalence Rates'!AP161","v":282.09152866242039},{"$f":"'Population 2016'!AQ161*'Prevalence Rates'!AQ161","v":272.09936305732481},{"$f":"'Population 2016'!AR161*'Prevalence Rates'!AR161","v":10115.756000000001},{"$f":"'Population 2016'!AS161*'Prevalence Rates'!AS161","v":293.80872611464969},{"$f":"'Population 2016'!AT161*'Prevalence Rates'!AT161","v":62.480839490445867},{"$f":"'Population 2016'!AU161*'Prevalence Rates'!AU161","v":62.553095541401269},{"$f":"'Population 2016'!AV161*'Prevalence Rates'!AV161","v":162.35292993630577},{"$f":"'Population 2016'!AW161*'Prevalence Rates'!AW161","v":508.45755414012751},{"$f":"'Population 2016'!AX161*'Prevalence Rates'!AX161","v":115.2888535031847},{"$f":"'Population 2016'!AY161*'Prevalence Rates'!AY161","v":1415.2031082802546},{"$f":"'Population 2016'!AZ161*'Prevalence Rates'!AZ161","v":800.80237452229312},{"$f":"'Population 2016'!BA161*'Prevalence Rates'!BA161","v":107.21235668789808},{"$f":"'Population 2016'!BB161*'Prevalence Rates'!BB161","v":381.75745222929936},{"$f":"'Population 2016'!BC161*'Prevalence Rates'!BC161","v":126.07662611464966},159]
[null,"Male 35-39",{"$f":"'Population 2016'!C162*'Prevalence Rates'!C162","v":415.32656687898077},{"$f":"'Population 2016'!D162*'Prevalence Rates'!D162","v":893.08059872611454},{"$f":"'Population 2016'!E162*'Prevalence Rates'!E162","v":474.31624203821627},{"$f":"'Population 2016'!F162*'Prevalence Rates'!F162","v":327.26174840764332},{"$f":"'Population 2016'!G162*'Prevalence Rates'!G162","v":249.66048407643302},{"$f":"'Population 2016'!H162*'Prevalence Rates'!H162","v":555.36229108280247},{"$f":"'Population 2016'!I162*'Prevalence Rates'!I162","v":306.54464156050943},{"$f":"'Population 2016'!J162*'Prevalence Rates'!J162","v":171.04392993630574},{"$f":"'Population 2016'!K162*'Prevalence Rates'!K162","v":70.792547770700608},{"$f":"'Population 2016'!L162*'Prevalence Rates'!L162","v":378.23201248407628},{"$f":"'Population 2016'!M162*'Prevalence Rates'!M162","v":377.74952866242018},{"$f":"'Population 2016'!N162*'Prevalence Rates'!N162","v":178.69100636942676},{"$f":"'Population 2016'!O162*'Prevalence Rates'!O162","v":222.0655859872611},{"$f":"'Population 2016'!P162*'Prevalence Rates'!P162","v":45.995611464968135},{"$f":"'Population 2016'!Q162*'Prevalence Rates'!Q162","v":205.52675159235662},{"$f":"'Population 2016'!R162*'Prevalence Rates'!R162","v":76.562315286624184},{"$f":"'Population 2016'!S162*'Prevalence Rates'!S162","v":2677.0816050955405},{"$f":"'Population 2016'!T162*'Prevalence Rates'!T162","v":861.41219745222907},{"$f":"'Population 2016'!U162*'Prevalence Rates'!U162","v":153.77474522292994},{"$f":"'Population 2016'!V162*'Prevalence Rates'!V162","v":298.47668789808904},{"$f":"'Population 2016'!W162*'Prevalence Rates'!W162","v":668.58778089171972},{"$f":"'Population 2016'!X162*'Prevalence Rates'!X162","v":668.12858598726064},{"$f":"'Population 2016'!Y162*'Prevalence Rates'!Y162","v":480.6381955414011},{"$f":"'Population 2016'!Z162*'Prevalence Rates'!Z162","v":1119.4974267515918},{"$f":"'Population 2016'!AA162*'Prevalence Rates'!AA162","v":3094.2916528662413},{"$f":"'Population 2016'!AB162*'Prevalence Rates'!AB162","v":1133.8229910828024},{"$f":"'Population 2016'!AC162*'Prevalence Rates'!AC162","v":1721.7494426751589},{"$f":"'Population 2016'!AD162*'Prevalence Rates'!AD162","v":877.04375159235644},{"$f":"'Population 2016'!AE162*'Prevalence Rates'!AE162","v":687.07860509554121},{"$f":"'Population 2016'!AF162*'Prevalence Rates'!AF162","v":111.72405414012732},{"$f":"'Population 2016'!AG162*'Prevalence Rates'!AG162","v":687.07860509554121},{"$f":"'Population 2016'!AH162*'Prevalence Rates'!AH162","v":1392.4962038216559},{"$f":"'Population 2016'!AI162*'Prevalence Rates'!AI162","v":1710.263398089171},{"$f":"'Population 2016'!AJ162*'Prevalence Rates'!AJ162","v":223.03458598726107},{"$f":"'Population 2016'!AK162*'Prevalence Rates'!AK162","v":233.52899999999997},{"$f":"'Population 2016'!AL162*'Prevalence Rates'!AL162","v":146.70166242038215},{"$f":"'Population 2016'!AM162*'Prevalence Rates'!AM162","v":836.42598726114625},{"$f":"'Population 2016'!AN162*'Prevalence Rates'!AN162","v":56.057143757961761},{"$f":"'Population 2016'!AO162*'Prevalence Rates'!AO162","v":55.992152866242016},{"$f":"'Population 2016'!AP162*'Prevalence Rates'!AP162","v":305.2349999999999},{"$f":"'Population 2016'!AQ162*'Prevalence Rates'!AQ162","v":263.28408917197441},{"$f":"'Population 2016'!AR162*'Prevalence Rates'!AR162","v":10338.260999999999},{"$f":"'Population 2016'!AS162*'Prevalence Rates'!AS162","v":306.63912420382155},{"$f":"'Population 2016'!AT162*'Prevalence Rates'!AT162","v":70.048053343949022},{"$f":"'Population 2016'!AU162*'Prevalence Rates'!AU162","v":70.129060509554108},{"$f":"'Population 2016'!AV162*'Prevalence Rates'!AV162","v":184.03902229299359},{"$f":"'Population 2016'!AW162*'Prevalence Rates'!AW162","v":561.78135031847137},{"$f":"'Population 2016'!AX162*'Prevalence Rates'!AX162","v":123.13089171974518},{"$f":"'Population 2016'!AY162*'Prevalence Rates'!AY162","v":1479.2700509554134},{"$f":"'Population 2016'!AZ162*'Prevalence Rates'!AZ162","v":806.70443248407639},{"$f":"'Population 2016'!BA162*'Prevalence Rates'!BA162","v":104.16235668789804},{"$f":"'Population 2016'!BB162*'Prevalence Rates'!BB162","v":421.26812101910809},{"$f":"'Population 2016'!BC162*'Prevalence Rates'!BC162","v":153.74928582802539},160]
[null,"Male 40-44",{"$f":"'Population 2016'!C163*'Prevalence Rates'!C163","v":320.38616878980878},{"$f":"'Population 2016'!D163*'Prevalence Rates'!D163","v":840.34210509554134},{"$f":"'Population 2016'!E163*'Prevalence Rates'!E163","v":522.72921019108253},{"$f":"'Population 2016'!F163*'Prevalence Rates'!F163","v":384.4564076433121},{"$f":"'Population 2016'!G163*'Prevalence Rates'!G163","v":298.7688280254776},{"$f":"'Population 2016'!H163*'Prevalence Rates'!H163","v":620.16617197452217},{"$f":"'Population 2016'!I163*'Prevalence Rates'!I163","v":403.09702566878963},{"$f":"'Population 2016'!J163*'Prevalence Rates'!J163","v":191.02569745222931},{"$f":"'Population 2016'!K163*'Prevalence Rates'!K163","v":93.114522292993598},{"$f":"'Population 2016'!L163*'Prevalence Rates'!L163","v":451.96080512738837},{"$f":"'Population 2016'!M163*'Prevalence Rates'!M163","v":451.3842707006367},{"$f":"'Population 2016'!N163*'Prevalence Rates'!N163","v":161.76950955414011},{"$f":"'Population 2016'!O163*'Prevalence Rates'!O163","v":226.15040445859867},{"$f":"'Population 2016'!P163*'Prevalence Rates'!P163","v":54.728955414012717},{"$f":"'Population 2016'!Q163*'Prevalence Rates'!Q163","v":266.80417197452221},{"$f":"'Population 2016'!R163*'Prevalence Rates'!R163","v":77.144538216560477},{"$f":"'Population 2016'!S163*'Prevalence Rates'!S163","v":2627.7860445859865},{"$f":"'Population 2016'!T163*'Prevalence Rates'!T163","v":643.91695859872596},{"$f":"'Population 2016'!U163*'Prevalence Rates'!U163","v":174.58870063694266},{"$f":"'Population 2016'!V163*'Prevalence Rates'!V163","v":304.21662420382154},{"$f":"'Population 2016'!W163*'Prevalence Rates'!W163","v":714.41839490445852},{"$f":"'Population 2016'!X163*'Prevalence Rates'!X163","v":713.92772292993584},{"$f":"'Population 2016'!Y163*'Prevalence Rates'!Y163","v":508.96478121019089},{"$f":"'Population 2016'!Z163*'Prevalence Rates'!Z163","v":812.31825477706968},{"$f":"'Population 2016'!AA163*'Prevalence Rates'!AA163","v":2853.4488630573242},{"$f":"'Population 2016'!AB163*'Prevalence Rates'!AB163","v":1106.6827617834394},{"$f":"'Population 2016'!AC163*'Prevalence Rates'!AC163","v":1458.1215745222928},{"$f":"'Population 2016'!AD163*'Prevalence Rates'!AD163","v":915.03842675159206},{"$f":"'Population 2016'!AE163*'Prevalence Rates'!AE163","v":674.94553184713357},{"$f":"'Population 2016'!AF163*'Prevalence Rates'!AF163","v":112.36799681528656},{"$f":"'Population 2016'!AG163*'Prevalence Rates'!AG163","v":674.94553184713357},{"$f":"'Population 2016'!AH163*'Prevalence Rates'!AH163","v":1431.4598789808915},{"$f":"'Population 2016'!AI163*'Prevalence Rates'!AI163","v":1539.0892394904449},{"$f":"'Population 2016'!AJ163*'Prevalence Rates'!AJ163","v":243.58726114649673},{"$f":"'Population 2016'!AK163*'Prevalence Rates'!AK163","v":260.01499999999999},{"$f":"'Population 2016'!AL163*'Prevalence Rates'!AL163","v":181.17831210191079},{"$f":"'Population 2016'!AM163*'Prevalence Rates'!AM163","v":832.06960191082771},{"$f":"'Population 2016'!AN163*'Prevalence Rates'!AN163","v":57.441270764331186},{"$f":"'Population 2016'!AO163*'Prevalence Rates'!AO163","v":57.37467515923565},{"$f":"'Population 2016'!AP163*'Prevalence Rates'!AP163","v":299.07845541401264},{"$f":"'Population 2016'!AQ163*'Prevalence Rates'!AQ163","v":268.35333757961774},{"$f":"'Population 2016'!AR163*'Prevalence Rates'!AR163","v":10281.412999999999},{"$f":"'Population 2016'!AS163*'Prevalence Rates'!AS163","v":403.22126751592344},{"$f":"'Population 2016'!AT163*'Prevalence Rates'!AT163","v":68.491429936305707},{"$f":"'Population 2016'!AU163*'Prevalence Rates'!AU163","v":68.570636942675137},{"$f":"'Population 2016'!AV163*'Prevalence Rates'!AV163","v":208.51398726114647},{"$f":"'Population 2016'!AW163*'Prevalence Rates'!AW163","v":600.50226114649683},{"$f":"'Population 2016'!AX163*'Prevalence Rates'!AX163","v":124.59673566878976},{"$f":"'Population 2016'!AY163*'Prevalence Rates'!AY163","v":1559.4275414012734},{"$f":"'Population 2016'!AZ163*'Prevalence Rates'!AZ163","v":839.80678917197451},{"$f":"'Population 2016'!BA163*'Prevalence Rates'!BA163","v":126.7517834394904},{"$f":"'Population 2016'!BB163*'Prevalence Rates'!BB163","v":444.69076433121},{"$f":"'Population 2016'!BC163*'Prevalence Rates'!BC163","v":174.55979522292984},161]
[null,"Male 45-49",{"$f":"'Population 2016'!C164*'Prevalence Rates'!C164","v":326.66234076433113},{"$f":"'Population 2016'!D164*'Prevalence Rates'!D164","v":1000.6097929936307},{"$f":"'Population 2016'!E164*'Prevalence Rates'!E164","v":681.92770700636913},{"$f":"'Population 2016'!F164*'Prevalence Rates'!F164","v":480.17235668789812},{"$f":"'Population 2016'!G164*'Prevalence Rates'!G164","v":411.07700636942667},{"$f":"'Population 2016'!H164*'Prevalence Rates'!H164","v":829.66398726114653},{"$f":"'Population 2016'!I164*'Prevalence Rates'!I164","v":517.45071926751575},{"$f":"'Population 2016'!J164*'Prevalence Rates'!J164","v":243.7157006369427},{"$f":"'Population 2016'!K164*'Prevalence Rates'!K164","v":122.37101910828024},{"$f":"'Population 2016'!L164*'Prevalence Rates'!L164","v":646.71991114649677},{"$f":"'Population 2016'!M164*'Prevalence Rates'!M164","v":645.89493630573224},{"$f":"'Population 2016'!N164*'Prevalence Rates'!N164","v":175.85259554140129},{"$f":"'Population 2016'!O164*'Prevalence Rates'!O164","v":307.34436305732481},{"$f":"'Population 2016'!P164*'Prevalence Rates'!P164","v":71.254713375796172},{"$f":"'Population 2016'!Q164*'Prevalence Rates'!Q164","v":316.58566878980889},{"$f":"'Population 2016'!R164*'Prevalence Rates'!R164","v":92.087659235668781},{"$f":"'Population 2016'!S164*'Prevalence Rates'!S164","v":2977.2836942675158},{"$f":"'Population 2016'!T164*'Prevalence Rates'!T164","v":585.50318471337573},{"$f":"'Population 2016'!U164*'Prevalence Rates'!U164","v":243.25907643312107},{"$f":"'Population 2016'!V164*'Prevalence Rates'!V164","v":383.64968152866237},{"$f":"'Population 2016'!W164*'Prevalence Rates'!W164","v":884.49217834394904},{"$f":"'Population 2016'!X164*'Prevalence Rates'!X164","v":883.88469745222892},{"$f":"'Population 2016'!Y164*'Prevalence Rates'!Y164","v":645.0736528662419},{"$f":"'Population 2016'!Z164*'Prevalence Rates'!Z164","v":877.22203821656012},{"$f":"'Population 2016'!AA164*'Prevalence Rates'!AA164","v":3416.8271656050952},{"$f":"'Population 2016'!AB164*'Prevalence Rates'!AB164","v":1335.2340382165607},{"$f":"'Population 2016'!AC164*'Prevalence Rates'!AC164","v":1705.9810987261144},{"$f":"'Population 2016'!AD164*'Prevalence Rates'!AD164","v":1247.5359458598725},{"$f":"'Population 2016'!AE164*'Prevalence Rates'!AE164","v":916.10337579617828},{"$f":"'Population 2016'!AF164*'Prevalence Rates'!AF164","v":134.24111464968149},{"$f":"'Population 2016'!AG164*'Prevalence Rates'!AG164","v":916.10337579617828},{"$f":"'Population 2016'!AH164*'Prevalence Rates'!AH164","v":1759.5885668789808},{"$f":"'Population 2016'!AI164*'Prevalence Rates'!AI164","v":1620.7987070063689},{"$f":"'Population 2016'!AJ164*'Prevalence Rates'!AJ164","v":293.29570063694263},{"$f":"'Population 2016'!AK164*'Prevalence Rates'!AK164","v":327.29500000000002},{"$f":"'Population 2016'!AL164*'Prevalence Rates'!AL164","v":245.92414012738857},{"$f":"'Population 2016'!AM164*'Prevalence Rates'!AM164","v":965.66950636942659},{"$f":"'Population 2016'!AN164*'Prevalence Rates'!AN164","v":77.519682802547749},{"$f":"'Population 2016'!AO164*'Prevalence Rates'!AO164","v":77.429808917197448},{"$f":"'Population 2016'!AP164*'Prevalence Rates'!AP164","v":405.63272292993628},{"$f":"'Population 2016'!AQ164*'Prevalence Rates'!AQ164","v":360.14420382165599},{"$f":"'Population 2016'!AR164*'Prevalence Rates'!AR164","v":12613.085000000001},{"$f":"'Population 2016'!AS164*'Prevalence Rates'!AS164","v":517.61020700636936},{"$f":"'Population 2016'!AT164*'Prevalence Rates'!AT164","v":84.920312898089179},{"$f":"'Population 2016'!AU164*'Prevalence Rates'!AU164","v":85.018519108280245},{"$f":"'Population 2016'!AV164*'Prevalence Rates'!AV164","v":271.64445859872615},{"$f":"'Population 2016'!AW164*'Prevalence Rates'!AW164","v":785.49178343949063},{"$f":"'Population 2016'!AX164*'Prevalence Rates'!AX164","v":155.67898089171973},{"$f":"'Population 2016'!AY164*'Prevalence Rates'!AY164","v":1946.2902547770698},{"$f":"'Population 2016'!AZ164*'Prevalence Rates'!AZ164","v":1056.0574140127392},{"$f":"'Population 2016'!BA164*'Prevalence Rates'!BA164","v":160.74665605095541},{"$f":"'Population 2016'!BB164*'Prevalence Rates'!BB164","v":528.4571656050955},{"$f":"'Population 2016'!BC164*'Prevalence Rates'!BC164","v":243.21880175159228},162]
[null,"Male 50-54",{"$f":"'Population 2016'!C165*'Prevalence Rates'!C165","v":333.85203821656046},{"$f":"'Population 2016'!D165*'Prevalence Rates'!D165","v":1001.9199203821657},{"$f":"'Population 2016'!E165*'Prevalence Rates'!E165","v":675.48162420382141},{"$f":"'Population 2016'!F165*'Prevalence Rates'!F165","v":558.79707006369426},{"$f":"'Population 2016'!G165*'Prevalence Rates'!G165","v":459.70961783439481},{"$f":"'Population 2016'!H165*'Prevalence Rates'!H165","v":927.95170700636947},{"$f":"'Population 2016'!I165*'Prevalence Rates'!I165","v":594.36392404458581},{"$f":"'Population 2016'!J165*'Prevalence Rates'!J165","v":261.40028662420383},{"$f":"'Population 2016'!K165*'Prevalence Rates'!K165","v":125.67834394904457},{"$f":"'Population 2016'!L165*'Prevalence Rates'!L165","v":752.3348277070063},{"$f":"'Population 2016'!M165*'Prevalence Rates'!M165","v":751.37512738853479},{"$f":"'Population 2016'!N165*'Prevalence Rates'!N165","v":225.34404458598729},{"$f":"'Population 2016'!O165*'Prevalence Rates'!O165","v":348.55469745222928},{"$f":"'Population 2016'!P165*'Prevalence Rates'!P165","v":73.066273885350313},{"$f":"'Population 2016'!Q165*'Prevalence Rates'!Q165","v":323.29633757961778},{"$f":"'Population 2016'!R165*'Prevalence Rates'!R165","v":117.14757961783438},{"$f":"'Population 2016'!S165*'Prevalence Rates'!S165","v":3080.7922929936303},{"$f":"'Population 2016'!T165*'Prevalence Rates'!T165","v":575.30915605095538},{"$f":"'Population 2016'!U165*'Prevalence Rates'!U165","v":231.98216560509559},{"$f":"'Population 2016'!V165*'Prevalence Rates'!V165","v":397.871178343949},{"$f":"'Population 2016'!W165*'Prevalence Rates'!W165","v":921.77319745222928},{"$f":"'Population 2016'!X165*'Prevalence Rates'!X165","v":921.14011146496784},{"$f":"'Population 2016'!Y165*'Prevalence Rates'!Y165","v":678.87525955414003},{"$f":"'Population 2016'!Z165*'Prevalence Rates'!Z165","v":880.25624203821621},{"$f":"'Population 2016'!AA165*'Prevalence Rates'!AA165","v":3570.329713375796},{"$f":"'Population 2016'!AB165*'Prevalence Rates'!AB165","v":1344.5064968152867},{"$f":"'Population 2016'!AC165*'Prevalence Rates'!AC165","v":1838.2070923566878},{"$f":"'Population 2016'!AD165*'Prevalence Rates'!AD165","v":1445.5523121019107},{"$f":"'Population 2016'!AE165*'Prevalence Rates'!AE165","v":1079.6932643312102},{"$f":"'Population 2016'!AF165*'Prevalence Rates'!AF165","v":159.95396496815283},{"$f":"'Population 2016'!AG165*'Prevalence Rates'!AG165","v":1079.6932643312102},{"$f":"'Population 2016'!AH165*'Prevalence Rates'!AH165","v":1775.4509235668791},{"$f":"'Population 2016'!AI165*'Prevalence Rates'!AI165","v":1623.2516751592352},{"$f":"'Population 2016'!AJ165*'Prevalence Rates'!AJ165","v":295.66417197452228},{"$f":"'Population 2016'!AK165*'Prevalence Rates'!AK165","v":335.33500000000004},{"$f":"'Population 2016'!AL165*'Prevalence Rates'!AL165","v":275.84369426751596},{"$f":"'Population 2016'!AM165*'Prevalence Rates'!AM165","v":952.93630573248402},{"$f":"'Population 2016'!AN165*'Prevalence Rates'!AN165","v":101.92402738853501},{"$f":"'Population 2016'!AO165*'Prevalence Rates'!AO165","v":101.80585987261145},{"$f":"'Population 2016'!AP165*'Prevalence Rates'!AP165","v":476.87890127388533},{"$f":"'Population 2016'!AQ165*'Prevalence Rates'!AQ165","v":416.33458598726111},{"$f":"'Population 2016'!AR165*'Prevalence Rates'!AR165","v":13529.310000000001},{"$f":"'Population 2016'!AS165*'Prevalence Rates'!AS165","v":594.54711783439484},{"$f":"'Population 2016'!AT165*'Prevalence Rates'!AT165","v":96.867277070063693},{"$f":"'Population 2016'!AU165*'Prevalence Rates'!AU165","v":96.979299363057308},{"$f":"'Population 2016'!AV165*'Prevalence Rates'!AV165","v":299.00670382165606},{"$f":"'Population 2016'!AW165*'Prevalence Rates'!AW165","v":810.33619426751602},{"$f":"'Population 2016'!AX165*'Prevalence Rates'!AX165","v":172.0982484076433},{"$f":"'Population 2016'!AY165*'Prevalence Rates'!AY165","v":2175.3235668789807},{"$f":"'Population 2016'!AZ165*'Prevalence Rates'!AZ165","v":1254.1540095541404},{"$f":"'Population 2016'!BA165*'Prevalence Rates'!BA165","v":177.66735668789806},{"$f":"'Population 2016'!BB165*'Prevalence Rates'!BB165","v":536.90684713375788},{"$f":"'Population 2016'!BC165*'Prevalence Rates'!BC165","v":231.94375796178338},163]
[null,"Male 55-59",{"$f":"'Population 2016'!C166*'Prevalence Rates'!C166","v":383.51087261146489},{"$f":"'Population 2016'!D166*'Prevalence Rates'!D166","v":1184.2906305732483},{"$f":"'Population 2016'!E166*'Prevalence Rates'!E166","v":810.49085350318433},{"$f":"'Population 2016'!F166*'Prevalence Rates'!F166","v":671.18514649681538},{"$f":"'Population 2016'!G166*'Prevalence Rates'!G166","v":601.52399999999989},{"$f":"'Population 2016'!H166*'Prevalence Rates'!H166","v":1052.8457140127389},{"$f":"'Population 2016'!I166*'Prevalence Rates'!I166","v":754.72005668789791},{"$f":"'Population 2016'!J166*'Prevalence Rates'!J166","v":317.88703184713376},{"$f":"'Population 2016'!K166*'Prevalence Rates'!K166","v":161.10522292993628},{"$f":"'Population 2016'!L166*'Prevalence Rates'!L166","v":935.57333006369413},{"$f":"'Population 2016'!M166*'Prevalence Rates'!M166","v":934.3798853503182},{"$f":"'Population 2016'!N166*'Prevalence Rates'!N166","v":271.02056050955417},{"$f":"'Population 2016'!O166*'Prevalence Rates'!O166","v":355.75975159235662},{"$f":"'Population 2016'!P166*'Prevalence Rates'!P166","v":90.356312101910802},{"$f":"'Population 2016'!Q166*'Prevalence Rates'!Q166","v":429.0656687898088},{"$f":"'Population 2016'!R166*'Prevalence Rates'!R166","v":148.63808917197449},{"$f":"'Population 2016'!S166*'Prevalence Rates'!S166","v":3735.6370318471336},{"$f":"'Population 2016'!T166*'Prevalence Rates'!T166","v":627.82108280254761},{"$f":"'Population 2016'!U166*'Prevalence Rates'!U166","v":295.94653503184713},{"$f":"'Population 2016'!V166*'Prevalence Rates'!V166","v":437.89770700636933},{"$f":"'Population 2016'!W166*'Prevalence Rates'!W166","v":1169.6261299363057},{"$f":"'Population 2016'!X166*'Prevalence Rates'!X166","v":1168.8228152866236},{"$f":"'Population 2016'!Y166*'Prevalence Rates'!Y166","v":781.68514012738831},{"$f":"'Population 2016'!Z166*'Prevalence Rates'!Z166","v":1011.9829554140123},{"$f":"'Population 2016'!AA166*'Prevalence Rates'!AA166","v":4192.456585987261},{"$f":"'Population 2016'!AB166*'Prevalence Rates'!AB166","v":1610.1278369426752},{"$f":"'Population 2016'!AC166*'Prevalence Rates'!AC166","v":2178.2866356687896},{"$f":"'Population 2016'!AD166*'Prevalence Rates'!AD166","v":1863.3859108280253},{"$f":"'Population 2016'!AE166*'Prevalence Rates'!AE166","v":1381.9983630573247},{"$f":"'Population 2016'!AF166*'Prevalence Rates'!AF166","v":221.0677133757961},{"$f":"'Population 2016'!AG166*'Prevalence Rates'!AG166","v":1381.9983630573247},{"$f":"'Population 2016'!AH166*'Prevalence Rates'!AH166","v":2062.3431210191084},{"$f":"'Population 2016'!AI166*'Prevalence Rates'!AI166","v":1889.6440165605086},{"$f":"'Population 2016'!AJ166*'Prevalence Rates'!AJ166","v":353.88968152866232},{"$f":"'Population 2016'!AK166*'Prevalence Rates'!AK166","v":417.50799999999998},{"$f":"'Population 2016'!AL166*'Prevalence Rates'!AL166","v":341.28985987261149},{"$f":"'Population 2016'!AM166*'Prevalence Rates'!AM166","v":1021.1646815286624},{"$f":"'Population 2016'!AN166*'Prevalence Rates'!AN166","v":140.878846433121},{"$f":"'Population 2016'!AO166*'Prevalence Rates'!AO166","v":140.71551592356684},{"$f":"'Population 2016'!AP166*'Prevalence Rates'!AP166","v":576.44598726114646},{"$f":"'Population 2016'!AQ166*'Prevalence Rates'!AQ166","v":466.57487898089164},{"$f":"'Population 2016'!AR166*'Prevalence Rates'!AR166","v":16294.53},{"$f":"'Population 2016'!AS166*'Prevalence Rates'!AS166","v":754.95267515923558},{"$f":"'Population 2016'!AT166*'Prevalence Rates'!AT166","v":112.94435350318471},{"$f":"'Population 2016'!AU166*'Prevalence Rates'!AU166","v":113.07496815286622},{"$f":"'Population 2016'!AV166*'Prevalence Rates'!AV166","v":347.65058598726114},{"$f":"'Population 2016'!AW166*'Prevalence Rates'!AW166","v":1012.3312611464969},{"$f":"'Population 2016'!AX166*'Prevalence Rates'!AX166","v":201.68560509554135},{"$f":"'Population 2016'!AY166*'Prevalence Rates'!AY166","v":2682.8055541401268},{"$f":"'Population 2016'!AZ166*'Prevalence Rates'!AZ166","v":1510.475908280255},{"$f":"'Population 2016'!BA166*'Prevalence Rates'!BA166","v":221.74082802547767},{"$f":"'Population 2016'!BB166*'Prevalence Rates'!BB166","v":625.78929936305713},{"$f":"'Population 2016'!BC166*'Prevalence Rates'!BC166","v":295.8975372611464},164]
[null,"Male 60-64",{"$f":"'Population 2016'!C167*'Prevalence Rates'!C167","v":344.22834394904447},{"$f":"'Population 2016'!D167*'Prevalence Rates'!D167","v":1092.2121401273885},{"$f":"'Population 2016'!E167*'Prevalence Rates'!E167","v":757.74741401273855},{"$f":"'Population 2016'!F167*'Prevalence Rates'!F167","v":571.14400000000012},{"$f":"'Population 2016'!G167*'Prevalence Rates'!G167","v":583.21859872611446},{"$f":"'Population 2016'!H167*'Prevalence Rates'!H167","v":1014.4582757961783},{"$f":"'Population 2016'!I167*'Prevalence Rates'!I167","v":665.92946178343925},{"$f":"'Population 2016'!J167*'Prevalence Rates'!J167","v":278.50913375796176},{"$f":"'Population 2016'!K167*'Prevalence Rates'!K167","v":131.96917197452225},{"$f":"'Population 2016'!L167*'Prevalence Rates'!L167","v":905.36488445859868},{"$f":"'Population 2016'!M167*'Prevalence Rates'!M167","v":904.20997452229267},{"$f":"'Population 2016'!N167*'Prevalence Rates'!N167","v":227.3662420382166},{"$f":"'Population 2016'!O167*'Prevalence Rates'!O167","v":339.29401273885344},{"$f":"'Population 2016'!P167*'Prevalence Rates'!P167","v":79.795184713375775},{"$f":"'Population 2016'!Q167*'Prevalence Rates'!Q167","v":377.92554140127379},{"$f":"'Population 2016'!R167*'Prevalence Rates'!R167","v":115.78124840764328},{"$f":"'Population 2016'!S167*'Prevalence Rates'!S167","v":3178.9283694267515},{"$f":"'Population 2016'!T167*'Prevalence Rates'!T167","v":516.07299363057314},{"$f":"'Population 2016'!U167*'Prevalence Rates'!U167","v":285.09377070063692},{"$f":"'Population 2016'!V167*'Prevalence Rates'!V167","v":362.91522292993625},{"$f":"'Population 2016'!W167*'Prevalence Rates'!W167","v":978.44498343949044},{"$f":"'Population 2016'!X167*'Prevalence Rates'!X167","v":977.77297452229254},{"$f":"'Population 2016'!Y167*'Prevalence Rates'!Y167","v":665.04625796178323},{"$f":"'Population 2016'!Z167*'Prevalence Rates'!Z167","v":845.13898089171937},{"$f":"'Population 2016'!AA167*'Prevalence Rates'!AA167","v":3529.8712738853496},{"$f":"'Population 2016'!AB167*'Prevalence Rates'!AB167","v":1462.9725350318472},{"$f":"'Population 2016'!AC167*'Prevalence Rates'!AC167","v":1791.7817159235667},{"$f":"'Population 2016'!AD167*'Prevalence Rates'!AD167","v":1777.448935031847},{"$f":"'Population 2016'!AE167*'Prevalence Rates'!AE167","v":1307.9377834394902},{"$f":"'Population 2016'!AF167*'Prevalence Rates'!AF167","v":165.69263057324835},{"$f":"'Population 2016'!AG167*'Prevalence Rates'!AG167","v":1307.9377834394902},{"$f":"'Population 2016'!AH167*'Prevalence Rates'!AH167","v":1784.4283184713374},{"$f":"'Population 2016'!AI167*'Prevalence Rates'!AI167","v":1605.6214242038209},{"$f":"'Population 2016'!AJ167*'Prevalence Rates'!AJ167","v":336.50203821656044},{"$f":"'Population 2016'!AK167*'Prevalence Rates'!AK167","v":362.82400000000001},{"$f":"'Population 2016'!AL167*'Prevalence Rates'!AL167","v":303.00110828025475},{"$f":"'Population 2016'!AM167*'Prevalence Rates'!AM167","v":871.10296178343947},{"$f":"'Population 2016'!AN167*'Prevalence Rates'!AN167","v":112.51709847133756},{"$f":"'Population 2016'!AO167*'Prevalence Rates'!AO167","v":112.38664968152864},{"$f":"'Population 2016'!AP167*'Prevalence Rates'!AP167","v":543.79232484076431},{"$f":"'Population 2016'!AQ167*'Prevalence Rates'!AQ167","v":375.47357961783433},{"$f":"'Population 2016'!AR167*'Prevalence Rates'!AR167","v":14429.198},{"$f":"'Population 2016'!AS167*'Prevalence Rates'!AS167","v":666.13471337579608},{"$f":"'Population 2016'!AT167*'Prevalence Rates'!AT167","v":111.27110382165606},{"$f":"'Population 2016'!AU167*'Prevalence Rates'!AU167","v":111.39978343949042},{"$f":"'Population 2016'!AV167*'Prevalence Rates'!AV167","v":361.31743949044585},{"$f":"'Population 2016'!AW167*'Prevalence Rates'!AW167","v":886.23076433121025},{"$f":"'Population 2016'!AX167*'Prevalence Rates'!AX167","v":185.14108280254771},{"$f":"'Population 2016'!AY167*'Prevalence Rates'!AY167","v":2314.1432866242035},{"$f":"'Population 2016'!AZ167*'Prevalence Rates'!AZ167","v":1336.5665796178346},{"$f":"'Population 2016'!BA167*'Prevalence Rates'!BA167","v":195.18251592356683},{"$f":"'Population 2016'!BB167*'Prevalence Rates'!BB167","v":511.30452229299351},{"$f":"'Population 2016'!BC167*'Prevalence Rates'!BC167","v":285.04656974522283},165]
[null,"Male 65-69",{"$f":"'Population 2016'!C168*'Prevalence Rates'!C168","v":394.38733121019101},{"$f":"'Population 2016'!D168*'Prevalence Rates'!D168","v":1339.6541401273887},{"$f":"'Population 2016'!E168*'Prevalence Rates'!E168","v":959.61664968152832},{"$f":"'Population 2016'!F168*'Prevalence Rates'!F168","v":808.93660828025486},{"$f":"'Population 2016'!G168*'Prevalence Rates'!G168","v":811.06307006369411},{"$f":"'Population 2016'!H168*'Prevalence Rates'!H168","v":1318.815821656051},{"$f":"'Population 2016'!I168*'Prevalence Rates'!I168","v":875.71485942675133},{"$f":"'Population 2016'!J168*'Prevalence Rates'!J168","v":346.4487929936306},{"$f":"'Population 2016'!K168*'Prevalence Rates'!K168","v":169.61343949044581},{"$f":"'Population 2016'!L168*'Prevalence Rates'!L168","v":1181.3659977707005},{"$f":"'Population 2016'!M168*'Prevalence Rates'!M168","v":1179.8590127388534},{"$f":"'Population 2016'!N168*'Prevalence Rates'!N168","v":277.74410509554144},{"$f":"'Population 2016'!O168*'Prevalence Rates'!O168","v":429.57045541401266},{"$f":"'Population 2016'!P168*'Prevalence Rates'!P168","v":105.44363694267514},{"$f":"'Population 2016'!Q168*'Prevalence Rates'!Q168","v":429.10219745222923},{"$f":"'Population 2016'!R168*'Prevalence Rates'!R168","v":123.96751910828023},{"$f":"'Population 2016'!S168*'Prevalence Rates'!S168","v":3876.9040318471334},{"$f":"'Population 2016'!T168*'Prevalence Rates'!T168","v":564.9809235668788},{"$f":"'Population 2016'!U168*'Prevalence Rates'!U168","v":376.59688535031853},{"$f":"'Population 2016'!V168*'Prevalence Rates'!V168","v":473.98111464968144},{"$f":"'Population 2016'!W168*'Prevalence Rates'!W168","v":1267.7753681528663},{"$f":"'Population 2016'!X168*'Prevalence Rates'!X168","v":1266.9046433121014},{"$f":"'Population 2016'!Y168*'Prevalence Rates'!Y168","v":848.80365477706982},{"$f":"'Population 2016'!Z168*'Prevalence Rates'!Z168","v":814.09751592356656},{"$f":"'Population 2016'!AA168*'Prevalence Rates'!AA168","v":3876.853681528662},{"$f":"'Population 2016'!AB168*'Prevalence Rates'!AB168","v":1807.2031694267519},{"$f":"'Population 2016'!AC168*'Prevalence Rates'!AC168","v":1929.5732407643313},{"$f":"'Population 2016'!AD168*'Prevalence Rates'!AD168","v":2238.4029611464966},{"$f":"'Population 2016'!AE168*'Prevalence Rates'!AE168","v":1563.3236815286623},{"$f":"'Population 2016'!AF168*'Prevalence Rates'!AF168","v":188.06515286624199},{"$f":"'Population 2016'!AG168*'Prevalence Rates'!AG168","v":1563.3236815286623},{"$f":"'Population 2016'!AH168*'Prevalence Rates'!AH168","v":2003.419031847134},{"$f":"'Population 2016'!AI168*'Prevalence Rates'!AI168","v":1833.4353496815279},{"$f":"'Population 2016'!AJ168*'Prevalence Rates'!AJ168","v":411.09356687898082},{"$f":"'Population 2016'!AK168*'Prevalence Rates'!AK168","v":457.96300000000002},{"$f":"'Population 2016'!AL168*'Prevalence Rates'!AL168","v":437.95714012738853},{"$f":"'Population 2016'!AM168*'Prevalence Rates'!AM168","v":1065.5218312101911},{"$f":"'Population 2016'!AN168*'Prevalence Rates'!AN168","v":132.11128031847133},{"$f":"'Population 2016'!AO168*'Prevalence Rates'!AO168","v":131.95811464968151},{"$f":"'Population 2016'!AP168*'Prevalence Rates'!AP168","v":638.64343949044587},{"$f":"'Population 2016'!AQ168*'Prevalence Rates'!AQ168","v":474.54168152866231},{"$f":"'Population 2016'!AR168*'Prevalence Rates'!AR168","v":17586.517},{"$f":"'Population 2016'!AS168*'Prevalence Rates'!AS168","v":875.98477070063689},{"$f":"'Population 2016'!AT168*'Prevalence Rates'!AT168","v":140.70237054140128},{"$f":"'Population 2016'!AU168*'Prevalence Rates'!AU168","v":140.86508598726112},{"$f":"'Population 2016'!AV168*'Prevalence Rates'!AV168","v":439.77982165605101},{"$f":"'Population 2016'!AW168*'Prevalence Rates'!AW168","v":922.47993312101926},{"$f":"'Population 2016'!AX168*'Prevalence Rates'!AX168","v":225.29249999999996},{"$f":"'Population 2016'!AY168*'Prevalence Rates'!AY168","v":2982.6857324840757},{"$f":"'Population 2016'!AZ168*'Prevalence Rates'!AZ168","v":1715.3292789808918},{"$f":"'Population 2016'!BA168*'Prevalence Rates'!BA168","v":203.73417197452227},{"$f":"'Population 2016'!BB168*'Prevalence Rates'!BB168","v":594.83866242038209},{"$f":"'Population 2016'!BC168*'Prevalence Rates'!BC168","v":376.53453487261135},166]
[null,"Male 70-74",{"$f":"'Population 2016'!C169*'Prevalence Rates'!C169","v":243.91036942675154},{"$f":"'Population 2016'!D169*'Prevalence Rates'!D169","v":911.99531847133767},{"$f":"'Population 2016'!E169*'Prevalence Rates'!E169","v":679.95084076433102},{"$f":"'Population 2016'!F169*'Prevalence Rates'!F169","v":528.43162738853505},{"$f":"'Population 2016'!G169*'Prevalence Rates'!G169","v":585.68161783439473},{"$f":"'Population 2016'!H169*'Prevalence Rates'!H169","v":1001.0494232484076},{"$f":"'Population 2016'!I169*'Prevalence Rates'!I169","v":646.30392156050937},{"$f":"'Population 2016'!J169*'Prevalence Rates'!J169","v":248.20860828025479},{"$f":"'Population 2016'!K169*'Prevalence Rates'!K169","v":129.55136942675156},{"$f":"'Population 2016'!L169*'Prevalence Rates'!L169","v":946.71110780254764},{"$f":"'Population 2016'!M169*'Prevalence Rates'!M169","v":945.50345541401259},{"$f":"'Population 2016'!N169*'Prevalence Rates'!N169","v":195.47000636942678},{"$f":"'Population 2016'!O169*'Prevalence Rates'!O169","v":330.20578025477704},{"$f":"'Population 2016'!P169*'Prevalence Rates'!P169","v":58.421474522292982},{"$f":"'Population 2016'!Q169*'Prevalence Rates'!Q169","v":326.63929936305726},{"$f":"'Population 2016'!R169*'Prevalence Rates'!R169","v":103.06878025477705},{"$f":"'Population 2016'!S169*'Prevalence Rates'!S169","v":2761.2517452229299},{"$f":"'Population 2016'!T169*'Prevalence Rates'!T169","v":335.12332802547763},{"$f":"'Population 2016'!U169*'Prevalence Rates'!U169","v":271.67689171974524},{"$f":"'Population 2016'!V169*'Prevalence Rates'!V169","v":357.43691082802542},{"$f":"'Population 2016'!W169*'Prevalence Rates'!W169","v":928.59414012738864},{"$f":"'Population 2016'!X169*'Prevalence Rates'!X169","v":927.95636942675117},{"$f":"'Population 2016'!Y169*'Prevalence Rates'!Y169","v":625.17271528662411},{"$f":"'Population 2016'!Z169*'Prevalence Rates'!Z169","v":577.55843312101888},{"$f":"'Population 2016'!AA169*'Prevalence Rates'!AA169","v":2845.0749554140125},{"$f":"'Population 2016'!AB169*'Prevalence Rates'!AB169","v":1254.4667719745225},{"$f":"'Population 2016'!AC169*'Prevalence Rates'!AC169","v":1417.9122974522293},{"$f":"'Population 2016'!AD169*'Prevalence Rates'!AD169","v":1681.5143407643311},{"$f":"'Population 2016'!AE169*'Prevalence Rates'!AE169","v":1200.2072547770701},{"$f":"'Population 2016'!AF169*'Prevalence Rates'!AF169","v":158.12181847133755},{"$f":"'Population 2016'!AG169*'Prevalence Rates'!AG169","v":1200.2072547770701},{"$f":"'Population 2016'!AH169*'Prevalence Rates'!AH169","v":1468.1045159235669},{"$f":"'Population 2016'!AI169*'Prevalence Rates'!AI169","v":1262.3257853503178},{"$f":"'Population 2016'!AJ169*'Prevalence Rates'!AJ169","v":291.86401273885343},{"$f":"'Population 2016'!AK169*'Prevalence Rates'!AK169","v":336.226},{"$f":"'Population 2016'!AL169*'Prevalence Rates'!AL169","v":329.47234394904456},{"$f":"'Population 2016'!AM169*'Prevalence Rates'!AM169","v":749.54840764331198},{"$f":"'Population 2016'!AN169*'Prevalence Rates'!AN169","v":110.0927335987261},{"$f":"'Population 2016'!AO169*'Prevalence Rates'!AO169","v":109.96509554140125},{"$f":"'Population 2016'!AP169*'Prevalence Rates'!AP169","v":512.81799363057326},{"$f":"'Population 2016'!AQ169*'Prevalence Rates'!AQ169","v":350.99542675159228},{"$f":"'Population 2016'!AR169*'Prevalence Rates'!AR169","v":12877.772000000001},{"$f":"'Population 2016'!AS169*'Prevalence Rates'!AS169","v":646.5031242038217},{"$f":"'Population 2016'!AT169*'Prevalence Rates'!AT169","v":105.14581480891719},{"$f":"'Population 2016'!AU169*'Prevalence Rates'!AU169","v":105.26741082802546},{"$f":"'Population 2016'!AV169*'Prevalence Rates'!AV169","v":332.94651592356689},{"$f":"'Population 2016'!AW169*'Prevalence Rates'!AW169","v":701.89854458598745},{"$f":"'Population 2016'!AX169*'Prevalence Rates'!AX169","v":154.02162420382163},{"$f":"'Population 2016'!AY169*'Prevalence Rates'!AY169","v":2161.2840636942669},{"$f":"'Population 2016'!AZ169*'Prevalence Rates'!AZ169","v":1231.9477598726116},{"$f":"'Population 2016'!BA169*'Prevalence Rates'!BA169","v":155.61605095541398},{"$f":"'Population 2016'!BB169*'Prevalence Rates'!BB169","v":446.40592356687887},{"$f":"'Population 2016'!BC169*'Prevalence Rates'!BC169","v":271.6319121019107},167]
[null,"Male 75-79",{"$f":"'Population 2016'!C170*'Prevalence Rates'!C170","v":333.08221337579613},{"$f":"'Population 2016'!D170*'Prevalence Rates'!D170","v":1033.0012261146496},{"$f":"'Population 2016'!E170*'Prevalence Rates'!E170","v":708.51210191082771},{"$f":"'Population 2016'!F170*'Prevalence Rates'!F170","v":595.57906050955421},{"$f":"'Population 2016'!G170*'Prevalence Rates'!G170","v":663.61738853503164},{"$f":"'Population 2016'!H170*'Prevalence Rates'!H170","v":1116.5126847133756},{"$f":"'Population 2016'!I170*'Prevalence Rates'!I170","v":721.96914792993607},{"$f":"'Population 2016'!J170*'Prevalence Rates'!J170","v":262.29936305732491},{"$f":"'Population 2016'!K170*'Prevalence Rates'!K170","v":129.50398089171972},{"$f":"'Population 2016'!L170*'Prevalence Rates'!L170","v":1071.7232202229297},{"$f":"'Population 2016'!M170*'Prevalence Rates'!M170","v":1070.3560987261144},{"$f":"'Population 2016'!N170*'Prevalence Rates'!N170","v":256.55713375796182},{"$f":"'Population 2016'!O170*'Prevalence Rates'!O170","v":371.99670382165601},{"$f":"'Population 2016'!P170*'Prevalence Rates'!P170","v":48.722866242038208},{"$f":"'Population 2016'!Q170*'Prevalence Rates'!Q170","v":326.93742038216556},{"$f":"'Population 2016'!R170*'Prevalence Rates'!R170","v":123.24019108280253},{"$f":"'Population 2016'!S170*'Prevalence Rates'!S170","v":3095.8059554140127},{"$f":"'Population 2016'!T170*'Prevalence Rates'!T170","v":403.81695859872599},{"$f":"'Population 2016'!U170*'Prevalence Rates'!U170","v":315.78716560509554},{"$f":"'Population 2016'!V170*'Prevalence Rates'!V170","v":383.01783439490441},{"$f":"'Population 2016'!W170*'Prevalence Rates'!W170","v":1060.1998471337581},{"$f":"'Population 2016'!X170*'Prevalence Rates'!X170","v":1059.4716878980887},{"$f":"'Population 2016'!Y170*'Prevalence Rates'!Y170","v":665.71578343949022},{"$f":"'Population 2016'!Z170*'Prevalence Rates'!Z170","v":620.84942675159209},{"$f":"'Population 2016'!AA170*'Prevalence Rates'!AA170","v":3162.6315286624204},{"$f":"'Population 2016'!AB170*'Prevalence Rates'!AB170","v":1487.6809681528664},{"$f":"'Population 2016'!AC170*'Prevalence Rates'!AC170","v":1494.8390063694267},{"$f":"'Population 2016'!AD170*'Prevalence Rates'!AD170","v":1786.9407420382165},{"$f":"'Population 2016'!AE170*'Prevalence Rates'!AE170","v":1230.3612420382165},{"$f":"'Population 2016'!AF170*'Prevalence Rates'!AF170","v":169.58818471337577},{"$f":"'Population 2016'!AG170*'Prevalence Rates'!AG170","v":1230.3612420382165},{"$f":"'Population 2016'!AH170*'Prevalence Rates'!AH170","v":1724.4309554140127},{"$f":"'Population 2016'!AI170*'Prevalence Rates'!AI170","v":1398.548808917197},{"$f":"'Population 2016'!AJ170*'Prevalence Rates'!AJ170","v":322.25350318471334},{"$f":"'Population 2016'!AK170*'Prevalence Rates'!AK170","v":448.38},{"$f":"'Population 2016'!AL170*'Prevalence Rates'!AL170","v":371.46754777070066},{"$f":"'Population 2016'!AM170*'Prevalence Rates'!AM170","v":824.64792993630567},{"$f":"'Population 2016'!AN170*'Prevalence Rates'!AN170","v":119.23632802547769},{"$f":"'Population 2016'!AO170*'Prevalence Rates'!AO170","v":119.09808917197451},{"$f":"'Population 2016'!AP170*'Prevalence Rates'!AP170","v":591.7686305732484},{"$f":"'Population 2016'!AQ170*'Prevalence Rates'!AQ170","v":373.5284713375795},{"$f":"'Population 2016'!AR170*'Prevalence Rates'!AR170","v":14426.070000000002},{"$f":"'Population 2016'!AS170*'Prevalence Rates'!AS170","v":722.19167197452225},{"$f":"'Population 2016'!AT170*'Prevalence Rates'!AT170","v":119.53711146496815},{"$f":"'Population 2016'!AU170*'Prevalence Rates'!AU170","v":119.67535031847132},{"$f":"'Population 2016'!AV170*'Prevalence Rates'!AV170","v":364.57079617834398},{"$f":"'Population 2016'!AW170*'Prevalence Rates'!AW170","v":870.65665605095558},{"$f":"'Population 2016'!AX170*'Prevalence Rates'!AX170","v":169.57046178343944},{"$f":"'Population 2016'!AY170*'Prevalence Rates'!AY170","v":2497.7279617834388},{"$f":"'Population 2016'!AZ170*'Prevalence Rates'!AZ170","v":1438.0309394904461},{"$f":"'Population 2016'!BA170*'Prevalence Rates'!BA170","v":144.40390127388534},{"$f":"'Population 2016'!BB170*'Prevalence Rates'!BB170","v":482.92452229299357},{"$f":"'Population 2016'!BC170*'Prevalence Rates'!BC170","v":315.73488296178334},168]
[null,"Male 80-84",{"$f":"'Population 2016'!C171*'Prevalence Rates'!C171","v":235.1604936305732},{"$f":"'Population 2016'!D171*'Prevalence Rates'!D171","v":711.985796178344},{"$f":"'Population 2016'!E171*'Prevalence Rates'!E171","v":482.27130573248388},{"$f":"'Population 2016'!F171*'Prevalence Rates'!F171","v":391.49952229299367},{"$f":"'Population 2016'!G171*'Prevalence Rates'!G171","v":396.14292993630562},{"$f":"'Population 2016'!H171*'Prevalence Rates'!H171","v":688.6019092356687},{"$f":"'Population 2016'!I171*'Prevalence Rates'!I171","v":471.67446210191071},{"$f":"'Population 2016'!J171*'Prevalence Rates'!J171","v":185.57679936305735},{"$f":"'Population 2016'!K171*'Prevalence Rates'!K171","v":82.411624203821646},{"$f":"'Population 2016'!L171*'Prevalence Rates'!L171","v":725.87480063694261},{"$f":"'Population 2016'!M171*'Prevalence Rates'!M171","v":724.94885350318452},{"$f":"'Population 2016'!N171*'Prevalence Rates'!N171","v":174.92531847133759},{"$f":"'Population 2016'!O171*'Prevalence Rates'!O171","v":236.72517515923565},{"$f":"'Population 2016'!P171*'Prevalence Rates'!P171","v":49.439378980891711},{"$f":"'Population 2016'!Q171*'Prevalence Rates'!Q171","v":256.67866242038212},{"$f":"'Population 2016'!R171*'Prevalence Rates'!R171","v":92.430143312101904},{"$f":"'Population 2016'!S171*'Prevalence Rates'!S171","v":2105.8030891719745},{"$f":"'Population 2016'!T171*'Prevalence Rates'!T171","v":338.06488853503174},{"$f":"'Population 2016'!U171*'Prevalence Rates'!U171","v":187.33136942675159},{"$f":"'Population 2016'!V171*'Prevalence Rates'!V171","v":227.61305732484072},{"$f":"'Population 2016'!W171*'Prevalence Rates'!W171","v":670.91923566878995},{"$f":"'Population 2016'!X171*'Prevalence Rates'!X171","v":670.45843949044558},{"$f":"'Population 2016'!Y171*'Prevalence Rates'!Y171","v":429.56660350318458},{"$f":"'Population 2016'!Z171*'Prevalence Rates'!Z171","v":428.03407643312084},{"$f":"'Population 2016'!AA171*'Prevalence Rates'!AA171","v":2147.6089490445856},{"$f":"'Population 2016'!AB171*'Prevalence Rates'!AB171","v":968.21075159235681},{"$f":"'Population 2016'!AC171*'Prevalence Rates'!AC171","v":1082.4968121019108},{"$f":"'Population 2016'!AD171*'Prevalence Rates'!AD171","v":1185.3191751592356},{"$f":"'Population 2016'!AE171*'Prevalence Rates'!AE171","v":864.32450636942667},{"$f":"'Population 2016'!AF171*'Prevalence Rates'!AF171","v":111.73800955414009},{"$f":"'Population 2016'!AG171*'Prevalence Rates'!AG171","v":864.32450636942667},{"$f":"'Population 2016'!AH171*'Prevalence Rates'!AH171","v":1094.3504140127388},{"$f":"'Population 2016'!AI171*'Prevalence Rates'!AI171","v":1016.531054140127},{"$f":"'Population 2016'!AJ171*'Prevalence Rates'!AJ171","v":208.90270700636941},{"$f":"'Population 2016'!AK171*'Prevalence Rates'!AK171","v":251.22},{"$f":"'Population 2016'!AL171*'Prevalence Rates'!AL171","v":237.25433121019108},{"$f":"'Population 2016'!AM171*'Prevalence Rates'!AM171","v":498.10294585987259},{"$f":"'Population 2016'!AN171*'Prevalence Rates'!AN171","v":89.427246019108267},{"$f":"'Population 2016'!AO171*'Prevalence Rates'!AO171","v":89.323566878980884},{"$f":"'Population 2016'!AP171*'Prevalence Rates'!AP171","v":421.89434713375795},{"$f":"'Population 2016'!AQ171*'Prevalence Rates'!AQ171","v":261.23598726114642},{"$f":"'Population 2016'!AR171*'Prevalence Rates'!AR171","v":9616.32},{"$f":"'Population 2016'!AS171*'Prevalence Rates'!AS171","v":471.81984076433122},{"$f":"'Population 2016'!AT171*'Prevalence Rates'!AT171","v":71.262508757961783},{"$f":"'Population 2016'!AU171*'Prevalence Rates'!AU171","v":71.344920382165583},{"$f":"'Population 2016'!AV171*'Prevalence Rates'!AV171","v":211.23200636942676},{"$f":"'Population 2016'!AW171*'Prevalence Rates'!AW171","v":573.43805732484088},{"$f":"'Population 2016'!AX171*'Prevalence Rates'!AX171","v":128.44060509554137},{"$f":"'Population 2016'!AY171*'Prevalence Rates'!AY171","v":1652.4150955414009},{"$f":"'Population 2016'!AZ171*'Prevalence Rates'!AZ171","v":985.03082484076447},{"$f":"'Population 2016'!BA171*'Prevalence Rates'!BA171","v":126.64299363057323},{"$f":"'Population 2016'!BB171*'Prevalence Rates'!BB171","v":296.60589171974516},{"$f":"'Population 2016'!BC171*'Prevalence Rates'!BC171","v":187.30035429936299},169]
[null,"Male 85-89",{"$f":"'Population 2016'!C172*'Prevalence Rates'!C172","v":117.20933121019107},{"$f":"'Population 2016'!D172*'Prevalence Rates'!D172","v":324.1245382165605},{"$f":"'Population 2016'!E172*'Prevalence Rates'!E172","v":208.52799363057315},{"$f":"'Population 2016'!F172*'Prevalence Rates'!F172","v":222.40504777070066},{"$f":"'Population 2016'!G172*'Prevalence Rates'!G172","v":191.05318471337574},{"$f":"'Population 2016'!H172*'Prevalence Rates'!H172","v":320.71869745222926},{"$f":"'Population 2016'!I172*'Prevalence Rates'!I172","v":234.03004920382159},{"$f":"'Population 2016'!J172*'Prevalence Rates'!J172","v":81.312802547770715},{"$f":"'Population 2016'!K172*'Prevalence Rates'!K172","v":43.952866242038212},{"$f":"'Population 2016'!L172*'Prevalence Rates'!L172","v":336.08328773885347},{"$f":"'Population 2016'!M172*'Prevalence Rates'!M172","v":335.65457006369417},{"$f":"'Population 2016'!N172*'Prevalence Rates'!N172","v":119.94878980891721},{"$f":"'Population 2016'!O172*'Prevalence Rates'!O172","v":96.883662420382151},{"$f":"'Population 2016'!P172*'Prevalence Rates'!P172","v":14.330254777070062},{"$f":"'Population 2016'!Q172*'Prevalence Rates'!Q172","v":131.1496815286624},{"$f":"'Population 2016'!R172*'Prevalence Rates'!R172","v":50.872404458598716},{"$f":"'Population 2016'!S172*'Prevalence Rates'!S172","v":1051.7850000000001},{"$f":"'Population 2016'!T172*'Prevalence Rates'!T172","v":153.83503184713373},{"$f":"'Population 2016'!U172*'Prevalence Rates'!U172","v":113.92805732484076},{"$f":"'Population 2016'!V172*'Prevalence Rates'!V172","v":98.109076433121004},{"$f":"'Population 2016'!W172*'Prevalence Rates'!W172","v":344.30690445859875},{"$f":"'Population 2016'!X172*'Prevalence Rates'!X172","v":344.07042993630557},{"$f":"'Population 2016'!Y172*'Prevalence Rates'!Y172","v":186.67030414012734},{"$f":"'Population 2016'!Z172*'Prevalence Rates'!Z172","v":189.61509554140119},{"$f":"'Population 2016'!AA172*'Prevalence Rates'!AA172","v":1048.9670541401274},{"$f":"'Population 2016'!AB172*'Prevalence Rates'!AB172","v":477.03240764331213},{"$f":"'Population 2016'!AC172*'Prevalence Rates'!AC172","v":547.16153503184717},{"$f":"'Population 2016'!AD172*'Prevalence Rates'!AD172","v":576.68388535031852},{"$f":"'Population 2016'!AE172*'Prevalence Rates'!AE172","v":422.35007961783435},{"$f":"'Population 2016'!AF172*'Prevalence Rates'!AF172","v":70.529665605095516},{"$f":"'Population 2016'!AG172*'Prevalence Rates'!AG172","v":422.35007961783435},{"$f":"'Population 2016'!AH172*'Prevalence Rates'!AH172","v":513.56493630573254},{"$f":"'Population 2016'!AI172*'Prevalence Rates'!AI172","v":499.89751910828005},{"$f":"'Population 2016'!AJ172*'Prevalence Rates'!AJ172","v":113.35079617834393},{"$f":"'Population 2016'!AK172*'Prevalence Rates'!AK172","v":151.05000000000001},{"$f":"'Population 2016'!AL172*'Prevalence Rates'!AL172","v":101.30933121019109},{"$f":"'Population 2016'!AM172*'Prevalence Rates'!AM172","v":237.84171974522292},{"$f":"'Population 2016'!AN172*'Prevalence Rates'!AN172","v":45.139467038216551},{"$f":"'Population 2016'!AO172*'Prevalence Rates'!AO172","v":45.08713375796178},{"$f":"'Population 2016'!AP172*'Prevalence Rates'!AP172","v":228.09410828025477},{"$f":"'Population 2016'!AQ172*'Prevalence Rates'!AQ172","v":162.20025477707003},{"$f":"'Population 2016'!AR172*'Prevalence Rates'!AR172","v":4785.1050000000005},{"$f":"'Population 2016'!AS172*'Prevalence Rates'!AS172","v":234.10218152866241},{"$f":"'Population 2016'!AT172*'Prevalence Rates'!AT172","v":43.677021496815286},{"$f":"'Population 2016'!AU172*'Prevalence Rates'!AU172","v":43.727531847133747},{"$f":"'Population 2016'!AV172*'Prevalence Rates'!AV172","v":118.13345541401274},{"$f":"'Population 2016'!AW172*'Prevalence Rates'!AW172","v":265.71988853503188},{"$f":"'Population 2016'!AX172*'Prevalence Rates'!AX172","v":49.067197452229287},{"$f":"'Population 2016'!AY172*'Prevalence Rates'!AY172","v":907.69757961783421},{"$f":"'Population 2016'!AZ172*'Prevalence Rates'!AZ172","v":567.8796401273886},{"$f":"'Population 2016'!BA172*'Prevalence Rates'!BA172","v":53.282722929936298},{"$f":"'Population 2016'!BB172*'Prevalence Rates'!BB172","v":148.72070063694267},{"$f":"'Population 2016'!BC172*'Prevalence Rates'!BC172","v":113.90919506369423},170]
[null,"Male 90+",{"$f":"'Population 2016'!C173*'Prevalence Rates'!C173","v":46.735366242038211},{"$f":"'Population 2016'!D173*'Prevalence Rates'!D173","v":144.57353503184714},{"$f":"'Population 2016'!E173*'Prevalence Rates'!E173","v":99.030668789808871},{"$f":"'Population 2016'!F173*'Prevalence Rates'!F173","v":97.458391719745237},{"$f":"'Population 2016'!G173*'Prevalence Rates'!G173","v":78.760700636942659},{"$f":"'Population 2016'!H173*'Prevalence Rates'!H173","v":127.77295700636942},{"$f":"'Population 2016'!I173*'Prevalence Rates'!I173","v":84.033955891719728},{"$f":"'Population 2016'!J173*'Prevalence Rates'!J173","v":36.721910828025486},{"$f":"'Population 2016'!K173*'Prevalence Rates'!K173","v":21.191560509554137},{"$f":"'Population 2016'!L173*'Prevalence Rates'!L173","v":162.7521974522293},{"$f":"'Population 2016'!M173*'Prevalence Rates'!M173","v":162.54458598726109},{"$f":"'Population 2016'!N173*'Prevalence Rates'!N173","v":43.314840764331215},{"$f":"'Population 2016'!O173*'Prevalence Rates'!O173","v":31.989888535031845},{"$f":"'Population 2016'!P173*'Prevalence Rates'!P173","v":8.598152866242037},{"$f":"'Population 2016'!Q173*'Prevalence Rates'!Q173","v":55.270222929936295},{"$f":"'Population 2016'!R173*'Prevalence Rates'!R173","v":25.077945859872607},{"$f":"'Population 2016'!S173*'Prevalence Rates'!S173","v":426.52003184713374},{"$f":"'Population 2016'!T173*'Prevalence Rates'!T173","v":65.131767515923556},{"$f":"'Population 2016'!U173*'Prevalence Rates'!U173","v":45.877070063694269},{"$f":"'Population 2016'!V173*'Prevalence Rates'!V173","v":50.231847133757952},{"$f":"'Population 2016'!W173*'Prevalence Rates'!W173","v":145.24295541401275},{"$f":"'Population 2016'!X173*'Prevalence Rates'!X173","v":145.14320063694262},{"$f":"'Population 2016'!Y173*'Prevalence Rates'!Y173","v":89.961592356687873},{"$f":"'Population 2016'!Z173*'Prevalence Rates'!Z173","v":96.007643312101862},{"$f":"'Population 2016'!AA173*'Prevalence Rates'!AA173","v":496.74840764331208},{"$f":"'Population 2016'!AB173*'Prevalence Rates'!AB173","v":204.33019108280257},{"$f":"'Population 2016'!AC173*'Prevalence Rates'!AC173","v":285.40702547770701},{"$f":"'Population 2016'!AD173*'Prevalence Rates'!AD173","v":224.43913375796177},{"$f":"'Population 2016'!AE173*'Prevalence Rates'!AE173","v":159.55447452229299},{"$f":"'Population 2016'!AF173*'Prevalence Rates'!AF173","v":30.11378980891719},{"$f":"'Population 2016'!AG173*'Prevalence Rates'!AG173","v":159.55447452229299},{"$f":"'Population 2016'!AH173*'Prevalence Rates'!AH173","v":213.31318471337579},{"$f":"'Population 2016'!AI173*'Prevalence Rates'!AI173","v":205.92576114649674},{"$f":"'Population 2016'!AJ173*'Prevalence Rates'!AJ173","v":35.597770700636936},{"$f":"'Population 2016'!AK173*'Prevalence Rates'!AK173","v":58.830000000000005},{"$f":"'Population 2016'!AL173*'Prevalence Rates'!AL173","v":51.087611464968155},{"$f":"'Population 2016'!AM173*'Prevalence Rates'!AM173","v":87.728503184713375},{"$f":"'Population 2016'!AN173*'Prevalence Rates'!AN173","v":17.885449203821654},{"$f":"'Population 2016'!AO173*'Prevalence Rates'!AO173","v":17.864713375796175},{"$f":"'Population 2016'!AP173*'Prevalence Rates'!AP173","v":106.0717356687898},{"$f":"'Population 2016'!AQ173*'Prevalence Rates'!AQ173","v":103.71458598726112},{"$f":"'Population 2016'!AR173*'Prevalence Rates'!AR173","v":2061.4349999999999},{"$f":"'Population 2016'!AS173*'Prevalence Rates'!AS173","v":84.05985668789809},{"$f":"'Population 2016'!AT173*'Prevalence Rates'!AT173","v":15.325270700636942},{"$f":"'Population 2016'!AU173*'Prevalence Rates'!AU173","v":15.342993630573245},{"$f":"'Population 2016'!AV173*'Prevalence Rates'!AV173","v":43.028742038216564},{"$f":"'Population 2016'!AW173*'Prevalence Rates'!AW173","v":119.53356687898091},{"$f":"'Population 2016'!AX173*'Prevalence Rates'!AX173","v":20.925716560509549},{"$f":"'Population 2016'!AY173*'Prevalence Rates'!AY173","v":389.12464968152858},{"$f":"'Population 2016'!AZ173*'Prevalence Rates'!AZ173","v":246.0540191082803},{"$f":"'Population 2016'!BA173*'Prevalence Rates'!BA173","v":18.533121019108279},{"$f":"'Population 2016'!BB173*'Prevalence Rates'!BB173","v":67.676273885350312},{"$f":"'Population 2016'!BC173*'Prevalence Rates'!BC173","v":45.869474522292975},171]
["SIMD Q4","Female 0-4",{"$f":"'Population 2016'!C174*'Prevalence Rates'!C174","v":0},{"$f":"'Population 2016'!D174*'Prevalence Rates'!D174","v":0},{"$f":"'Population 2016'!E174*'Prevalence Rates'!E174","v":0},{"$f":"'Population 2016'!F174*'Prevalence Rates'!F174","v":0},{"$f":"'Population 2016'!G174*'Prevalence Rates'!G174","v":0},{"$f":"'Population 2016'!H174*'Prevalence Rates'!H174","v":0},{"$f":"'Population 2016'!I174*'Prevalence Rates'!I174","v":0},{"$f":"'Population 2016'!J174*'Prevalence Rates'!J174","v":0},{"$f":"'Population 2016'!K174*'Prevalence Rates'!K174","v":0},{"$f":"'Population 2016'!L174*'Prevalence Rates'!L174","v":0},{"$f":"'Population 2016'!M174*'Prevalence Rates'!M174","v":0},{"$f":"'Population 2016'!N174*'Prevalence Rates'!N174","v":0},{"$f":"'Population 2016'!O174*'Prevalence Rates'!O174","v":0},{"$f":"'Population 2016'!P174*'Prevalence Rates'!P174","v":0},{"$f":"'Population 2016'!Q174*'Prevalence Rates'!Q174","v":0},{"$f":"'Population 2016'!R174*'Prevalence Rates'!R174","v":0},{"$f":"'Population 2016'!S174*'Prevalence Rates'!S174","v":0},{"$f":"'Population 2016'!T174*'Prevalence Rates'!T174","v":0},{"$f":"'Population 2016'!U174*'Prevalence Rates'!U174","v":0},{"$f":"'Population 2016'!V174*'Prevalence Rates'!V174","v":0},{"$f":"'Population 2016'!W174*'Prevalence Rates'!W174","v":0},{"$f":"'Population 2016'!X174*'Prevalence Rates'!X174","v":0},{"$f":"'Population 2016'!Y174*'Prevalence Rates'!Y174","v":0},{"$f":"'Population 2016'!Z174*'Prevalence Rates'!Z174","v":0},{"$f":"'Population 2016'!AA174*'Prevalence Rates'!AA174","v":0},{"$f":"'Population 2016'!AB174*'Prevalence Rates'!AB174","v":0},{"$f":"'Population 2016'!AC174*'Prevalence Rates'!AC174","v":0},{"$f":"'Population 2016'!AD174*'Prevalence Rates'!AD174","v":0},{"$f":"'Population 2016'!AE174*'Prevalence Rates'!AE174","v":0},{"$f":"'Population 2016'!AF174*'Prevalence Rates'!AF174","v":0},{"$f":"'Population 2016'!AG174*'Prevalence Rates'!AG174","v":0},{"$f":"'Population 2016'!AH174*'Prevalence Rates'!AH174","v":0},{"$f":"'Population 2016'!AI174*'Prevalence Rates'!AI174","v":0},{"$f":"'Population 2016'!AJ174*'Prevalence Rates'!AJ174","v":0},{"$f":"'Population 2016'!AK174*'Prevalence Rates'!AK174","v":0},{"$f":"'Population 2016'!AL174*'Prevalence Rates'!AL174","v":0},{"$f":"'Population 2016'!AM174*'Prevalence Rates'!AM174","v":0},{"$f":"'Population 2016'!AN174*'Prevalence Rates'!AN174","v":0},{"$f":"'Population 2016'!AO174*'Prevalence Rates'!AO174","v":0},{"$f":"'Population 2016'!AP174*'Prevalence Rates'!AP174","v":0},{"$f":"'Population 2016'!AQ174*'Prevalence Rates'!AQ174","v":0},{"$f":"'Population 2016'!AR174*'Prevalence Rates'!AR174","v":0},{"$f":"'Population 2016'!AS174*'Prevalence Rates'!AS174","v":0},{"$f":"'Population 2016'!AT174*'Prevalence Rates'!AT174","v":0},{"$f":"'Population 2016'!AU174*'Prevalence Rates'!AU174","v":0},{"$f":"'Population 2016'!AV174*'Prevalence Rates'!AV174","v":0},{"$f":"'Population 2016'!AW174*'Prevalence Rates'!AW174","v":0},{"$f":"'Population 2016'!AX174*'Prevalence Rates'!AX174","v":0},{"$f":"'Population 2016'!AY174*'Prevalence Rates'!AY174","v":0},{"$f":"'Population 2016'!AZ174*'Prevalence Rates'!AZ174","v":0},{"$f":"'Population 2016'!BA174*'Prevalence Rates'!BA174","v":0},{"$f":"'Population 2016'!BB174*'Prevalence Rates'!BB174","v":0},{"$f":"'Population 2016'!BC174*'Prevalence Rates'!BC174","v":0},172]
[null,"Female 5-9",{"$f":"'Population 2016'!C175*'Prevalence Rates'!C175","v":0},{"$f":"'Population 2016'!D175*'Prevalence Rates'!D175","v":0},{"$f":"'Population 2016'!E175*'Prevalence Rates'!E175","v":0},{"$f":"'Population 2016'!F175*'Prevalence Rates'!F175","v":0},{"$f":"'Population 2016'!G175*'Prevalence Rates'!G175","v":0},{"$f":"'Population 2016'!H175*'Prevalence Rates'!H175","v":0},{"$f":"'Population 2016'!I175*'Prevalence Rates'!I175","v":0},{"$f":"'Population 2016'!J175*'Prevalence Rates'!J175","v":0},{"$f":"'Population 2016'!K175*'Prevalence Rates'!K175","v":0},{"$f":"'Population 2016'!L175*'Prevalence Rates'!L175","v":0},{"$f":"'Population 2016'!M175*'Prevalence Rates'!M175","v":0},{"$f":"'Population 2016'!N175*'Prevalence Rates'!N175","v":0},{"$f":"'Population 2016'!O175*'Prevalence Rates'!O175","v":0},{"$f":"'Population 2016'!P175*'Prevalence Rates'!P175","v":0},{"$f":"'Population 2016'!Q175*'Prevalence Rates'!Q175","v":0},{"$f":"'Population 2016'!R175*'Prevalence Rates'!R175","v":0},{"$f":"'Population 2016'!S175*'Prevalence Rates'!S175","v":0},{"$f":"'Population 2016'!T175*'Prevalence Rates'!T175","v":0},{"$f":"'Population 2016'!U175*'Prevalence Rates'!U175","v":0},{"$f":"'Population 2016'!V175*'Prevalence Rates'!V175","v":0},{"$f":"'Population 2016'!W175*'Prevalence Rates'!W175","v":0},{"$f":"'Population 2016'!X175*'Prevalence Rates'!X175","v":0},{"$f":"'Population 2016'!Y175*'Prevalence Rates'!Y175","v":0},{"$f":"'Population 2016'!Z175*'Prevalence Rates'!Z175","v":0},{"$f":"'Population 2016'!AA175*'Prevalence Rates'!AA175","v":0},{"$f":"'Population 2016'!AB175*'Prevalence Rates'!AB175","v":0},{"$f":"'Population 2016'!AC175*'Prevalence Rates'!AC175","v":0},{"$f":"'Population 2016'!AD175*'Prevalence Rates'!AD175","v":0},{"$f":"'Population 2016'!AE175*'Prevalence Rates'!AE175","v":0},{"$f":"'Population 2016'!AF175*'Prevalence Rates'!AF175","v":0},{"$f":"'Population 2016'!AG175*'Prevalence Rates'!AG175","v":0},{"$f":"'Population 2016'!AH175*'Prevalence Rates'!AH175","v":0},{"$f":"'Population 2016'!AI175*'Prevalence Rates'!AI175","v":0},{"$f":"'Population 2016'!AJ175*'Prevalence Rates'!AJ175","v":0},{"$f":"'Population 2016'!AK175*'Prevalence Rates'!AK175","v":0},{"$f":"'Population 2016'!AL175*'Prevalence Rates'!AL175","v":0},{"$f":"'Population 2016'!AM175*'Prevalence Rates'!AM175","v":0},{"$f":"'Population 2016'!AN175*'Prevalence Rates'!AN175","v":0},{"$f":"'Population 2016'!AO175*'Prevalence Rates'!AO175","v":0},{"$f":"'Population 2016'!AP175*'Prevalence Rates'!AP175","v":0},{"$f":"'Population 2016'!AQ175*'Prevalence Rates'!AQ175","v":0},{"$f":"'Population 2016'!AR175*'Prevalence Rates'!AR175","v":0},{"$f":"'Population 2016'!AS175*'Prevalence Rates'!AS175","v":0},{"$f":"'Population 2016'!AT175*'Prevalence Rates'!AT175","v":0},{"$f":"'Population 2016'!AU175*'Prevalence Rates'!AU175","v":0},{"$f":"'Population 2016'!AV175*'Prevalence Rates'!AV175","v":0},{"$f":"'Population 2016'!AW175*'Prevalence Rates'!AW175","v":0},{"$f":"'Population 2016'!AX175*'Prevalence Rates'!AX175","v":0},{"$f":"'Population 2016'!AY175*'Prevalence Rates'!AY175","v":0},{"$f":"'Population 2016'!AZ175*'Prevalence Rates'!AZ175","v":0},{"$f":"'Population 2016'!BA175*'Prevalence Rates'!BA175","v":0},{"$f":"'Population 2016'!BB175*'Prevalence Rates'!BB175","v":0},{"$f":"'Population 2016'!BC175*'Prevalence Rates'!BC175","v":0},173]
[null,"Female 10-15",{"$f":"'Population 2016'!C176*'Prevalence Rates'!C176","v":0},{"$f":"'Population 2016'!D176*'Prevalence Rates'!D176","v":0},{"$f":"'Population 2016'!E176*'Prevalence Rates'!E176","v":0},{"$f":"'Population 2016'!F176*'Prevalence Rates'!F176","v":0},{"$f":"'Population 2016'!G176*'Prevalence Rates'!G176","v":0},{"$f":"'Population 2016'!H176*'Prevalence Rates'!H176","v":0},{"$f":"'Population 2016'!I176*'Prevalence Rates'!I176","v":0},{"$f":"'Population 2016'!J176*'Prevalence Rates'!J176","v":0},{"$f":"'Population 2016'!K176*'Prevalence Rates'!K176","v":0},{"$f":"'Population 2016'!L176*'Prevalence Rates'!L176","v":0},{"$f":"'Population 2016'!M176*'Prevalence Rates'!M176","v":0},{"$f":"'Population 2016'!N176*'Prevalence Rates'!N176","v":0},{"$f":"'Population 2016'!O176*'Prevalence Rates'!O176","v":0},{"$f":"'Population 2016'!P176*'Prevalence Rates'!P176","v":0},{"$f":"'Population 2016'!Q176*'Prevalence Rates'!Q176","v":0},{"$f":"'Population 2016'!R176*'Prevalence Rates'!R176","v":0},{"$f":"'Population 2016'!S176*'Prevalence Rates'!S176","v":0},{"$f":"'Population 2016'!T176*'Prevalence Rates'!T176","v":0},{"$f":"'Population 2016'!U176*'Prevalence Rates'!U176","v":0},{"$f":"'Population 2016'!V176*'Prevalence Rates'!V176","v":0},{"$f":"'Population 2016'!W176*'Prevalence Rates'!W176","v":0},{"$f":"'Population 2016'!X176*'Prevalence Rates'!X176","v":0},{"$f":"'Population 2016'!Y176*'Prevalence Rates'!Y176","v":0},{"$f":"'Population 2016'!Z176*'Prevalence Rates'!Z176","v":0},{"$f":"'Population 2016'!AA176*'Prevalence Rates'!AA176","v":0},{"$f":"'Population 2016'!AB176*'Prevalence Rates'!AB176","v":0},{"$f":"'Population 2016'!AC176*'Prevalence Rates'!AC176","v":0},{"$f":"'Population 2016'!AD176*'Prevalence Rates'!AD176","v":0},{"$f":"'Population 2016'!AE176*'Prevalence Rates'!AE176","v":0},{"$f":"'Population 2016'!AF176*'Prevalence Rates'!AF176","v":0},{"$f":"'Population 2016'!AG176*'Prevalence Rates'!AG176","v":0},{"$f":"'Population 2016'!AH176*'Prevalence Rates'!AH176","v":0},{"$f":"'Population 2016'!AI176*'Prevalence Rates'!AI176","v":0},{"$f":"'Population 2016'!AJ176*'Prevalence Rates'!AJ176","v":0},{"$f":"'Population 2016'!AK176*'Prevalence Rates'!AK176","v":0},{"$f":"'Population 2016'!AL176*'Prevalence Rates'!AL176","v":0},{"$f":"'Population 2016'!AM176*'Prevalence Rates'!AM176","v":0},{"$f":"'Population 2016'!AN176*'Prevalence Rates'!AN176","v":0},{"$f":"'Population 2016'!AO176*'Prevalence Rates'!AO176","v":0},{"$f":"'Population 2016'!AP176*'Prevalence Rates'!AP176","v":0},{"$f":"'Population 2016'!AQ176*'Prevalence Rates'!AQ176","v":0},{"$f":"'Population 2016'!AR176*'Prevalence Rates'!AR176","v":0},{"$f":"'Population 2016'!AS176*'Prevalence Rates'!AS176","v":0},{"$f":"'Population 2016'!AT176*'Prevalence Rates'!AT176","v":0},{"$f":"'Population 2016'!AU176*'Prevalence Rates'!AU176","v":0},{"$f":"'Population 2016'!AV176*'Prevalence Rates'!AV176","v":0},{"$f":"'Population 2016'!AW176*'Prevalence Rates'!AW176","v":0},{"$f":"'Population 2016'!AX176*'Prevalence Rates'!AX176","v":0},{"$f":"'Population 2016'!AY176*'Prevalence Rates'!AY176","v":0},{"$f":"'Population 2016'!AZ176*'Prevalence Rates'!AZ176","v":0},{"$f":"'Population 2016'!BA176*'Prevalence Rates'!BA176","v":0},{"$f":"'Population 2016'!BB176*'Prevalence Rates'!BB176","v":0},{"$f":"'Population 2016'!BC176*'Prevalence Rates'!BC176","v":0},174]
[null,"Female 16-19",{"$f":"'Population 2016'!C177*'Prevalence Rates'!C177","v":177.86441640378541},{"$f":"'Population 2016'!D177*'Prevalence Rates'!D177","v":535.20337782091713},{"$f":"'Population 2016'!E177*'Prevalence Rates'!E177","v":365.45329774326615},{"$f":"'Population 2016'!F177*'Prevalence Rates'!F177","v":113.78757340451347},{"$f":"'Population 2016'!G177*'Prevalence Rates'!G177","v":81.723627760252342},{"$f":"'Population 2016'!H177*'Prevalence Rates'!H177","v":232.75542416889101},{"$f":"'Population 2016'!I177*'Prevalence Rates'!I177","v":174.15721002183932},{"$f":"'Population 2016'!J177*'Prevalence Rates'!J177","v":173.92011647658333},{"$f":"'Population 2016'!K177*'Prevalence Rates'!K177","v":38.478701771414698},{"$f":"'Population 2016'!L177*'Prevalence Rates'!L177","v":107.29070914826495},{"$f":"'Population 2016'!M177*'Prevalence Rates'!M177","v":107.22763406940062},{"$f":"'Population 2016'!N177*'Prevalence Rates'!N177","v":189.0065251152632},{"$f":"'Population 2016'!O177*'Prevalence Rates'!O177","v":74.021424411550569},{"$f":"'Population 2016'!P177*'Prevalence Rates'!P177","v":67.984144625090991},{"$f":"'Population 2016'!Q177*'Prevalence Rates'!Q177","v":159.2266391652511},{"$f":"'Population 2016'!R177*'Prevalence Rates'!R177","v":65.167122057752962},{"$f":"'Population 2016'!S177*'Prevalence Rates'!S177","v":953.77686969182218},{"$f":"'Population 2016'!T177*'Prevalence Rates'!T177","v":207.73000727978646},{"$f":"'Population 2016'!U177*'Prevalence Rates'!U177","v":5.5413152147536993},{"$f":"'Population 2016'!V177*'Prevalence Rates'!V177","v":130.05371269109438},{"$f":"'Population 2016'!W177*'Prevalence Rates'!W177","v":237.44816694976944},{"$f":"'Population 2016'!X177*'Prevalence Rates'!X177","v":237.33239504974514},{"$f":"'Population 2016'!Y177*'Prevalence Rates'!Y177","v":298.7758019898082},{"$f":"'Population 2016'!Z177*'Prevalence Rates'!Z177","v":298.59034214996359},{"$f":"'Population 2016'!AA177*'Prevalence Rates'!AA177","v":1168.130041252123},{"$f":"'Population 2016'!AB177*'Prevalence Rates'!AB177","v":696.36254598398443},{"$f":"'Population 2016'!AC177*'Prevalence Rates'!AC177","v":663.85995971851469},{"$f":"'Population 2016'!AD177*'Prevalence Rates'!AD177","v":367.64902984712444},{"$f":"'Population 2016'!AE177*'Prevalence Rates'!AE177","v":305.40130793496712},{"$f":"'Population 2016'!AF177*'Prevalence Rates'!AF177","v":55.860410094637217},{"$f":"'Population 2016'!AG177*'Prevalence Rates'!AG177","v":305.40130793496712},{"$f":"'Population 2016'!AH177*'Prevalence Rates'!AH177","v":501.04757631642804},{"$f":"'Population 2016'!AI177*'Prevalence Rates'!AI177","v":547.84836690123745},{"$f":"'Population 2016'!AJ177*'Prevalence Rates'!AJ177","v":52.286093181266672},{"$f":"'Population 2016'!AK177*'Prevalence Rates'!AK177","v":159.3385707352584},{"$f":"'Population 2016'!AL177*'Prevalence Rates'!AL177","v":102.76910458626547},{"$f":"'Population 2016'!AM177*'Prevalence Rates'!AM177","v":233.79741810240233},{"$f":"'Population 2016'!AN177*'Prevalence Rates'!AN177","v":38.819985343363257},{"$f":"'Population 2016'!AO177*'Prevalence Rates'!AO177","v":38.84212812424169},{"$f":"'Population 2016'!AP177*'Prevalence Rates'!AP177","v":276.76790099490415},{"$f":"'Population 2016'!AQ177*'Prevalence Rates'!AQ177","v":114.53831108954134},{"$f":"'Population 2016'!AR177*'Prevalence Rates'!AR177","v":4517.7439999999997},{"$f":"'Population 2016'!AS177*'Prevalence Rates'!AS177","v":174.1613079349672},{"$f":"'Population 2016'!AT177*'Prevalence Rates'!AT177","v":66.701404149478265},{"$f":"'Population 2016'!AU177*'Prevalence Rates'!AU177","v":66.641902450861437},{"$f":"'Population 2016'!AV177*'Prevalence Rates'!AV177","v":57.059342392623137},{"$f":"'Population 2016'!AW177*'Prevalence Rates'!AW177","v":262.52355496238772},{"$f":"'Population 2016'!AX177*'Prevalence Rates'!AX177","v":131.97715603008976},{"$f":"'Population 2016'!AY177*'Prevalence Rates'!AY177","v":776.9006357680172},{"$f":"'Population 2016'!AZ177*'Prevalence Rates'!AZ177","v":532.5084028148508},{"$f":"'Population 2016'!BA177*'Prevalence Rates'!BA177","v":39.873865566610043},{"$f":"'Population 2016'!BB177*'Prevalence Rates'!BB177","v":139.61753943217664},{"$f":"'Population 2016'!BC177*'Prevalence Rates'!BC177","v":5.5476985925746165},175]
[null,"Female 20-24",{"$f":"'Population 2016'!C178*'Prevalence Rates'!C178","v":422.79785488958976},{"$f":"'Population 2016'!D178*'Prevalence Rates'!D178","v":855.31830138315922},{"$f":"'Population 2016'!E178*'Prevalence Rates'!E178","v":421.40971608832803},{"$f":"'Population 2016'!F178*'Prevalence Rates'!F178","v":126.78615384615385},{"$f":"'Population 2016'!G178*'Prevalence Rates'!G178","v":87.008296529968433},{"$f":"'Population 2016'!H178*'Prevalence Rates'!H178","v":280.88234627517591},{"$f":"'Population 2016'!I178*'Prevalence Rates'!I178","v":167.19092162096575},{"$f":"'Population 2016'!J178*'Prevalence Rates'!J178","v":247.83616597913127},{"$f":"'Population 2016'!K178*'Prevalence Rates'!K178","v":41.05827954380004},{"$f":"'Population 2016'!L178*'Prevalence Rates'!L178","v":139.18794700315453},{"$f":"'Population 2016'!M178*'Prevalence Rates'!M178","v":139.10611987381702},{"$f":"'Population 2016'!N178*'Prevalence Rates'!N178","v":412.86826013103598},{"$f":"'Population 2016'!O178*'Prevalence Rates'!O178","v":97.743423926231472},{"$f":"'Population 2016'!P178*'Prevalence Rates'!P178","v":103.2908274690609},{"$f":"'Population 2016'!Q178*'Prevalence Rates'!Q178","v":202.22147537005577},{"$f":"'Population 2016'!R178*'Prevalence Rates'!R178","v":67.045137102644986},{"$f":"'Population 2016'!S178*'Prevalence Rates'!S178","v":1475.3171026449888},{"$f":"'Population 2016'!T178*'Prevalence Rates'!T178","v":540.59857316185389},{"$f":"'Population 2016'!U178*'Prevalence Rates'!U178","v":9.5539917495753439},{"$f":"'Population 2016'!V178*'Prevalence Rates'!V178","v":173.0466755641834},{"$f":"'Population 2016'!W178*'Prevalence Rates'!W178","v":306.99204756127148},{"$f":"'Population 2016'!X178*'Prevalence Rates'!X178","v":306.8423683571948},{"$f":"'Population 2016'!Y178*'Prevalence Rates'!Y178","v":414.26220626061621},{"$f":"'Population 2016'!Z178*'Prevalence Rates'!Z178","v":1063.5934481921863},{"$f":"'Population 2016'!AA178*'Prevalence Rates'!AA178","v":2040.5865178354763},{"$f":"'Population 2016'!AB178*'Prevalence Rates'!AB178","v":1032.1982819703956},{"$f":"'Population 2016'!AC178*'Prevalence Rates'!AC178","v":1482.8633042950735},{"$f":"'Population 2016'!AD178*'Prevalence Rates'!AD178","v":402.22239699102158},{"$f":"'Population 2016'!AE178*'Prevalence Rates'!AE178","v":336.68828925018187},{"$f":"'Population 2016'!AF178*'Prevalence Rates'!AF178","v":68.235639407910696},{"$f":"'Population 2016'!AG178*'Prevalence Rates'!AG178","v":336.68828925018187},{"$f":"'Population 2016'!AH178*'Prevalence Rates'!AH178","v":564.14101383159425},{"$f":"'Population 2016'!AI178*'Prevalence Rates'!AI178","v":990.62755253579212},{"$f":"'Population 2016'!AJ178*'Prevalence Rates'!AJ178","v":60.484261101674335},{"$f":"'Population 2016'!AK178*'Prevalence Rates'!AK178","v":165.3009172530939},{"$f":"'Population 2016'!AL178*'Prevalence Rates'!AL178","v":119.26566367386556},{"$f":"'Population 2016'!AM178*'Prevalence Rates'!AM178","v":262.71229313273477},{"$f":"'Population 2016'!AN178*'Prevalence Rates'!AN178","v":45.913992817277354},{"$f":"'Population 2016'!AO178*'Prevalence Rates'!AO178","v":45.940181994661494},{"$f":"'Population 2016'!AP178*'Prevalence Rates'!AP178","v":282.67685755884492},{"$f":"'Population 2016'!AQ178*'Prevalence Rates'!AQ178","v":144.10229555933023},{"$f":"'Population 2016'!AR178*'Prevalence Rates'!AR178","v":6722.7689999999993},{"$f":"'Population 2016'!AS178*'Prevalence Rates'!AS178","v":167.19485561756852},{"$f":"'Population 2016'!AT178*'Prevalence Rates'!AT178","v":66.701404149478265},{"$f":"'Population 2016'!AU178*'Prevalence Rates'!AU178","v":66.641902450861437},{"$f":"'Population 2016'!AV178*'Prevalence Rates'!AV178","v":65.569888376607608},{"$f":"'Population 2016'!AW178*'Prevalence Rates'!AW178","v":296.04495268138794},{"$f":"'Population 2016'!AX178*'Prevalence Rates'!AX178","v":200.13083717544282},{"$f":"'Population 2016'!AY178*'Prevalence Rates'!AY178","v":1063.3920650327586},{"$f":"'Population 2016'!AZ178*'Prevalence Rates'!AZ178","v":745.91132686241201},{"$f":"'Population 2016'!BA178*'Prevalence Rates'!BA178","v":51.186915797136614},{"$f":"'Population 2016'!BB178*'Prevalence Rates'!BB178","v":170.39122785731618},{"$f":"'Population 2016'!BC178*'Prevalence Rates'!BC178","v":9.5649975734045114},176]
[null,"Female 25-29",{"$f":"'Population 2016'!C179*'Prevalence Rates'!C179","v":301.70498422712939},{"$f":"'Population 2016'!D179*'Prevalence Rates'!D179","v":702.02952681388035},{"$f":"'Population 2016'!E179*'Prevalence Rates'!E179","v":399.08113564668787},{"$f":"'Population 2016'!F179*'Prevalence Rates'!F179","v":110.49466876971613},{"$f":"'Population 2016'!G179*'Prevalence Rates'!G179","v":67.098864353312322},{"$f":"'Population 2016'!H179*'Prevalence Rates'!H179","v":224.32344794952692},{"$f":"'Population 2016'!I179*'Prevalence Rates'!I179","v":138.03460694006313},{"$f":"'Population 2016'!J179*'Prevalence Rates'!J179","v":170.81015772870671},{"$f":"'Population 2016'!K179*'Prevalence Rates'!K179","v":32.940851735015777},{"$f":"'Population 2016'!L179*'Prevalence Rates'!L179","v":118.55916340694009},{"$f":"'Population 2016'!M179*'Prevalence Rates'!M179","v":118.48946372239753},{"$f":"'Population 2016'!N179*'Prevalence Rates'!N179","v":181.3085804416404},{"$f":"'Population 2016'!O179*'Prevalence Rates'!O179","v":79.241766561514211},{"$f":"'Population 2016'!P179*'Prevalence Rates'!P179","v":71.699305993690871},{"$f":"'Population 2016'!Q179*'Prevalence Rates'!Q179","v":123.95233438485809},{"$f":"'Population 2016'!R179*'Prevalence Rates'!R179","v":62.819116719242921},{"$f":"'Population 2016'!S179*'Prevalence Rates'!S179","v":1478.8061829653002},{"$f":"'Population 2016'!T179*'Prevalence Rates'!T179","v":658.2855520504736},{"$f":"'Population 2016'!U179*'Prevalence Rates'!U179","v":6.860063091482651},{"$f":"'Population 2016'!V179*'Prevalence Rates'!V179","v":146.06914826498425},{"$f":"'Population 2016'!W179*'Prevalence Rates'!W179","v":265.78889589905373},{"$f":"'Population 2016'!X179*'Prevalence Rates'!X179","v":265.65930599369091},{"$f":"'Population 2016'!Y179*'Prevalence Rates'!Y179","v":310.59944479495272},{"$f":"'Population 2016'!Z179*'Prevalence Rates'!Z179","v":772.68391167192465},{"$f":"'Population 2016'!AA179*'Prevalence Rates'!AA179","v":1592.3933753943222},{"$f":"'Population 2016'!AB179*'Prevalence Rates'!AB179","v":869.86666246056825},{"$f":"'Population 2016'!AC179*'Prevalence Rates'!AC179","v":1110.1873690851737},{"$f":"'Population 2016'!AD179*'Prevalence Rates'!AD179","v":376.68906624605694},{"$f":"'Population 2016'!AE179*'Prevalence Rates'!AE179","v":330.70072555205053},{"$f":"'Population 2016'!AF179*'Prevalence Rates'!AF179","v":48.011009463722424},{"$f":"'Population 2016'!AG179*'Prevalence Rates'!AG179","v":330.70072555205053},{"$f":"'Population 2016'!AH179*'Prevalence Rates'!AH179","v":485.46289589905388},{"$f":"'Population 2016'!AI179*'Prevalence Rates'!AI179","v":1056.4497160883284},{"$f":"'Population 2016'!AJ179*'Prevalence Rates'!AJ179","v":61.417823343848603},{"$f":"'Population 2016'!AK179*'Prevalence Rates'!AK179","v":160.76817034700321},{"$f":"'Population 2016'!AL179*'Prevalence Rates'!AL179","v":97.212113564668812},{"$f":"'Population 2016'!AM179*'Prevalence Rates'!AM179","v":223.17104100946383},{"$f":"'Population 2016'!AN179*'Prevalence Rates'!AN179","v":44.345714826498437},{"$f":"'Population 2016'!AO179*'Prevalence Rates'!AO179","v":44.371009463722416},{"$f":"'Population 2016'!AP179*'Prevalence Rates'!AP179","v":231.50211356466886},{"$f":"'Population 2016'!AQ179*'Prevalence Rates'!AQ179","v":116.26182965299687},{"$f":"'Population 2016'!AR179*'Prevalence Rates'!AR179","v":5650.1770000000024},{"$f":"'Population 2016'!AS179*'Prevalence Rates'!AS179","v":138.03785488958994},{"$f":"'Population 2016'!AT179*'Prevalence Rates'!AT179","v":74.175190851735039},{"$f":"'Population 2016'!AU179*'Prevalence Rates'!AU179","v":74.109022082018953},{"$f":"'Population 2016'!AV179*'Prevalence Rates'!AV179","v":49.625141955835979},{"$f":"'Population 2016'!AW179*'Prevalence Rates'!AW179","v":257.31675078864362},{"$f":"'Population 2016'!AX179*'Prevalence Rates'!AX179","v":133.86473186119878},{"$f":"'Population 2016'!AY179*'Prevalence Rates'!AY179","v":750.1483911671927},{"$f":"'Population 2016'!AZ179*'Prevalence Rates'!AZ179","v":479.6486561514198},{"$f":"'Population 2016'!BA179*'Prevalence Rates'!BA179","v":46.283280757097806},{"$f":"'Population 2016'!BB179*'Prevalence Rates'!BB179","v":181.21343848580449},{"$f":"'Population 2016'!BC179*'Prevalence Rates'!BC179","v":6.8679656151419586},177]
[null,"Female 30-34",{"$f":"'Population 2016'!C180*'Prevalence Rates'!C180","v":238.80179810725554},{"$f":"'Population 2016'!D180*'Prevalence Rates'!D180","v":713.84025236593084},{"$f":"'Population 2016'!E180*'Prevalence Rates'!E180","v":485.58813880126201},{"$f":"'Population 2016'!F180*'Prevalence Rates'!F180","v":123.80305993690857},{"$f":"'Population 2016'!G180*'Prevalence Rates'!G180","v":70.404227129337556},{"$f":"'Population 2016'!H180*'Prevalence Rates'!H180","v":243.71633123028403},{"$f":"'Population 2016'!I180*'Prevalence Rates'!I180","v":160.34323028391174},{"$f":"'Population 2016'!J180*'Prevalence Rates'!J180","v":154.71558359621457},{"$f":"'Population 2016'!K180*'Prevalence Rates'!K180","v":44.234858044164049},{"$f":"'Population 2016'!L180*'Prevalence Rates'!L180","v":121.87960126182969},{"$f":"'Population 2016'!M180*'Prevalence Rates'!M180","v":121.80794952681393},{"$f":"'Population 2016'!N180*'Prevalence Rates'!N180","v":141.88577287066246},{"$f":"'Population 2016'!O180*'Prevalence Rates'!O180","v":88.666151419558375},{"$f":"'Population 2016'!P180*'Prevalence Rates'!P180","v":76.797192429022104},{"$f":"'Population 2016'!Q180*'Prevalence Rates'!Q180","v":137.67164037854894},{"$f":"'Population 2016'!R180*'Prevalence Rates'!R180","v":56.076750788643551},{"$f":"'Population 2016'!S180*'Prevalence Rates'!S180","v":1453.4787381703475},{"$f":"'Population 2016'!T180*'Prevalence Rates'!T180","v":555.28290220820224},{"$f":"'Population 2016'!U180*'Prevalence Rates'!U180","v":10.206435331230287},{"$f":"'Population 2016'!V180*'Prevalence Rates'!V180","v":166.02189274447952},{"$f":"'Population 2016'!W180*'Prevalence Rates'!W180","v":280.25588643533132},{"$f":"'Population 2016'!X180*'Prevalence Rates'!X180","v":280.11924290220827},{"$f":"'Population 2016'!Y180*'Prevalence Rates'!Y180","v":312.8897413249212},{"$f":"'Population 2016'!Z180*'Prevalence Rates'!Z180","v":616.10977917981097},{"$f":"'Population 2016'!AA180*'Prevalence Rates'!AA180","v":1535.2663722397481},{"$f":"'Population 2016'!AB180*'Prevalence Rates'!AB180","v":901.72871924290268},{"$f":"'Population 2016'!AC180*'Prevalence Rates'!AC180","v":974.51354574132506},{"$f":"'Population 2016'!AD180*'Prevalence Rates'!AD180","v":441.20761514195601},{"$f":"'Population 2016'!AE180*'Prevalence Rates'!AE180","v":396.09851735015781},{"$f":"'Population 2016'!AF180*'Prevalence Rates'!AF180","v":42.893848580441663},{"$f":"'Population 2016'!AG180*'Prevalence Rates'!AG180","v":396.09851735015781},{"$f":"'Population 2016'!AH180*'Prevalence Rates'!AH180","v":560.3200126182968},{"$f":"'Population 2016'!AI180*'Prevalence Rates'!AI180","v":999.76217034700335},{"$f":"'Population 2016'!AJ180*'Prevalence Rates'!AJ180","v":76.732397476340722},{"$f":"'Population 2016'!AK180*'Prevalence Rates'!AK180","v":182.55198738170353},{"$f":"'Population 2016'!AL180*'Prevalence Rates'!AL180","v":91.551167192429062},{"$f":"'Population 2016'!AM180*'Prevalence Rates'!AM180","v":246.86261829653009},{"$f":"'Population 2016'!AN180*'Prevalence Rates'!AN180","v":50.039911671924308},{"$f":"'Population 2016'!AO180*'Prevalence Rates'!AO180","v":50.068454258675104},{"$f":"'Population 2016'!AP180*'Prevalence Rates'!AP180","v":278.90413249211366},{"$f":"'Population 2016'!AQ180*'Prevalence Rates'!AQ180","v":133.15854889589906},{"$f":"'Population 2016'!AR180*'Prevalence Rates'!AR180","v":5718.6220000000021},{"$f":"'Population 2016'!AS180*'Prevalence Rates'!AS180","v":160.3470031545742},{"$f":"'Population 2016'!AT180*'Prevalence Rates'!AT180","v":70.313575709779201},{"$f":"'Population 2016'!AU180*'Prevalence Rates'!AU180","v":70.2508517350158},{"$f":"'Population 2016'!AV180*'Prevalence Rates'!AV180","v":63.852145110410113},{"$f":"'Population 2016'!AW180*'Prevalence Rates'!AW180","v":306.45100946372253},{"$f":"'Population 2016'!AX180*'Prevalence Rates'!AX180","v":108.64145110410098},{"$f":"'Population 2016'!AY180*'Prevalence Rates'!AY180","v":787.52523659306019},{"$f":"'Population 2016'!AZ180*'Prevalence Rates'!AZ180","v":502.39061829653025},{"$f":"'Population 2016'!BA180*'Prevalence Rates'!BA180","v":46.120883280757113},{"$f":"'Population 2016'!BB180*'Prevalence Rates'!BB180","v":216.66037854889601},{"$f":"'Population 2016'!BC180*'Prevalence Rates'!BC180","v":10.218192744479499},178]
[null,"Female 35-39",{"$f":"'Population 2016'!C181*'Prevalence Rates'!C181","v":241.53501577287059},{"$f":"'Population 2016'!D181*'Prevalence Rates'!D181","v":877.18980829895645},{"$f":"'Population 2016'!E181*'Prevalence Rates'!E181","v":657.64037854889591},{"$f":"'Population 2016'!F181*'Prevalence Rates'!F181","v":173.92919194370299},{"$f":"'Population 2016'!G181*'Prevalence Rates'!G181","v":112.08895899053627},{"$f":"'Population 2016'!H181*'Prevalence Rates'!H181","v":348.33484591118656},{"$f":"'Population 2016'!I181*'Prevalence Rates'!I181","v":214.62974714875031},{"$f":"'Population 2016'!J181*'Prevalence Rates'!J181","v":220.77942247027423},{"$f":"'Population 2016'!K181*'Prevalence Rates'!K181","v":59.789177384130056},{"$f":"'Population 2016'!L181*'Prevalence Rates'!L181","v":153.82884736714385},{"$f":"'Population 2016'!M181*'Prevalence Rates'!M181","v":153.73841300655181},{"$f":"'Population 2016'!N181*'Prevalence Rates'!N181","v":156.08735743751512},{"$f":"'Population 2016'!O181*'Prevalence Rates'!O181","v":135.95423440912396},{"$f":"'Population 2016'!P181*'Prevalence Rates'!P181","v":107.46527541858772},{"$f":"'Population 2016'!Q181*'Prevalence Rates'!Q181","v":198.94598398446976},{"$f":"'Population 2016'!R181*'Prevalence Rates'!R181","v":86.485998544042701},{"$f":"'Population 2016'!S181*'Prevalence Rates'!S181","v":1733.8434360592089},{"$f":"'Population 2016'!T181*'Prevalence Rates'!T181","v":539.91128366901239},{"$f":"'Population 2016'!U181*'Prevalence Rates'!U181","v":10.019315700072797},{"$f":"'Population 2016'!V181*'Prevalence Rates'!V181","v":230.5803931084688},{"$f":"'Population 2016'!W181*'Prevalence Rates'!W181","v":391.54640135889343},{"$f":"'Population 2016'!X181*'Prevalence Rates'!X181","v":391.35549623877694},{"$f":"'Population 2016'!Y181*'Prevalence Rates'!Y181","v":440.56673622907056},{"$f":"'Population 2016'!Z181*'Prevalence Rates'!Z181","v":589.61708323222513},{"$f":"'Population 2016'!AA181*'Prevalence Rates'!AA181","v":1966.7327347731132},{"$f":"'Population 2016'!AB181*'Prevalence Rates'!AB181","v":1114.5948459111867},{"$f":"'Population 2016'!AC181*'Prevalence Rates'!AC181","v":1112.9625964571703},{"$f":"'Population 2016'!AD181*'Prevalence Rates'!AD181","v":574.99917495753459},{"$f":"'Population 2016'!AE181*'Prevalence Rates'!AE181","v":494.46294588692058},{"$f":"'Population 2016'!AF181*'Prevalence Rates'!AF181","v":78.957097791798105},{"$f":"'Population 2016'!AG181*'Prevalence Rates'!AG181","v":494.46294588692058},{"$f":"'Population 2016'!AH181*'Prevalence Rates'!AH181","v":848.16742538218887},{"$f":"'Population 2016'!AI181*'Prevalence Rates'!AI181","v":1120.7283669012375},{"$f":"'Population 2016'!AJ181*'Prevalence Rates'!AJ181","v":102.17267653482163},{"$f":"'Population 2016'!AK181*'Prevalence Rates'!AK181","v":231.5482649842271},{"$f":"'Population 2016'!AL181*'Prevalence Rates'!AL181","v":130.10589662703228},{"$f":"'Population 2016'!AM181*'Prevalence Rates'!AM181","v":358.79272021354041},{"$f":"'Population 2016'!AN181*'Prevalence Rates'!AN181","v":70.756292162096585},{"$f":"'Population 2016'!AO181*'Prevalence Rates'!AO181","v":70.796651298228596},{"$f":"'Population 2016'!AP181*'Prevalence Rates'!AP181","v":343.29822858529485},{"$f":"'Population 2016'!AQ181*'Prevalence Rates'!AQ181","v":172.13171560300893},{"$f":"'Population 2016'!AR181*'Prevalence Rates'!AR181","v":7216},{"$f":"'Population 2016'!AS181*'Prevalence Rates'!AS181","v":214.63479737927685},{"$f":"'Population 2016'!AT181*'Prevalence Rates'!AT181","v":99.701266682843951},{"$f":"'Population 2016'!AU181*'Prevalence Rates'!AU181","v":99.612327105071586},{"$f":"'Population 2016'!AV181*'Prevalence Rates'!AV181","v":83.782577044406679},{"$f":"'Population 2016'!AW181*'Prevalence Rates'!AW181","v":477.01349187090511},{"$f":"'Population 2016'!AX181*'Prevalence Rates'!AX181","v":157.9515651540888},{"$f":"'Population 2016'!AY181*'Prevalence Rates'!AY181","v":1017.9567095365202},{"$f":"'Population 2016'!AZ181*'Prevalence Rates'!AZ181","v":621.70334384858052},{"$f":"'Population 2016'!BA181*'Prevalence Rates'!BA181","v":55.810919679689398},{"$f":"'Population 2016'!BB181*'Prevalence Rates'!BB181","v":282.98480951225434},{"$f":"'Population 2016'!BC181*'Prevalence Rates'!BC181","v":10.030857558844941},179]
[null,"Female 40-44",{"$f":"'Population 2016'!C182*'Prevalence Rates'!C182","v":193.3779179810725},{"$f":"'Population 2016'!D182*'Prevalence Rates'!D182","v":876.98480951225417},{"$f":"'Population 2016'!E182*'Prevalence Rates'!E182","v":713.94671196311572},{"$f":"'Population 2016'!F182*'Prevalence Rates'!F182","v":187.83440912399905},{"$f":"'Population 2016'!G182*'Prevalence Rates'!G182","v":138.12113564668769},{"$f":"'Population 2016'!H182*'Prevalence Rates'!H182","v":428.43972336811453},{"$f":"'Population 2016'!I182*'Prevalence Rates'!I182","v":283.14791167192431},{"$f":"'Population 2016'!J182*'Prevalence Rates'!J182","v":269.21572433875275},{"$f":"'Population 2016'!K182*'Prevalence Rates'!K182","v":79.392186362533351},{"$f":"'Population 2016'!L182*'Prevalence Rates'!L182","v":190.44265566610042},{"$f":"'Population 2016'!M182*'Prevalence Rates'!M182","v":190.33069643290463},{"$f":"'Population 2016'!N182*'Prevalence Rates'!N182","v":153.01290948798831},{"$f":"'Population 2016'!O182*'Prevalence Rates'!O182","v":139.96025236593056},{"$f":"'Population 2016'!P182*'Prevalence Rates'!P182","v":127.80232953166707},{"$f":"'Population 2016'!Q182*'Prevalence Rates'!Q182","v":240.06425624848336},{"$f":"'Population 2016'!R182*'Prevalence Rates'!R182","v":99.116379519534092},{"$f":"'Population 2016'!S182*'Prevalence Rates'!S182","v":1811.7365687939821},{"$f":"'Population 2016'!T182*'Prevalence Rates'!T182","v":460.56500849308424},{"$f":"'Population 2016'!U182*'Prevalence Rates'!U182","v":11.326182965299685},{"$f":"'Population 2016'!V182*'Prevalence Rates'!V182","v":283.50851735015772},{"$f":"'Population 2016'!W182*'Prevalence Rates'!W182","v":451.5484785246299},{"$f":"'Population 2016'!X182*'Prevalence Rates'!X182","v":451.3283183693278},{"$f":"'Population 2016'!Y182*'Prevalence Rates'!Y182","v":539.41330744964807},{"$f":"'Population 2016'!Z182*'Prevalence Rates'!Z182","v":496.79107012860953},{"$f":"'Population 2016'!AA182*'Prevalence Rates'!AA182","v":2058.1557874302353},{"$f":"'Population 2016'!AB182*'Prevalence Rates'!AB182","v":1171.3086144139772},{"$f":"'Population 2016'!AC182*'Prevalence Rates'!AC182","v":1129.3330842028631},{"$f":"'Population 2016'!AD182*'Prevalence Rates'!AD182","v":687.63009949041498},{"$f":"'Population 2016'!AE182*'Prevalence Rates'!AE182","v":586.95903906818728},{"$f":"'Population 2016'!AF182*'Prevalence Rates'!AF182","v":91.300266925503522},{"$f":"'Population 2016'!AG182*'Prevalence Rates'!AG182","v":586.95903906818728},{"$f":"'Population 2016'!AH182*'Prevalence Rates'!AH182","v":921.64123271050721},{"$f":"'Population 2016'!AI182*'Prevalence Rates'!AI182","v":1081.660723125455},{"$f":"'Population 2016'!AJ182*'Prevalence Rates'!AJ182","v":98.019315700072795},{"$f":"'Population 2016'!AK182*'Prevalence Rates'!AK182","v":294.59126425624845},{"$f":"'Population 2016'!AL182*'Prevalence Rates'!AL182","v":167.96874545013347},{"$f":"'Population 2016'!AM182*'Prevalence Rates'!AM182","v":404.23038097549141},{"$f":"'Population 2016'!AN182*'Prevalence Rates'!AN182","v":75.922624605678237},{"$f":"'Population 2016'!AO182*'Prevalence Rates'!AO182","v":75.965930599369088},{"$f":"'Population 2016'!AP182*'Prevalence Rates'!AP182","v":434.33744236835724},{"$f":"'Population 2016'!AQ182*'Prevalence Rates'!AQ182","v":205.22620723125451},{"$f":"'Population 2016'!AR182*'Prevalence Rates'!AR182","v":7877.1},{"$f":"'Population 2016'!AS182*'Prevalence Rates'!AS182","v":283.15457413249209},{"$f":"'Population 2016'!AT182*'Prevalence Rates'!AT182","v":106.6133292890075},{"$f":"'Population 2016'!AU182*'Prevalence Rates'!AU182","v":106.51822373210386},{"$f":"'Population 2016'!AV182*'Prevalence Rates'!AV182","v":120.16185391895169},{"$f":"'Population 2016'!AW182*'Prevalence Rates'!AW182","v":505.67168163067214},{"$f":"'Population 2016'!AX182*'Prevalence Rates'!AX182","v":186.92365930599368},{"$f":"'Population 2016'!AY182*'Prevalence Rates'!AY182","v":1175.3989808298954},{"$f":"'Population 2016'!AZ182*'Prevalence Rates'!AZ182","v":718.38514923562252},{"$f":"'Population 2016'!BA182*'Prevalence Rates'!BA182","v":70.186459597185149},{"$f":"'Population 2016'!BB182*'Prevalence Rates'!BB182","v":299.22936180538704},{"$f":"'Population 2016'!BC182*'Prevalence Rates'!BC182","v":11.339230283911672},180]
[null,"Female 45-49",{"$f":"'Population 2016'!C183*'Prevalence Rates'!C183","v":208.55583596214501},{"$f":"'Population 2016'!D183*'Prevalence Rates'!D183","v":1058.1627371997085},{"$f":"'Population 2016'!E183*'Prevalence Rates'!E183","v":890.51985440427075},{"$f":"'Population 2016'!F183*'Prevalence Rates'!F183","v":260.65443581654938},{"$f":"'Population 2016'!G183*'Prevalence Rates'!G183","v":192.24009463722393},{"$f":"'Population 2016'!H183*'Prevalence Rates'!H183","v":542.12796384372712},{"$f":"'Population 2016'!I183*'Prevalence Rates'!I183","v":394.7394984955107},{"$f":"'Population 2016'!J183*'Prevalence Rates'!J183","v":332.35188061150205},{"$f":"'Population 2016'!K183*'Prevalence Rates'!K183","v":103.17308662945884},{"$f":"'Population 2016'!L183*'Prevalence Rates'!L183","v":273.65007765105548},{"$f":"'Population 2016'!M183*'Prevalence Rates'!M183","v":273.48920165008491},{"$f":"'Population 2016'!N183*'Prevalence Rates'!N183","v":185.99227614656627},{"$f":"'Population 2016'!O183*'Prevalence Rates'!O183","v":176.40249696675556},{"$f":"'Population 2016'!P183*'Prevalence Rates'!P183","v":171.28081048289246},{"$f":"'Population 2016'!Q183*'Prevalence Rates'!Q183","v":303.30955835962141},{"$f":"'Population 2016'!R183*'Prevalence Rates'!R183","v":126.77477311332198},{"$f":"'Population 2016'!S183*'Prevalence Rates'!S183","v":2163.2653918951705},{"$f":"'Population 2016'!T183*'Prevalence Rates'!T183","v":456.82057752972577},{"$f":"'Population 2016'!U183*'Prevalence Rates'!U183","v":11.892492113564666},{"$f":"'Population 2016'!V183*'Prevalence Rates'!V183","v":335.50549866537239},{"$f":"'Population 2016'!W183*'Prevalence Rates'!W183","v":588.17364620237788},{"$f":"'Population 2016'!X183*'Prevalence Rates'!X183","v":587.88687211841761},{"$f":"'Population 2016'!Y183*'Prevalence Rates'!Y183","v":652.35296869691797},{"$f":"'Population 2016'!Z183*'Prevalence Rates'!Z183","v":581.70968211599109},{"$f":"'Population 2016'!AA183*'Prevalence Rates'!AA183","v":2573.9341761708315},{"$f":"'Population 2016'!AB183*'Prevalence Rates'!AB183","v":1411.4110089784031},{"$f":"'Population 2016'!AC183*'Prevalence Rates'!AC183","v":1451.6241795680653},{"$f":"'Population 2016'!AD183*'Prevalence Rates'!AD183","v":864.01701868478506},{"$f":"'Population 2016'!AE183*'Prevalence Rates'!AE183","v":717.53499150691562},{"$f":"'Population 2016'!AF183*'Prevalence Rates'!AF183","v":127.34036156272747},{"$f":"'Population 2016'!AG183*'Prevalence Rates'!AG183","v":717.53499150691562},{"$f":"'Population 2016'!AH183*'Prevalence Rates'!AH183","v":1114.7929953894684},{"$f":"'Population 2016'!AI183*'Prevalence Rates'!AI183","v":1198.1040058238289},{"$f":"'Population 2016'!AJ183*'Prevalence Rates'!AJ183","v":120.36439699102156},{"$f":"'Population 2016'!AK183*'Prevalence Rates'!AK183","v":353.36890075224449},{"$f":"'Population 2016'!AL183*'Prevalence Rates'!AL183","v":226.26228585294828},{"$f":"'Population 2016'!AM183*'Prevalence Rates'!AM183","v":513.18659548653238},{"$f":"'Population 2016'!AN183*'Prevalence Rates'!AN183","v":93.162451346760477},{"$f":"'Population 2016'!AO183*'Prevalence Rates'!AO183","v":93.215590876000959},{"$f":"'Population 2016'!AP183*'Prevalence Rates'!AP183","v":581.07570735258423},{"$f":"'Population 2016'!AQ183*'Prevalence Rates'!AQ183","v":278.20561514195572},{"$f":"'Population 2016'!AR183*'Prevalence Rates'!AR183","v":9745.6589999999978},{"$f":"'Population 2016'!AS183*'Prevalence Rates'!AS183","v":394.74878670225661},{"$f":"'Population 2016'!AT183*'Prevalence Rates'!AT183","v":120.08137854889587},{"$f":"'Population 2016'!AU183*'Prevalence Rates'!AU183","v":119.97425867507883},{"$f":"'Population 2016'!AV183*'Prevalence Rates'!AV183","v":140.75472943460321},{"$f":"'Population 2016'!AW183*'Prevalence Rates'!AW183","v":590.26525843241916},{"$f":"'Population 2016'!AX183*'Prevalence Rates'!AX183","v":226.23986411065272},{"$f":"'Population 2016'!AY183*'Prevalence Rates'!AY183","v":1548.9578597427803},{"$f":"'Population 2016'!AZ183*'Prevalence Rates'!AZ183","v":953.206000970638},{"$f":"'Population 2016'!BA183*'Prevalence Rates'!BA183","v":106.99206988594999},{"$f":"'Population 2016'!BB183*'Prevalence Rates'!BB183","v":346.07959233195822},{"$f":"'Population 2016'!BC183*'Prevalence Rates'!BC183","v":11.906191798107251},181]
[null,"Female 50-54",{"$f":"'Population 2016'!C184*'Prevalence Rates'!C184","v":220.36088328075701},{"$f":"'Population 2016'!D184*'Prevalence Rates'!D184","v":1088.9433050230525},{"$f":"'Population 2016'!E184*'Prevalence Rates'!E184","v":909.68820189274436},{"$f":"'Population 2016'!F184*'Prevalence Rates'!F184","v":296.31789856830864},{"$f":"'Population 2016'!G184*'Prevalence Rates'!G184","v":205.11634069400625},{"$f":"'Population 2016'!H184*'Prevalence Rates'!H184","v":584.43790366415908},{"$f":"'Population 2016'!I184*'Prevalence Rates'!I184","v":429.52040783790329},{"$f":"'Population 2016'!J184*'Prevalence Rates'!J184","v":350.32963358408153},{"$f":"'Population 2016'!K184*'Prevalence Rates'!K184","v":92.881506915797104},{"$f":"'Population 2016'!L184*'Prevalence Rates'!L184","v":303.01740305751025},{"$f":"'Population 2016'!M184*'Prevalence Rates'!M184","v":302.83926231497207},{"$f":"'Population 2016'!N184*'Prevalence Rates'!N184","v":207.09954380004842},{"$f":"'Population 2016'!O184*'Prevalence Rates'!O184","v":181.92329046347967},{"$f":"'Population 2016'!P184*'Prevalence Rates'!P184","v":191.73560543557386},{"$f":"'Population 2016'!Q184*'Prevalence Rates'!Q184","v":295.67775782577036},{"$f":"'Population 2016'!R184*'Prevalence Rates'!R184","v":127.22432904634795},{"$f":"'Population 2016'!S184*'Prevalence Rates'!S184","v":2234.2346906090747},{"$f":"'Population 2016'!T184*'Prevalence Rates'!T184","v":496.51154574132488},{"$f":"'Population 2016'!U184*'Prevalence Rates'!U184","v":15.094316913370537},{"$f":"'Population 2016'!V184*'Prevalence Rates'!V184","v":313.37860228099964},{"$f":"'Population 2016'!W184*'Prevalence Rates'!W184","v":614.84610240232939},{"$f":"'Population 2016'!X184*'Prevalence Rates'!X184","v":614.5463237078377},{"$f":"'Population 2016'!Y184*'Prevalence Rates'!Y184","v":649.94487357437492},{"$f":"'Population 2016'!Z184*'Prevalence Rates'!Z184","v":613.94093666585763},{"$f":"'Population 2016'!AA184*'Prevalence Rates'!AA184","v":2684.2558747876724},{"$f":"'Population 2016'!AB184*'Prevalence Rates'!AB184","v":1455.4065032759038},{"$f":"'Population 2016'!AC184*'Prevalence Rates'!AC184","v":1556.9371412278567},{"$f":"'Population 2016'!AD184*'Prevalence Rates'!AD184","v":933.88910943945632},{"$f":"'Population 2016'!AE184*'Prevalence Rates'!AE184","v":778.41674836204777},{"$f":"'Population 2016'!AF184*'Prevalence Rates'!AF184","v":141.94644503761219},{"$f":"'Population 2016'!AG184*'Prevalence Rates'!AG184","v":778.41674836204777},{"$f":"'Population 2016'!AH184*'Prevalence Rates'!AH184","v":1121.0859936908516},{"$f":"'Population 2016'!AI184*'Prevalence Rates'!AI184","v":1211.7776811453527},{"$f":"'Population 2016'!AJ184*'Prevalence Rates'!AJ184","v":117.52972822130548},{"$f":"'Population 2016'!AK184*'Prevalence Rates'!AK184","v":366.90322494540146},{"$f":"'Population 2016'!AL184*'Prevalence Rates'!AL184","v":263.08327105071584},{"$f":"'Population 2016'!AM184*'Prevalence Rates'!AM184","v":509.9729992720213},{"$f":"'Population 2016'!AN184*'Prevalence Rates'!AN184","v":96.936120262072293},{"$f":"'Population 2016'!AO184*'Prevalence Rates'!AO184","v":96.991412278573151},{"$f":"'Population 2016'!AP184*'Prevalence Rates'!AP184","v":589.51693278330492},{"$f":"'Population 2016'!AQ184*'Prevalence Rates'!AQ184","v":296.85153603494285},{"$f":"'Population 2016'!AR184*'Prevalence Rates'!AR184","v":10181.324999999999},{"$f":"'Population 2016'!AS184*'Prevalence Rates'!AS184","v":429.53051443824302},{"$f":"'Population 2016'!AT184*'Prevalence Rates'!AT184","v":124.91982237321035},{"$f":"'Population 2016'!AU184*'Prevalence Rates'!AU184","v":124.80838631400142},{"$f":"'Population 2016'!AV184*'Prevalence Rates'!AV184","v":142.37526085901476},{"$f":"'Population 2016'!AW184*'Prevalence Rates'!AW184","v":598.98731618539171},{"$f":"'Population 2016'!AX184*'Prevalence Rates'!AX184","v":252.37913127881578},{"$f":"'Population 2016'!AY184*'Prevalence Rates'!AY184","v":1635.2961417131758},{"$f":"'Population 2016'!AZ184*'Prevalence Rates'!AZ184","v":1012.1156534821644},{"$f":"'Population 2016'!BA184*'Prevalence Rates'!BA184","v":119.86663431206016},{"$f":"'Population 2016'!BB184*'Prevalence Rates'!BB184","v":321.85402086872114},{"$f":"'Population 2016'!BC184*'Prevalence Rates'!BC184","v":15.111704974520743},182]
[null,"Female 55-59",{"$f":"'Population 2016'!C185*'Prevalence Rates'!C185","v":310.90372239747632},{"$f":"'Population 2016'!D185*'Prevalence Rates'!D185","v":1450.7354137345308},{"$f":"'Population 2016'!E185*'Prevalence Rates'!E185","v":1191.5827808784277},{"$f":"'Population 2016'!F185*'Prevalence Rates'!F185","v":400.10552778451836},{"$f":"'Population 2016'!G185*'Prevalence Rates'!G185","v":291.90460567823345},{"$f":"'Population 2016'!H185*'Prevalence Rates'!H185","v":852.51008978403308},{"$f":"'Population 2016'!I185*'Prevalence Rates'!I185","v":613.85015209900507},{"$f":"'Population 2016'!J185*'Prevalence Rates'!J185","v":442.6402135404029},{"$f":"'Population 2016'!K185*'Prevalence Rates'!K185","v":126.24337782091725},{"$f":"'Population 2016'!L185*'Prevalence Rates'!L185","v":463.36808502790586},{"$f":"'Population 2016'!M185*'Prevalence Rates'!M185","v":463.09567580684313},{"$f":"'Population 2016'!N185*'Prevalence Rates'!N185","v":318.2290123756369},{"$f":"'Population 2016'!O185*'Prevalence Rates'!O185","v":264.39718514923561},{"$f":"'Population 2016'!P185*'Prevalence Rates'!P185","v":313.06218878912887},{"$f":"'Population 2016'!Q185*'Prevalence Rates'!Q185","v":422.31372967726281},{"$f":"'Population 2016'!R185*'Prevalence Rates'!R185","v":178.79481679204079},{"$f":"'Population 2016'!S185*'Prevalence Rates'!S185","v":3069.5664159184666},{"$f":"'Population 2016'!T185*'Prevalence Rates'!T185","v":678.7048580441641},{"$f":"'Population 2016'!U185*'Prevalence Rates'!U185","v":20.212880368842512},{"$f":"'Population 2016'!V185*'Prevalence Rates'!V185","v":418.3282115991264},{"$f":"'Population 2016'!W185*'Prevalence Rates'!W185","v":865.08104246542098},{"$f":"'Population 2016'!X185*'Prevalence Rates'!X185","v":864.65925746178107},{"$f":"'Population 2016'!Y185*'Prevalence Rates'!Y185","v":842.14526571220574},{"$f":"'Population 2016'!Z185*'Prevalence Rates'!Z185","v":822.36971608832812},{"$f":"'Population 2016'!AA185*'Prevalence Rates'!AA185","v":3684.5764426110168},{"$f":"'Population 2016'!AB185*'Prevalence Rates'!AB185","v":1955.3553021111384},{"$f":"'Population 2016'!AC185*'Prevalence Rates'!AC185","v":2209.0474506187816},{"$f":"'Population 2016'!AD185*'Prevalence Rates'!AD185","v":1295.9232341664647},{"$f":"'Population 2016'!AE185*'Prevalence Rates'!AE185","v":1072.4024654210143},{"$f":"'Population 2016'!AF185*'Prevalence Rates'!AF185","v":185.26509099733076},{"$f":"'Population 2016'!AG185*'Prevalence Rates'!AG185","v":1072.4024654210143},{"$f":"'Population 2016'!AH185*'Prevalence Rates'!AH185","v":1469.6537267653484},{"$f":"'Population 2016'!AI185*'Prevalence Rates'!AI185","v":1625.8453773355982},{"$f":"'Population 2016'!AJ185*'Prevalence Rates'!AJ185","v":153.50821645231741},{"$f":"'Population 2016'!AK185*'Prevalence Rates'!AK185","v":506.968832807571},{"$f":"'Population 2016'!AL185*'Prevalence Rates'!AL185","v":361.45044406697411},{"$f":"'Population 2016'!AM185*'Prevalence Rates'!AM185","v":638.10484833778219},{"$f":"'Population 2016'!AN185*'Prevalence Rates'!AN185","v":143.39941878184908},{"$f":"'Population 2016'!AO185*'Prevalence Rates'!AO185","v":143.4812132977433},{"$f":"'Population 2016'!AP185*'Prevalence Rates'!AP185","v":805.83827226401377},{"$f":"'Population 2016'!AQ185*'Prevalence Rates'!AQ185","v":422.64087357437512},{"$f":"'Population 2016'!AR185*'Prevalence Rates'!AR185","v":14014.528000000002},{"$f":"'Population 2016'!AS185*'Prevalence Rates'!AS185","v":613.86459597185149},{"$f":"'Population 2016'!AT185*'Prevalence Rates'!AT185","v":167.56515408881339},{"$f":"'Population 2016'!AU185*'Prevalence Rates'!AU185","v":167.41567580684301},{"$f":"'Population 2016'!AV185*'Prevalence Rates'!AV185","v":227.88860956078619},{"$f":"'Population 2016'!AW185*'Prevalence Rates'!AW185","v":812.06511041009469},{"$f":"'Population 2016'!AX185*'Prevalence Rates'!AX185","v":311.09590876000976},{"$f":"'Population 2016'!AY185*'Prevalence Rates'!AY185","v":2286.2062606163549},{"$f":"'Population 2016'!AZ185*'Prevalence Rates'!AZ185","v":1409.7739228342637},{"$f":"'Population 2016'!BA185*'Prevalence Rates'!BA185","v":189.08063091482651},{"$f":"'Population 2016'!BB185*'Prevalence Rates'!BB185","v":390.99931084688188},{"$f":"'Population 2016'!BC185*'Prevalence Rates'!BC185","v":20.236164814365445},183]
[null,"Female 60-64",{"$f":"'Population 2016'!C186*'Prevalence Rates'!C186","v":287.5184858044164},{"$f":"'Population 2016'!D186*'Prevalence Rates'!D186","v":1310.3522446008253},{"$f":"'Population 2016'!E186*'Prevalence Rates'!E186","v":1068.4126765348217},{"$f":"'Population 2016'!F186*'Prevalence Rates'!F186","v":403.38807085658823},{"$f":"'Population 2016'!G186*'Prevalence Rates'!G186","v":276.41438485804417},{"$f":"'Population 2016'!H186*'Prevalence Rates'!H186","v":792.69844794952689},{"$f":"'Population 2016'!I186*'Prevalence Rates'!I186","v":553.22745818975977},{"$f":"'Population 2016'!J186*'Prevalence Rates'!J186","v":368.74669255035195},{"$f":"'Population 2016'!K186*'Prevalence Rates'!K186","v":103.50388740596942},{"$f":"'Population 2016'!L186*'Prevalence Rates'!L186","v":446.28164115505945},{"$f":"'Population 2016'!M186*'Prevalence Rates'!M186","v":446.01927687454514},{"$f":"'Population 2016'!N186*'Prevalence Rates'!N186","v":227.41454986653721},{"$f":"'Population 2016'!O186*'Prevalence Rates'!O186","v":235.95445765590875},{"$f":"'Population 2016'!P186*'Prevalence Rates'!P186","v":250.0387284639651},{"$f":"'Population 2016'!Q186*'Prevalence Rates'!Q186","v":352.8695365202621},{"$f":"'Population 2016'!R186*'Prevalence Rates'!R186","v":159.61376364959963},{"$f":"'Population 2016'!S186*'Prevalence Rates'!S186","v":2676.8861150206262},{"$f":"'Population 2016'!T186*'Prevalence Rates'!T186","v":569.43879640863872},{"$f":"'Population 2016'!U186*'Prevalence Rates'!U186","v":13.242921620965785},{"$f":"'Population 2016'!V186*'Prevalence Rates'!V186","v":348.14943945644262},{"$f":"'Population 2016'!W186*'Prevalence Rates'!W186","v":788.34845911186608},{"$f":"'Population 2016'!X186*'Prevalence Rates'!X186","v":787.96408638679929},{"$f":"'Population 2016'!Y186*'Prevalence Rates'!Y186","v":701.23729968454256},{"$f":"'Population 2016'!Z186*'Prevalence Rates'!Z186","v":642.41494782819711},{"$f":"'Population 2016'!AA186*'Prevalence Rates'!AA186","v":3040.5215044892016},{"$f":"'Population 2016'!AB186*'Prevalence Rates'!AB186","v":1760.3276563940794},{"$f":"'Population 2016'!AC186*'Prevalence Rates'!AC186","v":1788.4873147294343},{"$f":"'Population 2016'!AD186*'Prevalence Rates'!AD186","v":1234.5899888376609},{"$f":"'Population 2016'!AE186*'Prevalence Rates'!AE186","v":1023.4393593787916},{"$f":"'Population 2016'!AF186*'Prevalence Rates'!AF186","v":145.45347245814125},{"$f":"'Population 2016'!AG186*'Prevalence Rates'!AG186","v":1023.4393593787916},{"$f":"'Population 2016'!AH186*'Prevalence Rates'!AH186","v":1245.9026760495026},{"$f":"'Population 2016'!AI186*'Prevalence Rates'!AI186","v":1371.7083814608104},{"$f":"'Population 2016'!AJ186*'Prevalence Rates'!AJ186","v":140.2174617811211},{"$f":"'Population 2016'!AK186*'Prevalence Rates'!AK186","v":451.47224460082504},{"$f":"'Population 2016'!AL186*'Prevalence Rates'!AL186","v":362.2636059208931},{"$f":"'Population 2016'!AM186*'Prevalence Rates'!AM186","v":544.31021596699838},{"$f":"'Population 2016'!AN186*'Prevalence Rates'!AN186","v":132.61750759524386},{"$f":"'Population 2016'!AO186*'Prevalence Rates'!AO186","v":132.69315214753703},{"$f":"'Population 2016'!AP186*'Prevalence Rates'!AP186","v":761.33986896384386},{"$f":"'Population 2016'!AQ186*'Prevalence Rates'!AQ186","v":366.46095607862168},{"$f":"'Population 2016'!AR186*'Prevalence Rates'!AR186","v":12341.472000000002},{"$f":"'Population 2016'!AS186*'Prevalence Rates'!AS186","v":553.24047561271539},{"$f":"'Population 2016'!AT186*'Prevalence Rates'!AT186","v":151.14376898810968},{"$f":"'Population 2016'!AU186*'Prevalence Rates'!AU186","v":151.0089395777724},{"$f":"'Population 2016'!AV186*'Prevalence Rates'!AV186","v":197.90326619752486},{"$f":"'Population 2016'!AW186*'Prevalence Rates'!AW186","v":685.47067216694984},{"$f":"'Population 2016'!AX186*'Prevalence Rates'!AX186","v":260.62008250424657},{"$f":"'Population 2016'!AY186*'Prevalence Rates'!AY186","v":2089.7115069157967},{"$f":"'Population 2016'!AZ186*'Prevalence Rates'!AZ186","v":1290.8573724824073},{"$f":"'Population 2016'!BA186*'Prevalence Rates'!BA186","v":141.38766318854647},{"$f":"'Population 2016'!BB186*'Prevalence Rates'!BB186","v":325.83275903906821},{"$f":"'Population 2016'!BC186*'Prevalence Rates'!BC186","v":13.258176947342877},184]
[null,"Female 65-69",{"$f":"'Population 2016'!C187*'Prevalence Rates'!C187","v":291.16391167192415},{"$f":"'Population 2016'!D187*'Prevalence Rates'!D187","v":1278.3444794952679},{"$f":"'Population 2016'!E187*'Prevalence Rates'!E187","v":1029.792050473186},{"$f":"'Population 2016'!F187*'Prevalence Rates'!F187","v":425.55145353069634},{"$f":"'Population 2016'!G187*'Prevalence Rates'!G187","v":311.62921135646678},{"$f":"'Population 2016'!H187*'Prevalence Rates'!H187","v":794.07545741324907},{"$f":"'Population 2016'!I187*'Prevalence Rates'!I187","v":590.54118830380969},{"$f":"'Population 2016'!J187*'Prevalence Rates'!J187","v":375.92509585052164},{"$f":"'Population 2016'!K187*'Prevalence Rates'!K187","v":112.9155593302596},{"$f":"'Population 2016'!L187*'Prevalence Rates'!L187","v":417.48062780878411},{"$f":"'Population 2016'!M187*'Prevalence Rates'!M187","v":417.23519534093663},{"$f":"'Population 2016'!N187*'Prevalence Rates'!N187","v":246.97061878184894},{"$f":"'Population 2016'!O187*'Prevalence Rates'!O187","v":229.17609318126659},{"$f":"'Population 2016'!P187*'Prevalence Rates'!P187","v":240.38981800533847},{"$f":"'Population 2016'!Q187*'Prevalence Rates'!Q187","v":347.18132006794457},{"$f":"'Population 2016'!R187*'Prevalence Rates'!R187","v":143.08917738413004},{"$f":"'Population 2016'!S187*'Prevalence Rates'!S187","v":2679.870332443581},{"$f":"'Population 2016'!T187*'Prevalence Rates'!T187","v":538.13956806600333},{"$f":"'Population 2016'!U187*'Prevalence Rates'!U187","v":20.210900266925496},{"$f":"'Population 2016'!V187*'Prevalence Rates'!V187","v":380.36743023537957},{"$f":"'Population 2016'!W187*'Prevalence Rates'!W187","v":797.64141519048746},{"$f":"'Population 2016'!X187*'Prevalence Rates'!X187","v":797.25251152632825},{"$f":"'Population 2016'!Y187*'Prevalence Rates'!Y187","v":738.69933705411279},{"$f":"'Population 2016'!Z187*'Prevalence Rates'!Z187","v":552.67643775782562},{"$f":"'Population 2016'!AA187*'Prevalence Rates'!AA187","v":2709.7114680902682},{"$f":"'Population 2016'!AB187*'Prevalence Rates'!AB187","v":1760.6085319097303},{"$f":"'Population 2016'!AC187*'Prevalence Rates'!AC187","v":1631.0832933753934},{"$f":"'Population 2016'!AD187*'Prevalence Rates'!AD187","v":1234.8836554234406},{"$f":"'Population 2016'!AE187*'Prevalence Rates'!AE187","v":986.09160397961625},{"$f":"'Population 2016'!AF187*'Prevalence Rates'!AF187","v":133.73013346275172},{"$f":"'Population 2016'!AG187*'Prevalence Rates'!AG187","v":986.09160397961625},{"$f":"'Population 2016'!AH187*'Prevalence Rates'!AH187","v":1074.549891773841},{"$f":"'Population 2016'!AI187*'Prevalence Rates'!AI187","v":1333.7420936665853},{"$f":"'Population 2016'!AJ187*'Prevalence Rates'!AJ187","v":149.91178354768257},{"$f":"'Population 2016'!AK187*'Prevalence Rates'!AK187","v":488.37551565154075},{"$f":"'Population 2016'!AL187*'Prevalence Rates'!AL187","v":365.28062120844447},{"$f":"'Population 2016'!AM187*'Prevalence Rates'!AM187","v":446.53898568308659},{"$f":"'Population 2016'!AN187*'Prevalence Rates'!AN187","v":134.94950429507398},{"$f":"'Population 2016'!AO187*'Prevalence Rates'!AO187","v":135.02647900994901},{"$f":"'Population 2016'!AP187*'Prevalence Rates'!AP187","v":758.27230769230755},{"$f":"'Population 2016'!AQ187*'Prevalence Rates'!AQ187","v":335.45963601067683},{"$f":"'Population 2016'!AR187*'Prevalence Rates'!AR187","v":12071.247999999998},{"$f":"'Population 2016'!AS187*'Prevalence Rates'!AS187","v":590.55508371754411},{"$f":"'Population 2016'!AT187*'Prevalence Rates'!AT187","v":139.67317253093904},{"$f":"'Population 2016'!AU187*'Prevalence Rates'!AU187","v":139.54857558844938},{"$f":"'Population 2016'!AV187*'Prevalence Rates'!AV187","v":202.50529483135156},{"$f":"'Population 2016'!AW187*'Prevalence Rates'!AW187","v":611.40492113564653},{"$f":"'Population 2016'!AX187*'Prevalence Rates'!AX187","v":259.21537490900261},{"$f":"'Population 2016'!AY187*'Prevalence Rates'!AY187","v":2133.9560495025471},{"$f":"'Population 2016'!AZ187*'Prevalence Rates'!AZ187","v":1325.1825188061148},{"$f":"'Population 2016'!BA187*'Prevalence Rates'!BA187","v":145.29481193884976},{"$f":"'Population 2016'!BB187*'Prevalence Rates'!BB187","v":317.31667556418341},{"$f":"'Population 2016'!BC187*'Prevalence Rates'!BC187","v":20.234182431448673},185]
[null,"Female 70-74",{"$f":"'Population 2016'!C188*'Prevalence Rates'!C188","v":205.11141955835953},{"$f":"'Population 2016'!D188*'Prevalence Rates'!D188","v":924.98620723125441},{"$f":"'Population 2016'!E188*'Prevalence Rates'!E188","v":751.67555447706854},{"$f":"'Population 2016'!F188*'Prevalence Rates'!F188","v":338.0749963601067},{"$f":"'Population 2016'!G188*'Prevalence Rates'!G188","v":246.66416403785482},{"$f":"'Population 2016'!H188*'Prevalence Rates'!H188","v":668.85586605192907},{"$f":"'Population 2016'!I188*'Prevalence Rates'!I188","v":472.43295064304772},{"$f":"'Population 2016'!J188*'Prevalence Rates'!J188","v":299.03937879155541},{"$f":"'Population 2016'!K188*'Prevalence Rates'!K188","v":87.480655180781326},{"$f":"'Population 2016'!L188*'Prevalence Rates'!L188","v":359.89709293860699},{"$f":"'Population 2016'!M188*'Prevalence Rates'!M188","v":359.68551322494534},{"$f":"'Population 2016'!N188*'Prevalence Rates'!N188","v":173.3257655908759},{"$f":"'Population 2016'!O188*'Prevalence Rates'!O188","v":169.71631642805139},{"$f":"'Population 2016'!P188*'Prevalence Rates'!P188","v":170.69697160883277},{"$f":"'Population 2016'!Q188*'Prevalence Rates'!Q188","v":248.54655180781356},{"$f":"'Population 2016'!R188*'Prevalence Rates'!R188","v":111.77789856830864},{"$f":"'Population 2016'!S188*'Prevalence Rates'!S188","v":2031.0493860713411},{"$f":"'Population 2016'!T188*'Prevalence Rates'!T188","v":405.21713176413488},{"$f":"'Population 2016'!U188*'Prevalence Rates'!U188","v":15.757651055569029},{"$f":"'Population 2016'!V188*'Prevalence Rates'!V188","v":284.79385100703701},{"$f":"'Population 2016'!W188*'Prevalence Rates'!W188","v":617.51772773598623},{"$f":"'Population 2016'!X188*'Prevalence Rates'!X188","v":617.21664644503744},{"$f":"'Population 2016'!Y188*'Prevalence Rates'!Y188","v":570.97707546711945},{"$f":"'Population 2016'!Z188*'Prevalence Rates'!Z188","v":395.8723610774083},{"$f":"'Population 2016'!AA188*'Prevalence Rates'!AA188","v":1926.0554719728214},{"$f":"'Population 2016'!AB188*'Prevalence Rates'!AB188","v":1286.6753467604947},{"$f":"'Population 2016'!AC188*'Prevalence Rates'!AC188","v":1204.9999519534088},{"$f":"'Population 2016'!AD188*'Prevalence Rates'!AD188","v":945.97642611016715},{"$f":"'Population 2016'!AE188*'Prevalence Rates'!AE188","v":746.89653967483594},{"$f":"'Population 2016'!AF188*'Prevalence Rates'!AF188","v":111.85262314972093},{"$f":"'Population 2016'!AG188*'Prevalence Rates'!AG188","v":746.89653967483594},{"$f":"'Population 2016'!AH188*'Prevalence Rates'!AH188","v":719.85765979131259},{"$f":"'Population 2016'!AI188*'Prevalence Rates'!AI188","v":977.49827711720422},{"$f":"'Population 2016'!AJ188*'Prevalence Rates'!AJ188","v":115.61823829167675},{"$f":"'Population 2016'!AK188*'Prevalence Rates'!AK188","v":367.47953894685742},{"$f":"'Population 2016'!AL188*'Prevalence Rates'!AL188","v":297.73967483620476},{"$f":"'Population 2016'!AM188*'Prevalence Rates'!AM188","v":292.50895413734526},{"$f":"'Population 2016'!AN188*'Prevalence Rates'!AN188","v":102.09530560543554},{"$f":"'Population 2016'!AO188*'Prevalence Rates'!AO188","v":102.15354040281483},{"$f":"'Population 2016'!AP188*'Prevalence Rates'!AP188","v":576.82003397233666},{"$f":"'Population 2016'!AQ188*'Prevalence Rates'!AQ188","v":241.20087357437504},{"$f":"'Population 2016'!AR188*'Prevalence Rates'!AR188","v":9106.7199999999975},{"$f":"'Population 2016'!AS188*'Prevalence Rates'!AS188","v":472.44406697403531},{"$f":"'Population 2016'!AT188*'Prevalence Rates'!AT188","v":112.66090803203102},{"$f":"'Population 2016'!AU188*'Prevalence Rates'!AU188","v":112.56040766804172},{"$f":"'Population 2016'!AV188*'Prevalence Rates'!AV188","v":199.73124969667549},{"$f":"'Population 2016'!AW188*'Prevalence Rates'!AW188","v":415.44180538704188},{"$f":"'Population 2016'!AX188*'Prevalence Rates'!AX188","v":208.24985197767529},{"$f":"'Population 2016'!AY188*'Prevalence Rates'!AY188","v":1634.0502790584803},{"$f":"'Population 2016'!AZ188*'Prevalence Rates'!AZ188","v":1008.3759854404269},{"$f":"'Population 2016'!BA188*'Prevalence Rates'!BA188","v":111.7140888133948},{"$f":"'Population 2016'!BB188*'Prevalence Rates'!BB188","v":218.45605435573887},{"$f":"'Population 2016'!BC188*'Prevalence Rates'!BC188","v":15.775803251637948},186]
[null,"Female 75-79",{"$f":"'Population 2016'!C189*'Prevalence Rates'!C189","v":282.36719242902205},{"$f":"'Population 2016'!D189*'Prevalence Rates'!D189","v":1199.1310846881827},{"$f":"'Population 2016'!E189*'Prevalence Rates'!E189","v":955.12817277359864},{"$f":"'Population 2016'!F189*'Prevalence Rates'!F189","v":425.90167435088574},{"$f":"'Population 2016'!G189*'Prevalence Rates'!G189","v":307.222712933754},{"$f":"'Population 2016'!H189*'Prevalence Rates'!H189","v":763.09274447949531},{"$f":"'Population 2016'!I189*'Prevalence Rates'!I189","v":616.78723416646449},{"$f":"'Population 2016'!J189*'Prevalence Rates'!J189","v":354.96743508857077},{"$f":"'Population 2016'!K189*'Prevalence Rates'!K189","v":92.93608347488474},{"$f":"'Population 2016'!L189*'Prevalence Rates'!L189","v":458.87457219121569},{"$f":"'Population 2016'!M189*'Prevalence Rates'!M189","v":458.6048046590634},{"$f":"'Population 2016'!N189*'Prevalence Rates'!N189","v":245.00985197767525},{"$f":"'Population 2016'!O189*'Prevalence Rates'!O189","v":194.38291676777479},{"$f":"'Population 2016'!P189*'Prevalence Rates'!P189","v":261.55981557874304},{"$f":"'Population 2016'!Q189*'Prevalence Rates'!Q189","v":301.30744964814363},{"$f":"'Population 2016'!R189*'Prevalence Rates'!R189","v":164.56471730162582},{"$f":"'Population 2016'!S189*'Prevalence Rates'!S189","v":2550.2788643533127},{"$f":"'Population 2016'!T189*'Prevalence Rates'!T189","v":536.47483620480477},{"$f":"'Population 2016'!U189*'Prevalence Rates'!U189","v":21.068284396991022},{"$f":"'Population 2016'!V189*'Prevalence Rates'!V189","v":363.01208444552293},{"$f":"'Population 2016'!W189*'Prevalence Rates'!W189","v":729.66029604464939},{"$f":"'Population 2016'!X189*'Prevalence Rates'!X189","v":729.30453773355975},{"$f":"'Population 2016'!Y189*'Prevalence Rates'!Y189","v":701.12054355738894},{"$f":"'Population 2016'!Z189*'Prevalence Rates'!Z189","v":575.08371754428538},{"$f":"'Population 2016'!AA189*'Prevalence Rates'!AA189","v":2596.8943460325163},{"$f":"'Population 2016'!AB189*'Prevalence Rates'!AB189","v":1627.846755641835},{"$f":"'Population 2016'!AC189*'Prevalence Rates'!AC189","v":1634.5334627517591},{"$f":"'Population 2016'!AD189*'Prevalence Rates'!AD189","v":1182.4191409851978},{"$f":"'Population 2016'!AE189*'Prevalence Rates'!AE189","v":934.75020626061644},{"$f":"'Population 2016'!AF189*'Prevalence Rates'!AF189","v":120.68876486289736},{"$f":"'Population 2016'!AG189*'Prevalence Rates'!AG189","v":934.75020626061644},{"$f":"'Population 2016'!AH189*'Prevalence Rates'!AH189","v":961.11246784760988},{"$f":"'Population 2016'!AI189*'Prevalence Rates'!AI189","v":1248.0838631400145},{"$f":"'Population 2016'!AJ189*'Prevalence Rates'!AJ189","v":139.02431448677504},{"$f":"'Population 2016'!AK189*'Prevalence Rates'!AK189","v":431.90526571220579},{"$f":"'Population 2016'!AL189*'Prevalence Rates'!AL189","v":331.17864595971855},{"$f":"'Population 2016'!AM189*'Prevalence Rates'!AM189","v":405.70715845668531},{"$f":"'Population 2016'!AN189*'Prevalence Rates'!AN189","v":129.79133996602766},{"$f":"'Population 2016'!AO189*'Prevalence Rates'!AO189","v":129.8653724824072},{"$f":"'Population 2016'!AP189*'Prevalence Rates'!AP189","v":768.21373453045396},{"$f":"'Population 2016'!AQ189*'Prevalence Rates'!AQ189","v":292.78718757583107},{"$f":"'Population 2016'!AR189*'Prevalence Rates'!AR189","v":11596.480000000001},{"$f":"'Population 2016'!AS189*'Prevalence Rates'!AS189","v":616.80174714875034},{"$f":"'Population 2016'!AT189*'Prevalence Rates'!AT189","v":128.49200679446736},{"$f":"'Population 2016'!AU189*'Prevalence Rates'!AU189","v":128.37738413006554},{"$f":"'Population 2016'!AV189*'Prevalence Rates'!AV189","v":234.59121572433875},{"$f":"'Population 2016'!AW189*'Prevalence Rates'!AW189","v":541.29619024508611},{"$f":"'Population 2016'!AX189*'Prevalence Rates'!AX189","v":256.74933268624119},{"$f":"'Population 2016'!AY189*'Prevalence Rates'!AY189","v":2076.2832322251879},{"$f":"'Population 2016'!AZ189*'Prevalence Rates'!AZ189","v":1333.2565882067461},{"$f":"'Population 2016'!BA189*'Prevalence Rates'!BA189","v":145.83101189031791},{"$f":"'Population 2016'!BB189*'Prevalence Rates'!BB189","v":281.65785003639894},{"$f":"'Population 2016'!BC189*'Prevalence Rates'!BC189","v":21.092554234409125},187]
[null,"Female 80-84",{"$f":"'Population 2016'!C190*'Prevalence Rates'!C190","v":217.97602523659305},{"$f":"'Population 2016'!D190*'Prevalence Rates'!D190","v":901.69648143654467},{"$f":"'Population 2016'!E190*'Prevalence Rates'!E190","v":711.58728463965065},{"$f":"'Population 2016'!F190*'Prevalence Rates'!F190","v":342.9262800291192},{"$f":"'Population 2016'!G190*'Prevalence Rates'!G190","v":209.74384858044166},{"$f":"'Population 2016'!H190*'Prevalence Rates'!H190","v":581.43341907304057},{"$f":"'Population 2016'!I190*'Prevalence Rates'!I190","v":421.00926377092941},{"$f":"'Population 2016'!J190*'Prevalence Rates'!J190","v":278.6981800533851},{"$f":"'Population 2016'!K190*'Prevalence Rates'!K190","v":68.610531424411548},{"$f":"'Population 2016'!L190*'Prevalence Rates'!L190","v":363.08693229798587},{"$f":"'Population 2016'!M190*'Prevalence Rates'!M190","v":362.87347731133224},{"$f":"'Population 2016'!N190*'Prevalence Rates'!N190","v":243.80587236107735},{"$f":"'Population 2016'!O190*'Prevalence Rates'!O190","v":121.72831836932782},{"$f":"'Population 2016'!P190*'Prevalence Rates'!P190","v":183.63678718757583},{"$f":"'Population 2016'!Q190*'Prevalence Rates'!Q190","v":234.17403542829408},{"$f":"'Population 2016'!R190*'Prevalence Rates'!R190","v":140.04348459111867},{"$f":"'Population 2016'!S190*'Prevalence Rates'!S190","v":1904.5788886192674},{"$f":"'Population 2016'!T190*'Prevalence Rates'!T190","v":459.77073525843252},{"$f":"'Population 2016'!U190*'Prevalence Rates'!U190","v":10.534142198495511},{"$f":"'Population 2016'!V190*'Prevalence Rates'!V190","v":263.8386799320553},{"$f":"'Population 2016'!W190*'Prevalence Rates'!W190","v":544.04006794467364},{"$f":"'Population 2016'!X190*'Prevalence Rates'!X190","v":543.77481193884978},{"$f":"'Population 2016'!Y190*'Prevalence Rates'!Y190","v":530.65659791312783},{"$f":"'Population 2016'!Z190*'Prevalence Rates'!Z190","v":431.93787915554481},{"$f":"'Population 2016'!AA190*'Prevalence Rates'!AA190","v":1912.0691094394565},{"$f":"'Population 2016'!AB190*'Prevalence Rates'!AB190","v":1248.0876680417377},{"$f":"'Population 2016'!AC190*'Prevalence Rates'!AC190","v":1248.3492550351855},{"$f":"'Population 2016'!AD190*'Prevalence Rates'!AD190","v":896.81859742780887},{"$f":"'Population 2016'!AE190*'Prevalence Rates'!AE190","v":733.86090754671204},{"$f":"'Population 2016'!AF190*'Prevalence Rates'!AF190","v":112.70934239262316},{"$f":"'Population 2016'!AG190*'Prevalence Rates'!AG190","v":733.86090754671204},{"$f":"'Population 2016'!AH190*'Prevalence Rates'!AH190","v":664.47281727735992},{"$f":"'Population 2016'!AI190*'Prevalence Rates'!AI190","v":967.32777481193875},{"$f":"'Population 2016'!AJ190*'Prevalence Rates'!AJ190","v":94.092501819946605},{"$f":"'Population 2016'!AK190*'Prevalence Rates'!AK190","v":351.37044406697407},{"$f":"'Population 2016'!AL190*'Prevalence Rates'!AL190","v":246.44348459111868},{"$f":"'Population 2016'!AM190*'Prevalence Rates'!AM190","v":257.08769716088329},{"$f":"'Population 2016'!AN190*'Prevalence Rates'!AN190","v":76.616914341179324},{"$f":"'Population 2016'!AO190*'Prevalence Rates'!AO190","v":76.660616355253595},{"$f":"'Population 2016'!AP190*'Prevalence Rates'!AP190","v":561.36568793982053},{"$f":"'Population 2016'!AQ190*'Prevalence Rates'!AQ190","v":225.49750060664886},{"$f":"'Population 2016'!AR190*'Prevalence Rates'!AR190","v":8755.0400000000009},{"$f":"'Population 2016'!AS190*'Prevalence Rates'!AS190","v":421.01917010434363},{"$f":"'Population 2016'!AT190*'Prevalence Rates'!AT190","v":91.703838874059684},{"$f":"'Population 2016'!AU190*'Prevalence Rates'!AU190","v":91.622033487017731},{"$f":"'Population 2016'!AV190*'Prevalence Rates'!AV190","v":207.09128852220334},{"$f":"'Population 2016'!AW190*'Prevalence Rates'!AW190","v":394.87134190730404},{"$f":"'Population 2016'!AX190*'Prevalence Rates'!AX190","v":205.39946614899296},{"$f":"'Population 2016'!AY190*'Prevalence Rates'!AY190","v":1615.487891288522},{"$f":"'Population 2016'!AZ190*'Prevalence Rates'!AZ190","v":1059.7545450133464},{"$f":"'Population 2016'!BA190*'Prevalence Rates'!BA190","v":95.247561271536057},{"$f":"'Population 2016'!BB190*'Prevalence Rates'!BB190","v":174.98743023537978},{"$f":"'Population 2016'!BC190*'Prevalence Rates'!BC190","v":10.546277117204562},188]
[null,"Female 85-89",{"$f":"'Population 2016'!C191*'Prevalence Rates'!C191","v":133.55205047318611},{"$f":"'Population 2016'!D191*'Prevalence Rates'!D191","v":567.21300655180789},{"$f":"'Population 2016'!E191*'Prevalence Rates'!E191","v":451.81033729677267},{"$f":"'Population 2016'!F191*'Prevalence Rates'!F191","v":202.50638194612961},{"$f":"'Population 2016'!G191*'Prevalence Rates'!G191","v":136.90851735015775},{"$f":"'Population 2016'!H191*'Prevalence Rates'!H191","v":341.07465178354772},{"$f":"'Population 2016'!I191*'Prevalence Rates'!I191","v":273.74264887163309},{"$f":"'Population 2016'!J191*'Prevalence Rates'!J191","v":171.46246056782337},{"$f":"'Population 2016'!K191*'Prevalence Rates'!K191","v":43.037515166221787},{"$f":"'Population 2016'!L191*'Prevalence Rates'!L191","v":212.28612084445521},{"$f":"'Population 2016'!M191*'Prevalence Rates'!M191","v":212.1613200679447},{"$f":"'Population 2016'!N191*'Prevalence Rates'!N191","v":195.04469788886189},{"$f":"'Population 2016'!O191*'Prevalence Rates'!O191","v":73.929240475612701},{"$f":"'Population 2016'!P191*'Prevalence Rates'!P191","v":140.58840087357439},{"$f":"'Population 2016'!Q191*'Prevalence Rates'!Q191","v":133.73821887891287},{"$f":"'Population 2016'!R191*'Prevalence Rates'!R191","v":92.090851735015775},{"$f":"'Population 2016'!S191*'Prevalence Rates'!S191","v":1253.1090512011649},{"$f":"'Population 2016'!T191*'Prevalence Rates'!T191","v":378.98180053385107},{"$f":"'Population 2016'!U191*'Prevalence Rates'!U191","v":12.197427808784274},{"$f":"'Population 2016'!V191*'Prevalence Rates'!V191","v":158.42795438000485},{"$f":"'Population 2016'!W191*'Prevalence Rates'!W191","v":329.99151662217912},{"$f":"'Population 2016'!X191*'Prevalence Rates'!X191","v":329.83062363504001},{"$f":"'Population 2016'!Y191*'Prevalence Rates'!Y191","v":322.83069157971363},{"$f":"'Population 2016'!Z191*'Prevalence Rates'!Z191","v":278.16549381218152},{"$f":"'Population 2016'!AA191*'Prevalence Rates'!AA191","v":1215.6661004610532},{"$f":"'Population 2016'!AB191*'Prevalence Rates'!AB191","v":788.60610531424436},{"$f":"'Population 2016'!AC191*'Prevalence Rates'!AC191","v":833.99355496238775},{"$f":"'Population 2016'!AD191*'Prevalence Rates'!AD191","v":549.27398204319343},{"$f":"'Population 2016'!AE191*'Prevalence Rates'!AE191","v":440.43368114535309},{"$f":"'Population 2016'!AF191*'Prevalence Rates'!AF191","v":71.814802232467855},{"$f":"'Population 2016'!AG191*'Prevalence Rates'!AG191","v":440.43368114535309},{"$f":"'Population 2016'!AH191*'Prevalence Rates'!AH191","v":383.65394807085659},{"$f":"'Population 2016'!AI191*'Prevalence Rates'!AI191","v":664.47281727735981},{"$f":"'Population 2016'!AJ191*'Prevalence Rates'!AJ191","v":50.746517835476823},{"$f":"'Population 2016'!AK191*'Prevalence Rates'!AK191","v":224.90094637223976},{"$f":"'Population 2016'!AL191*'Prevalence Rates'!AL191","v":146.18432419315701},{"$f":"'Population 2016'!AM191*'Prevalence Rates'!AM191","v":106.67041980101918},{"$f":"'Population 2016'!AN191*'Prevalence Rates'!AN191","v":56.033265712205775},{"$f":"'Population 2016'!AO191*'Prevalence Rates'!AO191","v":56.065226886677998},{"$f":"'Population 2016'!AP191*'Prevalence Rates'!AP191","v":384.93647173016268},{"$f":"'Population 2016'!AQ191*'Prevalence Rates'!AQ191","v":151.01654938121814},{"$f":"'Population 2016'!AR191*'Prevalence Rates'!AR191","v":5593.2800000000007},{"$f":"'Population 2016'!AS191*'Prevalence Rates'!AS191","v":273.74909002669256},{"$f":"'Population 2016'!AT191*'Prevalence Rates'!AT191","v":59.180965785003636},{"$f":"'Population 2016'!AU191*'Prevalence Rates'!AU191","v":59.128172773598649},{"$f":"'Population 2016'!AV191*'Prevalence Rates'!AV191","v":117.85683086629459},{"$f":"'Population 2016'!AW191*'Prevalence Rates'!AW191","v":264.83338995389465},{"$f":"'Population 2016'!AX191*'Prevalence Rates'!AX191","v":125.64329046347973},{"$f":"'Population 2016'!AY191*'Prevalence Rates'!AY191","v":1060.586459597185},{"$f":"'Population 2016'!AZ191*'Prevalence Rates'!AZ191","v":721.43409851977685},{"$f":"'Population 2016'!BA191*'Prevalence Rates'!BA191","v":59.731521475370073},{"$f":"'Population 2016'!BB191*'Prevalence Rates'!BB191","v":83.298810968211612},{"$f":"'Population 2016'!BC191*'Prevalence Rates'!BC191","v":12.211478767289492},189]
[null,"Female 90+",{"$f":"'Population 2016'!C192*'Prevalence Rates'!C192","v":61.52933753943217},{"$f":"'Population 2016'!D192*'Prevalence Rates'!D192","v":309.43635040038828},{"$f":"'Population 2016'!E192*'Prevalence Rates'!E192","v":259.77694734287797},{"$f":"'Population 2016'!F192*'Prevalence Rates'!F192","v":164.21004610531426},{"$f":"'Population 2016'!G192*'Prevalence Rates'!G192","v":87.621451104100956},{"$f":"'Population 2016'!H192*'Prevalence Rates'!H192","v":211.31799077893717},{"$f":"'Population 2016'!I192*'Prevalence Rates'!I192","v":161.12700218393596},{"$f":"'Population 2016'!J192*'Prevalence Rates'!J192","v":124.43931084688184},{"$f":"'Population 2016'!K192*'Prevalence Rates'!K192","v":28.067944673622907},{"$f":"'Population 2016'!L192*'Prevalence Rates'!L192","v":110.67355690366415},{"$f":"'Population 2016'!M192*'Prevalence Rates'!M192","v":110.60849308420288},{"$f":"'Population 2016'!N192*'Prevalence Rates'!N192","v":112.57209415190485},{"$f":"'Population 2016'!O192*'Prevalence Rates'!O192","v":45.249793739383641},{"$f":"'Population 2016'!P192*'Prevalence Rates'!P192","v":70.294200436787193},{"$f":"'Population 2016'!Q192*'Prevalence Rates'!Q192","v":68.190633341421986},{"$f":"'Population 2016'!R192*'Prevalence Rates'!R192","v":91.545935452560059},{"$f":"'Population 2016'!S192*'Prevalence Rates'!S192","v":744.83669012375651},{"$f":"'Population 2016'!T192*'Prevalence Rates'!T192","v":223.75811696190252},{"$f":"'Population 2016'!U192*'Prevalence Rates'!U192","v":6.0987139043921372},{"$f":"'Population 2016'!V192*'Prevalence Rates'!V192","v":107.90565396748362},{"$f":"'Population 2016'!W192*'Prevalence Rates'!W192","v":226.86916767774815},{"$f":"'Population 2016'!X192*'Prevalence Rates'!X192","v":226.75855374909003},{"$f":"'Population 2016'!Y192*'Prevalence Rates'!Y192","v":227.67444794952678},{"$f":"'Population 2016'!Z192*'Prevalence Rates'!Z192","v":171.27493326862412},{"$f":"'Population 2016'!AA192*'Prevalence Rates'!AA192","v":685.98301383159423},{"$f":"'Population 2016'!AB192*'Prevalence Rates'!AB192","v":425.54564426110176},{"$f":"'Population 2016'!AC192*'Prevalence Rates'!AC192","v":505.91305023052655},{"$f":"'Population 2016'!AD192*'Prevalence Rates'!AD192","v":357.4118126668285},{"$f":"'Population 2016'!AE192*'Prevalence Rates'!AE192","v":288.15607862169378},{"$f":"'Population 2016'!AF192*'Prevalence Rates'!AF192","v":37.403542829410341},{"$f":"'Population 2016'!AG192*'Prevalence Rates'!AG192","v":288.15607862169378},{"$f":"'Population 2016'!AH192*'Prevalence Rates'!AH192","v":182.50401358893473},{"$f":"'Population 2016'!AI192*'Prevalence Rates'!AI192","v":368.64931812666828},{"$f":"'Population 2016'!AJ192*'Prevalence Rates'!AJ192","v":37.531278815821402},{"$f":"'Population 2016'!AK192*'Prevalence Rates'!AK192","v":117.52118417859744},{"$f":"'Population 2016'!AL192*'Prevalence Rates'!AL192","v":97.024993933511297},{"$f":"'Population 2016'!AM192*'Prevalence Rates'!AM192","v":47.342489686969188},{"$f":"'Population 2016'!AN192*'Prevalence Rates'!AN192","v":27.444864838631403},{"$f":"'Population 2016'!AO192*'Prevalence Rates'!AO192","v":27.460519291434125},{"$f":"'Population 2016'!AP192*'Prevalence Rates'!AP192","v":251.09361805387047},{"$f":"'Population 2016'!AQ192*'Prevalence Rates'!AQ192","v":82.699538946857558},{"$f":"'Population 2016'!AR192*'Prevalence Rates'!AR192","v":3358.88},{"$f":"'Population 2016'!AS192*'Prevalence Rates'!AS192","v":161.1307934967241},{"$f":"'Population 2016'!AT192*'Prevalence Rates'!AT192","v":34.655520504731861},{"$f":"'Population 2016'!AU192*'Prevalence Rates'!AU192","v":34.624605678233443},{"$f":"'Population 2016'!AV192*'Prevalence Rates'!AV192","v":67.907983499150689},{"$f":"'Population 2016'!AW192*'Prevalence Rates'!AW192","v":128.98073283183692},{"$f":"'Population 2016'!AX192*'Prevalence Rates'!AX192","v":93.959330259645711},{"$f":"'Population 2016'!AY192*'Prevalence Rates'!AY192","v":719.85751031303073},{"$f":"'Population 2016'!AZ192*'Prevalence Rates'!AZ192","v":486.9284930842029},{"$f":"'Population 2016'!BA192*'Prevalence Rates'!BA192","v":29.596699830138324},{"$f":"'Population 2016'!BB192*'Prevalence Rates'!BB192","v":24.570152875515653},{"$f":"'Population 2016'!BC192*'Prevalence Rates'!BC192","v":6.105739383644746},190]
[null,"Male 0-4",{"$f":"'Population 2016'!C193*'Prevalence Rates'!C193","v":0},{"$f":"'Population 2016'!D193*'Prevalence Rates'!D193","v":0},{"$f":"'Population 2016'!E193*'Prevalence Rates'!E193","v":0},{"$f":"'Population 2016'!F193*'Prevalence Rates'!F193","v":0},{"$f":"'Population 2016'!G193*'Prevalence Rates'!G193","v":0},{"$f":"'Population 2016'!H193*'Prevalence Rates'!H193","v":0},{"$f":"'Population 2016'!I193*'Prevalence Rates'!I193","v":0},{"$f":"'Population 2016'!J193*'Prevalence Rates'!J193","v":0},{"$f":"'Population 2016'!K193*'Prevalence Rates'!K193","v":0},{"$f":"'Population 2016'!L193*'Prevalence Rates'!L193","v":0},{"$f":"'Population 2016'!M193*'Prevalence Rates'!M193","v":0},{"$f":"'Population 2016'!N193*'Prevalence Rates'!N193","v":0},{"$f":"'Population 2016'!O193*'Prevalence Rates'!O193","v":0},{"$f":"'Population 2016'!P193*'Prevalence Rates'!P193","v":0},{"$f":"'Population 2016'!Q193*'Prevalence Rates'!Q193","v":0},{"$f":"'Population 2016'!R193*'Prevalence Rates'!R193","v":0},{"$f":"'Population 2016'!S193*'Prevalence Rates'!S193","v":0},{"$f":"'Population 2016'!T193*'Prevalence Rates'!T193","v":0},{"$f":"'Population 2016'!U193*'Prevalence Rates'!U193","v":0},{"$f":"'Population 2016'!V193*'Prevalence Rates'!V193","v":0},{"$f":"'Population 2016'!W193*'Prevalence Rates'!W193","v":0},{"$f":"'Population 2016'!X193*'Prevalence Rates'!X193","v":0},{"$f":"'Population 2016'!Y193*'Prevalence Rates'!Y193","v":0},{"$f":"'Population 2016'!Z193*'Prevalence Rates'!Z193","v":0},{"$f":"'Population 2016'!AA193*'Prevalence Rates'!AA193","v":0},{"$f":"'Population 2016'!AB193*'Prevalence Rates'!AB193","v":0},{"$f":"'Population 2016'!AC193*'Prevalence Rates'!AC193","v":0},{"$f":"'Population 2016'!AD193*'Prevalence Rates'!AD193","v":0},{"$f":"'Population 2016'!AE193*'Prevalence Rates'!AE193","v":0},{"$f":"'Population 2016'!AF193*'Prevalence Rates'!AF193","v":0},{"$f":"'Population 2016'!AG193*'Prevalence Rates'!AG193","v":0},{"$f":"'Population 2016'!AH193*'Prevalence Rates'!AH193","v":0},{"$f":"'Population 2016'!AI193*'Prevalence Rates'!AI193","v":0},{"$f":"'Population 2016'!AJ193*'Prevalence Rates'!AJ193","v":0},{"$f":"'Population 2016'!AK193*'Prevalence Rates'!AK193","v":0},{"$f":"'Population 2016'!AL193*'Prevalence Rates'!AL193","v":0},{"$f":"'Population 2016'!AM193*'Prevalence Rates'!AM193","v":0},{"$f":"'Population 2016'!AN193*'Prevalence Rates'!AN193","v":0},{"$f":"'Population 2016'!AO193*'Prevalence Rates'!AO193","v":0},{"$f":"'Population 2016'!AP193*'Prevalence Rates'!AP193","v":0},{"$f":"'Population 2016'!AQ193*'Prevalence Rates'!AQ193","v":0},{"$f":"'Population 2016'!AR193*'Prevalence Rates'!AR193","v":0},{"$f":"'Population 2016'!AS193*'Prevalence Rates'!AS193","v":0},{"$f":"'Population 2016'!AT193*'Prevalence Rates'!AT193","v":0},{"$f":"'Population 2016'!AU193*'Prevalence Rates'!AU193","v":0},{"$f":"'Population 2016'!AV193*'Prevalence Rates'!AV193","v":0},{"$f":"'Population 2016'!AW193*'Prevalence Rates'!AW193","v":0},{"$f":"'Population 2016'!AX193*'Prevalence Rates'!AX193","v":0},{"$f":"'Population 2016'!AY193*'Prevalence Rates'!AY193","v":0},{"$f":"'Population 2016'!AZ193*'Prevalence Rates'!AZ193","v":0},{"$f":"'Population 2016'!BA193*'Prevalence Rates'!BA193","v":0},{"$f":"'Population 2016'!BB193*'Prevalence Rates'!BB193","v":0},{"$f":"'Population 2016'!BC193*'Prevalence Rates'!BC193","v":0},191]
[null,"Male 5-9",{"$f":"'Population 2016'!C194*'Prevalence Rates'!C194","v":0},{"$f":"'Population 2016'!D194*'Prevalence Rates'!D194","v":0},{"$f":"'Population 2016'!E194*'Prevalence Rates'!E194","v":0},{"$f":"'Population 2016'!F194*'Prevalence Rates'!F194","v":0},{"$f":"'Population 2016'!G194*'Prevalence Rates'!G194","v":0},{"$f":"'Population 2016'!H194*'Prevalence Rates'!H194","v":0},{"$f":"'Population 2016'!I194*'Prevalence Rates'!I194","v":0},{"$f":"'Population 2016'!J194*'Prevalence Rates'!J194","v":0},{"$f":"'Population 2016'!K194*'Prevalence Rates'!K194","v":0},{"$f":"'Population 2016'!L194*'Prevalence Rates'!L194","v":0},{"$f":"'Population 2016'!M194*'Prevalence Rates'!M194","v":0},{"$f":"'Population 2016'!N194*'Prevalence Rates'!N194","v":0},{"$f":"'Population 2016'!O194*'Prevalence Rates'!O194","v":0},{"$f":"'Population 2016'!P194*'Prevalence Rates'!P194","v":0},{"$f":"'Population 2016'!Q194*'Prevalence Rates'!Q194","v":0},{"$f":"'Population 2016'!R194*'Prevalence Rates'!R194","v":0},{"$f":"'Population 2016'!S194*'Prevalence Rates'!S194","v":0},{"$f":"'Population 2016'!T194*'Prevalence Rates'!T194","v":0},{"$f":"'Population 2016'!U194*'Prevalence Rates'!U194","v":0},{"$f":"'Population 2016'!V194*'Prevalence Rates'!V194","v":0},{"$f":"'Population 2016'!W194*'Prevalence Rates'!W194","v":0},{"$f":"'Population 2016'!X194*'Prevalence Rates'!X194","v":0},{"$f":"'Population 2016'!Y194*'Prevalence Rates'!Y194","v":0},{"$f":"'Population 2016'!Z194*'Prevalence Rates'!Z194","v":0},{"$f":"'Population 2016'!AA194*'Prevalence Rates'!AA194","v":0},{"$f":"'Population 2016'!AB194*'Prevalence Rates'!AB194","v":0},{"$f":"'Population 2016'!AC194*'Prevalence Rates'!AC194","v":0},{"$f":"'Population 2016'!AD194*'Prevalence Rates'!AD194","v":0},{"$f":"'Population 2016'!AE194*'Prevalence Rates'!AE194","v":0},{"$f":"'Population 2016'!AF194*'Prevalence Rates'!AF194","v":0},{"$f":"'Population 2016'!AG194*'Prevalence Rates'!AG194","v":0},{"$f":"'Population 2016'!AH194*'Prevalence Rates'!AH194","v":0},{"$f":"'Population 2016'!AI194*'Prevalence Rates'!AI194","v":0},{"$f":"'Population 2016'!AJ194*'Prevalence Rates'!AJ194","v":0},{"$f":"'Population 2016'!AK194*'Prevalence Rates'!AK194","v":0},{"$f":"'Population 2016'!AL194*'Prevalence Rates'!AL194","v":0},{"$f":"'Population 2016'!AM194*'Prevalence Rates'!AM194","v":0},{"$f":"'Population 2016'!AN194*'Prevalence Rates'!AN194","v":0},{"$f":"'Population 2016'!AO194*'Prevalence Rates'!AO194","v":0},{"$f":"'Population 2016'!AP194*'Prevalence Rates'!AP194","v":0},{"$f":"'Population 2016'!AQ194*'Prevalence Rates'!AQ194","v":0},{"$f":"'Population 2016'!AR194*'Prevalence Rates'!AR194","v":0},{"$f":"'Population 2016'!AS194*'Prevalence Rates'!AS194","v":0},{"$f":"'Population 2016'!AT194*'Prevalence Rates'!AT194","v":0},{"$f":"'Population 2016'!AU194*'Prevalence Rates'!AU194","v":0},{"$f":"'Population 2016'!AV194*'Prevalence Rates'!AV194","v":0},{"$f":"'Population 2016'!AW194*'Prevalence Rates'!AW194","v":0},{"$f":"'Population 2016'!AX194*'Prevalence Rates'!AX194","v":0},{"$f":"'Population 2016'!AY194*'Prevalence Rates'!AY194","v":0},{"$f":"'Population 2016'!AZ194*'Prevalence Rates'!AZ194","v":0},{"$f":"'Population 2016'!BA194*'Prevalence Rates'!BA194","v":0},{"$f":"'Population 2016'!BB194*'Prevalence Rates'!BB194","v":0},{"$f":"'Population 2016'!BC194*'Prevalence Rates'!BC194","v":0},192]
[null,"Male 10-15",{"$f":"'Population 2016'!C195*'Prevalence Rates'!C195","v":0},{"$f":"'Population 2016'!D195*'Prevalence Rates'!D195","v":0},{"$f":"'Population 2016'!E195*'Prevalence Rates'!E195","v":0},{"$f":"'Population 2016'!F195*'Prevalence Rates'!F195","v":0},{"$f":"'Population 2016'!G195*'Prevalence Rates'!G195","v":0},{"$f":"'Population 2016'!H195*'Prevalence Rates'!H195","v":0},{"$f":"'Population 2016'!I195*'Prevalence Rates'!I195","v":0},{"$f":"'Population 2016'!J195*'Prevalence Rates'!J195","v":0},{"$f":"'Population 2016'!K195*'Prevalence Rates'!K195","v":0},{"$f":"'Population 2016'!L195*'Prevalence Rates'!L195","v":0},{"$f":"'Population 2016'!M195*'Prevalence Rates'!M195","v":0},{"$f":"'Population 2016'!N195*'Prevalence Rates'!N195","v":0},{"$f":"'Population 2016'!O195*'Prevalence Rates'!O195","v":0},{"$f":"'Population 2016'!P195*'Prevalence Rates'!P195","v":0},{"$f":"'Population 2016'!Q195*'Prevalence Rates'!Q195","v":0},{"$f":"'Population 2016'!R195*'Prevalence Rates'!R195","v":0},{"$f":"'Population 2016'!S195*'Prevalence Rates'!S195","v":0},{"$f":"'Population 2016'!T195*'Prevalence Rates'!T195","v":0},{"$f":"'Population 2016'!U195*'Prevalence Rates'!U195","v":0},{"$f":"'Population 2016'!V195*'Prevalence Rates'!V195","v":0},{"$f":"'Population 2016'!W195*'Prevalence Rates'!W195","v":0},{"$f":"'Population 2016'!X195*'Prevalence Rates'!X195","v":0},{"$f":"'Population 2016'!Y195*'Prevalence Rates'!Y195","v":0},{"$f":"'Population 2016'!Z195*'Prevalence Rates'!Z195","v":0},{"$f":"'Population 2016'!AA195*'Prevalence Rates'!AA195","v":0},{"$f":"'Population 2016'!AB195*'Prevalence Rates'!AB195","v":0},{"$f":"'Population 2016'!AC195*'Prevalence Rates'!AC195","v":0},{"$f":"'Population 2016'!AD195*'Prevalence Rates'!AD195","v":0},{"$f":"'Population 2016'!AE195*'Prevalence Rates'!AE195","v":0},{"$f":"'Population 2016'!AF195*'Prevalence Rates'!AF195","v":0},{"$f":"'Population 2016'!AG195*'Prevalence Rates'!AG195","v":0},{"$f":"'Population 2016'!AH195*'Prevalence Rates'!AH195","v":0},{"$f":"'Population 2016'!AI195*'Prevalence Rates'!AI195","v":0},{"$f":"'Population 2016'!AJ195*'Prevalence Rates'!AJ195","v":0},{"$f":"'Population 2016'!AK195*'Prevalence Rates'!AK195","v":0},{"$f":"'Population 2016'!AL195*'Prevalence Rates'!AL195","v":0},{"$f":"'Population 2016'!AM195*'Prevalence Rates'!AM195","v":0},{"$f":"'Population 2016'!AN195*'Prevalence Rates'!AN195","v":0},{"$f":"'Population 2016'!AO195*'Prevalence Rates'!AO195","v":0},{"$f":"'Population 2016'!AP195*'Prevalence Rates'!AP195","v":0},{"$f":"'Population 2016'!AQ195*'Prevalence Rates'!AQ195","v":0},{"$f":"'Population 2016'!AR195*'Prevalence Rates'!AR195","v":0},{"$f":"'Population 2016'!AS195*'Prevalence Rates'!AS195","v":0},{"$f":"'Population 2016'!AT195*'Prevalence Rates'!AT195","v":0},{"$f":"'Population 2016'!AU195*'Prevalence Rates'!AU195","v":0},{"$f":"'Population 2016'!AV195*'Prevalence Rates'!AV195","v":0},{"$f":"'Population 2016'!AW195*'Prevalence Rates'!AW195","v":0},{"$f":"'Population 2016'!AX195*'Prevalence Rates'!AX195","v":0},{"$f":"'Population 2016'!AY195*'Prevalence Rates'!AY195","v":0},{"$f":"'Population 2016'!AZ195*'Prevalence Rates'!AZ195","v":0},{"$f":"'Population 2016'!BA195*'Prevalence Rates'!BA195","v":0},{"$f":"'Population 2016'!BB195*'Prevalence Rates'!BB195","v":0},{"$f":"'Population 2016'!BC195*'Prevalence Rates'!BC195","v":0},193]
[null,"Male 16-19",{"$f":"'Population 2016'!C196*'Prevalence Rates'!C196","v":275.72606369426751},{"$f":"'Population 2016'!D196*'Prevalence Rates'!D196","v":1015.1649171974523},{"$f":"'Population 2016'!E196*'Prevalence Rates'!E196","v":752.28672611464935},{"$f":"'Population 2016'!F196*'Prevalence Rates'!F196","v":251.91131847133764},{"$f":"'Population 2016'!G196*'Prevalence Rates'!G196","v":169.74527388535029},{"$f":"'Population 2016'!H196*'Prevalence Rates'!H196","v":451.53671847133757},{"$f":"'Population 2016'!I196*'Prevalence Rates'!I196","v":330.40739808917192},{"$f":"'Population 2016'!J196*'Prevalence Rates'!J196","v":250.21874522292995},{"$f":"'Population 2016'!K196*'Prevalence Rates'!K196","v":77.657961783439475},{"$f":"'Population 2016'!L196*'Prevalence Rates'!L196","v":185.53750509554138},{"$f":"'Population 2016'!M196*'Prevalence Rates'!M196","v":185.30082802547767},{"$f":"'Population 2016'!N196*'Prevalence Rates'!N196","v":273.76991082802556},{"$f":"'Population 2016'!O196*'Prevalence Rates'!O196","v":141.54878980891721},{"$f":"'Population 2016'!P196*'Prevalence Rates'!P196","v":138.70605095541399},{"$f":"'Population 2016'!Q196*'Prevalence Rates'!Q196","v":298.61828025477701},{"$f":"'Population 2016'!R196*'Prevalence Rates'!R196","v":108.19071974522291},{"$f":"'Population 2016'!S196*'Prevalence Rates'!S196","v":1653.9185350318469},{"$f":"'Population 2016'!T196*'Prevalence Rates'!T196","v":334.89315286624202},{"$f":"'Population 2016'!U196*'Prevalence Rates'!U196","v":11.512547770700639},{"$f":"'Population 2016'!V196*'Prevalence Rates'!V196","v":275.85458598726109},{"$f":"'Population 2016'!W196*'Prevalence Rates'!W196","v":441.81346242038222},{"$f":"'Population 2016'!X196*'Prevalence Rates'!X196","v":441.51001910828012},{"$f":"'Population 2016'!Y196*'Prevalence Rates'!Y196","v":549.54651210191071},{"$f":"'Population 2016'!Z196*'Prevalence Rates'!Z196","v":445.71095541401257},{"$f":"'Population 2016'!AA196*'Prevalence Rates'!AA196","v":2186.105388535032},{"$f":"'Population 2016'!AB196*'Prevalence Rates'!AB196","v":1308.0275770700639},{"$f":"'Population 2016'!AC196*'Prevalence Rates'!AC196","v":1161.3117554140126},{"$f":"'Population 2016'!AD196*'Prevalence Rates'!AD196","v":788.16601146496816},{"$f":"'Population 2016'!AE196*'Prevalence Rates'!AE196","v":677.20901273885352},{"$f":"'Population 2016'!AF196*'Prevalence Rates'!AF196","v":135.00068789808913},{"$f":"'Population 2016'!AG196*'Prevalence Rates'!AG196","v":677.20901273885352},{"$f":"'Population 2016'!AH196*'Prevalence Rates'!AH196","v":1046.4285095541402},{"$f":"'Population 2016'!AI196*'Prevalence Rates'!AI196","v":914.66789044585948},{"$f":"'Population 2016'!AJ196*'Prevalence Rates'!AJ196","v":110.82324840764329},{"$f":"'Population 2016'!AK196*'Prevalence Rates'!AK196","v":284.88600000000002},{"$f":"'Population 2016'!AL196*'Prevalence Rates'!AL196","v":192.20835668789809},{"$f":"'Population 2016'!AM196*'Prevalence Rates'!AM196","v":482.23089171974516},{"$f":"'Population 2016'!AN196*'Prevalence Rates'!AN196","v":90.497480445859864},{"$f":"'Population 2016'!AO196*'Prevalence Rates'!AO196","v":90.392560509554116},{"$f":"'Population 2016'!AP196*'Prevalence Rates'!AP196","v":558.54917197452221},{"$f":"'Population 2016'!AQ196*'Prevalence Rates'!AQ196","v":237.84466242038212},{"$f":"'Population 2016'!AR196*'Prevalence Rates'!AR196","v":8458.344000000001},{"$f":"'Population 2016'!AS196*'Prevalence Rates'!AS196","v":330.50923566878981},{"$f":"'Population 2016'!AT196*'Prevalence Rates'!AT196","v":123.28457388535033},{"$f":"'Population 2016'!AU196*'Prevalence Rates'!AU196","v":123.42714649681527},{"$f":"'Population 2016'!AV196*'Prevalence Rates'!AV196","v":117.12084076433122},{"$f":"'Population 2016'!AW196*'Prevalence Rates'!AW196","v":543.40532484076437},{"$f":"'Population 2016'!AX196*'Prevalence Rates'!AX196","v":203.94200636942671},{"$f":"'Population 2016'!AY196*'Prevalence Rates'!AY196","v":1505.5667770700634},{"$f":"'Population 2016'!AZ196*'Prevalence Rates'!AZ196","v":1084.7837006369427},{"$f":"'Population 2016'!BA196*'Prevalence Rates'!BA196","v":74.080031847133739},{"$f":"'Population 2016'!BB196*'Prevalence Rates'!BB196","v":233.98681528662419},{"$f":"'Population 2016'!BC196*'Prevalence Rates'!BC196","v":11.51064171974522},194]
[null,"Male 20-24",{"$f":"'Population 2016'!C197*'Prevalence Rates'!C197","v":683.25173885350307},{"$f":"'Population 2016'!D197*'Prevalence Rates'!D197","v":1533.7817770700638},{"$f":"'Population 2016'!E197*'Prevalence Rates'!E197","v":847.18845859872579},{"$f":"'Population 2016'!F197*'Prevalence Rates'!F197","v":301.36190445859881},{"$f":"'Population 2016'!G197*'Prevalence Rates'!G197","v":189.87317197452228},{"$f":"'Population 2016'!H197*'Prevalence Rates'!H197","v":490.64038853503183},{"$f":"'Population 2016'!I197*'Prevalence Rates'!I197","v":342.06883566878975},{"$f":"'Population 2016'!J197*'Prevalence Rates'!J197","v":363.62115286624208},{"$f":"'Population 2016'!K197*'Prevalence Rates'!K197","v":101.63063694267515},{"$f":"'Population 2016'!L197*'Prevalence Rates'!L197","v":224.74543070063692},{"$f":"'Population 2016'!M197*'Prevalence Rates'!M197","v":224.45873885350315},{"$f":"'Population 2016'!N197*'Prevalence Rates'!N197","v":598.06542038216571},{"$f":"'Population 2016'!O197*'Prevalence Rates'!O197","v":158.06281528662421},{"$f":"'Population 2016'!P197*'Prevalence Rates'!P197","v":184.01669426751587},{"$f":"'Population 2016'!Q197*'Prevalence Rates'!Q197","v":375.18707006369419},{"$f":"'Population 2016'!R197*'Prevalence Rates'!R197","v":110.65660509554138},{"$f":"'Population 2016'!S197*'Prevalence Rates'!S197","v":2466.6281656050951},{"$f":"'Population 2016'!T197*'Prevalence Rates'!T197","v":790.66805732484067},{"$f":"'Population 2016'!U197*'Prevalence Rates'!U197","v":15.459707006369429},{"$f":"'Population 2016'!V197*'Prevalence Rates'!V197","v":322.78700636942671},{"$f":"'Population 2016'!W197*'Prevalence Rates'!W197","v":577.87805350318479},{"$f":"'Population 2016'!X197*'Prevalence Rates'!X197","v":577.48115923566866},{"$f":"'Population 2016'!Y197*'Prevalence Rates'!Y197","v":724.02107961783429},{"$f":"'Population 2016'!Z197*'Prevalence Rates'!Z197","v":1454.8418598726109},{"$f":"'Population 2016'!AA197*'Prevalence Rates'!AA197","v":3590.4412547770703},{"$f":"'Population 2016'!AB197*'Prevalence Rates'!AB197","v":1904.3988993630576},{"$f":"'Population 2016'!AC197*'Prevalence Rates'!AC197","v":2320.2493337579617},{"$f":"'Population 2016'!AD197*'Prevalence Rates'!AD197","v":875.66551337579619},{"$f":"'Population 2016'!AE197*'Prevalence Rates'!AE197","v":750.98625477707003},{"$f":"'Population 2016'!AF197*'Prevalence Rates'!AF197","v":141.47799363057322},{"$f":"'Population 2016'!AG197*'Prevalence Rates'!AG197","v":750.98625477707003},{"$f":"'Population 2016'!AH197*'Prevalence Rates'!AH197","v":1249.2366878980893},{"$f":"'Population 2016'!AI197*'Prevalence Rates'!AI197","v":1565.4531554140119},{"$f":"'Population 2016'!AJ197*'Prevalence Rates'!AJ197","v":120.49509554140126},{"$f":"'Population 2016'!AK197*'Prevalence Rates'!AK197","v":357.73200000000003},{"$f":"'Population 2016'!AL197*'Prevalence Rates'!AL197","v":218.28313375796179},{"$f":"'Population 2016'!AM197*'Prevalence Rates'!AM197","v":633.60945859872606},{"$f":"'Population 2016'!AN197*'Prevalence Rates'!AN197","v":94.894119171974509},{"$f":"'Population 2016'!AO197*'Prevalence Rates'!AO197","v":94.784101910828014},{"$f":"'Population 2016'!AP197*'Prevalence Rates'!AP197","v":589.08410828025478},{"$f":"'Population 2016'!AQ197*'Prevalence Rates'!AQ197","v":306.95044585987256},{"$f":"'Population 2016'!AR197*'Prevalence Rates'!AR197","v":12047.976000000001},{"$f":"'Population 2016'!AS197*'Prevalence Rates'!AS197","v":342.17426751592359},{"$f":"'Population 2016'!AT197*'Prevalence Rates'!AT197","v":148.00741624203823},{"$f":"'Population 2016'!AU197*'Prevalence Rates'!AU197","v":148.17857961783437},{"$f":"'Population 2016'!AV197*'Prevalence Rates'!AV197","v":115.10151592356688},{"$f":"'Population 2016'!AW197*'Prevalence Rates'!AW197","v":600.73389171974532},{"$f":"'Population 2016'!AX197*'Prevalence Rates'!AX197","v":306.68904458598718},{"$f":"'Population 2016'!AY197*'Prevalence Rates'!AY197","v":2029.2275923566876},{"$f":"'Population 2016'!AZ197*'Prevalence Rates'!AZ197","v":1481.5446535031849},{"$f":"'Population 2016'!BA197*'Prevalence Rates'!BA197","v":108.96076433121017},{"$f":"'Population 2016'!BB197*'Prevalence Rates'!BB197","v":290.41681528662417},{"$f":"'Population 2016'!BC197*'Prevalence Rates'!BC197","v":15.457147452229295},195]
[null,"Male 25-29",{"$f":"'Population 2016'!C198*'Prevalence Rates'!C198","v":445.77523885350314},{"$f":"'Population 2016'!D198*'Prevalence Rates'!D198","v":938.00232484076457},{"$f":"'Population 2016'!E198*'Prevalence Rates'!E198","v":487.80085987261134},{"$f":"'Population 2016'!F198*'Prevalence Rates'!F198","v":144.07475796178349},{"$f":"'Population 2016'!G198*'Prevalence Rates'!G198","v":88.888407643312092},{"$f":"'Population 2016'!H198*'Prevalence Rates'!H198","v":251.38335573248412},{"$f":"'Population 2016'!I198*'Prevalence Rates'!I198","v":157.85562945859871},{"$f":"'Population 2016'!J198*'Prevalence Rates'!J198","v":149.98162101910833},{"$f":"'Population 2016'!K198*'Prevalence Rates'!K198","v":48.622611464968152},{"$f":"'Population 2016'!L198*'Prevalence Rates'!L198","v":122.4009120700637},{"$f":"'Population 2016'!M198*'Prevalence Rates'!M198","v":122.2447738853503},{"$f":"'Population 2016'!N198*'Prevalence Rates'!N198","v":226.43267834394914},{"$f":"'Population 2016'!O198*'Prevalence Rates'!O198","v":89.688955414012753},{"$f":"'Population 2016'!P198*'Prevalence Rates'!P198","v":83.626499999999993},{"$f":"'Population 2016'!Q198*'Prevalence Rates'!Q198","v":152.27974522292993},{"$f":"'Population 2016'!R198*'Prevalence Rates'!R198","v":67.291812101910821},{"$f":"'Population 2016'!S198*'Prevalence Rates'!S198","v":1574.299777070064},{"$f":"'Population 2016'!T198*'Prevalence Rates'!T198","v":675.40257961783436},{"$f":"'Population 2016'!U198*'Prevalence Rates'!U198","v":4.7367834394904467},{"$f":"'Population 2016'!V198*'Prevalence Rates'!V198","v":152.28601910828024},{"$f":"'Population 2016'!W198*'Prevalence Rates'!W198","v":290.85130191082806},{"$f":"'Population 2016'!X198*'Prevalence Rates'!X198","v":290.65154140127379},{"$f":"'Population 2016'!Y198*'Prevalence Rates'!Y198","v":316.92318535031842},{"$f":"'Population 2016'!Z198*'Prevalence Rates'!Z198","v":804.91439490445839},{"$f":"'Population 2016'!AA198*'Prevalence Rates'!AA198","v":1932.3648439490448},{"$f":"'Population 2016'!AB198*'Prevalence Rates'!AB198","v":1132.2265070063697},{"$f":"'Population 2016'!AC198*'Prevalence Rates'!AC198","v":1276.735041401274},{"$f":"'Population 2016'!AD198*'Prevalence Rates'!AD198","v":478.14083312101911},{"$f":"'Population 2016'!AE198*'Prevalence Rates'!AE198","v":426.24275159235674},{"$f":"'Population 2016'!AF198*'Prevalence Rates'!AF198","v":64.606589171974505},{"$f":"'Population 2016'!AG198*'Prevalence Rates'!AG198","v":426.24275159235674},{"$f":"'Population 2016'!AH198*'Prevalence Rates'!AH198","v":640.52354140127397},{"$f":"'Population 2016'!AI198*'Prevalence Rates'!AI198","v":1124.7829184713373},{"$f":"'Population 2016'!AJ198*'Prevalence Rates'!AJ198","v":76.372006369426742},{"$f":"'Population 2016'!AK198*'Prevalence Rates'!AK198","v":185.96800000000005},{"$f":"'Population 2016'!AL198*'Prevalence Rates'!AL198","v":95.911394904458604},{"$f":"'Population 2016'!AM198*'Prevalence Rates'!AM198","v":312.55869426751593},{"$f":"'Population 2016'!AN198*'Prevalence Rates'!AN198","v":53.394949012738856},{"$f":"'Population 2016'!AO198*'Prevalence Rates'!AO198","v":53.33304458598726},{"$f":"'Population 2016'!AP198*'Prevalence Rates'!AP198","v":285.76920382165611},{"$f":"'Population 2016'!AQ198*'Prevalence Rates'!AQ198","v":187.24536305732482},{"$f":"'Population 2016'!AR198*'Prevalence Rates'!AR198","v":6642.4460000000008},{"$f":"'Population 2016'!AS198*'Prevalence Rates'!AS198","v":157.90428343949046},{"$f":"'Population 2016'!AT198*'Prevalence Rates'!AT198","v":87.154525318471343},{"$f":"'Population 2016'!AU198*'Prevalence Rates'!AU198","v":87.255315286624196},{"$f":"'Population 2016'!AV198*'Prevalence Rates'!AV198","v":65.913439490445867},{"$f":"'Population 2016'!AW198*'Prevalence Rates'!AW198","v":318.21773885350331},{"$f":"'Population 2016'!AX198*'Prevalence Rates'!AX198","v":120.33625796178343},{"$f":"'Population 2016'!AY198*'Prevalence Rates'!AY198","v":933.90798726114645},{"$f":"'Population 2016'!AZ198*'Prevalence Rates'!AZ198","v":654.33725668789828},{"$f":"'Population 2016'!BA198*'Prevalence Rates'!BA198","v":62.57259554140127},{"$f":"'Population 2016'!BB198*'Prevalence Rates'!BB198","v":177.84582802547772},{"$f":"'Population 2016'!BC198*'Prevalence Rates'!BC198","v":4.7359992038216552},196]
[null,"Male 30-34",{"$f":"'Population 2016'!C199*'Prevalence Rates'!C199","v":329.59793949044587},{"$f":"'Population 2016'!D199*'Prevalence Rates'!D199","v":854.21772292993649},{"$f":"'Population 2016'!E199*'Prevalence Rates'!E199","v":527.1042420382164},{"$f":"'Population 2016'!F199*'Prevalence Rates'!F199","v":140.56577388535035},{"$f":"'Population 2016'!G199*'Prevalence Rates'!G199","v":77.294267515923565},{"$f":"'Population 2016'!H199*'Prevalence Rates'!H199","v":237.99607643312106},{"$f":"'Population 2016'!I199*'Prevalence Rates'!I199","v":159.19908162420379},{"$f":"'Population 2016'!J199*'Prevalence Rates'!J199","v":140.06950955414015},{"$f":"'Population 2016'!K199*'Prevalence Rates'!K199","v":60.486528662420376},{"$f":"'Population 2016'!L199*'Prevalence Rates'!L199","v":129.25697633757963},{"$f":"'Population 2016'!M199*'Prevalence Rates'!M199","v":129.09209235668789},{"$f":"'Population 2016'!N199*'Prevalence Rates'!N199","v":143.66193630573252},{"$f":"'Population 2016'!O199*'Prevalence Rates'!O199","v":95.351136942675168},{"$f":"'Population 2016'!P199*'Prevalence Rates'!P199","v":75.63670700636942},{"$f":"'Population 2016'!Q199*'Prevalence Rates'!Q199","v":160.40442675159235},{"$f":"'Population 2016'!R199*'Prevalence Rates'!R199","v":52.732633757961779},{"$f":"'Population 2016'!S199*'Prevalence Rates'!S199","v":1596.4340445859875},{"$f":"'Population 2016'!T199*'Prevalence Rates'!T199","v":639.74181528662416},{"$f":"'Population 2016'!U199*'Prevalence Rates'!U199","v":4.3578407643312111},{"$f":"'Population 2016'!V199*'Prevalence Rates'!V199","v":157.73175159235669},{"$f":"'Population 2016'!W199*'Prevalence Rates'!W199","v":291.03399745222936},{"$f":"'Population 2016'!X199*'Prevalence Rates'!X199","v":290.83411146496803},{"$f":"'Population 2016'!Y199*'Prevalence Rates'!Y199","v":310.79278375796173},{"$f":"'Population 2016'!Z199*'Prevalence Rates'!Z199","v":666.9290700636941},{"$f":"'Population 2016'!AA199*'Prevalence Rates'!AA199","v":1784.2421751592358},{"$f":"'Population 2016'!AB199*'Prevalence Rates'!AB199","v":1050.8246012738855},{"$f":"'Population 2016'!AC199*'Prevalence Rates'!AC199","v":1065.7367484076433},{"$f":"'Population 2016'!AD199*'Prevalence Rates'!AD199","v":484.51346942675161},{"$f":"'Population 2016'!AE199*'Prevalence Rates'!AE199","v":445.90573566878987},{"$f":"'Population 2016'!AF199*'Prevalence Rates'!AF199","v":68.730414012738848},{"$f":"'Population 2016'!AG199*'Prevalence Rates'!AG199","v":445.90573566878987},{"$f":"'Population 2016'!AH199*'Prevalence Rates'!AH199","v":720.03374522293007},{"$f":"'Population 2016'!AI199*'Prevalence Rates'!AI199","v":1145.1581140127385},{"$f":"'Population 2016'!AJ199*'Prevalence Rates'!AJ199","v":89.60363057324841},{"$f":"'Population 2016'!AK199*'Prevalence Rates'!AK199","v":189.31700000000004},{"$f":"'Population 2016'!AL199*'Prevalence Rates'!AL199","v":81.320847133757965},{"$f":"'Population 2016'!AM199*'Prevalence Rates'!AM199","v":339.85323248407644},{"$f":"'Population 2016'!AN199*'Prevalence Rates'!AN199","v":53.394949012738856},{"$f":"'Population 2016'!AO199*'Prevalence Rates'!AO199","v":53.33304458598726},{"$f":"'Population 2016'!AP199*'Prevalence Rates'!AP199","v":314.82042993630574},{"$f":"'Population 2016'!AQ199*'Prevalence Rates'!AQ199","v":147.43881528662419},{"$f":"'Population 2016'!AR199*'Prevalence Rates'!AR199","v":6372.1620000000012},{"$f":"'Population 2016'!AS199*'Prevalence Rates'!AS199","v":159.24814968152867},{"$f":"'Population 2016'!AT199*'Prevalence Rates'!AT199","v":77.660568312101915},{"$f":"'Population 2016'!AU199*'Prevalence Rates'!AU199","v":77.750378980891711},{"$f":"'Population 2016'!AV199*'Prevalence Rates'!AV199","v":62.036178343949054},{"$f":"'Population 2016'!AW199*'Prevalence Rates'!AW199","v":367.25128980891731},{"$f":"'Population 2016'!AX199*'Prevalence Rates'!AX199","v":98.521958598726101},{"$f":"'Population 2016'!AY199*'Prevalence Rates'!AY199","v":881.73435668789807},{"$f":"'Population 2016'!AZ199*'Prevalence Rates'!AZ199","v":599.62408280254795},{"$f":"'Population 2016'!BA199*'Prevalence Rates'!BA199","v":48.795143312101906},{"$f":"'Population 2016'!BB199*'Prevalence Rates'!BB199","v":230.22649681528662},{"$f":"'Population 2016'!BC199*'Prevalence Rates'!BC199","v":4.3571192675159232},197]
[null,"Male 35-39",{"$f":"'Population 2016'!C200*'Prevalence Rates'!C200","v":357.8705732484076},{"$f":"'Population 2016'!D200*'Prevalence Rates'!D200","v":1167.9922547770702},{"$f":"'Population 2016'!E200*'Prevalence Rates'!E200","v":821.4365350318468},{"$f":"'Population 2016'!F200*'Prevalence Rates'!F200","v":185.2458598726115},{"$f":"'Population 2016'!G200*'Prevalence Rates'!G200","v":133.40127388535032},{"$f":"'Population 2016'!H200*'Prevalence Rates'!H200","v":385.2291821656051},{"$f":"'Population 2016'!I200*'Prevalence Rates'!I200","v":260.61608101910821},{"$f":"'Population 2016'!J200*'Prevalence Rates'!J200","v":227.9463949044586},{"$f":"'Population 2016'!K200*'Prevalence Rates'!K200","v":84.58853503184713},{"$f":"'Population 2016'!L200*'Prevalence Rates'!L200","v":152.29511286624202},{"$f":"'Population 2016'!M200*'Prevalence Rates'!M200","v":152.10084076433117},{"$f":"'Population 2016'!N200*'Prevalence Rates'!N200","v":161.59138853503188},{"$f":"'Population 2016'!O200*'Prevalence Rates'!O200","v":146.34985987261146},{"$f":"'Population 2016'!P200*'Prevalence Rates'!P200","v":103.94211464968151},{"$f":"'Population 2016'!Q200*'Prevalence Rates'!Q200","v":268.90751592356685},{"$f":"'Population 2016'!R200*'Prevalence Rates'!R200","v":87.027006369426729},{"$f":"'Population 2016'!S200*'Prevalence Rates'!S200","v":2120.6800509554141},{"$f":"'Population 2016'!T200*'Prevalence Rates'!T200","v":695.47541401273872},{"$f":"'Population 2016'!U200*'Prevalence Rates'!U200","v":13.080254777070067},{"$f":"'Population 2016'!V200*'Prevalence Rates'!V200","v":251.6173248407643},{"$f":"'Population 2016'!W200*'Prevalence Rates'!W200","v":439.92344458598734},{"$f":"'Population 2016'!X200*'Prevalence Rates'!X200","v":439.62129936305718},{"$f":"'Population 2016'!Y200*'Prevalence Rates'!Y200","v":500.93330445859863},{"$f":"'Population 2016'!Z200*'Prevalence Rates'!Z200","v":681.86761783439465},{"$f":"'Population 2016'!AA200*'Prevalence Rates'!AA200","v":2356.1662165605094},{"$f":"'Population 2016'!AB200*'Prevalence Rates'!AB200","v":1438.2472968152865},{"$f":"'Population 2016'!AC200*'Prevalence Rates'!AC200","v":1258.1036025477706},{"$f":"'Population 2016'!AD200*'Prevalence Rates'!AD200","v":706.56764331210184},{"$f":"'Population 2016'!AE200*'Prevalence Rates'!AE200","v":627.63566878980885},{"$f":"'Population 2016'!AF200*'Prevalence Rates'!AF200","v":91.643210191082773},{"$f":"'Population 2016'!AG200*'Prevalence Rates'!AG200","v":627.63566878980885},{"$f":"'Population 2016'!AH200*'Prevalence Rates'!AH200","v":1120.4979363057325},{"$f":"'Population 2016'!AI200*'Prevalence Rates'!AI200","v":1429.0187006369422},{"$f":"'Population 2016'!AJ200*'Prevalence Rates'!AJ200","v":151.60101910828021},{"$f":"'Population 2016'!AK200*'Prevalence Rates'!AK200","v":260.30400000000003},{"$f":"'Population 2016'!AL200*'Prevalence Rates'!AL200","v":139.83225477707006},{"$f":"'Population 2016'!AM200*'Prevalence Rates'!AM200","v":509.25936305732478},{"$f":"'Population 2016'!AN200*'Prevalence Rates'!AN200","v":70.22623337579617},{"$f":"'Population 2016'!AO200*'Prevalence Rates'!AO200","v":70.144815286624194},{"$f":"'Population 2016'!AP200*'Prevalence Rates'!AP200","v":437.13171974522288},{"$f":"'Population 2016'!AQ200*'Prevalence Rates'!AQ200","v":222.2465222929936},{"$f":"'Population 2016'!AR200*'Prevalence Rates'!AR200","v":8709.7120000000014},{"$f":"'Population 2016'!AS200*'Prevalence Rates'!AS200","v":260.69640764331206},{"$f":"'Population 2016'!AT200*'Prevalence Rates'!AT200","v":119.02434140127387},{"$f":"'Population 2016'!AU200*'Prevalence Rates'!AU200","v":119.16198726114646},{"$f":"'Population 2016'!AV200*'Prevalence Rates'!AV200","v":99.84045859872613},{"$f":"'Population 2016'!AW200*'Prevalence Rates'!AW200","v":587.75648407643325},{"$f":"'Population 2016'!AX200*'Prevalence Rates'!AX200","v":173.06216560509552},{"$f":"'Population 2016'!AY200*'Prevalence Rates'!AY200","v":1217.420025477707},{"$f":"'Population 2016'!AZ200*'Prevalence Rates'!AZ200","v":785.81510318471351},{"$f":"'Population 2016'!BA200*'Prevalence Rates'!BA200","v":58.917452229299357},{"$f":"'Population 2016'!BB200*'Prevalence Rates'!BB200","v":329.02471337579618},{"$f":"'Population 2016'!BC200*'Prevalence Rates'!BC200","v":13.078089171974518},198]
[null,"Male 40-44",{"$f":"'Population 2016'!C201*'Prevalence Rates'!C201","v":300.00214012738849},{"$f":"'Population 2016'!D201*'Prevalence Rates'!D201","v":1189.2671592356689},{"$f":"'Population 2016'!E201*'Prevalence Rates'!E201","v":906.27974522292959},{"$f":"'Population 2016'!F201*'Prevalence Rates'!F201","v":218.87510828025481},{"$f":"'Population 2016'!G201*'Prevalence Rates'!G201","v":167.01839490445857},{"$f":"'Population 2016'!H201*'Prevalence Rates'!H201","v":459.75181146496817},{"$f":"'Population 2016'!I201*'Prevalence Rates'!I201","v":338.83182063694255},{"$f":"'Population 2016'!J201*'Prevalence Rates'!J201","v":253.2987006369427},{"$f":"'Population 2016'!K201*'Prevalence Rates'!K201","v":91.30191082802547},{"$f":"'Population 2016'!L201*'Prevalence Rates'!L201","v":198.51264254777067},{"$f":"'Population 2016'!M201*'Prevalence Rates'!M201","v":198.25941401273883},{"$f":"'Population 2016'!N201*'Prevalence Rates'!N201","v":164.72631847133761},{"$f":"'Population 2016'!O201*'Prevalence Rates'!O201","v":173.86863694267512},{"$f":"'Population 2016'!P201*'Prevalence Rates'!P201","v":124.044127388535},{"$f":"'Population 2016'!Q201*'Prevalence Rates'!Q201","v":357.36815286624199},{"$f":"'Population 2016'!R201*'Prevalence Rates'!R201","v":105.65814012738852},{"$f":"'Population 2016'!S201*'Prevalence Rates'!S201","v":2170.5963821656051},{"$f":"'Population 2016'!T201*'Prevalence Rates'!T201","v":580.65936305732475},{"$f":"'Population 2016'!U201*'Prevalence Rates'!U201","v":14.388280254777072},{"$f":"'Population 2016'!V201*'Prevalence Rates'!V201","v":276.32254777070062},{"$f":"'Population 2016'!W201*'Prevalence Rates'!W201","v":468.67990828025484},{"$f":"'Population 2016'!X201*'Prevalence Rates'!X201","v":468.35801273885335},{"$f":"'Population 2016'!Y201*'Prevalence Rates'!Y201","v":553.51462929936292},{"$f":"'Population 2016'!Z201*'Prevalence Rates'!Z201","v":592.63082802547751},{"$f":"'Population 2016'!AA201*'Prevalence Rates'!AA201","v":2465.2217579617832},{"$f":"'Population 2016'!AB201*'Prevalence Rates'!AB201","v":1515.6851770700637},{"$f":"'Population 2016'!AC201*'Prevalence Rates'!AC201","v":1276.7161987261147},{"$f":"'Population 2016'!AD201*'Prevalence Rates'!AD201","v":798.82138089171963},{"$f":"'Population 2016'!AE201*'Prevalence Rates'!AE201","v":691.8588535031846},{"$f":"'Population 2016'!AF201*'Prevalence Rates'!AF201","v":110.8937070063694},{"$f":"'Population 2016'!AG201*'Prevalence Rates'!AG201","v":691.8588535031846},{"$f":"'Population 2016'!AH201*'Prevalence Rates'!AH201","v":1217.39923566879},{"$f":"'Population 2016'!AI201*'Prevalence Rates'!AI201","v":1386.4468891719741},{"$f":"'Population 2016'!AJ201*'Prevalence Rates'!AJ201","v":145.19082802547769},{"$f":"'Population 2016'!AK201*'Prevalence Rates'!AK201","v":316.88},{"$f":"'Population 2016'!AL201*'Prevalence Rates'!AL201","v":177.45661146496815},{"$f":"'Population 2016'!AM201*'Prevalence Rates'!AM201","v":571.62445859872605},{"$f":"'Population 2016'!AN201*'Prevalence Rates'!AN201","v":89.749709044585984},{"$f":"'Population 2016'!AO201*'Prevalence Rates'!AO201","v":89.645656050955409},{"$f":"'Population 2016'!AP201*'Prevalence Rates'!AP201","v":488.70343949044582},{"$f":"'Population 2016'!AQ201*'Prevalence Rates'!AQ201","v":244.65793630573248},{"$f":"'Population 2016'!AR201*'Prevalence Rates'!AR201","v":9342.6560000000009},{"$f":"'Population 2016'!AS201*'Prevalence Rates'!AS201","v":338.93625477707002},{"$f":"'Population 2016'!AT201*'Prevalence Rates'!AT201","v":144.45465222929934},{"$f":"'Population 2016'!AU201*'Prevalence Rates'!AU201","v":144.62170700636938},{"$f":"'Population 2016'!AV201*'Prevalence Rates'!AV201","v":110.2795414012739},{"$f":"'Population 2016'!AW201*'Prevalence Rates'!AW201","v":623.40321019108296},{"$f":"'Population 2016'!AX201*'Prevalence Rates'!AX201","v":194.78751592356684},{"$f":"'Population 2016'!AY201*'Prevalence Rates'!AY201","v":1332.6787261146496},{"$f":"'Population 2016'!AZ201*'Prevalence Rates'!AZ201","v":874.45972993630585},{"$f":"'Population 2016'!BA201*'Prevalence Rates'!BA201","v":80.58216560509554},{"$f":"'Population 2016'!BB201*'Prevalence Rates'!BB201","v":361.61273885350317},{"$f":"'Population 2016'!BC201*'Prevalence Rates'!BC201","v":14.38589808917197},199]
[null,"Male 45-49",{"$f":"'Population 2016'!C202*'Prevalence Rates'!C202","v":330.84738853503177},{"$f":"'Population 2016'!D202*'Prevalence Rates'!D202","v":1454.5151592356688},{"$f":"'Population 2016'!E202*'Prevalence Rates'!E202","v":1147.5546496815282},{"$f":"'Population 2016'!F202*'Prevalence Rates'!F202","v":330.2573248407644},{"$f":"'Population 2016'!G202*'Prevalence Rates'!G202","v":240.75006369426745},{"$f":"'Population 2016'!H202*'Prevalence Rates'!H202","v":687.58257324840758},{"$f":"'Population 2016'!I202*'Prevalence Rates'!I202","v":548.11029808917181},{"$f":"'Population 2016'!J202*'Prevalence Rates'!J202","v":372.43210191082807},{"$f":"'Population 2016'!K202*'Prevalence Rates'!K202","v":134.89936305732482},{"$f":"'Population 2016'!L202*'Prevalence Rates'!L202","v":309.20870318471333},{"$f":"'Population 2016'!M202*'Prevalence Rates'!M202","v":308.81426751592346},{"$f":"'Population 2016'!N202*'Prevalence Rates'!N202","v":232.01834394904463},{"$f":"'Population 2016'!O202*'Prevalence Rates'!O202","v":231.03999999999996},{"$f":"'Population 2016'!P202*'Prevalence Rates'!P202","v":192.65630573248401},{"$f":"'Population 2016'!Q202*'Prevalence Rates'!Q202","v":464.5503184713375},{"$f":"'Population 2016'!R202*'Prevalence Rates'!R202","v":128.91821656050951},{"$f":"'Population 2016'!S202*'Prevalence Rates'!S202","v":2867.6422929936302},{"$f":"'Population 2016'!T202*'Prevalence Rates'!T202","v":637.18726114649667},{"$f":"'Population 2016'!U202*'Prevalence Rates'!U202","v":22.159490445859873},{"$f":"'Population 2016'!V202*'Prevalence Rates'!V202","v":391.74522292993623},{"$f":"'Population 2016'!W202*'Prevalence Rates'!W202","v":740.72377070063692},{"$f":"'Population 2016'!X202*'Prevalence Rates'!X202","v":740.21503184713345},{"$f":"'Population 2016'!Y202*'Prevalence Rates'!Y202","v":799.96035668789784},{"$f":"'Population 2016'!Z202*'Prevalence Rates'!Z202","v":720.39949044585956},{"$f":"'Population 2016'!AA202*'Prevalence Rates'!AA202","v":3348.48},{"$f":"'Population 2016'!AB202*'Prevalence Rates'!AB202","v":1937.8449936305731},{"$f":"'Population 2016'!AC202*'Prevalence Rates'!AC202","v":1740.3491464968151},{"$f":"'Population 2016'!AD202*'Prevalence Rates'!AD202","v":1123.9209171974521},{"$f":"'Population 2016'!AE202*'Prevalence Rates'!AE202","v":967.12560509554135},{"$f":"'Population 2016'!AF202*'Prevalence Rates'!AF202","v":180.54318471337575},{"$f":"'Population 2016'!AG202*'Prevalence Rates'!AG202","v":967.12560509554135},{"$f":"'Population 2016'!AH202*'Prevalence Rates'!AH202","v":1646.528407643312},{"$f":"'Population 2016'!AI202*'Prevalence Rates'!AI202","v":1630.8210955414006},{"$f":"'Population 2016'!AJ202*'Prevalence Rates'!AJ202","v":177.59999999999997},{"$f":"'Population 2016'!AK202*'Prevalence Rates'!AK202","v":472.64},{"$f":"'Population 2016'!AL202*'Prevalence Rates'!AL202","v":272.5543949044586},{"$f":"'Population 2016'!AM202*'Prevalence Rates'!AM202","v":781.18216560509552},{"$f":"'Population 2016'!AN202*'Prevalence Rates'!AN202","v":139.18404076433117},{"$f":"'Population 2016'!AO202*'Prevalence Rates'!AO202","v":139.02267515923566},{"$f":"'Population 2016'!AP202*'Prevalence Rates'!AP202","v":718.44076433121018},{"$f":"'Population 2016'!AQ202*'Prevalence Rates'!AQ202","v":356.25987261146486},{"$f":"'Population 2016'!AR202*'Prevalence Rates'!AR202","v":12750.720000000001},{"$f":"'Population 2016'!AS202*'Prevalence Rates'!AS202","v":548.27923566878974},{"$f":"'Population 2016'!AT202*'Prevalence Rates'!AT202","v":165.93701910828023},{"$f":"'Population 2016'!AU202*'Prevalence Rates'!AU202","v":166.12891719745218},{"$f":"'Population 2016'!AV202*'Prevalence Rates'!AV202","v":183.2743949044586},{"$f":"'Population 2016'!AW202*'Prevalence Rates'!AW202","v":836.47082802547789},{"$f":"'Population 2016'!AX202*'Prevalence Rates'!AX202","v":285.79872611464964},{"$f":"'Population 2016'!AY202*'Prevalence Rates'!AY202","v":2012.3189808917193},{"$f":"'Population 2016'!AZ202*'Prevalence Rates'!AZ202","v":1283.9205095541402},{"$f":"'Population 2016'!BA202*'Prevalence Rates'!BA202","v":133.96687898089169},{"$f":"'Population 2016'!BB202*'Prevalence Rates'!BB202","v":441.56942675159223},{"$f":"'Population 2016'!BC202*'Prevalence Rates'!BC202","v":22.155821656050946},200]
[null,"Male 50-54",{"$f":"'Population 2016'!C203*'Prevalence Rates'!C203","v":341.59694267515914},{"$f":"'Population 2016'!D203*'Prevalence Rates'!D203","v":1557.1352866242039},{"$f":"'Population 2016'!E203*'Prevalence Rates'!E203","v":1242.1849681528656},{"$f":"'Population 2016'!F203*'Prevalence Rates'!F203","v":391.61477707006378},{"$f":"'Population 2016'!G203*'Prevalence Rates'!G203","v":271.51082802547762},{"$f":"'Population 2016'!H203*'Prevalence Rates'!H203","v":740.39388535031844},{"$f":"'Population 2016'!I203*'Prevalence Rates'!I203","v":628.85381910828005},{"$f":"'Population 2016'!J203*'Prevalence Rates'!J203","v":384.57375796178349},{"$f":"'Population 2016'!K203*'Prevalence Rates'!K203","v":126.36942675159233},{"$f":"'Population 2016'!L203*'Prevalence Rates'!L203","v":366.53023184713368},{"$f":"'Population 2016'!M203*'Prevalence Rates'!M203","v":366.06267515923554},{"$f":"'Population 2016'!N203*'Prevalence Rates'!N203","v":256.49426751592364},{"$f":"'Population 2016'!O203*'Prevalence Rates'!O203","v":243.54853503184711},{"$f":"'Population 2016'!P203*'Prevalence Rates'!P203","v":206.49987261146492},{"$f":"'Population 2016'!Q203*'Prevalence Rates'!Q203","v":503.38853503184703},{"$f":"'Population 2016'!R203*'Prevalence Rates'!R203","v":161.21987261146492},{"$f":"'Population 2016'!S203*'Prevalence Rates'!S203","v":2974.3062420382162},{"$f":"'Population 2016'!T203*'Prevalence Rates'!T203","v":631.19490445859856},{"$f":"'Population 2016'!U203*'Prevalence Rates'!U203","v":17.235159235668789},{"$f":"'Population 2016'!V203*'Prevalence Rates'!V203","v":373.73757961783429},{"$f":"'Population 2016'!W203*'Prevalence Rates'!W203","v":759.41992356687899},{"$f":"'Population 2016'!X203*'Prevalence Rates'!X203","v":758.89834394904426},{"$f":"'Population 2016'!Y203*'Prevalence Rates'!Y203","v":796.64101910828003},{"$f":"'Population 2016'!Z203*'Prevalence Rates'!Z203","v":702.04331210191049},{"$f":"'Population 2016'!AA203*'Prevalence Rates'!AA203","v":3499.4415286624203},{"$f":"'Population 2016'!AB203*'Prevalence Rates'!AB203","v":2046.9792611464968},{"$f":"'Population 2016'!AC203*'Prevalence Rates'!AC203","v":1849.2003057324839},{"$f":"'Population 2016'!AD203*'Prevalence Rates'!AD203","v":1223.3579617834394},{"$f":"'Population 2016'!AE203*'Prevalence Rates'!AE203","v":1042.3388535031847},{"$f":"'Population 2016'!AF203*'Prevalence Rates'!AF203","v":205.7426751592356},{"$f":"'Population 2016'!AG203*'Prevalence Rates'!AG203","v":1042.3388535031847},{"$f":"'Population 2016'!AH203*'Prevalence Rates'!AH203","v":1686.2124840764332},{"$f":"'Population 2016'!AI203*'Prevalence Rates'!AI203","v":1651.6164076433115},{"$f":"'Population 2016'!AJ203*'Prevalence Rates'!AJ203","v":182.87898089171969},{"$f":"'Population 2016'!AK203*'Prevalence Rates'!AK203","v":478.08},{"$f":"'Population 2016'!AL203*'Prevalence Rates'!AL203","v":309.15057324840762},{"$f":"'Population 2016'!AM203*'Prevalence Rates'!AM203","v":796.484076433121},{"$f":"'Population 2016'!AN203*'Prevalence Rates'!AN203","v":151.52548280254774},{"$f":"'Population 2016'!AO203*'Prevalence Rates'!AO203","v":151.34980891719744},{"$f":"'Population 2016'!AP203*'Prevalence Rates'!AP203","v":812.82038216560511},{"$f":"'Population 2016'!AQ203*'Prevalence Rates'!AQ203","v":394.2399999999999},{"$f":"'Population 2016'!AR203*'Prevalence Rates'!AR203","v":13522.56},{"$f":"'Population 2016'!AS203*'Prevalence Rates'!AS203","v":629.04764331210185},{"$f":"'Population 2016'!AT203*'Prevalence Rates'!AT203","v":182.59240764331207},{"$f":"'Population 2016'!AU203*'Prevalence Rates'!AU203","v":182.80356687898083},{"$f":"'Population 2016'!AV203*'Prevalence Rates'!AV203","v":187.68305732484077},{"$f":"'Population 2016'!AW203*'Prevalence Rates'!AW203","v":859.55261146496832},{"$f":"'Population 2016'!AX203*'Prevalence Rates'!AX203","v":307.00127388535026},{"$f":"'Population 2016'!AY203*'Prevalence Rates'!AY203","v":2204.7307006369419},{"$f":"'Population 2016'!AZ203*'Prevalence Rates'!AZ203","v":1464.2924840764333},{"$f":"'Population 2016'!BA203*'Prevalence Rates'!BA203","v":146.39999999999998},{"$f":"'Population 2016'!BB203*'Prevalence Rates'!BB203","v":434.17070063694257},{"$f":"'Population 2016'!BC203*'Prevalence Rates'!BC203","v":17.232305732484072},201]
[null,"Male 55-59",{"$f":"'Population 2016'!C204*'Prevalence Rates'!C204","v":392.27474522292988},{"$f":"'Population 2016'!D204*'Prevalence Rates'!D204","v":1783.454904458599},{"$f":"'Population 2016'!E204*'Prevalence Rates'!E204","v":1421.611910828025},{"$f":"'Population 2016'!F204*'Prevalence Rates'!F204","v":434.95581210191091},{"$f":"'Population 2016'!G204*'Prevalence Rates'!G204","v":319.00070063694261},{"$f":"'Population 2016'!H204*'Prevalence Rates'!H204","v":897.74376592356691},{"$f":"'Population 2016'!I204*'Prevalence Rates'!I204","v":733.74992770700612},{"$f":"'Population 2016'!J204*'Prevalence Rates'!J204","v":429.60181528662429},{"$f":"'Population 2016'!K204*'Prevalence Rates'!K204","v":133.9466560509554},{"$f":"'Population 2016'!L204*'Prevalence Rates'!L204","v":427.82332356687891},{"$f":"'Population 2016'!M204*'Prevalence Rates'!M204","v":427.27757961783431},{"$f":"'Population 2016'!N204*'Prevalence Rates'!N204","v":351.35942675159242},{"$f":"'Population 2016'!O204*'Prevalence Rates'!O204","v":292.87562101910828},{"$f":"'Population 2016'!P204*'Prevalence Rates'!P204","v":279.23718152866235},{"$f":"'Population 2016'!Q204*'Prevalence Rates'!Q204","v":596.05939490445849},{"$f":"'Population 2016'!R204*'Prevalence Rates'!R204","v":153.30668789808914},{"$f":"'Population 2016'!S204*'Prevalence Rates'!S204","v":3458.3388535031845},{"$f":"'Population 2016'!T204*'Prevalence Rates'!T204","v":735.023407643312},{"$f":"'Population 2016'!U204*'Prevalence Rates'!U204","v":20.255159235668792},{"$f":"'Population 2016'!V204*'Prevalence Rates'!V204","v":437.82563694267509},{"$f":"'Population 2016'!W204*'Prevalence Rates'!W204","v":897.29014012738867},{"$f":"'Population 2016'!X204*'Prevalence Rates'!X204","v":896.67386942675125},{"$f":"'Population 2016'!Y204*'Prevalence Rates'!Y204","v":909.33347292993608},{"$f":"'Population 2016'!Z204*'Prevalence Rates'!Z204","v":771.14063694267486},{"$f":"'Population 2016'!AA204*'Prevalence Rates'!AA204","v":3895.0230095541401},{"$f":"'Population 2016'!AB204*'Prevalence Rates'!AB204","v":2328.4744968152868},{"$f":"'Population 2016'!AC204*'Prevalence Rates'!AC204","v":2150.4153439490442},{"$f":"'Population 2016'!AD204*'Prevalence Rates'!AD204","v":1467.7207738853501},{"$f":"'Population 2016'!AE204*'Prevalence Rates'!AE204","v":1257.9222611464968},{"$f":"'Population 2016'!AF204*'Prevalence Rates'!AF204","v":228.49996815286619},{"$f":"'Population 2016'!AG204*'Prevalence Rates'!AG204","v":1257.9222611464968},{"$f":"'Population 2016'!AH204*'Prevalence Rates'!AH204","v":1772.0349363057326},{"$f":"'Population 2016'!AI204*'Prevalence Rates'!AI204","v":1904.2400923566872},{"$f":"'Population 2016'!AJ204*'Prevalence Rates'!AJ204","v":221.43439490445857},{"$f":"'Population 2016'!AK204*'Prevalence Rates'!AK204","v":531.36},{"$f":"'Population 2016'!AL204*'Prevalence Rates'!AL204","v":366.12515923566883},{"$f":"'Population 2016'!AM204*'Prevalence Rates'!AM204","v":789.05995222929926},{"$f":"'Population 2016'!AN204*'Prevalence Rates'!AN204","v":169.21274044585985},{"$f":"'Population 2016'!AO204*'Prevalence Rates'!AO204","v":169.01656050955413},{"$f":"'Population 2016'!AP204*'Prevalence Rates'!AP204","v":943.40493630573246},{"$f":"'Population 2016'!AQ204*'Prevalence Rates'!AQ204","v":486.64490445859866},{"$f":"'Population 2016'!AR204*'Prevalence Rates'!AR204","v":15585.615000000002},{"$f":"'Population 2016'!AS204*'Prevalence Rates'!AS204","v":733.97608280254769},{"$f":"'Population 2016'!AT204*'Prevalence Rates'!AT204","v":206.89115445859872},{"$f":"'Population 2016'!AU204*'Prevalence Rates'!AU204","v":207.13041401273884},{"$f":"'Population 2016'!AV204*'Prevalence Rates'!AV204","v":237.53636942675161},{"$f":"'Population 2016'!AW204*'Prevalence Rates'!AW204","v":943.041210191083},{"$f":"'Population 2016'!AX204*'Prevalence Rates'!AX204","v":349.58335987261142},{"$f":"'Population 2016'!AY204*'Prevalence Rates'!AY204","v":2607.6221656050952},{"$f":"'Population 2016'!AZ204*'Prevalence Rates'!AZ204","v":1732.8776273885353},{"$f":"'Population 2016'!BA204*'Prevalence Rates'!BA204","v":191.18837579617832},{"$f":"'Population 2016'!BB204*'Prevalence Rates'!BB204","v":467.34936305732475},{"$f":"'Population 2016'!BC204*'Prevalence Rates'!BC204","v":20.251805732484069},202]
[null,"Male 60-64",{"$f":"'Population 2016'!C205*'Prevalence Rates'!C205","v":377.53609872611457},{"$f":"'Population 2016'!D205*'Prevalence Rates'!D205","v":1610.4154299363061},{"$f":"'Population 2016'!E205*'Prevalence Rates'!E205","v":1258.3685350318467},{"$f":"'Population 2016'!F205*'Prevalence Rates'!F205","v":436.22885350318478},{"$f":"'Population 2016'!G205*'Prevalence Rates'!G205","v":313.04178343949036},{"$f":"'Population 2016'!H205*'Prevalence Rates'!H205","v":818.23555891719741},{"$f":"'Population 2016'!I205*'Prevalence Rates'!I205","v":702.44817420382151},{"$f":"'Population 2016'!J205*'Prevalence Rates'!J205","v":340.07359872611471},{"$f":"'Population 2016'!K205*'Prevalence Rates'!K205","v":102.75907643312101},{"$f":"'Population 2016'!L205*'Prevalence Rates'!L205","v":433.62712834394898},{"$f":"'Population 2016'!M205*'Prevalence Rates'!M205","v":433.07398089171966},{"$f":"'Population 2016'!N205*'Prevalence Rates'!N205","v":264.36826433121024},{"$f":"'Population 2016'!O205*'Prevalence Rates'!O205","v":271.92267515923567},{"$f":"'Population 2016'!P205*'Prevalence Rates'!P205","v":251.13095541401267},{"$f":"'Population 2016'!Q205*'Prevalence Rates'!Q205","v":456.70843949044581},{"$f":"'Population 2016'!R205*'Prevalence Rates'!R205","v":158.78192675159232},{"$f":"'Population 2016'!S205*'Prevalence Rates'!S205","v":2933.5207643312101},{"$f":"'Population 2016'!T205*'Prevalence Rates'!T205","v":638.9584394904457},{"$f":"'Population 2016'!U205*'Prevalence Rates'!U205","v":17.528503184713379},{"$f":"'Population 2016'!V205*'Prevalence Rates'!V205","v":339.46480891719739},{"$f":"'Population 2016'!W205*'Prevalence Rates'!W205","v":767.33518471337595},{"$f":"'Population 2016'!X205*'Prevalence Rates'!X205","v":766.80816878980863},{"$f":"'Population 2016'!Y205*'Prevalence Rates'!Y205","v":713.03048885350302},{"$f":"'Population 2016'!Z205*'Prevalence Rates'!Z205","v":653.3501273885347},{"$f":"'Population 2016'!AA205*'Prevalence Rates'!AA205","v":3308.3443949044586},{"$f":"'Population 2016'!AB205*'Prevalence Rates'!AB205","v":2135.902929936306},{"$f":"'Population 2016'!AC205*'Prevalence Rates'!AC205","v":1846.7705923566878},{"$f":"'Population 2016'!AD205*'Prevalence Rates'!AD205","v":1363.7059394904456},{"$f":"'Population 2016'!AE205*'Prevalence Rates'!AE205","v":1150.559856687898},{"$f":"'Population 2016'!AF205*'Prevalence Rates'!AF205","v":191.35863057324835},{"$f":"'Population 2016'!AG205*'Prevalence Rates'!AG205","v":1150.559856687898},{"$f":"'Population 2016'!AH205*'Prevalence Rates'!AH205","v":1482.0987898089172},{"$f":"'Population 2016'!AI205*'Prevalence Rates'!AI205","v":1544.6697420382161},{"$f":"'Population 2016'!AJ205*'Prevalence Rates'!AJ205","v":187.07388535031845},{"$f":"'Population 2016'!AK205*'Prevalence Rates'!AK205","v":513.54000000000008},{"$f":"'Population 2016'!AL205*'Prevalence Rates'!AL205","v":338.33493630573253},{"$f":"'Population 2016'!AM205*'Prevalence Rates'!AM205","v":656.97062101910819},{"$f":"'Population 2016'!AN205*'Prevalence Rates'!AN205","v":156.63025461783437},{"$f":"'Population 2016'!AO205*'Prevalence Rates'!AO205","v":156.44866242038213},{"$f":"'Population 2016'!AP205*'Prevalence Rates'!AP205","v":870.27277070063701},{"$f":"'Population 2016'!AQ205*'Prevalence Rates'!AQ205","v":398.05566878980886},{"$f":"'Population 2016'!AR205*'Prevalence Rates'!AR205","v":13697.1},{"$f":"'Population 2016'!AS205*'Prevalence Rates'!AS205","v":702.6646815286623},{"$f":"'Population 2016'!AT205*'Prevalence Rates'!AT205","v":189.32492436305731},{"$f":"'Population 2016'!AU205*'Prevalence Rates'!AU205","v":189.54386942675157},{"$f":"'Population 2016'!AV205*'Prevalence Rates'!AV205","v":208.04359872611465},{"$f":"'Population 2016'!AW205*'Prevalence Rates'!AW205","v":791.21651273885368},{"$f":"'Population 2016'!AX205*'Prevalence Rates'!AX205","v":279.74020700636936},{"$f":"'Population 2016'!AY205*'Prevalence Rates'!AY205","v":2318.4160509554135},{"$f":"'Population 2016'!AZ205*'Prevalence Rates'!AZ205","v":1574.3245127388539},{"$f":"'Population 2016'!BA205*'Prevalence Rates'!BA205","v":155.78312101910825},{"$f":"'Population 2016'!BB205*'Prevalence Rates'!BB205","v":338.80700636942669},{"$f":"'Population 2016'!BC205*'Prevalence Rates'!BC205","v":17.525601114649675},203]
[null,"Male 65-69",{"$f":"'Population 2016'!C206*'Prevalence Rates'!C206","v":399.18917197452225},{"$f":"'Population 2016'!D206*'Prevalence Rates'!D206","v":1836.2657484076433},{"$f":"'Population 2016'!E206*'Prevalence Rates'!E206","v":1468.8106050955407},{"$f":"'Population 2016'!F206*'Prevalence Rates'!F206","v":514.49732484076435},{"$f":"'Population 2016'!G206*'Prevalence Rates'!G206","v":374.92624203821651},{"$f":"'Population 2016'!H206*'Prevalence Rates'!H206","v":943.96984394904462},{"$f":"'Population 2016'!I206*'Prevalence Rates'!I206","v":855.13799140127355},{"$f":"'Population 2016'!J206*'Prevalence Rates'!J206","v":373.57863057324846},{"$f":"'Population 2016'!K206*'Prevalence Rates'!K206","v":121.65525477707004},{"$f":"'Population 2016'!L206*'Prevalence Rates'!L206","v":501.19999824840755},{"$f":"'Population 2016'!M206*'Prevalence Rates'!M206","v":500.56065286624187},{"$f":"'Population 2016'!N206*'Prevalence Rates'!N206","v":285.01982484076439},{"$f":"'Population 2016'!O206*'Prevalence Rates'!O206","v":287.6158280254777},{"$f":"'Population 2016'!P206*'Prevalence Rates'!P206","v":287.91644904458593},{"$f":"'Population 2016'!Q206*'Prevalence Rates'!Q206","v":512.86242038216551},{"$f":"'Population 2016'!R206*'Prevalence Rates'!R206","v":162.60783439490444},{"$f":"'Population 2016'!S206*'Prevalence Rates'!S206","v":3348.9596178343945},{"$f":"'Population 2016'!T206*'Prevalence Rates'!T206","v":618.24267515923555},{"$f":"'Population 2016'!U206*'Prevalence Rates'!U206","v":23.25592356687898},{"$f":"'Population 2016'!V206*'Prevalence Rates'!V206","v":409.03710191082797},{"$f":"'Population 2016'!W206*'Prevalence Rates'!W206","v":949.58094267515935},{"$f":"'Population 2016'!X206*'Prevalence Rates'!X206","v":948.92875796178305},{"$f":"'Population 2016'!Y206*'Prevalence Rates'!Y206","v":817.78765127388522},{"$f":"'Population 2016'!Z206*'Prevalence Rates'!Z206","v":648.59503184713344},{"$f":"'Population 2016'!AA206*'Prevalence Rates'!AA206","v":3506.9500318471332},{"$f":"'Population 2016'!AB206*'Prevalence Rates'!AB206","v":2409.1241273885353},{"$f":"'Population 2016'!AC206*'Prevalence Rates'!AC206","v":1951.1243025477704},{"$f":"'Population 2016'!AD206*'Prevalence Rates'!AD206","v":1576.2202738853503},{"$f":"'Population 2016'!AE206*'Prevalence Rates'!AE206","v":1315.5235031847133},{"$f":"'Population 2016'!AF206*'Prevalence Rates'!AF206","v":186.79820063694262},{"$f":"'Population 2016'!AG206*'Prevalence Rates'!AG206","v":1315.5235031847133},{"$f":"'Population 2016'!AH206*'Prevalence Rates'!AH206","v":1578.4735987261149},{"$f":"'Population 2016'!AI206*'Prevalence Rates'!AI206","v":1647.955261146496},{"$f":"'Population 2016'!AJ206*'Prevalence Rates'!AJ206","v":235.60987261146494},{"$f":"'Population 2016'!AK206*'Prevalence Rates'!AK206","v":558.93000000000006},{"$f":"'Population 2016'!AL206*'Prevalence Rates'!AL206","v":423.91117834394902},{"$f":"'Population 2016'!AM206*'Prevalence Rates'!AM206","v":660.79609872611468},{"$f":"'Population 2016'!AN206*'Prevalence Rates'!AN206","v":175.35132229299361},{"$f":"'Population 2016'!AO206*'Prevalence Rates'!AO206","v":175.14802547770697},{"$f":"'Population 2016'!AP206*'Prevalence Rates'!AP206","v":1008.5316878980891},{"$f":"'Population 2016'!AQ206*'Prevalence Rates'!AQ206","v":430.57222929936302},{"$f":"'Population 2016'!AR206*'Prevalence Rates'!AR206","v":15398.01},{"$f":"'Population 2016'!AS206*'Prevalence Rates'!AS206","v":855.40156050955409},{"$f":"'Population 2016'!AT206*'Prevalence Rates'!AT206","v":212.44295063694267},{"$f":"'Population 2016'!AU206*'Prevalence Rates'!AU206","v":212.68863057324836},{"$f":"'Population 2016'!AV206*'Prevalence Rates'!AV206","v":232.00093949044586},{"$f":"'Population 2016'!AW206*'Prevalence Rates'!AW206","v":874.89305732484092},{"$f":"'Population 2016'!AX206*'Prevalence Rates'!AX206","v":299.23638535031841},{"$f":"'Population 2016'!AY206*'Prevalence Rates'!AY206","v":2738.9684713375791},{"$f":"'Population 2016'!AZ206*'Prevalence Rates'!AZ206","v":1812.3232834394908},{"$f":"'Population 2016'!BA206*'Prevalence Rates'!BA206","v":191.05724522292991},{"$f":"'Population 2016'!BB206*'Prevalence Rates'!BB206","v":391.93280254777062},{"$f":"'Population 2016'!BC206*'Prevalence Rates'!BC206","v":23.252073248407637},204]
[null,"Male 70-74",{"$f":"'Population 2016'!C207*'Prevalence Rates'!C207","v":287.67654458598724},{"$f":"'Population 2016'!D207*'Prevalence Rates'!D207","v":1233.8760191082804},{"$f":"'Population 2016'!E207*'Prevalence Rates'!E207","v":965.86423566878943},{"$f":"'Population 2016'!F207*'Prevalence Rates'!F207","v":421.92678343949052},{"$f":"'Population 2016'!G207*'Prevalence Rates'!G207","v":307.8773885350318},{"$f":"'Population 2016'!H207*'Prevalence Rates'!H207","v":779.95382961783446},{"$f":"'Population 2016'!I207*'Prevalence Rates'!I207","v":656.41618375796156},{"$f":"'Population 2016'!J207*'Prevalence Rates'!J207","v":307.99141719745228},{"$f":"'Population 2016'!K207*'Prevalence Rates'!K207","v":95.028821656050937},{"$f":"'Population 2016'!L207*'Prevalence Rates'!L207","v":393.15403471337572},{"$f":"'Population 2016'!M207*'Prevalence Rates'!M207","v":392.65251592356674},{"$f":"'Population 2016'!N207*'Prevalence Rates'!N207","v":199.75748407643314},{"$f":"'Population 2016'!O207*'Prevalence Rates'!O207","v":234.69023885350316},{"$f":"'Population 2016'!P207*'Prevalence Rates'!P207","v":200.74523885350314},{"$f":"'Population 2016'!Q207*'Prevalence Rates'!Q207","v":407.65987261146489},{"$f":"'Population 2016'!R207*'Prevalence Rates'!R207","v":116.08858280254775},{"$f":"'Population 2016'!S207*'Prevalence Rates'!S207","v":2503.4474522292994},{"$f":"'Population 2016'!T207*'Prevalence Rates'!T207","v":435.01934713375789},{"$f":"'Population 2016'!U207*'Prevalence Rates'!U207","v":18.783630573248409},{"$f":"'Population 2016'!V207*'Prevalence Rates'!V207","v":295.18614649681524},{"$f":"'Population 2016'!W207*'Prevalence Rates'!W207","v":712.40132484076435},{"$f":"'Population 2016'!X207*'Prevalence Rates'!X207","v":711.91203821656029},{"$f":"'Population 2016'!Y207*'Prevalence Rates'!Y207","v":634.05948726114639},{"$f":"'Population 2016'!Z207*'Prevalence Rates'!Z207","v":419.29375796178329},{"$f":"'Population 2016'!AA207*'Prevalence Rates'!AA207","v":2408.6674203821653},{"$f":"'Population 2016'!AB207*'Prevalence Rates'!AB207","v":1676.4120764331212},{"$f":"'Population 2016'!AC207*'Prevalence Rates'!AC207","v":1365.9253566878979},{"$f":"'Population 2016'!AD207*'Prevalence Rates'!AD207","v":1221.5935031847132},{"$f":"'Population 2016'!AE207*'Prevalence Rates'!AE207","v":1000.6163216560509},{"$f":"'Population 2016'!AF207*'Prevalence Rates'!AF207","v":142.30036624203819},{"$f":"'Population 2016'!AG207*'Prevalence Rates'!AG207","v":1000.6163216560509},{"$f":"'Population 2016'!AH207*'Prevalence Rates'!AH207","v":1054.7621656050958},{"$f":"'Population 2016'!AI207*'Prevalence Rates'!AI207","v":1215.5372484076427},{"$f":"'Population 2016'!AJ207*'Prevalence Rates'!AJ207","v":193.41926751592354},{"$f":"'Population 2016'!AK207*'Prevalence Rates'!AK207","v":433.84500000000003},{"$f":"'Population 2016'!AL207*'Prevalence Rates'!AL207","v":343.38324840764329},{"$f":"'Population 2016'!AM207*'Prevalence Rates'!AM207","v":452.1236464968153},{"$f":"'Population 2016'!AN207*'Prevalence Rates'!AN207","v":137.98953487261144},{"$f":"'Population 2016'!AO207*'Prevalence Rates'!AO207","v":137.82955414012736},{"$f":"'Population 2016'!AP207*'Prevalence Rates'!AP207","v":737.03980891719743},{"$f":"'Population 2016'!AQ207*'Prevalence Rates'!AQ207","v":328.40254777070061},{"$f":"'Population 2016'!AR207*'Prevalence Rates'!AR207","v":11327.400000000001},{"$f":"'Population 2016'!AS207*'Prevalence Rates'!AS207","v":656.61850318471329},{"$f":"'Population 2016'!AT207*'Prevalence Rates'!AT207","v":137.59490684713376},{"$f":"'Population 2016'!AU207*'Prevalence Rates'!AU207","v":137.75402866242035},{"$f":"'Population 2016'!AV207*'Prevalence Rates'!AV207","v":200.42684713375797},{"$f":"'Population 2016'!AW207*'Prevalence Rates'!AW207","v":575.86103503184722},{"$f":"'Population 2016'!AX207*'Prevalence Rates'!AX207","v":251.54426751592351},{"$f":"'Population 2016'!AY207*'Prevalence Rates'!AY207","v":2056.1648407643311},{"$f":"'Population 2016'!AZ207*'Prevalence Rates'!AZ207","v":1361.0295286624207},{"$f":"'Population 2016'!BA207*'Prevalence Rates'!BA207","v":127.82316878980889},{"$f":"'Population 2016'!BB207*'Prevalence Rates'!BB207","v":273.66878980891715},{"$f":"'Population 2016'!BC207*'Prevalence Rates'!BC207","v":18.780520700636938},205]
[null,"Male 75-79",{"$f":"'Population 2016'!C208*'Prevalence Rates'!C208","v":297.2251719745222},{"$f":"'Population 2016'!D208*'Prevalence Rates'!D208","v":1353.4564299363058},{"$f":"'Population 2016'!E208*'Prevalence Rates'!E208","v":1079.3659299363053},{"$f":"'Population 2016'!F208*'Prevalence Rates'!F208","v":507.32114331210192},{"$f":"'Population 2016'!G208*'Prevalence Rates'!G208","v":315.92854777070056},{"$f":"'Population 2016'!H208*'Prevalence Rates'!H208","v":785.33527643312095},{"$f":"'Population 2016'!I208*'Prevalence Rates'!I208","v":736.19473786624178},{"$f":"'Population 2016'!J208*'Prevalence Rates'!J208","v":309.06535987261145},{"$f":"'Population 2016'!K208*'Prevalence Rates'!K208","v":89.848662420382141},{"$f":"'Population 2016'!L208*'Prevalence Rates'!L208","v":443.21722480891708},{"$f":"'Population 2016'!M208*'Prevalence Rates'!M208","v":442.65184394904441},{"$f":"'Population 2016'!N208*'Prevalence Rates'!N208","v":236.15389490445861},{"$f":"'Population 2016'!O208*'Prevalence Rates'!O208","v":206.80816242038213},{"$f":"'Population 2016'!P208*'Prevalence Rates'!P208","v":239.02053821656042},{"$f":"'Population 2016'!Q208*'Prevalence Rates'!Q208","v":411.36105095541387},{"$f":"'Population 2016'!R208*'Prevalence Rates'!R208","v":132.64678662420377},{"$f":"'Population 2016'!S208*'Prevalence Rates'!S208","v":2726.7619872611463},{"$f":"'Population 2016'!T208*'Prevalence Rates'!T208","v":528.68737261146487},{"$f":"'Population 2016'!U208*'Prevalence Rates'!U208","v":15.044216560509552},{"$f":"'Population 2016'!V208*'Prevalence Rates'!V208","v":333.42277070063687},{"$f":"'Population 2016'!W208*'Prevalence Rates'!W208","v":753.00424968152868},{"$f":"'Population 2016'!X208*'Prevalence Rates'!X208","v":752.48707643312071},{"$f":"'Population 2016'!Y208*'Prevalence Rates'!Y208","v":671.8094082802545},{"$f":"'Population 2016'!Z208*'Prevalence Rates'!Z208","v":500.15453503184688},{"$f":"'Population 2016'!AA208*'Prevalence Rates'!AA208","v":2571.5352898089168},{"$f":"'Population 2016'!AB208*'Prevalence Rates'!AB208","v":1844.2742216560507},{"$f":"'Population 2016'!AC208*'Prevalence Rates'!AC208","v":1539.2611089171974},{"$f":"'Population 2016'!AD208*'Prevalence Rates'!AD208","v":1233.6212292993628},{"$f":"'Population 2016'!AE208*'Prevalence Rates'!AE208","v":1004.9758566878979},{"$f":"'Population 2016'!AF208*'Prevalence Rates'!AF208","v":156.63058280254771},{"$f":"'Population 2016'!AG208*'Prevalence Rates'!AG208","v":1004.9758566878979},{"$f":"'Population 2016'!AH208*'Prevalence Rates'!AH208","v":1034.0294904458597},{"$f":"'Population 2016'!AI208*'Prevalence Rates'!AI208","v":1329.5206375796172},{"$f":"'Population 2016'!AJ208*'Prevalence Rates'!AJ208","v":173.42512738853497},{"$f":"'Population 2016'!AK208*'Prevalence Rates'!AK208","v":481.34699999999998},{"$f":"'Population 2016'!AL208*'Prevalence Rates'!AL208","v":356.99898726114651},{"$f":"'Population 2016'!AM208*'Prevalence Rates'!AM208","v":441.11436305732474},{"$f":"'Population 2016'!AN208*'Prevalence Rates'!AN208","v":170.62043617834391},{"$f":"'Population 2016'!AO208*'Prevalence Rates'!AO208","v":170.42262420382161},{"$f":"'Population 2016'!AP208*'Prevalence Rates'!AP208","v":867.32942675159222},{"$f":"'Population 2016'!AQ208*'Prevalence Rates'!AQ208","v":344.52252229299353},{"$f":"'Population 2016'!AR208*'Prevalence Rates'!AR208","v":12289.635},{"$f":"'Population 2016'!AS208*'Prevalence Rates'!AS208","v":736.42164649681513},{"$f":"'Population 2016'!AT208*'Prevalence Rates'!AT208","v":155.56306385350317},{"$f":"'Population 2016'!AU208*'Prevalence Rates'!AU208","v":155.74296496815282},{"$f":"'Population 2016'!AV208*'Prevalence Rates'!AV208","v":216.90028662420383},{"$f":"'Population 2016'!AW208*'Prevalence Rates'!AW208","v":566.30017834394903},{"$f":"'Population 2016'!AX208*'Prevalence Rates'!AX208","v":257.48842356687891},{"$f":"'Population 2016'!AY208*'Prevalence Rates'!AY208","v":2340.5214267515917},{"$f":"'Population 2016'!AZ208*'Prevalence Rates'!AZ208","v":1613.2571885350319},{"$f":"'Population 2016'!BA208*'Prevalence Rates'!BA208","v":130.52737261146495},{"$f":"'Population 2016'!BB208*'Prevalence Rates'!BB208","v":292.91388535031842},{"$f":"'Population 2016'!BC208*'Prevalence Rates'!BC208","v":15.041725796178337},206]
[null,"Male 80-84",{"$f":"'Population 2016'!C209*'Prevalence Rates'!C209","v":202.35195859872607},{"$f":"'Population 2016'!D209*'Prevalence Rates'!D209","v":884.23039490445854},{"$f":"'Population 2016'!E209*'Prevalence Rates'!E209","v":696.29543312101885},{"$f":"'Population 2016'!F209*'Prevalence Rates'!F209","v":304.69067197452233},{"$f":"'Population 2016'!G209*'Prevalence Rates'!G209","v":214.10610191082796},{"$f":"'Population 2016'!H209*'Prevalence Rates'!H209","v":538.3841445859872},{"$f":"'Population 2016'!I209*'Prevalence Rates'!I209","v":480.02159636942662},{"$f":"'Population 2016'!J209*'Prevalence Rates'!J209","v":212.29916560509554},{"$f":"'Population 2016'!K209*'Prevalence Rates'!K209","v":64.578726114649669},{"$f":"'Population 2016'!L209*'Prevalence Rates'!L209","v":331.86708458598719},{"$f":"'Population 2016'!M209*'Prevalence Rates'!M209","v":331.44374522292981},{"$f":"'Population 2016'!N209*'Prevalence Rates'!N209","v":207.10026114649682},{"$f":"'Population 2016'!O209*'Prevalence Rates'!O209","v":127.518076433121},{"$f":"'Population 2016'!P209*'Prevalence Rates'!P209","v":173.01754777070059},{"$f":"'Population 2016'!Q209*'Prevalence Rates'!Q209","v":273.96143312101901},{"$f":"'Population 2016'!R209*'Prevalence Rates'!R209","v":100.60649999999997},{"$f":"'Population 2016'!S209*'Prevalence Rates'!S209","v":1810.7403821656048},{"$f":"'Population 2016'!T209*'Prevalence Rates'!T209","v":386.11375796178339},{"$f":"'Population 2016'!U209*'Prevalence Rates'!U209","v":14.360388535031845},{"$f":"'Population 2016'!V209*'Prevalence Rates'!V209","v":239.36245222929929},{"$f":"'Population 2016'!W209*'Prevalence Rates'!W209","v":474.7487388535032},{"$f":"'Population 2016'!X209*'Prevalence Rates'!X209","v":474.42267515923544},{"$f":"'Population 2016'!Y209*'Prevalence Rates'!Y209","v":471.33933535031827},{"$f":"'Population 2016'!Z209*'Prevalence Rates'!Z209","v":358.47985987261131},{"$f":"'Population 2016'!AA209*'Prevalence Rates'!AA209","v":1748.1701178343947},{"$f":"'Population 2016'!AB209*'Prevalence Rates'!AB209","v":1208.1964127388533},{"$f":"'Population 2016'!AC209*'Prevalence Rates'!AC209","v":1073.8867012738851},{"$f":"'Population 2016'!AD209*'Prevalence Rates'!AD209","v":857.26221019108266},{"$f":"'Population 2016'!AE209*'Prevalence Rates'!AE209","v":704.32248726114642},{"$f":"'Population 2016'!AF209*'Prevalence Rates'!AF209","v":94.261843949044547},{"$f":"'Population 2016'!AG209*'Prevalence Rates'!AG209","v":704.32248726114642},{"$f":"'Population 2016'!AH209*'Prevalence Rates'!AH209","v":671.71838216560502},{"$f":"'Population 2016'!AI209*'Prevalence Rates'!AI209","v":914.98091847133708},{"$f":"'Population 2016'!AJ209*'Prevalence Rates'!AJ209","v":132.37280254777068},{"$f":"'Population 2016'!AK209*'Prevalence Rates'!AK209","v":317.81700000000001},{"$f":"'Population 2016'!AL209*'Prevalence Rates'!AL209","v":239.28999363057324},{"$f":"'Population 2016'!AM209*'Prevalence Rates'!AM209","v":263.27378980891717},{"$f":"'Population 2016'!AN209*'Prevalence Rates'!AN209","v":95.973995350318447},{"$f":"'Population 2016'!AO209*'Prevalence Rates'!AO209","v":95.862726114649661},{"$f":"'Population 2016'!AP209*'Prevalence Rates'!AP209","v":609.84100318471326},{"$f":"'Population 2016'!AQ209*'Prevalence Rates'!AQ209","v":214.10610191082796},{"$f":"'Population 2016'!AR209*'Prevalence Rates'!AR209","v":8327.9429999999993},{"$f":"'Population 2016'!AS209*'Prevalence Rates'!AS209","v":480.16954777070055},{"$f":"'Population 2016'!AT209*'Prevalence Rates'!AT209","v":91.144878821656036},{"$f":"'Population 2016'!AU209*'Prevalence Rates'!AU209","v":91.250283439490417},{"$f":"'Population 2016'!AV209*'Prevalence Rates'!AV209","v":165.82376751592358},{"$f":"'Population 2016'!AW209*'Prevalence Rates'!AW209","v":387.16440764331213},{"$f":"'Population 2016'!AX209*'Prevalence Rates'!AX209","v":174.24028662420378},{"$f":"'Population 2016'!AY209*'Prevalence Rates'!AY209","v":1577.5504968152861},{"$f":"'Population 2016'!AZ209*'Prevalence Rates'!AZ209","v":1123.5964700636944},{"$f":"'Population 2016'!BA209*'Prevalence Rates'!BA209","v":107.04625796178341},{"$f":"'Population 2016'!BB209*'Prevalence Rates'!BB209","v":168.12659235668787},{"$f":"'Population 2016'!BC209*'Prevalence Rates'!BC209","v":14.358010987261141},207]
[null,"Male 85-89",{"$f":"'Population 2016'!C210*'Prevalence Rates'!C210","v":93.546315286624178},{"$f":"'Population 2016'!D210*'Prevalence Rates'!D210","v":475.48238216560509},{"$f":"'Population 2016'!E210*'Prevalence Rates'!E210","v":390.99112738853484},{"$f":"'Population 2016'!F210*'Prevalence Rates'!F210","v":186.24124203821657},{"$f":"'Population 2016'!G210*'Prevalence Rates'!G210","v":97.637961783439465},{"$f":"'Population 2016'!H210*'Prevalence Rates'!H210","v":248.48498980891716},{"$f":"'Population 2016'!I210*'Prevalence Rates'!I210","v":277.99230496815278},{"$f":"'Population 2016'!J210*'Prevalence Rates'!J210","v":117.29235668789808},{"$f":"'Population 2016'!K210*'Prevalence Rates'!K210","v":29.481592356687891},{"$f":"'Population 2016'!L210*'Prevalence Rates'!L210","v":166.66132098726109},{"$f":"'Population 2016'!M210*'Prevalence Rates'!M210","v":166.44872292993625},{"$f":"'Population 2016'!N210*'Prevalence Rates'!N210","v":113.23467515923568},{"$f":"'Population 2016'!O210*'Prevalence Rates'!O210","v":51.49768471337579},{"$f":"'Population 2016'!P210*'Prevalence Rates'!P210","v":92.27602547770698},{"$f":"'Population 2016'!Q210*'Prevalence Rates'!Q210","v":165.04710191082799},{"$f":"'Population 2016'!R210*'Prevalence Rates'!R210","v":48.701235668789792},{"$f":"'Population 2016'!S210*'Prevalence Rates'!S210","v":1005.2271974522292},{"$f":"'Population 2016'!T210*'Prevalence Rates'!T210","v":237.99253184713371},{"$f":"'Population 2016'!U210*'Prevalence Rates'!U210","v":8.2059363057324823},{"$f":"'Population 2016'!V210*'Prevalence Rates'!V210","v":120.03219745222927},{"$f":"'Population 2016'!W210*'Prevalence Rates'!W210","v":237.3743694267516},{"$f":"'Population 2016'!X210*'Prevalence Rates'!X210","v":237.21133757961772},{"$f":"'Population 2016'!Y210*'Prevalence Rates'!Y210","v":248.74380286624194},{"$f":"'Population 2016'!Z210*'Prevalence Rates'!Z210","v":183.17533757961775},{"$f":"'Population 2016'!AA210*'Prevalence Rates'!AA210","v":891.48531210191072},{"$f":"'Population 2016'!AB210*'Prevalence Rates'!AB210","v":631.15787006369419},{"$f":"'Population 2016'!AC210*'Prevalence Rates'!AC210","v":558.44928917197444},{"$f":"'Population 2016'!AD210*'Prevalence Rates'!AD210","v":445.35817261146491},{"$f":"'Population 2016'!AE210*'Prevalence Rates'!AE210","v":380.77672929936301},{"$f":"'Population 2016'!AF210*'Prevalence Rates'!AF210","v":54.572646496815267},{"$f":"'Population 2016'!AG210*'Prevalence Rates'!AG210","v":380.77672929936301},{"$f":"'Population 2016'!AH210*'Prevalence Rates'!AH210","v":330.24817834394901},{"$f":"'Population 2016'!AI210*'Prevalence Rates'!AI210","v":524.51964458598695},{"$f":"'Population 2016'!AJ210*'Prevalence Rates'!AJ210","v":58.646178343949025},{"$f":"'Population 2016'!AK210*'Prevalence Rates'!AK210","v":152.154},{"$f":"'Population 2016'!AL210*'Prevalence Rates'!AL210","v":118.48339490445859},{"$f":"'Population 2016'!AM210*'Prevalence Rates'!AM210","v":112.45800955414011},{"$f":"'Population 2016'!AN210*'Prevalence Rates'!AN210","v":51.795489554140119},{"$f":"'Population 2016'!AO210*'Prevalence Rates'!AO210","v":51.735439490445849},{"$f":"'Population 2016'!AP210*'Prevalence Rates'!AP210","v":332.38117834394899},{"$f":"'Population 2016'!AQ210*'Prevalence Rates'!AQ210","v":125.53452229299359},{"$f":"'Population 2016'!AR210*'Prevalence Rates'!AR210","v":4396.8239999999996},{"$f":"'Population 2016'!AS210*'Prevalence Rates'!AS210","v":278.07798726114646},{"$f":"'Population 2016'!AT210*'Prevalence Rates'!AT210","v":41.803290286624197},{"$f":"'Population 2016'!AU210*'Prevalence Rates'!AU210","v":41.851633757961771},{"$f":"'Population 2016'!AV210*'Prevalence Rates'!AV210","v":75.565261146496823},{"$f":"'Population 2016'!AW210*'Prevalence Rates'!AW210","v":204.41702866242039},{"$f":"'Population 2016'!AX210*'Prevalence Rates'!AX210","v":101.96283439490443},{"$f":"'Population 2016'!AY210*'Prevalence Rates'!AY210","v":856.42440764331184},{"$f":"'Population 2016'!AZ210*'Prevalence Rates'!AZ210","v":632.4784280254778},{"$f":"'Population 2016'!BA210*'Prevalence Rates'!BA210","v":40.746640127388524},{"$f":"'Population 2016'!BB210*'Prevalence Rates'!BB210","v":82.195222929936293},{"$f":"'Population 2016'!BC210*'Prevalence Rates'!BC210","v":8.204577707006365},208]
[null,"Male 90+",{"$f":"'Population 2016'!C211*'Prevalence Rates'!C211","v":27.20141082802547},{"$f":"'Population 2016'!D211*'Prevalence Rates'!D211","v":187.69041401273884},{"$f":"'Population 2016'!E211*'Prevalence Rates'!E211","v":164.89312738853496},{"$f":"'Population 2016'!F211*'Prevalence Rates'!F211","v":70.771671974522292},{"$f":"'Population 2016'!G211*'Prevalence Rates'!G211","v":48.818980891719733},{"$f":"'Population 2016'!H211*'Prevalence Rates'!H211","v":107.37005732484076},{"$f":"'Population 2016'!I211*'Prevalence Rates'!I211","v":99.398411369426725},{"$f":"'Population 2016'!J211*'Prevalence Rates'!J211","v":44.57109554140127},{"$f":"'Population 2016'!K211*'Prevalence Rates'!K211","v":11.231082802547768},{"$f":"'Population 2016'!L211*'Prevalence Rates'!L211","v":62.588967707006354},{"$f":"'Population 2016'!M211*'Prevalence Rates'!M211","v":62.509127388535006},{"$f":"'Population 2016'!N211*'Prevalence Rates'!N211","v":61.832092356687902},{"$f":"'Population 2016'!O211*'Prevalence Rates'!O211","v":26.974977707006364},{"$f":"'Population 2016'!P211*'Prevalence Rates'!P211","v":39.729955414012728},{"$f":"'Population 2016'!Q211*'Prevalence Rates'!Q211","v":51.943757961783426},{"$f":"'Population 2016'!R211*'Prevalence Rates'!R211","v":31.399480891719737},{"$f":"'Population 2016'!S211*'Prevalence Rates'!S211","v":396.76517197452227},{"$f":"'Population 2016'!T211*'Prevalence Rates'!T211","v":117.054601910828},{"$f":"'Population 2016'!U211*'Prevalence Rates'!U211","v":1.3676560509554139},{"$f":"'Population 2016'!V211*'Prevalence Rates'!V211","v":49.135987261146482},{"$f":"'Population 2016'!W211*'Prevalence Rates'!W211","v":104.84034649681529},{"$f":"'Population 2016'!X211*'Prevalence Rates'!X211","v":104.76834076433116},{"$f":"'Population 2016'!Y211*'Prevalence Rates'!Y211","v":97.888396815286583},{"$f":"'Population 2016'!Z211*'Prevalence Rates'!Z211","v":74.414980891719708},{"$f":"'Population 2016'!AA211*'Prevalence Rates'!AA211","v":368.73728025477703},{"$f":"'Population 2016'!AB211*'Prevalence Rates'!AB211","v":258.64821401273883},{"$f":"'Population 2016'!AC211*'Prevalence Rates'!AC211","v":243.26389490445857},{"$f":"'Population 2016'!AD211*'Prevalence Rates'!AD211","v":193.75519872611463},{"$f":"'Population 2016'!AE211*'Prevalence Rates'!AE211","v":158.72056050955413},{"$f":"'Population 2016'!AF211*'Prevalence Rates'!AF211","v":20.55333439490445},{"$f":"'Population 2016'!AG211*'Prevalence Rates'!AG211","v":158.72056050955413},{"$f":"'Population 2016'!AH211*'Prevalence Rates'!AH211","v":122.64070700636941},{"$f":"'Population 2016'!AI211*'Prevalence Rates'!AI211","v":204.34139999999988},{"$f":"'Population 2016'!AJ211*'Prevalence Rates'!AJ211","v":15.080445859872608},{"$f":"'Population 2016'!AK211*'Prevalence Rates'!AK211","v":69.677999999999997},{"$f":"'Population 2016'!AL211*'Prevalence Rates'!AL211","v":38.720063694267516},{"$f":"'Population 2016'!AM211*'Prevalence Rates'!AM211","v":47.075445859872602},{"$f":"'Population 2016'!AN211*'Prevalence Rates'!AN211","v":25.13604640127388},{"$f":"'Population 2016'!AO211*'Prevalence Rates'!AO211","v":25.10690445859872},{"$f":"'Population 2016'!AP211*'Prevalence Rates'!AP211","v":138.37328025477706},{"$f":"'Population 2016'!AQ211*'Prevalence Rates'!AQ211","v":53.003464968152848},{"$f":"'Population 2016'!AR211*'Prevalence Rates'!AR211","v":1808.7839999999999},{"$f":"'Population 2016'!AS211*'Prevalence Rates'!AS211","v":99.42904777070062},{"$f":"'Population 2016'!AT211*'Prevalence Rates'!AT211","v":17.132496019108277},{"$f":"'Population 2016'!AU211*'Prevalence Rates'!AU211","v":17.152308917197448},{"$f":"'Population 2016'!AV211*'Prevalence Rates'!AV211","v":39.881665605095542},{"$f":"'Population 2016'!AW211*'Prevalence Rates'!AW211","v":71.509843949044594},{"$f":"'Population 2016'!AX211*'Prevalence Rates'!AX211","v":38.720063694267509},{"$f":"'Population 2016'!AY211*'Prevalence Rates'!AY211","v":370.32684076433111},{"$f":"'Population 2016'!AZ211*'Prevalence Rates'!AZ211","v":271.06218343949047},{"$f":"'Population 2016'!BA211*'Prevalence Rates'!BA211","v":17.265525477707001},{"$f":"'Population 2016'!BB211*'Prevalence Rates'!BB211","v":17.186273885350314},{"$f":"'Population 2016'!BC211*'Prevalence Rates'!BC211","v":1.3674296178343943},209]
["SIMD Q5 (least deprived)","Female 0-4",{"$f":"'Population 2016'!C212*'Prevalence Rates'!C212","v":0},{"$f":"'Population 2016'!D212*'Prevalence Rates'!D212","v":0},{"$f":"'Population 2016'!E212*'Prevalence Rates'!E212","v":0},{"$f":"'Population 2016'!F212*'Prevalence Rates'!F212","v":0},{"$f":"'Population 2016'!G212*'Prevalence Rates'!G212","v":0},{"$f":"'Population 2016'!H212*'Prevalence Rates'!H212","v":0},{"$f":"'Population 2016'!I212*'Prevalence Rates'!I212","v":0},{"$f":"'Population 2016'!J212*'Prevalence Rates'!J212","v":0},{"$f":"'Population 2016'!K212*'Prevalence Rates'!K212","v":0},{"$f":"'Population 2016'!L212*'Prevalence Rates'!L212","v":0},{"$f":"'Population 2016'!M212*'Prevalence Rates'!M212","v":0},{"$f":"'Population 2016'!N212*'Prevalence Rates'!N212","v":0},{"$f":"'Population 2016'!O212*'Prevalence Rates'!O212","v":0},{"$f":"'Population 2016'!P212*'Prevalence Rates'!P212","v":0},{"$f":"'Population 2016'!Q212*'Prevalence Rates'!Q212","v":0},{"$f":"'Population 2016'!R212*'Prevalence Rates'!R212","v":0},{"$f":"'Population 2016'!S212*'Prevalence Rates'!S212","v":0},{"$f":"'Population 2016'!T212*'Prevalence Rates'!T212","v":0},{"$f":"'Population 2016'!U212*'Prevalence Rates'!U212","v":0},{"$f":"'Population 2016'!V212*'Prevalence Rates'!V212","v":0},{"$f":"'Population 2016'!W212*'Prevalence Rates'!W212","v":0},{"$f":"'Population 2016'!X212*'Prevalence Rates'!X212","v":0},{"$f":"'Population 2016'!Y212*'Prevalence Rates'!Y212","v":0},{"$f":"'Population 2016'!Z212*'Prevalence Rates'!Z212","v":0},{"$f":"'Population 2016'!AA212*'Prevalence Rates'!AA212","v":0},{"$f":"'Population 2016'!AB212*'Prevalence Rates'!AB212","v":0},{"$f":"'Population 2016'!AC212*'Prevalence Rates'!AC212","v":0},{"$f":"'Population 2016'!AD212*'Prevalence Rates'!AD212","v":0},{"$f":"'Population 2016'!AE212*'Prevalence Rates'!AE212","v":0},{"$f":"'Population 2016'!AF212*'Prevalence Rates'!AF212","v":0},{"$f":"'Population 2016'!AG212*'Prevalence Rates'!AG212","v":0},{"$f":"'Population 2016'!AH212*'Prevalence Rates'!AH212","v":0},{"$f":"'Population 2016'!AI212*'Prevalence Rates'!AI212","v":0},{"$f":"'Population 2016'!AJ212*'Prevalence Rates'!AJ212","v":0},{"$f":"'Population 2016'!AK212*'Prevalence Rates'!AK212","v":0},{"$f":"'Population 2016'!AL212*'Prevalence Rates'!AL212","v":0},{"$f":"'Population 2016'!AM212*'Prevalence Rates'!AM212","v":0},{"$f":"'Population 2016'!AN212*'Prevalence Rates'!AN212","v":0},{"$f":"'Population 2016'!AO212*'Prevalence Rates'!AO212","v":0},{"$f":"'Population 2016'!AP212*'Prevalence Rates'!AP212","v":0},{"$f":"'Population 2016'!AQ212*'Prevalence Rates'!AQ212","v":0},{"$f":"'Population 2016'!AR212*'Prevalence Rates'!AR212","v":0},{"$f":"'Population 2016'!AS212*'Prevalence Rates'!AS212","v":0},{"$f":"'Population 2016'!AT212*'Prevalence Rates'!AT212","v":0},{"$f":"'Population 2016'!AU212*'Prevalence Rates'!AU212","v":0},{"$f":"'Population 2016'!AV212*'Prevalence Rates'!AV212","v":0},{"$f":"'Population 2016'!AW212*'Prevalence Rates'!AW212","v":0},{"$f":"'Population 2016'!AX212*'Prevalence Rates'!AX212","v":0},{"$f":"'Population 2016'!AY212*'Prevalence Rates'!AY212","v":0},{"$f":"'Population 2016'!AZ212*'Prevalence Rates'!AZ212","v":0},{"$f":"'Population 2016'!BA212*'Prevalence Rates'!BA212","v":0},{"$f":"'Population 2016'!BB212*'Prevalence Rates'!BB212","v":0},{"$f":"'Population 2016'!BC212*'Prevalence Rates'!BC212","v":0},210]
[null,"Female 5-9",{"$f":"'Population 2016'!C213*'Prevalence Rates'!C213","v":0},{"$f":"'Population 2016'!D213*'Prevalence Rates'!D213","v":0},{"$f":"'Population 2016'!E213*'Prevalence Rates'!E213","v":0},{"$f":"'Population 2016'!F213*'Prevalence Rates'!F213","v":0},{"$f":"'Population 2016'!G213*'Prevalence Rates'!G213","v":0},{"$f":"'Population 2016'!H213*'Prevalence Rates'!H213","v":0},{"$f":"'Population 2016'!I213*'Prevalence Rates'!I213","v":0},{"$f":"'Population 2016'!J213*'Prevalence Rates'!J213","v":0},{"$f":"'Population 2016'!K213*'Prevalence Rates'!K213","v":0},{"$f":"'Population 2016'!L213*'Prevalence Rates'!L213","v":0},{"$f":"'Population 2016'!M213*'Prevalence Rates'!M213","v":0},{"$f":"'Population 2016'!N213*'Prevalence Rates'!N213","v":0},{"$f":"'Population 2016'!O213*'Prevalence Rates'!O213","v":0},{"$f":"'Population 2016'!P213*'Prevalence Rates'!P213","v":0},{"$f":"'Population 2016'!Q213*'Prevalence Rates'!Q213","v":0},{"$f":"'Population 2016'!R213*'Prevalence Rates'!R213","v":0},{"$f":"'Population 2016'!S213*'Prevalence Rates'!S213","v":0},{"$f":"'Population 2016'!T213*'Prevalence Rates'!T213","v":0},{"$f":"'Population 2016'!U213*'Prevalence Rates'!U213","v":0},{"$f":"'Population 2016'!V213*'Prevalence Rates'!V213","v":0},{"$f":"'Population 2016'!W213*'Prevalence Rates'!W213","v":0},{"$f":"'Population 2016'!X213*'Prevalence Rates'!X213","v":0},{"$f":"'Population 2016'!Y213*'Prevalence Rates'!Y213","v":0},{"$f":"'Population 2016'!Z213*'Prevalence Rates'!Z213","v":0},{"$f":"'Population 2016'!AA213*'Prevalence Rates'!AA213","v":0},{"$f":"'Population 2016'!AB213*'Prevalence Rates'!AB213","v":0},{"$f":"'Population 2016'!AC213*'Prevalence Rates'!AC213","v":0},{"$f":"'Population 2016'!AD213*'Prevalence Rates'!AD213","v":0},{"$f":"'Population 2016'!AE213*'Prevalence Rates'!AE213","v":0},{"$f":"'Population 2016'!AF213*'Prevalence Rates'!AF213","v":0},{"$f":"'Population 2016'!AG213*'Prevalence Rates'!AG213","v":0},{"$f":"'Population 2016'!AH213*'Prevalence Rates'!AH213","v":0},{"$f":"'Population 2016'!AI213*'Prevalence Rates'!AI213","v":0},{"$f":"'Population 2016'!AJ213*'Prevalence Rates'!AJ213","v":0},{"$f":"'Population 2016'!AK213*'Prevalence Rates'!AK213","v":0},{"$f":"'Population 2016'!AL213*'Prevalence Rates'!AL213","v":0},{"$f":"'Population 2016'!AM213*'Prevalence Rates'!AM213","v":0},{"$f":"'Population 2016'!AN213*'Prevalence Rates'!AN213","v":0},{"$f":"'Population 2016'!AO213*'Prevalence Rates'!AO213","v":0},{"$f":"'Population 2016'!AP213*'Prevalence Rates'!AP213","v":0},{"$f":"'Population 2016'!AQ213*'Prevalence Rates'!AQ213","v":0},{"$f":"'Population 2016'!AR213*'Prevalence Rates'!AR213","v":0},{"$f":"'Population 2016'!AS213*'Prevalence Rates'!AS213","v":0},{"$f":"'Population 2016'!AT213*'Prevalence Rates'!AT213","v":0},{"$f":"'Population 2016'!AU213*'Prevalence Rates'!AU213","v":0},{"$f":"'Population 2016'!AV213*'Prevalence Rates'!AV213","v":0},{"$f":"'Population 2016'!AW213*'Prevalence Rates'!AW213","v":0},{"$f":"'Population 2016'!AX213*'Prevalence Rates'!AX213","v":0},{"$f":"'Population 2016'!AY213*'Prevalence Rates'!AY213","v":0},{"$f":"'Population 2016'!AZ213*'Prevalence Rates'!AZ213","v":0},{"$f":"'Population 2016'!BA213*'Prevalence Rates'!BA213","v":0},{"$f":"'Population 2016'!BB213*'Prevalence Rates'!BB213","v":0},{"$f":"'Population 2016'!BC213*'Prevalence Rates'!BC213","v":0},211]
[null,"Female 10-15",{"$f":"'Population 2016'!C214*'Prevalence Rates'!C214","v":0},{"$f":"'Population 2016'!D214*'Prevalence Rates'!D214","v":0},{"$f":"'Population 2016'!E214*'Prevalence Rates'!E214","v":0},{"$f":"'Population 2016'!F214*'Prevalence Rates'!F214","v":0},{"$f":"'Population 2016'!G214*'Prevalence Rates'!G214","v":0},{"$f":"'Population 2016'!H214*'Prevalence Rates'!H214","v":0},{"$f":"'Population 2016'!I214*'Prevalence Rates'!I214","v":0},{"$f":"'Population 2016'!J214*'Prevalence Rates'!J214","v":0},{"$f":"'Population 2016'!K214*'Prevalence Rates'!K214","v":0},{"$f":"'Population 2016'!L214*'Prevalence Rates'!L214","v":0},{"$f":"'Population 2016'!M214*'Prevalence Rates'!M214","v":0},{"$f":"'Population 2016'!N214*'Prevalence Rates'!N214","v":0},{"$f":"'Population 2016'!O214*'Prevalence Rates'!O214","v":0},{"$f":"'Population 2016'!P214*'Prevalence Rates'!P214","v":0},{"$f":"'Population 2016'!Q214*'Prevalence Rates'!Q214","v":0},{"$f":"'Population 2016'!R214*'Prevalence Rates'!R214","v":0},{"$f":"'Population 2016'!S214*'Prevalence Rates'!S214","v":0},{"$f":"'Population 2016'!T214*'Prevalence Rates'!T214","v":0},{"$f":"'Population 2016'!U214*'Prevalence Rates'!U214","v":0},{"$f":"'Population 2016'!V214*'Prevalence Rates'!V214","v":0},{"$f":"'Population 2016'!W214*'Prevalence Rates'!W214","v":0},{"$f":"'Population 2016'!X214*'Prevalence Rates'!X214","v":0},{"$f":"'Population 2016'!Y214*'Prevalence Rates'!Y214","v":0},{"$f":"'Population 2016'!Z214*'Prevalence Rates'!Z214","v":0},{"$f":"'Population 2016'!AA214*'Prevalence Rates'!AA214","v":0},{"$f":"'Population 2016'!AB214*'Prevalence Rates'!AB214","v":0},{"$f":"'Population 2016'!AC214*'Prevalence Rates'!AC214","v":0},{"$f":"'Population 2016'!AD214*'Prevalence Rates'!AD214","v":0},{"$f":"'Population 2016'!AE214*'Prevalence Rates'!AE214","v":0},{"$f":"'Population 2016'!AF214*'Prevalence Rates'!AF214","v":0},{"$f":"'Population 2016'!AG214*'Prevalence Rates'!AG214","v":0},{"$f":"'Population 2016'!AH214*'Prevalence Rates'!AH214","v":0},{"$f":"'Population 2016'!AI214*'Prevalence Rates'!AI214","v":0},{"$f":"'Population 2016'!AJ214*'Prevalence Rates'!AJ214","v":0},{"$f":"'Population 2016'!AK214*'Prevalence Rates'!AK214","v":0},{"$f":"'Population 2016'!AL214*'Prevalence Rates'!AL214","v":0},{"$f":"'Population 2016'!AM214*'Prevalence Rates'!AM214","v":0},{"$f":"'Population 2016'!AN214*'Prevalence Rates'!AN214","v":0},{"$f":"'Population 2016'!AO214*'Prevalence Rates'!AO214","v":0},{"$f":"'Population 2016'!AP214*'Prevalence Rates'!AP214","v":0},{"$f":"'Population 2016'!AQ214*'Prevalence Rates'!AQ214","v":0},{"$f":"'Population 2016'!AR214*'Prevalence Rates'!AR214","v":0},{"$f":"'Population 2016'!AS214*'Prevalence Rates'!AS214","v":0},{"$f":"'Population 2016'!AT214*'Prevalence Rates'!AT214","v":0},{"$f":"'Population 2016'!AU214*'Prevalence Rates'!AU214","v":0},{"$f":"'Population 2016'!AV214*'Prevalence Rates'!AV214","v":0},{"$f":"'Population 2016'!AW214*'Prevalence Rates'!AW214","v":0},{"$f":"'Population 2016'!AX214*'Prevalence Rates'!AX214","v":0},{"$f":"'Population 2016'!AY214*'Prevalence Rates'!AY214","v":0},{"$f":"'Population 2016'!AZ214*'Prevalence Rates'!AZ214","v":0},{"$f":"'Population 2016'!BA214*'Prevalence Rates'!BA214","v":0},{"$f":"'Population 2016'!BB214*'Prevalence Rates'!BB214","v":0},{"$f":"'Population 2016'!BC214*'Prevalence Rates'!BC214","v":0},212]
[null,"Female 16-19",{"$f":"'Population 2016'!C215*'Prevalence Rates'!C215","v":253.43205047318597},{"$f":"'Population 2016'!D215*'Prevalence Rates'!D215","v":532.34271293375366},{"$f":"'Population 2016'!E215*'Prevalence Rates'!E215","v":273.68357194855611},{"$f":"'Population 2016'!F215*'Prevalence Rates'!F215","v":69.43697646202375},{"$f":"'Population 2016'!G215*'Prevalence Rates'!G215","v":19.13198738170346},{"$f":"'Population 2016'!H215*'Prevalence Rates'!H215","v":171.0801853918951},{"$f":"'Population 2016'!I215*'Prevalence Rates'!I215","v":31.619008493084188},{"$f":"'Population 2016'!J215*'Prevalence Rates'!J215","v":184.94065518078131},{"$f":"'Population 2016'!K215*'Prevalence Rates'!K215","v":26.506386799320538},{"$f":"'Population 2016'!L215*'Prevalence Rates'!L215","v":43.703110701286072},{"$f":"'Population 2016'!M215*'Prevalence Rates'!M215","v":43.677418102402314},{"$f":"'Population 2016'!N215*'Prevalence Rates'!N215","v":99.190720698859423},{"$f":"'Population 2016'!O215*'Prevalence Rates'!O215","v":52.838466391652474},{"$f":"'Population 2016'!P215*'Prevalence Rates'!P215","v":187.67111380732823},{"$f":"'Population 2016'!Q215*'Prevalence Rates'!Q215","v":49.200334870177116},{"$f":"'Population 2016'!R215*'Prevalence Rates'!R215","v":185.96630429507391},{"$f":"'Population 2016'!S215*'Prevalence Rates'!S215","v":1171.838301383159},{"$f":"'Population 2016'!T215*'Prevalence Rates'!T215","v":545.14862412035893},{"$f":"'Population 2016'!U215*'Prevalence Rates'!U215","v":0},{"$f":"'Population 2016'!V215*'Prevalence Rates'!V215","v":110.0909439456442},{"$f":"'Population 2016'!W215*'Prevalence Rates'!W215","v":333.96112982285837},{"$f":"'Population 2016'!X215*'Prevalence Rates'!X215","v":333.79830138315924},{"$f":"'Population 2016'!Y215*'Prevalence Rates'!Y215","v":291.31070710992458},{"$f":"'Population 2016'!Z215*'Prevalence Rates'!Z215","v":242.82552778451821},{"$f":"'Population 2016'!AA215*'Prevalence Rates'!AA215","v":1047.2653336568787},{"$f":"'Population 2016'!AB215*'Prevalence Rates'!AB215","v":607.95505362775998},{"$f":"'Population 2016'!AC215*'Prevalence Rates'!AC215","v":790.32145353069586},{"$f":"'Population 2016'!AD215*'Prevalence Rates'!AD215","v":82.177699587478742},{"$f":"'Population 2016'!AE215*'Prevalence Rates'!AE215","v":67.338912885221987},{"$f":"'Population 2016'!AF215*'Prevalence Rates'!AF215","v":25.354258675078857},{"$f":"'Population 2016'!AG215*'Prevalence Rates'!AG215","v":67.338912885221987},{"$f":"'Population 2016'!AH215*'Prevalence Rates'!AH215","v":261.32944236835709},{"$f":"'Population 2016'!AI215*'Prevalence Rates'!AI215","v":793.64537151176853},{"$f":"'Population 2016'!AJ215*'Prevalence Rates'!AJ215","v":39.001946129580176},{"$f":"'Population 2016'!AK215*'Prevalence Rates'!AK215","v":64.700567823343818},{"$f":"'Population 2016'!AL215*'Prevalence Rates'!AL215","v":43.171502062606145},{"$f":"'Population 2016'!AM215*'Prevalence Rates'!AM215","v":122.9599174957534},{"$f":"'Population 2016'!AN215*'Prevalence Rates'!AN215","v":3.8757703470031526},{"$f":"'Population 2016'!AO215*'Prevalence Rates'!AO215","v":3.8779810725552042},{"$f":"'Population 2016'!AP215*'Prevalence Rates'!AP215","v":72.673351128366875},{"$f":"'Population 2016'!AQ215*'Prevalence Rates'!AQ215","v":100.17137587964081},{"$f":"'Population 2016'!AR215*'Prevalence Rates'!AR215","v":3689.1279999999983},{"$f":"'Population 2016'!AS215*'Prevalence Rates'!AS215","v":31.61975248726036},{"$f":"'Population 2016'!AT215*'Prevalence Rates'!AT215","v":0},{"$f":"'Population 2016'!AU215*'Prevalence Rates'!AU215","v":0},{"$f":"'Population 2016'!AV215*'Prevalence Rates'!AV215","v":71.403601067701985},{"$f":"'Population 2016'!AW215*'Prevalence Rates'!AW215","v":136.02445522931319},{"$f":"'Population 2016'!AX215*'Prevalence Rates'!AX215","v":152.96095122543065},{"$f":"'Population 2016'!AY215*'Prevalence Rates'!AY215","v":548.93094879883495},{"$f":"'Population 2016'!AZ215*'Prevalence Rates'!AZ215","v":219.1385246299441},{"$f":"'Population 2016'!BA215*'Prevalence Rates'!BA215","v":14.310196554234402},{"$f":"'Population 2016'!BB215*'Prevalence Rates'!BB215","v":127.17836447464201},{"$f":"'Population 2016'!BC215*'Prevalence Rates'!BC215","v":0},213]
[null,"Female 20-24",{"$f":"'Population 2016'!C216*'Prevalence Rates'!C216","v":446.67709779179785},{"$f":"'Population 2016'!D216*'Prevalence Rates'!D216","v":768.2441349187086},{"$f":"'Population 2016'!E216*'Prevalence Rates'!E216","v":299.95719485561744},{"$f":"'Population 2016'!F216*'Prevalence Rates'!F216","v":64.14221790827466},{"$f":"'Population 2016'!G216*'Prevalence Rates'!G216","v":26.270788643533113},{"$f":"'Population 2016'!H216*'Prevalence Rates'!H216","v":166.73068915311811},{"$f":"'Population 2016'!I216*'Prevalence Rates'!I216","v":30.565041543314713},{"$f":"'Population 2016'!J216*'Prevalence Rates'!J216","v":192.71504003882546},{"$f":"'Population 2016'!K216*'Prevalence Rates'!K216","v":23.741917010434346},{"$f":"'Population 2016'!L216*'Prevalence Rates'!L216","v":51.971266779907758},{"$f":"'Population 2016'!M216*'Prevalence Rates'!M216","v":51.94071341907302},{"$f":"'Population 2016'!N216*'Prevalence Rates'!N216","v":121.79113807328309},{"$f":"'Population 2016'!O216*'Prevalence Rates'!O216","v":52.838466391652474},{"$f":"'Population 2016'!P216*'Prevalence Rates'!P216","v":197.47376850279048},{"$f":"'Population 2016'!Q216*'Prevalence Rates'!Q216","v":49.338150934239238},{"$f":"'Population 2016'!R216*'Prevalence Rates'!R216","v":195.20068915311808},{"$f":"'Population 2016'!S216*'Prevalence Rates'!S216","v":2203.7780635768008},{"$f":"'Population 2016'!T216*'Prevalence Rates'!T216","v":1216.2009026935207},{"$f":"'Population 2016'!U216*'Prevalence Rates'!U216","v":0},{"$f":"'Population 2016'!V216*'Prevalence Rates'!V216","v":130.25531181751995},{"$f":"'Population 2016'!W216*'Prevalence Rates'!W216","v":605.57703567095336},{"$f":"'Population 2016'!X216*'Prevalence Rates'!X216","v":605.28177626789579},{"$f":"'Population 2016'!Y216*'Prevalence Rates'!Y216","v":318.09789856830849},{"$f":"'Population 2016'!Z216*'Prevalence Rates'!Z216","v":629.71667071099216},{"$f":"'Population 2016'!AA216*'Prevalence Rates'!AA216","v":1492.3417811210861},{"$f":"'Population 2016'!AB216*'Prevalence Rates'!AB216","v":854.14244309633557},{"$f":"'Population 2016'!AC216*'Prevalence Rates'!AC216","v":1204.838552778451},{"$f":"'Population 2016'!AD216*'Prevalence Rates'!AD216","v":96.612391167192399},{"$f":"'Population 2016'!AE216*'Prevalence Rates'!AE216","v":75.126406212084405},{"$f":"'Population 2016'!AF216*'Prevalence Rates'!AF216","v":31.855350643047792},{"$f":"'Population 2016'!AG216*'Prevalence Rates'!AG216","v":75.126406212084405},{"$f":"'Population 2016'!AH216*'Prevalence Rates'!AH216","v":296.68404561999506},{"$f":"'Population 2016'!AI216*'Prevalence Rates'!AI216","v":1537.9252414462501},{"$f":"'Population 2016'!AJ216*'Prevalence Rates'!AJ216","v":48.097806357680149},{"$f":"'Population 2016'!AK216*'Prevalence Rates'!AK216","v":67.655641834506156},{"$f":"'Population 2016'!AL216*'Prevalence Rates'!AL216","v":41.991031303081755},{"$f":"'Population 2016'!AM216*'Prevalence Rates'!AM216","v":134.20910943945637},{"$f":"'Population 2016'!AN216*'Prevalence Rates'!AN216","v":6.5589959718514894},{"$f":"'Population 2016'!AO216*'Prevalence Rates'!AO216","v":6.5627371997088071},{"$f":"'Population 2016'!AP216*'Prevalence Rates'!AP216","v":82.911065275418565},{"$f":"'Population 2016'!AQ216*'Prevalence Rates'!AQ216","v":118.25043436059202},{"$f":"'Population 2016'!AR216*'Prevalence Rates'!AR216","v":5549.8979999999974},{"$f":"'Population 2016'!AS216*'Prevalence Rates'!AS216","v":30.565760737685014},{"$f":"'Population 2016'!AT216*'Prevalence Rates'!AT216","v":0},{"$f":"'Population 2016'!AU216*'Prevalence Rates'!AU216","v":0},{"$f":"'Population 2016'!AV216*'Prevalence Rates'!AV216","v":68.477223974763376},{"$f":"'Population 2016'!AW216*'Prevalence Rates'!AW216","v":159.17755399174948},{"$f":"'Population 2016'!AX216*'Prevalence Rates'!AX216","v":162.78805144382423},{"$f":"'Population 2016'!AY216*'Prevalence Rates'!AY216","v":837.84939577772332},{"$f":"'Population 2016'!AZ216*'Prevalence Rates'!AZ216","v":243.86889104586257},{"$f":"'Population 2016'!BA216*'Prevalence Rates'!BA216","v":16.554933268624112},{"$f":"'Population 2016'!BB216*'Prevalence Rates'!BB216","v":118.74147051686478},{"$f":"'Population 2016'!BC216*'Prevalence Rates'!BC216","v":0},214]
[null,"Female 25-29",{"$f":"'Population 2016'!C217*'Prevalence Rates'!C217","v":623.31842271293374},{"$f":"'Population 2016'!D217*'Prevalence Rates'!D217","v":1035.1767823343851},{"$f":"'Population 2016'!E217*'Prevalence Rates'!E217","v":379.01400630914833},{"$f":"'Population 2016'!F217*'Prevalence Rates'!F217","v":75.809337539432192},{"$f":"'Population 2016'!G217*'Prevalence Rates'!G217","v":25.985236593059941},{"$f":"'Population 2016'!H217*'Prevalence Rates'!H217","v":174.507261829653},{"$f":"'Population 2016'!I217*'Prevalence Rates'!I217","v":29.655453627760256},{"$f":"'Population 2016'!J217*'Prevalence Rates'!J217","v":148.5386750788644},{"$f":"'Population 2016'!K217*'Prevalence Rates'!K217","v":21.487570977917979},{"$f":"'Population 2016'!L217*'Prevalence Rates'!L217","v":74.461945741324925},{"$f":"'Population 2016'!M217*'Prevalence Rates'!M217","v":74.418170347003169},{"$f":"'Population 2016'!N217*'Prevalence Rates'!N217","v":125.01823343848579},{"$f":"'Population 2016'!O217*'Prevalence Rates'!O217","v":70.631104100946374},{"$f":"'Population 2016'!P217*'Prevalence Rates'!P217","v":187.19236593059941},{"$f":"'Population 2016'!Q217*'Prevalence Rates'!Q217","v":62.534511041009473},{"$f":"'Population 2016'!R217*'Prevalence Rates'!R217","v":199.4121135646688},{"$f":"'Population 2016'!S217*'Prevalence Rates'!S217","v":2109.2647318611989},{"$f":"'Population 2016'!T217*'Prevalence Rates'!T217","v":1301.7570977917985},{"$f":"'Population 2016'!U217*'Prevalence Rates'!U217","v":0},{"$f":"'Population 2016'!V217*'Prevalence Rates'!V217","v":156.08895899053627},{"$f":"'Population 2016'!W217*'Prevalence Rates'!W217","v":350.00282649842273},{"$f":"'Population 2016'!X217*'Prevalence Rates'!X217","v":349.83217665615143},{"$f":"'Population 2016'!Y217*'Prevalence Rates'!Y217","v":297.30488328075711},{"$f":"'Population 2016'!Z217*'Prevalence Rates'!Z217","v":696.21072555205058},{"$f":"'Population 2016'!AA217*'Prevalence Rates'!AA217","v":1554.2146372239749},{"$f":"'Population 2016'!AB217*'Prevalence Rates'!AB217","v":1150.1852365930602},{"$f":"'Population 2016'!AC217*'Prevalence Rates'!AC217","v":1255.2894195583594},{"$f":"'Population 2016'!AD217*'Prevalence Rates'!AD217","v":133.61829652996849},{"$f":"'Population 2016'!AE217*'Prevalence Rates'!AE217","v":114.96958990536278},{"$f":"'Population 2016'!AF217*'Prevalence Rates'!AF217","v":27.716025236593062},{"$f":"'Population 2016'!AG217*'Prevalence Rates'!AG217","v":114.96958990536278},{"$f":"'Population 2016'!AH217*'Prevalence Rates'!AH217","v":308.50523659305998},{"$f":"'Population 2016'!AI217*'Prevalence Rates'!AI217","v":1678.4970094637222},{"$f":"'Population 2016'!AJ217*'Prevalence Rates'!AJ217","v":59.957539432176667},{"$f":"'Population 2016'!AK217*'Prevalence Rates'!AK217","v":90.348138801261825},{"$f":"'Population 2016'!AL217*'Prevalence Rates'!AL217","v":38.26018927444796},{"$f":"'Population 2016'!AM217*'Prevalence Rates'!AM217","v":143.15110410094638},{"$f":"'Population 2016'!AN217*'Prevalence Rates'!AN217","v":10.034528706624606},{"$f":"'Population 2016'!AO217*'Prevalence Rates'!AO217","v":10.040252365930602},{"$f":"'Population 2016'!AP217*'Prevalence Rates'!AP217","v":95.625741324921151},{"$f":"'Population 2016'!AQ217*'Prevalence Rates'!AQ217","v":122.20012618296528},{"$f":"'Population 2016'!AR217*'Prevalence Rates'!AR217","v":5891.5220000000008},{"$f":"'Population 2016'!AS217*'Prevalence Rates'!AS217","v":29.656151419558363},{"$f":"'Population 2016'!AT217*'Prevalence Rates'!AT217","v":0},{"$f":"'Population 2016'!AU217*'Prevalence Rates'!AU217","v":0},{"$f":"'Population 2016'!AV217*'Prevalence Rates'!AV217","v":63.109526813880123},{"$f":"'Population 2016'!AW217*'Prevalence Rates'!AW217","v":162.3492113564669},{"$f":"'Population 2016'!AX217*'Prevalence Rates'!AX217","v":122.6797476340694},{"$f":"'Population 2016'!AY217*'Prevalence Rates'!AY217","v":616.08391167192428},{"$f":"'Population 2016'!AZ217*'Prevalence Rates'!AZ217","v":269.40478233438489},{"$f":"'Population 2016'!BA217*'Prevalence Rates'!BA217","v":11.89249211356467},{"$f":"'Population 2016'!BB217*'Prevalence Rates'!BB217","v":145.09873817034702},{"$f":"'Population 2016'!BC217*'Prevalence Rates'!BC217","v":0},215]
[null,"Female 30-34",{"$f":"'Population 2016'!C218*'Prevalence Rates'!C218","v":533.25425867507886},{"$f":"'Population 2016'!D218*'Prevalence Rates'!D218","v":1085.7145741324923},{"$f":"'Population 2016'!E218*'Prevalence Rates'!E218","v":538.95318611987398},{"$f":"'Population 2016'!F218*'Prevalence Rates'!F218","v":92.781577287066256},{"$f":"'Population 2016'!G218*'Prevalence Rates'!G218","v":19.933880126182967},{"$f":"'Population 2016'!H218*'Prevalence Rates'!H218","v":205.03097160883283},{"$f":"'Population 2016'!I218*'Prevalence Rates'!I218","v":52.366275709779188},{"$f":"'Population 2016'!J218*'Prevalence Rates'!J218","v":126.54675078864356},{"$f":"'Population 2016'!K218*'Prevalence Rates'!K218","v":28.582523659305991},{"$f":"'Population 2016'!L218*'Prevalence Rates'!L218","v":74.461945741324925},{"$f":"'Population 2016'!M218*'Prevalence Rates'!M218","v":74.418170347003169},{"$f":"'Population 2016'!N218*'Prevalence Rates'!N218","v":121.10529968454257},{"$f":"'Population 2016'!O218*'Prevalence Rates'!O218","v":81.608958990536266},{"$f":"'Population 2016'!P218*'Prevalence Rates'!P218","v":199.76630914826501},{"$f":"'Population 2016'!Q218*'Prevalence Rates'!Q218","v":72.498801261829669},{"$f":"'Population 2016'!R218*'Prevalence Rates'!R218","v":197.28694006309152},{"$f":"'Population 2016'!S218*'Prevalence Rates'!S218","v":1917.6528706624608},{"$f":"'Population 2016'!T218*'Prevalence Rates'!T218","v":1062.9418296529973},{"$f":"'Population 2016'!U218*'Prevalence Rates'!U218","v":0},{"$f":"'Population 2016'!V218*'Prevalence Rates'!V218","v":209.8078864353312},{"$f":"'Population 2016'!W218*'Prevalence Rates'!W218","v":369.20588012618299},{"$f":"'Population 2016'!X218*'Prevalence Rates'!X218","v":369.02586750788646},{"$f":"'Population 2016'!Y218*'Prevalence Rates'!Y218","v":325.19500315457412},{"$f":"'Population 2016'!Z218*'Prevalence Rates'!Z218","v":520.68517350157731},{"$f":"'Population 2016'!AA218*'Prevalence Rates'!AA218","v":1466.7300946372241},{"$f":"'Population 2016'!AB218*'Prevalence Rates'!AB218","v":1210.0578927444797},{"$f":"'Population 2016'!AC218*'Prevalence Rates'!AC218","v":1109.3698927444793},{"$f":"'Population 2016'!AD218*'Prevalence Rates'!AD218","v":137.18145110410097},{"$f":"'Population 2016'!AE218*'Prevalence Rates'!AE218","v":125.24832807570979},{"$f":"'Population 2016'!AF218*'Prevalence Rates'!AF218","v":29.01268138801262},{"$f":"'Population 2016'!AG218*'Prevalence Rates'!AG218","v":125.24832807570979},{"$f":"'Population 2016'!AH218*'Prevalence Rates'!AH218","v":363.59545741324922},{"$f":"'Population 2016'!AI218*'Prevalence Rates'!AI218","v":1457.9728958990536},{"$f":"'Population 2016'!AJ218*'Prevalence Rates'!AJ218","v":73.185993690851745},{"$f":"'Population 2016'!AK218*'Prevalence Rates'!AK218","v":98.878864353312295},{"$f":"'Population 2016'!AL218*'Prevalence Rates'!AL218","v":55.288075709779193},{"$f":"'Population 2016'!AM218*'Prevalence Rates'!AM218","v":168.27558359621452},{"$f":"'Population 2016'!AN218*'Prevalence Rates'!AN218","v":7.2471596214511047},{"$f":"'Population 2016'!AO218*'Prevalence Rates'!AO218","v":7.2512933753943232},{"$f":"'Population 2016'!AP218*'Prevalence Rates'!AP218","v":119.89167192429025},{"$f":"'Population 2016'!AQ218*'Prevalence Rates'!AQ218","v":125.20504731861197},{"$f":"'Population 2016'!AR218*'Prevalence Rates'!AR218","v":5757.206000000001},{"$f":"'Population 2016'!AS218*'Prevalence Rates'!AS218","v":52.367507886435341},{"$f":"'Population 2016'!AT218*'Prevalence Rates'!AT218","v":0},{"$f":"'Population 2016'!AU218*'Prevalence Rates'!AU218","v":0},{"$f":"'Population 2016'!AV218*'Prevalence Rates'!AV218","v":66.392681388012619},{"$f":"'Population 2016'!AW218*'Prevalence Rates'!AW218","v":191.72668769716091},{"$f":"'Population 2016'!AX218*'Prevalence Rates'!AX218","v":95.516214511041014},{"$f":"'Population 2016'!AY218*'Prevalence Rates'!AY218","v":670.74927444794946},{"$f":"'Population 2016'!AZ218*'Prevalence Rates'!AZ218","v":304.51475078864354},{"$f":"'Population 2016'!BA218*'Prevalence Rates'!BA218","v":14.340946372239749},{"$f":"'Population 2016'!BB218*'Prevalence Rates'!BB218","v":171.0022712933754},{"$f":"'Population 2016'!BC218*'Prevalence Rates'!BC218","v":0},216]
[null,"Female 35-39",{"$f":"'Population 2016'!C219*'Prevalence Rates'!C219","v":381.76466876971585},{"$f":"'Population 2016'!D219*'Prevalence Rates'!D219","v":855.99293375394279},{"$f":"'Population 2016'!E219*'Prevalence Rates'!E219","v":470.29785003639876},{"$f":"'Population 2016'!F219*'Prevalence Rates'!F219","v":86.985319097306444},{"$f":"'Population 2016'!G219*'Prevalence Rates'!G219","v":23.986372239747624},{"$f":"'Population 2016'!H219*'Prevalence Rates'!H219","v":198.6269949041494},{"$f":"'Population 2016'!I219*'Prevalence Rates'!I219","v":46.826245911186582},{"$f":"'Population 2016'!J219*'Prevalence Rates'!J219","v":123.79212812424164},{"$f":"'Population 2016'!K219*'Prevalence Rates'!K219","v":31.547478767289473},{"$f":"'Population 2016'!L219*'Prevalence Rates'!L219","v":58.720781946129541},{"$f":"'Population 2016'!M219*'Prevalence Rates'!M219","v":58.686260616355227},{"$f":"'Population 2016'!N219*'Prevalence Rates'!N219","v":89.773880126182902},{"$f":"'Population 2016'!O219*'Prevalence Rates'!O219","v":67.128114535306921},{"$f":"'Population 2016'!P219*'Prevalence Rates'!P219","v":229.86514923562231},{"$f":"'Population 2016'!Q219*'Prevalence Rates'!Q219","v":75.798835234166418},{"$f":"'Population 2016'!R219*'Prevalence Rates'!R219","v":244.21396263042939},{"$f":"'Population 2016'!S219*'Prevalence Rates'!S219","v":1592.9014511041003},{"$f":"'Population 2016'!T219*'Prevalence Rates'!T219","v":824.64527056539646},{"$f":"'Population 2016'!U219*'Prevalence Rates'!U219","v":0},{"$f":"'Population 2016'!V219*'Prevalence Rates'!V219","v":175.46252365930587},{"$f":"'Population 2016'!W219*'Prevalence Rates'!W219","v":333.23449551079818},{"$f":"'Population 2016'!X219*'Prevalence Rates'!X219","v":333.07202135404009},{"$f":"'Population 2016'!Y219*'Prevalence Rates'!Y219","v":290.24530744964795},{"$f":"'Population 2016'!Z219*'Prevalence Rates'!Z219","v":329.36267896141698},{"$f":"'Population 2016'!AA219*'Prevalence Rates'!AA219","v":1370.696607619509},{"$f":"'Population 2016'!AB219*'Prevalence Rates'!AB219","v":940.79253967483589},{"$f":"'Population 2016'!AC219*'Prevalence Rates'!AC219","v":1017.3954200436781},{"$f":"'Population 2016'!AD219*'Prevalence Rates'!AD219","v":123.76676146566363},{"$f":"'Population 2016'!AE219*'Prevalence Rates'!AE219","v":106.5817714147051},{"$f":"'Population 2016'!AF219*'Prevalence Rates'!AF219","v":30.16506673137587},{"$f":"'Population 2016'!AG219*'Prevalence Rates'!AG219","v":106.5817714147051},{"$f":"'Population 2016'!AH219*'Prevalence Rates'!AH219","v":358.40729046347963},{"$f":"'Population 2016'!AI219*'Prevalence Rates'!AI219","v":1184.2482659548646},{"$f":"'Population 2016'!AJ219*'Prevalence Rates'!AJ219","v":65.7382625576316},{"$f":"'Population 2016'!AK219*'Prevalence Rates'!AK219","v":63.300795923319548},{"$f":"'Population 2016'!AL219*'Prevalence Rates'!AL219","v":53.289822858529462},{"$f":"'Population 2016'!AM219*'Prevalence Rates'!AM219","v":161.86337296772621},{"$f":"'Population 2016'!AN219*'Prevalence Rates'!AN219","v":8.7950173258917701},{"$f":"'Population 2016'!AO219*'Prevalence Rates'!AO219","v":8.8000339723368093},{"$f":"'Population 2016'!AP219*'Prevalence Rates'!AP219","v":99.060698859500093},{"$f":"'Population 2016'!AQ219*'Prevalence Rates'!AQ219","v":125.08030089784026},{"$f":"'Population 2016'!AR219*'Prevalence Rates'!AR219","v":4916.6959999999981},{"$f":"'Population 2016'!AS219*'Prevalence Rates'!AS219","v":46.827347731133202},{"$f":"'Population 2016'!AT219*'Prevalence Rates'!AT219","v":0},{"$f":"'Population 2016'!AU219*'Prevalence Rates'!AU219","v":0},{"$f":"'Population 2016'!AV219*'Prevalence Rates'!AV219","v":75.061572433875241},{"$f":"'Population 2016'!AW219*'Prevalence Rates'!AW219","v":192.52904149478272},{"$f":"'Population 2016'!AX219*'Prevalence Rates'!AX219","v":90.295384615384577},{"$f":"'Population 2016'!AY219*'Prevalence Rates'!AY219","v":581.92602766318817},{"$f":"'Population 2016'!AZ219*'Prevalence Rates'!AZ219","v":251.9749555933025},{"$f":"'Population 2016'!BA219*'Prevalence Rates'!BA219","v":17.537005581169609},{"$f":"'Population 2016'!BB219*'Prevalence Rates'!BB219","v":163.73823829167671},{"$f":"'Population 2016'!BC219*'Prevalence Rates'!BC219","v":0},217]
[null,"Female 40-44",{"$f":"'Population 2016'!C220*'Prevalence Rates'!C220","v":351.79552050473166},{"$f":"'Population 2016'!D220*'Prevalence Rates'!D220","v":851.23137102644944},{"$f":"'Population 2016'!E220*'Prevalence Rates'!E220","v":500.36655180781349},{"$f":"'Population 2016'!F220*'Prevalence Rates'!F220","v":107.25668041737438},{"$f":"'Population 2016'!G220*'Prevalence Rates'!G220","v":27.698548895899041},{"$f":"'Population 2016'!H220*'Prevalence Rates'!H220","v":253.23733656879386},{"$f":"'Population 2016'!I220*'Prevalence Rates'!I220","v":72.422586119873785},{"$f":"'Population 2016'!J220*'Prevalence Rates'!J220","v":157.43129337539426},{"$f":"'Population 2016'!K220*'Prevalence Rates'!K220","v":40.653967483620455},{"$f":"'Population 2016'!L220*'Prevalence Rates'!L220","v":63.445442562484793},{"$f":"'Population 2016'!M220*'Prevalence Rates'!M220","v":63.408143654452772},{"$f":"'Population 2016'!N220*'Prevalence Rates'!N220","v":105.46861441397711},{"$f":"'Population 2016'!O220*'Prevalence Rates'!O220","v":87.731793254064485},{"$f":"'Population 2016'!P220*'Prevalence Rates'!P220","v":266.94475612715348},{"$f":"'Population 2016'!Q220*'Prevalence Rates'!Q220","v":88.06446493569517},{"$f":"'Population 2016'!R220*'Prevalence Rates'!R220","v":275.75293860713407},{"$f":"'Population 2016'!S220*'Prevalence Rates'!S220","v":1668.799485561756},{"$f":"'Population 2016'!T220*'Prevalence Rates'!T220","v":785.95119631157468},{"$f":"'Population 2016'!U220*'Prevalence Rates'!U220","v":0},{"$f":"'Population 2016'!V220*'Prevalence Rates'!V220","v":213.67725309390912},{"$f":"'Population 2016'!W220*'Prevalence Rates'!W220","v":382.79095559330244},{"$f":"'Population 2016'!X220*'Prevalence Rates'!X220","v":382.6043193399658},{"$f":"'Population 2016'!Y220*'Prevalence Rates'!Y220","v":360.25728512496943},{"$f":"'Population 2016'!Z220*'Prevalence Rates'!Z220","v":306.70982771172032},{"$f":"'Population 2016'!AA220*'Prevalence Rates'!AA220","v":1495.6621208444544},{"$f":"'Population 2016'!AB220*'Prevalence Rates'!AB220","v":954.13412666828401},{"$f":"'Population 2016'!AC220*'Prevalence Rates'!AC220","v":1100.6354724581404},{"$f":"'Population 2016'!AD220*'Prevalence Rates'!AD220","v":142.9177384130065},{"$f":"'Population 2016'!AE220*'Prevalence Rates'!AE220","v":123.07293375394315},{"$f":"'Population 2016'!AF220*'Prevalence Rates'!AF220","v":39.396617325891761},{"$f":"'Population 2016'!AG220*'Prevalence Rates'!AG220","v":123.07293375394315},{"$f":"'Population 2016'!AH220*'Prevalence Rates'!AH220","v":400.24357097791784},{"$f":"'Population 2016'!AI220*'Prevalence Rates'!AI220","v":1190.0097568551316},{"$f":"'Population 2016'!AJ220*'Prevalence Rates'!AJ220","v":68.081135646687656},{"$f":"'Population 2016'!AK220*'Prevalence Rates'!AK220","v":83.519723368114484},{"$f":"'Population 2016'!AL220*'Prevalence Rates'!AL220","v":68.298665372482375},{"$f":"'Population 2016'!AM220*'Prevalence Rates'!AM220","v":174.2062363504003},{"$f":"'Population 2016'!AN220*'Prevalence Rates'!AN220","v":6.4099278815821368},{"$f":"'Population 2016'!AO220*'Prevalence Rates'!AO220","v":6.4135840815336067},{"$f":"'Population 2016'!AP220*'Prevalence Rates'!AP220","v":124.29450133462748},{"$f":"'Population 2016'!AQ220*'Prevalence Rates'!AQ220","v":142.62368357194848},{"$f":"'Population 2016'!AR220*'Prevalence Rates'!AR220","v":5330.1679999999978},{"$f":"'Population 2016'!AS220*'Prevalence Rates'!AS220","v":72.424290220820154},{"$f":"'Population 2016'!AT220*'Prevalence Rates'!AT220","v":0},{"$f":"'Population 2016'!AU220*'Prevalence Rates'!AU220","v":0},{"$f":"'Population 2016'!AV220*'Prevalence Rates'!AV220","v":93.497748119388447},{"$f":"'Population 2016'!AW220*'Prevalence Rates'!AW220","v":220.78133462751748},{"$f":"'Population 2016'!AX220*'Prevalence Rates'!AX220","v":114.36465906333409},{"$f":"'Population 2016'!AY220*'Prevalence Rates'!AY220","v":687.67948556175645},{"$f":"'Population 2016'!AZ220*'Prevalence Rates'!AZ220","v":308.16784372725056},{"$f":"'Population 2016'!BA220*'Prevalence Rates'!BA220","v":17.256413491870898},{"$f":"'Population 2016'!BB220*'Prevalence Rates'!BB220","v":205.14151419558348},{"$f":"'Population 2016'!BC220*'Prevalence Rates'!BC220","v":0},218]
[null,"Female 45-49",{"$f":"'Population 2016'!C221*'Prevalence Rates'!C221","v":579.78624605678215},{"$f":"'Population 2016'!D221*'Prevalence Rates'!D221","v":1409.2660228099971},{"$f":"'Population 2016'!E221*'Prevalence Rates'!E221","v":831.47818490657585},{"$f":"'Population 2016'!F221*'Prevalence Rates'!F221","v":190.84962387769957},{"$f":"'Population 2016'!G221*'Prevalence Rates'!G221","v":58.346498422712919},{"$f":"'Population 2016'!H221*'Prevalence Rates'!H221","v":497.72713224945386},{"$f":"'Population 2016'!I221*'Prevalence Rates'!I221","v":114.90302310118901},{"$f":"'Population 2016'!J221*'Prevalence Rates'!J221","v":316.82666343120599},{"$f":"'Population 2016'!K221*'Prevalence Rates'!K221","v":74.257534578985656},{"$f":"'Population 2016'!L221*'Prevalence Rates'!L221","v":131.12088949284148},{"$f":"'Population 2016'!M221*'Prevalence Rates'!M221","v":131.04380490172286},{"$f":"'Population 2016'!N221*'Prevalence Rates'!N221","v":207.4757874302353},{"$f":"'Population 2016'!O221*'Prevalence Rates'!O221","v":155.60876000970632},{"$f":"'Population 2016'!P221*'Prevalence Rates'!P221","v":497.66231011890312},{"$f":"'Population 2016'!Q221*'Prevalence Rates'!Q221","v":166.61206988594998},{"$f":"'Population 2016'!R221*'Prevalence Rates'!R221","v":500.52117447221542},{"$f":"'Population 2016'!S221*'Prevalence Rates'!S221","v":2833.8469594758544},{"$f":"'Population 2016'!T221*'Prevalence Rates'!T221","v":1297.2038049017228},{"$f":"'Population 2016'!U221*'Prevalence Rates'!U221","v":0},{"$f":"'Population 2016'!V221*'Prevalence Rates'!V221","v":356.18444552293118},{"$f":"'Population 2016'!W221*'Prevalence Rates'!W221","v":650.35363552535773},{"$f":"'Population 2016'!X221*'Prevalence Rates'!X221","v":650.03654452802698},{"$f":"'Population 2016'!Y221*'Prevalence Rates'!Y221","v":655.90256345547175},{"$f":"'Population 2016'!Z221*'Prevalence Rates'!Z221","v":536.07134190730392},{"$f":"'Population 2016'!AA221*'Prevalence Rates'!AA221","v":2778.4772336811448},{"$f":"'Population 2016'!AB221*'Prevalence Rates'!AB221","v":1588.6857830623633},{"$f":"'Population 2016'!AC221*'Prevalence Rates'!AC221","v":2040.7730900266915},{"$f":"'Population 2016'!AD221*'Prevalence Rates'!AD221","v":253.52823683571944},{"$f":"'Population 2016'!AE221*'Prevalence Rates'!AE221","v":208.47389468575582},{"$f":"'Population 2016'!AF221*'Prevalence Rates'!AF221","v":79.299073040524135},{"$f":"'Population 2016'!AG221*'Prevalence Rates'!AG221","v":208.47389468575582},{"$f":"'Population 2016'!AH221*'Prevalence Rates'!AH221","v":747.25142344091228},{"$f":"'Population 2016'!AI221*'Prevalence Rates'!AI221","v":2027.5335811696182},{"$f":"'Population 2016'!AJ221*'Prevalence Rates'!AJ221","v":119.89242416889101},{"$f":"'Population 2016'!AK221*'Prevalence Rates'!AK221","v":148.30338267410818},{"$f":"'Population 2016'!AL221*'Prevalence Rates'!AL221","v":140.18032516379517},{"$f":"'Population 2016'!AM221*'Prevalence Rates'!AM221","v":347.05340936665851},{"$f":"'Population 2016'!AN221*'Prevalence Rates'!AN221","v":17.306192671681629},{"$f":"'Population 2016'!AO221*'Prevalence Rates'!AO221","v":17.316064062120844},{"$f":"'Population 2016'!AP221*'Prevalence Rates'!AP221","v":228.78318369327832},{"$f":"'Population 2016'!AQ221*'Prevalence Rates'!AQ221","v":285.45099733074483},{"$f":"'Population 2016'!AR221*'Prevalence Rates'!AR221","v":9443.409999999998},{"$f":"'Population 2016'!AS221*'Prevalence Rates'!AS221","v":114.90572676534819},{"$f":"'Population 2016'!AT221*'Prevalence Rates'!AT221","v":0},{"$f":"'Population 2016'!AU221*'Prevalence Rates'!AU221","v":0},{"$f":"'Population 2016'!AV221*'Prevalence Rates'!AV221","v":193.42550837175438},{"$f":"'Population 2016'!AW221*'Prevalence Rates'!AW221","v":392.95702014074243},{"$f":"'Population 2016'!AX221*'Prevalence Rates'!AX221","v":236.77517107498176},{"$f":"'Population 2016'!AY221*'Prevalence Rates'!AY221","v":1219.023489444309},{"$f":"'Population 2016'!AZ221*'Prevalence Rates'!AZ221","v":572.94274011162327},{"$f":"'Population 2016'!BA221*'Prevalence Rates'!BA221","v":39.307876728949282},{"$f":"'Population 2016'!BB221*'Prevalence Rates'!BB221","v":381.63782577044401},{"$f":"'Population 2016'!BC221*'Prevalence Rates'!BC221","v":0},219]
[null,"Female 50-54",{"$f":"'Population 2016'!C222*'Prevalence Rates'!C222","v":617.7071924290218},{"$f":"'Population 2016'!D222*'Prevalence Rates'!D222","v":1424.0072991992231},{"$f":"'Population 2016'!E222*'Prevalence Rates'!E222","v":802.78314972094131},{"$f":"'Population 2016'!F222*'Prevalence Rates'!F222","v":195.7672215481679},{"$f":"'Population 2016'!G222*'Prevalence Rates'!G222","v":60.998611987381686},{"$f":"'Population 2016'!H222*'Prevalence Rates'!H222","v":512.43950740111609},{"$f":"'Population 2016'!I222*'Prevalence Rates'!I222","v":103.4826414947828},{"$f":"'Population 2016'!J222*'Prevalence Rates'!J222","v":310.80950254792521},{"$f":"'Population 2016'!K222*'Prevalence Rates'!K222","v":79.040223246784734},{"$f":"'Population 2016'!L222*'Prevalence Rates'!L222","v":157.76298257704434},{"$f":"'Population 2016'!M222*'Prevalence Rates'!M222","v":157.67023537976218},{"$f":"'Population 2016'!N222*'Prevalence Rates'!N222","v":220.83781121087105},{"$f":"'Population 2016'!O222*'Prevalence Rates'!O222","v":148.66423683571944},{"$f":"'Population 2016'!P222*'Prevalence Rates'!P222","v":543.1842271293375},{"$f":"'Population 2016'!Q222*'Prevalence Rates'!Q222","v":156.58547925260856},{"$f":"'Population 2016'!R222*'Prevalence Rates'!R222","v":501.18091239990287},{"$f":"'Population 2016'!S222*'Prevalence Rates'!S222","v":2794.8966464450368},{"$f":"'Population 2016'!T222*'Prevalence Rates'!T222","v":1320.8326231497208},{"$f":"'Population 2016'!U222*'Prevalence Rates'!U222","v":0},{"$f":"'Population 2016'!V222*'Prevalence Rates'!V222","v":327.74003397233668},{"$f":"'Population 2016'!W222*'Prevalence Rates'!W222","v":630.55732977432638},{"$f":"'Population 2016'!X222*'Prevalence Rates'!X222","v":630.2498908032029},{"$f":"'Population 2016'!Y222*'Prevalence Rates'!Y222","v":623.15455471972803},{"$f":"'Population 2016'!Z222*'Prevalence Rates'!Z222","v":544.64848337782075},{"$f":"'Population 2016'!AA222*'Prevalence Rates'!AA222","v":2904.867226401358},{"$f":"'Population 2016'!AB222*'Prevalence Rates'!AB222","v":1595.6422615869931},{"$f":"'Population 2016'!AC222*'Prevalence Rates'!AC222","v":2131.9636238776984},{"$f":"'Population 2016'!AD222*'Prevalence Rates'!AD222","v":266.58073768502783},{"$f":"'Population 2016'!AE222*'Prevalence Rates'!AE222","v":219.58304780393101},{"$f":"'Population 2016'!AF222*'Prevalence Rates'!AF222","v":80.305406454743974},{"$f":"'Population 2016'!AG222*'Prevalence Rates'!AG222","v":219.58304780393101},{"$f":"'Population 2016'!AH222*'Prevalence Rates'!AH222","v":782.823966027663},{"$f":"'Population 2016'!AI222*'Prevalence Rates'!AI222","v":2018.007031303081},{"$f":"'Population 2016'!AJ222*'Prevalence Rates'!AJ222","v":113.06580926959474},{"$f":"'Population 2016'!AK222*'Prevalence Rates'!AK222","v":139.15479737927683},{"$f":"'Population 2016'!AL222*'Prevalence Rates'!AL222","v":135.48154331472941},{"$f":"'Population 2016'!AM222*'Prevalence Rates'!AM222","v":341.49088085416156},{"$f":"'Population 2016'!AN222*'Prevalence Rates'!AN222","v":15.460198786702254},{"$f":"'Population 2016'!AO222*'Prevalence Rates'!AO222","v":15.469017228827953},{"$f":"'Population 2016'!AP222*'Prevalence Rates'!AP222","v":252.2195098277117},{"$f":"'Population 2016'!AQ222*'Prevalence Rates'!AQ222","v":308.66850764377563},{"$f":"'Population 2016'!AR222*'Prevalence Rates'!AR222","v":9588.7279999999973},{"$f":"'Population 2016'!AS222*'Prevalence Rates'!AS222","v":103.4850764377578},{"$f":"'Population 2016'!AT222*'Prevalence Rates'!AT222","v":0},{"$f":"'Population 2016'!AU222*'Prevalence Rates'!AU222","v":0},{"$f":"'Population 2016'!AV222*'Prevalence Rates'!AV222","v":216.98083960203829},{"$f":"'Population 2016'!AW222*'Prevalence Rates'!AW222","v":431.14339723368101},{"$f":"'Population 2016'!AX222*'Prevalence Rates'!AX222","v":226.85442368357189},{"$f":"'Population 2016'!AY222*'Prevalence Rates'!AY222","v":1239.3223586508125},{"$f":"'Population 2016'!AZ222*'Prevalence Rates'!AZ222","v":611.43666585780136},{"$f":"'Population 2016'!BA222*'Prevalence Rates'!BA222","v":44.519970880854153},{"$f":"'Population 2016'!BB222*'Prevalence Rates'!BB222","v":358.17846639165242},{"$f":"'Population 2016'!BC222*'Prevalence Rates'!BC222","v":0},220]
[null,"Female 55-59",{"$f":"'Population 2016'!C223*'Prevalence Rates'!C223","v":752.82132492113556},{"$f":"'Population 2016'!D223*'Prevalence Rates'!D223","v":1655.8068818247996},{"$f":"'Population 2016'!E223*'Prevalence Rates'!E223","v":892.8892793011405},{"$f":"'Population 2016'!F223*'Prevalence Rates'!F223","v":240.22661489929629},{"$f":"'Population 2016'!G223*'Prevalence Rates'!G223","v":86.843028391167181},{"$f":"'Population 2016'!H223*'Prevalence Rates'!H223","v":702.32778840087349},{"$f":"'Population 2016'!I223*'Prevalence Rates'!I223","v":120.46986614899296},{"$f":"'Population 2016'!J223*'Prevalence Rates'!J223","v":357.3411210871148},{"$f":"'Population 2016'!K223*'Prevalence Rates'!K223","v":88.289279301140482},{"$f":"'Population 2016'!L223*'Prevalence Rates'!L223","v":184.25945256005821},{"$f":"'Population 2016'!M223*'Prevalence Rates'!M223","v":184.15112836690125},{"$f":"'Population 2016'!N223*'Prevalence Rates'!N223","v":288.63046347973784},{"$f":"'Population 2016'!O223*'Prevalence Rates'!O223","v":189.92166949769469},{"$f":"'Population 2016'!P223*'Prevalence Rates'!P223","v":645.77055569036634},{"$f":"'Population 2016'!Q223*'Prevalence Rates'!Q223","v":173.84080562970149},{"$f":"'Population 2016'!R223*'Prevalence Rates'!R223","v":590.38565396748356},{"$f":"'Population 2016'!S223*'Prevalence Rates'!S223","v":3342.2598204319333},{"$f":"'Population 2016'!T223*'Prevalence Rates'!T223","v":1628.112623149721},{"$f":"'Population 2016'!U223*'Prevalence Rates'!U223","v":0},{"$f":"'Population 2016'!V223*'Prevalence Rates'!V223","v":355.14860470759521},{"$f":"'Population 2016'!W223*'Prevalence Rates'!W223","v":769.15137782091722},{"$f":"'Population 2016'!X223*'Prevalence Rates'!X223","v":768.77636495996103},{"$f":"'Population 2016'!Y223*'Prevalence Rates'!Y223","v":696.17717253093895},{"$f":"'Population 2016'!Z223*'Prevalence Rates'!Z223","v":646.31506915797138},{"$f":"'Population 2016'!AA223*'Prevalence Rates'!AA223","v":3412.2858432419312},{"$f":"'Population 2016'!AB223*'Prevalence Rates'!AB223","v":1852.5991108954136},{"$f":"'Population 2016'!AC223*'Prevalence Rates'!AC223","v":2517.5944629944183},{"$f":"'Population 2016'!AD223*'Prevalence Rates'!AD223","v":322.92165105556904},{"$f":"'Population 2016'!AE223*'Prevalence Rates'!AE223","v":252.13866051929136},{"$f":"'Population 2016'!AF223*'Prevalence Rates'!AF223","v":92.354690609075476},{"$f":"'Population 2016'!AG223*'Prevalence Rates'!AG223","v":252.13866051929136},{"$f":"'Population 2016'!AH223*'Prevalence Rates'!AH223","v":906.83750157728696},{"$f":"'Population 2016'!AI223*'Prevalence Rates'!AI223","v":2402.4645746178107},{"$f":"'Population 2016'!AJ223*'Prevalence Rates'!AJ223","v":140.08530939092449},{"$f":"'Population 2016'!AK223*'Prevalence Rates'!AK223","v":158.72603736957046},{"$f":"'Population 2016'!AL223*'Prevalence Rates'!AL223","v":183.80692065032758},{"$f":"'Population 2016'!AM223*'Prevalence Rates'!AM223","v":393.20163552535791},{"$f":"'Population 2016'!AN223*'Prevalence Rates'!AN223","v":16.125900121329774},{"$f":"'Population 2016'!AO223*'Prevalence Rates'!AO223","v":16.135098277117205},{"$f":"'Population 2016'!AP223*'Prevalence Rates'!AP223","v":308.73335112836691},{"$f":"'Population 2016'!AQ223*'Prevalence Rates'!AQ223","v":365.45748119388486},{"$f":"'Population 2016'!AR223*'Prevalence Rates'!AR223","v":11417.572},{"$f":"'Population 2016'!AS223*'Prevalence Rates'!AS223","v":120.47270080077649},{"$f":"'Population 2016'!AT223*'Prevalence Rates'!AT223","v":0},{"$f":"'Population 2016'!AU223*'Prevalence Rates'!AU223","v":0},{"$f":"'Population 2016'!AV223*'Prevalence Rates'!AV223","v":311.1941470516864},{"$f":"'Population 2016'!AW223*'Prevalence Rates'!AW223","v":501.55041494782813},{"$f":"'Population 2016'!AX223*'Prevalence Rates'!AX223","v":263.08027177869445},{"$f":"'Population 2016'!AY223*'Prevalence Rates'!AY223","v":1531.4047173016254},{"$f":"'Population 2016'!AZ223*'Prevalence Rates'!AZ223","v":765.00772433875272},{"$f":"'Population 2016'!BA223*'Prevalence Rates'!BA223","v":48.680805629701524},{"$f":"'Population 2016'!BB223*'Prevalence Rates'!BB223","v":360.99290463479741},{"$f":"'Population 2016'!BC223*'Prevalence Rates'!BC223","v":0},221]
[null,"Female 60-64",{"$f":"'Population 2016'!C224*'Prevalence Rates'!C224","v":593.4242271293374},{"$f":"'Population 2016'!D224*'Prevalence Rates'!D224","v":1418.9456927930112},{"$f":"'Population 2016'!E224*'Prevalence Rates'!E224","v":825.85554962387766},{"$f":"'Population 2016'!F224*'Prevalence Rates'!F224","v":224.17033729677263},{"$f":"'Population 2016'!G224*'Prevalence Rates'!G224","v":63.820883280757087},{"$f":"'Population 2016'!H224*'Prevalence Rates'!H224","v":655.3086527541858},{"$f":"'Population 2016'!I224*'Prevalence Rates'!I224","v":111.5575546226644},{"$f":"'Population 2016'!J224*'Prevalence Rates'!J224","v":337.50578985683086},{"$f":"'Population 2016'!K224*'Prevalence Rates'!K224","v":102.56160640621206},{"$f":"'Population 2016'!L224*'Prevalence Rates'!L224","v":177.37124872603732},{"$f":"'Population 2016'!M224*'Prevalence Rates'!M224","v":177.26697403542829},{"$f":"'Population 2016'!N224*'Prevalence Rates'!N224","v":215.27155544770679},{"$f":"'Population 2016'!O224*'Prevalence Rates'!O224","v":170.25121087114775},{"$f":"'Population 2016'!P224*'Prevalence Rates'!P224","v":578.49674836204792},{"$f":"'Population 2016'!Q224*'Prevalence Rates'!Q224","v":151.89973307449645},{"$f":"'Population 2016'!R224*'Prevalence Rates'!R224","v":512.38283426352825},{"$f":"'Population 2016'!S224*'Prevalence Rates'!S224","v":2911.8468721184172},{"$f":"'Population 2016'!T224*'Prevalence Rates'!T224","v":1385.8641494782821},{"$f":"'Population 2016'!U224*'Prevalence Rates'!U224","v":0},{"$f":"'Population 2016'!V224*'Prevalence Rates'!V224","v":296.0678087842756},{"$f":"'Population 2016'!W224*'Prevalence Rates'!W224","v":713.0890521718029},{"$f":"'Population 2016'!X224*'Prevalence Rates'!X224","v":712.74137345304518},{"$f":"'Population 2016'!Y224*'Prevalence Rates'!Y224","v":620.68808153360817},{"$f":"'Population 2016'!Z224*'Prevalence Rates'!Z224","v":567.81256976462021},{"$f":"'Population 2016'!AA224*'Prevalence Rates'!AA224","v":2973.620587236107},{"$f":"'Population 2016'!AB224*'Prevalence Rates'!AB224","v":1609.5225139529239},{"$f":"'Population 2016'!AC224*'Prevalence Rates'!AC224","v":2224.0156520262067},{"$f":"'Population 2016'!AD224*'Prevalence Rates'!AD224","v":290.83368211599128},{"$f":"'Population 2016'!AE224*'Prevalence Rates'!AE224","v":242.47698131521469},{"$f":"'Population 2016'!AF224*'Prevalence Rates'!AF224","v":106.15481679204078},{"$f":"'Population 2016'!AG224*'Prevalence Rates'!AG224","v":242.47698131521469},{"$f":"'Population 2016'!AH224*'Prevalence Rates'!AH224","v":761.31052851249694},{"$f":"'Population 2016'!AI224*'Prevalence Rates'!AI224","v":2048.6028439699098},{"$f":"'Population 2016'!AJ224*'Prevalence Rates'!AJ224","v":120.95719485561754},{"$f":"'Population 2016'!AK224*'Prevalence Rates'!AK224","v":160.31329774326619},{"$f":"'Population 2016'!AL224*'Prevalence Rates'!AL224","v":162.46604222276147},{"$f":"'Population 2016'!AM224*'Prevalence Rates'!AM224","v":308.69357922834263},{"$f":"'Population 2016'!AN224*'Prevalence Rates'!AN224","v":17.038686920650328},{"$f":"'Population 2016'!AO224*'Prevalence Rates'!AO224","v":17.048405726765349},{"$f":"'Population 2016'!AP224*'Prevalence Rates'!AP224","v":290.48600339723367},{"$f":"'Population 2016'!AQ224*'Prevalence Rates'!AQ224","v":305.59570977917974},{"$f":"'Population 2016'!AR224*'Prevalence Rates'!AR224","v":10025.912},{"$f":"'Population 2016'!AS224*'Prevalence Rates'!AS224","v":111.56017956806599},{"$f":"'Population 2016'!AT224*'Prevalence Rates'!AT224","v":0},{"$f":"'Population 2016'!AU224*'Prevalence Rates'!AU224","v":0},{"$f":"'Population 2016'!AV224*'Prevalence Rates'!AV224","v":304.32517835476818},{"$f":"'Population 2016'!AW224*'Prevalence Rates'!AW224","v":439.9466343120601},{"$f":"'Population 2016'!AX224*'Prevalence Rates'!AX224","v":231.68505702499391},{"$f":"'Population 2016'!AY224*'Prevalence Rates'!AY224","v":1378.2930259645714},{"$f":"'Population 2016'!AZ224*'Prevalence Rates'!AZ224","v":668.82090269352102},{"$f":"'Population 2016'!BA224*'Prevalence Rates'!BA224","v":38.371929143411791},{"$f":"'Population 2016'!BB224*'Prevalence Rates'!BB224","v":305.18569764620241},{"$f":"'Population 2016'!BC224*'Prevalence Rates'!BC224","v":0},222]
[null,"Female 65-69",{"$f":"'Population 2016'!C225*'Prevalence Rates'!C225","v":551.7190220820188},{"$f":"'Population 2016'!D225*'Prevalence Rates'!D225","v":1276.9793739383647},{"$f":"'Population 2016'!E225*'Prevalence Rates'!E225","v":722.49063819461298},{"$f":"'Population 2016'!F225*'Prevalence Rates'!F225","v":264.07064304780397},{"$f":"'Population 2016'!G225*'Prevalence Rates'!G225","v":71.007602523659301},{"$f":"'Population 2016'!H225*'Prevalence Rates'!H225","v":682.73629798592583},{"$f":"'Population 2016'!I225*'Prevalence Rates'!I225","v":118.39080805629703},{"$f":"'Population 2016'!J225*'Prevalence Rates'!J225","v":346.79572919194379},{"$f":"'Population 2016'!K225*'Prevalence Rates'!K225","v":97.177461781121082},{"$f":"'Population 2016'!L225*'Prevalence Rates'!L225","v":161.53647008007763},{"$f":"'Population 2016'!M225*'Prevalence Rates'!M225","v":161.44150448920166},{"$f":"'Population 2016'!N225*'Prevalence Rates'!N225","v":237.25170832322249},{"$f":"'Population 2016'!O225*'Prevalence Rates'!O225","v":166.57978645959716},{"$f":"'Population 2016'!P225*'Prevalence Rates'!P225","v":566.07946857558852},{"$f":"'Population 2016'!Q225*'Prevalence Rates'!Q225","v":159.29649114292647},{"$f":"'Population 2016'!R225*'Prevalence Rates'!R225","v":475.87538946857563},{"$f":"'Population 2016'!S225*'Prevalence Rates'!S225","v":2913.5047706867267},{"$f":"'Population 2016'!T225*'Prevalence Rates'!T225","v":1380.7645911186607},{"$f":"'Population 2016'!U225*'Prevalence Rates'!U225","v":0},{"$f":"'Population 2016'!V225*'Prevalence Rates'!V225","v":276.50823829167678},{"$f":"'Population 2016'!W225*'Prevalence Rates'!W225","v":766.47079398204323},{"$f":"'Population 2016'!X225*'Prevalence Rates'!X225","v":766.0970880854162},{"$f":"'Population 2016'!Y225*'Prevalence Rates'!Y225","v":611.83859257461779},{"$f":"'Population 2016'!Z225*'Prevalence Rates'!Z225","v":454.26925503518572},{"$f":"'Population 2016'!AA225*'Prevalence Rates'!AA225","v":2684.6610968211598},{"$f":"'Population 2016'!AB225*'Prevalence Rates'!AB225","v":1461.7694879883527},{"$f":"'Population 2016'!AC225*'Prevalence Rates'!AC225","v":2031.8322045619991},{"$f":"'Population 2016'!AD225*'Prevalence Rates'!AD225","v":287.12173647173023},{"$f":"'Population 2016'!AE225*'Prevalence Rates'!AE225","v":230.82502547925259},{"$f":"'Population 2016'!AF225*'Prevalence Rates'!AF225","v":103.51430478039313},{"$f":"'Population 2016'!AG225*'Prevalence Rates'!AG225","v":230.82502547925259},{"$f":"'Population 2016'!AH225*'Prevalence Rates'!AH225","v":664.28918320795935},{"$f":"'Population 2016'!AI225*'Prevalence Rates'!AI225","v":1996.1494200436787},{"$f":"'Population 2016'!AJ225*'Prevalence Rates'!AJ225","v":112.42864595971852},{"$f":"'Population 2016'!AK225*'Prevalence Rates'!AK225","v":158.98170347003156},{"$f":"'Population 2016'!AL225*'Prevalence Rates'!AL225","v":175.03308905605439},{"$f":"'Population 2016'!AM225*'Prevalence Rates'!AM225","v":266.58615869934482},{"$f":"'Population 2016'!AN225*'Prevalence Rates'!AN225","v":14.944586556661006},{"$f":"'Population 2016'!AO225*'Prevalence Rates'!AO225","v":14.953110895413738},{"$f":"'Population 2016'!AP225*'Prevalence Rates'!AP225","v":330.50059208929878},{"$f":"'Population 2016'!AQ225*'Prevalence Rates'!AQ225","v":291.15631157486047},{"$f":"'Population 2016'!AR225*'Prevalence Rates'!AR225","v":9690.8420000000006},{"$f":"'Population 2016'!AS225*'Prevalence Rates'!AS225","v":118.39359378791556},{"$f":"'Population 2016'!AT225*'Prevalence Rates'!AT225","v":0},{"$f":"'Population 2016'!AU225*'Prevalence Rates'!AU225","v":0},{"$f":"'Population 2016'!AV225*'Prevalence Rates'!AV225","v":321.56675078864356},{"$f":"'Population 2016'!AW225*'Prevalence Rates'!AW225","v":386.32108226158704},{"$f":"'Population 2016'!AX225*'Prevalence Rates'!AX225","v":245.25024023295319},{"$f":"'Population 2016'!AY225*'Prevalence Rates'!AY225","v":1526.1547100218393},{"$f":"'Population 2016'!AZ225*'Prevalence Rates'!AZ225","v":762.42646881824817},{"$f":"'Population 2016'!BA225*'Prevalence Rates'!BA225","v":26.199805872361082},{"$f":"'Population 2016'!BB225*'Prevalence Rates'!BB225","v":250.61555933025966},{"$f":"'Population 2016'!BC225*'Prevalence Rates'!BC225","v":0},223]
[null,"Female 70-74",{"$f":"'Population 2016'!C226*'Prevalence Rates'!C226","v":424.60608832807566},{"$f":"'Population 2016'!D226*'Prevalence Rates'!D226","v":949.64476583353576},{"$f":"'Population 2016'!E226*'Prevalence Rates'!E226","v":520.4916670710993},{"$f":"'Population 2016'!F226*'Prevalence Rates'!F226","v":190.02380732831838},{"$f":"'Population 2016'!G226*'Prevalence Rates'!G226","v":58.377791798107253},{"$f":"'Population 2016'!H226*'Prevalence Rates'!H226","v":525.98561732589178},{"$f":"'Population 2016'!I226*'Prevalence Rates'!I226","v":89.681037102644993},{"$f":"'Population 2016'!J226*'Prevalence Rates'!J226","v":267.15026935209909},{"$f":"'Population 2016'!K226*'Prevalence Rates'!K226","v":66.489842271293384},{"$f":"'Population 2016'!L226*'Prevalence Rates'!L226","v":155.56592293132735},{"$f":"'Population 2016'!M226*'Prevalence Rates'!M226","v":155.47446736229074},{"$f":"'Population 2016'!N226*'Prevalence Rates'!N226","v":190.66522203348697},{"$f":"'Population 2016'!O226*'Prevalence Rates'!O226","v":114.31946129580197},{"$f":"'Population 2016'!P226*'Prevalence Rates'!P226","v":473.64123271050721},{"$f":"'Population 2016'!Q226*'Prevalence Rates'!Q226","v":134.37255035185635},{"$f":"'Population 2016'!R226*'Prevalence Rates'!R226","v":409.68849551079842},{"$f":"'Population 2016'!S226*'Prevalence Rates'!S226","v":2181.2306430478038},{"$f":"'Population 2016'!T226*'Prevalence Rates'!T226","v":1027.897359864111},{"$f":"'Population 2016'!U226*'Prevalence Rates'!U226","v":0},{"$f":"'Population 2016'!V226*'Prevalence Rates'!V226","v":195.63357437515165},{"$f":"'Population 2016'!W226*'Prevalence Rates'!W226","v":577.06709051201165},{"$f":"'Population 2016'!X226*'Prevalence Rates'!X226","v":576.78573161853922},{"$f":"'Population 2016'!Y226*'Prevalence Rates'!Y226","v":455.06430283911669},{"$f":"'Population 2016'!Z226*'Prevalence Rates'!Z226","v":271.9849065760738},{"$f":"'Population 2016'!AA226*'Prevalence Rates'!AA226","v":2042.9413540402816},{"$f":"'Population 2016'!AB226*'Prevalence Rates'!AB226","v":1105.0922115991268},{"$f":"'Population 2016'!AC226*'Prevalence Rates'!AC226","v":1567.7142043193396},{"$f":"'Population 2016'!AD226*'Prevalence Rates'!AD226","v":230.65258869206508},{"$f":"'Population 2016'!AE226*'Prevalence Rates'!AE226","v":183.99966270322736},{"$f":"'Population 2016'!AF226*'Prevalence Rates'!AF226","v":82.300262072312563},{"$f":"'Population 2016'!AG226*'Prevalence Rates'!AG226","v":183.99966270322736},{"$f":"'Population 2016'!AH226*'Prevalence Rates'!AH226","v":484.75156612472705},{"$f":"'Population 2016'!AI226*'Prevalence Rates'!AI226","v":1490.6126745935453},{"$f":"'Population 2016'!AJ226*'Prevalence Rates'!AJ226","v":80.731895171074981},{"$f":"'Population 2016'!AK226*'Prevalence Rates'!AK226","v":138.19178840087358},{"$f":"'Population 2016'!AL226*'Prevalence Rates'!AL226","v":136.24734773113323},{"$f":"'Population 2016'!AM226*'Prevalence Rates'!AM226","v":177.21222761465665},{"$f":"'Population 2016'!AN226*'Prevalence Rates'!AN226","v":13.186399902936181},{"$f":"'Population 2016'!AO226*'Prevalence Rates'!AO226","v":13.193921378306241},{"$f":"'Population 2016'!AP226*'Prevalence Rates'!AP226","v":267.85854161611263},{"$f":"'Population 2016'!AQ226*'Prevalence Rates'!AQ226","v":218.76211113807327},{"$f":"'Population 2016'!AR226*'Prevalence Rates'!AR226","v":7382.2140000000009},{"$f":"'Population 2016'!AS226*'Prevalence Rates'!AS226","v":89.683147294346043},{"$f":"'Population 2016'!AT226*'Prevalence Rates'!AT226","v":0},{"$f":"'Population 2016'!AU226*'Prevalence Rates'!AU226","v":0},{"$f":"'Population 2016'!AV226*'Prevalence Rates'!AV226","v":258.86411065275416},{"$f":"'Population 2016'!AW226*'Prevalence Rates'!AW226","v":297.19090269352102},{"$f":"'Population 2016'!AX226*'Prevalence Rates'!AX226","v":196.25618539189517},{"$f":"'Population 2016'!AY226*'Prevalence Rates'!AY226","v":1170.2552099005095},{"$f":"'Population 2016'!AZ226*'Prevalence Rates'!AZ226","v":594.70885027905865},{"$f":"'Population 2016'!BA226*'Prevalence Rates'!BA226","v":12.962009221062852},{"$f":"'Population 2016'!BB226*'Prevalence Rates'!BB226","v":177.51935452560059},{"$f":"'Population 2016'!BC226*'Prevalence Rates'!BC226","v":0},224]
[null,"Female 75-79",{"$f":"'Population 2016'!C227*'Prevalence Rates'!C227","v":684.88438485804409},{"$f":"'Population 2016'!D227*'Prevalence Rates'!D227","v":1425.7665615141955},{"$f":"'Population 2016'!E227*'Prevalence Rates'!E227","v":725.81883038097556},{"$f":"'Population 2016'!F227*'Prevalence Rates'!F227","v":275.50877214268382},{"$f":"'Population 2016'!G227*'Prevalence Rates'!G227","v":76.385173501577285},{"$f":"'Population 2016'!H227*'Prevalence Rates'!H227","v":736.70006309148266},{"$f":"'Population 2016'!I227*'Prevalence Rates'!I227","v":146.20955411307935},{"$f":"'Population 2016'!J227*'Prevalence Rates'!J227","v":409.79364231982538},{"$f":"'Population 2016'!K227*'Prevalence Rates'!K227","v":97.725454986653716},{"$f":"'Population 2016'!L227*'Prevalence Rates'!L227","v":221.97699150691577},{"$f":"'Population 2016'!M227*'Prevalence Rates'!M227","v":221.84649356952198},{"$f":"'Population 2016'!N227*'Prevalence Rates'!N227","v":289.28297743266188},{"$f":"'Population 2016'!O227*'Prevalence Rates'!O227","v":147.34634797379275},{"$f":"'Population 2016'!P227*'Prevalence Rates'!P227","v":797.54336326134433},{"$f":"'Population 2016'!Q227*'Prevalence Rates'!Q227","v":196.44924775539917},{"$f":"'Population 2016'!R227*'Prevalence Rates'!R227","v":584.10160155302117},{"$f":"'Population 2016'!S227*'Prevalence Rates'!S227","v":3223.6807328318368},{"$f":"'Population 2016'!T227*'Prevalence Rates'!T227","v":1622.9960446493574},{"$f":"'Population 2016'!U227*'Prevalence Rates'!U227","v":0},{"$f":"'Population 2016'!V227*'Prevalence Rates'!V227","v":269.9367750545984},{"$f":"'Population 2016'!W227*'Prevalence Rates'!W227","v":760.99017956806608},{"$f":"'Population 2016'!X227*'Prevalence Rates'!X227","v":760.6191458383887},{"$f":"'Population 2016'!Y227*'Prevalence Rates'!Y227","v":669.82051929143404},{"$f":"'Population 2016'!Z227*'Prevalence Rates'!Z227","v":443.11138073283189},{"$f":"'Population 2016'!AA227*'Prevalence Rates'!AA227","v":3017.968624120359},{"$f":"'Population 2016'!AB227*'Prevalence Rates'!AB227","v":1637.5138752729922},{"$f":"'Population 2016'!AC227*'Prevalence Rates'!AC227","v":2366.7354925988834},{"$f":"'Population 2016'!AD227*'Prevalence Rates'!AD227","v":317.36547925260862},{"$f":"'Population 2016'!AE227*'Prevalence Rates'!AE227","v":257.38679932055322},{"$f":"'Population 2016'!AF227*'Prevalence Rates'!AF227","v":121.4947221548168},{"$f":"'Population 2016'!AG227*'Prevalence Rates'!AG227","v":257.38679932055322},{"$f":"'Population 2016'!AH227*'Prevalence Rates'!AH227","v":667.19705896627033},{"$f":"'Population 2016'!AI227*'Prevalence Rates'!AI227","v":2273.8920262072311},{"$f":"'Population 2016'!AJ227*'Prevalence Rates'!AJ227","v":115.64750060664886},{"$f":"'Population 2016'!AK227*'Prevalence Rates'!AK227","v":183.51499636010678},{"$f":"'Population 2016'!AL227*'Prevalence Rates'!AL227","v":184.15112836690128},{"$f":"'Population 2016'!AM227*'Prevalence Rates'!AM227","v":247.32812424168895},{"$f":"'Population 2016'!AN227*'Prevalence Rates'!AN227","v":12.563581169619026},{"$f":"'Population 2016'!AO227*'Prevalence Rates'!AO227","v":12.570747391409855},{"$f":"'Population 2016'!AP227*'Prevalence Rates'!AP227","v":412.6640257219122},{"$f":"'Population 2016'!AQ227*'Prevalence Rates'!AQ227","v":263.52222761465657},{"$f":"'Population 2016'!AR227*'Prevalence Rates'!AR227","v":10855.150000000001},{"$f":"'Population 2016'!AS227*'Prevalence Rates'!AS227","v":146.21299441883036},{"$f":"'Population 2016'!AT227*'Prevalence Rates'!AT227","v":0},{"$f":"'Population 2016'!AU227*'Prevalence Rates'!AU227","v":0},{"$f":"'Population 2016'!AV227*'Prevalence Rates'!AV227","v":379.60723125454979},{"$f":"'Population 2016'!AW227*'Prevalence Rates'!AW227","v":406.02877942247022},{"$f":"'Population 2016'!AX227*'Prevalence Rates'!AX227","v":304.78252851249698},{"$f":"'Population 2016'!AY227*'Prevalence Rates'!AY227","v":1658.5908760009704},{"$f":"'Population 2016'!AZ227*'Prevalence Rates'!AZ227","v":896.64987381703475},{"$f":"'Population 2016'!BA227*'Prevalence Rates'!BA227","v":16.965251152632856},{"$f":"'Population 2016'!BB227*'Prevalence Rates'!BB227","v":216.41210871147783},{"$f":"'Population 2016'!BC227*'Prevalence Rates'!BC227","v":0},225]
[null,"Female 80-84",{"$f":"'Population 2016'!C228*'Prevalence Rates'!C228","v":534.51056782334376},{"$f":"'Population 2016'!D228*'Prevalence Rates'!D228","v":1092.2568308662946},{"$f":"'Population 2016'!E228*'Prevalence Rates'!E228","v":544.49784033001708},{"$f":"'Population 2016'!F228*'Prevalence Rates'!F228","v":217.30269352099006},{"$f":"'Population 2016'!G228*'Prevalence Rates'!G228","v":63.82870662460568},{"$f":"'Population 2016'!H228*'Prevalence Rates'!H228","v":550.16382916767782},{"$f":"'Population 2016'!I228*'Prevalence Rates'!I228","v":87.725732467847607},{"$f":"'Population 2016'!J228*'Prevalence Rates'!J228","v":281.59616597913134},{"$f":"'Population 2016'!K228*'Prevalence Rates'!K228","v":61.376352826983741},{"$f":"'Population 2016'!L228*'Prevalence Rates'!L228","v":179.31289007522443},{"$f":"'Population 2016'!M228*'Prevalence Rates'!M228","v":179.20747391409856},{"$f":"'Population 2016'!N228*'Prevalence Rates'!N228","v":232.34656636738649},{"$f":"'Population 2016'!O228*'Prevalence Rates'!O228","v":118.12062606163551},{"$f":"'Population 2016'!P228*'Prevalence Rates'!P228","v":588.2663188546469},{"$f":"'Population 2016'!Q228*'Prevalence Rates'!Q228","v":139.88802475127395},{"$f":"'Population 2016'!R228*'Prevalence Rates'!R228","v":485.71015530211116},{"$f":"'Population 2016'!S228*'Prevalence Rates'!S228","v":2525.1247027420527},{"$f":"'Population 2016'!T228*'Prevalence Rates'!T228","v":1368.9015530211116},{"$f":"'Population 2016'!U228*'Prevalence Rates'!U228","v":0},{"$f":"'Population 2016'!V228*'Prevalence Rates'!V228","v":177.57430235379761},{"$f":"'Population 2016'!W228*'Prevalence Rates'!W228","v":560.75763406940064},{"$f":"'Population 2016'!X228*'Prevalence Rates'!X228","v":560.48422712933746},{"$f":"'Population 2016'!Y228*'Prevalence Rates'!Y228","v":452.86782819703956},{"$f":"'Population 2016'!Z228*'Prevalence Rates'!Z228","v":376.82382916767779},{"$f":"'Population 2016'!AA228*'Prevalence Rates'!AA228","v":2305.6461781121084},{"$f":"'Population 2016'!AB228*'Prevalence Rates'!AB228","v":1263.9013443338997},{"$f":"'Population 2016'!AC228*'Prevalence Rates'!AC228","v":1840.7942720213539},{"$f":"'Population 2016'!AD228*'Prevalence Rates'!AD228","v":270.75569764620241},{"$f":"'Population 2016'!AE228*'Prevalence Rates'!AE228","v":221.01692550351854},{"$f":"'Population 2016'!AF228*'Prevalence Rates'!AF228","v":88.619679689395781},{"$f":"'Population 2016'!AG228*'Prevalence Rates'!AG228","v":221.01692550351854},{"$f":"'Population 2016'!AH228*'Prevalence Rates'!AH228","v":478.26585294831358},{"$f":"'Population 2016'!AI228*'Prevalence Rates'!AI228","v":1836.2913661732589},{"$f":"'Population 2016'!AJ228*'Prevalence Rates'!AJ228","v":77.771681630672163},{"$f":"'Population 2016'!AK228*'Prevalence Rates'!AK228","v":151.0294224702742},{"$f":"'Population 2016'!AL228*'Prevalence Rates'!AL228","v":144.60189274447953},{"$f":"'Population 2016'!AM228*'Prevalence Rates'!AM228","v":157.44267168163069},{"$f":"'Population 2016'!AN228*'Prevalence Rates'!AN228","v":14.748551807813637},{"$f":"'Population 2016'!AO228*'Prevalence Rates'!AO228","v":14.756964329046351},{"$f":"'Population 2016'!AP228*'Prevalence Rates'!AP228","v":318.08417859742787},{"$f":"'Population 2016'!AQ228*'Prevalence Rates'!AQ228","v":186.96828439699098},{"$f":"'Population 2016'!AR228*'Prevalence Rates'!AR228","v":8367.4},{"$f":"'Population 2016'!AS228*'Prevalence Rates'!AS228","v":87.72779665129822},{"$f":"'Population 2016'!AT228*'Prevalence Rates'!AT228","v":0},{"$f":"'Population 2016'!AU228*'Prevalence Rates'!AU228","v":0},{"$f":"'Population 2016'!AV228*'Prevalence Rates'!AV228","v":270.22887648628972},{"$f":"'Population 2016'!AW228*'Prevalence Rates'!AW228","v":308.56167192429018},{"$f":"'Population 2016'!AX228*'Prevalence Rates'!AX228","v":214.49592331958263},{"$f":"'Population 2016'!AY228*'Prevalence Rates'!AY228","v":1266.4193884979372},{"$f":"'Population 2016'!AZ228*'Prevalence Rates'!AZ228","v":703.82735743751516},{"$f":"'Population 2016'!BA228*'Prevalence Rates'!BA228","v":11.310167435088571},{"$f":"'Population 2016'!BB228*'Prevalence Rates'!BB228","v":136.83199466148994},{"$f":"'Population 2016'!BC228*'Prevalence Rates'!BC228","v":0},226]
[null,"Female 85-89",{"$f":"'Population 2016'!C229*'Prevalence Rates'!C229","v":391.88328075709774},{"$f":"'Population 2016'!D229*'Prevalence Rates'!D229","v":750.77078379034219},{"$f":"'Population 2016'!E229*'Prevalence Rates'!E229","v":345.52613443338998},{"$f":"'Population 2016'!F229*'Prevalence Rates'!F229","v":140.24893229798593},{"$f":"'Population 2016'!G229*'Prevalence Rates'!G229","v":36.623028391167189},{"$f":"'Population 2016'!H229*'Prevalence Rates'!H229","v":326.43840936665862},{"$f":"'Population 2016'!I229*'Prevalence Rates'!I229","v":46.345669983013835},{"$f":"'Population 2016'!J229*'Prevalence Rates'!J229","v":157.78150934239264},{"$f":"'Population 2016'!K229*'Prevalence Rates'!K229","v":26.81491142926474},{"$f":"'Population 2016'!L229*'Prevalence Rates'!L229","v":96.457968454258662},{"$f":"'Population 2016'!M229*'Prevalence Rates'!M229","v":96.401261829653009},{"$f":"'Population 2016'!N229*'Prevalence Rates'!N229","v":151.25531424411545},{"$f":"'Population 2016'!O229*'Prevalence Rates'!O229","v":71.846566367386544},{"$f":"'Population 2016'!P229*'Prevalence Rates'!P229","v":343.06858772142687},{"$f":"'Population 2016'!Q229*'Prevalence Rates'!Q229","v":91.911987381703469},{"$f":"'Population 2016'!R229*'Prevalence Rates'!R229","v":337.34210143169133},{"$f":"'Population 2016'!S229*'Prevalence Rates'!S229","v":1682.2471972822129},{"$f":"'Population 2016'!T229*'Prevalence Rates'!T229","v":955.67279786459619},{"$f":"'Population 2016'!U229*'Prevalence Rates'!U229","v":0},{"$f":"'Population 2016'!V229*'Prevalence Rates'!V229","v":95.937794224702742},{"$f":"'Population 2016'!W229*'Prevalence Rates'!W229","v":347.21175442853678},{"$f":"'Population 2016'!X229*'Prevalence Rates'!X229","v":347.0424654210143},{"$f":"'Population 2016'!Y229*'Prevalence Rates'!Y229","v":250.41583110895414},{"$f":"'Population 2016'!Z229*'Prevalence Rates'!Z229","v":252.60931812666831},{"$f":"'Population 2016'!AA229*'Prevalence Rates'!AA229","v":1413.0309390924531},{"$f":"'Population 2016'!AB229*'Prevalence Rates'!AB229","v":857.35327347731152},{"$f":"'Population 2016'!AC229*'Prevalence Rates'!AC229","v":1172.9947051686481},{"$f":"'Population 2016'!AD229*'Prevalence Rates'!AD229","v":162.34867750545985},{"$f":"'Population 2016'!AE229*'Prevalence Rates'!AE229","v":134.28876486289732},{"$f":"'Population 2016'!AF229*'Prevalence Rates'!AF229","v":62.891385586022814},{"$f":"'Population 2016'!AG229*'Prevalence Rates'!AG229","v":134.28876486289732},{"$f":"'Population 2016'!AH229*'Prevalence Rates'!AH229","v":249.92899538946858},{"$f":"'Population 2016'!AI229*'Prevalence Rates'!AI229","v":1257.6220723125455},{"$f":"'Population 2016'!AJ229*'Prevalence Rates'!AJ229","v":31.815687939820428},{"$f":"'Population 2016'!AK229*'Prevalence Rates'!AK229","v":91.187575831108944},{"$f":"'Population 2016'!AL229*'Prevalence Rates'!AL229","v":82.188255277845201},{"$f":"'Population 2016'!AM229*'Prevalence Rates'!AM229","v":70.41981315214754},{"$f":"'Population 2016'!AN229*'Prevalence Rates'!AN229","v":7.6473972336811453},{"$f":"'Population 2016'!AO229*'Prevalence Rates'!AO229","v":7.6517592817277373},{"$f":"'Population 2016'!AP229*'Prevalence Rates'!AP229","v":205.01106527541862},{"$f":"'Population 2016'!AQ229*'Prevalence Rates'!AQ229","v":107.96068915311815},{"$f":"'Population 2016'!AR229*'Prevalence Rates'!AR229","v":5330.7400000000007},{"$f":"'Population 2016'!AS229*'Prevalence Rates'!AS229","v":46.346760495025478},{"$f":"'Population 2016'!AT229*'Prevalence Rates'!AT229","v":0},{"$f":"'Population 2016'!AU229*'Prevalence Rates'!AU229","v":0},{"$f":"'Population 2016'!AV229*'Prevalence Rates'!AV229","v":161.92285852948311},{"$f":"'Population 2016'!AW229*'Prevalence Rates'!AW229","v":171.70371269109438},{"$f":"'Population 2016'!AX229*'Prevalence Rates'!AX229","v":126.81875758311089},{"$f":"'Population 2016'!AY229*'Prevalence Rates'!AY229","v":803.97738413006539},{"$f":"'Population 2016'!AZ229*'Prevalence Rates'!AZ229","v":455.12155302111137},{"$f":"'Population 2016'!BA229*'Prevalence Rates'!BA229","v":5.1409851977675327},{"$f":"'Population 2016'!BB229*'Prevalence Rates'!BB229","v":98.473234651783557},{"$f":"'Population 2016'!BC229*'Prevalence Rates'!BC229","v":0},227]
[null,"Female 90+",{"$f":"'Population 2016'!C230*'Prevalence Rates'!C230","v":238.77539432176653},{"$f":"'Population 2016'!D230*'Prevalence Rates'!D230","v":468.1100703712691},{"$f":"'Population 2016'!E230*'Prevalence Rates'!E230","v":221.9711235137103},{"$f":"'Population 2016'!F230*'Prevalence Rates'!F230","v":71.510325163795201},{"$f":"'Population 2016'!G230*'Prevalence Rates'!G230","v":23.020189274447951},{"$f":"'Population 2016'!H230*'Prevalence Rates'!H230","v":212.50963358408154},{"$f":"'Population 2016'!I230*'Prevalence Rates'!I230","v":38.069657486047078},{"$f":"'Population 2016'!J230*'Prevalence Rates'!J230","v":88.752099005095872},{"$f":"'Population 2016'!K230*'Prevalence Rates'!K230","v":10.725964571705896},{"$f":"'Population 2016'!L230*'Prevalence Rates'!L230","v":56.267148264984222},{"$f":"'Population 2016'!M230*'Prevalence Rates'!M230","v":56.234069400630922},{"$f":"'Population 2016'!N230*'Prevalence Rates'!N230","v":67.288485804416382},{"$f":"'Population 2016'!O230*'Prevalence Rates'!O230","v":32.27006794467362},{"$f":"'Population 2016'!P230*'Prevalence Rates'!P230","v":203.02996845425866},{"$f":"'Population 2016'!Q230*'Prevalence Rates'!Q230","v":57.571244843484585},{"$f":"'Population 2016'!R230*'Prevalence Rates'!R230","v":185.32991992234895},{"$f":"'Population 2016'!S230*'Prevalence Rates'!S230","v":1070.3842756612473},{"$f":"'Population 2016'!T230*'Prevalence Rates'!T230","v":593.17621936423211},{"$f":"'Population 2016'!U230*'Prevalence Rates'!U230","v":0},{"$f":"'Population 2016'!V230*'Prevalence Rates'!V230","v":73.294091239990294},{"$f":"'Population 2016'!W230*'Prevalence Rates'!W230","v":230.05441397719002},{"$f":"'Population 2016'!X230*'Prevalence Rates'!X230","v":229.94224702742051},{"$f":"'Population 2016'!Y230*'Prevalence Rates'!Y230","v":158.94991506915795},{"$f":"'Population 2016'!Z230*'Prevalence Rates'!Z230","v":164.8231011890318},{"$f":"'Population 2016'!AA230*'Prevalence Rates'!AA230","v":803.02188789128843},{"$f":"'Population 2016'!AB230*'Prevalence Rates'!AB230","v":536.23175928172782},{"$f":"'Population 2016'!AC230*'Prevalence Rates'!AC230","v":682.93859985440417},{"$f":"'Population 2016'!AD230*'Prevalence Rates'!AD230","v":91.124741567580699},{"$f":"'Population 2016'!AE230*'Prevalence Rates'!AE230","v":72.739747634069388},{"$f":"'Population 2016'!AF230*'Prevalence Rates'!AF230","v":42.880490172288283},{"$f":"'Population 2016'!AG230*'Prevalence Rates'!AG230","v":72.739747634069388},{"$f":"'Population 2016'!AH230*'Prevalence Rates'!AH230","v":126.31400630914827},{"$f":"'Population 2016'!AI230*'Prevalence Rates'!AI230","v":784.51434117932536},{"$f":"'Population 2016'!AJ230*'Prevalence Rates'!AJ230","v":23.230502305265709},{"$f":"'Population 2016'!AK230*'Prevalence Rates'!AK230","v":58.702001941276386},{"$f":"'Population 2016'!AL230*'Prevalence Rates'!AL230","v":45.110846881824806},{"$f":"'Population 2016'!AM230*'Prevalence Rates'!AM230","v":37.786241203591366},{"$f":"'Population 2016'!AN230*'Prevalence Rates'!AN230","v":3.8236986168405727},{"$f":"'Population 2016'!AO230*'Prevalence Rates'!AO230","v":3.8258796408638687},{"$f":"'Population 2016'!AP230*'Prevalence Rates'!AP230","v":139.49206503275906},{"$f":"'Population 2016'!AQ230*'Prevalence Rates'!AQ230","v":48.582310118903173},{"$f":"'Population 2016'!AR230*'Prevalence Rates'!AR230","v":3240.4950000000003},{"$f":"'Population 2016'!AS230*'Prevalence Rates'!AS230","v":38.070553263770925},{"$f":"'Population 2016'!AT230*'Prevalence Rates'!AT230","v":0},{"$f":"'Population 2016'!AU230*'Prevalence Rates'!AU230","v":0},{"$f":"'Population 2016'!AV230*'Prevalence Rates'!AV230","v":125.46340694006308},{"$f":"'Population 2016'!AW230*'Prevalence Rates'!AW230","v":84.841834506187809},{"$f":"'Population 2016'!AX230*'Prevalence Rates'!AX230","v":75.151856345547202},{"$f":"'Population 2016'!AY230*'Prevalence Rates'!AY230","v":486.72666828439691},{"$f":"'Population 2016'!AZ230*'Prevalence Rates'!AZ230","v":256.76105314244114},{"$f":"'Population 2016'!BA230*'Prevalence Rates'!BA230","v":3.5986896384372726},{"$f":"'Population 2016'!BB230*'Prevalence Rates'!BB230","v":61.259512254307218},{"$f":"'Population 2016'!BC230*'Prevalence Rates'!BC230","v":0},228]
[null,"Male 0-4",{"$f":"'Population 2016'!C231*'Prevalence Rates'!C231","v":0},{"$f":"'Population 2016'!D231*'Prevalence Rates'!D231","v":0},{"$f":"'Population 2016'!E231*'Prevalence Rates'!E231","v":0},{"$f":"'Population 2016'!F231*'Prevalence Rates'!F231","v":0},{"$f":"'Population 2016'!G231*'Prevalence Rates'!G231","v":0},{"$f":"'Population 2016'!H231*'Prevalence Rates'!H231","v":0},{"$f":"'Population 2016'!I231*'Prevalence Rates'!I231","v":0},{"$f":"'Population 2016'!J231*'Prevalence Rates'!J231","v":0},{"$f":"'Population 2016'!K231*'Prevalence Rates'!K231","v":0},{"$f":"'Population 2016'!L231*'Prevalence Rates'!L231","v":0},{"$f":"'Population 2016'!M231*'Prevalence Rates'!M231","v":0},{"$f":"'Population 2016'!N231*'Prevalence Rates'!N231","v":0},{"$f":"'Population 2016'!O231*'Prevalence Rates'!O231","v":0},{"$f":"'Population 2016'!P231*'Prevalence Rates'!P231","v":0},{"$f":"'Population 2016'!Q231*'Prevalence Rates'!Q231","v":0},{"$f":"'Population 2016'!R231*'Prevalence Rates'!R231","v":0},{"$f":"'Population 2016'!S231*'Prevalence Rates'!S231","v":0},{"$f":"'Population 2016'!T231*'Prevalence Rates'!T231","v":0},{"$f":"'Population 2016'!U231*'Prevalence Rates'!U231","v":0},{"$f":"'Population 2016'!V231*'Prevalence Rates'!V231","v":0},{"$f":"'Population 2016'!W231*'Prevalence Rates'!W231","v":0},{"$f":"'Population 2016'!X231*'Prevalence Rates'!X231","v":0},{"$f":"'Population 2016'!Y231*'Prevalence Rates'!Y231","v":0},{"$f":"'Population 2016'!Z231*'Prevalence Rates'!Z231","v":0},{"$f":"'Population 2016'!AA231*'Prevalence Rates'!AA231","v":0},{"$f":"'Population 2016'!AB231*'Prevalence Rates'!AB231","v":0},{"$f":"'Population 2016'!AC231*'Prevalence Rates'!AC231","v":0},{"$f":"'Population 2016'!AD231*'Prevalence Rates'!AD231","v":0},{"$f":"'Population 2016'!AE231*'Prevalence Rates'!AE231","v":0},{"$f":"'Population 2016'!AF231*'Prevalence Rates'!AF231","v":0},{"$f":"'Population 2016'!AG231*'Prevalence Rates'!AG231","v":0},{"$f":"'Population 2016'!AH231*'Prevalence Rates'!AH231","v":0},{"$f":"'Population 2016'!AI231*'Prevalence Rates'!AI231","v":0},{"$f":"'Population 2016'!AJ231*'Prevalence Rates'!AJ231","v":0},{"$f":"'Population 2016'!AK231*'Prevalence Rates'!AK231","v":0},{"$f":"'Population 2016'!AL231*'Prevalence Rates'!AL231","v":0},{"$f":"'Population 2016'!AM231*'Prevalence Rates'!AM231","v":0},{"$f":"'Population 2016'!AN231*'Prevalence Rates'!AN231","v":0},{"$f":"'Population 2016'!AO231*'Prevalence Rates'!AO231","v":0},{"$f":"'Population 2016'!AP231*'Prevalence Rates'!AP231","v":0},{"$f":"'Population 2016'!AQ231*'Prevalence Rates'!AQ231","v":0},{"$f":"'Population 2016'!AR231*'Prevalence Rates'!AR231","v":0},{"$f":"'Population 2016'!AS231*'Prevalence Rates'!AS231","v":0},{"$f":"'Population 2016'!AT231*'Prevalence Rates'!AT231","v":0},{"$f":"'Population 2016'!AU231*'Prevalence Rates'!AU231","v":0},{"$f":"'Population 2016'!AV231*'Prevalence Rates'!AV231","v":0},{"$f":"'Population 2016'!AW231*'Prevalence Rates'!AW231","v":0},{"$f":"'Population 2016'!AX231*'Prevalence Rates'!AX231","v":0},{"$f":"'Population 2016'!AY231*'Prevalence Rates'!AY231","v":0},{"$f":"'Population 2016'!AZ231*'Prevalence Rates'!AZ231","v":0},{"$f":"'Population 2016'!BA231*'Prevalence Rates'!BA231","v":0},{"$f":"'Population 2016'!BB231*'Prevalence Rates'!BB231","v":0},{"$f":"'Population 2016'!BC231*'Prevalence Rates'!BC231","v":0},229]
[null,"Male 5-9",{"$f":"'Population 2016'!C232*'Prevalence Rates'!C232","v":0},{"$f":"'Population 2016'!D232*'Prevalence Rates'!D232","v":0},{"$f":"'Population 2016'!E232*'Prevalence Rates'!E232","v":0},{"$f":"'Population 2016'!F232*'Prevalence Rates'!F232","v":0},{"$f":"'Population 2016'!G232*'Prevalence Rates'!G232","v":0},{"$f":"'Population 2016'!H232*'Prevalence Rates'!H232","v":0},{"$f":"'Population 2016'!I232*'Prevalence Rates'!I232","v":0},{"$f":"'Population 2016'!J232*'Prevalence Rates'!J232","v":0},{"$f":"'Population 2016'!K232*'Prevalence Rates'!K232","v":0},{"$f":"'Population 2016'!L232*'Prevalence Rates'!L232","v":0},{"$f":"'Population 2016'!M232*'Prevalence Rates'!M232","v":0},{"$f":"'Population 2016'!N232*'Prevalence Rates'!N232","v":0},{"$f":"'Population 2016'!O232*'Prevalence Rates'!O232","v":0},{"$f":"'Population 2016'!P232*'Prevalence Rates'!P232","v":0},{"$f":"'Population 2016'!Q232*'Prevalence Rates'!Q232","v":0},{"$f":"'Population 2016'!R232*'Prevalence Rates'!R232","v":0},{"$f":"'Population 2016'!S232*'Prevalence Rates'!S232","v":0},{"$f":"'Population 2016'!T232*'Prevalence Rates'!T232","v":0},{"$f":"'Population 2016'!U232*'Prevalence Rates'!U232","v":0},{"$f":"'Population 2016'!V232*'Prevalence Rates'!V232","v":0},{"$f":"'Population 2016'!W232*'Prevalence Rates'!W232","v":0},{"$f":"'Population 2016'!X232*'Prevalence Rates'!X232","v":0},{"$f":"'Population 2016'!Y232*'Prevalence Rates'!Y232","v":0},{"$f":"'Population 2016'!Z232*'Prevalence Rates'!Z232","v":0},{"$f":"'Population 2016'!AA232*'Prevalence Rates'!AA232","v":0},{"$f":"'Population 2016'!AB232*'Prevalence Rates'!AB232","v":0},{"$f":"'Population 2016'!AC232*'Prevalence Rates'!AC232","v":0},{"$f":"'Population 2016'!AD232*'Prevalence Rates'!AD232","v":0},{"$f":"'Population 2016'!AE232*'Prevalence Rates'!AE232","v":0},{"$f":"'Population 2016'!AF232*'Prevalence Rates'!AF232","v":0},{"$f":"'Population 2016'!AG232*'Prevalence Rates'!AG232","v":0},{"$f":"'Population 2016'!AH232*'Prevalence Rates'!AH232","v":0},{"$f":"'Population 2016'!AI232*'Prevalence Rates'!AI232","v":0},{"$f":"'Population 2016'!AJ232*'Prevalence Rates'!AJ232","v":0},{"$f":"'Population 2016'!AK232*'Prevalence Rates'!AK232","v":0},{"$f":"'Population 2016'!AL232*'Prevalence Rates'!AL232","v":0},{"$f":"'Population 2016'!AM232*'Prevalence Rates'!AM232","v":0},{"$f":"'Population 2016'!AN232*'Prevalence Rates'!AN232","v":0},{"$f":"'Population 2016'!AO232*'Prevalence Rates'!AO232","v":0},{"$f":"'Population 2016'!AP232*'Prevalence Rates'!AP232","v":0},{"$f":"'Population 2016'!AQ232*'Prevalence Rates'!AQ232","v":0},{"$f":"'Population 2016'!AR232*'Prevalence Rates'!AR232","v":0},{"$f":"'Population 2016'!AS232*'Prevalence Rates'!AS232","v":0},{"$f":"'Population 2016'!AT232*'Prevalence Rates'!AT232","v":0},{"$f":"'Population 2016'!AU232*'Prevalence Rates'!AU232","v":0},{"$f":"'Population 2016'!AV232*'Prevalence Rates'!AV232","v":0},{"$f":"'Population 2016'!AW232*'Prevalence Rates'!AW232","v":0},{"$f":"'Population 2016'!AX232*'Prevalence Rates'!AX232","v":0},{"$f":"'Population 2016'!AY232*'Prevalence Rates'!AY232","v":0},{"$f":"'Population 2016'!AZ232*'Prevalence Rates'!AZ232","v":0},{"$f":"'Population 2016'!BA232*'Prevalence Rates'!BA232","v":0},{"$f":"'Population 2016'!BB232*'Prevalence Rates'!BB232","v":0},{"$f":"'Population 2016'!BC232*'Prevalence Rates'!BC232","v":0},230]
[null,"Male 10-15",{"$f":"'Population 2016'!C233*'Prevalence Rates'!C233","v":0},{"$f":"'Population 2016'!D233*'Prevalence Rates'!D233","v":0},{"$f":"'Population 2016'!E233*'Prevalence Rates'!E233","v":0},{"$f":"'Population 2016'!F233*'Prevalence Rates'!F233","v":0},{"$f":"'Population 2016'!G233*'Prevalence Rates'!G233","v":0},{"$f":"'Population 2016'!H233*'Prevalence Rates'!H233","v":0},{"$f":"'Population 2016'!I233*'Prevalence Rates'!I233","v":0},{"$f":"'Population 2016'!J233*'Prevalence Rates'!J233","v":0},{"$f":"'Population 2016'!K233*'Prevalence Rates'!K233","v":0},{"$f":"'Population 2016'!L233*'Prevalence Rates'!L233","v":0},{"$f":"'Population 2016'!M233*'Prevalence Rates'!M233","v":0},{"$f":"'Population 2016'!N233*'Prevalence Rates'!N233","v":0},{"$f":"'Population 2016'!O233*'Prevalence Rates'!O233","v":0},{"$f":"'Population 2016'!P233*'Prevalence Rates'!P233","v":0},{"$f":"'Population 2016'!Q233*'Prevalence Rates'!Q233","v":0},{"$f":"'Population 2016'!R233*'Prevalence Rates'!R233","v":0},{"$f":"'Population 2016'!S233*'Prevalence Rates'!S233","v":0},{"$f":"'Population 2016'!T233*'Prevalence Rates'!T233","v":0},{"$f":"'Population 2016'!U233*'Prevalence Rates'!U233","v":0},{"$f":"'Population 2016'!V233*'Prevalence Rates'!V233","v":0},{"$f":"'Population 2016'!W233*'Prevalence Rates'!W233","v":0},{"$f":"'Population 2016'!X233*'Prevalence Rates'!X233","v":0},{"$f":"'Population 2016'!Y233*'Prevalence Rates'!Y233","v":0},{"$f":"'Population 2016'!Z233*'Prevalence Rates'!Z233","v":0},{"$f":"'Population 2016'!AA233*'Prevalence Rates'!AA233","v":0},{"$f":"'Population 2016'!AB233*'Prevalence Rates'!AB233","v":0},{"$f":"'Population 2016'!AC233*'Prevalence Rates'!AC233","v":0},{"$f":"'Population 2016'!AD233*'Prevalence Rates'!AD233","v":0},{"$f":"'Population 2016'!AE233*'Prevalence Rates'!AE233","v":0},{"$f":"'Population 2016'!AF233*'Prevalence Rates'!AF233","v":0},{"$f":"'Population 2016'!AG233*'Prevalence Rates'!AG233","v":0},{"$f":"'Population 2016'!AH233*'Prevalence Rates'!AH233","v":0},{"$f":"'Population 2016'!AI233*'Prevalence Rates'!AI233","v":0},{"$f":"'Population 2016'!AJ233*'Prevalence Rates'!AJ233","v":0},{"$f":"'Population 2016'!AK233*'Prevalence Rates'!AK233","v":0},{"$f":"'Population 2016'!AL233*'Prevalence Rates'!AL233","v":0},{"$f":"'Population 2016'!AM233*'Prevalence Rates'!AM233","v":0},{"$f":"'Population 2016'!AN233*'Prevalence Rates'!AN233","v":0},{"$f":"'Population 2016'!AO233*'Prevalence Rates'!AO233","v":0},{"$f":"'Population 2016'!AP233*'Prevalence Rates'!AP233","v":0},{"$f":"'Population 2016'!AQ233*'Prevalence Rates'!AQ233","v":0},{"$f":"'Population 2016'!AR233*'Prevalence Rates'!AR233","v":0},{"$f":"'Population 2016'!AS233*'Prevalence Rates'!AS233","v":0},{"$f":"'Population 2016'!AT233*'Prevalence Rates'!AT233","v":0},{"$f":"'Population 2016'!AU233*'Prevalence Rates'!AU233","v":0},{"$f":"'Population 2016'!AV233*'Prevalence Rates'!AV233","v":0},{"$f":"'Population 2016'!AW233*'Prevalence Rates'!AW233","v":0},{"$f":"'Population 2016'!AX233*'Prevalence Rates'!AX233","v":0},{"$f":"'Population 2016'!AY233*'Prevalence Rates'!AY233","v":0},{"$f":"'Population 2016'!AZ233*'Prevalence Rates'!AZ233","v":0},{"$f":"'Population 2016'!BA233*'Prevalence Rates'!BA233","v":0},{"$f":"'Population 2016'!BB233*'Prevalence Rates'!BB233","v":0},{"$f":"'Population 2016'!BC233*'Prevalence Rates'!BC233","v":0},231]
[null,"Male 16-19",{"$f":"'Population 2016'!C234*'Prevalence Rates'!C234","v":313.00518152866232},{"$f":"'Population 2016'!D234*'Prevalence Rates'!D234","v":722.48050318471326},{"$f":"'Population 2016'!E234*'Prevalence Rates'!E234","v":408.65531847133735},{"$f":"'Population 2016'!F234*'Prevalence Rates'!F234","v":96.446245222929932},{"$f":"'Population 2016'!G234*'Prevalence Rates'!G234","v":60.313070063694248},{"$f":"'Population 2016'!H234*'Prevalence Rates'!H234","v":227.99148248407636},{"$f":"'Population 2016'!I234*'Prevalence Rates'!I234","v":60.734949171974492},{"$f":"'Population 2016'!J234*'Prevalence Rates'!J234","v":180.53124840764329},{"$f":"'Population 2016'!K234*'Prevalence Rates'!K234","v":28.364999999999988},{"$f":"'Population 2016'!L234*'Prevalence Rates'!L234","v":53.385791560509531},{"$f":"'Population 2016'!M234*'Prevalence Rates'!M234","v":53.317691082802519},{"$f":"'Population 2016'!N234*'Prevalence Rates'!N234","v":121.94793630573247},{"$f":"'Population 2016'!O234*'Prevalence Rates'!O234","v":70.691617834394876},{"$f":"'Population 2016'!P234*'Prevalence Rates'!P234","v":240.47249044585976},{"$f":"'Population 2016'!Q234*'Prevalence Rates'!Q234","v":76.766751592356655},{"$f":"'Population 2016'!R234*'Prevalence Rates'!R234","v":246.90488216560499},{"$f":"'Population 2016'!S234*'Prevalence Rates'!S234","v":1541.5815095541398},{"$f":"'Population 2016'!T234*'Prevalence Rates'!T234","v":706.50821656050925},{"$f":"'Population 2016'!U234*'Prevalence Rates'!U234","v":0},{"$f":"'Population 2016'!V234*'Prevalence Rates'!V234","v":127.91350318471332},{"$f":"'Population 2016'!W234*'Prevalence Rates'!W234","v":369.97238216560504},{"$f":"'Population 2016'!X234*'Prevalence Rates'!X234","v":369.71828025477686},{"$f":"'Population 2016'!Y234*'Prevalence Rates'!Y234","v":328.56915668789799},{"$f":"'Population 2016'!Z234*'Prevalence Rates'!Z234","v":242.36193630573231},{"$f":"'Population 2016'!AA234*'Prevalence Rates'!AA234","v":1399.7839012738848},{"$f":"'Population 2016'!AB234*'Prevalence Rates'!AB234","v":839.74667006369418},{"$f":"'Population 2016'!AC234*'Prevalence Rates'!AC234","v":982.73972292993608},{"$f":"'Population 2016'!AD234*'Prevalence Rates'!AD234","v":149.6084445859872},{"$f":"'Population 2016'!AE234*'Prevalence Rates'!AE234","v":97.80942038216557},{"$f":"'Population 2016'!AF234*'Prevalence Rates'!AF234","v":37.39552547770699},{"$f":"'Population 2016'!AG234*'Prevalence Rates'!AG234","v":97.80942038216557},{"$f":"'Population 2016'!AH234*'Prevalence Rates'!AH234","v":398.18235668789805},{"$f":"'Population 2016'!AI234*'Prevalence Rates'!AI234","v":1092.9208757961776},{"$f":"'Population 2016'!AJ234*'Prevalence Rates'!AJ234","v":75.472929936305704},{"$f":"'Population 2016'!AK234*'Prevalence Rates'!AK234","v":110.53199999999998},{"$f":"'Population 2016'!AL234*'Prevalence Rates'!AL234","v":62.386681528662407},{"$f":"'Population 2016'!AM234*'Prevalence Rates'!AM234","v":184.6639012738853},{"$f":"'Population 2016'!AN234*'Prevalence Rates'!AN234","v":5.8814684713375778},{"$f":"'Population 2016'!AO234*'Prevalence Rates'!AO234","v":5.87464968152866},{"$f":"'Population 2016'!AP234*'Prevalence Rates'!AP234","v":105.74369426751589},{"$f":"'Population 2016'!AQ234*'Prevalence Rates'!AQ234","v":149.16714649681523},{"$f":"'Population 2016'!AR234*'Prevalence Rates'!AR234","v":4923.9809999999989},{"$f":"'Population 2016'!AS234*'Prevalence Rates'!AS234","v":60.753668789808899},{"$f":"'Population 2016'!AT234*'Prevalence Rates'!AT234","v":0},{"$f":"'Population 2016'!AU234*'Prevalence Rates'!AU234","v":0},{"$f":"'Population 2016'!AV234*'Prevalence Rates'!AV234","v":91.123509554140114},{"$f":"'Population 2016'!AW234*'Prevalence Rates'!AW234","v":205.80681210191082},{"$f":"'Population 2016'!AX234*'Prevalence Rates'!AX234","v":172.57657643312095},{"$f":"'Population 2016'!AY234*'Prevalence Rates'!AY234","v":699.16490445859847},{"$f":"'Population 2016'!AZ234*'Prevalence Rates'!AZ234","v":321.64114968152865},{"$f":"'Population 2016'!BA234*'Prevalence Rates'!BA234","v":19.197515923566872},{"$f":"'Population 2016'!BB234*'Prevalence Rates'!BB234","v":167.51493630573242},{"$f":"'Population 2016'!BC234*'Prevalence Rates'!BC234","v":0},232]
[null,"Male 20-24",{"$f":"'Population 2016'!C235*'Prevalence Rates'!C235","v":520.99225796178325},{"$f":"'Population 2016'!D235*'Prevalence Rates'!D235","v":971.89551592356679},{"$f":"'Population 2016'!E235*'Prevalence Rates'!E235","v":441.27361146496793},{"$f":"'Population 2016'!F235*'Prevalence Rates'!F235","v":100.66457006369426},{"$f":"'Population 2016'!G235*'Prevalence Rates'!G235","v":159.75783439490439},{"$f":"'Population 2016'!H235*'Prevalence Rates'!H235","v":249.11277133757955},{"$f":"'Population 2016'!I235*'Prevalence Rates'!I235","v":49.919136305732458},{"$f":"'Population 2016'!J235*'Prevalence Rates'!J235","v":204.5316401273885},{"$f":"'Population 2016'!K235*'Prevalence Rates'!K235","v":29.62968152866241},{"$f":"'Population 2016'!L235*'Prevalence Rates'!L235","v":58.630711433121},{"$f":"'Population 2016'!M235*'Prevalence Rates'!M235","v":58.555920382165574},{"$f":"'Population 2016'!N235*'Prevalence Rates'!N235","v":154.73582484076431},{"$f":"'Population 2016'!O235*'Prevalence Rates'!O235","v":80.159245222929911},{"$f":"'Population 2016'!P235*'Prevalence Rates'!P235","v":285.66416560509543},{"$f":"'Population 2016'!Q235*'Prevalence Rates'!Q235","v":97.467898089171939},{"$f":"'Population 2016'!R235*'Prevalence Rates'!R235","v":270.65525159235654},{"$f":"'Population 2016'!S235*'Prevalence Rates'!S235","v":2506.7619745222923},{"$f":"'Population 2016'!T235*'Prevalence Rates'!T235","v":1289.9343630573244},{"$f":"'Population 2016'!U235*'Prevalence Rates'!U235","v":0},{"$f":"'Population 2016'!V235*'Prevalence Rates'!V235","v":150.31643312101906},{"$f":"'Population 2016'!W235*'Prevalence Rates'!W235","v":606.89047643312097},{"$f":"'Population 2016'!X235*'Prevalence Rates'!X235","v":606.47365605095501},{"$f":"'Population 2016'!Y235*'Prevalence Rates'!Y235","v":377.40585382165591},{"$f":"'Population 2016'!Z235*'Prevalence Rates'!Z235","v":578.64833121019069},{"$f":"'Population 2016'!AA235*'Prevalence Rates'!AA235","v":1913.7685414012733},{"$f":"'Population 2016'!AB235*'Prevalence Rates'!AB235","v":1125.0289834394903},{"$f":"'Population 2016'!AC235*'Prevalence Rates'!AC235","v":1415.9437337579614},{"$f":"'Population 2016'!AD235*'Prevalence Rates'!AD235","v":246.11844840764323},{"$f":"'Population 2016'!AE235*'Prevalence Rates'!AE235","v":94.666949044585948},{"$f":"'Population 2016'!AF235*'Prevalence Rates'!AF235","v":34.112015923566858},{"$f":"'Population 2016'!AG235*'Prevalence Rates'!AG235","v":94.666949044585948},{"$f":"'Population 2016'!AH235*'Prevalence Rates'!AH235","v":462.13910828025473},{"$f":"'Population 2016'!AI235*'Prevalence Rates'!AI235","v":1811.3174484076424},{"$f":"'Population 2016'!AJ235*'Prevalence Rates'!AJ235","v":84.745318471337541},{"$f":"'Population 2016'!AK235*'Prevalence Rates'!AK235","v":144.02099999999999},{"$f":"'Population 2016'!AL235*'Prevalence Rates'!AL235","v":65.775095541401257},{"$f":"'Population 2016'!AM235*'Prevalence Rates'!AM235","v":207.5505573248407},{"$f":"'Population 2016'!AN235*'Prevalence Rates'!AN235","v":9.2143006050955378},{"$f":"'Population 2016'!AO235*'Prevalence Rates'!AO235","v":9.2036178343949011},{"$f":"'Population 2016'!AP235*'Prevalence Rates'!AP235","v":122.08256369426748},{"$f":"'Population 2016'!AQ235*'Prevalence Rates'!AQ235","v":172.86156687898082},{"$f":"'Population 2016'!AR235*'Prevalence Rates'!AR235","v":6966.6269999999986},{"$f":"'Population 2016'!AS235*'Prevalence Rates'!AS235","v":49.93452229299362},{"$f":"'Population 2016'!AT235*'Prevalence Rates'!AT235","v":0},{"$f":"'Population 2016'!AU235*'Prevalence Rates'!AU235","v":0},{"$f":"'Population 2016'!AV235*'Prevalence Rates'!AV235","v":99.2273789808917},{"$f":"'Population 2016'!AW235*'Prevalence Rates'!AW235","v":244.47692675159234},{"$f":"'Population 2016'!AX235*'Prevalence Rates'!AX235","v":197.82358280254769},{"$f":"'Population 2016'!AY235*'Prevalence Rates'!AY235","v":1000.371248407643},{"$f":"'Population 2016'!AZ235*'Prevalence Rates'!AZ235","v":374.52908216560508},{"$f":"'Population 2016'!BA235*'Prevalence Rates'!BA235","v":24.352404458598716},{"$f":"'Population 2016'!BB235*'Prevalence Rates'!BB235","v":179.82372611464959},{"$f":"'Population 2016'!BC235*'Prevalence Rates'!BC235","v":0},233]
[null,"Male 25-29",{"$f":"'Population 2016'!C236*'Prevalence Rates'!C236","v":744.78080573248405},{"$f":"'Population 2016'!D236*'Prevalence Rates'!D236","v":1180.7894617834399},{"$f":"'Population 2016'!E236*'Prevalence Rates'!E236","v":414.76922292993623},{"$f":"'Population 2016'!F236*'Prevalence Rates'!F236","v":77.083442675159262},{"$f":"'Population 2016'!G236*'Prevalence Rates'!G236","v":122.20341401273886},{"$f":"'Population 2016'!H236*'Prevalence Rates'!H236","v":170.10398503184717},{"$f":"'Population 2016'!I236*'Prevalence Rates'!I236","v":33.772705286624202},{"$f":"'Population 2016'!J236*'Prevalence Rates'!J236","v":104.53371974522295},{"$f":"'Population 2016'!K236*'Prevalence Rates'!K236","v":20.322770700636944},{"$f":"'Population 2016'!L236*'Prevalence Rates'!L236","v":47.821508885350326},{"$f":"'Population 2016'!M236*'Prevalence Rates'!M236","v":47.760506369426743},{"$f":"'Population 2016'!N236*'Prevalence Rates'!N236","v":140.66321656050962},{"$f":"'Population 2016'!O236*'Prevalence Rates'!O236","v":62.972656050955422},{"$f":"'Population 2016'!P236*'Prevalence Rates'!P236","v":226.02056369426754},{"$f":"'Population 2016'!Q236*'Prevalence Rates'!Q236","v":72.346783439490451},{"$f":"'Population 2016'!R236*'Prevalence Rates'!R236","v":185.52722929936309},{"$f":"'Population 2016'!S236*'Prevalence Rates'!S236","v":2104.0344076433125},{"$f":"'Population 2016'!T236*'Prevalence Rates'!T236","v":1236.5992675159237},{"$f":"'Population 2016'!U236*'Prevalence Rates'!U236","v":0},{"$f":"'Population 2016'!V236*'Prevalence Rates'!V236","v":144.38003184713375},{"$f":"'Population 2016'!W236*'Prevalence Rates'!W236","v":330.67707515923581},{"$f":"'Population 2016'!X236*'Prevalence Rates'!X236","v":330.44996178343945},{"$f":"'Population 2016'!Y236*'Prevalence Rates'!Y236","v":257.41368630573248},{"$f":"'Population 2016'!Z236*'Prevalence Rates'!Z236","v":600.40704458598714},{"$f":"'Population 2016'!AA236*'Prevalence Rates'!AA236","v":1616.3682898089173},{"$f":"'Population 2016'!AB236*'Prevalence Rates'!AB236","v":1320.2073171974525},{"$f":"'Population 2016'!AC236*'Prevalence Rates'!AC236","v":1229.8435566878982},{"$f":"'Population 2016'!AD236*'Prevalence Rates'!AD236","v":208.27767324840769},{"$f":"'Population 2016'!AE236*'Prevalence Rates'!AE236","v":94.32672929936308},{"$f":"'Population 2016'!AF236*'Prevalence Rates'!AF236","v":35.329127388535028},{"$f":"'Population 2016'!AG236*'Prevalence Rates'!AG236","v":94.32672929936308},{"$f":"'Population 2016'!AH236*'Prevalence Rates'!AH236","v":351.7418407643313},{"$f":"'Population 2016'!AI236*'Prevalence Rates'!AI236","v":1703.242234394904},{"$f":"'Population 2016'!AJ236*'Prevalence Rates'!AJ236","v":79.307261146496813},{"$f":"'Population 2016'!AK236*'Prevalence Rates'!AK236","v":127.80600000000004},{"$f":"'Population 2016'!AL236*'Prevalence Rates'!AL236","v":41.331898089171986},{"$f":"'Population 2016'!AM236*'Prevalence Rates'!AM236","v":170.97065286624206},{"$f":"'Population 2016'!AN236*'Prevalence Rates'!AN236","v":8.6293676751592372},{"$f":"'Population 2016'!AO236*'Prevalence Rates'!AO236","v":8.6193630573248416},{"$f":"'Population 2016'!AP236*'Prevalence Rates'!AP236","v":95.890414012738859},{"$f":"'Population 2016'!AQ236*'Prevalence Rates'!AQ236","v":132.38703184713376},{"$f":"'Population 2016'!AR236*'Prevalence Rates'!AR236","v":6136.1200000000017},{"$f":"'Population 2016'!AS236*'Prevalence Rates'!AS236","v":33.783114649681536},{"$f":"'Population 2016'!AT236*'Prevalence Rates'!AT236","v":0},{"$f":"'Population 2016'!AU236*'Prevalence Rates'!AU236","v":0},{"$f":"'Population 2016'!AV236*'Prevalence Rates'!AV236","v":63.942334394904478},{"$f":"'Population 2016'!AW236*'Prevalence Rates'!AW236","v":175.30370700636948},{"$f":"'Population 2016'!AX236*'Prevalence Rates'!AX236","v":96.343614649681541},{"$f":"'Population 2016'!AY236*'Prevalence Rates'!AY236","v":647.36205095541402},{"$f":"'Population 2016'!AZ236*'Prevalence Rates'!AZ236","v":310.94181210191095},{"$f":"'Population 2016'!BA236*'Prevalence Rates'!BA236","v":15.995987261146498},{"$f":"'Population 2016'!BB236*'Prevalence Rates'!BB236","v":154.82359872611465},{"$f":"'Population 2016'!BC236*'Prevalence Rates'!BC236","v":0},234]
[null,"Male 30-34",{"$f":"'Population 2016'!C237*'Prevalence Rates'!C237","v":644.56360828025481},{"$f":"'Population 2016'!D237*'Prevalence Rates'!D237","v":1143.1624076433125},{"$f":"'Population 2016'!E237*'Prevalence Rates'!E237","v":484.56212101910819},{"$f":"'Population 2016'!F237*'Prevalence Rates'!F237","v":86.836092356687928},{"$f":"'Population 2016'!G237*'Prevalence Rates'!G237","v":57.590114649681531},{"$f":"'Population 2016'!H237*'Prevalence Rates'!H237","v":153.69213630573253},{"$f":"'Population 2016'!I237*'Prevalence Rates'!I237","v":37.638255891719744},{"$f":"'Population 2016'!J237*'Prevalence Rates'!J237","v":86.373200636942698},{"$f":"'Population 2016'!K237*'Prevalence Rates'!K237","v":20.852929936305731},{"$f":"'Population 2016'!L237*'Prevalence Rates'!L237","v":55.333699936305742},{"$f":"'Population 2016'!M237*'Prevalence Rates'!M237","v":55.263114649681519},{"$f":"'Population 2016'!N237*'Prevalence Rates'!N237","v":96.96384394904463},{"$f":"'Population 2016'!O237*'Prevalence Rates'!O237","v":67.500101910828036},{"$f":"'Population 2016'!P237*'Prevalence Rates'!P237","v":190.85105414012742},{"$f":"'Population 2016'!Q237*'Prevalence Rates'!Q237","v":78.674490445859874},{"$f":"'Population 2016'!R237*'Prevalence Rates'!R237","v":151.16435987261147},{"$f":"'Population 2016'!S237*'Prevalence Rates'!S237","v":1788.6136050955417},{"$f":"'Population 2016'!T237*'Prevalence Rates'!T237","v":982.40786624203827},{"$f":"'Population 2016'!U237*'Prevalence Rates'!U237","v":0},{"$f":"'Population 2016'!V237*'Prevalence Rates'!V237","v":171.7715923566879},{"$f":"'Population 2016'!W237*'Prevalence Rates'!W237","v":322.87495541401285},{"$f":"'Population 2016'!X237*'Prevalence Rates'!X237","v":322.65320063694264},{"$f":"'Population 2016'!Y237*'Prevalence Rates'!Y237","v":262.81515382165605},{"$f":"'Population 2016'!Z237*'Prevalence Rates'!Z237","v":468.72461146496806},{"$f":"'Population 2016'!AA237*'Prevalence Rates'!AA237","v":1360.239812101911},{"$f":"'Population 2016'!AB237*'Prevalence Rates'!AB237","v":1254.3827464968156},{"$f":"'Population 2016'!AC237*'Prevalence Rates'!AC237","v":1005.9935675159237},{"$f":"'Population 2016'!AD237*'Prevalence Rates'!AD237","v":151.25135159235671},{"$f":"'Population 2016'!AE237*'Prevalence Rates'!AE237","v":102.58752229299365},{"$f":"'Population 2016'!AF237*'Prevalence Rates'!AF237","v":33.723257961783439},{"$f":"'Population 2016'!AG237*'Prevalence Rates'!AG237","v":102.58752229299365},{"$f":"'Population 2016'!AH237*'Prevalence Rates'!AH237","v":328.93815286624215},{"$f":"'Population 2016'!AI237*'Prevalence Rates'!AI237","v":1399.4897235668786},{"$f":"'Population 2016'!AJ237*'Prevalence Rates'!AJ237","v":80.572802547770706},{"$f":"'Population 2016'!AK237*'Prevalence Rates'!AK237","v":99.703000000000031},{"$f":"'Population 2016'!AL237*'Prevalence Rates'!AL237","v":38.407471337579629},{"$f":"'Population 2016'!AM237*'Prevalence Rates'!AM237","v":151.43742038216564},{"$f":"'Population 2016'!AN237*'Prevalence Rates'!AN237","v":7.8623127707006377},{"$f":"'Population 2016'!AO237*'Prevalence Rates'!AO237","v":7.8531974522293},{"$f":"'Population 2016'!AP237*'Prevalence Rates'!AP237","v":101.99579617834397},{"$f":"'Population 2016'!AQ237*'Prevalence Rates'!AQ237","v":117.98950318471339},{"$f":"'Population 2016'!AR237*'Prevalence Rates'!AR237","v":5399.3560000000016},{"$f":"'Population 2016'!AS237*'Prevalence Rates'!AS237","v":37.649856687898094},{"$f":"'Population 2016'!AT237*'Prevalence Rates'!AT237","v":0},{"$f":"'Population 2016'!AU237*'Prevalence Rates'!AU237","v":0},{"$f":"'Population 2016'!AV237*'Prevalence Rates'!AV237","v":47.736563694267531},{"$f":"'Population 2016'!AW237*'Prevalence Rates'!AW237","v":170.93929936305739},{"$f":"'Population 2016'!AX237*'Prevalence Rates'!AX237","v":75.872627388535037},{"$f":"'Population 2016'!AY237*'Prevalence Rates'!AY237","v":613.29960509554144},{"$f":"'Population 2016'!AZ237*'Prevalence Rates'!AZ237","v":283.97517707006381},{"$f":"'Population 2016'!BA237*'Prevalence Rates'!BA237","v":14.605031847133759},{"$f":"'Population 2016'!BB237*'Prevalence Rates'!BB237","v":141.65512738853505},{"$f":"'Population 2016'!BC237*'Prevalence Rates'!BC237","v":0},235]
[null,"Male 35-39",{"$f":"'Population 2016'!C238*'Prevalence Rates'!C238","v":764.00403184713343},{"$f":"'Population 2016'!D238*'Prevalence Rates'!D238","v":1559.2999299363055},{"$f":"'Population 2016'!E238*'Prevalence Rates'!E238","v":785.97852229299303},{"$f":"'Population 2016'!F238*'Prevalence Rates'!F238","v":132.28419426751591},{"$f":"'Population 2016'!G238*'Prevalence Rates'!G238","v":72.876331210191054},{"$f":"'Population 2016'!H238*'Prevalence Rates'!H238","v":294.56976305732479},{"$f":"'Population 2016'!I238*'Prevalence Rates'!I238","v":77.026864012738812},{"$f":"'Population 2016'!J238*'Prevalence Rates'!J238","v":149.68632802547768},{"$f":"'Population 2016'!K238*'Prevalence Rates'!K238","v":37.170382165605076},{"$f":"'Population 2016'!L238*'Prevalence Rates'!L238","v":82.986219522292956},{"$f":"'Population 2016'!M238*'Prevalence Rates'!M238","v":82.880359872611407},{"$f":"'Population 2016'!N238*'Prevalence Rates'!N238","v":148.06362101910827},{"$f":"'Population 2016'!O238*'Prevalence Rates'!O238","v":110.81090445859869},{"$f":"'Population 2016'!P238*'Prevalence Rates'!P238","v":318.06496178343934},{"$f":"'Population 2016'!Q238*'Prevalence Rates'!Q238","v":133.09394904458594},{"$f":"'Population 2016'!R238*'Prevalence Rates'!R238","v":319.87471974522282},{"$f":"'Population 2016'!S238*'Prevalence Rates'!S238","v":2548.0081146496805},{"$f":"'Population 2016'!T238*'Prevalence Rates'!T238","v":1298.24953821656},{"$f":"'Population 2016'!U238*'Prevalence Rates'!U238","v":0},{"$f":"'Population 2016'!V238*'Prevalence Rates'!V238","v":263.90971337579606},{"$f":"'Population 2016'!W238*'Prevalence Rates'!W238","v":492.5508891719744},{"$f":"'Population 2016'!X238*'Prevalence Rates'!X238","v":492.21259872611432},{"$f":"'Population 2016'!Y238*'Prevalence Rates'!Y238","v":423.20422547770681},{"$f":"'Population 2016'!Z238*'Prevalence Rates'!Z238","v":557.48538853503146},{"$f":"'Population 2016'!AA238*'Prevalence Rates'!AA238","v":2159.356996815286},{"$f":"'Population 2016'!AB238*'Prevalence Rates'!AB238","v":1693.4346496815283},{"$f":"'Population 2016'!AC238*'Prevalence Rates'!AC238","v":1519.1688668789805},{"$f":"'Population 2016'!AD238*'Prevalence Rates'!AD238","v":246.78208089171966},{"$f":"'Population 2016'!AE238*'Prevalence Rates'!AE238","v":190.45544267515919},{"$f":"'Population 2016'!AF238*'Prevalence Rates'!AF238","v":46.787519108280229},{"$f":"'Population 2016'!AG238*'Prevalence Rates'!AG238","v":190.45544267515919},{"$f":"'Population 2016'!AH238*'Prevalence Rates'!AH238","v":610.65901910828018},{"$f":"'Population 2016'!AI238*'Prevalence Rates'!AI238","v":1942.655587261145},{"$f":"'Population 2016'!AJ238*'Prevalence Rates'!AJ238","v":127.4744267515923},{"$f":"'Population 2016'!AK238*'Prevalence Rates'!AK238","v":118.22099999999998},{"$f":"'Population 2016'!AL238*'Prevalence Rates'!AL238","v":76.820388535031825},{"$f":"'Population 2016'!AM238*'Prevalence Rates'!AM238","v":281.90337579617824},{"$f":"'Population 2016'!AN238*'Prevalence Rates'!AN238","v":16.402762070063687},{"$f":"'Population 2016'!AO238*'Prevalence Rates'!AO238","v":16.383745222929928},{"$f":"'Population 2016'!AP238*'Prevalence Rates'!AP238","v":165.6839808917197},{"$f":"'Population 2016'!AQ238*'Prevalence Rates'!AQ238","v":197.45546496815277},{"$f":"'Population 2016'!AR238*'Prevalence Rates'!AR238","v":8010.6649999999981},{"$f":"'Population 2016'!AS238*'Prevalence Rates'!AS238","v":77.050605095541371},{"$f":"'Population 2016'!AT238*'Prevalence Rates'!AT238","v":0},{"$f":"'Population 2016'!AU238*'Prevalence Rates'!AU238","v":0},{"$f":"'Population 2016'!AV238*'Prevalence Rates'!AV238","v":104.48234713375794},{"$f":"'Population 2016'!AW238*'Prevalence Rates'!AW238","v":316.70604458598723},{"$f":"'Population 2016'!AX238*'Prevalence Rates'!AX238","v":130.53998407643306},{"$f":"'Population 2016'!AY238*'Prevalence Rates'!AY238","v":945.42267515923527},{"$f":"'Population 2016'!AZ238*'Prevalence Rates'!AZ238","v":443.47319490445858},{"$f":"'Population 2016'!BA238*'Prevalence Rates'!BA238","v":21.211098726114642},{"$f":"'Population 2016'!BB238*'Prevalence Rates'!BB238","v":249.54515923566868},{"$f":"'Population 2016'!BC238*'Prevalence Rates'!BC238","v":0},236]
[null,"Male 40-44",{"$f":"'Population 2016'!C239*'Prevalence Rates'!C239","v":693.03737898089139},{"$f":"'Population 2016'!D239*'Prevalence Rates'!D239","v":1569.8523216560507},{"$f":"'Population 2016'!E239*'Prevalence Rates'!E239","v":873.93084076433058},{"$f":"'Population 2016'!F239*'Prevalence Rates'!F239","v":171.99575159235667},{"$f":"'Population 2016'!G239*'Prevalence Rates'!G239","v":84.447910828025442},{"$f":"'Population 2016'!H239*'Prevalence Rates'!H239","v":384.4568598726114},{"$f":"'Population 2016'!I239*'Prevalence Rates'!I239","v":106.98175557324835},{"$f":"'Population 2016'!J239*'Prevalence Rates'!J239","v":209.51945222929933},{"$f":"'Population 2016'!K239*'Prevalence Rates'!K239","v":52.534140127388511},{"$f":"'Population 2016'!L239*'Prevalence Rates'!L239","v":90.180071369426713},{"$f":"'Population 2016'!M239*'Prevalence Rates'!M239","v":90.065035031847074},{"$f":"'Population 2016'!N239*'Prevalence Rates'!N239","v":148.85259235668789},{"$f":"'Population 2016'!O239*'Prevalence Rates'!O239","v":139.09077070063688},{"$f":"'Population 2016'!P239*'Prevalence Rates'!P239","v":392.49125796178328},{"$f":"'Population 2016'!Q239*'Prevalence Rates'!Q239","v":180.71200636942669},{"$f":"'Population 2016'!R239*'Prevalence Rates'!R239","v":390.45528025477688},{"$f":"'Population 2016'!S239*'Prevalence Rates'!S239","v":2778.0855859872599},{"$f":"'Population 2016'!T239*'Prevalence Rates'!T239","v":1283.3653980891715},{"$f":"'Population 2016'!U239*'Prevalence Rates'!U239","v":0},{"$f":"'Population 2016'!V239*'Prevalence Rates'!V239","v":301.08009554140114},{"$f":"'Population 2016'!W239*'Prevalence Rates'!W239","v":600.55826751592349},{"$f":"'Population 2016'!X239*'Prevalence Rates'!X239","v":600.14579617834352},{"$f":"'Population 2016'!Y239*'Prevalence Rates'!Y239","v":527.11175063694247},{"$f":"'Population 2016'!Z239*'Prevalence Rates'!Z239","v":503.68185987261114},{"$f":"'Population 2016'!AA239*'Prevalence Rates'!AA239","v":2431.2043853503178},{"$f":"'Population 2016'!AB239*'Prevalence Rates'!AB239","v":1730.4048713375794},{"$f":"'Population 2016'!AC239*'Prevalence Rates'!AC239","v":1676.2384318471334},{"$f":"'Population 2016'!AD239*'Prevalence Rates'!AD239","v":255.14757515923557},{"$f":"'Population 2016'!AE239*'Prevalence Rates'!AE239","v":186.95343312101906},{"$f":"'Population 2016'!AF239*'Prevalence Rates'!AF239","v":61.299156050955382},{"$f":"'Population 2016'!AG239*'Prevalence Rates'!AG239","v":186.95343312101906},{"$f":"'Population 2016'!AH239*'Prevalence Rates'!AH239","v":726.39559872611449},{"$f":"'Population 2016'!AI239*'Prevalence Rates'!AI239","v":2036.8477337579602},{"$f":"'Population 2016'!AJ239*'Prevalence Rates'!AJ239","v":140.19229299363053},{"$f":"'Population 2016'!AK239*'Prevalence Rates'!AK239","v":144.82699999999997},{"$f":"'Population 2016'!AL239*'Prevalence Rates'!AL239","v":96.230522292993612},{"$f":"'Population 2016'!AM239*'Prevalence Rates'!AM239","v":330.83638535031838},{"$f":"'Population 2016'!AN239*'Prevalence Rates'!AN239","v":12.369295987261143},{"$f":"'Population 2016'!AO239*'Prevalence Rates'!AO239","v":12.354955414012732},{"$f":"'Population 2016'!AP239*'Prevalence Rates'!AP239","v":180.28834394904453},{"$f":"'Population 2016'!AQ239*'Prevalence Rates'!AQ239","v":231.43159235668779},{"$f":"'Population 2016'!AR239*'Prevalence Rates'!AR239","v":8813.3629999999976},{"$f":"'Population 2016'!AS239*'Prevalence Rates'!AS239","v":107.01472929936303},{"$f":"'Population 2016'!AT239*'Prevalence Rates'!AT239","v":0},{"$f":"'Population 2016'!AU239*'Prevalence Rates'!AU239","v":0},{"$f":"'Population 2016'!AV239*'Prevalence Rates'!AV239","v":144.74386624203817},{"$f":"'Population 2016'!AW239*'Prevalence Rates'!AW239","v":380.45524840764324},{"$f":"'Population 2016'!AX239*'Prevalence Rates'!AX239","v":182.25477707006362},{"$f":"'Population 2016'!AY239*'Prevalence Rates'!AY239","v":1111.8564585987256},{"$f":"'Population 2016'!AZ239*'Prevalence Rates'!AZ239","v":498.00702165605094},{"$f":"'Population 2016'!BA239*'Prevalence Rates'!BA239","v":22.917738853503174},{"$f":"'Population 2016'!BB239*'Prevalence Rates'!BB239","v":323.93388535031835},{"$f":"'Population 2016'!BC239*'Prevalence Rates'!BC239","v":0},237]
[null,"Male 45-49",{"$f":"'Population 2016'!C240*'Prevalence Rates'!C240","v":662.91716560509519},{"$f":"'Population 2016'!D240*'Prevalence Rates'!D240","v":1528.5686433121018},{"$f":"'Population 2016'!E240*'Prevalence Rates'!E240","v":863.85814012738797},{"$f":"'Population 2016'!F240*'Prevalence Rates'!F240","v":180.04472611464968},{"$f":"'Population 2016'!G240*'Prevalence Rates'!G240","v":67.701146496815255},{"$f":"'Population 2016'!H240*'Prevalence Rates'!H240","v":450.03306305732474},{"$f":"'Population 2016'!I240*'Prevalence Rates'!I240","v":135.52499942675152},{"$f":"'Population 2016'!J240*'Prevalence Rates'!J240","v":254.61679617834395},{"$f":"'Population 2016'!K240*'Prevalence Rates'!K240","v":70.725414012738824},{"$f":"'Population 2016'!L240*'Prevalence Rates'!L240","v":115.47421949044582},{"$f":"'Population 2016'!M240*'Prevalence Rates'!M240","v":115.32691719745216},{"$f":"'Population 2016'!N240*'Prevalence Rates'!N240","v":195.2562611464968},{"$f":"'Population 2016'!O240*'Prevalence Rates'!O240","v":158.97566242038212},{"$f":"'Population 2016'!P240*'Prevalence Rates'!P240","v":439.5170254777068},{"$f":"'Population 2016'!Q240*'Prevalence Rates'!Q240","v":189.86184713375786},{"$f":"'Population 2016'!R240*'Prevalence Rates'!R240","v":426.64683439490426},{"$f":"'Population 2016'!S240*'Prevalence Rates'!S240","v":2881.7767643312095},{"$f":"'Population 2016'!T240*'Prevalence Rates'!T240","v":1274.8348726114643},{"$f":"'Population 2016'!U240*'Prevalence Rates'!U240","v":0},{"$f":"'Population 2016'!V240*'Prevalence Rates'!V240","v":309.6880254777069},{"$f":"'Population 2016'!W240*'Prevalence Rates'!W240","v":625.7368662420381},{"$f":"'Population 2016'!X240*'Prevalence Rates'!X240","v":625.30710191082767},{"$f":"'Population 2016'!Y240*'Prevalence Rates'!Y240","v":586.89094585987232},{"$f":"'Population 2016'!Z240*'Prevalence Rates'!Z240","v":494.6003821656048},{"$f":"'Population 2016'!AA240*'Prevalence Rates'!AA240","v":2666.9036942675152},{"$f":"'Population 2016'!AB240*'Prevalence Rates'!AB240","v":1702.4233987261143},{"$f":"'Population 2016'!AC240*'Prevalence Rates'!AC240","v":1832.5314802547764},{"$f":"'Population 2016'!AD240*'Prevalence Rates'!AD240","v":267.12922929936298},{"$f":"'Population 2016'!AE240*'Prevalence Rates'!AE240","v":218.3953184713375},{"$f":"'Population 2016'!AF240*'Prevalence Rates'!AF240","v":68.562949044585949},{"$f":"'Population 2016'!AG240*'Prevalence Rates'!AG240","v":218.3953184713375},{"$f":"'Population 2016'!AH240*'Prevalence Rates'!AH240","v":803.88214012738842},{"$f":"'Population 2016'!AI240*'Prevalence Rates'!AI240","v":2090.3755261146484},{"$f":"'Population 2016'!AJ240*'Prevalence Rates'!AJ240","v":162.65859872611458},{"$f":"'Population 2016'!AK240*'Prevalence Rates'!AK240","v":158.74599999999998},{"$f":"'Population 2016'!AL240*'Prevalence Rates'!AL240","v":122.61244585987259},{"$f":"'Population 2016'!AM240*'Prevalence Rates'!AM240","v":363.31003184713364},{"$f":"'Population 2016'!AN240*'Prevalence Rates'!AN240","v":17.338011974522285},{"$f":"'Population 2016'!AO240*'Prevalence Rates'!AO240","v":17.317910828025472},{"$f":"'Population 2016'!AP240*'Prevalence Rates'!AP240","v":207.95818471337574},{"$f":"'Population 2016'!AQ240*'Prevalence Rates'!AQ240","v":281.7768407643311},{"$f":"'Population 2016'!AR240*'Prevalence Rates'!AR240","v":9367.4419999999991},{"$f":"'Population 2016'!AS240*'Prevalence Rates'!AS240","v":135.56677070063691},{"$f":"'Population 2016'!AT240*'Prevalence Rates'!AT240","v":0},{"$f":"'Population 2016'!AU240*'Prevalence Rates'!AU240","v":0},{"$f":"'Population 2016'!AV240*'Prevalence Rates'!AV240","v":163.71292356687894},{"$f":"'Population 2016'!AW240*'Prevalence Rates'!AW240","v":423.37395541401276},{"$f":"'Population 2016'!AX240*'Prevalence Rates'!AX240","v":215.15503184713367},{"$f":"'Population 2016'!AY240*'Prevalence Rates'!AY240","v":1216.5195668789804},{"$f":"'Population 2016'!AZ240*'Prevalence Rates'!AZ240","v":579.53515414012736},{"$f":"'Population 2016'!BA240*'Prevalence Rates'!BA240","v":38.144426751592341},{"$f":"'Population 2016'!BB240*'Prevalence Rates'!BB240","v":368.6877707006368},{"$f":"'Population 2016'!BC240*'Prevalence Rates'!BC240","v":0},238]
[null,"Male 50-54",{"$f":"'Population 2016'!C241*'Prevalence Rates'!C241","v":677.13046496815252},{"$f":"'Population 2016'!D241*'Prevalence Rates'!D241","v":1521.1224267515922},{"$f":"'Population 2016'!E241*'Prevalence Rates'!E241","v":840.71908280254718},{"$f":"'Population 2016'!F241*'Prevalence Rates'!F241","v":212.21338216560508},{"$f":"'Population 2016'!G241*'Prevalence Rates'!G241","v":74.237808917197427},{"$f":"'Population 2016'!H241*'Prevalence Rates'!H241","v":490.33836305732478},{"$f":"'Population 2016'!I241*'Prevalence Rates'!I241","v":111.99071808917191},{"$f":"'Population 2016'!J241*'Prevalence Rates'!J241","v":245.39012738853501},{"$f":"'Population 2016'!K241*'Prevalence Rates'!K241","v":67.90579617834392},{"$f":"'Population 2016'!L241*'Prevalence Rates'!L241","v":134.47630624203816},{"$f":"'Population 2016'!M241*'Prevalence Rates'!M241","v":134.30476433121012},{"$f":"'Population 2016'!N241*'Prevalence Rates'!N241","v":192.76256687898089},{"$f":"'Population 2016'!O241*'Prevalence Rates'!O241","v":145.29445222929931},{"$f":"'Population 2016'!P241*'Prevalence Rates'!P241","v":490.56878343949023},{"$f":"'Population 2016'!Q241*'Prevalence Rates'!Q241","v":219.02821656050946},{"$f":"'Population 2016'!R241*'Prevalence Rates'!R241","v":416.77968789808898},{"$f":"'Population 2016'!S241*'Prevalence Rates'!S241","v":2809.5763566878973},{"$f":"'Population 2016'!T241*'Prevalence Rates'!T241","v":1263.5071337579611},{"$f":"'Population 2016'!U241*'Prevalence Rates'!U241","v":0},{"$f":"'Population 2016'!V241*'Prevalence Rates'!V241","v":300.7592356687897},{"$f":"'Population 2016'!W241*'Prevalence Rates'!W241","v":586.22825987261137},{"$f":"'Population 2016'!X241*'Prevalence Rates'!X241","v":585.82563057324808},{"$f":"'Population 2016'!Y241*'Prevalence Rates'!Y241","v":567.81418471337554},{"$f":"'Population 2016'!Z241*'Prevalence Rates'!Z241","v":486.45684076433093},{"$f":"'Population 2016'!AA241*'Prevalence Rates'!AA241","v":2817.5986242038207},{"$f":"'Population 2016'!AB241*'Prevalence Rates'!AB241","v":1677.2493656050954},{"$f":"'Population 2016'!AC241*'Prevalence Rates'!AC241","v":1943.9373095541396},{"$f":"'Population 2016'!AD241*'Prevalence Rates'!AD241","v":272.96174522292984},{"$f":"'Population 2016'!AE241*'Prevalence Rates'!AE241","v":217.62901910828018},{"$f":"'Population 2016'!AF241*'Prevalence Rates'!AF241","v":101.53959235668785},{"$f":"'Population 2016'!AG241*'Prevalence Rates'!AG241","v":217.62901910828018},{"$f":"'Population 2016'!AH241*'Prevalence Rates'!AH241","v":840.37345222929923},{"$f":"'Population 2016'!AI241*'Prevalence Rates'!AI241","v":2077.7409095541389},{"$f":"'Population 2016'!AJ241*'Prevalence Rates'!AJ241","v":150.03853503184706},{"$f":"'Population 2016'!AK241*'Prevalence Rates'!AK241","v":140.89599999999999},{"$f":"'Population 2016'!AL241*'Prevalence Rates'!AL241","v":136.0920382165605},{"$f":"'Population 2016'!AM241*'Prevalence Rates'!AM241","v":392.49156050955406},{"$f":"'Population 2016'!AN241*'Prevalence Rates'!AN241","v":16.063158152866233},{"$f":"'Population 2016'!AO241*'Prevalence Rates'!AO241","v":16.044535031847129},{"$f":"'Population 2016'!AP241*'Prevalence Rates'!AP241","v":260.24617834394894},{"$f":"'Population 2016'!AQ241*'Prevalence Rates'!AQ241","v":320.0630063694266},{"$f":"'Population 2016'!AR241*'Prevalence Rates'!AR241","v":9530.4719999999979},{"$f":"'Population 2016'!AS241*'Prevalence Rates'!AS241","v":112.02523566878978},{"$f":"'Population 2016'!AT241*'Prevalence Rates'!AT241","v":0},{"$f":"'Population 2016'!AU241*'Prevalence Rates'!AU241","v":0},{"$f":"'Population 2016'!AV241*'Prevalence Rates'!AV241","v":200.01550318471334},{"$f":"'Population 2016'!AW241*'Prevalence Rates'!AW241","v":432.07838853503182},{"$f":"'Population 2016'!AX241*'Prevalence Rates'!AX241","v":207.59436305732476},{"$f":"'Population 2016'!AY241*'Prevalence Rates'!AY241","v":1253.6384713375792},{"$f":"'Population 2016'!AZ241*'Prevalence Rates'!AZ241","v":661.9774445859872},{"$f":"'Population 2016'!BA241*'Prevalence Rates'!BA241","v":40.687388535031829},{"$f":"'Population 2016'!BB241*'Prevalence Rates'!BB241","v":354.68063694267499},{"$f":"'Population 2016'!BC241*'Prevalence Rates'!BC241","v":0},239]
[null,"Male 55-59",{"$f":"'Population 2016'!C242*'Prevalence Rates'!C242","v":941.03388535031831},{"$f":"'Population 2016'!D242*'Prevalence Rates'!D242","v":2018.4565605095545},{"$f":"'Population 2016'!E242*'Prevalence Rates'!E242","v":1069.4522292993627},{"$f":"'Population 2016'!F242*'Prevalence Rates'!F242","v":271.44805095541403},{"$f":"'Population 2016'!G242*'Prevalence Rates'!G242","v":94.950318471337567},{"$f":"'Population 2016'!H242*'Prevalence Rates'!H242","v":736.59699363057325},{"$f":"'Population 2016'!I242*'Prevalence Rates'!I242","v":139.62809783439488},{"$f":"'Population 2016'!J242*'Prevalence Rates'!J242","v":309.21630573248416},{"$f":"'Population 2016'!K242*'Prevalence Rates'!K242","v":83.751337579617825},{"$f":"'Population 2016'!L242*'Prevalence Rates'!L242","v":178.35184203821655},{"$f":"'Population 2016'!M242*'Prevalence Rates'!M242","v":178.12433121019103},{"$f":"'Population 2016'!N242*'Prevalence Rates'!N242","v":300.58445859872614},{"$f":"'Population 2016'!O242*'Prevalence Rates'!O242","v":218.93615286624203},{"$f":"'Population 2016'!P242*'Prevalence Rates'!P242","v":661.46292993630573},{"$f":"'Population 2016'!Q242*'Prevalence Rates'!Q242","v":246.37757961783439},{"$f":"'Population 2016'!R242*'Prevalence Rates'!R242","v":621.17238216560509},{"$f":"'Population 2016'!S242*'Prevalence Rates'!S242","v":3772.3683057324838},{"$f":"'Population 2016'!T242*'Prevalence Rates'!T242","v":1723.4267515923564},{"$f":"'Population 2016'!U242*'Prevalence Rates'!U242","v":0},{"$f":"'Population 2016'!V242*'Prevalence Rates'!V242","v":368.36687898089167},{"$f":"'Population 2016'!W242*'Prevalence Rates'!W242","v":832.09750828025483},{"$f":"'Population 2016'!X242*'Prevalence Rates'!X242","v":831.52601273885318},{"$f":"'Population 2016'!Y242*'Prevalence Rates'!Y242","v":705.35923566878967},{"$f":"'Population 2016'!Z242*'Prevalence Rates'!Z242","v":631.25931210191061},{"$f":"'Population 2016'!AA242*'Prevalence Rates'!AA242","v":3846.4530955414016},{"$f":"'Population 2016'!AB242*'Prevalence Rates'!AB242","v":2212.3572178343952},{"$f":"'Population 2016'!AC242*'Prevalence Rates'!AC242","v":2669.4556738853503},{"$f":"'Population 2016'!AD242*'Prevalence Rates'!AD242","v":361.2670165605096},{"$f":"'Population 2016'!AE242*'Prevalence Rates'!AE242","v":291.6488152866242},{"$f":"'Population 2016'!AF242*'Prevalence Rates'!AF242","v":134.0357707006369},{"$f":"'Population 2016'!AG242*'Prevalence Rates'!AG242","v":291.6488152866242},{"$f":"'Population 2016'!AH242*'Prevalence Rates'!AH242","v":1129.4088152866243},{"$f":"'Population 2016'!AI242*'Prevalence Rates'!AI242","v":2754.0022624203812},{"$f":"'Population 2016'!AJ242*'Prevalence Rates'!AJ242","v":194.11566878980889},{"$f":"'Population 2016'!AK242*'Prevalence Rates'!AK242","v":173.53600000000003},{"$f":"'Population 2016'!AL242*'Prevalence Rates'!AL242","v":177.89228025477709},{"$f":"'Population 2016'!AM242*'Prevalence Rates'!AM242","v":503.23668789808914},{"$f":"'Population 2016'!AN242*'Prevalence Rates'!AN242","v":27.528272101910826},{"$f":"'Population 2016'!AO242*'Prevalence Rates'!AO242","v":27.496356687898086},{"$f":"'Population 2016'!AP242*'Prevalence Rates'!AP242","v":315.69019108280253},{"$f":"'Population 2016'!AQ242*'Prevalence Rates'!AQ242","v":448.51077707006368},{"$f":"'Population 2016'!AR242*'Prevalence Rates'!AR242","v":12820.544000000002},{"$f":"'Population 2016'!AS242*'Prevalence Rates'!AS242","v":139.67113375796177},{"$f":"'Population 2016'!AT242*'Prevalence Rates'!AT242","v":0},{"$f":"'Population 2016'!AU242*'Prevalence Rates'!AU242","v":0},{"$f":"'Population 2016'!AV242*'Prevalence Rates'!AV242","v":323.87923566878987},{"$f":"'Population 2016'!AW242*'Prevalence Rates'!AW242","v":600.77656050955432},{"$f":"'Population 2016'!AX242*'Prevalence Rates'!AX242","v":263.26012738853501},{"$f":"'Population 2016'!AY242*'Prevalence Rates'!AY242","v":1724.2977834394903},{"$f":"'Population 2016'!AZ242*'Prevalence Rates'!AZ242","v":882.01895541401291},{"$f":"'Population 2016'!BA242*'Prevalence Rates'!BA242","v":48.209426751592353},{"$f":"'Population 2016'!BB242*'Prevalence Rates'!BB242","v":447.99286624203819},{"$f":"'Population 2016'!BC242*'Prevalence Rates'!BC242","v":0},240]
[null,"Male 60-64",{"$f":"'Population 2016'!C243*'Prevalence Rates'!C243","v":833.95638216560496},{"$f":"'Population 2016'!D243*'Prevalence Rates'!D243","v":1819.1920509554143},{"$f":"'Population 2016'!E243*'Prevalence Rates'!E243","v":979.26175796178313},{"$f":"'Population 2016'!F243*'Prevalence Rates'!F243","v":251.90084076433124},{"$f":"'Population 2016'!G243*'Prevalence Rates'!G243","v":78.377171974522284},{"$f":"'Population 2016'!H243*'Prevalence Rates'!H243","v":691.41398216560503},{"$f":"'Population 2016'!I243*'Prevalence Rates'!I243","v":147.22962751592354},{"$f":"'Population 2016'!J243*'Prevalence Rates'!J243","v":293.82807643312105},{"$f":"'Population 2016'!K243*'Prevalence Rates'!K243","v":93.481783439490428},{"$f":"'Population 2016'!L243*'Prevalence Rates'!L243","v":169.70447999999999},{"$f":"'Population 2016'!M243*'Prevalence Rates'!M243","v":169.48799999999994},{"$f":"'Population 2016'!N243*'Prevalence Rates'!N243","v":244.52453503184717},{"$f":"'Population 2016'!O243*'Prevalence Rates'!O243","v":189.79862420382165},{"$f":"'Population 2016'!P243*'Prevalence Rates'!P243","v":584.68881528662416},{"$f":"'Population 2016'!Q243*'Prevalence Rates'!Q243","v":208.2180891719745},{"$f":"'Population 2016'!R243*'Prevalence Rates'!R243","v":525.68061146496814},{"$f":"'Population 2016'!S243*'Prevalence Rates'!S243","v":3215.0491719745219},{"$f":"'Population 2016'!T243*'Prevalence Rates'!T243","v":1482.5589808917196},{"$f":"'Population 2016'!U243*'Prevalence Rates'!U243","v":0},{"$f":"'Population 2016'!V243*'Prevalence Rates'!V243","v":299.90624203821653},{"$f":"'Population 2016'!W243*'Prevalence Rates'!W243","v":716.21103694267526},{"$f":"'Population 2016'!X243*'Prevalence Rates'!X243","v":715.71913375796146},{"$f":"'Population 2016'!Y243*'Prevalence Rates'!Y243","v":622.37579617834388},{"$f":"'Population 2016'!Z243*'Prevalence Rates'!Z243","v":561.82787261146473},{"$f":"'Population 2016'!AA243*'Prevalence Rates'!AA243","v":3331.4176815286623},{"$f":"'Population 2016'!AB243*'Prevalence Rates'!AB243","v":2002.1867617834396},{"$f":"'Population 2016'!AC243*'Prevalence Rates'!AC243","v":2304.6614828025477},{"$f":"'Population 2016'!AD243*'Prevalence Rates'!AD243","v":324.34670063694267},{"$f":"'Population 2016'!AE243*'Prevalence Rates'!AE243","v":269.35959235668787},{"$f":"'Population 2016'!AF243*'Prevalence Rates'!AF243","v":111.22863694267512},{"$f":"'Population 2016'!AG243*'Prevalence Rates'!AG243","v":269.35959235668787},{"$f":"'Population 2016'!AH243*'Prevalence Rates'!AH243","v":986.54614012738864},{"$f":"'Population 2016'!AI243*'Prevalence Rates'!AI243","v":2317.4471541401267},{"$f":"'Population 2016'!AJ243*'Prevalence Rates'!AJ243","v":163.42216560509553},{"$f":"'Population 2016'!AK243*'Prevalence Rates'!AK243","v":164.73600000000002},{"$f":"'Population 2016'!AL243*'Prevalence Rates'!AL243","v":181.72616560509556},{"$f":"'Population 2016'!AM243*'Prevalence Rates'!AM243","v":417.34980891719744},{"$f":"'Population 2016'!AN243*'Prevalence Rates'!AN243","v":20.363379363057323},{"$f":"'Population 2016'!AO243*'Prevalence Rates'!AO243","v":20.33977070063694},{"$f":"'Population 2016'!AP243*'Prevalence Rates'!AP243","v":316.74955414012737},{"$f":"'Population 2016'!AQ243*'Prevalence Rates'!AQ243","v":365.99031847133756},{"$f":"'Population 2016'!AR243*'Prevalence Rates'!AR243","v":11264.352000000001},{"$f":"'Population 2016'!AS243*'Prevalence Rates'!AS243","v":147.27500636942676},{"$f":"'Population 2016'!AT243*'Prevalence Rates'!AT243","v":0},{"$f":"'Population 2016'!AU243*'Prevalence Rates'!AU243","v":0},{"$f":"'Population 2016'!AV243*'Prevalence Rates'!AV243","v":304.13472611464971},{"$f":"'Population 2016'!AW243*'Prevalence Rates'!AW243","v":543.2021401273887},{"$f":"'Population 2016'!AX243*'Prevalence Rates'!AX243","v":237.38140127388533},{"$f":"'Population 2016'!AY243*'Prevalence Rates'!AY243","v":1531.9802292993629},{"$f":"'Population 2016'!AZ243*'Prevalence Rates'!AZ243","v":809.14867770700653},{"$f":"'Population 2016'!BA243*'Prevalence Rates'!BA243","v":47.525605095541394},{"$f":"'Population 2016'!BB243*'Prevalence Rates'!BB243","v":332.57273885350315},{"$f":"'Population 2016'!BC243*'Prevalence Rates'!BC243","v":0},241]
[null,"Male 65-69",{"$f":"'Population 2016'!C244*'Prevalence Rates'!C244","v":837.94267515923548},{"$f":"'Population 2016'!D244*'Prevalence Rates'!D244","v":1878.7617834394905},{"$f":"'Population 2016'!E244*'Prevalence Rates'!E244","v":1036.6394904458596},{"$f":"'Population 2016'!F244*'Prevalence Rates'!F244","v":341.57324840764335},{"$f":"'Population 2016'!G244*'Prevalence Rates'!G244","v":94.950318471337553},{"$f":"'Population 2016'!H244*'Prevalence Rates'!H244","v":873.28509554140123},{"$f":"'Population 2016'!I244*'Prevalence Rates'!I244","v":183.21868789808912},{"$f":"'Population 2016'!J244*'Prevalence Rates'!J244","v":369.5286624203822},{"$f":"'Population 2016'!K244*'Prevalence Rates'!K244","v":120.44585987261144},{"$f":"'Population 2016'!L244*'Prevalence Rates'!L244","v":209.63301910828022},{"$f":"'Population 2016'!M244*'Prevalence Rates'!M244","v":209.36560509554135},{"$f":"'Population 2016'!N244*'Prevalence Rates'!N244","v":275.35414012738858},{"$f":"'Population 2016'!O244*'Prevalence Rates'!O244","v":226.25732484076431},{"$f":"'Population 2016'!P244*'Prevalence Rates'!P244","v":664.0585987261145},{"$f":"'Population 2016'!Q244*'Prevalence Rates'!Q244","v":239.43949044585983},{"$f":"'Population 2016'!R244*'Prevalence Rates'!R244","v":537.51974522292983},{"$f":"'Population 2016'!S244*'Prevalence Rates'!S244","v":3730.9910828025477},{"$f":"'Population 2016'!T244*'Prevalence Rates'!T244","v":1679.4203821656047},{"$f":"'Population 2016'!U244*'Prevalence Rates'!U244","v":0},{"$f":"'Population 2016'!V244*'Prevalence Rates'!V244","v":330.92993630573238},{"$f":"'Population 2016'!W244*'Prevalence Rates'!W244","v":898.08305732484087},{"$f":"'Population 2016'!X244*'Prevalence Rates'!X244","v":897.46624203821625},{"$f":"'Population 2016'!Y244*'Prevalence Rates'!Y244","v":738.55261146496798},{"$f":"'Population 2016'!Z244*'Prevalence Rates'!Z244","v":566.78726114649658},{"$f":"'Population 2016'!AA244*'Prevalence Rates'!AA244","v":3491.6101910828024},{"$f":"'Population 2016'!AB244*'Prevalence Rates'!AB244","v":2085.0180891719747},{"$f":"'Population 2016'!AC244*'Prevalence Rates'!AC244","v":2469.7788535031846},{"$f":"'Population 2016'!AD244*'Prevalence Rates'!AD244","v":387.78878980891722},{"$f":"'Population 2016'!AE244*'Prevalence Rates'!AE244","v":320.68662420382162},{"$f":"'Population 2016'!AF244*'Prevalence Rates'!AF244","v":139.9528662420382},{"$f":"'Population 2016'!AG244*'Prevalence Rates'!AG244","v":320.68662420382162},{"$f":"'Population 2016'!AH244*'Prevalence Rates'!AH244","v":972.25987261146497},{"$f":"'Population 2016'!AI244*'Prevalence Rates'!AI244","v":2613.3263694267507},{"$f":"'Population 2016'!AJ244*'Prevalence Rates'!AJ244","v":200.7898089171974},{"$f":"'Population 2016'!AK244*'Prevalence Rates'!AK244","v":187.60000000000002},{"$f":"'Population 2016'!AL244*'Prevalence Rates'!AL244","v":220.01273885350318},{"$f":"'Population 2016'!AM244*'Prevalence Rates'!AM244","v":412.9554140127388},{"$f":"'Population 2016'!AN244*'Prevalence Rates'!AN244","v":26.996904458598724},{"$f":"'Population 2016'!AO244*'Prevalence Rates'!AO244","v":26.965605095541395},{"$f":"'Population 2016'!AP244*'Prevalence Rates'!AP244","v":422.5414012738853},{"$f":"'Population 2016'!AQ244*'Prevalence Rates'!AQ244","v":406.8738853503184},{"$f":"'Population 2016'!AR244*'Prevalence Rates'!AR244","v":12675.2},{"$f":"'Population 2016'!AS244*'Prevalence Rates'!AS244","v":183.27515923566878},{"$f":"'Population 2016'!AT244*'Prevalence Rates'!AT244","v":0},{"$f":"'Population 2016'!AU244*'Prevalence Rates'!AU244","v":0},{"$f":"'Population 2016'!AV244*'Prevalence Rates'!AV244","v":404.25859872611466},{"$f":"'Population 2016'!AW244*'Prevalence Rates'!AW244","v":533.96942675159244},{"$f":"'Population 2016'!AX244*'Prevalence Rates'!AX244","v":295.89171974522287},{"$f":"'Population 2016'!AY244*'Prevalence Rates'!AY244","v":1940.5961783439486},{"$f":"'Population 2016'!AZ244*'Prevalence Rates'!AZ244","v":1035.0891719745225},{"$f":"'Population 2016'!BA244*'Prevalence Rates'!BA244","v":37.687898089171966},{"$f":"'Population 2016'!BB244*'Prevalence Rates'!BB244","v":345.97452229299353},{"$f":"'Population 2016'!BC244*'Prevalence Rates'!BC244","v":0},242]
[null,"Male 70-74",{"$f":"'Population 2016'!C245*'Prevalence Rates'!C245","v":547.55541401273877},{"$f":"'Population 2016'!D245*'Prevalence Rates'!D245","v":1240.9057324840765},{"$f":"'Population 2016'!E245*'Prevalence Rates'!E245","v":691.09299363057301},{"$f":"'Population 2016'!F245*'Prevalence Rates'!F245","v":253.14140127388541},{"$f":"'Population 2016'!G245*'Prevalence Rates'!G245","v":79.256050955413997},{"$f":"'Population 2016'!H245*'Prevalence Rates'!H245","v":660.57286624203823},{"$f":"'Population 2016'!I245*'Prevalence Rates'!I245","v":118.20560509554136},{"$f":"'Population 2016'!J245*'Prevalence Rates'!J245","v":251.4114649681529},{"$f":"'Population 2016'!K245*'Prevalence Rates'!K245","v":77.796178343949023},{"$f":"'Population 2016'!L245*'Prevalence Rates'!L245","v":149.44541401273884},{"$f":"'Population 2016'!M245*'Prevalence Rates'!M245","v":149.25477707006365},{"$f":"'Population 2016'!N245*'Prevalence Rates'!N245","v":215.00254777070069},{"$f":"'Population 2016'!O245*'Prevalence Rates'!O245","v":147.15923566878979},{"$f":"'Population 2016'!P245*'Prevalence Rates'!P245","v":527.42547770700628},{"$f":"'Population 2016'!Q245*'Prevalence Rates'!Q245","v":200.31847133757958},{"$f":"'Population 2016'!R245*'Prevalence Rates'!R245","v":411.7019108280254},{"$f":"'Population 2016'!S245*'Prevalence Rates'!S245","v":2676.7108280254774},{"$f":"'Population 2016'!T245*'Prevalence Rates'!T245","v":1171.3184713375795},{"$f":"'Population 2016'!U245*'Prevalence Rates'!U245","v":0},{"$f":"'Population 2016'!V245*'Prevalence Rates'!V245","v":217.1974522292993},{"$f":"'Population 2016'!W245*'Prevalence Rates'!W245","v":704.44433121019119},{"$f":"'Population 2016'!X245*'Prevalence Rates'!X245","v":703.96050955413989},{"$f":"'Population 2016'!Y245*'Prevalence Rates'!Y245","v":494.88305732484065},{"$f":"'Population 2016'!Z245*'Prevalence Rates'!Z245","v":338.94522292993616},{"$f":"'Population 2016'!AA245*'Prevalence Rates'!AA245","v":2526.8560509554136},{"$f":"'Population 2016'!AB245*'Prevalence Rates'!AB245","v":1402.5335031847135},{"$f":"'Population 2016'!AC245*'Prevalence Rates'!AC245","v":1805.7233121019106},{"$f":"'Population 2016'!AD245*'Prevalence Rates'!AD245","v":286.6264968152866},{"$f":"'Population 2016'!AE245*'Prevalence Rates'!AE245","v":227.09936305732481},{"$f":"'Population 2016'!AF245*'Prevalence Rates'!AF245","v":118.42165605095539},{"$f":"'Population 2016'!AG245*'Prevalence Rates'!AG245","v":227.09936305732481},{"$f":"'Population 2016'!AH245*'Prevalence Rates'!AH245","v":682.7464968152866},{"$f":"'Population 2016'!AI245*'Prevalence Rates'!AI245","v":1826.1798726114641},{"$f":"'Population 2016'!AJ245*'Prevalence Rates'!AJ245","v":133.85987261146494},{"$f":"'Population 2016'!AK245*'Prevalence Rates'!AK245","v":149.6},{"$f":"'Population 2016'!AL245*'Prevalence Rates'!AL245","v":168.16815286624205},{"$f":"'Population 2016'!AM245*'Prevalence Rates'!AM245","v":247.67515923566876},{"$f":"'Population 2016'!AN245*'Prevalence Rates'!AN245","v":17.569414012738854},{"$f":"'Population 2016'!AO245*'Prevalence Rates'!AO245","v":17.549044585987257},{"$f":"'Population 2016'!AP245*'Prevalence Rates'!AP245","v":323.42675159235665},{"$f":"'Population 2016'!AQ245*'Prevalence Rates'!AQ245","v":297.79872611464964},{"$f":"'Population 2016'!AR245*'Prevalence Rates'!AR245","v":9065.2000000000007},{"$f":"'Population 2016'!AS245*'Prevalence Rates'!AS245","v":118.2420382165605},{"$f":"'Population 2016'!AT245*'Prevalence Rates'!AT245","v":0},{"$f":"'Population 2016'!AU245*'Prevalence Rates'!AU245","v":0},{"$f":"'Population 2016'!AV245*'Prevalence Rates'!AV245","v":324.74522292993635},{"$f":"'Population 2016'!AW245*'Prevalence Rates'!AW245","v":410.02675159235679},{"$f":"'Population 2016'!AX245*'Prevalence Rates'!AX245","v":205.1273885350318},{"$f":"'Population 2016'!AY245*'Prevalence Rates'!AY245","v":1499.5872611464965},{"$f":"'Population 2016'!AZ245*'Prevalence Rates'!AZ245","v":788.30751592356694},{"$f":"'Population 2016'!BA245*'Prevalence Rates'!BA245","v":19.03821656050955},{"$f":"'Population 2016'!BB245*'Prevalence Rates'!BB245","v":221.12101910828019},{"$f":"'Population 2016'!BC245*'Prevalence Rates'!BC245","v":0},243]
[null,"Male 75-79",{"$f":"'Population 2016'!C246*'Prevalence Rates'!C246","v":749.16927388535009},{"$f":"'Population 2016'!D246*'Prevalence Rates'!D246","v":1643.3455796178343},{"$f":"'Population 2016'!E246*'Prevalence Rates'!E246","v":889.13610191082762},{"$f":"'Population 2016'!F246*'Prevalence Rates'!F246","v":300.32670700636947},{"$f":"'Population 2016'!G246*'Prevalence Rates'!G246","v":89.233681528662402},{"$f":"'Population 2016'!H246*'Prevalence Rates'!H246","v":829.41589490445858},{"$f":"'Population 2016'!I246*'Prevalence Rates'!I246","v":145.2496836305732},{"$f":"'Population 2016'!J246*'Prevalence Rates'!J246","v":364.46743949044583},{"$f":"'Population 2016'!K246*'Prevalence Rates'!K246","v":86.249108280254745},{"$f":"'Population 2016'!L246*'Prevalence Rates'!L246","v":229.84090515923563},{"$f":"'Population 2016'!M246*'Prevalence Rates'!M246","v":229.54771337579609},{"$f":"'Population 2016'!N246*'Prevalence Rates'!N246","v":319.23896815286628},{"$f":"'Population 2016'!O246*'Prevalence Rates'!O246","v":179.29513375796176},{"$f":"'Population 2016'!P246*'Prevalence Rates'!P246","v":795.83024840764313},{"$f":"'Population 2016'!Q246*'Prevalence Rates'!Q246","v":277.34917197452222},{"$f":"'Population 2016'!R246*'Prevalence Rates'!R246","v":612.32728025477684},{"$f":"'Population 2016'!S246*'Prevalence Rates'!S246","v":3419.9484458598722},{"$f":"'Population 2016'!T246*'Prevalence Rates'!T246","v":1578.4897452229295},{"$f":"'Population 2016'!U246*'Prevalence Rates'!U246","v":0},{"$f":"'Population 2016'!V246*'Prevalence Rates'!V246","v":263.73694267515913},{"$f":"'Population 2016'!W246*'Prevalence Rates'!W246","v":806.16772484076432},{"$f":"'Population 2016'!X246*'Prevalence Rates'!X246","v":805.61403821656017},{"$f":"'Population 2016'!Y246*'Prevalence Rates'!Y246","v":668.58625605095517},{"$f":"'Population 2016'!Z246*'Prevalence Rates'!Z246","v":424.33365605095526},{"$f":"'Population 2016'!AA246*'Prevalence Rates'!AA246","v":3381.2570636942673},{"$f":"'Population 2016'!AB246*'Prevalence Rates'!AB246","v":1867.8112407643312},{"$f":"'Population 2016'!AC246*'Prevalence Rates'!AC246","v":2480.2990165605092},{"$f":"'Population 2016'!AD246*'Prevalence Rates'!AD246","v":344.67130318471334},{"$f":"'Population 2016'!AE246*'Prevalence Rates'!AE246","v":279.73361146496808},{"$f":"'Population 2016'!AF246*'Prevalence Rates'!AF246","v":143.94012738853499},{"$f":"'Population 2016'!AG246*'Prevalence Rates'!AG246","v":279.73361146496808},{"$f":"'Population 2016'!AH246*'Prevalence Rates'!AH246","v":840.83568152866235},{"$f":"'Population 2016'!AI246*'Prevalence Rates'!AI246","v":2430.5582751592347},{"$f":"'Population 2016'!AJ246*'Prevalence Rates'!AJ246","v":154.83910828025475},{"$f":"'Population 2016'!AK246*'Prevalence Rates'!AK246","v":208.65799999999999},{"$f":"'Population 2016'!AL246*'Prevalence Rates'!AL246","v":197.38192356687898},{"$f":"'Population 2016'!AM246*'Prevalence Rates'!AM246","v":318.69171974522288},{"$f":"'Population 2016'!AN246*'Prevalence Rates'!AN246","v":17.016620254777067},{"$f":"'Population 2016'!AO246*'Prevalence Rates'!AO246","v":16.996891719745218},{"$f":"'Population 2016'!AP246*'Prevalence Rates'!AP246","v":446.16840764331209},{"$f":"'Population 2016'!AQ246*'Prevalence Rates'!AQ246","v":342.7706496815286},{"$f":"'Population 2016'!AR246*'Prevalence Rates'!AR246","v":11894.949999999999},{"$f":"'Population 2016'!AS246*'Prevalence Rates'!AS246","v":145.29445222929934},{"$f":"'Population 2016'!AT246*'Prevalence Rates'!AT246","v":0},{"$f":"'Population 2016'!AU246*'Prevalence Rates'!AU246","v":0},{"$f":"'Population 2016'!AV246*'Prevalence Rates'!AV246","v":424.88090445859876},{"$f":"'Population 2016'!AW246*'Prevalence Rates'!AW246","v":493.64335668789812},{"$f":"'Population 2016'!AX246*'Prevalence Rates'!AX246","v":321.76136942675151},{"$f":"'Population 2016'!AY246*'Prevalence Rates'!AY246","v":1868.949885350318},{"$f":"'Population 2016'!AZ246*'Prevalence Rates'!AZ246","v":1061.8067707006371},{"$f":"'Population 2016'!BA246*'Prevalence Rates'!BA246","v":22.44178343949044},{"$f":"'Population 2016'!BB246*'Prevalence Rates'!BB246","v":279.23464968152859},{"$f":"'Population 2016'!BC246*'Prevalence Rates'!BC246","v":0},244]
[null,"Male 80-84",{"$f":"'Population 2016'!C247*'Prevalence Rates'!C247","v":554.46610828025462},{"$f":"'Population 2016'!D247*'Prevalence Rates'!D247","v":1137.9179872611464},{"$f":"'Population 2016'!E247*'Prevalence Rates'!E247","v":576.91478980891691},{"$f":"'Population 2016'!F247*'Prevalence Rates'!F247","v":249.64184713375798},{"$f":"'Population 2016'!G247*'Prevalence Rates'!G247","v":53.823490445859861},{"$f":"'Population 2016'!H247*'Prevalence Rates'!H247","v":594.9988203821656},{"$f":"'Population 2016'!I247*'Prevalence Rates'!I247","v":106.68055859872608},{"$f":"'Population 2016'!J247*'Prevalence Rates'!J247","v":253.69792356687898},{"$f":"'Population 2016'!K247*'Prevalence Rates'!K247","v":57.73700636942673},{"$f":"'Population 2016'!L247*'Prevalence Rates'!L247","v":150.02477089171973},{"$f":"'Population 2016'!M247*'Prevalence Rates'!M247","v":149.83339490445854},{"$f":"'Population 2016'!N247*'Prevalence Rates'!N247","v":247.37237579617837},{"$f":"'Population 2016'!O247*'Prevalence Rates'!O247","v":112.0594585987261},{"$f":"'Population 2016'!P247*'Prevalence Rates'!P247","v":592.80568789808899},{"$f":"'Population 2016'!Q247*'Prevalence Rates'!Q247","v":190.57121019108277},{"$f":"'Population 2016'!R247*'Prevalence Rates'!R247","v":446.39374522292979},{"$f":"'Population 2016'!S247*'Prevalence Rates'!S247","v":2524.2315668789806},{"$f":"'Population 2016'!T247*'Prevalence Rates'!T247","v":1243.3000955414009},{"$f":"'Population 2016'!U247*'Prevalence Rates'!U247","v":0},{"$f":"'Population 2016'!V247*'Prevalence Rates'!V247","v":193.16949044585982},{"$f":"'Population 2016'!W247*'Prevalence Rates'!W247","v":583.86898343949042},{"$f":"'Population 2016'!X247*'Prevalence Rates'!X247","v":583.46797452229271},{"$f":"'Population 2016'!Y247*'Prevalence Rates'!Y247","v":474.54645668789794},{"$f":"'Population 2016'!Z247*'Prevalence Rates'!Z247","v":281.92030573248394},{"$f":"'Population 2016'!AA247*'Prevalence Rates'!AA247","v":2347.4059490445857},{"$f":"'Population 2016'!AB247*'Prevalence Rates'!AB247","v":1288.9824611464967},{"$f":"'Population 2016'!AC247*'Prevalence Rates'!AC247","v":1745.6607974522292},{"$f":"'Population 2016'!AD247*'Prevalence Rates'!AD247","v":244.17166242038215},{"$f":"'Population 2016'!AE247*'Prevalence Rates'!AE247","v":208.44415923566874},{"$f":"'Population 2016'!AF247*'Prevalence Rates'!AF247","v":101.47778980891717},{"$f":"'Population 2016'!AG247*'Prevalence Rates'!AG247","v":208.44415923566874},{"$f":"'Population 2016'!AH247*'Prevalence Rates'!AH247","v":556.75857324840763},{"$f":"'Population 2016'!AI247*'Prevalence Rates'!AI247","v":1805.4065273885342},{"$f":"'Population 2016'!AJ247*'Prevalence Rates'!AJ247","v":96.136369426751571},{"$f":"'Population 2016'!AK247*'Prevalence Rates'!AK247","v":140.06799999999998},{"$f":"'Population 2016'!AL247*'Prevalence Rates'!AL247","v":149.41261146496817},{"$f":"'Population 2016'!AM247*'Prevalence Rates'!AM247","v":173.50993630573245},{"$f":"'Population 2016'!AN247*'Prevalence Rates'!AN247","v":12.375723821656049},{"$f":"'Population 2016'!AO247*'Prevalence Rates'!AO247","v":12.36137579617834},{"$f":"'Population 2016'!AP247*'Prevalence Rates'!AP247","v":346.9393949044586},{"$f":"'Population 2016'!AQ247*'Prevalence Rates'!AQ247","v":206.08731210191078},{"$f":"'Population 2016'!AR247*'Prevalence Rates'!AR247","v":8536.2060000000001},{"$f":"'Population 2016'!AS247*'Prevalence Rates'!AS247","v":106.71343949044585},{"$f":"'Population 2016'!AT247*'Prevalence Rates'!AT247","v":0},{"$f":"'Population 2016'!AU247*'Prevalence Rates'!AU247","v":0},{"$f":"'Population 2016'!AV247*'Prevalence Rates'!AV247","v":311.91089808917201},{"$f":"'Population 2016'!AW247*'Prevalence Rates'!AW247","v":357.94644585987265},{"$f":"'Population 2016'!AX247*'Prevalence Rates'!AX247","v":226.08487261146493},{"$f":"'Population 2016'!AY247*'Prevalence Rates'!AY247","v":1422.0732738853499},{"$f":"'Population 2016'!AZ247*'Prevalence Rates'!AZ247","v":840.56619617834406},{"$f":"'Population 2016'!BA247*'Prevalence Rates'!BA247","v":14.727420382165601},{"$f":"'Population 2016'!BB247*'Prevalence Rates'!BB247","v":142.6524840764331},{"$f":"'Population 2016'!BC247*'Prevalence Rates'!BC247","v":0},245]
[null,"Male 85-89",{"$f":"'Population 2016'!C248*'Prevalence Rates'!C248","v":305.86587261146491},{"$f":"'Population 2016'!D248*'Prevalence Rates'!D248","v":618.37230573248405},{"$f":"'Population 2016'!E248*'Prevalence Rates'!E248","v":308.56532484076416},{"$f":"'Population 2016'!F248*'Prevalence Rates'!F248","v":108.93462420382167},{"$f":"'Population 2016'!G248*'Prevalence Rates'!G248","v":36.826598726114639},{"$f":"'Population 2016'!H248*'Prevalence Rates'!H248","v":306.06614713375797},{"$f":"'Population 2016'!I248*'Prevalence Rates'!I248","v":65.649574522292966},{"$f":"'Population 2016'!J248*'Prevalence Rates'!J248","v":105.40970063694267},{"$f":"'Population 2016'!K248*'Prevalence Rates'!K248","v":24.235286624203813},{"$f":"'Population 2016'!L248*'Prevalence Rates'!L248","v":77.599019426751582},{"$f":"'Population 2016'!M248*'Prevalence Rates'!M248","v":77.500031847133727},{"$f":"'Population 2016'!N248*'Prevalence Rates'!N248","v":141.4637133757962},{"$f":"'Population 2016'!O248*'Prevalence Rates'!O248","v":62.255254777070057},{"$f":"'Population 2016'!P248*'Prevalence Rates'!P248","v":290.87172611464962},{"$f":"'Population 2016'!Q248*'Prevalence Rates'!Q248","v":85.927197452229279},{"$f":"'Population 2016'!R248*'Prevalence Rates'!R248","v":232.95766878980885},{"$f":"'Population 2016'!S248*'Prevalence Rates'!S248","v":1335.801171974522},{"$f":"'Population 2016'!T248*'Prevalence Rates'!T248","v":691.78636942675143},{"$f":"'Population 2016'!U248*'Prevalence Rates'!U248","v":0},{"$f":"'Population 2016'!V248*'Prevalence Rates'!V248","v":78.40828025477704},{"$f":"'Population 2016'!W248*'Prevalence Rates'!W248","v":285.23874649681528},{"$f":"'Population 2016'!X248*'Prevalence Rates'!X248","v":285.04284076433106},{"$f":"'Population 2016'!Y248*'Prevalence Rates'!Y248","v":195.40148216560505},{"$f":"'Population 2016'!Z248*'Prevalence Rates'!Z248","v":138.05375796178339},{"$f":"'Population 2016'!AA248*'Prevalence Rates'!AA248","v":1136.8602802547769},{"$f":"'Population 2016'!AB248*'Prevalence Rates'!AB248","v":710.15368152866245},{"$f":"'Population 2016'!AC248*'Prevalence Rates'!AC248","v":866.38620382165595},{"$f":"'Population 2016'!AD248*'Prevalence Rates'!AD248","v":136.59458216560509},{"$f":"'Population 2016'!AE248*'Prevalence Rates'!AE248","v":109.25883439490444},{"$f":"'Population 2016'!AF248*'Prevalence Rates'!AF248","v":48.219942675159224},{"$f":"'Population 2016'!AG248*'Prevalence Rates'!AG248","v":109.25883439490444},{"$f":"'Population 2016'!AH248*'Prevalence Rates'!AH248","v":245.82030573248406},{"$f":"'Population 2016'!AI248*'Prevalence Rates'!AI248","v":971.43030573248359},{"$f":"'Population 2016'!AJ248*'Prevalence Rates'!AJ248","v":47.642802547770692},{"$f":"'Population 2016'!AK248*'Prevalence Rates'!AK248","v":85.917999999999992},{"$f":"'Population 2016'!AL248*'Prevalence Rates'!AL248","v":71.560777070063693},{"$f":"'Population 2016'!AM248*'Prevalence Rates'!AM248","v":77.017165605095528},{"$f":"'Population 2016'!AN248*'Prevalence Rates'!AN248","v":7.7348273885350309},{"$f":"'Population 2016'!AO248*'Prevalence Rates'!AO248","v":7.725859872611462},{"$f":"'Population 2016'!AP248*'Prevalence Rates'!AP248","v":191.93933121019106},{"$f":"'Population 2016'!AQ248*'Prevalence Rates'!AQ248","v":100.56494267515922},{"$f":"'Population 2016'!AR248*'Prevalence Rates'!AR248","v":4380.3739999999998},{"$f":"'Population 2016'!AS248*'Prevalence Rates'!AS248","v":65.669808917197443},{"$f":"'Population 2016'!AT248*'Prevalence Rates'!AT248","v":0},{"$f":"'Population 2016'!AU248*'Prevalence Rates'!AU248","v":0},{"$f":"'Population 2016'!AV248*'Prevalence Rates'!AV248","v":161.28422292993631},{"$f":"'Population 2016'!AW248*'Prevalence Rates'!AW248","v":157.70181528662422},{"$f":"'Population 2016'!AX248*'Prevalence Rates'!AX248","v":93.710541401273872},{"$f":"'Population 2016'!AY248*'Prevalence Rates'!AY248","v":723.78430573248386},{"$f":"'Population 2016'!AZ248*'Prevalence Rates'!AZ248","v":441.00127898089175},{"$f":"'Population 2016'!BA248*'Prevalence Rates'!BA248","v":4.2078343949044577},{"$f":"'Population 2016'!BB248*'Prevalence Rates'!BB248","v":64.497133757961763},{"$f":"'Population 2016'!BC248*'Prevalence Rates'!BC248","v":0},246]
[null,"Male 90+",{"$f":"'Population 2016'!C249*'Prevalence Rates'!C249","v":149.56436942675157},{"$f":"'Population 2016'!D249*'Prevalence Rates'!D249","v":291.53854140127385},{"$f":"'Population 2016'!E249*'Prevalence Rates'!E249","v":139.65871337579611},{"$f":"'Population 2016'!F249*'Prevalence Rates'!F249","v":39.337503184713377},{"$f":"'Population 2016'!G249*'Prevalence Rates'!G249","v":9.9148535031847107},{"$f":"'Population 2016'!H249*'Prevalence Rates'!H249","v":148.7497050955414},{"$f":"'Population 2016'!I249*'Prevalence Rates'!I249","v":18.87425267515923},{"$f":"'Population 2016'!J249*'Prevalence Rates'!J249","v":42.87852229299363},{"$f":"'Population 2016'!K249*'Prevalence Rates'!K249","v":6.4152229299363039},{"$f":"'Population 2016'!L249*'Prevalence Rates'!L249","v":32.517684331210184},{"$f":"'Population 2016'!M249*'Prevalence Rates'!M249","v":32.476203821656043},{"$f":"'Population 2016'!N249*'Prevalence Rates'!N249","v":46.145917197452235},{"$f":"'Population 2016'!O249*'Prevalence Rates'!O249","v":24.902101910828023},{"$f":"'Population 2016'!P249*'Prevalence Rates'!P249","v":123.63675159235665},{"$f":"'Population 2016'!Q249*'Prevalence Rates'!Q249","v":53.598152866242025},{"$f":"'Population 2016'!R249*'Prevalence Rates'!R249","v":96.957242038216535},{"$f":"'Population 2016'!S249*'Prevalence Rates'!S249","v":630.04387261146485},{"$f":"'Population 2016'!T249*'Prevalence Rates'!T249","v":334.62630573248401},{"$f":"'Population 2016'!U249*'Prevalence Rates'!U249","v":0},{"$f":"'Population 2016'!V249*'Prevalence Rates'!V249","v":35.640127388535021},{"$f":"'Population 2016'!W249*'Prevalence Rates'!W249","v":121.86256305732485},{"$f":"'Population 2016'!X249*'Prevalence Rates'!X249","v":121.77886624203816},{"$f":"'Population 2016'!Y249*'Prevalence Rates'!Y249","v":83.062650955413986},{"$f":"'Population 2016'!Z249*'Prevalence Rates'!Z249","v":72.659872611464934},{"$f":"'Population 2016'!AA249*'Prevalence Rates'!AA249","v":476.69935031847126},{"$f":"'Population 2016'!AB249*'Prevalence Rates'!AB249","v":328.31225477707005},{"$f":"'Population 2016'!AC249*'Prevalence Rates'!AC249","v":373.04728280254773},{"$f":"'Population 2016'!AD249*'Prevalence Rates'!AD249","v":49.542076433121018},{"$f":"'Population 2016'!AE249*'Prevalence Rates'!AE249","v":43.393579617834384},{"$f":"'Population 2016'!AF249*'Prevalence Rates'!AF249","v":30.227426751592347},{"$f":"'Population 2016'!AG249*'Prevalence Rates'!AG249","v":43.393579617834384},{"$f":"'Population 2016'!AH249*'Prevalence Rates'!AH249","v":91.979121019108277},{"$f":"'Population 2016'!AI249*'Prevalence Rates'!AI249","v":480.42845732484051},{"$f":"'Population 2016'!AJ249*'Prevalence Rates'!AJ249","v":20.418343949044583},{"$f":"'Population 2016'!AK249*'Prevalence Rates'!AK249","v":33.933999999999997},{"$f":"'Population 2016'!AL249*'Prevalence Rates'!AL249","v":33.028050955414017},{"$f":"'Population 2016'!AM249*'Prevalence Rates'!AM249","v":35.410191082802541},{"$f":"'Population 2016'!AN249*'Prevalence Rates'!AN249","v":3.0939309554140122},{"$f":"'Population 2016'!AO249*'Prevalence Rates'!AO249","v":3.090343949044585},{"$f":"'Population 2016'!AP249*'Prevalence Rates'!AP249","v":78.224331210191082},{"$f":"'Population 2016'!AQ249*'Prevalence Rates'!AQ249","v":26.91174522292993},{"$f":"'Population 2016'!AR249*'Prevalence Rates'!AR249","v":1933.5159999999998},{"$f":"'Population 2016'!AS249*'Prevalence Rates'!AS249","v":18.880070063694266},{"$f":"'Population 2016'!AT249*'Prevalence Rates'!AT249","v":0},{"$f":"'Population 2016'!AU249*'Prevalence Rates'!AU249","v":0},{"$f":"'Population 2016'!AV249*'Prevalence Rates'!AV249","v":84.549878980891719},{"$f":"'Population 2016'!AW249*'Prevalence Rates'!AW249","v":53.54526751592357},{"$f":"'Population 2016'!AX249*'Prevalence Rates'!AX249","v":41.285063694267507},{"$f":"'Population 2016'!AY249*'Prevalence Rates'!AY249","v":285.40614012738848},{"$f":"'Population 2016'!AZ249*'Prevalence Rates'!AZ249","v":163.52564203821657},{"$f":"'Population 2016'!BA249*'Prevalence Rates'!BA249","v":1.4026114649681525},{"$f":"'Population 2016'!BB249*'Prevalence Rates'!BB249","v":34.904331210191074},{"$f":"'Population 2016'!BC249*'Prevalence Rates'!BC249","v":0},247]
["Estimated number of people not meeting the 2011 PA guidelines",null,null,null,null,null,null,null,null,null,null,null,null,null,null,null,null,null,null,null,null,null,null,null,null,null,null,null,null,null,null,null,null,null,null,null,null,null,null,null,null,null,null,null,null,null,null,null,null,null,null,null,null,null,null,248]
[null,"Total at risk",{"$f":"C5","v":55583.845625429472},125576.10214912279,69657.429131615747,37025.445592538294,27679.119624987441,134796.92625083053,38819.986161426474,39664.90276299118,16982.545728511875,53588.78370293256,53539.039602589342,49640.599111683667,45836.83598284149,27874.324054605349,32329.172172490755,22874.081998856251,367784.57984831149,107608.65865894278,8722.7287352491585,50133.872058100736,108699.89095874137,108636.25549670473,90051.42639046337,206684.45004870187,587655.89524110616,154997.32141594475,367929.08303810487,97839.767715137146,75941.037526394241,25267.574460145868,75941.037526394241,219955.36636186257,{"$f":"AI5","v":221066.79175614828},28073.72199246673,28310.513702742053,52255.84995832284,122635.62879475871,6916.1595586884478,6913.3442096176632,44580.624929176643,52126.913048103765,1630555.179,38827.027833150692,6212.6793268792972,6214.369053540433,36692.726226164879,97081.366132137424,25247.489839010072,233816.89829802298,125033.85761117193,29115.207390022668,54914.750809246412,8726.6550130275682,249]
[null,"Q1 only",{"$f":"C7","v":5984.0114813739474},8205.4185083122484,1886.4889693429798,3163.0921460725476,2546.5027642106529,47898.06923887576,2596.1041429639236,8579.9200742136363,4914.5478661879406,5064.6240347988005,5060.2330923203663,20449.179932101692,16972.074844021685,1813.5513582899148,1414.7904045768371,2151.2645363873398,65003.569858017872,19339.806321659911,0,9408.1939577463254,26699.88068690581,26684.655825084963,18013.456583897911,113159.25752780304,227528.09550475737,8682.5130894702743,158623.41096618481,8389.5630166397987,6308.6652617662839,12373.90609639998,6308.6652617662839,68410.173177603603,{"$f":"AI7","v":35613.022006119805},3427.754607123371,311.15688182479971,24092.889884140117,45328.372093394559,0,0,2869.6569094833512,17598.856182776733,397917.53700000001,2596.509141648261,0,0,7567.4478572698172,24067.629694721931,4254.5709448884609,51328.208765722244,24567.865434994448,12567.455993277403,11121.451998092725,0,250]
[null,"Q1 & Q2",{"$f":"SUM(C7:C8)","v":19775.57741923687},29394.298877449975,8681.5930237002631,10160.860374172524,7868.5723540758299,82240.217727516894,9757.7892726382561,16928.482804911771,9594.2630671780516,21290.684811987201,21271.248786900862,30796.318126035359,29644.224766880674,7521.0863456383868,11442.637872942223,4680.1544639588737,150009.85968690732,37834.75350978443,2306.4584909358159,25536.942371363388,51233.001611271146,51203.371939913151,42251.711464980661,150007.91784245981,359978.05178142327,35052.466178918294,227124.12297323754,28670.892813508101,22494.930275630333,15622.568031471548,22494.930275630333,133032.65510221996,{"$f":"SUM(AI7:AI8)","v":88761.828000022695},14447.248532064288,5322.9382945886919,34569.494327457476,81710.201669018556,1168.7120331147516,1168.2455780444113,8481.9359924080018,28218.831672029384,760779.348,9759.4821102655806,240.65790858639991,240.72652146532363,18558.492046997126,52292.356722277706,8588.2099657649087,97726.718441346704,46341.848701138035,21258.84185948698,27609.19499420399,2307.5197410583041,251]
["Estimated no. of people with not meeting the guidelines who are motivated to increase their PA (estimated at 45.2%):",null,null,null,null,null,null,null,null,null,null,null,null,null,null,null,null,null,null,null,null,null,null,null,null,null,null,null,null,null,null,null,null,null,null,null,null,null,null,null,null,null,null,null,null,null,null,null,null,null,null,null,null,null,null,252]
[null,"Eligible at risk",{"$f":"0.452*C251","v":25123.898222694123},56760.398171403504,31485.157967490319,16735.501407827309,12510.962070494325,60928.210665375402,17546.633744964765,17928.536048872014,7676.1106692873682,24222.130233725518,24199.645900370382,22437.550798481017,20718.249864244353,12599.194472681618,14612.785821965821,10339.085063483026,166238.63009143679,48639.113713842133,3942.6733883326197,22660.510170261532,49132.350713351101,49103.587484510543,40703.244728489444,93421.371422013253,265620.46464898001,70058.789280007026,166303.94553322342,44223.575007241991,34325.348961930198,11420.943655985933,34325.348961930198,99419.825595561881,{"$f":"0.452*AI251","v":99922.189873779018},12689.322340594963,12796.352193639408,23619.644181161926,55431.304215230943,3126.1041205271786,3124.8315827471838,20150.442467987843,23561.364697742902,737010.94090799999,17549.816580584113,2808.1310557494426,2808.8948122002757,16585.112254226526,43880.777491726119,11411.865407232553,105685.23803070639,56515.303640249716,13160.073740290247,24821.467365779379,3944.4480658884609,253]
[null,"Q1",{"$f":"0.452*C252","v":2704.7731895810243},3708.8491657571362,852.69301414302686,1429.7176500247915,1151.0192494232151,21649.927295971844,1173.4390726196934,3878.1238735445636,2221.3756355169494,2289.2100637290578,2287.2253577288056,9243.0293293099639,7671.3778294978019,819.72521394704154,639.48526286873039,972.3715704470776,29381.613575824078,8741.5924573902794,0,4252.5036689013396,12068.346070481426,12061.464432938403,8142.0823759218556,51147.984402566974,102842.69916815033,3924.4959164405641,71697.781756715529,3792.0824835211893,2851.5166983183603,5593.0055555727913,2851.5166983183603,30921.398276276828,{"$f":"0.452*AI252","v":16097.085946766152},1549.3450824197637,140.64291058480947,10889.986227631332,20488.424186214343,0,0,1297.0849230864749,7954.6829946150838,179858.72672400001,1173.622132025014,0,0,3420.4864314859574,10878.568622014312,1923.0660670895843,23200.350362106456,11104.675176617491,5680.4901089613859,5026.8963031379117,0,254]
[null,"Q1 & Q2",{"$f":"0.452*C253","v":8938.5609934950662},13286.22309260739,3924.0800467125191,4592.7088891259809,3556.5947040422752,37172.57841283764,4410.5207512324914,7651.6742278201209,4336.6069063644791,9623.3895350182156,9614.6044516791899,13919.935792967983,13399.189594630065,3399.5310282285509,5172.0723185698853,2115.4298177094111,67804.456578482117,17101.308586422561,1042.5192379029888,11542.697951856251,23157.316728294558,23143.924116840746,19097.773582171259,67803.578864791838,162710.07940520332,15843.714712871069,102660.10358390337,12959.243551705662,10167.708484584911,7061.4007502251397,10167.708484584911,60130.760106203423,{"$f":"0.452*AI253","v":40120.346256010256},6530.156336493058,2405.9681091540888,15625.41143601078,36933.011154396387,528.25783896786777,528.04700127607396,3833.8350685684168,12754.911915757282,343872.265296,4411.2859138400427,108.77737468105276,108.80838770232629,8388.4384052427013,23636.145238469522,3881.8709045257388,44172.476735488708,20946.515612914391,9608.9965204881155,12479.356137380204,1042.9989229583534,255]

{"sheet":"Pop2016fraction","index":14,"n_rows":249,"n_cols":56,"rows_kept":249,"cut":false,"hidden":true,"merged":[]}
["Subgroup's fraction of area's 2016 population (16+ only)"]
[]
["SIMD","group","Aberdeen City Local Authority","Aberdeen City Region Deal","Aberdeenshire Local Authority","Angus Local Authority","Argyll & Bute Local Authority","Ayrshire & Arran Health Board","Borders Health Board","Clackmannanshire & Stirling IJB","Clackmannanshire Local Authority","Dumfries & Galloway Health Board","Dumfries & Galloway Local Authority","Dundee City Local Authority","East Ayrshire Local Authority","East Dunbartonshire Local Authority","East Lothian Local Authority","East Renfrewshire Local Authority","Edinburgh & SE Scotland City Region Deal","Edinburgh, City of Local Authority","Eilean Siar Local Authority","Falkirk Local Authority","Fife Health Board","Fife Local Authority","Forth Valley Health Board","Glasgow City Local Authority","Glasgow City Region Deal","Grampian Health Board","Greater Glasgow & Clyde Health Board","Highland Health Board","Highland Local Authority","Inverclyde Local Authority","Inverness & Highland City Region Deal","Lanarkshire Health Board","Lothian Health Board","Midlothian Local Authority","Moray Local Authority","North Ayrshire Local Authority","North Lanarkshire Local Authority","Orkney Health Board","Orkney Islands Local Authority","Perth & Kinross Local Authority","Renfrewshire Local Authority","Scotland","Scottish Borders Local Authority","Shetland Health Board","Shetland Islands Local Authority","South Ayrshire Local Authority","South Lanarkshire Local Authority","Stirling Local Authority","Tay Cities Region Deal ","Tayside Health Board","West Dunbartonshire Local Authority","West Lothian Local Authority","Western Isles Health Board",1]
[null,null,"popS12000033","Aber_deal","popS12000034","popS12000041","popS12000035","popS08000015","popS08000016","ClacksStirIJB","popS12000005","popS08000017","popS12000006","popS12000042","popS12000008","popS12000045","popS12000010","popS12000011","EdinSE_deal","popS12000036","popS12000013","popS12000014","popS08000018","popS12000015","popS08000019","popS12000046","GClyde_deal","popS08000020","popS08000021","popS08000022","popS12000017","popS12000018","Inver_deal","popS08000023","popS08000024","popS12000019","popS12000020","popS12000021","popS12000044","popS08000025","popS12000023","popS12000024","popS12000038","popS00000001","popS12000026","popS08000026","popS12000027","popS12000028","popS12000029","popS12000030","Tay_deal","popS08000027","popS12000039","popS12000040","popS08000028",2]
["All quintiles","16+ Males and Females",{"$f":"'Population 2016'!C5/'Population 2016'!C$5","v":1},{"$f":"'Population 2016'!D5/'Population 2016'!D$5","v":1},{"$f":"'Population 2016'!E5/'Population 2016'!E$5","v":1},{"$f":"'Population 2016'!F5/'Population 2016'!F$5","v":1},{"$f":"'Population 2016'!G5/'Population 2016'!G$5","v":1},{"$f":"'Population 2016'!H5/'Population 2016'!H$5","v":1},{"$f":"'Population 2016'!I5/'Population 2016'!I$5","v":1},{"$f":"'Population 2016'!J5/'Population 2016'!J$5","v":1},{"$f":"'Population 2016'!K5/'Population 2016'!K$5","v":1},{"$f":"'Population 2016'!L5/'Population 2016'!L$5","v":1},{"$f":"'Population 2016'!M5/'Population 2016'!M$5","v":1},{"$f":"'Population 2016'!N5/'Population 2016'!N$5","v":1},{"$f":"'Population 2016'!O5/'Population 2016'!O$5","v":1},{"$f":"'Population 2016'!P5/'Population 2016'!P$5","v":1},{"$f":"'Population 2016'!Q5/'Population 2016'!Q$5","v":1},{"$f":"'Population 2016'!R5/'Population 2016'!R$5","v":1},{"$f":"'Population 2016'!S5/'Population 2016'!S$5","v":1},{"$f":"'Population 2016'!T5/'Population 2016'!T$5","v":1},{"$f":"'Population 2016'!U5/'Population 2016'!U$5","v":1},{"$f":"'Population 2016'!V5/'Population 2016'!V$5","v":1},{"$f":"'Population 2016'!W5/'Population 2016'!W$5","v":1},{"$f":"'Population 2016'!X5/'Population 2016'!X$5","v":1},{"$f":"'Population 2016'!Y5/'Population 2016'!Y$5","v":1},{"$f":"'Population 2016'!Z5/'Population 2016'!Z$5","v":1},{"$f":"'Population 2016'!AA5/'Population 2016'!AA$5","v":1},{"$f":"'Population 2016'!AB5/'Population 2016'!AB$5","v":1},{"$f":"'Population 2016'!AC5/'Population 2016'!AC$5","v":1},{"$f":"'Population 2016'!AD5/'Population 2016'!AD$5","v":1},{"$f":"'Population 2016'!AE5/'Population 2016'!AE$5","v":1},{"$f":"'Population 2016'!AF5/'Population 2016'!AF$5","v":1},{"$f":"'Population 2016'!AG5/'Population 2016'!AG$5","v":1},{"$f":"'Population 2016'!AH5/'Population 2016'!AH$5","v":1},{"$f":"'Population 2016'!AI5/'Population 2016'!AI$5","v":1},{"$f":"'Population 2016'!AJ5/'Population 2016'!AJ$5","v":1},{"$f":"'Population 2016'!AK5/'Population 2016'!AK$5","v":1},{"$f":"'Population 2016'!AL5/'Population 2016'!AL$5","v":1},{"$f":"'Population 2016'!AM5/'Population 2016'!AM$5","v":1},{"$f":"'Population 2016'!AN5/'Population 2016'!AN$5","v":1},{"$f":"'Population 2016'!AO5/'Population 2016'!AO$5","v":1},{"$f":"'Population 2016'!AP5/'Population 2016'!AP$5","v":1},{"$f":"'Population 2016'!AQ5/'Population 2016'!AQ$5","v":1},{"$f":"'Population 2016'!AR5/'Population 2016'!AR$5","v":1},{"$f":"'Population 2016'!AS5/'Population 2016'!AS$5","v":1},{"$f":"'Population 2016'!AT5/'Population 2016'!AT$5","v":1},{"$f":"'Population 2016'!AU5/'Population 2016'!AU$5","v":1},{"$f":"'Population 2016'!AV5/'Population 2016'!AV$5","v":1},{"$f":"'Population 2016'!AW5/'Population 2016'!AW$5","v":1},{"$f":"'Population 2016'!AX5/'Population 2016'!AX$5","v":1},{"$f":"'Population 2016'!AY5/'Population 2016'!AY$5","v":1},{"$f":"'Population 2016'!AZ5/'Population 2016'!AZ$5","v":1},{"$f":"'Population 2016'!BA5/'Population 2016'!BA$5","v":1},{"$f":"'Population 2016'!BB5/'Population 2016'!BB$5","v":1},{"$f":"'Population 2016'!BC5/'Population 2016'!BC$5","v":1},3]
["Q1 and Q2","16+ Males and Females",{"$f":"'Population 2016'!C6/'Population 2016'!C$5","v":0.28505568532043973},{"$f":"'Population 2016'!D6/'Population 2016'!D$5","v":0.18697123519458544},{"$f":"'Population 2016'!E6/'Population 2016'!E$5","v":9.7009642835377996E-2},{"$f":"'Population 2016'!F6/'Population 2016'!F$5","v":0.23802214782384754},{"$f":"'Population 2016'!G6/'Population 2016'!G$5","v":0.24178530828777134},{"$f":"'Population 2016'!H6/'Population 2016'!H$5","v":0.54380651918044964},{"$f":"'Population 2016'!I6/'Population 2016'!I$5","v":0.21558077212963739},{"$f":"'Population 2016'!J6/'Population 2016'!J$5","v":0.35335826774918522},{"$f":"'Population 2016'!K6/'Population 2016'!K$5","v":0.49690497566507585},{"$f":"'Population 2016'!L6/'Population 2016'!L$5","v":0.35540800279573648},{"$f":"'Population 2016'!M6/'Population 2016'!M$5","v":0.35540800279573648},{"$f":"'Population 2016'!N6/'Population 2016'!N$5","v":0.54660386912177206},{"$f":"'Population 2016'!O6/'Population 2016'!O$5","v":0.57661406167959506},{"$f":"'Population 2016'!P6/'Population 2016'!P$5","v":0.21319734024568918},{"$f":"'Population 2016'!Q6/'Population 2016'!Q$5","v":0.30533131220549697},{"$f":"'Population 2016'!R6/'Population 2016'!R$5","v":0.15587906531111939},{"$f":"'Population 2016'!S6/'Population 2016'!S$5","v":0.33554762732778909},{"$f":"'Population 2016'!T6/'Population 2016'!T$5","v":0.27603849178466566},{"$f":"'Population 2016'!U6/'Population 2016'!U$5","v":0.24042845129022264},{"$f":"'Population 2016'!V6/'Population 2016'!V$5","v":0.43180864136283498},{"$f":"'Population 2016'!W6/'Population 2016'!W$5","v":0.39425345962517733},{"$f":"'Population 2016'!X6/'Population 2016'!X$5","v":0.39425345962517733},{"$f":"'Population 2016'!Y6/'Population 2016'!Y$5","v":0.39421074386734711},{"$f":"'Population 2016'!Z6/'Population 2016'!Z$5","v":0.63716963198556664},{"$f":"'Population 2016'!AA6/'Population 2016'!AA$5","v":0.53156248816568641},{"$f":"'Population 2016'!AB6/'Population 2016'!AB$5","v":0.1825286838684585},{"$f":"'Population 2016'!AC6/'Population 2016'!AC$5","v":0.53169597514381872},{"$f":"'Population 2016'!AD6/'Population 2016'!AD$5","v":0.2515650005582642},{"$f":"'Population 2016'!AE6/'Population 2016'!AE$5","v":0.25527469481206172},{"$f":"'Population 2016'!AF6/'Population 2016'!AF$5","v":0.54526534859521336},{"$f":"'Population 2016'!AG6/'Population 2016'!AG$5","v":0.25527469481206172},{"$f":"'Population 2016'!AH6/'Population 2016'!AH$5","v":0.53132273854527556},{"$f":"'Population 2016'!AI6/'Population 2016'!AI$5","v":0.32665942995887653},{"$f":"'Population 2016'!AJ6/'Population 2016'!AJ$5","v":0.45442377938265066},{"$f":"'Population 2016'!AK6/'Population 2016'!AK$5","v":0.15968721320543605},{"$f":"'Population 2016'!AL6/'Population 2016'!AL$5","v":0.59903158865575279},{"$f":"'Population 2016'!AM6/'Population 2016'!AM$5","v":0.59371728886490327},{"$f":"'Population 2016'!AN6/'Population 2016'!AN$5","v":0.14186756845205628},{"$f":"'Population 2016'!AO6/'Population 2016'!AO$5","v":0.14186756845205628},{"$f":"'Population 2016'!AP6/'Population 2016'!AP$5","v":0.16515543014758335},{"$f":"'Population 2016'!AQ6/'Population 2016'!AQ$5","v":0.465384720776018},{"$f":"'Population 2016'!AR6/'Population 2016'!AR$5","v":0.39415271355287168},{"$f":"'Population 2016'!AS6/'Population 2016'!AS$5","v":0.21558077212963739},{"$f":"'Population 2016'!AT6/'Population 2016'!AT$5","v":3.3162861812621923E-2},{"$f":"'Population 2016'!AU6/'Population 2016'!AU$5","v":3.3162861812621923E-2},{"$f":"'Population 2016'!AV6/'Population 2016'!AV$5","v":0.44308943089430897},{"$f":"'Population 2016'!AW6/'Population 2016'!AW$5","v":0.46562862285679418},{"$f":"'Population 2016'!AX6/'Population 2016'!AX$5","v":0.27571974392067161},{"$f":"'Population 2016'!AY6/'Population 2016'!AY$5","v":0.35582907499770511},{"$f":"'Population 2016'!AZ6/'Population 2016'!AZ$5","v":0.32201391006207181},{"$f":"'Population 2016'!BA6/'Population 2016'!BA$5","v":0.67740498812351546},{"$f":"'Population 2016'!BB6/'Population 2016'!BB$5","v":0.4261477803939982},{"$f":"'Population 2016'!BC6/'Population 2016'!BC$5","v":0.24042845129022264},4]
["SIMD Q1 (most deprived)","16+ Males and Females",{"$f":"'Population 2016'!C7/'Population 2016'!C$5","v":8.0274772173184156E-2},{"$f":"'Population 2016'!D7/'Population 2016'!D$5","v":4.9091380338996314E-2},{"$f":"'Population 2016'!E7/'Population 2016'!E$5","v":2.0490439201383843E-2},{"$f":"'Population 2016'!F7/'Population 2016'!F$5","v":6.9245428792171007E-2},{"$f":"'Population 2016'!G7/'Population 2016'!G$5","v":7.3052563200346449E-2},{"$f":"'Population 2016'!H7/'Population 2016'!H$5","v":0.30013974767600587},{"$f":"'Population 2016'!I7/'Population 2016'!I$5","v":5.3816682019931332E-2},{"$f":"'Population 2016'!J7/'Population 2016'!J$5","v":0.16491545242695901},{"$f":"'Population 2016'!K7/'Population 2016'!K$5","v":0.23571799839342247},{"$f":"'Population 2016'!L7/'Population 2016'!L$5","v":7.9297253506584273E-2},{"$f":"'Population 2016'!M7/'Population 2016'!M$5","v":7.9297253506584273E-2},{"$f":"'Population 2016'!N7/'Population 2016'!N$5","v":0.34639650862796473},{"$f":"'Population 2016'!O7/'Population 2016'!O$5","v":0.31131056755926728},{"$f":"'Population 2016'!P7/'Population 2016'!P$5","v":4.6647131747999553E-2},{"$f":"'Population 2016'!Q7/'Population 2016'!Q$5","v":3.4300419501533473E-2},{"$f":"'Population 2016'!R7/'Population 2016'!R$5","v":6.5577260871879497E-2},{"$f":"'Population 2016'!S7/'Population 2016'!S$5","v":0.13517902946487992},{"$f":"'Population 2016'!T7/'Population 2016'!T$5","v":0.13021223528754833},{"$f":"'Population 2016'!U7/'Population 2016'!U$5","v":0},{"$f":"'Population 2016'!V7/'Population 2016'!V$5","v":0.14533548057181672},{"$f":"'Population 2016'!W7/'Population 2016'!W$5","v":0.19312781492884645},{"$f":"'Population 2016'!X7/'Population 2016'!X$5","v":0.19312781492884645},{"$f":"'Population 2016'!Y7/'Population 2016'!Y$5","v":0.15471932083750656},{"$f":"'Population 2016'!Z7/'Population 2016'!Z$5","v":0.45964152904760708},{"$f":"'Population 2016'!AA7/'Population 2016'!AA$5","v":0.32015729920533209},{"$f":"'Population 2016'!AB7/'Population 2016'!AB$5","v":4.2397879287227616E-2},{"$f":"'Population 2016'!AC7/'Population 2016'!AC$5","v":0.35500319597204094},{"$f":"'Population 2016'!AD7/'Population 2016'!AD$5","v":6.9094495515277826E-2},{"$f":"'Population 2016'!AE7/'Population 2016'!AE$5","v":6.7593096438361797E-2},{"$f":"'Population 2016'!AF7/'Population 2016'!AF$5","v":0.41722843052979236},{"$f":"'Population 2016'!AG7/'Population 2016'!AG$5","v":6.7593096438361797E-2},{"$f":"'Population 2016'!AH7/'Population 2016'!AH$5","v":0.25757223930226725},{"$f":"'Population 2016'!AI7/'Population 2016'!AI$5","v":0.12156575378423309},{"$f":"'Population 2016'!AJ7/'Population 2016'!AJ$5","v":9.858349831302457E-2},{"$f":"'Population 2016'!AK7/'Population 2016'!AK$5","v":7.9831034786216268E-3},{"$f":"'Population 2016'!AL7/'Population 2016'!AL$5","v":0.39894645359252229},{"$f":"'Population 2016'!AM7/'Population 2016'!AM$5","v":0.31183196844518657},{"$f":"'Population 2016'!AN7/'Population 2016'!AN$5","v":0},{"$f":"'Population 2016'!AO7/'Population 2016'!AO$5","v":0},{"$f":"'Population 2016'!AP7/'Population 2016'!AP$5","v":5.2470554666074851E-2},{"$f":"'Population 2016'!AQ7/'Population 2016'!AQ$5","v":0.28025154819970405},{"$f":"'Population 2016'!AR7/'Population 2016'!AR$5","v":0.19431413815281337},{"$f":"'Population 2016'!AS7/'Population 2016'!AS$5","v":5.3816682019931332E-2},{"$f":"'Population 2016'!AT7/'Population 2016'!AT$5","v":0},{"$f":"'Population 2016'!AU7/'Population 2016'!AU$5","v":0},{"$f":"'Population 2016'!AV7/'Population 2016'!AV$5","v":0.1705944462042023},{"$f":"'Population 2016'!AW7/'Population 2016'!AW$5","v":0.20044313258893159},{"$f":"'Population 2016'!AX7/'Population 2016'!AX$5","v":0.12662126071789104},{"$f":"'Population 2016'!AY7/'Population 2016'!AY$5","v":0.1767540772926165},{"$f":"'Population 2016'!AZ7/'Population 2016'!AZ$5","v":0.1623444609994765},{"$f":"'Population 2016'!BA7/'Population 2016'!BA$5","v":0.37985856186568778},{"$f":"'Population 2016'!BB7/'Population 2016'!BB$5","v":0.15856597363678421},{"$f":"'Population 2016'!BC7/'Population 2016'!BC$5","v":0},5]
["SIMD Q2",null,{"$f":"'Population 2016'!C8/'Population 2016'!C$5","v":0.20478091314725561},{"$f":"'Population 2016'!D8/'Population 2016'!D$5","v":0.13787985485558912},{"$f":"'Population 2016'!E8/'Population 2016'!E$5","v":7.6519203633994157E-2},{"$f":"'Population 2016'!F8/'Population 2016'!F$5","v":0.16877671903167654},{"$f":"'Population 2016'!G8/'Population 2016'!G$5","v":0.16873274508742489},{"$f":"'Population 2016'!H8/'Population 2016'!H$5","v":0.24366677150444371},{"$f":"'Population 2016'!I8/'Population 2016'!I$5","v":0.16176409010970605},{"$f":"'Population 2016'!J8/'Population 2016'!J$5","v":0.18844281532222618},{"$f":"'Population 2016'!K8/'Population 2016'!K$5","v":0.26118697727165335},{"$f":"'Population 2016'!L8/'Population 2016'!L$5","v":0.27611074928915225},{"$f":"'Population 2016'!M8/'Population 2016'!M$5","v":0.27611074928915225},{"$f":"'Population 2016'!N8/'Population 2016'!N$5","v":0.20020736049380733},{"$f":"'Population 2016'!O8/'Population 2016'!O$5","v":0.26530349412032772},{"$f":"'Population 2016'!P8/'Population 2016'!P$5","v":0.16655020849768962},{"$f":"'Population 2016'!Q8/'Population 2016'!Q$5","v":0.27103089270396352},{"$f":"'Population 2016'!R8/'Population 2016'!R$5","v":9.0301804439239894E-2},{"$f":"'Population 2016'!S8/'Population 2016'!S$5","v":0.20036859786290914},{"$f":"'Population 2016'!T8/'Population 2016'!T$5","v":0.14582625649711731},{"$f":"'Population 2016'!U8/'Population 2016'!U$5","v":0.24042845129022264},{"$f":"'Population 2016'!V8/'Population 2016'!V$5","v":0.28647316079101826},{"$f":"'Population 2016'!W8/'Population 2016'!W$5","v":0.20112564469633087},{"$f":"'Population 2016'!X8/'Population 2016'!X$5","v":0.20112564469633087},{"$f":"'Population 2016'!Y8/'Population 2016'!Y$5","v":0.23949142302984056},{"$f":"'Population 2016'!Z8/'Population 2016'!Z$5","v":0.17752810293795962},{"$f":"'Population 2016'!AA8/'Population 2016'!AA$5","v":0.21140518896035429},{"$f":"'Population 2016'!AB8/'Population 2016'!AB$5","v":0.14013080458123087},{"$f":"'Population 2016'!AC8/'Population 2016'!AC$5","v":0.17669277917177781},{"$f":"'Population 2016'!AD8/'Population 2016'!AD$5","v":0.18247050504298634},{"$f":"'Population 2016'!AE8/'Population 2016'!AE$5","v":0.18768159837369994},{"$f":"'Population 2016'!AF8/'Population 2016'!AF$5","v":0.12803691806542097},{"$f":"'Population 2016'!AG8/'Population 2016'!AG$5","v":0.18768159837369994},{"$f":"'Population 2016'!AH8/'Population 2016'!AH$5","v":0.27375049924300826},{"$f":"'Population 2016'!AI8/'Population 2016'!AI$5","v":0.20509367617464344},{"$f":"'Population 2016'!AJ8/'Population 2016'!AJ$5","v":0.35584028106962606},{"$f":"'Population 2016'!AK8/'Population 2016'!AK$5","v":0.15170410972681442},{"$f":"'Population 2016'!AL8/'Population 2016'!AL$5","v":0.20008513506323053},{"$f":"'Population 2016'!AM8/'Population 2016'!AM$5","v":0.2818853204197167},{"$f":"'Population 2016'!AN8/'Population 2016'!AN$5","v":0.14186756845205628},{"$f":"'Population 2016'!AO8/'Population 2016'!AO$5","v":0.14186756845205628},{"$f":"'Population 2016'!AP8/'Population 2016'!AP$5","v":0.11268487548150849},{"$f":"'Population 2016'!AQ8/'Population 2016'!AQ$5","v":0.18513317257631393},{"$f":"'Population 2016'!AR8/'Population 2016'!AR$5","v":0.19983857540005831},{"$f":"'Population 2016'!AS8/'Population 2016'!AS$5","v":0.16176409010970605},{"$f":"'Population 2016'!AT8/'Population 2016'!AT$5","v":3.3162861812621923E-2},{"$f":"'Population 2016'!AU8/'Population 2016'!AU$5","v":3.3162861812621923E-2},{"$f":"'Population 2016'!AV8/'Population 2016'!AV$5","v":0.27249498469010663},{"$f":"'Population 2016'!AW8/'Population 2016'!AW$5","v":0.26518549026786259},{"$f":"'Population 2016'!AX8/'Population 2016'!AX$5","v":0.14909848320278057},{"$f":"'Population 2016'!AY8/'Population 2016'!AY$5","v":0.17907499770508858},{"$f":"'Population 2016'!AZ8/'Population 2016'!AZ$5","v":0.15966944906259528},{"$f":"'Population 2016'!BA8/'Population 2016'!BA$5","v":0.29754642625782768},{"$f":"'Population 2016'!BB8/'Population 2016'!BB$5","v":0.26758180675721399},{"$f":"'Population 2016'!BC8/'Population 2016'!BC$5","v":0.24042845129022264},6]
["SIMD Q3",null,{"$f":"'Population 2016'!C9/'Population 2016'!C$5","v":0.15567356493383694},{"$f":"'Population 2016'!D9/'Population 2016'!D$5","v":0.17959909235840107},{"$f":"'Population 2016'!E9/'Population 2016'!E$5","v":0.20154322868567731},{"$f":"'Population 2016'!F9/'Population 2016'!F$5","v":0.32874581509142414},{"$f":"'Population 2016'!G9/'Population 2016'!G$5","v":0.41176311373355706},{"$f":"'Population 2016'!H9/'Population 2016'!H$5","v":0.17415284050931706},{"$f":"'Population 2016'!I9/'Population 2016'!I$5","v":0.33486517042123776},{"$f":"'Population 2016'!J9/'Population 2016'!J$5","v":0.17295970410422695},{"$f":"'Population 2016'!K9/'Population 2016'!K$5","v":0.18900911969002504},{"$f":"'Population 2016'!L9/'Population 2016'!L$5","v":0.37253983130271789},{"$f":"'Population 2016'!M9/'Population 2016'!M$5","v":0.37253983130271789},{"$f":"'Population 2016'!N9/'Population 2016'!N$5","v":0.12765529934657333},{"$f":"'Population 2016'!O9/'Population 2016'!O$5","v":0.17299214392565954},{"$f":"'Population 2016'!P9/'Population 2016'!P$5","v":6.1444832638341038E-2},{"$f":"'Population 2016'!Q9/'Population 2016'!Q$5","v":0.21600216213675516},{"$f":"'Population 2016'!R9/'Population 2016'!R$5","v":0.1108745409059456},{"$f":"'Population 2016'!S9/'Population 2016'!S$5","v":0.2041278370825691},{"$f":"'Population 2016'!T9/'Population 2016'!T$5","v":0.15277125028501232},{"$f":"'Population 2016'!U9/'Population 2016'!U$5","v":0.70207586420572743},{"$f":"'Population 2016'!V9/'Population 2016'!V$5","v":0.18445134749391318},{"$f":"'Population 2016'!W9/'Population 2016'!W$5","v":0.2169774936429183},{"$f":"'Population 2016'!X9/'Population 2016'!X$5","v":0.2169774936429183},{"$f":"'Population 2016'!Y9/'Population 2016'!Y$5","v":0.17894389596349819},{"$f":"'Population 2016'!Z9/'Population 2016'!Z$5","v":0.14271859507571871},{"$f":"'Population 2016'!AA9/'Population 2016'!AA$5","v":0.15730917106986181},{"$f":"'Population 2016'!AB9/'Population 2016'!AB$5","v":0.19575038637503453},{"$f":"'Population 2016'!AC9/'Population 2016'!AC$5","v":0.13991014043659666},{"$f":"'Population 2016'!AD9/'Population 2016'!AD$5","v":0.34543898172615284},{"$f":"'Population 2016'!AE9/'Population 2016'!AE$5","v":0.32028049569297429},{"$f":"'Population 2016'!AF9/'Population 2016'!AF$5","v":0.15791219894735253},{"$f":"'Population 2016'!AG9/'Population 2016'!AG$5","v":0.32028049569297429},{"$f":"'Population 2016'!AH9/'Population 2016'!AH$5","v":0.1885587434866203},{"$f":"'Population 2016'!AI9/'Population 2016'!AI$5","v":0.18167873392247791},{"$f":"'Population 2016'!AJ9/'Population 2016'!AJ$5","v":0.23635780609541868},{"$f":"'Population 2016'!AK9/'Population 2016'!AK$5","v":0.27879260274317036},{"$f":"'Population 2016'!AL9/'Population 2016'!AL$5","v":0.14443695571203066},{"$f":"'Population 2016'!AM9/'Population 2016'!AM$5","v":0.18133513950110652},{"$f":"'Population 2016'!AN9/'Population 2016'!AN$5","v":0.31329769826551762},{"$f":"'Population 2016'!AO9/'Population 2016'!AO$5","v":0.31329769826551762},{"$f":"'Population 2016'!AP9/'Population 2016'!AP$5","v":0.23947022177131716},{"$f":"'Population 2016'!AQ9/'Population 2016'!AQ$5","v":0.17783745273195595},{"$f":"'Population 2016'!AR9/'Population 2016'!AR$5","v":0.2022770982691745},{"$f":"'Population 2016'!AS9/'Population 2016'!AS$5","v":0.33486517042123776},{"$f":"'Population 2016'!AT9/'Population 2016'!AT$5","v":0.32904518374018032},{"$f":"'Population 2016'!AU9/'Population 2016'!AU$5","v":0.32904518374018032},{"$f":"'Population 2016'!AV9/'Population 2016'!AV$5","v":0.21076971808679126},{"$f":"'Population 2016'!AW9/'Population 2016'!AW$5","v":0.19616434803831839},{"$f":"'Population 2016'!AX9/'Population 2016'!AX$5","v":0.16427923380656043},{"$f":"'Population 2016'!AY9/'Population 2016'!AY$5","v":0.22091582264924575},{"$f":"'Population 2016'!AZ9/'Population 2016'!AZ$5","v":0.22438172707974988},{"$f":"'Population 2016'!BA9/'Population 2016'!BA$5","v":0.15290973871733968},{"$f":"'Population 2016'!BB9/'Population 2016'!BB$5","v":0.22022054507916561},{"$f":"'Population 2016'!BC9/'Population 2016'!BC$5","v":0.70207586420572743},7]
["SIMD Q4",null,{"$f":"'Population 2016'!C10/'Population 2016'!C$5","v":0.17209038450726541},{"$f":"'Population 2016'!D10/'Population 2016'!D$5","v":0.27172520368142561},{"$f":"'Population 2016'!E10/'Population 2016'!E$5","v":0.36310877137057646},{"$f":"'Population 2016'!F10/'Population 2016'!F$5","v":0.25391707442698946},{"$f":"'Population 2016'!G10/'Population 2016'!G$5","v":0.24428896226925784},{"$f":"'Population 2016'!H10/'Population 2016'!H$5","v":0.14626166860670595},{"$f":"'Population 2016'!I10/'Population 2016'!I$5","v":0.35694246713005612},{"$f":"'Population 2016'!J10/'Population 2016'!J$5","v":0.2411036381579493},{"$f":"'Population 2016'!K10/'Population 2016'!K$5","v":0.17731418040920474},{"$f":"'Population 2016'!L10/'Population 2016'!L$5","v":0.18171493018601179},{"$f":"'Population 2016'!M10/'Population 2016'!M$5","v":0.18171493018601179},{"$f":"'Population 2016'!N10/'Population 2016'!N$5","v":0.17335498026860419},{"$f":"'Population 2016'!O10/'Population 2016'!O$5","v":0.13525722947068089},{"$f":"'Population 2016'!P10/'Population 2016'!P$5","v":0.1839738532627071},{"$f":"'Population 2016'!Q10/'Population 2016'!Q$5","v":0.31186472544388433},{"$f":"'Population 2016'!R10/'Population 2016'!R$5","v":0.14973119710438068},{"$f":"'Population 2016'!S10/'Population 2016'!S$5","v":0.19364098073864328},{"$f":"'Population 2016'!T10/'Population 2016'!T$5","v":0.16057477094316971},{"$f":"'Population 2016'!U10/'Population 2016'!U$5","v":5.7495684504049925E-2},{"$f":"'Population 2016'!V10/'Population 2016'!V$5","v":0.19151128445058427},{"$f":"'Population 2016'!W10/'Population 2016'!W$5","v":0.17321985370541054},{"$f":"'Population 2016'!X10/'Population 2016'!X$5","v":0.17321985370541054},{"$f":"'Population 2016'!Y10/'Population 2016'!Y$5","v":0.2152787714026804},{"$f":"'Population 2016'!Z10/'Population 2016'!Z$5","v":0.11734029187952372},{"$f":"'Population 2016'!AA10/'Population 2016'!AA$5","v":0.1494574984536497},{"$f":"'Population 2016'!AB10/'Population 2016'!AB$5","v":0.28981505173843175},{"$f":"'Population 2016'!AC10/'Population 2016'!AC$5","v":0.13997943821224151},{"$f":"'Population 2016'!AD10/'Population 2016'!AD$5","v":0.30640142915627677},{"$f":"'Population 2016'!AE10/'Population 2016'!AE$5","v":0.32996231994168318},{"$f":"'Population 2016'!AF10/'Population 2016'!AF$5","v":0.17646171711230754},{"$f":"'Population 2016'!AG10/'Population 2016'!AG$5","v":0.32996231994168318},{"$f":"'Population 2016'!AH10/'Population 2016'!AH$5","v":0.16648059221831085},{"$f":"'Population 2016'!AI10/'Population 2016'!AI$5","v":0.18085571791057836},{"$f":"'Population 2016'!AJ10/'Population 2016'!AJ$5","v":0.15486713325711737},{"$f":"'Population 2016'!AK10/'Population 2016'!AK$5","v":0.38282438429528681},{"$f":"'Population 2016'!AL10/'Population 2016'!AL$5","v":0.16345045316684698},{"$f":"'Population 2016'!AM10/'Population 2016'!AM$5","v":0.13531770322103945},{"$f":"'Population 2016'!AN10/'Population 2016'!AN$5","v":0.47027380822515547},{"$f":"'Population 2016'!AO10/'Population 2016'!AO$5","v":0.47027380822515547},{"$f":"'Population 2016'!AP10/'Population 2016'!AP$5","v":0.41339188053833836},{"$f":"'Population 2016'!AQ10/'Population 2016'!AQ$5","v":0.17690579273305201},{"$f":"'Population 2016'!AR10/'Population 2016'!AR$5","v":0.20290399424521077},{"$f":"'Population 2016'!AS10/'Population 2016'!AS$5","v":0.35694246713005612},{"$f":"'Population 2016'!AT10/'Population 2016'!AT$5","v":0.63779195444719772},{"$f":"'Population 2016'!AU10/'Population 2016'!AU$5","v":0.63779195444719772},{"$f":"'Population 2016'!AV10/'Population 2016'!AV$5","v":0.1375250765494668},{"$f":"'Population 2016'!AW10/'Population 2016'!AW$5","v":0.19929144548172556},{"$f":"'Population 2016'!AX10/'Population 2016'!AX$5","v":0.27560473823427933},{"$f":"'Population 2016'!AY10/'Population 2016'!AY$5","v":0.23159022061748416},{"$f":"'Population 2016'!AZ10/'Population 2016'!AZ$5","v":0.28295873578360592},{"$f":"'Population 2016'!BA10/'Population 2016'!BA$5","v":0.12984506586050529},{"$f":"'Population 2016'!BB10/'Population 2016'!BB$5","v":0.17693322193298025},{"$f":"'Population 2016'!BC10/'Population 2016'!BC$5","v":5.7495684504049925E-2},8]
["SIMD Q5 (least deprived)",null,{"$f":"'Population 2016'!C11/'Population 2016'!C$5","v":0.38718036523845789},{"$f":"'Population 2016'!D11/'Population 2016'!D$5","v":0.36170446876558787},{"$f":"'Population 2016'!E11/'Population 2016'!E$5","v":0.33833835710836824},{"$f":"'Population 2016'!F11/'Population 2016'!F$5","v":0.17931496265773886},{"$f":"'Population 2016'!G11/'Population 2016'!G$5","v":0.10216261570941373},{"$f":"'Population 2016'!H11/'Population 2016'!H$5","v":0.1357789717035274},{"$f":"'Population 2016'!I11/'Population 2016'!I$5","v":9.2611590319068751E-2},{"$f":"'Population 2016'!J11/'Population 2016'!J$5","v":0.23257838998863853},{"$f":"'Population 2016'!K11/'Population 2016'!K$5","v":0.13677172423569436},{"$f":"'Population 2016'!L11/'Population 2016'!L$5","v":9.0337235715533815E-2},{"$f":"'Population 2016'!M11/'Population 2016'!M$5","v":9.0337235715533815E-2},{"$f":"'Population 2016'!N11/'Population 2016'!N$5","v":0.15238585126305046},{"$f":"'Population 2016'!O11/'Population 2016'!O$5","v":0.11513656492406456},{"$f":"'Population 2016'!P11/'Population 2016'!P$5","v":0.54138397385326276},{"$f":"'Population 2016'!Q11/'Population 2016'!Q$5","v":0.16680180021386354},{"$f":"'Population 2016'!R11/'Population 2016'!R$5","v":0.58351519667855434},{"$f":"'Population 2016'!S11/'Population 2016'!S$5","v":0.26668355485099854},{"$f":"'Population 2016'!T11/'Population 2016'!T$5","v":0.41061548698715233},{"$f":"'Population 2016'!U11/'Population 2016'!U$5","v":0},{"$f":"'Population 2016'!V11/'Population 2016'!V$5","v":0.19222872669266758},{"$f":"'Population 2016'!W11/'Population 2016'!W$5","v":0.21554919302649383},{"$f":"'Population 2016'!X11/'Population 2016'!X$5","v":0.21554919302649383},{"$f":"'Population 2016'!Y11/'Population 2016'!Y$5","v":0.2115665887664743},{"$f":"'Population 2016'!Z11/'Population 2016'!Z$5","v":0.10277148105919087},{"$f":"'Population 2016'!AA11/'Population 2016'!AA$5","v":0.16167084231080212},{"$f":"'Population 2016'!AB11/'Population 2016'!AB$5","v":0.3319058780180752},{"$f":"'Population 2016'!AC11/'Population 2016'!AC$5","v":0.18841444620734307},{"$f":"'Population 2016'!AD11/'Population 2016'!AD$5","v":9.6594588559306263E-2},{"$f":"'Population 2016'!AE11/'Population 2016'!AE$5","v":9.4482489553280841E-2},{"$f":"'Population 2016'!AF11/'Population 2016'!AF$5","v":0.1203607353451266},{"$f":"'Population 2016'!AG11/'Population 2016'!AG$5","v":9.4482489553280841E-2},{"$f":"'Population 2016'!AH11/'Population 2016'!AH$5","v":0.11363792574979334},{"$f":"'Population 2016'!AI11/'Population 2016'!AI$5","v":0.31080611820806719},{"$f":"'Population 2016'!AJ11/'Population 2016'!AJ$5","v":0.15435128126481332},{"$f":"'Population 2016'!AK11/'Population 2016'!AK$5","v":0.17869579975610675},{"$f":"'Population 2016'!AL11/'Population 2016'!AL$5","v":9.3081002465369544E-2},{"$f":"'Population 2016'!AM11/'Population 2016'!AM$5","v":8.96298684129508E-2},{"$f":"'Population 2016'!AN11/'Population 2016'!AN$5","v":7.4560925057270647E-2},{"$f":"'Population 2016'!AO11/'Population 2016'!AO$5","v":7.4560925057270647E-2},{"$f":"'Population 2016'!AP11/'Population 2016'!AP$5","v":0.18198246754276112},{"$f":"'Population 2016'!AQ11/'Population 2016'!AQ$5","v":0.17987203375897406},{"$f":"'Population 2016'!AR11/'Population 2016'!AR$5","v":0.20066619393274301},{"$f":"'Population 2016'!AS11/'Population 2016'!AS$5","v":9.2611590319068751E-2},{"$f":"'Population 2016'!AT11/'Population 2016'!AT$5","v":0},{"$f":"'Population 2016'!AU11/'Population 2016'!AU$5","v":0},{"$f":"'Population 2016'!AV11/'Population 2016'!AV$5","v":0.208615774469433},{"$f":"'Population 2016'!AW11/'Population 2016'!AW$5","v":0.13891558362316186},{"$f":"'Population 2016'!AX11/'Population 2016'!AX$5","v":0.28439628403848854},{"$f":"'Population 2016'!AY11/'Population 2016'!AY$5","v":0.19166488173556501},{"$f":"'Population 2016'!AZ11/'Population 2016'!AZ$5","v":0.17064562707457243},{"$f":"'Population 2016'!BA11/'Population 2016'!BA$5","v":3.9840207298639602E-2},{"$f":"'Population 2016'!BB11/'Population 2016'!BB$5","v":0.17669845259385594},{"$f":"'Population 2016'!BC11/'Population 2016'!BC$5","v":0},9]
["SIMD Q1 (most deprived)","16+ Females",{"$f":"'Population 2016'!C12/'Population 2016'!C$5","v":4.0582050875785189E-2},{"$f":"'Population 2016'!D12/'Population 2016'!D$5","v":2.4656944729712547E-2},{"$f":"'Population 2016'!E12/'Population 2016'!E$5","v":1.0050675279745357E-2},{"$f":"'Population 2016'!F12/'Population 2016'!F$5","v":3.5910378573268092E-2},{"$f":"'Population 2016'!G12/'Population 2016'!G$5","v":3.7893141341417205E-2},{"$f":"'Population 2016'!H12/'Population 2016'!H$5","v":0.1596884696818876},{"$f":"'Population 2016'!I12/'Population 2016'!I$5","v":2.7855707227200401E-2},{"$f":"'Population 2016'!J12/'Population 2016'!J$5","v":8.7582826766625474E-2},{"$f":"'Population 2016'!K12/'Population 2016'!K$5","v":0.12323394603789632},{"$f":"'Population 2016'!L12/'Population 2016'!L$5","v":4.1515098565596556E-2},{"$f":"'Population 2016'!M12/'Population 2016'!M$5","v":4.1515098565596556E-2},{"$f":"'Population 2016'!N12/'Population 2016'!N$5","v":0.18184229350350825},{"$f":"'Population 2016'!O12/'Population 2016'!O$5","v":0.16437324773877809},{"$f":"'Population 2016'!P12/'Population 2016'!P$5","v":2.48055899921109E-2},{"$f":"'Population 2016'!Q12/'Population 2016'!Q$5","v":1.8331159445834948E-2},{"$f":"'Population 2016'!R12/'Population 2016'!R$5","v":3.5756107946984618E-2},{"$f":"'Population 2016'!S12/'Population 2016'!S$5","v":7.060379083836596E-2},{"$f":"'Population 2016'!T12/'Population 2016'!T$5","v":6.7702637934323864E-2},{"$f":"'Population 2016'!U12/'Population 2016'!U$5","v":0},{"$f":"'Population 2016'!V12/'Population 2016'!V$5","v":7.526274414025233E-2},{"$f":"'Population 2016'!W12/'Population 2016'!W$5","v":0.1009321540865086},{"$f":"'Population 2016'!X12/'Population 2016'!X$5","v":0.1009321540865086},{"$f":"'Population 2016'!Y12/'Population 2016'!Y$5","v":8.1167231045611354E-2},{"$f":"'Population 2016'!Z12/'Population 2016'!Z$5","v":0.24039505752221813},{"$f":"'Population 2016'!AA12/'Population 2016'!AA$5","v":0.16821102383339412},{"$f":"'Population 2016'!AB12/'Population 2016'!AB$5","v":2.1358607207557598E-2},{"$f":"'Population 2016'!AC12/'Population 2016'!AC$5","v":0.18656616075842797},{"$f":"'Population 2016'!AD12/'Population 2016'!AD$5","v":3.5903829692210357E-2},{"$f":"'Population 2016'!AE12/'Population 2016'!AE$5","v":3.5149231511617161E-2},{"$f":"'Population 2016'!AF12/'Population 2016'!AF$5","v":0.2227299461611546},{"$f":"'Population 2016'!AG12/'Population 2016'!AG$5","v":3.5149231511617161E-2},{"$f":"'Population 2016'!AH12/'Population 2016'!AH$5","v":0.13524423432376953},{"$f":"'Population 2016'!AI12/'Population 2016'!AI$5","v":6.3500743722110425E-2},{"$f":"'Population 2016'!AJ12/'Population 2016'!AJ$5","v":5.2059225385494796E-2},{"$f":"'Population 2016'!AK12/'Population 2016'!AK$5","v":4.4001357756182193E-3},{"$f":"'Population 2016'!AL12/'Population 2016'!AL$5","v":0.21438959933310867},{"$f":"'Population 2016'!AM12/'Population 2016'!AM$5","v":0.16305131279179691},{"$f":"'Population 2016'!AN12/'Population 2016'!AN$5","v":0},{"$f":"'Population 2016'!AO12/'Population 2016'!AO$5","v":0},{"$f":"'Population 2016'!AP12/'Population 2016'!AP$5","v":2.6694989141290048E-2},{"$f":"'Population 2016'!AQ12/'Population 2016'!AQ$5","v":0.14605140571052777},{"$f":"'Population 2016'!AR12/'Population 2016'!AR$5","v":0.10195035046247501},{"$f":"'Population 2016'!AS12/'Population 2016'!AS$5","v":2.7855707227200401E-2},{"$f":"'Population 2016'!AT12/'Population 2016'!AT$5","v":0},{"$f":"'Population 2016'!AU12/'Population 2016'!AU$5","v":0},{"$f":"'Population 2016'!AV12/'Population 2016'!AV$5","v":8.9568155421813955E-2},{"$f":"'Population 2016'!AW12/'Population 2016'!AW$5","v":0.10596665446335957},{"$f":"'Population 2016'!AX12/'Population 2016'!AX$5","v":6.8300599307410198E-2},{"$f":"'Population 2016'!AY12/'Population 2016'!AY$5","v":9.2347235396713689E-2},{"$f":"'Population 2016'!AZ12/'Population 2016'!AZ$5","v":8.4792125685292041E-2},{"$f":"'Population 2016'!BA12/'Population 2016'!BA$5","v":0.20539570287194991},{"$f":"'Population 2016'!BB12/'Population 2016'!BB$5","v":8.3239540680692989E-2},{"$f":"'Population 2016'!BC12/'Population 2016'!BC$5","v":0},10]
["SIMD Q2",null,{"$f":"'Population 2016'!C13/'Population 2016'!C$5","v":0.10523222235283895},{"$f":"'Population 2016'!D13/'Population 2016'!D$5","v":7.0951067554747019E-2},{"$f":"'Population 2016'!E13/'Population 2016'!E$5","v":3.9508904504521394E-2},{"$f":"'Population 2016'!F13/'Population 2016'!F$5","v":8.8405871748647946E-2},{"$f":"'Population 2016'!G13/'Population 2016'!G$5","v":8.8913549504682513E-2},{"$f":"'Population 2016'!H13/'Population 2016'!H$5","v":0.12879158790323364},{"$f":"'Population 2016'!I13/'Population 2016'!I$5","v":8.3535717276609994E-2},{"$f":"'Population 2016'!J13/'Population 2016'!J$5","v":9.8521350439116626E-2},{"$f":"'Population 2016'!K13/'Population 2016'!K$5","v":0.13662996739592687},{"$f":"'Population 2016'!L13/'Population 2016'!L$5","v":0.1440201420107064},{"$f":"'Population 2016'!M13/'Population 2016'!M$5","v":0.1440201420107064},{"$f":"'Population 2016'!N13/'Population 2016'!N$5","v":0.10406603386888065},{"$f":"'Population 2016'!O13/'Population 2016'!O$5","v":0.13875432183156497},{"$f":"'Population 2016'!P13/'Population 2016'!P$5","v":8.887636650512791E-2},{"$f":"'Population 2016'!Q13/'Population 2016'!Q$5","v":0.14501592225708276},{"$f":"'Population 2016'!R13/'Population 2016'!R$5","v":4.8091765582583698E-2},{"$f":"'Population 2016'!S13/'Population 2016'!S$5","v":0.10494535466069754},{"$f":"'Population 2016'!T13/'Population 2016'!T$5","v":7.509434489048547E-2},{"$f":"'Population 2016'!U13/'Population 2016'!U$5","v":0.12180763953436906},{"$f":"'Population 2016'!V13/'Population 2016'!V$5","v":0.14931957472466245},{"$f":"'Population 2016'!W13/'Population 2016'!W$5","v":0.10578249302191804},{"$f":"'Population 2016'!X13/'Population 2016'!X$5","v":0.10578249302191804},{"$f":"'Population 2016'!Y13/'Population 2016'!Y$5","v":0.12497416575253176},{"$f":"'Population 2016'!Z13/'Population 2016'!Z$5","v":9.0876006372644855E-2},{"$f":"'Population 2016'!AA13/'Population 2016'!AA$5","v":0.11083229191373392},{"$f":"'Population 2016'!AB13/'Population 2016'!AB$5","v":7.2358064747244197E-2},{"$f":"'Population 2016'!AC13/'Population 2016'!AC$5","v":9.2128806981906036E-2},{"$f":"'Population 2016'!AD13/'Population 2016'!AD$5","v":9.5995385016189663E-2},{"$f":"'Population 2016'!AE13/'Population 2016'!AE$5","v":9.8681711311204429E-2},{"$f":"'Population 2016'!AF13/'Population 2016'!AF$5","v":6.8301437210635058E-2},{"$f":"'Population 2016'!AG13/'Population 2016'!AG$5","v":9.8681711311204429E-2},{"$f":"'Population 2016'!AH13/'Population 2016'!AH$5","v":0.14442473273083603},{"$f":"'Population 2016'!AI13/'Population 2016'!AI$5","v":0.10739128532680024},{"$f":"'Population 2016'!AJ13/'Population 2016'!AJ$5","v":0.19047486267183447},{"$f":"'Population 2016'!AK13/'Population 2016'!AK$5","v":7.95921702726827E-2},{"$f":"'Population 2016'!AL13/'Population 2016'!AL$5","v":0.10674695376101878},{"$f":"'Population 2016'!AM13/'Population 2016'!AM$5","v":0.1493167107946293},{"$f":"'Population 2016'!AN13/'Population 2016'!AN$5","v":7.0415621250136354E-2},{"$f":"'Population 2016'!AO13/'Population 2016'!AO$5","v":7.0415621250136354E-2},{"$f":"'Population 2016'!AP13/'Population 2016'!AP$5","v":5.5965949621926671E-2},{"$f":"'Population 2016'!AQ13/'Population 2016'!AQ$5","v":9.9180687236258017E-2},{"$f":"'Population 2016'!AR13/'Population 2016'!AR$5","v":0.10450026209776681},{"$f":"'Population 2016'!AS13/'Population 2016'!AS$5","v":8.3535717276609994E-2},{"$f":"'Population 2016'!AT13/'Population 2016'!AT$5","v":1.5236990562556018E-2},{"$f":"'Population 2016'!AU13/'Population 2016'!AU$5","v":1.5236990562556018E-2},{"$f":"'Population 2016'!AV13/'Population 2016'!AV$5","v":0.14441980783444197},{"$f":"'Population 2016'!AW13/'Population 2016'!AW$5","v":0.13927405576911342},{"$f":"'Population 2016'!AX13/'Population 2016'!AX$5","v":7.7909963325964449E-2},{"$f":"'Population 2016'!AY13/'Population 2016'!AY$5","v":9.3259080199504296E-2},{"$f":"'Population 2016'!AZ13/'Population 2016'!AZ$5","v":8.2237920739108669E-2},{"$f":"'Population 2016'!BA13/'Population 2016'!BA$5","v":0.15685057223061974},{"$f":"'Population 2016'!BB13/'Population 2016'!BB$5","v":0.13998467094315128},{"$f":"'Population 2016'!BC13/'Population 2016'!BC$5","v":0.12180763953436906},11]
["SIMD Q3",null,{"$f":"'Population 2016'!C14/'Population 2016'!C$5","v":7.5516347819864757E-2},{"$f":"'Population 2016'!D14/'Population 2016'!D$5","v":8.9693181929325239E-2},{"$f":"'Population 2016'!E14/'Population 2016'!E$5","v":0.10269596238497274},{"$f":"'Population 2016'!F14/'Population 2016'!F$5","v":0.16861189801699716},{"$f":"'Population 2016'!G14/'Population 2016'!G$5","v":0.21348725166459157},{"$f":"'Population 2016'!H14/'Population 2016'!H$5","v":9.0813292565488479E-2},{"$f":"'Population 2016'!I14/'Population 2016'!I$5","v":0.17332091114647014},{"$f":"'Population 2016'!J14/'Population 2016'!J$5","v":9.0319530945489834E-2},{"$f":"'Population 2016'!K14/'Population 2016'!K$5","v":9.8426499078580545E-2},{"$f":"'Population 2016'!L14/'Population 2016'!L$5","v":0.19272314266198592},{"$f":"'Population 2016'!M14/'Population 2016'!M$5","v":0.19272314266198592},{"$f":"'Population 2016'!N14/'Population 2016'!N$5","v":6.6564325957836706E-2},{"$f":"'Population 2016'!O14/'Population 2016'!O$5","v":8.7615537789401732E-2},{"$f":"'Population 2016'!P14/'Population 2016'!P$5","v":3.2807393215372481E-2},{"$f":"'Population 2016'!Q14/'Population 2016'!Q$5","v":0.11315965734832728},{"$f":"'Population 2016'!R14/'Population 2016'!R$5","v":5.9509235109384148E-2},{"$f":"'Population 2016'!S14/'Population 2016'!S$5","v":0.10545464816380715},{"$f":"'Population 2016'!T14/'Population 2016'!T$5","v":7.817015118448789E-2},{"$f":"'Population 2016'!U14/'Population 2016'!U$5","v":0.3586951710706856},{"$f":"'Population 2016'!V14/'Population 2016'!V$5","v":9.5221376725868376E-2},{"$f":"'Population 2016'!W14/'Population 2016'!W$5","v":0.11313317514168611},{"$f":"'Population 2016'!X14/'Population 2016'!X$5","v":0.11313317514168611},{"$f":"'Population 2016'!Y14/'Population 2016'!Y$5","v":9.2872132398531024E-2},{"$f":"'Population 2016'!Z14/'Population 2016'!Z$5","v":7.3318324451249847E-2},{"$f":"'Population 2016'!AA14/'Population 2016'!AA$5","v":8.2239925801760219E-2},{"$f":"'Population 2016'!AB14/'Population 2016'!AB$5","v":9.8649990276654762E-2},{"$f":"'Population 2016'!AC14/'Population 2016'!AC$5","v":7.2824722136605569E-2},{"$f":"'Population 2016'!AD14/'Population 2016'!AD$5","v":0.17748706688004764},{"$f":"'Population 2016'!AE14/'Population 2016'!AE$5","v":0.16383125083419747},{"$f":"'Population 2016'!AF14/'Population 2016'!AF$5","v":8.3337103560602629E-2},{"$f":"'Population 2016'!AG14/'Population 2016'!AG$5","v":0.16383125083419747},{"$f":"'Population 2016'!AH14/'Population 2016'!AH$5","v":9.9150125855679297E-2},{"$f":"'Population 2016'!AI14/'Population 2016'!AI$5","v":9.3379506081021968E-2},{"$f":"'Population 2016'!AJ14/'Population 2016'!AJ$5","v":0.12381842009870897},{"$f":"'Population 2016'!AK14/'Population 2016'!AK$5","v":0.14470160793533057},{"$f":"'Population 2016'!AL14/'Population 2016'!AL$5","v":7.6435323956652063E-2},{"$f":"'Population 2016'!AM14/'Population 2016'!AM$5","v":9.529828933214049E-2},{"$f":"'Population 2016'!AN14/'Population 2016'!AN$5","v":0.15899421839205846},{"$f":"'Population 2016'!AO14/'Population 2016'!AO$5","v":0.15899421839205846},{"$f":"'Population 2016'!AP14/'Population 2016'!AP$5","v":0.123472250844126},{"$f":"'Population 2016'!AQ14/'Population 2016'!AQ$5","v":9.367293253685538E-2},{"$f":"'Population 2016'!AR14/'Population 2016'!AR$5","v":0.10450338098321973},{"$f":"'Population 2016'!AS14/'Population 2016'!AS$5","v":0.17332091114647014},{"$f":"'Population 2016'!AT14/'Population 2016'!AT$5","v":0.16170190330574155},{"$f":"'Population 2016'!AU14/'Population 2016'!AU$5","v":0.16170190330574155},{"$f":"'Population 2016'!AV14/'Population 2016'!AV$5","v":0.11133987963256256},{"$f":"'Population 2016'!AW14/'Population 2016'!AW$5","v":0.1032056562328391},{"$f":"'Population 2016'!AX14/'Population 2016'!AX$5","v":8.5934804554225183E-2},{"$f":"'Population 2016'!AY14/'Population 2016'!AY$5","v":0.11450384015177015},{"$f":"'Population 2016'!AZ14/'Population 2016'!AZ$5","v":0.11571008623318051},{"$f":"'Population 2016'!BA14/'Population 2016'!BA$5","v":8.0328222846037578E-2},{"$f":"'Population 2016'!BB14/'Population 2016'!BB$5","v":0.11181925522879653},{"$f":"'Population 2016'!BC14/'Population 2016'!BC$5","v":0.3586951710706856},12]
["SIMD Q4",null,{"$f":"'Population 2016'!C15/'Population 2016'!C$5","v":8.7133854323726195E-2},{"$f":"'Population 2016'!D15/'Population 2016'!D$5","v":0.13744950754574886},{"$f":"'Population 2016'!E15/'Population 2016'!E$5","v":0.18359827300896778},{"$f":"'Population 2016'!F15/'Population 2016'!F$5","v":0.13129023950553695},{"$f":"'Population 2016'!G15/'Population 2016'!G$5","v":0.12589996210685866},{"$f":"'Population 2016'!H15/'Population 2016'!H$5","v":7.6780161666337027E-2},{"$f":"'Population 2016'!I15/'Population 2016'!I$5","v":0.18659450632275354},{"$f":"'Population 2016'!J15/'Population 2016'!J$5","v":0.12317656717779454},{"$f":"'Population 2016'!K15/'Population 2016'!K$5","v":8.4794216320937491E-2},{"$f":"'Population 2016'!L15/'Population 2016'!L$5","v":9.3712769844169458E-2},{"$f":"'Population 2016'!M15/'Population 2016'!M$5","v":9.3712769844169458E-2},{"$f":"'Population 2016'!N15/'Population 2016'!N$5","v":9.2146824089181081E-2},{"$f":"'Population 2016'!O15/'Population 2016'!O$5","v":6.9991381103813116E-2},{"$f":"'Population 2016'!P15/'Population 2016'!P$5","v":9.6900710019159245E-2},{"$f":"'Population 2016'!Q15/'Population 2016'!Q$5","v":0.16494518278281101},{"$f":"'Population 2016'!R15/'Population 2016'!R$5","v":8.0707404055996163E-2},{"$f":"'Population 2016'!S15/'Population 2016'!S$5","v":0.10040937664946661},{"$f":"'Population 2016'!T15/'Population 2016'!T$5","v":8.2849006295863711E-2},{"$f":"'Population 2016'!U15/'Population 2016'!U$5","v":3.0451909883592265E-2},{"$f":"'Population 2016'!V15/'Population 2016'!V$5","v":9.7701895116050097E-2},{"$f":"'Population 2016'!W15/'Population 2016'!W$5","v":8.914295426169605E-2},{"$f":"'Population 2016'!X15/'Population 2016'!X$5","v":8.914295426169605E-2},{"$f":"'Population 2016'!Y15/'Population 2016'!Y$5","v":0.1099108122287404},{"$f":"'Population 2016'!Z15/'Population 2016'!Z$5","v":6.05130250124375E-2},{"$f":"'Population 2016'!AA15/'Population 2016'!AA$5","v":7.7215200806294626E-2},{"$f":"'Population 2016'!AB15/'Population 2016'!AB$5","v":0.1466403283420161},{"$f":"'Population 2016'!AC15/'Population 2016'!AC$5","v":7.2800933347951374E-2},{"$f":"'Population 2016'!AD15/'Population 2016'!AD$5","v":0.15654843872120286},{"$f":"'Population 2016'!AE15/'Population 2016'!AE$5","v":0.16817421123420159},{"$f":"'Population 2016'!AF15/'Population 2016'!AF$5","v":9.1133933553514609E-2},{"$f":"'Population 2016'!AG15/'Population 2016'!AG$5","v":0.16817421123420159},{"$f":"'Population 2016'!AH15/'Population 2016'!AH$5","v":8.5143456897912931E-2},{"$f":"'Population 2016'!AI15/'Population 2016'!AI$5","v":9.3866206579753253E-2},{"$f":"'Population 2016'!AJ15/'Population 2016'!AJ$5","v":8.1490672838301317E-2},{"$f":"'Population 2016'!AK15/'Population 2016'!AK$5","v":0.19389512590674227},{"$f":"'Population 2016'!AL15/'Population 2016'!AL$5","v":8.5826785619268903E-2},{"$f":"'Population 2016'!AM15/'Population 2016'!AM$5","v":6.8386872444230348E-2},{"$f":"'Population 2016'!AN15/'Population 2016'!AN$5","v":0.23900949056397949},{"$f":"'Population 2016'!AO15/'Population 2016'!AO$5","v":0.23900949056397949},{"$f":"'Population 2016'!AP15/'Population 2016'!AP$5","v":0.21140402327092878},{"$f":"'Population 2016'!AQ15/'Population 2016'!AQ$5","v":9.1652052392174055E-2},{"$f":"'Population 2016'!AR15/'Population 2016'!AR$5","v":0.10443632494598201},{"$f":"'Population 2016'!AS15/'Population 2016'!AS$5","v":0.18659450632275354},{"$f":"'Population 2016'!AT15/'Population 2016'!AT$5","v":0.31786787578425685},{"$f":"'Population 2016'!AU15/'Population 2016'!AU$5","v":0.31786787578425685},{"$f":"'Population 2016'!AV15/'Population 2016'!AV$5","v":7.3244641537324462E-2},{"$f":"'Population 2016'!AW15/'Population 2016'!AW$5","v":0.10278616755140643},{"$f":"'Population 2016'!AX15/'Population 2016'!AX$5","v":0.14393600572472751},{"$f":"'Population 2016'!AY15/'Population 2016'!AY$5","v":0.11957406444111257},{"$f":"'Population 2016'!AZ15/'Population 2016'!AZ$5","v":0.14635479287353809},{"$f":"'Population 2016'!BA15/'Population 2016'!BA$5","v":6.8046858129993518E-2},{"$f":"'Population 2016'!BB15/'Population 2016'!BB$5","v":9.0924784046732904E-2},{"$f":"'Population 2016'!BC15/'Population 2016'!BC$5","v":3.0451909883592265E-2},13]
["SIMD Q5 (least deprived)",null,{"$f":"'Population 2016'!C16/'Population 2016'!C$5","v":0.19712961211941549},{"$f":"'Population 2016'!D16/'Population 2016'!D$5","v":0.18329861212992576},{"$f":"'Population 2016'!E16/'Population 2016'!E$5","v":0.17061302556265498},{"$f":"'Population 2016'!F16/'Population 2016'!F$5","v":9.2856039144990993E-2},{"$f":"'Population 2016'!G16/'Population 2016'!G$5","v":3.8407405402479292E-2},{"$f":"'Population 2016'!H16/'Population 2016'!H$5","v":7.095031662089471E-2},{"$f":"'Population 2016'!I16/'Population 2016'!I$5","v":4.8299974876476005E-2},{"$f":"'Population 2016'!J16/'Population 2016'!J$5","v":0.12168381944386854},{"$f":"'Population 2016'!K16/'Population 2016'!K$5","v":7.1492699522751973E-2},{"$f":"'Population 2016'!L16/'Population 2016'!L$5","v":4.7710196495798454E-2},{"$f":"'Population 2016'!M16/'Population 2016'!M$5","v":4.7710196495798454E-2},{"$f":"'Population 2016'!N16/'Population 2016'!N$5","v":7.9729306146068588E-2},{"$f":"'Population 2016'!O16/'Population 2016'!O$5","v":5.958926501619758E-2},{"$f":"'Population 2016'!P16/'Population 2016'!P$5","v":0.27929674292798379},{"$f":"'Population 2016'!Q16/'Population 2016'!Q$5","v":8.7061256624481498E-2},{"$f":"'Population 2016'!R16/'Population 2016'!R$5","v":0.30833821259381489},{"$f":"'Population 2016'!S16/'Population 2016'!S$5","v":0.13863904771824154},{"$f":"'Population 2016'!T16/'Population 2016'!T$5","v":0.21434321531109385},{"$f":"'Population 2016'!U16/'Population 2016'!U$5","v":0},{"$f":"'Population 2016'!V16/'Population 2016'!V$5","v":9.8205631158363921E-2},{"$f":"'Population 2016'!W16/'Population 2016'!W$5","v":0.11217879578242765},{"$f":"'Population 2016'!X16/'Population 2016'!X$5","v":0.11217879578242765},{"$f":"'Population 2016'!Y16/'Population 2016'!Y$5","v":0.10945771927314352},{"$f":"'Population 2016'!Z16/'Population 2016'!Z$5","v":5.3273142941211771E-2},{"$f":"'Population 2016'!AA16/'Population 2016'!AA$5","v":8.4045053107416695E-2},{"$f":"'Population 2016'!AB16/'Population 2016'!AB$5","v":0.16735617125369742},{"$f":"'Population 2016'!AC16/'Population 2016'!AC$5","v":9.8111170180856855E-2},{"$f":"'Population 2016'!AD16/'Population 2016'!AD$5","v":4.6678328184897096E-2},{"$f":"'Population 2016'!AE16/'Population 2016'!AE$5","v":4.9815706526761053E-2},{"$f":"'Population 2016'!AF16/'Population 2016'!AF$5","v":6.4184349032559679E-2},{"$f":"'Population 2016'!AG16/'Population 2016'!AG$5","v":4.9815706526761053E-2},{"$f":"'Population 2016'!AH16/'Population 2016'!AH$5","v":5.8781568412546559E-2},{"$f":"'Population 2016'!AI16/'Population 2016'!AI$5","v":0.1615052716773121},{"$f":"'Population 2016'!AJ16/'Population 2016'!AJ$5","v":7.8116721969718098E-2},{"$f":"'Population 2016'!AK16/'Population 2016'!AK$5","v":8.5387777679996987E-2},{"$f":"'Population 2016'!AL16/'Population 2016'!AL$5","v":4.7977155424699811E-2},{"$f":"'Population 2016'!AM16/'Population 2016'!AM$5","v":4.6307195815872303E-2},{"$f":"'Population 2016'!AN16/'Population 2016'!AN$5","v":3.7253190793062073E-2},{"$f":"'Population 2016'!AO16/'Population 2016'!AO$5","v":3.7253190793062073E-2},{"$f":"'Population 2016'!AP16/'Population 2016'!AP$5","v":9.6412662682497666E-2},{"$f":"'Population 2016'!AQ16/'Population 2016'!AQ$5","v":9.3213952978571823E-2},{"$f":"'Population 2016'!AR16/'Population 2016'!AR$5","v":0.10360915196836203},{"$f":"'Population 2016'!AS16/'Population 2016'!AS$5","v":4.8299974876476005E-2},{"$f":"'Population 2016'!AT16/'Population 2016'!AT$5","v":0},{"$f":"'Population 2016'!AU16/'Population 2016'!AU$5","v":0},{"$f":"'Population 2016'!AV16/'Population 2016'!AV$5","v":0.11041072748389821},{"$f":"'Population 2016'!AW16/'Population 2016'!AW$5","v":7.191561413142962E-2},{"$f":"'Population 2016'!AX16/'Population 2016'!AX$5","v":0.14883013660119862},{"$f":"'Population 2016'!AY16/'Population 2016'!AY$5","v":0.10008873657476822},{"$f":"'Population 2016'!AZ16/'Population 2016'!AZ$5","v":8.9448947541002466E-2},{"$f":"'Population 2016'!BA16/'Population 2016'!BA$5","v":2.0540919887713237E-2},{"$f":"'Population 2016'!BB16/'Population 2016'!BB$5","v":8.973712738998639E-2},{"$f":"'Population 2016'!BC16/'Population 2016'!BC$5","v":0},14]
["SIMD Q1 (most deprived)","16+ Males",{"$f":"'Population 2016'!C17/'Population 2016'!C$5","v":3.9692721297398967E-2},{"$f":"'Population 2016'!D17/'Population 2016'!D$5","v":2.4434435609283767E-2},{"$f":"'Population 2016'!E17/'Population 2016'!E$5","v":1.0439763921638485E-2},{"$f":"'Population 2016'!F17/'Population 2016'!F$5","v":3.3335050218902908E-2},{"$f":"'Population 2016'!G17/'Population 2016'!G$5","v":3.515942185892925E-2},{"$f":"'Population 2016'!H17/'Population 2016'!H$5","v":0.14045127799411827},{"$f":"'Population 2016'!I17/'Population 2016'!I$5","v":2.5960974792730927E-2},{"$f":"'Population 2016'!J17/'Population 2016'!J$5","v":7.733262566033354E-2},{"$f":"'Population 2016'!K17/'Population 2016'!K$5","v":0.11248405235552615},{"$f":"'Population 2016'!L17/'Population 2016'!L$5","v":3.7782154940987724E-2},{"$f":"'Population 2016'!M17/'Population 2016'!M$5","v":3.7782154940987724E-2},{"$f":"'Population 2016'!N17/'Population 2016'!N$5","v":0.16455421512445648},{"$f":"'Population 2016'!O17/'Population 2016'!O$5","v":0.14693731982048919},{"$f":"'Population 2016'!P17/'Population 2016'!P$5","v":2.1841541755888649E-2},{"$f":"'Population 2016'!Q17/'Population 2016'!Q$5","v":1.5969260055698525E-2},{"$f":"'Population 2016'!R17/'Population 2016'!R$5","v":2.9821152924894873E-2},{"$f":"'Population 2016'!S17/'Population 2016'!S$5","v":6.4575238626513973E-2},{"$f":"'Population 2016'!T17/'Population 2016'!T$5","v":6.2509597353224478E-2},{"$f":"'Population 2016'!U17/'Population 2016'!U$5","v":0},{"$f":"'Population 2016'!V17/'Population 2016'!V$5","v":7.0072736431564406E-2},{"$f":"'Population 2016'!W17/'Population 2016'!W$5","v":9.2195660842337837E-2},{"$f":"'Population 2016'!X17/'Population 2016'!X$5","v":9.2195660842337837E-2},{"$f":"'Population 2016'!Y17/'Population 2016'!Y$5","v":7.3552089791895203E-2},{"$f":"'Population 2016'!Z17/'Population 2016'!Z$5","v":0.21924647152538895},{"$f":"'Population 2016'!AA17/'Population 2016'!AA$5","v":0.15194627537193794},{"$f":"'Population 2016'!AB17/'Population 2016'!AB$5","v":2.1039272079670022E-2},{"$f":"'Population 2016'!AC17/'Population 2016'!AC$5","v":0.16843703521361297},{"$f":"'Population 2016'!AD17/'Population 2016'!AD$5","v":3.3190665823067476E-2},{"$f":"'Population 2016'!AE17/'Population 2016'!AE$5","v":3.2443864926744628E-2},{"$f":"'Population 2016'!AF17/'Population 2016'!AF$5","v":0.19449848436863773},{"$f":"'Population 2016'!AG17/'Population 2016'!AG$5","v":3.2443864926744628E-2},{"$f":"'Population 2016'!AH17/'Population 2016'!AH$5","v":0.12232800497849772},{"$f":"'Population 2016'!AI17/'Population 2016'!AI$5","v":5.8065010062122668E-2},{"$f":"'Population 2016'!AJ17/'Population 2016'!AJ$5","v":4.6524272927529767E-2},{"$f":"'Population 2016'!AK17/'Population 2016'!AK$5","v":3.5829677030034071E-3},{"$f":"'Population 2016'!AL17/'Population 2016'!AL$5","v":0.18455685425941362},{"$f":"'Population 2016'!AM17/'Population 2016'!AM$5","v":0.14878065565338963},{"$f":"'Population 2016'!AN17/'Population 2016'!AN$5","v":0},{"$f":"'Population 2016'!AO17/'Population 2016'!AO$5","v":0},{"$f":"'Population 2016'!AP17/'Population 2016'!AP$5","v":2.5775565524784806E-2},{"$f":"'Population 2016'!AQ17/'Population 2016'!AQ$5","v":0.13420014248917631},{"$f":"'Population 2016'!AR17/'Population 2016'!AR$5","v":9.2363787690338345E-2},{"$f":"'Population 2016'!AS17/'Population 2016'!AS$5","v":2.5960974792730927E-2},{"$f":"'Population 2016'!AT17/'Population 2016'!AT$5","v":0},{"$f":"'Population 2016'!AU17/'Population 2016'!AU$5","v":0},{"$f":"'Population 2016'!AV17/'Population 2016'!AV$5","v":8.1026290782388349E-2},{"$f":"'Population 2016'!AW17/'Population 2016'!AW$5","v":9.4476478125572028E-2},{"$f":"'Population 2016'!AX17/'Population 2016'!AX$5","v":5.8320661410480854E-2},{"$f":"'Population 2016'!AY17/'Population 2016'!AY$5","v":8.440684189590282E-2},{"$f":"'Population 2016'!AZ17/'Population 2016'!AZ$5","v":7.755233531418447E-2},{"$f":"'Population 2016'!BA17/'Population 2016'!BA$5","v":0.17446285899373784},{"$f":"'Population 2016'!BB17/'Population 2016'!BB$5","v":7.5326432956091233E-2},{"$f":"'Population 2016'!BC17/'Population 2016'!BC$5","v":0},15]
["SIMD Q2",null,{"$f":"'Population 2016'!C18/'Population 2016'!C$5","v":9.9548690794416653E-2},{"$f":"'Population 2016'!D18/'Population 2016'!D$5","v":6.6928787300842105E-2},{"$f":"'Population 2016'!E18/'Population 2016'!E$5","v":3.7010299129472762E-2},{"$f":"'Population 2016'!F18/'Population 2016'!F$5","v":8.0370847283028582E-2},{"$f":"'Population 2016'!G18/'Population 2016'!G$5","v":7.9819195582742378E-2},{"$f":"'Population 2016'!H18/'Population 2016'!H$5","v":0.11487518360121006},{"$f":"'Population 2016'!I18/'Population 2016'!I$5","v":7.8228372833096055E-2},{"$f":"'Population 2016'!J18/'Population 2016'!J$5","v":8.9921464883109564E-2},{"$f":"'Population 2016'!K18/'Population 2016'!K$5","v":0.1245570098757265},{"$f":"'Population 2016'!L18/'Population 2016'!L$5","v":0.13209060727844582},{"$f":"'Population 2016'!M18/'Population 2016'!M$5","v":0.13209060727844582},{"$f":"'Population 2016'!N18/'Population 2016'!N$5","v":9.6141326624926665E-2},{"$f":"'Population 2016'!O18/'Population 2016'!O$5","v":0.12654917228876275},{"$f":"'Population 2016'!P18/'Population 2016'!P$5","v":7.7673841992561707E-2},{"$f":"'Population 2016'!Q18/'Population 2016'!Q$5","v":0.12601497044688076},{"$f":"'Population 2016'!R18/'Population 2016'!R$5","v":4.2210038856656196E-2},{"$f":"'Population 2016'!S18/'Population 2016'!S$5","v":9.5423243202211586E-2},{"$f":"'Population 2016'!T18/'Population 2016'!T$5","v":7.0731911606631823E-2},{"$f":"'Population 2016'!U18/'Population 2016'!U$5","v":0.11862081175585358},{"$f":"'Population 2016'!V18/'Population 2016'!V$5","v":0.13715358606635578},{"$f":"'Population 2016'!W18/'Population 2016'!W$5","v":9.5343151674412832E-2},{"$f":"'Population 2016'!X18/'Population 2016'!X$5","v":9.5343151674412832E-2},{"$f":"'Population 2016'!Y18/'Population 2016'!Y$5","v":0.11451725727730878},{"$f":"'Population 2016'!Z18/'Population 2016'!Z$5","v":8.6652096565314765E-2},{"$f":"'Population 2016'!AA18/'Population 2016'!AA$5","v":0.10057289704662038},{"$f":"'Population 2016'!AB18/'Population 2016'!AB$5","v":6.777273983398667E-2},{"$f":"'Population 2016'!AC18/'Population 2016'!AC$5","v":8.4563972189871772E-2},{"$f":"'Population 2016'!AD18/'Population 2016'!AD$5","v":8.6475120026796679E-2},{"$f":"'Population 2016'!AE18/'Population 2016'!AE$5","v":8.8999887062495509E-2},{"$f":"'Population 2016'!AF18/'Population 2016'!AF$5","v":5.9735480854785923E-2},{"$f":"'Population 2016'!AG18/'Population 2016'!AG$5","v":8.8999887062495509E-2},{"$f":"'Population 2016'!AH18/'Population 2016'!AH$5","v":0.12932576651217223},{"$f":"'Population 2016'!AI18/'Population 2016'!AI$5","v":9.7702390847843212E-2},{"$f":"'Population 2016'!AJ18/'Population 2016'!AJ$5","v":0.16536541839779159},{"$f":"'Population 2016'!AK18/'Population 2016'!AK$5","v":7.2111939454131732E-2},{"$f":"'Population 2016'!AL18/'Population 2016'!AL$5","v":9.3338181302211734E-2},{"$f":"'Population 2016'!AM18/'Population 2016'!AM$5","v":0.13256860962508737},{"$f":"'Population 2016'!AN18/'Population 2016'!AN$5","v":7.1451947201919927E-2},{"$f":"'Population 2016'!AO18/'Population 2016'!AO$5","v":7.1451947201919927E-2},{"$f":"'Population 2016'!AP18/'Population 2016'!AP$5","v":5.6718925859581819E-2},{"$f":"'Population 2016'!AQ18/'Population 2016'!AQ$5","v":8.5952485340055895E-2},{"$f":"'Population 2016'!AR18/'Population 2016'!AR$5","v":9.5338313302291505E-2},{"$f":"'Population 2016'!AS18/'Population 2016'!AS$5","v":7.8228372833096055E-2},{"$f":"'Population 2016'!AT18/'Population 2016'!AT$5","v":1.7925871250065905E-2},{"$f":"'Population 2016'!AU18/'Population 2016'!AU$5","v":1.7925871250065905E-2},{"$f":"'Population 2016'!AV18/'Population 2016'!AV$5","v":0.12807517685566466},{"$f":"'Population 2016'!AW18/'Population 2016'!AW$5","v":0.12591143449874917},{"$f":"'Population 2016'!AX18/'Population 2016'!AX$5","v":7.1188519876816125E-2},{"$f":"'Population 2016'!AY18/'Population 2016'!AY$5","v":8.5815917505584288E-2},{"$f":"'Population 2016'!AZ18/'Population 2016'!AZ$5","v":7.7431528323486598E-2},{"$f":"'Population 2016'!BA18/'Population 2016'!BA$5","v":0.14069585402720794},{"$f":"'Population 2016'!BB18/'Population 2016'!BB$5","v":0.12759713581406268},{"$f":"'Population 2016'!BC18/'Population 2016'!BC$5","v":0.11862081175585358},16]
["SIMD Q3",null,{"$f":"'Population 2016'!C19/'Population 2016'!C$5","v":8.0157217113972182E-2},{"$f":"'Population 2016'!D19/'Population 2016'!D$5","v":8.9905910429075836E-2},{"$f":"'Population 2016'!E19/'Population 2016'!E$5","v":9.8847266300704575E-2},{"$f":"'Population 2016'!F19/'Population 2016'!F$5","v":0.16013391707442698},{"$f":"'Population 2016'!G19/'Population 2016'!G$5","v":0.19827586206896552},{"$f":"'Population 2016'!H19/'Population 2016'!H$5","v":8.3339547943828571E-2},{"$f":"'Population 2016'!I19/'Population 2016'!I$5","v":0.16154425927476762},{"$f":"'Population 2016'!J19/'Population 2016'!J$5","v":8.2640173158737132E-2},{"$f":"'Population 2016'!K19/'Population 2016'!K$5","v":9.0582620611444509E-2},{"$f":"'Population 2016'!L19/'Population 2016'!L$5","v":0.17981668864073197},{"$f":"'Population 2016'!M19/'Population 2016'!M$5","v":0.17981668864073197},{"$f":"'Population 2016'!N19/'Population 2016'!N$5","v":6.1090973388736626E-2},{"$f":"'Population 2016'!O19/'Population 2016'!O$5","v":8.5376606136257818E-2},{"$f":"'Population 2016'!P19/'Population 2016'!P$5","v":2.8637439422968557E-2},{"$f":"'Population 2016'!Q19/'Population 2016'!Q$5","v":0.10284250478842787},{"$f":"'Population 2016'!R19/'Population 2016'!R$5","v":5.1365305796561449E-2},{"$f":"'Population 2016'!S19/'Population 2016'!S$5","v":9.867318891876195E-2},{"$f":"'Population 2016'!T19/'Population 2016'!T$5","v":7.4601099100524426E-2},{"$f":"'Population 2016'!U19/'Population 2016'!U$5","v":0.34338069313504183},{"$f":"'Population 2016'!V19/'Population 2016'!V$5","v":8.9229970768044814E-2},{"$f":"'Population 2016'!W19/'Population 2016'!W$5","v":0.1038443185012322},{"$f":"'Population 2016'!X19/'Population 2016'!X$5","v":0.1038443185012322},{"$f":"'Population 2016'!Y19/'Population 2016'!Y$5","v":8.6071763564967166E-2},{"$f":"'Population 2016'!Z19/'Population 2016'!Z$5","v":6.9400270624468866E-2},{"$f":"'Population 2016'!AA19/'Population 2016'!AA$5","v":7.5069245268101603E-2},{"$f":"'Population 2016'!AB19/'Population 2016'!AB$5","v":9.7100396098379782E-2},{"$f":"'Population 2016'!AC19/'Population 2016'!AC$5","v":6.7085418299991109E-2},{"$f":"'Population 2016'!AD19/'Population 2016'!AD$5","v":0.16795191484610517},{"$f":"'Population 2016'!AE19/'Population 2016'!AE$5","v":0.15644924485877679},{"$f":"'Population 2016'!AF19/'Population 2016'!AF$5","v":7.4575095386749918E-2},{"$f":"'Population 2016'!AG19/'Population 2016'!AG$5","v":0.15644924485877679},{"$f":"'Population 2016'!AH19/'Population 2016'!AH$5","v":8.940861763094099E-2},{"$f":"'Population 2016'!AI19/'Population 2016'!AI$5","v":8.8299227841455941E-2},{"$f":"'Population 2016'!AJ19/'Population 2016'!AJ$5","v":0.11253938599670971},{"$f":"'Population 2016'!AK19/'Population 2016'!AK$5","v":0.13409099480783979},{"$f":"'Population 2016'!AL19/'Population 2016'!AL$5","v":6.8001631755378586E-2},{"$f":"'Population 2016'!AM19/'Population 2016'!AM$5","v":8.6036850168966034E-2},{"$f":"'Population 2016'!AN19/'Population 2016'!AN$5","v":0.15430347987345916},{"$f":"'Population 2016'!AO19/'Population 2016'!AO$5","v":0.15430347987345916},{"$f":"'Population 2016'!AP19/'Population 2016'!AP$5","v":0.11599797092719116},{"$f":"'Population 2016'!AQ19/'Population 2016'!AQ$5","v":8.4164520195100567E-2},{"$f":"'Population 2016'!AR19/'Population 2016'!AR$5","v":9.7773717285954784E-2},{"$f":"'Population 2016'!AS19/'Population 2016'!AS$5","v":0.16154425927476762},{"$f":"'Population 2016'!AT19/'Population 2016'!AT$5","v":0.16734328043443877},{"$f":"'Population 2016'!AU19/'Population 2016'!AU$5","v":0.16734328043443877},{"$f":"'Population 2016'!AV19/'Population 2016'!AV$5","v":9.9429838454228703E-2},{"$f":"'Population 2016'!AW19/'Population 2016'!AW$5","v":9.295869180547929E-2},{"$f":"'Population 2016'!AX19/'Population 2016'!AX$5","v":7.8344429252335257E-2},{"$f":"'Population 2016'!AY19/'Population 2016'!AY$5","v":0.10641198249747559},{"$f":"'Population 2016'!AZ19/'Population 2016'!AZ$5","v":0.10867164084656937},{"$f":"'Population 2016'!BA19/'Population 2016'!BA$5","v":7.2581515871302099E-2},{"$f":"'Population 2016'!BB19/'Population 2016'!BB$5","v":0.10840128985036906},{"$f":"'Population 2016'!BC19/'Population 2016'!BC$5","v":0.34338069313504183},17]
["SIMD Q4",null,{"$f":"'Population 2016'!C20/'Population 2016'!C$5","v":8.4956530183539228E-2},{"$f":"'Population 2016'!D20/'Population 2016'!D$5","v":0.13427569613567678},{"$f":"'Population 2016'!E20/'Population 2016'!E$5","v":0.17951049836160868},{"$f":"'Population 2016'!F20/'Population 2016'!F$5","v":0.12262683492145249},{"$f":"'Population 2016'!G20/'Population 2016'!G$5","v":0.11838900016239917},{"$f":"'Population 2016'!H20/'Population 2016'!H$5","v":6.948150694036892E-2},{"$f":"'Population 2016'!I20/'Population 2016'!I$5","v":0.17034796080730258},{"$f":"'Population 2016'!J20/'Population 2016'!J$5","v":0.11792707098015474},{"$f":"'Population 2016'!K20/'Population 2016'!K$5","v":9.2519964088267265E-2},{"$f":"'Population 2016'!L20/'Population 2016'!L$5","v":8.8002160341842328E-2},{"$f":"'Population 2016'!M20/'Population 2016'!M$5","v":8.8002160341842328E-2},{"$f":"'Population 2016'!N20/'Population 2016'!N$5","v":8.1208156179423091E-2},{"$f":"'Population 2016'!O20/'Population 2016'!O$5","v":6.5265848366867774E-2},{"$f":"'Population 2016'!P20/'Population 2016'!P$5","v":8.707314324354784E-2},{"$f":"'Population 2016'!Q20/'Population 2016'!Q$5","v":0.14691954266107332},{"$f":"'Population 2016'!R20/'Population 2016'!R$5","v":6.9023793048384519E-2},{"$f":"'Population 2016'!S20/'Population 2016'!S$5","v":9.3231604089176676E-2},{"$f":"'Population 2016'!T20/'Population 2016'!T$5","v":7.7725764647305989E-2},{"$f":"'Population 2016'!U20/'Population 2016'!U$5","v":2.7043774620457664E-2},{"$f":"'Population 2016'!V20/'Population 2016'!V$5","v":9.3809389334534157E-2},{"$f":"'Population 2016'!W20/'Population 2016'!W$5","v":8.4076899443714492E-2},{"$f":"'Population 2016'!X20/'Population 2016'!X$5","v":8.4076899443714492E-2},{"$f":"'Population 2016'!Y20/'Population 2016'!Y$5","v":0.10536795917394},{"$f":"'Population 2016'!Z20/'Population 2016'!Z$5","v":5.6827266867086217E-2},{"$f":"'Population 2016'!AA20/'Population 2016'!AA$5","v":7.2242297647355055E-2},{"$f":"'Population 2016'!AB20/'Population 2016'!AB$5","v":0.14317472339641565},{"$f":"'Population 2016'!AC20/'Population 2016'!AC$5","v":6.7178504864290126E-2},{"$f":"'Population 2016'!AD20/'Population 2016'!AD$5","v":0.14985299043507389},{"$f":"'Population 2016'!AE20/'Population 2016'!AE$5","v":0.16178810870748159},{"$f":"'Population 2016'!AF20/'Population 2016'!AF$5","v":8.5327783558792919E-2},{"$f":"'Population 2016'!AG20/'Population 2016'!AG$5","v":0.16178810870748159},{"$f":"'Population 2016'!AH20/'Population 2016'!AH$5","v":8.1337135320397908E-2},{"$f":"'Population 2016'!AI20/'Population 2016'!AI$5","v":8.6989511330825095E-2},{"$f":"'Population 2016'!AJ20/'Population 2016'!AJ$5","v":7.3376460418816056E-2},{"$f":"'Population 2016'!AK20/'Population 2016'!AK$5","v":0.18892925838854457},{"$f":"'Population 2016'!AL20/'Population 2016'!AL$5","v":7.7623667547578087E-2},{"$f":"'Population 2016'!AM20/'Population 2016'!AM$5","v":6.69308307768091E-2},{"$f":"'Population 2016'!AN20/'Population 2016'!AN$5","v":0.23126431766117594},{"$f":"'Population 2016'!AO20/'Population 2016'!AO$5","v":0.23126431766117594},{"$f":"'Population 2016'!AP20/'Population 2016'!AP$5","v":0.20198785726740962},{"$f":"'Population 2016'!AQ20/'Population 2016'!AQ$5","v":8.5253740340877959E-2},{"$f":"'Population 2016'!AR20/'Population 2016'!AR$5","v":9.8467669299228761E-2},{"$f":"'Population 2016'!AS20/'Population 2016'!AS$5","v":0.17034796080730258},{"$f":"'Population 2016'!AT20/'Population 2016'!AT$5","v":0.31992407866294092},{"$f":"'Population 2016'!AU20/'Population 2016'!AU$5","v":0.31992407866294092},{"$f":"'Population 2016'!AV20/'Population 2016'!AV$5","v":6.4280435012142326E-2},{"$f":"'Population 2016'!AW20/'Population 2016'!AW$5","v":9.6505277930319114E-2},{"$f":"'Population 2016'!AX20/'Population 2016'!AX$5","v":0.13166873250955186},{"$f":"'Population 2016'!AY20/'Population 2016'!AY$5","v":0.11201615617637159},{"$f":"'Population 2016'!AZ20/'Population 2016'!AZ$5","v":0.13660394291006783},{"$f":"'Population 2016'!BA20/'Population 2016'!BA$5","v":6.179820773051177E-2},{"$f":"'Population 2016'!BB20/'Population 2016'!BB$5","v":8.6008437886247346E-2},{"$f":"'Population 2016'!BC20/'Population 2016'!BC$5","v":2.7043774620457664E-2},18]
["SIMD Q5 (least deprived)",null,{"$f":"'Population 2016'!C21/'Population 2016'!C$5","v":0.19005075311904238},{"$f":"'Population 2016'!D21/'Population 2016'!D$5","v":0.17840585663566211},{"$f":"'Population 2016'!E21/'Population 2016'!E$5","v":0.16772533154571323},{"$f":"'Population 2016'!F21/'Population 2016'!F$5","v":8.6458923512747879E-2},{"$f":"'Population 2016'!G21/'Population 2016'!G$5","v":6.3755210306934443E-2},{"$f":"'Population 2016'!H21/'Population 2016'!H$5","v":6.4828655082632705E-2},{"$f":"'Population 2016'!I21/'Population 2016'!I$5","v":4.4311615442592746E-2},{"$f":"'Population 2016'!J21/'Population 2016'!J$5","v":0.11089457054476999},{"$f":"'Population 2016'!K21/'Population 2016'!K$5","v":6.5279024712942404E-2},{"$f":"'Population 2016'!L21/'Population 2016'!L$5","v":4.262703921973536E-2},{"$f":"'Population 2016'!M21/'Population 2016'!M$5","v":4.262703921973536E-2},{"$f":"'Population 2016'!N21/'Population 2016'!N$5","v":7.2656545116981858E-2},{"$f":"'Population 2016'!O21/'Population 2016'!O$5","v":5.554729990786697E-2},{"$f":"'Population 2016'!P21/'Population 2016'!P$5","v":0.26208723092527891},{"$f":"'Population 2016'!Q21/'Population 2016'!Q$5","v":7.9740543589382026E-2},{"$f":"'Population 2016'!R21/'Population 2016'!R$5","v":0.27517698408473945},{"$f":"'Population 2016'!S21/'Population 2016'!S$5","v":0.12804450713275703},{"$f":"'Population 2016'!T21/'Population 2016'!T$5","v":0.19627227167605851},{"$f":"'Population 2016'!U21/'Population 2016'!U$5","v":0},{"$f":"'Population 2016'!V21/'Population 2016'!V$5","v":9.4023095534303658E-2},{"$f":"'Population 2016'!W21/'Population 2016'!W$5","v":0.10337039724406617},{"$f":"'Population 2016'!X21/'Population 2016'!X$5","v":0.10337039724406617},{"$f":"'Population 2016'!Y21/'Population 2016'!Y$5","v":0.10210886949333078},{"$f":"'Population 2016'!Z21/'Population 2016'!Z$5","v":4.9498338117979102E-2},{"$f":"'Population 2016'!AA21/'Population 2016'!AA$5","v":7.7625789203385434E-2},{"$f":"'Population 2016'!AB21/'Population 2016'!AB$5","v":0.16454970676437775},{"$f":"'Population 2016'!AC21/'Population 2016'!AC$5","v":9.0303276026486232E-2},{"$f":"'Population 2016'!AD21/'Population 2016'!AD$5","v":4.9916260374409167E-2},{"$f":"'Population 2016'!AE21/'Population 2016'!AE$5","v":4.4666783026519781E-2},{"$f":"'Population 2016'!AF21/'Population 2016'!AF$5","v":5.6176386312566919E-2},{"$f":"'Population 2016'!AG21/'Population 2016'!AG$5","v":4.4666783026519781E-2},{"$f":"'Population 2016'!AH21/'Population 2016'!AH$5","v":5.4856357337246781E-2},{"$f":"'Population 2016'!AI21/'Population 2016'!AI$5","v":0.14930084653075509},{"$f":"'Population 2016'!AJ21/'Population 2016'!AJ$5","v":7.6234559295095219E-2},{"$f":"'Population 2016'!AK21/'Population 2016'!AK$5","v":9.3308022076109776E-2},{"$f":"'Population 2016'!AL21/'Population 2016'!AL$5","v":4.5103847040669727E-2},{"$f":"'Population 2016'!AM21/'Population 2016'!AM$5","v":4.3322672597078497E-2},{"$f":"'Population 2016'!AN21/'Population 2016'!AN$5","v":3.7307734264208574E-2},{"$f":"'Population 2016'!AO21/'Population 2016'!AO$5","v":3.7307734264208574E-2},{"$f":"'Population 2016'!AP21/'Population 2016'!AP$5","v":8.5569804860263457E-2},{"$f":"'Population 2016'!AQ21/'Population 2016'!AQ$5","v":8.6658080780402255E-2},{"$f":"'Population 2016'!AR21/'Population 2016'!AR$5","v":9.7057041964380988E-2},{"$f":"'Population 2016'!AS21/'Population 2016'!AS$5","v":4.4311615442592746E-2},{"$f":"'Population 2016'!AT21/'Population 2016'!AT$5","v":0},{"$f":"'Population 2016'!AU21/'Population 2016'!AU$5","v":0},{"$f":"'Population 2016'!AV21/'Population 2016'!AV$5","v":9.8205046985534797E-2},{"$f":"'Population 2016'!AW21/'Population 2016'!AW$5","v":6.6999969491732259E-2},{"$f":"'Population 2016'!AX21/'Population 2016'!AX$5","v":0.13556614743728995},{"$f":"'Population 2016'!AY21/'Population 2016'!AY$5","v":9.157614516079679E-2},{"$f":"'Population 2016'!AZ21/'Population 2016'!AZ$5","v":8.119667953356996E-2},{"$f":"'Population 2016'!BA21/'Population 2016'!BA$5","v":1.9299287410926364E-2},{"$f":"'Population 2016'!BB21/'Population 2016'!BB$5","v":8.6961325203869552E-2},{"$f":"'Population 2016'!BC21/'Population 2016'!BC$5","v":0},19]
["All quintiles","Female 0-4",{"$f":"'Population 2016'!C22/'Population 2016'!C$5","v":0},{"$f":"'Population 2016'!D22/'Population 2016'!D$5","v":0},{"$f":"'Population 2016'!E22/'Population 2016'!E$5","v":0},{"$f":"'Population 2016'!F22/'Population 2016'!F$5","v":0},{"$f":"'Population 2016'!G22/'Population 2016'!G$5","v":0},{"$f":"'Population 2016'!H22/'Population 2016'!H$5","v":0},{"$f":"'Population 2016'!I22/'Population 2016'!I$5","v":0},{"$f":"'Population 2016'!J22/'Population 2016'!J$5","v":0},{"$f":"'Population 2016'!K22/'Population 2016'!K$5","v":0},{"$f":"'Population 2016'!L22/'Population 2016'!L$5","v":0},{"$f":"'Population 2016'!M22/'Population 2016'!M$5","v":0},{"$f":"'Population 2016'!N22/'Population 2016'!N$5","v":0},{"$f":"'Population 2016'!O22/'Population 2016'!O$5","v":0},{"$f":"'Population 2016'!P22/'Population 2016'!P$5","v":0},{"$f":"'Population 2016'!Q22/'Population 2016'!Q$5","v":0},{"$f":"'Population 2016'!R22/'Population 2016'!R$5","v":0},{"$f":"'Population 2016'!S22/'Population 2016'!S$5","v":0},{"$f":"'Population 2016'!T22/'Population 2016'!T$5","v":0},{"$f":"'Population 2016'!U22/'Population 2016'!U$5","v":0},{"$f":"'Population 2016'!V22/'Population 2016'!V$5","v":0},{"$f":"'Population 2016'!W22/'Population 2016'!W$5","v":0},{"$f":"'Population 2016'!X22/'Population 2016'!X$5","v":0},{"$f":"'Population 2016'!Y22/'Population 2016'!Y$5","v":0},{"$f":"'Population 2016'!Z22/'Population 2016'!Z$5","v":0},{"$f":"'Population 2016'!AA22/'Population 2016'!AA$5","v":0},{"$f":"'Population 2016'!AB22/'Population 2016'!AB$5","v":0},{"$f":"'Population 2016'!AC22/'Population 2016'!AC$5","v":0},{"$f":"'Population 2016'!AD22/'Population 2016'!AD$5","v":0},{"$f":"'Population 2016'!AE22/'Population 2016'!AE$5","v":0},{"$f":"'Population 2016'!AF22/'Population 2016'!AF$5","v":0},{"$f":"'Population 2016'!AG22/'Population 2016'!AG$5","v":0},{"$f":"'Population 2016'!AH22/'Population 2016'!AH$5","v":0},{"$f":"'Population 2016'!AI22/'Population 2016'!AI$5","v":0},{"$f":"'Population 2016'!AJ22/'Population 2016'!AJ$5","v":0},{"$f":"'Population 2016'!AK22/'Population 2016'!AK$5","v":0},{"$f":"'Population 2016'!AL22/'Population 2016'!AL$5","v":0},{"$f":"'Population 2016'!AM22/'Population 2016'!AM$5","v":0},{"$f":"'Population 2016'!AN22/'Population 2016'!AN$5","v":0},{"$f":"'Population 2016'!AO22/'Population 2016'!AO$5","v":0},{"$f":"'Population 2016'!AP22/'Population 2016'!AP$5","v":0},{"$f":"'Population 2016'!AQ22/'Population 2016'!AQ$5","v":0},{"$f":"'Population 2016'!AR22/'Population 2016'!AR$5","v":0},{"$f":"'Population 2016'!AS22/'Population 2016'!AS$5","v":0},{"$f":"'Population 2016'!AT22/'Population 2016'!AT$5","v":0},{"$f":"'Population 2016'!AU22/'Population 2016'!AU$5","v":0},{"$f":"'Population 2016'!AV22/'Population 2016'!AV$5","v":0},{"$f":"'Population 2016'!AW22/'Population 2016'!AW$5","v":0},{"$f":"'Population 2016'!AX22/'Population 2016'!AX$5","v":0},{"$f":"'Population 2016'!AY22/'Population 2016'!AY$5","v":0},{"$f":"'Population 2016'!AZ22/'Population 2016'!AZ$5","v":0},{"$f":"'Population 2016'!BA22/'Population 2016'!BA$5","v":0},{"$f":"'Population 2016'!BB22/'Population 2016'!BB$5","v":0},{"$f":"'Population 2016'!BC22/'Population 2016'!BC$5","v":0},20]
[null,"Female 5-9",{"$f":"'Population 2016'!C23/'Population 2016'!C$5","v":0},{"$f":"'Population 2016'!D23/'Population 2016'!D$5","v":0},{"$f":"'Population 2016'!E23/'Population 2016'!E$5","v":0},{"$f":"'Population 2016'!F23/'Population 2016'!F$5","v":0},{"$f":"'Population 2016'!G23/'Population 2016'!G$5","v":0},{"$f":"'Population 2016'!H23/'Population 2016'!H$5","v":0},{"$f":"'Population 2016'!I23/'Population 2016'!I$5","v":0},{"$f":"'Population 2016'!J23/'Population 2016'!J$5","v":0},{"$f":"'Population 2016'!K23/'Population 2016'!K$5","v":0},{"$f":"'Population 2016'!L23/'Population 2016'!L$5","v":0},{"$f":"'Population 2016'!M23/'Population 2016'!M$5","v":0},{"$f":"'Population 2016'!N23/'Population 2016'!N$5","v":0},{"$f":"'Population 2016'!O23/'Population 2016'!O$5","v":0},{"$f":"'Population 2016'!P23/'Population 2016'!P$5","v":0},{"$f":"'Population 2016'!Q23/'Population 2016'!Q$5","v":0},{"$f":"'Population 2016'!R23/'Population 2016'!R$5","v":0},{"$f":"'Population 2016'!S23/'Population 2016'!S$5","v":0},{"$f":"'Population 2016'!T23/'Population 2016'!T$5","v":0},{"$f":"'Population 2016'!U23/'Population 2016'!U$5","v":0},{"$f":"'Population 2016'!V23/'Population 2016'!V$5","v":0},{"$f":"'Population 2016'!W23/'Population 2016'!W$5","v":0},{"$f":"'Population 2016'!X23/'Population 2016'!X$5","v":0},{"$f":"'Population 2016'!Y23/'Population 2016'!Y$5","v":0},{"$f":"'Population 2016'!Z23/'Population 2016'!Z$5","v":0},{"$f":"'Population 2016'!AA23/'Population 2016'!AA$5","v":0},{"$f":"'Population 2016'!AB23/'Population 2016'!AB$5","v":0},{"$f":"'Population 2016'!AC23/'Population 2016'!AC$5","v":0},{"$f":"'Population 2016'!AD23/'Population 2016'!AD$5","v":0},{"$f":"'Population 2016'!AE23/'Population 2016'!AE$5","v":0},{"$f":"'Population 2016'!AF23/'Population 2016'!AF$5","v":0},{"$f":"'Population 2016'!AG23/'Population 2016'!AG$5","v":0},{"$f":"'Population 2016'!AH23/'Population 2016'!AH$5","v":0},{"$f":"'Population 2016'!AI23/'Population 2016'!AI$5","v":0},{"$f":"'Population 2016'!AJ23/'Population 2016'!AJ$5","v":0},{"$f":"'Population 2016'!AK23/'Population 2016'!AK$5","v":0},{"$f":"'Population 2016'!AL23/'Population 2016'!AL$5","v":0},{"$f":"'Population 2016'!AM23/'Population 2016'!AM$5","v":0},{"$f":"'Population 2016'!AN23/'Population 2016'!AN$5","v":0},{"$f":"'Population 2016'!AO23/'Population 2016'!AO$5","v":0},{"$f":"'Population 2016'!AP23/'Population 2016'!AP$5","v":0},{"$f":"'Population 2016'!AQ23/'Population 2016'!AQ$5","v":0},{"$f":"'Population 2016'!AR23/'Population 2016'!AR$5","v":0},{"$f":"'Population 2016'!AS23/'Population 2016'!AS$5","v":0},{"$f":"'Population 2016'!AT23/'Population 2016'!AT$5","v":0},{"$f":"'Population 2016'!AU23/'Population 2016'!AU$5","v":0},{"$f":"'Population 2016'!AV23/'Population 2016'!AV$5","v":0},{"$f":"'Population 2016'!AW23/'Population 2016'!AW$5","v":0},{"$f":"'Population 2016'!AX23/'Population 2016'!AX$5","v":0},{"$f":"'Population 2016'!AY23/'Population 2016'!AY$5","v":0},{"$f":"'Population 2016'!AZ23/'Population 2016'!AZ$5","v":0},{"$f":"'Population 2016'!BA23/'Population 2016'!BA$5","v":0},{"$f":"'Population 2016'!BB23/'Population 2016'!BB$5","v":0},{"$f":"'Population 2016'!BC23/'Population 2016'!BC$5","v":0},21]
[null,"Female 10-15",{"$f":"'Population 2016'!C24/'Population 2016'!C$5","v":0},{"$f":"'Population 2016'!D24/'Population 2016'!D$5","v":0},{"$f":"'Population 2016'!E24/'Population 2016'!E$5","v":0},{"$f":"'Population 2016'!F24/'Population 2016'!F$5","v":0},{"$f":"'Population 2016'!G24/'Population 2016'!G$5","v":0},{"$f":"'Population 2016'!H24/'Population 2016'!H$5","v":0},{"$f":"'Population 2016'!I24/'Population 2016'!I$5","v":0},{"$f":"'Population 2016'!J24/'Population 2016'!J$5","v":0},{"$f":"'Population 2016'!K24/'Population 2016'!K$5","v":0},{"$f":"'Population 2016'!L24/'Population 2016'!L$5","v":0},{"$f":"'Population 2016'!M24/'Population 2016'!M$5","v":0},{"$f":"'Population 2016'!N24/'Population 2016'!N$5","v":0},{"$f":"'Population 2016'!O24/'Population 2016'!O$5","v":0},{"$f":"'Population 2016'!P24/'Population 2016'!P$5","v":0},{"$f":"'Population 2016'!Q24/'Population 2016'!Q$5","v":0},{"$f":"'Population 2016'!R24/'Population 2016'!R$5","v":0},{"$f":"'Population 2016'!S24/'Population 2016'!S$5","v":0},{"$f":"'Population 2016'!T24/'Population 2016'!T$5","v":0},{"$f":"'Population 2016'!U24/'Population 2016'!U$5","v":0},{"$f":"'Population 2016'!V24/'Population 2016'!V$5","v":0},{"$f":"'Population 2016'!W24/'Population 2016'!W$5","v":0},{"$f":"'Population 2016'!X24/'Population 2016'!X$5","v":0},{"$f":"'Population 2016'!Y24/'Population 2016'!Y$5","v":0},{"$f":"'Population 2016'!Z24/'Population 2016'!Z$5","v":0},{"$f":"'Population 2016'!AA24/'Population 2016'!AA$5","v":0},{"$f":"'Population 2016'!AB24/'Population 2016'!AB$5","v":0},{"$f":"'Population 2016'!AC24/'Population 2016'!AC$5","v":0},{"$f":"'Population 2016'!AD24/'Population 2016'!AD$5","v":0},{"$f":"'Population 2016'!AE24/'Population 2016'!AE$5","v":0},{"$f":"'Population 2016'!AF24/'Population 2016'!AF$5","v":0},{"$f":"'Population 2016'!AG24/'Population 2016'!AG$5","v":0},{"$f":"'Population 2016'!AH24/'Population 2016'!AH$5","v":0},{"$f":"'Population 2016'!AI24/'Population 2016'!AI$5","v":0},{"$f":"'Population 2016'!AJ24/'Population 2016'!AJ$5","v":0},{"$f":"'Population 2016'!AK24/'Population 2016'!AK$5","v":0},{"$f":"'Population 2016'!AL24/'Population 2016'!AL$5","v":0},{"$f":"'Population 2016'!AM24/'Population 2016'!AM$5","v":0},{"$f":"'Population 2016'!AN24/'Population 2016'!AN$5","v":0},{"$f":"'Population 2016'!AO24/'Population 2016'!AO$5","v":0},{"$f":"'Population 2016'!AP24/'Population 2016'!AP$5","v":0},{"$f":"'Population 2016'!AQ24/'Population 2016'!AQ$5","v":0},{"$f":"'Population 2016'!AR24/'Population 2016'!AR$5","v":0},{"$f":"'Population 2016'!AS24/'Population 2016'!AS$5","v":0},{"$f":"'Population 2016'!AT24/'Population 2016'!AT$5","v":0},{"$f":"'Population 2016'!AU24/'Population 2016'!AU$5","v":0},{"$f":"'Population 2016'!AV24/'Population 2016'!AV$5","v":0},{"$f":"'Population 2016'!AW24/'Population 2016'!AW$5","v":0},{"$f":"'Population 2016'!AX24/'Population 2016'!AX$5","v":0},{"$f":"'Population 2016'!AY24/'Population 2016'!AY$5","v":0},{"$f":"'Population 2016'!AZ24/'Population 2016'!AZ$5","v":0},{"$f":"'Population 2016'!BA24/'Population 2016'!BA$5","v":0},{"$f":"'Population 2016'!BB24/'Population 2016'!BB$5","v":0},{"$f":"'Population 2016'!BC24/'Population 2016'!BC$5","v":0},22]
[null,"Female 16-19",{"$f":"'Population 2016'!C25/'Population 2016'!C$5","v":2.623011147286267E-2},{"$f":"'Population 2016'!D25/'Population 2016'!D$5","v":2.5549426366597225E-2},{"$f":"'Population 2016'!E25/'Population 2016'!E$5","v":2.492511215597298E-2},{"$f":"'Population 2016'!F25/'Population 2016'!F$5","v":2.4929178470254956E-2},{"$f":"'Population 2016'!G25/'Population 2016'!G$5","v":2.3750879662209713E-2},{"$f":"'Population 2016'!H25/'Population 2016'!H$5","v":2.6117576107362529E-2},{"$f":"'Population 2016'!I25/'Population 2016'!I$5","v":2.5060715182983001E-2},{"$f":"'Population 2016'!J25/'Population 2016'!J$5","v":3.2160420623139251E-2},{"$f":"'Population 2016'!K25/'Population 2016'!K$5","v":2.6461276756603504E-2},{"$f":"'Population 2016'!L25/'Population 2016'!L$5","v":2.3882896764252697E-2},{"$f":"'Population 2016'!M25/'Population 2016'!M$5","v":2.3882896764252697E-2},{"$f":"'Population 2016'!N25/'Population 2016'!N$5","v":3.1714903432700267E-2},{"$f":"'Population 2016'!O25/'Population 2016'!O$5","v":2.6074637659622948E-2},{"$f":"'Population 2016'!P25/'Population 2016'!P$5","v":2.6135467147526202E-2},{"$f":"'Population 2016'!Q25/'Population 2016'!Q$5","v":2.7261724304062231E-2},{"$f":"'Population 2016'!R25/'Population 2016'!R$5","v":3.0193750998030552E-2},{"$f":"'Population 2016'!S25/'Population 2016'!S$5","v":2.6372929946987578E-2},{"$f":"'Population 2016'!T25/'Population 2016'!T$5","v":2.4385420398970698E-2},{"$f":"'Population 2016'!U25/'Population 2016'!U$5","v":2.2396317443455938E-2},{"$f":"'Population 2016'!V25/'Population 2016'!V$5","v":2.505705192297418E-2},{"$f":"'Population 2016'!W25/'Population 2016'!W$5","v":2.7889448878604253E-2},{"$f":"'Population 2016'!X25/'Population 2016'!X$5","v":2.7889448878604253E-2},{"$f":"'Population 2016'!Y25/'Population 2016'!Y$5","v":2.8461391710783612E-2},{"$f":"'Population 2016'!Z25/'Population 2016'!Z$5","v":2.644686333077163E-2},{"$f":"'Population 2016'!AA25/'Population 2016'!AA$5","v":2.7062957551936443E-2},{"$f":"'Population 2016'!AB25/'Population 2016'!AB$5","v":2.5587750632017441E-2},{"$f":"'Population 2016'!AC25/'Population 2016'!AC$5","v":2.6653786244288106E-2},{"$f":"'Population 2016'!AD25/'Population 2016'!AD$5","v":2.4236108526554764E-2},{"$f":"'Population 2016'!AE25/'Population 2016'!AE$5","v":2.4420168584893067E-2},{"$f":"'Population 2016'!AF25/'Population 2016'!AF$5","v":2.5863759067396581E-2},{"$f":"'Population 2016'!AG25/'Population 2016'!AG$5","v":2.4420168584893067E-2},{"$f":"'Population 2016'!AH25/'Population 2016'!AH$5","v":2.779785070079786E-2},{"$f":"'Population 2016'!AI25/'Population 2016'!AI$5","v":2.5909965876279639E-2},{"$f":"'Population 2016'!AJ25/'Population 2016'!AJ$5","v":2.8065136770487688E-2},{"$f":"'Population 2016'!AK25/'Population 2016'!AK$5","v":2.5784795645122763E-2},{"$f":"'Population 2016'!AL25/'Population 2016'!AL$5","v":2.6923963746652242E-2},{"$f":"'Population 2016'!AM25/'Population 2016'!AM$5","v":2.9175163261388457E-2},{"$f":"'Population 2016'!AN25/'Population 2016'!AN$5","v":2.1544671102868986E-2},{"$f":"'Population 2016'!AO25/'Population 2016'!AO$5","v":2.1544671102868986E-2},{"$f":"'Population 2016'!AP25/'Population 2016'!AP$5","v":2.5062219615427293E-2},{"$f":"'Population 2016'!AQ25/'Population 2016'!AQ$5","v":2.6429002027730585E-2},{"$f":"'Population 2016'!AR25/'Population 2016'!AR$5","v":2.6466639175919175E-2},{"$f":"'Population 2016'!AS25/'Population 2016'!AS$5","v":2.5060715182983001E-2},{"$f":"'Population 2016'!AT25/'Population 2016'!AT$5","v":2.7732377286866665E-2},{"$f":"'Population 2016'!AU25/'Population 2016'!AU$5","v":2.7732377286866665E-2},{"$f":"'Population 2016'!AV25/'Population 2016'!AV$5","v":2.5203252032520326E-2},{"$f":"'Population 2016'!AW25/'Population 2016'!AW$5","v":2.6347702727439137E-2},{"$f":"'Population 2016'!AX25/'Population 2016'!AX$5","v":3.5242853674431682E-2},{"$f":"'Population 2016'!AY25/'Population 2016'!AY$5","v":2.7632263394632966E-2},{"$f":"'Population 2016'!AZ25/'Population 2016'!AZ$5","v":2.7405928746886344E-2},{"$f":"'Population 2016'!BA25/'Population 2016'!BA$5","v":2.6276722090261283E-2},{"$f":"'Population 2016'!BB25/'Population 2016'!BB$5","v":2.8572809567541067E-2},{"$f":"'Population 2016'!BC25/'Population 2016'!BC$5","v":2.2396317443455938E-2},23]
[null,"Female 20-24",{"$f":"'Population 2016'!C26/'Population 2016'!C$5","v":5.7172647493266136E-2},{"$f":"'Population 2016'!D26/'Population 2016'!D$5","v":4.2885576518685874E-2},{"$f":"'Population 2016'!E26/'Population 2016'!E$5","v":2.9781688457193218E-2},{"$f":"'Population 2016'!F26/'Population 2016'!F$5","v":3.1140870460983777E-2},{"$f":"'Population 2016'!G26/'Population 2016'!G$5","v":2.5672603258810156E-2},{"$f":"'Population 2016'!H26/'Population 2016'!H$5","v":3.3879894816366364E-2},{"$f":"'Population 2016'!I26/'Population 2016'!I$5","v":2.8860648186919018E-2},{"$f":"'Population 2016'!J26/'Population 2016'!J$5","v":4.5114153736430511E-2},{"$f":"'Population 2016'!K26/'Population 2016'!K$5","v":3.3336483485328167E-2},{"$f":"'Population 2016'!L26/'Population 2016'!L$5","v":3.0157419026893079E-2},{"$f":"'Population 2016'!M26/'Population 2016'!M$5","v":3.0157419026893079E-2},{"$f":"'Population 2016'!N26/'Population 2016'!N$5","v":5.937100650211781E-2},{"$f":"'Population 2016'!O26/'Population 2016'!O$5","v":3.4832228727672603E-2},{"$f":"'Population 2016'!P26/'Population 2016'!P$5","v":3.2086103910740446E-2},{"$f":"'Population 2016'!Q26/'Population 2016'!Q$5","v":3.694433672929813E-2},{"$f":"'Population 2016'!R26/'Population 2016'!R$5","v":3.3147921435034866E-2},{"$f":"'Population 2016'!S26/'Population 2016'!S$5","v":4.4659832542177799E-2},{"$f":"'Population 2016'!T26/'Population 2016'!T$5","v":5.7679511221341719E-2},{"$f":"'Population 2016'!U26/'Population 2016'!U$5","v":2.4742176780418713E-2},{"$f":"'Population 2016'!V26/'Population 2016'!V$5","v":3.4078506498958182E-2},{"$f":"'Population 2016'!W26/'Population 2016'!W$5","v":4.042384902502958E-2},{"$f":"'Population 2016'!X26/'Population 2016'!X$5","v":4.042384902502958E-2},{"$f":"'Population 2016'!Y26/'Population 2016'!Y$5","v":3.9367418641992974E-2},{"$f":"'Population 2016'!Z26/'Population 2016'!Z$5","v":5.5940671682962857E-2},{"$f":"'Population 2016'!AA26/'Population 2016'!AA$5","v":4.2530446989915337E-2},{"$f":"'Population 2016'!AB26/'Population 2016'!AB$5","v":4.1061175194211028E-2},{"$f":"'Population 2016'!AC26/'Population 2016'!AC$5","v":4.643985263362576E-2},{"$f":"'Population 2016'!AD26/'Population 2016'!AD$5","v":2.8054635453496596E-2},{"$f":"'Population 2016'!AE26/'Population 2016'!AE$5","v":2.8958202856292158E-2},{"$f":"'Population 2016'!AF26/'Population 2016'!AF$5","v":3.5937806330965633E-2},{"$f":"'Population 2016'!AG26/'Population 2016'!AG$5","v":2.8958202856292158E-2},{"$f":"'Population 2016'!AH26/'Population 2016'!AH$5","v":3.5508949221180905E-2},{"$f":"'Population 2016'!AI26/'Population 2016'!AI$5","v":4.8495056435383675E-2},{"$f":"'Population 2016'!AJ26/'Population 2016'!AJ$5","v":3.4520257647157236E-2},{"$f":"'Population 2016'!AK26/'Population 2016'!AK$5","v":3.1680977584451174E-2},{"$f":"'Population 2016'!AL26/'Population 2016'!AL$5","v":3.5180291232862135E-2},{"$f":"'Population 2016'!AM26/'Population 2016'!AM$5","v":3.6462615586889832E-2},{"$f":"'Population 2016'!AN26/'Population 2016'!AN$5","v":2.9126213592233011E-2},{"$f":"'Population 2016'!AO26/'Population 2016'!AO$5","v":2.9126213592233011E-2},{"$f":"'Population 2016'!AP26/'Population 2016'!AP$5","v":3.0547057051820616E-2},{"$f":"'Population 2016'!AQ26/'Population 2016'!AQ$5","v":3.7362306132514934E-2},{"$f":"'Population 2016'!AR26/'Population 2016'!AR$5","v":4.0607665819443708E-2},{"$f":"'Population 2016'!AS26/'Population 2016'!AS$5","v":2.8860648186919018E-2},{"$f":"'Population 2016'!AT26/'Population 2016'!AT$5","v":2.963041071334423E-2},{"$f":"'Population 2016'!AU26/'Population 2016'!AU$5","v":2.963041071334423E-2},{"$f":"'Population 2016'!AV26/'Population 2016'!AV$5","v":3.1316650828845952E-2},{"$f":"'Population 2016'!AW26/'Population 2016'!AW$5","v":3.4504850814570748E-2},{"$f":"'Population 2016'!AX26/'Population 2016'!AX$5","v":5.1484212274940259E-2},{"$f":"'Population 2016'!AY26/'Population 2016'!AY$5","v":4.0745387228052994E-2},{"$f":"'Population 2016'!AZ26/'Population 2016'!AZ$5","v":4.1028355126530941E-2},{"$f":"'Population 2016'!BA26/'Population 2016'!BA$5","v":3.8153206650831356E-2},{"$f":"'Population 2016'!BB26/'Population 2016'!BB$5","v":3.4946106626709848E-2},{"$f":"'Population 2016'!BC26/'Population 2016'!BC$5","v":2.4742176780418713E-2},24]
[null,"Female 25-29",{"$f":"'Population 2016'!C27/'Population 2016'!C$5","v":5.9523748677505581E-2},{"$f":"'Population 2016'!D27/'Population 2016'!D$5","v":4.5020196981700455E-2},{"$f":"'Population 2016'!E27/'Population 2016'!E$5","v":3.171775603673372E-2},{"$f":"'Population 2016'!F27/'Population 2016'!F$5","v":3.0069533865567859E-2},{"$f":"'Population 2016'!G27/'Population 2016'!G$5","v":2.5442537757808695E-2},{"$f":"'Population 2016'!H27/'Population 2016'!H$5","v":3.3698320109722998E-2},{"$f":"'Population 2016'!I27/'Population 2016'!I$5","v":2.5992379197722133E-2},{"$f":"'Population 2016'!J27/'Population 2016'!J$5","v":3.8645580222751136E-2},{"$f":"'Population 2016'!K27/'Population 2016'!K$5","v":3.326560506544441E-2},{"$f":"'Population 2016'!L27/'Population 2016'!L$5","v":3.0546598255841658E-2},{"$f":"'Population 2016'!M27/'Population 2016'!M$5","v":3.0546598255841658E-2},{"$f":"'Population 2016'!N27/'Population 2016'!N$5","v":5.532828059571937E-2},{"$f":"'Population 2016'!O27/'Population 2016'!O$5","v":3.6714516400669701E-2},{"$f":"'Population 2016'!P27/'Population 2016'!P$5","v":2.7825988955257522E-2},{"$f":"'Population 2016'!Q27/'Population 2016'!Q$5","v":3.2855078083688795E-2},{"$f":"'Population 2016'!R27/'Population 2016'!R$5","v":2.9914302443178793E-2},{"$f":"'Population 2016'!S27/'Population 2016'!S$5","v":4.5971461910671509E-2},{"$f":"'Population 2016'!T27/'Population 2016'!T$5","v":6.394978199466736E-2},{"$f":"'Population 2016'!U27/'Population 2016'!U$5","v":2.7043774620457664E-2},{"$f":"'Population 2016'!V27/'Population 2016'!V$5","v":3.5421802611795054E-2},{"$f":"'Population 2016'!W27/'Population 2016'!W$5","v":3.642983677498219E-2},{"$f":"'Population 2016'!X27/'Population 2016'!X$5","v":3.642983677498219E-2},{"$f":"'Population 2016'!Y27/'Population 2016'!Y$5","v":3.6966820877251554E-2},{"$f":"'Population 2016'!Z27/'Population 2016'!Z$5","v":6.3112800847104925E-2},{"$f":"'Population 2016'!AA27/'Population 2016'!AA$5","v":4.4985340399705809E-2},{"$f":"'Population 2016'!AB27/'Population 2016'!AB$5","v":4.3026314442749965E-2},{"$f":"'Population 2016'!AC27/'Population 2016'!AC$5","v":4.9786831767755231E-2},{"$f":"'Population 2016'!AD27/'Population 2016'!AD$5","v":2.9885741933082736E-2},{"$f":"'Population 2016'!AE27/'Population 2016'!AE$5","v":3.1571166028398649E-2},{"$f":"'Population 2016'!AF27/'Population 2016'!AF$5","v":3.4640848150326503E-2},{"$f":"'Population 2016'!AG27/'Population 2016'!AG$5","v":3.1571166028398649E-2},{"$f":"'Population 2016'!AH27/'Population 2016'!AH$5","v":3.6361609838105942E-2},{"$f":"'Population 2016'!AI27/'Population 2016'!AI$5","v":5.2571856680374486E-2},{"$f":"'Population 2016'!AJ27/'Population 2016'!AJ$5","v":3.6987982042773891E-2},{"$f":"'Population 2016'!AK27/'Population 2016'!AK$5","v":3.2774725620104847E-2},{"$f":"'Population 2016'!AL27/'Population 2016'!AL$5","v":3.3903265284404321E-2},{"$f":"'Population 2016'!AM27/'Population 2016'!AM$5","v":3.8418492453575093E-2},{"$f":"'Population 2016'!AN27/'Population 2016'!AN$5","v":3.2453365332169741E-2},{"$f":"'Population 2016'!AO27/'Population 2016'!AO$5","v":3.2453365332169741E-2},{"$f":"'Population 2016'!AP27/'Population 2016'!AP$5","v":3.0832395415563624E-2},{"$f":"'Population 2016'!AQ27/'Population 2016'!AQ$5","v":3.8526881131144844E-2},{"$f":"'Population 2016'!AR27/'Population 2016'!AR$5","v":4.1876606643716126E-2},{"$f":"'Population 2016'!AS27/'Population 2016'!AS$5","v":2.5992379197722133E-2},{"$f":"'Population 2016'!AT27/'Population 2016'!AT$5","v":3.6589866610428637E-2},{"$f":"'Population 2016'!AU27/'Population 2016'!AU$5","v":3.6589866610428637E-2},{"$f":"'Population 2016'!AV27/'Population 2016'!AV$5","v":3.0239679020166825E-2},{"$f":"'Population 2016'!AW27/'Population 2016'!AW$5","v":3.4195954603697599E-2},{"$f":"'Population 2016'!AX27/'Population 2016'!AX$5","v":4.1555388016407478E-2},{"$f":"'Population 2016'!AY27/'Population 2016'!AY$5","v":3.8002203114959762E-2},{"$f":"'Population 2016'!AZ27/'Population 2016'!AZ$5","v":3.93859553244243E-2},{"$f":"'Population 2016'!BA27/'Population 2016'!BA$5","v":3.9070935003239042E-2},{"$f":"'Population 2016'!BB27/'Population 2016'!BB$5","v":3.8108587724325557E-2},{"$f":"'Population 2016'!BC27/'Population 2016'!BC$5","v":2.7043774620457664E-2},25]
[null,"Female 30-34",{"$f":"'Population 2016'!C28/'Population 2016'!C$5","v":4.9638901524638006E-2},{"$f":"'Population 2016'!D28/'Population 2016'!D$5","v":4.3873419207182886E-2},{"$f":"'Population 2016'!E28/'Population 2016'!E$5","v":3.8585404956895539E-2},{"$f":"'Population 2016'!F28/'Population 2016'!F$5","v":3.3355652845737833E-2},{"$f":"'Population 2016'!G28/'Population 2016'!G$5","v":2.5983868348400368E-2},{"$f":"'Population 2016'!H28/'Population 2016'!H$5","v":3.2988233310528414E-2},{"$f":"'Population 2016'!I28/'Population 2016'!I$5","v":2.960388577171091E-2},{"$f":"'Population 2016'!J28/'Population 2016'!J$5","v":3.3138999693157409E-2},{"$f":"'Population 2016'!K28/'Population 2016'!K$5","v":3.4541416623352077E-2},{"$f":"'Population 2016'!L28/'Population 2016'!L$5","v":2.9807951964163741E-2},{"$f":"'Population 2016'!M28/'Population 2016'!M$5","v":2.9807951964163741E-2},{"$f":"'Population 2016'!N28/'Population 2016'!N$5","v":4.3087581678334042E-2},{"$f":"'Population 2016'!O28/'Population 2016'!O$5","v":3.5882347113660458E-2},{"$f":"'Population 2016'!P28/'Population 2016'!P$5","v":2.7465344302941508E-2},{"$f":"'Population 2016'!Q28/'Population 2016'!Q$5","v":3.4887956663258952E-2},{"$f":"'Population 2016'!R28/'Population 2016'!R$5","v":2.9222334593069676E-2},{"$f":"'Population 2016'!S28/'Population 2016'!S$5","v":4.2950124543003967E-2},{"$f":"'Population 2016'!T28/'Population 2016'!T$5","v":5.3503208424265834E-2},{"$f":"'Population 2016'!U28/'Population 2016'!U$5","v":2.938963395742044E-2},{"$f":"'Population 2016'!V28/'Population 2016'!V$5","v":3.9795147342792374E-2},{"$f":"'Population 2016'!W28/'Population 2016'!W$5","v":3.556043639976729E-2},{"$f":"'Population 2016'!X28/'Population 2016'!X$5","v":3.556043639976729E-2},{"$f":"'Population 2016'!Y28/'Population 2016'!Y$5","v":3.6605141412696142E-2},{"$f":"'Population 2016'!Z28/'Population 2016'!Z$5","v":5.1701275496870785E-2},{"$f":"'Population 2016'!AA28/'Population 2016'!AA$5","v":4.205275595834853E-2},{"$f":"'Population 2016'!AB28/'Population 2016'!AB$5","v":4.2735637595570246E-2},{"$f":"'Population 2016'!AC28/'Population 2016'!AC$5","v":4.3462116871215775E-2},{"$f":"'Population 2016'!AD28/'Population 2016'!AD$5","v":3.2584018757676129E-2},{"$f":"'Population 2016'!AE28/'Population 2016'!AE$5","v":3.50876292364398E-2},{"$f":"'Population 2016'!AF28/'Population 2016'!AF$5","v":3.3630427242154155E-2},{"$f":"'Population 2016'!AG28/'Population 2016'!AG$5","v":3.50876292364398E-2},{"$f":"'Population 2016'!AH28/'Population 2016'!AH$5","v":3.9521469771416365E-2},{"$f":"'Population 2016'!AI28/'Population 2016'!AI$5","v":4.7784145594540202E-2},{"$f":"'Population 2016'!AJ28/'Population 2016'!AJ$5","v":4.0124919833812007E-2},{"$f":"'Population 2016'!AK28/'Population 2016'!AK$5","v":3.6885709616182441E-2},{"$f":"'Population 2016'!AL28/'Population 2016'!AL$5","v":3.2599634628686966E-2},{"$f":"'Population 2016'!AM28/'Population 2016'!AM$5","v":4.108790217718071E-2},{"$f":"'Population 2016'!AN28/'Population 2016'!AN$5","v":3.2398821861023233E-2},{"$f":"'Population 2016'!AO28/'Population 2016'!AO$5","v":3.2398821861023233E-2},{"$f":"'Population 2016'!AP28/'Population 2016'!AP$5","v":3.4755797917029943E-2},{"$f":"'Population 2016'!AQ28/'Population 2016'!AQ$5","v":3.7519866279388393E-2},{"$f":"'Population 2016'!AR28/'Population 2016'!AR$5","v":4.0012627030533668E-2},{"$f":"'Population 2016'!AS28/'Population 2016'!AS$5","v":2.960388577171091E-2},{"$f":"'Population 2016'!AT28/'Population 2016'!AT$5","v":3.3795539621447775E-2},{"$f":"'Population 2016'!AU28/'Population 2016'!AU$5","v":3.3795539621447775E-2},{"$f":"'Population 2016'!AV28/'Population 2016'!AV$5","v":3.0366381585893783E-2},{"$f":"'Population 2016'!AW28/'Population 2016'!AW$5","v":3.7872200866434801E-2},{"$f":"'Population 2016'!AX28/'Population 2016'!AX$5","v":3.2380489924224029E-2},{"$f":"'Population 2016'!AY28/'Population 2016'!AY$5","v":3.65105106942872E-2},{"$f":"'Population 2016'!AZ28/'Population 2016'!AZ$5","v":3.7346618267167536E-2},{"$f":"'Population 2016'!BA28/'Population 2016'!BA$5","v":4.0123623407471387E-2},{"$f":"'Population 2016'!BB28/'Population 2016'!BB$5","v":4.2182526256188589E-2},{"$f":"'Population 2016'!BC28/'Population 2016'!BC$5","v":2.938963395742044E-2},26]
[null,"Female 35-39",{"$f":"'Population 2016'!C29/'Population 2016'!C$5","v":3.8757391913234143E-2},{"$f":"'Population 2016'!D29/'Population 2016'!D$5","v":3.9330320902164449E-2},{"$f":"'Population 2016'!E29/'Population 2016'!E$5","v":3.9855802811751412E-2},{"$f":"'Population 2016'!F29/'Population 2016'!F$5","v":3.3747102755601339E-2},{"$f":"'Population 2016'!G29/'Population 2016'!G$5","v":2.818979050506144E-2},{"$f":"'Population 2016'!H29/'Population 2016'!H$5","v":3.3049839014568129E-2},{"$f":"'Population 2016'!I29/'Population 2016'!I$5","v":2.9363118666778328E-2},{"$f":"'Population 2016'!J29/'Population 2016'!J$5","v":3.4250267450635662E-2},{"$f":"'Population 2016'!K29/'Population 2016'!K$5","v":3.5533714501724711E-2},{"$f":"'Population 2016'!L29/'Population 2016'!L$5","v":2.8688068876781089E-2},{"$f":"'Population 2016'!M29/'Population 2016'!M$5","v":2.8688068876781089E-2},{"$f":"'Population 2016'!N29/'Population 2016'!N$5","v":3.4785124697599278E-2},{"$f":"'Population 2016'!O29/'Population 2016'!O$5","v":3.5139338821687918E-2},{"$f":"'Population 2016'!P29/'Population 2016'!P$5","v":3.4306322551560915E-2},{"$f":"'Population 2016'!Q29/'Population 2016'!Q$5","v":3.726160679662989E-2},{"$f":"'Population 2016'!R29/'Population 2016'!R$5","v":3.8617128865705008E-2},{"$f":"'Population 2016'!S29/'Population 2016'!S$5","v":3.89128481422703E-2},{"$f":"'Population 2016'!T29/'Population 2016'!T$5","v":4.2807685327799057E-2},{"$f":"'Population 2016'!U29/'Population 2016'!U$5","v":3.301907670517417E-2},{"$f":"'Population 2016'!V29/'Population 2016'!V$5","v":3.9009013822211704E-2},{"$f":"'Population 2016'!W29/'Population 2016'!W$5","v":3.586439968884618E-2},{"$f":"'Population 2016'!X29/'Population 2016'!X$5","v":3.586439968884618E-2},{"$f":"'Population 2016'!Y29/'Population 2016'!Y$5","v":3.6728350900621612E-2},{"$f":"'Population 2016'!Z29/'Population 2016'!Z$5","v":4.073498353604358E-2},{"$f":"'Population 2016'!AA29/'Population 2016'!AA$5","v":3.8732836508085206E-2},{"$f":"'Population 2016'!AB29/'Population 2016'!AB$5","v":3.8181017983071143E-2},{"$f":"'Population 2016'!AC29/'Population 2016'!AC$5","v":3.8513014535984165E-2},{"$f":"'Population 2016'!AD29/'Population 2016'!AD$5","v":3.259890580222561E-2},{"$f":"'Population 2016'!AE29/'Population 2016'!AE$5","v":3.4271399090339737E-2},{"$f":"'Population 2016'!AF29/'Population 2016'!AF$5","v":3.3916964514620944E-2},{"$f":"'Population 2016'!AG29/'Population 2016'!AG$5","v":3.4271399090339737E-2},{"$f":"'Population 2016'!AH29/'Population 2016'!AH$5","v":3.9127648310004363E-2},{"$f":"'Population 2016'!AI29/'Population 2016'!AI$5","v":4.1435164931315077E-2},{"$f":"'Population 2016'!AJ29/'Population 2016'!AJ$5","v":4.0334049019881212E-2},{"$f":"'Population 2016'!AK29/'Population 2016'!AK$5","v":3.2271852960034195E-2},{"$f":"'Population 2016'!AL29/'Population 2016'!AL$5","v":3.2626239335946508E-2},{"$f":"'Population 2016'!AM29/'Population 2016'!AM$5","v":4.0160671662603994E-2},{"$f":"'Population 2016'!AN29/'Population 2016'!AN$5","v":3.2017017562997706E-2},{"$f":"'Population 2016'!AO29/'Population 2016'!AO$5","v":3.2017017562997706E-2},{"$f":"'Population 2016'!AP29/'Population 2016'!AP$5","v":3.1751819032068862E-2},{"$f":"'Population 2016'!AQ29/'Population 2016'!AQ$5","v":3.6430646133611001E-2},{"$f":"'Population 2016'!AR29/'Population 2016'!AR$5","v":3.708911747348892E-2},{"$f":"'Population 2016'!AS29/'Population 2016'!AS$5","v":2.9363118666778328E-2},{"$f":"'Population 2016'!AT29/'Population 2016'!AT$5","v":3.690620551484157E-2},{"$f":"'Population 2016'!AU29/'Population 2016'!AU$5","v":3.690620551484157E-2},{"$f":"'Population 2016'!AV29/'Population 2016'!AV$5","v":3.1327209375989866E-2},{"$f":"'Population 2016'!AW29/'Population 2016'!AW$5","v":3.803999633900787E-2},{"$f":"'Population 2016'!AX29/'Population 2016'!AX$5","v":3.3556103607345032E-2},{"$f":"'Population 2016'!AY29/'Population 2016'!AY$5","v":3.4550656344665094E-2},{"$f":"'Population 2016'!AZ29/'Population 2016'!AZ$5","v":3.3394503857194634E-2},{"$f":"'Population 2016'!BA29/'Population 2016'!BA$5","v":3.6169293889008851E-2},{"$f":"'Population 2016'!BB29/'Population 2016'!BB$5","v":4.0359611387693943E-2},{"$f":"'Population 2016'!BC29/'Population 2016'!BC$5","v":3.301907670517417E-2},27]
[null,"Female 40-44",{"$f":"'Population 2016'!C30/'Population 2016'!C$5","v":3.4878074959239058E-2},{"$f":"'Population 2016'!D30/'Population 2016'!D$5","v":3.887307688545915E-2},{"$f":"'Population 2016'!E30/'Population 2016'!E$5","v":4.2537232970340191E-2},{"$f":"'Population 2016'!F30/'Population 2016'!F$5","v":3.7723409734741177E-2},{"$f":"'Population 2016'!G30/'Population 2016'!G$5","v":3.4252693119688191E-2},{"$f":"'Population 2016'!H30/'Population 2016'!H$5","v":3.8328475129128799E-2},{"$f":"'Population 2016'!I30/'Population 2016'!I$5","v":3.8281969684281048E-2},{"$f":"'Population 2016'!J30/'Population 2016'!J$5","v":3.8977301941401359E-2},{"$f":"'Population 2016'!K30/'Population 2016'!K$5","v":4.1014978972735434E-2},{"$f":"'Population 2016'!L30/'Population 2016'!L$5","v":3.3795053452575732E-2},{"$f":"'Population 2016'!M30/'Population 2016'!M$5","v":3.3795053452575732E-2},{"$f":"'Population 2016'!N30/'Population 2016'!N$5","v":3.180331294556385E-2},{"$f":"'Population 2016'!O30/'Population 2016'!O$5","v":3.9646922459654649E-2},{"$f":"'Population 2016'!P30/'Population 2016'!P$5","v":3.8487546489349711E-2},{"$f":"'Population 2016'!Q30/'Population 2016'!Q$5","v":4.0622319361699626E-2},{"$f":"'Population 2016'!R30/'Population 2016'!R$5","v":4.23431095970618E-2},{"$f":"'Population 2016'!S30/'Population 2016'!S$5","v":3.9161757618660087E-2},{"$f":"'Population 2016'!T30/'Population 2016'!T$5","v":3.7405247949074696E-2},{"$f":"'Population 2016'!U30/'Population 2016'!U$5","v":3.6559996459080243E-2},{"$f":"'Population 2016'!V30/'Population 2016'!V$5","v":4.4252448080842E-2},{"$f":"'Population 2016'!W30/'Population 2016'!W$5","v":3.8551042953608013E-2},{"$f":"'Population 2016'!X30/'Population 2016'!X$5","v":3.8551042953608013E-2},{"$f":"'Population 2016'!Y30/'Population 2016'!Y$5","v":4.17242969110189E-2},{"$f":"'Population 2016'!Z30/'Population 2016'!Z$5","v":3.5899361767615275E-2},{"$f":"'Population 2016'!AA30/'Population 2016'!AA$5","v":3.8743466628398233E-2},{"$f":"'Population 2016'!AB30/'Population 2016'!AB$5","v":3.8946603481981104E-2},{"$f":"'Population 2016'!AC30/'Population 2016'!AC$5","v":3.7361844024152858E-2},{"$f":"'Population 2016'!AD30/'Population 2016'!AD$5","v":3.7154341434366744E-2},{"$f":"'Population 2016'!AE30/'Population 2016'!AE$5","v":3.8255012885142561E-2},{"$f":"'Population 2016'!AF30/'Population 2016'!AF$5","v":3.7310169056990757E-2},{"$f":"'Population 2016'!AG30/'Population 2016'!AG$5","v":3.8255012885142561E-2},{"$f":"'Population 2016'!AH30/'Population 2016'!AH$5","v":4.1224933356863544E-2},{"$f":"'Population 2016'!AI30/'Population 2016'!AI$5","v":3.9532111295826407E-2},{"$f":"'Population 2016'!AJ30/'Population 2016'!AJ$5","v":4.01528037252879E-2},{"$f":"'Population 2016'!AK30/'Population 2016'!AK$5","v":3.9324642017525113E-2},{"$f":"'Population 2016'!AL30/'Population 2016'!AL$5","v":3.9064578492754652E-2},{"$f":"'Population 2016'!AM30/'Population 2016'!AM$5","v":4.2214342372623517E-2},{"$f":"'Population 2016'!AN30/'Population 2016'!AN$5","v":3.7035016908476055E-2},{"$f":"'Population 2016'!AO30/'Population 2016'!AO$5","v":3.7035016908476055E-2},{"$f":"'Population 2016'!AP30/'Population 2016'!AP$5","v":3.6444049902509393E-2},{"$f":"'Population 2016'!AQ30/'Population 2016'!AQ$5","v":3.9095467748122982E-2},{"$f":"'Population 2016'!AR30/'Population 2016'!AR$5","v":3.847568483484276E-2},{"$f":"'Population 2016'!AS30/'Population 2016'!AS$5","v":3.8281969684281048E-2},{"$f":"'Population 2016'!AT30/'Population 2016'!AT$5","v":3.8013391680286814E-2},{"$f":"'Population 2016'!AU30/'Population 2016'!AU$5","v":3.8013391680286814E-2},{"$f":"'Population 2016'!AV30/'Population 2016'!AV$5","v":3.6046879949318975E-2},{"$f":"'Population 2016'!AW30/'Population 2016'!AW$5","v":4.0183202147782052E-2},{"$f":"'Population 2016'!AX30/'Population 2016'!AX$5","v":3.7875206051854786E-2},{"$f":"'Population 2016'!AY30/'Population 2016'!AY$5","v":3.6736941954040571E-2},{"$f":"'Population 2016'!AZ30/'Population 2016'!AZ$5","v":3.5140452508470872E-2},{"$f":"'Population 2016'!BA30/'Population 2016'!BA$5","v":3.7788814510904774E-2},{"$f":"'Population 2016'!BB30/'Population 2016'!BB$5","v":4.4896183617243117E-2},{"$f":"'Population 2016'!BC30/'Population 2016'!BC$5","v":3.6559996459080243E-2},28]
[null,"Female 45-49",{"$f":"'Population 2016'!C31/'Population 2016'!C$5","v":3.6079180999013562E-2},{"$f":"'Population 2016'!D31/'Population 2016'!D$5","v":4.2936924777246366E-2},{"$f":"'Population 2016'!E31/'Population 2016'!E$5","v":4.9226744921924442E-2},{"$f":"'Population 2016'!F31/'Population 2016'!F$5","v":4.4172031934071591E-2},{"$f":"'Population 2016'!G31/'Population 2016'!G$5","v":4.2873382774860608E-2},{"$f":"'Population 2016'!H31/'Population 2016'!H$5","v":4.745908894890942E-2},{"$f":"'Population 2016'!I31/'Population 2016'!I$5","v":4.8059207771543419E-2},{"$f":"'Population 2016'!J31/'Population 2016'!J$5","v":4.7568894454442172E-2},{"$f":"'Population 2016'!K31/'Population 2016'!K$5","v":4.9756650758399093E-2},{"$f":"'Population 2016'!L31/'Population 2016'!L$5","v":4.5375121122106968E-2},{"$f":"'Population 2016'!M31/'Population 2016'!M$5","v":4.5375121122106968E-2},{"$f":"'Population 2016'!N31/'Population 2016'!N$5","v":3.6850692407230289E-2},{"$f":"'Population 2016'!O31/'Population 2016'!O$5","v":4.9523979354276264E-2},{"$f":"'Population 2016'!P31/'Population 2016'!P$5","v":4.8461625154964501E-2},{"$f":"'Population 2016'!Q31/'Population 2016'!Q$5","v":5.1244991245696293E-2},{"$f":"'Population 2016'!R31/'Population 2016'!R$5","v":5.0939479427263533E-2},{"$f":"'Population 2016'!S31/'Population 2016'!S$5","v":4.4161130931680524E-2},{"$f":"'Population 2016'!T31/'Population 2016'!T$5","v":3.7493659930294132E-2},{"$f":"'Population 2016'!U31/'Population 2016'!U$5","v":4.3995927942283006E-2},{"$f":"'Population 2016'!V31/'Population 2016'!V$5","v":4.8808969554498899E-2},{"$f":"'Population 2016'!W31/'Population 2016'!W$5","v":4.5666398656024683E-2},{"$f":"'Population 2016'!X31/'Population 2016'!X$5","v":4.5666398656024683E-2},{"$f":"'Population 2016'!Y31/'Population 2016'!Y$5","v":4.8214654774963832E-2},{"$f":"'Population 2016'!Z31/'Population 2016'!Z$5","v":4.1046646908628429E-2},{"$f":"'Population 2016'!AA31/'Population 2016'!AA$5","v":4.6316098586393316E-2},{"$f":"'Population 2016'!AB31/'Population 2016'!AB$5","v":4.3331320430283614E-2},{"$f":"'Population 2016'!AC31/'Population 2016'!AC$5","v":4.492771311134601E-2},{"$f":"'Population 2016'!AD31/'Population 2016'!AD$5","v":4.5148684357437942E-2},{"$f":"'Population 2016'!AE31/'Population 2016'!AE$5","v":4.6011766034558879E-2},{"$f":"'Population 2016'!AF31/'Population 2016'!AF$5","v":4.893754995551132E-2},{"$f":"'Population 2016'!AG31/'Population 2016'!AG$5","v":4.6011766034558879E-2},{"$f":"'Population 2016'!AH31/'Population 2016'!AH$5","v":4.8809711785850293E-2},{"$f":"'Population 2016'!AI31/'Population 2016'!AI$5","v":4.3022410097121357E-2},{"$f":"'Population 2016'!AJ31/'Population 2016'!AJ$5","v":4.895017148593258E-2},{"$f":"'Population 2016'!AK31/'Population 2016'!AK$5","v":4.5359113938372955E-2},{"$f":"'Population 2016'!AL31/'Population 2016'!AL$5","v":4.7808658945389403E-2},{"$f":"'Population 2016'!AM31/'Population 2016'!AM$5","v":4.9277231057875848E-2},{"$f":"'Population 2016'!AN31/'Population 2016'!AN$5","v":4.4998363695865608E-2},{"$f":"'Population 2016'!AO31/'Population 2016'!AO$5","v":4.4998363695865608E-2},{"$f":"'Population 2016'!AP31/'Population 2016'!AP$5","v":4.5677916395859421E-2},{"$f":"'Population 2016'!AQ31/'Population 2016'!AQ$5","v":4.9398531265413492E-2},{"$f":"'Population 2016'!AR31/'Population 2016'!AR$5","v":4.5185744109260795E-2},{"$f":"'Population 2016'!AS31/'Population 2016'!AS$5","v":4.8059207771543419E-2},{"$f":"'Population 2016'!AT31/'Population 2016'!AT$5","v":4.4761954974429273E-2},{"$f":"'Population 2016'!AU31/'Population 2016'!AU$5","v":4.4761954974429273E-2},{"$f":"'Population 2016'!AV31/'Population 2016'!AV$5","v":4.4842149720198503E-2},{"$f":"'Population 2016'!AW31/'Population 2016'!AW$5","v":4.8317469034108246E-2},{"$f":"'Population 2016'!AX31/'Population 2016'!AX$5","v":4.6385626844882885E-2},{"$f":"'Population 2016'!AY31/'Population 2016'!AY$5","v":4.3768550533949388E-2},{"$f":"'Population 2016'!AZ31/'Population 2016'!AZ$5","v":4.2098359901283432E-2},{"$f":"'Population 2016'!BA31/'Population 2016'!BA$5","v":4.9260418916000866E-2},{"$f":"'Population 2016'!BB31/'Population 2016'!BB$5","v":5.1663064568473242E-2},{"$f":"'Population 2016'!BC31/'Population 2016'!BC$5","v":4.3995927942283006E-2},29]
[null,"Female 50-54",{"$f":"'Population 2016'!C32/'Population 2016'!C$5","v":3.8404726735598228E-2},{"$f":"'Population 2016'!D32/'Population 2016'!D$5","v":4.4017683362186165E-2},{"$f":"'Population 2016'!E32/'Population 2016'!E$5","v":4.9165803327411058E-2},{"$f":"'Population 2016'!F32/'Population 2016'!F$5","v":4.6984290497038374E-2},{"$f":"'Population 2016'!G32/'Population 2016'!G$5","v":4.8800952741839439E-2},{"$f":"'Population 2016'!H32/'Population 2016'!H$5","v":4.9748227214806123E-2},{"$f":"'Population 2016'!I32/'Population 2016'!I$5","v":4.9964408341009965E-2},{"$f":"'Population 2016'!J32/'Population 2016'!J$5","v":4.8232337891742617E-2},{"$f":"'Population 2016'!K32/'Population 2016'!K$5","v":4.9591267778670324E-2},{"$f":"'Population 2016'!L32/'Population 2016'!L$5","v":4.9616380474322111E-2},{"$f":"'Population 2016'!M32/'Population 2016'!M$5","v":4.9616380474322111E-2},{"$f":"'Population 2016'!N32/'Population 2016'!N$5","v":4.1970406924876025E-2},{"$f":"'Population 2016'!O32/'Population 2016'!O$5","v":4.969239456712337E-2},{"$f":"'Population 2016'!P32/'Population 2016'!P$5","v":5.1177730192719484E-2},{"$f":"'Population 2016'!Q32/'Population 2016'!Q$5","v":4.9071103747312016E-2},{"$f":"'Population 2016'!R32/'Population 2016'!R$5","v":5.1498376536967053E-2},{"$f":"'Population 2016'!S32/'Population 2016'!S$5","v":4.4275876434980786E-2},{"$f":"'Population 2016'!T32/'Population 2016'!T$5","v":3.7426187628837197E-2},{"$f":"'Population 2016'!U32/'Population 2016'!U$5","v":4.6695879254636391E-2},{"$f":"'Population 2016'!V32/'Population 2016'!V$5","v":4.8144953862357939E-2},{"$f":"'Population 2016'!W32/'Population 2016'!W$5","v":4.726465724053628E-2},{"$f":"'Population 2016'!X32/'Population 2016'!X$5","v":4.726465724053628E-2},{"$f":"'Population 2016'!Y32/'Population 2016'!Y$5","v":4.8186833277690341E-2},{"$f":"'Population 2016'!Z32/'Population 2016'!Z$5","v":4.2765634951208227E-2},{"$f":"'Population 2016'!AA32/'Population 2016'!AA$5","v":4.7740534708339395E-2},{"$f":"'Population 2016'!AB32/'Population 2016'!AB$5","v":4.4430570197435085E-2},{"$f":"'Population 2016'!AC32/'Population 2016'!AC$5","v":4.664671166540138E-2},{"$f":"'Population 2016'!AD32/'Population 2016'!AD$5","v":4.912724701328669E-2},{"$f":"'Population 2016'!AE32/'Population 2016'!AE$5","v":4.9251019004301892E-2},{"$f":"'Population 2016'!AF32/'Population 2016'!AF$5","v":5.184816540741076E-2},{"$f":"'Population 2016'!AG32/'Population 2016'!AG$5","v":4.9251019004301892E-2},{"$f":"'Population 2016'!AH32/'Population 2016'!AH$5","v":4.9705098316041724E-2},{"$f":"'Population 2016'!AI32/'Population 2016'!AI$5","v":4.2282789395397674E-2},{"$f":"'Population 2016'!AJ32/'Population 2016'!AJ$5","v":4.8350667819200846E-2},{"$f":"'Population 2016'!AK32/'Population 2016'!AK$5","v":4.6553436506040755E-2},{"$f":"'Population 2016'!AL32/'Population 2016'!AL$5","v":5.0495734378602719E-2},{"$f":"'Population 2016'!AM32/'Population 2016'!AM$5","v":4.950541669232246E-2},{"$f":"'Population 2016'!AN32/'Population 2016'!AN$5","v":4.8216428493509329E-2},{"$f":"'Population 2016'!AO32/'Population 2016'!AO$5","v":4.8216428493509329E-2},{"$f":"'Population 2016'!AP32/'Population 2016'!AP$5","v":4.7810028058272433E-2},{"$f":"'Population 2016'!AQ32/'Population 2016'!AQ$5","v":5.0227434646791254E-2},{"$f":"'Population 2016'!AR32/'Population 2016'!AR$5","v":4.661887197487604E-2},{"$f":"'Population 2016'!AS32/'Population 2016'!AS$5","v":4.9964408341009965E-2},{"$f":"'Population 2016'!AT32/'Population 2016'!AT$5","v":4.5869141139874517E-2},{"$f":"'Population 2016'!AU32/'Population 2016'!AU$5","v":4.5869141139874517E-2},{"$f":"'Population 2016'!AV32/'Population 2016'!AV$5","v":4.8917748917748916E-2},{"$f":"'Population 2016'!AW32/'Population 2016'!AW$5","v":4.9915339557019954E-2},{"$f":"'Population 2016'!AX32/'Population 2016'!AX$5","v":4.7497348480008181E-2},{"$f":"'Population 2016'!AY32/'Population 2016'!AY$5","v":4.6320492029007683E-2},{"$f":"'Population 2016'!AZ32/'Population 2016'!AZ$5","v":4.5489584711587691E-2},{"$f":"'Population 2016'!BA32/'Population 2016'!BA$5","v":5.1649211833297341E-2},{"$f":"'Population 2016'!BB32/'Population 2016'!BB$5","v":4.9702050088729001E-2},{"$f":"'Population 2016'!BC32/'Population 2016'!BC$5","v":4.6695879254636391E-2},30]
[null,"Female 55-59",{"$f":"'Population 2016'!C33/'Population 2016'!C$5","v":3.4959852391734346E-2},{"$f":"'Population 2016'!D33/'Population 2016'!D$5","v":3.887307688545915E-2},{"$f":"'Population 2016'!E33/'Population 2016'!E$5","v":4.2462227930939109E-2},{"$f":"'Population 2016'!F33/'Population 2016'!F$5","v":4.4790110739119239E-2},{"$f":"'Population 2016'!G33/'Population 2016'!G$5","v":4.6595030585178367E-2},{"$f":"'Population 2016'!H33/'Population 2016'!H$5","v":4.6132945109317702E-2},{"$f":"'Population 2016'!I33/'Population 2016'!I$5","v":4.7535801021689979E-2},{"$f":"'Population 2016'!J33/'Population 2016'!J$5","v":4.2029141752983425E-2},{"$f":"'Population 2016'!K33/'Population 2016'!K$5","v":4.4039124887775838E-2},{"$f":"'Population 2016'!L33/'Population 2016'!L$5","v":4.6169364446491827E-2},{"$f":"'Population 2016'!M33/'Population 2016'!M$5","v":4.6169364446491827E-2},{"$f":"'Population 2016'!N33/'Population 2016'!N$5","v":3.9776243560170711E-2},{"$f":"'Population 2016'!O33/'Population 2016'!O$5","v":4.4421989082731497E-2},{"$f":"'Population 2016'!P33/'Population 2016'!P$5","v":4.8822269807280515E-2},{"$f":"'Population 2016'!Q33/'Population 2016'!Q$5","v":4.6004159763105019E-2},{"$f":"'Population 2016'!R33/'Population 2016'!R$5","v":4.5723106403364029E-2},{"$f":"'Population 2016'!S33/'Population 2016'!S$5","v":4.0423075497245227E-2},{"$f":"'Population 2016'!T33/'Population 2016'!T$5","v":3.4608637385238922E-2},{"$f":"'Population 2016'!U33/'Population 2016'!U$5","v":4.3022175009958835E-2},{"$f":"'Population 2016'!V33/'Population 2016'!V$5","v":4.2000900618984746E-2},{"$f":"'Population 2016'!W33/'Population 2016'!W$5","v":4.2996097503578926E-2},{"$f":"'Population 2016'!X33/'Population 2016'!X$5","v":4.2996097503578926E-2},{"$f":"'Population 2016'!Y33/'Population 2016'!Y$5","v":4.2014435382585334E-2},{"$f":"'Population 2016'!Z33/'Population 2016'!Z$5","v":3.7595120242052103E-2},{"$f":"'Population 2016'!AA33/'Population 2016'!AA$5","v":4.3007473638962582E-2},{"$f":"'Population 2016'!AB33/'Population 2016'!AB$5","v":3.9380571732700119E-2},{"$f":"'Population 2016'!AC33/'Population 2016'!AC$5","v":4.1938600102188361E-2},{"$f":"'Population 2016'!AD33/'Population 2016'!AD$5","v":4.6049350552681528E-2},{"$f":"'Population 2016'!AE33/'Population 2016'!AE$5","v":4.5842359777821126E-2},{"$f":"'Population 2016'!AF33/'Population 2016'!AF$5","v":4.8424799046886548E-2},{"$f":"'Population 2016'!AG33/'Population 2016'!AG$5","v":4.5842359777821126E-2},{"$f":"'Population 2016'!AH33/'Population 2016'!AH$5","v":4.4927226623816909E-2},{"$f":"'Population 2016'!AI33/'Population 2016'!AI$5","v":3.8417895266427506E-2},{"$f":"'Population 2016'!AJ33/'Population 2016'!AJ$5","v":4.4851239438976107E-2},{"$f":"'Population 2016'!AK33/'Population 2016'!AK$5","v":4.1989867115899575E-2},{"$f":"'Population 2016'!AL33/'Population 2016'!AL$5","v":4.6185771802557597E-2},{"$f":"'Population 2016'!AM33/'Population 2016'!AM$5","v":4.3503772306956762E-2},{"$f":"'Population 2016'!AN33/'Population 2016'!AN$5","v":4.3907494272935527E-2},{"$f":"'Population 2016'!AO33/'Population 2016'!AO$5","v":4.3907494272935527E-2},{"$f":"'Population 2016'!AP33/'Population 2016'!AP$5","v":4.3442765879872551E-2},{"$f":"'Population 2016'!AQ33/'Population 2016'!AQ$5","v":4.541842494656656E-2},{"$f":"'Population 2016'!AR33/'Population 2016'!AR$5","v":4.2346444459444799E-2},{"$f":"'Population 2016'!AS33/'Population 2016'!AS$5","v":4.7535801021689979E-2},{"$f":"'Population 2016'!AT33/'Population 2016'!AT$5","v":4.0913164970738651E-2},{"$f":"'Population 2016'!AU33/'Population 2016'!AU$5","v":4.0913164970738651E-2},{"$f":"'Population 2016'!AV33/'Population 2016'!AV$5","v":4.789356984478936E-2},{"$f":"'Population 2016'!AW33/'Population 2016'!AW$5","v":4.6425956434193665E-2},{"$f":"'Population 2016'!AX33/'Population 2016'!AX$5","v":4.0942024355648698E-2},{"$f":"'Population 2016'!AY33/'Population 2016'!AY$5","v":4.2735840396560691E-2},{"$f":"'Population 2016'!AZ33/'Population 2016'!AZ$5","v":4.2506802584119055E-2},{"$f":"'Population 2016'!BA33/'Population 2016'!BA$5","v":4.7478946231915356E-2},{"$f":"'Population 2016'!BB33/'Population 2016'!BB$5","v":4.2078951547751396E-2},{"$f":"'Population 2016'!BC33/'Population 2016'!BC$5","v":4.3022175009958835E-2},31]
[null,"Female 60-64",{"$f":"'Population 2016'!C34/'Population 2016'!C$5","v":2.9746541070159924E-2},{"$f":"'Population 2016'!D34/'Population 2016'!D$5","v":3.463317782146455E-2},{"$f":"'Population 2016'!E34/'Population 2016'!E$5","v":3.9115128047665704E-2},{"$f":"'Population 2016'!F34/'Population 2016'!F$5","v":4.0855009013649239E-2},{"$f":"'Population 2016'!G34/'Population 2016'!G$5","v":4.3590645807394579E-2},{"$f":"'Population 2016'!H34/'Population 2016'!H$5","v":4.1959969261996091E-2},{"$f":"'Population 2016'!I34/'Population 2016'!I$5","v":4.3097311782932753E-2},{"$f":"'Population 2016'!J34/'Population 2016'!J$5","v":3.6464509922625912E-2},{"$f":"'Population 2016'!K34/'Population 2016'!K$5","v":3.9101261635873928E-2},{"$f":"'Population 2016'!L34/'Population 2016'!L$5","v":4.4827093228281413E-2},{"$f":"'Population 2016'!M34/'Population 2016'!M$5","v":4.4827093228281413E-2},{"$f":"'Population 2016'!N34/'Population 2016'!N$5","v":3.1377339838130222E-2},{"$f":"'Population 2016'!O34/'Population 2016'!O$5","v":3.911195648943442E-2},{"$f":"'Population 2016'!P34/'Population 2016'!P$5","v":4.1203651527104701E-2},{"$f":"'Population 2016'!Q34/'Population 2016'!Q$5","v":3.8894960106226721E-2},{"$f":"'Population 2016'!R34/'Population 2016'!R$5","v":3.9907915047639325E-2},{"$f":"'Population 2016'!S34/'Population 2016'!S$5","v":3.4682269701361589E-2},{"$f":"'Population 2016'!T34/'Population 2016'!T$5","v":2.8615235710995193E-2},{"$f":"'Population 2016'!U34/'Population 2016'!U$5","v":4.3332005488425619E-2},{"$f":"'Population 2016'!V34/'Population 2016'!V$5","v":3.6826157638851789E-2},{"$f":"'Population 2016'!W34/'Population 2016'!W$5","v":3.839089025291053E-2},{"$f":"'Population 2016'!X34/'Population 2016'!X$5","v":3.839089025291053E-2},{"$f":"'Population 2016'!Y34/'Population 2016'!Y$5","v":3.6652835408022132E-2},{"$f":"'Population 2016'!Z34/'Population 2016'!Z$5","v":2.9338944564571423E-2},{"$f":"'Population 2016'!AA34/'Population 2016'!AA$5","v":3.5731156284693227E-2},{"$f":"'Population 2016'!AB34/'Population 2016'!AB$5","v":3.5335660112790802E-2},{"$f":"'Population 2016'!AC34/'Population 2016'!AC$5","v":3.39910761013692E-2},{"$f":"'Population 2016'!AD34/'Population 2016'!AD$5","v":4.2949123525252146E-2},{"$f":"'Population 2016'!AE34/'Population 2016'!AE$5","v":4.2705777266707053E-2},{"$f":"'Population 2016'!AF34/'Population 2016'!AF$5","v":3.9527062691339036E-2},{"$f":"'Population 2016'!AG34/'Population 2016'!AG$5","v":4.2705777266707053E-2},{"$f":"'Population 2016'!AH34/'Population 2016'!AH$5","v":3.8856431643182893E-2},{"$f":"'Population 2016'!AI34/'Population 2016'!AI$5","v":3.2032001924927812E-2},{"$f":"'Population 2016'!AJ34/'Population 2016'!AJ$5","v":3.7671137383933302E-2},{"$f":"'Population 2016'!AK34/'Population 2016'!AK$5","v":3.8947487522472124E-2},{"$f":"'Population 2016'!AL34/'Population 2016'!AL$5","v":4.2656213972792255E-2},{"$f":"'Population 2016'!AM34/'Population 2016'!AM$5","v":3.7480395956405677E-2},{"$f":"'Population 2016'!AN34/'Population 2016'!AN$5","v":4.0907603359877823E-2},{"$f":"'Population 2016'!AO34/'Population 2016'!AO$5","v":4.0907603359877823E-2},{"$f":"'Population 2016'!AP34/'Population 2016'!AP$5","v":4.0597308308102022E-2},{"$f":"'Population 2016'!AQ34/'Population 2016'!AQ$5","v":3.7471913191209516E-2},{"$f":"'Population 2016'!AR34/'Population 2016'!AR$5","v":3.6790818357670667E-2},{"$f":"'Population 2016'!AS34/'Population 2016'!AS$5","v":4.3097311782932753E-2},{"$f":"'Population 2016'!AT34/'Population 2016'!AT$5","v":3.9120577845732064E-2},{"$f":"'Population 2016'!AU34/'Population 2016'!AU$5","v":3.9120577845732064E-2},{"$f":"'Population 2016'!AV34/'Population 2016'!AV$5","v":4.4166402702988071E-2},{"$f":"'Population 2016'!AW34/'Population 2016'!AW$5","v":4.0305235218744281E-2},{"$f":"'Population 2016'!AX34/'Population 2016'!AX$5","v":3.5038399120845422E-2},{"$f":"'Population 2016'!AY34/'Population 2016'!AY$5","v":3.7847679079587526E-2},{"$f":"'Population 2016'!AZ34/'Population 2016'!AZ$5","v":3.7369629122538557E-2},{"$f":"'Population 2016'!BA34/'Population 2016'!BA$5","v":3.9975167350464261E-2},{"$f":"'Population 2016'!BB34/'Population 2016'!BB$5","v":3.5346595499333666E-2},{"$f":"'Population 2016'!BC34/'Population 2016'!BC$5","v":4.3332005488425619E-2},32]
[null,"Female 65-69",{"$f":"'Population 2016'!C35/'Population 2016'!C$5","v":2.8734545343030774E-2},{"$f":"'Population 2016'!D35/'Population 2016'!D$5","v":3.3535303150337918E-2},{"$f":"'Population 2016'!E35/'Population 2016'!E$5","v":3.7938486492061184E-2},{"$f":"'Population 2016'!F35/'Population 2016'!F$5","v":4.4357455575585888E-2},{"$f":"'Population 2016'!G35/'Population 2016'!G$5","v":4.7799491149244845E-2},{"$f":"'Population 2016'!H35/'Population 2016'!H$5","v":4.2981326986865014E-2},{"$f":"'Population 2016'!I35/'Population 2016'!I$5","v":4.6551796331965496E-2},{"$f":"'Population 2016'!J35/'Population 2016'!J$5","v":3.7924085484686898E-2},{"$f":"'Population 2016'!K35/'Population 2016'!K$5","v":4.2219912110759344E-2},{"$f":"'Population 2016'!L35/'Population 2016'!L$5","v":4.4993884326402236E-2},{"$f":"'Population 2016'!M35/'Population 2016'!M$5","v":4.4993884326402236E-2},{"$f":"'Population 2016'!N35/'Population 2016'!N$5","v":3.3008897211885456E-2},{"$f":"'Population 2016'!O35/'Population 2016'!O$5","v":3.9934218999217362E-2},{"$f":"'Population 2016'!P35/'Population 2016'!P$5","v":4.0820466584018937E-2},{"$f":"'Population 2016'!Q35/'Population 2016'!Q$5","v":3.93649898356071E-2},{"$f":"'Population 2016'!R35/'Population 2016'!R$5","v":3.8271144940650446E-2},{"$f":"'Population 2016'!S35/'Population 2016'!S$5","v":3.5695560761274628E-2},{"$f":"'Population 2016'!T35/'Population 2016'!T$5","v":2.8564049827131309E-2},{"$f":"'Population 2016'!U35/'Population 2016'!U$5","v":4.4350019917673615E-2},{"$f":"'Population 2016'!V35/'Population 2016'!V$5","v":3.7726776623594693E-2},{"$f":"'Population 2016'!W35/'Population 2016'!W$5","v":4.0587270148190274E-2},{"$f":"'Population 2016'!X35/'Population 2016'!X$5","v":4.0587270148190274E-2},{"$f":"'Population 2016'!Y35/'Population 2016'!Y$5","v":3.7821338293508845E-2},{"$f":"'Population 2016'!Z35/'Population 2016'!Z$5","v":2.5722875123649055E-2},{"$f":"'Population 2016'!AA35/'Population 2016'!AA$5","v":3.341046814385476E-2},{"$f":"'Population 2016'!AB35/'Population 2016'!AB$5","v":3.4670378596358353E-2},{"$f":"'Population 2016'!AC35/'Population 2016'!AC$5","v":3.1776650166211229E-2},{"$f":"'Population 2016'!AD35/'Population 2016'!AD$5","v":4.3756745692061484E-2},{"$f":"'Population 2016'!AE35/'Population 2016'!AE$5","v":4.2223226111151035E-2},{"$f":"'Population 2016'!AF35/'Population 2016'!AF$5","v":3.9798519054728622E-2},{"$f":"'Population 2016'!AG35/'Population 2016'!AG$5","v":4.2223226111151035E-2},{"$f":"'Population 2016'!AH35/'Population 2016'!AH$5","v":3.6344891002479958E-2},{"$f":"'Population 2016'!AI35/'Population 2016'!AI$5","v":3.2231603814856943E-2},{"$f":"'Population 2016'!AJ35/'Population 2016'!AJ$5","v":4.0375874857095054E-2},{"$f":"'Population 2016'!AK35/'Population 2016'!AK$5","v":4.0506392768691148E-2},{"$f":"'Population 2016'!AL35/'Population 2016'!AL$5","v":4.3702665791667407E-2},{"$f":"'Population 2016'!AM35/'Population 2016'!AM$5","v":3.5155075681568761E-2},{"$f":"'Population 2016'!AN35/'Population 2016'!AN$5","v":4.2489364023126433E-2},{"$f":"'Population 2016'!AO35/'Population 2016'!AO$5","v":4.2489364023126433E-2},{"$f":"'Population 2016'!AP35/'Population 2016'!AP$5","v":4.2166669308688551E-2},{"$f":"'Population 2016'!AQ35/'Population 2016'!AQ$5","v":3.7499314955883156E-2},{"$f":"'Population 2016'!AR35/'Population 2016'!AR$5","v":3.6548213624940214E-2},{"$f":"'Population 2016'!AS35/'Population 2016'!AS$5","v":4.6551796331965496E-2},{"$f":"'Population 2016'!AT35/'Population 2016'!AT$5","v":3.6009911952338269E-2},{"$f":"'Population 2016'!AU35/'Population 2016'!AU$5","v":3.6009911952338269E-2},{"$f":"'Population 2016'!AV35/'Population 2016'!AV$5","v":4.5370077077394148E-2},{"$f":"'Population 2016'!AW35/'Population 2016'!AW$5","v":3.7597626456769784E-2},{"$f":"'Population 2016'!AX35/'Population 2016'!AX$5","v":3.5600649143207638E-2},{"$f":"'Population 2016'!AY35/'Population 2016'!AY$5","v":4.0009485633854536E-2},{"$f":"'Population 2016'!AZ35/'Population 2016'!AZ$5","v":3.9501009601279405E-2},{"$f":"'Population 2016'!BA35/'Population 2016'!BA$5","v":3.8112718635283954E-2},{"$f":"'Population 2016'!BB35/'Population 2016'!BB$5","v":3.4890866782210005E-2},{"$f":"'Population 2016'!BC35/'Population 2016'!BC$5","v":4.4350019917673615E-2},33]
[null,"Female 70-74",{"$f":"'Population 2016'!C36/'Population 2016'!C$5","v":2.110368867331449E-2},{"$f":"'Population 2016'!D36/'Population 2016'!D$5","v":2.4590925540134777E-2},{"$f":"'Population 2016'!E36/'Population 2016'!E$5","v":2.7789367098101904E-2},{"$f":"'Population 2016'!F36/'Population 2016'!F$5","v":3.4128251352047383E-2},{"$f":"'Population 2016'!G36/'Population 2016'!G$5","v":3.7067612190764897E-2},{"$f":"'Population 2016'!H36/'Population 2016'!H$5","v":3.4382467665111389E-2},{"$f":"'Population 2016'!I36/'Population 2016'!I$5","v":3.6282555899840883E-2},{"$f":"'Population 2016'!J36/'Population 2016'!J$5","v":2.9937885108182745E-2},{"$f":"'Population 2016'!K36/'Population 2016'!K$5","v":3.1800784387846712E-2},{"$f":"'Population 2016'!L36/'Population 2016'!L$5","v":3.8131622003717058E-2},{"$f":"'Population 2016'!M36/'Population 2016'!M$5","v":3.8131622003717058E-2},{"$f":"'Population 2016'!N36/'Population 2016'!N$5","v":2.4907370942204292E-2},{"$f":"'Population 2016'!O36/'Population 2016'!O$5","v":3.0810077173794592E-2},{"$f":"'Population 2016'!P36/'Population 2016'!P$5","v":3.3077876704609488E-2},{"$f":"'Population 2016'!Q36/'Population 2016'!Q$5","v":3.0869202477056674E-2},{"$f":"'Population 2016'!R36/'Population 2016'!R$5","v":3.1005482514504711E-2},{"$f":"'Population 2016'!S36/'Population 2016'!S$5","v":2.7222929329127177E-2},{"$f":"'Population 2016'!T36/'Population 2016'!T$5","v":2.1293327687375234E-2},{"$f":"'Population 2016'!U36/'Population 2016'!U$5","v":3.5143628557517813E-2},{"$f":"'Population 2016'!V36/'Population 2016'!V$5","v":2.8338968562291542E-2},{"$f":"'Population 2016'!W36/'Population 2016'!W$5","v":3.1203629256303152E-2},{"$f":"'Population 2016'!X36/'Population 2016'!X$5","v":3.1203629256303152E-2},{"$f":"'Population 2016'!Y36/'Population 2016'!Y$5","v":2.9105260647684456E-2},{"$f":"'Population 2016'!Z36/'Population 2016'!Z$5","v":1.9861280762239562E-2},{"$f":"'Population 2016'!AA36/'Population 2016'!AA$5","v":2.6001938668192087E-2},{"$f":"'Population 2016'!AB36/'Population 2016'!AB$5","v":2.585181621853986E-2},{"$f":"'Population 2016'!AC36/'Population 2016'!AC$5","v":2.4674145310195461E-2},{"$f":"'Population 2016'!AD36/'Population 2016'!AD$5","v":3.3841974022107264E-2},{"$f":"'Population 2016'!AE36/'Population 2016'!AE$5","v":3.2618404706413827E-2},{"$f":"'Population 2016'!AF36/'Population 2016'!AF$5","v":3.1307967244265482E-2},{"$f":"'Population 2016'!AG36/'Population 2016'!AG$5","v":3.2618404706413827E-2},{"$f":"'Population 2016'!AH36/'Population 2016'!AH$5","v":2.838672524451297E-2},{"$f":"'Population 2016'!AI36/'Population 2016'!AI$5","v":2.4374671887304227E-2},{"$f":"'Population 2016'!AJ36/'Population 2016'!AJ$5","v":2.9989125282324402E-2},{"$f":"'Population 2016'!AK36/'Population 2016'!AK$5","v":3.2334712042543026E-2},{"$f":"'Population 2016'!AL36/'Population 2016'!AL$5","v":3.4594987673152305E-2},{"$f":"'Population 2016'!AM36/'Population 2016'!AM$5","v":2.7664791681003727E-2},{"$f":"'Population 2016'!AN36/'Population 2016'!AN$5","v":3.6325951783571508E-2},{"$f":"'Population 2016'!AO36/'Population 2016'!AO$5","v":3.6325951783571508E-2},{"$f":"'Population 2016'!AP36/'Population 2016'!AP$5","v":3.3860152497503286E-2},{"$f":"'Population 2016'!AQ36/'Population 2016'!AQ$5","v":2.8778703348495645E-2},{"$f":"'Population 2016'!AR36/'Population 2016'!AR$5","v":2.8326163238454612E-2},{"$f":"'Population 2016'!AS36/'Population 2016'!AS$5","v":3.6282555899840883E-2},{"$f":"'Population 2016'!AT36/'Population 2016'!AT$5","v":3.0421257974376548E-2},{"$f":"'Population 2016'!AU36/'Population 2016'!AU$5","v":3.0421257974376548E-2},{"$f":"'Population 2016'!AV36/'Population 2016'!AV$5","v":3.7936859888079398E-2},{"$f":"'Population 2016'!AW36/'Population 2016'!AW$5","v":2.9146836292635304E-2},{"$f":"'Population 2016'!AX36/'Population 2016'!AX$5","v":2.8930319332455882E-2},{"$f":"'Population 2016'!AY36/'Population 2016'!AY$5","v":3.0952235243719591E-2},{"$f":"'Population 2016'!AZ36/'Population 2016'!AZ$5","v":3.0730997347998917E-2},{"$f":"'Population 2016'!BA36/'Population 2016'!BA$5","v":2.7720794644785142E-2},{"$f":"'Population 2016'!BB36/'Population 2016'!BB$5","v":2.6922519213108415E-2},{"$f":"'Population 2016'!BC36/'Population 2016'!BC$5","v":3.5143628557517813E-2},34]
[null,"Female 75-79",{"$f":"'Population 2016'!C37/'Population 2016'!C$5","v":1.8885475816879885E-2},{"$f":"'Population 2016'!D37/'Population 2016'!D$5","v":2.02483299590192E-2},{"$f":"'Population 2016'!E37/'Population 2016'!E$5","v":2.149831941833592E-2},{"$f":"'Population 2016'!F37/'Population 2016'!F$5","v":2.7216070048931239E-2},{"$f":"'Population 2016'!G37/'Population 2016'!G$5","v":3.0382179396957722E-2},{"$f":"'Population 2016'!H37/'Population 2016'!H$5","v":2.6963843936539639E-2},{"$f":"'Population 2016'!I37/'Population 2016'!I$5","v":2.9310777991792981E-2},{"$f":"'Population 2016'!J37/'Population 2016'!J$5","v":2.3635172453828485E-2},{"$f":"'Population 2016'!K37/'Population 2016'!K$5","v":2.3224495581911826E-2},{"$f":"'Population 2016'!L37/'Population 2016'!L$5","v":2.9069305672485824E-2},{"$f":"'Population 2016'!M37/'Population 2016'!M$5","v":2.9069305672485824E-2},{"$f":"'Population 2016'!N37/'Population 2016'!N$5","v":2.2230973870970335E-2},{"$f":"'Population 2016'!O37/'Population 2016'!O$5","v":2.4261697427209954E-2},{"$f":"'Population 2016'!P37/'Population 2016'!P$5","v":2.9268567564521581E-2},{"$f":"'Population 2016'!Q37/'Population 2016'!Q$5","v":2.5240596467726584E-2},{"$f":"'Population 2016'!R37/'Population 2016'!R$5","v":2.5922180231010804E-2},{"$f":"'Population 2016'!S37/'Population 2016'!S$5","v":2.1867844955875942E-2},{"$f":"'Population 2016'!T37/'Population 2016'!T$5","v":1.8303606743507537E-2},{"$f":"'Population 2016'!U37/'Population 2016'!U$5","v":3.1558447306687915E-2},{"$f":"'Population 2016'!V37/'Population 2016'!V$5","v":2.3729020538692271E-2},{"$f":"'Population 2016'!W37/'Population 2016'!W$5","v":2.4088273553886482E-2},{"$f":"'Population 2016'!X37/'Population 2016'!X$5","v":2.4088273553886482E-2},{"$f":"'Population 2016'!Y37/'Population 2016'!Y$5","v":2.3684043178963769E-2},{"$f":"'Population 2016'!Z37/'Population 2016'!Z$5","v":1.8448148700208871E-2},{"$f":"'Population 2016'!AA37/'Population 2016'!AA$5","v":2.2388362144281294E-2},{"$f":"'Population 2016'!AB37/'Population 2016'!AB$5","v":2.0990143598456548E-2},{"$f":"'Population 2016'!AC37/'Population 2016'!AC$5","v":2.1844313755505038E-2},{"$f":"'Population 2016'!AD37/'Population 2016'!AD$5","v":2.6919498306598684E-2},{"$f":"'Population 2016'!AE37/'Population 2016'!AE$5","v":2.560601238205731E-2},{"$f":"'Population 2016'!AF37/'Population 2016'!AF$5","v":2.6331267248789758E-2},{"$f":"'Population 2016'!AG37/'Population 2016'!AG$5","v":2.560601238205731E-2},{"$f":"'Population 2016'!AH37/'Population 2016'!AH$5","v":2.3365501611509989E-2},{"$f":"'Population 2016'!AI37/'Population 2016'!AI$5","v":1.9967024674074723E-2},{"$f":"'Population 2016'!AJ37/'Population 2016'!AJ$5","v":2.3046036304826701E-2},{"$f":"'Population 2016'!AK37/'Population 2016'!AK$5","v":2.4804193957984989E-2},{"$f":"'Population 2016'!AL37/'Population 2016'!AL$5","v":2.7154537876234904E-2},{"$f":"'Population 2016'!AM37/'Population 2016'!AM$5","v":2.2575889833424487E-2},{"$f":"'Population 2016'!AN37/'Population 2016'!AN$5","v":2.7162648630958873E-2},{"$f":"'Population 2016'!AO37/'Population 2016'!AO$5","v":2.7162648630958873E-2},{"$f":"'Population 2016'!AP37/'Population 2016'!AP$5","v":2.6932771111075886E-2},{"$f":"'Population 2016'!AQ37/'Population 2016'!AQ$5","v":2.4038198059955062E-2},{"$f":"'Population 2016'!AR37/'Population 2016'!AR$5","v":2.324260272773266E-2},{"$f":"'Population 2016'!AS37/'Population 2016'!AS$5","v":2.9310777991792981E-2},{"$f":"'Population 2016'!AT37/'Population 2016'!AT$5","v":2.2091000158169453E-2},{"$f":"'Population 2016'!AU37/'Population 2016'!AU$5","v":2.2091000158169453E-2},{"$f":"'Population 2016'!AV37/'Population 2016'!AV$5","v":2.9616724738675958E-2},{"$f":"'Population 2016'!AW37/'Population 2016'!AW$5","v":2.4196869851729818E-2},{"$f":"'Population 2016'!AX37/'Population 2016'!AX$5","v":2.3857290721596789E-2},{"$f":"'Population 2016'!AY37/'Population 2016'!AY$5","v":2.4748324714666012E-2},{"$f":"'Population 2016'!AZ37/'Population 2016'!AZ$5","v":2.5329199049651672E-2},{"$f":"'Population 2016'!BA37/'Population 2016'!BA$5","v":2.4157849276614123E-2},{"$f":"'Population 2016'!BB37/'Population 2016'!BB$5","v":2.0279927912002928E-2},{"$f":"'Population 2016'!BC37/'Population 2016'!BC$5","v":3.1558447306687915E-2},35]
[null,"Female 80-84",{"$f":"'Population 2016'!C38/'Population 2016'!C$5","v":1.5501934547387467E-2},{"$f":"'Population 2016'!D38/'Population 2016'!D$5","v":1.5619651223066616E-2},{"$f":"'Population 2016'!E38/'Population 2016'!E$5","v":1.5727619199414962E-2},{"$f":"'Population 2016'!F38/'Population 2016'!F$5","v":2.0952871491115119E-2},{"$f":"'Population 2016'!G38/'Population 2016'!G$5","v":2.2086288096140314E-2},{"$f":"'Population 2016'!H38/'Population 2016'!H$5","v":2.0252064601686701E-2},{"$f":"'Population 2016'!I38/'Population 2016'!I$5","v":2.0936269994137845E-2},{"$f":"'Population 2016'!J38/'Population 2016'!J$5","v":1.7033910252689018E-2},{"$f":"'Population 2016'!K38/'Population 2016'!K$5","v":1.5640504654349574E-2},{"$f":"'Population 2016'!L38/'Population 2016'!L$5","v":2.2794783409845441E-2},{"$f":"'Population 2016'!M38/'Population 2016'!M$5","v":2.2794783409845441E-2},{"$f":"'Population 2016'!N38/'Population 2016'!N$5","v":1.9120566463860601E-2},{"$f":"'Population 2016'!O38/'Population 2016'!O$5","v":1.7871826116246124E-2},{"$f":"'Population 2016'!P38/'Population 2016'!P$5","v":2.1988053645892031E-2},{"$f":"'Population 2016'!Q38/'Population 2016'!Q$5","v":1.9212465188423167E-2},{"$f":"'Population 2016'!R38/'Population 2016'!R$5","v":2.2422419758343536E-2},{"$f":"'Population 2016'!S38/'Population 2016'!S$5","v":1.6628388743642659E-2},{"$f":"'Population 2016'!T38/'Population 2016'!T$5","v":1.5016077020795429E-2},{"$f":"'Population 2016'!U38/'Population 2016'!U$5","v":2.4476607798875758E-2},{"$f":"'Population 2016'!V38/'Population 2016'!V$5","v":1.676067195335099E-2},{"$f":"'Population 2016'!W38/'Population 2016'!W$5","v":1.7959981435360407E-2},{"$f":"'Population 2016'!X38/'Population 2016'!X$5","v":1.7959981435360407E-2},{"$f":"'Population 2016'!Y38/'Population 2016'!Y$5","v":1.6891623344620913E-2},{"$f":"'Population 2016'!Z38/'Population 2016'!Z$5","v":1.520181655222878E-2},{"$f":"'Population 2016'!AA38/'Population 2016'!AA$5","v":1.751843827587421E-2},{"$f":"'Population 2016'!AB38/'Population 2016'!AB$5","v":1.6337267023530496E-2},{"$f":"'Population 2016'!AC38/'Population 2016'!AC$5","v":1.7505445564011492E-2},{"$f":"'Population 2016'!AD38/'Population 2016'!AD$5","v":2.0194275931370725E-2},{"$f":"'Population 2016'!AE38/'Population 2016'!AE$5","v":1.9476586001909671E-2},{"$f":"'Population 2016'!AF38/'Population 2016'!AF$5","v":2.0841816344689259E-2},{"$f":"'Population 2016'!AG38/'Population 2016'!AG$5","v":1.9476586001909671E-2},{"$f":"'Population 2016'!AH38/'Population 2016'!AH$5","v":1.7541773868459915E-2},{"$f":"'Population 2016'!AI38/'Population 2016'!AI$5","v":1.550879342024674E-2},{"$f":"'Population 2016'!AJ38/'Population 2016'!AJ$5","v":1.7260128823578618E-2},{"$f":"'Population 2016'!AK38/'Population 2016'!AK$5","v":2.0026903687313781E-2},{"$f":"'Population 2016'!AL38/'Population 2016'!AL$5","v":2.0157499866976465E-2},{"$f":"'Population 2016'!AM38/'Population 2016'!AM$5","v":1.6472829610526964E-2},{"$f":"'Population 2016'!AN38/'Population 2016'!AN$5","v":1.7835715064906731E-2},{"$f":"'Population 2016'!AO38/'Population 2016'!AO$5","v":1.7835715064906731E-2},{"$f":"'Population 2016'!AP38/'Population 2016'!AP$5","v":2.0869330881537022E-2},{"$f":"'Population 2016'!AQ38/'Population 2016'!AQ$5","v":1.8715405272099524E-2},{"$f":"'Population 2016'!AR38/'Population 2016'!AR$5","v":1.7870545312615914E-2},{"$f":"'Population 2016'!AS38/'Population 2016'!AS$5","v":2.0936269994137845E-2},{"$f":"'Population 2016'!AT38/'Population 2016'!AT$5","v":1.6396899878736753E-2},{"$f":"'Population 2016'!AU38/'Population 2016'!AU$5","v":1.6396899878736753E-2},{"$f":"'Population 2016'!AV38/'Population 2016'!AV$5","v":2.2901488755147293E-2},{"$f":"'Population 2016'!AW38/'Population 2016'!AW$5","v":1.8667246323753738E-2},{"$f":"'Population 2016'!AX38/'Population 2016'!AX$5","v":1.7787546162004678E-2},{"$f":"'Population 2016'!AY38/'Population 2016'!AY$5","v":1.9186989382209845E-2},{"$f":"'Population 2016'!AZ38/'Population 2016'!AZ$5","v":2.026681086802699E-2},{"$f":"'Population 2016'!BA38/'Population 2016'!BA$5","v":1.7841718851220038E-2},{"$f":"'Population 2016'!BB38/'Population 2016'!BB$5","v":1.3927345794521588E-2},{"$f":"'Population 2016'!BC38/'Population 2016'!BC$5","v":2.4476607798875758E-2},36]
[null,"Female 85-89",{"$f":"'Population 2016'!C39/'Population 2016'!C$5","v":1.0309067583936867E-2},{"$f":"'Population 2016'!D39/'Population 2016'!D$5","v":1.0220748608706708E-2},{"$f":"'Population 2016'!E39/'Population 2016'!E$5","v":1.0139743764034146E-2},{"$f":"'Population 2016'!F39/'Population 2016'!F$5","v":1.3546227143960855E-2},{"$f":"'Population 2016'!G39/'Population 2016'!G$5","v":1.3533264764791858E-2},{"$f":"'Population 2016'!H39/'Population 2016'!H$5","v":1.1776416688012502E-2},{"$f":"'Population 2016'!I39/'Population 2016'!I$5","v":1.2844401641403567E-2},{"$f":"'Population 2016'!J39/'Population 2016'!J$5","v":9.9765306884054966E-3},{"$f":"'Population 2016'!K39/'Population 2016'!K$5","v":9.7339696640362898E-3},{"$f":"'Population 2016'!L39/'Population 2016'!L$5","v":1.3954855209441964E-2},{"$f":"'Population 2016'!M39/'Population 2016'!M$5","v":1.3954855209441964E-2},{"$f":"'Population 2016'!N39/'Population 2016'!N$5","v":1.2264810602711762E-2},{"$f":"'Population 2016'!O39/'Population 2016'!O$5","v":1.0382302533162937E-2},{"$f":"'Population 2016'!P39/'Population 2016'!P$5","v":1.3557984898005184E-2},{"$f":"'Population 2016'!Q39/'Population 2016'!Q$5","v":1.2103265531544871E-2},{"$f":"'Population 2016'!R39/'Population 2016'!R$5","v":1.4398254111885878E-2},{"$f":"'Population 2016'!S39/'Population 2016'!S$5","v":1.0682806357253946E-2},{"$f":"'Population 2016'!T39/'Population 2016'!T$5","v":1.0690869834297335E-2},{"$f":"'Population 2016'!U39/'Population 2016'!U$5","v":1.4606293984862568E-2},{"$f":"'Population 2016'!V39/'Population 2016'!V$5","v":9.8075880965646737E-3},{"$f":"'Population 2016'!W39/'Population 2016'!W$5","v":1.1351231214741892E-2},{"$f":"'Population 2016'!X39/'Population 2016'!X$5","v":1.1351231214741892E-2},{"$f":"'Population 2016'!Y39/'Population 2016'!Y$5","v":9.8885550309216075E-3},{"$f":"'Population 2016'!Z39/'Population 2016'!Z$5","v":9.2008447819614658E-3},{"$f":"'Population 2016'!AA39/'Population 2016'!AA$5","v":1.0487278071324121E-2},{"$f":"'Population 2016'!AB39/'Population 2016'!AB$5","v":1.0509400939582204E-2},{"$f":"'Population 2016'!AC39/'Population 2016'!AC$5","v":1.0701852008911487E-2},{"$f":"'Population 2016'!AD39/'Population 2016'!AD$5","v":1.2709814284119245E-2},{"$f":"'Population 2016'!AE39/'Population 2016'!AE$5","v":1.2397457879444348E-2},{"$f":"'Population 2016'!AF39/'Population 2016'!AF$5","v":1.3452170896861662E-2},{"$f":"'Population 2016'!AG39/'Population 2016'!AG$5","v":1.2397457879444348E-2},{"$f":"'Population 2016'!AH39/'Population 2016'!AH$5","v":1.0101892014898341E-2},{"$f":"'Population 2016'!AI39/'Population 2016'!AI$5","v":1.0120909528392685E-2},{"$f":"'Population 2016'!AJ39/'Population 2016'!AJ$5","v":9.6617683963974004E-3},{"$f":"'Population 2016'!AK39/'Population 2016'!AK$5","v":1.1993512942685089E-2},{"$f":"'Population 2016'!AL39/'Population 2016'!AL$5","v":1.1377946471328993E-2},{"$f":"'Population 2016'!AM39/'Population 2016'!AM$5","v":8.975301621566803E-3},{"$f":"'Population 2016'!AN39/'Population 2016'!AN$5","v":1.1945020181084324E-2},{"$f":"'Population 2016'!AO39/'Population 2016'!AO$5","v":1.1945020181084324E-2},{"$f":"'Population 2016'!AP39/'Population 2016'!AP$5","v":1.4251066055831206E-2},{"$f":"'Population 2016'!AQ39/'Population 2016'!AQ$5","v":1.0816846604921358E-2},{"$f":"'Population 2016'!AR39/'Population 2016'!AR$5","v":1.1070038360063296E-2},{"$f":"'Population 2016'!AS39/'Population 2016'!AS$5","v":1.2844401641403567E-2},{"$f":"'Population 2016'!AT39/'Population 2016'!AT$5","v":9.9646754890072228E-3},{"$f":"'Population 2016'!AU39/'Population 2016'!AU$5","v":9.9646754890072228E-3},{"$f":"'Population 2016'!AV39/'Population 2016'!AV$5","v":1.3736669834230809E-2},{"$f":"'Population 2016'!AW39/'Population 2016'!AW$5","v":1.1288059064006345E-2},{"$f":"'Population 2016'!AX39/'Population 2016'!AX$5","v":1.0107721992920761E-2},{"$f":"'Population 2016'!AY39/'Population 2016'!AY$5","v":1.2410880939995716E-2},{"$f":"'Population 2016'!AZ39/'Population 2016'!AZ$5","v":1.3343419758270964E-2},{"$f":"'Population 2016'!BA39/'Population 2016'!BA$5","v":1.13096523429065E-2},{"$f":"'Population 2016'!BB39/'Population 2016'!BB$5","v":7.4919039102904926E-3},{"$f":"'Population 2016'!BC39/'Population 2016'!BC$5","v":1.4606293984862568E-2},37]
[null,"Female 90+",{"$f":"'Population 2016'!C40/'Population 2016'!C$5","v":5.6681982898294427E-3},{"$f":"'Population 2016'!D40/'Population 2016'!D$5","v":5.8414757000479246E-3},{"$f":"'Population 2016'!E40/'Population 2016'!E$5","v":6.0004031520867812E-3},{"$f":"'Population 2016'!F40/'Population 2016'!F$5","v":9.1063610610352813E-3},{"$f":"'Population 2016'!G40/'Population 2016'!G$5","v":8.5800898608780381E-3},{"$f":"'Population 2016'!H40/'Population 2016'!H$5","v":7.3051395369196498E-3},{"$f":"'Population 2016'!I40/'Population 2016'!I$5","v":7.8615693827987602E-3},{"$f":"'Population 2016'!J40/'Population 2016'!J$5","v":6.1949030957929394E-3},{"$f":"'Population 2016'!K40/'Population 2016'!K$5","v":5.3158814912819541E-3},{"$f":"'Population 2016'!L40/'Population 2016'!L$5","v":7.8709513446539488E-3},{"$f":"'Population 2016'!M40/'Population 2016'!M$5","v":7.8709513446539488E-3},{"$f":"'Population 2016'!N40/'Population 2016'!N$5","v":6.7512718914009692E-3},{"$f":"'Population 2016'!O40/'Population 2016'!O$5","v":6.023320553590711E-3},{"$f":"'Population 2016'!P40/'Population 2016'!P$5","v":8.0018032232615794E-3},{"$f":"'Population 2016'!Q40/'Population 2016'!Q$5","v":6.674422157201443E-3},{"$f":"'Population 2016'!R40/'Population 2016'!R$5","v":8.8758183850534949E-3},{"$f":"'Population 2016'!S40/'Population 2016'!S$5","v":6.383380614365078E-3},{"$f":"'Population 2016'!T40/'Population 2016'!T$5","v":6.4168485316631226E-3},{"$f":"'Population 2016'!U40/'Population 2016'!U$5","v":1.0622759261718231E-2},{"$f":"'Population 2016'!V40/'Population 2016'!V$5","v":5.9532441364361435E-3},{"$f":"'Population 2016'!W40/'Population 2016'!W$5","v":6.9421293118663348E-3},{"$f":"'Population 2016'!X40/'Population 2016'!X$5","v":6.9421293118663348E-3},{"$f":"'Population 2016'!Y40/'Population 2016'!Y$5","v":6.0690609052320311E-3},{"$f":"'Population 2016'!Z40/'Population 2016'!Z$5","v":5.3582870516451376E-3},{"$f":"'Population 2016'!AA40/'Population 2016'!AA$5","v":5.8339429042950338E-3},{"$f":"'Population 2016'!AB40/'Population 2016'!AB$5","v":5.9875336478920809E-3},{"$f":"'Population 2016'!AC40/'Population 2016'!AC$5","v":6.2078395435862322E-3},{"$f":"'Population 2016'!AD40/'Population 2016'!AD$5","v":7.4025829022293351E-3},{"$f":"'Population 2016'!AE40/'Population 2016'!AE$5","v":6.9559235721105969E-3},{"$f":"'Population 2016'!AF40/'Population 2016'!AF$5","v":7.9174772655295662E-3},{"$f":"'Population 2016'!AG40/'Population 2016'!AG$5","v":6.9559235721105969E-3},{"$f":"'Population 2016'!AH40/'Population 2016'!AH$5","v":5.1624049116223772E-3},{"$f":"'Population 2016'!AI40/'Population 2016'!AI$5","v":5.95661256452883E-3},{"$f":"'Population 2016'!AJ40/'Population 2016'!AJ$5","v":5.6186041323927167E-3},{"$f":"'Population 2016'!AK40/'Population 2016'!AK$5","v":6.7384936449467582E-3},{"$f":"'Population 2016'!AL40/'Population 2016'!AL$5","v":6.9438285947393628E-3},{"$f":"'Population 2016'!AM40/'Population 2016'!AM$5","v":4.2304892227562653E-3},{"$f":"'Population 2016'!AN40/'Population 2016'!AN$5","v":7.308825133631504E-3},{"$f":"'Population 2016'!AO40/'Population 2016'!AO$5","v":7.308825133631504E-3},{"$f":"'Population 2016'!AP40/'Population 2016'!AP$5","v":8.9485281296070255E-3},{"$f":"'Population 2016'!AQ40/'Population 2016'!AQ$5","v":6.0420891105387184E-3},{"$f":"'Population 2016'!AR40/'Population 2016'!AR$5","v":6.4716873148022522E-3},{"$f":"'Population 2016'!AS40/'Population 2016'!AS$5","v":7.8615693827987602E-3},{"$f":"'Population 2016'!AT40/'Population 2016'!AT$5","v":6.590393841935994E-3},{"$f":"'Population 2016'!AU40/'Population 2016'!AU$5","v":6.590393841935994E-3},{"$f":"'Population 2016'!AV40/'Population 2016'!AV$5","v":9.1014676380530048E-3},{"$f":"'Population 2016'!AW40/'Population 2016'!AW$5","v":6.1436024162548047E-3},{"$f":"'Population 2016'!AX40/'Population 2016'!AX$5","v":6.6703298107517539E-3},{"$f":"'Population 2016'!AY40/'Population 2016'!AY$5","v":7.6145160796793248E-3},{"$f":"'Population 2016'!AZ40/'Population 2016'!AZ$5","v":8.2062462966904642E-3},{"$f":"'Population 2016'!BA40/'Population 2016'!BA$5","v":6.0732023321096954E-3},{"$f":"'Population 2016'!BB40/'Population 2016'!BB$5","v":4.3363277932372624E-3},{"$f":"'Population 2016'!BC40/'Population 2016'!BC$5","v":1.0622759261718231E-2},38]
[null,"Male 0-4",{"$f":"'Population 2016'!C41/'Population 2016'!C$5","v":0},{"$f":"'Population 2016'!D41/'Population 2016'!D$5","v":0},{"$f":"'Population 2016'!E41/'Population 2016'!E$5","v":0},{"$f":"'Population 2016'!F41/'Population 2016'!F$5","v":0},{"$f":"'Population 2016'!G41/'Population 2016'!G$5","v":0},{"$f":"'Population 2016'!H41/'Population 2016'!H$5","v":0},{"$f":"'Population 2016'!I41/'Population 2016'!I$5","v":0},{"$f":"'Population 2016'!J41/'Population 2016'!J$5","v":0},{"$f":"'Population 2016'!K41/'Population 2016'!K$5","v":0},{"$f":"'Population 2016'!L41/'Population 2016'!L$5","v":0},{"$f":"'Population 2016'!M41/'Population 2016'!M$5","v":0},{"$f":"'Population 2016'!N41/'Population 2016'!N$5","v":0},{"$f":"'Population 2016'!O41/'Population 2016'!O$5","v":0},{"$f":"'Population 2016'!P41/'Population 2016'!P$5","v":0},{"$f":"'Population 2016'!Q41/'Population 2016'!Q$5","v":0},{"$f":"'Population 2016'!R41/'Population 2016'!R$5","v":0},{"$f":"'Population 2016'!S41/'Population 2016'!S$5","v":0},{"$f":"'Population 2016'!T41/'Population 2016'!T$5","v":0},{"$f":"'Population 2016'!U41/'Population 2016'!U$5","v":0},{"$f":"'Population 2016'!V41/'Population 2016'!V$5","v":0},{"$f":"'Population 2016'!W41/'Population 2016'!W$5","v":0},{"$f":"'Population 2016'!X41/'Population 2016'!X$5","v":0},{"$f":"'Population 2016'!Y41/'Population 2016'!Y$5","v":0},{"$f":"'Population 2016'!Z41/'Population 2016'!Z$5","v":0},{"$f":"'Population 2016'!AA41/'Population 2016'!AA$5","v":0},{"$f":"'Population 2016'!AB41/'Population 2016'!AB$5","v":0},{"$f":"'Population 2016'!AC41/'Population 2016'!AC$5","v":0},{"$f":"'Population 2016'!AD41/'Population 2016'!AD$5","v":0},{"$f":"'Population 2016'!AE41/'Population 2016'!AE$5","v":0},{"$f":"'Population 2016'!AF41/'Population 2016'!AF$5","v":0},{"$f":"'Population 2016'!AG41/'Population 2016'!AG$5","v":0},{"$f":"'Population 2016'!AH41/'Population 2016'!AH$5","v":0},{"$f":"'Population 2016'!AI41/'Population 2016'!AI$5","v":0},{"$f":"'Population 2016'!AJ41/'Population 2016'!AJ$5","v":0},{"$f":"'Population 2016'!AK41/'Population 2016'!AK$5","v":0},{"$f":"'Population 2016'!AL41/'Population 2016'!AL$5","v":0},{"$f":"'Population 2016'!AM41/'Population 2016'!AM$5","v":0},{"$f":"'Population 2016'!AN41/'Population 2016'!AN$5","v":0},{"$f":"'Population 2016'!AO41/'Population 2016'!AO$5","v":0},{"$f":"'Population 2016'!AP41/'Population 2016'!AP$5","v":0},{"$f":"'Population 2016'!AQ41/'Population 2016'!AQ$5","v":0},{"$f":"'Population 2016'!AR41/'Population 2016'!AR$5","v":0},{"$f":"'Population 2016'!AS41/'Population 2016'!AS$5","v":0},{"$f":"'Population 2016'!AT41/'Population 2016'!AT$5","v":0},{"$f":"'Population 2016'!AU41/'Population 2016'!AU$5","v":0},{"$f":"'Population 2016'!AV41/'Population 2016'!AV$5","v":0},{"$f":"'Population 2016'!AW41/'Population 2016'!AW$5","v":0},{"$f":"'Population 2016'!AX41/'Population 2016'!AX$5","v":0},{"$f":"'Population 2016'!AY41/'Population 2016'!AY$5","v":0},{"$f":"'Population 2016'!AZ41/'Population 2016'!AZ$5","v":0},{"$f":"'Population 2016'!BA41/'Population 2016'!BA$5","v":0},{"$f":"'Population 2016'!BB41/'Population 2016'!BB$5","v":0},{"$f":"'Population 2016'!BC41/'Population 2016'!BC$5","v":0},39]
[null,"Male 5-9",{"$f":"'Population 2016'!C42/'Population 2016'!C$5","v":0},{"$f":"'Population 2016'!D42/'Population 2016'!D$5","v":0},{"$f":"'Population 2016'!E42/'Population 2016'!E$5","v":0},{"$f":"'Population 2016'!F42/'Population 2016'!F$5","v":0},{"$f":"'Population 2016'!G42/'Population 2016'!G$5","v":0},{"$f":"'Population 2016'!H42/'Population 2016'!H$5","v":0},{"$f":"'Population 2016'!I42/'Population 2016'!I$5","v":0},{"$f":"'Population 2016'!J42/'Population 2016'!J$5","v":0},{"$f":"'Population 2016'!K42/'Population 2016'!K$5","v":0},{"$f":"'Population 2016'!L42/'Population 2016'!L$5","v":0},{"$f":"'Population 2016'!M42/'Population 2016'!M$5","v":0},{"$f":"'Population 2016'!N42/'Population 2016'!N$5","v":0},{"$f":"'Population 2016'!O42/'Population 2016'!O$5","v":0},{"$f":"'Population 2016'!P42/'Population 2016'!P$5","v":0},{"$f":"'Population 2016'!Q42/'Population 2016'!Q$5","v":0},{"$f":"'Population 2016'!R42/'Population 2016'!R$5","v":0},{"$f":"'Population 2016'!S42/'Population 2016'!S$5","v":0},{"$f":"'Population 2016'!T42/'Population 2016'!T$5","v":0},{"$f":"'Population 2016'!U42/'Population 2016'!U$5","v":0},{"$f":"'Population 2016'!V42/'Population 2016'!V$5","v":0},{"$f":"'Population 2016'!W42/'Population 2016'!W$5","v":0},{"$f":"'Population 2016'!X42/'Population 2016'!X$5","v":0},{"$f":"'Population 2016'!Y42/'Population 2016'!Y$5","v":0},{"$f":"'Population 2016'!Z42/'Population 2016'!Z$5","v":0},{"$f":"'Population 2016'!AA42/'Population 2016'!AA$5","v":0},{"$f":"'Population 2016'!AB42/'Population 2016'!AB$5","v":0},{"$f":"'Population 2016'!AC42/'Population 2016'!AC$5","v":0},{"$f":"'Population 2016'!AD42/'Population 2016'!AD$5","v":0},{"$f":"'Population 2016'!AE42/'Population 2016'!AE$5","v":0},{"$f":"'Population 2016'!AF42/'Population 2016'!AF$5","v":0},{"$f":"'Population 2016'!AG42/'Population 2016'!AG$5","v":0},{"$f":"'Population 2016'!AH42/'Population 2016'!AH$5","v":0},{"$f":"'Population 2016'!AI42/'Population 2016'!AI$5","v":0},{"$f":"'Population 2016'!AJ42/'Population 2016'!AJ$5","v":0},{"$f":"'Population 2016'!AK42/'Population 2016'!AK$5","v":0},{"$f":"'Population 2016'!AL42/'Population 2016'!AL$5","v":0},{"$f":"'Population 2016'!AM42/'Population 2016'!AM$5","v":0},{"$f":"'Population 2016'!AN42/'Population 2016'!AN$5","v":0},{"$f":"'Population 2016'!AO42/'Population 2016'!AO$5","v":0},{"$f":"'Population 2016'!AP42/'Population 2016'!AP$5","v":0},{"$f":"'Population 2016'!AQ42/'Population 2016'!AQ$5","v":0},{"$f":"'Population 2016'!AR42/'Population 2016'!AR$5","v":0},{"$f":"'Population 2016'!AS42/'Population 2016'!AS$5","v":0},{"$f":"'Population 2016'!AT42/'Population 2016'!AT$5","v":0},{"$f":"'Population 2016'!AU42/'Population 2016'!AU$5","v":0},{"$f":"'Population 2016'!AV42/'Population 2016'!AV$5","v":0},{"$f":"'Population 2016'!AW42/'Population 2016'!AW$5","v":0},{"$f":"'Population 2016'!AX42/'Population 2016'!AX$5","v":0},{"$f":"'Population 2016'!AY42/'Population 2016'!AY$5","v":0},{"$f":"'Population 2016'!AZ42/'Population 2016'!AZ$5","v":0},{"$f":"'Population 2016'!BA42/'Population 2016'!BA$5","v":0},{"$f":"'Population 2016'!BB42/'Population 2016'!BB$5","v":0},{"$f":"'Population 2016'!BC42/'Population 2016'!BC$5","v":0},40]
[null,"Male 10-15",{"$f":"'Population 2016'!C43/'Population 2016'!C$5","v":0},{"$f":"'Population 2016'!D43/'Population 2016'!D$5","v":0},{"$f":"'Population 2016'!E43/'Population 2016'!E$5","v":0},{"$f":"'Population 2016'!F43/'Population 2016'!F$5","v":0},{"$f":"'Population 2016'!G43/'Population 2016'!G$5","v":0},{"$f":"'Population 2016'!H43/'Population 2016'!H$5","v":0},{"$f":"'Population 2016'!I43/'Population 2016'!I$5","v":0},{"$f":"'Population 2016'!J43/'Population 2016'!J$5","v":0},{"$f":"'Population 2016'!K43/'Population 2016'!K$5","v":0},{"$f":"'Population 2016'!L43/'Population 2016'!L$5","v":0},{"$f":"'Population 2016'!M43/'Population 2016'!M$5","v":0},{"$f":"'Population 2016'!N43/'Population 2016'!N$5","v":0},{"$f":"'Population 2016'!O43/'Population 2016'!O$5","v":0},{"$f":"'Population 2016'!P43/'Population 2016'!P$5","v":0},{"$f":"'Population 2016'!Q43/'Population 2016'!Q$5","v":0},{"$f":"'Population 2016'!R43/'Population 2016'!R$5","v":0},{"$f":"'Population 2016'!S43/'Population 2016'!S$5","v":0},{"$f":"'Population 2016'!T43/'Population 2016'!T$5","v":0},{"$f":"'Population 2016'!U43/'Population 2016'!U$5","v":0},{"$f":"'Population 2016'!V43/'Population 2016'!V$5","v":0},{"$f":"'Population 2016'!W43/'Population 2016'!W$5","v":0},{"$f":"'Population 2016'!X43/'Population 2016'!X$5","v":0},{"$f":"'Population 2016'!Y43/'Population 2016'!Y$5","v":0},{"$f":"'Population 2016'!Z43/'Population 2016'!Z$5","v":0},{"$f":"'Population 2016'!AA43/'Population 2016'!AA$5","v":0},{"$f":"'Population 2016'!AB43/'Population 2016'!AB$5","v":0},{"$f":"'Population 2016'!AC43/'Population 2016'!AC$5","v":0},{"$f":"'Population 2016'!AD43/'Population 2016'!AD$5","v":0},{"$f":"'Population 2016'!AE43/'Population 2016'!AE$5","v":0},{"$f":"'Population 2016'!AF43/'Population 2016'!AF$5","v":0},{"$f":"'Population 2016'!AG43/'Population 2016'!AG$5","v":0},{"$f":"'Population 2016'!AH43/'Population 2016'!AH$5","v":0},{"$f":"'Population 2016'!AI43/'Population 2016'!AI$5","v":0},{"$f":"'Population 2016'!AJ43/'Population 2016'!AJ$5","v":0},{"$f":"'Population 2016'!AK43/'Population 2016'!AK$5","v":0},{"$f":"'Population 2016'!AL43/'Population 2016'!AL$5","v":0},{"$f":"'Population 2016'!AM43/'Population 2016'!AM$5","v":0},{"$f":"'Population 2016'!AN43/'Population 2016'!AN$5","v":0},{"$f":"'Population 2016'!AO43/'Population 2016'!AO$5","v":0},{"$f":"'Population 2016'!AP43/'Population 2016'!AP$5","v":0},{"$f":"'Population 2016'!AQ43/'Population 2016'!AQ$5","v":0},{"$f":"'Population 2016'!AR43/'Population 2016'!AR$5","v":0},{"$f":"'Population 2016'!AS43/'Population 2016'!AS$5","v":0},{"$f":"'Population 2016'!AT43/'Population 2016'!AT$5","v":0},{"$f":"'Population 2016'!AU43/'Population 2016'!AU$5","v":0},{"$f":"'Population 2016'!AV43/'Population 2016'!AV$5","v":0},{"$f":"'Population 2016'!AW43/'Population 2016'!AW$5","v":0},{"$f":"'Population 2016'!AX43/'Population 2016'!AX$5","v":0},{"$f":"'Population 2016'!AY43/'Population 2016'!AY$5","v":0},{"$f":"'Population 2016'!AZ43/'Population 2016'!AZ$5","v":0},{"$f":"'Population 2016'!BA43/'Population 2016'!BA$5","v":0},{"$f":"'Population 2016'!BB43/'Population 2016'!BB$5","v":0},{"$f":"'Population 2016'!BC43/'Population 2016'!BC$5","v":0},41]
[null,"Male 16-19",{"$f":"'Population 2016'!C44/'Population 2016'!C$5","v":2.360301145395164E-2},{"$f":"'Population 2016'!D44/'Population 2016'!D$5","v":2.6263411676104964E-2},{"$f":"'Population 2016'!E44/'Population 2016'!E$5","v":2.8703491015802624E-2},{"$f":"'Population 2016'!F44/'Population 2016'!F$5","v":2.8452227659026524E-2},{"$f":"'Population 2016'!G44/'Population 2016'!G$5","v":2.8947653331889787E-2},{"$f":"'Population 2016'!H44/'Population 2016'!H$5","v":2.7871717469756464E-2},{"$f":"'Population 2016'!I44/'Population 2016'!I$5","v":2.594003852273679E-2},{"$f":"'Population 2016'!J44/'Population 2016'!J$5","v":3.2425797998059426E-2},{"$f":"'Population 2016'!K44/'Population 2016'!K$5","v":2.9579927231488921E-2},{"$f":"'Population 2016'!L44/'Population 2016'!L$5","v":2.5582577478436293E-2},{"$f":"'Population 2016'!M44/'Population 2016'!M$5","v":2.5582577478436293E-2},{"$f":"'Population 2016'!N44/'Population 2016'!N$5","v":2.8323193030115493E-2},{"$f":"'Population 2016'!O44/'Population 2016'!O$5","v":2.8016365995977847E-2},{"$f":"'Population 2016'!P44/'Population 2016'!P$5","v":2.9561591344528345E-2},{"$f":"'Population 2016'!Q44/'Population 2016'!Q$5","v":2.7132466128482628E-2},{"$f":"'Population 2016'!R44/'Population 2016'!R$5","v":3.2935008250385908E-2},{"$f":"'Population 2016'!S44/'Population 2016'!S$5","v":2.6619191450224282E-2},{"$f":"'Population 2016'!T44/'Population 2016'!T$5","v":2.4504078584291517E-2},{"$f":"'Population 2016'!U44/'Population 2016'!U$5","v":2.4609392289647238E-2},{"$f":"'Population 2016'!V44/'Population 2016'!V$5","v":2.8598468947725938E-2},{"$f":"'Population 2016'!W44/'Population 2016'!W$5","v":2.8265317461873853E-2},{"$f":"'Population 2016'!X44/'Population 2016'!X$5","v":2.8265317461873853E-2},{"$f":"'Population 2016'!Y44/'Population 2016'!Y$5","v":3.0432743517591135E-2},{"$f":"'Population 2016'!Z44/'Population 2016'!Z$5","v":2.6696581188308557E-2},{"$f":"'Population 2016'!AA44/'Population 2016'!AA$5","v":2.8328606251706634E-2},{"$f":"'Population 2016'!AB44/'Population 2016'!AB$5","v":2.6824150742556525E-2},{"$f":"'Population 2016'!AC44/'Population 2016'!AC$5","v":2.7792545214212871E-2},{"$f":"'Population 2016'!AD44/'Population 2016'!AD$5","v":2.8270497599464067E-2},{"$f":"'Population 2016'!AE44/'Population 2016'!AE$5","v":2.8013634636905923E-2},{"$f":"'Population 2016'!AF44/'Population 2016'!AF$5","v":2.7869519974664074E-2},{"$f":"'Population 2016'!AG44/'Population 2016'!AG$5","v":2.8013634636905923E-2},{"$f":"'Population 2016'!AH44/'Population 2016'!AH$5","v":2.9291400016718837E-2},{"$f":"'Population 2016'!AI44/'Population 2016'!AI$5","v":2.6019336774870942E-2},{"$f":"'Population 2016'!AJ44/'Population 2016'!AJ$5","v":2.7340155592114435E-2},{"$f":"'Population 2016'!AK44/'Population 2016'!AK$5","v":2.9707202393673863E-2},{"$f":"'Population 2016'!AL44/'Population 2016'!AL$5","v":2.8777425019066705E-2},{"$f":"'Population 2016'!AM44/'Population 2016'!AM$5","v":3.0428373253746047E-2},{"$f":"'Population 2016'!AN44/'Population 2016'!AN$5","v":2.6944474746372859E-2},{"$f":"'Population 2016'!AO44/'Population 2016'!AO$5","v":2.6944474746372859E-2},{"$f":"'Population 2016'!AP44/'Population 2016'!AP$5","v":2.8232645879238464E-2},{"$f":"'Population 2016'!AQ44/'Population 2016'!AQ$5","v":2.821011673151751E-2},{"$f":"'Population 2016'!AR44/'Population 2016'!AR$5","v":2.7717535020071141E-2},{"$f":"'Population 2016'!AS44/'Population 2016'!AS$5","v":2.594003852273679E-2},{"$f":"'Population 2016'!AT44/'Population 2016'!AT$5","v":2.8945009753782888E-2},{"$f":"'Population 2016'!AU44/'Population 2016'!AU$5","v":2.8945009753782888E-2},{"$f":"'Population 2016'!AV44/'Population 2016'!AV$5","v":2.6639214444092493E-2},{"$f":"'Population 2016'!AW44/'Population 2016'!AW$5","v":2.8094301055586062E-2},{"$f":"'Population 2016'!AX44/'Population 2016'!AX$5","v":3.3965012714517552E-2},{"$f":"'Population 2016'!AY44/'Population 2016'!AY$5","v":2.829778770539457E-2},{"$f":"'Population 2016'!AZ44/'Population 2016'!AZ$5","v":2.8326362961727195E-2},{"$f":"'Population 2016'!BA44/'Population 2016'!BA$5","v":2.7207946447851437E-2},{"$f":"'Population 2016'!BB44/'Population 2016'!BB$5","v":2.92080677792892E-2},{"$f":"'Population 2016'!BC44/'Population 2016'!BC$5","v":2.4609392289647238E-2},42]
[null,"Male 20-24",{"$f":"'Population 2016'!C45/'Population 2016'!C$5","v":5.1392005233755679E-2},{"$f":"'Population 2016'!D45/'Population 2016'!D$5","v":4.2156920278160849E-2},{"$f":"'Population 2016'!E45/'Population 2016'!E$5","v":3.3686638321012194E-2},{"$f":"'Population 2016'!F45/'Population 2016'!F$5","v":3.3963430337368011E-2},{"$f":"'Population 2016'!G45/'Population 2016'!G$5","v":3.999079737995994E-2},{"$f":"'Population 2016'!H45/'Population 2016'!H$5","v":3.5170372195724567E-2},{"$f":"'Population 2016'!I45/'Population 2016'!I$5","v":2.9404991206766602E-2},{"$f":"'Population 2016'!J45/'Population 2016'!J$5","v":4.5561978056608311E-2},{"$f":"'Population 2016'!K45/'Population 2016'!K$5","v":3.758918867835373E-2},{"$f":"'Population 2016'!L45/'Population 2016'!L$5","v":3.1737963242418947E-2},{"$f":"'Population 2016'!M45/'Population 2016'!M$5","v":3.1737963242418947E-2},{"$f":"'Population 2016'!N45/'Population 2016'!N$5","v":5.5055014828686473E-2},{"$f":"'Population 2016'!O45/'Population 2016'!O$5","v":3.6546101187822588E-2},{"$f":"'Population 2016'!P45/'Population 2016'!P$5","v":3.7585934858559676E-2},{"$f":"'Population 2016'!Q45/'Population 2016'!Q$5","v":3.5134722271183652E-2},{"$f":"'Population 2016'!R45/'Population 2016'!R$5","v":3.7459413424176295E-2},{"$f":"'Population 2016'!S45/'Population 2016'!S$5","v":4.1147737483472231E-2},{"$f":"'Population 2016'!T45/'Population 2016'!T$5","v":4.8391599931131721E-2},{"$f":"'Population 2016'!U45/'Population 2016'!U$5","v":2.8769973000486875E-2},{"$f":"'Population 2016'!V45/'Population 2016'!V$5","v":3.5643141175842039E-2},{"$f":"'Population 2016'!W45/'Population 2016'!W$5","v":3.9286438007831138E-2},{"$f":"'Population 2016'!X45/'Population 2016'!X$5","v":3.9286438007831138E-2},{"$f":"'Population 2016'!Y45/'Population 2016'!Y$5","v":4.0396814041112221E-2},{"$f":"'Population 2016'!Z45/'Population 2016'!Z$5","v":5.2463979650898308E-2},{"$f":"'Population 2016'!AA45/'Population 2016'!AA$5","v":4.2618145482497836E-2},{"$f":"'Population 2016'!AB45/'Population 2016'!AB$5","v":4.1470579204323309E-2},{"$f":"'Population 2016'!AC45/'Population 2016'!AC$5","v":4.5513124171271006E-2},{"$f":"'Population 2016'!AD45/'Population 2016'!AD$5","v":3.3990844467602067E-2},{"$f":"'Population 2016'!AE45/'Population 2016'!AE$5","v":3.171490467047916E-2},{"$f":"'Population 2016'!AF45/'Population 2016'!AF$5","v":3.637515269420441E-2},{"$f":"'Population 2016'!AG45/'Population 2016'!AG$5","v":3.171490467047916E-2},{"$f":"'Population 2016'!AH45/'Population 2016'!AH$5","v":3.7418611779348521E-2},{"$f":"'Population 2016'!AI45/'Population 2016'!AI$5","v":4.3459893691486569E-2},{"$f":"'Population 2016'!AJ45/'Population 2016'!AJ$5","v":3.4966399910771551E-2},{"$f":"'Population 2016'!AK45/'Population 2016'!AK$5","v":3.7941742202330812E-2},{"$f":"'Population 2016'!AL45/'Population 2016'!AL$5","v":3.6785441904187581E-2},{"$f":"'Population 2016'!AM45/'Population 2016'!AM$5","v":3.8976279560000146E-2},{"$f":"'Population 2016'!AN45/'Population 2016'!AN$5","v":3.1471582851532669E-2},{"$f":"'Population 2016'!AO45/'Population 2016'!AO$5","v":3.1471582851532669E-2},{"$f":"'Population 2016'!AP45/'Population 2016'!AP$5","v":3.5112470871708698E-2},{"$f":"'Population 2016'!AQ45/'Population 2016'!AQ$5","v":3.7430810544199049E-2},{"$f":"'Population 2016'!AR45/'Population 2016'!AR$5","v":4.0476004297824157E-2},{"$f":"'Population 2016'!AS45/'Population 2016'!AS$5","v":2.9404991206766602E-2},{"$f":"'Population 2016'!AT45/'Population 2016'!AT$5","v":3.7960668529551329E-2},{"$f":"'Population 2016'!AU45/'Population 2016'!AU$5","v":3.7960668529551329E-2},{"$f":"'Population 2016'!AV45/'Population 2016'!AV$5","v":3.1781226903178125E-2},{"$f":"'Population 2016'!AW45/'Population 2016'!AW$5","v":3.5778570992739032E-2},{"$f":"'Population 2016'!AX45/'Population 2016'!AX$5","v":4.9874132665448455E-2},{"$f":"'Population 2016'!AY45/'Population 2016'!AY$5","v":4.069183929500321E-2},{"$f":"'Population 2016'!AZ45/'Population 2016'!AZ$5","v":4.1928654842922151E-2},{"$f":"'Population 2016'!BA45/'Population 2016'!BA$5","v":3.8814510904772184E-2},{"$f":"'Population 2016'!BB45/'Population 2016'!BB$5","v":3.7922153249138606E-2},{"$f":"'Population 2016'!BC45/'Population 2016'!BC$5","v":2.8769973000486875E-2},43]
[null,"Male 25-29",{"$f":"'Population 2016'!C46/'Population 2016'!C$5","v":6.6873495423019319E-2},{"$f":"'Population 2016'!D46/'Population 2016'!D$5","v":4.9277212131881888E-2},{"$f":"'Population 2016'!E46/'Population 2016'!E$5","v":3.3138163970391758E-2},{"$f":"'Population 2016'!F46/'Population 2016'!F$5","v":3.0986350759721865E-2},{"$f":"'Population 2016'!G46/'Population 2016'!G$5","v":3.3643696205272557E-2},{"$f":"'Population 2016'!H46/'Population 2016'!H$5","v":3.2148450292302851E-2},{"$f":"'Population 2016'!I46/'Population 2016'!I$5","v":2.5803952767774894E-2},{"$f":"'Population 2016'!J46/'Population 2016'!J$5","v":3.5825945614224225E-2},{"$f":"'Population 2016'!K46/'Population 2016'!K$5","v":3.1328261588621648E-2},{"$f":"'Population 2016'!L46/'Population 2016'!L$5","v":2.9164614871412007E-2},{"$f":"'Population 2016'!M46/'Population 2016'!M$5","v":2.9164614871412007E-2},{"$f":"'Population 2016'!N46/'Population 2016'!N$5","v":5.6381157521640239E-2},{"$f":"'Population 2016'!O46/'Population 2016'!O$5","v":3.5188872707819417E-2},{"$f":"'Population 2016'!P46/'Population 2016'!P$5","v":3.1815620421503439E-2},{"$f":"'Population 2016'!Q46/'Population 2016'!Q$5","v":2.9976145991233945E-2},{"$f":"'Population 2016'!R46/'Population 2016'!R$5","v":2.9741310480651515E-2},{"$f":"'Population 2016'!S46/'Population 2016'!S$5","v":4.3514142824610615E-2},{"$f":"'Population 2016'!T46/'Population 2016'!T$5","v":6.0383056541788618E-2},{"$f":"'Population 2016'!U46/'Population 2016'!U$5","v":2.7132297614305315E-2},{"$f":"'Population 2016'!V46/'Population 2016'!V$5","v":3.4635669091214384E-2},{"$f":"'Population 2016'!W46/'Population 2016'!W$5","v":3.420730949999673E-2},{"$f":"'Population 2016'!X46/'Population 2016'!X$5","v":3.420730949999673E-2},{"$f":"'Population 2016'!Y46/'Population 2016'!Y$5","v":3.5206117549800478E-2},{"$f":"'Population 2016'!Z46/'Population 2016'!Z$5","v":6.1612557904538089E-2},{"$f":"'Population 2016'!AA46/'Population 2016'!AA$5","v":4.4322286645180536E-2},{"$f":"'Population 2016'!AB46/'Population 2016'!AB$5","v":4.7167436005035666E-2},{"$f":"'Population 2016'!AC46/'Population 2016'!AC$5","v":4.9434137118577803E-2},{"$f":"'Population 2016'!AD46/'Population 2016'!AD$5","v":3.2237894971900702E-2},{"$f":"'Population 2016'!AE46/'Population 2016'!AE$5","v":3.1704637624616269E-2},{"$f":"'Population 2016'!AF46/'Population 2016'!AF$5","v":3.5017870877256482E-2},{"$f":"'Population 2016'!AG46/'Population 2016'!AG$5","v":3.1704637624616269E-2},{"$f":"'Population 2016'!AH46/'Population 2016'!AH$5","v":3.5141134837409327E-2},{"$f":"'Population 2016'!AI46/'Population 2016'!AI$5","v":4.9720010499606268E-2},{"$f":"'Population 2016'!AJ46/'Population 2016'!AJ$5","v":3.4297186515350082E-2},{"$f":"'Population 2016'!AK46/'Population 2016'!AK$5","v":3.6319977873602957E-2},{"$f":"'Population 2016'!AL46/'Population 2016'!AL$5","v":3.1606392224330891E-2},{"$f":"'Population 2016'!AM46/'Population 2016'!AM$5","v":3.6933474832573317E-2},{"$f":"'Population 2016'!AN46/'Population 2016'!AN$5","v":3.2998800043634778E-2},{"$f":"'Population 2016'!AO46/'Population 2016'!AO$5","v":3.2998800043634778E-2},{"$f":"'Population 2016'!AP46/'Population 2016'!AP$5","v":3.2029231330152341E-2},{"$f":"'Population 2016'!AQ46/'Population 2016'!AQ$5","v":3.9177673042143916E-2},{"$f":"'Population 2016'!AR46/'Population 2016'!AR$5","v":4.1469814869642838E-2},{"$f":"'Population 2016'!AS46/'Population 2016'!AS$5","v":2.5803952767774894E-2},{"$f":"'Population 2016'!AT46/'Population 2016'!AT$5","v":3.727526756998998E-2},{"$f":"'Population 2016'!AU46/'Population 2016'!AU$5","v":3.727526756998998E-2},{"$f":"'Population 2016'!AV46/'Population 2016'!AV$5","v":2.9553373455812479E-2},{"$f":"'Population 2016'!AW46/'Population 2016'!AW$5","v":3.3254011837207886E-2},{"$f":"'Population 2016'!AX46/'Population 2016'!AX$5","v":3.8258558339829024E-2},{"$f":"'Population 2016'!AY46/'Population 2016'!AY$5","v":3.7529451363177382E-2},{"$f":"'Population 2016'!AZ46/'Population 2016'!AZ$5","v":4.0453083742255411E-2},{"$f":"'Population 2016'!BA46/'Population 2016'!BA$5","v":3.870654286331246E-2},{"$f":"'Population 2016'!BB46/'Population 2016'!BB$5","v":3.7314514959640388E-2},{"$f":"'Population 2016'!BC46/'Population 2016'!BC$5","v":2.7132297614305315E-2},44]
[null,"Male 30-34",{"$f":"'Population 2016'!C47/'Population 2016'!C$5","v":5.383510602955232E-2},{"$f":"'Population 2016'!D47/'Population 2016'!D$5","v":4.4492043465078297E-2},{"$f":"'Population 2016'!E47/'Population 2016'!E$5","v":3.592272605815703E-2},{"$f":"'Population 2016'!F47/'Population 2016'!F$5","v":3.1913468967293329E-2},{"$f":"'Population 2016'!G47/'Population 2016'!G$5","v":2.6971796676230175E-2},{"$f":"'Population 2016'!H47/'Population 2016'!H$5","v":2.9496162613119423E-2},{"$f":"'Population 2016'!I47/'Population 2016'!I$5","v":2.5521313122854033E-2},{"$f":"'Population 2016'!J47/'Population 2016'!J$5","v":3.056815637361817E-2},{"$f":"'Population 2016'!K47/'Population 2016'!K$5","v":3.2580447006568064E-2},{"$f":"'Population 2016'!L47/'Population 2016'!L$5","v":2.7949422585103172E-2},{"$f":"'Population 2016'!M47/'Population 2016'!M$5","v":2.7949422585103172E-2},{"$f":"'Population 2016'!N47/'Population 2016'!N$5","v":4.2396380032309659E-2},{"$f":"'Population 2016'!O47/'Population 2016'!O$5","v":3.3266957925917121E-2},{"$f":"'Population 2016'!P47/'Population 2016'!P$5","v":2.7386453285247379E-2},{"$f":"'Population 2016'!Q47/'Population 2016'!Q$5","v":2.9729380383309245E-2},{"$f":"'Population 2016'!R47/'Population 2016'!R$5","v":2.5176984084739448E-2},{"$f":"'Population 2016'!S47/'Population 2016'!S$5","v":4.0374529322772038E-2},{"$f":"'Population 2016'!T47/'Population 2016'!T$5","v":5.2230541220922931E-2},{"$f":"'Population 2016'!U47/'Population 2016'!U$5","v":2.7353605098924445E-2},{"$f":"'Population 2016'!V47/'Population 2016'!V$5","v":3.5543920440234772E-2},{"$f":"'Population 2016'!W47/'Population 2016'!W$5","v":3.332810385739219E-2},{"$f":"'Population 2016'!X47/'Population 2016'!X$5","v":3.332810385739219E-2},{"$f":"'Population 2016'!Y47/'Population 2016'!Y$5","v":3.3159250250393478E-2},{"$f":"'Population 2016'!Z47/'Population 2016'!Z$5","v":5.4016489121786818E-2},{"$f":"'Population 2016'!AA47/'Population 2016'!AA$5","v":4.1035586320895427E-2},{"$f":"'Population 2016'!AB47/'Population 2016'!AB$5","v":4.3007891262294914E-2},{"$f":"'Population 2016'!AC47/'Population 2016'!AC$5","v":4.4010293305421153E-2},{"$f":"'Population 2016'!AD47/'Population 2016'!AD$5","v":3.1474933938739812E-2},{"$f":"'Population 2016'!AE47/'Population 2016'!AE$5","v":3.3183092228872987E-2},{"$f":"'Population 2016'!AF47/'Population 2016'!AF$5","v":3.358518451492256E-2},{"$f":"'Population 2016'!AG47/'Population 2016'!AG$5","v":3.3183092228872987E-2},{"$f":"'Population 2016'!AH47/'Population 2016'!AH$5","v":3.5692856413066701E-2},{"$f":"'Population 2016'!AI47/'Population 2016'!AI$5","v":4.5261779245778282E-2},{"$f":"'Population 2016'!AJ47/'Population 2016'!AJ$5","v":3.510581936815102E-2},{"$f":"'Population 2016'!AK47/'Population 2016'!AK$5","v":3.5377091635970484E-2},{"$f":"'Population 2016'!AL47/'Population 2016'!AL$5","v":2.8591192068249942E-2},{"$f":"'Population 2016'!AM47/'Population 2016'!AM$5","v":3.7512993904183764E-2},{"$f":"'Population 2016'!AN47/'Population 2016'!AN$5","v":2.9453474419112034E-2},{"$f":"'Population 2016'!AO47/'Population 2016'!AO$5","v":2.9453474419112034E-2},{"$f":"'Population 2016'!AP47/'Population 2016'!AP$5","v":3.3178510850783889E-2},{"$f":"'Population 2016'!AQ47/'Population 2016'!AQ$5","v":3.7115690250452131E-2},{"$f":"'Population 2016'!AR47/'Population 2016'!AR$5","v":3.8385682711772881E-2},{"$f":"'Population 2016'!AS47/'Population 2016'!AS$5","v":2.5521313122854033E-2},{"$f":"'Population 2016'!AT47/'Population 2016'!AT$5","v":3.4533663731744609E-2},{"$f":"'Population 2016'!AU47/'Population 2016'!AU$5","v":3.4533663731744609E-2},{"$f":"'Population 2016'!AV47/'Population 2016'!AV$5","v":2.6554746066941189E-2},{"$f":"'Population 2016'!AW47/'Population 2016'!AW$5","v":3.3776465922264937E-2},{"$f":"'Population 2016'!AX47/'Population 2016'!AX$5","v":2.9479790945218957E-2},{"$f":"'Population 2016'!AY47/'Population 2016'!AY$5","v":3.4815336128025461E-2},{"$f":"'Population 2016'!AZ47/'Population 2016'!AZ$5","v":3.6124166575582033E-2},{"$f":"'Population 2016'!BA47/'Population 2016'!BA$5","v":3.6169293889008851E-2},{"$f":"'Population 2016'!BB47/'Population 2016'!BB$5","v":3.8736940955511209E-2},{"$f":"'Population 2016'!BC47/'Population 2016'!BC$5","v":2.7353605098924445E-2},45]
[null,"Male 35-39",{"$f":"'Population 2016'!C48/'Population 2016'!C$5","v":4.3536260624677366E-2},{"$f":"'Population 2016'!D48/'Population 2016'!D$5","v":4.1254658020597988E-2},{"$f":"'Population 2016'!E48/'Population 2016'!E$5","v":3.9162006197291384E-2},{"$f":"'Population 2016'!F48/'Population 2016'!F$5","v":3.0800927118207571E-2},{"$f":"'Population 2016'!G48/'Population 2016'!G$5","v":2.8568721918475613E-2},{"$f":"'Population 2016'!H48/'Population 2016'!H$5","v":2.9376193610515768E-2},{"$f":"'Population 2016'!I48/'Population 2016'!I$5","v":2.7290427937358679E-2},{"$f":"'Population 2016'!J48/'Population 2016'!J$5","v":3.1239892853884874E-2},{"$f":"'Population 2016'!K48/'Population 2016'!K$5","v":3.3856258564475737E-2},{"$f":"'Population 2016'!L48/'Population 2016'!L$5","v":2.5828792908995601E-2},{"$f":"'Population 2016'!M48/'Population 2016'!M$5","v":2.5828792908995601E-2},{"$f":"'Population 2016'!N48/'Population 2016'!N$5","v":3.2213211596113199E-2},{"$f":"'Population 2016'!O48/'Population 2016'!O$5","v":3.2157398876571465E-2},{"$f":"'Population 2016'!P48/'Population 2016'!P$5","v":2.8919193057590442E-2},{"$f":"'Population 2016'!Q48/'Population 2016'!Q$5","v":3.1879766395224496E-2},{"$f":"'Population 2016'!R48/'Population 2016'!R$5","v":3.1883749401181667E-2},{"$f":"'Population 2016'!S48/'Population 2016'!S$5","v":3.7737148062301509E-2},{"$f":"'Population 2016'!T48/'Population 2016'!T$5","v":4.4031493278362796E-2},{"$f":"'Population 2016'!U48/'Population 2016'!U$5","v":3.0407648386668436E-2},{"$f":"'Population 2016'!V48/'Population 2016'!V$5","v":3.8116027201746283E-2},{"$f":"'Population 2016'!W48/'Population 2016'!W$5","v":3.3599382921838943E-2},{"$f":"'Population 2016'!X48/'Population 2016'!X$5","v":3.3599382921838943E-2},{"$f":"'Population 2016'!Y48/'Population 2016'!Y$5","v":3.4820591087582071E-2},{"$f":"'Population 2016'!Z48/'Population 2016'!Z$5","v":4.2939856712280504E-2},{"$f":"'Population 2016'!AA48/'Population 2016'!AA$5","v":3.7348927719832552E-2},{"$f":"'Population 2016'!AB48/'Population 2016'!AB$5","v":3.9947596286705626E-2},{"$f":"'Population 2016'!AC48/'Population 2016'!AC$5","v":3.7750739003891018E-2},{"$f":"'Population 2016'!AD48/'Population 2016'!AD$5","v":3.1977371692284789E-2},{"$f":"'Population 2016'!AE48/'Population 2016'!AE$5","v":3.3270362118707583E-2},{"$f":"'Population 2016'!AF48/'Population 2016'!AF$5","v":3.0312627245170341E-2},{"$f":"'Population 2016'!AG48/'Population 2016'!AG$5","v":3.3270362118707583E-2},{"$f":"'Population 2016'!AH48/'Population 2016'!AH$5","v":3.6627253559718749E-2},{"$f":"'Population 2016'!AI48/'Population 2016'!AI$5","v":4.0832257852830518E-2},{"$f":"'Population 2016'!AJ48/'Population 2016'!AJ$5","v":3.644424615899395E-2},{"$f":"'Population 2016'!AK48/'Population 2016'!AK$5","v":3.322731101416844E-2},{"$f":"'Population 2016'!AL48/'Population 2016'!AL$5","v":2.7997020272786933E-2},{"$f":"'Population 2016'!AM48/'Population 2016'!AM$5","v":3.7596299770727766E-2},{"$f":"'Population 2016'!AN48/'Population 2016'!AN$5","v":2.9235300534526016E-2},{"$f":"'Population 2016'!AO48/'Population 2016'!AO$5","v":2.9235300534526016E-2},{"$f":"'Population 2016'!AP48/'Population 2016'!AP$5","v":3.3170584785124357E-2},{"$f":"'Population 2016'!AQ48/'Population 2016'!AQ$5","v":3.3854880254288379E-2},{"$f":"'Population 2016'!AR48/'Population 2016'!AR$5","v":3.5926887087212728E-2},{"$f":"'Population 2016'!AS48/'Population 2016'!AS$5","v":2.7290427937358679E-2},{"$f":"'Population 2016'!AT48/'Population 2016'!AT$5","v":3.7538883323667421E-2},{"$f":"'Population 2016'!AU48/'Population 2016'!AU$5","v":3.7538883323667421E-2},{"$f":"'Population 2016'!AV48/'Population 2016'!AV$5","v":2.8054059761376836E-2},{"$f":"'Population 2016'!AW48/'Population 2016'!AW$5","v":3.5606961986698396E-2},{"$f":"'Population 2016'!AX48/'Population 2016'!AX$5","v":2.9824808004395773E-2},{"$f":"'Population 2016'!AY48/'Population 2016'!AY$5","v":3.2837122487071997E-2},{"$f":"'Population 2016'!AZ48/'Population 2016'!AZ$5","v":3.216629945176637E-2},{"$f":"'Population 2016'!BA48/'Population 2016'!BA$5","v":3.2430900453465777E-2},{"$f":"'Population 2016'!BB48/'Population 2016'!BB$5","v":3.8771465858323612E-2},{"$f":"'Population 2016'!BC48/'Population 2016'!BC$5","v":3.0407648386668436E-2},46]
[null,"Male 40-44",{"$f":"'Population 2016'!C49/'Population 2016'!C$5","v":3.7351842292221431E-2},{"$f":"'Population 2016'!D49/'Population 2016'!D$5","v":4.0176344590827737E-2},{"$f":"'Population 2016'!E49/'Population 2016'!E$5","v":4.2766935903506019E-2},{"$f":"'Population 2016'!F49/'Population 2016'!F$5","v":3.4911151171774402E-2},{"$f":"'Population 2016'!G49/'Population 2016'!G$5","v":3.3007632761327343E-2},{"$f":"'Population 2016'!H49/'Population 2016'!H$5","v":3.3909076465648336E-2},{"$f":"'Population 2016'!I49/'Population 2016'!I$5","v":3.4262205845406582E-2},{"$f":"'Population 2016'!J49/'Population 2016'!J$5","v":3.5461051723708982E-2},{"$f":"'Population 2016'!K49/'Population 2016'!K$5","v":3.81089637575013E-2},{"$f":"'Population 2016'!L49/'Population 2016'!L$5","v":3.0927835051546393E-2},{"$f":"'Population 2016'!M49/'Population 2016'!M$5","v":3.0927835051546393E-2},{"$f":"'Population 2016'!N49/'Population 2016'!N$5","v":2.9617186809300682E-2},{"$f":"'Population 2016'!O49/'Population 2016'!O$5","v":3.6793770618480104E-2},{"$f":"'Population 2016'!P49/'Population 2016'!P$5","v":3.4497915023103801E-2},{"$f":"'Population 2016'!Q49/'Population 2016'!Q$5","v":3.9741013619111407E-2},{"$f":"'Population 2016'!R49/'Population 2016'!R$5","v":3.8005003459839252E-2},{"$f":"'Population 2016'!S49/'Population 2016'!S$5","v":3.8435330316997696E-2},{"$f":"'Population 2016'!T49/'Population 2016'!T$5","v":3.9008296766448118E-2},{"$f":"'Population 2016'!U49/'Population 2016'!U$5","v":3.6117381489841983E-2},{"$f":"'Population 2016'!V49/'Population 2016'!V$5","v":4.1199502369849109E-2},{"$f":"'Population 2016'!W49/'Population 2016'!W$5","v":3.6573647363363597E-2},{"$f":"'Population 2016'!X49/'Population 2016'!X$5","v":3.6573647363363597E-2},{"$f":"'Population 2016'!Y49/'Population 2016'!Y$5","v":3.8449309231967696E-2},{"$f":"'Population 2016'!Z49/'Population 2016'!Z$5","v":3.6232318910997846E-2},{"$f":"'Population 2016'!AA49/'Population 2016'!AA$5","v":3.6737031419313733E-2},{"$f":"'Population 2016'!AB49/'Population 2016'!AB$5","v":3.9734706201447242E-2},{"$f":"'Population 2016'!AC49/'Population 2016'!AC$5","v":3.5389443156172366E-2},{"$f":"'Population 2016'!AD49/'Population 2016'!AD$5","v":3.4065279690349476E-2},{"$f":"'Population 2016'!AE49/'Population 2016'!AE$5","v":3.4466472961734718E-2},{"$f":"'Population 2016'!AF49/'Population 2016'!AF$5","v":3.1941365425507851E-2},{"$f":"'Population 2016'!AG49/'Population 2016'!AG$5","v":3.4466472961734718E-2},{"$f":"'Population 2016'!AH49/'Population 2016'!AH$5","v":3.9157370684450556E-2},{"$f":"'Population 2016'!AI49/'Population 2016'!AI$5","v":3.9759055910403358E-2},{"$f":"'Population 2016'!AJ49/'Population 2016'!AJ$5","v":3.7880266570002506E-2},{"$f":"'Population 2016'!AK49/'Population 2016'!AK$5","v":3.7464013175263697E-2},{"$f":"'Population 2016'!AL49/'Population 2016'!AL$5","v":3.2812472286763268E-2},{"$f":"'Population 2016'!AM49/'Population 2016'!AM$5","v":3.9921620045564689E-2},{"$f":"'Population 2016'!AN49/'Population 2016'!AN$5","v":3.3926039053125343E-2},{"$f":"'Population 2016'!AO49/'Population 2016'!AO$5","v":3.3926039053125343E-2},{"$f":"'Population 2016'!AP49/'Population 2016'!AP$5","v":3.3186436916443414E-2},{"$f":"'Population 2016'!AQ49/'Population 2016'!AQ$5","v":3.4457719077108567E-2},{"$f":"'Population 2016'!AR49/'Population 2016'!AR$5","v":3.6742475633150452E-2},{"$f":"'Population 2016'!AS49/'Population 2016'!AS$5","v":3.4262205845406582E-2},{"$f":"'Population 2016'!AT49/'Population 2016'!AT$5","v":4.2178520588390361E-2},{"$f":"'Population 2016'!AU49/'Population 2016'!AU$5","v":4.2178520588390361E-2},{"$f":"'Population 2016'!AV49/'Population 2016'!AV$5","v":3.2140217506071163E-2},{"$f":"'Population 2016'!AW49/'Population 2016'!AW$5","v":3.8352706083348585E-2},{"$f":"'Population 2016'!AX49/'Population 2016'!AX$5","v":3.402890476251326E-2},{"$f":"'Population 2016'!AY49/'Population 2016'!AY$5","v":3.4348704140020198E-2},{"$f":"'Population 2016'!AZ49/'Population 2016'!AZ$5","v":3.2390655291633826E-2},{"$f":"'Population 2016'!BA49/'Population 2016'!BA$5","v":3.2849276614122222E-2},{"$f":"'Population 2016'!BB49/'Population 2016'!BB$5","v":4.2928264156936395E-2},{"$f":"'Population 2016'!BC49/'Population 2016'!BC$5","v":3.6117381489841983E-2},47]
[null,"Male 45-49",{"$f":"'Population 2016'!C50/'Population 2016'!C$5","v":3.721384287488564E-2},{"$f":"'Population 2016'!D50/'Population 2016'!D$5","v":4.2125133260956737E-2},{"$f":"'Population 2016'!E50/'Population 2016'!E$5","v":4.6629695432661884E-2},{"$f":"'Population 2016'!F50/'Population 2016'!F$5","v":4.1390677311357198E-2},{"$f":"'Population 2016'!G50/'Population 2016'!G$5","v":4.0721593677258701E-2},{"$f":"'Population 2016'!H50/'Population 2016'!H$5","v":4.1716788851313011E-2},{"$f":"'Population 2016'!I50/'Population 2016'!I$5","v":4.4290679172598608E-2},{"$f":"'Population 2016'!J50/'Population 2016'!J$5","v":4.4259970310906178E-2},{"$f":"'Population 2016'!K50/'Population 2016'!K$5","v":4.857534376033644E-2},{"$f":"'Population 2016'!L50/'Population 2016'!L$5","v":4.0196654647117691E-2},{"$f":"'Population 2016'!M50/'Population 2016'!M$5","v":4.0196654647117691E-2},{"$f":"'Population 2016'!N50/'Population 2016'!N$5","v":3.6280049187838066E-2},{"$f":"'Population 2016'!O50/'Population 2016'!O$5","v":4.424366709265809E-2},{"$f":"'Population 2016'!P50/'Population 2016'!P$5","v":4.1744618505578722E-2},{"$f":"'Population 2016'!Q50/'Population 2016'!Q$5","v":4.3959530440300348E-2},{"$f":"'Population 2016'!R50/'Population 2016'!R$5","v":4.2689093522116354E-2},{"$f":"'Population 2016'!S50/'Population 2016'!S$5","v":4.219015624806919E-2},{"$f":"'Population 2016'!T50/'Population 2016'!T$5","v":3.7931066574221857E-2},{"$f":"'Population 2016'!U50/'Population 2016'!U$5","v":4.7005709733103175E-2},{"$f":"'Population 2016'!V50/'Population 2016'!V$5","v":4.7923615298310955E-2},{"$f":"'Population 2016'!W50/'Population 2016'!W$5","v":4.3823008386772042E-2},{"$f":"'Population 2016'!X50/'Population 2016'!X$5","v":4.3823008386772042E-2},{"$f":"'Population 2016'!Y50/'Population 2016'!Y$5","v":4.6167787475556825E-2},{"$f":"'Population 2016'!Z50/'Population 2016'!Z$5","v":3.8615285442997541E-2},{"$f":"'Population 2016'!AA50/'Population 2016'!AA$5","v":4.2248084419100468E-2},{"$f":"'Population 2016'!AB50/'Population 2016'!AB$5","v":4.2803189257238777E-2},{"$f":"'Population 2016'!AC50/'Population 2016'!AC$5","v":4.0271316306076894E-2},{"$f":"'Population 2016'!AD50/'Population 2016'!AD$5","v":4.1657672410584691E-2},{"$f":"'Population 2016'!AE50/'Population 2016'!AE$5","v":4.2012751670961711E-2},{"$f":"'Population 2016'!AF50/'Population 2016'!AF$5","v":4.0627969053974575E-2},{"$f":"'Population 2016'!AG50/'Population 2016'!AG$5","v":4.2012751670961711E-2},{"$f":"'Population 2016'!AH50/'Population 2016'!AH$5","v":4.579846372477081E-2},{"$f":"'Population 2016'!AI50/'Population 2016'!AI$5","v":4.1232828768921162E-2},{"$f":"'Population 2016'!AJ50/'Population 2016'!AJ$5","v":4.3610406268298804E-2},{"$f":"'Population 2016'!AK50/'Population 2016'!AK$5","v":4.6289428359503663E-2},{"$f":"'Population 2016'!AL50/'Population 2016'!AL$5","v":4.1192955073517674E-2},{"$f":"'Population 2016'!AM50/'Population 2016'!AM$5","v":4.5963106367103601E-2},{"$f":"'Population 2016'!AN50/'Population 2016'!AN$5","v":4.336205956147049E-2},{"$f":"'Population 2016'!AO50/'Population 2016'!AO$5","v":4.336205956147049E-2},{"$f":"'Population 2016'!AP50/'Population 2016'!AP$5","v":4.1088724378992754E-2},{"$f":"'Population 2016'!AQ50/'Population 2016'!AQ$5","v":4.3239984655011783E-2},{"$f":"'Population 2016'!AR50/'Population 2016'!AR$5","v":4.219896573302831E-2},{"$f":"'Population 2016'!AS50/'Population 2016'!AS$5","v":4.4290679172598608E-2},{"$f":"'Population 2016'!AT50/'Population 2016'!AT$5","v":4.2916644698687195E-2},{"$f":"'Population 2016'!AU50/'Population 2016'!AU$5","v":4.2916644698687195E-2},{"$f":"'Population 2016'!AV50/'Population 2016'!AV$5","v":3.9647344525393306E-2},{"$f":"'Population 2016'!AW50/'Population 2016'!AW$5","v":4.562511440600403E-2},{"$f":"'Population 2016'!AX50/'Population 2016'!AX$5","v":4.1925961894782572E-2},{"$f":"'Population 2016'!AY50/'Population 2016'!AY$5","v":4.1498118172638536E-2},{"$f":"'Population 2016'!AZ50/'Population 2016'!AZ$5","v":3.9452111533615983E-2},{"$f":"'Population 2016'!BA50/'Population 2016'!BA$5","v":4.143273591017059E-2},{"$f":"'Population 2016'!BB50/'Population 2016'!BB$5","v":4.8252004170608258E-2},{"$f":"'Population 2016'!BC50/'Population 2016'!BC$5","v":4.7005709733103175E-2},48]
[null,"Male 50-54",{"$f":"'Population 2016'!C51/'Population 2016'!C$5","v":3.7229176143478503E-2},{"$f":"'Population 2016'!D51/'Population 2016'!D$5","v":4.2570151501814306E-2},{"$f":"'Population 2016'!E51/'Population 2016'!E$5","v":4.7468814310961518E-2},{"$f":"'Population 2016'!F51/'Population 2016'!F$5","v":4.7077002317795519E-2},{"$f":"'Population 2016'!G51/'Population 2016'!G$5","v":4.5431169815406271E-2},{"$f":"'Population 2016'!H51/'Population 2016'!H$5","v":4.509861776254568E-2},{"$f":"'Population 2016'!I51/'Population 2016'!I$5","v":4.8750104681349972E-2},{"$f":"'Population 2016'!J51/'Population 2016'!J$5","v":4.5537098927709546E-2},{"$f":"'Population 2016'!K51/'Population 2016'!K$5","v":4.7748428861692574E-2},{"$f":"'Population 2016'!L51/'Population 2016'!L$5","v":4.6733277206805077E-2},{"$f":"'Population 2016'!M51/'Population 2016'!M$5","v":4.6733277206805077E-2},{"$f":"'Population 2016'!N51/'Population 2016'!N$5","v":3.7718713078981843E-2},{"$f":"'Population 2016'!O51/'Population 2016'!O$5","v":4.6413251305217902E-2},{"$f":"'Population 2016'!P51/'Population 2016'!P$5","v":4.6883804801081931E-2},{"$f":"'Population 2016'!Q51/'Population 2016'!Q$5","v":4.806053982914419E-2},{"$f":"'Population 2016'!R51/'Population 2016'!R$5","v":4.6215468142864743E-2},{"$f":"'Population 2016'!S51/'Population 2016'!S$5","v":4.2654434207576378E-2},{"$f":"'Population 2016'!T51/'Population 2016'!T$5","v":3.7637911057546894E-2},{"$f":"'Population 2016'!U51/'Population 2016'!U$5","v":4.5810649316159871E-2},{"$f":"'Population 2016'!V51/'Population 2016'!V$5","v":4.7213805420505107E-2},{"$f":"'Population 2016'!W51/'Population 2016'!W$5","v":4.3558266167251718E-2},{"$f":"'Population 2016'!X51/'Population 2016'!X$5","v":4.3558266167251718E-2},{"$f":"'Population 2016'!Y51/'Population 2016'!Y$5","v":4.6410231951797269E-2},{"$f":"'Population 2016'!Z51/'Population 2016'!Z$5","v":3.8669487768664475E-2},{"$f":"'Population 2016'!AA51/'Population 2016'!AA$5","v":4.3929636576117974E-2},{"$f":"'Population 2016'!AB51/'Population 2016'!AB$5","v":4.3042690603154458E-2},{"$f":"'Population 2016'!AC51/'Population 2016'!AC$5","v":4.2603651889346963E-2},{"$f":"'Population 2016'!AD51/'Population 2016'!AD$5","v":4.6194499237038965E-2},{"$f":"'Population 2016'!AE51/'Population 2016'!AE$5","v":4.6484050144251991E-2},{"$f":"'Population 2016'!AF51/'Population 2016'!AF$5","v":4.9103439955360512E-2},{"$f":"'Population 2016'!AG51/'Population 2016'!AG$5","v":4.6484050144251991E-2},{"$f":"'Population 2016'!AH51/'Population 2016'!AH$5","v":4.6311174683967567E-2},{"$f":"'Population 2016'!AI51/'Population 2016'!AI$5","v":4.1480280426983991E-2},{"$f":"'Population 2016'!AJ51/'Population 2016'!AJ$5","v":4.4419039121099742E-2},{"$f":"'Population 2016'!AK51/'Population 2016'!AK$5","v":4.5472260286888853E-2},{"$f":"'Population 2016'!AL51/'Population 2016'!AL$5","v":4.4953087032865685E-2},{"$f":"'Population 2016'!AM51/'Population 2016'!AM$5","v":4.6571601392294569E-2},{"$f":"'Population 2016'!AN51/'Population 2016'!AN$5","v":4.9525471801025414E-2},{"$f":"'Population 2016'!AO51/'Population 2016'!AO$5","v":4.9525471801025414E-2},{"$f":"'Population 2016'!AP51/'Population 2016'!AP$5","v":4.7080830017595866E-2},{"$f":"'Population 2016'!AQ51/'Population 2016'!AQ$5","v":4.6678906121554231E-2},{"$f":"'Population 2016'!AR51/'Population 2016'!AR$5","v":4.3982745434564333E-2},{"$f":"'Population 2016'!AS51/'Population 2016'!AS$5","v":4.8750104681349972E-2},{"$f":"'Population 2016'!AT51/'Population 2016'!AT$5","v":4.8927083882532821E-2},{"$f":"'Population 2016'!AU51/'Population 2016'!AU$5","v":4.8927083882532821E-2},{"$f":"'Population 2016'!AV51/'Population 2016'!AV$5","v":4.3870763382958505E-2},{"$f":"'Population 2016'!AW51/'Population 2016'!AW$5","v":4.6036976020501559E-2},{"$f":"'Population 2016'!AX51/'Population 2016'!AX$5","v":4.4341081309020279E-2},{"$f":"'Population 2016'!AY51/'Population 2016'!AY$5","v":4.3649215140295586E-2},{"$f":"'Population 2016'!AZ51/'Population 2016'!AZ$5","v":4.3729254275704565E-2},{"$f":"'Population 2016'!BA51/'Population 2016'!BA$5","v":4.7397970200820559E-2},{"$f":"'Population 2016'!BB51/'Population 2016'!BB$5","v":4.7561506114360289E-2},{"$f":"'Population 2016'!BC51/'Population 2016'!BC$5","v":4.5810649316159871E-2},49]
[null,"Male 55-59",{"$f":"'Population 2016'!C52/'Population 2016'!C$5","v":3.4740075541903268E-2},{"$f":"'Population 2016'!D52/'Population 2016'!D$5","v":3.8965992781901937E-2},{"$f":"'Population 2016'!E52/'Population 2016'!E$5","v":4.2841940942907102E-2},{"$f":"'Population 2016'!F52/'Population 2016'!F$5","v":4.153489569920165E-2},{"$f":"'Population 2016'!G52/'Population 2016'!G$5","v":4.3928977426514373E-2},{"$f":"'Population 2016'!H52/'Population 2016'!H$5","v":4.271220733237574E-2},{"$f":"'Population 2016'!I52/'Population 2016'!I$5","v":4.544217402227619E-2},{"$f":"'Population 2016'!J52/'Population 2016'!J$5","v":4.1166665284492837E-2},{"$f":"'Population 2016'!K52/'Population 2016'!K$5","v":4.3188583849170722E-2},{"$f":"'Population 2016'!L52/'Population 2016'!L$5","v":4.4096389369847347E-2},{"$f":"'Population 2016'!M52/'Population 2016'!M$5","v":4.4096389369847347E-2},{"$f":"'Population 2016'!N52/'Population 2016'!N$5","v":3.722844214401106E-2},{"$f":"'Population 2016'!O52/'Population 2016'!O$5","v":4.2430726860245092E-2},{"$f":"'Population 2016'!P52/'Population 2016'!P$5","v":4.3683083511777299E-2},{"$f":"'Population 2016'!Q52/'Population 2016'!Q$5","v":4.3994782670003875E-2},{"$f":"'Population 2016'!R52/'Population 2016'!R$5","v":4.3021770373130354E-2},{"$f":"'Population 2016'!S52/'Population 2016'!S$5","v":3.889607764563411E-2},{"$f":"'Population 2016'!T52/'Population 2016'!T$5","v":3.3214985365490474E-2},{"$f":"'Population 2016'!U52/'Population 2016'!U$5","v":4.5058203868454834E-2},{"$f":"'Population 2016'!V52/'Population 2016'!V$5","v":4.1375046748231198E-2},{"$f":"'Population 2016'!W52/'Population 2016'!W$5","v":4.1767170657410493E-2},{"$f":"'Population 2016'!X52/'Population 2016'!X$5","v":4.1767170657410493E-2},{"$f":"'Population 2016'!Y52/'Population 2016'!Y$5","v":4.1275178455032514E-2},{"$f":"'Population 2016'!Z52/'Population 2016'!Z$5","v":3.4031317329451416E-2},{"$f":"'Population 2016'!AA52/'Population 2016'!AA$5","v":3.9682903511062302E-2},{"$f":"'Population 2016'!AB52/'Population 2016'!AB$5","v":3.9296643910627108E-2},{"$f":"'Population 2016'!AC52/'Population 2016'!AC$5","v":3.848819145217109E-2},{"$f":"'Population 2016'!AD52/'Population 2016'!AD$5","v":4.4519706725222374E-2},{"$f":"'Population 2016'!AE52/'Population 2016'!AE$5","v":4.4743785870491486E-2},{"$f":"'Population 2016'!AF52/'Population 2016'!AF$5","v":4.4714895413895547E-2},{"$f":"'Population 2016'!AG52/'Population 2016'!AG$5","v":4.4743785870491486E-2},{"$f":"'Population 2016'!AH52/'Population 2016'!AH$5","v":4.1828669087801751E-2},{"$f":"'Population 2016'!AI52/'Population 2016'!AI$5","v":3.6840220054247967E-2},{"$f":"'Population 2016'!AJ52/'Population 2016'!AJ$5","v":4.101720436104063E-2},{"$f":"'Population 2016'!AK52/'Population 2016'!AK$5","v":4.0996693612260035E-2},{"$f":"'Population 2016'!AL52/'Population 2016'!AL$5","v":4.2478849257728671E-2},{"$f":"'Population 2016'!AM52/'Population 2016'!AM$5","v":4.0215001575567476E-2},{"$f":"'Population 2016'!AN52/'Population 2016'!AN$5","v":4.7780080724337294E-2},{"$f":"'Population 2016'!AO52/'Population 2016'!AO$5","v":4.7780080724337294E-2},{"$f":"'Population 2016'!AP52/'Population 2016'!AP$5","v":4.191303520758366E-2},{"$f":"'Population 2016'!AQ52/'Population 2016'!AQ$5","v":4.3500301419411413E-2},{"$f":"'Population 2016'!AR52/'Population 2016'!AR$5","v":4.0264142864558164E-2},{"$f":"'Population 2016'!AS52/'Population 2016'!AS$5","v":4.544217402227619E-2},{"$f":"'Population 2016'!AT52/'Population 2016'!AT$5","v":4.3549322507513047E-2},{"$f":"'Population 2016'!AU52/'Population 2016'!AU$5","v":4.3549322507513047E-2},{"$f":"'Population 2016'!AV52/'Population 2016'!AV$5","v":4.3290043290043288E-2},{"$f":"'Population 2016'!AW52/'Population 2016'!AW$5","v":4.3527670998840688E-2},{"$f":"'Population 2016'!AX52/'Population 2016'!AX$5","v":4.0073092502907089E-2},{"$f":"'Population 2016'!AY52/'Population 2016'!AY$5","v":4.0896851381536675E-2},{"$f":"'Population 2016'!AZ52/'Population 2016'!AZ$5","v":4.0130931767061111E-2},{"$f":"'Population 2016'!BA52/'Population 2016'!BA$5","v":4.3295184625350897E-2},{"$f":"'Population 2016'!BB52/'Population 2016'!BB$5","v":4.1326308666441103E-2},{"$f":"'Population 2016'!BC52/'Population 2016'!BC$5","v":4.5058203868454834E-2},50]
[null,"Male 60-64",{"$f":"'Population 2016'!C53/'Population 2016'!C$5","v":3.0804536603067676E-2},{"$f":"'Population 2016'!D53/'Population 2016'!D$5","v":3.4748100114433259E-2},{"$f":"'Population 2016'!E53/'Population 2016'!E$5","v":3.8365077653654857E-2},{"$f":"'Population 2016'!F53/'Population 2016'!F$5","v":3.8351789853206281E-2},{"$f":"'Population 2016'!G53/'Population 2016'!G$5","v":4.1912520976560383E-2},{"$f":"'Population 2016'!H53/'Population 2016'!H$5","v":3.8445201726256678E-2},{"$f":"'Population 2016'!I53/'Population 2016'!I$5","v":4.2291265388158444E-2},{"$f":"'Population 2016'!J53/'Population 2016'!J$5","v":3.4905417844969852E-2},{"$f":"'Population 2016'!K53/'Population 2016'!K$5","v":3.7305674998818691E-2},{"$f":"'Population 2016'!L53/'Population 2016'!L$5","v":4.178514129588741E-2},{"$f":"'Population 2016'!M53/'Population 2016'!M$5","v":4.178514129588741E-2},{"$f":"'Population 2016'!N53/'Population 2016'!N$5","v":3.0019048231407882E-2},{"$f":"'Population 2016'!O53/'Population 2016'!O$5","v":3.696218583132721E-2},{"$f":"'Population 2016'!P53/'Population 2016'!P$5","v":3.8171982418573197E-2},{"$f":"'Population 2016'!Q53/'Population 2016'!Q$5","v":3.5651754973502071E-2},{"$f":"'Population 2016'!R53/'Population 2016'!R$5","v":3.7140043647202851E-2},{"$f":"'Population 2016'!S53/'Population 2016'!S$5","v":3.3021990534378633E-2},{"$f":"'Population 2016'!T53/'Population 2016'!T$5","v":2.8124316552118864E-2},{"$f":"'Population 2016'!U53/'Population 2016'!U$5","v":4.3686097463816229E-2},{"$f":"'Population 2016'!V53/'Population 2016'!V$5","v":3.3819006113523786E-2},{"$f":"'Population 2016'!W53/'Population 2016'!W$5","v":3.5808836506971545E-2},{"$f":"'Population 2016'!X53/'Population 2016'!X$5","v":3.5808836506971545E-2},{"$f":"'Population 2016'!Y53/'Population 2016'!Y$5","v":3.4339676634711692E-2},{"$f":"'Population 2016'!Z53/'Population 2016'!Z$5","v":2.7939363083957468E-2},{"$f":"'Population 2016'!AA53/'Population 2016'!AA$5","v":3.3249023191600613E-2},{"$f":"'Population 2016'!AB53/'Population 2016'!AB$5","v":3.5161663408493089E-2},{"$f":"'Population 2016'!AC53/'Population 2016'!AC$5","v":3.1916280012659774E-2},{"$f":"'Population 2016'!AD53/'Population 2016'!AD$5","v":4.1225948118649748E-2},{"$f":"'Population 2016'!AE53/'Population 2016'!AE$5","v":4.096551299294654E-2},{"$f":"'Population 2016'!AF53/'Population 2016'!AF$5","v":3.6571204512207994E-2},{"$f":"'Population 2016'!AG53/'Population 2016'!AG$5","v":4.096551299294654E-2},{"$f":"'Population 2016'!AH53/'Population 2016'!AH$5","v":3.5642699906188756E-2},{"$f":"'Population 2016'!AI53/'Population 2016'!AI$5","v":3.0645725785283053E-2},{"$f":"'Population 2016'!AJ53/'Population 2016'!AJ$5","v":3.6374536430304215E-2},{"$f":"'Population 2016'!AK53/'Population 2016'!AK$5","v":3.7288007744238967E-2},{"$f":"'Population 2016'!AL53/'Population 2016'!AL$5","v":3.8168886681683549E-2},{"$f":"'Population 2016'!AM53/'Population 2016'!AM$5","v":3.3963439590569779E-2},{"$f":"'Population 2016'!AN53/'Population 2016'!AN$5","v":4.1780298898221886E-2},{"$f":"'Population 2016'!AO53/'Population 2016'!AO$5","v":4.1780298898221886E-2},{"$f":"'Population 2016'!AP53/'Population 2016'!AP$5","v":3.9265729277301334E-2},{"$f":"'Population 2016'!AQ53/'Population 2016'!AQ$5","v":3.4683783635666134E-2},{"$f":"'Population 2016'!AR53/'Population 2016'!AR$5","v":3.484374272492121E-2},{"$f":"'Population 2016'!AS53/'Population 2016'!AS$5","v":4.2291265388158444E-2},{"$f":"'Population 2016'!AT53/'Population 2016'!AT$5","v":4.07022723677967E-2},{"$f":"'Population 2016'!AU53/'Population 2016'!AU$5","v":4.07022723677967E-2},{"$f":"'Population 2016'!AV53/'Population 2016'!AV$5","v":4.0354767184035474E-2},{"$f":"'Population 2016'!AW53/'Population 2016'!AW$5","v":3.7410763316858872E-2},{"$f":"'Population 2016'!AX53/'Population 2016'!AX$5","v":3.3607217245741595E-2},{"$f":"'Population 2016'!AY53/'Population 2016'!AY$5","v":3.5751659985924542E-2},{"$f":"'Population 2016'!AZ53/'Population 2016'!AZ$5","v":3.5701342108139515E-2},{"$f":"'Population 2016'!BA53/'Population 2016'!BA$5","v":3.7235478298423663E-2},{"$f":"'Population 2016'!BB53/'Population 2016'!BB$5","v":3.2349833935217474E-2},{"$f":"'Population 2016'!BC53/'Population 2016'!BC$5","v":4.3686097463816229E-2},51]
[null,"Male 65-69",{"$f":"'Population 2016'!C54/'Population 2016'!C$5","v":2.7783882690273085E-2},{"$f":"'Population 2016'!D54/'Population 2016'!D$5","v":3.3417935702199662E-2},{"$f":"'Population 2016'!E54/'Population 2016'!E$5","v":3.8585404956895539E-2},{"$f":"'Population 2016'!F54/'Population 2016'!F$5","v":4.2637136234869949E-2},{"$f":"'Population 2016'!G54/'Population 2016'!G$5","v":4.5349970226817519E-2},{"$f":"'Population 2016'!H54/'Population 2016'!H$5","v":3.9816739242509232E-2},{"$f":"'Population 2016'!I54/'Population 2016'!I$5","v":4.5473578427267396E-2},{"$f":"'Population 2016'!J54/'Population 2016'!J$5","v":3.575130822752793E-2},{"$f":"'Population 2016'!K54/'Population 2016'!K$5","v":3.8675991116571377E-2},{"$f":"'Population 2016'!L54/'Population 2016'!L$5","v":4.4977999459914542E-2},{"$f":"'Population 2016'!M54/'Population 2016'!M$5","v":4.4977999459914542E-2},{"$f":"'Population 2016'!N54/'Population 2016'!N$5","v":2.9761856921259273E-2},{"$f":"'Population 2016'!O54/'Population 2016'!O$5","v":3.7516965356000041E-2},{"$f":"'Population 2016'!P54/'Population 2016'!P$5","v":3.7428152823171419E-2},{"$f":"'Population 2016'!Q54/'Population 2016'!Q$5","v":3.5263980446763259E-2},{"$f":"'Population 2016'!R54/'Population 2016'!R$5","v":3.2974929472507582E-2},{"$f":"'Population 2016'!S54/'Population 2016'!S$5","v":3.2942551339786151E-2},{"$f":"'Population 2016'!T54/'Population 2016'!T$5","v":2.603732846912328E-2},{"$f":"'Population 2016'!U54/'Population 2016'!U$5","v":4.6474571770017264E-2},{"$f":"'Population 2016'!V54/'Population 2016'!V$5","v":3.5734729547171828E-2},{"$f":"'Population 2016'!W54/'Population 2016'!W$5","v":3.7642421508834546E-2},{"$f":"'Population 2016'!X54/'Population 2016'!X$5","v":3.7642421508834546E-2},{"$f":"'Population 2016'!Y54/'Population 2016'!Y$5","v":3.5742674997217852E-2},{"$f":"'Population 2016'!Z54/'Population 2016'!Z$5","v":2.4145200287272326E-2},{"$f":"'Population 2016'!AA54/'Population 2016'!AA$5","v":3.0418753658256248E-2},{"$f":"'Population 2016'!AB54/'Population 2016'!AB$5","v":3.4001003039824777E-2},{"$f":"'Population 2016'!AC54/'Population 2016'!AC$5","v":2.8843389095632999E-2},{"$f":"'Population 2016'!AD54/'Population 2016'!AD$5","v":4.2279206520525511E-2},{"$f":"'Population 2016'!AE54/'Population 2016'!AE$5","v":4.1114385157958504E-2},{"$f":"'Population 2016'!AF54/'Population 2016'!AF$5","v":3.5606026331267249E-2},{"$f":"'Population 2016'!AG54/'Population 2016'!AG$5","v":4.1114385157958504E-2},{"$f":"'Population 2016'!AH54/'Population 2016'!AH$5","v":3.3248191114867688E-2},{"$f":"'Population 2016'!AI54/'Population 2016'!AI$5","v":2.9340110683349373E-2},{"$f":"'Population 2016'!AJ54/'Population 2016'!AJ$5","v":3.6276942810138581E-2},{"$f":"'Population 2016'!AK54/'Population 2016'!AK$5","v":3.6998855964698339E-2},{"$f":"'Population 2016'!AL54/'Population 2016'!AL$5","v":3.9711959702736735E-2},{"$f":"'Population 2016'!AM54/'Population 2016'!AM$5","v":3.2156064485984695E-2},{"$f":"'Population 2016'!AN54/'Population 2016'!AN$5","v":4.1998472782807897E-2},{"$f":"'Population 2016'!AO54/'Population 2016'!AO$5","v":4.1998472782807897E-2},{"$f":"'Population 2016'!AP54/'Population 2016'!AP$5","v":3.9772997479511123E-2},{"$f":"'Population 2016'!AQ54/'Population 2016'!AQ$5","v":3.299172466706856E-2},{"$f":"'Population 2016'!AR54/'Population 2016'!AR$5","v":3.4188999557341046E-2},{"$f":"'Population 2016'!AS54/'Population 2016'!AS$5","v":4.5473578427267396E-2},{"$f":"'Population 2016'!AT54/'Population 2016'!AT$5","v":4.0807718669267676E-2},{"$f":"'Population 2016'!AU54/'Population 2016'!AU$5","v":4.0807718669267676E-2},{"$f":"'Population 2016'!AV54/'Population 2016'!AV$5","v":4.2392566782810684E-2},{"$f":"'Population 2016'!AW54/'Population 2016'!AW$5","v":3.4398071877478793E-2},{"$f":"'Population 2016'!AX54/'Population 2016'!AX$5","v":3.4169467268103812E-2},{"$f":"'Population 2016'!AY54/'Population 2016'!AY$5","v":3.7295370398702607E-2},{"$f":"'Population 2016'!AZ54/'Population 2016'!AZ$5","v":3.6989950008916708E-2},{"$f":"'Population 2016'!BA54/'Population 2016'!BA$5","v":3.2903260634852084E-2},{"$f":"'Population 2016'!BB54/'Population 2016'!BB$5","v":3.222554428509284E-2},{"$f":"'Population 2016'!BC54/'Population 2016'!BC$5","v":4.6474571770017264E-2},52]
[null,"Male 70-74",{"$f":"'Population 2016'!C55/'Population 2016'!C$5","v":1.814947892442232E-2},{"$f":"'Population 2016'!D55/'Population 2016'!D$5","v":2.2202008939487299E-2},{"$f":"'Population 2016'!E55/'Population 2016'!E$5","v":2.5918928928037353E-2},{"$f":"'Population 2016'!F55/'Population 2016'!F$5","v":3.0574298223023436E-2},{"$f":"'Population 2016'!G55/'Population 2016'!G$5","v":3.517295512369404E-2},{"$f":"'Population 2016'!H55/'Population 2016'!H$5","v":3.02451582780233E-2},{"$f":"'Population 2016'!I55/'Population 2016'!I$5","v":3.3435223180638136E-2},{"$f":"'Population 2016'!J55/'Population 2016'!J$5","v":2.5807949710987453E-2},{"$f":"'Population 2016'!K55/'Population 2016'!K$5","v":2.7996975854084959E-2},{"$f":"'Population 2016'!L55/'Population 2016'!L$5","v":3.4414563245595921E-2},{"$f":"'Population 2016'!M55/'Population 2016'!M$5","v":3.4414563245595921E-2},{"$f":"'Population 2016'!N55/'Population 2016'!N$5","v":2.129865537168163E-2},{"$f":"'Population 2016'!O55/'Population 2016'!O$5","v":2.747149324853132E-2},{"$f":"'Population 2016'!P55/'Population 2016'!P$5","v":2.785979939141215E-2},{"$f":"'Population 2016'!Q55/'Population 2016'!Q$5","v":2.7085463155544588E-2},{"$f":"'Population 2016'!R55/'Population 2016'!R$5","v":2.453824453079257E-2},{"$f":"'Population 2016'!S55/'Population 2016'!S$5","v":2.3998580686389947E-2},{"$f":"'Population 2016'!T55/'Population 2016'!T$5","v":1.7896446303681195E-2},{"$f":"'Population 2016'!U55/'Population 2016'!U$5","v":3.2797769220555037E-2},{"$f":"'Population 2016'!V55/'Population 2016'!V$5","v":2.4927301730256982E-2},{"$f":"'Population 2016'!W55/'Population 2016'!W$5","v":2.8216291124925644E-2},{"$f":"'Population 2016'!X55/'Population 2016'!X$5","v":2.8216291124925644E-2},{"$f":"'Population 2016'!Y55/'Population 2016'!Y$5","v":2.5349358515762865E-2},{"$f":"'Population 2016'!Z55/'Population 2016'!Z$5","v":1.695758474436828E-2},{"$f":"'Population 2016'!AA55/'Population 2016'!AA$5","v":2.2214293924155422E-2},{"$f":"'Population 2016'!AB55/'Population 2016'!AB$5","v":2.32091133332651E-2},{"$f":"'Population 2016'!AC55/'Population 2016'!AC$5","v":2.1024117694514718E-2},{"$f":"'Population 2016'!AD55/'Population 2016'!AD$5","v":3.1981093453422156E-2},{"$f":"'Population 2016'!AE55/'Population 2016'!AE$5","v":3.0770336451092926E-2},{"$f":"'Population 2016'!AF55/'Population 2016'!AF$5","v":2.7070231793572517E-2},{"$f":"'Population 2016'!AG55/'Population 2016'!AG$5","v":3.0770336451092926E-2},{"$f":"'Population 2016'!AH55/'Population 2016'!AH$5","v":2.4351912913442873E-2},{"$f":"'Population 2016'!AI55/'Population 2016'!AI$5","v":2.1001946801994926E-2},{"$f":"'Population 2016'!AJ55/'Population 2016'!AJ$5","v":2.7033432785879597E-2},{"$f":"'Population 2016'!AK55/'Population 2016'!AK$5","v":2.8387161660988397E-2},{"$f":"'Population 2016'!AL55/'Population 2016'!AL$5","v":3.0072187439030878E-2},{"$f":"'Population 2016'!AM55/'Population 2016'!AM$5","v":2.2970687200959104E-2},{"$f":"'Population 2016'!AN55/'Population 2016'!AN$5","v":3.3326060870513798E-2},{"$f":"'Population 2016'!AO55/'Population 2016'!AO$5","v":3.3326060870513798E-2},{"$f":"'Population 2016'!AP55/'Population 2016'!AP$5","v":2.9849563273782159E-2},{"$f":"'Population 2016'!AQ55/'Population 2016'!AQ$5","v":2.4880802323669644E-2},{"$f":"'Population 2016'!AR55/'Population 2016'!AR$5","v":2.4921899766595978E-2},{"$f":"'Population 2016'!AS55/'Population 2016'!AS$5","v":3.3435223180638136E-2},{"$f":"'Population 2016'!AT55/'Population 2016'!AT$5","v":2.836505509569252E-2},{"$f":"'Population 2016'!AU55/'Population 2016'!AU$5","v":2.836505509569252E-2},{"$f":"'Population 2016'!AV55/'Population 2016'!AV$5","v":3.3407243163340726E-2},{"$f":"'Population 2016'!AW55/'Population 2016'!AW$5","v":2.5806180975044238E-2},{"$f":"'Population 2016'!AX55/'Population 2016'!AX$5","v":2.4623995297545269E-2},{"$f":"'Population 2016'!AY55/'Population 2016'!AY$5","v":2.7564945993084667E-2},{"$f":"'Population 2016'!AZ55/'Population 2016'!AZ$5","v":2.699173335020796E-2},{"$f":"'Population 2016'!BA55/'Population 2016'!BA$5","v":2.4616713452817966E-2},{"$f":"'Population 2016'!BB55/'Population 2016'!BB$5","v":2.365646340705551E-2},{"$f":"'Population 2016'!BC55/'Population 2016'!BC$5","v":3.2797769220555037E-2},53]
[null,"Male 75-79",{"$f":"'Population 2016'!C56/'Population 2016'!C$5","v":1.3973718777631828E-2},{"$f":"'Population 2016'!D56/'Population 2016'!D$5","v":1.6414326653169411E-2},{"$f":"'Population 2016'!E56/'Population 2016'!E$5","v":1.8652815736057267E-2},{"$f":"'Population 2016'!F56/'Population 2016'!F$5","v":2.2848313159927892E-2},{"$f":"'Population 2016'!G56/'Population 2016'!G$5","v":2.4914740431981813E-2},{"$f":"'Population 2016'!H56/'Population 2016'!H$5","v":2.2239659158336388E-2},{"$f":"'Population 2016'!I56/'Population 2016'!I$5","v":2.4181391843229209E-2},{"$f":"'Population 2016'!J56/'Population 2016'!J$5","v":1.92232735957805E-2},{"$f":"'Population 2016'!K56/'Population 2016'!K$5","v":1.9137173368615035E-2},{"$f":"'Population 2016'!L56/'Population 2016'!L$5","v":2.6519784601210426E-2},{"$f":"'Population 2016'!M56/'Population 2016'!M$5","v":2.6519784601210426E-2},{"$f":"'Population 2016'!N56/'Population 2016'!N$5","v":1.7336301749704634E-2},{"$f":"'Population 2016'!O56/'Population 2016'!O$5","v":2.0665537294062869E-2},{"$f":"'Population 2016'!P56/'Population 2016'!P$5","v":2.2686802659754309E-2},{"$f":"'Population 2016'!Q56/'Population 2016'!Q$5","v":1.9858756066321193E-2},{"$f":"'Population 2016'!R56/'Population 2016'!R$5","v":2.0213445467610582E-2},{"$f":"'Population 2016'!S56/'Population 2016'!S$5","v":1.7412188796955184E-2},{"$f":"'Population 2016'!T56/'Population 2016'!T$5","v":1.3682917409249755E-2},{"$f":"'Population 2016'!U56/'Population 2016'!U$5","v":2.5671668215819059E-2},{"$f":"'Population 2016'!V56/'Population 2016'!V$5","v":1.8378733180177225E-2},{"$f":"'Population 2016'!W56/'Population 2016'!W$5","v":1.9806640127076267E-2},{"$f":"'Population 2016'!X56/'Population 2016'!X$5","v":1.9806640127076267E-2},{"$f":"'Population 2016'!Y56/'Population 2016'!Y$5","v":1.8783485159218453E-2},{"$f":"'Population 2016'!Z56/'Population 2016'!Z$5","v":1.2588490136144628E-2},{"$f":"'Population 2016'!AA56/'Population 2016'!AA$5","v":1.6474028955118968E-2},{"$f":"'Population 2016'!AB56/'Population 2016'!AB$5","v":1.7311648567597721E-2},{"$f":"'Population 2016'!AC56/'Population 2016'!AC$5","v":1.5814372979245834E-2},{"$f":"'Population 2016'!AD56/'Population 2016'!AD$5","v":2.194722542707209E-2},{"$f":"'Population 2016'!AE56/'Population 2016'!AE$5","v":2.0821569009948769E-2},{"$f":"'Population 2016'!AF56/'Population 2016'!AF$5","v":1.9499615436818531E-2},{"$f":"'Population 2016'!AG56/'Population 2016'!AG$5","v":2.0821569009948769E-2},{"$f":"'Population 2016'!AH56/'Population 2016'!AH$5","v":1.7658805717841786E-2},{"$f":"'Population 2016'!AI56/'Population 2016'!AI$5","v":1.5526566191267828E-2},{"$f":"'Population 2016'!AJ56/'Population 2016'!AJ$5","v":1.8417310319828236E-2},{"$f":"'Population 2016'!AK56/'Population 2016'!AK$5","v":2.1925247979080496E-2},{"$f":"'Population 2016'!AL56/'Population 2016'!AL$5","v":2.1824728188574165E-2},{"$f":"'Population 2016'!AM56/'Population 2016'!AM$5","v":1.6947310850408018E-2},{"$f":"'Population 2016'!AN56/'Population 2016'!AN$5","v":2.5471801025417257E-2},{"$f":"'Population 2016'!AO56/'Population 2016'!AO$5","v":2.5471801025417257E-2},{"$f":"'Population 2016'!AP56/'Population 2016'!AP$5","v":2.2993516478290506E-2},{"$f":"'Population 2016'!AQ56/'Population 2016'!AQ$5","v":1.8667452183920644E-2},{"$f":"'Population 2016'!AR56/'Population 2016'!AR$5","v":1.8382488081958963E-2},{"$f":"'Population 2016'!AS56/'Population 2016'!AS$5","v":2.4181391843229209E-2},{"$f":"'Population 2016'!AT56/'Population 2016'!AT$5","v":2.0614751937575788E-2},{"$f":"'Population 2016'!AU56/'Population 2016'!AU$5","v":2.0614751937575788E-2},{"$f":"'Population 2016'!AV56/'Population 2016'!AV$5","v":2.441136099672685E-2},{"$f":"'Population 2016'!AW56/'Population 2016'!AW$5","v":1.8407926047958996E-2},{"$f":"'Population 2016'!AX56/'Population 2016'!AX$5","v":1.9269841675505068E-2},{"$f":"'Population 2016'!AY56/'Population 2016'!AY$5","v":2.0403292432912088E-2},{"$f":"'Population 2016'!AZ56/'Population 2016'!AZ$5","v":2.0928372959943854E-2},{"$f":"'Population 2016'!BA56/'Population 2016'!BA$5","v":1.6694558410710429E-2},{"$f":"'Population 2016'!BB56/'Population 2016'!BB$5","v":1.7020777086512503E-2},{"$f":"'Population 2016'!BC56/'Population 2016'!BC$5","v":2.5671668215819059E-2},54]
[null,"Male 80-84",{"$f":"'Population 2016'!C57/'Population 2016'!C$5","v":1.0303956494405913E-2},{"$f":"'Population 2016'!D57/'Population 2016'!D$5","v":1.1445771348649785E-2},{"$f":"'Population 2016'!E57/'Population 2016'!E$5","v":1.2493026875243181E-2},{"$f":"'Population 2016'!F57/'Population 2016'!F$5","v":1.5503476693278393E-2},{"$f":"'Population 2016'!G57/'Population 2016'!G$5","v":1.5847453039571267E-2},{"$f":"'Population 2016'!H57/'Population 2016'!H$5","v":1.4629733506693946E-2},{"$f":"'Population 2016'!I57/'Population 2016'!I$5","v":1.5942969600535969E-2},{"$f":"'Population 2016'!J57/'Population 2016'!J$5","v":1.253908096497848E-2},{"$f":"'Population 2016'!K57/'Population 2016'!K$5","v":1.1482304021169022E-2},{"$f":"'Population 2016'!L57/'Population 2016'!L$5","v":1.7870474798659317E-2},{"$f":"'Population 2016'!M57/'Population 2016'!M$5","v":1.7870474798659317E-2},{"$f":"'Population 2016'!N57/'Population 2016'!N$5","v":1.2329108430248913E-2},{"$f":"'Population 2016'!O57/'Population 2016'!O$5","v":1.3166106933753381E-2},{"$f":"'Population 2016'!P57/'Population 2016'!P$5","v":1.6848867350388819E-2},{"$f":"'Population 2016'!Q57/'Population 2016'!Q$5","v":1.3959882962597384E-2},{"$f":"'Population 2016'!R57/'Population 2016'!R$5","v":1.4664395592697077E-2},{"$f":"'Population 2016'!S57/'Population 2016'!S$5","v":1.2065048343163198E-2},{"$f":"'Population 2016'!T57/'Population 2016'!T$5","v":1.044657357040153E-2},{"$f":"'Population 2016'!U57/'Population 2016'!U$5","v":1.5712831407958216E-2},{"$f":"'Population 2016'!V57/'Population 2016'!V$5","v":1.2845269079002603E-2},{"$f":"'Population 2016'!W57/'Population 2016'!W$5","v":1.3416874211493081E-2},{"$f":"'Population 2016'!X57/'Population 2016'!X$5","v":1.3416874211493081E-2},{"$f":"'Population 2016'!Y57/'Population 2016'!Y$5","v":1.2698526255544428E-2},{"$f":"'Population 2016'!Z57/'Population 2016'!Z$5","v":8.6878584854708733E-3},{"$f":"'Population 2016'!AA57/'Population 2016'!AA$5","v":1.1169598918916765E-2},{"$f":"'Population 2016'!AB57/'Population 2016'!AB$5","v":1.1850199072699918E-2},{"$f":"'Population 2016'!AC57/'Population 2016'!AC$5","v":1.0936637009976812E-2},{"$f":"'Population 2016'!AD57/'Population 2016'!AD$5","v":1.4846105176969743E-2},{"$f":"'Population 2016'!AE57/'Population 2016'!AE$5","v":1.4466267620817461E-2},{"$f":"'Population 2016'!AF57/'Population 2016'!AF$5","v":1.27735299883877E-2},{"$f":"'Population 2016'!AG57/'Population 2016'!AG$5","v":1.4466267620817461E-2},{"$f":"'Population 2016'!AH57/'Population 2016'!AH$5","v":1.1588010737207768E-2},{"$f":"'Population 2016'!AI57/'Population 2016'!AI$5","v":1.0993142444658325E-2},{"$f":"'Population 2016'!AJ57/'Population 2016'!AJ$5","v":1.2017957226110477E-2},{"$f":"'Population 2016'!AK57/'Population 2016'!AK$5","v":1.3929572683957106E-2},{"$f":"'Population 2016'!AL57/'Population 2016'!AL$5","v":1.4366541920150406E-2},{"$f":"'Population 2016'!AM57/'Population 2016'!AM$5","v":1.0797164702942145E-2},{"$f":"'Population 2016'!AN57/'Population 2016'!AN$5","v":1.5381258863314061E-2},{"$f":"'Population 2016'!AO57/'Population 2016'!AO$5","v":1.5381258863314061E-2},{"$f":"'Population 2016'!AP57/'Population 2016'!AP$5","v":1.6462438374839496E-2},{"$f":"'Population 2016'!AQ57/'Population 2016'!AQ$5","v":1.2132131309256316E-2},{"$f":"'Population 2016'!AR57/'Population 2016'!AR$5","v":1.2520320095669583E-2},{"$f":"'Population 2016'!AS57/'Population 2016'!AS$5","v":1.5942969600535969E-2},{"$f":"'Population 2016'!AT57/'Population 2016'!AT$5","v":1.2231770970633205E-2},{"$f":"'Population 2016'!AU57/'Population 2016'!AU$5","v":1.2231770970633205E-2},{"$f":"'Population 2016'!AV57/'Population 2016'!AV$5","v":1.6503009185936016E-2},{"$f":"'Population 2016'!AW57/'Population 2016'!AW$5","v":1.2420678503874551E-2},{"$f":"'Population 2016'!AX57/'Population 2016'!AX$5","v":1.3110648248718965E-2},{"$f":"'Population 2016'!AY57/'Population 2016'!AY$5","v":1.4107585447201738E-2},{"$f":"'Population 2016'!AZ57/'Population 2016'!AZ$5","v":1.4715442009768109E-2},{"$f":"'Population 2016'!BA57/'Population 2016'!BA$5","v":1.1755020513927877E-2},{"$f":"'Population 2016'!BB57/'Population 2016'!BB$5","v":1.0364375824282054E-2},{"$f":"'Population 2016'!BC57/'Population 2016'!BC$5","v":1.5712831407958216E-2},55]
[null,"Male 85-89",{"$f":"'Population 2016'!C58/'Population 2016'!C$5","v":5.3461996493792581E-3},{"$f":"'Population 2016'!D58/'Population 2016'!D$5","v":5.8537014758956608E-3},{"$f":"'Population 2016'!E58/'Population 2016'!E$5","v":6.3191745695413909E-3},{"$f":"'Population 2016'!F58/'Population 2016'!F$5","v":8.447077002317796E-3},{"$f":"'Population 2016'!G58/'Population 2016'!G$5","v":7.8492935635792772E-3},{"$f":"'Population 2016'!H58/'Population 2016'!H$5","v":7.1527464795582548E-3},{"$f":"'Population 2016'!I58/'Population 2016'!I$5","v":9.1282137174441003E-3},{"$f":"'Population 2016'!J58/'Population 2016'!J$5","v":6.070507451299105E-3},{"$f":"'Population 2016'!K58/'Population 2016'!K$5","v":5.8829088503520293E-3},{"$f":"'Population 2016'!L58/'Population 2016'!L$5","v":8.7207917017457469E-3},{"$f":"'Population 2016'!M58/'Population 2016'!M$5","v":8.7207917017457469E-3},{"$f":"'Population 2016'!N58/'Population 2016'!N$5","v":6.8477186327066978E-3},{"$f":"'Population 2016'!O58/'Population 2016'!O$5","v":6.3700577565112297E-3},{"$f":"'Population 2016'!P58/'Population 2016'!P$5","v":8.4413388932717236E-3},{"$f":"'Population 2016'!Q58/'Population 2016'!Q$5","v":7.0269444542367301E-3},{"$f":"'Population 2016'!R58/'Population 2016'!R$5","v":7.4652685367541383E-3},{"$f":"'Population 2016'!S58/'Population 2016'!S$5","v":6.2289155137685778E-3},{"$f":"'Population 2016'!T58/'Population 2016'!T$5","v":5.6095075452646075E-3},{"$f":"'Population 2016'!U58/'Population 2016'!U$5","v":9.2949143540034529E-3},{"$f":"'Population 2016'!V58/'Population 2016'!V$5","v":5.8234939437189458E-3},{"$f":"'Population 2016'!W58/'Population 2016'!W$5","v":6.6348976003242277E-3},{"$f":"'Population 2016'!X58/'Population 2016'!X$5","v":6.6348976003242277E-3},{"$f":"'Population 2016'!Y58/'Population 2016'!Y$5","v":5.941876917696062E-3},{"$f":"'Population 2016'!Z58/'Population 2016'!Z$5","v":4.1851938604251402E-3},{"$f":"'Population 2016'!AA58/'Population 2016'!AA$5","v":5.3947860588629626E-3},{"$f":"'Population 2016'!AB58/'Population 2016'!AB$5","v":6.126731011330256E-3},{"$f":"'Population 2016'!AC58/'Population 2016'!AC$5","v":5.3855748922781591E-3},{"$f":"'Population 2016'!AD58/'Population 2016'!AD$5","v":7.5923927202352151E-3},{"$f":"'Population 2016'!AE58/'Population 2016'!AE$5","v":7.4949434799125251E-3},{"$f":"'Population 2016'!AF58/'Population 2016'!AF$5","v":6.3792245396552504E-3},{"$f":"'Population 2016'!AG58/'Population 2016'!AG$5","v":7.4949434799125251E-3},{"$f":"'Population 2016'!AH58/'Population 2016'!AH$5","v":5.4113297976092064E-3},{"$f":"'Population 2016'!AI58/'Population 2016'!AI$5","v":5.6804510455857908E-3},{"$f":"'Population 2016'!AJ58/'Population 2016'!AJ$5","v":6.4132950394557063E-3},{"$f":"'Population 2016'!AK58/'Population 2016'!AK$5","v":7.5305180845580376E-3},{"$f":"'Population 2016'!AL58/'Population 2016'!AL$5","v":6.6334403433780881E-3},{"$f":"'Population 2016'!AM58/'Population 2016'!AM$5","v":4.8027643059715816E-3},{"$f":"'Population 2016'!AN58/'Population 2016'!AN$5","v":8.0178902585360534E-3},{"$f":"'Population 2016'!AO58/'Population 2016'!AO$5","v":8.0178902585360534E-3},{"$f":"'Population 2016'!AP58/'Population 2016'!AP$5","v":8.9564541952665538E-3},{"$f":"'Population 2016'!AQ58/'Population 2016'!AQ$5","v":6.3709102866224589E-3},{"$f":"'Population 2016'!AR58/'Population 2016'!AR$5","v":6.30170805761829E-3},{"$f":"'Population 2016'!AS58/'Population 2016'!AS$5","v":9.1282137174441003E-3},{"$f":"'Population 2016'!AT58/'Population 2016'!AT$5","v":6.2740549375230664E-3},{"$f":"'Population 2016'!AU58/'Population 2016'!AU$5","v":6.2740549375230664E-3},{"$f":"'Population 2016'!AV58/'Population 2016'!AV$5","v":8.6052159222890934E-3},{"$f":"'Population 2016'!AW58/'Population 2016'!AW$5","v":6.0520776130331324E-3},{"$f":"'Population 2016'!AX58/'Population 2016'!AX$5","v":6.1719718363852432E-3},{"$f":"'Population 2016'!AY58/'Population 2016'!AY$5","v":7.3926746427587899E-3},{"$f":"'Population 2016'!AZ58/'Population 2016'!AZ$5","v":8.0595520937002032E-3},{"$f":"'Population 2016'!BA58/'Population 2016'!BA$5","v":5.1554739797020086E-3},{"$f":"'Population 2016'!BB58/'Population 2016'!BB$5","v":4.7368166658610855E-3},{"$f":"'Population 2016'!BC58/'Population 2016'!BC$5","v":9.2949143540034529E-3},56]
[null,"Male 90+",{"$f":"'Population 2016'!C59/'Population 2016'!C$5","v":2.2693237517441593E-3},{"$f":"'Population 2016'!D59/'Population 2016'!D$5","v":2.586974169380789E-3},{"$f":"'Population 2016'!E59/'Population 2016'!E$5","v":2.8783183870166279E-3},{"$f":"'Population 2016'!F59/'Population 2016'!F$5","v":3.5333505021890293E-3},{"$f":"'Population 2016'!G59/'Population 2016'!G$5","v":3.1397174254317113E-3},{"$f":"'Population 2016'!H59/'Population 2016'!H$5","v":2.9473465774789002E-3},{"$f":"'Population 2016'!I59/'Population 2016'!I$5","v":3.2346537140942968E-3},{"$f":"'Population 2016'!J59/'Population 2016'!J$5","v":2.3718102883491039E-3},{"$f":"'Population 2016'!K59/'Population 2016'!K$5","v":2.386240136086566E-3},{"$f":"'Population 2016'!L59/'Population 2016'!L$5","v":3.8123679570473208E-3},{"$f":"'Population 2016'!M59/'Population 2016'!M$5","v":3.8123679570473208E-3},{"$f":"'Population 2016'!N59/'Population 2016'!N$5","v":2.8451788685189801E-3},{"$f":"'Population 2016'!O59/'Population 2016'!O$5","v":2.4667875293488276E-3},{"$f":"'Population 2016'!P59/'Population 2016'!P$5","v":3.7980389947030319E-3},{"$f":"'Population 2016'!Q59/'Population 2016'!Q$5","v":3.0316917545034723E-3},{"$f":"'Population 2016'!R59/'Population 2016'!R$5","v":3.4731463245861499E-3},{"$f":"'Population 2016'!S59/'Population 2016'!S$5","v":2.7097591933214586E-3},{"$f":"'Population 2016'!T59/'Population 2016'!T$5","v":2.7105252137010652E-3},{"$f":"'Population 2016'!U59/'Population 2016'!U$5","v":3.1425662815916435E-3},{"$f":"'Population 2016'!V59/'Population 2016'!V$5","v":2.5110478472916554E-3},{"$f":"'Population 2016'!W59/'Population 2016'!W$5","v":2.8958223024075202E-3},{"$f":"'Population 2016'!X59/'Population 2016'!X$5","v":2.8958223024075202E-3},{"$f":"'Population 2016'!Y59/'Population 2016'!Y$5","v":2.4443172604569083E-3},{"$f":"'Population 2016'!Z59/'Population 2016'!Z$5","v":1.8428790726756398E-3},{"$f":"'Population 2016'!AA59/'Population 2016'!AA$5","v":2.2848114847819861E-3},{"$f":"'Population 2016'!AB59/'Population 2016'!AB$5","v":2.6815962662354279E-3},{"$f":"'Population 2016'!AC59/'Population 2016'!AC$5","v":2.3943932928027537E-3},{"$f":"'Population 2016'!AD59/'Population 2016'!AD$5","v":3.126279355390971E-3},{"$f":"'Population 2016'!AE59/'Population 2016'!AE$5","v":3.1211819423197363E-3},{"$f":"'Population 2016'!AF59/'Population 2016'!AF$5","v":2.8653727246678428E-3},{"$f":"'Population 2016'!AG59/'Population 2016'!AG$5","v":3.1211819423197363E-3},{"$f":"'Population 2016'!AH59/'Population 2016'!AH$5","v":2.0879968048447472E-3},{"$f":"'Population 2016'!AI59/'Population 2016'!AI$5","v":2.5633804357336602E-3},{"$f":"'Population 2016'!AJ59/'Population 2016'!AJ$5","v":2.4258985584028107E-3},{"$f":"'Population 2016'!AK59/'Population 2016'!AK$5","v":3.1680977584451178E-3},{"$f":"'Population 2016'!AL59/'Population 2016'!AL$5","v":2.6516024902005996E-3},{"$f":"'Population 2016'!AM59/'Population 2016'!AM$5","v":1.8834369827339537E-3},{"$f":"'Population 2016'!AN59/'Population 2016'!AN$5","v":3.654412566815752E-3},{"$f":"'Population 2016'!AO59/'Population 2016'!AO$5","v":3.654412566815752E-3},{"$f":"'Population 2016'!AP59/'Population 2016'!AP$5","v":3.7569551226162359E-3},{"$f":"'Population 2016'!AQ59/'Population 2016'!AQ$5","v":2.8360826437222558E-3},{"$f":"'Population 2016'!AR59/'Population 2016'!AR$5","v":2.6771176062643262E-3},{"$f":"'Population 2016'!AS59/'Population 2016'!AS$5","v":3.2346537140942968E-3},{"$f":"'Population 2016'!AT59/'Population 2016'!AT$5","v":2.3725417830969581E-3},{"$f":"'Population 2016'!AU59/'Population 2016'!AU$5","v":2.3725417830969581E-3},{"$f":"'Population 2016'!AV59/'Population 2016'!AV$5","v":3.8116355189525921E-3},{"$f":"'Population 2016'!AW59/'Population 2016'!AW$5","v":2.3033742144121057E-3},{"$f":"'Population 2016'!AX59/'Population 2016'!AX$5","v":2.3640057758411389E-3},{"$f":"'Population 2016'!AY59/'Population 2016'!AY$5","v":3.1470885223830358E-3},{"$f":"'Population 2016'!AZ59/'Population 2016'!AZ$5","v":3.3682139549332398E-3},{"$f":"'Population 2016'!BA59/'Population 2016'!BA$5","v":2.1728568343770244E-3},{"$f":"'Population 2016'!BB59/'Population 2016'!BB$5","v":1.9195845963693612E-3},{"$f":"'Population 2016'!BC59/'Population 2016'!BC$5","v":3.1425662815916435E-3},57]
["SIMD Q1 (most deprived)","Female 0-4",{"$f":"'Population 2016'!C60/'Population 2016'!C$5","v":0},{"$f":"'Population 2016'!D60/'Population 2016'!D$5","v":0},{"$f":"'Population 2016'!E60/'Population 2016'!E$5","v":0},{"$f":"'Population 2016'!F60/'Population 2016'!F$5","v":0},{"$f":"'Population 2016'!G60/'Population 2016'!G$5","v":0},{"$f":"'Population 2016'!H60/'Population 2016'!H$5","v":0},{"$f":"'Population 2016'!I60/'Population 2016'!I$5","v":0},{"$f":"'Population 2016'!J60/'Population 2016'!J$5","v":0},{"$f":"'Population 2016'!K60/'Population 2016'!K$5","v":0},{"$f":"'Population 2016'!L60/'Population 2016'!L$5","v":0},{"$f":"'Population 2016'!M60/'Population 2016'!M$5","v":0},{"$f":"'Population 2016'!N60/'Population 2016'!N$5","v":0},{"$f":"'Population 2016'!O60/'Population 2016'!O$5","v":0},{"$f":"'Population 2016'!P60/'Population 2016'!P$5","v":0},{"$f":"'Population 2016'!Q60/'Population 2016'!Q$5","v":0},{"$f":"'Population 2016'!R60/'Population 2016'!R$5","v":0},{"$f":"'Population 2016'!S60/'Population 2016'!S$5","v":0},{"$f":"'Population 2016'!T60/'Population 2016'!T$5","v":0},{"$f":"'Population 2016'!U60/'Population 2016'!U$5","v":0},{"$f":"'Population 2016'!V60/'Population 2016'!V$5","v":0},{"$f":"'Population 2016'!W60/'Population 2016'!W$5","v":0},{"$f":"'Population 2016'!X60/'Population 2016'!X$5","v":0},{"$f":"'Population 2016'!Y60/'Population 2016'!Y$5","v":0},{"$f":"'Population 2016'!Z60/'Population 2016'!Z$5","v":0},{"$f":"'Population 2016'!AA60/'Population 2016'!AA$5","v":0},{"$f":"'Population 2016'!AB60/'Population 2016'!AB$5","v":0},{"$f":"'Population 2016'!AC60/'Population 2016'!AC$5","v":0},{"$f":"'Population 2016'!AD60/'Population 2016'!AD$5","v":0},{"$f":"'Population 2016'!AE60/'Population 2016'!AE$5","v":0},{"$f":"'Population 2016'!AF60/'Population 2016'!AF$5","v":0},{"$f":"'Population 2016'!AG60/'Population 2016'!AG$5","v":0},{"$f":"'Population 2016'!AH60/'Population 2016'!AH$5","v":0},{"$f":"'Population 2016'!AI60/'Population 2016'!AI$5","v":0},{"$f":"'Population 2016'!AJ60/'Population 2016'!AJ$5","v":0},{"$f":"'Population 2016'!AK60/'Population 2016'!AK$5","v":0},{"$f":"'Population 2016'!AL60/'Population 2016'!AL$5","v":0},{"$f":"'Population 2016'!AM60/'Population 2016'!AM$5","v":0},{"$f":"'Population 2016'!AN60/'Population 2016'!AN$5","v":0},{"$f":"'Population 2016'!AO60/'Population 2016'!AO$5","v":0},{"$f":"'Population 2016'!AP60/'Population 2016'!AP$5","v":0},{"$f":"'Population 2016'!AQ60/'Population 2016'!AQ$5","v":0},{"$f":"'Population 2016'!AR60/'Population 2016'!AR$5","v":0},{"$f":"'Population 2016'!AS60/'Population 2016'!AS$5","v":0},{"$f":"'Population 2016'!AT60/'Population 2016'!AT$5","v":0},{"$f":"'Population 2016'!AU60/'Population 2016'!AU$5","v":0},{"$f":"'Population 2016'!AV60/'Population 2016'!AV$5","v":0},{"$f":"'Population 2016'!AW60/'Population 2016'!AW$5","v":0},{"$f":"'Population 2016'!AX60/'Population 2016'!AX$5","v":0},{"$f":"'Population 2016'!AY60/'Population 2016'!AY$5","v":0},{"$f":"'Population 2016'!AZ60/'Population 2016'!AZ$5","v":0},{"$f":"'Population 2016'!BA60/'Population 2016'!BA$5","v":0},{"$f":"'Population 2016'!BB60/'Population 2016'!BB$5","v":0},{"$f":"'Population 2016'!BC60/'Population 2016'!BC$5","v":0},58]
[null,"Female 5-9",{"$f":"'Population 2016'!C61/'Population 2016'!C$5","v":0},{"$f":"'Population 2016'!D61/'Population 2016'!D$5","v":0},{"$f":"'Population 2016'!E61/'Population 2016'!E$5","v":0},{"$f":"'Population 2016'!F61/'Population 2016'!F$5","v":0},{"$f":"'Population 2016'!G61/'Population 2016'!G$5","v":0},{"$f":"'Population 2016'!H61/'Population 2016'!H$5","v":0},{"$f":"'Population 2016'!I61/'Population 2016'!I$5","v":0},{"$f":"'Population 2016'!J61/'Population 2016'!J$5","v":0},{"$f":"'Population 2016'!K61/'Population 2016'!K$5","v":0},{"$f":"'Population 2016'!L61/'Population 2016'!L$5","v":0},{"$f":"'Population 2016'!M61/'Population 2016'!M$5","v":0},{"$f":"'Population 2016'!N61/'Population 2016'!N$5","v":0},{"$f":"'Population 2016'!O61/'Population 2016'!O$5","v":0},{"$f":"'Population 2016'!P61/'Population 2016'!P$5","v":0},{"$f":"'Population 2016'!Q61/'Population 2016'!Q$5","v":0},{"$f":"'Population 2016'!R61/'Population 2016'!R$5","v":0},{"$f":"'Population 2016'!S61/'Population 2016'!S$5","v":0},{"$f":"'Population 2016'!T61/'Population 2016'!T$5","v":0},{"$f":"'Population 2016'!U61/'Population 2016'!U$5","v":0},{"$f":"'Population 2016'!V61/'Population 2016'!V$5","v":0},{"$f":"'Population 2016'!W61/'Population 2016'!W$5","v":0},{"$f":"'Population 2016'!X61/'Population 2016'!X$5","v":0},{"$f":"'Population 2016'!Y61/'Population 2016'!Y$5","v":0},{"$f":"'Population 2016'!Z61/'Population 2016'!Z$5","v":0},{"$f":"'Population 2016'!AA61/'Population 2016'!AA$5","v":0},{"$f":"'Population 2016'!AB61/'Population 2016'!AB$5","v":0},{"$f":"'Population 2016'!AC61/'Population 2016'!AC$5","v":0},{"$f":"'Population 2016'!AD61/'Population 2016'!AD$5","v":0},{"$f":"'Population 2016'!AE61/'Population 2016'!AE$5","v":0},{"$f":"'Population 2016'!AF61/'Population 2016'!AF$5","v":0},{"$f":"'Population 2016'!AG61/'Population 2016'!AG$5","v":0},{"$f":"'Population 2016'!AH61/'Population 2016'!AH$5","v":0},{"$f":"'Population 2016'!AI61/'Population 2016'!AI$5","v":0},{"$f":"'Population 2016'!AJ61/'Population 2016'!AJ$5","v":0},{"$f":"'Population 2016'!AK61/'Population 2016'!AK$5","v":0},{"$f":"'Population 2016'!AL61/'Population 2016'!AL$5","v":0},{"$f":"'Population 2016'!AM61/'Population 2016'!AM$5","v":0},{"$f":"'Population 2016'!AN61/'Population 2016'!AN$5","v":0},{"$f":"'Population 2016'!AO61/'Population 2016'!AO$5","v":0},{"$f":"'Population 2016'!AP61/'Population 2016'!AP$5","v":0},{"$f":"'Population 2016'!AQ61/'Population 2016'!AQ$5","v":0},{"$f":"'Population 2016'!AR61/'Population 2016'!AR$5","v":0},{"$f":"'Population 2016'!AS61/'Population 2016'!AS$5","v":0},{"$f":"'Population 2016'!AT61/'Population 2016'!AT$5","v":0},{"$f":"'Population 2016'!AU61/'Population 2016'!AU$5","v":0},{"$f":"'Population 2016'!AV61/'Population 2016'!AV$5","v":0},{"$f":"'Population 2016'!AW61/'Population 2016'!AW$5","v":0},{"$f":"'Population 2016'!AX61/'Population 2016'!AX$5","v":0},{"$f":"'Population 2016'!AY61/'Population 2016'!AY$5","v":0},{"$f":"'Population 2016'!AZ61/'Population 2016'!AZ$5","v":0},{"$f":"'Population 2016'!BA61/'Population 2016'!BA$5","v":0},{"$f":"'Population 2016'!BB61/'Population 2016'!BB$5","v":0},{"$f":"'Population 2016'!BC61/'Population 2016'!BC$5","v":0},59]
[null,"Female 10-15",{"$f":"'Population 2016'!C62/'Population 2016'!C$5","v":0},{"$f":"'Population 2016'!D62/'Population 2016'!D$5","v":0},{"$f":"'Population 2016'!E62/'Population 2016'!E$5","v":0},{"$f":"'Population 2016'!F62/'Population 2016'!F$5","v":0},{"$f":"'Population 2016'!G62/'Population 2016'!G$5","v":0},{"$f":"'Population 2016'!H62/'Population 2016'!H$5","v":0},{"$f":"'Population 2016'!I62/'Population 2016'!I$5","v":0},{"$f":"'Population 2016'!J62/'Population 2016'!J$5","v":0},{"$f":"'Population 2016'!K62/'Population 2016'!K$5","v":0},{"$f":"'Population 2016'!L62/'Population 2016'!L$5","v":0},{"$f":"'Population 2016'!M62/'Population 2016'!M$5","v":0},{"$f":"'Population 2016'!N62/'Population 2016'!N$5","v":0},{"$f":"'Population 2016'!O62/'Population 2016'!O$5","v":0},{"$f":"'Population 2016'!P62/'Population 2016'!P$5","v":0},{"$f":"'Population 2016'!Q62/'Population 2016'!Q$5","v":0},{"$f":"'Population 2016'!R62/'Population 2016'!R$5","v":0},{"$f":"'Population 2016'!S62/'Population 2016'!S$5","v":0},{"$f":"'Population 2016'!T62/'Population 2016'!T$5","v":0},{"$f":"'Population 2016'!U62/'Population 2016'!U$5","v":0},{"$f":"'Population 2016'!V62/'Population 2016'!V$5","v":0},{"$f":"'Population 2016'!W62/'Population 2016'!W$5","v":0},{"$f":"'Population 2016'!X62/'Population 2016'!X$5","v":0},{"$f":"'Population 2016'!Y62/'Population 2016'!Y$5","v":0},{"$f":"'Population 2016'!Z62/'Population 2016'!Z$5","v":0},{"$f":"'Population 2016'!AA62/'Population 2016'!AA$5","v":0},{"$f":"'Population 2016'!AB62/'Population 2016'!AB$5","v":0},{"$f":"'Population 2016'!AC62/'Population 2016'!AC$5","v":0},{"$f":"'Population 2016'!AD62/'Population 2016'!AD$5","v":0},{"$f":"'Population 2016'!AE62/'Population 2016'!AE$5","v":0},{"$f":"'Population 2016'!AF62/'Population 2016'!AF$5","v":0},{"$f":"'Population 2016'!AG62/'Population 2016'!AG$5","v":0},{"$f":"'Population 2016'!AH62/'Population 2016'!AH$5","v":0},{"$f":"'Population 2016'!AI62/'Population 2016'!AI$5","v":0},{"$f":"'Population 2016'!AJ62/'Population 2016'!AJ$5","v":0},{"$f":"'Population 2016'!AK62/'Population 2016'!AK$5","v":0},{"$f":"'Population 2016'!AL62/'Population 2016'!AL$5","v":0},{"$f":"'Population 2016'!AM62/'Population 2016'!AM$5","v":0},{"$f":"'Population 2016'!AN62/'Population 2016'!AN$5","v":0},{"$f":"'Population 2016'!AO62/'Population 2016'!AO$5","v":0},{"$f":"'Population 2016'!AP62/'Population 2016'!AP$5","v":0},{"$f":"'Population 2016'!AQ62/'Population 2016'!AQ$5","v":0},{"$f":"'Population 2016'!AR62/'Population 2016'!AR$5","v":0},{"$f":"'Population 2016'!AS62/'Population 2016'!AS$5","v":0},{"$f":"'Population 2016'!AT62/'Population 2016'!AT$5","v":0},{"$f":"'Population 2016'!AU62/'Population 2016'!AU$5","v":0},{"$f":"'Population 2016'!AV62/'Population 2016'!AV$5","v":0},{"$f":"'Population 2016'!AW62/'Population 2016'!AW$5","v":0},{"$f":"'Population 2016'!AX62/'Population 2016'!AX$5","v":0},{"$f":"'Population 2016'!AY62/'Population 2016'!AY$5","v":0},{"$f":"'Population 2016'!AZ62/'Population 2016'!AZ$5","v":0},{"$f":"'Population 2016'!BA62/'Population 2016'!BA$5","v":0},{"$f":"'Population 2016'!BB62/'Population 2016'!BB$5","v":0},{"$f":"'Population 2016'!BC62/'Population 2016'!BC$5","v":0},60]
[null,"Female 16-19",{"$f":"'Population 2016'!C63/'Population 2016'!C$5","v":1.8757698578606001E-3},{"$f":"'Population 2016'!D63/'Population 2016'!D$5","v":1.1712293262130416E-3},{"$f":"'Population 2016'!E63/'Population 2016'!E$5","v":5.2503527580759332E-4},{"$f":"'Population 2016'!F63/'Population 2016'!F$5","v":2.286891578676281E-3},{"$f":"'Population 2016'!G63/'Population 2016'!G$5","v":1.9758566556596115E-3},{"$f":"'Population 2016'!H63/'Population 2016'!H$5","v":8.7869188393485363E-3},{"$f":"'Population 2016'!I63/'Population 2016'!I$5","v":1.7691148145046478E-3},{"$f":"'Population 2016'!J63/'Population 2016'!J$5","v":4.9260675219558311E-3},{"$f":"'Population 2016'!K63/'Population 2016'!K$5","v":6.4735623493833577E-3},{"$f":"'Population 2016'!L63/'Population 2016'!L$5","v":2.5018664718123042E-3},{"$f":"'Population 2016'!M63/'Population 2016'!M$5","v":2.5018664718123042E-3},{"$f":"'Population 2016'!N63/'Population 2016'!N$5","v":1.0118870608659311E-2},{"$f":"'Population 2016'!O63/'Population 2016'!O$5","v":8.6188961868814452E-3},{"$f":"'Population 2016'!P63/'Population 2016'!P$5","v":1.2735264284909275E-3},{"$f":"'Population 2016'!Q63/'Population 2016'!Q$5","v":9.7531168846429542E-4},{"$f":"'Population 2016'!R63/'Population 2016'!R$5","v":2.2222813647735135E-3},{"$f":"'Population 2016'!S63/'Population 2016'!S$5","v":3.9799036490835368E-3},{"$f":"'Population 2016'!T63/'Population 2016'!T$5","v":3.4992531514218043E-3},{"$f":"'Population 2016'!U63/'Population 2016'!U$5","v":0},{"$f":"'Population 2016'!V63/'Population 2016'!V$5","v":3.6177406675265795E-3},{"$f":"'Population 2016'!W63/'Population 2016'!W$5","v":5.9779446852182326E-3},{"$f":"'Population 2016'!X63/'Population 2016'!X$5","v":5.9779446852182326E-3},{"$f":"'Population 2016'!Y63/'Population 2016'!Y$5","v":4.2447655840129727E-3},{"$f":"'Population 2016'!Z63/'Population 2016'!Z$5","v":1.1651564221044828E-2},{"$f":"'Population 2016'!AA63/'Population 2016'!AA$5","v":8.525356491050436E-3},{"$f":"'Population 2016'!AB63/'Population 2016'!AB$5","v":1.0132749250278906E-3},{"$f":"'Population 2016'!AC63/'Population 2016'!AC$5","v":9.141100614164465E-3},{"$f":"'Population 2016'!AD63/'Population 2016'!AD$5","v":2.0432468644162416E-3},{"$f":"'Population 2016'!AE63/'Population 2016'!AE$5","v":2.0688097413731148E-3},{"$f":"'Population 2016'!AF63/'Population 2016'!AF$5","v":1.0375665445113031E-2},{"$f":"'Population 2016'!AG63/'Population 2016'!AG$5","v":2.0688097413731148E-3},{"$f":"'Population 2016'!AH63/'Population 2016'!AH$5","v":7.4194477211298217E-3},{"$f":"'Population 2016'!AI63/'Population 2016'!AI$5","v":3.4328790795345177E-3},{"$f":"'Population 2016'!AJ63/'Population 2016'!AJ$5","v":2.8580988762791737E-3},{"$f":"'Population 2016'!AK63/'Population 2016'!AK$5","v":2.0114906402826145E-4},{"$f":"'Population 2016'!AL63/'Population 2016'!AL$5","v":1.1980986502545183E-2},{"$f":"'Population 2016'!AM63/'Population 2016'!AM$5","v":9.196243267618285E-3},{"$f":"'Population 2016'!AN63/'Population 2016'!AN$5","v":0},{"$f":"'Population 2016'!AO63/'Population 2016'!AO$5","v":0},{"$f":"'Population 2016'!AP63/'Population 2016'!AP$5","v":1.45047001569361E-3},{"$f":"'Population 2016'!AQ63/'Population 2016'!AQ$5","v":7.1655614621581633E-3},{"$f":"'Population 2016'!AR63/'Population 2016'!AR$5","v":5.378295186022581E-3},{"$f":"'Population 2016'!AS63/'Population 2016'!AS$5","v":1.7691148145046478E-3},{"$f":"'Population 2016'!AT63/'Population 2016'!AT$5","v":0},{"$f":"'Population 2016'!AU63/'Population 2016'!AU$5","v":0},{"$f":"'Population 2016'!AV63/'Population 2016'!AV$5","v":5.1631295533734562E-3},{"$f":"'Population 2016'!AW63/'Population 2016'!AW$5","v":5.5486911953139297E-3},{"$f":"'Population 2016'!AX63/'Population 2016'!AX$5","v":4.089091071725213E-3},{"$f":"'Population 2016'!AY63/'Population 2016'!AY$5","v":5.344083718368471E-3},{"$f":"'Population 2016'!AZ63/'Population 2016'!AZ$5","v":4.786257917172426E-3},{"$f":"'Population 2016'!BA63/'Population 2016'!BA$5","v":1.0864284171885123E-2},{"$f":"'Population 2016'!BB63/'Population 2016'!BB$5","v":4.9646810244229162E-3},{"$f":"'Population 2016'!BC63/'Population 2016'!BC$5","v":0},61]
[null,"Female 20-24",{"$f":"'Population 2016'!C64/'Population 2016'!C$5","v":3.9968720132070555E-3},{"$f":"'Population 2016'!D64/'Population 2016'!D$5","v":2.4011423764952124E-3},{"$f":"'Population 2016'!E64/'Population 2016'!E$5","v":9.3756299251355948E-4},{"$f":"'Population 2016'!F64/'Population 2016'!F$5","v":3.2964202935874326E-3},{"$f":"'Population 2016'!G64/'Population 2016'!G$5","v":2.8149190710767065E-3},{"$f":"'Population 2016'!H64/'Population 2016'!H$5","v":1.315443901521661E-2},{"$f":"'Population 2016'!I64/'Population 2016'!I$5","v":2.271585294363956E-3},{"$f":"'Population 2016'!J64/'Population 2016'!J$5","v":7.9364421187066176E-3},{"$f":"'Population 2016'!K64/'Population 2016'!K$5","v":1.0442753862873884E-2},{"$f":"'Population 2016'!L64/'Population 2016'!L$5","v":3.9871014884119895E-3},{"$f":"'Population 2016'!M64/'Population 2016'!M$5","v":3.9871014884119895E-3},{"$f":"'Population 2016'!N64/'Population 2016'!N$5","v":1.7231817779956759E-2},{"$f":"'Population 2016'!O64/'Population 2016'!O$5","v":1.3502937359447598E-2},{"$f":"'Population 2016'!P64/'Population 2016'!P$5","v":1.9948157331229573E-3},{"$f":"'Population 2016'!Q64/'Population 2016'!Q$5","v":1.41008918814115E-3},{"$f":"'Population 2016'!R64/'Population 2016'!R$5","v":3.0473199552882311E-3},{"$f":"'Population 2016'!S64/'Population 2016'!S$5","v":5.5272026282016202E-3},{"$f":"'Population 2016'!T64/'Population 2016'!T$5","v":5.5280754572993394E-3},{"$f":"'Population 2016'!U64/'Population 2016'!U$5","v":0},{"$f":"'Population 2016'!V64/'Population 2016'!V$5","v":5.922714679326215E-3},{"$f":"'Population 2016'!W64/'Population 2016'!W$5","v":7.3474136973048585E-3},{"$f":"'Population 2016'!X64/'Population 2016'!X$5","v":7.3474136973048585E-3},{"$f":"'Population 2016'!Y64/'Population 2016'!Y$5","v":6.887807824994833E-3},{"$f":"'Population 2016'!Z64/'Population 2016'!Z$5","v":1.9838051194096592E-2},{"$f":"'Population 2016'!AA64/'Population 2016'!AA$5","v":1.3587951290131196E-2},{"$f":"'Population 2016'!AB64/'Population 2016'!AB$5","v":2.081819391420939E-3},{"$f":"'Population 2016'!AC64/'Population 2016'!AC$5","v":1.548236423324597E-2},{"$f":"'Population 2016'!AD64/'Population 2016'!AD$5","v":3.0183482824072353E-3},{"$f":"'Population 2016'!AE64/'Population 2016'!AE$5","v":3.0955143276625015E-3},{"$f":"'Population 2016'!AF64/'Population 2016'!AF$5","v":1.7086669984466663E-2},{"$f":"'Population 2016'!AG64/'Population 2016'!AG$5","v":3.0955143276625015E-3},{"$f":"'Population 2016'!AH64/'Population 2016'!AH$5","v":1.0185486193028245E-2},{"$f":"'Population 2016'!AI64/'Population 2016'!AI$5","v":5.1910162743897103E-3},{"$f":"'Population 2016'!AJ64/'Population 2016'!AJ$5","v":4.5450743105707831E-3},{"$f":"'Population 2016'!AK64/'Population 2016'!AK$5","v":4.4001357756182189E-4},{"$f":"'Population 2016'!AL64/'Population 2016'!AL$5","v":1.7257586775686846E-2},{"$f":"'Population 2016'!AM64/'Population 2016'!AM$5","v":1.2401708132463572E-2},{"$f":"'Population 2016'!AN64/'Population 2016'!AN$5","v":0},{"$f":"'Population 2016'!AO64/'Population 2016'!AO$5","v":0},{"$f":"'Population 2016'!AP64/'Population 2016'!AP$5","v":2.5838974050061032E-3},{"$f":"'Population 2016'!AQ64/'Population 2016'!AQ$5","v":1.3187099249191647E-2},{"$f":"'Population 2016'!AR64/'Population 2016'!AR$5","v":8.3817818771814104E-3},{"$f":"'Population 2016'!AS64/'Population 2016'!AS$5","v":2.271585294363956E-3},{"$f":"'Population 2016'!AT64/'Population 2016'!AT$5","v":0},{"$f":"'Population 2016'!AU64/'Population 2016'!AU$5","v":0},{"$f":"'Population 2016'!AV64/'Population 2016'!AV$5","v":7.8977932636469222E-3},{"$f":"'Population 2016'!AW64/'Population 2016'!AW$5","v":7.8520654097260362E-3},{"$f":"'Population 2016'!AX64/'Population 2016'!AX$5","v":6.5808809435577648E-3},{"$f":"'Population 2016'!AY64/'Population 2016'!AY$5","v":7.707842477280377E-3},{"$f":"'Population 2016'!AZ64/'Population 2016'!AZ$5","v":8.0250358106436718E-3},{"$f":"'Population 2016'!BA64/'Population 2016'!BA$5","v":1.6964478514359751E-2},{"$f":"'Population 2016'!BB64/'Population 2016'!BB$5","v":6.7323560484177239E-3},{"$f":"'Population 2016'!BC64/'Population 2016'!BC$5","v":0},62]
[null,"Female 25-29",{"$f":"'Population 2016'!C65/'Population 2016'!C$5","v":5.2695333064149289E-3},{"$f":"'Population 2016'!D65/'Population 2016'!D$5","v":3.1029019101552185E-3},{"$f":"'Population 2016'!E65/'Population 2016'!E$5","v":1.1156999610911359E-3},{"$f":"'Population 2016'!F65/'Population 2016'!F$5","v":3.0800927118207573E-3},{"$f":"'Population 2016'!G65/'Population 2016'!G$5","v":2.3277215395441997E-3},{"$f":"'Population 2016'!H65/'Population 2016'!H$5","v":1.3173893448071254E-2},{"$f":"'Population 2016'!I65/'Population 2016'!I$5","v":2.1354995394020602E-3},{"$f":"'Population 2016'!J65/'Population 2016'!J$5","v":8.4091455677831866E-3},{"$f":"'Population 2016'!K65/'Population 2016'!K$5","v":1.0111987903416339E-2},{"$f":"'Population 2016'!L65/'Population 2016'!L$5","v":4.0029863548996869E-3},{"$f":"'Population 2016'!M65/'Population 2016'!M$5","v":4.0029863548996869E-3},{"$f":"'Population 2016'!N65/'Population 2016'!N$5","v":2.2447979038908224E-2},{"$f":"'Population 2016'!O65/'Population 2016'!O$5","v":1.3889301671273318E-2},{"$f":"'Population 2016'!P65/'Population 2016'!P$5","v":2.1638679138960893E-3},{"$f":"'Population 2016'!Q65/'Population 2016'!Q$5","v":1.6098518231278129E-3},{"$f":"'Population 2016'!R65/'Population 2016'!R$5","v":2.9275562889231914E-3},{"$f":"'Population 2016'!S65/'Population 2016'!S$5","v":7.1009813388505328E-3},{"$f":"'Population 2016'!T65/'Population 2016'!T$5","v":8.3246860211351175E-3},{"$f":"'Population 2016'!U65/'Population 2016'!U$5","v":0},{"$f":"'Population 2016'!V65/'Population 2016'!V$5","v":6.8080689355141544E-3},{"$f":"'Population 2016'!W65/'Population 2016'!W$5","v":9.01430915354395E-3},{"$f":"'Population 2016'!X65/'Population 2016'!X$5","v":9.01430915354395E-3},{"$f":"'Population 2016'!Y65/'Population 2016'!Y$5","v":7.5753962576111666E-3},{"$f":"'Population 2016'!Z65/'Population 2016'!Z$5","v":2.7408954611359646E-2},{"$f":"'Population 2016'!AA65/'Population 2016'!AA$5","v":1.6648761557764406E-2},{"$f":"'Population 2016'!AB65/'Population 2016'!AB$5","v":2.6447499053253226E-3},{"$f":"'Population 2016'!AC65/'Population 2016'!AC$5","v":1.9863638526253512E-2},{"$f":"'Population 2016'!AD65/'Population 2016'!AD$5","v":2.8545907923629463E-3},{"$f":"'Population 2016'!AE65/'Population 2016'!AE$5","v":3.0544461442109263E-3},{"$f":"'Population 2016'!AF65/'Population 2016'!AF$5","v":1.7237479075238656E-2},{"$f":"'Population 2016'!AG65/'Population 2016'!AG$5","v":3.0544461442109263E-3},{"$f":"'Population 2016'!AH65/'Population 2016'!AH$5","v":1.0874673750499242E-2},{"$f":"'Population 2016'!AI65/'Population 2016'!AI$5","v":6.9491534692449029E-3},{"$f":"'Population 2016'!AJ65/'Population 2016'!AJ$5","v":4.6984357136882022E-3},{"$f":"'Population 2016'!AK65/'Population 2016'!AK$5","v":2.8915177954062581E-4},{"$f":"'Population 2016'!AL65/'Population 2016'!AL$5","v":1.7293059718699561E-2},{"$f":"'Population 2016'!AM65/'Population 2016'!AM$5","v":1.3470196420745335E-2},{"$f":"'Population 2016'!AN65/'Population 2016'!AN$5","v":0},{"$f":"'Population 2016'!AO65/'Population 2016'!AO$5","v":0},{"$f":"'Population 2016'!AP65/'Population 2016'!AP$5","v":3.1783523294706974E-3},{"$f":"'Population 2016'!AQ65/'Population 2016'!AQ$5","v":1.4968213952978572E-2},{"$f":"'Population 2016'!AR65/'Population 2016'!AR$5","v":1.0053727257477139E-2},{"$f":"'Population 2016'!AS65/'Population 2016'!AS$5","v":2.1354995394020602E-3},{"$f":"'Population 2016'!AT65/'Population 2016'!AT$5","v":0},{"$f":"'Population 2016'!AU65/'Population 2016'!AU$5","v":0},{"$f":"'Population 2016'!AV65/'Population 2016'!AV$5","v":7.5071270193221417E-3},{"$f":"'Population 2016'!AW65/'Population 2016'!AW$5","v":8.1418939532613335E-3},{"$f":"'Population 2016'!AX65/'Population 2016'!AX$5","v":7.4881480250967962E-3},{"$f":"'Population 2016'!AY65/'Population 2016'!AY$5","v":9.563660842691472E-3},{"$f":"'Population 2016'!AZ65/'Population 2016'!AZ$5","v":1.0047114726372167E-2},{"$f":"'Population 2016'!BA65/'Population 2016'!BA$5","v":1.7625782768300582E-2},{"$f":"'Population 2016'!BB65/'Population 2016'!BB$5","v":7.1190349599165878E-3},{"$f":"'Population 2016'!BC65/'Population 2016'!BC$5","v":0},63]
[null,"Female 30-34",{"$f":"'Population 2016'!C66/'Population 2016'!C$5","v":4.6306471150455147E-3},{"$f":"'Population 2016'!D66/'Population 2016'!D$5","v":2.7899220484531948E-3},{"$f":"'Population 2016'!E66/'Population 2016'!E$5","v":1.1016365162034325E-3},{"$f":"'Population 2016'!F66/'Population 2016'!F$5","v":3.4200360545969611E-3},{"$f":"'Population 2016'!G66/'Population 2016'!G$5","v":2.7201862177231636E-3},{"$f":"'Population 2016'!H66/'Population 2016'!H$5","v":1.169211414564237E-2},{"$f":"'Population 2016'!I66/'Population 2016'!I$5","v":2.1669039443932667E-3},{"$f":"'Population 2016'!J66/'Population 2016'!J$5","v":7.3559291110687243E-3},{"$f":"'Population 2016'!K66/'Population 2016'!K$5","v":9.6630912441525302E-3},{"$f":"'Population 2016'!L66/'Population 2016'!L$5","v":3.4152462948548916E-3},{"$f":"'Population 2016'!M66/'Population 2016'!M$5","v":3.4152462948548916E-3},{"$f":"'Population 2016'!N66/'Population 2016'!N$5","v":1.7995354481960442E-2},{"$f":"'Population 2016'!O66/'Population 2016'!O$5","v":1.2343844423970438E-2},{"$f":"'Population 2016'!P66/'Population 2016'!P$5","v":1.8595739885044517E-3},{"$f":"'Population 2016'!Q66/'Population 2016'!Q$5","v":1.4570921610791883E-3},{"$f":"'Population 2016'!R66/'Population 2016'!R$5","v":2.8477138446798317E-3},{"$f":"'Population 2016'!S66/'Population 2016'!S$5","v":6.7858725336336721E-3},{"$f":"'Population 2016'!T66/'Population 2016'!T$5","v":8.1967213114754103E-3},{"$f":"'Population 2016'!U66/'Population 2016'!U$5","v":0},{"$f":"'Population 2016'!V66/'Population 2016'!V$5","v":6.6706863785194739E-3},{"$f":"'Population 2016'!W66/'Population 2016'!W$5","v":7.9520718529994313E-3},{"$f":"'Population 2016'!X66/'Population 2016'!X$5","v":7.9520718529994313E-3},{"$f":"'Population 2016'!Y66/'Population 2016'!Y$5","v":6.9990938140888064E-3},{"$f":"'Population 2016'!Z66/'Population 2016'!Z$5","v":2.3208274372172526E-2},{"$f":"'Population 2016'!AA66/'Population 2016'!AA$5","v":1.514393515095103E-2},{"$f":"'Population 2016'!AB66/'Population 2016'!AB$5","v":2.403201539359078E-3},{"$f":"'Population 2016'!AC66/'Population 2016'!AC$5","v":1.7261351906516266E-2},{"$f":"'Population 2016'!AD66/'Population 2016'!AD$5","v":3.1858275335888944E-3},{"$f":"'Population 2016'!AE66/'Population 2016'!AE$5","v":3.3624575200977423E-3},{"$f":"'Population 2016'!AF66/'Population 2016'!AF$5","v":1.6860456348308676E-2},{"$f":"'Population 2016'!AG66/'Population 2016'!AG$5","v":3.3624575200977423E-3},{"$f":"'Population 2016'!AH66/'Population 2016'!AH$5","v":1.1340943499623826E-2},{"$f":"'Population 2016'!AI66/'Population 2016'!AI$5","v":6.9013037011112083E-3},{"$f":"'Population 2016'!AJ66/'Population 2016'!AJ$5","v":4.1268159384323672E-3},{"$f":"'Population 2016'!AK66/'Population 2016'!AK$5","v":4.1486994455828922E-4},{"$f":"'Population 2016'!AL66/'Population 2016'!AL$5","v":1.5013923130132492E-2},{"$f":"'Population 2016'!AM66/'Population 2016'!AM$5","v":1.3618698182845512E-2},{"$f":"'Population 2016'!AN66/'Population 2016'!AN$5","v":0},{"$f":"'Population 2016'!AO66/'Population 2016'!AO$5","v":0},{"$f":"'Population 2016'!AP66/'Population 2016'!AP$5","v":2.8533836374300525E-3},{"$f":"'Population 2016'!AQ66/'Population 2016'!AQ$5","v":1.2769222337918561E-2},{"$f":"'Population 2016'!AR66/'Population 2016'!AR$5","v":9.187345434163335E-3},{"$f":"'Population 2016'!AS66/'Population 2016'!AS$5","v":2.1669039443932667E-3},{"$f":"'Population 2016'!AT66/'Population 2016'!AT$5","v":0},{"$f":"'Population 2016'!AU66/'Population 2016'!AU$5","v":0},{"$f":"'Population 2016'!AV66/'Population 2016'!AV$5","v":7.0425509449899698E-3},{"$f":"'Population 2016'!AW66/'Population 2016'!AW$5","v":8.9427359814509728E-3},{"$f":"'Population 2016'!AX66/'Population 2016'!AX$5","v":6.1080797883895374E-3},{"$f":"'Population 2016'!AY66/'Population 2016'!AY$5","v":8.2066032251155111E-3},{"$f":"'Population 2016'!AZ66/'Population 2016'!AZ$5","v":8.4306021365579218E-3},{"$f":"'Population 2016'!BA66/'Population 2016'!BA$5","v":1.8071150939321962E-2},{"$f":"'Population 2016'!BB66/'Population 2016'!BB$5","v":7.6300035215400869E-3},{"$f":"'Population 2016'!BC66/'Population 2016'!BC$5","v":0},64]
[null,"Female 35-39",{"$f":"'Population 2016'!C67/'Population 2016'!C$5","v":3.3119860160590433E-3},{"$f":"'Population 2016'!D67/'Population 2016'!D$5","v":2.005027239028589E-3},{"$f":"'Population 2016'!E67/'Population 2016'!E$5","v":8.0630417356166112E-4},{"$f":"'Population 2016'!F67/'Population 2016'!F$5","v":3.0697913984032966E-3},{"$f":"'Population 2016'!G67/'Population 2016'!G$5","v":2.3953878633681588E-3},{"$f":"'Population 2016'!H67/'Population 2016'!H$5","v":1.0502151336033176E-2},{"$f":"'Population 2016'!I67/'Population 2016'!I$5","v":2.0098819194372332E-3},{"$f":"'Population 2016'!J67/'Population 2016'!J$5","v":6.4188152558818405E-3},{"$f":"'Population 2016'!K67/'Population 2016'!K$5","v":9.9702310636488219E-3},{"$f":"'Population 2016'!L67/'Population 2016'!L$5","v":2.8672184010293394E-3},{"$f":"'Population 2016'!M67/'Population 2016'!M$5","v":2.8672184010293394E-3},{"$f":"'Population 2016'!N67/'Population 2016'!N$5","v":1.4089261459078451E-2},{"$f":"'Population 2016'!O67/'Population 2016'!O$5","v":1.0847921062799061E-2},{"$f":"'Population 2016'!P67/'Population 2016'!P$5","v":1.7017919531161952E-3},{"$f":"'Population 2016'!Q67/'Population 2016'!Q$5","v":1.7038577690038895E-3},{"$f":"'Population 2016'!R67/'Population 2016'!R$5","v":2.8610209187203916E-3},{"$f":"'Population 2016'!S67/'Population 2016'!S$5","v":5.8228929636292065E-3},{"$f":"'Population 2016'!T67/'Population 2016'!T$5","v":6.5657529210853272E-3},{"$f":"'Population 2016'!U67/'Population 2016'!U$5","v":0},{"$f":"'Population 2016'!V67/'Population 2016'!V$5","v":5.2663313514627426E-3},{"$f":"'Population 2016'!W67/'Population 2016'!W$5","v":7.2264820661659445E-3},{"$f":"'Population 2016'!X67/'Population 2016'!X$5","v":7.2264820661659445E-3},{"$f":"'Population 2016'!Y67/'Population 2016'!Y$5","v":5.818667429770592E-3},{"$f":"'Population 2016'!Z67/'Population 2016'!Z$5","v":1.9237954017069861E-2},{"$f":"'Population 2016'!AA67/'Population 2016'!AA$5","v":1.2946822158751545E-2},{"$f":"'Population 2016'!AB67/'Population 2016'!AB$5","v":1.7276849226738175E-3},{"$f":"'Population 2016'!AC67/'Population 2016'!AC$5","v":1.4532881277395894E-2},{"$f":"'Population 2016'!AD67/'Population 2016'!AD$5","v":2.6015110350217723E-3},{"$f":"'Population 2016'!AE67/'Population 2016'!AE$5","v":2.6796989702152999E-3},{"$f":"'Population 2016'!AF67/'Population 2016'!AF$5","v":1.4975342713658779E-2},{"$f":"'Population 2016'!AG67/'Population 2016'!AG$5","v":2.6796989702152999E-3},{"$f":"'Population 2016'!AH67/'Population 2016'!AH$5","v":1.0098176718092567E-2},{"$f":"'Population 2016'!AI67/'Population 2016'!AI$5","v":5.7337693586490502E-3},{"$f":"'Population 2016'!AJ67/'Population 2016'!AJ$5","v":3.9037448066252126E-3},{"$f":"'Population 2016'!AK67/'Population 2016'!AK$5","v":3.0172359604239214E-4},{"$f":"'Population 2016'!AL67/'Population 2016'!AL$5","v":1.4029548961529593E-2},{"$f":"'Population 2016'!AM67/'Population 2016'!AM$5","v":1.2188010474807219E-2},{"$f":"'Population 2016'!AN67/'Population 2016'!AN$5","v":0},{"$f":"'Population 2016'!AO67/'Population 2016'!AO$5","v":0},{"$f":"'Population 2016'!AP67/'Population 2016'!AP$5","v":2.3461154352202654E-3},{"$f":"'Population 2016'!AQ67/'Population 2016'!AQ$5","v":1.1268975722036499E-2},{"$f":"'Population 2016'!AR67/'Population 2016'!AR$5","v":7.8056791785212163E-3},{"$f":"'Population 2016'!AS67/'Population 2016'!AS$5","v":2.0098819194372332E-3},{"$f":"'Population 2016'!AT67/'Population 2016'!AT$5","v":0},{"$f":"'Population 2016'!AU67/'Population 2016'!AU$5","v":0},{"$f":"'Population 2016'!AV67/'Population 2016'!AV$5","v":5.9339034948791046E-3},{"$f":"'Population 2016'!AW67/'Population 2016'!AW$5","v":7.8978278113368723E-3},{"$f":"'Population 2016'!AX67/'Population 2016'!AX$5","v":4.4980001788977346E-3},{"$f":"'Population 2016'!AY67/'Population 2016'!AY$5","v":6.9734708240261926E-3},{"$f":"'Population 2016'!AZ67/'Population 2016'!AZ$5","v":6.7508096944733677E-3},{"$f":"'Population 2016'!BA67/'Population 2016'!BA$5","v":1.4967069747354783E-2},{"$f":"'Population 2016'!BB67/'Population 2016'!BB$5","v":6.539016592668292E-3},{"$f":"'Population 2016'!BC67/'Population 2016'!BC$5","v":0},65]
[null,"Female 40-44",{"$f":"'Population 2016'!C68/'Population 2016'!C$5","v":3.3784301799614624E-3},{"$f":"'Population 2016'!D68/'Population 2016'!D$5","v":2.0270336355545124E-3},{"$f":"'Population 2016'!E68/'Population 2016'!E$5","v":7.8755291371139003E-4},{"$f":"'Population 2016'!F68/'Population 2016'!F$5","v":2.6268349214524853E-3},{"$f":"'Population 2016'!G68/'Population 2016'!G$5","v":2.8149190710767065E-3},{"$f":"'Population 2016'!H68/'Population 2016'!H$5","v":1.192232493442235E-2},{"$f":"'Population 2016'!I68/'Population 2016'!I$5","v":2.439075454317059E-3},{"$f":"'Population 2016'!J68/'Population 2016'!J$5","v":6.4188152558818405E-3},{"$f":"'Population 2016'!K68/'Population 2016'!K$5","v":9.6158389642300238E-3},{"$f":"'Population 2016'!L68/'Population 2016'!L$5","v":2.8989881340047339E-3},{"$f":"'Population 2016'!M68/'Population 2016'!M$5","v":2.8989881340047339E-3},{"$f":"'Population 2016'!N68/'Population 2016'!N$5","v":1.1645944012666672E-2},{"$f":"'Population 2016'!O68/'Population 2016'!O$5","v":1.220514954280223E-2},{"$f":"'Population 2016'!P68/'Population 2016'!P$5","v":1.9835455877380819E-3},{"$f":"'Population 2016'!Q68/'Population 2016'!Q$5","v":1.2455787828580158E-3},{"$f":"'Population 2016'!R68/'Population 2016'!R$5","v":2.6747218821525521E-3},{"$f":"'Population 2016'!S68/'Population 2016'!S$5","v":5.3745028430405087E-3},{"$f":"'Population 2016'!T68/'Population 2016'!T$5","v":5.0836889201174486E-3},{"$f":"'Population 2016'!U68/'Population 2016'!U$5","v":0},{"$f":"'Population 2016'!V68/'Population 2016'!V$5","v":6.0448325077659308E-3},{"$f":"'Population 2016'!W68/'Population 2016'!W$5","v":7.4356611038116343E-3},{"$f":"'Population 2016'!X68/'Population 2016'!X$5","v":7.4356611038116343E-3},{"$f":"'Population 2016'!Y68/'Population 2016'!Y$5","v":6.2240663900414933E-3},{"$f":"'Population 2016'!Z68/'Population 2016'!Z$5","v":1.7224724778012439E-2},{"$f":"'Population 2016'!AA68/'Population 2016'!AA$5","v":1.2243241070532842E-2},{"$f":"'Population 2016'!AB68/'Population 2016'!AB$5","v":1.7542961833311157E-3},{"$f":"'Population 2016'!AC68/'Population 2016'!AC$5","v":1.3306207218966491E-2},{"$f":"'Population 2016'!AD68/'Population 2016'!AD$5","v":2.7317726748297294E-3},{"$f":"'Population 2016'!AE68/'Population 2016'!AE$5","v":2.7002330619410875E-3},{"$f":"'Population 2016'!AF68/'Population 2016'!AF$5","v":1.5065828168121975E-2},{"$f":"'Population 2016'!AG68/'Population 2016'!AG$5","v":2.7002330619410875E-3},{"$f":"'Population 2016'!AH68/'Population 2016'!AH$5","v":1.0334098065259189E-2},{"$f":"'Population 2016'!AI68/'Population 2016'!AI$5","v":4.8957148481931926E-3},{"$f":"'Population 2016'!AJ68/'Population 2016'!AJ$5","v":3.959512589577001E-3},{"$f":"'Population 2016'!AK68/'Population 2016'!AK$5","v":3.5201086204945752E-4},{"$f":"'Population 2016'!AL68/'Population 2016'!AL$5","v":1.6290949078590307E-2},{"$f":"'Population 2016'!AM68/'Population 2016'!AM$5","v":1.2550209894563749E-2},{"$f":"'Population 2016'!AN68/'Population 2016'!AN$5","v":0},{"$f":"'Population 2016'!AO68/'Population 2016'!AO$5","v":0},{"$f":"'Population 2016'!AP68/'Population 2016'!AP$5","v":1.9260339552652854E-3},{"$f":"'Population 2016'!AQ68/'Population 2016'!AQ$5","v":1.017975557625911E-2},{"$f":"'Population 2016'!AR68/'Population 2016'!AR$5","v":7.4993600715383213E-3},{"$f":"'Population 2016'!AS68/'Population 2016'!AS$5","v":2.439075454317059E-3},{"$f":"'Population 2016'!AT68/'Population 2016'!AT$5","v":0},{"$f":"'Population 2016'!AU68/'Population 2016'!AU$5","v":0},{"$f":"'Population 2016'!AV68/'Population 2016'!AV$5","v":6.4195966634991025E-3},{"$f":"'Population 2016'!AW68/'Population 2016'!AW$5","v":8.0007932149612545E-3},{"$f":"'Population 2016'!AX68/'Population 2016'!AX$5","v":4.6896763228848537E-3},{"$f":"'Population 2016'!AY68/'Population 2016'!AY$5","v":6.4594106667482639E-3},{"$f":"'Population 2016'!AZ68/'Population 2016'!AZ$5","v":5.6002669259223037E-3},{"$f":"'Population 2016'!BA68/'Population 2016'!BA$5","v":1.4913085726624919E-2},{"$f":"'Population 2016'!BB68/'Population 2016'!BB$5","v":6.9464104458545946E-3},{"$f":"'Population 2016'!BC68/'Population 2016'!BC$5","v":0},66]
[null,"Female 45-49",{"$f":"'Population 2016'!C69/'Population 2016'!C$5","v":3.0359871813874562E-3},{"$f":"'Population 2016'!D69/'Population 2016'!D$5","v":1.9316725839421769E-3},{"$f":"'Population 2016'!E69/'Population 2016'!E$5","v":9.1881173266328828E-4},{"$f":"'Population 2016'!F69/'Population 2016'!F$5","v":3.1315992789080608E-3},{"$f":"'Population 2016'!G69/'Population 2016'!G$5","v":3.2344502787852543E-3},{"$f":"'Population 2016'!H69/'Population 2016'!H$5","v":1.4211463200319052E-2},{"$f":"'Population 2016'!I69/'Population 2016'!I$5","v":2.3762666443346452E-3},{"$f":"'Population 2016'!J69/'Population 2016'!J$5","v":8.1437681928630077E-3},{"$f":"'Population 2016'!K69/'Population 2016'!K$5","v":1.1151538061711477E-2},{"$f":"'Population 2016'!L69/'Population 2016'!L$5","v":3.6376344256826522E-3},{"$f":"'Population 2016'!M69/'Population 2016'!M$5","v":3.6376344256826522E-3},{"$f":"'Population 2016'!N69/'Population 2016'!N$5","v":1.3237315244211185E-2},{"$f":"'Population 2016'!O69/'Population 2016'!O$5","v":1.5127648824560882E-2},{"$f":"'Population 2016'!P69/'Population 2016'!P$5","v":2.378000676208723E-3},{"$f":"'Population 2016'!Q69/'Population 2016'!Q$5","v":1.7978637148799662E-3},{"$f":"'Population 2016'!R69/'Population 2016'!R$5","v":3.2735402139777506E-3},{"$f":"'Population 2016'!S69/'Population 2016'!S$5","v":6.0197256346750322E-3},{"$f":"'Population 2016'!T69/'Population 2016'!T$5","v":5.4187237963174081E-3},{"$f":"'Population 2016'!U69/'Population 2016'!U$5","v":0},{"$f":"'Population 2016'!V69/'Population 2016'!V$5","v":6.0219354149334842E-3},{"$f":"'Population 2016'!W69/'Population 2016'!W$5","v":9.0208459984703789E-3},{"$f":"'Population 2016'!X69/'Population 2016'!X$5","v":9.0208459984703789E-3},{"$f":"'Population 2016'!Y69/'Population 2016'!Y$5","v":7.038838810193797E-3},{"$f":"'Population 2016'!Z69/'Population 2016'!Z$5","v":2.0217467473765106E-2},{"$f":"'Population 2016'!AA69/'Population 2016'!AA$5","v":1.4555292238616967E-2},{"$f":"'Population 2016'!AB69/'Population 2016'!AB$5","v":1.6744624013592213E-3},{"$f":"'Population 2016'!AC69/'Population 2016'!AC$5","v":1.6027437781974716E-2},{"$f":"'Population 2016'!AD69/'Population 2016'!AD$5","v":3.159775205627303E-3},{"$f":"'Population 2016'!AE69/'Population 2016'!AE$5","v":3.1314489881826301E-3},{"$f":"'Population 2016'!AF69/'Population 2016'!AF$5","v":2.0253660890678489E-2},{"$f":"'Population 2016'!AG69/'Population 2016'!AG$5","v":3.1314489881826301E-3},{"$f":"'Population 2016'!AH69/'Population 2016'!AH$5","v":1.191124155931007E-2},{"$f":"'Population 2016'!AI69/'Population 2016'!AI$5","v":5.240233178755797E-3},{"$f":"'Population 2016'!AJ69/'Population 2016'!AJ$5","v":4.3498870702395227E-3},{"$f":"'Population 2016'!AK69/'Population 2016'!AK$5","v":3.5201086204945752E-4},{"$f":"'Population 2016'!AL69/'Population 2016'!AL$5","v":1.8818396268246395E-2},{"$f":"'Population 2016'!AM69/'Population 2016'!AM$5","v":1.4430024883100138E-2},{"$f":"'Population 2016'!AN69/'Population 2016'!AN$5","v":0},{"$f":"'Population 2016'!AO69/'Population 2016'!AO$5","v":0},{"$f":"'Population 2016'!AP69/'Population 2016'!AP$5","v":1.8943296926271736E-3},{"$f":"'Population 2016'!AQ69/'Population 2016'!AQ$5","v":1.2858278073107908E-2},{"$f":"'Population 2016'!AR69/'Population 2016'!AR$5","v":8.732210935569841E-3},{"$f":"'Population 2016'!AS69/'Population 2016'!AS$5","v":2.3762666443346452E-3},{"$f":"'Population 2016'!AT69/'Population 2016'!AT$5","v":0},{"$f":"'Population 2016'!AU69/'Population 2016'!AU$5","v":0},{"$f":"'Population 2016'!AV69/'Population 2016'!AV$5","v":7.7499736036321402E-3},{"$f":"'Population 2016'!AW69/'Population 2016'!AW$5","v":9.2592592592592587E-3},{"$f":"'Population 2016'!AX69/'Population 2016'!AX$5","v":6.5169888955620581E-3},{"$f":"'Population 2016'!AY69/'Population 2016'!AY$5","v":7.5732076741837767E-3},{"$f":"'Population 2016'!AZ69/'Population 2016'!AZ$5","v":6.2992216578170749E-3},{"$f":"'Population 2016'!BA69/'Population 2016'!BA$5","v":1.8557007125890736E-2},{"$f":"'Population 2016'!BB69/'Population 2016'!BB$5","v":7.1742748044164254E-3},{"$f":"'Population 2016'!BC69/'Population 2016'!BC$5","v":0},67]
[null,"Female 50-54",{"$f":"'Population 2016'!C70/'Population 2016'!C$5","v":3.2046531359089816E-3},{"$f":"'Population 2016'!D70/'Population 2016'!D$5","v":1.9854659976722123E-3},{"$f":"'Population 2016'!E70/'Population 2016'!E$5","v":8.6724576807504258E-4},{"$f":"'Population 2016'!F70/'Population 2016'!F$5","v":2.8740664434715427E-3},{"$f":"'Population 2016'!G70/'Population 2016'!G$5","v":3.1532506901965031E-3},{"$f":"'Population 2016'!H70/'Population 2016'!H$5","v":1.4474098043856777E-2},{"$f":"'Population 2016'!I70/'Population 2016'!I$5","v":2.3029896993551628E-3},{"$f":"'Population 2016'!J70/'Population 2016'!J$5","v":7.5052038844613256E-3},{"$f":"'Population 2016'!K70/'Population 2016'!K$5","v":1.0797145962292681E-2},{"$f":"'Population 2016'!L70/'Population 2016'!L$5","v":3.7567709243403811E-3},{"$f":"'Population 2016'!M70/'Population 2016'!M$5","v":3.7567709243403811E-3},{"$f":"'Population 2016'!N70/'Population 2016'!N$5","v":1.4997468273040725E-2},{"$f":"'Population 2016'!O70/'Population 2016'!O$5","v":1.5514013136386602E-2},{"$f":"'Population 2016'!P70/'Population 2016'!P$5","v":2.3892708215935985E-3},{"$f":"'Population 2016'!Q70/'Population 2016'!Q$5","v":1.4688429043136979E-3},{"$f":"'Population 2016'!R70/'Population 2016'!R$5","v":3.4332251024644703E-3},{"$f":"'Population 2016'!S70/'Population 2016'!S$5","v":5.7893519703568234E-3},{"$f":"'Population 2016'!T70/'Population 2016'!T$5","v":4.8696388603230297E-3},{"$f":"'Population 2016'!U70/'Population 2016'!U$5","v":0},{"$f":"'Population 2016'!V70/'Population 2016'!V$5","v":6.4111859930850784E-3},{"$f":"'Population 2016'!W70/'Population 2016'!W$5","v":9.040456533249662E-3},{"$f":"'Population 2016'!X70/'Population 2016'!X$5","v":9.040456533249662E-3},{"$f":"'Population 2016'!Y70/'Population 2016'!Y$5","v":6.9355018203208219E-3},{"$f":"'Population 2016'!Z70/'Population 2016'!Z$5","v":2.1208595714531837E-2},{"$f":"'Population 2016'!AA70/'Population 2016'!AA$5","v":1.4898778001231764E-2},{"$f":"'Population 2016'!AB70/'Population 2016'!AB$5","v":1.7174498224210106E-3},{"$f":"'Population 2016'!AC70/'Population 2016'!AC$5","v":1.6512522211488537E-2},{"$f":"'Population 2016'!AD70/'Population 2016'!AD$5","v":2.9588001042093119E-3},{"$f":"'Population 2016'!AE70/'Population 2016'!AE$5","v":2.8850398874731772E-3},{"$f":"'Population 2016'!AF70/'Population 2016'!AF$5","v":1.9952042709134508E-2},{"$f":"'Population 2016'!AG70/'Population 2016'!AG$5","v":2.8850398874731772E-3},{"$f":"'Population 2016'!AH70/'Population 2016'!AH$5","v":1.2000408682648634E-2},{"$f":"'Population 2016'!AI70/'Population 2016'!AI$5","v":4.8847777583340621E-3},{"$f":"'Population 2016'!AJ70/'Population 2016'!AJ$5","v":4.4195967989292583E-3},{"$f":"'Population 2016'!AK70/'Population 2016'!AK$5","v":3.3943904554769119E-4},{"$f":"'Population 2016'!AL70/'Population 2016'!AL$5","v":1.9527855128500735E-2},{"$f":"'Population 2016'!AM70/'Population 2016'!AM$5","v":1.4640100546558924E-2},{"$f":"'Population 2016'!AN70/'Population 2016'!AN$5","v":0},{"$f":"'Population 2016'!AO70/'Population 2016'!AO$5","v":0},{"$f":"'Population 2016'!AP70/'Population 2016'!AP$5","v":2.0528510058177322E-3},{"$f":"'Population 2016'!AQ70/'Population 2016'!AQ$5","v":1.231709322080342E-2},{"$f":"'Population 2016'!AR70/'Population 2016'!AR$5","v":8.845159144471898E-3},{"$f":"'Population 2016'!AS70/'Population 2016'!AS$5","v":2.3029896993551628E-3},{"$f":"'Population 2016'!AT70/'Population 2016'!AT$5","v":0},{"$f":"'Population 2016'!AU70/'Population 2016'!AU$5","v":0},{"$f":"'Population 2016'!AV70/'Population 2016'!AV$5","v":7.3487488121634463E-3},{"$f":"'Population 2016'!AW70/'Population 2016'!AW$5","v":9.221123924583562E-3},{"$f":"'Population 2016'!AX70/'Population 2016'!AX$5","v":5.7247275004152984E-3},{"$f":"'Population 2016'!AY70/'Population 2016'!AY$5","v":7.9097946819252779E-3},{"$f":"'Population 2016'!AZ70/'Population 2016'!AZ$5","v":6.9147620389918944E-3},{"$f":"'Population 2016'!BA70/'Population 2016'!BA$5","v":1.9137335348736774E-2},{"$f":"'Population 2016'!BB70/'Population 2016'!BB$5","v":7.1673698238539458E-3},{"$f":"'Population 2016'!BC70/'Population 2016'!BC$5","v":0},68]
[null,"Female 55-59",{"$f":"'Population 2016'!C71/'Population 2016'!C$5","v":2.7650994362468247E-3},{"$f":"'Population 2016'!D71/'Population 2016'!D$5","v":1.7116086186829416E-3},{"$f":"'Population 2016'!E71/'Population 2016'!E$5","v":7.4536257904827977E-4},{"$f":"'Population 2016'!F71/'Population 2016'!F$5","v":2.6783414885397888E-3},{"$f":"'Population 2016'!G71/'Population 2016'!G$5","v":3.0179180425485845E-3},{"$f":"'Population 2016'!H71/'Population 2016'!H$5","v":1.2687532626705101E-2},{"$f":"'Population 2016'!I71/'Population 2016'!I$5","v":2.0412863244284396E-3},{"$f":"'Population 2016'!J71/'Population 2016'!J$5","v":6.9246908768234331E-3},{"$f":"'Population 2016'!K71/'Population 2016'!K$5","v":9.8993526437650622E-3},{"$f":"'Population 2016'!L71/'Population 2016'!L$5","v":3.0498943656378568E-3},{"$f":"'Population 2016'!M71/'Population 2016'!M$5","v":3.0498943656378568E-3},{"$f":"'Population 2016'!N71/'Population 2016'!N$5","v":1.3414134269938354E-2},{"$f":"'Population 2016'!O71/'Population 2016'!O$5","v":1.256179352294905E-2},{"$f":"'Population 2016'!P71/'Population 2016'!P$5","v":2.3892708215935985E-3},{"$f":"'Population 2016'!Q71/'Population 2016'!Q$5","v":1.6098518231278129E-3},{"$f":"'Population 2016'!R71/'Population 2016'!R$5","v":2.5948794379091924E-3},{"$f":"'Population 2016'!S71/'Population 2016'!S$5","v":5.3683242390166483E-3},{"$f":"'Population 2016'!T71/'Population 2016'!T$5","v":4.799839927781371E-3},{"$f":"'Population 2016'!U71/'Population 2016'!U$5","v":0},{"$f":"'Population 2016'!V71/'Population 2016'!V$5","v":5.8463910365513924E-3},{"$f":"'Population 2016'!W71/'Population 2016'!W$5","v":7.994561345021212E-3},{"$f":"'Population 2016'!X71/'Population 2016'!X$5","v":7.994561345021212E-3},{"$f":"'Population 2016'!Y71/'Population 2016'!Y$5","v":6.3631738764089599E-3},{"$f":"'Population 2016'!Z71/'Population 2016'!Z$5","v":1.836490941436323E-2},{"$f":"'Population 2016'!AA71/'Population 2016'!AA$5","v":1.323715731980119E-2},{"$f":"'Population 2016'!AB71/'Population 2016'!AB$5","v":1.4799954965558889E-3},{"$f":"'Population 2016'!AC71/'Population 2016'!AC$5","v":1.4524606916124868E-2},{"$f":"'Population 2016'!AD71/'Population 2016'!AD$5","v":2.7503814805165806E-3},{"$f":"'Population 2016'!AE71/'Population 2016'!AE$5","v":2.6488978326266181E-3},{"$f":"'Population 2016'!AF71/'Population 2016'!AF$5","v":1.9047188164502557E-2},{"$f":"'Population 2016'!AG71/'Population 2016'!AG$5","v":2.6488978326266181E-3},{"$f":"'Population 2016'!AH71/'Population 2016'!AH$5","v":1.0924830257377185E-2},{"$f":"'Population 2016'!AI71/'Population 2016'!AI$5","v":4.7043157756584131E-3},{"$f":"'Population 2016'!AJ71/'Population 2016'!AJ$5","v":4.3220031787636285E-3},{"$f":"'Population 2016'!AK71/'Population 2016'!AK$5","v":2.8915177954062581E-4},{"$f":"'Population 2016'!AL71/'Population 2016'!AL$5","v":1.7390610311984533E-2},{"$f":"'Population 2016'!AM71/'Population 2016'!AM$5","v":1.293414127950567E-2},{"$f":"'Population 2016'!AN71/'Population 2016'!AN$5","v":0},{"$f":"'Population 2016'!AO71/'Population 2016'!AO$5","v":0},{"$f":"'Population 2016'!AP71/'Population 2016'!AP$5","v":1.8467732986700062E-3},{"$f":"'Population 2016'!AQ71/'Population 2016'!AQ$5","v":1.132377925138379E-2},{"$f":"'Population 2016'!AR71/'Population 2016'!AR$5","v":7.914840169373303E-3},{"$f":"'Population 2016'!AS71/'Population 2016'!AS$5","v":2.0412863244284396E-3},{"$f":"'Population 2016'!AT71/'Population 2016'!AT$5","v":0},{"$f":"'Population 2016'!AU71/'Population 2016'!AU$5","v":0},{"$f":"'Population 2016'!AV71/'Population 2016'!AV$5","v":7.2220462464364903E-3},{"$f":"'Population 2016'!AW71/'Population 2016'!AW$5","v":8.8092623100860332E-3},{"$f":"'Population 2016'!AX71/'Population 2016'!AX$5","v":5.3158183932427768E-3},{"$f":"'Population 2016'!AY71/'Population 2016'!AY$5","v":7.0499678712401702E-3},{"$f":"'Population 2016'!AZ71/'Population 2016'!AZ$5","v":6.2186836640185008E-3},{"$f":"'Population 2016'!BA71/'Population 2016'!BA$5","v":1.6640574389980567E-2},{"$f":"'Population 2016'!BB71/'Population 2016'!BB$5","v":6.428536903668616E-3},{"$f":"'Population 2016'!BC71/'Population 2016'!BC$5","v":0},69]
[null,"Female 60-64",{"$f":"'Population 2016'!C72/'Population 2016'!C$5","v":2.2488793936203382E-3},{"$f":"'Population 2016'!D72/'Population 2016'!D$5","v":1.3815126707940886E-3},{"$f":"'Population 2016'!E72/'Population 2016'!E$5","v":5.8597687032097467E-4},{"$f":"'Population 2016'!F72/'Population 2016'!F$5","v":2.1529745042492918E-3},{"$f":"'Population 2016'!G72/'Population 2016'!G$5","v":2.7066529529583719E-3},{"$f":"'Population 2016'!H72/'Population 2016'!H$5","v":1.1487842600668584E-2},{"$f":"'Population 2016'!I72/'Population 2016'!I$5","v":1.9470731094548195E-3},{"$f":"'Population 2016'!J72/'Population 2016'!J$5","v":5.2992544554373334E-3},{"$f":"'Population 2016'!K72/'Population 2016'!K$5","v":7.9856353069035577E-3},{"$f":"'Population 2016'!L72/'Population 2016'!L$5","v":2.7401394691277622E-3},{"$f":"'Population 2016'!M72/'Population 2016'!M$5","v":2.7401394691277622E-3},{"$f":"'Population 2016'!N72/'Population 2016'!N$5","v":1.0689513828051535E-2},{"$f":"'Population 2016'!O72/'Population 2016'!O$5","v":1.1402700587471889E-2},{"$f":"'Population 2016'!P72/'Population 2016'!P$5","v":1.8370336977347008E-3},{"$f":"'Population 2016'!Q72/'Population 2016'!Q$5","v":1.1398220937474295E-3},{"$f":"'Population 2016'!R72/'Population 2016'!R$5","v":2.2888167349763133E-3},{"$f":"'Population 2016'!S72/'Population 2016'!S$5","v":4.3470892596443591E-3},{"$f":"'Population 2016'!T72/'Population 2016'!T$5","v":3.5899917637259599E-3},{"$f":"'Population 2016'!U72/'Population 2016'!U$5","v":0},{"$f":"'Population 2016'!V72/'Population 2016'!V$5","v":4.953404416085971E-3},{"$f":"'Population 2016'!W72/'Population 2016'!W$5","v":6.8179292582642064E-3},{"$f":"'Population 2016'!X72/'Population 2016'!X$5","v":6.8179292582642064E-3},{"$f":"'Population 2016'!Y72/'Population 2016'!Y$5","v":5.1191554983227609E-3},{"$f":"'Population 2016'!Z72/'Population 2016'!Z$5","v":1.4135192214997396E-2},{"$f":"'Population 2016'!AA72/'Population 2016'!AA$5","v":1.0681277767036926E-2},{"$f":"'Population 2016'!AB72/'Population 2016'!AB$5","v":1.23230607043796E-3},{"$f":"'Population 2016'!AC72/'Population 2016'!AC$5","v":1.136793809122897E-2},{"$f":"'Population 2016'!AD72/'Population 2016'!AD$5","v":2.5345193345491087E-3},{"$f":"'Population 2016'!AE72/'Population 2016'!AE$5","v":2.4692245300259757E-3},{"$f":"'Population 2016'!AF72/'Population 2016'!AF$5","v":1.5714307258441539E-2},{"$f":"'Population 2016'!AG72/'Population 2016'!AG$5","v":2.4692245300259757E-3},{"$f":"'Population 2016'!AH72/'Population 2016'!AH$5","v":9.4479997770821923E-3},{"$f":"'Population 2016'!AI72/'Population 2016'!AI$5","v":3.62701242453408E-3},{"$f":"'Population 2016'!AJ72/'Population 2016'!AJ$5","v":3.2345314112037474E-3},{"$f":"'Population 2016'!AK72/'Population 2016'!AK$5","v":4.651572105653546E-4},{"$f":"'Population 2016'!AL72/'Population 2016'!AL$5","v":1.5625831397101862E-2},{"$f":"'Population 2016'!AM72/'Population 2016'!AM$5","v":1.1086924238747369E-2},{"$f":"'Population 2016'!AN72/'Population 2016'!AN$5","v":0},{"$f":"'Population 2016'!AO72/'Population 2016'!AO$5","v":0},{"$f":"'Population 2016'!AP72/'Population 2016'!AP$5","v":1.6803259198199198E-3},{"$f":"'Population 2016'!AQ72/'Population 2016'!AQ$5","v":8.6247054310297586E-3},{"$f":"'Population 2016'!AR72/'Population 2016'!AR$5","v":6.5077772750431464E-3},{"$f":"'Population 2016'!AS72/'Population 2016'!AS$5","v":1.9470731094548195E-3},{"$f":"'Population 2016'!AT72/'Population 2016'!AT$5","v":0},{"$f":"'Population 2016'!AU72/'Population 2016'!AU$5","v":0},{"$f":"'Population 2016'!AV72/'Population 2016'!AV$5","v":6.6518847006651885E-3},{"$f":"'Population 2016'!AW72/'Population 2016'!AW$5","v":7.7224052718286654E-3},{"$f":"'Population 2016'!AX72/'Population 2016'!AX$5","v":3.8463012893415285E-3},{"$f":"'Population 2016'!AY72/'Population 2016'!AY$5","v":5.8703834032006368E-3},{"$f":"'Population 2016'!AZ72/'Population 2016'!AZ$5","v":5.0365009693322822E-3},{"$f":"'Population 2016'!BA72/'Population 2016'!BA$5","v":1.4211293457136688E-2},{"$f":"'Population 2016'!BB72/'Population 2016'!BB$5","v":5.3927898192966586E-3},{"$f":"'Population 2016'!BC72/'Population 2016'!BC$5","v":0},70]
[null,"Female 65-69",{"$f":"'Population 2016'!C73/'Population 2016'!C$5","v":2.0853245286297679E-3},{"$f":"'Population 2016'!D73/'Population 2016'!D$5","v":1.2837064640122062E-3},{"$f":"'Population 2016'!E73/'Population 2016'!E$5","v":5.4847435062043229E-4},{"$f":"'Population 2016'!F73/'Population 2016'!F$5","v":1.9263456090651558E-3},{"$f":"'Population 2016'!G73/'Population 2016'!G$5","v":3.044984572078168E-3},{"$f":"'Population 2016'!H73/'Population 2016'!H$5","v":1.0985269751923557E-2},{"$f":"'Population 2016'!I73/'Population 2016'!I$5","v":2.0203500544343019E-3},{"$f":"'Population 2016'!J73/'Population 2016'!J$5","v":5.6724413889188358E-3},{"$f":"'Population 2016'!K73/'Population 2016'!K$5","v":8.788924065586165E-3},{"$f":"'Population 2016'!L73/'Population 2016'!L$5","v":2.3668451066668783E-3},{"$f":"'Population 2016'!M73/'Population 2016'!M$5","v":2.3668451066668783E-3},{"$f":"'Population 2016'!N73/'Population 2016'!N$5","v":1.0665402142725103E-2},{"$f":"'Population 2016'!O73/'Population 2016'!O$5","v":1.1115404047909175E-2},{"$f":"'Population 2016'!P73/'Population 2016'!P$5","v":1.6567113715766934E-3},{"$f":"'Population 2016'!Q73/'Population 2016'!Q$5","v":1.1985758099199773E-3},{"$f":"'Population 2016'!R73/'Population 2016'!R$5","v":2.3021238090168736E-3},{"$f":"'Population 2016'!S73/'Population 2016'!S$5","v":4.3347320515966393E-3},{"$f":"'Population 2016'!T73/'Population 2016'!T$5","v":3.4736602094898629E-3},{"$f":"'Population 2016'!U73/'Population 2016'!U$5","v":0},{"$f":"'Population 2016'!V73/'Population 2016'!V$5","v":4.9915662374733823E-3},{"$f":"'Population 2016'!W73/'Population 2016'!W$5","v":6.8571503278227735E-3},{"$f":"'Population 2016'!X73/'Population 2016'!X$5","v":6.8571503278227735E-3},{"$f":"'Population 2016'!Y73/'Population 2016'!Y$5","v":5.3178804788477129E-3},{"$f":"'Population 2016'!Z73/'Population 2016'!Z$5","v":1.2683344206061755E-2},{"$f":"'Population 2016'!AA73/'Population 2016'!AA$5","v":9.9285323723704577E-3},{"$f":"'Population 2016'!AB73/'Population 2016'!AB$5","v":1.1401901681626972E-3},{"$f":"'Population 2016'!AC73/'Population 2016'!AC$5","v":1.0435003857920943E-2},{"$f":"'Population 2016'!AD73/'Population 2016'!AD$5","v":2.3447095165432283E-3},{"$f":"'Population 2016'!AE73/'Population 2016'!AE$5","v":2.0790767872360086E-3},{"$f":"'Population 2016'!AF73/'Population 2016'!AF$5","v":1.5759549985673138E-2},{"$f":"'Population 2016'!AG73/'Population 2016'!AG$5","v":2.0790767872360086E-3},{"$f":"'Population 2016'!AH73/'Population 2016'!AH$5","v":9.0188829960153438E-3},{"$f":"'Population 2016'!AI73/'Population 2016'!AI$5","v":3.5818969288651677E-3},{"$f":"'Population 2016'!AJ73/'Population 2016'!AJ$5","v":3.6388478376042162E-3},{"$f":"'Population 2016'!AK73/'Population 2016'!AK$5","v":4.0229812805652289E-4},{"$f":"'Population 2016'!AL73/'Population 2016'!AL$5","v":1.5306574909987406E-2},{"$f":"'Population 2016'!AM73/'Population 2016'!AM$5","v":1.0511027161334488E-2},{"$f":"'Population 2016'!AN73/'Population 2016'!AN$5","v":0},{"$f":"'Population 2016'!AO73/'Population 2016'!AO$5","v":0},{"$f":"'Population 2016'!AP73/'Population 2016'!AP$5","v":1.4425439500340821E-3},{"$f":"'Population 2016'!AQ73/'Population 2016'!AQ$5","v":8.3095851372828409E-3},{"$f":"'Population 2016'!AR73/'Population 2016'!AR$5","v":6.1847498531339114E-3},{"$f":"'Population 2016'!AS73/'Population 2016'!AS$5","v":2.0203500544343019E-3},{"$f":"'Population 2016'!AT73/'Population 2016'!AT$5","v":0},{"$f":"'Population 2016'!AU73/'Population 2016'!AU$5","v":0},{"$f":"'Population 2016'!AV73/'Population 2016'!AV$5","v":5.7016154577130187E-3},{"$f":"'Population 2016'!AW73/'Population 2016'!AW$5","v":7.4478308621636459E-3},{"$f":"'Population 2016'!AX73/'Population 2016'!AX$5","v":3.986863794932083E-3},{"$f":"'Population 2016'!AY73/'Population 2016'!AY$5","v":5.8045959425966154E-3},{"$f":"'Population 2016'!AZ73/'Population 2016'!AZ$5","v":4.8783013386565115E-3},{"$f":"'Population 2016'!BA73/'Population 2016'!BA$5","v":1.2942668969984885E-2},{"$f":"'Population 2016'!BB73/'Population 2016'!BB$5","v":5.2754051497345038E-3},{"$f":"'Population 2016'!BC73/'Population 2016'!BC$5","v":0},71]
[null,"Female 70-74",{"$f":"'Population 2016'!C74/'Population 2016'!C$5","v":1.466882695384175E-3},{"$f":"'Population 2016'!D74/'Population 2016'!D$5","v":8.9737194722377077E-4},{"$f":"'Population 2016'!E74/'Population 2016'!E$5","v":3.7502519700542382E-4},{"$f":"'Population 2016'!F74/'Population 2016'!F$5","v":1.658511460211177E-3},{"$f":"'Population 2016'!G74/'Population 2016'!G$5","v":2.2465219509554485E-3},{"$f":"'Population 2016'!H74/'Population 2016'!H$5","v":8.5988593217536224E-3},{"$f":"'Population 2016'!I74/'Population 2016'!I$5","v":1.5597521145632694E-3},{"$f":"'Population 2016'!J74/'Population 2016'!J$5","v":4.3787266861829615E-3},{"$f":"'Population 2016'!K74/'Population 2016'!K$5","v":6.5916930491896238E-3},{"$f":"'Population 2016'!L74/'Population 2016'!L$5","v":2.4700967388369102E-3},{"$f":"'Population 2016'!M74/'Population 2016'!M$5","v":2.4700967388369102E-3},{"$f":"'Population 2016'!N74/'Population 2016'!N$5","v":7.6996648475739626E-3},{"$f":"'Population 2016'!O74/'Population 2016'!O$5","v":8.5891758552025434E-3},{"$f":"'Population 2016'!P74/'Population 2016'!P$5","v":1.1495548292572975E-3},{"$f":"'Population 2016'!Q74/'Population 2016'!Q$5","v":1.0223146614023338E-3},{"$f":"'Population 2016'!R74/'Population 2016'!R$5","v":1.6500771810294352E-3},{"$f":"'Population 2016'!S74/'Population 2016'!S$5","v":3.3417421191905675E-3},{"$f":"'Population 2016'!T74/'Population 2016'!T$5","v":2.5267213580080316E-3},{"$f":"'Population 2016'!U74/'Population 2016'!U$5","v":0},{"$f":"'Population 2016'!V74/'Population 2016'!V$5","v":3.6101083032490976E-3},{"$f":"'Population 2016'!W74/'Population 2016'!W$5","v":5.4353865563247245E-3},{"$f":"'Population 2016'!X74/'Population 2016'!X$5","v":5.4353865563247245E-3},{"$f":"'Population 2016'!Y74/'Population 2016'!Y$5","v":3.978474110109537E-3},{"$f":"'Population 2016'!Z74/'Population 2016'!Z$5","v":1.0445562474955622E-2},{"$f":"'Population 2016'!AA74/'Population 2016'!AA$5","v":7.9074807478555394E-3},{"$f":"'Population 2016'!AB74/'Population 2016'!AB$5","v":7.7991463926389154E-4},{"$f":"'Population 2016'!AC74/'Population 2016'!AC$5","v":8.3291789144451737E-3},{"$f":"'Population 2016'!AD74/'Population 2016'!AD$5","v":1.7976106293498084E-3},{"$f":"'Population 2016'!AE74/'Population 2016'!AE$5","v":1.6273267692686784E-3},{"$f":"'Population 2016'!AF74/'Population 2016'!AF$5","v":1.1883756352832949E-2},{"$f":"'Population 2016'!AG74/'Population 2016'!AG$5","v":1.6273267692686784E-3},{"$f":"'Population 2016'!AH74/'Population 2016'!AH$5","v":7.1500887027112379E-3},{"$f":"'Population 2016'!AI74/'Population 2016'!AI$5","v":2.6987269227403974E-3},{"$f":"'Population 2016'!AJ74/'Population 2016'!AJ$5","v":2.760505256113543E-3},{"$f":"'Population 2016'!AK74/'Population 2016'!AK$5","v":1.7600543102472876E-4},{"$f":"'Population 2016'!AL74/'Population 2016'!AL$5","v":1.1927777088026108E-2},{"$f":"'Population 2016'!AM74/'Population 2016'!AM$5","v":8.6167241960078376E-3},{"$f":"'Population 2016'!AN74/'Population 2016'!AN$5","v":0},{"$f":"'Population 2016'!AO74/'Population 2016'!AO$5","v":0},{"$f":"'Population 2016'!AP74/'Population 2016'!AP$5","v":1.1968359145887164E-3},{"$f":"'Population 2016'!AQ74/'Population 2016'!AQ$5","v":6.5764235216747959E-3},{"$f":"'Population 2016'!AR74/'Population 2016'!AR$5","v":4.8534313198031623E-3},{"$f":"'Population 2016'!AS74/'Population 2016'!AS$5","v":1.5597521145632694E-3},{"$f":"'Population 2016'!AT74/'Population 2016'!AT$5","v":0},{"$f":"'Population 2016'!AU74/'Population 2016'!AU$5","v":0},{"$f":"'Population 2016'!AV74/'Population 2016'!AV$5","v":4.6457607433217189E-3},{"$f":"'Population 2016'!AW74/'Population 2016'!AW$5","v":5.6058941973274757E-3},{"$f":"'Population 2016'!AX74/'Population 2016'!AX$5","v":3.1818239901861816E-3},{"$f":"'Population 2016'!AY74/'Population 2016'!AY$5","v":4.4873167895719225E-3},{"$f":"'Population 2016'!AZ74/'Population 2016'!AZ$5","v":3.6529732901496282E-3},{"$f":"'Population 2016'!BA74/'Population 2016'!BA$5","v":9.217771539624272E-3},{"$f":"'Population 2016'!BB74/'Population 2016'!BB$5","v":4.1637032791752692E-3},{"$f":"'Population 2016'!BC74/'Population 2016'!BC$5","v":0},72]
[null,"Female 75-79",{"$f":"'Population 2016'!C75/'Population 2016'!C$5","v":1.2419947560221413E-3},{"$f":"'Population 2016'!D75/'Population 2016'!D$5","v":7.2621108535547664E-4},{"$f":"'Population 2016'!E75/'Population 2016'!E$5","v":2.5314200797866106E-4},{"$f":"'Population 2016'!F75/'Population 2016'!F$5","v":1.7100180272984805E-3},{"$f":"'Population 2016'!G75/'Population 2016'!G$5","v":1.9487901261300276E-3},{"$f":"'Population 2016'!H75/'Population 2016'!H$5","v":7.4186237285717525E-3},{"$f":"'Population 2016'!I75/'Population 2016'!I$5","v":1.0886860396951679E-3},{"$f":"'Population 2016'!J75/'Population 2016'!J$5","v":3.4167337020973108E-3},{"$f":"'Population 2016'!K75/'Population 2016'!K$5","v":5.0323678117469165E-3},{"$f":"'Population 2016'!L75/'Population 2016'!L$5","v":1.5011198830873827E-3},{"$f":"'Population 2016'!M75/'Population 2016'!M$5","v":1.5011198830873827E-3},{"$f":"'Population 2016'!N75/'Population 2016'!N$5","v":6.7432346629588249E-3},{"$f":"'Population 2016'!O75/'Population 2016'!O$5","v":7.3211083702360786E-3},{"$f":"'Population 2016'!P75/'Population 2016'!P$5","v":9.6923250309928998E-4},{"$f":"'Population 2016'!Q75/'Population 2016'!Q$5","v":8.8130574258821865E-4},{"$f":"'Population 2016'!R75/'Population 2016'!R$5","v":1.4504710704210358E-3},{"$f":"'Population 2016'!S75/'Population 2016'!S$5","v":2.7494787906177016E-3},{"$f":"'Population 2016'!T75/'Population 2016'!T$5","v":2.2382191035025104E-3},{"$f":"'Population 2016'!U75/'Population 2016'!U$5","v":0},{"$f":"'Population 2016'!V75/'Population 2016'!V$5","v":3.8772410529609759E-3},{"$f":"'Population 2016'!W75/'Population 2016'!W$5","v":4.4613966622869808E-3},{"$f":"'Population 2016'!X75/'Population 2016'!X$5","v":4.4613966622869808E-3},{"$f":"'Population 2016'!Y75/'Population 2016'!Y$5","v":3.656539641659115E-3},{"$f":"'Population 2016'!Z75/'Population 2016'!Z$5","v":9.9016034209410686E-3},{"$f":"'Population 2016'!AA75/'Population 2016'!AA$5","v":7.1819750364912095E-3},{"$f":"'Population 2016'!AB75/'Population 2016'!AB$5","v":6.2843515552234836E-4},{"$f":"'Population 2016'!AC75/'Population 2016'!AC$5","v":7.8699518639033066E-3},{"$f":"'Population 2016'!AD75/'Population 2016'!AD$5","v":1.5222003051844134E-3},{"$f":"'Population 2016'!AE75/'Population 2016'!AE$5","v":1.3603835768334377E-3},{"$f":"'Population 2016'!AF75/'Population 2016'!AF$5","v":1.132576271697658E-2},{"$f":"'Population 2016'!AG75/'Population 2016'!AG$5","v":1.3603835768334377E-3},{"$f":"'Population 2016'!AH75/'Population 2016'!AH$5","v":5.9463325376406008E-3},{"$f":"'Population 2016'!AI75/'Population 2016'!AI$5","v":2.2503062385160555E-3},{"$f":"'Population 2016'!AJ75/'Population 2016'!AJ$5","v":1.8124529459331343E-3},{"$f":"'Population 2016'!AK75/'Population 2016'!AK$5","v":1.2571816501766341E-4},{"$f":"'Population 2016'!AL75/'Population 2016'!AL$5","v":1.03492311239602E-2},{"$f":"'Population 2016'!AM75/'Population 2016'!AM$5","v":7.1244625866109359E-3},{"$f":"'Population 2016'!AN75/'Population 2016'!AN$5","v":0},{"$f":"'Population 2016'!AO75/'Population 2016'!AO$5","v":0},{"$f":"'Population 2016'!AP75/'Population 2016'!AP$5","v":7.5297623765515275E-4},{"$f":"'Population 2016'!AQ75/'Population 2016'!AQ$5","v":6.5627226393379732E-3},{"$f":"'Population 2016'!AR75/'Population 2016'!AR$5","v":4.2635164141371952E-3},{"$f":"'Population 2016'!AS75/'Population 2016'!AS$5","v":1.0886860396951679E-3},{"$f":"'Population 2016'!AT75/'Population 2016'!AT$5","v":0},{"$f":"'Population 2016'!AU75/'Population 2016'!AU$5","v":0},{"$f":"'Population 2016'!AV75/'Population 2016'!AV$5","v":4.0333650089747651E-3},{"$f":"'Population 2016'!AW75/'Population 2016'!AW$5","v":4.7059002989810238E-3},{"$f":"'Population 2016'!AX75/'Population 2016'!AX$5","v":2.5429035102291168E-3},{"$f":"'Population 2016'!AY75/'Population 2016'!AY$5","v":3.7713044276490928E-3},{"$f":"'Population 2016'!AZ75/'Population 2016'!AZ$5","v":3.163992613515426E-3},{"$f":"'Population 2016'!BA75/'Population 2016'!BA$5","v":7.9626430576549348E-3},{"$f":"'Population 2016'!BB75/'Population 2016'!BB$5","v":3.3074856894277842E-3},{"$f":"'Population 2016'!BC75/'Population 2016'!BC$5","v":0},73]
[null,"Female 80-84",{"$f":"'Population 2016'!C76/'Population 2016'!C$5","v":9.6599592135055432E-4},{"$f":"'Population 2016'!D76/'Population 2016'!D$5","v":5.8439208552174722E-4},{"$f":"'Population 2016'!E76/'Population 2016'!E$5","v":2.3439074812838987E-4},{"$f":"'Population 2016'!F76/'Population 2016'!F$5","v":9.9922740149369039E-4},{"$f":"'Population 2016'!G76/'Population 2016'!G$5","v":1.5833919774806474E-3},{"$f":"'Population 2016'!H76/'Population 2016'!H$5","v":5.4213019554947423E-3},{"$f":"'Population 2016'!I76/'Population 2016'!I$5","v":8.5838706975965157E-4},{"$f":"'Population 2016'!J76/'Population 2016'!J$5","v":2.579136362505494E-3},{"$f":"'Population 2016'!K76/'Population 2016'!K$5","v":3.307659594575438E-3},{"$f":"'Population 2016'!L76/'Population 2016'!L$5","v":1.1993074198211363E-3},{"$f":"'Population 2016'!M76/'Population 2016'!M$5","v":1.1993074198211363E-3},{"$f":"'Population 2016'!N76/'Population 2016'!N$5","v":5.3929802846786317E-3},{"$f":"'Population 2016'!O76/'Population 2016'!O$5","v":5.5477952467282866E-3},{"$f":"'Population 2016'!P76/'Population 2016'!P$5","v":6.3112814155302603E-4},{"$f":"'Population 2016'!Q76/'Population 2016'!Q$5","v":4.9353121584940244E-4},{"$f":"'Population 2016'!R76/'Population 2016'!R$5","v":1.2508649598126365E-3},{"$f":"'Population 2016'!S76/'Population 2016'!S$5","v":2.0866028446292926E-3},{"$f":"'Population 2016'!T76/'Population 2016'!T$5","v":1.7728928865581215E-3},{"$f":"'Population 2016'!U76/'Population 2016'!U$5","v":0},{"$f":"'Population 2016'!V76/'Population 2016'!V$5","v":2.7705482327260514E-3},{"$f":"'Population 2016'!W76/'Population 2016'!W$5","v":3.2226645487289105E-3},{"$f":"'Population 2016'!X76/'Population 2016'!X$5","v":3.2226645487289105E-3},{"$f":"'Population 2016'!Y76/'Population 2016'!Y$5","v":2.6788127374763517E-3},{"$f":"'Population 2016'!Z76/'Population 2016'!Z$5","v":7.838043450907212E-3},{"$f":"'Population 2016'!AA76/'Population 2016'!AA$5","v":5.629313088269197E-3},{"$f":"'Population 2016'!AB76/'Population 2016'!AB$5","v":5.0970799258978747E-4},{"$f":"'Population 2016'!AC76/'Population 2016'!AC$5","v":6.2388683983525747E-3},{"$f":"'Population 2016'!AD76/'Population 2016'!AD$5","v":1.1760765194089844E-3},{"$f":"'Population 2016'!AE76/'Population 2016'!AE$5","v":1.02157106335794E-3},{"$f":"'Population 2016'!AF76/'Population 2016'!AF$5","v":9.0183836281651063E-3},{"$f":"'Population 2016'!AG76/'Population 2016'!AG$5","v":1.02157106335794E-3},{"$f":"'Population 2016'!AH76/'Population 2016'!AH$5","v":4.5345197514466435E-3},{"$f":"'Population 2016'!AI76/'Population 2016'!AI$5","v":1.7718085571791057E-3},{"$f":"'Population 2016'!AJ76/'Population 2016'!AJ$5","v":1.8961046203608176E-3},{"$f":"'Population 2016'!AK76/'Population 2016'!AK$5","v":1.2571816501766341E-4},{"$f":"'Population 2016'!AL76/'Population 2016'!AL$5","v":7.2808215533601743E-3},{"$f":"'Population 2016'!AM76/'Population 2016'!AM$5","v":5.3641734065942026E-3},{"$f":"'Population 2016'!AN76/'Population 2016'!AN$5","v":0},{"$f":"'Population 2016'!AO76/'Population 2016'!AO$5","v":0},{"$f":"'Population 2016'!AP76/'Population 2016'!AP$5","v":8.6394115688854362E-4},{"$f":"'Population 2016'!AQ76/'Population 2016'!AQ$5","v":5.3912971995396502E-3},{"$f":"'Population 2016'!AR76/'Population 2016'!AR$5","v":3.2917608180212765E-3},{"$f":"'Population 2016'!AS76/'Population 2016'!AS$5","v":8.5838706975965157E-4},{"$f":"'Population 2016'!AT76/'Population 2016'!AT$5","v":0},{"$f":"'Population 2016'!AU76/'Population 2016'!AU$5","v":0},{"$f":"'Population 2016'!AV76/'Population 2016'!AV$5","v":3.0725372188786823E-3},{"$f":"'Population 2016'!AW76/'Population 2016'!AW$5","v":3.6609921288669228E-3},{"$f":"'Population 2016'!AX76/'Population 2016'!AX$5","v":2.1851080414531606E-3},{"$f":"'Population 2016'!AY76/'Population 2016'!AY$5","v":2.8502799791928031E-3},{"$f":"'Population 2016'!AZ76/'Population 2016'!AZ$5","v":2.5225650200482079E-3},{"$f":"'Population 2016'!BA76/'Population 2016'!BA$5","v":6.0462103217447634E-3},{"$f":"'Population 2016'!BB76/'Population 2016'!BB$5","v":2.4581730802427791E-3},{"$f":"'Population 2016'!BC76/'Population 2016'!BC$5","v":0},74]
[null,"Female 85-89",{"$f":"'Population 2016'!C77/'Population 2016'!C$5","v":7.4110798198852052E-4},{"$f":"'Population 2016'!D77/'Population 2016'!D$5","v":4.4012793051847072E-4},{"$f":"'Population 2016'!E77/'Population 2016'!E$5","v":1.6407352368987292E-4},{"$f":"'Population 2016'!F77/'Population 2016'!F$5","v":6.1807880504764355E-4},{"$f":"'Population 2016'!G77/'Population 2016'!G$5","v":1.1638607697720999E-3},{"$f":"'Population 2016'!H77/'Population 2016'!H$5","v":3.3299504236202755E-3},{"$f":"'Population 2016'!I77/'Population 2016'!I$5","v":6.1761996482706646E-4},{"$f":"'Population 2016'!J77/'Population 2016'!J$5","v":1.3683520894321754E-3},{"$f":"'Population 2016'!K77/'Population 2016'!K$5","v":2.0791003165902757E-3},{"$f":"'Population 2016'!L77/'Population 2016'!L$5","v":8.0218575762870713E-4},{"$f":"'Population 2016'!M77/'Population 2016'!M$5","v":8.0218575762870713E-4},{"$f":"'Population 2016'!N77/'Population 2016'!N$5","v":3.5524549714276528E-3},{"$f":"'Population 2016'!O77/'Population 2016'!O$5","v":3.774482123220495E-3},{"$f":"'Population 2016'!P77/'Population 2016'!P$5","v":3.7191479770089036E-4},{"$f":"'Population 2016'!Q77/'Population 2016'!Q$5","v":2.4676560792470122E-4},{"$f":"'Population 2016'!R77/'Population 2016'!R$5","v":5.8551125778463829E-4},{"$f":"'Population 2016'!S77/'Population 2016'!S$5","v":1.2569045899966636E-3},{"$f":"'Population 2016'!T77/'Population 2016'!T$5","v":1.1842552221234697E-3},{"$f":"'Population 2016'!U77/'Population 2016'!U$5","v":0},{"$f":"'Population 2016'!V77/'Population 2016'!V$5","v":1.6562230482136452E-3},{"$f":"'Population 2016'!W77/'Population 2016'!W$5","v":1.9773955902444127E-3},{"$f":"'Population 2016'!X77/'Population 2016'!X$5","v":1.9773955902444127E-3},{"$f":"'Population 2016'!Y77/'Population 2016'!Y$5","v":1.5182588512106326E-3},{"$f":"'Population 2016'!Z77/'Population 2016'!Z$5","v":4.5684817347841486E-3},{"$f":"'Population 2016'!AA77/'Population 2016'!AA$5","v":3.311946860028555E-3},{"$f":"'Population 2016'!AB77/'Population 2016'!AB$5","v":3.8483976950554229E-4},{"$f":"'Population 2016'!AC77/'Population 2016'!AC$5","v":3.6996737833068899E-3},{"$f":"'Population 2016'!AD77/'Population 2016'!AD$5","v":7.7412631657300239E-4},{"$f":"'Population 2016'!AE77/'Population 2016'!AE$5","v":6.2628979763652609E-4},{"$f":"'Population 2016'!AF77/'Population 2016'!AF$5","v":5.4442081768689013E-3},{"$f":"'Population 2016'!AG77/'Population 2016'!AG$5","v":6.2628979763652609E-4},{"$f":"'Population 2016'!AH77/'Population 2016'!AH$5","v":2.615568951264594E-3},{"$f":"'Population 2016'!AI77/'Population 2016'!AI$5","v":1.0390235366173769E-3},{"$f":"'Population 2016'!AJ77/'Population 2016'!AJ$5","v":1.0038200931321976E-3},{"$f":"'Population 2016'!AK77/'Population 2016'!AK$5","v":1.0057453201413072E-4},{"$f":"'Population 2016'!AL77/'Population 2016'!AL$5","v":4.0173107961902063E-3},{"$f":"'Population 2016'!AM77/'Population 2016'!AM$5","v":3.2380628126233743E-3},{"$f":"'Population 2016'!AN77/'Population 2016'!AN$5","v":0},{"$f":"'Population 2016'!AO77/'Population 2016'!AO$5","v":0},{"$f":"'Population 2016'!AP77/'Population 2016'!AP$5","v":4.1215541429545204E-4},{"$f":"'Population 2016'!AQ77/'Population 2016'!AQ$5","v":3.1032498492902941E-3},{"$f":"'Population 2016'!AR77/'Population 2016'!AR$5","v":1.97581393442276E-3},{"$f":"'Population 2016'!AS77/'Population 2016'!AS$5","v":6.1761996482706646E-4},{"$f":"'Population 2016'!AT77/'Population 2016'!AT$5","v":0},{"$f":"'Population 2016'!AU77/'Population 2016'!AU$5","v":0},{"$f":"'Population 2016'!AV77/'Population 2016'!AV$5","v":2.0377995987752085E-3},{"$f":"'Population 2016'!AW77/'Population 2016'!AW$5","v":1.9601562023308316E-3},{"$f":"'Population 2016'!AX77/'Population 2016'!AX$5","v":9.839375391338793E-4},{"$f":"'Population 2016'!AY77/'Population 2016'!AY$5","v":1.7732015544199994E-3},{"$f":"'Population 2016'!AZ77/'Population 2016'!AZ$5","v":1.5935017344432237E-3},{"$f":"'Population 2016'!BA77/'Population 2016'!BA$5","v":4.3996976894839128E-3},{"$f":"'Population 2016'!BB77/'Population 2016'!BB$5","v":1.0909869288717952E-3},{"$f":"'Population 2016'!BC77/'Population 2016'!BC$5","v":0},75]
[null,"Female 90+",{"$f":"'Population 2016'!C78/'Population 2016'!C$5","v":3.6288735669782725E-4},{"$f":"'Population 2016'!D78/'Population 2016'!D$5","v":2.176188100896883E-4},{"$f":"'Population 2016'!E78/'Population 2016'!E$5","v":8.4380669326220359E-5},{"$f":"'Population 2016'!F78/'Population 2016'!F$5","v":3.8114859644604689E-4},{"$f":"'Population 2016'!G78/'Population 2016'!G$5","v":7.4432956206355223E-4},{"$f":"'Population 2016'!H78/'Population 2016'!H$5","v":1.8416863102398407E-3},{"$f":"'Population 2016'!I78/'Population 2016'!I$5","v":2.5123523992965415E-4},{"$f":"'Population 2016'!J78/'Population 2016'!J$5","v":8.2930429662556081E-4},{"$f":"'Population 2016'!K78/'Population 2016'!K$5","v":1.3230638378301752E-3},{"$f":"'Population 2016'!L78/'Population 2016'!L$5","v":3.1769732975394342E-4},{"$f":"'Population 2016'!M78/'Population 2016'!M$5","v":3.1769732975394342E-4},{"$f":"'Population 2016'!N78/'Population 2016'!N$5","v":1.9208975976724187E-3},{"$f":"'Population 2016'!O78/'Population 2016'!O$5","v":2.0110757769390038E-3},{"$f":"'Population 2016'!P78/'Population 2016'!P$5","v":5.6350726924377322E-5},{"$f":"'Population 2016'!Q78/'Population 2016'!Q$5","v":7.0504459407057495E-5},{"$f":"'Population 2016'!R78/'Population 2016'!R$5","v":3.4598392505455901E-4},{"$f":"'Population 2016'!S78/'Population 2016'!S$5","v":7.1848338220314892E-4},{"$f":"'Population 2016'!T78/'Population 2016'!T$5","v":6.3051702395964691E-4},{"$f":"'Population 2016'!U78/'Population 2016'!U$5","v":0},{"$f":"'Population 2016'!V78/'Population 2016'!V$5","v":7.9376588485815256E-4},{"$f":"'Population 2016'!W78/'Population 2016'!W$5","v":1.1504847070512947E-3},{"$f":"'Population 2016'!X78/'Population 2016'!X$5","v":1.1504847070512947E-3},{"$f":"'Population 2016'!Y78/'Population 2016'!Y$5","v":8.1079792054180374E-4},{"$f":"'Population 2016'!Z78/'Population 2016'!Z$5","v":2.4623342231548462E-3},{"$f":"'Population 2016'!AA78/'Population 2016'!AA$5","v":1.783202682510861E-3},{"$f":"'Population 2016'!AB78/'Population 2016'!AB$5","v":1.8627882460108696E-4},{"$f":"'Population 2016'!AC78/'Population 2016'!AC$5","v":1.9734351631393752E-3},{"$f":"'Population 2016'!AD78/'Population 2016'!AD$5","v":4.5033309762179463E-4},{"$f":"'Population 2016'!AE78/'Population 2016'!AE$5","v":3.3881251347549771E-4},{"$f":"'Population 2016'!AF78/'Population 2016'!AF$5","v":2.7296445429730505E-3},{"$f":"'Population 2016'!AG78/'Population 2016'!AG$5","v":3.3881251347549771E-4},{"$f":"'Population 2016'!AH78/'Population 2016'!AH$5","v":1.4415351606401456E-3},{"$f":"'Population 2016'!AI78/'Population 2016'!AI$5","v":5.98805669787383E-4},{"$f":"'Population 2016'!AJ78/'Population 2016'!AJ$5","v":5.2979393804199312E-4},{"$f":"'Population 2016'!AK78/'Population 2016'!AK$5","v":2.5143633003532681E-5},{"$f":"'Population 2016'!AL78/'Population 2016'!AL$5","v":2.2791365885670703E-3},{"$f":"'Population 2016'!AM78/'Population 2016'!AM$5","v":1.6806053076702972E-3},{"$f":"'Population 2016'!AN78/'Population 2016'!AN$5","v":0},{"$f":"'Population 2016'!AO78/'Population 2016'!AO$5","v":0},{"$f":"'Population 2016'!AP78/'Population 2016'!AP$5","v":2.1400377280725394E-4},{"$f":"'Population 2016'!AQ78/'Population 2016'!AQ$5","v":1.4454430865347729E-3},{"$f":"'Population 2016'!AR78/'Population 2016'!AR$5","v":1.0749015935945221E-3},{"$f":"'Population 2016'!AS78/'Population 2016'!AS$5","v":2.5123523992965415E-4},{"$f":"'Population 2016'!AT78/'Population 2016'!AT$5","v":0},{"$f":"'Population 2016'!AU78/'Population 2016'!AU$5","v":0},{"$f":"'Population 2016'!AV78/'Population 2016'!AV$5","v":1.1403230915426037E-3},{"$f":"'Population 2016'!AW78/'Population 2016'!AW$5","v":1.18982244188175E-3},{"$f":"'Population 2016'!AX78/'Population 2016'!AX$5","v":5.6225002236221682E-4},{"$f":"'Population 2016'!AY78/'Population 2016'!AY$5","v":1.0021113185031058E-3},{"$f":"'Population 2016'!AZ78/'Population 2016'!AZ$5","v":8.7153614717743095E-4},{"$f":"'Population 2016'!BA78/'Population 2016'!BA$5","v":2.8746491038652558E-3},{"$f":"'Population 2016'!BB78/'Population 2016'!BB$5","v":8.4931260918500514E-4},{"$f":"'Population 2016'!BC78/'Population 2016'!BC$5","v":0},76]
[null,"Male 0-4",{"$f":"'Population 2016'!C79/'Population 2016'!C$5","v":0},{"$f":"'Population 2016'!D79/'Population 2016'!D$5","v":0},{"$f":"'Population 2016'!E79/'Population 2016'!E$5","v":0},{"$f":"'Population 2016'!F79/'Population 2016'!F$5","v":0},{"$f":"'Population 2016'!G79/'Population 2016'!G$5","v":0},{"$f":"'Population 2016'!H79/'Population 2016'!H$5","v":0},{"$f":"'Population 2016'!I79/'Population 2016'!I$5","v":0},{"$f":"'Population 2016'!J79/'Population 2016'!J$5","v":0},{"$f":"'Population 2016'!K79/'Population 2016'!K$5","v":0},{"$f":"'Population 2016'!L79/'Population 2016'!L$5","v":0},{"$f":"'Population 2016'!M79/'Population 2016'!M$5","v":0},{"$f":"'Population 2016'!N79/'Population 2016'!N$5","v":0},{"$f":"'Population 2016'!O79/'Population 2016'!O$5","v":0},{"$f":"'Population 2016'!P79/'Population 2016'!P$5","v":0},{"$f":"'Population 2016'!Q79/'Population 2016'!Q$5","v":0},{"$f":"'Population 2016'!R79/'Population 2016'!R$5","v":0},{"$f":"'Population 2016'!S79/'Population 2016'!S$5","v":0},{"$f":"'Population 2016'!T79/'Population 2016'!T$5","v":0},{"$f":"'Population 2016'!U79/'Population 2016'!U$5","v":0},{"$f":"'Population 2016'!V79/'Population 2016'!V$5","v":0},{"$f":"'Population 2016'!W79/'Population 2016'!W$5","v":0},{"$f":"'Population 2016'!X79/'Population 2016'!X$5","v":0},{"$f":"'Population 2016'!Y79/'Population 2016'!Y$5","v":0},{"$f":"'Population 2016'!Z79/'Population 2016'!Z$5","v":0},{"$f":"'Population 2016'!AA79/'Population 2016'!AA$5","v":0},{"$f":"'Population 2016'!AB79/'Population 2016'!AB$5","v":0},{"$f":"'Population 2016'!AC79/'Population 2016'!AC$5","v":0},{"$f":"'Population 2016'!AD79/'Population 2016'!AD$5","v":0},{"$f":"'Population 2016'!AE79/'Population 2016'!AE$5","v":0},{"$f":"'Population 2016'!AF79/'Population 2016'!AF$5","v":0},{"$f":"'Population 2016'!AG79/'Population 2016'!AG$5","v":0},{"$f":"'Population 2016'!AH79/'Population 2016'!AH$5","v":0},{"$f":"'Population 2016'!AI79/'Population 2016'!AI$5","v":0},{"$f":"'Population 2016'!AJ79/'Population 2016'!AJ$5","v":0},{"$f":"'Population 2016'!AK79/'Population 2016'!AK$5","v":0},{"$f":"'Population 2016'!AL79/'Population 2016'!AL$5","v":0},{"$f":"'Population 2016'!AM79/'Population 2016'!AM$5","v":0},{"$f":"'Population 2016'!AN79/'Population 2016'!AN$5","v":0},{"$f":"'Population 2016'!AO79/'Population 2016'!AO$5","v":0},{"$f":"'Population 2016'!AP79/'Population 2016'!AP$5","v":0},{"$f":"'Population 2016'!AQ79/'Population 2016'!AQ$5","v":0},{"$f":"'Population 2016'!AR79/'Population 2016'!AR$5","v":0},{"$f":"'Population 2016'!AS79/'Population 2016'!AS$5","v":0},{"$f":"'Population 2016'!AT79/'Population 2016'!AT$5","v":0},{"$f":"'Population 2016'!AU79/'Population 2016'!AU$5","v":0},{"$f":"'Population 2016'!AV79/'Population 2016'!AV$5","v":0},{"$f":"'Population 2016'!AW79/'Population 2016'!AW$5","v":0},{"$f":"'Population 2016'!AX79/'Population 2016'!AX$5","v":0},{"$f":"'Population 2016'!AY79/'Population 2016'!AY$5","v":0},{"$f":"'Population 2016'!AZ79/'Population 2016'!AZ$5","v":0},{"$f":"'Population 2016'!BA79/'Population 2016'!BA$5","v":0},{"$f":"'Population 2016'!BB79/'Population 2016'!BB$5","v":0},{"$f":"'Population 2016'!BC79/'Population 2016'!BC$5","v":0},77]
[null,"Male 5-9",{"$f":"'Population 2016'!C80/'Population 2016'!C$5","v":0},{"$f":"'Population 2016'!D80/'Population 2016'!D$5","v":0},{"$f":"'Population 2016'!E80/'Population 2016'!E$5","v":0},{"$f":"'Population 2016'!F80/'Population 2016'!F$5","v":0},{"$f":"'Population 2016'!G80/'Population 2016'!G$5","v":0},{"$f":"'Population 2016'!H80/'Population 2016'!H$5","v":0},{"$f":"'Population 2016'!I80/'Population 2016'!I$5","v":0},{"$f":"'Population 2016'!J80/'Population 2016'!J$5","v":0},{"$f":"'Population 2016'!K80/'Population 2016'!K$5","v":0},{"$f":"'Population 2016'!L80/'Population 2016'!L$5","v":0},{"$f":"'Population 2016'!M80/'Population 2016'!M$5","v":0},{"$f":"'Population 2016'!N80/'Population 2016'!N$5","v":0},{"$f":"'Population 2016'!O80/'Population 2016'!O$5","v":0},{"$f":"'Population 2016'!P80/'Population 2016'!P$5","v":0},{"$f":"'Population 2016'!Q80/'Population 2016'!Q$5","v":0},{"$f":"'Population 2016'!R80/'Population 2016'!R$5","v":0},{"$f":"'Population 2016'!S80/'Population 2016'!S$5","v":0},{"$f":"'Population 2016'!T80/'Population 2016'!T$5","v":0},{"$f":"'Population 2016'!U80/'Population 2016'!U$5","v":0},{"$f":"'Population 2016'!V80/'Population 2016'!V$5","v":0},{"$f":"'Population 2016'!W80/'Population 2016'!W$5","v":0},{"$f":"'Population 2016'!X80/'Population 2016'!X$5","v":0},{"$f":"'Population 2016'!Y80/'Population 2016'!Y$5","v":0},{"$f":"'Population 2016'!Z80/'Population 2016'!Z$5","v":0},{"$f":"'Population 2016'!AA80/'Population 2016'!AA$5","v":0},{"$f":"'Population 2016'!AB80/'Population 2016'!AB$5","v":0},{"$f":"'Population 2016'!AC80/'Population 2016'!AC$5","v":0},{"$f":"'Population 2016'!AD80/'Population 2016'!AD$5","v":0},{"$f":"'Population 2016'!AE80/'Population 2016'!AE$5","v":0},{"$f":"'Population 2016'!AF80/'Population 2016'!AF$5","v":0},{"$f":"'Population 2016'!AG80/'Population 2016'!AG$5","v":0},{"$f":"'Population 2016'!AH80/'Population 2016'!AH$5","v":0},{"$f":"'Population 2016'!AI80/'Population 2016'!AI$5","v":0},{"$f":"'Population 2016'!AJ80/'Population 2016'!AJ$5","v":0},{"$f":"'Population 2016'!AK80/'Population 2016'!AK$5","v":0},{"$f":"'Population 2016'!AL80/'Population 2016'!AL$5","v":0},{"$f":"'Population 2016'!AM80/'Population 2016'!AM$5","v":0},{"$f":"'Population 2016'!AN80/'Population 2016'!AN$5","v":0},{"$f":"'Population 2016'!AO80/'Population 2016'!AO$5","v":0},{"$f":"'Population 2016'!AP80/'Population 2016'!AP$5","v":0},{"$f":"'Population 2016'!AQ80/'Population 2016'!AQ$5","v":0},{"$f":"'Population 2016'!AR80/'Population 2016'!AR$5","v":0},{"$f":"'Population 2016'!AS80/'Population 2016'!AS$5","v":0},{"$f":"'Population 2016'!AT80/'Population 2016'!AT$5","v":0},{"$f":"'Population 2016'!AU80/'Population 2016'!AU$5","v":0},{"$f":"'Population 2016'!AV80/'Population 2016'!AV$5","v":0},{"$f":"'Population 2016'!AW80/'Population 2016'!AW$5","v":0},{"$f":"'Population 2016'!AX80/'Population 2016'!AX$5","v":0},{"$f":"'Population 2016'!AY80/'Population 2016'!AY$5","v":0},{"$f":"'Population 2016'!AZ80/'Population 2016'!AZ$5","v":0},{"$f":"'Population 2016'!BA80/'Population 2016'!BA$5","v":0},{"$f":"'Population 2016'!BB80/'Population 2016'!BB$5","v":0},{"$f":"'Population 2016'!BC80/'Population 2016'!BC$5","v":0},78]
[null,"Male 10-15",{"$f":"'Population 2016'!C81/'Population 2016'!C$5","v":0},{"$f":"'Population 2016'!D81/'Population 2016'!D$5","v":0},{"$f":"'Population 2016'!E81/'Population 2016'!E$5","v":0},{"$f":"'Population 2016'!F81/'Population 2016'!F$5","v":0},{"$f":"'Population 2016'!G81/'Population 2016'!G$5","v":0},{"$f":"'Population 2016'!H81/'Population 2016'!H$5","v":0},{"$f":"'Population 2016'!I81/'Population 2016'!I$5","v":0},{"$f":"'Population 2016'!J81/'Population 2016'!J$5","v":0},{"$f":"'Population 2016'!K81/'Population 2016'!K$5","v":0},{"$f":"'Population 2016'!L81/'Population 2016'!L$5","v":0},{"$f":"'Population 2016'!M81/'Population 2016'!M$5","v":0},{"$f":"'Population 2016'!N81/'Population 2016'!N$5","v":0},{"$f":"'Population 2016'!O81/'Population 2016'!O$5","v":0},{"$f":"'Population 2016'!P81/'Population 2016'!P$5","v":0},{"$f":"'Population 2016'!Q81/'Population 2016'!Q$5","v":0},{"$f":"'Population 2016'!R81/'Population 2016'!R$5","v":0},{"$f":"'Population 2016'!S81/'Population 2016'!S$5","v":0},{"$f":"'Population 2016'!T81/'Population 2016'!T$5","v":0},{"$f":"'Population 2016'!U81/'Population 2016'!U$5","v":0},{"$f":"'Population 2016'!V81/'Population 2016'!V$5","v":0},{"$f":"'Population 2016'!W81/'Population 2016'!W$5","v":0},{"$f":"'Population 2016'!X81/'Population 2016'!X$5","v":0},{"$f":"'Population 2016'!Y81/'Population 2016'!Y$5","v":0},{"$f":"'Population 2016'!Z81/'Population 2016'!Z$5","v":0},{"$f":"'Population 2016'!AA81/'Population 2016'!AA$5","v":0},{"$f":"'Population 2016'!AB81/'Population 2016'!AB$5","v":0},{"$f":"'Population 2016'!AC81/'Population 2016'!AC$5","v":0},{"$f":"'Population 2016'!AD81/'Population 2016'!AD$5","v":0},{"$f":"'Population 2016'!AE81/'Population 2016'!AE$5","v":0},{"$f":"'Population 2016'!AF81/'Population 2016'!AF$5","v":0},{"$f":"'Population 2016'!AG81/'Population 2016'!AG$5","v":0},{"$f":"'Population 2016'!AH81/'Population 2016'!AH$5","v":0},{"$f":"'Population 2016'!AI81/'Population 2016'!AI$5","v":0},{"$f":"'Population 2016'!AJ81/'Population 2016'!AJ$5","v":0},{"$f":"'Population 2016'!AK81/'Population 2016'!AK$5","v":0},{"$f":"'Population 2016'!AL81/'Population 2016'!AL$5","v":0},{"$f":"'Population 2016'!AM81/'Population 2016'!AM$5","v":0},{"$f":"'Population 2016'!AN81/'Population 2016'!AN$5","v":0},{"$f":"'Population 2016'!AO81/'Population 2016'!AO$5","v":0},{"$f":"'Population 2016'!AP81/'Population 2016'!AP$5","v":0},{"$f":"'Population 2016'!AQ81/'Population 2016'!AQ$5","v":0},{"$f":"'Population 2016'!AR81/'Population 2016'!AR$5","v":0},{"$f":"'Population 2016'!AS81/'Population 2016'!AS$5","v":0},{"$f":"'Population 2016'!AT81/'Population 2016'!AT$5","v":0},{"$f":"'Population 2016'!AU81/'Population 2016'!AU$5","v":0},{"$f":"'Population 2016'!AV81/'Population 2016'!AV$5","v":0},{"$f":"'Population 2016'!AW81/'Population 2016'!AW$5","v":0},{"$f":"'Population 2016'!AX81/'Population 2016'!AX$5","v":0},{"$f":"'Population 2016'!AY81/'Population 2016'!AY$5","v":0},{"$f":"'Population 2016'!AZ81/'Population 2016'!AZ$5","v":0},{"$f":"'Population 2016'!BA81/'Population 2016'!BA$5","v":0},{"$f":"'Population 2016'!BB81/'Population 2016'!BB$5","v":0},{"$f":"'Population 2016'!BC81/'Population 2016'!BC$5","v":0},79]
[null,"Male 16-19",{"$f":"'Population 2016'!C82/'Population 2016'!C$5","v":1.9268807531701534E-3},{"$f":"'Population 2016'!D82/'Population 2016'!D$5","v":1.1394423090089296E-3},{"$f":"'Population 2016'!E82/'Population 2016'!E$5","v":4.1721553166853398E-4},{"$f":"'Population 2016'!F82/'Population 2016'!F$5","v":2.4826165336080349E-3},{"$f":"'Population 2016'!G82/'Population 2016'!G$5","v":2.4089211281329509E-3},{"$f":"'Population 2016'!H82/'Population 2016'!H$5","v":8.8874334090975407E-3},{"$f":"'Population 2016'!I82/'Population 2016'!I$5","v":1.8528598944811993E-3},{"$f":"'Population 2016'!J82/'Population 2016'!J$5","v":5.7553718185813924E-3},{"$f":"'Population 2016'!K82/'Population 2016'!K$5","v":8.0801398667485706E-3},{"$f":"'Population 2016'!L82/'Population 2016'!L$5","v":2.3350753736914843E-3},{"$f":"'Population 2016'!M82/'Population 2016'!M$5","v":2.3350753736914843E-3},{"$f":"'Population 2016'!N82/'Population 2016'!N$5","v":9.4115945057506364E-3},{"$f":"'Population 2016'!O82/'Population 2016'!O$5","v":9.3123705927224808E-3},{"$f":"'Population 2016'!P82/'Population 2016'!P$5","v":1.5327397723430632E-3},{"$f":"'Population 2016'!Q82/'Population 2016'!Q$5","v":1.0340654046368434E-3},{"$f":"'Population 2016'!R82/'Population 2016'!R$5","v":2.1690530686112736E-3},{"$f":"'Population 2016'!S82/'Population 2016'!S$5","v":3.9657811256004283E-3},{"$f":"'Population 2016'!T82/'Population 2016'!T$5","v":3.4922732581676385E-3},{"$f":"'Population 2016'!U82/'Population 2016'!U$5","v":0},{"$f":"'Population 2016'!V82/'Population 2016'!V$5","v":3.8314468672960822E-3},{"$f":"'Population 2016'!W82/'Population 2016'!W$5","v":5.8308656743736066E-3},{"$f":"'Population 2016'!X82/'Population 2016'!X$5","v":5.8308656743736066E-3},{"$f":"'Population 2016'!Y82/'Population 2016'!Y$5","v":4.7535015341568501E-3},{"$f":"'Population 2016'!Z82/'Population 2016'!Z$5","v":1.3157614555647398E-2},{"$f":"'Population 2016'!AA82/'Population 2016'!AA$5","v":9.2847457109125498E-3},{"$f":"'Population 2016'!AB82/'Population 2016'!AB$5","v":1.0009928047245223E-3},{"$f":"'Population 2016'!AC82/'Population 2016'!AC$5","v":1.0112303768350981E-2},{"$f":"'Population 2016'!AD82/'Population 2016'!AD$5","v":2.1883955487736798E-3},{"$f":"'Population 2016'!AE82/'Population 2016'!AE$5","v":2.104744401893243E-3},{"$f":"'Population 2016'!AF82/'Population 2016'!AF$5","v":1.167262362575216E-2},{"$f":"'Population 2016'!AG82/'Population 2016'!AG$5","v":2.104744401893243E-3},{"$f":"'Population 2016'!AH82/'Population 2016'!AH$5","v":7.7984079953187261E-3},{"$f":"'Population 2016'!AI82/'Population 2016'!AI$5","v":3.4615889404147346E-3},{"$f":"'Population 2016'!AJ82/'Population 2016'!AJ$5","v":2.8859827677550679E-3},{"$f":"'Population 2016'!AK82/'Population 2016'!AK$5","v":2.8915177954062581E-4},{"$f":"'Population 2016'!AL82/'Population 2016'!AL$5","v":1.214948298185559E-2},{"$f":"'Population 2016'!AM82/'Population 2016'!AM$5","v":9.8880441593532566E-3},{"$f":"'Population 2016'!AN82/'Population 2016'!AN$5","v":0},{"$f":"'Population 2016'!AO82/'Population 2016'!AO$5","v":0},{"$f":"'Population 2016'!AP82/'Population 2016'!AP$5","v":1.355357227779275E-3},{"$f":"'Population 2016'!AQ82/'Population 2016'!AQ$5","v":7.3162711678632104E-3},{"$f":"'Population 2016'!AR82/'Population 2016'!AR$5","v":5.6494154428939868E-3},{"$f":"'Population 2016'!AS82/'Population 2016'!AS$5","v":1.8528598944811993E-3},{"$f":"'Population 2016'!AT82/'Population 2016'!AT$5","v":0},{"$f":"'Population 2016'!AU82/'Population 2016'!AU$5","v":0},{"$f":"'Population 2016'!AV82/'Population 2016'!AV$5","v":4.5507338190265024E-3},{"$f":"'Population 2016'!AW82/'Population 2016'!AW$5","v":5.5982671303923363E-3},{"$f":"'Population 2016'!AX82/'Population 2016'!AX$5","v":4.4980001788977346E-3},{"$f":"'Population 2016'!AY82/'Population 2016'!AY$5","v":5.1513111593892479E-3},{"$f":"'Population 2016'!AZ82/'Population 2016'!AZ$5","v":4.5532730065408356E-3},{"$f":"'Population 2016'!BA82/'Population 2016'!BA$5","v":1.1323148348088966E-2},{"$f":"'Population 2016'!BB82/'Population 2016'!BB$5","v":5.0820656939850719E-3},{"$f":"'Population 2016'!BC82/'Population 2016'!BC$5","v":0},80]
[null,"Male 20-24",{"$f":"'Population 2016'!C83/'Population 2016'!C$5","v":3.1484311510684734E-3},{"$f":"'Population 2016'!D83/'Population 2016'!D$5","v":2.0734915837759063E-3},{"$f":"'Population 2016'!E83/'Population 2016'!E$5","v":1.087573071315729E-3},{"$f":"'Population 2016'!F83/'Population 2016'!F$5","v":3.5024465619366467E-3},{"$f":"'Population 2016'!G83/'Population 2016'!G$5","v":3.7757808693769284E-3},{"$f":"'Population 2016'!H83/'Population 2016'!H$5","v":1.245732183792512E-2},{"$f":"'Population 2016'!I83/'Population 2016'!I$5","v":2.2087764843815427E-3},{"$f":"'Population 2016'!J83/'Population 2016'!J$5","v":7.3559291110687243E-3},{"$f":"'Population 2016'!K83/'Population 2016'!K$5","v":1.0088361763455086E-2},{"$f":"'Population 2016'!L83/'Population 2016'!L$5","v":3.4867281940495292E-3},{"$f":"'Population 2016'!M83/'Population 2016'!M$5","v":3.4867281940495292E-3},{"$f":"'Population 2016'!N83/'Population 2016'!N$5","v":1.5535962578664374E-2},{"$f":"'Population 2016'!O83/'Population 2016'!O$5","v":1.2868903616964366E-2},{"$f":"'Population 2016'!P83/'Population 2016'!P$5","v":1.9046545700439536E-3},{"$f":"'Population 2016'!Q83/'Population 2016'!Q$5","v":1.3983384449066404E-3},{"$f":"'Population 2016'!R83/'Population 2016'!R$5","v":2.5815723638686326E-3},{"$f":"'Population 2016'!S83/'Population 2016'!S$5","v":5.4256969906667776E-3},{"$f":"'Population 2016'!T83/'Population 2016'!T$5","v":5.113935124218834E-3},{"$f":"'Population 2016'!U83/'Population 2016'!U$5","v":0},{"$f":"'Population 2016'!V83/'Population 2016'!V$5","v":5.6250524725044073E-3},{"$f":"'Population 2016'!W83/'Population 2016'!W$5","v":7.5141032429287677E-3},{"$f":"'Population 2016'!X83/'Population 2016'!X$5","v":7.5141032429287677E-3},{"$f":"'Population 2016'!Y83/'Population 2016'!Y$5","v":6.4545873674504376E-3},{"$f":"'Population 2016'!Z83/'Population 2016'!Z$5","v":2.0534938238385699E-2},{"$f":"'Population 2016'!AA83/'Population 2016'!AA$5","v":1.3838423500006976E-2},{"$f":"'Population 2016'!AB83/'Population 2016'!AB$5","v":1.7850014840895367E-3},{"$f":"'Population 2016'!AC83/'Population 2016'!AC$5","v":1.5518564563806703E-2},{"$f":"'Population 2016'!AD83/'Population 2016'!AD$5","v":3.1448881610778219E-3},{"$f":"'Population 2016'!AE83/'Population 2016'!AE$5","v":2.9055739791989652E-3},{"$f":"'Population 2016'!AF83/'Population 2016'!AF$5","v":1.661916180307349E-2},{"$f":"'Population 2016'!AG83/'Population 2016'!AG$5","v":2.9055739791989652E-3},{"$f":"'Population 2016'!AH83/'Population 2016'!AH$5","v":1.0820801946815527E-2},{"$f":"'Population 2016'!AI83/'Population 2016'!AI$5","v":4.972274477207105E-3},{"$f":"'Population 2016'!AJ83/'Population 2016'!AJ$5","v":4.6147840392605196E-3},{"$f":"'Population 2016'!AK83/'Population 2016'!AK$5","v":3.0172359604239214E-4},{"$f":"'Population 2016'!AL83/'Population 2016'!AL$5","v":1.6601337329951581E-2},{"$f":"'Population 2016'!AM83/'Population 2016'!AM$5","v":1.3571612258277162E-2},{"$f":"'Population 2016'!AN83/'Population 2016'!AN$5","v":0},{"$f":"'Population 2016'!AO83/'Population 2016'!AO$5","v":0},{"$f":"'Population 2016'!AP83/'Population 2016'!AP$5","v":2.4491542887941282E-3},{"$f":"'Population 2016'!AQ83/'Population 2016'!AQ$5","v":1.1960870280046035E-2},{"$f":"'Population 2016'!AR83/'Population 2016'!AR$5","v":8.2828686528174794E-3},{"$f":"'Population 2016'!AS83/'Population 2016'!AS$5","v":2.2087764843815427E-3},{"$f":"'Population 2016'!AT83/'Population 2016'!AT$5","v":0},{"$f":"'Population 2016'!AU83/'Population 2016'!AU$5","v":0},{"$f":"'Population 2016'!AV83/'Population 2016'!AV$5","v":7.0847851335656218E-3},{"$f":"'Population 2016'!AW83/'Population 2016'!AW$5","v":7.9245225456098609E-3},{"$f":"'Population 2016'!AX83/'Population 2016'!AX$5","v":5.8780684156049942E-3},{"$f":"'Population 2016'!AY83/'Population 2016'!AY$5","v":7.4676417490284874E-3},{"$f":"'Population 2016'!AZ83/'Population 2016'!AZ$5","v":7.426753570997118E-3},{"$f":"'Population 2016'!BA83/'Population 2016'!BA$5","v":1.5992766141222199E-2},{"$f":"'Population 2016'!BB83/'Population 2016'!BB$5","v":6.8290257762924399E-3},{"$f":"'Population 2016'!BC83/'Population 2016'!BC$5","v":0},81]
[null,"Male 25-29",{"$f":"'Population 2016'!C84/'Population 2016'!C$5","v":5.284866575007794E-3},{"$f":"'Population 2016'!D84/'Population 2016'!D$5","v":3.1713662549025363E-3},{"$f":"'Population 2016'!E84/'Population 2016'!E$5","v":1.2328953351553307E-3},{"$f":"'Population 2016'!F84/'Population 2016'!F$5","v":3.2346124130826679E-3},{"$f":"'Population 2016'!G84/'Population 2016'!G$5","v":3.044984572078168E-3},{"$f":"'Population 2016'!H84/'Population 2016'!H$5","v":1.1993657854889385E-2},{"$f":"'Population 2016'!I84/'Population 2016'!I$5","v":1.6539653295368896E-3},{"$f":"'Population 2016'!J84/'Population 2016'!J$5","v":7.1734821658111011E-3},{"$f":"'Population 2016'!K84/'Population 2016'!K$5","v":8.1746444265935834E-3},{"$f":"'Population 2016'!L84/'Population 2016'!L$5","v":3.9394468889488981E-3},{"$f":"'Population 2016'!M84/'Population 2016'!M$5","v":3.9394468889488981E-3},{"$f":"'Population 2016'!N84/'Population 2016'!N$5","v":2.1821075220420989E-2},{"$f":"'Population 2016'!O84/'Population 2016'!O$5","v":1.2700488404117256E-2},{"$f":"'Population 2016'!P84/'Population 2016'!P$5","v":1.8370336977347008E-3},{"$f":"'Population 2016'!Q84/'Population 2016'!Q$5","v":1.2338280396235063E-3},{"$f":"'Population 2016'!R84/'Population 2016'!R$5","v":2.6081865119497523E-3},{"$f":"'Population 2016'!S84/'Population 2016'!S$5","v":6.4513452586275376E-3},{"$f":"'Population 2016'!T84/'Population 2016'!T$5","v":7.7593146675476845E-3},{"$f":"'Population 2016'!U84/'Population 2016'!U$5","v":0},{"$f":"'Population 2016'!V84/'Population 2016'!V$5","v":6.3501270788652205E-3},{"$f":"'Population 2016'!W84/'Population 2016'!W$5","v":7.9782192327051433E-3},{"$f":"'Population 2016'!X84/'Population 2016'!X$5","v":7.9782192327051433E-3},{"$f":"'Population 2016'!Y84/'Population 2016'!Y$5","v":6.7447258390168682E-3},{"$f":"'Population 2016'!Z84/'Population 2016'!Z$5","v":2.6181659094472717E-2},{"$f":"'Population 2016'!AA84/'Population 2016'!AA$5","v":1.5809646435554565E-2},{"$f":"'Population 2016'!AB84/'Population 2016'!AB$5","v":2.6795492461848666E-3},{"$f":"'Population 2016'!AC84/'Population 2016'!AC$5","v":1.8854166451188509E-2},{"$f":"'Population 2016'!AD84/'Population 2016'!AD$5","v":3.0592876549183075E-3},{"$f":"'Population 2016'!AE84/'Population 2016'!AE$5","v":3.0647131900738201E-3},{"$f":"'Population 2016'!AF84/'Population 2016'!AF$5","v":1.6754889984768283E-2},{"$f":"'Population 2016'!AG84/'Population 2016'!AG$5","v":3.0647131900738201E-3},{"$f":"'Population 2016'!AH84/'Population 2016'!AH$5","v":1.0341528658870735E-2},{"$f":"'Population 2016'!AI84/'Population 2016'!AI$5","v":6.4392116545629536E-3},{"$f":"'Population 2016'!AJ84/'Population 2016'!AJ$5","v":3.5551961631765331E-3},{"$f":"'Population 2016'!AK84/'Population 2016'!AK$5","v":1.5086179802119607E-4},{"$f":"'Population 2016'!AL84/'Population 2016'!AL$5","v":1.5138078430677E-2},{"$f":"'Population 2016'!AM84/'Population 2016'!AM$5","v":1.2945007262098365E-2},{"$f":"'Population 2016'!AN84/'Population 2016'!AN$5","v":0},{"$f":"'Population 2016'!AO84/'Population 2016'!AO$5","v":0},{"$f":"'Population 2016'!AP84/'Population 2016'!AP$5","v":3.5112470871708702E-3},{"$f":"'Population 2016'!AQ84/'Population 2016'!AQ$5","v":1.4139310571600811E-2},{"$f":"'Population 2016'!AR84/'Population 2016'!AR$5","v":9.490322878160963E-3},{"$f":"'Population 2016'!AS84/'Population 2016'!AS$5","v":1.6539653295368896E-3},{"$f":"'Population 2016'!AT84/'Population 2016'!AT$5","v":0},{"$f":"'Population 2016'!AU84/'Population 2016'!AU$5","v":0},{"$f":"'Population 2016'!AV84/'Population 2016'!AV$5","v":7.4965684721782283E-3},{"$f":"'Population 2016'!AW84/'Population 2016'!AW$5","v":7.6003722008664348E-3},{"$f":"'Population 2016'!AX84/'Population 2016'!AX$5","v":6.6319945819543298E-3},{"$f":"'Population 2016'!AY84/'Population 2016'!AY$5","v":9.0465408035249831E-3},{"$f":"'Population 2016'!AZ84/'Population 2016'!AZ$5","v":9.9867112310232358E-3},{"$f":"'Population 2016'!BA84/'Population 2016'!BA$5","v":1.5790326063485207E-2},{"$f":"'Population 2016'!BB84/'Population 2016'!BB$5","v":7.0085552709169127E-3},{"$f":"'Population 2016'!BC84/'Population 2016'!BC$5","v":0},82]
[null,"Male 30-34",{"$f":"'Population 2016'!C85/'Population 2016'!C$5","v":4.4313146233382573E-3},{"$f":"'Population 2016'!D85/'Population 2016'!D$5","v":2.7874768932836477E-3},{"$f":"'Population 2016'!E85/'Population 2016'!E$5","v":1.2797734847810086E-3},{"$f":"'Population 2016'!F85/'Population 2016'!F$5","v":2.6577388617048674E-3},{"$f":"'Population 2016'!G85/'Population 2016'!G$5","v":2.3818545986033671E-3},{"$f":"'Population 2016'!H85/'Population 2016'!H$5","v":1.0573484256500213E-2},{"$f":"'Population 2016'!I85/'Population 2016'!I$5","v":1.8214554894899924E-3},{"$f":"'Population 2016'!J85/'Population 2016'!J$5","v":6.2944196113880069E-3},{"$f":"'Population 2016'!K85/'Population 2016'!K$5","v":8.5762888059348862E-3},{"$f":"'Population 2016'!L85/'Population 2016'!L$5","v":2.7480819023716105E-3},{"$f":"'Population 2016'!M85/'Population 2016'!M$5","v":2.7480819023716105E-3},{"$f":"'Population 2016'!N85/'Population 2016'!N$5","v":1.7119296581766745E-2},{"$f":"'Population 2016'!O85/'Population 2016'!O$5","v":1.1055963384551372E-2},{"$f":"'Population 2016'!P85/'Population 2016'!P$5","v":1.5101994815733123E-3},{"$f":"'Population 2016'!Q85/'Population 2016'!Q$5","v":1.2925817557960541E-3},{"$f":"'Population 2016'!R85/'Population 2016'!R$5","v":2.448501623463033E-3},{"$f":"'Population 2016'!S85/'Population 2016'!S$5","v":5.8423114334184801E-3},{"$f":"'Population 2016'!T85/'Population 2016'!T$5","v":6.7030241550839215E-3},{"$f":"'Population 2016'!U85/'Population 2016'!U$5","v":0},{"$f":"'Population 2016'!V85/'Population 2016'!V$5","v":5.8311263079964277E-3},{"$f":"'Population 2016'!W85/'Population 2016'!W$5","v":7.4748821733702014E-3},{"$f":"'Population 2016'!X85/'Population 2016'!X$5","v":7.4748821733702014E-3},{"$f":"'Population 2016'!Y85/'Population 2016'!Y$5","v":6.0531629067900354E-3},{"$f":"'Population 2016'!Z85/'Population 2016'!Z$5","v":2.2925647959766388E-2},{"$f":"'Population 2016'!AA85/'Population 2016'!AA$5","v":1.4359963777865033E-2},{"$f":"'Population 2016'!AB85/'Population 2016'!AB$5","v":2.3520260380950433E-3},{"$f":"'Population 2016'!AC85/'Population 2016'!AC$5","v":1.685073672844167E-2},{"$f":"'Population 2016'!AD85/'Population 2016'!AD$5","v":2.962521865346682E-3},{"$f":"'Population 2016'!AE85/'Population 2016'!AE$5","v":3.1827842174970995E-3},{"$f":"'Population 2016'!AF85/'Population 2016'!AF$5","v":1.5774630894750334E-2},{"$f":"'Population 2016'!AG85/'Population 2016'!AG$5","v":3.1827842174970995E-3},{"$f":"'Population 2016'!AH85/'Population 2016'!AH$5","v":9.8864048001634734E-3},{"$f":"'Population 2016'!AI85/'Population 2016'!AI$5","v":5.6845524542829644E-3},{"$f":"'Population 2016'!AJ85/'Population 2016'!AJ$5","v":3.9176867523631597E-3},{"$f":"'Population 2016'!AK85/'Population 2016'!AK$5","v":1.1314634851589707E-4},{"$f":"'Population 2016'!AL85/'Population 2016'!AL$5","v":1.3745765417427856E-2},{"$f":"'Population 2016'!AM85/'Population 2016'!AM$5","v":1.2206120445795046E-2},{"$f":"'Population 2016'!AN85/'Population 2016'!AN$5","v":0},{"$f":"'Population 2016'!AO85/'Population 2016'!AO$5","v":0},{"$f":"'Population 2016'!AP85/'Population 2016'!AP$5","v":2.4570803544536565E-3},{"$f":"'Population 2016'!AQ85/'Population 2016'!AQ$5","v":1.3296706307886227E-2},{"$f":"'Population 2016'!AR85/'Population 2016'!AR$5","v":8.4668828945395659E-3},{"$f":"'Population 2016'!AS85/'Population 2016'!AS$5","v":1.8214554894899924E-3},{"$f":"'Population 2016'!AT85/'Population 2016'!AT$5","v":0},{"$f":"'Population 2016'!AU85/'Population 2016'!AU$5","v":0},{"$f":"'Population 2016'!AV85/'Population 2016'!AV$5","v":6.282335550628234E-3},{"$f":"'Population 2016'!AW85/'Population 2016'!AW$5","v":7.4440173286960763E-3},{"$f":"'Population 2016'!AX85/'Population 2016'!AX$5","v":5.0602502012599511E-3},{"$f":"'Population 2016'!AY85/'Population 2016'!AY$5","v":7.626755607233561E-3},{"$f":"'Population 2016'!AZ85/'Population 2016'!AZ$5","v":7.7604109738769267E-3},{"$f":"'Population 2016'!BA85/'Population 2016'!BA$5","v":1.5439429928741092E-2},{"$f":"'Population 2016'!BB85/'Population 2016'!BB$5","v":6.1178127783570293E-3},{"$f":"'Population 2016'!BC85/'Population 2016'!BC$5","v":0},83]
[null,"Male 35-39",{"$f":"'Population 2016'!C86/'Population 2016'!C$5","v":4.221759952569089E-3},{"$f":"'Population 2016'!D86/'Population 2016'!D$5","v":2.5258452901421122E-3},{"$f":"'Population 2016'!E86/'Population 2016'!E$5","v":9.7037769725153409E-4},{"$f":"'Population 2016'!F86/'Population 2016'!F$5","v":2.637136234869946E-3},{"$f":"'Population 2016'!G86/'Population 2016'!G$5","v":2.0299897147187788E-3},{"$f":"'Population 2016'!H86/'Population 2016'!H$5","v":9.4483695564065075E-3},{"$f":"'Population 2016'!I86/'Population 2016'!I$5","v":1.9575412444518886E-3},{"$f":"'Population 2016'!J86/'Population 2016'!J$5","v":5.4485292288299347E-3},{"$f":"'Population 2016'!K86/'Population 2016'!K$5","v":8.5526626659736329E-3},{"$f":"'Population 2016'!L86/'Population 2016'!L$5","v":2.3668451066668783E-3},{"$f":"'Population 2016'!M86/'Population 2016'!M$5","v":2.3668451066668783E-3},{"$f":"'Population 2016'!N86/'Population 2016'!N$5","v":1.2321071201806769E-2},{"$f":"'Population 2016'!O86/'Population 2016'!O$5","v":9.3916248105328851E-3},{"$f":"'Population 2016'!P86/'Population 2016'!P$5","v":1.5327397723430632E-3},{"$f":"'Population 2016'!Q86/'Population 2016'!Q$5","v":1.010563918167824E-3},{"$f":"'Population 2016'!R86/'Population 2016'!R$5","v":2.1956672166923937E-3},{"$f":"'Population 2016'!S86/'Population 2016'!S$5","v":5.4000999168536427E-3},{"$f":"'Population 2016'!T86/'Population 2016'!T$5","v":6.0957734419714938E-3},{"$f":"'Population 2016'!U86/'Population 2016'!U$5","v":0},{"$f":"'Population 2016'!V86/'Population 2016'!V$5","v":5.5029346440646923E-3},{"$f":"'Population 2016'!W86/'Population 2016'!W$5","v":6.9388608894031204E-3},{"$f":"'Population 2016'!X86/'Population 2016'!X$5","v":6.9388608894031204E-3},{"$f":"'Population 2016'!Y86/'Population 2016'!Y$5","v":5.4768604632676743E-3},{"$f":"'Population 2016'!Z86/'Population 2016'!Z$5","v":1.8699802355091052E-2},{"$f":"'Population 2016'!AA86/'Population 2016'!AA$5","v":1.2298384819656687E-2},{"$f":"'Population 2016'!AB86/'Population 2016'!AB$5","v":2.1677942335445177E-3},{"$f":"'Population 2016'!AC86/'Population 2016'!AC$5","v":1.3816114732293385E-2},{"$f":"'Population 2016'!AD86/'Population 2016'!AD$5","v":2.2777178160705647E-3},{"$f":"'Population 2016'!AE86/'Population 2016'!AE$5","v":2.3716875943284839E-3},{"$f":"'Population 2016'!AF86/'Population 2016'!AF$5","v":1.2532235443152514E-2},{"$f":"'Population 2016'!AG86/'Population 2016'!AG$5","v":2.3716875943284839E-3},{"$f":"'Population 2016'!AH86/'Population 2016'!AH$5","v":9.5724622200756056E-3},{"$f":"'Population 2016'!AI86/'Population 2016'!AI$5","v":5.2060547729460144E-3},{"$f":"'Population 2016'!AJ86/'Population 2016'!AJ$5","v":3.3181830856314309E-3},{"$f":"'Population 2016'!AK86/'Population 2016'!AK$5","v":3.2686722904592486E-4},{"$f":"'Population 2016'!AL86/'Population 2016'!AL$5","v":1.22736382824001E-2},{"$f":"'Population 2016'!AM86/'Population 2016'!AM$5","v":1.1496209583072249E-2},{"$f":"'Population 2016'!AN86/'Population 2016'!AN$5","v":0},{"$f":"'Population 2016'!AO86/'Population 2016'!AO$5","v":0},{"$f":"'Population 2016'!AP86/'Population 2016'!AP$5","v":2.4174500261560168E-3},{"$f":"'Population 2016'!AQ86/'Population 2016'!AQ$5","v":1.1029210281142105E-2},{"$f":"'Population 2016'!AR86/'Population 2016'!AR$5","v":7.3480941270718586E-3},{"$f":"'Population 2016'!AS86/'Population 2016'!AS$5","v":1.9575412444518886E-3},{"$f":"'Population 2016'!AT86/'Population 2016'!AT$5","v":0},{"$f":"'Population 2016'!AU86/'Population 2016'!AU$5","v":0},{"$f":"'Population 2016'!AV86/'Population 2016'!AV$5","v":6.1450744377573646E-3},{"$f":"'Population 2016'!AW86/'Population 2016'!AW$5","v":7.5469827323204584E-3},{"$f":"'Population 2016'!AX86/'Population 2016'!AX$5","v":3.769630831746681E-3},{"$f":"'Population 2016'!AY86/'Population 2016'!AY$5","v":6.4517609620268661E-3},{"$f":"'Population 2016'!AZ86/'Population 2016'!AZ$5","v":6.0230913933648203E-3},{"$f":"'Population 2016'!BA86/'Population 2016'!BA$5","v":1.2902180954437487E-2},{"$f":"'Population 2016'!BB86/'Population 2016'!BB$5","v":5.9659032059824748E-3},{"$f":"'Population 2016'!BC86/'Population 2016'!BC$5","v":0},84]
[null,"Male 40-44",{"$f":"'Population 2016'!C87/'Population 2016'!C$5","v":3.449985433394837E-3},{"$f":"'Population 2016'!D87/'Population 2016'!D$5","v":2.1688526353882418E-3},{"$f":"'Population 2016'!E87/'Population 2016'!E$5","v":9.9381677206437317E-4},{"$f":"'Population 2016'!F87/'Population 2016'!F$5","v":2.5856296677826424E-3},{"$f":"'Population 2016'!G87/'Population 2016'!G$5","v":2.2600552157202402E-3},{"$f":"'Population 2016'!H87/'Population 2016'!H$5","v":1.0317334223914038E-2},{"$f":"'Population 2016'!I87/'Population 2016'!I$5","v":1.9889456494430954E-3},{"$f":"'Population 2016'!J87/'Population 2016'!J$5","v":5.2494961976397997E-3},{"$f":"'Population 2016'!K87/'Population 2016'!K$5","v":8.3164012663611026E-3},{"$f":"'Population 2016'!L87/'Population 2016'!L$5","v":2.7083697361523678E-3},{"$f":"'Population 2016'!M87/'Population 2016'!M$5","v":2.7083697361523678E-3},{"$f":"'Population 2016'!N87/'Population 2016'!N$5","v":1.0416248061018638E-2},{"$f":"'Population 2016'!O87/'Population 2016'!O$5","v":1.1125310825135475E-2},{"$f":"'Population 2016'!P87/'Population 2016'!P$5","v":1.5327397723430632E-3},{"$f":"'Population 2016'!Q87/'Population 2016'!Q$5","v":1.5628488501897744E-3},{"$f":"'Population 2016'!R87/'Population 2016'!R$5","v":2.2488955128546336E-3},{"$f":"'Population 2016'!S87/'Population 2016'!S$5","v":5.2509307625633085E-3},{"$f":"'Population 2016'!T87/'Population 2016'!T$5","v":5.5141156707910078E-3},{"$f":"'Population 2016'!U87/'Population 2016'!U$5","v":0},{"$f":"'Population 2016'!V87/'Population 2016'!V$5","v":5.7548026652216059E-3},{"$f":"'Population 2016'!W87/'Population 2016'!W$5","v":6.8702240176756286E-3},{"$f":"'Population 2016'!X87/'Population 2016'!X$5","v":6.8702240176756286E-3},{"$f":"'Population 2016'!Y87/'Population 2016'!Y$5","v":5.5126309597621657E-3},{"$f":"'Population 2016'!Z87/'Population 2016'!Z$5","v":1.6802720956748479E-2},{"$f":"'Population 2016'!AA87/'Population 2016'!AA$5","v":1.1525707949403285E-2},{"$f":"'Population 2016'!AB87/'Population 2016'!AB$5","v":1.8771173863647995E-3},{"$f":"'Population 2016'!AC87/'Population 2016'!AC$5","v":1.2540828801396712E-2},{"$f":"'Population 2016'!AD87/'Population 2016'!AD$5","v":2.6052327961591424E-3},{"$f":"'Population 2016'!AE87/'Population 2016'!AE$5","v":2.7361677224612161E-3},{"$f":"'Population 2016'!AF87/'Population 2016'!AF$5","v":1.2879096351928094E-2},{"$f":"'Population 2016'!AG87/'Population 2016'!AG$5","v":2.7361677224612161E-3},{"$f":"'Population 2016'!AH87/'Population 2016'!AH$5","v":9.7024976082776809E-3},{"$f":"'Population 2016'!AI87/'Population 2016'!AI$5","v":4.9996172018549308E-3},{"$f":"'Population 2016'!AJ87/'Population 2016'!AJ$5","v":3.7224995120318993E-3},{"$f":"'Population 2016'!AK87/'Population 2016'!AK$5","v":3.7715449505299018E-4},{"$f":"'Population 2016'!AL87/'Population 2016'!AL$5","v":1.322253950799028E-2},{"$f":"'Population 2016'!AM87/'Population 2016'!AM$5","v":1.1590381432208946E-2},{"$f":"'Population 2016'!AN87/'Population 2016'!AN$5","v":0},{"$f":"'Population 2016'!AO87/'Population 2016'!AO$5","v":0},{"$f":"'Population 2016'!AP87/'Population 2016'!AP$5","v":1.9973685462010369E-3},{"$f":"'Population 2016'!AQ87/'Population 2016'!AQ$5","v":9.6454211651230345E-3},{"$f":"'Population 2016'!AR87/'Population 2016'!AR$5","v":7.0448939055418811E-3},{"$f":"'Population 2016'!AS87/'Population 2016'!AS$5","v":1.9889456494430954E-3},{"$f":"'Population 2016'!AT87/'Population 2016'!AT$5","v":0},{"$f":"'Population 2016'!AU87/'Population 2016'!AU$5","v":0},{"$f":"'Population 2016'!AV87/'Population 2016'!AV$5","v":5.9972547777425826E-3},{"$f":"'Population 2016'!AW87/'Population 2016'!AW$5","v":7.714778204893526E-3},{"$f":"'Population 2016'!AX87/'Population 2016'!AX$5","v":3.5907330973587027E-3},{"$f":"'Population 2016'!AY87/'Population 2016'!AY$5","v":5.9682996236345275E-3},{"$f":"'Population 2016'!AZ87/'Population 2016'!AZ$5","v":5.1745661015584104E-3},{"$f":"'Population 2016'!BA87/'Population 2016'!BA$5","v":1.184949255020514E-2},{"$f":"'Population 2016'!BB87/'Population 2016'!BB$5","v":6.1247177589195088E-3},{"$f":"'Population 2016'!BC87/'Population 2016'!BC$5","v":0},85]
[null,"Male 45-49",{"$f":"'Population 2016'!C88/'Population 2016'!C$5","v":3.1995420463780265E-3},{"$f":"'Population 2016'!D88/'Population 2016'!D$5","v":1.9928014631808533E-3},{"$f":"'Population 2016'!E88/'Population 2016'!E$5","v":8.8599702792531378E-4},{"$f":"'Population 2016'!F88/'Population 2016'!F$5","v":2.8534638166366213E-3},{"$f":"'Population 2016'!G88/'Population 2016'!G$5","v":2.7472527472527475E-3},{"$f":"'Population 2016'!H88/'Population 2016'!H$5","v":1.168562933469082E-2},{"$f":"'Population 2016'!I88/'Population 2016'!I$5","v":2.6379700192613684E-3},{"$f":"'Population 2016'!J88/'Population 2016'!J$5","v":6.4685735136793742E-3},{"$f":"'Population 2016'!K88/'Population 2016'!K$5","v":1.004110948353258E-2},{"$f":"'Population 2016'!L88/'Population 2016'!L$5","v":3.2246278970025255E-3},{"$f":"'Population 2016'!M88/'Population 2016'!M$5","v":3.2246278970025255E-3},{"$f":"'Population 2016'!N88/'Population 2016'!N$5","v":1.3068533446926161E-2},{"$f":"'Population 2016'!O88/'Population 2016'!O$5","v":1.2680674849664656E-2},{"$f":"'Population 2016'!P88/'Population 2016'!P$5","v":2.0849768962019608E-3},{"$f":"'Population 2016'!Q88/'Population 2016'!Q$5","v":1.1045698640439008E-3},{"$f":"'Population 2016'!R88/'Population 2016'!R$5","v":2.4351945494224731E-3},{"$f":"'Population 2016'!S88/'Population 2016'!S$5","v":5.8440767488538688E-3},{"$f":"'Population 2016'!T88/'Population 2016'!T$5","v":5.3628846502840818E-3},{"$f":"'Population 2016'!U88/'Population 2016'!U$5","v":0},{"$f":"'Population 2016'!V88/'Population 2016'!V$5","v":6.4951420001373829E-3},{"$f":"'Population 2016'!W88/'Population 2016'!W$5","v":8.6122931905686408E-3},{"$f":"'Population 2016'!X88/'Population 2016'!X$5","v":8.6122931905686408E-3},{"$f":"'Population 2016'!Y88/'Population 2016'!Y$5","v":6.4824088647239316E-3},{"$f":"'Population 2016'!Z88/'Population 2016'!Z$5","v":1.833974404887501E-2},{"$f":"'Population 2016'!AA88/'Population 2016'!AA$5","v":1.3197294368627327E-2},{"$f":"'Population 2016'!AB88/'Population 2016'!AB$5","v":1.7481551231794317E-3},{"$f":"'Population 2016'!AC88/'Population 2016'!AC$5","v":1.4300164866648325E-2},{"$f":"'Population 2016'!AD88/'Population 2016'!AD$5","v":2.7466597193792101E-3},{"$f":"'Population 2016'!AE88/'Population 2016'!AE$5","v":2.7464347683241099E-3},{"$f":"'Population 2016'!AF88/'Population 2016'!AF$5","v":1.6860456348308676E-2},{"$f":"'Population 2016'!AG88/'Population 2016'!AG$5","v":2.7464347683241099E-3},{"$f":"'Population 2016'!AH88/'Population 2016'!AH$5","v":1.1216481056630411E-2},{"$f":"'Population 2016'!AI88/'Population 2016'!AI$5","v":5.1048866917490594E-3},{"$f":"'Population 2016'!AJ88/'Population 2016'!AJ$5","v":4.3080612330256814E-3},{"$f":"'Population 2016'!AK88/'Population 2016'!AK$5","v":4.9030084356888731E-4},{"$f":"'Population 2016'!AL88/'Population 2016'!AL$5","v":1.5288838438481049E-2},{"$f":"'Population 2016'!AM88/'Population 2016'!AM$5","v":1.3716492026179774E-2},{"$f":"'Population 2016'!AN88/'Population 2016'!AN$5","v":0},{"$f":"'Population 2016'!AO88/'Population 2016'!AO$5","v":0},{"$f":"'Population 2016'!AP88/'Population 2016'!AP$5","v":2.0369988744986765E-3},{"$f":"'Population 2016'!AQ88/'Population 2016'!AQ$5","v":1.2419849838329588E-2},{"$f":"'Population 2016'!AR88/'Population 2016'!AR$5","v":7.9928123056962203E-3},{"$f":"'Population 2016'!AS88/'Population 2016'!AS$5","v":2.6379700192613684E-3},{"$f":"'Population 2016'!AT88/'Population 2016'!AT$5","v":0},{"$f":"'Population 2016'!AU88/'Population 2016'!AU$5","v":0},{"$f":"'Population 2016'!AV88/'Population 2016'!AV$5","v":6.3351282863477985E-3},{"$f":"'Population 2016'!AW88/'Population 2016'!AW$5","v":8.5842638354994196E-3},{"$f":"'Population 2016'!AX88/'Population 2016'!AX$5","v":4.5363354076951579E-3},{"$f":"'Population 2016'!AY88/'Population 2016'!AY$5","v":7.3360668278204463E-3},{"$f":"'Population 2016'!AZ88/'Population 2016'!AZ$5","v":6.2129309501757456E-3},{"$f":"'Population 2016'!BA88/'Population 2016'!BA$5","v":1.4211293457136688E-2},{"$f":"'Population 2016'!BB88/'Population 2016'!BB$5","v":7.084510057104189E-3},{"$f":"'Population 2016'!BC88/'Population 2016'!BC$5","v":0},86]
[null,"Male 50-54",{"$f":"'Population 2016'!C89/'Population 2016'!C$5","v":3.1433200615375179E-3},{"$f":"'Population 2016'!D89/'Population 2016'!D$5","v":1.8876597908903299E-3},{"$f":"'Population 2016'!E89/'Population 2016'!E$5","v":7.3598694912314422E-4},{"$f":"'Population 2016'!F89/'Population 2016'!F$5","v":3.0079835178985319E-3},{"$f":"'Population 2016'!G89/'Population 2016'!G$5","v":3.5592486331402586E-3},{"$f":"'Population 2016'!H89/'Population 2016'!H$5","v":1.2580533246004546E-2},{"$f":"'Population 2016'!I89/'Population 2016'!I$5","v":2.7217150992379199E-3},{"$f":"'Population 2016'!J89/'Population 2016'!J$5","v":7.1403099939460783E-3},{"$f":"'Population 2016'!K89/'Population 2016'!K$5","v":1.0726267542408921E-2},{"$f":"'Population 2016'!L89/'Population 2016'!L$5","v":3.4708433275618318E-3},{"$f":"'Population 2016'!M89/'Population 2016'!M$5","v":3.4708433275618318E-3},{"$f":"'Population 2016'!N89/'Population 2016'!N$5","v":1.3381985356169778E-2},{"$f":"'Population 2016'!O89/'Population 2016'!O$5","v":1.3403869587184593E-2},{"$f":"'Population 2016'!P89/'Population 2016'!P$5","v":2.130057477741463E-3},{"$f":"'Population 2016'!Q89/'Population 2016'!Q$5","v":1.6803562825348703E-3},{"$f":"'Population 2016'!R89/'Population 2016'!R$5","v":3.2070048437749508E-3},{"$f":"'Population 2016'!S89/'Population 2016'!S$5","v":5.7637548965436885E-3},{"$f":"'Population 2016'!T89/'Population 2016'!T$5","v":5.560648292485447E-3},{"$f":"'Population 2016'!U89/'Population 2016'!U$5","v":0},{"$f":"'Population 2016'!V89/'Population 2016'!V$5","v":6.5485685500797581E-3},{"$f":"'Population 2016'!W89/'Population 2016'!W$5","v":7.9716823877787144E-3},{"$f":"'Population 2016'!X89/'Population 2016'!X$5","v":7.9716823877787144E-3},{"$f":"'Population 2016'!Y89/'Population 2016'!Y$5","v":6.8321648304478467E-3},{"$f":"'Population 2016'!Z89/'Population 2016'!Z$5","v":1.8783041640936693E-2},{"$f":"'Population 2016'!AA89/'Population 2016'!AA$5","v":1.3613197825874643E-2},{"$f":"'Population 2016'!AB89/'Population 2016'!AB$5","v":1.6314749802974319E-3},{"$f":"'Population 2016'!AC89/'Population 2016'!AC$5","v":1.5060371808423713E-2},{"$f":"'Population 2016'!AD89/'Population 2016'!AD$5","v":3.0332353269567161E-3},{"$f":"'Population 2016'!AE89/'Population 2016'!AE$5","v":2.8337046581587079E-3},{"$f":"'Population 2016'!AF89/'Population 2016'!AF$5","v":1.9378968164200937E-2},{"$f":"'Population 2016'!AG89/'Population 2016'!AG$5","v":2.8337046581587079E-3},{"$f":"'Population 2016'!AH89/'Population 2016'!AH$5","v":1.1013997380715752E-2},{"$f":"'Population 2016'!AI89/'Population 2016'!AI$5","v":5.2374989062910137E-3},{"$f":"'Population 2016'!AJ89/'Population 2016'!AJ$5","v":4.2522934500738921E-3},{"$f":"'Population 2016'!AK89/'Population 2016'!AK$5","v":3.1429541254415853E-4},{"$f":"'Population 2016'!AL89/'Population 2016'!AL$5","v":1.6805306752274703E-2},{"$f":"'Population 2016'!AM89/'Population 2016'!AM$5","v":1.3709248037784644E-2},{"$f":"'Population 2016'!AN89/'Population 2016'!AN$5","v":0},{"$f":"'Population 2016'!AO89/'Population 2016'!AO$5","v":0},{"$f":"'Population 2016'!AP89/'Population 2016'!AP$5","v":2.3540415008797932E-3},{"$f":"'Population 2016'!AQ89/'Population 2016'!AQ$5","v":1.2330794103140242E-2},{"$f":"'Population 2016'!AR89/'Population 2016'!AR$5","v":8.2253920494708699E-3},{"$f":"'Population 2016'!AS89/'Population 2016'!AS$5","v":2.7217150992379199E-3},{"$f":"'Population 2016'!AT89/'Population 2016'!AT$5","v":0},{"$f":"'Population 2016'!AU89/'Population 2016'!AU$5","v":0},{"$f":"'Population 2016'!AV89/'Population 2016'!AV$5","v":6.6730017949530145E-3},{"$f":"'Population 2016'!AW89/'Population 2016'!AW$5","v":8.1762157544694614E-3},{"$f":"'Population 2016'!AX89/'Population 2016'!AX$5","v":5.2008127068505052E-3},{"$f":"'Population 2016'!AY89/'Population 2016'!AY$5","v":7.180012851503932E-3},{"$f":"'Population 2016'!AZ89/'Population 2016'!AZ$5","v":6.4833085007852459E-3},{"$f":"'Population 2016'!BA89/'Population 2016'!BA$5","v":1.8125134960051824E-2},{"$f":"'Population 2016'!BB89/'Population 2016'!BB$5","v":6.8566456985423583E-3},{"$f":"'Population 2016'!BC89/'Population 2016'!BC$5","v":0},87]
[null,"Male 55-59",{"$f":"'Population 2016'!C90/'Population 2016'!C$5","v":2.8724323163968864E-3},{"$f":"'Population 2016'!D90/'Population 2016'!D$5","v":1.8191954461430123E-3},{"$f":"'Population 2016'!E90/'Population 2016'!E$5","v":8.5318232318733916E-4},{"$f":"'Population 2016'!F90/'Population 2016'!F$5","v":2.3899047128508885E-3},{"$f":"'Population 2016'!G90/'Population 2016'!G$5","v":2.882585394900666E-3},{"$f":"'Population 2016'!H90/'Population 2016'!H$5","v":1.2253050292951335E-2},{"$f":"'Population 2016'!I90/'Population 2016'!I$5","v":2.0622225944225778E-3},{"$f":"'Population 2016'!J90/'Population 2016'!J$5","v":6.750536974532065E-3},{"$f":"'Population 2016'!K90/'Population 2016'!K$5","v":1.0111987903416339E-2},{"$f":"'Population 2016'!L90/'Population 2016'!L$5","v":3.0896065318570995E-3},{"$f":"'Population 2016'!M90/'Population 2016'!M$5","v":3.0896065318570995E-3},{"$f":"'Population 2016'!N90/'Population 2016'!N$5","v":1.2899751649641137E-2},{"$f":"'Population 2016'!O90/'Population 2016'!O$5","v":1.2522166414043847E-2},{"$f":"'Population 2016'!P90/'Population 2016'!P$5","v":1.9497351515834554E-3},{"$f":"'Population 2016'!Q90/'Population 2016'!Q$5","v":1.3160832422650732E-3},{"$f":"'Population 2016'!R90/'Population 2016'!R$5","v":2.5682652898280727E-3},{"$f":"'Population 2016'!S90/'Population 2016'!S$5","v":5.0223224136804884E-3},{"$f":"'Population 2016'!T90/'Population 2016'!T$5","v":4.3833729636161434E-3},{"$f":"'Population 2016'!U90/'Population 2016'!U$5","v":0},{"$f":"'Population 2016'!V90/'Population 2016'!V$5","v":5.5487288297295856E-3},{"$f":"'Population 2016'!W90/'Population 2016'!W$5","v":7.8867034037351531E-3},{"$f":"'Population 2016'!X90/'Population 2016'!X$5","v":7.8867034037351531E-3},{"$f":"'Population 2016'!Y90/'Population 2016'!Y$5","v":6.1247038997790182E-3},{"$f":"'Population 2016'!Z90/'Population 2016'!Z$5","v":1.643491946115145E-2},{"$f":"'Population 2016'!AA90/'Population 2016'!AA$5","v":1.2134282337324279E-2},{"$f":"'Population 2016'!AB90/'Population 2016'!AB$5","v":1.5782524589828357E-3},{"$f":"'Population 2016'!AC90/'Population 2016'!AC$5","v":1.3196571932125414E-2},{"$f":"'Population 2016'!AD90/'Population 2016'!AD$5","v":2.7801555696155421E-3},{"$f":"'Population 2016'!AE90/'Population 2016'!AE$5","v":2.741301245392663E-3},{"$f":"'Population 2016'!AF90/'Population 2016'!AF$5","v":1.696602271184907E-2},{"$f":"'Population 2016'!AG90/'Population 2016'!AG$5","v":2.741301245392663E-3},{"$f":"'Population 2016'!AH90/'Population 2016'!AH$5","v":1.0226354457891754E-2},{"$f":"'Population 2016'!AI90/'Population 2016'!AI$5","v":4.210779595765159E-3},{"$f":"'Population 2016'!AJ90/'Population 2016'!AJ$5","v":3.7503834035077935E-3},{"$f":"'Population 2016'!AK90/'Population 2016'!AK$5","v":3.3943904554769119E-4},{"$f":"'Population 2016'!AL90/'Population 2016'!AL$5","v":1.649491850091343E-2},{"$f":"'Population 2016'!AM90/'Population 2016'!AM$5","v":1.2267694347153656E-2},{"$f":"'Population 2016'!AN90/'Population 2016'!AN$5","v":0},{"$f":"'Population 2016'!AO90/'Population 2016'!AO$5","v":0},{"$f":"'Population 2016'!AP90/'Population 2016'!AP$5","v":1.8467732986700062E-3},{"$f":"'Population 2016'!AQ90/'Population 2016'!AQ$5","v":1.1474488957088837E-2},{"$f":"'Population 2016'!AR90/'Population 2016'!AR$5","v":7.4075757282096285E-3},{"$f":"'Population 2016'!AS90/'Population 2016'!AS$5","v":2.0622225944225778E-3},{"$f":"'Population 2016'!AT90/'Population 2016'!AT$5","v":0},{"$f":"'Population 2016'!AU90/'Population 2016'!AU$5","v":0},{"$f":"'Population 2016'!AV90/'Population 2016'!AV$5","v":6.9158483792630138E-3},{"$f":"'Population 2016'!AW90/'Population 2016'!AW$5","v":8.0770638843126481E-3},{"$f":"'Population 2016'!AX90/'Population 2016'!AX$5","v":4.9324661052685386E-3},{"$f":"'Population 2016'!AY90/'Population 2016'!AY$5","v":6.8587252532052263E-3},{"$f":"'Population 2016'!AZ90/'Population 2016'!AZ$5","v":5.9540588272517557E-3},{"$f":"'Population 2016'!BA90/'Population 2016'!BA$5","v":1.4886093716259987E-2},{"$f":"'Population 2016'!BB90/'Population 2016'!BB$5","v":5.6275591584209689E-3},{"$f":"'Population 2016'!BC90/'Population 2016'!BC$5","v":0},88]
[null,"Male 60-64",{"$f":"'Population 2016'!C91/'Population 2016'!C$5","v":2.5862113026633889E-3},{"$f":"'Population 2016'!D91/'Population 2016'!D$5","v":1.484209187915065E-3},{"$f":"'Population 2016'!E91/'Population 2016'!E$5","v":4.7346931121934756E-4},{"$f":"'Population 2016'!F91/'Population 2016'!F$5","v":2.0190574298223022E-3},{"$f":"'Population 2016'!G91/'Population 2016'!G$5","v":2.8013858063119148E-3},{"$f":"'Population 2016'!H91/'Population 2016'!H$5","v":1.0472969686751207E-2},{"$f":"'Population 2016'!I91/'Population 2016'!I$5","v":1.6120927895486141E-3},{"$f":"'Population 2016'!J91/'Population 2016'!J$5","v":5.2660822835723115E-3},{"$f":"'Population 2016'!K91/'Population 2016'!K$5","v":7.8675046070972917E-3},{"$f":"'Population 2016'!L91/'Population 2016'!L$5","v":2.5574635045192444E-3},{"$f":"'Population 2016'!M91/'Population 2016'!M$5","v":2.5574635045192444E-3},{"$f":"'Population 2016'!N91/'Population 2016'!N$5","v":1.0400173604134351E-2},{"$f":"'Population 2016'!O91/'Population 2016'!O$5","v":1.0352582201484035E-2},{"$f":"'Population 2016'!P91/'Population 2016'!P$5","v":1.8032232615800743E-3},{"$f":"'Population 2016'!Q91/'Population 2016'!Q$5","v":1.0223146614023338E-3},{"$f":"'Population 2016'!R91/'Population 2016'!R$5","v":1.9428328099217545E-3},{"$f":"'Population 2016'!S91/'Population 2016'!S$5","v":4.203216051660191E-3},{"$f":"'Population 2016'!T91/'Population 2016'!T$5","v":3.7458760464023303E-3},{"$f":"'Population 2016'!U91/'Population 2016'!U$5","v":0},{"$f":"'Population 2016'!V91/'Population 2016'!V$5","v":4.7549629448714326E-3},{"$f":"'Population 2016'!W91/'Population 2016'!W$5","v":6.5956765307656606E-3},{"$f":"'Population 2016'!X91/'Population 2016'!X$5","v":6.5956765307656606E-3},{"$f":"'Population 2016'!Y91/'Population 2016'!Y$5","v":4.9999205100077901E-3},{"$f":"'Population 2016'!Z91/'Population 2016'!Z$5","v":1.3244725436183536E-2},{"$f":"'Population 2016'!AA91/'Population 2016'!AA$5","v":9.8527927651401153E-3},{"$f":"'Population 2016'!AB91/'Population 2016'!AB$5","v":1.2834815717019947E-3},{"$f":"'Population 2016'!AC91/'Population 2016'!AC$5","v":1.0643931480014315E-2},{"$f":"'Population 2016'!AD91/'Population 2016'!AD$5","v":2.4005359336037812E-3},{"$f":"'Population 2016'!AE91/'Population 2016'!AE$5","v":2.2484830439737573E-3},{"$f":"'Population 2016'!AF91/'Population 2016'!AF$5","v":1.4537996350420003E-2},{"$f":"'Population 2016'!AG91/'Population 2016'!AG$5","v":2.2484830439737573E-3},{"$f":"'Population 2016'!AH91/'Population 2016'!AH$5","v":8.4318661007031191E-3},{"$f":"'Population 2016'!AI91/'Population 2016'!AI$5","v":3.5408828418934291E-3},{"$f":"'Population 2016'!AJ91/'Population 2016'!AJ$5","v":3.401834760059114E-3},{"$f":"'Population 2016'!AK91/'Population 2016'!AK$5","v":2.5143633003532682E-4},{"$f":"'Population 2016'!AL91/'Population 2016'!AL$5","v":1.3967471311257338E-2},{"$f":"'Population 2016'!AM91/'Population 2016'!AM$5","v":9.8590682057727343E-3},{"$f":"'Population 2016'!AN91/'Population 2016'!AN$5","v":0},{"$f":"'Population 2016'!AO91/'Population 2016'!AO$5","v":0},{"$f":"'Population 2016'!AP91/'Population 2016'!AP$5","v":1.5376567379484171E-3},{"$f":"'Population 2016'!AQ91/'Population 2016'!AQ$5","v":8.1931276374198492E-3},{"$f":"'Population 2016'!AR91/'Population 2016'!AR$5","v":6.0947477300640285E-3},{"$f":"'Population 2016'!AS91/'Population 2016'!AS$5","v":1.6120927895486141E-3},{"$f":"'Population 2016'!AT91/'Population 2016'!AT$5","v":0},{"$f":"'Population 2016'!AU91/'Population 2016'!AU$5","v":0},{"$f":"'Population 2016'!AV91/'Population 2016'!AV$5","v":6.4407137577869285E-3},{"$f":"'Population 2016'!AW91/'Population 2016'!AW$5","v":6.9291903105741653E-3},{"$f":"'Population 2016'!AX91/'Population 2016'!AX$5","v":3.8590796989406697E-3},{"$f":"'Population 2016'!AY91/'Population 2016'!AY$5","v":5.6638413757228974E-3},{"$f":"'Population 2016'!AZ91/'Population 2016'!AZ$5","v":4.8437850555999792E-3},{"$f":"'Population 2016'!BA91/'Population 2016'!BA$5","v":1.3266573094364069E-2},{"$f":"'Population 2016'!BB91/'Population 2016'!BB$5","v":4.4813323850493364E-3},{"$f":"'Population 2016'!BC91/'Population 2016'!BC$5","v":0},89]
[null,"Male 65-69",{"$f":"'Population 2016'!C92/'Population 2016'!C$5","v":2.2233239459655617E-3},{"$f":"'Population 2016'!D92/'Population 2016'!D$5","v":1.3546159639290709E-3},{"$f":"'Population 2016'!E92/'Population 2016'!E$5","v":5.5784998054556794E-4},{"$f":"'Population 2016'!F92/'Population 2016'!F$5","v":2.111769250579449E-3},{"$f":"'Population 2016'!G92/'Population 2016'!G$5","v":2.3141882747794076E-3},{"$f":"'Population 2016'!H92/'Population 2016'!H$5","v":1.0064426596803637E-2},{"$f":"'Population 2016'!I92/'Population 2016'!I$5","v":2.0936269994137843E-3},{"$f":"'Population 2016'!J92/'Population 2016'!J$5","v":5.1416866390784771E-3},{"$f":"'Population 2016'!K92/'Population 2016'!K$5","v":7.9620091669423045E-3},{"$f":"'Population 2016'!L92/'Population 2016'!L$5","v":2.9466427334678253E-3},{"$f":"'Population 2016'!M92/'Population 2016'!M$5","v":2.9466427334678253E-3},{"$f":"'Population 2016'!N92/'Population 2016'!N$5","v":9.8857909838371335E-3},{"$f":"'Population 2016'!O92/'Population 2016'!O$5","v":1.0788480399441257E-2},{"$f":"'Population 2016'!P92/'Population 2016'!P$5","v":1.431308463879184E-3},{"$f":"'Population 2016'!Q92/'Population 2016'!Q$5","v":1.1868250666854678E-3},{"$f":"'Population 2016'!R92/'Population 2016'!R$5","v":1.8097620695161547E-3},{"$f":"'Population 2016'!S92/'Population 2016'!S$5","v":3.9331227900457396E-3},{"$f":"'Population 2016'!T92/'Population 2016'!T$5","v":3.0571932453246349E-3},{"$f":"'Population 2016'!U92/'Population 2016'!U$5","v":0},{"$f":"'Population 2016'!V92/'Population 2016'!V$5","v":4.9152425946985597E-3},{"$f":"'Population 2016'!W92/'Population 2016'!W$5","v":6.3701553808039012E-3},{"$f":"'Population 2016'!X92/'Population 2016'!X$5","v":6.3701553808039012E-3},{"$f":"'Population 2016'!Y92/'Population 2016'!Y$5","v":5.023767507670784E-3},{"$f":"'Population 2016'!Z92/'Population 2016'!Z$5","v":1.1800620616628886E-2},{"$f":"'Population 2016'!AA92/'Population 2016'!AA$5","v":9.0528762115845724E-3},{"$f":"'Population 2016'!AB92/'Population 2016'!AB$5","v":1.1729424889716795E-3},{"$f":"'Population 2016'!AC92/'Population 2016'!AC$5","v":9.5455100212857944E-3},{"$f":"'Population 2016'!AD92/'Population 2016'!AD$5","v":2.1474561762626077E-3},{"$f":"'Population 2016'!AE92/'Population 2016'!AE$5","v":2.0842103101674555E-3},{"$f":"'Population 2016'!AF92/'Population 2016'!AF$5","v":1.4749129077500792E-2},{"$f":"'Population 2016'!AG92/'Population 2016'!AG$5","v":2.0842103101674555E-3},{"$f":"'Population 2016'!AH92/'Population 2016'!AH$5","v":8.1680800274931964E-3},{"$f":"'Population 2016'!AI92/'Population 2016'!AI$5","v":3.1539832881266952E-3},{"$f":"'Population 2016'!AJ92/'Population 2016'!AJ$5","v":2.830214984803279E-3},{"$f":"'Population 2016'!AK92/'Population 2016'!AK$5","v":2.3886451353356047E-4},{"$f":"'Population 2016'!AL92/'Population 2016'!AL$5","v":1.3213671272237101E-2},{"$f":"'Population 2016'!AM92/'Population 2016'!AM$5","v":9.6598585249066428E-3},{"$f":"'Population 2016'!AN92/'Population 2016'!AN$5","v":0},{"$f":"'Population 2016'!AO92/'Population 2016'!AO$5","v":0},{"$f":"'Population 2016'!AP92/'Population 2016'!AP$5","v":1.2760965711839957E-3},{"$f":"'Population 2016'!AQ92/'Population 2016'!AQ$5","v":7.3642242560420894E-3},{"$f":"'Population 2016'!AR92/'Population 2016'!AR$5","v":5.6957531696230357E-3},{"$f":"'Population 2016'!AS92/'Population 2016'!AS$5","v":2.0936269994137843E-3},{"$f":"'Population 2016'!AT92/'Population 2016'!AT$5","v":0},{"$f":"'Population 2016'!AU92/'Population 2016'!AU$5","v":0},{"$f":"'Population 2016'!AV92/'Population 2016'!AV$5","v":5.5432372505543242E-3},{"$f":"'Population 2016'!AW92/'Population 2016'!AW$5","v":6.5974128988956007E-3},{"$f":"'Population 2016'!AX92/'Population 2016'!AX$5","v":3.6162899165569852E-3},{"$f":"'Population 2016'!AY92/'Population 2016'!AY$5","v":5.4236406474710078E-3},{"$f":"'Population 2016'!AZ92/'Population 2016'!AZ$5","v":4.5906656465187455E-3},{"$f":"'Population 2016'!BA92/'Population 2016'!BA$5","v":1.1026236234074714E-2},{"$f":"'Population 2016'!BB92/'Population 2016'!BB$5","v":4.7575316075485251E-3},{"$f":"'Population 2016'!BC92/'Population 2016'!BC$5","v":0},90]
[null,"Male 70-74",{"$f":"'Population 2016'!C93/'Population 2016'!C$5","v":1.2931056513316944E-3},{"$f":"'Population 2016'!D93/'Population 2016'!D$5","v":7.8244965425505904E-4},{"$f":"'Population 2016'!E93/'Population 2016'!E$5","v":3.1408360249204242E-4},{"$f":"'Population 2016'!F93/'Population 2016'!F$5","v":1.3906773113571979E-3},{"$f":"'Population 2016'!G93/'Population 2016'!G$5","v":2.11118930330753E-3},{"$f":"'Population 2016'!H93/'Population 2016'!H$5","v":7.4640174052325939E-3},{"$f":"'Population 2016'!I93/'Population 2016'!I$5","v":1.4550707645925802E-3},{"$f":"'Population 2016'!J93/'Population 2016'!J$5","v":3.6904041199837456E-3},{"$f":"'Population 2016'!K93/'Population 2016'!K$5","v":5.7884042905070173E-3},{"$f":"'Population 2016'!L93/'Population 2016'!L$5","v":1.7949899131097804E-3},{"$f":"'Population 2016'!M93/'Population 2016'!M$5","v":1.7949899131097804E-3},{"$f":"'Population 2016'!N93/'Population 2016'!N$5","v":7.0325748868760099E-3},{"$f":"'Population 2016'!O93/'Population 2016'!O$5","v":7.4003625880464828E-3},{"$f":"'Population 2016'!P93/'Population 2016'!P$5","v":9.9177279386904096E-4},{"$f":"'Population 2016'!Q93/'Population 2016'!Q$5","v":7.5204756700861328E-4},{"$f":"'Population 2016'!R93/'Population 2016'!R$5","v":1.1577154415287167E-3},{"$f":"'Population 2016'!S93/'Population 2016'!S$5","v":2.8924693408841759E-3},{"$f":"'Population 2016'!T93/'Population 2016'!T$5","v":2.0800081897414183E-3},{"$f":"'Population 2016'!U93/'Population 2016'!U$5","v":0},{"$f":"'Population 2016'!V93/'Population 2016'!V$5","v":3.0987398966577876E-3},{"$f":"'Population 2016'!W93/'Population 2016'!W$5","v":4.8699494701887188E-3},{"$f":"'Population 2016'!X93/'Population 2016'!X$5","v":4.8699494701887188E-3},{"$f":"'Population 2016'!Y93/'Population 2016'!Y$5","v":3.3822991685346815E-3},{"$f":"'Population 2016'!Z93/'Population 2016'!Z$5","v":8.5504168739582997E-3},{"$f":"'Population 2016'!AA93/'Population 2016'!AA$5","v":6.5235719596028856E-3},{"$f":"'Population 2016'!AB93/'Population 2016'!AB$5","v":6.8575171693806736E-4},{"$f":"'Population 2016'!AC93/'Population 2016'!AC$5","v":6.8615140839971781E-3},{"$f":"'Population 2016'!AD93/'Population 2016'!AD$5","v":1.5594179165581152E-3},{"$f":"'Population 2016'!AE93/'Population 2016'!AE$5","v":1.3501165309705437E-3},{"$f":"'Population 2016'!AF93/'Population 2016'!AF$5","v":1.0164532718032243E-2},{"$f":"'Population 2016'!AG93/'Population 2016'!AG$5","v":1.3501165309705437E-3},{"$f":"'Population 2016'!AH93/'Population 2016'!AH$5","v":5.9166101631944121E-3},{"$f":"'Population 2016'!AI93/'Population 2016'!AI$5","v":2.2530405109808384E-3},{"$f":"'Population 2016'!AJ93/'Population 2016'!AJ$5","v":2.1191757521679725E-3},{"$f":"'Population 2016'!AK93/'Population 2016'!AK$5","v":1.8857724752649509E-4},{"$f":"'Population 2016'!AL93/'Population 2016'!AL$5","v":1.0136393465883898E-2},{"$f":"'Population 2016'!AM93/'Population 2016'!AM$5","v":6.8057270972251898E-3},{"$f":"'Population 2016'!AN93/'Population 2016'!AN$5","v":0},{"$f":"'Population 2016'!AO93/'Population 2016'!AO$5","v":0},{"$f":"'Population 2016'!AP93/'Population 2016'!AP$5","v":9.432018134838229E-4},{"$f":"'Population 2016'!AQ93/'Population 2016'!AQ$5","v":5.2748396996766594E-3},{"$f":"'Population 2016'!AR93/'Population 2016'!AR$5","v":4.0897499389032617E-3},{"$f":"'Population 2016'!AS93/'Population 2016'!AS$5","v":1.4550707645925802E-3},{"$f":"'Population 2016'!AT93/'Population 2016'!AT$5","v":0},{"$f":"'Population 2016'!AU93/'Population 2016'!AU$5","v":0},{"$f":"'Population 2016'!AV93/'Population 2016'!AV$5","v":4.350121423292155E-3},{"$f":"'Population 2016'!AW93/'Population 2016'!AW$5","v":4.9804747086460432E-3},{"$f":"'Population 2016'!AX93/'Population 2016'!AX$5","v":2.555681919828258E-3},{"$f":"'Population 2016'!AY93/'Population 2016'!AY$5","v":4.0069153330681432E-3},{"$f":"'Population 2016'!AZ93/'Population 2016'!AZ$5","v":3.2474069642353782E-3},{"$f":"'Population 2016'!BA93/'Population 2016'!BA$5","v":8.0706110991146628E-3},{"$f":"'Population 2016'!BB93/'Population 2016'!BB$5","v":3.7148795426140877E-3},{"$f":"'Population 2016'!BC93/'Population 2016'!BC$5","v":0},91]
[null,"Male 75-79",{"$f":"'Population 2016'!C94/'Population 2016'!C$5","v":8.5355195166953736E-4},{"$f":"'Population 2016'!D94/'Population 2016'!D$5","v":5.5015991314808833E-4},{"$f":"'Population 2016'!E94/'Population 2016'!E$5","v":2.7189326782893226E-4},{"$f":"'Population 2016'!F94/'Population 2016'!F$5","v":1.2567602369302085E-3},{"$f":"'Population 2016'!G94/'Population 2016'!G$5","v":1.2179938288312672E-3},{"$f":"'Population 2016'!H94/'Population 2016'!H$5","v":5.82011782901499E-3},{"$f":"'Population 2016'!I94/'Population 2016'!I$5","v":7.6417385478603128E-4},{"$f":"'Population 2016'!J94/'Population 2016'!J$5","v":2.9523232959869964E-3},{"$f":"'Population 2016'!K94/'Population 2016'!K$5","v":4.2999574729480697E-3},{"$f":"'Population 2016'!L94/'Population 2016'!L$5","v":1.4534652836242911E-3},{"$f":"'Population 2016'!M94/'Population 2016'!M$5","v":1.4534652836242911E-3},{"$f":"'Population 2016'!N94/'Population 2016'!N$5","v":5.336719685583623E-3},{"$f":"'Population 2016'!O94/'Population 2016'!O$5","v":6.2908035387008255E-3},{"$f":"'Population 2016'!P94/'Population 2016'!P$5","v":7.5509974078665615E-4},{"$f":"'Population 2016'!Q94/'Population 2016'!Q$5","v":7.1679533730508458E-4},{"$f":"'Population 2016'!R94/'Population 2016'!R$5","v":1.3440144780965562E-3},{"$f":"'Population 2016'!S94/'Population 2016'!S$5","v":2.1033733412654841E-3},{"$f":"'Population 2016'!T94/'Population 2016'!T$5","v":1.6868075364234096E-3},{"$f":"'Population 2016'!U94/'Population 2016'!U$5","v":0},{"$f":"'Population 2016'!V94/'Population 2016'!V$5","v":2.6713274971187826E-3},{"$f":"'Population 2016'!W94/'Population 2016'!W$5","v":3.2684224632139052E-3},{"$f":"'Population 2016'!X94/'Population 2016'!X$5","v":3.2684224632139052E-3},{"$f":"'Population 2016'!Y94/'Population 2016'!Y$5","v":2.8059967250123208E-3},{"$f":"'Population 2016'!Z94/'Population 2016'!Z$5","v":6.4132966048050365E-3},{"$f":"'Population 2016'!AA94/'Population 2016'!AA$5","v":4.9509785357939404E-3},{"$f":"'Population 2016'!AB94/'Population 2016'!AB$5","v":4.7490865173024368E-4},{"$f":"'Population 2016'!AC94/'Population 2016'!AC$5","v":5.2397392748763502E-3},{"$f":"'Population 2016'!AD94/'Population 2016'!AD$5","v":1.0458148796010272E-3},{"$f":"'Population 2016'!AE94/'Population 2016'!AE$5","v":9.8050287990636463E-4},{"$f":"'Population 2016'!AF94/'Population 2016'!AF$5","v":7.630939993062782E-3},{"$f":"'Population 2016'!AG94/'Population 2016'!AG$5","v":9.8050287990636463E-4},{"$f":"'Population 2016'!AH94/'Population 2016'!AH$5","v":4.4323490892878709E-3},{"$f":"'Population 2016'!AI94/'Population 2016'!AI$5","v":1.7909484644325839E-3},{"$f":"'Population 2016'!AJ94/'Population 2016'!AJ$5","v":1.6172657056018737E-3},{"$f":"'Population 2016'!AK94/'Population 2016'!AK$5","v":8.800271551236438E-5},{"$f":"'Population 2016'!AL94/'Population 2016'!AL$5","v":7.5557368617087317E-3},{"$f":"'Population 2016'!AM94/'Population 2016'!AM$5","v":5.3533074240015065E-3},{"$f":"'Population 2016'!AN94/'Population 2016'!AN$5","v":0},{"$f":"'Population 2016'!AO94/'Population 2016'!AO$5","v":0},{"$f":"'Population 2016'!AP94/'Population 2016'!AP$5","v":7.609023033146807E-4},{"$f":"'Population 2016'!AQ94/'Population 2016'!AQ$5","v":4.6514495533512357E-3},{"$f":"'Population 2016'!AR94/'Population 2016'!AR$5","v":3.0997265851345455E-3},{"$f":"'Population 2016'!AS94/'Population 2016'!AS$5","v":7.6417385478603128E-4},{"$f":"'Population 2016'!AT94/'Population 2016'!AT$5","v":0},{"$f":"'Population 2016'!AU94/'Population 2016'!AU$5","v":0},{"$f":"'Population 2016'!AV94/'Population 2016'!AV$5","v":3.2520325203252032E-3},{"$f":"'Population 2016'!AW94/'Population 2016'!AW$5","v":3.4626883885532978E-3},{"$f":"'Population 2016'!AX94/'Population 2016'!AX$5","v":2.2234432702505848E-3},{"$f":"'Population 2016'!AY94/'Population 2016'!AY$5","v":2.8793488571341144E-3},{"$f":"'Population 2016'!AZ94/'Population 2016'!AZ$5","v":2.536946804655096E-3},{"$f":"'Population 2016'!BA94/'Population 2016'!BA$5","v":5.3984020729863956E-3},{"$f":"'Population 2016'!BB94/'Population 2016'!BB$5","v":2.8172320694917243E-3},{"$f":"'Population 2016'!BC94/'Population 2016'!BC$5","v":0},92]
[null,"Male 80-84",{"$f":"'Population 2016'!C95/'Population 2016'!C$5","v":6.1333074371463766E-4},{"$f":"'Population 2016'!D95/'Population 2016'!D$5","v":3.9611513746662364E-4},{"$f":"'Population 2016'!E95/'Population 2016'!E$5","v":1.9688822842784751E-4},{"$f":"'Population 2016'!F95/'Population 2016'!F$5","v":7.1079062580479014E-4},{"$f":"'Population 2016'!G95/'Population 2016'!G$5","v":9.3379526877063819E-4},{"$f":"'Population 2016'!H95/'Population 2016'!H$5","v":3.9038561928323385E-3},{"$f":"'Population 2016'!I95/'Population 2016'!I$5","v":5.8621555983585959E-4},{"$f":"'Population 2016'!J95/'Population 2016'!J$5","v":1.4098173042634535E-3},{"$f":"'Population 2016'!K95/'Population 2016'!K$5","v":1.9137173368615036E-3},{"$f":"'Population 2016'!L95/'Population 2016'!L$5","v":9.2132225628643589E-4},{"$f":"'Population 2016'!M95/'Population 2016'!M$5","v":9.2132225628643589E-4},{"$f":"'Population 2016'!N95/'Population 2016'!N$5","v":3.3917104025847728E-3},{"$f":"'Population 2016'!O95/'Population 2016'!O$5","v":4.180659989498816E-3},{"$f":"'Population 2016'!P95/'Population 2016'!P$5","v":4.8461625154964499E-4},{"$f":"'Population 2016'!Q95/'Population 2016'!Q$5","v":4.5827898614587373E-4},{"$f":"'Population 2016'!R95/'Population 2016'!R$5","v":6.3873955394687821E-4},{"$f":"'Population 2016'!S95/'Population 2016'!S$5","v":1.452854603324795E-3},{"$f":"'Population 2016'!T95/'Population 2016'!T$5","v":1.1540090180220844E-3},{"$f":"'Population 2016'!U95/'Population 2016'!U$5","v":0},{"$f":"'Population 2016'!V95/'Population 2016'!V$5","v":1.9538852550354522E-3},{"$f":"'Population 2016'!W95/'Population 2016'!W$5","v":2.3696062858300812E-3},{"$f":"'Population 2016'!X95/'Population 2016'!X$5","v":2.3696062858300812E-3},{"$f":"'Population 2016'!Y95/'Population 2016'!Y$5","v":1.6931368340725903E-3},{"$f":"'Population 2016'!Z95/'Population 2016'!Z$5","v":4.3826451896403868E-3},{"$f":"'Population 2016'!AA95/'Population 2016'!AA$5","v":3.2740770564133842E-3},{"$f":"'Population 2016'!AB95/'Population 2016'!AB$5","v":3.377583083426302E-4},{"$f":"'Population 2016'!AC95/'Population 2016'!AC$5","v":3.4866089805780055E-3},{"$f":"'Population 2016'!AD95/'Population 2016'!AD$5","v":7.2946518292455994E-4},{"$f":"'Population 2016'!AE95/'Population 2016'!AE$5","v":6.5195741229376076E-4},{"$f":"'Population 2016'!AF95/'Population 2016'!AF$5","v":4.9012954500897311E-3},{"$f":"'Population 2016'!AG95/'Population 2016'!AG$5","v":6.5195741229376076E-4},{"$f":"'Population 2016'!AH95/'Population 2016'!AH$5","v":2.8923585632947254E-3},{"$f":"'Population 2016'!AI95/'Population 2016'!AI$5","v":1.1825728410184619E-3},{"$f":"'Population 2016'!AJ95/'Population 2016'!AJ$5","v":1.0317039846080918E-3},{"$f":"'Population 2016'!AK95/'Population 2016'!AK$5","v":3.7715449505299018E-5},{"$f":"'Population 2016'!AL95/'Population 2016'!AL$5","v":4.9218708430144907E-3},{"$f":"'Population 2016'!AM95/'Population 2016'!AM$5","v":3.5133343716383368E-3},{"$f":"'Population 2016'!AN95/'Population 2016'!AN$5","v":0},{"$f":"'Population 2016'!AO95/'Population 2016'!AO$5","v":0},{"$f":"'Population 2016'!AP95/'Population 2016'!AP$5","v":5.0726820220978706E-4},{"$f":"'Population 2016'!AQ95/'Population 2016'!AQ$5","v":2.9114374965747794E-3},{"$f":"'Population 2016'!AR95/'Population 2016'!AR$5","v":2.0575732887956489E-3},{"$f":"'Population 2016'!AS95/'Population 2016'!AS$5","v":5.8621555983585959E-4},{"$f":"'Population 2016'!AT95/'Population 2016'!AT$5","v":0},{"$f":"'Population 2016'!AU95/'Population 2016'!AU$5","v":0},{"$f":"'Population 2016'!AV95/'Population 2016'!AV$5","v":2.3967902016682504E-3},{"$f":"'Population 2016'!AW95/'Population 2016'!AW$5","v":2.2385441454634207E-3},{"$f":"'Population 2016'!AX95/'Population 2016'!AX$5","v":1.1372784543235749E-3},{"$f":"'Population 2016'!AY95/'Population 2016'!AY$5","v":1.9583244086778251E-3},{"$f":"'Population 2016'!AZ95/'Population 2016'!AZ$5","v":1.5963780913646013E-3},{"$f":"'Population 2016'!BA95/'Population 2016'!BA$5","v":3.5899373785359535E-3},{"$f":"'Population 2016'!BB95/'Population 2016'!BB$5","v":1.7676750239948075E-3},{"$f":"'Population 2016'!BC95/'Population 2016'!BC$5","v":0},93]
[null,"Male 85-89",{"$f":"'Population 2016'!C96/'Population 2016'!C$5","v":3.1688755091922947E-4},{"$f":"'Population 2016'!D96/'Population 2016'!D$5","v":2.0294787907240594E-4},{"$f":"'Population 2016'!E96/'Population 2016'!E$5","v":9.8444114213923754E-5},{"$f":"'Population 2016'!F96/'Population 2016'!F$5","v":3.8114859644604689E-4},{"$f":"'Population 2016'!G96/'Population 2016'!G$5","v":5.277973258268825E-4},{"$f":"'Population 2016'!H96/'Population 2016'!H$5","v":1.8319590938125176E-3},{"$f":"'Population 2016'!I96/'Population 2016'!I$5","v":3.9778912988861902E-4},{"$f":"'Population 2016'!J96/'Population 2016'!J$5","v":8.6247646849058328E-4},{"$f":"'Population 2016'!K96/'Population 2016'!K$5","v":1.2994376978689222E-3},{"$f":"'Population 2016'!L96/'Population 2016'!L$5","v":5.3214302733785518E-4},{"$f":"'Population 2016'!M96/'Population 2016'!M$5","v":5.3214302733785518E-4},{"$f":"'Population 2016'!N96/'Population 2016'!N$5","v":1.8003391710402585E-3},{"$f":"'Population 2016'!O96/'Population 2016'!O$5","v":2.0606096630705066E-3},{"$f":"'Population 2016'!P96/'Population 2016'!P$5","v":2.5921334385213568E-4},{"$f":"'Population 2016'!Q96/'Population 2016'!Q$5","v":1.1750743234509583E-4},{"$f":"'Population 2016'!R96/'Population 2016'!R$5","v":3.193697769734391E-4},{"$f":"'Population 2016'!S96/'Population 2016'!S$5","v":6.9641693926079181E-4},{"$f":"'Population 2016'!T96/'Population 2016'!T$5","v":5.4443167382493493E-4},{"$f":"'Population 2016'!U96/'Population 2016'!U$5","v":0},{"$f":"'Population 2016'!V96/'Population 2016'!V$5","v":7.9376588485815256E-4},{"$f":"'Population 2016'!W96/'Population 2016'!W$5","v":1.1341425947352251E-3},{"$f":"'Population 2016'!X96/'Population 2016'!X$5","v":1.1341425947352251E-3},{"$f":"'Population 2016'!Y96/'Population 2016'!Y$5","v":8.2669591898379999E-4},{"$f":"'Population 2016'!Z96/'Population 2016'!Z$5","v":2.0964685249030648E-3},{"$f":"'Population 2016'!AA96/'Population 2016'!AA$5","v":1.5519975657024483E-3},{"$f":"'Population 2016'!AB96/'Population 2016'!AB$5","v":1.7809074439884139E-4},{"$f":"'Population 2016'!AC96/'Population 2016'!AC$5","v":1.6724552719058544E-3},{"$f":"'Population 2016'!AD96/'Population 2016'!AD$5","v":3.8706315828650119E-4},{"$f":"'Population 2016'!AE96/'Population 2016'!AE$5","v":3.3367899054405077E-4},{"$f":"'Population 2016'!AF96/'Population 2016'!AF$5","v":2.1264081798850836E-3},{"$f":"'Population 2016'!AG96/'Population 2016'!AG$5","v":3.3367899054405077E-4},{"$f":"'Population 2016'!AH96/'Population 2016'!AH$5","v":1.3356492016755989E-3},{"$f":"'Population 2016'!AI96/'Population 2016'!AI$5","v":5.5232303788607922E-4},{"$f":"'Population 2016'!AJ96/'Population 2016'!AJ$5","v":7.8074896132504252E-4},{"$f":"'Population 2016'!AK96/'Population 2016'!AK$5","v":5.0287266007065362E-5},{"$f":"'Population 2016'!AL96/'Population 2016'!AL$5","v":2.2259271740479947E-3},{"$f":"'Population 2016'!AM96/'Population 2016'!AM$5","v":1.5176155687798589E-3},{"$f":"'Population 2016'!AN96/'Population 2016'!AN$5","v":0},{"$f":"'Population 2016'!AO96/'Population 2016'!AO$5","v":0},{"$f":"'Population 2016'!AP96/'Population 2016'!AP$5","v":2.5363410110489353E-4},{"$f":"'Population 2016'!AQ96/'Population 2016'!AQ$5","v":1.5481997040609416E-3},{"$f":"'Population 2016'!AR96/'Population 2016'!AR$5","v":9.9113724143047241E-4},{"$f":"'Population 2016'!AS96/'Population 2016'!AS$5","v":3.9778912988861902E-4},{"$f":"'Population 2016'!AT96/'Population 2016'!AT$5","v":0},{"$f":"'Population 2016'!AU96/'Population 2016'!AU$5","v":0},{"$f":"'Population 2016'!AV96/'Population 2016'!AV$5","v":1.1192059972547777E-3},{"$f":"'Population 2016'!AW96/'Population 2016'!AW$5","v":1.1440600402709135E-3},{"$f":"'Population 2016'!AX96/'Population 2016'!AX$5","v":6.2614207035792326E-4},{"$f":"'Population 2016'!AY96/'Population 2016'!AY$5","v":9.7916220433891255E-4},{"$f":"'Population 2016'!AZ96/'Population 2016'!AZ$5","v":8.4277257796365435E-4},{"$f":"'Population 2016'!BA96/'Population 2016'!BA$5","v":1.6195206218959188E-3},{"$f":"'Population 2016'!BB96/'Population 2016'!BB$5","v":7.1811797849789057E-4},{"$f":"'Population 2016'!BC96/'Population 2016'!BC$5","v":0},94]
[null,"Male 90+",{"$f":"'Population 2016'!C97/'Population 2016'!C$5","v":1.2777723827388284E-4},{"$f":"'Population 2016'!D97/'Population 2016'!D$5","v":9.780620678188238E-5},{"$f":"'Population 2016'!E97/'Population 2016'!E$5","v":7.0317224438516964E-5},{"$f":"'Population 2016'!F97/'Population 2016'!F$5","v":1.1331444759206799E-4},{"$f":"'Population 2016'!G97/'Population 2016'!G$5","v":1.623991771775023E-4},{"$f":"'Population 2016'!H97/'Population 2016'!H$5","v":6.9711717729148903E-4},{"$f":"'Population 2016'!I97/'Population 2016'!I$5","v":1.465538899589649E-4},{"$f":"'Population 2016'!J97/'Population 2016'!J$5","v":3.7318693348150234E-4},{"$f":"'Population 2016'!K97/'Population 2016'!K$5","v":6.8515805887634082E-4},{"$f":"'Population 2016'!L97/'Population 2016'!L$5","v":2.0650326434006321E-4},{"$f":"'Population 2016'!M97/'Population 2016'!M$5","v":2.0650326434006321E-4},{"$f":"'Population 2016'!N97/'Population 2016'!N$5","v":7.3138778823510502E-4},{"$f":"'Population 2016'!O97/'Population 2016'!O$5","v":8.0244895533034151E-4},{"$f":"'Population 2016'!P97/'Population 2016'!P$5","v":1.0143130846387918E-4},{"$f":"'Population 2016'!Q97/'Population 2016'!Q$5","v":8.2255202641567078E-5},{"$f":"'Population 2016'!R97/'Population 2016'!R$5","v":1.4637781444615957E-4},{"$f":"'Population 2016'!S97/'Population 2016'!S$5","v":3.2746601326458019E-4},{"$f":"'Population 2016'!T97/'Population 2016'!T$5","v":2.5592941931941389E-4},{"$f":"'Population 2016'!U97/'Population 2016'!U$5","v":0},{"$f":"'Population 2016'!V97/'Population 2016'!V$5","v":3.9688294242907628E-4},{"$f":"'Population 2016'!W97/'Population 2016'!W$5","v":5.0987390426136922E-4},{"$f":"'Population 2016'!X97/'Population 2016'!X$5","v":5.0987390426136922E-4},{"$f":"'Population 2016'!Y97/'Population 2016'!Y$5","v":3.8552646221840669E-4},{"$f":"'Population 2016'!Z97/'Population 2016'!Z$5","v":8.9820996819484967E-4},{"$f":"'Population 2016'!AA97/'Population 2016'!AA$5","v":6.7833455247525679E-4},{"$f":"'Population 2016'!AB97/'Population 2016'!AB$5","v":8.5974842123578594E-5},{"$f":"'Population 2016'!AC97/'Population 2016'!AC$5","v":7.374524482800706E-4},{"$f":"'Population 2016'!AD97/'Population 2016'!AD$5","v":1.2281811753321671E-4},{"$f":"'Population 2016'!AE97/'Population 2016'!AE$5","v":1.0780398156038564E-4},{"$f":"'Population 2016'!AF97/'Population 2016'!AF$5","v":9.5009727186354796E-4},{"$f":"'Population 2016'!AG97/'Population 2016'!AG$5","v":1.0780398156038564E-4},{"$f":"'Population 2016'!AH97/'Population 2016'!AH$5","v":5.7215570808912995E-4},{"$f":"'Population 2016'!AI97/'Population 2016'!AI$5","v":2.7479438271064835E-4},{"$f":"'Population 2016'!AJ97/'Population 2016'!AJ$5","v":4.1825837213841564E-4},{"$f":"'Population 2016'!AK97/'Population 2016'!AK$5","v":2.5143633003532681E-5},{"$f":"'Population 2016'!AL97/'Population 2016'!AL$5","v":8.1587768929249212E-4},{"$f":"'Population 2016'!AM97/'Population 2016'!AM$5","v":6.8093490914227558E-4},{"$f":"'Population 2016'!AN97/'Population 2016'!AN$5","v":0},{"$f":"'Population 2016'!AO97/'Population 2016'!AO$5","v":0},{"$f":"'Population 2016'!AP97/'Population 2016'!AP$5","v":7.1334590935751306E-5},{"$f":"'Population 2016'!AQ97/'Population 2016'!AQ$5","v":6.4394146983065711E-4},{"$f":"'Population 2016'!AR97/'Population 2016'!AR$5","v":4.2684175198489212E-4},{"$f":"'Population 2016'!AS97/'Population 2016'!AS$5","v":1.465538899589649E-4},{"$f":"'Population 2016'!AT97/'Population 2016'!AT$5","v":0},{"$f":"'Population 2016'!AU97/'Population 2016'!AU$5","v":0},{"$f":"'Population 2016'!AV97/'Population 2016'!AV$5","v":4.434589800443459E-4},{"$f":"'Population 2016'!AW97/'Population 2016'!AW$5","v":4.5762401610836536E-4},{"$f":"'Population 2016'!AX97/'Population 2016'!AX$5","v":2.0445455358626064E-4},{"$f":"'Population 2016'!AY97/'Population 2016'!AY$5","v":4.0849423212264009E-4},{"$f":"'Population 2016'!AZ97/'Population 2016'!AZ$5","v":3.1927561827292027E-4},{"$f":"'Population 2016'!BA97/'Population 2016'!BA$5","v":9.7171237313755125E-4},{"$f":"'Population 2016'!BB97/'Population 2016'!BB$5","v":3.7286895037390468E-4},{"$f":"'Population 2016'!BC97/'Population 2016'!BC$5","v":0},95]
["SIMD Q2","Female 0-4",{"$f":"'Population 2016'!C98/'Population 2016'!C$5","v":0},{"$f":"'Population 2016'!D98/'Population 2016'!D$5","v":0},{"$f":"'Population 2016'!E98/'Population 2016'!E$5","v":0},{"$f":"'Population 2016'!F98/'Population 2016'!F$5","v":0},{"$f":"'Population 2016'!G98/'Population 2016'!G$5","v":0},{"$f":"'Population 2016'!H98/'Population 2016'!H$5","v":0},{"$f":"'Population 2016'!I98/'Population 2016'!I$5","v":0},{"$f":"'Population 2016'!J98/'Population 2016'!J$5","v":0},{"$f":"'Population 2016'!K98/'Population 2016'!K$5","v":0},{"$f":"'Population 2016'!L98/'Population 2016'!L$5","v":0},{"$f":"'Population 2016'!M98/'Population 2016'!M$5","v":0},{"$f":"'Population 2016'!N98/'Population 2016'!N$5","v":0},{"$f":"'Population 2016'!O98/'Population 2016'!O$5","v":0},{"$f":"'Population 2016'!P98/'Population 2016'!P$5","v":0},{"$f":"'Population 2016'!Q98/'Population 2016'!Q$5","v":0},{"$f":"'Population 2016'!R98/'Population 2016'!R$5","v":0},{"$f":"'Population 2016'!S98/'Population 2016'!S$5","v":0},{"$f":"'Population 2016'!T98/'Population 2016'!T$5","v":0},{"$f":"'Population 2016'!U98/'Population 2016'!U$5","v":0},{"$f":"'Population 2016'!V98/'Population 2016'!V$5","v":0},{"$f":"'Population 2016'!W98/'Population 2016'!W$5","v":0},{"$f":"'Population 2016'!X98/'Population 2016'!X$5","v":0},{"$f":"'Population 2016'!Y98/'Population 2016'!Y$5","v":0},{"$f":"'Population 2016'!Z98/'Population 2016'!Z$5","v":0},{"$f":"'Population 2016'!AA98/'Population 2016'!AA$5","v":0},{"$f":"'Population 2016'!AB98/'Population 2016'!AB$5","v":0},{"$f":"'Population 2016'!AC98/'Population 2016'!AC$5","v":0},{"$f":"'Population 2016'!AD98/'Population 2016'!AD$5","v":0},{"$f":"'Population 2016'!AE98/'Population 2016'!AE$5","v":0},{"$f":"'Population 2016'!AF98/'Population 2016'!AF$5","v":0},{"$f":"'Population 2016'!AG98/'Population 2016'!AG$5","v":0},{"$f":"'Population 2016'!AH98/'Population 2016'!AH$5","v":0},{"$f":"'Population 2016'!AI98/'Population 2016'!AI$5","v":0},{"$f":"'Population 2016'!AJ98/'Population 2016'!AJ$5","v":0},{"$f":"'Population 2016'!AK98/'Population 2016'!AK$5","v":0},{"$f":"'Population 2016'!AL98/'Population 2016'!AL$5","v":0},{"$f":"'Population 2016'!AM98/'Population 2016'!AM$5","v":0},{"$f":"'Population 2016'!AN98/'Population 2016'!AN$5","v":0},{"$f":"'Population 2016'!AO98/'Population 2016'!AO$5","v":0},{"$f":"'Population 2016'!AP98/'Population 2016'!AP$5","v":0},{"$f":"'Population 2016'!AQ98/'Population 2016'!AQ$5","v":0},{"$f":"'Population 2016'!AR98/'Population 2016'!AR$5","v":0},{"$f":"'Population 2016'!AS98/'Population 2016'!AS$5","v":0},{"$f":"'Population 2016'!AT98/'Population 2016'!AT$5","v":0},{"$f":"'Population 2016'!AU98/'Population 2016'!AU$5","v":0},{"$f":"'Population 2016'!AV98/'Population 2016'!AV$5","v":0},{"$f":"'Population 2016'!AW98/'Population 2016'!AW$5","v":0},{"$f":"'Population 2016'!AX98/'Population 2016'!AX$5","v":0},{"$f":"'Population 2016'!AY98/'Population 2016'!AY$5","v":0},{"$f":"'Population 2016'!AZ98/'Population 2016'!AZ$5","v":0},{"$f":"'Population 2016'!BA98/'Population 2016'!BA$5","v":0},{"$f":"'Population 2016'!BB98/'Population 2016'!BB$5","v":0},{"$f":"'Population 2016'!BC98/'Population 2016'!BC$5","v":0},96]
[null,"Female 5-9",{"$f":"'Population 2016'!C99/'Population 2016'!C$5","v":0},{"$f":"'Population 2016'!D99/'Population 2016'!D$5","v":0},{"$f":"'Population 2016'!E99/'Population 2016'!E$5","v":0},{"$f":"'Population 2016'!F99/'Population 2016'!F$5","v":0},{"$f":"'Population 2016'!G99/'Population 2016'!G$5","v":0},{"$f":"'Population 2016'!H99/'Population 2016'!H$5","v":0},{"$f":"'Population 2016'!I99/'Population 2016'!I$5","v":0},{"$f":"'Population 2016'!J99/'Population 2016'!J$5","v":0},{"$f":"'Population 2016'!K99/'Population 2016'!K$5","v":0},{"$f":"'Population 2016'!L99/'Population 2016'!L$5","v":0},{"$f":"'Population 2016'!M99/'Population 2016'!M$5","v":0},{"$f":"'Population 2016'!N99/'Population 2016'!N$5","v":0},{"$f":"'Population 2016'!O99/'Population 2016'!O$5","v":0},{"$f":"'Population 2016'!P99/'Population 2016'!P$5","v":0},{"$f":"'Population 2016'!Q99/'Population 2016'!Q$5","v":0},{"$f":"'Population 2016'!R99/'Population 2016'!R$5","v":0},{"$f":"'Population 2016'!S99/'Population 2016'!S$5","v":0},{"$f":"'Population 2016'!T99/'Population 2016'!T$5","v":0},{"$f":"'Population 2016'!U99/'Population 2016'!U$5","v":0},{"$f":"'Population 2016'!V99/'Population 2016'!V$5","v":0},{"$f":"'Population 2016'!W99/'Population 2016'!W$5","v":0},{"$f":"'Population 2016'!X99/'Population 2016'!X$5","v":0},{"$f":"'Population 2016'!Y99/'Population 2016'!Y$5","v":0},{"$f":"'Population 2016'!Z99/'Population 2016'!Z$5","v":0},{"$f":"'Population 2016'!AA99/'Population 2016'!AA$5","v":0},{"$f":"'Population 2016'!AB99/'Population 2016'!AB$5","v":0},{"$f":"'Population 2016'!AC99/'Population 2016'!AC$5","v":0},{"$f":"'Population 2016'!AD99/'Population 2016'!AD$5","v":0},{"$f":"'Population 2016'!AE99/'Population 2016'!AE$5","v":0},{"$f":"'Population 2016'!AF99/'Population 2016'!AF$5","v":0},{"$f":"'Population 2016'!AG99/'Population 2016'!AG$5","v":0},{"$f":"'Population 2016'!AH99/'Population 2016'!AH$5","v":0},{"$f":"'Population 2016'!AI99/'Population 2016'!AI$5","v":0},{"$f":"'Population 2016'!AJ99/'Population 2016'!AJ$5","v":0},{"$f":"'Population 2016'!AK99/'Population 2016'!AK$5","v":0},{"$f":"'Population 2016'!AL99/'Population 2016'!AL$5","v":0},{"$f":"'Population 2016'!AM99/'Population 2016'!AM$5","v":0},{"$f":"'Population 2016'!AN99/'Population 2016'!AN$5","v":0},{"$f":"'Population 2016'!AO99/'Population 2016'!AO$5","v":0},{"$f":"'Population 2016'!AP99/'Population 2016'!AP$5","v":0},{"$f":"'Population 2016'!AQ99/'Population 2016'!AQ$5","v":0},{"$f":"'Population 2016'!AR99/'Population 2016'!AR$5","v":0},{"$f":"'Population 2016'!AS99/'Population 2016'!AS$5","v":0},{"$f":"'Population 2016'!AT99/'Population 2016'!AT$5","v":0},{"$f":"'Population 2016'!AU99/'Population 2016'!AU$5","v":0},{"$f":"'Population 2016'!AV99/'Population 2016'!AV$5","v":0},{"$f":"'Population 2016'!AW99/'Population 2016'!AW$5","v":0},{"$f":"'Population 2016'!AX99/'Population 2016'!AX$5","v":0},{"$f":"'Population 2016'!AY99/'Population 2016'!AY$5","v":0},{"$f":"'Population 2016'!AZ99/'Population 2016'!AZ$5","v":0},{"$f":"'Population 2016'!BA99/'Population 2016'!BA$5","v":0},{"$f":"'Population 2016'!BB99/'Population 2016'!BB$5","v":0},{"$f":"'Population 2016'!BC99/'Population 2016'!BC$5","v":0},97]
[null,"Female 10-15",{"$f":"'Population 2016'!C100/'Population 2016'!C$5","v":0},{"$f":"'Population 2016'!D100/'Population 2016'!D$5","v":0},{"$f":"'Population 2016'!E100/'Population 2016'!E$5","v":0},{"$f":"'Population 2016'!F100/'Population 2016'!F$5","v":0},{"$f":"'Population 2016'!G100/'Population 2016'!G$5","v":0},{"$f":"'Population 2016'!H100/'Population 2016'!H$5","v":0},{"$f":"'Population 2016'!I100/'Population 2016'!I$5","v":0},{"$f":"'Population 2016'!J100/'Population 2016'!J$5","v":0},{"$f":"'Population 2016'!K100/'Population 2016'!K$5","v":0},{"$f":"'Population 2016'!L100/'Population 2016'!L$5","v":0},{"$f":"'Population 2016'!M100/'Population 2016'!M$5","v":0},{"$f":"'Population 2016'!N100/'Population 2016'!N$5","v":0},{"$f":"'Population 2016'!O100/'Population 2016'!O$5","v":0},{"$f":"'Population 2016'!P100/'Population 2016'!P$5","v":0},{"$f":"'Population 2016'!Q100/'Population 2016'!Q$5","v":0},{"$f":"'Population 2016'!R100/'Population 2016'!R$5","v":0},{"$f":"'Population 2016'!S100/'Population 2016'!S$5","v":0},{"$f":"'Population 2016'!T100/'Population 2016'!T$5","v":0},{"$f":"'Population 2016'!U100/'Population 2016'!U$5","v":0},{"$f":"'Population 2016'!V100/'Population 2016'!V$5","v":0},{"$f":"'Population 2016'!W100/'Population 2016'!W$5","v":0},{"$f":"'Population 2016'!X100/'Population 2016'!X$5","v":0},{"$f":"'Population 2016'!Y100/'Population 2016'!Y$5","v":0},{"$f":"'Population 2016'!Z100/'Population 2016'!Z$5","v":0},{"$f":"'Population 2016'!AA100/'Population 2016'!AA$5","v":0},{"$f":"'Population 2016'!AB100/'Population 2016'!AB$5","v":0},{"$f":"'Population 2016'!AC100/'Population 2016'!AC$5","v":0},{"$f":"'Population 2016'!AD100/'Population 2016'!AD$5","v":0},{"$f":"'Population 2016'!AE100/'Population 2016'!AE$5","v":0},{"$f":"'Population 2016'!AF100/'Population 2016'!AF$5","v":0},{"$f":"'Population 2016'!AG100/'Population 2016'!AG$5","v":0},{"$f":"'Population 2016'!AH100/'Population 2016'!AH$5","v":0},{"$f":"'Population 2016'!AI100/'Population 2016'!AI$5","v":0},{"$f":"'Population 2016'!AJ100/'Population 2016'!AJ$5","v":0},{"$f":"'Population 2016'!AK100/'Population 2016'!AK$5","v":0},{"$f":"'Population 2016'!AL100/'Population 2016'!AL$5","v":0},{"$f":"'Population 2016'!AM100/'Population 2016'!AM$5","v":0},{"$f":"'Population 2016'!AN100/'Population 2016'!AN$5","v":0},{"$f":"'Population 2016'!AO100/'Population 2016'!AO$5","v":0},{"$f":"'Population 2016'!AP100/'Population 2016'!AP$5","v":0},{"$f":"'Population 2016'!AQ100/'Population 2016'!AQ$5","v":0},{"$f":"'Population 2016'!AR100/'Population 2016'!AR$5","v":0},{"$f":"'Population 2016'!AS100/'Population 2016'!AS$5","v":0},{"$f":"'Population 2016'!AT100/'Population 2016'!AT$5","v":0},{"$f":"'Population 2016'!AU100/'Population 2016'!AU$5","v":0},{"$f":"'Population 2016'!AV100/'Population 2016'!AV$5","v":0},{"$f":"'Population 2016'!AW100/'Population 2016'!AW$5","v":0},{"$f":"'Population 2016'!AX100/'Population 2016'!AX$5","v":0},{"$f":"'Population 2016'!AY100/'Population 2016'!AY$5","v":0},{"$f":"'Population 2016'!AZ100/'Population 2016'!AZ$5","v":0},{"$f":"'Population 2016'!BA100/'Population 2016'!BA$5","v":0},{"$f":"'Population 2016'!BB100/'Population 2016'!BB$5","v":0},{"$f":"'Population 2016'!BC100/'Population 2016'!BC$5","v":0},98]
[null,"Female 16-19",{"$f":"'Population 2016'!C101/'Population 2016'!C$5","v":4.9015348601861462E-3},{"$f":"'Population 2016'!D101/'Population 2016'!D$5","v":3.2813982375321537E-3},{"$f":"'Population 2016'!E101/'Population 2016'!E$5","v":1.7954331306634665E-3},{"$f":"'Population 2016'!F101/'Population 2016'!F$5","v":3.9866082925573013E-3},{"$f":"'Population 2016'!G101/'Population 2016'!G$5","v":3.8028473989065122E-3},{"$f":"'Population 2016'!H101/'Population 2016'!H$5","v":5.9887229137552565E-3},{"$f":"'Population 2016'!I101/'Population 2016'!I$5","v":3.7894648689389496E-3},{"$f":"'Population 2016'!J101/'Population 2016'!J$5","v":5.3573057562011231E-3},{"$f":"'Population 2016'!K101/'Population 2016'!K$5","v":7.7730000472522797E-3},{"$f":"'Population 2016'!L101/'Population 2016'!L$5","v":7.0211109875621498E-3},{"$f":"'Population 2016'!M101/'Population 2016'!M$5","v":7.0211109875621498E-3},{"$f":"'Population 2016'!N101/'Population 2016'!N$5","v":5.3688685993521995E-3},{"$f":"'Population 2016'!O101/'Population 2016'!O$5","v":6.8356762861473538E-3},{"$f":"'Population 2016'!P101/'Population 2016'!P$5","v":4.0459821931702923E-3},{"$f":"'Population 2016'!Q101/'Population 2016'!Q$5","v":6.4864102654492899E-3},{"$f":"'Population 2016'!R101/'Population 2016'!R$5","v":2.8610209187203916E-3},{"$f":"'Population 2016'!S101/'Population 2016'!S$5","v":5.2191550847263141E-3},{"$f":"'Population 2016'!T101/'Population 2016'!T$5","v":3.7365695220634427E-3},{"$f":"'Population 2016'!U101/'Population 2016'!U$5","v":5.2228566370114641E-3},{"$f":"'Population 2016'!V101/'Population 2016'!V$5","v":7.0904664137809966E-3},{"$f":"'Population 2016'!W101/'Population 2016'!W$5","v":5.0889337752240502E-3},{"$f":"'Population 2016'!X101/'Population 2016'!X$5","v":5.0889337752240502E-3},{"$f":"'Population 2016'!Y101/'Population 2016'!Y$5","v":6.2598368865359848E-3},{"$f":"'Population 2016'!Z101/'Population 2016'!Z$5","v":4.6478494259392976E-3},{"$f":"'Population 2016'!AA101/'Population 2016'!AA$5","v":5.6140322903192163E-3},{"$f":"'Population 2016'!AB101/'Population 2016'!AB$5","v":3.3079844017072147E-3},{"$f":"'Population 2016'!AC101/'Population 2016'!AC$5","v":4.6936314309887241E-3},{"$f":"'Population 2016'!AD101/'Population 2016'!AD$5","v":4.6075402880643122E-3},{"$f":"'Population 2016'!AE101/'Population 2016'!AE$5","v":4.9127814453947165E-3},{"$f":"'Population 2016'!AF101/'Population 2016'!AF$5","v":3.4836899968330092E-3},{"$f":"'Population 2016'!AG101/'Population 2016'!AG$5","v":4.9127814453947165E-3},{"$f":"'Population 2016'!AH101/'Population 2016'!AH$5","v":7.2671205520931049E-3},{"$f":"'Population 2016'!AI101/'Population 2016'!AI$5","v":5.4603421121707935E-3},{"$f":"'Population 2016'!AJ101/'Population 2016'!AJ$5","v":1.0595878760839863E-2},{"$f":"'Population 2016'!AK101/'Population 2016'!AK$5","v":3.4446777214839773E-3},{"$f":"'Population 2016'!AL101/'Population 2016'!AL$5","v":4.9750802575335663E-3},{"$f":"'Population 2016'!AM101/'Population 2016'!AM$5","v":7.9538992578533883E-3},{"$f":"'Population 2016'!AN101/'Population 2016'!AN$5","v":2.6726300861786845E-3},{"$f":"'Population 2016'!AO101/'Population 2016'!AO$5","v":2.6726300861786845E-3},{"$f":"'Population 2016'!AP101/'Population 2016'!AP$5","v":2.8692357687491081E-3},{"$f":"'Population 2016'!AQ101/'Population 2016'!AQ$5","v":5.1720830821504905E-3},{"$f":"'Population 2016'!AR101/'Population 2016'!AR$5","v":5.15083932549201E-3},{"$f":"'Population 2016'!AS101/'Population 2016'!AS$5","v":3.7894648689389496E-3},{"$f":"'Population 2016'!AT101/'Population 2016'!AT$5","v":7.3812411029683129E-4},{"$f":"'Population 2016'!AU101/'Population 2016'!AU$5","v":7.3812411029683129E-4},{"$f":"'Population 2016'!AV101/'Population 2016'!AV$5","v":6.2928940977721465E-3},{"$f":"'Population 2016'!AW101/'Population 2016'!AW$5","v":6.5440234303496244E-3},{"$f":"'Population 2016'!AX101/'Population 2016'!AX$5","v":4.0507558429277888E-3},{"$f":"'Population 2016'!AY101/'Population 2016'!AY$5","v":4.5500443682873837E-3},{"$f":"'Population 2016'!AZ101/'Population 2016'!AZ$5","v":4.0757977575921443E-3},{"$f":"'Population 2016'!BA101/'Population 2016'!BA$5","v":7.7871949902828764E-3},{"$f":"'Population 2016'!BB101/'Population 2016'!BB$5","v":7.4297590852281754E-3},{"$f":"'Population 2016'!BC101/'Population 2016'!BC$5","v":5.2228566370114641E-3},99]
[null,"Female 20-24",{"$f":"'Population 2016'!C102/'Population 2016'!C$5","v":1.1208619341385003E-2},{"$f":"'Population 2016'!D102/'Population 2016'!D$5","v":6.8170926126972014E-3},{"$f":"'Population 2016'!E102/'Population 2016'!E$5","v":2.7892499027278397E-3},{"$f":"'Population 2016'!F102/'Population 2016'!F$5","v":7.7568890033479273E-3},{"$f":"'Population 2016'!G102/'Population 2016'!G$5","v":4.9396416391490287E-3},{"$f":"'Population 2016'!H102/'Population 2016'!H$5","v":8.1124985003874668E-3},{"$f":"'Population 2016'!I102/'Population 2016'!I$5","v":5.7888786533791137E-3},{"$f":"'Population 2016'!J102/'Population 2016'!J$5","v":8.5584203411757879E-3},{"$f":"'Population 2016'!K102/'Population 2016'!K$5","v":8.8834286254311778E-3},{"$f":"'Population 2016'!L102/'Population 2016'!L$5","v":8.7763887344526875E-3},{"$f":"'Population 2016'!M102/'Population 2016'!M$5","v":8.7763887344526875E-3},{"$f":"'Population 2016'!N102/'Population 2016'!N$5","v":1.3028347304715441E-2},{"$f":"'Population 2016'!O102/'Population 2016'!O$5","v":8.8566588403126579E-3},{"$f":"'Population 2016'!P102/'Population 2016'!P$5","v":5.7928547278259888E-3},{"$f":"'Population 2016'!Q102/'Population 2016'!Q$5","v":1.0916440464859402E-2},{"$f":"'Population 2016'!R102/'Population 2016'!R$5","v":3.6328312130728697E-3},{"$f":"'Population 2016'!S102/'Population 2016'!S$5","v":8.8971897943584052E-3},{"$f":"'Population 2016'!T102/'Population 2016'!T$5","v":9.5484939716988602E-3},{"$f":"'Population 2016'!U102/'Population 2016'!U$5","v":6.3736555570309385E-3},{"$f":"'Population 2016'!V102/'Population 2016'!V$5","v":9.9449706535593534E-3},{"$f":"'Population 2016'!W102/'Population 2016'!W$5","v":6.8832977075284846E-3},{"$f":"'Population 2016'!X102/'Population 2016'!X$5","v":6.8832977075284846E-3},{"$f":"'Population 2016'!Y102/'Population 2016'!Y$5","v":9.2804565905152542E-3},{"$f":"'Population 2016'!Z102/'Population 2016'!Z$5","v":8.8427222730906741E-3},{"$f":"'Population 2016'!AA102/'Population 2016'!AA$5","v":8.4589182390939956E-3},{"$f":"'Population 2016'!AB102/'Population 2016'!AB$5","v":6.8452350490773054E-3},{"$f":"'Population 2016'!AC102/'Population 2016'!AC$5","v":7.6393040434734943E-3},{"$f":"'Population 2016'!AD102/'Population 2016'!AD$5","v":5.928765491830734E-3},{"$f":"'Population 2016'!AE102/'Population 2016'!AE$5","v":6.3039661598168362E-3},{"$f":"'Population 2016'!AF102/'Population 2016'!AF$5","v":4.3583827233105608E-3},{"$f":"'Population 2016'!AG102/'Population 2016'!AG$5","v":6.3039661598168362E-3},{"$f":"'Population 2016'!AH102/'Population 2016'!AH$5","v":9.9309883618327564E-3},{"$f":"'Population 2016'!AI102/'Population 2016'!AI$5","v":1.0145517980575728E-2},{"$f":"'Population 2016'!AJ102/'Population 2016'!AJ$5","v":1.328667428826367E-2},{"$f":"'Population 2016'!AK102/'Population 2016'!AK$5","v":6.9899299749820853E-3},{"$f":"'Population 2016'!AL102/'Population 2016'!AL$5","v":6.7575956439225983E-3},{"$f":"'Population 2016'!AM102/'Population 2016'!AM$5","v":1.0145205747380393E-2},{"$f":"'Population 2016'!AN102/'Population 2016'!AN$5","v":4.799825460892331E-3},{"$f":"'Population 2016'!AO102/'Population 2016'!AO$5","v":4.799825460892331E-3},{"$f":"'Population 2016'!AP102/'Population 2016'!AP$5","v":4.5654138198880836E-3},{"$f":"'Population 2016'!AQ102/'Population 2016'!AQ$5","v":6.5764235216747959E-3},{"$f":"'Population 2016'!AR102/'Population 2016'!AR$5","v":8.2202681662267921E-3},{"$f":"'Population 2016'!AS102/'Population 2016'!AS$5","v":5.7888786533791137E-3},{"$f":"'Population 2016'!AT102/'Population 2016'!AT$5","v":1.3708019191226869E-3},{"$f":"'Population 2016'!AU102/'Population 2016'!AU$5","v":1.3708019191226869E-3},{"$f":"'Population 2016'!AV102/'Population 2016'!AV$5","v":8.9325308837503968E-3},{"$f":"'Population 2016'!AW102/'Population 2016'!AW$5","v":9.7054426749649154E-3},{"$f":"'Population 2016'!AX102/'Population 2016'!AX$5","v":8.3826366970366877E-3},{"$f":"'Population 2016'!AY102/'Population 2016'!AY$5","v":7.7353814142774088E-3},{"$f":"'Population 2016'!AZ102/'Population 2016'!AZ$5","v":8.4852529180640974E-3},{"$f":"'Population 2016'!BA102/'Population 2016'!BA$5","v":1.0553876052688404E-2},{"$f":"'Population 2016'!BB102/'Population 2016'!BB$5","v":9.9086471071583929E-3},{"$f":"'Population 2016'!BC102/'Population 2016'!BC$5","v":6.3736555570309385E-3},100]
[null,"Female 25-29",{"$f":"'Population 2016'!C103/'Population 2016'!C$5","v":1.2762390558795418E-2},{"$f":"'Population 2016'!D103/'Population 2016'!D$5","v":7.7315806461078019E-3},{"$f":"'Population 2016'!E103/'Population 2016'!E$5","v":3.1173969501075852E-3},{"$f":"'Population 2016'!F103/'Population 2016'!F$5","v":7.9938192119495231E-3},{"$f":"'Population 2016'!G103/'Population 2016'!G$5","v":5.7922373193309154E-3},{"$f":"'Population 2016'!H103/'Population 2016'!H$5","v":8.7188283243572733E-3},{"$f":"'Population 2016'!I103/'Population 2016'!I$5","v":5.8621555983585961E-3},{"$f":"'Population 2016'!J103/'Population 2016'!J$5","v":8.4506107826144653E-3},{"$f":"'Population 2016'!K103/'Population 2016'!K$5","v":1.0253744743183859E-2},{"$f":"'Population 2016'!L103/'Population 2016'!L$5","v":8.5142884374056829E-3},{"$f":"'Population 2016'!M103/'Population 2016'!M$5","v":8.5142884374056829E-3},{"$f":"'Population 2016'!N103/'Population 2016'!N$5","v":1.2031730977889584E-2},{"$f":"'Population 2016'!O103/'Population 2016'!O$5","v":1.006528566192132E-2},{"$f":"'Population 2016'!P103/'Population 2016'!P$5","v":6.5817649047672719E-3},{"$f":"'Population 2016'!Q103/'Population 2016'!Q$5","v":1.0892938978390384E-2},{"$f":"'Population 2016'!R103/'Population 2016'!R$5","v":3.3799968063022304E-3},{"$f":"'Population 2016'!S103/'Population 2016'!S$5","v":9.8486948140328462E-3},{"$f":"'Population 2016'!T103/'Population 2016'!T$5","v":1.0802548126363987E-2},{"$f":"'Population 2016'!U103/'Population 2016'!U$5","v":6.9490550170406762E-3},{"$f":"'Population 2016'!V103/'Population 2016'!V$5","v":1.0792163088359881E-2},{"$f":"'Population 2016'!W103/'Population 2016'!W$5","v":7.8213349544708748E-3},{"$f":"'Population 2016'!X103/'Population 2016'!X$5","v":7.8213349544708748E-3},{"$f":"'Population 2016'!Y103/'Population 2016'!Y$5","v":9.6699575523441599E-3},{"$f":"'Population 2016'!Z103/'Population 2016'!Z$5","v":1.1506379420151263E-2},{"$f":"'Population 2016'!AA103/'Population 2016'!AA$5","v":9.7524710046858892E-3},{"$f":"'Population 2016'!AB103/'Population 2016'!AB$5","v":7.4859523249030226E-3},{"$f":"'Population 2016'!AC103/'Population 2016'!AC$5","v":9.3769199103886682E-3},{"$f":"'Population 2016'!AD103/'Population 2016'!AD$5","v":6.4274814842383418E-3},{"$f":"'Population 2016'!AE103/'Population 2016'!AE$5","v":6.6684462879495685E-3},{"$f":"'Population 2016'!AF103/'Population 2016'!AF$5","v":5.3838845405601047E-3},{"$f":"'Population 2016'!AG103/'Population 2016'!AG$5","v":6.6684462879495685E-3},{"$f":"'Population 2016'!AH103/'Population 2016'!AH$5","v":1.0426980485403527E-2},{"$f":"'Population 2016'!AI103/'Population 2016'!AI$5","v":1.1217352786770496E-2},{"$f":"'Population 2016'!AJ103/'Population 2016'!AJ$5","v":1.3955887683685135E-2},{"$f":"'Population 2016'!AK103/'Population 2016'!AK$5","v":6.2230491683743384E-3},{"$f":"'Population 2016'!AL103/'Population 2016'!AL$5","v":6.766463879675777E-3},{"$f":"'Population 2016'!AM103/'Population 2016'!AM$5","v":1.0985508401215541E-2},{"$f":"'Population 2016'!AN103/'Population 2016'!AN$5","v":5.454347114650376E-3},{"$f":"'Population 2016'!AO103/'Population 2016'!AO$5","v":5.454347114650376E-3},{"$f":"'Population 2016'!AP103/'Population 2016'!AP$5","v":5.0885341534169272E-3},{"$f":"'Population 2016'!AQ103/'Population 2016'!AQ$5","v":7.3573738148736776E-3},{"$f":"'Population 2016'!AR103/'Population 2016'!AR$5","v":9.0469955887820825E-3},{"$f":"'Population 2016'!AS103/'Population 2016'!AS$5","v":5.8621555983585961E-3},{"$f":"'Population 2016'!AT103/'Population 2016'!AT$5","v":1.2126324669162229E-3},{"$f":"'Population 2016'!AU103/'Population 2016'!AU$5","v":1.2126324669162229E-3},{"$f":"'Population 2016'!AV103/'Population 2016'!AV$5","v":9.6082779009608286E-3},{"$f":"'Population 2016'!AW103/'Population 2016'!AW$5","v":9.8389163463298551E-3},{"$f":"'Population 2016'!AX103/'Population 2016'!AX$5","v":7.4753696154976554E-3},{"$f":"'Population 2016'!AY103/'Population 2016'!AY$5","v":8.1209265322358549E-3},{"$f":"'Population 2016'!AZ103/'Population 2016'!AZ$5","v":8.3845804258158782E-3},{"$f":"'Population 2016'!BA103/'Population 2016'!BA$5","v":1.151209242064349E-2},{"$f":"'Population 2016'!BB103/'Population 2016'!BB$5","v":1.1282738239091856E-2},{"$f":"'Population 2016'!BC103/'Population 2016'!BC$5","v":6.9490550170406762E-3},101]
[null,"Female 30-34",{"$f":"'Population 2016'!C104/'Population 2016'!C$5","v":1.0871287432341952E-2},{"$f":"'Population 2016'!D104/'Population 2016'!D$5","v":6.7119509404066783E-3},{"$f":"'Population 2016'!E104/'Population 2016'!E$5","v":2.897069646866899E-3},{"$f":"'Population 2016'!F104/'Population 2016'!F$5","v":7.2727272727272727E-3},{"$f":"'Population 2016'!G104/'Population 2016'!G$5","v":4.8178422562659019E-3},{"$f":"'Population 2016'!H104/'Population 2016'!H$5","v":8.2875883960792825E-3},{"$f":"'Population 2016'!I104/'Population 2016'!I$5","v":4.961895988610669E-3},{"$f":"'Population 2016'!J104/'Population 2016'!J$5","v":7.0159143494522447E-3},{"$f":"'Population 2016'!K104/'Population 2016'!K$5","v":9.5213344043850109E-3},{"$f":"'Population 2016'!L104/'Population 2016'!L$5","v":8.6651946690388063E-3},{"$f":"'Population 2016'!M104/'Population 2016'!M$5","v":8.6651946690388063E-3},{"$f":"'Population 2016'!N104/'Population 2016'!N$5","v":8.8891746570112767E-3},{"$f":"'Population 2016'!O104/'Population 2016'!O$5","v":9.5699468006062941E-3},{"$f":"'Population 2016'!P104/'Population 2016'!P$5","v":5.8153950185957396E-3},{"$f":"'Population 2016'!Q104/'Population 2016'!Q$5","v":1.1198458302487632E-2},{"$f":"'Population 2016'!R104/'Population 2016'!R$5","v":3.2735402139777506E-3},{"$f":"'Population 2016'!S104/'Population 2016'!S$5","v":9.2246558076229859E-3},{"$f":"'Population 2016'!T104/'Population 2016'!T$5","v":9.0645547060766943E-3},{"$f":"'Population 2016'!U104/'Population 2016'!U$5","v":6.6392245385738947E-3},{"$f":"'Population 2016'!V104/'Population 2016'!V$5","v":1.1486708237610764E-2},{"$f":"'Population 2016'!W104/'Population 2016'!W$5","v":7.7494296602801695E-3},{"$f":"'Population 2016'!X104/'Population 2016'!X$5","v":7.7494296602801695E-3},{"$f":"'Population 2016'!Y104/'Population 2016'!Y$5","v":9.3440485842832387E-3},{"$f":"'Population 2016'!Z104/'Population 2016'!Z$5","v":9.5589672908322574E-3},{"$f":"'Population 2016'!AA104/'Population 2016'!AA$5","v":9.2515265849343296E-3},{"$f":"'Population 2016'!AB104/'Population 2016'!AB$5","v":6.7060376856391312E-3},{"$f":"'Population 2016'!AC104/'Population 2016'!AC$5","v":8.2681555000713655E-3},{"$f":"'Population 2016'!AD104/'Population 2016'!AD$5","v":6.3939856340020093E-3},{"$f":"'Population 2016'!AE104/'Population 2016'!AE$5","v":6.9918582326307255E-3},{"$f":"'Population 2016'!AF104/'Population 2016'!AF$5","v":5.7156645402584869E-3},{"$f":"'Population 2016'!AG104/'Population 2016'!AG$5","v":6.9918582326307255E-3},{"$f":"'Population 2016'!AH104/'Population 2016'!AH$5","v":1.1017712677521526E-2},{"$f":"'Population 2016'!AI104/'Population 2016'!AI$5","v":1.0398438183568117E-2},{"$f":"'Population 2016'!AJ104/'Population 2016'!AJ$5","v":1.4778462482224019E-2},{"$f":"'Population 2016'!AK104/'Population 2016'!AK$5","v":6.6756345624379267E-3},{"$f":"'Population 2016'!AL104/'Population 2016'!AL$5","v":6.9704333019989006E-3},{"$f":"'Population 2016'!AM104/'Population 2016'!AM$5","v":1.1597625420604076E-2},{"$f":"'Population 2016'!AN104/'Population 2016'!AN$5","v":3.3816952110832335E-3},{"$f":"'Population 2016'!AO104/'Population 2016'!AO$5","v":3.3816952110832335E-3},{"$f":"'Population 2016'!AP104/'Population 2016'!AP$5","v":5.5006895677123793E-3},{"$f":"'Population 2016'!AQ104/'Population 2016'!AQ$5","v":7.0628048446319943E-3},{"$f":"'Population 2016'!AR104/'Population 2016'!AR$5","v":8.4882695376452821E-3},{"$f":"'Population 2016'!AS104/'Population 2016'!AS$5","v":4.961895988610669E-3},{"$f":"'Population 2016'!AT104/'Population 2016'!AT$5","v":8.4357041176780722E-4},{"$f":"'Population 2016'!AU104/'Population 2016'!AU$5","v":8.4357041176780722E-4},{"$f":"'Population 2016'!AV104/'Population 2016'!AV$5","v":8.48907190370605E-3},{"$f":"'Population 2016'!AW104/'Population 2016'!AW$5","v":1.0407132832997743E-2},{"$f":"'Population 2016'!AX104/'Population 2016'!AX$5","v":5.6608354524195917E-3},{"$f":"'Population 2016'!AY104/'Population 2016'!AY$5","v":7.4615219852513697E-3},{"$f":"'Population 2016'!AZ104/'Population 2016'!AZ$5","v":7.2081504449724157E-3},{"$f":"'Population 2016'!BA104/'Population 2016'!BA$5","v":1.1930468581299935E-2},{"$f":"'Population 2016'!BB104/'Population 2016'!BB$5","v":1.171775201452808E-2},{"$f":"'Population 2016'!BC104/'Population 2016'!BC$5","v":6.6392245385738947E-3},102]
[null,"Female 35-39",{"$f":"'Population 2016'!C105/'Population 2016'!C$5","v":8.1266323542189493E-3},{"$f":"'Population 2016'!D105/'Population 2016'!D$5","v":5.3964574591903606E-3},{"$f":"'Population 2016'!E105/'Population 2016'!E$5","v":2.8923818319043309E-3},{"$f":"'Population 2016'!F105/'Population 2016'!F$5","v":5.830543394282771E-3},{"$f":"'Population 2016'!G105/'Population 2016'!G$5","v":5.0479077572673633E-3},{"$f":"'Population 2016'!H105/'Population 2016'!H$5","v":8.3459516946432222E-3},{"$f":"'Population 2016'!I105/'Population 2016'!I$5","v":4.76300142366636E-3},{"$f":"'Population 2016'!J105/'Population 2016'!J$5","v":7.0325004353847557E-3},{"$f":"'Population 2016'!K105/'Population 2016'!K$5","v":9.6158389642300238E-3},{"$f":"'Population 2016'!L105/'Population 2016'!L$5","v":8.4586914046987441E-3},{"$f":"'Population 2016'!M105/'Population 2016'!M$5","v":8.4586914046987441E-3},{"$f":"'Population 2016'!N105/'Population 2016'!N$5","v":6.9280909171281378E-3},{"$f":"'Population 2016'!O105/'Population 2016'!O$5","v":9.5105061372484923E-3},{"$f":"'Population 2016'!P105/'Population 2016'!P$5","v":6.5141440324580184E-3},{"$f":"'Population 2016'!Q105/'Population 2016'!Q$5","v":1.0563918167824114E-2},{"$f":"'Population 2016'!R105/'Population 2016'!R$5","v":3.5796029169106298E-3},{"$f":"'Population 2016'!S105/'Population 2016'!S$5","v":7.6826527748110668E-3},{"$f":"'Population 2016'!T105/'Population 2016'!T$5","v":6.1236930149881578E-3},{"$f":"'Population 2016'!U105/'Population 2016'!U$5","v":6.7720090293453723E-3},{"$f":"'Population 2016'!V105/'Population 2016'!V$5","v":1.1196678395066439E-2},{"$f":"'Population 2016'!W105/'Population 2016'!W$5","v":7.3049242052830778E-3},{"$f":"'Population 2016'!X105/'Population 2016'!X$5","v":7.3049242052830778E-3},{"$f":"'Population 2016'!Y105/'Population 2016'!Y$5","v":9.200966598305273E-3},{"$f":"'Population 2016'!Z105/'Population 2016'!Z$5","v":7.1372848119276092E-3},{"$f":"'Population 2016'!AA105/'Population 2016'!AA$5","v":7.8868848897490421E-3},{"$f":"'Population 2016'!AB105/'Population 2016'!AB$5","v":5.4164150537854517E-3},{"$f":"'Population 2016'!AC105/'Population 2016'!AC$5","v":6.7694618148570291E-3},{"$f":"'Population 2016'!AD105/'Population 2016'!AD$5","v":6.0478618482265808E-3},{"$f":"'Population 2016'!AE105/'Population 2016'!AE$5","v":6.4271707101715625E-3},{"$f":"'Population 2016'!AF105/'Population 2016'!AF$5","v":3.7400654511453952E-3},{"$f":"'Population 2016'!AG105/'Population 2016'!AG$5","v":6.4271707101715625E-3},{"$f":"'Population 2016'!AH105/'Population 2016'!AH$5","v":9.8938353937750197E-3},{"$f":"'Population 2016'!AI105/'Population 2016'!AI$5","v":8.2219573016011904E-3},{"$f":"'Population 2016'!AJ105/'Population 2016'!AJ$5","v":1.4290494381395867E-2},{"$f":"'Population 2016'!AK105/'Population 2016'!AK$5","v":5.519027444275423E-3},{"$f":"'Population 2016'!AL105/'Population 2016'!AL$5","v":6.8285415299480321E-3},{"$f":"'Population 2016'!AM105/'Population 2016'!AM$5","v":1.0666772911829795E-2},{"$f":"'Population 2016'!AN105/'Population 2016'!AN$5","v":3.872586451401767E-3},{"$f":"'Population 2016'!AO105/'Population 2016'!AO$5","v":3.872586451401767E-3},{"$f":"'Population 2016'!AP105/'Population 2016'!AP$5","v":4.1849626682307437E-3},{"$f":"'Population 2016'!AQ105/'Population 2016'!AQ$5","v":6.5490217570011505E-3},{"$f":"'Population 2016'!AR105/'Population 2016'!AR$5","v":7.3547774530423951E-3},{"$f":"'Population 2016'!AS105/'Population 2016'!AS$5","v":4.76300142366636E-3},{"$f":"'Population 2016'!AT105/'Population 2016'!AT$5","v":1.7925871250065904E-3},{"$f":"'Population 2016'!AU105/'Population 2016'!AU$5","v":1.7925871250065904E-3},{"$f":"'Population 2016'!AV105/'Population 2016'!AV$5","v":8.9114137894625699E-3},{"$f":"'Population 2016'!AW105/'Population 2016'!AW$5","v":9.080023186283483E-3},{"$f":"'Population 2016'!AX105/'Population 2016'!AX$5","v":5.6352786332213092E-3},{"$f":"'Population 2016'!AY105/'Population 2016'!AY$5","v":6.4119824974755973E-3},{"$f":"'Population 2016'!AZ105/'Population 2016'!AZ$5","v":5.6261541382147031E-3},{"$f":"'Population 2016'!BA105/'Population 2016'!BA$5","v":1.0891276182250054E-2},{"$f":"'Population 2016'!BB105/'Population 2016'!BB$5","v":1.0067461660095426E-2},{"$f":"'Population 2016'!BC105/'Population 2016'!BC$5","v":6.7720090293453723E-3},103]
[null,"Female 40-44",{"$f":"'Population 2016'!C106/'Population 2016'!C$5","v":7.3241912978589648E-3},{"$f":"'Population 2016'!D106/'Population 2016'!D$5","v":4.9978971665541891E-3},{"$f":"'Population 2016'!E106/'Population 2016'!E$5","v":2.8642549421289245E-3},{"$f":"'Population 2016'!F106/'Population 2016'!F$5","v":6.4486221993304144E-3},{"$f":"'Population 2016'!G106/'Population 2016'!G$5","v":5.9411032317436257E-3},{"$f":"'Population 2016'!H106/'Population 2016'!H$5","v":9.1306138197806194E-3},{"$f":"'Population 2016'!I106/'Population 2016'!I$5","v":5.1712586885520476E-3},{"$f":"'Population 2016'!J106/'Population 2016'!J$5","v":7.5052038844613256E-3},{"$f":"'Population 2016'!K106/'Population 2016'!K$5","v":1.0915276662098947E-2},{"$f":"'Population 2016'!L106/'Population 2016'!L$5","v":9.507092592886757E-3},{"$f":"'Population 2016'!M106/'Population 2016'!M$5","v":9.507092592886757E-3},{"$f":"'Population 2016'!N106/'Population 2016'!N$5","v":6.1645542151244565E-3},{"$f":"'Population 2016'!O106/'Population 2016'!O$5","v":1.0154446656958025E-2},{"$f":"'Population 2016'!P106/'Population 2016'!P$5","v":6.1985799616815053E-3},{"$f":"'Population 2016'!Q106/'Population 2016'!Q$5","v":1.0258398843726866E-2},{"$f":"'Population 2016'!R106/'Population 2016'!R$5","v":3.5396816947889497E-3},{"$f":"'Population 2016'!S106/'Population 2016'!S$5","v":7.6411678620794355E-3},{"$f":"'Population 2016'!T106/'Population 2016'!T$5","v":5.3977841165549108E-3},{"$f":"'Population 2016'!U106/'Population 2016'!U$5","v":8.8522993847651929E-3},{"$f":"'Population 2016'!V106/'Population 2016'!V$5","v":1.1715679165935232E-2},{"$f":"'Population 2016'!W106/'Population 2016'!W$5","v":7.8115296870812333E-3},{"$f":"'Population 2016'!X106/'Population 2016'!X$5","v":7.8115296870812333E-3},{"$f":"'Population 2016'!Y106/'Population 2016'!Y$5","v":9.6977790496176539E-3},{"$f":"'Population 2016'!Z106/'Population 2016'!Z$5","v":6.2603686145304817E-3},{"$f":"'Population 2016'!AA106/'Population 2016'!AA$5","v":7.874926004396883E-3},{"$f":"'Population 2016'!AB106/'Population 2016'!AB$5","v":5.1195971464540494E-3},{"$f":"'Population 2016'!AC106/'Population 2016'!AC$5","v":6.5046822541842408E-3},{"$f":"'Population 2016'!AD106/'Population 2016'!AD$5","v":6.7215006140905875E-3},{"$f":"'Population 2016'!AE106/'Population 2016'!AE$5","v":7.0175258472879596E-3},{"$f":"'Population 2016'!AF106/'Population 2016'!AF$5","v":4.3885445414649591E-3},{"$f":"'Population 2016'!AG106/'Population 2016'!AG$5","v":7.0175258472879596E-3},{"$f":"'Population 2016'!AH106/'Population 2016'!AH$5","v":1.0335955713662075E-2},{"$f":"'Population 2016'!AI106/'Population 2016'!AI$5","v":7.8924774695948909E-3},{"$f":"'Population 2016'!AJ106/'Population 2016'!AJ$5","v":1.353762931154672E-2},{"$f":"'Population 2016'!AK106/'Population 2016'!AK$5","v":5.7453201413072176E-3},{"$f":"'Population 2016'!AL106/'Population 2016'!AL$5","v":8.1233039499122046E-3},{"$f":"'Population 2016'!AM106/'Population 2016'!AM$5","v":1.1105034209735196E-2},{"$f":"'Population 2016'!AN106/'Population 2016'!AN$5","v":5.7270644703828954E-3},{"$f":"'Population 2016'!AO106/'Population 2016'!AO$5","v":5.7270644703828954E-3},{"$f":"'Population 2016'!AP106/'Population 2016'!AP$5","v":3.6459902033828448E-3},{"$f":"'Population 2016'!AQ106/'Population 2016'!AQ$5","v":7.6176905792733054E-3},{"$f":"'Population 2016'!AR106/'Population 2016'!AR$5","v":7.4501262368887071E-3},{"$f":"'Population 2016'!AS106/'Population 2016'!AS$5","v":5.1712586885520476E-3},{"$f":"'Population 2016'!AT106/'Population 2016'!AT$5","v":7.3812411029683129E-4},{"$f":"'Population 2016'!AU106/'Population 2016'!AU$5","v":7.3812411029683129E-4},{"$f":"'Population 2016'!AV106/'Population 2016'!AV$5","v":9.2387287509238733E-3},{"$f":"'Population 2016'!AW106/'Population 2016'!AW$5","v":9.5262066019891397E-3},{"$f":"'Population 2016'!AX106/'Population 2016'!AX$5","v":5.6608354524195917E-3},{"$f":"'Population 2016'!AY106/'Population 2016'!AY$5","v":6.4915394265781341E-3},{"$f":"'Population 2016'!AZ106/'Population 2016'!AZ$5","v":5.3298893753128034E-3},{"$f":"'Population 2016'!BA106/'Population 2016'!BA$5","v":1.1282660332541567E-2},{"$f":"'Population 2016'!BB106/'Population 2016'!BB$5","v":1.1110113725029864E-2},{"$f":"'Population 2016'!BC106/'Population 2016'!BC$5","v":8.8522993847651929E-3},104]
[null,"Female 45-49",{"$f":"'Population 2016'!C107/'Population 2016'!C$5","v":7.6564121173710604E-3},{"$f":"'Population 2016'!D107/'Population 2016'!D$5","v":5.3402188902907776E-3},{"$f":"'Population 2016'!E107/'Population 2016'!E$5","v":3.2158410643215092E-3},{"$f":"'Population 2016'!F107/'Population 2016'!F$5","v":6.8503734226113833E-3},{"$f":"'Population 2016'!G107/'Population 2016'!G$5","v":7.0372976776917661E-3},{"$f":"'Population 2016'!H107/'Population 2016'!H$5","v":1.1630508441602657E-2},{"$f":"'Population 2016'!I107/'Population 2016'!I$5","v":6.9508416380537645E-3},{"$f":"'Population 2016'!J107/'Population 2016'!J$5","v":8.6247646849058317E-3},{"$f":"'Population 2016'!K107/'Population 2016'!K$5","v":1.2876246278882956E-2},{"$f":"'Population 2016'!L107/'Population 2016'!L$5","v":1.2437850459866884E-2},{"$f":"'Population 2016'!M107/'Population 2016'!M$5","v":1.2437850459866884E-2},{"$f":"'Population 2016'!N107/'Population 2016'!N$5","v":6.421745525273065E-3},{"$f":"'Population 2016'!O107/'Population 2016'!O$5","v":1.3156200156527079E-2},{"$f":"'Population 2016'!P107/'Population 2016'!P$5","v":8.4976896201961003E-3},{"$f":"'Population 2016'!Q107/'Population 2016'!Q$5","v":1.2855313098553483E-2},{"$f":"'Population 2016'!R107/'Population 2016'!R$5","v":5.1232235056155855E-3},{"$f":"'Population 2016'!S107/'Population 2016'!S$5","v":8.5776677005530728E-3},{"$f":"'Population 2016'!T107/'Population 2016'!T$5","v":5.0487894538466188E-3},{"$f":"'Population 2016'!U107/'Population 2016'!U$5","v":1.0312928783251449E-2},{"$f":"'Population 2016'!V107/'Population 2016'!V$5","v":1.341769639981377E-2},{"$f":"'Population 2016'!W107/'Population 2016'!W$5","v":8.9391354368900302E-3},{"$f":"'Population 2016'!X107/'Population 2016'!X$5","v":8.9391354368900302E-3},{"$f":"'Population 2016'!Y107/'Population 2016'!Y$5","v":1.1120649910176309E-2},{"$f":"'Population 2016'!Z107/'Population 2016'!Z$5","v":7.0559813234272132E-3},{"$f":"'Population 2016'!AA107/'Population 2016'!AA$5","v":9.4721015814297118E-3},{"$f":"'Population 2016'!AB107/'Population 2016'!AB$5","v":5.5515183771225043E-3},{"$f":"'Population 2016'!AC107/'Population 2016'!AC$5","v":7.7396306738846676E-3},{"$f":"'Population 2016'!AD107/'Population 2016'!AD$5","v":7.9422382671480145E-3},{"$f":"'Population 2016'!AE107/'Population 2016'!AE$5","v":8.2855060113553522E-3},{"$f":"'Population 2016'!AF107/'Population 2016'!AF$5","v":6.0323636308796695E-3},{"$f":"'Population 2016'!AG107/'Population 2016'!AG$5","v":8.2855060113553522E-3},{"$f":"'Population 2016'!AH107/'Population 2016'!AH$5","v":1.2583710281155085E-2},{"$f":"'Population 2016'!AI107/'Population 2016'!AI$5","v":8.638933852480532E-3},{"$f":"'Population 2016'!AJ107/'Population 2016'!AJ$5","v":1.695340601734378E-2},{"$f":"'Population 2016'!AK107/'Population 2016'!AK$5","v":6.6379191129326276E-3},{"$f":"'Population 2016'!AL107/'Population 2016'!AL$5","v":1.0109788758624359E-2},{"$f":"'Population 2016'!AM107/'Population 2016'!AM$5","v":1.3068155064815587E-2},{"$f":"'Population 2016'!AN107/'Population 2016'!AN$5","v":5.1816297589178575E-3},{"$f":"'Population 2016'!AO107/'Population 2016'!AO$5","v":5.1816297589178575E-3},{"$f":"'Population 2016'!AP107/'Population 2016'!AP$5","v":4.6208962795047798E-3},{"$f":"'Population 2016'!AQ107/'Population 2016'!AQ$5","v":8.6795089603770477E-3},{"$f":"'Population 2016'!AR107/'Population 2016'!AR$5","v":8.72619594219636E-3},{"$f":"'Population 2016'!AS107/'Population 2016'!AS$5","v":6.9508416380537645E-3},{"$f":"'Population 2016'!AT107/'Population 2016'!AT$5","v":1.2126324669162229E-3},{"$f":"'Population 2016'!AU107/'Population 2016'!AU$5","v":1.2126324669162229E-3},{"$f":"'Population 2016'!AV107/'Population 2016'!AV$5","v":1.1815014254038645E-2},{"$f":"'Population 2016'!AW107/'Population 2016'!AW$5","v":1.2073646958325706E-2},{"$f":"'Population 2016'!AX107/'Population 2016'!AX$5","v":6.325312751574939E-3},{"$f":"'Population 2016'!AY107/'Population 2016'!AY$5","v":7.3161775955448123E-3},{"$f":"'Population 2016'!AZ107/'Population 2016'!AZ$5","v":5.8879026180600697E-3},{"$f":"'Population 2016'!BA107/'Population 2016'!BA$5","v":1.3927877348304902E-2},{"$f":"'Population 2016'!BB107/'Population 2016'!BB$5","v":1.2698259254400199E-2},{"$f":"'Population 2016'!BC107/'Population 2016'!BC$5","v":1.0312928783251449E-2},105]
[null,"Female 50-54",{"$f":"'Population 2016'!C108/'Population 2016'!C$5","v":7.9835218473522009E-3},{"$f":"'Population 2016'!D108/'Population 2016'!D$5","v":5.6116311141105012E-3},{"$f":"'Population 2016'!E108/'Population 2016'!E$5","v":3.4361683675621954E-3},{"$f":"'Population 2016'!F108/'Population 2016'!F$5","v":6.3868143188256501E-3},{"$f":"'Population 2016'!G108/'Population 2016'!G$5","v":7.8086937692849025E-3},{"$f":"'Population 2016'!H108/'Population 2016'!H$5","v":1.2016354693219806E-2},{"$f":"'Population 2016'!I108/'Population 2016'!I$5","v":7.4637802529101413E-3},{"$f":"'Population 2016'!J108/'Population 2016'!J$5","v":9.0394168332186137E-3},{"$f":"'Population 2016'!K108/'Population 2016'!K$5","v":1.3277890658224259E-2},{"$f":"'Population 2016'!L108/'Population 2016'!L$5","v":1.3462424348323352E-2},{"$f":"'Population 2016'!M108/'Population 2016'!M$5","v":1.3462424348323352E-2},{"$f":"'Population 2016'!N108/'Population 2016'!N$5","v":7.6594787053632426E-3},{"$f":"'Population 2016'!O108/'Population 2016'!O$5","v":1.2423098641780842E-2},{"$f":"'Population 2016'!P108/'Population 2016'!P$5","v":8.3399075848078433E-3},{"$f":"'Population 2016'!Q108/'Population 2016'!Q$5","v":1.3066826476774656E-2},{"$f":"'Population 2016'!R108/'Population 2016'!R$5","v":4.8304678767232658E-3},{"$f":"'Population 2016'!S108/'Population 2016'!S$5","v":8.6509282911216984E-3},{"$f":"'Population 2016'!T108/'Population 2016'!T$5","v":4.7928600345272052E-3},{"$f":"'Population 2016'!U108/'Population 2016'!U$5","v":1.1950604169433009E-2},{"$f":"'Population 2016'!V108/'Population 2016'!V$5","v":1.3371902214148877E-2},{"$f":"'Population 2016'!W108/'Population 2016'!W$5","v":9.6320409990913788E-3},{"$f":"'Population 2016'!X108/'Population 2016'!X$5","v":9.6320409990913788E-3},{"$f":"'Population 2016'!Y108/'Population 2016'!Y$5","v":1.1295527893038266E-2},{"$f":"'Population 2016'!Z108/'Population 2016'!Z$5","v":7.23020308449949E-3},{"$f":"'Population 2016'!AA108/'Population 2016'!AA$5","v":9.8248886993184091E-3},{"$f":"'Population 2016'!AB108/'Population 2016'!AB$5","v":5.748032301976398E-3},{"$f":"'Population 2016'!AC108/'Population 2016'!AC$5","v":7.9909643974920407E-3},{"$f":"'Population 2016'!AD108/'Population 2016'!AD$5","v":8.6754252112099441E-3},{"$f":"'Population 2016'!AE108/'Population 2016'!AE$5","v":9.0041992217579237E-3},{"$f":"'Population 2016'!AF108/'Population 2016'!AF$5","v":7.2388363570556032E-3},{"$f":"'Population 2016'!AG108/'Population 2016'!AG$5","v":9.0041992217579237E-3},{"$f":"'Population 2016'!AH108/'Population 2016'!AH$5","v":1.311871302118648E-2},{"$f":"'Population 2016'!AI108/'Population 2016'!AI$5","v":8.3955836031148826E-3},{"$f":"'Population 2016'!AJ108/'Population 2016'!AJ$5","v":1.6827928505702257E-2},{"$f":"'Population 2016'!AK108/'Population 2016'!AK$5","v":6.4493418654061321E-3},{"$f":"'Population 2016'!AL108/'Population 2016'!AL$5","v":1.0544332310530143E-2},{"$f":"'Population 2016'!AM108/'Population 2016'!AM$5","v":1.3484684397535595E-2},{"$f":"'Population 2016'!AN108/'Population 2016'!AN$5","v":6.654303479873459E-3},{"$f":"'Population 2016'!AO108/'Population 2016'!AO$5","v":6.654303479873459E-3},{"$f":"'Population 2016'!AP108/'Population 2016'!AP$5","v":4.4544489006546929E-3},{"$f":"'Population 2016'!AQ108/'Population 2016'!AQ$5","v":9.0083301364607873E-3},{"$f":"'Population 2016'!AR108/'Population 2016'!AR$5","v":9.0265000558057713E-3},{"$f":"'Population 2016'!AS108/'Population 2016'!AS$5","v":7.4637802529101413E-3},{"$f":"'Population 2016'!AT108/'Population 2016'!AT$5","v":1.0544630147097591E-3},{"$f":"'Population 2016'!AU108/'Population 2016'!AU$5","v":1.0544630147097591E-3},{"$f":"'Population 2016'!AV108/'Population 2016'!AV$5","v":1.3335445042762116E-2},{"$f":"'Population 2016'!AW108/'Population 2016'!AW$5","v":1.2733388248215266E-2},{"$f":"'Population 2016'!AX108/'Population 2016'!AX$5","v":6.7470002683466014E-3},{"$f":"'Population 2016'!AY108/'Population 2016'!AY$5","v":7.7751598788286776E-3},{"$f":"'Population 2016'!AZ108/'Population 2016'!AZ$5","v":6.1410220271413043E-3},{"$f":"'Population 2016'!BA108/'Population 2016'!BA$5","v":1.4751133664435328E-2},{"$f":"'Population 2016'!BB108/'Population 2016'!BB$5","v":1.2166575751089261E-2},{"$f":"'Population 2016'!BC108/'Population 2016'!BC$5","v":1.1950604169433009E-2},106]
[null,"Female 55-59",{"$f":"'Population 2016'!C109/'Population 2016'!C$5","v":7.1044144480278864E-3},{"$f":"'Population 2016'!D109/'Population 2016'!D$5","v":4.9978971665541891E-3},{"$f":"'Population 2016'!E109/'Population 2016'!E$5","v":3.0658309855193396E-3},{"$f":"'Population 2016'!F109/'Population 2016'!F$5","v":6.9121813031161475E-3},{"$f":"'Population 2016'!G109/'Population 2016'!G$5","v":7.9440264169328215E-3},{"$f":"'Population 2016'!H109/'Population 2016'!H$5","v":1.1296540677597897E-2},{"$f":"'Population 2016'!I109/'Population 2016'!I$5","v":7.2544175529687628E-3},{"$f":"'Population 2016'!J109/'Population 2016'!J$5","v":7.7622882164152494E-3},{"$f":"'Population 2016'!K109/'Population 2016'!K$5","v":1.1127911921750224E-2},{"$f":"'Population 2016'!L109/'Population 2016'!L$5","v":1.2564929391768462E-2},{"$f":"'Population 2016'!M109/'Population 2016'!M$5","v":1.2564929391768462E-2},{"$f":"'Population 2016'!N109/'Population 2016'!N$5","v":7.2335055979296098E-3},{"$f":"'Population 2016'!O109/'Population 2016'!O$5","v":1.1769251344845008E-2},{"$f":"'Population 2016'!P109/'Population 2016'!P$5","v":7.8891017694128259E-3},{"$f":"'Population 2016'!Q109/'Population 2016'!Q$5","v":1.237353262593859E-2},{"$f":"'Population 2016'!R109/'Population 2016'!R$5","v":3.832437323681269E-3},{"$f":"'Population 2016'!S109/'Population 2016'!S$5","v":8.0127667612287304E-3},{"$f":"'Population 2016'!T109/'Population 2016'!T$5","v":4.3531267595147581E-3},{"$f":"'Population 2016'!U109/'Population 2016'!U$5","v":1.0224405789403798E-2},{"$f":"'Population 2016'!V109/'Population 2016'!V$5","v":1.1677517344547821E-2},{"$f":"'Population 2016'!W109/'Population 2016'!W$5","v":8.6940037521489877E-3},{"$f":"'Population 2016'!X109/'Population 2016'!X$5","v":8.6940037521489877E-3},{"$f":"'Population 2016'!Y109/'Population 2016'!Y$5","v":9.8011160394906281E-3},{"$f":"'Population 2016'!Z109/'Population 2016'!Z$5","v":6.4713705251624619E-3},{"$f":"'Population 2016'!AA109/'Population 2016'!AA$5","v":8.9153490300347398E-3},{"$f":"'Population 2016'!AB109/'Population 2016'!AB$5","v":5.2260421890832423E-3},{"$f":"'Population 2016'!AC109/'Population 2016'!AC$5","v":7.1759398122961142E-3},{"$f":"'Population 2016'!AD109/'Population 2016'!AD$5","v":8.4074584093192899E-3},{"$f":"'Population 2016'!AE109/'Population 2016'!AE$5","v":8.5832503413792744E-3},{"$f":"'Population 2016'!AF109/'Population 2016'!AF$5","v":6.605438175813238E-3},{"$f":"'Population 2016'!AG109/'Population 2016'!AG$5","v":8.5832503413792744E-3},{"$f":"'Population 2016'!AH109/'Population 2016'!AH$5","v":1.2039419299109257E-2},{"$f":"'Population 2016'!AI109/'Population 2016'!AI$5","v":7.826854930440108E-3},{"$f":"'Population 2016'!AJ109/'Population 2016'!AJ$5","v":1.6493321807991523E-2},{"$f":"'Population 2016'!AK109/'Population 2016'!AK$5","v":6.3990545993990672E-3},{"$f":"'Population 2016'!AL109/'Population 2016'!AL$5","v":9.4003298983700179E-3},{"$f":"'Population 2016'!AM109/'Population 2016'!AM$5","v":1.2202498451597481E-2},{"$f":"'Population 2016'!AN109/'Population 2016'!AN$5","v":5.9452383549689104E-3},{"$f":"'Population 2016'!AO109/'Population 2016'!AO$5","v":5.9452383549689104E-3},{"$f":"'Population 2016'!AP109/'Population 2016'!AP$5","v":4.0343674206997134E-3},{"$f":"'Population 2016'!AQ109/'Population 2016'!AQ$5","v":7.9396613141886341E-3},{"$f":"'Population 2016'!AR109/'Population 2016'!AR$5","v":8.3040325183908418E-3},{"$f":"'Population 2016'!AS109/'Population 2016'!AS$5","v":7.2544175529687628E-3},{"$f":"'Population 2016'!AT109/'Population 2016'!AT$5","v":7.3812411029683129E-4},{"$f":"'Population 2016'!AU109/'Population 2016'!AU$5","v":7.3812411029683129E-4},{"$f":"'Population 2016'!AV109/'Population 2016'!AV$5","v":1.3050364269876465E-2},{"$f":"'Population 2016'!AW109/'Population 2016'!AW$5","v":1.1867716151076941E-2},{"$f":"'Population 2016'!AX109/'Population 2016'!AX$5","v":5.9419604636007E-3},{"$f":"'Population 2016'!AY109/'Population 2016'!AY$5","v":7.251920075885071E-3},{"$f":"'Population 2016'!AZ109/'Population 2016'!AZ$5","v":5.9828223964655328E-3},{"$f":"'Population 2016'!BA109/'Population 2016'!BA$5","v":1.3630965234290649E-2},{"$f":"'Population 2016'!BB109/'Population 2016'!BB$5","v":1.1172258550092181E-2},{"$f":"'Population 2016'!BC109/'Population 2016'!BC$5","v":1.0224405789403798E-2},107]
[null,"Female 60-64",{"$f":"'Population 2016'!C110/'Population 2016'!C$5","v":6.3479731974464999E-3},{"$f":"'Population 2016'!D110/'Population 2016'!D$5","v":4.5284273740011545E-3},{"$f":"'Population 2016'!E110/'Population 2016'!E$5","v":2.8595671271663564E-3},{"$f":"'Population 2016'!F110/'Population 2016'!F$5","v":5.7996394540303885E-3},{"$f":"'Population 2016'!G110/'Population 2016'!G$5","v":7.1184972662805173E-3},{"$f":"'Population 2016'!H110/'Population 2016'!H$5","v":9.9412151887242114E-3},{"$f":"'Population 2016'!I110/'Population 2016'!I$5","v":6.5844569131563524E-3},{"$f":"'Population 2016'!J110/'Population 2016'!J$5","v":6.6012622011394637E-3},{"$f":"'Population 2016'!K110/'Population 2016'!K$5","v":9.875726503803809E-3},{"$f":"'Population 2016'!L110/'Population 2016'!L$5","v":1.2358426127428398E-2},{"$f":"'Population 2016'!M110/'Population 2016'!M$5","v":1.2358426127428398E-2},{"$f":"'Population 2016'!N110/'Population 2016'!N$5","v":6.2288520426616086E-3},{"$f":"'Population 2016'!O110/'Population 2016'!O$5","v":1.0303048315352533E-2},{"$f":"'Population 2016'!P110/'Population 2016'!P$5","v":5.9506367632142457E-3},{"$f":"'Population 2016'!Q110/'Population 2016'!Q$5","v":1.0364155532837451E-2},{"$f":"'Population 2016'!R110/'Population 2016'!R$5","v":3.3400755841805504E-3},{"$f":"'Population 2016'!S110/'Population 2016'!S$5","v":6.8864955134508212E-3},{"$f":"'Population 2016'!T110/'Population 2016'!T$5","v":3.5737053461329066E-3},{"$f":"'Population 2016'!U110/'Population 2016'!U$5","v":1.0976851237108839E-2},{"$f":"'Population 2016'!V110/'Population 2016'!V$5","v":1.0883751459689669E-2},{"$f":"'Population 2016'!W110/'Population 2016'!W$5","v":7.9259244732937193E-3},{"$f":"'Population 2016'!X110/'Population 2016'!X$5","v":7.9259244732937193E-3},{"$f":"'Population 2016'!Y110/'Population 2016'!Y$5","v":8.8313381345288631E-3},{"$f":"'Population 2016'!Z110/'Population 2016'!Z$5","v":5.0911470180009799E-3},{"$f":"'Population 2016'!AA110/'Population 2016'!AA$5","v":7.5732963405146436E-3},{"$f":"'Population 2016'!AB110/'Population 2016'!AB$5","v":4.7900269183136649E-3},{"$f":"'Population 2016'!AC110/'Population 2016'!AC$5","v":5.7227551140724134E-3},{"$f":"'Population 2016'!AD110/'Population 2016'!AD$5","v":7.5961144813725852E-3},{"$f":"'Population 2016'!AE110/'Population 2016'!AE$5","v":7.7772872411421062E-3},{"$f":"'Population 2016'!AF110/'Population 2016'!AF$5","v":4.7957290865493375E-3},{"$f":"'Population 2016'!AG110/'Population 2016'!AG$5","v":7.7772872411421062E-3},{"$f":"'Population 2016'!AH110/'Population 2016'!AH$5","v":1.0896965531333885E-2},{"$f":"'Population 2016'!AI110/'Population 2016'!AI$5","v":6.4911628313938227E-3},{"$f":"'Population 2016'!AJ110/'Population 2016'!AJ$5","v":1.3509745420070825E-2},{"$f":"'Population 2016'!AK110/'Population 2016'!AK$5","v":6.1350464528619744E-3},{"$f":"'Population 2016'!AL110/'Population 2016'!AL$5","v":8.1853816001844597E-3},{"$f":"'Population 2016'!AM110/'Population 2016'!AM$5","v":1.1079680250352239E-2},{"$f":"'Population 2016'!AN110/'Population 2016'!AN$5","v":5.672520999236391E-3},{"$f":"'Population 2016'!AO110/'Population 2016'!AO$5","v":5.672520999236391E-3},{"$f":"'Population 2016'!AP110/'Population 2016'!AP$5","v":3.9471806984449059E-3},{"$f":"'Population 2016'!AQ110/'Population 2016'!AQ$5","v":6.4462651394749824E-3},{"$f":"'Population 2016'!AR110/'Population 2016'!AR$5","v":7.272349766072452E-3},{"$f":"'Population 2016'!AS110/'Population 2016'!AS$5","v":6.5844569131563524E-3},{"$f":"'Population 2016'!AT110/'Population 2016'!AT$5","v":1.5816945220646385E-3},{"$f":"'Population 2016'!AU110/'Population 2016'!AU$5","v":1.5816945220646385E-3},{"$f":"'Population 2016'!AV110/'Population 2016'!AV$5","v":1.1646077499736037E-2},{"$f":"'Population 2016'!AW110/'Population 2016'!AW$5","v":1.070458844346818E-2},{"$f":"'Population 2016'!AX110/'Population 2016'!AX$5","v":4.8302388284754078E-3},{"$f":"'Population 2016'!AY110/'Population 2016'!AY$5","v":6.5190783635751658E-3},{"$f":"'Population 2016'!AZ110/'Population 2016'!AZ$5","v":5.2809913076493839E-3},{"$f":"'Population 2016'!BA110/'Population 2016'!BA$5","v":1.1674044482833081E-2},{"$f":"'Population 2016'!BB110/'Population 2016'!BB$5","v":9.3976785455348946E-3},{"$f":"'Population 2016'!BC110/'Population 2016'!BC$5","v":1.0976851237108839E-2},108]
[null,"Female 65-69",{"$f":"'Population 2016'!C111/'Population 2016'!C$5","v":6.0055301988724934E-3},{"$f":"'Population 2016'!D111/'Population 2016'!D$5","v":4.5137564429838717E-3},{"$f":"'Population 2016'!E111/'Population 2016'!E$5","v":3.145523839882992E-3},{"$f":"'Population 2016'!F111/'Population 2016'!F$5","v":6.1910893638938962E-3},{"$f":"'Population 2016'!G111/'Population 2016'!G$5","v":7.8086937692849025E-3},{"$f":"'Population 2016'!H111/'Population 2016'!H$5","v":1.0233031681543903E-2},{"$f":"'Population 2016'!I111/'Population 2016'!I$5","v":7.160204337995143E-3},{"$f":"'Population 2016'!J111/'Population 2016'!J$5","v":6.8417604471608766E-3},{"$f":"'Population 2016'!K111/'Population 2016'!K$5","v":1.0844398242215187E-2},{"$f":"'Population 2016'!L111/'Population 2016'!L$5","v":1.2223404762282973E-2},{"$f":"'Population 2016'!M111/'Population 2016'!M$5","v":1.2223404762282973E-2},{"$f":"'Population 2016'!N111/'Population 2016'!N$5","v":6.421745525273065E-3},{"$f":"'Population 2016'!O111/'Population 2016'!O$5","v":1.0372395755936636E-2},{"$f":"'Population 2016'!P111/'Population 2016'!P$5","v":5.8942860362898681E-3},{"$f":"'Population 2016'!Q111/'Population 2016'!Q$5","v":1.0082137695209221E-2},{"$f":"'Population 2016'!R111/'Population 2016'!R$5","v":3.2868472880183104E-3},{"$f":"'Population 2016'!S111/'Population 2016'!S$5","v":7.0850934999320356E-3},{"$f":"'Population 2016'!T111/'Population 2016'!T$5","v":3.50623304467597E-3},{"$f":"'Population 2016'!U111/'Population 2016'!U$5","v":1.0445713274022928E-2},{"$f":"'Population 2016'!V111/'Population 2016'!V$5","v":1.0845589638302258E-2},{"$f":"'Population 2016'!W111/'Population 2016'!W$5","v":8.1645193131083347E-3},{"$f":"'Population 2016'!X111/'Population 2016'!X$5","v":8.1645193131083347E-3},{"$f":"'Population 2016'!Y111/'Population 2016'!Y$5","v":8.9267261251808391E-3},{"$f":"'Population 2016'!Z111/'Population 2016'!Z$5","v":4.431040123271575E-3},{"$f":"'Population 2016'!AA111/'Population 2016'!AA$5","v":7.2789748843476131E-3},{"$f":"'Population 2016'!AB111/'Population 2016'!AB$5","v":4.7060990962406474E-3},{"$f":"'Population 2016'!AC111/'Population 2016'!AC$5","v":5.5055531307080163E-3},{"$f":"'Population 2016'!AD111/'Population 2016'!AD$5","v":7.8789683278127215E-3},{"$f":"'Population 2016'!AE111/'Population 2016'!AE$5","v":7.9056253144282797E-3},{"$f":"'Population 2016'!AF111/'Population 2016'!AF$5","v":5.4291272677917026E-3},{"$f":"'Population 2016'!AG111/'Population 2016'!AG$5","v":7.9056253144282797E-3},{"$f":"'Population 2016'!AH111/'Population 2016'!AH$5","v":1.0464133453461264E-2},{"$f":"'Population 2016'!AI111/'Population 2016'!AI$5","v":6.623775045935777E-3},{"$f":"'Population 2016'!AJ111/'Population 2016'!AJ$5","v":1.4513565513203023E-2},{"$f":"'Population 2016'!AK111/'Population 2016'!AK$5","v":5.6950328753001518E-3},{"$f":"'Population 2016'!AL111/'Population 2016'!AL$5","v":8.6553980951029601E-3},{"$f":"'Population 2016'!AM111/'Population 2016'!AM$5","v":1.0634174964051708E-2},{"$f":"'Population 2016'!AN111/'Population 2016'!AN$5","v":6.4906730664339475E-3},{"$f":"'Population 2016'!AO111/'Population 2016'!AO$5","v":6.4906730664339475E-3},{"$f":"'Population 2016'!AP111/'Population 2016'!AP$5","v":3.6459902033828448E-3},{"$f":"'Population 2016'!AQ111/'Population 2016'!AQ$5","v":7.234065873842275E-3},{"$f":"'Population 2016'!AR111/'Population 2016'!AR$5","v":7.2580920040019757E-3},{"$f":"'Population 2016'!AS111/'Population 2016'!AS$5","v":7.160204337995143E-3},{"$f":"'Population 2016'!AT111/'Population 2016'!AT$5","v":1.3180787683871988E-3},{"$f":"'Population 2016'!AU111/'Population 2016'!AU$5","v":1.3180787683871988E-3},{"$f":"'Population 2016'!AV111/'Population 2016'!AV$5","v":1.1962833914053426E-2},{"$f":"'Population 2016'!AW111/'Population 2016'!AW$5","v":1.0285099762035512E-2},{"$f":"'Population 2016'!AX111/'Population 2016'!AX$5","v":4.6768979132857129E-3},{"$f":"'Population 2016'!AY111/'Population 2016'!AY$5","v":6.6674826351702824E-3},{"$f":"'Population 2016'!AZ111/'Population 2016'!AZ$5","v":5.3500238737624476E-3},{"$f":"'Population 2016'!BA111/'Population 2016'!BA$5","v":1.1444612394731159E-2},{"$f":"'Population 2016'!BB111/'Population 2016'!BB$5","v":9.936267029408313E-3},{"$f":"'Population 2016'!BC111/'Population 2016'!BC$5","v":1.0445713274022928E-2},109]
[null,"Female 70-74",{"$f":"'Population 2016'!C112/'Population 2016'!C$5","v":4.1399825200738039E-3},{"$f":"'Population 2016'!D112/'Population 2016'!D$5","v":3.2593918410062303E-3},{"$f":"'Population 2016'!E112/'Population 2016'!E$5","v":2.451727225422958E-3},{"$f":"'Population 2016'!F112/'Population 2016'!F$5","v":4.9961370074684524E-3},{"$f":"'Population 2016'!G112/'Population 2016'!G$5","v":6.4418340280409242E-3},{"$f":"'Population 2016'!H112/'Population 2016'!H$5","v":8.2421947194184428E-3},{"$f":"'Population 2016'!I112/'Population 2016'!I$5","v":5.7260698433967009E-3},{"$f":"'Population 2016'!J112/'Population 2016'!J$5","v":5.5729248733237683E-3},{"$f":"'Population 2016'!K112/'Population 2016'!K$5","v":8.3400274063223558E-3},{"$f":"'Population 2016'!L112/'Population 2016'!L$5","v":9.9439264212984289E-3},{"$f":"'Population 2016'!M112/'Population 2016'!M$5","v":9.9439264212984289E-3},{"$f":"'Population 2016'!N112/'Population 2016'!N$5","v":5.1599006598564553E-3},{"$f":"'Population 2016'!O112/'Population 2016'!O$5","v":8.4603877512606368E-3},{"$f":"'Population 2016'!P112/'Population 2016'!P$5","v":5.2744280401217179E-3},{"$f":"'Population 2016'!Q112/'Population 2016'!Q$5","v":8.1550158047496504E-3},{"$f":"'Population 2016'!R112/'Population 2016'!R$5","v":1.9428328099217545E-3},{"$f":"'Population 2016'!S112/'Population 2016'!S$5","v":5.5201413664600655E-3},{"$f":"'Population 2016'!T112/'Population 2016'!T$5","v":2.6430529122441287E-3},{"$f":"'Population 2016'!U112/'Population 2016'!U$5","v":7.6572389678218914E-3},{"$f":"'Population 2016'!V112/'Population 2016'!V$5","v":8.8535425618793927E-3},{"$f":"'Population 2016'!W112/'Population 2016'!W$5","v":6.2819079742971254E-3},{"$f":"'Population 2016'!X112/'Population 2016'!X$5","v":6.2819079742971254E-3},{"$f":"'Population 2016'!Y112/'Population 2016'!Y$5","v":7.2812832864342378E-3},{"$f":"'Population 2016'!Z112/'Population 2016'!Z$5","v":3.3837737594926663E-3},{"$f":"'Population 2016'!AA112/'Population 2016'!AA$5","v":5.8492237022450154E-3},{"$f":"'Population 2016'!AB112/'Population 2016'!AB$5","v":3.4533228252970737E-3},{"$f":"'Population 2016'!AC112/'Population 2016'!AC$5","v":4.2685361206898339E-3},{"$f":"'Population 2016'!AD112/'Population 2016'!AD$5","v":5.9622613420670665E-3},{"$f":"'Population 2016'!AE112/'Population 2016'!AE$5","v":5.7803468208092483E-3},{"$f":"'Population 2016'!AF112/'Population 2016'!AF$5","v":4.1321690871525731E-3},{"$f":"'Population 2016'!AG112/'Population 2016'!AG$5","v":5.7803468208092483E-3},{"$f":"'Population 2016'!AH112/'Population 2016'!AH$5","v":8.6882215803014955E-3},{"$f":"'Population 2016'!AI112/'Population 2016'!AI$5","v":5.174610639601015E-3},{"$f":"'Population 2016'!AJ112/'Population 2016'!AJ$5","v":1.0540110977888074E-2},{"$f":"'Population 2016'!AK112/'Population 2016'!AK$5","v":4.4504230416252842E-3},{"$f":"'Population 2016'!AL112/'Population 2016'!AL$5","v":6.6245721076249094E-3},{"$f":"'Population 2016'!AM112/'Population 2016'!AM$5","v":9.0042775751473254E-3},{"$f":"'Population 2016'!AN112/'Population 2016'!AN$5","v":5.6179775280898875E-3},{"$f":"'Population 2016'!AO112/'Population 2016'!AO$5","v":5.6179775280898875E-3},{"$f":"'Population 2016'!AP112/'Population 2016'!AP$5","v":2.9247182283658039E-3},{"$f":"'Population 2016'!AQ112/'Population 2016'!AQ$5","v":5.857127198991615E-3},{"$f":"'Population 2016'!AR112/'Population 2016'!AR$5","v":5.7396403434962218E-3},{"$f":"'Population 2016'!AS112/'Population 2016'!AS$5","v":5.7260698433967009E-3},{"$f":"'Population 2016'!AT112/'Population 2016'!AT$5","v":1.001739863974271E-3},{"$f":"'Population 2016'!AU112/'Population 2016'!AU$5","v":1.001739863974271E-3},{"$f":"'Population 2016'!AV112/'Population 2016'!AV$5","v":9.9355928624221303E-3},{"$f":"'Population 2016'!AW112/'Population 2016'!AW$5","v":8.3554518274452372E-3},{"$f":"'Population 2016'!AX112/'Population 2016'!AX$5","v":4.0763126621260722E-3},{"$f":"'Population 2016'!AY112/'Population 2016'!AY$5","v":5.2293381475475046E-3},{"$f":"'Population 2016'!AZ112/'Population 2016'!AZ$5","v":4.3030299543809795E-3},{"$f":"'Population 2016'!BA112/'Population 2016'!BA$5","v":8.5834592960483697E-3},{"$f":"'Population 2016'!BB112/'Population 2016'!BB$5","v":8.2790716944131804E-3},{"$f":"'Population 2016'!BC112/'Population 2016'!BC$5","v":7.6572389678218914E-3},110]
[null,"Female 75-79",{"$f":"'Population 2016'!C113/'Population 2016'!C$5","v":4.1093159828880718E-3},{"$f":"'Population 2016'!D113/'Population 2016'!D$5","v":3.0026505482037892E-3},{"$f":"'Population 2016'!E113/'Population 2016'!E$5","v":1.9876335441287463E-3},{"$f":"'Population 2016'!F113/'Population 2016'!F$5","v":4.3986608292557305E-3},{"$f":"'Population 2016'!G113/'Population 2016'!G$5","v":5.9546364965084178E-3},{"$f":"'Population 2016'!H113/'Population 2016'!H$5","v":6.6988097129498433E-3},{"$f":"'Population 2016'!I113/'Population 2016'!I$5","v":4.6269156687044639E-3},{"$f":"'Population 2016'!J113/'Population 2016'!J$5","v":4.4284849439804944E-3},{"$f":"'Population 2016'!K113/'Population 2016'!K$5","v":5.6702735907007513E-3},{"$f":"'Population 2016'!L113/'Population 2016'!L$5","v":7.7915270122154625E-3},{"$f":"'Population 2016'!M113/'Population 2016'!M$5","v":7.7915270122154625E-3},{"$f":"'Population 2016'!N113/'Population 2016'!N$5","v":4.9589699488028546E-3},{"$f":"'Population 2016'!O113/'Population 2016'!O$5","v":7.231947375199374E-3},{"$f":"'Population 2016'!P113/'Population 2016'!P$5","v":4.2826552462526769E-3},{"$f":"'Population 2016'!Q113/'Population 2016'!Q$5","v":7.203205602754374E-3},{"$f":"'Population 2016'!R113/'Population 2016'!R$5","v":2.1025176984084738E-3},{"$f":"'Population 2016'!S113/'Population 2016'!S$5","v":4.6251264407180595E-3},{"$f":"'Population 2016'!T113/'Population 2016'!T$5","v":2.5313746201774752E-3},{"$f":"'Population 2016'!U113/'Population 2016'!U$5","v":7.34740848935511E-3},{"$f":"'Population 2016'!V113/'Population 2016'!V$5","v":7.342334434937911E-3},{"$f":"'Population 2016'!W113/'Population 2016'!W$5","v":5.157570646951542E-3},{"$f":"'Population 2016'!X113/'Population 2016'!X$5","v":5.157570646951542E-3},{"$f":"'Population 2016'!Y113/'Population 2016'!Y$5","v":5.9458514173065611E-3},{"$f":"'Population 2016'!Z113/'Population 2016'!Z$5","v":3.3198924470994981E-3},{"$f":"'Population 2016'!AA113/'Population 2016'!AA$5","v":5.1894918603175612E-3},{"$f":"'Population 2016'!AB113/'Population 2016'!AB$5","v":3.1442227976623033E-3},{"$f":"'Population 2016'!AC113/'Population 2016'!AC$5","v":4.0006536745404112E-3},{"$f":"'Population 2016'!AD113/'Population 2016'!AD$5","v":5.4784323942089399E-3},{"$f":"'Population 2016'!AE113/'Population 2016'!AE$5","v":5.2977956652532363E-3},{"$f":"'Population 2016'!AF113/'Population 2016'!AF$5","v":3.046343633594233E-3},{"$f":"'Population 2016'!AG113/'Population 2016'!AG$5","v":5.2977956652532363E-3},{"$f":"'Population 2016'!AH113/'Population 2016'!AH$5","v":7.3247076525825953E-3},{"$f":"'Population 2016'!AI113/'Population 2016'!AI$5","v":4.4021786682999385E-3},{"$f":"'Population 2016'!AJ113/'Population 2016'!AJ$5","v":8.3791093885062593E-3},{"$f":"'Population 2016'!AK113/'Population 2016'!AK$5","v":3.8721194825440328E-3},{"$f":"'Population 2016'!AL113/'Population 2016'!AL$5","v":5.0371579078058214E-3},{"$f":"'Population 2016'!AM113/'Population 2016'!AM$5","v":7.4975279889601615E-3},{"$f":"'Population 2016'!AN113/'Population 2016'!AN$5","v":3.436238682229737E-3},{"$f":"'Population 2016'!AO113/'Population 2016'!AO$5","v":3.436238682229737E-3},{"$f":"'Population 2016'!AP113/'Population 2016'!AP$5","v":2.2351505159868743E-3},{"$f":"'Population 2016'!AQ113/'Population 2016'!AQ$5","v":5.5146051405710527E-3},{"$f":"'Population 2016'!AR113/'Population 2016'!AR$5","v":4.9383095596289683E-3},{"$f":"'Population 2016'!AS113/'Population 2016'!AS$5","v":4.6269156687044639E-3},{"$f":"'Population 2016'!AT113/'Population 2016'!AT$5","v":5.2723150735487954E-4},{"$f":"'Population 2016'!AU113/'Population 2016'!AU$5","v":5.2723150735487954E-4},{"$f":"'Population 2016'!AV113/'Population 2016'!AV$5","v":8.1089642065251821E-3},{"$f":"'Population 2016'!AW113/'Population 2016'!AW$5","v":7.1427481847580691E-3},{"$f":"'Population 2016'!AX113/'Population 2016'!AX$5","v":3.7568524221475393E-3},{"$f":"'Population 2016'!AY113/'Population 2016'!AY$5","v":4.4429485021878152E-3},{"$f":"'Population 2016'!AZ113/'Population 2016'!AZ$5","v":3.8140492777467769E-3},{"$f":"'Population 2016'!BA113/'Population 2016'!BA$5","v":8.2055711509393219E-3},{"$f":"'Population 2016'!BB113/'Population 2016'!BB$5","v":6.3387721563563796E-3},{"$f":"'Population 2016'!BC113/'Population 2016'!BC$5","v":7.34740848935511E-3},111]
[null,"Female 80-84",{"$f":"'Population 2016'!C114/'Population 2016'!C$5","v":3.6442068355711388E-3},{"$f":"'Population 2016'!D114/'Population 2016'!D$5","v":2.5698580831939595E-3},{"$f":"'Population 2016'!E114/'Population 2016'!E$5","v":1.5844814573479156E-3},{"$f":"'Population 2016'!F114/'Population 2016'!F$5","v":3.3994334277620396E-3},{"$f":"'Population 2016'!G114/'Population 2016'!G$5","v":4.5201104314404805E-3},{"$f":"'Population 2016'!H114/'Population 2016'!H$5","v":5.2526968707544757E-3},{"$f":"'Population 2016'!I114/'Population 2016'!I$5","v":3.6638472489741226E-3},{"$f":"'Population 2016'!J114/'Population 2016'!J$5","v":2.9606163389532523E-3},{"$f":"'Population 2016'!K114/'Population 2016'!K$5","v":3.8038085337617541E-3},{"$f":"'Population 2016'!L114/'Population 2016'!L$5","v":6.4889679602242942E-3},{"$f":"'Population 2016'!M114/'Population 2016'!M$5","v":6.4889679602242942E-3},{"$f":"'Population 2016'!N114/'Population 2016'!N$5","v":4.0346886779562934E-3},{"$f":"'Population 2016'!O114/'Population 2016'!O$5","v":5.3595664794285772E-3},{"$f":"'Population 2016'!P114/'Population 2016'!P$5","v":3.944550884706413E-3},{"$f":"'Population 2016'!Q114/'Population 2016'!Q$5","v":5.6756089822681283E-3},{"$f":"'Population 2016'!R114/'Population 2016'!R$5","v":2.0093681801245543E-3},{"$f":"'Population 2016'!S114/'Population 2016'!S$5","v":3.5579932600256678E-3},{"$f":"'Population 2016'!T114/'Population 2016'!T$5","v":1.8962043340483845E-3},{"$f":"'Population 2016'!U114/'Population 2016'!U$5","v":6.7720090293453723E-3},{"$f":"'Population 2016'!V114/'Population 2016'!V$5","v":5.2892284442951892E-3},{"$f":"'Population 2016'!W114/'Population 2016'!W$5","v":4.1084070362598785E-3},{"$f":"'Population 2016'!X114/'Population 2016'!X$5","v":4.1084070362598785E-3},{"$f":"'Population 2016'!Y114/'Population 2016'!Y$5","v":4.1732245910239898E-3},{"$f":"'Population 2016'!Z114/'Population 2016'!Z$5","v":2.9908068984074196E-3},{"$f":"'Population 2016'!AA114/'Population 2016'!AA$5","v":4.1895961683731334E-3},{"$f":"'Population 2016'!AB114/'Population 2016'!AB$5","v":2.6038095043140947E-3},{"$f":"'Population 2016'!AC114/'Population 2016'!AC$5","v":3.4183455000920521E-3},{"$f":"'Population 2016'!AD114/'Population 2016'!AD$5","v":4.0120585060850799E-3},{"$f":"'Population 2016'!AE114/'Population 2016'!AE$5","v":3.8193410609965194E-3},{"$f":"'Population 2016'!AF114/'Population 2016'!AF$5","v":2.3526218160430713E-3},{"$f":"'Population 2016'!AG114/'Population 2016'!AG$5","v":3.8193410609965194E-3},{"$f":"'Population 2016'!AH114/'Population 2016'!AH$5","v":5.5748028570632435E-3},{"$f":"'Population 2016'!AI114/'Population 2016'!AI$5","v":3.3139382273164758E-3},{"$f":"'Population 2016'!AJ114/'Population 2016'!AJ$5","v":6.5945403340490196E-3},{"$f":"'Population 2016'!AK114/'Population 2016'!AK$5","v":2.7783714468903611E-3},{"$f":"'Population 2016'!AL114/'Population 2016'!AL$5","v":4.2390166900196872E-3},{"$f":"'Population 2016'!AM114/'Population 2016'!AM$5","v":5.5380291280773368E-3},{"$f":"'Population 2016'!AN114/'Population 2016'!AN$5","v":3.272608268790226E-3},{"$f":"'Population 2016'!AO114/'Population 2016'!AO$5","v":3.272608268790226E-3},{"$f":"'Population 2016'!AP114/'Population 2016'!AP$5","v":1.8705514956485899E-3},{"$f":"'Population 2016'!AQ114/'Population 2016'!AQ$5","v":4.5966460240039458E-3},{"$f":"'Population 2016'!AR114/'Population 2016'!AR$5","v":3.8919234901753992E-3},{"$f":"'Population 2016'!AS114/'Population 2016'!AS$5","v":3.6638472489741226E-3},{"$f":"'Population 2016'!AT114/'Population 2016'!AT$5","v":7.9084726103231925E-4},{"$f":"'Population 2016'!AU114/'Population 2016'!AU$5","v":7.9084726103231925E-4},{"$f":"'Population 2016'!AV114/'Population 2016'!AV$5","v":6.345686833491712E-3},{"$f":"'Population 2016'!AW114/'Population 2016'!AW$5","v":5.6135212642626151E-3},{"$f":"'Population 2016'!AX114/'Population 2016'!AX$5","v":2.504568281431693E-3},{"$f":"'Population 2016'!AY114/'Population 2016'!AY$5","v":3.5571126954499557E-3},{"$f":"'Population 2016'!AZ114/'Population 2016'!AZ$5","v":3.0719491920313409E-3},{"$f":"'Population 2016'!BA114/'Population 2016'!BA$5","v":5.8302742388253075E-3},{"$f":"'Population 2016'!BB114/'Population 2016'!BB$5","v":4.5089523072992547E-3},{"$f":"'Population 2016'!BC114/'Population 2016'!BC$5","v":6.7720090293453723E-3},112]
[null,"Female 85-89",{"$f":"'Population 2016'!C115/'Population 2016'!C$5","v":2.0495469019130809E-3},{"$f":"'Population 2016'!D115/'Population 2016'!D$5","v":1.4353060845241239E-3},{"$f":"'Population 2016'!E115/'Population 2016'!E$5","v":8.7193358303761035E-4},{"$f":"'Population 2016'!F115/'Population 2016'!F$5","v":2.5238217872778777E-3},{"$f":"'Population 2016'!G115/'Population 2016'!G$5","v":2.5307205110160777E-3},{"$f":"'Population 2016'!H115/'Population 2016'!H$5","v":2.8857408734391872E-3},{"$f":"'Population 2016'!I115/'Population 2016'!I$5","v":2.2297127543756804E-3},{"$f":"'Population 2016'!J115/'Population 2016'!J$5","v":1.7249529369811666E-3},{"$f":"'Population 2016'!K115/'Population 2016'!K$5","v":2.4098662760478192E-3},{"$f":"'Population 2016'!L115/'Population 2016'!L$5","v":3.6138071259511064E-3},{"$f":"'Population 2016'!M115/'Population 2016'!M$5","v":3.6138071259511064E-3},{"$f":"'Population 2016'!N115/'Population 2016'!N$5","v":2.2102378215896031E-3},{"$f":"'Population 2016'!O115/'Population 2016'!O$5","v":2.8630586184008478E-3},{"$f":"'Population 2016'!P115/'Population 2016'!P$5","v":2.2878395131297195E-3},{"$f":"'Population 2016'!Q115/'Population 2016'!Q$5","v":3.1962021597866067E-3},{"$f":"'Population 2016'!R115/'Population 2016'!R$5","v":8.9157396071751747E-4},{"$f":"'Population 2016'!S115/'Population 2016'!S$5","v":2.2304760526134612E-3},{"$f":"'Population 2016'!T115/'Population 2016'!T$5","v":1.293606883105401E-3},{"$f":"'Population 2016'!U115/'Population 2016'!U$5","v":2.7884743062010359E-3},{"$f":"'Population 2016'!V115/'Population 2016'!V$5","v":3.304813732149808E-3},{"$f":"'Population 2016'!W115/'Population 2016'!W$5","v":2.6441537727400492E-3},{"$f":"'Population 2016'!X115/'Population 2016'!X$5","v":2.6441537727400492E-3},{"$f":"'Population 2016'!Y115/'Population 2016'!Y$5","v":2.5476542503298834E-3},{"$f":"'Population 2016'!Z115/'Population 2016'!Z$5","v":1.85836545143762E-3},{"$f":"'Population 2016'!AA115/'Population 2016'!AA$5","v":2.4402769943600569E-3},{"$f":"'Population 2016'!AB115/'Population 2016'!AB$5","v":1.4902305968086957E-3},{"$f":"'Population 2016'!AC115/'Population 2016'!AC$5","v":1.9858467050459122E-3},{"$f":"'Population 2016'!AD115/'Population 2016'!AD$5","v":2.5159105288622575E-3},{"$f":"'Population 2016'!AE115/'Population 2016'!AE$5","v":2.5102927134775513E-3},{"$f":"'Population 2016'!AF115/'Population 2016'!AF$5","v":1.2064727261759339E-3},{"$f":"'Population 2016'!AG115/'Population 2016'!AG$5","v":2.5102927134775513E-3},{"$f":"'Population 2016'!AH115/'Population 2016'!AH$5","v":3.256457650260535E-3},{"$f":"'Population 2016'!AI115/'Population 2016'!AI$5","v":2.0575400297488844E-3},{"$f":"'Population 2016'!AJ115/'Population 2016'!AJ$5","v":4.2801773415497863E-3},{"$f":"'Population 2016'!AK115/'Population 2016'!AK$5","v":1.772626126749054E-3},{"$f":"'Population 2016'!AL115/'Population 2016'!AL$5","v":2.16384952377574E-3},{"$f":"'Population 2016'!AM115/'Population 2016'!AM$5","v":3.0497191143499789E-3},{"$f":"'Population 2016'!AN115/'Population 2016'!AN$5","v":1.5817606632486092E-3},{"$f":"'Population 2016'!AO115/'Population 2016'!AO$5","v":1.5817606632486092E-3},{"$f":"'Population 2016'!AP115/'Population 2016'!AP$5","v":1.6169173945436964E-3},{"$f":"'Population 2016'!AQ115/'Population 2016'!AQ$5","v":2.4182057324491696E-3},{"$f":"'Population 2016'!AR115/'Population 2016'!AR$5","v":2.3193368893083049E-3},{"$f":"'Population 2016'!AS115/'Population 2016'!AS$5","v":2.2297127543756804E-3},{"$f":"'Population 2016'!AT115/'Population 2016'!AT$5","v":2.6361575367743977E-4},{"$f":"'Population 2016'!AU115/'Population 2016'!AU$5","v":2.6361575367743977E-4},{"$f":"'Population 2016'!AV115/'Population 2016'!AV$5","v":3.7694013303769401E-3},{"$f":"'Population 2016'!AW115/'Population 2016'!AW$5","v":3.4741289889560069E-3},{"$f":"'Population 2016'!AX115/'Population 2016'!AX$5","v":1.3545114175089769E-3},{"$f":"'Population 2016'!AY115/'Population 2016'!AY$5","v":2.3453994675805513E-3},{"$f":"'Population 2016'!AZ115/'Population 2016'!AZ$5","v":2.0824824110774257E-3},{"$f":"'Population 2016'!BA115/'Population 2016'!BA$5","v":3.4684733318937596E-3},{"$f":"'Population 2016'!BB115/'Population 2016'!BB$5","v":2.5548428081174951E-3},{"$f":"'Population 2016'!BC115/'Population 2016'!BC$5","v":2.7884743062010359E-3},113]
[null,"Female 90+",{"$f":"'Population 2016'!C116/'Population 2016'!C$5","v":9.9666245853628614E-4},{"$f":"'Population 2016'!D116/'Population 2016'!D$5","v":7.5555294739004136E-4},{"$f":"'Population 2016'!E116/'Population 2016'!E$5","v":5.3441090573272897E-4},{"$f":"'Population 2016'!F116/'Population 2016'!F$5","v":1.658511460211177E-3},{"$f":"'Population 2016'!G116/'Population 2016'!G$5","v":1.4074595355383533E-3},{"$f":"'Population 2016'!H116/'Population 2016'!H$5","v":2.0102913949801076E-3},{"$f":"'Population 2016'!I116/'Population 2016'!I$5","v":1.5388158445691317E-3},{"$f":"'Population 2016'!J116/'Population 2016'!J$5","v":1.0449234137482066E-3},{"$f":"'Population 2016'!K116/'Population 2016'!K$5","v":1.441194537636441E-3},{"$f":"'Population 2016'!L116/'Population 2016'!L$5","v":2.1921115753022096E-3},{"$f":"'Population 2016'!M116/'Population 2016'!M$5","v":2.1921115753022096E-3},{"$f":"'Population 2016'!N116/'Population 2016'!N$5","v":1.3261426929537619E-3},{"$f":"'Population 2016'!O116/'Population 2016'!O$5","v":1.8228470096392942E-3},{"$f":"'Population 2016'!P116/'Population 2016'!P$5","v":1.5665502084976897E-3},{"$f":"'Population 2016'!Q116/'Population 2016'!Q$5","v":1.7273592554729086E-3},{"$f":"'Population 2016'!R116/'Population 2016'!R$5","v":4.6574759141959865E-4},{"$f":"'Population 2016'!S116/'Population 2016'!S$5","v":1.2851496369628806E-3},{"$f":"'Population 2016'!T116/'Population 2016'!T$5","v":7.817480444665733E-4},{"$f":"'Population 2016'!U116/'Population 2016'!U$5","v":2.5229053246580801E-3},{"$f":"'Population 2016'!V116/'Population 2016'!V$5","v":2.106532540585097E-3},{"$f":"'Population 2016'!W116/'Population 2016'!W$5","v":1.5753796272691023E-3},{"$f":"'Population 2016'!X116/'Population 2016'!X$5","v":1.5753796272691023E-3},{"$f":"'Population 2016'!Y116/'Population 2016'!Y$5","v":1.5977488434206133E-3},{"$f":"'Population 2016'!Z116/'Population 2016'!Z$5","v":1.0898539053743543E-3},{"$f":"'Population 2016'!AA116/'Population 2016'!AA$5","v":1.2603336396136749E-3},{"$f":"'Population 2016'!AB116/'Population 2016'!AB$5","v":7.635384788594004E-4},{"$f":"'Population 2016'!AC116/'Population 2016'!AC$5","v":1.068426899121056E-3},{"$f":"'Population 2016'!AD116/'Population 2016'!AD$5","v":1.3993821876511965E-3},{"$f":"'Population 2016'!AE116/'Population 2016'!AE$5","v":1.3963182373535662E-3},{"$f":"'Population 2016'!AF116/'Population 2016'!AF$5","v":3.9210363600717849E-4},{"$f":"'Population 2016'!AG116/'Population 2016'!AG$5","v":1.3963182373535662E-3},{"$f":"'Population 2016'!AH116/'Population 2016'!AH$5","v":1.6050082200941827E-3},{"$f":"'Population 2016'!AI116/'Population 2016'!AI$5","v":1.130621664187593E-3},{"$f":"'Population 2016'!AJ116/'Population 2016'!AJ$5","v":1.9379304575746592E-3},{"$f":"'Population 2016'!AK116/'Population 2016'!AK$5","v":8.0459625611304579E-4},{"$f":"'Population 2016'!AL116/'Population 2016'!AL$5","v":1.3657083059896065E-3},{"$f":"'Population 2016'!AM116/'Population 2016'!AM$5","v":1.3039179111235064E-3},{"$f":"'Population 2016'!AN116/'Population 2016'!AN$5","v":6.5452165375804513E-4},{"$f":"'Population 2016'!AO116/'Population 2016'!AO$5","v":6.5452165375804513E-4},{"$f":"'Population 2016'!AP116/'Population 2016'!AP$5","v":7.609023033146807E-4},{"$f":"'Population 2016'!AQ116/'Population 2016'!AQ$5","v":1.1508741162930892E-3},{"$f":"'Population 2016'!AR116/'Population 2016'!AR$5","v":1.3126052206132487E-3},{"$f":"'Population 2016'!AS116/'Population 2016'!AS$5","v":1.5388158445691317E-3},{"$f":"'Population 2016'!AT116/'Population 2016'!AT$5","v":5.2723150735487951E-5},{"$f":"'Population 2016'!AU116/'Population 2016'!AU$5","v":5.2723150735487951E-5},{"$f":"'Population 2016'!AV116/'Population 2016'!AV$5","v":2.9775102945834653E-3},{"$f":"'Population 2016'!AW116/'Population 2016'!AW$5","v":1.9220208676551346E-3},{"$f":"'Population 2016'!AX116/'Population 2016'!AX$5","v":8.3059662394418393E-4},{"$f":"'Population 2016'!AY116/'Population 2016'!AY$5","v":1.3830666136287139E-3},{"$f":"'Population 2016'!AZ116/'Population 2016'!AZ$5","v":1.2138226208213724E-3},{"$f":"'Population 2016'!BA116/'Population 2016'!BA$5","v":1.3765925286115309E-3},{"$f":"'Population 2016'!BB116/'Population 2016'!BB$5","v":1.4155210153083419E-3},{"$f":"'Population 2016'!BC116/'Population 2016'!BC$5","v":2.5229053246580801E-3},114]
[null,"Male 0-4",{"$f":"'Population 2016'!C117/'Population 2016'!C$5","v":0},{"$f":"'Population 2016'!D117/'Population 2016'!D$5","v":0},{"$f":"'Population 2016'!E117/'Population 2016'!E$5","v":0},{"$f":"'Population 2016'!F117/'Population 2016'!F$5","v":0},{"$f":"'Population 2016'!G117/'Population 2016'!G$5","v":0},{"$f":"'Population 2016'!H117/'Population 2016'!H$5","v":0},{"$f":"'Population 2016'!I117/'Population 2016'!I$5","v":0},{"$f":"'Population 2016'!J117/'Population 2016'!J$5","v":0},{"$f":"'Population 2016'!K117/'Population 2016'!K$5","v":0},{"$f":"'Population 2016'!L117/'Population 2016'!L$5","v":0},{"$f":"'Population 2016'!M117/'Population 2016'!M$5","v":0},{"$f":"'Population 2016'!N117/'Population 2016'!N$5","v":0},{"$f":"'Population 2016'!O117/'Population 2016'!O$5","v":0},{"$f":"'Population 2016'!P117/'Population 2016'!P$5","v":0},{"$f":"'Population 2016'!Q117/'Population 2016'!Q$5","v":0},{"$f":"'Population 2016'!R117/'Population 2016'!R$5","v":0},{"$f":"'Population 2016'!S117/'Population 2016'!S$5","v":0},{"$f":"'Population 2016'!T117/'Population 2016'!T$5","v":0},{"$f":"'Population 2016'!U117/'Population 2016'!U$5","v":0},{"$f":"'Population 2016'!V117/'Population 2016'!V$5","v":0},{"$f":"'Population 2016'!W117/'Population 2016'!W$5","v":0},{"$f":"'Population 2016'!X117/'Population 2016'!X$5","v":0},{"$f":"'Population 2016'!Y117/'Population 2016'!Y$5","v":0},{"$f":"'Population 2016'!Z117/'Population 2016'!Z$5","v":0},{"$f":"'Population 2016'!AA117/'Population 2016'!AA$5","v":0},{"$f":"'Population 2016'!AB117/'Population 2016'!AB$5","v":0},{"$f":"'Population 2016'!AC117/'Population 2016'!AC$5","v":0},{"$f":"'Population 2016'!AD117/'Population 2016'!AD$5","v":0},{"$f":"'Population 2016'!AE117/'Population 2016'!AE$5","v":0},{"$f":"'Population 2016'!AF117/'Population 2016'!AF$5","v":0},{"$f":"'Population 2016'!AG117/'Population 2016'!AG$5","v":0},{"$f":"'Population 2016'!AH117/'Population 2016'!AH$5","v":0},{"$f":"'Population 2016'!AI117/'Population 2016'!AI$5","v":0},{"$f":"'Population 2016'!AJ117/'Population 2016'!AJ$5","v":0},{"$f":"'Population 2016'!AK117/'Population 2016'!AK$5","v":0},{"$f":"'Population 2016'!AL117/'Population 2016'!AL$5","v":0},{"$f":"'Population 2016'!AM117/'Population 2016'!AM$5","v":0},{"$f":"'Population 2016'!AN117/'Population 2016'!AN$5","v":0},{"$f":"'Population 2016'!AO117/'Population 2016'!AO$5","v":0},{"$f":"'Population 2016'!AP117/'Population 2016'!AP$5","v":0},{"$f":"'Population 2016'!AQ117/'Population 2016'!AQ$5","v":0},{"$f":"'Population 2016'!AR117/'Population 2016'!AR$5","v":0},{"$f":"'Population 2016'!AS117/'Population 2016'!AS$5","v":0},{"$f":"'Population 2016'!AT117/'Population 2016'!AT$5","v":0},{"$f":"'Population 2016'!AU117/'Population 2016'!AU$5","v":0},{"$f":"'Population 2016'!AV117/'Population 2016'!AV$5","v":0},{"$f":"'Population 2016'!AW117/'Population 2016'!AW$5","v":0},{"$f":"'Population 2016'!AX117/'Population 2016'!AX$5","v":0},{"$f":"'Population 2016'!AY117/'Population 2016'!AY$5","v":0},{"$f":"'Population 2016'!AZ117/'Population 2016'!AZ$5","v":0},{"$f":"'Population 2016'!BA117/'Population 2016'!BA$5","v":0},{"$f":"'Population 2016'!BB117/'Population 2016'!BB$5","v":0},{"$f":"'Population 2016'!BC117/'Population 2016'!BC$5","v":0},115]
[null,"Male 5-9",{"$f":"'Population 2016'!C118/'Population 2016'!C$5","v":0},{"$f":"'Population 2016'!D118/'Population 2016'!D$5","v":0},{"$f":"'Population 2016'!E118/'Population 2016'!E$5","v":0},{"$f":"'Population 2016'!F118/'Population 2016'!F$5","v":0},{"$f":"'Population 2016'!G118/'Population 2016'!G$5","v":0},{"$f":"'Population 2016'!H118/'Population 2016'!H$5","v":0},{"$f":"'Population 2016'!I118/'Population 2016'!I$5","v":0},{"$f":"'Population 2016'!J118/'Population 2016'!J$5","v":0},{"$f":"'Population 2016'!K118/'Population 2016'!K$5","v":0},{"$f":"'Population 2016'!L118/'Population 2016'!L$5","v":0},{"$f":"'Population 2016'!M118/'Population 2016'!M$5","v":0},{"$f":"'Population 2016'!N118/'Population 2016'!N$5","v":0},{"$f":"'Population 2016'!O118/'Population 2016'!O$5","v":0},{"$f":"'Population 2016'!P118/'Population 2016'!P$5","v":0},{"$f":"'Population 2016'!Q118/'Population 2016'!Q$5","v":0},{"$f":"'Population 2016'!R118/'Population 2016'!R$5","v":0},{"$f":"'Population 2016'!S118/'Population 2016'!S$5","v":0},{"$f":"'Population 2016'!T118/'Population 2016'!T$5","v":0},{"$f":"'Population 2016'!U118/'Population 2016'!U$5","v":0},{"$f":"'Population 2016'!V118/'Population 2016'!V$5","v":0},{"$f":"'Population 2016'!W118/'Population 2016'!W$5","v":0},{"$f":"'Population 2016'!X118/'Population 2016'!X$5","v":0},{"$f":"'Population 2016'!Y118/'Population 2016'!Y$5","v":0},{"$f":"'Population 2016'!Z118/'Population 2016'!Z$5","v":0},{"$f":"'Population 2016'!AA118/'Population 2016'!AA$5","v":0},{"$f":"'Population 2016'!AB118/'Population 2016'!AB$5","v":0},{"$f":"'Population 2016'!AC118/'Population 2016'!AC$5","v":0},{"$f":"'Population 2016'!AD118/'Population 2016'!AD$5","v":0},{"$f":"'Population 2016'!AE118/'Population 2016'!AE$5","v":0},{"$f":"'Population 2016'!AF118/'Population 2016'!AF$5","v":0},{"$f":"'Population 2016'!AG118/'Population 2016'!AG$5","v":0},{"$f":"'Population 2016'!AH118/'Population 2016'!AH$5","v":0},{"$f":"'Population 2016'!AI118/'Population 2016'!AI$5","v":0},{"$f":"'Population 2016'!AJ118/'Population 2016'!AJ$5","v":0},{"$f":"'Population 2016'!AK118/'Population 2016'!AK$5","v":0},{"$f":"'Population 2016'!AL118/'Population 2016'!AL$5","v":0},{"$f":"'Population 2016'!AM118/'Population 2016'!AM$5","v":0},{"$f":"'Population 2016'!AN118/'Population 2016'!AN$5","v":0},{"$f":"'Population 2016'!AO118/'Population 2016'!AO$5","v":0},{"$f":"'Population 2016'!AP118/'Population 2016'!AP$5","v":0},{"$f":"'Population 2016'!AQ118/'Population 2016'!AQ$5","v":0},{"$f":"'Population 2016'!AR118/'Population 2016'!AR$5","v":0},{"$f":"'Population 2016'!AS118/'Population 2016'!AS$5","v":0},{"$f":"'Population 2016'!AT118/'Population 2016'!AT$5","v":0},{"$f":"'Population 2016'!AU118/'Population 2016'!AU$5","v":0},{"$f":"'Population 2016'!AV118/'Population 2016'!AV$5","v":0},{"$f":"'Population 2016'!AW118/'Population 2016'!AW$5","v":0},{"$f":"'Population 2016'!AX118/'Population 2016'!AX$5","v":0},{"$f":"'Population 2016'!AY118/'Population 2016'!AY$5","v":0},{"$f":"'Population 2016'!AZ118/'Population 2016'!AZ$5","v":0},{"$f":"'Population 2016'!BA118/'Population 2016'!BA$5","v":0},{"$f":"'Population 2016'!BB118/'Population 2016'!BB$5","v":0},{"$f":"'Population 2016'!BC118/'Population 2016'!BC$5","v":0},116]
[null,"Male 10-15",{"$f":"'Population 2016'!C119/'Population 2016'!C$5","v":0},{"$f":"'Population 2016'!D119/'Population 2016'!D$5","v":0},{"$f":"'Population 2016'!E119/'Population 2016'!E$5","v":0},{"$f":"'Population 2016'!F119/'Population 2016'!F$5","v":0},{"$f":"'Population 2016'!G119/'Population 2016'!G$5","v":0},{"$f":"'Population 2016'!H119/'Population 2016'!H$5","v":0},{"$f":"'Population 2016'!I119/'Population 2016'!I$5","v":0},{"$f":"'Population 2016'!J119/'Population 2016'!J$5","v":0},{"$f":"'Population 2016'!K119/'Population 2016'!K$5","v":0},{"$f":"'Population 2016'!L119/'Population 2016'!L$5","v":0},{"$f":"'Population 2016'!M119/'Population 2016'!M$5","v":0},{"$f":"'Population 2016'!N119/'Population 2016'!N$5","v":0},{"$f":"'Population 2016'!O119/'Population 2016'!O$5","v":0},{"$f":"'Population 2016'!P119/'Population 2016'!P$5","v":0},{"$f":"'Population 2016'!Q119/'Population 2016'!Q$5","v":0},{"$f":"'Population 2016'!R119/'Population 2016'!R$5","v":0},{"$f":"'Population 2016'!S119/'Population 2016'!S$5","v":0},{"$f":"'Population 2016'!T119/'Population 2016'!T$5","v":0},{"$f":"'Population 2016'!U119/'Population 2016'!U$5","v":0},{"$f":"'Population 2016'!V119/'Population 2016'!V$5","v":0},{"$f":"'Population 2016'!W119/'Population 2016'!W$5","v":0},{"$f":"'Population 2016'!X119/'Population 2016'!X$5","v":0},{"$f":"'Population 2016'!Y119/'Population 2016'!Y$5","v":0},{"$f":"'Population 2016'!Z119/'Population 2016'!Z$5","v":0},{"$f":"'Population 2016'!AA119/'Population 2016'!AA$5","v":0},{"$f":"'Population 2016'!AB119/'Population 2016'!AB$5","v":0},{"$f":"'Population 2016'!AC119/'Population 2016'!AC$5","v":0},{"$f":"'Population 2016'!AD119/'Population 2016'!AD$5","v":0},{"$f":"'Population 2016'!AE119/'Population 2016'!AE$5","v":0},{"$f":"'Population 2016'!AF119/'Population 2016'!AF$5","v":0},{"$f":"'Population 2016'!AG119/'Population 2016'!AG$5","v":0},{"$f":"'Population 2016'!AH119/'Population 2016'!AH$5","v":0},{"$f":"'Population 2016'!AI119/'Population 2016'!AI$5","v":0},{"$f":"'Population 2016'!AJ119/'Population 2016'!AJ$5","v":0},{"$f":"'Population 2016'!AK119/'Population 2016'!AK$5","v":0},{"$f":"'Population 2016'!AL119/'Population 2016'!AL$5","v":0},{"$f":"'Population 2016'!AM119/'Population 2016'!AM$5","v":0},{"$f":"'Population 2016'!AN119/'Population 2016'!AN$5","v":0},{"$f":"'Population 2016'!AO119/'Population 2016'!AO$5","v":0},{"$f":"'Population 2016'!AP119/'Population 2016'!AP$5","v":0},{"$f":"'Population 2016'!AQ119/'Population 2016'!AQ$5","v":0},{"$f":"'Population 2016'!AR119/'Population 2016'!AR$5","v":0},{"$f":"'Population 2016'!AS119/'Population 2016'!AS$5","v":0},{"$f":"'Population 2016'!AT119/'Population 2016'!AT$5","v":0},{"$f":"'Population 2016'!AU119/'Population 2016'!AU$5","v":0},{"$f":"'Population 2016'!AV119/'Population 2016'!AV$5","v":0},{"$f":"'Population 2016'!AW119/'Population 2016'!AW$5","v":0},{"$f":"'Population 2016'!AX119/'Population 2016'!AX$5","v":0},{"$f":"'Population 2016'!AY119/'Population 2016'!AY$5","v":0},{"$f":"'Population 2016'!AZ119/'Population 2016'!AZ$5","v":0},{"$f":"'Population 2016'!BA119/'Population 2016'!BA$5","v":0},{"$f":"'Population 2016'!BB119/'Population 2016'!BB$5","v":0},{"$f":"'Population 2016'!BC119/'Population 2016'!BC$5","v":0},117]
[null,"Male 16-19",{"$f":"'Population 2016'!C120/'Population 2016'!C$5","v":4.727757816133665E-3},{"$f":"'Population 2016'!D120/'Population 2016'!D$5","v":3.3009594788885304E-3},{"$f":"'Population 2016'!E120/'Population 2016'!E$5","v":1.992321359091314E-3},{"$f":"'Population 2016'!F120/'Population 2016'!F$5","v":4.017512232809683E-3},{"$f":"'Population 2016'!G120/'Population 2016'!G$5","v":4.1141124884967253E-3},{"$f":"'Population 2016'!H120/'Population 2016'!H$5","v":6.5885679267735147E-3},{"$f":"'Population 2016'!I120/'Population 2016'!I$5","v":3.8208692739301565E-3},{"$f":"'Population 2016'!J120/'Population 2016'!J$5","v":5.149979682044733E-3},{"$f":"'Population 2016'!K120/'Population 2016'!K$5","v":7.2295988281434577E-3},{"$f":"'Population 2016'!L120/'Population 2016'!L$5","v":7.1799596524391215E-3},{"$f":"'Population 2016'!M120/'Population 2016'!M$5","v":7.1799596524391215E-3},{"$f":"'Population 2016'!N120/'Population 2016'!N$5","v":4.5329968413692226E-3},{"$f":"'Population 2016'!O120/'Population 2016'!O$5","v":7.2022270435204722E-3},{"$f":"'Population 2016'!P120/'Population 2016'!P$5","v":4.7221909162628202E-3},{"$f":"'Population 2016'!Q120/'Population 2016'!Q$5","v":7.1444518865818266E-3},{"$f":"'Population 2016'!R120/'Population 2016'!R$5","v":2.9009421408420716E-3},{"$f":"'Population 2016'!S120/'Population 2016'!S$5","v":5.2359255813625057E-3},{"$f":"'Population 2016'!T120/'Population 2016'!T$5","v":3.5294993555231896E-3},{"$f":"'Population 2016'!U120/'Population 2016'!U$5","v":6.1966095693356347E-3},{"$f":"'Population 2016'!V120/'Population 2016'!V$5","v":8.3498065195655655E-3},{"$f":"'Population 2016'!W120/'Population 2016'!W$5","v":5.3438707273547352E-3},{"$f":"'Population 2016'!X120/'Population 2016'!X$5","v":5.3438707273547352E-3},{"$f":"'Population 2016'!Y120/'Population 2016'!Y$5","v":6.8162668320058501E-3},{"$f":"'Population 2016'!Z120/'Population 2016'!Z$5","v":4.5084720170814755E-3},{"$f":"'Population 2016'!AA120/'Population 2016'!AA$5","v":5.6784773947169635E-3},{"$f":"'Population 2016'!AB120/'Population 2016'!AB$5","v":3.4717460057521262E-3},{"$f":"'Population 2016'!AC120/'Population 2016'!AC$5","v":4.640882377885942E-3},{"$f":"'Population 2016'!AD120/'Population 2016'!AD$5","v":4.905281179053928E-3},{"$f":"'Population 2016'!AE120/'Population 2016'!AE$5","v":5.2053922524871923E-3},{"$f":"'Population 2016'!AF120/'Population 2016'!AF$5","v":3.2122336334434241E-3},{"$f":"'Population 2016'!AG120/'Population 2016'!AG$5","v":5.2053922524871923E-3},{"$f":"'Population 2016'!AH120/'Population 2016'!AH$5","v":7.5420525157203497E-3},{"$f":"'Population 2016'!AI120/'Population 2016'!AI$5","v":5.3755796657625338E-3},{"$f":"'Population 2016'!AJ120/'Population 2016'!AJ$5","v":9.9963750941081345E-3},{"$f":"'Population 2016'!AK120/'Population 2016'!AK$5","v":4.3498485096111535E-3},{"$f":"'Population 2016'!AL120/'Population 2016'!AL$5","v":5.8796403043578508E-3},{"$f":"'Population 2016'!AM120/'Population 2016'!AM$5","v":8.008229170816868E-3},{"$f":"'Population 2016'!AN120/'Population 2016'!AN$5","v":3.654412566815752E-3},{"$f":"'Population 2016'!AO120/'Population 2016'!AO$5","v":3.654412566815752E-3},{"$f":"'Population 2016'!AP120/'Population 2016'!AP$5","v":3.011904950620611E-3},{"$f":"'Population 2016'!AQ120/'Population 2016'!AQ$5","v":4.9665698470981534E-3},{"$f":"'Population 2016'!AR120/'Population 2016'!AR$5","v":5.2782680739968937E-3},{"$f":"'Population 2016'!AS120/'Population 2016'!AS$5","v":3.8208692739301565E-3},{"$f":"'Population 2016'!AT120/'Population 2016'!AT$5","v":4.2178520588390361E-4},{"$f":"'Population 2016'!AU120/'Population 2016'!AU$5","v":4.2178520588390361E-4},{"$f":"'Population 2016'!AV120/'Population 2016'!AV$5","v":6.7785872663921444E-3},{"$f":"'Population 2016'!AW120/'Population 2016'!AW$5","v":7.0512233815363968E-3},{"$f":"'Population 2016'!AX120/'Population 2016'!AX$5","v":4.0251990237295063E-3},{"$f":"'Population 2016'!AY120/'Population 2016'!AY$5","v":4.542394663565986E-3},{"$f":"'Population 2016'!AZ120/'Population 2016'!AZ$5","v":3.8370601331177982E-3},{"$f":"'Population 2016'!BA120/'Population 2016'!BA$5","v":7.8681710213776724E-3},{"$f":"'Population 2016'!BB120/'Population 2016'!BB$5","v":7.5264288131028914E-3},{"$f":"'Population 2016'!BC120/'Population 2016'!BC$5","v":6.1966095693356347E-3},118]
[null,"Male 20-24",{"$f":"'Population 2016'!C121/'Population 2016'!C$5","v":1.1382396385437483E-2},{"$f":"'Population 2016'!D121/'Population 2016'!D$5","v":6.9417955263441017E-3},{"$f":"'Population 2016'!E121/'Population 2016'!E$5","v":2.8689427570914921E-3},{"$f":"'Population 2016'!F121/'Population 2016'!F$5","v":6.2631985578161216E-3},{"$f":"'Population 2016'!G121/'Population 2016'!G$5","v":5.3862393763871594E-3},{"$f":"'Population 2016'!H121/'Population 2016'!H$5","v":8.4594358862953248E-3},{"$f":"'Population 2016'!I121/'Population 2016'!I$5","v":5.6527928984172176E-3},{"$f":"'Population 2016'!J121/'Population 2016'!J$5","v":8.5584203411757879E-3},{"$f":"'Population 2016'!K121/'Population 2016'!K$5","v":9.5922128242687706E-3},{"$f":"'Population 2016'!L121/'Population 2016'!L$5","v":9.6897685574952735E-3},{"$f":"'Population 2016'!M121/'Population 2016'!M$5","v":9.6897685574952735E-3},{"$f":"'Population 2016'!N121/'Population 2016'!N$5","v":1.3494506554359794E-2},{"$f":"'Population 2016'!O121/'Population 2016'!O$5","v":9.6888281273219013E-3},{"$f":"'Population 2016'!P121/'Population 2016'!P$5","v":6.9424095570832867E-3},{"$f":"'Population 2016'!Q121/'Population 2016'!Q$5","v":1.0023383979036673E-2},{"$f":"'Population 2016'!R121/'Population 2016'!R$5","v":3.9255868419651885E-3},{"$f":"'Population 2016'!S121/'Population 2016'!S$5","v":7.7417908418965847E-3},{"$f":"'Population 2016'!T121/'Population 2016'!T$5","v":6.814702447150575E-3},{"$f":"'Population 2016'!U121/'Population 2016'!U$5","v":6.90479352011685E-3},{"$f":"'Population 2016'!V121/'Population 2016'!V$5","v":1.003655902488914E-2},{"$f":"'Population 2016'!W121/'Population 2016'!W$5","v":6.6348976003242277E-3},{"$f":"'Population 2016'!X121/'Population 2016'!X$5","v":6.6348976003242277E-3},{"$f":"'Population 2016'!Y121/'Population 2016'!Y$5","v":9.3281505858412422E-3},{"$f":"'Population 2016'!Z121/'Population 2016'!Z$5","v":8.5000861429818629E-3},{"$f":"'Population 2016'!AA121/'Population 2016'!AA$5","v":8.4648976817700752E-3},{"$f":"'Population 2016'!AB121/'Population 2016'!AB$5","v":6.8063416681166389E-3},{"$f":"'Population 2016'!AC121/'Population 2016'!AC$5","v":7.6899845062585199E-3},{"$f":"'Population 2016'!AD121/'Population 2016'!AD$5","v":6.3493245003535675E-3},{"$f":"'Population 2016'!AE121/'Population 2016'!AE$5","v":6.7146479943325909E-3},{"$f":"'Population 2016'!AF121/'Population 2016'!AF$5","v":4.8560527228581341E-3},{"$f":"'Population 2016'!AG121/'Population 2016'!AG$5","v":6.7146479943325909E-3},{"$f":"'Population 2016'!AH121/'Population 2016'!AH$5","v":9.8566824257172846E-3},{"$f":"'Population 2016'!AI121/'Population 2016'!AI$5","v":8.4776117770583598E-3},{"$f":"'Population 2016'!AJ121/'Population 2016'!AJ$5","v":1.2352563923821209E-2},{"$f":"'Population 2016'!AK121/'Population 2016'!AK$5","v":6.1099028198584411E-3},{"$f":"'Population 2016'!AL121/'Population 2016'!AL$5","v":7.3783721466451468E-3},{"$f":"'Population 2016'!AM121/'Population 2016'!AM$5","v":1.0257487567504917E-2},{"$f":"'Population 2016'!AN121/'Population 2016'!AN$5","v":4.9634558743318425E-3},{"$f":"'Population 2016'!AO121/'Population 2016'!AO$5","v":4.9634558743318425E-3},{"$f":"'Population 2016'!AP121/'Population 2016'!AP$5","v":5.3025379262241811E-3},{"$f":"'Population 2016'!AQ121/'Population 2016'!AQ$5","v":6.6860305803693757E-3},{"$f":"'Population 2016'!AR121/'Population 2016'!AR$5","v":8.011971173478424E-3},{"$f":"'Population 2016'!AS121/'Population 2016'!AS$5","v":5.6527928984172176E-3},{"$f":"'Population 2016'!AT121/'Population 2016'!AT$5","v":2.2143723308904939E-3},{"$f":"'Population 2016'!AU121/'Population 2016'!AU$5","v":2.2143723308904939E-3},{"$f":"'Population 2016'!AV121/'Population 2016'!AV$5","v":8.4362791679864855E-3},{"$f":"'Population 2016'!AW121/'Population 2016'!AW$5","v":9.4346817987674657E-3},{"$f":"'Population 2016'!AX121/'Population 2016'!AX$5","v":7.9992844090624477E-3},{"$f":"'Population 2016'!AY121/'Population 2016'!AY$5","v":7.6282855481778402E-3},{"$f":"'Population 2016'!AZ121/'Population 2016'!AZ$5","v":8.5025110595923631E-3},{"$f":"'Population 2016'!BA121/'Population 2016'!BA$5","v":1.1269164327359102E-2},{"$f":"'Population 2016'!BB121/'Population 2016'!BB$5","v":1.0585335202281406E-2},{"$f":"'Population 2016'!BC121/'Population 2016'!BC$5","v":6.90479352011685E-3},119]
[null,"Male 25-29",{"$f":"'Population 2016'!C122/'Population 2016'!C$5","v":1.359038706281018E-2},{"$f":"'Population 2016'!D122/'Population 2016'!D$5","v":8.2597341627299661E-3},{"$f":"'Population 2016'!E122/'Population 2016'!E$5","v":3.3705389580862464E-3},{"$f":"'Population 2016'!F122/'Population 2016'!F$5","v":7.3242338398145767E-3},{"$f":"'Population 2016'!G122/'Population 2016'!G$5","v":4.9261083743842365E-3},{"$f":"'Population 2016'!H122/'Population 2016'!H$5","v":8.2713763687004109E-3},{"$f":"'Population 2016'!I122/'Population 2016'!I$5","v":5.9459006783351481E-3},{"$f":"'Population 2016'!J122/'Population 2016'!J$5","v":8.6330577278720885E-3},{"$f":"'Population 2016'!K122/'Population 2016'!K$5","v":9.1433161650049614E-3},{"$f":"'Population 2016'!L122/'Population 2016'!L$5","v":7.8868362111416453E-3},{"$f":"'Population 2016'!M122/'Population 2016'!M$5","v":7.8868362111416453E-3},{"$f":"'Population 2016'!N122/'Population 2016'!N$5","v":1.2497890227533937E-2},{"$f":"'Population 2016'!O122/'Population 2016'!O$5","v":9.3123705927224808E-3},{"$f":"'Population 2016'!P122/'Population 2016'!P$5","v":6.5366843232277693E-3},{"$f":"'Population 2016'!Q122/'Population 2016'!Q$5","v":9.9881317493331449E-3},{"$f":"'Population 2016'!R122/'Population 2016'!R$5","v":3.4332251024644703E-3},{"$f":"'Population 2016'!S122/'Population 2016'!S$5","v":9.104614358016563E-3},{"$f":"'Population 2016'!T122/'Population 2016'!T$5","v":1.001614681972797E-2},{"$f":"'Population 2016'!U122/'Population 2016'!U$5","v":7.8342849555171953E-3},{"$f":"'Population 2016'!V122/'Population 2016'!V$5","v":1.0173941581883819E-2},{"$f":"'Population 2016'!W122/'Population 2016'!W$5","v":7.0499872531523938E-3},{"$f":"'Population 2016'!X122/'Population 2016'!X$5","v":7.0499872531523938E-3},{"$f":"'Population 2016'!Y122/'Population 2016'!Y$5","v":9.4354620753247173E-3},{"$f":"'Population 2016'!Z122/'Population 2016'!Z$5","v":1.1690280167949778E-2},{"$f":"'Population 2016'!AA122/'Population 2016'!AA$5","v":9.6102931454991082E-3},{"$f":"'Population 2016'!AB122/'Population 2016'!AB$5","v":8.0038483976950549E-3},{"$f":"'Population 2016'!AC122/'Population 2016'!AC$5","v":9.3676112539587651E-3},{"$f":"'Population 2016'!AD122/'Population 2016'!AD$5","v":6.1595146823476866E-3},{"$f":"'Population 2016'!AE122/'Population 2016'!AE$5","v":6.6273781044979925E-3},{"$f":"'Population 2016'!AF122/'Population 2016'!AF$5","v":4.8258909047037358E-3},{"$f":"'Population 2016'!AG122/'Population 2016'!AG$5","v":6.6273781044979925E-3},{"$f":"'Population 2016'!AH122/'Population 2016'!AH$5","v":1.0046162562811737E-2},{"$f":"'Population 2016'!AI122/'Population 2016'!AI$5","v":1.0376564003849856E-2},{"$f":"'Population 2016'!AJ122/'Population 2016'!AJ$5","v":1.299389342776678E-2},{"$f":"'Population 2016'!AK122/'Population 2016'!AK$5","v":6.6882063789396934E-3},{"$f":"'Population 2016'!AL122/'Population 2016'!AL$5","v":6.8817509444671077E-3},{"$f":"'Population 2016'!AM122/'Population 2016'!AM$5","v":1.0489295196149096E-2},{"$f":"'Population 2016'!AN122/'Population 2016'!AN$5","v":5.672520999236391E-3},{"$f":"'Population 2016'!AO122/'Population 2016'!AO$5","v":5.672520999236391E-3},{"$f":"'Population 2016'!AP122/'Population 2016'!AP$5","v":5.9841795729435824E-3},{"$f":"'Population 2016'!AQ122/'Population 2016'!AQ$5","v":6.9600482271058254E-3},{"$f":"'Population 2016'!AR122/'Population 2016'!AR$5","v":8.8244408339632364E-3},{"$f":"'Population 2016'!AS122/'Population 2016'!AS$5","v":5.9459006783351481E-3},{"$f":"'Population 2016'!AT122/'Population 2016'!AT$5","v":2.4252649338324457E-3},{"$f":"'Population 2016'!AU122/'Population 2016'!AU$5","v":2.4252649338324457E-3},{"$f":"'Population 2016'!AV122/'Population 2016'!AV$5","v":8.8163868651673534E-3},{"$f":"'Population 2016'!AW122/'Population 2016'!AW$5","v":9.5795960705351152E-3},{"$f":"'Population 2016'!AX122/'Population 2016'!AX$5","v":8.3570798778384043E-3},{"$f":"'Population 2016'!AY122/'Population 2016'!AY$5","v":7.9220342094795133E-3},{"$f":"'Population 2016'!AZ122/'Population 2016'!AZ$5","v":8.6894742594819108E-3},{"$f":"'Population 2016'!BA122/'Population 2016'!BA$5","v":1.1390628374001295E-2},{"$f":"'Population 2016'!BB122/'Population 2016'!BB$5","v":1.0378185785407014E-2},{"$f":"'Population 2016'!BC122/'Population 2016'!BC$5","v":7.8342849555171953E-3},120]
[null,"Male 30-34",{"$f":"'Population 2016'!C123/'Population 2016'!C$5","v":1.0799732178908578E-2},{"$f":"'Population 2016'!D123/'Population 2016'!D$5","v":6.7315121817630545E-3},{"$f":"'Population 2016'!E123/'Population 2016'!E$5","v":3.0002015760433906E-3},{"$f":"'Population 2016'!F123/'Population 2016'!F$5","v":7.4066443471542624E-3},{"$f":"'Population 2016'!G123/'Population 2016'!G$5","v":5.2373734639744492E-3},{"$f":"'Population 2016'!H123/'Population 2016'!H$5","v":7.8758029006559382E-3},{"$f":"'Population 2016'!I123/'Population 2016'!I$5","v":5.0561092035842897E-3},{"$f":"'Population 2016'!J123/'Population 2016'!J$5","v":6.8417604471608766E-3},{"$f":"'Population 2016'!K123/'Population 2016'!K$5","v":8.670793365779899E-3},{"$f":"'Population 2016'!L123/'Population 2016'!L$5","v":7.9186059441170402E-3},{"$f":"'Population 2016'!M123/'Population 2016'!M$5","v":7.9186059441170402E-3},{"$f":"'Population 2016'!N123/'Population 2016'!N$5","v":9.612525216804238E-3},{"$f":"'Population 2016'!O123/'Population 2016'!O$5","v":9.5204129144747917E-3},{"$f":"'Population 2016'!P123/'Population 2016'!P$5","v":5.7252338555167362E-3},{"$f":"'Population 2016'!Q123/'Population 2016'!Q$5","v":9.7648676278774636E-3},{"$f":"'Population 2016'!R123/'Population 2016'!R$5","v":2.9275562889231914E-3},{"$f":"'Population 2016'!S123/'Population 2016'!S$5","v":8.6738773917817511E-3},{"$f":"'Population 2016'!T123/'Population 2016'!T$5","v":9.0482682884836414E-3},{"$f":"'Population 2016'!U123/'Population 2016'!U$5","v":6.4621785508785909E-3},{"$f":"'Population 2016'!V123/'Population 2016'!V$5","v":1.0189206310438785E-2},{"$f":"'Population 2016'!W123/'Population 2016'!W$5","v":6.8865661299916982E-3},{"$f":"'Population 2016'!X123/'Population 2016'!X$5","v":6.8865661299916982E-3},{"$f":"'Population 2016'!Y123/'Population 2016'!Y$5","v":8.5849191586779231E-3},{"$f":"'Population 2016'!Z123/'Population 2016'!Z$5","v":1.0846272525421859E-2},{"$f":"'Population 2016'!AA123/'Population 2016'!AA$5","v":9.2614923227277955E-3},{"$f":"'Population 2016'!AB123/'Population 2016'!AB$5","v":6.6487211242234117E-3},{"$f":"'Population 2016'!AC123/'Population 2016'!AC$5","v":8.8546008551552372E-3},{"$f":"'Population 2016'!AD123/'Population 2016'!AD$5","v":6.0925229818750235E-3},{"$f":"'Population 2016'!AE123/'Population 2016'!AE$5","v":6.4169036643086687E-3},{"$f":"'Population 2016'!AF123/'Population 2016'!AF$5","v":4.8108099956265362E-3},{"$f":"'Population 2016'!AG123/'Population 2016'!AG$5","v":6.4169036643086687E-3},{"$f":"'Population 2016'!AH123/'Population 2016'!AH$5","v":9.99229075912802E-3},{"$f":"'Population 2016'!AI123/'Population 2016'!AI$5","v":9.8939649138157313E-3},{"$f":"'Population 2016'!AJ123/'Population 2016'!AJ$5","v":1.2575635055628363E-2},{"$f":"'Population 2016'!AK123/'Population 2016'!AK$5","v":6.2230491683743384E-3},{"$f":"'Population 2016'!AL123/'Population 2016'!AL$5","v":6.243237970238201E-3},{"$f":"'Population 2016'!AM123/'Population 2016'!AM$5","v":1.073196880738597E-2},{"$f":"'Population 2016'!AN123/'Population 2016'!AN$5","v":3.872586451401767E-3},{"$f":"'Population 2016'!AO123/'Population 2016'!AO$5","v":3.872586451401767E-3},{"$f":"'Population 2016'!AP123/'Population 2016'!AP$5","v":5.9604013759649984E-3},{"$f":"'Population 2016'!AQ123/'Population 2016'!AQ$5","v":7.4806817559050802E-3},{"$f":"'Population 2016'!AR123/'Population 2016'!AR$5","v":8.2752942167175388E-3},{"$f":"'Population 2016'!AS123/'Population 2016'!AS$5","v":5.0561092035842897E-3},{"$f":"'Population 2016'!AT123/'Population 2016'!AT$5","v":1.2653556176517109E-3},{"$f":"'Population 2016'!AU123/'Population 2016'!AU$5","v":1.2653556176517109E-3},{"$f":"'Population 2016'!AV123/'Population 2016'!AV$5","v":8.0667300179495301E-3},{"$f":"'Population 2016'!AW123/'Population 2016'!AW$5","v":9.2134968576484226E-3},{"$f":"'Population 2016'!AX123/'Population 2016'!AX$5","v":5.8525115964067108E-3},{"$f":"'Population 2016'!AY123/'Population 2016'!AY$5","v":7.3039380679905752E-3},{"$f":"'Population 2016'!AZ123/'Population 2016'!AZ$5","v":7.6712439093142189E-3},{"$f":"'Population 2016'!BA123/'Population 2016'!BA$5","v":1.1053228244439646E-2},{"$f":"'Population 2016'!BB123/'Population 2016'!BB$5","v":1.1151543608404743E-2},{"$f":"'Population 2016'!BC123/'Population 2016'!BC$5","v":6.4621785508785909E-3},121]
[null,"Male 35-39",{"$f":"'Population 2016'!C124/'Population 2016'!C$5","v":8.3924090098286257E-3},{"$f":"'Population 2016'!D124/'Population 2016'!D$5","v":5.5382764590240895E-3},{"$f":"'Population 2016'!E124/'Population 2016'!E$5","v":2.9205087216797377E-3},{"$f":"'Population 2016'!F124/'Population 2016'!F$5","v":6.3250064383208859E-3},{"$f":"'Population 2016'!G124/'Population 2016'!G$5","v":5.1020408163265302E-3},{"$f":"'Population 2016'!H124/'Population 2016'!H$5","v":6.9744141783906642E-3},{"$f":"'Population 2016'!I124/'Population 2016'!I$5","v":4.9409597186165317E-3},{"$f":"'Population 2016'!J124/'Population 2016'!J$5","v":6.0456283224003381E-3},{"$f":"'Population 2016'!K124/'Population 2016'!K$5","v":9.0724377451212018E-3},{"$f":"'Population 2016'!L124/'Population 2016'!L$5","v":7.46588724921767E-3},{"$f":"'Population 2016'!M124/'Population 2016'!M$5","v":7.46588724921767E-3},{"$f":"'Population 2016'!N124/'Population 2016'!N$5","v":6.5664156372316571E-3},{"$f":"'Population 2016'!O124/'Population 2016'!O$5","v":8.4009470879028349E-3},{"$f":"'Population 2016'!P124/'Population 2016'!P$5","v":4.9814042601149557E-3},{"$f":"'Population 2016'!Q124/'Population 2016'!Q$5","v":9.3770931011386473E-3},{"$f":"'Population 2016'!R124/'Population 2016'!R$5","v":2.6481077340714324E-3},{"$f":"'Population 2016'!S124/'Population 2016'!S$5","v":7.604096237936276E-3},{"$f":"'Population 2016'!T124/'Population 2016'!T$5","v":6.9356872635561164E-3},{"$f":"'Population 2016'!U124/'Population 2016'!U$5","v":6.285132563183287E-3},{"$f":"'Population 2016'!V124/'Population 2016'!V$5","v":1.0189206310438785E-2},{"$f":"'Population 2016'!W124/'Population 2016'!W$5","v":6.7492923865367146E-3},{"$f":"'Population 2016'!X124/'Population 2016'!X$5","v":6.7492923865367146E-3},{"$f":"'Population 2016'!Y124/'Population 2016'!Y$5","v":8.203367196070014E-3},{"$f":"'Population 2016'!Z124/'Population 2016'!Z$5","v":8.47879237218414E-3},{"$f":"'Population 2016'!AA124/'Population 2016'!AA$5","v":7.9240903108446486E-3},{"$f":"'Population 2016'!AB124/'Population 2016'!AB$5","v":5.59041175808317E-3},{"$f":"'Population 2016'!AC124/'Population 2016'!AC$5","v":7.2390318169876771E-3},{"$f":"'Population 2016'!AD124/'Population 2016'!AD$5","v":5.7947820908854069E-3},{"$f":"'Population 2016'!AE124/'Population 2016'!AE$5","v":6.0575570591073829E-3},{"$f":"'Population 2016'!AF124/'Population 2016'!AF$5","v":4.6298390867001464E-3},{"$f":"'Population 2016'!AG124/'Population 2016'!AG$5","v":6.0575570591073829E-3},{"$f":"'Population 2016'!AH124/'Population 2016'!AH$5","v":9.1544913294260791E-3},{"$f":"'Population 2016'!AI124/'Population 2016'!AI$5","v":8.3094540204742325E-3},{"$f":"'Population 2016'!AJ124/'Population 2016'!AJ$5","v":1.2352563923821209E-2},{"$f":"'Population 2016'!AK124/'Population 2016'!AK$5","v":5.8584664898231149E-3},{"$f":"'Population 2016'!AL124/'Population 2016'!AL$5","v":5.3475461591670952E-3},{"$f":"'Population 2016'!AM124/'Population 2016'!AM$5","v":9.6019066177455981E-3},{"$f":"'Population 2016'!AN124/'Population 2016'!AN$5","v":3.927129922548271E-3},{"$f":"'Population 2016'!AO124/'Population 2016'!AO$5","v":3.927129922548271E-3},{"$f":"'Population 2016'!AP124/'Population 2016'!AP$5","v":5.3738725171599321E-3},{"$f":"'Population 2016'!AQ124/'Population 2016'!AQ$5","v":5.9324820518441386E-3},{"$f":"'Population 2016'!AR124/'Population 2016'!AR$5","v":7.2048481737700398E-3},{"$f":"'Population 2016'!AS124/'Population 2016'!AS$5","v":4.9409597186165317E-3},{"$f":"'Population 2016'!AT124/'Population 2016'!AT$5","v":1.7398639742711025E-3},{"$f":"'Population 2016'!AU124/'Population 2016'!AU$5","v":1.7398639742711025E-3},{"$f":"'Population 2016'!AV124/'Population 2016'!AV$5","v":7.3909830007390983E-3},{"$f":"'Population 2016'!AW124/'Population 2016'!AW$5","v":8.683415705656233E-3},{"$f":"'Population 2016'!AX124/'Population 2016'!AX$5","v":4.4085513117037454E-3},{"$f":"'Population 2016'!AY124/'Population 2016'!AY$5","v":6.3859735014228447E-3},{"$f":"'Population 2016'!AZ124/'Population 2016'!AZ$5","v":6.0662367471854845E-3},{"$f":"'Population 2016'!BA124/'Population 2016'!BA$5","v":1.0864284171885123E-2},{"$f":"'Population 2016'!BB124/'Population 2016'!BB$5","v":9.7567375347838402E-3},{"$f":"'Population 2016'!BC124/'Population 2016'!BC$5","v":6.285132563183287E-3},122]
[null,"Male 40-44",{"$f":"'Population 2016'!C125/'Population 2016'!C$5","v":7.3037469397351437E-3},{"$f":"'Population 2016'!D125/'Population 2016'!D$5","v":4.9245425114677775E-3},{"$f":"'Population 2016'!E125/'Population 2016'!E$5","v":2.7423717531021618E-3},{"$f":"'Population 2016'!F125/'Population 2016'!F$5","v":5.9747617821272209E-3},{"$f":"'Population 2016'!G125/'Population 2016'!G$5","v":4.8719753153250688E-3},{"$f":"'Population 2016'!H125/'Population 2016'!H$5","v":8.1351953387178884E-3},{"$f":"'Population 2016'!I125/'Population 2016'!I$5","v":5.3806213884934262E-3},{"$f":"'Population 2016'!J125/'Population 2016'!J$5","v":6.5100387285106521E-3},{"$f":"'Population 2016'!K125/'Population 2016'!K$5","v":9.8521003638425558E-3},{"$f":"'Population 2016'!L125/'Population 2016'!L$5","v":8.9114100995981126E-3},{"$f":"'Population 2016'!M125/'Population 2016'!M$5","v":8.9114100995981126E-3},{"$f":"'Population 2016'!N125/'Population 2016'!N$5","v":6.1645542151244565E-3},{"$f":"'Population 2016'!O125/'Population 2016'!O$5","v":9.3519977016276838E-3},{"$f":"'Population 2016'!P125/'Population 2016'!P$5","v":5.5899921108982309E-3},{"$f":"'Population 2016'!Q125/'Population 2016'!Q$5","v":9.659110938766877E-3},{"$f":"'Population 2016'!R125/'Population 2016'!R$5","v":3.5263746207483898E-3},{"$f":"'Population 2016'!S125/'Population 2016'!S$5","v":7.5581980366161731E-3},{"$f":"'Population 2016'!T125/'Population 2016'!T$5","v":5.937562528210402E-3},{"$f":"'Population 2016'!U125/'Population 2016'!U$5","v":8.8080378878413676E-3},{"$f":"'Population 2016'!V125/'Population 2016'!V$5","v":1.1036398745239312E-2},{"$f":"'Population 2016'!W125/'Population 2016'!W$5","v":7.4029768791794952E-3},{"$f":"'Population 2016'!X125/'Population 2016'!X$5","v":7.4029768791794952E-3},{"$f":"'Population 2016'!Y125/'Population 2016'!Y$5","v":8.8671086310233536E-3},{"$f":"'Population 2016'!Z125/'Population 2016'!Z$5","v":6.5410592295913729E-3},{"$f":"'Population 2016'!AA125/'Population 2016'!AA$5","v":7.6138236742080726E-3},{"$f":"'Population 2016'!AB125/'Population 2016'!AB$5","v":4.947647462206892E-3},{"$f":"'Population 2016'!AC125/'Population 2016'!AC$5","v":6.2802402047076981E-3},{"$f":"'Population 2016'!AD125/'Population 2016'!AD$5","v":5.6942945401764113E-3},{"$f":"'Population 2016'!AE125/'Population 2016'!AE$5","v":6.006221829792914E-3},{"$f":"'Population 2016'!AF125/'Population 2016'!AF$5","v":3.9361172691489846E-3},{"$f":"'Population 2016'!AG125/'Population 2016'!AG$5","v":6.006221829792914E-3},{"$f":"'Population 2016'!AH125/'Population 2016'!AH$5","v":1.0009009594754001E-2},{"$f":"'Population 2016'!AI125/'Population 2016'!AI$5","v":7.907515968151195E-3},{"$f":"'Population 2016'!AJ125/'Population 2016'!AJ$5","v":1.2310738086607367E-2},{"$f":"'Population 2016'!AK125/'Population 2016'!AK$5","v":5.0664420502118347E-3},{"$f":"'Population 2016'!AL125/'Population 2016'!AL$5","v":6.5890991646121921E-3},{"$f":"'Population 2016'!AM125/'Population 2016'!AM$5","v":1.0619686987261446E-2},{"$f":"'Population 2016'!AN125/'Population 2016'!AN$5","v":5.5634340569433839E-3},{"$f":"'Population 2016'!AO125/'Population 2016'!AO$5","v":5.5634340569433839E-3},{"$f":"'Population 2016'!AP125/'Population 2016'!AP$5","v":4.0026631580616012E-3},{"$f":"'Population 2016'!AQ125/'Population 2016'!AQ$5","v":6.2887049926015235E-3},{"$f":"'Population 2016'!AR125/'Population 2016'!AR$5","v":7.1319999206911986E-3},{"$f":"'Population 2016'!AS125/'Population 2016'!AS$5","v":5.3806213884934262E-3},{"$f":"'Population 2016'!AT125/'Population 2016'!AT$5","v":1.5289713713291507E-3},{"$f":"'Population 2016'!AU125/'Population 2016'!AU$5","v":1.5289713713291507E-3},{"$f":"'Population 2016'!AV125/'Population 2016'!AV$5","v":8.6791257522964849E-3},{"$f":"'Population 2016'!AW125/'Population 2016'!AW$5","v":9.3660381963512115E-3},{"$f":"'Population 2016'!AX125/'Population 2016'!AX$5","v":4.7024547324839953E-3},{"$f":"'Population 2016'!AY125/'Population 2016'!AY$5","v":6.298766867598911E-3},{"$f":"'Population 2016'!AZ125/'Population 2016'!AZ$5","v":5.3270130183914258E-3},{"$f":"'Population 2016'!BA125/'Population 2016'!BA$5","v":1.0162491902396891E-2},{"$f":"'Population 2016'!BB125/'Population 2016'!BB$5","v":1.0543905318906527E-2},{"$f":"'Population 2016'!BC125/'Population 2016'!BC$5","v":8.8080378878413676E-3},123]
[null,"Male 45-49",{"$f":"'Population 2016'!C126/'Population 2016'!C$5","v":7.7535228184592107E-3},{"$f":"'Population 2016'!D126/'Population 2016'!D$5","v":5.2326320628307069E-3},{"$f":"'Population 2016'!E126/'Population 2016'!E$5","v":2.9205087216797377E-3},{"$f":"'Population 2016'!F126/'Population 2016'!F$5","v":6.8606747360288435E-3},{"$f":"'Population 2016'!G126/'Population 2016'!G$5","v":6.7395658528663456E-3},{"$f":"'Population 2016'!H126/'Population 2016'!H$5","v":1.0443788037469239E-2},{"$f":"'Population 2016'!I126/'Population 2016'!I$5","v":6.4064986182061807E-3},{"$f":"'Population 2016'!J126/'Population 2016'!J$5","v":8.0193725483691733E-3},{"$f":"'Population 2016'!K126/'Population 2016'!K$5","v":1.2592732599347919E-2},{"$f":"'Population 2016'!L126/'Population 2016'!L$5","v":1.0730227312439439E-2},{"$f":"'Population 2016'!M126/'Population 2016'!M$5","v":1.0730227312439439E-2},{"$f":"'Population 2016'!N126/'Population 2016'!N$5","v":7.3299523392353384E-3},{"$f":"'Population 2016'!O126/'Population 2016'!O$5","v":1.1680090349808304E-2},{"$f":"'Population 2016'!P126/'Population 2016'!P$5","v":6.3789022878395132E-3},{"$f":"'Population 2016'!Q126/'Population 2016'!Q$5","v":1.0998695667500969E-2},{"$f":"'Population 2016'!R126/'Population 2016'!R$5","v":3.7792090275190291E-3},{"$f":"'Population 2016'!S126/'Population 2016'!S$5","v":8.1054458215866296E-3},{"$f":"'Population 2016'!T126/'Population 2016'!T$5","v":5.4466433693340713E-3},{"$f":"'Population 2016'!U126/'Population 2016'!U$5","v":1.0401451777099101E-2},{"$f":"'Population 2016'!V126/'Population 2016'!V$5","v":1.3051342914494623E-2},{"$f":"'Population 2016'!W126/'Population 2016'!W$5","v":8.4815562920400843E-3},{"$f":"'Population 2016'!X126/'Population 2016'!X$5","v":8.4815562920400843E-3},{"$f":"'Population 2016'!Y126/'Population 2016'!Y$5","v":1.0639735457305925E-2},{"$f":"'Population 2016'!Z126/'Population 2016'!Z$5","v":6.9107965225336486E-3},{"$f":"'Population 2016'!AA126/'Population 2016'!AA$5","v":8.7193561867632413E-3},{"$f":"'Population 2016'!AB126/'Population 2016'!AB$5","v":5.449167374594434E-3},{"$f":"'Population 2016'!AC126/'Population 2016'!AC$5","v":6.9577035337728401E-3},{"$f":"'Population 2016'!AD126/'Population 2016'!AD$5","v":7.1755554728497525E-3},{"$f":"'Population 2016'!AE126/'Population 2016'!AE$5","v":7.3409377919691167E-3},{"$f":"'Population 2016'!AF126/'Population 2016'!AF$5","v":4.8108099956265362E-3},{"$f":"'Population 2016'!AG126/'Population 2016'!AG$5","v":7.3409377919691167E-3},{"$f":"'Population 2016'!AH126/'Population 2016'!AH$5","v":1.1883376833266767E-2},{"$f":"'Population 2016'!AI126/'Population 2016'!AI$5","v":8.1700061247703213E-3},{"$f":"'Population 2016'!AJ126/'Population 2016'!AJ$5","v":1.4290494381395867E-2},{"$f":"'Population 2016'!AK126/'Population 2016'!AK$5","v":6.5624882139220294E-3},{"$f":"'Population 2016'!AL126/'Population 2016'!AL$5","v":8.7972898671538277E-3},{"$f":"'Population 2016'!AM126/'Population 2016'!AM$5","v":1.2010532759126519E-2},{"$f":"'Population 2016'!AN126/'Population 2016'!AN$5","v":5.7270644703828954E-3},{"$f":"'Population 2016'!AO126/'Population 2016'!AO$5","v":5.7270644703828954E-3},{"$f":"'Population 2016'!AP126/'Population 2016'!AP$5","v":4.8428261179715611E-3},{"$f":"'Population 2016'!AQ126/'Population 2016'!AQ$5","v":7.2683180796843314E-3},{"$f":"'Population 2016'!AR126/'Population 2016'!AR$5","v":8.1732621069006903E-3},{"$f":"'Population 2016'!AS126/'Population 2016'!AS$5","v":6.4064986182061807E-3},{"$f":"'Population 2016'!AT126/'Population 2016'!AT$5","v":6.8540095956134343E-4},{"$f":"'Population 2016'!AU126/'Population 2016'!AU$5","v":6.8540095956134343E-4},{"$f":"'Population 2016'!AV126/'Population 2016'!AV$5","v":1.1086474501108648E-2},{"$f":"'Population 2016'!AW126/'Population 2016'!AW$5","v":1.174949661358228E-2},{"$f":"'Population 2016'!AX126/'Population 2016'!AX$5","v":5.5458297660273201E-3},{"$f":"'Population 2016'!AY126/'Population 2016'!AY$5","v":7.3192374774333708E-3},{"$f":"'Population 2016'!AZ126/'Population 2016'!AZ$5","v":6.2963453008956973E-3},{"$f":"'Population 2016'!BA126/'Population 2016'!BA$5","v":1.2510796804145973E-2},{"$f":"'Population 2016'!BB126/'Population 2016'!BB$5","v":1.1558937461591045E-2},{"$f":"'Population 2016'!BC126/'Population 2016'!BC$5","v":1.0401451777099101E-2},124]
[null,"Male 50-54",{"$f":"'Population 2016'!C127/'Population 2016'!C$5","v":7.1964140595850816E-3},{"$f":"'Population 2016'!D127/'Population 2016'!D$5","v":5.0492454251146778E-3},{"$f":"'Population 2016'!E127/'Population 2016'!E$5","v":3.079894430407043E-3},{"$f":"'Population 2016'!F127/'Population 2016'!F$5","v":6.8709760494463047E-3},{"$f":"'Population 2016'!G127/'Population 2016'!G$5","v":6.9290315595734314E-3},{"$f":"'Population 2016'!H127/'Population 2016'!H$5","v":1.1043633050487495E-2},{"$f":"'Population 2016'!I127/'Population 2016'!I$5","v":7.2544175529687628E-3},{"$f":"'Population 2016'!J127/'Population 2016'!J$5","v":8.102302978031729E-3},{"$f":"'Population 2016'!K127/'Population 2016'!K$5","v":1.1765817700704059E-2},{"$f":"'Population 2016'!L127/'Population 2016'!L$5","v":1.2564929391768462E-2},{"$f":"'Population 2016'!M127/'Population 2016'!M$5","v":1.2564929391768462E-2},{"$f":"'Population 2016'!N127/'Population 2016'!N$5","v":6.8155697189381213E-3},{"$f":"'Population 2016'!O127/'Population 2016'!O$5","v":1.2224963097254833E-2},{"$f":"'Population 2016'!P127/'Population 2016'!P$5","v":8.1821255494195881E-3},{"$f":"'Population 2016'!Q127/'Population 2016'!Q$5","v":1.1891752153323698E-2},{"$f":"'Population 2016'!R127/'Population 2016'!R$5","v":4.5510193218715068E-3},{"$f":"'Population 2016'!S127/'Population 2016'!S$5","v":8.3305235395986724E-3},{"$f":"'Population 2016'!T127/'Population 2016'!T$5","v":5.2442264649632626E-3},{"$f":"'Population 2016'!U127/'Population 2016'!U$5","v":1.1463727703270924E-2},{"$f":"'Population 2016'!V127/'Population 2016'!V$5","v":1.2684989429175475E-2},{"$f":"'Population 2016'!W127/'Population 2016'!W$5","v":8.8443511854568273E-3},{"$f":"'Population 2016'!X127/'Population 2016'!X$5","v":8.8443511854568273E-3},{"$f":"'Population 2016'!Y127/'Population 2016'!Y$5","v":1.0488704472106961E-2},{"$f":"'Population 2016'!Z127/'Population 2016'!Z$5","v":6.6804366384491942E-3},{"$f":"'Population 2016'!AA127/'Population 2016'!AA$5","v":8.9877667246672614E-3},{"$f":"'Population 2016'!AB127/'Population 2016'!AB$5","v":5.2608415299427854E-3},{"$f":"'Population 2016'!AC127/'Population 2016'!AC$5","v":7.2752321475484105E-3},{"$f":"'Population 2016'!AD127/'Population 2016'!AD$5","v":7.9087424169116821E-3},{"$f":"'Population 2016'!AE127/'Population 2016'!AE$5","v":8.2803724884239066E-3},{"$f":"'Population 2016'!AF127/'Population 2016'!AF$5","v":6.3189009033464538E-3},{"$f":"'Population 2016'!AG127/'Population 2016'!AG$5","v":8.2803724884239066E-3},{"$f":"'Population 2016'!AH127/'Population 2016'!AH$5","v":1.2063568728346786E-2},{"$f":"'Population 2016'!AI127/'Population 2016'!AI$5","v":8.2561357074109713E-3},{"$f":"'Population 2016'!AJ127/'Population 2016'!AJ$5","v":1.5503443660597273E-2},{"$f":"'Population 2016'!AK127/'Population 2016'!AK$5","v":6.3487673333920015E-3},{"$f":"'Population 2016'!AL127/'Population 2016'!AL$5","v":8.9214451676983379E-3},{"$f":"'Population 2016'!AM127/'Population 2016'!AM$5","v":1.2235096399375568E-2},{"$f":"'Population 2016'!AN127/'Population 2016'!AN$5","v":6.4906730664339475E-3},{"$f":"'Population 2016'!AO127/'Population 2016'!AO$5","v":6.4906730664339475E-3},{"$f":"'Population 2016'!AP127/'Population 2016'!AP$5","v":4.7714915270358101E-3},{"$f":"'Population 2016'!AQ127/'Population 2016'!AQ$5","v":7.6724941086205953E-3},{"$f":"'Population 2016'!AR127/'Population 2016'!AR$5","v":8.4252234959898923E-3},{"$f":"'Population 2016'!AS127/'Population 2016'!AS$5","v":7.2544175529687628E-3},{"$f":"'Population 2016'!AT127/'Population 2016'!AT$5","v":1.8980334264775663E-3},{"$f":"'Population 2016'!AU127/'Population 2016'!AU$5","v":1.8980334264775663E-3},{"$f":"'Population 2016'!AV127/'Population 2016'!AV$5","v":1.2311265969802556E-2},{"$f":"'Population 2016'!AW127/'Population 2016'!AW$5","v":1.188297028494722E-2},{"$f":"'Population 2016'!AX127/'Population 2016'!AX$5","v":6.1208581979886783E-3},{"$f":"'Population 2016'!AY127/'Population 2016'!AY$5","v":7.3789051742602736E-3},{"$f":"'Population 2016'!AZ127/'Population 2016'!AZ$5","v":6.0892476025565063E-3},{"$f":"'Population 2016'!BA127/'Population 2016'!BA$5","v":1.3172101058086806E-2},{"$f":"'Population 2016'!BB127/'Population 2016'!BB$5","v":1.1469172714278809E-2},{"$f":"'Population 2016'!BC127/'Population 2016'!BC$5","v":1.1463727703270924E-2},125]
[null,"Male 55-59",{"$f":"'Population 2016'!C128/'Population 2016'!C$5","v":7.0788590003731094E-3},{"$f":"'Population 2016'!D128/'Population 2016'!D$5","v":4.9685553045196252E-3},{"$f":"'Population 2016'!E128/'Population 2016'!E$5","v":3.0330162807813651E-3},{"$f":"'Population 2016'!F128/'Population 2016'!F$5","v":5.7996394540303885E-3},{"$f":"'Population 2016'!G128/'Population 2016'!G$5","v":7.3350295025171874E-3},{"$f":"'Population 2016'!H128/'Population 2016'!H$5","v":1.0213577248689258E-2},{"$f":"'Population 2016'!I128/'Population 2016'!I$5","v":7.0241185830332469E-3},{"$f":"'Population 2016'!J128/'Population 2016'!J$5","v":7.5549621422588593E-3},{"$f":"'Population 2016'!K128/'Population 2016'!K$5","v":1.0584510702641402E-2},{"$f":"'Population 2016'!L128/'Population 2016'!L$5","v":1.2151922863088336E-2},{"$f":"'Population 2016'!M128/'Population 2016'!M$5","v":1.2151922863088336E-2},{"$f":"'Population 2016'!N128/'Population 2016'!N$5","v":6.3333360124094807E-3},{"$f":"'Population 2016'!O128/'Population 2016'!O$5","v":1.1254098929077382E-2},{"$f":"'Population 2016'!P128/'Population 2016'!P$5","v":7.0100304293925393E-3},{"$f":"'Population 2016'!Q128/'Population 2016'!Q$5","v":1.1163206072784104E-2},{"$f":"'Population 2016'!R128/'Population 2016'!R$5","v":3.7525948794379094E-3},{"$f":"'Population 2016'!S128/'Population 2016'!S$5","v":7.6067442110893582E-3},{"$f":"'Population 2016'!T128/'Population 2016'!T$5","v":4.5066844111064062E-3},{"$f":"'Population 2016'!U128/'Population 2016'!U$5","v":1.1375204709423273E-2},{"$f":"'Population 2016'!V128/'Population 2016'!V$5","v":1.1578296608940551E-2},{"$f":"'Population 2016'!W128/'Population 2016'!W$5","v":8.2429614522254689E-3},{"$f":"'Population 2016'!X128/'Population 2016'!X$5","v":8.2429614522254689E-3},{"$f":"'Population 2016'!Y128/'Population 2016'!Y$5","v":9.6500850542916641E-3},{"$f":"'Population 2016'!Z128/'Population 2016'!Z$5","v":5.9990359729220665E-3},{"$f":"'Population 2016'!AA128/'Population 2016'!AA$5","v":8.2788705762920408E-3},{"$f":"'Population 2016'!AB128/'Population 2016'!AB$5","v":5.1155031063529269E-3},{"$f":"'Population 2016'!AC128/'Population 2016'!AC$5","v":6.610180360389805E-3},{"$f":"'Population 2016'!AD128/'Population 2016'!AD$5","v":7.782202538241096E-3},{"$f":"'Population 2016'!AE128/'Population 2016'!AE$5","v":7.9518270208113022E-3},{"$f":"'Population 2016'!AF128/'Population 2016'!AF$5","v":5.7458263584128852E-3},{"$f":"'Population 2016'!AG128/'Population 2016'!AG$5","v":7.9518270208113022E-3},{"$f":"'Population 2016'!AH128/'Population 2016'!AH$5","v":1.1275925805522788E-2},{"$f":"'Population 2016'!AI128/'Population 2016'!AI$5","v":7.4167140607227233E-3},{"$f":"'Population 2016'!AJ128/'Population 2016'!AJ$5","v":1.4625101079106599E-2},{"$f":"'Population 2016'!AK128/'Population 2016'!AK$5","v":5.8710383063248807E-3},{"$f":"'Population 2016'!AL128/'Population 2016'!AL$5","v":8.1055674784058455E-3},{"$f":"'Population 2016'!AM128/'Population 2016'!AM$5","v":1.1018106348993629E-2},{"$f":"'Population 2016'!AN128/'Population 2016'!AN$5","v":5.999781826115414E-3},{"$f":"'Population 2016'!AO128/'Population 2016'!AO$5","v":5.999781826115414E-3},{"$f":"'Population 2016'!AP128/'Population 2016'!AP$5","v":4.0819238146568805E-3},{"$f":"'Population 2016'!AQ128/'Population 2016'!AQ$5","v":7.2272154326738641E-3},{"$f":"'Population 2016'!AR128/'Population 2016'!AR$5","v":7.8052336234565138E-3},{"$f":"'Population 2016'!AS128/'Population 2016'!AS$5","v":7.0241185830332469E-3},{"$f":"'Population 2016'!AT128/'Population 2016'!AT$5","v":1.3708019191226869E-3},{"$f":"'Population 2016'!AU128/'Population 2016'!AU$5","v":1.3708019191226869E-3},{"$f":"'Population 2016'!AV128/'Population 2016'!AV$5","v":1.1614401858304297E-2},{"$f":"'Population 2016'!AW128/'Population 2016'!AW$5","v":1.1547379339801087E-2},{"$f":"'Population 2016'!AX128/'Population 2016'!AX$5","v":5.9164036444024175E-3},{"$f":"'Population 2016'!AY128/'Population 2016'!AY$5","v":6.713380863498669E-3},{"$f":"'Population 2016'!AZ128/'Population 2016'!AZ$5","v":5.3672820152907133E-3},{"$f":"'Population 2016'!BA128/'Population 2016'!BA$5","v":1.2848196933707623E-2},{"$f":"'Population 2016'!BB128/'Population 2016'!BB$5","v":1.0281516057532298E-2},{"$f":"'Population 2016'!BC128/'Population 2016'!BC$5","v":1.1375204709423273E-2},126]
[null,"Male 60-64",{"$f":"'Population 2016'!C129/'Population 2016'!C$5","v":5.7908644385723709E-3},{"$f":"'Population 2016'!D129/'Population 2016'!D$5","v":4.1005252193304191E-3},{"$f":"'Population 2016'!E129/'Population 2016'!E$5","v":2.5501713396368819E-3},{"$f":"'Population 2016'!F129/'Population 2016'!F$5","v":5.7687355137780068E-3},{"$f":"'Population 2016'!G129/'Population 2016'!G$5","v":6.8342987062198881E-3},{"$f":"'Population 2016'!H129/'Population 2016'!H$5","v":8.9684935459919003E-3},{"$f":"'Population 2016'!I129/'Population 2016'!I$5","v":6.7205426681182477E-3},{"$f":"'Population 2016'!J129/'Population 2016'!J$5","v":6.3524709121517958E-3},{"$f":"'Population 2016'!K129/'Population 2016'!K$5","v":9.7339696640362898E-3},{"$f":"'Population 2016'!L129/'Population 2016'!L$5","v":1.0992327609486442E-2},{"$f":"'Population 2016'!M129/'Population 2016'!M$5","v":1.0992327609486442E-2},{"$f":"'Population 2016'!N129/'Population 2016'!N$5","v":5.2643846296043274E-3},{"$f":"'Population 2016'!O129/'Population 2016'!O$5","v":9.4411586966643875E-3},{"$f":"'Population 2016'!P129/'Population 2016'!P$5","v":5.5449115293587283E-3},{"$f":"'Population 2016'!Q129/'Population 2016'!Q$5","v":8.801306682647678E-3},{"$f":"'Population 2016'!R129/'Population 2016'!R$5","v":3.41991802842391E-3},{"$f":"'Population 2016'!S129/'Population 2016'!S$5","v":6.4751770170052838E-3},{"$f":"'Population 2016'!T129/'Population 2016'!T$5","v":3.5690520839634626E-3},{"$f":"'Population 2016'!U129/'Population 2016'!U$5","v":1.1463727703270924E-2},{"$f":"'Population 2016'!V129/'Population 2016'!V$5","v":9.5328229825753126E-3},{"$f":"'Population 2016'!W129/'Population 2016'!W$5","v":7.4193189914955647E-3},{"$f":"'Population 2016'!X129/'Population 2016'!X$5","v":7.4193189914955647E-3},{"$f":"'Population 2016'!Y129/'Population 2016'!Y$5","v":8.0086167151555612E-3},{"$f":"'Population 2016'!Z129/'Population 2016'!Z$5","v":4.775612050725634E-3},{"$f":"'Population 2016'!AA129/'Population 2016'!AA$5","v":6.9580781273980057E-3},{"$f":"'Population 2016'!AB129/'Population 2016'!AB$5","v":4.198438123701422E-3},{"$f":"'Population 2016'!AC129/'Population 2016'!AC$5","v":5.3824720068015247E-3},{"$f":"'Population 2016'!AD129/'Population 2016'!AD$5","v":6.9931891771186127E-3},{"$f":"'Population 2016'!AE129/'Population 2016'!AE$5","v":7.0534605078080882E-3},{"$f":"'Population 2016'!AF129/'Population 2016'!AF$5","v":4.3282209051561625E-3},{"$f":"'Population 2016'!AG129/'Population 2016'!AG$5","v":7.0534605078080882E-3},{"$f":"'Population 2016'!AH129/'Population 2016'!AH$5","v":9.787949434810473E-3},{"$f":"'Population 2016'!AI129/'Population 2016'!AI$5","v":6.0482106920990465E-3},{"$f":"'Population 2016'!AJ129/'Population 2016'!AJ$5","v":1.2840532024649361E-2},{"$f":"'Population 2016'!AK129/'Population 2016'!AK$5","v":4.7018593716606112E-3},{"$f":"'Population 2016'!AL129/'Population 2016'!AL$5","v":7.5113956829428357E-3},{"$f":"'Population 2016'!AM129/'Population 2016'!AM$5","v":9.8808001709581265E-3},{"$f":"'Population 2016'!AN129/'Population 2016'!AN$5","v":5.9452383549689104E-3},{"$f":"'Population 2016'!AO129/'Population 2016'!AO$5","v":5.9452383549689104E-3},{"$f":"'Population 2016'!AP129/'Population 2016'!AP$5","v":3.7411029912971798E-3},{"$f":"'Population 2016'!AQ129/'Population 2016'!AQ$5","v":6.3229571984435799E-3},{"$f":"'Population 2016'!AR129/'Population 2016'!AR$5","v":6.6788704198888649E-3},{"$f":"'Population 2016'!AS129/'Population 2016'!AS$5","v":6.7205426681182477E-3},{"$f":"'Population 2016'!AT129/'Population 2016'!AT$5","v":1.1071861654452469E-3},{"$f":"'Population 2016'!AU129/'Population 2016'!AU$5","v":1.1071861654452469E-3},{"$f":"'Population 2016'!AV129/'Population 2016'!AV$5","v":1.0199556541019957E-2},{"$f":"'Population 2016'!AW129/'Population 2016'!AW$5","v":9.6901885410946367E-3},{"$f":"'Population 2016'!AX129/'Population 2016'!AX$5","v":4.5235569980960171E-3},{"$f":"'Population 2016'!AY129/'Population 2016'!AY$5","v":6.0539763165141829E-3},{"$f":"'Population 2016'!AZ129/'Population 2016'!AZ$5","v":4.8524141263641121E-3},{"$f":"'Population 2016'!BA129/'Population 2016'!BA$5","v":1.049989203195854E-2},{"$f":"'Population 2016'!BB129/'Population 2016'!BB$5","v":8.4240762862252544E-3},{"$f":"'Population 2016'!BC129/'Population 2016'!BC$5","v":1.1463727703270924E-2},127]
[null,"Male 65-69",{"$f":"'Population 2016'!C130/'Population 2016'!C$5","v":5.284866575007794E-3},{"$f":"'Population 2016'!D130/'Population 2016'!D$5","v":4.0834091331435896E-3},{"$f":"'Population 2016'!E130/'Population 2016'!E$5","v":2.9814503161931191E-3},{"$f":"'Population 2016'!F130/'Population 2016'!F$5","v":6.1601854236415145E-3},{"$f":"'Population 2016'!G130/'Population 2016'!G$5","v":7.4026958263411465E-3},{"$f":"'Population 2016'!H130/'Population 2016'!H$5","v":9.5650961535343835E-3},{"$f":"'Population 2016'!I130/'Population 2016'!I$5","v":6.9194372330625576E-3},{"$f":"'Population 2016'!J130/'Population 2016'!J$5","v":6.6344343730044865E-3},{"$f":"'Population 2016'!K130/'Population 2016'!K$5","v":9.5449605443462641E-3},{"$f":"'Population 2016'!L130/'Population 2016'!L$5","v":1.2207519895795277E-2},{"$f":"'Population 2016'!M130/'Population 2016'!M$5","v":1.2207519895795277E-2},{"$f":"'Population 2016'!N130/'Population 2016'!N$5","v":5.8511023058808401E-3},{"$f":"'Population 2016'!O130/'Population 2016'!O$5","v":9.5005993600221911E-3},{"$f":"'Population 2016'!P130/'Population 2016'!P$5","v":4.9926744054998307E-3},{"$f":"'Population 2016'!Q130/'Population 2016'!Q$5","v":8.9893185743998311E-3},{"$f":"'Population 2016'!R130/'Population 2016'!R$5","v":2.6880289561931124E-3},{"$f":"'Population 2016'!S130/'Population 2016'!S$5","v":6.4919475136414754E-3},{"$f":"'Population 2016'!T130/'Population 2016'!T$5","v":3.2991628781357169E-3},{"$f":"'Population 2016'!U130/'Population 2016'!U$5","v":1.1286681715575621E-2},{"$f":"'Population 2016'!V130/'Population 2016'!V$5","v":1.0670045259920165E-2},{"$f":"'Population 2016'!W130/'Population 2016'!W$5","v":7.6840612110158912E-3},{"$f":"'Population 2016'!X130/'Population 2016'!X$5","v":7.6840612110158912E-3},{"$f":"'Population 2016'!Y130/'Population 2016'!Y$5","v":8.7359501438768854E-3},{"$f":"'Population 2016'!Z130/'Population 2016'!Z$5","v":3.9645129630669221E-3},{"$f":"'Population 2016'!AA130/'Population 2016'!AA$5","v":6.2923668427944729E-3},{"$f":"'Population 2016'!AB130/'Population 2016'!AB$5","v":4.2045791838531054E-3},{"$f":"'Population 2016'!AC130/'Population 2016'!AC$5","v":4.6636368713812602E-3},{"$f":"'Population 2016'!AD130/'Population 2016'!AD$5","v":7.4546875581525179E-3},{"$f":"'Population 2016'!AE130/'Population 2016'!AE$5","v":7.4744093881867367E-3},{"$f":"'Population 2016'!AF130/'Population 2016'!AF$5","v":4.0869263599209761E-3},{"$f":"'Population 2016'!AG130/'Population 2016'!AG$5","v":7.4744093881867367E-3},{"$f":"'Population 2016'!AH130/'Population 2016'!AH$5","v":9.2176513751242306E-3},{"$f":"'Population 2016'!AI130/'Population 2016'!AI$5","v":5.9374726572753523E-3},{"$f":"'Population 2016'!AJ130/'Population 2016'!AJ$5","v":1.2282854195131473E-2},{"$f":"'Population 2016'!AK130/'Population 2016'!AK$5","v":4.8275775366782743E-3},{"$f":"'Population 2016'!AL130/'Population 2016'!AL$5","v":7.8306521700572881E-3},{"$f":"'Population 2016'!AM130/'Population 2016'!AM$5","v":9.2759271399647219E-3},{"$f":"'Population 2016'!AN130/'Population 2016'!AN$5","v":6.5997600087269554E-3},{"$f":"'Population 2016'!AO130/'Population 2016'!AO$5","v":6.5997600087269554E-3},{"$f":"'Population 2016'!AP130/'Population 2016'!AP$5","v":3.4399124962351188E-3},{"$f":"'Population 2016'!AQ130/'Population 2016'!AQ$5","v":5.7680714638022688E-3},{"$f":"'Population 2016'!AR130/'Population 2016'!AR$5","v":6.6225077042040125E-3},{"$f":"'Population 2016'!AS130/'Population 2016'!AS$5","v":6.9194372330625576E-3},{"$f":"'Population 2016'!AT130/'Population 2016'!AT$5","v":1.2126324669162229E-3},{"$f":"'Population 2016'!AU130/'Population 2016'!AU$5","v":1.2126324669162229E-3},{"$f":"'Population 2016'!AV130/'Population 2016'!AV$5","v":1.1698870235455601E-2},{"$f":"'Population 2016'!AW130/'Population 2016'!AW$5","v":9.1562938556348766E-3},{"$f":"'Population 2016'!AX130/'Population 2016'!AX$5","v":5.0602502012599511E-3},{"$f":"'Population 2016'!AY130/'Population 2016'!AY$5","v":6.2895872219332332E-3},{"$f":"'Population 2016'!AZ130/'Population 2016'!AZ$5","v":5.0623881816246816E-3},{"$f":"'Population 2016'!BA130/'Population 2016'!BA$5","v":9.4876916432735919E-3},{"$f":"'Population 2016'!BB130/'Population 2016'!BB$5","v":8.8314701394115579E-3},{"$f":"'Population 2016'!BC130/'Population 2016'!BC$5","v":1.1286681715575621E-2},128]
[null,"Male 70-74",{"$f":"'Population 2016'!C131/'Population 2016'!C$5","v":3.434652164801971E-3},{"$f":"'Population 2016'!D131/'Population 2016'!D$5","v":2.6970061520104065E-3},{"$f":"'Population 2016'!E131/'Population 2016'!E$5","v":2.0204482488667208E-3},{"$f":"'Population 2016'!F131/'Population 2016'!F$5","v":4.1823332474890552E-3},{"$f":"'Population 2016'!G131/'Population 2016'!G$5","v":5.8599036431548745E-3},{"$f":"'Population 2016'!H131/'Population 2016'!H$5","v":7.065201531712347E-3},{"$f":"'Population 2016'!I131/'Population 2016'!I$5","v":4.961895988610669E-3},{"$f":"'Population 2016'!J131/'Population 2016'!J$5","v":4.4036058150817283E-3},{"$f":"'Population 2016'!K131/'Population 2016'!K$5","v":6.7807021688796485E-3},{"$f":"'Population 2016'!L131/'Population 2016'!L$5","v":9.2211649961082085E-3},{"$f":"'Population 2016'!M131/'Population 2016'!M$5","v":9.2211649961082085E-3},{"$f":"'Population 2016'!N131/'Population 2016'!N$5","v":4.0025397641877177E-3},{"$f":"'Population 2016'!O131/'Population 2016'!O$5","v":7.1526931573889698E-3},{"$f":"'Population 2016'!P131/'Population 2016'!P$5","v":3.5951763777752731E-3},{"$f":"'Population 2016'!Q131/'Population 2016'!Q$5","v":6.4159058060422325E-3},{"$f":"'Population 2016'!R131/'Population 2016'!R$5","v":1.6101559589077553E-3},{"$f":"'Population 2016'!S131/'Population 2016'!S$5","v":4.7831221721853371E-3},{"$f":"'Population 2016'!T131/'Population 2016'!T$5","v":2.3987566483483244E-3},{"$f":"'Population 2016'!U131/'Population 2016'!U$5","v":7.2146239985836323E-3},{"$f":"'Population 2016'!V131/'Population 2016'!V$5","v":7.4797169919325907E-3},{"$f":"'Population 2016'!W131/'Population 2016'!W$5","v":5.5301708077579274E-3},{"$f":"'Population 2016'!X131/'Population 2016'!X$5","v":5.5301708077579274E-3},{"$f":"'Population 2016'!Y131/'Population 2016'!Y$5","v":6.0054689114640465E-3},{"$f":"'Population 2016'!Z131/'Population 2016'!Z$5","v":2.9346687753952416E-3},{"$f":"'Population 2016'!AA131/'Population 2016'!AA$5","v":4.9117799671396407E-3},{"$f":"'Population 2016'!AB131/'Population 2016'!AB$5","v":2.8678750908365147E-3},{"$f":"'Population 2016'!AC131/'Population 2016'!AC$5","v":3.5848670206714232E-3},{"$f":"'Population 2016'!AD131/'Population 2016'!AD$5","v":5.612415795154267E-3},{"$f":"'Population 2016'!AE131/'Population 2016'!AE$5","v":5.5185371513054547E-3},{"$f":"'Population 2016'!AF131/'Population 2016'!AF$5","v":3.2574763606750216E-3},{"$f":"'Population 2016'!AG131/'Population 2016'!AG$5","v":5.5185371513054547E-3},{"$f":"'Population 2016'!AH131/'Population 2016'!AH$5","v":7.2949852781364075E-3},{"$f":"'Population 2016'!AI131/'Population 2016'!AI$5","v":4.4472941639688516E-3},{"$f":"'Population 2016'!AJ131/'Population 2016'!AJ$5","v":9.4805231018040871E-3},{"$f":"'Population 2016'!AK131/'Population 2016'!AK$5","v":3.7464013175263692E-3},{"$f":"'Population 2016'!AL131/'Population 2016'!AL$5","v":5.4096238094393503E-3},{"$f":"'Population 2016'!AM131/'Population 2016'!AM$5","v":7.2620983661184175E-3},{"$f":"'Population 2016'!AN131/'Population 2016'!AN$5","v":5.3452601723573689E-3},{"$f":"'Population 2016'!AO131/'Population 2016'!AO$5","v":5.3452601723573689E-3},{"$f":"'Population 2016'!AP131/'Population 2016'!AP$5","v":2.3064851069226257E-3},{"$f":"'Population 2016'!AQ131/'Population 2016'!AQ$5","v":4.8227105825615173E-3},{"$f":"'Population 2016'!AR131/'Population 2016'!AR$5","v":4.912690143408581E-3},{"$f":"'Population 2016'!AS131/'Population 2016'!AS$5","v":4.961895988610669E-3},{"$f":"'Population 2016'!AT131/'Population 2016'!AT$5","v":1.2653556176517109E-3},{"$f":"'Population 2016'!AU131/'Population 2016'!AU$5","v":1.2653556176517109E-3},{"$f":"'Population 2016'!AV131/'Population 2016'!AV$5","v":8.9430894308943094E-3},{"$f":"'Population 2016'!AW131/'Population 2016'!AW$5","v":7.329611324668985E-3},{"$f":"'Population 2016'!AX131/'Population 2016'!AX$5","v":3.1179319421904749E-3},{"$f":"'Population 2016'!AY131/'Population 2016'!AY$5","v":4.4169395061350635E-3},{"$f":"'Population 2016'!AZ131/'Population 2016'!AZ$5","v":3.4372465210463035E-3},{"$f":"'Population 2016'!BA131/'Population 2016'!BA$5","v":7.9626430576549348E-3},{"$f":"'Population 2016'!BB131/'Population 2016'!BB$5","v":6.8773606402297979E-3},{"$f":"'Population 2016'!BC131/'Population 2016'!BC$5","v":7.2146239985836323E-3},129]
[null,"Male 75-79",{"$f":"'Population 2016'!C132/'Population 2016'!C$5","v":2.8519879582730649E-3},{"$f":"'Population 2016'!D132/'Population 2016'!D$5","v":2.1615171698796004E-3},{"$f":"'Population 2016'!E132/'Population 2016'!E$5","v":1.5282276777971019E-3},{"$f":"'Population 2016'!F132/'Population 2016'!F$5","v":3.1212979654906001E-3},{"$f":"'Population 2016'!G132/'Population 2016'!G$5","v":4.3441779894981868E-3},{"$f":"'Population 2016'!H132/'Population 2016'!H$5","v":5.4245443609705164E-3},{"$f":"'Population 2016'!I132/'Population 2016'!I$5","v":3.6638472489741226E-3},{"$f":"'Population 2016'!J132/'Population 2016'!J$5","v":3.5079571747261224E-3},{"$f":"'Population 2016'!K132/'Population 2016'!K$5","v":5.0559939517081697E-3},{"$f":"'Population 2016'!L132/'Population 2016'!L$5","v":7.29909615109685E-3},{"$f":"'Population 2016'!M132/'Population 2016'!M$5","v":7.29909615109685E-3},{"$f":"'Population 2016'!N132/'Population 2016'!N$5","v":3.5846038851962288E-3},{"$f":"'Population 2016'!O132/'Population 2016'!O$5","v":5.6963969051227947E-3},{"$f":"'Population 2016'!P132/'Population 2016'!P$5","v":3.1781809985348811E-3},{"$f":"'Population 2016'!Q132/'Population 2016'!Q$5","v":5.440594117577937E-3},{"$f":"'Population 2016'!R132/'Population 2016'!R$5","v":1.3040932559748762E-3},{"$f":"'Population 2016'!S132/'Population 2016'!S$5","v":3.5571106023079735E-3},{"$f":"'Population 2016'!T132/'Population 2016'!T$5","v":1.7449733135414583E-3},{"$f":"'Population 2016'!U132/'Population 2016'!U$5","v":6.4179170539547647E-3},{"$f":"'Population 2016'!V132/'Population 2016'!V$5","v":5.5334641011746209E-3},{"$f":"'Population 2016'!W132/'Population 2016'!W$5","v":4.1705070630609431E-3},{"$f":"'Population 2016'!X132/'Population 2016'!X$5","v":4.1705070630609431E-3},{"$f":"'Population 2016'!Y132/'Population 2016'!Y$5","v":4.5627255528528955E-3},{"$f":"'Population 2016'!Z132/'Population 2016'!Z$5","v":2.1893867974749461E-3},{"$f":"'Population 2016'!AA132/'Population 2016'!AA$5","v":3.689980513660701E-3},{"$f":"'Population 2016'!AB132/'Population 2016'!AB$5","v":2.2332988751624823E-3},{"$f":"'Population 2016'!AC132/'Population 2016'!AC$5","v":2.7729453209521309E-3},{"$f":"'Population 2016'!AD132/'Population 2016'!AD$5","v":3.9673973724366372E-3},{"$f":"'Population 2016'!AE132/'Population 2016'!AE$5","v":3.8244745839279663E-3},{"$f":"'Population 2016'!AF132/'Population 2016'!AF$5","v":2.2922981797342742E-3},{"$f":"'Population 2016'!AG132/'Population 2016'!AG$5","v":3.8244745839279663E-3},{"$f":"'Population 2016'!AH132/'Population 2016'!AH$5","v":5.3370238614937355E-3},{"$f":"'Population 2016'!AI132/'Population 2016'!AI$5","v":3.28659550266865E-3},{"$f":"'Population 2016'!AJ132/'Population 2016'!AJ$5","v":6.5805983883110725E-3},{"$f":"'Population 2016'!AK132/'Population 2016'!AK$5","v":2.6023660158656322E-3},{"$f":"'Population 2016'!AL132/'Population 2016'!AL$5","v":4.1503343324878952E-3},{"$f":"'Population 2016'!AM132/'Population 2016'!AM$5","v":5.393149360174725E-3},{"$f":"'Population 2016'!AN132/'Population 2016'!AN$5","v":4.4180211628668045E-3},{"$f":"'Population 2016'!AO132/'Population 2016'!AO$5","v":4.4180211628668045E-3},{"$f":"'Population 2016'!AP132/'Population 2016'!AP$5","v":1.8309211673509503E-3},{"$f":"'Population 2016'!AQ132/'Population 2016'!AQ$5","v":4.0349098481942238E-3},{"$f":"'Population 2016'!AR132/'Population 2016'!AR$5","v":3.7192709026032224E-3},{"$f":"'Population 2016'!AS132/'Population 2016'!AS$5","v":3.6638472489741226E-3},{"$f":"'Population 2016'!AT132/'Population 2016'!AT$5","v":4.2178520588390361E-4},{"$f":"'Population 2016'!AU132/'Population 2016'!AU$5","v":4.2178520588390361E-4},{"$f":"'Population 2016'!AV132/'Population 2016'!AV$5","v":6.6518847006651885E-3},{"$f":"'Population 2016'!AW132/'Population 2016'!AW$5","v":5.2779303191164808E-3},{"$f":"'Population 2016'!AX132/'Population 2016'!AX$5","v":2.6706876062205297E-3},{"$f":"'Population 2016'!AY132/'Population 2016'!AY$5","v":3.4515467702946668E-3},{"$f":"'Population 2016'!AZ132/'Population 2016'!AZ$5","v":2.8188297829501068E-3},{"$f":"'Population 2016'!BA132/'Population 2016'!BA$5","v":5.7897862232779099E-3},{"$f":"'Population 2016'!BB132/'Population 2016'!BB$5","v":4.9646810244229162E-3},{"$f":"'Population 2016'!BC132/'Population 2016'!BC$5","v":6.4179170539547647E-3},130]
[null,"Male 80-84",{"$f":"'Population 2016'!C133/'Population 2016'!C$5","v":2.3051013784608464E-3},{"$f":"'Population 2016'!D133/'Population 2016'!D$5","v":1.7580665669043357E-3},{"$f":"'Population 2016'!E133/'Population 2016'!E$5","v":1.2563344099681697E-3},{"$f":"'Population 2016'!F133/'Population 2016'!F$5","v":2.338398145763585E-3},{"$f":"'Population 2016'!G133/'Population 2016'!G$5","v":2.8555188653710821E-3},{"$f":"'Population 2016'!H133/'Population 2016'!H$5","v":3.3688592893295678E-3},{"$f":"'Population 2016'!I133/'Population 2016'!I$5","v":2.3134578343522319E-3},{"$f":"'Population 2016'!J133/'Population 2016'!J$5","v":2.24741464385527E-3},{"$f":"'Population 2016'!K133/'Population 2016'!K$5","v":3.0005197750791477E-3},{"$f":"'Population 2016'!L133/'Population 2016'!L$5","v":4.6304385811637254E-3},{"$f":"'Population 2016'!M133/'Population 2016'!M$5","v":4.6304385811637254E-3},{"$f":"'Population 2016'!N133/'Population 2016'!N$5","v":2.3870568473167712E-3},{"$f":"'Population 2016'!O133/'Population 2016'!O$5","v":3.5367194697892828E-3},{"$f":"'Population 2016'!P133/'Population 2016'!P$5","v":2.2765693677448441E-3},{"$f":"'Population 2016'!Q133/'Population 2016'!Q$5","v":3.8072408079811047E-3},{"$f":"'Population 2016'!R133/'Population 2016'!R$5","v":1.0911800713259169E-3},{"$f":"'Population 2016'!S133/'Population 2016'!S$5","v":2.4184821464823441E-3},{"$f":"'Population 2016'!T133/'Population 2016'!T$5","v":1.2703405722581816E-3},{"$f":"'Population 2016'!U133/'Population 2016'!U$5","v":3.9392732262205112E-3},{"$f":"'Population 2016'!V133/'Population 2016'!V$5","v":4.0069912456781737E-3},{"$f":"'Population 2016'!W133/'Population 2016'!W$5","v":2.8696749227018086E-3},{"$f":"'Population 2016'!X133/'Population 2016'!X$5","v":2.8696749227018086E-3},{"$f":"'Population 2016'!Y133/'Population 2016'!Y$5","v":3.1637016899572342E-3},{"$f":"'Population 2016'!Z133/'Population 2016'!Z$5","v":1.5486378761980165E-3},{"$f":"'Population 2016'!AA133/'Population 2016'!AA$5","v":2.5293042519816868E-3},{"$f":"'Population 2016'!AB133/'Population 2016'!AB$5","v":1.7747663838367296E-3},{"$f":"'Population 2016'!AC133/'Population 2016'!AC$5","v":1.9330976519431303E-3},{"$f":"'Population 2016'!AD133/'Population 2016'!AD$5","v":2.5940675127470317E-3},{"$f":"'Population 2016'!AE133/'Population 2016'!AE$5","v":2.4948921446832101E-3},{"$f":"'Population 2016'!AF133/'Population 2016'!AF$5","v":1.6136572712603116E-3},{"$f":"'Population 2016'!AG133/'Population 2016'!AG$5","v":2.4948921446832101E-3},{"$f":"'Population 2016'!AH133/'Population 2016'!AH$5","v":3.6001226047945906E-3},{"$f":"'Population 2016'!AI133/'Population 2016'!AI$5","v":2.2434705573540991E-3},{"$f":"'Population 2016'!AJ133/'Population 2016'!AJ$5","v":4.098932046956473E-3},{"$f":"'Population 2016'!AK133/'Population 2016'!AK$5","v":1.8606288422614184E-3},{"$f":"'Population 2016'!AL133/'Population 2016'!AL$5","v":2.5895248399283445E-3},{"$f":"'Population 2016'!AM133/'Population 2016'!AM$5","v":3.6292381859604262E-3},{"$f":"'Population 2016'!AN133/'Population 2016'!AN$5","v":1.9090214901276317E-3},{"$f":"'Population 2016'!AO133/'Population 2016'!AO$5","v":1.9090214901276317E-3},{"$f":"'Population 2016'!AP133/'Population 2016'!AP$5","v":1.1889098489291886E-3},{"$f":"'Population 2016'!AQ133/'Population 2016'!AQ$5","v":2.8292322025538445E-3},{"$f":"'Population 2016'!AR133/'Population 2016'!AR$5","v":2.5247377741361076E-3},{"$f":"'Population 2016'!AS133/'Population 2016'!AS$5","v":2.3134578343522319E-3},{"$f":"'Population 2016'!AT133/'Population 2016'!AT$5","v":3.1633890441292773E-4},{"$f":"'Population 2016'!AU133/'Population 2016'!AU$5","v":3.1633890441292773E-4},{"$f":"'Population 2016'!AV133/'Population 2016'!AV$5","v":4.117833386126069E-3},{"$f":"'Population 2016'!AW133/'Population 2016'!AW$5","v":3.5694673256452497E-3},{"$f":"'Population 2016'!AX133/'Population 2016'!AX$5","v":1.8400909822763459E-3},{"$f":"'Population 2016'!AY133/'Population 2016'!AY$5","v":2.3744683455218627E-3},{"$f":"'Population 2016'!AZ133/'Population 2016'!AZ$5","v":1.9386645650085429E-3},{"$f":"'Population 2016'!BA133/'Population 2016'!BA$5","v":3.5764413733534875E-3},{"$f":"'Population 2016'!BB133/'Population 2016'!BB$5","v":3.293675728302825E-3},{"$f":"'Population 2016'!BC133/'Population 2016'!BC$5","v":3.9392732262205112E-3},131]
[null,"Male 85-89",{"$f":"'Population 2016'!C134/'Population 2016'!C$5","v":1.1806616816506775E-3},{"$f":"'Population 2016'!D134/'Population 2016'!D$5","v":8.1668182662871782E-4},{"$f":"'Population 2016'!E134/'Population 2016'!E$5","v":4.8284494114448316E-4},{"$f":"'Population 2016'!F134/'Population 2016'!F$5","v":1.2567602369302085E-3},{"$f":"'Population 2016'!G134/'Population 2016'!G$5","v":1.4074595355383533E-3},{"$f":"'Population 2016'!H134/'Population 2016'!H$5","v":1.7833230116759021E-3},{"$f":"'Population 2016'!I134/'Population 2016'!I$5","v":1.5806883845574072E-3},{"$f":"'Population 2016'!J134/'Population 2016'!J$5","v":1.0532164567144623E-3},{"$f":"'Population 2016'!K134/'Population 2016'!K$5","v":1.464820677597694E-3},{"$f":"'Population 2016'!L134/'Population 2016'!L$5","v":2.2556510412529984E-3},{"$f":"'Population 2016'!M134/'Population 2016'!M$5","v":2.2556510412529984E-3},{"$f":"'Population 2016'!N134/'Population 2016'!N$5","v":1.1653981241108815E-3},{"$f":"'Population 2016'!O134/'Population 2016'!O$5","v":1.8921944502233979E-3},{"$f":"'Population 2016'!P134/'Population 2016'!P$5","v":1.2960667192606784E-3},{"$f":"'Population 2016'!Q134/'Population 2016'!Q$5","v":1.7626114851764373E-3},{"$f":"'Population 2016'!R134/'Population 2016'!R$5","v":4.2582636929791877E-4},{"$f":"'Population 2016'!S134/'Population 2016'!S$5","v":1.2083584155234779E-3},{"$f":"'Population 2016'!T134/'Population 2016'!T$5","v":6.328436550443688E-4},{"$f":"'Population 2016'!U134/'Population 2016'!U$5","v":2.1688133492674721E-3},{"$f":"'Population 2016'!V134/'Population 2016'!V$5","v":1.9309881622030056E-3},{"$f":"'Population 2016'!W134/'Population 2016'!W$5","v":1.4054216591819792E-3},{"$f":"'Population 2016'!X134/'Population 2016'!X$5","v":1.4054216591819792E-3},{"$f":"'Population 2016'!Y134/'Population 2016'!Y$5","v":1.5103098519896345E-3},{"$f":"'Population 2016'!Z134/'Population 2016'!Z$5","v":7.6657574871801817E-4},{"$f":"'Population 2016'!AA134/'Population 2016'!AA$5","v":1.196552917735492E-3},{"$f":"'Population 2016'!AB134/'Population 2016'!AB$5","v":8.3109014052792647E-4},{"$f":"'Population 2016'!AC134/'Population 2016'!AC$5","v":9.2465987203700292E-4},{"$f":"'Population 2016'!AD134/'Population 2016'!AD$5","v":1.354721054002754E-3},{"$f":"'Population 2016'!AE134/'Population 2016'!AE$5","v":1.3347159621762031E-3},{"$f":"'Population 2016'!AF134/'Population 2016'!AF$5","v":7.3896454478275953E-4},{"$f":"'Population 2016'!AG134/'Population 2016'!AG$5","v":1.3347159621762031E-3},{"$f":"'Population 2016'!AH134/'Population 2016'!AH$5","v":1.6848871014183146E-3},{"$f":"'Population 2016'!AI134/'Population 2016'!AI$5","v":1.0773033511243329E-3},{"$f":"'Population 2016'!AJ134/'Population 2016'!AJ$5","v":2.1888854808577085E-3},{"$f":"'Population 2016'!AK134/'Population 2016'!AK$5","v":9.0517078812717654E-4},{"$f":"'Population 2016'!AL134/'Population 2016'!AL$5","v":1.2060800624323798E-3},{"$f":"'Population 2016'!AM134/'Population 2016'!AM$5","v":1.6190314063116871E-3},{"$f":"'Population 2016'!AN134/'Population 2016'!AN$5","v":8.7269553834406024E-4},{"$f":"'Population 2016'!AO134/'Population 2016'!AO$5","v":8.7269553834406024E-4},{"$f":"'Population 2016'!AP134/'Population 2016'!AP$5","v":6.4201131842176178E-4},{"$f":"'Population 2016'!AQ134/'Population 2016'!AQ$5","v":1.1919767633035568E-3},{"$f":"'Population 2016'!AR134/'Population 2016'!AR$5","v":1.240425300131461E-3},{"$f":"'Population 2016'!AS134/'Population 2016'!AS$5","v":1.5806883845574072E-3},{"$f":"'Population 2016'!AT134/'Population 2016'!AT$5","v":5.2723150735487951E-5},{"$f":"'Population 2016'!AU134/'Population 2016'!AU$5","v":5.2723150735487951E-5},{"$f":"'Population 2016'!AV134/'Population 2016'!AV$5","v":2.3545560130925985E-3},{"$f":"'Population 2016'!AW134/'Population 2016'!AW$5","v":1.7542253950820672E-3},{"$f":"'Population 2016'!AX134/'Population 2016'!AX$5","v":8.3059662394418393E-4},{"$f":"'Population 2016'!AY134/'Population 2016'!AY$5","v":1.1902940546494906E-3},{"$f":"'Population 2016'!AZ134/'Population 2016'!AZ$5","v":1.0009722086394255E-3},{"$f":"'Population 2016'!BA134/'Population 2016'!BA$5","v":1.7274886633556468E-3},{"$f":"'Population 2016'!BB134/'Population 2016'!BB$5","v":1.4431409375582607E-3},{"$f":"'Population 2016'!BC134/'Population 2016'!BC$5","v":2.1688133492674721E-3},132]
[null,"Male 90+",{"$f":"'Population 2016'!C135/'Population 2016'!C$5","v":4.753313263788442E-4},{"$f":"'Population 2016'!D135/'Population 2016'!D$5","v":3.6432812026251183E-4},{"$f":"'Population 2016'!E135/'Population 2016'!E$5","v":2.6251763790379666E-4},{"$f":"'Population 2016'!F135/'Population 2016'!F$5","v":7.0048931238732943E-4},{"$f":"'Population 2016'!G135/'Population 2016'!G$5","v":4.7366426676771507E-4},{"$f":"'Population 2016'!H135/'Population 2016'!H$5","v":6.9387477181571467E-4},{"$f":"'Population 2016'!I135/'Population 2016'!I$5","v":5.8621555983585959E-4},{"$f":"'Population 2016'!J135/'Population 2016'!J$5","v":3.0684258975145751E-4},{"$f":"'Population 2016'!K135/'Population 2016'!K$5","v":4.7252279922506261E-4},{"$f":"'Population 2016'!L135/'Population 2016'!L$5","v":9.8486172223722452E-4},{"$f":"'Population 2016'!M135/'Population 2016'!M$5","v":9.8486172223722452E-4},{"$f":"'Population 2016'!N135/'Population 2016'!N$5","v":5.3849430562364871E-4},{"$f":"'Population 2016'!O135/'Population 2016'!O$5","v":6.9347440584103582E-4},{"$f":"'Population 2016'!P135/'Population 2016'!P$5","v":7.2128930463202974E-4},{"$f":"'Population 2016'!Q135/'Population 2016'!Q$5","v":7.8729979671214199E-4},{"$f":"'Population 2016'!R135/'Population 2016'!R$5","v":2.2622025868951934E-4},{"$f":"'Population 2016'!S135/'Population 2016'!S$5","v":5.2782931518118319E-4},{"$f":"'Population 2016'!T135/'Population 2016'!T$5","v":3.3736150728468192E-4},{"$f":"'Population 2016'!U135/'Population 2016'!U$5","v":3.9835347231443366E-4},{"$f":"'Population 2016'!V135/'Population 2016'!V$5","v":7.0980987780584791E-4},{"$f":"'Population 2016'!W135/'Population 2016'!W$5","v":6.275371129370698E-4},{"$f":"'Population 2016'!X135/'Population 2016'!X$5","v":6.275371129370698E-4},{"$f":"'Population 2016'!Y135/'Population 2016'!Y$5","v":5.1668494936487491E-4},{"$f":"'Population 2016'!Z135/'Population 2016'!Z$5","v":3.1747076462059338E-4},{"$f":"'Population 2016'!AA135/'Population 2016'!AA$5","v":4.5576640842118129E-4},{"$f":"'Population 2016'!AB135/'Population 2016'!AB$5","v":3.6846360910105114E-4},{"$f":"'Population 2016'!AC135/'Population 2016'!AC$5","v":3.8682638942040169E-4},{"$f":"'Population 2016'!AD135/'Population 2016'!AD$5","v":6.3642115449030485E-4},{"$f":"'Population 2016'!AE135/'Population 2016'!AE$5","v":6.9815911867678309E-4},{"$f":"'Population 2016'!AF135/'Population 2016'!AF$5","v":2.7145636338958513E-4},{"$f":"'Population 2016'!AG135/'Population 2016'!AG$5","v":6.9815911867678309E-4},{"$f":"'Population 2016'!AH135/'Population 2016'!AH$5","v":5.7958630170067713E-4},{"$f":"'Population 2016'!AI135/'Population 2016'!AI$5","v":4.7849768133694984E-4},{"$f":"'Population 2016'!AJ135/'Population 2016'!AJ$5","v":8.9228452722862005E-4},{"$f":"'Population 2016'!AK135/'Population 2016'!AK$5","v":3.8972631155475656E-4},{"$f":"'Population 2016'!AL135/'Population 2016'!AL$5","v":4.9662120217803868E-4},{"$f":"'Population 2016'!AM135/'Population 2016'!AM$5","v":5.3605514123966375E-4},{"$f":"'Population 2016'!AN135/'Population 2016'!AN$5","v":4.9089124031853387E-4},{"$f":"'Population 2016'!AO135/'Population 2016'!AO$5","v":4.9089124031853387E-4},{"$f":"'Population 2016'!AP135/'Population 2016'!AP$5","v":2.3778196978583771E-4},{"$f":"'Population 2016'!AQ135/'Population 2016'!AQ$5","v":5.0008220529402093E-4},{"$f":"'Population 2016'!AR135/'Population 2016'!AR$5","v":5.0926943895483474E-4},{"$f":"'Population 2016'!AS135/'Population 2016'!AS$5","v":5.8621555983585959E-4},{"$f":"'Population 2016'!AT135/'Population 2016'!AT$5","v":0},{"$f":"'Population 2016'!AU135/'Population 2016'!AU$5","v":0},{"$f":"'Population 2016'!AV135/'Population 2016'!AV$5","v":9.2915214866434379E-4},{"$f":"'Population 2016'!AW135/'Population 2016'!AW$5","v":6.2541948868143266E-4},{"$f":"'Population 2016'!AX135/'Population 2016'!AX$5","v":2.1723296318540194E-4},{"$f":"'Population 2016'!AY135/'Population 2016'!AY$5","v":5.4618891710779961E-4},{"$f":"'Population 2016'!AZ135/'Population 2016'!AZ$5","v":4.745988920273139E-4},{"$f":"'Population 2016'!BA135/'Population 2016'!BA$5","v":5.1284819693370762E-4},{"$f":"'Population 2016'!BB135/'Population 2016'!BB$5","v":5.10968561623499E-4},{"$f":"'Population 2016'!BC135/'Population 2016'!BC$5","v":3.9835347231443366E-4},133]
["SIMD Q3","Female 0-4",{"$f":"'Population 2016'!C136/'Population 2016'!C$5","v":0},{"$f":"'Population 2016'!D136/'Population 2016'!D$5","v":0},{"$f":"'Population 2016'!E136/'Population 2016'!E$5","v":0},{"$f":"'Population 2016'!F136/'Population 2016'!F$5","v":0},{"$f":"'Population 2016'!G136/'Population 2016'!G$5","v":0},{"$f":"'Population 2016'!H136/'Population 2016'!H$5","v":0},{"$f":"'Population 2016'!I136/'Population 2016'!I$5","v":0},{"$f":"'Population 2016'!J136/'Population 2016'!J$5","v":0},{"$f":"'Population 2016'!K136/'Population 2016'!K$5","v":0},{"$f":"'Population 2016'!L136/'Population 2016'!L$5","v":0},{"$f":"'Population 2016'!M136/'Population 2016'!M$5","v":0},{"$f":"'Population 2016'!N136/'Population 2016'!N$5","v":0},{"$f":"'Population 2016'!O136/'Population 2016'!O$5","v":0},{"$f":"'Population 2016'!P136/'Population 2016'!P$5","v":0},{"$f":"'Population 2016'!Q136/'Population 2016'!Q$5","v":0},{"$f":"'Population 2016'!R136/'Population 2016'!R$5","v":0},{"$f":"'Population 2016'!S136/'Population 2016'!S$5","v":0},{"$f":"'Population 2016'!T136/'Population 2016'!T$5","v":0},{"$f":"'Population 2016'!U136/'Population 2016'!U$5","v":0},{"$f":"'Population 2016'!V136/'Population 2016'!V$5","v":0},{"$f":"'Population 2016'!W136/'Population 2016'!W$5","v":0},{"$f":"'Population 2016'!X136/'Population 2016'!X$5","v":0},{"$f":"'Population 2016'!Y136/'Population 2016'!Y$5","v":0},{"$f":"'Population 2016'!Z136/'Population 2016'!Z$5","v":0},{"$f":"'Population 2016'!AA136/'Population 2016'!AA$5","v":0},{"$f":"'Population 2016'!AB136/'Population 2016'!AB$5","v":0},{"$f":"'Population 2016'!AC136/'Population 2016'!AC$5","v":0},{"$f":"'Population 2016'!AD136/'Population 2016'!AD$5","v":0},{"$f":"'Population 2016'!AE136/'Population 2016'!AE$5","v":0},{"$f":"'Population 2016'!AF136/'Population 2016'!AF$5","v":0},{"$f":"'Population 2016'!AG136/'Population 2016'!AG$5","v":0},{"$f":"'Population 2016'!AH136/'Population 2016'!AH$5","v":0},{"$f":"'Population 2016'!AI136/'Population 2016'!AI$5","v":0},{"$f":"'Population 2016'!AJ136/'Population 2016'!AJ$5","v":0},{"$f":"'Population 2016'!AK136/'Population 2016'!AK$5","v":0},{"$f":"'Population 2016'!AL136/'Population 2016'!AL$5","v":0},{"$f":"'Population 2016'!AM136/'Population 2016'!AM$5","v":0},{"$f":"'Population 2016'!AN136/'Population 2016'!AN$5","v":0},{"$f":"'Population 2016'!AO136/'Population 2016'!AO$5","v":0},{"$f":"'Population 2016'!AP136/'Population 2016'!AP$5","v":0},{"$f":"'Population 2016'!AQ136/'Population 2016'!AQ$5","v":0},{"$f":"'Population 2016'!AR136/'Population 2016'!AR$5","v":0},{"$f":"'Population 2016'!AS136/'Population 2016'!AS$5","v":0},{"$f":"'Population 2016'!AT136/'Population 2016'!AT$5","v":0},{"$f":"'Population 2016'!AU136/'Population 2016'!AU$5","v":0},{"$f":"'Population 2016'!AV136/'Population 2016'!AV$5","v":0},{"$f":"'Population 2016'!AW136/'Population 2016'!AW$5","v":0},{"$f":"'Population 2016'!AX136/'Population 2016'!AX$5","v":0},{"$f":"'Population 2016'!AY136/'Population 2016'!AY$5","v":0},{"$f":"'Population 2016'!AZ136/'Population 2016'!AZ$5","v":0},{"$f":"'Population 2016'!BA136/'Population 2016'!BA$5","v":0},{"$f":"'Population 2016'!BB136/'Population 2016'!BB$5","v":0},{"$f":"'Population 2016'!BC136/'Population 2016'!BC$5","v":0},134]
[null,"Female 5-9",{"$f":"'Population 2016'!C137/'Population 2016'!C$5","v":0},{"$f":"'Population 2016'!D137/'Population 2016'!D$5","v":0},{"$f":"'Population 2016'!E137/'Population 2016'!E$5","v":0},{"$f":"'Population 2016'!F137/'Population 2016'!F$5","v":0},{"$f":"'Population 2016'!G137/'Population 2016'!G$5","v":0},{"$f":"'Population 2016'!H137/'Population 2016'!H$5","v":0},{"$f":"'Population 2016'!I137/'Population 2016'!I$5","v":0},{"$f":"'Population 2016'!J137/'Population 2016'!J$5","v":0},{"$f":"'Population 2016'!K137/'Population 2016'!K$5","v":0},{"$f":"'Population 2016'!L137/'Population 2016'!L$5","v":0},{"$f":"'Population 2016'!M137/'Population 2016'!M$5","v":0},{"$f":"'Population 2016'!N137/'Population 2016'!N$5","v":0},{"$f":"'Population 2016'!O137/'Population 2016'!O$5","v":0},{"$f":"'Population 2016'!P137/'Population 2016'!P$5","v":0},{"$f":"'Population 2016'!Q137/'Population 2016'!Q$5","v":0},{"$f":"'Population 2016'!R137/'Population 2016'!R$5","v":0},{"$f":"'Population 2016'!S137/'Population 2016'!S$5","v":0},{"$f":"'Population 2016'!T137/'Population 2016'!T$5","v":0},{"$f":"'Population 2016'!U137/'Population 2016'!U$5","v":0},{"$f":"'Population 2016'!V137/'Population 2016'!V$5","v":0},{"$f":"'Population 2016'!W137/'Population 2016'!W$5","v":0},{"$f":"'Population 2016'!X137/'Population 2016'!X$5","v":0},{"$f":"'Population 2016'!Y137/'Population 2016'!Y$5","v":0},{"$f":"'Population 2016'!Z137/'Population 2016'!Z$5","v":0},{"$f":"'Population 2016'!AA137/'Population 2016'!AA$5","v":0},{"$f":"'Population 2016'!AB137/'Population 2016'!AB$5","v":0},{"$f":"'Population 2016'!AC137/'Population 2016'!AC$5","v":0},{"$f":"'Population 2016'!AD137/'Population 2016'!AD$5","v":0},{"$f":"'Population 2016'!AE137/'Population 2016'!AE$5","v":0},{"$f":"'Population 2016'!AF137/'Population 2016'!AF$5","v":0},{"$f":"'Population 2016'!AG137/'Population 2016'!AG$5","v":0},{"$f":"'Population 2016'!AH137/'Population 2016'!AH$5","v":0},{"$f":"'Population 2016'!AI137/'Population 2016'!AI$5","v":0},{"$f":"'Population 2016'!AJ137/'Population 2016'!AJ$5","v":0},{"$f":"'Population 2016'!AK137/'Population 2016'!AK$5","v":0},{"$f":"'Population 2016'!AL137/'Population 2016'!AL$5","v":0},{"$f":"'Population 2016'!AM137/'Population 2016'!AM$5","v":0},{"$f":"'Population 2016'!AN137/'Population 2016'!AN$5","v":0},{"$f":"'Population 2016'!AO137/'Population 2016'!AO$5","v":0},{"$f":"'Population 2016'!AP137/'Population 2016'!AP$5","v":0},{"$f":"'Population 2016'!AQ137/'Population 2016'!AQ$5","v":0},{"$f":"'Population 2016'!AR137/'Population 2016'!AR$5","v":0},{"$f":"'Population 2016'!AS137/'Population 2016'!AS$5","v":0},{"$f":"'Population 2016'!AT137/'Population 2016'!AT$5","v":0},{"$f":"'Population 2016'!AU137/'Population 2016'!AU$5","v":0},{"$f":"'Population 2016'!AV137/'Population 2016'!AV$5","v":0},{"$f":"'Population 2016'!AW137/'Population 2016'!AW$5","v":0},{"$f":"'Population 2016'!AX137/'Population 2016'!AX$5","v":0},{"$f":"'Population 2016'!AY137/'Population 2016'!AY$5","v":0},{"$f":"'Population 2016'!AZ137/'Population 2016'!AZ$5","v":0},{"$f":"'Population 2016'!BA137/'Population 2016'!BA$5","v":0},{"$f":"'Population 2016'!BB137/'Population 2016'!BB$5","v":0},{"$f":"'Population 2016'!BC137/'Population 2016'!BC$5","v":0},135]
[null,"Female 10-15",{"$f":"'Population 2016'!C138/'Population 2016'!C$5","v":0},{"$f":"'Population 2016'!D138/'Population 2016'!D$5","v":0},{"$f":"'Population 2016'!E138/'Population 2016'!E$5","v":0},{"$f":"'Population 2016'!F138/'Population 2016'!F$5","v":0},{"$f":"'Population 2016'!G138/'Population 2016'!G$5","v":0},{"$f":"'Population 2016'!H138/'Population 2016'!H$5","v":0},{"$f":"'Population 2016'!I138/'Population 2016'!I$5","v":0},{"$f":"'Population 2016'!J138/'Population 2016'!J$5","v":0},{"$f":"'Population 2016'!K138/'Population 2016'!K$5","v":0},{"$f":"'Population 2016'!L138/'Population 2016'!L$5","v":0},{"$f":"'Population 2016'!M138/'Population 2016'!M$5","v":0},{"$f":"'Population 2016'!N138/'Population 2016'!N$5","v":0},{"$f":"'Population 2016'!O138/'Population 2016'!O$5","v":0},{"$f":"'Population 2016'!P138/'Population 2016'!P$5","v":0},{"$f":"'Population 2016'!Q138/'Population 2016'!Q$5","v":0},{"$f":"'Population 2016'!R138/'Population 2016'!R$5","v":0},{"$f":"'Population 2016'!S138/'Population 2016'!S$5","v":0},{"$f":"'Population 2016'!T138/'Population 2016'!T$5","v":0},{"$f":"'Population 2016'!U138/'Population 2016'!U$5","v":0},{"$f":"'Population 2016'!V138/'Population 2016'!V$5","v":0},{"$f":"'Population 2016'!W138/'Population 2016'!W$5","v":0},{"$f":"'Population 2016'!X138/'Population 2016'!X$5","v":0},{"$f":"'Population 2016'!Y138/'Population 2016'!Y$5","v":0},{"$f":"'Population 2016'!Z138/'Population 2016'!Z$5","v":0},{"$f":"'Population 2016'!AA138/'Population 2016'!AA$5","v":0},{"$f":"'Population 2016'!AB138/'Population 2016'!AB$5","v":0},{"$f":"'Population 2016'!AC138/'Population 2016'!AC$5","v":0},{"$f":"'Population 2016'!AD138/'Population 2016'!AD$5","v":0},{"$f":"'Population 2016'!AE138/'Population 2016'!AE$5","v":0},{"$f":"'Population 2016'!AF138/'Population 2016'!AF$5","v":0},{"$f":"'Population 2016'!AG138/'Population 2016'!AG$5","v":0},{"$f":"'Population 2016'!AH138/'Population 2016'!AH$5","v":0},{"$f":"'Population 2016'!AI138/'Population 2016'!AI$5","v":0},{"$f":"'Population 2016'!AJ138/'Population 2016'!AJ$5","v":0},{"$f":"'Population 2016'!AK138/'Population 2016'!AK$5","v":0},{"$f":"'Population 2016'!AL138/'Population 2016'!AL$5","v":0},{"$f":"'Population 2016'!AM138/'Population 2016'!AM$5","v":0},{"$f":"'Population 2016'!AN138/'Population 2016'!AN$5","v":0},{"$f":"'Population 2016'!AO138/'Population 2016'!AO$5","v":0},{"$f":"'Population 2016'!AP138/'Population 2016'!AP$5","v":0},{"$f":"'Population 2016'!AQ138/'Population 2016'!AQ$5","v":0},{"$f":"'Population 2016'!AR138/'Population 2016'!AR$5","v":0},{"$f":"'Population 2016'!AS138/'Population 2016'!AS$5","v":0},{"$f":"'Population 2016'!AT138/'Population 2016'!AT$5","v":0},{"$f":"'Population 2016'!AU138/'Population 2016'!AU$5","v":0},{"$f":"'Population 2016'!AV138/'Population 2016'!AV$5","v":0},{"$f":"'Population 2016'!AW138/'Population 2016'!AW$5","v":0},{"$f":"'Population 2016'!AX138/'Population 2016'!AX$5","v":0},{"$f":"'Population 2016'!AY138/'Population 2016'!AY$5","v":0},{"$f":"'Population 2016'!AZ138/'Population 2016'!AZ$5","v":0},{"$f":"'Population 2016'!BA138/'Population 2016'!BA$5","v":0},{"$f":"'Population 2016'!BB138/'Population 2016'!BB$5","v":0},{"$f":"'Population 2016'!BC138/'Population 2016'!BC$5","v":0},136]
[null,"Female 16-19",{"$f":"'Population 2016'!C139/'Population 2016'!C$5","v":3.5062074182353451E-3},{"$f":"'Population 2016'!D139/'Population 2016'!D$5","v":4.2521248398423367E-3},{"$f":"'Population 2016'!E139/'Population 2016'!E$5","v":4.9362691555838905E-3},{"$f":"'Population 2016'!F139/'Population 2016'!F$5","v":8.0659284058717494E-3},{"$f":"'Population 2016'!G139/'Population 2016'!G$5","v":1.0298814486006605E-2},{"$f":"'Population 2016'!H139/'Population 2016'!H$5","v":4.3545505539649759E-3},{"$f":"'Population 2016'!I139/'Population 2016'!I$5","v":8.1442090277196212E-3},{"$f":"'Population 2016'!J139/'Population 2016'!J$5","v":4.3206753854191718E-3},{"$f":"'Population 2016'!K139/'Population 2016'!K$5","v":4.1345744932192981E-3},{"$f":"'Population 2016'!L139/'Population 2016'!L$5","v":8.4825187044302898E-3},{"$f":"'Population 2016'!M139/'Population 2016'!M$5","v":8.4825187044302898E-3},{"$f":"'Population 2016'!N139/'Population 2016'!N$5","v":3.8257207384605491E-3},{"$f":"'Population 2016'!O139/'Population 2016'!O$5","v":4.1311261033673136E-3},{"$f":"'Population 2016'!P139/'Population 2016'!P$5","v":1.8483038431195763E-3},{"$f":"'Population 2016'!Q139/'Population 2016'!Q$5","v":5.3348374284673504E-3},{"$f":"'Population 2016'!R139/'Population 2016'!R$5","v":3.0739341033693512E-3},{"$f":"'Population 2016'!S139/'Population 2016'!S$5","v":4.9534751117003345E-3},{"$f":"'Population 2016'!T139/'Population 2016'!T$5","v":3.3410422376607121E-3},{"$f":"'Population 2016'!U139/'Population 2016'!U$5","v":1.5889877395653521E-2},{"$f":"'Population 2016'!V139/'Population 2016'!V$5","v":4.5641538379343769E-3},{"$f":"'Population 2016'!W139/'Population 2016'!W$5","v":5.2719654331640289E-3},{"$f":"'Population 2016'!X139/'Population 2016'!X$5","v":5.2719654331640289E-3},{"$f":"'Population 2016'!Y139/'Population 2016'!Y$5","v":4.4474650641484238E-3},{"$f":"'Population 2016'!Z139/'Population 2016'!Z$5","v":4.5800965188556343E-3},{"$f":"'Population 2016'!AA139/'Population 2016'!AA$5","v":4.4234588152598031E-3},{"$f":"'Population 2016'!AB139/'Population 2016'!AB$5","v":4.726569296746262E-3},{"$f":"'Population 2016'!AC139/'Population 2016'!AC$5","v":4.0823629920917794E-3},{"$f":"'Population 2016'!AD139/'Population 2016'!AD$5","v":8.2027615467639287E-3},{"$f":"'Population 2016'!AE139/'Population 2016'!AE$5","v":7.4076735900779267E-3},{"$f":"'Population 2016'!AF139/'Population 2016'!AF$5","v":4.1623309053069723E-3},{"$f":"'Population 2016'!AG139/'Population 2016'!AG$5","v":7.4076735900779267E-3},{"$f":"'Population 2016'!AH139/'Population 2016'!AH$5","v":5.036084820226076E-3},{"$f":"'Population 2016'!AI139/'Population 2016'!AI$5","v":4.4035458045323297E-3},{"$f":"'Population 2016'!AJ139/'Population 2016'!AJ$5","v":6.6642500627387561E-3},{"$f":"'Population 2016'!AK139/'Population 2016'!AK$5","v":7.1659354060068141E-3},{"$f":"'Population 2016'!AL139/'Population 2016'!AL$5","v":3.6093719515439601E-3},{"$f":"'Population 2016'!AM139/'Population 2016'!AM$5","v":5.074413870788979E-3},{"$f":"'Population 2016'!AN139/'Population 2016'!AN$5","v":6.7088469510199625E-3},{"$f":"'Population 2016'!AO139/'Population 2016'!AO$5","v":6.7088469510199625E-3},{"$f":"'Population 2016'!AP139/'Population 2016'!AP$5","v":5.2391294009479575E-3},{"$f":"'Population 2016'!AQ139/'Population 2016'!AQ$5","v":4.5349920534882449E-3},{"$f":"'Population 2016'!AR139/'Population 2016'!AR$5","v":5.0935854996777526E-3},{"$f":"'Population 2016'!AS139/'Population 2016'!AS$5","v":8.1442090277196212E-3},{"$f":"'Population 2016'!AT139/'Population 2016'!AT$5","v":7.8557494595877051E-3},{"$f":"'Population 2016'!AU139/'Population 2016'!AU$5","v":7.8557494595877051E-3},{"$f":"'Population 2016'!AV139/'Population 2016'!AV$5","v":5.4798859676908462E-3},{"$f":"'Population 2016'!AW139/'Population 2016'!AW$5","v":4.995728842516322E-3},{"$f":"'Population 2016'!AX139/'Population 2016'!AX$5","v":4.4213297213028862E-3},{"$f":"'Population 2016'!AY139/'Population 2016'!AY$5","v":5.405281356139653E-3},{"$f":"'Population 2016'!AZ139/'Population 2016'!AZ$5","v":5.5226052890451072E-3},{"$f":"'Population 2016'!BA139/'Population 2016'!BA$5","v":3.3470092852515656E-3},{"$f":"'Population 2016'!BB139/'Population 2016'!BB$5","v":5.8899484197951985E-3},{"$f":"'Population 2016'!BC139/'Population 2016'!BC$5","v":1.5889877395653521E-2},137]
[null,"Female 20-24",{"$f":"'Population 2016'!C140/'Population 2016'!C$5","v":1.0462400269865528E-2},{"$f":"'Population 2016'!D140/'Population 2016'!D$5","v":8.2303923006954022E-3},{"$f":"'Population 2016'!E140/'Population 2016'!E$5","v":6.1832279356269252E-3},{"$f":"'Population 2016'!F140/'Population 2016'!F$5","v":9.188771568374967E-3},{"$f":"'Population 2016'!G140/'Population 2016'!G$5","v":9.1890867752936721E-3},{"$f":"'Population 2016'!H140/'Population 2016'!H$5","v":4.9803348107894281E-3},{"$f":"'Population 2016'!I140/'Population 2016'!I$5","v":9.8819194372330634E-3},{"$f":"'Population 2016'!J140/'Population 2016'!J$5","v":7.5300830133600925E-3},{"$f":"'Population 2016'!K140/'Population 2016'!K$5","v":6.0482918300808017E-3},{"$f":"'Population 2016'!L140/'Population 2016'!L$5","v":9.9915810207615204E-3},{"$f":"'Population 2016'!M140/'Population 2016'!M$5","v":9.9915810207615204E-3},{"$f":"'Population 2016'!N140/'Population 2016'!N$5","v":6.8798675464752735E-3},{"$f":"'Population 2016'!O140/'Population 2016'!O$5","v":4.9137615042450537E-3},{"$f":"'Population 2016'!P140/'Population 2016'!P$5","v":2.4343514031331002E-3},{"$f":"'Population 2016'!Q140/'Population 2016'!Q$5","v":7.367716008037508E-3},{"$f":"'Population 2016'!R140/'Population 2016'!R$5","v":3.4332251024644703E-3},{"$f":"'Population 2016'!S140/'Population 2016'!S$5","v":8.8080413648712816E-3},{"$f":"'Population 2016'!T140/'Population 2016'!T$5","v":1.0648990474772338E-2},{"$f":"'Population 2016'!U140/'Population 2016'!U$5","v":1.6155446377196476E-2},{"$f":"'Population 2016'!V140/'Population 2016'!V$5","v":5.9532441364361435E-3},{"$f":"'Population 2016'!W140/'Population 2016'!W$5","v":7.3506821197680729E-3},{"$f":"'Population 2016'!X140/'Population 2016'!X$5","v":7.3506821197680729E-3},{"$f":"'Population 2016'!Y140/'Population 2016'!Y$5","v":6.7089553425223767E-3},{"$f":"'Population 2016'!Z140/'Population 2016'!Z$5","v":1.0222945780252157E-2},{"$f":"'Population 2016'!AA140/'Population 2016'!AA$5","v":7.1188586971325917E-3},{"$f":"'Population 2016'!AB140/'Population 2016'!AB$5","v":8.3027133250770189E-3},{"$f":"'Population 2016'!AC140/'Population 2016'!AC$5","v":7.5917264661651022E-3},{"$f":"'Population 2016'!AD140/'Population 2016'!AD$5","v":8.667981688935204E-3},{"$f":"'Population 2016'!AE140/'Population 2016'!AE$5","v":8.470312836887442E-3},{"$f":"'Population 2016'!AF140/'Population 2016'!AF$5","v":4.8108099956265362E-3},{"$f":"'Population 2016'!AG140/'Population 2016'!AG$5","v":8.470312836887442E-3},{"$f":"'Population 2016'!AH140/'Population 2016'!AH$5","v":6.2695633597429018E-3},{"$f":"'Population 2016'!AI140/'Population 2016'!AI$5","v":9.2773864730072621E-3},{"$f":"'Population 2016'!AJ140/'Population 2016'!AJ$5","v":7.1940440007807489E-3},{"$f":"'Population 2016'!AK140/'Population 2016'!AK$5","v":8.6745533862187755E-3},{"$f":"'Population 2016'!AL140/'Population 2016'!AL$5","v":4.2124119827601494E-3},{"$f":"'Population 2016'!AM140/'Population 2016'!AM$5","v":6.1972320720342202E-3},{"$f":"'Population 2016'!AN140/'Population 2016'!AN$5","v":9.2178466237591364E-3},{"$f":"'Population 2016'!AO140/'Population 2016'!AO$5","v":9.2178466237591364E-3},{"$f":"'Population 2016'!AP140/'Population 2016'!AP$5","v":7.0859026996179632E-3},{"$f":"'Population 2016'!AQ140/'Population 2016'!AQ$5","v":5.9735846988546067E-3},{"$f":"'Population 2016'!AR140/'Population 2016'!AR$5","v":7.7771636543802628E-3},{"$f":"'Population 2016'!AS140/'Population 2016'!AS$5","v":9.8819194372330634E-3},{"$f":"'Population 2016'!AT140/'Population 2016'!AT$5","v":9.1211050772394154E-3},{"$f":"'Population 2016'!AU140/'Population 2016'!AU$5","v":9.1211050772394154E-3},{"$f":"'Population 2016'!AV140/'Population 2016'!AV$5","v":5.9655791363108441E-3},{"$f":"'Population 2016'!AW140/'Population 2016'!AW$5","v":6.3457196900359994E-3},{"$f":"'Population 2016'!AX140/'Population 2016'!AX$5","v":8.3315230586401209E-3},{"$f":"'Population 2016'!AY140/'Population 2016'!AY$5","v":7.4829411584712829E-3},{"$f":"'Population 2016'!AZ140/'Population 2016'!AZ$5","v":7.5993349862797776E-3},{"$f":"'Population 2016'!BA140/'Population 2016'!BA$5","v":5.3174260418915997E-3},{"$f":"'Population 2016'!BB140/'Population 2016'!BB$5","v":7.3607092796033778E-3},{"$f":"'Population 2016'!BC140/'Population 2016'!BC$5","v":1.6155446377196476E-2},138]
[null,"Female 25-29",{"$f":"'Population 2016'!C141/'Population 2016'!C$5","v":1.0227290151441583E-2},{"$f":"'Population 2016'!D141/'Population 2016'!D$5","v":8.3599855246813959E-3},{"$f":"'Population 2016'!E141/'Population 2016'!E$5","v":6.6473216169211369E-3},{"$f":"'Population 2016'!F141/'Population 2016'!F$5","v":8.3543651815606492E-3},{"$f":"'Population 2016'!G141/'Population 2016'!G$5","v":9.852216748768473E-3},{"$f":"'Population 2016'!H141/'Population 2016'!H$5","v":5.0873341914899825E-3},{"$f":"'Population 2016'!I141/'Population 2016'!I$5","v":8.0499958127460015E-3},{"$f":"'Population 2016'!J141/'Population 2016'!J$5","v":6.9910352205534779E-3},{"$f":"'Population 2016'!K141/'Population 2016'!K$5","v":6.2609270897320797E-3},{"$f":"'Population 2016'!L141/'Population 2016'!L$5","v":1.0396645116197799E-2},{"$f":"'Population 2016'!M141/'Population 2016'!M$5","v":1.0396645116197799E-2},{"$f":"'Population 2016'!N141/'Population 2016'!N$5","v":7.6916276191318182E-3},{"$f":"'Population 2016'!O141/'Population 2016'!O$5","v":5.3001258160707736E-3},{"$f":"'Population 2016'!P141/'Population 2016'!P$5","v":2.2540290769750928E-3},{"$f":"'Population 2016'!Q141/'Population 2016'!Q$5","v":6.9446892515951635E-3},{"$f":"'Population 2016'!R141/'Population 2016'!R$5","v":3.5396816947889497E-3},{"$f":"'Population 2016'!S141/'Population 2016'!S$5","v":9.8548734180567057E-3},{"$f":"'Population 2016'!T141/'Population 2016'!T$5","v":1.3108239531323434E-2},{"$f":"'Population 2016'!U141/'Population 2016'!U$5","v":1.8279998229540122E-2},{"$f":"'Population 2016'!V141/'Population 2016'!V$5","v":6.0219354149334842E-3},{"$f":"'Population 2016'!W141/'Population 2016'!W$5","v":8.1154929761601269E-3},{"$f":"'Population 2016'!X141/'Population 2016'!X$5","v":8.1154929761601269E-3},{"$f":"'Population 2016'!Y141/'Population 2016'!Y$5","v":6.4863833643344299E-3},{"$f":"'Population 2016'!Z141/'Population 2016'!Z$5","v":9.6344633872969109E-3},{"$f":"'Population 2016'!AA141/'Population 2016'!AA$5","v":7.0397971773044276E-3},{"$f":"'Population 2016'!AB141/'Population 2016'!AB$5","v":8.4930861897792292E-3},{"$f":"'Population 2016'!AC141/'Population 2016'!AC$5","v":7.2566148346886045E-3},{"$f":"'Population 2016'!AD141/'Population 2016'!AD$5","v":9.3378986936618405E-3},{"$f":"'Population 2016'!AE141/'Population 2016'!AE$5","v":9.142804340906991E-3},{"$f":"'Population 2016'!AF141/'Population 2016'!AF$5","v":4.6298390867001464E-3},{"$f":"'Population 2016'!AG141/'Population 2016'!AG$5","v":9.142804340906991E-3},{"$f":"'Population 2016'!AH141/'Population 2016'!AH$5","v":6.6503812823346924E-3},{"$f":"'Population 2016'!AI141/'Population 2016'!AI$5","v":1.0818149006912241E-2},{"$f":"'Population 2016'!AJ141/'Population 2016'!AJ$5","v":8.1002704737473154E-3},{"$f":"'Population 2016'!AK141/'Population 2016'!AK$5","v":9.1774260462894278E-3},{"$f":"'Population 2016'!AL141/'Population 2016'!AL$5","v":3.8133413738670827E-3},{"$f":"'Population 2016'!AM141/'Population 2016'!AM$5","v":6.8310810566081471E-3},{"$f":"'Population 2016'!AN141/'Population 2016'!AN$5","v":1.0035998690956692E-2},{"$f":"'Population 2016'!AO141/'Population 2016'!AO$5","v":1.0035998690956692E-2},{"$f":"'Population 2016'!AP141/'Population 2016'!AP$5","v":7.3553889320419133E-3},{"$f":"'Population 2016'!AQ141/'Population 2016'!AQ$5","v":6.0489395517071302E-3},{"$f":"'Population 2016'!AR141/'Population 2016'!AR$5","v":8.1162310586187832E-3},{"$f":"'Population 2016'!AS141/'Population 2016'!AS$5","v":8.0499958127460015E-3},{"$f":"'Population 2016'!AT141/'Population 2016'!AT$5","v":1.107186165445247E-2},{"$f":"'Population 2016'!AU141/'Population 2016'!AU$5","v":1.107186165445247E-2},{"$f":"'Population 2016'!AV141/'Population 2016'!AV$5","v":6.3773624749234505E-3},{"$f":"'Population 2016'!AW141/'Population 2016'!AW$5","v":6.4601256940630914E-3},{"$f":"'Population 2016'!AX141/'Population 2016'!AX$5","v":7.3859207483036662E-3},{"$f":"'Population 2016'!AY141/'Population 2016'!AY$5","v":7.9235641504237942E-3},{"$f":"'Population 2016'!AZ141/'Population 2016'!AZ$5","v":7.7546582600341715E-3},{"$f":"'Population 2016'!BA141/'Population 2016'!BA$5","v":5.1689699848844741E-3},{"$f":"'Population 2016'!BB141/'Population 2016'!BB$5","v":7.6438134826650461E-3},{"$f":"'Population 2016'!BC141/'Population 2016'!BC$5","v":1.8279998229540122E-2},139]
[null,"Female 30-34",{"$f":"'Population 2016'!C142/'Population 2016'!C$5","v":8.0755214589093953E-3},{"$f":"'Population 2016'!D142/'Population 2016'!D$5","v":7.6337744393259197E-3},{"$f":"'Population 2016'!E142/'Population 2016'!E$5","v":7.2286106722795436E-3},{"$f":"'Population 2016'!F142/'Population 2016'!F$5","v":1.0311614730878186E-2},{"$f":"'Population 2016'!G142/'Population 2016'!G$5","v":1.1164943430953284E-2},{"$f":"'Population 2016'!H142/'Population 2016'!H$5","v":5.4602108212040345E-3},{"$f":"'Population 2016'!I142/'Population 2016'!I$5","v":9.9237919772213381E-3},{"$f":"'Population 2016'!J142/'Population 2016'!J$5","v":5.7221996467163696E-3},{"$f":"'Population 2016'!K142/'Population 2016'!K$5","v":6.4735623493833577E-3},{"$f":"'Population 2016'!L142/'Population 2016'!L$5","v":9.9598112877861255E-3},{"$f":"'Population 2016'!M142/'Population 2016'!M$5","v":9.9598112877861255E-3},{"$f":"'Population 2016'!N142/'Population 2016'!N$5","v":4.9509327203607111E-3},{"$f":"'Population 2016'!O142/'Population 2016'!O$5","v":5.4982613605967842E-3},{"$f":"'Population 2016'!P142/'Population 2016'!P$5","v":1.8144934069649499E-3},{"$f":"'Population 2016'!Q142/'Population 2016'!Q$5","v":7.1327011433473166E-3},{"$f":"'Population 2016'!R142/'Population 2016'!R$5","v":3.7392878053973491E-3},{"$f":"'Population 2016'!S142/'Population 2016'!S$5","v":8.9060163715353486E-3},{"$f":"'Population 2016'!T142/'Population 2016'!T$5","v":1.0044066392744634E-2},{"$f":"'Population 2016'!U142/'Population 2016'!U$5","v":2.0050458106493162E-2},{"$f":"'Population 2016'!V142/'Population 2016'!V$5","v":7.006510406728692E-3},{"$f":"'Population 2016'!W142/'Population 2016'!W$5","v":7.752698082743383E-3},{"$f":"'Population 2016'!X142/'Population 2016'!X$5","v":7.752698082743383E-3},{"$f":"'Population 2016'!Y142/'Population 2016'!Y$5","v":6.390995373682453E-3},{"$f":"'Population 2016'!Z142/'Population 2016'!Z$5","v":7.6502711084182017E-3},{"$f":"'Population 2016'!AA142/'Population 2016'!AA$5","v":6.6391745180070915E-3},{"$f":"'Population 2016'!AB142/'Population 2016'!AB$5","v":8.1225755606276172E-3},{"$f":"'Population 2016'!AC142/'Population 2016'!AC$5","v":6.2264568564460374E-3},{"$f":"'Population 2016'!AD142/'Population 2016'!AD$5","v":1.0212512560943838E-2},{"$f":"'Population 2016'!AE142/'Population 2016'!AE$5","v":9.8512305054466679E-3},{"$f":"'Population 2016'!AF142/'Population 2016'!AF$5","v":4.0567645417665778E-3},{"$f":"'Population 2016'!AG142/'Population 2016'!AG$5","v":9.8512305054466679E-3},{"$f":"'Population 2016'!AH142/'Population 2016'!AH$5","v":7.3804371046691996E-3},{"$f":"'Population 2016'!AI142/'Population 2016'!AI$5","v":9.2555122932890012E-3},{"$f":"'Population 2016'!AJ142/'Population 2016'!AJ$5","v":8.5742966288375206E-3},{"$f":"'Population 2016'!AK142/'Population 2016'!AK$5","v":1.0635756760494323E-2},{"$f":"'Population 2016'!AL142/'Population 2016'!AL$5","v":4.1237296252283574E-3},{"$f":"'Population 2016'!AM142/'Population 2016'!AM$5","v":7.7981535073580813E-3},{"$f":"'Population 2016'!AN142/'Population 2016'!AN$5","v":1.1072324642740263E-2},{"$f":"'Population 2016'!AO142/'Population 2016'!AO$5","v":1.1072324642740263E-2},{"$f":"'Population 2016'!AP142/'Population 2016'!AP$5","v":7.8705831999112286E-3},{"$f":"'Population 2016'!AQ142/'Population 2016'!AQ$5","v":6.6654792568641421E-3},{"$f":"'Population 2016'!AR142/'Population 2016'!AR$5","v":7.7515442381598755E-3},{"$f":"'Population 2016'!AS142/'Population 2016'!AS$5","v":9.9237919772213381E-3},{"$f":"'Population 2016'!AT142/'Population 2016'!AT$5","v":9.9119523382717352E-3},{"$f":"'Population 2016'!AU142/'Population 2016'!AU$5","v":9.9119523382717352E-3},{"$f":"'Population 2016'!AV142/'Population 2016'!AV$5","v":7.0108753035582304E-3},{"$f":"'Population 2016'!AW142/'Population 2016'!AW$5","v":6.9406309109768744E-3},{"$f":"'Population 2016'!AX142/'Population 2016'!AX$5","v":5.3158183932427768E-3},{"$f":"'Population 2016'!AY142/'Population 2016'!AY$5","v":7.6221657844007225E-3},{"$f":"'Population 2016'!AZ142/'Population 2016'!AZ$5","v":7.5072915647956921E-3},{"$f":"'Population 2016'!BA142/'Population 2016'!BA$5","v":5.1824659900669406E-3},{"$f":"'Population 2016'!BB142/'Population 2016'!BB$5","v":8.5000310724125307E-3},{"$f":"'Population 2016'!BC142/'Population 2016'!BC$5","v":2.0050458106493162E-2},140]
[null,"Female 35-39",{"$f":"'Population 2016'!C143/'Population 2016'!C$5","v":5.0395342775219395E-3},{"$f":"'Population 2016'!D143/'Population 2016'!D$5","v":6.0811009066635367E-3},{"$f":"'Population 2016'!E143/'Population 2016'!E$5","v":7.0364102588142642E-3},{"$f":"'Population 2016'!F143/'Population 2016'!F$5","v":1.106361061035282E-2},{"$f":"'Population 2016'!G143/'Population 2016'!G$5","v":1.1422075461484328E-2},{"$f":"'Population 2016'!H143/'Population 2016'!H$5","v":5.5509981745257174E-3},{"$f":"'Population 2016'!I143/'Population 2016'!I$5","v":9.4317896323590986E-3},{"$f":"'Population 2016'!J143/'Population 2016'!J$5","v":5.8051300763789261E-3},{"$f":"'Population 2016'!K143/'Population 2016'!K$5","v":5.5993951708169917E-3},{"$f":"'Population 2016'!L143/'Population 2016'!L$5","v":9.7930201896653055E-3},{"$f":"'Population 2016'!M143/'Population 2016'!M$5","v":9.7930201896653055E-3},{"$f":"'Population 2016'!N143/'Population 2016'!N$5","v":3.8659068806712695E-3},{"$f":"'Population 2016'!O143/'Population 2016'!O$5","v":5.3991935883337793E-3},{"$f":"'Population 2016'!P143/'Population 2016'!P$5","v":2.1976783500507156E-3},{"$f":"'Population 2016'!Q143/'Population 2016'!Q$5","v":7.2737100621614315E-3},{"$f":"'Population 2016'!R143/'Population 2016'!R$5","v":3.9255868419651885E-3},{"$f":"'Population 2016'!S143/'Population 2016'!S$5","v":7.6994232714472583E-3},{"$f":"'Population 2016'!T143/'Population 2016'!T$5","v":6.8589084377602919E-3},{"$f":"'Population 2016'!U143/'Population 2016'!U$5","v":2.4211038817332803E-2},{"$f":"'Population 2016'!V143/'Population 2016'!V$5","v":7.1286282351684079E-3},{"$f":"'Population 2016'!W143/'Population 2016'!W$5","v":7.994561345021212E-3},{"$f":"'Population 2016'!X143/'Population 2016'!X$5","v":7.994561345021212E-3},{"$f":"'Population 2016'!Y143/'Population 2016'!Y$5","v":6.4943323635554282E-3},{"$f":"'Population 2016'!Z143/'Population 2016'!Z$5","v":5.7996488463615721E-3},{"$f":"'Population 2016'!AA143/'Population 2016'!AA$5","v":6.1196273877077278E-3},{"$f":"'Population 2016'!AB143/'Population 2016'!AB$5","v":6.5422760815942189E-3},{"$f":"'Population 2016'!AC143/'Population 2016'!AC$5","v":5.3411002004464022E-3},{"$f":"'Population 2016'!AD143/'Population 2016'!AD$5","v":1.0789385537236219E-2},{"$f":"'Population 2016'!AE143/'Population 2016'!AE$5","v":1.054938962412345E-2},{"$f":"'Population 2016'!AF143/'Population 2016'!AF$5","v":5.625179085795292E-3},{"$f":"'Population 2016'!AG143/'Population 2016'!AG$5","v":1.054938962412345E-2},{"$f":"'Population 2016'!AH143/'Population 2016'!AH$5","v":7.5179030864828212E-3},{"$f":"'Population 2016'!AI143/'Population 2016'!AI$5","v":7.3497243853355501E-3},{"$f":"'Population 2016'!AJ143/'Population 2016'!AJ$5","v":8.630064411789309E-3},{"$f":"'Population 2016'!AK143/'Population 2016'!AK$5","v":8.913417899752335E-3},{"$f":"'Population 2016'!AL143/'Population 2016'!AL$5","v":4.4252496408364516E-3},{"$f":"'Population 2016'!AM143/'Population 2016'!AM$5","v":8.0335831301998253E-3},{"$f":"'Population 2016'!AN143/'Population 2016'!AN$5","v":7.745172902803534E-3},{"$f":"'Population 2016'!AO143/'Population 2016'!AO$5","v":7.745172902803534E-3},{"$f":"'Population 2016'!AP143/'Population 2016'!AP$5","v":7.2523500784680501E-3},{"$f":"'Population 2016'!AQ143/'Population 2016'!AQ$5","v":6.3709102866224589E-3},{"$f":"'Population 2016'!AR143/'Population 2016'!AR$5","v":7.1193016013471801E-3},{"$f":"'Population 2016'!AS143/'Population 2016'!AS$5","v":9.4317896323590986E-3},{"$f":"'Population 2016'!AT143/'Population 2016'!AT$5","v":1.001739863974271E-2},{"$f":"'Population 2016'!AU143/'Population 2016'!AU$5","v":1.001739863974271E-2},{"$f":"'Population 2016'!AV143/'Population 2016'!AV$5","v":7.0531094921338824E-3},{"$f":"'Population 2016'!AW143/'Population 2016'!AW$5","v":6.9749527121850024E-3},{"$f":"'Population 2016'!AX143/'Population 2016'!AX$5","v":5.9164036444024175E-3},{"$f":"'Population 2016'!AY143/'Population 2016'!AY$5","v":7.5211896820782716E-3},{"$f":"'Population 2016'!AZ143/'Population 2016'!AZ$5","v":7.1046015958028197E-3},{"$f":"'Population 2016'!BA143/'Population 2016'!BA$5","v":5.0610019434247462E-3},{"$f":"'Population 2016'!BB143/'Population 2016'!BB$5","v":8.2169268693508633E-3},{"$f":"'Population 2016'!BC143/'Population 2016'!BC$5","v":2.4211038817332803E-2},141]
[null,"Female 40-44",{"$f":"'Population 2016'!C144/'Population 2016'!C$5","v":4.4415368024001674E-3},{"$f":"'Population 2016'!D144/'Population 2016'!D$5","v":6.0884363721721776E-3},{"$f":"'Population 2016'!E144/'Population 2016'!E$5","v":7.5989480543224002E-3},{"$f":"'Population 2016'!F144/'Population 2016'!F$5","v":1.2856039144990986E-2},{"$f":"'Population 2016'!G144/'Population 2016'!G$5","v":1.4182861473501868E-2},{"$f":"'Population 2016'!H144/'Population 2016'!H$5","v":6.4556293022667655E-3},{"$f":"'Population 2016'!I144/'Population 2016'!I$5","v":1.2572230131479775E-2},{"$f":"'Population 2016'!J144/'Population 2016'!J$5","v":6.4105222129155854E-3},{"$f":"'Population 2016'!K144/'Population 2016'!K$5","v":6.9224590086471669E-3},{"$f":"'Population 2016'!L144/'Population 2016'!L$5","v":1.2453735326354583E-2},{"$f":"'Population 2016'!M144/'Population 2016'!M$5","v":1.2453735326354583E-2},{"$f":"'Population 2016'!N144/'Population 2016'!N$5","v":3.3917104025847728E-3},{"$f":"'Population 2016'!O144/'Population 2016'!O$5","v":6.5186594149057369E-3},{"$f":"'Population 2016'!P144/'Population 2016'!P$5","v":2.4005409669784739E-3},{"$f":"'Population 2016'!Q144/'Population 2016'!Q$5","v":8.0257576291700456E-3},{"$f":"'Population 2016'!R144/'Population 2016'!R$5","v":4.1385000266141482E-3},{"$f":"'Population 2016'!S144/'Population 2016'!S$5","v":7.6146881305486072E-3},{"$f":"'Population 2016'!T144/'Population 2016'!T$5","v":5.4606031558424037E-3},{"$f":"'Population 2016'!U144/'Population 2016'!U$5","v":2.5406099234276103E-2},{"$f":"'Population 2016'!V144/'Population 2016'!V$5","v":7.632364277482236E-3},{"$f":"'Population 2016'!W144/'Population 2016'!W$5","v":7.9553402754626457E-3},{"$f":"'Population 2016'!X144/'Population 2016'!X$5","v":7.9553402754626457E-3},{"$f":"'Population 2016'!Y144/'Population 2016'!Y$5","v":7.0467878094147944E-3},{"$f":"'Population 2016'!Z144/'Population 2016'!Z$5","v":4.8549797418807822E-3},{"$f":"'Population 2016'!AA144/'Population 2016'!AA$5","v":6.0286069825274038E-3},{"$f":"'Population 2016'!AB144/'Population 2016'!AB$5","v":6.8349999488244986E-3},{"$f":"'Population 2016'!AC144/'Population 2016'!AC$5","v":5.0452917850072714E-3},{"$f":"'Population 2016'!AD144/'Population 2016'!AD$5","v":1.2095723696453162E-2},{"$f":"'Population 2016'!AE144/'Population 2016'!AE$5","v":1.1304017495046151E-2},{"$f":"'Population 2016'!AF144/'Population 2016'!AF$5","v":6.2585772670376572E-3},{"$f":"'Population 2016'!AG144/'Population 2016'!AG$5","v":1.1304017495046151E-2},{"$f":"'Population 2016'!AH144/'Population 2016'!AH$5","v":7.7946926985129521E-3},{"$f":"'Population 2016'!AI144/'Population 2016'!AI$5","v":6.8247440720972967E-3},{"$f":"'Population 2016'!AJ144/'Population 2016'!AJ$5","v":9.1877422413071969E-3},{"$f":"'Population 2016'!AK144/'Population 2016'!AK$5","v":1.0673472209999623E-2},{"$f":"'Population 2016'!AL144/'Population 2016'!AL$5","v":5.1967861513630481E-3},{"$f":"'Population 2016'!AM144/'Population 2016'!AM$5","v":8.3016107008196567E-3},{"$f":"'Population 2016'!AN144/'Population 2016'!AN$5","v":1.0526889931275226E-2},{"$f":"'Population 2016'!AO144/'Population 2016'!AO$5","v":1.0526889931275226E-2},{"$f":"'Population 2016'!AP144/'Population 2016'!AP$5","v":8.1955518919518723E-3},{"$f":"'Population 2016'!AQ144/'Population 2016'!AQ$5","v":7.0354030799583489E-3},{"$f":"'Population 2016'!AR144/'Population 2016'!AR$5","v":7.4164868295036766E-3},{"$f":"'Population 2016'!AS144/'Population 2016'!AS$5","v":1.2572230131479775E-2},{"$f":"'Population 2016'!AT144/'Population 2016'!AT$5","v":1.0439183845626615E-2},{"$f":"'Population 2016'!AU144/'Population 2016'!AU$5","v":1.0439183845626615E-2},{"$f":"'Population 2016'!AV144/'Population 2016'!AV$5","v":7.8872347165030096E-3},{"$f":"'Population 2016'!AW144/'Population 2016'!AW$5","v":7.2609677222527308E-3},{"$f":"'Population 2016'!AX144/'Population 2016'!AX$5","v":6.1336366075878199E-3},{"$f":"'Population 2016'!AY144/'Population 2016'!AY$5","v":7.8608365717083312E-3},{"$f":"'Population 2016'!AZ144/'Population 2016'!AZ$5","v":7.7776691154051924E-3},{"$f":"'Population 2016'!BA144/'Population 2016'!BA$5","v":5.4523860937162596E-3},{"$f":"'Population 2016'!BB144/'Population 2016'!BB$5","v":8.9971896729110715E-3},{"$f":"'Population 2016'!BC144/'Population 2016'!BC$5","v":2.5406099234276103E-2},142]
[null,"Female 45-49",{"$f":"'Population 2016'!C145/'Population 2016'!C$5","v":4.5744251302050057E-3},{"$f":"'Population 2016'!D145/'Population 2016'!D$5","v":7.2816720949111426E-3},{"$f":"'Population 2016'!E145/'Population 2016'!E$5","v":9.7647185670287229E-3},{"$f":"'Population 2016'!F145/'Population 2016'!F$5","v":1.4576358485706927E-2},{"$f":"'Population 2016'!G145/'Population 2016'!G$5","v":1.7512044605640664E-2},{"$f":"'Population 2016'!H145/'Population 2016'!H$5","v":8.2486795303699911E-3},{"$f":"'Population 2016'!I145/'Population 2016'!I$5","v":1.622560924545683E-2},{"$f":"'Population 2016'!J145/'Population 2016'!J$5","v":7.7954603882802714E-3},{"$f":"'Population 2016'!K145/'Population 2016'!K$5","v":9.2850730047724806E-3},{"$f":"'Population 2016'!L145/'Population 2016'!L$5","v":1.717154067320064E-2},{"$f":"'Population 2016'!M145/'Population 2016'!M$5","v":1.717154067320064E-2},{"$f":"'Population 2016'!N145/'Population 2016'!N$5","v":4.3079544449891897E-3},{"$f":"'Population 2016'!O145/'Population 2016'!O$5","v":8.5990826324288446E-3},{"$f":"'Population 2016'!P145/'Population 2016'!P$5","v":3.4937450693113942E-3},{"$f":"'Population 2016'!Q145/'Population 2016'!Q$5","v":1.1069200126908027E-2},{"$f":"'Population 2016'!R145/'Population 2016'!R$5","v":4.7506254324799066E-3},{"$f":"'Population 2016'!S145/'Population 2016'!S$5","v":8.9227868681715384E-3},{"$f":"'Population 2016'!T145/'Population 2016'!T$5","v":4.8719654914077511E-3},{"$f":"'Population 2016'!U145/'Population 2016'!U$5","v":3.1381401318992606E-2},{"$f":"'Population 2016'!V145/'Population 2016'!V$5","v":8.6169392692774446E-3},{"$f":"'Population 2016'!W145/'Population 2016'!W$5","v":9.8967832186117044E-3},{"$f":"'Population 2016'!X145/'Population 2016'!X$5","v":9.8967832186117044E-3},{"$f":"'Population 2016'!Y145/'Population 2016'!Y$5","v":8.2232396941225097E-3},{"$f":"'Population 2016'!Z145/'Population 2016'!Z$5","v":5.2924699419067221E-3},{"$f":"'Population 2016'!AA145/'Population 2016'!AA$5","v":7.2258242827824603E-3},{"$f":"'Population 2016'!AB145/'Population 2016'!AB$5","v":8.1430457611332309E-3},{"$f":"'Population 2016'!AC145/'Population 2016'!AC$5","v":6.0475237939601302E-3},{"$f":"'Population 2016'!AD145/'Population 2016'!AD$5","v":1.5560683315344822E-2},{"$f":"'Population 2016'!AE145/'Population 2016'!AE$5","v":1.4820480703087301E-2},{"$f":"'Population 2016'!AF145/'Population 2016'!AF$5","v":7.374564538750396E-3},{"$f":"'Population 2016'!AG145/'Population 2016'!AG$5","v":1.4820480703087301E-2},{"$f":"'Population 2016'!AH145/'Population 2016'!AH$5","v":9.3421138181176457E-3},{"$f":"'Population 2016'!AI145/'Population 2016'!AI$5","v":7.5616305013561994E-3},{"$f":"'Population 2016'!AJ145/'Population 2016'!AJ$5","v":1.2115550846276106E-2},{"$f":"'Population 2016'!AK145/'Population 2016'!AK$5","v":1.257181650176634E-2},{"$f":"'Population 2016'!AL145/'Population 2016'!AL$5","v":6.5979674003653717E-3},{"$f":"'Population 2016'!AM145/'Population 2016'!AM$5","v":9.0622294823083701E-3},{"$f":"'Population 2016'!AN145/'Population 2016'!AN$5","v":1.4181302498090978E-2},{"$f":"'Population 2016'!AO145/'Population 2016'!AO$5","v":1.4181302498090978E-2},{"$f":"'Population 2016'!AP145/'Population 2016'!AP$5","v":1.0850783887893727E-2},{"$f":"'Population 2016'!AQ145/'Population 2016'!AQ$5","v":9.4330574889022849E-3},{"$f":"'Population 2016'!AR145/'Population 2016'!AR$5","v":9.0198167298352356E-3},{"$f":"'Population 2016'!AS145/'Population 2016'!AS$5","v":1.622560924545683E-2},{"$f":"'Population 2016'!AT145/'Population 2016'!AT$5","v":1.4762482205936628E-2},{"$f":"'Population 2016'!AU145/'Population 2016'!AU$5","v":1.4762482205936628E-2},{"$f":"'Population 2016'!AV145/'Population 2016'!AV$5","v":9.8405659381269137E-3},{"$f":"'Population 2016'!AW145/'Population 2016'!AW$5","v":9.6367990725486612E-3},{"$f":"'Population 2016'!AX145/'Population 2016'!AX$5","v":6.9897900507302864E-3},{"$f":"'Population 2016'!AY145/'Population 2016'!AY$5","v":9.7120651142865878E-3},{"$f":"'Population 2016'!AZ145/'Population 2016'!AZ$5","v":9.5495049789738311E-3},{"$f":"'Population 2016'!BA145/'Population 2016'!BA$5","v":7.827683005830274E-3},{"$f":"'Population 2016'!BB145/'Population 2016'!BB$5","v":1.1227498394592019E-2},{"$f":"'Population 2016'!BC145/'Population 2016'!BC$5","v":3.1381401318992606E-2},143]
[null,"Female 50-54",{"$f":"'Population 2016'!C146/'Population 2016'!C$5","v":5.0906451728314926E-3},{"$f":"'Population 2016'!D146/'Population 2016'!D$5","v":7.5164069911876604E-3},{"$f":"'Population 2016'!E146/'Population 2016'!E$5","v":9.7412794922158829E-3},{"$f":"'Population 2016'!F146/'Population 2016'!F$5","v":1.6358485706927633E-2},{"$f":"'Population 2016'!G146/'Population 2016'!G$5","v":2.1815622800844477E-2},{"$f":"'Population 2016'!H146/'Population 2016'!H$5","v":9.1597954690625875E-3},{"$f":"'Population 2016'!I146/'Population 2016'!I$5","v":1.6675739050330794E-2},{"$f":"'Population 2016'!J146/'Population 2016'!J$5","v":8.2681638373568421E-3},{"$f":"'Population 2016'!K146/'Population 2016'!K$5","v":9.5685866843075174E-3},{"$f":"'Population 2016'!L146/'Population 2016'!L$5","v":1.8585293790605691E-2},{"$f":"'Population 2016'!M146/'Population 2016'!M$5","v":1.8585293790605691E-2},{"$f":"'Population 2016'!N146/'Population 2016'!N$5","v":5.3045707718150474E-3},{"$f":"'Population 2016'!O146/'Population 2016'!O$5","v":9.1736757115542748E-3},{"$f":"'Population 2016'!P146/'Population 2016'!P$5","v":2.9978586723768737E-3},{"$f":"'Population 2016'!Q146/'Population 2016'!Q$5","v":9.9763810060986349E-3},{"$f":"'Population 2016'!R146/'Population 2016'!R$5","v":5.3760579123862248E-3},{"$f":"'Population 2016'!S146/'Population 2016'!S$5","v":9.0675427338734026E-3},{"$f":"'Population 2016'!T146/'Population 2016'!T$5","v":4.8161263453744248E-3},{"$f":"'Population 2016'!U146/'Population 2016'!U$5","v":3.1824016288230866E-2},{"$f":"'Population 2016'!V146/'Population 2016'!V$5","v":9.1283076758687538E-3},{"$f":"'Population 2016'!W146/'Population 2016'!W$5","v":1.0691009877172683E-2},{"$f":"'Population 2016'!X146/'Population 2016'!X$5","v":1.0691009877172683E-2},{"$f":"'Population 2016'!Y146/'Population 2016'!Y$5","v":8.7160776458243914E-3},{"$f":"'Population 2016'!Z146/'Population 2016'!Z$5","v":5.5383162047531569E-3},{"$f":"'Population 2016'!AA146/'Population 2016'!AA$5","v":7.2876118571019504E-3},{"$f":"'Population 2016'!AB146/'Population 2016'!AB$5","v":8.5319795707398949E-3},{"$f":"'Population 2016'!AC146/'Population 2016'!AC$5","v":6.1819821646142805E-3},{"$f":"'Population 2016'!AD146/'Population 2016'!AD$5","v":1.7637426029997395E-2},{"$f":"'Population 2016'!AE146/'Population 2016'!AE$5","v":1.6052526206634565E-2},{"$f":"'Population 2016'!AF146/'Population 2016'!AF$5","v":8.2341763561507488E-3},{"$f":"'Population 2016'!AG146/'Population 2016'!AG$5","v":1.6052526206634565E-2},{"$f":"'Population 2016'!AH146/'Population 2016'!AH$5","v":9.273380827210834E-3},{"$f":"'Population 2016'!AI146/'Population 2016'!AI$5","v":7.3948398810044624E-3},{"$f":"'Population 2016'!AJ146/'Population 2016'!AJ$5","v":1.219920252070379E-2},{"$f":"'Population 2016'!AK146/'Population 2016'!AK$5","v":1.3753567252932376E-2},{"$f":"'Population 2016'!AL146/'Population 2016'!AL$5","v":7.0768521310370517E-3},{"$f":"'Population 2016'!AM146/'Population 2016'!AM$5","v":8.7942019116885369E-3},{"$f":"'Population 2016'!AN146/'Population 2016'!AN$5","v":1.5490345805607068E-2},{"$f":"'Population 2016'!AO146/'Population 2016'!AO$5","v":1.5490345805607068E-2},{"$f":"'Population 2016'!AP146/'Population 2016'!AP$5","v":1.1865320292313301E-2},{"$f":"'Population 2016'!AQ146/'Population 2016'!AQ$5","v":9.1042363128185453E-3},{"$f":"'Population 2016'!AR146/'Population 2016'!AR$5","v":9.4762878936228371E-3},{"$f":"'Population 2016'!AS146/'Population 2016'!AS$5","v":1.6675739050330794E-2},{"$f":"'Population 2016'!AT146/'Population 2016'!AT$5","v":1.4867928507407603E-2},{"$f":"'Population 2016'!AU146/'Population 2016'!AU$5","v":1.4867928507407603E-2},{"$f":"'Population 2016'!AV146/'Population 2016'!AV$5","v":1.162496040544821E-2},{"$f":"'Population 2016'!AW146/'Population 2016'!AW$5","v":9.7778998108487402E-3},{"$f":"'Population 2016'!AX146/'Population 2016'!AX$5","v":7.5648184826916445E-3},{"$f":"'Population 2016'!AY146/'Population 2016'!AY$5","v":1.0734065665065328E-2},{"$f":"'Population 2016'!AZ146/'Population 2016'!AZ$5","v":1.0771956670559336E-2},{"$f":"'Population 2016'!BA146/'Population 2016'!BA$5","v":7.7062189591880804E-3},{"$f":"'Population 2016'!BB146/'Population 2016'!BB$5","v":1.1151543608404743E-2},{"$f":"'Population 2016'!BC146/'Population 2016'!BC$5","v":3.1824016288230866E-2},144]
[null,"Female 55-59",{"$f":"'Population 2016'!C147/'Population 2016'!C$5","v":4.6306471150455147E-3},{"$f":"'Population 2016'!D147/'Population 2016'!D$5","v":6.7681895093062603E-3},{"$f":"'Population 2016'!E147/'Population 2016'!E$5","v":8.7287114603012382E-3},{"$f":"'Population 2016'!F147/'Population 2016'!F$5","v":1.5884625289724438E-2},{"$f":"'Population 2016'!G147/'Population 2016'!G$5","v":2.0123964705245495E-2},{"$f":"'Population 2016'!H147/'Population 2016'!H$5","v":8.1060136894359185E-3},{"$f":"'Population 2016'!I147/'Population 2016'!I$5","v":1.6434971945398207E-2},{"$f":"'Population 2016'!J147/'Population 2016'!J$5","v":7.4471525836975359E-3},{"$f":"'Population 2016'!K147/'Population 2016'!K$5","v":9.1196900250437082E-3},{"$f":"'Population 2016'!L147/'Population 2016'!L$5","v":1.7258907438882976E-2},{"$f":"'Population 2016'!M147/'Population 2016'!M$5","v":1.7258907438882976E-2},{"$f":"'Population 2016'!N147/'Population 2016'!N$5","v":5.1277517460878788E-3},{"$f":"'Population 2016'!O147/'Population 2016'!O$5","v":8.0046759988508139E-3},{"$f":"'Population 2016'!P147/'Population 2016'!P$5","v":3.1443705623802548E-3},{"$f":"'Population 2016'!Q147/'Population 2016'!Q$5","v":9.8236213440500118E-3},{"$f":"'Population 2016'!R147/'Population 2016'!R$5","v":5.2562942460211851E-3},{"$f":"'Population 2016'!S147/'Population 2016'!S$5","v":8.2554976335946582E-3},{"$f":"'Population 2016'!T147/'Population 2016'!T$5","v":4.2367952052786602E-3},{"$f":"'Population 2016'!U147/'Population 2016'!U$5","v":3.0230602398973135E-2},{"$f":"'Population 2016'!V147/'Population 2016'!V$5","v":8.1666297769059926E-3},{"$f":"'Population 2016'!W147/'Population 2016'!W$5","v":9.7627778976199352E-3},{"$f":"'Population 2016'!X147/'Population 2016'!X$5","v":9.7627778976199352E-3},{"$f":"'Population 2016'!Y147/'Population 2016'!Y$5","v":7.8218152334621066E-3},{"$f":"'Population 2016'!Z147/'Population 2016'!Z$5","v":4.9459622171074153E-3},{"$f":"'Population 2016'!AA147/'Population 2016'!AA$5","v":6.7680647268025858E-3},{"$f":"'Population 2016'!AB147/'Population 2016'!AB$5","v":7.623102668290636E-3},{"$f":"'Population 2016'!AC147/'Population 2016'!AC$5","v":5.7072406866892416E-3},{"$f":"'Population 2016'!AD147/'Population 2016'!AD$5","v":1.6773977446127509E-2},{"$f":"'Population 2016'!AE147/'Population 2016'!AE$5","v":1.5503239252969743E-2},{"$f":"'Population 2016'!AF147/'Population 2016'!AF$5","v":8.611199083080728E-3},{"$f":"'Population 2016'!AG147/'Population 2016'!AG$5","v":1.5503239252969743E-2},{"$f":"'Population 2016'!AH147/'Population 2016'!AH$5","v":8.6733603930784029E-3},{"$f":"'Population 2016'!AI147/'Population 2016'!AI$5","v":6.5567853705486047E-3},{"$f":"'Population 2016'!AJ147/'Population 2016'!AJ$5","v":1.0651646543791651E-2},{"$f":"'Population 2016'!AK147/'Population 2016'!AK$5","v":1.2018656575688621E-2},{"$f":"'Population 2016'!AL147/'Population 2016'!AL$5","v":6.7753321154289566E-3},{"$f":"'Population 2016'!AM147/'Population 2016'!AM$5","v":7.7655555595799938E-3},{"$f":"'Population 2016'!AN147/'Population 2016'!AN$5","v":1.3308606959746918E-2},{"$f":"'Population 2016'!AO147/'Population 2016'!AO$5","v":1.3308606959746918E-2},{"$f":"'Population 2016'!AP147/'Population 2016'!AP$5","v":1.0874562084872311E-2},{"$f":"'Population 2016'!AQ147/'Population 2016'!AQ$5","v":8.0287170493779803E-3},{"$f":"'Population 2016'!AR147/'Population 2016'!AR$5","v":8.7224087241463896E-3},{"$f":"'Population 2016'!AS147/'Population 2016'!AS$5","v":1.6434971945398207E-2},{"$f":"'Population 2016'!AT147/'Population 2016'!AT$5","v":1.3813465492697843E-2},{"$f":"'Population 2016'!AU147/'Population 2016'!AU$5","v":1.3813465492697843E-2},{"$f":"'Population 2016'!AV147/'Population 2016'!AV$5","v":9.7983317495512617E-3},{"$f":"'Population 2016'!AW147/'Population 2016'!AW$5","v":9.6291720056135219E-3},{"$f":"'Population 2016'!AX147/'Population 2016'!AX$5","v":6.5425457147603406E-3},{"$f":"'Population 2016'!AY147/'Population 2016'!AY$5","v":1.0004283834643983E-2},{"$f":"'Population 2016'!AZ147/'Population 2016'!AZ$5","v":1.0216819784733449E-2},{"$f":"'Population 2016'!BA147/'Population 2016'!BA$5","v":7.368818829626431E-3},{"$f":"'Population 2016'!BB147/'Population 2016'!BB$5","v":9.4943482734096106E-3},{"$f":"'Population 2016'!BC147/'Population 2016'!BC$5","v":3.0230602398973135E-2},145]
[null,"Female 60-64",{"$f":"'Population 2016'!C148/'Population 2016'!C$5","v":4.2984262955334191E-3},{"$f":"'Population 2016'!D148/'Population 2016'!D$5","v":6.460099957943331E-3},{"$f":"'Population 2016'!E148/'Population 2016'!E$5","v":8.4427547475846038E-3},{"$f":"'Population 2016'!F148/'Population 2016'!F$5","v":1.4030388874581509E-2},{"$f":"'Population 2016'!G148/'Population 2016'!G$5","v":1.9934498998538407E-2},{"$f":"'Population 2016'!H148/'Population 2016'!H$5","v":7.4510477833294965E-3},{"$f":"'Population 2016'!I148/'Population 2016'!I$5","v":1.4812411020852526E-2},{"$f":"'Population 2016'!J148/'Population 2016'!J$5","v":6.9081047908909213E-3},{"$f":"'Population 2016'!K148/'Population 2016'!K$5","v":7.7021216273685201E-3},{"$f":"'Population 2016'!L148/'Population 2016'!L$5","v":1.6925325242641336E-2},{"$f":"'Population 2016'!M148/'Population 2016'!M$5","v":1.6925325242641336E-2},{"$f":"'Population 2016'!N148/'Population 2016'!N$5","v":4.2275821605677498E-3},{"$f":"'Population 2016'!O148/'Population 2016'!O$5","v":6.5979136327161412E-3},{"$f":"'Population 2016'!P148/'Population 2016'!P$5","v":2.7048348923701115E-3},{"$f":"'Population 2016'!Q148/'Population 2016'!Q$5","v":8.5662918179574866E-3},{"$f":"'Population 2016'!R148/'Population 2016'!R$5","v":4.5643263959120666E-3},{"$f":"'Population 2016'!S148/'Population 2016'!S$5","v":7.0745016073197036E-3},{"$f":"'Population 2016'!T148/'Population 2016'!T$5","v":3.4573737918968091E-3},{"$f":"'Population 2016'!U148/'Population 2016'!U$5","v":3.0673217368211395E-2},{"$f":"'Population 2016'!V148/'Population 2016'!V$5","v":7.403393349157769E-3},{"$f":"'Population 2016'!W148/'Population 2016'!W$5","v":8.4357983775550892E-3},{"$f":"'Population 2016'!X148/'Population 2016'!X$5","v":8.4357983775550892E-3},{"$f":"'Population 2016'!Y148/'Population 2016'!Y$5","v":7.1660227977297661E-3},{"$f":"'Population 2016'!Z148/'Population 2016'!Z$5","v":3.6431706037558342E-3},{"$f":"'Population 2016'!AA148/'Population 2016'!AA$5","v":5.5117173823062979E-3},{"$f":"'Population 2016'!AB148/'Population 2016'!AB$5","v":7.1768522972682517E-3},{"$f":"'Population 2016'!AC148/'Population 2016'!AC$5","v":4.5209041394560848E-3},{"$f":"'Population 2016'!AD148/'Population 2016'!AD$5","v":1.5772823700174923E-2},{"$f":"'Population 2016'!AE148/'Population 2016'!AE$5","v":1.4194190905450774E-2},{"$f":"'Population 2016'!AF148/'Population 2016'!AF$5","v":5.9871209036480716E-3},{"$f":"'Population 2016'!AG148/'Population 2016'!AG$5","v":1.4194190905450774E-2},{"$f":"'Population 2016'!AH148/'Population 2016'!AH$5","v":7.2912699813306335E-3},{"$f":"'Population 2016'!AI148/'Population 2016'!AI$5","v":5.4945205179805761E-3},{"$f":"'Population 2016'!AJ148/'Population 2016'!AJ$5","v":9.0483227839277258E-3},{"$f":"'Population 2016'!AK148/'Population 2016'!AK$5","v":1.0862049457526118E-2},{"$f":"'Population 2016'!AL148/'Population 2016'!AL$5","v":6.7575956439225983E-3},{"$f":"'Population 2016'!AM148/'Population 2016'!AM$5","v":6.5739194685810109E-3},{"$f":"'Population 2016'!AN148/'Population 2016'!AN$5","v":1.2054107123377332E-2},{"$f":"'Population 2016'!AO148/'Population 2016'!AO$5","v":1.2054107123377332E-2},{"$f":"'Population 2016'!AP148/'Population 2016'!AP$5","v":9.7886910895169862E-3},{"$f":"'Population 2016'!AQ148/'Population 2016'!AQ$5","v":6.9668986682742372E-3},{"$f":"'Population 2016'!AR148/'Population 2016'!AR$5","v":7.704760956366124E-3},{"$f":"'Population 2016'!AS148/'Population 2016'!AS$5","v":1.4812411020852526E-2},{"$f":"'Population 2016'!AT148/'Population 2016'!AT$5","v":1.3760742341962355E-2},{"$f":"'Population 2016'!AU148/'Population 2016'!AU$5","v":1.3760742341962355E-2},{"$f":"'Population 2016'!AV148/'Population 2016'!AV$5","v":9.1859360152043087E-3},{"$f":"'Population 2016'!AW148/'Population 2016'!AW$5","v":8.0465556165720906E-3},{"$f":"'Population 2016'!AX148/'Population 2016'!AX$5","v":6.4786536667646348E-3},{"$f":"'Population 2016'!AY148/'Population 2016'!AY$5","v":8.7267831461705584E-3},{"$f":"'Population 2016'!AZ148/'Population 2016'!AZ$5","v":8.9828626654624311E-3},{"$f":"'Population 2016'!BA148/'Population 2016'!BA$5","v":6.6400345497732672E-3},{"$f":"'Population 2016'!BB148/'Population 2016'!BB$5","v":7.9752525496640733E-3},{"$f":"'Population 2016'!BC148/'Population 2016'!BC$5","v":3.0673217368211395E-2},146]
[null,"Female 65-69",{"$f":"'Population 2016'!C149/'Population 2016'!C$5","v":4.0582050875785187E-3},{"$f":"'Population 2016'!D149/'Population 2016'!D$5","v":6.3671840615005431E-3},{"$f":"'Population 2016'!E149/'Population 2016'!E$5","v":8.4849450822477128E-3},{"$f":"'Population 2016'!F149/'Population 2016'!F$5","v":1.4864795261395829E-2},{"$f":"'Population 2016'!G149/'Population 2016'!G$5","v":2.105775997401613E-2},{"$f":"'Population 2016'!H149/'Population 2016'!H$5","v":8.028195958017334E-3},{"$f":"'Population 2016'!I149/'Population 2016'!I$5","v":1.5859224520559417E-2},{"$f":"'Population 2016'!J149/'Population 2016'!J$5","v":6.8251743612283656E-3},{"$f":"'Population 2016'!K149/'Population 2016'!K$5","v":8.4817842460898733E-3},{"$f":"'Population 2016'!L149/'Population 2016'!L$5","v":1.82437691611202E-2},{"$f":"'Population 2016'!M149/'Population 2016'!M$5","v":1.82437691611202E-2},{"$f":"'Population 2016'!N149/'Population 2016'!N$5","v":4.4044011862949184E-3},{"$f":"'Population 2016'!O149/'Population 2016'!O$5","v":7.6282184642513942E-3},{"$f":"'Population 2016'!P149/'Population 2016'!P$5","v":2.378000676208723E-3},{"$f":"'Population 2016'!Q149/'Population 2016'!Q$5","v":8.6837992503025815E-3},{"$f":"'Population 2016'!R149/'Population 2016'!R$5","v":4.3514132112631079E-3},{"$f":"'Population 2016'!S149/'Population 2016'!S$5","v":7.4107941977612267E-3},{"$f":"'Population 2016'!T149/'Population 2016'!T$5","v":3.3084694024746049E-3},{"$f":"'Population 2016'!U149/'Population 2016'!U$5","v":3.1292878325144956E-2},{"$f":"'Population 2016'!V149/'Population 2016'!V$5","v":7.7544821059219518E-3},{"$f":"'Population 2016'!W149/'Population 2016'!W$5","v":9.2267566136528551E-3},{"$f":"'Population 2016'!X149/'Population 2016'!X$5","v":9.2267566136528551E-3},{"$f":"'Population 2016'!Y149/'Population 2016'!Y$5","v":7.309104783707731E-3},{"$f":"'Population 2016'!Z149/'Population 2016'!Z$5","v":3.093404157705538E-3},{"$f":"'Population 2016'!AA149/'Population 2016'!AA$5","v":5.1576014993784704E-3},{"$f":"'Population 2016'!AB149/'Population 2016'!AB$5","v":7.156382096762638E-3},{"$f":"'Population 2016'!AC149/'Population 2016'!AC$5","v":4.1971697547272457E-3},{"$f":"'Population 2016'!AD149/'Population 2016'!AD$5","v":1.6159886858461425E-2},{"$f":"'Population 2016'!AE149/'Population 2016'!AE$5","v":1.4301994887011161E-2},{"$f":"'Population 2016'!AF149/'Population 2016'!AF$5","v":5.9569590854936733E-3},{"$f":"'Population 2016'!AG149/'Population 2016'!AG$5","v":1.4301994887011161E-2},{"$f":"'Population 2016'!AH149/'Population 2016'!AH$5","v":6.8825873326955403E-3},{"$f":"'Population 2016'!AI149/'Population 2016'!AI$5","v":5.5478388310438356E-3},{"$f":"'Population 2016'!AJ149/'Population 2016'!AJ$5","v":1.0038200931321975E-2},{"$f":"'Population 2016'!AK149/'Population 2016'!AK$5","v":1.1214060319575576E-2},{"$f":"'Population 2016'!AL149/'Population 2016'!AL$5","v":6.9526968304925415E-3},{"$f":"'Population 2016'!AM149/'Population 2016'!AM$5","v":6.4978575904321399E-3},{"$f":"'Population 2016'!AN149/'Population 2016'!AN$5","v":1.2381367950256354E-2},{"$f":"'Population 2016'!AO149/'Population 2016'!AO$5","v":1.2381367950256354E-2},{"$f":"'Population 2016'!AP149/'Population 2016'!AP$5","v":1.0248402897769605E-2},{"$f":"'Population 2016'!AQ149/'Population 2016'!AQ$5","v":7.1381596974845179E-3},{"$f":"'Population 2016'!AR149/'Population 2016'!AR$5","v":7.8108030617652932E-3},{"$f":"'Population 2016'!AS149/'Population 2016'!AS$5","v":1.5859224520559417E-2},{"$f":"'Population 2016'!AT149/'Population 2016'!AT$5","v":1.233721727210418E-2},{"$f":"'Population 2016'!AU149/'Population 2016'!AU$5","v":1.233721727210418E-2},{"$f":"'Population 2016'!AV149/'Population 2016'!AV$5","v":9.7349804666877846E-3},{"$f":"'Population 2016'!AW149/'Population 2016'!AW$5","v":7.2876624565257186E-3},{"$f":"'Population 2016'!AX149/'Population 2016'!AX$5","v":5.9291820540015592E-3},{"$f":"'Population 2016'!AY149/'Population 2016'!AY$5","v":9.3433493467152164E-3},{"$f":"'Population 2016'!AZ149/'Population 2016'!AZ$5","v":9.4459561298042352E-3},{"$f":"'Population 2016'!BA149/'Population 2016'!BA$5","v":6.5455625134960048E-3},{"$f":"'Population 2016'!BB149/'Population 2016'!BB$5","v":8.127162122038626E-3},{"$f":"'Population 2016'!BC149/'Population 2016'!BC$5","v":3.1292878325144956E-2},147]
[null,"Female 70-74",{"$f":"'Population 2016'!C150/'Population 2016'!C$5","v":3.0615426290422328E-3},{"$f":"'Population 2016'!D150/'Population 2016'!D$5","v":4.7362655634126541E-3},{"$f":"'Population 2016'!E150/'Population 2016'!E$5","v":6.2722964199157134E-3},{"$f":"'Population 2016'!F150/'Population 2016'!F$5","v":1.1176925057944887E-2},{"$f":"'Population 2016'!G150/'Population 2016'!G$5","v":1.5698587127158554E-2},{"$f":"'Population 2016'!H150/'Population 2016'!H$5","v":6.4750837351214121E-3},{"$f":"'Population 2016'!I150/'Population 2016'!I$5","v":1.1965078301649779E-2},{"$f":"'Population 2016'!J150/'Population 2016'!J$5","v":5.4485292288299347E-3},{"$f":"'Population 2016'!K150/'Population 2016'!K$5","v":6.5916930491896238E-3},{"$f":"'Population 2016'!L150/'Population 2016'!L$5","v":1.4844407732753006E-2},{"$f":"'Population 2016'!M150/'Population 2016'!M$5","v":1.4844407732753006E-2},{"$f":"'Population 2016'!N150/'Population 2016'!N$5","v":3.3354498034897646E-3},{"$f":"'Population 2016'!O150/'Population 2016'!O$5","v":6.023320553590711E-3},{"$f":"'Population 2016'!P150/'Population 2016'!P$5","v":1.8257635523498254E-3},{"$f":"'Population 2016'!Q150/'Population 2016'!Q$5","v":6.9211877651261444E-3},{"$f":"'Population 2016'!R150/'Population 2016'!R$5","v":3.4731463245861499E-3},{"$f":"'Population 2016'!S150/'Population 2016'!S$5","v":5.6675452053150119E-3},{"$f":"'Population 2016'!T150/'Population 2016'!T$5","v":2.4801887363135925E-3},{"$f":"'Population 2016'!U150/'Population 2016'!U$5","v":2.5450360731199929E-2},{"$f":"'Population 2016'!V150/'Population 2016'!V$5","v":5.5639935582845494E-3},{"$f":"'Population 2016'!W150/'Population 2016'!W$5","v":7.0238398734466826E-3},{"$f":"'Population 2016'!X150/'Population 2016'!X$5","v":7.0238398734466826E-3},{"$f":"'Population 2016'!Y150/'Population 2016'!Y$5","v":5.5086564601516666E-3},{"$f":"'Population 2016'!Z150/'Population 2016'!Z$5","v":2.4042603027974209E-3},{"$f":"'Population 2016'!AA150/'Population 2016'!AA$5","v":4.0925963205167299E-3},{"$f":"'Population 2016'!AB150/'Population 2016'!AB$5","v":5.510577976111276E-3},{"$f":"'Population 2016'!AC150/'Population 2016'!AC$5","v":3.2487210940360472E-3},{"$f":"'Population 2016'!AD150/'Population 2016'!AD$5","v":1.263165730023447E-2},{"$f":"'Population 2016'!AE150/'Population 2016'!AE$5","v":1.1468290228852452E-2},{"$f":"'Population 2016'!AF150/'Population 2016'!AF$5","v":4.9616190863985285E-3},{"$f":"'Population 2016'!AG150/'Population 2016'!AG$5","v":1.1468290228852452E-2},{"$f":"'Population 2016'!AH150/'Population 2016'!AH$5","v":5.6082405283152054E-3},{"$f":"'Population 2016'!AI150/'Population 2016'!AI$5","v":4.2777692711523322E-3},{"$f":"'Population 2016'!AJ150/'Population 2016'!AJ$5","v":7.5983604271812177E-3},{"$f":"'Population 2016'!AK150/'Population 2016'!AK$5","v":9.4917214588335873E-3},{"$f":"'Population 2016'!AL150/'Population 2016'!AL$5","v":5.7909579468260588E-3},{"$f":"'Population 2016'!AM150/'Population 2016'!AM$5","v":5.0925238417768052E-3},{"$f":"'Population 2016'!AN150/'Population 2016'!AN$5","v":1.2490454892549362E-2},{"$f":"'Population 2016'!AO150/'Population 2016'!AO$5","v":1.2490454892549362E-2},{"$f":"'Population 2016'!AP150/'Population 2016'!AP$5","v":8.8692674730117462E-3},{"$f":"'Population 2016'!AQ150/'Population 2016'!AQ$5","v":5.4461007288869401E-3},{"$f":"'Population 2016'!AR150/'Population 2016'!AR$5","v":6.1393032365342675E-3},{"$f":"'Population 2016'!AS150/'Population 2016'!AS$5","v":1.1965078301649779E-2},{"$f":"'Population 2016'!AT150/'Population 2016'!AT$5","v":1.1388200558865398E-2},{"$f":"'Population 2016'!AU150/'Population 2016'!AU$5","v":1.1388200558865398E-2},{"$f":"'Population 2016'!AV150/'Population 2016'!AV$5","v":7.7710906979199662E-3},{"$f":"'Population 2016'!AW150/'Population 2016'!AW$5","v":6.1512294831899449E-3},{"$f":"'Population 2016'!AX150/'Population 2016'!AX$5","v":4.8302388284754078E-3},{"$f":"'Population 2016'!AY150/'Population 2016'!AY$5","v":7.2947584223248983E-3},{"$f":"'Population 2016'!AZ150/'Population 2016'!AZ$5","v":7.5331787770880915E-3},{"$f":"'Population 2016'!BA150/'Population 2016'!BA$5","v":4.7505938242280287E-3},{"$f":"'Population 2016'!BB150/'Population 2016'!BB$5","v":6.4147269425436568E-3},{"$f":"'Population 2016'!BC150/'Population 2016'!BC$5","v":2.5450360731199929E-2},148]
[null,"Female 75-79",{"$f":"'Population 2016'!C151/'Population 2016'!C$5","v":2.8264325106182884E-3},{"$f":"'Population 2016'!D151/'Population 2016'!D$5","v":3.9073579609362006E-3},{"$f":"'Population 2016'!E151/'Population 2016'!E$5","v":4.8987666358833483E-3},{"$f":"'Population 2016'!F151/'Population 2016'!F$5","v":8.4264743754828737E-3},{"$f":"'Population 2016'!G151/'Population 2016'!G$5","v":1.2910734585611433E-2},{"$f":"'Population 2016'!H151/'Population 2016'!H$5","v":4.7955176986702892E-3},{"$f":"'Population 2016'!I151/'Population 2016'!I$5","v":9.6411523323004771E-3},{"$f":"'Population 2016'!J151/'Population 2016'!J$5","v":4.4533640728792612E-3},{"$f":"'Population 2016'!K151/'Population 2016'!K$5","v":5.1268723715919293E-3},{"$f":"'Population 2016'!L151/'Population 2016'!L$5","v":1.1294140072752689E-2},{"$f":"'Population 2016'!M151/'Population 2016'!M$5","v":1.1294140072752689E-2},{"$f":"'Population 2016'!N151/'Population 2016'!N$5","v":3.2148913768576043E-3},{"$f":"'Population 2016'!O151/'Population 2016'!O$5","v":4.289634538988122E-3},{"$f":"'Population 2016'!P151/'Population 2016'!P$5","v":1.3411473008001803E-3},{"$f":"'Population 2016'!Q151/'Population 2016'!Q$5","v":5.8871223604893006E-3},{"$f":"'Population 2016'!R151/'Population 2016'!R$5","v":3.41991802842391E-3},{"$f":"'Population 2016'!S151/'Population 2016'!S$5","v":4.5236208031832169E-3},{"$f":"'Population 2016'!T151/'Population 2016'!T$5","v":2.0753549275719743E-3},{"$f":"'Population 2016'!U151/'Population 2016'!U$5","v":2.2529101934227417E-2},{"$f":"'Population 2016'!V151/'Population 2016'!V$5","v":4.6099480235992701E-3},{"$f":"'Population 2016'!W151/'Population 2016'!W$5","v":5.5203655403682859E-3},{"$f":"'Population 2016'!X151/'Population 2016'!X$5","v":5.5203655403682859E-3},{"$f":"'Population 2016'!Y151/'Population 2016'!Y$5","v":4.5349040555794024E-3},{"$f":"'Population 2016'!Z151/'Population 2016'!Z$5","v":2.0093576443669264E-3},{"$f":"'Population 2016'!AA151/'Population 2016'!AA$5","v":3.4109398554436512E-3},{"$f":"'Population 2016'!AB151/'Population 2016'!AB$5","v":4.5177732515889997E-3},{"$f":"'Population 2016'!AC151/'Population 2016'!AC$5","v":2.7274363339614954E-3},{"$f":"'Population 2016'!AD151/'Population 2016'!AD$5","v":9.6356395846514571E-3},{"$f":"'Population 2016'!AE151/'Population 2016'!AE$5","v":8.3933099929157391E-3},{"$f":"'Population 2016'!AF151/'Population 2016'!AF$5","v":4.4639490868509553E-3},{"$f":"'Population 2016'!AG151/'Population 2016'!AG$5","v":8.3933099929157391E-3},{"$f":"'Population 2016'!AH151/'Population 2016'!AH$5","v":4.638548062008304E-3},{"$f":"'Population 2016'!AI151/'Population 2016'!AI$5","v":3.4383476244640825E-3},{"$f":"'Population 2016'!AJ151/'Population 2016'!AJ$5","v":5.9950366673172904E-3},{"$f":"'Population 2016'!AK151/'Population 2016'!AK$5","v":7.6562362495757015E-3},{"$f":"'Population 2016'!AL151/'Population 2016'!AL$5","v":4.5848778843936783E-3},{"$f":"'Population 2016'!AM151/'Population 2016'!AM$5","v":3.9371076927534766E-3},{"$f":"'Population 2016'!AN151/'Population 2016'!AN$5","v":1.0090542162103196E-2},{"$f":"'Population 2016'!AO151/'Population 2016'!AO$5","v":1.0090542162103196E-2},{"$f":"'Population 2016'!AP151/'Population 2016'!AP$5","v":6.745081876258263E-3},{"$f":"'Population 2016'!AQ151/'Population 2016'!AQ$5","v":4.3774319066147861E-3},{"$f":"'Population 2016'!AR151/'Population 2016'!AR$5","v":4.9073434826321519E-3},{"$f":"'Population 2016'!AS151/'Population 2016'!AS$5","v":9.6411523323004771E-3},{"$f":"'Population 2016'!AT151/'Population 2016'!AT$5","v":8.8574893235619755E-3},{"$f":"'Population 2016'!AU151/'Population 2016'!AU$5","v":8.8574893235619755E-3},{"$f":"'Population 2016'!AV151/'Population 2016'!AV$5","v":5.5854714391299761E-3},{"$f":"'Population 2016'!AW151/'Population 2016'!AW$5","v":5.3770821892732933E-3},{"$f":"'Population 2016'!AX151/'Population 2016'!AX$5","v":4.089091071725213E-3},{"$f":"'Population 2016'!AY151/'Population 2016'!AY$5","v":5.7495180686025519E-3},{"$f":"'Population 2016'!AZ151/'Population 2016'!AZ$5","v":5.9511824703303781E-3},{"$f":"'Population 2016'!BA151/'Population 2016'!BA$5","v":3.886849492550205E-3},{"$f":"'Population 2016'!BB151/'Population 2016'!BB$5","v":4.7782465492359639E-3},{"$f":"'Population 2016'!BC151/'Population 2016'!BC$5","v":2.2529101934227417E-2},149]
[null,"Female 80-84",{"$f":"'Population 2016'!C152/'Population 2016'!C$5","v":2.5606558550086123E-3},{"$f":"'Population 2016'!D152/'Population 2016'!D$5","v":2.8828379448959831E-3},{"$f":"'Population 2016'!E152/'Population 2016'!E$5","v":3.1783385446209666E-3},{"$f":"'Population 2016'!F152/'Population 2016'!F$5","v":6.4280195724954929E-3},{"$f":"'Population 2016'!G152/'Population 2016'!G$5","v":9.1484869809992965E-3},{"$f":"'Population 2016'!H152/'Population 2016'!H$5","v":3.5050403193120912E-3},{"$f":"'Population 2016'!I152/'Population 2016'!I$5","v":7.1183317980068675E-3},{"$f":"'Population 2016'!J152/'Population 2016'!J$5","v":3.2011145849746648E-3},{"$f":"'Population 2016'!K152/'Population 2016'!K$5","v":3.4966687142654633E-3},{"$f":"'Population 2016'!L152/'Population 2016'!L$5","v":8.347497339284863E-3},{"$f":"'Population 2016'!M152/'Population 2016'!M$5","v":8.347497339284863E-3},{"$f":"'Population 2016'!N152/'Population 2016'!N$5","v":3.1907796915311725E-3},{"$f":"'Population 2016'!O152/'Population 2016'!O$5","v":3.1503551579635629E-3},{"$f":"'Population 2016'!P152/'Population 2016'!P$5","v":8.7907134002028627E-4},{"$f":"'Population 2016'!Q152/'Population 2016'!Q$5","v":4.5827898614587371E-3},{"$f":"'Population 2016'!R152/'Population 2016'!R$5","v":3.3267685101399905E-3},{"$f":"'Population 2016'!S152/'Population 2016'!S$5","v":3.3311502265782359E-3},{"$f":"'Population 2016'!T152/'Population 2016'!T$5","v":1.6449281768984147E-3},{"$f":"'Population 2016'!U152/'Population 2016'!U$5","v":1.6863630327977691E-2},{"$f":"'Population 2016'!V152/'Population 2016'!V$5","v":3.1979606322650568E-3},{"$f":"'Population 2016'!W152/'Population 2016'!W$5","v":3.997280672510606E-3},{"$f":"'Population 2016'!X152/'Population 2016'!X$5","v":3.997280672510606E-3},{"$f":"'Population 2016'!Y152/'Population 2016'!Y$5","v":3.1994721864517257E-3},{"$f":"'Population 2016'!Z152/'Population 2016'!Z$5","v":1.8138421124969269E-3},{"$f":"'Population 2016'!AA152/'Population 2016'!AA$5","v":2.7352628330466521E-3},{"$f":"'Population 2016'!AB152/'Population 2016'!AB$5","v":3.4533228252970737E-3},{"$f":"'Population 2016'!AC152/'Population 2016'!AC$5","v":2.252694856036457E-3},{"$f":"'Population 2016'!AD152/'Population 2016'!AD$5","v":6.9931891771186127E-3},{"$f":"'Population 2016'!AE152/'Population 2016'!AE$5","v":6.1756280865306627E-3},{"$f":"'Population 2016'!AF152/'Population 2016'!AF$5","v":3.2574763606750216E-3},{"$f":"'Population 2016'!AG152/'Population 2016'!AG$5","v":6.1756280865306627E-3},{"$f":"'Population 2016'!AH152/'Population 2016'!AH$5","v":3.6019802531974772E-3},{"$f":"'Population 2016'!AI152/'Population 2016'!AI$5","v":2.5579118908040949E-3},{"$f":"'Population 2016'!AJ152/'Population 2016'!AJ$5","v":4.1407578841703152E-3},{"$f":"'Population 2016'!AK152/'Population 2016'!AK$5","v":6.3864827828973006E-3},{"$f":"'Population 2016'!AL152/'Population 2016'!AL$5","v":3.1836966353913552E-3},{"$f":"'Population 2016'!AM152/'Population 2016'!AM$5","v":3.0207431607694566E-3},{"$f":"'Population 2016'!AN152/'Population 2016'!AN$5","v":5.781607941529399E-3},{"$f":"'Population 2016'!AO152/'Population 2016'!AO$5","v":5.781607941529399E-3},{"$f":"'Population 2016'!AP152/'Population 2016'!AP$5","v":5.3183900575432368E-3},{"$f":"'Population 2016'!AQ152/'Population 2016'!AQ$5","v":3.1101002904587055E-3},{"$f":"'Population 2016'!AR152/'Population 2016'!AR$5","v":3.7197164576679249E-3},{"$f":"'Population 2016'!AS152/'Population 2016'!AS$5","v":7.1183317980068675E-3},{"$f":"'Population 2016'!AT152/'Population 2016'!AT$5","v":6.5376706912005063E-3},{"$f":"'Population 2016'!AU152/'Population 2016'!AU$5","v":6.5376706912005063E-3},{"$f":"'Population 2016'!AV152/'Population 2016'!AV$5","v":4.265653046140851E-3},{"$f":"'Population 2016'!AW152/'Population 2016'!AW$5","v":4.213954481664531E-3},{"$f":"'Population 2016'!AX152/'Population 2016'!AX$5","v":3.041261484595627E-3},{"$f":"'Population 2016'!AY152/'Population 2016'!AY$5","v":4.4597778525748907E-3},{"$f":"'Population 2016'!AZ152/'Population 2016'!AZ$5","v":4.8667959109710002E-3},{"$f":"'Population 2016'!BA152/'Population 2016'!BA$5","v":3.2795292593392356E-3},{"$f":"'Population 2016'!BB152/'Population 2016'!BB$5","v":3.293675728302825E-3},{"$f":"'Population 2016'!BC152/'Population 2016'!BC$5","v":1.6863630327977691E-2},150]
[null,"Female 85-89",{"$f":"'Population 2016'!C153/'Population 2016'!C$5","v":1.6917706347462089E-3},{"$f":"'Population 2016'!D153/'Population 2016'!D$5","v":2.005027239028589E-3},{"$f":"'Population 2016'!E153/'Population 2016'!E$5","v":2.2923415166956531E-3},{"$f":"'Population 2016'!F153/'Population 2016'!F$5","v":4.2029358743239766E-3},{"$f":"'Population 2016'!G153/'Population 2016'!G$5","v":5.5080387592702862E-3},{"$f":"'Population 2016'!H153/'Population 2016'!H$5","v":1.9778673402223641E-3},{"$f":"'Population 2016'!I153/'Population 2016'!I$5","v":4.1558495938363617E-3},{"$f":"'Population 2016'!J153/'Population 2016'!J$5","v":2.015209440800113E-3},{"$f":"'Population 2016'!K153/'Population 2016'!K$5","v":2.551623115815338E-3},{"$f":"'Population 2016'!L153/'Population 2016'!L$5","v":5.6947246358394358E-3},{"$f":"'Population 2016'!M153/'Population 2016'!M$5","v":5.6947246358394358E-3},{"$f":"'Population 2016'!N153/'Population 2016'!N$5","v":1.7842647141559705E-3},{"$f":"'Population 2016'!O153/'Population 2016'!O$5","v":1.4265759205872738E-3},{"$f":"'Population 2016'!P153/'Population 2016'!P$5","v":5.635072692437732E-4},{"$f":"'Population 2016'!Q153/'Population 2016'!Q$5","v":3.5487244568218942E-3},{"$f":"'Population 2016'!R153/'Population 2016'!R$5","v":2.0492894022462343E-3},{"$f":"'Population 2016'!S153/'Population 2016'!S$5","v":2.1236744687724526E-3},{"$f":"'Population 2016'!T153/'Population 2016'!T$5","v":1.1423758625984746E-3},{"$f":"'Population 2016'!U153/'Population 2016'!U$5","v":1.0844066746337361E-2},{"$f":"'Population 2016'!V153/'Population 2016'!V$5","v":1.6791201410460918E-3},{"$f":"'Population 2016'!W153/'Population 2016'!W$5","v":2.6637643075193328E-3},{"$f":"'Population 2016'!X153/'Population 2016'!X$5","v":2.6637643075193328E-3},{"$f":"'Population 2016'!Y153/'Population 2016'!Y$5","v":1.8401933196610547E-3},{"$f":"'Population 2016'!Z153/'Population 2016'!Z$5","v":1.0937255000648492E-3},{"$f":"'Population 2016'!AA153/'Population 2016'!AA$5","v":1.6423535883632074E-3},{"$f":"'Population 2016'!AB153/'Population 2016'!AB$5","v":2.227157815010798E-3},{"$f":"'Population 2016'!AC153/'Population 2016'!AC$5","v":1.382852627419992E-3},{"$f":"'Population 2016'!AD153/'Population 2016'!AD$5","v":4.5368268264542782E-3},{"$f":"'Population 2016'!AE153/'Population 2016'!AE$5","v":4.168420620334911E-3},{"$f":"'Population 2016'!AF153/'Population 2016'!AF$5","v":2.6391590885098556E-3},{"$f":"'Population 2016'!AG153/'Population 2016'!AG$5","v":4.168420620334911E-3},{"$f":"'Population 2016'!AH153/'Population 2016'!AH$5","v":2.1084309372765018E-3},{"$f":"'Population 2016'!AI153/'Population 2016'!AI$5","v":1.6323606614751947E-3},{"$f":"'Population 2016'!AJ153/'Population 2016'!AJ$5","v":2.1610015893818143E-3},{"$f":"'Population 2016'!AK153/'Population 2016'!AK$5","v":3.3692468224733791E-3},{"$f":"'Population 2016'!AL153/'Population 2016'!AL$5","v":2.0130895159716925E-3},{"$f":"'Population 2016'!AM153/'Population 2016'!AM$5","v":1.5972994411262954E-3},{"$f":"'Population 2016'!AN153/'Population 2016'!AN$5","v":4.2543907494272939E-3},{"$f":"'Population 2016'!AO153/'Population 2016'!AO$5","v":4.2543907494272939E-3},{"$f":"'Population 2016'!AP153/'Population 2016'!AP$5","v":3.6301380720637892E-3},{"$f":"'Population 2016'!AQ153/'Population 2016'!AQ$5","v":1.7742642626185127E-3},{"$f":"'Population 2016'!AR153/'Population 2016'!AR$5","v":2.3300302108611622E-3},{"$f":"'Population 2016'!AS153/'Population 2016'!AS$5","v":4.1558495938363617E-3},{"$f":"'Population 2016'!AT153/'Population 2016'!AT$5","v":3.8487900036906207E-3},{"$f":"'Population 2016'!AU153/'Population 2016'!AU$5","v":3.8487900036906207E-3},{"$f":"'Population 2016'!AV153/'Population 2016'!AV$5","v":2.5234927673952064E-3},{"$f":"'Population 2016'!AW153/'Population 2016'!AW$5","v":2.6465922264933797E-3},{"$f":"'Population 2016'!AX153/'Population 2016'!AX$5","v":1.7250852958840743E-3},{"$f":"'Population 2016'!AY153/'Population 2016'!AY$5","v":2.9114776169639851E-3},{"$f":"'Population 2016'!AZ153/'Population 2016'!AZ$5","v":3.1294763304588941E-3},{"$f":"'Population 2016'!BA153/'Population 2016'!BA$5","v":1.8084646944504428E-3},{"$f":"'Population 2016'!BB153/'Population 2016'!BB$5","v":1.6986252183700103E-3},{"$f":"'Population 2016'!BC153/'Population 2016'!BC$5","v":1.0844066746337361E-2},151]
[null,"Female 90+",{"$f":"'Population 2016'!C154/'Population 2016'!C$5","v":9.7110701088150959E-4},{"$f":"'Population 2016'!D154/'Population 2016'!D$5","v":1.1223262228221003E-3},{"$f":"'Population 2016'!E154/'Population 2016'!E$5","v":1.2610222249307375E-3},{"$f":"'Population 2016'!F154/'Population 2016'!F$5","v":2.8225598763842391E-3},{"$f":"'Population 2016'!G154/'Population 2016'!G$5","v":3.6675147512585937E-3},{"$f":"'Population 2016'!H154/'Population 2016'!H$5","v":1.1769931877060953E-3},{"$f":"'Population 2016'!I154/'Population 2016'!I$5","v":2.4286073193199899E-3},{"$f":"'Population 2016'!J154/'Population 2016'!J$5","v":1.1776121012082963E-3},{"$f":"'Population 2016'!K154/'Population 2016'!K$5","v":1.0631762982563908E-3},{"$f":"'Population 2016'!L154/'Population 2016'!L$5","v":3.2802249297094657E-3},{"$f":"'Population 2016'!M154/'Population 2016'!M$5","v":3.2802249297094657E-3},{"$f":"'Population 2016'!N154/'Population 2016'!N$5","v":1.0609141543630094E-3},{"$f":"'Population 2016'!O154/'Population 2016'!O$5","v":9.6095739095114973E-4},{"$f":"'Population 2016'!P154/'Population 2016'!P$5","v":5.2969683308914689E-4},{"$f":"'Population 2016'!Q154/'Population 2016'!Q$5","v":2.021127836335648E-3},{"$f":"'Population 2016'!R154/'Population 2016'!R$5","v":1.0911800713259169E-3},{"$f":"'Population 2016'!S154/'Population 2016'!S$5","v":1.2410167510781664E-3},{"$f":"'Population 2016'!T154/'Population 2016'!T$5","v":6.7472301456936385E-4},{"$f":"'Population 2016'!U154/'Population 2016'!U$5","v":7.6129774708980661E-3},{"$f":"'Population 2016'!V154/'Population 2016'!V$5","v":7.9376588485815256E-4},{"$f":"'Population 2016'!W154/'Population 2016'!W$5","v":1.4740585309094712E-3},{"$f":"'Population 2016'!X154/'Population 2016'!X$5","v":1.4740585309094712E-3},{"$f":"'Population 2016'!Y154/'Population 2016'!Y$5","v":9.7772690418276333E-4},{"$f":"'Population 2016'!Z154/'Population 2016'!Z$5","v":7.414103832298004E-4},{"$f":"'Population 2016'!AA154/'Population 2016'!AA$5","v":1.0384298780791639E-3},{"$f":"'Population 2016'!AB154/'Population 2016'!AB$5","v":1.2875756118031177E-3},{"$f":"'Population 2016'!AC154/'Population 2016'!AC$5","v":1.0146435508593958E-3},{"$f":"'Population 2016'!AD154/'Population 2016'!AD$5","v":2.4786929174885554E-3},{"$f":"'Population 2016'!AE154/'Population 2016'!AE$5","v":2.0277415579215393E-3},{"$f":"'Population 2016'!AF154/'Population 2016'!AF$5","v":2.3073790888114734E-3},{"$f":"'Population 2016'!AG154/'Population 2016'!AG$5","v":2.0277415579215393E-3},{"$f":"'Population 2016'!AH154/'Population 2016'!AH$5","v":1.0811513704801093E-3},{"$f":"'Population 2016'!AI154/'Population 2016'!AI$5","v":9.8843949601889938E-4},{"$f":"'Population 2016'!AJ154/'Population 2016'!AJ$5","v":1.5196720854362435E-3},{"$f":"'Population 2016'!AK154/'Population 2016'!AK$5","v":2.1372088053002777E-3},{"$f":"'Population 2016'!AL154/'Population 2016'!AL$5","v":1.32136712722371E-3},{"$f":"'Population 2016'!AM154/'Population 2016'!AM$5","v":7.2077684531549383E-4},{"$f":"'Population 2016'!AN154/'Population 2016'!AN$5","v":3.654412566815752E-3},{"$f":"'Population 2016'!AO154/'Population 2016'!AO$5","v":3.654412566815752E-3},{"$f":"'Population 2016'!AP154/'Population 2016'!AP$5","v":2.2827069099440418E-3},{"$f":"'Population 2016'!AQ154/'Population 2016'!AQ$5","v":1.6646572039239328E-3},{"$f":"'Population 2016'!AR154/'Population 2016'!AR$5","v":1.3985973481008105E-3},{"$f":"'Population 2016'!AS154/'Population 2016'!AS$5","v":2.4286073193199899E-3},{"$f":"'Population 2016'!AT154/'Population 2016'!AT$5","v":3.1106658933937894E-3},{"$f":"'Population 2016'!AU154/'Population 2016'!AU$5","v":3.1106658933937894E-3},{"$f":"'Population 2016'!AV154/'Population 2016'!AV$5","v":1.2353500158378207E-3},{"$f":"'Population 2016'!AW154/'Population 2016'!AW$5","v":1.4605833180791994E-3},{"$f":"'Population 2016'!AX154/'Population 2016'!AX$5","v":1.2395057311167053E-3},{"$f":"'Population 2016'!AY154/'Population 2016'!AY$5","v":1.7517823812000857E-3},{"$f":"'Population 2016'!AZ154/'Population 2016'!AZ$5","v":1.9961917034360959E-3},{"$f":"'Population 2016'!BA154/'Population 2016'!BA$5","v":9.8520837832001724E-4},{"$f":"'Population 2016'!BB154/'Population 2016'!BB$5","v":1.049557045496917E-3},{"$f":"'Population 2016'!BC154/'Population 2016'!BC$5","v":7.6129774708980661E-3},152]
[null,"Male 0-4",{"$f":"'Population 2016'!C155/'Population 2016'!C$5","v":0},{"$f":"'Population 2016'!D155/'Population 2016'!D$5","v":0},{"$f":"'Population 2016'!E155/'Population 2016'!E$5","v":0},{"$f":"'Population 2016'!F155/'Population 2016'!F$5","v":0},{"$f":"'Population 2016'!G155/'Population 2016'!G$5","v":0},{"$f":"'Population 2016'!H155/'Population 2016'!H$5","v":0},{"$f":"'Population 2016'!I155/'Population 2016'!I$5","v":0},{"$f":"'Population 2016'!J155/'Population 2016'!J$5","v":0},{"$f":"'Population 2016'!K155/'Population 2016'!K$5","v":0},{"$f":"'Population 2016'!L155/'Population 2016'!L$5","v":0},{"$f":"'Population 2016'!M155/'Population 2016'!M$5","v":0},{"$f":"'Population 2016'!N155/'Population 2016'!N$5","v":0},{"$f":"'Population 2016'!O155/'Population 2016'!O$5","v":0},{"$f":"'Population 2016'!P155/'Population 2016'!P$5","v":0},{"$f":"'Population 2016'!Q155/'Population 2016'!Q$5","v":0},{"$f":"'Population 2016'!R155/'Population 2016'!R$5","v":0},{"$f":"'Population 2016'!S155/'Population 2016'!S$5","v":0},{"$f":"'Population 2016'!T155/'Population 2016'!T$5","v":0},{"$f":"'Population 2016'!U155/'Population 2016'!U$5","v":0},{"$f":"'Population 2016'!V155/'Population 2016'!V$5","v":0},{"$f":"'Population 2016'!W155/'Population 2016'!W$5","v":0},{"$f":"'Population 2016'!X155/'Population 2016'!X$5","v":0},{"$f":"'Population 2016'!Y155/'Population 2016'!Y$5","v":0},{"$f":"'Population 2016'!Z155/'Population 2016'!Z$5","v":0},{"$f":"'Population 2016'!AA155/'Population 2016'!AA$5","v":0},{"$f":"'Population 2016'!AB155/'Population 2016'!AB$5","v":0},{"$f":"'Population 2016'!AC155/'Population 2016'!AC$5","v":0},{"$f":"'Population 2016'!AD155/'Population 2016'!AD$5","v":0},{"$f":"'Population 2016'!AE155/'Population 2016'!AE$5","v":0},{"$f":"'Population 2016'!AF155/'Population 2016'!AF$5","v":0},{"$f":"'Population 2016'!AG155/'Population 2016'!AG$5","v":0},{"$f":"'Population 2016'!AH155/'Population 2016'!AH$5","v":0},{"$f":"'Population 2016'!AI155/'Population 2016'!AI$5","v":0},{"$f":"'Population 2016'!AJ155/'Population 2016'!AJ$5","v":0},{"$f":"'Population 2016'!AK155/'Population 2016'!AK$5","v":0},{"$f":"'Population 2016'!AL155/'Population 2016'!AL$5","v":0},{"$f":"'Population 2016'!AM155/'Population 2016'!AM$5","v":0},{"$f":"'Population 2016'!AN155/'Population 2016'!AN$5","v":0},{"$f":"'Population 2016'!AO155/'Population 2016'!AO$5","v":0},{"$f":"'Population 2016'!AP155/'Population 2016'!AP$5","v":0},{"$f":"'Population 2016'!AQ155/'Population 2016'!AQ$5","v":0},{"$f":"'Population 2016'!AR155/'Population 2016'!AR$5","v":0},{"$f":"'Population 2016'!AS155/'Population 2016'!AS$5","v":0},{"$f":"'Population 2016'!AT155/'Population 2016'!AT$5","v":0},{"$f":"'Population 2016'!AU155/'Population 2016'!AU$5","v":0},{"$f":"'Population 2016'!AV155/'Population 2016'!AV$5","v":0},{"$f":"'Population 2016'!AW155/'Population 2016'!AW$5","v":0},{"$f":"'Population 2016'!AX155/'Population 2016'!AX$5","v":0},{"$f":"'Population 2016'!AY155/'Population 2016'!AY$5","v":0},{"$f":"'Population 2016'!AZ155/'Population 2016'!AZ$5","v":0},{"$f":"'Population 2016'!BA155/'Population 2016'!BA$5","v":0},{"$f":"'Population 2016'!BB155/'Population 2016'!BB$5","v":0},{"$f":"'Population 2016'!BC155/'Population 2016'!BC$5","v":0},153]
[null,"Male 5-9",{"$f":"'Population 2016'!C156/'Population 2016'!C$5","v":0},{"$f":"'Population 2016'!D156/'Population 2016'!D$5","v":0},{"$f":"'Population 2016'!E156/'Population 2016'!E$5","v":0},{"$f":"'Population 2016'!F156/'Population 2016'!F$5","v":0},{"$f":"'Population 2016'!G156/'Population 2016'!G$5","v":0},{"$f":"'Population 2016'!H156/'Population 2016'!H$5","v":0},{"$f":"'Population 2016'!I156/'Population 2016'!I$5","v":0},{"$f":"'Population 2016'!J156/'Population 2016'!J$5","v":0},{"$f":"'Population 2016'!K156/'Population 2016'!K$5","v":0},{"$f":"'Population 2016'!L156/'Population 2016'!L$5","v":0},{"$f":"'Population 2016'!M156/'Population 2016'!M$5","v":0},{"$f":"'Population 2016'!N156/'Population 2016'!N$5","v":0},{"$f":"'Population 2016'!O156/'Population 2016'!O$5","v":0},{"$f":"'Population 2016'!P156/'Population 2016'!P$5","v":0},{"$f":"'Population 2016'!Q156/'Population 2016'!Q$5","v":0},{"$f":"'Population 2016'!R156/'Population 2016'!R$5","v":0},{"$f":"'Population 2016'!S156/'Population 2016'!S$5","v":0},{"$f":"'Population 2016'!T156/'Population 2016'!T$5","v":0},{"$f":"'Population 2016'!U156/'Population 2016'!U$5","v":0},{"$f":"'Population 2016'!V156/'Population 2016'!V$5","v":0},{"$f":"'Population 2016'!W156/'Population 2016'!W$5","v":0},{"$f":"'Population 2016'!X156/'Population 2016'!X$5","v":0},{"$f":"'Population 2016'!Y156/'Population 2016'!Y$5","v":0},{"$f":"'Population 2016'!Z156/'Population 2016'!Z$5","v":0},{"$f":"'Population 2016'!AA156/'Population 2016'!AA$5","v":0},{"$f":"'Population 2016'!AB156/'Population 2016'!AB$5","v":0},{"$f":"'Population 2016'!AC156/'Population 2016'!AC$5","v":0},{"$f":"'Population 2016'!AD156/'Population 2016'!AD$5","v":0},{"$f":"'Population 2016'!AE156/'Population 2016'!AE$5","v":0},{"$f":"'Population 2016'!AF156/'Population 2016'!AF$5","v":0},{"$f":"'Population 2016'!AG156/'Population 2016'!AG$5","v":0},{"$f":"'Population 2016'!AH156/'Population 2016'!AH$5","v":0},{"$f":"'Population 2016'!AI156/'Population 2016'!AI$5","v":0},{"$f":"'Population 2016'!AJ156/'Population 2016'!AJ$5","v":0},{"$f":"'Population 2016'!AK156/'Population 2016'!AK$5","v":0},{"$f":"'Population 2016'!AL156/'Population 2016'!AL$5","v":0},{"$f":"'Population 2016'!AM156/'Population 2016'!AM$5","v":0},{"$f":"'Population 2016'!AN156/'Population 2016'!AN$5","v":0},{"$f":"'Population 2016'!AO156/'Population 2016'!AO$5","v":0},{"$f":"'Population 2016'!AP156/'Population 2016'!AP$5","v":0},{"$f":"'Population 2016'!AQ156/'Population 2016'!AQ$5","v":0},{"$f":"'Population 2016'!AR156/'Population 2016'!AR$5","v":0},{"$f":"'Population 2016'!AS156/'Population 2016'!AS$5","v":0},{"$f":"'Population 2016'!AT156/'Population 2016'!AT$5","v":0},{"$f":"'Population 2016'!AU156/'Population 2016'!AU$5","v":0},{"$f":"'Population 2016'!AV156/'Population 2016'!AV$5","v":0},{"$f":"'Population 2016'!AW156/'Population 2016'!AW$5","v":0},{"$f":"'Population 2016'!AX156/'Population 2016'!AX$5","v":0},{"$f":"'Population 2016'!AY156/'Population 2016'!AY$5","v":0},{"$f":"'Population 2016'!AZ156/'Population 2016'!AZ$5","v":0},{"$f":"'Population 2016'!BA156/'Population 2016'!BA$5","v":0},{"$f":"'Population 2016'!BB156/'Population 2016'!BB$5","v":0},{"$f":"'Population 2016'!BC156/'Population 2016'!BC$5","v":0},154]
[null,"Male 10-15",{"$f":"'Population 2016'!C157/'Population 2016'!C$5","v":0},{"$f":"'Population 2016'!D157/'Population 2016'!D$5","v":0},{"$f":"'Population 2016'!E157/'Population 2016'!E$5","v":0},{"$f":"'Population 2016'!F157/'Population 2016'!F$5","v":0},{"$f":"'Population 2016'!G157/'Population 2016'!G$5","v":0},{"$f":"'Population 2016'!H157/'Population 2016'!H$5","v":0},{"$f":"'Population 2016'!I157/'Population 2016'!I$5","v":0},{"$f":"'Population 2016'!J157/'Population 2016'!J$5","v":0},{"$f":"'Population 2016'!K157/'Population 2016'!K$5","v":0},{"$f":"'Population 2016'!L157/'Population 2016'!L$5","v":0},{"$f":"'Population 2016'!M157/'Population 2016'!M$5","v":0},{"$f":"'Population 2016'!N157/'Population 2016'!N$5","v":0},{"$f":"'Population 2016'!O157/'Population 2016'!O$5","v":0},{"$f":"'Population 2016'!P157/'Population 2016'!P$5","v":0},{"$f":"'Population 2016'!Q157/'Population 2016'!Q$5","v":0},{"$f":"'Population 2016'!R157/'Population 2016'!R$5","v":0},{"$f":"'Population 2016'!S157/'Population 2016'!S$5","v":0},{"$f":"'Population 2016'!T157/'Population 2016'!T$5","v":0},{"$f":"'Population 2016'!U157/'Population 2016'!U$5","v":0},{"$f":"'Population 2016'!V157/'Population 2016'!V$5","v":0},{"$f":"'Population 2016'!W157/'Population 2016'!W$5","v":0},{"$f":"'Population 2016'!X157/'Population 2016'!X$5","v":0},{"$f":"'Population 2016'!Y157/'Population 2016'!Y$5","v":0},{"$f":"'Population 2016'!Z157/'Population 2016'!Z$5","v":0},{"$f":"'Population 2016'!AA157/'Population 2016'!AA$5","v":0},{"$f":"'Population 2016'!AB157/'Population 2016'!AB$5","v":0},{"$f":"'Population 2016'!AC157/'Population 2016'!AC$5","v":0},{"$f":"'Population 2016'!AD157/'Population 2016'!AD$5","v":0},{"$f":"'Population 2016'!AE157/'Population 2016'!AE$5","v":0},{"$f":"'Population 2016'!AF157/'Population 2016'!AF$5","v":0},{"$f":"'Population 2016'!AG157/'Population 2016'!AG$5","v":0},{"$f":"'Population 2016'!AH157/'Population 2016'!AH$5","v":0},{"$f":"'Population 2016'!AI157/'Population 2016'!AI$5","v":0},{"$f":"'Population 2016'!AJ157/'Population 2016'!AJ$5","v":0},{"$f":"'Population 2016'!AK157/'Population 2016'!AK$5","v":0},{"$f":"'Population 2016'!AL157/'Population 2016'!AL$5","v":0},{"$f":"'Population 2016'!AM157/'Population 2016'!AM$5","v":0},{"$f":"'Population 2016'!AN157/'Population 2016'!AN$5","v":0},{"$f":"'Population 2016'!AO157/'Population 2016'!AO$5","v":0},{"$f":"'Population 2016'!AP157/'Population 2016'!AP$5","v":0},{"$f":"'Population 2016'!AQ157/'Population 2016'!AQ$5","v":0},{"$f":"'Population 2016'!AR157/'Population 2016'!AR$5","v":0},{"$f":"'Population 2016'!AS157/'Population 2016'!AS$5","v":0},{"$f":"'Population 2016'!AT157/'Population 2016'!AT$5","v":0},{"$f":"'Population 2016'!AU157/'Population 2016'!AU$5","v":0},{"$f":"'Population 2016'!AV157/'Population 2016'!AV$5","v":0},{"$f":"'Population 2016'!AW157/'Population 2016'!AW$5","v":0},{"$f":"'Population 2016'!AX157/'Population 2016'!AX$5","v":0},{"$f":"'Population 2016'!AY157/'Population 2016'!AY$5","v":0},{"$f":"'Population 2016'!AZ157/'Population 2016'!AZ$5","v":0},{"$f":"'Population 2016'!BA157/'Population 2016'!BA$5","v":0},{"$f":"'Population 2016'!BB157/'Population 2016'!BB$5","v":0},{"$f":"'Population 2016'!BC157/'Population 2016'!BC$5","v":0},155]
[null,"Male 16-19",{"$f":"'Population 2016'!C158/'Population 2016'!C$5","v":3.163764419661339E-3},{"$f":"'Population 2016'!D158/'Population 2016'!D$5","v":4.5259822188316069E-3},{"$f":"'Population 2016'!E158/'Population 2016'!E$5","v":5.7753880338835264E-3},{"$f":"'Population 2016'!F158/'Population 2016'!F$5","v":9.5287149111511725E-3},{"$f":"'Population 2016'!G158/'Population 2016'!G$5","v":1.1029610783305364E-2},{"$f":"'Population 2016'!H158/'Population 2016'!H$5","v":4.6820335070181865E-3},{"$f":"'Population 2016'!I158/'Population 2016'!I$5","v":8.3116991876727234E-3},{"$f":"'Population 2016'!J158/'Population 2016'!J$5","v":4.2460379987228711E-3},{"$f":"'Population 2016'!K158/'Population 2016'!K$5","v":5.1268723715919293E-3},{"$f":"'Population 2016'!L158/'Population 2016'!L$5","v":9.5944593585690907E-3},{"$f":"'Population 2016'!M158/'Population 2016'!M$5","v":9.5944593585690907E-3},{"$f":"'Population 2016'!N158/'Population 2016'!N$5","v":3.1264818639940204E-3},{"$f":"'Population 2016'!O158/'Population 2016'!O$5","v":4.606651410229738E-3},{"$f":"'Population 2016'!P158/'Population 2016'!P$5","v":1.8032232615800743E-3},{"$f":"'Population 2016'!Q158/'Population 2016'!Q$5","v":6.0633835090069445E-3},{"$f":"'Population 2016'!R158/'Population 2016'!R$5","v":3.2735402139777506E-3},{"$f":"'Population 2016'!S158/'Population 2016'!S$5","v":4.9172861452748684E-3},{"$f":"'Population 2016'!T158/'Population 2016'!T$5","v":3.0502133520704691E-3},{"$f":"'Population 2016'!U158/'Population 2016'!U$5","v":1.6863630327977691E-2},{"$f":"'Population 2016'!V158/'Population 2016'!V$5","v":4.7778600377038792E-3},{"$f":"'Population 2016'!W158/'Population 2016'!W$5","v":5.412507599082227E-3},{"$f":"'Population 2016'!X158/'Population 2016'!X$5","v":5.412507599082227E-3},{"$f":"'Population 2016'!Y158/'Population 2016'!Y$5","v":4.5229805567479058E-3},{"$f":"'Population 2016'!Z158/'Population 2016'!Z$5","v":3.9761277471384079E-3},{"$f":"'Population 2016'!AA158/'Population 2016'!AA$5","v":4.4075136347902577E-3},{"$f":"'Population 2016'!AB158/'Population 2016'!AB$5","v":4.92922428175184E-3},{"$f":"'Population 2016'!AC158/'Population 2016'!AC$5","v":3.8972241586526031E-3},{"$f":"'Population 2016'!AD158/'Population 2016'!AD$5","v":9.3230116491123602E-3},{"$f":"'Population 2016'!AE158/'Population 2016'!AE$5","v":8.6756537541453193E-3},{"$f":"'Population 2016'!AF158/'Population 2016'!AF$5","v":3.921036360071785E-3},{"$f":"'Population 2016'!AG158/'Population 2016'!AG$5","v":8.6756537541453193E-3},{"$f":"'Population 2016'!AH158/'Population 2016'!AH$5","v":5.3240203226735273E-3},{"$f":"'Population 2016'!AI158/'Population 2016'!AI$5","v":4.2668321812932017E-3},{"$f":"'Population 2016'!AJ158/'Population 2016'!AJ$5","v":5.7440816440342416E-3},{"$f":"'Population 2016'!AK158/'Population 2016'!AK$5","v":7.0025017914838519E-3},{"$f":"'Population 2016'!AL158/'Population 2016'!AL$5","v":3.3965342934676574E-3},{"$f":"'Population 2016'!AM158/'Population 2016'!AM$5","v":5.3859053717795948E-3},{"$f":"'Population 2016'!AN158/'Population 2016'!AN$5","v":8.1815206719755649E-3},{"$f":"'Population 2016'!AO158/'Population 2016'!AO$5","v":8.1815206719755649E-3},{"$f":"'Population 2016'!AP158/'Population 2016'!AP$5","v":6.3963349872390345E-3},{"$f":"'Population 2016'!AQ158/'Population 2016'!AQ$5","v":5.3775963172028275E-3},{"$f":"'Population 2016'!AR158/'Population 2016'!AR$5","v":5.2858425100968344E-3},{"$f":"'Population 2016'!AS158/'Population 2016'!AS$5","v":8.3116991876727234E-3},{"$f":"'Population 2016'!AT158/'Population 2016'!AT$5","v":8.8047661728264878E-3},{"$f":"'Population 2016'!AU158/'Population 2016'!AU$5","v":8.8047661728264878E-3},{"$f":"'Population 2016'!AV158/'Population 2016'!AV$5","v":6.2928940977721465E-3},{"$f":"'Population 2016'!AW158/'Population 2016'!AW$5","v":5.2588626517786324E-3},{"$f":"'Population 2016'!AX158/'Population 2016'!AX$5","v":3.769630831746681E-3},{"$f":"'Population 2016'!AY158/'Population 2016'!AY$5","v":5.7785869465438637E-3},{"$f":"'Population 2016'!AZ158/'Population 2016'!AZ$5","v":6.1007530302420168E-3},{"$f":"'Population 2016'!BA158/'Population 2016'!BA$5","v":3.5494493629885555E-3},{"$f":"'Population 2016'!BB158/'Population 2016'!BB$5","v":6.09019285610711E-3},{"$f":"'Population 2016'!BC158/'Population 2016'!BC$5","v":1.6863630327977691E-2},156]
[null,"Male 20-24",{"$f":"'Population 2016'!C159/'Population 2016'!C$5","v":1.0324400852529734E-2},{"$f":"'Population 2016'!D159/'Population 2016'!D$5","v":8.6436235243488556E-3},{"$f":"'Population 2016'!E159/'Population 2016'!E$5","v":7.1020396682902132E-3},{"$f":"'Population 2016'!F159/'Population 2016'!F$5","v":1.0126191089363894E-2},{"$f":"'Population 2016'!G159/'Population 2016'!G$5","v":1.1124343636658908E-2},{"$f":"'Population 2016'!H159/'Population 2016'!H$5","v":5.849299478296959E-3},{"$f":"'Population 2016'!I159/'Population 2016'!I$5","v":9.8191106272506497E-3},{"$f":"'Population 2016'!J159/'Population 2016'!J$5","v":7.7208230015839716E-3},{"$f":"'Population 2016'!K159/'Population 2016'!K$5","v":6.9224590086471669E-3},{"$f":"'Population 2016'!L159/'Population 2016'!L$5","v":1.0976442742998745E-2},{"$f":"'Population 2016'!M159/'Population 2016'!M$5","v":1.0976442742998745E-2},{"$f":"'Population 2016'!N159/'Population 2016'!N$5","v":6.1243680729137365E-3},{"$f":"'Population 2016'!O159/'Population 2016'!O$5","v":6.2313628753430219E-3},{"$f":"'Population 2016'!P159/'Population 2016'!P$5","v":2.4907021300574778E-3},{"$f":"'Population 2016'!Q159/'Population 2016'!Q$5","v":7.4617219539135854E-3},{"$f":"'Population 2016'!R159/'Population 2016'!R$5","v":4.3381061372225471E-3},{"$f":"'Population 2016'!S159/'Population 2016'!S$5","v":8.2678548416423789E-3},{"$f":"'Population 2016'!T159/'Population 2016'!T$5","v":8.5503692363531458E-3},{"$f":"'Population 2016'!U159/'Population 2016'!U$5","v":1.9784889124950206E-2},{"$f":"'Population 2016'!V159/'Population 2016'!V$5","v":6.3348623503102558E-3},{"$f":"'Population 2016'!W159/'Population 2016'!W$5","v":7.4944927081494845E-3},{"$f":"'Population 2016'!X159/'Population 2016'!X$5","v":7.4944927081494845E-3},{"$f":"'Population 2016'!Y159/'Population 2016'!Y$5","v":6.9990938140888064E-3},{"$f":"'Population 2016'!Z159/'Population 2016'!Z$5","v":9.1640646324017624E-3},{"$f":"'Population 2016'!AA159/'Population 2016'!AA$5","v":6.945454859526282E-3},{"$f":"'Population 2016'!AB159/'Population 2016'!AB$5","v":8.6179544128634732E-3},{"$f":"'Population 2016'!AC159/'Population 2016'!AC$5","v":7.1593910897540655E-3},{"$f":"'Population 2016'!AD159/'Population 2016'!AD$5","v":9.6691354348877896E-3},{"$f":"'Population 2016'!AE159/'Population 2016'!AE$5","v":9.1171367262497562E-3},{"$f":"'Population 2016'!AF159/'Population 2016'!AF$5","v":5.8212309037988814E-3},{"$f":"'Population 2016'!AG159/'Population 2016'!AG$5","v":9.1171367262497562E-3},{"$f":"'Population 2016'!AH159/'Population 2016'!AH$5","v":6.5612141589961271E-3},{"$f":"'Population 2016'!AI159/'Population 2016'!AI$5","v":8.3887479219529274E-3},{"$f":"'Population 2016'!AJ159/'Population 2016'!AJ$5","v":8.3512254970303651E-3},{"$f":"'Population 2016'!AK159/'Population 2016'!AK$5","v":8.4859761386922791E-3},{"$f":"'Population 2016'!AL159/'Population 2016'!AL$5","v":4.6824284776786507E-3},{"$f":"'Population 2016'!AM159/'Population 2016'!AM$5","v":6.3240018689490057E-3},{"$f":"'Population 2016'!AN159/'Population 2016'!AN$5","v":9.8178248063706779E-3},{"$f":"'Population 2016'!AO159/'Population 2016'!AO$5","v":9.8178248063706779E-3},{"$f":"'Population 2016'!AP159/'Population 2016'!AP$5","v":8.4808902556948781E-3},{"$f":"'Population 2016'!AQ159/'Population 2016'!AQ$5","v":5.9187811695073159E-3},{"$f":"'Population 2016'!AR159/'Population 2016'!AR$5","v":7.8522396827826156E-3},{"$f":"'Population 2016'!AS159/'Population 2016'!AS$5","v":9.8191106272506497E-3},{"$f":"'Population 2016'!AT159/'Population 2016'!AT$5","v":1.2073601518426741E-2},{"$f":"'Population 2016'!AU159/'Population 2016'!AU$5","v":1.2073601518426741E-2},{"$f":"'Population 2016'!AV159/'Population 2016'!AV$5","v":6.8313800021117099E-3},{"$f":"'Population 2016'!AW159/'Population 2016'!AW$5","v":6.8109707730795045E-3},{"$f":"'Population 2016'!AX159/'Population 2016'!AX$5","v":8.1526253242521444E-3},{"$f":"'Population 2016'!AY159/'Population 2016'!AY$5","v":7.8149383433799447E-3},{"$f":"'Population 2016'!AZ159/'Population 2016'!AZ$5","v":8.0969447336781131E-3},{"$f":"'Population 2016'!BA159/'Population 2016'!BA$5","v":5.2769380263442021E-3},{"$f":"'Population 2016'!BB159/'Population 2016'!BB$5","v":8.4724111501626124E-3},{"$f":"'Population 2016'!BC159/'Population 2016'!BC$5","v":1.9784889124950206E-2},157]
[null,"Male 25-29",{"$f":"'Population 2016'!C160/'Population 2016'!C$5","v":1.2813501454104972E-2},{"$f":"'Population 2016'!D160/'Population 2016'!D$5","v":9.4407441096211967E-3},{"$f":"'Population 2016'!E160/'Population 2016'!E$5","v":6.3473014593167978E-3},{"$f":"'Population 2016'!F160/'Population 2016'!F$5","v":9.0033479268606751E-3},{"$f":"'Population 2016'!G160/'Population 2016'!G$5","v":1.0028149190710767E-2},{"$f":"'Population 2016'!H160/'Population 2016'!H$5","v":5.1910911667147628E-3},{"$f":"'Population 2016'!I160/'Population 2016'!I$5","v":9.0863411774558239E-3},{"$f":"'Population 2016'!J160/'Population 2016'!J$5","v":6.4934526425781411E-3},{"$f":"'Population 2016'!K160/'Population 2016'!K$5","v":5.3867599111657137E-3},{"$f":"'Population 2016'!L160/'Population 2016'!L$5","v":1.0444299715660891E-2},{"$f":"'Population 2016'!M160/'Population 2016'!M$5","v":1.0444299715660891E-2},{"$f":"'Population 2016'!N160/'Population 2016'!N$5","v":7.217431141045322E-3},{"$f":"'Population 2016'!O160/'Population 2016'!O$5","v":6.2214560981167216E-3},{"$f":"'Population 2016'!P160/'Population 2016'!P$5","v":2.3441902400540967E-3},{"$f":"'Population 2016'!Q160/'Population 2016'!Q$5","v":7.0151937110022209E-3},{"$f":"'Population 2016'!R160/'Population 2016'!R$5","v":3.3533826582211102E-3},{"$f":"'Population 2016'!S160/'Population 2016'!S$5","v":9.3438145995117135E-3},{"$f":"'Population 2016'!T160/'Population 2016'!T$5","v":1.1784386444116649E-2},{"$f":"'Population 2016'!U160/'Population 2016'!U$5","v":1.8191475235692471E-2},{"$f":"'Population 2016'!V160/'Population 2016'!V$5","v":5.8998175864937684E-3},{"$f":"'Population 2016'!W160/'Population 2016'!W$5","v":7.4650769059805598E-3},{"$f":"'Population 2016'!X160/'Population 2016'!X$5","v":7.4650769059805598E-3},{"$f":"'Population 2016'!Y160/'Population 2016'!Y$5","v":6.1843213939365036E-3},{"$f":"'Population 2016'!Z160/'Population 2016'!Z$5","v":9.4292688687006732E-3},{"$f":"'Population 2016'!AA160/'Population 2016'!AA$5","v":6.8836672852067926E-3},{"$f":"'Population 2016'!AB160/'Population 2016'!AB$5","v":9.3098471899532263E-3},{"$f":"'Population 2016'!AC160/'Population 2016'!AC$5","v":7.287643689454947E-3},{"$f":"'Population 2016'!AD160/'Population 2016'!AD$5","v":9.3862815884476532E-3},{"$f":"'Population 2016'!AE160/'Population 2016'!AE$5","v":9.142804340906991E-3},{"$f":"'Population 2016'!AF160/'Population 2016'!AF$5","v":5.4894509041004992E-3},{"$f":"'Population 2016'!AG160/'Population 2016'!AG$5","v":9.142804340906991E-3},{"$f":"'Population 2016'!AH160/'Population 2016'!AH$5","v":6.1581044555696941E-3},{"$f":"'Population 2016'!AI160/'Population 2016'!AI$5","v":1.0163290751596814E-2},{"$f":"'Population 2016'!AJ160/'Population 2016'!AJ$5","v":7.9190251791540021E-3},{"$f":"'Population 2016'!AK160/'Population 2016'!AK$5","v":8.6368379367134755E-3},{"$f":"'Population 2016'!AL160/'Population 2016'!AL$5","v":3.7423954878416489E-3},{"$f":"'Population 2016'!AM160/'Population 2016'!AM$5","v":5.9907784027729985E-3},{"$f":"'Population 2016'!AN160/'Population 2016'!AN$5","v":1.1072324642740263E-2},{"$f":"'Population 2016'!AO160/'Population 2016'!AO$5","v":1.1072324642740263E-2},{"$f":"'Population 2016'!AP160/'Population 2016'!AP$5","v":6.840194664172598E-3},{"$f":"'Population 2016'!AQ160/'Population 2016'!AQ$5","v":6.2750041102647008E-3},{"$f":"'Population 2016'!AR160/'Population 2016'!AR$5","v":8.0066245127019958E-3},{"$f":"'Population 2016'!AS160/'Population 2016'!AS$5","v":9.0863411774558239E-3},{"$f":"'Population 2016'!AT160/'Population 2016'!AT$5","v":1.0650076448568566E-2},{"$f":"'Population 2016'!AU160/'Population 2016'!AU$5","v":1.0650076448568566E-2},{"$f":"'Population 2016'!AV160/'Population 2016'!AV$5","v":5.8177594762960621E-3},{"$f":"'Population 2016'!AW160/'Population 2016'!AW$5","v":6.3342790896332903E-3},{"$f":"'Population 2016'!AX160/'Population 2016'!AX$5","v":7.0920173275234163E-3},{"$f":"'Population 2016'!AY160/'Population 2016'!AY$5","v":7.5257795049111101E-3},{"$f":"'Population 2016'!AZ160/'Population 2016'!AZ$5","v":7.5792004878301343E-3},{"$f":"'Population 2016'!BA160/'Population 2016'!BA$5","v":5.8707622543727059E-3},{"$f":"'Population 2016'!BB160/'Population 2016'!BB$5","v":8.3135965972255792E-3},{"$f":"'Population 2016'!BC160/'Population 2016'!BC$5","v":1.8191475235692471E-2},158]
[null,"Male 30-34",{"$f":"'Population 2016'!C161/'Population 2016'!C$5","v":9.7161811983460522E-3},{"$f":"'Population 2016'!D161/'Population 2016'!D$5","v":8.1570376456089905E-3},{"$f":"'Population 2016'!E161/'Population 2016'!E$5","v":6.7270144712847897E-3},{"$f":"'Population 2016'!F161/'Population 2016'!F$5","v":1.0064383208859129E-2},{"$f":"'Population 2016'!G161/'Population 2016'!G$5","v":9.5003518648838839E-3},{"$f":"'Population 2016'!H161/'Population 2016'!H$5","v":4.8344265643795823E-3},{"$f":"'Population 2016'!I161/'Population 2016'!I$5","v":9.2642994724059964E-3},{"$f":"'Population 2016'!J161/'Population 2016'!J$5","v":5.4319431428974238E-3},{"$f":"'Population 2016'!K161/'Population 2016'!K$5","v":5.1977507914756889E-3},{"$f":"'Population 2016'!L161/'Population 2016'!L$5","v":9.7930201896653055E-3},{"$f":"'Population 2016'!M161/'Population 2016'!M$5","v":9.7930201896653055E-3},{"$f":"'Population 2016'!N161/'Population 2016'!N$5","v":5.9154001334179923E-3},{"$f":"'Population 2016'!O161/'Population 2016'!O$5","v":5.2704054843918727E-3},{"$f":"'Population 2016'!P161/'Population 2016'!P$5","v":2.0173560238927082E-3},{"$f":"'Population 2016'!Q161/'Population 2016'!Q$5","v":6.1691401981175311E-3},{"$f":"'Population 2016'!R161/'Population 2016'!R$5","v":3.3799968063022304E-3},{"$f":"'Population 2016'!S161/'Population 2016'!S$5","v":8.79921478769434E-3},{"$f":"'Population 2016'!T161/'Population 2016'!T$5","v":1.0430287152808476E-2},{"$f":"'Population 2016'!U161/'Population 2016'!U$5","v":1.9873412118797857E-2},{"$f":"'Population 2016'!V161/'Population 2016'!V$5","v":5.9150823150487322E-3},{"$f":"'Population 2016'!W161/'Population 2016'!W$5","v":7.4029768791794952E-3},{"$f":"'Population 2016'!X161/'Population 2016'!X$5","v":7.4029768791794952E-3},{"$f":"'Population 2016'!Y161/'Population 2016'!Y$5","v":5.6835344430136246E-3},{"$f":"'Population 2016'!Z161/'Population 2016'!Z$5","v":8.6956016748518626E-3},{"$f":"'Population 2016'!AA161/'Population 2016'!AA$5","v":6.7879962023895185E-3},{"$f":"'Population 2016'!AB161/'Population 2016'!AB$5","v":8.45009876871744E-3},{"$f":"'Population 2016'!AC161/'Population 2016'!AC$5","v":6.8015249647822495E-3},{"$f":"'Population 2016'!AD161/'Population 2016'!AD$5","v":9.8738322974431508E-3},{"$f":"'Population 2016'!AE161/'Population 2016'!AE$5","v":1.001550323925297E-2},{"$f":"'Population 2016'!AF161/'Population 2016'!AF$5","v":4.8711336319353328E-3},{"$f":"'Population 2016'!AG161/'Population 2016'!AG$5","v":1.001550323925297E-2},{"$f":"'Population 2016'!AH161/'Population 2016'!AH$5","v":6.7636978349107863E-3},{"$f":"'Population 2016'!AI161/'Population 2016'!AI$5","v":9.3225019686761744E-3},{"$f":"'Population 2016'!AJ161/'Population 2016'!AJ$5","v":7.9050832334160558E-3},{"$f":"'Population 2016'!AK161/'Population 2016'!AK$5","v":9.9568786693989414E-3},{"$f":"'Population 2016'!AL161/'Population 2016'!AL$5","v":3.4940848867526294E-3},{"$f":"'Population 2016'!AM161/'Population 2016'!AM$5","v":6.979582818708324E-3},{"$f":"'Population 2016'!AN161/'Population 2016'!AN$5","v":9.5451074506381593E-3},{"$f":"'Population 2016'!AO161/'Population 2016'!AO$5","v":9.5451074506381593E-3},{"$f":"'Population 2016'!AP161/'Population 2016'!AP$5","v":7.6328012301253908E-3},{"$f":"'Population 2016'!AQ161/'Population 2016'!AQ$5","v":6.5079191099906833E-3},{"$f":"'Population 2016'!AR161/'Population 2016'!AR$5","v":7.7176820532424938E-3},{"$f":"'Population 2016'!AS161/'Population 2016'!AS$5","v":9.2642994724059964E-3},{"$f":"'Population 2016'!AT161/'Population 2016'!AT$5","v":1.1704539463278325E-2},{"$f":"'Population 2016'!AU161/'Population 2016'!AU$5","v":1.1704539463278325E-2},{"$f":"'Population 2016'!AV161/'Population 2016'!AV$5","v":5.9655791363108441E-3},{"$f":"'Population 2016'!AW161/'Population 2016'!AW$5","v":6.536396363414485E-3},{"$f":"'Population 2016'!AX161/'Population 2016'!AX$5","v":5.5586081756264618E-3},{"$f":"'Population 2016'!AY161/'Population 2016'!AY$5","v":7.5594382056852604E-3},{"$f":"'Population 2016'!AZ161/'Population 2016'!AZ$5","v":7.6971311216066183E-3},{"$f":"'Population 2016'!BA161/'Population 2016'!BA$5","v":5.1014899589721446E-3},{"$f":"'Population 2016'!BB161/'Population 2016'!BB$5","v":8.589795819724768E-3},{"$f":"'Population 2016'!BC161/'Population 2016'!BC$5","v":1.9873412118797857E-2},159]
[null,"Male 35-39",{"$f":"'Population 2016'!C162/'Population 2016'!C$5","v":7.0430813736564223E-3},{"$f":"'Population 2016'!D162/'Population 2016'!D$5","v":6.9148988194790845E-3},{"$f":"'Population 2016'!E162/'Population 2016'!E$5","v":6.7973316957233064E-3},{"$f":"'Population 2016'!F162/'Population 2016'!F$5","v":9.9613700746845231E-3},{"$f":"'Population 2016'!G162/'Population 2016'!G$5","v":1.0664212634655985E-2},{"$f":"'Population 2016'!H162/'Population 2016'!H$5","v":5.1683943283843421E-3},{"$f":"'Population 2016'!I162/'Population 2016'!I$5","v":8.7408927225525509E-3},{"$f":"'Population 2016'!J162/'Population 2016'!J$5","v":5.3241335843361003E-3},{"$f":"'Population 2016'!K162/'Population 2016'!K$5","v":5.2450030713981953E-3},{"$f":"'Population 2016'!L162/'Population 2016'!L$5","v":9.0861436309627817E-3},{"$f":"'Population 2016'!M162/'Population 2016'!M$5","v":9.0861436309627817E-3},{"$f":"'Population 2016'!N162/'Population 2016'!N$5","v":4.2436566174520376E-3},{"$f":"'Population 2016'!O162/'Population 2016'!O$5","v":5.9242527813277062E-3},{"$f":"'Population 2016'!P162/'Population 2016'!P$5","v":1.7806829708103234E-3},{"$f":"'Population 2016'!Q162/'Population 2016'!Q$5","v":6.3454013466351751E-3},{"$f":"'Population 2016'!R162/'Population 2016'!R$5","v":3.4997604726672701E-3},{"$f":"'Population 2016'!S162/'Population 2016'!S$5","v":7.8132861170298207E-3},{"$f":"'Population 2016'!T162/'Population 2016'!T$5","v":7.952425047579606E-3},{"$f":"'Population 2016'!U162/'Population 2016'!U$5","v":2.1909440977293852E-2},{"$f":"'Population 2016'!V162/'Population 2016'!V$5","v":7.1438929637233726E-3},{"$f":"'Population 2016'!W162/'Population 2016'!W$5","v":7.2951189378934363E-3},{"$f":"'Population 2016'!X162/'Population 2016'!X$5","v":7.2951189378934363E-3},{"$f":"'Population 2016'!Y162/'Population 2016'!Y$5","v":6.2717603853674822E-3},{"$f":"'Population 2016'!Z162/'Population 2016'!Z$5","v":6.6668860570324616E-3},{"$f":"'Population 2016'!AA162/'Population 2016'!AA$5","v":6.1116547974729551E-3},{"$f":"'Population 2016'!AB162/'Population 2016'!AB$5","v":7.2689681995435143E-3},{"$f":"'Population 2016'!AC162/'Population 2016'!AC$5","v":5.5593364789696762E-3},{"$f":"'Population 2016'!AD162/'Population 2016'!AD$5","v":1.0309278350515464E-2},{"$f":"'Population 2016'!AE162/'Population 2016'!AE$5","v":1.0174642450127825E-2},{"$f":"'Population 2016'!AF162/'Population 2016'!AF$5","v":5.2330754497881132E-3},{"$f":"'Population 2016'!AG162/'Population 2016'!AG$5","v":1.0174642450127825E-2},{"$f":"'Population 2016'!AH162/'Population 2016'!AH$5","v":7.1036474926390678E-3},{"$f":"'Population 2016'!AI162/'Population 2016'!AI$5","v":7.9088831043835853E-3},{"$f":"'Population 2016'!AJ162/'Population 2016'!AJ$5","v":8.1699802024370518E-3},{"$f":"'Population 2016'!AK162/'Population 2016'!AK$5","v":9.0894233307770647E-3},{"$f":"'Population 2016'!AL162/'Population 2016'!AL$5","v":3.6980543090757525E-3},{"$f":"'Population 2016'!AM162/'Population 2016'!AM$5","v":7.6496517452579044E-3},{"$f":"'Population 2016'!AN162/'Population 2016'!AN$5","v":8.836042325733609E-3},{"$f":"'Population 2016'!AO162/'Population 2016'!AO$5","v":8.836042325733609E-3},{"$f":"'Population 2016'!AP162/'Population 2016'!AP$5","v":7.4663538512753039E-3},{"$f":"'Population 2016'!AQ162/'Population 2016'!AQ$5","v":5.6927166109497452E-3},{"$f":"'Population 2016'!AR162/'Population 2016'!AR$5","v":7.1304404779647399E-3},{"$f":"'Population 2016'!AS162/'Population 2016'!AS$5","v":8.7408927225525509E-3},{"$f":"'Population 2016'!AT162/'Population 2016'!AT$5","v":1.186270891548479E-2},{"$f":"'Population 2016'!AU162/'Population 2016'!AU$5","v":1.186270891548479E-2},{"$f":"'Population 2016'!AV162/'Population 2016'!AV$5","v":6.113398796325626E-3},{"$f":"'Population 2016'!AW162/'Population 2016'!AW$5","v":6.5287692964793457E-3},{"$f":"'Population 2016'!AX162/'Population 2016'!AX$5","v":5.3669320316393418E-3},{"$f":"'Population 2016'!AY162/'Population 2016'!AY$5","v":7.1432942688412224E-3},{"$f":"'Population 2016'!AZ162/'Population 2016'!AZ$5","v":7.0096818173973575E-3},{"$f":"'Population 2016'!BA162/'Population 2016'!BA$5","v":4.4806737205787088E-3},{"$f":"'Population 2016'!BB162/'Population 2016'!BB$5","v":8.5690808780373284E-3},{"$f":"'Population 2016'!BC162/'Population 2016'!BC$5","v":2.1909440977293852E-2},160]
[null,"Male 40-44",{"$f":"'Population 2016'!C163/'Population 2016'!C$5","v":5.4330881714054983E-3},{"$f":"'Population 2016'!D163/'Population 2016'!D$5","v":6.5065579061647253E-3},{"$f":"'Population 2016'!E163/'Population 2016'!E$5","v":7.4911283101833405E-3},{"$f":"'Population 2016'!F163/'Population 2016'!F$5","v":1.1702292042235385E-2},{"$f":"'Population 2016'!G163/'Population 2016'!G$5","v":1.2761868673198723E-2},{"$f":"'Population 2016'!H163/'Population 2016'!H$5","v":5.7714817468783744E-3},{"$f":"'Population 2016'!I163/'Population 2016'!I$5","v":1.1494012226781676E-2},{"$f":"'Population 2016'!J163/'Population 2016'!J$5","v":5.9461118068052715E-3},{"$f":"'Population 2016'!K163/'Population 2016'!K$5","v":6.8988328686859137E-3},{"$f":"'Population 2016'!L163/'Population 2016'!L$5","v":1.0857306244341017E-2},{"$f":"'Population 2016'!M163/'Population 2016'!M$5","v":1.0857306244341017E-2},{"$f":"'Population 2016'!N163/'Population 2016'!N$5","v":3.8417951953448374E-3},{"$f":"'Population 2016'!O163/'Population 2016'!O$5","v":6.0332273308170122E-3},{"$f":"'Population 2016'!P163/'Population 2016'!P$5","v":2.1187873323565876E-3},{"$f":"'Population 2016'!Q163/'Population 2016'!Q$5","v":8.237271007391217E-3},{"$f":"'Population 2016'!R163/'Population 2016'!R$5","v":3.5263746207483898E-3},{"$f":"'Population 2016'!S163/'Population 2016'!S$5","v":7.6694129090456526E-3},{"$f":"'Population 2016'!T163/'Population 2016'!T$5","v":5.9445424214645678E-3},{"$f":"'Population 2016'!U163/'Population 2016'!U$5","v":2.4874961271190193E-2},{"$f":"'Population 2016'!V163/'Population 2016'!V$5","v":7.2812755207180531E-3},{"$f":"'Population 2016'!W163/'Population 2016'!W$5","v":7.7951875747651637E-3},{"$f":"'Population 2016'!X163/'Population 2016'!X$5","v":7.7951875747651637E-3},{"$f":"'Population 2016'!Y163/'Population 2016'!Y$5","v":6.641388849143893E-3},{"$f":"'Population 2016'!Z163/'Population 2016'!Z$5","v":4.837557565773554E-3},{"$f":"'Population 2016'!AA163/'Population 2016'!AA$5","v":5.6359569134648412E-3},{"$f":"'Population 2016'!AB163/'Population 2016'!AB$5","v":7.094971495245796E-3},{"$f":"'Population 2016'!AC163/'Population 2016'!AC$5","v":4.7081115632130171E-3},{"$f":"'Population 2016'!AD163/'Population 2016'!AD$5","v":1.0755889686999889E-2},{"$f":"'Population 2016'!AE163/'Population 2016'!AE$5","v":9.9949691475271826E-3},{"$f":"'Population 2016'!AF163/'Population 2016'!AF$5","v":5.2632372679425115E-3},{"$f":"'Population 2016'!AG163/'Population 2016'!AG$5","v":9.9949691475271826E-3},{"$f":"'Population 2016'!AH163/'Population 2016'!AH$5","v":7.3024158717479547E-3},{"$f":"'Population 2016'!AI163/'Population 2016'!AI$5","v":7.1173112258290311E-3},{"$f":"'Population 2016'!AJ163/'Population 2016'!AJ$5","v":8.922845272286201E-3},{"$f":"'Population 2016'!AK163/'Population 2016'!AK$5","v":1.0120312283921904E-2},{"$f":"'Population 2016'!AL163/'Population 2016'!AL$5","v":4.5671414128873201E-3},{"$f":"'Population 2016'!AM163/'Population 2016'!AM$5","v":7.6098098090846859E-3},{"$f":"'Population 2016'!AN163/'Population 2016'!AN$5","v":9.0542162103196249E-3},{"$f":"'Population 2016'!AO163/'Population 2016'!AO$5","v":9.0542162103196249E-3},{"$f":"'Population 2016'!AP163/'Population 2016'!AP$5","v":7.3157586037442737E-3},{"$f":"'Population 2016'!AQ163/'Population 2016'!AQ$5","v":5.8023236696443251E-3},{"$f":"'Population 2016'!AR163/'Population 2016'!AR$5","v":7.09123163227093E-3},{"$f":"'Population 2016'!AS163/'Population 2016'!AS$5","v":1.1494012226781676E-2},{"$f":"'Population 2016'!AT163/'Population 2016'!AT$5","v":1.159909316180735E-2},{"$f":"'Population 2016'!AU163/'Population 2016'!AU$5","v":1.159909316180735E-2},{"$f":"'Population 2016'!AV163/'Population 2016'!AV$5","v":6.9264069264069264E-3},{"$f":"'Population 2016'!AW163/'Population 2016'!AW$5","v":6.978766245652572E-3},{"$f":"'Population 2016'!AX163/'Population 2016'!AX$5","v":5.4308240796350484E-3},{"$f":"'Population 2016'!AY163/'Population 2016'!AY$5","v":7.5303693277439495E-3},{"$f":"'Population 2016'!AZ163/'Population 2016'!AZ$5","v":7.2973175095351235E-3},{"$f":"'Population 2016'!BA163/'Population 2016'!BA$5","v":5.4523860937162596E-3},{"$f":"'Population 2016'!BB163/'Population 2016'!BB$5","v":9.0455245368484295E-3},{"$f":"'Population 2016'!BC163/'Population 2016'!BC$5","v":2.4874961271190193E-2},161]
[null,"Male 45-49",{"$f":"'Population 2016'!C164/'Population 2016'!C$5","v":5.341088559848303E-3},{"$f":"'Population 2016'!D164/'Population 2016'!D$5","v":7.4699490429662669E-3},{"$f":"'Population 2016'!E164/'Population 2016'!E$5","v":9.4225080747612731E-3},{"$f":"'Population 2016'!F164/'Population 2016'!F$5","v":1.4092196755086274E-2},{"$f":"'Population 2016'!G164/'Population 2016'!G$5","v":1.6930114220754616E-2},{"$f":"'Population 2016'!H164/'Population 2016'!H$5","v":7.4445629723779482E-3},{"$f":"'Population 2016'!I164/'Population 2016'!I$5","v":1.4226195461016665E-2},{"$f":"'Population 2016'!J164/'Population 2016'!J$5","v":7.3144638962374465E-3},{"$f":"'Population 2016'!K164/'Population 2016'!K$5","v":8.7416717856636586E-3},{"$f":"'Population 2016'!L164/'Population 2016'!L$5","v":1.4979429097898431E-2},{"$f":"'Population 2016'!M164/'Population 2016'!M$5","v":1.4979429097898431E-2},{"$f":"'Population 2016'!N164/'Population 2016'!N$5","v":4.0266514495141499E-3},{"$f":"'Population 2016'!O164/'Population 2016'!O$5","v":7.905608226587809E-3},{"$f":"'Population 2016'!P164/'Population 2016'!P$5","v":2.6597543108306098E-3},{"$f":"'Population 2016'!Q164/'Population 2016'!Q$5","v":9.4240960740766856E-3},{"$f":"'Population 2016'!R164/'Population 2016'!R$5","v":4.0586575823707881E-3},{"$f":"'Population 2016'!S164/'Population 2016'!S$5","v":8.3781870563541649E-3},{"$f":"'Population 2016'!T164/'Population 2016'!T$5","v":5.211653629777155E-3},{"$f":"'Population 2016'!U164/'Population 2016'!U$5","v":3.3417430177488605E-2},{"$f":"'Population 2016'!V164/'Population 2016'!V$5","v":8.8535425618793927E-3},{"$f":"'Population 2016'!W164/'Population 2016'!W$5","v":9.3051987527699876E-3},{"$f":"'Population 2016'!X164/'Population 2016'!X$5","v":9.3051987527699876E-3},{"$f":"'Population 2016'!Y164/'Population 2016'!Y$5","v":8.1159282046390363E-3},{"$f":"'Population 2016'!Z164/'Population 2016'!Z$5","v":5.0369446923340493E-3},{"$f":"'Population 2016'!AA164/'Population 2016'!AA$5","v":6.5069623966137755E-3},{"$f":"'Population 2016'!AB164/'Population 2016'!AB$5","v":8.2535848438635463E-3},{"$f":"'Population 2016'!AC164/'Population 2016'!AC$5","v":5.3111056408389375E-3},{"$f":"'Population 2016'!AD164/'Population 2016'!AD$5","v":1.4138970560869404E-2},{"$f":"'Population 2016'!AE164/'Population 2016'!AE$5","v":1.308021642932679E-2},{"$f":"'Population 2016'!AF164/'Population 2016'!AF$5","v":6.0625254490340678E-3},{"$f":"'Population 2016'!AG164/'Population 2016'!AG$5","v":1.308021642932679E-2},{"$f":"'Population 2016'!AH164/'Population 2016'!AH$5","v":8.6547839090495345E-3},{"$f":"'Population 2016'!AI164/'Population 2016'!AI$5","v":7.2266821244203342E-3},{"$f":"'Population 2016'!AJ164/'Population 2016'!AJ$5","v":1.0358865683294761E-2},{"$f":"'Population 2016'!AK164/'Population 2016'!AK$5","v":1.2282664722225714E-2},{"$f":"'Population 2016'!AL164/'Population 2016'!AL$5","v":5.9771908976428232E-3},{"$f":"'Population 2016'!AM164/'Population 2016'!AM$5","v":8.5153083584760102E-3},{"$f":"'Population 2016'!AN164/'Population 2016'!AN$5","v":1.1781389767644812E-2},{"$f":"'Population 2016'!AO164/'Population 2016'!AO$5","v":1.1781389767644812E-2},{"$f":"'Population 2016'!AP164/'Population 2016'!AP$5","v":9.5667612510502032E-3},{"$f":"'Population 2016'!AQ164/'Population 2016'!AQ$5","v":7.5080835205787256E-3},{"$f":"'Population 2016'!AR164/'Population 2016'!AR$5","v":8.3877968705548915E-3},{"$f":"'Population 2016'!AS164/'Population 2016'!AS$5","v":1.4226195461016665E-2},{"$f":"'Population 2016'!AT164/'Population 2016'!AT$5","v":1.3866188643433332E-2},{"$f":"'Population 2016'!AU164/'Population 2016'!AU$5","v":1.3866188643433332E-2},{"$f":"'Population 2016'!AV164/'Population 2016'!AV$5","v":8.70024284658431E-3},{"$f":"'Population 2016'!AW164/'Population 2016'!AW$5","v":8.8016352431508939E-3},{"$f":"'Population 2016'!AX164/'Population 2016'!AX$5","v":6.5425457147603406E-3},{"$f":"'Population 2016'!AY164/'Population 2016'!AY$5","v":9.0618402129677787E-3},{"$f":"'Population 2016'!AZ164/'Population 2016'!AZ$5","v":8.8476738901576823E-3},{"$f":"'Population 2016'!BA164/'Population 2016'!BA$5","v":6.6670265601381992E-3},{"$f":"'Population 2016'!BB164/'Population 2016'!BB$5","v":1.0364375824282054E-2},{"$f":"'Population 2016'!BC164/'Population 2016'!BC$5","v":3.3417430177488605E-2},162]
[null,"Male 50-54",{"$f":"'Population 2016'!C165/'Population 2016'!C$5","v":5.4586436190602753E-3},{"$f":"'Population 2016'!D165/'Population 2016'!D$5","v":7.4797296636444546E-3},{"$f":"'Population 2016'!E165/'Population 2016'!E$5","v":9.3334395904724841E-3},{"$f":"'Population 2016'!F165/'Population 2016'!F$5","v":1.6399690960597475E-2},{"$f":"'Population 2016'!G165/'Population 2016'!G$5","v":1.893303740594381E-2},{"$f":"'Population 2016'!H165/'Population 2016'!H$5","v":8.3264972617885756E-3},{"$f":"'Population 2016'!I165/'Population 2016'!I$5","v":1.6340758730424589E-2},{"$f":"'Population 2016'!J165/'Population 2016'!J$5","v":7.8452186460778051E-3},{"$f":"'Population 2016'!K165/'Population 2016'!K$5","v":8.9779331852761889E-3},{"$f":"'Population 2016'!L165/'Population 2016'!L$5","v":1.7425698537003795E-2},{"$f":"'Population 2016'!M165/'Population 2016'!M$5","v":1.7425698537003795E-2},{"$f":"'Population 2016'!N165/'Population 2016'!N$5","v":5.1599006598564553E-3},{"$f":"'Population 2016'!O165/'Population 2016'!O$5","v":8.9656333898019639E-3},{"$f":"'Population 2016'!P165/'Population 2016'!P$5","v":2.7273751831398624E-3},{"$f":"'Population 2016'!Q165/'Population 2016'!Q$5","v":9.6238587090633487E-3},{"$f":"'Population 2016'!R165/'Population 2016'!R$5","v":5.1631447277372651E-3},{"$f":"'Population 2016'!S165/'Population 2016'!S$5","v":8.6694641031932786E-3},{"$f":"'Population 2016'!T165/'Population 2016'!T$5","v":5.1209150174729998E-3},{"$f":"'Population 2016'!U165/'Population 2016'!U$5","v":3.1868277785154692E-2},{"$f":"'Population 2016'!V165/'Population 2016'!V$5","v":9.1817342258111289E-3},{"$f":"'Population 2016'!W165/'Population 2016'!W$5","v":9.697409448355657E-3},{"$f":"'Population 2016'!X165/'Population 2016'!X$5","v":9.697409448355657E-3},{"$f":"'Population 2016'!Y165/'Population 2016'!Y$5","v":8.5411996629624325E-3},{"$f":"'Population 2016'!Z165/'Population 2016'!Z$5","v":5.0543668684412766E-3},{"$f":"'Population 2016'!AA165/'Population 2016'!AA$5","v":6.7992907052221128E-3},{"$f":"'Population 2016'!AB165/'Population 2016'!AB$5","v":8.310901405279264E-3},{"$f":"'Population 2016'!AC165/'Population 2016'!AC$5","v":5.7227551140724134E-3},{"$f":"'Population 2016'!AD165/'Population 2016'!AD$5","v":1.6383192526703637E-2},{"$f":"'Population 2016'!AE165/'Population 2016'!AE$5","v":1.5415969363135145E-2},{"$f":"'Population 2016'!AF165/'Population 2016'!AF$5","v":7.2237554479784045E-3},{"$f":"'Population 2016'!AG165/'Population 2016'!AG$5","v":1.5415969363135145E-2},{"$f":"'Population 2016'!AH165/'Population 2016'!AH$5","v":8.7328051419707786E-3},{"$f":"'Population 2016'!AI165/'Population 2016'!AI$5","v":7.2376192142794647E-3},{"$f":"'Population 2016'!AJ165/'Population 2016'!AJ$5","v":1.0442517357722444E-2},{"$f":"'Population 2016'!AK165/'Population 2016'!AK$5","v":1.2584388318268106E-2},{"$f":"'Population 2016'!AL165/'Population 2016'!AL$5","v":6.7043862294035228E-3},{"$f":"'Population 2016'!AM165/'Population 2016'!AM$5","v":8.4030265383514859E-3},{"$f":"'Population 2016'!AN165/'Population 2016'!AN$5","v":1.5490345805607068E-2},{"$f":"'Population 2016'!AO165/'Population 2016'!AO$5","v":1.5490345805607068E-2},{"$f":"'Population 2016'!AP165/'Population 2016'!AP$5","v":1.1247087170870123E-2},{"$f":"'Population 2016'!AQ165/'Population 2016'!AQ$5","v":8.6795089603770477E-3},{"$f":"'Population 2016'!AR165/'Population 2016'!AR$5","v":8.9970934215354136E-3},{"$f":"'Population 2016'!AS165/'Population 2016'!AS$5","v":1.6340758730424589E-2},{"$f":"'Population 2016'!AT165/'Population 2016'!AT$5","v":1.5816945220646386E-2},{"$f":"'Population 2016'!AU165/'Population 2016'!AU$5","v":1.5816945220646386E-2},{"$f":"'Population 2016'!AV165/'Population 2016'!AV$5","v":9.5766022595290892E-3},{"$f":"'Population 2016'!AW165/'Population 2016'!AW$5","v":9.080023186283483E-3},{"$f":"'Population 2016'!AX165/'Population 2016'!AX$5","v":7.2325798331139704E-3},{"$f":"'Population 2016'!AY165/'Population 2016'!AY$5","v":1.0128209051130627E-2},{"$f":"'Population 2016'!AZ165/'Population 2016'!AZ$5","v":1.0507331833792592E-2},{"$f":"'Population 2016'!BA165/'Population 2016'!BA$5","v":7.368818829626431E-3},{"$f":"'Population 2016'!BB165/'Population 2016'!BB$5","v":1.0530095357781568E-2},{"$f":"'Population 2016'!BC165/'Population 2016'!BC$5","v":3.1868277785154692E-2},163]
[null,"Male 55-59",{"$f":"'Population 2016'!C166/'Population 2016'!C$5","v":4.8402017858146821E-3},{"$f":"'Population 2016'!D166/'Population 2016'!D$5","v":6.8244280782058433E-3},{"$f":"'Population 2016'!E166/'Population 2016'!E$5","v":8.6443307909750185E-3},{"$f":"'Population 2016'!F166/'Population 2016'!F$5","v":1.5204738604172032E-2},{"$f":"'Population 2016'!G166/'Population 2016'!G$5","v":1.9122503112650895E-2},{"$f":"'Population 2016'!H166/'Population 2016'!H$5","v":7.2921699150165524E-3},{"$f":"'Population 2016'!I166/'Population 2016'!I$5","v":1.601624654551545E-2},{"$f":"'Population 2016'!J166/'Population 2016'!J$5","v":7.3642221540349802E-3},{"$f":"'Population 2016'!K166/'Population 2016'!K$5","v":8.8834286254311778E-3},{"$f":"'Population 2016'!L166/'Population 2016'!L$5","v":1.6726764411545123E-2},{"$f":"'Population 2016'!M166/'Population 2016'!M$5","v":1.6726764411545123E-2},{"$f":"'Population 2016'!N166/'Population 2016'!N$5","v":4.7901881515178303E-3},{"$f":"'Population 2016'!O166/'Population 2016'!O$5","v":7.0635321623522653E-3},{"$f":"'Population 2016'!P166/'Population 2016'!P$5","v":2.6034035839062322E-3},{"$f":"'Population 2016'!Q166/'Population 2016'!Q$5","v":9.8588735737535401E-3},{"$f":"'Population 2016'!R166/'Population 2016'!R$5","v":5.0566881354127853E-3},{"$f":"'Population 2016'!S166/'Population 2016'!S$5","v":8.114272398763573E-3},{"$f":"'Population 2016'!T166/'Population 2016'!T$5","v":4.3135740310744847E-3},{"$f":"'Population 2016'!U166/'Population 2016'!U$5","v":3.1381401318992606E-2},{"$f":"'Population 2016'!V166/'Population 2016'!V$5","v":7.800276291586845E-3},{"$f":"'Population 2016'!W166/'Population 2016'!W$5","v":9.4980356780996079E-3},{"$f":"'Population 2016'!X166/'Population 2016'!X$5","v":9.4980356780996079E-3},{"$f":"'Population 2016'!Y166/'Population 2016'!Y$5","v":7.5912942560531632E-3},{"$f":"'Population 2016'!Z166/'Population 2016'!Z$5","v":4.4852424489385057E-3},{"$f":"'Population 2016'!AA166/'Population 2016'!AA$5","v":6.1628122514794138E-3},{"$f":"'Population 2016'!AB166/'Population 2016'!AB$5","v":7.6824662497569163E-3},{"$f":"'Population 2016'!AC166/'Population 2016'!AC$5","v":5.2345677990819593E-3},{"$f":"'Population 2016'!AD166/'Population 2016'!AD$5","v":1.6301313781681492E-2},{"$f":"'Population 2016'!AE166/'Population 2016'!AE$5","v":1.5231162537603055E-2},{"$f":"'Population 2016'!AF166/'Population 2016'!AF$5","v":7.7063445384487773E-3},{"$f":"'Population 2016'!AG166/'Population 2016'!AG$5","v":1.5231162537603055E-2},{"$f":"'Population 2016'!AH166/'Population 2016'!AH$5","v":7.8299880181678019E-3},{"$f":"'Population 2016'!AI166/'Population 2016'!AI$5","v":6.5034670574853444E-3},{"$f":"'Population 2016'!AJ166/'Population 2016'!AJ$5","v":9.6478264506594542E-3},{"$f":"'Population 2016'!AK166/'Population 2016'!AK$5","v":1.2094087474699219E-2},{"$f":"'Population 2016'!AL166/'Population 2016'!AL$5","v":6.4028662137954277E-3},{"$f":"'Population 2016'!AM166/'Population 2016'!AM$5","v":6.9506068651278017E-3},{"$f":"'Population 2016'!AN166/'Population 2016'!AN$5","v":1.652667175739064E-2},{"$f":"'Population 2016'!AO166/'Population 2016'!AO$5","v":1.652667175739064E-2},{"$f":"'Population 2016'!AP166/'Population 2016'!AP$5","v":1.0494110933214972E-2},{"$f":"'Population 2016'!AQ166/'Population 2016'!AQ$5","v":7.5080835205787256E-3},{"$f":"'Population 2016'!AR166/'Population 2016'!AR$5","v":8.3641824521256646E-3},{"$f":"'Population 2016'!AS166/'Population 2016'!AS$5","v":1.601624654551545E-2},{"$f":"'Population 2016'!AT166/'Population 2016'!AT$5","v":1.4235250698581748E-2},{"$f":"'Population 2016'!AU166/'Population 2016'!AU$5","v":1.4235250698581748E-2},{"$f":"'Population 2016'!AV166/'Population 2016'!AV$5","v":8.5946573751451809E-3},{"$f":"'Population 2016'!AW166/'Population 2016'!AW$5","v":8.7558728415400577E-3},{"$f":"'Population 2016'!AX166/'Population 2016'!AX$5","v":6.5425457147603406E-3},{"$f":"'Population 2016'!AY166/'Population 2016'!AY$5","v":9.6416878308497288E-3},{"$f":"'Population 2016'!AZ166/'Population 2016'!AZ$5","v":9.7681081049985335E-3},{"$f":"'Population 2016'!BA166/'Population 2016'!BA$5","v":7.0988987259771111E-3},{"$f":"'Population 2016'!BB166/'Population 2016'!BB$5","v":9.473633331722171E-3},{"$f":"'Population 2016'!BC166/'Population 2016'!BC$5","v":3.1381401318992606E-2},164]
[null,"Male 60-64",{"$f":"'Population 2016'!C167/'Population 2016'!C$5","v":4.3444261013120163E-3},{"$f":"'Population 2016'!D167/'Population 2016'!D$5","v":6.2938294064141314E-3},{"$f":"'Population 2016'!E167/'Population 2016'!E$5","v":8.0817929954668834E-3},{"$f":"'Population 2016'!F167/'Population 2016'!F$5","v":1.2938449652330672E-2},{"$f":"'Population 2016'!G167/'Population 2016'!G$5","v":1.8540572727764847E-2},{"$f":"'Population 2016'!H167/'Population 2016'!H$5","v":7.0262926660030547E-3},{"$f":"'Population 2016'!I167/'Population 2016'!I$5","v":1.4131982246043045E-2},{"$f":"'Population 2016'!J167/'Population 2016'!J$5","v":6.4519874277468633E-3},{"$f":"'Population 2016'!K167/'Population 2016'!K$5","v":7.2768511080659641E-3},{"$f":"'Population 2016'!L167/'Population 2016'!L$5","v":1.6186678950963419E-2},{"$f":"'Population 2016'!M167/'Population 2016'!M$5","v":1.6186678950963419E-2},{"$f":"'Population 2016'!N167/'Population 2016'!N$5","v":4.0186142210720055E-3},{"$f":"'Population 2016'!O167/'Population 2016'!O$5","v":6.7366085138843481E-3},{"$f":"'Population 2016'!P167/'Population 2016'!P$5","v":2.299109658514595E-3},{"$f":"'Population 2016'!Q167/'Population 2016'!Q$5","v":8.6837992503025815E-3},{"$f":"'Population 2016'!R167/'Population 2016'!R$5","v":3.9388939160057484E-3},{"$f":"'Population 2016'!S167/'Population 2016'!S$5","v":6.9050313255224005E-3},{"$f":"'Population 2016'!T167/'Population 2016'!T$5","v":3.545785773116243E-3},{"$f":"'Population 2016'!U167/'Population 2016'!U$5","v":3.0230602398973135E-2},{"$f":"'Population 2016'!V167/'Population 2016'!V$5","v":6.4646125430274535E-3},{"$f":"'Population 2016'!W167/'Population 2016'!W$5","v":7.9455350080730042E-3},{"$f":"'Population 2016'!X167/'Population 2016'!X$5","v":7.9455350080730042E-3},{"$f":"'Population 2016'!Y167/'Population 2016'!Y$5","v":6.4585618670609368E-3},{"$f":"'Population 2016'!Z167/'Population 2016'!Z$5","v":3.7457678630539526E-3},{"$f":"'Population 2016'!AA167/'Population 2016'!AA$5","v":5.1888274777979974E-3},{"$f":"'Population 2016'!AB167/'Population 2016'!AB$5","v":6.980338372414358E-3},{"$f":"'Population 2016'!AC167/'Population 2016'!AC$5","v":4.3057707464094442E-3},{"$f":"'Population 2016'!AD167/'Population 2016'!AD$5","v":1.554951803193271E-2},{"$f":"'Population 2016'!AE167/'Population 2016'!AE$5","v":1.4414932391502993E-2},{"$f":"'Population 2016'!AF167/'Population 2016'!AF$5","v":5.7759881765672835E-3},{"$f":"'Population 2016'!AG167/'Population 2016'!AG$5","v":1.4414932391502993E-2},{"$f":"'Population 2016'!AH167/'Population 2016'!AH$5","v":6.7748437253281075E-3},{"$f":"'Population 2016'!AI167/'Population 2016'!AI$5","v":5.5259646513255755E-3},{"$f":"'Population 2016'!AJ167/'Population 2016'!AJ$5","v":9.1738002955692489E-3},{"$f":"'Population 2016'!AK167/'Population 2016'!AK$5","v":1.051003859547666E-2},{"$f":"'Population 2016'!AL167/'Population 2016'!AL$5","v":5.6845391177879076E-3},{"$f":"'Population 2016'!AM167/'Population 2016'!AM$5","v":5.9292045014143887E-3},{"$f":"'Population 2016'!AN167/'Population 2016'!AN$5","v":1.3199520017453911E-2},{"$f":"'Population 2016'!AO167/'Population 2016'!AO$5","v":1.3199520017453911E-2},{"$f":"'Population 2016'!AP167/'Population 2016'!AP$5","v":9.8996560087503769E-3},{"$f":"'Population 2016'!AQ167/'Population 2016'!AQ$5","v":6.0420891105387184E-3},{"$f":"'Population 2016'!AR167/'Population 2016'!AR$5","v":7.4066846180802235E-3},{"$f":"'Population 2016'!AS167/'Population 2016'!AS$5","v":1.4131982246043045E-2},{"$f":"'Population 2016'!AT167/'Population 2016'!AT$5","v":1.4024358095639795E-2},{"$f":"'Population 2016'!AU167/'Population 2016'!AU$5","v":1.4024358095639795E-2},{"$f":"'Population 2016'!AV167/'Population 2016'!AV$5","v":8.9325308837503968E-3},{"$f":"'Population 2016'!AW167/'Population 2016'!AW$5","v":7.6652022698151202E-3},{"$f":"'Population 2016'!AX167/'Population 2016'!AX$5","v":6.0058525115964066E-3},{"$f":"'Population 2016'!AY167/'Population 2016'!AY$5","v":8.3167589731036381E-3},{"$f":"'Population 2016'!AZ167/'Population 2016'!AZ$5","v":8.6434525487398672E-3},{"$f":"'Population 2016'!BA167/'Population 2016'!BA$5","v":6.2486503994817538E-3},{"$f":"'Population 2016'!BB167/'Population 2016'!BB$5","v":7.7404832105397621E-3},{"$f":"'Population 2016'!BC167/'Population 2016'!BC$5","v":3.0230602398973135E-2},165]
[null,"Male 65-69",{"$f":"'Population 2016'!C168/'Population 2016'!C$5","v":4.0990938038261617E-3},{"$f":"'Population 2016'!D168/'Population 2016'!D$5","v":6.3574034408223545E-3},{"$f":"'Population 2016'!E168/'Population 2016'!E$5","v":8.4286913026968991E-3},{"$f":"'Population 2016'!F168/'Population 2016'!F$5","v":1.5091424156579963E-2},{"$f":"'Population 2016'!G168/'Population 2016'!G$5","v":2.1233692415958426E-2},{"$f":"'Population 2016'!H168/'Population 2016'!H$5","v":7.5223807037965327E-3},{"$f":"'Population 2016'!I168/'Population 2016'!I$5","v":1.5304413365714765E-2},{"$f":"'Population 2016'!J168/'Population 2016'!J$5","v":6.6095552441057196E-3},{"$f":"'Population 2016'!K168/'Population 2016'!K$5","v":7.7021216273685201E-3},{"$f":"'Population 2016'!L168/'Population 2016'!L$5","v":1.7393928804028402E-2},{"$f":"'Population 2016'!M168/'Population 2016'!M$5","v":1.7393928804028402E-2},{"$f":"'Population 2016'!N168/'Population 2016'!N$5","v":4.0427259063984377E-3},{"$f":"'Population 2016'!O168/'Population 2016'!O$5","v":7.0239050534470632E-3},{"$f":"'Population 2016'!P168/'Population 2016'!P$5","v":2.5019722754423533E-3},{"$f":"'Population 2016'!Q168/'Population 2016'!Q$5","v":8.1197635750461222E-3},{"$f":"'Population 2016'!R168/'Population 2016'!R$5","v":3.4731463245861499E-3},{"$f":"'Population 2016'!S168/'Population 2016'!S$5","v":6.9350416879240071E-3},{"$f":"'Population 2016'!T168/'Population 2016'!T$5","v":3.1967911104079515E-3},{"$f":"'Population 2016'!U168/'Population 2016'!U$5","v":3.2886292214402695E-2},{"$f":"'Population 2016'!V168/'Population 2016'!V$5","v":6.9530838567863169E-3},{"$f":"'Population 2016'!W168/'Population 2016'!W$5","v":8.4782878695768699E-3},{"$f":"'Population 2016'!X168/'Population 2016'!X$5","v":8.4782878695768699E-3},{"$f":"'Population 2016'!Y168/'Population 2016'!Y$5","v":6.788445334732357E-3},{"$f":"'Population 2016'!Z168/'Population 2016'!Z$5","v":2.9714489249549445E-3},{"$f":"'Population 2016'!AA168/'Population 2016'!AA$5","v":4.6931981182029518E-3},{"$f":"'Population 2016'!AB168/'Population 2016'!AB$5","v":7.1011125553974803E-3},{"$f":"'Population 2016'!AC168/'Population 2016'!AC$5","v":3.8186177265778689E-3},{"$f":"'Population 2016'!AD168/'Population 2016'!AD$5","v":1.6126391008225091E-2},{"$f":"'Population 2016'!AE168/'Population 2016'!AE$5","v":1.4189057382519328E-2},{"$f":"'Population 2016'!AF168/'Population 2016'!AF$5","v":5.3989654496373043E-3},{"$f":"'Population 2016'!AG168/'Population 2016'!AG$5","v":1.4189057382519328E-2},{"$f":"'Population 2016'!AH168/'Population 2016'!AH$5","v":6.2639904145342408E-3},{"$f":"'Population 2016'!AI168/'Population 2016'!AI$5","v":5.1964848193192751E-3},{"$f":"'Population 2016'!AJ168/'Population 2016'!AJ$5","v":9.2295680785210391E-3},{"$f":"'Population 2016'!AK168/'Population 2016'!AK$5","v":1.092490854003495E-2},{"$f":"'Population 2016'!AL168/'Population 2016'!AL$5","v":6.766463879675777E-3},{"$f":"'Population 2016'!AM168/'Population 2016'!AM$5","v":5.9726684317851723E-3},{"$f":"'Population 2016'!AN168/'Population 2016'!AN$5","v":1.2763172248281881E-2},{"$f":"'Population 2016'!AO168/'Population 2016'!AO$5","v":1.2763172248281881E-2},{"$f":"'Population 2016'!AP168/'Population 2016'!AP$5","v":9.5746873167097315E-3},{"$f":"'Population 2016'!AQ168/'Population 2016'!AQ$5","v":6.2887049926015235E-3},{"$f":"'Population 2016'!AR168/'Population 2016'!AR$5","v":7.434309032091772E-3},{"$f":"'Population 2016'!AS168/'Population 2016'!AS$5","v":1.5304413365714765E-2},{"$f":"'Population 2016'!AT168/'Population 2016'!AT$5","v":1.4604312753730163E-2},{"$f":"'Population 2016'!AU168/'Population 2016'!AU$5","v":1.4604312753730163E-2},{"$f":"'Population 2016'!AV168/'Population 2016'!AV$5","v":8.9536479780382219E-3},{"$f":"'Population 2016'!AW168/'Population 2016'!AW$5","v":6.570718164622613E-3},{"$f":"'Population 2016'!AX168/'Population 2016'!AX$5","v":6.0186309211955483E-3},{"$f":"'Population 2016'!AY168/'Population 2016'!AY$5","v":8.8277592484930084E-3},{"$f":"'Population 2016'!AZ168/'Population 2016'!AZ$5","v":9.1353095822954474E-3},{"$f":"'Population 2016'!BA168/'Population 2016'!BA$5","v":5.3714100626214636E-3},{"$f":"'Population 2016'!BB168/'Population 2016'!BB$5","v":7.4159491241032154E-3},{"$f":"'Population 2016'!BC168/'Population 2016'!BC$5","v":3.2886292214402695E-2},166]
[null,"Male 70-74",{"$f":"'Population 2016'!C169/'Population 2016'!C$5","v":2.5351004073538358E-3},{"$f":"'Population 2016'!D169/'Population 2016'!D$5","v":4.327924650098295E-3},{"$f":"'Population 2016'!E169/'Population 2016'!E$5","v":5.9722762623113743E-3},{"$f":"'Population 2016'!F169/'Population 2016'!F$5","v":9.8583569405099152E-3},{"$f":"'Population 2016'!G169/'Population 2016'!G$5","v":1.5333188978509176E-2},{"$f":"'Population 2016'!H169/'Population 2016'!H$5","v":5.7098760428386615E-3},{"$f":"'Population 2016'!I169/'Population 2016'!I$5","v":1.1295117661837367E-2},{"$f":"'Population 2016'!J169/'Population 2016'!J$5","v":4.735327533731952E-3},{"$f":"'Population 2016'!K169/'Population 2016'!K$5","v":5.8829088503520293E-3},{"$f":"'Population 2016'!L169/'Population 2016'!L$5","v":1.3938970342954268E-2},{"$f":"'Population 2016'!M169/'Population 2016'!M$5","v":1.3938970342954268E-2},{"$f":"'Population 2016'!N169/'Population 2016'!N$5","v":2.8451788685189801E-3},{"$f":"'Population 2016'!O169/'Population 2016'!O$5","v":5.3991935883337793E-3},{"$f":"'Population 2016'!P169/'Population 2016'!P$5","v":1.3862278823396821E-3},{"$f":"'Population 2016'!Q169/'Population 2016'!Q$5","v":6.1808909413520402E-3},{"$f":"'Population 2016'!R169/'Population 2016'!R$5","v":2.8876350668015117E-3},{"$f":"'Population 2016'!S169/'Population 2016'!S$5","v":4.9393525882172259E-3},{"$f":"'Population 2016'!T169/'Population 2016'!T$5","v":1.8962043340483845E-3},{"$f":"'Population 2016'!U169/'Population 2016'!U$5","v":2.3724162351170718E-2},{"$f":"'Population 2016'!V169/'Population 2016'!V$5","v":5.2434342586302959E-3},{"$f":"'Population 2016'!W169/'Population 2016'!W$5","v":6.21000268010642E-3},{"$f":"'Population 2016'!X169/'Population 2016'!X$5","v":6.21000268010642E-3},{"$f":"'Population 2016'!Y169/'Population 2016'!Y$5","v":4.9999205100077901E-3},{"$f":"'Population 2016'!Z169/'Population 2016'!Z$5","v":2.1080833089745501E-3},{"$f":"'Population 2016'!AA169/'Population 2016'!AA$5","v":3.4441589814218714E-3},{"$f":"'Population 2016'!AB169/'Population 2016'!AB$5","v":4.92922428175184E-3},{"$f":"'Population 2016'!AC169/'Population 2016'!AC$5","v":2.8060427660362292E-3},{"$f":"'Population 2016'!AD169/'Population 2016'!AD$5","v":1.2114332502140012E-2},{"$f":"'Population 2016'!AE169/'Population 2016'!AE$5","v":1.0893335660530395E-2},{"$f":"'Population 2016'!AF169/'Population 2016'!AF$5","v":4.5393536322369515E-3},{"$f":"'Population 2016'!AG169/'Population 2016'!AG$5","v":1.0893335660530395E-2},{"$f":"'Population 2016'!AH169/'Population 2016'!AH$5","v":4.5902492035332469E-3},{"$f":"'Population 2016'!AI169/'Population 2016'!AI$5","v":3.5777955201679937E-3},{"$f":"'Population 2016'!AJ169/'Population 2016'!AJ$5","v":6.5527144968351783E-3},{"$f":"'Population 2016'!AK169/'Population 2016'!AK$5","v":8.020818928126925E-3},{"$f":"'Population 2016'!AL169/'Population 2016'!AL$5","v":5.090367322324897E-3},{"$f":"'Population 2016'!AM169/'Population 2016'!AM$5","v":4.2015132691757429E-3},{"$f":"'Population 2016'!AN169/'Population 2016'!AN$5","v":1.0635976873568233E-2},{"$f":"'Population 2016'!AO169/'Population 2016'!AO$5","v":1.0635976873568233E-2},{"$f":"'Population 2016'!AP169/'Population 2016'!AP$5","v":7.6882836897420861E-3},{"$f":"'Population 2016'!AQ169/'Population 2016'!AQ$5","v":4.6514495533512357E-3},{"$f":"'Population 2016'!AR169/'Population 2016'!AR$5","v":5.4437917805338328E-3},{"$f":"'Population 2016'!AS169/'Population 2016'!AS$5","v":1.1295117661837367E-2},{"$f":"'Population 2016'!AT169/'Population 2016'!AT$5","v":1.0913692202246006E-2},{"$f":"'Population 2016'!AU169/'Population 2016'!AU$5","v":1.0913692202246006E-2},{"$f":"'Population 2016'!AV169/'Population 2016'!AV$5","v":6.7785872663921444E-3},{"$f":"'Population 2016'!AW169/'Population 2016'!AW$5","v":4.9995423759838916E-3},{"$f":"'Population 2016'!AX169/'Population 2016'!AX$5","v":4.1146478909234955E-3},{"$f":"'Population 2016'!AY169/'Population 2016'!AY$5","v":6.3966830880328018E-3},{"$f":"'Population 2016'!AZ169/'Population 2016'!AZ$5","v":6.5609701376624424E-3},{"$f":"'Population 2016'!BA169/'Population 2016'!BA$5","v":4.1027855754696609E-3},{"$f":"'Population 2016'!BB169/'Population 2016'!BB$5","v":5.5654143333586517E-3},{"$f":"'Population 2016'!BC169/'Population 2016'!BC$5","v":2.3724162351170718E-2},167]
[null,"Male 75-79",{"$f":"'Population 2016'!C170/'Population 2016'!C$5","v":2.2948791993989358E-3},{"$f":"'Population 2016'!D170/'Population 2016'!D$5","v":3.2496112203280422E-3},{"$f":"'Population 2016'!E170/'Population 2016'!E$5","v":4.1252771670596622E-3},{"$f":"'Population 2016'!F170/'Population 2016'!F$5","v":7.3654390934844195E-3},{"$f":"'Population 2016'!G170/'Population 2016'!G$5","v":1.1516808314837871E-2},{"$f":"'Population 2016'!H170/'Population 2016'!H$5","v":4.2216119294582266E-3},{"$f":"'Population 2016'!I170/'Population 2016'!I$5","v":8.3640398626580684E-3},{"$f":"'Population 2016'!J170/'Population 2016'!J$5","v":3.3172171865022432E-3},{"$f":"'Population 2016'!K170/'Population 2016'!K$5","v":3.8983130936067665E-3},{"$f":"'Population 2016'!L170/'Population 2016'!L$5","v":1.0460184582148587E-2},{"$f":"'Population 2016'!M170/'Population 2016'!M$5","v":1.0460184582148587E-2},{"$f":"'Population 2016'!N170/'Population 2016'!N$5","v":2.4754663601803555E-3},{"$f":"'Population 2016'!O170/'Population 2016'!O$5","v":4.0320583311043087E-3},{"$f":"'Population 2016'!P170/'Population 2016'!P$5","v":7.6636988617153159E-4},{"$f":"'Population 2016'!Q170/'Population 2016'!Q$5","v":4.1010093888438444E-3},{"$f":"'Population 2016'!R170/'Population 2016'!R$5","v":2.2888167349763133E-3},{"$f":"'Population 2016'!S170/'Population 2016'!S$5","v":3.6709734478905364E-3},{"$f":"'Population 2016'!T170/'Population 2016'!T$5","v":1.5146368361539857E-3},{"$f":"'Population 2016'!U170/'Population 2016'!U$5","v":1.8279998229540122E-2},{"$f":"'Population 2016'!V170/'Population 2016'!V$5","v":3.7245937674113311E-3},{"$f":"'Population 2016'!W170/'Population 2016'!W$5","v":4.6999915021015953E-3},{"$f":"'Population 2016'!X170/'Population 2016'!X$5","v":4.6999915021015953E-3},{"$f":"'Population 2016'!Y170/'Population 2016'!Y$5","v":3.5293556541231459E-3},{"$f":"'Population 2016'!Z170/'Population 2016'!Z$5","v":1.5021787399120761E-3},{"$f":"'Population 2016'!AA170/'Population 2016'!AA$5","v":2.5379412247360242E-3},{"$f":"'Population 2016'!AB170/'Population 2016'!AB$5","v":3.8750089557127213E-3},{"$f":"'Population 2016'!AC170/'Population 2016'!AC$5","v":1.9610236212328383E-3},{"$f":"'Population 2016'!AD170/'Population 2016'!AD$5","v":8.533998287989876E-3},{"$f":"'Population 2016'!AE170/'Population 2016'!AE$5","v":7.4025400671464802E-3},{"$f":"'Population 2016'!AF170/'Population 2016'!AF$5","v":3.2273145425206233E-3},{"$f":"'Population 2016'!AG170/'Population 2016'!AG$5","v":7.4025400671464802E-3},{"$f":"'Population 2016'!AH170/'Population 2016'!AH$5","v":3.5741155271541755E-3},{"$f":"'Population 2016'!AI170/'Population 2016'!AI$5","v":2.6276358386560505E-3},{"$f":"'Population 2016'!AJ170/'Population 2016'!AJ$5","v":4.7960293338538329E-3},{"$f":"'Population 2016'!AK170/'Population 2016'!AK$5","v":7.0905045069962159E-3},{"$f":"'Population 2016'!AL170/'Population 2016'!AL$5","v":3.8044731381139036E-3},{"$f":"'Population 2016'!AM170/'Population 2016'!AM$5","v":3.0642070911402401E-3},{"$f":"'Population 2016'!AN170/'Population 2016'!AN$5","v":7.6360859605105269E-3},{"$f":"'Population 2016'!AO170/'Population 2016'!AO$5","v":7.6360859605105269E-3},{"$f":"'Population 2016'!AP170/'Population 2016'!AP$5","v":5.8811407193697192E-3},{"$f":"'Population 2016'!AQ170/'Population 2016'!AQ$5","v":3.2813613196689866E-3},{"$f":"'Population 2016'!AR170/'Population 2016'!AR$5","v":4.0425211020448078E-3},{"$f":"'Population 2016'!AS170/'Population 2016'!AS$5","v":8.3640398626580684E-3},{"$f":"'Population 2016'!AT170/'Population 2016'!AT$5","v":8.2248115147361203E-3},{"$f":"'Population 2016'!AU170/'Population 2016'!AU$5","v":8.2248115147361203E-3},{"$f":"'Population 2016'!AV170/'Population 2016'!AV$5","v":4.9202829690634569E-3},{"$f":"'Population 2016'!AW170/'Population 2016'!AW$5","v":4.1109890780401488E-3},{"$f":"'Population 2016'!AX170/'Population 2016'!AX$5","v":3.0029262557982033E-3},{"$f":"'Population 2016'!AY170/'Population 2016'!AY$5","v":4.9004008445274012E-3},{"$f":"'Population 2016'!AZ170/'Population 2016'!AZ$5","v":5.0767699662315697E-3},{"$f":"'Population 2016'!BA170/'Population 2016'!BA$5","v":2.5237529691211403E-3},{"$f":"'Population 2016'!BB170/'Population 2016'!BB$5","v":3.991078765113276E-3},{"$f":"'Population 2016'!BC170/'Population 2016'!BC$5","v":1.8279998229540122E-2},168]
[null,"Male 80-84",{"$f":"'Population 2016'!C171/'Population 2016'!C$5","v":1.6202153813128345E-3},{"$f":"'Population 2016'!D171/'Population 2016'!D$5","v":2.2397621353051063E-3},{"$f":"'Population 2016'!E171/'Population 2016'!E$5","v":2.8080011625781108E-3},{"$f":"'Population 2016'!F171/'Population 2016'!F$5","v":4.8416173062065413E-3},{"$f":"'Population 2016'!G171/'Population 2016'!G$5","v":6.8748985005142637E-3},{"$f":"'Population 2016'!H171/'Population 2016'!H$5","v":2.6036515970468172E-3},{"$f":"'Population 2016'!I171/'Population 2016'!I$5","v":5.4643664684699772E-3},{"$f":"'Population 2016'!J171/'Population 2016'!J$5","v":2.3469311594503371E-3},{"$f":"'Population 2016'!K171/'Population 2016'!K$5","v":2.4807446959315789E-3},{"$f":"'Population 2016'!L171/'Population 2016'!L$5","v":7.0846504535129386E-3},{"$f":"'Population 2016'!M171/'Population 2016'!M$5","v":7.0846504535129386E-3},{"$f":"'Population 2016'!N171/'Population 2016'!N$5","v":1.6878179728502423E-3},{"$f":"'Population 2016'!O171/'Population 2016'!O$5","v":2.5658553016118329E-3},{"$f":"'Population 2016'!P171/'Population 2016'!P$5","v":7.7764003155640703E-4},{"$f":"'Population 2016'!Q171/'Population 2016'!Q$5","v":3.2197036462556258E-3},{"$f":"'Population 2016'!R171/'Population 2016'!R$5","v":1.7166125512322352E-3},{"$f":"'Population 2016'!S171/'Population 2016'!S$5","v":2.4970386833571357E-3},{"$f":"'Population 2016'!T171/'Population 2016'!T$5","v":1.2680139411734596E-3},{"$f":"'Population 2016'!U171/'Population 2016'!U$5","v":1.0844066746337361E-2},{"$f":"'Population 2016'!V171/'Population 2016'!V$5","v":2.2133856404698482E-3},{"$f":"'Population 2016'!W171/'Population 2016'!W$5","v":2.9742644415246535E-3},{"$f":"'Population 2016'!X171/'Population 2016'!X$5","v":2.9742644415246535E-3},{"$f":"'Population 2016'!Y171/'Population 2016'!Y$5","v":2.2773882768159491E-3},{"$f":"'Population 2016'!Z171/'Population 2016'!Z$5","v":1.0356515797074236E-3},{"$f":"'Population 2016'!AA171/'Population 2016'!AA$5","v":1.7234082557500646E-3},{"$f":"'Population 2016'!AB171/'Population 2016'!AB$5","v":2.521928702291639E-3},{"$f":"'Population 2016'!AC171/'Population 2016'!AC$5","v":1.420087253139603E-3},{"$f":"'Population 2016'!AD171/'Population 2016'!AD$5","v":5.6607986899400798E-3},{"$f":"'Population 2016'!AE171/'Population 2016'!AE$5","v":5.2002587295557449E-3},{"$f":"'Population 2016'!AF171/'Population 2016'!AF$5","v":2.1264081798850836E-3},{"$f":"'Population 2016'!AG171/'Population 2016'!AG$5","v":5.2002587295557449E-3},{"$f":"'Population 2016'!AH171/'Population 2016'!AH$5","v":2.2681886999247653E-3},{"$f":"'Population 2016'!AI171/'Population 2016'!AI$5","v":1.9098893166506255E-3},{"$f":"'Population 2016'!AJ171/'Population 2016'!AJ$5","v":3.109053899562223E-3},{"$f":"'Population 2016'!AK171/'Population 2016'!AK$5","v":3.9726940145581634E-3},{"$f":"'Population 2016'!AL171/'Population 2016'!AL$5","v":2.4298965963711178E-3},{"$f":"'Population 2016'!AM171/'Population 2016'!AM$5","v":1.8508390349558661E-3},{"$f":"'Population 2016'!AN171/'Population 2016'!AN$5","v":5.7270644703828954E-3},{"$f":"'Population 2016'!AO171/'Population 2016'!AO$5","v":5.7270644703828954E-3},{"$f":"'Population 2016'!AP171/'Population 2016'!AP$5","v":4.1928887338902711E-3},{"$f":"'Population 2016'!AQ171/'Population 2016'!AQ$5","v":2.2948977914177674E-3},{"$f":"'Population 2016'!AR171/'Population 2016'!AR$5","v":2.6947170313200704E-3},{"$f":"'Population 2016'!AS171/'Population 2016'!AS$5","v":5.4643664684699772E-3},{"$f":"'Population 2016'!AT171/'Population 2016'!AT$5","v":4.90325301840038E-3},{"$f":"'Population 2016'!AU171/'Population 2016'!AU$5","v":4.90325301840038E-3},{"$f":"'Population 2016'!AV171/'Population 2016'!AV$5","v":2.8508077288565093E-3},{"$f":"'Population 2016'!AW171/'Population 2016'!AW$5","v":2.707608761974495E-3},{"$f":"'Population 2016'!AX171/'Population 2016'!AX$5","v":2.2745569086471498E-3},{"$f":"'Population 2016'!AY171/'Population 2016'!AY$5","v":3.2419448609283682E-3},{"$f":"'Population 2016'!AZ171/'Population 2016'!AZ$5","v":3.477515517945591E-3},{"$f":"'Population 2016'!BA171/'Population 2016'!BA$5","v":2.2133448499244224E-3},{"$f":"'Population 2016'!BB171/'Population 2016'!BB$5","v":2.4512680996802995E-3},{"$f":"'Population 2016'!BC171/'Population 2016'!BC$5","v":1.0844066746337361E-2},169]
[null,"Male 85-89",{"$f":"'Population 2016'!C172/'Population 2016'!C$5","v":8.0755214589093953E-4},{"$f":"'Population 2016'!D172/'Population 2016'!D$5","v":1.0196297057011238E-3},{"$f":"'Population 2016'!E172/'Population 2016'!E$5","v":1.2141440753050596E-3},{"$f":"'Population 2016'!F172/'Population 2016'!F$5","v":2.7504506824620138E-3},{"$f":"'Population 2016'!G172/'Population 2016'!G$5","v":3.3156498673740055E-3},{"$f":"'Population 2016'!H172/'Population 2016'!H$5","v":1.2126596479396135E-3},{"$f":"'Population 2016'!I172/'Population 2016'!I$5","v":2.7112469642408508E-3},{"$f":"'Population 2016'!J172/'Population 2016'!J$5","v":1.0283373278156954E-3},{"$f":"'Population 2016'!K172/'Population 2016'!K$5","v":1.3230638378301752E-3},{"$f":"'Population 2016'!L172/'Population 2016'!L$5","v":3.2802249297094657E-3},{"$f":"'Population 2016'!M172/'Population 2016'!M$5","v":3.2802249297094657E-3},{"$f":"'Population 2016'!N172/'Population 2016'!N$5","v":1.1573608956687376E-3},{"$f":"'Population 2016'!O172/'Population 2016'!O$5","v":1.0501183859878544E-3},{"$f":"'Population 2016'!P172/'Population 2016'!P$5","v":2.2540290769750929E-4},{"$f":"'Population 2016'!Q172/'Population 2016'!Q$5","v":1.6451040528313416E-3},{"$f":"'Population 2016'!R172/'Population 2016'!R$5","v":9.4480225687975728E-4},{"$f":"'Population 2016'!S172/'Population 2016'!S$5","v":1.2471953551020263E-3},{"$f":"'Population 2016'!T172/'Population 2016'!T$5","v":5.7700450901104219E-4},{"$f":"'Population 2016'!U172/'Population 2016'!U$5","v":6.5949630416500685E-3},{"$f":"'Population 2016'!V172/'Population 2016'!V$5","v":9.540455346852795E-4},{"$f":"'Population 2016'!W172/'Population 2016'!W$5","v":1.5263532903208937E-3},{"$f":"'Population 2016'!X172/'Population 2016'!X$5","v":1.5263532903208937E-3},{"$f":"'Population 2016'!Y172/'Population 2016'!Y$5","v":9.8965040301426054E-4},{"$f":"'Population 2016'!Z172/'Population 2016'!Z$5","v":4.5878397082366239E-4},{"$f":"'Population 2016'!AA172/'Population 2016'!AA$5","v":8.4177265228810012E-4},{"$f":"'Population 2016'!AB172/'Population 2016'!AB$5","v":1.2425411706907669E-3},{"$f":"'Population 2016'!AC172/'Population 2016'!AC$5","v":7.1780084026138705E-4},{"$f":"'Population 2016'!AD172/'Population 2016'!AD$5","v":2.7541032416539507E-3},{"$f":"'Population 2016'!AE172/'Population 2016'!AE$5","v":2.5410938510662326E-3},{"$f":"'Population 2016'!AF172/'Population 2016'!AF$5","v":1.3422009078707265E-3},{"$f":"'Population 2016'!AG172/'Population 2016'!AG$5","v":2.5410938510662326E-3},{"$f":"'Population 2016'!AH172/'Population 2016'!AH$5","v":1.0644325348541281E-3},{"$f":"'Population 2016'!AI172/'Population 2016'!AI$5","v":9.3922259165281298E-4},{"$f":"'Population 2016'!AJ172/'Population 2016'!AJ$5","v":1.6869754342916097E-3},{"$f":"'Population 2016'!AK172/'Population 2016'!AK$5","v":2.3886451353356047E-3},{"$f":"'Population 2016'!AL172/'Population 2016'!AL$5","v":1.0375835831219738E-3},{"$f":"'Population 2016'!AM172/'Population 2016'!AM$5","v":8.8376658420593213E-4},{"$f":"'Population 2016'!AN172/'Population 2016'!AN$5","v":2.8908039707646995E-3},{"$f":"'Population 2016'!AO172/'Population 2016'!AO$5","v":2.8908039707646995E-3},{"$f":"'Population 2016'!AP172/'Population 2016'!AP$5","v":2.2668547786249861E-3},{"$f":"'Population 2016'!AQ172/'Population 2016'!AQ$5","v":1.424891763029539E-3},{"$f":"'Population 2016'!AR172/'Population 2016'!AR$5","v":1.3408979672218505E-3},{"$f":"'Population 2016'!AS172/'Population 2016'!AS$5","v":2.7112469642408508E-3},{"$f":"'Population 2016'!AT172/'Population 2016'!AT$5","v":3.0052195919228132E-3},{"$f":"'Population 2016'!AU172/'Population 2016'!AU$5","v":3.0052195919228132E-3},{"$f":"'Population 2016'!AV172/'Population 2016'!AV$5","v":1.5943406187308626E-3},{"$f":"'Population 2016'!AW172/'Population 2016'!AW$5","v":1.254652510830435E-3},{"$f":"'Population 2016'!AX172/'Population 2016'!AX$5","v":8.6893185274160777E-4},{"$f":"'Population 2016'!AY172/'Population 2016'!AY$5","v":1.7808512591413971E-3},{"$f":"'Population 2016'!AZ172/'Population 2016'!AZ$5","v":2.0048207742002291E-3},{"$f":"'Population 2016'!BA172/'Population 2016'!BA$5","v":9.3122435759015326E-4},{"$f":"'Population 2016'!BB172/'Population 2016'!BB$5","v":1.2290865401213896E-3},{"$f":"'Population 2016'!BC172/'Population 2016'!BC$5","v":6.5949630416500685E-3},170]
[null,"Male 90+",{"$f":"'Population 2016'!C173/'Population 2016'!C$5","v":3.2199864045018479E-4},{"$f":"'Population 2016'!D173/'Population 2016'!D$5","v":4.5479886153575308E-4},{"$f":"'Population 2016'!E173/'Population 2016'!E$5","v":5.7660124039583913E-4},{"$f":"'Population 2016'!F173/'Population 2016'!F$5","v":1.205253669842905E-3},{"$f":"'Population 2016'!G173/'Population 2016'!G$5","v":1.3668597412439777E-3},{"$f":"'Population 2016'!H173/'Population 2016'!H$5","v":4.8311841589038077E-4},{"$f":"'Population 2016'!I173/'Population 2016'!I$5","v":9.7353655472740973E-4},{"$f":"'Population 2016'!J173/'Population 2016'!J$5","v":4.6441040611031406E-4},{"$f":"'Population 2016'!K173/'Population 2016'!K$5","v":6.3790577895383451E-4},{"$f":"'Population 2016'!L173/'Population 2016'!L$5","v":1.588486648769717E-3},{"$f":"'Population 2016'!M173/'Population 2016'!M$5","v":1.588486648769717E-3},{"$f":"'Population 2016'!N173/'Population 2016'!N$5","v":4.1793587899148857E-4},{"$f":"'Population 2016'!O173/'Population 2016'!O$5","v":3.4673720292051791E-4},{"$f":"'Population 2016'!P173/'Population 2016'!P$5","v":1.3524174461850558E-4},{"$f":"'Population 2016'!Q173/'Population 2016'!Q$5","v":6.9329385083606533E-4},{"$f":"'Population 2016'!R173/'Population 2016'!R$5","v":4.6574759141959865E-4},{"$f":"'Population 2016'!S173/'Population 2016'!S$5","v":5.0576287223882597E-4},{"$f":"'Population 2016'!T173/'Population 2016'!T$5","v":2.4429626389580416E-4},{"$f":"'Population 2016'!U173/'Population 2016'!U$5","v":2.6556898154295578E-3},{"$f":"'Population 2016'!V173/'Population 2016'!V$5","v":4.8847131375886305E-4},{"$f":"'Population 2016'!W173/'Population 2016'!W$5","v":6.4387922525313936E-4},{"$f":"'Population 2016'!X173/'Population 2016'!X$5","v":6.4387922525313936E-4},{"$f":"'Population 2016'!Y173/'Population 2016'!Y$5","v":4.7693995325988456E-4},{"$f":"'Population 2016'!Z173/'Population 2016'!Z$5","v":2.322956814297025E-4},{"$f":"'Population 2016'!AA173/'Population 2016'!AA$5","v":3.9862951173864257E-4},{"$f":"'Population 2016'!AB173/'Population 2016'!AB$5","v":5.3222521314596279E-4},{"$f":"'Population 2016'!AC173/'Population 2016'!AC$5","v":3.7441484751386475E-4},{"$f":"'Population 2016'!AD173/'Population 2016'!AD$5","v":1.0718672075626186E-3},{"$f":"'Population 2016'!AE173/'Population 2016'!AE$5","v":9.5996878818057675E-4},{"$f":"'Population 2016'!AF173/'Population 2016'!AF$5","v":5.7307454493356856E-4},{"$f":"'Population 2016'!AG173/'Population 2016'!AG$5","v":9.5996878818057675E-4},{"$f":"'Population 2016'!AH173/'Population 2016'!AH$5","v":4.42120319887055E-4},{"$f":"'Population 2016'!AI173/'Population 2016'!AI$5","v":3.8689955376673376E-4},{"$f":"'Population 2016'!AJ173/'Population 2016'!AJ$5","v":5.2979393804199312E-4},{"$f":"'Population 2016'!AK173/'Population 2016'!AK$5","v":9.303144211307092E-4},{"$f":"'Population 2016'!AL173/'Population 2016'!AL$5","v":5.2322590943757645E-4},{"$f":"'Population 2016'!AM173/'Population 2016'!AM$5","v":3.2597947778087661E-4},{"$f":"'Population 2016'!AN173/'Population 2016'!AN$5","v":1.145412894076579E-3},{"$f":"'Population 2016'!AO173/'Population 2016'!AO$5","v":1.145412894076579E-3},{"$f":"'Population 2016'!AP173/'Population 2016'!AP$5","v":1.0541667327172138E-3},{"$f":"'Population 2016'!AQ173/'Population 2016'!AQ$5","v":9.1110867539869573E-4},{"$f":"'Population 2016'!AR173/'Population 2016'!AR$5","v":5.7766214138665201E-4},{"$f":"'Population 2016'!AS173/'Population 2016'!AS$5","v":9.7353655472740973E-4},{"$f":"'Population 2016'!AT173/'Population 2016'!AT$5","v":1.0544630147097591E-3},{"$f":"'Population 2016'!AU173/'Population 2016'!AU$5","v":1.0544630147097591E-3},{"$f":"'Population 2016'!AV173/'Population 2016'!AV$5","v":5.8072009291521487E-4},{"$f":"'Population 2016'!AW173/'Population 2016'!AW$5","v":5.6440295320031727E-4},{"$f":"'Population 2016'!AX173/'Population 2016'!AX$5","v":3.7057387837509745E-4},{"$f":"'Population 2016'!AY173/'Population 2016'!AY$5","v":7.634405311954959E-4},{"$f":"'Population 2016'!AZ173/'Population 2016'!AZ$5","v":8.6865979025605334E-4},{"$f":"'Population 2016'!BA173/'Population 2016'!BA$5","v":3.2390412437918379E-4},{"$f":"'Population 2016'!BB173/'Population 2016'!BB$5","v":5.593034255608571E-4},{"$f":"'Population 2016'!BC173/'Population 2016'!BC$5","v":2.6556898154295578E-3},171]
["SIMD Q4","Female 0-4",{"$f":"'Population 2016'!C174/'Population 2016'!C$5","v":0},{"$f":"'Population 2016'!D174/'Population 2016'!D$5","v":0},{"$f":"'Population 2016'!E174/'Population 2016'!E$5","v":0},{"$f":"'Population 2016'!F174/'Population 2016'!F$5","v":0},{"$f":"'Population 2016'!G174/'Population 2016'!G$5","v":0},{"$f":"'Population 2016'!H174/'Population 2016'!H$5","v":0},{"$f":"'Population 2016'!I174/'Population 2016'!I$5","v":0},{"$f":"'Population 2016'!J174/'Population 2016'!J$5","v":0},{"$f":"'Population 2016'!K174/'Population 2016'!K$5","v":0},{"$f":"'Population 2016'!L174/'Population 2016'!L$5","v":0},{"$f":"'Population 2016'!M174/'Population 2016'!M$5","v":0},{"$f":"'Population 2016'!N174/'Population 2016'!N$5","v":0},{"$f":"'Population 2016'!O174/'Population 2016'!O$5","v":0},{"$f":"'Population 2016'!P174/'Population 2016'!P$5","v":0},{"$f":"'Population 2016'!Q174/'Population 2016'!Q$5","v":0},{"$f":"'Population 2016'!R174/'Population 2016'!R$5","v":0},{"$f":"'Population 2016'!S174/'Population 2016'!S$5","v":0},{"$f":"'Population 2016'!T174/'Population 2016'!T$5","v":0},{"$f":"'Population 2016'!U174/'Population 2016'!U$5","v":0},{"$f":"'Population 2016'!V174/'Population 2016'!V$5","v":0},{"$f":"'Population 2016'!W174/'Population 2016'!W$5","v":0},{"$f":"'Population 2016'!X174/'Population 2016'!X$5","v":0},{"$f":"'Population 2016'!Y174/'Population 2016'!Y$5","v":0},{"$f":"'Population 2016'!Z174/'Population 2016'!Z$5","v":0},{"$f":"'Population 2016'!AA174/'Population 2016'!AA$5","v":0},{"$f":"'Population 2016'!AB174/'Population 2016'!AB$5","v":0},{"$f":"'Population 2016'!AC174/'Population 2016'!AC$5","v":0},{"$f":"'Population 2016'!AD174/'Population 2016'!AD$5","v":0},{"$f":"'Population 2016'!AE174/'Population 2016'!AE$5","v":0},{"$f":"'Population 2016'!AF174/'Population 2016'!AF$5","v":0},{"$f":"'Population 2016'!AG174/'Population 2016'!AG$5","v":0},{"$f":"'Population 2016'!AH174/'Population 2016'!AH$5","v":0},{"$f":"'Population 2016'!AI174/'Population 2016'!AI$5","v":0},{"$f":"'Population 2016'!AJ174/'Population 2016'!AJ$5","v":0},{"$f":"'Population 2016'!AK174/'Population 2016'!AK$5","v":0},{"$f":"'Population 2016'!AL174/'Population 2016'!AL$5","v":0},{"$f":"'Population 2016'!AM174/'Population 2016'!AM$5","v":0},{"$f":"'Population 2016'!AN174/'Population 2016'!AN$5","v":0},{"$f":"'Population 2016'!AO174/'Population 2016'!AO$5","v":0},{"$f":"'Population 2016'!AP174/'Population 2016'!AP$5","v":0},{"$f":"'Population 2016'!AQ174/'Population 2016'!AQ$5","v":0},{"$f":"'Population 2016'!AR174/'Population 2016'!AR$5","v":0},{"$f":"'Population 2016'!AS174/'Population 2016'!AS$5","v":0},{"$f":"'Population 2016'!AT174/'Population 2016'!AT$5","v":0},{"$f":"'Population 2016'!AU174/'Population 2016'!AU$5","v":0},{"$f":"'Population 2016'!AV174/'Population 2016'!AV$5","v":0},{"$f":"'Population 2016'!AW174/'Population 2016'!AW$5","v":0},{"$f":"'Population 2016'!AX174/'Population 2016'!AX$5","v":0},{"$f":"'Population 2016'!AY174/'Population 2016'!AY$5","v":0},{"$f":"'Population 2016'!AZ174/'Population 2016'!AZ$5","v":0},{"$f":"'Population 2016'!BA174/'Population 2016'!BA$5","v":0},{"$f":"'Population 2016'!BB174/'Population 2016'!BB$5","v":0},{"$f":"'Population 2016'!BC174/'Population 2016'!BC$5","v":0},172]
[null,"Female 5-9",{"$f":"'Population 2016'!C175/'Population 2016'!C$5","v":0},{"$f":"'Population 2016'!D175/'Population 2016'!D$5","v":0},{"$f":"'Population 2016'!E175/'Population 2016'!E$5","v":0},{"$f":"'Population 2016'!F175/'Population 2016'!F$5","v":0},{"$f":"'Population 2016'!G175/'Population 2016'!G$5","v":0},{"$f":"'Population 2016'!H175/'Population 2016'!H$5","v":0},{"$f":"'Population 2016'!I175/'Population 2016'!I$5","v":0},{"$f":"'Population 2016'!J175/'Population 2016'!J$5","v":0},{"$f":"'Population 2016'!K175/'Population 2016'!K$5","v":0},{"$f":"'Population 2016'!L175/'Population 2016'!L$5","v":0},{"$f":"'Population 2016'!M175/'Population 2016'!M$5","v":0},{"$f":"'Population 2016'!N175/'Population 2016'!N$5","v":0},{"$f":"'Population 2016'!O175/'Population 2016'!O$5","v":0},{"$f":"'Population 2016'!P175/'Population 2016'!P$5","v":0},{"$f":"'Population 2016'!Q175/'Population 2016'!Q$5","v":0},{"$f":"'Population 2016'!R175/'Population 2016'!R$5","v":0},{"$f":"'Population 2016'!S175/'Population 2016'!S$5","v":0},{"$f":"'Population 2016'!T175/'Population 2016'!T$5","v":0},{"$f":"'Population 2016'!U175/'Population 2016'!U$5","v":0},{"$f":"'Population 2016'!V175/'Population 2016'!V$5","v":0},{"$f":"'Population 2016'!W175/'Population 2016'!W$5","v":0},{"$f":"'Population 2016'!X175/'Population 2016'!X$5","v":0},{"$f":"'Population 2016'!Y175/'Population 2016'!Y$5","v":0},{"$f":"'Population 2016'!Z175/'Population 2016'!Z$5","v":0},{"$f":"'Population 2016'!AA175/'Population 2016'!AA$5","v":0},{"$f":"'Population 2016'!AB175/'Population 2016'!AB$5","v":0},{"$f":"'Population 2016'!AC175/'Population 2016'!AC$5","v":0},{"$f":"'Population 2016'!AD175/'Population 2016'!AD$5","v":0},{"$f":"'Population 2016'!AE175/'Population 2016'!AE$5","v":0},{"$f":"'Population 2016'!AF175/'Population 2016'!AF$5","v":0},{"$f":"'Population 2016'!AG175/'Population 2016'!AG$5","v":0},{"$f":"'Population 2016'!AH175/'Population 2016'!AH$5","v":0},{"$f":"'Population 2016'!AI175/'Population 2016'!AI$5","v":0},{"$f":"'Population 2016'!AJ175/'Population 2016'!AJ$5","v":0},{"$f":"'Population 2016'!AK175/'Population 2016'!AK$5","v":0},{"$f":"'Population 2016'!AL175/'Population 2016'!AL$5","v":0},{"$f":"'Population 2016'!AM175/'Population 2016'!AM$5","v":0},{"$f":"'Population 2016'!AN175/'Population 2016'!AN$5","v":0},{"$f":"'Population 2016'!AO175/'Population 2016'!AO$5","v":0},{"$f":"'Population 2016'!AP175/'Population 2016'!AP$5","v":0},{"$f":"'Population 2016'!AQ175/'Population 2016'!AQ$5","v":0},{"$f":"'Population 2016'!AR175/'Population 2016'!AR$5","v":0},{"$f":"'Population 2016'!AS175/'Population 2016'!AS$5","v":0},{"$f":"'Population 2016'!AT175/'Population 2016'!AT$5","v":0},{"$f":"'Population 2016'!AU175/'Population 2016'!AU$5","v":0},{"$f":"'Population 2016'!AV175/'Population 2016'!AV$5","v":0},{"$f":"'Population 2016'!AW175/'Population 2016'!AW$5","v":0},{"$f":"'Population 2016'!AX175/'Population 2016'!AX$5","v":0},{"$f":"'Population 2016'!AY175/'Population 2016'!AY$5","v":0},{"$f":"'Population 2016'!AZ175/'Population 2016'!AZ$5","v":0},{"$f":"'Population 2016'!BA175/'Population 2016'!BA$5","v":0},{"$f":"'Population 2016'!BB175/'Population 2016'!BB$5","v":0},{"$f":"'Population 2016'!BC175/'Population 2016'!BC$5","v":0},173]
[null,"Female 10-15",{"$f":"'Population 2016'!C176/'Population 2016'!C$5","v":0},{"$f":"'Population 2016'!D176/'Population 2016'!D$5","v":0},{"$f":"'Population 2016'!E176/'Population 2016'!E$5","v":0},{"$f":"'Population 2016'!F176/'Population 2016'!F$5","v":0},{"$f":"'Population 2016'!G176/'Population 2016'!G$5","v":0},{"$f":"'Population 2016'!H176/'Population 2016'!H$5","v":0},{"$f":"'Population 2016'!I176/'Population 2016'!I$5","v":0},{"$f":"'Population 2016'!J176/'Population 2016'!J$5","v":0},{"$f":"'Population 2016'!K176/'Population 2016'!K$5","v":0},{"$f":"'Population 2016'!L176/'Population 2016'!L$5","v":0},{"$f":"'Population 2016'!M176/'Population 2016'!M$5","v":0},{"$f":"'Population 2016'!N176/'Population 2016'!N$5","v":0},{"$f":"'Population 2016'!O176/'Population 2016'!O$5","v":0},{"$f":"'Population 2016'!P176/'Population 2016'!P$5","v":0},{"$f":"'Population 2016'!Q176/'Population 2016'!Q$5","v":0},{"$f":"'Population 2016'!R176/'Population 2016'!R$5","v":0},{"$f":"'Population 2016'!S176/'Population 2016'!S$5","v":0},{"$f":"'Population 2016'!T176/'Population 2016'!T$5","v":0},{"$f":"'Population 2016'!U176/'Population 2016'!U$5","v":0},{"$f":"'Population 2016'!V176/'Population 2016'!V$5","v":0},{"$f":"'Population 2016'!W176/'Population 2016'!W$5","v":0},{"$f":"'Population 2016'!X176/'Population 2016'!X$5","v":0},{"$f":"'Population 2016'!Y176/'Population 2016'!Y$5","v":0},{"$f":"'Population 2016'!Z176/'Population 2016'!Z$5","v":0},{"$f":"'Population 2016'!AA176/'Population 2016'!AA$5","v":0},{"$f":"'Population 2016'!AB176/'Population 2016'!AB$5","v":0},{"$f":"'Population 2016'!AC176/'Population 2016'!AC$5","v":0},{"$f":"'Population 2016'!AD176/'Population 2016'!AD$5","v":0},{"$f":"'Population 2016'!AE176/'Population 2016'!AE$5","v":0},{"$f":"'Population 2016'!AF176/'Population 2016'!AF$5","v":0},{"$f":"'Population 2016'!AG176/'Population 2016'!AG$5","v":0},{"$f":"'Population 2016'!AH176/'Population 2016'!AH$5","v":0},{"$f":"'Population 2016'!AI176/'Population 2016'!AI$5","v":0},{"$f":"'Population 2016'!AJ176/'Population 2016'!AJ$5","v":0},{"$f":"'Population 2016'!AK176/'Population 2016'!AK$5","v":0},{"$f":"'Population 2016'!AL176/'Population 2016'!AL$5","v":0},{"$f":"'Population 2016'!AM176/'Population 2016'!AM$5","v":0},{"$f":"'Population 2016'!AN176/'Population 2016'!AN$5","v":0},{"$f":"'Population 2016'!AO176/'Population 2016'!AO$5","v":0},{"$f":"'Population 2016'!AP176/'Population 2016'!AP$5","v":0},{"$f":"'Population 2016'!AQ176/'Population 2016'!AQ$5","v":0},{"$f":"'Population 2016'!AR176/'Population 2016'!AR$5","v":0},{"$f":"'Population 2016'!AS176/'Population 2016'!AS$5","v":0},{"$f":"'Population 2016'!AT176/'Population 2016'!AT$5","v":0},{"$f":"'Population 2016'!AU176/'Population 2016'!AU$5","v":0},{"$f":"'Population 2016'!AV176/'Population 2016'!AV$5","v":0},{"$f":"'Population 2016'!AW176/'Population 2016'!AW$5","v":0},{"$f":"'Population 2016'!AX176/'Population 2016'!AX$5","v":0},{"$f":"'Population 2016'!AY176/'Population 2016'!AY$5","v":0},{"$f":"'Population 2016'!AZ176/'Population 2016'!AZ$5","v":0},{"$f":"'Population 2016'!BA176/'Population 2016'!BA$5","v":0},{"$f":"'Population 2016'!BB176/'Population 2016'!BB$5","v":0},{"$f":"'Population 2016'!BC176/'Population 2016'!BC$5","v":0},174]
[null,"Female 16-19",{"$f":"'Population 2016'!C177/'Population 2016'!C$5","v":5.5301988724936494E-3},{"$f":"'Population 2016'!D177/'Population 2016'!D$5","v":7.2767817845720492E-3},{"$f":"'Population 2016'!E177/'Population 2016'!E$5","v":8.8787215391034086E-3},{"$f":"'Population 2016'!F177/'Population 2016'!F$5","v":5.8614473345351536E-3},{"$f":"'Population 2016'!G177/'Population 2016'!G$5","v":5.8599036431548745E-3},{"$f":"'Population 2016'!H177/'Population 2016'!H$5","v":3.5439491850213839E-3},{"$f":"'Population 2016'!I177/'Population 2016'!I$5","v":9.1596181224353063E-3},{"$f":"'Population 2016'!J177/'Population 2016'!J$5","v":7.2978778103049355E-3},{"$f":"'Population 2016'!K177/'Population 2016'!K$5","v":4.2290790530643101E-3},{"$f":"'Population 2016'!L177/'Population 2016'!L$5","v":3.8203103902911695E-3},{"$f":"'Population 2016'!M177/'Population 2016'!M$5","v":3.8203103902911695E-3},{"$f":"'Population 2016'!N177/'Population 2016'!N$5","v":7.3219151107931941E-3},{"$f":"'Population 2016'!O177/'Population 2016'!O$5","v":3.3385839252632727E-3},{"$f":"'Population 2016'!P177/'Population 2016'!P$5","v":4.0797926293249182E-3},{"$f":"'Population 2016'!Q177/'Population 2016'!Q$5","v":1.0270149586961375E-2},{"$f":"'Population 2016'!R177/'Population 2016'!R$5","v":4.617554692074307E-3},{"$f":"'Population 2016'!S177/'Population 2016'!S$5","v":4.6569021185550539E-3},{"$f":"'Population 2016'!T177/'Population 2016'!T$5","v":3.089766080510742E-3},{"$f":"'Population 2016'!U177/'Population 2016'!U$5","v":1.2835834107909529E-3},{"$f":"'Population 2016'!V177/'Population 2016'!V$5","v":4.6175803878767529E-3},{"$f":"'Population 2016'!W177/'Population 2016'!W$5","v":4.0397701645323867E-3},{"$f":"'Population 2016'!X177/'Population 2016'!X$5","v":4.0397701645323867E-3},{"$f":"'Population 2016'!Y177/'Population 2016'!Y$5","v":5.9021319215910714E-3},{"$f":"'Population 2016'!Z177/'Population 2016'!Z$5","v":2.6830151205130639E-3},{"$f":"'Population 2016'!AA177/'Population 2016'!AA$5","v":3.8899596520495868E-3},{"$f":"'Population 2016'!AB177/'Population 2016'!AB$5","v":7.6783722096557937E-3},{"$f":"'Population 2016'!AC177/'Population 2016'!AC$5","v":3.3945567114378565E-3},{"$f":"'Population 2016'!AD177/'Population 2016'!AD$5","v":7.2425471733224165E-3},{"$f":"'Population 2016'!AE177/'Population 2016'!AE$5","v":7.7670201952792124E-3},{"$f":"'Population 2016'!AF177/'Population 2016'!AF$5","v":4.9012954500897311E-3},{"$f":"'Population 2016'!AG177/'Population 2016'!AG$5","v":7.7670201952792124E-3},{"$f":"'Population 2016'!AH177/'Population 2016'!AH$5","v":4.7797293406276996E-3},{"$f":"'Population 2016'!AI177/'Population 2016'!AI$5","v":4.3269861755184181E-3},{"$f":"'Population 2016'!AJ177/'Population 2016'!AJ$5","v":4.0013384267908432E-3},{"$f":"'Population 2016'!AK177/'Population 2016'!AK$5","v":9.7431577888689135E-3},{"$f":"'Population 2016'!AL177/'Population 2016'!AL$5","v":4.0882566822156401E-3},{"$f":"'Population 2016'!AM177/'Population 2016'!AM$5","v":4.1000974316439147E-3},{"$f":"'Population 2016'!AN177/'Population 2016'!AN$5","v":1.0745063815861241E-2},{"$f":"'Population 2016'!AO177/'Population 2016'!AO$5","v":1.0745063815861241E-2},{"$f":"'Population 2016'!AP177/'Population 2016'!AP$5","v":1.1508647337634546E-2},{"$f":"'Population 2016'!AQ177/'Population 2016'!AQ$5","v":4.432235435962076E-3},{"$f":"'Population 2016'!AR177/'Population 2016'!AR$5","v":5.2147764772768031E-3},{"$f":"'Population 2016'!AS177/'Population 2016'!AS$5","v":9.1596181224353063E-3},{"$f":"'Population 2016'!AT177/'Population 2016'!AT$5","v":1.9138503716982128E-2},{"$f":"'Population 2016'!AU177/'Population 2016'!AU$5","v":1.9138503716982128E-2},{"$f":"'Population 2016'!AV177/'Population 2016'!AV$5","v":3.1147714074543343E-3},{"$f":"'Population 2016'!AW177/'Population 2016'!AW$5","v":5.4953017267679542E-3},{"$f":"'Population 2016'!AX177/'Population 2016'!AX$5","v":8.957665128998045E-3},{"$f":"'Population 2016'!AY177/'Population 2016'!AY$5","v":6.3767938557571678E-3},{"$f":"'Population 2016'!AZ177/'Population 2016'!AZ$5","v":8.4334784934792986E-3},{"$f":"'Population 2016'!BA177/'Population 2016'!BA$5","v":2.9016411142301878E-3},{"$f":"'Population 2016'!BB177/'Population 2016'!BB$5","v":4.6677668602362887E-3},{"$f":"'Population 2016'!BC177/'Population 2016'!BC$5","v":1.2835834107909529E-3},175]
[null,"Female 20-24",{"$f":"'Population 2016'!C178/'Population 2016'!C$5","v":1.3145722273617067E-2},{"$f":"'Population 2016'!D178/'Population 2016'!D$5","v":1.1629157986365815E-2},{"$f":"'Population 2016'!E178/'Population 2016'!E$5","v":1.0238187878248069E-2},{"$f":"'Population 2016'!F178/'Population 2016'!F$5","v":6.5310327066701E-3},{"$f":"'Population 2016'!G178/'Population 2016'!G$5","v":6.2388350565690471E-3},{"$f":"'Population 2016'!H178/'Population 2016'!H$5","v":4.2767328225463905E-3},{"$f":"'Population 2016'!I178/'Population 2016'!I$5","v":8.7932333975378942E-3},{"$f":"'Population 2016'!J178/'Population 2016'!J$5","v":1.0399475879684532E-2},{"$f":"'Population 2016'!K178/'Population 2016'!K$5","v":4.5125927325993477E-3},{"$f":"'Population 2016'!L178/'Population 2016'!L$5","v":4.956078344161517E-3},{"$f":"'Population 2016'!M178/'Population 2016'!M$5","v":4.956078344161517E-3},{"$f":"'Population 2016'!N178/'Population 2016'!N$5","v":1.5994084599866582E-2},{"$f":"'Population 2016'!O178/'Population 2016'!O$5","v":4.4085158657037283E-3},{"$f":"'Population 2016'!P178/'Population 2016'!P$5","v":6.1985799616815053E-3},{"$f":"'Population 2016'!Q178/'Population 2016'!Q$5","v":1.3043324990305636E-2},{"$f":"'Population 2016'!R178/'Population 2016'!R$5","v":4.7506254324799066E-3},{"$f":"'Population 2016'!S178/'Population 2016'!S$5","v":7.2033696341030698E-3},{"$f":"'Population 2016'!T178/'Population 2016'!T$5","v":8.0408370287990399E-3},{"$f":"'Population 2016'!U178/'Population 2016'!U$5","v":2.2130748461912982E-3},{"$f":"'Population 2016'!V178/'Population 2016'!V$5","v":6.1440532433732001E-3},{"$f":"'Population 2016'!W178/'Population 2016'!W$5","v":5.2229390962158203E-3},{"$f":"'Population 2016'!X178/'Population 2016'!X$5","v":5.2229390962158203E-3},{"$f":"'Population 2016'!Y178/'Population 2016'!Y$5","v":8.18349469801752E-3},{"$f":"'Population 2016'!Z178/'Population 2016'!Z$5","v":9.5570314934870105E-3},{"$f":"'Population 2016'!AA178/'Population 2016'!AA$5","v":6.7953044101047265E-3},{"$f":"'Population 2016'!AB178/'Population 2016'!AB$5","v":1.1381431481121357E-2},{"$f":"'Population 2016'!AC178/'Population 2016'!AC$5","v":7.5824178097352E-3},{"$f":"'Population 2016'!AD178/'Population 2016'!AD$5","v":7.9236294614611642E-3},{"$f":"'Population 2016'!AE178/'Population 2016'!AE$5","v":8.5627162496534868E-3},{"$f":"'Population 2016'!AF178/'Population 2016'!AF$5","v":5.9871209036480716E-3},{"$f":"'Population 2016'!AG178/'Population 2016'!AG$5","v":8.5627162496534868E-3},{"$f":"'Population 2016'!AH178/'Population 2016'!AH$5","v":5.3816074231630177E-3},{"$f":"'Population 2016'!AI178/'Population 2016'!AI$5","v":7.8241206579753256E-3},{"$f":"'Population 2016'!AJ178/'Population 2016'!AJ$5","v":4.6287259849984667E-3},{"$f":"'Population 2016'!AK178/'Population 2016'!AK$5","v":1.0107740467420138E-2},{"$f":"'Population 2016'!AL178/'Population 2016'!AL$5","v":4.7445061279509058E-3},{"$f":"'Population 2016'!AM178/'Population 2016'!AM$5","v":4.607176619303056E-3},{"$f":"'Population 2016'!AN178/'Population 2016'!AN$5","v":1.2708628777135376E-2},{"$f":"'Population 2016'!AO178/'Population 2016'!AO$5","v":1.2708628777135376E-2},{"$f":"'Population 2016'!AP178/'Population 2016'!AP$5","v":1.175435537307991E-2},{"$f":"'Population 2016'!AQ178/'Population 2016'!AQ$5","v":5.5762591110867536E-3},{"$f":"'Population 2016'!AR178/'Population 2016'!AR$5","v":7.7600097843892211E-3},{"$f":"'Population 2016'!AS178/'Population 2016'!AS$5","v":8.7932333975378942E-3},{"$f":"'Population 2016'!AT178/'Population 2016'!AT$5","v":1.9138503716982128E-2},{"$f":"'Population 2016'!AU178/'Population 2016'!AU$5","v":1.9138503716982128E-2},{"$f":"'Population 2016'!AV178/'Population 2016'!AV$5","v":3.5793474817865062E-3},{"$f":"'Population 2016'!AW178/'Population 2016'!AW$5","v":6.196991884800781E-3},{"$f":"'Population 2016'!AX178/'Population 2016'!AX$5","v":1.3583449403887192E-2},{"$f":"'Population 2016'!AY178/'Population 2016'!AY$5","v":8.7283130871148376E-3},{"$f":"'Population 2016'!AZ178/'Population 2016'!AZ$5","v":1.1813197876098049E-2},{"$f":"'Population 2016'!BA178/'Population 2016'!BA$5","v":3.724897430360613E-3},{"$f":"'Population 2016'!BB178/'Population 2016'!BB$5","v":5.6966089640457665E-3},{"$f":"'Population 2016'!BC178/'Population 2016'!BC$5","v":2.2130748461912982E-3},176]
[null,"Female 25-29",{"$f":"'Population 2016'!C179/'Population 2016'!C$5","v":1.0712843656882338E-2},{"$f":"'Population 2016'!D179/'Population 2016'!D$5","v":1.0900501745840792E-2},{"$f":"'Population 2016'!E179/'Population 2016'!E$5","v":1.1072618941585137E-2},{"$f":"'Population 2016'!F179/'Population 2016'!F$5","v":6.5001287664177183E-3},{"$f":"'Population 2016'!G179/'Population 2016'!G$5","v":5.4945054945054949E-3},{"$f":"'Population 2016'!H179/'Population 2016'!H$5","v":3.9006137873565639E-3},{"$f":"'Population 2016'!I179/'Population 2016'!I$5","v":8.290762917678586E-3},{"$f":"'Population 2016'!J179/'Population 2016'!J$5","v":8.1852334076942847E-3},{"$f":"'Population 2016'!K179/'Population 2016'!K$5","v":4.1345744932192981E-3},{"$f":"'Population 2016'!L179/'Population 2016'!L$5","v":4.8210569790160911E-3},{"$f":"'Population 2016'!M179/'Population 2016'!M$5","v":4.8210569790160911E-3},{"$f":"'Population 2016'!N179/'Population 2016'!N$5","v":8.0211539852597224E-3},{"$f":"'Population 2016'!O179/'Population 2016'!O$5","v":4.0815922172358111E-3},{"$f":"'Population 2016'!P179/'Population 2016'!P$5","v":4.913783387805703E-3},{"$f":"'Population 2016'!Q179/'Population 2016'!Q$5","v":9.130327493213946E-3},{"$f":"'Population 2016'!R179/'Population 2016'!R$5","v":5.083302283493905E-3},{"$f":"'Population 2016'!S179/'Population 2016'!S$5","v":8.2457883987000213E-3},{"$f":"'Population 2016'!T179/'Population 2016'!T$5","v":1.1181788993173665E-2},{"$f":"'Population 2016'!U179/'Population 2016'!U$5","v":1.8147213738768646E-3},{"$f":"'Population 2016'!V179/'Population 2016'!V$5","v":5.922714679326215E-3},{"$f":"'Population 2016'!W179/'Population 2016'!W$5","v":5.16410749187797E-3},{"$f":"'Population 2016'!X179/'Population 2016'!X$5","v":5.16410749187797E-3},{"$f":"'Population 2016'!Y179/'Population 2016'!Y$5","v":7.0070428133098047E-3},{"$f":"'Population 2016'!Z179/'Population 2016'!Z$5","v":7.9290259261338442E-3},{"$f":"'Population 2016'!AA179/'Population 2016'!AA$5","v":6.0558466658295444E-3},{"$f":"'Population 2016'!AB179/'Population 2016'!AB$5","v":1.0953604290554026E-2},{"$f":"'Population 2016'!AC179/'Population 2016'!AC$5","v":6.4829620558478013E-3},{"$f":"'Population 2016'!AD179/'Population 2016'!AD$5","v":8.474450109791953E-3},{"$f":"'Population 2016'!AE179/'Population 2016'!AE$5","v":9.6048214047372155E-3},{"$f":"'Population 2016'!AF179/'Population 2016'!AF$5","v":4.8108099956265362E-3},{"$f":"'Population 2016'!AG179/'Population 2016'!AG$5","v":9.6048214047372155E-3},{"$f":"'Population 2016'!AH179/'Population 2016'!AH$5","v":5.2887250030186784E-3},{"$f":"'Population 2016'!AI179/'Population 2016'!AI$5","v":9.5289395397672588E-3},{"$f":"'Population 2016'!AJ179/'Population 2016'!AJ$5","v":5.367649109109667E-3},{"$f":"'Population 2016'!AK179/'Population 2016'!AK$5","v":1.1226632136077342E-2},{"$f":"'Population 2016'!AL179/'Population 2016'!AL$5","v":4.416381405083273E-3},{"$f":"'Population 2016'!AM179/'Population 2016'!AM$5","v":4.4695408397955744E-3},{"$f":"'Population 2016'!AN179/'Population 2016'!AN$5","v":1.4017672084651467E-2},{"$f":"'Population 2016'!AO179/'Population 2016'!AO$5","v":1.4017672084651467E-2},{"$f":"'Population 2016'!AP179/'Population 2016'!AP$5","v":1.099345306976523E-2},{"$f":"'Population 2016'!AQ179/'Population 2016'!AQ$5","v":5.1378308763084342E-3},{"$f":"'Population 2016'!AR179/'Population 2016'!AR$5","v":7.4481212390975458E-3},{"$f":"'Population 2016'!AS179/'Population 2016'!AS$5","v":8.290762917678586E-3},{"$f":"'Population 2016'!AT179/'Population 2016'!AT$5","v":2.4305372489059947E-2},{"$f":"'Population 2016'!AU179/'Population 2016'!AU$5","v":2.4305372489059947E-2},{"$f":"'Population 2016'!AV179/'Population 2016'!AV$5","v":3.0936543131665083E-3},{"$f":"'Population 2016'!AW179/'Population 2016'!AW$5","v":6.1512294831899449E-3},{"$f":"'Population 2016'!AX179/'Population 2016'!AX$5","v":1.0376068594502729E-2},{"$f":"'Population 2016'!AY179/'Population 2016'!AY$5","v":7.0316085799088154E-3},{"$f":"'Population 2016'!AZ179/'Population 2016'!AZ$5","v":8.6750924748750218E-3},{"$f":"'Population 2016'!BA179/'Population 2016'!BA$5","v":3.846361477002807E-3},{"$f":"'Population 2016'!BB179/'Population 2016'!BB$5","v":6.9187905236046763E-3},{"$f":"'Population 2016'!BC179/'Population 2016'!BC$5","v":1.8147213738768646E-3},177]
[null,"Female 30-34",{"$f":"'Population 2016'!C180/'Population 2016'!C$5","v":8.4792975318548659E-3},{"$f":"'Population 2016'!D180/'Population 2016'!D$5","v":1.108388838355682E-2},{"$f":"'Population 2016'!E180/'Population 2016'!E$5","v":1.347278020241985E-2},{"$f":"'Population 2016'!F180/'Population 2016'!F$5","v":7.2830285861447339E-3},{"$f":"'Population 2016'!G180/'Population 2016'!G$5","v":5.765170789801332E-3},{"$f":"'Population 2016'!H180/'Population 2016'!H$5","v":4.2378239568370982E-3},{"$f":"'Population 2016'!I180/'Population 2016'!I$5","v":9.6306841973034085E-3},{"$f":"'Population 2016'!J180/'Population 2016'!J$5","v":7.413980411832514E-3},{"$f":"'Population 2016'!K180/'Population 2016'!K$5","v":5.5521428908944853E-3},{"$f":"'Population 2016'!L180/'Population 2016'!L$5","v":4.956078344161517E-3},{"$f":"'Population 2016'!M180/'Population 2016'!M$5","v":4.956078344161517E-3},{"$f":"'Population 2016'!N180/'Population 2016'!N$5","v":6.2770754133144729E-3},{"$f":"'Population 2016'!O180/'Population 2016'!O$5","v":4.5670243013245359E-3},{"$f":"'Population 2016'!P180/'Population 2016'!P$5","v":5.263157894736842E-3},{"$f":"'Population 2016'!Q180/'Population 2016'!Q$5","v":1.014089141138177E-2},{"$f":"'Population 2016'!R180/'Population 2016'!R$5","v":4.5377122478309469E-3},{"$f":"'Population 2016'!S180/'Population 2016'!S$5","v":8.1045631638689362E-3},{"$f":"'Population 2016'!T180/'Population 2016'!T$5","v":9.4321624174627614E-3},{"$f":"'Population 2016'!U180/'Population 2016'!U$5","v":2.699951312353384E-3},{"$f":"'Population 2016'!V180/'Population 2016'!V$5","v":6.7317452927393318E-3},{"$f":"'Population 2016'!W180/'Population 2016'!W$5","v":5.4451918237143661E-3},{"$f":"'Population 2016'!X180/'Population 2016'!X$5","v":5.4451918237143661E-3},{"$f":"'Population 2016'!Y180/'Population 2016'!Y$5","v":7.0587113082462918E-3},{"$f":"'Population 2016'!Z180/'Population 2016'!Z$5","v":6.3223141295784026E-3},{"$f":"'Population 2016'!AA180/'Population 2016'!AA$5","v":5.8385935819319848E-3},{"$f":"'Population 2016'!AB180/'Population 2016'!AB$5","v":1.135482022046406E-2},{"$f":"'Population 2016'!AC180/'Population 2016'!AC$5","v":5.690691964147193E-3},{"$f":"'Population 2016'!AD180/'Population 2016'!AD$5","v":9.9259369533663336E-3},{"$f":"'Population 2016'!AE180/'Population 2016'!AE$5","v":1.1504224889372581E-2},{"$f":"'Population 2016'!AF180/'Population 2016'!AF$5","v":4.2980590870017642E-3},{"$f":"'Population 2016'!AG180/'Population 2016'!AG$5","v":1.1504224889372581E-2},{"$f":"'Population 2016'!AH180/'Population 2016'!AH$5","v":6.1042326518859777E-3},{"$f":"'Population 2016'!AI180/'Population 2016'!AI$5","v":9.0176305888529183E-3},{"$f":"'Population 2016'!AJ180/'Population 2016'!AJ$5","v":6.7060758999525974E-3},{"$f":"'Population 2016'!AK180/'Population 2016'!AK$5","v":1.274782193279107E-2},{"$f":"'Population 2016'!AL180/'Population 2016'!AL$5","v":4.1592025682410739E-3},{"$f":"'Population 2016'!AM180/'Population 2016'!AM$5","v":4.9440220796766283E-3},{"$f":"'Population 2016'!AN180/'Population 2016'!AN$5","v":1.5817606632486093E-2},{"$f":"'Population 2016'!AO180/'Population 2016'!AO$5","v":1.5817606632486093E-2},{"$f":"'Population 2016'!AP180/'Population 2016'!AP$5","v":1.324445571707116E-2},{"$f":"'Population 2016'!AQ180/'Population 2016'!AQ$5","v":5.8845289636652604E-3},{"$f":"'Population 2016'!AR180/'Population 2016'!AR$5","v":7.5383461396997808E-3},{"$f":"'Population 2016'!AS180/'Population 2016'!AS$5","v":9.6306841973034085E-3},{"$f":"'Population 2016'!AT180/'Population 2016'!AT$5","v":2.3040016871408234E-2},{"$f":"'Population 2016'!AU180/'Population 2016'!AU$5","v":2.3040016871408234E-2},{"$f":"'Population 2016'!AV180/'Population 2016'!AV$5","v":3.9805722732552005E-3},{"$f":"'Population 2016'!AW180/'Population 2016'!AW$5","v":7.3257977912014154E-3},{"$f":"'Population 2016'!AX180/'Population 2016'!AX$5","v":8.4209719258341101E-3},{"$f":"'Population 2016'!AY180/'Population 2016'!AY$5","v":7.3819650561488329E-3},{"$f":"'Population 2016'!AZ180/'Population 2016'!AZ$5","v":9.0864115146320271E-3},{"$f":"'Population 2016'!BA180/'Population 2016'!BA$5","v":3.832865471820341E-3},{"$f":"'Population 2016'!BB180/'Population 2016'!BB$5","v":8.2721667138507E-3},{"$f":"'Population 2016'!BC180/'Population 2016'!BC$5","v":2.699951312353384E-3},178]
[null,"Female 35-39",{"$f":"'Population 2016'!C181/'Population 2016'!C$5","v":6.5881944054013994E-3},{"$f":"'Population 2016'!D181/'Population 2016'!D$5","v":1.0462818970491868E-2},{"$f":"'Population 2016'!E181/'Population 2016'!E$5","v":1.4016566738077715E-2},{"$f":"'Population 2016'!F181/'Population 2016'!F$5","v":7.8599021375225335E-3},{"$f":"'Population 2016'!G181/'Population 2016'!G$5","v":7.0508309424565582E-3},{"$f":"'Population 2016'!H181/'Population 2016'!H$5","v":4.6528518577362175E-3},{"$f":"'Population 2016'!I181/'Population 2016'!I$5","v":9.9028557072272008E-3},{"$f":"'Population 2016'!J181/'Population 2016'!J$5","v":8.1271821069304959E-3},{"$f":"'Population 2016'!K181/'Population 2016'!K$5","v":5.7647781505457641E-3},{"$f":"'Population 2016'!L181/'Population 2016'!L$5","v":4.8051721125283945E-3},{"$f":"'Population 2016'!M181/'Population 2016'!M$5","v":4.8051721125283945E-3},{"$f":"'Population 2016'!N181/'Population 2016'!N$5","v":5.3045707718150474E-3},{"$f":"'Population 2016'!O181/'Population 2016'!O$5","v":5.3793800338811778E-3},{"$f":"'Population 2016'!P181/'Population 2016'!P$5","v":5.6576129832074835E-3},{"$f":"'Population 2016'!Q181/'Population 2016'!Q$5","v":1.125721201866018E-2},{"$f":"'Population 2016'!R181/'Population 2016'!R$5","v":5.3760579123862248E-3},{"$f":"'Population 2016'!S181/'Population 2016'!S$5","v":7.4266820366797239E-3},{"$f":"'Population 2016'!T181/'Population 2016'!T$5","v":7.0450389245380477E-3},{"$f":"'Population 2016'!U181/'Population 2016'!U$5","v":2.0360288584959944E-3},{"$f":"'Population 2016'!V181/'Population 2016'!V$5","v":7.1820547851107839E-3},{"$f":"'Population 2016'!W181/'Population 2016'!W$5","v":5.8439393642264626E-3},{"$f":"'Population 2016'!X181/'Population 2016'!X$5","v":5.8439393642264626E-3},{"$f":"'Population 2016'!Y181/'Population 2016'!Y$5","v":7.6350137517686521E-3},{"$f":"'Population 2016'!Z181/'Population 2016'!Z$5","v":4.6478494259392976E-3},{"$f":"'Population 2016'!AA181/'Population 2016'!AA$5","v":5.7455800291929676E-3},{"$f":"'Population 2016'!AB181/'Population 2016'!AB$5","v":1.0781654606306869E-2},{"$f":"'Population 2016'!AC181/'Population 2016'!AC$5","v":4.9925427319044893E-3},{"$f":"'Population 2016'!AD181/'Population 2016'!AD$5","v":9.9371022367784438E-3},{"$f":"'Population 2016'!AE181/'Population 2016'!AE$5","v":1.1031940779679462E-2},{"$f":"'Population 2016'!AF181/'Population 2016'!AF$5","v":6.0776063581112674E-3},{"$f":"'Population 2016'!AG181/'Population 2016'!AG$5","v":1.1031940779679462E-2},{"$f":"'Population 2016'!AH181/'Population 2016'!AH$5","v":7.0980745474304077E-3},{"$f":"'Population 2016'!AI181/'Population 2016'!AI$5","v":7.7653337999825005E-3},{"$f":"'Population 2016'!AJ181/'Population 2016'!AJ$5","v":6.8594373030700165E-3},{"$f":"'Population 2016'!AK181/'Population 2016'!AK$5","v":1.2420954703745143E-2},{"$f":"'Population 2016'!AL181/'Population 2016'!AL$5","v":4.5405367056277823E-3},{"$f":"'Population 2016'!AM181/'Population 2016'!AM$5","v":5.5199191570895105E-3},{"$f":"'Population 2016'!AN181/'Population 2016'!AN$5","v":1.7181193411148685E-2},{"$f":"'Population 2016'!AO181/'Population 2016'!AO$5","v":1.7181193411148685E-2},{"$f":"'Population 2016'!AP181/'Population 2016'!AP$5","v":1.252318374205412E-2},{"$f":"'Population 2016'!AQ181/'Population 2016'!AQ$5","v":5.8434263166547923E-3},{"$f":"'Population 2016'!AR181/'Population 2016'!AR$5","v":7.3071030611192387E-3},{"$f":"'Population 2016'!AS181/'Population 2016'!AS$5","v":9.9028557072272008E-3},{"$f":"'Population 2016'!AT181/'Population 2016'!AT$5","v":2.5096219750092266E-2},{"$f":"'Population 2016'!AU181/'Population 2016'!AU$5","v":2.5096219750092266E-2},{"$f":"'Population 2016'!AV181/'Population 2016'!AV$5","v":4.0122479146869391E-3},{"$f":"'Population 2016'!AW181/'Population 2016'!AW$5","v":8.7596863750076265E-3},{"$f":"'Population 2016'!AX181/'Population 2016'!AX$5","v":9.4049094649679907E-3},{"$f":"'Population 2016'!AY181/'Population 2016'!AY$5","v":7.3299470640433278E-3},{"$f":"'Population 2016'!AZ181/'Population 2016'!AZ$5","v":8.6376998348971119E-3},{"$f":"'Population 2016'!BA181/'Population 2016'!BA$5","v":3.5629453681710215E-3},{"$f":"'Population 2016'!BB181/'Population 2016'!BB$5","v":8.2997866361006201E-3},{"$f":"'Population 2016'!BC181/'Population 2016'!BC$5","v":2.0360288584959944E-3},179]
[null,"Female 40-44",{"$f":"'Population 2016'!C182/'Population 2016'!C$5","v":5.2746443959458839E-3},{"$f":"'Population 2016'!D182/'Population 2016'!D$5","v":1.046037381532232E-2},{"$f":"'Population 2016'!E182/'Population 2016'!E$5","v":1.5216647368495071E-2},{"$f":"'Population 2016'!F182/'Population 2016'!F$5","v":8.4882822559876388E-3},{"$f":"'Population 2016'!G182/'Population 2016'!G$5","v":8.6883559789963736E-3},{"$f":"'Population 2016'!H182/'Population 2016'!H$5","v":5.7228456647417589E-3},{"$f":"'Population 2016'!I182/'Population 2016'!I$5","v":1.3064232476342015E-2},{"$f":"'Population 2016'!J182/'Population 2016'!J$5","v":9.910186344675451E-3},{"$f":"'Population 2016'!K182/'Population 2016'!K$5","v":7.6548693474460146E-3},{"$f":"'Population 2016'!L182/'Population 2016'!L$5","v":5.9488824996425903E-3},{"$f":"'Population 2016'!M182/'Population 2016'!M$5","v":5.9488824996425903E-3},{"$f":"'Population 2016'!N182/'Population 2016'!N$5","v":5.2000868020671753E-3},{"$f":"'Population 2016'!O182/'Population 2016'!O$5","v":5.5378884695019863E-3},{"$f":"'Population 2016'!P182/'Population 2016'!P$5","v":6.7282767947706521E-3},{"$f":"'Population 2016'!Q182/'Population 2016'!Q$5","v":1.3583859179093077E-2},{"$f":"'Population 2016'!R182/'Population 2016'!R$5","v":6.1611752807792623E-3},{"$f":"'Population 2016'!S182/'Population 2016'!S$5","v":7.760326653968164E-3},{"$f":"'Population 2016'!T182/'Population 2016'!T$5","v":6.0096880918367821E-3},{"$f":"'Population 2016'!U182/'Population 2016'!U$5","v":2.3015978400389501E-3},{"$f":"'Population 2016'!V182/'Population 2016'!V$5","v":8.8306454690469469E-3},{"$f":"'Population 2016'!W182/'Population 2016'!W$5","v":6.7394871191470722E-3},{"$f":"'Population 2016'!X182/'Population 2016'!X$5","v":6.7394871191470722E-3},{"$f":"'Population 2016'!Y182/'Population 2016'!Y$5","v":9.3480230838937379E-3},{"$f":"'Population 2016'!Z182/'Population 2016'!Z$5","v":3.9161180294357348E-3},{"$f":"'Population 2016'!AA182/'Population 2016'!AA$5","v":6.0126618020578584E-3},{"$f":"'Population 2016'!AB182/'Population 2016'!AB$5","v":1.1330255979857323E-2},{"$f":"'Population 2016'!AC182/'Population 2016'!AC$5","v":5.0659776881848331E-3},{"$f":"'Population 2016'!AD182/'Population 2016'!AD$5","v":1.188358331162306E-2},{"$f":"'Population 2016'!AE182/'Population 2016'!AE$5","v":1.309561699812113E-2},{"$f":"'Population 2016'!AF182/'Population 2016'!AF$5","v":7.0277036299748151E-3},{"$f":"'Population 2016'!AG182/'Population 2016'!AG$5","v":1.309561699812113E-2},{"$f":"'Population 2016'!AH182/'Population 2016'!AH$5","v":7.712956168785934E-3},{"$f":"'Population 2016'!AI182/'Population 2016'!AI$5","v":7.4946408259690261E-3},{"$f":"'Population 2016'!AJ182/'Population 2016'!AJ$5","v":6.5805983883110725E-3},{"$f":"'Population 2016'!AK182/'Population 2016'!AK$5","v":1.5802773342720289E-2},{"$f":"'Population 2016'!AL182/'Population 2016'!AL$5","v":5.8619038328514925E-3},{"$f":"'Population 2016'!AM182/'Population 2016'!AM$5","v":6.2189640372196124E-3},{"$f":"'Population 2016'!AN182/'Population 2016'!AN$5","v":1.8435693247518273E-2},{"$f":"'Population 2016'!AO182/'Population 2016'!AO$5","v":1.8435693247518273E-2},{"$f":"'Population 2016'!AP182/'Population 2016'!AP$5","v":1.5844205253396318E-2},{"$f":"'Population 2016'!AQ182/'Population 2016'!AQ$5","v":6.9668986682742372E-3},{"$f":"'Population 2016'!AR182/'Population 2016'!AR$5","v":7.9765495458345836E-3},{"$f":"'Population 2016'!AS182/'Population 2016'!AS$5","v":1.3064232476342015E-2},{"$f":"'Population 2016'!AT182/'Population 2016'!AT$5","v":2.6836083724363368E-2},{"$f":"'Population 2016'!AU182/'Population 2016'!AU$5","v":2.6836083724363368E-2},{"$f":"'Population 2016'!AV182/'Population 2016'!AV$5","v":5.7544081934325841E-3},{"$f":"'Population 2016'!AW182/'Population 2016'!AW$5","v":9.2859539935322474E-3},{"$f":"'Population 2016'!AX182/'Population 2016'!AX$5","v":1.1129994760852064E-2},{"$f":"'Population 2016'!AY182/'Population 2016'!AY$5","v":8.4636333037544746E-3},{"$f":"'Population 2016'!AZ182/'Population 2016'!AZ$5","v":9.9809585171804806E-3},{"$f":"'Population 2016'!BA182/'Population 2016'!BA$5","v":4.4806737205787088E-3},{"$f":"'Population 2016'!BB182/'Population 2016'!BB$5","v":8.7762302949117195E-3},{"$f":"'Population 2016'!BC182/'Population 2016'!BC$5","v":2.3015978400389501E-3},180]
[null,"Female 45-49",{"$f":"'Population 2016'!C183/'Population 2016'!C$5","v":5.4177549028126323E-3},{"$f":"'Population 2016'!D183/'Population 2016'!D$5","v":1.2020382813493343E-2},{"$f":"'Population 2016'!E183/'Population 2016'!E$5","v":1.8076214495661429E-2},{"$f":"'Population 2016'!F183/'Population 2016'!F$5","v":1.121813031161473E-2},{"$f":"'Population 2016'!G183/'Population 2016'!G$5","v":1.1516808314837871E-2},{"$f":"'Population 2016'!H183/'Population 2016'!H$5","v":6.8965964469720796E-3},{"$f":"'Population 2016'!I183/'Population 2016'!I$5","v":1.7345699690143206E-2},{"$f":"'Population 2016'!J183/'Population 2016'!J$5","v":1.1651725367589129E-2},{"$f":"'Population 2016'!K183/'Population 2016'!K$5","v":9.4740821244625045E-3},{"$f":"'Population 2016'!L183/'Population 2016'!L$5","v":8.1409940749448007E-3},{"$f":"'Population 2016'!M183/'Population 2016'!M$5","v":8.1409940749448007E-3},{"$f":"'Population 2016'!N183/'Population 2016'!N$5","v":6.0198841031658644E-3},{"$f":"'Population 2016'!O183/'Population 2016'!O$5","v":6.6474475188476436E-3},{"$f":"'Population 2016'!P183/'Population 2016'!P$5","v":8.5878507832751038E-3},{"$f":"'Population 2016'!Q183/'Population 2016'!Q$5","v":1.6345283839202831E-2},{"$f":"'Population 2016'!R183/'Population 2016'!R$5","v":7.5051897588758187E-3},{"$f":"'Population 2016'!S183/'Population 2016'!S$5","v":8.8248118615074731E-3},{"$f":"'Population 2016'!T183/'Population 2016'!T$5","v":5.676979846721544E-3},{"$f":"'Population 2016'!U183/'Population 2016'!U$5","v":2.3015978400389501E-3},{"$f":"'Population 2016'!V183/'Population 2016'!V$5","v":9.9526030178368353E-3},{"$f":"'Population 2016'!W183/'Population 2016'!W$5","v":8.3606246609011694E-3},{"$f":"'Population 2016'!X183/'Population 2016'!X$5","v":8.3606246609011694E-3},{"$f":"'Population 2016'!Y183/'Population 2016'!Y$5","v":1.0766919444841894E-2},{"$f":"'Population 2016'!Z183/'Population 2016'!Z$5","v":4.3671588108784064E-3},{"$f":"'Population 2016'!AA183/'Population 2016'!AA$5","v":7.1613791783847131E-3},{"$f":"'Population 2016'!AB183/'Population 2016'!AB$5","v":1.3002671361165983E-2},{"$f":"'Population 2016'!AC183/'Population 2016'!AC$5","v":6.2016337726329635E-3},{"$f":"'Population 2016'!AD183/'Population 2016'!AD$5","v":1.4220849305891547E-2},{"$f":"'Population 2016'!AE183/'Population 2016'!AE$5","v":1.5246563106397396E-2},{"$f":"'Population 2016'!AF183/'Population 2016'!AF$5","v":9.3350827187862889E-3},{"$f":"'Population 2016'!AG183/'Population 2016'!AG$5","v":1.5246563106397396E-2},{"$f":"'Population 2016'!AH183/'Population 2016'!AH$5","v":8.8851323110074962E-3},{"$f":"'Population 2016'!AI183/'Population 2016'!AI$5","v":7.9061488319188029E-3},{"$f":"'Population 2016'!AJ183/'Population 2016'!AJ$5","v":7.6959540473468474E-3},{"$f":"'Population 2016'!AK183/'Population 2016'!AK$5","v":1.8053128496536463E-2},{"$f":"'Population 2016'!AL183/'Population 2016'!AL$5","v":7.5202639186960143E-3},{"$f":"'Population 2016'!AM183/'Population 2016'!AM$5","v":7.5192599541455537E-3},{"$f":"'Population 2016'!AN183/'Population 2016'!AN$5","v":2.1544671102868986E-2},{"$f":"'Population 2016'!AO183/'Population 2016'!AO$5","v":2.1544671102868986E-2},{"$f":"'Population 2016'!AP183/'Population 2016'!AP$5","v":2.0187689234817622E-2},{"$f":"'Population 2016'!AQ183/'Population 2016'!AQ$5","v":8.9946292541239654E-3},{"$f":"'Population 2016'!AR183/'Population 2016'!AR$5","v":9.3987613123646205E-3},{"$f":"'Population 2016'!AS183/'Population 2016'!AS$5","v":1.7345699690143206E-2},{"$f":"'Population 2016'!AT183/'Population 2016'!AT$5","v":2.8786840301576421E-2},{"$f":"'Population 2016'!AU183/'Population 2016'!AU$5","v":2.8786840301576421E-2},{"$f":"'Population 2016'!AV183/'Population 2016'!AV$5","v":6.4195966634991025E-3},{"$f":"'Population 2016'!AW183/'Population 2016'!AW$5","v":1.0323235096711209E-2},{"$f":"'Population 2016'!AX183/'Population 2016'!AX$5","v":1.2829523237537856E-2},{"$f":"'Population 2016'!AY183/'Population 2016'!AY$5","v":1.0622379976132921E-2},{"$f":"'Population 2016'!AZ183/'Population 2016'!AZ$5","v":1.2612825100241039E-2},{"$f":"'Population 2016'!BA183/'Population 2016'!BA$5","v":6.5050744979486073E-3},{"$f":"'Population 2016'!BB183/'Population 2016'!BB$5","v":9.6669727874716029E-3},{"$f":"'Population 2016'!BC183/'Population 2016'!BC$5","v":2.3015978400389501E-3},181]
[null,"Female 50-54",{"$f":"'Population 2016'!C184/'Population 2016'!C$5","v":5.7244202746699517E-3},{"$f":"'Population 2016'!D184/'Population 2016'!D$5","v":1.2370040002738574E-2},{"$f":"'Population 2016'!E184/'Population 2016'!E$5","v":1.8465303137554553E-2},{"$f":"'Population 2016'!F184/'Population 2016'!F$5","v":1.275302601081638E-2},{"$f":"'Population 2016'!G184/'Population 2016'!G$5","v":1.2288204406431007E-2},{"$f":"'Population 2016'!H184/'Population 2016'!H$5","v":7.4348357559506249E-3},{"$f":"'Population 2016'!I184/'Population 2016'!I$5","v":1.8874047399715266E-2},{"$f":"'Population 2016'!J184/'Population 2016'!J$5","v":1.2281996633024556E-2},{"$f":"'Population 2016'!K184/'Population 2016'!K$5","v":8.5290365260123797E-3},{"$f":"'Population 2016'!L184/'Population 2016'!L$5","v":9.0146617317681445E-3},{"$f":"'Population 2016'!M184/'Population 2016'!M$5","v":9.0146617317681445E-3},{"$f":"'Population 2016'!N184/'Population 2016'!N$5","v":6.7030485207481049E-3},{"$f":"'Population 2016'!O184/'Population 2016'!O$5","v":6.8554898405999544E-3},{"$f":"'Population 2016'!P184/'Population 2016'!P$5","v":9.6134340132987724E-3},{"$f":"'Population 2016'!Q184/'Population 2016'!Q$5","v":1.5934007825994995E-2},{"$f":"'Population 2016'!R184/'Population 2016'!R$5","v":7.5318039069569385E-3},{"$f":"'Population 2016'!S184/'Population 2016'!S$5","v":9.1143235929111999E-3},{"$f":"'Population 2016'!T184/'Population 2016'!T$5","v":6.1702256366825961E-3},{"$f":"'Population 2016'!U184/'Population 2016'!U$5","v":2.9212587969725135E-3},{"$f":"'Population 2016'!V184/'Population 2016'!V$5","v":9.2962196899733628E-3},{"$f":"'Population 2016'!W184/'Population 2016'!W$5","v":8.7397616666339828E-3},{"$f":"'Population 2016'!X184/'Population 2016'!X$5","v":8.7397616666339828E-3},{"$f":"'Population 2016'!Y184/'Population 2016'!Y$5","v":1.0727174448736904E-2},{"$f":"'Population 2016'!Z184/'Population 2016'!Z$5","v":4.6091334790343465E-3},{"$f":"'Population 2016'!AA184/'Population 2016'!AA$5","v":7.4683239024234682E-3},{"$f":"'Population 2016'!AB184/'Population 2016'!AB$5","v":1.3407981331177139E-2},{"$f":"'Population 2016'!AC184/'Population 2016'!AC$5","v":6.6515521667449284E-3},{"$f":"'Population 2016'!AD184/'Population 2016'!AD$5","v":1.5370873497338941E-2},{"$f":"'Population 2016'!AE184/'Population 2016'!AE$5","v":1.6540210885122024E-2},{"$f":"'Population 2016'!AF184/'Population 2016'!AF$5","v":1.040582726326743E-2},{"$f":"'Population 2016'!AG184/'Population 2016'!AG$5","v":1.6540210885122024E-2},{"$f":"'Population 2016'!AH184/'Population 2016'!AH$5","v":8.9352888178854395E-3},{"$f":"'Population 2016'!AI184/'Population 2016'!AI$5","v":7.9963798232566274E-3},{"$f":"'Population 2016'!AJ184/'Population 2016'!AJ$5","v":7.5147087527535341E-3},{"$f":"'Population 2016'!AK184/'Population 2016'!AK$5","v":1.8744578404133613E-2},{"$f":"'Population 2016'!AL184/'Population 2016'!AL$5","v":8.7440804526347522E-3},{"$f":"'Population 2016'!AM184/'Population 2016'!AM$5","v":7.4721740295772042E-3},{"$f":"'Population 2016'!AN184/'Population 2016'!AN$5","v":2.2417366641213046E-2},{"$f":"'Population 2016'!AO184/'Population 2016'!AO$5","v":2.2417366641213046E-2},{"$f":"'Population 2016'!AP184/'Population 2016'!AP$5","v":2.0480953664220154E-2},{"$f":"'Population 2016'!AQ184/'Population 2016'!AQ$5","v":9.5974680769441555E-3},{"$f":"'Population 2016'!AR184/'Population 2016'!AR$5","v":9.8189197383789766E-3},{"$f":"'Population 2016'!AS184/'Population 2016'!AS$5","v":1.8874047399715266E-2},{"$f":"'Population 2016'!AT184/'Population 2016'!AT$5","v":2.9946749617757156E-2},{"$f":"'Population 2016'!AU184/'Population 2016'!AU$5","v":2.9946749617757156E-2},{"$f":"'Population 2016'!AV184/'Population 2016'!AV$5","v":6.4935064935064939E-3},{"$f":"'Population 2016'!AW184/'Population 2016'!AW$5","v":1.0475776435413997E-2},{"$f":"'Population 2016'!AX184/'Population 2016'!AX$5","v":1.4311818751038246E-2},{"$f":"'Population 2016'!AY184/'Population 2016'!AY$5","v":1.1214467121569108E-2},{"$f":"'Population 2016'!AZ184/'Population 2016'!AZ$5","v":1.3392317825934384E-2},{"$f":"'Population 2016'!BA184/'Population 2016'!BA$5","v":7.287842798531635E-3},{"$f":"'Population 2016'!BB184/'Population 2016'!BB$5","v":8.9902846923485911E-3},{"$f":"'Population 2016'!BC184/'Population 2016'!BC$5","v":2.9212587969725135E-3},182]
[null,"Female 55-59",{"$f":"'Population 2016'!C185/'Population 2016'!C$5","v":5.30019984360066E-3},{"$f":"'Population 2016'!D185/'Population 2016'!D$5","v":1.0814921314906644E-2},{"$f":"'Population 2016'!E185/'Population 2016'!E$5","v":1.5872941463254561E-2},{"$f":"'Population 2016'!F185/'Population 2016'!F$5","v":1.1300540818954416E-2},{"$f":"'Population 2016'!G185/'Population 2016'!G$5","v":1.1476208520543495E-2},{"$f":"'Population 2016'!H185/'Population 2016'!H$5","v":7.1170800193247367E-3},{"$f":"'Population 2016'!I185/'Population 2016'!I$5","v":1.7701616280043547E-2},{"$f":"'Population 2016'!J185/'Population 2016'!J$5","v":1.0183856762561887E-2},{"$f":"'Population 2016'!K185/'Population 2016'!K$5","v":7.6076170675235082E-3},{"$f":"'Population 2016'!L185/'Population 2016'!L$5","v":9.0464314647435394E-3},{"$f":"'Population 2016'!M185/'Population 2016'!M$5","v":9.0464314647435394E-3},{"$f":"'Population 2016'!N185/'Population 2016'!N$5","v":6.7593091198431135E-3},{"$f":"'Population 2016'!O185/'Population 2016'!O$5","v":6.5384729693583384E-3},{"$f":"'Population 2016'!P185/'Population 2016'!P$5","v":1.0300912881776175E-2},{"$f":"'Population 2016'!Q185/'Population 2016'!Q$5","v":1.4935194651061679E-2},{"$f":"'Population 2016'!R185/'Population 2016'!R$5","v":6.9462926491722999E-3},{"$f":"'Population 2016'!S185/'Population 2016'!S$5","v":8.2175433517338043E-3},{"$f":"'Population 2016'!T185/'Population 2016'!T$5","v":5.5350553505535052E-3},{"$f":"'Population 2016'!U185/'Population 2016'!U$5","v":2.5671668215819059E-3},{"$f":"'Population 2016'!V185/'Population 2016'!V$5","v":8.1437326840735451E-3},{"$f":"'Population 2016'!W185/'Population 2016'!W$5","v":8.0697350616751318E-3},{"$f":"'Population 2016'!X185/'Population 2016'!X$5","v":8.0697350616751318E-3},{"$f":"'Population 2016'!Y185/'Population 2016'!Y$5","v":9.1214766060952919E-3},{"$f":"'Population 2016'!Z185/'Population 2016'!Z$5","v":4.0516238436030605E-3},{"$f":"'Population 2016'!AA185/'Population 2016'!AA$5","v":6.7275373931091577E-3},{"$f":"'Population 2016'!AB185/'Population 2016'!AB$5","v":1.1821540791992057E-2},{"$f":"'Population 2016'!AC185/'Population 2016'!AC$5","v":6.1933594113619391E-3},{"$f":"'Population 2016'!AD185/'Population 2016'!AD$5","v":1.3997543637649336E-2},{"$f":"'Population 2016'!AE185/'Population 2016'!AE$5","v":1.4953952299304921E-2},{"$f":"'Population 2016'!AF185/'Population 2016'!AF$5","v":8.912817264624711E-3},{"$f":"'Population 2016'!AG185/'Population 2016'!AG$5","v":1.4953952299304921E-2},{"$f":"'Population 2016'!AH185/'Population 2016'!AH$5","v":7.6869490911455193E-3},{"$f":"'Population 2016'!AI185/'Population 2016'!AI$5","v":7.0407515968151195E-3},{"$f":"'Population 2016'!AJ185/'Population 2016'!AJ$5","v":6.4411789309316006E-3},{"$f":"'Population 2016'!AK185/'Population 2016'!AK$5","v":1.6997095910388092E-2},{"$f":"'Population 2016'!AL185/'Population 2016'!AL$5","v":7.8838615845763637E-3},{"$f":"'Population 2016'!AM185/'Population 2016'!AM$5","v":6.1356581706756104E-3},{"$f":"'Population 2016'!AN185/'Population 2016'!AN$5","v":2.1762844987455003E-2},{"$f":"'Population 2016'!AO185/'Population 2016'!AO$5","v":2.1762844987455003E-2},{"$f":"'Population 2016'!AP185/'Population 2016'!AP$5","v":1.8372620198785727E-2},{"$f":"'Population 2016'!AQ185/'Population 2016'!AQ$5","v":8.96722748945032E-3},{"$f":"'Population 2016'!AR185/'Population 2016'!AR$5","v":8.8696646730305299E-3},{"$f":"'Population 2016'!AS185/'Population 2016'!AS$5","v":1.7701616280043547E-2},{"$f":"'Population 2016'!AT185/'Population 2016'!AT$5","v":2.6361575367743976E-2},{"$f":"'Population 2016'!AU185/'Population 2016'!AU$5","v":2.6361575367743976E-2},{"$f":"'Population 2016'!AV185/'Population 2016'!AV$5","v":6.8208214549677964E-3},{"$f":"'Population 2016'!AW185/'Population 2016'!AW$5","v":9.3202757947403753E-3},{"$f":"'Population 2016'!AX185/'Population 2016'!AX$5","v":1.157723909682201E-2},{"$f":"'Population 2016'!AY185/'Population 2016'!AY$5","v":1.0288852850279979E-2},{"$f":"'Population 2016'!AZ185/'Population 2016'!AZ$5","v":1.224177505738332E-2},{"$f":"'Population 2016'!BA185/'Population 2016'!BA$5","v":7.5442668969984885E-3},{"$f":"'Population 2016'!BB185/'Population 2016'!BB$5","v":7.1673698238539458E-3},{"$f":"'Population 2016'!BC185/'Population 2016'!BC$5","v":2.5671668215819059E-3},183]
[null,"Female 60-64",{"$f":"'Population 2016'!C186/'Population 2016'!C$5","v":4.9015348601861462E-3},{"$f":"'Population 2016'!D186/'Population 2016'!D$5","v":9.7683949023405024E-3},{"$f":"'Population 2016'!E186/'Population 2016'!E$5","v":1.4232206226355834E-2},{"$f":"'Population 2016'!F186/'Population 2016'!F$5","v":1.1393252639711563E-2},{"$f":"'Population 2016'!G186/'Population 2016'!G$5","v":1.0867211606127863E-2},{"$f":"'Population 2016'!H186/'Population 2016'!H$5","v":6.6177495760554837E-3},{"$f":"'Population 2016'!I186/'Population 2016'!I$5","v":1.5953437735533038E-2},{"$f":"'Population 2016'!J186/'Population 2016'!J$5","v":8.4837829544794872E-3},{"$f":"'Population 2016'!K186/'Population 2016'!K$5","v":6.2373009497708265E-3},{"$f":"'Population 2016'!L186/'Population 2016'!L$5","v":8.7128492685018977E-3},{"$f":"'Population 2016'!M186/'Population 2016'!M$5","v":8.7128492685018977E-3},{"$f":"'Population 2016'!N186/'Population 2016'!N$5","v":4.8303742937285503E-3},{"$f":"'Population 2016'!O186/'Population 2016'!O$5","v":5.8350917862910016E-3},{"$f":"'Population 2016'!P186/'Population 2016'!P$5","v":8.2272061309590899E-3},{"$f":"'Population 2016'!Q186/'Population 2016'!Q$5","v":1.2479289315049177E-2},{"$f":"'Population 2016'!R186/'Population 2016'!R$5","v":6.2010965029009419E-3},{"$f":"'Population 2016'!S186/'Population 2016'!S$5","v":7.1662980099599094E-3},{"$f":"'Population 2016'!T186/'Population 2016'!T$5","v":4.6439556451050006E-3},{"$f":"'Population 2016'!U186/'Population 2016'!U$5","v":1.6819368831053865E-3},{"$f":"'Population 2016'!V186/'Population 2016'!V$5","v":6.777539478404225E-3},{"$f":"'Population 2016'!W186/'Population 2016'!W$5","v":7.3539505422312865E-3},{"$f":"'Population 2016'!X186/'Population 2016'!X$5","v":7.3539505422312865E-3},{"$f":"'Population 2016'!Y186/'Population 2016'!Y$5","v":7.5952687556636624E-3},{"$f":"'Population 2016'!Z186/'Population 2016'!Z$5","v":3.1650286594796964E-3},{"$f":"'Population 2016'!AA186/'Population 2016'!AA$5","v":5.5515803334801623E-3},{"$f":"'Population 2016'!AB186/'Population 2016'!AB$5","v":1.0642457242868693E-2},{"$f":"'Population 2016'!AC186/'Population 2016'!AC$5","v":5.0142629302409288E-3},{"$f":"'Population 2016'!AD186/'Population 2016'!AD$5","v":1.3335070155197439E-2},{"$f":"'Population 2016'!AE186/'Population 2016'!AE$5","v":1.4271193749422479E-2},{"$f":"'Population 2016'!AF186/'Population 2016'!AF$5","v":6.9975418118204168E-3},{"$f":"'Population 2016'!AG186/'Population 2016'!AG$5","v":1.4271193749422479E-2},{"$f":"'Population 2016'!AH186/'Population 2016'!AH$5","v":6.5166305973268441E-3},{"$f":"'Population 2016'!AI186/'Population 2016'!AI$5","v":5.9402069297401347E-3},{"$f":"'Population 2016'!AJ186/'Population 2016'!AJ$5","v":5.8835011014137135E-3},{"$f":"'Population 2016'!AK186/'Population 2016'!AK$5","v":1.5136467068126673E-2},{"$f":"'Population 2016'!AL186/'Population 2016'!AL$5","v":7.9015980560827228E-3},{"$f":"'Population 2016'!AM186/'Population 2016'!AM$5","v":5.233781615481852E-3},{"$f":"'Population 2016'!AN186/'Population 2016'!AN$5","v":2.0126540853059888E-2},{"$f":"'Population 2016'!AO186/'Population 2016'!AO$5","v":2.0126540853059888E-2},{"$f":"'Population 2016'!AP186/'Population 2016'!AP$5","v":1.7358083794366153E-2},{"$f":"'Population 2016'!AQ186/'Population 2016'!AQ$5","v":7.7752507261467634E-3},{"$f":"'Population 2016'!AR186/'Population 2016'!AR$5","v":7.8108030617652932E-3},{"$f":"'Population 2016'!AS186/'Population 2016'!AS$5","v":1.5953437735533038E-2},{"$f":"'Population 2016'!AT186/'Population 2016'!AT$5","v":2.3778140981705068E-2},{"$f":"'Population 2016'!AU186/'Population 2016'!AU$5","v":2.3778140981705068E-2},{"$f":"'Population 2016'!AV186/'Population 2016'!AV$5","v":5.9233449477351921E-3},{"$f":"'Population 2016'!AW186/'Population 2016'!AW$5","v":7.8673195435963149E-3},{"$f":"'Population 2016'!AX186/'Population 2016'!AX$5","v":9.6988128857482397E-3},{"$f":"'Population 2016'!AY186/'Population 2016'!AY$5","v":9.4045469844863984E-3},{"$f":"'Population 2016'!AZ186/'Population 2016'!AZ$5","v":1.1209162922608741E-2},{"$f":"'Population 2016'!BA186/'Population 2016'!BA$5","v":5.6413301662707836E-3},{"$f":"'Population 2016'!BB186/'Population 2016'!BB$5","v":5.9728081865449553E-3},{"$f":"'Population 2016'!BC186/'Population 2016'!BC$5","v":1.6819368831053865E-3},184]
[null,"Female 65-69",{"$f":"'Population 2016'!C187/'Population 2016'!C$5","v":5.0497564565838496E-3},{"$f":"'Population 2016'!D187/'Population 2016'!D$5","v":9.6950402472540907E-3},{"$f":"'Population 2016'!E187/'Population 2016'!E$5","v":1.3955625143564333E-2},{"$f":"'Population 2016'!F187/'Population 2016'!F$5","v":1.2227659026525882E-2},{"$f":"'Population 2016'!G187/'Population 2016'!G$5","v":1.2464136848373301E-2},{"$f":"'Population 2016'!H187/'Population 2016'!H$5","v":6.7442033896106847E-3},{"$f":"'Population 2016'!I187/'Population 2016'!I$5","v":1.7324763420149065E-2},{"$f":"'Population 2016'!J187/'Population 2016'!J$5","v":8.7989185871971999E-3},{"$f":"'Population 2016'!K187/'Population 2016'!K$5","v":6.9224590086471669E-3},{"$f":"'Population 2016'!L187/'Population 2016'!L$5","v":8.2919003065779224E-3},{"$f":"'Population 2016'!M187/'Population 2016'!M$5","v":8.2919003065779224E-3},{"$f":"'Population 2016'!N187/'Population 2016'!N$5","v":5.336719685583623E-3},{"$f":"'Population 2016'!O187/'Population 2016'!O$5","v":5.7657443457068977E-3},{"$f":"'Population 2016'!P187/'Population 2016'!P$5","v":8.0468838048010811E-3},{"$f":"'Population 2016'!Q187/'Population 2016'!Q$5","v":1.2491040058283687E-2},{"$f":"'Population 2016'!R187/'Population 2016'!R$5","v":5.6555064672379838E-3},{"$f":"'Population 2016'!S187/'Population 2016'!S$5","v":7.2986966676140529E-3},{"$f":"'Population 2016'!T187/'Population 2016'!T$5","v":4.4648050515814115E-3},{"$f":"'Population 2016'!U187/'Population 2016'!U$5","v":2.611428318505732E-3},{"$f":"'Population 2016'!V187/'Population 2016'!V$5","v":7.5331435418749667E-3},{"$f":"'Population 2016'!W187/'Population 2016'!W$5","v":7.5696664248034043E-3},{"$f":"'Population 2016'!X187/'Population 2016'!X$5","v":7.5696664248034043E-3},{"$f":"'Population 2016'!Y187/'Population 2016'!Y$5","v":8.1397752023020294E-3},{"$f":"'Population 2016'!Z187/'Population 2016'!Z$5","v":2.7701260010492023E-3},{"$f":"'Population 2016'!AA187/'Population 2016'!AA$5","v":5.0333619682199262E-3},{"$f":"'Population 2016'!AB187/'Population 2016'!AB$5","v":1.082873606746978E-2},{"$f":"'Population 2016'!AC187/'Population 2016'!AC$5","v":4.6522596246336007E-3},{"$f":"'Population 2016'!AD187/'Population 2016'!AD$5","v":1.3569541106851763E-2},{"$f":"'Population 2016'!AE187/'Population 2016'!AE$5","v":1.3988849988192897E-2},{"$f":"'Population 2016'!AF187/'Population 2016'!AF$5","v":6.5451145395044414E-3},{"$f":"'Population 2016'!AG187/'Population 2016'!AG$5","v":1.3988849988192897E-2},{"$f":"'Population 2016'!AH187/'Population 2016'!AH$5","v":5.7178417840855261E-3},{"$f":"'Population 2016'!AI187/'Population 2016'!AI$5","v":5.8759515268177447E-3},{"$f":"'Population 2016'!AJ187/'Population 2016'!AJ$5","v":6.3993530937177592E-3},{"$f":"'Population 2016'!AK187/'Population 2016'!AK$5","v":1.6657656864840401E-2},{"$f":"'Population 2016'!AL187/'Population 2016'!AL$5","v":8.1055674784058455E-3},{"$f":"'Population 2016'!AM187/'Population 2016'!AM$5","v":4.3681250022637461E-3},{"$f":"'Population 2016'!AN187/'Population 2016'!AN$5","v":2.0835605977964439E-2},{"$f":"'Population 2016'!AO187/'Population 2016'!AO$5","v":2.0835605977964439E-2},{"$f":"'Population 2016'!AP187/'Population 2016'!AP$5","v":1.7587939698492462E-2},{"$f":"'Population 2016'!AQ187/'Population 2016'!AQ$5","v":7.2409163150106868E-3},{"$f":"'Population 2016'!AR187/'Population 2016'!AR$5","v":7.7722625486685371E-3},{"$f":"'Population 2016'!AS187/'Population 2016'!AS$5","v":1.7324763420149065E-2},{"$f":"'Population 2016'!AT187/'Population 2016'!AT$5","v":2.2354615911846891E-2},{"$f":"'Population 2016'!AU187/'Population 2016'!AU$5","v":2.2354615911846891E-2},{"$f":"'Population 2016'!AV187/'Population 2016'!AV$5","v":6.1661915320451906E-3},{"$f":"'Population 2016'!AW187/'Population 2016'!AW$5","v":7.1389346512904994E-3},{"$f":"'Population 2016'!AX187/'Population 2016'!AX$5","v":9.8138185721405122E-3},{"$f":"'Population 2016'!AY187/'Population 2016'!AY$5","v":9.7702028701692114E-3},{"$f":"'Population 2016'!AZ187/'Population 2016'!AZ$5","v":1.1706772670007077E-2},{"$f":"'Population 2016'!BA187/'Population 2016'!BA$5","v":5.8977542647376379E-3},{"$f":"'Population 2016'!BB187/'Population 2016'!BB$5","v":5.9175683420451168E-3},{"$f":"'Population 2016'!BC187/'Population 2016'!BC$5","v":2.611428318505732E-3},185]
[null,"Female 70-74",{"$f":"'Population 2016'!C188/'Population 2016'!C$5","v":3.5573183135448982E-3},{"$f":"'Population 2016'!D188/'Population 2016'!D$5","v":7.0151501814305134E-3},{"$f":"'Population 2016'!E188/'Population 2016'!E$5","v":1.0186621913659825E-2},{"$f":"'Population 2016'!F188/'Population 2016'!F$5","v":9.7141385526654644E-3},{"$f":"'Population 2016'!G188/'Population 2016'!G$5","v":9.8657500135332643E-3},{"$f":"'Population 2016'!H188/'Population 2016'!H$5","v":5.6806943935566916E-3},{"$f":"'Population 2016'!I188/'Population 2016'!I$5","v":1.3859810736119253E-2},{"$f":"'Population 2016'!J188/'Population 2016'!J$5","v":6.9993282635197329E-3},{"$f":"'Population 2016'!K188/'Population 2016'!K$5","v":5.3631337712044605E-3},{"$f":"'Population 2016'!L188/'Population 2016'!L$5","v":7.1481899194637266E-3},{"$f":"'Population 2016'!M188/'Population 2016'!M$5","v":7.1481899194637266E-3},{"$f":"'Population 2016'!N188/'Population 2016'!N$5","v":3.7453484540391092E-3},{"$f":"'Population 2016'!O188/'Population 2016'!O$5","v":4.2698209845355205E-3},{"$f":"'Population 2016'!P188/'Population 2016'!P$5","v":5.7139637101318603E-3},{"$f":"'Population 2016'!Q188/'Population 2016'!Q$5","v":8.9423156014617929E-3},{"$f":"'Population 2016'!R188/'Population 2016'!R$5","v":4.4179485814659072E-3},{"$f":"'Population 2016'!S188/'Population 2016'!S$5","v":5.5316159167900919E-3},{"$f":"'Population 2016'!T188/'Population 2016'!T$5","v":3.3619819174232094E-3},{"$f":"'Population 2016'!U188/'Population 2016'!U$5","v":2.0360288584959944E-3},{"$f":"'Population 2016'!V188/'Population 2016'!V$5","v":5.640317201059372E-3},{"$f":"'Population 2016'!W188/'Population 2016'!W$5","v":5.8602814765425322E-3},{"$f":"'Population 2016'!X188/'Population 2016'!X$5","v":5.8602814765425322E-3},{"$f":"'Population 2016'!Y188/'Population 2016'!Y$5","v":6.2916328834199771E-3},{"$f":"'Population 2016'!Z188/'Population 2016'!Z$5","v":1.9841922788787088E-3},{"$f":"'Population 2016'!AA188/'Population 2016'!AA$5","v":3.5776998678543168E-3},{"$f":"'Population 2016'!AB188/'Population 2016'!AB$5","v":7.9137795154703549E-3},{"$f":"'Population 2016'!AC188/'Population 2016'!AC$5","v":3.4369628129518577E-3},{"$f":"'Population 2016'!AD188/'Population 2016'!AD$5","v":1.0394878856674979E-2},{"$f":"'Population 2016'!AE188/'Population 2016'!AE$5","v":1.0595591330506473E-2},{"$f":"'Population 2016'!AF188/'Population 2016'!AF$5","v":5.4743699950232996E-3},{"$f":"'Population 2016'!AG188/'Population 2016'!AG$5","v":1.0595591330506473E-2},{"$f":"'Population 2016'!AH188/'Population 2016'!AH$5","v":3.8304710067525519E-3},{"$f":"'Population 2016'!AI188/'Population 2016'!AI$5","v":4.3064791320325492E-3},{"$f":"'Population 2016'!AJ188/'Population 2016'!AJ$5","v":4.9354487912333048E-3},{"$f":"'Population 2016'!AK188/'Population 2016'!AK$5","v":1.2534101052261042E-2},{"$f":"'Population 2016'!AL188/'Population 2016'!AL$5","v":6.6068356361185503E-3},{"$f":"'Population 2016'!AM188/'Population 2016'!AM$5","v":2.8613754160765835E-3},{"$f":"'Population 2016'!AN188/'Population 2016'!AN$5","v":1.5763063161339588E-2},{"$f":"'Population 2016'!AO188/'Population 2016'!AO$5","v":1.5763063161339588E-2},{"$f":"'Population 2016'!AP188/'Population 2016'!AP$5","v":1.3379198833283135E-2},{"$f":"'Population 2016'!AQ188/'Population 2016'!AQ$5","v":5.2063352879925468E-3},{"$f":"'Population 2016'!AR188/'Population 2016'!AR$5","v":5.8635046514834864E-3},{"$f":"'Population 2016'!AS188/'Population 2016'!AS$5","v":1.3859810736119253E-2},{"$f":"'Population 2016'!AT188/'Population 2016'!AT$5","v":1.803131755153688E-2},{"$f":"'Population 2016'!AU188/'Population 2016'!AU$5","v":1.803131755153688E-2},{"$f":"'Population 2016'!AV188/'Population 2016'!AV$5","v":6.0817231548938866E-3},{"$f":"'Population 2016'!AW188/'Population 2016'!AW$5","v":4.8508145707486733E-3},{"$f":"'Population 2016'!AX188/'Population 2016'!AX$5","v":7.8842787226701769E-3},{"$f":"'Population 2016'!AY188/'Population 2016'!AY$5","v":7.4814112175270037E-3},{"$f":"'Population 2016'!AZ188/'Population 2016'!AZ$5","v":8.9080773855066131E-3},{"$f":"'Population 2016'!BA188/'Population 2016'!BA$5","v":4.5346577413085728E-3},{"$f":"'Population 2016'!BB188/'Population 2016'!BB$5","v":4.0739385318630328E-3},{"$f":"'Population 2016'!BC188/'Population 2016'!BC$5","v":2.0360288584959944E-3},186]
[null,"Female 75-79",{"$f":"'Population 2016'!C189/'Population 2016'!C$5","v":3.0257650023255457E-3},{"$f":"'Population 2016'!D189/'Population 2016'!D$5","v":5.618966579619143E-3},{"$f":"'Population 2016'!E189/'Population 2016'!E$5","v":7.997412326140662E-3},{"$f":"'Population 2016'!F189/'Population 2016'!F$5","v":7.5611640484161734E-3},{"$f":"'Population 2016'!G189/'Population 2016'!G$5","v":7.5921615330482323E-3},{"$f":"'Population 2016'!H189/'Population 2016'!H$5","v":4.0043707625813437E-3},{"$f":"'Population 2016'!I189/'Population 2016'!I$5","v":1.1179968176869609E-2},{"$f":"'Population 2016'!J189/'Population 2016'!J$5","v":5.1333935961122212E-3},{"$f":"'Population 2016'!K189/'Population 2016'!K$5","v":3.5202948542267165E-3},{"$f":"'Population 2016'!L189/'Population 2016'!L$5","v":5.6311851698886469E-3},{"$f":"'Population 2016'!M189/'Population 2016'!M$5","v":5.6311851698886469E-3},{"$f":"'Population 2016'!N189/'Population 2016'!N$5","v":3.2711519759526125E-3},{"$f":"'Population 2016'!O189/'Population 2016'!O$5","v":3.0215670540216562E-3},{"$f":"'Population 2016'!P189/'Population 2016'!P$5","v":5.4096697847402231E-3},{"$f":"'Population 2016'!Q189/'Population 2016'!Q$5","v":6.6979236436704621E-3},{"$f":"'Population 2016'!R189/'Population 2016'!R$5","v":4.0187363602491085E-3},{"$f":"'Population 2016'!S189/'Population 2016'!S$5","v":4.2914818234296194E-3},{"$f":"'Population 2016'!T189/'Population 2016'!T$5","v":2.7500779421413381E-3},{"$f":"'Population 2016'!U189/'Population 2016'!U$5","v":1.6819368831053865E-3},{"$f":"'Population 2016'!V189/'Population 2016'!V$5","v":4.442036009494661E-3},{"$f":"'Population 2016'!W189/'Population 2016'!W$5","v":4.278365004347002E-3},{"$f":"'Population 2016'!X189/'Population 2016'!X$5","v":4.278365004347002E-3},{"$f":"'Population 2016'!Y189/'Population 2016'!Y$5","v":4.7733740322093449E-3},{"$f":"'Population 2016'!Z189/'Population 2016'!Z$5","v":1.7809335576277191E-3},{"$f":"'Population 2016'!AA189/'Population 2016'!AA$5","v":2.9804199827659175E-3},{"$f":"'Population 2016'!AB189/'Population 2016'!AB$5","v":6.1860945927965363E-3},{"$f":"'Population 2016'!AC189/'Population 2016'!AC$5","v":2.8805120174754512E-3},{"$f":"'Population 2016'!AD189/'Population 2016'!AD$5","v":8.0278387733075298E-3},{"$f":"'Population 2016'!AE189/'Population 2016'!AE$5","v":8.1931025985893073E-3},{"$f":"'Population 2016'!AF189/'Population 2016'!AF$5","v":3.6495799966821999E-3},{"$f":"'Population 2016'!AG189/'Population 2016'!AG$5","v":8.1931025985893073E-3},{"$f":"'Population 2016'!AH189/'Population 2016'!AH$5","v":3.1598599333104225E-3},{"$f":"'Population 2016'!AI189/'Population 2016'!AI$5","v":3.3973335374923442E-3},{"$f":"'Population 2016'!AJ189/'Population 2016'!AJ$5","v":3.6667317290801104E-3},{"$f":"'Population 2016'!AK189/'Population 2016'!AK$5","v":9.1019951472788296E-3},{"$f":"'Population 2016'!AL189/'Population 2016'!AL$5","v":4.5405367056277823E-3},{"$f":"'Population 2016'!AM189/'Population 2016'!AM$5","v":2.4520900717517049E-3},{"$f":"'Population 2016'!AN189/'Population 2016'!AN$5","v":1.2381367950256354E-2},{"$f":"'Population 2016'!AO189/'Population 2016'!AO$5","v":1.2381367950256354E-2},{"$f":"'Population 2016'!AP189/'Population 2016'!AP$5","v":1.1009305201084285E-2},{"$f":"'Population 2016'!AQ189/'Population 2016'!AQ$5","v":3.9047514659944099E-3},{"$f":"'Population 2016'!AR189/'Population 2016'!AR$5","v":4.6132771399285729E-3},{"$f":"'Population 2016'!AS189/'Population 2016'!AS$5","v":1.1179968176869609E-2},{"$f":"'Population 2016'!AT189/'Population 2016'!AT$5","v":1.2706279327252597E-2},{"$f":"'Population 2016'!AU189/'Population 2016'!AU$5","v":1.2706279327252597E-2},{"$f":"'Population 2016'!AV189/'Population 2016'!AV$5","v":4.413472706155633E-3},{"$f":"'Population 2016'!AW189/'Population 2016'!AW$5","v":3.9050582707913844E-3},{"$f":"'Population 2016'!AX189/'Population 2016'!AX$5","v":6.0058525115964066E-3},{"$f":"'Population 2016'!AY189/'Population 2016'!AY$5","v":5.8734432850891952E-3},{"$f":"'Population 2016'!AZ189/'Population 2016'!AZ$5","v":7.2771830110854793E-3},{"$f":"'Population 2016'!BA189/'Population 2016'!BA$5","v":3.6574174044482835E-3},{"$f":"'Population 2016'!BB189/'Population 2016'!BB$5","v":3.245340864365467E-3},{"$f":"'Population 2016'!BC189/'Population 2016'!BC$5","v":1.6819368831053865E-3},187]
[null,"Female 80-84",{"$f":"'Population 2016'!C190/'Population 2016'!C$5","v":2.3357679156465784E-3},{"$f":"'Population 2016'!D190/'Population 2016'!D$5","v":4.2252281329773185E-3},{"$f":"'Population 2016'!E190/'Population 2016'!E$5","v":5.9582128174236705E-3},{"$f":"'Population 2016'!F190/'Population 2016'!F$5","v":6.0880762297192892E-3},{"$f":"'Population 2016'!G190/'Population 2016'!G$5","v":5.1832404049152814E-3},{"$f":"'Population 2016'!H190/'Population 2016'!H$5","v":3.05110355270368E-3},{"$f":"'Population 2016'!I190/'Population 2016'!I$5","v":7.6312704128632444E-3},{"$f":"'Population 2016'!J190/'Population 2016'!J$5","v":4.030418881600226E-3},{"$f":"'Population 2016'!K190/'Population 2016'!K$5","v":2.5988753957378445E-3},{"$f":"'Population 2016'!L190/'Population 2016'!L$5","v":4.4557050497990563E-3},{"$f":"'Population 2016'!M190/'Population 2016'!M$5","v":4.4557050497990563E-3},{"$f":"'Population 2016'!N190/'Population 2016'!N$5","v":3.2550775190683247E-3},{"$f":"'Population 2016'!O190/'Population 2016'!O$5","v":1.8921944502233979E-3},{"$f":"'Population 2016'!P190/'Population 2016'!P$5","v":3.7980389947030319E-3},{"$f":"'Population 2016'!Q190/'Population 2016'!Q$5","v":5.2055792528877456E-3},{"$f":"'Population 2016'!R190/'Population 2016'!R$5","v":3.41991802842391E-3},{"$f":"'Population 2016'!S190/'Population 2016'!S$5","v":3.2049301729479532E-3},{"$f":"'Population 2016'!T190/'Population 2016'!T$5","v":2.3568772888233297E-3},{"$f":"'Population 2016'!U190/'Population 2016'!U$5","v":8.4096844155269327E-4},{"$f":"'Population 2016'!V190/'Population 2016'!V$5","v":3.2284900893749858E-3},{"$f":"'Population 2016'!W190/'Population 2016'!W$5","v":3.1899803240967714E-3},{"$f":"'Population 2016'!X190/'Population 2016'!X$5","v":3.1899803240967714E-3},{"$f":"'Population 2016'!Y190/'Population 2016'!Y$5","v":3.6128201459436258E-3},{"$f":"'Population 2016'!Z190/'Population 2016'!Z$5","v":1.3376359655660368E-3},{"$f":"'Population 2016'!AA190/'Population 2016'!AA$5","v":2.1944554621212272E-3},{"$f":"'Population 2016'!AB190/'Population 2016'!AB$5","v":4.7429454571507532E-3},{"$f":"'Population 2016'!AC190/'Population 2016'!AC$5","v":2.1999458029336749E-3},{"$f":"'Population 2016'!AD190/'Population 2016'!AD$5","v":6.0888012207376534E-3},{"$f":"'Population 2016'!AE190/'Population 2016'!AE$5","v":6.4323042331030089E-3},{"$f":"'Population 2016'!AF190/'Population 2016'!AF$5","v":3.4082854514470131E-3},{"$f":"'Population 2016'!AG190/'Population 2016'!AG$5","v":6.4323042331030089E-3},{"$f":"'Population 2016'!AH190/'Population 2016'!AH$5","v":2.1845945217948597E-3},{"$f":"'Population 2016'!AI190/'Population 2016'!AI$5","v":2.6331043835856154E-3},{"$f":"'Population 2016'!AJ190/'Population 2016'!AJ$5","v":2.4816663413545995E-3},{"$f":"'Population 2016'!AK190/'Population 2016'!AK$5","v":7.4047999195403745E-3},{"$f":"'Population 2016'!AL190/'Population 2016'!AL$5","v":3.3787978219612992E-3},{"$f":"'Population 2016'!AM190/'Population 2016'!AM$5","v":1.5538355107555118E-3},{"$f":"'Population 2016'!AN190/'Population 2016'!AN$5","v":7.308825133631504E-3},{"$f":"'Population 2016'!AO190/'Population 2016'!AO$5","v":7.308825133631504E-3},{"$f":"'Population 2016'!AP190/'Population 2016'!AP$5","v":8.044956644420842E-3},{"$f":"'Population 2016'!AQ190/'Population 2016'!AQ$5","v":3.0073436729325369E-3},{"$f":"'Population 2016'!AR190/'Population 2016'!AR$5","v":3.4829039407786029E-3},{"$f":"'Population 2016'!AS190/'Population 2016'!AS$5","v":7.6312704128632444E-3},{"$f":"'Population 2016'!AT190/'Population 2016'!AT$5","v":9.0683819265039278E-3},{"$f":"'Population 2016'!AU190/'Population 2016'!AU$5","v":9.0683819265039278E-3},{"$f":"'Population 2016'!AV190/'Population 2016'!AV$5","v":3.8961038961038961E-3},{"$f":"'Population 2016'!AW190/'Population 2016'!AW$5","v":2.8487095002745744E-3},{"$f":"'Population 2016'!AX190/'Population 2016'!AX$5","v":4.8046820092771253E-3},{"$f":"'Population 2016'!AY190/'Population 2016'!AY$5","v":4.5699336005630186E-3},{"$f":"'Population 2016'!AZ190/'Population 2016'!AZ$5","v":5.7843537688904738E-3},{"$f":"'Population 2016'!BA190/'Population 2016'!BA$5","v":2.3887929172964804E-3},{"$f":"'Population 2016'!BB190/'Population 2016'!BB$5","v":2.0162543242440772E-3},{"$f":"'Population 2016'!BC190/'Population 2016'!BC$5","v":8.4096844155269327E-4},188]
[null,"Female 85-89",{"$f":"'Population 2016'!C191/'Population 2016'!C$5","v":1.4311050686674879E-3},{"$f":"'Population 2016'!D191/'Population 2016'!D$5","v":2.6578836692976535E-3},{"$f":"'Population 2016'!E191/'Population 2016'!E$5","v":3.7830666747922124E-3},{"$f":"'Population 2016'!F191/'Population 2016'!F$5","v":3.5951583826937935E-3},{"$f":"'Population 2016'!G191/'Population 2016'!G$5","v":3.3833161911979645E-3},{"$f":"'Population 2016'!H191/'Population 2016'!H$5","v":1.7898078226274508E-3},{"$f":"'Population 2016'!I191/'Population 2016'!I$5","v":4.961895988610669E-3},{"$f":"'Population 2016'!J191/'Population 2016'!J$5","v":2.479619846910427E-3},{"$f":"'Population 2016'!K191/'Population 2016'!K$5","v":1.630203657326466E-3},{"$f":"'Population 2016'!L191/'Population 2016'!L$5","v":2.6051181039823362E-3},{"$f":"'Population 2016'!M191/'Population 2016'!M$5","v":2.6051181039823362E-3},{"$f":"'Population 2016'!N191/'Population 2016'!N$5","v":2.6040620152546594E-3},{"$f":"'Population 2016'!O191/'Population 2016'!O$5","v":1.1491861582508594E-3},{"$f":"'Population 2016'!P191/'Population 2016'!P$5","v":2.9076975092978698E-3},{"$f":"'Population 2016'!Q191/'Population 2016'!Q$5","v":2.9729380383309244E-3},{"$f":"'Population 2016'!R191/'Population 2016'!R$5","v":2.2488955128546336E-3},{"$f":"'Population 2016'!S191/'Population 2016'!S$5","v":2.1086692875716497E-3},{"$f":"'Population 2016'!T191/'Population 2016'!T$5","v":1.9427369557428235E-3},{"$f":"'Population 2016'!U191/'Population 2016'!U$5","v":9.7375293232417125E-4},{"$f":"'Population 2016'!V191/'Population 2016'!V$5","v":1.938620526480488E-3},{"$f":"'Population 2016'!W191/'Population 2016'!W$5","v":1.9349060982226318E-3},{"$f":"'Population 2016'!X191/'Population 2016'!X$5","v":1.9349060982226318E-3},{"$f":"'Population 2016'!Y191/'Population 2016'!Y$5","v":2.1978982846059679E-3},{"$f":"'Population 2016'!Z191/'Population 2016'!Z$5","v":8.6142981863514669E-4},{"$f":"'Population 2016'!AA191/'Population 2016'!AA$5","v":1.3952032910852488E-3},{"$f":"'Population 2016'!AB191/'Population 2016'!AB$5","v":2.9968373540218826E-3},{"$f":"'Population 2016'!AC191/'Population 2016'!AC$5","v":1.4697334207657508E-3},{"$f":"'Population 2016'!AD191/'Population 2016'!AD$5","v":3.729204659644944E-3},{"$f":"'Population 2016'!AE191/'Population 2016'!AE$5","v":3.860409244448095E-3},{"$f":"'Population 2016'!AF191/'Population 2016'!AF$5","v":2.171650907116681E-3},{"$f":"'Population 2016'!AG191/'Population 2016'!AG$5","v":3.860409244448095E-3},{"$f":"'Population 2016'!AH191/'Population 2016'!AH$5","v":1.2613432655601273E-3},{"$f":"'Population 2016'!AI191/'Population 2016'!AI$5","v":1.8087212354536706E-3},{"$f":"'Population 2016'!AJ191/'Population 2016'!AJ$5","v":1.33842679084293E-3},{"$f":"'Population 2016'!AK191/'Population 2016'!AK$5","v":4.7395748211659103E-3},{"$f":"'Population 2016'!AL191/'Population 2016'!AL$5","v":2.0042212802185134E-3},{"$f":"'Population 2016'!AM191/'Population 2016'!AM$5","v":6.4471496716662262E-4},{"$f":"'Population 2016'!AN191/'Population 2016'!AN$5","v":5.3452601723573689E-3},{"$f":"'Population 2016'!AO191/'Population 2016'!AO$5","v":5.3452601723573689E-3},{"$f":"'Population 2016'!AP191/'Population 2016'!AP$5","v":5.516541699031435E-3},{"$f":"'Population 2016'!AQ191/'Population 2016'!AQ$5","v":2.0140297035129064E-3},{"$f":"'Population 2016'!AR191/'Population 2016'!AR$5","v":2.2251019931237488E-3},{"$f":"'Population 2016'!AS191/'Population 2016'!AS$5","v":4.961895988610669E-3},{"$f":"'Population 2016'!AT191/'Population 2016'!AT$5","v":5.8522697316391627E-3},{"$f":"'Population 2016'!AU191/'Population 2016'!AU$5","v":5.8522697316391627E-3},{"$f":"'Population 2016'!AV191/'Population 2016'!AV$5","v":2.2172949002217295E-3},{"$f":"'Population 2016'!AW191/'Population 2016'!AW$5","v":1.9105802672524253E-3},{"$f":"'Population 2016'!AX191/'Population 2016'!AX$5","v":2.9390342078024971E-3},{"$f":"'Population 2016'!AY191/'Population 2016'!AY$5","v":3.0002141917321993E-3},{"$f":"'Population 2016'!AZ191/'Population 2016'!AZ$5","v":3.9377326253660161E-3},{"$f":"'Population 2016'!BA191/'Population 2016'!BA$5","v":1.4980565752537249E-3},{"$f":"'Population 2016'!BB191/'Population 2016'!BB$5","v":9.5979229818468062E-4},{"$f":"'Population 2016'!BC191/'Population 2016'!BC$5","v":9.7375293232417125E-4},189]
[null,"Female 90+",{"$f":"'Population 2016'!C192/'Population 2016'!C$5","v":6.5933054949323549E-4},{"$f":"'Population 2016'!D192/'Population 2016'!D$5","v":1.4499770155414063E-3},{"$f":"'Population 2016'!E192/'Population 2016'!E$5","v":2.1751461426314581E-3},{"$f":"'Population 2016'!F192/'Population 2016'!F$5","v":2.9152716971413855E-3},{"$f":"'Population 2016'!G192/'Population 2016'!G$5","v":2.1653223623666973E-3},{"$f":"'Population 2016'!H192/'Population 2016'!H$5","v":1.1089026727148336E-3},{"$f":"'Population 2016'!I192/'Population 2016'!I$5","v":2.9206096641822294E-3},{"$f":"'Population 2016'!J192/'Population 2016'!J$5","v":1.799590323677467E-3},{"$f":"'Population 2016'!K192/'Population 2016'!K$5","v":1.0631762982563908E-3},{"$f":"'Population 2016'!L192/'Population 2016'!L$5","v":1.358156084698108E-3},{"$f":"'Population 2016'!M192/'Population 2016'!M$5","v":1.358156084698108E-3},{"$f":"'Population 2016'!N192/'Population 2016'!N$5","v":1.50296171868093E-3},{"$f":"'Population 2016'!O192/'Population 2016'!O$5","v":7.0338118306733635E-4},{"$f":"'Population 2016'!P192/'Population 2016'!P$5","v":1.4538487546489349E-3},{"$f":"'Population 2016'!Q192/'Population 2016'!Q$5","v":1.5158458772517361E-3},{"$f":"'Population 2016'!R192/'Population 2016'!R$5","v":2.2355884388140738E-3},{"$f":"'Population 2016'!S192/'Population 2016'!S$5","v":1.2533739591258865E-3},{"$f":"'Population 2016'!T192/'Population 2016'!T$5","v":1.1470291247679186E-3},{"$f":"'Population 2016'!U192/'Population 2016'!U$5","v":4.8687646616208562E-4},{"$f":"'Population 2016'!V192/'Population 2016'!V$5","v":1.3203990200044268E-3},{"$f":"'Population 2016'!W192/'Population 2016'!W$5","v":1.3302479425280594E-3},{"$f":"'Population 2016'!X192/'Population 2016'!X$5","v":1.3302479425280594E-3},{"$f":"'Population 2016'!Y192/'Population 2016'!Y$5","v":1.5500548480946248E-3},{"$f":"'Population 2016'!Z192/'Population 2016'!Z$5","v":5.3040847259782069E-4},{"$f":"'Population 2016'!AA192/'Population 2016'!AA$5","v":7.8729328568381905E-4},{"$f":"'Population 2016'!AB192/'Population 2016'!AB$5","v":1.6171458399435023E-3},{"$f":"'Population 2016'!AC192/'Population 2016'!AC$5","v":8.9156242695290439E-4},{"$f":"'Population 2016'!AD192/'Population 2016'!AD$5","v":2.4265882615653726E-3},{"$f":"'Population 2016'!AE192/'Population 2016'!AE$5","v":2.5256932822718919E-3},{"$f":"'Population 2016'!AF192/'Population 2016'!AF$5","v":1.131068180789938E-3},{"$f":"'Population 2016'!AG192/'Population 2016'!AG$5","v":2.5256932822718919E-3},{"$f":"'Population 2016'!AH192/'Population 2016'!AH$5","v":6.0002043413243176E-4},{"$f":"'Population 2016'!AI192/'Population 2016'!AI$5","v":1.0034779945752035E-3},{"$f":"'Population 2016'!AJ192/'Population 2016'!AJ$5","v":9.8987814739425026E-4},{"$f":"'Population 2016'!AK192/'Population 2016'!AK$5","v":2.4766478508479691E-3},{"$f":"'Population 2016'!AL192/'Population 2016'!AL$5","v":1.3302353629768894E-3},{"$f":"'Population 2016'!AM192/'Population 2016'!AM$5","v":2.8613754160765835E-4},{"$f":"'Population 2016'!AN192/'Population 2016'!AN$5","v":2.6180866150321805E-3},{"$f":"'Population 2016'!AO192/'Population 2016'!AO$5","v":2.6180866150321805E-3},{"$f":"'Population 2016'!AP192/'Population 2016'!AP$5","v":3.5984338094256774E-3},{"$f":"'Population 2016'!AQ192/'Population 2016'!AQ$5","v":1.1029210281142106E-3},{"$f":"'Population 2016'!AR192/'Population 2016'!AR$5","v":1.3362196390424754E-3},{"$f":"'Population 2016'!AS192/'Population 2016'!AS$5","v":2.9206096641822294E-3},{"$f":"'Population 2016'!AT192/'Population 2016'!AT$5","v":3.4270047978067169E-3},{"$f":"'Population 2016'!AU192/'Population 2016'!AU$5","v":3.4270047978067169E-3},{"$f":"'Population 2016'!AV192/'Population 2016'!AV$5","v":1.2775842044134727E-3},{"$f":"'Population 2016'!AW192/'Population 2016'!AW$5","v":9.3050216608700953E-4},{"$f":"'Population 2016'!AX192/'Population 2016'!AX$5","v":2.1978864510523019E-3},{"$f":"'Population 2016'!AY192/'Population 2016'!AY$5","v":2.0363513968360823E-3},{"$f":"'Population 2016'!AZ192/'Population 2016'!AZ$5","v":2.6577537953529577E-3},{"$f":"'Population 2016'!BA192/'Population 2016'!BA$5","v":7.4228028503562943E-4},{"$f":"'Population 2016'!BB192/'Population 2016'!BB$5","v":2.831042030616684E-4},{"$f":"'Population 2016'!BC192/'Population 2016'!BC$5","v":4.8687646616208562E-4},190]
[null,"Male 0-4",{"$f":"'Population 2016'!C193/'Population 2016'!C$5","v":0},{"$f":"'Population 2016'!D193/'Population 2016'!D$5","v":0},{"$f":"'Population 2016'!E193/'Population 2016'!E$5","v":0},{"$f":"'Population 2016'!F193/'Population 2016'!F$5","v":0},{"$f":"'Population 2016'!G193/'Population 2016'!G$5","v":0},{"$f":"'Population 2016'!H193/'Population 2016'!H$5","v":0},{"$f":"'Population 2016'!I193/'Population 2016'!I$5","v":0},{"$f":"'Population 2016'!J193/'Population 2016'!J$5","v":0},{"$f":"'Population 2016'!K193/'Population 2016'!K$5","v":0},{"$f":"'Population 2016'!L193/'Population 2016'!L$5","v":0},{"$f":"'Population 2016'!M193/'Population 2016'!M$5","v":0},{"$f":"'Population 2016'!N193/'Population 2016'!N$5","v":0},{"$f":"'Population 2016'!O193/'Population 2016'!O$5","v":0},{"$f":"'Population 2016'!P193/'Population 2016'!P$5","v":0},{"$f":"'Population 2016'!Q193/'Population 2016'!Q$5","v":0},{"$f":"'Population 2016'!R193/'Population 2016'!R$5","v":0},{"$f":"'Population 2016'!S193/'Population 2016'!S$5","v":0},{"$f":"'Population 2016'!T193/'Population 2016'!T$5","v":0},{"$f":"'Population 2016'!U193/'Population 2016'!U$5","v":0},{"$f":"'Population 2016'!V193/'Population 2016'!V$5","v":0},{"$f":"'Population 2016'!W193/'Population 2016'!W$5","v":0},{"$f":"'Population 2016'!X193/'Population 2016'!X$5","v":0},{"$f":"'Population 2016'!Y193/'Population 2016'!Y$5","v":0},{"$f":"'Population 2016'!Z193/'Population 2016'!Z$5","v":0},{"$f":"'Population 2016'!AA193/'Population 2016'!AA$5","v":0},{"$f":"'Population 2016'!AB193/'Population 2016'!AB$5","v":0},{"$f":"'Population 2016'!AC193/'Population 2016'!AC$5","v":0},{"$f":"'Population 2016'!AD193/'Population 2016'!AD$5","v":0},{"$f":"'Population 2016'!AE193/'Population 2016'!AE$5","v":0},{"$f":"'Population 2016'!AF193/'Population 2016'!AF$5","v":0},{"$f":"'Population 2016'!AG193/'Population 2016'!AG$5","v":0},{"$f":"'Population 2016'!AH193/'Population 2016'!AH$5","v":0},{"$f":"'Population 2016'!AI193/'Population 2016'!AI$5","v":0},{"$f":"'Population 2016'!AJ193/'Population 2016'!AJ$5","v":0},{"$f":"'Population 2016'!AK193/'Population 2016'!AK$5","v":0},{"$f":"'Population 2016'!AL193/'Population 2016'!AL$5","v":0},{"$f":"'Population 2016'!AM193/'Population 2016'!AM$5","v":0},{"$f":"'Population 2016'!AN193/'Population 2016'!AN$5","v":0},{"$f":"'Population 2016'!AO193/'Population 2016'!AO$5","v":0},{"$f":"'Population 2016'!AP193/'Population 2016'!AP$5","v":0},{"$f":"'Population 2016'!AQ193/'Population 2016'!AQ$5","v":0},{"$f":"'Population 2016'!AR193/'Population 2016'!AR$5","v":0},{"$f":"'Population 2016'!AS193/'Population 2016'!AS$5","v":0},{"$f":"'Population 2016'!AT193/'Population 2016'!AT$5","v":0},{"$f":"'Population 2016'!AU193/'Population 2016'!AU$5","v":0},{"$f":"'Population 2016'!AV193/'Population 2016'!AV$5","v":0},{"$f":"'Population 2016'!AW193/'Population 2016'!AW$5","v":0},{"$f":"'Population 2016'!AX193/'Population 2016'!AX$5","v":0},{"$f":"'Population 2016'!AY193/'Population 2016'!AY$5","v":0},{"$f":"'Population 2016'!AZ193/'Population 2016'!AZ$5","v":0},{"$f":"'Population 2016'!BA193/'Population 2016'!BA$5","v":0},{"$f":"'Population 2016'!BB193/'Population 2016'!BB$5","v":0},{"$f":"'Population 2016'!BC193/'Population 2016'!BC$5","v":0},191]
[null,"Male 5-9",{"$f":"'Population 2016'!C194/'Population 2016'!C$5","v":0},{"$f":"'Population 2016'!D194/'Population 2016'!D$5","v":0},{"$f":"'Population 2016'!E194/'Population 2016'!E$5","v":0},{"$f":"'Population 2016'!F194/'Population 2016'!F$5","v":0},{"$f":"'Population 2016'!G194/'Population 2016'!G$5","v":0},{"$f":"'Population 2016'!H194/'Population 2016'!H$5","v":0},{"$f":"'Population 2016'!I194/'Population 2016'!I$5","v":0},{"$f":"'Population 2016'!J194/'Population 2016'!J$5","v":0},{"$f":"'Population 2016'!K194/'Population 2016'!K$5","v":0},{"$f":"'Population 2016'!L194/'Population 2016'!L$5","v":0},{"$f":"'Population 2016'!M194/'Population 2016'!M$5","v":0},{"$f":"'Population 2016'!N194/'Population 2016'!N$5","v":0},{"$f":"'Population 2016'!O194/'Population 2016'!O$5","v":0},{"$f":"'Population 2016'!P194/'Population 2016'!P$5","v":0},{"$f":"'Population 2016'!Q194/'Population 2016'!Q$5","v":0},{"$f":"'Population 2016'!R194/'Population 2016'!R$5","v":0},{"$f":"'Population 2016'!S194/'Population 2016'!S$5","v":0},{"$f":"'Population 2016'!T194/'Population 2016'!T$5","v":0},{"$f":"'Population 2016'!U194/'Population 2016'!U$5","v":0},{"$f":"'Population 2016'!V194/'Population 2016'!V$5","v":0},{"$f":"'Population 2016'!W194/'Population 2016'!W$5","v":0},{"$f":"'Population 2016'!X194/'Population 2016'!X$5","v":0},{"$f":"'Population 2016'!Y194/'Population 2016'!Y$5","v":0},{"$f":"'Population 2016'!Z194/'Population 2016'!Z$5","v":0},{"$f":"'Population 2016'!AA194/'Population 2016'!AA$5","v":0},{"$f":"'Population 2016'!AB194/'Population 2016'!AB$5","v":0},{"$f":"'Population 2016'!AC194/'Population 2016'!AC$5","v":0},{"$f":"'Population 2016'!AD194/'Population 2016'!AD$5","v":0},{"$f":"'Population 2016'!AE194/'Population 2016'!AE$5","v":0},{"$f":"'Population 2016'!AF194/'Population 2016'!AF$5","v":0},{"$f":"'Population 2016'!AG194/'Population 2016'!AG$5","v":0},{"$f":"'Population 2016'!AH194/'Population 2016'!AH$5","v":0},{"$f":"'Population 2016'!AI194/'Population 2016'!AI$5","v":0},{"$f":"'Population 2016'!AJ194/'Population 2016'!AJ$5","v":0},{"$f":"'Population 2016'!AK194/'Population 2016'!AK$5","v":0},{"$f":"'Population 2016'!AL194/'Population 2016'!AL$5","v":0},{"$f":"'Population 2016'!AM194/'Population 2016'!AM$5","v":0},{"$f":"'Population 2016'!AN194/'Population 2016'!AN$5","v":0},{"$f":"'Population 2016'!AO194/'Population 2016'!AO$5","v":0},{"$f":"'Population 2016'!AP194/'Population 2016'!AP$5","v":0},{"$f":"'Population 2016'!AQ194/'Population 2016'!AQ$5","v":0},{"$f":"'Population 2016'!AR194/'Population 2016'!AR$5","v":0},{"$f":"'Population 2016'!AS194/'Population 2016'!AS$5","v":0},{"$f":"'Population 2016'!AT194/'Population 2016'!AT$5","v":0},{"$f":"'Population 2016'!AU194/'Population 2016'!AU$5","v":0},{"$f":"'Population 2016'!AV194/'Population 2016'!AV$5","v":0},{"$f":"'Population 2016'!AW194/'Population 2016'!AW$5","v":0},{"$f":"'Population 2016'!AX194/'Population 2016'!AX$5","v":0},{"$f":"'Population 2016'!AY194/'Population 2016'!AY$5","v":0},{"$f":"'Population 2016'!AZ194/'Population 2016'!AZ$5","v":0},{"$f":"'Population 2016'!BA194/'Population 2016'!BA$5","v":0},{"$f":"'Population 2016'!BB194/'Population 2016'!BB$5","v":0},{"$f":"'Population 2016'!BC194/'Population 2016'!BC$5","v":0},192]
[null,"Male 10-15",{"$f":"'Population 2016'!C195/'Population 2016'!C$5","v":0},{"$f":"'Population 2016'!D195/'Population 2016'!D$5","v":0},{"$f":"'Population 2016'!E195/'Population 2016'!E$5","v":0},{"$f":"'Population 2016'!F195/'Population 2016'!F$5","v":0},{"$f":"'Population 2016'!G195/'Population 2016'!G$5","v":0},{"$f":"'Population 2016'!H195/'Population 2016'!H$5","v":0},{"$f":"'Population 2016'!I195/'Population 2016'!I$5","v":0},{"$f":"'Population 2016'!J195/'Population 2016'!J$5","v":0},{"$f":"'Population 2016'!K195/'Population 2016'!K$5","v":0},{"$f":"'Population 2016'!L195/'Population 2016'!L$5","v":0},{"$f":"'Population 2016'!M195/'Population 2016'!M$5","v":0},{"$f":"'Population 2016'!N195/'Population 2016'!N$5","v":0},{"$f":"'Population 2016'!O195/'Population 2016'!O$5","v":0},{"$f":"'Population 2016'!P195/'Population 2016'!P$5","v":0},{"$f":"'Population 2016'!Q195/'Population 2016'!Q$5","v":0},{"$f":"'Population 2016'!R195/'Population 2016'!R$5","v":0},{"$f":"'Population 2016'!S195/'Population 2016'!S$5","v":0},{"$f":"'Population 2016'!T195/'Population 2016'!T$5","v":0},{"$f":"'Population 2016'!U195/'Population 2016'!U$5","v":0},{"$f":"'Population 2016'!V195/'Population 2016'!V$5","v":0},{"$f":"'Population 2016'!W195/'Population 2016'!W$5","v":0},{"$f":"'Population 2016'!X195/'Population 2016'!X$5","v":0},{"$f":"'Population 2016'!Y195/'Population 2016'!Y$5","v":0},{"$f":"'Population 2016'!Z195/'Population 2016'!Z$5","v":0},{"$f":"'Population 2016'!AA195/'Population 2016'!AA$5","v":0},{"$f":"'Population 2016'!AB195/'Population 2016'!AB$5","v":0},{"$f":"'Population 2016'!AC195/'Population 2016'!AC$5","v":0},{"$f":"'Population 2016'!AD195/'Population 2016'!AD$5","v":0},{"$f":"'Population 2016'!AE195/'Population 2016'!AE$5","v":0},{"$f":"'Population 2016'!AF195/'Population 2016'!AF$5","v":0},{"$f":"'Population 2016'!AG195/'Population 2016'!AG$5","v":0},{"$f":"'Population 2016'!AH195/'Population 2016'!AH$5","v":0},{"$f":"'Population 2016'!AI195/'Population 2016'!AI$5","v":0},{"$f":"'Population 2016'!AJ195/'Population 2016'!AJ$5","v":0},{"$f":"'Population 2016'!AK195/'Population 2016'!AK$5","v":0},{"$f":"'Population 2016'!AL195/'Population 2016'!AL$5","v":0},{"$f":"'Population 2016'!AM195/'Population 2016'!AM$5","v":0},{"$f":"'Population 2016'!AN195/'Population 2016'!AN$5","v":0},{"$f":"'Population 2016'!AO195/'Population 2016'!AO$5","v":0},{"$f":"'Population 2016'!AP195/'Population 2016'!AP$5","v":0},{"$f":"'Population 2016'!AQ195/'Population 2016'!AQ$5","v":0},{"$f":"'Population 2016'!AR195/'Population 2016'!AR$5","v":0},{"$f":"'Population 2016'!AS195/'Population 2016'!AS$5","v":0},{"$f":"'Population 2016'!AT195/'Population 2016'!AT$5","v":0},{"$f":"'Population 2016'!AU195/'Population 2016'!AU$5","v":0},{"$f":"'Population 2016'!AV195/'Population 2016'!AV$5","v":0},{"$f":"'Population 2016'!AW195/'Population 2016'!AW$5","v":0},{"$f":"'Population 2016'!AX195/'Population 2016'!AX$5","v":0},{"$f":"'Population 2016'!AY195/'Population 2016'!AY$5","v":0},{"$f":"'Population 2016'!AZ195/'Population 2016'!AZ$5","v":0},{"$f":"'Population 2016'!BA195/'Population 2016'!BA$5","v":0},{"$f":"'Population 2016'!BB195/'Population 2016'!BB$5","v":0},{"$f":"'Population 2016'!BC195/'Population 2016'!BC$5","v":0},193]
[null,"Male 16-19",{"$f":"'Population 2016'!C196/'Population 2016'!C$5","v":4.4159813547453913E-3},{"$f":"'Population 2016'!D196/'Population 2016'!D$5","v":7.4234910947448725E-3},{"$f":"'Population 2016'!E196/'Population 2016'!E$5","v":1.0181934098697257E-2},{"$f":"'Population 2016'!F196/'Population 2016'!F$5","v":7.2418233324748902E-3},{"$f":"'Population 2016'!G196/'Population 2016'!G$5","v":6.8478319709846802E-3},{"$f":"'Population 2016'!H196/'Population 2016'!H$5","v":3.9687043023478256E-3},{"$f":"'Population 2016'!I196/'Population 2016'!I$5","v":8.8979147475085844E-3},{"$f":"'Population 2016'!J196/'Population 2016'!J$5","v":7.3559291110687243E-3},{"$f":"'Population 2016'!K196/'Population 2016'!K$5","v":5.4340121910882201E-3},{"$f":"'Population 2016'!L196/'Population 2016'!L$5","v":4.20948961923975E-3},{"$f":"'Population 2016'!M196/'Population 2016'!M$5","v":4.20948961923975E-3},{"$f":"'Population 2016'!N196/'Population 2016'!N$5","v":6.1404425297980243E-3},{"$f":"'Population 2016'!O196/'Population 2016'!O$5","v":3.5664398014681846E-3},{"$f":"'Population 2016'!P196/'Population 2016'!P$5","v":5.0715654231939591E-3},{"$f":"'Population 2016'!Q196/'Population 2016'!Q$5","v":8.7073007367716015E-3},{"$f":"'Population 2016'!R196/'Population 2016'!R$5","v":4.6707829882365465E-3},{"$f":"'Population 2016'!S196/'Population 2016'!S$5","v":4.5589271118909886E-3},{"$f":"'Population 2016'!T196/'Population 2016'!T$5","v":2.9199220113260401E-3},{"$f":"'Population 2016'!U196/'Population 2016'!U$5","v":1.5491523923339087E-3},{"$f":"'Population 2016'!V196/'Population 2016'!V$5","v":6.2356416147029865E-3},{"$f":"'Population 2016'!W196/'Population 2016'!W$5","v":4.5529124912569701E-3},{"$f":"'Population 2016'!X196/'Population 2016'!X$5","v":4.5529124912569701E-3},{"$f":"'Population 2016'!Y196/'Population 2016'!Y$5","v":6.7725473362903613E-3},{"$f":"'Population 2016'!Z196/'Population 2016'!Z$5","v":2.5068575620955393E-3},{"$f":"'Population 2016'!AA196/'Population 2016'!AA$5","v":4.077979905086313E-3},{"$f":"'Population 2016'!AB196/'Population 2016'!AB$5","v":7.9199205756220383E-3},{"$f":"'Population 2016'!AC196/'Population 2016'!AC$5","v":3.5414266239985437E-3},{"$f":"'Population 2016'!AD196/'Population 2016'!AD$5","v":8.7498604339573492E-3},{"$f":"'Population 2016'!AE196/'Population 2016'!AE$5","v":9.4713498085195955E-3},{"$f":"'Population 2016'!AF196/'Population 2016'!AF$5","v":5.9720399945708729E-3},{"$f":"'Population 2016'!AG196/'Population 2016'!AG$5","v":9.4713498085195955E-3},{"$f":"'Population 2016'!AH196/'Population 2016'!AH$5","v":5.0416577654347362E-3},{"$f":"'Population 2016'!AI196/'Population 2016'!AI$5","v":3.9947720710473361E-3},{"$f":"'Population 2016'!AJ196/'Population 2016'!AJ$5","v":3.8340350779354766E-3},{"$f":"'Population 2016'!AK196/'Population 2016'!AK$5","v":1.0472323145971362E-2},{"$f":"'Population 2016'!AL196/'Population 2016'!AL$5","v":4.5760096486404996E-3},{"$f":"'Population 2016'!AM196/'Population 2016'!AM$5","v":4.1652933272000895E-3},{"$f":"'Population 2016'!AN196/'Population 2016'!AN$5","v":1.3472237373186429E-2},{"$f":"'Population 2016'!AO196/'Population 2016'!AO$5","v":1.3472237373186429E-2},{"$f":"'Population 2016'!AP196/'Population 2016'!AP$5","v":1.290363489371146E-2},{"$f":"'Population 2016'!AQ196/'Population 2016'!AQ$5","v":4.8569627884035736E-3},{"$f":"'Population 2016'!AR196/'Population 2016'!AR$5","v":5.5097339301097871E-3},{"$f":"'Population 2016'!AS196/'Population 2016'!AS$5","v":8.8979147475085844E-3},{"$f":"'Population 2016'!AT196/'Population 2016'!AT$5","v":1.9718458375072495E-2},{"$f":"'Population 2016'!AU196/'Population 2016'!AU$5","v":1.9718458375072495E-2},{"$f":"'Population 2016'!AV196/'Population 2016'!AV$5","v":3.6743744060817232E-3},{"$f":"'Population 2016'!AW196/'Population 2016'!AW$5","v":5.9643663432790289E-3},{"$f":"'Population 2016'!AX196/'Population 2016'!AX$5","v":8.3954151066358285E-3},{"$f":"'Population 2016'!AY196/'Population 2016'!AY$5","v":6.866374957926624E-3},{"$f":"'Population 2016'!AZ196/'Population 2016'!AZ$5","v":8.9023246716638579E-3},{"$f":"'Population 2016'!BA196/'Population 2016'!BA$5","v":3.0096091556899157E-3},{"$f":"'Population 2016'!BB196/'Population 2016'!BB$5","v":4.4951423461742955E-3},{"$f":"'Population 2016'!BC196/'Population 2016'!BC$5","v":1.5491523923339087E-3},194]
[null,"Male 20-24",{"$f":"'Population 2016'!C197/'Population 2016'!C$5","v":1.0942842685775327E-2},{"$f":"'Population 2016'!D197/'Population 2016'!D$5","v":1.1215926762712361E-2},{"$f":"'Population 2016'!E197/'Population 2016'!E$5","v":1.1466395398440833E-2},{"$f":"'Population 2016'!F197/'Population 2016'!F$5","v":8.6634045840844713E-3},{"$f":"'Population 2016'!G197/'Population 2016'!G$5","v":7.6598278568721923E-3},{"$f":"'Population 2016'!H197/'Population 2016'!H$5","v":4.3123992827799086E-3},{"$f":"'Population 2016'!I197/'Population 2016'!I$5","v":9.2119587974206513E-3},{"$f":"'Population 2016'!J197/'Population 2016'!J$5","v":1.0689732383503479E-2},{"$f":"'Population 2016'!K197/'Population 2016'!K$5","v":7.1114681283371926E-3},{"$f":"'Population 2016'!L197/'Population 2016'!L$5","v":5.0990421425507922E-3},{"$f":"'Population 2016'!M197/'Population 2016'!M$5","v":5.0990421425507922E-3},{"$f":"'Population 2016'!N197/'Population 2016'!N$5","v":1.3414134269938354E-2},{"$f":"'Population 2016'!O197/'Population 2016'!O$5","v":3.9825244449728063E-3},{"$f":"'Population 2016'!P197/'Population 2016'!P$5","v":6.7282767947706521E-3},{"$f":"'Population 2016'!Q197/'Population 2016'!Q$5","v":1.0939941951328422E-2},{"$f":"'Population 2016'!R197/'Population 2016'!R$5","v":4.7772395805610263E-3},{"$f":"'Population 2016'!S197/'Population 2016'!S$5","v":6.7991123993990862E-3},{"$f":"'Population 2016'!T197/'Population 2016'!T$5","v":6.8938079040311209E-3},{"$f":"'Population 2016'!U197/'Population 2016'!U$5","v":2.0802903554198201E-3},{"$f":"'Population 2016'!V197/'Population 2016'!V$5","v":7.296540249273017E-3},{"$f":"'Population 2016'!W197/'Population 2016'!W$5","v":5.9550657279757351E-3},{"$f":"'Population 2016'!X197/'Population 2016'!X$5","v":5.9550657279757351E-3},{"$f":"'Population 2016'!Y197/'Population 2016'!Y$5","v":8.9227516255703399E-3},{"$f":"'Population 2016'!Z197/'Population 2016'!Z$5","v":8.1826153783612701E-3},{"$f":"'Population 2016'!AA197/'Population 2016'!AA$5","v":6.6976401797287591E-3},{"$f":"'Population 2016'!AB197/'Population 2016'!AB$5","v":1.153086394481234E-2},{"$f":"'Population 2016'!AC197/'Population 2016'!AC$5","v":7.0756131818849408E-3},{"$f":"'Population 2016'!AD197/'Population 2016'!AD$5","v":9.7212400908109724E-3},{"$f":"'Population 2016'!AE197/'Population 2016'!AE$5","v":1.0503187917740428E-2},{"$f":"'Population 2016'!AF197/'Population 2016'!AF$5","v":6.2585772670376572E-3},{"$f":"'Population 2016'!AG197/'Population 2016'!AG$5","v":1.0503187917740428E-2},{"$f":"'Population 2016'!AH197/'Population 2016'!AH$5","v":6.0187808253531856E-3},{"$f":"'Population 2016'!AI197/'Population 2016'!AI$5","v":6.8370482981888183E-3},{"$f":"'Population 2016'!AJ197/'Population 2016'!AJ$5","v":4.1686417756462094E-3},{"$f":"'Population 2016'!AK197/'Population 2016'!AK$5","v":1.3150120060847592E-2},{"$f":"'Population 2016'!AL197/'Population 2016'!AL$5","v":5.1967861513630481E-3},{"$f":"'Population 2016'!AM197/'Population 2016'!AM$5","v":5.4728332325211619E-3},{"$f":"'Population 2016'!AN197/'Population 2016'!AN$5","v":1.4126759026944475E-2},{"$f":"'Population 2016'!AO197/'Population 2016'!AO$5","v":1.4126759026944475E-2},{"$f":"'Population 2016'!AP197/'Population 2016'!AP$5","v":1.3609054737409445E-2},{"$f":"'Population 2016'!AQ197/'Population 2016'!AQ$5","v":6.2681536690962899E-3},{"$f":"'Population 2016'!AR197/'Population 2016'!AR$5","v":7.8480069096679428E-3},{"$f":"'Population 2016'!AS197/'Population 2016'!AS$5","v":9.2119587974206513E-3},{"$f":"'Population 2016'!AT197/'Population 2016'!AT$5","v":2.3672694680234092E-2},{"$f":"'Population 2016'!AU197/'Population 2016'!AU$5","v":2.3672694680234092E-2},{"$f":"'Population 2016'!AV197/'Population 2016'!AV$5","v":3.6110231232182452E-3},{"$f":"'Population 2016'!AW197/'Population 2016'!AW$5","v":6.5935993654280311E-3},{"$f":"'Population 2016'!AX197/'Population 2016'!AX$5","v":1.2625068683951595E-2},{"$f":"'Population 2016'!AY197/'Population 2016'!AY$5","v":9.2546127719470034E-3},{"$f":"'Population 2016'!AZ197/'Population 2016'!AZ$5","v":1.2158360706663368E-2},{"$f":"'Population 2016'!BA197/'Population 2016'!BA$5","v":4.4266896998488448E-3},{"$f":"'Population 2016'!BB197/'Population 2016'!BB$5","v":5.5792242944836109E-3},{"$f":"'Population 2016'!BC197/'Population 2016'!BC$5","v":2.0802903554198201E-3},195]
[null,"Male 25-29",{"$f":"'Population 2016'!C198/'Population 2016'!C$5","v":1.2394392112566635E-2},{"$f":"'Population 2016'!D198/'Population 2016'!D$5","v":1.1907905675694179E-2},{"$f":"'Population 2016'!E198/'Population 2016'!E$5","v":1.1461707583478266E-2},{"$f":"'Population 2016'!F198/'Population 2016'!F$5","v":7.1903167653875871E-3},{"$f":"'Population 2016'!G198/'Population 2016'!G$5","v":6.2253017918042549E-3},{"$f":"'Population 2016'!H198/'Population 2016'!H$5","v":3.8357656778410768E-3},{"$f":"'Population 2016'!I198/'Population 2016'!I$5","v":7.3800351729335903E-3},{"$f":"'Population 2016'!J198/'Population 2016'!J$5","v":7.654478657853926E-3},{"$f":"'Population 2016'!K198/'Population 2016'!K$5","v":5.9065349903132825E-3},{"$f":"'Population 2016'!L198/'Population 2016'!L$5","v":4.8210569790160911E-3},{"$f":"'Population 2016'!M198/'Population 2016'!M$5","v":4.8210569790160911E-3},{"$f":"'Population 2016'!N198/'Population 2016'!N$5","v":8.8168396010319793E-3},{"$f":"'Population 2016'!O198/'Population 2016'!O$5","v":3.9230837816150027E-3},{"$f":"'Population 2016'!P198/'Population 2016'!P$5","v":5.3082384762763437E-3},{"$f":"'Population 2016'!Q198/'Population 2016'!Q$5","v":7.7084875618382859E-3},{"$f":"'Population 2016'!R198/'Population 2016'!R$5","v":5.0433810613722254E-3},{"$f":"'Population 2016'!S198/'Population 2016'!S$5","v":7.5334836205207326E-3},{"$f":"'Population 2016'!T198/'Population 2016'!T$5","v":1.0223216986268224E-2},{"$f":"'Population 2016'!U198/'Population 2016'!U$5","v":1.1065374230956491E-3},{"$f":"'Population 2016'!V198/'Population 2016'!V$5","v":5.9761412292685901E-3},{"$f":"'Population 2016'!W198/'Population 2016'!W$5","v":5.2033285614365371E-3},{"$f":"'Population 2016'!X198/'Population 2016'!X$5","v":5.2033285614365371E-3},{"$f":"'Population 2016'!Y198/'Population 2016'!Y$5","v":6.7804963355113587E-3},{"$f":"'Population 2016'!Z198/'Population 2016'!Z$5","v":7.8593372217049349E-3},{"$f":"'Population 2016'!AA198/'Population 2016'!AA$5","v":6.2578189517771233E-3},{"$f":"'Population 2016'!AB198/'Population 2016'!AB$5","v":1.1901374573963952E-2},{"$f":"'Population 2016'!AC198/'Population 2016'!AC$5","v":6.7591188632682483E-3},{"$f":"'Population 2016'!AD198/'Population 2016'!AD$5","v":9.2150805761286245E-3},{"$f":"'Population 2016'!AE198/'Population 2016'!AE$5","v":1.034918222979702E-2},{"$f":"'Population 2016'!AF198/'Population 2016'!AF$5","v":4.9616190863985285E-3},{"$f":"'Population 2016'!AG198/'Population 2016'!AG$5","v":1.034918222979702E-2},{"$f":"'Population 2016'!AH198/'Population 2016'!AH$5","v":5.35745799392549E-3},{"$f":"'Population 2016'!AI198/'Population 2016'!AI$5","v":8.5281958176568386E-3},{"$f":"'Population 2016'!AJ198/'Population 2016'!AJ$5","v":4.5869001477846245E-3},{"$f":"'Population 2016'!AK198/'Population 2016'!AK$5","v":1.1867794777667424E-2},{"$f":"'Population 2016'!AL198/'Population 2016'!AL$5","v":3.9641013816711307E-3},{"$f":"'Population 2016'!AM198/'Population 2016'!AM$5","v":4.6868604916494921E-3},{"$f":"'Population 2016'!AN198/'Population 2016'!AN$5","v":1.3799498200065452E-2},{"$f":"'Population 2016'!AO198/'Population 2016'!AO$5","v":1.3799498200065452E-2},{"$f":"'Population 2016'!AP198/'Population 2016'!AP$5","v":1.1461090943677378E-2},{"$f":"'Population 2016'!AQ198/'Population 2016'!AQ$5","v":6.6380774921904967E-3},{"$f":"'Population 2016'!AR198/'Population 2016'!AR$5","v":7.5116128358176373E-3},{"$f":"'Population 2016'!AS198/'Population 2016'!AS$5","v":7.3800351729335903E-3},{"$f":"'Population 2016'!AT198/'Population 2016'!AT$5","v":2.4199926187588969E-2},{"$f":"'Population 2016'!AU198/'Population 2016'!AU$5","v":2.4199926187588969E-2},{"$f":"'Population 2016'!AV198/'Population 2016'!AV$5","v":3.5899060289304192E-3},{"$f":"'Population 2016'!AW198/'Population 2016'!AW$5","v":6.0635182134358414E-3},{"$f":"'Population 2016'!AX198/'Population 2016'!AX$5","v":8.5998696602220884E-3},{"$f":"'Population 2016'!AY198/'Population 2016'!AY$5","v":7.3942045837030691E-3},{"$f":"'Population 2016'!AZ198/'Population 2016'!AZ$5","v":9.3222727821849951E-3},{"$f":"'Population 2016'!BA198/'Population 2016'!BA$5","v":4.4131936946663784E-3},{"$f":"'Population 2016'!BB198/'Population 2016'!BB$5","v":5.9313783031700769E-3},{"$f":"'Population 2016'!BC198/'Population 2016'!BC$5","v":1.1065374230956491E-3},196]
[null,"Male 30-34",{"$f":"'Population 2016'!C199/'Population 2016'!C$5","v":9.1641835290028773E-3},{"$f":"'Population 2016'!D199/'Population 2016'!D$5","v":1.0844263176941208E-2},{"$f":"'Population 2016'!E199/'Population 2016'!E$5","v":1.2385207131104121E-2},{"$f":"'Population 2016'!F199/'Population 2016'!F$5","v":7.0151944372907546E-3},{"$f":"'Population 2016'!G199/'Population 2016'!G$5","v":5.4133059059167437E-3},{"$f":"'Population 2016'!H199/'Population 2016'!H$5","v":3.6314941328672917E-3},{"$f":"'Population 2016'!I199/'Population 2016'!I$5","v":7.442843982916004E-3},{"$f":"'Population 2016'!J199/'Population 2016'!J$5","v":7.1486030369123342E-3},{"$f":"'Population 2016'!K199/'Population 2016'!K$5","v":7.3477295279497238E-3},{"$f":"'Population 2016'!L199/'Population 2016'!L$5","v":5.091099709306943E-3},{"$f":"'Population 2016'!M199/'Population 2016'!M$5","v":5.091099709306943E-3},{"$f":"'Population 2016'!N199/'Population 2016'!N$5","v":5.5939109957322316E-3},{"$f":"'Population 2016'!O199/'Population 2016'!O$5","v":4.1707532122725157E-3},{"$f":"'Population 2016'!P199/'Population 2016'!P$5","v":4.8010819339569478E-3},{"$f":"'Population 2016'!Q199/'Population 2016'!Q$5","v":8.1197635750461222E-3},{"$f":"'Population 2016'!R199/'Population 2016'!R$5","v":3.9522009900463083E-3},{"$f":"'Population 2016'!S199/'Population 2016'!S$5","v":7.6394025466440469E-3},{"$f":"'Population 2016'!T199/'Population 2016'!T$5","v":9.6834385746127315E-3},{"$f":"'Population 2016'!U199/'Population 2016'!U$5","v":1.0180144292479972E-3},{"$f":"'Population 2016'!V199/'Population 2016'!V$5","v":6.1898474290380933E-3},{"$f":"'Population 2016'!W199/'Population 2016'!W$5","v":5.2065969838997507E-3},{"$f":"'Population 2016'!X199/'Population 2016'!X$5","v":5.2065969838997507E-3},{"$f":"'Population 2016'!Y199/'Population 2016'!Y$5","v":6.6493378483648904E-3},{"$f":"'Population 2016'!Z199/'Population 2016'!Z$5","v":6.5120222694126598E-3},{"$f":"'Population 2016'!AA199/'Population 2016'!AA$5","v":5.778134772651624E-3},{"$f":"'Population 2016'!AB199/'Population 2016'!AB$5","v":1.1045720192829289E-2},{"$f":"'Population 2016'!AC199/'Population 2016'!AC$5","v":5.642080091679923E-3},{"$f":"'Population 2016'!AD199/'Population 2016'!AD$5","v":9.3378986936618405E-3},{"$f":"'Population 2016'!AE199/'Population 2016'!AE$5","v":1.0826599862421585E-2},{"$f":"'Population 2016'!AF199/'Population 2016'!AF$5","v":5.2783181770197111E-3},{"$f":"'Population 2016'!AG199/'Population 2016'!AG$5","v":1.0826599862421585E-2},{"$f":"'Population 2016'!AH199/'Population 2016'!AH$5","v":6.0224961221589587E-3},{"$f":"'Population 2016'!AI199/'Population 2016'!AI$5","v":8.6826822119170539E-3},{"$f":"'Population 2016'!AJ199/'Population 2016'!AJ$5","v":5.3815910548476141E-3},{"$f":"'Population 2016'!AK199/'Population 2016'!AK$5","v":1.2081515658197452E-2},{"$f":"'Population 2016'!AL199/'Population 2016'!AL$5","v":3.3610613504549405E-3},{"$f":"'Population 2016'!AM199/'Population 2016'!AM$5","v":5.0961458359743712E-3},{"$f":"'Population 2016'!AN199/'Population 2016'!AN$5","v":1.3799498200065452E-2},{"$f":"'Population 2016'!AO199/'Population 2016'!AO$5","v":1.3799498200065452E-2},{"$f":"'Population 2016'!AP199/'Population 2016'!AP$5","v":1.2626222595627982E-2},{"$f":"'Population 2016'!AQ199/'Population 2016'!AQ$5","v":5.2268866114977804E-3},{"$f":"'Population 2016'!AR199/'Population 2016'!AR$5","v":7.2059620614317961E-3},{"$f":"'Population 2016'!AS199/'Population 2016'!AS$5","v":7.442843982916004E-3},{"$f":"'Population 2016'!AT199/'Population 2016'!AT$5","v":2.1563768650814573E-2},{"$f":"'Population 2016'!AU199/'Population 2016'!AU$5","v":2.1563768650814573E-2},{"$f":"'Population 2016'!AV199/'Population 2016'!AV$5","v":3.3787350860521592E-3},{"$f":"'Population 2016'!AW199/'Population 2016'!AW$5","v":6.9978339129904204E-3},{"$f":"'Population 2016'!AX199/'Population 2016'!AX$5","v":7.0409036891268513E-3},{"$f":"'Population 2016'!AY199/'Population 2016'!AY$5","v":6.9811205287475904E-3},{"$f":"'Population 2016'!AZ199/'Population 2016'!AZ$5","v":8.5427800564916497E-3},{"$f":"'Population 2016'!BA199/'Population 2016'!BA$5","v":3.4414813215288276E-3},{"$f":"'Population 2016'!BB199/'Population 2016'!BB$5","v":7.6783383854774449E-3},{"$f":"'Population 2016'!BC199/'Population 2016'!BC$5","v":1.0180144292479972E-3},197]
[null,"Male 35-39",{"$f":"'Population 2016'!C200/'Population 2016'!C$5","v":7.2066362386469926E-3},{"$f":"'Population 2016'!D200/'Population 2016'!D$5","v":1.0739121504650685E-2},{"$f":"'Population 2016'!E200/'Population 2016'!E$5","v":1.3979064218377172E-2},{"$f":"'Population 2016'!F200/'Population 2016'!F$5","v":6.6958537213494722E-3},{"$f":"'Population 2016'!G200/'Population 2016'!G$5","v":6.766632382395929E-3},{"$f":"'Population 2016'!H200/'Population 2016'!H$5","v":4.2572783896917448E-3},{"$f":"'Population 2016'!I200/'Population 2016'!I$5","v":8.824637802529102E-3},{"$f":"'Population 2016'!J200/'Population 2016'!J$5","v":8.4257316537156984E-3},{"$f":"'Population 2016'!K200/'Population 2016'!K$5","v":7.4422340877947357E-3},{"$f":"'Population 2016'!L200/'Population 2016'!L$5","v":4.344510984385176E-3},{"$f":"'Population 2016'!M200/'Population 2016'!M$5","v":4.344510984385176E-3},{"$f":"'Population 2016'!N200/'Population 2016'!N$5","v":4.5571085266956539E-3},{"$f":"'Population 2016'!O200/'Population 2016'!O$5","v":4.6363717419086398E-3},{"$f":"'Population 2016'!P200/'Population 2016'!P$5","v":4.7785416431871969E-3},{"$f":"'Population 2016'!Q200/'Population 2016'!Q$5","v":9.8588735737535401E-3},{"$f":"'Population 2016'!R200/'Population 2016'!R$5","v":4.7240112843987868E-3},{"$f":"'Population 2016'!S200/'Population 2016'!S$5","v":7.349890815240321E-3},{"$f":"'Population 2016'!T200/'Population 2016'!T$5","v":7.6243700646338114E-3},{"$f":"'Population 2016'!U200/'Population 2016'!U$5","v":2.2130748461912982E-3},{"$f":"'Population 2016'!V200/'Population 2016'!V$5","v":7.1515253280008545E-3},{"$f":"'Population 2016'!W200/'Population 2016'!W$5","v":5.700128775845051E-3},{"$f":"'Population 2016'!X200/'Population 2016'!X$5","v":5.700128775845051E-3},{"$f":"'Population 2016'!Y200/'Population 2016'!Y$5","v":7.7621977393046212E-3},{"$f":"'Population 2016'!Z200/'Population 2016'!Z$5","v":4.8220711870115745E-3},{"$f":"'Population 2016'!AA200/'Population 2016'!AA$5","v":5.5263337977367148E-3},{"$f":"'Population 2016'!AB200/'Population 2016'!AB$5","v":1.0949510250452904E-2},{"$f":"'Population 2016'!AC200/'Population 2016'!AC$5","v":4.8239526210073621E-3},{"$f":"'Population 2016'!AD200/'Population 2016'!AD$5","v":9.8626670140310388E-3},{"$f":"'Population 2016'!AE200/'Population 2016'!AE$5","v":1.1037074302610909E-2},{"$f":"'Population 2016'!AF200/'Population 2016'!AF$5","v":5.0973472680933204E-3},{"$f":"'Population 2016'!AG200/'Population 2016'!AG$5","v":1.1037074302610909E-2},{"$f":"'Population 2016'!AH200/'Population 2016'!AH$5","v":6.7878472641483148E-3},{"$f":"'Population 2016'!AI200/'Population 2016'!AI$5","v":7.8473619739259769E-3},{"$f":"'Population 2016'!AJ200/'Population 2016'!AJ$5","v":6.5945403340490196E-3},{"$f":"'Population 2016'!AK200/'Population 2016'!AK$5","v":1.2031228392190388E-2},{"$f":"'Population 2016'!AL200/'Population 2016'!AL$5","v":4.1858072755006116E-3},{"$f":"'Population 2016'!AM200/'Population 2016'!AM$5","v":5.5307851396822066E-3},{"$f":"'Population 2016'!AN200/'Population 2016'!AN$5","v":1.3144976546307406E-2},{"$f":"'Population 2016'!AO200/'Population 2016'!AO$5","v":1.3144976546307406E-2},{"$f":"'Population 2016'!AP200/'Population 2016'!AP$5","v":1.2697557186563733E-2},{"$f":"'Population 2016'!AQ200/'Population 2016'!AQ$5","v":5.7064174932865679E-3},{"$f":"'Population 2016'!AR200/'Population 2016'!AR$5","v":7.1335593634176565E-3},{"$f":"'Population 2016'!AS200/'Population 2016'!AS$5","v":8.824637802529102E-3},{"$f":"'Population 2016'!AT200/'Population 2016'!AT$5","v":2.3936310433911531E-2},{"$f":"'Population 2016'!AU200/'Population 2016'!AU$5","v":2.3936310433911531E-2},{"$f":"'Population 2016'!AV200/'Population 2016'!AV$5","v":3.9383380846795485E-3},{"$f":"'Population 2016'!AW200/'Population 2016'!AW$5","v":8.111385685520776E-3},{"$f":"'Population 2016'!AX200/'Population 2016'!AX$5","v":8.957665128998045E-3},{"$f":"'Population 2016'!AY200/'Population 2016'!AY$5","v":6.9811205287475904E-3},{"$f":"'Population 2016'!AZ200/'Population 2016'!AZ$5","v":8.1084501613636235E-3},{"$f":"'Population 2016'!BA200/'Population 2016'!BA$5","v":3.0096091556899157E-3},{"$f":"'Population 2016'!BB200/'Population 2016'!BB$5","v":7.9476326274141532E-3},{"$f":"'Population 2016'!BC200/'Population 2016'!BC$5","v":2.2130748461912982E-3},198]
[null,"Male 40-44",{"$f":"'Population 2016'!C201/'Population 2016'!C$5","v":6.0413078255891805E-3},{"$f":"'Population 2016'!D201/'Population 2016'!D$5","v":1.0934733918214449E-2},{"$f":"'Population 2016'!E201/'Population 2016'!E$5","v":1.5422911226848053E-2},{"$f":"'Population 2016'!F201/'Population 2016'!F$5","v":7.9114087046098375E-3},{"$f":"'Population 2016'!G201/'Population 2016'!G$5","v":8.4718237427597026E-3},{"$f":"'Population 2016'!H201/'Population 2016'!H$5","v":5.0808493805384342E-3},{"$f":"'Population 2016'!I201/'Population 2016'!I$5","v":1.1473075956787539E-2},{"$f":"'Population 2016'!J201/'Population 2016'!J$5","v":9.3628455089025814E-3},{"$f":"'Population 2016'!K201/'Population 2016'!K$5","v":8.0328875868260641E-3},{"$f":"'Population 2016'!L201/'Population 2016'!L$5","v":5.6629549028640418E-3},{"$f":"'Population 2016'!M201/'Population 2016'!M$5","v":5.6629549028640418E-3},{"$f":"'Population 2016'!N201/'Population 2016'!N$5","v":4.6455180395592382E-3},{"$f":"'Population 2016'!O201/'Population 2016'!O$5","v":5.5081681378230845E-3},{"$f":"'Population 2016'!P201/'Population 2016'!P$5","v":5.7026935647469853E-3},{"$f":"'Population 2016'!Q201/'Population 2016'!Q$5","v":1.3102078706478185E-2},{"$f":"'Population 2016'!R201/'Population 2016'!R$5","v":5.7353489114813439E-3},{"$f":"'Population 2016'!S201/'Population 2016'!S$5","v":7.5228917279084014E-3},{"$f":"'Population 2016'!T201/'Population 2016'!T$5","v":6.3656626477992398E-3},{"$f":"'Population 2016'!U201/'Population 2016'!U$5","v":2.4343823308104282E-3},{"$f":"'Population 2016'!V201/'Population 2016'!V$5","v":7.8537028415292202E-3},{"$f":"'Population 2016'!W201/'Population 2016'!W$5","v":6.0727289366514356E-3},{"$f":"'Population 2016'!X201/'Population 2016'!X$5","v":6.0727289366514356E-3},{"$f":"'Population 2016'!Y201/'Population 2016'!Y$5","v":8.5769701594569248E-3},{"$f":"'Population 2016'!Z201/'Population 2016'!Z$5","v":4.1910012524608827E-3},{"$f":"'Population 2016'!AA201/'Population 2016'!AA$5","v":5.7821210677690103E-3},{"$f":"'Population 2016'!AB201/'Population 2016'!AB$5","v":1.1539052025014585E-2},{"$f":"'Population 2016'!AC201/'Population 2016'!AC$5","v":4.8953189869699494E-3},{"$f":"'Population 2016'!AD201/'Population 2016'!AD$5","v":1.1150396367561131E-2},{"$f":"'Population 2016'!AE201/'Population 2016'!AE$5","v":1.2166449347529236E-2},{"$f":"'Population 2016'!AF201/'Population 2016'!AF$5","v":6.1680918125744623E-3},{"$f":"'Population 2016'!AG201/'Population 2016'!AG$5","v":1.2166449347529236E-2},{"$f":"'Population 2016'!AH201/'Population 2016'!AH$5","v":7.3748641594605386E-3},{"$f":"'Population 2016'!AI201/'Population 2016'!AI$5","v":7.6135816781870676E-3},{"$f":"'Population 2016'!AJ201/'Population 2016'!AJ$5","v":6.3157014192900757E-3},{"$f":"'Population 2016'!AK201/'Population 2016'!AK$5","v":1.4646166224557786E-2},{"$f":"'Population 2016'!AL201/'Population 2016'!AL$5","v":5.3120732161543779E-3},{"$f":"'Population 2016'!AM201/'Population 2016'!AM$5","v":6.2080980546269163E-3},{"$f":"'Population 2016'!AN201/'Population 2016'!AN$5","v":1.6799389113123158E-2},{"$f":"'Population 2016'!AO201/'Population 2016'!AO$5","v":1.6799389113123158E-2},{"$f":"'Population 2016'!AP201/'Population 2016'!AP$5","v":1.4195583596214511E-2},{"$f":"'Population 2016'!AQ201/'Population 2016'!AQ$5","v":6.2818545514331126E-3},{"$f":"'Population 2016'!AR201/'Population 2016'!AR$5","v":7.6519626811988907E-3},{"$f":"'Population 2016'!AS201/'Population 2016'!AS$5","v":1.1473075956787539E-2},{"$f":"'Population 2016'!AT201/'Population 2016'!AT$5","v":2.9050456055253863E-2},{"$f":"'Population 2016'!AU201/'Population 2016'!AU$5","v":2.9050456055253863E-2},{"$f":"'Population 2016'!AV201/'Population 2016'!AV$5","v":4.350121423292155E-3},{"$f":"'Population 2016'!AW201/'Population 2016'!AW$5","v":8.6033315028372689E-3},{"$f":"'Population 2016'!AX201/'Population 2016'!AX$5","v":1.0082165173722478E-2},{"$f":"'Population 2016'!AY201/'Population 2016'!AY$5","v":7.6420550166763565E-3},{"$f":"'Population 2016'!AZ201/'Population 2016'!AZ$5","v":9.0231316623617195E-3},{"$f":"'Population 2016'!BA201/'Population 2016'!BA$5","v":4.1162815806521274E-3},{"$f":"'Population 2016'!BB201/'Population 2016'!BB$5","v":8.734800411536842E-3},{"$f":"'Population 2016'!BC201/'Population 2016'!BC$5","v":2.4343823308104282E-3},199]
[null,"Male 45-49",{"$f":"'Population 2016'!C202/'Population 2016'!C$5","v":5.6630872002984877E-3},{"$f":"'Population 2016'!D202/'Population 2016'!D$5","v":1.136752638322428E-2},{"$f":"'Population 2016'!E202/'Population 2016'!E$5","v":1.6599552782452572E-2},{"$f":"'Population 2016'!F202/'Population 2016'!F$5","v":1.0146793716198815E-2},{"$f":"'Population 2016'!G202/'Population 2016'!G$5","v":1.0380014074595356E-2},{"$f":"'Population 2016'!H202/'Population 2016'!H$5","v":6.4588717077425396E-3},{"$f":"'Population 2016'!I202/'Population 2016'!I$5","v":1.5775479440582867E-2},{"$f":"'Population 2016'!J202/'Population 2016'!J$5","v":1.1701483625386663E-2},{"$f":"'Population 2016'!K202/'Population 2016'!K$5","v":1.0088361763455086E-2},{"$f":"'Population 2016'!L202/'Population 2016'!L$5","v":7.4976569821930648E-3},{"$f":"'Population 2016'!M202/'Population 2016'!M$5","v":7.4976569821930648E-3},{"$f":"'Population 2016'!N202/'Population 2016'!N$5","v":5.561762081963656E-3},{"$f":"'Population 2016'!O202/'Population 2016'!O$5","v":6.2214560981167216E-3},{"$f":"'Population 2016'!P202/'Population 2016'!P$5","v":7.5284571170968102E-3},{"$f":"'Population 2016'!Q202/'Population 2016'!Q$5","v":1.4476915664915806E-2},{"$f":"'Population 2016'!R202/'Population 2016'!R$5","v":5.9482620961303027E-3},{"$f":"'Population 2016'!S202/'Population 2016'!S$5","v":8.4479170160520131E-3},{"$f":"'Population 2016'!T202/'Population 2016'!T$5","v":5.937562528210402E-3},{"$f":"'Population 2016'!U202/'Population 2016'!U$5","v":3.1868277785154693E-3},{"$f":"'Population 2016'!V202/'Population 2016'!V$5","v":9.4641317040779719E-3},{"$f":"'Population 2016'!W202/'Population 2016'!W$5","v":8.1579824681819076E-3},{"$f":"'Population 2016'!X202/'Population 2016'!X$5","v":8.1579824681819076E-3},{"$f":"'Population 2016'!Y202/'Population 2016'!Y$5","v":1.0536398467432951E-2},{"$f":"'Population 2016'!Z202/'Population 2016'!Z$5","v":4.330378661318704E-3},{"$f":"'Population 2016'!AA202/'Population 2016'!AA$5","v":6.6757155565831342E-3},{"$f":"'Population 2016'!AB202/'Population 2016'!AB$5","v":1.2540044829739107E-2},{"$f":"'Population 2016'!AC202/'Population 2016'!AC$5","v":5.6720746512873869E-3},{"$f":"'Population 2016'!AD202/'Population 2016'!AD$5","v":1.3335070155197439E-2},{"$f":"'Population 2016'!AE202/'Population 2016'!AE$5","v":1.4456000574954568E-2},{"$f":"'Population 2016'!AF202/'Population 2016'!AF$5","v":8.5357945376947318E-3},{"$f":"'Population 2016'!AG202/'Population 2016'!AG$5","v":1.4456000574954568E-2},{"$f":"'Population 2016'!AH202/'Population 2016'!AH$5","v":8.4783073107752901E-3},{"$f":"'Population 2016'!AI202/'Population 2016'!AI$5","v":7.6122145419546764E-3},{"$f":"'Population 2016'!AJ202/'Population 2016'!AJ$5","v":6.5666564425731254E-3},{"$f":"'Population 2016'!AK202/'Population 2016'!AK$5","v":1.8568572973108884E-2},{"$f":"'Population 2016'!AL202/'Population 2016'!AL$5","v":6.9349603589861832E-3},{"$f":"'Population 2016'!AM202/'Population 2016'!AM$5","v":7.2113904473525029E-3},{"$f":"'Population 2016'!AN202/'Population 2016'!AN$5","v":2.2144649285480527E-2},{"$f":"'Population 2016'!AO202/'Population 2016'!AO$5","v":2.2144649285480527E-2},{"$f":"'Population 2016'!AP202/'Population 2016'!AP$5","v":1.7738534946023492E-2},{"$f":"'Population 2016'!AQ202/'Population 2016'!AQ$5","v":7.7752507261467634E-3},{"$f":"'Population 2016'!AR202/'Population 2016'!AR$5","v":8.8767935540657681E-3},{"$f":"'Population 2016'!AS202/'Population 2016'!AS$5","v":1.5775479440582867E-2},{"$f":"'Population 2016'!AT202/'Population 2016'!AT$5","v":2.836505509569252E-2},{"$f":"'Population 2016'!AU202/'Population 2016'!AU$5","v":2.836505509569252E-2},{"$f":"'Population 2016'!AV202/'Population 2016'!AV$5","v":6.1450744377573646E-3},{"$f":"'Population 2016'!AW202/'Population 2016'!AW$5","v":9.8122216120568682E-3},{"$f":"'Population 2016'!AX202/'Population 2016'!AX$5","v":1.257395504555503E-2},{"$f":"'Population 2016'!AY202/'Population 2016'!AY$5","v":9.8084513937762002E-3},{"$f":"'Population 2016'!AZ202/'Population 2016'!AZ$5","v":1.1260937347193538E-2},{"$f":"'Population 2016'!BA202/'Population 2016'!BA$5","v":5.8167782336428419E-3},{"$f":"'Population 2016'!BB202/'Population 2016'!BB$5","v":9.0662394785358674E-3},{"$f":"'Population 2016'!BC202/'Population 2016'!BC$5","v":3.1868277785154693E-3},200]
[null,"Male 50-54",{"$f":"'Population 2016'!C203/'Population 2016'!C$5","v":5.847086423412879E-3},{"$f":"'Population 2016'!D203/'Population 2016'!D$5","v":1.2169537278835714E-2},{"$f":"'Population 2016'!E203/'Population 2016'!E$5","v":1.7968394751522367E-2},{"$f":"'Population 2016'!F203/'Population 2016'!F$5","v":1.2031934071594128E-2},{"$f":"'Population 2016'!G203/'Population 2016'!G$5","v":1.1706274021544958E-2},{"$f":"'Population 2016'!H203/'Population 2016'!H$5","v":6.9549597455360185E-3},{"$f":"'Population 2016'!I203/'Population 2016'!I$5","v":1.8099405409932167E-2},{"$f":"'Population 2016'!J203/'Population 2016'!J$5","v":1.2082963601834421E-2},{"$f":"'Population 2016'!K203/'Population 2016'!K$5","v":9.4504559845012513E-3},{"$f":"'Population 2016'!L203/'Population 2016'!L$5","v":8.8875827998665669E-3},{"$f":"'Population 2016'!M203/'Population 2016'!M$5","v":8.8875827998665669E-3},{"$f":"'Population 2016'!N203/'Population 2016'!N$5","v":6.1484797582401687E-3},{"$f":"'Population 2016'!O203/'Population 2016'!O$5","v":6.558286523810939E-3},{"$f":"'Population 2016'!P203/'Population 2016'!P$5","v":8.0694240955708329E-3},{"$f":"'Population 2016'!Q203/'Population 2016'!Q$5","v":1.5687242218070292E-2},{"$f":"'Population 2016'!R203/'Population 2016'!R$5","v":7.4386543886730185E-3},{"$f":"'Population 2016'!S203/'Population 2016'!S$5","v":8.7621431635511796E-3},{"$f":"'Population 2016'!T203/'Population 2016'!T$5","v":5.8817233821770749E-3},{"$f":"'Population 2016'!U203/'Population 2016'!U$5","v":2.478643827734254E-3},{"$f":"'Population 2016'!V203/'Population 2016'!V$5","v":9.0290869402614854E-3},{"$f":"'Population 2016'!W203/'Population 2016'!W$5","v":8.3638930833643838E-3},{"$f":"'Population 2016'!X203/'Population 2016'!X$5","v":8.3638930833643838E-3},{"$f":"'Population 2016'!Y203/'Population 2016'!Y$5","v":1.049267897171746E-2},{"$f":"'Population 2016'!Z203/'Population 2016'!Z$5","v":4.2200382126395949E-3},{"$f":"'Population 2016'!AA203/'Population 2016'!AA$5","v":6.976680837945809E-3},{"$f":"'Population 2016'!AB203/'Population 2016'!AB$5","v":1.3246266747182789E-2},{"$f":"'Population 2016'!AC203/'Population 2016'!AC$5","v":6.0268378907825685E-3},{"$f":"'Population 2016'!AD203/'Population 2016'!AD$5","v":1.4514868435743794E-2},{"$f":"'Population 2016'!AE203/'Population 2016'!AE$5","v":1.5580242096941447E-2},{"$f":"'Population 2016'!AF203/'Population 2016'!AF$5","v":9.7271863547934677E-3},{"$f":"'Population 2016'!AG203/'Population 2016'!AG$5","v":1.5580242096941447E-2},{"$f":"'Population 2016'!AH203/'Population 2016'!AH$5","v":8.6826486350928354E-3},{"$f":"'Population 2016'!AI203/'Population 2016'!AI$5","v":7.7092812144544578E-3},{"$f":"'Population 2016'!AJ203/'Population 2016'!AJ$5","v":6.7618436829043858E-3},{"$f":"'Population 2016'!AK203/'Population 2016'!AK$5","v":1.8782293853638912E-2},{"$f":"'Population 2016'!AL203/'Population 2016'!AL$5","v":7.8661251130700063E-3},{"$f":"'Population 2016'!AM203/'Population 2016'!AM$5","v":7.3526482210575497E-3},{"$f":"'Population 2016'!AN203/'Population 2016'!AN$5","v":2.4108214246754665E-2},{"$f":"'Population 2016'!AO203/'Population 2016'!AO$5","v":2.4108214246754665E-2},{"$f":"'Population 2016'!AP203/'Population 2016'!AP$5","v":2.0068798249924701E-2},{"$f":"'Population 2016'!AQ203/'Population 2016'!AQ$5","v":8.604154107524525E-3},{"$f":"'Population 2016'!AR203/'Population 2016'!AR$5","v":9.414132962096854E-3},{"$f":"'Population 2016'!AS203/'Population 2016'!AS$5","v":1.8099405409932167E-2},{"$f":"'Population 2016'!AT203/'Population 2016'!AT$5","v":3.1212105235408866E-2},{"$f":"'Population 2016'!AU203/'Population 2016'!AU$5","v":3.1212105235408866E-2},{"$f":"'Population 2016'!AV203/'Population 2016'!AV$5","v":6.2928940977721465E-3},{"$f":"'Population 2016'!AW203/'Population 2016'!AW$5","v":1.0082982488254316E-2},{"$f":"'Population 2016'!AX203/'Population 2016'!AX$5","v":1.3506778946292344E-2},{"$f":"'Population 2016'!AY203/'Population 2016'!AY$5","v":1.0746305192619566E-2},{"$f":"'Population 2016'!AZ203/'Population 2016'!AZ$5","v":1.2842933653951252E-2},{"$f":"'Population 2016'!BA203/'Population 2016'!BA$5","v":6.3566184409414809E-3},{"$f":"'Population 2016'!BB203/'Population 2016'!BB$5","v":8.9143299061613147E-3},{"$f":"'Population 2016'!BC203/'Population 2016'!BC$5","v":2.478643827734254E-3},201]
[null,"Male 55-59",{"$f":"'Population 2016'!C204/'Population 2016'!C$5","v":5.305310933131616E-3},{"$f":"'Population 2016'!D204/'Population 2016'!D$5","v":1.1012978883639956E-2},{"$f":"'Population 2016'!E204/'Population 2016'!E$5","v":1.6247966660259985E-2},{"$f":"'Population 2016'!F204/'Population 2016'!F$5","v":1.0558846252897245E-2},{"$f":"'Population 2016'!G204/'Population 2016'!G$5","v":1.0867211606127863E-2},{"$f":"'Population 2016'!H204/'Population 2016'!H$5","v":6.6631432527163251E-3},{"$f":"'Population 2016'!I204/'Population 2016'!I$5","v":1.6686207185327862E-2},{"$f":"'Population 2016'!J204/'Population 2016'!J$5","v":1.0664853254604712E-2},{"$f":"'Population 2016'!K204/'Population 2016'!K$5","v":7.9147568870197981E-3},{"$f":"'Population 2016'!L204/'Population 2016'!L$5","v":8.1965911076517396E-3},{"$f":"'Population 2016'!M204/'Population 2016'!M$5","v":8.1965911076517396E-3},{"$f":"'Population 2016'!N204/'Population 2016'!N$5","v":6.6548251500952414E-3},{"$f":"'Population 2016'!O204/'Population 2016'!O$5","v":6.2313628753430219E-3},{"$f":"'Population 2016'!P204/'Population 2016'!P$5","v":8.6216612194297305E-3},{"$f":"'Population 2016'!Q204/'Population 2016'!Q$5","v":1.4676678299902469E-2},{"$f":"'Population 2016'!R204/'Population 2016'!R$5","v":5.5889710970351836E-3},{"$f":"'Population 2016'!S204/'Population 2016'!S$5","v":8.0498383853718908E-3},{"$f":"'Population 2016'!T204/'Population 2016'!T$5","v":5.4117439030632424E-3},{"$f":"'Population 2016'!U204/'Population 2016'!U$5","v":2.3015978400389501E-3},{"$f":"'Population 2016'!V204/'Population 2016'!V$5","v":8.3574388838430474E-3},{"$f":"'Population 2016'!W204/'Population 2016'!W$5","v":7.8082612646180197E-3},{"$f":"'Population 2016'!X204/'Population 2016'!X$5","v":7.8082612646180197E-3},{"$f":"'Population 2016'!Y204/'Population 2016'!Y$5","v":9.4632835725982096E-3},{"$f":"'Population 2016'!Z204/'Population 2016'!Z$5","v":3.6625285772083093E-3},{"$f":"'Population 2016'!AA204/'Population 2016'!AA$5","v":6.1355725681772732E-3},{"$f":"'Population 2016'!AB204/'Population 2016'!AB$5","v":1.1905468614065075E-2},{"$f":"'Population 2016'!AC204/'Population 2016'!AC$5","v":5.5376162806332367E-3},{"$f":"'Population 2016'!AD204/'Population 2016'!AD$5","v":1.3759350924857642E-2},{"$f":"'Population 2016'!AE204/'Population 2016'!AE$5","v":1.4856415363607428E-2},{"$f":"'Population 2016'!AF204/'Population 2016'!AF$5","v":8.5357945376947318E-3},{"$f":"'Population 2016'!AG204/'Population 2016'!AG$5","v":1.4856415363607428E-2},{"$f":"'Population 2016'!AH204/'Population 2016'!AH$5","v":7.2095334516036154E-3},{"$f":"'Population 2016'!AI204/'Population 2016'!AI$5","v":7.022978825794033E-3},{"$f":"'Population 2016'!AJ204/'Population 2016'!AJ$5","v":6.4690628224074948E-3},{"$f":"'Population 2016'!AK204/'Population 2016'!AK$5","v":1.6494223250317439E-2},{"$f":"'Population 2016'!AL204/'Population 2016'!AL$5","v":7.3606356751387877E-3},{"$f":"'Population 2016'!AM204/'Population 2016'!AM$5","v":5.7553487799312545E-3},{"$f":"'Population 2016'!AN204/'Population 2016'!AN$5","v":2.1271953747136467E-2},{"$f":"'Population 2016'!AO204/'Population 2016'!AO$5","v":2.1271953747136467E-2},{"$f":"'Population 2016'!AP204/'Population 2016'!AP$5","v":1.840432446142384E-2},{"$f":"'Population 2016'!AQ204/'Population 2016'!AQ$5","v":8.3917904313037753E-3},{"$f":"'Population 2016'!AR204/'Population 2016'!AR$5","v":8.5731477774710872E-3},{"$f":"'Population 2016'!AS204/'Population 2016'!AS$5","v":1.6686207185327862E-2},{"$f":"'Population 2016'!AT204/'Population 2016'!AT$5","v":2.7943269889808615E-2},{"$f":"'Population 2016'!AU204/'Population 2016'!AU$5","v":2.7943269889808615E-2},{"$f":"'Population 2016'!AV204/'Population 2016'!AV$5","v":6.2928940977721465E-3},{"$f":"'Population 2016'!AW204/'Population 2016'!AW$5","v":8.740618707669779E-3},{"$f":"'Population 2016'!AX204/'Population 2016'!AX$5","v":1.2152267528783367E-2},{"$f":"'Population 2016'!AY204/'Population 2016'!AY$5","v":1.0042532358250972E-2},{"$f":"'Population 2016'!AZ204/'Population 2016'!AZ$5","v":1.2008790146751731E-2},{"$f":"'Population 2016'!BA204/'Population 2016'!BA$5","v":6.5590585186784713E-3},{"$f":"'Population 2016'!BB204/'Population 2016'!BB$5","v":7.581668657602729E-3},{"$f":"'Population 2016'!BC204/'Population 2016'!BC$5","v":2.3015978400389501E-3},202]
[null,"Male 60-64",{"$f":"'Population 2016'!C205/'Population 2016'!C$5","v":5.1059784414243586E-3},{"$f":"'Population 2016'!D205/'Population 2016'!D$5","v":9.9444460745478913E-3},{"$f":"'Population 2016'!E205/'Population 2016'!E$5","v":1.4382216305158003E-2},{"$f":"'Population 2016'!F205/'Population 2016'!F$5","v":1.0589750193149627E-2},{"$f":"'Population 2016'!G205/'Population 2016'!G$5","v":1.0664212634655985E-2},{"$f":"'Population 2016'!H205/'Population 2016'!H$5","v":6.0730254561253902E-3},{"$f":"'Population 2016'!I205/'Population 2016'!I$5","v":1.5974374005527175E-2},{"$f":"'Population 2016'!J205/'Population 2016'!J$5","v":8.4423177396482085E-3},{"$f":"'Population 2016'!K205/'Population 2016'!K$5","v":6.071917970042055E-3},{"$f":"'Population 2016'!L205/'Population 2016'!L$5","v":8.3077851730656207E-3},{"$f":"'Population 2016'!M205/'Population 2016'!M$5","v":8.3077851730656207E-3},{"$f":"'Population 2016'!N205/'Population 2016'!N$5","v":5.0071933194557189E-3},{"$f":"'Population 2016'!O205/'Population 2016'!O$5","v":5.7855579001594992E-3},{"$f":"'Population 2016'!P205/'Population 2016'!P$5","v":7.7538600247943198E-3},{"$f":"'Population 2016'!Q205/'Population 2016'!Q$5","v":1.124546127542567E-2},{"$f":"'Population 2016'!R205/'Population 2016'!R$5","v":5.7885772076435834E-3},{"$f":"'Population 2016'!S205/'Population 2016'!S$5","v":6.8282401040829985E-3},{"$f":"'Population 2016'!T205/'Population 2016'!T$5","v":4.7044480533077714E-3},{"$f":"'Population 2016'!U205/'Population 2016'!U$5","v":1.9917673615721682E-3},{"$f":"'Population 2016'!V205/'Population 2016'!V$5","v":6.4798772715824182E-3},{"$f":"'Population 2016'!W205/'Population 2016'!W$5","v":6.6773870923460084E-3},{"$f":"'Population 2016'!X205/'Population 2016'!X$5","v":6.6773870923460084E-3},{"$f":"'Population 2016'!Y205/'Population 2016'!Y$5","v":7.4203907728017044E-3},{"$f":"'Population 2016'!Z205/'Population 2016'!Z$5","v":3.1030831444317755E-3},{"$f":"'Population 2016'!AA205/'Population 2016'!AA$5","v":5.211416483463187E-3},{"$f":"'Population 2016'!AB205/'Population 2016'!AB$5","v":1.0920851969745043E-2},{"$f":"'Population 2016'!AC205/'Population 2016'!AC$5","v":4.7556891405214092E-3},{"$f":"'Population 2016'!AD205/'Population 2016'!AD$5","v":1.2784249506866649E-2},{"$f":"'Population 2016'!AE205/'Population 2016'!AE$5","v":1.3588435199540037E-2},{"$f":"'Population 2016'!AF205/'Population 2016'!AF$5","v":7.1483509025924083E-3},{"$f":"'Population 2016'!AG205/'Population 2016'!AG$5","v":1.3588435199540037E-2},{"$f":"'Population 2016'!AH205/'Population 2016'!AH$5","v":6.0299267157705059E-3},{"$f":"'Population 2016'!AI205/'Population 2016'!AI$5","v":5.6968566803744861E-3},{"$f":"'Population 2016'!AJ205/'Population 2016'!AJ$5","v":5.4652427292752976E-3},{"$f":"'Population 2016'!AK205/'Population 2016'!AK$5","v":1.594106332423972E-2},{"$f":"'Population 2016'!AL205/'Population 2016'!AL$5","v":6.8019368226884943E-3},{"$f":"'Population 2016'!AM205/'Population 2016'!AM$5","v":4.7918983233788863E-3},{"$f":"'Population 2016'!AN205/'Population 2016'!AN$5","v":1.969019308388786E-2},{"$f":"'Population 2016'!AO205/'Population 2016'!AO$5","v":1.969019308388786E-2},{"$f":"'Population 2016'!AP205/'Population 2016'!AP$5","v":1.6977632642708813E-2},{"$f":"'Population 2016'!AQ205/'Population 2016'!AQ$5","v":6.8641420507480682E-3},{"$f":"'Population 2016'!AR205/'Population 2016'!AR$5","v":7.5343361441174593E-3},{"$f":"'Population 2016'!AS205/'Population 2016'!AS$5","v":1.5974374005527175E-2},{"$f":"'Population 2016'!AT205/'Population 2016'!AT$5","v":2.5570728106711658E-2},{"$f":"'Population 2016'!AU205/'Population 2016'!AU$5","v":2.5570728106711658E-2},{"$f":"'Population 2016'!AV205/'Population 2016'!AV$5","v":5.5115616091225847E-3},{"$f":"'Population 2016'!AW205/'Population 2016'!AW$5","v":7.3334248581365547E-3},{"$f":"'Population 2016'!AX205/'Population 2016'!AX$5","v":9.7243697049465231E-3},{"$f":"'Population 2016'!AY205/'Population 2016'!AY$5","v":8.9287353508154584E-3},{"$f":"'Population 2016'!AZ205/'Population 2016'!AZ$5","v":1.0910021802785464E-2},{"$f":"'Population 2016'!BA205/'Population 2016'!BA$5","v":5.3444180522565317E-3},{"$f":"'Population 2016'!BB205/'Population 2016'!BB$5","v":5.4963645277338541E-3},{"$f":"'Population 2016'!BC205/'Population 2016'!BC$5","v":1.9917673615721682E-3},203]
[null,"Male 65-69",{"$f":"'Population 2016'!C206/'Population 2016'!C$5","v":4.7022023684788888E-3},{"$f":"'Population 2016'!D206/'Population 2016'!D$5","v":9.8759817298005731E-3},{"$f":"'Population 2016'!E206/'Population 2016'!E$5","v":1.4621294868248961E-2},{"$f":"'Population 2016'!F206/'Population 2016'!F$5","v":1.0878186968838527E-2},{"$f":"'Population 2016'!G206/'Population 2016'!G$5","v":1.1124343636658908E-2},{"$f":"'Population 2016'!H206/'Population 2016'!H$5","v":6.10220710540736E-3},{"$f":"'Population 2016'!I206/'Population 2016'!I$5","v":1.6937442425257517E-2},{"$f":"'Population 2016'!J206/'Population 2016'!J$5","v":8.0774238491329621E-3},{"$f":"'Population 2016'!K206/'Population 2016'!K$5","v":6.2609270897320797E-3},{"$f":"'Population 2016'!L206/'Population 2016'!L$5","v":8.3633822057725613E-3},{"$f":"'Population 2016'!M206/'Population 2016'!M$5","v":8.3633822057725613E-3},{"$f":"'Population 2016'!N206/'Population 2016'!N$5","v":4.7017786386542469E-3},{"$f":"'Population 2016'!O206/'Population 2016'!O$5","v":5.3298461477496754E-3},{"$f":"'Population 2016'!P206/'Population 2016'!P$5","v":7.7425898794094448E-3},{"$f":"'Population 2016'!Q206/'Population 2016'!Q$5","v":1.0998695667500969E-2},{"$f":"'Population 2016'!R206/'Population 2016'!R$5","v":5.1631447277372651E-3},{"$f":"'Population 2016'!S206/'Population 2016'!S$5","v":6.7894031645044494E-3},{"$f":"'Population 2016'!T206/'Population 2016'!T$5","v":3.9645793683661928E-3},{"$f":"'Population 2016'!U206/'Population 2016'!U$5","v":2.3015978400389501E-3},{"$f":"'Population 2016'!V206/'Population 2016'!V$5","v":6.8004365712366717E-3},{"$f":"'Population 2016'!W206/'Population 2016'!W$5","v":7.1970662639970189E-3},{"$f":"'Population 2016'!X206/'Population 2016'!X$5","v":7.1970662639970189E-3},{"$f":"'Population 2016'!Y206/'Population 2016'!Y$5","v":7.4124417735807061E-3},{"$f":"'Population 2016'!Z206/'Population 2016'!Z$5","v":2.6830151205130639E-3},{"$f":"'Population 2016'!AA206/'Population 2016'!AA$5","v":4.8114582066854155E-3},{"$f":"'Population 2016'!AB206/'Population 2016'!AB$5","v":1.0728432084992273E-2},{"$f":"'Population 2016'!AC206/'Population 2016'!AC$5","v":4.3761028172131537E-3},{"$f":"'Population 2016'!AD206/'Population 2016'!AD$5","v":1.2869850013026164E-2},{"$f":"'Population 2016'!AE206/'Population 2016'!AE$5","v":1.353196644729412E-2},{"$f":"'Population 2016'!AF206/'Population 2016'!AF$5","v":6.0776063581112674E-3},{"$f":"'Population 2016'!AG206/'Population 2016'!AG$5","v":1.353196644729412E-2},{"$f":"'Population 2016'!AH206/'Population 2016'!AH$5","v":5.5933793410921119E-3},{"$f":"'Population 2016'!AI206/'Population 2016'!AI$5","v":5.2935514918190565E-3},{"$f":"'Population 2016'!AJ206/'Population 2016'!AJ$5","v":5.9950366673172904E-3},{"$f":"'Population 2016'!AK206/'Population 2016'!AK$5","v":1.5111323435123142E-2},{"$f":"'Population 2016'!AL206/'Population 2016'!AL$5","v":7.4227133254110428E-3},{"$f":"'Population 2016'!AM206/'Population 2016'!AM$5","v":4.1978912749781779E-3},{"$f":"'Population 2016'!AN206/'Population 2016'!AN$5","v":1.9199301843569324E-2},{"$f":"'Population 2016'!AO206/'Population 2016'!AO$5","v":1.9199301843569324E-2},{"$f":"'Population 2016'!AP206/'Population 2016'!AP$5","v":1.7136153955899371E-2},{"$f":"'Population 2016'!AQ206/'Population 2016'!AQ$5","v":6.466816462980216E-3},{"$f":"'Population 2016'!AR206/'Population 2016'!AR$5","v":7.3770552062775146E-3},{"$f":"'Population 2016'!AS206/'Population 2016'!AS$5","v":1.6937442425257517E-2},{"$f":"'Population 2016'!AT206/'Population 2016'!AT$5","v":2.499077344862129E-2},{"$f":"'Population 2016'!AU206/'Population 2016'!AU$5","v":2.499077344862129E-2},{"$f":"'Population 2016'!AV206/'Population 2016'!AV$5","v":5.3531834019638902E-3},{"$f":"'Population 2016'!AW206/'Population 2016'!AW$5","v":7.0626639819391058E-3},{"$f":"'Population 2016'!AX206/'Population 2016'!AX$5","v":9.0598924057911749E-3},{"$f":"'Population 2016'!AY206/'Population 2016'!AY$5","v":9.1872953703987029E-3},{"$f":"'Population 2016'!AZ206/'Population 2016'!AZ$5","v":1.093878537199924E-2},{"$f":"'Population 2016'!BA206/'Population 2016'!BA$5","v":5.708810192183114E-3},{"$f":"'Population 2016'!BB206/'Population 2016'!BB$5","v":5.5377944111087325E-3},{"$f":"'Population 2016'!BC206/'Population 2016'!BC$5","v":2.3015978400389501E-3},204]
[null,"Male 70-74",{"$f":"'Population 2016'!C207/'Population 2016'!C$5","v":3.3886523590233729E-3},{"$f":"'Population 2016'!D207/'Population 2016'!D$5","v":6.6361511301507191E-3},{"$f":"'Population 2016'!E207/'Population 2016'!E$5","v":9.6147084882265525E-3},{"$f":"'Population 2016'!F207/'Population 2016'!F$5","v":8.9209374195209894E-3},{"$f":"'Population 2016'!G207/'Population 2016'!G$5","v":9.1349537162345052E-3},{"$f":"'Population 2016'!H207/'Population 2016'!H$5","v":5.0419405148291411E-3},{"$f":"'Population 2016'!I207/'Population 2016'!I$5","v":1.3001423666359601E-2},{"$f":"'Population 2016'!J207/'Population 2016'!J$5","v":6.6593135019032534E-3},{"$f":"'Population 2016'!K207/'Population 2016'!K$5","v":4.8906109719793981E-3},{"$f":"'Population 2016'!L207/'Population 2016'!L$5","v":6.5604498594189313E-3},{"$f":"'Population 2016'!M207/'Population 2016'!M$5","v":6.5604498594189313E-3},{"$f":"'Population 2016'!N207/'Population 2016'!N$5","v":3.2952636612790446E-3},{"$f":"'Population 2016'!O207/'Population 2016'!O$5","v":4.3490752023459247E-3},{"$f":"'Population 2016'!P207/'Population 2016'!P$5","v":5.3983996393553481E-3},{"$f":"'Population 2016'!Q207/'Population 2016'!Q$5","v":8.7425529664751297E-3},{"$f":"'Population 2016'!R207/'Population 2016'!R$5","v":3.6860595092351096E-3},{"$f":"'Population 2016'!S207/'Population 2016'!S$5","v":5.075281876742146E-3},{"$f":"'Population 2016'!T207/'Population 2016'!T$5","v":2.789630670581611E-3},{"$f":"'Population 2016'!U207/'Population 2016'!U$5","v":1.8589828708006906E-3},{"$f":"'Population 2016'!V207/'Population 2016'!V$5","v":4.9076102304210778E-3},{"$f":"'Population 2016'!W207/'Population 2016'!W$5","v":5.399433909229371E-3},{"$f":"'Population 2016'!X207/'Population 2016'!X$5","v":5.399433909229371E-3},{"$f":"'Population 2016'!Y207/'Population 2016'!Y$5","v":5.7471264367816091E-3},{"$f":"'Population 2016'!Z207/'Population 2016'!Z$5","v":1.7344744213417785E-3},{"$f":"'Population 2016'!AA207/'Population 2016'!AA$5","v":3.3046386523133465E-3},{"$f":"'Population 2016'!AB207/'Population 2016'!AB$5","v":7.4654821243974089E-3},{"$f":"'Population 2016'!AC207/'Population 2016'!AC$5","v":3.0635822605968709E-3},{"$f":"'Population 2016'!AD207/'Population 2016'!AD$5","v":9.9743198481521463E-3},{"$f":"'Population 2016'!AE207/'Population 2016'!AE$5","v":1.0292713477551105E-2},{"$f":"'Population 2016'!AF207/'Population 2016'!AF$5","v":4.6298390867001464E-3},{"$f":"'Population 2016'!AG207/'Population 2016'!AG$5","v":1.0292713477551105E-2},{"$f":"'Population 2016'!AH207/'Population 2016'!AH$5","v":3.7375885866082125E-3},{"$f":"'Population 2016'!AI207/'Population 2016'!AI$5","v":3.9045410797095108E-3},{"$f":"'Population 2016'!AJ207/'Population 2016'!AJ$5","v":4.9215068454953577E-3},{"$f":"'Population 2016'!AK207/'Population 2016'!AK$5","v":1.1729504796147995E-2},{"$f":"'Population 2016'!AL207/'Population 2016'!AL$5","v":6.0126638406555397E-3},{"$f":"'Population 2016'!AM207/'Population 2016'!AM$5","v":2.8722413986692792E-3},{"$f":"'Population 2016'!AN207/'Population 2016'!AN$5","v":1.5108541507581542E-2},{"$f":"'Population 2016'!AO207/'Population 2016'!AO$5","v":1.5108541507581542E-2},{"$f":"'Population 2016'!AP207/'Population 2016'!AP$5","v":1.252318374205412E-2},{"$f":"'Population 2016'!AQ207/'Population 2016'!AQ$5","v":4.9323176412560971E-3},{"$f":"'Population 2016'!AR207/'Population 2016'!AR$5","v":5.4268606880751424E-3},{"$f":"'Population 2016'!AS207/'Population 2016'!AS$5","v":1.3001423666359601E-2},{"$f":"'Population 2016'!AT207/'Population 2016'!AT$5","v":1.6186007275794802E-2},{"$f":"'Population 2016'!AU207/'Population 2016'!AU$5","v":1.6186007275794802E-2},{"$f":"'Population 2016'!AV207/'Population 2016'!AV$5","v":4.6246436490338929E-3},{"$f":"'Population 2016'!AW207/'Population 2016'!AW$5","v":4.6486972969674778E-3},{"$f":"'Population 2016'!AX207/'Population 2016'!AX$5","v":7.6159321210882095E-3},{"$f":"'Population 2016'!AY207/'Population 2016'!AY$5","v":6.8969737768122151E-3},{"$f":"'Population 2016'!AZ207/'Population 2016'!AZ$5","v":8.2148753674545962E-3},{"$f":"'Population 2016'!BA207/'Population 2016'!BA$5","v":3.819369466637875E-3},{"$f":"'Population 2016'!BB207/'Population 2016'!BB$5","v":3.8667891149886413E-3},{"$f":"'Population 2016'!BC207/'Population 2016'!BC$5","v":1.8589828708006906E-3},205]
[null,"Male 75-79",{"$f":"'Population 2016'!C208/'Population 2016'!C$5","v":2.2897681098679804E-3},{"$f":"'Population 2016'!D208/'Population 2016'!D$5","v":4.7607171151081247E-3},{"$f":"'Population 2016'!E208/'Population 2016'!E$5","v":7.0270346288891289E-3},{"$f":"'Population 2016'!F208/'Population 2016'!F$5","v":7.0151944372907546E-3},{"$f":"'Population 2016'!G208/'Population 2016'!G$5","v":6.1305689384507115E-3},{"$f":"'Population 2016'!H208/'Population 2016'!H$5","v":3.3202232071929522E-3},{"$f":"'Population 2016'!I208/'Population 2016'!I$5","v":9.5364709823297887E-3},{"$f":"'Population 2016'!J208/'Population 2016'!J$5","v":4.3704336432167055E-3},{"$f":"'Population 2016'!K208/'Population 2016'!K$5","v":3.0241459150404009E-3},{"$f":"'Population 2016'!L208/'Population 2016'!L$5","v":4.8369418455037885E-3},{"$f":"'Population 2016'!M208/'Population 2016'!M$5","v":4.8369418455037885E-3},{"$f":"'Population 2016'!N208/'Population 2016'!N$5","v":2.5478014161596516E-3},{"$f":"'Population 2016'!O208/'Population 2016'!O$5","v":2.5064146382540297E-3},{"$f":"'Population 2016'!P208/'Population 2016'!P$5","v":4.2037642285585484E-3},{"$f":"'Population 2016'!Q208/'Population 2016'!Q$5","v":5.7696149281442049E-3},{"$f":"'Population 2016'!R208/'Population 2016'!R$5","v":2.7545643263959122E-3},{"$f":"'Population 2016'!S208/'Population 2016'!S$5","v":3.6153660116757962E-3},{"$f":"'Population 2016'!T208/'Population 2016'!T$5","v":2.2172794237400131E-3},{"$f":"'Population 2016'!U208/'Population 2016'!U$5","v":9.7375293232417125E-4},{"$f":"'Population 2016'!V208/'Population 2016'!V$5","v":3.6253730318040619E-3},{"$f":"'Population 2016'!W208/'Population 2016'!W$5","v":3.7325384529902799E-3},{"$f":"'Population 2016'!X208/'Population 2016'!X$5","v":3.7325384529902799E-3},{"$f":"'Population 2016'!Y208/'Population 2016'!Y$5","v":3.9824486097200362E-3},{"$f":"'Population 2016'!Z208/'Population 2016'!Z$5","v":1.3531223443280171E-3},{"$f":"'Population 2016'!AA208/'Population 2016'!AA$5","v":2.3074004904471757E-3},{"$f":"'Population 2016'!AB208/'Population 2016'!AB$5","v":5.3713806126731009E-3},{"$f":"'Population 2016'!AC208/'Population 2016'!AC$5","v":2.2578663318308474E-3},{"$f":"'Population 2016'!AD208/'Population 2016'!AD$5","v":6.5875172131452603E-3},{"$f":"'Population 2016'!AE208/'Population 2016'!AE$5","v":6.7608497007156133E-3},{"$f":"'Population 2016'!AF208/'Population 2016'!AF$5","v":3.3328809060610173E-3},{"$f":"'Population 2016'!AG208/'Population 2016'!AG$5","v":6.7608497007156133E-3},{"$f":"'Population 2016'!AH208/'Population 2016'!AH$5","v":2.3963664397239535E-3},{"$f":"'Population 2016'!AI208/'Population 2016'!AI$5","v":2.7930593227753959E-3},{"$f":"'Population 2016'!AJ208/'Population 2016'!AJ$5","v":2.8859827677550679E-3},{"$f":"'Population 2016'!AK208/'Population 2016'!AK$5","v":8.5111197716958124E-3},{"$f":"'Population 2016'!AL208/'Population 2016'!AL$5","v":4.0882566822156401E-3},{"$f":"'Population 2016'!AM208/'Population 2016'!AM$5","v":1.8327290639680396E-3},{"$f":"'Population 2016'!AN208/'Population 2016'!AN$5","v":1.2217737536816844E-2},{"$f":"'Population 2016'!AO208/'Population 2016'!AO$5","v":1.2217737536816844E-2},{"$f":"'Population 2016'!AP208/'Population 2016'!AP$5","v":9.6380958419859542E-3},{"$f":"'Population 2016'!AQ208/'Population 2016'!AQ$5","v":3.3841179371951555E-3},{"$f":"'Population 2016'!AR208/'Population 2016'!AR$5","v":3.8507096466904281E-3},{"$f":"'Population 2016'!AS208/'Population 2016'!AS$5","v":9.5364709823297887E-3},{"$f":"'Population 2016'!AT208/'Population 2016'!AT$5","v":1.1968155216955765E-2},{"$f":"'Population 2016'!AU208/'Population 2016'!AU$5","v":1.1968155216955765E-2},{"$f":"'Population 2016'!AV208/'Population 2016'!AV$5","v":3.2731496146130292E-3},{"$f":"'Population 2016'!AW208/'Population 2016'!AW$5","v":2.9898102385746538E-3},{"$f":"'Population 2016'!AX208/'Population 2016'!AX$5","v":5.0985854300573752E-3},{"$f":"'Population 2016'!AY208/'Population 2016'!AY$5","v":5.1344818090021723E-3},{"$f":"'Population 2016'!AZ208/'Population 2016'!AZ$5","v":6.3682542239301395E-3},{"$f":"'Population 2016'!BA208/'Population 2016'!BA$5","v":2.5507449794860723E-3},{"$f":"'Population 2016'!BB208/'Population 2016'!BB$5","v":2.7067523804920491E-3},{"$f":"'Population 2016'!BC208/'Population 2016'!BC$5","v":9.7375293232417125E-4},206]
[null,"Male 80-84",{"$f":"'Population 2016'!C209/'Population 2016'!C$5","v":1.5588823069413707E-3},{"$f":"'Population 2016'!D209/'Population 2016'!D$5","v":3.1102373756638595E-3},{"$f":"'Population 2016'!E209/'Population 2016'!E$5","v":4.5331170688030602E-3},{"$f":"'Population 2016'!F209/'Population 2016'!F$5","v":4.2132371877414369E-3},{"$f":"'Population 2016'!G209/'Population 2016'!G$5","v":4.1547122827911009E-3},{"$f":"'Population 2016'!H209/'Population 2016'!H$5","v":2.2761686439936061E-3},{"$f":"'Population 2016'!I209/'Population 2016'!I$5","v":6.2180721882589395E-3},{"$f":"'Population 2016'!J209/'Population 2016'!J$5","v":3.0020815537845301E-3},{"$f":"'Population 2016'!K209/'Population 2016'!K$5","v":2.173604876435288E-3},{"$f":"'Population 2016'!L209/'Population 2016'!L$5","v":3.6217495591949552E-3},{"$f":"'Population 2016'!M209/'Population 2016'!M$5","v":3.6217495591949552E-3},{"$f":"'Population 2016'!N209/'Population 2016'!N$5","v":2.2343495069160352E-3},{"$f":"'Population 2016'!O209/'Population 2016'!O$5","v":1.5454572473028799E-3},{"$f":"'Population 2016'!P209/'Population 2016'!P$5","v":3.0429392539163755E-3},{"$f":"'Population 2016'!Q209/'Population 2016'!Q$5","v":3.8424930376846334E-3},{"$f":"'Population 2016'!R209/'Population 2016'!R$5","v":2.0892106243679139E-3},{"$f":"'Population 2016'!S209/'Population 2016'!S$5","v":2.4008289921284586E-3},{"$f":"'Population 2016'!T209/'Population 2016'!T$5","v":1.6193352349664733E-3},{"$f":"'Population 2016'!U209/'Population 2016'!U$5","v":9.2949143540034529E-4},{"$f":"'Population 2016'!V209/'Population 2016'!V$5","v":2.6026362186214423E-3},{"$f":"'Population 2016'!W209/'Population 2016'!W$5","v":2.3532641735140116E-3},{"$f":"'Population 2016'!X209/'Population 2016'!X$5","v":2.3532641735140116E-3},{"$f":"'Population 2016'!Y209/'Population 2016'!Y$5","v":2.7940732261808239E-3},{"$f":"'Population 2016'!Z209/'Population 2016'!Z$5","v":9.6983446996900787E-4},{"$f":"'Population 2016'!AA209/'Population 2016'!AA$5","v":1.5686071286915584E-3},{"$f":"'Population 2016'!AB209/'Population 2016'!AB$5","v":3.5188274669150383E-3},{"$f":"'Population 2016'!AC209/'Population 2016'!AC$5","v":1.575231526971315E-3},{"$f":"'Population 2016'!AD209/'Population 2016'!AD$5","v":4.5777661989653507E-3},{"$f":"'Population 2016'!AE209/'Population 2016'!AE$5","v":4.7382416657255205E-3},{"$f":"'Population 2016'!AF209/'Population 2016'!AF$5","v":2.00576090726749E-3},{"$f":"'Population 2016'!AG209/'Population 2016'!AG$5","v":4.7382416657255205E-3},{"$f":"'Population 2016'!AH209/'Population 2016'!AH$5","v":1.5567093616191264E-3},{"$f":"'Population 2016'!AI209/'Population 2016'!AI$5","v":1.9221935427421472E-3},{"$f":"'Population 2016'!AJ209/'Population 2016'!AJ$5","v":2.2028274265956556E-3},{"$f":"'Population 2016'!AK209/'Population 2016'!AK$5","v":5.6196019762895537E-3},{"$f":"'Population 2016'!AL209/'Population 2016'!AL$5","v":2.740284847732392E-3},{"$f":"'Population 2016'!AM209/'Population 2016'!AM$5","v":1.0938422476647193E-3},{"$f":"'Population 2016'!AN209/'Population 2016'!AN$5","v":6.872477364459474E-3},{"$f":"'Population 2016'!AO209/'Population 2016'!AO$5","v":6.872477364459474E-3},{"$f":"'Population 2016'!AP209/'Population 2016'!AP$5","v":6.7767861388963744E-3},{"$f":"'Population 2016'!AQ209/'Population 2016'!AQ$5","v":2.1030854387022522E-3},{"$f":"'Population 2016'!AR209/'Population 2016'!AR$5","v":2.6093932364295623E-3},{"$f":"'Population 2016'!AS209/'Population 2016'!AS$5","v":6.2180721882589395E-3},{"$f":"'Population 2016'!AT209/'Population 2016'!AT$5","v":7.0121790478198977E-3},{"$f":"'Population 2016'!AU209/'Population 2016'!AU$5","v":7.0121790478198977E-3},{"$f":"'Population 2016'!AV209/'Population 2016'!AV$5","v":2.5023756731073804E-3},{"$f":"'Population 2016'!AW209/'Population 2016'!AW$5","v":2.0440539386173654E-3},{"$f":"'Population 2016'!AX209/'Population 2016'!AX$5","v":3.4501705917681486E-3},{"$f":"'Population 2016'!AY209/'Population 2016'!AY$5","v":3.4607264159603438E-3},{"$f":"'Population 2016'!AZ209/'Population 2016'!AZ$5","v":4.4353423727643516E-3},{"$f":"'Population 2016'!BA209/'Population 2016'!BA$5","v":2.0918808032822284E-3},{"$f":"'Population 2016'!BB209/'Population 2016'!BB$5","v":1.5536206265579363E-3},{"$f":"'Population 2016'!BC209/'Population 2016'!BC$5","v":9.2949143540034529E-4},207]
[null,"Male 85-89",{"$f":"'Population 2016'!C210/'Population 2016'!C$5","v":7.2066362386469923E-4},{"$f":"'Population 2016'!D210/'Population 2016'!D$5","v":1.6724861359701886E-3},{"$f":"'Population 2016'!E210/'Population 2016'!E$5","v":2.5454835246743143E-3},{"$f":"'Population 2016'!F210/'Population 2016'!F$5","v":2.5753283543651817E-3},{"$f":"'Population 2016'!G210/'Population 2016'!G$5","v":1.8946570670708603E-3},{"$f":"'Population 2016'!H210/'Population 2016'!H$5","v":1.050539374150895E-3},{"$f":"'Population 2016'!I210/'Population 2016'!I$5","v":3.6010384389917093E-3},{"$f":"'Population 2016'!J210/'Population 2016'!J$5","v":1.6586085932511216E-3},{"$f":"'Population 2016'!K210/'Population 2016'!K$5","v":9.9229787837263141E-4},{"$f":"'Population 2016'!L210/'Population 2016'!L$5","v":1.8188172128413261E-3},{"$f":"'Population 2016'!M210/'Population 2016'!M$5","v":1.8188172128413261E-3},{"$f":"'Population 2016'!N210/'Population 2016'!N$5","v":1.2216587232058897E-3},{"$f":"'Population 2016'!O210/'Population 2016'!O$5","v":6.2412696525693224E-4},{"$f":"'Population 2016'!P210/'Population 2016'!P$5","v":1.6229009354220669E-3},{"$f":"'Population 2016'!Q210/'Population 2016'!Q$5","v":2.3148964171983877E-3},{"$f":"'Population 2016'!R210/'Population 2016'!R$5","v":1.0113376270825571E-3},{"$f":"'Population 2016'!S210/'Population 2016'!S$5","v":1.3328131537183722E-3},{"$f":"'Population 2016'!T210/'Population 2016'!T$5","v":9.981247353457142E-4},{"$f":"'Population 2016'!U210/'Population 2016'!U$5","v":5.3113796308591158E-4},{"$f":"'Population 2016'!V210/'Population 2016'!V$5","v":1.3051342914494623E-3},{"$f":"'Population 2016'!W210/'Population 2016'!W$5","v":1.1766320867570058E-3},{"$f":"'Population 2016'!X210/'Population 2016'!X$5","v":1.1766320867570058E-3},{"$f":"'Population 2016'!Y210/'Population 2016'!Y$5","v":1.4745393554951431E-3},{"$f":"'Population 2016'!Z210/'Population 2016'!Z$5","v":4.9556412038336526E-4},{"$f":"'Population 2016'!AA210/'Population 2016'!AA$5","v":7.9991655355554268E-4},{"$f":"'Population 2016'!AB210/'Population 2016'!AB$5","v":1.8382240054041329E-3},{"$f":"'Population 2016'!AC210/'Population 2016'!AC$5","v":8.1916176583143885E-4},{"$f":"'Population 2016'!AD210/'Population 2016'!AD$5","v":2.3782053667795603E-3},{"$f":"'Population 2016'!AE210/'Population 2016'!AE$5","v":2.5616279427920206E-3},{"$f":"'Population 2016'!AF210/'Population 2016'!AF$5","v":1.1612299989443363E-3},{"$f":"'Population 2016'!AG210/'Population 2016'!AG$5","v":2.5616279427920206E-3},{"$f":"'Population 2016'!AH210/'Population 2016'!AH$5","v":7.6535114198935566E-4},{"$f":"'Population 2016'!AI210/'Population 2016'!AI$5","v":1.101911803307376E-3},{"$f":"'Population 2016'!AJ210/'Population 2016'!AJ$5","v":9.7593620165630315E-4},{"$f":"'Population 2016'!AK210/'Population 2016'!AK$5","v":2.6903687313779966E-3},{"$f":"'Population 2016'!AL210/'Population 2016'!AL$5","v":1.3568400702364271E-3},{"$f":"'Population 2016'!AM210/'Population 2016'!AM$5","v":4.6723725148592314E-4},{"$f":"'Population 2016'!AN210/'Population 2016'!AN$5","v":3.708956037962256E-3},{"$f":"'Population 2016'!AO210/'Population 2016'!AO$5","v":3.708956037962256E-3},{"$f":"'Population 2016'!AP210/'Population 2016'!AP$5","v":3.6935465973400123E-3},{"$f":"'Population 2016'!AQ210/'Population 2016'!AQ$5","v":1.2330794103140243E-3},{"$f":"'Population 2016'!AR210/'Population 2016'!AR$5","v":1.377656260059798E-3},{"$f":"'Population 2016'!AS210/'Population 2016'!AS$5","v":3.6010384389917093E-3},{"$f":"'Population 2016'!AT210/'Population 2016'!AT$5","v":3.2161121948647651E-3},{"$f":"'Population 2016'!AU210/'Population 2016'!AU$5","v":3.2161121948647651E-3},{"$f":"'Population 2016'!AV210/'Population 2016'!AV$5","v":1.1403230915426037E-3},{"$f":"'Population 2016'!AW210/'Population 2016'!AW$5","v":1.0792299713222283E-3},{"$f":"'Population 2016'!AX210/'Population 2016'!AX$5","v":2.018988716664324E-3},{"$f":"'Population 2016'!AY210/'Population 2016'!AY$5","v":1.8787674795752885E-3},{"$f":"'Population 2016'!AZ210/'Population 2016'!AZ$5","v":2.496677807755809E-3},{"$f":"'Population 2016'!BA210/'Population 2016'!BA$5","v":7.9626430576549341E-4},{"$f":"'Population 2016'!BB210/'Population 2016'!BB$5","v":7.5954786187276886E-4},{"$f":"'Population 2016'!BC210/'Population 2016'!BC$5","v":5.3113796308591158E-4},208]
[null,"Male 90+",{"$f":"'Population 2016'!C211/'Population 2016'!C$5","v":2.0955467076916786E-4},{"$f":"'Population 2016'!D211/'Population 2016'!D$5","v":6.601918957777061E-4},{"$f":"'Population 2016'!E211/'Population 2016'!E$5","v":1.0735096264280256E-3},{"$f":"'Population 2016'!F211/'Population 2016'!F$5","v":9.7862477465876898E-4},{"$f":"'Population 2016'!G211/'Population 2016'!G$5","v":9.4732853353543013E-4},{"$f":"'Population 2016'!H211/'Population 2016'!H$5","v":4.5393676660841146E-4},{"$f":"'Population 2016'!I211/'Population 2016'!I$5","v":1.2875806046394773E-3},{"$f":"'Population 2016'!J211/'Population 2016'!J$5","v":6.302712654354262E-4},{"$f":"'Population 2016'!K211/'Population 2016'!K$5","v":3.7801823938005011E-4},{"$f":"'Population 2016'!L211/'Population 2016'!L$5","v":6.8304925897097837E-4},{"$f":"'Population 2016'!M211/'Population 2016'!M$5","v":6.8304925897097837E-4},{"$f":"'Population 2016'!N211/'Population 2016'!N$5","v":6.6708996069795288E-4},{"$f":"'Population 2016'!O211/'Population 2016'!O$5","v":3.2692364846791691E-4},{"$f":"'Population 2016'!P211/'Population 2016'!P$5","v":6.9874901386227887E-4},{"$f":"'Population 2016'!Q211/'Population 2016'!Q$5","v":7.2854608053959415E-4},{"$f":"'Population 2016'!R211/'Population 2016'!R$5","v":6.5204662798743808E-4},{"$f":"'Population 2016'!S211/'Population 2016'!S$5","v":5.2606399974579462E-4},{"$f":"'Population 2016'!T211/'Population 2016'!T$5","v":4.909191588763302E-4},{"$f":"'Population 2016'!U211/'Population 2016'!U$5","v":8.8522993847651925E-5},{"$f":"'Population 2016'!V211/'Population 2016'!V$5","v":5.342654994237565E-4},{"$f":"'Population 2016'!W211/'Population 2016'!W$5","v":5.1967917165101089E-4},{"$f":"'Population 2016'!X211/'Population 2016'!X$5","v":5.1967917165101089E-4},{"$f":"'Population 2016'!Y211/'Population 2016'!Y$5","v":5.8027694313285958E-4},{"$f":"'Population 2016'!Z211/'Population 2016'!Z$5","v":2.0132292390574215E-4},{"$f":"'Population 2016'!AA211/'Population 2016'!AA$5","v":3.308624947430733E-4},{"$f":"'Population 2016'!AB211/'Population 2016'!AB$5","v":7.5330337860659343E-4},{"$f":"'Population 2016'!AC211/'Population 2016'!AC$5","v":3.5683182981293738E-4},{"$f":"'Population 2016'!AD211/'Population 2016'!AD$5","v":1.0346495961889165E-3},{"$f":"'Population 2016'!AE211/'Population 2016'!AE$5","v":1.0677727697409624E-3},{"$f":"'Population 2016'!AF211/'Population 2016'!AF$5","v":4.3734636323877605E-4},{"$f":"'Population 2016'!AG211/'Population 2016'!AG$5","v":1.0677727697409624E-3},{"$f":"'Population 2016'!AH211/'Population 2016'!AH$5","v":2.8422020564167818E-4},{"$f":"'Population 2016'!AI211/'Population 2016'!AI$5","v":4.2928077697086361E-4},{"$f":"'Population 2016'!AJ211/'Population 2016'!AJ$5","v":2.509550232830494E-4},{"$f":"'Population 2016'!AK211/'Population 2016'!AK$5","v":1.2320380171731012E-3},{"$f":"'Population 2016'!AL211/'Population 2016'!AL$5","v":4.4341178765896312E-4},{"$f":"'Population 2016'!AM211/'Population 2016'!AM$5","v":1.9558768666852596E-4},{"$f":"'Population 2016'!AN211/'Population 2016'!AN$5","v":1.7999345478346242E-3},{"$f":"'Population 2016'!AO211/'Population 2016'!AO$5","v":1.7999345478346242E-3},{"$f":"'Population 2016'!AP211/'Population 2016'!AP$5","v":1.5376567379484171E-3},{"$f":"'Population 2016'!AQ211/'Population 2016'!AQ$5","v":5.2063352879925466E-4},{"$f":"'Population 2016'!AR211/'Population 2016'!AR$5","v":5.6674604230144341E-4},{"$f":"'Population 2016'!AS211/'Population 2016'!AS$5","v":1.2875806046394773E-3},{"$f":"'Population 2016'!AT211/'Population 2016'!AT$5","v":1.3180787683871988E-3},{"$f":"'Population 2016'!AU211/'Population 2016'!AU$5","v":1.3180787683871988E-3},{"$f":"'Population 2016'!AV211/'Population 2016'!AV$5","v":6.0183718720304086E-4},{"$f":"'Population 2016'!AW211/'Population 2016'!AW$5","v":3.7753981328940141E-4},{"$f":"'Population 2016'!AX211/'Population 2016'!AX$5","v":7.6670457594847749E-4},{"$f":"'Population 2016'!AY211/'Population 2016'!AY$5","v":8.1239864141244148E-4},{"$f":"'Population 2016'!AZ211/'Population 2016'!AZ$5","v":1.0700047747524894E-3},{"$f":"'Population 2016'!BA211/'Population 2016'!BA$5","v":3.3740012956164973E-4},{"$f":"'Population 2016'!BB211/'Population 2016'!BB$5","v":1.588145529370335E-4},{"$f":"'Population 2016'!BC211/'Population 2016'!BC$5","v":8.8522993847651925E-5},209]
["SIMD Q5 (least deprived)","Female 0-4",{"$f":"'Population 2016'!C212/'Population 2016'!C$5","v":0},{"$f":"'Population 2016'!D212/'Population 2016'!D$5","v":0},{"$f":"'Population 2016'!E212/'Population 2016'!E$5","v":0},{"$f":"'Population 2016'!F212/'Population 2016'!F$5","v":0},{"$f":"'Population 2016'!G212/'Population 2016'!G$5","v":0},{"$f":"'Population 2016'!H212/'Population 2016'!H$5","v":0},{"$f":"'Population 2016'!I212/'Population 2016'!I$5","v":0},{"$f":"'Population 2016'!J212/'Population 2016'!J$5","v":0},{"$f":"'Population 2016'!K212/'Population 2016'!K$5","v":0},{"$f":"'Population 2016'!L212/'Population 2016'!L$5","v":0},{"$f":"'Population 2016'!M212/'Population 2016'!M$5","v":0},{"$f":"'Population 2016'!N212/'Population 2016'!N$5","v":0},{"$f":"'Population 2016'!O212/'Population 2016'!O$5","v":0},{"$f":"'Population 2016'!P212/'Population 2016'!P$5","v":0},{"$f":"'Population 2016'!Q212/'Population 2016'!Q$5","v":0},{"$f":"'Population 2016'!R212/'Population 2016'!R$5","v":0},{"$f":"'Population 2016'!S212/'Population 2016'!S$5","v":0},{"$f":"'Population 2016'!T212/'Population 2016'!T$5","v":0},{"$f":"'Population 2016'!U212/'Population 2016'!U$5","v":0},{"$f":"'Population 2016'!V212/'Population 2016'!V$5","v":0},{"$f":"'Population 2016'!W212/'Population 2016'!W$5","v":0},{"$f":"'Population 2016'!X212/'Population 2016'!X$5","v":0},{"$f":"'Population 2016'!Y212/'Population 2016'!Y$5","v":0},{"$f":"'Population 2016'!Z212/'Population 2016'!Z$5","v":0},{"$f":"'Population 2016'!AA212/'Population 2016'!AA$5","v":0},{"$f":"'Population 2016'!AB212/'Population 2016'!AB$5","v":0},{"$f":"'Population 2016'!AC212/'Population 2016'!AC$5","v":0},{"$f":"'Population 2016'!AD212/'Population 2016'!AD$5","v":0},{"$f":"'Population 2016'!AE212/'Population 2016'!AE$5","v":0},{"$f":"'Population 2016'!AF212/'Population 2016'!AF$5","v":0},{"$f":"'Population 2016'!AG212/'Population 2016'!AG$5","v":0},{"$f":"'Population 2016'!AH212/'Population 2016'!AH$5","v":0},{"$f":"'Population 2016'!AI212/'Population 2016'!AI$5","v":0},{"$f":"'Population 2016'!AJ212/'Population 2016'!AJ$5","v":0},{"$f":"'Population 2016'!AK212/'Population 2016'!AK$5","v":0},{"$f":"'Population 2016'!AL212/'Population 2016'!AL$5","v":0},{"$f":"'Population 2016'!AM212/'Population 2016'!AM$5","v":0},{"$f":"'Population 2016'!AN212/'Population 2016'!AN$5","v":0},{"$f":"'Population 2016'!AO212/'Population 2016'!AO$5","v":0},{"$f":"'Population 2016'!AP212/'Population 2016'!AP$5","v":0},{"$f":"'Population 2016'!AQ212/'Population 2016'!AQ$5","v":0},{"$f":"'Population 2016'!AR212/'Population 2016'!AR$5","v":0},{"$f":"'Population 2016'!AS212/'Population 2016'!AS$5","v":0},{"$f":"'Population 2016'!AT212/'Population 2016'!AT$5","v":0},{"$f":"'Population 2016'!AU212/'Population 2016'!AU$5","v":0},{"$f":"'Population 2016'!AV212/'Population 2016'!AV$5","v":0},{"$f":"'Population 2016'!AW212/'Population 2016'!AW$5","v":0},{"$f":"'Population 2016'!AX212/'Population 2016'!AX$5","v":0},{"$f":"'Population 2016'!AY212/'Population 2016'!AY$5","v":0},{"$f":"'Population 2016'!AZ212/'Population 2016'!AZ$5","v":0},{"$f":"'Population 2016'!BA212/'Population 2016'!BA$5","v":0},{"$f":"'Population 2016'!BB212/'Population 2016'!BB$5","v":0},{"$f":"'Population 2016'!BC212/'Population 2016'!BC$5","v":0},210]
[null,"Female 5-9",{"$f":"'Population 2016'!C213/'Population 2016'!C$5","v":0},{"$f":"'Population 2016'!D213/'Population 2016'!D$5","v":0},{"$f":"'Population 2016'!E213/'Population 2016'!E$5","v":0},{"$f":"'Population 2016'!F213/'Population 2016'!F$5","v":0},{"$f":"'Population 2016'!G213/'Population 2016'!G$5","v":0},{"$f":"'Population 2016'!H213/'Population 2016'!H$5","v":0},{"$f":"'Population 2016'!I213/'Population 2016'!I$5","v":0},{"$f":"'Population 2016'!J213/'Population 2016'!J$5","v":0},{"$f":"'Population 2016'!K213/'Population 2016'!K$5","v":0},{"$f":"'Population 2016'!L213/'Population 2016'!L$5","v":0},{"$f":"'Population 2016'!M213/'Population 2016'!M$5","v":0},{"$f":"'Population 2016'!N213/'Population 2016'!N$5","v":0},{"$f":"'Population 2016'!O213/'Population 2016'!O$5","v":0},{"$f":"'Population 2016'!P213/'Population 2016'!P$5","v":0},{"$f":"'Population 2016'!Q213/'Population 2016'!Q$5","v":0},{"$f":"'Population 2016'!R213/'Population 2016'!R$5","v":0},{"$f":"'Population 2016'!S213/'Population 2016'!S$5","v":0},{"$f":"'Population 2016'!T213/'Population 2016'!T$5","v":0},{"$f":"'Population 2016'!U213/'Population 2016'!U$5","v":0},{"$f":"'Population 2016'!V213/'Population 2016'!V$5","v":0},{"$f":"'Population 2016'!W213/'Population 2016'!W$5","v":0},{"$f":"'Population 2016'!X213/'Population 2016'!X$5","v":0},{"$f":"'Population 2016'!Y213/'Population 2016'!Y$5","v":0},{"$f":"'Population 2016'!Z213/'Population 2016'!Z$5","v":0},{"$f":"'Population 2016'!AA213/'Population 2016'!AA$5","v":0},{"$f":"'Population 2016'!AB213/'Population 2016'!AB$5","v":0},{"$f":"'Population 2016'!AC213/'Population 2016'!AC$5","v":0},{"$f":"'Population 2016'!AD213/'Population 2016'!AD$5","v":0},{"$f":"'Population 2016'!AE213/'Population 2016'!AE$5","v":0},{"$f":"'Population 2016'!AF213/'Population 2016'!AF$5","v":0},{"$f":"'Population 2016'!AG213/'Population 2016'!AG$5","v":0},{"$f":"'Population 2016'!AH213/'Population 2016'!AH$5","v":0},{"$f":"'Population 2016'!AI213/'Population 2016'!AI$5","v":0},{"$f":"'Population 2016'!AJ213/'Population 2016'!AJ$5","v":0},{"$f":"'Population 2016'!AK213/'Population 2016'!AK$5","v":0},{"$f":"'Population 2016'!AL213/'Population 2016'!AL$5","v":0},{"$f":"'Population 2016'!AM213/'Population 2016'!AM$5","v":0},{"$f":"'Population 2016'!AN213/'Population 2016'!AN$5","v":0},{"$f":"'Population 2016'!AO213/'Population 2016'!AO$5","v":0},{"$f":"'Population 2016'!AP213/'Population 2016'!AP$5","v":0},{"$f":"'Population 2016'!AQ213/'Population 2016'!AQ$5","v":0},{"$f":"'Population 2016'!AR213/'Population 2016'!AR$5","v":0},{"$f":"'Population 2016'!AS213/'Population 2016'!AS$5","v":0},{"$f":"'Population 2016'!AT213/'Population 2016'!AT$5","v":0},{"$f":"'Population 2016'!AU213/'Population 2016'!AU$5","v":0},{"$f":"'Population 2016'!AV213/'Population 2016'!AV$5","v":0},{"$f":"'Population 2016'!AW213/'Population 2016'!AW$5","v":0},{"$f":"'Population 2016'!AX213/'Population 2016'!AX$5","v":0},{"$f":"'Population 2016'!AY213/'Population 2016'!AY$5","v":0},{"$f":"'Population 2016'!AZ213/'Population 2016'!AZ$5","v":0},{"$f":"'Population 2016'!BA213/'Population 2016'!BA$5","v":0},{"$f":"'Population 2016'!BB213/'Population 2016'!BB$5","v":0},{"$f":"'Population 2016'!BC213/'Population 2016'!BC$5","v":0},211]
[null,"Female 10-15",{"$f":"'Population 2016'!C214/'Population 2016'!C$5","v":0},{"$f":"'Population 2016'!D214/'Population 2016'!D$5","v":0},{"$f":"'Population 2016'!E214/'Population 2016'!E$5","v":0},{"$f":"'Population 2016'!F214/'Population 2016'!F$5","v":0},{"$f":"'Population 2016'!G214/'Population 2016'!G$5","v":0},{"$f":"'Population 2016'!H214/'Population 2016'!H$5","v":0},{"$f":"'Population 2016'!I214/'Population 2016'!I$5","v":0},{"$f":"'Population 2016'!J214/'Population 2016'!J$5","v":0},{"$f":"'Population 2016'!K214/'Population 2016'!K$5","v":0},{"$f":"'Population 2016'!L214/'Population 2016'!L$5","v":0},{"$f":"'Population 2016'!M214/'Population 2016'!M$5","v":0},{"$f":"'Population 2016'!N214/'Population 2016'!N$5","v":0},{"$f":"'Population 2016'!O214/'Population 2016'!O$5","v":0},{"$f":"'Population 2016'!P214/'Population 2016'!P$5","v":0},{"$f":"'Population 2016'!Q214/'Population 2016'!Q$5","v":0},{"$f":"'Population 2016'!R214/'Population 2016'!R$5","v":0},{"$f":"'Population 2016'!S214/'Population 2016'!S$5","v":0},{"$f":"'Population 2016'!T214/'Population 2016'!T$5","v":0},{"$f":"'Population 2016'!U214/'Population 2016'!U$5","v":0},{"$f":"'Population 2016'!V214/'Population 2016'!V$5","v":0},{"$f":"'Population 2016'!W214/'Population 2016'!W$5","v":0},{"$f":"'Population 2016'!X214/'Population 2016'!X$5","v":0},{"$f":"'Population 2016'!Y214/'Population 2016'!Y$5","v":0},{"$f":"'Population 2016'!Z214/'Population 2016'!Z$5","v":0},{"$f":"'Population 2016'!AA214/'Population 2016'!AA$5","v":0},{"$f":"'Population 2016'!AB214/'Population 2016'!AB$5","v":0},{"$f":"'Population 2016'!AC214/'Population 2016'!AC$5","v":0},{"$f":"'Population 2016'!AD214/'Population 2016'!AD$5","v":0},{"$f":"'Population 2016'!AE214/'Population 2016'!AE$5","v":0},{"$f":"'Population 2016'!AF214/'Population 2016'!AF$5","v":0},{"$f":"'Population 2016'!AG214/'Population 2016'!AG$5","v":0},{"$f":"'Population 2016'!AH214/'Population 2016'!AH$5","v":0},{"$f":"'Population 2016'!AI214/'Population 2016'!AI$5","v":0},{"$f":"'Population 2016'!AJ214/'Population 2016'!AJ$5","v":0},{"$f":"'Population 2016'!AK214/'Population 2016'!AK$5","v":0},{"$f":"'Population 2016'!AL214/'Population 2016'!AL$5","v":0},{"$f":"'Population 2016'!AM214/'Population 2016'!AM$5","v":0},{"$f":"'Population 2016'!AN214/'Population 2016'!AN$5","v":0},{"$f":"'Population 2016'!AO214/'Population 2016'!AO$5","v":0},{"$f":"'Population 2016'!AP214/'Population 2016'!AP$5","v":0},{"$f":"'Population 2016'!AQ214/'Population 2016'!AQ$5","v":0},{"$f":"'Population 2016'!AR214/'Population 2016'!AR$5","v":0},{"$f":"'Population 2016'!AS214/'Population 2016'!AS$5","v":0},{"$f":"'Population 2016'!AT214/'Population 2016'!AT$5","v":0},{"$f":"'Population 2016'!AU214/'Population 2016'!AU$5","v":0},{"$f":"'Population 2016'!AV214/'Population 2016'!AV$5","v":0},{"$f":"'Population 2016'!AW214/'Population 2016'!AW$5","v":0},{"$f":"'Population 2016'!AX214/'Population 2016'!AX$5","v":0},{"$f":"'Population 2016'!AY214/'Population 2016'!AY$5","v":0},{"$f":"'Population 2016'!AZ214/'Population 2016'!AZ$5","v":0},{"$f":"'Population 2016'!BA214/'Population 2016'!BA$5","v":0},{"$f":"'Population 2016'!BB214/'Population 2016'!BB$5","v":0},{"$f":"'Population 2016'!BC214/'Population 2016'!BC$5","v":0},212]
[null,"Female 16-19",{"$f":"'Population 2016'!C215/'Population 2016'!C$5","v":1.041640046408693E-2},{"$f":"'Population 2016'!D215/'Population 2016'!D$5","v":9.5678921784376428E-3},{"$f":"'Population 2016'!E215/'Population 2016'!E$5","v":8.7896530548146196E-3},{"$f":"'Population 2016'!F215/'Population 2016'!F$5","v":4.7283028586144731E-3},{"$f":"'Population 2016'!G215/'Population 2016'!G$5","v":1.8134574784821091E-3},{"$f":"'Population 2016'!H215/'Population 2016'!H$5","v":3.4434346152723782E-3},{"$f":"'Population 2016'!I215/'Population 2016'!I$5","v":2.1983083493844736E-3},{"$f":"'Population 2016'!J215/'Population 2016'!J$5","v":1.0258494149258187E-2},{"$f":"'Population 2016'!K215/'Population 2016'!K$5","v":3.8510608136842601E-3},{"$f":"'Population 2016'!L215/'Population 2016'!L$5","v":2.0570902101567836E-3},{"$f":"'Population 2016'!M215/'Population 2016'!M$5","v":2.0570902101567836E-3},{"$f":"'Population 2016'!N215/'Population 2016'!N$5","v":5.0795283754350154E-3},{"$f":"'Population 2016'!O215/'Population 2016'!O$5","v":3.1503551579635629E-3},{"$f":"'Population 2016'!P215/'Population 2016'!P$5","v":1.4887862053420488E-2},{"$f":"'Population 2016'!Q215/'Population 2016'!Q$5","v":4.1950153347199209E-3},{"$f":"'Population 2016'!R215/'Population 2016'!R$5","v":1.741895991909299E-2},{"$f":"'Population 2016'!S215/'Population 2016'!S$5","v":7.5634939829223383E-3},{"$f":"'Population 2016'!T215/'Population 2016'!T$5","v":1.0718789407313998E-2},{"$f":"'Population 2016'!U215/'Population 2016'!U$5","v":0},{"$f":"'Population 2016'!V215/'Population 2016'!V$5","v":5.1671106158554733E-3},{"$f":"'Population 2016'!W215/'Population 2016'!W$5","v":7.5108348204655541E-3},{"$f":"'Population 2016'!X215/'Population 2016'!X$5","v":7.5108348204655541E-3},{"$f":"'Population 2016'!Y215/'Population 2016'!Y$5","v":7.6071922544951589E-3},{"$f":"'Population 2016'!Z215/'Population 2016'!Z$5","v":2.8843380444188061E-3},{"$f":"'Population 2016'!AA215/'Population 2016'!AA$5","v":4.6101503032574013E-3},{"$f":"'Population 2016'!AB215/'Population 2016'!AB$5","v":8.8615497988802795E-3},{"$f":"'Population 2016'!AC215/'Population 2016'!AC$5","v":5.34213449560528E-3},{"$f":"'Population 2016'!AD215/'Population 2016'!AD$5","v":2.1400126539878671E-3},{"$f":"'Population 2016'!AE215/'Population 2016'!AE$5","v":2.2638836127680984E-3},{"$f":"'Population 2016'!AF215/'Population 2016'!AF$5","v":2.940777270053839E-3},{"$f":"'Population 2016'!AG215/'Population 2016'!AG$5","v":2.2638836127680984E-3},{"$f":"'Population 2016'!AH215/'Population 2016'!AH$5","v":3.2954682667211575E-3},{"$f":"'Population 2016'!AI215/'Population 2016'!AI$5","v":8.2862127045235812E-3},{"$f":"'Population 2016'!AJ215/'Population 2016'!AJ$5","v":3.9455706438390539E-3},{"$f":"'Population 2016'!AK215/'Population 2016'!AK$5","v":5.2298756647347977E-3},{"$f":"'Population 2016'!AL215/'Population 2016'!AL$5","v":2.2702683528138911E-3},{"$f":"'Population 2016'!AM215/'Population 2016'!AM$5","v":2.8505094334838874E-3},{"$f":"'Population 2016'!AN215/'Population 2016'!AN$5","v":1.4181302498090978E-3},{"$f":"'Population 2016'!AO215/'Population 2016'!AO$5","v":1.4181302498090978E-3},{"$f":"'Population 2016'!AP215/'Population 2016'!AP$5","v":3.9947370924020738E-3},{"$f":"'Population 2016'!AQ215/'Population 2016'!AQ$5","v":5.1241299939716115E-3},{"$f":"'Population 2016'!AR215/'Population 2016'!AR$5","v":5.6291426874500285E-3},{"$f":"'Population 2016'!AS215/'Population 2016'!AS$5","v":2.1983083493844736E-3},{"$f":"'Population 2016'!AT215/'Population 2016'!AT$5","v":0},{"$f":"'Population 2016'!AU215/'Population 2016'!AU$5","v":0},{"$f":"'Population 2016'!AV215/'Population 2016'!AV$5","v":5.1525710062295428E-3},{"$f":"'Population 2016'!AW215/'Population 2016'!AW$5","v":3.763957532491305E-3},{"$f":"'Population 2016'!AX215/'Population 2016'!AX$5","v":1.3724011909477746E-2},{"$f":"'Population 2016'!AY215/'Population 2016'!AY$5","v":5.9560600960802913E-3},{"$f":"'Population 2016'!AZ215/'Population 2016'!AZ$5","v":4.5877892895973679E-3},{"$f":"'Population 2016'!BA215/'Population 2016'!BA$5","v":1.3765925286115309E-3},{"$f":"'Population 2016'!BB215/'Population 2016'!BB$5","v":5.6206541778584893E-3},{"$f":"'Population 2016'!BC215/'Population 2016'!BC$5","v":0},213]
[null,"Female 20-24",{"$f":"'Population 2016'!C216/'Population 2016'!C$5","v":1.8359033595191487E-2},{"$f":"'Population 2016'!D216/'Population 2016'!D$5","v":1.3807791242432244E-2},{"$f":"'Population 2016'!E216/'Population 2016'!E$5","v":9.6334597480768232E-3},{"$f":"'Population 2016'!F216/'Population 2016'!F$5","v":4.3677568890033479E-3},{"$f":"'Population 2016'!G216/'Population 2016'!G$5","v":2.4901207167217021E-3},{"$f":"'Population 2016'!H216/'Population 2016'!H$5","v":3.3558896674264703E-3},{"$f":"'Population 2016'!I216/'Population 2016'!I$5","v":2.1250314044049911E-3},{"$f":"'Population 2016'!J216/'Population 2016'!J$5","v":1.0689732383503479E-2},{"$f":"'Population 2016'!K216/'Population 2016'!K$5","v":3.4494164343429569E-3},{"$f":"'Population 2016'!L216/'Population 2016'!L$5","v":2.4462694391053645E-3},{"$f":"'Population 2016'!M216/'Population 2016'!M$5","v":2.4462694391053645E-3},{"$f":"'Population 2016'!N216/'Population 2016'!N$5","v":6.236889271103753E-3},{"$f":"'Population 2016'!O216/'Population 2016'!O$5","v":3.1503551579635629E-3},{"$f":"'Population 2016'!P216/'Population 2016'!P$5","v":1.5665502084976895E-2},{"$f":"'Population 2016'!Q216/'Population 2016'!Q$5","v":4.2067660779544309E-3},{"$f":"'Population 2016'!R216/'Population 2016'!R$5","v":1.8283919731729388E-2},{"$f":"'Population 2016'!S216/'Population 2016'!S$5","v":1.4224029120643421E-2},{"$f":"'Population 2016'!T216/'Population 2016'!T$5","v":2.3913114288772144E-2},{"$f":"'Population 2016'!U216/'Population 2016'!U$5","v":0},{"$f":"'Population 2016'!V216/'Population 2016'!V$5","v":6.1135237862632707E-3},{"$f":"'Population 2016'!W216/'Population 2016'!W$5","v":1.3619516404212342E-2},{"$f":"'Population 2016'!X216/'Population 2016'!X$5","v":1.3619516404212342E-2},{"$f":"'Population 2016'!Y216/'Population 2016'!Y$5","v":8.30670418594299E-3},{"$f":"'Population 2016'!Z216/'Population 2016'!Z$5","v":7.4799209420364204E-3},{"$f":"'Population 2016'!AA216/'Population 2016'!AA$5","v":6.5694143534528295E-3},{"$f":"'Population 2016'!AB216/'Population 2016'!AB$5","v":1.2449975947514406E-2},{"$f":"'Population 2016'!AC216/'Population 2016'!AC$5","v":8.144040081005997E-3},{"$f":"'Population 2016'!AD216/'Population 2016'!AD$5","v":2.5159105288622575E-3},{"$f":"'Population 2016'!AE216/'Population 2016'!AE$5","v":2.5256932822718919E-3},{"$f":"'Population 2016'!AF216/'Population 2016'!AF$5","v":3.6948227239137973E-3},{"$f":"'Population 2016'!AG216/'Population 2016'!AG$5","v":2.5256932822718919E-3},{"$f":"'Population 2016'!AH216/'Population 2016'!AH$5","v":3.7413038834139861E-3},{"$f":"'Population 2016'!AI216/'Population 2016'!AI$5","v":1.6057015049435647E-2},{"$f":"'Population 2016'!AJ216/'Population 2016'!AJ$5","v":4.8657390625435684E-3},{"$f":"'Population 2016'!AK216/'Population 2016'!AK$5","v":5.4687401782683581E-3},{"$f":"'Population 2016'!AL216/'Population 2016'!AL$5","v":2.2081907025416365E-3},{"$f":"'Population 2016'!AM216/'Population 2016'!AM$5","v":3.1112930157085887E-3},{"$f":"'Population 2016'!AN216/'Population 2016'!AN$5","v":2.3999127304461655E-3},{"$f":"'Population 2016'!AO216/'Population 2016'!AO$5","v":2.3999127304461655E-3},{"$f":"'Population 2016'!AP216/'Population 2016'!AP$5","v":4.5574877542285562E-3},{"$f":"'Population 2016'!AQ216/'Population 2016'!AQ$5","v":6.0489395517071302E-3},{"$f":"'Population 2016'!AR216/'Population 2016'!AR$5","v":8.4684423372660255E-3},{"$f":"'Population 2016'!AS216/'Population 2016'!AS$5","v":2.1250314044049911E-3},{"$f":"'Population 2016'!AT216/'Population 2016'!AT$5","v":0},{"$f":"'Population 2016'!AU216/'Population 2016'!AU$5","v":0},{"$f":"'Population 2016'!AV216/'Population 2016'!AV$5","v":4.9414000633512829E-3},{"$f":"'Population 2016'!AW216/'Population 2016'!AW$5","v":4.4046311550430166E-3},{"$f":"'Population 2016'!AX216/'Population 2016'!AX$5","v":1.4605722171818495E-2},{"$f":"'Population 2016'!AY216/'Population 2016'!AY$5","v":9.0909090909090905E-3},{"$f":"'Population 2016'!AZ216/'Population 2016'!AZ$5","v":5.1055335354453467E-3},{"$f":"'Population 2016'!BA216/'Population 2016'!BA$5","v":1.5925286115309868E-3},{"$f":"'Population 2016'!BB216/'Population 2016'!BB$5","v":5.2477852274845846E-3},{"$f":"'Population 2016'!BC216/'Population 2016'!BC$5","v":0},214]
[null,"Female 25-29",{"$f":"'Population 2016'!C217/'Population 2016'!C$5","v":2.0551691003971317E-2},{"$f":"'Population 2016'!D217/'Population 2016'!D$5","v":1.4925227154915252E-2},{"$f":"'Population 2016'!E217/'Population 2016'!E$5","v":9.7647185670287229E-3},{"$f":"'Population 2016'!F217/'Population 2016'!F$5","v":4.1411279938192123E-3},{"$f":"'Population 2016'!G217/'Population 2016'!G$5","v":1.9758566556596115E-3},{"$f":"'Population 2016'!H217/'Population 2016'!H$5","v":2.8176503584479255E-3},{"$f":"'Population 2016'!I217/'Population 2016'!I$5","v":1.6539653295368896E-3},{"$f":"'Population 2016'!J217/'Population 2016'!J$5","v":6.6095552441057196E-3},{"$f":"'Population 2016'!K217/'Population 2016'!K$5","v":2.5043708358928316E-3},{"$f":"'Population 2016'!L217/'Population 2016'!L$5","v":2.8116213683223993E-3},{"$f":"'Population 2016'!M217/'Population 2016'!M$5","v":2.8116213683223993E-3},{"$f":"'Population 2016'!N217/'Population 2016'!N$5","v":5.1357889745300232E-3},{"$f":"'Population 2016'!O217/'Population 2016'!O$5","v":3.3782110341684748E-3},{"$f":"'Population 2016'!P217/'Population 2016'!P$5","v":1.1912543671813366E-2},{"$f":"'Population 2016'!Q217/'Population 2016'!Q$5","v":4.2772705373614883E-3},{"$f":"'Population 2016'!R217/'Population 2016'!R$5","v":1.4983765369670516E-2},{"$f":"'Population 2016'!S217/'Population 2016'!S$5","v":1.0921123941031403E-2},{"$f":"'Population 2016'!T217/'Population 2016'!T$5","v":2.053251932267116E-2},{"$f":"'Population 2016'!U217/'Population 2016'!U$5","v":0},{"$f":"'Population 2016'!V217/'Population 2016'!V$5","v":5.8769204936613218E-3},{"$f":"'Population 2016'!W217/'Population 2016'!W$5","v":6.3145921989292645E-3},{"$f":"'Population 2016'!X217/'Population 2016'!X$5","v":6.3145921989292645E-3},{"$f":"'Population 2016'!Y217/'Population 2016'!Y$5","v":6.2280408896519925E-3},{"$f":"'Population 2016'!Z217/'Population 2016'!Z$5","v":6.6339775021632538E-3},{"$f":"'Population 2016'!AA217/'Population 2016'!AA$5","v":5.4884639941215436E-3},{"$f":"'Population 2016'!AB217/'Population 2016'!AB$5","v":1.3448921732188366E-2},{"$f":"'Population 2016'!AC217/'Population 2016'!AC$5","v":6.8066964405766404E-3},{"$f":"'Population 2016'!AD217/'Population 2016'!AD$5","v":2.7913208530276528E-3},{"$f":"'Population 2016'!AE217/'Population 2016'!AE$5","v":3.1006478505939488E-3},{"$f":"'Population 2016'!AF217/'Population 2016'!AF$5","v":2.5788354522010585E-3},{"$f":"'Population 2016'!AG217/'Population 2016'!AG$5","v":3.1006478505939488E-3},{"$f":"'Population 2016'!AH217/'Population 2016'!AH$5","v":3.1208493168497996E-3},{"$f":"'Population 2016'!AI217/'Population 2016'!AI$5","v":1.4058261877679588E-2},{"$f":"'Population 2016'!AJ217/'Population 2016'!AJ$5","v":4.8657390625435684E-3},{"$f":"'Population 2016'!AK217/'Population 2016'!AK$5","v":5.8584664898231149E-3},{"$f":"'Population 2016'!AL217/'Population 2016'!AL$5","v":1.6140189070786258E-3},{"$f":"'Population 2016'!AM217/'Population 2016'!AM$5","v":2.6621657352104921E-3},{"$f":"'Population 2016'!AN217/'Population 2016'!AN$5","v":2.945347441911203E-3},{"$f":"'Population 2016'!AO217/'Population 2016'!AO$5","v":2.945347441911203E-3},{"$f":"'Population 2016'!AP217/'Population 2016'!AP$5","v":4.2166669308688551E-3},{"$f":"'Population 2016'!AQ217/'Population 2016'!AQ$5","v":5.0145229352770316E-3},{"$f":"'Population 2016'!AR217/'Population 2016'!AR$5","v":7.2115314997405755E-3},{"$f":"'Population 2016'!AS217/'Population 2016'!AS$5","v":1.6539653295368896E-3},{"$f":"'Population 2016'!AT217/'Population 2016'!AT$5","v":0},{"$f":"'Population 2016'!AU217/'Population 2016'!AU$5","v":0},{"$f":"'Population 2016'!AV217/'Population 2016'!AV$5","v":3.6532573117938972E-3},{"$f":"'Population 2016'!AW217/'Population 2016'!AW$5","v":3.6037891268533772E-3},{"$f":"'Population 2016'!AX217/'Population 2016'!AX$5","v":8.8298810330066316E-3},{"$f":"'Population 2016'!AY217/'Population 2016'!AY$5","v":5.3624430096998257E-3},{"$f":"'Population 2016'!AZ217/'Population 2016'!AZ$5","v":4.5245094373270595E-3},{"$f":"'Population 2016'!BA217/'Population 2016'!BA$5","v":9.1772835240768738E-4},{"$f":"'Population 2016'!BB217/'Population 2016'!BB$5","v":5.144210519047389E-3},{"$f":"'Population 2016'!BC217/'Population 2016'!BC$5","v":0},215]
[null,"Female 30-34",{"$f":"'Population 2016'!C218/'Population 2016'!C$5","v":1.7582147986486281E-2},{"$f":"'Population 2016'!D218/'Population 2016'!D$5","v":1.5653883395440275E-2},{"$f":"'Population 2016'!E218/'Population 2016'!E$5","v":1.3885307919125817E-2},{"$f":"'Population 2016'!F218/'Population 2016'!F$5","v":5.0682462013906769E-3},{"$f":"'Population 2016'!G218/'Population 2016'!G$5","v":1.5157256536566881E-3},{"$f":"'Population 2016'!H218/'Population 2016'!H$5","v":3.3104959907656294E-3},{"$f":"'Population 2016'!I218/'Population 2016'!I$5","v":2.9206096641822294E-3},{"$f":"'Population 2016'!J218/'Population 2016'!J$5","v":5.6309761740875579E-3},{"$f":"'Population 2016'!K218/'Population 2016'!K$5","v":3.3312857345366913E-3},{"$f":"'Population 2016'!L218/'Population 2016'!L$5","v":2.8116213683223993E-3},{"$f":"'Population 2016'!M218/'Population 2016'!M$5","v":2.8116213683223993E-3},{"$f":"'Population 2016'!N218/'Population 2016'!N$5","v":4.9750444056871432E-3},{"$f":"'Population 2016'!O218/'Population 2016'!O$5","v":3.9032702271624017E-3},{"$f":"'Population 2016'!P218/'Population 2016'!P$5","v":1.2712723994139525E-2},{"$f":"'Population 2016'!Q218/'Population 2016'!Q$5","v":4.9588136449630442E-3},{"$f":"'Population 2016'!R218/'Population 2016'!R$5","v":1.4824080481183798E-2},{"$f":"'Population 2016'!S218/'Population 2016'!S$5","v":9.9290166663430247E-3},{"$f":"'Population 2016'!T218/'Population 2016'!T$5","v":1.676570359650633E-2},{"$f":"'Population 2016'!U218/'Population 2016'!U$5","v":0},{"$f":"'Population 2016'!V218/'Population 2016'!V$5","v":7.8994970271941134E-3},{"$f":"'Population 2016'!W218/'Population 2016'!W$5","v":6.6610449800299388E-3},{"$f":"'Population 2016'!X218/'Population 2016'!X$5","v":6.6610449800299388E-3},{"$f":"'Population 2016'!Y218/'Population 2016'!Y$5","v":6.812292332395351E-3},{"$f":"'Population 2016'!Z218/'Population 2016'!Z$5","v":4.9614485958693957E-3},{"$f":"'Population 2016'!AA218/'Population 2016'!AA$5","v":5.1795261225240953E-3},{"$f":"'Population 2016'!AB218/'Population 2016'!AB$5","v":1.4149002589480365E-2},{"$f":"'Population 2016'!AC218/'Population 2016'!AC$5","v":6.0154606440349099E-3},{"$f":"'Population 2016'!AD218/'Population 2016'!AD$5","v":2.8657560757750569E-3},{"$f":"'Population 2016'!AE218/'Population 2016'!AE$5","v":3.377858088892083E-3},{"$f":"'Population 2016'!AF218/'Population 2016'!AF$5","v":2.6994827248186522E-3},{"$f":"'Population 2016'!AG218/'Population 2016'!AG$5","v":3.377858088892083E-3},{"$f":"'Population 2016'!AH218/'Population 2016'!AH$5","v":3.6781438377158355E-3},{"$f":"'Population 2016'!AI218/'Population 2016'!AI$5","v":1.2211260827718961E-2},{"$f":"'Population 2016'!AJ218/'Population 2016'!AJ$5","v":5.939268884365502E-3},{"$f":"'Population 2016'!AK218/'Population 2016'!AK$5","v":6.4116264159008339E-3},{"$f":"'Population 2016'!AL218/'Population 2016'!AL$5","v":2.3323460030861463E-3},{"$f":"'Population 2016'!AM218/'Population 2016'!AM$5","v":3.1294029866964154E-3},{"$f":"'Population 2016'!AN218/'Population 2016'!AN$5","v":2.127195374713647E-3},{"$f":"'Population 2016'!AO218/'Population 2016'!AO$5","v":2.127195374713647E-3},{"$f":"'Population 2016'!AP218/'Population 2016'!AP$5","v":5.2866857949051254E-3},{"$f":"'Population 2016'!AQ218/'Population 2016'!AQ$5","v":5.1378308763084342E-3},{"$f":"'Population 2016'!AR218/'Population 2016'!AR$5","v":7.0471216808653927E-3},{"$f":"'Population 2016'!AS218/'Population 2016'!AS$5","v":2.9206096641822294E-3},{"$f":"'Population 2016'!AT218/'Population 2016'!AT$5","v":0},{"$f":"'Population 2016'!AU218/'Population 2016'!AU$5","v":0},{"$f":"'Population 2016'!AV218/'Population 2016'!AV$5","v":3.8433111603843311E-3},{"$f":"'Population 2016'!AW218/'Population 2016'!AW$5","v":4.2559033498077983E-3},{"$f":"'Population 2016'!AX218/'Population 2016'!AX$5","v":6.8747843643380147E-3},{"$f":"'Population 2016'!AY218/'Population 2016'!AY$5","v":5.8382546433707657E-3},{"$f":"'Population 2016'!AZ218/'Population 2016'!AZ$5","v":5.1141626062094795E-3},{"$f":"'Population 2016'!BA218/'Population 2016'!BA$5","v":1.1066724249622112E-3},{"$f":"'Population 2016'!BB218/'Population 2016'!BB$5","v":6.0625729338571908E-3},{"$f":"'Population 2016'!BC218/'Population 2016'!BC$5","v":0},216]
[null,"Female 35-39",{"$f":"'Population 2016'!C219/'Population 2016'!C$5","v":1.5691044860032814E-2},{"$f":"'Population 2016'!D219/'Population 2016'!D$5","v":1.5384916326790099E-2},{"$f":"'Population 2016'!E219/'Population 2016'!E$5","v":1.5104139809393444E-2},{"$f":"'Population 2016'!F219/'Population 2016'!F$5","v":5.9232552150399178E-3},{"$f":"'Population 2016'!G219/'Population 2016'!G$5","v":2.2735884804850324E-3},{"$f":"'Population 2016'!H219/'Population 2016'!H$5","v":3.9978859516297954E-3},{"$f":"'Population 2016'!I219/'Population 2016'!I$5","v":3.255589984088435E-3},{"$f":"'Population 2016'!J219/'Population 2016'!J$5","v":6.8666395760596435E-3},{"$f":"'Population 2016'!K219/'Population 2016'!K$5","v":4.5834711524831073E-3},{"$f":"'Population 2016'!L219/'Population 2016'!L$5","v":2.7639667688593079E-3},{"$f":"'Population 2016'!M219/'Population 2016'!M$5","v":2.7639667688593079E-3},{"$f":"'Population 2016'!N219/'Population 2016'!N$5","v":4.5972946689063739E-3},{"$f":"'Population 2016'!O219/'Population 2016'!O$5","v":4.0023379994254069E-3},{"$f":"'Population 2016'!P219/'Population 2016'!P$5","v":1.8235095232728503E-2},{"$f":"'Population 2016'!Q219/'Population 2016'!Q$5","v":6.4629087789802708E-3},{"$f":"'Population 2016'!R219/'Population 2016'!R$5","v":2.2874860275722574E-2},{"$f":"'Population 2016'!S219/'Population 2016'!S$5","v":1.0281197095703045E-2},{"$f":"'Population 2016'!T219/'Population 2016'!T$5","v":1.621429202942723E-2},{"$f":"'Population 2016'!U219/'Population 2016'!U$5","v":0},{"$f":"'Population 2016'!V219/'Population 2016'!V$5","v":8.2353210554033315E-3},{"$f":"'Population 2016'!W219/'Population 2016'!W$5","v":7.4944927081494845E-3},{"$f":"'Population 2016'!X219/'Population 2016'!X$5","v":7.4944927081494845E-3},{"$f":"'Population 2016'!Y219/'Population 2016'!Y$5","v":7.5793707572216658E-3},{"$f":"'Population 2016'!Z219/'Population 2016'!Z$5","v":3.9122464347452392E-3},{"$f":"'Population 2016'!AA219/'Population 2016'!AA$5","v":6.0339220426839195E-3},{"$f":"'Population 2016'!AB219/'Population 2016'!AB$5","v":1.3712987318710786E-2},{"$f":"'Population 2016'!AC219/'Population 2016'!AC$5","v":6.8770285113803498E-3},{"$f":"'Population 2016'!AD219/'Population 2016'!AD$5","v":3.2230451449625965E-3},{"$f":"'Population 2016'!AE219/'Population 2016'!AE$5","v":3.5831990061499603E-3},{"$f":"'Population 2016'!AF219/'Population 2016'!AF$5","v":3.4987709059102084E-3},{"$f":"'Population 2016'!AG219/'Population 2016'!AG$5","v":3.5831990061499603E-3},{"$f":"'Population 2016'!AH219/'Population 2016'!AH$5","v":4.5196585642235491E-3},{"$f":"'Population 2016'!AI219/'Population 2016'!AI$5","v":1.2364380085746784E-2},{"$f":"'Population 2016'!AJ219/'Population 2016'!AJ$5","v":6.650308117000809E-3},{"$f":"'Population 2016'!AK219/'Population 2016'!AK$5","v":5.1167293162189004E-3},{"$f":"'Population 2016'!AL219/'Population 2016'!AL$5","v":2.8023624980046472E-3},{"$f":"'Population 2016'!AM219/'Population 2016'!AM$5","v":3.7523859886776463E-3},{"$f":"'Population 2016'!AN219/'Population 2016'!AN$5","v":3.218064797643722E-3},{"$f":"'Population 2016'!AO219/'Population 2016'!AO$5","v":3.218064797643722E-3},{"$f":"'Population 2016'!AP219/'Population 2016'!AP$5","v":5.4452071080956831E-3},{"$f":"'Population 2016'!AQ219/'Population 2016'!AQ$5","v":6.3983120512961034E-3},{"$f":"'Population 2016'!AR219/'Population 2016'!AR$5","v":7.5022561794588867E-3},{"$f":"'Population 2016'!AS219/'Population 2016'!AS$5","v":3.255589984088435E-3},{"$f":"'Population 2016'!AT219/'Population 2016'!AT$5","v":0},{"$f":"'Population 2016'!AU219/'Population 2016'!AU$5","v":0},{"$f":"'Population 2016'!AV219/'Population 2016'!AV$5","v":5.4165346848273682E-3},{"$f":"'Population 2016'!AW219/'Population 2016'!AW$5","v":5.3275062541948866E-3},{"$f":"'Population 2016'!AX219/'Population 2016'!AX$5","v":8.1015116858555777E-3},{"$f":"'Population 2016'!AY219/'Population 2016'!AY$5","v":6.3140662770417065E-3},{"$f":"'Population 2016'!AZ219/'Population 2016'!AZ$5","v":5.2752385938066287E-3},{"$f":"'Population 2016'!BA219/'Population 2016'!BA$5","v":1.6870006478082488E-3},{"$f":"'Population 2016'!BB219/'Population 2016'!BB$5","v":7.2364196294787434E-3},{"$f":"'Population 2016'!BC219/'Population 2016'!BC$5","v":0},217]
[null,"Female 40-44",{"$f":"'Population 2016'!C220/'Population 2016'!C$5","v":1.4459272283072583E-2},{"$f":"'Population 2016'!D220/'Population 2016'!D$5","v":1.5299335895855951E-2},{"$f":"'Population 2016'!E220/'Population 2016'!E$5","v":1.606982969168241E-2},{"$f":"'Population 2016'!F220/'Population 2016'!F$5","v":7.3036312129796553E-3},{"$f":"'Population 2016'!G220/'Population 2016'!G$5","v":2.6254533643696207E-3},{"$f":"'Population 2016'!H220/'Population 2016'!H$5","v":5.0970614079173058E-3},{"$f":"'Population 2016'!I220/'Population 2016'!I$5","v":5.0351729335901515E-3},{"$f":"'Population 2016'!J220/'Population 2016'!J$5","v":8.732574243467156E-3},{"$f":"'Population 2016'!K220/'Population 2016'!K$5","v":5.9065349903132825E-3},{"$f":"'Population 2016'!L220/'Population 2016'!L$5","v":2.986354899687068E-3},{"$f":"'Population 2016'!M220/'Population 2016'!M$5","v":2.986354899687068E-3},{"$f":"'Population 2016'!N220/'Population 2016'!N$5","v":5.4010175131207752E-3},{"$f":"'Population 2016'!O220/'Population 2016'!O$5","v":5.2307783754866706E-3},{"$f":"'Population 2016'!P220/'Population 2016'!P$5","v":2.1176603178181E-2},{"$f":"'Population 2016'!Q220/'Population 2016'!Q$5","v":7.5087249268516237E-3},{"$f":"'Population 2016'!R220/'Population 2016'!R$5","v":2.5829030712726887E-2},{"$f":"'Population 2016'!S220/'Population 2016'!S$5","v":1.0771072129023375E-2},{"$f":"'Population 2016'!T220/'Population 2016'!T$5","v":1.5453483664723154E-2},{"$f":"'Population 2016'!U220/'Population 2016'!U$5","v":0},{"$f":"'Population 2016'!V220/'Population 2016'!V$5","v":1.0028926660611658E-2},{"$f":"'Population 2016'!W220/'Population 2016'!W$5","v":8.6090247681054263E-3},{"$f":"'Population 2016'!X220/'Population 2016'!X$5","v":8.6090247681054263E-3},{"$f":"'Population 2016'!Y220/'Population 2016'!Y$5","v":9.4076405780512233E-3},{"$f":"'Population 2016'!Z220/'Population 2016'!Z$5","v":3.6431706037558342E-3},{"$f":"'Population 2016'!AA220/'Population 2016'!AA$5","v":6.5840307688832464E-3},{"$f":"'Population 2016'!AB220/'Population 2016'!AB$5","v":1.390745422351412E-2},{"$f":"'Population 2016'!AC220/'Population 2016'!AC$5","v":7.4396850778100246E-3},{"$f":"'Population 2016'!AD220/'Population 2016'!AD$5","v":3.7217611373702034E-3},{"$f":"'Population 2016'!AE220/'Population 2016'!AE$5","v":4.1376194827462296E-3},{"$f":"'Population 2016'!AF220/'Population 2016'!AF$5","v":4.5695154503913498E-3},{"$f":"'Population 2016'!AG220/'Population 2016'!AG$5","v":4.1376194827462296E-3},{"$f":"'Population 2016'!AH220/'Population 2016'!AH$5","v":5.0472307106433963E-3},{"$f":"'Population 2016'!AI220/'Population 2016'!AI$5","v":1.2424534079972E-2},{"$f":"'Population 2016'!AJ220/'Population 2016'!AJ$5","v":6.8873211945459107E-3},{"$f":"'Population 2016'!AK220/'Population 2016'!AK$5","v":6.7510654614485249E-3},{"$f":"'Population 2016'!AL220/'Population 2016'!AL$5","v":3.5916354800376014E-3},{"$f":"'Population 2016'!AM220/'Population 2016'!AM$5","v":4.0385235302853048E-3},{"$f":"'Population 2016'!AN220/'Population 2016'!AN$5","v":2.345369259299662E-3},{"$f":"'Population 2016'!AO220/'Population 2016'!AO$5","v":2.345369259299662E-3},{"$f":"'Population 2016'!AP220/'Population 2016'!AP$5","v":6.8322685985130697E-3},{"$f":"'Population 2016'!AQ220/'Population 2016'!AQ$5","v":7.2957198443579768E-3},{"$f":"'Population 2016'!AR220/'Population 2016'!AR$5","v":8.1331621510774745E-3},{"$f":"'Population 2016'!AS220/'Population 2016'!AS$5","v":5.0351729335901515E-3},{"$f":"'Population 2016'!AT220/'Population 2016'!AT$5","v":0},{"$f":"'Population 2016'!AU220/'Population 2016'!AU$5","v":0},{"$f":"'Population 2016'!AV220/'Population 2016'!AV$5","v":6.7469116249604059E-3},{"$f":"'Population 2016'!AW220/'Population 2016'!AW$5","v":6.1092806150466776E-3},{"$f":"'Population 2016'!AX220/'Population 2016'!AX$5","v":1.0261062908110456E-2},{"$f":"'Population 2016'!AY220/'Population 2016'!AY$5","v":7.4615219852513697E-3},{"$f":"'Population 2016'!AZ220/'Population 2016'!AZ$5","v":6.4516685746500912E-3},{"$f":"'Population 2016'!BA220/'Population 2016'!BA$5","v":1.6600086374433168E-3},{"$f":"'Population 2016'!BB220/'Population 2016'!BB$5","v":9.0662394785358674E-3},{"$f":"'Population 2016'!BC220/'Population 2016'!BC$5","v":0},218]
[null,"Female 45-49",{"$f":"'Population 2016'!C221/'Population 2016'!C$5","v":1.5394601667237405E-2},{"$f":"'Population 2016'!D221/'Population 2016'!D$5","v":1.6362978394608922E-2},{"$f":"'Population 2016'!E221/'Population 2016'!E$5","v":1.7251159062249496E-2},{"$f":"'Population 2016'!F221/'Population 2016'!F$5","v":8.395570435230492E-3},{"$f":"'Population 2016'!G221/'Population 2016'!G$5","v":3.5727818979050508E-3},{"$f":"'Population 2016'!H221/'Population 2016'!H$5","v":6.4718413296456379E-3},{"$f":"'Population 2016'!I221/'Population 2016'!I$5","v":5.1607905535549789E-3},{"$f":"'Population 2016'!J221/'Population 2016'!J$5","v":1.1353175820803928E-2},{"$f":"'Population 2016'!K221/'Population 2016'!K$5","v":6.9697112885696733E-3},{"$f":"'Population 2016'!L221/'Population 2016'!L$5","v":3.9871014884119895E-3},{"$f":"'Population 2016'!M221/'Population 2016'!M$5","v":3.9871014884119895E-3},{"$f":"'Population 2016'!N221/'Population 2016'!N$5","v":6.8637930895909856E-3},{"$f":"'Population 2016'!O221/'Population 2016'!O$5","v":5.9936002219118101E-3},{"$f":"'Population 2016'!P221/'Population 2016'!P$5","v":2.5504339005973178E-2},{"$f":"'Population 2016'!Q221/'Population 2016'!Q$5","v":9.1773304661519842E-3},{"$f":"'Population 2016'!R221/'Population 2016'!R$5","v":3.0286900516314472E-2},{"$f":"'Population 2016'!S221/'Population 2016'!S$5","v":1.1816138866773409E-2},{"$f":"'Population 2016'!T221/'Population 2016'!T$5","v":1.647720134200081E-2},{"$f":"'Population 2016'!U221/'Population 2016'!U$5","v":0},{"$f":"'Population 2016'!V221/'Population 2016'!V$5","v":1.0799795452637364E-2},{"$f":"'Population 2016'!W221/'Population 2016'!W$5","v":9.4490093411514001E-3},{"$f":"'Population 2016'!X221/'Population 2016'!X$5","v":9.4490093411514001E-3},{"$f":"'Population 2016'!Y221/'Population 2016'!Y$5","v":1.1065006915629323E-2},{"$f":"'Population 2016'!Z221/'Population 2016'!Z$5","v":4.1135693586509814E-3},{"$f":"'Population 2016'!AA221/'Population 2016'!AA$5","v":7.9015013051794598E-3},{"$f":"'Population 2016'!AB221/'Population 2016'!AB$5","v":1.4959622529502677E-2},{"$f":"'Population 2016'!AC221/'Population 2016'!AC$5","v":8.9114870888935323E-3},{"$f":"'Population 2016'!AD221/'Population 2016'!AD$5","v":4.2651382634262529E-3},{"$f":"'Population 2016'!AE221/'Population 2016'!AE$5","v":4.5277672255361967E-3},{"$f":"'Population 2016'!AF221/'Population 2016'!AF$5","v":5.9418781764164746E-3},{"$f":"'Population 2016'!AG221/'Population 2016'!AG$5","v":4.5277672255361967E-3},{"$f":"'Population 2016'!AH221/'Population 2016'!AH$5","v":6.0875138162599964E-3},{"$f":"'Population 2016'!AI221/'Population 2016'!AI$5","v":1.3675463732610027E-2},{"$f":"'Population 2016'!AJ221/'Population 2016'!AJ$5","v":7.8353735047263194E-3},{"$f":"'Population 2016'!AK221/'Population 2016'!AK$5","v":7.7442389650880655E-3},{"$f":"'Population 2016'!AL221/'Population 2016'!AL$5","v":4.7622425994572641E-3},{"$f":"'Population 2016'!AM221/'Population 2016'!AM$5","v":5.1975616735061994E-3},{"$f":"'Population 2016'!AN221/'Population 2016'!AN$5","v":4.0907603359877824E-3},{"$f":"'Population 2016'!AO221/'Population 2016'!AO$5","v":4.0907603359877824E-3},{"$f":"'Population 2016'!AP221/'Population 2016'!AP$5","v":8.1242173010161213E-3},{"$f":"'Population 2016'!AQ221/'Population 2016'!AQ$5","v":9.4330574889022849E-3},{"$f":"'Population 2016'!AR221/'Population 2016'!AR$5","v":9.3087591892947377E-3},{"$f":"'Population 2016'!AS221/'Population 2016'!AS$5","v":5.1607905535549789E-3},{"$f":"'Population 2016'!AT221/'Population 2016'!AT$5","v":0},{"$f":"'Population 2016'!AU221/'Population 2016'!AU$5","v":0},{"$f":"'Population 2016'!AV221/'Population 2016'!AV$5","v":9.0169992609017008E-3},{"$f":"'Population 2016'!AW221/'Population 2016'!AW$5","v":7.0245286472634082E-3},{"$f":"'Population 2016'!AX221/'Population 2016'!AX$5","v":1.3724011909477746E-2},{"$f":"'Population 2016'!AY221/'Population 2016'!AY$5","v":8.5447201738012915E-3},{"$f":"'Population 2016'!AZ221/'Population 2016'!AZ$5","v":7.7489055461914154E-3},{"$f":"'Population 2016'!BA221/'Population 2016'!BA$5","v":2.4427769380263443E-3},{"$f":"'Population 2016'!BB221/'Population 2016'!BB$5","v":1.0896059327592992E-2},{"$f":"'Population 2016'!BC221/'Population 2016'!BC$5","v":0},219]
[null,"Female 50-54",{"$f":"'Population 2016'!C222/'Population 2016'!C$5","v":1.6401486304835601E-2},{"$f":"'Population 2016'!D222/'Population 2016'!D$5","v":1.6534139256477218E-2},{"$f":"'Population 2016'!E222/'Population 2016'!E$5","v":1.6655806562003383E-2},{"$f":"'Population 2016'!F222/'Population 2016'!F$5","v":8.6118980169971673E-3},{"$f":"'Population 2016'!G222/'Population 2016'!G$5","v":3.7351810750825528E-3},{"$f":"'Population 2016'!H222/'Population 2016'!H$5","v":6.6631432527163251E-3},{"$f":"'Population 2016'!I222/'Population 2016'!I$5","v":4.6478519386986012E-3},{"$f":"'Population 2016'!J222/'Population 2016'!J$5","v":1.1137556703681281E-2},{"$f":"'Population 2016'!K222/'Population 2016'!K$5","v":7.4186079478334834E-3},{"$f":"'Population 2016'!L222/'Population 2016'!L$5","v":4.7972296792845454E-3},{"$f":"'Population 2016'!M222/'Population 2016'!M$5","v":4.7972296792845454E-3},{"$f":"'Population 2016'!N222/'Population 2016'!N$5","v":7.3058406539089063E-3},{"$f":"'Population 2016'!O222/'Population 2016'!O$5","v":5.7261172368016956E-3},{"$f":"'Population 2016'!P222/'Population 2016'!P$5","v":2.7837259100642397E-2},{"$f":"'Population 2016'!Q222/'Population 2016'!Q$5","v":8.6250455341300332E-3},{"$f":"'Population 2016'!R222/'Population 2016'!R$5","v":3.0326821738436153E-2},{"$f":"'Population 2016'!S222/'Population 2016'!S$5","v":1.1653729846717661E-2},{"$f":"'Population 2016'!T222/'Population 2016'!T$5","v":1.6777336751929939E-2},{"$f":"'Population 2016'!U222/'Population 2016'!U$5","v":0},{"$f":"'Population 2016'!V222/'Population 2016'!V$5","v":9.9373382892818714E-3},{"$f":"'Population 2016'!W222/'Population 2016'!W$5","v":9.1613881643885769E-3},{"$f":"'Population 2016'!X222/'Population 2016'!X$5","v":9.1613881643885769E-3},{"$f":"'Population 2016'!Y222/'Population 2016'!Y$5","v":1.0512551469769956E-2},{"$f":"'Population 2016'!Z222/'Population 2016'!Z$5","v":4.1793864683893969E-3},{"$f":"'Population 2016'!AA222/'Population 2016'!AA$5","v":8.2609322482638022E-3},{"$f":"'Population 2016'!AB222/'Population 2016'!AB$5","v":1.5025127171120641E-2},{"$f":"'Population 2016'!AC222/'Population 2016'!AC$5","v":9.309690725061593E-3},{"$f":"'Population 2016'!AD222/'Population 2016'!AD$5","v":4.4847221705310953E-3},{"$f":"'Population 2016'!AE222/'Population 2016'!AE$5","v":4.7690428033142027E-3},{"$f":"'Population 2016'!AF222/'Population 2016'!AF$5","v":6.0172827218024699E-3},{"$f":"'Population 2016'!AG222/'Population 2016'!AG$5","v":4.7690428033142027E-3},{"$f":"'Population 2016'!AH222/'Population 2016'!AH$5","v":6.3773069671103346E-3},{"$f":"'Population 2016'!AI222/'Population 2016'!AI$5","v":1.3611208329687636E-2},{"$f":"'Population 2016'!AJ222/'Population 2016'!AJ$5","v":7.3892312411120093E-3},{"$f":"'Population 2016'!AK222/'Population 2016'!AK$5","v":7.2665099380209448E-3},{"$f":"'Population 2016'!AL222/'Population 2016'!AL$5","v":4.6026143559000374E-3},{"$f":"'Population 2016'!AM222/'Population 2016'!AM$5","v":5.1142558069621974E-3},{"$f":"'Population 2016'!AN222/'Population 2016'!AN$5","v":3.654412566815752E-3},{"$f":"'Population 2016'!AO222/'Population 2016'!AO$5","v":3.654412566815752E-3},{"$f":"'Population 2016'!AP222/'Population 2016'!AP$5","v":8.9564541952665538E-3},{"$f":"'Population 2016'!AQ222/'Population 2016'!AQ$5","v":1.0200306899764346E-2},{"$f":"'Population 2016'!AR222/'Population 2016'!AR$5","v":9.4520051425965573E-3},{"$f":"'Population 2016'!AS222/'Population 2016'!AS$5","v":4.6478519386986012E-3},{"$f":"'Population 2016'!AT222/'Population 2016'!AT$5","v":0},{"$f":"'Population 2016'!AU222/'Population 2016'!AU$5","v":0},{"$f":"'Population 2016'!AV222/'Population 2016'!AV$5","v":1.0115088163868653E-2},{"$f":"'Population 2016'!AW222/'Population 2016'!AW$5","v":7.7071511379583867E-3},{"$f":"'Population 2016'!AX222/'Population 2016'!AX$5","v":1.3148983477516389E-2},{"$f":"'Population 2016'!AY222/'Population 2016'!AY$5","v":8.6870046816192887E-3},{"$f":"'Population 2016'!AZ222/'Population 2016'!AZ$5","v":8.2695261489607718E-3},{"$f":"'Population 2016'!BA222/'Population 2016'!BA$5","v":2.7666810624055278E-3},{"$f":"'Population 2016'!BB222/'Population 2016'!BB$5","v":1.0226276213032461E-2},{"$f":"'Population 2016'!BC222/'Population 2016'!BC$5","v":0},220]
[null,"Female 55-59",{"$f":"'Population 2016'!C223/'Population 2016'!C$5","v":1.5159491548813461E-2},{"$f":"'Population 2016'!D223/'Population 2016'!D$5","v":1.4580460276009115E-2},{"$f":"'Population 2016'!E223/'Population 2016'!E$5","v":1.404938144281569E-2},{"$f":"'Population 2016'!F223/'Population 2016'!F$5","v":8.0144218387844454E-3},{"$f":"'Population 2016'!G223/'Population 2016'!G$5","v":4.0329128999079741E-3},{"$f":"'Population 2016'!H223/'Population 2016'!H$5","v":6.9257780962540486E-3},{"$f":"'Population 2016'!I223/'Population 2016'!I$5","v":4.1035089188510175E-3},{"$f":"'Population 2016'!J223/'Population 2016'!J$5","v":9.7111533134853177E-3},{"$f":"'Population 2016'!K223/'Population 2016'!K$5","v":6.2845532296933329E-3},{"$f":"'Population 2016'!L223/'Population 2016'!L$5","v":4.2492017854589932E-3},{"$f":"'Population 2016'!M223/'Population 2016'!M$5","v":4.2492017854589932E-3},{"$f":"'Population 2016'!N223/'Population 2016'!N$5","v":7.2415428263717541E-3},{"$f":"'Population 2016'!O223/'Population 2016'!O$5","v":5.5477952467282866E-3},{"$f":"'Population 2016'!P223/'Population 2016'!P$5","v":2.509861377211766E-2},{"$f":"'Population 2016'!Q223/'Population 2016'!Q$5","v":7.2619593189269223E-3},{"$f":"'Population 2016'!R223/'Population 2016'!R$5","v":2.7093202746580083E-2},{"$f":"'Population 2016'!S223/'Population 2016'!S$5","v":1.0568943511671383E-2},{"$f":"'Population 2016'!T223/'Population 2016'!T$5","v":1.5683820142110626E-2},{"$f":"'Population 2016'!U223/'Population 2016'!U$5","v":0},{"$f":"'Population 2016'!V223/'Population 2016'!V$5","v":8.1666297769059926E-3},{"$f":"'Population 2016'!W223/'Population 2016'!W$5","v":8.4750194471136554E-3},{"$f":"'Population 2016'!X223/'Population 2016'!X$5","v":8.4750194471136554E-3},{"$f":"'Population 2016'!Y223/'Population 2016'!Y$5","v":8.9068536271283451E-3},{"$f":"'Population 2016'!Z223/'Population 2016'!Z$5","v":3.7612542418159326E-3},{"$f":"'Population 2016'!AA223/'Population 2016'!AA$5","v":7.3593651692149056E-3},{"$f":"'Population 2016'!AB223/'Population 2016'!AB$5","v":1.3229890586778297E-2},{"$f":"'Population 2016'!AC223/'Population 2016'!AC$5","v":8.337453275716198E-3},{"$f":"'Population 2016'!AD223/'Population 2016'!AD$5","v":4.1199895790688156E-3},{"$f":"'Population 2016'!AE223/'Population 2016'!AE$5","v":4.1530200515405699E-3},{"$f":"'Population 2016'!AF223/'Population 2016'!AF$5","v":5.2481563588653128E-3},{"$f":"'Population 2016'!AG223/'Population 2016'!AG$5","v":4.1530200515405699E-3},{"$f":"'Population 2016'!AH223/'Population 2016'!AH$5","v":5.6026675831065452E-3},{"$f":"'Population 2016'!AI223/'Population 2016'!AI$5","v":1.2289187592965264E-2},{"$f":"'Population 2016'!AJ223/'Population 2016'!AJ$5","v":6.9430889774977E-3},{"$f":"'Population 2016'!AK223/'Population 2016'!AK$5","v":6.2859082508831699E-3},{"$f":"'Population 2016'!AL223/'Population 2016'!AL$5","v":4.7356378921977263E-3},{"$f":"'Population 2016'!AM223/'Population 2016'!AM$5","v":4.4659188455980093E-3},{"$f":"'Population 2016'!AN223/'Population 2016'!AN$5","v":2.8908039707646995E-3},{"$f":"'Population 2016'!AO223/'Population 2016'!AO$5","v":2.8908039707646995E-3},{"$f":"'Population 2016'!AP223/'Population 2016'!AP$5","v":8.3144428768447912E-3},{"$f":"'Population 2016'!AQ223/'Population 2016'!AQ$5","v":9.1590398421658361E-3},{"$f":"'Population 2016'!AR223/'Population 2016'!AR$5","v":8.5354983745037361E-3},{"$f":"'Population 2016'!AS223/'Population 2016'!AS$5","v":4.1035089188510175E-3},{"$f":"'Population 2016'!AT223/'Population 2016'!AT$5","v":0},{"$f":"'Population 2016'!AU223/'Population 2016'!AU$5","v":0},{"$f":"'Population 2016'!AV223/'Population 2016'!AV$5","v":1.1002006123957344E-2},{"$f":"'Population 2016'!AW223/'Population 2016'!AW$5","v":6.7995301726767954E-3},{"$f":"'Population 2016'!AX223/'Population 2016'!AX$5","v":1.1564460687222868E-2},{"$f":"'Population 2016'!AY223/'Population 2016'!AY$5","v":8.1408157645114897E-3},{"$f":"'Population 2016'!AZ223/'Population 2016'!AZ$5","v":7.8467016815182561E-3},{"$f":"'Population 2016'!BA223/'Population 2016'!BA$5","v":2.2943208810192184E-3},{"$f":"'Population 2016'!BB223/'Population 2016'!BB$5","v":7.8164379967270384E-3},{"$f":"'Population 2016'!BC223/'Population 2016'!BC$5","v":0},221]
[null,"Female 60-64",{"$f":"'Population 2016'!C224/'Population 2016'!C$5","v":1.1949727323373523E-2},{"$f":"'Population 2016'!D224/'Population 2016'!D$5","v":1.2494742916385474E-2},{"$f":"'Population 2016'!E224/'Population 2016'!E$5","v":1.2994623076237935E-2},{"$f":"'Population 2016'!F224/'Population 2016'!F$5","v":7.4787535410764869E-3},{"$f":"'Population 2016'!G224/'Population 2016'!G$5","v":2.9637849834894172E-3},{"$f":"'Population 2016'!H224/'Population 2016'!H$5","v":6.4621141132183146E-3},{"$f":"'Population 2016'!I224/'Population 2016'!I$5","v":3.7999330039360187E-3},{"$f":"'Population 2016'!J224/'Population 2016'!J$5","v":9.1721055206787031E-3},{"$f":"'Population 2016'!K224/'Population 2016'!K$5","v":7.3004772480272173E-3},{"$f":"'Population 2016'!L224/'Population 2016'!L$5","v":4.0903531205820215E-3},{"$f":"'Population 2016'!M224/'Population 2016'!M$5","v":4.0903531205820215E-3},{"$f":"'Population 2016'!N224/'Population 2016'!N$5","v":5.4010175131207752E-3},{"$f":"'Population 2016'!O224/'Population 2016'!O$5","v":4.9732021676028573E-3},{"$f":"'Population 2016'!P224/'Population 2016'!P$5","v":2.2483940042826552E-2},{"$f":"'Population 2016'!Q224/'Population 2016'!Q$5","v":6.3454013466351751E-3},{"$f":"'Population 2016'!R224/'Population 2016'!R$5","v":2.3513599829669451E-2},{"$f":"'Population 2016'!S224/'Population 2016'!S$5","v":9.2078853109867943E-3},{"$f":"'Population 2016'!T224/'Population 2016'!T$5","v":1.3350209164134517E-2},{"$f":"'Population 2016'!U224/'Population 2016'!U$5","v":0},{"$f":"'Population 2016'!V224/'Population 2016'!V$5","v":6.8080689355141544E-3},{"$f":"'Population 2016'!W224/'Population 2016'!W$5","v":7.8572876015662284E-3},{"$f":"'Population 2016'!X224/'Population 2016'!X$5","v":7.8572876015662284E-3},{"$f":"'Population 2016'!Y224/'Population 2016'!Y$5","v":7.9410502217770775E-3},{"$f":"'Population 2016'!Z224/'Population 2016'!Z$5","v":3.3044060683375177E-3},{"$f":"'Population 2016'!AA224/'Population 2016'!AA$5","v":6.4132844613551945E-3},{"$f":"'Population 2016'!AB224/'Population 2016'!AB$5","v":1.1494017583902234E-2},{"$f":"'Population 2016'!AC224/'Population 2016'!AC$5","v":7.365215826370803E-3},{"$f":"'Population 2016'!AD224/'Population 2016'!AD$5","v":3.7105958539580932E-3},{"$f":"'Population 2016'!AE224/'Population 2016'!AE$5","v":3.993880840665715E-3},{"$f":"'Population 2016'!AF224/'Population 2016'!AF$5","v":6.0323636308796695E-3},{"$f":"'Population 2016'!AG224/'Population 2016'!AG$5","v":3.993880840665715E-3},{"$f":"'Population 2016'!AH224/'Population 2016'!AH$5","v":4.7035657561093408E-3},{"$f":"'Population 2016'!AI224/'Population 2016'!AI$5","v":1.0479099221279202E-2},{"$f":"'Population 2016'!AJ224/'Population 2016'!AJ$5","v":5.9950366673172904E-3},{"$f":"'Population 2016'!AK224/'Population 2016'!AK$5","v":6.3487673333920015E-3},{"$f":"'Population 2016'!AL224/'Population 2016'!AL$5","v":4.1858072755006116E-3},{"$f":"'Population 2016'!AM224/'Population 2016'!AM$5","v":3.5060903832432062E-3},{"$f":"'Population 2016'!AN224/'Population 2016'!AN$5","v":3.0544343842042109E-3},{"$f":"'Population 2016'!AO224/'Population 2016'!AO$5","v":3.0544343842042109E-3},{"$f":"'Population 2016'!AP224/'Population 2016'!AP$5","v":7.8230268059540607E-3},{"$f":"'Population 2016'!AQ224/'Population 2016'!AQ$5","v":7.6587932262837726E-3},{"$f":"'Population 2016'!AR224/'Population 2016'!AR$5","v":7.4951272984236485E-3},{"$f":"'Population 2016'!AS224/'Population 2016'!AS$5","v":3.7999330039360187E-3},{"$f":"'Population 2016'!AT224/'Population 2016'!AT$5","v":0},{"$f":"'Population 2016'!AU224/'Population 2016'!AU$5","v":0},{"$f":"'Population 2016'!AV224/'Population 2016'!AV$5","v":1.0759159539647345E-2},{"$f":"'Population 2016'!AW224/'Population 2016'!AW$5","v":5.9643663432790289E-3},{"$f":"'Population 2016'!AX224/'Population 2016'!AX$5","v":1.018439245051561E-2},{"$f":"'Population 2016'!AY224/'Population 2016'!AY$5","v":7.3268871821547685E-3},{"$f":"'Population 2016'!AZ224/'Population 2016'!AZ$5","v":6.8601112574857188E-3},{"$f":"'Population 2016'!BA224/'Population 2016'!BA$5","v":1.8084646944504428E-3},{"$f":"'Population 2016'!BB224/'Population 2016'!BB$5","v":6.6080663982930887E-3},{"$f":"'Population 2016'!BC224/'Population 2016'!BC$5","v":0},222]
[null,"Female 65-69",{"$f":"'Population 2016'!C225/'Population 2016'!C$5","v":1.1535729071366144E-2},{"$f":"'Population 2016'!D225/'Population 2016'!D$5","v":1.1675615934587208E-2},{"$f":"'Population 2016'!E225/'Population 2016'!E$5","v":1.1803918075745714E-2},{"$f":"'Population 2016'!F225/'Population 2016'!F$5","v":9.1475663147051241E-3},{"$f":"'Population 2016'!G225/'Population 2016'!G$5","v":3.4239159854923401E-3},{"$f":"'Population 2016'!H225/'Population 2016'!H$5","v":6.9906262057695366E-3},{"$f":"'Population 2016'!I225/'Population 2016'!I$5","v":4.1872539988275686E-3},{"$f":"'Population 2016'!J225/'Population 2016'!J$5","v":9.7857907001816184E-3},{"$f":"'Population 2016'!K225/'Population 2016'!K$5","v":7.1823465482209513E-3},{"$f":"'Population 2016'!L225/'Population 2016'!L$5","v":3.867964989754261E-3},{"$f":"'Population 2016'!M225/'Population 2016'!M$5","v":3.867964989754261E-3},{"$f":"'Population 2016'!N225/'Population 2016'!N$5","v":6.1806286720087443E-3},{"$f":"'Population 2016'!O225/'Population 2016'!O$5","v":5.0524563854132615E-3},{"$f":"'Population 2016'!P225/'Population 2016'!P$5","v":2.2844584695142566E-2},{"$f":"'Population 2016'!Q225/'Population 2016'!Q$5","v":6.9094370218916344E-3},{"$f":"'Population 2016'!R225/'Population 2016'!R$5","v":2.2675254165114175E-2},{"$f":"'Population 2016'!S225/'Population 2016'!S$5","v":9.5662443443706741E-3},{"$f":"'Population 2016'!T225/'Population 2016'!T$5","v":1.3810882118909462E-2},{"$f":"'Population 2016'!U225/'Population 2016'!U$5","v":0},{"$f":"'Population 2016'!V225/'Population 2016'!V$5","v":6.6019951000221341E-3},{"$f":"'Population 2016'!W225/'Population 2016'!W$5","v":8.7691774688029075E-3},{"$f":"'Population 2016'!X225/'Population 2016'!X$5","v":8.7691774688029075E-3},{"$f":"'Population 2016'!Y225/'Population 2016'!Y$5","v":8.1278517034705337E-3},{"$f":"'Population 2016'!Z225/'Population 2016'!Z$5","v":2.7449606355609843E-3},{"$f":"'Population 2016'!AA225/'Population 2016'!AA$5","v":6.0119974195382937E-3},{"$f":"'Population 2016'!AB225/'Population 2016'!AB$5","v":1.0838971167722589E-2},{"$f":"'Population 2016'!AC225/'Population 2016'!AC$5","v":6.9866637982214262E-3},{"$f":"'Population 2016'!AD225/'Population 2016'!AD$5","v":3.8036398823923481E-3},{"$f":"'Population 2016'!AE225/'Population 2016'!AE$5","v":3.9476791342826925E-3},{"$f":"'Population 2016'!AF225/'Population 2016'!AF$5","v":6.1077681762656657E-3},{"$f":"'Population 2016'!AG225/'Population 2016'!AG$5","v":3.9476791342826925E-3},{"$f":"'Population 2016'!AH225/'Population 2016'!AH$5","v":4.2614454362222866E-3},{"$f":"'Population 2016'!AI225/'Population 2016'!AI$5","v":1.0602141482194417E-2},{"$f":"'Population 2016'!AJ225/'Population 2016'!AJ$5","v":5.7859074812480829E-3},{"$f":"'Population 2016'!AK225/'Population 2016'!AK$5","v":6.537344580918497E-3},{"$f":"'Population 2016'!AL225/'Population 2016'!AL$5","v":4.6824284776786507E-3},{"$f":"'Population 2016'!AM225/'Population 2016'!AM$5","v":3.1438909634866766E-3},{"$f":"'Population 2016'!AN225/'Population 2016'!AN$5","v":2.781717028471692E-3},{"$f":"'Population 2016'!AO225/'Population 2016'!AO$5","v":2.781717028471692E-3},{"$f":"'Population 2016'!AP225/'Population 2016'!AP$5","v":9.2417925590095595E-3},{"$f":"'Population 2016'!AQ225/'Population 2016'!AQ$5","v":7.5765879322628373E-3},{"$f":"'Population 2016'!AR225/'Population 2016'!AR$5","v":7.5223061573704945E-3},{"$f":"'Population 2016'!AS225/'Population 2016'!AS$5","v":4.1872539988275686E-3},{"$f":"'Population 2016'!AT225/'Population 2016'!AT$5","v":0},{"$f":"'Population 2016'!AU225/'Population 2016'!AU$5","v":0},{"$f":"'Population 2016'!AV225/'Population 2016'!AV$5","v":1.1804455706894732E-2},{"$f":"'Population 2016'!AW225/'Population 2016'!AW$5","v":5.4380987247544081E-3},{"$f":"'Population 2016'!AX225/'Population 2016'!AX$5","v":1.119388680884777E-2},{"$f":"'Population 2016'!AY225/'Population 2016'!AY$5","v":8.4238548392032066E-3},{"$f":"'Population 2016'!AZ225/'Population 2016'!AZ$5","v":8.119955589049134E-3},{"$f":"'Population 2016'!BA225/'Population 2016'!BA$5","v":1.2821204923342691E-3},{"$f":"'Population 2016'!BB225/'Population 2016'!BB$5","v":5.6344641389834485E-3},{"$f":"'Population 2016'!BC225/'Population 2016'!BC$5","v":0},223]
[null,"Female 70-74",{"$f":"'Population 2016'!C226/'Population 2016'!C$5","v":8.8779625152693806E-3},{"$f":"'Population 2016'!D226/'Population 2016'!D$5","v":8.6827460070616081E-3},{"$f":"'Population 2016'!E226/'Population 2016'!E$5","v":8.5036963420979852E-3},{"$f":"'Population 2016'!F226/'Population 2016'!F$5","v":6.582539273757404E-3},{"$f":"'Population 2016'!G226/'Population 2016'!G$5","v":2.8149190710767065E-3},{"$f":"'Population 2016'!H226/'Population 2016'!H$5","v":5.3856354952612241E-3},{"$f":"'Population 2016'!I226/'Population 2016'!I$5","v":3.1718449041118835E-3},{"$f":"'Population 2016'!J226/'Population 2016'!J$5","v":7.5383760563263475E-3},{"$f":"'Population 2016'!K226/'Population 2016'!K$5","v":4.9142371119406513E-3},{"$f":"'Population 2016'!L226/'Population 2016'!L$5","v":3.7250011913649867E-3},{"$f":"'Population 2016'!M226/'Population 2016'!M$5","v":3.7250011913649867E-3},{"$f":"'Population 2016'!N226/'Population 2016'!N$5","v":4.9670071772449989E-3},{"$f":"'Population 2016'!O226/'Population 2016'!O$5","v":3.4673720292051793E-3},{"$f":"'Population 2016'!P226/'Population 2016'!P$5","v":1.9114166572748788E-2},{"$f":"'Population 2016'!Q226/'Population 2016'!Q$5","v":5.8283686443167532E-3},{"$f":"'Population 2016'!R226/'Population 2016'!R$5","v":1.9521477617501462E-2},{"$f":"'Population 2016'!S226/'Population 2016'!S$5","v":7.1618847213714386E-3},{"$f":"'Population 2016'!T226/'Population 2016'!T$5","v":1.0281382763386271E-2},{"$f":"'Population 2016'!U226/'Population 2016'!U$5","v":0},{"$f":"'Population 2016'!V226/'Population 2016'!V$5","v":4.671006937819128E-3},{"$f":"'Population 2016'!W226/'Population 2016'!W$5","v":6.6022133756920886E-3},{"$f":"'Population 2016'!X226/'Population 2016'!X$5","v":6.6022133756920886E-3},{"$f":"'Population 2016'!Y226/'Population 2016'!Y$5","v":6.0452139075690371E-3},{"$f":"'Population 2016'!Z226/'Population 2016'!Z$5","v":1.6434919461151452E-3},{"$f":"'Population 2016'!AA226/'Population 2016'!AA$5","v":4.574938029720488E-3},{"$f":"'Population 2016'!AB226/'Population 2016'!AB$5","v":8.1942212623972652E-3},{"$f":"'Population 2016'!AC226/'Population 2016'!AC$5","v":5.3907463680725499E-3},{"$f":"'Population 2016'!AD226/'Population 2016'!AD$5","v":3.055565893780937E-3},{"$f":"'Population 2016'!AE226/'Population 2016'!AE$5","v":3.1468495569769712E-3},{"$f":"'Population 2016'!AF226/'Population 2016'!AF$5","v":4.8560527228581341E-3},{"$f":"'Population 2016'!AG226/'Population 2016'!AG$5","v":3.1468495569769712E-3},{"$f":"'Population 2016'!AH226/'Population 2016'!AH$5","v":3.1097034264324793E-3},{"$f":"'Population 2016'!AI226/'Population 2016'!AI$5","v":7.9170859217779326E-3},{"$f":"'Population 2016'!AJ226/'Population 2016'!AJ$5","v":4.1546998299082623E-3},{"$f":"'Population 2016'!AK226/'Population 2016'!AK$5","v":5.6824610587983861E-3},{"$f":"'Population 2016'!AL226/'Population 2016'!AL$5","v":3.6448448945566769E-3},{"$f":"'Population 2016'!AM226/'Population 2016'!AM$5","v":2.0898906519951754E-3},{"$f":"'Population 2016'!AN226/'Population 2016'!AN$5","v":2.4544562015926695E-3},{"$f":"'Population 2016'!AO226/'Population 2016'!AO$5","v":2.4544562015926695E-3},{"$f":"'Population 2016'!AP226/'Population 2016'!AP$5","v":7.4901320482538879E-3},{"$f":"'Population 2016'!AQ226/'Population 2016'!AQ$5","v":5.6927166109497452E-3},{"$f":"'Population 2016'!AR226/'Population 2016'!AR$5","v":5.7302836871374711E-3},{"$f":"'Population 2016'!AS226/'Population 2016'!AS$5","v":3.1718449041118835E-3},{"$f":"'Population 2016'!AT226/'Population 2016'!AT$5","v":0},{"$f":"'Population 2016'!AU226/'Population 2016'!AU$5","v":0},{"$f":"'Population 2016'!AV226/'Population 2016'!AV$5","v":9.5026924295216978E-3},{"$f":"'Population 2016'!AW226/'Population 2016'!AW$5","v":4.1834462139239735E-3},{"$f":"'Population 2016'!AX226/'Population 2016'!AX$5","v":8.957665128998045E-3},{"$f":"'Population 2016'!AY226/'Population 2016'!AY$5","v":6.4594106667482639E-3},{"$f":"'Population 2016'!AZ226/'Population 2016'!AZ$5","v":6.3337379408736072E-3},{"$f":"'Population 2016'!BA226/'Population 2016'!BA$5","v":6.3431224357590158E-4},{"$f":"'Population 2016'!BB226/'Population 2016'!BB$5","v":3.991078765113276E-3},{"$f":"'Population 2016'!BC226/'Population 2016'!BC$5","v":0},224]
[null,"Female 75-79",{"$f":"'Population 2016'!C227/'Population 2016'!C$5","v":7.6819675650258365E-3},{"$f":"'Population 2016'!D227/'Population 2016'!D$5","v":6.9931437849045904E-3},{"$f":"'Population 2016'!E227/'Population 2016'!E$5","v":6.3613649042045016E-3},{"$f":"'Population 2016'!F227/'Population 2016'!F$5","v":5.1197527684779809E-3},{"$f":"'Population 2016'!G227/'Population 2016'!G$5","v":1.9758566556596115E-3},{"$f":"'Population 2016'!H227/'Population 2016'!H$5","v":4.046522033766411E-3},{"$f":"'Population 2016'!I227/'Population 2016'!I$5","v":2.7740557742232646E-3},{"$f":"'Population 2016'!J227/'Population 2016'!J$5","v":6.2031961387591953E-3},{"$f":"'Population 2016'!K227/'Population 2016'!K$5","v":3.8746869536455133E-3},{"$f":"'Population 2016'!L227/'Population 2016'!L$5","v":2.851333534541642E-3},{"$f":"'Population 2016'!M227/'Population 2016'!M$5","v":2.851333534541642E-3},{"$f":"'Population 2016'!N227/'Population 2016'!N$5","v":4.0427259063984377E-3},{"$f":"'Population 2016'!O227/'Population 2016'!O$5","v":2.3974400887647241E-3},{"$f":"'Population 2016'!P227/'Population 2016'!P$5","v":1.7265862729629211E-2},{"$f":"'Population 2016'!Q227/'Population 2016'!Q$5","v":4.571039118224228E-3},{"$f":"'Population 2016'!R227/'Population 2016'!R$5","v":1.4930537073508277E-2},{"$f":"'Population 2016'!S227/'Population 2016'!S$5","v":5.6781370979273431E-3},{"$f":"'Population 2016'!T227/'Population 2016'!T$5","v":8.7085801501142375E-3},{"$f":"'Population 2016'!U227/'Population 2016'!U$5","v":0},{"$f":"'Population 2016'!V227/'Population 2016'!V$5","v":3.4574610176994528E-3},{"$f":"'Population 2016'!W227/'Population 2016'!W$5","v":4.6705756999326706E-3},{"$f":"'Population 2016'!X227/'Population 2016'!X$5","v":4.6705756999326706E-3},{"$f":"'Population 2016'!Y227/'Population 2016'!Y$5","v":4.7733740322093449E-3},{"$f":"'Population 2016'!Z227/'Population 2016'!Z$5","v":1.4363616301736604E-3},{"$f":"'Population 2016'!AA227/'Population 2016'!AA$5","v":3.6255354092629539E-3},{"$f":"'Population 2016'!AB227/'Population 2016'!AB$5","v":6.51361780088636E-3},{"$f":"'Population 2016'!AC227/'Population 2016'!AC$5","v":4.3657598656243728E-3},{"$f":"'Population 2016'!AD227/'Population 2016'!AD$5","v":2.2553872492463434E-3},{"$f":"'Population 2016'!AE227/'Population 2016'!AE$5","v":2.3614205484655901E-3},{"$f":"'Population 2016'!AF227/'Population 2016'!AF$5","v":3.8456318146857893E-3},{"$f":"'Population 2016'!AG227/'Population 2016'!AG$5","v":2.3614205484655901E-3},{"$f":"'Population 2016'!AH227/'Population 2016'!AH$5","v":2.296053425968067E-3},{"$f":"'Population 2016'!AI227/'Population 2016'!AI$5","v":6.478858605302301E-3},{"$f":"'Population 2016'!AJ227/'Population 2016'!AJ$5","v":3.1927055739899061E-3},{"$f":"'Population 2016'!AK227/'Population 2016'!AK$5","v":4.0481249135687616E-3},{"$f":"'Population 2016'!AL227/'Population 2016'!AL$5","v":2.64273425444742E-3},{"$f":"'Population 2016'!AM227/'Population 2016'!AM$5","v":1.5647014933482077E-3},{"$f":"'Population 2016'!AN227/'Population 2016'!AN$5","v":1.2544998363695865E-3},{"$f":"'Population 2016'!AO227/'Population 2016'!AO$5","v":1.2544998363695865E-3},{"$f":"'Population 2016'!AP227/'Population 2016'!AP$5","v":6.190257280091308E-3},{"$f":"'Population 2016'!AQ227/'Population 2016'!AQ$5","v":3.6786869074368388E-3},{"$f":"'Population 2016'!AR227/'Population 2016'!AR$5","v":4.5201561314057734E-3},{"$f":"'Population 2016'!AS227/'Population 2016'!AS$5","v":2.7740557742232646E-3},{"$f":"'Population 2016'!AT227/'Population 2016'!AT$5","v":0},{"$f":"'Population 2016'!AU227/'Population 2016'!AU$5","v":0},{"$f":"'Population 2016'!AV227/'Population 2016'!AV$5","v":7.4754513778904023E-3},{"$f":"'Population 2016'!AW227/'Population 2016'!AW$5","v":3.0660809079260478E-3},{"$f":"'Population 2016'!AX227/'Population 2016'!AX$5","v":7.4625912058985137E-3},{"$f":"'Population 2016'!AY227/'Population 2016'!AY$5","v":4.9111104311373582E-3},{"$f":"'Population 2016'!AZ227/'Population 2016'!AZ$5","v":5.1227916769736124E-3},{"$f":"'Population 2016'!BA227/'Population 2016'!BA$5","v":4.4536817102137769E-4},{"$f":"'Population 2016'!BB227/'Population 2016'!BB$5","v":2.6100826526173327E-3},{"$f":"'Population 2016'!BC227/'Population 2016'!BC$5","v":0},225]
[null,"Female 80-84",{"$f":"'Population 2016'!C228/'Population 2016'!C$5","v":5.9953080198105833E-3},{"$f":"'Population 2016'!D228/'Population 2016'!D$5","v":5.3573349764776072E-3},{"$f":"'Population 2016'!E228/'Population 2016'!E$5","v":4.7721956318940179E-3},{"$f":"'Population 2016'!F228/'Population 2016'!F$5","v":4.0381148596446044E-3},{"$f":"'Population 2016'!G228/'Population 2016'!G$5","v":1.6510583013046067E-3},{"$f":"'Population 2016'!H228/'Population 2016'!H$5","v":3.0219219034217106E-3},{"$f":"'Population 2016'!I228/'Population 2016'!I$5","v":1.6644334645339587E-3},{"$f":"'Population 2016'!J228/'Population 2016'!J$5","v":4.262624084655383E-3},{"$f":"'Population 2016'!K228/'Population 2016'!K$5","v":2.4334924160090724E-3},{"$f":"'Population 2016'!L228/'Population 2016'!L$5","v":2.3033056407160898E-3},{"$f":"'Population 2016'!M228/'Population 2016'!M$5","v":2.3033056407160898E-3},{"$f":"'Population 2016'!N228/'Population 2016'!N$5","v":3.2470402906261803E-3},{"$f":"'Population 2016'!O228/'Population 2016'!O$5","v":1.9219147819022995E-3},{"$f":"'Population 2016'!P228/'Population 2016'!P$5","v":1.2735264284909275E-2},{"$f":"'Population 2016'!Q228/'Population 2016'!Q$5","v":3.2549558759591545E-3},{"$f":"'Population 2016'!R228/'Population 2016'!R$5","v":1.2415500079842445E-2},{"$f":"'Population 2016'!S228/'Population 2016'!S$5","v":4.4477122394615083E-3},{"$f":"'Population 2016'!T228/'Population 2016'!T$5","v":7.3451743344671782E-3},{"$f":"'Population 2016'!U228/'Population 2016'!U$5","v":0},{"$f":"'Population 2016'!V228/'Population 2016'!V$5","v":2.2744445546897061E-3},{"$f":"'Population 2016'!W228/'Population 2016'!W$5","v":3.4416488537642423E-3},{"$f":"'Population 2016'!X228/'Population 2016'!X$5","v":3.4416488537642423E-3},{"$f":"'Population 2016'!Y228/'Population 2016'!Y$5","v":3.2272936837252188E-3},{"$f":"'Population 2016'!Z228/'Population 2016'!Z$5","v":1.2214881248511856E-3},{"$f":"'Population 2016'!AA228/'Population 2016'!AA$5","v":2.7698107240640012E-3},{"$f":"'Population 2016'!AB228/'Population 2016'!AB$5","v":5.0274812441787869E-3},{"$f":"'Population 2016'!AC228/'Population 2016'!AC$5","v":3.3955910065967343E-3},{"$f":"'Population 2016'!AD228/'Population 2016'!AD$5","v":1.9241505080203952E-3},{"$f":"'Population 2016'!AE228/'Population 2016'!AE$5","v":2.0277415579215393E-3},{"$f":"'Population 2016'!AF228/'Population 2016'!AF$5","v":2.8050490883590462E-3},{"$f":"'Population 2016'!AG228/'Population 2016'!AG$5","v":2.0277415579215393E-3},{"$f":"'Population 2016'!AH228/'Population 2016'!AH$5","v":1.645876484957692E-3},{"$f":"'Population 2016'!AI228/'Population 2016'!AI$5","v":5.2320303613614489E-3},{"$f":"'Population 2016'!AJ228/'Population 2016'!AJ$5","v":2.1470596436438671E-3},{"$f":"'Population 2016'!AK228/'Population 2016'!AK$5","v":3.33153137296808E-3},{"$f":"'Population 2016'!AL228/'Population 2016'!AL$5","v":2.0751671662439476E-3},{"$f":"'Population 2016'!AM228/'Population 2016'!AM$5","v":9.960484043304563E-4},{"$f":"'Population 2016'!AN228/'Population 2016'!AN$5","v":1.4726737209556015E-3},{"$f":"'Population 2016'!AO228/'Population 2016'!AO$5","v":1.4726737209556015E-3},{"$f":"'Population 2016'!AP228/'Population 2016'!AP$5","v":4.7714915270358101E-3},{"$f":"'Population 2016'!AQ228/'Population 2016'!AQ$5","v":2.6100180851646847E-3},{"$f":"'Population 2016'!AR228/'Population 2016'!AR$5","v":3.4842406059727104E-3},{"$f":"'Population 2016'!AS228/'Population 2016'!AS$5","v":1.6644334645339587E-3},{"$f":"'Population 2016'!AT228/'Population 2016'!AT$5","v":0},{"$f":"'Population 2016'!AU228/'Population 2016'!AU$5","v":0},{"$f":"'Population 2016'!AV228/'Population 2016'!AV$5","v":5.3215077605321508E-3},{"$f":"'Population 2016'!AW228/'Population 2016'!AW$5","v":2.3300689486850938E-3},{"$f":"'Population 2016'!AX228/'Population 2016'!AX$5","v":5.2519263452470702E-3},{"$f":"'Population 2016'!AY228/'Population 2016'!AY$5","v":3.7498852544291792E-3},{"$f":"'Population 2016'!AZ228/'Population 2016'!AZ$5","v":4.0211469760859687E-3},{"$f":"'Population 2016'!BA228/'Population 2016'!BA$5","v":2.9691211401425179E-4},{"$f":"'Population 2016'!BB228/'Population 2016'!BB$5","v":1.6502903544326523E-3},{"$f":"'Population 2016'!BC228/'Population 2016'!BC$5","v":0},226]
[null,"Female 85-89",{"$f":"'Population 2016'!C229/'Population 2016'!C$5","v":4.3955369966215702E-3},{"$f":"'Population 2016'!D229/'Population 2016'!D$5","v":3.6824036853378714E-3},{"$f":"'Population 2016'!E229/'Population 2016'!E$5","v":3.028328465818797E-3},{"$f":"'Population 2016'!F229/'Population 2016'!F$5","v":2.6062322946175638E-3},{"$f":"'Population 2016'!G229/'Population 2016'!G$5","v":9.4732853353543013E-4},{"$f":"'Population 2016'!H229/'Population 2016'!H$5","v":1.7930502281032251E-3},{"$f":"'Population 2016'!I229/'Population 2016'!I$5","v":8.7932333975378944E-4},{"$f":"'Population 2016'!J229/'Population 2016'!J$5","v":2.3883963742816153E-3},{"$f":"'Population 2016'!K229/'Population 2016'!K$5","v":1.0631762982563908E-3},{"$f":"'Population 2016'!L229/'Population 2016'!L$5","v":1.2390195860403793E-3},{"$f":"'Population 2016'!M229/'Population 2016'!M$5","v":1.2390195860403793E-3},{"$f":"'Population 2016'!N229/'Population 2016'!N$5","v":2.1137910802838749E-3},{"$f":"'Population 2016'!O229/'Population 2016'!O$5","v":1.1689997127034605E-3},{"$f":"'Population 2016'!P229/'Population 2016'!P$5","v":7.4270258086329317E-3},{"$f":"'Population 2016'!Q229/'Population 2016'!Q$5","v":2.1386352686807442E-3},{"$f":"'Population 2016'!R229/'Population 2016'!R$5","v":8.6229839782828548E-3},{"$f":"'Population 2016'!S229/'Population 2016'!S$5","v":2.9630819582997189E-3},{"$f":"'Population 2016'!T229/'Population 2016'!T$5","v":5.1278949107271656E-3},{"$f":"'Population 2016'!U229/'Population 2016'!U$5","v":0},{"$f":"'Population 2016'!V229/'Population 2016'!V$5","v":1.2288106486746399E-3},{"$f":"'Population 2016'!W229/'Population 2016'!W$5","v":2.1310114460154662E-3},{"$f":"'Population 2016'!X229/'Population 2016'!X$5","v":2.1310114460154662E-3},{"$f":"'Population 2016'!Y229/'Population 2016'!Y$5","v":1.7845503251140682E-3},{"$f":"'Population 2016'!Z229/'Population 2016'!Z$5","v":8.1884227703970126E-4},{"$f":"'Population 2016'!AA229/'Population 2016'!AA$5","v":1.6974973374870529E-3},{"$f":"'Population 2016'!AB229/'Population 2016'!AB$5","v":3.4103354042352846E-3},{"$f":"'Population 2016'!AC229/'Population 2016'!AC$5","v":2.1637454723729419E-3},{"$f":"'Population 2016'!AD229/'Population 2016'!AD$5","v":1.1537459525847631E-3},{"$f":"'Population 2016'!AE229/'Population 2016'!AE$5","v":1.2320455035472644E-3},{"$f":"'Population 2016'!AF229/'Population 2016'!AF$5","v":1.9906799981902908E-3},{"$f":"'Population 2016'!AG229/'Population 2016'!AG$5","v":1.2320455035472644E-3},{"$f":"'Population 2016'!AH229/'Population 2016'!AH$5","v":8.6009121053658177E-4},{"$f":"'Population 2016'!AI229/'Population 2016'!AI$5","v":3.5832640650975589E-3},{"$f":"'Population 2016'!AJ229/'Population 2016'!AJ$5","v":8.7834258149067283E-4},{"$f":"'Population 2016'!AK229/'Population 2016'!AK$5","v":2.0114906402826146E-3},{"$f":"'Population 2016'!AL229/'Population 2016'!AL$5","v":1.179475355172842E-3},{"$f":"'Population 2016'!AM229/'Population 2016'!AM$5","v":4.4550528630053136E-4},{"$f":"'Population 2016'!AN229/'Population 2016'!AN$5","v":7.6360859605105274E-4},{"$f":"'Population 2016'!AO229/'Population 2016'!AO$5","v":7.6360859605105274E-4},{"$f":"'Population 2016'!AP229/'Population 2016'!AP$5","v":3.0753134758968342E-3},{"$f":"'Population 2016'!AQ229/'Population 2016'!AQ$5","v":1.5070970570504741E-3},{"$f":"'Population 2016'!AR229/'Population 2016'!AR$5","v":2.2197553323473201E-3},{"$f":"'Population 2016'!AS229/'Population 2016'!AS$5","v":8.7932333975378944E-4},{"$f":"'Population 2016'!AT229/'Population 2016'!AT$5","v":0},{"$f":"'Population 2016'!AU229/'Population 2016'!AU$5","v":0},{"$f":"'Population 2016'!AV229/'Population 2016'!AV$5","v":3.1886812374617253E-3},{"$f":"'Population 2016'!AW229/'Population 2016'!AW$5","v":1.2966013789737019E-3},{"$f":"'Population 2016'!AX229/'Population 2016'!AX$5","v":3.1051535325913337E-3},{"$f":"'Population 2016'!AY229/'Population 2016'!AY$5","v":2.3805881092989812E-3},{"$f":"'Population 2016'!AZ229/'Population 2016'!AZ$5","v":2.6002266569254045E-3},{"$f":"'Population 2016'!BA229/'Population 2016'!BA$5","v":1.349600518246599E-4},{"$f":"'Population 2016'!BB229/'Population 2016'!BB$5","v":1.1876566567465112E-3},{"$f":"'Population 2016'!BC229/'Population 2016'!BC$5","v":0},227]
[null,"Female 90+",{"$f":"'Population 2016'!C230/'Population 2016'!C$5","v":2.6782109142205845E-3},{"$f":"'Population 2016'!D230/'Population 2016'!D$5","v":2.2960007042046888E-3},{"$f":"'Population 2016'!E230/'Population 2016'!E$5","v":1.9454432094656361E-3},{"$f":"'Population 2016'!F230/'Population 2016'!F$5","v":1.3288694308524337E-3},{"$f":"'Population 2016'!G230/'Population 2016'!G$5","v":5.9546364965084176E-4},{"$f":"'Population 2016'!H230/'Population 2016'!H$5","v":1.1672659712787723E-3},{"$f":"'Population 2016'!I230/'Population 2016'!I$5","v":7.2230131479775563E-4},{"$f":"'Population 2016'!J230/'Population 2016'!J$5","v":1.3434729605334085E-3},{"$f":"'Population 2016'!K230/'Population 2016'!K$5","v":4.2527051930255636E-4},{"$f":"'Population 2016'!L230/'Population 2016'!L$5","v":7.2276142519022129E-4},{"$f":"'Population 2016'!M230/'Population 2016'!M$5","v":7.2276142519022129E-4},{"$f":"'Population 2016'!N230/'Population 2016'!N$5","v":9.4035572773084925E-4},{"$f":"'Population 2016'!O230/'Population 2016'!O$5","v":5.2505919299392718E-4},{"$f":"'Population 2016'!P230/'Population 2016'!P$5","v":4.3953567001014313E-3},{"$f":"'Population 2016'!Q230/'Population 2016'!Q$5","v":1.3395847287340924E-3},{"$f":"'Population 2016'!R230/'Population 2016'!R$5","v":4.7373183584393467E-3},{"$f":"'Population 2016'!S230/'Population 2016'!S$5","v":1.8853568849949954E-3},{"$f":"'Population 2016'!T230/'Population 2016'!T$5","v":3.1828313238996199E-3},{"$f":"'Population 2016'!U230/'Population 2016'!U$5","v":0},{"$f":"'Population 2016'!V230/'Population 2016'!V$5","v":9.3878080613031501E-4},{"$f":"'Population 2016'!W230/'Population 2016'!W$5","v":1.411958504108407E-3},{"$f":"'Population 2016'!X230/'Population 2016'!X$5","v":1.411958504108407E-3},{"$f":"'Population 2016'!Y230/'Population 2016'!Y$5","v":1.1327323889922258E-3},{"$f":"'Population 2016'!Z230/'Population 2016'!Z$5","v":5.3428006728831569E-4},{"$f":"'Population 2016'!AA230/'Population 2016'!AA$5","v":9.6468341840751494E-4},{"$f":"'Population 2016'!AB230/'Population 2016'!AB$5","v":2.1329948926849737E-3},{"$f":"'Population 2016'!AC230/'Population 2016'!AC$5","v":1.2597715035135007E-3},{"$f":"'Population 2016'!AD230/'Population 2016'!AD$5","v":6.4758643790241541E-4},{"$f":"'Population 2016'!AE230/'Population 2016'!AE$5","v":6.6735798108810153E-4},{"$f":"'Population 2016'!AF230/'Population 2016'!AF$5","v":1.3572818169479257E-3},{"$f":"'Population 2016'!AG230/'Population 2016'!AG$5","v":6.6735798108810153E-4},{"$f":"'Population 2016'!AH230/'Population 2016'!AH$5","v":4.3468972627550782E-4},{"$f":"'Population 2016'!AI230/'Population 2016'!AI$5","v":2.2352677399597514E-3},{"$f":"'Population 2016'!AJ230/'Population 2016'!AJ$5","v":6.4132950394557066E-4},{"$f":"'Population 2016'!AK230/'Population 2016'!AK$5","v":1.294897099681933E-3},{"$f":"'Population 2016'!AL230/'Population 2016'!AL$5","v":6.4738120998208612E-4},{"$f":"'Population 2016'!AM230/'Population 2016'!AM$5","v":2.3905161703930951E-4},{"$f":"'Population 2016'!AN230/'Population 2016'!AN$5","v":3.8180429802552637E-4},{"$f":"'Population 2016'!AO230/'Population 2016'!AO$5","v":3.8180429802552637E-4},{"$f":"'Population 2016'!AP230/'Population 2016'!AP$5","v":2.0924813341153719E-3},{"$f":"'Population 2016'!AQ230/'Population 2016'!AQ$5","v":6.7819367567271331E-4},{"$f":"'Population 2016'!AR230/'Population 2016'!AR$5","v":1.349363513451196E-3},{"$f":"'Population 2016'!AS230/'Population 2016'!AS$5","v":7.2230131479775563E-4},{"$f":"'Population 2016'!AT230/'Population 2016'!AT$5","v":0},{"$f":"'Population 2016'!AU230/'Population 2016'!AU$5","v":0},{"$f":"'Population 2016'!AV230/'Population 2016'!AV$5","v":2.4707000316756414E-3},{"$f":"'Population 2016'!AW230/'Population 2016'!AW$5","v":6.4067362255171149E-4},{"$f":"'Population 2016'!AX230/'Population 2016'!AX$5","v":1.8400909822763459E-3},{"$f":"'Population 2016'!AY230/'Population 2016'!AY$5","v":1.4412043695113369E-3},{"$f":"'Population 2016'!AZ230/'Population 2016'!AZ$5","v":1.4669420299026066E-3},{"$f":"'Population 2016'!BA230/'Population 2016'!BA$5","v":9.4472036277261928E-5},{"$f":"'Population 2016'!BB230/'Population 2016'!BB$5","v":7.3883292018532966E-4},{"$f":"'Population 2016'!BC230/'Population 2016'!BC$5","v":0},228]
[null,"Male 0-4",{"$f":"'Population 2016'!C231/'Population 2016'!C$5","v":0},{"$f":"'Population 2016'!D231/'Population 2016'!D$5","v":0},{"$f":"'Population 2016'!E231/'Population 2016'!E$5","v":0},{"$f":"'Population 2016'!F231/'Population 2016'!F$5","v":0},{"$f":"'Population 2016'!G231/'Population 2016'!G$5","v":0},{"$f":"'Population 2016'!H231/'Population 2016'!H$5","v":0},{"$f":"'Population 2016'!I231/'Population 2016'!I$5","v":0},{"$f":"'Population 2016'!J231/'Population 2016'!J$5","v":0},{"$f":"'Population 2016'!K231/'Population 2016'!K$5","v":0},{"$f":"'Population 2016'!L231/'Population 2016'!L$5","v":0},{"$f":"'Population 2016'!M231/'Population 2016'!M$5","v":0},{"$f":"'Population 2016'!N231/'Population 2016'!N$5","v":0},{"$f":"'Population 2016'!O231/'Population 2016'!O$5","v":0},{"$f":"'Population 2016'!P231/'Population 2016'!P$5","v":0},{"$f":"'Population 2016'!Q231/'Population 2016'!Q$5","v":0},{"$f":"'Population 2016'!R231/'Population 2016'!R$5","v":0},{"$f":"'Population 2016'!S231/'Population 2016'!S$5","v":0},{"$f":"'Population 2016'!T231/'Population 2016'!T$5","v":0},{"$f":"'Population 2016'!U231/'Population 2016'!U$5","v":0},{"$f":"'Population 2016'!V231/'Population 2016'!V$5","v":0},{"$f":"'Population 2016'!W231/'Population 2016'!W$5","v":0},{"$f":"'Population 2016'!X231/'Population 2016'!X$5","v":0},{"$f":"'Population 2016'!Y231/'Population 2016'!Y$5","v":0},{"$f":"'Population 2016'!Z231/'Population 2016'!Z$5","v":0},{"$f":"'Population 2016'!AA231/'Population 2016'!AA$5","v":0},{"$f":"'Population 2016'!AB231/'Population 2016'!AB$5","v":0},{"$f":"'Population 2016'!AC231/'Population 2016'!AC$5","v":0},{"$f":"'Population 2016'!AD231/'Population 2016'!AD$5","v":0},{"$f":"'Population 2016'!AE231/'Population 2016'!AE$5","v":0},{"$f":"'Population 2016'!AF231/'Population 2016'!AF$5","v":0},{"$f":"'Population 2016'!AG231/'Population 2016'!AG$5","v":0},{"$f":"'Population 2016'!AH231/'Population 2016'!AH$5","v":0},{"$f":"'Population 2016'!AI231/'Population 2016'!AI$5","v":0},{"$f":"'Population 2016'!AJ231/'Population 2016'!AJ$5","v":0},{"$f":"'Population 2016'!AK231/'Population 2016'!AK$5","v":0},{"$f":"'Population 2016'!AL231/'Population 2016'!AL$5","v":0},{"$f":"'Population 2016'!AM231/'Population 2016'!AM$5","v":0},{"$f":"'Population 2016'!AN231/'Population 2016'!AN$5","v":0},{"$f":"'Population 2016'!AO231/'Population 2016'!AO$5","v":0},{"$f":"'Population 2016'!AP231/'Population 2016'!AP$5","v":0},{"$f":"'Population 2016'!AQ231/'Population 2016'!AQ$5","v":0},{"$f":"'Population 2016'!AR231/'Population 2016'!AR$5","v":0},{"$f":"'Population 2016'!AS231/'Population 2016'!AS$5","v":0},{"$f":"'Population 2016'!AT231/'Population 2016'!AT$5","v":0},{"$f":"'Population 2016'!AU231/'Population 2016'!AU$5","v":0},{"$f":"'Population 2016'!AV231/'Population 2016'!AV$5","v":0},{"$f":"'Population 2016'!AW231/'Population 2016'!AW$5","v":0},{"$f":"'Population 2016'!AX231/'Population 2016'!AX$5","v":0},{"$f":"'Population 2016'!AY231/'Population 2016'!AY$5","v":0},{"$f":"'Population 2016'!AZ231/'Population 2016'!AZ$5","v":0},{"$f":"'Population 2016'!BA231/'Population 2016'!BA$5","v":0},{"$f":"'Population 2016'!BB231/'Population 2016'!BB$5","v":0},{"$f":"'Population 2016'!BC231/'Population 2016'!BC$5","v":0},229]
[null,"Male 5-9",{"$f":"'Population 2016'!C232/'Population 2016'!C$5","v":0},{"$f":"'Population 2016'!D232/'Population 2016'!D$5","v":0},{"$f":"'Population 2016'!E232/'Population 2016'!E$5","v":0},{"$f":"'Population 2016'!F232/'Population 2016'!F$5","v":0},{"$f":"'Population 2016'!G232/'Population 2016'!G$5","v":0},{"$f":"'Population 2016'!H232/'Population 2016'!H$5","v":0},{"$f":"'Population 2016'!I232/'Population 2016'!I$5","v":0},{"$f":"'Population 2016'!J232/'Population 2016'!J$5","v":0},{"$f":"'Population 2016'!K232/'Population 2016'!K$5","v":0},{"$f":"'Population 2016'!L232/'Population 2016'!L$5","v":0},{"$f":"'Population 2016'!M232/'Population 2016'!M$5","v":0},{"$f":"'Population 2016'!N232/'Population 2016'!N$5","v":0},{"$f":"'Population 2016'!O232/'Population 2016'!O$5","v":0},{"$f":"'Population 2016'!P232/'Population 2016'!P$5","v":0},{"$f":"'Population 2016'!Q232/'Population 2016'!Q$5","v":0},{"$f":"'Population 2016'!R232/'Population 2016'!R$5","v":0},{"$f":"'Population 2016'!S232/'Population 2016'!S$5","v":0},{"$f":"'Population 2016'!T232/'Population 2016'!T$5","v":0},{"$f":"'Population 2016'!U232/'Population 2016'!U$5","v":0},{"$f":"'Population 2016'!V232/'Population 2016'!V$5","v":0},{"$f":"'Population 2016'!W232/'Population 2016'!W$5","v":0},{"$f":"'Population 2016'!X232/'Population 2016'!X$5","v":0},{"$f":"'Population 2016'!Y232/'Population 2016'!Y$5","v":0},{"$f":"'Population 2016'!Z232/'Population 2016'!Z$5","v":0},{"$f":"'Population 2016'!AA232/'Population 2016'!AA$5","v":0},{"$f":"'Population 2016'!AB232/'Population 2016'!AB$5","v":0},{"$f":"'Population 2016'!AC232/'Population 2016'!AC$5","v":0},{"$f":"'Population 2016'!AD232/'Population 2016'!AD$5","v":0},{"$f":"'Population 2016'!AE232/'Population 2016'!AE$5","v":0},{"$f":"'Population 2016'!AF232/'Population 2016'!AF$5","v":0},{"$f":"'Population 2016'!AG232/'Population 2016'!AG$5","v":0},{"$f":"'Population 2016'!AH232/'Population 2016'!AH$5","v":0},{"$f":"'Population 2016'!AI232/'Population 2016'!AI$5","v":0},{"$f":"'Population 2016'!AJ232/'Population 2016'!AJ$5","v":0},{"$f":"'Population 2016'!AK232/'Population 2016'!AK$5","v":0},{"$f":"'Population 2016'!AL232/'Population 2016'!AL$5","v":0},{"$f":"'Population 2016'!AM232/'Population 2016'!AM$5","v":0},{"$f":"'Population 2016'!AN232/'Population 2016'!AN$5","v":0},{"$f":"'Population 2016'!AO232/'Population 2016'!AO$5","v":0},{"$f":"'Population 2016'!AP232/'Population 2016'!AP$5","v":0},{"$f":"'Population 2016'!AQ232/'Population 2016'!AQ$5","v":0},{"$f":"'Population 2016'!AR232/'Population 2016'!AR$5","v":0},{"$f":"'Population 2016'!AS232/'Population 2016'!AS$5","v":0},{"$f":"'Population 2016'!AT232/'Population 2016'!AT$5","v":0},{"$f":"'Population 2016'!AU232/'Population 2016'!AU$5","v":0},{"$f":"'Population 2016'!AV232/'Population 2016'!AV$5","v":0},{"$f":"'Population 2016'!AW232/'Population 2016'!AW$5","v":0},{"$f":"'Population 2016'!AX232/'Population 2016'!AX$5","v":0},{"$f":"'Population 2016'!AY232/'Population 2016'!AY$5","v":0},{"$f":"'Population 2016'!AZ232/'Population 2016'!AZ$5","v":0},{"$f":"'Population 2016'!BA232/'Population 2016'!BA$5","v":0},{"$f":"'Population 2016'!BB232/'Population 2016'!BB$5","v":0},{"$f":"'Population 2016'!BC232/'Population 2016'!BC$5","v":0},230]
[null,"Male 10-15",{"$f":"'Population 2016'!C233/'Population 2016'!C$5","v":0},{"$f":"'Population 2016'!D233/'Population 2016'!D$5","v":0},{"$f":"'Population 2016'!E233/'Population 2016'!E$5","v":0},{"$f":"'Population 2016'!F233/'Population 2016'!F$5","v":0},{"$f":"'Population 2016'!G233/'Population 2016'!G$5","v":0},{"$f":"'Population 2016'!H233/'Population 2016'!H$5","v":0},{"$f":"'Population 2016'!I233/'Population 2016'!I$5","v":0},{"$f":"'Population 2016'!J233/'Population 2016'!J$5","v":0},{"$f":"'Population 2016'!K233/'Population 2016'!K$5","v":0},{"$f":"'Population 2016'!L233/'Population 2016'!L$5","v":0},{"$f":"'Population 2016'!M233/'Population 2016'!M$5","v":0},{"$f":"'Population 2016'!N233/'Population 2016'!N$5","v":0},{"$f":"'Population 2016'!O233/'Population 2016'!O$5","v":0},{"$f":"'Population 2016'!P233/'Population 2016'!P$5","v":0},{"$f":"'Population 2016'!Q233/'Population 2016'!Q$5","v":0},{"$f":"'Population 2016'!R233/'Population 2016'!R$5","v":0},{"$f":"'Population 2016'!S233/'Population 2016'!S$5","v":0},{"$f":"'Population 2016'!T233/'Population 2016'!T$5","v":0},{"$f":"'Population 2016'!U233/'Population 2016'!U$5","v":0},{"$f":"'Population 2016'!V233/'Population 2016'!V$5","v":0},{"$f":"'Population 2016'!W233/'Population 2016'!W$5","v":0},{"$f":"'Population 2016'!X233/'Population 2016'!X$5","v":0},{"$f":"'Population 2016'!Y233/'Population 2016'!Y$5","v":0},{"$f":"'Population 2016'!Z233/'Population 2016'!Z$5","v":0},{"$f":"'Population 2016'!AA233/'Population 2016'!AA$5","v":0},{"$f":"'Population 2016'!AB233/'Population 2016'!AB$5","v":0},{"$f":"'Population 2016'!AC233/'Population 2016'!AC$5","v":0},{"$f":"'Population 2016'!AD233/'Population 2016'!AD$5","v":0},{"$f":"'Population 2016'!AE233/'Population 2016'!AE$5","v":0},{"$f":"'Population 2016'!AF233/'Population 2016'!AF$5","v":0},{"$f":"'Population 2016'!AG233/'Population 2016'!AG$5","v":0},{"$f":"'Population 2016'!AH233/'Population 2016'!AH$5","v":0},{"$f":"'Population 2016'!AI233/'Population 2016'!AI$5","v":0},{"$f":"'Population 2016'!AJ233/'Population 2016'!AJ$5","v":0},{"$f":"'Population 2016'!AK233/'Population 2016'!AK$5","v":0},{"$f":"'Population 2016'!AL233/'Population 2016'!AL$5","v":0},{"$f":"'Population 2016'!AM233/'Population 2016'!AM$5","v":0},{"$f":"'Population 2016'!AN233/'Population 2016'!AN$5","v":0},{"$f":"'Population 2016'!AO233/'Population 2016'!AO$5","v":0},{"$f":"'Population 2016'!AP233/'Population 2016'!AP$5","v":0},{"$f":"'Population 2016'!AQ233/'Population 2016'!AQ$5","v":0},{"$f":"'Population 2016'!AR233/'Population 2016'!AR$5","v":0},{"$f":"'Population 2016'!AS233/'Population 2016'!AS$5","v":0},{"$f":"'Population 2016'!AT233/'Population 2016'!AT$5","v":0},{"$f":"'Population 2016'!AU233/'Population 2016'!AU$5","v":0},{"$f":"'Population 2016'!AV233/'Population 2016'!AV$5","v":0},{"$f":"'Population 2016'!AW233/'Population 2016'!AW$5","v":0},{"$f":"'Population 2016'!AX233/'Population 2016'!AX$5","v":0},{"$f":"'Population 2016'!AY233/'Population 2016'!AY$5","v":0},{"$f":"'Population 2016'!AZ233/'Population 2016'!AZ$5","v":0},{"$f":"'Population 2016'!BA233/'Population 2016'!BA$5","v":0},{"$f":"'Population 2016'!BB233/'Population 2016'!BB$5","v":0},{"$f":"'Population 2016'!BC233/'Population 2016'!BC$5","v":0},231]
[null,"Male 16-19",{"$f":"'Population 2016'!C234/'Population 2016'!C$5","v":9.3686271102410897E-3},{"$f":"'Population 2016'!D234/'Population 2016'!D$5","v":9.8735365746310255E-3},{"$f":"'Population 2016'!E234/'Population 2016'!E$5","v":1.0336631992461993E-2},{"$f":"'Population 2016'!F234/'Population 2016'!F$5","v":5.1815606489827451E-3},{"$f":"'Population 2016'!G234/'Population 2016'!G$5","v":4.5471769609700648E-3},{"$f":"'Population 2016'!H234/'Population 2016'!H$5","v":3.7449783245193944E-3},{"$f":"'Population 2016'!I234/'Population 2016'!I$5","v":3.0566954191441251E-3},{"$f":"'Population 2016'!J234/'Population 2016'!J$5","v":9.9184793876417078E-3},{"$f":"'Population 2016'!K234/'Population 2016'!K$5","v":3.7093039739167417E-3},{"$f":"'Population 2016'!L234/'Population 2016'!L$5","v":2.2635934744968467E-3},{"$f":"'Population 2016'!M234/'Population 2016'!M$5","v":2.2635934744968467E-3},{"$f":"'Population 2016'!N234/'Population 2016'!N$5","v":5.111677289203591E-3},{"$f":"'Population 2016'!O234/'Population 2016'!O$5","v":3.3286771480369719E-3},{"$f":"'Population 2016'!P234/'Population 2016'!P$5","v":1.6431871971148426E-2},{"$f":"'Population 2016'!Q234/'Population 2016'!Q$5","v":4.1832645914854118E-3},{"$f":"'Population 2016'!R234/'Population 2016'!R$5","v":1.9920689838718263E-2},{"$f":"'Population 2016'!S234/'Population 2016'!S$5","v":7.9412714860954935E-3},{"$f":"'Population 2016'!T234/'Population 2016'!T$5","v":1.151217060720418E-2},{"$f":"'Population 2016'!U234/'Population 2016'!U$5","v":0},{"$f":"'Population 2016'!V234/'Population 2016'!V$5","v":5.4037139084574231E-3},{"$f":"'Population 2016'!W234/'Population 2016'!W$5","v":7.1251609698063136E-3},{"$f":"'Population 2016'!X234/'Population 2016'!X$5","v":7.1251609698063136E-3},{"$f":"'Population 2016'!Y234/'Population 2016'!Y$5","v":7.5674472583901684E-3},{"$f":"'Population 2016'!Z234/'Population 2016'!Z$5","v":2.5475093063457373E-3},{"$f":"'Population 2016'!AA234/'Population 2016'!AA$5","v":4.8798896062005491E-3},{"$f":"'Population 2016'!AB234/'Population 2016'!AB$5","v":9.5022670747059966E-3},{"$f":"'Population 2016'!AC234/'Population 2016'!AC$5","v":5.6007082853247996E-3},{"$f":"'Population 2016'!AD234/'Population 2016'!AD$5","v":3.1039487885667497E-3},{"$f":"'Population 2016'!AE234/'Population 2016'!AE$5","v":2.5564944198605737E-3},{"$f":"'Population 2016'!AF234/'Population 2016'!AF$5","v":3.0915863608258305E-3},{"$f":"'Population 2016'!AG234/'Population 2016'!AG$5","v":2.5564944198605737E-3},{"$f":"'Population 2016'!AH234/'Population 2016'!AH$5","v":3.5852614175714962E-3},{"$f":"'Population 2016'!AI234/'Population 2016'!AI$5","v":8.9205639163531369E-3},{"$f":"'Population 2016'!AJ234/'Population 2016'!AJ$5","v":4.8796810082815155E-3},{"$f":"'Population 2016'!AK234/'Population 2016'!AK$5","v":7.5933771670668691E-3},{"$f":"'Population 2016'!AL234/'Population 2016'!AL$5","v":2.7757577907451094E-3},{"$f":"'Population 2016'!AM234/'Population 2016'!AM$5","v":2.9809012245962381E-3},{"$f":"'Population 2016'!AN234/'Population 2016'!AN$5","v":1.636304134395113E-3},{"$f":"'Population 2016'!AO234/'Population 2016'!AO$5","v":1.636304134395113E-3},{"$f":"'Population 2016'!AP234/'Population 2016'!AP$5","v":4.5654138198880836E-3},{"$f":"'Population 2016'!AQ234/'Population 2016'!AQ$5","v":5.6927166109497452E-3},{"$f":"'Population 2016'!AR234/'Population 2016'!AR$5","v":5.9942750629736388E-3},{"$f":"'Population 2016'!AS234/'Population 2016'!AS$5","v":3.0566954191441251E-3},{"$f":"'Population 2016'!AT234/'Population 2016'!AT$5","v":0},{"$f":"'Population 2016'!AU234/'Population 2016'!AU$5","v":0},{"$f":"'Population 2016'!AV234/'Population 2016'!AV$5","v":5.3426248548199768E-3},{"$f":"'Population 2016'!AW234/'Population 2016'!AW$5","v":4.2215815485996703E-3},{"$f":"'Population 2016'!AX234/'Population 2016'!AX$5","v":1.32767675735078E-2},{"$f":"'Population 2016'!AY234/'Population 2016'!AY$5","v":5.9591199779688506E-3},{"$f":"'Population 2016'!AZ234/'Population 2016'!AZ$5","v":4.9329521201626871E-3},{"$f":"'Population 2016'!BA234/'Population 2016'!BA$5","v":1.4575685597063269E-3},{"$f":"'Population 2016'!BB234/'Population 2016'!BB$5","v":6.0142380699198328E-3},{"$f":"'Population 2016'!BC234/'Population 2016'!BC$5","v":0},232]
[null,"Male 20-24",{"$f":"'Population 2016'!C235/'Population 2016'!C$5","v":1.5593934158944662E-2},{"$f":"'Population 2016'!D235/'Population 2016'!D$5","v":1.3282082880979627E-2},{"$f":"'Population 2016'!E235/'Population 2016'!E$5","v":1.1161687425873926E-2},{"$f":"'Population 2016'!F235/'Population 2016'!F$5","v":5.4081895441668816E-3},{"$f":"'Population 2016'!G235/'Population 2016'!G$5","v":1.2044605640664754E-2},{"$f":"'Population 2016'!H235/'Population 2016'!H$5","v":4.0919157104272515E-3},{"$f":"'Population 2016'!I235/'Population 2016'!I$5","v":2.5123523992965414E-3},{"$f":"'Population 2016'!J235/'Population 2016'!J$5","v":1.1237073219276349E-2},{"$f":"'Population 2016'!K235/'Population 2016'!K$5","v":3.8746869536455133E-3},{"$f":"'Population 2016'!L235/'Population 2016'!L$5","v":2.4859816053246072E-3},{"$f":"'Population 2016'!M235/'Population 2016'!M$5","v":2.4859816053246072E-3},{"$f":"'Population 2016'!N235/'Population 2016'!N$5","v":6.4860433528102172E-3},{"$f":"'Population 2016'!O235/'Population 2016'!O$5","v":3.774482123220495E-3},{"$f":"'Population 2016'!P235/'Population 2016'!P$5","v":1.9519891806604305E-2},{"$f":"'Population 2016'!Q235/'Population 2016'!Q$5","v":5.3113359419983313E-3},{"$f":"'Population 2016'!R235/'Population 2016'!R$5","v":2.1836908500558899E-2},{"$f":"'Population 2016'!S235/'Population 2016'!S$5","v":1.2913282409867407E-2},{"$f":"'Population 2016'!T235/'Population 2016'!T$5","v":2.1018785219378045E-2},{"$f":"'Population 2016'!U235/'Population 2016'!U$5","v":0},{"$f":"'Population 2016'!V235/'Population 2016'!V$5","v":6.3501270788652205E-3},{"$f":"'Population 2016'!W235/'Population 2016'!W$5","v":1.1687878728452925E-2},{"$f":"'Population 2016'!X235/'Population 2016'!X$5","v":1.1687878728452925E-2},{"$f":"'Population 2016'!Y235/'Population 2016'!Y$5","v":8.6922306481613965E-3},{"$f":"'Population 2016'!Z235/'Population 2016'!Z$5","v":6.0822752587677102E-3},{"$f":"'Population 2016'!AA235/'Population 2016'!AA$5","v":6.671729261465747E-3},{"$f":"'Population 2016'!AB235/'Population 2016'!AB$5","v":1.2730417694441318E-2},{"$f":"'Population 2016'!AC235/'Population 2016'!AC$5","v":8.0695708295667745E-3},{"$f":"'Population 2016'!AD235/'Population 2016'!AD$5","v":5.1062562804719191E-3},{"$f":"'Population 2016'!AE235/'Population 2016'!AE$5","v":2.4743580529574226E-3},{"$f":"'Population 2016'!AF235/'Population 2016'!AF$5","v":2.8201299974362454E-3},{"$f":"'Population 2016'!AG235/'Population 2016'!AG$5","v":2.4743580529574226E-3},{"$f":"'Population 2016'!AH235/'Population 2016'!AH$5","v":4.1611324224664001E-3},{"$f":"'Population 2016'!AI235/'Population 2016'!AI$5","v":1.478421121707936E-2},{"$f":"'Population 2016'!AJ235/'Population 2016'!AJ$5","v":5.4791846750132447E-3},{"$f":"'Population 2016'!AK235/'Population 2016'!AK$5","v":9.8940195868901099E-3},{"$f":"'Population 2016'!AL235/'Population 2016'!AL$5","v":2.9265177985491565E-3},{"$f":"'Population 2016'!AM235/'Population 2016'!AM$5","v":3.3503446327478982E-3},{"$f":"'Population 2016'!AN235/'Population 2016'!AN$5","v":2.563543143885677E-3},{"$f":"'Population 2016'!AO235/'Population 2016'!AO$5","v":2.563543143885677E-3},{"$f":"'Population 2016'!AP235/'Population 2016'!AP$5","v":5.2708336635860688E-3},{"$f":"'Population 2016'!AQ235/'Population 2016'!AQ$5","v":6.5969748451800295E-3},{"$f":"'Population 2016'!AR235/'Population 2016'!AR$5","v":8.4809178790776919E-3},{"$f":"'Population 2016'!AS235/'Population 2016'!AS$5","v":2.5123523992965414E-3},{"$f":"'Population 2016'!AT235/'Population 2016'!AT$5","v":0},{"$f":"'Population 2016'!AU235/'Population 2016'!AU$5","v":0},{"$f":"'Population 2016'!AV235/'Population 2016'!AV$5","v":5.8177594762960621E-3},{"$f":"'Population 2016'!AW235/'Population 2016'!AW$5","v":5.0147965098541704E-3},{"$f":"'Population 2016'!AX235/'Population 2016'!AX$5","v":1.5219085832577278E-2},{"$f":"'Population 2016'!AY235/'Population 2016'!AY$5","v":8.5263608824699359E-3},{"$f":"'Population 2016'!AZ235/'Population 2016'!AZ$5","v":5.7440847719911871E-3},{"$f":"'Population 2016'!BA235/'Population 2016'!BA$5","v":1.8489527099978407E-3},{"$f":"'Population 2016'!BB235/'Population 2016'!BB$5","v":6.4561568259185352E-3},{"$f":"'Population 2016'!BC235/'Population 2016'!BC$5","v":0},233]
[null,"Male 25-29",{"$f":"'Population 2016'!C236/'Population 2016'!C$5","v":2.2790348218529745E-2},{"$f":"'Population 2016'!D236/'Population 2016'!D$5","v":1.6497461928934011E-2},{"$f":"'Population 2016'!E236/'Population 2016'!E$5","v":1.0725720634355122E-2},{"$f":"'Population 2016'!F236/'Population 2016'!F$5","v":4.2338398145763583E-3},{"$f":"'Population 2016'!G236/'Population 2016'!G$5","v":9.4191522762951327E-3},{"$f":"'Population 2016'!H236/'Population 2016'!H$5","v":2.8565592241572178E-3},{"$f":"'Population 2016'!I236/'Population 2016'!I$5","v":1.7377104095134411E-3},{"$f":"'Population 2016'!J236/'Population 2016'!J$5","v":5.8714744201089708E-3},{"$f":"'Population 2016'!K236/'Population 2016'!K$5","v":2.7170060955441101E-3},{"$f":"'Population 2016'!L236/'Population 2016'!L$5","v":2.0729750766444806E-3},{"$f":"'Population 2016'!M236/'Population 2016'!M$5","v":2.0729750766444806E-3},{"$f":"'Population 2016'!N236/'Population 2016'!N$5","v":6.0279213316080079E-3},{"$f":"'Population 2016'!O236/'Population 2016'!O$5","v":3.0314738312479566E-3},{"$f":"'Population 2016'!P236/'Population 2016'!P$5","v":1.5789473684210527E-2},{"$f":"'Population 2016'!Q236/'Population 2016'!Q$5","v":4.0305049294367869E-3},{"$f":"'Population 2016'!R236/'Population 2016'!R$5","v":1.5303135146643956E-2},{"$f":"'Population 2016'!S236/'Population 2016'!S$5","v":1.1080884987934069E-2},{"$f":"'Population 2016'!T236/'Population 2016'!T$5","v":2.0599991624128094E-2},{"$f":"'Population 2016'!U236/'Population 2016'!U$5","v":0},{"$f":"'Population 2016'!V236/'Population 2016'!V$5","v":6.2356416147029865E-3},{"$f":"'Population 2016'!W236/'Population 2016'!W$5","v":6.5106975467220992E-3},{"$f":"'Population 2016'!X236/'Population 2016'!X$5","v":6.5106975467220992E-3},{"$f":"'Population 2016'!Y236/'Population 2016'!Y$5","v":6.0611119060110328E-3},{"$f":"'Population 2016'!Z236/'Population 2016'!Z$5","v":6.4520125517099867E-3},{"$f":"'Population 2016'!AA236/'Population 2016'!AA$5","v":5.7608608271429492E-3},{"$f":"'Population 2016'!AB236/'Population 2016'!AB$5","v":1.5272816597238569E-2},{"$f":"'Population 2016'!AC236/'Population 2016'!AC$5","v":7.1655968607073342E-3},{"$f":"'Population 2016'!AD236/'Population 2016'!AD$5","v":4.4177304700584313E-3},{"$f":"'Population 2016'!AE236/'Population 2016'!AE$5","v":2.520559759340445E-3},{"$f":"'Population 2016'!AF236/'Population 2016'!AF$5","v":2.9860199972854364E-3},{"$f":"'Population 2016'!AG236/'Population 2016'!AG$5","v":2.520559759340445E-3},{"$f":"'Population 2016'!AH236/'Population 2016'!AH$5","v":3.2378811662316675E-3},{"$f":"'Population 2016'!AI236/'Population 2016'!AI$5","v":1.4212748271939803E-2},{"$f":"'Population 2016'!AJ236/'Population 2016'!AJ$5","v":5.242171597468143E-3},{"$f":"'Population 2016'!AK236/'Population 2016'!AK$5","v":8.9762769822611665E-3},{"$f":"'Population 2016'!AL236/'Population 2016'!AL$5","v":1.8800659796740036E-3},{"$f":"'Population 2016'!AM236/'Population 2016'!AM$5","v":2.8215334799033651E-3},{"$f":"'Population 2016'!AN236/'Population 2016'!AN$5","v":2.4544562015926695E-3},{"$f":"'Population 2016'!AO236/'Population 2016'!AO$5","v":2.4544562015926695E-3},{"$f":"'Population 2016'!AP236/'Population 2016'!AP$5","v":4.2325190621879108E-3},{"$f":"'Population 2016'!AQ236/'Population 2016'!AQ$5","v":5.1652326409820795E-3},{"$f":"'Population 2016'!AR236/'Population 2016'!AR$5","v":7.6368138089990094E-3},{"$f":"'Population 2016'!AS236/'Population 2016'!AS$5","v":1.7377104095134411E-3},{"$f":"'Population 2016'!AT236/'Population 2016'!AT$5","v":0},{"$f":"'Population 2016'!AU236/'Population 2016'!AU$5","v":0},{"$f":"'Population 2016'!AV236/'Population 2016'!AV$5","v":3.8327526132404181E-3},{"$f":"'Population 2016'!AW236/'Population 2016'!AW$5","v":3.676246262737202E-3},{"$f":"'Population 2016'!AX236/'Population 2016'!AX$5","v":7.5775968922907853E-3},{"$f":"'Population 2016'!AY236/'Population 2016'!AY$5","v":5.6408922615587042E-3},{"$f":"'Population 2016'!AZ236/'Population 2016'!AZ$5","v":4.8754249817351339E-3},{"$f":"'Population 2016'!BA236/'Population 2016'!BA$5","v":1.2416324767868712E-3},{"$f":"'Population 2016'!BB236/'Population 2016'!BB$5","v":5.6827990029208065E-3},{"$f":"'Population 2016'!BC236/'Population 2016'!BC$5","v":0},234]
[null,"Male 30-34",{"$f":"'Population 2016'!C237/'Population 2016'!C$5","v":1.9723694499956555E-2},{"$f":"'Population 2016'!D237/'Population 2016'!D$5","v":1.5971753567481393E-2},{"$f":"'Population 2016'!E237/'Population 2016'!E$5","v":1.2530529394943722E-2},{"$f":"'Population 2016'!F237/'Population 2016'!F$5","v":4.769508112284316E-3},{"$f":"'Population 2016'!G237/'Population 2016'!G$5","v":4.4389108428517293E-3},{"$f":"'Population 2016'!H237/'Population 2016'!H$5","v":2.5809547587163965E-3},{"$f":"'Population 2016'!I237/'Population 2016'!I$5","v":1.9366049744577506E-3},{"$f":"'Population 2016'!J237/'Population 2016'!J$5","v":4.8514301352595305E-3},{"$f":"'Population 2016'!K237/'Population 2016'!K$5","v":2.7878845154278692E-3},{"$f":"'Population 2016'!L237/'Population 2016'!L$5","v":2.3986148396422727E-3},{"$f":"'Population 2016'!M237/'Population 2016'!M$5","v":2.3986148396422727E-3},{"$f":"'Population 2016'!N237/'Population 2016'!N$5","v":4.1552471045884542E-3},{"$f":"'Population 2016'!O237/'Population 2016'!O$5","v":3.2494229302265682E-3},{"$f":"'Population 2016'!P237/'Population 2016'!P$5","v":1.3332581990307676E-2},{"$f":"'Population 2016'!Q237/'Population 2016'!Q$5","v":4.383027226472074E-3},{"$f":"'Population 2016'!R237/'Population 2016'!R$5","v":1.2468728376004684E-2},{"$f":"'Population 2016'!S237/'Population 2016'!S$5","v":9.4197231632334229E-3},{"$f":"'Population 2016'!T237/'Population 2016'!T$5","v":1.6365523049934157E-2},{"$f":"'Population 2016'!U237/'Population 2016'!U$5","v":0},{"$f":"'Population 2016'!V237/'Population 2016'!V$5","v":7.4186580777127328E-3},{"$f":"'Population 2016'!W237/'Population 2016'!W$5","v":6.3570816909510452E-3},{"$f":"'Population 2016'!X237/'Population 2016'!X$5","v":6.3570816909510452E-3},{"$f":"'Population 2016'!Y237/'Population 2016'!Y$5","v":6.1882958935470028E-3},{"$f":"'Population 2016'!Z237/'Population 2016'!Z$5","v":5.0369446923340493E-3},{"$f":"'Population 2016'!AA237/'Population 2016'!AA$5","v":4.8479992452614574E-3},{"$f":"'Population 2016'!AB237/'Population 2016'!AB$5","v":1.4511325138429731E-2},{"$f":"'Population 2016'!AC237/'Population 2016'!AC$5","v":5.8613506653620757E-3},{"$f":"'Population 2016'!AD237/'Population 2016'!AD$5","v":3.2081581004131153E-3},{"$f":"'Population 2016'!AE237/'Population 2016'!AE$5","v":2.741301245392663E-3},{"$f":"'Population 2016'!AF237/'Population 2016'!AF$5","v":2.8502918155906437E-3},{"$f":"'Population 2016'!AG237/'Population 2016'!AG$5","v":2.741301245392663E-3},{"$f":"'Population 2016'!AH237/'Population 2016'!AH$5","v":3.0279668967054607E-3},{"$f":"'Population 2016'!AI237/'Population 2016'!AI$5","v":1.1678077697086359E-2},{"$f":"'Population 2016'!AJ237/'Population 2016'!AJ$5","v":5.3258232718958257E-3},{"$f":"'Population 2016'!AK237/'Population 2016'!AK$5","v":7.0025017914838519E-3},{"$f":"'Population 2016'!AL237/'Population 2016'!AL$5","v":1.7470424433763147E-3},{"$f":"'Population 2016'!AM237/'Population 2016'!AM$5","v":2.499175996320054E-3},{"$f":"'Population 2016'!AN237/'Population 2016'!AN$5","v":2.2362823170066545E-3},{"$f":"'Population 2016'!AO237/'Population 2016'!AO$5","v":2.2362823170066545E-3},{"$f":"'Population 2016'!AP237/'Population 2016'!AP$5","v":4.5020052946118608E-3},{"$f":"'Population 2016'!AQ237/'Population 2016'!AQ$5","v":4.6034964651723567E-3},{"$f":"'Population 2016'!AR237/'Population 2016'!AR$5","v":6.7198614858414857E-3},{"$f":"'Population 2016'!AS237/'Population 2016'!AS$5","v":1.9366049744577506E-3},{"$f":"'Population 2016'!AT237/'Population 2016'!AT$5","v":0},{"$f":"'Population 2016'!AU237/'Population 2016'!AU$5","v":0},{"$f":"'Population 2016'!AV237/'Population 2016'!AV$5","v":2.8613662760004223E-3},{"$f":"'Population 2016'!AW237/'Population 2016'!AW$5","v":3.5847214595155288E-3},{"$f":"'Population 2016'!AX237/'Population 2016'!AX$5","v":5.9675172827989825E-3},{"$f":"'Population 2016'!AY237/'Population 2016'!AY$5","v":5.344083718368471E-3},{"$f":"'Population 2016'!AZ237/'Population 2016'!AZ$5","v":4.4526005142926173E-3},{"$f":"'Population 2016'!BA237/'Population 2016'!BA$5","v":1.1336644353271432E-3},{"$f":"'Population 2016'!BB237/'Population 2016'!BB$5","v":5.1994503635472266E-3},{"$f":"'Population 2016'!BC237/'Population 2016'!BC$5","v":0},235]
[null,"Male 35-39",{"$f":"'Population 2016'!C238/'Population 2016'!C$5","v":1.6672374049976232E-2},{"$f":"'Population 2016'!D238/'Population 2016'!D$5","v":1.5536515947302015E-2},{"$f":"'Population 2016'!E238/'Population 2016'!E$5","v":1.449472386425963E-2},{"$f":"'Population 2016'!F238/'Population 2016'!F$5","v":5.1815606489827451E-3},{"$f":"'Population 2016'!G238/'Population 2016'!G$5","v":4.0058463703783898E-3},{"$f":"'Population 2016'!H238/'Population 2016'!H$5","v":3.5277371576425119E-3},{"$f":"'Population 2016'!I238/'Population 2016'!I$5","v":2.8263964492086088E-3},{"$f":"'Population 2016'!J238/'Population 2016'!J$5","v":5.9958700646028044E-3},{"$f":"'Population 2016'!K238/'Population 2016'!K$5","v":3.5439209941879697E-3},{"$f":"'Population 2016'!L238/'Population 2016'!L$5","v":2.5654059377630931E-3},{"$f":"'Population 2016'!M238/'Population 2016'!M$5","v":2.5654059377630931E-3},{"$f":"'Population 2016'!N238/'Population 2016'!N$5","v":4.5249596129270783E-3},{"$f":"'Population 2016'!O238/'Population 2016'!O$5","v":3.8042024548993968E-3},{"$f":"'Population 2016'!P238/'Population 2016'!P$5","v":1.5845824411134905E-2},{"$f":"'Population 2016'!Q238/'Population 2016'!Q$5","v":5.2878344555293121E-3},{"$f":"'Population 2016'!R238/'Population 2016'!R$5","v":1.8816202693351786E-2},{"$f":"'Population 2016'!S238/'Population 2016'!S$5","v":9.5697749752414515E-3},{"$f":"'Population 2016'!T238/'Population 2016'!T$5","v":1.5423237460621769E-2},{"$f":"'Population 2016'!U238/'Population 2016'!U$5","v":0},{"$f":"'Population 2016'!V238/'Population 2016'!V$5","v":8.1284679555185813E-3},{"$f":"'Population 2016'!W238/'Population 2016'!W$5","v":6.9159819321606237E-3},{"$f":"'Population 2016'!X238/'Population 2016'!X$5","v":6.9159819321606237E-3},{"$f":"'Population 2016'!Y238/'Population 2016'!Y$5","v":7.1064053035722798E-3},{"$f":"'Population 2016'!Z238/'Population 2016'!Z$5","v":4.2723047409612787E-3},{"$f":"'Population 2016'!AA238/'Population 2016'!AA$5","v":5.4884639941215436E-3},{"$f":"'Population 2016'!AB238/'Population 2016'!AB$5","v":1.3970911845081523E-2},{"$f":"'Population 2016'!AC238/'Population 2016'!AC$5","v":6.3123033546329185E-3},{"$f":"'Population 2016'!AD238/'Population 2016'!AD$5","v":3.7329264207823141E-3},{"$f":"'Population 2016'!AE238/'Population 2016'!AE$5","v":3.6294007125329828E-3},{"$f":"'Population 2016'!AF238/'Population 2016'!AF$5","v":2.8201299974362454E-3},{"$f":"'Population 2016'!AG238/'Population 2016'!AG$5","v":3.6294007125329828E-3},{"$f":"'Population 2016'!AH238/'Population 2016'!AH$5","v":4.0088052534296833E-3},{"$f":"'Population 2016'!AI238/'Population 2016'!AI$5","v":1.1560503981100709E-2},{"$f":"'Population 2016'!AJ238/'Population 2016'!AJ$5","v":6.0089786130552384E-3},{"$f":"'Population 2016'!AK238/'Population 2016'!AK$5","v":5.9213255723319464E-3},{"$f":"'Population 2016'!AL238/'Population 2016'!AL$5","v":2.4919742466433729E-3},{"$f":"'Population 2016'!AM238/'Population 2016'!AM$5","v":3.3177466849698108E-3},{"$f":"'Population 2016'!AN238/'Population 2016'!AN$5","v":3.3271517399367295E-3},{"$f":"'Population 2016'!AO238/'Population 2016'!AO$5","v":3.3271517399367295E-3},{"$f":"'Population 2016'!AP238/'Population 2016'!AP$5","v":5.2153512039693735E-3},{"$f":"'Population 2016'!AQ238/'Population 2016'!AQ$5","v":5.4940538170658191E-3},{"$f":"'Population 2016'!AR238/'Population 2016'!AR$5","v":7.1099449449884304E-3},{"$f":"'Population 2016'!AS238/'Population 2016'!AS$5","v":2.8263964492086088E-3},{"$f":"'Population 2016'!AT238/'Population 2016'!AT$5","v":0},{"$f":"'Population 2016'!AU238/'Population 2016'!AU$5","v":0},{"$f":"'Population 2016'!AV238/'Population 2016'!AV$5","v":4.4662654418751984E-3},{"$f":"'Population 2016'!AW238/'Population 2016'!AW$5","v":4.7364085667215812E-3},{"$f":"'Population 2016'!AX238/'Population 2016'!AX$5","v":7.3220287003079596E-3},{"$f":"'Population 2016'!AY238/'Population 2016'!AY$5","v":5.8749732260334753E-3},{"$f":"'Population 2016'!AZ238/'Population 2016'!AZ$5","v":4.9588393324550856E-3},{"$f":"'Population 2016'!BA238/'Population 2016'!BA$5","v":1.1741524508745412E-3},{"$f":"'Population 2016'!BB238/'Population 2016'!BB$5","v":6.5321116121058115E-3},{"$f":"'Population 2016'!BC238/'Population 2016'!BC$5","v":0},236]
[null,"Male 40-44",{"$f":"'Population 2016'!C239/'Population 2016'!C$5","v":1.5123713922096773E-2},{"$f":"'Population 2016'!D239/'Population 2016'!D$5","v":1.564165761959254E-2},{"$f":"'Population 2016'!E239/'Population 2016'!E$5","v":1.6116707841308087E-2},{"$f":"'Population 2016'!F239/'Population 2016'!F$5","v":6.737058975019315E-3},{"$f":"'Population 2016'!G239/'Population 2016'!G$5","v":4.6419098143236073E-3},{"$f":"'Population 2016'!H239/'Population 2016'!H$5","v":4.6042157755996019E-3},{"$f":"'Population 2016'!I239/'Population 2016'!I$5","v":3.9255506239008458E-3},{"$f":"'Population 2016'!J239/'Population 2016'!J$5","v":8.3925594818506748E-3},{"$f":"'Population 2016'!K239/'Population 2016'!K$5","v":5.0087416717856633E-3},{"$f":"'Population 2016'!L239/'Population 2016'!L$5","v":2.7877940685908536E-3},{"$f":"'Population 2016'!M239/'Population 2016'!M$5","v":2.7877940685908536E-3},{"$f":"'Population 2016'!N239/'Population 2016'!N$5","v":4.5490712982535104E-3},{"$f":"'Population 2016'!O239/'Population 2016'!O$5","v":4.7750666230768467E-3},{"$f":"'Population 2016'!P239/'Population 2016'!P$5","v":1.955370224275893E-2},{"$f":"'Population 2016'!Q239/'Population 2016'!Q$5","v":7.1797041162853549E-3},{"$f":"'Population 2016'!R239/'Population 2016'!R$5","v":2.2968009794006494E-2},{"$f":"'Population 2016'!S239/'Population 2016'!S$5","v":1.0433896880864157E-2},{"$f":"'Population 2016'!T239/'Population 2016'!T$5","v":1.5246413498182902E-2},{"$f":"'Population 2016'!U239/'Population 2016'!U$5","v":0},{"$f":"'Population 2016'!V239/'Population 2016'!V$5","v":9.2733225971409171E-3},{"$f":"'Population 2016'!W239/'Population 2016'!W$5","v":8.4325299550918748E-3},{"$f":"'Population 2016'!X239/'Population 2016'!X$5","v":8.4325299550918748E-3},{"$f":"'Population 2016'!Y239/'Population 2016'!Y$5","v":8.8512106325813588E-3},{"$f":"'Population 2016'!Z239/'Population 2016'!Z$5","v":3.8599799064235564E-3},{"$f":"'Population 2016'!AA239/'Population 2016'!AA$5","v":6.1794218144685239E-3},{"$f":"'Population 2016'!AB239/'Population 2016'!AB$5","v":1.427591783261517E-2},{"$f":"'Population 2016'!AC239/'Population 2016'!AC$5","v":6.9649435998849867E-3},{"$f":"'Population 2016'!AD239/'Population 2016'!AD$5","v":3.859466299452901E-3},{"$f":"'Population 2016'!AE239/'Population 2016'!AE$5","v":3.5626649144241728E-3},{"$f":"'Population 2016'!AF239/'Population 2016'!AF$5","v":3.6948227239137973E-3},{"$f":"'Population 2016'!AG239/'Population 2016'!AG$5","v":3.5626649144241728E-3},{"$f":"'Population 2016'!AH239/'Population 2016'!AH$5","v":4.7685834502103784E-3},{"$f":"'Population 2016'!AI239/'Population 2016'!AI$5","v":1.2121029836381136E-2},{"$f":"'Population 2016'!AJ239/'Population 2016'!AJ$5","v":6.6084822797869668E-3},{"$f":"'Population 2016'!AK239/'Population 2016'!AK$5","v":7.2539381215191781E-3},{"$f":"'Population 2016'!AL239/'Population 2016'!AL$5","v":3.1216189851191005E-3},{"$f":"'Population 2016'!AM239/'Population 2016'!AM$5","v":3.8936437623826926E-3},{"$f":"'Population 2016'!AN239/'Population 2016'!AN$5","v":2.508999672739173E-3},{"$f":"'Population 2016'!AO239/'Population 2016'!AO$5","v":2.508999672739173E-3},{"$f":"'Population 2016'!AP239/'Population 2016'!AP$5","v":5.6750630122219935E-3},{"$f":"'Population 2016'!AQ239/'Population 2016'!AQ$5","v":6.4394146983065706E-3},{"$f":"'Population 2016'!AR239/'Population 2016'!AR$5","v":7.8223874934475555E-3},{"$f":"'Population 2016'!AS239/'Population 2016'!AS$5","v":3.9255506239008458E-3},{"$f":"'Population 2016'!AT239/'Population 2016'!AT$5","v":0},{"$f":"'Population 2016'!AU239/'Population 2016'!AU$5","v":0},{"$f":"'Population 2016'!AV239/'Population 2016'!AV$5","v":6.1873086263330166E-3},{"$f":"'Population 2016'!AW239/'Population 2016'!AW$5","v":5.6897919336140095E-3},{"$f":"'Population 2016'!AX239/'Population 2016'!AX$5","v":1.0222727679313032E-2},{"$f":"'Population 2016'!AY239/'Population 2016'!AY$5","v":6.9092133043664513E-3},{"$f":"'Population 2016'!AZ239/'Population 2016'!AZ$5","v":5.5686269997871499E-3},{"$f":"'Population 2016'!BA239/'Population 2016'!BA$5","v":1.2686244871518032E-3},{"$f":"'Population 2016'!BB239/'Population 2016'!BB$5","v":8.4793161307250928E-3},{"$f":"'Population 2016'!BC239/'Population 2016'!BC$5","v":0},237]
[null,"Male 45-49",{"$f":"'Population 2016'!C240/'Population 2016'!C$5","v":1.5256602249901611E-2},{"$f":"'Population 2016'!D240/'Population 2016'!D$5","v":1.6062224308754633E-2},{"$f":"'Population 2016'!E240/'Population 2016'!E$5","v":1.6801128825842986E-2},{"$f":"'Population 2016'!F240/'Population 2016'!F$5","v":7.437548287406644E-3},{"$f":"'Population 2016'!G240/'Population 2016'!G$5","v":3.9246467817896386E-3},{"$f":"'Population 2016'!H240/'Population 2016'!H$5","v":5.6839367990324666E-3},{"$f":"'Population 2016'!I240/'Population 2016'!I$5","v":5.24453563353153E-3},{"$f":"'Population 2016'!J240/'Population 2016'!J$5","v":1.0756076727233523E-2},{"$f":"'Population 2016'!K240/'Population 2016'!K$5","v":7.1114681283371926E-3},{"$f":"'Population 2016'!L240/'Population 2016'!L$5","v":3.7647133575842294E-3},{"$f":"'Population 2016'!M240/'Population 2016'!M$5","v":3.7647133575842294E-3},{"$f":"'Population 2016'!N240/'Population 2016'!N$5","v":6.2931498701987608E-3},{"$f":"'Population 2016'!O240/'Population 2016'!O$5","v":5.7558375684805974E-3},{"$f":"'Population 2016'!P240/'Population 2016'!P$5","v":2.3092527893609827E-2},{"$f":"'Population 2016'!Q240/'Population 2016'!Q$5","v":7.9552531697629873E-3},{"$f":"'Population 2016'!R240/'Population 2016'!R$5","v":2.6467770266673765E-2},{"$f":"'Population 2016'!S240/'Population 2016'!S$5","v":1.1414529605222509E-2},{"$f":"'Population 2016'!T240/'Population 2016'!T$5","v":1.5972322396616147E-2},{"$f":"'Population 2016'!U240/'Population 2016'!U$5","v":0},{"$f":"'Population 2016'!V240/'Population 2016'!V$5","v":1.0059456117721587E-2},{"$f":"'Population 2016'!W240/'Population 2016'!W$5","v":9.2659776832114214E-3},{"$f":"'Population 2016'!X240/'Population 2016'!X$5","v":9.2659776832114214E-3},{"$f":"'Population 2016'!Y240/'Population 2016'!Y$5","v":1.0393316481454985E-2},{"$f":"'Population 2016'!Z240/'Population 2016'!Z$5","v":3.9974215179361299E-3},{"$f":"'Population 2016'!AA240/'Population 2016'!AA$5","v":7.1487559105129894E-3},{"$f":"'Population 2016'!AB240/'Population 2016'!AB$5","v":1.4812237085862255E-2},{"$f":"'Population 2016'!AC240/'Population 2016'!AC$5","v":8.0302676135294085E-3},{"$f":"'Population 2016'!AD240/'Population 2016'!AD$5","v":4.2614165022888829E-3},{"$f":"'Population 2016'!AE240/'Population 2016'!AE$5","v":4.3891621063871294E-3},{"$f":"'Population 2016'!AF240/'Population 2016'!AF$5","v":4.3583827233105608E-3},{"$f":"'Population 2016'!AG240/'Population 2016'!AG$5","v":4.3891621063871294E-3},{"$f":"'Population 2016'!AH240/'Population 2016'!AH$5","v":5.5655146150488093E-3},{"$f":"'Population 2016'!AI240/'Population 2016'!AI$5","v":1.3119039286026774E-2},{"$f":"'Population 2016'!AJ240/'Population 2016'!AJ$5","v":8.0863285280093691E-3},{"$f":"'Population 2016'!AK240/'Population 2016'!AK$5","v":8.3854016066781493E-3},{"$f":"'Population 2016'!AL240/'Population 2016'!AL$5","v":4.1946755112537912E-3},{"$f":"'Population 2016'!AM240/'Population 2016'!AM$5","v":4.5093827759687928E-3},{"$f":"'Population 2016'!AN240/'Population 2016'!AN$5","v":3.708956037962256E-3},{"$f":"'Population 2016'!AO240/'Population 2016'!AO$5","v":3.708956037962256E-3},{"$f":"'Population 2016'!AP240/'Population 2016'!AP$5","v":6.9036031894488216E-3},{"$f":"'Population 2016'!AQ240/'Population 2016'!AQ$5","v":8.2684824902723737E-3},{"$f":"'Population 2016'!AR240/'Population 2016'!AR$5","v":8.7683008958107361E-3},{"$f":"'Population 2016'!AS240/'Population 2016'!AS$5","v":5.24453563353153E-3},{"$f":"'Population 2016'!AT240/'Population 2016'!AT$5","v":0},{"$f":"'Population 2016'!AU240/'Population 2016'!AU$5","v":0},{"$f":"'Population 2016'!AV240/'Population 2016'!AV$5","v":7.3804244535951857E-3},{"$f":"'Population 2016'!AW240/'Population 2016'!AW$5","v":6.6774971017145648E-3},{"$f":"'Population 2016'!AX240/'Population 2016'!AX$5","v":1.2727295960744726E-2},{"$f":"'Population 2016'!AY240/'Population 2016'!AY$5","v":7.9725222606407391E-3},{"$f":"'Population 2016'!AZ240/'Population 2016'!AZ$5","v":6.8342240451933203E-3},{"$f":"'Population 2016'!BA240/'Population 2016'!BA$5","v":2.2268408551068884E-3},{"$f":"'Population 2016'!BB240/'Population 2016'!BB$5","v":1.0177941349095103E-2},{"$f":"'Population 2016'!BC240/'Population 2016'!BC$5","v":0},238]
[null,"Male 50-54",{"$f":"'Population 2016'!C241/'Population 2016'!C$5","v":1.5583711979882751E-2},{"$f":"'Population 2016'!D241/'Population 2016'!D$5","v":1.5983979343329128E-2},{"$f":"'Population 2016'!E241/'Population 2016'!E$5","v":1.6351098589436477E-2},{"$f":"'Population 2016'!F241/'Population 2016'!F$5","v":8.7664177182590775E-3},{"$f":"'Population 2016'!G241/'Population 2016'!G$5","v":4.3035781952038112E-3},{"$f":"'Population 2016'!H241/'Population 2016'!H$5","v":6.192994458729042E-3},{"$f":"'Population 2016'!I241/'Population 2016'!I$5","v":4.3338078887865334E-3},{"$f":"'Population 2016'!J241/'Population 2016'!J$5","v":1.036630370781951E-2},{"$f":"'Population 2016'!K241/'Population 2016'!K$5","v":6.827954448802155E-3},{"$f":"'Population 2016'!L241/'Population 2016'!L$5","v":4.3842231506044192E-3},{"$f":"'Population 2016'!M241/'Population 2016'!M$5","v":4.3842231506044192E-3},{"$f":"'Population 2016'!N241/'Population 2016'!N$5","v":6.2127775857773208E-3},{"$f":"'Population 2016'!O241/'Population 2016'!O$5","v":5.2604987071655724E-3},{"$f":"'Population 2016'!P241/'Population 2016'!P$5","v":2.5774822495210188E-2},{"$f":"'Population 2016'!Q241/'Population 2016'!Q$5","v":9.1773304661519842E-3},{"$f":"'Population 2016'!R241/'Population 2016'!R$5","v":2.5855644860808005E-2},{"$f":"'Population 2016'!S241/'Population 2016'!S$5","v":1.1128548504689561E-2},{"$f":"'Population 2016'!T241/'Population 2016'!T$5","v":1.5830397900448108E-2},{"$f":"'Population 2016'!U241/'Population 2016'!U$5","v":0},{"$f":"'Population 2016'!V241/'Population 2016'!V$5","v":9.7694262751772624E-3},{"$f":"'Population 2016'!W241/'Population 2016'!W$5","v":8.6809300622961317E-3},{"$f":"'Population 2016'!X241/'Population 2016'!X$5","v":8.6809300622961317E-3},{"$f":"'Population 2016'!Y241/'Population 2016'!Y$5","v":1.0055484014562566E-2},{"$f":"'Population 2016'!Z241/'Population 2016'!Z$5","v":3.9316044081977143E-3},{"$f":"'Population 2016'!AA241/'Population 2016'!AA$5","v":7.5527004824081471E-3},{"$f":"'Population 2016'!AB241/'Population 2016'!AB$5","v":1.4593205940452186E-2},{"$f":"'Population 2016'!AC241/'Population 2016'!AC$5","v":8.5184549285198616E-3},{"$f":"'Population 2016'!AD241/'Population 2016'!AD$5","v":4.3544605307231383E-3},{"$f":"'Population 2016'!AE241/'Population 2016'!AE$5","v":4.3737615375927883E-3},{"$f":"'Population 2016'!AF241/'Population 2016'!AF$5","v":6.4546290850412465E-3},{"$f":"'Population 2016'!AG241/'Population 2016'!AG$5","v":4.3737615375927883E-3},{"$f":"'Population 2016'!AH241/'Population 2016'!AH$5","v":5.8181547978414126E-3},{"$f":"'Population 2016'!AI241/'Population 2016'!AI$5","v":1.3039745384548079E-2},{"$f":"'Population 2016'!AJ241/'Population 2016'!AJ$5","v":7.4589409698017457E-3},{"$f":"'Population 2016'!AK241/'Population 2016'!AK$5","v":7.4425153690456736E-3},{"$f":"'Population 2016'!AL241/'Population 2016'!AL$5","v":4.655823770419113E-3},{"$f":"'Population 2016'!AM241/'Population 2016'!AM$5","v":4.8715821957253224E-3},{"$f":"'Population 2016'!AN241/'Population 2016'!AN$5","v":3.436238682229737E-3},{"$f":"'Population 2016'!AO241/'Population 2016'!AO$5","v":3.436238682229737E-3},{"$f":"'Population 2016'!AP241/'Population 2016'!AP$5","v":8.6394115688854366E-3},{"$f":"'Population 2016'!AQ241/'Population 2016'!AQ$5","v":9.3919548418918176E-3},{"$f":"'Population 2016'!AR241/'Population 2016'!AR$5","v":8.9209035054713046E-3},{"$f":"'Population 2016'!AS241/'Population 2016'!AS$5","v":4.3338078887865334E-3},{"$f":"'Population 2016'!AT241/'Population 2016'!AT$5","v":0},{"$f":"'Population 2016'!AU241/'Population 2016'!AU$5","v":0},{"$f":"'Population 2016'!AV241/'Population 2016'!AV$5","v":9.0169992609017008E-3},{"$f":"'Population 2016'!AW241/'Population 2016'!AW$5","v":6.8147843065470741E-3},{"$f":"'Population 2016'!AX241/'Population 2016'!AX$5","v":1.2280051624774781E-2},{"$f":"'Population 2016'!AY241/'Population 2016'!AY$5","v":8.2157828707811881E-3},{"$f":"'Population 2016'!AZ241/'Population 2016'!AZ$5","v":7.8064326846189686E-3},{"$f":"'Population 2016'!BA241/'Population 2016'!BA$5","v":2.3752969121140144E-3},{"$f":"'Population 2016'!BB241/'Population 2016'!BB$5","v":9.791262437596239E-3},{"$f":"'Population 2016'!BC241/'Population 2016'!BC$5","v":0},239]
[null,"Male 55-59",{"$f":"'Population 2016'!C242/'Population 2016'!C$5","v":1.4643271506186974E-2},{"$f":"'Population 2016'!D242/'Population 2016'!D$5","v":1.4340835069393505E-2},{"$f":"'Population 2016'!E242/'Population 2016'!E$5","v":1.4063444887703393E-2},{"$f":"'Population 2016'!F242/'Population 2016'!F$5","v":7.5817666752510948E-3},{"$f":"'Population 2016'!G242/'Population 2016'!G$5","v":3.721647810317761E-3},{"$f":"'Population 2016'!H242/'Population 2016'!H$5","v":6.2902666230022731E-3},{"$f":"'Population 2016'!I242/'Population 2016'!I$5","v":3.6533791139770539E-3},{"$f":"'Population 2016'!J242/'Population 2016'!J$5","v":8.8320907590622218E-3},{"$f":"'Population 2016'!K242/'Population 2016'!K$5","v":5.6938997306620045E-3},{"$f":"'Population 2016'!L242/'Population 2016'!L$5","v":3.9315044557050498E-3},{"$f":"'Population 2016'!M242/'Population 2016'!M$5","v":3.9315044557050498E-3},{"$f":"'Population 2016'!N242/'Population 2016'!N$5","v":6.5503411803473693E-3},{"$f":"'Population 2016'!O242/'Population 2016'!O$5","v":5.3595664794285772E-3},{"$f":"'Population 2016'!P242/'Population 2016'!P$5","v":2.3498253127465344E-2},{"$f":"'Population 2016'!Q242/'Population 2016'!Q$5","v":6.9799414812986918E-3},{"$f":"'Population 2016'!R242/'Population 2016'!R$5","v":2.6055250971416404E-2},{"$f":"'Population 2016'!S242/'Population 2016'!S$5","v":1.0102900236728799E-2},{"$f":"'Population 2016'!T242/'Population 2016'!T$5","v":1.4599610056630201E-2},{"$f":"'Population 2016'!U242/'Population 2016'!U$5","v":0},{"$f":"'Population 2016'!V242/'Population 2016'!V$5","v":8.0903061341311699E-3},{"$f":"'Population 2016'!W242/'Population 2016'!W$5","v":8.3312088587322447E-3},{"$f":"'Population 2016'!X242/'Population 2016'!X$5","v":8.3312088587322447E-3},{"$f":"'Population 2016'!Y242/'Population 2016'!Y$5","v":8.4458116723104566E-3},{"$f":"'Population 2016'!Z242/'Population 2016'!Z$5","v":3.4495908692310819E-3},{"$f":"'Population 2016'!AA242/'Population 2016'!AA$5","v":6.9713657777892941E-3},{"$f":"'Population 2016'!AB242/'Population 2016'!AB$5","v":1.3014953481469351E-2},{"$f":"'Population 2016'!AC242/'Population 2016'!AC$5","v":7.9092550799406726E-3},{"$f":"'Population 2016'!AD242/'Population 2016'!AD$5","v":3.8966839108266031E-3},{"$f":"'Population 2016'!AE242/'Population 2016'!AE$5","v":3.9630797030770337E-3},{"$f":"'Population 2016'!AF242/'Population 2016'!AF$5","v":5.7609072674900839E-3},{"$f":"'Population 2016'!AG242/'Population 2016'!AG$5","v":3.9630797030770337E-3},{"$f":"'Population 2016'!AH242/'Population 2016'!AH$5","v":5.2868673546157922E-3},{"$f":"'Population 2016'!AI242/'Population 2016'!AI$5","v":1.1686280514480707E-2},{"$f":"'Population 2016'!AJ242/'Population 2016'!AJ$5","v":6.5248306053592841E-3},{"$f":"'Population 2016'!AK242/'Population 2016'!AK$5","v":6.1979055353708059E-3},{"$f":"'Population 2016'!AL242/'Population 2016'!AL$5","v":4.1148613894751778E-3},{"$f":"'Population 2016'!AM242/'Population 2016'!AM$5","v":4.2232452343611343E-3},{"$f":"'Population 2016'!AN242/'Population 2016'!AN$5","v":3.9816733936947745E-3},{"$f":"'Population 2016'!AO242/'Population 2016'!AO$5","v":3.9816733936947745E-3},{"$f":"'Population 2016'!AP242/'Population 2016'!AP$5","v":7.0859026996179632E-3},{"$f":"'Population 2016'!AQ242/'Population 2016'!AQ$5","v":8.8987230777662074E-3},{"$f":"'Population 2016'!AR242/'Population 2016'!AR$5","v":8.1140032832952725E-3},{"$f":"'Population 2016'!AS242/'Population 2016'!AS$5","v":3.6533791139770539E-3},{"$f":"'Population 2016'!AT242/'Population 2016'!AT$5","v":0},{"$f":"'Population 2016'!AU242/'Population 2016'!AU$5","v":0},{"$f":"'Population 2016'!AV242/'Population 2016'!AV$5","v":9.8722415795586532E-3},{"$f":"'Population 2016'!AW242/'Population 2016'!AW$5","v":6.4067362255171151E-3},{"$f":"'Population 2016'!AX242/'Population 2016'!AX$5","v":1.0529409509692424E-2},{"$f":"'Population 2016'!AY242/'Population 2016'!AY$5","v":7.6405250757320764E-3},{"$f":"'Population 2016'!AZ242/'Population 2016'!AZ$5","v":7.0326926727683784E-3},{"$f":"'Population 2016'!BA242/'Population 2016'!BA$5","v":1.9029367307277045E-3},{"$f":"'Population 2016'!BB242/'Population 2016'!BB$5","v":8.3619314611629372E-3},{"$f":"'Population 2016'!BC242/'Population 2016'!BC$5","v":0},240]
[null,"Male 60-64",{"$f":"'Population 2016'!C243/'Population 2016'!C$5","v":1.2977056319095542E-2},{"$f":"'Population 2016'!D243/'Population 2016'!D$5","v":1.2925090226225757E-2},{"$f":"'Population 2016'!E243/'Population 2016'!E$5","v":1.287742770217374E-2},{"$f":"'Population 2016'!F243/'Population 2016'!F$5","v":7.035797064125676E-3},{"$f":"'Population 2016'!G243/'Population 2016'!G$5","v":3.0720511016077518E-3},{"$f":"'Population 2016'!H243/'Population 2016'!H$5","v":5.9044203713851228E-3},{"$f":"'Population 2016'!I243/'Population 2016'!I$5","v":3.8522736789213634E-3},{"$f":"'Population 2016'!J243/'Population 2016'!J$5","v":8.3925594818506748E-3},{"$f":"'Population 2016'!K243/'Population 2016'!K$5","v":6.3554316495770917E-3},{"$f":"'Population 2016'!L243/'Population 2016'!L$5","v":3.7408860578526837E-3},{"$f":"'Population 2016'!M243/'Population 2016'!M$5","v":3.7408860578526837E-3},{"$f":"'Population 2016'!N243/'Population 2016'!N$5","v":5.3286824571414796E-3},{"$f":"'Population 2016'!O243/'Population 2016'!O$5","v":4.6462785191349401E-3},{"$f":"'Population 2016'!P243/'Population 2016'!P$5","v":2.0770877944325482E-2},{"$f":"'Population 2016'!Q243/'Population 2016'!Q$5","v":5.8988731037238106E-3},{"$f":"'Population 2016'!R243/'Population 2016'!R$5","v":2.2049821685207856E-2},{"$f":"'Population 2016'!S243/'Population 2016'!S$5","v":8.6103260361077624E-3},{"$f":"'Population 2016'!T243/'Population 2016'!T$5","v":1.2559154595329055E-2},{"$f":"'Population 2016'!U243/'Population 2016'!U$5","v":0},{"$f":"'Population 2016'!V243/'Population 2016'!V$5","v":6.5867303714671694E-3},{"$f":"'Population 2016'!W243/'Population 2016'!W$5","v":7.1709188842913078E-3},{"$f":"'Population 2016'!X243/'Population 2016'!X$5","v":7.1709188842913078E-3},{"$f":"'Population 2016'!Y243/'Population 2016'!Y$5","v":7.4521867696856967E-3},{"$f":"'Population 2016'!Z243/'Population 2016'!Z$5","v":3.0701745895625678E-3},{"$f":"'Population 2016'!AA243/'Population 2016'!AA$5","v":6.0379083378013058E-3},{"$f":"'Population 2016'!AB243/'Population 2016'!AB$5","v":1.1778553370930268E-2},{"$f":"'Population 2016'!AC243/'Population 2016'!AC$5","v":6.8284166389130799E-3},{"$f":"'Population 2016'!AD243/'Population 2016'!AD$5","v":3.4984554691279914E-3},{"$f":"'Population 2016'!AE243/'Population 2016'!AE$5","v":3.6602018501216645E-3},{"$f":"'Population 2016'!AF243/'Population 2016'!AF$5","v":4.7806481774721379E-3},{"$f":"'Population 2016'!AG243/'Population 2016'!AG$5","v":3.6602018501216645E-3},{"$f":"'Population 2016'!AH243/'Population 2016'!AH$5","v":4.6181139295765486E-3},{"$f":"'Population 2016'!AI243/'Population 2016'!AI$5","v":9.833810919590515E-3},{"$f":"'Population 2016'!AJ243/'Population 2016'!AJ$5","v":5.4931266207511919E-3},{"$f":"'Population 2016'!AK243/'Population 2016'!AK$5","v":5.8836101228266473E-3},{"$f":"'Population 2016'!AL243/'Population 2016'!AL$5","v":4.2035437470069707E-3},{"$f":"'Population 2016'!AM243/'Population 2016'!AM$5","v":3.5024683890456407E-3},{"$f":"'Population 2016'!AN243/'Population 2016'!AN$5","v":2.945347441911203E-3},{"$f":"'Population 2016'!AO243/'Population 2016'!AO$5","v":2.945347441911203E-3},{"$f":"'Population 2016'!AP243/'Population 2016'!AP$5","v":7.1096808965965472E-3},{"$f":"'Population 2016'!AQ243/'Population 2016'!AQ$5","v":7.2614676385159204E-3},{"$f":"'Population 2016'!AR243/'Population 2016'!AR$5","v":7.1291038127706333E-3},{"$f":"'Population 2016'!AS243/'Population 2016'!AS$5","v":3.8522736789213634E-3},{"$f":"'Population 2016'!AT243/'Population 2016'!AT$5","v":0},{"$f":"'Population 2016'!AU243/'Population 2016'!AU$5","v":0},{"$f":"'Population 2016'!AV243/'Population 2016'!AV$5","v":9.2704043923556127E-3},{"$f":"'Population 2016'!AW243/'Population 2016'!AW$5","v":5.7927573372383917E-3},{"$f":"'Population 2016'!AX243/'Population 2016'!AX$5","v":9.4943583321619798E-3},{"$f":"'Population 2016'!AY243/'Population 2016'!AY$5","v":6.7883479697683673E-3},{"$f":"'Population 2016'!AZ243/'Population 2016'!AZ$5","v":6.4516685746500912E-3},{"$f":"'Population 2016'!BA243/'Population 2016'!BA$5","v":1.8759447203627725E-3},{"$f":"'Population 2016'!BB243/'Population 2016'!BB$5","v":6.2075775256692656E-3},{"$f":"'Population 2016'!BC243/'Population 2016'!BC$5","v":0},241]
[null,"Male 65-69",{"$f":"'Population 2016'!C244/'Population 2016'!C$5","v":1.147439599699468E-2},{"$f":"'Population 2016'!D244/'Population 2016'!D$5","v":1.1746525434504074E-2},{"$f":"'Population 2016'!E244/'Population 2016'!E$5","v":1.1996118489210995E-2},{"$f":"'Population 2016'!F244/'Population 2016'!F$5","v":8.395570435230492E-3},{"$f":"'Population 2016'!G244/'Population 2016'!G$5","v":3.2750500730796299E-3},{"$f":"'Population 2016'!H244/'Population 2016'!H$5","v":6.5626286829673199E-3},{"$f":"'Population 2016'!I244/'Population 2016'!I$5","v":4.2186584038187754E-3},{"$f":"'Population 2016'!J244/'Population 2016'!J$5","v":9.2882081222062807E-3},{"$f":"'Population 2016'!K244/'Population 2016'!K$5","v":7.2059726881822045E-3},{"$f":"'Population 2016'!L244/'Population 2016'!L$5","v":4.0665258208504758E-3},{"$f":"'Population 2016'!M244/'Population 2016'!M$5","v":4.0665258208504758E-3},{"$f":"'Population 2016'!N244/'Population 2016'!N$5","v":5.2804590864886152E-3},{"$f":"'Population 2016'!O244/'Population 2016'!O$5","v":4.8741343953398516E-3},{"$f":"'Population 2016'!P244/'Population 2016'!P$5","v":2.0759607798940607E-2},{"$f":"'Population 2016'!Q244/'Population 2016'!Q$5","v":5.969377563130868E-3},{"$f":"'Population 2016'!R244/'Population 2016'!R$5","v":1.9840847394474902E-2},{"$f":"'Population 2016'!S244/'Population 2016'!S$5","v":8.7930361836704787E-3},{"$f":"'Population 2016'!T244/'Population 2016'!T$5","v":1.2519601866888783E-2},{"$f":"'Population 2016'!U244/'Population 2016'!U$5","v":0},{"$f":"'Population 2016'!V244/'Population 2016'!V$5","v":6.3959212645301137E-3},{"$f":"'Population 2016'!W244/'Population 2016'!W$5","v":7.9128507834408651E-3},{"$f":"'Population 2016'!X244/'Population 2016'!X$5","v":7.9128507834408651E-3},{"$f":"'Population 2016'!Y244/'Population 2016'!Y$5","v":7.7820702373571169E-3},{"$f":"'Population 2016'!Z244/'Population 2016'!Z$5","v":2.7256026621085092E-3},{"$f":"'Population 2016'!AA244/'Population 2016'!AA$5","v":5.5688542789888362E-3},{"$f":"'Population 2016'!AB244/'Population 2016'!AB$5","v":1.0793936726610238E-2},{"$f":"'Population 2016'!AC244/'Population 2016'!AC$5","v":6.4395216591749222E-3},{"$f":"'Population 2016'!AD244/'Population 2016'!AD$5","v":3.6808217648591312E-3},{"$f":"'Population 2016'!AE244/'Population 2016'!AE$5","v":3.8347416297908601E-3},{"$f":"'Population 2016'!AF244/'Population 2016'!AF$5","v":5.2933990860969098E-3},{"$f":"'Population 2016'!AG244/'Population 2016'!AG$5","v":3.8347416297908601E-3},{"$f":"'Population 2016'!AH244/'Population 2016'!AH$5","v":4.0050899566239102E-3},{"$f":"'Population 2016'!AI244/'Population 2016'!AI$5","v":9.7586184268089946E-3},{"$f":"'Population 2016'!AJ244/'Population 2016'!AJ$5","v":5.939268884365502E-3},{"$f":"'Population 2016'!AK244/'Population 2016'!AK$5","v":5.8961819393284131E-3},{"$f":"'Population 2016'!AL244/'Population 2016'!AL$5","v":4.4784590553555272E-3},{"$f":"'Population 2016'!AM244/'Population 2016'!AM$5","v":3.0497191143499789E-3},{"$f":"'Population 2016'!AN244/'Population 2016'!AN$5","v":3.436238682229737E-3},{"$f":"'Population 2016'!AO244/'Population 2016'!AO$5","v":3.436238682229737E-3},{"$f":"'Population 2016'!AP244/'Population 2016'!AP$5","v":8.3461471394829043E-3},{"$f":"'Population 2016'!AQ244/'Population 2016'!AQ$5","v":7.1039074916424616E-3},{"$f":"'Population 2016'!AR244/'Population 2016'!AR$5","v":7.0593744451447086E-3},{"$f":"'Population 2016'!AS244/'Population 2016'!AS$5","v":4.2186584038187754E-3},{"$f":"'Population 2016'!AT244/'Population 2016'!AT$5","v":0},{"$f":"'Population 2016'!AU244/'Population 2016'!AU$5","v":0},{"$f":"'Population 2016'!AV244/'Population 2016'!AV$5","v":1.0843627916798649E-2},{"$f":"'Population 2016'!AW244/'Population 2016'!AW$5","v":5.0109829763866007E-3},{"$f":"'Population 2016'!AX244/'Population 2016'!AX$5","v":1.0414403823300153E-2},{"$f":"'Population 2016'!AY244/'Population 2016'!AY$5","v":7.5670879104066582E-3},{"$f":"'Population 2016'!AZ244/'Population 2016'!AZ$5","v":7.2628012264785912E-3},{"$f":"'Population 2016'!BA244/'Population 2016'!BA$5","v":1.3091125026992011E-3},{"$f":"'Population 2016'!BB244/'Population 2016'!BB$5","v":5.6827990029208065E-3},{"$f":"'Population 2016'!BC244/'Population 2016'!BC$5","v":0},242]
[null,"Male 70-74",{"$f":"'Population 2016'!C245/'Population 2016'!C$5","v":7.4979683419114452E-3},{"$f":"'Population 2016'!D245/'Population 2016'!D$5","v":7.75847735297282E-3},{"$f":"'Population 2016'!E245/'Population 2016'!E$5","v":7.997412326140662E-3},{"$f":"'Population 2016'!F245/'Population 2016'!F$5","v":6.2219933041462788E-3},{"$f":"'Population 2016'!G245/'Population 2016'!G$5","v":2.7337194824879553E-3},{"$f":"'Population 2016'!H245/'Population 2016'!H$5","v":4.9641227834105565E-3},{"$f":"'Population 2016'!I245/'Population 2016'!I$5","v":2.7217150992379199E-3},{"$f":"'Population 2016'!J245/'Population 2016'!J$5","v":6.3192987402867738E-3},{"$f":"'Population 2016'!K245/'Population 2016'!K$5","v":4.6543495723668669E-3},{"$f":"'Population 2016'!L245/'Population 2016'!L$5","v":2.8989881340047339E-3},{"$f":"'Population 2016'!M245/'Population 2016'!M$5","v":2.8989881340047339E-3},{"$f":"'Population 2016'!N245/'Population 2016'!N$5","v":4.1230981908198776E-3},{"$f":"'Population 2016'!O245/'Population 2016'!O$5","v":3.1701687124161639E-3},{"$f":"'Population 2016'!P245/'Population 2016'!P$5","v":1.6488222698072805E-2},{"$f":"'Population 2016'!Q245/'Population 2016'!Q$5","v":4.9940658746665725E-3},{"$f":"'Population 2016'!R245/'Population 2016'!R$5","v":1.5196678554319476E-2},{"$f":"'Population 2016'!S245/'Population 2016'!S$5","v":6.3083547083610638E-3},{"$f":"'Population 2016'!T245/'Population 2016'!T$5","v":8.7318464609614562E-3},{"$f":"'Population 2016'!U245/'Population 2016'!U$5","v":0},{"$f":"'Population 2016'!V245/'Population 2016'!V$5","v":4.1978003526152293E-3},{"$f":"'Population 2016'!W245/'Population 2016'!W$5","v":6.2067342576432056E-3},{"$f":"'Population 2016'!X245/'Population 2016'!X$5","v":6.2067342576432056E-3},{"$f":"'Population 2016'!Y245/'Population 2016'!Y$5","v":5.2145434889747377E-3},{"$f":"'Population 2016'!Z245/'Population 2016'!Z$5","v":1.6299413646984125E-3},{"$f":"'Population 2016'!AA245/'Population 2016'!AA$5","v":4.0301443636776759E-3},{"$f":"'Population 2016'!AB245/'Population 2016'!AB$5","v":7.2607801193412692E-3},{"$f":"'Population 2016'!AC245/'Population 2016'!AC$5","v":4.7081115632130171E-3},{"$f":"'Population 2016'!AD245/'Population 2016'!AD$5","v":2.7206073914176187E-3},{"$f":"'Population 2016'!AE245/'Population 2016'!AE$5","v":2.7156336307354286E-3},{"$f":"'Population 2016'!AF245/'Population 2016'!AF$5","v":4.4790299959281549E-3},{"$f":"'Population 2016'!AG245/'Population 2016'!AG$5","v":2.7156336307354286E-3},{"$f":"'Population 2016'!AH245/'Population 2016'!AH$5","v":2.8124796819705934E-3},{"$f":"'Population 2016'!AI245/'Population 2016'!AI$5","v":6.819275527167731E-3},{"$f":"'Population 2016'!AJ245/'Population 2016'!AJ$5","v":3.959512589577001E-3},{"$f":"'Population 2016'!AK245/'Population 2016'!AK$5","v":4.7018593716606112E-3},{"$f":"'Population 2016'!AL245/'Population 2016'!AL$5","v":3.4231390007271952E-3},{"$f":"'Population 2016'!AM245/'Population 2016'!AM$5","v":1.8291070697704743E-3},{"$f":"'Population 2016'!AN245/'Population 2016'!AN$5","v":2.2362823170066545E-3},{"$f":"'Population 2016'!AO245/'Population 2016'!AO$5","v":2.2362823170066545E-3},{"$f":"'Population 2016'!AP245/'Population 2016'!AP$5","v":6.3884089215795062E-3},{"$f":"'Population 2016'!AQ245/'Population 2016'!AQ$5","v":5.1994848468241359E-3},{"$f":"'Population 2016'!AR245/'Population 2016'!AR$5","v":5.0488072156751615E-3},{"$f":"'Population 2016'!AS245/'Population 2016'!AS$5","v":2.7217150992379199E-3},{"$f":"'Population 2016'!AT245/'Population 2016'!AT$5","v":0},{"$f":"'Population 2016'!AU245/'Population 2016'!AU$5","v":0},{"$f":"'Population 2016'!AV245/'Population 2016'!AV$5","v":8.7108013937282226E-3},{"$f":"'Population 2016'!AW245/'Population 2016'!AW$5","v":3.8478552687778388E-3},{"$f":"'Population 2016'!AX245/'Population 2016'!AX$5","v":7.2198014235148296E-3},{"$f":"'Population 2016'!AY245/'Population 2016'!AY$5","v":5.8474342890364435E-3},{"$f":"'Population 2016'!AZ245/'Population 2016'!AZ$5","v":5.53123435980924E-3},{"$f":"'Population 2016'!BA245/'Population 2016'!BA$5","v":6.6130425394083357E-4},{"$f":"'Population 2016'!BB245/'Population 2016'!BB$5","v":3.6320197758643309E-3},{"$f":"'Population 2016'!BC245/'Population 2016'!BC$5","v":0},243]
[null,"Male 75-79",{"$f":"'Population 2016'!C246/'Population 2016'!C$5","v":5.6835315584223087E-3},{"$f":"'Population 2016'!D246/'Population 2016'!D$5","v":5.6923212347055547E-3},{"$f":"'Population 2016'!E246/'Population 2016'!E$5","v":5.7003829944824421E-3},{"$f":"'Population 2016'!F246/'Population 2016'!F$5","v":4.0896214267319084E-3},{"$f":"'Population 2016'!G246/'Population 2016'!G$5","v":1.7051913603637742E-3},{"$f":"'Population 2016'!H246/'Population 2016'!H$5","v":3.4531618316997015E-3},{"$f":"'Population 2016'!I246/'Population 2016'!I$5","v":1.8528598944811993E-3},{"$f":"'Population 2016'!J246/'Population 2016'!J$5","v":5.0753422953484324E-3},{"$f":"'Population 2016'!K246/'Population 2016'!K$5","v":2.8587629353116289E-3},{"$f":"'Population 2016'!L246/'Population 2016'!L$5","v":2.4700967388369102E-3},{"$f":"'Population 2016'!M246/'Population 2016'!M$5","v":2.4700967388369102E-3},{"$f":"'Population 2016'!N246/'Population 2016'!N$5","v":3.3917104025847728E-3},{"$f":"'Population 2016'!O246/'Population 2016'!O$5","v":2.1398638808809108E-3},{"$f":"'Population 2016'!P246/'Population 2016'!P$5","v":1.3783387805702693E-2},{"$f":"'Population 2016'!Q246/'Population 2016'!Q$5","v":3.8307422944501238E-3},{"$f":"'Population 2016'!R246/'Population 2016'!R$5","v":1.2521956672166924E-2},{"$f":"'Population 2016'!S246/'Population 2016'!S$5","v":4.4653653938153941E-3},{"$f":"'Population 2016'!T246/'Population 2016'!T$5","v":6.519220299390888E-3},{"$f":"'Population 2016'!U246/'Population 2016'!U$5","v":0},{"$f":"'Population 2016'!V246/'Population 2016'!V$5","v":2.8239747826684274E-3},{"$f":"'Population 2016'!W246/'Population 2016'!W$5","v":3.9351806457095422E-3},{"$f":"'Population 2016'!X246/'Population 2016'!X$5","v":3.9351806457095422E-3},{"$f":"'Population 2016'!Y246/'Population 2016'!Y$5","v":3.9029586175100555E-3},{"$f":"'Population 2016'!Z246/'Population 2016'!Z$5","v":1.130505649624552E-3},{"$f":"'Population 2016'!AA246/'Population 2016'!AA$5","v":2.9877281904811259E-3},{"$f":"'Population 2016'!AB246/'Population 2016'!AB$5","v":5.3570514723191714E-3},{"$f":"'Population 2016'!AC246/'Population 2016'!AC$5","v":3.5827984303536671E-3},{"$f":"'Population 2016'!AD246/'Population 2016'!AD$5","v":1.8124976738992892E-3},{"$f":"'Population 2016'!AE246/'Population 2016'!AE$5","v":1.8532017782523435E-3},{"$f":"'Population 2016'!AF246/'Population 2016'!AF$5","v":3.0161818154398347E-3},{"$f":"'Population 2016'!AG246/'Population 2016'!AG$5","v":1.8532017782523435E-3},{"$f":"'Population 2016'!AH246/'Population 2016'!AH$5","v":1.9189508001820495E-3},{"$f":"'Population 2016'!AI246/'Population 2016'!AI$5","v":5.0283270627351478E-3},{"$f":"'Population 2016'!AJ246/'Population 2016'!AJ$5","v":2.5374341243063884E-3},{"$f":"'Population 2016'!AK246/'Population 2016'!AK$5","v":3.6332549690104724E-3},{"$f":"'Population 2016'!AL246/'Population 2016'!AL$5","v":2.2259271740479947E-3},{"$f":"'Population 2016'!AM246/'Population 2016'!AM$5","v":1.3039179111235064E-3},{"$f":"'Population 2016'!AN246/'Population 2016'!AN$5","v":1.1999563652230827E-3},{"$f":"'Population 2016'!AO246/'Population 2016'!AO$5","v":1.1999563652230827E-3},{"$f":"'Population 2016'!AP246/'Population 2016'!AP$5","v":4.8824564462692007E-3},{"$f":"'Population 2016'!AQ246/'Population 2016'!AQ$5","v":3.3156135255110429E-3},{"$f":"'Population 2016'!AR246/'Population 2016'!AR$5","v":3.670259845485959E-3},{"$f":"'Population 2016'!AS246/'Population 2016'!AS$5","v":1.8528598944811993E-3},{"$f":"'Population 2016'!AT246/'Population 2016'!AT$5","v":0},{"$f":"'Population 2016'!AU246/'Population 2016'!AU$5","v":0},{"$f":"'Population 2016'!AV246/'Population 2016'!AV$5","v":6.3140111920599725E-3},{"$f":"'Population 2016'!AW246/'Population 2016'!AW$5","v":2.5665080236744156E-3},{"$f":"'Population 2016'!AX246/'Population 2016'!AX$5","v":6.2741991131783741E-3},{"$f":"'Population 2016'!AY246/'Population 2016'!AY$5","v":4.0375141519537342E-3},{"$f":"'Population 2016'!AZ246/'Population 2016'!AZ$5","v":4.1275721821769423E-3},{"$f":"'Population 2016'!BA246/'Population 2016'!BA$5","v":4.318721658389117E-4},{"$f":"'Population 2016'!BB246/'Population 2016'!BB$5","v":2.5410328469925359E-3},{"$f":"'Population 2016'!BC246/'Population 2016'!BC$5","v":0},244]
[null,"Male 80-84",{"$f":"'Population 2016'!C247/'Population 2016'!C$5","v":4.206426683976223E-3},{"$f":"'Population 2016'!D247/'Population 2016'!D$5","v":3.9415901333098597E-3},{"$f":"'Population 2016'!E247/'Population 2016'!E$5","v":3.6986860054659923E-3},{"$f":"'Population 2016'!F247/'Population 2016'!F$5","v":3.3994334277620396E-3},{"$f":"'Population 2016'!G247/'Population 2016'!G$5","v":1.0285281221241813E-3},{"$f":"'Population 2016'!H247/'Population 2016'!H$5","v":2.4771977834916166E-3},{"$f":"'Population 2016'!I247/'Population 2016'!I$5","v":1.36085754961896E-3},{"$f":"'Population 2016'!J247/'Population 2016'!J$5","v":3.5328363036248893E-3},{"$f":"'Population 2016'!K247/'Population 2016'!K$5","v":1.9137173368615036E-3},{"$f":"'Population 2016'!L247/'Population 2016'!L$5","v":1.6123139485012628E-3},{"$f":"'Population 2016'!M247/'Population 2016'!M$5","v":1.6123139485012628E-3},{"$f":"'Population 2016'!N247/'Population 2016'!N$5","v":2.6281737005810915E-3},{"$f":"'Population 2016'!O247/'Population 2016'!O$5","v":1.3374149255505692E-3},{"$f":"'Population 2016'!P247/'Population 2016'!P$5","v":1.0267102445621549E-2},{"$f":"'Population 2016'!Q247/'Population 2016'!Q$5","v":2.6321664845301465E-3},{"$f":"'Population 2016'!R247/'Population 2016'!R$5","v":9.1286527918241333E-3},{"$f":"'Population 2016'!S247/'Population 2016'!S$5","v":3.2958439178704647E-3},{"$f":"'Population 2016'!T247/'Population 2016'!T$5","v":5.1348748039813314E-3},{"$f":"'Population 2016'!U247/'Population 2016'!U$5","v":0},{"$f":"'Population 2016'!V247/'Population 2016'!V$5","v":2.0683707191976857E-3},{"$f":"'Population 2016'!W247/'Population 2016'!W$5","v":2.8500643879225255E-3},{"$f":"'Population 2016'!X247/'Population 2016'!X$5","v":2.8500643879225255E-3},{"$f":"'Population 2016'!Y247/'Population 2016'!Y$5","v":2.7702262285178294E-3},{"$f":"'Population 2016'!Z247/'Population 2016'!Z$5","v":7.5108936995603806E-4},{"$f":"'Population 2016'!AA247/'Population 2016'!AA$5","v":2.0742022260800698E-3},{"$f":"'Population 2016'!AB247/'Population 2016'!AB$5","v":3.69691821131388E-3},{"$f":"'Population 2016'!AC247/'Population 2016'!AC$5","v":2.5216115973447574E-3},{"$f":"'Population 2016'!AD247/'Population 2016'!AD$5","v":1.2840075923927202E-3},{"$f":"'Population 2016'!AE247/'Population 2016'!AE$5","v":1.3809176685592255E-3},{"$f":"'Population 2016'!AF247/'Population 2016'!AF$5","v":2.1264081798850836E-3},{"$f":"'Population 2016'!AG247/'Population 2016'!AG$5","v":1.3809176685592255E-3},{"$f":"'Population 2016'!AH247/'Population 2016'!AH$5","v":1.2706315075745613E-3},{"$f":"'Population 2016'!AI247/'Population 2016'!AI$5","v":3.7350161868929914E-3},{"$f":"'Population 2016'!AJ247/'Population 2016'!AJ$5","v":1.5754398683880321E-3},{"$f":"'Population 2016'!AK247/'Population 2016'!AK$5","v":2.43893240134267E-3},{"$f":"'Population 2016'!AL247/'Population 2016'!AL$5","v":1.6849647931040598E-3},{"$f":"'Population 2016'!AM247/'Population 2016'!AM$5","v":7.0991086272279794E-4},{"$f":"'Population 2016'!AN247/'Population 2016'!AN$5","v":8.7269553834406024E-4},{"$f":"'Population 2016'!AO247/'Population 2016'!AO$5","v":8.7269553834406024E-4},{"$f":"'Population 2016'!AP247/'Population 2016'!AP$5","v":3.7965854509138756E-3},{"$f":"'Population 2016'!AQ247/'Population 2016'!AQ$5","v":1.9934783800076724E-3},{"$f":"'Population 2016'!AR247/'Population 2016'!AR$5","v":2.6338987649881939E-3},{"$f":"'Population 2016'!AS247/'Population 2016'!AS$5","v":1.36085754961896E-3},{"$f":"'Population 2016'!AT247/'Population 2016'!AT$5","v":0},{"$f":"'Population 2016'!AU247/'Population 2016'!AU$5","v":0},{"$f":"'Population 2016'!AV247/'Population 2016'!AV$5","v":4.6352021961778064E-3},{"$f":"'Population 2016'!AW247/'Population 2016'!AW$5","v":1.8610043321740191E-3},{"$f":"'Population 2016'!AX247/'Population 2016'!AX$5","v":4.4085513117037454E-3},{"$f":"'Population 2016'!AY247/'Population 2016'!AY$5","v":3.0721214161133379E-3},{"$f":"'Population 2016'!AZ247/'Population 2016'!AZ$5","v":3.2675414626850215E-3},{"$f":"'Population 2016'!BA247/'Population 2016'!BA$5","v":2.834161088317858E-4},{"$f":"'Population 2016'!BB247/'Population 2016'!BB$5","v":1.2981363457461868E-3},{"$f":"'Population 2016'!BC247/'Population 2016'!BC$5","v":0},245]
[null,"Male 85-89",{"$f":"'Population 2016'!C248/'Population 2016'!C$5","v":2.3204346470537124E-3},{"$f":"'Population 2016'!D248/'Population 2016'!D$5","v":2.1419559285232241E-3},{"$f":"'Population 2016'!E248/'Population 2016'!E$5","v":1.9782579142036106E-3},{"$f":"'Population 2016'!F248/'Population 2016'!F$5","v":1.4833891321143445E-3},{"$f":"'Population 2016'!G248/'Population 2016'!G$5","v":7.0372976776917663E-4},{"$f":"'Population 2016'!H248/'Population 2016'!H$5","v":1.2742653519793264E-3},{"$f":"'Population 2016'!I248/'Population 2016'!I$5","v":8.374507997655138E-4},{"$f":"'Population 2016'!J248/'Population 2016'!J$5","v":1.4678686050272427E-3},{"$f":"'Population 2016'!K248/'Population 2016'!K$5","v":8.0328875868260641E-4},{"$f":"'Population 2016'!L248/'Population 2016'!L$5","v":8.3395549060410145E-4},{"$f":"'Population 2016'!M248/'Population 2016'!M$5","v":8.3395549060410145E-4},{"$f":"'Population 2016'!N248/'Population 2016'!N$5","v":1.50296171868093E-3},{"$f":"'Population 2016'!O248/'Population 2016'!O$5","v":7.4300829197253846E-4},{"$f":"'Population 2016'!P248/'Population 2016'!P$5","v":5.0377549870393324E-3},{"$f":"'Population 2016'!Q248/'Population 2016'!Q$5","v":1.1868250666854678E-3},{"$f":"'Population 2016'!R248/'Population 2016'!R$5","v":4.7639325065204664E-3},{"$f":"'Population 2016'!S248/'Population 2016'!S$5","v":1.7441316501639096E-3},{"$f":"'Population 2016'!T248/'Population 2016'!T$5","v":2.8571029720385476E-3},{"$f":"'Population 2016'!U248/'Population 2016'!U$5","v":0},{"$f":"'Population 2016'!V248/'Population 2016'!V$5","v":8.3956007052304589E-4},{"$f":"'Population 2016'!W248/'Population 2016'!W$5","v":1.3923479693291236E-3},{"$f":"'Population 2016'!X248/'Population 2016'!X$5","v":1.3923479693291236E-3},{"$f":"'Population 2016'!Y248/'Population 2016'!Y$5","v":1.1406813882132239E-3},{"$f":"'Population 2016'!Z248/'Population 2016'!Z$5","v":3.6780149559702892E-4},{"$f":"'Population 2016'!AA248/'Population 2016'!AA$5","v":1.0045463695813792E-3},{"$f":"'Population 2016'!AB248/'Population 2016'!AB$5","v":2.0367849503085881E-3},{"$f":"'Population 2016'!AC248/'Population 2016'!AC$5","v":1.2514971422424761E-3},{"$f":"'Population 2016'!AD248/'Population 2016'!AD$5","v":7.1829989951244927E-4},{"$f":"'Population 2016'!AE248/'Population 2016'!AE$5","v":7.2382673333401776E-4},{"$f":"'Population 2016'!AF248/'Population 2016'!AF$5","v":1.0104209081723446E-3},{"$f":"'Population 2016'!AG248/'Population 2016'!AG$5","v":7.2382673333401776E-4},{"$f":"'Population 2016'!AH248/'Population 2016'!AH$5","v":5.6100981767180928E-4},{"$f":"'Population 2016'!AI248/'Population 2016'!AI$5","v":2.0096902616151893E-3},{"$f":"'Population 2016'!AJ248/'Population 2016'!AJ$5","v":7.8074896132504252E-4},{"$f":"'Population 2016'!AK248/'Population 2016'!AK$5","v":1.4960461637101945E-3},{"$f":"'Population 2016'!AL248/'Population 2016'!AL$5","v":8.070094535393129E-4},{"$f":"'Population 2016'!AM248/'Population 2016'!AM$5","v":3.1511349518818072E-4},{"$f":"'Population 2016'!AN248/'Population 2016'!AN$5","v":5.4543471146503762E-4},{"$f":"'Population 2016'!AO248/'Population 2016'!AO$5","v":5.4543471146503762E-4},{"$f":"'Population 2016'!AP248/'Population 2016'!AP$5","v":2.1004073997748997E-3},{"$f":"'Population 2016'!AQ248/'Population 2016'!AQ$5","v":9.727626459143969E-4},{"$f":"'Population 2016'!AR248/'Population 2016'!AR$5","v":1.351591288774708E-3},{"$f":"'Population 2016'!AS248/'Population 2016'!AS$5","v":8.374507997655138E-4},{"$f":"'Population 2016'!AT248/'Population 2016'!AT$5","v":0},{"$f":"'Population 2016'!AU248/'Population 2016'!AU$5","v":0},{"$f":"'Population 2016'!AV248/'Population 2016'!AV$5","v":2.3967902016682504E-3},{"$f":"'Population 2016'!AW248/'Population 2016'!AW$5","v":8.1990969552748799E-4},{"$f":"'Population 2016'!AX248/'Population 2016'!AX$5","v":1.8273125726772047E-3},{"$f":"'Population 2016'!AY248/'Population 2016'!AY$5","v":1.5635996450537009E-3},{"$f":"'Population 2016'!AZ248/'Population 2016'!AZ$5","v":1.7143087251410853E-3},{"$f":"'Population 2016'!BA248/'Population 2016'!BA$5","v":8.0976031094795946E-5},{"$f":"'Population 2016'!BB248/'Population 2016'!BB$5","v":5.8692334781077589E-4},{"$f":"'Population 2016'!BC248/'Population 2016'!BC$5","v":0},246]
[null,"Male 90+",{"$f":"'Population 2016'!C249/'Population 2016'!C$5","v":1.1346618758720796E-3},{"$f":"'Population 2016'!D249/'Population 2016'!D$5","v":1.0098490850229355E-3},{"$f":"'Population 2016'!E249/'Population 2016'!E$5","v":8.9537265785044932E-4},{"$f":"'Population 2016'!F249/'Population 2016'!F$5","v":5.3566829770795778E-4},{"$f":"'Population 2016'!G249/'Population 2016'!G$5","v":1.8946570670708602E-4},{"$f":"'Population 2016'!H249/'Population 2016'!H$5","v":6.1929944587290416E-4},{"$f":"'Population 2016'!I249/'Population 2016'!I$5","v":2.4076710493258521E-4},{"$f":"'Population 2016'!J249/'Population 2016'!J$5","v":5.9709909357040384E-4},{"$f":"'Population 2016'!K249/'Population 2016'!K$5","v":2.1263525965127818E-4},{"$f":"'Population 2016'!L249/'Population 2016'!L$5","v":3.4946706272933774E-4},{"$f":"'Population 2016'!M249/'Population 2016'!M$5","v":3.4946706272933774E-4},{"$f":"'Population 2016'!N249/'Population 2016'!N$5","v":4.9027093497078472E-4},{"$f":"'Population 2016'!O249/'Population 2016'!O$5","v":2.9720331678901538E-4},{"$f":"'Population 2016'!P249/'Population 2016'!P$5","v":2.1413276231263384E-3},{"$f":"'Population 2016'!Q249/'Population 2016'!Q$5","v":7.4029682377410371E-4},{"$f":"'Population 2016'!R249/'Population 2016'!R$5","v":1.9827540320434341E-3},{"$f":"'Population 2016'!S249/'Population 2016'!S$5","v":8.2263699289107477E-4},{"$f":"'Population 2016'!T249/'Population 2016'!T$5","v":1.3820188643248348E-3},{"$f":"'Population 2016'!U249/'Population 2016'!U$5","v":0},{"$f":"'Population 2016'!V249/'Population 2016'!V$5","v":3.816182138741118E-4},{"$f":"'Population 2016'!W249/'Population 2016'!W$5","v":5.948528883049308E-4},{"$f":"'Population 2016'!X249/'Population 2016'!X$5","v":5.948528883049308E-4},{"$f":"'Population 2016'!Y249/'Population 2016'!Y$5","v":4.8488895248088268E-4},{"$f":"'Population 2016'!Z249/'Population 2016'!Z$5","v":1.9357973452475207E-4},{"$f":"'Population 2016'!AA249/'Population 2016'!AA$5","v":4.2121851740383229E-4},{"$f":"'Population 2016'!AB249/'Population 2016'!AB$5","v":9.4162922325824179E-4},{"$f":"'Population 2016'!AC249/'Population 2016'!AC$5","v":5.3886777777547939E-4},{"$f":"'Population 2016'!AD249/'Population 2016'!AD$5","v":2.6052327961591427E-4},{"$f":"'Population 2016'!AE249/'Population 2016'!AE$5","v":2.8747728416102832E-4},{"$f":"'Population 2016'!AF249/'Population 2016'!AF$5","v":6.3339818124236527E-4},{"$f":"'Population 2016'!AG249/'Population 2016'!AG$5","v":2.8747728416102832E-4},{"$f":"'Population 2016'!AH249/'Population 2016'!AH$5","v":2.0991426952620678E-4},{"$f":"'Population 2016'!AI249/'Population 2016'!AI$5","v":9.939080409484644E-4},{"$f":"'Population 2016'!AJ249/'Population 2016'!AJ$5","v":3.3460669771073249E-4},{"$f":"'Population 2016'!AK249/'Population 2016'!AK$5","v":5.9087537558301796E-4},{"$f":"'Population 2016'!AL249/'Population 2016'!AL$5","v":3.7246590163352901E-4},{"$f":"'Population 2016'!AM249/'Population 2016'!AM$5","v":1.4487976790261183E-4},{"$f":"'Population 2016'!AN249/'Population 2016'!AN$5","v":2.1817388458601506E-4},{"$f":"'Population 2016'!AO249/'Population 2016'!AO$5","v":2.1817388458601506E-4},{"$f":"'Population 2016'!AP249/'Population 2016'!AP$5","v":8.5601509122901578E-4},{"$f":"'Population 2016'!AQ249/'Population 2016'!AQ$5","v":2.6031676439962733E-4},{"$f":"'Population 2016'!AR249/'Population 2016'!AR$5","v":5.9659823163650376E-4},{"$f":"'Population 2016'!AS249/'Population 2016'!AS$5","v":2.4076710493258521E-4},{"$f":"'Population 2016'!AT249/'Population 2016'!AT$5","v":0},{"$f":"'Population 2016'!AU249/'Population 2016'!AU$5","v":0},{"$f":"'Population 2016'!AV249/'Population 2016'!AV$5","v":1.2564671101256467E-3},{"$f":"'Population 2016'!AW249/'Population 2016'!AW$5","v":2.7838794313258896E-4},{"$f":"'Population 2016'!AX249/'Population 2016'!AX$5","v":8.0503980474590133E-4},{"$f":"'Population 2016'!AY249/'Population 2016'!AY$5","v":6.1656620054465893E-4},{"$f":"'Population 2016'!AZ249/'Population 2016'!AZ$5","v":6.3567487962446281E-4},{"$f":"'Population 2016'!BA249/'Population 2016'!BA$5","v":2.6992010364931981E-5},{"$f":"'Population 2016'!BB249/'Population 2016'!BB$5","v":3.1762910587406699E-4},{"$f":"'Population 2016'!BC249/'Population 2016'!BC$5","v":0},247]

{"sheet":"Pop2016fractionQ1","index":15,"n_rows":249,"n_cols":56,"rows_kept":249,"cut":false,"hidden":true,"merged":[]}
["Q1 subgroup's fraction of area's 2016 Q1 population (16+ only)"]
[]
["SIMD","group","Aberdeen City Local Authority","Aberdeen City Region Deal","Aberdeenshire Local Authority","Angus Local Authority","Argyll & Bute Local Authority","Ayrshire & Arran Health Board","Borders Health Board","Clackmannanshire & Stirling IJB","Clackmannanshire Local Authority","Dumfries & Galloway Health Board","Dumfries & Galloway Local Authority","Dundee City Local Authority","East Ayrshire Local Authority","East Dunbartonshire Local Authority","East Lothian Local Authority","East Renfrewshire Local Authority","Edinburgh & SE Scotland City Region Deal","Edinburgh, City of Local Authority","Eilean Siar Local Authority","Falkirk Local Authority","Fife Health Board","Fife Local Authority","Forth Valley Health Board","Glasgow City Local Authority","Glasgow City Region Deal","Grampian Health Board","Greater Glasgow & Clyde Health Board","Highland Health Board","Highland Local Authority","Inverclyde Local Authority","Inverness & Highland City Region Deal","Lanarkshire Health Board","Lothian Health Board","Midlothian Local Authority","Moray Local Authority","North Ayrshire Local Authority","North Lanarkshire Local Authority","Orkney Health Board","Orkney Islands Local Authority","Perth & Kinross Local Authority","Renfrewshire Local Authority","Scotland","Scottish Borders Local Authority","Shetland Health Board","Shetland Islands Local Authority","South Ayrshire Local Authority","South Lanarkshire Local Authority","Stirling Local Authority","Tay Cities Region Deal ","Tayside Health Board","West Dunbartonshire Local Authority","West Lothian Local Authority","Western Isles Health Board",1]
[null,null,"popS12000033","Aber_deal","popS12000034","popS12000041","popS12000035","popS08000015","popS08000016","ClacksStirIJB","popS12000005","popS08000017","popS12000006","popS12000042","popS12000008","popS12000045","popS12000010","popS12000011","EdinSE_deal","popS12000036","popS12000013","popS12000014","popS08000018","popS12000015","popS08000019","popS12000046","GClyde_deal","popS08000020","popS08000021","popS08000022","popS12000017","popS12000018","Inver_deal","popS08000023","popS08000024","popS12000019","popS12000020","popS12000021","popS12000044","popS08000025","popS12000023","popS12000024","popS12000038","popS00000001","popS12000026","popS08000026","popS12000027","popS12000028","popS12000029","popS12000030","Tay_deal","popS08000027","popS12000039","popS12000040","popS08000028",2]
["All quintiles","16+ Males and Females",null,null,null,null,null,null,null,null,null,null,null,null,null,null,null,null,null,null,null,null,null,null,null,null,null,null,null,null,null,null,null,null,null,null,null,null,null,null,null,null,null,null,null,null,null,null,null,null,null,null,null,null,null,3]
["Q1 and Q2","16+ Males and Females",null,null,null,null,null,null,null,null,null,null,null,null,null,null,null,null,null,null,null,null,null,null,null,null,null,null,null,null,null,null,null,null,null,null,null,null,null,null,null,null,null,null,null,null,null,null,null,null,null,null,null,null,null,4]
["SIMD Q1 (most deprived)","16+ Males and Females",{"$f":"'Population 2016'!R7/'Population 2016'!R$7","v":1},{"$f":"'Population 2016'!AX7/'Population 2016'!AX$7","v":1},{"$f":"'Population 2016'!S7/'Population 2016'!S$7","v":1},{"$f":"'Population 2016'!T7/'Population 2016'!T$7","v":1},{"$f":"'Population 2016'!U7/'Population 2016'!U$7","v":{"$error":"#DIV/0!"}},{"$f":"'Population 2016'!D7/'Population 2016'!D$7","v":1},{"$f":"'Population 2016'!E7/'Population 2016'!E$7","v":1},{"$f":"'Population 2016'!BC7/'Population 2016'!BC$7","v":{"$error":"#DIV/0!"}},{"$f":"'Population 2016'!V7/'Population 2016'!V$7","v":1},{"$f":"'Population 2016'!F7/'Population 2016'!F$7","v":1},{"$f":"'Population 2016'!W7/'Population 2016'!W$7","v":1},{"$f":"'Population 2016'!X7/'Population 2016'!X$7","v":1},{"$f":"'Population 2016'!Y7/'Population 2016'!Y$7","v":1},{"$f":"'Population 2016'!Z7/'Population 2016'!Z$7","v":1},{"$f":"'Population 2016'!AA7/'Population 2016'!AA$7","v":1},{"$f":"'Population 2016'!AB7/'Population 2016'!AB$7","v":1},{"$f":"'Population 2016'!AY7/'Population 2016'!AY$7","v":1},{"$f":"'Population 2016'!AC7/'Population 2016'!AC$7","v":1},{"$f":"'Population 2016'!AD7/'Population 2016'!AD$7","v":1},{"$f":"'Population 2016'!AE7/'Population 2016'!AE$7","v":1},{"$f":"'Population 2016'!G7/'Population 2016'!G$7","v":1},{"$f":"'Population 2016'!AF7/'Population 2016'!AF$7","v":1},{"$f":"'Population 2016'!H7/'Population 2016'!H$7","v":1},{"$f":"'Population 2016'!AG7/'Population 2016'!AG$7","v":1},{"$f":"'Population 2016'!AZ7/'Population 2016'!AZ$7","v":1},{"$f":"'Population 2016'!I7/'Population 2016'!I$7","v":1},{"$f":"'Population 2016'!J7/'Population 2016'!J$7","v":1},{"$f":"'Population 2016'!K7/'Population 2016'!K$7","v":1},{"$f":"'Population 2016'!AH7/'Population 2016'!AH$7","v":1},{"$f":"'Population 2016'!AI7/'Population 2016'!AI$7","v":1},{"$f":"'Population 2016'!BA7/'Population 2016'!BA$7","v":1},{"$f":"'Population 2016'!L7/'Population 2016'!L$7","v":1},{"$f":"'Population 2016'!M7/'Population 2016'!M$7","v":1},{"$f":"'Population 2016'!AJ7/'Population 2016'!AJ$7","v":1},{"$f":"'Population 2016'!AK7/'Population 2016'!AK$7","v":1},{"$f":"'Population 2016'!AL7/'Population 2016'!AL$7","v":1},{"$f":"'Population 2016'!AM7/'Population 2016'!AM$7","v":1},{"$f":"'Population 2016'!N7/'Population 2016'!N$7","v":1},{"$f":"'Population 2016'!AN7/'Population 2016'!AN$7","v":{"$error":"#DIV/0!"}},{"$f":"'Population 2016'!AO7/'Population 2016'!AO$7","v":{"$error":"#DIV/0!"}},{"$f":"'Population 2016'!AP7/'Population 2016'!AP$7","v":1},{"$f":"'Population 2016'!C7/'Population 2016'!C$7","v":1},{"$f":"'Population 2016'!AQ7/'Population 2016'!AQ$7","v":1},{"$f":"'Population 2016'!O7/'Population 2016'!O$7","v":1},{"$f":"'Population 2016'!AR7/'Population 2016'!AR$7","v":1},{"$f":"'Population 2016'!AS7/'Population 2016'!AS$7","v":1},{"$f":"'Population 2016'!AT7/'Population 2016'!AT$7","v":{"$error":"#DIV/0!"}},{"$f":"'Population 2016'!AU7/'Population 2016'!AU$7","v":{"$error":"#DIV/0!"}},{"$f":"'Population 2016'!BB7/'Population 2016'!BB$7","v":1},{"$f":"'Population 2016'!P7/'Population 2016'!P$7","v":1},{"$f":"'Population 2016'!AV7/'Population 2016'!AV$7","v":1},{"$f":"'Population 2016'!AW7/'Population 2016'!AW$7","v":1},{"$f":"'Population 2016'!Q7/'Population 2016'!Q$7","v":1},5]
["SIMD Q2",null,null,null,null,null,null,null,null,null,null,null,null,null,null,null,null,null,null,null,null,null,null,null,null,null,null,null,null,null,null,null,null,null,null,null,null,null,null,null,null,null,null,null,null,null,null,null,null,null,null,null,null,null,null,6]
["SIMD Q3",null,null,null,null,null,null,null,null,null,null,null,null,null,null,null,null,null,null,null,null,null,null,null,null,null,null,null,null,null,null,null,null,null,null,null,null,null,null,null,null,null,null,null,null,null,null,null,null,null,null,null,null,null,null,7]
["SIMD Q4",null,null,null,null,null,null,null,null,null,null,null,null,null,null,null,null,null,null,null,null,null,null,null,null,null,null,null,null,null,null,null,null,null,null,null,null,null,null,null,null,null,null,null,null,null,null,null,null,null,null,null,null,null,null,8]
["SIMD Q5 (least deprived)",null,null,null,null,null,null,null,null,null,null,null,null,null,null,null,null,null,null,null,null,null,null,null,null,null,null,null,null,null,null,null,null,null,null,null,null,null,null,null,null,null,null,null,null,null,null,null,null,null,null,null,null,null,null,9]
["SIMD Q1 (most deprived)","16+ Females",null,null,null,null,null,null,null,null,null,null,null,null,null,null,null,null,null,null,null,null,null,null,null,null,null,null,null,null,null,null,null,null,null,null,null,null,null,null,null,null,null,null,null,null,null,null,null,null,null,null,null,null,null,10]
["SIMD Q2",null,null,null,null,null,null,null,null,null,null,null,null,null,null,null,null,null,null,null,null,null,null,null,null,null,null,null,null,null,null,null,null,null,null,null,null,null,null,null,null,null,null,null,null,null,null,null,null,null,null,null,null,null,null,11]
["SIMD Q3",null,null,null,null,null,null,null,null,null,null,null,null,null,null,null,null,null,null,null,null,null,null,null,null,null,null,null,null,null,null,null,null,null,null,null,null,null,null,null,null,null,null,null,null,null,null,null,null,null,null,null,null,null,null,12]
["SIMD Q4",null,null,null,null,null,null,null,null,null,null,null,null,null,null,null,null,null,null,null,null,null,null,null,null,null,null,null,null,null,null,null,null,null,null,null,null,null,null,null,null,null,null,null,null,null,null,null,null,null,null,null,null,null,null,13]
["SIMD Q5 (least deprived)",null,null,null,null,null,null,null,null,null,null,null,null,null,null,null,null,null,null,null,null,null,null,null,null,null,null,null,null,null,null,null,null,null,null,null,null,null,null,null,null,null,null,null,null,null,null,null,null,null,null,null,null,null,null,14]
["SIMD Q1 (most deprived)","16+ Males",null,null,null,null,null,null,null,null,null,null,null,null,null,null,null,null,null,null,null,null,null,null,null,null,null,null,null,null,null,null,null,null,null,null,null,null,null,null,null,null,null,null,null,null,null,null,null,null,null,null,null,null,null,15]
["SIMD Q2",null,null,null,null,null,null,null,null,null,null,null,null,null,null,null,null,null,null,null,null,null,null,null,null,null,null,null,null,null,null,null,null,null,null,null,null,null,null,null,null,null,null,null,null,null,null,null,null,null,null,null,null,null,null,16]
["SIMD Q3",null,null,null,null,null,null,null,null,null,null,null,null,null,null,null,null,null,null,null,null,null,null,null,null,null,null,null,null,null,null,null,null,null,null,null,null,null,null,null,null,null,null,null,null,null,null,null,null,null,null,null,null,null,null,17]
["SIMD Q4",null,null,null,null,null,null,null,null,null,null,null,null,null,null,null,null,null,null,null,null,null,null,null,null,null,null,null,null,null,null,null,null,null,null,null,null,null,null,null,null,null,null,null,null,null,null,null,null,null,null,null,null,null,null,18]
["SIMD Q5 (least deprived)",null,null,null,null,null,null,null,null,null,null,null,null,null,null,null,null,null,null,null,null,null,null,null,null,null,null,null,null,null,null,null,null,null,null,null,null,null,null,null,null,null,null,null,null,null,null,null,null,null,null,null,null,null,null,19]
["All quintiles","Female 0-4",null,null,null,null,null,null,null,null,null,null,null,null,null,null,null,null,null,null,null,null,null,null,null,null,null,null,null,null,null,null,null,null,null,null,null,null,null,null,null,null,null,null,null,null,null,null,null,null,null,null,null,null,null,20]
[null,"Female 5-9",null,null,null,null,null,null,null,null,null,null,null,null,null,null,null,null,null,null,null,null,null,null,null,null,null,null,null,null,null,null,null,null,null,null,null,null,null,null,null,null,null,null,null,null,null,null,null,null,null,null,null,null,null,21]
[null,"Female 10-15",null,null,null,null,null,null,null,null,null,null,null,null,null,null,null,null,null,null,null,null,null,null,null,null,null,null,null,null,null,null,null,null,null,null,null,null,null,null,null,null,null,null,null,null,null,null,null,null,null,null,null,null,null,22]
[null,"Female 16-19",null,null,null,null,null,null,null,null,null,null,null,null,null,null,null,null,null,null,null,null,null,null,null,null,null,null,null,null,null,null,null,null,null,null,null,null,null,null,null,null,null,null,null,null,null,null,null,null,null,null,null,null,null,23]
[null,"Female 20-24",null,null,null,null,null,null,null,null,null,null,null,null,null,null,null,null,null,null,null,null,null,null,null,null,null,null,null,null,null,null,null,null,null,null,null,null,null,null,null,null,null,null,null,null,null,null,null,null,null,null,null,null,null,24]
[null,"Female 25-29",null,null,null,null,null,null,null,null,null,null,null,null,null,null,null,null,null,null,null,null,null,null,null,null,null,null,null,null,null,null,null,null,null,null,null,null,null,null,null,null,null,null,null,null,null,null,null,null,null,null,null,null,null,25]
[null,"Female 30-34",null,null,null,null,null,null,null,null,null,null,null,null,null,null,null,null,null,null,null,null,null,null,null,null,null,null,null,null,null,null,null,null,null,null,null,null,null,null,null,null,null,null,null,null,null,null,null,null,null,null,null,null,null,26]
[null,"Female 35-39",null,null,null,null,null,null,null,null,null,null,null,null,null,null,null,null,null,null,null,null,null,null,null,null,null,null,null,null,null,null,null,null,null,null,null,null,null,null,null,null,null,null,null,null,null,null,null,null,null,null,null,null,null,27]
[null,"Female 40-44",null,null,null,null,null,null,null,null,null,null,null,null,null,null,null,null,null,null,null,null,null,null,null,null,null,null,null,null,null,null,null,null,null,null,null,null,null,null,null,null,null,null,null,null,null,null,null,null,null,null,null,null,null,28]
[null,"Female 45-49",null,null,null,null,null,null,null,null,null,null,null,null,null,null,null,null,null,null,null,null,null,null,null,null,null,null,null,null,null,null,null,null,null,null,null,null,null,null,null,null,null,null,null,null,null,null,null,null,null,null,null,null,null,29]
[null,"Female 50-54",null,null,null,null,null,null,null,null,null,null,null,null,null,null,null,null,null,null,null,null,null,null,null,null,null,null,null,null,null,null,null,null,null,null,null,null,null,null,null,null,null,null,null,null,null,null,null,null,null,null,null,null,null,30]
[null,"Female 55-59",null,null,null,null,null,null,null,null,null,null,null,null,null,null,null,null,null,null,null,null,null,null,null,null,null,null,null,null,null,null,null,null,null,null,null,null,null,null,null,null,null,null,null,null,null,null,null,null,null,null,null,null,null,31]
[null,"Female 60-64",null,null,null,null,null,null,null,null,null,null,null,null,null,null,null,null,null,null,null,null,null,null,null,null,null,null,null,null,null,null,null,null,null,null,null,null,null,null,null,null,null,null,null,null,null,null,null,null,null,null,null,null,null,32]
[null,"Female 65-69",null,null,null,null,null,null,null,null,null,null,null,null,null,null,null,null,null,null,null,null,null,null,null,null,null,null,null,null,null,null,null,null,null,null,null,null,null,null,null,null,null,null,null,null,null,null,null,null,null,null,null,null,null,33]
[null,"Female 70-74",null,null,null,null,null,null,null,null,null,null,null,null,null,null,null,null,null,null,null,null,null,null,null,null,null,null,null,null,null,null,null,null,null,null,null,null,null,null,null,null,null,null,null,null,null,null,null,null,null,null,null,null,null,34]
[null,"Female 75-79",null,null,null,null,null,null,null,null,null,null,null,null,null,null,null,null,null,null,null,null,null,null,null,null,null,null,null,null,null,null,null,null,null,null,null,null,null,null,null,null,null,null,null,null,null,null,null,null,null,null,null,null,null,35]
[null,"Female 80-84",null,null,null,null,null,null,null,null,null,null,null,null,null,null,null,null,null,null,null,null,null,null,null,null,null,null,null,null,null,null,null,null,null,null,null,null,null,null,null,null,null,null,null,null,null,null,null,null,null,null,null,null,null,36]
[null,"Female 85-89",null,null,null,null,null,null,null,null,null,null,null,null,null,null,null,null,null,null,null,null,null,null,null,null,null,null,null,null,null,null,null,null,null,null,null,null,null,null,null,null,null,null,null,null,null,null,null,null,null,null,null,null,null,37]
[null,"Female 90+",null,null,null,null,null,null,null,null,null,null,null,null,null,null,null,null,null,null,null,null,null,null,null,null,null,null,null,null,null,null,null,null,null,null,null,null,null,null,null,null,null,null,null,null,null,null,null,null,null,null,null,null,null,38]
[null,"Male 0-4",null,null,null,null,null,null,null,null,null,null,null,null,null,null,null,null,null,null,null,null,null,null,null,null,null,null,null,null,null,null,null,null,null,null,null,null,null,null,null,null,null,null,null,null,null,null,null,null,null,null,null,null,null,39]
[null,"Male 5-9",null,null,null,null,null,null,null,null,null,null,null,null,null,null,null,null,null,null,null,null,null,null,null,null,null,null,null,null,null,null,null,null,null,null,null,null,null,null,null,null,null,null,null,null,null,null,null,null,null,null,null,null,null,40]
[null,"Male 10-15",null,null,null,null,null,null,null,null,null,null,null,null,null,null,null,null,null,null,null,null,null,null,null,null,null,null,null,null,null,null,null,null,null,null,null,null,null,null,null,null,null,null,null,null,null,null,null,null,null,null,null,null,null,41]
[null,"Male 16-19",null,null,null,null,null,null,null,null,null,null,null,null,null,null,null,null,null,null,null,null,null,null,null,null,null,null,null,null,null,null,null,null,null,null,null,null,null,null,null,null,null,null,null,null,null,null,null,null,null,null,null,null,null,42]
[null,"Male 20-24",null,null,null,null,null,null,null,null,null,null,null,null,null,null,null,null,null,null,null,null,null,null,null,null,null,null,null,null,null,null,null,null,null,null,null,null,null,null,null,null,null,null,null,null,null,null,null,null,null,null,null,null,null,43]
[null,"Male 25-29",null,null,null,null,null,null,null,null,null,null,null,null,null,null,null,null,null,null,null,null,null,null,null,null,null,null,null,null,null,null,null,null,null,null,null,null,null,null,null,null,null,null,null,null,null,null,null,null,null,null,null,null,null,44]
[null,"Male 30-34",null,null,null,null,null,null,null,null,null,null,null,null,null,null,null,null,null,null,null,null,null,null,null,null,null,null,null,null,null,null,null,null,null,null,null,null,null,null,null,null,null,null,null,null,null,null,null,null,null,null,null,null,null,45]
[null,"Male 35-39",null,null,null,null,null,null,null,null,null,null,null,null,null,null,null,null,null,null,null,null,null,null,null,null,null,null,null,null,null,null,null,null,null,null,null,null,null,null,null,null,null,null,null,null,null,null,null,null,null,null,null,null,null,46]
[null,"Male 40-44",null,null,null,null,null,null,null,null,null,null,null,null,null,null,null,null,null,null,null,null,null,null,null,null,null,null,null,null,null,null,null,null,null,null,null,null,null,null,null,null,null,null,null,null,null,null,null,null,null,null,null,null,null,47]
[null,"Male 45-49",null,null,null,null,null,null,null,null,null,null,null,null,null,null,null,null,null,null,null,null,null,null,null,null,null,null,null,null,null,null,null,null,null,null,null,null,null,null,null,null,null,null,null,null,null,null,null,null,null,null,null,null,null,48]
[null,"Male 50-54",null,null,null,null,null,null,null,null,null,null,null,null,null,null,null,null,null,null,null,null,null,null,null,null,null,null,null,null,null,null,null,null,null,null,null,null,null,null,null,null,null,null,null,null,null,null,null,null,null,null,null,null,null,49]
[null,"Male 55-59",null,null,null,null,null,null,null,null,null,null,null,null,null,null,null,null,null,null,null,null,null,null,null,null,null,null,null,null,null,null,null,null,null,null,null,null,null,null,null,null,null,null,null,null,null,null,null,null,null,null,null,null,null,50]
[null,"Male 60-64",null,null,null,null,null,null,null,null,null,null,null,null,null,null,null,null,null,null,null,null,null,null,null,null,null,null,null,null,null,null,null,null,null,null,null,null,null,null,null,null,null,null,null,null,null,null,null,null,null,null,null,null,null,51]
[null,"Male 65-69",null,null,null,null,null,null,null,null,null,null,null,null,null,null,null,null,null,null,null,null,null,null,null,null,null,null,null,null,null,null,null,null,null,null,null,null,null,null,null,null,null,null,null,null,null,null,null,null,null,null,null,null,null,52]
[null,"Male 70-74",null,null,null,null,null,null,null,null,null,null,null,null,null,null,null,null,null,null,null,null,null,null,null,null,null,null,null,null,null,null,null,null,null,null,null,null,null,null,null,null,null,null,null,null,null,null,null,null,null,null,null,null,null,53]
[null,"Male 75-79",null,null,null,null,null,null,null,null,null,null,null,null,null,null,null,null,null,null,null,null,null,null,null,null,null,null,null,null,null,null,null,null,null,null,null,null,null,null,null,null,null,null,null,null,null,null,null,null,null,null,null,null,null,54]
[null,"Male 80-84",null,null,null,null,null,null,null,null,null,null,null,null,null,null,null,null,null,null,null,null,null,null,null,null,null,null,null,null,null,null,null,null,null,null,null,null,null,null,null,null,null,null,null,null,null,null,null,null,null,null,null,null,null,55]
[null,"Male 85-89",null,null,null,null,null,null,null,null,null,null,null,null,null,null,null,null,null,null,null,null,null,null,null,null,null,null,null,null,null,null,null,null,null,null,null,null,null,null,null,null,null,null,null,null,null,null,null,null,null,null,null,null,null,56]
[null,"Male 90+",null,null,null,null,null,null,null,null,null,null,null,null,null,null,null,null,null,null,null,null,null,null,null,null,null,null,null,null,null,null,null,null,null,null,null,null,null,null,null,null,null,null,null,null,null,null,null,null,null,null,null,null,null,57]
["SIMD Q1 (most deprived)","Female 0-4",{"$f":"'Population 2016'!C60/'Population 2016'!C$7","v":0},{"$f":"'Population 2016'!D60/'Population 2016'!D$7","v":0},{"$f":"'Population 2016'!E60/'Population 2016'!E$7","v":0},{"$f":"'Population 2016'!F60/'Population 2016'!F$7","v":0},{"$f":"'Population 2016'!G60/'Population 2016'!G$7","v":0},{"$f":"'Population 2016'!H60/'Population 2016'!H$7","v":0},{"$f":"'Population 2016'!I60/'Population 2016'!I$7","v":0},{"$f":"'Population 2016'!J60/'Population 2016'!J$7","v":0},{"$f":"'Population 2016'!K60/'Population 2016'!K$7","v":0},{"$f":"'Population 2016'!L60/'Population 2016'!L$7","v":0},{"$f":"'Population 2016'!M60/'Population 2016'!M$7","v":0},{"$f":"'Population 2016'!N60/'Population 2016'!N$7","v":0},{"$f":"'Population 2016'!O60/'Population 2016'!O$7","v":0},{"$f":"'Population 2016'!P60/'Population 2016'!P$7","v":0},{"$f":"'Population 2016'!Q60/'Population 2016'!Q$7","v":0},{"$f":"'Population 2016'!R60/'Population 2016'!R$7","v":0},{"$f":"'Population 2016'!S60/'Population 2016'!S$7","v":0},{"$f":"'Population 2016'!T60/'Population 2016'!T$7","v":0},{"$f":"'Population 2016'!U60/'Population 2016'!U$7","v":{"$error":"#DIV/0!"}},{"$f":"'Population 2016'!V60/'Population 2016'!V$7","v":0},{"$f":"'Population 2016'!W60/'Population 2016'!W$7","v":0},{"$f":"'Population 2016'!X60/'Population 2016'!X$7","v":0},{"$f":"'Population 2016'!Y60/'Population 2016'!Y$7","v":0},{"$f":"'Population 2016'!Z60/'Population 2016'!Z$7","v":0},{"$f":"'Population 2016'!AA60/'Population 2016'!AA$7","v":0},{"$f":"'Population 2016'!AB60/'Population 2016'!AB$7","v":0},{"$f":"'Population 2016'!AC60/'Population 2016'!AC$7","v":0},{"$f":"'Population 2016'!AD60/'Population 2016'!AD$7","v":0},{"$f":"'Population 2016'!AE60/'Population 2016'!AE$7","v":0},{"$f":"'Population 2016'!AF60/'Population 2016'!AF$7","v":0},{"$f":"'Population 2016'!AG60/'Population 2016'!AG$7","v":0},{"$f":"'Population 2016'!AH60/'Population 2016'!AH$7","v":0},{"$f":"'Population 2016'!AI60/'Population 2016'!AI$7","v":0},{"$f":"'Population 2016'!AJ60/'Population 2016'!AJ$7","v":0},{"$f":"'Population 2016'!AK60/'Population 2016'!AK$7","v":0},{"$f":"'Population 2016'!AL60/'Population 2016'!AL$7","v":0},{"$f":"'Population 2016'!AM60/'Population 2016'!AM$7","v":0},{"$f":"'Population 2016'!AN60/'Population 2016'!AN$7","v":{"$error":"#DIV/0!"}},{"$f":"'Population 2016'!AO60/'Population 2016'!AO$7","v":{"$error":"#DIV/0!"}},{"$f":"'Population 2016'!AP60/'Population 2016'!AP$7","v":0},{"$f":"'Population 2016'!AQ60/'Population 2016'!AQ$7","v":0},{"$f":"'Population 2016'!AR60/'Population 2016'!AR$7","v":0},{"$f":"'Population 2016'!AS60/'Population 2016'!AS$7","v":0},{"$f":"'Population 2016'!AT60/'Population 2016'!AT$7","v":{"$error":"#DIV/0!"}},{"$f":"'Population 2016'!AU60/'Population 2016'!AU$7","v":{"$error":"#DIV/0!"}},{"$f":"'Population 2016'!AV60/'Population 2016'!AV$7","v":0},{"$f":"'Population 2016'!AW60/'Population 2016'!AW$7","v":0},{"$f":"'Population 2016'!AX60/'Population 2016'!AX$7","v":0},{"$f":"'Population 2016'!AY60/'Population 2016'!AY$7","v":0},{"$f":"'Population 2016'!AZ60/'Population 2016'!AZ$7","v":0},{"$f":"'Population 2016'!BA60/'Population 2016'!BA$7","v":0},{"$f":"'Population 2016'!BB60/'Population 2016'!BB$7","v":0},{"$f":"'Population 2016'!BC60/'Population 2016'!BC$7","v":{"$error":"#DIV/0!"}},58]
[null,"Female 5-9",{"$f":"'Population 2016'!C61/'Population 2016'!C$7","v":0},{"$f":"'Population 2016'!D61/'Population 2016'!D$7","v":0},{"$f":"'Population 2016'!E61/'Population 2016'!E$7","v":0},{"$f":"'Population 2016'!F61/'Population 2016'!F$7","v":0},{"$f":"'Population 2016'!G61/'Population 2016'!G$7","v":0},{"$f":"'Population 2016'!H61/'Population 2016'!H$7","v":0},{"$f":"'Population 2016'!I61/'Population 2016'!I$7","v":0},{"$f":"'Population 2016'!J61/'Population 2016'!J$7","v":0},{"$f":"'Population 2016'!K61/'Population 2016'!K$7","v":0},{"$f":"'Population 2016'!L61/'Population 2016'!L$7","v":0},{"$f":"'Population 2016'!M61/'Population 2016'!M$7","v":0},{"$f":"'Population 2016'!N61/'Population 2016'!N$7","v":0},{"$f":"'Population 2016'!O61/'Population 2016'!O$7","v":0},{"$f":"'Population 2016'!P61/'Population 2016'!P$7","v":0},{"$f":"'Population 2016'!Q61/'Population 2016'!Q$7","v":0},{"$f":"'Population 2016'!R61/'Population 2016'!R$7","v":0},{"$f":"'Population 2016'!S61/'Population 2016'!S$7","v":0},{"$f":"'Population 2016'!T61/'Population 2016'!T$7","v":0},{"$f":"'Population 2016'!U61/'Population 2016'!U$7","v":{"$error":"#DIV/0!"}},{"$f":"'Population 2016'!V61/'Population 2016'!V$7","v":0},{"$f":"'Population 2016'!W61/'Population 2016'!W$7","v":0},{"$f":"'Population 2016'!X61/'Population 2016'!X$7","v":0},{"$f":"'Population 2016'!Y61/'Population 2016'!Y$7","v":0},{"$f":"'Population 2016'!Z61/'Population 2016'!Z$7","v":0},{"$f":"'Population 2016'!AA61/'Population 2016'!AA$7","v":0},{"$f":"'Population 2016'!AB61/'Population 2016'!AB$7","v":0},{"$f":"'Population 2016'!AC61/'Population 2016'!AC$7","v":0},{"$f":"'Population 2016'!AD61/'Population 2016'!AD$7","v":0},{"$f":"'Population 2016'!AE61/'Population 2016'!AE$7","v":0},{"$f":"'Population 2016'!AF61/'Population 2016'!AF$7","v":0},{"$f":"'Population 2016'!AG61/'Population 2016'!AG$7","v":0},{"$f":"'Population 2016'!AH61/'Population 2016'!AH$7","v":0},{"$f":"'Population 2016'!AI61/'Population 2016'!AI$7","v":0},{"$f":"'Population 2016'!AJ61/'Population 2016'!AJ$7","v":0},{"$f":"'Population 2016'!AK61/'Population 2016'!AK$7","v":0},{"$f":"'Population 2016'!AL61/'Population 2016'!AL$7","v":0},{"$f":"'Population 2016'!AM61/'Population 2016'!AM$7","v":0},{"$f":"'Population 2016'!AN61/'Population 2016'!AN$7","v":{"$error":"#DIV/0!"}},{"$f":"'Population 2016'!AO61/'Population 2016'!AO$7","v":{"$error":"#DIV/0!"}},{"$f":"'Population 2016'!AP61/'Population 2016'!AP$7","v":0},{"$f":"'Population 2016'!AQ61/'Population 2016'!AQ$7","v":0},{"$f":"'Population 2016'!AR61/'Population 2016'!AR$7","v":0},{"$f":"'Population 2016'!AS61/'Population 2016'!AS$7","v":0},{"$f":"'Population 2016'!AT61/'Population 2016'!AT$7","v":{"$error":"#DIV/0!"}},{"$f":"'Population 2016'!AU61/'Population 2016'!AU$7","v":{"$error":"#DIV/0!"}},{"$f":"'Population 2016'!AV61/'Population 2016'!AV$7","v":0},{"$f":"'Population 2016'!AW61/'Population 2016'!AW$7","v":0},{"$f":"'Population 2016'!AX61/'Population 2016'!AX$7","v":0},{"$f":"'Population 2016'!AY61/'Population 2016'!AY$7","v":0},{"$f":"'Population 2016'!AZ61/'Population 2016'!AZ$7","v":0},{"$f":"'Population 2016'!BA61/'Population 2016'!BA$7","v":0},{"$f":"'Population 2016'!BB61/'Population 2016'!BB$7","v":0},{"$f":"'Population 2016'!BC61/'Population 2016'!BC$7","v":{"$error":"#DIV/0!"}},59]
[null,"Female 10-15",{"$f":"'Population 2016'!C62/'Population 2016'!C$7","v":0},{"$f":"'Population 2016'!D62/'Population 2016'!D$7","v":0},{"$f":"'Population 2016'!E62/'Population 2016'!E$7","v":0},{"$f":"'Population 2016'!F62/'Population 2016'!F$7","v":0},{"$f":"'Population 2016'!G62/'Population 2016'!G$7","v":0},{"$f":"'Population 2016'!H62/'Population 2016'!H$7","v":0},{"$f":"'Population 2016'!I62/'Population 2016'!I$7","v":0},{"$f":"'Population 2016'!J62/'Population 2016'!J$7","v":0},{"$f":"'Population 2016'!K62/'Population 2016'!K$7","v":0},{"$f":"'Population 2016'!L62/'Population 2016'!L$7","v":0},{"$f":"'Population 2016'!M62/'Population 2016'!M$7","v":0},{"$f":"'Population 2016'!N62/'Population 2016'!N$7","v":0},{"$f":"'Population 2016'!O62/'Population 2016'!O$7","v":0},{"$f":"'Population 2016'!P62/'Population 2016'!P$7","v":0},{"$f":"'Population 2016'!Q62/'Population 2016'!Q$7","v":0},{"$f":"'Population 2016'!R62/'Population 2016'!R$7","v":0},{"$f":"'Population 2016'!S62/'Population 2016'!S$7","v":0},{"$f":"'Population 2016'!T62/'Population 2016'!T$7","v":0},{"$f":"'Population 2016'!U62/'Population 2016'!U$7","v":{"$error":"#DIV/0!"}},{"$f":"'Population 2016'!V62/'Population 2016'!V$7","v":0},{"$f":"'Population 2016'!W62/'Population 2016'!W$7","v":0},{"$f":"'Population 2016'!X62/'Population 2016'!X$7","v":0},{"$f":"'Population 2016'!Y62/'Population 2016'!Y$7","v":0},{"$f":"'Population 2016'!Z62/'Population 2016'!Z$7","v":0},{"$f":"'Population 2016'!AA62/'Population 2016'!AA$7","v":0},{"$f":"'Population 2016'!AB62/'Population 2016'!AB$7","v":0},{"$f":"'Population 2016'!AC62/'Population 2016'!AC$7","v":0},{"$f":"'Population 2016'!AD62/'Population 2016'!AD$7","v":0},{"$f":"'Population 2016'!AE62/'Population 2016'!AE$7","v":0},{"$f":"'Population 2016'!AF62/'Population 2016'!AF$7","v":0},{"$f":"'Population 2016'!AG62/'Population 2016'!AG$7","v":0},{"$f":"'Population 2016'!AH62/'Population 2016'!AH$7","v":0},{"$f":"'Population 2016'!AI62/'Population 2016'!AI$7","v":0},{"$f":"'Population 2016'!AJ62/'Population 2016'!AJ$7","v":0},{"$f":"'Population 2016'!AK62/'Population 2016'!AK$7","v":0},{"$f":"'Population 2016'!AL62/'Population 2016'!AL$7","v":0},{"$f":"'Population 2016'!AM62/'Population 2016'!AM$7","v":0},{"$f":"'Population 2016'!AN62/'Population 2016'!AN$7","v":{"$error":"#DIV/0!"}},{"$f":"'Population 2016'!AO62/'Population 2016'!AO$7","v":{"$error":"#DIV/0!"}},{"$f":"'Population 2016'!AP62/'Population 2016'!AP$7","v":0},{"$f":"'Population 2016'!AQ62/'Population 2016'!AQ$7","v":0},{"$f":"'Population 2016'!AR62/'Population 2016'!AR$7","v":0},{"$f":"'Population 2016'!AS62/'Population 2016'!AS$7","v":0},{"$f":"'Population 2016'!AT62/'Population 2016'!AT$7","v":{"$error":"#DIV/0!"}},{"$f":"'Population 2016'!AU62/'Population 2016'!AU$7","v":{"$error":"#DIV/0!"}},{"$f":"'Population 2016'!AV62/'Population 2016'!AV$7","v":0},{"$f":"'Population 2016'!AW62/'Population 2016'!AW$7","v":0},{"$f":"'Population 2016'!AX62/'Population 2016'!AX$7","v":0},{"$f":"'Population 2016'!AY62/'Population 2016'!AY$7","v":0},{"$f":"'Population 2016'!AZ62/'Population 2016'!AZ$7","v":0},{"$f":"'Population 2016'!BA62/'Population 2016'!BA$7","v":0},{"$f":"'Population 2016'!BB62/'Population 2016'!BB$7","v":0},{"$f":"'Population 2016'!BC62/'Population 2016'!BC$7","v":{"$error":"#DIV/0!"}},60]
[null,"Female 16-19",{"$f":"'Population 2016'!C63/'Population 2016'!C$7","v":2.3366866165796512E-2},{"$f":"'Population 2016'!D63/'Population 2016'!D$7","v":2.3858146137371122E-2},{"$f":"'Population 2016'!E63/'Population 2016'!E$7","v":2.562342713337909E-2},{"$f":"'Population 2016'!F63/'Population 2016'!F$7","v":3.3025885153228206E-2},{"$f":"'Population 2016'!G63/'Population 2016'!G$7","v":2.7047054464616523E-2},{"$f":"'Population 2016'!H63/'Population 2016'!H$7","v":2.9276091911804424E-2},{"$f":"'Population 2016'!I63/'Population 2016'!I$7","v":3.2872981910134214E-2},{"$f":"'Population 2016'!J63/'Population 2016'!J$7","v":2.9870260484763149E-2},{"$f":"'Population 2016'!K63/'Population 2016'!K$7","v":2.7463165280144333E-2},{"$f":"'Population 2016'!L63/'Population 2016'!L$7","v":3.1550480769230768E-2},{"$f":"'Population 2016'!M63/'Population 2016'!M$7","v":3.1550480769230768E-2},{"$f":"'Population 2016'!N63/'Population 2016'!N$7","v":2.9211814659272837E-2},{"$f":"'Population 2016'!O63/'Population 2016'!O$7","v":2.7685845213849286E-2},{"$f":"'Population 2016'!P63/'Population 2016'!P$7","v":2.7301280502536846E-2},{"$f":"'Population 2016'!Q63/'Population 2016'!Q$7","v":2.843439534087016E-2},{"$f":"'Population 2016'!R63/'Population 2016'!R$7","v":3.3887987012987016E-2},{"$f":"'Population 2016'!S63/'Population 2016'!S$7","v":2.9441723800195885E-2},{"$f":"'Population 2016'!T63/'Population 2016'!T$7","v":2.6873458885752065E-2},{"$f":"'Population 2016'!U63/'Population 2016'!U$7","v":{"$error":"#DIV/0!"}},{"$f":"'Population 2016'!V63/'Population 2016'!V$7","v":2.4892343241256172E-2},{"$f":"'Population 2016'!W63/'Population 2016'!W$7","v":3.0953307722249489E-2},{"$f":"'Population 2016'!X63/'Population 2016'!X$7","v":3.0953307722249489E-2},{"$f":"'Population 2016'!Y63/'Population 2016'!Y$7","v":2.7435265104808877E-2},{"$f":"'Population 2016'!Z63/'Population 2016'!Z$7","v":2.53492417127479E-2},{"$f":"'Population 2016'!AA63/'Population 2016'!AA$7","v":2.6628649455162724E-2},{"$f":"'Population 2016'!AB63/'Population 2016'!AB$7","v":2.3899188876013906E-2},{"$f":"'Population 2016'!AC63/'Population 2016'!AC$7","v":2.574934738019765E-2},{"$f":"'Population 2016'!AD63/'Population 2016'!AD$7","v":2.9571774845138701E-2},{"$f":"'Population 2016'!AE63/'Population 2016'!AE$7","v":3.0606820080504291E-2},{"$f":"'Population 2016'!AF63/'Population 2016'!AF$7","v":2.4868069110099037E-2},{"$f":"'Population 2016'!AG63/'Population 2016'!AG$7","v":3.0606820080504291E-2},{"$f":"'Population 2016'!AH63/'Population 2016'!AH$7","v":2.8805308138905916E-2},{"$f":"'Population 2016'!AI63/'Population 2016'!AI$7","v":2.8238866396761132E-2},{"$f":"'Population 2016'!AJ63/'Population 2016'!AJ$7","v":2.899165605996323E-2},{"$f":"'Population 2016'!AK63/'Population 2016'!AK$7","v":2.5196850393700787E-2},{"$f":"'Population 2016'!AL63/'Population 2016'!AL$7","v":3.0031565375894721E-2},{"$f":"'Population 2016'!AM63/'Population 2016'!AM$7","v":2.9491021441680025E-2},{"$f":"'Population 2016'!AN63/'Population 2016'!AN$7","v":{"$error":"#DIV/0!"}},{"$f":"'Population 2016'!AO63/'Population 2016'!AO$7","v":{"$error":"#DIV/0!"}},{"$f":"'Population 2016'!AP63/'Population 2016'!AP$7","v":2.7643504531722055E-2},{"$f":"'Population 2016'!AQ63/'Population 2016'!AQ$7","v":2.5568320703984355E-2},{"$f":"'Population 2016'!AR63/'Population 2016'!AR$7","v":2.7678352368745083E-2},{"$f":"'Population 2016'!AS63/'Population 2016'!AS$7","v":3.2872981910134214E-2},{"$f":"'Population 2016'!AT63/'Population 2016'!AT$7","v":{"$error":"#DIV/0!"}},{"$f":"'Population 2016'!AU63/'Population 2016'!AU$7","v":{"$error":"#DIV/0!"}},{"$f":"'Population 2016'!AV63/'Population 2016'!AV$7","v":3.0265519589032619E-2},{"$f":"'Population 2016'!AW63/'Population 2016'!AW$7","v":2.7682121725233537E-2},{"$f":"'Population 2016'!AX63/'Population 2016'!AX$7","v":3.229387425572712E-2},{"$f":"'Population 2016'!AY63/'Population 2016'!AY$7","v":3.0234571107071756E-2},{"$f":"'Population 2016'!AZ63/'Population 2016'!AZ$7","v":2.9482114066015839E-2},{"$f":"'Population 2016'!BA63/'Population 2016'!BA$7","v":2.8600866908264053E-2},{"$f":"'Population 2016'!BB63/'Population 2016'!BB$7","v":3.1309876328165828E-2},{"$f":"'Population 2016'!BC63/'Population 2016'!BC$7","v":{"$error":"#DIV/0!"}},61]
[null,"Female 20-24",{"$f":"'Population 2016'!C64/'Population 2016'!C$7","v":4.9789889214313002E-2},{"$f":"'Population 2016'!D64/'Population 2016'!D$7","v":4.891168999352493E-2},{"$f":"'Population 2016'!E64/'Population 2016'!E$7","v":4.5756119881034091E-2},{"$f":"'Population 2016'!F64/'Population 2016'!F$7","v":4.7604879500148765E-2},{"$f":"'Population 2016'!G64/'Population 2016'!G$7","v":3.8532789922193403E-2},{"$f":"'Population 2016'!H64/'Population 2016'!H$7","v":4.3827713980144109E-2},{"$f":"'Population 2016'!I64/'Population 2016'!I$7","v":4.2209686831355765E-2},{"$f":"'Population 2016'!J64/'Population 2016'!J$7","v":4.8124308558785078E-2},{"$f":"'Population 2016'!K64/'Population 2016'!K$7","v":4.430189435702115E-2},{"$f":"'Population 2016'!L64/'Population 2016'!L$7","v":5.028044871794872E-2},{"$f":"'Population 2016'!M64/'Population 2016'!M$7","v":5.028044871794872E-2},{"$f":"'Population 2016'!N64/'Population 2016'!N$7","v":4.9745933780366132E-2},{"$f":"'Population 2016'!O64/'Population 2016'!O$7","v":4.3374490835030553E-2},{"$f":"'Population 2016'!P64/'Population 2016'!P$7","v":4.2763952645566559E-2},{"$f":"'Population 2016'!Q64/'Population 2016'!Q$7","v":4.1109969167523124E-2},{"$f":"'Population 2016'!R64/'Population 2016'!R$7","v":4.6469155844155847E-2},{"$f":"'Population 2016'!S64/'Population 2016'!S$7","v":4.0888018282729352E-2},{"$f":"'Population 2016'!T64/'Population 2016'!T$7","v":4.2454347282278523E-2},{"$f":"'Population 2016'!U64/'Population 2016'!U$7","v":{"$error":"#DIV/0!"}},{"$f":"'Population 2016'!V64/'Population 2016'!V$7","v":4.0752021846444698E-2},{"$f":"'Population 2016'!W64/'Population 2016'!W$7","v":3.8044306046810743E-2},{"$f":"'Population 2016'!X64/'Population 2016'!X$7","v":3.8044306046810743E-2},{"$f":"'Population 2016'!Y64/'Population 2016'!Y$7","v":4.4518084669132756E-2},{"$f":"'Population 2016'!Z64/'Population 2016'!Z$7","v":4.3159832043901065E-2},{"$f":"'Population 2016'!AA64/'Population 2016'!AA$7","v":4.2441485244466025E-2},{"$f":"'Population 2016'!AB64/'Population 2016'!AB$7","v":4.9101969872537662E-2},{"$f":"'Population 2016'!AC64/'Population 2016'!AC$7","v":4.3611900988252843E-2},{"$f":"'Population 2016'!AD64/'Population 2016'!AD$7","v":4.368435227578777E-2},{"$f":"'Population 2016'!AE64/'Population 2016'!AE$7","v":4.5796308954203689E-2},{"$f":"'Population 2016'!AF64/'Population 2016'!AF$7","v":4.0952794043229955E-2},{"$f":"'Population 2016'!AG64/'Population 2016'!AG$7","v":4.5796308954203689E-2},{"$f":"'Population 2016'!AH64/'Population 2016'!AH$7","v":3.9544192420035339E-2},{"$f":"'Population 2016'!AI64/'Population 2016'!AI$7","v":4.2701304543409806E-2},{"$f":"'Population 2016'!AJ64/'Population 2016'!AJ$7","v":4.6103804270965915E-2},{"$f":"'Population 2016'!AK64/'Population 2016'!AK$7","v":5.5118110236220472E-2},{"$f":"'Population 2016'!AL64/'Population 2016'!AL$7","v":4.3257902458542656E-2},{"$f":"'Population 2016'!AM64/'Population 2016'!AM$7","v":3.9770483425093504E-2},{"$f":"'Population 2016'!AN64/'Population 2016'!AN$7","v":{"$error":"#DIV/0!"}},{"$f":"'Population 2016'!AO64/'Population 2016'!AO$7","v":{"$error":"#DIV/0!"}},{"$f":"'Population 2016'!AP64/'Population 2016'!AP$7","v":4.9244712990936558E-2},{"$f":"'Population 2016'!AQ64/'Population 2016'!AQ$7","v":4.7054509899780002E-2},{"$f":"'Population 2016'!AR64/'Population 2016'!AR$7","v":4.3135213715585499E-2},{"$f":"'Population 2016'!AS64/'Population 2016'!AS$7","v":4.2209686831355765E-2},{"$f":"'Population 2016'!AT64/'Population 2016'!AT$7","v":{"$error":"#DIV/0!"}},{"$f":"'Population 2016'!AU64/'Population 2016'!AU$7","v":{"$error":"#DIV/0!"}},{"$f":"'Population 2016'!AV64/'Population 2016'!AV$7","v":4.6295723215943552E-2},{"$f":"'Population 2016'!AW64/'Population 2016'!AW$7","v":3.917353170601777E-2},{"$f":"'Population 2016'!AX64/'Population 2016'!AX$7","v":5.1972953880310827E-2},{"$f":"'Population 2016'!AY64/'Population 2016'!AY$7","v":4.3607720938284425E-2},{"$f":"'Population 2016'!AZ64/'Population 2016'!AZ$7","v":4.9432150387129926E-2},{"$f":"'Population 2016'!BA64/'Population 2016'!BA$7","v":4.4659987209550202E-2},{"$f":"'Population 2016'!BB64/'Population 2016'!BB$7","v":4.2457759972130291E-2},{"$f":"'Population 2016'!BC64/'Population 2016'!BC$7","v":{"$error":"#DIV/0!"}},62]
[null,"Female 25-29",{"$f":"'Population 2016'!C65/'Population 2016'!C$7","v":6.5643703043422902E-2},{"$f":"'Population 2016'!D65/'Population 2016'!D$7","v":6.3206654380634553E-2},{"$f":"'Population 2016'!E65/'Population 2016'!E$7","v":5.4449782658430562E-2},{"$f":"'Population 2016'!F65/'Population 2016'!F$7","v":4.4480809282951506E-2},{"$f":"'Population 2016'!G65/'Population 2016'!G$7","v":3.18636532048907E-2},{"$f":"'Population 2016'!H65/'Population 2016'!H$7","v":4.3892531895816003E-2},{"$f":"'Population 2016'!I65/'Population 2016'!I$7","v":3.96809959151916E-2},{"$f":"'Population 2016'!J65/'Population 2016'!J$7","v":5.0990646686110828E-2},{"$f":"'Population 2016'!K65/'Population 2016'!K$7","v":4.2898666933948081E-2},{"$f":"'Population 2016'!L65/'Population 2016'!L$7","v":5.0480769230769232E-2},{"$f":"'Population 2016'!M65/'Population 2016'!M$7","v":5.0480769230769232E-2},{"$f":"'Population 2016'!N65/'Population 2016'!N$7","v":6.480428780250122E-2},{"$f":"'Population 2016'!O65/'Population 2016'!O$7","v":4.461558044806517E-2},{"$f":"'Population 2016'!P65/'Population 2016'!P$7","v":4.638801642908915E-2},{"$f":"'Population 2016'!Q65/'Population 2016'!Q$7","v":4.6933881466255566E-2},{"$f":"'Population 2016'!R65/'Population 2016'!R$7","v":4.4642857142857144E-2},{"$f":"'Population 2016'!S65/'Population 2016'!S$7","v":5.2530199151158995E-2},{"$f":"'Population 2016'!T65/'Population 2016'!T$7","v":6.3931672801343667E-2},{"$f":"'Population 2016'!U65/'Population 2016'!U$7","v":{"$error":"#DIV/0!"}},{"$f":"'Population 2016'!V65/'Population 2016'!V$7","v":4.684381892658334E-2},{"$f":"'Population 2016'!W65/'Population 2016'!W$7","v":4.6675354126825636E-2},{"$f":"'Population 2016'!X65/'Population 2016'!X$7","v":4.6675354126825636E-2},{"$f":"'Population 2016'!Y65/'Population 2016'!Y$7","v":4.8962186600904234E-2},{"$f":"'Population 2016'!Z65/'Population 2016'!Z$7","v":5.963115358212287E-2},{"$f":"'Population 2016'!AA65/'Population 2016'!AA$7","v":5.2001817853563177E-2},{"$f":"'Population 2016'!AB65/'Population 2016'!AB$7","v":6.2379297025878716E-2},{"$f":"'Population 2016'!AC65/'Population 2016'!AC$7","v":5.5953407607682269E-2},{"$f":"'Population 2016'!AD65/'Population 2016'!AD$7","v":4.1314301104228388E-2},{"$f":"'Population 2016'!AE65/'Population 2016'!AE$7","v":4.5188729399255716E-2},{"$f":"'Population 2016'!AF65/'Population 2016'!AF$7","v":4.1314248536109301E-2},{"$f":"'Population 2016'!AG65/'Population 2016'!AG$7","v":4.5188729399255716E-2},{"$f":"'Population 2016'!AH65/'Population 2016'!AH$7","v":4.2219898308751939E-2},{"$f":"'Population 2016'!AI65/'Population 2016'!AI$7","v":5.7163742690058479E-2},{"$f":"'Population 2016'!AJ65/'Population 2016'!AJ$7","v":4.76594541083298E-2},{"$f":"'Population 2016'!AK65/'Population 2016'!AK$7","v":3.6220472440944881E-2},{"$f":"'Population 2016'!AL65/'Population 2016'!AL$7","v":4.3346819010358778E-2},{"$f":"'Population 2016'!AM65/'Population 2016'!AM$7","v":4.3196970752897995E-2},{"$f":"'Population 2016'!AN65/'Population 2016'!AN$7","v":{"$error":"#DIV/0!"}},{"$f":"'Population 2016'!AO65/'Population 2016'!AO$7","v":{"$error":"#DIV/0!"}},{"$f":"'Population 2016'!AP65/'Population 2016'!AP$7","v":6.0574018126888216E-2},{"$f":"'Population 2016'!AQ65/'Population 2016'!AQ$7","v":5.3409924223906134E-2},{"$f":"'Population 2016'!AR65/'Population 2016'!AR$7","v":5.1739556128286672E-2},{"$f":"'Population 2016'!AS65/'Population 2016'!AS$7","v":3.96809959151916E-2},{"$f":"'Population 2016'!AT65/'Population 2016'!AT$7","v":{"$error":"#DIV/0!"}},{"$f":"'Population 2016'!AU65/'Population 2016'!AU$7","v":{"$error":"#DIV/0!"}},{"$f":"'Population 2016'!AV65/'Population 2016'!AV$7","v":4.4005694126384852E-2},{"$f":"'Population 2016'!AW65/'Population 2016'!AW$7","v":4.0619470710222406E-2},{"$f":"'Population 2016'!AX65/'Population 2016'!AX$7","v":5.9138157230800285E-2},{"$f":"'Population 2016'!AY65/'Population 2016'!AY$7","v":5.4107158313857873E-2},{"$f":"'Population 2016'!AZ65/'Population 2016'!AZ$7","v":6.1887634875356569E-2},{"$f":"'Population 2016'!BA65/'Population 2016'!BA$7","v":4.6400909543096711E-2},{"$f":"'Population 2016'!BB65/'Population 2016'!BB$7","v":4.4896359519247517E-2},{"$f":"'Population 2016'!BC65/'Population 2016'!BC$7","v":{"$error":"#DIV/0!"}},63]
[null,"Female 30-34",{"$f":"'Population 2016'!C66/'Population 2016'!C$7","v":5.7684961161339615E-2},{"$f":"'Population 2016'!D66/'Population 2016'!D$7","v":5.6831199880460231E-2},{"$f":"'Population 2016'!E66/'Population 2016'!E$7","v":5.3763440860215055E-2},{"$f":"'Population 2016'!F66/'Population 2016'!F$7","v":4.9390062481404345E-2},{"$f":"'Population 2016'!G66/'Population 2016'!G$7","v":3.7236013338273435E-2},{"$f":"'Population 2016'!H66/'Population 2016'!H$7","v":3.8955567318806915E-2},{"$f":"'Population 2016'!I66/'Population 2016'!I$7","v":4.0264539972767945E-2},{"$f":"'Population 2016'!J66/'Population 2016'!J$7","v":4.4604244191893794E-2},{"$f":"'Population 2016'!K66/'Population 2016'!K$7","v":4.099428685977749E-2},{"$f":"'Population 2016'!L66/'Population 2016'!L$7","v":4.3068910256410256E-2},{"$f":"'Population 2016'!M66/'Population 2016'!M$7","v":4.3068910256410256E-2},{"$f":"'Population 2016'!N66/'Population 2016'!N$7","v":5.1950161256641689E-2},{"$f":"'Population 2016'!O66/'Population 2016'!O$7","v":3.9651221995926682E-2},{"$f":"'Population 2016'!P66/'Population 2016'!P$7","v":3.9864701618748492E-2},{"$f":"'Population 2016'!Q66/'Population 2016'!Q$7","v":4.2480301473107225E-2},{"$f":"'Population 2016'!R66/'Population 2016'!R$7","v":4.3425324675324672E-2},{"$f":"'Population 2016'!S66/'Population 2016'!S$7","v":5.0199151158994447E-2},{"$f":"'Population 2016'!T66/'Population 2016'!T$7","v":6.2948933280920563E-2},{"$f":"'Population 2016'!U66/'Population 2016'!U$7","v":{"$error":"#DIV/0!"}},{"$f":"'Population 2016'!V66/'Population 2016'!V$7","v":4.5898540069320447E-2},{"$f":"'Population 2016'!W66/'Population 2016'!W$7","v":4.1175176428776931E-2},{"$f":"'Population 2016'!X66/'Population 2016'!X$7","v":4.1175176428776931E-2},{"$f":"'Population 2016'!Y66/'Population 2016'!Y$7","v":4.5237361282367446E-2},{"$f":"'Population 2016'!Z66/'Population 2016'!Z$7","v":5.0492118108346001E-2},{"$f":"'Population 2016'!AA66/'Population 2016'!AA$7","v":4.7301545798081296E-2},{"$f":"'Population 2016'!AB66/'Population 2016'!AB$7","v":5.6682116647354189E-2},{"$f":"'Population 2016'!AC66/'Population 2016'!AC$7","v":4.862308875629312E-2},{"$f":"'Population 2016'!AD66/'Population 2016'!AD$7","v":4.6108268246700779E-2},{"$f":"'Population 2016'!AE66/'Population 2016'!AE$7","v":4.9745576061365537E-2},{"$f":"'Population 2016'!AF66/'Population 2016'!AF$7","v":4.0410612303910937E-2},{"$f":"'Population 2016'!AG66/'Population 2016'!AG$7","v":4.9745576061365537E-2},{"$f":"'Population 2016'!AH66/'Population 2016'!AH$7","v":4.4030146767155894E-2},{"$f":"'Population 2016'!AI66/'Population 2016'!AI$7","v":5.6770130454340983E-2},{"$f":"'Population 2016'!AJ66/'Population 2016'!AJ$7","v":4.1861122896337151E-2},{"$f":"'Population 2016'!AK66/'Population 2016'!AK$7","v":5.1968503937007873E-2},{"$f":"'Population 2016'!AL66/'Population 2016'!AL$7","v":3.7633930556173034E-2},{"$f":"'Population 2016'!AM66/'Population 2016'!AM$7","v":4.3673194415406416E-2},{"$f":"'Population 2016'!AN66/'Population 2016'!AN$7","v":{"$error":"#DIV/0!"}},{"$f":"'Population 2016'!AO66/'Population 2016'!AO$7","v":{"$error":"#DIV/0!"}},{"$f":"'Population 2016'!AP66/'Population 2016'!AP$7","v":5.4380664652567974E-2},{"$f":"'Population 2016'!AQ66/'Population 2016'!AQ$7","v":4.5563431923735027E-2},{"$f":"'Population 2016'!AR66/'Population 2016'!AR$7","v":4.728089021982633E-2},{"$f":"'Population 2016'!AS66/'Population 2016'!AS$7","v":4.0264539972767945E-2},{"$f":"'Population 2016'!AT66/'Population 2016'!AT$7","v":{"$error":"#DIV/0!"}},{"$f":"'Population 2016'!AU66/'Population 2016'!AU$7","v":{"$error":"#DIV/0!"}},{"$f":"'Population 2016'!AV66/'Population 2016'!AV$7","v":4.1282416290152876E-2},{"$f":"'Population 2016'!AW66/'Population 2016'!AW$7","v":4.4614828484998384E-2},{"$f":"'Population 2016'!AX66/'Population 2016'!AX$7","v":4.8238974669492382E-2},{"$f":"'Population 2016'!AY66/'Population 2016'!AY$7","v":4.6429498831472342E-2},{"$f":"'Population 2016'!AZ66/'Population 2016'!AZ$7","v":5.1930334331425736E-2},{"$f":"'Population 2016'!BA66/'Population 2016'!BA$7","v":4.7573367441199457E-2},{"$f":"'Population 2016'!BB66/'Population 2016'!BB$7","v":4.8118794635080994E-2},{"$f":"'Population 2016'!BC66/'Population 2016'!BC$7","v":{"$error":"#DIV/0!"}},64]
[null,"Female 35-39",{"$f":"'Population 2016'!C67/'Population 2016'!C$7","v":4.1258117916719725E-2},{"$f":"'Population 2016'!D67/'Population 2016'!D$7","v":4.0842755391741793E-2},{"$f":"'Population 2016'!E67/'Population 2016'!E$7","v":3.9350263097689318E-2},{"$f":"'Population 2016'!F67/'Population 2016'!F$7","v":4.4332044034513539E-2},{"$f":"'Population 2016'!G67/'Population 2016'!G$7","v":3.2789922193404965E-2},{"$f":"'Population 2016'!H67/'Population 2016'!H$7","v":3.4990871476876212E-2},{"$f":"'Population 2016'!I67/'Population 2016'!I$7","v":3.7346819684886207E-2},{"$f":"'Population 2016'!J67/'Population 2016'!J$7","v":3.8921854571055015E-2},{"$f":"'Population 2016'!K67/'Population 2016'!K$7","v":4.2297283752631053E-2},{"$f":"'Population 2016'!L67/'Population 2016'!L$7","v":3.6157852564102567E-2},{"$f":"'Population 2016'!M67/'Population 2016'!M$7","v":3.6157852564102567E-2},{"$f":"'Population 2016'!N67/'Population 2016'!N$7","v":4.0673797535905706E-2},{"$f":"'Population 2016'!O67/'Population 2016'!O$7","v":3.4845977596741344E-2},{"$f":"'Population 2016'!P67/'Population 2016'!P$7","v":3.6482242087460738E-2},{"$f":"'Population 2016'!Q67/'Population 2016'!Q$7","v":4.9674546077423776E-2},{"$f":"'Population 2016'!R67/'Population 2016'!R$7","v":4.3628246753246752E-2},{"$f":"'Population 2016'!S67/'Population 2016'!S$7","v":4.3075416258570032E-2},{"$f":"'Population 2016'!T67/'Population 2016'!T$7","v":5.0423471393345957E-2},{"$f":"'Population 2016'!U67/'Population 2016'!U$7","v":{"$error":"#DIV/0!"}},{"$f":"'Population 2016'!V67/'Population 2016'!V$7","v":3.6235689528410879E-2},{"$f":"'Population 2016'!W67/'Population 2016'!W$7","v":3.7418131970417504E-2},{"$f":"'Population 2016'!X67/'Population 2016'!X$7","v":3.7418131970417504E-2},{"$f":"'Population 2016'!Y67/'Population 2016'!Y$7","v":3.76078914919852E-2},{"$f":"'Population 2016'!Z67/'Population 2016'!Z$7","v":4.1854255547647226E-2},{"$f":"'Population 2016'!AA67/'Population 2016'!AA$7","v":4.0438941079547694E-2},{"$f":"'Population 2016'!AB67/'Population 2016'!AB$7","v":4.0749324063344923E-2},{"$f":"'Population 2016'!AC67/'Population 2016'!AC$7","v":4.093732519112437E-2},{"$f":"'Population 2016'!AD67/'Population 2016'!AD$7","v":3.7651494748182066E-2},{"$f":"'Population 2016'!AE67/'Population 2016'!AE$7","v":3.9644565960355434E-2},{"$f":"'Population 2016'!AF67/'Population 2016'!AF$7","v":3.589243114291911E-2},{"$f":"'Population 2016'!AG67/'Population 2016'!AG$7","v":3.9644565960355434E-2},{"$f":"'Population 2016'!AH67/'Population 2016'!AH$7","v":3.9205221593162885E-2},{"$f":"'Population 2016'!AI67/'Population 2016'!AI$7","v":4.7165991902834006E-2},{"$f":"'Population 2016'!AJ67/'Population 2016'!AJ$7","v":3.9598359496535146E-2},{"$f":"'Population 2016'!AK67/'Population 2016'!AK$7","v":3.7795275590551181E-2},{"$f":"'Population 2016'!AL67/'Population 2016'!AL$7","v":3.5166496243275683E-2},{"$f":"'Population 2016'!AM67/'Population 2016'!AM$7","v":3.9085185959532601E-2},{"$f":"'Population 2016'!AN67/'Population 2016'!AN$7","v":{"$error":"#DIV/0!"}},{"$f":"'Population 2016'!AO67/'Population 2016'!AO$7","v":{"$error":"#DIV/0!"}},{"$f":"'Population 2016'!AP67/'Population 2016'!AP$7","v":4.4712990936555889E-2},{"$f":"'Population 2016'!AQ67/'Population 2016'!AQ$7","v":4.0210217550721093E-2},{"$f":"'Population 2016'!AR67/'Population 2016'!AR$7","v":4.0170412985506186E-2},{"$f":"'Population 2016'!AS67/'Population 2016'!AS$7","v":3.7346819684886207E-2},{"$f":"'Population 2016'!AT67/'Population 2016'!AT$7","v":{"$error":"#DIV/0!"}},{"$f":"'Population 2016'!AU67/'Population 2016'!AU$7","v":{"$error":"#DIV/0!"}},{"$f":"'Population 2016'!AV67/'Population 2016'!AV$7","v":3.4783685090053848E-2},{"$f":"'Population 2016'!AW67/'Population 2016'!AW$7","v":3.9401837864576399E-2},{"$f":"'Population 2016'!AX67/'Population 2016'!AX$7","v":3.5523261681299829E-2},{"$f":"'Population 2016'!AY67/'Population 2016'!AY$7","v":3.945295594217952E-2},{"$f":"'Population 2016'!AZ67/'Population 2016'!AZ$7","v":4.1583246221718252E-2},{"$f":"'Population 2016'!BA67/'Population 2016'!BA$7","v":3.9401691181695446E-2},{"$f":"'Population 2016'!BB67/'Population 2016'!BB$7","v":4.1238460198571678E-2},{"$f":"'Population 2016'!BC67/'Population 2016'!BC$7","v":{"$error":"#DIV/0!"}},65]
[null,"Female 40-44",{"$f":"'Population 2016'!C68/'Population 2016'!C$7","v":4.2085827072456387E-2},{"$f":"'Population 2016'!D68/'Population 2016'!D$7","v":4.1291029536285301E-2},{"$f":"'Population 2016'!E68/'Population 2016'!E$7","v":3.8435140700068635E-2},{"$f":"'Population 2016'!F68/'Population 2016'!F$7","v":3.7935138351681046E-2},{"$f":"'Population 2016'!G68/'Population 2016'!G$7","v":3.8532789922193403E-2},{"$f":"'Population 2016'!H68/'Population 2016'!H$7","v":3.9722579320924302E-2},{"$f":"'Population 2016'!I68/'Population 2016'!I$7","v":4.5321921805096282E-2},{"$f":"'Population 2016'!J68/'Population 2016'!J$7","v":3.8921854571055015E-2},{"$f":"'Population 2016'!K68/'Population 2016'!K$7","v":4.0793825799338476E-2},{"$f":"'Population 2016'!L68/'Population 2016'!L$7","v":3.6558493589743592E-2},{"$f":"'Population 2016'!M68/'Population 2016'!M$7","v":3.6558493589743592E-2},{"$f":"'Population 2016'!N68/'Population 2016'!N$7","v":3.362026961182394E-2},{"$f":"'Population 2016'!O68/'Population 2016'!O$7","v":3.9205702647657839E-2},{"$f":"'Population 2016'!P68/'Population 2016'!P$7","v":4.2522348393331723E-2},{"$f":"'Population 2016'!Q68/'Population 2016'!Q$7","v":3.6313806097978761E-2},{"$f":"'Population 2016'!R68/'Population 2016'!R$7","v":4.0787337662337664E-2},{"$f":"'Population 2016'!S68/'Population 2016'!S$7","v":3.9758406790728042E-2},{"$f":"'Population 2016'!T68/'Population 2016'!T$7","v":3.9041560947718261E-2},{"$f":"'Population 2016'!U68/'Population 2016'!U$7","v":{"$error":"#DIV/0!"}},{"$f":"'Population 2016'!V68/'Population 2016'!V$7","v":4.1592269719567275E-2},{"$f":"'Population 2016'!W68/'Population 2016'!W$7","v":3.8501243886340943E-2},{"$f":"'Population 2016'!X68/'Population 2016'!X$7","v":3.8501243886340943E-2},{"$f":"'Population 2016'!Y68/'Population 2016'!Y$7","v":4.0228113440197284E-2},{"$f":"'Population 2016'!Z68/'Population 2016'!Z$7","v":3.7474256979569832E-2},{"$f":"'Population 2016'!AA68/'Population 2016'!AA$7","v":3.8241330436388617E-2},{"$f":"'Population 2016'!AB68/'Population 2016'!AB$7","v":4.1376979528775587E-2},{"$f":"'Population 2016'!AC68/'Population 2016'!AC$7","v":3.7481936416184969E-2},{"$f":"'Population 2016'!AD68/'Population 2016'!AD$7","v":3.9536762725558845E-2},{"$f":"'Population 2016'!AE68/'Population 2016'!AE$7","v":3.994835573782942E-2},{"$f":"'Population 2016'!AF68/'Population 2016'!AF$7","v":3.6109303838646717E-2},{"$f":"'Population 2016'!AG68/'Population 2016'!AG$7","v":3.994835573782942E-2},{"$f":"'Population 2016'!AH68/'Population 2016'!AH$7","v":4.0121164040243767E-2},{"$f":"'Population 2016'!AI68/'Population 2016'!AI$7","v":4.0272154745838958E-2},{"$f":"'Population 2016'!AJ68/'Population 2016'!AJ$7","v":4.0164050346485645E-2},{"$f":"'Population 2016'!AK68/'Population 2016'!AK$7","v":4.4094488188976377E-2},{"$f":"'Population 2016'!AL68/'Population 2016'!AL$7","v":4.0834926421553369E-2},{"$f":"'Population 2016'!AM68/'Population 2016'!AM$7","v":4.0246707087601925E-2},{"$f":"'Population 2016'!AN68/'Population 2016'!AN$7","v":{"$error":"#DIV/0!"}},{"$f":"'Population 2016'!AO68/'Population 2016'!AO$7","v":{"$error":"#DIV/0!"}},{"$f":"'Population 2016'!AP68/'Population 2016'!AP$7","v":3.6706948640483385E-2},{"$f":"'Population 2016'!AQ68/'Population 2016'!AQ$7","v":3.6323637252505502E-2},{"$f":"'Population 2016'!AR68/'Population 2016'!AR$7","v":3.8594001151067259E-2},{"$f":"'Population 2016'!AS68/'Population 2016'!AS$7","v":4.5321921805096282E-2},{"$f":"'Population 2016'!AT68/'Population 2016'!AT$7","v":{"$error":"#DIV/0!"}},{"$f":"'Population 2016'!AU68/'Population 2016'!AU$7","v":{"$error":"#DIV/0!"}},{"$f":"'Population 2016'!AV68/'Population 2016'!AV$7","v":3.7630748282478185E-2},{"$f":"'Population 2016'!AW68/'Population 2016'!AW$7","v":3.9915526721333305E-2},{"$f":"'Population 2016'!AX68/'Population 2016'!AX$7","v":3.7037037037037035E-2},{"$f":"'Population 2016'!AY68/'Population 2016'!AY$7","v":3.6544620444906084E-2},{"$f":"'Population 2016'!AZ68/'Population 2016'!AZ$7","v":3.4496199571233677E-2},{"$f":"'Population 2016'!BA68/'Population 2016'!BA$7","v":3.9259575072834507E-2},{"$f":"'Population 2016'!BB68/'Population 2016'!BB$7","v":4.3807699007141612E-2},{"$f":"'Population 2016'!BC68/'Population 2016'!BC$7","v":{"$error":"#DIV/0!"}},66]
[null,"Female 45-49",{"$f":"'Population 2016'!C69/'Population 2016'!C$7","v":3.7819941423659749E-2},{"$f":"'Population 2016'!D69/'Population 2016'!D$7","v":3.9348508243263434E-2},{"$f":"'Population 2016'!E69/'Population 2016'!E$7","v":4.4840997483413407E-2},{"$f":"'Population 2016'!F69/'Population 2016'!F$7","v":4.5224635525141325E-2},{"$f":"'Population 2016'!G69/'Population 2016'!G$7","v":4.4275657650981848E-2},{"$f":"'Population 2016'!H69/'Population 2016'!H$7","v":4.7349487398316896E-2},{"$f":"'Population 2016'!I69/'Population 2016'!I$7","v":4.4154833689943593E-2},{"$f":"'Population 2016'!J69/'Population 2016'!J$7","v":4.9381474404103391E-2},{"$f":"'Population 2016'!K69/'Population 2016'!K$7","v":4.7308810263606296E-2},{"$f":"'Population 2016'!L69/'Population 2016'!L$7","v":4.5873397435897433E-2},{"$f":"'Population 2016'!M69/'Population 2016'!M$7","v":4.5873397435897433E-2},{"$f":"'Population 2016'!N69/'Population 2016'!N$7","v":3.821434372027193E-2},{"$f":"'Population 2016'!O69/'Population 2016'!O$7","v":4.8593431771894097E-2},{"$f":"'Population 2016'!P69/'Population 2016'!P$7","v":5.0978497221551101E-2},{"$f":"'Population 2016'!Q69/'Population 2016'!Q$7","v":5.2415210688591986E-2},{"$f":"'Population 2016'!R69/'Population 2016'!R$7","v":4.9918831168831168E-2},{"$f":"'Population 2016'!S69/'Population 2016'!S$7","v":4.4531505060398303E-2},{"$f":"'Population 2016'!T69/'Population 2016'!T$7","v":4.1614551692098774E-2},{"$f":"'Population 2016'!U69/'Population 2016'!U$7","v":{"$error":"#DIV/0!"}},{"$f":"'Population 2016'!V69/'Population 2016'!V$7","v":4.1434723243356793E-2},{"$f":"'Population 2016'!W69/'Population 2016'!W$7","v":4.6709201374198241E-2},{"$f":"'Population 2016'!X69/'Population 2016'!X$7","v":4.6709201374198241E-2},{"$f":"'Population 2016'!Y69/'Population 2016'!Y$7","v":4.5494245787094122E-2},{"$f":"'Population 2016'!Z69/'Population 2016'!Z$7","v":4.3985293312500263E-2},{"$f":"'Population 2016'!AA69/'Population 2016'!AA$7","v":4.546294048189721E-2},{"$f":"'Population 2016'!AB69/'Population 2016'!AB$7","v":3.9494013132483581E-2},{"$f":"'Population 2016'!AC69/'Population 2016'!AC$7","v":4.5147305612530303E-2},{"$f":"'Population 2016'!AD69/'Population 2016'!AD$7","v":4.5731214651225427E-2},{"$f":"'Population 2016'!AE69/'Population 2016'!AE$7","v":4.6327941064783169E-2},{"$f":"'Population 2016'!AF69/'Population 2016'!AF$7","v":4.8543338393696234E-2},{"$f":"'Population 2016'!AG69/'Population 2016'!AG$7","v":4.6327941064783169E-2},{"$f":"'Population 2016'!AH69/'Population 2016'!AH$7","v":4.6244275359705746E-2},{"$f":"'Population 2016'!AI69/'Population 2016'!AI$7","v":4.3106162843004947E-2},{"$f":"'Population 2016'!AJ69/'Population 2016'!AJ$7","v":4.4123886296139163E-2},{"$f":"'Population 2016'!AK69/'Population 2016'!AK$7","v":4.4094488188976377E-2},{"$f":"'Population 2016'!AL69/'Population 2016'!AL$7","v":4.717023073845196E-2},{"$f":"'Population 2016'!AM69/'Population 2016'!AM$7","v":4.6275001742281691E-2},{"$f":"'Population 2016'!AN69/'Population 2016'!AN$7","v":{"$error":"#DIV/0!"}},{"$f":"'Population 2016'!AO69/'Population 2016'!AO$7","v":{"$error":"#DIV/0!"}},{"$f":"'Population 2016'!AP69/'Population 2016'!AP$7","v":3.610271903323263E-2},{"$f":"'Population 2016'!AQ69/'Population 2016'!AQ$7","v":4.5881202639941332E-2},{"$f":"'Population 2016'!AR69/'Population 2016'!AR$7","v":4.4938628854183628E-2},{"$f":"'Population 2016'!AS69/'Population 2016'!AS$7","v":4.4154833689943593E-2},{"$f":"'Population 2016'!AT69/'Population 2016'!AT$7","v":{"$error":"#DIV/0!"}},{"$f":"'Population 2016'!AU69/'Population 2016'!AU$7","v":{"$error":"#DIV/0!"}},{"$f":"'Population 2016'!AV69/'Population 2016'!AV$7","v":4.5429225722597014E-2},{"$f":"'Population 2016'!AW69/'Population 2016'!AW$7","v":4.6193946081695553E-2},{"$f":"'Population 2016'!AX69/'Population 2016'!AX$7","v":5.1468362095065091E-2},{"$f":"'Population 2016'!AY69/'Population 2016'!AY$7","v":4.284601402233186E-2},{"$f":"'Population 2016'!AZ69/'Population 2016'!AZ$7","v":3.880158041140306E-2},{"$f":"'Population 2016'!BA69/'Population 2016'!BA$7","v":4.8852412420947913E-2},{"$f":"'Population 2016'!BB69/'Population 2016'!BB$7","v":4.5244730883121406E-2},{"$f":"'Population 2016'!BC69/'Population 2016'!BC$7","v":{"$error":"#DIV/0!"}},67]
[null,"Female 50-54",{"$f":"'Population 2016'!C70/'Population 2016'!C$7","v":3.9921049280529732E-2},{"$f":"'Population 2016'!D70/'Population 2016'!D$7","v":4.04442894854809E-2},{"$f":"'Population 2016'!E70/'Population 2016'!E$7","v":4.2324410889956532E-2},{"$f":"'Population 2016'!F70/'Population 2016'!F$7","v":4.1505504314192206E-2},{"$f":"'Population 2016'!G70/'Population 2016'!G$7","v":4.3164134864764725E-2},{"$f":"'Population 2016'!H70/'Population 2016'!H$7","v":4.8224529259887433E-2},{"$f":"'Population 2016'!I70/'Population 2016'!I$7","v":4.2793230888932117E-2},{"$f":"'Population 2016'!J70/'Population 2016'!J$7","v":4.5509403600522982E-2},{"$f":"'Population 2016'!K70/'Population 2016'!K$7","v":4.580535231031372E-2},{"$f":"'Population 2016'!L70/'Population 2016'!L$7","v":4.737580128205128E-2},{"$f":"'Population 2016'!M70/'Population 2016'!M$7","v":4.737580128205128E-2},{"$f":"'Population 2016'!N70/'Population 2016'!N$7","v":4.3295668112949257E-2},{"$f":"'Population 2016'!O70/'Population 2016'!O$7","v":4.9834521384928714E-2},{"$f":"'Population 2016'!P70/'Population 2016'!P$7","v":5.1220101473785938E-2},{"$f":"'Population 2016'!Q70/'Population 2016'!Q$7","v":4.2822884549503254E-2},{"$f":"'Population 2016'!R70/'Population 2016'!R$7","v":5.2353896103896104E-2},{"$f":"'Population 2016'!S70/'Population 2016'!S$7","v":4.2827293503101535E-2},{"$f":"'Population 2016'!T70/'Population 2016'!T$7","v":3.7397705749919595E-2},{"$f":"'Population 2016'!U70/'Population 2016'!U$7","v":{"$error":"#DIV/0!"}},{"$f":"'Population 2016'!V70/'Population 2016'!V$7","v":4.4113013338934984E-2},{"$f":"'Population 2016'!W70/'Population 2016'!W$7","v":4.6810743116316063E-2},{"$f":"'Population 2016'!X70/'Population 2016'!X$7","v":4.6810743116316063E-2},{"$f":"'Population 2016'!Y70/'Population 2016'!Y$7","v":4.482634607480477E-2},{"$f":"'Population 2016'!Z70/'Population 2016'!Z$7","v":4.6141600299861439E-2},{"$f":"'Population 2016'!AA70/'Population 2016'!AA$7","v":4.6535806112221328E-2},{"$f":"'Population 2016'!AB70/'Population 2016'!AB$7","v":4.0507918115102355E-2},{"$f":"'Population 2016'!AC70/'Population 2016'!AC$7","v":4.6513728323699419E-2},{"$f":"'Population 2016'!AD70/'Population 2016'!AD$7","v":4.2822515486129815E-2},{"$f":"'Population 2016'!AE70/'Population 2016'!AE$7","v":4.2682463735095315E-2},{"$f":"'Population 2016'!AF70/'Population 2016'!AF$7","v":4.7820429407937542E-2},{"$f":"'Population 2016'!AG70/'Population 2016'!AG$7","v":4.2682463735095315E-2},{"$f":"'Population 2016'!AH70/'Population 2016'!AH$7","v":4.65904583318308E-2},{"$f":"'Population 2016'!AI70/'Population 2016'!AI$7","v":4.0182186234817813E-2},{"$f":"'Population 2016'!AJ70/'Population 2016'!AJ$7","v":4.4830999858577289E-2},{"$f":"'Population 2016'!AK70/'Population 2016'!AK$7","v":4.2519685039370078E-2},{"$f":"'Population 2016'!AL70/'Population 2016'!AL$7","v":4.8948561774774371E-2},{"$f":"'Population 2016'!AM70/'Population 2016'!AM$7","v":4.69486839965619E-2},{"$f":"'Population 2016'!AN70/'Population 2016'!AN$7","v":{"$error":"#DIV/0!"}},{"$f":"'Population 2016'!AO70/'Population 2016'!AO$7","v":{"$error":"#DIV/0!"}},{"$f":"'Population 2016'!AP70/'Population 2016'!AP$7","v":3.9123867069486402E-2},{"$f":"'Population 2016'!AQ70/'Population 2016'!AQ$7","v":4.3950134441456859E-2},{"$f":"'Population 2016'!AR70/'Population 2016'!AR$7","v":4.5519894890591286E-2},{"$f":"'Population 2016'!AS70/'Population 2016'!AS$7","v":4.2793230888932117E-2},{"$f":"'Population 2016'!AT70/'Population 2016'!AT$7","v":{"$error":"#DIV/0!"}},{"$f":"'Population 2016'!AU70/'Population 2016'!AU$7","v":{"$error":"#DIV/0!"}},{"$f":"'Population 2016'!AV70/'Population 2016'!AV$7","v":4.307730395494213E-2},{"$f":"'Population 2016'!AW70/'Population 2016'!AW$7","v":4.6003690949563365E-2},{"$f":"'Population 2016'!AX70/'Population 2016'!AX$7","v":4.5211423958017964E-2},{"$f":"'Population 2016'!AY70/'Population 2016'!AY$7","v":4.4750281312213279E-2},{"$f":"'Population 2016'!AZ70/'Population 2016'!AZ$7","v":4.259315036941231E-2},{"$f":"'Population 2016'!BA70/'Population 2016'!BA$7","v":5.038016059120301E-2},{"$f":"'Population 2016'!BB70/'Population 2016'!BB$7","v":4.520118446263717E-2},{"$f":"'Population 2016'!BC70/'Population 2016'!BC$7","v":{"$error":"#DIV/0!"}},68]
[null,"Female 55-59",{"$f":"'Population 2016'!C71/'Population 2016'!C$7","v":3.4445434865656439E-2},{"$f":"'Population 2016'!D71/'Population 2016'!D$7","v":3.4865766797828358E-2},{"$f":"'Population 2016'!E71/'Population 2016'!E$7","v":3.6376115305422098E-2},{"$f":"'Population 2016'!F71/'Population 2016'!F$7","v":3.8678964593870872E-2},{"$f":"'Population 2016'!G71/'Population 2016'!G$7","v":4.1311596887736196E-2},{"$f":"'Population 2016'!H71/'Population 2016'!H$7","v":4.227208400401871E-2},{"$f":"'Population 2016'!I71/'Population 2016'!I$7","v":3.7930363742462558E-2},{"$f":"'Population 2016'!J71/'Population 2016'!J$7","v":4.1989339233631698E-2},{"$f":"'Population 2016'!K71/'Population 2016'!K$7","v":4.1996592161972539E-2},{"$f":"'Population 2016'!L71/'Population 2016'!L$7","v":3.8461538461538464E-2},{"$f":"'Population 2016'!M71/'Population 2016'!M$7","v":3.8461538461538464E-2},{"$f":"'Population 2016'!N71/'Population 2016'!N$7","v":3.8724796398988376E-2},{"$f":"'Population 2016'!O71/'Population 2016'!O$7","v":4.0351323828920573E-2},{"$f":"'Population 2016'!P71/'Population 2016'!P$7","v":5.1220101473785938E-2},{"$f":"'Population 2016'!Q71/'Population 2016'!Q$7","v":4.6933881466255566E-2},{"$f":"'Population 2016'!R71/'Population 2016'!R$7","v":3.9569805194805192E-2},{"$f":"'Population 2016'!S71/'Population 2016'!S$7","v":3.9712699967352272E-2},{"$f":"'Population 2016'!T71/'Population 2016'!T$7","v":3.6861666011506984E-2},{"$f":"'Population 2016'!U71/'Population 2016'!U$7","v":{"$error":"#DIV/0!"}},{"$f":"'Population 2016'!V71/'Population 2016'!V$7","v":4.0226866925743093E-2},{"$f":"'Population 2016'!W71/'Population 2016'!W$7","v":4.1395183536698875E-2},{"$f":"'Population 2016'!X71/'Population 2016'!X$7","v":4.1395183536698875E-2},{"$f":"'Population 2016'!Y71/'Population 2016'!Y$7","v":4.112720920674065E-2},{"$f":"'Population 2016'!Z71/'Population 2016'!Z$7","v":3.9954852322452127E-2},{"$f":"'Population 2016'!AA71/'Population 2016'!AA$7","v":4.1345792685837136E-2},{"$f":"'Population 2016'!AB71/'Population 2016'!AB$7","v":3.4907300115874854E-2},{"$f":"'Population 2016'!AC71/'Population 2016'!AC$7","v":4.0914017341040464E-2},{"$f":"'Population 2016'!AD71/'Population 2016'!AD$7","v":3.980608672232696E-2},{"$f":"'Population 2016'!AE71/'Population 2016'!AE$7","v":3.9188881294144454E-2},{"$f":"'Population 2016'!AF71/'Population 2016'!AF$7","v":4.5651702450661462E-2},{"$f":"'Population 2016'!AG71/'Population 2016'!AG$7","v":3.9188881294144454E-2},{"$f":"'Population 2016'!AH71/'Population 2016'!AH$7","v":4.241462623057228E-2},{"$f":"'Population 2016'!AI71/'Population 2016'!AI$7","v":3.8697705802968961E-2},{"$f":"'Population 2016'!AJ71/'Population 2016'!AJ$7","v":4.384104087116391E-2},{"$f":"'Population 2016'!AK71/'Population 2016'!AK$7","v":3.6220472440944881E-2},{"$f":"'Population 2016'!AL71/'Population 2016'!AL$7","v":4.3591339527853108E-2},{"$f":"'Population 2016'!AM71/'Population 2016'!AM$7","v":4.1477919483355399E-2},{"$f":"'Population 2016'!AN71/'Population 2016'!AN$7","v":{"$error":"#DIV/0!"}},{"$f":"'Population 2016'!AO71/'Population 2016'!AO$7","v":{"$error":"#DIV/0!"}},{"$f":"'Population 2016'!AP71/'Population 2016'!AP$7","v":3.5196374622356495E-2},{"$f":"'Population 2016'!AQ71/'Population 2016'!AQ$7","v":4.0405768760694204E-2},{"$f":"'Population 2016'!AR71/'Population 2016'!AR$7","v":4.0732188839233512E-2},{"$f":"'Population 2016'!AS71/'Population 2016'!AS$7","v":3.7930363742462558E-2},{"$f":"'Population 2016'!AT71/'Population 2016'!AT$7","v":{"$error":"#DIV/0!"}},{"$f":"'Population 2016'!AU71/'Population 2016'!AU$7","v":{"$error":"#DIV/0!"}},{"$f":"'Population 2016'!AV71/'Population 2016'!AV$7","v":4.2334591817787953E-2},{"$f":"'Population 2016'!AW71/'Population 2016'!AW$7","v":4.3948935522535718E-2},{"$f":"'Population 2016'!AX71/'Population 2016'!AX$7","v":4.1982036532445255E-2},{"$f":"'Population 2016'!AY71/'Population 2016'!AY$7","v":3.9885743962607113E-2},{"$f":"'Population 2016'!AZ71/'Population 2016'!AZ$7","v":3.8305487145869135E-2},{"$f":"'Population 2016'!BA71/'Population 2016'!BA$7","v":4.3807290556384569E-2},{"$f":"'Population 2016'!BB71/'Population 2016'!BB$7","v":4.0541717470823899E-2},{"$f":"'Population 2016'!BC71/'Population 2016'!BC$7","v":{"$error":"#DIV/0!"}},69]
[null,"Female 60-64",{"$f":"'Population 2016'!C72/'Population 2016'!C$7","v":2.8014771424933145E-2},{"$f":"'Population 2016'!D72/'Population 2016'!D$7","v":2.8141654629675748E-2},{"$f":"'Population 2016'!E72/'Population 2016'!E$7","v":2.8597574925646307E-2},{"$f":"'Population 2016'!F72/'Population 2016'!F$7","v":3.1091936923534663E-2},{"$f":"'Population 2016'!G72/'Population 2016'!G$7","v":3.7050759540570584E-2},{"$f":"'Population 2016'!H72/'Population 2016'!H$7","v":3.8274979204252053E-2},{"$f":"'Population 2016'!I72/'Population 2016'!I$7","v":3.6179731569733517E-2},{"$f":"'Population 2016'!J72/'Population 2016'!J$7","v":3.2133159006336114E-2},{"$f":"'Population 2016'!K72/'Population 2016'!K$7","v":3.3877919214192642E-2},{"$f":"'Population 2016'!L72/'Population 2016'!L$7","v":3.4555288461538464E-2},{"$f":"'Population 2016'!M72/'Population 2016'!M$7","v":3.4555288461538464E-2},{"$f":"'Population 2016'!N72/'Population 2016'!N$7","v":3.0859184667857722E-2},{"$f":"'Population 2016'!O72/'Population 2016'!O$7","v":3.6628054989816701E-2},{"$f":"'Population 2016'!P72/'Population 2016'!P$7","v":3.9381493114278812E-2},{"$f":"'Population 2016'!Q72/'Population 2016'!Q$7","v":3.3230558410414522E-2},{"$f":"'Population 2016'!R72/'Population 2016'!R$7","v":3.49025974025974E-2},{"$f":"'Population 2016'!S72/'Population 2016'!S$7","v":3.2158015017956253E-2},{"$f":"'Population 2016'!T72/'Population 2016'!T$7","v":2.7570310545688453E-2},{"$f":"'Population 2016'!U72/'Population 2016'!U$7","v":{"$error":"#DIV/0!"}},{"$f":"'Population 2016'!V72/'Population 2016'!V$7","v":3.4082554353534293E-2},{"$f":"'Population 2016'!W72/'Population 2016'!W$7","v":3.5302679009629544E-2},{"$f":"'Population 2016'!X72/'Population 2016'!X$7","v":3.5302679009629544E-2},{"$f":"'Population 2016'!Y72/'Population 2016'!Y$7","v":3.3086724208795729E-2},{"$f":"'Population 2016'!Z72/'Population 2016'!Z$7","v":3.0752643792404916E-2},{"$f":"'Population 2016'!AA72/'Population 2016'!AA$7","v":3.3362593305069445E-2},{"$f":"'Population 2016'!AB72/'Population 2016'!AB$7","v":2.9065276168404791E-2},{"$f":"'Population 2016'!AC72/'Population 2016'!AC$7","v":3.2022072534029458E-2},{"$f":"'Population 2016'!AD72/'Population 2016'!AD$7","v":3.6681928359816859E-2},{"$f":"'Population 2016'!AE72/'Population 2016'!AE$7","v":3.6530720741247059E-2},{"$f":"'Population 2016'!AF72/'Population 2016'!AF$7","v":3.7663558158027903E-2},{"$f":"'Population 2016'!AG72/'Population 2016'!AG$7","v":3.6530720741247059E-2},{"$f":"'Population 2016'!AH72/'Population 2016'!AH$7","v":3.6680970754750998E-2},{"$f":"'Population 2016'!AI72/'Population 2016'!AI$7","v":2.9835807467386413E-2},{"$f":"'Population 2016'!AJ72/'Population 2016'!AJ$7","v":3.2810069297129117E-2},{"$f":"'Population 2016'!AK72/'Population 2016'!AK$7","v":5.826771653543307E-2},{"$f":"'Population 2016'!AL72/'Population 2016'!AL$7","v":3.9167741075001108E-2},{"$f":"'Population 2016'!AM72/'Population 2016'!AM$7","v":3.5554161730201872E-2},{"$f":"'Population 2016'!AN72/'Population 2016'!AN$7","v":{"$error":"#DIV/0!"}},{"$f":"'Population 2016'!AO72/'Population 2016'!AO$7","v":{"$error":"#DIV/0!"}},{"$f":"'Population 2016'!AP72/'Population 2016'!AP$7","v":3.2024169184290033E-2},{"$f":"'Population 2016'!AQ72/'Population 2016'!AQ$7","v":3.0774871669518457E-2},{"$f":"'Population 2016'!AR72/'Population 2016'!AR$7","v":3.34910127328217E-2},{"$f":"'Population 2016'!AS72/'Population 2016'!AS$7","v":3.6179731569733517E-2},{"$f":"'Population 2016'!AT72/'Population 2016'!AT$7","v":{"$error":"#DIV/0!"}},{"$f":"'Population 2016'!AU72/'Population 2016'!AU$7","v":{"$error":"#DIV/0!"}},{"$f":"'Population 2016'!AV72/'Population 2016'!AV$7","v":3.899238720059417E-2},{"$f":"'Population 2016'!AW72/'Population 2016'!AW$7","v":3.8526664256768324E-2},{"$f":"'Population 2016'!AX72/'Population 2016'!AX$7","v":3.0376425471793318E-2},{"$f":"'Population 2016'!AY72/'Population 2016'!AY$7","v":3.3212152687613607E-2},{"$f":"'Population 2016'!AZ72/'Population 2016'!AZ$7","v":3.1023546712496235E-2},{"$f":"'Population 2016'!BA72/'Population 2016'!BA$7","v":3.7412065657642296E-2},{"$f":"'Population 2016'!BB72/'Population 2016'!BB$7","v":3.4009754398188471E-2},{"$f":"'Population 2016'!BC72/'Population 2016'!BC$7","v":{"$error":"#DIV/0!"}},70]
[null,"Female 65-69",{"$f":"'Population 2016'!C73/'Population 2016'!C$7","v":2.5977333503119825E-2},{"$f":"'Population 2016'!D73/'Population 2016'!D$7","v":2.6149325098371271E-2},{"$f":"'Population 2016'!E73/'Population 2016'!E$7","v":2.6767330130404943E-2},{"$f":"'Population 2016'!F73/'Population 2016'!F$7","v":2.7819101457899436E-2},{"$f":"'Population 2016'!G73/'Population 2016'!G$7","v":4.1682104483141906E-2},{"$f":"'Population 2016'!H73/'Population 2016'!H$7","v":3.6600516382728189E-2},{"$f":"'Population 2016'!I73/'Population 2016'!I$7","v":3.7541334370744993E-2},{"$f":"'Population 2016'!J73/'Population 2016'!J$7","v":3.4396057527909085E-2},{"$f":"'Population 2016'!K73/'Population 2016'!K$7","v":3.7285757241655809E-2},{"$f":"'Population 2016'!L73/'Population 2016'!L$7","v":2.9847756410256412E-2},{"$f":"'Population 2016'!M73/'Population 2016'!M$7","v":2.9847756410256412E-2},{"$f":"'Population 2016'!N73/'Population 2016'!N$7","v":3.078957748439639E-2},{"$f":"'Population 2016'!O73/'Population 2016'!O$7","v":3.5705193482688392E-2},{"$f":"'Population 2016'!P73/'Population 2016'!P$7","v":3.5515825078521385E-2},{"$f":"'Population 2016'!Q73/'Population 2016'!Q$7","v":3.4943473792394653E-2},{"$f":"'Population 2016'!R73/'Population 2016'!R$7","v":3.510551948051948E-2},{"$f":"'Population 2016'!S73/'Population 2016'!S$7","v":3.2066601371204699E-2},{"$f":"'Population 2016'!T73/'Population 2016'!T$7","v":2.667691098166744E-2},{"$f":"'Population 2016'!U73/'Population 2016'!U$7","v":{"$error":"#DIV/0!"}},{"$f":"'Population 2016'!V73/'Population 2016'!V$7","v":3.4345131813885099E-2},{"$f":"'Population 2016'!W73/'Population 2016'!W$7","v":3.5505762493865188E-2},{"$f":"'Population 2016'!X73/'Population 2016'!X$7","v":3.5505762493865188E-2},{"$f":"'Population 2016'!Y73/'Population 2016'!Y$7","v":3.4371146732429102E-2},{"$f":"'Population 2016'!Z73/'Population 2016'!Z$7","v":2.7593990978887564E-2},{"$f":"'Population 2016'!AA73/'Population 2016'!AA$7","v":3.1011419689678285E-2},{"$f":"'Population 2016'!AB73/'Population 2016'!AB$7","v":2.6892622634221708E-2},{"$f":"'Population 2016'!AC73/'Population 2016'!AC$7","v":2.9394112437068805E-2},{"$f":"'Population 2016'!AD73/'Population 2016'!AD$7","v":3.3934823592782118E-2},{"$f":"'Population 2016'!AE73/'Population 2016'!AE$7","v":3.0758714969241284E-2},{"$f":"'Population 2016'!AF73/'Population 2016'!AF$7","v":3.7771994505891707E-2},{"$f":"'Population 2016'!AG73/'Population 2016'!AG$7","v":3.0758714969241284E-2},{"$f":"'Population 2016'!AH73/'Population 2016'!AH$7","v":3.5014965201399156E-2},{"$f":"'Population 2016'!AI73/'Population 2016'!AI$7","v":2.9464687359424202E-2},{"$f":"'Population 2016'!AJ73/'Population 2016'!AJ$7","v":3.6911327959270261E-2},{"$f":"'Population 2016'!AK73/'Population 2016'!AK$7","v":5.0393700787401574E-2},{"$f":"'Population 2016'!AL73/'Population 2016'!AL$7","v":3.8367492108656025E-2},{"$f":"'Population 2016'!AM73/'Population 2016'!AM$7","v":3.3707343136571657E-2},{"$f":"'Population 2016'!AN73/'Population 2016'!AN$7","v":{"$error":"#DIV/0!"}},{"$f":"'Population 2016'!AO73/'Population 2016'!AO$7","v":{"$error":"#DIV/0!"}},{"$f":"'Population 2016'!AP73/'Population 2016'!AP$7","v":2.7492447129909364E-2},{"$f":"'Population 2016'!AQ73/'Population 2016'!AQ$7","v":2.9650452212173061E-2},{"$f":"'Population 2016'!AR73/'Population 2016'!AR$7","v":3.1828614798322469E-2},{"$f":"'Population 2016'!AS73/'Population 2016'!AS$7","v":3.7541334370744993E-2},{"$f":"'Population 2016'!AT73/'Population 2016'!AT$7","v":{"$error":"#DIV/0!"}},{"$f":"'Population 2016'!AU73/'Population 2016'!AU$7","v":{"$error":"#DIV/0!"}},{"$f":"'Population 2016'!AV73/'Population 2016'!AV$7","v":3.3422046171937857E-2},{"$f":"'Population 2016'!AW73/'Population 2016'!AW$7","v":3.7156827305416563E-2},{"$f":"'Population 2016'!AX73/'Population 2016'!AX$7","v":3.1486527399333941E-2},{"$f":"'Population 2016'!AY73/'Population 2016'!AY$7","v":3.2839954990045876E-2},{"$f":"'Population 2016'!AZ73/'Population 2016'!AZ$7","v":3.0049077798054605E-2},{"$f":"'Population 2016'!BA73/'Population 2016'!BA$7","v":3.4072337099410217E-2},{"$f":"'Population 2016'!BB73/'Population 2016'!BB$7","v":3.3269465249956456E-2},{"$f":"'Population 2016'!BC73/'Population 2016'!BC$7","v":{"$error":"#DIV/0!"}},71]
[null,"Female 70-74",{"$f":"'Population 2016'!C74/'Population 2016'!C$7","v":1.8273271361263211E-2},{"$f":"'Population 2016'!D74/'Population 2016'!D$7","v":1.8279623449718584E-2},{"$f":"'Population 2016'!E74/'Population 2016'!E$7","v":1.8302447952413637E-2},{"$f":"'Population 2016'!F74/'Population 2016'!F$7","v":2.3951204998512346E-2},{"$f":"'Population 2016'!G74/'Population 2016'!G$7","v":3.0752130418673584E-2},{"$f":"'Population 2016'!H74/'Population 2016'!H$7","v":2.8649518726976138E-2},{"$f":"'Population 2016'!I74/'Population 2016'!I$7","v":2.8982688192958569E-2},{"$f":"'Population 2016'!J74/'Population 2016'!J$7","v":2.6551342653122801E-2},{"$f":"'Population 2016'!K74/'Population 2016'!K$7","v":2.7964317931241857E-2},{"$f":"'Population 2016'!L74/'Population 2016'!L$7","v":3.1149839743589744E-2},{"$f":"'Population 2016'!M74/'Population 2016'!M$7","v":3.1149839743589744E-2},{"$f":"'Population 2016'!N74/'Population 2016'!N$7","v":2.2227893918652406E-2},{"$f":"'Population 2016'!O74/'Population 2016'!O$7","v":2.7590376782077392E-2},{"$f":"'Population 2016'!P74/'Population 2016'!P$7","v":2.4643633727953612E-2},{"$f":"'Population 2016'!Q74/'Population 2016'!Q$7","v":2.9804727646454265E-2},{"$f":"'Population 2016'!R74/'Population 2016'!R$7","v":2.5162337662337664E-2},{"$f":"'Population 2016'!S74/'Population 2016'!S$7","v":2.4720861900097944E-2},{"$f":"'Population 2016'!T74/'Population 2016'!T$7","v":1.9404638530536398E-2},{"$f":"'Population 2016'!U74/'Population 2016'!U$7","v":{"$error":"#DIV/0!"}},{"$f":"'Population 2016'!V74/'Population 2016'!V$7","v":2.483982774918601E-2},{"$f":"'Population 2016'!W74/'Population 2016'!W$7","v":2.8143986190323073E-2},{"$f":"'Population 2016'!X74/'Population 2016'!X$7","v":2.8143986190323073E-2},{"$f":"'Population 2016'!Y74/'Population 2016'!Y$7","v":2.5714138923140156E-2},{"$f":"'Population 2016'!Z74/'Population 2016'!Z$7","v":2.2725454108986156E-2},{"$f":"'Population 2016'!AA74/'Population 2016'!AA$7","v":2.4698736425759565E-2},{"$f":"'Population 2016'!AB74/'Population 2016'!AB$7","v":1.839513325608343E-2},{"$f":"'Population 2016'!AC74/'Population 2016'!AC$7","v":2.3462264590714151E-2},{"$f":"'Population 2016'!AD74/'Population 2016'!AD$7","v":2.6016698087799623E-2},{"$f":"'Population 2016'!AE74/'Population 2016'!AE$7","v":2.4075339864813548E-2},{"$f":"'Population 2016'!AF74/'Population 2016'!AF$7","v":2.8482614038892504E-2},{"$f":"'Population 2016'!AG74/'Population 2016'!AG$7","v":2.4075339864813548E-2},{"$f":"'Population 2016'!AH74/'Population 2016'!AH$7","v":2.7759547077278138E-2},{"$f":"'Population 2016'!AI74/'Population 2016'!AI$7","v":2.2199730094466935E-2},{"$f":"'Population 2016'!AJ74/'Population 2016'!AJ$7","v":2.8001697072549851E-2},{"$f":"'Population 2016'!AK74/'Population 2016'!AK$7","v":2.2047244094488189E-2},{"$f":"'Population 2016'!AL74/'Population 2016'!AL$7","v":2.9898190548170542E-2},{"$f":"'Population 2016'!AM74/'Population 2016'!AM$7","v":2.7632587636769113E-2},{"$f":"'Population 2016'!AN74/'Population 2016'!AN$7","v":{"$error":"#DIV/0!"}},{"$f":"'Population 2016'!AO74/'Population 2016'!AO$7","v":{"$error":"#DIV/0!"}},{"$f":"'Population 2016'!AP74/'Population 2016'!AP$7","v":2.2809667673716012E-2},{"$f":"'Population 2016'!AQ74/'Population 2016'!AQ$7","v":2.3466145196773404E-2},{"$f":"'Population 2016'!AR74/'Population 2016'!AR$7","v":2.4977242345517372E-2},{"$f":"'Population 2016'!AS74/'Population 2016'!AS$7","v":2.8982688192958569E-2},{"$f":"'Population 2016'!AT74/'Population 2016'!AT$7","v":{"$error":"#DIV/0!"}},{"$f":"'Population 2016'!AU74/'Population 2016'!AU$7","v":{"$error":"#DIV/0!"}},{"$f":"'Population 2016'!AV74/'Population 2016'!AV$7","v":2.7232778362319736E-2},{"$f":"'Population 2016'!AW74/'Population 2016'!AW$7","v":2.7967504423431822E-2},{"$f":"'Population 2016'!AX74/'Population 2016'!AX$7","v":2.5128670905237661E-2},{"$f":"'Population 2016'!AY74/'Population 2016'!AY$7","v":2.5387345278282698E-2},{"$f":"'Population 2016'!AZ74/'Population 2016'!AZ$7","v":2.250137311528853E-2},{"$f":"'Population 2016'!BA74/'Population 2016'!BA$7","v":2.42663255880054E-2},{"$f":"'Population 2016'!BB74/'Population 2016'!BB$7","v":2.6258491551994428E-2},{"$f":"'Population 2016'!BC74/'Population 2016'!BC$7","v":{"$error":"#DIV/0!"}},72]
[null,"Female 75-79",{"$f":"'Population 2016'!C75/'Population 2016'!C$7","v":1.5471794218769897E-2},{"$f":"'Population 2016'!D75/'Population 2016'!D$7","v":1.4793046769935748E-2},{"$f":"'Population 2016'!E75/'Population 2016'!E$7","v":1.2354152367879203E-2},{"$f":"'Population 2016'!F75/'Population 2016'!F$7","v":2.4695031240702173E-2},{"$f":"'Population 2016'!G75/'Population 2016'!G$7","v":2.667654686921082E-2},{"$f":"'Population 2016'!H75/'Population 2016'!H$7","v":2.4717231842881372E-2},{"$f":"'Population 2016'!I75/'Population 2016'!I$7","v":2.0229527329313362E-2},{"$f":"'Population 2016'!J75/'Population 2016'!J$7","v":2.071809313084582E-2},{"$f":"'Population 2016'!K75/'Population 2016'!K$7","v":2.1349102936754537E-2},{"$f":"'Population 2016'!L75/'Population 2016'!L$7","v":1.893028846153846E-2},{"$f":"'Population 2016'!M75/'Population 2016'!M$7","v":1.893028846153846E-2},{"$f":"'Population 2016'!N75/'Population 2016'!N$7","v":1.9466808974686188E-2},{"$f":"'Population 2016'!O75/'Population 2016'!O$7","v":2.3517057026476579E-2},{"$f":"'Population 2016'!P75/'Population 2016'!P$7","v":2.0777965692196181E-2},{"$f":"'Population 2016'!Q75/'Population 2016'!Q$7","v":2.5693730729701953E-2},{"$f":"'Population 2016'!R75/'Population 2016'!R$7","v":2.2118506493506492E-2},{"$f":"'Population 2016'!S75/'Population 2016'!S$7","v":2.0339536402220047E-2},{"$f":"'Population 2016'!T75/'Population 2016'!T$7","v":1.7189007611764284E-2},{"$f":"'Population 2016'!U75/'Population 2016'!U$7","v":{"$error":"#DIV/0!"}},{"$f":"'Population 2016'!V75/'Population 2016'!V$7","v":2.6677869971641635E-2},{"$f":"'Population 2016'!W75/'Population 2016'!W$7","v":2.3100746331804565E-2},{"$f":"'Population 2016'!X75/'Population 2016'!X$7","v":2.3100746331804565E-2},{"$f":"'Population 2016'!Y75/'Population 2016'!Y$7","v":2.3633374434854089E-2},{"$f":"'Population 2016'!Z75/'Population 2016'!Z$7","v":2.1542012188188322E-2},{"$f":"'Population 2016'!AA75/'Population 2016'!AA$7","v":2.2432644997686178E-2},{"$f":"'Population 2016'!AB75/'Population 2016'!AB$7","v":1.4822325222093473E-2},{"$f":"'Population 2016'!AC75/'Population 2016'!AC$7","v":2.2168678911057244E-2},{"$f":"'Population 2016'!AD75/'Population 2016'!AD$7","v":2.2030702935631565E-2},{"$f":"'Population 2016'!AE75/'Population 2016'!AE$7","v":2.0126072757651704E-2},{"$f":"'Population 2016'!AF75/'Population 2016'!AF$7","v":2.7145232415238921E-2},{"$f":"'Population 2016'!AG75/'Population 2016'!AG$7","v":2.0126072757651704E-2},{"$f":"'Population 2016'!AH75/'Population 2016'!AH$7","v":2.3086076953589846E-2},{"$f":"'Population 2016'!AI75/'Population 2016'!AI$7","v":1.851102114260009E-2},{"$f":"'Population 2016'!AJ75/'Population 2016'!AJ$7","v":1.8384952623391317E-2},{"$f":"'Population 2016'!AK75/'Population 2016'!AK$7","v":1.5748031496062992E-2},{"$f":"'Population 2016'!AL75/'Population 2016'!AL$7","v":2.5941403992353177E-2},{"$f":"'Population 2016'!AM75/'Population 2016'!AM$7","v":2.2847120589123516E-2},{"$f":"'Population 2016'!AN75/'Population 2016'!AN$7","v":{"$error":"#DIV/0!"}},{"$f":"'Population 2016'!AO75/'Population 2016'!AO$7","v":{"$error":"#DIV/0!"}},{"$f":"'Population 2016'!AP75/'Population 2016'!AP$7","v":1.4350453172205438E-2},{"$f":"'Population 2016'!AQ75/'Population 2016'!AQ$7","v":2.3417257394280126E-2},{"$f":"'Population 2016'!AR75/'Population 2016'!AR$7","v":2.194135977272154E-2},{"$f":"'Population 2016'!AS75/'Population 2016'!AS$7","v":2.0229527329313362E-2},{"$f":"'Population 2016'!AT75/'Population 2016'!AT$7","v":{"$error":"#DIV/0!"}},{"$f":"'Population 2016'!AU75/'Population 2016'!AU$7","v":{"$error":"#DIV/0!"}},{"$f":"'Population 2016'!AV75/'Population 2016'!AV$7","v":2.3643003032741226E-2},{"$f":"'Population 2016'!AW75/'Population 2016'!AW$7","v":2.3477483305112155E-2},{"$f":"'Population 2016'!AX75/'Population 2016'!AX$7","v":2.0082753052780299E-2},{"$f":"'Population 2016'!AY75/'Population 2016'!AY$7","v":2.1336449407080411E-2},{"$f":"'Population 2016'!AZ75/'Population 2016'!AZ$7","v":1.9489378288832588E-2},{"$f":"'Population 2016'!BA75/'Population 2016'!BA$7","v":2.0962126056988561E-2},{"$f":"'Population 2016'!BB75/'Population 2016'!BB$7","v":2.0858735411949138E-2},{"$f":"'Population 2016'!BC75/'Population 2016'!BC$7","v":{"$error":"#DIV/0!"}},73]
[null,"Female 80-84",{"$f":"'Population 2016'!C76/'Population 2016'!C$7","v":1.2033617725709919E-2},{"$f":"'Population 2016'!D76/'Population 2016'!D$7","v":1.1904168949544255E-2},{"$f":"'Population 2016'!E76/'Population 2016'!E$7","v":1.1439029970258523E-2},{"$f":"'Population 2016'!F76/'Population 2016'!F$7","v":1.4430229098482595E-2},{"$f":"'Population 2016'!G76/'Population 2016'!G$7","v":2.1674694331233792E-2},{"$f":"'Population 2016'!H76/'Population 2016'!H$7","v":1.8062592500567156E-2},{"$f":"'Population 2016'!I76/'Population 2016'!I$7","v":1.5950204240420152E-2},{"$f":"'Population 2016'!J76/'Population 2016'!J$7","v":1.563914311575983E-2},{"$f":"'Population 2016'!K76/'Population 2016'!K$7","v":1.403227423073068E-2},{"$f":"'Population 2016'!L76/'Population 2016'!L$7","v":1.5124198717948718E-2},{"$f":"'Population 2016'!M76/'Population 2016'!M$7","v":1.5124198717948718E-2},{"$f":"'Population 2016'!N76/'Population 2016'!N$7","v":1.5568806700851527E-2},{"$f":"'Population 2016'!O76/'Population 2016'!O$7","v":1.7820773930753563E-2},{"$f":"'Population 2016'!P76/'Population 2016'!P$7","v":1.3529838125151003E-2},{"$f":"'Population 2016'!Q76/'Population 2016'!Q$7","v":1.4388489208633094E-2},{"$f":"'Population 2016'!R76/'Population 2016'!R$7","v":1.9074675324675324E-2},{"$f":"'Population 2016'!S76/'Population 2016'!S$7","v":1.5435847208619001E-2},{"$f":"'Population 2016'!T76/'Population 2016'!T$7","v":1.3615409355680234E-2},{"$f":"'Population 2016'!U76/'Population 2016'!U$7","v":{"$error":"#DIV/0!"}},{"$f":"'Population 2016'!V76/'Population 2016'!V$7","v":1.9063123621468333E-2},{"$f":"'Population 2016'!W76/'Population 2016'!W$7","v":1.6686692954695461E-2},{"$f":"'Population 2016'!X76/'Population 2016'!X$7","v":1.6686692954695461E-2},{"$f":"'Population 2016'!Y76/'Population 2016'!Y$7","v":1.7314015618577889E-2},{"$f":"'Population 2016'!Z76/'Population 2016'!Z$7","v":1.7052513655908996E-2},{"$f":"'Population 2016'!AA76/'Population 2016'!AA$7","v":1.758296032057308E-2},{"$f":"'Population 2016'!AB76/'Population 2016'!AB$7","v":1.2022016222479722E-2},{"$f":"'Population 2016'!AC76/'Population 2016'!AC$7","v":1.7574118963266827E-2},{"$f":"'Population 2016'!AD76/'Population 2016'!AD$7","v":1.7021276595744681E-2},{"$f":"'Population 2016'!AE76/'Population 2016'!AE$7","v":1.5113541429330904E-2},{"$f":"'Population 2016'!AF76/'Population 2016'!AF$7","v":2.161497867418492E-2},{"$f":"'Population 2016'!AG76/'Population 2016'!AG$7","v":1.5113541429330904E-2},{"$f":"'Population 2016'!AH76/'Population 2016'!AH$7","v":1.7604846561609752E-2},{"$f":"'Population 2016'!AI76/'Population 2016'!AI$7","v":1.4574898785425101E-2},{"$f":"'Population 2016'!AJ76/'Population 2016'!AJ$7","v":1.923348889831707E-2},{"$f":"'Population 2016'!AK76/'Population 2016'!AK$7","v":1.5748031496062992E-2},{"$f":"'Population 2016'!AL76/'Population 2016'!AL$7","v":1.8250122260258746E-2},{"$f":"'Population 2016'!AM76/'Population 2016'!AM$7","v":1.7202127906706624E-2},{"$f":"'Population 2016'!AN76/'Population 2016'!AN$7","v":{"$error":"#DIV/0!"}},{"$f":"'Population 2016'!AO76/'Population 2016'!AO$7","v":{"$error":"#DIV/0!"}},{"$f":"'Population 2016'!AP76/'Population 2016'!AP$7","v":1.646525679758308E-2},{"$f":"'Population 2016'!AQ76/'Population 2016'!AQ$7","v":1.9237350281104865E-2},{"$f":"'Population 2016'!AR76/'Population 2016'!AR$7","v":1.6940408193214206E-2},{"$f":"'Population 2016'!AS76/'Population 2016'!AS$7","v":1.5950204240420152E-2},{"$f":"'Population 2016'!AT76/'Population 2016'!AT$7","v":{"$error":"#DIV/0!"}},{"$f":"'Population 2016'!AU76/'Population 2016'!AU$7","v":{"$error":"#DIV/0!"}},{"$f":"'Population 2016'!AV76/'Population 2016'!AV$7","v":1.8010769325988735E-2},{"$f":"'Population 2016'!AW76/'Population 2016'!AW$7","v":1.8264492684690169E-2},{"$f":"'Population 2016'!AX76/'Population 2016'!AX$7","v":1.725703905540418E-2},{"$f":"'Population 2016'!AY76/'Population 2016'!AY$7","v":1.6125681641132174E-2},{"$f":"'Population 2016'!AZ76/'Population 2016'!AZ$7","v":1.5538349781187434E-2},{"$f":"'Population 2016'!BA76/'Population 2016'!BA$7","v":1.591700419242521E-2},{"$f":"'Population 2016'!BB76/'Population 2016'!BB$7","v":1.5502525692388086E-2},{"$f":"'Population 2016'!BC76/'Population 2016'!BC$7","v":{"$error":"#DIV/0!"}},74]
[null,"Female 85-89",{"$f":"'Population 2016'!C77/'Population 2016'!C$7","v":9.232140583216605E-3},{"$f":"'Population 2016'!D77/'Population 2016'!D$7","v":8.9654828908701505E-3},{"$f":"'Population 2016'!E77/'Population 2016'!E$7","v":8.0073209791809655E-3},{"$f":"'Population 2016'!F77/'Population 2016'!F$7","v":8.9259149062778931E-3},{"$f":"'Population 2016'!G77/'Population 2016'!G$7","v":1.593182660244535E-2},{"$f":"'Population 2016'!H77/'Population 2016'!H$7","v":1.1094666565838797E-2},{"$f":"'Population 2016'!I77/'Population 2016'!I$7","v":1.1476366465668159E-2},{"$f":"'Population 2016'!J77/'Population 2016'!J$7","v":8.2972945791008751E-3},{"$f":"'Population 2016'!K77/'Population 2016'!K$7","v":8.8202866593164279E-3},{"$f":"'Population 2016'!L77/'Population 2016'!L$7","v":1.0116185897435898E-2},{"$f":"'Population 2016'!M77/'Population 2016'!M$7","v":1.0116185897435898E-2},{"$f":"'Population 2016'!N77/'Population 2016'!N$7","v":1.0255458363303093E-2},{"$f":"'Population 2016'!O77/'Population 2016'!O$7","v":1.212449083503055E-2},{"$f":"'Population 2016'!P77/'Population 2016'!P$7","v":7.9729403237496985E-3},{"$f":"'Population 2016'!Q77/'Population 2016'!Q$7","v":7.1942446043165471E-3},{"$f":"'Population 2016'!R77/'Population 2016'!R$7","v":8.9285714285714281E-3},{"$f":"'Population 2016'!S77/'Population 2016'!S$7","v":9.2980737838720216E-3},{"$f":"'Population 2016'!T77/'Population 2016'!T$7","v":9.0948075617339093E-3},{"$f":"'Population 2016'!U77/'Population 2016'!U$7","v":{"$error":"#DIV/0!"}},{"$f":"'Population 2016'!V77/'Population 2016'!V$7","v":1.1395861779224871E-2},{"$f":"'Population 2016'!W77/'Population 2016'!W$7","v":1.0238792330213745E-2},{"$f":"'Population 2016'!X77/'Population 2016'!X$7","v":1.0238792330213745E-2},{"$f":"'Population 2016'!Y77/'Population 2016'!Y$7","v":9.8129880805589813E-3},{"$f":"'Population 2016'!Z77/'Population 2016'!Z$7","v":9.9392275198679266E-3},{"$f":"'Population 2016'!AA77/'Population 2016'!AA$7","v":1.0344748872661017E-2},{"$f":"'Population 2016'!AB77/'Population 2016'!AB$7","v":9.0768636539204327E-3},{"$f":"'Population 2016'!AC77/'Population 2016'!AC$7","v":1.042152246876748E-2},{"$f":"'Population 2016'!AD77/'Population 2016'!AD$7","v":1.1203878265553462E-2},{"$f":"'Population 2016'!AE77/'Population 2016'!AE$7","v":9.2655882129566332E-3},{"$f":"'Population 2016'!AF77/'Population 2016'!AF$7","v":1.3048507192944408E-2},{"$f":"'Population 2016'!AG77/'Population 2016'!AG$7","v":9.2655882129566332E-3},{"$f":"'Population 2016'!AH77/'Population 2016'!AH$7","v":1.0154700515668386E-2},{"$f":"'Population 2016'!AI77/'Population 2016'!AI$7","v":8.5470085470085479E-3},{"$f":"'Population 2016'!AJ77/'Population 2016'!AJ$7","v":1.0182435299109036E-2},{"$f":"'Population 2016'!AK77/'Population 2016'!AK$7","v":1.2598425196850394E-2},{"$f":"'Population 2016'!AL77/'Population 2016'!AL$7","v":1.0069799493175654E-2},{"$f":"'Population 2016'!AM77/'Population 2016'!AM$7","v":1.0383998884939717E-2},{"$f":"'Population 2016'!AN77/'Population 2016'!AN$7","v":{"$error":"#DIV/0!"}},{"$f":"'Population 2016'!AO77/'Population 2016'!AO$7","v":{"$error":"#DIV/0!"}},{"$f":"'Population 2016'!AP77/'Population 2016'!AP$7","v":7.8549848942598196E-3},{"$f":"'Population 2016'!AQ77/'Population 2016'!AQ$7","v":1.1073087264727451E-2},{"$f":"'Population 2016'!AR77/'Population 2016'!AR$7","v":1.0168142952464591E-2},{"$f":"'Population 2016'!AS77/'Population 2016'!AS$7","v":1.1476366465668159E-2},{"$f":"'Population 2016'!AT77/'Population 2016'!AT$7","v":{"$error":"#DIV/0!"}},{"$f":"'Population 2016'!AU77/'Population 2016'!AU$7","v":{"$error":"#DIV/0!"}},{"$f":"'Population 2016'!AV77/'Population 2016'!AV$7","v":1.1945286872562976E-2},{"$f":"'Population 2016'!AW77/'Population 2016'!AW$7","v":9.7791137915945285E-3},{"$f":"'Population 2016'!AX77/'Population 2016'!AX$7","v":7.770713492784337E-3},{"$f":"'Population 2016'!AY77/'Population 2016'!AY$7","v":1.0032026313511641E-2},{"$f":"'Population 2016'!AZ77/'Population 2016'!AZ$7","v":9.8155596109211381E-3},{"$f":"'Population 2016'!BA77/'Population 2016'!BA$7","v":1.1582462872166559E-2},{"$f":"'Population 2016'!BB77/'Population 2016'!BB$7","v":6.8803344365093192E-3},{"$f":"'Population 2016'!BC77/'Population 2016'!BC$7","v":{"$error":"#DIV/0!"}},75]
[null,"Female 90+",{"$f":"'Population 2016'!C78/'Population 2016'!C$7","v":4.520565389023303E-3},{"$f":"'Population 2016'!D78/'Population 2016'!D$7","v":4.4329332071524627E-3},{"$f":"'Population 2016'!E78/'Population 2016'!E$7","v":4.1180507892930682E-3},{"$f":"'Population 2016'!F78/'Population 2016'!F$7","v":5.5043141922047007E-3},{"$f":"'Population 2016'!G78/'Population 2016'!G$7","v":1.018895887365691E-2},{"$f":"'Population 2016'!H78/'Population 2016'!H$7","v":6.1360960169390818E-3},{"$f":"'Population 2016'!I78/'Population 2016'!I$7","v":4.6683524606107758E-3},{"$f":"'Population 2016'!J78/'Population 2016'!J$7","v":5.0286633812732578E-3},{"$f":"'Population 2016'!K78/'Population 2016'!K$7","v":5.6129096922922722E-3},{"$f":"'Population 2016'!L78/'Population 2016'!L$7","v":4.0064102564102561E-3},{"$f":"'Population 2016'!M78/'Population 2016'!M$7","v":4.0064102564102561E-3},{"$f":"'Population 2016'!N78/'Population 2016'!N$7","v":5.5453722824195459E-3},{"$f":"'Population 2016'!O78/'Population 2016'!O$7","v":6.4600305498981672E-3},{"$f":"'Population 2016'!P78/'Population 2016'!P$7","v":1.2080212611741967E-3},{"$f":"'Population 2016'!Q78/'Population 2016'!Q$7","v":2.0554984583761563E-3},{"$f":"'Population 2016'!R78/'Population 2016'!R$7","v":5.275974025974026E-3},{"$f":"'Population 2016'!S78/'Population 2016'!S$7","v":5.3150506039830233E-3},{"$f":"'Population 2016'!T78/'Population 2016'!T$7","v":4.8422256369938894E-3},{"$f":"'Population 2016'!U78/'Population 2016'!U$7","v":{"$error":"#DIV/0!"}},{"$f":"'Population 2016'!V78/'Population 2016'!V$7","v":5.4616111752967128E-3},{"$f":"'Population 2016'!W78/'Population 2016'!W$7","v":5.9571155375789065E-3},{"$f":"'Population 2016'!X78/'Population 2016'!X$7","v":5.9571155375789065E-3},{"$f":"'Population 2016'!Y78/'Population 2016'!Y$7","v":5.2404438964241675E-3},{"$f":"'Population 2016'!Z78/'Population 2016'!Z$7","v":5.3570751717254249E-3},{"$f":"'Population 2016'!AA78/'Population 2016'!AA$7","v":5.5697705063635248E-3},{"$f":"'Population 2016'!AB78/'Population 2016'!AB$7","v":4.3935882580146777E-3},{"$f":"'Population 2016'!AC78/'Population 2016'!AC$7","v":5.55892224501212E-3},{"$f":"'Population 2016'!AD78/'Population 2016'!AD$7","v":6.5176407217883113E-3},{"$f":"'Population 2016'!AE78/'Population 2016'!AE$7","v":5.0125313283208017E-3},{"$f":"'Population 2016'!AF78/'Population 2016'!AF$7","v":6.5423263211161712E-3},{"$f":"'Population 2016'!AG78/'Population 2016'!AG$7","v":5.0125313283208017E-3},{"$f":"'Population 2016'!AH78/'Population 2016'!AH$7","v":5.5966247160217806E-3},{"$f":"'Population 2016'!AI78/'Population 2016'!AI$7","v":4.9257759784075575E-3},{"$f":"'Population 2016'!AJ78/'Population 2016'!AJ$7","v":5.3740630745297696E-3},{"$f":"'Population 2016'!AK78/'Population 2016'!AK$7","v":3.1496062992125984E-3},{"$f":"'Population 2016'!AL78/'Population 2016'!AL$7","v":5.7128884541857465E-3},{"$f":"'Population 2016'!AM78/'Population 2016'!AM$7","v":5.3894580342416431E-3},{"$f":"'Population 2016'!AN78/'Population 2016'!AN$7","v":{"$error":"#DIV/0!"}},{"$f":"'Population 2016'!AO78/'Population 2016'!AO$7","v":{"$error":"#DIV/0!"}},{"$f":"'Population 2016'!AP78/'Population 2016'!AP$7","v":4.0785498489425984E-3},{"$f":"'Population 2016'!AQ78/'Population 2016'!AQ$7","v":5.1576631630408211E-3},{"$f":"'Population 2016'!AR78/'Population 2016'!AR$7","v":5.5317724372129498E-3},{"$f":"'Population 2016'!AS78/'Population 2016'!AS$7","v":4.6683524606107758E-3},{"$f":"'Population 2016'!AT78/'Population 2016'!AT$7","v":{"$error":"#DIV/0!"}},{"$f":"'Population 2016'!AU78/'Population 2016'!AU$7","v":{"$error":"#DIV/0!"}},{"$f":"'Population 2016'!AV78/'Population 2016'!AV$7","v":6.6844092343875724E-3},{"$f":"'Population 2016'!AW78/'Population 2016'!AW$7","v":5.9359601225243055E-3},{"$f":"'Population 2016'!AX78/'Population 2016'!AX$7","v":4.4404077101624787E-3},{"$f":"'Population 2016'!AY78/'Population 2016'!AY$7","v":5.6695230676014887E-3},{"$f":"'Population 2016'!AZ78/'Population 2016'!AZ$7","v":5.3684378377420669E-3},{"$f":"'Population 2016'!BA78/'Population 2016'!BA$7","v":7.5676827968450223E-3},{"$f":"'Population 2016'!BB78/'Population 2016'!BB$7","v":5.356209719561052E-3},{"$f":"'Population 2016'!BC78/'Population 2016'!BC$7","v":{"$error":"#DIV/0!"}},76]
[null,"Male 0-4",{"$f":"'Population 2016'!C79/'Population 2016'!C$7","v":0},{"$f":"'Population 2016'!D79/'Population 2016'!D$7","v":0},{"$f":"'Population 2016'!E79/'Population 2016'!E$7","v":0},{"$f":"'Population 2016'!F79/'Population 2016'!F$7","v":0},{"$f":"'Population 2016'!G79/'Population 2016'!G$7","v":0},{"$f":"'Population 2016'!H79/'Population 2016'!H$7","v":0},{"$f":"'Population 2016'!I79/'Population 2016'!I$7","v":0},{"$f":"'Population 2016'!J79/'Population 2016'!J$7","v":0},{"$f":"'Population 2016'!K79/'Population 2016'!K$7","v":0},{"$f":"'Population 2016'!L79/'Population 2016'!L$7","v":0},{"$f":"'Population 2016'!M79/'Population 2016'!M$7","v":0},{"$f":"'Population 2016'!N79/'Population 2016'!N$7","v":0},{"$f":"'Population 2016'!O79/'Population 2016'!O$7","v":0},{"$f":"'Population 2016'!P79/'Population 2016'!P$7","v":0},{"$f":"'Population 2016'!Q79/'Population 2016'!Q$7","v":0},{"$f":"'Population 2016'!R79/'Population 2016'!R$7","v":0},{"$f":"'Population 2016'!S79/'Population 2016'!S$7","v":0},{"$f":"'Population 2016'!T79/'Population 2016'!T$7","v":0},{"$f":"'Population 2016'!U79/'Population 2016'!U$7","v":{"$error":"#DIV/0!"}},{"$f":"'Population 2016'!V79/'Population 2016'!V$7","v":0},{"$f":"'Population 2016'!W79/'Population 2016'!W$7","v":0},{"$f":"'Population 2016'!X79/'Population 2016'!X$7","v":0},{"$f":"'Population 2016'!Y79/'Population 2016'!Y$7","v":0},{"$f":"'Population 2016'!Z79/'Population 2016'!Z$7","v":0},{"$f":"'Population 2016'!AA79/'Population 2016'!AA$7","v":0},{"$f":"'Population 2016'!AB79/'Population 2016'!AB$7","v":0},{"$f":"'Population 2016'!AC79/'Population 2016'!AC$7","v":0},{"$f":"'Population 2016'!AD79/'Population 2016'!AD$7","v":0},{"$f":"'Population 2016'!AE79/'Population 2016'!AE$7","v":0},{"$f":"'Population 2016'!AF79/'Population 2016'!AF$7","v":0},{"$f":"'Population 2016'!AG79/'Population 2016'!AG$7","v":0},{"$f":"'Population 2016'!AH79/'Population 2016'!AH$7","v":0},{"$f":"'Population 2016'!AI79/'Population 2016'!AI$7","v":0},{"$f":"'Population 2016'!AJ79/'Population 2016'!AJ$7","v":0},{"$f":"'Population 2016'!AK79/'Population 2016'!AK$7","v":0},{"$f":"'Population 2016'!AL79/'Population 2016'!AL$7","v":0},{"$f":"'Population 2016'!AM79/'Population 2016'!AM$7","v":0},{"$f":"'Population 2016'!AN79/'Population 2016'!AN$7","v":{"$error":"#DIV/0!"}},{"$f":"'Population 2016'!AO79/'Population 2016'!AO$7","v":{"$error":"#DIV/0!"}},{"$f":"'Population 2016'!AP79/'Population 2016'!AP$7","v":0},{"$f":"'Population 2016'!AQ79/'Population 2016'!AQ$7","v":0},{"$f":"'Population 2016'!AR79/'Population 2016'!AR$7","v":0},{"$f":"'Population 2016'!AS79/'Population 2016'!AS$7","v":0},{"$f":"'Population 2016'!AT79/'Population 2016'!AT$7","v":{"$error":"#DIV/0!"}},{"$f":"'Population 2016'!AU79/'Population 2016'!AU$7","v":{"$error":"#DIV/0!"}},{"$f":"'Population 2016'!AV79/'Population 2016'!AV$7","v":0},{"$f":"'Population 2016'!AW79/'Population 2016'!AW$7","v":0},{"$f":"'Population 2016'!AX79/'Population 2016'!AX$7","v":0},{"$f":"'Population 2016'!AY79/'Population 2016'!AY$7","v":0},{"$f":"'Population 2016'!AZ79/'Population 2016'!AZ$7","v":0},{"$f":"'Population 2016'!BA79/'Population 2016'!BA$7","v":0},{"$f":"'Population 2016'!BB79/'Population 2016'!BB$7","v":0},{"$f":"'Population 2016'!BC79/'Population 2016'!BC$7","v":{"$error":"#DIV/0!"}},77]
[null,"Male 5-9",{"$f":"'Population 2016'!C80/'Population 2016'!C$7","v":0},{"$f":"'Population 2016'!D80/'Population 2016'!D$7","v":0},{"$f":"'Population 2016'!E80/'Population 2016'!E$7","v":0},{"$f":"'Population 2016'!F80/'Population 2016'!F$7","v":0},{"$f":"'Population 2016'!G80/'Population 2016'!G$7","v":0},{"$f":"'Population 2016'!H80/'Population 2016'!H$7","v":0},{"$f":"'Population 2016'!I80/'Population 2016'!I$7","v":0},{"$f":"'Population 2016'!J80/'Population 2016'!J$7","v":0},{"$f":"'Population 2016'!K80/'Population 2016'!K$7","v":0},{"$f":"'Population 2016'!L80/'Population 2016'!L$7","v":0},{"$f":"'Population 2016'!M80/'Population 2016'!M$7","v":0},{"$f":"'Population 2016'!N80/'Population 2016'!N$7","v":0},{"$f":"'Population 2016'!O80/'Population 2016'!O$7","v":0},{"$f":"'Population 2016'!P80/'Population 2016'!P$7","v":0},{"$f":"'Population 2016'!Q80/'Population 2016'!Q$7","v":0},{"$f":"'Population 2016'!R80/'Population 2016'!R$7","v":0},{"$f":"'Population 2016'!S80/'Population 2016'!S$7","v":0},{"$f":"'Population 2016'!T80/'Population 2016'!T$7","v":0},{"$f":"'Population 2016'!U80/'Population 2016'!U$7","v":{"$error":"#DIV/0!"}},{"$f":"'Population 2016'!V80/'Population 2016'!V$7","v":0},{"$f":"'Population 2016'!W80/'Population 2016'!W$7","v":0},{"$f":"'Population 2016'!X80/'Population 2016'!X$7","v":0},{"$f":"'Population 2016'!Y80/'Population 2016'!Y$7","v":0},{"$f":"'Population 2016'!Z80/'Population 2016'!Z$7","v":0},{"$f":"'Population 2016'!AA80/'Population 2016'!AA$7","v":0},{"$f":"'Population 2016'!AB80/'Population 2016'!AB$7","v":0},{"$f":"'Population 2016'!AC80/'Population 2016'!AC$7","v":0},{"$f":"'Population 2016'!AD80/'Population 2016'!AD$7","v":0},{"$f":"'Population 2016'!AE80/'Population 2016'!AE$7","v":0},{"$f":"'Population 2016'!AF80/'Population 2016'!AF$7","v":0},{"$f":"'Population 2016'!AG80/'Population 2016'!AG$7","v":0},{"$f":"'Population 2016'!AH80/'Population 2016'!AH$7","v":0},{"$f":"'Population 2016'!AI80/'Population 2016'!AI$7","v":0},{"$f":"'Population 2016'!AJ80/'Population 2016'!AJ$7","v":0},{"$f":"'Population 2016'!AK80/'Population 2016'!AK$7","v":0},{"$f":"'Population 2016'!AL80/'Population 2016'!AL$7","v":0},{"$f":"'Population 2016'!AM80/'Population 2016'!AM$7","v":0},{"$f":"'Population 2016'!AN80/'Population 2016'!AN$7","v":{"$error":"#DIV/0!"}},{"$f":"'Population 2016'!AO80/'Population 2016'!AO$7","v":{"$error":"#DIV/0!"}},{"$f":"'Population 2016'!AP80/'Population 2016'!AP$7","v":0},{"$f":"'Population 2016'!AQ80/'Population 2016'!AQ$7","v":0},{"$f":"'Population 2016'!AR80/'Population 2016'!AR$7","v":0},{"$f":"'Population 2016'!AS80/'Population 2016'!AS$7","v":0},{"$f":"'Population 2016'!AT80/'Population 2016'!AT$7","v":{"$error":"#DIV/0!"}},{"$f":"'Population 2016'!AU80/'Population 2016'!AU$7","v":{"$error":"#DIV/0!"}},{"$f":"'Population 2016'!AV80/'Population 2016'!AV$7","v":0},{"$f":"'Population 2016'!AW80/'Population 2016'!AW$7","v":0},{"$f":"'Population 2016'!AX80/'Population 2016'!AX$7","v":0},{"$f":"'Population 2016'!AY80/'Population 2016'!AY$7","v":0},{"$f":"'Population 2016'!AZ80/'Population 2016'!AZ$7","v":0},{"$f":"'Population 2016'!BA80/'Population 2016'!BA$7","v":0},{"$f":"'Population 2016'!BB80/'Population 2016'!BB$7","v":0},{"$f":"'Population 2016'!BC80/'Population 2016'!BC$7","v":{"$error":"#DIV/0!"}},78]
[null,"Male 10-15",{"$f":"'Population 2016'!C81/'Population 2016'!C$7","v":0},{"$f":"'Population 2016'!D81/'Population 2016'!D$7","v":0},{"$f":"'Population 2016'!E81/'Population 2016'!E$7","v":0},{"$f":"'Population 2016'!F81/'Population 2016'!F$7","v":0},{"$f":"'Population 2016'!G81/'Population 2016'!G$7","v":0},{"$f":"'Population 2016'!H81/'Population 2016'!H$7","v":0},{"$f":"'Population 2016'!I81/'Population 2016'!I$7","v":0},{"$f":"'Population 2016'!J81/'Population 2016'!J$7","v":0},{"$f":"'Population 2016'!K81/'Population 2016'!K$7","v":0},{"$f":"'Population 2016'!L81/'Population 2016'!L$7","v":0},{"$f":"'Population 2016'!M81/'Population 2016'!M$7","v":0},{"$f":"'Population 2016'!N81/'Population 2016'!N$7","v":0},{"$f":"'Population 2016'!O81/'Population 2016'!O$7","v":0},{"$f":"'Population 2016'!P81/'Population 2016'!P$7","v":0},{"$f":"'Population 2016'!Q81/'Population 2016'!Q$7","v":0},{"$f":"'Population 2016'!R81/'Population 2016'!R$7","v":0},{"$f":"'Population 2016'!S81/'Population 2016'!S$7","v":0},{"$f":"'Population 2016'!T81/'Population 2016'!T$7","v":0},{"$f":"'Population 2016'!U81/'Population 2016'!U$7","v":{"$error":"#DIV/0!"}},{"$f":"'Population 2016'!V81/'Population 2016'!V$7","v":0},{"$f":"'Population 2016'!W81/'Population 2016'!W$7","v":0},{"$f":"'Population 2016'!X81/'Population 2016'!X$7","v":0},{"$f":"'Population 2016'!Y81/'Population 2016'!Y$7","v":0},{"$f":"'Population 2016'!Z81/'Population 2016'!Z$7","v":0},{"$f":"'Population 2016'!AA81/'Population 2016'!AA$7","v":0},{"$f":"'Population 2016'!AB81/'Population 2016'!AB$7","v":0},{"$f":"'Population 2016'!AC81/'Population 2016'!AC$7","v":0},{"$f":"'Population 2016'!AD81/'Population 2016'!AD$7","v":0},{"$f":"'Population 2016'!AE81/'Population 2016'!AE$7","v":0},{"$f":"'Population 2016'!AF81/'Population 2016'!AF$7","v":0},{"$f":"'Population 2016'!AG81/'Population 2016'!AG$7","v":0},{"$f":"'Population 2016'!AH81/'Population 2016'!AH$7","v":0},{"$f":"'Population 2016'!AI81/'Population 2016'!AI$7","v":0},{"$f":"'Population 2016'!AJ81/'Population 2016'!AJ$7","v":0},{"$f":"'Population 2016'!AK81/'Population 2016'!AK$7","v":0},{"$f":"'Population 2016'!AL81/'Population 2016'!AL$7","v":0},{"$f":"'Population 2016'!AM81/'Population 2016'!AM$7","v":0},{"$f":"'Population 2016'!AN81/'Population 2016'!AN$7","v":{"$error":"#DIV/0!"}},{"$f":"'Population 2016'!AO81/'Population 2016'!AO$7","v":{"$error":"#DIV/0!"}},{"$f":"'Population 2016'!AP81/'Population 2016'!AP$7","v":0},{"$f":"'Population 2016'!AQ81/'Population 2016'!AQ$7","v":0},{"$f":"'Population 2016'!AR81/'Population 2016'!AR$7","v":0},{"$f":"'Population 2016'!AS81/'Population 2016'!AS$7","v":0},{"$f":"'Population 2016'!AT81/'Population 2016'!AT$7","v":{"$error":"#DIV/0!"}},{"$f":"'Population 2016'!AU81/'Population 2016'!AU$7","v":{"$error":"#DIV/0!"}},{"$f":"'Population 2016'!AV81/'Population 2016'!AV$7","v":0},{"$f":"'Population 2016'!AW81/'Population 2016'!AW$7","v":0},{"$f":"'Population 2016'!AX81/'Population 2016'!AX$7","v":0},{"$f":"'Population 2016'!AY81/'Population 2016'!AY$7","v":0},{"$f":"'Population 2016'!AZ81/'Population 2016'!AZ$7","v":0},{"$f":"'Population 2016'!BA81/'Population 2016'!BA$7","v":0},{"$f":"'Population 2016'!BB81/'Population 2016'!BB$7","v":0},{"$f":"'Population 2016'!BC81/'Population 2016'!BC$7","v":{"$error":"#DIV/0!"}},79]
[null,"Male 16-19",{"$f":"'Population 2016'!C82/'Population 2016'!C$7","v":2.4003565516363172E-2},{"$f":"'Population 2016'!D82/'Population 2016'!D$7","v":2.3210639039697167E-2},{"$f":"'Population 2016'!E82/'Population 2016'!E$7","v":2.036147334706017E-2},{"$f":"'Population 2016'!F82/'Population 2016'!F$7","v":3.5852424873549539E-2},{"$f":"'Population 2016'!G82/'Population 2016'!G$7","v":3.2975175991107816E-2},{"$f":"'Population 2016'!H82/'Population 2016'!H$7","v":2.9610984476109197E-2},{"$f":"'Population 2016'!I82/'Population 2016'!I$7","v":3.4429099397004476E-2},{"$f":"'Population 2016'!J82/'Population 2016'!J$7","v":3.4898923866036408E-2},{"$f":"'Population 2016'!K82/'Population 2016'!K$7","v":3.4278841335070663E-2},{"$f":"'Population 2016'!L82/'Population 2016'!L$7","v":2.9447115384615384E-2},{"$f":"'Population 2016'!M82/'Population 2016'!M$7","v":2.9447115384615384E-2},{"$f":"'Population 2016'!N82/'Population 2016'!N$7","v":2.7170003944407061E-2},{"$f":"'Population 2016'!O82/'Population 2016'!O$7","v":2.9913441955193482E-2},{"$f":"'Population 2016'!P82/'Population 2016'!P$7","v":3.2858178303938147E-2},{"$f":"'Population 2016'!Q82/'Population 2016'!Q$7","v":3.014731072285029E-2},{"$f":"'Population 2016'!R82/'Population 2016'!R$7","v":3.3076298701298704E-2},{"$f":"'Population 2016'!S82/'Population 2016'!S$7","v":2.9337251061051256E-2},{"$f":"'Population 2016'!T82/'Population 2016'!T$7","v":2.6819854911910804E-2},{"$f":"'Population 2016'!U82/'Population 2016'!U$7","v":{"$error":"#DIV/0!"}},{"$f":"'Population 2016'!V82/'Population 2016'!V$7","v":2.6362777019220671E-2},{"$f":"'Population 2016'!W82/'Population 2016'!W$7","v":3.0191744656365822E-2},{"$f":"'Population 2016'!X82/'Population 2016'!X$7","v":3.0191744656365822E-2},{"$f":"'Population 2016'!Y82/'Population 2016'!Y$7","v":3.0723386765310317E-2},{"$f":"'Population 2016'!Z82/'Population 2016'!Z$7","v":2.8625817564636565E-2},{"$f":"'Population 2016'!AA82/'Population 2016'!AA$7","v":2.9000574823558219E-2},{"$f":"'Population 2016'!AB82/'Population 2016'!AB$7","v":2.3609501738122828E-2},{"$f":"'Population 2016'!AC82/'Population 2016'!AC$7","v":2.8485106283796382E-2},{"$f":"'Population 2016'!AD82/'Population 2016'!AD$7","v":3.1672502019929973E-2},{"$f":"'Population 2016'!AE82/'Population 2016'!AE$7","v":3.1138452191083771E-2},{"$f":"'Population 2016'!AF82/'Population 2016'!AF$7","v":2.797657774886142E-2},{"$f":"'Population 2016'!AG82/'Population 2016'!AG$7","v":3.1138452191083771E-2},{"$f":"'Population 2016'!AH82/'Population 2016'!AH$7","v":3.0276585770437417E-2},{"$f":"'Population 2016'!AI82/'Population 2016'!AI$7","v":2.8475033738191633E-2},{"$f":"'Population 2016'!AJ82/'Population 2016'!AJ$7","v":2.927450148493848E-2},{"$f":"'Population 2016'!AK82/'Population 2016'!AK$7","v":3.6220472440944881E-2},{"$f":"'Population 2016'!AL82/'Population 2016'!AL$7","v":3.0453918997021295E-2},{"$f":"'Population 2016'!AM82/'Population 2016'!AM$7","v":3.1709526796292423E-2},{"$f":"'Population 2016'!AN82/'Population 2016'!AN$7","v":{"$error":"#DIV/0!"}},{"$f":"'Population 2016'!AO82/'Population 2016'!AO$7","v":{"$error":"#DIV/0!"}},{"$f":"'Population 2016'!AP82/'Population 2016'!AP$7","v":2.5830815709969788E-2},{"$f":"'Population 2016'!AQ82/'Population 2016'!AQ$7","v":2.6106086531410413E-2},{"$f":"'Population 2016'!AR82/'Population 2016'!AR$7","v":2.90736201523903E-2},{"$f":"'Population 2016'!AS82/'Population 2016'!AS$7","v":3.4429099397004476E-2},{"$f":"'Population 2016'!AT82/'Population 2016'!AT$7","v":{"$error":"#DIV/0!"}},{"$f":"'Population 2016'!AU82/'Population 2016'!AU$7","v":{"$error":"#DIV/0!"}},{"$f":"'Population 2016'!AV82/'Population 2016'!AV$7","v":2.6675744259454105E-2},{"$f":"'Population 2016'!AW82/'Population 2016'!AW$7","v":2.7929453397005383E-2},{"$f":"'Population 2016'!AX82/'Population 2016'!AX$7","v":3.5523261681299829E-2},{"$f":"'Population 2016'!AY82/'Population 2016'!AY$7","v":2.9143945295594217E-2},{"$f":"'Population 2016'!AZ82/'Population 2016'!AZ$7","v":2.8046987119292714E-2},{"$f":"'Population 2016'!BA82/'Population 2016'!BA$7","v":2.9808853833582036E-2},{"$f":"'Population 2016'!BB82/'Population 2016'!BB$7","v":3.2050165476397843E-2},{"$f":"'Population 2016'!BC82/'Population 2016'!BC$7","v":{"$error":"#DIV/0!"}},80]
[null,"Male 20-24",{"$f":"'Population 2016'!C83/'Population 2016'!C$7","v":3.9220679994906409E-2},{"$f":"'Population 2016'!D83/'Population 2016'!D$7","v":4.223738606365493E-2},{"$f":"'Population 2016'!E83/'Population 2016'!E$7","v":5.307709906199954E-2},{"$f":"'Population 2016'!F83/'Population 2016'!F$7","v":5.0580184468908065E-2},{"$f":"'Population 2016'!G83/'Population 2016'!G$7","v":5.1685809559095963E-2},{"$f":"'Population 2016'!H83/'Population 2016'!H$7","v":4.1505072001901323E-2},{"$f":"'Population 2016'!I83/'Population 2016'!I$7","v":4.1042598716203076E-2},{"$f":"'Population 2016'!J83/'Population 2016'!J$7","v":4.4604244191893794E-2},{"$f":"'Population 2016'!K83/'Population 2016'!K$7","v":4.2798436403728574E-2},{"$f":"'Population 2016'!L83/'Population 2016'!L$7","v":4.3970352564102567E-2},{"$f":"'Population 2016'!M83/'Population 2016'!M$7","v":4.3970352564102567E-2},{"$f":"'Population 2016'!N83/'Population 2016'!N$7","v":4.4850228543585696E-2},{"$f":"'Population 2016'!O83/'Population 2016'!O$7","v":4.1337830957230141E-2},{"$f":"'Population 2016'!P83/'Population 2016'!P$7","v":4.0831118627687846E-2},{"$f":"'Population 2016'!Q83/'Population 2016'!Q$7","v":4.0767386091127102E-2},{"$f":"'Population 2016'!R83/'Population 2016'!R$7","v":3.936688311688312E-2},{"$f":"'Population 2016'!S83/'Population 2016'!S$7","v":4.0137120470127324E-2},{"$f":"'Population 2016'!T83/'Population 2016'!T$7","v":3.9273844834363719E-2},{"$f":"'Population 2016'!U83/'Population 2016'!U$7","v":{"$error":"#DIV/0!"}},{"$f":"'Population 2016'!V83/'Population 2016'!V$7","v":3.8703917655708436E-2},{"$f":"'Population 2016'!W83/'Population 2016'!W$7","v":3.8907410854812231E-2},{"$f":"'Population 2016'!X83/'Population 2016'!X$7","v":3.8907410854812231E-2},{"$f":"'Population 2016'!Y83/'Population 2016'!Y$7","v":4.1718043567612002E-2},{"$f":"'Population 2016'!Z83/'Population 2016'!Z$7","v":4.4675985394389391E-2},{"$f":"'Population 2016'!AA83/'Population 2016'!AA$7","v":4.3223826332729455E-2},{"$f":"'Population 2016'!AB83/'Population 2016'!AB$7","v":4.2101197373503284E-2},{"$f":"'Population 2016'!AC83/'Population 2016'!AC$7","v":4.3713872832369945E-2},{"$f":"'Population 2016'!AD83/'Population 2016'!AD$7","v":4.5515755453810931E-2},{"$f":"'Population 2016'!AE83/'Population 2016'!AE$7","v":4.2986253512569302E-2},{"$f":"'Population 2016'!AF83/'Population 2016'!AF$7","v":3.9832285115303984E-2},{"$f":"'Population 2016'!AG83/'Population 2016'!AG$7","v":4.2986253512569302E-2},{"$f":"'Population 2016'!AH83/'Population 2016'!AH$7","v":4.2010746096426382E-2},{"$f":"'Population 2016'!AI83/'Population 2016'!AI$7","v":4.0901934322986958E-2},{"$f":"'Population 2016'!AJ83/'Population 2016'!AJ$7","v":4.6810917833404048E-2},{"$f":"'Population 2016'!AK83/'Population 2016'!AK$7","v":3.7795275590551181E-2},{"$f":"'Population 2016'!AL83/'Population 2016'!AL$7","v":4.1612946249944424E-2},{"$f":"'Population 2016'!AM83/'Population 2016'!AM$7","v":4.3522196668757403E-2},{"$f":"'Population 2016'!AN83/'Population 2016'!AN$7","v":{"$error":"#DIV/0!"}},{"$f":"'Population 2016'!AO83/'Population 2016'!AO$7","v":{"$error":"#DIV/0!"}},{"$f":"'Population 2016'!AP83/'Population 2016'!AP$7","v":4.6676737160120843E-2},{"$f":"'Population 2016'!AQ83/'Population 2016'!AQ$7","v":4.2679051576631627E-2},{"$f":"'Population 2016'!AR83/'Population 2016'!AR$7","v":4.2626176003228489E-2},{"$f":"'Population 2016'!AS83/'Population 2016'!AS$7","v":4.1042598716203076E-2},{"$f":"'Population 2016'!AT83/'Population 2016'!AT$7","v":{"$error":"#DIV/0!"}},{"$f":"'Population 2016'!AU83/'Population 2016'!AU$7","v":{"$error":"#DIV/0!"}},{"$f":"'Population 2016'!AV83/'Population 2016'!AV$7","v":4.1529987002537599E-2},{"$f":"'Population 2016'!AW83/'Population 2016'!AW$7","v":3.9535016457068931E-2},{"$f":"'Population 2016'!AX83/'Population 2016'!AX$7","v":4.6422444242607733E-2},{"$f":"'Population 2016'!AY83/'Population 2016'!AY$7","v":4.2248766554141781E-2},{"$f":"'Population 2016'!AZ83/'Population 2016'!AZ$7","v":4.5746886128877944E-2},{"$f":"'Population 2016'!BA83/'Population 2016'!BA$7","v":4.2101897250053297E-2},{"$f":"'Population 2016'!BB83/'Population 2016'!BB$7","v":4.3067409858909597E-2},{"$f":"'Population 2016'!BC83/'Population 2016'!BC$7","v":{"$error":"#DIV/0!"}},81]
[null,"Male 25-29",{"$f":"'Population 2016'!C84/'Population 2016'!C$7","v":6.5834712848592894E-2},{"$f":"'Population 2016'!D84/'Population 2016'!D$7","v":6.4601285052547697E-2},{"$f":"'Population 2016'!E84/'Population 2016'!E$7","v":6.0169297643559827E-2},{"$f":"'Population 2016'!F84/'Population 2016'!F$7","v":4.6712288009520979E-2},{"$f":"'Population 2016'!G84/'Population 2016'!G$7","v":4.1682104483141906E-2},{"$f":"'Population 2016'!H84/'Population 2016'!H$7","v":3.996024501172124E-2},{"$f":"'Population 2016'!I84/'Population 2016'!I$7","v":3.073332036568761E-2},{"$f":"'Population 2016'!J84/'Population 2016'!J$7","v":4.3497938248013679E-2},{"$f":"'Population 2016'!K84/'Population 2016'!K$7","v":3.4679763455948684E-2},{"$f":"'Population 2016'!L84/'Population 2016'!L$7","v":4.9679487179487176E-2},{"$f":"'Population 2016'!M84/'Population 2016'!M$7","v":4.9679487179487176E-2},{"$f":"'Population 2016'!N84/'Population 2016'!N$7","v":6.2994501032506561E-2},{"$f":"'Population 2016'!O84/'Population 2016'!O$7","v":4.0796843177189408E-2},{"$f":"'Population 2016'!P84/'Population 2016'!P$7","v":3.9381493114278812E-2},{"$f":"'Population 2016'!Q84/'Population 2016'!Q$7","v":3.5971223021582732E-2},{"$f":"'Population 2016'!R84/'Population 2016'!R$7","v":3.9772727272727272E-2},{"$f":"'Population 2016'!S84/'Population 2016'!S$7","v":4.7724453150506038E-2},{"$f":"'Population 2016'!T84/'Population 2016'!T$7","v":5.9589750920201551E-2},{"$f":"'Population 2016'!U84/'Population 2016'!U$7","v":{"$error":"#DIV/0!"}},{"$f":"'Population 2016'!V84/'Population 2016'!V$7","v":4.3692889402373702E-2},{"$f":"'Population 2016'!W84/'Population 2016'!W$7","v":4.1310565418267359E-2},{"$f":"'Population 2016'!X84/'Population 2016'!X$7","v":4.1310565418267359E-2},{"$f":"'Population 2016'!Y84/'Population 2016'!Y$7","v":4.3593300452116727E-2},{"$f":"'Population 2016'!Z84/'Population 2016'!Z$7","v":5.6961039070429535E-2},{"$f":"'Population 2016'!AA84/'Population 2016'!AA$7","v":4.9380871449115661E-2},{"$f":"'Population 2016'!AB84/'Population 2016'!AB$7","v":6.3200077249903439E-2},{"$f":"'Population 2016'!AC84/'Population 2016'!AC$7","v":5.3109849897445459E-2},{"$f":"'Population 2016'!AD84/'Population 2016'!AD$7","v":4.4276865068677618E-2},{"$f":"'Population 2016'!AE84/'Population 2016'!AE$7","v":4.5340624287992709E-2},{"$f":"'Population 2016'!AF84/'Population 2016'!AF$7","v":4.0157594158895395E-2},{"$f":"'Population 2016'!AG84/'Population 2016'!AG$7","v":4.5340624287992709E-2},{"$f":"'Population 2016'!AH84/'Population 2016'!AH$7","v":4.0150012621254193E-2},{"$f":"'Population 2016'!AI84/'Population 2016'!AI$7","v":5.2968960863697706E-2},{"$f":"'Population 2016'!AJ84/'Population 2016'!AJ$7","v":3.6062791684344508E-2},{"$f":"'Population 2016'!AK84/'Population 2016'!AK$7","v":1.889763779527559E-2},{"$f":"'Population 2016'!AL84/'Population 2016'!AL$7","v":3.7945138487529451E-2},{"$f":"'Population 2016'!AM84/'Population 2016'!AM$7","v":4.1512765117197481E-2},{"$f":"'Population 2016'!AN84/'Population 2016'!AN$7","v":{"$error":"#DIV/0!"}},{"$f":"'Population 2016'!AO84/'Population 2016'!AO$7","v":{"$error":"#DIV/0!"}},{"$f":"'Population 2016'!AP84/'Population 2016'!AP$7","v":6.6918429003021154E-2},{"$f":"'Population 2016'!AQ84/'Population 2016'!AQ$7","v":5.0452212173062824E-2},{"$f":"'Population 2016'!AR84/'Population 2016'!AR$7","v":4.8840104834253197E-2},{"$f":"'Population 2016'!AS84/'Population 2016'!AS$7","v":3.073332036568761E-2},{"$f":"'Population 2016'!AT84/'Population 2016'!AT$7","v":{"$error":"#DIV/0!"}},{"$f":"'Population 2016'!AU84/'Population 2016'!AU$7","v":{"$error":"#DIV/0!"}},{"$f":"'Population 2016'!AV84/'Population 2016'!AV$7","v":4.3943801448288668E-2},{"$f":"'Population 2016'!AW84/'Population 2016'!AW$7","v":3.791784783394532E-2},{"$f":"'Population 2016'!AX84/'Population 2016'!AX$7","v":5.2376627308507416E-2},{"$f":"'Population 2016'!AY84/'Population 2016'!AY$7","v":5.1181511295767333E-2},{"$f":"'Population 2016'!AZ84/'Population 2016'!AZ$7","v":6.1515564926206127E-2},{"$f":"'Population 2016'!BA84/'Population 2016'!BA$7","v":4.1568961841824771E-2},{"$f":"'Population 2016'!BB84/'Population 2016'!BB$7","v":4.4199616791499738E-2},{"$f":"'Population 2016'!BC84/'Population 2016'!BC$7","v":{"$error":"#DIV/0!"}},82]
[null,"Male 30-34",{"$f":"'Population 2016'!C85/'Population 2016'!C$7","v":5.5201833694129634E-2},{"$f":"'Population 2016'!D85/'Population 2016'!D$7","v":5.6781391642177617E-2},{"$f":"'Population 2016'!E85/'Population 2016'!E$7","v":6.2457103637611533E-2},{"$f":"'Population 2016'!F85/'Population 2016'!F$7","v":3.8381434096994939E-2},{"$f":"'Population 2016'!G85/'Population 2016'!G$7","v":3.2604668395702113E-2},{"$f":"'Population 2016'!H85/'Population 2016'!H$7","v":3.5228537167673143E-2},{"$f":"'Population 2016'!I85/'Population 2016'!I$7","v":3.3845555339428124E-2},{"$f":"'Population 2016'!J85/'Population 2016'!J$7","v":3.8167555063864024E-2},{"$f":"'Population 2016'!K85/'Population 2016'!K$7","v":3.6383682469680267E-2},{"$f":"'Population 2016'!L85/'Population 2016'!L$7","v":3.465544871794872E-2},{"$f":"'Population 2016'!M85/'Population 2016'!M$7","v":3.465544871794872E-2},{"$f":"'Population 2016'!N85/'Population 2016'!N$7","v":4.9421100257546577E-2},{"$f":"'Population 2016'!O85/'Population 2016'!O$7","v":3.5514256619144605E-2},{"$f":"'Population 2016'!P85/'Population 2016'!P$7","v":3.2374969799468474E-2},{"$f":"'Population 2016'!Q85/'Population 2016'!Q$7","v":3.7684138403562863E-2},{"$f":"'Population 2016'!R85/'Population 2016'!R$7","v":3.7337662337662336E-2},{"$f":"'Population 2016'!S85/'Population 2016'!S$7","v":4.3219066274893893E-2},{"$f":"'Population 2016'!T85/'Population 2016'!T$7","v":5.1477682878890756E-2},{"$f":"'Population 2016'!U85/'Population 2016'!U$7","v":{"$error":"#DIV/0!"}},{"$f":"'Population 2016'!V85/'Population 2016'!V$7","v":4.012183594160277E-2},{"$f":"'Population 2016'!W85/'Population 2016'!W$7","v":3.8704327370576587E-2},{"$f":"'Population 2016'!X85/'Population 2016'!X$7","v":3.8704327370576587E-2},{"$f":"'Population 2016'!Y85/'Population 2016'!Y$7","v":3.9123510069872587E-2},{"$f":"'Population 2016'!Z85/'Population 2016'!Z$7","v":4.9877233693981289E-2},{"$f":"'Population 2016'!AA85/'Population 2016'!AA$7","v":4.4852838943569756E-2},{"$f":"'Population 2016'!AB85/'Population 2016'!AB$7","v":5.547508690614137E-2},{"$f":"'Population 2016'!AC85/'Population 2016'!AC$7","v":4.7466436695879174E-2},{"$f":"'Population 2016'!AD85/'Population 2016'!AD$7","v":4.2876380285483434E-2},{"$f":"'Population 2016'!AE85/'Population 2016'!AE$7","v":4.7087415508468143E-2},{"$f":"'Population 2016'!AF85/'Population 2016'!AF$7","v":3.7808139955179641E-2},{"$f":"'Population 2016'!AG85/'Population 2016'!AG$7","v":4.7087415508468143E-2},{"$f":"'Population 2016'!AH85/'Population 2016'!AH$7","v":3.8383037034365873E-2},{"$f":"'Population 2016'!AI85/'Population 2016'!AI$7","v":4.6761133603238865E-2},{"$f":"'Population 2016'!AJ85/'Population 2016'!AJ$7","v":3.9739782209022766E-2},{"$f":"'Population 2016'!AK85/'Population 2016'!AK$7","v":1.4173228346456693E-2},{"$f":"'Population 2016'!AL85/'Population 2016'!AL$7","v":3.4455163828746721E-2},{"$f":"'Population 2016'!AM85/'Population 2016'!AM$7","v":3.914326201593607E-2},{"$f":"'Population 2016'!AN85/'Population 2016'!AN$7","v":{"$error":"#DIV/0!"}},{"$f":"'Population 2016'!AO85/'Population 2016'!AO$7","v":{"$error":"#DIV/0!"}},{"$f":"'Population 2016'!AP85/'Population 2016'!AP$7","v":4.6827794561933533E-2},{"$f":"'Population 2016'!AQ85/'Population 2016'!AQ$7","v":4.744561231972623E-2},{"$f":"'Population 2016'!AR85/'Population 2016'!AR$7","v":4.3573169585225981E-2},{"$f":"'Population 2016'!AS85/'Population 2016'!AS$7","v":3.3845555339428124E-2},{"$f":"'Population 2016'!AT85/'Population 2016'!AT$7","v":{"$error":"#DIV/0!"}},{"$f":"'Population 2016'!AU85/'Population 2016'!AU$7","v":{"$error":"#DIV/0!"}},{"$f":"'Population 2016'!AV85/'Population 2016'!AV$7","v":3.6826143467227825E-2},{"$f":"'Population 2016'!AW85/'Population 2016'!AW$7","v":3.7137801792203343E-2},{"$f":"'Population 2016'!AX85/'Population 2016'!AX$7","v":3.9963669391462307E-2},{"$f":"'Population 2016'!AY85/'Population 2016'!AY$7","v":4.3148965636631176E-2},{"$f":"'Population 2016'!AZ85/'Population 2016'!AZ$7","v":4.7802129657518469E-2},{"$f":"'Population 2016'!BA85/'Population 2016'!BA$7","v":4.0645207134228666E-2},{"$f":"'Population 2016'!BB85/'Population 2016'!BB$7","v":3.858212854903327E-2},{"$f":"'Population 2016'!BC85/'Population 2016'!BC$7","v":{"$error":"#DIV/0!"}},83]
[null,"Male 35-39",{"$f":"'Population 2016'!C86/'Population 2016'!C$7","v":5.2591366356806314E-2},{"$f":"'Population 2016'!D86/'Population 2016'!D$7","v":5.145191014593814E-2},{"$f":"'Population 2016'!E86/'Population 2016'!E$7","v":4.7357584076870282E-2},{"$f":"'Population 2016'!F86/'Population 2016'!F$7","v":3.8083903600119012E-2},{"$f":"'Population 2016'!G86/'Population 2016'!G$7","v":2.7788069655427936E-2},{"$f":"'Population 2016'!H86/'Population 2016'!H$7","v":3.1479901044648741E-2},{"$f":"'Population 2016'!I86/'Population 2016'!I$7","v":3.6374246255592296E-2},{"$f":"'Population 2016'!J86/'Population 2016'!J$7","v":3.3038318414965302E-2},{"$f":"'Population 2016'!K86/'Population 2016'!K$7","v":3.628345193946076E-2},{"$f":"'Population 2016'!L86/'Population 2016'!L$7","v":2.9847756410256412E-2},{"$f":"'Population 2016'!M86/'Population 2016'!M$7","v":2.9847756410256412E-2},{"$f":"'Population 2016'!N86/'Population 2016'!N$7","v":3.556927074874127E-2},{"$f":"'Population 2016'!O86/'Population 2016'!O$7","v":3.0168024439918534E-2},{"$f":"'Population 2016'!P86/'Population 2016'!P$7","v":3.2858178303938147E-2},{"$f":"'Population 2016'!Q86/'Population 2016'!Q$7","v":2.9462144570058239E-2},{"$f":"'Population 2016'!R86/'Population 2016'!R$7","v":3.3482142857142856E-2},{"$f":"'Population 2016'!S86/'Population 2016'!S$7","v":3.9947763630427686E-2},{"$f":"'Population 2016'!T86/'Population 2016'!T$7","v":4.681413715470107E-2},{"$f":"'Population 2016'!U86/'Population 2016'!U$7","v":{"$error":"#DIV/0!"}},{"$f":"'Population 2016'!V86/'Population 2016'!V$7","v":3.786366978258586E-2},{"$f":"'Population 2016'!W86/'Population 2016'!W$7","v":3.5928853086022776E-2},{"$f":"'Population 2016'!X86/'Population 2016'!X$7","v":3.5928853086022776E-2},{"$f":"'Population 2016'!Y86/'Population 2016'!Y$7","v":3.5398684751335799E-2},{"$f":"'Population 2016'!Z86/'Population 2016'!Z$7","v":4.0683448238103458E-2},{"$f":"'Population 2016'!AA86/'Population 2016'!AA$7","v":3.8413569986324593E-2},{"$f":"'Population 2016'!AB86/'Population 2016'!AB$7","v":5.1129779837775204E-2},{"$f":"'Population 2016'!AC86/'Population 2016'!AC$7","v":3.8918282677605817E-2},{"$f":"'Population 2016'!AD86/'Population 2016'!AD$7","v":3.2965257204416912E-2},{"$f":"'Population 2016'!AE86/'Population 2016'!AE$7","v":3.5087719298245612E-2},{"$f":"'Population 2016'!AF86/'Population 2016'!AF$7","v":3.0036868358273693E-2},{"$f":"'Population 2016'!AG86/'Population 2016'!AG$7","v":3.5087719298245612E-2},{"$f":"'Population 2016'!AH86/'Population 2016'!AH$7","v":3.7164184486675564E-2},{"$f":"'Population 2016'!AI86/'Population 2016'!AI$7","v":4.2825011246063881E-2},{"$f":"'Population 2016'!AJ86/'Population 2016'!AJ$7","v":3.365860557205487E-2},{"$f":"'Population 2016'!AK86/'Population 2016'!AK$7","v":4.0944881889763779E-2},{"$f":"'Population 2016'!AL86/'Population 2016'!AL$7","v":3.0765126928377719E-2},{"$f":"'Population 2016'!AM86/'Population 2016'!AM$7","v":3.6866680604920203E-2},{"$f":"'Population 2016'!AN86/'Population 2016'!AN$7","v":{"$error":"#DIV/0!"}},{"$f":"'Population 2016'!AO86/'Population 2016'!AO$7","v":{"$error":"#DIV/0!"}},{"$f":"'Population 2016'!AP86/'Population 2016'!AP$7","v":4.6072507552870089E-2},{"$f":"'Population 2016'!AQ86/'Population 2016'!AQ$7","v":3.9354681007088728E-2},{"$f":"'Population 2016'!AR86/'Population 2016'!AR$7","v":3.7815540325187968E-2},{"$f":"'Population 2016'!AS86/'Population 2016'!AS$7","v":3.6374246255592296E-2},{"$f":"'Population 2016'!AT86/'Population 2016'!AT$7","v":{"$error":"#DIV/0!"}},{"$f":"'Population 2016'!AU86/'Population 2016'!AU$7","v":{"$error":"#DIV/0!"}},{"$f":"'Population 2016'!AV86/'Population 2016'!AV$7","v":3.6021538651977471E-2},{"$f":"'Population 2016'!AW86/'Population 2016'!AW$7","v":3.7651490648960256E-2},{"$f":"'Population 2016'!AX86/'Population 2016'!AX$7","v":2.9770915329498437E-2},{"$f":"'Population 2016'!AY86/'Population 2016'!AY$7","v":3.6501341642863325E-2},{"$f":"'Population 2016'!AZ86/'Population 2016'!AZ$7","v":3.710068921528676E-2},{"$f":"'Population 2016'!BA86/'Population 2016'!BA$7","v":3.3965750017764515E-2},{"$f":"'Population 2016'!BB86/'Population 2016'!BB$7","v":3.7624107298380075E-2},{"$f":"'Population 2016'!BC86/'Population 2016'!BC$7","v":{"$error":"#DIV/0!"}},84]
[null,"Male 40-44",{"$f":"'Population 2016'!C87/'Population 2016'!C$7","v":4.2977206163249716E-2},{"$f":"'Population 2016'!D87/'Population 2016'!D$7","v":4.4179907356676797E-2},{"$f":"'Population 2016'!E87/'Population 2016'!E$7","v":4.8501487073896135E-2},{"$f":"'Population 2016'!F87/'Population 2016'!F$7","v":3.7340077357929186E-2},{"$f":"'Population 2016'!G87/'Population 2016'!G$7","v":3.0937384216376436E-2},{"$f":"'Population 2016'!H87/'Population 2016'!H$7","v":3.4375101277993238E-2},{"$f":"'Population 2016'!I87/'Population 2016'!I$7","v":3.6957790313168641E-2},{"$f":"'Population 2016'!J87/'Population 2016'!J$7","v":3.1831439203459717E-2},{"$f":"'Population 2016'!K87/'Population 2016'!K$7","v":3.5281146637265712E-2},{"$f":"'Population 2016'!L87/'Population 2016'!L$7","v":3.4154647435897433E-2},{"$f":"'Population 2016'!M87/'Population 2016'!M$7","v":3.4154647435897433E-2},{"$f":"'Population 2016'!N87/'Population 2016'!N$7","v":3.0070303255295947E-2},{"$f":"'Population 2016'!O87/'Population 2016'!O$7","v":3.5737016293279023E-2},{"$f":"'Population 2016'!P87/'Population 2016'!P$7","v":3.2858178303938147E-2},{"$f":"'Population 2016'!Q87/'Population 2016'!Q$7","v":4.5563549160671464E-2},{"$f":"'Population 2016'!R87/'Population 2016'!R$7","v":3.4293831168831168E-2},{"$f":"'Population 2016'!S87/'Population 2016'!S$7","v":3.8844270323212533E-2},{"$f":"'Population 2016'!T87/'Population 2016'!T$7","v":4.2347139334596003E-2},{"$f":"'Population 2016'!U87/'Population 2016'!U$7","v":{"$error":"#DIV/0!"}},{"$f":"'Population 2016'!V87/'Population 2016'!V$7","v":3.9596681020901164E-2},{"$f":"'Population 2016'!W87/'Population 2016'!W$7","v":3.5573456988610398E-2},{"$f":"'Population 2016'!X87/'Population 2016'!X$7","v":3.5573456988610398E-2},{"$f":"'Population 2016'!Y87/'Population 2016'!Y$7","v":3.5629880805589806E-2},{"$f":"'Population 2016'!Z87/'Population 2016'!Z$7","v":3.6556141895107461E-2},{"$f":"'Population 2016'!AA87/'Population 2016'!AA$7","v":3.6000141111920431E-2},{"$f":"'Population 2016'!AB87/'Population 2016'!AB$7","v":4.4273850907686367E-2},{"$f":"'Population 2016'!AC87/'Population 2016'!AC$7","v":3.5325960283423455E-2},{"$f":"'Population 2016'!AD87/'Population 2016'!AD$7","v":3.7705359547535684E-2},{"$f":"'Population 2016'!AE87/'Population 2016'!AE$7","v":4.0479987848408901E-2},{"$f":"'Population 2016'!AF87/'Population 2016'!AF$7","v":3.0868213691896192E-2},{"$f":"'Population 2016'!AG87/'Population 2016'!AG$7","v":4.0479987848408901E-2},{"$f":"'Population 2016'!AH87/'Population 2016'!AH$7","v":3.766903465435794E-2},{"$f":"'Population 2016'!AI87/'Population 2016'!AI$7","v":4.1126855600539809E-2},{"$f":"'Population 2016'!AJ87/'Population 2016'!AJ$7","v":3.7759864234196014E-2},{"$f":"'Population 2016'!AK87/'Population 2016'!AK$7","v":4.7244094488188976E-2},{"$f":"'Population 2016'!AL87/'Population 2016'!AL$7","v":3.3143644689458941E-2},{"$f":"'Population 2016'!AM87/'Population 2016'!AM$7","v":3.716867609821823E-2},{"$f":"'Population 2016'!AN87/'Population 2016'!AN$7","v":{"$error":"#DIV/0!"}},{"$f":"'Population 2016'!AO87/'Population 2016'!AO$7","v":{"$error":"#DIV/0!"}},{"$f":"'Population 2016'!AP87/'Population 2016'!AP$7","v":3.8066465256797584E-2},{"$f":"'Population 2016'!AQ87/'Population 2016'!AQ$7","v":3.441701295526766E-2},{"$f":"'Population 2016'!AR87/'Population 2016'!AR$7","v":3.6255179229426969E-2},{"$f":"'Population 2016'!AS87/'Population 2016'!AS$7","v":3.6957790313168641E-2},{"$f":"'Population 2016'!AT87/'Population 2016'!AT$7","v":{"$error":"#DIV/0!"}},{"$f":"'Population 2016'!AU87/'Population 2016'!AU$7","v":{"$error":"#DIV/0!"}},{"$f":"'Population 2016'!AV87/'Population 2016'!AV$7","v":3.5155041158630933E-2},{"$f":"'Population 2016'!AW87/'Population 2016'!AW$7","v":3.8488613230341889E-2},{"$f":"'Population 2016'!AX87/'Population 2016'!AX$7","v":2.8358058330810374E-2},{"$f":"'Population 2016'!AY87/'Population 2016'!AY$7","v":3.3766121353760926E-2},{"$f":"'Population 2016'!AZ87/'Population 2016'!AZ$7","v":3.1873992310554385E-2},{"$f":"'Population 2016'!BA87/'Population 2016'!BA$7","v":3.1194485894976195E-2},{"$f":"'Population 2016'!BB87/'Population 2016'!BB$7","v":3.8625674969517507E-2},{"$f":"'Population 2016'!BC87/'Population 2016'!BC$7","v":{"$error":"#DIV/0!"}},85]
[null,"Male 45-49",{"$f":"'Population 2016'!C88/'Population 2016'!C$7","v":3.9857379345473065E-2},{"$f":"'Population 2016'!D88/'Population 2016'!D$7","v":4.0593714200328736E-2},{"$f":"'Population 2016'!E88/'Population 2016'!E$7","v":4.3239533287577216E-2},{"$f":"'Population 2016'!F88/'Population 2016'!F$7","v":4.1207973817316272E-2},{"$f":"'Population 2016'!G88/'Population 2016'!G$7","v":3.7606520933679138E-2},{"$f":"'Population 2016'!H88/'Population 2016'!H$7","v":3.893396134691629E-2},{"$f":"'Population 2016'!I88/'Population 2016'!I$7","v":4.9017700836413151E-2},{"$f":"'Population 2016'!J88/'Population 2016'!J$7","v":3.9223574373931411E-2},{"$f":"'Population 2016'!K88/'Population 2016'!K$7","v":4.2597975343289567E-2},{"$f":"'Population 2016'!L88/'Population 2016'!L$7","v":4.0665064102564104E-2},{"$f":"'Population 2016'!M88/'Population 2016'!M$7","v":4.0665064102564104E-2},{"$f":"'Population 2016'!N88/'Population 2016'!N$7","v":3.7727093436042601E-2},{"$f":"'Population 2016'!O88/'Population 2016'!O$7","v":4.0733197556008148E-2},{"$f":"'Population 2016'!P88/'Population 2016'!P$7","v":4.4696786663445273E-2},{"$f":"'Population 2016'!Q88/'Population 2016'!Q$7","v":3.2202809181226449E-2},{"$f":"'Population 2016'!R88/'Population 2016'!R$7","v":3.7134740259740256E-2},{"$f":"'Population 2016'!S88/'Population 2016'!S$7","v":4.3232125367286975E-2},{"$f":"'Population 2016'!T88/'Population 2016'!T$7","v":4.1185719901368691E-2},{"$f":"'Population 2016'!U88/'Population 2016'!U$7","v":{"$error":"#DIV/0!"}},{"$f":"'Population 2016'!V88/'Population 2016'!V$7","v":4.4690683751706754E-2},{"$f":"'Population 2016'!W88/'Population 2016'!W$7","v":4.4593748413410281E-2},{"$f":"'Population 2016'!X88/'Population 2016'!X$7","v":4.4593748413410281E-2},{"$f":"'Population 2016'!Y88/'Population 2016'!Y$7","v":4.1897862720920671E-2},{"$f":"'Population 2016'!Z88/'Population 2016'!Z$7","v":3.9900102340351157E-2},{"$f":"'Population 2016'!AA88/'Population 2016'!AA$7","v":4.1221282167811124E-2},{"$f":"'Population 2016'!AB88/'Population 2016'!AB$7","v":4.1232135959830052E-2},{"$f":"'Population 2016'!AC88/'Population 2016'!AC$7","v":4.028179190751445E-2},{"$f":"'Population 2016'!AD88/'Population 2016'!AD$7","v":3.9752221922973334E-2},{"$f":"'Population 2016'!AE88/'Population 2016'!AE$7","v":4.0631882737145894E-2},{"$f":"'Population 2016'!AF88/'Population 2016'!AF$7","v":4.0410612303910937E-2},{"$f":"'Population 2016'!AG88/'Population 2016'!AG$7","v":4.0631882737145894E-2},{"$f":"'Population 2016'!AH88/'Population 2016'!AH$7","v":4.3546933035231328E-2},{"$f":"'Population 2016'!AI88/'Population 2016'!AI$7","v":4.1992802519118307E-2},{"$f":"'Population 2016'!AJ88/'Population 2016'!AJ$7","v":4.3699618158676283E-2},{"$f":"'Population 2016'!AK88/'Population 2016'!AK$7","v":6.1417322834645668E-2},{"$f":"'Population 2016'!AL88/'Population 2016'!AL$7","v":3.8323033832747967E-2},{"$f":"'Population 2016'!AM88/'Population 2016'!AM$7","v":4.398680511998513E-2},{"$f":"'Population 2016'!AN88/'Population 2016'!AN$7","v":{"$error":"#DIV/0!"}},{"$f":"'Population 2016'!AO88/'Population 2016'!AO$7","v":{"$error":"#DIV/0!"}},{"$f":"'Population 2016'!AP88/'Population 2016'!AP$7","v":3.8821752265861029E-2},{"$f":"'Population 2016'!AQ88/'Population 2016'!AQ$7","v":4.4316792960156441E-2},{"$f":"'Population 2016'!AR88/'Population 2016'!AR$7","v":4.1133457306181599E-2},{"$f":"'Population 2016'!AS88/'Population 2016'!AS$7","v":4.9017700836413151E-2},{"$f":"'Population 2016'!AT88/'Population 2016'!AT$7","v":{"$error":"#DIV/0!"}},{"$f":"'Population 2016'!AU88/'Population 2016'!AU$7","v":{"$error":"#DIV/0!"}},{"$f":"'Population 2016'!AV88/'Population 2016'!AV$7","v":3.7135606857708732E-2},{"$f":"'Population 2016'!AW88/'Population 2016'!AW$7","v":4.2826430242955807E-2},{"$f":"'Population 2016'!AX88/'Population 2016'!AX$7","v":3.5826016752447273E-2},{"$f":"'Population 2016'!AY88/'Population 2016'!AY$7","v":4.150437115900632E-2},{"$f":"'Population 2016'!AZ88/'Population 2016'!AZ$7","v":3.8270051912616718E-2},{"$f":"'Population 2016'!BA88/'Population 2016'!BA$7","v":3.7412065657642296E-2},{"$f":"'Population 2016'!BB88/'Population 2016'!BB$7","v":4.4678627416826336E-2},{"$f":"'Population 2016'!BC88/'Population 2016'!BC$7","v":{"$error":"#DIV/0!"}},86]
[null,"Male 50-54",{"$f":"'Population 2016'!C89/'Population 2016'!C$7","v":3.9157010059849742E-2},{"$f":"'Population 2016'!D89/'Population 2016'!D$7","v":3.8451959954176419E-2},{"$f":"'Population 2016'!E89/'Population 2016'!E$7","v":3.5918554106611759E-2},{"$f":"'Population 2016'!F89/'Population 2016'!F$7","v":4.3439452543885745E-2},{"$f":"'Population 2016'!G89/'Population 2016'!G$7","v":4.8721748795850311E-2},{"$f":"'Population 2016'!H89/'Population 2016'!H$7","v":4.1915585467823306E-2},{"$f":"'Population 2016'!I89/'Population 2016'!I$7","v":5.0573818323283407E-2},{"$f":"'Population 2016'!J89/'Population 2016'!J$7","v":4.3296791712762746E-2},{"$f":"'Population 2016'!K89/'Population 2016'!K$7","v":4.5504660719655206E-2},{"$f":"'Population 2016'!L89/'Population 2016'!L$7","v":4.3770032051282048E-2},{"$f":"'Population 2016'!M89/'Population 2016'!M$7","v":4.3770032051282048E-2},{"$f":"'Population 2016'!N89/'Population 2016'!N$7","v":3.8631986821039931E-2},{"$f":"'Population 2016'!O89/'Population 2016'!O$7","v":4.3056262729124238E-2},{"$f":"'Population 2016'!P89/'Population 2016'!P$7","v":4.5663203672384634E-2},{"$f":"'Population 2016'!Q89/'Population 2016'!Q$7","v":4.8989379924631725E-2},{"$f":"'Population 2016'!R89/'Population 2016'!R$7","v":4.8904220779220776E-2},{"$f":"'Population 2016'!S89/'Population 2016'!S$7","v":4.263793666340189E-2},{"$f":"'Population 2016'!T89/'Population 2016'!T$7","v":4.2704499160204412E-2},{"$f":"'Population 2016'!U89/'Population 2016'!U$7","v":{"$error":"#DIV/0!"}},{"$f":"'Population 2016'!V89/'Population 2016'!V$7","v":4.5058292196197877E-2},{"$f":"'Population 2016'!W89/'Population 2016'!W$7","v":4.1276718170894754E-2},{"$f":"'Population 2016'!X89/'Population 2016'!X$7","v":4.1276718170894754E-2},{"$f":"'Population 2016'!Y89/'Population 2016'!Y$7","v":4.4158446362515411E-2},{"$f":"'Population 2016'!Z89/'Population 2016'!Z$7","v":4.0864544332745119E-2},{"$f":"'Population 2016'!AA89/'Population 2016'!AA$7","v":4.2520341905882497E-2},{"$f":"'Population 2016'!AB89/'Population 2016'!AB$7","v":3.8480108149864814E-2},{"$f":"'Population 2016'!AC89/'Population 2016'!AC$7","v":4.2423200633973521E-2},{"$f":"'Population 2016'!AD89/'Population 2016'!AD$7","v":4.3899811473202259E-2},{"$f":"'Population 2016'!AE89/'Population 2016'!AE$7","v":4.1922989291410341E-2},{"$f":"'Population 2016'!AF89/'Population 2016'!AF$7","v":4.6446902334996022E-2},{"$f":"'Population 2016'!AG89/'Population 2016'!AG$7","v":4.1922989291410341E-2},{"$f":"'Population 2016'!AH89/'Population 2016'!AH$7","v":4.2760809202697342E-2},{"$f":"'Population 2016'!AI89/'Population 2016'!AI$7","v":4.3083670715249663E-2},{"$f":"'Population 2016'!AJ89/'Population 2016'!AJ$7","v":4.3133927308725784E-2},{"$f":"'Population 2016'!AK89/'Population 2016'!AK$7","v":3.937007874015748E-2},{"$f":"'Population 2016'!AL89/'Population 2016'!AL$7","v":4.212421642288712E-2},{"$f":"'Population 2016'!AM89/'Population 2016'!AM$7","v":4.3963574697423749E-2},{"$f":"'Population 2016'!AN89/'Population 2016'!AN$7","v":{"$error":"#DIV/0!"}},{"$f":"'Population 2016'!AO89/'Population 2016'!AO$7","v":{"$error":"#DIV/0!"}},{"$f":"'Population 2016'!AP89/'Population 2016'!AP$7","v":4.486404833836858E-2},{"$f":"'Population 2016'!AQ89/'Population 2016'!AQ$7","v":4.3999022243950137E-2},{"$f":"'Population 2016'!AR89/'Population 2016'!AR$7","v":4.2330383819021045E-2},{"$f":"'Population 2016'!AS89/'Population 2016'!AS$7","v":5.0573818323283407E-2},{"$f":"'Population 2016'!AT89/'Population 2016'!AT$7","v":{"$error":"#DIV/0!"}},{"$f":"'Population 2016'!AU89/'Population 2016'!AU$7","v":{"$error":"#DIV/0!"}},{"$f":"'Population 2016'!AV89/'Population 2016'!AV$7","v":3.9116172556786531E-2},{"$f":"'Population 2016'!AW89/'Population 2016'!AW$7","v":4.079070032914138E-2},{"$f":"'Population 2016'!AX89/'Population 2016'!AX$7","v":4.1073771319002923E-2},{"$f":"'Population 2016'!AY89/'Population 2016'!AY$7","v":4.0621483597334022E-2},{"$f":"'Population 2016'!AZ89/'Population 2016'!AZ$7","v":3.9935507875480593E-2},{"$f":"'Population 2016'!BA89/'Population 2016'!BA$7","v":4.7715483550060396E-2},{"$f":"'Population 2016'!BB89/'Population 2016'!BB$7","v":4.3241595540846542E-2},{"$f":"'Population 2016'!BC89/'Population 2016'!BC$7","v":{"$error":"#DIV/0!"}},87]
[null,"Male 55-59",{"$f":"'Population 2016'!C90/'Population 2016'!C$7","v":3.5782503501846426E-2},{"$f":"'Population 2016'!D90/'Population 2016'!D$7","v":3.7057329282263289E-2},{"$f":"'Population 2016'!E90/'Population 2016'!E$7","v":4.1638069091741017E-2},{"$f":"'Population 2016'!F90/'Population 2016'!F$7","v":3.4513537637607852E-2},{"$f":"'Population 2016'!G90/'Population 2016'!G$7","v":3.9459058910707667E-2},{"$f":"'Population 2016'!H90/'Population 2016'!H$7","v":4.0824483887346462E-2},{"$f":"'Population 2016'!I90/'Population 2016'!I$7","v":3.8319393114180124E-2},{"$f":"'Population 2016'!J90/'Population 2016'!J$7","v":4.0933319923564318E-2},{"$f":"'Population 2016'!K90/'Population 2016'!K$7","v":4.2898666933948081E-2},{"$f":"'Population 2016'!L90/'Population 2016'!L$7","v":3.8962339743589744E-2},{"$f":"'Population 2016'!M90/'Population 2016'!M$7","v":3.8962339743589744E-2},{"$f":"'Population 2016'!N90/'Population 2016'!N$7","v":3.7239843151813265E-2},{"$f":"'Population 2016'!O90/'Population 2016'!O$7","v":4.0224032586558045E-2},{"$f":"'Population 2016'!P90/'Population 2016'!P$7","v":4.1797535636627206E-2},{"$f":"'Population 2016'!Q90/'Population 2016'!Q$7","v":3.8369304556354913E-2},{"$f":"'Population 2016'!R90/'Population 2016'!R$7","v":3.916396103896104E-2},{"$f":"'Population 2016'!S90/'Population 2016'!S$7","v":3.7153117858308847E-2},{"$f":"'Population 2016'!T90/'Population 2016'!T$7","v":3.3663295572311763E-2},{"$f":"'Population 2016'!U90/'Population 2016'!U$7","v":{"$error":"#DIV/0!"}},{"$f":"'Population 2016'!V90/'Population 2016'!V$7","v":3.8178762735006824E-2},{"$f":"'Population 2016'!W90/'Population 2016'!W$7","v":4.0836703955050853E-2},{"$f":"'Population 2016'!X90/'Population 2016'!X$7","v":4.0836703955050853E-2},{"$f":"'Population 2016'!Y90/'Population 2016'!Y$7","v":3.9585902178380601E-2},{"$f":"'Population 2016'!Z90/'Population 2016'!Z$7","v":3.5755949849016394E-2},{"$f":"'Population 2016'!AA90/'Population 2016'!AA$7","v":3.7901001687117519E-2},{"$f":"'Population 2016'!AB90/'Population 2016'!AB$7","v":3.7224797219003479E-2},{"$f":"'Population 2016'!AC90/'Population 2016'!AC$7","v":3.7173107402573187E-2},{"$f":"'Population 2016'!AD90/'Population 2016'!AD$7","v":4.0237005117155937E-2},{"$f":"'Population 2016'!AE90/'Population 2016'!AE$7","v":4.0555935292777401E-2},{"$f":"'Population 2016'!AF90/'Population 2016'!AF$7","v":4.0663630448926479E-2},{"$f":"'Population 2016'!AG90/'Population 2016'!AG$7","v":4.0555935292777401E-2},{"$f":"'Population 2016'!AH90/'Population 2016'!AH$7","v":3.970285961559266E-2},{"$f":"'Population 2016'!AI90/'Population 2016'!AI$7","v":3.4637876743139902E-2},{"$f":"'Population 2016'!AJ90/'Population 2016'!AJ$7","v":3.804270965917126E-2},{"$f":"'Population 2016'!AK90/'Population 2016'!AK$7","v":4.2519685039370078E-2},{"$f":"'Population 2016'!AL90/'Population 2016'!AL$7","v":4.1346196594496065E-2},{"$f":"'Population 2016'!AM90/'Population 2016'!AM$7","v":3.9340720607707852E-2},{"$f":"'Population 2016'!AN90/'Population 2016'!AN$7","v":{"$error":"#DIV/0!"}},{"$f":"'Population 2016'!AO90/'Population 2016'!AO$7","v":{"$error":"#DIV/0!"}},{"$f":"'Population 2016'!AP90/'Population 2016'!AP$7","v":3.5196374622356495E-2},{"$f":"'Population 2016'!AQ90/'Population 2016'!AQ$7","v":4.0943534588120264E-2},{"$f":"'Population 2016'!AR90/'Population 2016'!AR$7","v":3.8121650841402649E-2},{"$f":"'Population 2016'!AS90/'Population 2016'!AS$7","v":3.8319393114180124E-2},{"$f":"'Population 2016'!AT90/'Population 2016'!AT$7","v":{"$error":"#DIV/0!"}},{"$f":"'Population 2016'!AU90/'Population 2016'!AU$7","v":{"$error":"#DIV/0!"}},{"$f":"'Population 2016'!AV90/'Population 2016'!AV$7","v":4.05397041529987E-2},{"$f":"'Population 2016'!AW90/'Population 2016'!AW$7","v":4.0296036985597687E-2},{"$f":"'Population 2016'!AX90/'Population 2016'!AX$7","v":3.8954485820970837E-2},{"$f":"'Population 2016'!AY90/'Population 2016'!AY$7","v":3.8803773911538129E-2},{"$f":"'Population 2016'!AZ90/'Population 2016'!AZ$7","v":3.6675466416257685E-2},{"$f":"'Population 2016'!BA90/'Population 2016'!BA$7","v":3.9188517018404034E-2},{"$f":"'Population 2016'!BB90/'Population 2016'!BB$7","v":3.5490332694652502E-2},{"$f":"'Population 2016'!BC90/'Population 2016'!BC$7","v":{"$error":"#DIV/0!"}},88]
[null,"Male 60-64",{"$f":"'Population 2016'!C91/'Population 2016'!C$7","v":3.2216987138673117E-2},{"$f":"'Population 2016'!D91/'Population 2016'!D$7","v":3.023360063754545E-2},{"$f":"'Population 2016'!E91/'Population 2016'!E$7","v":2.3106840539922215E-2},{"$f":"'Population 2016'!F91/'Population 2016'!F$7","v":2.9157988693841119E-2},{"$f":"'Population 2016'!G91/'Population 2016'!G$7","v":3.8347536124490551E-2},{"$f":"'Population 2016'!H91/'Population 2016'!H$7","v":3.4893644603368371E-2},{"$f":"'Population 2016'!I91/'Population 2016'!I$7","v":2.9955261622252479E-2},{"$f":"'Population 2016'!J91/'Population 2016'!J$7","v":3.1932012471085187E-2},{"$f":"'Population 2016'!K91/'Population 2016'!K$7","v":3.3376766563095121E-2},{"$f":"'Population 2016'!L91/'Population 2016'!L$7","v":3.2251602564102567E-2},{"$f":"'Population 2016'!M91/'Population 2016'!M$7","v":3.2251602564102567E-2},{"$f":"'Population 2016'!N91/'Population 2016'!N$7","v":3.0023898466321725E-2},{"$f":"'Population 2016'!O91/'Population 2016'!O$7","v":3.3254837067209775E-2},{"$f":"'Population 2016'!P91/'Population 2016'!P$7","v":3.8656680357574295E-2},{"$f":"'Population 2016'!Q91/'Population 2016'!Q$7","v":2.9804727646454265E-2},{"$f":"'Population 2016'!R91/'Population 2016'!R$7","v":2.9626623376623376E-2},{"$f":"'Population 2016'!S91/'Population 2016'!S$7","v":3.1093698987920339E-2},{"$f":"'Population 2016'!T91/'Population 2016'!T$7","v":2.8767465961476609E-2},{"$f":"'Population 2016'!U91/'Population 2016'!U$7","v":{"$error":"#DIV/0!"}},{"$f":"'Population 2016'!V91/'Population 2016'!V$7","v":3.2717151559710111E-2},{"$f":"'Population 2016'!W91/'Population 2016'!W$7","v":3.4151872598960888E-2},{"$f":"'Population 2016'!X91/'Population 2016'!X$7","v":3.4151872598960888E-2},{"$f":"'Population 2016'!Y91/'Population 2016'!Y$7","v":3.2316070694615701E-2},{"$f":"'Population 2016'!Z91/'Population 2016'!Z$7","v":2.8815336733447605E-2},{"$f":"'Population 2016'!AA91/'Population 2016'!AA$7","v":3.0774849705428865E-2},{"$f":"'Population 2016'!AB91/'Population 2016'!AB$7","v":3.0272305909617613E-2},{"$f":"'Population 2016'!AC91/'Population 2016'!AC$7","v":2.9982635651687489E-2},{"$f":"'Population 2016'!AD91/'Population 2016'!AD$7","v":3.4742795583086454E-2},{"$f":"'Population 2016'!AE91/'Population 2016'!AE$7","v":3.3264980633401685E-2},{"$f":"'Population 2016'!AF91/'Population 2016'!AF$7","v":3.4844213113569E-2},{"$f":"'Population 2016'!AG91/'Population 2016'!AG$7","v":3.3264980633401685E-2},{"$f":"'Population 2016'!AH91/'Population 2016'!AH$7","v":3.2735927301575853E-2},{"$f":"'Population 2016'!AI91/'Population 2016'!AI$7","v":2.9127305443094918E-2},{"$f":"'Population 2016'!AJ91/'Population 2016'!AJ$7","v":3.4507141846980623E-2},{"$f":"'Population 2016'!AK91/'Population 2016'!AK$7","v":3.1496062992125984E-2},{"$f":"'Population 2016'!AL91/'Population 2016'!AL$7","v":3.5010892277597475E-2},{"$f":"'Population 2016'!AM91/'Population 2016'!AM$7","v":3.1616605106046879E-2},{"$f":"'Population 2016'!AN91/'Population 2016'!AN$7","v":{"$error":"#DIV/0!"}},{"$f":"'Population 2016'!AO91/'Population 2016'!AO$7","v":{"$error":"#DIV/0!"}},{"$f":"'Population 2016'!AP91/'Population 2016'!AP$7","v":2.9305135951661631E-2},{"$f":"'Population 2016'!AQ91/'Population 2016'!AQ$7","v":2.9234905890980201E-2},{"$f":"'Population 2016'!AR91/'Population 2016'!AR$7","v":3.1365436339330963E-2},{"$f":"'Population 2016'!AS91/'Population 2016'!AS$7","v":2.9955261622252479E-2},{"$f":"'Population 2016'!AT91/'Population 2016'!AT$7","v":{"$error":"#DIV/0!"}},{"$f":"'Population 2016'!AU91/'Population 2016'!AU$7","v":{"$error":"#DIV/0!"}},{"$f":"'Population 2016'!AV91/'Population 2016'!AV$7","v":3.7754533638670547E-2},{"$f":"'Population 2016'!AW91/'Population 2016'!AW$7","v":3.4569357508418788E-2},{"$f":"'Population 2016'!AX91/'Population 2016'!AX$7","v":3.0477343828842467E-2},{"$f":"'Population 2016'!AY91/'Population 2016'!AY$7","v":3.2043625032459104E-2},{"$f":"'Population 2016'!AZ91/'Population 2016'!AZ$7","v":2.9836466398540068E-2},{"$f":"'Population 2016'!BA91/'Population 2016'!BA$7","v":3.4925033752575857E-2},{"$f":"'Population 2016'!BB91/'Population 2016'!BB$7","v":2.8261626894269292E-2},{"$f":"'Population 2016'!BC91/'Population 2016'!BC$7","v":{"$error":"#DIV/0!"}},89]
[null,"Male 65-69",{"$f":"'Population 2016'!C92/'Population 2016'!C$7","v":2.7696421749649817E-2},{"$f":"'Population 2016'!D92/'Population 2016'!D$7","v":2.7593764008567018E-2},{"$f":"'Population 2016'!E92/'Population 2016'!E$7","v":2.7224891329215281E-2},{"$f":"'Population 2016'!F92/'Population 2016'!F$7","v":3.0496875929782803E-2},{"$f":"'Population 2016'!G92/'Population 2016'!G$7","v":3.1678399407187849E-2},{"$f":"'Population 2016'!H92/'Population 2016'!H$7","v":3.3532468374258648E-2},{"$f":"'Population 2016'!I92/'Population 2016'!I$7","v":3.8902937171756469E-2},{"$f":"'Population 2016'!J92/'Population 2016'!J$7","v":3.1177712963894197E-2},{"$f":"'Population 2016'!K92/'Population 2016'!K$7","v":3.3777688683973135E-2},{"$f":"'Population 2016'!L92/'Population 2016'!L$7","v":3.7159455128205128E-2},{"$f":"'Population 2016'!M92/'Population 2016'!M$7","v":3.7159455128205128E-2},{"$f":"'Population 2016'!N92/'Population 2016'!N$7","v":2.8538945219146617E-2},{"$f":"'Population 2016'!O92/'Population 2016'!O$7","v":3.4655040733197556E-2},{"$f":"'Population 2016'!P92/'Population 2016'!P$7","v":3.0683740033824597E-2},{"$f":"'Population 2016'!Q92/'Population 2016'!Q$7","v":3.4600890715998631E-2},{"$f":"'Population 2016'!R92/'Population 2016'!R$7","v":2.7597402597402596E-2},{"$f":"'Population 2016'!S92/'Population 2016'!S$7","v":2.90956578517793E-2},{"$f":"'Population 2016'!T92/'Population 2016'!T$7","v":2.3478540542472216E-2},{"$f":"'Population 2016'!U92/'Population 2016'!U$7","v":{"$error":"#DIV/0!"}},{"$f":"'Population 2016'!V92/'Population 2016'!V$7","v":3.3819976893183487E-2},{"$f":"'Population 2016'!W92/'Population 2016'!W$7","v":3.2984142564605932E-2},{"$f":"'Population 2016'!X92/'Population 2016'!X$7","v":3.2984142564605932E-2},{"$f":"'Population 2016'!Y92/'Population 2016'!Y$7","v":3.2470201397451708E-2},{"$f":"'Population 2016'!Z92/'Population 2016'!Z$7","v":2.5673530068269015E-2},{"$f":"'Population 2016'!AA92/'Population 2016'!AA$7","v":2.8276338643706926E-2},{"$f":"'Population 2016'!AB92/'Population 2016'!AB$7","v":2.7665121668597914E-2},{"$f":"'Population 2016'!AC92/'Population 2016'!AC$7","v":2.6888518553048666E-2},{"$f":"'Population 2016'!AD92/'Population 2016'!AD$7","v":3.1079989227040129E-2},{"$f":"'Population 2016'!AE92/'Population 2016'!AE$7","v":3.0834662413609781E-2},{"$f":"'Population 2016'!AF92/'Population 2016'!AF$7","v":3.5350249403600084E-2},{"$f":"'Population 2016'!AG92/'Population 2016'!AG$7","v":3.0834662413609781E-2},{"$f":"'Population 2016'!AH92/'Population 2016'!AH$7","v":3.1711802675705891E-2},{"$f":"'Population 2016'!AI92/'Population 2016'!AI$7","v":2.5944669365721998E-2},{"$f":"'Population 2016'!AJ92/'Population 2016'!AJ$7","v":2.870881063498798E-2},{"$f":"'Population 2016'!AK92/'Population 2016'!AK$7","v":2.9921259842519685E-2},{"$f":"'Population 2016'!AL92/'Population 2016'!AL$7","v":3.3121415551504912E-2},{"$f":"'Population 2016'!AM92/'Population 2016'!AM$7","v":3.0977768485608754E-2},{"$f":"'Population 2016'!AN92/'Population 2016'!AN$7","v":{"$error":"#DIV/0!"}},{"$f":"'Population 2016'!AO92/'Population 2016'!AO$7","v":{"$error":"#DIV/0!"}},{"$f":"'Population 2016'!AP92/'Population 2016'!AP$7","v":2.4320241691842902E-2},{"$f":"'Population 2016'!AQ92/'Population 2016'!AQ$7","v":2.6277193840136884E-2},{"$f":"'Population 2016'!AR92/'Population 2016'!AR$7","v":2.9312088269890877E-2},{"$f":"'Population 2016'!AS92/'Population 2016'!AS$7","v":3.8902937171756469E-2},{"$f":"'Population 2016'!AT92/'Population 2016'!AT$7","v":{"$error":"#DIV/0!"}},{"$f":"'Population 2016'!AU92/'Population 2016'!AU$7","v":{"$error":"#DIV/0!"}},{"$f":"'Population 2016'!AV92/'Population 2016'!AV$7","v":3.2493656000495141E-2},{"$f":"'Population 2016'!AW92/'Population 2016'!AW$7","v":3.2914137858868743E-2},{"$f":"'Population 2016'!AX92/'Population 2016'!AX$7","v":2.8559895044908669E-2},{"$f":"'Population 2016'!AY92/'Population 2016'!AY$7","v":3.0684670648316453E-2},{"$f":"'Population 2016'!AZ92/'Population 2016'!AZ$7","v":2.827731613543346E-2},{"$f":"'Population 2016'!BA92/'Population 2016'!BA$7","v":2.902721523484687E-2},{"$f":"'Population 2016'!BB92/'Population 2016'!BB$7","v":3.0003483713638739E-2},{"$f":"'Population 2016'!BC92/'Population 2016'!BC$7","v":{"$error":"#DIV/0!"}},90]
[null,"Male 70-74",{"$f":"'Population 2016'!C93/'Population 2016'!C$7","v":1.6108493569336559E-2},{"$f":"'Population 2016'!D93/'Population 2016'!D$7","v":1.593863625043582E-2},{"$f":"'Population 2016'!E93/'Population 2016'!E$7","v":1.532830016014642E-2},{"$f":"'Population 2016'!F93/'Population 2016'!F$7","v":2.0083308539125259E-2},{"$f":"'Population 2016'!G93/'Population 2016'!G$7","v":2.8899592441645052E-2},{"$f":"'Population 2016'!H93/'Population 2016'!H$7","v":2.4868473646115788E-2},{"$f":"'Population 2016'!I93/'Population 2016'!I$7","v":2.7037541334370745E-2},{"$f":"'Population 2016'!J93/'Population 2016'!J$7","v":2.2377552046665996E-2},{"$f":"'Population 2016'!K93/'Population 2016'!K$7","v":2.455647990377869E-2},{"$f":"'Population 2016'!L93/'Population 2016'!L$7","v":2.2636217948717948E-2},{"$f":"'Population 2016'!M93/'Population 2016'!M$7","v":2.2636217948717948E-2},{"$f":"'Population 2016'!N93/'Population 2016'!N$7","v":2.0302095176222185E-2},{"$f":"'Population 2016'!O93/'Population 2016'!O$7","v":2.377163951120163E-2},{"$f":"'Population 2016'!P93/'Population 2016'!P$7","v":2.1261174196665861E-2},{"$f":"'Population 2016'!Q93/'Population 2016'!Q$7","v":2.1925316889345667E-2},{"$f":"'Population 2016'!R93/'Population 2016'!R$7","v":1.765422077922078E-2},{"$f":"'Population 2016'!S93/'Population 2016'!S$7","v":2.139732288605942E-2},{"$f":"'Population 2016'!T93/'Population 2016'!T$7","v":1.5973984204695708E-2},{"$f":"'Population 2016'!U93/'Population 2016'!U$7","v":{"$error":"#DIV/0!"}},{"$f":"'Population 2016'!V93/'Population 2016'!V$7","v":2.1321289780485243E-2},{"$f":"'Population 2016'!W93/'Population 2016'!W$7","v":2.5216199292592528E-2},{"$f":"'Population 2016'!X93/'Population 2016'!X$7","v":2.5216199292592528E-2},{"$f":"'Population 2016'!Y93/'Population 2016'!Y$7","v":2.1860871352240033E-2},{"$f":"'Population 2016'!Z93/'Population 2016'!Z$7","v":1.8602359303074842E-2},{"$f":"'Population 2016'!AA93/'Population 2016'!AA$7","v":2.0376146274956576E-2},{"$f":"'Population 2016'!AB93/'Population 2016'!AB$7","v":1.6174198532251834E-2},{"$f":"'Population 2016'!AC93/'Population 2016'!AC$7","v":1.9328034682080924E-2},{"$f":"'Population 2016'!AD93/'Population 2016'!AD$7","v":2.256935092916779E-2},{"$f":"'Population 2016'!AE93/'Population 2016'!AE$7","v":1.997417786891471E-2},{"$f":"'Population 2016'!AF93/'Population 2016'!AF$7","v":2.4362032820067953E-2},{"$f":"'Population 2016'!AG93/'Population 2016'!AG$7","v":1.997417786891471E-2},{"$f":"'Population 2016'!AH93/'Population 2016'!AH$7","v":2.2970682629548159E-2},{"$f":"'Population 2016'!AI93/'Population 2016'!AI$7","v":1.8533513270355375E-2},{"$f":"'Population 2016'!AJ93/'Population 2016'!AJ$7","v":2.1496252298119078E-2},{"$f":"'Population 2016'!AK93/'Population 2016'!AK$7","v":2.3622047244094488E-2},{"$f":"'Population 2016'!AL93/'Population 2016'!AL$7","v":2.5407904681456452E-2},{"$f":"'Population 2016'!AM93/'Population 2016'!AM$7","v":2.1824981996422514E-2},{"$f":"'Population 2016'!AN93/'Population 2016'!AN$7","v":{"$error":"#DIV/0!"}},{"$f":"'Population 2016'!AO93/'Population 2016'!AO$7","v":{"$error":"#DIV/0!"}},{"$f":"'Population 2016'!AP93/'Population 2016'!AP$7","v":1.797583081570997E-2},{"$f":"'Population 2016'!AQ93/'Population 2016'!AQ$7","v":1.8821803959912002E-2},{"$f":"'Population 2016'!AR93/'Population 2016'!AR$7","v":2.104710433209437E-2},{"$f":"'Population 2016'!AS93/'Population 2016'!AS$7","v":2.7037541334370745E-2},{"$f":"'Population 2016'!AT93/'Population 2016'!AT$7","v":{"$error":"#DIV/0!"}},{"$f":"'Population 2016'!AU93/'Population 2016'!AU$7","v":{"$error":"#DIV/0!"}},{"$f":"'Population 2016'!AV93/'Population 2016'!AV$7","v":2.5499783375626663E-2},{"$f":"'Population 2016'!AW93/'Population 2016'!AW$7","v":2.4847320256463919E-2},{"$f":"'Population 2016'!AX93/'Population 2016'!AX$7","v":2.0183671409829448E-2},{"$f":"'Population 2016'!AY93/'Population 2016'!AY$7","v":2.2669436509997403E-2},{"$f":"'Population 2016'!AZ93/'Population 2016'!AZ$7","v":2.0003189170992718E-2},{"$f":"'Population 2016'!BA93/'Population 2016'!BA$7","v":2.1246358274710438E-2},{"$f":"'Population 2016'!BB93/'Population 2016'!BB$7","v":2.3427974220519072E-2},{"$f":"'Population 2016'!BC93/'Population 2016'!BC$7","v":{"$error":"#DIV/0!"}},91]
[null,"Male 75-79",{"$f":"'Population 2016'!C94/'Population 2016'!C$7","v":1.0632879154463263E-2},{"$f":"'Population 2016'!D94/'Population 2016'!D$7","v":1.1206853613587687E-2},{"$f":"'Population 2016'!E94/'Population 2016'!E$7","v":1.3269274765499885E-2},{"$f":"'Population 2016'!F94/'Population 2016'!F$7","v":1.8149360309431716E-2},{"$f":"'Population 2016'!G94/'Population 2016'!G$7","v":1.6672841793256763E-2},{"$f":"'Population 2016'!H94/'Population 2016'!H$7","v":1.9391359771840935E-2},{"$f":"'Population 2016'!I94/'Population 2016'!I$7","v":1.419957206769111E-2},{"$f":"'Population 2016'!J94/'Population 2016'!J$7","v":1.7902041637332798E-2},{"$f":"'Population 2016'!K94/'Population 2016'!K$7","v":1.8241956499949884E-2},{"$f":"'Population 2016'!L94/'Population 2016'!L$7","v":1.8329326923076924E-2},{"$f":"'Population 2016'!M94/'Population 2016'!M$7","v":1.8329326923076924E-2},{"$f":"'Population 2016'!N94/'Population 2016'!N$7","v":1.540638993944175E-2},{"$f":"'Population 2016'!O94/'Population 2016'!O$7","v":2.0207484725050916E-2},{"$f":"'Population 2016'!P94/'Population 2016'!P$7","v":1.6187484899734237E-2},{"$f":"'Population 2016'!Q94/'Population 2016'!Q$7","v":2.0897567660157587E-2},{"$f":"'Population 2016'!R94/'Population 2016'!R$7","v":2.0495129870129872E-2},{"$f":"'Population 2016'!S94/'Population 2016'!S$7","v":1.5559908586353248E-2},{"$f":"'Population 2016'!T94/'Population 2016'!T$7","v":1.2954293678304685E-2},{"$f":"'Population 2016'!U94/'Population 2016'!U$7","v":{"$error":"#DIV/0!"}},{"$f":"'Population 2016'!V94/'Population 2016'!V$7","v":1.8380422224556246E-2},{"$f":"'Population 2016'!W94/'Population 2016'!W$7","v":1.6923623686303711E-2},{"$f":"'Population 2016'!X94/'Population 2016'!X$7","v":1.6923623686303711E-2},{"$f":"'Population 2016'!Y94/'Population 2016'!Y$7","v":1.8136046033703248E-2},{"$f":"'Population 2016'!Z94/'Population 2016'!Z$7","v":1.3952822361577305E-2},{"$f":"'Population 2016'!AA94/'Population 2016'!AA$7","v":1.5464206338830474E-2},{"$f":"'Population 2016'!AB94/'Population 2016'!AB$7","v":1.1201235998455001E-2},{"$f":"'Population 2016'!AC94/'Population 2016'!AC$7","v":1.4759696065634906E-2},{"$f":"'Population 2016'!AD94/'Population 2016'!AD$7","v":1.5136008618367896E-2},{"$f":"'Population 2016'!AE94/'Population 2016'!AE$7","v":1.4505961874382927E-2},{"$f":"'Population 2016'!AF94/'Population 2016'!AF$7","v":1.8289597339694933E-2},{"$f":"'Population 2016'!AG94/'Population 2016'!AG$7","v":1.4505961874382927E-2},{"$f":"'Population 2016'!AH94/'Population 2016'!AH$7","v":1.7208178572716455E-2},{"$f":"'Population 2016'!AI94/'Population 2016'!AI$7","v":1.4732343679712101E-2},{"$f":"'Population 2016'!AJ94/'Population 2016'!AJ$7","v":1.6405034648564559E-2},{"$f":"'Population 2016'!AK94/'Population 2016'!AK$7","v":1.1023622047244094E-2},{"$f":"'Population 2016'!AL94/'Population 2016'!AL$7","v":1.8939225536833682E-2},{"$f":"'Population 2016'!AM94/'Population 2016'!AM$7","v":1.7167282272864542E-2},{"$f":"'Population 2016'!AN94/'Population 2016'!AN$7","v":{"$error":"#DIV/0!"}},{"$f":"'Population 2016'!AO94/'Population 2016'!AO$7","v":{"$error":"#DIV/0!"}},{"$f":"'Population 2016'!AP94/'Population 2016'!AP$7","v":1.4501510574018127E-2},{"$f":"'Population 2016'!AQ94/'Population 2016'!AQ$7","v":1.6597408946467856E-2},{"$f":"'Population 2016'!AR94/'Population 2016'!AR$7","v":1.5952141283187768E-2},{"$f":"'Population 2016'!AS94/'Population 2016'!AS$7","v":1.419957206769111E-2},{"$f":"'Population 2016'!AT94/'Population 2016'!AT$7","v":{"$error":"#DIV/0!"}},{"$f":"'Population 2016'!AU94/'Population 2016'!AU$7","v":{"$error":"#DIV/0!"}},{"$f":"'Population 2016'!AV94/'Population 2016'!AV$7","v":1.9062944853623816E-2},{"$f":"'Population 2016'!AW94/'Population 2016'!AW$7","v":1.7275165997602784E-2},{"$f":"'Population 2016'!AX94/'Population 2016'!AX$7","v":1.755979412655162E-2},{"$f":"'Population 2016'!AY94/'Population 2016'!AY$7","v":1.629014108889466E-2},{"$f":"'Population 2016'!AZ94/'Population 2016'!AZ$7","v":1.5626937864318492E-2},{"$f":"'Population 2016'!BA94/'Population 2016'!BA$7","v":1.4211610886093939E-2},{"$f":"'Population 2016'!BB94/'Population 2016'!BB$7","v":1.7766939557568369E-2},{"$f":"'Population 2016'!BC94/'Population 2016'!BC$7","v":{"$error":"#DIV/0!"}},92]
[null,"Male 80-84",{"$f":"'Population 2016'!C95/'Population 2016'!C$7","v":7.6403922067999489E-3},{"$f":"'Population 2016'!D95/'Population 2016'!D$7","v":8.0689346017831353E-3},{"$f":"'Population 2016'!E95/'Population 2016'!E$7","v":9.6087851750171586E-3},{"$f":"'Population 2016'!F95/'Population 2016'!F$7","v":1.0264802142219578E-2},{"$f":"'Population 2016'!G95/'Population 2016'!G$7","v":1.278251204149685E-2},{"$f":"'Population 2016'!H95/'Population 2016'!H$7","v":1.3006795078159604E-2},{"$f":"'Population 2016'!I95/'Population 2016'!I$7","v":1.089282240809181E-2},{"$f":"'Population 2016'!J95/'Population 2016'!J$7","v":8.548727748164538E-3},{"$f":"'Population 2016'!K95/'Population 2016'!K$7","v":8.1186729477798932E-3},{"$f":"'Population 2016'!L95/'Population 2016'!L$7","v":1.1618589743589744E-2},{"$f":"'Population 2016'!M95/'Population 2016'!M$7","v":1.1618589743589744E-2},{"$f":"'Population 2016'!N95/'Population 2016'!N$7","v":9.7914104735608715E-3},{"$f":"'Population 2016'!O95/'Population 2016'!O$7","v":1.3429226069246436E-2},{"$f":"'Population 2016'!P95/'Population 2016'!P$7","v":1.0388982846098091E-2},{"$f":"'Population 2016'!Q95/'Population 2016'!Q$7","v":1.3360739979445015E-2},{"$f":"'Population 2016'!R95/'Population 2016'!R$7","v":9.74025974025974E-3},{"$f":"'Population 2016'!S95/'Population 2016'!S$7","v":1.0747633039503754E-2},{"$f":"'Population 2016'!T95/'Population 2016'!T$7","v":8.8625236750884458E-3},{"$f":"'Population 2016'!U95/'Population 2016'!U$7","v":{"$error":"#DIV/0!"}},{"$f":"'Population 2016'!V95/'Population 2016'!V$7","v":1.3443965969961138E-2},{"$f":"'Population 2016'!W95/'Population 2016'!W$7","v":1.2269627172570191E-2},{"$f":"'Population 2016'!X95/'Population 2016'!X$7","v":1.2269627172570191E-2},{"$f":"'Population 2016'!Y95/'Population 2016'!Y$7","v":1.0943279901356351E-2},{"$f":"'Population 2016'!Z95/'Population 2016'!Z$7","v":9.5349199597377053E-3},{"$f":"'Population 2016'!AA95/'Population 2016'!AA$7","v":1.0226463880536309E-2},{"$f":"'Population 2016'!AB95/'Population 2016'!AB$7","v":7.9663962920046346E-3},{"$f":"'Population 2016'!AC95/'Population 2016'!AC$7","v":9.8213453291068429E-3},{"$f":"'Population 2016'!AD95/'Population 2016'!AD$7","v":1.0557500673309992E-2},{"$f":"'Population 2016'!AE95/'Population 2016'!AE$7","v":9.6453254347991183E-3},{"$f":"'Population 2016'!AF95/'Population 2016'!AF$7","v":1.174727101857876E-2},{"$f":"'Population 2016'!AG95/'Population 2016'!AG$7","v":9.6453254347991183E-3},{"$f":"'Population 2016'!AH95/'Population 2016'!AH$7","v":1.1229310158306588E-2},{"$f":"'Population 2016'!AI95/'Population 2016'!AI$7","v":9.7278452541610435E-3},{"$f":"'Population 2016'!AJ95/'Population 2016'!AJ$7","v":1.0465280724084288E-2},{"$f":"'Population 2016'!AK95/'Population 2016'!AK$7","v":4.7244094488188976E-3},{"$f":"'Population 2016'!AL95/'Population 2016'!AL$7","v":1.2337171564486729E-2},{"$f":"'Population 2016'!AM95/'Population 2016'!AM$7","v":1.1266754942272399E-2},{"$f":"'Population 2016'!AN95/'Population 2016'!AN$7","v":{"$error":"#DIV/0!"}},{"$f":"'Population 2016'!AO95/'Population 2016'!AO$7","v":{"$error":"#DIV/0!"}},{"$f":"'Population 2016'!AP95/'Population 2016'!AP$7","v":9.6676737160120846E-3},{"$f":"'Population 2016'!AQ95/'Population 2016'!AQ$7","v":1.0388658029821559E-2},{"$f":"'Population 2016'!AR95/'Population 2016'!AR$7","v":1.0588901602093016E-2},{"$f":"'Population 2016'!AS95/'Population 2016'!AS$7","v":1.089282240809181E-2},{"$f":"'Population 2016'!AT95/'Population 2016'!AT$7","v":{"$error":"#DIV/0!"}},{"$f":"'Population 2016'!AU95/'Population 2016'!AU$7","v":{"$error":"#DIV/0!"}},{"$f":"'Population 2016'!AV95/'Population 2016'!AV$7","v":1.4049637927833137E-2},{"$f":"'Population 2016'!AW95/'Population 2016'!AW$7","v":1.116797625615951E-2},{"$f":"'Population 2016'!AX95/'Population 2016'!AX$7","v":8.9817337773741047E-3},{"$f":"'Population 2016'!AY95/'Population 2016'!AY$7","v":1.1079373322946421E-2},{"$f":"'Population 2016'!AZ95/'Population 2016'!AZ$7","v":9.8332772275473504E-3},{"$f":"'Population 2016'!BA95/'Population 2016'!BA$7","v":9.450721239252469E-3},{"$f":"'Population 2016'!BB95/'Population 2016'!BB$7","v":1.1147883643964466E-2},{"$f":"'Population 2016'!BC95/'Population 2016'!BC$7","v":{"$error":"#DIV/0!"}},93]
[null,"Male 85-89",{"$f":"'Population 2016'!C96/'Population 2016'!C$7","v":3.9475359735133067E-3},{"$f":"'Population 2016'!D96/'Population 2016'!D$7","v":4.134083777456791E-3},{"$f":"'Population 2016'!E96/'Population 2016'!E$7","v":4.8043925875085793E-3},{"$f":"'Population 2016'!F96/'Population 2016'!F$7","v":5.5043141922047007E-3},{"$f":"'Population 2016'!G96/'Population 2016'!G$7","v":7.224898110411263E-3},{"$f":"'Population 2016'!H96/'Population 2016'!H$7","v":6.1036870591031364E-3},{"$f":"'Population 2016'!I96/'Population 2016'!I$7","v":7.3915580626337293E-3},{"$f":"'Population 2016'!J96/'Population 2016'!J$7","v":5.2298099165241875E-3},{"$f":"'Population 2016'!K96/'Population 2016'!K$7","v":5.512679162072767E-3},{"$f":"'Population 2016'!L96/'Population 2016'!L$7","v":6.7107371794871791E-3},{"$f":"'Population 2016'!M96/'Population 2016'!M$7","v":6.7107371794871791E-3},{"$f":"'Population 2016'!N96/'Population 2016'!N$7","v":5.1973363651128795E-3},{"$f":"'Population 2016'!O96/'Population 2016'!O$7","v":6.619144602851324E-3},{"$f":"'Population 2016'!P96/'Population 2016'!P$7","v":5.5568978014013046E-3},{"$f":"'Population 2016'!Q96/'Population 2016'!Q$7","v":3.4258307639602604E-3},{"$f":"'Population 2016'!R96/'Population 2016'!R$7","v":4.87012987012987E-3},{"$f":"'Population 2016'!S96/'Population 2016'!S$7","v":5.15181194906954E-3},{"$f":"'Population 2016'!T96/'Population 2016'!T$7","v":4.1811099596183393E-3},{"$f":"'Population 2016'!U96/'Population 2016'!U$7","v":{"$error":"#DIV/0!"}},{"$f":"'Population 2016'!V96/'Population 2016'!V$7","v":5.4616111752967128E-3},{"$f":"'Population 2016'!W96/'Population 2016'!W$7","v":5.8724974191473878E-3},{"$f":"'Population 2016'!X96/'Population 2016'!X$7","v":5.8724974191473878E-3},{"$f":"'Population 2016'!Y96/'Population 2016'!Y$7","v":5.3431976983148374E-3},{"$f":"'Population 2016'!Z96/'Population 2016'!Z$7","v":4.5610946627190523E-3},{"$f":"'Population 2016'!AA96/'Population 2016'!AA$7","v":4.8476095018126653E-3},{"$f":"'Population 2016'!AB96/'Population 2016'!AB$7","v":4.2004634994206261E-3},{"$f":"'Population 2016'!AC96/'Population 2016'!AC$7","v":4.711099198209957E-3},{"$f":"'Population 2016'!AD96/'Population 2016'!AD$7","v":5.6019391327767308E-3},{"$f":"'Population 2016'!AE96/'Population 2016'!AE$7","v":4.936583883952305E-3},{"$f":"'Population 2016'!AF96/'Population 2016'!AF$7","v":5.0965083495987853E-3},{"$f":"'Population 2016'!AG96/'Population 2016'!AG$7","v":4.936583883952305E-3},{"$f":"'Population 2016'!AH96/'Population 2016'!AH$7","v":5.1855324366232736E-3},{"$f":"'Population 2016'!AI96/'Population 2016'!AI$7","v":4.5434098065677015E-3},{"$f":"'Population 2016'!AJ96/'Population 2016'!AJ$7","v":7.9196718993070295E-3},{"$f":"'Population 2016'!AK96/'Population 2016'!AK$7","v":6.2992125984251968E-3},{"$f":"'Population 2016'!AL96/'Population 2016'!AL$7","v":5.5795136264615661E-3},{"$f":"'Population 2016'!AM96/'Population 2016'!AM$7","v":4.8667735266104493E-3},{"$f":"'Population 2016'!AN96/'Population 2016'!AN$7","v":{"$error":"#DIV/0!"}},{"$f":"'Population 2016'!AO96/'Population 2016'!AO$7","v":{"$error":"#DIV/0!"}},{"$f":"'Population 2016'!AP96/'Population 2016'!AP$7","v":4.8338368580060423E-3},{"$f":"'Population 2016'!AQ96/'Population 2016'!AQ$7","v":5.5243216817404059E-3},{"$f":"'Population 2016'!AR96/'Population 2016'!AR$7","v":5.1006954555772874E-3},{"$f":"'Population 2016'!AS96/'Population 2016'!AS$7","v":7.3915580626337293E-3},{"$f":"'Population 2016'!AT96/'Population 2016'!AT$7","v":{"$error":"#DIV/0!"}},{"$f":"'Population 2016'!AU96/'Population 2016'!AU$7","v":{"$error":"#DIV/0!"}},{"$f":"'Population 2016'!AV96/'Population 2016'!AV$7","v":6.5606238781952099E-3},{"$f":"'Population 2016'!AW96/'Population 2016'!AW$7","v":5.7076539639656781E-3},{"$f":"'Population 2016'!AX96/'Population 2016'!AX$7","v":4.9449994954082147E-3},{"$f":"'Population 2016'!AY96/'Population 2016'!AY$7","v":5.5396866614732107E-3},{"$f":"'Population 2016'!AZ96/'Population 2016'!AZ$7","v":5.1912616714799523E-3},{"$f":"'Population 2016'!BA96/'Population 2016'!BA$7","v":4.2634832658281817E-3},{"$f":"'Population 2016'!BB96/'Population 2016'!BB$7","v":4.5288277303605646E-3},{"$f":"'Population 2016'!BC96/'Population 2016'!BC$7","v":{"$error":"#DIV/0!"}},94]
[null,"Male 90+",{"$f":"'Population 2016'!C97/'Population 2016'!C$7","v":1.5917483764166561E-3},{"$f":"'Population 2016'!D97/'Population 2016'!D$7","v":1.9923295313044776E-3},{"$f":"'Population 2016'!E97/'Population 2016'!E$7","v":3.4317089910775567E-3},{"$f":"'Population 2016'!F97/'Population 2016'!F$7","v":1.6364177328176137E-3},{"$f":"'Population 2016'!G97/'Population 2016'!G$7","v":2.2230455724342349E-3},{"$f":"'Population 2016'!H97/'Population 2016'!H$7","v":2.3226419782427861E-3},{"$f":"'Population 2016'!I97/'Population 2016'!I$7","v":2.7232056020229526E-3},{"$f":"'Population 2016'!J97/'Population 2016'!J$7","v":2.262898521572966E-3},{"$f":"'Population 2016'!K97/'Population 2016'!K$7","v":2.9066853763656409E-3},{"$f":"'Population 2016'!L97/'Population 2016'!L$7","v":2.6041666666666665E-3},{"$f":"'Population 2016'!M97/'Population 2016'!M$7","v":2.6041666666666665E-3},{"$f":"'Population 2016'!N97/'Population 2016'!N$7","v":2.1114178983271076E-3},{"$f":"'Population 2016'!O97/'Population 2016'!O$7","v":2.5776476578411407E-3},{"$f":"'Population 2016'!P97/'Population 2016'!P$7","v":2.1744382701135538E-3},{"$f":"'Population 2016'!Q97/'Population 2016'!Q$7","v":2.3980815347721821E-3},{"$f":"'Population 2016'!R97/'Population 2016'!R$7","v":2.232142857142857E-3},{"$f":"'Population 2016'!S97/'Population 2016'!S$7","v":2.4224616389160953E-3},{"$f":"'Population 2016'!T97/'Population 2016'!T$7","v":1.9654790408462279E-3},{"$f":"'Population 2016'!U97/'Population 2016'!U$7","v":{"$error":"#DIV/0!"}},{"$f":"'Population 2016'!V97/'Population 2016'!V$7","v":2.7308055876483564E-3},{"$f":"'Population 2016'!W97/'Population 2016'!W$7","v":2.640085295063379E-3},{"$f":"'Population 2016'!X97/'Population 2016'!X$7","v":2.640085295063379E-3},{"$f":"'Population 2016'!Y97/'Population 2016'!Y$7","v":2.4917796958487462E-3},{"$f":"'Population 2016'!Z97/'Population 2016'!Z$7","v":1.9541532072960667E-3},{"$f":"'Population 2016'!AA97/'Population 2016'!AA$7","v":2.1187539817426079E-3},{"$f":"'Population 2016'!AB97/'Population 2016'!AB$7","v":2.0278099652375433E-3},{"$f":"'Population 2016'!AC97/'Population 2016'!AC$7","v":2.0773121387283235E-3},{"$f":"'Population 2016'!AD97/'Population 2016'!AD$7","v":1.7775383786695395E-3},{"$f":"'Population 2016'!AE97/'Population 2016'!AE$7","v":1.594896331738437E-3},{"$f":"'Population 2016'!AF97/'Population 2016'!AF$7","v":2.277163305139883E-3},{"$f":"'Population 2016'!AG97/'Population 2016'!AG$7","v":1.594896331738437E-3},{"$f":"'Population 2016'!AH97/'Population 2016'!AH$7","v":2.2213407378024594E-3},{"$f":"'Population 2016'!AI97/'Population 2016'!AI$7","v":2.2604588394062076E-3},{"$f":"'Population 2016'!AJ97/'Population 2016'!AJ$7","v":4.2426813746287654E-3},{"$f":"'Population 2016'!AK97/'Population 2016'!AK$7","v":3.1496062992125984E-3},{"$f":"'Population 2016'!AL97/'Population 2016'!AL$7","v":2.0450806917707729E-3},{"$f":"'Population 2016'!AM97/'Population 2016'!AM$7","v":2.1836597207703207E-3},{"$f":"'Population 2016'!AN97/'Population 2016'!AN$7","v":{"$error":"#DIV/0!"}},{"$f":"'Population 2016'!AO97/'Population 2016'!AO$7","v":{"$error":"#DIV/0!"}},{"$f":"'Population 2016'!AP97/'Population 2016'!AP$7","v":1.3595166163141994E-3},{"$f":"'Population 2016'!AQ97/'Population 2016'!AQ$7","v":2.2977267171840625E-3},{"$f":"'Population 2016'!AR97/'Population 2016'!AR$7","v":2.1966582362072562E-3},{"$f":"'Population 2016'!AS97/'Population 2016'!AS$7","v":2.7232056020229526E-3},{"$f":"'Population 2016'!AT97/'Population 2016'!AT$7","v":{"$error":"#DIV/0!"}},{"$f":"'Population 2016'!AU97/'Population 2016'!AU$7","v":{"$error":"#DIV/0!"}},{"$f":"'Population 2016'!AV97/'Population 2016'!AV$7","v":2.5994924800396115E-3},{"$f":"'Population 2016'!AW97/'Population 2016'!AW$7","v":2.2830615855862712E-3},{"$f":"'Population 2016'!AX97/'Population 2016'!AX$7","v":1.6146937127863559E-3},{"$f":"'Population 2016'!AY97/'Population 2016'!AY$7","v":2.3110880290833549E-3},{"$f":"'Population 2016'!AZ97/'Population 2016'!AZ$7","v":1.9666554455094699E-3},{"$f":"'Population 2016'!BA97/'Population 2016'!BA$7","v":2.5580899594969089E-3},{"$f":"'Population 2016'!BB97/'Population 2016'!BB$7","v":2.3515067061487547E-3},{"$f":"'Population 2016'!BC97/'Population 2016'!BC$7","v":{"$error":"#DIV/0!"}},95]
["SIMD Q2","Female 0-4",0,0,0,0,0,0,0,0,0,0,0,0,0,0,0,0,0,0,0,0,0,0,0,0,0,0,0,0,0,0,0,0,0,0,0,0,0,0,0,0,0,0,0,0,0,0,0,0,0,0,0,0,0,96]
[null,"Female 5-9",0,0,0,0,0,0,0,0,0,0,0,0,0,0,0,0,0,0,0,0,0,0,0,0,0,0,0,0,0,0,0,0,0,0,0,0,0,0,0,0,0,0,0,0,0,0,0,0,0,0,0,0,0,97]
[null,"Female 10-15",0,0,0,0,0,0,0,0,0,0,0,0,0,0,0,0,0,0,0,0,0,0,0,0,0,0,0,0,0,0,0,0,0,0,0,0,0,0,0,0,0,0,0,0,0,0,0,0,0,0,0,0,0,98]
[null,"Female 16-19",0,0,0,0,0,0,0,0,0,0,0,0,0,0,0,0,0,0,0,0,0,0,0,0,0,0,0,0,0,0,0,0,0,0,0,0,0,0,0,0,0,0,0,0,0,0,0,0,0,0,0,0,0,99]
[null,"Female 20-24",0,0,0,0,0,0,0,0,0,0,0,0,0,0,0,0,0,0,0,0,0,0,0,0,0,0,0,0,0,0,0,0,0,0,0,0,0,0,0,0,0,0,0,0,0,0,0,0,0,0,0,0,0,100]
[null,"Female 25-29",0,0,0,0,0,0,0,0,0,0,0,0,0,0,0,0,0,0,0,0,0,0,0,0,0,0,0,0,0,0,0,0,0,0,0,0,0,0,0,0,0,0,0,0,0,0,0,0,0,0,0,0,0,101]
[null,"Female 30-34",0,0,0,0,0,0,0,0,0,0,0,0,0,0,0,0,0,0,0,0,0,0,0,0,0,0,0,0,0,0,0,0,0,0,0,0,0,0,0,0,0,0,0,0,0,0,0,0,0,0,0,0,0,102]
[null,"Female 35-39",0,0,0,0,0,0,0,0,0,0,0,0,0,0,0,0,0,0,0,0,0,0,0,0,0,0,0,0,0,0,0,0,0,0,0,0,0,0,0,0,0,0,0,0,0,0,0,0,0,0,0,0,0,103]
[null,"Female 40-44",0,0,0,0,0,0,0,0,0,0,0,0,0,0,0,0,0,0,0,0,0,0,0,0,0,0,0,0,0,0,0,0,0,0,0,0,0,0,0,0,0,0,0,0,0,0,0,0,0,0,0,0,0,104]
[null,"Female 45-49",0,0,0,0,0,0,0,0,0,0,0,0,0,0,0,0,0,0,0,0,0,0,0,0,0,0,0,0,0,0,0,0,0,0,0,0,0,0,0,0,0,0,0,0,0,0,0,0,0,0,0,0,0,105]
[null,"Female 50-54",0,0,0,0,0,0,0,0,0,0,0,0,0,0,0,0,0,0,0,0,0,0,0,0,0,0,0,0,0,0,0,0,0,0,0,0,0,0,0,0,0,0,0,0,0,0,0,0,0,0,0,0,0,106]
[null,"Female 55-59",0,0,0,0,0,0,0,0,0,0,0,0,0,0,0,0,0,0,0,0,0,0,0,0,0,0,0,0,0,0,0,0,0,0,0,0,0,0,0,0,0,0,0,0,0,0,0,0,0,0,0,0,0,107]
[null,"Female 60-64",0,0,0,0,0,0,0,0,0,0,0,0,0,0,0,0,0,0,0,0,0,0,0,0,0,0,0,0,0,0,0,0,0,0,0,0,0,0,0,0,0,0,0,0,0,0,0,0,0,0,0,0,0,108]
[null,"Female 65-69",0,0,0,0,0,0,0,0,0,0,0,0,0,0,0,0,0,0,0,0,0,0,0,0,0,0,0,0,0,0,0,0,0,0,0,0,0,0,0,0,0,0,0,0,0,0,0,0,0,0,0,0,0,109]
[null,"Female 70-74",0,0,0,0,0,0,0,0,0,0,0,0,0,0,0,0,0,0,0,0,0,0,0,0,0,0,0,0,0,0,0,0,0,0,0,0,0,0,0,0,0,0,0,0,0,0,0,0,0,0,0,0,0,110]
[null,"Female 75-79",0,0,0,0,0,0,0,0,0,0,0,0,0,0,0,0,0,0,0,0,0,0,0,0,0,0,0,0,0,0,0,0,0,0,0,0,0,0,0,0,0,0,0,0,0,0,0,0,0,0,0,0,0,111]
[null,"Female 80-84",0,0,0,0,0,0,0,0,0,0,0,0,0,0,0,0,0,0,0,0,0,0,0,0,0,0,0,0,0,0,0,0,0,0,0,0,0,0,0,0,0,0,0,0,0,0,0,0,0,0,0,0,0,112]
[null,"Female 85-89",0,0,0,0,0,0,0,0,0,0,0,0,0,0,0,0,0,0,0,0,0,0,0,0,0,0,0,0,0,0,0,0,0,0,0,0,0,0,0,0,0,0,0,0,0,0,0,0,0,0,0,0,0,113]
[null,"Female 90+",0,0,0,0,0,0,0,0,0,0,0,0,0,0,0,0,0,0,0,0,0,0,0,0,0,0,0,0,0,0,0,0,0,0,0,0,0,0,0,0,0,0,0,0,0,0,0,0,0,0,0,0,0,114]
[null,"Male 0-4",0,0,0,0,0,0,0,0,0,0,0,0,0,0,0,0,0,0,0,0,0,0,0,0,0,0,0,0,0,0,0,0,0,0,0,0,0,0,0,0,0,0,0,0,0,0,0,0,0,0,0,0,0,115]
[null,"Male 5-9",0,0,0,0,0,0,0,0,0,0,0,0,0,0,0,0,0,0,0,0,0,0,0,0,0,0,0,0,0,0,0,0,0,0,0,0,0,0,0,0,0,0,0,0,0,0,0,0,0,0,0,0,0,116]
[null,"Male 10-15",0,0,0,0,0,0,0,0,0,0,0,0,0,0,0,0,0,0,0,0,0,0,0,0,0,0,0,0,0,0,0,0,0,0,0,0,0,0,0,0,0,0,0,0,0,0,0,0,0,0,0,0,0,117]
[null,"Male 16-19",0,0,0,0,0,0,0,0,0,0,0,0,0,0,0,0,0,0,0,0,0,0,0,0,0,0,0,0,0,0,0,0,0,0,0,0,0,0,0,0,0,0,0,0,0,0,0,0,0,0,0,0,0,118]
[null,"Male 20-24",0,0,0,0,0,0,0,0,0,0,0,0,0,0,0,0,0,0,0,0,0,0,0,0,0,0,0,0,0,0,0,0,0,0,0,0,0,0,0,0,0,0,0,0,0,0,0,0,0,0,0,0,0,119]
[null,"Male 25-29",0,0,0,0,0,0,0,0,0,0,0,0,0,0,0,0,0,0,0,0,0,0,0,0,0,0,0,0,0,0,0,0,0,0,0,0,0,0,0,0,0,0,0,0,0,0,0,0,0,0,0,0,0,120]
[null,"Male 30-34",0,0,0,0,0,0,0,0,0,0,0,0,0,0,0,0,0,0,0,0,0,0,0,0,0,0,0,0,0,0,0,0,0,0,0,0,0,0,0,0,0,0,0,0,0,0,0,0,0,0,0,0,0,121]
[null,"Male 35-39",0,0,0,0,0,0,0,0,0,0,0,0,0,0,0,0,0,0,0,0,0,0,0,0,0,0,0,0,0,0,0,0,0,0,0,0,0,0,0,0,0,0,0,0,0,0,0,0,0,0,0,0,0,122]
[null,"Male 40-44",0,0,0,0,0,0,0,0,0,0,0,0,0,0,0,0,0,0,0,0,0,0,0,0,0,0,0,0,0,0,0,0,0,0,0,0,0,0,0,0,0,0,0,0,0,0,0,0,0,0,0,0,0,123]
[null,"Male 45-49",0,0,0,0,0,0,0,0,0,0,0,0,0,0,0,0,0,0,0,0,0,0,0,0,0,0,0,0,0,0,0,0,0,0,0,0,0,0,0,0,0,0,0,0,0,0,0,0,0,0,0,0,0,124]
[null,"Male 50-54",0,0,0,0,0,0,0,0,0,0,0,0,0,0,0,0,0,0,0,0,0,0,0,0,0,0,0,0,0,0,0,0,0,0,0,0,0,0,0,0,0,0,0,0,0,0,0,0,0,0,0,0,0,125]
[null,"Male 55-59",0,0,0,0,0,0,0,0,0,0,0,0,0,0,0,0,0,0,0,0,0,0,0,0,0,0,0,0,0,0,0,0,0,0,0,0,0,0,0,0,0,0,0,0,0,0,0,0,0,0,0,0,0,126]
[null,"Male 60-64",0,0,0,0,0,0,0,0,0,0,0,0,0,0,0,0,0,0,0,0,0,0,0,0,0,0,0,0,0,0,0,0,0,0,0,0,0,0,0,0,0,0,0,0,0,0,0,0,0,0,0,0,0,127]
[null,"Male 65-69",0,0,0,0,0,0,0,0,0,0,0,0,0,0,0,0,0,0,0,0,0,0,0,0,0,0,0,0,0,0,0,0,0,0,0,0,0,0,0,0,0,0,0,0,0,0,0,0,0,0,0,0,0,128]
[null,"Male 70-74",0,0,0,0,0,0,0,0,0,0,0,0,0,0,0,0,0,0,0,0,0,0,0,0,0,0,0,0,0,0,0,0,0,0,0,0,0,0,0,0,0,0,0,0,0,0,0,0,0,0,0,0,0,129]
[null,"Male 75-79",0,0,0,0,0,0,0,0,0,0,0,0,0,0,0,0,0,0,0,0,0,0,0,0,0,0,0,0,0,0,0,0,0,0,0,0,0,0,0,0,0,0,0,0,0,0,0,0,0,0,0,0,0,130]
[null,"Male 80-84",0,0,0,0,0,0,0,0,0,0,0,0,0,0,0,0,0,0,0,0,0,0,0,0,0,0,0,0,0,0,0,0,0,0,0,0,0,0,0,0,0,0,0,0,0,0,0,0,0,0,0,0,0,131]
[null,"Male 85-89",0,0,0,0,0,0,0,0,0,0,0,0,0,0,0,0,0,0,0,0,0,0,0,0,0,0,0,0,0,0,0,0,0,0,0,0,0,0,0,0,0,0,0,0,0,0,0,0,0,0,0,0,0,132]
[null,"Male 90+",0,0,0,0,0,0,0,0,0,0,0,0,0,0,0,0,0,0,0,0,0,0,0,0,0,0,0,0,0,0,0,0,0,0,0,0,0,0,0,0,0,0,0,0,0,0,0,0,0,0,0,0,0,133]
["SIMD Q3","Female 0-4",0,0,0,0,0,0,0,0,0,0,0,0,0,0,0,0,0,0,0,0,0,0,0,0,0,0,0,0,0,0,0,0,0,0,0,0,0,0,0,0,0,0,0,0,0,0,0,0,0,0,0,0,0,134]
[null,"Female 5-9",0,0,0,0,0,0,0,0,0,0,0,0,0,0,0,0,0,0,0,0,0,0,0,0,0,0,0,0,0,0,0,0,0,0,0,0,0,0,0,0,0,0,0,0,0,0,0,0,0,0,0,0,0,135]
[null,"Female 10-15",0,0,0,0,0,0,0,0,0,0,0,0,0,0,0,0,0,0,0,0,0,0,0,0,0,0,0,0,0,0,0,0,0,0,0,0,0,0,0,0,0,0,0,0,0,0,0,0,0,0,0,0,0,136]
[null,"Female 16-19",0,0,0,0,0,0,0,0,0,0,0,0,0,0,0,0,0,0,0,0,0,0,0,0,0,0,0,0,0,0,0,0,0,0,0,0,0,0,0,0,0,0,0,0,0,0,0,0,0,0,0,0,0,137]
[null,"Female 20-24",0,0,0,0,0,0,0,0,0,0,0,0,0,0,0,0,0,0,0,0,0,0,0,0,0,0,0,0,0,0,0,0,0,0,0,0,0,0,0,0,0,0,0,0,0,0,0,0,0,0,0,0,0,138]
[null,"Female 25-29",0,0,0,0,0,0,0,0,0,0,0,0,0,0,0,0,0,0,0,0,0,0,0,0,0,0,0,0,0,0,0,0,0,0,0,0,0,0,0,0,0,0,0,0,0,0,0,0,0,0,0,0,0,139]
[null,"Female 30-34",0,0,0,0,0,0,0,0,0,0,0,0,0,0,0,0,0,0,0,0,0,0,0,0,0,0,0,0,0,0,0,0,0,0,0,0,0,0,0,0,0,0,0,0,0,0,0,0,0,0,0,0,0,140]
[null,"Female 35-39",0,0,0,0,0,0,0,0,0,0,0,0,0,0,0,0,0,0,0,0,0,0,0,0,0,0,0,0,0,0,0,0,0,0,0,0,0,0,0,0,0,0,0,0,0,0,0,0,0,0,0,0,0,141]
[null,"Female 40-44",0,0,0,0,0,0,0,0,0,0,0,0,0,0,0,0,0,0,0,0,0,0,0,0,0,0,0,0,0,0,0,0,0,0,0,0,0,0,0,0,0,0,0,0,0,0,0,0,0,0,0,0,0,142]
[null,"Female 45-49",0,0,0,0,0,0,0,0,0,0,0,0,0,0,0,0,0,0,0,0,0,0,0,0,0,0,0,0,0,0,0,0,0,0,0,0,0,0,0,0,0,0,0,0,0,0,0,0,0,0,0,0,0,143]
[null,"Female 50-54",0,0,0,0,0,0,0,0,0,0,0,0,0,0,0,0,0,0,0,0,0,0,0,0,0,0,0,0,0,0,0,0,0,0,0,0,0,0,0,0,0,0,0,0,0,0,0,0,0,0,0,0,0,144]
[null,"Female 55-59",0,0,0,0,0,0,0,0,0,0,0,0,0,0,0,0,0,0,0,0,0,0,0,0,0,0,0,0,0,0,0,0,0,0,0,0,0,0,0,0,0,0,0,0,0,0,0,0,0,0,0,0,0,145]
[null,"Female 60-64",0,0,0,0,0,0,0,0,0,0,0,0,0,0,0,0,0,0,0,0,0,0,0,0,0,0,0,0,0,0,0,0,0,0,0,0,0,0,0,0,0,0,0,0,0,0,0,0,0,0,0,0,0,146]
[null,"Female 65-69",0,0,0,0,0,0,0,0,0,0,0,0,0,0,0,0,0,0,0,0,0,0,0,0,0,0,0,0,0,0,0,0,0,0,0,0,0,0,0,0,0,0,0,0,0,0,0,0,0,0,0,0,0,147]
[null,"Female 70-74",0,0,0,0,0,0,0,0,0,0,0,0,0,0,0,0,0,0,0,0,0,0,0,0,0,0,0,0,0,0,0,0,0,0,0,0,0,0,0,0,0,0,0,0,0,0,0,0,0,0,0,0,0,148]
[null,"Female 75-79",0,0,0,0,0,0,0,0,0,0,0,0,0,0,0,0,0,0,0,0,0,0,0,0,0,0,0,0,0,0,0,0,0,0,0,0,0,0,0,0,0,0,0,0,0,0,0,0,0,0,0,0,0,149]
[null,"Female 80-84",0,0,0,0,0,0,0,0,0,0,0,0,0,0,0,0,0,0,0,0,0,0,0,0,0,0,0,0,0,0,0,0,0,0,0,0,0,0,0,0,0,0,0,0,0,0,0,0,0,0,0,0,0,150]
[null,"Female 85-89",0,0,0,0,0,0,0,0,0,0,0,0,0,0,0,0,0,0,0,0,0,0,0,0,0,0,0,0,0,0,0,0,0,0,0,0,0,0,0,0,0,0,0,0,0,0,0,0,0,0,0,0,0,151]
[null,"Female 90+",0,0,0,0,0,0,0,0,0,0,0,0,0,0,0,0,0,0,0,0,0,0,0,0,0,0,0,0,0,0,0,0,0,0,0,0,0,0,0,0,0,0,0,0,0,0,0,0,0,0,0,0,0,152]
[null,"Male 0-4",0,0,0,0,0,0,0,0,0,0,0,0,0,0,0,0,0,0,0,0,0,0,0,0,0,0,0,0,0,0,0,0,0,0,0,0,0,0,0,0,0,0,0,0,0,0,0,0,0,0,0,0,0,153]
[null,"Male 5-9",0,0,0,0,0,0,0,0,0,0,0,0,0,0,0,0,0,0,0,0,0,0,0,0,0,0,0,0,0,0,0,0,0,0,0,0,0,0,0,0,0,0,0,0,0,0,0,0,0,0,0,0,0,154]
[null,"Male 10-15",0,0,0,0,0,0,0,0,0,0,0,0,0,0,0,0,0,0,0,0,0,0,0,0,0,0,0,0,0,0,0,0,0,0,0,0,0,0,0,0,0,0,0,0,0,0,0,0,0,0,0,0,0,155]
[null,"Male 16-19",0,0,0,0,0,0,0,0,0,0,0,0,0,0,0,0,0,0,0,0,0,0,0,0,0,0,0,0,0,0,0,0,0,0,0,0,0,0,0,0,0,0,0,0,0,0,0,0,0,0,0,0,0,156]
[null,"Male 20-24",0,0,0,0,0,0,0,0,0,0,0,0,0,0,0,0,0,0,0,0,0,0,0,0,0,0,0,0,0,0,0,0,0,0,0,0,0,0,0,0,0,0,0,0,0,0,0,0,0,0,0,0,0,157]
[null,"Male 25-29",0,0,0,0,0,0,0,0,0,0,0,0,0,0,0,0,0,0,0,0,0,0,0,0,0,0,0,0,0,0,0,0,0,0,0,0,0,0,0,0,0,0,0,0,0,0,0,0,0,0,0,0,0,158]
[null,"Male 30-34",0,0,0,0,0,0,0,0,0,0,0,0,0,0,0,0,0,0,0,0,0,0,0,0,0,0,0,0,0,0,0,0,0,0,0,0,0,0,0,0,0,0,0,0,0,0,0,0,0,0,0,0,0,159]
[null,"Male 35-39",0,0,0,0,0,0,0,0,0,0,0,0,0,0,0,0,0,0,0,0,0,0,0,0,0,0,0,0,0,0,0,0,0,0,0,0,0,0,0,0,0,0,0,0,0,0,0,0,0,0,0,0,0,160]
[null,"Male 40-44",0,0,0,0,0,0,0,0,0,0,0,0,0,0,0,0,0,0,0,0,0,0,0,0,0,0,0,0,0,0,0,0,0,0,0,0,0,0,0,0,0,0,0,0,0,0,0,0,0,0,0,0,0,161]
[null,"Male 45-49",0,0,0,0,0,0,0,0,0,0,0,0,0,0,0,0,0,0,0,0,0,0,0,0,0,0,0,0,0,0,0,0,0,0,0,0,0,0,0,0,0,0,0,0,0,0,0,0,0,0,0,0,0,162]
[null,"Male 50-54",0,0,0,0,0,0,0,0,0,0,0,0,0,0,0,0,0,0,0,0,0,0,0,0,0,0,0,0,0,0,0,0,0,0,0,0,0,0,0,0,0,0,0,0,0,0,0,0,0,0,0,0,0,163]
[null,"Male 55-59",0,0,0,0,0,0,0,0,0,0,0,0,0,0,0,0,0,0,0,0,0,0,0,0,0,0,0,0,0,0,0,0,0,0,0,0,0,0,0,0,0,0,0,0,0,0,0,0,0,0,0,0,0,164]
[null,"Male 60-64",0,0,0,0,0,0,0,0,0,0,0,0,0,0,0,0,0,0,0,0,0,0,0,0,0,0,0,0,0,0,0,0,0,0,0,0,0,0,0,0,0,0,0,0,0,0,0,0,0,0,0,0,0,165]
[null,"Male 65-69",0,0,0,0,0,0,0,0,0,0,0,0,0,0,0,0,0,0,0,0,0,0,0,0,0,0,0,0,0,0,0,0,0,0,0,0,0,0,0,0,0,0,0,0,0,0,0,0,0,0,0,0,0,166]
[null,"Male 70-74",0,0,0,0,0,0,0,0,0,0,0,0,0,0,0,0,0,0,0,0,0,0,0,0,0,0,0,0,0,0,0,0,0,0,0,0,0,0,0,0,0,0,0,0,0,0,0,0,0,0,0,0,0,167]
[null,"Male 75-79",0,0,0,0,0,0,0,0,0,0,0,0,0,0,0,0,0,0,0,0,0,0,0,0,0,0,0,0,0,0,0,0,0,0,0,0,0,0,0,0,0,0,0,0,0,0,0,0,0,0,0,0,0,168]
[null,"Male 80-84",0,0,0,0,0,0,0,0,0,0,0,0,0,0,0,0,0,0,0,0,0,0,0,0,0,0,0,0,0,0,0,0,0,0,0,0,0,0,0,0,0,0,0,0,0,0,0,0,0,0,0,0,0,169]
[null,"Male 85-89",0,0,0,0,0,0,0,0,0,0,0,0,0,0,0,0,0,0,0,0,0,0,0,0,0,0,0,0,0,0,0,0,0,0,0,0,0,0,0,0,0,0,0,0,0,0,0,0,0,0,0,0,0,170]
[null,"Male 90+",0,0,0,0,0,0,0,0,0,0,0,0,0,0,0,0,0,0,0,0,0,0,0,0,0,0,0,0,0,0,0,0,0,0,0,0,0,0,0,0,0,0,0,0,0,0,0,0,0,0,0,0,0,171]
["SIMD Q4","Female 0-4",0,0,0,0,0,0,0,0,0,0,0,0,0,0,0,0,0,0,0,0,0,0,0,0,0,0,0,0,0,0,0,0,0,0,0,0,0,0,0,0,0,0,0,0,0,0,0,0,0,0,0,0,0,172]
[null,"Female 5-9",0,0,0,0,0,0,0,0,0,0,0,0,0,0,0,0,0,0,0,0,0,0,0,0,0,0,0,0,0,0,0,0,0,0,0,0,0,0,0,0,0,0,0,0,0,0,0,0,0,0,0,0,0,173]
[null,"Female 10-15",0,0,0,0,0,0,0,0,0,0,0,0,0,0,0,0,0,0,0,0,0,0,0,0,0,0,0,0,0,0,0,0,0,0,0,0,0,0,0,0,0,0,0,0,0,0,0,0,0,0,0,0,0,174]
[null,"Female 16-19",0,0,0,0,0,0,0,0,0,0,0,0,0,0,0,0,0,0,0,0,0,0,0,0,0,0,0,0,0,0,0,0,0,0,0,0,0,0,0,0,0,0,0,0,0,0,0,0,0,0,0,0,0,175]
[null,"Female 20-24",0,0,0,0,0,0,0,0,0,0,0,0,0,0,0,0,0,0,0,0,0,0,0,0,0,0,0,0,0,0,0,0,0,0,0,0,0,0,0,0,0,0,0,0,0,0,0,0,0,0,0,0,0,176]
[null,"Female 25-29",0,0,0,0,0,0,0,0,0,0,0,0,0,0,0,0,0,0,0,0,0,0,0,0,0,0,0,0,0,0,0,0,0,0,0,0,0,0,0,0,0,0,0,0,0,0,0,0,0,0,0,0,0,177]
[null,"Female 30-34",0,0,0,0,0,0,0,0,0,0,0,0,0,0,0,0,0,0,0,0,0,0,0,0,0,0,0,0,0,0,0,0,0,0,0,0,0,0,0,0,0,0,0,0,0,0,0,0,0,0,0,0,0,178]
[null,"Female 35-39",0,0,0,0,0,0,0,0,0,0,0,0,0,0,0,0,0,0,0,0,0,0,0,0,0,0,0,0,0,0,0,0,0,0,0,0,0,0,0,0,0,0,0,0,0,0,0,0,0,0,0,0,0,179]
[null,"Female 40-44",0,0,0,0,0,0,0,0,0,0,0,0,0,0,0,0,0,0,0,0,0,0,0,0,0,0,0,0,0,0,0,0,0,0,0,0,0,0,0,0,0,0,0,0,0,0,0,0,0,0,0,0,0,180]
[null,"Female 45-49",0,0,0,0,0,0,0,0,0,0,0,0,0,0,0,0,0,0,0,0,0,0,0,0,0,0,0,0,0,0,0,0,0,0,0,0,0,0,0,0,0,0,0,0,0,0,0,0,0,0,0,0,0,181]
[null,"Female 50-54",0,0,0,0,0,0,0,0,0,0,0,0,0,0,0,0,0,0,0,0,0,0,0,0,0,0,0,0,0,0,0,0,0,0,0,0,0,0,0,0,0,0,0,0,0,0,0,0,0,0,0,0,0,182]
[null,"Female 55-59",0,0,0,0,0,0,0,0,0,0,0,0,0,0,0,0,0,0,0,0,0,0,0,0,0,0,0,0,0,0,0,0,0,0,0,0,0,0,0,0,0,0,0,0,0,0,0,0,0,0,0,0,0,183]
[null,"Female 60-64",0,0,0,0,0,0,0,0,0,0,0,0,0,0,0,0,0,0,0,0,0,0,0,0,0,0,0,0,0,0,0,0,0,0,0,0,0,0,0,0,0,0,0,0,0,0,0,0,0,0,0,0,0,184]
[null,"Female 65-69",0,0,0,0,0,0,0,0,0,0,0,0,0,0,0,0,0,0,0,0,0,0,0,0,0,0,0,0,0,0,0,0,0,0,0,0,0,0,0,0,0,0,0,0,0,0,0,0,0,0,0,0,0,185]
[null,"Female 70-74",0,0,0,0,0,0,0,0,0,0,0,0,0,0,0,0,0,0,0,0,0,0,0,0,0,0,0,0,0,0,0,0,0,0,0,0,0,0,0,0,0,0,0,0,0,0,0,0,0,0,0,0,0,186]
[null,"Female 75-79",0,0,0,0,0,0,0,0,0,0,0,0,0,0,0,0,0,0,0,0,0,0,0,0,0,0,0,0,0,0,0,0,0,0,0,0,0,0,0,0,0,0,0,0,0,0,0,0,0,0,0,0,0,187]
[null,"Female 80-84",0,0,0,0,0,0,0,0,0,0,0,0,0,0,0,0,0,0,0,0,0,0,0,0,0,0,0,0,0,0,0,0,0,0,0,0,0,0,0,0,0,0,0,0,0,0,0,0,0,0,0,0,0,188]
[null,"Female 85-89",0,0,0,0,0,0,0,0,0,0,0,0,0,0,0,0,0,0,0,0,0,0,0,0,0,0,0,0,0,0,0,0,0,0,0,0,0,0,0,0,0,0,0,0,0,0,0,0,0,0,0,0,0,189]
[null,"Female 90+",0,0,0,0,0,0,0,0,0,0,0,0,0,0,0,0,0,0,0,0,0,0,0,0,0,0,0,0,0,0,0,0,0,0,0,0,0,0,0,0,0,0,0,0,0,0,0,0,0,0,0,0,0,190]
[null,"Male 0-4",0,0,0,0,0,0,0,0,0,0,0,0,0,0,0,0,0,0,0,0,0,0,0,0,0,0,0,0,0,0,0,0,0,0,0,0,0,0,0,0,0,0,0,0,0,0,0,0,0,0,0,0,0,191]
[null,"Male 5-9",0,0,0,0,0,0,0,0,0,0,0,0,0,0,0,0,0,0,0,0,0,0,0,0,0,0,0,0,0,0,0,0,0,0,0,0,0,0,0,0,0,0,0,0,0,0,0,0,0,0,0,0,0,192]
[null,"Male 10-15",0,0,0,0,0,0,0,0,0,0,0,0,0,0,0,0,0,0,0,0,0,0,0,0,0,0,0,0,0,0,0,0,0,0,0,0,0,0,0,0,0,0,0,0,0,0,0,0,0,0,0,0,0,193]
[null,"Male 16-19",0,0,0,0,0,0,0,0,0,0,0,0,0,0,0,0,0,0,0,0,0,0,0,0,0,0,0,0,0,0,0,0,0,0,0,0,0,0,0,0,0,0,0,0,0,0,0,0,0,0,0,0,0,194]
[null,"Male 20-24",0,0,0,0,0,0,0,0,0,0,0,0,0,0,0,0,0,0,0,0,0,0,0,0,0,0,0,0,0,0,0,0,0,0,0,0,0,0,0,0,0,0,0,0,0,0,0,0,0,0,0,0,0,195]
[null,"Male 25-29",0,0,0,0,0,0,0,0,0,0,0,0,0,0,0,0,0,0,0,0,0,0,0,0,0,0,0,0,0,0,0,0,0,0,0,0,0,0,0,0,0,0,0,0,0,0,0,0,0,0,0,0,0,196]
[null,"Male 30-34",0,0,0,0,0,0,0,0,0,0,0,0,0,0,0,0,0,0,0,0,0,0,0,0,0,0,0,0,0,0,0,0,0,0,0,0,0,0,0,0,0,0,0,0,0,0,0,0,0,0,0,0,0,197]
[null,"Male 35-39",0,0,0,0,0,0,0,0,0,0,0,0,0,0,0,0,0,0,0,0,0,0,0,0,0,0,0,0,0,0,0,0,0,0,0,0,0,0,0,0,0,0,0,0,0,0,0,0,0,0,0,0,0,198]
[null,"Male 40-44",0,0,0,0,0,0,0,0,0,0,0,0,0,0,0,0,0,0,0,0,0,0,0,0,0,0,0,0,0,0,0,0,0,0,0,0,0,0,0,0,0,0,0,0,0,0,0,0,0,0,0,0,0,199]
[null,"Male 45-49",0,0,0,0,0,0,0,0,0,0,0,0,0,0,0,0,0,0,0,0,0,0,0,0,0,0,0,0,0,0,0,0,0,0,0,0,0,0,0,0,0,0,0,0,0,0,0,0,0,0,0,0,0,200]
[null,"Male 50-54",0,0,0,0,0,0,0,0,0,0,0,0,0,0,0,0,0,0,0,0,0,0,0,0,0,0,0,0,0,0,0,0,0,0,0,0,0,0,0,0,0,0,0,0,0,0,0,0,0,0,0,0,0,201]
[null,"Male 55-59",0,0,0,0,0,0,0,0,0,0,0,0,0,0,0,0,0,0,0,0,0,0,0,0,0,0,0,0,0,0,0,0,0,0,0,0,0,0,0,0,0,0,0,0,0,0,0,0,0,0,0,0,0,202]
[null,"Male 60-64",0,0,0,0,0,0,0,0,0,0,0,0,0,0,0,0,0,0,0,0,0,0,0,0,0,0,0,0,0,0,0,0,0,0,0,0,0,0,0,0,0,0,0,0,0,0,0,0,0,0,0,0,0,203]
[null,"Male 65-69",0,0,0,0,0,0,0,0,0,0,0,0,0,0,0,0,0,0,0,0,0,0,0,0,0,0,0,0,0,0,0,0,0,0,0,0,0,0,0,0,0,0,0,0,0,0,0,0,0,0,0,0,0,204]
[null,"Male 70-74",0,0,0,0,0,0,0,0,0,0,0,0,0,0,0,0,0,0,0,0,0,0,0,0,0,0,0,0,0,0,0,0,0,0,0,0,0,0,0,0,0,0,0,0,0,0,0,0,0,0,0,0,0,205]
[null,"Male 75-79",0,0,0,0,0,0,0,0,0,0,0,0,0,0,0,0,0,0,0,0,0,0,0,0,0,0,0,0,0,0,0,0,0,0,0,0,0,0,0,0,0,0,0,0,0,0,0,0,0,0,0,0,0,206]
[null,"Male 80-84",0,0,0,0,0,0,0,0,0,0,0,0,0,0,0,0,0,0,0,0,0,0,0,0,0,0,0,0,0,0,0,0,0,0,0,0,0,0,0,0,0,0,0,0,0,0,0,0,0,0,0,0,0,207]
[null,"Male 85-89",0,0,0,0,0,0,0,0,0,0,0,0,0,0,0,0,0,0,0,0,0,0,0,0,0,0,0,0,0,0,0,0,0,0,0,0,0,0,0,0,0,0,0,0,0,0,0,0,0,0,0,0,0,208]
[null,"Male 90+",0,0,0,0,0,0,0,0,0,0,0,0,0,0,0,0,0,0,0,0,0,0,0,0,0,0,0,0,0,0,0,0,0,0,0,0,0,0,0,0,0,0,0,0,0,0,0,0,0,0,0,0,0,209]
["SIMD Q5 (least deprived)","Female 0-4",0,0,0,0,0,0,0,0,0,0,0,0,0,0,0,0,0,0,0,0,0,0,0,0,0,0,0,0,0,0,0,0,0,0,0,0,0,0,0,0,0,0,0,0,0,0,0,0,0,0,0,0,0,210]
[null,"Female 5-9",0,0,0,0,0,0,0,0,0,0,0,0,0,0,0,0,0,0,0,0,0,0,0,0,0,0,0,0,0,0,0,0,0,0,0,0,0,0,0,0,0,0,0,0,0,0,0,0,0,0,0,0,0,211]
[null,"Female 10-15",0,0,0,0,0,0,0,0,0,0,0,0,0,0,0,0,0,0,0,0,0,0,0,0,0,0,0,0,0,0,0,0,0,0,0,0,0,0,0,0,0,0,0,0,0,0,0,0,0,0,0,0,0,212]
[null,"Female 16-19",0,0,0,0,0,0,0,0,0,0,0,0,0,0,0,0,0,0,0,0,0,0,0,0,0,0,0,0,0,0,0,0,0,0,0,0,0,0,0,0,0,0,0,0,0,0,0,0,0,0,0,0,0,213]
[null,"Female 20-24",0,0,0,0,0,0,0,0,0,0,0,0,0,0,0,0,0,0,0,0,0,0,0,0,0,0,0,0,0,0,0,0,0,0,0,0,0,0,0,0,0,0,0,0,0,0,0,0,0,0,0,0,0,214]
[null,"Female 25-29",0,0,0,0,0,0,0,0,0,0,0,0,0,0,0,0,0,0,0,0,0,0,0,0,0,0,0,0,0,0,0,0,0,0,0,0,0,0,0,0,0,0,0,0,0,0,0,0,0,0,0,0,0,215]
[null,"Female 30-34",0,0,0,0,0,0,0,0,0,0,0,0,0,0,0,0,0,0,0,0,0,0,0,0,0,0,0,0,0,0,0,0,0,0,0,0,0,0,0,0,0,0,0,0,0,0,0,0,0,0,0,0,0,216]
[null,"Female 35-39",0,0,0,0,0,0,0,0,0,0,0,0,0,0,0,0,0,0,0,0,0,0,0,0,0,0,0,0,0,0,0,0,0,0,0,0,0,0,0,0,0,0,0,0,0,0,0,0,0,0,0,0,0,217]
[null,"Female 40-44",0,0,0,0,0,0,0,0,0,0,0,0,0,0,0,0,0,0,0,0,0,0,0,0,0,0,0,0,0,0,0,0,0,0,0,0,0,0,0,0,0,0,0,0,0,0,0,0,0,0,0,0,0,218]
[null,"Female 45-49",0,0,0,0,0,0,0,0,0,0,0,0,0,0,0,0,0,0,0,0,0,0,0,0,0,0,0,0,0,0,0,0,0,0,0,0,0,0,0,0,0,0,0,0,0,0,0,0,0,0,0,0,0,219]
[null,"Female 50-54",0,0,0,0,0,0,0,0,0,0,0,0,0,0,0,0,0,0,0,0,0,0,0,0,0,0,0,0,0,0,0,0,0,0,0,0,0,0,0,0,0,0,0,0,0,0,0,0,0,0,0,0,0,220]
[null,"Female 55-59",0,0,0,0,0,0,0,0,0,0,0,0,0,0,0,0,0,0,0,0,0,0,0,0,0,0,0,0,0,0,0,0,0,0,0,0,0,0,0,0,0,0,0,0,0,0,0,0,0,0,0,0,0,221]
[null,"Female 60-64",0,0,0,0,0,0,0,0,0,0,0,0,0,0,0,0,0,0,0,0,0,0,0,0,0,0,0,0,0,0,0,0,0,0,0,0,0,0,0,0,0,0,0,0,0,0,0,0,0,0,0,0,0,222]
[null,"Female 65-69",0,0,0,0,0,0,0,0,0,0,0,0,0,0,0,0,0,0,0,0,0,0,0,0,0,0,0,0,0,0,0,0,0,0,0,0,0,0,0,0,0,0,0,0,0,0,0,0,0,0,0,0,0,223]
[null,"Female 70-74",0,0,0,0,0,0,0,0,0,0,0,0,0,0,0,0,0,0,0,0,0,0,0,0,0,0,0,0,0,0,0,0,0,0,0,0,0,0,0,0,0,0,0,0,0,0,0,0,0,0,0,0,0,224]
[null,"Female 75-79",0,0,0,0,0,0,0,0,0,0,0,0,0,0,0,0,0,0,0,0,0,0,0,0,0,0,0,0,0,0,0,0,0,0,0,0,0,0,0,0,0,0,0,0,0,0,0,0,0,0,0,0,0,225]
[null,"Female 80-84",0,0,0,0,0,0,0,0,0,0,0,0,0,0,0,0,0,0,0,0,0,0,0,0,0,0,0,0,0,0,0,0,0,0,0,0,0,0,0,0,0,0,0,0,0,0,0,0,0,0,0,0,0,226]
[null,"Female 85-89",0,0,0,0,0,0,0,0,0,0,0,0,0,0,0,0,0,0,0,0,0,0,0,0,0,0,0,0,0,0,0,0,0,0,0,0,0,0,0,0,0,0,0,0,0,0,0,0,0,0,0,0,0,227]
[null,"Female 90+",0,0,0,0,0,0,0,0,0,0,0,0,0,0,0,0,0,0,0,0,0,0,0,0,0,0,0,0,0,0,0,0,0,0,0,0,0,0,0,0,0,0,0,0,0,0,0,0,0,0,0,0,0,228]
[null,"Male 0-4",0,0,0,0,0,0,0,0,0,0,0,0,0,0,0,0,0,0,0,0,0,0,0,0,0,0,0,0,0,0,0,0,0,0,0,0,0,0,0,0,0,0,0,0,0,0,0,0,0,0,0,0,0,229]
[null,"Male 5-9",0,0,0,0,0,0,0,0,0,0,0,0,0,0,0,0,0,0,0,0,0,0,0,0,0,0,0,0,0,0,0,0,0,0,0,0,0,0,0,0,0,0,0,0,0,0,0,0,0,0,0,0,0,230]
[null,"Male 10-15",0,0,0,0,0,0,0,0,0,0,0,0,0,0,0,0,0,0,0,0,0,0,0,0,0,0,0,0,0,0,0,0,0,0,0,0,0,0,0,0,0,0,0,0,0,0,0,0,0,0,0,0,0,231]
[null,"Male 16-19",0,0,0,0,0,0,0,0,0,0,0,0,0,0,0,0,0,0,0,0,0,0,0,0,0,0,0,0,0,0,0,0,0,0,0,0,0,0,0,0,0,0,0,0,0,0,0,0,0,0,0,0,0,232]
[null,"Male 20-24",0,0,0,0,0,0,0,0,0,0,0,0,0,0,0,0,0,0,0,0,0,0,0,0,0,0,0,0,0,0,0,0,0,0,0,0,0,0,0,0,0,0,0,0,0,0,0,0,0,0,0,0,0,233]
[null,"Male 25-29",0,0,0,0,0,0,0,0,0,0,0,0,0,0,0,0,0,0,0,0,0,0,0,0,0,0,0,0,0,0,0,0,0,0,0,0,0,0,0,0,0,0,0,0,0,0,0,0,0,0,0,0,0,234]
[null,"Male 30-34",0,0,0,0,0,0,0,0,0,0,0,0,0,0,0,0,0,0,0,0,0,0,0,0,0,0,0,0,0,0,0,0,0,0,0,0,0,0,0,0,0,0,0,0,0,0,0,0,0,0,0,0,0,235]
[null,"Male 35-39",0,0,0,0,0,0,0,0,0,0,0,0,0,0,0,0,0,0,0,0,0,0,0,0,0,0,0,0,0,0,0,0,0,0,0,0,0,0,0,0,0,0,0,0,0,0,0,0,0,0,0,0,0,236]
[null,"Male 40-44",0,0,0,0,0,0,0,0,0,0,0,0,0,0,0,0,0,0,0,0,0,0,0,0,0,0,0,0,0,0,0,0,0,0,0,0,0,0,0,0,0,0,0,0,0,0,0,0,0,0,0,0,0,237]
[null,"Male 45-49",0,0,0,0,0,0,0,0,0,0,0,0,0,0,0,0,0,0,0,0,0,0,0,0,0,0,0,0,0,0,0,0,0,0,0,0,0,0,0,0,0,0,0,0,0,0,0,0,0,0,0,0,0,238]
[null,"Male 50-54",0,0,0,0,0,0,0,0,0,0,0,0,0,0,0,0,0,0,0,0,0,0,0,0,0,0,0,0,0,0,0,0,0,0,0,0,0,0,0,0,0,0,0,0,0,0,0,0,0,0,0,0,0,239]
[null,"Male 55-59",0,0,0,0,0,0,0,0,0,0,0,0,0,0,0,0,0,0,0,0,0,0,0,0,0,0,0,0,0,0,0,0,0,0,0,0,0,0,0,0,0,0,0,0,0,0,0,0,0,0,0,0,0,240]
[null,"Male 60-64",0,0,0,0,0,0,0,0,0,0,0,0,0,0,0,0,0,0,0,0,0,0,0,0,0,0,0,0,0,0,0,0,0,0,0,0,0,0,0,0,0,0,0,0,0,0,0,0,0,0,0,0,0,241]
[null,"Male 65-69",0,0,0,0,0,0,0,0,0,0,0,0,0,0,0,0,0,0,0,0,0,0,0,0,0,0,0,0,0,0,0,0,0,0,0,0,0,0,0,0,0,0,0,0,0,0,0,0,0,0,0,0,0,242]
[null,"Male 70-74",0,0,0,0,0,0,0,0,0,0,0,0,0,0,0,0,0,0,0,0,0,0,0,0,0,0,0,0,0,0,0,0,0,0,0,0,0,0,0,0,0,0,0,0,0,0,0,0,0,0,0,0,0,243]
[null,"Male 75-79",0,0,0,0,0,0,0,0,0,0,0,0,0,0,0,0,0,0,0,0,0,0,0,0,0,0,0,0,0,0,0,0,0,0,0,0,0,0,0,0,0,0,0,0,0,0,0,0,0,0,0,0,0,244]
[null,"Male 80-84",0,0,0,0,0,0,0,0,0,0,0,0,0,0,0,0,0,0,0,0,0,0,0,0,0,0,0,0,0,0,0,0,0,0,0,0,0,0,0,0,0,0,0,0,0,0,0,0,0,0,0,0,0,245]
[null,"Male 85-89",0,0,0,0,0,0,0,0,0,0,0,0,0,0,0,0,0,0,0,0,0,0,0,0,0,0,0,0,0,0,0,0,0,0,0,0,0,0,0,0,0,0,0,0,0,0,0,0,0,0,0,0,0,246]
[null,"Male 90+",0,0,0,0,0,0,0,0,0,0,0,0,0,0,0,0,0,0,0,0,0,0,0,0,0,0,0,0,0,0,0,0,0,0,0,0,0,0,0,0,0,0,0,0,0,0,0,0,0,0,0,0,0,247]

{"sheet":"Pop2016fractionQ1&2","index":16,"n_rows":249,"n_cols":56,"rows_kept":249,"cut":false,"hidden":true,"merged":[]}
["Q1 & Q2 subgroup's fraction of area's 2016 Q1 + Q2 population (16+ only)"]
[]
["SIMD","group","Aberdeen City Local Authority","Aberdeen City Region Deal","Aberdeenshire Local Authority","Angus Local Authority","Argyll & Bute Local Authority","Ayrshire & Arran Health Board","Borders Health Board","Clackmannanshire & Stirling IJB","Clackmannanshire Local Authority","Dumfries & Galloway Health Board","Dumfries & Galloway Local Authority","Dundee City Local Authority","East Ayrshire Local Authority","East Dunbartonshire Local Authority","East Lothian Local Authority","East Renfrewshire Local Authority","Edinburgh & SE Scotland City Region Deal","Edinburgh, City of Local Authority","Eilean Siar Local Authority","Falkirk Local Authority","Fife Health Board","Fife Local Authority","Forth Valley Health Board","Glasgow City Local Authority","Glasgow City Region Deal","Grampian Health Board","Greater Glasgow & Clyde Health Board","Highland Health Board","Highland Local Authority","Inverclyde Local Authority","Inverness & Highland City Region Deal","Lanarkshire Health Board","Lothian Health Board","Midlothian Local Authority","Moray Local Authority","North Ayrshire Local Authority","North Lanarkshire Local Authority","Orkney Health Board","Orkney Islands Local Authority","Perth & Kinross Local Authority","Renfrewshire Local Authority","Scotland","Scottish Borders Local Authority","Shetland Health Board","Shetland Islands Local Authority","South Ayrshire Local Authority","South Lanarkshire Local Authority","Stirling Local Authority","Tay Cities Region Deal ","Tayside Health Board","West Dunbartonshire Local Authority","West Lothian Local Authority","Western Isles Health Board",1]
[null,null,"popS12000033","Aber_deal","popS12000034","popS12000041","popS12000035","popS08000015","popS08000016","ClacksStirIJB","popS12000005","popS08000017","popS12000006","popS12000042","popS12000008","popS12000045","popS12000010","popS12000011","EdinSE_deal","popS12000036","popS12000013","popS12000014","popS08000018","popS12000015","popS08000019","popS12000046","GClyde_deal","popS08000020","popS08000021","popS08000022","popS12000017","popS12000018","Inver_deal","popS08000023","popS08000024","popS12000019","popS12000020","popS12000021","popS12000044","popS08000025","popS12000023","popS12000024","popS12000038","popS00000001","popS12000026","popS08000026","popS12000027","popS12000028","popS12000029","popS12000030","Tay_deal","popS08000027","popS12000039","popS12000040","popS08000028",2]
["All quintiles","16+ Males and Females",null,null,null,null,null,null,null,null,null,null,null,null,null,null,null,null,null,null,null,null,null,null,null,null,null,null,null,null,null,null,null,null,null,null,null,null,null,null,null,null,null,null,null,null,null,null,null,null,null,null,null,null,null,3]
["Q1 and Q2","16+ Males and Females",{"$f":"'Population 2016'!R6/'Population 2016'!R$6","v":1},{"$f":"'Population 2016'!AX6/'Population 2016'!AX$6","v":1},{"$f":"'Population 2016'!S6/'Population 2016'!S$6","v":1},{"$f":"'Population 2016'!T6/'Population 2016'!T$6","v":1},{"$f":"'Population 2016'!U6/'Population 2016'!U$6","v":1},{"$f":"'Population 2016'!D6/'Population 2016'!D$6","v":1},{"$f":"'Population 2016'!E6/'Population 2016'!E$6","v":1},{"$f":"'Population 2016'!BC6/'Population 2016'!BC$6","v":1},{"$f":"'Population 2016'!V6/'Population 2016'!V$6","v":1},{"$f":"'Population 2016'!F6/'Population 2016'!F$6","v":1},{"$f":"'Population 2016'!W6/'Population 2016'!W$6","v":1},{"$f":"'Population 2016'!X6/'Population 2016'!X$6","v":1},{"$f":"'Population 2016'!Y6/'Population 2016'!Y$6","v":1},{"$f":"'Population 2016'!Z6/'Population 2016'!Z$6","v":1},{"$f":"'Population 2016'!AA6/'Population 2016'!AA$6","v":1},{"$f":"'Population 2016'!AB6/'Population 2016'!AB$6","v":1},{"$f":"'Population 2016'!AY6/'Population 2016'!AY$6","v":1},{"$f":"'Population 2016'!AC6/'Population 2016'!AC$6","v":1},{"$f":"'Population 2016'!AD6/'Population 2016'!AD$6","v":1},{"$f":"'Population 2016'!AE6/'Population 2016'!AE$6","v":1},{"$f":"'Population 2016'!G6/'Population 2016'!G$6","v":1},{"$f":"'Population 2016'!AF6/'Population 2016'!AF$6","v":1},{"$f":"'Population 2016'!H6/'Population 2016'!H$6","v":1},{"$f":"'Population 2016'!AG6/'Population 2016'!AG$6","v":1},{"$f":"'Population 2016'!AZ6/'Population 2016'!AZ$6","v":1},{"$f":"'Population 2016'!I6/'Population 2016'!I$6","v":1},{"$f":"'Population 2016'!J6/'Population 2016'!J$6","v":1},{"$f":"'Population 2016'!K6/'Population 2016'!K$6","v":1},{"$f":"'Population 2016'!AH6/'Population 2016'!AH$6","v":1},{"$f":"'Population 2016'!AI6/'Population 2016'!AI$6","v":1},{"$f":"'Population 2016'!BA6/'Population 2016'!BA$6","v":1},{"$f":"'Population 2016'!L6/'Population 2016'!L$6","v":1},{"$f":"'Population 2016'!M6/'Population 2016'!M$6","v":1},{"$f":"'Population 2016'!AJ6/'Population 2016'!AJ$6","v":1},{"$f":"'Population 2016'!AK6/'Population 2016'!AK$6","v":1},{"$f":"'Population 2016'!AL6/'Population 2016'!AL$6","v":1},{"$f":"'Population 2016'!AM6/'Population 2016'!AM$6","v":1},{"$f":"'Population 2016'!N6/'Population 2016'!N$6","v":1},{"$f":"'Population 2016'!AN6/'Population 2016'!AN$6","v":1},{"$f":"'Population 2016'!AO6/'Population 2016'!AO$6","v":1},{"$f":"'Population 2016'!AP6/'Population 2016'!AP$6","v":1},{"$f":"'Population 2016'!C6/'Population 2016'!C$6","v":1},{"$f":"'Population 2016'!AQ6/'Population 2016'!AQ$6","v":1},{"$f":"'Population 2016'!O6/'Population 2016'!O$6","v":1},{"$f":"'Population 2016'!AR6/'Population 2016'!AR$6","v":1},{"$f":"'Population 2016'!AS6/'Population 2016'!AS$6","v":1},{"$f":"'Population 2016'!AT6/'Population 2016'!AT$6","v":1},{"$f":"'Population 2016'!AU6/'Population 2016'!AU$6","v":1},{"$f":"'Population 2016'!BB6/'Population 2016'!BB$6","v":1},{"$f":"'Population 2016'!P6/'Population 2016'!P$6","v":1},{"$f":"'Population 2016'!AV6/'Population 2016'!AV$6","v":1},{"$f":"'Population 2016'!AW6/'Population 2016'!AW$6","v":1},{"$f":"'Population 2016'!Q6/'Population 2016'!Q$6","v":1},4]
["SIMD Q1 (most deprived)","16+ Males and Females",null,null,null,null,null,null,null,null,null,null,null,null,null,null,null,null,null,null,null,null,null,null,null,null,null,null,null,null,null,null,null,null,null,null,null,null,null,null,null,null,null,null,null,null,null,null,null,null,null,null,null,null,null,5]
["SIMD Q2",null,null,null,null,null,null,null,null,null,null,null,null,null,null,null,null,null,null,null,null,null,null,null,null,null,null,null,null,null,null,null,null,null,null,null,null,null,null,null,null,null,null,null,null,null,null,null,null,null,null,null,null,null,null,6]
["SIMD Q3",null,null,null,null,null,null,null,null,null,null,null,null,null,null,null,null,null,null,null,null,null,null,null,null,null,null,null,null,null,null,null,null,null,null,null,null,null,null,null,null,null,null,null,null,null,null,null,null,null,null,null,null,null,null,7]
["SIMD Q4",null,null,null,null,null,null,null,null,null,null,null,null,null,null,null,null,null,null,null,null,null,null,null,null,null,null,null,null,null,null,null,null,null,null,null,null,null,null,null,null,null,null,null,null,null,null,null,null,null,null,null,null,null,null,8]
["SIMD Q5 (least deprived)",null,null,null,null,null,null,null,null,null,null,null,null,null,null,null,null,null,null,null,null,null,null,null,null,null,null,null,null,null,null,null,null,null,null,null,null,null,null,null,null,null,null,null,null,null,null,null,null,null,null,null,null,null,null,9]
["SIMD Q1 (most deprived)","16+ Females",null,null,null,null,null,null,null,null,null,null,null,null,null,null,null,null,null,null,null,null,null,null,null,null,null,null,null,null,null,null,null,null,null,null,null,null,null,null,null,null,null,null,null,null,null,null,null,null,null,null,null,null,null,10]
["SIMD Q2",null,null,null,null,null,null,null,null,null,null,null,null,null,null,null,null,null,null,null,null,null,null,null,null,null,null,null,null,null,null,null,null,null,null,null,null,null,null,null,null,null,null,null,null,null,null,null,null,null,null,null,null,null,null,11]
["SIMD Q3",null,null,null,null,null,null,null,null,null,null,null,null,null,null,null,null,null,null,null,null,null,null,null,null,null,null,null,null,null,null,null,null,null,null,null,null,null,null,null,null,null,null,null,null,null,null,null,null,null,null,null,null,null,null,12]
["SIMD Q4",null,null,null,null,null,null,null,null,null,null,null,null,null,null,null,null,null,null,null,null,null,null,null,null,null,null,null,null,null,null,null,null,null,null,null,null,null,null,null,null,null,null,null,null,null,null,null,null,null,null,null,null,null,null,13]
["SIMD Q5 (least deprived)",null,null,null,null,null,null,null,null,null,null,null,null,null,null,null,null,null,null,null,null,null,null,null,null,null,null,null,null,null,null,null,null,null,null,null,null,null,null,null,null,null,null,null,null,null,null,null,null,null,null,null,null,null,null,14]
["SIMD Q1 (most deprived)","16+ Males",null,null,null,null,null,null,null,null,null,null,null,null,null,null,null,null,null,null,null,null,null,null,null,null,null,null,null,null,null,null,null,null,null,null,null,null,null,null,null,null,null,null,null,null,null,null,null,null,null,null,null,null,null,15]
["SIMD Q2",null,null,null,null,null,null,null,null,null,null,null,null,null,null,null,null,null,null,null,null,null,null,null,null,null,null,null,null,null,null,null,null,null,null,null,null,null,null,null,null,null,null,null,null,null,null,null,null,null,null,null,null,null,null,16]
["SIMD Q3",null,null,null,null,null,null,null,null,null,null,null,null,null,null,null,null,null,null,null,null,null,null,null,null,null,null,null,null,null,null,null,null,null,null,null,null,null,null,null,null,null,null,null,null,null,null,null,null,null,null,null,null,null,null,17]
["SIMD Q4",null,null,null,null,null,null,null,null,null,null,null,null,null,null,null,null,null,null,null,null,null,null,null,null,null,null,null,null,null,null,null,null,null,null,null,null,null,null,null,null,null,null,null,null,null,null,null,null,null,null,null,null,null,null,18]
["SIMD Q5 (least deprived)",null,null,null,null,null,null,null,null,null,null,null,null,null,null,null,null,null,null,null,null,null,null,null,null,null,null,null,null,null,null,null,null,null,null,null,null,null,null,null,null,null,null,null,null,null,null,null,null,null,null,null,null,null,null,19]
["All quintiles","Female 0-4",null,null,null,null,null,null,null,null,null,null,null,null,null,null,null,null,null,null,null,null,null,null,null,null,null,null,null,null,null,null,null,null,null,null,null,null,null,null,null,null,null,null,null,null,null,null,null,null,null,null,null,null,null,20]
[null,"Female 5-9",null,null,null,null,null,null,null,null,null,null,null,null,null,null,null,null,null,null,null,null,null,null,null,null,null,null,null,null,null,null,null,null,null,null,null,null,null,null,null,null,null,null,null,null,null,null,null,null,null,null,null,null,null,21]
[null,"Female 10-15",null,null,null,null,null,null,null,null,null,null,null,null,null,null,null,null,null,null,null,null,null,null,null,null,null,null,null,null,null,null,null,null,null,null,null,null,null,null,null,null,null,null,null,null,null,null,null,null,null,null,null,null,null,22]
[null,"Female 16-19",null,null,null,null,null,null,null,null,null,null,null,null,null,null,null,null,null,null,null,null,null,null,null,null,null,null,null,null,null,null,null,null,null,null,null,null,null,null,null,null,null,null,null,null,null,null,null,null,null,null,null,null,null,23]
[null,"Female 20-24",null,null,null,null,null,null,null,null,null,null,null,null,null,null,null,null,null,null,null,null,null,null,null,null,null,null,null,null,null,null,null,null,null,null,null,null,null,null,null,null,null,null,null,null,null,null,null,null,null,null,null,null,null,24]
[null,"Female 25-29",null,null,null,null,null,null,null,null,null,null,null,null,null,null,null,null,null,null,null,null,null,null,null,null,null,null,null,null,null,null,null,null,null,null,null,null,null,null,null,null,null,null,null,null,null,null,null,null,null,null,null,null,null,25]
[null,"Female 30-34",null,null,null,null,null,null,null,null,null,null,null,null,null,null,null,null,null,null,null,null,null,null,null,null,null,null,null,null,null,null,null,null,null,null,null,null,null,null,null,null,null,null,null,null,null,null,null,null,null,null,null,null,null,26]
[null,"Female 35-39",null,null,null,null,null,null,null,null,null,null,null,null,null,null,null,null,null,null,null,null,null,null,null,null,null,null,null,null,null,null,null,null,null,null,null,null,null,null,null,null,null,null,null,null,null,null,null,null,null,null,null,null,null,27]
[null,"Female 40-44",null,null,null,null,null,null,null,null,null,null,null,null,null,null,null,null,null,null,null,null,null,null,null,null,null,null,null,null,null,null,null,null,null,null,null,null,null,null,null,null,null,null,null,null,null,null,null,null,null,null,null,null,null,28]
[null,"Female 45-49",null,null,null,null,null,null,null,null,null,null,null,null,null,null,null,null,null,null,null,null,null,null,null,null,null,null,null,null,null,null,null,null,null,null,null,null,null,null,null,null,null,null,null,null,null,null,null,null,null,null,null,null,null,29]
[null,"Female 50-54",null,null,null,null,null,null,null,null,null,null,null,null,null,null,null,null,null,null,null,null,null,null,null,null,null,null,null,null,null,null,null,null,null,null,null,null,null,null,null,null,null,null,null,null,null,null,null,null,null,null,null,null,null,30]
[null,"Female 55-59",null,null,null,null,null,null,null,null,null,null,null,null,null,null,null,null,null,null,null,null,null,null,null,null,null,null,null,null,null,null,null,null,null,null,null,null,null,null,null,null,null,null,null,null,null,null,null,null,null,null,null,null,null,31]
[null,"Female 60-64",null,null,null,null,null,null,null,null,null,null,null,null,null,null,null,null,null,null,null,null,null,null,null,null,null,null,null,null,null,null,null,null,null,null,null,null,null,null,null,null,null,null,null,null,null,null,null,null,null,null,null,null,null,32]
[null,"Female 65-69",null,null,null,null,null,null,null,null,null,null,null,null,null,null,null,null,null,null,null,null,null,null,null,null,null,null,null,null,null,null,null,null,null,null,null,null,null,null,null,null,null,null,null,null,null,null,null,null,null,null,null,null,null,33]
[null,"Female 70-74",null,null,null,null,null,null,null,null,null,null,null,null,null,null,null,null,null,null,null,null,null,null,null,null,null,null,null,null,null,null,null,null,null,null,null,null,null,null,null,null,null,null,null,null,null,null,null,null,null,null,null,null,null,34]
[null,"Female 75-79",null,null,null,null,null,null,null,null,null,null,null,null,null,null,null,null,null,null,null,null,null,null,null,null,null,null,null,null,null,null,null,null,null,null,null,null,null,null,null,null,null,null,null,null,null,null,null,null,null,null,null,null,null,35]
[null,"Female 80-84",null,null,null,null,null,null,null,null,null,null,null,null,null,null,null,null,null,null,null,null,null,null,null,null,null,null,null,null,null,null,null,null,null,null,null,null,null,null,null,null,null,null,null,null,null,null,null,null,null,null,null,null,null,36]
[null,"Female 85-89",null,null,null,null,null,null,null,null,null,null,null,null,null,null,null,null,null,null,null,null,null,null,null,null,null,null,null,null,null,null,null,null,null,null,null,null,null,null,null,null,null,null,null,null,null,null,null,null,null,null,null,null,null,37]
[null,"Female 90+",null,null,null,null,null,null,null,null,null,null,null,null,null,null,null,null,null,null,null,null,null,null,null,null,null,null,null,null,null,null,null,null,null,null,null,null,null,null,null,null,null,null,null,null,null,null,null,null,null,null,null,null,null,38]
[null,"Male 0-4",null,null,null,null,null,null,null,null,null,null,null,null,null,null,null,null,null,null,null,null,null,null,null,null,null,null,null,null,null,null,null,null,null,null,null,null,null,null,null,null,null,null,null,null,null,null,null,null,null,null,null,null,null,39]
[null,"Male 5-9",null,null,null,null,null,null,null,null,null,null,null,null,null,null,null,null,null,null,null,null,null,null,null,null,null,null,null,null,null,null,null,null,null,null,null,null,null,null,null,null,null,null,null,null,null,null,null,null,null,null,null,null,null,40]
[null,"Male 10-15",null,null,null,null,null,null,null,null,null,null,null,null,null,null,null,null,null,null,null,null,null,null,null,null,null,null,null,null,null,null,null,null,null,null,null,null,null,null,null,null,null,null,null,null,null,null,null,null,null,null,null,null,null,41]
[null,"Male 16-19",null,null,null,null,null,null,null,null,null,null,null,null,null,null,null,null,null,null,null,null,null,null,null,null,null,null,null,null,null,null,null,null,null,null,null,null,null,null,null,null,null,null,null,null,null,null,null,null,null,null,null,null,null,42]
[null,"Male 20-24",null,null,null,null,null,null,null,null,null,null,null,null,null,null,null,null,null,null,null,null,null,null,null,null,null,null,null,null,null,null,null,null,null,null,null,null,null,null,null,null,null,null,null,null,null,null,null,null,null,null,null,null,null,43]
[null,"Male 25-29",null,null,null,null,null,null,null,null,null,null,null,null,null,null,null,null,null,null,null,null,null,null,null,null,null,null,null,null,null,null,null,null,null,null,null,null,null,null,null,null,null,null,null,null,null,null,null,null,null,null,null,null,null,44]
[null,"Male 30-34",null,null,null,null,null,null,null,null,null,null,null,null,null,null,null,null,null,null,null,null,null,null,null,null,null,null,null,null,null,null,null,null,null,null,null,null,null,null,null,null,null,null,null,null,null,null,null,null,null,null,null,null,null,45]
[null,"Male 35-39",null,null,null,null,null,null,null,null,null,null,null,null,null,null,null,null,null,null,null,null,null,null,null,null,null,null,null,null,null,null,null,null,null,null,null,null,null,null,null,null,null,null,null,null,null,null,null,null,null,null,null,null,null,46]
[null,"Male 40-44",null,null,null,null,null,null,null,null,null,null,null,null,null,null,null,null,null,null,null,null,null,null,null,null,null,null,null,null,null,null,null,null,null,null,null,null,null,null,null,null,null,null,null,null,null,null,null,null,null,null,null,null,null,47]
[null,"Male 45-49",null,null,null,null,null,null,null,null,null,null,null,null,null,null,null,null,null,null,null,null,null,null,null,null,null,null,null,null,null,null,null,null,null,null,null,null,null,null,null,null,null,null,null,null,null,null,null,null,null,null,null,null,null,48]
[null,"Male 50-54",null,null,null,null,null,null,null,null,null,null,null,null,null,null,null,null,null,null,null,null,null,null,null,null,null,null,null,null,null,null,null,null,null,null,null,null,null,null,null,null,null,null,null,null,null,null,null,null,null,null,null,null,null,49]
[null,"Male 55-59",null,null,null,null,null,null,null,null,null,null,null,null,null,null,null,null,null,null,null,null,null,null,null,null,null,null,null,null,null,null,null,null,null,null,null,null,null,null,null,null,null,null,null,null,null,null,null,null,null,null,null,null,null,50]
[null,"Male 60-64",null,null,null,null,null,null,null,null,null,null,null,null,null,null,null,null,null,null,null,null,null,null,null,null,null,null,null,null,null,null,null,null,null,null,null,null,null,null,null,null,null,null,null,null,null,null,null,null,null,null,null,null,null,51]
[null,"Male 65-69",null,null,null,null,null,null,null,null,null,null,null,null,null,null,null,null,null,null,null,null,null,null,null,null,null,null,null,null,null,null,null,null,null,null,null,null,null,null,null,null,null,null,null,null,null,null,null,null,null,null,null,null,null,52]
[null,"Male 70-74",null,null,null,null,null,null,null,null,null,null,null,null,null,null,null,null,null,null,null,null,null,null,null,null,null,null,null,null,null,null,null,null,null,null,null,null,null,null,null,null,null,null,null,null,null,null,null,null,null,null,null,null,null,53]
[null,"Male 75-79",null,null,null,null,null,null,null,null,null,null,null,null,null,null,null,null,null,null,null,null,null,null,null,null,null,null,null,null,null,null,null,null,null,null,null,null,null,null,null,null,null,null,null,null,null,null,null,null,null,null,null,null,null,54]
[null,"Male 80-84",null,null,null,null,null,null,null,null,null,null,null,null,null,null,null,null,null,null,null,null,null,null,null,null,null,null,null,null,null,null,null,null,null,null,null,null,null,null,null,null,null,null,null,null,null,null,null,null,null,null,null,null,null,55]
[null,"Male 85-89",null,null,null,null,null,null,null,null,null,null,null,null,null,null,null,null,null,null,null,null,null,null,null,null,null,null,null,null,null,null,null,null,null,null,null,null,null,null,null,null,null,null,null,null,null,null,null,null,null,null,null,null,null,56]
[null,"Male 90+",null,null,null,null,null,null,null,null,null,null,null,null,null,null,null,null,null,null,null,null,null,null,null,null,null,null,null,null,null,null,null,null,null,null,null,null,null,null,null,null,null,null,null,null,null,null,null,null,null,null,null,null,null,57]
["SIMD Q1 (most deprived)","Female 0-4",{"$f":"'Population 2016'!C60/'Population 2016'!C$6","v":0},{"$f":"'Population 2016'!D60/'Population 2016'!D$6","v":0},{"$f":"'Population 2016'!E60/'Population 2016'!E$6","v":0},{"$f":"'Population 2016'!F60/'Population 2016'!F$6","v":0},{"$f":"'Population 2016'!G60/'Population 2016'!G$6","v":0},{"$f":"'Population 2016'!H60/'Population 2016'!H$6","v":0},{"$f":"'Population 2016'!I60/'Population 2016'!I$6","v":0},{"$f":"'Population 2016'!J60/'Population 2016'!J$6","v":0},{"$f":"'Population 2016'!K60/'Population 2016'!K$6","v":0},{"$f":"'Population 2016'!L60/'Population 2016'!L$6","v":0},{"$f":"'Population 2016'!M60/'Population 2016'!M$6","v":0},{"$f":"'Population 2016'!N60/'Population 2016'!N$6","v":0},{"$f":"'Population 2016'!O60/'Population 2016'!O$6","v":0},{"$f":"'Population 2016'!P60/'Population 2016'!P$6","v":0},{"$f":"'Population 2016'!Q60/'Population 2016'!Q$6","v":0},{"$f":"'Population 2016'!R60/'Population 2016'!R$6","v":0},{"$f":"'Population 2016'!S60/'Population 2016'!S$6","v":0},{"$f":"'Population 2016'!T60/'Population 2016'!T$6","v":0},{"$f":"'Population 2016'!U60/'Population 2016'!U$6","v":0},{"$f":"'Population 2016'!V60/'Population 2016'!V$6","v":0},{"$f":"'Population 2016'!W60/'Population 2016'!W$6","v":0},{"$f":"'Population 2016'!X60/'Population 2016'!X$6","v":0},{"$f":"'Population 2016'!Y60/'Population 2016'!Y$6","v":0},{"$f":"'Population 2016'!Z60/'Population 2016'!Z$6","v":0},{"$f":"'Population 2016'!AA60/'Population 2016'!AA$6","v":0},{"$f":"'Population 2016'!AB60/'Population 2016'!AB$6","v":0},{"$f":"'Population 2016'!AC60/'Population 2016'!AC$6","v":0},{"$f":"'Population 2016'!AD60/'Population 2016'!AD$6","v":0},{"$f":"'Population 2016'!AE60/'Population 2016'!AE$6","v":0},{"$f":"'Population 2016'!AF60/'Population 2016'!AF$6","v":0},{"$f":"'Population 2016'!AG60/'Population 2016'!AG$6","v":0},{"$f":"'Population 2016'!AH60/'Population 2016'!AH$6","v":0},{"$f":"'Population 2016'!AI60/'Population 2016'!AI$6","v":0},{"$f":"'Population 2016'!AJ60/'Population 2016'!AJ$6","v":0},{"$f":"'Population 2016'!AK60/'Population 2016'!AK$6","v":0},{"$f":"'Population 2016'!AL60/'Population 2016'!AL$6","v":0},{"$f":"'Population 2016'!AM60/'Population 2016'!AM$6","v":0},{"$f":"'Population 2016'!AN60/'Population 2016'!AN$6","v":0},{"$f":"'Population 2016'!AO60/'Population 2016'!AO$6","v":0},{"$f":"'Population 2016'!AP60/'Population 2016'!AP$6","v":0},{"$f":"'Population 2016'!AQ60/'Population 2016'!AQ$6","v":0},{"$f":"'Population 2016'!AR60/'Population 2016'!AR$6","v":0},{"$f":"'Population 2016'!AS60/'Population 2016'!AS$6","v":0},{"$f":"'Population 2016'!AT60/'Population 2016'!AT$6","v":0},{"$f":"'Population 2016'!AU60/'Population 2016'!AU$6","v":0},{"$f":"'Population 2016'!AV60/'Population 2016'!AV$6","v":0},{"$f":"'Population 2016'!AW60/'Population 2016'!AW$6","v":0},{"$f":"'Population 2016'!AX60/'Population 2016'!AX$6","v":0},{"$f":"'Population 2016'!AY60/'Population 2016'!AY$6","v":0},{"$f":"'Population 2016'!AZ60/'Population 2016'!AZ$6","v":0},{"$f":"'Population 2016'!BA60/'Population 2016'!BA$6","v":0},{"$f":"'Population 2016'!BB60/'Population 2016'!BB$6","v":0},{"$f":"'Population 2016'!BC60/'Population 2016'!BC$6","v":0},58]
[null,"Female 5-9",{"$f":"'Population 2016'!C61/'Population 2016'!C$6","v":0},{"$f":"'Population 2016'!D61/'Population 2016'!D$6","v":0},{"$f":"'Population 2016'!E61/'Population 2016'!E$6","v":0},{"$f":"'Population 2016'!F61/'Population 2016'!F$6","v":0},{"$f":"'Population 2016'!G61/'Population 2016'!G$6","v":0},{"$f":"'Population 2016'!H61/'Population 2016'!H$6","v":0},{"$f":"'Population 2016'!I61/'Population 2016'!I$6","v":0},{"$f":"'Population 2016'!J61/'Population 2016'!J$6","v":0},{"$f":"'Population 2016'!K61/'Population 2016'!K$6","v":0},{"$f":"'Population 2016'!L61/'Population 2016'!L$6","v":0},{"$f":"'Population 2016'!M61/'Population 2016'!M$6","v":0},{"$f":"'Population 2016'!N61/'Population 2016'!N$6","v":0},{"$f":"'Population 2016'!O61/'Population 2016'!O$6","v":0},{"$f":"'Population 2016'!P61/'Population 2016'!P$6","v":0},{"$f":"'Population 2016'!Q61/'Population 2016'!Q$6","v":0},{"$f":"'Population 2016'!R61/'Population 2016'!R$6","v":0},{"$f":"'Population 2016'!S61/'Population 2016'!S$6","v":0},{"$f":"'Population 2016'!T61/'Population 2016'!T$6","v":0},{"$f":"'Population 2016'!U61/'Population 2016'!U$6","v":0},{"$f":"'Population 2016'!V61/'Population 2016'!V$6","v":0},{"$f":"'Population 2016'!W61/'Population 2016'!W$6","v":0},{"$f":"'Population 2016'!X61/'Population 2016'!X$6","v":0},{"$f":"'Population 2016'!Y61/'Population 2016'!Y$6","v":0},{"$f":"'Population 2016'!Z61/'Population 2016'!Z$6","v":0},{"$f":"'Population 2016'!AA61/'Population 2016'!AA$6","v":0},{"$f":"'Population 2016'!AB61/'Population 2016'!AB$6","v":0},{"$f":"'Population 2016'!AC61/'Population 2016'!AC$6","v":0},{"$f":"'Population 2016'!AD61/'Population 2016'!AD$6","v":0},{"$f":"'Population 2016'!AE61/'Population 2016'!AE$6","v":0},{"$f":"'Population 2016'!AF61/'Population 2016'!AF$6","v":0},{"$f":"'Population 2016'!AG61/'Population 2016'!AG$6","v":0},{"$f":"'Population 2016'!AH61/'Population 2016'!AH$6","v":0},{"$f":"'Population 2016'!AI61/'Population 2016'!AI$6","v":0},{"$f":"'Population 2016'!AJ61/'Population 2016'!AJ$6","v":0},{"$f":"'Population 2016'!AK61/'Population 2016'!AK$6","v":0},{"$f":"'Population 2016'!AL61/'Population 2016'!AL$6","v":0},{"$f":"'Population 2016'!AM61/'Population 2016'!AM$6","v":0},{"$f":"'Population 2016'!AN61/'Population 2016'!AN$6","v":0},{"$f":"'Population 2016'!AO61/'Population 2016'!AO$6","v":0},{"$f":"'Population 2016'!AP61/'Population 2016'!AP$6","v":0},{"$f":"'Population 2016'!AQ61/'Population 2016'!AQ$6","v":0},{"$f":"'Population 2016'!AR61/'Population 2016'!AR$6","v":0},{"$f":"'Population 2016'!AS61/'Population 2016'!AS$6","v":0},{"$f":"'Population 2016'!AT61/'Population 2016'!AT$6","v":0},{"$f":"'Population 2016'!AU61/'Population 2016'!AU$6","v":0},{"$f":"'Population 2016'!AV61/'Population 2016'!AV$6","v":0},{"$f":"'Population 2016'!AW61/'Population 2016'!AW$6","v":0},{"$f":"'Population 2016'!AX61/'Population 2016'!AX$6","v":0},{"$f":"'Population 2016'!AY61/'Population 2016'!AY$6","v":0},{"$f":"'Population 2016'!AZ61/'Population 2016'!AZ$6","v":0},{"$f":"'Population 2016'!BA61/'Population 2016'!BA$6","v":0},{"$f":"'Population 2016'!BB61/'Population 2016'!BB$6","v":0},{"$f":"'Population 2016'!BC61/'Population 2016'!BC$6","v":0},59]
[null,"Female 10-15",{"$f":"'Population 2016'!C62/'Population 2016'!C$6","v":0},{"$f":"'Population 2016'!D62/'Population 2016'!D$6","v":0},{"$f":"'Population 2016'!E62/'Population 2016'!E$6","v":0},{"$f":"'Population 2016'!F62/'Population 2016'!F$6","v":0},{"$f":"'Population 2016'!G62/'Population 2016'!G$6","v":0},{"$f":"'Population 2016'!H62/'Population 2016'!H$6","v":0},{"$f":"'Population 2016'!I62/'Population 2016'!I$6","v":0},{"$f":"'Population 2016'!J62/'Population 2016'!J$6","v":0},{"$f":"'Population 2016'!K62/'Population 2016'!K$6","v":0},{"$f":"'Population 2016'!L62/'Population 2016'!L$6","v":0},{"$f":"'Population 2016'!M62/'Population 2016'!M$6","v":0},{"$f":"'Population 2016'!N62/'Population 2016'!N$6","v":0},{"$f":"'Population 2016'!O62/'Population 2016'!O$6","v":0},{"$f":"'Population 2016'!P62/'Population 2016'!P$6","v":0},{"$f":"'Population 2016'!Q62/'Population 2016'!Q$6","v":0},{"$f":"'Population 2016'!R62/'Population 2016'!R$6","v":0},{"$f":"'Population 2016'!S62/'Population 2016'!S$6","v":0},{"$f":"'Population 2016'!T62/'Population 2016'!T$6","v":0},{"$f":"'Population 2016'!U62/'Population 2016'!U$6","v":0},{"$f":"'Population 2016'!V62/'Population 2016'!V$6","v":0},{"$f":"'Population 2016'!W62/'Population 2016'!W$6","v":0},{"$f":"'Population 2016'!X62/'Population 2016'!X$6","v":0},{"$f":"'Population 2016'!Y62/'Population 2016'!Y$6","v":0},{"$f":"'Population 2016'!Z62/'Population 2016'!Z$6","v":0},{"$f":"'Population 2016'!AA62/'Population 2016'!AA$6","v":0},{"$f":"'Population 2016'!AB62/'Population 2016'!AB$6","v":0},{"$f":"'Population 2016'!AC62/'Population 2016'!AC$6","v":0},{"$f":"'Population 2016'!AD62/'Population 2016'!AD$6","v":0},{"$f":"'Population 2016'!AE62/'Population 2016'!AE$6","v":0},{"$f":"'Population 2016'!AF62/'Population 2016'!AF$6","v":0},{"$f":"'Population 2016'!AG62/'Population 2016'!AG$6","v":0},{"$f":"'Population 2016'!AH62/'Population 2016'!AH$6","v":0},{"$f":"'Population 2016'!AI62/'Population 2016'!AI$6","v":0},{"$f":"'Population 2016'!AJ62/'Population 2016'!AJ$6","v":0},{"$f":"'Population 2016'!AK62/'Population 2016'!AK$6","v":0},{"$f":"'Population 2016'!AL62/'Population 2016'!AL$6","v":0},{"$f":"'Population 2016'!AM62/'Population 2016'!AM$6","v":0},{"$f":"'Population 2016'!AN62/'Population 2016'!AN$6","v":0},{"$f":"'Population 2016'!AO62/'Population 2016'!AO$6","v":0},{"$f":"'Population 2016'!AP62/'Population 2016'!AP$6","v":0},{"$f":"'Population 2016'!AQ62/'Population 2016'!AQ$6","v":0},{"$f":"'Population 2016'!AR62/'Population 2016'!AR$6","v":0},{"$f":"'Population 2016'!AS62/'Population 2016'!AS$6","v":0},{"$f":"'Population 2016'!AT62/'Population 2016'!AT$6","v":0},{"$f":"'Population 2016'!AU62/'Population 2016'!AU$6","v":0},{"$f":"'Population 2016'!AV62/'Population 2016'!AV$6","v":0},{"$f":"'Population 2016'!AW62/'Population 2016'!AW$6","v":0},{"$f":"'Population 2016'!AX62/'Population 2016'!AX$6","v":0},{"$f":"'Population 2016'!AY62/'Population 2016'!AY$6","v":0},{"$f":"'Population 2016'!AZ62/'Population 2016'!AZ$6","v":0},{"$f":"'Population 2016'!BA62/'Population 2016'!BA$6","v":0},{"$f":"'Population 2016'!BB62/'Population 2016'!BB$6","v":0},{"$f":"'Population 2016'!BC62/'Population 2016'!BC$6","v":0},60]
[null,"Female 16-19",{"$f":"'Population 2016'!C63/'Population 2016'!C$6","v":6.5803629061177652E-3},{"$f":"'Population 2016'!D63/'Population 2016'!D$6","v":6.264222007166584E-3},{"$f":"'Population 2016'!E63/'Population 2016'!E$6","v":5.4121967720112112E-3},{"$f":"'Population 2016'!F63/'Population 2016'!F$6","v":9.6078940534925997E-3},{"$f":"'Population 2016'!G63/'Population 2016'!G$6","v":8.1719467144296433E-3},{"$f":"'Population 2016'!H63/'Population 2016'!H$6","v":1.6158171205065675E-2},{"$f":"'Population 2016'!I63/'Population 2016'!I$6","v":8.206273671943284E-3},{"$f":"'Population 2016'!J63/'Population 2016'!J$6","v":1.3940716749982398E-2},{"$f":"'Population 2016'!K63/'Population 2016'!K$6","v":1.302776721186763E-2},{"$f":"'Population 2016'!L63/'Population 2016'!L$6","v":7.0394207562349152E-3},{"$f":"'Population 2016'!M63/'Population 2016'!M$6","v":7.0394207562349152E-3},{"$f":"'Population 2016'!N63/'Population 2016'!N$6","v":1.8512255730859149E-2},{"$f":"'Population 2016'!O63/'Population 2016'!O$6","v":1.4947426293725518E-2},{"$f":"'Population 2016'!P63/'Population 2016'!P$6","v":5.9734630226780149E-3},{"$f":"'Population 2016'!Q63/'Population 2016'!Q$6","v":3.1942733990147783E-3},{"$f":"'Population 2016'!R63/'Population 2016'!R$6","v":1.425644527915315E-2},{"$f":"'Population 2016'!S63/'Population 2016'!S$6","v":1.186092025379055E-2},{"$f":"'Population 2016'!T63/'Population 2016'!T$6","v":1.2676685518741097E-2},{"$f":"'Population 2016'!U63/'Population 2016'!U$6","v":0},{"$f":"'Population 2016'!V63/'Population 2016'!V$6","v":8.3781108597285065E-3},{"$f":"'Population 2016'!W63/'Population 2016'!W$6","v":1.5162694300518136E-2},{"$f":"'Population 2016'!X63/'Population 2016'!X$6","v":1.5162694300518136E-2},{"$f":"'Population 2016'!Y63/'Population 2016'!Y$6","v":1.0767757221354035E-2},{"$f":"'Population 2016'!Z63/'Population 2016'!Z$6","v":1.8286439962205796E-2},{"$f":"'Population 2016'!AA63/'Population 2016'!AA$6","v":1.6038295931057326E-2},{"$f":"'Population 2016'!AB63/'Population 2016'!AB$6","v":5.5513188587834198E-3},{"$f":"'Population 2016'!AC63/'Population 2016'!AC$6","v":1.7192344951815524E-2},{"$f":"'Population 2016'!AD63/'Population 2016'!AD$6","v":8.1221428254405047E-3},{"$f":"'Population 2016'!AE63/'Population 2016'!AE$6","v":8.1042492006354692E-3},{"$f":"'Population 2016'!AF63/'Population 2016'!AF$6","v":1.9028653612125235E-2},{"$f":"'Population 2016'!AG63/'Population 2016'!AG$6","v":8.1042492006354692E-3},{"$f":"'Population 2016'!AH63/'Population 2016'!AH$6","v":1.3964107279586321E-2},{"$f":"'Population 2016'!AI63/'Population 2016'!AI$6","v":1.0509046317648586E-2},{"$f":"'Population 2016'!AJ63/'Population 2016'!AJ$6","v":6.2895011351782534E-3},{"$f":"'Population 2016'!AK63/'Population 2016'!AK$6","v":1.259644150527476E-3},{"$f":"'Population 2016'!AL63/'Population 2016'!AL$6","v":2.0000592171492863E-2},{"$f":"'Population 2016'!AM63/'Population 2016'!AM$6","v":1.5489263055148854E-2},{"$f":"'Population 2016'!AN63/'Population 2016'!AN$6","v":0},{"$f":"'Population 2016'!AO63/'Population 2016'!AO$6","v":0},{"$f":"'Population 2016'!AP63/'Population 2016'!AP$6","v":8.7824542880453032E-3},{"$f":"'Population 2016'!AQ63/'Population 2016'!AQ$6","v":1.5397070729373666E-2},{"$f":"'Population 2016'!AR63/'Population 2016'!AR$6","v":1.36452065432784E-2},{"$f":"'Population 2016'!AS63/'Population 2016'!AS$6","v":8.206273671943284E-3},{"$f":"'Population 2016'!AT63/'Population 2016'!AT$6","v":0},{"$f":"'Population 2016'!AU63/'Population 2016'!AU$6","v":0},{"$f":"'Population 2016'!AV63/'Population 2016'!AV$6","v":1.1652567615870368E-2},{"$f":"'Population 2016'!AW63/'Population 2016'!AW$6","v":1.1916559513181926E-2},{"$f":"'Population 2016'!AX63/'Population 2016'!AX$6","v":1.483060666450387E-2},{"$f":"'Population 2016'!AY63/'Population 2016'!AY$6","v":1.5018681984891025E-2},{"$f":"'Population 2016'!AZ63/'Population 2016'!AZ$6","v":1.4863512934114621E-2},{"$f":"'Population 2016'!BA63/'Population 2016'!BA$6","v":1.6038092961169884E-2},{"$f":"'Population 2016'!BB63/'Population 2016'!BB$6","v":1.1650139347981075E-2},{"$f":"'Population 2016'!BC63/'Population 2016'!BC$6","v":0},61]
[null,"Female 20-24",{"$f":"'Population 2016'!C64/'Population 2016'!C$6","v":1.4021372731836764E-2},{"$f":"'Population 2016'!D64/'Population 2016'!D$6","v":1.2842309000078466E-2},{"$f":"'Population 2016'!E64/'Population 2016'!E$6","v":9.6646370928771628E-3},{"$f":"'Population 2016'!F64/'Population 2016'!F$6","v":1.3849216653683025E-2},{"$f":"'Population 2016'!G64/'Population 2016'!G$6","v":1.1642225456173739E-2},{"$f":"'Population 2016'!H64/'Population 2016'!H$6","v":2.4189557409207176E-2},{"$f":"'Population 2016'!I64/'Population 2016'!I$6","v":1.053704962610469E-2},{"$f":"'Population 2016'!J64/'Population 2016'!J$6","v":2.2460043652749419E-2},{"$f":"'Population 2016'!K64/'Population 2016'!K$6","v":2.1015595283377712E-2},{"$f":"'Population 2016'!L64/'Population 2016'!L$6","v":1.1218378475015642E-2},{"$f":"'Population 2016'!M64/'Population 2016'!M$6","v":1.1218378475015642E-2},{"$f":"'Population 2016'!N64/'Population 2016'!N$6","v":3.1525239306562369E-2},{"$f":"'Population 2016'!O64/'Population 2016'!O$6","v":2.3417634526836643E-2},{"$f":"'Population 2016'!P64/'Population 2016'!P$6","v":9.3566633187080403E-3},{"$f":"'Population 2016'!Q64/'Population 2016'!Q$6","v":4.6182266009852221E-3},{"$f":"'Population 2016'!R64/'Population 2016'!R$6","v":1.9549257298958511E-2},{"$f":"'Population 2016'!S64/'Population 2016'!S$6","v":1.6472185102957733E-2},{"$f":"'Population 2016'!T64/'Population 2016'!T$6","v":2.0026465952479287E-2},{"$f":"'Population 2016'!U64/'Population 2016'!U$6","v":0},{"$f":"'Population 2016'!V64/'Population 2016'!V$6","v":1.3716063348416289E-2},{"$f":"'Population 2016'!W64/'Population 2016'!W$6","v":1.8636269430051814E-2},{"$f":"'Population 2016'!X64/'Population 2016'!X$6","v":1.8636269430051814E-2},{"$f":"'Population 2016'!Y64/'Population 2016'!Y$6","v":1.7472400060493019E-2},{"$f":"'Population 2016'!Z64/'Population 2016'!Z$6","v":3.1134646408487291E-2},{"$f":"'Population 2016'!AA64/'Population 2016'!AA$6","v":2.5562284007324222E-2},{"$f":"'Population 2016'!AB64/'Population 2016'!AB$6","v":1.1405436928045935E-2},{"$f":"'Population 2016'!AC64/'Population 2016'!AC$6","v":2.91188290997654E-2},{"$f":"'Population 2016'!AD64/'Population 2016'!AD$6","v":1.199828384596038E-2},{"$f":"'Population 2016'!AE64/'Population 2016'!AE$6","v":1.2126209101695255E-2},{"$f":"'Population 2016'!AF64/'Population 2016'!AF$6","v":3.1336431021130658E-2},{"$f":"'Population 2016'!AG64/'Population 2016'!AG$6","v":1.2126209101695255E-2},{"$f":"'Population 2016'!AH64/'Population 2016'!AH$6","v":1.9170055136197246E-2},{"$f":"'Population 2016'!AI64/'Population 2016'!AI$6","v":1.5891218187220901E-2},{"$f":"'Population 2016'!AJ64/'Population 2016'!AJ$6","v":1.0001840829600541E-2},{"$f":"'Population 2016'!AK64/'Population 2016'!AK$6","v":2.7554715792788538E-3},{"$f":"'Population 2016'!AL64/'Population 2016'!AL$6","v":2.8809143127849827E-2},{"$f":"'Population 2016'!AM64/'Population 2016'!AM$6","v":2.0888238164958516E-2},{"$f":"'Population 2016'!AN64/'Population 2016'!AN$6","v":0},{"$f":"'Population 2016'!AO64/'Population 2016'!AO$6","v":0},{"$f":"'Population 2016'!AP64/'Population 2016'!AP$6","v":1.5645246436627153E-2},{"$f":"'Population 2016'!AQ64/'Population 2016'!AQ$6","v":2.8335909325090159E-2},{"$f":"'Population 2016'!AR64/'Population 2016'!AR$6","v":2.1265315673279203E-2},{"$f":"'Population 2016'!AS64/'Population 2016'!AS$6","v":1.053704962610469E-2},{"$f":"'Population 2016'!AT64/'Population 2016'!AT$6","v":0},{"$f":"'Population 2016'!AU64/'Population 2016'!AU$6","v":0},{"$f":"'Population 2016'!AV64/'Population 2016'!AV$6","v":1.7824377457404981E-2},{"$f":"'Population 2016'!AW64/'Population 2016'!AW$6","v":1.6863364974324113E-2},{"$f":"'Population 2016'!AX64/'Population 2016'!AX$6","v":2.3868007600685914E-2},{"$f":"'Population 2016'!AY64/'Population 2016'!AY$6","v":2.1661643240733178E-2},{"$f":"'Population 2016'!AZ64/'Population 2016'!AZ$6","v":2.4921394883521509E-2},{"$f":"'Population 2016'!BA64/'Population 2016'!BA$6","v":2.5043332735640429E-2},{"$f":"'Population 2016'!BB64/'Population 2016'!BB$6","v":1.5798172272992416E-2},{"$f":"'Population 2016'!BC64/'Population 2016'!BC$6","v":0},62]
[null,"Female 25-29",{"$f":"'Population 2016'!C65/'Population 2016'!C$6","v":1.8485978627268165E-2},{"$f":"'Population 2016'!D65/'Population 2016'!D$6","v":1.6595611121282661E-2},{"$f":"'Population 2016'!E65/'Population 2016'!E$6","v":1.1500918140523824E-2},{"$f":"'Population 2016'!F65/'Population 2016'!F$6","v":1.2940361810785077E-2},{"$f":"'Population 2016'!G65/'Population 2016'!G$6","v":9.6272248964513595E-3},{"$f":"'Population 2016'!H65/'Population 2016'!H$6","v":2.4225331958000678E-2},{"$f":"'Population 2016'!I65/'Population 2016'!I$6","v":9.9057978051859761E-3},{"$f":"'Population 2016'!J65/'Population 2016'!J$6","v":2.3797789199464903E-2},{"$f":"'Population 2016'!K65/'Population 2016'!K$6","v":2.0349942944085205E-2},{"$f":"'Population 2016'!L65/'Population 2016'!L$6","v":1.1263073209975865E-2},{"$f":"'Population 2016'!M65/'Population 2016'!M$6","v":1.1263073209975865E-2},{"$f":"'Population 2016'!N65/'Population 2016'!N$6","v":4.1068093928744727E-2},{"$f":"'Population 2016'!O65/'Population 2016'!O$6","v":2.4087691567589855E-2},{"$f":"'Population 2016'!P65/'Population 2016'!P$6","v":1.0149600888090077E-2},{"$f":"'Population 2016'!Q65/'Population 2016'!Q$6","v":5.2724753694581277E-3},{"$f":"'Population 2016'!R65/'Population 2016'!R$6","v":1.87809458767287E-2},{"$f":"'Population 2016'!S65/'Population 2016'!S$6","v":2.1162364923873356E-2},{"$f":"'Population 2016'!T65/'Population 2016'!T$6","v":3.0157699990728488E-2},{"$f":"'Population 2016'!U65/'Population 2016'!U$6","v":0},{"$f":"'Population 2016'!V65/'Population 2016'!V$6","v":1.5766402714932126E-2},{"$f":"'Population 2016'!W65/'Population 2016'!W$6","v":2.2864248704663213E-2},{"$f":"'Population 2016'!X65/'Population 2016'!X$6","v":2.2864248704663213E-2},{"$f":"'Population 2016'!Y65/'Population 2016'!Y$6","v":1.9216615415637444E-2},{"$f":"'Population 2016'!Z65/'Population 2016'!Z$6","v":4.3016730922889497E-2},{"$f":"'Population 2016'!AA65/'Population 2016'!AA$6","v":3.1320422205140704E-2},{"$f":"'Population 2016'!AB65/'Population 2016'!AB$6","v":1.4489502960703391E-2},{"$f":"'Population 2016'!AC65/'Population 2016'!AC$6","v":3.7359016157458382E-2},{"$f":"'Population 2016'!AD65/'Population 2016'!AD$6","v":1.1347328865415058E-2},{"$f":"'Population 2016'!AE65/'Population 2016'!AE$6","v":1.1965330705652864E-2},{"$f":"'Population 2016'!AF65/'Population 2016'!AF$6","v":3.1613010288748758E-2},{"$f":"'Population 2016'!AG65/'Population 2016'!AG$6","v":1.1965330705652864E-2},{"$f":"'Population 2016'!AH65/'Population 2016'!AH$6","v":2.0467171761316554E-2},{"$f":"'Population 2016'!AI65/'Population 2016'!AI$6","v":2.1273390056793212E-2},{"$f":"'Population 2016'!AJ65/'Population 2016'!AJ$6","v":1.0339326256366202E-2},{"$f":"'Population 2016'!AK65/'Population 2016'!AK$6","v":1.8107384663832468E-3},{"$f":"'Population 2016'!AL65/'Population 2016'!AL$6","v":2.8868360277136258E-2},{"$f":"'Population 2016'!AM65/'Population 2016'!AM$6","v":2.2687896534895072E-2},{"$f":"'Population 2016'!AN65/'Population 2016'!AN$6","v":0},{"$f":"'Population 2016'!AO65/'Population 2016'!AO$6","v":0},{"$f":"'Population 2016'!AP65/'Population 2016'!AP$6","v":1.9244612948121131E-2},{"$f":"'Population 2016'!AQ65/'Population 2016'!AQ$6","v":3.2163097078089349E-2},{"$f":"'Population 2016'!AR65/'Population 2016'!AR$6","v":2.5507187726435707E-2},{"$f":"'Population 2016'!AS65/'Population 2016'!AS$6","v":9.9057978051859761E-3},{"$f":"'Population 2016'!AT65/'Population 2016'!AT$6","v":0},{"$f":"'Population 2016'!AU65/'Population 2016'!AU$6","v":0},{"$f":"'Population 2016'!AV65/'Population 2016'!AV$6","v":1.6942690337185751E-2},{"$f":"'Population 2016'!AW65/'Population 2016'!AW$6","v":1.7485810694600284E-2},{"$f":"'Population 2016'!AX65/'Population 2016'!AX$6","v":2.7158548454372711E-2},{"$f":"'Population 2016'!AY65/'Population 2016'!AY$6","v":2.6877120265546464E-2},{"$f":"'Population 2016'!AZ65/'Population 2016'!AZ$6","v":3.1200871802200943E-2},{"$f":"'Population 2016'!BA65/'Population 2016'!BA$6","v":2.6019564481102944E-2},{"$f":"'Population 2016'!BB65/'Population 2016'!BB$6","v":1.6705554475338648E-2},{"$f":"'Population 2016'!BC65/'Population 2016'!BC$6","v":0},63]
[null,"Female 30-34",{"$f":"'Population 2016'!C66/'Population 2016'!C$6","v":1.6244710607473282E-2},{"$f":"'Population 2016'!D66/'Population 2016'!D$6","v":1.4921664530641069E-2},{"$f":"'Population 2016'!E66/'Population 2016'!E$6","v":1.1355948584130665E-2},{"$f":"'Population 2016'!F66/'Population 2016'!F$6","v":1.4368562278196139E-2},{"$f":"'Population 2016'!G66/'Population 2016'!G$6","v":1.1250419791783275E-2},{"$f":"'Population 2016'!H66/'Population 2016'!H$6","v":2.150050382489551E-2},{"$f":"'Population 2016'!I66/'Population 2016'!I$6","v":1.0051471302321065E-2},{"$f":"'Population 2016'!J66/'Population 2016'!J$6","v":2.0817198244502334E-2},{"$f":"'Population 2016'!K66/'Population 2016'!K$6","v":1.9446557626473945E-2},{"$f":"'Population 2016'!L66/'Population 2016'!L$6","v":9.6093680164476628E-3},{"$f":"'Population 2016'!M66/'Population 2016'!M$6","v":9.6093680164476628E-3},{"$f":"'Population 2016'!N66/'Population 2016'!N$6","v":3.2922113249716951E-2},{"$f":"'Population 2016'!O66/'Population 2016'!O$6","v":2.1407463404577005E-2},{"$f":"'Population 2016'!P66/'Population 2016'!P$6","v":8.7223132632024102E-3},{"$f":"'Population 2016'!Q66/'Population 2016'!Q$6","v":4.7721674876847293E-3},{"$f":"'Population 2016'!R66/'Population 2016'!R$6","v":1.8268738261908828E-2},{"$f":"'Population 2016'!S66/'Population 2016'!S$6","v":2.0223276760066921E-2},{"$f":"'Population 2016'!T66/'Population 2016'!T$6","v":2.9694124389976654E-2},{"$f":"'Population 2016'!U66/'Population 2016'!U$6","v":0},{"$f":"'Population 2016'!V66/'Population 2016'!V$6","v":1.5448246606334842E-2},{"$f":"'Population 2016'!W66/'Population 2016'!W$6","v":2.0169948186528498E-2},{"$f":"'Population 2016'!X66/'Population 2016'!X$6","v":2.0169948186528498E-2},{"$f":"'Population 2016'!Y66/'Population 2016'!Y$6","v":1.7754700811614659E-2},{"$f":"'Population 2016'!Z66/'Population 2016'!Z$6","v":3.6424012079562265E-2},{"$f":"'Population 2016'!AA66/'Population 2016'!AA$6","v":2.8489472993494441E-2},{"$f":"'Population 2016'!AB66/'Population 2016'!AB$6","v":1.316615826305401E-2},{"$f":"'Population 2016'!AC66/'Population 2016'!AC$6","v":3.2464702975882477E-2},{"$f":"'Population 2016'!AD66/'Population 2016'!AD$6","v":1.2664033257881733E-2},{"$f":"'Population 2016'!AE66/'Population 2016'!AE$6","v":1.3171918675970801E-2},{"$f":"'Population 2016'!AF66/'Population 2016'!AF$6","v":3.0921562119703507E-2},{"$f":"'Population 2016'!AG66/'Population 2016'!AG$6","v":1.3171918675970801E-2},{"$f":"'Population 2016'!AH66/'Population 2016'!AH$6","v":2.1344735839227465E-2},{"$f":"'Population 2016'!AI66/'Population 2016'!AI$6","v":2.112690792970532E-2},{"$f":"'Population 2016'!AJ66/'Population 2016'!AJ$6","v":9.081426029330552E-3},{"$f":"'Population 2016'!AK66/'Population 2016'!AK$6","v":2.5980160604629193E-3},{"$f":"'Population 2016'!AL66/'Population 2016'!AL$6","v":2.5063658435482916E-2},{"$f":"'Population 2016'!AM66/'Population 2016'!AM$6","v":2.2938018545632016E-2},{"$f":"'Population 2016'!AN66/'Population 2016'!AN$6","v":0},{"$f":"'Population 2016'!AO66/'Population 2016'!AO$6","v":0},{"$f":"'Population 2016'!AP66/'Population 2016'!AP$6","v":1.7276959255171091E-2},{"$f":"'Population 2016'!AQ66/'Population 2016'!AQ$6","v":2.7437992198424965E-2},{"$f":"'Population 2016'!AR66/'Population 2016'!AR$6","v":2.3309101062248413E-2},{"$f":"'Population 2016'!AS66/'Population 2016'!AS$6","v":1.0051471302321065E-2},{"$f":"'Population 2016'!AT66/'Population 2016'!AT$6","v":0},{"$f":"'Population 2016'!AU66/'Population 2016'!AU$6","v":0},{"$f":"'Population 2016'!AV66/'Population 2016'!AV$6","v":1.5894197545573693E-2},{"$f":"'Population 2016'!AW66/'Population 2016'!AW$6","v":1.920572650062654E-2},{"$f":"'Population 2016'!AX66/'Population 2016'!AX$6","v":2.2153218705102656E-2},{"$f":"'Population 2016'!AY66/'Population 2016'!AY$6","v":2.3063329563972362E-2},{"$f":"'Population 2016'!AZ66/'Population 2016'!AZ$6","v":2.6180863227097326E-2},{"$f":"'Population 2016'!BA66/'Population 2016'!BA$6","v":2.6677026677026677E-2},{"$f":"'Population 2016'!BB66/'Population 2016'!BB$6","v":1.7904595242724738E-2},{"$f":"'Population 2016'!BC66/'Population 2016'!BC$6","v":0},64]
[null,"Female 35-39",{"$f":"'Population 2016'!C67/'Population 2016'!C$6","v":1.1618733414616653E-2},{"$f":"'Population 2016'!D67/'Population 2016'!D$6","v":1.0723720346297701E-2},{"$f":"'Population 2016'!E67/'Population 2016'!E$6","v":8.3115878998743595E-3},{"$f":"'Population 2016'!F67/'Population 2016'!F$6","v":1.2897083008742318E-2},{"$f":"'Population 2016'!G67/'Population 2016'!G$6","v":9.90708608530169E-3},{"$f":"'Population 2016'!H67/'Population 2016'!H$6","v":1.9312293923692887E-2},{"$f":"'Population 2016'!I67/'Population 2016'!I$6","v":9.3231038166456254E-3},{"$f":"'Population 2016'!J67/'Population 2016'!J$6","v":1.8165176371189185E-2},{"$f":"'Population 2016'!K67/'Population 2016'!K$6","v":2.0064663370102702E-2},{"$f":"'Population 2016'!L67/'Population 2016'!L$6","v":8.0673996603200151E-3},{"$f":"'Population 2016'!M67/'Population 2016'!M$6","v":8.0673996603200151E-3},{"$f":"'Population 2016'!N67/'Population 2016'!N$6","v":2.577600023526298E-2},{"$f":"'Population 2016'!O67/'Population 2016'!O$6","v":1.8813139990378668E-2},{"$f":"'Population 2016'!P67/'Population 2016'!P$6","v":7.9822381984458422E-3},{"$f":"'Population 2016'!Q67/'Population 2016'!Q$6","v":5.580357142857143E-3},{"$f":"'Population 2016'!R67/'Population 2016'!R$6","v":1.835410619771214E-2},{"$f":"'Population 2016'!S67/'Population 2016'!S$6","v":1.735340228748198E-2},{"$f":"'Population 2016'!T67/'Population 2016'!T$6","v":2.3785642642212352E-2},{"$f":"'Population 2016'!U67/'Population 2016'!U$6","v":0},{"$f":"'Population 2016'!V67/'Population 2016'!V$6","v":1.2195984162895928E-2},{"$f":"'Population 2016'!W67/'Population 2016'!W$6","v":1.8329533678756477E-2},{"$f":"'Population 2016'!X67/'Population 2016'!X$6","v":1.8329533678756477E-2},{"$f":"'Population 2016'!Y67/'Population 2016'!Y$6","v":1.4760296415788677E-2},{"$f":"'Population 2016'!Z67/'Population 2016'!Z$6","v":3.0192829430869116E-2},{"$f":"'Population 2016'!AA67/'Population 2016'!AA$6","v":2.4356162157770738E-2},{"$f":"'Population 2016'!AB67/'Population 2016'!AB$6","v":9.4652790238650645E-3},{"$f":"'Population 2016'!AC67/'Population 2016'!AC$6","v":2.7333066182163381E-2},{"$f":"'Population 2016'!AD67/'Population 2016'!AD$6","v":1.0341307531845013E-2},{"$f":"'Population 2016'!AE67/'Population 2016'!AE$6","v":1.0497315341766043E-2},{"$f":"'Population 2016'!AF67/'Population 2016'!AF$6","v":2.7464321274477264E-2},{"$f":"'Population 2016'!AG67/'Population 2016'!AG$6","v":1.0497315341766043E-2},{"$f":"'Population 2016'!AH67/'Population 2016'!AH$6","v":1.9005730388540622E-2},{"$f":"'Population 2016'!AI67/'Population 2016'!AI$6","v":1.7552744028760718E-2},{"$f":"'Population 2016'!AJ67/'Population 2016'!AJ$6","v":8.5905381358532245E-3},{"$f":"'Population 2016'!AK67/'Population 2016'!AK$6","v":1.8894662257912141E-3},{"$f":"'Population 2016'!AL67/'Population 2016'!AL$6","v":2.342038254278439E-2},{"$f":"'Population 2016'!AM67/'Population 2016'!AM$6","v":2.0528306490971204E-2},{"$f":"'Population 2016'!AN67/'Population 2016'!AN$6","v":0},{"$f":"'Population 2016'!AO67/'Population 2016'!AO$6","v":0},{"$f":"'Population 2016'!AP67/'Population 2016'!AP$6","v":1.4205499832029563E-2},{"$f":"'Population 2016'!AQ67/'Population 2016'!AQ$6","v":2.4214322514167955E-2},{"$f":"'Population 2016'!AR67/'Population 2016'!AR$6","v":1.9803692604729872E-2},{"$f":"'Population 2016'!AS67/'Population 2016'!AS$6","v":9.3231038166456254E-3},{"$f":"'Population 2016'!AT67/'Population 2016'!AT$6","v":0},{"$f":"'Population 2016'!AU67/'Population 2016'!AU$6","v":0},{"$f":"'Population 2016'!AV67/'Population 2016'!AV$6","v":1.3392112474681282E-2},{"$f":"'Population 2016'!AW67/'Population 2016'!AW$6","v":1.6961645877525616E-2},{"$f":"'Population 2016'!AX67/'Population 2016'!AX$6","v":1.6313667330954258E-2},{"$f":"'Population 2016'!AY67/'Population 2016'!AY$6","v":1.9597810617558917E-2},{"$f":"'Population 2016'!AZ67/'Population 2016'!AZ$6","v":2.0964341860797486E-2},{"$f":"'Population 2016'!BA67/'Population 2016'!BA$6","v":2.209471440240671E-2},{"$f":"'Population 2016'!BB67/'Population 2016'!BB$6","v":1.5344481171819302E-2},{"$f":"'Population 2016'!BC67/'Population 2016'!BC$6","v":0},65]
[null,"Female 40-44",{"$f":"'Population 2016'!C68/'Population 2016'!C$6","v":1.1851825288675321E-2},{"$f":"'Population 2016'!D68/'Population 2016'!D$6","v":1.0841419715952188E-2},{"$f":"'Population 2016'!E68/'Population 2016'!E$6","v":8.118295158016816E-3},{"$f":"'Population 2016'!F68/'Population 2016'!F$6","v":1.1036094520903662E-2},{"$f":"'Population 2016'!G68/'Population 2016'!G$6","v":1.1642225456173739E-2},{"$f":"'Population 2016'!H68/'Population 2016'!H$6","v":2.1923835985618631E-2},{"$f":"'Population 2016'!I68/'Population 2016'!I$6","v":1.1313974944158492E-2},{"$f":"'Population 2016'!J68/'Population 2016'!J$6","v":1.8165176371189185E-2},{"$f":"'Population 2016'!K68/'Population 2016'!K$6","v":1.9351464435146442E-2},{"$f":"'Population 2016'!L68/'Population 2016'!L$6","v":8.1567891302404584E-3},{"$f":"'Population 2016'!M68/'Population 2016'!M$6","v":8.1567891302404584E-3},{"$f":"'Population 2016'!N68/'Population 2016'!N$6","v":2.1306003617168317E-2},{"$f":"'Population 2016'!O68/'Population 2016'!O$6","v":2.1166930107896366E-2},{"$f":"'Population 2016'!P68/'Population 2016'!P$6","v":9.3038008140825714E-3},{"$f":"'Population 2016'!Q68/'Population 2016'!Q$6","v":4.079433497536946E-3},{"$f":"'Population 2016'!R68/'Population 2016'!R$6","v":1.7158955096465766E-2},{"$f":"'Population 2016'!S68/'Population 2016'!S$6","v":1.6017108765875063E-2},{"$f":"'Population 2016'!T68/'Population 2016'!T$6","v":1.8416594320777458E-2},{"$f":"'Population 2016'!U68/'Population 2016'!U$6","v":0},{"$f":"'Population 2016'!V68/'Population 2016'!V$6","v":1.3998868778280544E-2},{"$f":"'Population 2016'!W68/'Population 2016'!W$6","v":1.8860103626943004E-2},{"$f":"'Population 2016'!X68/'Population 2016'!X$6","v":1.8860103626943004E-2},{"$f":"'Population 2016'!Y68/'Population 2016'!Y$6","v":1.5788677723446085E-2},{"$f":"'Population 2016'!Z68/'Population 2016'!Z$6","v":2.7033185376924267E-2},{"$f":"'Population 2016'!AA68/'Population 2016'!AA$6","v":2.3032552791265929E-2},{"$f":"'Population 2016'!AB68/'Population 2016'!AB$6","v":9.6110712363179623E-3},{"$f":"'Population 2016'!AC68/'Population 2016'!AC$6","v":2.5025969428050094E-2},{"$f":"'Population 2016'!AD68/'Population 2016'!AD$6","v":1.0859112630006065E-2},{"$f":"'Population 2016'!AE68/'Population 2016'!AE$6","v":1.0577754539787239E-2},{"$f":"'Population 2016'!AF68/'Population 2016'!AF$6","v":2.7630268835048124E-2},{"$f":"'Population 2016'!AG68/'Population 2016'!AG$6","v":1.0577754539787239E-2},{"$f":"'Population 2016'!AH68/'Population 2016'!AH$6","v":1.9449756834336182E-2},{"$f":"'Population 2016'!AI68/'Population 2016'!AI$6","v":1.4987214202907042E-2},{"$f":"'Population 2016'!AJ68/'Population 2016'!AJ$6","v":8.7132601092225568E-3},{"$f":"'Population 2016'!AK68/'Population 2016'!AK$6","v":2.2043772634230828E-3},{"$f":"'Population 2016'!AL68/'Population 2016'!AL$6","v":2.7195475809794516E-2},{"$f":"'Population 2016'!AM68/'Population 2016'!AM$6","v":2.113836017569546E-2},{"$f":"'Population 2016'!AN68/'Population 2016'!AN$6","v":0},{"$f":"'Population 2016'!AO68/'Population 2016'!AO$6","v":0},{"$f":"'Population 2016'!AP68/'Population 2016'!AP$6","v":1.1661947497240486E-2},{"$f":"'Population 2016'!AQ68/'Population 2016'!AQ$6","v":2.1873850003679987E-2},{"$f":"'Population 2016'!AR68/'Population 2016'!AR$6","v":1.9026534167276149E-2},{"$f":"'Population 2016'!AS68/'Population 2016'!AS$6","v":1.1313974944158492E-2},{"$f":"'Population 2016'!AT68/'Population 2016'!AT$6","v":0},{"$f":"'Population 2016'!AU68/'Population 2016'!AU$6","v":0},{"$f":"'Population 2016'!AV68/'Population 2016'!AV$6","v":1.4488264029548434E-2},{"$f":"'Population 2016'!AW68/'Population 2016'!AW$6","v":1.718277790972899E-2},{"$f":"'Population 2016'!AX68/'Population 2016'!AX$6","v":1.7008852018352876E-2},{"$f":"'Population 2016'!AY68/'Population 2016'!AY$6","v":1.8153127781336934E-2},{"$f":"'Population 2016'!AZ68/'Population 2016'!AZ$6","v":1.7391382020866087E-2},{"$f":"'Population 2016'!BA68/'Population 2016'!BA$6","v":2.2015022015022014E-2},{"$f":"'Population 2016'!BB68/'Population 2016'!BB$6","v":1.630047313500551E-2},{"$f":"'Population 2016'!BC68/'Population 2016'!BC$6","v":0},66]
[null,"Female 45-49",{"$f":"'Population 2016'!C69/'Population 2016'!C$6","v":1.0650505630065265E-2},{"$f":"'Population 2016'!D69/'Population 2016'!D$6","v":1.0331389114116078E-2},{"$f":"'Population 2016'!E69/'Population 2016'!E$6","v":9.4713443510196192E-3},{"$f":"'Population 2016'!F69/'Population 2016'!F$6","v":1.3156755820998874E-2},{"$f":"'Population 2016'!G69/'Population 2016'!G$6","v":1.3377364827045785E-2},{"$f":"'Population 2016'!H69/'Population 2016'!H$6","v":2.613330789365419E-2},{"$f":"'Population 2016'!I69/'Population 2016'!I$6","v":1.1022627949888317E-2},{"$f":"'Population 2016'!J69/'Population 2016'!J$6","v":2.3046774155694807E-2},{"$f":"'Population 2016'!K69/'Population 2016'!K$6","v":2.2441993153290225E-2},{"$f":"'Population 2016'!L69/'Population 2016'!L$6","v":1.0235094305890766E-2},{"$f":"'Population 2016'!M69/'Population 2016'!M$6","v":1.0235094305890766E-2},{"$f":"'Population 2016'!N69/'Population 2016'!N$6","v":2.4217382993427339E-2},{"$f":"'Population 2016'!O69/'Population 2016'!O$6","v":2.6235310287952718E-2},{"$f":"'Population 2016'!P69/'Population 2016'!P$6","v":1.1153988475973991E-2},{"$f":"'Population 2016'!Q69/'Population 2016'!Q$6","v":5.8882389162561574E-3},{"$f":"'Population 2016'!R69/'Population 2016'!R$6","v":2.100051220761482E-2},{"$f":"'Population 2016'!S69/'Population 2016'!S$6","v":1.7940003577478721E-2},{"$f":"'Population 2016'!T69/'Population 2016'!T$6","v":1.9630319530018626E-2},{"$f":"'Population 2016'!U69/'Population 2016'!U$6","v":0},{"$f":"'Population 2016'!V69/'Population 2016'!V$6","v":1.3945842760180996E-2},{"$f":"'Population 2016'!W69/'Population 2016'!W$6","v":2.288082901554404E-2},{"$f":"'Population 2016'!X69/'Population 2016'!X$6","v":2.288082901554404E-2},{"$f":"'Population 2016'!Y69/'Population 2016'!Y$6","v":1.7855522508443817E-2},{"$f":"'Population 2016'!Z69/'Population 2016'!Z$6","v":3.1730117787884586E-2},{"$f":"'Population 2016'!AA69/'Population 2016'!AA$6","v":2.7382090652868132E-2},{"$f":"'Population 2016'!AB69/'Population 2016'!AB$6","v":9.1736945989592672E-3},{"$f":"'Population 2016'!AC69/'Population 2016'!AC$6","v":3.0143989293203596E-2},{"$f":"'Population 2016'!AD69/'Population 2016'!AD$6","v":1.2560472238249522E-2},{"$f":"'Population 2016'!AE69/'Population 2016'!AE$6","v":1.2266977698232349E-2},{"$f":"'Population 2016'!AF69/'Population 2016'!AF$6","v":3.7144595641110743E-2},{"$f":"'Population 2016'!AG69/'Population 2016'!AG$6","v":1.2266977698232349E-2},{"$f":"'Population 2016'!AH69/'Population 2016'!AH$6","v":2.2418091105835626E-2},{"$f":"'Population 2016'!AI69/'Population 2016'!AI$6","v":1.6041885517939874E-2},{"$f":"'Population 2016'!AJ69/'Population 2016'!AJ$6","v":9.5723139228078794E-3},{"$f":"'Population 2016'!AK69/'Population 2016'!AK$6","v":2.2043772634230828E-3},{"$f":"'Population 2016'!AL69/'Population 2016'!AL$6","v":3.1414697696452894E-2},{"$f":"'Population 2016'!AM69/'Population 2016'!AM$6","v":2.4304538799414348E-2},{"$f":"'Population 2016'!AN69/'Population 2016'!AN$6","v":0},{"$f":"'Population 2016'!AO69/'Population 2016'!AO$6","v":0},{"$f":"'Population 2016'!AP69/'Population 2016'!AP$6","v":1.1469981283294141E-2},{"$f":"'Population 2016'!AQ69/'Population 2016'!AQ$6","v":2.7629351586074925E-2},{"$f":"'Population 2016'!AR69/'Population 2016'!AR$6","v":2.2154384925726262E-2},{"$f":"'Population 2016'!AS69/'Population 2016'!AS$6","v":1.1022627949888317E-2},{"$f":"'Population 2016'!AT69/'Population 2016'!AT$6","v":0},{"$f":"'Population 2016'!AU69/'Population 2016'!AU$6","v":0},{"$f":"'Population 2016'!AV69/'Population 2016'!AV$6","v":1.7490766114619326E-2},{"$f":"'Population 2016'!AW69/'Population 2016'!AW$6","v":1.9885502747770251E-2},{"$f":"'Population 2016'!AX69/'Population 2016'!AX$6","v":2.3636279371553041E-2},{"$f":"'Population 2016'!AY69/'Population 2016'!AY$6","v":2.1283273926484561E-2},{"$f":"'Population 2016'!AZ69/'Population 2016'!AZ$6","v":1.9561955123624412E-2},{"$f":"'Population 2016'!BA69/'Population 2016'!BA$6","v":2.7394258163488932E-2},{"$f":"'Population 2016'!BB69/'Population 2016'!BB$6","v":1.6835180504245251E-2},{"$f":"'Population 2016'!BC69/'Population 2016'!BC$6","v":0},67]
[null,"Female 50-54",{"$f":"'Population 2016'!C70/'Population 2016'!C$6","v":1.1242200387291113E-2},{"$f":"'Population 2016'!D70/'Population 2016'!D$6","v":1.0619098684382601E-2},{"$f":"'Population 2016'!E70/'Population 2016'!E$6","v":8.9397893109113748E-3},{"$f":"'Population 2016'!F70/'Population 2016'!F$6","v":1.2074785769929888E-2},{"$f":"'Population 2016'!G70/'Population 2016'!G$6","v":1.3041531400425389E-2},{"$f":"'Population 2016'!H70/'Population 2016'!H$6","v":2.6616264302366487E-2},{"$f":"'Population 2016'!I70/'Population 2016'!I$6","v":1.0682723123239779E-2},{"$f":"'Population 2016'!J70/'Population 2016'!J$6","v":2.1239644206623012E-2},{"$f":"'Population 2016'!K70/'Population 2016'!K$6","v":2.1728794218333968E-2},{"$f":"'Population 2016'!L70/'Population 2016'!L$6","v":1.0570304818092428E-2},{"$f":"'Population 2016'!M70/'Population 2016'!M$6","v":1.0570304818092428E-2},{"$f":"'Population 2016'!N70/'Population 2016'!N$6","v":2.7437545030804745E-2},{"$f":"'Population 2016'!O70/'Population 2016'!O$6","v":2.690536732870593E-2},{"$f":"'Population 2016'!P70/'Population 2016'!P$6","v":1.120685098059946E-2},{"$f":"'Population 2016'!Q70/'Population 2016'!Q$6","v":4.8106527093596061E-3},{"$f":"'Population 2016'!R70/'Population 2016'!R$6","v":2.2024927437254566E-2},{"$f":"'Population 2016'!S70/'Population 2016'!S$6","v":1.7253443323267292E-2},{"$f":"'Population 2016'!T70/'Population 2016'!T$6","v":1.7641158770428933E-2},{"$f":"'Population 2016'!U70/'Population 2016'!U$6","v":0},{"$f":"'Population 2016'!V70/'Population 2016'!V$6","v":1.4847285067873302E-2},{"$f":"'Population 2016'!W70/'Population 2016'!W$6","v":2.2930569948186527E-2},{"$f":"'Population 2016'!X70/'Population 2016'!X$6","v":2.2930569948186527E-2},{"$f":"'Population 2016'!Y70/'Population 2016'!Y$6","v":1.7593386096688007E-2},{"$f":"'Population 2016'!Z70/'Population 2016'!Z$6","v":3.3285634860595895E-2},{"$f":"'Population 2016'!AA70/'Population 2016'!AA$6","v":2.8028271996100414E-2},{"$f":"'Population 2016'!AB70/'Population 2016'!AB$6","v":9.4092050959985653E-3},{"$f":"'Population 2016'!AC70/'Population 2016'!AC$6","v":3.1056323507098312E-2},{"$f":"'Population 2016'!AD70/'Population 2016'!AD$6","v":1.17615729439439E-2},{"$f":"'Population 2016'!AE70/'Population 2016'!AE$6","v":1.1301707321977999E-2},{"$f":"'Population 2016'!AF70/'Population 2016'!AF$6","v":3.6591437105874543E-2},{"$f":"'Population 2016'!AG70/'Population 2016'!AG$6","v":1.1301707321977999E-2},{"$f":"'Population 2016'!AH70/'Population 2016'!AH$6","v":2.2585912124718988E-2},{"$f":"'Population 2016'!AI70/'Population 2016'!AI$6","v":1.4953732573858382E-2},{"$f":"'Population 2016'!AJ70/'Population 2016'!AJ$6","v":9.7257163895195439E-3},{"$f":"'Population 2016'!AK70/'Population 2016'!AK$6","v":2.1256495040151155E-3},{"$f":"'Population 2016'!AL70/'Population 2016'!AL$6","v":3.2599040682181557E-2},{"$f":"'Population 2016'!AM70/'Population 2016'!AM$6","v":2.4658369936554417E-2},{"$f":"'Population 2016'!AN70/'Population 2016'!AN$6","v":0},{"$f":"'Population 2016'!AO70/'Population 2016'!AO$6","v":0},{"$f":"'Population 2016'!AP70/'Population 2016'!AP$6","v":1.2429812353025867E-2},{"$f":"'Population 2016'!AQ70/'Population 2016'!AQ$6","v":2.6466475307279018E-2},{"$f":"'Population 2016'!AR70/'Population 2016'!AR$6","v":2.2440944436845561E-2},{"$f":"'Population 2016'!AS70/'Population 2016'!AS$6","v":1.0682723123239779E-2},{"$f":"'Population 2016'!AT70/'Population 2016'!AT$6","v":0},{"$f":"'Population 2016'!AU70/'Population 2016'!AU$6","v":0},{"$f":"'Population 2016'!AV70/'Population 2016'!AV$6","v":1.6585249612772548E-2},{"$f":"'Population 2016'!AW70/'Population 2016'!AW$6","v":1.9803601995102334E-2},{"$f":"'Population 2016'!AX70/'Population 2016'!AX$6","v":2.0762849330305418E-2},{"$f":"'Population 2016'!AY70/'Population 2016'!AY$6","v":2.2229197212106099E-2},{"$f":"'Population 2016'!AZ70/'Population 2016'!AZ$6","v":2.147348863798771E-2},{"$f":"'Population 2016'!BA70/'Population 2016'!BA$6","v":2.8250951327874405E-2},{"$f":"'Population 2016'!BB70/'Population 2016'!BB$6","v":1.6818977250631927E-2},{"$f":"'Population 2016'!BC70/'Population 2016'!BC$6","v":0},68]
[null,"Female 55-59",{"$f":"'Population 2016'!C71/'Population 2016'!C$6","v":9.7002079896722371E-3},{"$f":"'Population 2016'!D71/'Population 2016'!D$6","v":9.1543954175712077E-3},{"$f":"'Population 2016'!E71/'Population 2016'!E$6","v":7.6833864888373442E-3},{"$f":"'Population 2016'!F71/'Population 2016'!F$6","v":1.1252488531117459E-2},{"$f":"'Population 2016'!G71/'Population 2016'!G$6","v":1.2481809022724728E-2},{"$f":"'Population 2016'!H71/'Population 2016'!H$6","v":2.3330968238163097E-2},{"$f":"'Population 2016'!I71/'Population 2016'!I$6","v":9.4687773137807126E-3},{"$f":"'Population 2016'!J71/'Population 2016'!J$6","v":1.959679879837593E-2},{"$f":"'Population 2016'!K71/'Population 2016'!K$6","v":1.9922023583111449E-2},{"$f":"'Population 2016'!L71/'Population 2016'!L$6","v":8.5813891123625637E-3},{"$f":"'Population 2016'!M71/'Population 2016'!M$6","v":8.5813891123625637E-3},{"$f":"'Population 2016'!N71/'Population 2016'!N$6","v":2.4540869590789455E-2},{"$f":"'Population 2016'!O71/'Population 2016'!O$6","v":2.1785444299360867E-2},{"$f":"'Population 2016'!P71/'Population 2016'!P$6","v":1.120685098059946E-2},{"$f":"'Population 2016'!Q71/'Population 2016'!Q$6","v":5.2724753694581277E-3},{"$f":"'Population 2016'!R71/'Population 2016'!R$6","v":1.6646747481645893E-2},{"$f":"'Population 2016'!S71/'Population 2016'!S$6","v":1.5998695272467091E-2},{"$f":"'Population 2016'!T71/'Population 2016'!T$6","v":1.7388299351837024E-2},{"$f":"'Population 2016'!U71/'Population 2016'!U$6","v":0},{"$f":"'Population 2016'!V71/'Population 2016'!V$6","v":1.3539309954751132E-2},{"$f":"'Population 2016'!W71/'Population 2016'!W$6","v":2.0277720207253887E-2},{"$f":"'Population 2016'!X71/'Population 2016'!X$6","v":2.0277720207253887E-2},{"$f":"'Population 2016'!Y71/'Population 2016'!Y$6","v":1.6141553662348138E-2},{"$f":"'Population 2016'!Z71/'Population 2016'!Z$6","v":2.8822637634398802E-2},{"$f":"'Population 2016'!AA71/'Population 2016'!AA$6","v":2.4902354124874231E-2},{"$f":"'Population 2016'!AB71/'Population 2016'!AB$6","v":8.1082899694957834E-3},{"$f":"'Population 2016'!AC71/'Population 2016'!AC$6","v":2.7317503978088416E-2},{"$f":"'Population 2016'!AD71/'Population 2016'!AD$6","v":1.0933084786886217E-2},{"$f":"'Population 2016'!AE71/'Population 2016'!AE$6","v":1.0376656544734249E-2},{"$f":"'Population 2016'!AF71/'Population 2016'!AF$6","v":3.4931961500165948E-2},{"$f":"'Population 2016'!AG71/'Population 2016'!AG$6","v":1.0376656544734249E-2},{"$f":"'Population 2016'!AH71/'Population 2016'!AH$6","v":2.0561571084438447E-2},{"$f":"'Population 2016'!AI71/'Population 2016'!AI$6","v":1.4401285694555468E-2},{"$f":"'Population 2016'!AJ71/'Population 2016'!AJ$6","v":9.5109529361232133E-3},{"$f":"'Population 2016'!AK71/'Population 2016'!AK$6","v":1.8107384663832468E-3},{"$f":"'Population 2016'!AL71/'Population 2016'!AL$6","v":2.9031207437673949E-2},{"$f":"'Population 2016'!AM71/'Population 2016'!AM$6","v":2.1785017081503173E-2},{"$f":"'Population 2016'!AN71/'Population 2016'!AN$6","v":0},{"$f":"'Population 2016'!AO71/'Population 2016'!AO$6","v":0},{"$f":"'Population 2016'!AP71/'Population 2016'!AP$6","v":1.1182031962374621E-2},{"$f":"'Population 2016'!AQ71/'Population 2016'!AQ$6","v":2.433208213733716E-2},{"$f":"'Population 2016'!AR71/'Population 2016'!AR$6","v":2.008064361153156E-2},{"$f":"'Population 2016'!AS71/'Population 2016'!AS$6","v":9.4687773137807126E-3},{"$f":"'Population 2016'!AT71/'Population 2016'!AT$6","v":0},{"$f":"'Population 2016'!AU71/'Population 2016'!AU$6","v":0},{"$f":"'Population 2016'!AV71/'Population 2016'!AV$6","v":1.6299297033241986E-2},{"$f":"'Population 2016'!AW71/'Population 2016'!AW$6","v":1.891907386628883E-2},{"$f":"'Population 2016'!AX71/'Population 2016'!AX$6","v":1.9279788663855033E-2},{"$f":"'Population 2016'!AY71/'Population 2016'!AY$6","v":1.98127931824729E-2},{"$f":"'Population 2016'!AZ71/'Population 2016'!AZ$6","v":1.9311847934829214E-2},{"$f":"'Population 2016'!BA71/'Population 2016'!BA$6","v":2.4565178411332256E-2},{"$f":"'Population 2016'!BB71/'Population 2016'!BB$6","v":1.5085229114006093E-2},{"$f":"'Population 2016'!BC71/'Population 2016'!BC$6","v":0},69]
[null,"Female 60-64",{"$f":"'Population 2016'!C72/'Population 2016'!C$6","v":7.8892634296779743E-3},{"$f":"'Population 2016'!D72/'Population 2016'!D$6","v":7.3889048727539038E-3},{"$f":"'Population 2016'!E72/'Population 2016'!E$6","v":6.0403981830482265E-3},{"$f":"'Population 2016'!F72/'Population 2016'!F$6","v":9.0452696269367264E-3},{"$f":"'Population 2016'!G72/'Population 2016'!G$6","v":1.119444755401321E-2},{"$f":"'Population 2016'!H72/'Population 2016'!H$6","v":2.1124871062563725E-2},{"$f":"'Population 2016'!I72/'Population 2016'!I$6","v":9.0317568223754491E-3},{"$f":"'Population 2016'!J72/'Population 2016'!J$6","v":1.4996831655284095E-2},{"$f":"'Population 2016'!K72/'Population 2016'!K$6","v":1.6070749334347659E-2},{"$f":"'Population 2016'!L72/'Population 2016'!L$6","v":7.7098417806382409E-3},{"$f":"'Population 2016'!M72/'Population 2016'!M$6","v":7.7098417806382409E-3},{"$f":"'Population 2016'!N72/'Population 2016'!N$6","v":1.9556235204164156E-2},{"$f":"'Population 2016'!O72/'Population 2016'!O$6","v":1.9775273177101229E-2},{"$f":"'Population 2016'!P72/'Population 2016'!P$6","v":8.6165882539514724E-3},{"$f":"'Population 2016'!Q72/'Population 2016'!Q$6","v":3.7330665024630544E-3},{"$f":"'Population 2016'!R72/'Population 2016'!R$6","v":1.4683284958169712E-2},{"$f":"'Population 2016'!S72/'Population 2016'!S$6","v":1.2955207862035585E-2},{"$f":"'Population 2016'!T72/'Population 2016'!T$6","v":1.3005402762910581E-2},{"$f":"'Population 2016'!U72/'Population 2016'!U$6","v":0},{"$f":"'Population 2016'!V72/'Population 2016'!V$6","v":1.1471295248868777E-2},{"$f":"'Population 2016'!W72/'Population 2016'!W$6","v":1.7293264248704664E-2},{"$f":"'Population 2016'!X72/'Population 2016'!X$6","v":1.7293264248704664E-2},{"$f":"'Population 2016'!Y72/'Population 2016'!Y$6","v":1.2985834551595504E-2},{"$f":"'Population 2016'!Z72/'Population 2016'!Z$6","v":2.2184347001831986E-2},{"$f":"'Population 2016'!AA72/'Population 2016'!AA$6","v":2.0094115000281219E-2},{"$f":"'Population 2016'!AB72/'Population 2016'!AB$6","v":6.7513009151265024E-3},{"$f":"'Population 2016'!AC72/'Population 2016'!AC$6","v":2.1380523123489981E-2},{"$f":"'Population 2016'!AD72/'Population 2016'!AD$6","v":1.0075007767076472E-2},{"$f":"'Population 2016'!AE72/'Population 2016'!AE$6","v":9.6728135620487866E-3},{"$f":"'Population 2016'!AF72/'Population 2016'!AF$6","v":2.8819559685805952E-2},{"$f":"'Population 2016'!AG72/'Population 2016'!AG$6","v":9.6728135620487866E-3},{"$f":"'Population 2016'!AH72/'Population 2016'!AH$6","v":1.778203545918278E-2},{"$f":"'Population 2016'!AI72/'Population 2016'!AI$6","v":1.1103345233262325E-2},{"$f":"'Population 2016'!AJ72/'Population 2016'!AJ$6","v":7.117874455421243E-3},{"$f":"'Population 2016'!AK72/'Population 2016'!AK$6","v":2.9129270980947884E-3},{"$f":"'Population 2016'!AL72/'Population 2016'!AL$6","v":2.6085154260673891E-2},{"$f":"'Population 2016'!AM72/'Population 2016'!AM$6","v":1.8673743289409468E-2},{"$f":"'Population 2016'!AN72/'Population 2016'!AN$6","v":0},{"$f":"'Population 2016'!AO72/'Population 2016'!AO$6","v":0},{"$f":"'Population 2016'!AP72/'Population 2016'!AP$6","v":1.0174209339156309E-2},{"$f":"'Population 2016'!AQ72/'Population 2016'!AQ$6","v":1.8532420696253771E-2},{"$f":"'Population 2016'!AR72/'Population 2016'!AR$6","v":1.6510801654471403E-2},{"$f":"'Population 2016'!AS72/'Population 2016'!AS$6","v":9.0317568223754491E-3},{"$f":"'Population 2016'!AT72/'Population 2016'!AT$6","v":0},{"$f":"'Population 2016'!AU72/'Population 2016'!AU$6","v":0},{"$f":"'Population 2016'!AV72/'Population 2016'!AV$6","v":1.5012510425354461E-2},{"$f":"'Population 2016'!AW72/'Population 2016'!AW$6","v":1.6584902415253195E-2},{"$f":"'Population 2016'!AX72/'Population 2016'!AX$6","v":1.3950039393798953E-2},{"$f":"'Population 2016'!AY72/'Population 2016'!AY$6","v":1.6497762031499247E-2},{"$f":"'Population 2016'!AZ72/'Population 2016'!AZ$6","v":1.56406316992997E-2},{"$f":"'Population 2016'!BA72/'Population 2016'!BA$6","v":2.097902097902098E-2},{"$f":"'Population 2016'!BB72/'Population 2016'!BB$6","v":1.2654741072007258E-2},{"$f":"'Population 2016'!BC72/'Population 2016'!BC$6","v":0},70]
[null,"Female 65-69",{"$f":"'Population 2016'!C73/'Population 2016'!C$6","v":7.315498816610486E-3},{"$f":"'Population 2016'!D73/'Population 2016'!D$6","v":6.8657965631784062E-3},{"$f":"'Population 2016'!E73/'Population 2016'!E$6","v":5.6538126993331403E-3},{"$f":"'Population 2016'!F73/'Population 2016'!F$6","v":8.0931359819960188E-3},{"$f":"'Population 2016'!G73/'Population 2016'!G$6","v":1.2593753498264861E-2},{"$f":"'Population 2016'!H73/'Population 2016'!H$6","v":2.0200695218731555E-2},{"$f":"'Population 2016'!I73/'Population 2016'!I$6","v":9.3716616490239872E-3},{"$f":"'Population 2016'!J73/'Population 2016'!J$6","v":1.6052946560585792E-2},{"$f":"'Population 2016'!K73/'Population 2016'!K$6","v":1.7687333586915176E-2},{"$f":"'Population 2016'!L73/'Population 2016'!L$6","v":6.6595155090730315E-3},{"$f":"'Population 2016'!M73/'Population 2016'!M$6","v":6.6595155090730315E-3},{"$f":"'Population 2016'!N73/'Population 2016'!N$6","v":1.9512123395432956E-2},{"$f":"'Population 2016'!O73/'Population 2016'!O$6","v":1.9277025633977048E-2},{"$f":"'Population 2016'!P73/'Population 2016'!P$6","v":7.7707881799439658E-3},{"$f":"'Population 2016'!Q73/'Population 2016'!Q$6","v":3.9254926108374388E-3},{"$f":"'Population 2016'!R73/'Population 2016'!R$6","v":1.4768652893973024E-2},{"$f":"'Population 2016'!S73/'Population 2016'!S$6","v":1.2918380875219647E-2},{"$f":"'Population 2016'!T73/'Population 2016'!T$6","v":1.258397039859073E-2},{"$f":"'Population 2016'!U73/'Population 2016'!U$6","v":0},{"$f":"'Population 2016'!V73/'Population 2016'!V$6","v":1.1559671945701358E-2},{"$f":"'Population 2016'!W73/'Population 2016'!W$6","v":1.7392746113989638E-2},{"$f":"'Population 2016'!X73/'Population 2016'!X$6","v":1.7392746113989638E-2},{"$f":"'Population 2016'!Y73/'Population 2016'!Y$6","v":1.3489943035741291E-2},{"$f":"'Population 2016'!Z73/'Population 2016'!Z$6","v":1.990575753985253E-2},{"$f":"'Population 2016'!AA73/'Population 2016'!AA$6","v":1.8678015460857286E-2},{"$f":"'Population 2016'!AB73/'Population 2016'!AB$6","v":6.2466355643280101E-3},{"$f":"'Population 2016'!AC73/'Population 2016'!AC$6","v":1.9625884614037886E-2},{"$f":"'Population 2016'!AD73/'Population 2016'!AD$6","v":9.3204917668989386E-3},{"$f":"'Population 2016'!AE73/'Population 2016'!AE$6","v":8.1444687996460683E-3},{"$f":"'Population 2016'!AF73/'Population 2016'!AF$6","v":2.8902533466091382E-2},{"$f":"'Population 2016'!AG73/'Population 2016'!AG$6","v":8.1444687996460683E-3},{"$f":"'Population 2016'!AH73/'Population 2016'!AH$6","v":1.6974396805806608E-2},{"$f":"'Population 2016'!AI73/'Population 2016'!AI$6","v":1.0965233513436597E-2},{"$f":"'Population 2016'!AJ73/'Population 2016'!AJ$6","v":8.0076087623488987E-3},{"$f":"'Population 2016'!AK73/'Population 2016'!AK$6","v":2.519288301054952E-3},{"$f":"'Population 2016'!AL73/'Population 2016'!AL$6","v":2.5552199917095991E-2},{"$f":"'Population 2016'!AM73/'Population 2016'!AM$6","v":1.7703757930697901E-2},{"$f":"'Population 2016'!AN73/'Population 2016'!AN$6","v":0},{"$f":"'Population 2016'!AO73/'Population 2016'!AO$6","v":0},{"$f":"'Population 2016'!AP73/'Population 2016'!AP$6","v":8.7344627345587178E-3},{"$f":"'Population 2016'!AQ73/'Population 2016'!AQ$6","v":1.7855302863030838E-2},{"$f":"'Population 2016'!AR73/'Population 2016'!AR$6","v":1.569125275679293E-2},{"$f":"'Population 2016'!AS73/'Population 2016'!AS$6","v":9.3716616490239872E-3},{"$f":"'Population 2016'!AT73/'Population 2016'!AT$6","v":0},{"$f":"'Population 2016'!AU73/'Population 2016'!AU$6","v":0},{"$f":"'Population 2016'!AV73/'Population 2016'!AV$6","v":1.2867866078875254E-2},{"$f":"'Population 2016'!AW73/'Population 2016'!AW$6","v":1.5995216996044195E-2},{"$f":"'Population 2016'!AX73/'Population 2016'!AX$6","v":1.4459841497891273E-2},{"$f":"'Population 2016'!AY73/'Population 2016'!AY$6","v":1.6312877025673217E-2},{"$f":"'Population 2016'!AZ73/'Population 2016'!AZ$6","v":1.5149349721309132E-2},{"$f":"'Population 2016'!BA73/'Population 2016'!BA$6","v":1.9106249875480645E-2},{"$f":"'Population 2016'!BB73/'Population 2016'!BB$6","v":1.2379285760580725E-2},{"$f":"'Population 2016'!BC73/'Population 2016'!BC$6","v":0},71]
[null,"Female 70-74",{"$f":"'Population 2016'!C74/'Population 2016'!C$6","v":5.1459513734490427E-3},{"$f":"'Population 2016'!D74/'Population 2016'!D$6","v":4.7995187403551904E-3},{"$f":"'Population 2016'!E74/'Population 2016'!E$6","v":3.8658548371508649E-3},{"$f":"'Population 2016'!F74/'Population 2016'!F$6","v":6.9678871288842729E-3},{"$f":"'Population 2016'!G74/'Population 2016'!G$6","v":9.2913914698309636E-3},{"$f":"'Population 2016'!H74/'Population 2016'!H$6","v":1.5812350566728476E-2},{"$f":"'Population 2016'!I74/'Population 2016'!I$6","v":7.2351170243760317E-3},{"$f":"'Population 2016'!J74/'Population 2016'!J$6","v":1.2391748222206575E-2},{"$f":"'Population 2016'!K74/'Population 2016'!K$6","v":1.3265500190186384E-2},{"$f":"'Population 2016'!L74/'Population 2016'!L$6","v":6.9500312863144719E-3},{"$f":"'Population 2016'!M74/'Population 2016'!M$6","v":6.9500312863144719E-3},{"$f":"'Population 2016'!N74/'Population 2016'!N$6","v":1.4086370921495684E-2},{"$f":"'Population 2016'!O74/'Population 2016'!O$6","v":1.4895883444436809E-2},{"$f":"'Population 2016'!P74/'Population 2016'!P$6","v":5.3919754717978536E-3},{"$f":"'Population 2016'!Q74/'Population 2016'!Q$6","v":3.3482142857142855E-3},{"$f":"'Population 2016'!R74/'Population 2016'!R$6","v":1.0585624039610723E-2},{"$f":"'Population 2016'!S74/'Population 2016'!S$6","v":9.9590694346531426E-3},{"$f":"'Population 2016'!T74/'Population 2016'!T$6","v":9.1535109530271486E-3},{"$f":"'Population 2016'!U74/'Population 2016'!U$6","v":0},{"$f":"'Population 2016'!V74/'Population 2016'!V$6","v":8.3604355203619907E-3},{"$f":"'Population 2016'!W74/'Population 2016'!W$6","v":1.3786528497409327E-2},{"$f":"'Population 2016'!X74/'Population 2016'!X$6","v":1.3786528497409327E-2},{"$f":"'Population 2016'!Y74/'Population 2016'!Y$6","v":1.0092251852598679E-2},{"$f":"'Population 2016'!Z74/'Population 2016'!Z$6","v":1.6393691649121529E-2},{"$f":"'Population 2016'!AA74/'Population 2016'!AA$6","v":1.4875919433560184E-2},{"$f":"'Population 2016'!AB74/'Population 2016'!AB$6","v":4.2728333034272384E-3},{"$f":"'Population 2016'!AC74/'Population 2016'!AC$6","v":1.5665303676959768E-2},{"$f":"'Population 2016'!AD74/'Population 2016'!AD$6","v":7.1457103546225201E-3},{"$f":"'Population 2016'!AE74/'Population 2016'!AE$6","v":6.3748064431797613E-3},{"$f":"'Population 2016'!AF74/'Population 2016'!AF$6","v":2.1794446288306228E-2},{"$f":"'Population 2016'!AG74/'Population 2016'!AG$6","v":6.3748064431797613E-3},{"$f":"'Population 2016'!AH74/'Population 2016'!AH$6","v":1.3457147951709502E-2},{"$f":"'Population 2016'!AI74/'Population 2016'!AI$6","v":8.2615919677571908E-3},{"$f":"'Population 2016'!AJ74/'Population 2016'!AJ$6","v":6.0747376817819228E-3},{"$f":"'Population 2016'!AK74/'Population 2016'!AK$6","v":1.1021886317115414E-3},{"$f":"'Population 2016'!AL74/'Population 2016'!AL$6","v":1.9911766447563213E-2},{"$f":"'Population 2016'!AM74/'Population 2016'!AM$6","v":1.4513177159590045E-2},{"$f":"'Population 2016'!AN74/'Population 2016'!AN$6","v":0},{"$f":"'Population 2016'!AO74/'Population 2016'!AO$6","v":0},{"$f":"'Population 2016'!AP74/'Population 2016'!AP$6","v":7.2467245764745404E-3},{"$f":"'Population 2016'!AQ74/'Population 2016'!AQ$6","v":1.4131154780304703E-2},{"$f":"'Population 2016'!AR74/'Population 2016'!AR$6","v":1.2313580886084963E-2},{"$f":"'Population 2016'!AS74/'Population 2016'!AS$6","v":7.2351170243760317E-3},{"$f":"'Population 2016'!AT74/'Population 2016'!AT$6","v":0},{"$f":"'Population 2016'!AU74/'Population 2016'!AU$6","v":0},{"$f":"'Population 2016'!AV74/'Population 2016'!AV$6","v":1.0484927916120577E-2},{"$f":"'Population 2016'!AW74/'Population 2016'!AW$6","v":1.2039410642183801E-2},{"$f":"'Population 2016'!AX74/'Population 2016'!AX$6","v":1.1540065810817074E-2},{"$f":"'Population 2016'!AY74/'Population 2016'!AY$6","v":1.2610877257854388E-2},{"$f":"'Population 2016'!AZ74/'Population 2016'!AZ$6","v":1.1344147491782192E-2},{"$f":"'Population 2016'!BA74/'Population 2016'!BA$6","v":1.3607475145936684E-2},{"$f":"'Population 2016'!BB74/'Population 2016'!BB$6","v":9.7705619288353095E-3},{"$f":"'Population 2016'!BC74/'Population 2016'!BC$6","v":0},72]
[null,"Female 75-79",{"$f":"'Population 2016'!C75/'Population 2016'!C$6","v":4.3570250304812447E-3},{"$f":"'Population 2016'!D75/'Population 2016'!D$6","v":3.8840791985980698E-3},{"$f":"'Population 2016'!E75/'Population 2016'!E$6","v":2.6094520150768338E-3},{"$f":"'Population 2016'!F75/'Population 2016'!F$6","v":7.1842811390980697E-3},{"$f":"'Population 2016'!G75/'Population 2016'!G$6","v":8.0600022388895107E-3},{"$f":"'Population 2016'!H75/'Population 2016'!H$6","v":1.3642027939922608E-2},{"$f":"'Population 2016'!I75/'Population 2016'!I$6","v":5.0500145673497135E-3},{"$f":"'Population 2016'!J75/'Population 2016'!J$6","v":9.6693186885399799E-3},{"$f":"'Population 2016'!K75/'Population 2016'!K$6","v":1.0127424876378851E-2},{"$f":"'Population 2016'!L75/'Population 2016'!L$6","v":4.2236524537409489E-3},{"$f":"'Population 2016'!M75/'Population 2016'!M$6","v":4.2236524537409489E-3},{"$f":"'Population 2016'!N75/'Population 2016'!N$6","v":1.2336602508491524E-2},{"$f":"'Population 2016'!O75/'Population 2016'!O$6","v":1.2696721874785238E-2},{"$f":"'Population 2016'!P75/'Population 2016'!P$6","v":4.5461753977903471E-3},{"$f":"'Population 2016'!Q75/'Population 2016'!Q$6","v":2.8863916256157635E-3},{"$f":"'Population 2016'!R75/'Population 2016'!R$6","v":9.3051050025610375E-3},{"$f":"'Population 2016'!S75/'Population 2016'!S$6","v":8.1940045665463649E-3},{"$f":"'Population 2016'!T75/'Population 2016'!T$6","v":8.1083586895139195E-3},{"$f":"'Population 2016'!U75/'Population 2016'!U$6","v":0},{"$f":"'Population 2016'!V75/'Population 2016'!V$6","v":8.9790723981900446E-3},{"$f":"'Population 2016'!W75/'Population 2016'!W$6","v":1.1316062176165802E-2},{"$f":"'Population 2016'!X75/'Population 2016'!X$6","v":1.1316062176165802E-2},{"$f":"'Population 2016'!Y75/'Population 2016'!Y$6","v":9.2755961082825016E-3},{"$f":"'Population 2016'!Z75/'Population 2016'!Z$6","v":1.5539980130699892E-2},{"$f":"'Population 2016'!AA75/'Population 2016'!AA$6","v":1.3511064449402251E-2},{"$f":"'Population 2016'!AB75/'Population 2016'!AB$6","v":3.4429391710030506E-3},{"$f":"'Population 2016'!AC75/'Population 2016'!AC$6","v":1.4801601350799314E-2},{"$f":"'Population 2016'!AD75/'Population 2016'!AD$6","v":6.0509224327962956E-3},{"$f":"'Population 2016'!AE75/'Population 2016'!AE$6","v":5.329096868904217E-3},{"$f":"'Population 2016'!AF75/'Population 2016'!AF$6","v":2.077110299811926E-2},{"$f":"'Population 2016'!AG75/'Population 2016'!AG$6","v":5.329096868904217E-3},{"$f":"'Population 2016'!AH75/'Population 2016'!AH$6","v":1.119156419678413E-2},{"$f":"'Population 2016'!AI75/'Population 2016'!AI$6","v":6.8888451767620757E-3},{"$f":"'Population 2016'!AJ75/'Population 2016'!AJ$6","v":3.9884641345032832E-3},{"$f":"'Population 2016'!AK75/'Population 2016'!AK$6","v":7.8727759407967246E-4},{"$f":"'Population 2016'!AL75/'Population 2016'!AL$6","v":1.7276603304316931E-2},{"$f":"'Population 2016'!AM75/'Population 2016'!AM$6","v":1.199975597852611E-2},{"$f":"'Population 2016'!AN75/'Population 2016'!AN$6","v":0},{"$f":"'Population 2016'!AO75/'Population 2016'!AO$6","v":0},{"$f":"'Population 2016'!AP75/'Population 2016'!AP$6","v":4.5591975812257039E-3},{"$f":"'Population 2016'!AQ75/'Population 2016'!AQ$6","v":1.4101714874512401E-2},{"$f":"'Population 2016'!AR75/'Population 2016'!AR$6","v":1.0816915037083175E-2},{"$f":"'Population 2016'!AS75/'Population 2016'!AS$6","v":5.0500145673497135E-3},{"$f":"'Population 2016'!AT75/'Population 2016'!AT$6","v":0},{"$f":"'Population 2016'!AU75/'Population 2016'!AU$6","v":0},{"$f":"'Population 2016'!AV75/'Population 2016'!AV$6","v":9.1028237817228647E-3},{"$f":"'Population 2016'!AW75/'Population 2016'!AW$6","v":1.0106552879220959E-2},{"$f":"'Population 2016'!AX75/'Population 2016'!AX$6","v":9.2227835194883447E-3},{"$f":"'Population 2016'!AY75/'Population 2016'!AY$6","v":1.0598640450259484E-2},{"$f":"'Population 2016'!AZ75/'Population 2016'!AZ$6","v":9.8256395598113472E-3},{"$f":"'Population 2016'!BA75/'Population 2016'!BA$6","v":1.1754627139242524E-2},{"$f":"'Population 2016'!BB75/'Population 2016'!BB$6","v":7.7613584807829416E-3},{"$f":"'Population 2016'!BC75/'Population 2016'!BC$6","v":0},73]
[null,"Female 80-84",{"$f":"'Population 2016'!C76/'Population 2016'!C$6","v":3.3887972459298575E-3},{"$f":"'Population 2016'!D76/'Population 2016'!D$6","v":3.1255721497135984E-3},{"$f":"'Population 2016'!E76/'Population 2016'!E$6","v":2.4161592732192907E-3},{"$f":"'Population 2016'!F76/'Population 2016'!F$6","v":4.1980437981476671E-3},{"$f":"'Population 2016'!G76/'Population 2016'!G$6","v":6.5487518190977274E-3},{"$f":"'Population 2016'!H76/'Population 2016'!H$6","v":9.9691742637895986E-3},{"$f":"'Population 2016'!I76/'Population 2016'!I$6","v":3.9817422550257357E-3},{"$f":"'Population 2016'!J76/'Population 2016'!J$6","v":7.2989274566406161E-3},{"$f":"'Population 2016'!K76/'Population 2016'!K$6","v":6.6565233929250667E-3},{"$f":"'Population 2016'!L76/'Population 2016'!L$6","v":3.3744524894967374E-3},{"$f":"'Population 2016'!M76/'Population 2016'!M$6","v":3.3744524894967374E-3},{"$f":"'Population 2016'!N76/'Population 2016'!N$6","v":9.8663412195444718E-3},{"$f":"'Population 2016'!O76/'Population 2016'!O$6","v":9.6213318672256198E-3},{"$f":"'Population 2016'!P76/'Population 2016'!P$6","v":2.9603002590262726E-3},{"$f":"'Population 2016'!Q76/'Population 2016'!Q$6","v":1.6163793103448276E-3},{"$f":"'Population 2016'!R76/'Population 2016'!R$6","v":8.0245859655113539E-3},{"$f":"'Population 2016'!S76/'Population 2016'!S$6","v":6.2184997737770812E-3},{"$f":"'Population 2016'!T76/'Population 2016'!T$6","v":6.422629232234519E-3},{"$f":"'Population 2016'!U76/'Population 2016'!U$6","v":0},{"$f":"'Population 2016'!V76/'Population 2016'!V$6","v":6.4161481900452486E-3},{"$f":"'Population 2016'!W76/'Population 2016'!W$6","v":8.1740932642487048E-3},{"$f":"'Population 2016'!X76/'Population 2016'!X$6","v":8.1740932642487048E-3},{"$f":"'Population 2016'!Y76/'Population 2016'!Y$6","v":6.7953823662852244E-3},{"$f":"'Population 2016'!Z76/'Population 2016'!Z$6","v":1.2301344975406425E-2},{"$f":"'Population 2016'!AA76/'Population 2016'!AA$6","v":1.0590124799240081E-2},{"$f":"'Population 2016'!AB76/'Population 2016'!AB$6","v":2.7924816077516596E-3},{"$f":"'Population 2016'!AC76/'Population 2016'!AC$6","v":1.1733901872522205E-2},{"$f":"'Population 2016'!AD76/'Population 2016'!AD$6","v":4.6750403148255E-3},{"$f":"'Population 2016'!AE76/'Population 2016'!AE$6","v":4.0018501015544874E-3},{"$f":"'Population 2016'!AF76/'Population 2016'!AF$6","v":1.653944020356234E-2},{"$f":"'Population 2016'!AG76/'Population 2016'!AG$6","v":4.0018501015544874E-3},{"$f":"'Population 2016'!AH76/'Population 2016'!AH$6","v":8.5343980644642485E-3},{"$f":"'Population 2016'!AI76/'Population 2016'!AI$6","v":5.4240239058831411E-3},{"$f":"'Population 2016'!AJ76/'Population 2016'!AJ$6","v":4.1725470945572808E-3},{"$f":"'Population 2016'!AK76/'Population 2016'!AK$6","v":7.8727759407967246E-4},{"$f":"'Population 2016'!AL76/'Population 2016'!AL$6","v":1.2154319891040445E-2},{"$f":"'Population 2016'!AM76/'Population 2016'!AM$6","v":9.0348950707662273E-3},{"$f":"'Population 2016'!AN76/'Population 2016'!AN$6","v":0},{"$f":"'Population 2016'!AO76/'Population 2016'!AO$6","v":0},{"$f":"'Population 2016'!AP76/'Population 2016'!AP$6","v":5.2310793300379133E-3},{"$f":"'Population 2016'!AQ76/'Population 2016'!AQ$6","v":1.1584602929270627E-2},{"$f":"'Population 2016'!AR76/'Population 2016'!AR$6","v":8.3514858704117987E-3},{"$f":"'Population 2016'!AS76/'Population 2016'!AS$6","v":3.9817422550257357E-3},{"$f":"'Population 2016'!AT76/'Population 2016'!AT$6","v":0},{"$f":"'Population 2016'!AU76/'Population 2016'!AU$6","v":0},{"$f":"'Population 2016'!AV76/'Population 2016'!AV$6","v":6.9343500536161087E-3},{"$f":"'Population 2016'!AW76/'Population 2016'!AW$6","v":7.8624722561200337E-3},{"$f":"'Population 2016'!AX76/'Population 2016'!AX$6","v":7.9251054363442559E-3},{"$f":"'Population 2016'!AY76/'Population 2016'!AY$6","v":8.0102503686950988E-3},{"$f":"'Population 2016'!AZ76/'Population 2016'!AZ$6","v":7.833714449049593E-3},{"$f":"'Population 2016'!BA76/'Population 2016'!BA$6","v":8.9255473870858484E-3},{"$f":"'Population 2016'!BB76/'Population 2016'!BB$6","v":5.7683582863438977E-3},{"$f":"'Population 2016'!BC76/'Population 2016'!BC$6","v":0},74]
[null,"Female 85-89",{"$f":"'Population 2016'!C77/'Population 2016'!C$6","v":2.5998709029620599E-3},{"$f":"'Population 2016'!D77/'Population 2016'!D$6","v":2.3539873930897392E-3},{"$f":"'Population 2016'!E77/'Population 2016'!E$6","v":1.6913114912535034E-3},{"$f":"'Population 2016'!F77/'Population 2016'!F$6","v":2.5967281225655675E-3},{"$f":"'Population 2016'!G77/'Population 2016'!G$6","v":4.8136124482256798E-3},{"$f":"'Population 2016'!H77/'Population 2016'!H$6","v":6.1234102684879889E-3},{"$f":"'Population 2016'!I77/'Population 2016'!I$6","v":2.8649121103233952E-3},{"$f":"'Population 2016'!J77/'Population 2016'!J$6","v":3.8724213194395551E-3},{"$f":"'Population 2016'!K77/'Population 2016'!K$6","v":4.1841004184100415E-3},{"$f":"'Population 2016'!L77/'Population 2016'!L$6","v":2.2570841154911951E-3},{"$f":"'Population 2016'!M77/'Population 2016'!M$6","v":2.2570841154911951E-3},{"$f":"'Population 2016'!N77/'Population 2016'!N$6","v":6.4991398197297417E-3},{"$f":"'Population 2016'!O77/'Population 2016'!O$6","v":6.545941859666002E-3},{"$f":"'Population 2016'!P77/'Population 2016'!P$6","v":1.744462652640482E-3},{"$f":"'Population 2016'!Q77/'Population 2016'!Q$6","v":8.0818965517241378E-4},{"$f":"'Population 2016'!R77/'Population 2016'!R$6","v":3.7561891753457402E-3},{"$f":"'Population 2016'!S77/'Population 2016'!S$6","v":3.7458306589926243E-3},{"$f":"'Population 2016'!T77/'Population 2016'!T$6","v":4.2901814687760758E-3},{"$f":"'Population 2016'!U77/'Population 2016'!U$6","v":0},{"$f":"'Population 2016'!V77/'Population 2016'!V$6","v":3.8355486425339365E-3},{"$f":"'Population 2016'!W77/'Population 2016'!W$6","v":5.0155440414507771E-3},{"$f":"'Population 2016'!X77/'Population 2016'!X$6","v":5.0155440414507771E-3},{"$f":"'Population 2016'!Y77/'Population 2016'!Y$6","v":3.8513888188738215E-3},{"$f":"'Population 2016'!Z77/'Population 2016'!Z$6","v":7.1699615070286889E-3},{"$f":"'Population 2016'!AA77/'Population 2016'!AA$6","v":6.2305880000249969E-3},{"$f":"'Population 2016'!AB77/'Population 2016'!AB$6","v":2.1083796877803696E-3},{"$f":"'Population 2016'!AC77/'Population 2016'!AC$6","v":6.958250497017893E-3},{"$f":"'Population 2016'!AD77/'Population 2016'!AD$6","v":3.0772417262142529E-3},{"$f":"'Population 2016'!AE77/'Population 2016'!AE$6","v":2.4533955396464696E-3},{"$f":"'Population 2016'!AF77/'Population 2016'!AF$6","v":9.9845115610133865E-3},{"$f":"'Population 2016'!AG77/'Population 2016'!AG$6","v":2.4533955396464696E-3},{"$f":"'Population 2016'!AH77/'Population 2016'!AH$6","v":4.9227498872452527E-3},{"$f":"'Population 2016'!AI77/'Population 2016'!AI$6","v":3.1807547596228295E-3},{"$f":"'Population 2016'!AJ77/'Population 2016'!AJ$6","v":2.2089955206479718E-3},{"$f":"'Population 2016'!AK77/'Population 2016'!AK$6","v":6.2982207526373799E-4},{"$f":"'Population 2016'!AL77/'Population 2016'!AL$6","v":6.7063421566885767E-3},{"$f":"'Population 2016'!AM77/'Population 2016'!AM$6","v":5.4538799414348459E-3},{"$f":"'Population 2016'!AN77/'Population 2016'!AN$6","v":0},{"$f":"'Population 2016'!AO77/'Population 2016'!AO$6","v":0},{"$f":"'Population 2016'!AP77/'Population 2016'!AP$6","v":2.4955607813024906E-3},{"$f":"'Population 2016'!AQ77/'Population 2016'!AQ$6","v":6.668138661956282E-3},{"$f":"'Population 2016'!AR77/'Population 2016'!AR$6","v":5.0128132231106008E-3},{"$f":"'Population 2016'!AS77/'Population 2016'!AS$6","v":2.8649121103233952E-3},{"$f":"'Population 2016'!AT77/'Population 2016'!AT$6","v":0},{"$f":"'Population 2016'!AU77/'Population 2016'!AU$6","v":0},{"$f":"'Population 2016'!AV77/'Population 2016'!AV$6","v":4.5990706541165259E-3},{"$f":"'Population 2016'!AW77/'Population 2016'!AW$6","v":4.209698687130935E-3},{"$f":"'Population 2016'!AX77/'Population 2016'!AX$6","v":3.5686147286462435E-3},{"$f":"'Population 2016'!AY77/'Population 2016'!AY$6","v":4.983295854706183E-3},{"$f":"'Population 2016'!AZ77/'Population 2016'!AZ$6","v":4.948549378304988E-3},{"$f":"'Population 2016'!BA77/'Population 2016'!BA$6","v":6.4949295718526485E-3},{"$f":"'Population 2016'!BB77/'Population 2016'!BB$6","v":2.5601140709054378E-3},{"$f":"'Population 2016'!BC77/'Population 2016'!BC$6","v":0},75]
[null,"Female 90+",{"$f":"'Population 2016'!C78/'Population 2016'!C$6","v":1.2730402352434914E-3},{"$f":"'Population 2016'!D78/'Population 2016'!D$6","v":1.1639159888054821E-3},{"$f":"'Population 2016'!E78/'Population 2016'!E$6","v":8.6981733835894465E-4},{"$f":"'Population 2016'!F78/'Population 2016'!F$6","v":1.6013156755820999E-3},{"$f":"'Population 2016'!G78/'Population 2016'!G$6","v":3.0784730773536326E-3},{"$f":"'Population 2016'!H78/'Population 2016'!H$6","v":3.3866572857849829E-3},{"$f":"'Population 2016'!I78/'Population 2016'!I$6","v":1.1653879770807032E-3},{"$f":"'Population 2016'!J78/'Population 2016'!J$6","v":2.3469220117815484E-3},{"$f":"'Population 2016'!K78/'Population 2016'!K$6","v":2.6626093571700264E-3},{"$f":"'Population 2016'!L78/'Population 2016'!L$6","v":8.9389469920443372E-4},{"$f":"'Population 2016'!M78/'Population 2016'!M$6","v":8.9389469920443372E-4},{"$f":"'Population 2016'!N78/'Population 2016'!N$6","v":3.514240762252055E-3},{"$f":"'Population 2016'!O78/'Population 2016'!O$6","v":3.4877328018692874E-3},{"$f":"'Population 2016'!P78/'Population 2016'!P$6","v":2.6431252312734575E-4},{"$f":"'Population 2016'!Q78/'Population 2016'!Q$6","v":2.3091133004926107E-4},{"$f":"'Population 2016'!R78/'Population 2016'!R$6","v":2.2195663308861194E-3},{"$f":"'Population 2016'!S78/'Population 2016'!S$6","v":2.1412262334410083E-3},{"$f":"'Population 2016'!T78/'Population 2016'!T$6","v":2.2841634146135888E-3},{"$f":"'Population 2016'!U78/'Population 2016'!U$6","v":0},{"$f":"'Population 2016'!V78/'Population 2016'!V$6","v":1.838235294117647E-3},{"$f":"'Population 2016'!W78/'Population 2016'!W$6","v":2.9181347150259067E-3},{"$f":"'Population 2016'!X78/'Population 2016'!X$6","v":2.9181347150259067E-3},{"$f":"'Population 2016'!Y78/'Population 2016'!Y$6","v":2.0567626153148158E-3},{"$f":"'Population 2016'!Z78/'Population 2016'!Z$6","v":3.8644877275171578E-3},{"$f":"'Population 2016'!AA78/'Population 2016'!AA$6","v":3.3546435691207809E-3},{"$f":"'Population 2016'!AB78/'Population 2016'!AB$6","v":1.0205454871702853E-3},{"$f":"'Population 2016'!AC78/'Population 2016'!AC$6","v":3.7115856718787084E-3},{"$f":"'Population 2016'!AD78/'Population 2016'!AD$6","v":1.7901261964996375E-3},{"$f":"'Population 2016'!AE78/'Population 2016'!AE$6","v":1.3272467673497296E-3},{"$f":"'Population 2016'!AF78/'Population 2016'!AF$6","v":5.0060847438875983E-3},{"$f":"'Population 2016'!AG78/'Population 2016'!AG$6","v":1.3272467673497296E-3},{"$f":"'Population 2016'!AH78/'Population 2016'!AH$6","v":2.7131064719476679E-3},{"$f":"'Population 2016'!AI78/'Population 2016'!AI$6","v":1.8331191904142096E-3},{"$f":"'Population 2016'!AJ78/'Population 2016'!AJ$6","v":1.1658587470086519E-3},{"$f":"'Population 2016'!AK78/'Population 2016'!AK$6","v":1.574555188159345E-4},{"$f":"'Population 2016'!AL78/'Population 2016'!AL$6","v":3.8047018416533427E-3},{"$f":"'Population 2016'!AM78/'Population 2016'!AM$6","v":2.8306490971205466E-3},{"$f":"'Population 2016'!AN78/'Population 2016'!AN$6","v":0},{"$f":"'Population 2016'!AO78/'Population 2016'!AO$6","v":0},{"$f":"'Population 2016'!AP78/'Population 2016'!AP$6","v":1.2957719441378317E-3},{"$f":"'Population 2016'!AQ78/'Population 2016'!AQ$6","v":3.1059100610878044E-3},{"$f":"'Population 2016'!AR78/'Population 2016'!AR$6","v":2.7271196077921578E-3},{"$f":"'Population 2016'!AS78/'Population 2016'!AS$6","v":1.1653879770807032E-3},{"$f":"'Population 2016'!AT78/'Population 2016'!AT$6","v":0},{"$f":"'Population 2016'!AU78/'Population 2016'!AU$6","v":0},{"$f":"'Population 2016'!AV78/'Population 2016'!AV$6","v":2.5735732157750506E-3},{"$f":"'Population 2016'!AW78/'Population 2016'!AW$6","v":2.555303483239011E-3},{"$f":"'Population 2016'!AX78/'Population 2016'!AX$6","v":2.0392084163692822E-3},{"$f":"'Population 2016'!AY78/'Population 2016'!AY$6","v":2.8162716003732099E-3},{"$f":"'Population 2016'!AZ78/'Population 2016'!AZ$6","v":2.7065170787480349E-3},{"$f":"'Population 2016'!BA78/'Population 2016'!BA$6","v":4.2436196282350132E-3},{"$f":"'Population 2016'!BB78/'Population 2016'!BB$6","v":1.9930001944390434E-3},{"$f":"'Population 2016'!BC78/'Population 2016'!BC$6","v":0},76]
[null,"Male 0-4",{"$f":"'Population 2016'!C79/'Population 2016'!C$6","v":0},{"$f":"'Population 2016'!D79/'Population 2016'!D$6","v":0},{"$f":"'Population 2016'!E79/'Population 2016'!E$6","v":0},{"$f":"'Population 2016'!F79/'Population 2016'!F$6","v":0},{"$f":"'Population 2016'!G79/'Population 2016'!G$6","v":0},{"$f":"'Population 2016'!H79/'Population 2016'!H$6","v":0},{"$f":"'Population 2016'!I79/'Population 2016'!I$6","v":0},{"$f":"'Population 2016'!J79/'Population 2016'!J$6","v":0},{"$f":"'Population 2016'!K79/'Population 2016'!K$6","v":0},{"$f":"'Population 2016'!L79/'Population 2016'!L$6","v":0},{"$f":"'Population 2016'!M79/'Population 2016'!M$6","v":0},{"$f":"'Population 2016'!N79/'Population 2016'!N$6","v":0},{"$f":"'Population 2016'!O79/'Population 2016'!O$6","v":0},{"$f":"'Population 2016'!P79/'Population 2016'!P$6","v":0},{"$f":"'Population 2016'!Q79/'Population 2016'!Q$6","v":0},{"$f":"'Population 2016'!R79/'Population 2016'!R$6","v":0},{"$f":"'Population 2016'!S79/'Population 2016'!S$6","v":0},{"$f":"'Population 2016'!T79/'Population 2016'!T$6","v":0},{"$f":"'Population 2016'!U79/'Population 2016'!U$6","v":0},{"$f":"'Population 2016'!V79/'Population 2016'!V$6","v":0},{"$f":"'Population 2016'!W79/'Population 2016'!W$6","v":0},{"$f":"'Population 2016'!X79/'Population 2016'!X$6","v":0},{"$f":"'Population 2016'!Y79/'Population 2016'!Y$6","v":0},{"$f":"'Population 2016'!Z79/'Population 2016'!Z$6","v":0},{"$f":"'Population 2016'!AA79/'Population 2016'!AA$6","v":0},{"$f":"'Population 2016'!AB79/'Population 2016'!AB$6","v":0},{"$f":"'Population 2016'!AC79/'Population 2016'!AC$6","v":0},{"$f":"'Population 2016'!AD79/'Population 2016'!AD$6","v":0},{"$f":"'Population 2016'!AE79/'Population 2016'!AE$6","v":0},{"$f":"'Population 2016'!AF79/'Population 2016'!AF$6","v":0},{"$f":"'Population 2016'!AG79/'Population 2016'!AG$6","v":0},{"$f":"'Population 2016'!AH79/'Population 2016'!AH$6","v":0},{"$f":"'Population 2016'!AI79/'Population 2016'!AI$6","v":0},{"$f":"'Population 2016'!AJ79/'Population 2016'!AJ$6","v":0},{"$f":"'Population 2016'!AK79/'Population 2016'!AK$6","v":0},{"$f":"'Population 2016'!AL79/'Population 2016'!AL$6","v":0},{"$f":"'Population 2016'!AM79/'Population 2016'!AM$6","v":0},{"$f":"'Population 2016'!AN79/'Population 2016'!AN$6","v":0},{"$f":"'Population 2016'!AO79/'Population 2016'!AO$6","v":0},{"$f":"'Population 2016'!AP79/'Population 2016'!AP$6","v":0},{"$f":"'Population 2016'!AQ79/'Population 2016'!AQ$6","v":0},{"$f":"'Population 2016'!AR79/'Population 2016'!AR$6","v":0},{"$f":"'Population 2016'!AS79/'Population 2016'!AS$6","v":0},{"$f":"'Population 2016'!AT79/'Population 2016'!AT$6","v":0},{"$f":"'Population 2016'!AU79/'Population 2016'!AU$6","v":0},{"$f":"'Population 2016'!AV79/'Population 2016'!AV$6","v":0},{"$f":"'Population 2016'!AW79/'Population 2016'!AW$6","v":0},{"$f":"'Population 2016'!AX79/'Population 2016'!AX$6","v":0},{"$f":"'Population 2016'!AY79/'Population 2016'!AY$6","v":0},{"$f":"'Population 2016'!AZ79/'Population 2016'!AZ$6","v":0},{"$f":"'Population 2016'!BA79/'Population 2016'!BA$6","v":0},{"$f":"'Population 2016'!BB79/'Population 2016'!BB$6","v":0},{"$f":"'Population 2016'!BC79/'Population 2016'!BC$6","v":0},77]
[null,"Male 5-9",{"$f":"'Population 2016'!C80/'Population 2016'!C$6","v":0},{"$f":"'Population 2016'!D80/'Population 2016'!D$6","v":0},{"$f":"'Population 2016'!E80/'Population 2016'!E$6","v":0},{"$f":"'Population 2016'!F80/'Population 2016'!F$6","v":0},{"$f":"'Population 2016'!G80/'Population 2016'!G$6","v":0},{"$f":"'Population 2016'!H80/'Population 2016'!H$6","v":0},{"$f":"'Population 2016'!I80/'Population 2016'!I$6","v":0},{"$f":"'Population 2016'!J80/'Population 2016'!J$6","v":0},{"$f":"'Population 2016'!K80/'Population 2016'!K$6","v":0},{"$f":"'Population 2016'!L80/'Population 2016'!L$6","v":0},{"$f":"'Population 2016'!M80/'Population 2016'!M$6","v":0},{"$f":"'Population 2016'!N80/'Population 2016'!N$6","v":0},{"$f":"'Population 2016'!O80/'Population 2016'!O$6","v":0},{"$f":"'Population 2016'!P80/'Population 2016'!P$6","v":0},{"$f":"'Population 2016'!Q80/'Population 2016'!Q$6","v":0},{"$f":"'Population 2016'!R80/'Population 2016'!R$6","v":0},{"$f":"'Population 2016'!S80/'Population 2016'!S$6","v":0},{"$f":"'Population 2016'!T80/'Population 2016'!T$6","v":0},{"$f":"'Population 2016'!U80/'Population 2016'!U$6","v":0},{"$f":"'Population 2016'!V80/'Population 2016'!V$6","v":0},{"$f":"'Population 2016'!W80/'Population 2016'!W$6","v":0},{"$f":"'Population 2016'!X80/'Population 2016'!X$6","v":0},{"$f":"'Population 2016'!Y80/'Population 2016'!Y$6","v":0},{"$f":"'Population 2016'!Z80/'Population 2016'!Z$6","v":0},{"$f":"'Population 2016'!AA80/'Population 2016'!AA$6","v":0},{"$f":"'Population 2016'!AB80/'Population 2016'!AB$6","v":0},{"$f":"'Population 2016'!AC80/'Population 2016'!AC$6","v":0},{"$f":"'Population 2016'!AD80/'Population 2016'!AD$6","v":0},{"$f":"'Population 2016'!AE80/'Population 2016'!AE$6","v":0},{"$f":"'Population 2016'!AF80/'Population 2016'!AF$6","v":0},{"$f":"'Population 2016'!AG80/'Population 2016'!AG$6","v":0},{"$f":"'Population 2016'!AH80/'Population 2016'!AH$6","v":0},{"$f":"'Population 2016'!AI80/'Population 2016'!AI$6","v":0},{"$f":"'Population 2016'!AJ80/'Population 2016'!AJ$6","v":0},{"$f":"'Population 2016'!AK80/'Population 2016'!AK$6","v":0},{"$f":"'Population 2016'!AL80/'Population 2016'!AL$6","v":0},{"$f":"'Population 2016'!AM80/'Population 2016'!AM$6","v":0},{"$f":"'Population 2016'!AN80/'Population 2016'!AN$6","v":0},{"$f":"'Population 2016'!AO80/'Population 2016'!AO$6","v":0},{"$f":"'Population 2016'!AP80/'Population 2016'!AP$6","v":0},{"$f":"'Population 2016'!AQ80/'Population 2016'!AQ$6","v":0},{"$f":"'Population 2016'!AR80/'Population 2016'!AR$6","v":0},{"$f":"'Population 2016'!AS80/'Population 2016'!AS$6","v":0},{"$f":"'Population 2016'!AT80/'Population 2016'!AT$6","v":0},{"$f":"'Population 2016'!AU80/'Population 2016'!AU$6","v":0},{"$f":"'Population 2016'!AV80/'Population 2016'!AV$6","v":0},{"$f":"'Population 2016'!AW80/'Population 2016'!AW$6","v":0},{"$f":"'Population 2016'!AX80/'Population 2016'!AX$6","v":0},{"$f":"'Population 2016'!AY80/'Population 2016'!AY$6","v":0},{"$f":"'Population 2016'!AZ80/'Population 2016'!AZ$6","v":0},{"$f":"'Population 2016'!BA80/'Population 2016'!BA$6","v":0},{"$f":"'Population 2016'!BB80/'Population 2016'!BB$6","v":0},{"$f":"'Population 2016'!BC80/'Population 2016'!BC$6","v":0},78]
[null,"Male 10-15",{"$f":"'Population 2016'!C81/'Population 2016'!C$6","v":0},{"$f":"'Population 2016'!D81/'Population 2016'!D$6","v":0},{"$f":"'Population 2016'!E81/'Population 2016'!E$6","v":0},{"$f":"'Population 2016'!F81/'Population 2016'!F$6","v":0},{"$f":"'Population 2016'!G81/'Population 2016'!G$6","v":0},{"$f":"'Population 2016'!H81/'Population 2016'!H$6","v":0},{"$f":"'Population 2016'!I81/'Population 2016'!I$6","v":0},{"$f":"'Population 2016'!J81/'Population 2016'!J$6","v":0},{"$f":"'Population 2016'!K81/'Population 2016'!K$6","v":0},{"$f":"'Population 2016'!L81/'Population 2016'!L$6","v":0},{"$f":"'Population 2016'!M81/'Population 2016'!M$6","v":0},{"$f":"'Population 2016'!N81/'Population 2016'!N$6","v":0},{"$f":"'Population 2016'!O81/'Population 2016'!O$6","v":0},{"$f":"'Population 2016'!P81/'Population 2016'!P$6","v":0},{"$f":"'Population 2016'!Q81/'Population 2016'!Q$6","v":0},{"$f":"'Population 2016'!R81/'Population 2016'!R$6","v":0},{"$f":"'Population 2016'!S81/'Population 2016'!S$6","v":0},{"$f":"'Population 2016'!T81/'Population 2016'!T$6","v":0},{"$f":"'Population 2016'!U81/'Population 2016'!U$6","v":0},{"$f":"'Population 2016'!V81/'Population 2016'!V$6","v":0},{"$f":"'Population 2016'!W81/'Population 2016'!W$6","v":0},{"$f":"'Population 2016'!X81/'Population 2016'!X$6","v":0},{"$f":"'Population 2016'!Y81/'Population 2016'!Y$6","v":0},{"$f":"'Population 2016'!Z81/'Population 2016'!Z$6","v":0},{"$f":"'Population 2016'!AA81/'Population 2016'!AA$6","v":0},{"$f":"'Population 2016'!AB81/'Population 2016'!AB$6","v":0},{"$f":"'Population 2016'!AC81/'Population 2016'!AC$6","v":0},{"$f":"'Population 2016'!AD81/'Population 2016'!AD$6","v":0},{"$f":"'Population 2016'!AE81/'Population 2016'!AE$6","v":0},{"$f":"'Population 2016'!AF81/'Population 2016'!AF$6","v":0},{"$f":"'Population 2016'!AG81/'Population 2016'!AG$6","v":0},{"$f":"'Population 2016'!AH81/'Population 2016'!AH$6","v":0},{"$f":"'Population 2016'!AI81/'Population 2016'!AI$6","v":0},{"$f":"'Population 2016'!AJ81/'Population 2016'!AJ$6","v":0},{"$f":"'Population 2016'!AK81/'Population 2016'!AK$6","v":0},{"$f":"'Population 2016'!AL81/'Population 2016'!AL$6","v":0},{"$f":"'Population 2016'!AM81/'Population 2016'!AM$6","v":0},{"$f":"'Population 2016'!AN81/'Population 2016'!AN$6","v":0},{"$f":"'Population 2016'!AO81/'Population 2016'!AO$6","v":0},{"$f":"'Population 2016'!AP81/'Population 2016'!AP$6","v":0},{"$f":"'Population 2016'!AQ81/'Population 2016'!AQ$6","v":0},{"$f":"'Population 2016'!AR81/'Population 2016'!AR$6","v":0},{"$f":"'Population 2016'!AS81/'Population 2016'!AS$6","v":0},{"$f":"'Population 2016'!AT81/'Population 2016'!AT$6","v":0},{"$f":"'Population 2016'!AU81/'Population 2016'!AU$6","v":0},{"$f":"'Population 2016'!AV81/'Population 2016'!AV$6","v":0},{"$f":"'Population 2016'!AW81/'Population 2016'!AW$6","v":0},{"$f":"'Population 2016'!AX81/'Population 2016'!AX$6","v":0},{"$f":"'Population 2016'!AY81/'Population 2016'!AY$6","v":0},{"$f":"'Population 2016'!AZ81/'Population 2016'!AZ$6","v":0},{"$f":"'Population 2016'!BA81/'Population 2016'!BA$6","v":0},{"$f":"'Population 2016'!BB81/'Population 2016'!BB$6","v":0},{"$f":"'Population 2016'!BC81/'Population 2016'!BC$6","v":0},79]
[null,"Male 16-19",{"$f":"'Population 2016'!C82/'Population 2016'!C$6","v":6.7596643477013559E-3},{"$f":"'Population 2016'!D82/'Population 2016'!D$6","v":6.0942118065545475E-3},{"$f":"'Population 2016'!E82/'Population 2016'!E$6","v":4.300763506330337E-3},{"$f":"'Population 2016'!F82/'Population 2016'!F$6","v":1.0430191292305029E-2},{"$f":"'Population 2016'!G82/'Population 2016'!G$6","v":9.9630583230717572E-3},{"$f":"'Population 2016'!H82/'Population 2016'!H$6","v":1.6343006373832111E-2},{"$f":"'Population 2016'!I82/'Population 2016'!I$6","v":8.5947363309701857E-3},{"$f":"'Population 2016'!J82/'Population 2016'!J$6","v":1.6287638761763947E-2},{"$f":"'Population 2016'!K82/'Population 2016'!K$6","v":1.6260935717002663E-2},{"$f":"'Population 2016'!L82/'Population 2016'!L$6","v":6.5701260391525882E-3},{"$f":"'Population 2016'!M82/'Population 2016'!M$6","v":6.5701260391525882E-3},{"$f":"'Population 2016'!N82/'Population 2016'!N$6","v":1.7218309341410696E-2},{"$f":"'Population 2016'!O82/'Population 2016'!O$6","v":1.615009277712872E-2},{"$f":"'Population 2016'!P82/'Population 2016'!P$6","v":7.1893006290638054E-3},{"$f":"'Population 2016'!Q82/'Population 2016'!Q$6","v":3.3866995073891628E-3},{"$f":"'Population 2016'!R82/'Population 2016'!R$6","v":1.3914973535939901E-2},{"$f":"'Population 2016'!S82/'Population 2016'!S$6","v":1.1818832268858048E-2},{"$f":"'Population 2016'!T82/'Population 2016'!T$6","v":1.2651399576881906E-2},{"$f":"'Population 2016'!U82/'Population 2016'!U$6","v":0},{"$f":"'Population 2016'!V82/'Population 2016'!V$6","v":8.8730203619909499E-3},{"$f":"'Population 2016'!W82/'Population 2016'!W$6","v":1.4789637305699483E-2},{"$f":"'Population 2016'!X82/'Population 2016'!X$6","v":1.4789637305699483E-2},{"$f":"'Population 2016'!Y82/'Population 2016'!Y$6","v":1.2058274940767253E-2},{"$f":"'Population 2016'!Z82/'Population 2016'!Z$6","v":2.0650096764099152E-2},{"$f":"'Population 2016'!AA82/'Population 2016'!AA$6","v":1.7466894142497361E-2},{"$f":"'Population 2016'!AB82/'Population 2016'!AB$6","v":5.4840301453436208E-3},{"$f":"'Population 2016'!AC82/'Population 2016'!AC$6","v":1.9018958655114323E-2},{"$f":"'Population 2016'!AD82/'Population 2016'!AD$6","v":8.6991256491056775E-3},{"$f":"'Population 2016'!AE82/'Population 2016'!AE$6","v":8.2450177971725627E-3},{"$f":"'Population 2016'!AF82/'Population 2016'!AF$6","v":2.1407235313640891E-2},{"$f":"'Population 2016'!AG82/'Population 2016'!AG$6","v":8.2450177971725627E-3},{"$f":"'Population 2016'!AH82/'Population 2016'!AH$6","v":1.4677346609840604E-2},{"$f":"'Population 2016'!AI82/'Population 2016'!AI$6","v":1.0596935593901321E-2},{"$f":"'Population 2016'!AJ82/'Population 2016'!AJ$6","v":6.3508621218629196E-3},{"$f":"'Population 2016'!AK82/'Population 2016'!AK$6","v":1.8107384663832468E-3},{"$f":"'Population 2016'!AL82/'Population 2016'!AL$6","v":2.0281873630603423E-2},{"$f":"'Population 2016'!AM82/'Population 2016'!AM$6","v":1.6654465592972182E-2},{"$f":"'Population 2016'!AN82/'Population 2016'!AN$6","v":0},{"$f":"'Population 2016'!AO82/'Population 2016'!AO$6","v":0},{"$f":"'Population 2016'!AP82/'Population 2016'!AP$6","v":8.2065556462062681E-3},{"$f":"'Population 2016'!AQ82/'Population 2016'!AQ$6","v":1.5720909693088984E-2},{"$f":"'Population 2016'!AR82/'Population 2016'!AR$6","v":1.4333062411191986E-2},{"$f":"'Population 2016'!AS82/'Population 2016'!AS$6","v":8.5947363309701857E-3},{"$f":"'Population 2016'!AT82/'Population 2016'!AT$6","v":0},{"$f":"'Population 2016'!AU82/'Population 2016'!AU$6","v":0},{"$f":"'Population 2016'!AV82/'Population 2016'!AV$6","v":1.0270463481472656E-2},{"$f":"'Population 2016'!AW82/'Population 2016'!AW$6","v":1.2023030491650218E-2},{"$f":"'Population 2016'!AX82/'Population 2016'!AX$6","v":1.6313667330954258E-2},{"$f":"'Population 2016'!AY82/'Population 2016'!AY$6","v":1.4476925921307782E-2},{"$f":"'Population 2016'!AZ82/'Population 2016'!AZ$6","v":1.4139988566528513E-2},{"$f":"'Population 2016'!BA82/'Population 2016'!BA$6","v":1.6715478253939792E-2},{"$f":"'Population 2016'!BB82/'Population 2016'!BB$6","v":1.192559465940761E-2},{"$f":"'Population 2016'!BC82/'Population 2016'!BC$6","v":0},80]
[null,"Male 20-24",{"$f":"'Population 2016'!C83/'Population 2016'!C$6","v":1.1044968801549164E-2},{"$f":"'Population 2016'!D83/'Population 2016'!D$6","v":1.1089896163000549E-2},{"$f":"'Population 2016'!E83/'Population 2016'!E$6","v":1.1210979027737508E-2},{"$f":"'Population 2016'!F83/'Population 2016'!F$6","v":1.4714792694538216E-2},{"$f":"'Population 2016'!G83/'Population 2016'!G$6","v":1.5616254337848428E-2},{"$f":"'Population 2016'!H83/'Population 2016'!H$6","v":2.2907636077439973E-2},{"$f":"'Population 2016'!I83/'Population 2016'!I$6","v":1.0245702631834514E-2},{"$f":"'Population 2016'!J83/'Population 2016'!J$6","v":2.0817198244502334E-2},{"$f":"'Population 2016'!K83/'Population 2016'!K$6","v":2.0302396348421452E-2},{"$f":"'Population 2016'!L83/'Population 2016'!L$6","v":9.8104943237686607E-3},{"$f":"'Population 2016'!M83/'Population 2016'!M$6","v":9.8104943237686607E-3},{"$f":"'Population 2016'!N83/'Population 2016'!N$6","v":2.8422708759134819E-2},{"$f":"'Population 2016'!O83/'Population 2016'!O$6","v":2.231805374201086E-2},{"$f":"'Population 2016'!P83/'Population 2016'!P$6","v":8.9337632817042874E-3},{"$f":"'Population 2016'!Q83/'Population 2016'!Q$6","v":4.5797413793103444E-3},{"$f":"'Population 2016'!R83/'Population 2016'!R$6","v":1.6561379545842581E-2},{"$f":"'Population 2016'!S83/'Population 2016'!S$6","v":1.6169677711255378E-2},{"$f":"'Population 2016'!T83/'Population 2016'!T$6","v":1.8526166735500619E-2},{"$f":"'Population 2016'!U83/'Population 2016'!U$6","v":0},{"$f":"'Population 2016'!V83/'Population 2016'!V$6","v":1.3026725113122173E-2},{"$f":"'Population 2016'!W83/'Population 2016'!W$6","v":1.9059067357512952E-2},{"$f":"'Population 2016'!X83/'Population 2016'!X$6","v":1.9059067357512952E-2},{"$f":"'Population 2016'!Y83/'Population 2016'!Y$6","v":1.6373443565055198E-2},{"$f":"'Population 2016'!Z83/'Population 2016'!Z$6","v":3.2228369350237429E-2},{"$f":"'Population 2016'!AA83/'Population 2016'!AA$6","v":2.6033483942331126E-2},{"$f":"'Population 2016'!AB83/'Population 2016'!AB$6","v":9.7792930199174597E-3},{"$f":"'Population 2016'!AC83/'Population 2016'!AC$6","v":2.9186913742593364E-2},{"$f":"'Population 2016'!AD83/'Population 2016'!AD$6","v":1.2501294512745403E-2},{"$f":"'Population 2016'!AE83/'Population 2016'!AE$6","v":1.1382146519999196E-2},{"$f":"'Population 2016'!AF83/'Population 2016'!AF$6","v":3.0479035291514547E-2},{"$f":"'Population 2016'!AG83/'Population 2016'!AG$6","v":1.1382146519999196E-2},{"$f":"'Population 2016'!AH83/'Population 2016'!AH$6","v":2.0365779895741194E-2},{"$f":"'Population 2016'!AI83/'Population 2016'!AI$6","v":1.5221585606247671E-2},{"$f":"'Population 2016'!AJ83/'Population 2016'!AJ$6","v":1.0155243296312205E-2},{"$f":"'Population 2016'!AK83/'Population 2016'!AK$6","v":1.8894662257912141E-3},{"$f":"'Population 2016'!AL83/'Population 2016'!AL$6","v":2.771362586605081E-2},{"$f":"'Population 2016'!AM83/'Population 2016'!AM$6","v":2.2858711566617864E-2},{"$f":"'Population 2016'!AN83/'Population 2016'!AN$6","v":0},{"$f":"'Population 2016'!AO83/'Population 2016'!AO$6","v":0},{"$f":"'Population 2016'!AP83/'Population 2016'!AP$6","v":1.4829390027355185E-2},{"$f":"'Population 2016'!AQ83/'Population 2016'!AQ$6","v":2.5701037756679177E-2},{"$f":"'Population 2016'!AR83/'Population 2016'!AR$6","v":2.1014364148748691E-2},{"$f":"'Population 2016'!AS83/'Population 2016'!AS$6","v":1.0245702631834514E-2},{"$f":"'Population 2016'!AT83/'Population 2016'!AT$6","v":0},{"$f":"'Population 2016'!AU83/'Population 2016'!AU$6","v":0},{"$f":"'Population 2016'!AV83/'Population 2016'!AV$6","v":1.598951507208388E-2},{"$f":"'Population 2016'!AW83/'Population 2016'!AW$6","v":1.7018976404393156E-2},{"$f":"'Population 2016'!AX83/'Population 2016'!AX$6","v":2.1318997080224313E-2},{"$f":"'Population 2016'!AY83/'Population 2016'!AY$6","v":2.0986597986903263E-2},{"$f":"'Population 2016'!AZ83/'Population 2016'!AZ$6","v":2.3063455766757182E-2},{"$f":"'Population 2016'!BA83/'Population 2016'!BA$6","v":2.3608869762715916E-2},{"$f":"'Population 2016'!BB83/'Population 2016'!BB$6","v":1.6025017823578975E-2},{"$f":"'Population 2016'!BC83/'Population 2016'!BC$6","v":0},81]
[null,"Male 25-29",{"$f":"'Population 2016'!C84/'Population 2016'!C$6","v":1.8539769059743239E-2},{"$f":"'Population 2016'!D84/'Population 2016'!D$6","v":1.6961786937985508E-2},{"$f":"'Population 2016'!E84/'Population 2016'!E$6","v":1.2708997777133468E-2},{"$f":"'Population 2016'!F84/'Population 2016'!F$6","v":1.3589543841426469E-2},{"$f":"'Population 2016'!G84/'Population 2016'!G$6","v":1.2593753498264861E-2},{"$f":"'Population 2016'!H84/'Population 2016'!H$6","v":2.2055009331194812E-2},{"$f":"'Population 2016'!I84/'Population 2016'!I$6","v":7.6721375157812952E-3},{"$f":"'Population 2016'!J84/'Population 2016'!J$6","v":2.0300875401910393E-2},{"$f":"'Population 2016'!K84/'Population 2016'!K$6","v":1.6451122099657666E-2},{"$f":"'Population 2016'!L84/'Population 2016'!L$6","v":1.1084294270134978E-2},{"$f":"'Population 2016'!M84/'Population 2016'!M$6","v":1.1084294270134978E-2},{"$f":"'Population 2016'!N84/'Population 2016'!N$6","v":3.9921186901733595E-2},{"$f":"'Population 2016'!O84/'Population 2016'!O$6","v":2.202597759604151E-2},{"$f":"'Population 2016'!P84/'Population 2016'!P$6","v":8.6165882539514724E-3},{"$f":"'Population 2016'!Q84/'Population 2016'!Q$6","v":4.0409482758620692E-3},{"$f":"'Population 2016'!R84/'Population 2016'!R$6","v":1.6732115417449206E-2},{"$f":"'Population 2016'!S84/'Population 2016'!S$6","v":1.9226317616978295E-2},{"$f":"'Population 2016'!T84/'Population 2016'!T$6","v":2.8109538700134017E-2},{"$f":"'Population 2016'!U84/'Population 2016'!U$6","v":0},{"$f":"'Population 2016'!V84/'Population 2016'!V$6","v":1.4705882352941176E-2},{"$f":"'Population 2016'!W84/'Population 2016'!W$6","v":2.0236269430051815E-2},{"$f":"'Population 2016'!X84/'Population 2016'!X$6","v":2.0236269430051815E-2},{"$f":"'Population 2016'!Y84/'Population 2016'!Y$6","v":1.7109441951908052E-2},{"$f":"'Population 2016'!Z84/'Population 2016'!Z$6","v":4.1090563297696191E-2},{"$f":"'Population 2016'!AA84/'Population 2016'!AA$6","v":2.9741839929507491E-2},{"$f":"'Population 2016'!AB84/'Population 2016'!AB$6","v":1.4680154315449489E-2},{"$f":"'Population 2016'!AC84/'Population 2016'!AC$6","v":3.5460427260312878E-2},{"$f":"'Population 2016'!AD84/'Population 2016'!AD$6","v":1.2161022591096712E-2},{"$f":"'Population 2016'!AE84/'Population 2016'!AE$6","v":1.2005550304663463E-2},{"$f":"'Population 2016'!AF84/'Population 2016'!AF$6","v":3.0727956632370837E-2},{"$f":"'Population 2016'!AG84/'Population 2016'!AG$6","v":1.2005550304663463E-2},{"$f":"'Population 2016'!AH84/'Population 2016'!AH$6","v":1.9463741919243126E-2},{"$f":"'Population 2016'!AI84/'Population 2016'!AI$6","v":1.9712309102399378E-2},{"$f":"'Population 2016'!AJ84/'Population 2016'!AJ$6","v":7.8235258022949002E-3},{"$f":"'Population 2016'!AK84/'Population 2016'!AK$6","v":9.4473311289560704E-4},{"$f":"'Population 2016'!AL84/'Population 2016'!AL$6","v":2.5270918457985434E-2},{"$f":"'Population 2016'!AM84/'Population 2016'!AM$6","v":2.1803318692044899E-2},{"$f":"'Population 2016'!AN84/'Population 2016'!AN$6","v":0},{"$f":"'Population 2016'!AO84/'Population 2016'!AO$6","v":0},{"$f":"'Population 2016'!AP84/'Population 2016'!AP$6","v":2.1260258194557759E-2},{"$f":"'Population 2016'!AQ84/'Population 2016'!AQ$6","v":3.0381982777655112E-2},{"$f":"'Population 2016'!AR84/'Population 2016'!AR$6","v":2.4077781407657185E-2},{"$f":"'Population 2016'!AS84/'Population 2016'!AS$6","v":7.6721375157812952E-3},{"$f":"'Population 2016'!AT84/'Population 2016'!AT$6","v":0},{"$f":"'Population 2016'!AU84/'Population 2016'!AU$6","v":0},{"$f":"'Population 2016'!AV84/'Population 2016'!AV$6","v":1.6918860955558203E-2},{"$f":"'Population 2016'!AW84/'Population 2016'!AW$6","v":1.6322820006715862E-2},{"$f":"'Population 2016'!AX84/'Population 2016'!AX$6","v":2.4053390183992215E-2},{"$f":"'Population 2016'!AY84/'Population 2016'!AY$6","v":2.5423838126727924E-2},{"$f":"'Population 2016'!AZ84/'Population 2016'!AZ$6","v":3.1013291410604545E-2},{"$f":"'Population 2016'!BA84/'Population 2016'!BA$6","v":2.3310023310023312E-2},{"$f":"'Population 2016'!BB84/'Population 2016'!BB$6","v":1.6446302417525441E-2},{"$f":"'Population 2016'!BC84/'Population 2016'!BC$6","v":0},82]
[null,"Male 30-34",{"$f":"'Population 2016'!C85/'Population 2016'!C$6","v":1.5545434985297282E-2},{"$f":"'Population 2016'!D85/'Population 2016'!D$6","v":1.4908586822901682E-2},{"$f":"'Population 2016'!E85/'Population 2016'!E$6","v":1.3192229631777326E-2},{"$f":"'Population 2016'!F85/'Population 2016'!F$6","v":1.116593092703194E-2},{"$f":"'Population 2016'!G85/'Population 2016'!G$6","v":9.8511138475316246E-3},{"$f":"'Population 2016'!H85/'Population 2016'!H$6","v":1.9443467269269068E-2},{"$f":"'Population 2016'!I85/'Population 2016'!I$6","v":8.4490628338350984E-3},{"$f":"'Population 2016'!J85/'Population 2016'!J$6","v":1.7813138069421953E-2},{"$f":"'Population 2016'!K85/'Population 2016'!K$6","v":1.7259414225941423E-2},{"$f":"'Population 2016'!L85/'Population 2016'!L$6","v":7.7321891481183513E-3},{"$f":"'Population 2016'!M85/'Population 2016'!M$6","v":7.7321891481183513E-3},{"$f":"'Population 2016'!N85/'Population 2016'!N$6","v":3.1319384199150112E-2},{"$f":"'Population 2016'!O85/'Population 2016'!O$6","v":1.917393993539963E-2},{"$f":"'Population 2016'!P85/'Population 2016'!P$6","v":7.0835756198128668E-3},{"$f":"'Population 2016'!Q85/'Population 2016'!Q$6","v":4.2333743842364532E-3},{"$f":"'Population 2016'!R85/'Population 2016'!R$6","v":1.570770018780946E-2},{"$f":"'Population 2016'!S85/'Population 2016'!S$6","v":1.7411273266764171E-2},{"$f":"'Population 2016'!T85/'Population 2016'!T$6","v":2.4282932832109774E-2},{"$f":"'Population 2016'!U85/'Population 2016'!U$6","v":0},{"$f":"'Population 2016'!V85/'Population 2016'!V$6","v":1.35039592760181E-2},{"$f":"'Population 2016'!W85/'Population 2016'!W$6","v":1.8959585492227978E-2},{"$f":"'Population 2016'!X85/'Population 2016'!X$6","v":1.8959585492227978E-2},{"$f":"'Population 2016'!Y85/'Population 2016'!Y$6","v":1.5355144427080707E-2},{"$f":"'Population 2016'!Z85/'Population 2016'!Z$6","v":3.5980446664296936E-2},{"$f":"'Population 2016'!AA85/'Population 2016'!AA$6","v":2.7014629695594844E-2},{"$f":"'Population 2016'!AB85/'Population 2016'!AB$6","v":1.2885788623721514E-2},{"$f":"'Population 2016'!AC85/'Population 2016'!AC$6","v":3.1692428598662427E-2},{"$f":"'Population 2016'!AD85/'Population 2016'!AD$6","v":1.1776367375319929E-2},{"$f":"'Population 2016'!AE85/'Population 2016'!AE$6","v":1.2468075693285337E-2},{"$f":"'Population 2016'!AF85/'Population 2016'!AF$6","v":2.8930191392853192E-2},{"$f":"'Population 2016'!AG85/'Population 2016'!AG$6","v":1.2468075693285337E-2},{"$f":"'Population 2016'!AH85/'Population 2016'!AH$6","v":1.860715546869264E-2},{"$f":"'Population 2016'!AI85/'Population 2016'!AI$6","v":1.7402076698041745E-2},{"$f":"'Population 2016'!AJ85/'Population 2016'!AJ$6","v":8.6212186291955567E-3},{"$f":"'Population 2016'!AK85/'Population 2016'!AK$6","v":7.0854983467170528E-4},{"$f":"'Population 2016'!AL85/'Population 2016'!AL$6","v":2.2946645348492924E-2},{"$f":"'Population 2016'!AM85/'Population 2016'!AM$6","v":2.0558809175207419E-2},{"$f":"'Population 2016'!AN85/'Population 2016'!AN$6","v":0},{"$f":"'Population 2016'!AO85/'Population 2016'!AO$6","v":0},{"$f":"'Population 2016'!AP85/'Population 2016'!AP$6","v":1.4877381580841773E-2},{"$f":"'Population 2016'!AQ85/'Population 2016'!AQ$6","v":2.8571428571428571E-2},{"$f":"'Population 2016'!AR85/'Population 2016'!AR$6","v":2.1481224417357253E-2},{"$f":"'Population 2016'!AS85/'Population 2016'!AS$6","v":8.4490628338350984E-3},{"$f":"'Population 2016'!AT85/'Population 2016'!AT$6","v":0},{"$f":"'Population 2016'!AU85/'Population 2016'!AU$6","v":0},{"$f":"'Population 2016'!AV85/'Population 2016'!AV$6","v":1.4178482068390326E-2},{"$f":"'Population 2016'!AW85/'Population 2016'!AW$6","v":1.5987026920777404E-2},{"$f":"'Population 2016'!AX85/'Population 2016'!AX$6","v":1.8352875747323538E-2},{"$f":"'Population 2016'!AY85/'Population 2016'!AY$6","v":2.1433761721924353E-2},{"$f":"'Population 2016'!AZ85/'Population 2016'!AZ$6","v":2.4099614120337287E-2},{"$f":"'Population 2016'!BA85/'Population 2016'!BA$6","v":2.2792022792022793E-2},{"$f":"'Population 2016'!BB85/'Population 2016'!BB$6","v":1.4356082701406443E-2},{"$f":"'Population 2016'!BC85/'Population 2016'!BC$6","v":0},83]
[null,"Male 35-39",{"$f":"'Population 2016'!C86/'Population 2016'!C$6","v":1.4810299074804561E-2},{"$f":"'Population 2016'!D86/'Population 2016'!D$6","v":1.3509272094787226E-2},{"$f":"'Population 2016'!E86/'Population 2016'!E$6","v":1.0002899391127864E-2},{"$f":"'Population 2016'!F86/'Population 2016'!F$6","v":1.1079373322946421E-2},{"$f":"'Population 2016'!G86/'Population 2016'!G$6","v":8.3958356655099067E-3},{"$f":"'Population 2016'!H86/'Population 2016'!H$6","v":1.7374505864044789E-2},{"$f":"'Population 2016'!I86/'Population 2016'!I$6","v":9.080314654753811E-3},{"$f":"'Population 2016'!J86/'Population 2016'!J$6","v":1.5419277617404773E-2},{"$f":"'Population 2016'!K86/'Population 2016'!K$6","v":1.7211867630277673E-2},{"$f":"'Population 2016'!L86/'Population 2016'!L$6","v":6.6595155090730315E-3},{"$f":"'Population 2016'!M86/'Population 2016'!M$6","v":6.6595155090730315E-3},{"$f":"'Population 2016'!N86/'Population 2016'!N$6","v":2.2541134261641841E-2},{"$f":"'Population 2016'!O86/'Population 2016'!O$6","v":1.6287540375231942E-2},{"$f":"'Population 2016'!P86/'Population 2016'!P$6","v":7.1893006290638054E-3},{"$f":"'Population 2016'!Q86/'Population 2016'!Q$6","v":3.3097290640394087E-3},{"$f":"'Population 2016'!R86/'Population 2016'!R$6","v":1.4085709407546526E-2},{"$f":"'Population 2016'!S86/'Population 2016'!S$6","v":1.6093393238565221E-2},{"$f":"'Population 2016'!T86/'Population 2016'!T$6","v":2.2083055890360154E-2},{"$f":"'Population 2016'!U86/'Population 2016'!U$6","v":0},{"$f":"'Population 2016'!V86/'Population 2016'!V$6","v":1.2743919683257918E-2},{"$f":"'Population 2016'!W86/'Population 2016'!W$6","v":1.7600000000000001E-2},{"$f":"'Population 2016'!X86/'Population 2016'!X$6","v":1.7600000000000001E-2},{"$f":"'Population 2016'!Y86/'Population 2016'!Y$6","v":1.3893229823057922E-2},{"$f":"'Population 2016'!Z86/'Population 2016'!Z$6","v":2.9348232270295396E-2},{"$f":"'Population 2016'!AA86/'Population 2016'!AA$6","v":2.3136291768999544E-2},{"$f":"'Population 2016'!AB86/'Population 2016'!AB$6","v":1.1876457922124529E-2},{"$f":"'Population 2016'!AC86/'Population 2016'!AC$6","v":2.5984990254169699E-2},{"$f":"'Population 2016'!AD86/'Population 2016'!AD$6","v":9.0541920021303974E-3},{"$f":"'Population 2016'!AE86/'Population 2016'!AE$6","v":9.290727371448107E-3},{"$f":"'Population 2016'!AF86/'Population 2016'!AF$6","v":2.2983737139064056E-2},{"$f":"'Population 2016'!AG86/'Population 2016'!AG$6","v":9.290727371448107E-3},{"$f":"'Population 2016'!AH86/'Population 2016'!AH$6","v":1.801628563137414E-2},{"$f":"'Population 2016'!AI86/'Population 2016'!AI$6","v":1.5937255427162809E-2},{"$f":"'Population 2016'!AJ86/'Population 2016'!AJ$6","v":7.3019574154752406E-3},{"$f":"'Population 2016'!AK86/'Population 2016'!AK$6","v":2.0469217446071487E-3},{"$f":"'Population 2016'!AL86/'Population 2016'!AL$6","v":2.0489133653105941E-2},{"$f":"'Population 2016'!AM86/'Population 2016'!AM$6","v":1.9363103953147876E-2},{"$f":"'Population 2016'!AN86/'Population 2016'!AN$6","v":0},{"$f":"'Population 2016'!AO86/'Population 2016'!AO$6","v":0},{"$f":"'Population 2016'!AP86/'Population 2016'!AP$6","v":1.463742381340884E-2},{"$f":"'Population 2016'!AQ86/'Population 2016'!AQ$6","v":2.369912416280268E-2},{"$f":"'Population 2016'!AR86/'Population 2016'!AR$6","v":1.8642759200708091E-2},{"$f":"'Population 2016'!AS86/'Population 2016'!AS$6","v":9.080314654753811E-3},{"$f":"'Population 2016'!AT86/'Population 2016'!AT$6","v":0},{"$f":"'Population 2016'!AU86/'Population 2016'!AU$6","v":0},{"$f":"'Population 2016'!AV86/'Population 2016'!AV$6","v":1.3868700107232217E-2},{"$f":"'Population 2016'!AW86/'Population 2016'!AW$6","v":1.6208158952980778E-2},{"$f":"'Population 2016'!AX86/'Population 2016'!AX$6","v":1.3671965518839506E-2},{"$f":"'Population 2016'!AY86/'Population 2016'!AY$6","v":1.8131629524845535E-2},{"$f":"'Population 2016'!AZ86/'Population 2016'!AZ$6","v":1.8704444762040875E-2},{"$f":"'Population 2016'!BA86/'Population 2016'!BA$6","v":1.9046480584942124E-2},{"$f":"'Population 2016'!BB86/'Population 2016'!BB$6","v":1.399961112191328E-2},{"$f":"'Population 2016'!BC86/'Population 2016'!BC$6","v":0},84]
[null,"Male 40-44",{"$f":"'Population 2016'!C87/'Population 2016'!C$6","v":1.2102847306892348E-2},{"$f":"'Population 2016'!D87/'Population 2016'!D$6","v":1.1599926764836659E-2},{"$f":"'Population 2016'!E87/'Population 2016'!E$6","v":1.0244515318449792E-2},{"$f":"'Population 2016'!F87/'Population 2016'!F$6","v":1.0862979312732623E-2},{"$f":"'Population 2016'!G87/'Population 2016'!G$6","v":9.3473637076010307E-3},{"$f":"'Population 2016'!H87/'Population 2016'!H$6","v":1.8972435710154605E-2},{"$f":"'Population 2016'!I87/'Population 2016'!I$6","v":9.2259881518889E-3},{"$f":"'Population 2016'!J87/'Population 2016'!J$6","v":1.4856016334577202E-2},{"$f":"'Population 2016'!K87/'Population 2016'!K$6","v":1.6736401673640166E-2},{"$f":"'Population 2016'!L87/'Population 2016'!L$6","v":7.6204523107177976E-3},{"$f":"'Population 2016'!M87/'Population 2016'!M$6","v":7.6204523107177976E-3},{"$f":"'Population 2016'!N87/'Population 2016'!N$6","v":1.9056301371877252E-2},{"$f":"'Population 2016'!O87/'Population 2016'!O$6","v":1.929420658373995E-2},{"$f":"'Population 2016'!P87/'Population 2016'!P$6","v":7.1893006290638054E-3},{"$f":"'Population 2016'!Q87/'Population 2016'!Q$6","v":5.1185344827586205E-3},{"$f":"'Population 2016'!R87/'Population 2016'!R$6","v":1.4427181150759775E-2},{"$f":"'Population 2016'!S87/'Population 2016'!S$6","v":1.5648838897715674E-2},{"$f":"'Population 2016'!T87/'Population 2016'!T$6","v":1.9975894068760904E-2},{"$f":"'Population 2016'!U87/'Population 2016'!U$6","v":0},{"$f":"'Population 2016'!V87/'Population 2016'!V$6","v":1.3327205882352941E-2},{"$f":"'Population 2016'!W87/'Population 2016'!W$6","v":1.7425906735751295E-2},{"$f":"'Population 2016'!X87/'Population 2016'!X$6","v":1.7425906735751295E-2},{"$f":"'Population 2016'!Y87/'Population 2016'!Y$6","v":1.3983969350204163E-2},{"$f":"'Population 2016'!Z87/'Population 2016'!Z$6","v":2.6370875373308907E-2},{"$f":"'Population 2016'!AA87/'Population 2016'!AA$6","v":2.1682696213527312E-2},{"$f":"'Population 2016'!AB87/'Population 2016'!AB$6","v":1.0283958370715952E-2},{"$f":"'Population 2016'!AC87/'Population 2016'!AC$6","v":2.3586465551116004E-2},{"$f":"'Population 2016'!AD87/'Population 2016'!AD$6","v":1.0356101963221044E-2},{"$f":"'Population 2016'!AE87/'Population 2016'!AE$6","v":1.0718523136324331E-2},{"$f":"'Population 2016'!AF87/'Population 2016'!AF$6","v":2.3619869454585683E-2},{"$f":"'Population 2016'!AG87/'Population 2016'!AG$6","v":1.0718523136324331E-2},{"$f":"'Population 2016'!AH87/'Population 2016'!AH$6","v":1.8261024617245707E-2},{"$f":"'Population 2016'!AI87/'Population 2016'!AI$6","v":1.5305289678869325E-2},{"$f":"'Population 2016'!AJ87/'Population 2016'!AJ$6","v":8.1916917224028954E-3},{"$f":"'Population 2016'!AK87/'Population 2016'!AK$6","v":2.3618327822390174E-3},{"$f":"'Population 2016'!AL87/'Population 2016'!AL$6","v":2.2073192396518032E-2},{"$f":"'Population 2016'!AM87/'Population 2016'!AM$6","v":1.9521717911176184E-2},{"$f":"'Population 2016'!AN87/'Population 2016'!AN$6","v":0},{"$f":"'Population 2016'!AO87/'Population 2016'!AO$6","v":0},{"$f":"'Population 2016'!AP87/'Population 2016'!AP$6","v":1.2093871478619763E-2},{"$f":"'Population 2016'!AQ87/'Population 2016'!AQ$6","v":2.0725693677780231E-2},{"$f":"'Population 2016'!AR87/'Population 2016'!AR$6","v":1.7873513649162988E-2},{"$f":"'Population 2016'!AS87/'Population 2016'!AS$6","v":9.2259881518889E-3},{"$f":"'Population 2016'!AT87/'Population 2016'!AT$6","v":0},{"$f":"'Population 2016'!AU87/'Population 2016'!AU$6","v":0},{"$f":"'Population 2016'!AV87/'Population 2016'!AV$6","v":1.3535088764446562E-2},{"$f":"'Population 2016'!AW87/'Population 2016'!AW$6","v":1.6568522264719613E-2},{"$f":"'Population 2016'!AX87/'Population 2016'!AX$6","v":1.3023126477267461E-2},{"$f":"'Population 2016'!AY87/'Population 2016'!AY$6","v":1.6772939714589145E-2},{"$f":"'Population 2016'!AZ87/'Population 2016'!AZ$6","v":1.6069386880091466E-2},{"$f":"'Population 2016'!BA87/'Population 2016'!BA$6","v":1.7492479030940568E-2},{"$f":"'Population 2016'!BB87/'Population 2016'!BB$6","v":1.4372285955019768E-2},{"$f":"'Population 2016'!BC87/'Population 2016'!BC$6","v":0},85]
[null,"Male 45-49",{"$f":"'Population 2016'!C88/'Population 2016'!C$6","v":1.1224270243132755E-2},{"$f":"'Population 2016'!D88/'Population 2016'!D$6","v":1.0658331807600764E-2},{"$f":"'Population 2016'!E88/'Population 2016'!E$6","v":9.1330820527689184E-3},{"$f":"'Population 2016'!F88/'Population 2016'!F$6","v":1.198822816584437E-2},{"$f":"'Population 2016'!G88/'Population 2016'!G$6","v":1.1362364267323408E-2},{"$f":"'Population 2016'!H88/'Population 2016'!H$6","v":2.1488578975297674E-2},{"$f":"'Population 2016'!I88/'Population 2016'!I$6","v":1.2236573759347382E-2},{"$f":"'Population 2016'!J88/'Population 2016'!J$6","v":1.8305991691896079E-2},{"$f":"'Population 2016'!K88/'Population 2016'!K$6","v":2.0207303157093952E-2},{"$f":"'Population 2016'!L88/'Population 2016'!L$6","v":9.0730311969250028E-3},{"$f":"'Population 2016'!M88/'Population 2016'!M$6","v":9.0730311969250028E-3},{"$f":"'Population 2016'!N88/'Population 2016'!N$6","v":2.390860033230896E-2},{"$f":"'Population 2016'!O88/'Population 2016'!O$6","v":2.1991615696515702E-2},{"$f":"'Population 2016'!P88/'Population 2016'!P$6","v":9.7795633557117932E-3},{"$f":"'Population 2016'!Q88/'Population 2016'!Q$6","v":3.6176108374384236E-3},{"$f":"'Population 2016'!R88/'Population 2016'!R$6","v":1.5622332252006146E-2},{"$f":"'Population 2016'!S88/'Population 2016'!S$6","v":1.7416534264880733E-2},{"$f":"'Population 2016'!T88/'Population 2016'!T$6","v":1.94280319951451E-2},{"$f":"'Population 2016'!U88/'Population 2016'!U$6","v":0},{"$f":"'Population 2016'!V88/'Population 2016'!V$6","v":1.5041713800904978E-2},{"$f":"'Population 2016'!W88/'Population 2016'!W$6","v":2.1844559585492227E-2},{"$f":"'Population 2016'!X88/'Population 2016'!X$6","v":2.1844559585492227E-2},{"$f":"'Population 2016'!Y88/'Population 2016'!Y$6","v":1.6444018752835611E-2},{"$f":"'Population 2016'!Z88/'Population 2016'!Z$6","v":2.878314208372449E-2},{"$f":"'Population 2016'!AA88/'Population 2016'!AA$6","v":2.4827362092777642E-2},{"$f":"'Population 2016'!AB88/'Population 2016'!AB$6","v":9.5774268795980628E-3},{"$f":"'Population 2016'!AC88/'Population 2016'!AC$6","v":2.6895379192555042E-2},{"$f":"'Population 2016'!AD88/'Population 2016'!AD$6","v":1.0918290355510186E-2},{"$f":"'Population 2016'!AE88/'Population 2016'!AE$6","v":1.0758742735334928E-2},{"$f":"'Population 2016'!AF88/'Population 2016'!AF$6","v":3.0921562119703507E-2},{"$f":"'Population 2016'!AG88/'Population 2016'!AG$6","v":1.0758742735334928E-2},{"$f":"'Population 2016'!AH88/'Population 2016'!AH$6","v":2.1110485667036105E-2},{"$f":"'Population 2016'!AI88/'Population 2016'!AI$6","v":1.5627550358462691E-2},{"$f":"'Population 2016'!AJ88/'Population 2016'!AJ$6","v":9.4802724427808793E-3},{"$f":"'Population 2016'!AK88/'Population 2016'!AK$6","v":3.0703826169107226E-3},{"$f":"'Population 2016'!AL88/'Population 2016'!AL$6","v":2.5522591342452775E-2},{"$f":"'Population 2016'!AM88/'Population 2016'!AM$6","v":2.3102733040507566E-2},{"$f":"'Population 2016'!AN88/'Population 2016'!AN$6","v":0},{"$f":"'Population 2016'!AO88/'Population 2016'!AO$6","v":0},{"$f":"'Population 2016'!AP88/'Population 2016'!AP$6","v":1.2333829246052695E-2},{"$f":"'Population 2016'!AQ88/'Population 2016'!AQ$6","v":2.6687274600721279E-2},{"$f":"'Population 2016'!AR88/'Population 2016'!AR$6","v":2.0278465759247057E-2},{"$f":"'Population 2016'!AS88/'Population 2016'!AS$6","v":1.2236573759347382E-2},{"$f":"'Population 2016'!AT88/'Population 2016'!AT$6","v":0},{"$f":"'Population 2016'!AU88/'Population 2016'!AU$6","v":0},{"$f":"'Population 2016'!AV88/'Population 2016'!AV$6","v":1.429762897652806E-2},{"$f":"'Population 2016'!AW88/'Population 2016'!AW$6","v":1.843585942554812E-2},{"$f":"'Population 2016'!AX88/'Population 2016'!AX$6","v":1.6452704268433982E-2},{"$f":"'Population 2016'!AY88/'Population 2016'!AY$6","v":2.0616827975251207E-2},{"$f":"'Population 2016'!AZ88/'Population 2016'!AZ$6","v":1.9293983135629557E-2},{"$f":"'Population 2016'!BA88/'Population 2016'!BA$6","v":2.097902097902098E-2},{"$f":"'Population 2016'!BB88/'Population 2016'!BB$6","v":1.662453820727202E-2},{"$f":"'Population 2016'!BC88/'Population 2016'!BC$6","v":0},86]
[null,"Male 50-54",{"$f":"'Population 2016'!C89/'Population 2016'!C$6","v":1.1027038657390806E-2},{"$f":"'Population 2016'!D89/'Population 2016'!D$6","v":1.0095990374807105E-2},{"$f":"'Population 2016'!E89/'Population 2016'!E$6","v":7.5867401179085725E-3},{"$f":"'Population 2016'!F89/'Population 2016'!F$6","v":1.2637410196485762E-2},{"$f":"'Population 2016'!G89/'Population 2016'!G$6","v":1.4720698533527371E-2},{"$f":"'Population 2016'!H89/'Population 2016'!H$6","v":2.3134208219798828E-2},{"$f":"'Population 2016'!I89/'Population 2016'!I$6","v":1.2625036418374284E-2},{"$f":"'Population 2016'!J89/'Population 2016'!J$6","v":2.0206998521439132E-2},{"$f":"'Population 2016'!K89/'Population 2016'!K$6","v":2.1586154431342715E-2},{"$f":"'Population 2016'!L89/'Population 2016'!L$6","v":9.7657995888084381E-3},{"$f":"'Population 2016'!M89/'Population 2016'!M$6","v":9.7657995888084381E-3},{"$f":"'Population 2016'!N89/'Population 2016'!N$6","v":2.4482053845814526E-2},{"$f":"'Population 2016'!O89/'Population 2016'!O$6","v":2.3245825029207613E-2},{"$f":"'Population 2016'!P89/'Population 2016'!P$6","v":9.9910133742136704E-3},{"$f":"'Population 2016'!Q89/'Population 2016'!Q$6","v":5.5033866995073894E-3},{"$f":"'Population 2016'!R89/'Population 2016'!R$6","v":2.057367252859826E-2},{"$f":"'Population 2016'!S89/'Population 2016'!S$6","v":1.7177158850577131E-2},{"$f":"'Population 2016'!T89/'Population 2016'!T$6","v":2.0144467014488843E-2},{"$f":"'Population 2016'!U89/'Population 2016'!U$6","v":0},{"$f":"'Population 2016'!V89/'Population 2016'!V$6","v":1.5165441176470588E-2},{"$f":"'Population 2016'!W89/'Population 2016'!W$6","v":2.0219689119170985E-2},{"$f":"'Population 2016'!X89/'Population 2016'!X$6","v":2.0219689119170985E-2},{"$f":"'Population 2016'!Y89/'Population 2016'!Y$6","v":1.7331249684932198E-2},{"$f":"'Population 2016'!Z89/'Population 2016'!Z$6","v":2.9478871399448884E-2},{"$f":"'Population 2016'!AA89/'Population 2016'!AA$6","v":2.5609778960985395E-2},{"$f":"'Population 2016'!AB89/'Population 2016'!AB$6","v":8.9381841019199708E-3},{"$f":"'Population 2016'!AC89/'Population 2016'!AC$6","v":2.8325156691942278E-2},{"$f":"'Population 2016'!AD89/'Population 2016'!AD$6","v":1.2057461571464501E-2},{"$f":"'Population 2016'!AE89/'Population 2016'!AE$6","v":1.110060932692501E-2},{"$f":"'Population 2016'!AF89/'Population 2016'!AF$6","v":3.5540435888925768E-2},{"$f":"'Population 2016'!AG89/'Population 2016'!AG$6","v":1.110060932692501E-2},{"$f":"'Population 2016'!AH89/'Population 2016'!AH$6","v":2.0729392103321809E-2},{"$f":"'Population 2016'!AI89/'Population 2016'!AI$6","v":1.6033515110677712E-2},{"$f":"'Population 2016'!AJ89/'Population 2016'!AJ$6","v":9.3575504694115488E-3},{"$f":"'Population 2016'!AK89/'Population 2016'!AK$6","v":1.9681939851991814E-3},{"$f":"'Population 2016'!AL89/'Population 2016'!AL$6","v":2.80541244744478E-2},{"$f":"'Population 2016'!AM89/'Population 2016'!AM$6","v":2.3090531966813078E-2},{"$f":"'Population 2016'!AN89/'Population 2016'!AN$6","v":0},{"$f":"'Population 2016'!AO89/'Population 2016'!AO$6","v":0},{"$f":"'Population 2016'!AP89/'Population 2016'!AP$6","v":1.4253491385516149E-2},{"$f":"'Population 2016'!AQ89/'Population 2016'!AQ$6","v":2.6495915213071319E-2},{"$f":"'Population 2016'!AR89/'Population 2016'!AR$6","v":2.0868540965575555E-2},{"$f":"'Population 2016'!AS89/'Population 2016'!AS$6","v":1.2625036418374284E-2},{"$f":"'Population 2016'!AT89/'Population 2016'!AT$6","v":0},{"$f":"'Population 2016'!AU89/'Population 2016'!AU$6","v":0},{"$f":"'Population 2016'!AV89/'Population 2016'!AV$6","v":1.5060169188609555E-2},{"$f":"'Population 2016'!AW89/'Population 2016'!AW$6","v":1.755952137200141E-2},{"$f":"'Population 2016'!AX89/'Population 2016'!AX$6","v":1.8862677851415859E-2},{"$f":"'Population 2016'!AY89/'Population 2016'!AY$6","v":2.0178263542826678E-2},{"$f":"'Population 2016'!AZ89/'Population 2016'!AZ$6","v":2.0133628698013436E-2},{"$f":"'Population 2016'!BA89/'Population 2016'!BA$6","v":2.6756719064411374E-2},{"$f":"'Population 2016'!BB89/'Population 2016'!BB$6","v":1.6089830838032278E-2},{"$f":"'Population 2016'!BC89/'Population 2016'!BC$6","v":0},87]
[null,"Male 55-59",{"$f":"'Population 2016'!C90/'Population 2016'!C$6","v":1.0076741016997777E-2},{"$f":"'Population 2016'!D90/'Population 2016'!D$6","v":9.7298145581042553E-3},{"$f":"'Population 2016'!E90/'Population 2016'!E$6","v":8.7948197545182176E-3},{"$f":"'Population 2016'!F90/'Population 2016'!F$6","v":1.0040682073920193E-2},{"$f":"'Population 2016'!G90/'Population 2016'!G$6","v":1.1922086645024067E-2},{"$f":"'Population 2016'!H90/'Population 2016'!H$6","v":2.2532003315108188E-2},{"$f":"'Population 2016'!I90/'Population 2016'!I$6","v":9.565892978537438E-3},{"$f":"'Population 2016'!J90/'Population 2016'!J$6","v":1.9103945175901804E-2},{"$f":"'Population 2016'!K90/'Population 2016'!K$6","v":2.0349942944085205E-2},{"$f":"'Population 2016'!L90/'Population 2016'!L$6","v":8.6931259497631183E-3},{"$f":"'Population 2016'!M90/'Population 2016'!M$6","v":8.6931259497631183E-3},{"$f":"'Population 2016'!N90/'Population 2016'!N$6","v":2.3599817671190577E-2},{"$f":"'Population 2016'!O90/'Population 2016'!O$6","v":2.1716720500309258E-2},{"$f":"'Population 2016'!P90/'Population 2016'!P$6","v":9.145213300206163E-3},{"$f":"'Population 2016'!Q90/'Population 2016'!Q$6","v":4.3103448275862068E-3},{"$f":"'Population 2016'!R90/'Population 2016'!R$6","v":1.6476011610039268E-2},{"$f":"'Population 2016'!S90/'Population 2016'!S$6","v":1.4967539641620809E-2},{"$f":"'Population 2016'!T90/'Population 2016'!T$6","v":1.5879571487571961E-2},{"$f":"'Population 2016'!U90/'Population 2016'!U$6","v":0},{"$f":"'Population 2016'!V90/'Population 2016'!V$6","v":1.2849971719457013E-2},{"$f":"'Population 2016'!W90/'Population 2016'!W$6","v":2.0004145077720206E-2},{"$f":"'Population 2016'!X90/'Population 2016'!X$6","v":2.0004145077720206E-2},{"$f":"'Population 2016'!Y90/'Population 2016'!Y$6","v":1.5536623481373191E-2},{"$f":"'Population 2016'!Z90/'Population 2016'!Z$6","v":2.5793632709607446E-2},{"$f":"'Population 2016'!AA90/'Population 2016'!AA$6","v":2.2827574570201917E-2},{"$f":"'Population 2016'!AB90/'Population 2016'!AB$6","v":8.6465996770141752E-3},{"$f":"'Population 2016'!AC90/'Population 2016'!AC$6","v":2.4819770224056834E-2},{"$f":"'Population 2016'!AD90/'Population 2016'!AD$6","v":1.1051440237894457E-2},{"$f":"'Population 2016'!AE90/'Population 2016'!AE$6","v":1.073863293582963E-2},{"$f":"'Population 2016'!AF90/'Population 2016'!AF$6","v":3.1115167607036177E-2},{"$f":"'Population 2016'!AG90/'Population 2016'!AG$6","v":1.073863293582963E-2},{"$f":"'Population 2016'!AH90/'Population 2016'!AH$6","v":1.9246973103185454E-2},{"$f":"'Population 2016'!AI90/'Population 2016'!AI$6","v":1.2890427183734624E-2},{"$f":"'Population 2016'!AJ90/'Population 2016'!AJ$6","v":8.2530527090875615E-3},{"$f":"'Population 2016'!AK90/'Population 2016'!AK$6","v":2.1256495040151155E-3},{"$f":"'Population 2016'!AL90/'Population 2016'!AL$6","v":2.7535974418191507E-2},{"$f":"'Population 2016'!AM90/'Population 2016'!AM$6","v":2.0662518301610543E-2},{"$f":"'Population 2016'!AN90/'Population 2016'!AN$6","v":0},{"$f":"'Population 2016'!AO90/'Population 2016'!AO$6","v":0},{"$f":"'Population 2016'!AP90/'Population 2016'!AP$6","v":1.1182031962374621E-2},{"$f":"'Population 2016'!AQ90/'Population 2016'!AQ$6","v":2.4655921101052476E-2},{"$f":"'Population 2016'!AR90/'Population 2016'!AR$6","v":1.8793669239108194E-2},{"$f":"'Population 2016'!AS90/'Population 2016'!AS$6","v":9.565892978537438E-3},{"$f":"'Population 2016'!AT90/'Population 2016'!AT$6","v":0},{"$f":"'Population 2016'!AU90/'Population 2016'!AU$6","v":0},{"$f":"'Population 2016'!AV90/'Population 2016'!AV$6","v":1.5608244966043131E-2},{"$f":"'Population 2016'!AW90/'Population 2016'!AW$6","v":1.7346579415064824E-2},{"$f":"'Population 2016'!AX90/'Population 2016'!AX$6","v":1.7889419289057792E-2},{"$f":"'Population 2016'!AY90/'Population 2016'!AY$6","v":1.9275336770187938E-2},{"$f":"'Population 2016'!AZ90/'Population 2016'!AZ$6","v":1.8490067171644992E-2},{"$f":"'Population 2016'!BA90/'Population 2016'!BA$6","v":2.1975175821329667E-2},{"$f":"'Population 2016'!BB90/'Population 2016'!BB$6","v":1.3205651694860328E-2},{"$f":"'Population 2016'!BC90/'Population 2016'!BC$6","v":0},88]
[null,"Male 60-64",{"$f":"'Population 2016'!C91/'Population 2016'!C$6","v":9.0726529441296708E-3},{"$f":"'Population 2016'!D91/'Population 2016'!D$6","v":7.9381685978081769E-3},{"$f":"'Population 2016'!E91/'Population 2016'!E$6","v":4.8806417319029669E-3},{"$f":"'Population 2016'!F91/'Population 2016'!F$6","v":8.482645200380853E-3},{"$f":"'Population 2016'!G91/'Population 2016'!G$6","v":1.1586253218403671E-2},{"$f":"'Population 2016'!H91/'Population 2016'!H$6","v":1.9258632100502632E-2},{"$f":"'Population 2016'!I91/'Population 2016'!I$6","v":7.4779061862678452E-3},{"$f":"'Population 2016'!J91/'Population 2016'!J$6","v":1.4902954774812833E-2},{"$f":"'Population 2016'!K91/'Population 2016'!K$6","v":1.583301635602891E-2},{"$f":"'Population 2016'!L91/'Population 2016'!L$6","v":7.1958523285956914E-3},{"$f":"'Population 2016'!M91/'Population 2016'!M$6","v":7.1958523285956914E-3},{"$f":"'Population 2016'!N91/'Population 2016'!N$6","v":1.9026893499389786E-2},{"$f":"'Population 2016'!O91/'Population 2016'!O$6","v":1.7954092502233523E-2},{"$f":"'Population 2016'!P91/'Population 2016'!P$6","v":8.458000740075064E-3},{"$f":"'Population 2016'!Q91/'Population 2016'!Q$6","v":3.3482142857142855E-3},{"$f":"'Population 2016'!R91/'Population 2016'!R$6","v":1.2463718627283592E-2},{"$f":"'Population 2016'!S91/'Population 2016'!S$6","v":1.2526436515535727E-2},{"$f":"'Population 2016'!T91/'Population 2016'!T$6","v":1.3570122131099181E-2},{"$f":"'Population 2016'!U91/'Population 2016'!U$6","v":0},{"$f":"'Population 2016'!V91/'Population 2016'!V$6","v":1.1011736425339367E-2},{"$f":"'Population 2016'!W91/'Population 2016'!W$6","v":1.6729533678756476E-2},{"$f":"'Population 2016'!X91/'Population 2016'!X$6","v":1.6729533678756476E-2},{"$f":"'Population 2016'!Y91/'Population 2016'!Y$6","v":1.268336946110803E-2},{"$f":"'Population 2016'!Z91/'Population 2016'!Z$6","v":2.0786812131817919E-2},{"$f":"'Population 2016'!AA91/'Population 2016'!AA$6","v":1.8535530599873763E-2},{"$f":"'Population 2016'!AB91/'Population 2016'!AB$6","v":7.031670554458999E-3},{"$f":"'Population 2016'!AC91/'Population 2016'!AC$6","v":2.0018830266930705E-2},{"$f":"'Population 2016'!AD91/'Population 2016'!AD$6","v":9.5424082375393897E-3},{"$f":"'Population 2016'!AE91/'Population 2016'!AE$6","v":8.8080921833209331E-3},{"$f":"'Population 2016'!AF91/'Population 2016'!AF$6","v":2.6662241398384776E-2},{"$f":"'Population 2016'!AG91/'Population 2016'!AG$6","v":8.8080921833209331E-3},{"$f":"'Population 2016'!AH91/'Population 2016'!AH$6","v":1.5869575098157816E-2},{"$f":"'Population 2016'!AI91/'Population 2016'!AI$6","v":1.0839677404504117E-2},{"$f":"'Population 2016'!AJ91/'Population 2016'!AJ$6","v":7.4860403755292381E-3},{"$f":"'Population 2016'!AK91/'Population 2016'!AK$6","v":1.5745551881593449E-3},{"$f":"'Population 2016'!AL91/'Population 2016'!AL$6","v":2.3316752531533133E-2},{"$f":"'Population 2016'!AM91/'Population 2016'!AM$6","v":1.6605661298194241E-2},{"$f":"'Population 2016'!AN91/'Population 2016'!AN$6","v":0},{"$f":"'Population 2016'!AO91/'Population 2016'!AO$6","v":0},{"$f":"'Population 2016'!AP91/'Population 2016'!AP$6","v":9.3103613763977546E-3},{"$f":"'Population 2016'!AQ91/'Population 2016'!AQ$6","v":1.7605063663796276E-2},{"$f":"'Population 2016'!AR91/'Population 2016'!AR$6","v":1.5462909477715617E-2},{"$f":"'Population 2016'!AS91/'Population 2016'!AS$6","v":7.4779061862678452E-3},{"$f":"'Population 2016'!AT91/'Population 2016'!AT$6","v":0},{"$f":"'Population 2016'!AU91/'Population 2016'!AU$6","v":0},{"$f":"'Population 2016'!AV91/'Population 2016'!AV$6","v":1.4535922792803527E-2},{"$f":"'Population 2016'!AW91/'Population 2016'!AW$6","v":1.4881366759760522E-2},{"$f":"'Population 2016'!AX91/'Population 2016'!AX$6","v":1.3996385039625527E-2},{"$f":"'Population 2016'!AY91/'Population 2016'!AY$6","v":1.5917309106231483E-2},{"$f":"'Population 2016'!AZ91/'Population 2016'!AZ$6","v":1.504216092611119E-2},{"$f":"'Population 2016'!BA91/'Population 2016'!BA$6","v":1.9584404199788814E-2},{"$f":"'Population 2016'!BB91/'Population 2016'!BB$6","v":1.0515911595048286E-2},{"$f":"'Population 2016'!BC91/'Population 2016'!BC$6","v":0},89]
[null,"Male 65-69",{"$f":"'Population 2016'!C92/'Population 2016'!C$6","v":7.7996127088861798E-3},{"$f":"'Population 2016'!D92/'Population 2016'!D$6","v":7.2450500876206419E-3},{"$f":"'Population 2016'!E92/'Population 2016'!E$6","v":5.750459070261912E-3},{"$f":"'Population 2016'!F92/'Population 2016'!F$6","v":8.8721544187656889E-3},{"$f":"'Population 2016'!G92/'Population 2016'!G$6","v":9.5712526586812941E-3},{"$f":"'Population 2016'!H92/'Population 2016'!H$6","v":1.8507366575839061E-2},{"$f":"'Population 2016'!I92/'Population 2016'!I$6","v":9.7115664756725253E-3},{"$f":"'Population 2016'!J92/'Population 2016'!J$6","v":1.4550916473045601E-2},{"$f":"'Population 2016'!K92/'Population 2016'!K$6","v":1.6023202738683909E-2},{"$f":"'Population 2016'!L92/'Population 2016'!L$6","v":8.2908733351211225E-3},{"$f":"'Population 2016'!M92/'Population 2016'!M$6","v":8.2908733351211225E-3},{"$f":"'Population 2016'!N92/'Population 2016'!N$6","v":1.8085841579790912E-2},{"$f":"'Population 2016'!O92/'Population 2016'!O$6","v":1.871005429180125E-2},{"$f":"'Population 2016'!P92/'Population 2016'!P$6","v":6.7135380874345828E-3},{"$f":"'Population 2016'!Q92/'Population 2016'!Q$6","v":3.8870073891625616E-3},{"$f":"'Population 2016'!R92/'Population 2016'!R$6","v":1.161003926925047E-2},{"$f":"'Population 2016'!S92/'Population 2016'!S$6","v":1.1721503803701638E-2},{"$f":"'Population 2016'!T92/'Population 2016'!T$6","v":1.1075242534325666E-2},{"$f":"'Population 2016'!U92/'Population 2016'!U$6","v":0},{"$f":"'Population 2016'!V92/'Population 2016'!V$6","v":1.1382918552036199E-2},{"$f":"'Population 2016'!W92/'Population 2016'!W$6","v":1.6157512953367877E-2},{"$f":"'Population 2016'!X92/'Population 2016'!X$6","v":1.6157512953367877E-2},{"$f":"'Population 2016'!Y92/'Population 2016'!Y$6","v":1.2743862479205526E-2},{"$f":"'Population 2016'!Z92/'Population 2016'!Z$6","v":1.8520375146969019E-2},{"$f":"'Population 2016'!AA92/'Population 2016'!AA$6","v":1.7030690489135528E-2},{"$f":"'Population 2016'!AB92/'Population 2016'!AB$6","v":6.4260721335008073E-3},{"$f":"'Population 2016'!AC92/'Population 2016'!AC$6","v":1.7952947675979349E-2},{"$f":"'Population 2016'!AD92/'Population 2016'!AD$6","v":8.5363869039693455E-3},{"$f":"'Population 2016'!AE92/'Population 2016'!AE$6","v":8.1645785991513661E-3},{"$f":"'Population 2016'!AF92/'Population 2016'!AF$6","v":2.7049452373050117E-2},{"$f":"'Population 2016'!AG92/'Population 2016'!AG$6","v":8.1645785991513661E-3},{"$f":"'Population 2016'!AH92/'Population 2016'!AH$6","v":1.5373104583961206E-2},{"$f":"'Population 2016'!AI92/'Population 2016'!AI$6","v":9.6552647769077207E-3},{"$f":"'Population 2016'!AJ92/'Population 2016'!AJ$6","v":6.2281401484935882E-3},{"$f":"'Population 2016'!AK92/'Population 2016'!AK$6","v":1.4958274287513776E-3},{"$f":"'Population 2016'!AL92/'Population 2016'!AL$6","v":2.2058388109196424E-2},{"$f":"'Population 2016'!AM92/'Population 2016'!AM$6","v":1.6270131771595902E-2},{"$f":"'Population 2016'!AN92/'Population 2016'!AN$6","v":0},{"$f":"'Population 2016'!AO92/'Population 2016'!AO$6","v":0},{"$f":"'Population 2016'!AP92/'Population 2016'!AP$6","v":7.7266401113404038E-3},{"$f":"'Population 2016'!AQ92/'Population 2016'!AQ$6","v":1.5823949363362039E-2},{"$f":"'Population 2016'!AR92/'Population 2016'!AR$6","v":1.4450625287548622E-2},{"$f":"'Population 2016'!AS92/'Population 2016'!AS$6","v":9.7115664756725253E-3},{"$f":"'Population 2016'!AT92/'Population 2016'!AT$6","v":0},{"$f":"'Population 2016'!AU92/'Population 2016'!AU$6","v":0},{"$f":"'Population 2016'!AV92/'Population 2016'!AV$6","v":1.2510425354462052E-2},{"$f":"'Population 2016'!AW92/'Population 2016'!AW$6","v":1.4168830211549644E-2},{"$f":"'Population 2016'!AX92/'Population 2016'!AX$6","v":1.311581776892061E-2},{"$f":"'Population 2016'!AY92/'Population 2016'!AY$6","v":1.524226385240157E-2},{"$f":"'Population 2016'!AZ92/'Population 2016'!AZ$6","v":1.4256109761326283E-2},{"$f":"'Population 2016'!BA92/'Population 2016'!BA$6","v":1.627717012332397E-2},{"$f":"'Population 2016'!BB92/'Population 2016'!BB$6","v":1.1164041739581307E-2},{"$f":"'Population 2016'!BC92/'Population 2016'!BC$6","v":0},90]
[null,"Male 70-74",{"$f":"'Population 2016'!C93/'Population 2016'!C$6","v":4.5363264720648354E-3},{"$f":"'Population 2016'!D93/'Population 2016'!D$6","v":4.1848664766039809E-3},{"$f":"'Population 2016'!E93/'Population 2016'!E$6","v":3.2376534261138496E-3},{"$f":"'Population 2016'!F93/'Population 2016'!F$6","v":5.842638275772527E-3},{"$f":"'Population 2016'!G93/'Population 2016'!G$6","v":8.7316690921303026E-3},{"$f":"'Population 2016'!H93/'Population 2016'!H$6","v":1.3725501887107449E-2},{"$f":"'Population 2016'!I93/'Population 2016'!I$6","v":6.7495387005924055E-3},{"$f":"'Population 2016'!J93/'Population 2016'!J$6","v":1.044380295242789E-2},{"$f":"'Population 2016'!K93/'Population 2016'!K$6","v":1.1648915937618867E-2},{"$f":"'Population 2016'!L93/'Population 2016'!L$6","v":5.0505050505050509E-3},{"$f":"'Population 2016'!M93/'Population 2016'!M$6","v":5.0505050505050509E-3},{"$f":"'Population 2016'!N93/'Population 2016'!N$6","v":1.2865944213265892E-2},{"$f":"'Population 2016'!O93/'Population 2016'!O$6","v":1.283416947288846E-2},{"$f":"'Population 2016'!P93/'Population 2016'!P$6","v":4.6519004070412857E-3},{"$f":"'Population 2016'!Q93/'Population 2016'!Q$6","v":2.4630541871921183E-3},{"$f":"'Population 2016'!R93/'Population 2016'!R$6","v":7.4270104148881676E-3},{"$f":"'Population 2016'!S93/'Population 2016'!S$6","v":8.6201454139879421E-3},{"$f":"'Population 2016'!T93/'Population 2016'!T$6","v":7.5352106740389233E-3},{"$f":"'Population 2016'!U93/'Population 2016'!U$6","v":0},{"$f":"'Population 2016'!V93/'Population 2016'!V$6","v":7.1761877828054295E-3},{"$f":"'Population 2016'!W93/'Population 2016'!W$6","v":1.2352331606217617E-2},{"$f":"'Population 2016'!X93/'Population 2016'!X$6","v":1.2352331606217617E-2},{"$f":"'Population 2016'!Y93/'Population 2016'!Y$6","v":8.5799264001613154E-3},{"$f":"'Population 2016'!Z93/'Population 2016'!Z$6","v":1.3419372871417678E-2},{"$f":"'Population 2016'!AA93/'Population 2016'!AA$6","v":1.2272446052606911E-2},{"$f":"'Population 2016'!AB93/'Population 2016'!AB$6","v":3.7569531670554458E-3},{"$f":"'Population 2016'!AC93/'Population 2016'!AC$6","v":1.2904957729163181E-2},{"$f":"'Population 2016'!AD93/'Population 2016'!AD$6","v":6.198866746556596E-3},{"$f":"'Population 2016'!AE93/'Population 2016'!AE$6","v":5.2888772698936196E-3},{"$f":"'Population 2016'!AF93/'Population 2016'!AF$6","v":1.8641442637459895E-2},{"$f":"'Population 2016'!AG93/'Population 2016'!AG$6","v":5.2888772698936196E-3},{"$f":"'Population 2016'!AH93/'Population 2016'!AH$6","v":1.1135623857156343E-2},{"$f":"'Population 2016'!AI93/'Population 2016'!AI$6","v":6.8972155840242404E-3},{"$f":"'Population 2016'!AJ93/'Population 2016'!AJ$6","v":4.6634349880346074E-3},{"$f":"'Population 2016'!AK93/'Population 2016'!AK$6","v":1.1809163911195087E-3},{"$f":"'Population 2016'!AL93/'Population 2016'!AL$6","v":1.6921300408598329E-2},{"$f":"'Population 2016'!AM93/'Population 2016'!AM$6","v":1.1462908735968766E-2},{"$f":"'Population 2016'!AN93/'Population 2016'!AN$6","v":0},{"$f":"'Population 2016'!AO93/'Population 2016'!AO$6","v":0},{"$f":"'Population 2016'!AP93/'Population 2016'!AP$6","v":5.7109948649037767E-3},{"$f":"'Population 2016'!AQ93/'Population 2016'!AQ$6","v":1.1334363730036065E-2},{"$f":"'Population 2016'!AR93/'Population 2016'!AR$6","v":1.037605425074579E-2},{"$f":"'Population 2016'!AS93/'Population 2016'!AS$6","v":6.7495387005924055E-3},{"$f":"'Population 2016'!AT93/'Population 2016'!AT$6","v":0},{"$f":"'Population 2016'!AU93/'Population 2016'!AU$6","v":0},{"$f":"'Population 2016'!AV93/'Population 2016'!AV$6","v":9.8177052305492667E-3},{"$f":"'Population 2016'!AW93/'Population 2016'!AW$6","v":1.0696238298429963E-2},{"$f":"'Population 2016'!AX93/'Population 2016'!AX$6","v":9.269129165314919E-3},{"$f":"'Population 2016'!AY93/'Population 2016'!AY$6","v":1.1260786750194559E-2},{"$f":"'Population 2016'!AZ93/'Population 2016'!AZ$6","v":1.0084679148206373E-2},{"$f":"'Population 2016'!BA93/'Population 2016'!BA$6","v":1.1914011914011913E-2},{"$f":"'Population 2016'!BB93/'Population 2016'!BB$6","v":8.7173504439691483E-3},{"$f":"'Population 2016'!BC93/'Population 2016'!BC$6","v":0},91]
[null,"Male 75-79",{"$f":"'Population 2016'!C94/'Population 2016'!C$6","v":2.9943340744459585E-3},{"$f":"'Population 2016'!D94/'Population 2016'!D$6","v":2.9424842413621742E-3},{"$f":"'Population 2016'!E94/'Population 2016'!E$6","v":2.802744756934377E-3},{"$f":"'Population 2016'!F94/'Population 2016'!F$6","v":5.2800138492166537E-3},{"$f":"'Population 2016'!G94/'Population 2016'!G$6","v":5.037501399305944E-3},{"$f":"'Population 2016'!H94/'Population 2016'!H$6","v":1.0702552514056416E-2},{"$f":"'Population 2016'!I94/'Population 2016'!I$6","v":3.5447217636204718E-3},{"$f":"'Population 2016'!J94/'Population 2016'!J$6","v":8.355042361942313E-3},{"$f":"'Population 2016'!K94/'Population 2016'!K$6","v":8.6534804108025862E-3},{"$f":"'Population 2016'!L94/'Population 2016'!L$6","v":4.089568248860284E-3},{"$f":"'Population 2016'!M94/'Population 2016'!M$6","v":4.089568248860284E-3},{"$f":"'Population 2016'!N94/'Population 2016'!N$6","v":9.7634136658383448E-3},{"$f":"'Population 2016'!O94/'Population 2016'!O$6","v":1.0909903099443338E-2},{"$f":"'Population 2016'!P94/'Population 2016'!P$6","v":3.5417878099064334E-3},{"$f":"'Population 2016'!Q94/'Population 2016'!Q$6","v":2.3475985221674879E-3},{"$f":"'Population 2016'!R94/'Population 2016'!R$6","v":8.6221615161345393E-3},{"$f":"'Population 2016'!S94/'Population 2016'!S$6","v":6.268479255884426E-3},{"$f":"'Population 2016'!T94/'Population 2016'!T$6","v":6.1107692826378292E-3},{"$f":"'Population 2016'!U94/'Population 2016'!U$6","v":0},{"$f":"'Population 2016'!V94/'Population 2016'!V$6","v":6.1863687782805427E-3},{"$f":"'Population 2016'!W94/'Population 2016'!W$6","v":8.2901554404145074E-3},{"$f":"'Population 2016'!X94/'Population 2016'!X$6","v":8.2901554404145074E-3},{"$f":"'Population 2016'!Y94/'Population 2016'!Y$6","v":7.1180117961385288E-3},{"$f":"'Population 2016'!Z94/'Population 2016'!Z$6","v":1.0065289183383917E-2},{"$f":"'Population 2016'!AA94/'Population 2016'!AA$6","v":9.3140103863964454E-3},{"$f":"'Population 2016'!AB94/'Population 2016'!AB$6","v":2.6018302530055625E-3},{"$f":"'Population 2016'!AC94/'Population 2016'!AC$6","v":9.8547657304704061E-3},{"$f":"'Population 2016'!AD94/'Population 2016'!AD$6","v":4.1572352166644472E-3},{"$f":"'Population 2016'!AE94/'Population 2016'!AE$6","v":3.8409717055120961E-3},{"$f":"'Population 2016'!AF94/'Population 2016'!AF$6","v":1.3994910941475827E-2},{"$f":"'Population 2016'!AG94/'Population 2016'!AG$6","v":3.8409717055120961E-3},{"$f":"'Population 2016'!AH94/'Population 2016'!AH$6","v":8.3421031469937314E-3},{"$f":"'Population 2016'!AI94/'Population 2016'!AI$6","v":5.4826167567182983E-3},{"$f":"'Population 2016'!AJ94/'Population 2016'!AJ$6","v":3.5589372277106215E-3},{"$f":"'Population 2016'!AK94/'Population 2016'!AK$6","v":5.510943158557707E-4},{"$f":"'Population 2016'!AL94/'Population 2016'!AL$6","v":1.2613252798010304E-2},{"$f":"'Population 2016'!AM94/'Population 2016'!AM$6","v":9.016593460224499E-3},{"$f":"'Population 2016'!AN94/'Population 2016'!AN$6","v":0},{"$f":"'Population 2016'!AO94/'Population 2016'!AO$6","v":0},{"$f":"'Population 2016'!AP94/'Population 2016'!AP$6","v":4.6071891347122911E-3},{"$f":"'Population 2016'!AQ94/'Population 2016'!AQ$6","v":9.9948480164863476E-3},{"$f":"'Population 2016'!AR94/'Population 2016'!AR$6","v":7.8642781808953548E-3},{"$f":"'Population 2016'!AS94/'Population 2016'!AS$6","v":3.5447217636204718E-3},{"$f":"'Population 2016'!AT94/'Population 2016'!AT$6","v":0},{"$f":"'Population 2016'!AU94/'Population 2016'!AU$6","v":0},{"$f":"'Population 2016'!AV94/'Population 2016'!AV$6","v":7.3394495412844041E-3},{"$f":"'Population 2016'!AW94/'Population 2016'!AW$6","v":7.4365883422468654E-3},{"$f":"'Population 2016'!AX94/'Population 2016'!AX$6","v":8.0641423738239786E-3},{"$f":"'Population 2016'!AY94/'Population 2016'!AY$6","v":8.091943743362414E-3},{"$f":"'Population 2016'!AZ94/'Population 2016'!AZ$6","v":7.878376447048736E-3},{"$f":"'Population 2016'!BA94/'Population 2016'!BA$6","v":7.9692387384695078E-3},{"$f":"'Population 2016'!BB94/'Population 2016'!BB$6","v":6.6109274742368268E-3},{"$f":"'Population 2016'!BC94/'Population 2016'!BC$6","v":0},92]
[null,"Male 80-84",{"$f":"'Population 2016'!C95/'Population 2016'!C$6","v":2.1516172990030838E-3},{"$f":"'Population 2016'!D95/'Population 2016'!D$6","v":2.1185886537807654E-3},{"$f":"'Population 2016'!E95/'Population 2016'!E$6","v":2.029573789504204E-3},{"$f":"'Population 2016'!F95/'Population 2016'!F$6","v":2.9862373409504026E-3},{"$f":"'Population 2016'!G95/'Population 2016'!G$6","v":3.8620844061345574E-3},{"$f":"'Population 2016'!H95/'Population 2016'!H$6","v":7.178759457896337E-3},{"$f":"'Population 2016'!I95/'Population 2016'!I$6","v":2.7192386131883071E-3},{"$f":"'Population 2016'!J95/'Population 2016'!J$6","v":3.9897674200286325E-3},{"$f":"'Population 2016'!K95/'Population 2016'!K$6","v":3.8512742487637887E-3},{"$f":"'Population 2016'!L95/'Population 2016'!L$6","v":2.592294627692858E-3},{"$f":"'Population 2016'!M95/'Population 2016'!M$6","v":2.592294627692858E-3},{"$f":"'Population 2016'!N95/'Population 2016'!N$6","v":6.205061094855093E-3},{"$f":"'Population 2016'!O95/'Population 2016'!O$6","v":7.2503607999450208E-3},{"$f":"'Population 2016'!P95/'Population 2016'!P$6","v":2.2730876988951735E-3},{"$f":"'Population 2016'!Q95/'Population 2016'!Q$6","v":1.5009236453201969E-3},{"$f":"'Population 2016'!R95/'Population 2016'!R$6","v":4.0976609185589897E-3},{"$f":"'Population 2016'!S95/'Population 2016'!S$6","v":4.3298014499310805E-3},{"$f":"'Population 2016'!T95/'Population 2016'!T$6","v":4.180609054052915E-3},{"$f":"'Population 2016'!U95/'Population 2016'!U$6","v":0},{"$f":"'Population 2016'!V95/'Population 2016'!V$6","v":4.5248868778280547E-3},{"$f":"'Population 2016'!W95/'Population 2016'!W$6","v":6.0103626943005181E-3},{"$f":"'Population 2016'!X95/'Population 2016'!X$6","v":6.0103626943005181E-3},{"$f":"'Population 2016'!Y95/'Population 2016'!Y$6","v":4.2950042849221153E-3},{"$f":"'Population 2016'!Z95/'Population 2016'!Z$6","v":6.878302055895319E-3},{"$f":"'Population 2016'!AA95/'Population 2016'!AA$6","v":6.1593455695332375E-3},{"$f":"'Population 2016'!AB95/'Population 2016'!AB$6","v":1.8504396195944733E-3},{"$f":"'Population 2016'!AC95/'Population 2016'!AC$6","v":6.5575237420875919E-3},{"$f":"'Population 2016'!AD95/'Population 2016'!AD$6","v":2.8997085497018921E-3},{"$f":"'Population 2016'!AE95/'Population 2016'!AE$6","v":2.5539445371729644E-3},{"$f":"'Population 2016'!AF95/'Population 2016'!AF$6","v":8.9888261975882289E-3},{"$f":"'Population 2016'!AG95/'Population 2016'!AG$6","v":2.5539445371729644E-3},{"$f":"'Population 2016'!AH95/'Population 2016'!AH$6","v":5.4436943000290188E-3},{"$f":"'Population 2016'!AI95/'Population 2016'!AI$6","v":3.6202011408865099E-3},{"$f":"'Population 2016'!AJ95/'Population 2016'!AJ$6","v":2.270356507332638E-3},{"$f":"'Population 2016'!AK95/'Population 2016'!AK$6","v":2.3618327822390176E-4},{"$f":"'Population 2016'!AL95/'Population 2016'!AL$6","v":8.2163794634926273E-3},{"$f":"'Population 2016'!AM95/'Population 2016'!AM$6","v":5.9175207418252808E-3},{"$f":"'Population 2016'!AN95/'Population 2016'!AN$6","v":0},{"$f":"'Population 2016'!AO95/'Population 2016'!AO$6","v":0},{"$f":"'Population 2016'!AP95/'Population 2016'!AP$6","v":3.0714594231415269E-3},{"$f":"'Population 2016'!AQ95/'Population 2016'!AQ$6","v":6.255979980864061E-3},{"$f":"'Population 2016'!AR95/'Population 2016'!AR$6","v":5.2202438751437034E-3},{"$f":"'Population 2016'!AS95/'Population 2016'!AS$6","v":2.7192386131883071E-3},{"$f":"'Population 2016'!AT95/'Population 2016'!AT$6","v":0},{"$f":"'Population 2016'!AU95/'Population 2016'!AU$6","v":0},{"$f":"'Population 2016'!AV95/'Population 2016'!AV$6","v":5.4092696294531159E-3},{"$f":"'Population 2016'!AW95/'Population 2016'!AW$6","v":4.807574181606729E-3},{"$f":"'Population 2016'!AX95/'Population 2016'!AX$6","v":4.1247624785651386E-3},{"$f":"'Population 2016'!AY95/'Population 2016'!AY$6","v":5.5035536617980283E-3},{"$f":"'Population 2016'!AZ95/'Population 2016'!AZ$6","v":4.9574817779048166E-3},{"$f":"'Population 2016'!BA95/'Population 2016'!BA$6","v":5.2995437610822227E-3},{"$f":"'Population 2016'!BB95/'Population 2016'!BB$6","v":4.1480329250113421E-3},{"$f":"'Population 2016'!BC95/'Population 2016'!BC$6","v":0},93]
[null,"Male 85-89",{"$f":"'Population 2016'!C96/'Population 2016'!C$6","v":1.11166893781826E-3},{"$f":"'Population 2016'!D96/'Population 2016'!D$6","v":1.0854497423691575E-3},{"$f":"'Population 2016'!E96/'Population 2016'!E$6","v":1.014786894752102E-3},{"$f":"'Population 2016'!F96/'Population 2016'!F$6","v":1.6013156755820999E-3},{"$f":"'Population 2016'!G96/'Population 2016'!G$6","v":2.1829172730325756E-3},{"$f":"'Population 2016'!H96/'Population 2016'!H$6","v":3.3687700113882312E-3},{"$f":"'Population 2016'!I96/'Population 2016'!I$6","v":1.8451976303777799E-3},{"$f":"'Population 2016'!J96/'Population 2016'!J$6","v":2.4407988922528104E-3},{"$f":"'Population 2016'!K96/'Population 2016'!K$6","v":2.615062761506276E-3},{"$f":"'Population 2016'!L96/'Population 2016'!L$6","v":1.4972736211674264E-3},{"$f":"'Population 2016'!M96/'Population 2016'!M$6","v":1.4972736211674264E-3},{"$f":"'Population 2016'!N96/'Population 2016'!N$6","v":3.2936817185960682E-3},{"$f":"'Population 2016'!O96/'Population 2016'!O$6","v":3.5736375506838017E-3},{"$f":"'Population 2016'!P96/'Population 2016'!P$6","v":1.2158376063857905E-3},{"$f":"'Population 2016'!Q96/'Population 2016'!Q$6","v":3.8485221674876849E-4},{"$f":"'Population 2016'!R96/'Population 2016'!R$6","v":2.0488304592794948E-3},{"$f":"'Population 2016'!S96/'Population 2016'!S$6","v":2.0754637569839751E-3},{"$f":"'Population 2016'!T96/'Population 2016'!T$6","v":1.9723034650168995E-3},{"$f":"'Population 2016'!U96/'Population 2016'!U$6","v":0},{"$f":"'Population 2016'!V96/'Population 2016'!V$6","v":1.838235294117647E-3},{"$f":"'Population 2016'!W96/'Population 2016'!W$6","v":2.8766839378238343E-3},{"$f":"'Population 2016'!X96/'Population 2016'!X$6","v":2.8766839378238343E-3},{"$f":"'Population 2016'!Y96/'Population 2016'!Y$6","v":2.0970912940464787E-3},{"$f":"'Population 2016'!Z96/'Population 2016'!Z$6","v":3.2902831830983349E-3},{"$f":"'Population 2016'!AA96/'Population 2016'!AA$6","v":2.9196897829605606E-3},{"$f":"'Population 2016'!AB96/'Population 2016'!AB$6","v":9.756863448770859E-4},{"$f":"'Population 2016'!AC96/'Population 2016'!AC$6","v":3.1455104986519242E-3},{"$f":"'Population 2016'!AD96/'Population 2016'!AD$6","v":1.5386208631071264E-3},{"$f":"'Population 2016'!AE96/'Population 2016'!AE$6","v":1.3071369678444307E-3},{"$f":"'Population 2016'!AF96/'Population 2016'!AF$6","v":3.8997676734152009E-3},{"$f":"'Population 2016'!AG96/'Population 2016'!AG$6","v":1.3071369678444307E-3},{"$f":"'Population 2016'!AH96/'Population 2016'!AH$6","v":2.5138190120236768E-3},{"$f":"'Population 2016'!AI96/'Population 2016'!AI$6","v":1.6908222669573987E-3},{"$f":"'Population 2016'!AJ96/'Population 2016'!AJ$6","v":1.7181076271706448E-3},{"$f":"'Population 2016'!AK96/'Population 2016'!AK$6","v":3.14911037631869E-4},{"$f":"'Population 2016'!AL96/'Population 2016'!AL$6","v":3.7158761177236927E-3},{"$f":"'Population 2016'!AM96/'Population 2016'!AM$6","v":2.5561249389946315E-3},{"$f":"'Population 2016'!AN96/'Population 2016'!AN$6","v":0},{"$f":"'Population 2016'!AO96/'Population 2016'!AO$6","v":0},{"$f":"'Population 2016'!AP96/'Population 2016'!AP$6","v":1.5357297115707635E-3},{"$f":"'Population 2016'!AQ96/'Population 2016'!AQ$6","v":3.3267093545300656E-3},{"$f":"'Population 2016'!AR96/'Population 2016'!AR$6","v":2.5146021005320852E-3},{"$f":"'Population 2016'!AS96/'Population 2016'!AS$6","v":1.8451976303777799E-3},{"$f":"'Population 2016'!AT96/'Population 2016'!AT$6","v":0},{"$f":"'Population 2016'!AU96/'Population 2016'!AU$6","v":0},{"$f":"'Population 2016'!AV96/'Population 2016'!AV$6","v":2.525914452519957E-3},{"$f":"'Population 2016'!AW96/'Population 2016'!AW$6","v":2.4570225800375108E-3},{"$f":"'Population 2016'!AX96/'Population 2016'!AX$6","v":2.2709366455021551E-3},{"$f":"'Population 2016'!AY96/'Population 2016'!AY$6","v":2.7517768308990141E-3},{"$f":"'Population 2016'!AZ96/'Population 2016'!AZ$6","v":2.6171930827497501E-3},{"$f":"'Population 2016'!BA96/'Population 2016'!BA$6","v":2.3907716215408525E-3},{"$f":"'Population 2016'!BB96/'Population 2016'!BB$6","v":1.6851383757858578E-3},{"$f":"'Population 2016'!BC96/'Population 2016'!BC$6","v":0},94]
[null,"Male 90+",{"$f":"'Population 2016'!C97/'Population 2016'!C$6","v":4.4825360395897584E-4},{"$f":"'Population 2016'!D97/'Population 2016'!D$6","v":5.2310830957549761E-4},{"$f":"'Population 2016'!E97/'Population 2016'!E$6","v":7.2484778196578719E-4},{"$f":"'Population 2016'!F97/'Population 2016'!F$6","v":4.7606682247035401E-4},{"$f":"'Population 2016'!G97/'Population 2016'!G$6","v":6.716668532407926E-4},{"$f":"'Population 2016'!H97/'Population 2016'!H$6","v":1.281921331767203E-3},{"$f":"'Population 2016'!I97/'Population 2016'!I$6","v":6.7980965329707678E-4},{"$f":"'Population 2016'!J97/'Population 2016'!J$6","v":1.0561149053016968E-3},{"$f":"'Population 2016'!K97/'Population 2016'!K$6","v":1.3788512742487638E-3},{"$f":"'Population 2016'!L97/'Population 2016'!L$6","v":5.8103155448288189E-4},{"$f":"'Population 2016'!M97/'Population 2016'!M$6","v":5.8103155448288189E-4},{"$f":"'Population 2016'!N97/'Population 2016'!N$6","v":1.3380581981796526E-3},{"$f":"'Population 2016'!O97/'Population 2016'!O$6","v":1.3916569307951343E-3},{"$f":"'Population 2016'!P97/'Population 2016'!P$6","v":4.7576254162922239E-4},{"$f":"'Population 2016'!Q97/'Population 2016'!Q$6","v":2.6939655172413793E-4},{"$f":"'Population 2016'!R97/'Population 2016'!R$6","v":9.3904729383643504E-4},{"$f":"'Population 2016'!S97/'Population 2016'!S$6","v":9.7591515062237606E-4},{"$f":"'Population 2016'!T97/'Population 2016'!T$6","v":9.2715120150367071E-4},{"$f":"'Population 2016'!U97/'Population 2016'!U$6","v":0},{"$f":"'Population 2016'!V97/'Population 2016'!V$6","v":9.1911764705882352E-4},{"$f":"'Population 2016'!W97/'Population 2016'!W$6","v":1.2932642487046631E-3},{"$f":"'Population 2016'!X97/'Population 2016'!X$6","v":1.2932642487046631E-3},{"$f":"'Population 2016'!Y97/'Population 2016'!Y$6","v":9.7797045924282898E-4},{"$f":"'Population 2016'!Z97/'Population 2016'!Z$6","v":1.4096873471446236E-3},{"$f":"'Population 2016'!AA97/'Population 2016'!AA$6","v":1.2761144128436354E-3},{"$f":"'Population 2016'!AB97/'Population 2016'!AB$6","v":4.710209940785932E-4},{"$f":"'Population 2016'!AC97/'Population 2016'!AC$6","v":1.3869814381810895E-3},{"$f":"'Population 2016'!AD97/'Population 2016'!AD$6","v":4.8821623540899208E-4},{"$f":"'Population 2016'!AE97/'Population 2016'!AE$6","v":4.2230578961127756E-4},{"$f":"'Population 2016'!AF97/'Population 2016'!AF$6","v":1.7424493859940259E-3},{"$f":"'Population 2016'!AG97/'Population 2016'!AG$6","v":4.2230578961127756E-4},{"$f":"'Population 2016'!AH97/'Population 2016'!AH$6","v":1.076851537834899E-3},{"$f":"'Population 2016'!AI97/'Population 2016'!AI$6","v":8.4122592984761679E-4},{"$f":"'Population 2016'!AJ97/'Population 2016'!AJ$6","v":9.2041480026998834E-4},{"$f":"'Population 2016'!AK97/'Population 2016'!AK$6","v":1.574555188159345E-4},{"$f":"'Population 2016'!AL97/'Population 2016'!AL$6","v":1.361994433587967E-3},{"$f":"'Population 2016'!AM97/'Population 2016'!AM$6","v":1.1469009272816009E-3},{"$f":"'Population 2016'!AN97/'Population 2016'!AN$6","v":0},{"$f":"'Population 2016'!AO97/'Population 2016'!AO$6","v":0},{"$f":"'Population 2016'!AP97/'Population 2016'!AP$6","v":4.3192398137927723E-4},{"$f":"'Population 2016'!AQ97/'Population 2016'!AQ$6","v":1.3836755722381688E-3},{"$f":"'Population 2016'!AR97/'Population 2016'!AR$6","v":1.0829349572082435E-3},{"$f":"'Population 2016'!AS97/'Population 2016'!AS$6","v":6.7980965329707678E-4},{"$f":"'Population 2016'!AT97/'Population 2016'!AT$6","v":0},{"$f":"'Population 2016'!AU97/'Population 2016'!AU$6","v":0},{"$f":"'Population 2016'!AV97/'Population 2016'!AV$6","v":1.0008340283569641E-3},{"$f":"'Population 2016'!AW97/'Population 2016'!AW$6","v":9.8280903201500422E-4},{"$f":"'Population 2016'!AX97/'Population 2016'!AX$6","v":7.4153033322519354E-4},{"$f":"'Population 2016'!AY97/'Population 2016'!AY$6","v":1.1480068966406825E-3},{"$f":"'Population 2016'!AZ97/'Population 2016'!AZ$6","v":9.9149635558096324E-4},{"$f":"'Population 2016'!BA97/'Population 2016'!BA$6","v":1.4344629729245114E-3},{"$f":"'Population 2016'!BB97/'Population 2016'!BB$6","v":8.7497569511958001E-4},{"$f":"'Population 2016'!BC97/'Population 2016'!BC$6","v":0},95]
["SIMD Q2","Female 0-4",{"$f":"'Population 2016'!C98/'Population 2016'!C$6","v":0},{"$f":"'Population 2016'!D98/'Population 2016'!D$6","v":0},{"$f":"'Population 2016'!E98/'Population 2016'!E$6","v":0},{"$f":"'Population 2016'!F98/'Population 2016'!F$6","v":0},{"$f":"'Population 2016'!G98/'Population 2016'!G$6","v":0},{"$f":"'Population 2016'!H98/'Population 2016'!H$6","v":0},{"$f":"'Population 2016'!I98/'Population 2016'!I$6","v":0},{"$f":"'Population 2016'!J98/'Population 2016'!J$6","v":0},{"$f":"'Population 2016'!K98/'Population 2016'!K$6","v":0},{"$f":"'Population 2016'!L98/'Population 2016'!L$6","v":0},{"$f":"'Population 2016'!M98/'Population 2016'!M$6","v":0},{"$f":"'Population 2016'!N98/'Population 2016'!N$6","v":0},{"$f":"'Population 2016'!O98/'Population 2016'!O$6","v":0},{"$f":"'Population 2016'!P98/'Population 2016'!P$6","v":0},{"$f":"'Population 2016'!Q98/'Population 2016'!Q$6","v":0},{"$f":"'Population 2016'!R98/'Population 2016'!R$6","v":0},{"$f":"'Population 2016'!S98/'Population 2016'!S$6","v":0},{"$f":"'Population 2016'!T98/'Population 2016'!T$6","v":0},{"$f":"'Population 2016'!U98/'Population 2016'!U$6","v":0},{"$f":"'Population 2016'!V98/'Population 2016'!V$6","v":0},{"$f":"'Population 2016'!W98/'Population 2016'!W$6","v":0},{"$f":"'Population 2016'!X98/'Population 2016'!X$6","v":0},{"$f":"'Population 2016'!Y98/'Population 2016'!Y$6","v":0},{"$f":"'Population 2016'!Z98/'Population 2016'!Z$6","v":0},{"$f":"'Population 2016'!AA98/'Population 2016'!AA$6","v":0},{"$f":"'Population 2016'!AB98/'Population 2016'!AB$6","v":0},{"$f":"'Population 2016'!AC98/'Population 2016'!AC$6","v":0},{"$f":"'Population 2016'!AD98/'Population 2016'!AD$6","v":0},{"$f":"'Population 2016'!AE98/'Population 2016'!AE$6","v":0},{"$f":"'Population 2016'!AF98/'Population 2016'!AF$6","v":0},{"$f":"'Population 2016'!AG98/'Population 2016'!AG$6","v":0},{"$f":"'Population 2016'!AH98/'Population 2016'!AH$6","v":0},{"$f":"'Population 2016'!AI98/'Population 2016'!AI$6","v":0},{"$f":"'Population 2016'!AJ98/'Population 2016'!AJ$6","v":0},{"$f":"'Population 2016'!AK98/'Population 2016'!AK$6","v":0},{"$f":"'Population 2016'!AL98/'Population 2016'!AL$6","v":0},{"$f":"'Population 2016'!AM98/'Population 2016'!AM$6","v":0},{"$f":"'Population 2016'!AN98/'Population 2016'!AN$6","v":0},{"$f":"'Population 2016'!AO98/'Population 2016'!AO$6","v":0},{"$f":"'Population 2016'!AP98/'Population 2016'!AP$6","v":0},{"$f":"'Population 2016'!AQ98/'Population 2016'!AQ$6","v":0},{"$f":"'Population 2016'!AR98/'Population 2016'!AR$6","v":0},{"$f":"'Population 2016'!AS98/'Population 2016'!AS$6","v":0},{"$f":"'Population 2016'!AT98/'Population 2016'!AT$6","v":0},{"$f":"'Population 2016'!AU98/'Population 2016'!AU$6","v":0},{"$f":"'Population 2016'!AV98/'Population 2016'!AV$6","v":0},{"$f":"'Population 2016'!AW98/'Population 2016'!AW$6","v":0},{"$f":"'Population 2016'!AX98/'Population 2016'!AX$6","v":0},{"$f":"'Population 2016'!AY98/'Population 2016'!AY$6","v":0},{"$f":"'Population 2016'!AZ98/'Population 2016'!AZ$6","v":0},{"$f":"'Population 2016'!BA98/'Population 2016'!BA$6","v":0},{"$f":"'Population 2016'!BB98/'Population 2016'!BB$6","v":0},{"$f":"'Population 2016'!BC98/'Population 2016'!BC$6","v":0},96]
[null,"Female 5-9",{"$f":"'Population 2016'!C99/'Population 2016'!C$6","v":0},{"$f":"'Population 2016'!D99/'Population 2016'!D$6","v":0},{"$f":"'Population 2016'!E99/'Population 2016'!E$6","v":0},{"$f":"'Population 2016'!F99/'Population 2016'!F$6","v":0},{"$f":"'Population 2016'!G99/'Population 2016'!G$6","v":0},{"$f":"'Population 2016'!H99/'Population 2016'!H$6","v":0},{"$f":"'Population 2016'!I99/'Population 2016'!I$6","v":0},{"$f":"'Population 2016'!J99/'Population 2016'!J$6","v":0},{"$f":"'Population 2016'!K99/'Population 2016'!K$6","v":0},{"$f":"'Population 2016'!L99/'Population 2016'!L$6","v":0},{"$f":"'Population 2016'!M99/'Population 2016'!M$6","v":0},{"$f":"'Population 2016'!N99/'Population 2016'!N$6","v":0},{"$f":"'Population 2016'!O99/'Population 2016'!O$6","v":0},{"$f":"'Population 2016'!P99/'Population 2016'!P$6","v":0},{"$f":"'Population 2016'!Q99/'Population 2016'!Q$6","v":0},{"$f":"'Population 2016'!R99/'Population 2016'!R$6","v":0},{"$f":"'Population 2016'!S99/'Population 2016'!S$6","v":0},{"$f":"'Population 2016'!T99/'Population 2016'!T$6","v":0},{"$f":"'Population 2016'!U99/'Population 2016'!U$6","v":0},{"$f":"'Population 2016'!V99/'Population 2016'!V$6","v":0},{"$f":"'Population 2016'!W99/'Population 2016'!W$6","v":0},{"$f":"'Population 2016'!X99/'Population 2016'!X$6","v":0},{"$f":"'Population 2016'!Y99/'Population 2016'!Y$6","v":0},{"$f":"'Population 2016'!Z99/'Population 2016'!Z$6","v":0},{"$f":"'Population 2016'!AA99/'Population 2016'!AA$6","v":0},{"$f":"'Population 2016'!AB99/'Population 2016'!AB$6","v":0},{"$f":"'Population 2016'!AC99/'Population 2016'!AC$6","v":0},{"$f":"'Population 2016'!AD99/'Population 2016'!AD$6","v":0},{"$f":"'Population 2016'!AE99/'Population 2016'!AE$6","v":0},{"$f":"'Population 2016'!AF99/'Population 2016'!AF$6","v":0},{"$f":"'Population 2016'!AG99/'Population 2016'!AG$6","v":0},{"$f":"'Population 2016'!AH99/'Population 2016'!AH$6","v":0},{"$f":"'Population 2016'!AI99/'Population 2016'!AI$6","v":0},{"$f":"'Population 2016'!AJ99/'Population 2016'!AJ$6","v":0},{"$f":"'Population 2016'!AK99/'Population 2016'!AK$6","v":0},{"$f":"'Population 2016'!AL99/'Population 2016'!AL$6","v":0},{"$f":"'Population 2016'!AM99/'Population 2016'!AM$6","v":0},{"$f":"'Population 2016'!AN99/'Population 2016'!AN$6","v":0},{"$f":"'Population 2016'!AO99/'Population 2016'!AO$6","v":0},{"$f":"'Population 2016'!AP99/'Population 2016'!AP$6","v":0},{"$f":"'Population 2016'!AQ99/'Population 2016'!AQ$6","v":0},{"$f":"'Population 2016'!AR99/'Population 2016'!AR$6","v":0},{"$f":"'Population 2016'!AS99/'Population 2016'!AS$6","v":0},{"$f":"'Population 2016'!AT99/'Population 2016'!AT$6","v":0},{"$f":"'Population 2016'!AU99/'Population 2016'!AU$6","v":0},{"$f":"'Population 2016'!AV99/'Population 2016'!AV$6","v":0},{"$f":"'Population 2016'!AW99/'Population 2016'!AW$6","v":0},{"$f":"'Population 2016'!AX99/'Population 2016'!AX$6","v":0},{"$f":"'Population 2016'!AY99/'Population 2016'!AY$6","v":0},{"$f":"'Population 2016'!AZ99/'Population 2016'!AZ$6","v":0},{"$f":"'Population 2016'!BA99/'Population 2016'!BA$6","v":0},{"$f":"'Population 2016'!BB99/'Population 2016'!BB$6","v":0},{"$f":"'Population 2016'!BC99/'Population 2016'!BC$6","v":0},97]
[null,"Female 10-15",{"$f":"'Population 2016'!C100/'Population 2016'!C$6","v":0},{"$f":"'Population 2016'!D100/'Population 2016'!D$6","v":0},{"$f":"'Population 2016'!E100/'Population 2016'!E$6","v":0},{"$f":"'Population 2016'!F100/'Population 2016'!F$6","v":0},{"$f":"'Population 2016'!G100/'Population 2016'!G$6","v":0},{"$f":"'Population 2016'!H100/'Population 2016'!H$6","v":0},{"$f":"'Population 2016'!I100/'Population 2016'!I$6","v":0},{"$f":"'Population 2016'!J100/'Population 2016'!J$6","v":0},{"$f":"'Population 2016'!K100/'Population 2016'!K$6","v":0},{"$f":"'Population 2016'!L100/'Population 2016'!L$6","v":0},{"$f":"'Population 2016'!M100/'Population 2016'!M$6","v":0},{"$f":"'Population 2016'!N100/'Population 2016'!N$6","v":0},{"$f":"'Population 2016'!O100/'Population 2016'!O$6","v":0},{"$f":"'Population 2016'!P100/'Population 2016'!P$6","v":0},{"$f":"'Population 2016'!Q100/'Population 2016'!Q$6","v":0},{"$f":"'Population 2016'!R100/'Population 2016'!R$6","v":0},{"$f":"'Population 2016'!S100/'Population 2016'!S$6","v":0},{"$f":"'Population 2016'!T100/'Population 2016'!T$6","v":0},{"$f":"'Population 2016'!U100/'Population 2016'!U$6","v":0},{"$f":"'Population 2016'!V100/'Population 2016'!V$6","v":0},{"$f":"'Population 2016'!W100/'Population 2016'!W$6","v":0},{"$f":"'Population 2016'!X100/'Population 2016'!X$6","v":0},{"$f":"'Population 2016'!Y100/'Population 2016'!Y$6","v":0},{"$f":"'Population 2016'!Z100/'Population 2016'!Z$6","v":0},{"$f":"'Population 2016'!AA100/'Population 2016'!AA$6","v":0},{"$f":"'Population 2016'!AB100/'Population 2016'!AB$6","v":0},{"$f":"'Population 2016'!AC100/'Population 2016'!AC$6","v":0},{"$f":"'Population 2016'!AD100/'Population 2016'!AD$6","v":0},{"$f":"'Population 2016'!AE100/'Population 2016'!AE$6","v":0},{"$f":"'Population 2016'!AF100/'Population 2016'!AF$6","v":0},{"$f":"'Population 2016'!AG100/'Population 2016'!AG$6","v":0},{"$f":"'Population 2016'!AH100/'Population 2016'!AH$6","v":0},{"$f":"'Population 2016'!AI100/'Population 2016'!AI$6","v":0},{"$f":"'Population 2016'!AJ100/'Population 2016'!AJ$6","v":0},{"$f":"'Population 2016'!AK100/'Population 2016'!AK$6","v":0},{"$f":"'Population 2016'!AL100/'Population 2016'!AL$6","v":0},{"$f":"'Population 2016'!AM100/'Population 2016'!AM$6","v":0},{"$f":"'Population 2016'!AN100/'Population 2016'!AN$6","v":0},{"$f":"'Population 2016'!AO100/'Population 2016'!AO$6","v":0},{"$f":"'Population 2016'!AP100/'Population 2016'!AP$6","v":0},{"$f":"'Population 2016'!AQ100/'Population 2016'!AQ$6","v":0},{"$f":"'Population 2016'!AR100/'Population 2016'!AR$6","v":0},{"$f":"'Population 2016'!AS100/'Population 2016'!AS$6","v":0},{"$f":"'Population 2016'!AT100/'Population 2016'!AT$6","v":0},{"$f":"'Population 2016'!AU100/'Population 2016'!AU$6","v":0},{"$f":"'Population 2016'!AV100/'Population 2016'!AV$6","v":0},{"$f":"'Population 2016'!AW100/'Population 2016'!AW$6","v":0},{"$f":"'Population 2016'!AX100/'Population 2016'!AX$6","v":0},{"$f":"'Population 2016'!AY100/'Population 2016'!AY$6","v":0},{"$f":"'Population 2016'!AZ100/'Population 2016'!AZ$6","v":0},{"$f":"'Population 2016'!BA100/'Population 2016'!BA$6","v":0},{"$f":"'Population 2016'!BB100/'Population 2016'!BB$6","v":0},{"$f":"'Population 2016'!BC100/'Population 2016'!BC$6","v":0},98]
[null,"Female 16-19",{"$f":"'Population 2016'!C101/'Population 2016'!C$6","v":1.7195008247866312E-2},{"$f":"'Population 2016'!D101/'Population 2016'!D$6","v":1.7550283786257944E-2},{"$f":"'Population 2016'!E101/'Population 2016'!E$6","v":1.8507780032859765E-2},{"$f":"'Population 2016'!F101/'Population 2016'!F$6","v":1.6748896390547909E-2},{"$f":"'Population 2016'!G101/'Population 2016'!G$6","v":1.572819881338856E-2},{"$f":"'Population 2016'!H101/'Population 2016'!H$6","v":1.1012598603600113E-2},{"$f":"'Population 2016'!I101/'Population 2016'!I$6","v":1.7577935320967273E-2},{"$f":"'Population 2016'!J101/'Population 2016'!J$6","v":1.5161116196108803E-2},{"$f":"'Population 2016'!K101/'Population 2016'!K$6","v":1.5642829973373906E-2},{"$f":"'Population 2016'!L101/'Population 2016'!L$6","v":1.9755072852417985E-2},{"$f":"'Population 2016'!M101/'Population 2016'!M$6","v":1.9755072852417985E-2},{"$f":"'Population 2016'!N101/'Population 2016'!N$6","v":9.8222294108132741E-3},{"$f":"'Population 2016'!O101/'Population 2016'!O$6","v":1.1854855336402997E-2},{"$f":"'Population 2016'!P101/'Population 2016'!P$6","v":1.8977639160543427E-2},{"$f":"'Population 2016'!Q101/'Population 2016'!Q$6","v":2.1243842364532018E-2},{"$f":"'Population 2016'!R101/'Population 2016'!R$6","v":1.835410619771214E-2},{"$f":"'Population 2016'!S101/'Population 2016'!S$6","v":1.5554140931617546E-2},{"$f":"'Population 2016'!T101/'Population 2016'!T$6","v":1.3536407541953592E-2},{"$f":"'Population 2016'!U101/'Population 2016'!U$6","v":2.1723122238586155E-2},{"$f":"'Population 2016'!V101/'Population 2016'!V$6","v":1.6420390271493213E-2},{"$f":"'Population 2016'!W101/'Population 2016'!W$6","v":1.2907772020725388E-2},{"$f":"'Population 2016'!X101/'Population 2016'!X$6","v":1.2907772020725388E-2},{"$f":"'Population 2016'!Y101/'Population 2016'!Y$6","v":1.5879417250592328E-2},{"$f":"'Population 2016'!Z101/'Population 2016'!Z$6","v":7.2945243976168996E-3},{"$f":"'Population 2016'!AA101/'Population 2016'!AA$6","v":1.0561377853603055E-2},{"$f":"'Population 2016'!AB101/'Population 2016'!AB$6","v":1.8123093486452538E-2},{"$f":"'Population 2016'!AC101/'Population 2016'!AC$6","v":8.8276602615228392E-3},{"$f":"'Population 2016'!AD101/'Population 2016'!AD$6","v":1.8315506043525217E-2},{"$f":"'Population 2016'!AE101/'Population 2016'!AE$6","v":1.9245078126571079E-2},{"$f":"'Population 2016'!AF101/'Population 2016'!AF$6","v":6.3889810819780946E-3},{"$f":"'Population 2016'!AG101/'Population 2016'!AG$6","v":1.9245078126571079E-2},{"$f":"'Population 2016'!AH101/'Population 2016'!AH$6","v":1.3677413038993913E-2},{"$f":"'Population 2016'!AI101/'Population 2016'!AI$6","v":1.6715703302544186E-2},{"$f":"'Population 2016'!AJ101/'Population 2016'!AJ$6","v":2.331717494017304E-2},{"$f":"'Population 2016'!AK101/'Population 2016'!AK$6","v":2.1571406077783028E-2},{"$f":"'Population 2016'!AL101/'Population 2016'!AL$6","v":8.3052051874222769E-3},{"$f":"'Population 2016'!AM101/'Population 2016'!AM$6","v":1.3396778916544656E-2},{"$f":"'Population 2016'!AN101/'Population 2016'!AN$6","v":1.8838908112264515E-2},{"$f":"'Population 2016'!AO101/'Population 2016'!AO$6","v":1.8838908112264515E-2},{"$f":"'Population 2016'!AP101/'Population 2016'!AP$6","v":1.7372942362144261E-2},{"$f":"'Population 2016'!AQ101/'Population 2016'!AQ$6","v":1.1113564436593802E-2},{"$f":"'Population 2016'!AR101/'Population 2016'!AR$6","v":1.3068131078085488E-2},{"$f":"'Population 2016'!AS101/'Population 2016'!AS$6","v":1.7577935320967273E-2},{"$f":"'Population 2016'!AT101/'Population 2016'!AT$6","v":2.2257551669316374E-2},{"$f":"'Population 2016'!AU101/'Population 2016'!AU$6","v":2.2257551669316374E-2},{"$f":"'Population 2016'!AV101/'Population 2016'!AV$6","v":1.4202311450017872E-2},{"$f":"'Population 2016'!AW101/'Population 2016'!AW$6","v":1.405416915781456E-2},{"$f":"'Population 2016'!AX101/'Population 2016'!AX$6","v":1.4691569727024146E-2},{"$f":"'Population 2016'!AY101/'Population 2016'!AY$6","v":1.2787162961083856E-2},{"$f":"'Population 2016'!AZ101/'Population 2016'!AZ$6","v":1.2657210232956982E-2},{"$f":"'Population 2016'!BA101/'Population 2016'!BA$6","v":1.1495626880242265E-2},{"$f":"'Population 2016'!BB101/'Population 2016'!BB$6","v":1.7434700887938297E-2},{"$f":"'Population 2016'!BC101/'Population 2016'!BC$6","v":2.1723122238586155E-2},99]
[null,"Female 20-24",{"$f":"'Population 2016'!C102/'Population 2016'!C$6","v":3.9320806139281357E-2},{"$f":"'Population 2016'!D102/'Population 2016'!D$6","v":3.646064917741218E-2},{"$f":"'Population 2016'!E102/'Population 2016'!E$6","v":2.8752295351309558E-2},{"$f":"'Population 2016'!F102/'Population 2016'!F$6","v":3.2588937938197872E-2},{"$f":"'Population 2016'!G102/'Population 2016'!G$6","v":2.0429866786074106E-2},{"$f":"'Population 2016'!H102/'Population 2016'!H$6","v":1.4917986846890894E-2},{"$f":"'Population 2016'!I102/'Population 2016'!I$6","v":2.6852481305234533E-2},{"$f":"'Population 2016'!J102/'Population 2016'!J$6","v":2.4220235161585581E-2},{"$f":"'Population 2016'!K102/'Population 2016'!K$6","v":1.7877519969570179E-2},{"$f":"'Population 2016'!L102/'Population 2016'!L$6","v":2.4693841065522481E-2},{"$f":"'Population 2016'!M102/'Population 2016'!M$6","v":2.4693841065522481E-2},{"$f":"'Population 2016'!N102/'Population 2016'!N$6","v":2.3835080651090298E-2},{"$f":"'Population 2016'!O102/'Population 2016'!O$6","v":1.5359769088035187E-2},{"$f":"'Population 2016'!P102/'Population 2016'!P$6","v":2.7171327377491145E-2},{"$f":"'Population 2016'!Q102/'Population 2016'!Q$6","v":3.575277093596059E-2},{"$f":"'Population 2016'!R102/'Population 2016'!R$6","v":2.3305446474304253E-2},{"$f":"'Population 2016'!S102/'Population 2016'!S$6","v":2.6515430507475877E-2},{"$f":"'Population 2016'!T102/'Population 2016'!T$6","v":3.459116846337331E-2},{"$f":"'Population 2016'!U102/'Population 2016'!U$6","v":2.6509572901325478E-2},{"$f":"'Population 2016'!V102/'Population 2016'!V$6","v":2.3030967194570137E-2},{"$f":"'Population 2016'!W102/'Population 2016'!W$6","v":1.7459067357512955E-2},{"$f":"'Population 2016'!X102/'Population 2016'!X$6","v":1.7459067357512955E-2},{"$f":"'Population 2016'!Y102/'Population 2016'!Y$6","v":2.3541866209608308E-2},{"$f":"'Population 2016'!Z102/'Population 2016'!Z$6","v":1.3878128883096207E-2},{"$f":"'Population 2016'!AA102/'Population 2016'!AA$6","v":1.5913309210896343E-2},{"$f":"'Population 2016'!AB102/'Population 2016'!AB$6","v":3.7502242957114663E-2},{"$f":"'Population 2016'!AC102/'Population 2016'!AC$6","v":1.4367804912209715E-2},{"$f":"'Population 2016'!AD102/'Population 2016'!AD$6","v":2.3567529182015889E-2},{"$f":"'Population 2016'!AE102/'Population 2016'!AE$6","v":2.4694833792507087E-2},{"$f":"'Population 2016'!AF102/'Population 2016'!AF$6","v":7.9931408341630712E-3},{"$f":"'Population 2016'!AG102/'Population 2016'!AG$6","v":2.4694833792507087E-2},{"$f":"'Population 2016'!AH102/'Population 2016'!AH$6","v":1.869106597813432E-2},{"$f":"'Population 2016'!AI102/'Population 2016'!AI$6","v":3.1058396146264496E-2},{"$f":"'Population 2016'!AJ102/'Population 2016'!AJ$6","v":2.9238510155243296E-2},{"$f":"'Population 2016'!AK102/'Population 2016'!AK$6","v":4.3772634230829791E-2},{"$f":"'Population 2016'!AL102/'Population 2016'!AL$6","v":1.1280866939065553E-2},{"$f":"'Population 2016'!AM102/'Population 2016'!AM$6","v":1.7087603709126403E-2},{"$f":"'Population 2016'!AN102/'Population 2016'!AN$6","v":3.3833141099577087E-2},{"$f":"'Population 2016'!AO102/'Population 2016'!AO$6","v":3.3833141099577087E-2},{"$f":"'Population 2016'!AP102/'Population 2016'!AP$6","v":2.7643134808273743E-2},{"$f":"'Population 2016'!AQ102/'Population 2016'!AQ$6","v":1.4131154780304703E-2},{"$f":"'Population 2016'!AR102/'Population 2016'!AR$6","v":2.0855541224439965E-2},{"$f":"'Population 2016'!AS102/'Population 2016'!AS$6","v":2.6852481305234533E-2},{"$f":"'Population 2016'!AT102/'Population 2016'!AT$6","v":4.133545310015898E-2},{"$f":"'Population 2016'!AU102/'Population 2016'!AU$6","v":4.133545310015898E-2},{"$f":"'Population 2016'!AV102/'Population 2016'!AV$6","v":2.0159656856904563E-2},{"$f":"'Population 2016'!AW102/'Population 2016'!AW$6","v":2.0843741553984881E-2},{"$f":"'Population 2016'!AX102/'Population 2016'!AX$6","v":3.0402743662232935E-2},{"$f":"'Population 2016'!AY102/'Population 2016'!AY$6","v":2.1739036964102211E-2},{"$f":"'Population 2016'!AZ102/'Population 2016'!AZ$6","v":2.6350578819494069E-2},{"$f":"'Population 2016'!BA102/'Population 2016'!BA$6","v":1.5579861733707888E-2},{"$f":"'Population 2016'!BB102/'Population 2016'!BB$6","v":2.3251668935122174E-2},{"$f":"'Population 2016'!BC102/'Population 2016'!BC$6","v":2.6509572901325478E-2},100]
[null,"Female 25-29",{"$f":"'Population 2016'!C103/'Population 2016'!C$6","v":4.4771569963422506E-2},{"$f":"'Population 2016'!D103/'Population 2016'!D$6","v":4.1351711871943087E-2},{"$f":"'Population 2016'!E103/'Population 2016'!E$6","v":3.2134918333816563E-2},{"$f":"'Population 2016'!F103/'Population 2016'!F$6","v":3.3584350385181337E-2},{"$f":"'Population 2016'!G103/'Population 2016'!G$6","v":2.3956117765588269E-2},{"$f":"'Population 2016'!H103/'Population 2016'!H$6","v":1.6032960284288415E-2},{"$f":"'Population 2016'!I103/'Population 2016'!I$6","v":2.7192386131883073E-2},{"$f":"'Population 2016'!J103/'Population 2016'!J$6","v":2.3915135300053979E-2},{"$f":"'Population 2016'!K103/'Population 2016'!K$6","v":2.0635222518067705E-2},{"$f":"'Population 2016'!L103/'Population 2016'!L$6","v":2.3956377938678823E-2},{"$f":"'Population 2016'!M103/'Population 2016'!M$6","v":2.3956377938678823E-2},{"$f":"'Population 2016'!N103/'Population 2016'!N$6","v":2.2011792556867475E-2},{"$f":"'Population 2016'!O103/'Population 2016'!O$6","v":1.7455844959109339E-2},{"$f":"'Population 2016'!P103/'Population 2016'!P$6","v":3.0871702701273988E-2},{"$f":"'Population 2016'!Q103/'Population 2016'!Q$6","v":3.5675800492610835E-2},{"$f":"'Population 2016'!R103/'Population 2016'!R$6","v":2.1683455694041318E-2},{"$f":"'Population 2016'!S103/'Population 2016'!S$6","v":2.9351108492303161E-2},{"$f":"'Population 2016'!T103/'Population 2016'!T$6","v":3.91342093507413E-2},{"$f":"'Population 2016'!U103/'Population 2016'!U$6","v":2.8902798232695141E-2},{"$f":"'Population 2016'!V103/'Population 2016'!V$6","v":2.4992929864253395E-2},{"$f":"'Population 2016'!W103/'Population 2016'!W$6","v":1.9838341968911918E-2},{"$f":"'Population 2016'!X103/'Population 2016'!X$6","v":1.9838341968911918E-2},{"$f":"'Population 2016'!Y103/'Population 2016'!Y$6","v":2.4529918838534052E-2},{"$f":"'Population 2016'!Z103/'Population 2016'!Z$6","v":1.8058581016007852E-2},{"$f":"'Population 2016'!AA103/'Population 2016'!AA$6","v":1.8346800652430679E-2},{"$f":"'Population 2016'!AB103/'Population 2016'!AB$6","v":4.1012470841557506E-2},{"$f":"'Population 2016'!AC103/'Population 2016'!AC$6","v":1.7635867767951976E-2},{"$f":"'Population 2016'!AD103/'Population 2016'!AD$6","v":2.5549982986403919E-2},{"$f":"'Population 2016'!AE103/'Population 2016'!AE$6","v":2.6122629557383314E-2},{"$f":"'Population 2016'!AF103/'Population 2016'!AF$6","v":9.8738798539661464E-3},{"$f":"'Population 2016'!AG103/'Population 2016'!AG$6","v":2.6122629557383314E-2},{"$f":"'Population 2016'!AH103/'Population 2016'!AH$6","v":1.9624570395673016E-2},{"$f":"'Population 2016'!AI103/'Population 2016'!AI$6","v":3.4339595793033313E-2},{"$f":"'Population 2016'!AJ103/'Population 2016'!AJ$6","v":3.0711173835675277E-2},{"$f":"'Population 2016'!AK103/'Population 2016'!AK$6","v":3.8970240906943787E-2},{"$f":"'Population 2016'!AL103/'Population 2016'!AL$6","v":1.1295671226387161E-2},{"$f":"'Population 2016'!AM103/'Population 2016'!AM$6","v":1.8502928257686676E-2},{"$f":"'Population 2016'!AN103/'Population 2016'!AN$6","v":3.8446751249519413E-2},{"$f":"'Population 2016'!AO103/'Population 2016'!AO$6","v":3.8446751249519413E-2},{"$f":"'Population 2016'!AP103/'Population 2016'!AP$6","v":3.0810577338388444E-2},{"$f":"'Population 2016'!AQ103/'Population 2016'!AQ$6","v":1.5809229410465888E-2},{"$f":"'Population 2016'!AR103/'Population 2016'!AR$6","v":2.2953021196360526E-2},{"$f":"'Population 2016'!AS103/'Population 2016'!AS$6","v":2.7192386131883073E-2},{"$f":"'Population 2016'!AT103/'Population 2016'!AT$6","v":3.6565977742448331E-2},{"$f":"'Population 2016'!AU103/'Population 2016'!AU$6","v":3.6565977742448331E-2},{"$f":"'Population 2016'!AV103/'Population 2016'!AV$6","v":2.1684737281067557E-2},{"$f":"'Population 2016'!AW103/'Population 2016'!AW$6","v":2.113039418832259E-2},{"$f":"'Population 2016'!AX103/'Population 2016'!AX$6","v":2.7112202808546138E-2},{"$f":"'Population 2016'!AY103/'Population 2016'!AY$6","v":2.2822549091268698E-2},{"$f":"'Population 2016'!AZ103/'Population 2016'!AZ$6","v":2.6037944833500071E-2},{"$f":"'Population 2016'!BA103/'Population 2016'!BA$6","v":1.6994401609786224E-2},{"$f":"'Population 2016'!BB103/'Population 2016'!BB$6","v":2.6476116404173959E-2},{"$f":"'Population 2016'!BC103/'Population 2016'!BC$6","v":2.8902798232695141E-2},101]
[null,"Female 30-34",{"$f":"'Population 2016'!C104/'Population 2016'!C$6","v":3.8137416624829661E-2},{"$f":"'Population 2016'!D104/'Population 2016'!D$6","v":3.5898307744618524E-2},{"$f":"'Population 2016'!E104/'Population 2016'!E$6","v":2.9863728616990434E-2},{"$f":"'Population 2016'!F104/'Population 2016'!F$6","v":3.0554834242188175E-2},{"$f":"'Population 2016'!G104/'Population 2016'!G$6","v":1.9926116646143514E-2},{"$f":"'Population 2016'!H104/'Population 2016'!H$6","v":1.5239957786032423E-2},{"$f":"'Population 2016'!I104/'Population 2016'!I$6","v":2.3016412547343885E-2},{"$f":"'Population 2016'!J104/'Population 2016'!J$6","v":1.98549602196719E-2},{"$f":"'Population 2016'!K104/'Population 2016'!K$6","v":1.9161278052491442E-2},{"$f":"'Population 2016'!L104/'Population 2016'!L$6","v":2.438097792080093E-2},{"$f":"'Population 2016'!M104/'Population 2016'!M$6","v":2.438097792080093E-2},{"$f":"'Population 2016'!N104/'Population 2016'!N$6","v":1.6262553485568088E-2},{"$f":"'Population 2016'!O104/'Population 2016'!O$6","v":1.6596797470964195E-2},{"$f":"'Population 2016'!P104/'Population 2016'!P$6","v":2.7277052386742082E-2},{"$f":"'Population 2016'!Q104/'Population 2016'!Q$6","v":3.6676416256157633E-2},{"$f":"'Population 2016'!R104/'Population 2016'!R$6","v":2.100051220761482E-2},{"$f":"'Population 2016'!S104/'Population 2016'!S$6","v":2.7491345658098253E-2},{"$f":"'Population 2016'!T104/'Population 2016'!T$6","v":3.2838009827802737E-2},{"$f":"'Population 2016'!U104/'Population 2016'!U$6","v":2.7614138438880706E-2},{"$f":"'Population 2016'!V104/'Population 2016'!V$6","v":2.6601385746606334E-2},{"$f":"'Population 2016'!W104/'Population 2016'!W$6","v":1.9655958549222797E-2},{"$f":"'Population 2016'!X104/'Population 2016'!X$6","v":1.9655958549222797E-2},{"$f":"'Population 2016'!Y104/'Population 2016'!Y$6","v":2.370318092453496E-2},{"$f":"'Population 2016'!Z104/'Population 2016'!Z$6","v":1.500223301767274E-2},{"$f":"'Population 2016'!AA104/'Population 2016'!AA$6","v":1.7404400782416868E-2},{"$f":"'Population 2016'!AB104/'Population 2016'!AB$6","v":3.6739637538130268E-2},{"$f":"'Population 2016'!AC104/'Population 2016'!AC$6","v":1.5550532421906915E-2},{"$f":"'Population 2016'!AD104/'Population 2016'!AD$6","v":2.5416833104019647E-2},{"$f":"'Population 2016'!AE104/'Population 2016'!AE$6","v":2.7389546926217145E-2},{"$f":"'Population 2016'!AF104/'Population 2016'!AF$6","v":1.0482354242725965E-2},{"$f":"'Population 2016'!AG104/'Population 2016'!AG$6","v":2.7389546926217145E-2},{"$f":"'Population 2016'!AH104/'Population 2016'!AH$6","v":2.0736384645775281E-2},{"$f":"'Population 2016'!AI104/'Population 2016'!AI$6","v":3.1832658818014788E-2},{"$f":"'Population 2016'!AJ104/'Population 2016'!AJ$6","v":3.2521322942872924E-2},{"$f":"'Population 2016'!AK104/'Population 2016'!AK$6","v":4.1804440245630611E-2},{"$f":"'Population 2016'!AL104/'Population 2016'!AL$6","v":1.1636169834784153E-2},{"$f":"'Population 2016'!AM104/'Population 2016'!AM$6","v":1.9533918984870668E-2},{"$f":"'Population 2016'!AN104/'Population 2016'!AN$6","v":2.3836985774702037E-2},{"$f":"'Population 2016'!AO104/'Population 2016'!AO$6","v":2.3836985774702037E-2},{"$f":"'Population 2016'!AP104/'Population 2016'!AP$6","v":3.3306138119690937E-2},{"$f":"'Population 2016'!AQ104/'Population 2016'!AQ$6","v":1.5176271435931405E-2},{"$f":"'Population 2016'!AR104/'Population 2016'!AR$6","v":2.1535484206444931E-2},{"$f":"'Population 2016'!AS104/'Population 2016'!AS$6","v":2.3016412547343885E-2},{"$f":"'Population 2016'!AT104/'Population 2016'!AT$6","v":2.5437201907790145E-2},{"$f":"'Population 2016'!AU104/'Population 2016'!AU$6","v":2.5437201907790145E-2},{"$f":"'Population 2016'!AV104/'Population 2016'!AV$6","v":1.9158822828547598E-2},{"$f":"'Population 2016'!AW104/'Population 2016'!AW$6","v":2.2350715403074553E-2},{"$f":"'Population 2016'!AX104/'Population 2016'!AX$6","v":2.0531121101172545E-2},{"$f":"'Population 2016'!AY104/'Population 2016'!AY$6","v":2.0969399381710142E-2},{"$f":"'Population 2016'!AZ104/'Population 2016'!AZ$6","v":2.2384593397170215E-2},{"$f":"'Population 2016'!BA104/'Population 2016'!BA$6","v":1.7612017612017611E-2},{"$f":"'Population 2016'!BB104/'Population 2016'!BB$6","v":2.7496921381813467E-2},{"$f":"'Population 2016'!BC104/'Population 2016'!BC$6","v":2.7614138438880706E-2},102]
[null,"Female 35-39",{"$f":"'Population 2016'!C105/'Population 2016'!C$6","v":2.8508929211790861E-2},{"$f":"'Population 2016'!D105/'Population 2016'!D$6","v":2.8862500980828081E-2},{"$f":"'Population 2016'!E105/'Population 2016'!E$6","v":2.9815405431526047E-2},{"$f":"'Population 2016'!F105/'Population 2016'!F$6","v":2.4495801956201851E-2},{"$f":"'Population 2016'!G105/'Population 2016'!G$6","v":2.0877644688234637E-2},{"$f":"'Population 2016'!H105/'Population 2016'!H$6","v":1.5347281432412934E-2},{"$f":"'Population 2016'!I105/'Population 2016'!I$6","v":2.2093813732154997E-2},{"$f":"'Population 2016'!J105/'Population 2016'!J$6","v":1.9901898659907533E-2},{"$f":"'Population 2016'!K105/'Population 2016'!K$6","v":1.9351464435146442E-2},{"$f":"'Population 2016'!L105/'Population 2016'!L$6","v":2.3799946366318048E-2},{"$f":"'Population 2016'!M105/'Population 2016'!M$6","v":2.3799946366318048E-2},{"$f":"'Population 2016'!N105/'Population 2016'!N$6","v":1.2674793042097369E-2},{"$f":"'Population 2016'!O105/'Population 2016'!O$6","v":1.6493711772386777E-2},{"$f":"'Population 2016'!P105/'Population 2016'!P$6","v":3.0554527673521171E-2},{"$f":"'Population 2016'!Q105/'Population 2016'!Q$6","v":3.4598214285714288E-2},{"$f":"'Population 2016'!R105/'Population 2016'!R$6","v":2.2963974731091002E-2},{"$f":"'Population 2016'!S105/'Population 2016'!S$6","v":2.2895863803280757E-2},{"$f":"'Population 2016'!T105/'Population 2016'!T$6","v":2.2184199657796919E-2},{"$f":"'Population 2016'!U105/'Population 2016'!U$6","v":2.8166421207658322E-2},{"$f":"'Population 2016'!V105/'Population 2016'!V$6","v":2.5929722850678735E-2},{"$f":"'Population 2016'!W105/'Population 2016'!W$6","v":1.8528497409326425E-2},{"$f":"'Population 2016'!X105/'Population 2016'!X$6","v":1.8528497409326425E-2},{"$f":"'Population 2016'!Y105/'Population 2016'!Y$6","v":2.3340222815949992E-2},{"$f":"'Population 2016'!Z105/'Population 2016'!Z$6","v":1.1201545795091007E-2},{"$f":"'Population 2016'!AA105/'Population 2016'!AA$6","v":1.483717355031028E-2},{"$f":"'Population 2016'!AB105/'Population 2016'!AB$6","v":2.9674322626951372E-2},{"$f":"'Population 2016'!AC105/'Population 2016'!AC$6","v":1.2731828208829217E-2},{"$f":"'Population 2016'!AD105/'Population 2016'!AD$6","v":2.4040950986048852E-2},{"$f":"'Population 2016'!AE105/'Population 2016'!AE$6","v":2.5177468980634263E-2},{"$f":"'Population 2016'!AF105/'Population 2016'!AF$6","v":6.8591658369288634E-3},{"$f":"'Population 2016'!AG105/'Population 2016'!AG$6","v":2.5177468980634263E-2},{"$f":"'Population 2016'!AH105/'Population 2016'!AH$6","v":1.8621140553599588E-2},{"$f":"'Population 2016'!AI105/'Population 2016'!AI$6","v":2.516981463733118E-2},{"$f":"'Population 2016'!AJ105/'Population 2016'!AJ$6","v":3.1447505675891267E-2},{"$f":"'Population 2016'!AK105/'Population 2016'!AK$6","v":3.4561486380097622E-2},{"$f":"'Population 2016'!AL105/'Population 2016'!AL$6","v":1.139930123763842E-2},{"$f":"'Population 2016'!AM105/'Population 2016'!AM$6","v":1.796608101512933E-2},{"$f":"'Population 2016'!AN105/'Population 2016'!AN$6","v":2.7297193387158785E-2},{"$f":"'Population 2016'!AO105/'Population 2016'!AO$6","v":2.7297193387158785E-2},{"$f":"'Population 2016'!AP105/'Population 2016'!AP$6","v":2.5339540240917599E-2},{"$f":"'Population 2016'!AQ105/'Population 2016'!AQ$6","v":1.40722749687201E-2},{"$f":"'Population 2016'!AR105/'Population 2016'!AR$6","v":1.8659715384797989E-2},{"$f":"'Population 2016'!AS105/'Population 2016'!AS$6","v":2.2093813732154997E-2},{"$f":"'Population 2016'!AT105/'Population 2016'!AT$6","v":5.4054054054054057E-2},{"$f":"'Population 2016'!AU105/'Population 2016'!AU$6","v":5.4054054054054057E-2},{"$f":"'Population 2016'!AV105/'Population 2016'!AV$6","v":2.0111998093649469E-2},{"$f":"'Population 2016'!AW105/'Population 2016'!AW$6","v":1.9500569210231043E-2},{"$f":"'Population 2016'!AX105/'Population 2016'!AX$6","v":2.0438429809519397E-2},{"$f":"'Population 2016'!AY105/'Population 2016'!AY$6","v":1.8019838591090263E-2},{"$f":"'Population 2016'!AZ105/'Population 2016'!AZ$6","v":1.7471773617264541E-2},{"$f":"'Population 2016'!BA105/'Population 2016'!BA$6","v":1.607793915486223E-2},{"$f":"'Population 2016'!BB105/'Population 2016'!BB$6","v":2.362434376822866E-2},{"$f":"'Population 2016'!BC105/'Population 2016'!BC$6","v":2.8166421207658322E-2},103]
[null,"Female 40-44",{"$f":"'Population 2016'!C106/'Population 2016'!C$6","v":2.5693896578928496E-2},{"$f":"'Population 2016'!D106/'Population 2016'!D$6","v":2.6730834619307926E-2},{"$f":"'Population 2016'!E106/'Population 2016'!E$6","v":2.9525466318739733E-2},{"$f":"'Population 2016'!F106/'Population 2016'!F$6","v":2.709253007876742E-2},{"$f":"'Population 2016'!G106/'Population 2016'!G$6","v":2.4571812381058995E-2},{"$f":"'Population 2016'!H106/'Population 2016'!H$6","v":1.6790188233750902E-2},{"$f":"'Population 2016'!I106/'Population 2016'!I$6","v":2.398756919491114E-2},{"$f":"'Population 2016'!J106/'Population 2016'!J$6","v":2.1239644206623012E-2},{"$f":"'Population 2016'!K106/'Population 2016'!K$6","v":2.1966527196652718E-2},{"$f":"'Population 2016'!L106/'Population 2016'!L$6","v":2.6749798873692679E-2},{"$f":"'Population 2016'!M106/'Population 2016'!M$6","v":2.6749798873692679E-2},{"$f":"'Population 2016'!N106/'Population 2016'!N$6","v":1.1277919098942787E-2},{"$f":"'Population 2016'!O106/'Population 2016'!O$6","v":1.7610473506975467E-2},{"$f":"'Population 2016'!P106/'Population 2016'!P$6","v":2.9074377544008035E-2},{"$f":"'Population 2016'!Q106/'Population 2016'!Q$6","v":3.3597598522167489E-2},{"$f":"'Population 2016'!R106/'Population 2016'!R$6","v":2.2707870923681064E-2},{"$f":"'Population 2016'!S106/'Population 2016'!S$6","v":2.2772230347541535E-2},{"$f":"'Population 2016'!T106/'Population 2016'!T$6","v":1.9554461704441053E-2},{"$f":"'Population 2016'!U106/'Population 2016'!U$6","v":3.6818851251840944E-2},{"$f":"'Population 2016'!V106/'Population 2016'!V$6","v":2.7131645927601811E-2},{"$f":"'Population 2016'!W106/'Population 2016'!W$6","v":1.9813471502590673E-2},{"$f":"'Population 2016'!X106/'Population 2016'!X$6","v":1.9813471502590673E-2},{"$f":"'Population 2016'!Y106/'Population 2016'!Y$6","v":2.4600494026314462E-2},{"$f":"'Population 2016'!Z106/'Population 2016'!Z$6","v":9.8252777600554148E-3},{"$f":"'Population 2016'!AA106/'Population 2016'!AA$6","v":1.4814675940681303E-2},{"$f":"'Population 2016'!AB106/'Population 2016'!AB$6","v":2.8048178718822897E-2},{"$f":"'Population 2016'!AC106/'Population 2016'!AC$6","v":1.2233837678430396E-2},{"$f":"'Population 2016'!AD106/'Population 2016'!AD$6","v":2.6718743065110292E-2},{"$f":"'Population 2016'!AE106/'Population 2016'!AE$6","v":2.749009592374364E-2},{"$f":"'Population 2016'!AF106/'Population 2016'!AF$6","v":8.0484566876866913E-3},{"$f":"'Population 2016'!AG106/'Population 2016'!AG$6","v":2.749009592374364E-2},{"$f":"'Population 2016'!AH106/'Population 2016'!AH$6","v":1.9453253105562916E-2},{"$f":"'Population 2016'!AI106/'Population 2016'!AI$6","v":2.4161180562240255E-2},{"$f":"'Population 2016'!AJ106/'Population 2016'!AJ$6","v":2.979075903540529E-2},{"$f":"'Population 2016'!AK106/'Population 2016'!AK$6","v":3.5978586049441035E-2},{"$f":"'Population 2016'!AL106/'Population 2016'!AL$6","v":1.3560727186593237E-2},{"$f":"'Population 2016'!AM106/'Population 2016'!AM$6","v":1.8704245973645679E-2},{"$f":"'Population 2016'!AN106/'Population 2016'!AN$6","v":4.0369088811995385E-2},{"$f":"'Population 2016'!AO106/'Population 2016'!AO$6","v":4.0369088811995385E-2},{"$f":"'Population 2016'!AP106/'Population 2016'!AP$6","v":2.2076114603829727E-2},{"$f":"'Population 2016'!AQ106/'Population 2016'!AQ$6","v":1.6368587620519615E-2},{"$f":"'Population 2016'!AR106/'Population 2016'!AR$6","v":1.8901623611147222E-2},{"$f":"'Population 2016'!AS106/'Population 2016'!AS$6","v":2.398756919491114E-2},{"$f":"'Population 2016'!AT106/'Population 2016'!AT$6","v":2.2257551669316374E-2},{"$f":"'Population 2016'!AU106/'Population 2016'!AU$6","v":2.2257551669316374E-2},{"$f":"'Population 2016'!AV106/'Population 2016'!AV$6","v":2.0850708924103418E-2},{"$f":"'Population 2016'!AW106/'Population 2016'!AW$6","v":2.045880801644567E-2},{"$f":"'Population 2016'!AX106/'Population 2016'!AX$6","v":2.0531121101172545E-2},{"$f":"'Population 2016'!AY106/'Population 2016'!AY$6","v":1.8243420458600806E-2},{"$f":"'Population 2016'!AZ106/'Population 2016'!AZ$6","v":1.6551736458482208E-2},{"$f":"'Population 2016'!BA106/'Population 2016'!BA$6","v":1.665570896340127E-2},{"$f":"'Population 2016'!BB106/'Population 2016'!BB$6","v":2.6071035063840821E-2},{"$f":"'Population 2016'!BC106/'Population 2016'!BC$6","v":3.6818851251840944E-2},104]
[null,"Female 45-49",{"$f":"'Population 2016'!C107/'Population 2016'!C$6","v":2.6859355949221831E-2},{"$f":"'Population 2016'!D107/'Population 2016'!D$6","v":2.8561713702822171E-2},{"$f":"'Population 2016'!E107/'Population 2016'!E$6","v":3.3149705228568666E-2},{"$f":"'Population 2016'!F107/'Population 2016'!F$6","v":2.8780403358435038E-2},{"$f":"'Population 2016'!G107/'Population 2016'!G$6","v":2.9105563640434345E-2},{"$f":"'Population 2016'!H107/'Population 2016'!H$6","v":2.1387217753716083E-2},{"$f":"'Population 2016'!I107/'Population 2016'!I$6","v":3.2242400699232787E-2},{"$f":"'Population 2016'!J107/'Population 2016'!J$6","v":2.4407988922528105E-2},{"$f":"'Population 2016'!K107/'Population 2016'!K$6","v":2.5912894636744011E-2},{"$f":"'Population 2016'!L107/'Population 2016'!L$6","v":3.4995977473853579E-2},{"$f":"'Population 2016'!M107/'Population 2016'!M$6","v":3.4995977473853579E-2},{"$f":"'Population 2016'!N107/'Population 2016'!N$6","v":1.1748445058742226E-2},{"$f":"'Population 2016'!O107/'Population 2016'!O$6","v":2.2816301285135041E-2},{"$f":"'Population 2016'!P107/'Population 2016'!P$6","v":3.9858328487603741E-2},{"$f":"'Population 2016'!Q107/'Population 2016'!Q$6","v":4.2102832512315273E-2},{"$f":"'Population 2016'!R107/'Population 2016'!R$6","v":3.2866655284275223E-2},{"$f":"'Population 2016'!S107/'Population 2016'!S$6","v":2.5563189848378035E-2},{"$f":"'Population 2016'!T107/'Population 2016'!T$6","v":1.8290164611481502E-2},{"$f":"'Population 2016'!U107/'Population 2016'!U$6","v":4.2893961708394698E-2},{"$f":"'Population 2016'!V107/'Population 2016'!V$6","v":3.1073246606334842E-2},{"$f":"'Population 2016'!W107/'Population 2016'!W$6","v":2.267357512953368E-2},{"$f":"'Population 2016'!X107/'Population 2016'!X$6","v":2.267357512953368E-2},{"$f":"'Population 2016'!Y107/'Population 2016'!Y$6","v":2.8209910772798306E-2},{"$f":"'Population 2016'!Z107/'Population 2016'!Z$6","v":1.1073944785220157E-2},{"$f":"'Population 2016'!AA107/'Population 2016'!AA$6","v":1.7819356693351333E-2},{"$f":"'Population 2016'!AB107/'Population 2016'!AB$6","v":3.0414498474789161E-2},{"$f":"'Population 2016'!AC107/'Population 2016'!AC$6","v":1.4556496636618644E-2},{"$f":"'Population 2016'!AD107/'Population 2016'!AD$6","v":3.1571316556448153E-2},{"$f":"'Population 2016'!AE107/'Population 2016'!AE$6","v":3.2457216401552476E-2},{"$f":"'Population 2016'!AF107/'Population 2016'!AF$6","v":1.1063170704723974E-2},{"$f":"'Population 2016'!AG107/'Population 2016'!AG$6","v":3.2457216401552476E-2},{"$f":"'Population 2016'!AH107/'Population 2016'!AH$6","v":2.3683741289914306E-2},{"$f":"'Population 2016'!AI107/'Population 2016'!AI$6","v":2.6446301744811395E-2},{"$f":"'Population 2016'!AJ107/'Population 2016'!AJ$6","v":3.7307479904276859E-2},{"$f":"'Population 2016'!AK107/'Population 2016'!AK$6","v":4.1568256967406708E-2},{"$f":"'Population 2016'!AL107/'Population 2016'!AL$6","v":1.6876887546633506E-2},{"$f":"'Population 2016'!AM107/'Population 2016'!AM$6","v":2.2010736944851148E-2},{"$f":"'Population 2016'!AN107/'Population 2016'!AN$6","v":3.6524413687043442E-2},{"$f":"'Population 2016'!AO107/'Population 2016'!AO$6","v":3.6524413687043442E-2},{"$f":"'Population 2016'!AP107/'Population 2016'!AP$6","v":2.7979075682679849E-2},{"$f":"'Population 2016'!AQ107/'Population 2016'!AQ$6","v":1.8650180319422976E-2},{"$f":"'Population 2016'!AR107/'Population 2016'!AR$6","v":2.2139124360045351E-2},{"$f":"'Population 2016'!AS107/'Population 2016'!AS$6","v":3.2242400699232787E-2},{"$f":"'Population 2016'!AT107/'Population 2016'!AT$6","v":3.6565977742448331E-2},{"$f":"'Population 2016'!AU107/'Population 2016'!AU$6","v":3.6565977742448331E-2},{"$f":"'Population 2016'!AV107/'Population 2016'!AV$6","v":2.6665078041224831E-2},{"$f":"'Population 2016'!AW107/'Population 2016'!AW$6","v":2.5929778294662528E-2},{"$f":"'Population 2016'!AX107/'Population 2016'!AX$6","v":2.2941094684154423E-2},{"$f":"'Population 2016'!AY107/'Population 2016'!AY$6","v":2.0560932508373569E-2},{"$f":"'Population 2016'!AZ107/'Population 2016'!AZ$6","v":1.8284621980848934E-2},{"$f":"'Population 2016'!BA107/'Population 2016'!BA$6","v":2.0560635945251329E-2},{"$f":"'Population 2016'!BB107/'Population 2016'!BB$6","v":2.9797783394905696E-2},{"$f":"'Population 2016'!BC107/'Population 2016'!BC$6","v":4.2893961708394698E-2},105]
[null,"Female 50-54",{"$f":"'Population 2016'!C108/'Population 2016'!C$6","v":2.8006885175356811E-2},{"$f":"'Population 2016'!D108/'Population 2016'!D$6","v":3.0013339261894176E-2},{"$f":"'Population 2016'!E108/'Population 2016'!E$6","v":3.5420894945394799E-2},{"$f":"'Population 2016'!F108/'Population 2016'!F$6","v":2.6832857266510864E-2},{"$f":"'Population 2016'!G108/'Population 2016'!G$6","v":3.2295981193328112E-2},{"$f":"'Population 2016'!H108/'Population 2016'!H$6","v":2.2096746304787231E-2},{"$f":"'Population 2016'!I108/'Population 2016'!I$6","v":3.4621734485772555E-2},{"$f":"'Population 2016'!J108/'Population 2016'!J$6","v":2.5581449928418879E-2},{"$f":"'Population 2016'!K108/'Population 2016'!K$6","v":2.6721186763027767E-2},{"$f":"'Population 2016'!L108/'Population 2016'!L$6","v":3.787878787878788E-2},{"$f":"'Population 2016'!M108/'Population 2016'!M$6","v":3.787878787878788E-2},{"$f":"'Population 2016'!N108/'Population 2016'!N$6","v":1.4012851240277022E-2},{"$f":"'Population 2016'!O108/'Population 2016'!O$6","v":2.1544911002680227E-2},{"$f":"'Population 2016'!P108/'Population 2016'!P$6","v":3.9118253422847173E-2},{"$f":"'Population 2016'!Q108/'Population 2016'!Q$6","v":4.2795566502463057E-2},{"$f":"'Population 2016'!R108/'Population 2016'!R$6","v":3.0988560696602357E-2},{"$f":"'Population 2016'!S108/'Population 2016'!S$6","v":2.5781521270215386E-2},{"$f":"'Population 2016'!T108/'Population 2016'!T$6","v":1.7363013409977833E-2},{"$f":"'Population 2016'!U108/'Population 2016'!U$6","v":4.9705449189985269E-2},{"$f":"'Population 2016'!V108/'Population 2016'!V$6","v":3.0967194570135748E-2},{"$f":"'Population 2016'!W108/'Population 2016'!W$6","v":2.4431088082901554E-2},{"$f":"'Population 2016'!X108/'Population 2016'!X$6","v":2.4431088082901554E-2},{"$f":"'Population 2016'!Y108/'Population 2016'!Y$6","v":2.8653526238846601E-2},{"$f":"'Population 2016'!Z108/'Population 2016'!Z$6","v":1.1347375520657692E-2},{"$f":"'Population 2016'!AA108/'Population 2016'!AA$6","v":1.848303617740615E-2},{"$f":"'Population 2016'!AB108/'Population 2016'!AB$6","v":3.1491117889825948E-2},{"$f":"'Population 2016'!AC108/'Population 2016'!AC$6","v":1.5029198585395649E-2},{"$f":"'Population 2016'!AD108/'Population 2016'!AD$6","v":3.4485819537526073E-2},{"$f":"'Population 2016'!AE108/'Population 2016'!AE$6","v":3.5272588332294325E-2},{"$f":"'Population 2016'!AF108/'Population 2016'!AF$6","v":1.3275804845668768E-2},{"$f":"'Population 2016'!AG108/'Population 2016'!AG$6","v":3.5272588332294325E-2},{"$f":"'Population 2016'!AH108/'Population 2016'!AH$6","v":2.4690667403214472E-2},{"$f":"'Population 2016'!AI108/'Population 2016'!AI$6","v":2.5701335498478677E-2},{"$f":"'Population 2016'!AJ108/'Population 2016'!AJ$6","v":3.7031355464195864E-2},{"$f":"'Population 2016'!AK108/'Population 2016'!AK$6","v":4.0387340576287199E-2},{"$f":"'Population 2016'!AL108/'Population 2016'!AL$6","v":1.7602297625392314E-2},{"$f":"'Population 2016'!AM108/'Population 2016'!AM$6","v":2.2712298682284041E-2},{"$f":"'Population 2016'!AN108/'Population 2016'!AN$6","v":4.690503652441369E-2},{"$f":"'Population 2016'!AO108/'Population 2016'!AO$6","v":4.690503652441369E-2},{"$f":"'Population 2016'!AP108/'Population 2016'!AP$6","v":2.6971253059461534E-2},{"$f":"'Population 2016'!AQ108/'Population 2016'!AQ$6","v":1.9356738058438214E-2},{"$f":"'Population 2016'!AR108/'Population 2016'!AR$6","v":2.2901022231818165E-2},{"$f":"'Population 2016'!AS108/'Population 2016'!AS$6","v":3.4621734485772555E-2},{"$f":"'Population 2016'!AT108/'Population 2016'!AT$6","v":3.1796502384737677E-2},{"$f":"'Population 2016'!AU108/'Population 2016'!AU$6","v":3.1796502384737677E-2},{"$f":"'Population 2016'!AV108/'Population 2016'!AV$6","v":3.0096508995591565E-2},{"$f":"'Population 2016'!AW108/'Population 2016'!AW$6","v":2.7346661315817491E-2},{"$f":"'Population 2016'!AX108/'Population 2016'!AX$6","v":2.4470500996431385E-2},{"$f":"'Population 2016'!AY108/'Population 2016'!AY$6","v":2.1850827897857483E-2},{"$f":"'Population 2016'!AZ108/'Population 2016'!AZ$6","v":1.9070673145633842E-2},{"$f":"'Population 2016'!BA108/'Population 2016'!BA$6","v":2.1775944852867931E-2},{"$f":"'Population 2016'!BB108/'Population 2016'!BB$6","v":2.855013286667963E-2},{"$f":"'Population 2016'!BC108/'Population 2016'!BC$6","v":4.9705449189985269E-2},106]
[null,"Female 55-59",{"$f":"'Population 2016'!C109/'Population 2016'!C$6","v":2.4922900380119056E-2},{"$f":"'Population 2016'!D109/'Population 2016'!D$6","v":2.6730834619307926E-2},{"$f":"'Population 2016'!E109/'Population 2016'!E$6","v":3.1603363293708324E-2},{"$f":"'Population 2016'!F109/'Population 2016'!F$6","v":2.9040076170691594E-2},{"$f":"'Population 2016'!G109/'Population 2016'!G$6","v":3.2855703571028773E-2},{"$f":"'Population 2016'!H109/'Population 2016'!H$6","v":2.0773087999427606E-2},{"$f":"'Population 2016'!I109/'Population 2016'!I$6","v":3.3650577838205305E-2},{"$f":"'Population 2016'!J109/'Population 2016'!J$6","v":2.1967190030275294E-2},{"$f":"'Population 2016'!K109/'Population 2016'!K$6","v":2.2394446557626475E-2},{"$f":"'Population 2016'!L109/'Population 2016'!L$6","v":3.5353535353535352E-2},{"$f":"'Population 2016'!M109/'Population 2016'!M$6","v":3.5353535353535352E-2},{"$f":"'Population 2016'!N109/'Population 2016'!N$6","v":1.3233542619359202E-2},{"$f":"'Population 2016'!O109/'Population 2016'!O$6","v":2.0410968318328636E-2},{"$f":"'Population 2016'!P109/'Population 2016'!P$6","v":3.700375323782841E-2},{"$f":"'Population 2016'!Q109/'Population 2016'!Q$6","v":4.0524938423645324E-2},{"$f":"'Population 2016'!R109/'Population 2016'!R$6","v":2.4585965511353936E-2},{"$f":"'Population 2016'!S109/'Population 2016'!S$6","v":2.3879670451077979E-2},{"$f":"'Population 2016'!T109/'Population 2016'!T$6","v":1.57699990728488E-2},{"$f":"'Population 2016'!U109/'Population 2016'!U$6","v":4.252577319587629E-2},{"$f":"'Population 2016'!V109/'Population 2016'!V$6","v":2.7043269230769232E-2},{"$f":"'Population 2016'!W109/'Population 2016'!W$6","v":2.205181347150259E-2},{"$f":"'Population 2016'!X109/'Population 2016'!X$6","v":2.205181347150259E-2},{"$f":"'Population 2016'!Y109/'Population 2016'!Y$6","v":2.4862630438070271E-2},{"$f":"'Population 2016'!Z109/'Population 2016'!Z$6","v":1.0156432761863097E-2},{"$f":"'Population 2016'!AA109/'Population 2016'!AA$6","v":1.6771967978402295E-2},{"$f":"'Population 2016'!AB109/'Population 2016'!AB$6","v":2.8631347568634488E-2},{"$f":"'Population 2016'!AC109/'Population 2016'!AC$6","v":1.3496321484011781E-2},{"$f":"'Population 2016'!AD109/'Population 2016'!AD$6","v":3.3420620478451908E-2},{"$f":"'Population 2016'!AE109/'Population 2016'!AE$6","v":3.3623584772859816E-2},{"$f":"'Population 2016'!AF109/'Population 2016'!AF$6","v":1.2114171921672752E-2},{"$f":"'Population 2016'!AG109/'Population 2016'!AG$6","v":3.3623584772859816E-2},{"$f":"'Population 2016'!AH109/'Population 2016'!AH$6","v":2.2659333820480458E-2},{"$f":"'Population 2016'!AI109/'Population 2016'!AI$6","v":2.3960290787948289E-2},{"$f":"'Population 2016'!AJ109/'Population 2016'!AJ$6","v":3.629502362397987E-2},{"$f":"'Population 2016'!AK109/'Population 2016'!AK$6","v":4.0072429538655328E-2},{"$f":"'Population 2016'!AL109/'Population 2016'!AL$6","v":1.5692544560904839E-2},{"$f":"'Population 2016'!AM109/'Population 2016'!AM$6","v":2.0552708638360177E-2},{"$f":"'Population 2016'!AN109/'Population 2016'!AN$6","v":4.1906958861976165E-2},{"$f":"'Population 2016'!AO109/'Population 2016'!AO$6","v":4.1906958861976165E-2},{"$f":"'Population 2016'!AP109/'Population 2016'!AP$6","v":2.4427700724672458E-2},{"$f":"'Population 2016'!AQ109/'Population 2016'!AQ$6","v":1.7060425406638699E-2},{"$f":"'Population 2016'!AR109/'Population 2016'!AR$6","v":2.1068058731700038E-2},{"$f":"'Population 2016'!AS109/'Population 2016'!AS$6","v":3.3650577838205305E-2},{"$f":"'Population 2016'!AT109/'Population 2016'!AT$6","v":2.2257551669316374E-2},{"$f":"'Population 2016'!AU109/'Population 2016'!AU$6","v":2.2257551669316374E-2},{"$f":"'Population 2016'!AV109/'Population 2016'!AV$6","v":2.9453115691647803E-2},{"$f":"'Population 2016'!AW109/'Population 2016'!AW$6","v":2.5487514230255776E-2},{"$f":"'Population 2016'!AX109/'Population 2016'!AX$6","v":2.1550725309357185E-2},{"$f":"'Population 2016'!AY109/'Population 2016'!AY$6","v":2.0380347153845822E-2},{"$f":"'Population 2016'!AZ109/'Population 2016'!AZ$6","v":1.8579391167643275E-2},{"$f":"'Population 2016'!BA109/'Population 2016'!BA$6","v":2.0122327814635507E-2},{"$f":"'Population 2016'!BB109/'Population 2016'!BB$6","v":2.6216864346360749E-2},{"$f":"'Population 2016'!BC109/'Population 2016'!BC$6","v":4.252577319587629E-2},107]
[null,"Female 60-64",{"$f":"'Population 2016'!C110/'Population 2016'!C$6","v":2.2269239044681918E-2},{"$f":"'Population 2016'!D110/'Population 2016'!D$6","v":2.4219914733345539E-2},{"$f":"'Population 2016'!E110/'Population 2016'!E$6","v":2.9477143133275346E-2},{"$f":"'Population 2016'!F110/'Population 2016'!F$6","v":2.4365965550073573E-2},{"$f":"'Population 2016'!G110/'Population 2016'!G$6","v":2.9441397067054741E-2},{"$f":"'Population 2016'!H110/'Population 2016'!H$6","v":1.8280794433480206E-2},{"$f":"'Population 2016'!I110/'Population 2016'!I$6","v":3.0542876565990095E-2},{"$f":"'Population 2016'!J110/'Population 2016'!J$6","v":1.8681499213781125E-2},{"$f":"'Population 2016'!K110/'Population 2016'!K$6","v":1.9874476987447699E-2},{"$f":"'Population 2016'!L110/'Population 2016'!L$6","v":3.4772503799052473E-2},{"$f":"'Population 2016'!M110/'Population 2016'!M$6","v":3.4772503799052473E-2},{"$f":"'Population 2016'!N110/'Population 2016'!N$6","v":1.1395550588892647E-2},{"$f":"'Population 2016'!O110/'Population 2016'!O$6","v":1.7868187753419008E-2},{"$f":"'Population 2016'!P110/'Population 2016'!P$6","v":2.7911402442247712E-2},{"$f":"'Population 2016'!Q110/'Population 2016'!Q$6","v":3.3943965517241381E-2},{"$f":"'Population 2016'!R110/'Population 2016'!R$6","v":2.142735188663138E-2},{"$f":"'Population 2016'!S110/'Population 2016'!S$6","v":2.0523153652710992E-2},{"$f":"'Population 2016'!T110/'Population 2016'!T$6","v":1.2946402231905801E-2},{"$f":"'Population 2016'!U110/'Population 2016'!U$6","v":4.5655375552282766E-2},{"$f":"'Population 2016'!V110/'Population 2016'!V$6","v":2.5205033936651584E-2},{"$f":"'Population 2016'!W110/'Population 2016'!W$6","v":2.010362694300518E-2},{"$f":"'Population 2016'!X110/'Population 2016'!X$6","v":2.010362694300518E-2},{"$f":"'Population 2016'!Y110/'Population 2016'!Y$6","v":2.2402581035438827E-2},{"$f":"'Population 2016'!Z110/'Population 2016'!Z$6","v":7.9902537133412933E-3},{"$f":"'Population 2016'!AA110/'Population 2016'!AA$6","v":1.4247236231150441E-2},{"$f":"'Population 2016'!AB110/'Population 2016'!AB$6","v":2.6242598241521621E-2},{"$f":"'Population 2016'!AC110/'Population 2016'!AC$6","v":1.0763209393346379E-2},{"$f":"'Population 2016'!AD110/'Population 2016'!AD$6","v":3.0195434438477359E-2},{"$f":"'Population 2016'!AE110/'Population 2016'!AE$6","v":3.0466346250527881E-2},{"$f":"'Population 2016'!AF110/'Population 2016'!AF$6","v":8.7952207102555587E-3},{"$f":"'Population 2016'!AG110/'Population 2016'!AG$6","v":3.0466346250527881E-2},{"$f":"'Population 2016'!AH110/'Population 2016'!AH$6","v":2.0509127016037396E-2},{"$f":"'Population 2016'!AI110/'Population 2016'!AI$6","v":1.987134684038052E-2},{"$f":"'Population 2016'!AJ110/'Population 2016'!AJ$6","v":2.9729398048720622E-2},{"$f":"'Population 2016'!AK110/'Population 2016'!AK$6","v":3.841914659108802E-2},{"$f":"'Population 2016'!AL110/'Population 2016'!AL$6","v":1.3664357197844496E-2},{"$f":"'Population 2016'!AM110/'Population 2016'!AM$6","v":1.8661542215714984E-2},{"$f":"'Population 2016'!AN110/'Population 2016'!AN$6","v":3.9984621299500193E-2},{"$f":"'Population 2016'!AO110/'Population 2016'!AO$6","v":3.9984621299500193E-2},{"$f":"'Population 2016'!AP110/'Population 2016'!AP$6","v":2.3899793636320006E-2},{"$f":"'Population 2016'!AQ110/'Population 2016'!AQ$6","v":1.3851475675277839E-2},{"$f":"'Population 2016'!AR110/'Population 2016'!AR$6","v":1.8450589114355896E-2},{"$f":"'Population 2016'!AS110/'Population 2016'!AS$6","v":3.0542876565990095E-2},{"$f":"'Population 2016'!AT110/'Population 2016'!AT$6","v":4.7694753577106522E-2},{"$f":"'Population 2016'!AU110/'Population 2016'!AU$6","v":4.7694753577106522E-2},{"$f":"'Population 2016'!AV110/'Population 2016'!AV$6","v":2.6283807935184082E-2},{"$f":"'Population 2016'!AW110/'Population 2016'!AW$6","v":2.2989541273884306E-2},{"$f":"'Population 2016'!AX110/'Population 2016'!AX$6","v":1.7518654122445198E-2},{"$f":"'Population 2016'!AY110/'Population 2016'!AY$6","v":1.8320814181969843E-2},{"$f":"'Population 2016'!AZ110/'Population 2016'!AZ$6","v":1.6399885665285122E-2},{"$f":"'Population 2016'!BA110/'Population 2016'!BA$6","v":1.723347877194031E-2},{"$f":"'Population 2016'!BB110/'Population 2016'!BB$6","v":2.205262816773608E-2},{"$f":"'Population 2016'!BC110/'Population 2016'!BC$6","v":4.5655375552282766E-2},108]
[null,"Female 65-69",{"$f":"'Population 2016'!C111/'Population 2016'!C$6","v":2.1067919386071863E-2},{"$f":"'Population 2016'!D111/'Population 2016'!D$6","v":2.4141448486909214E-2},{"$f":"'Population 2016'!E111/'Population 2016'!E$6","v":3.2424857446602881E-2},{"$f":"'Population 2016'!F111/'Population 2016'!F$6","v":2.6010560027698432E-2},{"$f":"'Population 2016'!G111/'Population 2016'!G$6","v":3.2295981193328112E-2},{"$f":"'Population 2016'!H111/'Population 2016'!H$6","v":1.8817412665382758E-2},{"$f":"'Population 2016'!I111/'Population 2016'!I$6","v":3.3213557346800038E-2},{"$f":"'Population 2016'!J111/'Population 2016'!J$6","v":1.9362106597197774E-2},{"$f":"'Population 2016'!K111/'Population 2016'!K$6","v":2.1823887409661468E-2},{"$f":"'Population 2016'!L111/'Population 2016'!L$6","v":3.4392598551890585E-2},{"$f":"'Population 2016'!M111/'Population 2016'!M$6","v":3.4392598551890585E-2},{"$f":"'Population 2016'!N111/'Population 2016'!N$6","v":1.1748445058742226E-2},{"$f":"'Population 2016'!O111/'Population 2016'!O$6","v":1.7988454401759328E-2},{"$f":"'Population 2016'!P111/'Population 2016'!P$6","v":2.7647089919120366E-2},{"$f":"'Population 2016'!Q111/'Population 2016'!Q$6","v":3.3020320197044338E-2},{"$f":"'Population 2016'!R111/'Population 2016'!R$6","v":2.1085880143418133E-2},{"$f":"'Population 2016'!S111/'Population 2016'!S$6","v":2.1115015940824294E-2},{"$f":"'Population 2016'!T111/'Population 2016'!T$6","v":1.2701971460600288E-2},{"$f":"'Population 2016'!U111/'Population 2016'!U$6","v":4.3446244477172311E-2},{"$f":"'Population 2016'!V111/'Population 2016'!V$6","v":2.5116657239819005E-2},{"$f":"'Population 2016'!W111/'Population 2016'!W$6","v":2.070880829015544E-2},{"$f":"'Population 2016'!X111/'Population 2016'!X$6","v":2.070880829015544E-2},{"$f":"'Population 2016'!Y111/'Population 2016'!Y$6","v":2.2644553107828806E-2},{"$f":"'Population 2016'!Z111/'Population 2016'!Z$6","v":6.9542550379613002E-3},{"$f":"'Population 2016'!AA111/'Population 2016'!AA$6","v":1.3693545060837286E-2},{"$f":"'Population 2016'!AB111/'Population 2016'!AB$6","v":2.5782792033016328E-2},{"$f":"'Population 2016'!AC111/'Population 2016'!AC$6","v":1.0354701536378597E-2},{"$f":"'Population 2016'!AD111/'Population 2016'!AD$6","v":3.1319811223055639E-2},{"$f":"'Population 2016'!AE111/'Population 2016'!AE$6","v":3.0969091238160357E-2},{"$f":"'Population 2016'!AF111/'Population 2016'!AF$6","v":9.9568536342515765E-3},{"$f":"'Population 2016'!AG111/'Population 2016'!AG$6","v":3.0969091238160357E-2},{"$f":"'Population 2016'!AH111/'Population 2016'!AH$6","v":1.9694495820207748E-2},{"$f":"'Population 2016'!AI111/'Population 2016'!AI$6","v":2.0277311592595538E-2},{"$f":"'Population 2016'!AJ111/'Population 2016'!AJ$6","v":3.1938393569368596E-2},{"$f":"'Population 2016'!AK111/'Population 2016'!AK$6","v":3.5663675011809164E-2},{"$f":"'Population 2016'!AL111/'Population 2016'!AL$6","v":1.4448984425889738E-2},{"$f":"'Population 2016'!AM111/'Population 2016'!AM$6","v":1.7911176183504147E-2},{"$f":"'Population 2016'!AN111/'Population 2016'!AN$6","v":4.5751633986928102E-2},{"$f":"'Population 2016'!AO111/'Population 2016'!AO$6","v":4.5751633986928102E-2},{"$f":"'Population 2016'!AP111/'Population 2016'!AP$6","v":2.2076114603829727E-2},{"$f":"'Population 2016'!AQ111/'Population 2016'!AQ$6","v":1.5544270258335173E-2},{"$f":"'Population 2016'!AR111/'Population 2016'!AR$6","v":1.8414415921630779E-2},{"$f":"'Population 2016'!AS111/'Population 2016'!AS$6","v":3.3213557346800038E-2},{"$f":"'Population 2016'!AT111/'Population 2016'!AT$6","v":3.9745627980922099E-2},{"$f":"'Population 2016'!AU111/'Population 2016'!AU$6","v":3.9745627980922099E-2},{"$f":"'Population 2016'!AV111/'Population 2016'!AV$6","v":2.6998689384010486E-2},{"$f":"'Population 2016'!AW111/'Population 2016'!AW$6","v":2.208863299453722E-2},{"$f":"'Population 2016'!AX111/'Population 2016'!AX$6","v":1.69625063725263E-2},{"$f":"'Population 2016'!AY111/'Population 2016'!AY$6","v":1.8737880357902973E-2},{"$f":"'Population 2016'!AZ111/'Population 2016'!AZ$6","v":1.6614263255681005E-2},{"$f":"'Population 2016'!BA111/'Population 2016'!BA$6","v":1.6894786125555356E-2},{"$f":"'Population 2016'!BB111/'Population 2016'!BB$6","v":2.3316481949575474E-2},{"$f":"'Population 2016'!BC111/'Population 2016'!BC$6","v":4.3446244477172311E-2},109]
[null,"Female 70-74",{"$f":"'Population 2016'!C112/'Population 2016'!C$6","v":1.4523416768270818E-2},{"$f":"'Population 2016'!D112/'Population 2016'!D$6","v":1.7432584416603458E-2},{"$f":"'Population 2016'!E112/'Population 2016'!E$6","v":2.5273025997873781E-2},{"$f":"'Population 2016'!F112/'Population 2016'!F$6","v":2.0990218990738337E-2},{"$f":"'Population 2016'!G112/'Population 2016'!G$6","v":2.664278517855144E-2},{"$f":"'Population 2016'!H112/'Population 2016'!H$6","v":1.5156483838847582E-2},{"$f":"'Population 2016'!I112/'Population 2016'!I$6","v":2.6561134310964359E-2},{"$f":"'Population 2016'!J112/'Population 2016'!J$6","v":1.5771315919172007E-2},{"$f":"'Population 2016'!K112/'Population 2016'!K$6","v":1.6783948269303919E-2},{"$f":"'Population 2016'!L112/'Population 2016'!L$6","v":2.7978904085098774E-2},{"$f":"'Population 2016'!M112/'Population 2016'!M$6","v":2.7978904085098774E-2},{"$f":"'Population 2016'!N112/'Population 2016'!N$6","v":9.4399270684762306E-3},{"$f":"'Population 2016'!O112/'Population 2016'!O$6","v":1.467253109751907E-2},{"$f":"'Population 2016'!P112/'Population 2016'!P$6","v":2.4739652164719565E-2},{"$f":"'Population 2016'!Q112/'Population 2016'!Q$6","v":2.6708743842364532E-2},{"$f":"'Population 2016'!R112/'Population 2016'!R$6","v":1.2463718627283592E-2},{"$f":"'Population 2016'!S112/'Population 2016'!S$6","v":1.6451141110491483E-2},{"$f":"'Population 2016'!T112/'Population 2016'!T$6","v":9.5749433173469983E-3},{"$f":"'Population 2016'!U112/'Population 2016'!U$6","v":3.1848306332842413E-2},{"$f":"'Population 2016'!V112/'Population 2016'!V$6","v":2.0503393665158371E-2},{"$f":"'Population 2016'!W112/'Population 2016'!W$6","v":1.5933678756476683E-2},{"$f":"'Population 2016'!X112/'Population 2016'!X$6","v":1.5933678756476683E-2},{"$f":"'Population 2016'!Y112/'Population 2016'!Y$6","v":1.8470534859101679E-2},{"$f":"'Population 2016'!Z112/'Population 2016'!Z$6","v":5.3106325060534526E-3},{"$f":"'Population 2016'!AA112/'Population 2016'!AA$6","v":1.1003830842972934E-2},{"$f":"'Population 2016'!AB112/'Population 2016'!AB$6","v":1.8919343262156829E-2},{"$f":"'Population 2016'!AC112/'Population 2016'!AC$6","v":8.0281520271716089E-3},{"$f":"'Population 2016'!AD112/'Population 2016'!AD$6","v":2.3700679064400161E-2},{"$f":"'Population 2016'!AE112/'Population 2016'!AE$6","v":2.2643634242966598E-2},{"$f":"'Population 2016'!AF112/'Population 2016'!AF$6","v":7.5782719327359225E-3},{"$f":"'Population 2016'!AG112/'Population 2016'!AG$6","v":2.2643634242966598E-2},{"$f":"'Population 2016'!AH112/'Population 2016'!AH$6","v":1.6352060527447476E-2},{"$f":"'Population 2016'!AI112/'Population 2016'!AI$6","v":1.5840995743647907E-2},{"$f":"'Population 2016'!AJ112/'Population 2016'!AJ$6","v":2.3194452966803707E-2},{"$f":"'Population 2016'!AK112/'Population 2016'!AK$6","v":2.7869626830420408E-2},{"$f":"'Population 2016'!AL112/'Population 2016'!AL$6","v":1.1058802629241428E-2},{"$f":"'Population 2016'!AM112/'Population 2016'!AM$6","v":1.5165934602244998E-2},{"$f":"'Population 2016'!AN112/'Population 2016'!AN$6","v":3.9600153787004995E-2},{"$f":"'Population 2016'!AO112/'Population 2016'!AO$6","v":3.9600153787004995E-2},{"$f":"'Population 2016'!AP112/'Population 2016'!AP$6","v":1.7708883236550368E-2},{"$f":"'Population 2016'!AQ112/'Population 2016'!AQ$6","v":1.2585559726208876E-2},{"$f":"'Population 2016'!AR112/'Population 2016'!AR$6","v":1.4561970896405627E-2},{"$f":"'Population 2016'!AS112/'Population 2016'!AS$6","v":2.6561134310964359E-2},{"$f":"'Population 2016'!AT112/'Population 2016'!AT$6","v":3.0206677265500796E-2},{"$f":"'Population 2016'!AU112/'Population 2016'!AU$6","v":3.0206677265500796E-2},{"$f":"'Population 2016'!AV112/'Population 2016'!AV$6","v":2.2423448111521506E-2},{"$f":"'Population 2016'!AW112/'Population 2016'!AW$6","v":1.7944454909540618E-2},{"$f":"'Population 2016'!AX112/'Population 2016'!AX$6","v":1.4784261018677296E-2},{"$f":"'Population 2016'!AY112/'Population 2016'!AY$6","v":1.4696208137520048E-2},{"$f":"'Population 2016'!AZ112/'Population 2016'!AZ$6","v":1.3362869801343434E-2},{"$f":"'Population 2016'!BA112/'Population 2016'!BA$6","v":1.2671089594166518E-2},{"$f":"'Population 2016'!BB112/'Population 2016'!BB$6","v":1.942770108237734E-2},{"$f":"'Population 2016'!BC112/'Population 2016'!BC$6","v":3.1848306332842413E-2},110]
[null,"Female 75-79",{"$f":"'Population 2016'!C113/'Population 2016'!C$6","v":1.4415835903320663E-2},{"$f":"'Population 2016'!D113/'Population 2016'!D$6","v":1.6059425103967778E-2},{"$f":"'Population 2016'!E113/'Population 2016'!E$6","v":2.0489030636899584E-2},{"$f":"'Population 2016'!F113/'Population 2016'!F$6","v":1.8480048472258287E-2},{"$f":"'Population 2016'!G113/'Population 2016'!G$6","v":2.4627784618829061E-2},{"$f":"'Population 2016'!H113/'Population 2016'!H$6","v":1.2318369634562985E-2},{"$f":"'Population 2016'!I113/'Population 2016'!I$6","v":2.1462561911236282E-2},{"$f":"'Population 2016'!J113/'Population 2016'!J$6","v":1.2532563542913469E-2},{"$f":"'Population 2016'!K113/'Population 2016'!K$6","v":1.1411182959300114E-2},{"$f":"'Population 2016'!L113/'Population 2016'!L$6","v":2.1922767497988736E-2},{"$f":"'Population 2016'!M113/'Population 2016'!M$6","v":2.1922767497988736E-2},{"$f":"'Population 2016'!N113/'Population 2016'!N$6","v":9.0723286623829204E-3},{"$f":"'Population 2016'!O113/'Population 2016'!O$6","v":1.2542093326919112E-2},{"$f":"'Population 2016'!P113/'Population 2016'!P$6","v":2.0087751757678279E-2},{"$f":"'Population 2016'!Q113/'Population 2016'!Q$6","v":2.3591440886699507E-2},{"$f":"'Population 2016'!R113/'Population 2016'!R$6","v":1.3488133856923339E-2},{"$f":"'Population 2016'!S113/'Population 2016'!S$6","v":1.3783815065394207E-2},{"$f":"'Population 2016'!T113/'Population 2016'!T$6","v":9.1703682475999422E-3},{"$f":"'Population 2016'!U113/'Population 2016'!U$6","v":3.0559646539027981E-2},{"$f":"'Population 2016'!V113/'Population 2016'!V$6","v":1.7003676470588234E-2},{"$f":"'Population 2016'!W113/'Population 2016'!W$6","v":1.3081865284974093E-2},{"$f":"'Population 2016'!X113/'Population 2016'!X$6","v":1.3081865284974093E-2},{"$f":"'Population 2016'!Y113/'Population 2016'!Y$6","v":1.5082925845641982E-2},{"$f":"'Population 2016'!Z113/'Population 2016'!Z$6","v":5.2103745697263566E-3},{"$f":"'Population 2016'!AA113/'Population 2016'!AA$6","v":9.7627127117743736E-3},{"$f":"'Population 2016'!AB113/'Population 2016'!AB$6","v":1.7225910640588551E-2},{"$f":"'Population 2016'!AC113/'Population 2016'!AC$6","v":7.5243256702446767E-3},{"$f":"'Population 2016'!AD113/'Population 2016'!AD$6","v":2.1777402985516253E-2},{"$f":"'Population 2016'!AE113/'Population 2016'!AE$6","v":2.0753313089468498E-2},{"$f":"'Population 2016'!AF113/'Population 2016'!AF$6","v":5.5869012058856072E-3},{"$f":"'Population 2016'!AG113/'Population 2016'!AG$6","v":2.0753313089468498E-2},{"$f":"'Population 2016'!AH113/'Population 2016'!AH$6","v":1.3785797447022751E-2},{"$f":"'Population 2016'!AI113/'Population 2016'!AI$6","v":1.3476355692086198E-2},{"$f":"'Population 2016'!AJ113/'Population 2016'!AJ$6","v":1.8438976498742099E-2},{"$f":"'Population 2016'!AK113/'Population 2016'!AK$6","v":2.4248149897653913E-2},{"$f":"'Population 2016'!AL113/'Population 2016'!AL$6","v":8.4088351986735359E-3},{"$f":"'Population 2016'!AM113/'Population 2016'!AM$6","v":1.2628111273792094E-2},{"$f":"'Population 2016'!AN113/'Population 2016'!AN$6","v":2.4221453287197232E-2},{"$f":"'Population 2016'!AO113/'Population 2016'!AO$6","v":2.4221453287197232E-2},{"$f":"'Population 2016'!AP113/'Population 2016'!AP$6","v":1.3533618083217354E-2},{"$f":"'Population 2016'!AQ113/'Population 2016'!AQ$6","v":1.184956208140134E-2},{"$f":"'Population 2016'!AR113/'Population 2016'!AR$6","v":1.2528924424026687E-2},{"$f":"'Population 2016'!AS113/'Population 2016'!AS$6","v":2.1462561911236282E-2},{"$f":"'Population 2016'!AT113/'Population 2016'!AT$6","v":1.5898251192368838E-2},{"$f":"'Population 2016'!AU113/'Population 2016'!AU$6","v":1.5898251192368838E-2},{"$f":"'Population 2016'!AV113/'Population 2016'!AV$6","v":1.8300965089955917E-2},{"$f":"'Population 2016'!AW113/'Population 2016'!AW$6","v":1.5340010974700858E-2},{"$f":"'Population 2016'!AX113/'Population 2016'!AX$6","v":1.362561987301293E-2},{"$f":"'Population 2016'!AY113/'Population 2016'!AY$6","v":1.2486187370204276E-2},{"$f":"'Population 2016'!AZ113/'Population 2016'!AZ$6","v":1.1844361869372589E-2},{"$f":"'Population 2016'!BA113/'Population 2016'!BA$6","v":1.2113242882473651E-2},{"$f":"'Population 2016'!BB113/'Population 2016'!BB$6","v":1.487458681703286E-2},{"$f":"'Population 2016'!BC113/'Population 2016'!BC$6","v":3.0559646539027981E-2},111]
[null,"Female 80-84",{"$f":"'Population 2016'!C114/'Population 2016'!C$6","v":1.2784192784909991E-2},{"$f":"'Population 2016'!D114/'Population 2016'!D$6","v":1.3744670834096199E-2},{"$f":"'Population 2016'!E114/'Population 2016'!E$6","v":1.6333236686962405E-2},{"$f":"'Population 2016'!F114/'Population 2016'!F$6","v":1.4282004674110621E-2},{"$f":"'Population 2016'!G114/'Population 2016'!G$6","v":1.8694727415202061E-2},{"$f":"'Population 2016'!H114/'Population 2016'!H$6","v":9.6591281742459019E-3},{"$f":"'Population 2016'!I114/'Population 2016'!I$6","v":1.6995241332426921E-2},{"$f":"'Population 2016'!J114/'Population 2016'!J$6","v":8.3785115820601275E-3},{"$f":"'Population 2016'!K114/'Population 2016'!K$6","v":7.6550019018638265E-3},{"$f":"'Population 2016'!L114/'Population 2016'!L$6","v":1.8257799231250559E-2},{"$f":"'Population 2016'!M114/'Population 2016'!M$6","v":1.8257799231250559E-2},{"$f":"'Population 2016'!N114/'Population 2016'!N$6","v":7.3813759943536887E-3},{"$f":"'Population 2016'!O114/'Population 2016'!O$6","v":9.2948938217304652E-3},{"$f":"'Population 2016'!P114/'Population 2016'!P$6","v":1.8501876618914205E-2},{"$f":"'Population 2016'!Q114/'Population 2016'!Q$6","v":1.8588362068965518E-2},{"$f":"'Population 2016'!R114/'Population 2016'!R$6","v":1.2890558306300154E-2},{"$f":"'Population 2016'!S114/'Population 2016'!S$6","v":1.060354170393207E-2},{"$f":"'Population 2016'!T114/'Population 2016'!T$6","v":6.8693475384135599E-3},{"$f":"'Population 2016'!U114/'Population 2016'!U$6","v":2.8166421207658322E-2},{"$f":"'Population 2016'!V114/'Population 2016'!V$6","v":1.2249010180995475E-2},{"$f":"'Population 2016'!W114/'Population 2016'!W$6","v":1.0420725388601036E-2},{"$f":"'Population 2016'!X114/'Population 2016'!X$6","v":1.0420725388601036E-2},{"$f":"'Population 2016'!Y114/'Population 2016'!Y$6","v":1.0586278167061551E-2},{"$f":"'Population 2016'!Z114/'Population 2016'!Z$6","v":4.6938942916776799E-3},{"$f":"'Population 2016'!AA114/'Population 2016'!AA$6","v":7.8816625733515808E-3},{"$f":"'Population 2016'!AB114/'Population 2016'!AB$6","v":1.4265207249237395E-2},{"$f":"'Population 2016'!AC114/'Population 2016'!AC$6","v":6.4291355584691458E-3},{"$f":"'Population 2016'!AD114/'Population 2016'!AD$6","v":1.5948397023360407E-2},{"$f":"'Population 2016'!AE114/'Population 2016'!AE$6","v":1.4961690831942405E-2},{"$f":"'Population 2016'!AF114/'Population 2016'!AF$6","v":4.3146365748423501E-3},{"$f":"'Population 2016'!AG114/'Population 2016'!AG$6","v":1.4961690831942405E-2},{"$f":"'Population 2016'!AH114/'Population 2016'!AH$6","v":1.0492309951436792E-2},{"$f":"'Population 2016'!AI114/'Population 2016'!AI$6","v":1.0144933601744392E-2},{"$f":"'Population 2016'!AJ114/'Population 2016'!AJ$6","v":1.4511873350923483E-2},{"$f":"'Population 2016'!AK114/'Population 2016'!AK$6","v":1.7398834829160763E-2},{"$f":"'Population 2016'!AL114/'Population 2016'!AL$6","v":7.0764493397287853E-3},{"$f":"'Population 2016'!AM114/'Population 2016'!AM$6","v":9.3277208394338708E-3},{"$f":"'Population 2016'!AN114/'Population 2016'!AN$6","v":2.306805074971165E-2},{"$f":"'Population 2016'!AO114/'Population 2016'!AO$6","v":2.306805074971165E-2},{"$f":"'Population 2016'!AP114/'Population 2016'!AP$6","v":1.1326006622834381E-2},{"$f":"'Population 2016'!AQ114/'Population 2016'!AQ$6","v":9.8770883933171419E-3},{"$f":"'Population 2016'!AR114/'Population 2016'!AR$6","v":9.8741512016847673E-3},{"$f":"'Population 2016'!AS114/'Population 2016'!AS$6","v":1.6995241332426921E-2},{"$f":"'Population 2016'!AT114/'Population 2016'!AT$6","v":2.3847376788553261E-2},{"$f":"'Population 2016'!AU114/'Population 2016'!AU$6","v":2.3847376788553261E-2},{"$f":"'Population 2016'!AV114/'Population 2016'!AV$6","v":1.4321458358155606E-2},{"$f":"'Population 2016'!AW114/'Population 2016'!AW$6","v":1.2055790792717385E-2},{"$f":"'Population 2016'!AX114/'Population 2016'!AX$6","v":9.0837465820086203E-3},{"$f":"'Population 2016'!AY114/'Population 2016'!AY$6","v":9.996689268500324E-3},{"$f":"'Population 2016'!AZ114/'Population 2016'!AZ$6","v":9.5398027726168351E-3},{"$f":"'Population 2016'!BA114/'Population 2016'!BA$6","v":8.6067778375470676E-3},{"$f":"'Population 2016'!BB114/'Population 2016'!BB$6","v":1.0580724609501588E-2},{"$f":"'Population 2016'!BC114/'Population 2016'!BC$6","v":2.8166421207658322E-2},112]
[null,"Female 85-89",{"$f":"'Population 2016'!C115/'Population 2016'!C$6","v":7.1899878075019725E-3},{"$f":"'Population 2016'!D115/'Population 2016'!D$6","v":7.6766144430204276E-3},{"$f":"'Population 2016'!E115/'Population 2016'!E$6","v":8.9881124963757612E-3},{"$f":"'Population 2016'!F115/'Population 2016'!F$6","v":1.0603306500476067E-2},{"$f":"'Population 2016'!G115/'Population 2016'!G$6","v":1.0466808463002351E-2},{"$f":"'Population 2016'!H115/'Population 2016'!H$6","v":5.306558071036329E-3},{"$f":"'Population 2016'!I115/'Population 2016'!I$6","v":1.034281829659124E-2},{"$f":"'Population 2016'!J115/'Population 2016'!J$6","v":4.8815977845056207E-3},{"$f":"'Population 2016'!K115/'Population 2016'!K$6","v":4.8497527577025488E-3},{"$f":"'Population 2016'!L115/'Population 2016'!L$6","v":1.0168052203450434E-2},{"$f":"'Population 2016'!M115/'Population 2016'!M$6","v":1.0168052203450434E-2},{"$f":"'Population 2016'!N115/'Population 2016'!N$6","v":4.0435824670264232E-3},{"$f":"'Population 2016'!O115/'Population 2016'!O$6","v":4.965294481478936E-3},{"$f":"'Population 2016'!P115/'Population 2016'!P$6","v":1.0731088438970238E-2},{"$f":"'Population 2016'!Q115/'Population 2016'!Q$6","v":1.0467980295566502E-2},{"$f":"'Population 2016'!R115/'Population 2016'!R$6","v":5.7196516988219223E-3},{"$f":"'Population 2016'!S115/'Population 2016'!S$6","v":6.6472711202769392E-3},{"$f":"'Population 2016'!T115/'Population 2016'!T$6","v":4.6863278912367351E-3},{"$f":"'Population 2016'!U115/'Population 2016'!U$6","v":1.1597938144329897E-2},{"$f":"'Population 2016'!V115/'Population 2016'!V$6","v":7.6534219457013572E-3},{"$f":"'Population 2016'!W115/'Population 2016'!W$6","v":6.7067357512953368E-3},{"$f":"'Population 2016'!X115/'Population 2016'!X$6","v":6.7067357512953368E-3},{"$f":"'Population 2016'!Y115/'Population 2016'!Y$6","v":6.4626707667490048E-3},{"$f":"'Population 2016'!Z115/'Population 2016'!Z$6","v":2.9165945113337039E-3},{"$f":"'Population 2016'!AA115/'Population 2016'!AA$6","v":4.5907622315129017E-3},{"$f":"'Population 2016'!AB115/'Population 2016'!AB$6","v":8.1643638973622826E-3},{"$f":"'Population 2016'!AC115/'Population 2016'!AC$6","v":3.7349289779911527E-3},{"$f":"'Population 2016'!AD115/'Population 2016'!AD$6","v":1.0001035610196322E-2},{"$f":"'Population 2016'!AE115/'Population 2016'!AE$6","v":9.8336919580911779E-3},{"$f":"'Population 2016'!AF115/'Population 2016'!AF$6","v":2.2126341409447947E-3},{"$f":"'Population 2016'!AG115/'Population 2016'!AG$6","v":9.8336919580911779E-3},{"$f":"'Population 2016'!AH115/'Population 2016'!AH$6","v":6.1289634604694094E-3},{"$f":"'Population 2016'!AI115/'Population 2016'!AI$6","v":6.2987314647794191E-3},{"$f":"'Population 2016'!AJ115/'Population 2016'!AJ$6","v":9.4189114560962132E-3},{"$f":"'Population 2016'!AK115/'Population 2016'!AK$6","v":1.1100614076523381E-2},{"$f":"'Population 2016'!AL115/'Population 2016'!AL$6","v":3.6122461064724345E-3},{"$f":"'Population 2016'!AM115/'Population 2016'!AM$6","v":5.1366520253782336E-3},{"$f":"'Population 2016'!AN115/'Population 2016'!AN$6","v":1.114955786236063E-2},{"$f":"'Population 2016'!AO115/'Population 2016'!AO$6","v":1.114955786236063E-2},{"$f":"'Population 2016'!AP115/'Population 2016'!AP$6","v":9.7902769112636172E-3},{"$f":"'Population 2016'!AQ115/'Population 2016'!AQ$6","v":5.1961433723412085E-3},{"$f":"'Population 2016'!AR115/'Population 2016'!AR$6","v":5.8843610853314314E-3},{"$f":"'Population 2016'!AS115/'Population 2016'!AS$6","v":1.034281829659124E-2},{"$f":"'Population 2016'!AT115/'Population 2016'!AT$6","v":7.9491255961844191E-3},{"$f":"'Population 2016'!AU115/'Population 2016'!AU$6","v":7.9491255961844191E-3},{"$f":"'Population 2016'!AV115/'Population 2016'!AV$6","v":8.507089241034195E-3},{"$f":"'Population 2016'!AW115/'Population 2016'!AW$6","v":7.4611585680472402E-3},{"$f":"'Population 2016'!AX115/'Population 2016'!AX$6","v":4.9126384576169066E-3},{"$f":"'Population 2016'!AY115/'Population 2016'!AY$6","v":6.591365440262795E-3},{"$f":"'Population 2016'!AZ115/'Population 2016'!AZ$6","v":6.4670573102758328E-3},{"$f":"'Population 2016'!BA115/'Population 2016'!BA$6","v":5.1202358894666591E-3},{"$f":"'Population 2016'!BB115/'Population 2016'!BB$6","v":5.9952038369304557E-3},{"$f":"'Population 2016'!BC115/'Population 2016'!BC$6","v":1.1597938144329897E-2},113]
[null,"Female 90+",{"$f":"'Population 2016'!C116/'Population 2016'!C$6","v":3.4963781108800114E-3},{"$f":"'Population 2016'!D116/'Population 2016'!D$6","v":4.041011691470719E-3},{"$f":"'Population 2016'!E116/'Population 2016'!E$6","v":5.508843142939983E-3},{"$f":"'Population 2016'!F116/'Population 2016'!F$6","v":6.9678871288842729E-3},{"$f":"'Population 2016'!G116/'Population 2016'!G$6","v":5.8211127280868693E-3},{"$f":"'Population 2016'!H116/'Population 2016'!H$6","v":3.6967033753286787E-3},{"$f":"'Population 2016'!I116/'Population 2016'!I$6","v":7.1380013596193063E-3},{"$f":"'Population 2016'!J116/'Population 2016'!J$6","v":2.9571217348447511E-3},{"$f":"'Population 2016'!K116/'Population 2016'!K$6","v":2.9003423354887789E-3},{"$f":"'Population 2016'!L116/'Population 2016'!L$6","v":6.1678734245105924E-3},{"$f":"'Population 2016'!M116/'Population 2016'!M$6","v":6.1678734245105924E-3},{"$f":"'Population 2016'!N116/'Population 2016'!N$6","v":2.4261494802158539E-3},{"$f":"'Population 2016'!O116/'Population 2016'!O$6","v":3.1612947563741324E-3},{"$f":"'Population 2016'!P116/'Population 2016'!P$6","v":7.3478881429402121E-3},{"$f":"'Population 2016'!Q116/'Population 2016'!Q$6","v":5.6573275862068966E-3},{"$f":"'Population 2016'!R116/'Population 2016'!R$6","v":2.9878777531159298E-3},{"$f":"'Population 2016'!S116/'Population 2016'!S$6","v":3.8300066288576269E-3},{"$f":"'Population 2016'!T116/'Population 2016'!T$6","v":2.8320254882293941E-3},{"$f":"'Population 2016'!U116/'Population 2016'!U$6","v":1.0493372606774668E-2},{"$f":"'Population 2016'!V116/'Population 2016'!V$6","v":4.8783936651583711E-3},{"$f":"'Population 2016'!W116/'Population 2016'!W$6","v":3.9958549222797925E-3},{"$f":"'Population 2016'!X116/'Population 2016'!X$6","v":3.9958549222797925E-3},{"$f":"'Population 2016'!Y116/'Population 2016'!Y$6","v":4.0530322125321367E-3},{"$f":"'Population 2016'!Z116/'Population 2016'!Z$6","v":1.7104611561259118E-3},{"$f":"'Population 2016'!AA116/'Population 2016'!AA$6","v":2.3709980814538454E-3},{"$f":"'Population 2016'!AB116/'Population 2016'!AB$6","v":4.1831150188408397E-3},{"$f":"'Population 2016'!AC116/'Population 2016'!AC$6","v":2.009469601179615E-3},{"$f":"'Population 2016'!AD116/'Population 2016'!AD$6","v":5.5627061973873033E-3},{"$f":"'Population 2016'!AE116/'Population 2016'!AE$6","v":5.4698654654413096E-3},{"$f":"'Population 2016'!AF116/'Population 2016'!AF$6","v":7.1910609580705831E-4},{"$f":"'Population 2016'!AG116/'Population 2016'!AG$6","v":5.4698654654413096E-3},{"$f":"'Population 2016'!AH116/'Population 2016'!AH$6","v":3.0207783399004962E-3},{"$f":"'Population 2016'!AI116/'Population 2016'!AI$6","v":3.4611634029053685E-3},{"$f":"'Population 2016'!AJ116/'Population 2016'!AJ$6","v":4.2645885745842792E-3},{"$f":"'Population 2016'!AK116/'Population 2016'!AK$6","v":5.0385766021099039E-3},{"$f":"'Population 2016'!AL116/'Population 2016'!AL$6","v":2.279860247527684E-3},{"$f":"'Population 2016'!AM116/'Population 2016'!AM$6","v":2.1961932650073207E-3},{"$f":"'Population 2016'!AN116/'Population 2016'!AN$6","v":4.61361014994233E-3},{"$f":"'Population 2016'!AO116/'Population 2016'!AO$6","v":4.61361014994233E-3},{"$f":"'Population 2016'!AP116/'Population 2016'!AP$6","v":4.6071891347122911E-3},{"$f":"'Population 2016'!AQ116/'Population 2016'!AQ$6","v":2.4729520865533232E-3},{"$f":"'Population 2016'!AR116/'Population 2016'!AR$6","v":3.3301945552562475E-3},{"$f":"'Population 2016'!AS116/'Population 2016'!AS$6","v":7.1380013596193063E-3},{"$f":"'Population 2016'!AT116/'Population 2016'!AT$6","v":1.589825119236884E-3},{"$f":"'Population 2016'!AU116/'Population 2016'!AU$6","v":1.589825119236884E-3},{"$f":"'Population 2016'!AV116/'Population 2016'!AV$6","v":6.7198856189681876E-3},{"$f":"'Population 2016'!AW116/'Population 2016'!AW$6","v":4.1277979344630181E-3},{"$f":"'Population 2016'!AX116/'Population 2016'!AX$6","v":3.0124669787273484E-3},{"$f":"'Population 2016'!AY116/'Population 2016'!AY$6","v":3.8868847736448576E-3},{"$f":"'Population 2016'!AZ116/'Population 2016'!AZ$6","v":3.7694726311276261E-3},{"$f":"'Population 2016'!BA116/'Population 2016'!BA$6","v":2.0321558783097243E-3},{"$f":"'Population 2016'!BB116/'Population 2016'!BB$6","v":3.3216669907317389E-3},{"$f":"'Population 2016'!BC116/'Population 2016'!BC$6","v":1.0493372606774668E-2},114]
[null,"Male 0-4",{"$f":"'Population 2016'!C117/'Population 2016'!C$6","v":0},{"$f":"'Population 2016'!D117/'Population 2016'!D$6","v":0},{"$f":"'Population 2016'!E117/'Population 2016'!E$6","v":0},{"$f":"'Population 2016'!F117/'Population 2016'!F$6","v":0},{"$f":"'Population 2016'!G117/'Population 2016'!G$6","v":0},{"$f":"'Population 2016'!H117/'Population 2016'!H$6","v":0},{"$f":"'Population 2016'!I117/'Population 2016'!I$6","v":0},{"$f":"'Population 2016'!J117/'Population 2016'!J$6","v":0},{"$f":"'Population 2016'!K117/'Population 2016'!K$6","v":0},{"$f":"'Population 2016'!L117/'Population 2016'!L$6","v":0},{"$f":"'Population 2016'!M117/'Population 2016'!M$6","v":0},{"$f":"'Population 2016'!N117/'Population 2016'!N$6","v":0},{"$f":"'Population 2016'!O117/'Population 2016'!O$6","v":0},{"$f":"'Population 2016'!P117/'Population 2016'!P$6","v":0},{"$f":"'Population 2016'!Q117/'Population 2016'!Q$6","v":0},{"$f":"'Population 2016'!R117/'Population 2016'!R$6","v":0},{"$f":"'Population 2016'!S117/'Population 2016'!S$6","v":0},{"$f":"'Population 2016'!T117/'Population 2016'!T$6","v":0},{"$f":"'Population 2016'!U117/'Population 2016'!U$6","v":0},{"$f":"'Population 2016'!V117/'Population 2016'!V$6","v":0},{"$f":"'Population 2016'!W117/'Population 2016'!W$6","v":0},{"$f":"'Population 2016'!X117/'Population 2016'!X$6","v":0},{"$f":"'Population 2016'!Y117/'Population 2016'!Y$6","v":0},{"$f":"'Population 2016'!Z117/'Population 2016'!Z$6","v":0},{"$f":"'Population 2016'!AA117/'Population 2016'!AA$6","v":0},{"$f":"'Population 2016'!AB117/'Population 2016'!AB$6","v":0},{"$f":"'Population 2016'!AC117/'Population 2016'!AC$6","v":0},{"$f":"'Population 2016'!AD117/'Population 2016'!AD$6","v":0},{"$f":"'Population 2016'!AE117/'Population 2016'!AE$6","v":0},{"$f":"'Population 2016'!AF117/'Population 2016'!AF$6","v":0},{"$f":"'Population 2016'!AG117/'Population 2016'!AG$6","v":0},{"$f":"'Population 2016'!AH117/'Population 2016'!AH$6","v":0},{"$f":"'Population 2016'!AI117/'Population 2016'!AI$6","v":0},{"$f":"'Population 2016'!AJ117/'Population 2016'!AJ$6","v":0},{"$f":"'Population 2016'!AK117/'Population 2016'!AK$6","v":0},{"$f":"'Population 2016'!AL117/'Population 2016'!AL$6","v":0},{"$f":"'Population 2016'!AM117/'Population 2016'!AM$6","v":0},{"$f":"'Population 2016'!AN117/'Population 2016'!AN$6","v":0},{"$f":"'Population 2016'!AO117/'Population 2016'!AO$6","v":0},{"$f":"'Population 2016'!AP117/'Population 2016'!AP$6","v":0},{"$f":"'Population 2016'!AQ117/'Population 2016'!AQ$6","v":0},{"$f":"'Population 2016'!AR117/'Population 2016'!AR$6","v":0},{"$f":"'Population 2016'!AS117/'Population 2016'!AS$6","v":0},{"$f":"'Population 2016'!AT117/'Population 2016'!AT$6","v":0},{"$f":"'Population 2016'!AU117/'Population 2016'!AU$6","v":0},{"$f":"'Population 2016'!AV117/'Population 2016'!AV$6","v":0},{"$f":"'Population 2016'!AW117/'Population 2016'!AW$6","v":0},{"$f":"'Population 2016'!AX117/'Population 2016'!AX$6","v":0},{"$f":"'Population 2016'!AY117/'Population 2016'!AY$6","v":0},{"$f":"'Population 2016'!AZ117/'Population 2016'!AZ$6","v":0},{"$f":"'Population 2016'!BA117/'Population 2016'!BA$6","v":0},{"$f":"'Population 2016'!BB117/'Population 2016'!BB$6","v":0},{"$f":"'Population 2016'!BC117/'Population 2016'!BC$6","v":0},115]
[null,"Male 5-9",{"$f":"'Population 2016'!C118/'Population 2016'!C$6","v":0},{"$f":"'Population 2016'!D118/'Population 2016'!D$6","v":0},{"$f":"'Population 2016'!E118/'Population 2016'!E$6","v":0},{"$f":"'Population 2016'!F118/'Population 2016'!F$6","v":0},{"$f":"'Population 2016'!G118/'Population 2016'!G$6","v":0},{"$f":"'Population 2016'!H118/'Population 2016'!H$6","v":0},{"$f":"'Population 2016'!I118/'Population 2016'!I$6","v":0},{"$f":"'Population 2016'!J118/'Population 2016'!J$6","v":0},{"$f":"'Population 2016'!K118/'Population 2016'!K$6","v":0},{"$f":"'Population 2016'!L118/'Population 2016'!L$6","v":0},{"$f":"'Population 2016'!M118/'Population 2016'!M$6","v":0},{"$f":"'Population 2016'!N118/'Population 2016'!N$6","v":0},{"$f":"'Population 2016'!O118/'Population 2016'!O$6","v":0},{"$f":"'Population 2016'!P118/'Population 2016'!P$6","v":0},{"$f":"'Population 2016'!Q118/'Population 2016'!Q$6","v":0},{"$f":"'Population 2016'!R118/'Population 2016'!R$6","v":0},{"$f":"'Population 2016'!S118/'Population 2016'!S$6","v":0},{"$f":"'Population 2016'!T118/'Population 2016'!T$6","v":0},{"$f":"'Population 2016'!U118/'Population 2016'!U$6","v":0},{"$f":"'Population 2016'!V118/'Population 2016'!V$6","v":0},{"$f":"'Population 2016'!W118/'Population 2016'!W$6","v":0},{"$f":"'Population 2016'!X118/'Population 2016'!X$6","v":0},{"$f":"'Population 2016'!Y118/'Population 2016'!Y$6","v":0},{"$f":"'Population 2016'!Z118/'Population 2016'!Z$6","v":0},{"$f":"'Population 2016'!AA118/'Population 2016'!AA$6","v":0},{"$f":"'Population 2016'!AB118/'Population 2016'!AB$6","v":0},{"$f":"'Population 2016'!AC118/'Population 2016'!AC$6","v":0},{"$f":"'Population 2016'!AD118/'Population 2016'!AD$6","v":0},{"$f":"'Population 2016'!AE118/'Population 2016'!AE$6","v":0},{"$f":"'Population 2016'!AF118/'Population 2016'!AF$6","v":0},{"$f":"'Population 2016'!AG118/'Population 2016'!AG$6","v":0},{"$f":"'Population 2016'!AH118/'Population 2016'!AH$6","v":0},{"$f":"'Population 2016'!AI118/'Population 2016'!AI$6","v":0},{"$f":"'Population 2016'!AJ118/'Population 2016'!AJ$6","v":0},{"$f":"'Population 2016'!AK118/'Population 2016'!AK$6","v":0},{"$f":"'Population 2016'!AL118/'Population 2016'!AL$6","v":0},{"$f":"'Population 2016'!AM118/'Population 2016'!AM$6","v":0},{"$f":"'Population 2016'!AN118/'Population 2016'!AN$6","v":0},{"$f":"'Population 2016'!AO118/'Population 2016'!AO$6","v":0},{"$f":"'Population 2016'!AP118/'Population 2016'!AP$6","v":0},{"$f":"'Population 2016'!AQ118/'Population 2016'!AQ$6","v":0},{"$f":"'Population 2016'!AR118/'Population 2016'!AR$6","v":0},{"$f":"'Population 2016'!AS118/'Population 2016'!AS$6","v":0},{"$f":"'Population 2016'!AT118/'Population 2016'!AT$6","v":0},{"$f":"'Population 2016'!AU118/'Population 2016'!AU$6","v":0},{"$f":"'Population 2016'!AV118/'Population 2016'!AV$6","v":0},{"$f":"'Population 2016'!AW118/'Population 2016'!AW$6","v":0},{"$f":"'Population 2016'!AX118/'Population 2016'!AX$6","v":0},{"$f":"'Population 2016'!AY118/'Population 2016'!AY$6","v":0},{"$f":"'Population 2016'!AZ118/'Population 2016'!AZ$6","v":0},{"$f":"'Population 2016'!BA118/'Population 2016'!BA$6","v":0},{"$f":"'Population 2016'!BB118/'Population 2016'!BB$6","v":0},{"$f":"'Population 2016'!BC118/'Population 2016'!BC$6","v":0},116]
[null,"Male 10-15",{"$f":"'Population 2016'!C119/'Population 2016'!C$6","v":0},{"$f":"'Population 2016'!D119/'Population 2016'!D$6","v":0},{"$f":"'Population 2016'!E119/'Population 2016'!E$6","v":0},{"$f":"'Population 2016'!F119/'Population 2016'!F$6","v":0},{"$f":"'Population 2016'!G119/'Population 2016'!G$6","v":0},{"$f":"'Population 2016'!H119/'Population 2016'!H$6","v":0},{"$f":"'Population 2016'!I119/'Population 2016'!I$6","v":0},{"$f":"'Population 2016'!J119/'Population 2016'!J$6","v":0},{"$f":"'Population 2016'!K119/'Population 2016'!K$6","v":0},{"$f":"'Population 2016'!L119/'Population 2016'!L$6","v":0},{"$f":"'Population 2016'!M119/'Population 2016'!M$6","v":0},{"$f":"'Population 2016'!N119/'Population 2016'!N$6","v":0},{"$f":"'Population 2016'!O119/'Population 2016'!O$6","v":0},{"$f":"'Population 2016'!P119/'Population 2016'!P$6","v":0},{"$f":"'Population 2016'!Q119/'Population 2016'!Q$6","v":0},{"$f":"'Population 2016'!R119/'Population 2016'!R$6","v":0},{"$f":"'Population 2016'!S119/'Population 2016'!S$6","v":0},{"$f":"'Population 2016'!T119/'Population 2016'!T$6","v":0},{"$f":"'Population 2016'!U119/'Population 2016'!U$6","v":0},{"$f":"'Population 2016'!V119/'Population 2016'!V$6","v":0},{"$f":"'Population 2016'!W119/'Population 2016'!W$6","v":0},{"$f":"'Population 2016'!X119/'Population 2016'!X$6","v":0},{"$f":"'Population 2016'!Y119/'Population 2016'!Y$6","v":0},{"$f":"'Population 2016'!Z119/'Population 2016'!Z$6","v":0},{"$f":"'Population 2016'!AA119/'Population 2016'!AA$6","v":0},{"$f":"'Population 2016'!AB119/'Population 2016'!AB$6","v":0},{"$f":"'Population 2016'!AC119/'Population 2016'!AC$6","v":0},{"$f":"'Population 2016'!AD119/'Population 2016'!AD$6","v":0},{"$f":"'Population 2016'!AE119/'Population 2016'!AE$6","v":0},{"$f":"'Population 2016'!AF119/'Population 2016'!AF$6","v":0},{"$f":"'Population 2016'!AG119/'Population 2016'!AG$6","v":0},{"$f":"'Population 2016'!AH119/'Population 2016'!AH$6","v":0},{"$f":"'Population 2016'!AI119/'Population 2016'!AI$6","v":0},{"$f":"'Population 2016'!AJ119/'Population 2016'!AJ$6","v":0},{"$f":"'Population 2016'!AK119/'Population 2016'!AK$6","v":0},{"$f":"'Population 2016'!AL119/'Population 2016'!AL$6","v":0},{"$f":"'Population 2016'!AM119/'Population 2016'!AM$6","v":0},{"$f":"'Population 2016'!AN119/'Population 2016'!AN$6","v":0},{"$f":"'Population 2016'!AO119/'Population 2016'!AO$6","v":0},{"$f":"'Population 2016'!AP119/'Population 2016'!AP$6","v":0},{"$f":"'Population 2016'!AQ119/'Population 2016'!AQ$6","v":0},{"$f":"'Population 2016'!AR119/'Population 2016'!AR$6","v":0},{"$f":"'Population 2016'!AS119/'Population 2016'!AS$6","v":0},{"$f":"'Population 2016'!AT119/'Population 2016'!AT$6","v":0},{"$f":"'Population 2016'!AU119/'Population 2016'!AU$6","v":0},{"$f":"'Population 2016'!AV119/'Population 2016'!AV$6","v":0},{"$f":"'Population 2016'!AW119/'Population 2016'!AW$6","v":0},{"$f":"'Population 2016'!AX119/'Population 2016'!AX$6","v":0},{"$f":"'Population 2016'!AY119/'Population 2016'!AY$6","v":0},{"$f":"'Population 2016'!AZ119/'Population 2016'!AZ$6","v":0},{"$f":"'Population 2016'!BA119/'Population 2016'!BA$6","v":0},{"$f":"'Population 2016'!BB119/'Population 2016'!BB$6","v":0},{"$f":"'Population 2016'!BC119/'Population 2016'!BC$6","v":0},117]
[null,"Male 16-19",{"$f":"'Population 2016'!C120/'Population 2016'!C$6","v":1.6585383346482106E-2},{"$f":"'Population 2016'!D120/'Population 2016'!D$6","v":1.7654905448173046E-2},{"$f":"'Population 2016'!E120/'Population 2016'!E$6","v":2.053735382236397E-2},{"$f":"'Population 2016'!F120/'Population 2016'!F$6","v":1.6878732796676187E-2},{"$f":"'Population 2016'!G120/'Population 2016'!G$6","v":1.7015560282100078E-2},{"$f":"'Population 2016'!H120/'Population 2016'!H$6","v":1.2115647191399799E-2},{"$f":"'Population 2016'!I120/'Population 2016'!I$6","v":1.7723608818102358E-2},{"$f":"'Population 2016'!J120/'Population 2016'!J$6","v":1.4574385693163416E-2},{"$f":"'Population 2016'!K120/'Population 2016'!K$6","v":1.4549258273107645E-2},{"$f":"'Population 2016'!L120/'Population 2016'!L$6","v":2.0202020202020204E-2},{"$f":"'Population 2016'!M120/'Population 2016'!M$6","v":2.0202020202020204E-2},{"$f":"'Population 2016'!N120/'Population 2016'!N$6","v":8.2930200414651004E-3},{"$f":"'Population 2016'!O120/'Population 2016'!O$6","v":1.2490550477630404E-2},{"$f":"'Population 2016'!P120/'Population 2016'!P$6","v":2.2149389438071578E-2},{"$f":"'Population 2016'!Q120/'Population 2016'!Q$6","v":2.3399014778325122E-2},{"$f":"'Population 2016'!R120/'Population 2016'!R$6","v":1.8610210005122075E-2},{"$f":"'Population 2016'!S120/'Population 2016'!S$6","v":1.5604120413724892E-2},{"$f":"'Population 2016'!T120/'Population 2016'!T$6","v":1.2786257933464258E-2},{"$f":"'Population 2016'!U120/'Population 2016'!U$6","v":2.5773195876288658E-2},{"$f":"'Population 2016'!V120/'Population 2016'!V$6","v":1.9336821266968326E-2},{"$f":"'Population 2016'!W120/'Population 2016'!W$6","v":1.355440414507772E-2},{"$f":"'Population 2016'!X120/'Population 2016'!X$6","v":1.355440414507772E-2},{"$f":"'Population 2016'!Y120/'Population 2016'!Y$6","v":1.7290921006200534E-2},{"$f":"'Population 2016'!Z120/'Population 2016'!Z$6","v":7.0757798092668713E-3},{"$f":"'Population 2016'!AA120/'Population 2016'!AA$6","v":1.0682614972159207E-2},{"$f":"'Population 2016'!AB120/'Population 2016'!AB$6","v":1.9020276332316528E-2},{"$f":"'Population 2016'!AC120/'Population 2016'!AC$6","v":8.7284512105449494E-3},{"$f":"'Population 2016'!AD120/'Population 2016'!AD$6","v":1.9499060553607624E-2},{"$f":"'Population 2016'!AE120/'Population 2016'!AE$6","v":2.0391336698373116E-2},{"$f":"'Population 2016'!AF120/'Population 2016'!AF$6","v":5.8911384002655158E-3},{"$f":"'Population 2016'!AG120/'Population 2016'!AG$6","v":2.0391336698373116E-2},{"$f":"'Population 2016'!AH120/'Population 2016'!AH$6","v":1.4194861180550942E-2},{"$f":"'Population 2016'!AI120/'Population 2016'!AI$6","v":1.6456220677417061E-2},{"$f":"'Population 2016'!AJ120/'Population 2016'!AJ$6","v":2.1997913726452722E-2},{"$f":"'Population 2016'!AK120/'Population 2016'!AK$6","v":2.7239804755156669E-2},{"$f":"'Population 2016'!AL120/'Population 2016'!AL$6","v":9.8152424942263283E-3},{"$f":"'Population 2016'!AM120/'Population 2016'!AM$6","v":1.3488286969253294E-2},{"$f":"'Population 2016'!AN120/'Population 2016'!AN$6","v":2.5759323337178008E-2},{"$f":"'Population 2016'!AO120/'Population 2016'!AO$6","v":2.5759323337178008E-2},{"$f":"'Population 2016'!AP120/'Population 2016'!AP$6","v":1.8236790324902816E-2},{"$f":"'Population 2016'!AQ120/'Population 2016'!AQ$6","v":1.0671965849709281E-2},{"$f":"'Population 2016'!AR120/'Population 2016'!AR$6","v":1.3391428988066237E-2},{"$f":"'Population 2016'!AS120/'Population 2016'!AS$6","v":1.7723608818102358E-2},{"$f":"'Population 2016'!AT120/'Population 2016'!AT$6","v":1.2718600953895072E-2},{"$f":"'Population 2016'!AU120/'Population 2016'!AU$6","v":1.2718600953895072E-2},{"$f":"'Population 2016'!AV120/'Population 2016'!AV$6","v":1.5298463004885023E-2},{"$f":"'Population 2016'!AW120/'Population 2016'!AW$6","v":1.5143449168297856E-2},{"$f":"'Population 2016'!AX120/'Population 2016'!AX$6","v":1.4598878435370997E-2},{"$f":"'Population 2016'!AY120/'Population 2016'!AY$6","v":1.2765664704592457E-2},{"$f":"'Population 2016'!AZ120/'Population 2016'!AZ$6","v":1.1915821066171216E-2},{"$f":"'Population 2016'!BA120/'Population 2016'!BA$6","v":1.1615165461319308E-2},{"$f":"'Population 2016'!BB120/'Population 2016'!BB$6","v":1.7661546438524856E-2},{"$f":"'Population 2016'!BC120/'Population 2016'!BC$6","v":2.5773195876288658E-2},118]
[null,"Male 20-24",{"$f":"'Population 2016'!C121/'Population 2016'!C$6","v":3.9930431040665564E-2},{"$f":"'Population 2016'!D121/'Population 2016'!D$6","v":3.7127612272120941E-2},{"$f":"'Population 2016'!E121/'Population 2016'!E$6","v":2.9573789504204116E-2},{"$f":"'Population 2016'!F121/'Population 2016'!F$6","v":2.6313511641997748E-2},{"$f":"'Population 2016'!G121/'Population 2016'!G$6","v":2.2276950632486286E-2},{"$f":"'Population 2016'!H121/'Population 2016'!H$6","v":1.5555966300375037E-2},{"$f":"'Population 2016'!I121/'Population 2016'!I$6","v":2.6221229484315819E-2},{"$f":"'Population 2016'!J121/'Population 2016'!J$6","v":2.4220235161585581E-2},{"$f":"'Population 2016'!K121/'Population 2016'!K$6","v":1.9303917839482692E-2},{"$f":"'Population 2016'!L121/'Population 2016'!L$6","v":2.7263788325735228E-2},{"$f":"'Population 2016'!M121/'Population 2016'!M$6","v":2.7263788325735228E-2},{"$f":"'Population 2016'!N121/'Population 2016'!N$6","v":2.468790895322678E-2},{"$f":"'Population 2016'!O121/'Population 2016'!O$6","v":1.680296886811903E-2},{"$f":"'Population 2016'!P121/'Population 2016'!P$6","v":3.2563302849289003E-2},{"$f":"'Population 2016'!Q121/'Population 2016'!Q$6","v":3.282789408866995E-2},{"$f":"'Population 2016'!R121/'Population 2016'!R$6","v":2.5183541061977122E-2},{"$f":"'Population 2016'!S121/'Population 2016'!S$6","v":2.3072107240185609E-2},{"$f":"'Population 2016'!T121/'Population 2016'!T$6","v":2.468750790185683E-2},{"$f":"'Population 2016'!U121/'Population 2016'!U$6","v":2.8718703976435934E-2},{"$f":"'Population 2016'!V121/'Population 2016'!V$6","v":2.3243071266968326E-2},{"$f":"'Population 2016'!W121/'Population 2016'!W$6","v":1.682901554404145E-2},{"$f":"'Population 2016'!X121/'Population 2016'!X$6","v":1.682901554404145E-2},{"$f":"'Population 2016'!Y121/'Population 2016'!Y$6","v":2.3662852245803296E-2},{"$f":"'Population 2016'!Z121/'Population 2016'!Z$6","v":1.3340381770069057E-2},{"$f":"'Population 2016'!AA121/'Population 2016'!AA$6","v":1.592455801571083E-2},{"$f":"'Population 2016'!AB121/'Population 2016'!AB$6","v":3.7289162031221963E-2},{"$f":"'Population 2016'!AC121/'Population 2016'!AC$6","v":1.4463123412168865E-2},{"$f":"'Population 2016'!AD121/'Population 2016'!AD$6","v":2.5239299927507286E-2},{"$f":"'Population 2016'!AE121/'Population 2016'!AE$6","v":2.6303617752931004E-2},{"$f":"'Population 2016'!AF121/'Population 2016'!AF$6","v":8.9058524173027988E-3},{"$f":"'Population 2016'!AG121/'Population 2016'!AG$6","v":2.6303617752931004E-2},{"$f":"'Population 2016'!AH121/'Population 2016'!AH$6","v":1.8551215129064852E-2},{"$f":"'Population 2016'!AI121/'Population 2016'!AI$6","v":2.5952447716343637E-2},{"$f":"'Population 2016'!AJ121/'Population 2016'!AJ$6","v":2.7182917101306988E-2},{"$f":"'Population 2016'!AK121/'Population 2016'!AK$6","v":3.8261691072272085E-2},{"$f":"'Population 2016'!AL121/'Population 2016'!AL$6","v":1.2317167051578136E-2},{"$f":"'Population 2016'!AM121/'Population 2016'!AM$6","v":1.7276720351390922E-2},{"$f":"'Population 2016'!AN121/'Population 2016'!AN$6","v":3.4986543637062668E-2},{"$f":"'Population 2016'!AO121/'Population 2016'!AO$6","v":3.4986543637062668E-2},{"$f":"'Population 2016'!AP121/'Population 2016'!AP$6","v":3.2106349282526273E-2},{"$f":"'Population 2016'!AQ121/'Population 2016'!AQ$6","v":1.4366674026643114E-2},{"$f":"'Population 2016'!AR121/'Population 2016'!AR$6","v":2.0327073486971433E-2},{"$f":"'Population 2016'!AS121/'Population 2016'!AS$6","v":2.6221229484315819E-2},{"$f":"'Population 2016'!AT121/'Population 2016'!AT$6","v":6.6772655007949128E-2},{"$f":"'Population 2016'!AU121/'Population 2016'!AU$6","v":6.6772655007949128E-2},{"$f":"'Population 2016'!AV121/'Population 2016'!AV$6","v":1.9039675920409865E-2},{"$f":"'Population 2016'!AW121/'Population 2016'!AW$6","v":2.0262246210042672E-2},{"$f":"'Population 2016'!AX121/'Population 2016'!AX$6","v":2.9012374287435694E-2},{"$f":"'Population 2016'!AY121/'Population 2016'!AY$6","v":2.1438061373222631E-2},{"$f":"'Population 2016'!AZ121/'Population 2016'!AZ$6","v":2.6404173217093041E-2},{"$f":"'Population 2016'!BA121/'Population 2016'!BA$6","v":1.6635785866555099E-2},{"$f":"'Population 2016'!BB121/'Population 2016'!BB$6","v":2.4839587789228079E-2},{"$f":"'Population 2016'!BC121/'Population 2016'!BC$6","v":2.8718703976435934E-2},119]
[null,"Male 25-29",{"$f":"'Population 2016'!C122/'Population 2016'!C$6","v":4.7676253317076672E-2},{"$f":"'Population 2016'!D122/'Population 2016'!D$6","v":4.4176496743650776E-2},{"$f":"'Population 2016'!E122/'Population 2016'!E$6","v":3.4744370348893397E-2},{"$f":"'Population 2016'!F122/'Population 2016'!F$6","v":3.0771228252401972E-2},{"$f":"'Population 2016'!G122/'Population 2016'!G$6","v":2.0373894548304041E-2},{"$f":"'Population 2016'!H122/'Population 2016'!H$6","v":1.5210145662037837E-2},{"$f":"'Population 2016'!I122/'Population 2016'!I$6","v":2.7580848790909974E-2},{"$f":"'Population 2016'!J122/'Population 2016'!J$6","v":2.4431458142645919E-2},{"$f":"'Population 2016'!K122/'Population 2016'!K$6","v":1.8400532521871436E-2},{"$f":"'Population 2016'!L122/'Population 2016'!L$6","v":2.2190935907750068E-2},{"$f":"'Population 2016'!M122/'Population 2016'!M$6","v":2.2190935907750068E-2},{"$f":"'Population 2016'!N122/'Population 2016'!N$6","v":2.2864620859003957E-2},{"$f":"'Population 2016'!O122/'Population 2016'!O$6","v":1.615009277712872E-2},{"$f":"'Population 2016'!P122/'Population 2016'!P$6","v":3.0660252682772109E-2},{"$f":"'Population 2016'!Q122/'Population 2016'!Q$6","v":3.2712438423645324E-2},{"$f":"'Population 2016'!R122/'Population 2016'!R$6","v":2.2024927437254566E-2},{"$f":"'Population 2016'!S122/'Population 2016'!S$6","v":2.7133597786171991E-2},{"$f":"'Population 2016'!T122/'Population 2016'!T$6","v":3.6285326567939112E-2},{"$f":"'Population 2016'!U122/'Population 2016'!U$6","v":3.2584683357879236E-2},{"$f":"'Population 2016'!V122/'Population 2016'!V$6","v":2.356122737556561E-2},{"$f":"'Population 2016'!W122/'Population 2016'!W$6","v":1.7881865284974093E-2},{"$f":"'Population 2016'!X122/'Population 2016'!X$6","v":1.7881865284974093E-2},{"$f":"'Population 2016'!Y122/'Population 2016'!Y$6","v":2.3935070827242024E-2},{"$f":"'Population 2016'!Z122/'Population 2016'!Z$6","v":1.8347202347858582E-2},{"$f":"'Population 2016'!AA122/'Population 2016'!AA$6","v":1.8079329071286177E-2},{"$f":"'Population 2016'!AB122/'Population 2016'!AB$6","v":4.3849811591602367E-2},{"$f":"'Population 2016'!AC122/'Population 2016'!AC$6","v":1.7618360288367642E-2},{"$f":"'Population 2016'!AD122/'Population 2016'!AD$6","v":2.4484783927329754E-2},{"$f":"'Population 2016'!AE122/'Population 2016'!AE$6","v":2.5961751161340921E-2},{"$f":"'Population 2016'!AF122/'Population 2016'!AF$6","v":8.8505365637791787E-3},{"$f":"'Population 2016'!AG122/'Population 2016'!AG$6","v":2.5961751161340921E-2},{"$f":"'Population 2016'!AH122/'Population 2016'!AH$6","v":1.8907834794191995E-2},{"$f":"'Population 2016'!AI122/'Population 2016'!AI$6","v":3.176569555991747E-2},{"$f":"'Population 2016'!AJ122/'Population 2016'!AJ$6","v":2.8594219795054304E-2},{"$f":"'Population 2016'!AK122/'Population 2016'!AK$6","v":4.1883168005038579E-2},{"$f":"'Population 2016'!AL122/'Population 2016'!AL$6","v":1.148812696156807E-2},{"$f":"'Population 2016'!AM122/'Population 2016'!AM$6","v":1.7667154709614444E-2},{"$f":"'Population 2016'!AN122/'Population 2016'!AN$6","v":3.9984621299500193E-2},{"$f":"'Population 2016'!AO122/'Population 2016'!AO$6","v":3.9984621299500193E-2},{"$f":"'Population 2016'!AP122/'Population 2016'!AP$6","v":3.6233622882372703E-2},{"$f":"'Population 2016'!AQ122/'Population 2016'!AQ$6","v":1.4955472142489145E-2},{"$f":"'Population 2016'!AR122/'Population 2016'!AR$6","v":2.2388380266166873E-2},{"$f":"'Population 2016'!AS122/'Population 2016'!AS$6","v":2.7580848790909974E-2},{"$f":"'Population 2016'!AT122/'Population 2016'!AT$6","v":7.3131955484896663E-2},{"$f":"'Population 2016'!AU122/'Population 2016'!AU$6","v":7.3131955484896663E-2},{"$f":"'Population 2016'!AV122/'Population 2016'!AV$6","v":1.989753365900155E-2},{"$f":"'Population 2016'!AW122/'Population 2016'!AW$6","v":2.0573469070180754E-2},{"$f":"'Population 2016'!AX122/'Population 2016'!AX$6","v":3.0310052370579783E-2},{"$f":"'Population 2016'!AY122/'Population 2016'!AY$6","v":2.2263594422492337E-2},{"$f":"'Population 2016'!AZ122/'Population 2016'!AZ$6","v":2.6984779191081894E-2},{"$f":"'Population 2016'!BA122/'Population 2016'!BA$6","v":1.681509373817066E-2},{"$f":"'Population 2016'!BB122/'Population 2016'!BB$6","v":2.4353490180828309E-2},{"$f":"'Population 2016'!BC122/'Population 2016'!BC$6","v":3.2584683357879236E-2},120]
[null,"Male 30-34",{"$f":"'Population 2016'!C123/'Population 2016'!C$6","v":3.7886394606612639E-2},{"$f":"'Population 2016'!D123/'Population 2016'!D$6","v":3.6002929406533622E-2},{"$f":"'Population 2016'!E123/'Population 2016'!E$6","v":3.0926838697206919E-2},{"$f":"'Population 2016'!F123/'Population 2016'!F$6","v":3.111745866874405E-2},{"$f":"'Population 2016'!G123/'Population 2016'!G$6","v":2.1661256017015559E-2},{"$f":"'Population 2016'!H123/'Population 2016'!H$6","v":1.4482729836569936E-2},{"$f":"'Population 2016'!I123/'Population 2016'!I$6","v":2.3453433038749149E-2},{"$f":"'Population 2016'!J123/'Population 2016'!J$6","v":1.9362106597197774E-2},{"$f":"'Population 2016'!K123/'Population 2016'!K$6","v":1.7449600608596426E-2},{"$f":"'Population 2016'!L123/'Population 2016'!L$6","v":2.228032537767051E-2},{"$f":"'Population 2016'!M123/'Population 2016'!M$6","v":2.228032537767051E-2},{"$f":"'Population 2016'!N123/'Population 2016'!N$6","v":1.7585907747504008E-2},{"$f":"'Population 2016'!O123/'Population 2016'!O$6","v":1.651089272214968E-2},{"$f":"'Population 2016'!P123/'Population 2016'!P$6","v":2.6854152349738331E-2},{"$f":"'Population 2016'!Q123/'Population 2016'!Q$6","v":3.1981219211822662E-2},{"$f":"'Population 2016'!R123/'Population 2016'!R$6","v":1.87809458767287E-2},{"$f":"'Population 2016'!S123/'Population 2016'!S$6","v":2.5849914245730701E-2},{"$f":"'Population 2016'!T123/'Population 2016'!T$6","v":3.2779009296797959E-2},{"$f":"'Population 2016'!U123/'Population 2016'!U$6","v":2.687776141384389E-2},{"$f":"'Population 2016'!V123/'Population 2016'!V$6","v":2.3596578054298642E-2},{"$f":"'Population 2016'!W123/'Population 2016'!W$6","v":1.7467357512953367E-2},{"$f":"'Population 2016'!X123/'Population 2016'!X$6","v":1.7467357512953367E-2},{"$f":"'Population 2016'!Y123/'Population 2016'!Y$6","v":2.177748651509805E-2},{"$f":"'Population 2016'!Z123/'Population 2016'!Z$6","v":1.7022582340627857E-2},{"$f":"'Population 2016'!AA123/'Population 2016'!AA$6","v":1.7423148790441014E-2},{"$f":"'Population 2016'!AB123/'Population 2016'!AB$6","v":3.6425623542077873E-2},{"$f":"'Population 2016'!AC123/'Population 2016'!AC$6","v":1.6653503635719928E-2},{"$f":"'Population 2016'!AD123/'Population 2016'!AD$6","v":2.4218484162561213E-2},{"$f":"'Population 2016'!AE123/'Population 2016'!AE$6","v":2.5137249381623664E-2},{"$f":"'Population 2016'!AF123/'Population 2016'!AF$6","v":8.8228786370173687E-3},{"$f":"'Population 2016'!AG123/'Population 2016'!AG$6","v":2.5137249381623664E-2},{"$f":"'Population 2016'!AH123/'Population 2016'!AH$6","v":1.8806442928616631E-2},{"$f":"'Population 2016'!AI123/'Population 2016'!AI$6","v":3.0288318678145285E-2},{"$f":"'Population 2016'!AJ123/'Population 2016'!AJ$6","v":2.7673804994784317E-2},{"$f":"'Population 2016'!AK123/'Population 2016'!AK$6","v":3.8970240906943787E-2},{"$f":"'Population 2016'!AL123/'Population 2016'!AL$6","v":1.0422218274412269E-2},{"$f":"'Population 2016'!AM123/'Population 2016'!AM$6","v":1.8075890678379697E-2},{"$f":"'Population 2016'!AN123/'Population 2016'!AN$6","v":2.7297193387158785E-2},{"$f":"'Population 2016'!AO123/'Population 2016'!AO$6","v":2.7297193387158785E-2},{"$f":"'Population 2016'!AP123/'Population 2016'!AP$6","v":3.6089648221912941E-2},{"$f":"'Population 2016'!AQ123/'Population 2016'!AQ$6","v":1.6074188562596601E-2},{"$f":"'Population 2016'!AR123/'Population 2016'!AR$6","v":2.0995147140113472E-2},{"$f":"'Population 2016'!AS123/'Population 2016'!AS$6","v":2.3453433038749149E-2},{"$f":"'Population 2016'!AT123/'Population 2016'!AT$6","v":3.8155802861685212E-2},{"$f":"'Population 2016'!AU123/'Population 2016'!AU$6","v":3.8155802861685212E-2},{"$f":"'Population 2016'!AV123/'Population 2016'!AV$6","v":1.8205647563445729E-2},{"$f":"'Population 2016'!AW123/'Population 2016'!AW$6","v":1.9787221844568752E-2},{"$f":"'Population 2016'!AX123/'Population 2016'!AX$6","v":2.1226305788571164E-2},{"$f":"'Population 2016'!AY123/'Population 2016'!AY$6","v":2.0526535297987335E-2},{"$f":"'Population 2016'!AZ123/'Population 2016'!AZ$6","v":2.3822709732742604E-2},{"$f":"'Population 2016'!BA123/'Population 2016'!BA$6","v":1.6317016317016316E-2},{"$f":"'Population 2016'!BB123/'Population 2016'!BB$6","v":2.6168254585520773E-2},{"$f":"'Population 2016'!BC123/'Population 2016'!BC$6","v":2.687776141384389E-2},121]
[null,"Male 35-39",{"$f":"'Population 2016'!C124/'Population 2016'!C$6","v":2.9441296708025533E-2},{"$f":"'Population 2016'!D124/'Population 2016'!D$6","v":2.9621008029712553E-2},{"$f":"'Population 2016'!E124/'Population 2016'!E$6","v":3.0105344544312362E-2},{"$f":"'Population 2016'!F124/'Population 2016'!F$6","v":2.6573184454254307E-2},{"$f":"'Population 2016'!G124/'Population 2016'!G$6","v":2.1101533639314898E-2},{"$f":"'Population 2016'!H124/'Population 2016'!H$6","v":1.2825175742470949E-2},{"$f":"'Population 2016'!I124/'Population 2016'!I$6","v":2.2919296882587162E-2},{"$f":"'Population 2016'!J124/'Population 2016'!J$6","v":1.710906146588749E-2},{"$f":"'Population 2016'!K124/'Population 2016'!K$6","v":1.8257892734880182E-2},{"$f":"'Population 2016'!L124/'Population 2016'!L$6","v":2.1006525431304192E-2},{"$f":"'Population 2016'!M124/'Population 2016'!M$6","v":2.1006525431304192E-2},{"$f":"'Population 2016'!N124/'Population 2016'!N$6","v":1.2013115911129409E-2},{"$f":"'Population 2016'!O124/'Population 2016'!O$6","v":1.4569445398941654E-2},{"$f":"'Population 2016'!P124/'Population 2016'!P$6","v":2.3365227044457367E-2},{"$f":"'Population 2016'!Q124/'Population 2016'!Q$6","v":3.0711206896551723E-2},{"$f":"'Population 2016'!R124/'Population 2016'!R$6","v":1.6988219224859144E-2},{"$f":"'Population 2016'!S124/'Population 2016'!S$6","v":2.266174938709372E-2},{"$f":"'Population 2016'!T124/'Population 2016'!T$6","v":2.5125797560749476E-2},{"$f":"'Population 2016'!U124/'Population 2016'!U$6","v":2.614138438880707E-2},{"$f":"'Population 2016'!V124/'Population 2016'!V$6","v":2.3596578054298642E-2},{"$f":"'Population 2016'!W124/'Population 2016'!W$6","v":1.7119170984455957E-2},{"$f":"'Population 2016'!X124/'Population 2016'!X$6","v":1.7119170984455957E-2},{"$f":"'Population 2016'!Y124/'Population 2016'!Y$6","v":2.0809598225538135E-2},{"$f":"'Population 2016'!Z124/'Population 2016'!Z$6","v":1.3306962457960024E-2},{"$f":"'Population 2016'!AA124/'Population 2016'!AA$6","v":1.4907166113600431E-2},{"$f":"'Population 2016'!AB124/'Population 2016'!AB$6","v":3.0627579400681858E-2},{"$f":"'Population 2016'!AC124/'Population 2016'!AC$6","v":1.3614983290083375E-2},{"$f":"'Population 2016'!AD124/'Population 2016'!AD$6","v":2.3034929652478806E-2},{"$f":"'Population 2016'!AE124/'Population 2016'!AE$6","v":2.3729563416252739E-2},{"$f":"'Population 2016'!AF124/'Population 2016'!AF$6","v":8.49098351587565E-3},{"$f":"'Population 2016'!AG124/'Population 2016'!AG$6","v":2.3729563416252739E-2},{"$f":"'Population 2016'!AH124/'Population 2016'!AH$6","v":1.7229624605358384E-2},{"$f":"'Population 2016'!AI124/'Population 2016'!AI$6","v":2.5437667669720471E-2},{"$f":"'Population 2016'!AJ124/'Population 2016'!AJ$6","v":2.7182917101306988E-2},{"$f":"'Population 2016'!AK124/'Population 2016'!AK$6","v":3.6687135884112737E-2},{"$f":"'Population 2016'!AL124/'Population 2016'!AL$6","v":8.9269852549298274E-3},{"$f":"'Population 2016'!AM124/'Population 2016'!AM$6","v":1.617252318204002E-2},{"$f":"'Population 2016'!AN124/'Population 2016'!AN$6","v":2.768166089965398E-2},{"$f":"'Population 2016'!AO124/'Population 2016'!AO$6","v":2.768166089965398E-2},{"$f":"'Population 2016'!AP124/'Population 2016'!AP$6","v":3.253827326390555E-2},{"$f":"'Population 2016'!AQ124/'Population 2016'!AQ$6","v":1.2747479208066534E-2},{"$f":"'Population 2016'!AR124/'Population 2016'!AR$6","v":1.8279331655047911E-2},{"$f":"'Population 2016'!AS124/'Population 2016'!AS$6","v":2.2919296882587162E-2},{"$f":"'Population 2016'!AT124/'Population 2016'!AT$6","v":5.246422893481717E-2},{"$f":"'Population 2016'!AU124/'Population 2016'!AU$6","v":5.246422893481717E-2},{"$f":"'Population 2016'!AV124/'Population 2016'!AV$6","v":1.6680567139282735E-2},{"$f":"'Population 2016'!AW124/'Population 2016'!AW$6","v":1.8648801382484707E-2},{"$f":"'Population 2016'!AX124/'Population 2016'!AX$6","v":1.5989247810168236E-2},{"$f":"'Population 2016'!AY124/'Population 2016'!AY$6","v":1.7946744519019509E-2},{"$f":"'Population 2016'!AZ124/'Population 2016'!AZ$6","v":1.8838430756038301E-2},{"$f":"'Population 2016'!BA124/'Population 2016'!BA$6","v":1.6038092961169884E-2},{"$f":"'Population 2016'!BB124/'Population 2016'!BB$6","v":2.2895197355629011E-2},{"$f":"'Population 2016'!BC124/'Population 2016'!BC$6","v":2.614138438880707E-2},122]
[null,"Male 40-44",{"$f":"'Population 2016'!C125/'Population 2016'!C$6","v":2.562217600229506E-2},{"$f":"'Population 2016'!D125/'Population 2016'!D$6","v":2.6338503387126306E-2},{"$f":"'Population 2016'!E125/'Population 2016'!E$6","v":2.8269063496665699E-2},{"$f":"'Population 2016'!F125/'Population 2016'!F$6","v":2.5101705184800486E-2},{"$f":"'Population 2016'!G125/'Population 2016'!G$6","v":2.0150005597223776E-2},{"$f":"'Population 2016'!H125/'Population 2016'!H$6","v":1.4959723820483314E-2},{"$f":"'Population 2016'!I125/'Population 2016'!I$6","v":2.495872584247839E-2},{"$f":"'Population 2016'!J125/'Population 2016'!J$6","v":1.8423337792485155E-2},{"$f":"'Population 2016'!K125/'Population 2016'!K$6","v":1.9826930391783949E-2},{"$f":"'Population 2016'!L125/'Population 2016'!L$6","v":2.5073746312684365E-2},{"$f":"'Population 2016'!M125/'Population 2016'!M$6","v":2.5073746312684365E-2},{"$f":"'Population 2016'!N125/'Population 2016'!N$6","v":1.1277919098942787E-2},{"$f":"'Population 2016'!O125/'Population 2016'!O$6","v":1.621881657618033E-2},{"$f":"'Population 2016'!P125/'Population 2016'!P$6","v":2.6219802294232701E-2},{"$f":"'Population 2016'!Q125/'Population 2016'!Q$6","v":3.163485221674877E-2},{"$f":"'Population 2016'!R125/'Population 2016'!R$6","v":2.2622502987877754E-2},{"$f":"'Population 2016'!S125/'Population 2016'!S$6","v":2.252496343606309E-2},{"$f":"'Population 2016'!T125/'Population 2016'!T$6","v":2.1509907874885159E-2},{"$f":"'Population 2016'!U125/'Population 2016'!U$6","v":3.663475699558174E-2},{"$f":"'Population 2016'!V125/'Population 2016'!V$6","v":2.55585407239819E-2},{"$f":"'Population 2016'!W125/'Population 2016'!W$6","v":1.877720207253886E-2},{"$f":"'Population 2016'!X125/'Population 2016'!X$6","v":1.877720207253886E-2},{"$f":"'Population 2016'!Y125/'Population 2016'!Y$6","v":2.2493320562585069E-2},{"$f":"'Population 2016'!Z125/'Population 2016'!Z$6","v":1.0265805056038111E-2},{"$f":"'Population 2016'!AA125/'Population 2016'!AA$6","v":1.432347813044864E-2},{"$f":"'Population 2016'!AB125/'Population 2016'!AB$6","v":2.7106136730665711E-2},{"$f":"'Population 2016'!AC125/'Population 2016'!AC$6","v":1.181171289289702E-2},{"$f":"'Population 2016'!AD125/'Population 2016'!AD$6","v":2.2635480005325996E-2},{"$f":"'Population 2016'!AE125/'Population 2016'!AE$6","v":2.3528465421199751E-2},{"$f":"'Population 2016'!AF125/'Population 2016'!AF$6","v":7.218718884832393E-3},{"$f":"'Population 2016'!AG125/'Population 2016'!AG$6","v":2.3528465421199751E-2},{"$f":"'Population 2016'!AH125/'Population 2016'!AH$6","v":1.883790936965726E-2},{"$f":"'Population 2016'!AI125/'Population 2016'!AI$6","v":2.4207217802182164E-2},{"$f":"'Population 2016'!AJ125/'Population 2016'!AJ$6","v":2.709087562127999E-2},{"$f":"'Population 2016'!AK125/'Population 2016'!AK$6","v":3.1727287041410798E-2},{"$f":"'Population 2016'!AL125/'Population 2016'!AL$6","v":1.0999585479954995E-2},{"$f":"'Population 2016'!AM125/'Population 2016'!AM$6","v":1.7886774036115178E-2},{"$f":"'Population 2016'!AN125/'Population 2016'!AN$6","v":3.9215686274509803E-2},{"$f":"'Population 2016'!AO125/'Population 2016'!AO$6","v":3.9215686274509803E-2},{"$f":"'Population 2016'!AP125/'Population 2016'!AP$6","v":2.4235734510726113E-2},{"$f":"'Population 2016'!AQ125/'Population 2016'!AQ$6","v":1.3512916758666373E-2},{"$f":"'Population 2016'!AR125/'Population 2016'!AR$6","v":1.8094509248468008E-2},{"$f":"'Population 2016'!AS125/'Population 2016'!AS$6","v":2.495872584247839E-2},{"$f":"'Population 2016'!AT125/'Population 2016'!AT$6","v":4.6104928457869634E-2},{"$f":"'Population 2016'!AU125/'Population 2016'!AU$6","v":4.6104928457869634E-2},{"$f":"'Population 2016'!AV125/'Population 2016'!AV$6","v":1.958775169784344E-2},{"$f":"'Population 2016'!AW125/'Population 2016'!AW$6","v":2.011482485524042E-2},{"$f":"'Population 2016'!AX125/'Population 2016'!AX$6","v":1.7055197664179449E-2},{"$f":"'Population 2016'!AY125/'Population 2016'!AY$6","v":1.7701664395017563E-2},{"$f":"'Population 2016'!AZ125/'Population 2016'!AZ$6","v":1.6542804058882379E-2},{"$f":"'Population 2016'!BA125/'Population 2016'!BA$6","v":1.5002091925168848E-2},{"$f":"'Population 2016'!BB125/'Population 2016'!BB$6","v":2.4742368267548123E-2},{"$f":"'Population 2016'!BC125/'Population 2016'!BC$6","v":3.663475699558174E-2},123]
[null,"Male 45-49",{"$f":"'Population 2016'!C126/'Population 2016'!C$6","v":2.7200028688230654E-2},{"$f":"'Population 2016'!D126/'Population 2016'!D$6","v":2.7986294562289123E-2},{"$f":"'Population 2016'!E126/'Population 2016'!E$6","v":3.0105344544312362E-2},{"$f":"'Population 2016'!F126/'Population 2016'!F$6","v":2.8823682160477797E-2},{"$f":"'Population 2016'!G126/'Population 2016'!G$6","v":2.7874174409492893E-2},{"$f":"'Population 2016'!H126/'Population 2016'!H$6","v":1.9204970277312376E-2},{"$f":"'Population 2016'!I126/'Population 2016'!I$6","v":2.971739341555793E-2},{"$f":"'Population 2016'!J126/'Population 2016'!J$6","v":2.2694735853927575E-2},{"$f":"'Population 2016'!K126/'Population 2016'!K$6","v":2.5342335488779004E-2},{"$f":"'Population 2016'!L126/'Population 2016'!L$6","v":3.0191293465629748E-2},{"$f":"'Population 2016'!M126/'Population 2016'!M$6","v":3.0191293465629748E-2},{"$f":"'Population 2016'!N126/'Population 2016'!N$6","v":1.3409989854283991E-2},{"$f":"'Population 2016'!O126/'Population 2016'!O$6","v":2.0256339770462511E-2},{"$f":"'Population 2016'!P126/'Population 2016'!P$6","v":2.9920177618015541E-2},{"$f":"'Population 2016'!Q126/'Population 2016'!Q$6","v":3.6022167487684727E-2},{"$f":"'Population 2016'!R126/'Population 2016'!R$6","v":2.4244493768140685E-2},{"$f":"'Population 2016'!S126/'Population 2016'!S$6","v":2.4155872852197519E-2},{"$f":"'Population 2016'!T126/'Population 2016'!T$6","v":1.9731463297455391E-2},{"$f":"'Population 2016'!U126/'Population 2016'!U$6","v":4.3262150220913106E-2},{"$f":"'Population 2016'!V126/'Population 2016'!V$6","v":3.0224830316742082E-2},{"$f":"'Population 2016'!W126/'Population 2016'!W$6","v":2.1512953367875648E-2},{"$f":"'Population 2016'!X126/'Population 2016'!X$6","v":2.1512953367875648E-2},{"$f":"'Population 2016'!Y126/'Population 2016'!Y$6","v":2.69899682411655E-2},{"$f":"'Population 2016'!Z126/'Population 2016'!Z$6","v":1.0846085839022211E-2},{"$f":"'Population 2016'!AA126/'Population 2016'!AA$6","v":1.6403257153927396E-2},{"$f":"'Population 2016'!AB126/'Population 2016'!AB$6","v":2.985375919612417E-2},{"$f":"'Population 2016'!AC126/'Population 2016'!AC$6","v":1.3085868351534628E-2},{"$f":"'Population 2016'!AD126/'Population 2016'!AD$6","v":2.8523663692985961E-2},{"$f":"'Population 2016'!AE126/'Population 2016'!AE$6","v":2.8757013292577474E-2},{"$f":"'Population 2016'!AF126/'Population 2016'!AF$6","v":8.8228786370173687E-3},{"$f":"'Population 2016'!AG126/'Population 2016'!AG$6","v":2.8757013292577474E-2},{"$f":"'Population 2016'!AH126/'Population 2016'!AH$6","v":2.2365647037434575E-2},{"$f":"'Population 2016'!AI126/'Population 2016'!AI$6","v":2.5010776899350037E-2},{"$f":"'Population 2016'!AJ126/'Population 2016'!AJ$6","v":3.1447505675891267E-2},{"$f":"'Population 2016'!AK126/'Population 2016'!AK$6","v":4.1095890410958902E-2},{"$f":"'Population 2016'!AL126/'Population 2016'!AL$6","v":1.4685853023035472E-2},{"$f":"'Population 2016'!AM126/'Population 2016'!AM$6","v":2.0229380185456319E-2},{"$f":"'Population 2016'!AN126/'Population 2016'!AN$6","v":4.0369088811995385E-2},{"$f":"'Population 2016'!AO126/'Population 2016'!AO$6","v":4.0369088811995385E-2},{"$f":"'Population 2016'!AP126/'Population 2016'!AP$6","v":2.9322839180304268E-2},{"$f":"'Population 2016'!AQ126/'Population 2016'!AQ$6","v":1.5617870022815927E-2},{"$f":"'Population 2016'!AR126/'Population 2016'!AR$6","v":2.073628272967434E-2},{"$f":"'Population 2016'!AS126/'Population 2016'!AS$6","v":2.971739341555793E-2},{"$f":"'Population 2016'!AT126/'Population 2016'!AT$6","v":2.066772655007949E-2},{"$f":"'Population 2016'!AU126/'Population 2016'!AU$6","v":2.066772655007949E-2},{"$f":"'Population 2016'!AV126/'Population 2016'!AV$6","v":2.5020850708924104E-2},{"$f":"'Population 2016'!AW126/'Population 2016'!AW$6","v":2.5233621896985234E-2},{"$f":"'Population 2016'!AX126/'Population 2016'!AX$6","v":2.0114010288733372E-2},{"$f":"'Population 2016'!AY126/'Population 2016'!AY$6","v":2.056953181097013E-2},{"$f":"'Population 2016'!AZ126/'Population 2016'!AZ$6","v":1.9553022724024583E-2},{"$f":"'Population 2016'!BA126/'Population 2016'!BA$6","v":1.8468710776403083E-2},{"$f":"'Population 2016'!BB126/'Population 2016'!BB$6","v":2.712424654870698E-2},{"$f":"'Population 2016'!BC126/'Population 2016'!BC$6","v":4.3262150220913106E-2},124]
[null,"Male 50-54",{"$f":"'Population 2016'!C127/'Population 2016'!C$6","v":2.524564297496952E-2},{"$f":"'Population 2016'!D127/'Population 2016'!D$6","v":2.7005466481835064E-2},{"$f":"'Population 2016'!E127/'Population 2016'!E$6","v":3.1748332850101479E-2},{"$f":"'Population 2016'!F127/'Population 2016'!F$6","v":2.8866960962520557E-2},{"$f":"'Population 2016'!G127/'Population 2016'!G$6","v":2.8657785738273815E-2},{"$f":"'Population 2016'!H127/'Population 2016'!H$6","v":2.0308018865112062E-2},{"$f":"'Population 2016'!I127/'Population 2016'!I$6","v":3.3650577838205305E-2},{"$f":"'Population 2016'!J127/'Population 2016'!J$6","v":2.2929428055105727E-2},{"$f":"'Population 2016'!K127/'Population 2016'!K$6","v":2.3678204640547738E-2},{"$f":"'Population 2016'!L127/'Population 2016'!L$6","v":3.5353535353535352E-2},{"$f":"'Population 2016'!M127/'Population 2016'!M$6","v":3.5353535353535352E-2},{"$f":"'Population 2016'!N127/'Population 2016'!N$6","v":1.2468937934685115E-2},{"$f":"'Population 2016'!O127/'Population 2016'!O$6","v":2.1201292007422171E-2},{"$f":"'Population 2016'!P127/'Population 2016'!P$6","v":3.8378178358090605E-2},{"$f":"'Population 2016'!Q127/'Population 2016'!Q$6","v":3.8947044334975367E-2},{"$f":"'Population 2016'!R127/'Population 2016'!R$6","v":2.9195834044732798E-2},{"$f":"'Population 2016'!S127/'Population 2016'!S$6","v":2.482665011205926E-2},{"$f":"'Population 2016'!T127/'Population 2016'!T$6","v":1.8998170983538853E-2},{"$f":"'Population 2016'!U127/'Population 2016'!U$6","v":4.7680412371134018E-2},{"$f":"'Population 2016'!V127/'Population 2016'!V$6","v":2.9376414027149321E-2},{"$f":"'Population 2016'!W127/'Population 2016'!W$6","v":2.2433160621761657E-2},{"$f":"'Population 2016'!X127/'Population 2016'!X$6","v":2.2433160621761657E-2},{"$f":"'Population 2016'!Y127/'Population 2016'!Y$6","v":2.6606845793214699E-2},{"$f":"'Population 2016'!Z127/'Population 2016'!Z$6","v":1.0484549644388138E-2},{"$f":"'Population 2016'!AA127/'Population 2016'!AA$6","v":1.6908203503377767E-2},{"$f":"'Population 2016'!AB127/'Population 2016'!AB$6","v":2.8821998923380585E-2},{"$f":"'Population 2016'!AC127/'Population 2016'!AC$6","v":1.3683067932911339E-2},{"$f":"'Population 2016'!AD127/'Population 2016'!AD$6","v":3.1438166674063885E-2},{"$f":"'Population 2016'!AE127/'Population 2016'!AE$6","v":3.2437106602047176E-2},{"$f":"'Population 2016'!AF127/'Population 2016'!AF$6","v":1.1588671313198363E-2},{"$f":"'Population 2016'!AG127/'Population 2016'!AG$6","v":3.2437106602047176E-2},{"$f":"'Population 2016'!AH127/'Population 2016'!AH$6","v":2.2704785346428034E-2},{"$f":"'Population 2016'!AI127/'Population 2016'!AI$6","v":2.5274444728108247E-2},{"$f":"'Population 2016'!AJ127/'Population 2016'!AJ$6","v":3.4116708596674233E-2},{"$f":"'Population 2016'!AK127/'Population 2016'!AK$6","v":3.9757518501023457E-2},{"$f":"'Population 2016'!AL127/'Population 2016'!AL$6","v":1.4893113045537988E-2},{"$f":"'Population 2016'!AM127/'Population 2016'!AM$6","v":2.060761346998536E-2},{"$f":"'Population 2016'!AN127/'Population 2016'!AN$6","v":4.5751633986928102E-2},{"$f":"'Population 2016'!AO127/'Population 2016'!AO$6","v":4.5751633986928102E-2},{"$f":"'Population 2016'!AP127/'Population 2016'!AP$6","v":2.8890915198924991E-2},{"$f":"'Population 2016'!AQ127/'Population 2016'!AQ$6","v":1.6486347243688821E-2},{"$f":"'Population 2016'!AR127/'Population 2016'!AR$6","v":2.1375530869863549E-2},{"$f":"'Population 2016'!AS127/'Population 2016'!AS$6","v":3.3650577838205305E-2},{"$f":"'Population 2016'!AT127/'Population 2016'!AT$6","v":5.7233704292527825E-2},{"$f":"'Population 2016'!AU127/'Population 2016'!AU$6","v":5.7233704292527825E-2},{"$f":"'Population 2016'!AV127/'Population 2016'!AV$6","v":2.7785058977719528E-2},{"$f":"'Population 2016'!AW127/'Population 2016'!AW$6","v":2.5520274531322943E-2},{"$f":"'Population 2016'!AX127/'Population 2016'!AX$6","v":2.2199564350929232E-2},{"$f":"'Population 2016'!AY127/'Population 2016'!AY$6","v":2.0737218211603039E-2},{"$f":"'Population 2016'!AZ127/'Population 2016'!AZ$6","v":1.890988995283693E-2},{"$f":"'Population 2016'!BA127/'Population 2016'!BA$6","v":1.9444942521865599E-2},{"$f":"'Population 2016'!BB127/'Population 2016'!BB$6","v":2.6913604251733749E-2},{"$f":"'Population 2016'!BC127/'Population 2016'!BC$6","v":4.7680412371134018E-2},125]
[null,"Male 55-59",{"$f":"'Population 2016'!C128/'Population 2016'!C$6","v":2.4833249659327261E-2},{"$f":"'Population 2016'!D128/'Population 2016'!D$6","v":2.6573902126435279E-2},{"$f":"'Population 2016'!E128/'Population 2016'!E$6","v":3.1265100995457623E-2},{"$f":"'Population 2016'!F128/'Population 2016'!F$6","v":2.4365965550073573E-2},{"$f":"'Population 2016'!G128/'Population 2016'!G$6","v":3.0336952871375798E-2},{"$f":"'Population 2016'!H128/'Population 2016'!H$6","v":1.8781638116589255E-2},{"$f":"'Population 2016'!I128/'Population 2016'!I$6","v":3.2582305525881324E-2},{"$f":"'Population 2016'!J128/'Population 2016'!J$6","v":2.1380459527329906E-2},{"$f":"'Population 2016'!K128/'Population 2016'!K$6","v":2.1300874857360211E-2},{"$f":"'Population 2016'!L128/'Population 2016'!L$6","v":3.4191472244569587E-2},{"$f":"'Population 2016'!M128/'Population 2016'!M$6","v":3.4191472244569587E-2},{"$f":"'Population 2016'!N128/'Population 2016'!N$6","v":1.1586701760061168E-2},{"$f":"'Population 2016'!O128/'Population 2016'!O$6","v":1.9517558930657687E-2},{"$f":"'Population 2016'!P128/'Population 2016'!P$6","v":3.2880477877041812E-2},{"$f":"'Population 2016'!Q128/'Population 2016'!Q$6","v":3.6560960591133007E-2},{"$f":"'Population 2016'!R128/'Population 2016'!R$6","v":2.4073757896534063E-2},{"$f":"'Population 2016'!S128/'Population 2016'!S$6","v":2.2669640884268562E-2},{"$f":"'Population 2016'!T128/'Population 2016'!T$6","v":1.6326289793751E-2},{"$f":"'Population 2016'!U128/'Population 2016'!U$6","v":4.731222385861561E-2},{"$f":"'Population 2016'!V128/'Population 2016'!V$6","v":2.6813489819004523E-2},{"$f":"'Population 2016'!W128/'Population 2016'!W$6","v":2.0907772020725388E-2},{"$f":"'Population 2016'!X128/'Population 2016'!X$6","v":2.0907772020725388E-2},{"$f":"'Population 2016'!Y128/'Population 2016'!Y$6","v":2.4479507990119474E-2},{"$f":"'Population 2016'!Z128/'Population 2016'!Z$6","v":9.4151316568991134E-3},{"$f":"'Population 2016'!AA128/'Population 2016'!AA$6","v":1.5574595199260079E-2},{"$f":"'Population 2016'!AB128/'Population 2016'!AB$6","v":2.8025749147676297E-2},{"$f":"'Population 2016'!AC128/'Population 2016'!AC$6","v":1.2432255780386176E-2},{"$f":"'Population 2016'!AD128/'Population 2016'!AD$6","v":3.093515600727886E-2},{"$f":"'Population 2016'!AE128/'Population 2016'!AE$6","v":3.1150079433708046E-2},{"$f":"'Population 2016'!AF128/'Population 2016'!AF$6","v":1.0537670096249585E-2},{"$f":"'Population 2016'!AG128/'Population 2016'!AG$6","v":3.1150079433708046E-2},{"$f":"'Population 2016'!AH128/'Population 2016'!AH$6","v":2.1222366346291679E-2},{"$f":"'Population 2016'!AI128/'Population 2016'!AI$6","v":2.2704729698623485E-2},{"$f":"'Population 2016'!AJ128/'Population 2016'!AJ$6","v":3.2183837516107261E-2},{"$f":"'Population 2016'!AK128/'Population 2016'!AK$6","v":3.6765863643520705E-2},{"$f":"'Population 2016'!AL128/'Population 2016'!AL$6","v":1.353111861195002E-2},{"$f":"'Population 2016'!AM128/'Population 2016'!AM$6","v":1.8557833089311859E-2},{"$f":"'Population 2016'!AN128/'Population 2016'!AN$6","v":4.2291426374471357E-2},{"$f":"'Population 2016'!AO128/'Population 2016'!AO$6","v":4.2291426374471357E-2},{"$f":"'Population 2016'!AP128/'Population 2016'!AP$6","v":2.4715650045591977E-2},{"$f":"'Population 2016'!AQ128/'Population 2016'!AQ$6","v":1.5529550305439023E-2},{"$f":"'Population 2016'!AR128/'Population 2016'!AR$6","v":1.9802562192457213E-2},{"$f":"'Population 2016'!AS128/'Population 2016'!AS$6","v":3.2582305525881324E-2},{"$f":"'Population 2016'!AT128/'Population 2016'!AT$6","v":4.133545310015898E-2},{"$f":"'Population 2016'!AU128/'Population 2016'!AU$6","v":4.133545310015898E-2},{"$f":"'Population 2016'!AV128/'Population 2016'!AV$6","v":2.621231979030144E-2},{"$f":"'Population 2016'!AW128/'Population 2016'!AW$6","v":2.4799547907845273E-2},{"$f":"'Population 2016'!AX128/'Population 2016'!AX$6","v":2.1458034017704037E-2},{"$f":"'Population 2016'!AY128/'Population 2016'!AY$6","v":1.8866869896851365E-2},{"$f":"'Population 2016'!AZ128/'Population 2016'!AZ$6","v":1.6667857653279976E-2},{"$f":"'Population 2016'!BA128/'Population 2016'!BA$6","v":1.8966788197557427E-2},{"$f":"'Population 2016'!BB128/'Population 2016'!BB$6","v":2.4126644630241754E-2},{"$f":"'Population 2016'!BC128/'Population 2016'!BC$6","v":4.731222385861561E-2},126]
[null,"Male 60-64",{"$f":"'Population 2016'!C129/'Population 2016'!C$6","v":2.0314853331420784E-2},{"$f":"'Population 2016'!D129/'Population 2016'!D$6","v":2.1931315878952737E-2},{"$f":"'Population 2016'!E129/'Population 2016'!E$6","v":2.6287812892625884E-2},{"$f":"'Population 2016'!F129/'Population 2016'!F$6","v":2.4236129143945295E-2},{"$f":"'Population 2016'!G129/'Population 2016'!G$6","v":2.8265980073883354E-2},{"$f":"'Population 2016'!H129/'Population 2016'!H$6","v":1.6492066993805041E-2},{"$f":"'Population 2016'!I129/'Population 2016'!I$6","v":3.1174128386908809E-2},{"$f":"'Population 2016'!J129/'Population 2016'!J$6","v":1.7977422610246662E-2},{"$f":"'Population 2016'!K129/'Population 2016'!K$6","v":1.9589197413465195E-2},{"$f":"'Population 2016'!L129/'Population 2016'!L$6","v":3.0928756592473405E-2},{"$f":"'Population 2016'!M129/'Population 2016'!M$6","v":3.0928756592473405E-2},{"$f":"'Population 2016'!N129/'Population 2016'!N$6","v":9.6310782396447532E-3},{"$f":"'Population 2016'!O129/'Population 2016'!O$6","v":1.6373445124046457E-2},{"$f":"'Population 2016'!P129/'Population 2016'!P$6","v":2.6008352275730826E-2},{"$f":"'Population 2016'!Q129/'Population 2016'!Q$6","v":2.8825431034482759E-2},{"$f":"'Population 2016'!R129/'Population 2016'!R$6","v":2.1939559501451256E-2},{"$f":"'Population 2016'!S129/'Population 2016'!S$6","v":1.929734109155189E-2},{"$f":"'Population 2016'!T129/'Population 2016'!T$6","v":1.2929544937333007E-2},{"$f":"'Population 2016'!U129/'Population 2016'!U$6","v":4.7680412371134018E-2},{"$f":"'Population 2016'!V129/'Population 2016'!V$6","v":2.2076498868778282E-2},{"$f":"'Population 2016'!W129/'Population 2016'!W$6","v":1.8818652849740932E-2},{"$f":"'Population 2016'!X129/'Population 2016'!X$6","v":1.8818652849740932E-2},{"$f":"'Population 2016'!Y129/'Population 2016'!Y$6","v":2.0315571911075265E-2},{"$f":"'Population 2016'!Z129/'Population 2016'!Z$6","v":7.4950402702710917E-3},{"$f":"'Population 2016'!AA129/'Population 2016'!AA$6","v":1.3089859202459739E-2},{"$f":"'Population 2016'!AB129/'Population 2016'!AB$6","v":2.300152521083797E-2},{"$f":"'Population 2016'!AC129/'Population 2016'!AC$6","v":1.0123213750763521E-2},{"$f":"'Population 2016'!AD129/'Population 2016'!AD$6","v":2.7798736555560487E-2},{"$f":"'Population 2016'!AE129/'Population 2016'!AE$6","v":2.7630864520280733E-2},{"$f":"'Population 2016'!AF129/'Population 2016'!AF$6","v":7.9378249806394512E-3},{"$f":"'Population 2016'!AG129/'Population 2016'!AG$6","v":2.7630864520280733E-2},{"$f":"'Population 2016'!AH129/'Population 2016'!AH$6","v":1.8421853093675594E-2},{"$f":"'Population 2016'!AI129/'Population 2016'!AI$6","v":1.8515340863909734E-2},{"$f":"'Population 2016'!AJ129/'Population 2016'!AJ$6","v":2.8256734368288641E-2},{"$f":"'Population 2016'!AK129/'Population 2016'!AK$6","v":2.9444182018579752E-2},{"$f":"'Population 2016'!AL129/'Population 2016'!AL$6","v":1.2539231361402262E-2},{"$f":"'Population 2016'!AM129/'Population 2016'!AM$6","v":1.6642264519277698E-2},{"$f":"'Population 2016'!AN129/'Population 2016'!AN$6","v":4.1906958861976165E-2},{"$f":"'Population 2016'!AO129/'Population 2016'!AO$6","v":4.1906958861976165E-2},{"$f":"'Population 2016'!AP129/'Population 2016'!AP$6","v":2.2652013245668762E-2},{"$f":"'Population 2016'!AQ129/'Population 2016'!AQ$6","v":1.3586516523147126E-2},{"$f":"'Population 2016'!AR129/'Population 2016'!AR$6","v":1.6944879967172827E-2},{"$f":"'Population 2016'!AS129/'Population 2016'!AS$6","v":3.1174128386908809E-2},{"$f":"'Population 2016'!AT129/'Population 2016'!AT$6","v":3.3386327503974564E-2},{"$f":"'Population 2016'!AU129/'Population 2016'!AU$6","v":3.3386327503974564E-2},{"$f":"'Population 2016'!AV129/'Population 2016'!AV$6","v":2.3019182652210174E-2},{"$f":"'Population 2016'!AW129/'Population 2016'!AW$6","v":2.0810981252917714E-2},{"$f":"'Population 2016'!AX129/'Population 2016'!AX$6","v":1.6406358622607406E-2},{"$f":"'Population 2016'!AY129/'Population 2016'!AY$6","v":1.7013720187292809E-2},{"$f":"'Population 2016'!AZ129/'Population 2016'!AZ$6","v":1.5068958124910676E-2},{"$f":"'Population 2016'!BA129/'Population 2016'!BA$6","v":1.5500169346323192E-2},{"$f":"'Population 2016'!BB129/'Population 2016'!BB$6","v":1.9767969408257178E-2},{"$f":"'Population 2016'!BC129/'Population 2016'!BC$6","v":4.7680412371134018E-2},127]
[null,"Male 65-69",{"$f":"'Population 2016'!C130/'Population 2016'!C$6","v":1.8539769059743239E-2},{"$f":"'Population 2016'!D130/'Population 2016'!D$6","v":2.1839771924777027E-2},{"$f":"'Population 2016'!E130/'Population 2016'!E$6","v":3.0733545955349377E-2},{"$f":"'Population 2016'!F130/'Population 2016'!F$6","v":2.5880723621570154E-2},{"$f":"'Population 2016'!G130/'Population 2016'!G$6","v":3.0616814060226129E-2},{"$f":"'Population 2016'!H130/'Population 2016'!H$6","v":1.7589153156805811E-2},{"$f":"'Population 2016'!I130/'Population 2016'!I$6","v":3.2096727202097698E-2},{"$f":"'Population 2016'!J130/'Population 2016'!J$6","v":1.8775376094252387E-2},{"$f":"'Population 2016'!K130/'Population 2016'!K$6","v":1.9208824648155192E-2},{"$f":"'Population 2016'!L130/'Population 2016'!L$6","v":3.4347903816930363E-2},{"$f":"'Population 2016'!M130/'Population 2016'!M$6","v":3.4347903816930363E-2},{"$f":"'Population 2016'!N130/'Population 2016'!N$6","v":1.0704465585437221E-2},{"$f":"'Population 2016'!O130/'Population 2016'!O$6","v":1.6476530822623875E-2},{"$f":"'Population 2016'!P130/'Population 2016'!P$6","v":2.3418089549082834E-2},{"$f":"'Population 2016'!Q130/'Population 2016'!Q$6","v":2.9441194581280788E-2},{"$f":"'Population 2016'!R130/'Population 2016'!R$6","v":1.7244323032269079E-2},{"$f":"'Population 2016'!S130/'Population 2016'!S$6","v":1.9347320573659236E-2},{"$f":"'Population 2016'!T130/'Population 2016'!T$6","v":1.1951821852110954E-2},{"$f":"'Population 2016'!U130/'Population 2016'!U$6","v":4.6944035346097202E-2},{"$f":"'Population 2016'!V130/'Population 2016'!V$6","v":2.4710124434389139E-2},{"$f":"'Population 2016'!W130/'Population 2016'!W$6","v":1.9490155440414509E-2},{"$f":"'Population 2016'!X130/'Population 2016'!X$6","v":1.9490155440414509E-2},{"$f":"'Population 2016'!Y130/'Population 2016'!Y$6","v":2.2160608963048847E-2},{"$f":"'Population 2016'!Z130/'Population 2016'!Z$6","v":6.2220682908452349E-3},{"$f":"'Population 2016'!AA130/'Population 2016'!AA$6","v":1.1837492266446691E-2},{"$f":"'Population 2016'!AB130/'Population 2016'!AB$6","v":2.303516956755787E-2},{"$f":"'Population 2016'!AC130/'Population 2016'!AC$6","v":8.7712472717510984E-3},{"$f":"'Population 2016'!AD130/'Population 2016'!AD$6","v":2.9633246046188215E-2},{"$f":"'Population 2016'!AE130/'Population 2016'!AE$6","v":2.9279868079715245E-2},{"$f":"'Population 2016'!AF130/'Population 2016'!AF$6","v":7.4952981524504924E-3},{"$f":"'Population 2016'!AG130/'Population 2016'!AG$6","v":2.9279868079715245E-2},{"$f":"'Population 2016'!AH130/'Population 2016'!AH$6","v":1.7348497827067433E-2},{"$f":"'Population 2016'!AI130/'Population 2016'!AI$6","v":1.8176339369792037E-2},{"$f":"'Population 2016'!AJ130/'Population 2016'!AJ$6","v":2.7029514634595325E-2},{"$f":"'Population 2016'!AK130/'Population 2016'!AK$6","v":3.0231459612659425E-2},{"$f":"'Population 2016'!AL130/'Population 2016'!AL$6","v":1.3072185704980163E-2},{"$f":"'Population 2016'!AM130/'Population 2016'!AM$6","v":1.5623474865788189E-2},{"$f":"'Population 2016'!AN130/'Population 2016'!AN$6","v":4.6520569011918492E-2},{"$f":"'Population 2016'!AO130/'Population 2016'!AO$6","v":4.6520569011918492E-2},{"$f":"'Population 2016'!AP130/'Population 2016'!AP$6","v":2.0828334213178482E-2},{"$f":"'Population 2016'!AQ130/'Population 2016'!AQ$6","v":1.2394200338558916E-2},{"$f":"'Population 2016'!AR130/'Population 2016'!AR$6","v":1.6801882814681344E-2},{"$f":"'Population 2016'!AS130/'Population 2016'!AS$6","v":3.2096727202097698E-2},{"$f":"'Population 2016'!AT130/'Population 2016'!AT$6","v":3.6565977742448331E-2},{"$f":"'Population 2016'!AU130/'Population 2016'!AU$6","v":3.6565977742448331E-2},{"$f":"'Population 2016'!AV130/'Population 2016'!AV$6","v":2.6402954843321814E-2},{"$f":"'Population 2016'!AW130/'Population 2016'!AW$6","v":1.9664370715566877E-2},{"$f":"'Population 2016'!AX130/'Population 2016'!AX$6","v":1.8352875747323538E-2},{"$f":"'Population 2016'!AY130/'Population 2016'!AY$6","v":1.7675866487227885E-2},{"$f":"'Population 2016'!AZ130/'Population 2016'!AZ$6","v":1.5721023295698158E-2},{"$f":"'Population 2016'!BA130/'Population 2016'!BA$6","v":1.4005937082860159E-2},{"$f":"'Population 2016'!BB130/'Population 2016'!BB$6","v":2.0723961371443386E-2},{"$f":"'Population 2016'!BC130/'Population 2016'!BC$6","v":4.6944035346097202E-2},128]
[null,"Male 70-74",{"$f":"'Population 2016'!C131/'Population 2016'!C$6","v":1.204905687441727E-2},{"$f":"'Population 2016'!D131/'Population 2016'!D$6","v":1.4424711636544347E-2},{"$f":"'Population 2016'!E131/'Population 2016'!E$6","v":2.0827292935150284E-2},{"$f":"'Population 2016'!F131/'Population 2016'!F$6","v":1.757119362936034E-2},{"$f":"'Population 2016'!G131/'Population 2016'!G$6","v":2.4235978954438599E-2},{"$f":"'Population 2016'!H131/'Population 2016'!H$6","v":1.299212363684063E-2},{"$f":"'Population 2016'!I131/'Population 2016'!I$6","v":2.3016412547343885E-2},{"$f":"'Population 2016'!J131/'Population 2016'!J$6","v":1.2462155882560022E-2},{"$f":"'Population 2016'!K131/'Population 2016'!K$6","v":1.3645872955496387E-2},{"$f":"'Population 2016'!L131/'Population 2016'!L$6","v":2.5945293644408687E-2},{"$f":"'Population 2016'!M131/'Population 2016'!M$6","v":2.5945293644408687E-2},{"$f":"'Population 2016'!N131/'Population 2016'!N$6","v":7.3225602493787586E-3},{"$f":"'Population 2016'!O131/'Population 2016'!O$6","v":1.2404645728815888E-2},{"$f":"'Population 2016'!P131/'Population 2016'!P$6","v":1.6863138975524661E-2},{"$f":"'Population 2016'!Q131/'Population 2016'!Q$6","v":2.1012931034482759E-2},{"$f":"'Population 2016'!R131/'Population 2016'!R$6","v":1.0329520232200785E-2},{"$f":"'Population 2016'!S131/'Population 2016'!S$6","v":1.4254674396826567E-2},{"$f":"'Population 2016'!T131/'Population 2016'!T$6","v":8.6899353522753141E-3},{"$f":"'Population 2016'!U131/'Population 2016'!U$6","v":3.0007363770250369E-2},{"$f":"'Population 2016'!V131/'Population 2016'!V$6","v":1.7321832579185521E-2},{"$f":"'Population 2016'!W131/'Population 2016'!W$6","v":1.4026943005181347E-2},{"$f":"'Population 2016'!X131/'Population 2016'!X$6","v":1.4026943005181347E-2},{"$f":"'Population 2016'!Y131/'Population 2016'!Y$6","v":1.5234158390885719E-2},{"$f":"'Population 2016'!Z131/'Population 2016'!Z$6","v":4.6057888324811409E-3},{"$f":"'Population 2016'!AA131/'Population 2016'!AA$6","v":9.2402682215014659E-3},{"$f":"'Population 2016'!AB131/'Population 2016'!AB$6","v":1.5711914588193075E-2},{"$f":"'Population 2016'!AC131/'Population 2016'!AC$6","v":6.7423249154777787E-3},{"$f":"'Population 2016'!AD131/'Population 2016'!AD$6","v":2.2310002515053332E-2},{"$f":"'Population 2016'!AE131/'Population 2016'!AE$6","v":2.1618034468196351E-2},{"$f":"'Population 2016'!AF131/'Population 2016'!AF$6","v":5.9741121805509459E-3},{"$f":"'Population 2016'!AG131/'Population 2016'!AG$6","v":2.1618034468196351E-2},{"$f":"'Population 2016'!AH131/'Population 2016'!AH$6","v":1.3729857107394963E-2},{"$f":"'Population 2016'!AI131/'Population 2016'!AI$6","v":1.3614467411911926E-2},{"$f":"'Population 2016'!AJ131/'Population 2016'!AJ$6","v":2.0862735472786404E-2},{"$f":"'Population 2016'!AK131/'Population 2016'!AK$6","v":2.3460872303574239E-2},{"$f":"'Population 2016'!AL131/'Population 2016'!AL$6","v":9.0306152661810864E-3},{"$f":"'Population 2016'!AM131/'Population 2016'!AM$6","v":1.2231576378721328E-2},{"$f":"'Population 2016'!AN131/'Population 2016'!AN$6","v":3.767781622452903E-2},{"$f":"'Population 2016'!AO131/'Population 2016'!AO$6","v":3.767781622452903E-2},{"$f":"'Population 2016'!AP131/'Population 2016'!AP$6","v":1.3965542064596631E-2},{"$f":"'Population 2016'!AQ131/'Population 2016'!AQ$6","v":1.0362846838890116E-2},{"$f":"'Population 2016'!AR131/'Population 2016'!AR$6","v":1.2463925718348739E-2},{"$f":"'Population 2016'!AS131/'Population 2016'!AS$6","v":2.3016412547343885E-2},{"$f":"'Population 2016'!AT131/'Population 2016'!AT$6","v":3.8155802861685212E-2},{"$f":"'Population 2016'!AU131/'Population 2016'!AU$6","v":3.8155802861685212E-2},{"$f":"'Population 2016'!AV131/'Population 2016'!AV$6","v":2.0183486238532111E-2},{"$f":"'Population 2016'!AW131/'Population 2016'!AW$6","v":1.5741324662773649E-2},{"$f":"'Population 2016'!AX131/'Population 2016'!AX$6","v":1.1308337581684201E-2},{"$f":"'Population 2016'!AY131/'Population 2016'!AY$6","v":1.2413093298133521E-2},{"$f":"'Population 2016'!AZ131/'Population 2016'!AZ$6","v":1.0674217521795055E-2},{"$f":"'Population 2016'!BA131/'Population 2016'!BA$6","v":1.1754627139242524E-2},{"$f":"'Population 2016'!BB131/'Population 2016'!BB$6","v":1.6138440598872254E-2},{"$f":"'Population 2016'!BC131/'Population 2016'!BC$6","v":3.0007363770250369E-2},129]
[null,"Male 75-79",{"$f":"'Population 2016'!C132/'Population 2016'!C$6","v":1.000502044036434E-2},{"$f":"'Population 2016'!D132/'Population 2016'!D$6","v":1.1560693641618497E-2},{"$f":"'Population 2016'!E132/'Population 2016'!E$6","v":1.5753358461389776E-2},{"$f":"'Population 2016'!F132/'Population 2016'!F$6","v":1.3113477018956115E-2},{"$f":"'Population 2016'!G132/'Population 2016'!G$6","v":1.7967088324191201E-2},{"$f":"'Population 2016'!H132/'Population 2016'!H$6","v":9.9751366885885151E-3},{"$f":"'Population 2016'!I132/'Population 2016'!I$6","v":1.6995241332426921E-2},{"$f":"'Population 2016'!J132/'Population 2016'!J$6","v":9.92748010983595E-3},{"$f":"'Population 2016'!K132/'Population 2016'!K$6","v":1.0174971472042603E-2},{"$f":"'Population 2016'!L132/'Population 2016'!L$6","v":2.0537230714221866E-2},{"$f":"'Population 2016'!M132/'Population 2016'!M$6","v":2.0537230714221866E-2},{"$f":"'Population 2016'!N132/'Population 2016'!N$6","v":6.5579555647046718E-3},{"$f":"'Population 2016'!O132/'Population 2016'!O$6","v":9.8790461136691633E-3},{"$f":"'Population 2016'!P132/'Population 2016'!P$6","v":1.4907226304382301E-2},{"$f":"'Population 2016'!Q132/'Population 2016'!Q$6","v":1.7818657635467982E-2},{"$f":"'Population 2016'!R132/'Population 2016'!R$6","v":8.366057708724603E-3},{"$f":"'Population 2016'!S132/'Population 2016'!S$6","v":1.0600911204873789E-2},{"$f":"'Population 2016'!T132/'Population 2016'!T$6","v":6.3214854647977549E-3},{"$f":"'Population 2016'!U132/'Population 2016'!U$6","v":2.6693667157584682E-2},{"$f":"'Population 2016'!V132/'Population 2016'!V$6","v":1.2814621040723981E-2},{"$f":"'Population 2016'!W132/'Population 2016'!W$6","v":1.0578238341968912E-2},{"$f":"'Population 2016'!X132/'Population 2016'!X$6","v":1.0578238341968912E-2},{"$f":"'Population 2016'!Y132/'Population 2016'!Y$6","v":1.1574330795987296E-2},{"$f":"'Population 2016'!Z132/'Population 2016'!Z$6","v":3.4361129086650198E-3},{"$f":"'Population 2016'!AA132/'Population 2016'!AA$6","v":6.9417624377409899E-3},{"$f":"'Population 2016'!AB132/'Population 2016'!AB$6","v":1.2235331060470124E-2},{"$f":"'Population 2016'!AC132/'Population 2016'!AC$6","v":5.215283640622021E-3},{"$f":"'Population 2016'!AD132/'Population 2016'!AD$6","v":1.5770863846848046E-2},{"$f":"'Population 2016'!AE132/'Population 2016'!AE$6","v":1.4981800631447705E-2},{"$f":"'Population 2016'!AF132/'Population 2016'!AF$6","v":4.20400486779511E-3},{"$f":"'Population 2016'!AG132/'Population 2016'!AG$6","v":1.4981800631447705E-2},{"$f":"'Population 2016'!AH132/'Population 2016'!AH$6","v":1.0044787234414498E-2},{"$f":"'Population 2016'!AI132/'Population 2016'!AI$6","v":1.006122952912274E-2},{"$f":"'Population 2016'!AJ132/'Population 2016'!AJ$6","v":1.4481192857581151E-2},{"$f":"'Population 2016'!AK132/'Population 2016'!AK$6","v":1.6296646197449222E-2},{"$f":"'Population 2016'!AL132/'Population 2016'!AL$6","v":6.9284064665127024E-3},{"$f":"'Population 2016'!AM132/'Population 2016'!AM$6","v":9.0836993655441685E-3},{"$f":"'Population 2016'!AN132/'Population 2016'!AN$6","v":3.1141868512110725E-2},{"$f":"'Population 2016'!AO132/'Population 2016'!AO$6","v":3.1141868512110725E-2},{"$f":"'Population 2016'!AP132/'Population 2016'!AP$6","v":1.1086048855401449E-2},{"$f":"'Population 2016'!AQ132/'Population 2016'!AQ$6","v":8.6700522558327813E-3},{"$f":"'Population 2016'!AR132/'Population 2016'!AR$6","v":9.436116446029031E-3},{"$f":"'Population 2016'!AS132/'Population 2016'!AS$6","v":1.6995241332426921E-2},{"$f":"'Population 2016'!AT132/'Population 2016'!AT$6","v":1.2718600953895072E-2},{"$f":"'Population 2016'!AU132/'Population 2016'!AU$6","v":1.2718600953895072E-2},{"$f":"'Population 2016'!AV132/'Population 2016'!AV$6","v":1.5012510425354461E-2},{"$f":"'Population 2016'!AW132/'Population 2016'!AW$6","v":1.1335064169239715E-2},{"$f":"'Population 2016'!AX132/'Population 2016'!AX$6","v":9.6862399777540905E-3},{"$f":"'Population 2016'!AY132/'Population 2016'!AY$6","v":9.7000133289190243E-3},{"$f":"'Population 2016'!AZ132/'Population 2016'!AZ$6","v":8.7537516078319277E-3},{"$f":"'Population 2016'!BA132/'Population 2016'!BA$6","v":8.5470085470085479E-3},{"$f":"'Population 2016'!BB132/'Population 2016'!BB$6","v":1.1650139347981075E-2},{"$f":"'Population 2016'!BC132/'Population 2016'!BC$6","v":2.6693667157584682E-2},130]
[null,"Male 80-84",{"$f":"'Population 2016'!C133/'Population 2016'!C$6","v":8.0864950154199231E-3},{"$f":"'Population 2016'!D133/'Population 2016'!D$6","v":9.4028718646195688E-3},{"$f":"'Population 2016'!E133/'Population 2016'!E$6","v":1.2950613704455398E-2},{"$f":"'Population 2016'!F133/'Population 2016'!F$6","v":9.8242880637063965E-3},{"$f":"'Population 2016'!G133/'Population 2016'!G$6","v":1.1810142169483936E-2},{"$f":"'Population 2016'!H133/'Population 2016'!H$6","v":6.1949593660749957E-3},{"$f":"'Population 2016'!I133/'Population 2016'!I$6","v":1.0731280955618141E-2},{"$f":"'Population 2016'!J133/'Population 2016'!J$6","v":6.3601586519279963E-3},{"$f":"'Population 2016'!K133/'Population 2016'!K$6","v":6.0384176492963102E-3},{"$f":"'Population 2016'!L133/'Population 2016'!L$6","v":1.3028515240904622E-2},{"$f":"'Population 2016'!M133/'Population 2016'!M$6","v":1.3028515240904622E-2},{"$f":"'Population 2016'!N133/'Population 2016'!N$6","v":4.3670690643885365E-3},{"$f":"'Population 2016'!O133/'Population 2016'!O$6","v":6.1335990653563332E-3},{"$f":"'Population 2016'!P133/'Population 2016'!P$6","v":1.0678225934344769E-2},{"$f":"'Population 2016'!Q133/'Population 2016'!Q$6","v":1.2469211822660099E-2},{"$f":"'Population 2016'!R133/'Population 2016'!R$6","v":7.0001707358716067E-3},{"$f":"'Population 2016'!S133/'Population 2016'!S$6","v":7.2075674196908635E-3},{"$f":"'Population 2016'!T133/'Population 2016'!T$6","v":4.6020414183727655E-3},{"$f":"'Population 2016'!U133/'Population 2016'!U$6","v":1.638438880706922E-2},{"$f":"'Population 2016'!V133/'Population 2016'!V$6","v":9.2795531674208145E-3},{"$f":"'Population 2016'!W133/'Population 2016'!W$6","v":7.2787564766839379E-3},{"$f":"'Population 2016'!X133/'Population 2016'!X$6","v":7.2787564766839379E-3},{"$f":"'Population 2016'!Y133/'Population 2016'!Y$6","v":8.0254070676009474E-3},{"$f":"'Population 2016'!Z133/'Population 2016'!Z$6","v":2.43049542611142E-3},{"$f":"'Population 2016'!AA133/'Population 2016'!AA$6","v":4.7582444365286188E-3},{"$f":"'Population 2016'!AB133/'Population 2016'!AB$6","v":9.7232190920509606E-3},{"$f":"'Population 2016'!AC133/'Population 2016'!AC$6","v":3.635719927013263E-3},{"$f":"'Population 2016'!AD133/'Population 2016'!AD$6","v":1.0311718669092954E-2},{"$f":"'Population 2016'!AE133/'Population 2016'!AE$6","v":9.7733625595752809E-3},{"$f":"'Population 2016'!AF133/'Population 2016'!AF$6","v":2.9593981635136629E-3},{"$f":"'Population 2016'!AG133/'Population 2016'!AG$6","v":9.7733625595752809E-3},{"$f":"'Population 2016'!AH133/'Population 2016'!AH$6","v":6.7757736374156963E-3},{"$f":"'Population 2016'!AI133/'Population 2016'!AI$6","v":6.8679191586066618E-3},{"$f":"'Population 2016'!AJ133/'Population 2016'!AJ$6","v":9.0200650426458858E-3},{"$f":"'Population 2016'!AK133/'Population 2016'!AK$6","v":1.1651708392379154E-2},{"$f":"'Population 2016'!AL133/'Population 2016'!AL$6","v":4.3228518979096346E-3},{"$f":"'Population 2016'!AM133/'Population 2016'!AM$6","v":6.1127379209370428E-3},{"$f":"'Population 2016'!AN133/'Population 2016'!AN$6","v":1.3456362937331795E-2},{"$f":"'Population 2016'!AO133/'Population 2016'!AO$6","v":1.3456362937331795E-2},{"$f":"'Population 2016'!AP133/'Population 2016'!AP$6","v":7.1987330229879541E-3},{"$f":"'Population 2016'!AQ133/'Population 2016'!AQ$6","v":6.0793405461102524E-3},{"$f":"'Population 2016'!AR133/'Population 2016'!AR$6","v":6.4054811430276732E-3},{"$f":"'Population 2016'!AS133/'Population 2016'!AS$6","v":1.0731280955618141E-2},{"$f":"'Population 2016'!AT133/'Population 2016'!AT$6","v":9.538950715421303E-3},{"$f":"'Population 2016'!AU133/'Population 2016'!AU$6","v":9.538950715421303E-3},{"$f":"'Population 2016'!AV133/'Population 2016'!AV$6","v":9.293458834743239E-3},{"$f":"'Population 2016'!AW133/'Population 2016'!AW$6","v":7.6659104497170333E-3},{"$f":"'Population 2016'!AX133/'Population 2016'!AX$6","v":6.6737729990267412E-3},{"$f":"'Population 2016'!AY133/'Population 2016'!AY$6","v":6.6730588149301094E-3},{"$f":"'Population 2016'!AZ133/'Population 2016'!AZ$6","v":6.0204373302844075E-3},{"$f":"'Population 2016'!BA133/'Population 2016'!BA$6","v":5.2796206642360486E-3},{"$f":"'Population 2016'!BB133/'Population 2016'!BB$6","v":7.7289519735562898E-3},{"$f":"'Population 2016'!BC133/'Population 2016'!BC$6","v":1.638438880706922E-2},131]
[null,"Male 85-89",{"$f":"'Population 2016'!C134/'Population 2016'!C$6","v":4.1418633005809368E-3},{"$f":"'Population 2016'!D134/'Population 2016'!D$6","v":4.3679543849554046E-3},{"$f":"'Population 2016'!E134/'Population 2016'!E$6","v":4.9772881028317386E-3},{"$f":"'Population 2016'!F134/'Population 2016'!F$6","v":5.2800138492166537E-3},{"$f":"'Population 2016'!G134/'Population 2016'!G$6","v":5.8211127280868693E-3},{"$f":"'Population 2016'!H134/'Population 2016'!H$6","v":3.2793336394044731E-3},{"$f":"'Population 2016'!I134/'Population 2016'!I$6","v":7.3322326891327571E-3},{"$f":"'Population 2016'!J134/'Population 2016'!J$6","v":2.9805909549625665E-3},{"$f":"'Population 2016'!K134/'Population 2016'!K$6","v":2.9478889311525293E-3},{"$f":"'Population 2016'!L134/'Population 2016'!L$6","v":6.346652364351479E-3},{"$f":"'Population 2016'!M134/'Population 2016'!M$6","v":6.346652364351479E-3},{"$f":"'Population 2016'!N134/'Population 2016'!N$6","v":2.1320707553412047E-3},{"$f":"'Population 2016'!O134/'Population 2016'!O$6","v":3.2815614047144526E-3},{"$f":"'Population 2016'!P134/'Population 2016'!P$6","v":6.0791880319289527E-3},{"$f":"'Population 2016'!Q134/'Population 2016'!Q$6","v":5.772783251231527E-3},{"$f":"'Population 2016'!R134/'Population 2016'!R$6","v":2.731773945705993E-3},{"$f":"'Population 2016'!S134/'Population 2016'!S$6","v":3.6011532107871505E-3},{"$f":"'Population 2016'!T134/'Population 2016'!T$6","v":2.2925920618999856E-3},{"$f":"'Population 2016'!U134/'Population 2016'!U$6","v":9.0206185567010301E-3},{"$f":"'Population 2016'!V134/'Population 2016'!V$6","v":4.4718608597285065E-3},{"$f":"'Population 2016'!W134/'Population 2016'!W$6","v":3.5647668393782384E-3},{"$f":"'Population 2016'!X134/'Population 2016'!X$6","v":3.5647668393782384E-3},{"$f":"'Population 2016'!Y134/'Population 2016'!Y$6","v":3.83122447950799E-3},{"$f":"'Population 2016'!Z134/'Population 2016'!Z$6","v":1.2030952359251528E-3},{"$f":"'Population 2016'!AA134/'Population 2016'!AA$6","v":2.2510108300993021E-3},{"$f":"'Population 2016'!AB134/'Population 2016'!AB$6","v":4.5532029427597341E-3},{"$f":"'Population 2016'!AC134/'Population 2016'!AC$6","v":1.7390763053771305E-3},{"$f":"'Population 2016'!AD134/'Population 2016'!AD$6","v":5.3851730208749424E-3},{"$f":"'Population 2016'!AE134/'Population 2016'!AE$6","v":5.2285478713777226E-3},{"$f":"'Population 2016'!AF134/'Population 2016'!AF$6","v":1.3552384113286868E-3},{"$f":"'Population 2016'!AG134/'Population 2016'!AG$6","v":5.2285478713777226E-3},{"$f":"'Population 2016'!AH134/'Population 2016'!AH$6","v":3.1711180026501736E-3},{"$f":"'Population 2016'!AI134/'Population 2016'!AI$6","v":3.2979404612931444E-3},{"$f":"'Population 2016'!AJ134/'Population 2016'!AJ$6","v":4.8168374547462719E-3},{"$f":"'Population 2016'!AK134/'Population 2016'!AK$6","v":5.6683986773736423E-3},{"$f":"'Population 2016'!AL134/'Population 2016'!AL$6","v":2.013383075738734E-3},{"$f":"'Population 2016'!AM134/'Population 2016'!AM$6","v":2.7269399707174229E-3},{"$f":"'Population 2016'!AN134/'Population 2016'!AN$6","v":6.1514801999231067E-3},{"$f":"'Population 2016'!AO134/'Population 2016'!AO$6","v":6.1514801999231067E-3},{"$f":"'Population 2016'!AP134/'Population 2016'!AP$6","v":3.887315832413495E-3},{"$f":"'Population 2016'!AQ134/'Population 2016'!AQ$6","v":2.5612718039302275E-3},{"$f":"'Population 2016'!AR134/'Population 2016'!AR$6","v":3.1470677670853335E-3},{"$f":"'Population 2016'!AS134/'Population 2016'!AS$6","v":7.3322326891327571E-3},{"$f":"'Population 2016'!AT134/'Population 2016'!AT$6","v":1.589825119236884E-3},{"$f":"'Population 2016'!AU134/'Population 2016'!AU$6","v":1.589825119236884E-3},{"$f":"'Population 2016'!AV134/'Population 2016'!AV$6","v":5.3139521029429287E-3},{"$f":"'Population 2016'!AW134/'Population 2016'!AW$6","v":3.767434622724183E-3},{"$f":"'Population 2016'!AX134/'Population 2016'!AX$6","v":3.0124669787273484E-3},{"$f":"'Population 2016'!AY134/'Population 2016'!AY$6","v":3.3451287100616138E-3},{"$f":"'Population 2016'!AZ134/'Population 2016'!AZ$6","v":3.1084750607403172E-3},{"$f":"'Population 2016'!BA134/'Population 2016'!BA$6","v":2.5501563963102425E-3},{"$f":"'Population 2016'!BB134/'Population 2016'!BB$6","v":3.3864800051850411E-3},{"$f":"'Population 2016'!BC134/'Population 2016'!BC$6","v":9.0206185567010301E-3},132]
[null,"Male 90+",{"$f":"'Population 2016'!C135/'Population 2016'!C$6","v":1.6675034067273901E-3},{"$f":"'Population 2016'!D135/'Population 2016'!D$6","v":1.9485784531687285E-3},{"$f":"'Population 2016'!E135/'Population 2016'!E$6","v":2.7060983860056056E-3},{"$f":"'Population 2016'!F135/'Population 2016'!F$6","v":2.9429585389076432E-3},{"$f":"'Population 2016'!G135/'Population 2016'!G$6","v":1.9590283219523118E-3},{"$f":"'Population 2016'!H135/'Population 2016'!H$6","v":1.2759589069682858E-3},{"$f":"'Population 2016'!I135/'Population 2016'!I$6","v":2.7192386131883071E-3},{"$f":"'Population 2016'!J135/'Population 2016'!J$6","v":8.6836114435917295E-4},{"$f":"'Population 2016'!K135/'Population 2016'!K$6","v":9.5093191327500946E-4},{"$f":"'Population 2016'!L135/'Population 2016'!L$6","v":2.7710735675337446E-3},{"$f":"'Population 2016'!M135/'Population 2016'!M$6","v":2.7710735675337446E-3},{"$f":"'Population 2016'!N135/'Population 2016'!N$6","v":9.8516372833007404E-4},{"$f":"'Population 2016'!O135/'Population 2016'!O$6","v":1.2026664834032025E-3},{"$f":"'Population 2016'!P135/'Population 2016'!P$6","v":3.3832002960300258E-3},{"$f":"'Population 2016'!Q135/'Population 2016'!Q$6","v":2.5785098522167487E-3},{"$f":"'Population 2016'!R135/'Population 2016'!R$6","v":1.4512549086563087E-3},{"$f":"'Population 2016'!S135/'Population 2016'!S$6","v":1.5730384368522396E-3},{"$f":"'Population 2016'!T135/'Population 2016'!T$6","v":1.2221538565275658E-3},{"$f":"'Population 2016'!U135/'Population 2016'!U$6","v":1.6568483063328424E-3},{"$f":"'Population 2016'!V135/'Population 2016'!V$6","v":1.6438065610859729E-3},{"$f":"'Population 2016'!W135/'Population 2016'!W$6","v":1.5917098445595854E-3},{"$f":"'Population 2016'!X135/'Population 2016'!X$6","v":1.5917098445595854E-3},{"$f":"'Population 2016'!Y135/'Population 2016'!Y$6","v":1.3106820587790492E-3},{"$f":"'Population 2016'!Z135/'Population 2016'!Z$6","v":4.9825156235284106E-4},{"$f":"'Population 2016'!AA135/'Population 2016'!AA$6","v":8.5740890030434262E-4},{"$f":"'Population 2016'!AB135/'Population 2016'!AB$6","v":2.018661403193971E-3},{"$f":"'Population 2016'!AC135/'Population 2016'!AC$6","v":7.2753304050452664E-4},{"$f":"'Population 2016'!AD135/'Population 2016'!AD$6","v":2.5298477653011406E-3},{"$f":"'Population 2016'!AE135/'Population 2016'!AE$6","v":2.7349327327206548E-3},{"$f":"'Population 2016'!AF135/'Population 2016'!AF$6","v":4.9784268171257882E-4},{"$f":"'Population 2016'!AG135/'Population 2016'!AG$6","v":2.7349327327206548E-3},{"$f":"'Population 2016'!AH135/'Population 2016'!AH$6","v":1.0908366227418459E-3},{"$f":"'Population 2016'!AI135/'Population 2016'!AI$6","v":1.4648212708789346E-3},{"$f":"'Population 2016'!AJ135/'Population 2016'!AJ$6","v":1.9635515739093085E-3},{"$f":"'Population 2016'!AK135/'Population 2016'!AK$6","v":2.4405605416469847E-3},{"$f":"'Population 2016'!AL135/'Population 2016'!AL$6","v":8.2904009001006696E-4},{"$f":"'Population 2016'!AM135/'Population 2016'!AM$6","v":9.0287945339189845E-4},{"$f":"'Population 2016'!AN135/'Population 2016'!AN$6","v":3.4602076124567475E-3},{"$f":"'Population 2016'!AO135/'Population 2016'!AO$6","v":3.4602076124567475E-3},{"$f":"'Population 2016'!AP135/'Population 2016'!AP$6","v":1.4397466045975907E-3},{"$f":"'Population 2016'!AQ135/'Population 2016'!AQ$6","v":1.0745565614190035E-3},{"$f":"'Population 2016'!AR135/'Population 2016'!AR$6","v":1.2920612276503362E-3},{"$f":"'Population 2016'!AS135/'Population 2016'!AS$6","v":2.7192386131883071E-3},{"$f":"'Population 2016'!AT135/'Population 2016'!AT$6","v":0},{"$f":"'Population 2016'!AU135/'Population 2016'!AU$6","v":0},{"$f":"'Population 2016'!AV135/'Population 2016'!AV$6","v":2.0969855832241153E-3},{"$f":"'Population 2016'!AW135/'Population 2016'!AW$6","v":1.3431723437538391E-3},{"$f":"'Population 2016'!AX135/'Population 2016'!AX$6","v":7.878759790517681E-4},{"$f":"'Population 2016'!AY135/'Population 2016'!AY$6","v":1.5349755134858563E-3},{"$f":"'Population 2016'!AZ135/'Population 2016'!AZ$6","v":1.4738459339717022E-3},{"$f":"'Population 2016'!BA135/'Population 2016'!BA$6","v":7.570776801546032E-4},{"$f":"'Population 2016'!BB135/'Population 2016'!BB$6","v":1.199040767386091E-3},{"$f":"'Population 2016'!BC135/'Population 2016'!BC$6","v":1.6568483063328424E-3},133]
["SIMD Q3","Female 0-4",0,0,0,0,0,0,0,0,0,0,0,0,0,0,0,0,0,0,0,0,0,0,0,0,0,0,0,0,0,0,0,0,0,0,0,0,0,0,0,0,0,0,0,0,0,0,0,0,0,0,0,0,0,134]
[null,"Female 5-9",0,0,0,0,0,0,0,0,0,0,0,0,0,0,0,0,0,0,0,0,0,0,0,0,0,0,0,0,0,0,0,0,0,0,0,0,0,0,0,0,0,0,0,0,0,0,0,0,0,0,0,0,0,135]
[null,"Female 10-15",0,0,0,0,0,0,0,0,0,0,0,0,0,0,0,0,0,0,0,0,0,0,0,0,0,0,0,0,0,0,0,0,0,0,0,0,0,0,0,0,0,0,0,0,0,0,0,0,0,0,0,0,0,136]
[null,"Female 16-19",0,0,0,0,0,0,0,0,0,0,0,0,0,0,0,0,0,0,0,0,0,0,0,0,0,0,0,0,0,0,0,0,0,0,0,0,0,0,0,0,0,0,0,0,0,0,0,0,0,0,0,0,0,137]
[null,"Female 20-24",0,0,0,0,0,0,0,0,0,0,0,0,0,0,0,0,0,0,0,0,0,0,0,0,0,0,0,0,0,0,0,0,0,0,0,0,0,0,0,0,0,0,0,0,0,0,0,0,0,0,0,0,0,138]
[null,"Female 25-29",0,0,0,0,0,0,0,0,0,0,0,0,0,0,0,0,0,0,0,0,0,0,0,0,0,0,0,0,0,0,0,0,0,0,0,0,0,0,0,0,0,0,0,0,0,0,0,0,0,0,0,0,0,139]
[null,"Female 30-34",0,0,0,0,0,0,0,0,0,0,0,0,0,0,0,0,0,0,0,0,0,0,0,0,0,0,0,0,0,0,0,0,0,0,0,0,0,0,0,0,0,0,0,0,0,0,0,0,0,0,0,0,0,140]
[null,"Female 35-39",0,0,0,0,0,0,0,0,0,0,0,0,0,0,0,0,0,0,0,0,0,0,0,0,0,0,0,0,0,0,0,0,0,0,0,0,0,0,0,0,0,0,0,0,0,0,0,0,0,0,0,0,0,141]
[null,"Female 40-44",0,0,0,0,0,0,0,0,0,0,0,0,0,0,0,0,0,0,0,0,0,0,0,0,0,0,0,0,0,0,0,0,0,0,0,0,0,0,0,0,0,0,0,0,0,0,0,0,0,0,0,0,0,142]
[null,"Female 45-49",0,0,0,0,0,0,0,0,0,0,0,0,0,0,0,0,0,0,0,0,0,0,0,0,0,0,0,0,0,0,0,0,0,0,0,0,0,0,0,0,0,0,0,0,0,0,0,0,0,0,0,0,0,143]
[null,"Female 50-54",0,0,0,0,0,0,0,0,0,0,0,0,0,0,0,0,0,0,0,0,0,0,0,0,0,0,0,0,0,0,0,0,0,0,0,0,0,0,0,0,0,0,0,0,0,0,0,0,0,0,0,0,0,144]
[null,"Female 55-59",0,0,0,0,0,0,0,0,0,0,0,0,0,0,0,0,0,0,0,0,0,0,0,0,0,0,0,0,0,0,0,0,0,0,0,0,0,0,0,0,0,0,0,0,0,0,0,0,0,0,0,0,0,145]
[null,"Female 60-64",0,0,0,0,0,0,0,0,0,0,0,0,0,0,0,0,0,0,0,0,0,0,0,0,0,0,0,0,0,0,0,0,0,0,0,0,0,0,0,0,0,0,0,0,0,0,0,0,0,0,0,0,0,146]
[null,"Female 65-69",0,0,0,0,0,0,0,0,0,0,0,0,0,0,0,0,0,0,0,0,0,0,0,0,0,0,0,0,0,0,0,0,0,0,0,0,0,0,0,0,0,0,0,0,0,0,0,0,0,0,0,0,0,147]
[null,"Female 70-74",0,0,0,0,0,0,0,0,0,0,0,0,0,0,0,0,0,0,0,0,0,0,0,0,0,0,0,0,0,0,0,0,0,0,0,0,0,0,0,0,0,0,0,0,0,0,0,0,0,0,0,0,0,148]
[null,"Female 75-79",0,0,0,0,0,0,0,0,0,0,0,0,0,0,0,0,0,0,0,0,0,0,0,0,0,0,0,0,0,0,0,0,0,0,0,0,0,0,0,0,0,0,0,0,0,0,0,0,0,0,0,0,0,149]
[null,"Female 80-84",0,0,0,0,0,0,0,0,0,0,0,0,0,0,0,0,0,0,0,0,0,0,0,0,0,0,0,0,0,0,0,0,0,0,0,0,0,0,0,0,0,0,0,0,0,0,0,0,0,0,0,0,0,150]
[null,"Female 85-89",0,0,0,0,0,0,0,0,0,0,0,0,0,0,0,0,0,0,0,0,0,0,0,0,0,0,0,0,0,0,0,0,0,0,0,0,0,0,0,0,0,0,0,0,0,0,0,0,0,0,0,0,0,151]
[null,"Female 90+",0,0,0,0,0,0,0,0,0,0,0,0,0,0,0,0,0,0,0,0,0,0,0,0,0,0,0,0,0,0,0,0,0,0,0,0,0,0,0,0,0,0,0,0,0,0,0,0,0,0,0,0,0,152]
[null,"Male 0-4",0,0,0,0,0,0,0,0,0,0,0,0,0,0,0,0,0,0,0,0,0,0,0,0,0,0,0,0,0,0,0,0,0,0,0,0,0,0,0,0,0,0,0,0,0,0,0,0,0,0,0,0,0,153]
[null,"Male 5-9",0,0,0,0,0,0,0,0,0,0,0,0,0,0,0,0,0,0,0,0,0,0,0,0,0,0,0,0,0,0,0,0,0,0,0,0,0,0,0,0,0,0,0,0,0,0,0,0,0,0,0,0,0,154]
[null,"Male 10-15",0,0,0,0,0,0,0,0,0,0,0,0,0,0,0,0,0,0,0,0,0,0,0,0,0,0,0,0,0,0,0,0,0,0,0,0,0,0,0,0,0,0,0,0,0,0,0,0,0,0,0,0,0,155]
[null,"Male 16-19",0,0,0,0,0,0,0,0,0,0,0,0,0,0,0,0,0,0,0,0,0,0,0,0,0,0,0,0,0,0,0,0,0,0,0,0,0,0,0,0,0,0,0,0,0,0,0,0,0,0,0,0,0,156]
[null,"Male 20-24",0,0,0,0,0,0,0,0,0,0,0,0,0,0,0,0,0,0,0,0,0,0,0,0,0,0,0,0,0,0,0,0,0,0,0,0,0,0,0,0,0,0,0,0,0,0,0,0,0,0,0,0,0,157]
[null,"Male 25-29",0,0,0,0,0,0,0,0,0,0,0,0,0,0,0,0,0,0,0,0,0,0,0,0,0,0,0,0,0,0,0,0,0,0,0,0,0,0,0,0,0,0,0,0,0,0,0,0,0,0,0,0,0,158]
[null,"Male 30-34",0,0,0,0,0,0,0,0,0,0,0,0,0,0,0,0,0,0,0,0,0,0,0,0,0,0,0,0,0,0,0,0,0,0,0,0,0,0,0,0,0,0,0,0,0,0,0,0,0,0,0,0,0,159]
[null,"Male 35-39",0,0,0,0,0,0,0,0,0,0,0,0,0,0,0,0,0,0,0,0,0,0,0,0,0,0,0,0,0,0,0,0,0,0,0,0,0,0,0,0,0,0,0,0,0,0,0,0,0,0,0,0,0,160]
[null,"Male 40-44",0,0,0,0,0,0,0,0,0,0,0,0,0,0,0,0,0,0,0,0,0,0,0,0,0,0,0,0,0,0,0,0,0,0,0,0,0,0,0,0,0,0,0,0,0,0,0,0,0,0,0,0,0,161]
[null,"Male 45-49",0,0,0,0,0,0,0,0,0,0,0,0,0,0,0,0,0,0,0,0,0,0,0,0,0,0,0,0,0,0,0,0,0,0,0,0,0,0,0,0,0,0,0,0,0,0,0,0,0,0,0,0,0,162]
[null,"Male 50-54",0,0,0,0,0,0,0,0,0,0,0,0,0,0,0,0,0,0,0,0,0,0,0,0,0,0,0,0,0,0,0,0,0,0,0,0,0,0,0,0,0,0,0,0,0,0,0,0,0,0,0,0,0,163]
[null,"Male 55-59",0,0,0,0,0,0,0,0,0,0,0,0,0,0,0,0,0,0,0,0,0,0,0,0,0,0,0,0,0,0,0,0,0,0,0,0,0,0,0,0,0,0,0,0,0,0,0,0,0,0,0,0,0,164]
[null,"Male 60-64",0,0,0,0,0,0,0,0,0,0,0,0,0,0,0,0,0,0,0,0,0,0,0,0,0,0,0,0,0,0,0,0,0,0,0,0,0,0,0,0,0,0,0,0,0,0,0,0,0,0,0,0,0,165]
[null,"Male 65-69",0,0,0,0,0,0,0,0,0,0,0,0,0,0,0,0,0,0,0,0,0,0,0,0,0,0,0,0,0,0,0,0,0,0,0,0,0,0,0,0,0,0,0,0,0,0,0,0,0,0,0,0,0,166]
[null,"Male 70-74",0,0,0,0,0,0,0,0,0,0,0,0,0,0,0,0,0,0,0,0,0,0,0,0,0,0,0,0,0,0,0,0,0,0,0,0,0,0,0,0,0,0,0,0,0,0,0,0,0,0,0,0,0,167]
[null,"Male 75-79",0,0,0,0,0,0,0,0,0,0,0,0,0,0,0,0,0,0,0,0,0,0,0,0,0,0,0,0,0,0,0,0,0,0,0,0,0,0,0,0,0,0,0,0,0,0,0,0,0,0,0,0,0,168]
[null,"Male 80-84",0,0,0,0,0,0,0,0,0,0,0,0,0,0,0,0,0,0,0,0,0,0,0,0,0,0,0,0,0,0,0,0,0,0,0,0,0,0,0,0,0,0,0,0,0,0,0,0,0,0,0,0,0,169]
[null,"Male 85-89",0,0,0,0,0,0,0,0,0,0,0,0,0,0,0,0,0,0,0,0,0,0,0,0,0,0,0,0,0,0,0,0,0,0,0,0,0,0,0,0,0,0,0,0,0,0,0,0,0,0,0,0,0,170]
[null,"Male 90+",0,0,0,0,0,0,0,0,0,0,0,0,0,0,0,0,0,0,0,0,0,0,0,0,0,0,0,0,0,0,0,0,0,0,0,0,0,0,0,0,0,0,0,0,0,0,0,0,0,0,0,0,0,171]
["SIMD Q4","Female 0-4",0,0,0,0,0,0,0,0,0,0,0,0,0,0,0,0,0,0,0,0,0,0,0,0,0,0,0,0,0,0,0,0,0,0,0,0,0,0,0,0,0,0,0,0,0,0,0,0,0,0,0,0,0,172]
[null,"Female 5-9",0,0,0,0,0,0,0,0,0,0,0,0,0,0,0,0,0,0,0,0,0,0,0,0,0,0,0,0,0,0,0,0,0,0,0,0,0,0,0,0,0,0,0,0,0,0,0,0,0,0,0,0,0,173]
[null,"Female 10-15",0,0,0,0,0,0,0,0,0,0,0,0,0,0,0,0,0,0,0,0,0,0,0,0,0,0,0,0,0,0,0,0,0,0,0,0,0,0,0,0,0,0,0,0,0,0,0,0,0,0,0,0,0,174]
[null,"Female 16-19",0,0,0,0,0,0,0,0,0,0,0,0,0,0,0,0,0,0,0,0,0,0,0,0,0,0,0,0,0,0,0,0,0,0,0,0,0,0,0,0,0,0,0,0,0,0,0,0,0,0,0,0,0,175]
[null,"Female 20-24",0,0,0,0,0,0,0,0,0,0,0,0,0,0,0,0,0,0,0,0,0,0,0,0,0,0,0,0,0,0,0,0,0,0,0,0,0,0,0,0,0,0,0,0,0,0,0,0,0,0,0,0,0,176]
[null,"Female 25-29",0,0,0,0,0,0,0,0,0,0,0,0,0,0,0,0,0,0,0,0,0,0,0,0,0,0,0,0,0,0,0,0,0,0,0,0,0,0,0,0,0,0,0,0,0,0,0,0,0,0,0,0,0,177]
[null,"Female 30-34",0,0,0,0,0,0,0,0,0,0,0,0,0,0,0,0,0,0,0,0,0,0,0,0,0,0,0,0,0,0,0,0,0,0,0,0,0,0,0,0,0,0,0,0,0,0,0,0,0,0,0,0,0,178]
[null,"Female 35-39",0,0,0,0,0,0,0,0,0,0,0,0,0,0,0,0,0,0,0,0,0,0,0,0,0,0,0,0,0,0,0,0,0,0,0,0,0,0,0,0,0,0,0,0,0,0,0,0,0,0,0,0,0,179]
[null,"Female 40-44",0,0,0,0,0,0,0,0,0,0,0,0,0,0,0,0,0,0,0,0,0,0,0,0,0,0,0,0,0,0,0,0,0,0,0,0,0,0,0,0,0,0,0,0,0,0,0,0,0,0,0,0,0,180]
[null,"Female 45-49",0,0,0,0,0,0,0,0,0,0,0,0,0,0,0,0,0,0,0,0,0,0,0,0,0,0,0,0,0,0,0,0,0,0,0,0,0,0,0,0,0,0,0,0,0,0,0,0,0,0,0,0,0,181]
[null,"Female 50-54",0,0,0,0,0,0,0,0,0,0,0,0,0,0,0,0,0,0,0,0,0,0,0,0,0,0,0,0,0,0,0,0,0,0,0,0,0,0,0,0,0,0,0,0,0,0,0,0,0,0,0,0,0,182]
[null,"Female 55-59",0,0,0,0,0,0,0,0,0,0,0,0,0,0,0,0,0,0,0,0,0,0,0,0,0,0,0,0,0,0,0,0,0,0,0,0,0,0,0,0,0,0,0,0,0,0,0,0,0,0,0,0,0,183]
[null,"Female 60-64",0,0,0,0,0,0,0,0,0,0,0,0,0,0,0,0,0,0,0,0,0,0,0,0,0,0,0,0,0,0,0,0,0,0,0,0,0,0,0,0,0,0,0,0,0,0,0,0,0,0,0,0,0,184]
[null,"Female 65-69",0,0,0,0,0,0,0,0,0,0,0,0,0,0,0,0,0,0,0,0,0,0,0,0,0,0,0,0,0,0,0,0,0,0,0,0,0,0,0,0,0,0,0,0,0,0,0,0,0,0,0,0,0,185]
[null,"Female 70-74",0,0,0,0,0,0,0,0,0,0,0,0,0,0,0,0,0,0,0,0,0,0,0,0,0,0,0,0,0,0,0,0,0,0,0,0,0,0,0,0,0,0,0,0,0,0,0,0,0,0,0,0,0,186]
[null,"Female 75-79",0,0,0,0,0,0,0,0,0,0,0,0,0,0,0,0,0,0,0,0,0,0,0,0,0,0,0,0,0,0,0,0,0,0,0,0,0,0,0,0,0,0,0,0,0,0,0,0,0,0,0,0,0,187]
[null,"Female 80-84",0,0,0,0,0,0,0,0,0,0,0,0,0,0,0,0,0,0,0,0,0,0,0,0,0,0,0,0,0,0,0,0,0,0,0,0,0,0,0,0,0,0,0,0,0,0,0,0,0,0,0,0,0,188]
[null,"Female 85-89",0,0,0,0,0,0,0,0,0,0,0,0,0,0,0,0,0,0,0,0,0,0,0,0,0,0,0,0,0,0,0,0,0,0,0,0,0,0,0,0,0,0,0,0,0,0,0,0,0,0,0,0,0,189]
[null,"Female 90+",0,0,0,0,0,0,0,0,0,0,0,0,0,0,0,0,0,0,0,0,0,0,0,0,0,0,0,0,0,0,0,0,0,0,0,0,0,0,0,0,0,0,0,0,0,0,0,0,0,0,0,0,0,190]
[null,"Male 0-4",0,0,0,0,0,0,0,0,0,0,0,0,0,0,0,0,0,0,0,0,0,0,0,0,0,0,0,0,0,0,0,0,0,0,0,0,0,0,0,0,0,0,0,0,0,0,0,0,0,0,0,0,0,191]
[null,"Male 5-9",0,0,0,0,0,0,0,0,0,0,0,0,0,0,0,0,0,0,0,0,0,0,0,0,0,0,0,0,0,0,0,0,0,0,0,0,0,0,0,0,0,0,0,0,0,0,0,0,0,0,0,0,0,192]
[null,"Male 10-15",0,0,0,0,0,0,0,0,0,0,0,0,0,0,0,0,0,0,0,0,0,0,0,0,0,0,0,0,0,0,0,0,0,0,0,0,0,0,0,0,0,0,0,0,0,0,0,0,0,0,0,0,0,193]
[null,"Male 16-19",0,0,0,0,0,0,0,0,0,0,0,0,0,0,0,0,0,0,0,0,0,0,0,0,0,0,0,0,0,0,0,0,0,0,0,0,0,0,0,0,0,0,0,0,0,0,0,0,0,0,0,0,0,194]
[null,"Male 20-24",0,0,0,0,0,0,0,0,0,0,0,0,0,0,0,0,0,0,0,0,0,0,0,0,0,0,0,0,0,0,0,0,0,0,0,0,0,0,0,0,0,0,0,0,0,0,0,0,0,0,0,0,0,195]
[null,"Male 25-29",0,0,0,0,0,0,0,0,0,0,0,0,0,0,0,0,0,0,0,0,0,0,0,0,0,0,0,0,0,0,0,0,0,0,0,0,0,0,0,0,0,0,0,0,0,0,0,0,0,0,0,0,0,196]
[null,"Male 30-34",0,0,0,0,0,0,0,0,0,0,0,0,0,0,0,0,0,0,0,0,0,0,0,0,0,0,0,0,0,0,0,0,0,0,0,0,0,0,0,0,0,0,0,0,0,0,0,0,0,0,0,0,0,197]
[null,"Male 35-39",0,0,0,0,0,0,0,0,0,0,0,0,0,0,0,0,0,0,0,0,0,0,0,0,0,0,0,0,0,0,0,0,0,0,0,0,0,0,0,0,0,0,0,0,0,0,0,0,0,0,0,0,0,198]
[null,"Male 40-44",0,0,0,0,0,0,0,0,0,0,0,0,0,0,0,0,0,0,0,0,0,0,0,0,0,0,0,0,0,0,0,0,0,0,0,0,0,0,0,0,0,0,0,0,0,0,0,0,0,0,0,0,0,199]
[null,"Male 45-49",0,0,0,0,0,0,0,0,0,0,0,0,0,0,0,0,0,0,0,0,0,0,0,0,0,0,0,0,0,0,0,0,0,0,0,0,0,0,0,0,0,0,0,0,0,0,0,0,0,0,0,0,0,200]
[null,"Male 50-54",0,0,0,0,0,0,0,0,0,0,0,0,0,0,0,0,0,0,0,0,0,0,0,0,0,0,0,0,0,0,0,0,0,0,0,0,0,0,0,0,0,0,0,0,0,0,0,0,0,0,0,0,0,201]
[null,"Male 55-59",0,0,0,0,0,0,0,0,0,0,0,0,0,0,0,0,0,0,0,0,0,0,0,0,0,0,0,0,0,0,0,0,0,0,0,0,0,0,0,0,0,0,0,0,0,0,0,0,0,0,0,0,0,202]
[null,"Male 60-64",0,0,0,0,0,0,0,0,0,0,0,0,0,0,0,0,0,0,0,0,0,0,0,0,0,0,0,0,0,0,0,0,0,0,0,0,0,0,0,0,0,0,0,0,0,0,0,0,0,0,0,0,0,203]
[null,"Male 65-69",0,0,0,0,0,0,0,0,0,0,0,0,0,0,0,0,0,0,0,0,0,0,0,0,0,0,0,0,0,0,0,0,0,0,0,0,0,0,0,0,0,0,0,0,0,0,0,0,0,0,0,0,0,204]
[null,"Male 70-74",0,0,0,0,0,0,0,0,0,0,0,0,0,0,0,0,0,0,0,0,0,0,0,0,0,0,0,0,0,0,0,0,0,0,0,0,0,0,0,0,0,0,0,0,0,0,0,0,0,0,0,0,0,205]
[null,"Male 75-79",0,0,0,0,0,0,0,0,0,0,0,0,0,0,0,0,0,0,0,0,0,0,0,0,0,0,0,0,0,0,0,0,0,0,0,0,0,0,0,0,0,0,0,0,0,0,0,0,0,0,0,0,0,206]
[null,"Male 80-84",0,0,0,0,0,0,0,0,0,0,0,0,0,0,0,0,0,0,0,0,0,0,0,0,0,0,0,0,0,0,0,0,0,0,0,0,0,0,0,0,0,0,0,0,0,0,0,0,0,0,0,0,0,207]
[null,"Male 85-89",0,0,0,0,0,0,0,0,0,0,0,0,0,0,0,0,0,0,0,0,0,0,0,0,0,0,0,0,0,0,0,0,0,0,0,0,0,0,0,0,0,0,0,0,0,0,0,0,0,0,0,0,0,208]
[null,"Male 90+",0,0,0,0,0,0,0,0,0,0,0,0,0,0,0,0,0,0,0,0,0,0,0,0,0,0,0,0,0,0,0,0,0,0,0,0,0,0,0,0,0,0,0,0,0,0,0,0,0,0,0,0,0,209]
["SIMD Q5 (least deprived)","Female 0-4",0,0,0,0,0,0,0,0,0,0,0,0,0,0,0,0,0,0,0,0,0,0,0,0,0,0,0,0,0,0,0,0,0,0,0,0,0,0,0,0,0,0,0,0,0,0,0,0,0,0,0,0,0,210]
[null,"Female 5-9",0,0,0,0,0,0,0,0,0,0,0,0,0,0,0,0,0,0,0,0,0,0,0,0,0,0,0,0,0,0,0,0,0,0,0,0,0,0,0,0,0,0,0,0,0,0,0,0,0,0,0,0,0,211]
[null,"Female 10-15",0,0,0,0,0,0,0,0,0,0,0,0,0,0,0,0,0,0,0,0,0,0,0,0,0,0,0,0,0,0,0,0,0,0,0,0,0,0,0,0,0,0,0,0,0,0,0,0,0,0,0,0,0,212]
[null,"Female 16-19",0,0,0,0,0,0,0,0,0,0,0,0,0,0,0,0,0,0,0,0,0,0,0,0,0,0,0,0,0,0,0,0,0,0,0,0,0,0,0,0,0,0,0,0,0,0,0,0,0,0,0,0,0,213]
[null,"Female 20-24",0,0,0,0,0,0,0,0,0,0,0,0,0,0,0,0,0,0,0,0,0,0,0,0,0,0,0,0,0,0,0,0,0,0,0,0,0,0,0,0,0,0,0,0,0,0,0,0,0,0,0,0,0,214]
[null,"Female 25-29",0,0,0,0,0,0,0,0,0,0,0,0,0,0,0,0,0,0,0,0,0,0,0,0,0,0,0,0,0,0,0,0,0,0,0,0,0,0,0,0,0,0,0,0,0,0,0,0,0,0,0,0,0,215]
[null,"Female 30-34",0,0,0,0,0,0,0,0,0,0,0,0,0,0,0,0,0,0,0,0,0,0,0,0,0,0,0,0,0,0,0,0,0,0,0,0,0,0,0,0,0,0,0,0,0,0,0,0,0,0,0,0,0,216]
[null,"Female 35-39",0,0,0,0,0,0,0,0,0,0,0,0,0,0,0,0,0,0,0,0,0,0,0,0,0,0,0,0,0,0,0,0,0,0,0,0,0,0,0,0,0,0,0,0,0,0,0,0,0,0,0,0,0,217]
[null,"Female 40-44",0,0,0,0,0,0,0,0,0,0,0,0,0,0,0,0,0,0,0,0,0,0,0,0,0,0,0,0,0,0,0,0,0,0,0,0,0,0,0,0,0,0,0,0,0,0,0,0,0,0,0,0,0,218]
[null,"Female 45-49",0,0,0,0,0,0,0,0,0,0,0,0,0,0,0,0,0,0,0,0,0,0,0,0,0,0,0,0,0,0,0,0,0,0,0,0,0,0,0,0,0,0,0,0,0,0,0,0,0,0,0,0,0,219]
[null,"Female 50-54",0,0,0,0,0,0,0,0,0,0,0,0,0,0,0,0,0,0,0,0,0,0,0,0,0,0,0,0,0,0,0,0,0,0,0,0,0,0,0,0,0,0,0,0,0,0,0,0,0,0,0,0,0,220]
[null,"Female 55-59",0,0,0,0,0,0,0,0,0,0,0,0,0,0,0,0,0,0,0,0,0,0,0,0,0,0,0,0,0,0,0,0,0,0,0,0,0,0,0,0,0,0,0,0,0,0,0,0,0,0,0,0,0,221]
[null,"Female 60-64",0,0,0,0,0,0,0,0,0,0,0,0,0,0,0,0,0,0,0,0,0,0,0,0,0,0,0,0,0,0,0,0,0,0,0,0,0,0,0,0,0,0,0,0,0,0,0,0,0,0,0,0,0,222]
[null,"Female 65-69",0,0,0,0,0,0,0,0,0,0,0,0,0,0,0,0,0,0,0,0,0,0,0,0,0,0,0,0,0,0,0,0,0,0,0,0,0,0,0,0,0,0,0,0,0,0,0,0,0,0,0,0,0,223]
[null,"Female 70-74",0,0,0,0,0,0,0,0,0,0,0,0,0,0,0,0,0,0,0,0,0,0,0,0,0,0,0,0,0,0,0,0,0,0,0,0,0,0,0,0,0,0,0,0,0,0,0,0,0,0,0,0,0,224]
[null,"Female 75-79",0,0,0,0,0,0,0,0,0,0,0,0,0,0,0,0,0,0,0,0,0,0,0,0,0,0,0,0,0,0,0,0,0,0,0,0,0,0,0,0,0,0,0,0,0,0,0,0,0,0,0,0,0,225]
[null,"Female 80-84",0,0,0,0,0,0,0,0,0,0,0,0,0,0,0,0,0,0,0,0,0,0,0,0,0,0,0,0,0,0,0,0,0,0,0,0,0,0,0,0,0,0,0,0,0,0,0,0,0,0,0,0,0,226]
[null,"Female 85-89",0,0,0,0,0,0,0,0,0,0,0,0,0,0,0,0,0,0,0,0,0,0,0,0,0,0,0,0,0,0,0,0,0,0,0,0,0,0,0,0,0,0,0,0,0,0,0,0,0,0,0,0,0,227]
[null,"Female 90+",0,0,0,0,0,0,0,0,0,0,0,0,0,0,0,0,0,0,0,0,0,0,0,0,0,0,0,0,0,0,0,0,0,0,0,0,0,0,0,0,0,0,0,0,0,0,0,0,0,0,0,0,0,228]
[null,"Male 0-4",0,0,0,0,0,0,0,0,0,0,0,0,0,0,0,0,0,0,0,0,0,0,0,0,0,0,0,0,0,0,0,0,0,0,0,0,0,0,0,0,0,0,0,0,0,0,0,0,0,0,0,0,0,229]
[null,"Male 5-9",0,0,0,0,0,0,0,0,0,0,0,0,0,0,0,0,0,0,0,0,0,0,0,0,0,0,0,0,0,0,0,0,0,0,0,0,0,0,0,0,0,0,0,0,0,0,0,0,0,0,0,0,0,230]
[null,"Male 10-15",0,0,0,0,0,0,0,0,0,0,0,0,0,0,0,0,0,0,0,0,0,0,0,0,0,0,0,0,0,0,0,0,0,0,0,0,0,0,0,0,0,0,0,0,0,0,0,0,0,0,0,0,0,231]
[null,"Male 16-19",0,0,0,0,0,0,0,0,0,0,0,0,0,0,0,0,0,0,0,0,0,0,0,0,0,0,0,0,0,0,0,0,0,0,0,0,0,0,0,0,0,0,0,0,0,0,0,0,0,0,0,0,0,232]
[null,"Male 20-24",0,0,0,0,0,0,0,0,0,0,0,0,0,0,0,0,0,0,0,0,0,0,0,0,0,0,0,0,0,0,0,0,0,0,0,0,0,0,0,0,0,0,0,0,0,0,0,0,0,0,0,0,0,233]
[null,"Male 25-29",0,0,0,0,0,0,0,0,0,0,0,0,0,0,0,0,0,0,0,0,0,0,0,0,0,0,0,0,0,0,0,0,0,0,0,0,0,0,0,0,0,0,0,0,0,0,0,0,0,0,0,0,0,234]
[null,"Male 30-34",0,0,0,0,0,0,0,0,0,0,0,0,0,0,0,0,0,0,0,0,0,0,0,0,0,0,0,0,0,0,0,0,0,0,0,0,0,0,0,0,0,0,0,0,0,0,0,0,0,0,0,0,0,235]
[null,"Male 35-39",0,0,0,0,0,0,0,0,0,0,0,0,0,0,0,0,0,0,0,0,0,0,0,0,0,0,0,0,0,0,0,0,0,0,0,0,0,0,0,0,0,0,0,0,0,0,0,0,0,0,0,0,0,236]
[null,"Male 40-44",0,0,0,0,0,0,0,0,0,0,0,0,0,0,0,0,0,0,0,0,0,0,0,0,0,0,0,0,0,0,0,0,0,0,0,0,0,0,0,0,0,0,0,0,0,0,0,0,0,0,0,0,0,237]
[null,"Male 45-49",0,0,0,0,0,0,0,0,0,0,0,0,0,0,0,0,0,0,0,0,0,0,0,0,0,0,0,0,0,0,0,0,0,0,0,0,0,0,0,0,0,0,0,0,0,0,0,0,0,0,0,0,0,238]
[null,"Male 50-54",0,0,0,0,0,0,0,0,0,0,0,0,0,0,0,0,0,0,0,0,0,0,0,0,0,0,0,0,0,0,0,0,0,0,0,0,0,0,0,0,0,0,0,0,0,0,0,0,0,0,0,0,0,239]
[null,"Male 55-59",0,0,0,0,0,0,0,0,0,0,0,0,0,0,0,0,0,0,0,0,0,0,0,0,0,0,0,0,0,0,0,0,0,0,0,0,0,0,0,0,0,0,0,0,0,0,0,0,0,0,0,0,0,240]
[null,"Male 60-64",0,0,0,0,0,0,0,0,0,0,0,0,0,0,0,0,0,0,0,0,0,0,0,0,0,0,0,0,0,0,0,0,0,0,0,0,0,0,0,0,0,0,0,0,0,0,0,0,0,0,0,0,0,241]
[null,"Male 65-69",0,0,0,0,0,0,0,0,0,0,0,0,0,0,0,0,0,0,0,0,0,0,0,0,0,0,0,0,0,0,0,0,0,0,0,0,0,0,0,0,0,0,0,0,0,0,0,0,0,0,0,0,0,242]
[null,"Male 70-74",0,0,0,0,0,0,0,0,0,0,0,0,0,0,0,0,0,0,0,0,0,0,0,0,0,0,0,0,0,0,0,0,0,0,0,0,0,0,0,0,0,0,0,0,0,0,0,0,0,0,0,0,0,243]
[null,"Male 75-79",0,0,0,0,0,0,0,0,0,0,0,0,0,0,0,0,0,0,0,0,0,0,0,0,0,0,0,0,0,0,0,0,0,0,0,0,0,0,0,0,0,0,0,0,0,0,0,0,0,0,0,0,0,244]
[null,"Male 80-84",0,0,0,0,0,0,0,0,0,0,0,0,0,0,0,0,0,0,0,0,0,0,0,0,0,0,0,0,0,0,0,0,0,0,0,0,0,0,0,0,0,0,0,0,0,0,0,0,0,0,0,0,0,245]
[null,"Male 85-89",0,0,0,0,0,0,0,0,0,0,0,0,0,0,0,0,0,0,0,0,0,0,0,0,0,0,0,0,0,0,0,0,0,0,0,0,0,0,0,0,0,0,0,0,0,0,0,0,0,0,0,0,0,246]
[null,"Male 90+",0,0,0,0,0,0,0,0,0,0,0,0,0,0,0,0,0,0,0,0,0,0,0,0,0,0,0,0,0,0,0,0,0,0,0,0,0,0,0,0,0,0,0,0,0,0,0,0,0,0,0,0,0,247]

{"sheet":"PARfraction","index":17,"n_rows":249,"n_cols":56,"rows_kept":249,"cut":false,"hidden":true,"merged":[]}
["Subgroup's fraction of area's 2016 Population-At-Risk (PAR) (16+ only)"]
[]
["SIMD","group","Aberdeen City Local Authority","Aberdeen City Region Deal","Aberdeenshire Local Authority","Angus Local Authority","Argyll & Bute Local Authority","Ayrshire & Arran Health Board","Borders Health Board","Clackmannanshire & Stirling IJB","Clackmannanshire Local Authority","Dumfries & Galloway Health Board","Dumfries & Galloway Local Authority","Dundee City Local Authority","East Ayrshire Local Authority","East Dunbartonshire Local Authority","East Lothian Local Authority","East Renfrewshire Local Authority","Edinburgh & SE Scotland City Region Deal","Edinburgh, City of Local Authority","Eilean Siar Local Authority","Falkirk Local Authority","Fife Health Board","Fife Local Authority","Forth Valley Health Board","Glasgow City Local Authority","Glasgow City Region Deal","Grampian Health Board","Greater Glasgow & Clyde Health Board","Highland Health Board","Highland Local Authority","Inverclyde Local Authority","Inverness & Highland City Region Deal","Lanarkshire Health Board","Lothian Health Board","Midlothian Local Authority","Moray Local Authority","North Ayrshire Local Authority","North Lanarkshire Local Authority","Orkney Health Board","Orkney Islands Local Authority","Perth & Kinross Local Authority","Renfrewshire Local Authority","Scotland","Scottish Borders Local Authority","Shetland Health Board","Shetland Islands Local Authority","South Ayrshire Local Authority","South Lanarkshire Local Authority","Stirling Local Authority","Tay Cities Region Deal ","Tayside Health Board","West Dunbartonshire Local Authority","West Lothian Local Authority","Western Isles Health Board",1]
[null,null,"popS12000033","Aber_deal","popS12000034","popS12000041","popS12000035","popS08000015","popS08000016","ClacksStirIJB","popS12000005","popS08000017","popS12000006","popS12000042","popS12000008","popS12000045","popS12000010","popS12000011","EdinSE_deal","popS12000036","popS12000013","popS12000014","popS08000018","popS12000015","popS08000019","popS12000046","GClyde_deal","popS08000020","popS08000021","popS08000022","popS12000017","popS12000018","Inver_deal","popS08000023","popS08000024","popS12000019","popS12000020","popS12000021","popS12000044","popS08000025","popS12000023","popS12000024","popS12000038","popS00000001","popS12000026","popS08000026","popS12000027","popS12000028","popS12000029","popS12000030","Tay_deal","popS08000027","popS12000039","popS12000040","popS08000028",2]
["All quintiles","16+ Males and Females",{"$f":"'Population at Risk'!R5/'Population at Risk'!R$5","v":1},{"$f":"'Population at Risk'!AX5/'Population at Risk'!AX$5","v":1},{"$f":"'Population at Risk'!S5/'Population at Risk'!S$5","v":1},{"$f":"'Population at Risk'!T5/'Population at Risk'!T$5","v":1},{"$f":"'Population at Risk'!U5/'Population at Risk'!U$5","v":1},{"$f":"'Population at Risk'!D5/'Population at Risk'!D$5","v":1},{"$f":"'Population at Risk'!E5/'Population at Risk'!E$5","v":1},{"$f":"'Population at Risk'!BC5/'Population at Risk'!BC$5","v":1},{"$f":"'Population at Risk'!V5/'Population at Risk'!V$5","v":1},{"$f":"'Population at Risk'!F5/'Population at Risk'!F$5","v":1},{"$f":"'Population at Risk'!W5/'Population at Risk'!W$5","v":1},{"$f":"'Population at Risk'!X5/'Population at Risk'!X$5","v":1},{"$f":"'Population at Risk'!Y5/'Population at Risk'!Y$5","v":1},{"$f":"'Population at Risk'!Z5/'Population at Risk'!Z$5","v":1},{"$f":"'Population at Risk'!AA5/'Population at Risk'!AA$5","v":1},{"$f":"'Population at Risk'!AB5/'Population at Risk'!AB$5","v":1},{"$f":"'Population at Risk'!AY5/'Population at Risk'!AY$5","v":1},{"$f":"'Population at Risk'!AC5/'Population at Risk'!AC$5","v":1},{"$f":"'Population at Risk'!AD5/'Population at Risk'!AD$5","v":1},{"$f":"'Population at Risk'!AE5/'Population at Risk'!AE$5","v":1},{"$f":"'Population at Risk'!G5/'Population at Risk'!G$5","v":1},{"$f":"'Population at Risk'!AF5/'Population at Risk'!AF$5","v":1},{"$f":"'Population at Risk'!H5/'Population at Risk'!H$5","v":1},{"$f":"'Population at Risk'!AG5/'Population at Risk'!AG$5","v":1},{"$f":"'Population at Risk'!AZ5/'Population at Risk'!AZ$5","v":1},{"$f":"'Population at Risk'!I5/'Population at Risk'!I$5","v":1},{"$f":"'Population at Risk'!J5/'Population at Risk'!J$5","v":1},{"$f":"'Population at Risk'!K5/'Population at Risk'!K$5","v":1},{"$f":"'Population at Risk'!AH5/'Population at Risk'!AH$5","v":1},{"$f":"'Population at Risk'!AI5/'Population at Risk'!AI$5","v":1},{"$f":"'Population at Risk'!BA5/'Population at Risk'!BA$5","v":1},{"$f":"'Population at Risk'!L5/'Population at Risk'!L$5","v":1},{"$f":"'Population at Risk'!M5/'Population at Risk'!M$5","v":1},{"$f":"'Population at Risk'!AJ5/'Population at Risk'!AJ$5","v":1},{"$f":"'Population at Risk'!AK5/'Population at Risk'!AK$5","v":1},{"$f":"'Population at Risk'!AL5/'Population at Risk'!AL$5","v":1},{"$f":"'Population at Risk'!AM5/'Population at Risk'!AM$5","v":1},{"$f":"'Population at Risk'!N5/'Population at Risk'!N$5","v":1},{"$f":"'Population at Risk'!AN5/'Population at Risk'!AN$5","v":1},{"$f":"'Population at Risk'!AO5/'Population at Risk'!AO$5","v":1},{"$f":"'Population at Risk'!AP5/'Population at Risk'!AP$5","v":1},{"$f":"'Population at Risk'!C5/'Population at Risk'!C$5","v":1},{"$f":"'Population at Risk'!AQ5/'Population at Risk'!AQ$5","v":1},{"$f":"'Population at Risk'!O5/'Population at Risk'!O$5","v":1},{"$f":"'Population at Risk'!AR5/'Population at Risk'!AR$5","v":1},{"$f":"'Population at Risk'!AS5/'Population at Risk'!AS$5","v":1},{"$f":"'Population at Risk'!AT5/'Population at Risk'!AT$5","v":1},{"$f":"'Population at Risk'!AU5/'Population at Risk'!AU$5","v":1},{"$f":"'Population at Risk'!BB5/'Population at Risk'!BB$5","v":1},{"$f":"'Population at Risk'!P5/'Population at Risk'!P$5","v":1},{"$f":"'Population at Risk'!AV5/'Population at Risk'!AV$5","v":1},{"$f":"'Population at Risk'!AW5/'Population at Risk'!AW$5","v":1},{"$f":"'Population at Risk'!Q5/'Population at Risk'!Q$5","v":1},3]
["Q1 and Q2","16+ Males and Females",{"$f":"'Population at Risk'!R6/'Population at Risk'!R$5","v":0.20460512750600837},{"$f":"'Population at Risk'!AX6/'Population at Risk'!AX$5","v":0.34016094354438381},{"$f":"'Population at Risk'!S6/'Population at Risk'!S$5","v":0.40787425005359701},{"$f":"'Population at Risk'!T6/'Population at Risk'!T$5","v":0.35159581005185392},{"$f":"'Population at Risk'!U6/'Population at Risk'!U$5","v":0.26441937619993333},{"$f":"'Population at Risk'!D6/'Population at Risk'!D$5","v":0.23407557946450649},{"$f":"'Population at Risk'!E6/'Population at Risk'!E$5","v":0.12463269362549453},{"$f":"'Population at Risk'!BC6/'Population at Risk'!BC$5","v":0.26442201938927667},{"$f":"'Population at Risk'!V6/'Population at Risk'!V$5","v":0.5093750257663785},{"$f":"'Population at Risk'!F6/'Population at Risk'!F$5","v":0.27442911790966357},{"$f":"'Population at Risk'!W6/'Population at Risk'!W$5","v":0.47132523463815967},{"$f":"'Population at Risk'!X6/'Population at Risk'!X$5","v":0.4713285790807315},{"$f":"'Population at Risk'!Y6/'Population at Risk'!Y$5","v":0.46919536045744636},{"$f":"'Population at Risk'!Z6/'Population at Risk'!Z$5","v":0.72578231118554326},{"$f":"'Population at Risk'!AA6/'Population at Risk'!AA$5","v":0.61256605216855664},{"$f":"'Population at Risk'!AB6/'Population at Risk'!AB$5","v":0.22614885121048553},{"$f":"'Population at Risk'!AY6/'Population at Risk'!AY$5","v":0.41796259873734293},{"$f":"'Population at Risk'!AC6/'Population at Risk'!AC$5","v":0.61730407691015621},{"$f":"'Population at Risk'!AD6/'Population at Risk'!AD$5","v":0.29303925676708575},{"$f":"'Population at Risk'!AE6/'Population at Risk'!AE$5","v":0.29621573536985119},{"$f":"'Population at Risk'!G6/'Population at Risk'!G$5","v":0.28427827404497519},{"$f":"'Population at Risk'!AF6/'Population at Risk'!AF$5","v":0.6182852278168911},{"$f":"'Population at Risk'!H6/'Population at Risk'!H$5","v":0.61010454774379685},{"$f":"'Population at Risk'!AG6/'Population at Risk'!AG$5","v":0.29621573536985119},{"$f":"'Population at Risk'!AZ6/'Population at Risk'!AZ$5","v":0.37063439924609137},{"$f":"'Population at Risk'!I6/'Population at Risk'!I$5","v":0.25135993691656944},{"$f":"'Population at Risk'!J6/'Population at Risk'!J$5","v":0.42678745252608236},{"$f":"'Population at Risk'!K6/'Population at Risk'!K$5","v":0.56494846064629234},{"$f":"'Population at Risk'!AH6/'Population at Risk'!AH$5","v":0.60481659212332861},{"$f":"'Population at Risk'!AI6/'Population at Risk'!AI$5","v":0.40151588257513154},{"$f":"'Population at Risk'!BA6/'Population at Risk'!BA$5","v":0.73016281748252487},{"$f":"'Population at Risk'!L6/'Population at Risk'!L$5","v":0.39729740704717847},{"$f":"'Population at Risk'!M6/'Population at Risk'!M$5","v":0.39730351804577585},{"$f":"'Population at Risk'!AJ6/'Population at Risk'!AJ$5","v":0.51461820901200939},{"$f":"'Population at Risk'!AK6/'Population at Risk'!AK$5","v":0.18801984133806557},{"$f":"'Population at Risk'!AL6/'Population at Risk'!AL$5","v":0.66154304934335029},{"$f":"'Population at Risk'!AM6/'Population at Risk'!AM$5","v":0.66628436182903761},{"$f":"'Population at Risk'!N6/'Population at Risk'!N$5","v":0.62038570599739151},{"$f":"'Population at Risk'!AN6/'Population at Risk'!AN$5","v":0.16898280370737737},{"$f":"'Population at Risk'!AO6/'Population at Risk'!AO$5","v":0.1689841475590321},{"$f":"'Population at Risk'!AP6/'Population at Risk'!AP$5","v":0.19026058979394961},{"$f":"'Population at Risk'!C6/'Population at Risk'!C$5","v":0.35577922320274996},{"$f":"'Population at Risk'!AQ6/'Population at Risk'!AQ$5","v":0.5413486052010883},{"$f":"'Population at Risk'!O6/'Population at Risk'!O$5","v":0.64673366150267575},{"$f":"'Population at Risk'!AR6/'Population at Risk'!AR$5","v":0.46657687994746483},{"$f":"'Population at Risk'!AS6/'Population at Risk'!AS$5","v":0.25135794973039094},{"$f":"'Population at Risk'!AT6/'Population at Risk'!AT$5","v":3.8736573372649068E-2},{"$f":"'Population at Risk'!AU6/'Population at Risk'!AU$5","v":3.8737081655647342E-2},{"$f":"'Population at Risk'!BB6/'Population at Risk'!BB$5","v":0.50276464132757603},{"$f":"'Population at Risk'!P6/'Population at Risk'!P$5","v":0.2698212997346483},{"$f":"'Population at Risk'!AV6/'Population at Risk'!AV$5","v":0.50578122575594886},{"$f":"'Population at Risk'!AW6/'Population at Risk'!AW$5","v":0.53864463187613776},{"$f":"'Population at Risk'!Q6/'Population at Risk'!Q$5","v":0.35394156744535787},4]
["SIMD Q1 (most deprived)","16+ Males and Females",{"$f":"'Population at Risk'!R7/'Population at Risk'!R$5","v":9.4048125581385394E-2},{"$f":"'Population at Risk'!AX7/'Population at Risk'!AX$5","v":0.16851461163139844},{"$f":"'Population at Risk'!S7/'Population at Risk'!S$5","v":0.17674359780072305},{"$f":"'Population at Risk'!T7/'Population at Risk'!T$5","v":0.1797235144706702},{"$f":"'Population at Risk'!U7/'Population at Risk'!U$5","v":0},{"$f":"'Population at Risk'!D7/'Population at Risk'!D$5","v":6.5342197821749853E-2},{"$f":"'Population at Risk'!E7/'Population at Risk'!E$5","v":2.7082380054229565E-2},{"$f":"'Population at Risk'!BC7/'Population at Risk'!BC$5","v":0},{"$f":"'Population at Risk'!V7/'Population at Risk'!V$5","v":0.18766142672648661},{"$f":"'Population at Risk'!F7/'Population at Risk'!F$5","v":8.5430224956158332E-2},{"$f":"'Population at Risk'!W7/'Population at Risk'!W$5","v":0.24562932355691267},{"$f":"'Population at Risk'!X7/'Population at Risk'!X$5","v":0.24563305963628679},{"$f":"'Population at Risk'!Y7/'Population at Risk'!Y$5","v":0.20003521660824655},{"$f":"'Population at Risk'!Z7/'Population at Risk'!Z$5","v":0.54749768306778224},{"$f":"'Population at Risk'!AA7/'Population at Risk'!AA$5","v":0.38717912531347293},{"$f":"'Population at Risk'!AB7/'Population at Risk'!AB$5","v":5.60171815238679E-2},{"$f":"'Population at Risk'!AY7/'Population at Risk'!AY$5","v":0.21952309323810856},{"$f":"'Population at Risk'!AC7/'Population at Risk'!AC$5","v":0.43112495934374628},{"$f":"'Population at Risk'!AD7/'Population at Risk'!AD$5","v":8.5747985840136237E-2},{"$f":"'Population at Risk'!AE7/'Population at Risk'!AE$5","v":8.3073203464906972E-2},{"$f":"'Population at Risk'!G7/'Population at Risk'!G$5","v":9.2000858362264779E-2},{"$f":"'Population at Risk'!AF7/'Population at Risk'!AF$5","v":0.48971483653554243},{"$f":"'Population at Risk'!H7/'Population at Risk'!H$5","v":0.35533502559061986},{"$f":"'Population at Risk'!AG7/'Population at Risk'!AG$5","v":8.3073203464906972E-2},{"$f":"'Population at Risk'!AZ7/'Population at Risk'!AZ$5","v":0.19648970210449046},{"$f":"'Population at Risk'!I7/'Population at Risk'!I$5","v":6.6875452561174414E-2},{"$f":"'Population at Risk'!J7/'Population at Risk'!J$5","v":0.21631012498583557},{"$f":"'Population at Risk'!K7/'Population at Risk'!K$5","v":0.28938817211232004},{"$f":"'Population at Risk'!AH7/'Population at Risk'!AH$5","v":0.3110184320988908},{"$f":"'Population at Risk'!AI7/'Population at Risk'!AI$5","v":0.16109620863093446},{"$f":"'Population at Risk'!BA7/'Population at Risk'!BA$5","v":0.43164576590253229},{"$f":"'Population at Risk'!L7/'Population at Risk'!L$5","v":9.4509031271811594E-2},{"$f":"'Population at Risk'!M7/'Population at Risk'!M$5","v":9.4514827495628728E-2},{"$f":"'Population at Risk'!AJ7/'Population at Risk'!AJ$5","v":0.12209833124525386},{"$f":"'Population at Risk'!AK7/'Population at Risk'!AK$5","v":1.0990859618158825E-2},{"$f":"'Population at Risk'!AL7/'Population at Risk'!AL$5","v":0.46105632007431963},{"$f":"'Population at Risk'!AM7/'Population at Risk'!AM$5","v":0.36961829558729214},{"$f":"'Population at Risk'!N7/'Population at Risk'!N$5","v":0.41194466420709791},{"$f":"'Population at Risk'!AN7/'Population at Risk'!AN$5","v":0},{"$f":"'Population at Risk'!AO7/'Population at Risk'!AO$5","v":0},{"$f":"'Population at Risk'!AP7/'Population at Risk'!AP$5","v":6.437004671967371E-2},{"$f":"'Population at Risk'!C7/'Population at Risk'!C$5","v":0.10765738523561739},{"$f":"'Population at Risk'!AQ7/'Population at Risk'!AQ$5","v":0.33761554547717326},{"$f":"'Population at Risk'!O7/'Population at Risk'!O$5","v":0.37027151809463882},{"$f":"'Population at Risk'!AR7/'Population at Risk'!AR$5","v":0.24403806882759901},{"$f":"'Population at Risk'!AS7/'Population at Risk'!AS$5","v":6.687375487008948E-2},{"$f":"'Population at Risk'!AT7/'Population at Risk'!AT$5","v":0},{"$f":"'Population at Risk'!AU7/'Population at Risk'!AU$5","v":0},{"$f":"'Population at Risk'!BB7/'Population at Risk'!BB$5","v":0.20252212446023013},{"$f":"'Population at Risk'!P7/'Population at Risk'!P$5","v":6.5061716106090933E-2},{"$f":"'Population at Risk'!AV7/'Population at Risk'!AV$5","v":0.20623836480903443},{"$f":"'Population at Risk'!AW7/'Population at Risk'!AW$5","v":0.24791193875417333},{"$f":"'Population at Risk'!Q7/'Population at Risk'!Q$5","v":4.37620362509838E-2},5]
["SIMD Q2",null,{"$f":"'Population at Risk'!R8/'Population at Risk'!R$5","v":0.11055700192462296},{"$f":"'Population at Risk'!AX8/'Population at Risk'!AX$5","v":0.17164633191298534},{"$f":"'Population at Risk'!S8/'Population at Risk'!S$5","v":0.23113065225287402},{"$f":"'Population at Risk'!T8/'Population at Risk'!T$5","v":0.17187229558118372},{"$f":"'Population at Risk'!U8/'Population at Risk'!U$5","v":0.26441937619993333},{"$f":"'Population at Risk'!D8/'Population at Risk'!D$5","v":0.16873338164275661},{"$f":"'Population at Risk'!E8/'Population at Risk'!E$5","v":9.7550313571264965E-2},{"$f":"'Population at Risk'!BC8/'Population at Risk'!BC$5","v":0.26442201938927667},{"$f":"'Population at Risk'!V8/'Population at Risk'!V$5","v":0.32171359903989188},{"$f":"'Population at Risk'!F8/'Population at Risk'!F$5","v":0.18899889295350519},{"$f":"'Population at Risk'!W8/'Population at Risk'!W$5","v":0.22569591108124701},{"$f":"'Population at Risk'!X8/'Population at Risk'!X$5","v":0.22569551944444471},{"$f":"'Population at Risk'!Y8/'Population at Risk'!Y$5","v":0.26916014384919984},{"$f":"'Population at Risk'!Z8/'Population at Risk'!Z$5","v":0.17828462811776108},{"$f":"'Population at Risk'!AA8/'Population at Risk'!AA$5","v":0.22538692685508366},{"$f":"'Population at Risk'!AB8/'Population at Risk'!AB$5","v":0.17013166968661764},{"$f":"'Population at Risk'!AY8/'Population at Risk'!AY$5","v":0.19843950549923439},{"$f":"'Population at Risk'!AC8/'Population at Risk'!AC$5","v":0.18617911756640992},{"$f":"'Population at Risk'!AD8/'Population at Risk'!AD$5","v":0.20729127092694952},{"$f":"'Population at Risk'!AE8/'Population at Risk'!AE$5","v":0.2131425319049442},{"$f":"'Population at Risk'!G8/'Population at Risk'!G$5","v":0.19227741568271037},{"$f":"'Population at Risk'!AF8/'Population at Risk'!AF$5","v":0.12857039128134873},{"$f":"'Population at Risk'!H8/'Population at Risk'!H$5","v":0.25476952215317705},{"$f":"'Population at Risk'!AG8/'Population at Risk'!AG$5","v":0.2131425319049442},{"$f":"'Population at Risk'!AZ8/'Population at Risk'!AZ$5","v":0.17414469714160088},{"$f":"'Population at Risk'!I8/'Population at Risk'!I$5","v":0.18448448435539502},{"$f":"'Population at Risk'!J8/'Population at Risk'!J$5","v":0.21047732754024681},{"$f":"'Population at Risk'!K8/'Population at Risk'!K$5","v":0.2755602885339723},{"$f":"'Population at Risk'!AH8/'Population at Risk'!AH$5","v":0.29379816002443776},{"$f":"'Population at Risk'!AI8/'Population at Risk'!AI$5","v":0.24041967394419711},{"$f":"'Population at Risk'!BA8/'Population at Risk'!BA$5","v":0.29851705157999264},{"$f":"'Population at Risk'!L8/'Population at Risk'!L$5","v":0.30278837577536688},{"$f":"'Population at Risk'!M8/'Population at Risk'!M$5","v":0.30278869055014712},{"$f":"'Population at Risk'!AJ8/'Population at Risk'!AJ$5","v":0.39251987776675556},{"$f":"'Population at Risk'!AK8/'Population at Risk'!AK$5","v":0.17702898171990675},{"$f":"'Population at Risk'!AL8/'Population at Risk'!AL$5","v":0.20048672926903069},{"$f":"'Population at Risk'!AM8/'Population at Risk'!AM$5","v":0.29666606624174546},{"$f":"'Population at Risk'!N8/'Population at Risk'!N$5","v":0.2084410417902936},{"$f":"'Population at Risk'!AN8/'Population at Risk'!AN$5","v":0.16898280370737737},{"$f":"'Population at Risk'!AO8/'Population at Risk'!AO$5","v":0.1689841475590321},{"$f":"'Population at Risk'!AP8/'Population at Risk'!AP$5","v":0.12589054307427588},{"$f":"'Population at Risk'!C8/'Population at Risk'!C$5","v":0.24812183796713261},{"$f":"'Population at Risk'!AQ8/'Population at Risk'!AQ$5","v":0.20373305972391503},{"$f":"'Population at Risk'!O8/'Population at Risk'!O$5","v":0.27646214340803693},{"$f":"'Population at Risk'!AR8/'Population at Risk'!AR$5","v":0.22253881111986584},{"$f":"'Population at Risk'!AS8/'Population at Risk'!AS$5","v":0.18448419486030143},{"$f":"'Population at Risk'!AT8/'Population at Risk'!AT$5","v":3.8736573372649068E-2},{"$f":"'Population at Risk'!AU8/'Population at Risk'!AU$5","v":3.8737081655647342E-2},{"$f":"'Population at Risk'!BB8/'Population at Risk'!BB$5","v":0.30024251686734593},{"$f":"'Population at Risk'!P8/'Population at Risk'!P$5","v":0.20475958362855737},{"$f":"'Population at Risk'!AV8/'Population at Risk'!AV$5","v":0.29954286094691446},{"$f":"'Population at Risk'!AW8/'Population at Risk'!AW$5","v":0.29073269312196431},{"$f":"'Population at Risk'!Q8/'Population at Risk'!Q$5","v":0.31017953119437408},6]
["SIMD Q3",null,{"$f":"'Population at Risk'!R9/'Population at Risk'!R$5","v":0.12777750921155817},{"$f":"'Population at Risk'!AX9/'Population at Risk'!AX$5","v":0.16933032253359487},{"$f":"'Population at Risk'!S9/'Population at Risk'!S$5","v":0.20540550738037774},{"$f":"'Population at Risk'!T9/'Population at Risk'!T$5","v":0.14707923066635162},{"$f":"'Population at Risk'!U9/'Population at Risk'!U$5","v":0.68725302756245643},{"$f":"'Population at Risk'!D9/'Population at Risk'!D$5","v":0.19598768074052847},{"$f":"'Population at Risk'!E9/'Population at Risk'!E$5","v":0.22731477398656341},{"$f":"'Population at Risk'!BC9/'Population at Risk'!BC$5","v":0.68724995771349839},{"$f":"'Population at Risk'!V9/'Population at Risk'!V$5","v":0.18135064977665261},{"$f":"'Population at Risk'!F9/'Population at Risk'!F$5","v":0.33889691696978003},{"$f":"'Population at Risk'!W9/'Population at Risk'!W$5","v":0.21398643509511553},{"$f":"'Population at Risk'!X9/'Population at Risk'!X$5","v":0.21398490706558884},{"$f":"'Population at Risk'!Y9/'Population at Risk'!Y$5","v":0.17809779772794898},{"$f":"'Population at Risk'!Z9/'Population at Risk'!Z$5","v":0.116910706873171},{"$f":"'Population at Risk'!AA9/'Population at Risk'!AA$5","v":0.14423120798000139},{"$f":"'Population at Risk'!AB9/'Population at Risk'!AB$5","v":0.21385329728627062},{"$f":"'Population at Risk'!AY9/'Population at Risk'!AY$5","v":0.2225125226962561},{"$f":"'Population at Risk'!AC9/'Population at Risk'!AC$5","v":0.12560071804086037},{"$f":"'Population at Risk'!AD9/'Population at Risk'!AD$5","v":0.35612401369595265},{"$f":"'Population at Risk'!AE9/'Population at Risk'!AE$5","v":0.3303006975236073},{"$f":"'Population at Risk'!G9/'Population at Risk'!G$5","v":0.42198231577663875},{"$f":"'Population at Risk'!AF9/'Population at Risk'!AF$5","v":0.14676364591376545},{"$f":"'Population at Risk'!H9/'Population at Risk'!H$5","v":0.16328037087869623},{"$f":"'Population at Risk'!AG9/'Population at Risk'!AG$5","v":0.3303006975236073},{"$f":"'Population at Risk'!AZ9/'Population at Risk'!AZ$5","v":0.23002195451642227},{"$f":"'Population at Risk'!I9/'Population at Risk'!I$5","v":0.34291092949740026},{"$f":"'Population at Risk'!J9/'Population at Risk'!J$5","v":0.17370493709834153},{"$f":"'Population at Risk'!K9/'Population at Risk'!K$5","v":0.18282625507298103},{"$f":"'Population at Risk'!AH9/'Population at Risk'!AH$5","v":0.17660435822900122},{"$f":"'Population at Risk'!AI9/'Population at Risk'!AI$5","v":0.18128272048587737},{"$f":"'Population at Risk'!BA9/'Population at Risk'!BA$5","v":0.13721852821267533},{"$f":"'Population at Risk'!L9/'Population at Risk'!L$5","v":0.37108259908065666},{"$f":"'Population at Risk'!M9/'Population at Risk'!M$5","v":0.37107830119575552},{"$f":"'Population at Risk'!AJ9/'Population at Risk'!AJ$5","v":0.23451874433689823},{"$f":"'Population at Risk'!AK9/'Population at Risk'!AK$5","v":0.29965621565517347},{"$f":"'Population at Risk'!AL9/'Population at Risk'!AL$5","v":0.1347256076607854},{"$f":"'Population at Risk'!AM9/'Population at Risk'!AM$5","v":0.16360552138084117},{"$f":"'Population at Risk'!N9/'Population at Risk'!N$5","v":0.11940780163977731},{"$f":"'Population at Risk'!AN9/'Population at Risk'!AN$5","v":0.33267294729515079},{"$f":"'Population at Risk'!AO9/'Population at Risk'!AO$5","v":0.3326726987751859},{"$f":"'Population at Risk'!AP9/'Population at Risk'!AP$5","v":0.2572951426030351},{"$f":"'Population at Risk'!C9/'Population at Risk'!C$5","v":0.16139821178993624},{"$f":"'Population at Risk'!AQ9/'Population at Risk'!AQ$5","v":0.17146268580188292},{"$f":"'Population at Risk'!O9/'Population at Risk'!O$5","v":0.16102633105760097},{"$f":"'Population at Risk'!AR9/'Population at Risk'!AR$5","v":0.2001989599641755},{"$f":"'Population at Risk'!AS9/'Population at Risk'!AS$5","v":0.34291209660279154},{"$f":"'Population at Risk'!AT9/'Population at Risk'!AT$5","v":0.36340609626276082},{"$f":"'Population at Risk'!AU9/'Population at Risk'!AU$5","v":0.3634090783599942},{"$f":"'Population at Risk'!BB9/'Population at Risk'!BB$5","v":0.21691350527675543},{"$f":"'Population at Risk'!P9/'Population at Risk'!P$5","v":6.4669774841110431E-2},{"$f":"'Population at Risk'!AV9/'Population at Risk'!AV$5","v":0.20172935411375989},{"$f":"'Population at Risk'!AW9/'Population at Risk'!AW$5","v":0.19062762951567627},{"$f":"'Population at Risk'!Q9/'Population at Risk'!Q$5","v":0.22534513366407569},7]
["SIMD Q4",null,{"$f":"'Population at Risk'!R10/'Population at Risk'!R$5","v":0.15292698058624227},{"$f":"'Population at Risk'!AX10/'Population at Risk'!AX$5","v":0.25989497778354259},{"$f":"'Population at Risk'!S10/'Population at Risk'!S$5","v":0.17897134694697303},{"$f":"'Population at Risk'!T10/'Population at Risk'!T$5","v":0.15229727959760322},{"$f":"'Population at Risk'!U10/'Population at Risk'!U$5","v":4.8327596237610224E-2},{"$f":"'Population at Risk'!D10/'Population at Risk'!D$5","v":0.26855838916985375},{"$f":"'Population at Risk'!E10/'Population at Risk'!E$5","v":0.36523211731812044},{"$f":"'Population at Risk'!BC10/'Population at Risk'!BC$5","v":4.8328022897225063E-2},{"$f":"'Population at Risk'!V10/'Population at Risk'!V$5","v":0.1701152641059992},{"$f":"'Population at Risk'!F10/'Population at Risk'!F$5","v":0.24136946922253155},{"$f":"'Population at Risk'!W10/'Population at Risk'!W$5","v":0.15586628770210237},{"$f":"'Population at Risk'!X10/'Population at Risk'!X$5","v":0.15586521329950284},{"$f":"'Population at Risk'!Y10/'Population at Risk'!Y$5","v":0.192895015098732},{"$f":"'Population at Risk'!Z10/'Population at Risk'!Z$5","v":8.9899233017621982E-2},{"$f":"'Population at Risk'!AA10/'Population at Risk'!AA$5","v":0.12465170340722975},{"$f":"'Population at Risk'!AB10/'Population at Risk'!AB$5","v":0.28602013538107213},{"$f":"'Population at Risk'!AY10/'Population at Risk'!AY$5","v":0.2110852355680726},{"$f":"'Population at Risk'!AC10/'Population at Risk'!AC$5","v":0.11745792661834834},{"$f":"'Population at Risk'!AD10/'Population at Risk'!AD$5","v":0.27784194520425576},{"$f":"'Population at Risk'!AE10/'Population at Risk'!AE$5","v":0.29990390519916499},{"$f":"'Population at Risk'!G10/'Population at Risk'!G$5","v":0.22225164360436916},{"$f":"'Population at Risk'!AF10/'Population at Risk'!AF$5","v":0.14433822652957914},{"$f":"'Population at Risk'!H10/'Population at Risk'!H$5","v":0.12399443055982613},{"$f":"'Population at Risk'!AG10/'Population at Risk'!AG$5","v":0.29990390519916499},{"$f":"'Population at Risk'!AZ10/'Population at Risk'!AZ$5","v":0.26033875976178933},{"$f":"'Population at Risk'!I10/'Population at Risk'!I$5","v":0.33415219855169498},{"$f":"'Population at Risk'!J10/'Population at Risk'!J$5","v":0.21713132456427936},{"$f":"'Population at Risk'!K10/'Population at Risk'!K$5","v":0.14890765438961862},{"$f":"'Population at Risk'!AH10/'Population at Risk'!AH$5","v":0.13726072540331649},{"$f":"'Population at Risk'!AI10/'Population at Risk'!AI$5","v":0.16690890707107653},{"$f":"'Population at Risk'!BA10/'Population at Risk'!BA$5","v":0.10750113214462431},{"$f":"'Population at Risk'!L10/'Population at Risk'!L$5","v":0.16213153258907947},{"$f":"'Population at Risk'!M10/'Population at Risk'!M$5","v":0.16212962280910997},{"$f":"'Population at Risk'!AJ10/'Population at Risk'!AJ$5","v":0.13682844725937748},{"$f":"'Population at Risk'!AK10/'Population at Risk'!AK$5","v":0.36943318594671015},{"$f":"'Population at Risk'!AL10/'Population at Risk'!AL$5","v":0.1362096028874725},{"$f":"'Population at Risk'!AM10/'Population at Risk'!AM$5","v":0.10878299589071437},{"$f":"'Population at Risk'!N10/'Population at Risk'!N$5","v":0.14434192988288866},{"$f":"'Population at Risk'!AN10/'Population at Risk'!AN$5","v":0.44018967053625901},{"$f":"'Population at Risk'!AO10/'Population at Risk'!AO$5","v":0.4401883647505011},{"$f":"'Population at Risk'!AP10/'Population at Risk'!AP$5","v":0.39475562872675535},{"$f":"'Population at Risk'!C10/'Population at Risk'!C$5","v":0.16078035252605144},{"$f":"'Population at Risk'!AQ10/'Population at Risk'!AQ$5","v":0.15454521059286899},{"$f":"'Population at Risk'!O10/'Population at Risk'!O$5","v":0.11099826693591687},{"$f":"'Population at Risk'!AR10/'Population at Risk'!AR$5","v":0.18100885808783782},{"$f":"'Population at Risk'!AS10/'Population at Risk'!AS$5","v":0.33415303659313494},{"$f":"'Population at Risk'!AT10/'Population at Risk'!AT$5","v":0.5978573303645901},{"$f":"'Population at Risk'!AU10/'Population at Risk'!AU$5","v":0.59785383998435859},{"$f":"'Population at Risk'!BB10/'Population at Risk'!BB$5","v":0.15125595148294649},{"$f":"'Population at Risk'!P10/'Population at Risk'!P$5","v":0.18728793768895771},{"$f":"'Population at Risk'!AV10/'Population at Risk'!AV$5","v":0.1225334092838566},{"$f":"'Population at Risk'!AW10/'Population at Risk'!AW$5","v":0.16789867594914074},{"$f":"'Population at Risk'!Q10/'Population at Risk'!Q$5","v":0.28536761126413651},8]
["SIMD Q5 (least deprived)",null,{"$f":"'Population at Risk'!R11/'Population at Risk'!R$5","v":0.51469038269619116},{"$f":"'Population at Risk'!AX11/'Population at Risk'!AX$5","v":0.23061375613847859},{"$f":"'Population at Risk'!S11/'Population at Risk'!S$5","v":0.2077488956190521},{"$f":"'Population at Risk'!T11/'Population at Risk'!T$5","v":0.34902767968419118},{"$f":"'Population at Risk'!U11/'Population at Risk'!U$5","v":0},{"$f":"'Population at Risk'!D11/'Population at Risk'!D$5","v":0.30137835062511126},{"$f":"'Population at Risk'!E11/'Population at Risk'!E$5","v":0.28282041506982153},{"$f":"'Population at Risk'!BC11/'Population at Risk'!BC$5","v":0},{"$f":"'Population at Risk'!V11/'Population at Risk'!V$5","v":0.13915906035096948},{"$f":"'Population at Risk'!F11/'Population at Risk'!F$5","v":0.14530449589802497},{"$f":"'Population at Risk'!W11/'Population at Risk'!W$5","v":0.15882204256462251},{"$f":"'Population at Risk'!X11/'Population at Risk'!X$5","v":0.1588213005541769},{"$f":"'Population at Risk'!Y11/'Population at Risk'!Y$5","v":0.15981182671587277},{"$f":"'Population at Risk'!Z11/'Population at Risk'!Z$5","v":6.7407748923663732E-2},{"$f":"'Population at Risk'!AA11/'Population at Risk'!AA$5","v":0.11855103644421236},{"$f":"'Population at Risk'!AB11/'Population at Risk'!AB$5","v":0.2739777161221717},{"$f":"'Population at Risk'!AY11/'Population at Risk'!AY$5","v":0.14843964299832832},{"$f":"'Population at Risk'!AC11/'Population at Risk'!AC$5","v":0.13963727843063517},{"$f":"'Population at Risk'!AD11/'Population at Risk'!AD$5","v":7.2994784332705981E-2},{"$f":"'Population at Risk'!AE11/'Population at Risk'!AE$5","v":7.357966190737647E-2},{"$f":"'Population at Risk'!G11/'Population at Risk'!G$5","v":7.1487766574016856E-2},{"$f":"'Population at Risk'!AF11/'Population at Risk'!AF$5","v":9.0612899739764219E-2},{"$f":"'Population at Risk'!H11/'Population at Risk'!H$5","v":0.10262065081768082},{"$f":"'Population at Risk'!AG11/'Population at Risk'!AG$5","v":7.357966190737647E-2},{"$f":"'Population at Risk'!AZ11/'Population at Risk'!AZ$5","v":0.13900488647569709},{"$f":"'Population at Risk'!I11/'Population at Risk'!I$5","v":7.1576935034335334E-2},{"$f":"'Population at Risk'!J11/'Population at Risk'!J$5","v":0.18237628581129667},{"$f":"'Population at Risk'!K11/'Population at Risk'!K$5","v":0.10331762989110793},{"$f":"'Population at Risk'!AH11/'Population at Risk'!AH$5","v":8.1318324244353674E-2},{"$f":"'Population at Risk'!AI11/'Population at Risk'!AI$5","v":0.25029248986791452},{"$f":"'Population at Risk'!BA11/'Population at Risk'!BA$5","v":2.5117522160175577E-2},{"$f":"'Population at Risk'!L11/'Population at Risk'!L$5","v":6.9488461283085459E-2},{"$f":"'Population at Risk'!M11/'Population at Risk'!M$5","v":6.9488557949358681E-2},{"$f":"'Population at Risk'!AJ11/'Population at Risk'!AJ$5","v":0.11403459939171491},{"$f":"'Population at Risk'!AK11/'Population at Risk'!AK$5","v":0.14289075706005069},{"$f":"'Population at Risk'!AL11/'Population at Risk'!AL$5","v":6.7521740108391889E-2},{"$f":"'Population at Risk'!AM11/'Population at Risk'!AM$5","v":6.1327120899406805E-2},{"$f":"'Population at Risk'!N11/'Population at Risk'!N$5","v":0.11586456247994252},{"$f":"'Population at Risk'!AN11/'Population at Risk'!AN$5","v":5.8154578461212768E-2},{"$f":"'Population at Risk'!AO11/'Population at Risk'!AO$5","v":5.8154788915280912E-2},{"$f":"'Population at Risk'!AP11/'Population at Risk'!AP$5","v":0.15768863887625986},{"$f":"'Population at Risk'!C11/'Population at Risk'!C$5","v":0.32204221248126236},{"$f":"'Population at Risk'!AQ11/'Population at Risk'!AQ$5","v":0.13264349840415973},{"$f":"'Population at Risk'!O11/'Population at Risk'!O$5","v":8.1241740503806378E-2},{"$f":"'Population at Risk'!AR11/'Population at Risk'!AR$5","v":0.15221530200052186},{"$f":"'Population at Risk'!AS11/'Population at Risk'!AS$5","v":7.1576917073682647E-2},{"$f":"'Population at Risk'!AT11/'Population at Risk'!AT$5","v":0},{"$f":"'Population at Risk'!AU11/'Population at Risk'!AU$5","v":0},{"$f":"'Population at Risk'!BB11/'Population at Risk'!BB$5","v":0.12906590191272191},{"$f":"'Population at Risk'!P11/'Population at Risk'!P$5","v":0.4782209877352836},{"$f":"'Population at Risk'!AV11/'Population at Risk'!AV$5","v":0.16995601084643461},{"$f":"'Population at Risk'!AW11/'Population at Risk'!AW$5","v":0.10282906265904521},{"$f":"'Population at Risk'!Q11/'Population at Risk'!Q$5","v":0.13534568762642982},9]
["SIMD Q1 (most deprived)","16+ Females",{"$f":"'Population at Risk'!R12/'Population at Risk'!R$5","v":5.7247645845197835E-2},{"$f":"'Population at Risk'!AX12/'Population at Risk'!AX$5","v":0.10177631529608278},{"$f":"'Population at Risk'!S12/'Population at Risk'!S$5","v":0.10072871853457328},{"$f":"'Population at Risk'!T12/'Population at Risk'!T$5","v":0.10441945568071005},{"$f":"'Population at Risk'!U12/'Population at Risk'!U$5","v":0},{"$f":"'Population at Risk'!D12/'Population at Risk'!D$5","v":3.5557139861835722E-2},{"$f":"'Population at Risk'!E12/'Population at Risk'!E$5","v":1.4690889855997357E-2},{"$f":"'Population at Risk'!BC12/'Population at Risk'!BC$5","v":0},{"$f":"'Population at Risk'!V12/'Population at Risk'!V$5","v":0.11164295152996855},{"$f":"'Population at Risk'!F12/'Population at Risk'!F$5","v":4.8292612751310249E-2},{"$f":"'Population at Risk'!W12/'Population at Risk'!W$5","v":0.14373272599003839},{"$f":"'Population at Risk'!X12/'Population at Risk'!X$5","v":0.14374679939327983},{"$f":"'Population at Risk'!Y12/'Population at Risk'!Y$5","v":0.11904016390218514},{"$f":"'Population at Risk'!Z12/'Population at Risk'!Z$5","v":0.33082975433044681},{"$f":"'Population at Risk'!AA12/'Population at Risk'!AA$5","v":0.22296709602714149},{"$f":"'Population at Risk'!AB12/'Population at Risk'!AB$5","v":3.0834390387110947E-2},{"$f":"'Population at Risk'!AY12/'Population at Risk'!AY$5","v":0.1244495292818337},{"$f":"'Population at Risk'!AC12/'Population at Risk'!AC$5","v":0.25566206476677367},{"$f":"'Population at Risk'!AD12/'Population at Risk'!AD$5","v":4.8884036816306688E-2},{"$f":"'Population at Risk'!AE12/'Population at Risk'!AE$5","v":4.6756211566719781E-2},{"$f":"'Population at Risk'!G12/'Population at Risk'!G$5","v":5.2675736525307132E-2},{"$f":"'Population at Risk'!AF12/'Population at Risk'!AF$5","v":0.27162744348692036},{"$f":"'Population at Risk'!H12/'Population at Risk'!H$5","v":0.20680611303426868},{"$f":"'Population at Risk'!AG12/'Population at Risk'!AG$5","v":4.6756211566719781E-2},{"$f":"'Population at Risk'!AZ12/'Population at Risk'!AZ$5","v":0.10862742814541869},{"$f":"'Population at Risk'!I12/'Population at Risk'!I$5","v":3.5756643614366472E-2},{"$f":"'Population at Risk'!J12/'Population at Risk'!J$5","v":0.13574175244964665},{"$f":"'Population at Risk'!K12/'Population at Risk'!K$5","v":0.17207750563096708},{"$f":"'Population at Risk'!AH12/'Population at Risk'!AH$5","v":0.16972363717655956},{"$f":"'Population at Risk'!AI12/'Population at Risk'!AI$5","v":9.132062407351256E-2},{"$f":"'Population at Risk'!BA12/'Population at Risk'!BA$5","v":0.25276435710750572},{"$f":"'Population at Risk'!L12/'Population at Risk'!L$5","v":5.6156080625386726E-2},{"$f":"'Population at Risk'!M12/'Population at Risk'!M$5","v":5.617521202401448E-2},{"$f":"'Population at Risk'!AJ12/'Population at Risk'!AJ$5","v":6.3290981839038321E-2},{"$f":"'Population at Risk'!AK12/'Population at Risk'!AK$5","v":6.6475968539762564E-3},{"$f":"'Population at Risk'!AL12/'Population at Risk'!AL$5","v":0.27489735716100971},{"$f":"'Population at Risk'!AM12/'Population at Risk'!AM$5","v":0.19897512532965475},{"$f":"'Population at Risk'!N12/'Population at Risk'!N$5","v":0.24006379676485562},{"$f":"'Population at Risk'!AN12/'Population at Risk'!AN$5","v":0},{"$f":"'Population at Risk'!AO12/'Population at Risk'!AO$5","v":0},{"$f":"'Population at Risk'!AP12/'Population at Risk'!AP$5","v":3.59294611862188E-2},{"$f":"'Population at Risk'!C12/'Population at Risk'!C$5","v":5.7743179037227949E-2},{"$f":"'Population at Risk'!AQ12/'Population at Risk'!AQ$5","v":0.18800946577159702},{"$f":"'Population at Risk'!O12/'Population at Risk'!O$5","v":0.21081856961379716},{"$f":"'Population at Risk'!AR12/'Population at Risk'!AR$5","v":0.14028576275491994},{"$f":"'Population at Risk'!AS12/'Population at Risk'!AS$5","v":3.575099998767859E-2},{"$f":"'Population at Risk'!AT12/'Population at Risk'!AT$5","v":0},{"$f":"'Population at Risk'!AU12/'Population at Risk'!AU$5","v":0},{"$f":"'Population at Risk'!BB12/'Population at Risk'!BB$5","v":0.11656209787488464},{"$f":"'Population at Risk'!P12/'Population at Risk'!P$5","v":3.8417215325026122E-2},{"$f":"'Population at Risk'!AV12/'Population at Risk'!AV$5","v":0.11847299287995601},{"$f":"'Population at Risk'!AW12/'Population at Risk'!AW$5","v":0.13804170691891371},{"$f":"'Population at Risk'!Q12/'Population at Risk'!Q$5","v":2.2822404645135068E-2},10]
["SIMD Q2",null,{"$f":"'Population at Risk'!R13/'Population at Risk'!R$5","v":5.6444276837342232E-2},{"$f":"'Population at Risk'!AX13/'Population at Risk'!AX$5","v":8.4746212867428436E-2},{"$f":"'Population at Risk'!S13/'Population at Risk'!S$5","v":0.11064253770423277},{"$f":"'Population at Risk'!T13/'Population at Risk'!T$5","v":8.1484718255818614E-2},{"$f":"'Population at Risk'!U13/'Population at Risk'!U$5","v":0.12557114982801193},{"$f":"'Population at Risk'!D13/'Population at Risk'!D$5","v":7.7476447101585133E-2},{"$f":"'Population at Risk'!E13/'Population at Risk'!E$5","v":4.595218514003669E-2},{"$f":"'Population at Risk'!BC13/'Population at Risk'!BC$5","v":0.12565924108570947},{"$f":"'Population at Risk'!V13/'Population at Risk'!V$5","v":0.16366466702995319},{"$f":"'Population at Risk'!F13/'Population at Risk'!F$5","v":9.0615526009391836E-2},{"$f":"'Population at Risk'!W13/'Population at Risk'!W$5","v":0.11288473295009437},{"$f":"'Population at Risk'!X13/'Population at Risk'!X$5","v":0.11289578591215063},{"$f":"'Population at Risk'!Y13/'Population at Risk'!Y$5","v":0.13529719225553433},{"$f":"'Population at Risk'!Z13/'Population at Risk'!Z$5","v":8.8657260441638408E-2},{"$f":"'Population at Risk'!AA13/'Population at Risk'!AA$5","v":0.10856358517598141},{"$f":"'Population at Risk'!AB13/'Population at Risk'!AB$5","v":7.9388465801762481E-2},{"$f":"'Population at Risk'!AY13/'Population at Risk'!AY$5","v":9.4227418247474576E-2},{"$f":"'Population at Risk'!AC13/'Population at Risk'!AC$5","v":9.2168921478994623E-2},{"$f":"'Population at Risk'!AD13/'Population at Risk'!AD$5","v":0.1004567120657395},{"$f":"'Population at Risk'!AE13/'Population at Risk'!AE$5","v":0.10173496176175735},{"$f":"'Population at Risk'!G13/'Population at Risk'!G$5","v":9.3751859257191691E-2},{"$f":"'Population at Risk'!AF13/'Population at Risk'!AF$5","v":5.9235292140033591E-2},{"$f":"'Population at Risk'!H13/'Population at Risk'!H$5","v":0.1253246714818663},{"$f":"'Population at Risk'!AG13/'Population at Risk'!AG$5","v":0.10173496176175735},{"$f":"'Population at Risk'!AZ13/'Population at Risk'!AZ$5","v":7.891327249660092E-2},{"$f":"'Population at Risk'!I13/'Population at Risk'!I$5","v":8.3202738480198171E-2},{"$f":"'Population at Risk'!J13/'Population at Risk'!J$5","v":0.11154541548131},{"$f":"'Population at Risk'!K13/'Population at Risk'!K$5","v":0.13951696994587393},{"$f":"'Population at Risk'!AH13/'Population at Risk'!AH$5","v":0.13467720651869833},{"$f":"'Population at Risk'!AI13/'Population at Risk'!AI$5","v":0.1135343725308587},{"$f":"'Population at Risk'!BA13/'Population at Risk'!BA$5","v":0.14428488894691069},{"$f":"'Population at Risk'!L13/'Population at Risk'!L$5","v":0.15339395033459469},{"$f":"'Population at Risk'!M13/'Population at Risk'!M$5","v":0.15344620898189082},{"$f":"'Population at Risk'!AJ13/'Population at Risk'!AJ$5","v":0.17065915422049102},{"$f":"'Population at Risk'!AK13/'Population at Risk'!AK$5","v":8.8472058086367295E-2},{"$f":"'Population at Risk'!AL13/'Population at Risk'!AL$5","v":0.10137665143432843},{"$f":"'Population at Risk'!AM13/'Population at Risk'!AM$5","v":0.13455905370883967},{"$f":"'Population at Risk'!N13/'Population at Risk'!N$5","v":0.10087679411795869},{"$f":"'Population at Risk'!AN13/'Population at Risk'!AN$5","v":7.4269696545150143E-2},{"$f":"'Population at Risk'!AO13/'Population at Risk'!AO$5","v":7.4342322114649695E-2},{"$f":"'Population at Risk'!AP13/'Population at Risk'!AP$5","v":5.7351304898097949E-2},{"$f":"'Population at Risk'!C13/'Population at Risk'!C$5","v":0.11093327748316188},{"$f":"'Population at Risk'!AQ13/'Population at Risk'!AQ$5","v":9.7500504687988029E-2},{"$f":"'Population at Risk'!O13/'Population at Risk'!O$5","v":0.13214608296195954},{"$f":"'Population at Risk'!AR13/'Population at Risk'!AR$5","v":0.10689982666327173},{"$f":"'Population at Risk'!AS13/'Population at Risk'!AS$5","v":8.3189606229854551E-2},{"$f":"'Population at Risk'!AT13/'Population at Risk'!AT$5","v":1.6476815624472233E-2},{"$f":"'Population at Risk'!AU13/'Population at Risk'!AU$5","v":1.6457641150546237E-2},{"$f":"'Population at Risk'!BB13/'Population at Risk'!BB$5","v":0.14522320099206648},{"$f":"'Population at Risk'!P13/'Population at Risk'!P$5","v":0.10545722772754035},{"$f":"'Population at Risk'!AV13/'Population at Risk'!AV$5","v":0.14754457385711983},{"$f":"'Population at Risk'!AW13/'Population at Risk'!AW$5","v":0.13553272147969353},{"$f":"'Population at Risk'!Q13/'Population at Risk'!Q$5","v":0.13542369659321613},11]
["SIMD Q3",null,{"$f":"'Population at Risk'!R14/'Population at Risk'!R$5","v":6.4034103943805848E-2},{"$f":"'Population at Risk'!AX14/'Population at Risk'!AX$5","v":7.9583515119131615E-2},{"$f":"'Population at Risk'!S14/'Population at Risk'!S$5","v":9.1021511863668442E-2},{"$f":"'Population at Risk'!T14/'Population at Risk'!T$5","v":6.1618609290688305E-2},{"$f":"'Population at Risk'!U14/'Population at Risk'!U$5","v":0.31882459665645974},{"$f":"'Population at Risk'!D14/'Population at Risk'!D$5","v":8.1636765852777946E-2},{"$f":"'Population at Risk'!E14/'Population at Risk'!E$5","v":0.10025414483274478},{"$f":"'Population at Risk'!BC14/'Population at Risk'!BC$5","v":0.31904825997198122},{"$f":"'Population at Risk'!V14/'Population at Risk'!V$5","v":8.7193336430371804E-2},{"$f":"'Population at Risk'!F14/'Population at Risk'!F$5","v":0.15261036746840878},{"$f":"'Population at Risk'!W14/'Population at Risk'!W$5","v":0.10122604582768992},{"$f":"'Population at Risk'!X14/'Population at Risk'!X$5","v":0.10123595724453434},{"$f":"'Population at Risk'!Y14/'Population at Risk'!Y$5","v":8.507330038663978E-2},{"$f":"'Population at Risk'!Z14/'Population at Risk'!Z$5","v":5.2104540515000373E-2},{"$f":"'Population at Risk'!AA14/'Population at Risk'!AA$5","v":6.481792627216805E-2},{"$f":"'Population at Risk'!AB14/'Population at Risk'!AB$5","v":9.148515048460211E-2},{"$f":"'Population at Risk'!AY14/'Population at Risk'!AY$5","v":0.10020963154263511},{"$f":"'Population at Risk'!AC14/'Population at Risk'!AC$5","v":5.7449213124713079E-2},{"$f":"'Population at Risk'!AD14/'Population at Risk'!AD$5","v":0.16155746593347903},{"$f":"'Population at Risk'!AE14/'Population at Risk'!AE$5","v":0.14662869835345144},{"$f":"'Population at Risk'!G14/'Population at Risk'!G$5","v":0.19434621769348759},{"$f":"'Population at Risk'!AF14/'Population at Risk'!AF$5","v":6.5370105713716348E-2},{"$f":"'Population at Risk'!H14/'Population at Risk'!H$5","v":7.6011926500829358E-2},{"$f":"'Population at Risk'!AG14/'Population at Risk'!AG$5","v":0.14662869835345144},{"$f":"'Population at Risk'!AZ14/'Population at Risk'!AZ$5","v":9.9395639969150018E-2},{"$f":"'Population at Risk'!I14/'Population at Risk'!I$5","v":0.14866245409399936},{"$f":"'Population at Risk'!J14/'Population at Risk'!J$5","v":8.8402509723728387E-2},{"$f":"'Population at Risk'!K14/'Population at Risk'!K$5","v":8.9488021019871467E-2},{"$f":"'Population at Risk'!AH14/'Population at Risk'!AH$5","v":7.6512371642057528E-2},{"$f":"'Population at Risk'!AI14/'Population at Risk'!AI$5","v":7.7446651467345584E-2},{"$f":"'Population at Risk'!BA14/'Population at Risk'!BA$5","v":6.373495333605729E-2},{"$f":"'Population at Risk'!L14/'Population at Risk'!L$5","v":0.18118821461481699},{"$f":"'Population at Risk'!M14/'Population at Risk'!M$5","v":0.18124994228387512},{"$f":"'Population at Risk'!AJ14/'Population at Risk'!AJ$5","v":9.4425256270084842E-2},{"$f":"'Population at Risk'!AK14/'Population at Risk'!AK$5","v":0.14072066799097871},{"$f":"'Population at Risk'!AL14/'Population at Risk'!AL$5","v":6.5330275894520215E-2},{"$f":"'Population at Risk'!AM14/'Population at Risk'!AM$5","v":6.9013373261239797E-2},{"$f":"'Population at Risk'!N14/'Population at Risk'!N$5","v":5.4412587561415066E-2},{"$f":"'Population at Risk'!AN14/'Population at Risk'!AN$5","v":0.14454075865261248},{"$f":"'Population at Risk'!AO14/'Population at Risk'!AO$5","v":0.14468209967595511},{"$f":"'Population at Risk'!AP14/'Population at Risk'!AP$5","v":0.11609844595460726},{"$f":"'Population at Risk'!C14/'Population at Risk'!C$5","v":6.1549150608594339E-2},{"$f":"'Population at Risk'!AQ14/'Population at Risk'!AQ$5","v":7.6077971651467444E-2},{"$f":"'Population at Risk'!O14/'Population at Risk'!O$5","v":7.1089922437005987E-2},{"$f":"'Population at Risk'!AR14/'Population at Risk'!AR$5","v":8.9860326646449537E-2},{"$f":"'Population at Risk'!AS14/'Population at Risk'!AS$5","v":0.14863899005183534},{"$f":"'Population at Risk'!AT14/'Population at Risk'!AT$5","v":0.15544905028162981},{"$f":"'Population at Risk'!AU14/'Population at Risk'!AU$5","v":0.15526815041424166},{"$f":"'Population at Risk'!BB14/'Population at Risk'!BB$5","v":9.6254817295896369E-2},{"$f":"'Population at Risk'!P14/'Population at Risk'!P$5","v":3.1623051118492694E-2},{"$f":"'Population at Risk'!AV14/'Population at Risk'!AV$5","v":9.4705436145631816E-2},{"$f":"'Population at Risk'!AW14/'Population at Risk'!AW$5","v":8.5279543876584749E-2},{"$f":"'Population at Risk'!Q14/'Population at Risk'!Q$5","v":9.2286903857545219E-2},12]
["SIMD Q4",null,{"$f":"'Population at Risk'!R15/'Population at Risk'!R$5","v":7.7477655822626917E-2},{"$f":"'Population at Risk'!AX15/'Population at Risk'!AX$5","v":0.12353865883769663},{"$f":"'Population at Risk'!S15/'Population at Risk'!S$5","v":8.2153076502128206E-2},{"$f":"'Population at Risk'!T15/'Population at Risk'!T$5","v":7.1613115425958107E-2},{"$f":"'Population at Risk'!U15/'Population at Risk'!U$5","v":2.2907629110697984E-2},{"$f":"'Population at Risk'!D15/'Population at Risk'!D$5","v":0.11665887964224407},{"$f":"'Population at Risk'!E15/'Population at Risk'!E$5","v":0.16169263465385261},{"$f":"'Population at Risk'!BC15/'Population at Risk'!BC$5","v":2.2923699377331637E-2},{"$f":"'Population at Risk'!V15/'Population at Risk'!V$5","v":8.1840631438517081E-2},{"$f":"'Population at Risk'!F15/'Population at Risk'!F$5","v":0.11063396420538228},{"$f":"'Population at Risk'!W15/'Population at Risk'!W$5","v":7.3926010847395918E-2},{"$f":"'Population at Risk'!X15/'Population at Risk'!X$5","v":7.3933249216761851E-2},{"$f":"'Population at Risk'!Y15/'Population at Risk'!Y$5","v":9.1660361974146135E-2},{"$f":"'Population at Risk'!Z15/'Population at Risk'!Z$5","v":4.3074511593741829E-2},{"$f":"'Population at Risk'!AA15/'Population at Risk'!AA$5","v":5.6820551971339728E-2},{"$f":"'Population at Risk'!AB15/'Population at Risk'!AB$5","v":0.12584688570408475},{"$f":"'Population at Risk'!AY15/'Population at Risk'!AY$5","v":9.5680489189389206E-2},{"$f":"'Population at Risk'!AC15/'Population at Risk'!AC$5","v":5.5822411059105681E-2},{"$f":"'Population at Risk'!AD15/'Population at Risk'!AD$5","v":0.12618182398392061},{"$f":"'Population at Risk'!AE15/'Population at Risk'!AE$5","v":0.13394988715297124},{"$f":"'Population at Risk'!G15/'Population at Risk'!G$5","v":0.10195087415615944},{"$f":"'Population at Risk'!AF15/'Population at Risk'!AF$5","v":6.2272017986193876E-2},{"$f":"'Population at Risk'!H15/'Population at Risk'!H$5","v":5.853306060586979E-2},{"$f":"'Population at Risk'!AG15/'Population at Risk'!AG$5","v":0.13394988715297124},{"$f":"'Population at Risk'!AZ15/'Population at Risk'!AZ$5","v":0.11358069683983409},{"$f":"'Population at Risk'!I15/'Population at Risk'!I$5","v":0.14591662677814071},{"$f":"'Population at Risk'!J15/'Population at Risk'!J$5","v":0.10931269586069106},{"$f":"'Population at Risk'!K15/'Population at Risk'!K$5","v":6.7995942500227793E-2},{"$f":"'Population at Risk'!AH15/'Population at Risk'!AH$5","v":5.8277124850479173E-2},{"$f":"'Population at Risk'!AI15/'Population at Risk'!AI$5","v":7.5833581121024105E-2},{"$f":"'Population at Risk'!BA15/'Population at Risk'!BA$5","v":4.9946579418761065E-2},{"$f":"'Population at Risk'!L15/'Population at Risk'!L$5","v":7.9117396230391782E-2},{"$f":"'Population at Risk'!M15/'Population at Risk'!M$5","v":7.914435014934082E-2},{"$f":"'Population at Risk'!AJ15/'Population at Risk'!AJ$5","v":5.5911966571527971E-2},{"$f":"'Population at Risk'!AK15/'Population at Risk'!AK$5","v":0.17146863967084483},{"$f":"'Population at Risk'!AL15/'Population at Risk'!AL$5","v":6.5175172644295259E-2},{"$f":"'Population at Risk'!AM15/'Population at Risk'!AM$5","v":4.4774890377976065E-2},{"$f":"'Population at Risk'!N15/'Population at Risk'!N$5","v":6.8283496756334203E-2},{"$f":"'Population at Risk'!AN15/'Population at Risk'!AN$5","v":0.19069039731949416},{"$f":"'Population at Risk'!AO15/'Population at Risk'!AO$5","v":0.19087686635528719},{"$f":"'Population at Risk'!AP15/'Population at Risk'!AP$5","v":0.17689207639809831},{"$f":"'Population at Risk'!C15/'Population at Risk'!C$5","v":6.827740702415086E-2},{"$f":"'Population at Risk'!AQ15/'Population at Risk'!AQ$5","v":6.8644754997393823E-2},{"$f":"'Population at Risk'!O15/'Population at Risk'!O$5","v":5.0362275510352585E-2},{"$f":"'Population at Risk'!AR15/'Population at Risk'!AR$5","v":8.2467030697156177E-2},{"$f":"'Population at Risk'!AS15/'Population at Risk'!AS$5","v":0.14589359612185282},{"$f":"'Population at Risk'!AT15/'Population at Risk'!AT$5","v":0.25983679865277348},{"$f":"'Population at Risk'!AU15/'Population at Risk'!AU$5","v":0.25953442020572809},{"$f":"'Population at Risk'!BB15/'Population at Risk'!BB$5","v":6.8745634954756843E-2},{"$f":"'Population at Risk'!P15/'Population at Risk'!P$5","v":9.1421854655108742E-2},{"$f":"'Population at Risk'!AV15/'Population at Risk'!AV$5","v":5.9375710176509604E-2},{"$f":"'Population at Risk'!AW15/'Population at Risk'!AW$5","v":7.3635533417642424E-2},{"$f":"'Population at Risk'!Q15/'Population at Risk'!Q$5","v":0.11659411199815783},13]
["SIMD Q5 (least deprived)",null,{"$f":"'Population at Risk'!R16/'Population at Risk'!R$5","v":0.25707484946933484},{"$f":"'Population at Risk'!AX16/'Population at Risk'!AX$5","v":0.11326890085612724},{"$f":"'Population at Risk'!S16/'Population at Risk'!S$5","v":9.8272900782788303E-2},{"$f":"'Population at Risk'!T16/'Population at Risk'!T$5","v":0.17022855703233736},{"$f":"'Population at Risk'!U16/'Population at Risk'!U$5","v":0},{"$f":"'Population at Risk'!D16/'Population at Risk'!D$5","v":0.13537812132321803},{"$f":"'Population at Risk'!E16/'Population at Risk'!E$5","v":0.12771178709086245},{"$f":"'Population at Risk'!BC16/'Population at Risk'!BC$5","v":0},{"$f":"'Population at Risk'!V16/'Population at Risk'!V$5","v":6.8205554570102023E-2},{"$f":"'Population at Risk'!F16/'Population at Risk'!F$5","v":6.7685642663542767E-2},{"$f":"'Population at Risk'!W16/'Population at Risk'!W$5","v":7.7097368830232785E-2},{"$f":"'Population at Risk'!X16/'Population at Risk'!X$5","v":7.7104917718997912E-2},{"$f":"'Population at Risk'!Y16/'Population at Risk'!Y$5","v":7.8591652899767384E-2},{"$f":"'Population at Risk'!Z16/'Population at Risk'!Z$5","v":3.3790543302177782E-2},{"$f":"'Population at Risk'!AA16/'Population at Risk'!AA$5","v":5.5752748863855076E-2},{"$f":"'Population at Risk'!AB16/'Population at Risk'!AB$5","v":0.12403813651890694},{"$f":"'Population at Risk'!AY16/'Population at Risk'!AY$5","v":6.9385005917921669E-2},{"$f":"'Population at Risk'!AC16/'Population at Risk'!AC$5","v":6.8097923414139533E-2},{"$f":"'Population at Risk'!AD16/'Population at Risk'!AD$5","v":3.2803712049275548E-2},{"$f":"'Population at Risk'!AE16/'Population at Risk'!AE$5","v":3.4701493920975456E-2},{"$f":"'Population at Risk'!G16/'Population at Risk'!G$5","v":2.6816543955597235E-2},{"$f":"'Population at Risk'!AF16/'Population at Risk'!AF$5","v":4.1290660209479822E-2},{"$f":"'Population at Risk'!H16/'Population at Risk'!H$5","v":4.8751485316181696E-2},{"$f":"'Population at Risk'!AG16/'Population at Risk'!AG$5","v":3.4701493920975456E-2},{"$f":"'Population at Risk'!AZ16/'Population at Risk'!AZ$5","v":6.3061102714725661E-2},{"$f":"'Population at Risk'!I16/'Population at Risk'!I$5","v":3.1949783568289203E-2},{"$f":"'Population at Risk'!J16/'Population at Risk'!J$5","v":9.60122619600524E-2},{"$f":"'Population at Risk'!K16/'Population at Risk'!K$5","v":5.1639989087482997E-2},{"$f":"'Population at Risk'!AH16/'Population at Risk'!AH$5","v":3.5724225582262202E-2},{"$f":"'Population at Risk'!AI16/'Population at Risk'!AI$5","v":0.11751194408862767},{"$f":"'Population at Risk'!BA16/'Population at Risk'!BA$5","v":1.1641664568672215E-2},{"$f":"'Population at Risk'!L16/'Population at Risk'!L$5","v":3.5238651218685677E-2},{"$f":"'Population at Risk'!M16/'Population at Risk'!M$5","v":3.5250656413422572E-2},{"$f":"'Population at Risk'!AJ16/'Population at Risk'!AJ$5","v":4.5939378307547185E-2},{"$f":"'Population at Risk'!AK16/'Population at Risk'!AK$5","v":6.5576653085031675E-2},{"$f":"'Population at Risk'!AL16/'Population at Risk'!AL$5","v":3.2332584377410552E-2},{"$f":"'Population at Risk'!AM16/'Population at Risk'!AM$5","v":2.6516601231444566E-2},{"$f":"'Population at Risk'!N16/'Population at Risk'!N$5","v":5.5653111115633959E-2},{"$f":"'Population at Risk'!AN16/'Population at Risk'!AN$5","v":2.5413900901333667E-2},{"$f":"'Population at Risk'!AO16/'Population at Risk'!AO$5","v":2.5438752208286862E-2},{"$f":"'Population at Risk'!AP16/'Population at Risk'!AP$5","v":7.5106384254279304E-2},{"$f":"'Population at Risk'!C16/'Population at Risk'!C$5","v":0.14321354807433875},{"$f":"'Population at Risk'!AQ16/'Population at Risk'!AQ$5","v":5.9770575619557523E-2},{"$f":"'Population at Risk'!O16/'Population at Risk'!O$5","v":3.7692515199523415E-2},{"$f":"'Population at Risk'!AR16/'Population at Risk'!AR$5","v":7.1434001437126457E-2},{"$f":"'Population at Risk'!AS16/'Population at Risk'!AS$5","v":3.1944740794891263E-2},{"$f":"'Population at Risk'!AT16/'Population at Risk'!AT$5","v":0},{"$f":"'Population at Risk'!AU16/'Population at Risk'!AU$5","v":0},{"$f":"'Population at Risk'!BB16/'Population at Risk'!BB$5","v":5.9692654654977709E-2},{"$f":"'Population at Risk'!P16/'Population at Risk'!P$5","v":0.23339243064282783},{"$f":"'Population at Risk'!AV16/'Population at Risk'!AV$5","v":8.1256466021420531E-2},{"$f":"'Population at Risk'!AW16/'Population at Risk'!AW$5","v":4.6176047094649141E-2},{"$f":"'Population at Risk'!Q16/'Population at Risk'!Q$5","v":5.647724979175818E-2},14]
["SIMD Q1 (most deprived)","16+ Males",{"$f":"'Population at Risk'!R17/'Population at Risk'!R$5","v":3.6800479736187566E-2},{"$f":"'Population at Risk'!AX17/'Population at Risk'!AX$5","v":6.6738296335315694E-2},{"$f":"'Population at Risk'!S17/'Population at Risk'!S$5","v":7.6014879266149749E-2},{"$f":"'Population at Risk'!T17/'Population at Risk'!T$5","v":7.530405878996016E-2},{"$f":"'Population at Risk'!U17/'Population at Risk'!U$5","v":0},{"$f":"'Population at Risk'!D17/'Population at Risk'!D$5","v":2.9785057959914131E-2},{"$f":"'Population at Risk'!E17/'Population at Risk'!E$5","v":1.2391490198232208E-2},{"$f":"'Population at Risk'!BC17/'Population at Risk'!BC$5","v":0},{"$f":"'Population at Risk'!V17/'Population at Risk'!V$5","v":7.601847519651804E-2},{"$f":"'Population at Risk'!F17/'Population at Risk'!F$5","v":3.7137612204848083E-2},{"$f":"'Population at Risk'!W17/'Population at Risk'!W$5","v":0.10189659756687429},{"$f":"'Population at Risk'!X17/'Population at Risk'!X$5","v":0.10188626024300693},{"$f":"'Population at Risk'!Y17/'Population at Risk'!Y$5","v":8.0995052706061416E-2},{"$f":"'Population at Risk'!Z17/'Population at Risk'!Z$5","v":0.21666792873733542},{"$f":"'Population at Risk'!AA17/'Population at Risk'!AA$5","v":0.16421202928633141},{"$f":"'Population at Risk'!AB17/'Population at Risk'!AB$5","v":2.5182791136756949E-2},{"$f":"'Population at Risk'!AY17/'Population at Risk'!AY$5","v":9.5073563956274851E-2},{"$f":"'Population at Risk'!AC17/'Population at Risk'!AC$5","v":0.17546289457697259},{"$f":"'Population at Risk'!AD17/'Population at Risk'!AD$5","v":3.6863949023829549E-2},{"$f":"'Population at Risk'!AE17/'Population at Risk'!AE$5","v":3.6316991898187177E-2},{"$f":"'Population at Risk'!G17/'Population at Risk'!G$5","v":3.9325121836957647E-2},{"$f":"'Population at Risk'!AF17/'Population at Risk'!AF$5","v":0.2180873930486221},{"$f":"'Population at Risk'!H17/'Population at Risk'!H$5","v":0.14852891255635114},{"$f":"'Population at Risk'!AG17/'Population at Risk'!AG$5","v":3.6316991898187177E-2},{"$f":"'Population at Risk'!AZ17/'Population at Risk'!AZ$5","v":8.7862273959071743E-2},{"$f":"'Population at Risk'!I17/'Population at Risk'!I$5","v":3.1118808946807949E-2},{"$f":"'Population at Risk'!J17/'Population at Risk'!J$5","v":8.0568372536188926E-2},{"$f":"'Population at Risk'!K17/'Population at Risk'!K$5","v":0.11731066648135302},{"$f":"'Population at Risk'!AH17/'Population at Risk'!AH$5","v":0.14129479492233121},{"$f":"'Population at Risk'!AI17/'Population at Risk'!AI$5","v":6.9775584557421902E-2},{"$f":"'Population at Risk'!BA17/'Population at Risk'!BA$5","v":0.17888140879502654},{"$f":"'Population at Risk'!L17/'Population at Risk'!L$5","v":3.8352950646424862E-2},{"$f":"'Population at Risk'!M17/'Population at Risk'!M$5","v":3.8339615471614241E-2},{"$f":"'Population at Risk'!AJ17/'Population at Risk'!AJ$5","v":5.8807349406215549E-2},{"$f":"'Population at Risk'!AK17/'Population at Risk'!AK$5","v":4.3432627641825702E-3},{"$f":"'Population at Risk'!AL17/'Population at Risk'!AL$5","v":0.18615896291330988},{"$f":"'Population at Risk'!AM17/'Population at Risk'!AM$5","v":0.17064317025763737},{"$f":"'Population at Risk'!N17/'Population at Risk'!N$5","v":0.17188086744224229},{"$f":"'Population at Risk'!AN17/'Population at Risk'!AN$5","v":0},{"$f":"'Population at Risk'!AO17/'Population at Risk'!AO$5","v":0},{"$f":"'Population at Risk'!AP17/'Population at Risk'!AP$5","v":2.8440585533454917E-2},{"$f":"'Population at Risk'!C17/'Population at Risk'!C$5","v":4.9914206198389433E-2},{"$f":"'Population at Risk'!AQ17/'Population at Risk'!AQ$5","v":0.14960607970557621},{"$f":"'Population at Risk'!O17/'Population at Risk'!O$5","v":0.15945294848084168},{"$f":"'Population at Risk'!AR17/'Population at Risk'!AR$5","v":0.10375230607267906},{"$f":"'Population at Risk'!AS17/'Population at Risk'!AS$5","v":3.1122754882410883E-2},{"$f":"'Population at Risk'!AT17/'Population at Risk'!AT$5","v":0},{"$f":"'Population at Risk'!AU17/'Population at Risk'!AU$5","v":0},{"$f":"'Population at Risk'!BB17/'Population at Risk'!BB$5","v":8.5960026585345489E-2},{"$f":"'Population at Risk'!P17/'Population at Risk'!P$5","v":2.6644500781064812E-2},{"$f":"'Population at Risk'!AV17/'Population at Risk'!AV$5","v":8.7765371929078434E-2},{"$f":"'Population at Risk'!AW17/'Population at Risk'!AW$5","v":0.10987023183525961},{"$f":"'Population at Risk'!Q17/'Population at Risk'!Q$5","v":2.0939631605848733E-2},15]
["SIMD Q2",null,{"$f":"'Population at Risk'!R18/'Population at Risk'!R$5","v":5.4112725087280725E-2},{"$f":"'Population at Risk'!AX18/'Population at Risk'!AX$5","v":8.6900119045556931E-2},{"$f":"'Population at Risk'!S18/'Population at Risk'!S$5","v":0.12048811454864126},{"$f":"'Population at Risk'!T18/'Population at Risk'!T$5","v":9.0387577325365107E-2},{"$f":"'Population at Risk'!U18/'Population at Risk'!U$5","v":0.1388482263719214},{"$f":"'Population at Risk'!D18/'Population at Risk'!D$5","v":9.1256934541171481E-2},{"$f":"'Population at Risk'!E18/'Population at Risk'!E$5","v":5.1598128431228275E-2},{"$f":"'Population at Risk'!BC18/'Population at Risk'!BC$5","v":0.13876277830356723},{"$f":"'Population at Risk'!V18/'Population at Risk'!V$5","v":0.15804893200993875},{"$f":"'Population at Risk'!F18/'Population at Risk'!F$5","v":9.8383366944113385E-2},{"$f":"'Population at Risk'!W18/'Population at Risk'!W$5","v":0.11281117813115263},{"$f":"'Population at Risk'!X18/'Population at Risk'!X$5","v":0.11279973353229411},{"$f":"'Population at Risk'!Y18/'Population at Risk'!Y$5","v":0.13386295159366549},{"$f":"'Population at Risk'!Z18/'Population at Risk'!Z$5","v":8.9627367676122699E-2},{"$f":"'Population at Risk'!AA18/'Population at Risk'!AA$5","v":0.11682334167910224},{"$f":"'Population at Risk'!AB18/'Population at Risk'!AB$5","v":9.074320388485517E-2},{"$f":"'Population at Risk'!AY18/'Population at Risk'!AY$5","v":0.1042120872517598},{"$f":"'Population at Risk'!AC18/'Population at Risk'!AC$5","v":9.4010196087415315E-2},{"$f":"'Population at Risk'!AD18/'Population at Risk'!AD$5","v":0.10683455886121004},{"$f":"'Population at Risk'!AE18/'Population at Risk'!AE$5","v":0.11140757014318685},{"$f":"'Population at Risk'!G18/'Population at Risk'!G$5","v":9.8525556425518676E-2},{"$f":"'Population at Risk'!AF18/'Population at Risk'!AF$5","v":6.9335099141315137E-2},{"$f":"'Population at Risk'!H18/'Population at Risk'!H$5","v":0.12944485067131076},{"$f":"'Population at Risk'!AG18/'Population at Risk'!AG$5","v":0.11140757014318685},{"$f":"'Population at Risk'!AZ18/'Population at Risk'!AZ$5","v":9.5231424644999951E-2},{"$f":"'Population at Risk'!I18/'Population at Risk'!I$5","v":0.10128174587519682},{"$f":"'Population at Risk'!J18/'Population at Risk'!J$5","v":9.8931912058936811E-2},{"$f":"'Population at Risk'!K18/'Population at Risk'!K$5","v":0.1360433185880984},{"$f":"'Population at Risk'!AH18/'Population at Risk'!AH$5","v":0.15912095350573943},{"$f":"'Population at Risk'!AI18/'Population at Risk'!AI$5","v":0.1268853014133384},{"$f":"'Population at Risk'!BA18/'Population at Risk'!BA$5","v":0.15423216263308193},{"$f":"'Population at Risk'!L18/'Population at Risk'!L$5","v":0.14939442544077219},{"$f":"'Population at Risk'!M18/'Population at Risk'!M$5","v":0.14934248156825633},{"$f":"'Population at Risk'!AJ18/'Population at Risk'!AJ$5","v":0.22186072354626454},{"$f":"'Population at Risk'!AK18/'Population at Risk'!AK$5","v":8.8556923633539453E-2},{"$f":"'Population at Risk'!AL18/'Population at Risk'!AL$5","v":9.9110077834702229E-2},{"$f":"'Population at Risk'!AM18/'Population at Risk'!AM$5","v":0.16210701253290583},{"$f":"'Population at Risk'!N18/'Population at Risk'!N$5","v":0.10756424767233491},{"$f":"'Population at Risk'!AN18/'Population at Risk'!AN$5","v":9.4713107162227209E-2},{"$f":"'Population at Risk'!AO18/'Population at Risk'!AO$5","v":9.4641825444382405E-2},{"$f":"'Population at Risk'!AP18/'Population at Risk'!AP$5","v":6.8539238176177936E-2},{"$f":"'Population at Risk'!C18/'Population at Risk'!C$5","v":0.13718856048397071},{"$f":"'Population at Risk'!AQ18/'Population at Risk'!AQ$5","v":0.10623255503592705},{"$f":"'Population at Risk'!O18/'Population at Risk'!O$5","v":0.14431606044607739},{"$f":"'Population at Risk'!AR18/'Population at Risk'!AR$5","v":0.11563898445659411},{"$f":"'Population at Risk'!AS18/'Population at Risk'!AS$5","v":0.10129458863044687},{"$f":"'Population at Risk'!AT18/'Population at Risk'!AT$5","v":2.2259757748176838E-2},{"$f":"'Population at Risk'!AU18/'Population at Risk'!AU$5","v":2.2279440505101101E-2},{"$f":"'Population at Risk'!BB18/'Population at Risk'!BB$5","v":0.15501931587527942},{"$f":"'Population at Risk'!P18/'Population at Risk'!P$5","v":9.930235590101702E-2},{"$f":"'Population at Risk'!AV18/'Population at Risk'!AV$5","v":0.15199828708979463},{"$f":"'Population at Risk'!AW18/'Population at Risk'!AW$5","v":0.15519997164227081},{"$f":"'Population at Risk'!Q18/'Population at Risk'!Q$5","v":0.17475583460115793},16]
["SIMD Q3",null,{"$f":"'Population at Risk'!R19/'Population at Risk'!R$5","v":6.3743405267752296E-2},{"$f":"'Population at Risk'!AX19/'Population at Risk'!AX$5","v":8.9746807414463226E-2},{"$f":"'Population at Risk'!S19/'Population at Risk'!S$5","v":0.11438399551670932},{"$f":"'Population at Risk'!T19/'Population at Risk'!T$5","v":8.546062137566332E-2},{"$f":"'Population at Risk'!U19/'Population at Risk'!U$5","v":0.36842843090599675},{"$f":"'Population at Risk'!D19/'Population at Risk'!D$5","v":0.11435091488775052},{"$f":"'Population at Risk'!E19/'Population at Risk'!E$5","v":0.12706062915381863},{"$f":"'Population at Risk'!BC19/'Population at Risk'!BC$5","v":0.36820169774151718},{"$f":"'Population at Risk'!V19/'Population at Risk'!V$5","v":9.4157313346280788E-2},{"$f":"'Population at Risk'!F19/'Population at Risk'!F$5","v":0.1862865495013713},{"$f":"'Population at Risk'!W19/'Population at Risk'!W$5","v":0.11276038926742563},{"$f":"'Population at Risk'!X19/'Population at Risk'!X$5","v":0.11274894982105449},{"$f":"'Population at Risk'!Y19/'Population at Risk'!Y$5","v":9.3024497341309201E-2},{"$f":"'Population at Risk'!Z19/'Population at Risk'!Z$5","v":6.4806166358170617E-2},{"$f":"'Population at Risk'!AA19/'Population at Risk'!AA$5","v":7.9413281707833336E-2},{"$f":"'Population at Risk'!AB19/'Population at Risk'!AB$5","v":0.12236814680166848},{"$f":"'Population at Risk'!AY19/'Population at Risk'!AY$5","v":0.122302891153621},{"$f":"'Population at Risk'!AC19/'Population at Risk'!AC$5","v":6.8151504916147285E-2},{"$f":"'Population at Risk'!AD19/'Population at Risk'!AD$5","v":0.19456654776247365},{"$f":"'Population at Risk'!AE19/'Population at Risk'!AE$5","v":0.18367199917015589},{"$f":"'Population at Risk'!G19/'Population at Risk'!G$5","v":0.22763609808315122},{"$f":"'Population at Risk'!AF19/'Population at Risk'!AF$5","v":8.1393540200049116E-2},{"$f":"'Population at Risk'!H19/'Population at Risk'!H$5","v":8.7268444377866863E-2},{"$f":"'Population at Risk'!AG19/'Population at Risk'!AG$5","v":0.18367199917015589},{"$f":"'Population at Risk'!AZ19/'Population at Risk'!AZ$5","v":0.13062631454727228},{"$f":"'Population at Risk'!I19/'Population at Risk'!I$5","v":0.1942484754034009},{"$f":"'Population at Risk'!J19/'Population at Risk'!J$5","v":8.530242737461316E-2},{"$f":"'Population at Risk'!K19/'Population at Risk'!K$5","v":9.3338234053109564E-2},{"$f":"'Population at Risk'!AH19/'Population at Risk'!AH$5","v":0.10009198658694371},{"$f":"'Population at Risk'!AI19/'Population at Risk'!AI$5","v":0.10383606901853176},{"$f":"'Population at Risk'!BA19/'Population at Risk'!BA$5","v":7.3483574876618038E-2},{"$f":"'Population at Risk'!L19/'Population at Risk'!L$5","v":0.18989438446583967},{"$f":"'Population at Risk'!M19/'Population at Risk'!M$5","v":0.18982835891188038},{"$f":"'Population at Risk'!AJ19/'Population at Risk'!AJ$5","v":0.14009348806681338},{"$f":"'Population at Risk'!AK19/'Population at Risk'!AK$5","v":0.15893554766419482},{"$f":"'Population at Risk'!AL19/'Population at Risk'!AL$5","v":6.9395331766265153E-2},{"$f":"'Population at Risk'!AM19/'Population at Risk'!AM$5","v":9.4592148119601371E-2},{"$f":"'Population at Risk'!N19/'Population at Risk'!N$5","v":6.4995214078362243E-2},{"$f":"'Population at Risk'!AN19/'Population at Risk'!AN$5","v":0.18813218864253833},{"$f":"'Population at Risk'!AO19/'Population at Risk'!AO$5","v":0.18799059909923083},{"$f":"'Population at Risk'!AP19/'Population at Risk'!AP$5","v":0.14119669664842779},{"$f":"'Population at Risk'!C19/'Population at Risk'!C$5","v":9.9849061181341903E-2},{"$f":"'Population at Risk'!AQ19/'Population at Risk'!AQ$5","v":9.5384714150415495E-2},{"$f":"'Population at Risk'!O19/'Population at Risk'!O$5","v":8.9936408620594988E-2},{"$f":"'Population at Risk'!AR19/'Population at Risk'!AR$5","v":0.11033863331772598},{"$f":"'Population at Risk'!AS19/'Population at Risk'!AS$5","v":0.19427310655095614},{"$f":"'Population at Risk'!AT19/'Population at Risk'!AT$5","v":0.20795704598113102},{"$f":"'Population at Risk'!AU19/'Population at Risk'!AU$5","v":0.20814092794575256},{"$f":"'Population at Risk'!BB19/'Population at Risk'!BB$5","v":0.12065868798085905},{"$f":"'Population at Risk'!P19/'Population at Risk'!P$5","v":3.3046723722617743E-2},{"$f":"'Population at Risk'!AV19/'Population at Risk'!AV$5","v":0.10702391796812807},{"$f":"'Population at Risk'!AW19/'Population at Risk'!AW$5","v":0.10534808563909152},{"$f":"'Population at Risk'!Q19/'Population at Risk'!Q$5","v":0.13305822980653048},17]
["SIMD Q4",null,{"$f":"'Population at Risk'!R20/'Population at Risk'!R$5","v":7.5449324763615364E-2},{"$f":"'Population at Risk'!AX20/'Population at Risk'!AX$5","v":0.13635631894584596},{"$f":"'Population at Risk'!S20/'Population at Risk'!S$5","v":9.6818270444844826E-2},{"$f":"'Population at Risk'!T20/'Population at Risk'!T$5","v":8.0684164171645117E-2},{"$f":"'Population at Risk'!U20/'Population at Risk'!U$5","v":2.5419967126912236E-2},{"$f":"'Population at Risk'!D20/'Population at Risk'!D$5","v":0.15189950952760967},{"$f":"'Population at Risk'!E20/'Population at Risk'!E$5","v":0.20353948266426783},{"$f":"'Population at Risk'!BC20/'Population at Risk'!BC$5","v":2.5404323519893426E-2},{"$f":"'Population at Risk'!V20/'Population at Risk'!V$5","v":8.8274632667482103E-2},{"$f":"'Population at Risk'!F20/'Population at Risk'!F$5","v":0.13073550501714928},{"$f":"'Population at Risk'!W20/'Population at Risk'!W$5","v":8.1940276854706479E-2},{"$f":"'Population at Risk'!X20/'Population at Risk'!X$5","v":8.1931964082740991E-2},{"$f":"'Population at Risk'!Y20/'Population at Risk'!Y$5","v":0.10123465312458585},{"$f":"'Population at Risk'!Z20/'Population at Risk'!Z$5","v":4.6824721423880167E-2},{"$f":"'Population at Risk'!AA20/'Population at Risk'!AA$5","v":6.7831151435890025E-2},{"$f":"'Population at Risk'!AB20/'Population at Risk'!AB$5","v":0.16017324967698734},{"$f":"'Population at Risk'!AY20/'Population at Risk'!AY$5","v":0.11540474637868339},{"$f":"'Population at Risk'!AC20/'Population at Risk'!AC$5","v":6.1635515559242647E-2},{"$f":"'Population at Risk'!AD20/'Population at Risk'!AD$5","v":0.15166012122033512},{"$f":"'Population at Risk'!AE20/'Population at Risk'!AE$5","v":0.16595401804619378},{"$f":"'Population at Risk'!G20/'Population at Risk'!G$5","v":0.12030076944820971},{"$f":"'Population at Risk'!AF20/'Population at Risk'!AF$5","v":8.2066208543385283E-2},{"$f":"'Population at Risk'!H20/'Population at Risk'!H$5","v":6.5461369953956336E-2},{"$f":"'Population at Risk'!AG20/'Population at Risk'!AG$5","v":0.16595401804619378},{"$f":"'Population at Risk'!AZ20/'Population at Risk'!AZ$5","v":0.14675806292195528},{"$f":"'Population at Risk'!I20/'Population at Risk'!I$5","v":0.18823557177355427},{"$f":"'Population at Risk'!J20/'Population at Risk'!J$5","v":0.10781862870358828},{"$f":"'Population at Risk'!K20/'Population at Risk'!K$5","v":8.0911711889390836E-2},{"$f":"'Population at Risk'!AH20/'Population at Risk'!AH$5","v":7.8983600552837319E-2},{"$f":"'Population at Risk'!AI20/'Population at Risk'!AI$5","v":9.1075325950052424E-2},{"$f":"'Population at Risk'!BA20/'Population at Risk'!BA$5","v":5.7554552725863239E-2},{"$f":"'Population at Risk'!L20/'Population at Risk'!L$5","v":8.3014136358687693E-2},{"$f":"'Population at Risk'!M20/'Population at Risk'!M$5","v":8.2985272659769155E-2},{"$f":"'Population at Risk'!AJ20/'Population at Risk'!AJ$5","v":8.0916480687849512E-2},{"$f":"'Population at Risk'!AK20/'Population at Risk'!AK$5","v":0.19796454627586535},{"$f":"'Population at Risk'!AL20/'Population at Risk'!AL$5","v":7.1034430243177252E-2},{"$f":"'Population at Risk'!AM20/'Population at Risk'!AM$5","v":6.4008105512738306E-2},{"$f":"'Population at Risk'!N20/'Population at Risk'!N$5","v":7.6058433126554456E-2},{"$f":"'Population at Risk'!AN20/'Population at Risk'!AN$5","v":0.24949927321676485},{"$f":"'Population at Risk'!AO20/'Population at Risk'!AO$5","v":0.24931149839521397},{"$f":"'Population at Risk'!AP20/'Population at Risk'!AP$5","v":0.21786355232865706},{"$f":"'Population at Risk'!C20/'Population at Risk'!C$5","v":9.2502945501900594E-2},{"$f":"'Population at Risk'!AQ20/'Population at Risk'!AQ$5","v":8.5900455595475184E-2},{"$f":"'Population at Risk'!O20/'Population at Risk'!O$5","v":6.0635991425564285E-2},{"$f":"'Population at Risk'!AR20/'Population at Risk'!AR$5","v":9.8541827390681652E-2},{"$f":"'Population at Risk'!AS20/'Population at Risk'!AS$5","v":0.18825944047128212},{"$f":"'Population at Risk'!AT20/'Population at Risk'!AT$5","v":0.33802053171181662},{"$f":"'Population at Risk'!AU20/'Population at Risk'!AU$5","v":0.33831941977863045},{"$f":"'Population at Risk'!BB20/'Population at Risk'!BB$5","v":8.2510316528189645E-2},{"$f":"'Population at Risk'!P20/'Population at Risk'!P$5","v":9.586608303384897E-2},{"$f":"'Population at Risk'!AV20/'Population at Risk'!AV$5","v":6.3157699107347004E-2},{"$f":"'Population at Risk'!AW20/'Population at Risk'!AW$5","v":9.4263142531498312E-2},{"$f":"'Population at Risk'!Q20/'Population at Risk'!Q$5","v":0.16877349926597865},18]
["SIMD Q5 (least deprived)",null,{"$f":"'Population at Risk'!R21/'Population at Risk'!R$5","v":0.25761553322685637},{"$f":"'Population at Risk'!AX21/'Population at Risk'!AX$5","v":0.11734485528235136},{"$f":"'Population at Risk'!S21/'Population at Risk'!S$5","v":0.10947599483626382},{"$f":"'Population at Risk'!T21/'Population at Risk'!T$5","v":0.17879912265185383},{"$f":"'Population at Risk'!U21/'Population at Risk'!U$5","v":0},{"$f":"'Population at Risk'!D21/'Population at Risk'!D$5","v":0.16600022930189329},{"$f":"'Population at Risk'!E21/'Population at Risk'!E$5","v":0.15510862797895905},{"$f":"'Population at Risk'!BC21/'Population at Risk'!BC$5","v":0},{"$f":"'Population at Risk'!V21/'Population at Risk'!V$5","v":7.095350578086744E-2},{"$f":"'Population at Risk'!F21/'Population at Risk'!F$5","v":7.7618853234482199E-2},{"$f":"'Population at Risk'!W21/'Population at Risk'!W$5","v":8.1724673734389727E-2},{"$f":"'Population at Risk'!X21/'Population at Risk'!X$5","v":8.1716382835178972E-2},{"$f":"'Population at Risk'!Y21/'Population at Risk'!Y$5","v":8.122017381610537E-2},{"$f":"'Population at Risk'!Z21/'Population at Risk'!Z$5","v":3.361720562148595E-2},{"$f":"'Population at Risk'!AA21/'Population at Risk'!AA$5","v":6.2798287580357298E-2},{"$f":"'Population at Risk'!AB21/'Population at Risk'!AB$5","v":0.14993957960326471},{"$f":"'Population at Risk'!AY21/'Population at Risk'!AY$5","v":7.9054637080406637E-2},{"$f":"'Population at Risk'!AC21/'Population at Risk'!AC$5","v":7.1539355016495623E-2},{"$f":"'Population at Risk'!AD21/'Population at Risk'!AD$5","v":4.019107228343044E-2},{"$f":"'Population at Risk'!AE21/'Population at Risk'!AE$5","v":3.8878167986401008E-2},{"$f":"'Population at Risk'!G21/'Population at Risk'!G$5","v":4.4671222618419618E-2},{"$f":"'Population at Risk'!AF21/'Population at Risk'!AF$5","v":4.9322239530284404E-2},{"$f":"'Population at Risk'!H21/'Population at Risk'!H$5","v":5.3869165501499131E-2},{"$f":"'Population at Risk'!AG21/'Population at Risk'!AG$5","v":3.8878167986401008E-2},{"$f":"'Population at Risk'!AZ21/'Population at Risk'!AZ$5","v":7.5943783760971426E-2},{"$f":"'Population at Risk'!I21/'Population at Risk'!I$5","v":3.9627151466046132E-2},{"$f":"'Population at Risk'!J21/'Population at Risk'!J$5","v":8.6364023851244268E-2},{"$f":"'Population at Risk'!K21/'Population at Risk'!K$5","v":5.1677640803624934E-2},{"$f":"'Population at Risk'!AH21/'Population at Risk'!AH$5","v":4.5594098662091465E-2},{"$f":"'Population at Risk'!AI21/'Population at Risk'!AI$5","v":0.13278054577928683},{"$f":"'Population at Risk'!BA21/'Population at Risk'!BA$5","v":1.3475857591503363E-2},{"$f":"'Population at Risk'!L21/'Population at Risk'!L$5","v":3.4249810064399783E-2},{"$f":"'Population at Risk'!M21/'Population at Risk'!M$5","v":3.4237901535936102E-2},{"$f":"'Population at Risk'!AJ21/'Population at Risk'!AJ$5","v":6.8095221084167726E-2},{"$f":"'Population at Risk'!AK21/'Population at Risk'!AK$5","v":7.7314103975019033E-2},{"$f":"'Population at Risk'!AL21/'Population at Risk'!AL$5","v":3.5189155730981324E-2},{"$f":"'Population at Risk'!AM21/'Population at Risk'!AM$5","v":3.4810519667962239E-2},{"$f":"'Population at Risk'!N21/'Population at Risk'!N$5","v":6.0211451364308562E-2},{"$f":"'Population at Risk'!AN21/'Population at Risk'!AN$5","v":3.2740677559879104E-2},{"$f":"'Population at Risk'!AO21/'Population at Risk'!AO$5","v":3.2716036706994051E-2},{"$f":"'Population at Risk'!AP21/'Population at Risk'!AP$5","v":8.2582254621980558E-2},{"$f":"'Population at Risk'!C21/'Population at Risk'!C$5","v":0.17882866440692358},{"$f":"'Population at Risk'!AQ21/'Population at Risk'!AQ$5","v":7.2872922784602209E-2},{"$f":"'Population at Risk'!O21/'Population at Risk'!O$5","v":4.3549225304282971E-2},{"$f":"'Population at Risk'!AR21/'Population at Risk'!AR$5","v":8.0781300563395386E-2},{"$f":"'Population at Risk'!AS21/'Population at Risk'!AS$5","v":3.9632176278791398E-2},{"$f":"'Population at Risk'!AT21/'Population at Risk'!AT$5","v":0},{"$f":"'Population at Risk'!AU21/'Population at Risk'!AU$5","v":0},{"$f":"'Population at Risk'!BB21/'Population at Risk'!BB$5","v":6.9373247257744214E-2},{"$f":"'Population at Risk'!P21/'Population at Risk'!P$5","v":0.24482855709245574},{"$f":"'Population at Risk'!AV21/'Population at Risk'!AV$5","v":8.869954482501409E-2},{"$f":"'Population at Risk'!AW21/'Population at Risk'!AW$5","v":5.6653015564396066E-2},{"$f":"'Population at Risk'!Q21/'Population at Risk'!Q$5","v":7.8868437834671637E-2},19]
["All quintiles","Female 0-4",{"$f":"'Population at Risk'!R22/'Population at Risk'!R$5","v":0},{"$f":"'Population at Risk'!AX22/'Population at Risk'!AX$5","v":0},{"$f":"'Population at Risk'!S22/'Population at Risk'!S$5","v":0},{"$f":"'Population at Risk'!T22/'Population at Risk'!T$5","v":0},{"$f":"'Population at Risk'!U22/'Population at Risk'!U$5","v":0},{"$f":"'Population at Risk'!D22/'Population at Risk'!D$5","v":0},{"$f":"'Population at Risk'!E22/'Population at Risk'!E$5","v":0},{"$f":"'Population at Risk'!BC22/'Population at Risk'!BC$5","v":0},{"$f":"'Population at Risk'!V22/'Population at Risk'!V$5","v":0},{"$f":"'Population at Risk'!F22/'Population at Risk'!F$5","v":0},{"$f":"'Population at Risk'!W22/'Population at Risk'!W$5","v":0},{"$f":"'Population at Risk'!X22/'Population at Risk'!X$5","v":0},{"$f":"'Population at Risk'!Y22/'Population at Risk'!Y$5","v":0},{"$f":"'Population at Risk'!Z22/'Population at Risk'!Z$5","v":0},{"$f":"'Population at Risk'!AA22/'Population at Risk'!AA$5","v":0},{"$f":"'Population at Risk'!AB22/'Population at Risk'!AB$5","v":0},{"$f":"'Population at Risk'!AY22/'Population at Risk'!AY$5","v":0},{"$f":"'Population at Risk'!AC22/'Population at Risk'!AC$5","v":0},{"$f":"'Population at Risk'!AD22/'Population at Risk'!AD$5","v":0},{"$f":"'Population at Risk'!AE22/'Population at Risk'!AE$5","v":0},{"$f":"'Population at Risk'!G22/'Population at Risk'!G$5","v":0},{"$f":"'Population at Risk'!AF22/'Population at Risk'!AF$5","v":0},{"$f":"'Population at Risk'!H22/'Population at Risk'!H$5","v":0},{"$f":"'Population at Risk'!AG22/'Population at Risk'!AG$5","v":0},{"$f":"'Population at Risk'!AZ22/'Population at Risk'!AZ$5","v":0},{"$f":"'Population at Risk'!I22/'Population at Risk'!I$5","v":0},{"$f":"'Population at Risk'!J22/'Population at Risk'!J$5","v":0},{"$f":"'Population at Risk'!K22/'Population at Risk'!K$5","v":0},{"$f":"'Population at Risk'!AH22/'Population at Risk'!AH$5","v":0},{"$f":"'Population at Risk'!AI22/'Population at Risk'!AI$5","v":0},{"$f":"'Population at Risk'!BA22/'Population at Risk'!BA$5","v":0},{"$f":"'Population at Risk'!L22/'Population at Risk'!L$5","v":0},{"$f":"'Population at Risk'!M22/'Population at Risk'!M$5","v":0},{"$f":"'Population at Risk'!AJ22/'Population at Risk'!AJ$5","v":0},{"$f":"'Population at Risk'!AK22/'Population at Risk'!AK$5","v":0},{"$f":"'Population at Risk'!AL22/'Population at Risk'!AL$5","v":0},{"$f":"'Population at Risk'!AM22/'Population at Risk'!AM$5","v":0},{"$f":"'Population at Risk'!N22/'Population at Risk'!N$5","v":0},{"$f":"'Population at Risk'!AN22/'Population at Risk'!AN$5","v":0},{"$f":"'Population at Risk'!AO22/'Population at Risk'!AO$5","v":0},{"$f":"'Population at Risk'!AP22/'Population at Risk'!AP$5","v":0},{"$f":"'Population at Risk'!C22/'Population at Risk'!C$5","v":0},{"$f":"'Population at Risk'!AQ22/'Population at Risk'!AQ$5","v":0},{"$f":"'Population at Risk'!O22/'Population at Risk'!O$5","v":0},{"$f":"'Population at Risk'!AR22/'Population at Risk'!AR$5","v":0},{"$f":"'Population at Risk'!AS22/'Population at Risk'!AS$5","v":0},{"$f":"'Population at Risk'!AT22/'Population at Risk'!AT$5","v":0},{"$f":"'Population at Risk'!AU22/'Population at Risk'!AU$5","v":0},{"$f":"'Population at Risk'!BB22/'Population at Risk'!BB$5","v":0},{"$f":"'Population at Risk'!P22/'Population at Risk'!P$5","v":0},{"$f":"'Population at Risk'!AV22/'Population at Risk'!AV$5","v":0},{"$f":"'Population at Risk'!AW22/'Population at Risk'!AW$5","v":0},{"$f":"'Population at Risk'!Q22/'Population at Risk'!Q$5","v":0},20]
[null,"Female 5-9",{"$f":"'Population at Risk'!R23/'Population at Risk'!R$5","v":0},{"$f":"'Population at Risk'!AX23/'Population at Risk'!AX$5","v":0},{"$f":"'Population at Risk'!S23/'Population at Risk'!S$5","v":0},{"$f":"'Population at Risk'!T23/'Population at Risk'!T$5","v":0},{"$f":"'Population at Risk'!U23/'Population at Risk'!U$5","v":0},{"$f":"'Population at Risk'!D23/'Population at Risk'!D$5","v":0},{"$f":"'Population at Risk'!E23/'Population at Risk'!E$5","v":0},{"$f":"'Population at Risk'!BC23/'Population at Risk'!BC$5","v":0},{"$f":"'Population at Risk'!V23/'Population at Risk'!V$5","v":0},{"$f":"'Population at Risk'!F23/'Population at Risk'!F$5","v":0},{"$f":"'Population at Risk'!W23/'Population at Risk'!W$5","v":0},{"$f":"'Population at Risk'!X23/'Population at Risk'!X$5","v":0},{"$f":"'Population at Risk'!Y23/'Population at Risk'!Y$5","v":0},{"$f":"'Population at Risk'!Z23/'Population at Risk'!Z$5","v":0},{"$f":"'Population at Risk'!AA23/'Population at Risk'!AA$5","v":0},{"$f":"'Population at Risk'!AB23/'Population at Risk'!AB$5","v":0},{"$f":"'Population at Risk'!AY23/'Population at Risk'!AY$5","v":0},{"$f":"'Population at Risk'!AC23/'Population at Risk'!AC$5","v":0},{"$f":"'Population at Risk'!AD23/'Population at Risk'!AD$5","v":0},{"$f":"'Population at Risk'!AE23/'Population at Risk'!AE$5","v":0},{"$f":"'Population at Risk'!G23/'Population at Risk'!G$5","v":0},{"$f":"'Population at Risk'!AF23/'Population at Risk'!AF$5","v":0},{"$f":"'Population at Risk'!H23/'Population at Risk'!H$5","v":0},{"$f":"'Population at Risk'!AG23/'Population at Risk'!AG$5","v":0},{"$f":"'Population at Risk'!AZ23/'Population at Risk'!AZ$5","v":0},{"$f":"'Population at Risk'!I23/'Population at Risk'!I$5","v":0},{"$f":"'Population at Risk'!J23/'Population at Risk'!J$5","v":0},{"$f":"'Population at Risk'!K23/'Population at Risk'!K$5","v":0},{"$f":"'Population at Risk'!AH23/'Population at Risk'!AH$5","v":0},{"$f":"'Population at Risk'!AI23/'Population at Risk'!AI$5","v":0},{"$f":"'Population at Risk'!BA23/'Population at Risk'!BA$5","v":0},{"$f":"'Population at Risk'!L23/'Population at Risk'!L$5","v":0},{"$f":"'Population at Risk'!M23/'Population at Risk'!M$5","v":0},{"$f":"'Population at Risk'!AJ23/'Population at Risk'!AJ$5","v":0},{"$f":"'Population at Risk'!AK23/'Population at Risk'!AK$5","v":0},{"$f":"'Population at Risk'!AL23/'Population at Risk'!AL$5","v":0},{"$f":"'Population at Risk'!AM23/'Population at Risk'!AM$5","v":0},{"$f":"'Population at Risk'!N23/'Population at Risk'!N$5","v":0},{"$f":"'Population at Risk'!AN23/'Population at Risk'!AN$5","v":0},{"$f":"'Population at Risk'!AO23/'Population at Risk'!AO$5","v":0},{"$f":"'Population at Risk'!AP23/'Population at Risk'!AP$5","v":0},{"$f":"'Population at Risk'!C23/'Population at Risk'!C$5","v":0},{"$f":"'Population at Risk'!AQ23/'Population at Risk'!AQ$5","v":0},{"$f":"'Population at Risk'!O23/'Population at Risk'!O$5","v":0},{"$f":"'Population at Risk'!AR23/'Population at Risk'!AR$5","v":0},{"$f":"'Population at Risk'!AS23/'Population at Risk'!AS$5","v":0},{"$f":"'Population at Risk'!AT23/'Population at Risk'!AT$5","v":0},{"$f":"'Population at Risk'!AU23/'Population at Risk'!AU$5","v":0},{"$f":"'Population at Risk'!BB23/'Population at Risk'!BB$5","v":0},{"$f":"'Population at Risk'!P23/'Population at Risk'!P$5","v":0},{"$f":"'Population at Risk'!AV23/'Population at Risk'!AV$5","v":0},{"$f":"'Population at Risk'!AW23/'Population at Risk'!AW$5","v":0},{"$f":"'Population at Risk'!Q23/'Population at Risk'!Q$5","v":0},21]
[null,"Female 10-15",{"$f":"'Population at Risk'!R24/'Population at Risk'!R$5","v":0},{"$f":"'Population at Risk'!AX24/'Population at Risk'!AX$5","v":0},{"$f":"'Population at Risk'!S24/'Population at Risk'!S$5","v":0},{"$f":"'Population at Risk'!T24/'Population at Risk'!T$5","v":0},{"$f":"'Population at Risk'!U24/'Population at Risk'!U$5","v":0},{"$f":"'Population at Risk'!D24/'Population at Risk'!D$5","v":0},{"$f":"'Population at Risk'!E24/'Population at Risk'!E$5","v":0},{"$f":"'Population at Risk'!BC24/'Population at Risk'!BC$5","v":0},{"$f":"'Population at Risk'!V24/'Population at Risk'!V$5","v":0},{"$f":"'Population at Risk'!F24/'Population at Risk'!F$5","v":0},{"$f":"'Population at Risk'!W24/'Population at Risk'!W$5","v":0},{"$f":"'Population at Risk'!X24/'Population at Risk'!X$5","v":0},{"$f":"'Population at Risk'!Y24/'Population at Risk'!Y$5","v":0},{"$f":"'Population at Risk'!Z24/'Population at Risk'!Z$5","v":0},{"$f":"'Population at Risk'!AA24/'Population at Risk'!AA$5","v":0},{"$f":"'Population at Risk'!AB24/'Population at Risk'!AB$5","v":0},{"$f":"'Population at Risk'!AY24/'Population at Risk'!AY$5","v":0},{"$f":"'Population at Risk'!AC24/'Population at Risk'!AC$5","v":0},{"$f":"'Population at Risk'!AD24/'Population at Risk'!AD$5","v":0},{"$f":"'Population at Risk'!AE24/'Population at Risk'!AE$5","v":0},{"$f":"'Population at Risk'!G24/'Population at Risk'!G$5","v":0},{"$f":"'Population at Risk'!AF24/'Population at Risk'!AF$5","v":0},{"$f":"'Population at Risk'!H24/'Population at Risk'!H$5","v":0},{"$f":"'Population at Risk'!AG24/'Population at Risk'!AG$5","v":0},{"$f":"'Population at Risk'!AZ24/'Population at Risk'!AZ$5","v":0},{"$f":"'Population at Risk'!I24/'Population at Risk'!I$5","v":0},{"$f":"'Population at Risk'!J24/'Population at Risk'!J$5","v":0},{"$f":"'Population at Risk'!K24/'Population at Risk'!K$5","v":0},{"$f":"'Population at Risk'!AH24/'Population at Risk'!AH$5","v":0},{"$f":"'Population at Risk'!AI24/'Population at Risk'!AI$5","v":0},{"$f":"'Population at Risk'!BA24/'Population at Risk'!BA$5","v":0},{"$f":"'Population at Risk'!L24/'Population at Risk'!L$5","v":0},{"$f":"'Population at Risk'!M24/'Population at Risk'!M$5","v":0},{"$f":"'Population at Risk'!AJ24/'Population at Risk'!AJ$5","v":0},{"$f":"'Population at Risk'!AK24/'Population at Risk'!AK$5","v":0},{"$f":"'Population at Risk'!AL24/'Population at Risk'!AL$5","v":0},{"$f":"'Population at Risk'!AM24/'Population at Risk'!AM$5","v":0},{"$f":"'Population at Risk'!N24/'Population at Risk'!N$5","v":0},{"$f":"'Population at Risk'!AN24/'Population at Risk'!AN$5","v":0},{"$f":"'Population at Risk'!AO24/'Population at Risk'!AO$5","v":0},{"$f":"'Population at Risk'!AP24/'Population at Risk'!AP$5","v":0},{"$f":"'Population at Risk'!C24/'Population at Risk'!C$5","v":0},{"$f":"'Population at Risk'!AQ24/'Population at Risk'!AQ$5","v":0},{"$f":"'Population at Risk'!O24/'Population at Risk'!O$5","v":0},{"$f":"'Population at Risk'!AR24/'Population at Risk'!AR$5","v":0},{"$f":"'Population at Risk'!AS24/'Population at Risk'!AS$5","v":0},{"$f":"'Population at Risk'!AT24/'Population at Risk'!AT$5","v":0},{"$f":"'Population at Risk'!AU24/'Population at Risk'!AU$5","v":0},{"$f":"'Population at Risk'!BB24/'Population at Risk'!BB$5","v":0},{"$f":"'Population at Risk'!P24/'Population at Risk'!P$5","v":0},{"$f":"'Population at Risk'!AV24/'Population at Risk'!AV$5","v":0},{"$f":"'Population at Risk'!AW24/'Population at Risk'!AW$5","v":0},{"$f":"'Population at Risk'!Q24/'Population at Risk'!Q$5","v":0},22]
[null,"Female 16-19",{"$f":"'Population at Risk'!R25/'Population at Risk'!R$5","v":1.657909452277239E-2},{"$f":"'Population at Risk'!AX25/'Population at Risk'!AX$5","v":1.9938398977896964E-2},{"$f":"'Population at Risk'!S25/'Population at Risk'!S$5","v":1.4694751454219925E-2},{"$f":"'Population at Risk'!T25/'Population at Risk'!T$5","v":1.4912860221668335E-2},{"$f":"'Population at Risk'!U25/'Population at Risk'!U$5","v":7.8001143948737139E-3},{"$f":"'Population at Risk'!D25/'Population at Risk'!D$5","v":1.3200948206784628E-2},{"$f":"'Population at Risk'!E25/'Population at Risk'!E$5","v":1.2564195754226641E-2},{"$f":"'Population at Risk'!BC25/'Population at Risk'!BC$5","v":7.8055863674420176E-3},{"$f":"'Population at Risk'!V25/'Population at Risk'!V$5","v":1.4209066567456938E-2},{"$f":"'Population at Risk'!F25/'Population at Risk'!F$5","v":1.1911162143862434E-2},{"$f":"'Population at Risk'!W25/'Population at Risk'!W$5","v":1.6169500025138357E-2},{"$f":"'Population at Risk'!X25/'Population at Risk'!X$5","v":1.6171083240738696E-2},{"$f":"'Population at Risk'!Y25/'Population at Risk'!Y$5","v":1.6227994906787561E-2},{"$f":"'Population at Risk'!Z25/'Population at Risk'!Z$5","v":1.9308265439377539E-2},{"$f":"'Population at Risk'!AA25/'Population at Risk'!AA$5","v":1.6739545429335034E-2},{"$f":"'Population at Risk'!AB25/'Population at Risk'!AB$5","v":1.3103286449272991E-2},{"$f":"'Population at Risk'!AY25/'Population at Risk'!AY$5","v":1.5290092837781672E-2},{"$f":"'Population at Risk'!AC25/'Population at Risk'!AC$5","v":1.7550943060100209E-2},{"$f":"'Population at Risk'!AD25/'Population at Risk'!AD$5","v":1.1569822614395455E-2},{"$f":"'Population at Risk'!AE25/'Population at Risk'!AE$5","v":1.1790473603138677E-2},{"$f":"'Population at Risk'!G25/'Population at Risk'!G$5","v":1.0609228361485703E-2},{"$f":"'Population at Risk'!AF25/'Population at Risk'!AF$5","v":1.5412159063513892E-2},{"$f":"'Population at Risk'!H25/'Population at Risk'!H$5","v":1.5772576923752429E-2},{"$f":"'Population at Risk'!AG25/'Population at Risk'!AG$5","v":1.1790473603138677E-2},{"$f":"'Population at Risk'!AZ25/'Population at Risk'!AZ$5","v":1.4570580541551637E-2},{"$f":"'Population at Risk'!I25/'Population at Risk'!I$5","v":1.1218229454554418E-2},{"$f":"'Population at Risk'!J25/'Population at Risk'!J$5","v":1.9679083286358114E-2},{"$f":"'Population at Risk'!K25/'Population at Risk'!K$5","v":1.6148113229072263E-2},{"$f":"'Population at Risk'!AH25/'Population at Risk'!AH$5","v":1.5388446640666265E-2},{"$f":"'Population at Risk'!AI25/'Population at Risk'!AI$5","v":1.4531755560940305E-2},{"$f":"'Population at Risk'!BA25/'Population at Risk'!BA$5","v":1.6748643302258996E-2},{"$f":"'Population at Risk'!L25/'Population at Risk'!L$5","v":1.1615428772780052E-2},{"$f":"'Population at Risk'!M25/'Population at Risk'!M$5","v":1.1619385947063044E-2},{"$f":"'Population at Risk'!AJ25/'Population at Risk'!AJ$5","v":1.2435936223628381E-2},{"$f":"'Population at Risk'!AK25/'Population at Risk'!AK$5","v":1.2506994510034191E-2},{"$f":"'Population at Risk'!AL25/'Population at Risk'!AL$5","v":1.789054210870987E-2},{"$f":"'Population at Risk'!AM25/'Population at Risk'!AM$5","v":1.6543107830096319E-2},{"$f":"'Population at Risk'!N25/'Population at Risk'!N$5","v":2.0397620105796172E-2},{"$f":"'Population at Risk'!AN25/'Population at Risk'!AN$5","v":9.5926776610248121E-3},{"$f":"'Population at Risk'!AO25/'Population at Risk'!AO$5","v":9.6020579831557068E-3},{"$f":"'Population at Risk'!AP25/'Population at Risk'!AP$5","v":1.2592654414154669E-2},{"$f":"'Population at Risk'!C25/'Population at Risk'!C$5","v":1.3846693259663721E-2},{"$f":"'Population at Risk'!AQ25/'Population at Risk'!AQ$5","v":1.5148752129234928E-2},{"$f":"'Population at Risk'!O25/'Population at Risk'!O$5","v":1.5599632296011499E-2},{"$f":"'Population at Risk'!AR25/'Population at Risk'!AR$5","v":1.5075142084474039E-2},{"$f":"'Population at Risk'!AS25/'Population at Risk'!AS$5","v":1.1216458832573693E-2},{"$f":"'Population at Risk'!AT25/'Population at Risk'!AT$5","v":1.3791927422117708E-2},{"$f":"'Population at Risk'!AU25/'Population at Risk'!AU$5","v":1.3775877418356555E-2},{"$f":"'Population at Risk'!BB25/'Population at Risk'!BB$5","v":1.6104928915840821E-2},{"$f":"'Population at Risk'!P25/'Population at Risk'!P$5","v":1.3646940624770225E-2},{"$f":"'Population at Risk'!AV25/'Population at Risk'!AV$5","v":1.3362388302589713E-2},{"$f":"'Population at Risk'!AW25/'Population at Risk'!AW$5","v":1.4184547819377296E-2},{"$f":"'Population at Risk'!Q25/'Population at Risk'!Q$5","v":1.1842631273645668E-2},23]
[null,"Female 20-24",{"$f":"'Population at Risk'!R26/'Population at Risk'!R$5","v":1.8685380447366222E-2},{"$f":"'Population at Risk'!AX26/'Population at Risk'!AX$5","v":2.9738444966306277E-2},{"$f":"'Population at Risk'!S26/'Population at Risk'!S$5","v":2.388745284052907E-2},{"$f":"'Population at Risk'!T26/'Population at Risk'!T$5","v":3.2978704646484509E-2},{"$f":"'Population at Risk'!U26/'Population at Risk'!U$5","v":8.868058813565935E-3},{"$f":"'Population at Risk'!D26/'Population at Risk'!D$5","v":2.2439855565928132E-2},{"$f":"'Population at Risk'!E26/'Population at Risk'!E$5","v":1.5236169539039637E-2},{"$f":"'Population at Risk'!BC26/'Population at Risk'!BC$5","v":8.8742799754752792E-3},{"$f":"'Population at Risk'!V26/'Population at Risk'!V$5","v":2.0086173667075415E-2},{"$f":"'Population at Risk'!F26/'Population at Risk'!F$5","v":1.5395571729091544E-2},{"$f":"'Population at Risk'!W26/'Population at Risk'!W$5","v":2.2408748494145505E-2},{"$f":"'Population at Risk'!X26/'Population at Risk'!X$5","v":2.2410942617658591E-2},{"$f":"'Population at Risk'!Y26/'Population at Risk'!Y$5","v":2.3201937588428236E-2},{"$f":"'Population at Risk'!Z26/'Population at Risk'!Z$5","v":3.7862684152580615E-2},{"$f":"'Population at Risk'!AA26/'Population at Risk'!AA$5","v":2.6472866295929137E-2},{"$f":"'Population at Risk'!AB26/'Population at Risk'!AB$5","v":2.1329233602194426E-2},{"$f":"'Population at Risk'!AY26/'Population at Risk'!AY$5","v":2.2473803720407932E-2},{"$f":"'Population at Risk'!AC26/'Population at Risk'!AC$5","v":3.0402299957982333E-2},{"$f":"'Population at Risk'!AD26/'Population at Risk'!AD$5","v":1.3890856682864512E-2},{"$f":"'Population at Risk'!AE26/'Population at Risk'!AE$5","v":1.4397368405910398E-2},{"$f":"'Population at Risk'!G26/'Population at Risk'!G$5","v":1.211777135423831E-2},{"$f":"'Population at Risk'!AF26/'Population at Risk'!AF$5","v":2.2913358287195981E-2},{"$f":"'Population at Risk'!H26/'Population at Risk'!H$5","v":2.1608096010069629E-2},{"$f":"'Population at Risk'!AG26/'Population at Risk'!AG$5","v":1.4397368405910398E-2},{"$f":"'Population at Risk'!AZ26/'Population at Risk'!AZ$5","v":2.2532068824410258E-2},{"$f":"'Population at Risk'!I26/'Population at Risk'!I$5","v":1.2940800418320937E-2},{"$f":"'Population at Risk'!J26/'Population at Risk'!J$5","v":2.840247165411856E-2},{"$f":"'Population at Risk'!K26/'Population at Risk'!K$5","v":2.1673815707701903E-2},{"$f":"'Population at Risk'!AH26/'Population at Risk'!AH$5","v":2.0074680325602366E-2},{"$f":"'Population at Risk'!AI26/'Population at Risk'!AI$5","v":2.6148396872909555E-2},{"$f":"'Population at Risk'!BA26/'Population at Risk'!BA$5","v":2.4896719353019243E-2},{"$f":"'Population at Risk'!L26/'Population at Risk'!L$5","v":1.5294596464174704E-2},{"$f":"'Population at Risk'!M26/'Population at Risk'!M$5","v":1.5299807066812001E-2},{"$f":"'Population at Risk'!AJ26/'Population at Risk'!AJ$5","v":1.5974170312156089E-2},{"$f":"'Population at Risk'!AK26/'Population at Risk'!AK$5","v":1.5532795918455741E-2},{"$f":"'Population at Risk'!AL26/'Population at Risk'!AL$5","v":2.4362903262282264E-2},{"$f":"'Population at Risk'!AM26/'Population at Risk'!AM$5","v":2.1190244127457736E-2},{"$f":"'Population at Risk'!N26/'Population at Risk'!N$5","v":3.760877187982066E-2},{"$f":"'Population at Risk'!AN26/'Population at Risk'!AN$5","v":1.2831474121500097E-2},{"$f":"'Population at Risk'!AO26/'Population at Risk'!AO$5","v":1.2844021542035549E-2},{"$f":"'Population at Risk'!AP26/'Population at Risk'!AP$5","v":1.5661912190765827E-2},{"$f":"'Population at Risk'!C26/'Population at Risk'!C$5","v":3.0072930893076694E-2},{"$f":"'Population at Risk'!AQ26/'Population at Risk'!AQ$5","v":2.326585814890143E-2},{"$f":"'Population at Risk'!O26/'Population at Risk'!O$5","v":2.2100579829144373E-2},{"$f":"'Population at Risk'!AR26/'Population at Risk'!AR$5","v":2.3219798070997999E-2},{"$f":"'Population at Risk'!AS26/'Population at Risk'!AS$5","v":1.2938757915467733E-2},{"$f":"'Population at Risk'!AT26/'Population at Risk'!AT$5","v":1.4551419769770049E-2},{"$f":"'Population at Risk'!AU26/'Population at Risk'!AU$5","v":1.4534485926160896E-2},{"$f":"'Population at Risk'!BB26/'Population at Risk'!BB$5","v":2.022510352673881E-2},{"$f":"'Population at Risk'!P26/'Population at Risk'!P$5","v":1.733092234797988E-2},{"$f":"'Population at Risk'!AV26/'Population at Risk'!AV$5","v":1.7685142796092346E-2},{"$f":"'Population at Risk'!AW26/'Population at Risk'!AW$5","v":1.8939534163735363E-2},{"$f":"'Population at Risk'!Q26/'Population at Risk'!Q$5","v":1.6165972149805596E-2},24]
[null,"Female 25-29",{"$f":"'Population at Risk'!R27/'Population at Risk'!R$5","v":1.8825167080133692E-2},{"$f":"'Population at Risk'!AX27/'Population at Risk'!AX$5","v":2.6462593083434353E-2},{"$f":"'Population at Risk'!S27/'Population at Risk'!S$5","v":2.7539792970065962E-2},{"$f":"'Population at Risk'!T27/'Population at Risk'!T$5","v":4.1553865145170725E-2},{"$f":"'Population at Risk'!U27/'Population at Risk'!U$5","v":1.0846065762715611E-2},{"$f":"'Population at Risk'!D27/'Population at Risk'!D$5","v":2.6147394877847677E-2},{"$f":"'Population at Risk'!E27/'Population at Risk'!E$5","v":1.718988746845761E-2},{"$f":"'Population at Risk'!BC27/'Population at Risk'!BC$5","v":1.0853674545269696E-2},{"$f":"'Population at Risk'!V27/'Population at Risk'!V$5","v":2.3110372451820647E-2},{"$f":"'Population at Risk'!F27/'Population at Risk'!F$5","v":1.6218274106302739E-2},{"$f":"'Population at Risk'!W27/'Population at Risk'!W$5","v":2.2734324507640954E-2},{"$f":"'Population at Risk'!X27/'Population at Risk'!X$5","v":2.2736550509506667E-2},{"$f":"'Population at Risk'!Y27/'Population at Risk'!Y$5","v":2.3914819834325463E-2},{"$f":"'Population at Risk'!Z27/'Population at Risk'!Z$5","v":4.4990128238730394E-2},{"$f":"'Population at Risk'!AA27/'Population at Risk'!AA$5","v":2.9471035764462881E-2},{"$f":"'Population at Risk'!AB27/'Population at Risk'!AB$5","v":2.4706227380340541E-2},{"$f":"'Population at Risk'!AY27/'Population at Risk'!AY$5","v":2.2955397384228006E-2},{"$f":"'Population at Risk'!AC27/'Population at Risk'!AC$5","v":3.436686160958724E-2},{"$f":"'Population at Risk'!AD27/'Population at Risk'!AD$5","v":1.5277031891467802E-2},{"$f":"'Population at Risk'!AE27/'Population at Risk'!AE$5","v":1.62035570723871E-2},{"$f":"'Population at Risk'!G27/'Population at Risk'!G$5","v":1.2379181949661432E-2},{"$f":"'Population at Risk'!AF27/'Population at Risk'!AF$5","v":2.1436373220933291E-2},{"$f":"'Population at Risk'!H27/'Population at Risk'!H$5","v":2.1676313517462339E-2},{"$f":"'Population at Risk'!AG27/'Population at Risk'!AG$5","v":1.62035570723871E-2},{"$f":"'Population at Risk'!AZ27/'Population at Risk'!AZ$5","v":2.3141994606994697E-2},{"$f":"'Population at Risk'!I27/'Population at Risk'!I$5","v":1.2436424669299144E-2},{"$f":"'Population at Risk'!J27/'Population at Risk'!J$5","v":2.6478031174947229E-2},{"$f":"'Population at Risk'!K27/'Population at Risk'!K$5","v":2.2345607124981057E-2},{"$f":"'Population at Risk'!AH27/'Population at Risk'!AH$5","v":2.1508624071341811E-2},{"$f":"'Population at Risk'!AI27/'Population at Risk'!AI$5","v":3.1899343325012201E-2},{"$f":"'Population at Risk'!BA27/'Population at Risk'!BA$5","v":2.5698661818048002E-2},{"$f":"'Population at Risk'!L27/'Population at Risk'!L$5","v":1.6655828554270235E-2},{"$f":"'Population at Risk'!M27/'Population at Risk'!M$5","v":1.6661502904972748E-2},{"$f":"'Population at Risk'!AJ27/'Population at Risk'!AJ$5","v":1.9297548220643009E-2},{"$f":"'Population at Risk'!AK27/'Population at Risk'!AK$5","v":1.7207554590387222E-2},{"$f":"'Population at Risk'!AL27/'Population at Risk'!AL$5","v":2.297464407265308E-2},{"$f":"'Population at Risk'!AM27/'Population at Risk'!AM$5","v":2.3009867924872626E-2},{"$f":"'Population at Risk'!N27/'Population at Risk'!N$5","v":3.7914393053263822E-2},{"$f":"'Population at Risk'!AN27/'Population at Risk'!AN$5","v":1.4854411716554237E-2},{"$f":"'Population at Risk'!AO27/'Population at Risk'!AO$5","v":1.4868937292403862E-2},{"$f":"'Population at Risk'!AP27/'Population at Risk'!AP$5","v":1.6493317196384548E-2},{"$f":"'Population at Risk'!C27/'Population at Risk'!C$5","v":3.5643364467614472E-2},{"$f":"'Population at Risk'!AQ27/'Population at Risk'!AQ$5","v":2.4577644703030282E-2},{"$f":"'Population at Risk'!O27/'Population at Risk'!O$5","v":2.3415959590938482E-2},{"$f":"'Population at Risk'!AR27/'Population at Risk'!AR$5","v":2.5721732413693434E-2},{"$f":"'Population at Risk'!AS27/'Population at Risk'!AS$5","v":1.2434461774265639E-2},{"$f":"'Population at Risk'!AT27/'Population at Risk'!AT$5","v":1.6563706698144328E-2},{"$f":"'Population at Risk'!AU27/'Population at Risk'!AU$5","v":1.6544431106947585E-2},{"$f":"'Population at Risk'!BB27/'Population at Risk'!BB$5","v":2.3697001164152562E-2},{"$f":"'Population at Risk'!P27/'Population at Risk'!P$5","v":1.7744454366942476E-2},{"$f":"'Population at Risk'!AV27/'Population at Risk'!AV$5","v":1.8181199276941257E-2},{"$f":"'Population at Risk'!AW27/'Population at Risk'!AW$5","v":1.9951431988334819E-2},{"$f":"'Population at Risk'!Q27/'Population at Risk'!Q$5","v":1.6224280461615496E-2},25]
[null,"Female 30-34",{"$f":"'Population at Risk'!R28/'Population at Risk'!R$5","v":1.8333659242338422E-2},{"$f":"'Population at Risk'!AX28/'Population at Risk'!AX$5","v":2.0790773435501932E-2},{"$f":"'Population at Risk'!S28/'Population at Risk'!S$5","v":2.5849669265584116E-2},{"$f":"'Population at Risk'!T28/'Population at Risk'!T$5","v":3.5619664550800706E-2},{"$f":"'Population at Risk'!U28/'Population at Risk'!U$5","v":1.1543651733305724E-2},{"$f":"'Population at Risk'!D28/'Population at Risk'!D$5","v":2.5252076016774309E-2},{"$f":"'Population at Risk'!E28/'Population at Risk'!E$5","v":2.0740936724597644E-2},{"$f":"'Population at Risk'!BC28/'Population at Risk'!BC$5","v":1.1551749889617919E-2},{"$f":"'Population at Risk'!V28/'Population at Risk'!V$5","v":2.5301179783149764E-2},{"$f":"'Population at Risk'!F28/'Population at Risk'!F$5","v":1.745294334163101E-2},{"$f":"'Population at Risk'!W28/'Population at Risk'!W$5","v":2.1847648627719235E-2},{"$f":"'Population at Risk'!X28/'Population at Risk'!X$5","v":2.1849787811867433E-2},{"$f":"'Population at Risk'!Y28/'Population at Risk'!Y$5","v":2.3390203514038841E-2},{"$f":"'Population at Risk'!Z28/'Population at Risk'!Z$5","v":3.7280054777677853E-2},{"$f":"'Population at Risk'!AA28/'Population at Risk'!AA$5","v":2.7380885757465747E-2},{"$f":"'Population at Risk'!AB28/'Population at Risk'!AB$5","v":2.4296766357236314E-2},{"$f":"'Population at Risk'!AY28/'Population at Risk'!AY$5","v":2.1525044293583647E-2},{"$f":"'Population at Risk'!AC28/'Population at Risk'!AC$5","v":3.0002649483100441E-2},{"$f":"'Population at Risk'!AD28/'Population at Risk'!AD$5","v":1.6526878727287447E-2},{"$f":"'Population at Risk'!AE28/'Population at Risk'!AE$5","v":1.7931038556735734E-2},{"$f":"'Population at Risk'!G28/'Population at Risk'!G$5","v":1.2361092718027881E-2},{"$f":"'Population at Risk'!AF28/'Population at Risk'!AF$5","v":2.1030313350069635E-2},{"$f":"'Population at Risk'!H28/'Population at Risk'!H$5","v":2.0579087216050843E-2},{"$f":"'Population at Risk'!AG28/'Population at Risk'!AG$5","v":1.7931038556735734E-2},{"$f":"'Population at Risk'!AZ28/'Population at Risk'!AZ$5","v":2.1264493426722032E-2},{"$f":"'Population at Risk'!I28/'Population at Risk'!I$5","v":1.3571894397766938E-2},{"$f":"'Population at Risk'!J28/'Population at Risk'!J$5","v":2.2762236136892818E-2},{"$f":"'Population at Risk'!K28/'Population at Risk'!K$5","v":2.2533706098402578E-2},{"$f":"'Population at Risk'!AH28/'Population at Risk'!AH$5","v":2.3086147055658875E-2},{"$f":"'Population at Risk'!AI28/'Population at Risk'!AI$5","v":2.9426410466898496E-2},{"$f":"'Population at Risk'!BA28/'Population at Risk'!BA$5","v":2.6424793029386297E-2},{"$f":"'Population at Risk'!L28/'Population at Risk'!L$5","v":1.6138138944645997E-2},{"$f":"'Population at Risk'!M28/'Population at Risk'!M$5","v":1.6143636927514842E-2},{"$f":"'Population at Risk'!AJ28/'Population at Risk'!AJ$5","v":2.0489882336515674E-2},{"$f":"'Population at Risk'!AK28/'Population at Risk'!AK$5","v":1.9265030312112342E-2},{"$f":"'Population at Risk'!AL28/'Population at Risk'!AL$5","v":2.1454490755320865E-2},{"$f":"'Population at Risk'!AM28/'Population at Risk'!AM$5","v":2.4185663906125265E-2},{"$f":"'Population at Risk'!N28/'Population at Risk'!N$5","v":2.9834802618087537E-2},{"$f":"'Population at Risk'!AN28/'Population at Risk'!AN$5","v":1.4127494638684681E-2},{"$f":"'Population at Risk'!AO28/'Population at Risk'!AO$5","v":1.4141309389403528E-2},{"$f":"'Population at Risk'!AP28/'Population at Risk'!AP$5","v":1.825497687414843E-2},{"$f":"'Population at Risk'!C28/'Population at Risk'!C$5","v":3.0003193975575458E-2},{"$f":"'Population at Risk'!AQ28/'Population at Risk'!AQ$5","v":2.2994589952324059E-2},{"$f":"'Population at Risk'!O28/'Population at Risk'!O$5","v":2.2256628789144296E-2},{"$f":"'Population at Risk'!AR28/'Population at Risk'!AR$5","v":2.4340039215563398E-2},{"$f":"'Population at Risk'!AS28/'Population at Risk'!AS$5","v":1.3569752286604201E-2},{"$f":"'Population at Risk'!AT28/'Population at Risk'!AT$5","v":1.5273366591761617E-2},{"$f":"'Population at Risk'!AU28/'Population at Risk'!AU$5","v":1.5255592600952316E-2},{"$f":"'Population at Risk'!BB28/'Population at Risk'!BB$5","v":2.5911241083265157E-2},{"$f":"'Population at Risk'!P28/'Population at Risk'!P$5","v":1.7274753766305832E-2},{"$f":"'Population at Risk'!AV28/'Population at Risk'!AV$5","v":1.7673726013304393E-2},{"$f":"'Population at Risk'!AW28/'Population at Risk'!AW$5","v":2.1985067558726139E-2},{"$f":"'Population at Risk'!Q28/'Population at Risk'!Q$5","v":1.7078524967685672E-2},26]
[null,"Female 35-39",{"$f":"'Population at Risk'!R29/'Population at Risk'!R$5","v":2.3959752160788772E-2},{"$f":"'Population at Risk'!AX29/'Population at Risk'!AX$5","v":2.3793653760285867E-2},{"$f":"'Population at Risk'!S29/'Population at Risk'!S$5","v":2.6666464423337664E-2},{"$f":"'Population at Risk'!T29/'Population at Risk'!T$5","v":3.10711124862364E-2},{"$f":"'Population at Risk'!U29/'Population at Risk'!U$5","v":2.0705000841047518E-2},{"$f":"'Population at Risk'!D29/'Population at Risk'!D$5","v":2.5153081760897526E-2},{"$f":"'Population at Risk'!E29/'Population at Risk'!E$5","v":2.4690454075081282E-2},{"$f":"'Population at Risk'!BC29/'Population at Risk'!BC$5","v":2.0719525909641812E-2},{"$f":"'Population at Risk'!V29/'Population at Risk'!V$5","v":2.8132360201844678E-2},{"$f":"'Population at Risk'!F29/'Population at Risk'!F$5","v":2.1636137822395991E-2},{"$f":"'Population at Risk'!W29/'Population at Risk'!W$5","v":2.4962762928413772E-2},{"$f":"'Population at Risk'!X29/'Population at Risk'!X$5","v":2.4965207124934028E-2},{"$f":"'Population at Risk'!Y29/'Population at Risk'!Y$5","v":2.6474231596807701E-2},{"$f":"'Population at Risk'!Z29/'Population at Risk'!Z$5","v":3.2415544242181175E-2},{"$f":"'Population at Risk'!AA29/'Population at Risk'!AA$5","v":2.7419798213506621E-2},{"$f":"'Population at Risk'!AB29/'Population at Risk'!AB$5","v":2.4655016050028525E-2},{"$f":"'Population at Risk'!AY29/'Population at Risk'!AY$5","v":2.3200531260471464E-2},{"$f":"'Population at Risk'!AC29/'Population at Risk'!AC$5","v":2.8430233859004346E-2},{"$f":"'Population at Risk'!AD29/'Population at Risk'!AD$5","v":2.1168076427675427E-2},{"$f":"'Population at Risk'!AE29/'Population at Risk'!AE$5","v":2.2152511697909286E-2},{"$f":"'Population at Risk'!G29/'Population at Risk'!G$5","v":1.792077566396295E-2},{"$f":"'Population at Risk'!AF29/'Population at Risk'!AF$5","v":2.1828934182801133E-2},{"$f":"'Population at Risk'!H29/'Population at Risk'!H$5","v":2.274007771541554E-2},{"$f":"'Population at Risk'!AG29/'Population at Risk'!AG$5","v":2.2152511697909286E-2},{"$f":"'Population at Risk'!AZ29/'Population at Risk'!AZ$5","v":2.1757122894874355E-2},{"$f":"'Population at Risk'!I29/'Population at Risk'!I$5","v":1.7670498596154188E-2},{"$f":"'Population at Risk'!J29/'Population at Risk'!J$5","v":2.6350082810068717E-2},{"$f":"'Population at Risk'!K29/'Population at Risk'!K$5","v":2.6551009591773665E-2},{"$f":"'Population at Risk'!AH29/'Population at Risk'!AH$5","v":2.571982148760758E-2},{"$f":"'Population at Risk'!AI29/'Population at Risk'!AI$5","v":2.8721521594908803E-2},{"$f":"'Population at Risk'!BA29/'Population at Risk'!BA$5","v":2.5959331074315896E-2},{"$f":"'Population at Risk'!L29/'Population at Risk'!L$5","v":1.979625743344969E-2},{"$f":"'Population at Risk'!M29/'Population at Risk'!M$5","v":1.9803001673576123E-2},{"$f":"'Population at Risk'!AJ29/'Population at Risk'!AJ$5","v":2.46176427794495E-2},{"$f":"'Population at Risk'!AK29/'Population at Risk'!AK$5","v":2.1939195614907935E-2},{"$f":"'Population at Risk'!AL29/'Population at Risk'!AL$5","v":2.3101962687630373E-2},{"$f":"'Population at Risk'!AM29/'Population at Risk'!AM$5","v":2.6545964498926967E-2},{"$f":"'Population at Risk'!N29/'Population at Risk'!N$5","v":2.5926216830804222E-2},{"$f":"'Population at Risk'!AN29/'Population at Risk'!AN$5","v":1.9541580120770029E-2},{"$f":"'Population at Risk'!AO29/'Population at Risk'!AO$5","v":1.956068910399212E-2},{"$f":"'Population at Risk'!AP29/'Population at Risk'!AP$5","v":2.0392052609500173E-2},{"$f":"'Population at Risk'!C29/'Population at Risk'!C$5","v":2.5582063416494855E-2},{"$f":"'Population at Risk'!AQ29/'Population at Risk'!AQ$5","v":2.4419504635396598E-2},{"$f":"'Population at Risk'!O29/'Population at Risk'!O$5","v":2.4090855824942928E-2},{"$f":"'Population at Risk'!AR29/'Population at Risk'!AR$5","v":2.5447806081268468E-2},{"$f":"'Population at Risk'!AS29/'Population at Risk'!AS$5","v":1.7667709584452167E-2},{"$f":"'Population at Risk'!AT29/'Population at Risk'!AT$5","v":2.4307126559832203E-2},{"$f":"'Population at Risk'!AU29/'Population at Risk'!AU$5","v":2.4278839761274769E-2},{"$f":"'Population at Risk'!BB29/'Population at Risk'!BB$5","v":2.8477359359614787E-2},{"$f":"'Population at Risk'!P29/'Population at Risk'!P$5","v":2.1705473917476719E-2},{"$f":"'Population at Risk'!AV29/'Population at Risk'!AV$5","v":2.0830985398846195E-2},{"$f":"'Population at Risk'!AW29/'Population at Risk'!AW$5","v":2.4937510632080363E-2},{"$f":"'Population at Risk'!Q29/'Population at Risk'!Q$5","v":2.2209306031522547E-2},27]
[null,"Female 40-44",{"$f":"'Population at Risk'!R30/'Population at Risk'!R$5","v":2.5805522766128821E-2},{"$f":"'Population at Risk'!AX30/'Population at Risk'!AX$5","v":2.6263611692896038E-2},{"$f":"'Population at Risk'!S30/'Population at Risk'!S$5","v":2.6555651544353964E-2},{"$f":"'Population at Risk'!T30/'Population at Risk'!T$5","v":2.6594451097620857E-2},{"$f":"'Population at Risk'!U30/'Population at Risk'!U$5","v":2.3212610155763987E-2},{"$f":"'Population at Risk'!D30/'Population at Risk'!D$5","v":2.4764955417453213E-2},{"$f":"'Population at Risk'!E30/'Population at Risk'!E$5","v":2.6277006684126865E-2},{"$f":"'Population at Risk'!BC30/'Population at Risk'!BC$5","v":2.3228894374120384E-2},{"$f":"'Population at Risk'!V30/'Population at Risk'!V$5","v":3.1518179606318378E-2},{"$f":"'Population at Risk'!F30/'Population at Risk'!F$5","v":2.3786083741480609E-2},{"$f":"'Population at Risk'!W30/'Population at Risk'!W$5","v":2.6584535126143519E-2},{"$f":"'Population at Risk'!X30/'Population at Risk'!X$5","v":2.6587138116382802E-2},{"$f":"'Population at Risk'!Y30/'Population at Risk'!Y$5","v":2.9564198339100522E-2},{"$f":"'Population at Risk'!Z30/'Population at Risk'!Z$5","v":2.8602235766539329E-2},{"$f":"'Population at Risk'!AA30/'Population at Risk'!AA$5","v":2.7095444483705936E-2},{"$f":"'Population at Risk'!AB30/'Population at Risk'!AB$5","v":2.5056663807880342E-2},{"$f":"'Population at Risk'!AY30/'Population at Risk'!AY$5","v":2.4134342341159885E-2},{"$f":"'Population at Risk'!AC30/'Population at Risk'!AC$5","v":2.7149940621977311E-2},{"$f":"'Population at Risk'!AD30/'Population at Risk'!AD$5","v":2.3996875155409329E-2},{"$f":"'Population at Risk'!AE30/'Population at Risk'!AE$5","v":2.4560373045542795E-2},{"$f":"'Population at Risk'!G30/'Population at Risk'!G$5","v":2.1732975239142093E-2},{"$f":"'Population at Risk'!AF30/'Population at Risk'!AF$5","v":2.3562891952689104E-2},{"$f":"'Population at Risk'!H30/'Population at Risk'!H$5","v":2.6084438150437105E-2},{"$f":"'Population at Risk'!AG30/'Population at Risk'!AG$5","v":2.4560373045542795E-2},{"$f":"'Population at Risk'!AZ30/'Population at Risk'!AZ$5","v":2.2125705019140247E-2},{"$f":"'Population at Risk'!I30/'Population at Risk'!I$5","v":2.2601245739993815E-2},{"$f":"'Population at Risk'!J30/'Population at Risk'!J$5","v":2.9306655589376771E-2},{"$f":"'Population at Risk'!K30/'Population at Risk'!K$5","v":2.9869238134761222E-2},{"$f":"'Population at Risk'!AH30/'Population at Risk'!AH$5","v":2.6935763324907339E-2},{"$f":"'Population at Risk'!AI30/'Population at Risk'!AI$5","v":2.7073483898618533E-2},{"$f":"'Population at Risk'!BA30/'Population at Risk'!BA$5","v":2.691484331009859E-2},{"$f":"'Population at Risk'!L30/'Population at Risk'!L$5","v":2.312936415683773E-2},{"$f":"'Population at Risk'!M30/'Population at Risk'!M$5","v":2.3137243928373834E-2},{"$f":"'Population at Risk'!AJ30/'Population at Risk'!AJ$5","v":2.4340448045763075E-2},{"$f":"'Population at Risk'!AK30/'Population at Risk'!AK$5","v":2.6342680569106137E-2},{"$f":"'Population at Risk'!AL30/'Population at Risk'!AL$5","v":2.7455353058879237E-2},{"$f":"'Population at Risk'!AM30/'Population at Risk'!AM$5","v":2.7786787246681474E-2},{"$f":"'Population at Risk'!N30/'Population at Risk'!N$5","v":2.3030795659173976E-2},{"$f":"'Population at Risk'!AN30/'Population at Risk'!AN$5","v":2.3221339479619879E-2},{"$f":"'Population at Risk'!AO30/'Population at Risk'!AO$5","v":2.3244046762437756E-2},{"$f":"'Population at Risk'!AP30/'Population at Risk'!AP$5","v":2.2737084826179501E-2},{"$f":"'Population at Risk'!C30/'Population at Risk'!C$5","v":2.3086673932591929E-2},{"$f":"'Population at Risk'!AQ30/'Population at Risk'!AQ$5","v":2.5690942332834227E-2},{"$f":"'Population at Risk'!O30/'Population at Risk'!O$5","v":2.691567718963845E-2},{"$f":"'Population at Risk'!AR30/'Population at Risk'!AR$5","v":2.60908122263552E-2},{"$f":"'Population at Risk'!AS30/'Population at Risk'!AS$5","v":2.2597678487009627E-2},{"$f":"'Population at Risk'!AT30/'Population at Risk'!AT$5","v":2.4746026092454538E-2},{"$f":"'Population at Risk'!AU30/'Population at Risk'!AU$5","v":2.4717228535760572E-2},{"$f":"'Population at Risk'!BB30/'Population at Risk'!BB$5","v":3.133178911047968E-2},{"$f":"'Population at Risk'!P30/'Population at Risk'!P$5","v":2.3898701686796565E-2},{"$f":"'Population at Risk'!AV30/'Population at Risk'!AV$5","v":2.3503577773449566E-2},{"$f":"'Population at Risk'!AW30/'Population at Risk'!AW$5","v":2.6132263751091438E-2},{"$f":"'Population at Risk'!Q30/'Population at Risk'!Q$5","v":2.3666780243147285E-2},28]
[null,"Female 45-49",{"$f":"'Population at Risk'!R31/'Population at Risk'!R$5","v":4.1512588626363124E-2},{"$f":"'Population at Risk'!AX31/'Population at Risk'!AX$5","v":3.9256941946394681E-2},{"$f":"'Population at Risk'!S31/'Population at Risk'!S$5","v":3.6346255023771638E-2},{"$f":"'Population at Risk'!T31/'Population at Risk'!T$5","v":3.3919210931143758E-2},{"$f":"'Population at Risk'!U31/'Population at Risk'!U$5","v":3.0510022262361811E-2},{"$f":"'Population at Risk'!D31/'Population at Risk'!D$5","v":3.3268748246861303E-2},{"$f":"'Population at Risk'!E31/'Population at Risk'!E$5","v":3.69031287196777E-2},{"$f":"'Population at Risk'!BC31/'Population at Risk'!BC$5","v":3.0531425795236624E-2},{"$f":"'Population at Risk'!V31/'Population at Risk'!V$5","v":4.0953485196757747E-2},{"$f":"'Population at Risk'!F31/'Population at Risk'!F$5","v":3.236910441612003E-2},{"$f":"'Population at Risk'!W31/'Population at Risk'!W$5","v":3.8545932668700933E-2},{"$f":"'Population at Risk'!X31/'Population at Risk'!X$5","v":3.8549706843649813E-2},{"$f":"'Population at Risk'!Y31/'Population at Risk'!Y$5","v":4.0722245004569189E-2},{"$f":"'Population at Risk'!Z31/'Population at Risk'!Z$5","v":4.2431410948543219E-2},{"$f":"'Population at Risk'!AA31/'Population at Risk'!AA$5","v":4.0397608036654521E-2},{"$f":"'Population at Risk'!AB31/'Population at Risk'!AB$5","v":3.3466169943832391E-2},{"$f":"'Population at Risk'!AY31/'Population at Risk'!AY$5","v":3.4625198226683737E-2},{"$f":"'Population at Risk'!AC31/'Population at Risk'!AC$5","v":4.164199172788819E-2},{"$f":"'Population at Risk'!AD31/'Population at Risk'!AD$5","v":3.3029295186010672E-2},{"$f":"'Population at Risk'!AE31/'Population at Risk'!AE$5","v":3.3495256431234563E-2},{"$f":"'Population at Risk'!G31/'Population at Risk'!G$5","v":3.0707601274928883E-2},{"$f":"'Population at Risk'!AF31/'Population at Risk'!AF$5","v":3.9741810194281198E-2},{"$f":"'Population at Risk'!H31/'Population at Risk'!H$5","v":3.9511999376696333E-2},{"$f":"'Population at Risk'!AG31/'Population at Risk'!AG$5","v":3.3495256431234563E-2},{"$f":"'Population at Risk'!AZ31/'Population at Risk'!AZ$5","v":3.1410176814338948E-2},{"$f":"'Population at Risk'!I31/'Population at Risk'!I$5","v":3.2220540843862264E-2},{"$f":"'Population at Risk'!J31/'Population at Risk'!J$5","v":4.3226384360214275E-2},{"$f":"'Population at Risk'!K31/'Population at Risk'!K$5","v":4.3175272941850196E-2},{"$f":"'Population at Risk'!AH31/'Population at Risk'!AH$5","v":3.828643608584667E-2},{"$f":"'Population at Risk'!AI31/'Population at Risk'!AI$5","v":3.5901488178843477E-2},{"$f":"'Population at Risk'!BA31/'Population at Risk'!BA$5","v":4.2415389803668477E-2},{"$f":"'Population at Risk'!L31/'Population at Risk'!L$5","v":3.4966068358494015E-2},{"$f":"'Population at Risk'!M31/'Population at Risk'!M$5","v":3.4977980688997878E-2},{"$f":"'Population at Risk'!AJ31/'Population at Risk'!AJ$5","v":3.3989205344176911E-2},{"$f":"'Population at Risk'!AK31/'Population at Risk'!AK$5","v":3.4209207332728947E-2},{"$f":"'Population at Risk'!AL31/'Population at Risk'!AL$5","v":4.1651400732773965E-2},{"$f":"'Population at Risk'!AM31/'Population at Risk'!AM$5","v":3.9207440341664984E-2},{"$f":"'Population at Risk'!N31/'Population at Risk'!N$5","v":3.3449764265165667E-2},{"$f":"'Population at Risk'!AN31/'Population at Risk'!AN$5","v":3.0317491002575615E-2},{"$f":"'Population at Risk'!AO31/'Population at Risk'!AO$5","v":3.0347137347616491E-2},{"$f":"'Population at Risk'!AP31/'Population at Risk'!AP$5","v":3.2612879860279727E-2},{"$f":"'Population at Risk'!C31/'Population at Risk'!C$5","v":2.9302606880836544E-2},{"$f":"'Population at Risk'!AQ31/'Population at Risk'!AQ$5","v":3.9910157456088349E-2},{"$f":"'Population at Risk'!O31/'Population at Risk'!O$5","v":4.1339144762633812E-2},{"$f":"'Population at Risk'!AR31/'Population at Risk'!AR$5","v":3.7257373919266798E-2},{"$f":"'Population at Risk'!AS31/'Population at Risk'!AS$5","v":3.221545533566509E-2},{"$f":"'Population at Risk'!AT31/'Population at Risk'!AT$5","v":3.1548662354013747E-2},{"$f":"'Population at Risk'!AU31/'Population at Risk'!AU$5","v":3.1511948402878145E-2},{"$f":"'Population at Risk'!BB31/'Population at Risk'!BB$5","v":4.2409536367782219E-2},{"$f":"'Population at Risk'!P31/'Population at Risk'!P$5","v":3.8594518138153844E-2},{"$f":"'Population at Risk'!AV31/'Population at Risk'!AV$5","v":3.4900176344944779E-2},{"$f":"'Population at Risk'!AW31/'Population at Risk'!AW$5","v":3.7465966655750416E-2},{"$f":"'Population at Risk'!Q31/'Population at Risk'!Q$5","v":3.3828981737326271E-2},29]
[null,"Female 50-54",{"$f":"'Population at Risk'!R32/'Population at Risk'!R$5","v":4.2029577959297675E-2},{"$f":"'Population at Risk'!AX32/'Population at Risk'!AX$5","v":3.9602551371319961E-2},{"$f":"'Population at Risk'!S32/'Population at Risk'!S$5","v":3.6289469503726142E-2},{"$f":"'Population at Risk'!T32/'Population at Risk'!T$5","v":3.3349252312836176E-2},{"$f":"'Population at Risk'!U32/'Population at Risk'!U$5","v":3.2489731748048888E-2},{"$f":"'Population at Risk'!D32/'Population at Risk'!D$5","v":3.4152573059336139E-2},{"$f":"'Population at Risk'!E32/'Population at Risk'!E$5","v":3.6883968149640282E-2},{"$f":"'Population at Risk'!BC32/'Population at Risk'!BC$5","v":3.2512524095939799E-2},{"$f":"'Population at Risk'!V32/'Population at Risk'!V$5","v":4.083116025160663E-2},{"$f":"'Population at Risk'!F32/'Population at Risk'!F$5","v":3.3988511126171059E-2},{"$f":"'Population at Risk'!W32/'Population at Risk'!W$5","v":3.9821415207704706E-2},{"$f":"'Population at Risk'!X32/'Population at Risk'!X$5","v":3.9825314269870293E-2},{"$f":"'Population at Risk'!Y32/'Population at Risk'!Y$5","v":4.0719397226317934E-2},{"$f":"'Population at Risk'!Z32/'Population at Risk'!Z$5","v":4.428362376096294E-2},{"$f":"'Population at Risk'!AA32/'Population at Risk'!AA$5","v":4.1571704895268229E-2},{"$f":"'Population at Risk'!AB32/'Population at Risk'!AB$5","v":3.434978880517689E-2},{"$f":"'Population at Risk'!AY32/'Population at Risk'!AY$5","v":3.6620267533687023E-2},{"$f":"'Population at Risk'!AC32/'Population at Risk'!AC$5","v":4.3129245698924845E-2},{"$f":"'Population at Risk'!AD32/'Population at Risk'!AD$5","v":3.5682896046739271E-2},{"$f":"'Population at Risk'!AE32/'Population at Risk'!AE$5","v":3.5588082469825269E-2},{"$f":"'Population at Risk'!G32/'Population at Risk'!G$5","v":3.4709313815893893E-2},{"$f":"'Population at Risk'!AF32/'Population at Risk'!AF$5","v":4.1427728765836808E-2},{"$f":"'Population at Risk'!H32/'Population at Risk'!H$5","v":4.1154196305320689E-2},{"$f":"'Population at Risk'!AG32/'Population at Risk'!AG$5","v":3.5588082469825269E-2},{"$f":"'Population at Risk'!AZ32/'Population at Risk'!AZ$5","v":3.3997093028429813E-2},{"$f":"'Population at Risk'!I32/'Population at Risk'!I$5","v":3.3437832825937305E-2},{"$f":"'Population at Risk'!J32/'Population at Risk'!J$5","v":4.336218105094488E-2},{"$f":"'Population at Risk'!K32/'Population at Risk'!K$5","v":4.293359068346167E-2},{"$f":"'Population at Risk'!AH32/'Population at Risk'!AH$5","v":3.8953111646851085E-2},{"$f":"'Population at Risk'!AI32/'Population at Risk'!AI$5","v":3.5060040425318836E-2},{"$f":"'Population at Risk'!BA32/'Population at Risk'!BA$5","v":4.4271626865078802E-2},{"$f":"'Population at Risk'!L32/'Population at Risk'!L$5","v":3.803405433654334E-2},{"$f":"'Population at Risk'!M32/'Population at Risk'!M$5","v":3.8047011876436408E-2},{"$f":"'Population at Risk'!AJ32/'Population at Risk'!AJ$5","v":3.3682825138772896E-2},{"$f":"'Population at Risk'!AK32/'Population at Risk'!AK$5","v":3.5084967495632988E-2},{"$f":"'Population at Risk'!AL32/'Population at Risk'!AL$5","v":4.3762369893808981E-2},{"$f":"'Population at Risk'!AM32/'Population at Risk'!AM$5","v":3.9526160503565257E-2},{"$f":"'Population at Risk'!N32/'Population at Risk'!N$5","v":3.8158448224007421E-2},{"$f":"'Population at Risk'!AN32/'Population at Risk'!AN$5","v":3.2765447742062422E-2},{"$f":"'Population at Risk'!AO32/'Population at Risk'!AO$5","v":3.2797487852805673E-2},{"$f":"'Population at Risk'!AP32/'Population at Risk'!AP$5","v":3.4128523055126501E-2},{"$f":"'Population at Risk'!C32/'Population at Risk'!C$5","v":3.1148221754824578E-2},{"$f":"'Population at Risk'!AQ32/'Population at Risk'!AQ$5","v":4.0093847693768114E-2},{"$f":"'Population at Risk'!O32/'Population at Risk'!O$5","v":4.1567966913048988E-2},{"$f":"'Population at Risk'!AR32/'Population at Risk'!AR$5","v":3.8347677407855447E-2},{"$f":"'Population at Risk'!AS32/'Population at Risk'!AS$5","v":3.3432555187248483E-2},{"$f":"'Population at Risk'!AT32/'Population at Risk'!AT$5","v":3.226248708269909E-2},{"$f":"'Population at Risk'!AU32/'Population at Risk'!AU$5","v":3.2224942436242271E-2},{"$f":"'Population at Risk'!BB32/'Population at Risk'!BB$5","v":4.1005179847172786E-2},{"$f":"'Population at Risk'!P32/'Population at Risk'!P$5","v":4.0426891570143259E-2},{"$f":"'Population at Risk'!AV32/'Population at Risk'!AV$5","v":3.7519645172843431E-2},{"$f":"'Population at Risk'!AW32/'Population at Risk'!AW$5","v":3.8523942925538464E-2},{"$f":"'Population at Risk'!Q32/'Population at Risk'!Q$5","v":3.2352908429746155E-2},30]
[null,"Female 55-59",{"$f":"'Population at Risk'!R33/'Population at Risk'!R$5","v":5.0444341883359174E-2},{"$f":"'Population at Risk'!AX33/'Population at Risk'!AX$5","v":4.7705305417019117E-2},{"$f":"'Population at Risk'!S33/'Population at Risk'!S$5","v":4.5798333065641322E-2},{"$f":"'Population at Risk'!T33/'Population at Risk'!T$5","v":4.2007970188052038E-2},{"$f":"'Population at Risk'!U33/'Population at Risk'!U$5","v":4.5029026848425295E-2},{"$f":"'Population at Risk'!D33/'Population at Risk'!D$5","v":4.243951496799294E-2},{"$f":"'Population at Risk'!E33/'Population at Risk'!E$5","v":4.6141853254676707E-2},{"$f":"'Population at Risk'!BC33/'Population at Risk'!BC$5","v":4.506061582099908E-2},{"$f":"'Population at Risk'!V33/'Population at Risk'!V$5","v":4.9049770306048596E-2},{"$f":"'Population at Risk'!F33/'Population at Risk'!F$5","v":4.7066255054387038E-2},{"$f":"'Population at Risk'!W33/'Population at Risk'!W$5","v":4.946005490160487E-2},{"$f":"'Population at Risk'!X33/'Population at Risk'!X$5","v":4.946489771866118E-2},{"$f":"'Population at Risk'!Y33/'Population at Risk'!Y$5","v":4.9003815685914533E-2},{"$f":"'Population at Risk'!Z33/'Population at Risk'!Z$5","v":5.0473295999816939E-2},{"$f":"'Population at Risk'!AA33/'Population at Risk'!AA$5","v":4.9785767097750309E-2},{"$f":"'Population at Risk'!AB33/'Population at Risk'!AB$5","v":4.3188794910619187E-2},{"$f":"'Population at Risk'!AY33/'Population at Risk'!AY$5","v":4.6693722142043877E-2},{"$f":"'Population at Risk'!AC33/'Population at Risk'!AC$5","v":5.1035176501910223E-2},{"$f":"'Population at Risk'!AD33/'Population at Risk'!AD$5","v":4.8729519321130517E-2},{"$f":"'Population at Risk'!AE33/'Population at Risk'!AE$5","v":4.8173064793343372E-2},{"$f":"'Population at Risk'!G33/'Population at Risk'!G$5","v":4.8495322160899738E-2},{"$f":"'Population at Risk'!AF33/'Population at Risk'!AF$5","v":5.1942110046621214E-2},{"$f":"'Population at Risk'!H33/'Population at Risk'!H$5","v":5.0484925411941453E-2},{"$f":"'Population at Risk'!AG33/'Population at Risk'!AG$5","v":4.8173064793343372E-2},{"$f":"'Population at Risk'!AZ33/'Population at Risk'!AZ$5","v":4.4430067716303548E-2},{"$f":"'Population at Risk'!I33/'Population at Risk'!I$5","v":4.6697633770659462E-2},{"$f":"'Population at Risk'!J33/'Population at Risk'!J$5","v":5.2287173289031451E-2},{"$f":"'Population at Risk'!K33/'Population at Risk'!K$5","v":5.1852551421115896E-2},{"$f":"'Population at Risk'!AH33/'Population at Risk'!AH$5","v":4.7641582203167131E-2},{"$f":"'Population at Risk'!AI33/'Population at Risk'!AI$5","v":4.391234212507774E-2},{"$f":"'Population at Risk'!BA33/'Population at Risk'!BA$5","v":5.317702334560899E-2},{"$f":"'Population at Risk'!L33/'Population at Risk'!L$5","v":5.0160702677167622E-2},{"$f":"'Population at Risk'!M33/'Population at Risk'!M$5","v":5.0177791554946789E-2},{"$f":"'Population at Risk'!AJ33/'Population at Risk'!AJ$5","v":4.3290124272868998E-2},{"$f":"'Population at Risk'!AK33/'Population at Risk'!AK$5","v":4.6655319315325704E-2},{"$f":"'Population at Risk'!AL33/'Population at Risk'!AL$5","v":5.2565634274219189E-2},{"$f":"'Population at Risk'!AM33/'Population at Risk'!AM$5","v":4.6470080239492319E-2},{"$f":"'Population at Risk'!N33/'Population at Risk'!N$5","v":4.7226234720101422E-2},{"$f":"'Population at Risk'!AN33/'Population at Risk'!AN$5","v":4.4483073497899275E-2},{"$f":"'Population at Risk'!AO33/'Population at Risk'!AO$5","v":4.4526571838355129E-2},{"$f":"'Population at Risk'!AP33/'Population at Risk'!AP$5","v":4.5209101014979165E-2},{"$f":"'Population at Risk'!C33/'Population at Risk'!C$5","v":3.8377140509541309E-2},{"$f":"'Population at Risk'!AQ33/'Population at Risk'!AQ$5","v":4.912461864408376E-2},{"$f":"'Population at Risk'!O33/'Population at Risk'!O$5","v":4.8764244776300855E-2},{"$f":"'Population at Risk'!AR33/'Population at Risk'!AR$5","v":4.7672872406362157E-2},{"$f":"'Population at Risk'!AS33/'Population at Risk'!AS$5","v":4.6690263279875951E-2},{"$f":"'Population at Risk'!AT33/'Population at Risk'!AT$5","v":4.4496505060459719E-2},{"$f":"'Population at Risk'!AU33/'Population at Risk'!AU$5","v":4.4444723387621649E-2},{"$f":"'Population at Risk'!BB33/'Population at Risk'!BB$5","v":4.8247225011656007E-2},{"$f":"'Population at Risk'!P33/'Population at Risk'!P$5","v":5.2652372606855249E-2},{"$f":"'Population at Risk'!AV33/'Population at Risk'!AV$5","v":4.9859985600013791E-2},{"$f":"'Population at Risk'!AW33/'Population at Risk'!AW$5","v":4.9203018820117864E-2},{"$f":"'Population at Risk'!Q33/'Population at Risk'!Q$5","v":4.33018195650898E-2},31]
[null,"Female 60-64",{"$f":"'Population at Risk'!R34/'Population at Risk'!R$5","v":4.4064736905806548E-2},{"$f":"'Population at Risk'!AX34/'Population at Risk'!AX$5","v":4.0396235978006935E-2},{"$f":"'Population at Risk'!S34/'Population at Risk'!S$5","v":3.9092484473825802E-2},{"$f":"'Population at Risk'!T34/'Population at Risk'!T$5","v":3.4357469145088852E-2},{"$f":"'Population at Risk'!U34/'Population at Risk'!U$5","v":4.5476680455325304E-2},{"$f":"'Population at Risk'!D34/'Population at Risk'!D$5","v":3.7880636928017179E-2},{"$f":"'Population at Risk'!E34/'Population at Risk'!E$5","v":4.250471778199405E-2},{"$f":"'Population at Risk'!BC34/'Population at Risk'!BC$5","v":4.5508583467941698E-2},{"$f":"'Population at Risk'!V34/'Population at Risk'!V$5","v":4.3079242139528476E-2},{"$f":"'Population at Risk'!F34/'Population at Risk'!F$5","v":4.2569432927475871E-2},{"$f":"'Population at Risk'!W34/'Population at Risk'!W$5","v":4.3875520620505801E-2},{"$f":"'Population at Risk'!X34/'Population at Risk'!X$5","v":4.3879816635138978E-2},{"$f":"'Population at Risk'!Y34/'Population at Risk'!Y$5","v":4.2523916225529701E-2},{"$f":"'Population at Risk'!Z34/'Population at Risk'!Z$5","v":3.9168781500829933E-2},{"$f":"'Population at Risk'!AA34/'Population at Risk'!AA$5","v":4.1121508834980315E-2},{"$f":"'Population at Risk'!AB34/'Population at Risk'!AB$5","v":3.8824133656973084E-2},{"$f":"'Population at Risk'!AY34/'Population at Risk'!AY$5","v":4.1083329853365221E-2},{"$f":"'Population at Risk'!AC34/'Population at Risk'!AC$5","v":4.0974123491567718E-2},{"$f":"'Population at Risk'!AD34/'Population at Risk'!AD$5","v":4.5436857952315723E-2},{"$f":"'Population at Risk'!AE34/'Population at Risk'!AE$5","v":4.4788614645730224E-2},{"$f":"'Population at Risk'!G34/'Population at Risk'!G$5","v":4.5550416449276064E-2},{"$f":"'Population at Risk'!AF34/'Population at Risk'!AF$5","v":4.2048396618098671E-2},{"$f":"'Population at Risk'!H34/'Population at Risk'!H$5","v":4.583478988100978E-2},{"$f":"'Population at Risk'!AG34/'Population at Risk'!AG$5","v":4.4788614645730224E-2},{"$f":"'Population at Risk'!AZ34/'Population at Risk'!AZ$5","v":3.879722549507815E-2},{"$f":"'Population at Risk'!I34/'Population at Risk'!I$5","v":4.2372318172179936E-2},{"$f":"'Population at Risk'!J34/'Population at Risk'!J$5","v":4.4774131015345622E-2},{"$f":"'Population at Risk'!K34/'Population at Risk'!K$5","v":4.5173267058416837E-2},{"$f":"'Population at Risk'!AH34/'Population at Risk'!AH$5","v":4.1249705146263083E-2},{"$f":"'Population at Risk'!AI34/'Population at Risk'!AI$5","v":3.6364664584910077E-2},{"$f":"'Population at Risk'!BA34/'Population at Risk'!BA$5","v":4.499851717908792E-2},{"$f":"'Population at Risk'!L34/'Population at Risk'!L$5","v":4.8613219651031644E-2},{"$f":"'Population at Risk'!M34/'Population at Risk'!M$5","v":4.862978132829552E-2},{"$f":"'Population at Risk'!AJ34/'Population at Risk'!AJ$5","v":3.6082825830314573E-2},{"$f":"'Population at Risk'!AK34/'Population at Risk'!AK$5","v":4.3309188515016118E-2},{"$f":"'Population at Risk'!AL34/'Population at Risk'!AL$5","v":4.8328687386251651E-2},{"$f":"'Population at Risk'!AM34/'Population at Risk'!AM$5","v":4.0098268647977803E-2},{"$f":"'Population at Risk'!N34/'Population at Risk'!N$5","v":3.74709792399412E-2},{"$f":"'Population at Risk'!AN34/'Population at Risk'!AN$5","v":4.1350273475667353E-2},{"$f":"'Population at Risk'!AO34/'Population at Risk'!AO$5","v":4.1390708367686956E-2},{"$f":"'Population at Risk'!AP34/'Population at Risk'!AP$5","v":4.2168244240718272E-2},{"$f":"'Population at Risk'!C34/'Population at Risk'!C$5","v":3.2845934908812185E-2},{"$f":"'Population at Risk'!AQ34/'Population at Risk'!AQ$5","v":4.011320388319696E-2},{"$f":"'Population at Risk'!O34/'Population at Risk'!O$5","v":4.3051561743100764E-2},{"$f":"'Population at Risk'!AR34/'Population at Risk'!AR$5","v":4.1191959563853561E-2},{"$f":"'Population at Risk'!AS34/'Population at Risk'!AS$5","v":4.2365630364782712E-2},{"$f":"'Population at Risk'!AT34/'Population at Risk'!AT$5","v":4.2775387514760892E-2},{"$f":"'Population at Risk'!AU34/'Population at Risk'!AU$5","v":4.2725608748567866E-2},{"$f":"'Population at Risk'!BB34/'Population at Risk'!BB$5","v":4.0518450837441954E-2},{"$f":"'Population at Risk'!P34/'Population at Risk'!P$5","v":4.3984816892840159E-2},{"$f":"'Population at Risk'!AV34/'Population at Risk'!AV$5","v":4.5863237612149999E-2},{"$f":"'Population at Risk'!AW34/'Population at Risk'!AW$5","v":4.275442841131704E-2},{"$f":"'Population at Risk'!Q34/'Population at Risk'!Q$5","v":3.6478871144746884E-2},32]
[null,"Female 65-69",{"$f":"'Population at Risk'!R35/'Population at Risk'!R$5","v":4.4096003848924037E-2},{"$f":"'Population at Risk'!AX35/'Population at Risk'!AX$5","v":4.4029133886114687E-2},{"$f":"'Population at Risk'!S35/'Population at Risk'!S$5","v":4.4330609339788565E-2},{"$f":"'Population at Risk'!T35/'Population at Risk'!T$5","v":3.6448452197812196E-2},{"$f":"'Population at Risk'!U35/'Population at Risk'!U$5","v":5.4335091561845968E-2},{"$f":"'Population at Risk'!D35/'Population at Risk'!D$5","v":3.9145427492007591E-2},{"$f":"'Population at Risk'!E35/'Population at Risk'!E$5","v":4.3639841619963385E-2},{"$f":"'Population at Risk'!BC35/'Population at Risk'!BC$5","v":5.4373208968267354E-2},{"$f":"'Population at Risk'!V35/'Population at Risk'!V$5","v":4.9658373565669017E-2},{"$f":"'Population at Risk'!F35/'Population at Risk'!F$5","v":5.0098763218185904E-2},{"$f":"'Population at Risk'!W35/'Population at Risk'!W$5","v":5.1560988107439545E-2},{"$f":"'Population at Risk'!X35/'Population at Risk'!X$5","v":5.1566036634642841E-2},{"$f":"'Population at Risk'!Y35/'Population at Risk'!Y$5","v":4.8879126988579984E-2},{"$f":"'Population at Risk'!Z35/'Population at Risk'!Z$5","v":3.9872277806984019E-2},{"$f":"'Population at Risk'!AA35/'Population at Risk'!AA$5","v":4.3627999781386442E-2},{"$f":"'Population at Risk'!AB35/'Population at Risk'!AB$5","v":4.070888686085309E-2},{"$f":"'Population at Risk'!AY35/'Population at Risk'!AY$5","v":4.7660131274045982E-2},{"$f":"'Population at Risk'!AC35/'Population at Risk'!AC$5","v":4.3093186516863786E-2},{"$f":"'Population at Risk'!AD35/'Population at Risk'!AD$5","v":5.1394906092848316E-2},{"$f":"'Population at Risk'!AE35/'Population at Risk'!AE$5","v":4.8908945959161246E-2},{"$f":"'Population at Risk'!G35/'Population at Risk'!G$5","v":5.6019735909846026E-2},{"$f":"'Population at Risk'!AF35/'Population at Risk'!AF$5","v":4.8127804748070151E-2},{"$f":"'Population at Risk'!H35/'Population at Risk'!H$5","v":5.2830473163427996E-2},{"$f":"'Population at Risk'!AG35/'Population at Risk'!AG$5","v":4.8908945959161246E-2},{"$f":"'Population at Risk'!AZ35/'Population at Risk'!AZ$5","v":4.4464229280064049E-2},{"$f":"'Population at Risk'!I35/'Population at Risk'!I$5","v":5.0256423620572949E-2},{"$f":"'Population at Risk'!J35/'Population at Risk'!J$5","v":5.1301872775393838E-2},{"$f":"'Population at Risk'!K35/'Population at Risk'!K$5","v":5.5589674016838196E-2},{"$f":"'Population at Risk'!AH35/'Population at Risk'!AH$5","v":4.4373452675765743E-2},{"$f":"'Population at Risk'!AI35/'Population at Risk'!AI$5","v":4.0099984094722554E-2},{"$f":"'Population at Risk'!BA35/'Population at Risk'!BA$5","v":4.9495606423364188E-2},{"$f":"'Population at Risk'!L35/'Population at Risk'!L$5","v":5.5560599546760868E-2},{"$f":"'Population at Risk'!M35/'Population at Risk'!M$5","v":5.5579528075356315E-2},{"$f":"'Population at Risk'!AJ35/'Population at Risk'!AJ$5","v":4.434537409358888E-2},{"$f":"'Population at Risk'!AK35/'Population at Risk'!AK$5","v":4.8323229643627015E-2},{"$f":"'Population at Risk'!AL35/'Population at Risk'!AL$5","v":5.599994339360069E-2},{"$f":"'Population at Risk'!AM35/'Population at Risk'!AM$5","v":4.3661704038383493E-2},{"$f":"'Population at Risk'!N35/'Population at Risk'!N$5","v":4.4086671756548956E-2},{"$f":"'Population at Risk'!AN35/'Population at Risk'!AN$5","v":4.6516640262248013E-2},{"$f":"'Population at Risk'!AO35/'Population at Risk'!AO$5","v":4.6562127151886713E-2},{"$f":"'Population at Risk'!AP35/'Population at Risk'!AP$5","v":4.6120857374361078E-2},{"$f":"'Population at Risk'!C35/'Population at Risk'!C$5","v":3.4245898547535743E-2},{"$f":"'Population at Risk'!AQ35/'Population at Risk'!AQ$5","v":4.4941517353543799E-2},{"$f":"'Population at Risk'!O35/'Population at Risk'!O$5","v":5.0118779543651008E-2},{"$f":"'Population at Risk'!AR35/'Population at Risk'!AR$5","v":4.5464082390308358E-2},{"$f":"'Population at Risk'!AS35/'Population at Risk'!AS$5","v":5.0248491430498254E-2},{"$f":"'Population at Risk'!AT35/'Population at Risk'!AT$5","v":4.174740634687308E-2},{"$f":"'Population at Risk'!AU35/'Population at Risk'!AU$5","v":4.1698823867544546E-2},{"$f":"'Population at Risk'!BB35/'Population at Risk'!BB$5","v":4.5600371727606684E-2},{"$f":"'Population at Risk'!P35/'Population at Risk'!P$5","v":4.5024756015319967E-2},{"$f":"'Population at Risk'!AV35/'Population at Risk'!AV$5","v":5.1952834837159907E-2},{"$f":"'Population at Risk'!AW35/'Population at Risk'!AW$5","v":4.5405032874418161E-2},{"$f":"'Population at Risk'!Q35/'Population at Risk'!Q$5","v":4.0466347969455016E-2},33]
[null,"Female 70-74",{"$f":"'Population at Risk'!R36/'Population at Risk'!R$5","v":3.4911775343761567E-2},{"$f":"'Population at Risk'!AX36/'Population at Risk'!AX$5","v":3.5866492237437979E-2},{"$f":"'Population at Risk'!S36/'Population at Risk'!S$5","v":3.3922302564483808E-2},{"$f":"'Population at Risk'!T36/'Population at Risk'!T$5","v":2.7121403350326825E-2},{"$f":"'Population at Risk'!U36/'Population at Risk'!U$5","v":4.3061462123371669E-2},{"$f":"'Population at Risk'!D36/'Population at Risk'!D$5","v":2.8642315772772493E-2},{"$f":"'Population at Risk'!E36/'Population at Risk'!E$5","v":3.2051299221544489E-2},{"$f":"'Population at Risk'!BC36/'Population at Risk'!BC$5","v":4.3091670800778366E-2},{"$f":"'Population at Risk'!V36/'Population at Risk'!V$5","v":3.7396042072470666E-2},{"$f":"'Population at Risk'!F36/'Population at Risk'!F$5","v":3.8780490813883857E-2},{"$f":"'Population at Risk'!W36/'Population at Risk'!W$5","v":3.9800426845693918E-2},{"$f":"'Population at Risk'!X36/'Population at Risk'!X$5","v":3.9804323852811282E-2},{"$f":"'Population at Risk'!Y36/'Population at Risk'!Y$5","v":3.765785038486591E-2},{"$f":"'Population at Risk'!Z36/'Population at Risk'!Z$5","v":3.1500228368975793E-2},{"$f":"'Population at Risk'!AA36/'Population at Risk'!AA$5","v":3.4237979620951063E-2},{"$f":"'Population at Risk'!AB36/'Population at Risk'!AB$5","v":3.0308270301088028E-2},{"$f":"'Population at Risk'!AY36/'Population at Risk'!AY$5","v":3.692946161999433E-2},{"$f":"'Population at Risk'!AC36/'Population at Risk'!AC$5","v":3.368122442013486E-2},{"$f":"'Population at Risk'!AD36/'Population at Risk'!AD$5","v":3.9715648593563135E-2},{"$f":"'Population at Risk'!AE36/'Population at Risk'!AE$5","v":3.7819097111298397E-2},{"$f":"'Population at Risk'!G36/'Population at Risk'!G$5","v":4.3226692125506047E-2},{"$f":"'Population at Risk'!AF36/'Population at Risk'!AF$5","v":3.7471385338687484E-2},{"$f":"'Population at Risk'!H36/'Population at Risk'!H$5","v":4.2162266728339885E-2},{"$f":"'Population at Risk'!AG36/'Population at Risk'!AG$5","v":3.7819097111298397E-2},{"$f":"'Population at Risk'!AZ36/'Population at Risk'!AZ$5","v":3.4577726718889146E-2},{"$f":"'Population at Risk'!I36/'Population at Risk'!I$5","v":3.9083488627836831E-2},{"$f":"'Population at Risk'!J36/'Population at Risk'!J$5","v":4.0526276281613045E-2},{"$f":"'Population at Risk'!K36/'Population at Risk'!K$5","v":4.2071076876116331E-2},{"$f":"'Population at Risk'!AH36/'Population at Risk'!AH$5","v":3.5043692101777178E-2},{"$f":"'Population at Risk'!AI36/'Population at Risk'!AI$5","v":3.0436268669959611E-2},{"$f":"'Population at Risk'!BA36/'Population at Risk'!BA$5","v":3.596064078026711E-2},{"$f":"'Population at Risk'!L36/'Population at Risk'!L$5","v":4.7067311001728798E-2},{"$f":"'Population at Risk'!M36/'Population at Risk'!M$5","v":4.7083346014840148E-2},{"$f":"'Population at Risk'!AJ36/'Population at Risk'!AJ$5","v":3.2972152177686495E-2},{"$f":"'Population at Risk'!AK36/'Population at Risk'!AK$5","v":3.8522572600145535E-2},{"$f":"'Population at Risk'!AL36/'Population at Risk'!AL$5","v":4.419050084059635E-2},{"$f":"'Population at Risk'!AM36/'Population at Risk'!AM$5","v":3.4920062972019501E-2},{"$f":"'Population at Risk'!N36/'Population at Risk'!N$5","v":3.3011655999033114E-2},{"$f":"'Population at Risk'!AN36/'Population at Risk'!AN$5","v":4.0500235186802007E-2},{"$f":"'Population at Risk'!AO36/'Population at Risk'!AO$5","v":4.0539838858045199E-2},{"$f":"'Population at Risk'!AP36/'Population at Risk'!AP$5","v":3.7309413164688519E-2},{"$f":"'Population at Risk'!C36/'Population at Risk'!C$5","v":2.4928764418308099E-2},{"$f":"'Population at Risk'!AQ36/'Population at Risk'!AQ$5","v":3.479058612444489E-2},{"$f":"'Population at Risk'!O36/'Population at Risk'!O$5","v":3.8955431723055024E-2},{"$f":"'Population at Risk'!AR36/'Population at Risk'!AR$5","v":3.5388780915337543E-2},{"$f":"'Population at Risk'!AS36/'Population at Risk'!AS$5","v":3.9077319910720804E-2},{"$f":"'Population at Risk'!AT36/'Population at Risk'!AT$5","v":3.5612007712771163E-2},{"$f":"'Population at Risk'!AU36/'Population at Risk'!AU$5","v":3.557056514711384E-2},{"$f":"'Population at Risk'!BB36/'Population at Risk'!BB$5","v":3.5641923860179607E-2},{"$f":"'Population at Risk'!P36/'Population at Risk'!P$5","v":3.6340129800100041E-2},{"$f":"'Population at Risk'!AV36/'Population at Risk'!AV$5","v":4.3228227756963424E-2},{"$f":"'Population at Risk'!AW36/'Population at Risk'!AW$5","v":3.5369800914224293E-2},{"$f":"'Population at Risk'!Q36/'Population at Risk'!Q$5","v":3.1872164136331045E-2},34]
[null,"Female 75-79",{"$f":"'Population at Risk'!R37/'Population at Risk'!R$5","v":4.8296451781392677E-2},{"$f":"'Population at Risk'!AX37/'Population at Risk'!AX$5","v":4.4651964957081201E-2},{"$f":"'Population at Risk'!S37/'Population at Risk'!S$5","v":4.018431897486828E-2},{"$f":"'Population at Risk'!T37/'Population at Risk'!T$5","v":3.6320999707670262E-2},{"$f":"'Population at Risk'!U37/'Population at Risk'!U$5","v":5.1739971869107233E-2},{"$f":"'Population at Risk'!D37/'Population at Risk'!D$5","v":3.6707672607672291E-2},{"$f":"'Population at Risk'!E37/'Population at Risk'!E$5","v":3.8462425956063327E-2},{"$f":"'Population at Risk'!BC37/'Population at Risk'!BC$5","v":5.1776268735078658E-2},{"$f":"'Population at Risk'!V37/'Population at Risk'!V$5","v":4.6014152156645227E-2},{"$f":"'Population at Risk'!F37/'Population at Risk'!F$5","v":4.5692276599596314E-2},{"$f":"'Population at Risk'!W37/'Population at Risk'!W$5","v":4.4371759855116009E-2},{"$f":"'Population at Risk'!X37/'Population at Risk'!X$5","v":4.4376104458369536E-2},{"$f":"'Population at Risk'!Y37/'Population at Risk'!Y$5","v":4.4999387987605964E-2},{"$f":"'Population at Risk'!Z37/'Population at Risk'!Z$5","v":3.8590229629640073E-2},{"$f":"'Population at Risk'!AA37/'Population at Risk'!AA$5","v":4.1265425641568085E-2},{"$f":"'Population at Risk'!AB37/'Population at Risk'!AB$5","v":3.8057831687075286E-2},{"$f":"'Population at Risk'!AY37/'Population at Risk'!AY$5","v":4.2913731913324475E-2},{"$f":"'Population at Risk'!AC37/'Population at Risk'!AC$5","v":4.1931886586687103E-2},{"$f":"'Population at Risk'!AD37/'Population at Risk'!AD$5","v":4.5481460321746922E-2},{"$f":"'Population at Risk'!AE37/'Population at Risk'!AE$5","v":4.3011953223082489E-2},{"$f":"'Population at Risk'!G37/'Population at Risk'!G$5","v":5.0265735045972419E-2},{"$f":"'Population at Risk'!AF37/'Population at Risk'!AF$5","v":4.3689201342357577E-2},{"$f":"'Population at Risk'!H37/'Population at Risk'!H$5","v":4.6792421585459994E-2},{"$f":"'Population at Risk'!AG37/'Population at Risk'!AG$5","v":4.3011953223082489E-2},{"$f":"'Population at Risk'!AZ37/'Population at Risk'!AZ$5","v":4.1724553149769882E-2},{"$f":"'Population at Risk'!I37/'Population at Risk'!I$5","v":4.5623982348731953E-2},{"$f":"'Population at Risk'!J37/'Population at Risk'!J$5","v":4.6884272178248004E-2},{"$f":"'Population at Risk'!K37/'Population at Risk'!K$5","v":4.3309919801136937E-2},{"$f":"'Population at Risk'!AH37/'Population at Risk'!AH$5","v":4.0082630709237038E-2},{"$f":"'Population at Risk'!AI37/'Population at Risk'!AI$5","v":3.738751738385819E-2},{"$f":"'Population at Risk'!BA37/'Population at Risk'!BA$5","v":4.2576385578810889E-2},{"$f":"'Population at Risk'!L37/'Population at Risk'!L$5","v":5.0451983958103505E-2},{"$f":"'Population at Risk'!M37/'Population at Risk'!M$5","v":5.0469172070341996E-2},{"$f":"'Population at Risk'!AJ37/'Population at Risk'!AJ$5","v":3.6378648157700928E-2},{"$f":"'Population at Risk'!AK37/'Population at Risk'!AK$5","v":4.461097585693536E-2},{"$f":"'Population at Risk'!AL37/'Population at Risk'!AL$5","v":4.7953517446666642E-2},{"$f":"'Population at Risk'!AM37/'Population at Risk'!AM$5","v":3.8880709636065207E-2},{"$f":"'Population at Risk'!N37/'Population at Risk'!N$5","v":4.125153892523372E-2},{"$f":"'Population at Risk'!AN37/'Population at Risk'!AN$5","v":4.4186047267055731E-2},{"$f":"'Population at Risk'!AO37/'Population at Risk'!AO$5","v":4.4229255156625492E-2},{"$f":"'Population at Risk'!AP37/'Population at Risk'!AP$5","v":4.4445220389363264E-2},{"$f":"'Population at Risk'!C37/'Population at Risk'!C$5","v":3.4739435493015863E-2},{"$f":"'Population at Risk'!AQ37/'Population at Risk'!AQ$5","v":4.2222676600224468E-2},{"$f":"'Population at Risk'!O37/'Population at Risk'!O$5","v":4.2843595778270314E-2},{"$f":"'Population at Risk'!AR37/'Population at Risk'!AR$5","v":4.1951016979352405E-2},{"$f":"'Population at Risk'!AS37/'Population at Risk'!AS$5","v":4.561678131702529E-2},{"$f":"'Population at Risk'!AT37/'Population at Risk'!AT$5","v":3.7679770070897289E-2},{"$f":"'Population at Risk'!AU37/'Population at Risk'!AU$5","v":3.7635921199535953E-2},{"$f":"'Population at Risk'!BB37/'Population at Risk'!BB$5","v":3.8311849857025543E-2},{"$f":"'Population at Risk'!P37/'Population at Risk'!P$5","v":5.2741320739922666E-2},{"$f":"'Population at Risk'!AV37/'Population at Risk'!AV$5","v":4.9750979905978564E-2},{"$f":"'Population at Risk'!AW37/'Population at Risk'!AW$5","v":4.1637334828436214E-2},{"$f":"'Population at Risk'!Q37/'Population at Risk'!Q$5","v":3.9277670111621914E-2},35]
[null,"Female 80-84",{"$f":"'Population at Risk'!R38/'Population at Risk'!R$5","v":4.1980699431893601E-2},{"$f":"'Population at Risk'!AX38/'Population at Risk'!AX$5","v":3.341871203651111E-2},{"$f":"'Population at Risk'!S38/'Population at Risk'!S$5","v":3.0545269189977551E-2},{"$f":"'Population at Risk'!T38/'Population at Risk'!T$5","v":2.9614017654487269E-2},{"$f":"'Population at Risk'!U38/'Population at Risk'!U$5","v":4.0497101590741914E-2},{"$f":"'Population at Risk'!D38/'Population at Risk'!D$5","v":2.8445610973354352E-2},{"$f":"'Population at Risk'!E38/'Population at Risk'!E$5","v":2.8168248237984635E-2},{"$f":"'Population at Risk'!BC38/'Population at Risk'!BC$5","v":4.0525511306007886E-2},{"$f":"'Population at Risk'!V38/'Population at Risk'!V$5","v":3.2580758152756496E-2},{"$f":"'Population at Risk'!F38/'Population at Risk'!F$5","v":3.4917360524157878E-2},{"$f":"'Population at Risk'!W38/'Population at Risk'!W$5","v":3.3105093578122496E-2},{"$f":"'Population at Risk'!X38/'Population at Risk'!X$5","v":3.3108335020376252E-2},{"$f":"'Population at Risk'!Y38/'Population at Risk'!Y$5","v":3.2128321669665137E-2},{"$f":"'Population at Risk'!Z38/'Population at Risk'!Z$5","v":3.1680281211736647E-2},{"$f":"'Population at Risk'!AA38/'Population at Risk'!AA$5","v":3.2367806982304327E-2},{"$f":"'Population at Risk'!AB38/'Population at Risk'!AB$5","v":2.9710769613847367E-2},{"$f":"'Population at Risk'!AY38/'Population at Risk'!AY$5","v":3.3267443127662465E-2},{"$f":"'Population at Risk'!AC38/'Population at Risk'!AC$5","v":3.3663538073550062E-2},{"$f":"'Population at Risk'!AD38/'Population at Risk'!AD$5","v":3.4050337269357904E-2},{"$f":"'Population at Risk'!AE38/'Population at Risk'!AE$5","v":3.2564666229384018E-2},{"$f":"'Population at Risk'!G38/'Population at Risk'!G$5","v":3.6700507186275273E-2},{"$f":"'Population at Risk'!AF38/'Population at Risk'!AF$5","v":3.4571939520043386E-2},{"$f":"'Population at Risk'!H38/'Population at Risk'!H$5","v":3.5114556750818704E-2},{"$f":"'Population at Risk'!AG38/'Population at Risk'!AG$5","v":3.2564666229384018E-2},{"$f":"'Population at Risk'!AZ38/'Population at Risk'!AZ$5","v":3.3407977275322735E-2},{"$f":"'Population at Risk'!I38/'Population at Risk'!I$5","v":3.2852830278312269E-2},{"$f":"'Population at Risk'!J38/'Population at Risk'!J$5","v":3.3790244084147603E-2},{"$f":"'Population at Risk'!K38/'Population at Risk'!K$5","v":2.9113825311933801E-2},{"$f":"'Population at Risk'!AH38/'Population at Risk'!AH$5","v":3.0195259749209589E-2},{"$f":"'Population at Risk'!AI38/'Population at Risk'!AI$5","v":2.8974484143377843E-2},{"$f":"'Population at Risk'!BA38/'Population at Risk'!BA$5","v":3.1527613200515531E-2},{"$f":"'Population at Risk'!L38/'Population at Risk'!L$5","v":3.966715758223472E-2},{"$f":"'Population at Risk'!M38/'Population at Risk'!M$5","v":3.9680671491960695E-2},{"$f":"'Population at Risk'!AJ38/'Population at Risk'!AJ$5","v":2.7716682591968949E-2},{"$f":"'Population at Risk'!AK38/'Population at Risk'!AK$5","v":3.5897248781042015E-2},{"$f":"'Population at Risk'!AL38/'Population at Risk'!AL$5","v":3.5475276398285904E-2},{"$f":"'Population at Risk'!AM38/'Population at Risk'!AM$5","v":2.8541680640411606E-2},{"$f":"'Population at Risk'!N38/'Population at Risk'!N$5","v":3.5139851736388734E-2},{"$f":"'Population at Risk'!AN38/'Population at Risk'!AN$5","v":2.9296204986186167E-2},{"$f":"'Population at Risk'!AO38/'Population at Risk'!AO$5","v":2.9324852653677354E-2},{"$f":"'Population at Risk'!AP38/'Population at Risk'!AP$5","v":3.474720854080196E-2},{"$f":"'Population at Risk'!C38/'Population at Risk'!C$5","v":2.8668293609036079E-2},{"$f":"'Population at Risk'!AQ38/'Population at Risk'!AQ$5","v":3.3185113387072883E-2},{"$f":"'Population at Risk'!O38/'Population at Risk'!O$5","v":3.1674636650600337E-2},{"$f":"'Population at Risk'!AR38/'Population at Risk'!AR$5","v":3.2300231036830183E-2},{"$f":"'Population at Risk'!AS38/'Population at Risk'!AS$5","v":3.284764497312169E-2},{"$f":"'Population at Risk'!AT38/'Population at Risk'!AT$5","v":2.8154240340192243E-2},{"$f":"'Population at Risk'!AU38/'Population at Risk'!AU$5","v":2.8121476561097244E-2},{"$f":"'Population at Risk'!BB38/'Population at Risk'!BB$5","v":2.6548663748448945E-2},{"$f":"'Population at Risk'!P38/'Population at Risk'!P$5","v":3.9904338742872358E-2},{"$f":"'Population at Risk'!AV38/'Population at Risk'!AV$5","v":3.8489962458309691E-2},{"$f":"'Population at Risk'!AW38/'Population at Risk'!AW$5","v":3.2200091992011848E-2},{"$f":"'Population at Risk'!Q38/'Population at Risk'!Q$5","v":2.9877184810981533E-2},36]
[null,"Female 85-89",{"$f":"'Population at Risk'!R39/'Population at Risk'!R$5","v":2.6476081710837741E-2},{"$f":"'Population at Risk'!AX39/'Population at Risk'!AX$5","v":1.8719937398864715E-2},{"$f":"'Population at Risk'!S39/'Population at Risk'!S$5","v":1.9516826945325447E-2},{"$f":"'Population at Risk'!T39/'Population at Risk'!T$5","v":2.0983438445101119E-2},{"$f":"'Population at Risk'!U39/'Population at Risk'!U$5","v":2.3747320130942967E-2},{"$f":"'Population at Risk'!D39/'Population at Risk'!D$5","v":1.8547283590449406E-2},{"$f":"'Population at Risk'!E39/'Population at Risk'!E$5","v":1.8141959688256767E-2},{"$f":"'Population at Risk'!BC39/'Population at Risk'!BC$5","v":2.3763979461530815E-2},{"$f":"'Population at Risk'!V39/'Population at Risk'!V$5","v":1.9171269277996467E-2},{"$f":"'Population at Risk'!F39/'Population at Risk'!F$5","v":2.2707038967669155E-2},{"$f":"'Population at Risk'!W39/'Population at Risk'!W$5","v":2.0922237681782838E-2},{"$f":"'Population at Risk'!X39/'Population at Risk'!X$5","v":2.0924286255519828E-2},{"$f":"'Population at Risk'!Y39/'Population at Risk'!Y$5","v":1.8818859569711535E-2},{"$f":"'Population at Risk'!Z39/'Population at Risk'!Z$5","v":1.9048531153199263E-2},{"$f":"'Population at Risk'!AA39/'Population at Risk'!AA$5","v":1.9300544773884945E-2},{"$f":"'Population at Risk'!AB39/'Population at Risk'!AB$5","v":1.9057006983462188E-2},{"$f":"'Population at Risk'!AY39/'Population at Risk'!AY$5","v":2.1490587508984211E-2},{"$f":"'Population at Risk'!AC39/'Population at Risk'!AC$5","v":2.043594538413716E-2},{"$f":"'Population at Risk'!AD39/'Population at Risk'!AD$5","v":2.1477461593651406E-2},{"$f":"'Population at Risk'!AE39/'Population at Risk'!AE$5","v":2.0785279114716577E-2},{"$f":"'Population at Risk'!G39/'Population at Risk'!G$5","v":2.2520775408995428E-2},{"$f":"'Population at Risk'!AF39/'Population at Risk'!AF$5","v":2.1998816014027835E-2},{"$f":"'Population at Risk'!H39/'Population at Risk'!H$5","v":2.0467175797635538E-2},{"$f":"'Population at Risk'!AG39/'Population at Risk'!AG$5","v":2.0785279114716577E-2},{"$f":"'Population at Risk'!AZ39/'Population at Risk'!AZ$5","v":2.1962295485681786E-2},{"$f":"'Population at Risk'!I39/'Population at Risk'!I$5","v":2.0193014917265297E-2},{"$f":"'Population at Risk'!J39/'Population at Risk'!J$5","v":1.9690752507690857E-2},{"$f":"'Population at Risk'!K39/'Population at Risk'!K$5","v":1.8246059519800135E-2},{"$f":"'Population at Risk'!AH39/'Population at Risk'!AH$5","v":1.7420877277076072E-2},{"$f":"'Population at Risk'!AI39/'Population at Risk'!AI$5","v":1.8737059135857277E-2},{"$f":"'Population at Risk'!BA39/'Population at Risk'!BA$5","v":2.0260450284270728E-2},{"$f":"'Population at Risk'!L39/'Population at Risk'!L$5","v":2.4277947540430389E-2},{"$f":"'Population at Risk'!M39/'Population at Risk'!M$5","v":2.4286218614320999E-2},{"$f":"'Population at Risk'!AJ39/'Population at Risk'!AJ$5","v":1.5708441299501569E-2},{"$f":"'Population at Risk'!AK39/'Population at Risk'!AK$5","v":2.1494843472442786E-2},{"$f":"'Population at Risk'!AL39/'Population at Risk'!AL$5","v":1.9892826264563752E-2},{"$f":"'Population at Risk'!AM39/'Population at Risk'!AM$5","v":1.5783511077919532E-2},{"$f":"'Population at Risk'!N39/'Population at Risk'!N$5","v":2.2401731004787925E-2},{"$f":"'Population at Risk'!AN39/'Population at Risk'!AN$5","v":1.9420378065341325E-2},{"$f":"'Population at Risk'!AO39/'Population at Risk'!AO$5","v":1.9439368529588535E-2},{"$f":"'Population at Risk'!AP39/'Population at Risk'!AP$5","v":2.3753827418118302E-2},{"$f":"'Population at Risk'!C39/'Population at Risk'!C$5","v":1.8932140361137488E-2},{"$f":"'Population at Risk'!AQ39/'Population at Risk'!AQ$5","v":1.9065336287875507E-2},{"$f":"'Population at Risk'!O39/'Population at Risk'!O$5","v":1.863654120506969E-2},{"$f":"'Population at Risk'!AR39/'Population at Risk'!AR$5","v":1.9916074854894564E-2},{"$f":"'Population at Risk'!AS39/'Population at Risk'!AS$5","v":2.0189827765833383E-2},{"$f":"'Population at Risk'!AT39/'Population at Risk'!AT$5","v":1.698452307963208E-2},{"$f":"'Population at Risk'!AU39/'Population at Risk'!AU$5","v":1.6964757774104708E-2},{"$f":"'Population at Risk'!BB39/'Population at Risk'!BB$5","v":1.4119603825462989E-2},{"$f":"'Population at Risk'!P39/'Population at Risk'!P$5","v":2.4552302901640118E-2},{"$f":"'Population at Risk'!AV39/'Population at Risk'!AV$5","v":2.3212258622214332E-2},{"$f":"'Population at Risk'!AW39/'Population at Risk'!AW$5","v":1.9338984403287535E-2},{"$f":"'Population at Risk'!Q39/'Population at Risk'!Q$5","v":1.8707303568588657E-2},37]
[null,"Female 90+",{"$f":"'Population at Risk'!R40/'Population at Risk'!R$5","v":1.6277698207143219E-2},{"$f":"'Population at Risk'!AX40/'Population at Risk'!AX$5","v":1.2278851831394879E-2},{"$f":"'Population at Risk'!S40/'Population at Risk'!S$5","v":1.1599093807891732E-2},{"$f":"'Population at Risk'!T40/'Population at Risk'!T$5","v":1.2511583605012396E-2},{"$f":"'Population at Risk'!U40/'Population at Risk'!U$5","v":1.7441465303726079E-2},{"$f":"'Population at Risk'!D40/'Population at Risk'!D$5","v":1.0519258297511682E-2},{"$f":"'Population at Risk'!E40/'Population at Risk'!E$5","v":1.070554869816286E-2},{"$f":"'Population at Risk'!BC40/'Population at Risk'!BC$5","v":1.7453700921674933E-2},{"$f":"'Population at Risk'!V40/'Population at Risk'!V$5","v":1.1455555601767527E-2},{"$f":"'Population at Risk'!F40/'Population at Risk'!F$5","v":1.5248706565624494E-2},{"$f":"'Population at Risk'!W40/'Population at Risk'!W$5","v":1.2695935269578948E-2},{"$f":"'Population at Risk'!X40/'Population at Risk'!X$5","v":1.2697178375596353E-2},{"$f":"'Population at Risk'!Y40/'Population at Risk'!Y$5","v":1.1436364896024535E-2},{"$f":"'Population at Risk'!Z40/'Population at Risk'!Z$5","v":1.0949037185229486E-2},{"$f":"'Population at Risk'!AA40/'Population at Risk'!AA$5","v":1.0665986701332132E-2},{"$f":"'Population at Risk'!AB40/'Population at Risk'!AB$5","v":1.0774182486586611E-2},{"$f":"'Population at Risk'!AY40/'Population at Risk'!AY$5","v":1.3088989141830338E-2},{"$f":"'Population at Risk'!AC40/'Population at Risk'!AC$5","v":1.1711286850310778E-2},{"$f":"'Population at Risk'!AD40/'Population at Risk'!AD$5","v":1.2455826972257512E-2},{"$f":"'Population at Risk'!AE40/'Population at Risk'!AE$5","v":1.1600970396475115E-2},{"$f":"'Population at Risk'!G40/'Population at Risk'!G$5","v":1.4224106923630899E-2},{"$f":"'Population at Risk'!AF40/'Population at Risk'!AF$5","v":1.2592296891116649E-2},{"$f":"'Population at Risk'!H40/'Population at Risk'!H$5","v":1.2613862405177553E-2},{"$f":"'Population at Risk'!AG40/'Population at Risk'!AG$5","v":1.1600970396475115E-2},{"$f":"'Population at Risk'!AZ40/'Population at Risk'!AZ$5","v":1.3414829888158075E-2},{"$f":"'Population at Risk'!I40/'Population at Risk'!I$5","v":1.231108785354623E-2},{"$f":"'Population at Risk'!J40/'Population at Risk'!J$5","v":1.2192787281036725E-2},{"$f":"'Population at Risk'!K40/'Population at Risk'!K$5","v":1.0131700667060546E-2},{"$f":"'Population at Risk'!AH40/'Population at Risk'!AH$5","v":8.954335269079022E-3},{"$f":"'Population at Risk'!AI40/'Population at Risk'!AI$5","v":1.0972412820155165E-2},{"$f":"'Population at Risk'!BA40/'Population at Risk'!BA$5","v":1.1046198030107356E-2},{"$f":"'Population at Risk'!L40/'Population at Risk'!L$5","v":1.3665634045222518E-2},{"$f":"'Population at Risk'!M40/'Population at Risk'!M$5","v":1.3670289688734467E-2},{"$f":"'Population at Risk'!AJ40/'Population at Risk'!AJ$5","v":8.9048303839533577E-3},{"$f":"'Population at Risk'!AK40/'Population at Risk'!AK$5","v":1.1983811159298698E-2},{"$f":"'Population at Risk'!AL40/'Population at Risk'!AL$5","v":1.2051988935321334E-2},{"$f":"'Population at Risk'!AM40/'Population at Risk'!AM$5","v":7.4877902774947028E-3},{"$f":"'Population at Risk'!N40/'Population at Risk'!N$5","v":1.2380310298043009E-2},{"$f":"'Population at Risk'!AN40/'Population at Risk'!AN$5","v":1.1909984194598837E-2},{"$f":"'Population at Risk'!AO40/'Population at Risk'!AO$5","v":1.1921630524462826E-2},{"$f":"'Population at Risk'!AP40/'Population at Risk'!AP$5","v":1.4750399521731686E-2},{"$f":"'Population at Risk'!C40/'Population at Risk'!C$5","v":1.0293205799408732E-2},{"$f":"'Population at Risk'!AQ40/'Population at Risk'!AQ$5","v":1.0458923395983571E-2},{"$f":"'Population at Risk'!O40/'Population at Risk'!O$5","v":1.0778129107087833E-2},{"$f":"'Population at Risk'!AR40/'Population at Risk'!AR$5","v":1.1561548632510276E-2},{"$f":"'Population at Risk'!AS40/'Population at Risk'!AS$5","v":1.2309144740967866E-2},{"$f":"'Population at Risk'!AT40/'Population at Risk'!AT$5","v":1.1268101862495756E-2},{"$f":"'Population at Risk'!AU40/'Population at Risk'!AU$5","v":1.1254988896357022E-2},{"$f":"'Population at Risk'!BB40/'Population at Risk'!BB$5","v":8.3281775297135256E-3},{"$f":"'Population at Risk'!P40/'Population at Risk'!P$5","v":1.4489085350876391E-2},{"$f":"'Population at Risk'!AV40/'Population at Risk'!AV$5","v":1.5340851208836399E-2},{"$f":"'Population at Risk'!AW40/'Population at Risk'!AW$5","v":1.0636595049036248E-2},{"$f":"'Population at Risk'!Q40/'Population at Risk'!Q$5","v":1.0253620284502859E-2},38]
[null,"Male 0-4",{"$f":"'Population at Risk'!R41/'Population at Risk'!R$5","v":0},{"$f":"'Population at Risk'!AX41/'Population at Risk'!AX$5","v":0},{"$f":"'Population at Risk'!S41/'Population at Risk'!S$5","v":0},{"$f":"'Population at Risk'!T41/'Population at Risk'!T$5","v":0},{"$f":"'Population at Risk'!U41/'Population at Risk'!U$5","v":0},{"$f":"'Population at Risk'!D41/'Population at Risk'!D$5","v":0},{"$f":"'Population at Risk'!E41/'Population at Risk'!E$5","v":0},{"$f":"'Population at Risk'!BC41/'Population at Risk'!BC$5","v":0},{"$f":"'Population at Risk'!V41/'Population at Risk'!V$5","v":0},{"$f":"'Population at Risk'!F41/'Population at Risk'!F$5","v":0},{"$f":"'Population at Risk'!W41/'Population at Risk'!W$5","v":0},{"$f":"'Population at Risk'!X41/'Population at Risk'!X$5","v":0},{"$f":"'Population at Risk'!Y41/'Population at Risk'!Y$5","v":0},{"$f":"'Population at Risk'!Z41/'Population at Risk'!Z$5","v":0},{"$f":"'Population at Risk'!AA41/'Population at Risk'!AA$5","v":0},{"$f":"'Population at Risk'!AB41/'Population at Risk'!AB$5","v":0},{"$f":"'Population at Risk'!AY41/'Population at Risk'!AY$5","v":0},{"$f":"'Population at Risk'!AC41/'Population at Risk'!AC$5","v":0},{"$f":"'Population at Risk'!AD41/'Population at Risk'!AD$5","v":0},{"$f":"'Population at Risk'!AE41/'Population at Risk'!AE$5","v":0},{"$f":"'Population at Risk'!G41/'Population at Risk'!G$5","v":0},{"$f":"'Population at Risk'!AF41/'Population at Risk'!AF$5","v":0},{"$f":"'Population at Risk'!H41/'Population at Risk'!H$5","v":0},{"$f":"'Population at Risk'!AG41/'Population at Risk'!AG$5","v":0},{"$f":"'Population at Risk'!AZ41/'Population at Risk'!AZ$5","v":0},{"$f":"'Population at Risk'!I41/'Population at Risk'!I$5","v":0},{"$f":"'Population at Risk'!J41/'Population at Risk'!J$5","v":0},{"$f":"'Population at Risk'!K41/'Population at Risk'!K$5","v":0},{"$f":"'Population at Risk'!AH41/'Population at Risk'!AH$5","v":0},{"$f":"'Population at Risk'!AI41/'Population at Risk'!AI$5","v":0},{"$f":"'Population at Risk'!BA41/'Population at Risk'!BA$5","v":0},{"$f":"'Population at Risk'!L41/'Population at Risk'!L$5","v":0},{"$f":"'Population at Risk'!M41/'Population at Risk'!M$5","v":0},{"$f":"'Population at Risk'!AJ41/'Population at Risk'!AJ$5","v":0},{"$f":"'Population at Risk'!AK41/'Population at Risk'!AK$5","v":0},{"$f":"'Population at Risk'!AL41/'Population at Risk'!AL$5","v":0},{"$f":"'Population at Risk'!AM41/'Population at Risk'!AM$5","v":0},{"$f":"'Population at Risk'!N41/'Population at Risk'!N$5","v":0},{"$f":"'Population at Risk'!AN41/'Population at Risk'!AN$5","v":0},{"$f":"'Population at Risk'!AO41/'Population at Risk'!AO$5","v":0},{"$f":"'Population at Risk'!AP41/'Population at Risk'!AP$5","v":0},{"$f":"'Population at Risk'!C41/'Population at Risk'!C$5","v":0},{"$f":"'Population at Risk'!AQ41/'Population at Risk'!AQ$5","v":0},{"$f":"'Population at Risk'!O41/'Population at Risk'!O$5","v":0},{"$f":"'Population at Risk'!AR41/'Population at Risk'!AR$5","v":0},{"$f":"'Population at Risk'!AS41/'Population at Risk'!AS$5","v":0},{"$f":"'Population at Risk'!AT41/'Population at Risk'!AT$5","v":0},{"$f":"'Population at Risk'!AU41/'Population at Risk'!AU$5","v":0},{"$f":"'Population at Risk'!BB41/'Population at Risk'!BB$5","v":0},{"$f":"'Population at Risk'!P41/'Population at Risk'!P$5","v":0},{"$f":"'Population at Risk'!AV41/'Population at Risk'!AV$5","v":0},{"$f":"'Population at Risk'!AW41/'Population at Risk'!AW$5","v":0},{"$f":"'Population at Risk'!Q41/'Population at Risk'!Q$5","v":0},39]
[null,"Male 5-9",{"$f":"'Population at Risk'!R42/'Population at Risk'!R$5","v":0},{"$f":"'Population at Risk'!AX42/'Population at Risk'!AX$5","v":0},{"$f":"'Population at Risk'!S42/'Population at Risk'!S$5","v":0},{"$f":"'Population at Risk'!T42/'Population at Risk'!T$5","v":0},{"$f":"'Population at Risk'!U42/'Population at Risk'!U$5","v":0},{"$f":"'Population at Risk'!D42/'Population at Risk'!D$5","v":0},{"$f":"'Population at Risk'!E42/'Population at Risk'!E$5","v":0},{"$f":"'Population at Risk'!BC42/'Population at Risk'!BC$5","v":0},{"$f":"'Population at Risk'!V42/'Population at Risk'!V$5","v":0},{"$f":"'Population at Risk'!F42/'Population at Risk'!F$5","v":0},{"$f":"'Population at Risk'!W42/'Population at Risk'!W$5","v":0},{"$f":"'Population at Risk'!X42/'Population at Risk'!X$5","v":0},{"$f":"'Population at Risk'!Y42/'Population at Risk'!Y$5","v":0},{"$f":"'Population at Risk'!Z42/'Population at Risk'!Z$5","v":0},{"$f":"'Population at Risk'!AA42/'Population at Risk'!AA$5","v":0},{"$f":"'Population at Risk'!AB42/'Population at Risk'!AB$5","v":0},{"$f":"'Population at Risk'!AY42/'Population at Risk'!AY$5","v":0},{"$f":"'Population at Risk'!AC42/'Population at Risk'!AC$5","v":0},{"$f":"'Population at Risk'!AD42/'Population at Risk'!AD$5","v":0},{"$f":"'Population at Risk'!AE42/'Population at Risk'!AE$5","v":0},{"$f":"'Population at Risk'!G42/'Population at Risk'!G$5","v":0},{"$f":"'Population at Risk'!AF42/'Population at Risk'!AF$5","v":0},{"$f":"'Population at Risk'!H42/'Population at Risk'!H$5","v":0},{"$f":"'Population at Risk'!AG42/'Population at Risk'!AG$5","v":0},{"$f":"'Population at Risk'!AZ42/'Population at Risk'!AZ$5","v":0},{"$f":"'Population at Risk'!I42/'Population at Risk'!I$5","v":0},{"$f":"'Population at Risk'!J42/'Population at Risk'!J$5","v":0},{"$f":"'Population at Risk'!K42/'Population at Risk'!K$5","v":0},{"$f":"'Population at Risk'!AH42/'Population at Risk'!AH$5","v":0},{"$f":"'Population at Risk'!AI42/'Population at Risk'!AI$5","v":0},{"$f":"'Population at Risk'!BA42/'Population at Risk'!BA$5","v":0},{"$f":"'Population at Risk'!L42/'Population at Risk'!L$5","v":0},{"$f":"'Population at Risk'!M42/'Population at Risk'!M$5","v":0},{"$f":"'Population at Risk'!AJ42/'Population at Risk'!AJ$5","v":0},{"$f":"'Population at Risk'!AK42/'Population at Risk'!AK$5","v":0},{"$f":"'Population at Risk'!AL42/'Population at Risk'!AL$5","v":0},{"$f":"'Population at Risk'!AM42/'Population at Risk'!AM$5","v":0},{"$f":"'Population at Risk'!N42/'Population at Risk'!N$5","v":0},{"$f":"'Population at Risk'!AN42/'Population at Risk'!AN$5","v":0},{"$f":"'Population at Risk'!AO42/'Population at Risk'!AO$5","v":0},{"$f":"'Population at Risk'!AP42/'Population at Risk'!AP$5","v":0},{"$f":"'Population at Risk'!C42/'Population at Risk'!C$5","v":0},{"$f":"'Population at Risk'!AQ42/'Population at Risk'!AQ$5","v":0},{"$f":"'Population at Risk'!O42/'Population at Risk'!O$5","v":0},{"$f":"'Population at Risk'!AR42/'Population at Risk'!AR$5","v":0},{"$f":"'Population at Risk'!AS42/'Population at Risk'!AS$5","v":0},{"$f":"'Population at Risk'!AT42/'Population at Risk'!AT$5","v":0},{"$f":"'Population at Risk'!AU42/'Population at Risk'!AU$5","v":0},{"$f":"'Population at Risk'!BB42/'Population at Risk'!BB$5","v":0},{"$f":"'Population at Risk'!P42/'Population at Risk'!P$5","v":0},{"$f":"'Population at Risk'!AV42/'Population at Risk'!AV$5","v":0},{"$f":"'Population at Risk'!AW42/'Population at Risk'!AW$5","v":0},{"$f":"'Population at Risk'!Q42/'Population at Risk'!Q$5","v":0},40]
[null,"Male 10-15",{"$f":"'Population at Risk'!R43/'Population at Risk'!R$5","v":0},{"$f":"'Population at Risk'!AX43/'Population at Risk'!AX$5","v":0},{"$f":"'Population at Risk'!S43/'Population at Risk'!S$5","v":0},{"$f":"'Population at Risk'!T43/'Population at Risk'!T$5","v":0},{"$f":"'Population at Risk'!U43/'Population at Risk'!U$5","v":0},{"$f":"'Population at Risk'!D43/'Population at Risk'!D$5","v":0},{"$f":"'Population at Risk'!E43/'Population at Risk'!E$5","v":0},{"$f":"'Population at Risk'!BC43/'Population at Risk'!BC$5","v":0},{"$f":"'Population at Risk'!V43/'Population at Risk'!V$5","v":0},{"$f":"'Population at Risk'!F43/'Population at Risk'!F$5","v":0},{"$f":"'Population at Risk'!W43/'Population at Risk'!W$5","v":0},{"$f":"'Population at Risk'!X43/'Population at Risk'!X$5","v":0},{"$f":"'Population at Risk'!Y43/'Population at Risk'!Y$5","v":0},{"$f":"'Population at Risk'!Z43/'Population at Risk'!Z$5","v":0},{"$f":"'Population at Risk'!AA43/'Population at Risk'!AA$5","v":0},{"$f":"'Population at Risk'!AB43/'Population at Risk'!AB$5","v":0},{"$f":"'Population at Risk'!AY43/'Population at Risk'!AY$5","v":0},{"$f":"'Population at Risk'!AC43/'Population at Risk'!AC$5","v":0},{"$f":"'Population at Risk'!AD43/'Population at Risk'!AD$5","v":0},{"$f":"'Population at Risk'!AE43/'Population at Risk'!AE$5","v":0},{"$f":"'Population at Risk'!G43/'Population at Risk'!G$5","v":0},{"$f":"'Population at Risk'!AF43/'Population at Risk'!AF$5","v":0},{"$f":"'Population at Risk'!H43/'Population at Risk'!H$5","v":0},{"$f":"'Population at Risk'!AG43/'Population at Risk'!AG$5","v":0},{"$f":"'Population at Risk'!AZ43/'Population at Risk'!AZ$5","v":0},{"$f":"'Population at Risk'!I43/'Population at Risk'!I$5","v":0},{"$f":"'Population at Risk'!J43/'Population at Risk'!J$5","v":0},{"$f":"'Population at Risk'!K43/'Population at Risk'!K$5","v":0},{"$f":"'Population at Risk'!AH43/'Population at Risk'!AH$5","v":0},{"$f":"'Population at Risk'!AI43/'Population at Risk'!AI$5","v":0},{"$f":"'Population at Risk'!BA43/'Population at Risk'!BA$5","v":0},{"$f":"'Population at Risk'!L43/'Population at Risk'!L$5","v":0},{"$f":"'Population at Risk'!M43/'Population at Risk'!M$5","v":0},{"$f":"'Population at Risk'!AJ43/'Population at Risk'!AJ$5","v":0},{"$f":"'Population at Risk'!AK43/'Population at Risk'!AK$5","v":0},{"$f":"'Population at Risk'!AL43/'Population at Risk'!AL$5","v":0},{"$f":"'Population at Risk'!AM43/'Population at Risk'!AM$5","v":0},{"$f":"'Population at Risk'!N43/'Population at Risk'!N$5","v":0},{"$f":"'Population at Risk'!AN43/'Population at Risk'!AN$5","v":0},{"$f":"'Population at Risk'!AO43/'Population at Risk'!AO$5","v":0},{"$f":"'Population at Risk'!AP43/'Population at Risk'!AP$5","v":0},{"$f":"'Population at Risk'!C43/'Population at Risk'!C$5","v":0},{"$f":"'Population at Risk'!AQ43/'Population at Risk'!AQ$5","v":0},{"$f":"'Population at Risk'!O43/'Population at Risk'!O$5","v":0},{"$f":"'Population at Risk'!AR43/'Population at Risk'!AR$5","v":0},{"$f":"'Population at Risk'!AS43/'Population at Risk'!AS$5","v":0},{"$f":"'Population at Risk'!AT43/'Population at Risk'!AT$5","v":0},{"$f":"'Population at Risk'!AU43/'Population at Risk'!AU$5","v":0},{"$f":"'Population at Risk'!BB43/'Population at Risk'!BB$5","v":0},{"$f":"'Population at Risk'!P43/'Population at Risk'!P$5","v":0},{"$f":"'Population at Risk'!AV43/'Population at Risk'!AV$5","v":0},{"$f":"'Population at Risk'!AW43/'Population at Risk'!AW$5","v":0},{"$f":"'Population at Risk'!Q43/'Population at Risk'!Q$5","v":0},41]
[null,"Male 16-19",{"$f":"'Population at Risk'!R44/'Population at Risk'!R$5","v":2.3151197854219943E-2},{"$f":"'Population at Risk'!AX44/'Population at Risk'!AX$5","v":2.5303153649065088E-2},{"$f":"'Population at Risk'!S44/'Population at Risk'!S$5","v":2.1144548653678038E-2},{"$f":"'Population at Risk'!T44/'Population at Risk'!T$5","v":1.9127791655766144E-2},{"$f":"'Population at Risk'!U44/'Population at Risk'!U$5","v":2.0559077350689573E-2},{"$f":"'Population at Risk'!D44/'Population at Risk'!D$5","v":2.295575173544994E-2},{"$f":"'Population at Risk'!E44/'Population at Risk'!E$5","v":2.5084356200251276E-2},{"$f":"'Population at Risk'!BC44/'Population at Risk'!BC$5","v":2.0546425165691155E-2},{"$f":"'Population at Risk'!V44/'Population at Risk'!V$5","v":2.1407871492591806E-2},{"$f":"'Population at Risk'!F44/'Population at Risk'!F$5","v":2.35979741923814E-2},{"$f":"'Population at Risk'!W44/'Population at Risk'!W$5","v":2.0540678455029316E-2},{"$f":"'Population at Risk'!X44/'Population at Risk'!X$5","v":2.0538594620527335E-2},{"$f":"'Population at Risk'!Y44/'Population at Risk'!Y$5","v":2.2566312644809173E-2},{"$f":"'Population at Risk'!Z44/'Population at Risk'!Z$5","v":1.8829015868837291E-2},{"$f":"'Population at Risk'!AA44/'Population at Risk'!AA$5","v":2.1194687722460297E-2},{"$f":"'Population at Risk'!AB44/'Population at Risk'!AB$5","v":2.3263450238659545E-2},{"$f":"'Population at Risk'!AY44/'Population at Risk'!AY$5","v":2.2361531880443711E-2},{"$f":"'Population at Risk'!AC44/'Population at Risk'!AC$5","v":1.9855853978189467E-2},{"$f":"'Population at Risk'!AD44/'Population at Risk'!AD$5","v":2.3813264405382666E-2},{"$f":"'Population at Risk'!AE44/'Population at Risk'!AE$5","v":2.432769620514796E-2},{"$f":"'Population at Risk'!G44/'Population at Risk'!G$5","v":2.3227212832570801E-2},{"$f":"'Population at Risk'!AF44/'Population at Risk'!AF$5","v":2.0858715100413813E-2},{"$f":"'Population at Risk'!H44/'Population at Risk'!H$5","v":1.9664152235415597E-2},{"$f":"'Population at Risk'!AG44/'Population at Risk'!AG$5","v":2.432769620514796E-2},{"$f":"'Population at Risk'!AZ44/'Population at Risk'!AZ$5","v":2.3956501846718124E-2},{"$f":"'Population at Risk'!I44/'Population at Risk'!I$5","v":2.2717333083437683E-2},{"$f":"'Population at Risk'!J44/'Population at Risk'!J$5","v":2.2206560358612036E-2},{"$f":"'Population at Risk'!K44/'Population at Risk'!K$5","v":2.1162008500686391E-2},{"$f":"'Population at Risk'!AH44/'Population at Risk'!AH$5","v":2.354403429002221E-2},{"$f":"'Population at Risk'!AI44/'Population at Risk'!AI$5","v":2.12074081803727E-2},{"$f":"'Population at Risk'!BA44/'Population at Risk'!BA$5","v":1.9399823637477862E-2},{"$f":"'Population at Risk'!L44/'Population at Risk'!L$5","v":1.9139935132751827E-2},{"$f":"'Population at Risk'!M44/'Population at Risk'!M$5","v":1.9133280250231519E-2},{"$f":"'Population at Risk'!AJ44/'Population at Risk'!AJ$5","v":2.3984242020200917E-2},{"$f":"'Population at Risk'!AK44/'Population at Risk'!AK$5","v":2.4696443425266463E-2},{"$f":"'Population at Risk'!AL44/'Population at Risk'!AL$5","v":1.9239772938339887E-2},{"$f":"'Population at Risk'!AM44/'Population at Risk'!AM$5","v":2.4369397366799151E-2},{"$f":"'Population at Risk'!N44/'Population at Risk'!N$5","v":2.0842174622109553E-2},{"$f":"'Population at Risk'!AN44/'Population at Risk'!AN$5","v":2.5132041996590141E-2},{"$f":"'Population at Risk'!AO44/'Population at Risk'!AO$5","v":2.511312745371282E-2},{"$f":"'Population at Risk'!AP44/'Population at Risk'!AP$5","v":2.4785223405078237E-2},{"$f":"'Population at Risk'!C44/'Population at Risk'!C$5","v":2.0532782041604702E-2},{"$f":"'Population at Risk'!AQ44/'Population at Risk'!AQ$5","v":2.189544703406883E-2},{"$f":"'Population at Risk'!O44/'Population at Risk'!O$5","v":2.0314373684044113E-2},{"$f":"'Population at Risk'!AR44/'Population at Risk'!AR$5","v":2.1688453390267023E-2},{"$f":"'Population at Risk'!AS44/'Population at Risk'!AS$5","v":2.2720213692832822E-2},{"$f":"'Population at Risk'!AT44/'Population at Risk'!AT$5","v":2.9209231807599007E-2},{"$f":"'Population at Risk'!AU44/'Population at Risk'!AU$5","v":2.9235059501508232E-2},{"$f":"'Population at Risk'!BB44/'Population at Risk'!BB$5","v":2.3130673860199444E-2},{"$f":"'Population at Risk'!P44/'Population at Risk'!P$5","v":2.0633027939249593E-2},{"$f":"'Population at Risk'!AV44/'Population at Risk'!AV$5","v":1.9427159526553883E-2},{"$f":"'Population at Risk'!AW44/'Population at Risk'!AW$5","v":2.256243657123401E-2},{"$f":"'Population at Risk'!Q44/'Population at Risk'!Q$5","v":2.5663916795845787E-2},42]
[null,"Male 20-24",{"$f":"'Population at Risk'!R45/'Population at Risk'!R$5","v":2.6624915762734382E-2},{"$f":"'Population at Risk'!AX45/'Population at Risk'!AX$5","v":3.9037467864450948E-2},{"$f":"'Population at Risk'!S45/'Population at Risk'!S$5","v":3.2609466778523021E-2},{"$f":"'Population at Risk'!T45/'Population at Risk'!T$5","v":3.9138889714400014E-2},{"$f":"'Population at Risk'!U45/'Population at Risk'!U$5","v":2.4069591328128095E-2},{"$f":"'Population at Risk'!D45/'Population at Risk'!D$5","v":3.7895793394207018E-2},{"$f":"'Population at Risk'!E45/'Population at Risk'!E$5","v":2.9704380829763403E-2},{"$f":"'Population at Risk'!BC45/'Population at Risk'!BC$5","v":2.405477875083558E-2},{"$f":"'Population at Risk'!V45/'Population at Risk'!V$5","v":2.6702396350745949E-2},{"$f":"'Population at Risk'!F45/'Population at Risk'!F$5","v":2.8208505973934778E-2},{"$f":"'Population at Risk'!W45/'Population at Risk'!W$5","v":2.8017937316663664E-2},{"$f":"'Population at Risk'!X45/'Population at Risk'!X$5","v":2.8015094920557679E-2},{"$f":"'Population at Risk'!Y45/'Population at Risk'!Y$5","v":3.0473887979917604E-2},{"$f":"'Population at Risk'!Z45/'Population at Risk'!Z$5","v":3.7723336247754619E-2},{"$f":"'Population at Risk'!AA45/'Population at Risk'!AA$5","v":3.2210632063666894E-2},{"$f":"'Population at Risk'!AB45/'Population at Risk'!AB$5","v":3.6712293589619312E-2},{"$f":"'Population at Risk'!AY45/'Population at Risk'!AY$5","v":3.2033679599789956E-2},{"$f":"'Population at Risk'!AC45/'Population at Risk'!AC$5","v":3.3195947709327885E-2},{"$f":"'Population at Risk'!AD45/'Population at Risk'!AD$5","v":2.7860762420280634E-2},{"$f":"'Population at Risk'!AE45/'Population at Risk'!AE$5","v":2.7507599885413649E-2},{"$f":"'Population at Risk'!G45/'Population at Risk'!G$5","v":2.9569864675796101E-2},{"$f":"'Population at Risk'!AF45/'Population at Risk'!AF$5","v":2.7372918814274554E-2},{"$f":"'Population at Risk'!H45/'Population at Risk'!H$5","v":2.4795653624728235E-2},{"$f":"'Population at Risk'!AG45/'Population at Risk'!AG$5","v":2.7507599885413649E-2},{"$f":"'Population at Risk'!AZ45/'Population at Risk'!AZ$5","v":3.5670554792122972E-2},{"$f":"'Population at Risk'!I45/'Population at Risk'!I$5","v":2.6008299070524439E-2},{"$f":"'Population at Risk'!J45/'Population at Risk'!J$5","v":3.2318781480458955E-2},{"$f":"'Population at Risk'!K45/'Population at Risk'!K$5","v":2.7221592690842601E-2},{"$f":"'Population at Risk'!AH45/'Population at Risk'!AH$5","v":3.0038269386439866E-2},{"$f":"'Population at Risk'!AI45/'Population at Risk'!AI$5","v":3.5759165491498761E-2},{"$f":"'Population at Risk'!BA45/'Population at Risk'!BA$5","v":2.7796904637177364E-2},{"$f":"'Population at Risk'!L45/'Population at Risk'!L$5","v":2.3665685079095184E-2},{"$f":"'Population at Risk'!M45/'Population at Risk'!M$5","v":2.3657456610562157E-2},{"$f":"'Population at Risk'!AJ45/'Population at Risk'!AJ$5","v":3.0878088287497149E-2},{"$f":"'Population at Risk'!AK45/'Population at Risk'!AK$5","v":3.1401408301322903E-2},{"$f":"'Population at Risk'!AL45/'Population at Risk'!AL$5","v":2.463654219108637E-2},{"$f":"'Population at Risk'!AM45/'Population at Risk'!AM$5","v":3.1207679702706815E-2},{"$f":"'Population at Risk'!N45/'Population at Risk'!N$5","v":4.2056615739342537E-2},{"$f":"'Population at Risk'!AN45/'Population at Risk'!AN$5","v":2.8984843144100041E-2},{"$f":"'Population at Risk'!AO45/'Population at Risk'!AO$5","v":2.8963028957313473E-2},{"$f":"'Population at Risk'!AP45/'Population at Risk'!AP$5","v":3.0661670162071858E-2},{"$f":"'Population at Risk'!C45/'Population at Risk'!C$5","v":4.7411774960909148E-2},{"$f":"'Population at Risk'!AQ45/'Population at Risk'!AQ$5","v":2.8935083827700058E-2},{"$f":"'Population at Risk'!O45/'Population at Risk'!O$5","v":2.6550998797684012E-2},{"$f":"'Population at Risk'!AR45/'Population at Risk'!AR$5","v":3.1751909206624893E-2},{"$f":"'Population at Risk'!AS45/'Population at Risk'!AS$5","v":2.6011596981876051E-2},{"$f":"'Population at Risk'!AT45/'Population at Risk'!AT$5","v":3.8119402682732596E-2},{"$f":"'Population at Risk'!AU45/'Population at Risk'!AU$5","v":3.8153109021570167E-2},{"$f":"'Population at Risk'!BB45/'Population at Risk'!BB$5","v":3.0492792041426721E-2},{"$f":"'Population at Risk'!P45/'Population at Risk'!P$5","v":2.6765298660470692E-2},{"$f":"'Population at Risk'!AV45/'Population at Risk'!AV$5","v":2.3012750682652423E-2},{"$f":"'Population at Risk'!AW45/'Population at Risk'!AW$5","v":2.8664097739707576E-2},{"$f":"'Population at Risk'!Q45/'Population at Risk'!Q$5","v":3.3168297443710894E-2},43]
[null,"Male 25-29",{"$f":"'Population at Risk'!R46/'Population at Risk'!R$5","v":1.8985352625760805E-2},{"$f":"'Population at Risk'!AX46/'Population at Risk'!AX$5","v":2.6204955476860938E-2},{"$f":"'Population at Risk'!S46/'Population at Risk'!S$5","v":3.0611284168758749E-2},{"$f":"'Population at Risk'!T46/'Population at Risk'!T$5","v":4.4038966744741198E-2},{"$f":"'Population at Risk'!U46/'Population at Risk'!U$5","v":2.0547940912731117E-2},{"$f":"'Population at Risk'!D46/'Population at Risk'!D$5","v":3.6745702386537689E-2},{"$f":"'Population at Risk'!E46/'Population at Risk'!E$5","v":2.3078431184646371E-2},{"$f":"'Population at Risk'!BC46/'Population at Risk'!BC$5","v":2.0535295581166384E-2},{"$f":"'Population at Risk'!V46/'Population at Risk'!V$5","v":2.2666084230678701E-2},{"$f":"'Population at Risk'!F46/'Population at Risk'!F$5","v":2.190967580732165E-2},{"$f":"'Population at Risk'!W46/'Population at Risk'!W$5","v":2.1854602484450154E-2},{"$f":"'Population at Risk'!X46/'Population at Risk'!X$5","v":2.1852385353463753E-2},{"$f":"'Population at Risk'!Y46/'Population at Risk'!Y$5","v":2.322735065730501E-2},{"$f":"'Population at Risk'!Z46/'Population at Risk'!Z$5","v":3.6769901112629184E-2},{"$f":"'Population at Risk'!AA46/'Population at Risk'!AA$5","v":2.8518210896023015E-2},{"$f":"'Population at Risk'!AB46/'Population at Risk'!AB$5","v":3.4573290033768536E-2},{"$f":"'Population at Risk'!AY46/'Population at Risk'!AY$5","v":2.516331076458856E-2},{"$f":"'Population at Risk'!AC46/'Population at Risk'!AC$5","v":3.0410621483573427E-2},{"$f":"'Population at Risk'!AD46/'Population at Risk'!AD$5","v":2.1753652455323902E-2},{"$f":"'Population at Risk'!AE46/'Population at Risk'!AE$5","v":2.218098846074645E-2},{"$f":"'Population at Risk'!G46/'Population at Risk'!G$5","v":2.1325115407547342E-2},{"$f":"'Population at Risk'!AF46/'Population at Risk'!AF$5","v":2.1075494910784594E-2},{"$f":"'Population at Risk'!H46/'Population at Risk'!H$5","v":1.9723199946824012E-2},{"$f":"'Population at Risk'!AG46/'Population at Risk'!AG$5","v":2.218098846074645E-2},{"$f":"'Population at Risk'!AZ46/'Population at Risk'!AZ$5","v":2.8168350224268442E-2},{"$f":"'Population at Risk'!I46/'Population at Risk'!I$5","v":1.9029906442348848E-2},{"$f":"'Population at Risk'!J46/'Population at Risk'!J$5","v":2.2190610417425431E-2},{"$f":"'Population at Risk'!K46/'Population at Risk'!K$5","v":1.9659131631267111E-2},{"$f":"'Population at Risk'!AH46/'Population at Risk'!AH$5","v":2.465517813251129E-2},{"$f":"'Population at Risk'!AI46/'Population at Risk'!AI$5","v":3.6487281661520515E-2},{"$f":"'Population at Risk'!BA46/'Population at Risk'!BA$5","v":2.4318296474355926E-2},{"$f":"'Population at Risk'!L46/'Population at Risk'!L$5","v":1.8939947786111713E-2},{"$f":"'Population at Risk'!M46/'Population at Risk'!M$5","v":1.8933362438429854E-2},{"$f":"'Population at Risk'!AJ46/'Population at Risk'!AJ$5","v":2.8168298492943649E-2},{"$f":"'Population at Risk'!AK46/'Population at Risk'!AK$5","v":2.4772492910719337E-2},{"$f":"'Population at Risk'!AL46/'Population at Risk'!AL$5","v":1.7745116888246225E-2},{"$f":"'Population at Risk'!AM46/'Population at Risk'!AM$5","v":2.578660806801044E-2},{"$f":"'Population at Risk'!N46/'Population at Risk'!N$5","v":3.5493437330732777E-2},{"$f":"'Population at Risk'!AN46/'Population at Risk'!AN$5","v":2.3739810391483443E-2},{"$f":"'Population at Risk'!AO46/'Population at Risk'!AO$5","v":2.3721943651422685E-2},{"$f":"'Population at Risk'!AP46/'Population at Risk'!AP$5","v":2.2070969463261415E-2},{"$f":"'Population at Risk'!C46/'Population at Risk'!C$5","v":5.2582767819638478E-2},{"$f":"'Population at Risk'!AQ46/'Population at Risk'!AQ$5","v":2.5372653483054099E-2},{"$f":"'Population at Risk'!O46/'Population at Risk'!O$5","v":2.2381510325416618E-2},{"$f":"'Population at Risk'!AR46/'Population at Risk'!AR$5","v":2.7797319332546186E-2},{"$f":"'Population at Risk'!AS46/'Population at Risk'!AS$5","v":1.9032319477676769E-2},{"$f":"'Population at Risk'!AT46/'Population at Risk'!AT$5","v":2.5655837293668451E-2},{"$f":"'Population at Risk'!AU46/'Population at Risk'!AU$5","v":2.5678522967737885E-2},{"$f":"'Population at Risk'!BB46/'Population at Risk'!BB$5","v":2.6555313210995586E-2},{"$f":"'Population at Risk'!P46/'Population at Risk'!P$5","v":2.0607646157843388E-2},{"$f":"'Population at Risk'!AV46/'Population at Risk'!AV$5","v":1.9337958244632608E-2},{"$f":"'Population at Risk'!AW46/'Population at Risk'!AW$5","v":2.3347673323919779E-2},{"$f":"'Population at Risk'!Q46/'Population at Risk'!Q$5","v":2.4798633725773185E-2},44]
[null,"Male 30-34",{"$f":"'Population at Risk'!R47/'Population at Risk'!R$5","v":1.6257860341317449E-2},{"$f":"'Population at Risk'!AX47/'Population at Risk'!AX$5","v":1.9963163874267578E-2},{"$f":"'Population at Risk'!S47/'Population at Risk'!S$5","v":2.8581548922249355E-2},{"$f":"'Population at Risk'!T47/'Population at Risk'!T$5","v":3.8424557235670405E-2},{"$f":"'Population at Risk'!U47/'Population at Risk'!U$5","v":2.0541876515823048E-2},{"$f":"'Population at Risk'!D47/'Population at Risk'!D$5","v":3.265840521494489E-2},{"$f":"'Population at Risk'!E47/'Population at Risk'!E$5","v":2.4618284313426272E-2},{"$f":"'Population at Risk'!BC47/'Population at Risk'!BC$5","v":2.0529234916326161E-2},{"$f":"'Population at Risk'!V47/'Population at Risk'!V$5","v":2.3085120883422367E-2},{"$f":"'Population at Risk'!F47/'Population at Risk'!F$5","v":2.2698953887403808E-2},{"$f":"'Population at Risk'!W47/'Population at Risk'!W$5","v":2.1332943777289993E-2},{"$f":"'Population at Risk'!X47/'Population at Risk'!X$5","v":2.1330779568139384E-2},{"$f":"'Population at Risk'!Y47/'Population at Risk'!Y$5","v":2.1701065553935472E-2},{"$f":"'Population at Risk'!Z47/'Population at Risk'!Z$5","v":3.2592637651007159E-2},{"$f":"'Population at Risk'!AA47/'Population at Risk'!AA$5","v":2.6678931989592185E-2},{"$f":"'Population at Risk'!AB47/'Population at Risk'!AB$5","v":3.1177211719449573E-2},{"$f":"'Population at Risk'!AY47/'Population at Risk'!AY$5","v":2.347418459401205E-2},{"$f":"'Population at Risk'!AC47/'Population at Risk'!AC$5","v":2.737681349226254E-2},{"$f":"'Population at Risk'!AD47/'Population at Risk'!AD$5","v":2.1505802902514637E-2},{"$f":"'Population at Risk'!AE47/'Population at Risk'!AE$5","v":2.3112556481707826E-2},{"$f":"'Population at Risk'!G47/'Population at Risk'!G$5","v":1.8112521973704561E-2},{"$f":"'Population at Risk'!AF47/'Population at Risk'!AF$5","v":2.0189123886324045E-2},{"$f":"'Population at Risk'!H47/'Population at Risk'!H$5","v":1.8222880742058717E-2},{"$f":"'Population at Risk'!AG47/'Population at Risk'!AG$5","v":2.3112556481707826E-2},{"$f":"'Population at Risk'!AZ47/'Population at Risk'!AZ$5","v":2.5369276210696776E-2},{"$f":"'Population at Risk'!I47/'Population at Risk'!I$5","v":1.8537207240993926E-2},{"$f":"'Population at Risk'!J47/'Population at Risk'!J$5","v":1.8717141608715286E-2},{"$f":"'Population at Risk'!K47/'Population at Risk'!K$5","v":2.0042408252034603E-2},{"$f":"'Population at Risk'!AH47/'Population at Risk'!AH$5","v":2.5104446494977943E-2},{"$f":"'Population at Risk'!AI47/'Population at Risk'!AI$5","v":3.3509085306719137E-2},{"$f":"'Population at Risk'!BA47/'Population at Risk'!BA$5","v":2.2783483936299552E-2},{"$f":"'Population at Risk'!L47/'Population at Risk'!L$5","v":1.821852256211454E-2},{"$f":"'Population at Risk'!M47/'Population at Risk'!M$5","v":1.8212188051234354E-2},{"$f":"'Population at Risk'!AJ47/'Population at Risk'!AJ$5","v":2.8448301710407509E-2},{"$f":"'Population at Risk'!AK47/'Population at Risk'!AK$5","v":2.4506937856546233E-2},{"$f":"'Population at Risk'!AL47/'Population at Risk'!AL$5","v":1.6080673246686068E-2},{"$f":"'Population at Risk'!AM47/'Population at Risk'!AM$5","v":2.6481621097341881E-2},{"$f":"'Population at Risk'!N47/'Population at Risk'!N$5","v":2.691009527477577E-2},{"$f":"'Population at Risk'!AN47/'Population at Risk'!AN$5","v":2.0588701408096079E-2},{"$f":"'Population at Risk'!AO47/'Population at Risk'!AO$5","v":2.0573206213729274E-2},{"$f":"'Population at Risk'!AP47/'Population at Risk'!AP$5","v":2.2909622827636606E-2},{"$f":"'Population at Risk'!C47/'Population at Risk'!C$5","v":4.1991737615194244E-2},{"$f":"'Population at Risk'!AQ47/'Population at Risk'!AQ$5","v":2.4564541273041095E-2},{"$f":"'Population at Risk'!O47/'Population at Risk'!O$5","v":2.1271579722322326E-2},{"$f":"'Population at Risk'!AR47/'Population at Risk'!AR$5","v":2.5873461102906968E-2},{"$f":"'Population at Risk'!AS47/'Population at Risk'!AS$5","v":1.8539557800944871E-2},{"$f":"'Population at Risk'!AT47/'Population at Risk'!AT$5","v":2.3849352587057927E-2},{"$f":"'Population at Risk'!AU47/'Population at Risk'!AU$5","v":2.387044091223571E-2},{"$f":"'Population at Risk'!BB47/'Population at Risk'!BB$5","v":2.7755262286381425E-2},{"$f":"'Population at Risk'!P47/'Population at Risk'!P$5","v":1.7794827442362764E-2},{"$f":"'Population at Risk'!AV47/'Population at Risk'!AV$5","v":1.7638091843329349E-2},{"$f":"'Population at Risk'!AW47/'Population at Risk'!AW$5","v":2.3537481341567267E-2},{"$f":"'Population at Risk'!Q47/'Population at Risk'!Q$5","v":2.4274616257431415E-2},45]
[null,"Male 35-39",{"$f":"'Population at Risk'!R48/'Population at Risk'!R$5","v":2.5719862561144394E-2},{"$f":"'Population at Risk'!AX48/'Population at Risk'!AX$5","v":2.4245832797667684E-2},{"$f":"'Population at Risk'!S48/'Population at Risk'!S$5","v":3.2040816676499266E-2},{"$f":"'Population at Risk'!T48/'Population at Risk'!T$5","v":3.9479904674327056E-2},{"$f":"'Population at Risk'!U48/'Population at Risk'!U$5","v":2.453048549314138E-2},{"$f":"'Population at Risk'!D48/'Population at Risk'!D$5","v":3.7238448378491058E-2},{"$f":"'Population at Risk'!E48/'Population at Risk'!E$5","v":3.3879938302269964E-2},{"$f":"'Population at Risk'!BC48/'Population at Risk'!BC$5","v":2.4515389278692342E-2},{"$f":"'Population at Risk'!V48/'Population at Risk'!V$5","v":2.9409779974466865E-2},{"$f":"'Population at Risk'!F48/'Population at Risk'!F$5","v":2.5502983758010831E-2},{"$f":"'Population at Risk'!W48/'Population at Risk'!W$5","v":2.6041915224159551E-2},{"$f":"'Population at Risk'!X48/'Population at Risk'!X$5","v":2.603927329382795E-2},{"$f":"'Population at Risk'!Y48/'Population at Risk'!Y$5","v":2.7226690321728291E-2},{"$f":"'Population at Risk'!Z48/'Population at Risk'!Z$5","v":3.2363813802870317E-2},{"$f":"'Population at Risk'!AA48/'Population at Risk'!AA$5","v":2.9721731911421044E-2},{"$f":"'Population at Risk'!AB48/'Population at Risk'!AB$5","v":3.5480870164101695E-2},{"$f":"'Population at Risk'!AY48/'Population at Risk'!AY$5","v":2.6730539112945605E-2},{"$f":"'Population at Risk'!AC48/'Population at Risk'!AC$5","v":2.9141972839030875E-2},{"$f":"'Population at Risk'!AD48/'Population at Risk'!AD$5","v":2.5861955666114798E-2},{"$f":"'Population at Risk'!AE48/'Population at Risk'!AE$5","v":2.7460608810868817E-2},{"$f":"'Population at Risk'!G48/'Population at Risk'!G$5","v":2.2617750681146395E-2},{"$f":"'Population at Risk'!AF48/'Population at Risk'!AF$5","v":2.3552978457879223E-2},{"$f":"'Population at Risk'!H48/'Population at Risk'!H$5","v":2.1840427298439647E-2},{"$f":"'Population at Risk'!AG48/'Population at Risk'!AG$5","v":2.7460608810868817E-2},{"$f":"'Population at Risk'!AZ48/'Population at Risk'!AZ$5","v":2.7207596773273984E-2},{"$f":"'Population at Risk'!I48/'Population at Risk'!I$5","v":2.2944241736307932E-2},{"$f":"'Population at Risk'!J48/'Population at Risk'!J$5","v":2.301135654356995E-2},{"$f":"'Population at Risk'!K48/'Population at Risk'!K$5","v":2.5121622817949496E-2},{"$f":"'Population at Risk'!AH48/'Population at Risk'!AH$5","v":3.0548562347306206E-2},{"$f":"'Population at Risk'!AI48/'Population at Risk'!AI$5","v":3.6226586593594776E-2},{"$f":"'Population at Risk'!BA48/'Population at Risk'!BA$5","v":2.4812485760873242E-2},{"$f":"'Population at Risk'!L48/'Population at Risk'!L$5","v":1.928800599341602E-2},{"$f":"'Population at Risk'!M48/'Population at Risk'!M$5","v":1.9281299627221631E-2},{"$f":"'Population at Risk'!AJ48/'Population at Risk'!AJ$5","v":3.3602358836064293E-2},{"$f":"'Population at Risk'!AK48/'Population at Risk'!AK$5","v":2.7563540817149471E-2},{"$f":"'Population at Risk'!AL48/'Population at Risk'!AL$5","v":1.9626182483907954E-2},{"$f":"'Population at Risk'!AM48/'Population at Risk'!AM$5","v":3.1586944958474042E-2},{"$f":"'Population at Risk'!N48/'Population at Risk'!N$5","v":2.5138235933638869E-2},{"$f":"'Population at Risk'!AN48/'Population at Risk'!AN$5","v":2.4478523400468067E-2},{"$f":"'Population at Risk'!AO48/'Population at Risk'!AO$5","v":2.4460100700056595E-2},{"$f":"'Population at Risk'!AP48/'Population at Risk'!AP$5","v":2.7615838841627521E-2},{"$f":"'Population at Risk'!C48/'Population at Risk'!C$5","v":4.1173004913455963E-2},{"$f":"'Population at Risk'!AQ48/'Population at Risk'!AQ$5","v":2.7479973780526103E-2},{"$f":"'Population at Risk'!O48/'Population at Risk'!O$5","v":2.4664829102468182E-2},{"$f":"'Population at Risk'!AR48/'Population at Risk'!AR$5","v":2.9283681788238335E-2},{"$f":"'Population at Risk'!AS48/'Population at Risk'!AS$5","v":2.2947151118235261E-2},{"$f":"'Population at Risk'!AT48/'Population at Risk'!AT$5","v":3.2199612494641067E-2},{"$f":"'Population at Risk'!AU48/'Population at Risk'!AU$5","v":3.2228084374387352E-2},{"$f":"'Population at Risk'!BB48/'Population at Risk'!BB$5","v":3.2315221876397876E-2},{"$f":"'Population at Risk'!P48/'Population at Risk'!P$5","v":2.2991108599065235E-2},{"$f":"'Population at Risk'!AV48/'Population at Risk'!AV$5","v":2.1572013200748866E-2},{"$f":"'Population at Risk'!AW48/'Population at Risk'!AW$5","v":2.9308982461701528E-2},{"$f":"'Population at Risk'!Q48/'Population at Risk'!Q$5","v":2.9732423847816464E-2},46]
[null,"Male 40-44",{"$f":"'Population at Risk'!R49/'Population at Risk'!R$5","v":3.0588158311063974E-2},{"$f":"'Population at Risk'!AX49/'Population at Risk'!AX$5","v":2.735251043580338E-2},{"$f":"'Population at Risk'!S49/'Population at Risk'!S$5","v":3.2498070237772979E-2},{"$f":"'Population at Risk'!T49/'Population at Risk'!T$5","v":3.4656403923286547E-2},{"$f":"'Population at Risk'!U49/'Population at Risk'!U$5","v":2.9234913829135852E-2},{"$f":"'Population at Risk'!D49/'Population at Risk'!D$5","v":3.6069204369617615E-2},{"$f":"'Population at Risk'!E49/'Population at Risk'!E$5","v":3.6886005288944514E-2},{"$f":"'Population at Risk'!BC49/'Population at Risk'!BC$5","v":2.9216922480016925E-2},{"$f":"'Population at Risk'!V49/'Population at Risk'!V$5","v":3.1700411275145612E-2},{"$f":"'Population at Risk'!F49/'Population at Risk'!F$5","v":2.8655709785183506E-2},{"$f":"'Population at Risk'!W49/'Population at Risk'!W$5","v":2.8258623463917609E-2},{"$f":"'Population at Risk'!X49/'Population at Risk'!X$5","v":2.8255756650405014E-2},{"$f":"'Population at Risk'!Y49/'Population at Risk'!Y$5","v":2.9909587748358883E-2},{"$f":"'Population at Risk'!Z49/'Population at Risk'!Z$5","v":2.7124967392717872E-2},{"$f":"'Population at Risk'!AA49/'Population at Risk'!AA$5","v":2.9078928040762269E-2},{"$f":"'Population at Risk'!AB49/'Population at Risk'!AB$5","v":3.5091265831111815E-2},{"$f":"'Population at Risk'!AY49/'Population at Risk'!AY$5","v":2.7812504468234175E-2},{"$f":"'Population at Risk'!AC49/'Population at Risk'!AC$5","v":2.7080436985667006E-2},{"$f":"'Population at Risk'!AD49/'Population at Risk'!AD$5","v":2.7440175615471015E-2},{"$f":"'Population at Risk'!AE49/'Population at Risk'!AE$5","v":2.8341652593785752E-2},{"$f":"'Population at Risk'!G49/'Population at Risk'!G$5","v":2.5990807228237787E-2},{"$f":"'Population at Risk'!AF49/'Population at Risk'!AF$5","v":2.4550796791584079E-2},{"$f":"'Population at Risk'!H49/'Population at Risk'!H$5","v":2.5148987639803236E-2},{"$f":"'Population at Risk'!AG49/'Population at Risk'!AG$5","v":2.8341652593785752E-2},{"$f":"'Population at Risk'!AZ49/'Population at Risk'!AZ$5","v":2.7191925053798645E-2},{"$f":"'Population at Risk'!I49/'Population at Risk'!I$5","v":2.8667522089484546E-2},{"$f":"'Population at Risk'!J49/'Population at Risk'!J$5","v":2.5920276456147244E-2},{"$f":"'Population at Risk'!K49/'Population at Risk'!K$5","v":2.8229866573838424E-2},{"$f":"'Population at Risk'!AH49/'Population at Risk'!AH$5","v":3.260954950216189E-2},{"$f":"'Population at Risk'!AI49/'Population at Risk'!AI$5","v":3.5085150845380525E-2},{"$f":"'Population at Risk'!BA49/'Population at Risk'!BA$5","v":2.5040514099045508E-2},{"$f":"'Population at Risk'!L49/'Population at Risk'!L$5","v":2.3097239669734173E-2},{"$f":"'Population at Risk'!M49/'Population at Risk'!M$5","v":2.3089208847504143E-2},{"$f":"'Population at Risk'!AJ49/'Population at Risk'!AJ$5","v":3.4867473058456437E-2},{"$f":"'Population at Risk'!AK49/'Population at Risk'!AK$5","v":3.0710392934897201E-2},{"$f":"'Population at Risk'!AL49/'Population at Risk'!AL$5","v":2.3028645779534628E-2},{"$f":"'Population at Risk'!AM49/'Population at Risk'!AM$5","v":3.3503357278825349E-2},{"$f":"'Population at Risk'!N49/'Population at Risk'!N$5","v":2.3066613097364304E-2},{"$f":"'Population at Risk'!AN49/'Population at Risk'!AN$5","v":2.8521540437060195E-2},{"$f":"'Population at Risk'!AO49/'Population at Risk'!AO$5","v":2.8500074934989284E-2},{"$f":"'Population at Risk'!AP49/'Population at Risk'!AP$5","v":2.7274405277602061E-2},{"$f":"'Population at Risk'!C49/'Population at Risk'!C$5","v":3.5180861934307819E-2},{"$f":"'Population at Risk'!AQ49/'Population at Risk'!AQ$5","v":2.7898020604548667E-2},{"$f":"'Population at Risk'!O49/'Population at Risk'!O$5","v":2.8070519176348438E-2},{"$f":"'Population at Risk'!AR49/'Population at Risk'!AR$5","v":2.9818867601781419E-2},{"$f":"'Population at Risk'!AS49/'Population at Risk'!AS$5","v":2.8671157196350442E-2},{"$f":"'Population at Risk'!AT49/'Population at Risk'!AT$5","v":3.5828251347519241E-2},{"$f":"'Population at Risk'!AU49/'Population at Risk'!AU$5","v":3.5859931780445449E-2},{"$f":"'Population at Risk'!BB49/'Population at Risk'!BB$5","v":3.5569705768992176E-2},{"$f":"'Population at Risk'!P49/'Population at Risk'!P$5","v":2.7298025068685727E-2},{"$f":"'Population at Risk'!AV49/'Population at Risk'!AV$5","v":2.4641116597605057E-2},{"$f":"'Population at Risk'!AW49/'Population at Risk'!AW$5","v":3.1510987781882223E-2},{"$f":"'Population at Risk'!Q49/'Population at Risk'!Q$5","v":3.6633876418801156E-2},47]
[null,"Male 45-49",{"$f":"'Population at Risk'!R50/'Population at Risk'!R$5","v":3.5839082343118528E-2},{"$f":"'Population at Risk'!AX50/'Population at Risk'!AX$5","v":3.7776059750689699E-2},{"$f":"'Population at Risk'!S50/'Population at Risk'!S$5","v":4.0293317932147826E-2},{"$f":"'Population at Risk'!T50/'Population at Risk'!T$5","v":3.734475991406689E-2},{"$f":"'Population at Risk'!U50/'Population at Risk'!U$5","v":3.9989735829430356E-2},{"$f":"'Population at Risk'!D50/'Population at Risk'!D$5","v":4.0860140762275808E-2},{"$f":"'Population at Risk'!E50/'Population at Risk'!E$5","v":4.3302043030203435E-2},{"$f":"'Population at Risk'!BC50/'Population at Risk'!BC$5","v":3.9965125895476523E-2},{"$f":"'Population at Risk'!V50/'Population at Risk'!V$5","v":4.196264430415967E-2},{"$f":"'Population at Risk'!F50/'Population at Risk'!F$5","v":3.7397733538328953E-2},{"$f":"'Population at Risk'!W50/'Population at Risk'!W$5","v":3.9465967317091025E-2},{"$f":"'Population at Risk'!X50/'Population at Risk'!X$5","v":3.9461963527998578E-2},{"$f":"'Population at Risk'!Y50/'Population at Risk'!Y$5","v":4.0952543678997325E-2},{"$f":"'Population at Risk'!Z50/'Population at Risk'!Z$5","v":3.8264216518984179E-2},{"$f":"'Population at Risk'!AA50/'Population at Risk'!AA$5","v":4.121247710354705E-2},{"$f":"'Population at Risk'!AB50/'Population at Risk'!AB$5","v":4.0930649553362911E-2},{"$f":"'Population at Risk'!AY50/'Population at Risk'!AY$5","v":3.9013360874457649E-2},{"$f":"'Population at Risk'!AC50/'Population at Risk'!AC$5","v":3.8590848644447902E-2},{"$f":"'Population at Risk'!AD50/'Population at Risk'!AD$5","v":3.7578843396501242E-2},{"$f":"'Population at Risk'!AE50/'Population at Risk'!AE$5","v":3.869301608636741E-2},{"$f":"'Population at Risk'!G50/'Population at Risk'!G$5","v":3.5895825236702476E-2},{"$f":"'Population at Risk'!AF50/'Population at Risk'!AF$5","v":4.0588952225276004E-2},{"$f":"'Population at Risk'!H50/'Population at Risk'!H$5","v":3.7688804232792208E-2},{"$f":"'Population at Risk'!AG50/'Population at Risk'!AG$5","v":3.869301608636741E-2},{"$f":"'Population at Risk'!AZ50/'Population at Risk'!AZ$5","v":3.830923137974649E-2},{"$f":"'Population at Risk'!I50/'Population at Risk'!I$5","v":4.102692898670085E-2},{"$f":"'Population at Risk'!J50/'Population at Risk'!J$5","v":3.7012992658761228E-2},{"$f":"'Population at Risk'!K50/'Population at Risk'!K$5","v":4.2384243693184574E-2},{"$f":"'Population at Risk'!AH50/'Population at Risk'!AH$5","v":4.5815521696768648E-2},{"$f":"'Population at Risk'!AI50/'Population at Risk'!AI$5","v":4.0576250575890732E-2},{"$f":"'Population at Risk'!BA50/'Population at Risk'!BA$5","v":3.9390552604247189E-2},{"$f":"'Population at Risk'!L50/'Population at Risk'!L$5","v":3.3167853687792105E-2},{"$f":"'Population at Risk'!M50/'Population at Risk'!M$5","v":3.315632135143818E-2},{"$f":"'Population at Risk'!AJ50/'Population at Risk'!AJ$5","v":4.4551571744781998E-2},{"$f":"'Population at Risk'!AK50/'Population at Risk'!AK$5","v":4.131567559251708E-2},{"$f":"'Population at Risk'!AL50/'Population at Risk'!AL$5","v":3.6822522365559343E-2},{"$f":"'Population at Risk'!AM50/'Population at Risk'!AM$5","v":4.727364348033862E-2},{"$f":"'Population at Risk'!N50/'Population at Risk'!N$5","v":3.5417831582276009E-2},{"$f":"'Population at Risk'!AN50/'Population at Risk'!AN$5","v":3.9841399523574725E-2},{"$f":"'Population at Risk'!AO50/'Population at Risk'!AO$5","v":3.9811414619853686E-2},{"$f":"'Population at Risk'!AP50/'Population at Risk'!AP$5","v":3.7676483829822721E-2},{"$f":"'Population at Risk'!C50/'Population at Risk'!C$5","v":3.8102614587084777E-2},{"$f":"'Population at Risk'!AQ50/'Population at Risk'!AQ$5","v":4.2584813174236777E-2},{"$f":"'Population at Risk'!O50/'Population at Risk'!O$5","v":4.1247395978892723E-2},{"$f":"'Population at Risk'!AR50/'Population at Risk'!AR$5","v":3.9966545038952042E-2},{"$f":"'Population at Risk'!AS50/'Population at Risk'!AS$5","v":4.1032131294412709E-2},{"$f":"'Population at Risk'!AT50/'Population at Risk'!AT$5","v":4.1122505093060646E-2},{"$f":"'Population at Risk'!AU50/'Population at Risk'!AU$5","v":4.115886686667114E-2},{"$f":"'Population at Risk'!BB50/'Population at Risk'!BB$5","v":4.5448004247435211E-2},{"$f":"'Population at Risk'!P50/'Population at Risk'!P$5","v":3.4806053009082689E-2},{"$f":"'Population at Risk'!AV50/'Population at Risk'!AV$5","v":3.4830123638277838E-2},{"$f":"'Population at Risk'!AW50/'Population at Risk'!AW$5","v":4.4060282269642218E-2},{"$f":"'Population at Risk'!Q50/'Population at Risk'!Q$5","v":4.4237104905168245E-2},48]
[null,"Male 50-54",{"$f":"'Population at Risk'!R51/'Population at Risk'!R$5","v":3.9835067564957978E-2},{"$f":"'Population at Risk'!AX51/'Population at Risk'!AX$5","v":4.0444149296375347E-2},{"$f":"'Population at Risk'!S51/'Population at Risk'!S$5","v":4.0798893310273164E-2},{"$f":"'Population at Risk'!T51/'Population at Risk'!T$5","v":3.7146586796978881E-2},{"$f":"'Population at Risk'!U51/'Population at Risk'!U$5","v":3.9108854613092756E-2},{"$f":"'Population at Risk'!D51/'Population at Risk'!D$5","v":4.125531544890812E-2},{"$f":"'Population at Risk'!E51/'Population at Risk'!E$5","v":4.4199104560882857E-2},{"$f":"'Population at Risk'!BC51/'Population at Risk'!BC$5","v":3.9084786778957943E-2},{"$f":"'Population at Risk'!V51/'Population at Risk'!V$5","v":4.1425157279394144E-2},{"$f":"'Population at Risk'!F51/'Population at Risk'!F$5","v":4.2257633160464741E-2},{"$f":"'Population at Risk'!W51/'Population at Risk'!W$5","v":3.9179312683735756E-2},{"$f":"'Population at Risk'!X51/'Population at Risk'!X$5","v":3.9175337975514063E-2},{"$f":"'Population at Risk'!Y51/'Population at Risk'!Y$5","v":4.1366396660207104E-2},{"$f":"'Population at Risk'!Z51/'Population at Risk'!Z$5","v":3.8462053347873372E-2},{"$f":"'Population at Risk'!AA51/'Population at Risk'!AA$5","v":4.2773696773263356E-2},{"$f":"'Population at Risk'!AB51/'Population at Risk'!AB$5","v":4.1144425542714143E-2},{"$f":"'Population at Risk'!AY51/'Population at Risk'!AY$5","v":4.0833400196432453E-2},{"$f":"'Population at Risk'!AC51/'Population at Risk'!AC$5","v":4.0787322115342292E-2},{"$f":"'Population at Risk'!AD51/'Population at Risk'!AD$5","v":4.1770334206814148E-2},{"$f":"'Population at Risk'!AE51/'Population at Risk'!AE$5","v":4.2895007436454503E-2},{"$f":"'Population at Risk'!G51/'Population at Risk'!G$5","v":4.0184882347232533E-2},{"$f":"'Population at Risk'!AF51/'Population at Risk'!AF$5","v":4.846774440878647E-2},{"$f":"'Population at Risk'!H51/'Population at Risk'!H$5","v":4.0695260190255302E-2},{"$f":"'Population at Risk'!AG51/'Population at Risk'!AG$5","v":4.2895007436454503E-2},{"$f":"'Population at Risk'!AZ51/'Population at Risk'!AZ$5","v":4.2140647127731849E-2},{"$f":"'Population at Risk'!I51/'Population at Risk'!I$5","v":4.5467341012888678E-2},{"$f":"'Population at Risk'!J51/'Population at Risk'!J$5","v":3.8402425931750632E-2},{"$f":"'Population at Risk'!K51/'Population at Risk'!K$5","v":4.1953936769641258E-2},{"$f":"'Population at Risk'!AH51/'Population at Risk'!AH$5","v":4.6154278437691904E-2},{"$f":"'Population at Risk'!AI51/'Population at Risk'!AI$5","v":4.0909670314158979E-2},{"$f":"'Population at Risk'!BA51/'Population at Risk'!BA$5","v":4.5646202298811119E-2},{"$f":"'Population at Risk'!L51/'Population at Risk'!L$5","v":3.846998240123517E-2},{"$f":"'Population at Risk'!M51/'Population at Risk'!M$5","v":3.8456606534929307E-2},{"$f":"'Population at Risk'!AJ51/'Population at Risk'!AJ$5","v":4.5642832972610313E-2},{"$f":"'Population at Risk'!AK51/'Population at Risk'!AK$5","v":4.0706820515530942E-2},{"$f":"'Population at Risk'!AL51/'Population at Risk'!AL$5","v":4.0139758376444241E-2},{"$f":"'Population at Risk'!AM51/'Population at Risk'!AM$5","v":4.7751859235297296E-2},{"$f":"'Population at Risk'!N51/'Population at Risk'!N$5","v":3.6746905498754555E-2},{"$f":"'Population at Risk'!AN51/'Population at Risk'!AN$5","v":4.5770311063078967E-2},{"$f":"'Population at Risk'!AO51/'Population at Risk'!AO$5","v":4.5735864020883671E-2},{"$f":"'Population at Risk'!AP51/'Population at Risk'!AP$5","v":4.2913786217277358E-2},{"$f":"'Population at Risk'!C51/'Population at Risk'!C$5","v":3.7918873979733425E-2},{"$f":"'Population at Risk'!AQ51/'Population at Risk'!AQ$5","v":4.5420309468701993E-2},{"$f":"'Population at Risk'!O51/'Population at Risk'!O$5","v":4.349231414685685E-2},{"$f":"'Population at Risk'!AR51/'Population at Risk'!AR$5","v":4.1659316946059635E-2},{"$f":"'Population at Risk'!AS51/'Population at Risk'!AS$5","v":4.5473106374923598E-2},{"$f":"'Population at Risk'!AT51/'Population at Risk'!AT$5","v":4.7043070995986674E-2},{"$f":"'Population at Risk'!AU51/'Population at Risk'!AU$5","v":4.7084667914599178E-2},{"$f":"'Population at Risk'!BB51/'Population at Risk'!BB$5","v":4.4822805899832265E-2},{"$f":"'Population at Risk'!P51/'Population at Risk'!P$5","v":3.9169068065632834E-2},{"$f":"'Population at Risk'!AV51/'Population at Risk'!AV$5","v":3.8237553605018862E-2},{"$f":"'Population at Risk'!AW51/'Population at Risk'!AW$5","v":4.4251377440568486E-2},{"$f":"'Population at Risk'!Q51/'Population at Risk'!Q$5","v":4.8411530769339038E-2},49]
[null,"Male 55-59",{"$f":"'Population at Risk'!R52/'Population at Risk'!R$5","v":5.0654885996364932E-2},{"$f":"'Population at Risk'!AX52/'Population at Risk'!AX$5","v":4.9162561577409378E-2},{"$f":"'Population at Risk'!S52/'Population at Risk'!S$5","v":4.9837845436983295E-2},{"$f":"'Population at Risk'!T52/'Population at Risk'!T$5","v":4.4098648531970035E-2},{"$f":"'Population at Risk'!U52/'Population at Risk'!U$5","v":5.101403757596705E-2},{"$f":"'Population at Risk'!D52/'Population at Risk'!D$5","v":5.1384216634468544E-2},{"$f":"'Population at Risk'!E52/'Population at Risk'!E$5","v":5.3867003072347652E-2},{"$f":"'Population at Risk'!BC52/'Population at Risk'!BC$5","v":5.0982643217654278E-2},{"$f":"'Population at Risk'!V52/'Population at Risk'!V$5","v":4.8869118231677298E-2},{"$f":"'Population at Risk'!F52/'Population at Risk'!F$5","v":4.9400414428949088E-2},{"$f":"'Population at Risk'!W52/'Population at Risk'!W$5","v":5.0088142921430517E-2},{"$f":"'Population at Risk'!X52/'Population at Risk'!X$5","v":5.0083061521583441E-2},{"$f":"'Population at Risk'!Y52/'Population at Risk'!Y$5","v":4.9427016233072191E-2},{"$f":"'Population at Risk'!Z52/'Population at Risk'!Z$5","v":4.4056933987190919E-2},{"$f":"'Population at Risk'!AA52/'Population at Risk'!AA$5","v":5.1005782716024295E-2},{"$f":"'Population at Risk'!AB52/'Population at Risk'!AB$5","v":5.0903928622185922E-2},{"$f":"'Population at Risk'!AY52/'Population at Risk'!AY$5","v":5.0744024138440598E-2},{"$f":"'Population at Risk'!AC52/'Population at Risk'!AC$5","v":4.8389041505098505E-2},{"$f":"'Population at Risk'!AD52/'Population at Risk'!AD$5","v":5.3091892983576687E-2},{"$f":"'Population at Risk'!AE52/'Population at Risk'!AE$5","v":5.4483967439679808E-2},{"$f":"'Population at Risk'!G52/'Population at Risk'!G$5","v":5.1170581150422612E-2},{"$f":"'Population at Risk'!AF52/'Population at Risk'!AF$5","v":5.7246202393116903E-2},{"$f":"'Population at Risk'!H52/'Population at Risk'!H$5","v":5.1000114104626064E-2},{"$f":"'Population at Risk'!AG52/'Population at Risk'!AG$5","v":5.4483967439679808E-2},{"$f":"'Population at Risk'!AZ52/'Population at Risk'!AZ$5","v":5.1023864598808262E-2},{"$f":"'Population at Risk'!I52/'Population at Risk'!I$5","v":5.5595547806797797E-2},{"$f":"'Population at Risk'!J52/'Population at Risk'!J$5","v":4.6548770013081886E-2},{"$f":"'Population at Risk'!K52/'Population at Risk'!K$5","v":5.0628963879307508E-2},{"$f":"'Population at Risk'!AH52/'Population at Risk'!AH$5","v":5.5508714831352834E-2},{"$f":"'Population at Risk'!AI52/'Population at Risk'!AI$5","v":4.888383001452383E-2},{"$f":"'Population at Risk'!BA52/'Population at Risk'!BA$5","v":5.420692323980323E-2},{"$f":"'Population at Risk'!L52/'Population at Risk'!L$5","v":4.8402114254714218E-2},{"$f":"'Population at Risk'!M52/'Population at Risk'!M$5","v":4.8385285024005464E-2},{"$f":"'Population at Risk'!AJ52/'Population at Risk'!AJ$5","v":5.7042838049752805E-2},{"$f":"'Population at Risk'!AK52/'Population at Risk'!AK$5","v":4.880596708727937E-2},{"$f":"'Population at Risk'!AL52/'Population at Risk'!AL$5","v":4.985660677484352E-2},{"$f":"'Population at Risk'!AM52/'Population at Risk'!AM$5","v":5.4791161954830622E-2},{"$f":"'Population at Risk'!N52/'Population at Risk'!N$5","v":4.7347456203515E-2},{"$f":"'Population at Risk'!AN52/'Population at Risk'!AN$5","v":5.7693346592660434E-2},{"$f":"'Population at Risk'!AO52/'Population at Risk'!AO$5","v":5.7649926194190182E-2},{"$f":"'Population at Risk'!AP52/'Population at Risk'!AP$5","v":5.0320507019482021E-2},{"$f":"'Population at Risk'!C52/'Population at Risk'!C$5","v":4.8595470732891208E-2},{"$f":"'Population at Risk'!AQ52/'Population at Risk'!AQ$5","v":5.5924620338938275E-2},{"$f":"'Population at Risk'!O52/'Population at Risk'!O$5","v":5.2572641060560442E-2},{"$f":"'Population at Risk'!AR52/'Population at Risk'!AR$5","v":5.0701925984928599E-2},{"$f":"'Population at Risk'!AS52/'Population at Risk'!AS$5","v":5.5602597448441572E-2},{"$f":"'Population at Risk'!AT52/'Population at Risk'!AT$5","v":5.358265733685294E-2},{"$f":"'Population at Risk'!AU52/'Population at Risk'!AU$5","v":5.3630036757224386E-2},{"$f":"'Population at Risk'!BB52/'Population at Risk'!BB$5","v":5.2159968202362537E-2},{"$f":"'Population at Risk'!P52/'Population at Risk'!P$5","v":5.0784579574104385E-2},{"$f":"'Population at Risk'!AV52/'Population at Risk'!AV$5","v":5.0562349367003469E-2},{"$f":"'Population at Risk'!AW52/'Population at Risk'!AW$5","v":5.5982230806914342E-2},{"$f":"'Population at Risk'!Q52/'Population at Risk'!Q$5","v":5.9790732107154375E-2},50]
[null,"Male 60-64",{"$f":"'Population at Risk'!R53/'Population at Risk'!R$5","v":4.3671791792420991E-2},{"$f":"'Population at Risk'!AX53/'Population at Risk'!AX$5","v":4.0883636134916489E-2},{"$f":"'Population at Risk'!S53/'Population at Risk'!S$5","v":4.2280492505661835E-2},{"$f":"'Population at Risk'!T53/'Population at Risk'!T$5","v":3.7228543210664655E-2},{"$f":"'Population at Risk'!U53/'Population at Risk'!U$5","v":4.9572144514752045E-2},{"$f":"'Population at Risk'!D53/'Population at Risk'!D$5","v":4.5613658730630377E-2},{"$f":"'Population at Risk'!E53/'Population at Risk'!E$5","v":4.7992988165811983E-2},{"$f":"'Population at Risk'!BC53/'Population at Risk'!BC$5","v":4.9541637506462191E-2},{"$f":"'Population at Risk'!V53/'Population at Risk'!V$5","v":4.0081853259926303E-2},{"$f":"'Population at Risk'!F53/'Population at Risk'!F$5","v":4.5556550093725563E-2},{"$f":"'Population at Risk'!W53/'Population at Risk'!W$5","v":4.2949146594492719E-2},{"$f":"'Population at Risk'!X53/'Population at Risk'!X$5","v":4.2944789439800853E-2},{"$f":"'Population at Risk'!Y53/'Population at Risk'!Y$5","v":4.1019772143342029E-2},{"$f":"'Population at Risk'!Z53/'Population at Risk'!Z$5","v":3.5982191022618883E-2},{"$f":"'Population at Risk'!AA53/'Population at Risk'!AA$5","v":4.2559345526376489E-2},{"$f":"'Population at Risk'!AB53/'Population at Risk'!AB$5","v":4.5322914156315015E-2},{"$f":"'Population at Risk'!AY53/'Population at Risk'!AY$5","v":4.4222983577190893E-2},{"$f":"'Population at Risk'!AC53/'Population at Risk'!AC$5","v":3.9910082049251644E-2},{"$f":"'Population at Risk'!AD53/'Population at Risk'!AD$5","v":4.9060455395275593E-2},{"$f":"'Population at Risk'!AE53/'Population at Risk'!AE$5","v":4.9708374061757911E-2},{"$f":"'Population at Risk'!G53/'Population at Risk'!G$5","v":4.8885966312765407E-2},{"$f":"'Population at Risk'!AF53/'Population at Risk'!AF$5","v":4.6983621303026919E-2},{"$f":"'Population at Risk'!H53/'Population at Risk'!H$5","v":4.5584217043345018E-2},{"$f":"'Population at Risk'!AG53/'Population at Risk'!AG$5","v":4.9708374061757911E-2},{"$f":"'Population at Risk'!AZ53/'Population at Risk'!AZ$5","v":4.5141519119066463E-2},{"$f":"'Population at Risk'!I53/'Population at Risk'!I$5","v":5.1508849772264886E-2},{"$f":"'Population at Risk'!J53/'Population at Risk'!J$5","v":3.9132608832513599E-2},{"$f":"'Population at Risk'!K53/'Population at Risk'!K$5","v":4.3284504841251521E-2},{"$f":"'Population at Risk'!AH53/'Population at Risk'!AH$5","v":4.7202449979161447E-2},{"$f":"'Population at Risk'!AI53/'Population at Risk'!AI$5","v":4.0635444689860946E-2},{"$f":"'Population at Risk'!BA53/'Population at Risk'!BA$5","v":4.6656799873048771E-2},{"$f":"'Population at Risk'!L53/'Population at Risk'!L$5","v":4.5573506212508462E-2},{"$f":"'Population at Risk'!M53/'Population at Risk'!M$5","v":4.5557660478038657E-2},{"$f":"'Population at Risk'!AJ53/'Population at Risk'!AJ$5","v":5.0684863627361527E-2},{"$f":"'Population at Risk'!AK53/'Population at Risk'!AK$5","v":4.4075992866181773E-2},{"$f":"'Population at Risk'!AL53/'Population at Risk'!AL$5","v":4.441529589639559E-2},{"$f":"'Population at Risk'!AM53/'Population at Risk'!AM$5","v":4.6211802744092541E-2},{"$f":"'Population at Risk'!N53/'Population at Risk'!N$5","v":3.8231095731650976E-2},{"$f":"'Population at Risk'!AN53/'Population at Risk'!AN$5","v":5.0656597888077963E-2},{"$f":"'Population at Risk'!AO53/'Population at Risk'!AO$5","v":5.0618473393741086E-2},{"$f":"'Population at Risk'!AP53/'Population at Risk'!AP$5","v":4.694681126696422E-2},{"$f":"'Population at Risk'!C53/'Population at Risk'!C$5","v":4.2935605308910309E-2},{"$f":"'Population at Risk'!AQ53/'Population at Risk'!AQ$5","v":4.4255250454364015E-2},{"$f":"'Population at Risk'!O53/'Population at Risk'!O$5","v":4.5471889373255969E-2},{"$f":"'Population at Risk'!AR53/'Population at Risk'!AR$5","v":4.3686668760076354E-2},{"$f":"'Population at Risk'!AS53/'Population at Risk'!AS$5","v":5.1515381211322528E-2},{"$f":"'Population at Risk'!AT53/'Population at Risk'!AT$5","v":5.0081701145735368E-2},{"$f":"'Population at Risk'!AU53/'Population at Risk'!AU$5","v":5.0125984913831891E-2},{"$f":"'Population at Risk'!BB53/'Population at Risk'!BB$5","v":4.1066563397055104E-2},{"$f":"'Population at Risk'!P53/'Population at Risk'!P$5","v":4.4203875825720496E-2},{"$f":"'Population at Risk'!AV53/'Population at Risk'!AV$5","v":4.7004891748107402E-2},{"$f":"'Population at Risk'!AW53/'Population at Risk'!AW$5","v":4.8003335066285756E-2},{"$f":"'Population at Risk'!Q53/'Population at Risk'!Q$5","v":4.8360904055593013E-2},51]
[null,"Male 65-69",{"$f":"'Population at Risk'!R54/'Population at Risk'!R$5","v":4.4002961673107265E-2},{"$f":"'Population at Risk'!AX54/'Population at Risk'!AX$5","v":4.7122875298611158E-2},{"$f":"'Population at Risk'!S54/'Population at Risk'!S$5","v":4.7778031571533798E-2},{"$f":"'Population at Risk'!T54/'Population at Risk'!T$5","v":3.8507492514776642E-2},{"$f":"'Population at Risk'!U54/'Population at Risk'!U$5","v":6.2372983770067246E-2},{"$f":"'Population at Risk'!D54/'Population at Risk'!D$5","v":5.0549947716572882E-2},{"$f":"'Population at Risk'!E54/'Population at Risk'!E$5","v":5.6245486097120323E-2},{"$f":"'Population at Risk'!BC54/'Population at Risk'!BC$5","v":6.2334599045106028E-2},{"$f":"'Population at Risk'!V54/'Population at Risk'!V$5","v":4.820124718144931E-2},{"$f":"'Population at Risk'!F54/'Population at Risk'!F$5","v":5.8487512109473332E-2},{"$f":"'Population at Risk'!W54/'Population at Risk'!W$5","v":5.0681288255361827E-2},{"$f":"'Population at Risk'!X54/'Population at Risk'!X$5","v":5.0676146681420974E-2},{"$f":"'Population at Risk'!Y54/'Population at Risk'!Y$5","v":4.8382765502088164E-2},{"$f":"'Population at Risk'!Z54/'Population at Risk'!Z$5","v":3.3937208432921244E-2},{"$f":"'Population at Risk'!AA54/'Population at Risk'!AA$5","v":4.3225731099973692E-2},{"$f":"'Population at Risk'!AB54/'Population at Risk'!AB$5","v":5.0604779996614779E-2},{"$f":"'Population at Risk'!AY54/'Population at Risk'!AY$5","v":5.2057161999266667E-2},{"$f":"'Population at Risk'!AC54/'Population at Risk'!AC$5","v":3.9705077247675226E-2},{"$f":"'Population at Risk'!AD54/'Population at Risk'!AD$5","v":5.8307263541637601E-2},{"$f":"'Population at Risk'!AE54/'Population at Risk'!AE$5","v":5.7759959034480911E-2},{"$f":"'Population at Risk'!G54/'Population at Risk'!G$5","v":6.1403152285158719E-2},{"$f":"'Population at Risk'!AF54/'Population at Risk'!AF$5","v":5.0389135470533246E-2},{"$f":"'Population at Risk'!H54/'Population at Risk'!H$5","v":5.2421388277098059E-2},{"$f":"'Population at Risk'!AG54/'Population at Risk'!AG$5","v":5.7759959034480911E-2},{"$f":"'Population at Risk'!AZ54/'Population at Risk'!AZ$5","v":5.3019648238184988E-2},{"$f":"'Population at Risk'!I54/'Population at Risk'!I$5","v":6.4287232517555165E-2},{"$f":"'Population at Risk'!J54/'Population at Risk'!J$5","v":4.5180319126868582E-2},{"$f":"'Population at Risk'!K54/'Population at Risk'!K$5","v":5.010174779046473E-2},{"$f":"'Population at Risk'!AH54/'Population at Risk'!AH$5","v":4.9519672790257464E-2},{"$f":"'Population at Risk'!AI54/'Population at Risk'!AI$5","v":4.4016936915089414E-2},{"$f":"'Population at Risk'!BA54/'Population at Risk'!BA$5","v":4.5407498164265009E-2},{"$f":"'Population at Risk'!L54/'Population at Risk'!L$5","v":5.6930418979127838E-2},{"$f":"'Population at Risk'!M54/'Population at Risk'!M$5","v":5.6910624489360233E-2},{"$f":"'Population at Risk'!AJ54/'Population at Risk'!AJ$5","v":5.7171569854274115E-2},{"$f":"'Population at Risk'!AK54/'Population at Risk'!AK$5","v":5.0934081067569477E-2},{"$f":"'Population at Risk'!AL54/'Population at Risk'!AL$5","v":5.0624882078238481E-2},{"$f":"'Population at Risk'!AM54/'Population at Risk'!AM$5","v":4.8898673225320079E-2},{"$f":"'Population at Risk'!N54/'Population at Risk'!N$5","v":4.1885415787993319E-2},{"$f":"'Population at Risk'!AN54/'Population at Risk'!AN$5","v":5.9379886169474164E-2},{"$f":"'Population at Risk'!AO54/'Population at Risk'!AO$5","v":5.9335196470039653E-2},{"$f":"'Population at Risk'!AP54/'Population at Risk'!AP$5","v":5.4396984795204148E-2},{"$f":"'Population at Risk'!C54/'Population at Risk'!C$5","v":4.4050253559829222E-2},{"$f":"'Population at Risk'!AQ54/'Population at Risk'!AQ$5","v":4.6926151161427114E-2},{"$f":"'Population at Risk'!O54/'Population at Risk'!O$5","v":5.1524537695480876E-2},{"$f":"'Population at Risk'!AR54/'Population at Risk'!AR$5","v":4.8365678767378899E-2},{"$f":"'Population at Risk'!AS54/'Population at Risk'!AS$5","v":6.4295384284547244E-2},{"$f":"'Population at Risk'!AT54/'Population at Risk'!AT$5","v":5.8940829984758095E-2},{"$f":"'Population at Risk'!AU54/'Population at Risk'!AU$5","v":5.899294726485739E-2},{"$f":"'Population at Risk'!BB54/'Population at Risk'!BB$5","v":4.6771507887903845E-2},{"$f":"'Population at Risk'!P54/'Population at Risk'!P$5","v":4.8882982977846642E-2},{"$f":"'Population at Risk'!AV54/'Population at Risk'!AV$5","v":5.5457933492267658E-2},{"$f":"'Population at Risk'!AW54/'Population at Risk'!AW$5","v":4.9922072483186045E-2},{"$f":"'Population at Risk'!Q54/'Population at Risk'!Q$5","v":5.5202144005189344E-2},52]
[null,"Male 70-74",{"$f":"'Population at Risk'!R55/'Population at Risk'!R$5","v":3.2491173527885636E-2},{"$f":"'Population at Risk'!AX55/'Population at Risk'!AX$5","v":3.3767903833350946E-2},{"$f":"'Population at Risk'!S55/'Population at Risk'!S$5","v":3.483511146573625E-2},{"$f":"'Population at Risk'!T55/'Population at Risk'!T$5","v":2.6424131235419243E-2},{"$f":"'Population at Risk'!U55/'Population at Risk'!U$5","v":4.3867200950688058E-2},{"$f":"'Population at Risk'!D55/'Population at Risk'!D$5","v":3.3551729219886528E-2},{"$f":"'Population at Risk'!E55/'Population at Risk'!E$5","v":3.7832208129711227E-2},{"$f":"'Population at Risk'!BC55/'Population at Risk'!BC$5","v":4.3840204800407394E-2},{"$f":"'Population at Risk'!V55/'Population at Risk'!V$5","v":3.3614581102517326E-2},{"$f":"'Population at Risk'!F55/'Population at Risk'!F$5","v":4.1609848407994032E-2},{"$f":"'Population at Risk'!W55/'Population at Risk'!W$5","v":3.7883270975559977E-2},{"$f":"'Population at Risk'!X55/'Population at Risk'!X$5","v":3.7879427749676287E-2},{"$f":"'Population at Risk'!Y55/'Population at Risk'!Y$5","v":3.4263363835317202E-2},{"$f":"'Population at Risk'!Z55/'Population at Risk'!Z$5","v":2.4030063374146957E-2},{"$f":"'Population at Risk'!AA55/'Population at Risk'!AA$5","v":3.1644967138465915E-2},{"$f":"'Population at Risk'!AB55/'Population at Risk'!AB$5","v":3.4525877798772357E-2},{"$f":"'Population at Risk'!AY55/'Population at Risk'!AY$5","v":3.8329404053609961E-2},{"$f":"'Population at Risk'!AC55/'Population at Risk'!AC$5","v":2.8964334535612483E-2},{"$f":"'Population at Risk'!AD55/'Population at Risk'!AD$5","v":4.4067225684691722E-2},{"$f":"'Population at Risk'!AE55/'Population at Risk'!AE$5","v":4.3190295109097977E-2},{"$f":"'Population at Risk'!G55/'Population at Risk'!G$5","v":4.7568737090271783E-2},{"$f":"'Population at Risk'!AF55/'Population at Risk'!AF$5","v":3.7939425593008121E-2},{"$f":"'Population at Risk'!H55/'Population at Risk'!H$5","v":3.9694593933090119E-2},{"$f":"'Population at Risk'!AG55/'Population at Risk'!AG$5","v":4.3190295109097977E-2},{"$f":"'Population at Risk'!AZ55/'Population at Risk'!AZ$5","v":3.8493431459123699E-2},{"$f":"'Population at Risk'!I55/'Population at Risk'!I$5","v":4.7266097141628931E-2},{"$f":"'Population at Risk'!J55/'Population at Risk'!J$5","v":3.2544846422622647E-2},{"$f":"'Population at Risk'!K55/'Population at Risk'!K$5","v":3.6374887168786445E-2},{"$f":"'Population at Risk'!AH55/'Population at Risk'!AH$5","v":3.644893778939972E-2},{"$f":"'Population at Risk'!AI55/'Population at Risk'!AI$5","v":3.1585166884283443E-2},{"$f":"'Population at Risk'!BA55/'Population at Risk'!BA$5","v":3.4232374776912981E-2},{"$f":"'Population at Risk'!L55/'Population at Risk'!L$5","v":4.3485940109199525E-2},{"$f":"'Population at Risk'!M55/'Population at Risk'!M$5","v":4.3470820213509981E-2},{"$f":"'Population at Risk'!AJ55/'Population at Risk'!AJ$5","v":4.2760407406294131E-2},{"$f":"'Population at Risk'!AK55/'Population at Risk'!AK$5","v":3.9000352010322543E-2},{"$f":"'Population at Risk'!AL55/'Population at Risk'!AL$5","v":3.8221863088403273E-2},{"$f":"'Population at Risk'!AM55/'Population at Risk'!AM$5","v":3.5158970996427466E-2},{"$f":"'Population at Risk'!N55/'Population at Risk'!N$5","v":2.9831913406371063E-2},{"$f":"'Population at Risk'!AN55/'Population at Risk'!AN$5","v":4.7336184371492812E-2},{"$f":"'Population at Risk'!AO55/'Population at Risk'!AO$5","v":4.7300558842573802E-2},{"$f":"'Population at Risk'!AP55/'Population at Risk'!AP$5","v":4.0788023052920085E-2},{"$f":"'Population at Risk'!C55/'Population at Risk'!C$5","v":2.8660143645606043E-2},{"$f":"'Population at Risk'!AQ55/'Population at Risk'!AQ$5","v":3.5446949678165966E-2},{"$f":"'Population at Risk'!O55/'Population at Risk'!O$5","v":3.7705610735248619E-2},{"$f":"'Population at Risk'!AR55/'Population at Risk'!AR$5","v":3.5280693803493787E-2},{"$f":"'Population at Risk'!AS55/'Population at Risk'!AS$5","v":4.7272090590023505E-2},{"$f":"'Population at Risk'!AT55/'Population at Risk'!AT$5","v":4.1261202905471313E-2},{"$f":"'Population at Risk'!AU55/'Population at Risk'!AU$5","v":4.1297687319919077E-2},{"$f":"'Population at Risk'!BB55/'Population at Risk'!BB$5","v":3.4679485175839901E-2},{"$f":"'Population at Risk'!P55/'Population at Risk'!P$5","v":3.6033981559992032E-2},{"$f":"'Population at Risk'!AV55/'Population at Risk'!AV$5","v":4.3539129614144856E-2},{"$f":"'Population at Risk'!AW55/'Population at Risk'!AW$5","v":3.7616876673320268E-2},{"$f":"'Population at Risk'!Q55/'Population at Risk'!Q$5","v":4.2045686231830207E-2},53]
[null,"Male 75-79",{"$f":"'Population at Risk'!R56/'Population at Risk'!R$5","v":4.4042008591817568E-2},{"$f":"'Population at Risk'!AX56/'Population at Risk'!AX$5","v":4.0428007816579445E-2},{"$f":"'Population at Risk'!S56/'Population at Risk'!S$5","v":3.8050514557532472E-2},{"$f":"'Population at Risk'!T56/'Population at Risk'!T$5","v":3.1654673231711276E-2},{"$f":"'Population at Risk'!U56/'Population at Risk'!U$5","v":5.1245477014331381E-2},{"$f":"'Population at Risk'!D56/'Population at Risk'!D$5","v":3.9086798638188376E-2},{"$f":"'Population at Risk'!E56/'Population at Risk'!E$5","v":4.2987262407511106E-2},{"$f":"'Population at Risk'!BC56/'Population at Risk'!BC$5","v":5.1213940226738343E-2},{"$f":"'Population at Risk'!V56/'Population at Risk'!V$5","v":3.6413396991790609E-2},{"$f":"'Population at Risk'!F56/'Population at Risk'!F$5","v":4.7530749896556992E-2},{"$f":"'Population at Risk'!W56/'Population at Risk'!W$5","v":3.9316945129501617E-2},{"$f":"'Population at Risk'!X56/'Population at Risk'!X$5","v":3.9312956458584403E-2},{"$f":"'Population at Risk'!Y56/'Population at Risk'!Y$5","v":3.7621718837590454E-2},{"$f":"'Population at Risk'!Z56/'Population at Risk'!Z$5","v":2.3694810508613048E-2},{"$f":"'Population at Risk'!AA56/'Population at Risk'!AA$5","v":3.3231666459857929E-2},{"$f":"'Population at Risk'!AB56/'Population at Risk'!AB$5","v":4.041040327503246E-2},{"$f":"'Population at Risk'!AY56/'Population at Risk'!AY$5","v":4.2261836943787726E-2},{"$f":"'Population at Risk'!AC56/'Population at Risk'!AC$5","v":3.0852471965554278E-2},{"$f":"'Population at Risk'!AD56/'Population at Risk'!AD$5","v":4.5321842565643609E-2},{"$f":"'Population at Risk'!AE56/'Population at Risk'!AE$5","v":4.3835464896780897E-2},{"$f":"'Population at Risk'!G56/'Population at Risk'!G$5","v":5.0388642415035961E-2},{"$f":"'Population at Risk'!AF56/'Population at Risk'!AF$5","v":3.799477446906821E-2},{"$f":"'Population at Risk'!H56/'Population at Risk'!H$5","v":4.1770218214965633E-2},{"$f":"'Population at Risk'!AG56/'Population at Risk'!AG$5","v":4.3835464896780897E-2},{"$f":"'Population at Risk'!AZ56/'Population at Risk'!AZ$5","v":4.4799323189999636E-2},{"$f":"'Population at Risk'!I56/'Population at Risk'!I$5","v":5.1380990406189465E-2},{"$f":"'Population at Risk'!J56/'Population at Risk'!J$5","v":3.6258479339239029E-2},{"$f":"'Population at Risk'!K56/'Population at Risk'!K$5","v":3.5986552901119691E-2},{"$f":"'Population at Risk'!AH56/'Population at Risk'!AH$5","v":3.7447714567323334E-2},{"$f":"'Population at Risk'!AI56/'Population at Risk'!AI$5","v":3.5536842882709613E-2},{"$f":"'Population at Risk'!BA56/'Population at Risk'!BA$5","v":3.1757324835095205E-2},{"$f":"'Population at Risk'!L56/'Population at Risk'!L$5","v":4.9701267968346237E-2},{"$f":"'Population at Risk'!M56/'Population at Risk'!M$5","v":4.9683987026841174E-2},{"$f":"'Population at Risk'!AJ56/'Population at Risk'!AJ$5","v":4.3185092244294322E-2},{"$f":"'Population at Risk'!AK56/'Population at Risk'!AK$5","v":4.6479658186935342E-2},{"$f":"'Population at Risk'!AL56/'Population at Risk'!AL$5","v":3.8646873986708387E-2},{"$f":"'Population at Risk'!AM56/'Population at Risk'!AM$5","v":3.5975220132982849E-2},{"$f":"'Population at Risk'!N56/'Population at Risk'!N$5","v":3.4303163917283747E-2},{"$f":"'Population at Risk'!AN56/'Population at Risk'!AN$5","v":5.4821985081327226E-2},{"$f":"'Population at Risk'!AO56/'Population at Risk'!AO$5","v":5.478072568873265E-2},{"$f":"'Population at Risk'!AP56/'Population at Risk'!AP$5","v":4.8625130617502059E-2},{"$f":"'Population at Risk'!C56/'Population at Risk'!C$5","v":3.4642415498475278E-2},{"$f":"'Population at Risk'!AQ56/'Population at Risk'!AQ$5","v":3.8795464093054614E-2},{"$f":"'Population at Risk'!O56/'Population at Risk'!O$5","v":4.0036209164899673E-2},{"$f":"'Population at Risk'!AR56/'Population at Risk'!AR$5","v":3.8360912163893104E-2},{"$f":"'Population at Risk'!AS56/'Population at Risk'!AS$5","v":5.1387505632389315E-2},{"$f":"'Population at Risk'!AT56/'Population at Risk'!AT$5","v":4.5314312915794221E-2},{"$f":"'Population at Risk'!AU56/'Population at Risk'!AU$5","v":4.5354381213769501E-2},{"$f":"'Population at Risk'!BB56/'Population at Risk'!BB$5","v":3.6304928155421162E-2},{"$f":"'Population at Risk'!P56/'Population at Risk'!P$5","v":4.8030801792187779E-2},{"$f":"'Population at Risk'!AV56/'Population at Risk'!AV$5","v":4.7456744784129569E-2},{"$f":"'Population at Risk'!AW56/'Population at Risk'!AW$5","v":3.8801706498774215E-2},{"$f":"'Population at Risk'!Q56/'Population at Risk'!Q$5","v":4.7076210189929621E-2},54]
[null,"Male 80-84",{"$f":"'Population at Risk'!R57/'Population at Risk'!R$5","v":3.2009332186908532E-2},{"$f":"'Population at Risk'!AX57/'Population at Risk'!AX$5","v":2.7562421572837469E-2},{"$f":"'Population at Risk'!S57/'Population at Risk'!S$5","v":2.6344208832970041E-2},{"$f":"'Population at Risk'!T57/'Population at Risk'!T$5","v":2.4174488224383877E-2},{"$f":"'Population at Risk'!U57/'Population at Risk'!U$5","v":3.1297029301403434E-2},{"$f":"'Population at Risk'!D57/'Population at Risk'!D$5","v":2.7345230322788135E-2},{"$f":"'Population at Risk'!E57/'Population at Risk'!E$5","v":2.8887617362874572E-2},{"$f":"'Population at Risk'!BC57/'Population at Risk'!BC$5","v":3.1277768913504311E-2},{"$f":"'Population at Risk'!V57/'Population at Risk'!V$5","v":2.5414428249047244E-2},{"$f":"'Population at Risk'!F57/'Population at Risk'!F$5","v":3.2304313328303247E-2},{"$f":"'Population at Risk'!W57/'Population at Risk'!W$5","v":2.6610642999215214E-2},{"$f":"'Population at Risk'!X57/'Population at Risk'!X$5","v":2.6607943371930596E-2},{"$f":"'Population at Risk'!Y57/'Population at Risk'!Y$5","v":2.5433889385642727E-2},{"$f":"'Population at Risk'!Z57/'Population at Risk'!Z$5","v":1.6362236843507127E-2},{"$f":"'Population at Risk'!AA57/'Population at Risk'!AA$5","v":2.2540230593790678E-2},{"$f":"'Population at Risk'!AB57/'Population at Risk'!AB$5","v":2.772255372011043E-2},{"$f":"'Population at Risk'!AY57/'Population at Risk'!AY$5","v":2.9191203782948993E-2},{"$f":"'Population at Risk'!AC57/'Population at Risk'!AC$5","v":2.1353016790696143E-2},{"$f":"'Population at Risk'!AD57/'Population at Risk'!AD$5","v":3.0605301970739577E-2},{"$f":"'Population at Risk'!AE57/'Population at Risk'!AE$5","v":3.0416453394643196E-2},{"$f":"'Population at Risk'!G57/'Population at Risk'!G$5","v":3.1983509150232951E-2},{"$f":"'Population at Risk'!AF57/'Population at Risk'!AF$5","v":2.4929323139265176E-2},{"$f":"'Population at Risk'!H57/'Population at Risk'!H$5","v":2.7388775602332441E-2},{"$f":"'Population at Risk'!AG57/'Population at Risk'!AG$5","v":3.0416453394643196E-2},{"$f":"'Population at Risk'!AZ57/'Population at Risk'!AZ$5","v":3.146889467153282E-2},{"$f":"'Population at Risk'!I57/'Population at Risk'!I$5","v":3.3835827795544303E-2},{"$f":"'Population at Risk'!J57/'Population at Risk'!J$5","v":2.3670211806431939E-2},{"$f":"'Population at Risk'!K57/'Population at Risk'!K$5","v":2.1600279764749208E-2},{"$f":"'Population at Risk'!AH57/'Population at Risk'!AH$5","v":2.4588781975307394E-2},{"$f":"'Population at Risk'!AI57/'Population at Risk'!AI$5","v":2.5145814462405602E-2},{"$f":"'Population at Risk'!BA57/'Population at Risk'!BA$5","v":2.22949995284695E-2},{"$f":"'Population at Risk'!L57/'Population at Risk'!L$5","v":3.3411391287568738E-2},{"$f":"'Population at Risk'!M57/'Population at Risk'!M$5","v":3.339977427411929E-2},{"$f":"'Population at Risk'!AJ57/'Population at Risk'!AJ$5","v":2.8099588364478904E-2},{"$f":"'Population at Risk'!AK57/'Population at Risk'!AK$5","v":2.9478518431799713E-2},{"$f":"'Population at Risk'!AL57/'Population at Risk'!AL$5","v":2.5388935080450203E-2},{"$f":"'Population at Risk'!AM57/'Population at Risk'!AM$5","v":2.2960625002590752E-2},{"$f":"'Population at Risk'!N57/'Population at Risk'!N$5","v":2.4323120692459718E-2},{"$f":"'Population at Risk'!AN57/'Population at Risk'!AN$5","v":3.3112434997824819E-2},{"$f":"'Population at Risk'!AO57/'Population at Risk'!AO$5","v":3.3087514357805839E-2},{"$f":"'Population at Risk'!AP57/'Population at Risk'!AP$5","v":3.4775502430398092E-2},{"$f":"'Population at Risk'!C57/'Population at Risk'!C$5","v":2.5605819080882664E-2},{"$f":"'Population at Risk'!AQ57/'Population at Risk'!AQ$5","v":2.5312343793146262E-2},{"$f":"'Population at Risk'!O57/'Population at Risk'!O$5","v":2.5481701105577074E-2},{"$f":"'Population at Risk'!AR57/'Population at Risk'!AR$5","v":2.6113813594529078E-2},{"$f":"'Population at Risk'!AS57/'Population at Risk'!AS$5","v":3.3840118255303919E-2},{"$f":"'Population at Risk'!AT57/'Population at Risk'!AT$5","v":2.6916684185683538E-2},{"$f":"'Population at Risk'!AU57/'Population at Risk'!AU$5","v":2.6940484739042089E-2},{"$f":"'Population at Risk'!BB57/'Population at Risk'!BB$5","v":2.2197201514090683E-2},{"$f":"'Population at Risk'!P57/'Population at Risk'!P$5","v":3.5690858675555395E-2},{"$f":"'Population at Risk'!AV57/'Population at Risk'!AV$5","v":3.1878918267677192E-2},{"$f":"'Population at Risk'!AW57/'Population at Risk'!AW$5","v":2.6169992342528633E-2},{"$f":"'Population at Risk'!Q57/'Population at Risk'!Q$5","v":3.3170374997838703E-2},55]
[null,"Male 85-89",{"$f":"'Population at Risk'!R58/'Population at Risk'!R$5","v":1.6269562596470784E-2},{"$f":"'Population at Risk'!AX58/'Population at Risk'!AX$5","v":1.291023594954714E-2},{"$f":"'Population at Risk'!S58/'Population at Risk'!S$5","v":1.3576398987449698E-2},{"$f":"'Population at Risk'!T58/'Population at Risk'!T$5","v":1.2936141582816387E-2},{"$f":"'Population at Risk'!U58/'Population at Risk'!U$5","v":1.8502364704758269E-2},{"$f":"'Population at Risk'!D58/'Population at Risk'!D$5","v":1.3923889301378065E-2},{"$f":"'Population at Risk'!E58/'Population at Risk'!E$5","v":1.4503984978020518E-2},{"$f":"'Population at Risk'!BC58/'Population at Risk'!BC$5","v":1.8490978233606879E-2},{"$f":"'Population at Risk'!V58/'Population at Risk'!V$5","v":1.1541949974290954E-2},{"$f":"'Population at Risk'!F58/'Population at Risk'!F$5","v":1.7609863373203E-2},{"$f":"'Population at Risk'!W58/'Population at Risk'!W$5","v":1.3165807826821455E-2},{"$f":"'Population at Risk'!X58/'Population at Risk'!X$5","v":1.3164472166723559E-2},{"$f":"'Population at Risk'!Y58/'Population at Risk'!Y$5","v":1.1890202128956301E-2},{"$f":"'Population at Risk'!Z58/'Population at Risk'!Z$5","v":7.8797886491012228E-3},{"$f":"'Population at Risk'!AA58/'Population at Risk'!AA$5","v":1.0879910504679759E-2},{"$f":"'Population at Risk'!AB58/'Population at Risk'!AB$5","v":1.4288455740056131E-2},{"$f":"'Population at Risk'!AY58/'Population at Risk'!AY$5","v":1.5294956928120662E-2},{"$f":"'Population at Risk'!AC58/'Population at Risk'!AC$5","v":1.0509460357985322E-2},{"$f":"'Population at Risk'!AD58/'Population at Risk'!AD$5","v":1.563132365817713E-2},{"$f":"'Population at Risk'!AE58/'Population at Risk'!AE$5","v":1.573757231916028E-2},{"$f":"'Population at Risk'!G58/'Population at Risk'!G$5","v":1.5826950310946265E-2},{"$f":"'Population at Risk'!AF58/'Population at Risk'!AF$5","v":1.2480283918114269E-2},{"$f":"'Population at Risk'!H58/'Population at Risk'!H$5","v":1.34192105820427E-2},{"$f":"'Population at Risk'!AG58/'Population at Risk'!AG$5","v":1.573757231916028E-2},{"$f":"'Population at Risk'!AZ58/'Population at Risk'!AZ$5","v":1.7234891527939715E-2},{"$f":"'Population at Risk'!I58/'Population at Risk'!I$5","v":1.9365701970060968E-2},{"$f":"'Population at Risk'!J58/'Population at Risk'!J$5","v":1.1423838645266231E-2},{"$f":"'Population at Risk'!K58/'Population at Risk'!K$5","v":1.1058864681513951E-2},{"$f":"'Population at Risk'!AH58/'Population at Risk'!AH$5","v":1.1483454750814553E-2},{"$f":"'Population at Risk'!AI58/'Population at Risk'!AI$5","v":1.2951984316593263E-2},{"$f":"'Population at Risk'!BA58/'Population at Risk'!BA$5","v":9.8177292402832385E-3},{"$f":"'Population at Risk'!L58/'Population at Risk'!L$5","v":1.6271043106394774E-2},{"$f":"'Population at Risk'!M58/'Population at Risk'!M$5","v":1.626538572670122E-2},{"$f":"'Population at Risk'!AJ58/'Population at Risk'!AJ$5","v":1.5007685566942097E-2},{"$f":"'Population at Risk'!AK58/'Population at Risk'!AK$5","v":1.5965164205276244E-2},{"$f":"'Population at Risk'!AL58/'Population at Risk'!AL$5","v":1.1708778246333327E-2},{"$f":"'Population at Risk'!AM58/'Population at Risk'!AM$5","v":1.0227614378536714E-2},{"$f":"'Population at Risk'!N58/'Population at Risk'!N$5","v":1.3505504237523541E-2},{"$f":"'Population at Risk'!AN58/'Population at Risk'!AN$5","v":1.7198583371896108E-2},{"$f":"'Population at Risk'!AO58/'Population at Risk'!AO$5","v":1.7185639603034788E-2},{"$f":"'Population at Risk'!AP58/'Population at Risk'!AP$5","v":1.8915122411286043E-2},{"$f":"'Population at Risk'!C58/'Population at Risk'!C$5","v":1.3275221108968199E-2},{"$f":"'Population at Risk'!AQ58/'Population at Risk'!AQ$5","v":1.324276595694652E-2},{"$f":"'Population at Risk'!O58/'Population at Risk'!O$5","v":1.2347488859569527E-2},{"$f":"'Population at Risk'!AR58/'Population at Risk'!AR$5","v":1.3129378432399558E-2},{"$f":"'Population at Risk'!AS58/'Population at Risk'!AS$5","v":1.9368157585023939E-2},{"$f":"'Population at Risk'!AT58/'Population at Risk'!AT$5","v":1.3888243254128074E-2},{"$f":"'Population at Risk'!AU58/'Population at Risk'!AU$5","v":1.3900523662530025E-2},{"$f":"'Population at Risk'!BB58/'Population at Risk'!BB$5","v":1.0146382794998134E-2},{"$f":"'Population at Risk'!P58/'Population at Risk'!P$5","v":1.7893218220476282E-2},{"$f":"'Population at Risk'!AV58/'Population at Risk'!AV$5","v":1.6706118137146394E-2},{"$f":"'Population at Risk'!AW58/'Population at Risk'!AW$5","v":1.2740494305294304E-2},{"$f":"'Population at Risk'!Q58/'Population at Risk'!Q$5","v":1.663679831725224E-2},56]
[null,"Male 90+",{"$f":"'Population at Risk'!R59/'Population at Risk'!R$5","v":7.5782543523991797E-3},{"$f":"'Population at Risk'!AX59/'Population at Risk'!AX$5","v":4.9214616951005086E-3},{"$f":"'Population at Risk'!S59/'Population at Risk'!S$5","v":5.9007045748391915E-3},{"$f":"'Population at Risk'!T59/'Population at Risk'!T$5","v":6.2535651235082626E-3},{"$f":"'Population at Risk'!U59/'Population at Risk'!U$5","v":6.2429107006907372E-3},{"$f":"'Population at Risk'!D59/'Population at Risk'!D$5","v":6.1584139639941074E-3},{"$f":"'Population at Risk'!E59/'Population at Risk'!E$5","v":6.6292645027205607E-3},{"$f":"'Population at Risk'!BC59/'Population at Risk'!BC$5","v":6.2390687743354616E-3},{"$f":"'Population at Risk'!V59/'Population at Risk'!V$5","v":4.9568182197829245E-3},{"$f":"'Population at Risk'!F59/'Population at Risk'!F$5","v":7.4334651607292964E-3},{"$f":"'Population at Risk'!W59/'Population at Risk'!W$5","v":5.7458901298283356E-3},{"$f":"'Population at Risk'!X59/'Population at Risk'!X$5","v":5.7453072141216621E-3},{"$f":"'Population at Risk'!Y59/'Population at Risk'!Y$5","v":4.8747652704594531E-3},{"$f":"'Population at Risk'!Z59/'Population at Risk'!Z$5","v":3.4702150562214702E-3},{"$f":"'Population at Risk'!AA59/'Population at Risk'!AA$5","v":4.6011611496093721E-3},{"$f":"'Population at Risk'!AB59/'Population at Risk'!AB$5","v":6.2546011216580771E-3},{"$f":"'Population at Risk'!AY59/'Population at Risk'!AY$5","v":6.5238429064760784E-3},{"$f":"'Population at Risk'!AC59/'Population at Risk'!AC$5","v":4.6761644565584881E-3},{"$f":"'Population at Risk'!AD59/'Population at Risk'!AD$5","v":6.4461522831338455E-3},{"$f":"'Population at Risk'!AE59/'Population at Risk'!AE$5","v":6.5775350280313904E-3},{"$f":"'Population at Risk'!G59/'Population at Risk'!G$5","v":6.3072493144851584E-3},{"$f":"'Population at Risk'!AF59/'Population at Risk'!AF$5","v":5.5849895822004366E-3},{"$f":"'Population at Risk'!H59/'Population at Risk'!H$5","v":5.5148593931671963E-3},{"$f":"'Population at Risk'!AG59/'Population at Risk'!AG$5","v":6.5775350280313904E-3},{"$f":"'Population at Risk'!AZ59/'Population at Risk'!AZ$5","v":7.2262036212577914E-3},{"$f":"'Population at Risk'!I59/'Population at Risk'!I$5","v":6.8727263922776886E-3},{"$f":"'Population at Risk'!J59/'Population at Risk'!J$5","v":4.4461448831067171E-3},{"$f":"'Population at Risk'!K59/'Population at Risk'!K$5","v":4.4709598589392644E-3},{"$f":"'Population at Risk'!AH59/'Population at Risk'!AH$5","v":4.4158672584464495E-3},{"$f":"'Population at Risk'!AI59/'Population at Risk'!AI$5","v":5.8362075840290495E-3},{"$f":"'Population at Risk'!BA59/'Population at Risk'!BA$5","v":4.0656435159274057E-3},{"$f":"'Population at Risk'!L59/'Population at Risk'!L$5","v":7.1428527460136891E-3},{"$f":"'Population at Risk'!M59/'Population at Risk'!M$5","v":7.1403692033289888E-3},{"$f":"'Population at Risk'!AJ59/'Population at Risk'!AJ$5","v":5.6780505549505608E-3},{"$f":"'Population at Risk'!AK59/'Population at Risk'!AK$5","v":6.7009381034871746E-3},{"$f":"'Population at Risk'!AL59/'Population at Risk'!AL$5","v":4.7055090672583188E-3},{"$f":"'Population at Risk'!AM59/'Population at Risk'!AM$5","v":3.9757764682705008E-3},{"$f":"'Population at Risk'!N59/'Population at Risk'!N$5","v":5.6106346280107135E-3},{"$f":"'Population at Risk'!AN59/'Population at Risk'!AN$5","v":7.8290567442042772E-3},{"$f":"'Population at Risk'!AO59/'Population at Risk'!AO$5","v":7.8231645437417223E-3},{"$f":"'Population at Risk'!AP59/'Population at Risk'!AP$5","v":7.9462456905638815E-3},{"$f":"'Population at Risk'!C59/'Population at Risk'!C$5","v":5.6240909850347543E-3},{"$f":"'Population at Risk'!AQ59/'Population at Risk'!AQ$5","v":5.9423391500757969E-3},{"$f":"'Population at Risk'!O59/'Population at Risk'!O$5","v":4.7570353487358845E-3},{"$f":"'Population at Risk'!AR59/'Population at Risk'!AR$5","v":5.5744258870002953E-3},{"$f":"'Population at Risk'!AS59/'Population at Risk'!AS$5","v":6.8735978695828419E-3},{"$f":"'Population at Risk'!AT59/'Population at Risk'!AT$5","v":5.2244394104353602E-3},{"$f":"'Population at Risk'!AU59/'Population at Risk'!AU$5","v":5.2290590191545767E-3},{"$f":"'Population at Risk'!BB59/'Population at Risk'!BB$5","v":4.1057779080857304E-3},{"$f":"'Population at Risk'!P59/'Population at Risk'!P$5","v":8.1028669627283504E-3},{"$f":"'Population at Risk'!AV59/'Population at Risk'!AV$5","v":7.3419681700667965E-3},{"$f":"'Population at Risk'!AW59/'Population at Risk'!AW$5","v":4.8544201059896432E-3},{"$f":"'Population at Risk'!Q59/'Population at Risk'!Q$5","v":7.1923830455137413E-3},57]
["SIMD Q1 (most deprived)","Female 0-4",{"$f":"'Population at Risk'!C60/'Population at Risk'!C$5","v":0},{"$f":"'Population at Risk'!D60/'Population at Risk'!D$5","v":0},{"$f":"'Population at Risk'!E60/'Population at Risk'!E$5","v":0},{"$f":"'Population at Risk'!F60/'Population at Risk'!F$5","v":0},{"$f":"'Population at Risk'!G60/'Population at Risk'!G$5","v":0},{"$f":"'Population at Risk'!H60/'Population at Risk'!H$5","v":0},{"$f":"'Population at Risk'!I60/'Population at Risk'!I$5","v":0},{"$f":"'Population at Risk'!J60/'Population at Risk'!J$5","v":0},{"$f":"'Population at Risk'!K60/'Population at Risk'!K$5","v":0},{"$f":"'Population at Risk'!L60/'Population at Risk'!L$5","v":0},{"$f":"'Population at Risk'!M60/'Population at Risk'!M$5","v":0},{"$f":"'Population at Risk'!N60/'Population at Risk'!N$5","v":0},{"$f":"'Population at Risk'!O60/'Population at Risk'!O$5","v":0},{"$f":"'Population at Risk'!P60/'Population at Risk'!P$5","v":0},{"$f":"'Population at Risk'!Q60/'Population at Risk'!Q$5","v":0},{"$f":"'Population at Risk'!R60/'Population at Risk'!R$5","v":0},{"$f":"'Population at Risk'!S60/'Population at Risk'!S$5","v":0},{"$f":"'Population at Risk'!T60/'Population at Risk'!T$5","v":0},{"$f":"'Population at Risk'!U60/'Population at Risk'!U$5","v":0},{"$f":"'Population at Risk'!V60/'Population at Risk'!V$5","v":0},{"$f":"'Population at Risk'!W60/'Population at Risk'!W$5","v":0},{"$f":"'Population at Risk'!X60/'Population at Risk'!X$5","v":0},{"$f":"'Population at Risk'!Y60/'Population at Risk'!Y$5","v":0},{"$f":"'Population at Risk'!Z60/'Population at Risk'!Z$5","v":0},{"$f":"'Population at Risk'!AA60/'Population at Risk'!AA$5","v":0},{"$f":"'Population at Risk'!AB60/'Population at Risk'!AB$5","v":0},{"$f":"'Population at Risk'!AC60/'Population at Risk'!AC$5","v":0},{"$f":"'Population at Risk'!AD60/'Population at Risk'!AD$5","v":0},{"$f":"'Population at Risk'!AE60/'Population at Risk'!AE$5","v":0},{"$f":"'Population at Risk'!AF60/'Population at Risk'!AF$5","v":0},{"$f":"'Population at Risk'!AG60/'Population at Risk'!AG$5","v":0},{"$f":"'Population at Risk'!AH60/'Population at Risk'!AH$5","v":0},{"$f":"'Population at Risk'!AI60/'Population at Risk'!AI$5","v":0},{"$f":"'Population at Risk'!AJ60/'Population at Risk'!AJ$5","v":0},{"$f":"'Population at Risk'!AK60/'Population at Risk'!AK$5","v":0},{"$f":"'Population at Risk'!AL60/'Population at Risk'!AL$5","v":0},{"$f":"'Population at Risk'!AM60/'Population at Risk'!AM$5","v":0},{"$f":"'Population at Risk'!AN60/'Population at Risk'!AN$5","v":0},{"$f":"'Population at Risk'!AO60/'Population at Risk'!AO$5","v":0},{"$f":"'Population at Risk'!AP60/'Population at Risk'!AP$5","v":0},{"$f":"'Population at Risk'!AQ60/'Population at Risk'!AQ$5","v":0},{"$f":"'Population at Risk'!AR60/'Population at Risk'!AR$5","v":0},{"$f":"'Population at Risk'!AS60/'Population at Risk'!AS$5","v":0},{"$f":"'Population at Risk'!AT60/'Population at Risk'!AT$5","v":0},{"$f":"'Population at Risk'!AU60/'Population at Risk'!AU$5","v":0},{"$f":"'Population at Risk'!AV60/'Population at Risk'!AV$5","v":0},{"$f":"'Population at Risk'!AW60/'Population at Risk'!AW$5","v":0},{"$f":"'Population at Risk'!AX60/'Population at Risk'!AX$5","v":0},{"$f":"'Population at Risk'!AY60/'Population at Risk'!AY$5","v":0},{"$f":"'Population at Risk'!AZ60/'Population at Risk'!AZ$5","v":0},{"$f":"'Population at Risk'!BA60/'Population at Risk'!BA$5","v":0},{"$f":"'Population at Risk'!BB60/'Population at Risk'!BB$5","v":0},{"$f":"'Population at Risk'!BC60/'Population at Risk'!BC$5","v":0},58]
[null,"Female 5-9",{"$f":"'Population at Risk'!C61/'Population at Risk'!C$5","v":0},{"$f":"'Population at Risk'!D61/'Population at Risk'!D$5","v":0},{"$f":"'Population at Risk'!E61/'Population at Risk'!E$5","v":0},{"$f":"'Population at Risk'!F61/'Population at Risk'!F$5","v":0},{"$f":"'Population at Risk'!G61/'Population at Risk'!G$5","v":0},{"$f":"'Population at Risk'!H61/'Population at Risk'!H$5","v":0},{"$f":"'Population at Risk'!I61/'Population at Risk'!I$5","v":0},{"$f":"'Population at Risk'!J61/'Population at Risk'!J$5","v":0},{"$f":"'Population at Risk'!K61/'Population at Risk'!K$5","v":0},{"$f":"'Population at Risk'!L61/'Population at Risk'!L$5","v":0},{"$f":"'Population at Risk'!M61/'Population at Risk'!M$5","v":0},{"$f":"'Population at Risk'!N61/'Population at Risk'!N$5","v":0},{"$f":"'Population at Risk'!O61/'Population at Risk'!O$5","v":0},{"$f":"'Population at Risk'!P61/'Population at Risk'!P$5","v":0},{"$f":"'Population at Risk'!Q61/'Population at Risk'!Q$5","v":0},{"$f":"'Population at Risk'!R61/'Population at Risk'!R$5","v":0},{"$f":"'Population at Risk'!S61/'Population at Risk'!S$5","v":0},{"$f":"'Population at Risk'!T61/'Population at Risk'!T$5","v":0},{"$f":"'Population at Risk'!U61/'Population at Risk'!U$5","v":0},{"$f":"'Population at Risk'!V61/'Population at Risk'!V$5","v":0},{"$f":"'Population at Risk'!W61/'Population at Risk'!W$5","v":0},{"$f":"'Population at Risk'!X61/'Population at Risk'!X$5","v":0},{"$f":"'Population at Risk'!Y61/'Population at Risk'!Y$5","v":0},{"$f":"'Population at Risk'!Z61/'Population at Risk'!Z$5","v":0},{"$f":"'Population at Risk'!AA61/'Population at Risk'!AA$5","v":0},{"$f":"'Population at Risk'!AB61/'Population at Risk'!AB$5","v":0},{"$f":"'Population at Risk'!AC61/'Population at Risk'!AC$5","v":0},{"$f":"'Population at Risk'!AD61/'Population at Risk'!AD$5","v":0},{"$f":"'Population at Risk'!AE61/'Population at Risk'!AE$5","v":0},{"$f":"'Population at Risk'!AF61/'Population at Risk'!AF$5","v":0},{"$f":"'Population at Risk'!AG61/'Population at Risk'!AG$5","v":0},{"$f":"'Population at Risk'!AH61/'Population at Risk'!AH$5","v":0},{"$f":"'Population at Risk'!AI61/'Population at Risk'!AI$5","v":0},{"$f":"'Population at Risk'!AJ61/'Population at Risk'!AJ$5","v":0},{"$f":"'Population at Risk'!AK61/'Population at Risk'!AK$5","v":0},{"$f":"'Population at Risk'!AL61/'Population at Risk'!AL$5","v":0},{"$f":"'Population at Risk'!AM61/'Population at Risk'!AM$5","v":0},{"$f":"'Population at Risk'!AN61/'Population at Risk'!AN$5","v":0},{"$f":"'Population at Risk'!AO61/'Population at Risk'!AO$5","v":0},{"$f":"'Population at Risk'!AP61/'Population at Risk'!AP$5","v":0},{"$f":"'Population at Risk'!AQ61/'Population at Risk'!AQ$5","v":0},{"$f":"'Population at Risk'!AR61/'Population at Risk'!AR$5","v":0},{"$f":"'Population at Risk'!AS61/'Population at Risk'!AS$5","v":0},{"$f":"'Population at Risk'!AT61/'Population at Risk'!AT$5","v":0},{"$f":"'Population at Risk'!AU61/'Population at Risk'!AU$5","v":0},{"$f":"'Population at Risk'!AV61/'Population at Risk'!AV$5","v":0},{"$f":"'Population at Risk'!AW61/'Population at Risk'!AW$5","v":0},{"$f":"'Population at Risk'!AX61/'Population at Risk'!AX$5","v":0},{"$f":"'Population at Risk'!AY61/'Population at Risk'!AY$5","v":0},{"$f":"'Population at Risk'!AZ61/'Population at Risk'!AZ$5","v":0},{"$f":"'Population at Risk'!BA61/'Population at Risk'!BA$5","v":0},{"$f":"'Population at Risk'!BB61/'Population at Risk'!BB$5","v":0},{"$f":"'Population at Risk'!BC61/'Population at Risk'!BC$5","v":0},59]
[null,"Female 10-15",{"$f":"'Population at Risk'!C62/'Population at Risk'!C$5","v":0},{"$f":"'Population at Risk'!D62/'Population at Risk'!D$5","v":0},{"$f":"'Population at Risk'!E62/'Population at Risk'!E$5","v":0},{"$f":"'Population at Risk'!F62/'Population at Risk'!F$5","v":0},{"$f":"'Population at Risk'!G62/'Population at Risk'!G$5","v":0},{"$f":"'Population at Risk'!H62/'Population at Risk'!H$5","v":0},{"$f":"'Population at Risk'!I62/'Population at Risk'!I$5","v":0},{"$f":"'Population at Risk'!J62/'Population at Risk'!J$5","v":0},{"$f":"'Population at Risk'!K62/'Population at Risk'!K$5","v":0},{"$f":"'Population at Risk'!L62/'Population at Risk'!L$5","v":0},{"$f":"'Population at Risk'!M62/'Population at Risk'!M$5","v":0},{"$f":"'Population at Risk'!N62/'Population at Risk'!N$5","v":0},{"$f":"'Population at Risk'!O62/'Population at Risk'!O$5","v":0},{"$f":"'Population at Risk'!P62/'Population at Risk'!P$5","v":0},{"$f":"'Population at Risk'!Q62/'Population at Risk'!Q$5","v":0},{"$f":"'Population at Risk'!R62/'Population at Risk'!R$5","v":0},{"$f":"'Population at Risk'!S62/'Population at Risk'!S$5","v":0},{"$f":"'Population at Risk'!T62/'Population at Risk'!T$5","v":0},{"$f":"'Population at Risk'!U62/'Population at Risk'!U$5","v":0},{"$f":"'Population at Risk'!V62/'Population at Risk'!V$5","v":0},{"$f":"'Population at Risk'!W62/'Population at Risk'!W$5","v":0},{"$f":"'Population at Risk'!X62/'Population at Risk'!X$5","v":0},{"$f":"'Population at Risk'!Y62/'Population at Risk'!Y$5","v":0},{"$f":"'Population at Risk'!Z62/'Population at Risk'!Z$5","v":0},{"$f":"'Population at Risk'!AA62/'Population at Risk'!AA$5","v":0},{"$f":"'Population at Risk'!AB62/'Population at Risk'!AB$5","v":0},{"$f":"'Population at Risk'!AC62/'Population at Risk'!AC$5","v":0},{"$f":"'Population at Risk'!AD62/'Population at Risk'!AD$5","v":0},{"$f":"'Population at Risk'!AE62/'Population at Risk'!AE$5","v":0},{"$f":"'Population at Risk'!AF62/'Population at Risk'!AF$5","v":0},{"$f":"'Population at Risk'!AG62/'Population at Risk'!AG$5","v":0},{"$f":"'Population at Risk'!AH62/'Population at Risk'!AH$5","v":0},{"$f":"'Population at Risk'!AI62/'Population at Risk'!AI$5","v":0},{"$f":"'Population at Risk'!AJ62/'Population at Risk'!AJ$5","v":0},{"$f":"'Population at Risk'!AK62/'Population at Risk'!AK$5","v":0},{"$f":"'Population at Risk'!AL62/'Population at Risk'!AL$5","v":0},{"$f":"'Population at Risk'!AM62/'Population at Risk'!AM$5","v":0},{"$f":"'Population at Risk'!AN62/'Population at Risk'!AN$5","v":0},{"$f":"'Population at Risk'!AO62/'Population at Risk'!AO$5","v":0},{"$f":"'Population at Risk'!AP62/'Population at Risk'!AP$5","v":0},{"$f":"'Population at Risk'!AQ62/'Population at Risk'!AQ$5","v":0},{"$f":"'Population at Risk'!AR62/'Population at Risk'!AR$5","v":0},{"$f":"'Population at Risk'!AS62/'Population at Risk'!AS$5","v":0},{"$f":"'Population at Risk'!AT62/'Population at Risk'!AT$5","v":0},{"$f":"'Population at Risk'!AU62/'Population at Risk'!AU$5","v":0},{"$f":"'Population at Risk'!AV62/'Population at Risk'!AV$5","v":0},{"$f":"'Population at Risk'!AW62/'Population at Risk'!AW$5","v":0},{"$f":"'Population at Risk'!AX62/'Population at Risk'!AX$5","v":0},{"$f":"'Population at Risk'!AY62/'Population at Risk'!AY$5","v":0},{"$f":"'Population at Risk'!AZ62/'Population at Risk'!AZ$5","v":0},{"$f":"'Population at Risk'!BA62/'Population at Risk'!BA$5","v":0},{"$f":"'Population at Risk'!BB62/'Population at Risk'!BB$5","v":0},{"$f":"'Population at Risk'!BC62/'Population at Risk'!BC$5","v":0},60]
[null,"Female 16-19",{"$f":"'Population at Risk'!C63/'Population at Risk'!C$5","v":2.226984331859035E-3},{"$f":"'Population at Risk'!D63/'Population at Risk'!D$5","v":1.4075126625987605E-3},{"$f":"'Population at Risk'!E63/'Population at Risk'!E$5","v":6.3656149984973767E-4},{"$f":"'Population at Risk'!F63/'Population at Risk'!F$5","v":2.4602153678954441E-3},{"$f":"'Population at Risk'!G63/'Population at Risk'!G$5","v":2.0426699533698228E-3},{"$f":"'Population at Risk'!H63/'Population at Risk'!H$5","v":8.7842932845647089E-3},{"$f":"'Population at Risk'!I63/'Population at Risk'!I$5","v":1.7778806819516767E-3},{"$f":"'Population at Risk'!J63/'Population at Risk'!J$5","v":6.0727453955166056E-3},{"$f":"'Population at Risk'!K63/'Population at Risk'!K$5","v":7.1162799902818943E-3},{"$f":"'Population at Risk'!L63/'Population at Risk'!L$5","v":2.6902433721266218E-3},{"$f":"'Population at Risk'!M63/'Population at Risk'!M$5","v":2.6911598911889319E-3},{"$f":"'Population at Risk'!N63/'Population at Risk'!N$5","v":1.0796550323568022E-2},{"$f":"'Population at Risk'!O63/'Population at Risk'!O$5","v":8.5540155448168391E-3},{"$f":"'Population at Risk'!P63/'Population at Risk'!P$5","v":1.5621079507460898E-3},{"$f":"'Population at Risk'!Q63/'Population at Risk'!Q$5","v":9.5967831375447081E-4},{"$f":"'Population at Risk'!R63/'Population at Risk'!R$5","v":2.8132591595184963E-3},{"$f":"'Population at Risk'!S63/'Population at Risk'!S$5","v":4.5474359920399032E-3},{"$f":"'Population at Risk'!T63/'Population at Risk'!T$5","v":4.4857974168948395E-3},{"$f":"'Population at Risk'!U63/'Population at Risk'!U$5","v":0},{"$f":"'Population at Risk'!V63/'Population at Risk'!V$5","v":4.1701564665179262E-3},{"$f":"'Population at Risk'!W63/'Population at Risk'!W$5","v":6.6324322821211161E-3},{"$f":"'Population at Risk'!X63/'Population at Risk'!X$5","v":6.6330816881164109E-3},{"$f":"'Population at Risk'!Y63/'Population at Risk'!Y$5","v":4.8959559359676493E-3},{"$f":"'Population at Risk'!Z63/'Population at Risk'!Z$5","v":1.287261981429292E-2},{"$f":"'Population at Risk'!AA63/'Population at Risk'!AA$5","v":8.9386807026325919E-3},{"$f":"'Population at Risk'!AB63/'Population at Risk'!AB$5","v":1.216486302443051E-3},{"$f":"'Population at Risk'!AC63/'Population at Risk'!AC$5","v":9.9693227125376184E-3},{"$f":"'Population at Risk'!AD63/'Population at Risk'!AD$5","v":2.1751308936338999E-3},{"$f":"'Population at Risk'!AE63/'Population at Risk'!AE$5","v":2.1978515803070088E-3},{"$f":"'Population at Risk'!AF63/'Population at Risk'!AF$5","v":9.6024823971063034E-3},{"$f":"'Population at Risk'!AG63/'Population at Risk'!AG$5","v":2.1978515803070088E-3},{"$f":"'Population at Risk'!AH63/'Population at Risk'!AH$5","v":7.255219477190821E-3},{"$f":"'Population at Risk'!AI63/'Population at Risk'!AI$5","v":4.0341100180503473E-3},{"$f":"'Population at Risk'!AJ63/'Population at Risk'!AJ$5","v":2.7295813295322548E-3},{"$f":"'Population at Risk'!AK63/'Population at Risk'!AK$5","v":2.3841266615794621E-4},{"$f":"'Population at Risk'!AL63/'Population at Risk'!AL$5","v":1.1825512107359984E-2},{"$f":"'Population at Risk'!AM63/'Population at Risk'!AM$5","v":8.7735872542549394E-3},{"$f":"'Population at Risk'!AN63/'Population at Risk'!AN$5","v":0},{"$f":"'Population at Risk'!AO63/'Population at Risk'!AO$5","v":0},{"$f":"'Population at Risk'!AP63/'Population at Risk'!AP$5","v":1.6054320111694293E-3},{"$f":"'Population at Risk'!AQ63/'Population at Risk'!AQ$5","v":7.2887666913268928E-3},{"$f":"'Population at Risk'!AR63/'Population at Risk'!AR$5","v":5.8631760047906968E-3},{"$f":"'Population at Risk'!AS63/'Population at Risk'!AS$5","v":1.7776000713056455E-3},{"$f":"'Population at Risk'!AT63/'Population at Risk'!AT$5","v":0},{"$f":"'Population at Risk'!AU63/'Population at Risk'!AU$5","v":0},{"$f":"'Population at Risk'!AV63/'Population at Risk'!AV$5","v":5.2889748473464275E-3},{"$f":"'Population at Risk'!AW63/'Population at Risk'!AW$5","v":5.6023377397685474E-3},{"$f":"'Population at Risk'!AX63/'Population at Risk'!AX$5","v":4.896101322138708E-3},{"$f":"'Population at Risk'!AY63/'Population at Risk'!AY$5","v":5.7134487230775903E-3},{"$f":"'Population at Risk'!AZ63/'Population at Risk'!AZ$5","v":4.9593649417487744E-3},{"$f":"'Population at Risk'!BA63/'Population at Risk'!BA$5","v":1.0521163017609303E-2},{"$f":"'Population at Risk'!BB63/'Population at Risk'!BB$5","v":5.5484417891100059E-3},{"$f":"'Population at Risk'!BC63/'Population at Risk'!BC$5","v":0},61]
[null,"Female 20-24",{"$f":"'Population at Risk'!C64/'Population at Risk'!C$5","v":4.7452363692473175E-3},{"$f":"'Population at Risk'!D64/'Population at Risk'!D$5","v":2.8855478803172922E-3},{"$f":"'Population at Risk'!E64/'Population at Risk'!E$5","v":1.1367169640173888E-3},{"$f":"'Population at Risk'!F64/'Population at Risk'!F$5","v":3.5462563861555947E-3},{"$f":"'Population at Risk'!G64/'Population at Risk'!G$5","v":2.910105139047419E-3},{"$f":"'Population at Risk'!H64/'Population at Risk'!H$5","v":1.3150508433756095E-2},{"$f":"'Population at Risk'!I64/'Population at Risk'!I$5","v":2.2828408756420939E-3},{"$f":"'Population at Risk'!J64/'Population at Risk'!J$5","v":9.7838675816656426E-3},{"$f":"'Population at Risk'!K64/'Population at Risk'!K$5","v":1.1479546553666415E-2},{"$f":"'Population at Risk'!L64/'Population at Risk'!L$5","v":4.2873084851033786E-3},{"$f":"'Population at Risk'!M64/'Population at Risk'!M$5","v":4.2887690964344251E-3},{"$f":"'Population at Risk'!N64/'Population at Risk'!N$5","v":1.8385864887791772E-2},{"$f":"'Population at Risk'!O64/'Population at Risk'!O$5","v":1.3401291020213047E-2},{"$f":"'Population at Risk'!P64/'Population at Risk'!P$5","v":2.4468416573633447E-3},{"$f":"'Population at Risk'!Q64/'Population at Risk'!Q$5","v":1.3874867186811626E-3},{"$f":"'Population at Risk'!R64/'Population at Risk'!R$5","v":3.8577026798187765E-3},{"$f":"'Population at Risk'!S64/'Population at Risk'!S$5","v":6.3153790601361446E-3},{"$f":"'Population at Risk'!T64/'Population at Risk'!T$5","v":7.0866054937115276E-3},{"$f":"'Population at Risk'!U64/'Population at Risk'!U$5","v":0},{"$f":"'Population at Risk'!V64/'Population at Risk'!V$5","v":6.827091599193905E-3},{"$f":"'Population at Risk'!W64/'Population at Risk'!W$5","v":8.1518358503052321E-3},{"$f":"'Population at Risk'!X64/'Population at Risk'!X$5","v":8.1526340267280978E-3},{"$f":"'Population at Risk'!Y64/'Population at Risk'!Y$5","v":7.9444678249362705E-3},{"$f":"'Population at Risk'!Z64/'Population at Risk'!Z$5","v":2.1917030712223597E-2},{"$f":"'Population at Risk'!AA64/'Population at Risk'!AA$5","v":1.4246718962768218E-2},{"$f":"'Population at Risk'!AB64/'Population at Risk'!AB$5","v":2.4993264032011778E-3},{"$f":"'Population at Risk'!AC64/'Population at Risk'!AC$5","v":1.6885131441952431E-2},{"$f":"'Population at Risk'!AD64/'Population at Risk'!AD$5","v":3.2131715022533564E-3},{"$f":"'Population at Risk'!AE64/'Population at Risk'!AE$5","v":3.2885967814519261E-3},{"$f":"'Population at Risk'!AF64/'Population at Risk'!AF$5","v":1.5813390342909073E-2},{"$f":"'Population at Risk'!AG64/'Population at Risk'!AG$5","v":3.2885967814519261E-3},{"$f":"'Population at Risk'!AH64/'Population at Risk'!AH$5","v":9.9600321465791869E-3},{"$f":"'Population at Risk'!AI64/'Population at Risk'!AI$5","v":6.100165566920418E-3},{"$f":"'Population at Risk'!AJ64/'Population at Risk'!AJ$5","v":4.3407000655000735E-3},{"$f":"'Population at Risk'!AK64/'Population at Risk'!AK$5","v":5.2152770722050735E-4},{"$f":"'Population at Risk'!AL64/'Population at Risk'!AL$5","v":1.7033639201275003E-2},{"$f":"'Population at Risk'!AM64/'Population at Risk'!AM$5","v":1.1831730113654555E-2},{"$f":"'Population at Risk'!AN64/'Population at Risk'!AN$5","v":0},{"$f":"'Population at Risk'!AO64/'Population at Risk'!AO$5","v":0},{"$f":"'Population at Risk'!AP64/'Population at Risk'!AP$5","v":2.8599499215367975E-3},{"$f":"'Population at Risk'!AQ64/'Population at Risk'!AQ$5","v":1.3413839274191462E-2},{"$f":"'Population at Risk'!AR64/'Population at Risk'!AR$5","v":9.1374423827456381E-3},{"$f":"'Population at Risk'!AS64/'Population at Risk'!AS$5","v":2.2824805649309175E-3},{"$f":"'Population at Risk'!AT64/'Population at Risk'!AT$5","v":0},{"$f":"'Population at Risk'!AU64/'Population at Risk'!AU$5","v":0},{"$f":"'Population at Risk'!AV64/'Population at Risk'!AV$5","v":8.090292813527869E-3},{"$f":"'Population at Risk'!AW64/'Population at Risk'!AW$5","v":7.9279817224628454E-3},{"$f":"'Population at Risk'!AX64/'Population at Risk'!AX$5","v":7.879663065316983E-3},{"$f":"'Population at Risk'!AY64/'Population at Risk'!AY$5","v":8.2405824983867448E-3},{"$f":"'Population at Risk'!AZ64/'Population at Risk'!AZ$5","v":8.3152813626677178E-3},{"$f":"'Population at Risk'!BA64/'Population at Risk'!BA$5","v":1.6428698028738999E-2},{"$f":"'Population at Risk'!BB64/'Population at Risk'!BB$5","v":7.5239648739669762E-3},{"$f":"'Population at Risk'!BC64/'Population at Risk'!BC$5","v":0},62]
[null,"Female 25-29",{"$f":"'Population at Risk'!C65/'Population at Risk'!C$5","v":5.4504664624487349E-3},{"$f":"'Population at Risk'!D65/'Population at Risk'!D$5","v":3.2486455433724001E-3},{"$f":"'Population at Risk'!E65/'Population at Risk'!E$5","v":1.178482700952876E-3},{"$f":"'Population at Risk'!F65/'Population at Risk'!F$5","v":2.8867903844214042E-3},{"$f":"'Population at Risk'!G65/'Population at Risk'!G$5","v":2.0965136819040627E-3},{"$f":"'Population at Risk'!H65/'Population at Risk'!H$5","v":1.147382622091702E-2},{"$f":"'Population at Risk'!I65/'Population at Risk'!I$5","v":1.8696916262590248E-3},{"$f":"'Population at Risk'!J65/'Population at Risk'!J$5","v":9.0315126080398843E-3},{"$f":"'Population at Risk'!K65/'Population at Risk'!K$5","v":9.6843425437313328E-3},{"$f":"'Population at Risk'!L65/'Population at Risk'!L$5","v":3.7500362156916542E-3},{"$f":"'Population at Risk'!M65/'Population at Risk'!M$5","v":3.7513137877179053E-3},{"$f":"'Population at Risk'!N65/'Population at Risk'!N$5","v":2.0866717098577698E-2},{"$f":"'Population at Risk'!O65/'Population at Risk'!O$5","v":1.2009438577941648E-2},{"$f":"'Population at Risk'!P65/'Population at Risk'!P$5","v":2.3123721877496418E-3},{"$f":"'Population at Risk'!Q65/'Population at Risk'!Q$5","v":1.3800412407084415E-3},{"$f":"'Population at Risk'!R65/'Population at Risk'!R$5","v":3.2287904525411877E-3},{"$f":"'Population at Risk'!S65/'Population at Risk'!S$5","v":7.0686473751747645E-3},{"$f":"'Population at Risk'!T65/'Population at Risk'!T$5","v":9.297283320890349E-3},{"$f":"'Population at Risk'!U65/'Population at Risk'!U$5","v":0},{"$f":"'Population at Risk'!V65/'Population at Risk'!V$5","v":6.8369557974589067E-3},{"$f":"'Population at Risk'!W65/'Population at Risk'!W$5","v":8.7131921190597376E-3},{"$f":"'Population at Risk'!X65/'Population at Risk'!X$5","v":8.7140452599527886E-3},{"$f":"'Population at Risk'!Y65/'Population at Risk'!Y$5","v":7.6122501816248784E-3},{"$f":"'Population at Risk'!Z65/'Population at Risk'!Z$5","v":2.6381476025812131E-2},{"$f":"'Population at Risk'!AA65/'Population at Risk'!AA$5","v":1.5207811418799155E-2},{"$f":"'Population at Risk'!AB65/'Population at Risk'!AB$5","v":2.7662310195437482E-3},{"$f":"'Population at Risk'!AC65/'Population at Risk'!AC$5","v":1.8873388424162505E-2},{"$f":"'Population at Risk'!AD65/'Population at Risk'!AD$5","v":2.6474777898241723E-3},{"$f":"'Population at Risk'!AE65/'Population at Risk'!AE$5","v":2.8270545601644303E-3},{"$f":"'Population at Risk'!AF65/'Population at Risk'!AF$5","v":1.3898413260743019E-2},{"$f":"'Population at Risk'!AG65/'Population at Risk'!AG$5","v":2.8270545601644303E-3},{"$f":"'Population at Risk'!AH65/'Population at Risk'!AH$5","v":9.2644389012299343E-3},{"$f":"'Population at Risk'!AI65/'Population at Risk'!AI$5","v":7.1145108205750447E-3},{"$f":"'Population at Risk'!AJ65/'Population at Risk'!AJ$5","v":3.9092728908360136E-3},{"$f":"'Population at Risk'!AK65/'Population at Risk'!AK$5","v":2.9858025662299602E-4},{"$f":"'Population at Risk'!AL65/'Population at Risk'!AL$5","v":1.4870416358676379E-2},{"$f":"'Population at Risk'!AM65/'Population at Risk'!AM$5","v":1.119604373242873E-2},{"$f":"'Population at Risk'!AN65/'Population at Risk'!AN$5","v":0},{"$f":"'Population at Risk'!AO65/'Population at Risk'!AO$5","v":0},{"$f":"'Population at Risk'!AP65/'Population at Risk'!AP$5","v":3.0648491966831525E-3},{"$f":"'Population at Risk'!AQ65/'Population at Risk'!AQ$5","v":1.3264708632910112E-2},{"$f":"'Population at Risk'!AR65/'Population at Risk'!AR$5","v":9.5485913022266382E-3},{"$f":"'Population at Risk'!AS65/'Population at Risk'!AS$5","v":1.8693965246920584E-3},{"$f":"'Population at Risk'!AT65/'Population at Risk'!AT$5","v":0},{"$f":"'Population at Risk'!AU65/'Population at Risk'!AU$5","v":0},{"$f":"'Population at Risk'!AV65/'Population at Risk'!AV$5","v":6.699712282228429E-3},{"$f":"'Population at Risk'!AW65/'Population at Risk'!AW$5","v":7.1618971860703557E-3},{"$f":"'Population at Risk'!AX65/'Population at Risk'!AX$5","v":7.8112752864329419E-3},{"$f":"'Population at Risk'!AY65/'Population at Risk'!AY$5","v":8.9078553564166663E-3},{"$f":"'Population at Risk'!AZ65/'Population at Risk'!AZ$5","v":9.0697484169023797E-3},{"$f":"'Population at Risk'!BA65/'Population at Risk'!BA$5","v":1.4870821321426135E-2},{"$f":"'Population at Risk'!BB65/'Population at Risk'!BB$5","v":6.931459947800268E-3},{"$f":"'Population at Risk'!BC65/'Population at Risk'!BC$5","v":0},63]
[null,"Female 30-34",{"$f":"'Population at Risk'!C66/'Population at Risk'!C$5","v":4.7896436614728944E-3},{"$f":"'Population at Risk'!D66/'Population at Risk'!D$5","v":2.9209649842300302E-3},{"$f":"'Population at Risk'!E66/'Population at Risk'!E$5","v":1.1636278769912851E-3},{"$f":"'Population at Risk'!F66/'Population at Risk'!F$5","v":3.2053993566150711E-3},{"$f":"'Population at Risk'!G66/'Population at Risk'!G$5","v":2.4499956398995148E-3},{"$f":"'Population at Risk'!H66/'Population at Risk'!H$5","v":1.0183267869216533E-2},{"$f":"'Population at Risk'!I66/'Population at Risk'!I$5","v":1.8971870913510693E-3},{"$f":"'Population at Risk'!J66/'Population at Risk'!J$5","v":7.9003468277429757E-3},{"$f":"'Population at Risk'!K66/'Population at Risk'!K$5","v":9.2544301410890546E-3},{"$f":"'Population at Risk'!L66/'Population at Risk'!L$5","v":3.1994356602131177E-3},{"$f":"'Population at Risk'!M66/'Population at Risk'!M$5","v":3.2005256522196416E-3},{"$f":"'Population at Risk'!N66/'Population at Risk'!N$5","v":1.6727740631477073E-2},{"$f":"'Population at Risk'!O66/'Population at Risk'!O$5","v":1.0673152972978097E-2},{"$f":"'Population at Risk'!P66/'Population at Risk'!P$5","v":1.9871948488473486E-3},{"$f":"'Population at Risk'!Q66/'Population at Risk'!Q$5","v":1.2490884222470567E-3},{"$f":"'Population at Risk'!R66/'Population at Risk'!R$5","v":3.1407325311082462E-3},{"$f":"'Population at Risk'!S66/'Population at Risk'!S$5","v":6.7549734021558217E-3},{"$f":"'Population at Risk'!T66/'Population at Risk'!T$5","v":9.1543681217151202E-3},{"$f":"'Population at Risk'!U66/'Population at Risk'!U$5","v":0},{"$f":"'Population at Risk'!V66/'Population at Risk'!V$5","v":6.6989903217254303E-3},{"$f":"'Population at Risk'!W66/'Population at Risk'!W$5","v":7.6864381528906241E-3},{"$f":"'Population at Risk'!X66/'Population at Risk'!X$5","v":7.6871907605022237E-3},{"$f":"'Population at Risk'!Y66/'Population at Risk'!Y$5","v":7.0331440555306459E-3},{"$f":"'Population at Risk'!Z66/'Population at Risk'!Z$5","v":2.2338266549435808E-2},{"$f":"'Population at Risk'!AA66/'Population at Risk'!AA$5","v":1.3833227721780916E-2},{"$f":"'Population at Risk'!AB66/'Population at Risk'!AB$5","v":2.5135876292139013E-3},{"$f":"'Population at Risk'!AC66/'Population at Risk'!AC$5","v":1.6400832044303464E-2},{"$f":"'Population at Risk'!AD66/'Population at Risk'!AD$5","v":2.9546818619158948E-3},{"$f":"'Population at Risk'!AE66/'Population at Risk'!AE$5","v":3.1121356922818519E-3},{"$f":"'Population at Risk'!AF66/'Population at Risk'!AF$5","v":1.3594423469388186E-2},{"$f":"'Population at Risk'!AG66/'Population at Risk'!AG$5","v":3.1121356922818519E-3},{"$f":"'Population at Risk'!AH66/'Population at Risk'!AH$5","v":9.6616671493011189E-3},{"$f":"'Population at Risk'!AI66/'Population at Risk'!AI$5","v":7.0655224517534579E-3},{"$f":"'Population at Risk'!AJ66/'Population at Risk'!AJ$5","v":3.433664022811454E-3},{"$f":"'Population at Risk'!AK66/'Population at Risk'!AK$5","v":4.2839775950255954E-4},{"$f":"'Population at Risk'!AL66/'Population at Risk'!AL$5","v":1.2910571741148263E-2},{"$f":"'Population at Risk'!AM66/'Population at Risk'!AM$5","v":1.131947416884432E-2},{"$f":"'Population at Risk'!AN66/'Population at Risk'!AN$5","v":0},{"$f":"'Population at Risk'!AO66/'Population at Risk'!AO$5","v":0},{"$f":"'Population at Risk'!AP66/'Population at Risk'!AP$5","v":2.7514855631070693E-3},{"$f":"'Population at Risk'!AQ66/'Population at Risk'!AQ$5","v":1.1315980270821258E-2},{"$f":"'Population at Risk'!AR66/'Population at Risk'!AR$5","v":8.7257396641588908E-3},{"$f":"'Population at Risk'!AS66/'Population at Risk'!AS$5","v":1.8968876500551769E-3},{"$f":"'Population at Risk'!AT66/'Population at Risk'!AT$5","v":0},{"$f":"'Population at Risk'!AU66/'Population at Risk'!AU$5","v":0},{"$f":"'Population at Risk'!AV66/'Population at Risk'!AV$5","v":6.2851028020342644E-3},{"$f":"'Population at Risk'!AW66/'Population at Risk'!AW$5","v":7.8663460896182587E-3},{"$f":"'Population at Risk'!AX66/'Population at Risk'!AX$5","v":6.3716545851790892E-3},{"$f":"'Population at Risk'!AY66/'Population at Risk'!AY$5","v":7.6438547643287481E-3},{"$f":"'Population at Risk'!AZ66/'Population at Risk'!AZ$5","v":7.6104874348528126E-3},{"$f":"'Population at Risk'!BA66/'Population at Risk'!BA$5","v":1.5246577143483609E-2},{"$f":"'Population at Risk'!BB66/'Population at Risk'!BB$5","v":7.4289653174774931E-3},{"$f":"'Population at Risk'!BC66/'Population at Risk'!BC$5","v":0},64]
[null,"Female 35-39",{"$f":"'Population at Risk'!C67/'Population at Risk'!C$5","v":3.3462687532962369E-3},{"$f":"'Population at Risk'!D67/'Population at Risk'!D$5","v":2.0505263974955265E-3},{"$f":"'Population at Risk'!E67/'Population at Risk'!E$5","v":8.319275517967668E-4},{"$f":"'Population at Risk'!F67/'Population at Risk'!F$5","v":2.8104193800194271E-3},{"$f":"'Population at Risk'!G67/'Population at Risk'!G$5","v":2.1074308158391545E-3},{"$f":"'Population at Risk'!H67/'Population at Risk'!H$5","v":8.9347663393283521E-3},{"$f":"'Population at Risk'!I67/'Population at Risk'!I$5","v":1.7189049017542479E-3},{"$f":"'Population at Risk'!J67/'Population at Risk'!J$5","v":6.734018482279701E-3},{"$f":"'Population at Risk'!K67/'Population at Risk'!K$5","v":9.3271643675620197E-3},{"$f":"'Population at Risk'!L67/'Population at Risk'!L$5","v":2.6237529094340906E-3},{"$f":"'Population at Risk'!M67/'Population at Risk'!M$5","v":2.6246467763537912E-3},{"$f":"'Population at Risk'!N67/'Population at Risk'!N$5","v":1.2793103524725749E-2},{"$f":"'Population at Risk'!O67/'Population at Risk'!O$5","v":9.1621968137425586E-3},{"$f":"'Population at Risk'!P67/'Population at Risk'!P$5","v":1.7764143043178752E-3},{"$f":"'Population at Risk'!Q67/'Population at Risk'!Q$5","v":1.4267579652431611E-3},{"$f":"'Population at Risk'!R67/'Population at Risk'!R$5","v":3.0822399504462691E-3},{"$f":"'Population at Risk'!S67/'Population at Risk'!S$5","v":5.6619699297853245E-3},{"$f":"'Population at Risk'!T67/'Population at Risk'!T$5","v":7.1628118697460467E-3},{"$f":"'Population at Risk'!U67/'Population at Risk'!U$5","v":0},{"$f":"'Population at Risk'!V67/'Population at Risk'!V$5","v":5.1660405913534786E-3},{"$f":"'Population at Risk'!W67/'Population at Risk'!W$5","v":6.8231131992898073E-3},{"$f":"'Population at Risk'!X67/'Population at Risk'!X$5","v":6.8237812755595241E-3},{"$f":"'Population at Risk'!Y67/'Population at Risk'!Y$5","v":5.7113929279132307E-3},{"$f":"'Population at Risk'!Z67/'Population at Risk'!Z$5","v":1.8087406821062971E-2},{"$f":"'Population at Risk'!AA67/'Population at Risk'!AA$5","v":1.1552042376144522E-2},{"$f":"'Population at Risk'!AB67/'Population at Risk'!AB$5","v":1.7651401185148053E-3},{"$f":"'Population at Risk'!AC67/'Population at Risk'!AC$5","v":1.3488187860505046E-2},{"$f":"'Population at Risk'!AD67/'Population at Risk'!AD$5","v":2.3568120121850674E-3},{"$f":"'Population at Risk'!AE67/'Population at Risk'!AE$5","v":2.4226938297248358E-3},{"$f":"'Population at Risk'!AF67/'Population at Risk'!AF$5","v":1.1794486697828763E-2},{"$f":"'Population at Risk'!AG67/'Population at Risk'!AG$5","v":2.4226938297248358E-3},{"$f":"'Population at Risk'!AH67/'Population at Risk'!AH$5","v":8.403431363768591E-3},{"$f":"'Population at Risk'!AI67/'Population at Risk'!AI$5","v":5.7340855278109285E-3},{"$f":"'Population at Risk'!AJ67/'Population at Risk'!AJ$5","v":3.1727432157509679E-3},{"$f":"'Population at Risk'!AK67/'Population at Risk'!AK$5","v":3.0433738066374197E-4},{"$f":"'Population at Risk'!AL67/'Population at Risk'!AL$5","v":1.1784354596754474E-2},{"$f":"'Population at Risk'!AM67/'Population at Risk'!AM$5","v":9.8954211415666852E-3},{"$f":"'Population at Risk'!AN67/'Population at Risk'!AN$5","v":0},{"$f":"'Population at Risk'!AO67/'Population at Risk'!AO$5","v":0},{"$f":"'Population at Risk'!AP67/'Population at Risk'!AP$5","v":2.2098726883337874E-3},{"$f":"'Population at Risk'!AQ67/'Population at Risk'!AQ$5","v":9.7549035933846891E-3},{"$f":"'Population at Risk'!AR67/'Population at Risk'!AR$5","v":7.2415862720092592E-3},{"$f":"'Population at Risk'!AS67/'Population at Risk'!AS$5","v":1.7186335995122901E-3},{"$f":"'Population at Risk'!AT67/'Population at Risk'!AT$5","v":0},{"$f":"'Population at Risk'!AU67/'Population at Risk'!AU$5","v":0},{"$f":"'Population at Risk'!AV67/'Population at Risk'!AV$5","v":5.1728951180430539E-3},{"$f":"'Population at Risk'!AW67/'Population at Risk'!AW$5","v":6.7861133182398605E-3},{"$f":"'Population at Risk'!AX67/'Population at Risk'!AX$5","v":4.5832948487798458E-3},{"$f":"'Population at Risk'!AY67/'Population at Risk'!AY$5","v":6.344666285882327E-3},{"$f":"'Population at Risk'!AZ67/'Population at Risk'!AZ$5","v":5.9527898389875834E-3},{"$f":"'Population at Risk'!BA67/'Population at Risk'!BA$5","v":1.2334857324989578E-2},{"$f":"'Population at Risk'!BB67/'Population at Risk'!BB$5","v":6.2190899402044721E-3},{"$f":"'Population at Risk'!BC67/'Population at Risk'!BC$5","v":0},65]
[null,"Female 40-44",{"$f":"'Population at Risk'!C68/'Population at Risk'!C$5","v":3.4134006881617477E-3},{"$f":"'Population at Risk'!D68/'Population at Risk'!D$5","v":2.0730321750290141E-3},{"$f":"'Population at Risk'!E68/'Population at Risk'!E$5","v":8.1258039942940018E-4},{"$f":"'Population at Risk'!F68/'Population at Risk'!F$5","v":2.404889066795147E-3},{"$f":"'Population at Risk'!G68/'Population at Risk'!G$5","v":2.4765288683307584E-3},{"$f":"'Population at Risk'!H68/'Population at Risk'!H$5","v":1.0142987289197391E-2},{"$f":"'Population at Risk'!I68/'Population at Risk'!I$5","v":2.0859627193163528E-3},{"$f":"'Population at Risk'!J68/'Population at Risk'!J$5","v":6.734018482279701E-3},{"$f":"'Population at Risk'!K68/'Population at Risk'!K$5","v":8.9956300890941757E-3},{"$f":"'Population at Risk'!L68/'Population at Risk'!L$5","v":2.6528249638322521E-3},{"$f":"'Population at Risk'!M68/'Population at Risk'!M$5","v":2.6537287350945535E-3},{"$f":"'Population at Risk'!N68/'Population at Risk'!N$5","v":1.0574561898076217E-2},{"$f":"'Population at Risk'!O68/'Population at Risk'!O$5","v":1.030851732833866E-2},{"$f":"'Population at Risk'!P68/'Population at Risk'!P$5","v":2.0705226328473244E-3},{"$f":"'Population at Risk'!Q68/'Population at Risk'!Q$5","v":1.0430092711432764E-3},{"$f":"'Population at Risk'!R68/'Population at Risk'!R$5","v":2.881535953673024E-3},{"$f":"'Population at Risk'!S68/'Population at Risk'!S$5","v":5.2259716389969433E-3},{"$f":"'Population at Risk'!T68/'Population at Risk'!T$5","v":5.5459758807211599E-3},{"$f":"'Population at Risk'!U68/'Population at Risk'!U$5","v":0},{"$f":"'Population at Risk'!V68/'Population at Risk'!V$5","v":5.9297161570318188E-3},{"$f":"'Population at Risk'!W68/'Population at Risk'!W$5","v":7.0206162498346047E-3},{"$f":"'Population at Risk'!X68/'Population at Risk'!X$5","v":7.021303664359076E-3},{"$f":"'Population at Risk'!Y68/'Population at Risk'!Y$5","v":6.10931784502194E-3},{"$f":"'Population at Risk'!Z68/'Population at Risk'!Z$5","v":1.6194580991529317E-2},{"$f":"'Population at Risk'!AA68/'Population at Risk'!AA$5","v":1.0924259091065388E-2},{"$f":"'Population at Risk'!AB68/'Population at Risk'!AB$5","v":1.7923282956957202E-3},{"$f":"'Population at Risk'!AC68/'Population at Risk'!AC$5","v":1.2349693034331892E-2},{"$f":"'Population at Risk'!AD68/'Population at Risk'!AD$5","v":2.4748211973445481E-3},{"$f":"'Population at Risk'!AE68/'Population at Risk'!AE$5","v":2.4412585334008881E-3},{"$f":"'Population at Risk'!AF68/'Population at Risk'!AF$5","v":1.1865752478480296E-2},{"$f":"'Population at Risk'!AG68/'Population at Risk'!AG$5","v":2.4412585334008881E-3},{"$f":"'Population at Risk'!AH68/'Population at Risk'!AH$5","v":8.5997587705380196E-3},{"$f":"'Population at Risk'!AI68/'Population at Risk'!AI$5","v":4.8959848056964557E-3},{"$f":"'Population at Risk'!AJ68/'Population at Risk'!AJ$5","v":3.2180681188331245E-3},{"$f":"'Population at Risk'!AK68/'Population at Risk'!AK$5","v":3.5506027744103226E-4},{"$f":"'Population at Risk'!AL68/'Population at Risk'!AL$5","v":1.3683855495725645E-2},{"$f":"'Population at Risk'!AM68/'Population at Risk'!AM$5","v":1.018949012051369E-2},{"$f":"'Population at Risk'!AN68/'Population at Risk'!AN$5","v":0},{"$f":"'Population at Risk'!AO68/'Population at Risk'!AO$5","v":0},{"$f":"'Population at Risk'!AP68/'Population at Risk'!AP$5","v":1.8141860245442917E-3},{"$f":"'Population at Risk'!AQ68/'Population at Risk'!AQ$5","v":8.8120284132338304E-3},{"$f":"'Population at Risk'!AR68/'Population at Risk'!AR$5","v":6.9574039235871825E-3},{"$f":"'Population at Risk'!AS68/'Population at Risk'!AS$5","v":2.0856334827414769E-3},{"$f":"'Population at Risk'!AT68/'Population at Risk'!AT$5","v":0},{"$f":"'Population at Risk'!AU68/'Population at Risk'!AU$5","v":0},{"$f":"'Population at Risk'!AV68/'Population at Risk'!AV$5","v":5.5962993447867919E-3},{"$f":"'Population at Risk'!AW68/'Population at Risk'!AW$5","v":6.874585099791033E-3},{"$f":"'Population at Risk'!AX68/'Population at Risk'!AX$5","v":4.7786057088130785E-3},{"$f":"'Population at Risk'!AY68/'Population at Risk'!AY$5","v":5.8769594249660339E-3},{"$f":"'Population at Risk'!AZ68/'Population at Risk'!AZ$5","v":4.9382538630203766E-3},{"$f":"'Population at Risk'!BA68/'Population at Risk'!BA$5","v":1.2290367307586552E-2},{"$f":"'Population at Risk'!BB68/'Population at Risk'!BB$5","v":6.6065517210619849E-3},{"$f":"'Population at Risk'!BC68/'Population at Risk'!BC$5","v":0},66]
[null,"Female 45-49",{"$f":"'Population at Risk'!C69/'Population at Risk'!C$5","v":4.3599134671409179E-3},{"$f":"'Population at Risk'!D69/'Population at Risk'!D$5","v":2.8079166753864162E-3},{"$f":"'Population at Risk'!E69/'Population at Risk'!E$5","v":1.3474688819420267E-3},{"$f":"'Population at Risk'!F69/'Population at Risk'!F$5","v":4.0750605265659177E-3},{"$f":"'Population at Risk'!G69/'Population at Risk'!G$5","v":4.0446744660946913E-3},{"$f":"'Population at Risk'!H69/'Population at Risk'!H$5","v":1.7184992010820722E-2},{"$f":"'Population at Risk'!I69/'Population at Risk'!I$5","v":2.8885646433364958E-3},{"$f":"'Population at Risk'!J69/'Population at Risk'!J$5","v":1.2143683610738316E-2},{"$f":"'Population at Risk'!K69/'Population at Risk'!K$5","v":1.48280755588997E-2},{"$f":"'Population at Risk'!L69/'Population at Risk'!L$5","v":4.7313690192711446E-3},{"$f":"'Population at Risk'!M69/'Population at Risk'!M$5","v":4.73298091429221E-3},{"$f":"'Population at Risk'!N69/'Population at Risk'!N$5","v":1.7084143470882412E-2},{"$f":"'Population at Risk'!O69/'Population at Risk'!O$5","v":1.8160598084268009E-2},{"$f":"'Population at Risk'!P69/'Population at Risk'!P$5","v":3.5282177633404075E-3},{"$f":"'Population at Risk'!Q69/'Population at Risk'!Q$5","v":2.139830369359982E-3},{"$f":"'Population at Risk'!R69/'Population at Risk'!R$5","v":5.0126652725261973E-3},{"$f":"'Population at Risk'!S69/'Population at Risk'!S$5","v":8.3197650434686833E-3},{"$f":"'Population at Risk'!T69/'Population at Risk'!T$5","v":8.4023667964739333E-3},{"$f":"'Population at Risk'!U69/'Population at Risk'!U$5","v":0},{"$f":"'Population at Risk'!V69/'Population at Risk'!V$5","v":8.3963655731768439E-3},{"$f":"'Population at Risk'!W69/'Population at Risk'!W$5","v":1.2106219071877054E-2},{"$f":"'Population at Risk'!X69/'Population at Risk'!X$5","v":1.2107404436598655E-2},{"$f":"'Population at Risk'!Y69/'Population at Risk'!Y$5","v":9.8203086201073958E-3},{"$f":"'Population at Risk'!Z69/'Population at Risk'!Z$5","v":2.7017788032378795E-2},{"$f":"'Population at Risk'!AA69/'Population at Risk'!AA$5","v":1.8459593492424764E-2},{"$f":"'Population at Risk'!AB69/'Population at Risk'!AB$5","v":2.4316197122530411E-3},{"$f":"'Population at Risk'!AC69/'Population at Risk'!AC$5","v":2.114324257994013E-2},{"$f":"'Population at Risk'!AD69/'Population at Risk'!AD$5","v":4.0687506009318671E-3},{"$f":"'Population at Risk'!AE69/'Population at Risk'!AE$5","v":4.024051014173401E-3},{"$f":"'Population at Risk'!AF69/'Population at Risk'!AF$5","v":2.2673127050340958E-2},{"$f":"'Population at Risk'!AG69/'Population at Risk'!AG$5","v":4.024051014173401E-3},{"$f":"'Population at Risk'!AH69/'Population at Risk'!AH$5","v":1.4088875630890193E-2},{"$f":"'Population at Risk'!AI69/'Population at Risk'!AI$5","v":7.448694664597552E-3},{"$f":"'Population at Risk'!AJ69/'Population at Risk'!AJ$5","v":5.0250119553576778E-3},{"$f":"'Population at Risk'!AK69/'Population at Risk'!AK$5","v":5.0467024597701613E-4},{"$f":"'Population at Risk'!AL69/'Population at Risk'!AL$5","v":2.2467270550398072E-2},{"$f":"'Population at Risk'!AM69/'Population at Risk'!AM$5","v":1.6652297299935007E-2},{"$f":"'Population at Risk'!AN69/'Population at Risk'!AN$5","v":0},{"$f":"'Population at Risk'!AO69/'Population at Risk'!AO$5","v":0},{"$f":"'Population at Risk'!AP69/'Population at Risk'!AP$5","v":2.5361740640101483E-3},{"$f":"'Population at Risk'!AQ69/'Population at Risk'!AQ$5","v":1.5820746236596985E-2},{"$f":"'Population at Risk'!AR69/'Population at Risk'!AR$5","v":1.1514705691539187E-2},{"$f":"'Population at Risk'!AS69/'Population at Risk'!AS$5","v":2.8881087286067291E-3},{"$f":"'Population at Risk'!AT69/'Population at Risk'!AT$5","v":0},{"$f":"'Population at Risk'!AU69/'Population at Risk'!AU$5","v":0},{"$f":"'Population at Risk'!AV69/'Population at Risk'!AV$5","v":9.602825342789556E-3},{"$f":"'Population at Risk'!AW69/'Population at Risk'!AW$5","v":1.1308247456356862E-2},{"$f":"'Population at Risk'!AX69/'Population at Risk'!AX$5","v":9.4386726008938195E-3},{"$f":"'Population at Risk'!AY69/'Population at Risk'!AY$5","v":9.7936656826301347E-3},{"$f":"'Population at Risk'!AZ69/'Population at Risk'!AZ$5","v":7.8950918705442078E-3},{"$f":"'Population at Risk'!BA69/'Population at Risk'!BA$5","v":2.1737565068300796E-2},{"$f":"'Population at Risk'!BB69/'Population at Risk'!BB$5","v":9.6983536970752619E-3},{"$f":"'Population at Risk'!BC69/'Population at Risk'!BC$5","v":0},67]
[null,"Female 50-54",{"$f":"'Population at Risk'!C70/'Population at Risk'!C$5","v":4.6021308819820797E-3},{"$f":"'Population at Risk'!D70/'Population at Risk'!D$5","v":2.8861118233085691E-3},{"$f":"'Population at Risk'!E70/'Population at Risk'!E$5","v":1.2718456283636478E-3},{"$f":"'Population at Risk'!F70/'Population at Risk'!F$5","v":3.7399404174733256E-3},{"$f":"'Population at Risk'!G70/'Population at Risk'!G$5","v":3.9431345213391767E-3},{"$f":"'Population at Risk'!H70/'Population at Risk'!H$5","v":1.7502579132170591E-2},{"$f":"'Population at Risk'!I70/'Population at Risk'!I$5","v":2.799489962704974E-3},{"$f":"'Population at Risk'!J70/'Population at Risk'!J$5","v":1.1191480313358631E-2},{"$f":"'Population at Risk'!K70/'Population at Risk'!K$5","v":1.4356844344104157E-2},{"$f":"'Population at Risk'!L70/'Population at Risk'!L$5","v":4.8863265199022956E-3},{"$f":"'Population at Risk'!M70/'Population at Risk'!M$5","v":4.8879912062450128E-3},{"$f":"'Population at Risk'!N70/'Population at Risk'!N$5","v":1.9355805535316687E-2},{"$f":"'Population at Risk'!O70/'Population at Risk'!O$5","v":1.862442475439666E-2},{"$f":"'Population at Risk'!P70/'Population at Risk'!P$5","v":3.5449391745410726E-3},{"$f":"'Population at Risk'!Q70/'Population at Risk'!Q$5","v":1.7482274259476977E-3},{"$f":"'Population at Risk'!R70/'Population at Risk'!R$5","v":5.2571855297225975E-3},{"$f":"'Population at Risk'!S70/'Population at Risk'!S$5","v":8.0013693431247937E-3},{"$f":"'Population at Risk'!T70/'Population at Risk'!T$5","v":7.5509462022412804E-3},{"$f":"'Population at Risk'!U70/'Population at Risk'!U$5","v":0},{"$f":"'Population at Risk'!V70/'Population at Risk'!V$5","v":8.9390964277167913E-3},{"$f":"'Population at Risk'!W70/'Population at Risk'!W$5","v":1.2132536939424612E-2},{"$f":"'Population at Risk'!X70/'Population at Risk'!X$5","v":1.2133724881026042E-2},{"$f":"'Population at Risk'!Y70/'Population at Risk'!Y$5","v":9.6761369520538716E-3},{"$f":"'Population at Risk'!Z70/'Population at Risk'!Z$5","v":2.8342290854341447E-2},{"$f":"'Population at Risk'!AA70/'Population at Risk'!AA$5","v":1.8895215632080759E-2},{"$f":"'Population at Risk'!AB70/'Population at Risk'!AB$5","v":2.4940451571886326E-3},{"$f":"'Population at Risk'!AC70/'Population at Risk'!AC$5","v":2.178316131832371E-2},{"$f":"'Population at Risk'!AD70/'Population at Risk'!AD$5","v":3.8099608100598753E-3},{"$f":"'Population at Risk'!AE70/'Population at Risk'!AE$5","v":3.7074043769925436E-3},{"$f":"'Population at Risk'!AF70/'Population at Risk'!AF$5","v":2.233547809947959E-2},{"$f":"'Population at Risk'!AG70/'Population at Risk'!AG$5","v":3.7074043769925436E-3},{"$f":"'Population at Risk'!AH70/'Population at Risk'!AH$5","v":1.4194344444097106E-2},{"$f":"'Population at Risk'!AI70/'Population at Risk'!AI$5","v":6.9434349169337469E-3},{"$f":"'Population at Risk'!AJ70/'Population at Risk'!AJ$5","v":5.1055409931037949E-3},{"$f":"'Population at Risk'!AK70/'Population at Risk'!AK$5","v":4.8664630862069413E-4},{"$f":"'Population at Risk'!AL70/'Population at Risk'!AL$5","v":2.3314293002816469E-2},{"$f":"'Population at Risk'!AM70/'Population at Risk'!AM$5","v":1.689472532287583E-2},{"$f":"'Population at Risk'!AN70/'Population at Risk'!AN$5","v":0},{"$f":"'Population at Risk'!AO70/'Population at Risk'!AO$5","v":0},{"$f":"'Population at Risk'!AP70/'Population at Risk'!AP$5","v":2.7484062032578594E-3},{"$f":"'Population at Risk'!AQ70/'Population at Risk'!AQ$5","v":1.5154875723708777E-2},{"$f":"'Population at Risk'!AR70/'Population at Risk'!AR$5","v":1.1663644533430413E-2},{"$f":"'Population at Risk'!AS70/'Population at Risk'!AS$5","v":2.7990481070197379E-3},{"$f":"'Population at Risk'!AT70/'Population at Risk'!AT$5","v":0},{"$f":"'Population at Risk'!AU70/'Population at Risk'!AU$5","v":0},{"$f":"'Population at Risk'!AV70/'Population at Risk'!AV$5","v":9.1056763468413231E-3},{"$f":"'Population at Risk'!AW70/'Population at Risk'!AW$5","v":1.1261673125811734E-2},{"$f":"'Population at Risk'!AX70/'Population at Risk'!AX$5","v":8.2912261278439824E-3},{"$f":"'Population at Risk'!AY70/'Population at Risk'!AY$5","v":1.0228939712969252E-2},{"$f":"'Population at Risk'!AZ70/'Population at Risk'!AZ$5","v":8.6665757336932756E-3},{"$f":"'Population at Risk'!BA70/'Population at Risk'!BA$5","v":2.2417358012254932E-2},{"$f":"'Population at Risk'!BB70/'Population at Risk'!BB$5","v":9.6890193816786523E-3},{"$f":"'Population at Risk'!BC70/'Population at Risk'!BC$5","v":0},68]
[null,"Female 55-59",{"$f":"'Population at Risk'!C71/'Population at Risk'!C$5","v":4.9159546724513023E-3},{"$f":"'Population at Risk'!D71/'Population at Risk'!D$5","v":3.0801675747282081E-3},{"$f":"'Population at Risk'!E71/'Population at Risk'!E$5","v":1.3532529341705494E-3},{"$f":"'Population at Risk'!F71/'Population at Risk'!F$5","v":4.3147238764004855E-3},{"$f":"'Population at Risk'!G71/'Population at Risk'!G$5","v":4.6720740273224013E-3},{"$f":"'Population at Risk'!H71/'Population at Risk'!H$5","v":1.8993582686778775E-2},{"$f":"'Population at Risk'!I71/'Population at Risk'!I$5","v":3.0719208752836369E-3},{"$f":"'Population at Risk'!J71/'Population at Risk'!J$5","v":1.278334798454675E-2},{"$f":"'Population at Risk'!K71/'Population at Risk'!K$5","v":1.6295811586166147E-2},{"$f":"'Population at Risk'!L71/'Population at Risk'!L$5","v":4.9110205126959867E-3},{"$f":"'Population at Risk'!M71/'Population at Risk'!M$5","v":4.912693611851965E-3},{"$f":"'Population at Risk'!N71/'Population at Risk'!N$5","v":2.1432613258459837E-2},{"$f":"'Population at Risk'!O71/'Population at Risk'!O$5","v":1.8669364868573252E-2},{"$f":"'Population at Risk'!P71/'Population at Risk'!P$5","v":4.3886198966656704E-3},{"$f":"'Population at Risk'!Q71/'Population at Risk'!Q$5","v":2.3720708862032059E-3},{"$f":"'Population at Risk'!R71/'Population at Risk'!R$5","v":4.9191196835256957E-3},{"$f":"'Population at Risk'!S71/'Population at Risk'!S$5","v":9.1852775270037414E-3},{"$f":"'Population at Risk'!T71/'Population at Risk'!T$5","v":9.2140498101612092E-3},{"$f":"'Population at Risk'!U71/'Population at Risk'!U$5","v":0},{"$f":"'Population at Risk'!V71/'Population at Risk'!V$5","v":1.0091652458328911E-2},{"$f":"'Population at Risk'!W71/'Population at Risk'!W$5","v":1.3282354865917887E-2},{"$f":"'Population at Risk'!X71/'Population at Risk'!X$5","v":1.3283655390448658E-2},{"$f":"'Population at Risk'!Y71/'Population at Risk'!Y$5","v":1.0990490802018627E-2},{"$f":"'Population at Risk'!Z71/'Population at Risk'!Z$5","v":3.0383024755643643E-2},{"$f":"'Population at Risk'!AA71/'Population at Risk'!AA$5","v":2.078332905727244E-2},{"$f":"'Population at Risk'!AB71/'Population at Risk'!AB$5","v":2.6607240119535312E-3},{"$f":"'Population at Risk'!AC71/'Population at Risk'!AC$5","v":2.3720894427224921E-2},{"$f":"'Population at Risk'!AD71/'Population at Risk'!AD$5","v":4.3844689431864316E-3},{"$f":"'Population at Risk'!AE71/'Population at Risk'!AE$5","v":4.214077558180946E-3},{"$f":"'Population at Risk'!AF71/'Population at Risk'!AF$5","v":2.6397204654298581E-2},{"$f":"'Population at Risk'!AG71/'Population at Risk'!AG$5","v":4.214077558180946E-3},{"$f":"'Population at Risk'!AH71/'Population at Risk'!AH$5","v":1.5997539128767654E-2},{"$f":"'Population at Risk'!AI71/'Population at Risk'!AI$5","v":8.2783770955894738E-3},{"$f":"'Population at Risk'!AJ71/'Population at Risk'!AJ$5","v":6.1810659744754174E-3},{"$f":"'Population at Risk'!AK71/'Population at Risk'!AK$5","v":5.1321186138387435E-4},{"$f":"'Population at Risk'!AL71/'Population at Risk'!AL$5","v":2.5704058985155074E-2},{"$f":"'Population at Risk'!AM71/'Population at Risk'!AM$5","v":1.8478378398371291E-2},{"$f":"'Population at Risk'!AN71/'Population at Risk'!AN$5","v":0},{"$f":"'Population at Risk'!AO71/'Population at Risk'!AO$5","v":0},{"$f":"'Population at Risk'!AP71/'Population at Risk'!AP$5","v":3.0609501511186846E-3},{"$f":"'Population at Risk'!AQ71/'Population at Risk'!AQ$5","v":1.7248634734227233E-2},{"$f":"'Population at Risk'!AR71/'Population at Risk'!AR$5","v":1.2920816339941845E-2},{"$f":"'Population at Risk'!AS71/'Population at Risk'!AS$5","v":3.0714360206417473E-3},{"$f":"'Population at Risk'!AT71/'Population at Risk'!AT$5","v":0},{"$f":"'Population at Risk'!AU71/'Population at Risk'!AU$5","v":0},{"$f":"'Population at Risk'!AV71/'Population at Risk'!AV$5","v":1.1078430861694031E-2},{"$f":"'Population at Risk'!AW71/'Population at Risk'!AW$5","v":1.3319188979255006E-2},{"$f":"'Population at Risk'!AX71/'Population at Risk'!AX$5","v":9.5313245182745698E-3},{"$f":"'Population at Risk'!AY71/'Population at Risk'!AY$5","v":1.1286823305740866E-2},{"$f":"'Population at Risk'!AZ71/'Population at Risk'!AZ$5","v":9.6491252267386658E-3},{"$f":"'Population at Risk'!BA71/'Population at Risk'!BA$5","v":2.4131840901005012E-2},{"$f":"'Population at Risk'!BB71/'Population at Risk'!BB$5","v":1.0758490286232348E-2},{"$f":"'Population at Risk'!BC71/'Population at Risk'!BC$5","v":0},69]
[null,"Female 60-64",{"$f":"'Population at Risk'!C72/'Population at Risk'!C$5","v":3.9981886430287853E-3},{"$f":"'Population at Risk'!D72/'Population at Risk'!D$5","v":2.4861352567449109E-3},{"$f":"'Population at Risk'!E72/'Population at Risk'!E$5","v":1.0638780929013755E-3},{"$f":"'Population at Risk'!F72/'Population at Risk'!F$5","v":3.4683741929526983E-3},{"$f":"'Population at Risk'!G72/'Population at Risk'!G$5","v":4.1902009213653823E-3},{"$f":"'Population at Risk'!H72/'Population at Risk'!H$5","v":1.7197613968632047E-2},{"$f":"'Population at Risk'!I72/'Population at Risk'!I$5","v":2.9301399118090076E-3},{"$f":"'Population at Risk'!J72/'Population at Risk'!J$5","v":9.7827058229046394E-3},{"$f":"'Population at Risk'!K72/'Population at Risk'!K$5","v":1.3145547293852405E-2},{"$f":"'Population at Risk'!L72/'Population at Risk'!L$5","v":4.4122449918752998E-3},{"$f":"'Population at Risk'!M72/'Population at Risk'!M$5","v":4.4137481668982499E-3},{"$f":"'Population at Risk'!N72/'Population at Risk'!N$5","v":1.7079314340174706E-2},{"$f":"'Population at Risk'!O72/'Population at Risk'!O$5","v":1.6946718425652849E-2},{"$f":"'Population at Risk'!P72/'Population at Risk'!P$5","v":3.3742690714929449E-3},{"$f":"'Population at Risk'!Q72/'Population at Risk'!Q$5","v":1.6794954449759923E-3},{"$f":"'Population at Risk'!R72/'Population at Risk'!R$5","v":4.3389158234175369E-3},{"$f":"'Population at Risk'!S72/'Population at Risk'!S$5","v":7.4379302565757031E-3},{"$f":"'Population at Risk'!T72/'Population at Risk'!T$5","v":6.8915554324181999E-3},{"$f":"'Population at Risk'!U72/'Population at Risk'!U$5","v":0},{"$f":"'Population at Risk'!V72/'Population at Risk'!V$5","v":8.5502381794457741E-3},{"$f":"'Population at Risk'!W72/'Population at Risk'!W$5","v":1.1327470257687947E-2},{"$f":"'Population at Risk'!X72/'Population at Risk'!X$5","v":1.1328579372230538E-2},{"$f":"'Population at Risk'!Y72/'Population at Risk'!Y$5","v":8.8418189587757597E-3},{"$f":"'Population at Risk'!Z72/'Population at Risk'!Z$5","v":2.338535330090755E-2},{"$f":"'Population at Risk'!AA72/'Population at Risk'!AA$5","v":1.6770406607798084E-2},{"$f":"'Population at Risk'!AB72/'Population at Risk'!AB$5","v":2.2154299518617232E-3},{"$f":"'Population at Risk'!AC72/'Population at Risk'!AC$5","v":1.8565573641645596E-2},{"$f":"'Population at Risk'!AD72/'Population at Risk'!AD$5","v":4.0403563603653046E-3},{"$f":"'Population at Risk'!AE72/'Population at Risk'!AE$5","v":3.9282389641182858E-3},{"$f":"'Population at Risk'!AF72/'Population at Risk'!AF$5","v":2.1778216349785526E-2},{"$f":"'Population at Risk'!AG72/'Population at Risk'!AG$5","v":3.9282389641182858E-3},{"$f":"'Population at Risk'!AH72/'Population at Risk'!AH$5","v":1.383497432560998E-2},{"$f":"'Population at Risk'!AI72/'Population at Risk'!AI$5","v":6.3826022768378012E-3},{"$f":"'Population at Risk'!AJ72/'Population at Risk'!AJ$5","v":4.6258300196074086E-3},{"$f":"'Population at Risk'!AK72/'Population at Risk'!AK$5","v":8.2560169005231956E-4},{"$f":"'Population at Risk'!AL72/'Population at Risk'!AL$5","v":2.3095640964733932E-2},{"$f":"'Population at Risk'!AM72/'Population at Risk'!AM$5","v":1.5839349279589618E-2},{"$f":"'Population at Risk'!AN72/'Population at Risk'!AN$5","v":0},{"$f":"'Population at Risk'!AO72/'Population at Risk'!AO$5","v":0},{"$f":"'Population at Risk'!AP72/'Population at Risk'!AP$5","v":2.7850705237646403E-3},{"$f":"'Population at Risk'!AQ72/'Population at Risk'!AQ$5","v":1.3137344906468292E-2},{"$f":"'Population at Risk'!AR72/'Population at Risk'!AR$5","v":1.0623814651046531E-2},{"$f":"'Population at Risk'!AS72/'Population at Risk'!AS$5","v":2.9296774350736671E-3},{"$f":"'Population at Risk'!AT72/'Population at Risk'!AT$5","v":0},{"$f":"'Population at Risk'!AU72/'Population at Risk'!AU$5","v":0},{"$f":"'Population at Risk'!AV72/'Population at Risk'!AV$5","v":1.0203817898928713E-2},{"$f":"'Population at Risk'!AW72/'Population at Risk'!AW$5","v":1.1675912416879389E-2},{"$f":"'Population at Risk'!AX72/'Population at Risk'!AX$5","v":6.8964631730784745E-3},{"$f":"'Population at Risk'!AY72/'Population at Risk'!AY$5","v":9.3983378958610465E-3},{"$f":"'Population at Risk'!AZ72/'Population at Risk'!AZ$5","v":7.8148095615260885E-3},{"$f":"'Population at Risk'!BA72/'Population at Risk'!BA$5","v":2.0608944419106469E-2},{"$f":"'Population at Risk'!BB72/'Population at Risk'!BB$5","v":9.0251137632088758E-3},{"$f":"'Population at Risk'!BC72/'Population at Risk'!BC$5","v":0},70]
[null,"Female 65-69",{"$f":"'Population at Risk'!C73/'Population at Risk'!C$5","v":4.3763708280278287E-3},{"$f":"'Population at Risk'!D73/'Population at Risk'!D$5","v":2.7269611749280091E-3},{"$f":"'Population at Risk'!E73/'Population at Risk'!E$5","v":1.1754686786997995E-3},{"$f":"'Population at Risk'!F73/'Population at Risk'!F$5","v":3.6632335933378104E-3},{"$f":"'Population at Risk'!G73/'Population at Risk'!G$5","v":5.5645585591488009E-3},{"$f":"'Population at Risk'!H73/'Population at Risk'!H$5","v":1.94126038555981E-2},{"$f":"'Population at Risk'!I73/'Population at Risk'!I$5","v":3.5890215786813623E-3},{"$f":"'Population at Risk'!J73/'Population at Risk'!J$5","v":1.2361113217075429E-2},{"$f":"'Population at Risk'!K73/'Population at Risk'!K$5","v":1.7078442356681833E-2},{"$f":"'Population at Risk'!L73/'Population at Risk'!L$5","v":4.4988357176977177E-3},{"$f":"'Population at Risk'!M73/'Population at Risk'!M$5","v":4.5003683926728493E-3},{"$f":"'Population at Risk'!N73/'Population at Risk'!N$5","v":2.0115603203525196E-2},{"$f":"'Population at Risk'!O73/'Population at Risk'!O$5","v":1.9500533521708881E-2},{"$f":"'Population at Risk'!P73/'Population at Risk'!P$5","v":3.5921361431074605E-3},{"$f":"'Population at Risk'!Q73/'Population at Risk'!Q$5","v":2.0847338323618479E-3},{"$f":"'Population at Risk'!R73/'Population at Risk'!R$5","v":5.1516011041203942E-3},{"$f":"'Population at Risk'!S73/'Population at Risk'!S$5","v":8.7550604233931559E-3},{"$f":"'Population at Risk'!T73/'Population at Risk'!T$5","v":7.8714453047711089E-3},{"$f":"'Population at Risk'!U73/'Population at Risk'!U$5","v":0},{"$f":"'Population at Risk'!V73/'Population at Risk'!V$5","v":1.0170788211076517E-2},{"$f":"'Population at Risk'!W73/'Population at Risk'!W$5","v":1.3448302115638439E-2},{"$f":"'Population at Risk'!X73/'Population at Risk'!X$5","v":1.3449618888678695E-2},{"$f":"'Population at Risk'!Y73/'Population at Risk'!Y$5","v":1.0842394756618856E-2},{"$f":"'Population at Risk'!Z73/'Population at Risk'!Z$5","v":2.4769619905766854E-2},{"$f":"'Population at Risk'!AA73/'Population at Risk'!AA$5","v":1.840131188248189E-2},{"$f":"'Population at Risk'!AB73/'Population at Risk'!AB$5","v":2.4196919157358715E-3},{"$f":"'Population at Risk'!AC73/'Population at Risk'!AC$5","v":2.0116973020758159E-2},{"$f":"'Population at Risk'!AD73/'Population at Risk'!AD$5","v":4.4122128575948454E-3},{"$f":"'Population at Risk'!AE73/'Population at Risk'!AE$5","v":3.9043720268255562E-3},{"$f":"'Population at Risk'!AF73/'Population at Risk'!AF$5","v":2.5781858826209997E-2},{"$f":"'Population at Risk'!AG73/'Population at Risk'!AG$5","v":3.9043720268255562E-3},{"$f":"'Population at Risk'!AH73/'Population at Risk'!AH$5","v":1.5589586016166296E-2},{"$f":"'Population at Risk'!AI73/'Population at Risk'!AI$5","v":7.4405522500033553E-3},{"$f":"'Population at Risk'!AJ73/'Population at Risk'!AJ$5","v":6.1430710631380009E-3},{"$f":"'Population at Risk'!AK73/'Population at Risk'!AK$5","v":8.4287306217455723E-4},{"$f":"'Population at Risk'!AL73/'Population at Risk'!AL$5","v":2.6705963648536304E-2},{"$f":"'Population at Risk'!AM73/'Population at Risk'!AM$5","v":1.7726163911956791E-2},{"$f":"'Population at Risk'!AN73/'Population at Risk'!AN$5","v":0},{"$f":"'Population at Risk'!AO73/'Population at Risk'!AO$5","v":0},{"$f":"'Population at Risk'!AP73/'Population at Risk'!AP$5","v":2.8223773006428392E-3},{"$f":"'Population at Risk'!AQ73/'Population at Risk'!AQ$5","v":1.4941218585485987E-2},{"$f":"'Population at Risk'!AR73/'Population at Risk'!AR$5","v":1.1918271917616593E-2},{"$f":"'Population at Risk'!AS73/'Population at Risk'!AS$5","v":3.58845510778484E-3},{"$f":"'Population at Risk'!AT73/'Population at Risk'!AT$5","v":0},{"$f":"'Population at Risk'!AU73/'Population at Risk'!AU$5","v":0},{"$f":"'Population at Risk'!AV73/'Population at Risk'!AV$5","v":1.0324267688629388E-2},{"$f":"'Population at Risk'!AW73/'Population at Risk'!AW$5","v":1.3292644527816967E-2},{"$f":"'Population at Risk'!AX73/'Population at Risk'!AX$5","v":8.4383564453526967E-3},{"$f":"'Population at Risk'!AY73/'Population at Risk'!AY$5","v":1.0969830800670216E-2},{"$f":"'Population at Risk'!AZ73/'Population at Risk'!AZ$5","v":8.9351417705361078E-3},{"$f":"'Population at Risk'!BA73/'Population at Risk'!BA$5","v":2.2155896648852265E-2},{"$f":"'Population at Risk'!BB73/'Population at Risk'!BB$5","v":1.042169493550256E-2},{"$f":"'Population at Risk'!BC73/'Population at Risk'!BC$5","v":0},71]
[null,"Female 70-74",{"$f":"'Population at Risk'!C74/'Population at Risk'!C$5","v":3.078476538343105E-3},{"$f":"'Population at Risk'!D74/'Population at Risk'!D$5","v":1.9062757165687224E-3},{"$f":"'Population at Risk'!E74/'Population at Risk'!E$5","v":8.0373926748704243E-4},{"$f":"'Population at Risk'!F74/'Population at Risk'!F$5","v":3.1539069974726597E-3},{"$f":"'Population at Risk'!G74/'Population at Risk'!G$5","v":4.1054076480831151E-3},{"$f":"'Population at Risk'!H74/'Population at Risk'!H$5","v":1.5195462049895563E-2},{"$f":"'Population at Risk'!I74/'Population at Risk'!I$5","v":2.7707990426089277E-3},{"$f":"'Population at Risk'!J74/'Population at Risk'!J$5","v":9.5419119570406812E-3},{"$f":"'Population at Risk'!K74/'Population at Risk'!K$5","v":1.2808831767511374E-2},{"$f":"'Population at Risk'!L74/'Population at Risk'!L$5","v":4.6950936516912426E-3},{"$f":"'Population at Risk'!M74/'Population at Risk'!M$5","v":4.6966931883263624E-3},{"$f":"'Population at Risk'!N74/'Population at Risk'!N$5","v":1.4522040594556997E-2},{"$f":"'Population at Risk'!O74/'Population at Risk'!O$5","v":1.5068594084956864E-2},{"$f":"'Population at Risk'!P74/'Population at Risk'!P$5","v":2.4925026299112991E-3},{"$f":"'Population at Risk'!Q74/'Population at Risk'!Q$5","v":1.7781553276027524E-3},{"$f":"'Population at Risk'!R74/'Population at Risk'!R$5","v":3.6924770919706871E-3},{"$f":"'Population at Risk'!S74/'Population at Risk'!S$5","v":6.7494723606121949E-3},{"$f":"'Population at Risk'!T74/'Population at Risk'!T$5","v":5.7256460823720198E-3},{"$f":"'Population at Risk'!U74/'Population at Risk'!U$5","v":0},{"$f":"'Population at Risk'!V74/'Population at Risk'!V$5","v":7.3559370395094685E-3},{"$f":"'Population at Risk'!W74/'Population at Risk'!W$5","v":1.0659926796142385E-2},{"$f":"'Population at Risk'!X74/'Population at Risk'!X$5","v":1.0660970549033685E-2},{"$f":"'Population at Risk'!Y74/'Population at Risk'!Y$5","v":8.1115374823434051E-3},{"$f":"'Population at Risk'!Z74/'Population at Risk'!Z$5","v":2.0399400032282956E-2},{"$f":"'Population at Risk'!AA74/'Population at Risk'!AA$5","v":1.4655541623748625E-2},{"$f":"'Population at Risk'!AB74/'Population at Risk'!AB$5","v":1.6551214001712155E-3},{"$f":"'Population at Risk'!AC74/'Population at Risk'!AC$5","v":1.6057288505913911E-2},{"$f":"'Population at Risk'!AD74/'Population at Risk'!AD$5","v":3.3826965241560481E-3},{"$f":"'Population at Risk'!AE74/'Population at Risk'!AE$5","v":3.0560146481572871E-3},{"$f":"'Population at Risk'!AF74/'Population at Risk'!AF$5","v":1.9441248569429165E-2},{"$f":"'Population at Risk'!AG74/'Population at Risk'!AG$5","v":3.0560146481572871E-3},{"$f":"'Population at Risk'!AH74/'Population at Risk'!AH$5","v":1.2359282507976122E-2},{"$f":"'Population at Risk'!AI74/'Population at Risk'!AI$5","v":5.6059733364529091E-3},{"$f":"'Population at Risk'!AJ74/'Population at Risk'!AJ$5","v":4.6602608065184833E-3},{"$f":"'Population at Risk'!AK74/'Population at Risk'!AK$5","v":3.6875696470136879E-4},{"$f":"'Population at Risk'!AL74/'Population at Risk'!AL$5","v":2.0810846527972961E-2},{"$f":"'Population at Risk'!AM74/'Population at Risk'!AM$5","v":1.4531545122861891E-2},{"$f":"'Population at Risk'!AN74/'Population at Risk'!AN$5","v":0},{"$f":"'Population at Risk'!AO74/'Population at Risk'!AO$5","v":0},{"$f":"'Population at Risk'!AP74/'Population at Risk'!AP$5","v":2.3416427054783993E-3},{"$f":"'Population at Risk'!AQ74/'Population at Risk'!AQ$5","v":1.1824872087441506E-2},{"$f":"'Population at Risk'!AR74/'Population at Risk'!AR$5","v":9.352765362624995E-3},{"$f":"'Population at Risk'!AS74/'Population at Risk'!AS$5","v":2.770361715336483E-3},{"$f":"'Population at Risk'!AT74/'Population at Risk'!AT$5","v":0},{"$f":"'Population at Risk'!AU74/'Population at Risk'!AU$5","v":0},{"$f":"'Population at Risk'!AV74/'Population at Risk'!AV$5","v":8.4123662648091322E-3},{"$f":"'Population at Risk'!AW74/'Population at Risk'!AW$5","v":1.0005216311260084E-2},{"$f":"'Population at Risk'!AX74/'Population at Risk'!AX$5","v":6.7344575477334022E-3},{"$f":"'Population at Risk'!AY74/'Population at Risk'!AY$5","v":8.4803673532856463E-3},{"$f":"'Population at Risk'!AZ74/'Population at Risk'!AZ$5","v":6.6908196041160712E-3},{"$f":"'Population at Risk'!BA74/'Population at Risk'!BA$5","v":1.5779434213937536E-2},{"$f":"'Population at Risk'!BB74/'Population at Risk'!BB$5","v":8.2255000603508426E-3},{"$f":"'Population at Risk'!BC74/'Population at Risk'!BC$5","v":0},72]
[null,"Female 75-79",{"$f":"'Population at Risk'!C75/'Population at Risk'!C$5","v":3.1650539024129835E-3},{"$f":"'Population at Risk'!D75/'Population at Risk'!D$5","v":1.8732553703689138E-3},{"$f":"'Population at Risk'!E75/'Population at Risk'!E$5","v":6.5877914960098673E-4},{"$f":"'Population at Risk'!F75/'Population at Risk'!F$5","v":3.9486803668446532E-3},{"$f":"'Population at Risk'!G75/'Population at Risk'!G$5","v":4.3244569373956402E-3},{"$f":"'Population at Risk'!H75/'Population at Risk'!H$5","v":1.5919055480842971E-2},{"$f":"'Population at Risk'!I75/'Population at Risk'!I$5","v":2.3484049411949108E-3},{"$f":"'Population at Risk'!J75/'Population at Risk'!J$5","v":9.0410648467414683E-3},{"$f":"'Population at Risk'!K75/'Population at Risk'!K$5","v":1.1874239587854244E-2},{"$f":"'Population at Risk'!L75/'Population at Risk'!L$5","v":3.4647073731933764E-3},{"$f":"'Population at Risk'!M75/'Population at Risk'!M$5","v":3.4658877386524126E-3},{"$f":"'Population at Risk'!N75/'Population at Risk'!N$5","v":1.5443473382058341E-2},{"$f":"'Population at Risk'!O75/'Population at Risk'!O$5","v":1.5596205922665439E-2},{"$f":"'Population at Risk'!P75/'Population at Risk'!P$5","v":2.5518479306234727E-3},{"$f":"'Population at Risk'!Q75/'Population at Risk'!Q$5","v":1.8613694931802211E-3},{"$f":"'Population at Risk'!R75/'Population at Risk'!R$5","v":3.9413364351507394E-3},{"$f":"'Population at Risk'!S75/'Population at Risk'!S$5","v":6.7432327533057642E-3},{"$f":"'Population at Risk'!T75/'Population at Risk'!T$5","v":6.1587224435090768E-3},{"$f":"'Population at Risk'!U75/'Population at Risk'!U$5","v":0},{"$f":"'Population at Risk'!V75/'Population at Risk'!V$5","v":9.593154979342159E-3},{"$f":"'Population at Risk'!W75/'Population at Risk'!W$5","v":1.0624671476010827E-2},{"$f":"'Population at Risk'!X75/'Population at Risk'!X$5","v":1.062571177692323E-2},{"$f":"'Population at Risk'!Y75/'Population at Risk'!Y$5","v":9.0526934653811092E-3},{"$f":"'Population at Risk'!Z75/'Population at Risk'!Z$5","v":2.3480750685787945E-2},{"$f":"'Population at Risk'!AA75/'Population at Risk'!AA$5","v":1.6163243177594912E-2},{"$f":"'Population at Risk'!AB75/'Population at Risk'!AB$5","v":1.6194373054918586E-3},{"$f":"'Population at Risk'!AC75/'Population at Risk'!AC$5","v":1.8423111529913275E-2},{"$f":"'Population at Risk'!AD75/'Population at Risk'!AD$5","v":3.4782444443148476E-3},{"$f":"'Population at Risk'!AE75/'Population at Risk'!AE$5","v":3.1021509666400581E-3},{"$f":"'Population at Risk'!AF75/'Population at Risk'!AF$5","v":2.2498769079577787E-2},{"$f":"'Population at Risk'!AG75/'Population at Risk'!AG$5","v":3.1021509666400581E-3},{"$f":"'Population at Risk'!AH75/'Population at Risk'!AH$5","v":1.2481072564980452E-2},{"$f":"'Population at Risk'!AI75/'Population at Risk'!AI$5","v":5.6761595708722436E-3},{"$f":"'Population at Risk'!AJ75/'Population at Risk'!AJ$5","v":3.7154315953845047E-3},{"$f":"'Population at Risk'!AK75/'Population at Risk'!AK$5","v":3.1984022448588111E-4},{"$f":"'Population at Risk'!AL75/'Population at Risk'!AL$5","v":2.1925989605334869E-2},{"$f":"'Population at Risk'!AM75/'Population at Risk'!AM$5","v":1.4589573571229773E-2},{"$f":"'Population at Risk'!AN75/'Population at Risk'!AN$5","v":0},{"$f":"'Population at Risk'!AO75/'Population at Risk'!AO$5","v":0},{"$f":"'Population at Risk'!AP75/'Population at Risk'!AP$5","v":1.7889086893791936E-3},{"$f":"'Population at Risk'!AQ75/'Population at Risk'!AQ$5","v":1.4328859138100626E-2},{"$f":"'Population at Risk'!AR75/'Population at Risk'!AR$5","v":9.976540634446078E-3},{"$f":"'Population at Risk'!AS75/'Population at Risk'!AS$5","v":2.3480342822219092E-3},{"$f":"'Population at Risk'!AT75/'Population at Risk'!AT$5","v":0},{"$f":"'Population at Risk'!AU75/'Population at Risk'!AU$5","v":0},{"$f":"'Population at Risk'!AV75/'Population at Risk'!AV$5","v":8.8684913187776788E-3},{"$f":"'Population at Risk'!AW75/'Population at Risk'!AW$5","v":1.0198708832731489E-2},{"$f":"'Population at Risk'!AX75/'Population at Risk'!AX$5","v":6.5354761571950956E-3},{"$f":"'Population at Risk'!AY75/'Population at Risk'!AY$5","v":8.6544687043844677E-3},{"$f":"'Population at Risk'!AZ75/'Population at Risk'!AZ$5","v":7.0370262427992434E-3},{"$f":"'Population at Risk'!BA75/'Population at Risk'!BA$5","v":1.6551738670340252E-2},{"$f":"'Population at Risk'!BB75/'Population at Risk'!BB$5","v":7.9341680871164322E-3},{"$f":"'Population at Risk'!BC75/'Population at Risk'!BC$5","v":0},73]
[null,"Female 80-84",{"$f":"'Population at Risk'!C76/'Population at Risk'!C$5","v":2.4617085907656542E-3},{"$f":"'Population at Risk'!D76/'Population at Risk'!D$5","v":1.5074344562901361E-3},{"$f":"'Population at Risk'!E76/'Population at Risk'!E$5","v":6.0998069407498768E-4},{"$f":"'Population at Risk'!F76/'Population at Risk'!F$5","v":2.3073614191803093E-3},{"$f":"'Population at Risk'!G76/'Population at Risk'!G$5","v":3.5136212616339577E-3},{"$f":"'Population at Risk'!H76/'Population at Risk'!H$5","v":1.1633155928308325E-2},{"$f":"'Population at Risk'!I76/'Population at Risk'!I$5","v":1.851626972865218E-3},{"$f":"'Population at Risk'!J76/'Population at Risk'!J$5","v":6.824687299360672E-3},{"$f":"'Population at Risk'!K76/'Population at Risk'!K$5","v":7.8046645178384702E-3},{"$f":"'Population at Risk'!L76/'Population at Risk'!L$5","v":2.7680995415460307E-3},{"$f":"'Population at Risk'!M76/'Population at Risk'!M$5","v":2.7690425848492816E-3},{"$f":"'Population at Risk'!N76/'Population at Risk'!N$5","v":1.2351097305555597E-2},{"$f":"'Population at Risk'!O76/'Population at Risk'!O$5","v":1.1818505164672054E-2},{"$f":"'Population at Risk'!P76/'Population at Risk'!P$5","v":1.6616684199408658E-3},{"$f":"'Population at Risk'!Q76/'Population at Risk'!Q$5","v":1.042366916180924E-3},{"$f":"'Population at Risk'!R76/'Population at Risk'!R$5","v":3.3989506871942151E-3},{"$f":"'Population at Risk'!S76/'Population at Risk'!S$5","v":5.1174967026692865E-3},{"$f":"'Population at Risk'!T76/'Population at Risk'!T$5","v":4.8783227671038631E-3},{"$f":"'Population at Risk'!U76/'Population at Risk'!U$5","v":0},{"$f":"'Population at Risk'!V76/'Population at Risk'!V$5","v":6.8549512942937072E-3},{"$f":"'Population at Risk'!W76/'Population at Risk'!W$5","v":7.674671117470091E-3},{"$f":"'Population at Risk'!X76/'Population at Risk'!X$5","v":7.6754225729276961E-3},{"$f":"'Population at Risk'!Y76/'Population at Risk'!Y$5","v":6.6320819518118123E-3},{"$f":"'Population at Risk'!Z76/'Population at Risk'!Z$5","v":1.8587206163588544E-2},{"$f":"'Population at Risk'!AA76/'Population at Risk'!AA$5","v":1.2668932418479342E-2},{"$f":"'Population at Risk'!AB76/'Population at Risk'!AB$5","v":1.3134849806758072E-3},{"$f":"'Population at Risk'!AC76/'Population at Risk'!AC$5","v":1.4604837527722025E-2},{"$f":"'Population at Risk'!AD76/'Population at Risk'!AD$5","v":2.6873477858276088E-3},{"$f":"'Population at Risk'!AE76/'Population at Risk'!AE$5","v":2.3295397824957416E-3},{"$f":"'Population at Risk'!AF76/'Population at Risk'!AF$5","v":1.7915131703844896E-2},{"$f":"'Population at Risk'!AG76/'Population at Risk'!AG$5","v":2.3295397824957416E-3},{"$f":"'Population at Risk'!AH76/'Population at Risk'!AH$5","v":9.5177438710144589E-3},{"$f":"'Population at Risk'!AI76/'Population at Risk'!AI$5","v":4.4691997593258974E-3},{"$f":"'Population at Risk'!AJ76/'Population at Risk'!AJ$5","v":3.8869130536330209E-3},{"$f":"'Population at Risk'!AK76/'Population at Risk'!AK$5","v":3.1984022448588111E-4},{"$f":"'Population at Risk'!AL76/'Population at Risk'!AL$5","v":1.5425224906580918E-2},{"$f":"'Population at Risk'!AM76/'Population at Risk'!AM$5","v":1.0984828906452106E-2},{"$f":"'Population at Risk'!AN76/'Population at Risk'!AN$5","v":0},{"$f":"'Population at Risk'!AO76/'Population at Risk'!AO$5","v":0},{"$f":"'Population at Risk'!AP76/'Population at Risk'!AP$5","v":2.0525373383403381E-3},{"$f":"'Population at Risk'!AQ76/'Population at Risk'!AQ$5","v":1.1771202653116068E-2},{"$f":"'Population at Risk'!AR76/'Population at Risk'!AR$5","v":7.7026525454371025E-3},{"$f":"'Population at Risk'!AS76/'Population at Risk'!AS$5","v":1.8513347225211207E-3},{"$f":"'Population at Risk'!AT76/'Population at Risk'!AT$5","v":0},{"$f":"'Population at Risk'!AU76/'Population at Risk'!AU$5","v":0},{"$f":"'Population at Risk'!AV76/'Population at Risk'!AV$5","v":6.755840245456295E-3},{"$f":"'Population at Risk'!AW76/'Population at Risk'!AW$5","v":7.9341657045561009E-3},{"$f":"'Population at Risk'!AX76/'Population at Risk'!AX$5","v":5.6159116727656352E-3},{"$f":"'Population at Risk'!AY76/'Population at Risk'!AY$5","v":6.5408824325631906E-3},{"$f":"'Population at Risk'!AZ76/'Population at Risk'!AZ$5","v":5.6104291044863051E-3},{"$f":"'Population at Risk'!BA76/'Population at Risk'!BA$5","v":1.2568099871715989E-2},{"$f":"'Population at Risk'!BB76/'Population at Risk'!BB$5","v":5.8967929833266168E-3},{"$f":"'Population at Risk'!BC76/'Population at Risk'!BC$5","v":0},74]
[null,"Female 85-89",{"$f":"'Population at Risk'!C77/'Population at Risk'!C$5","v":1.8886124109048666E-3},{"$f":"'Population at Risk'!D77/'Population at Risk'!D$5","v":1.135306285072069E-3},{"$f":"'Population at Risk'!E77/'Population at Risk'!E$5","v":4.2698648585249134E-4},{"$f":"'Population at Risk'!F77/'Population at Risk'!F$5","v":1.427233867534212E-3},{"$f":"'Population at Risk'!G77/'Population at Risk'!G$5","v":2.5826617820557296E-3},{"$f":"'Population at Risk'!H77/'Population at Risk'!H$5","v":7.1454851306056522E-3},{"$f":"'Population at Risk'!I77/'Population at Risk'!I$5","v":1.3322681877932666E-3},{"$f":"'Population at Risk'!J77/'Population at Risk'!J$5","v":3.6208148051270444E-3},{"$f":"'Population at Risk'!K77/'Population at Risk'!K$5","v":4.9057891254984673E-3},{"$f":"'Population at Risk'!L77/'Population at Risk'!L$5","v":1.8515102893784711E-3},{"$f":"'Population at Risk'!M77/'Population at Risk'!M$5","v":1.8521410666872682E-3},{"$f":"'Population at Risk'!N77/'Population at Risk'!N$5","v":8.1358942012750742E-3},{"$f":"'Population at Risk'!O77/'Population at Risk'!O$5","v":8.0408044066786633E-3},{"$f":"'Population at Risk'!P77/'Population at Risk'!P$5","v":9.7919746175086737E-4},{"$f":"'Population at Risk'!Q77/'Population at Risk'!Q$5","v":5.2118345809046198E-4},{"$f":"'Population at Risk'!R77/'Population at Risk'!R$5","v":1.5909981940058029E-3},{"$f":"'Population at Risk'!S77/'Population at Risk'!S$5","v":3.0826206872254921E-3},{"$f":"'Population at Risk'!T77/'Population at Risk'!T$5","v":3.2586171764512686E-3},{"$f":"'Population at Risk'!U77/'Population at Risk'!U$5","v":0},{"$f":"'Population at Risk'!V77/'Population at Risk'!V$5","v":4.0978634459000948E-3},{"$f":"'Population at Risk'!W77/'Population at Risk'!W$5","v":4.7091034747154207E-3},{"$f":"'Population at Risk'!X77/'Population at Risk'!X$5","v":4.7095645604678061E-3},{"$f":"'Population at Risk'!Y77/'Population at Risk'!Y$5","v":3.7588357649734603E-3},{"$f":"'Population at Risk'!Z77/'Population at Risk'!Z$5","v":1.0833738341829826E-2},{"$f":"'Population at Risk'!AA77/'Population at Risk'!AA$5","v":7.4536324921656467E-3},{"$f":"'Population at Risk'!AB77/'Population at Risk'!AB$5","v":9.9170753561064967E-4},{"$f":"'Population at Risk'!AC77/'Population at Risk'!AC$5","v":8.6607267633722947E-3},{"$f":"'Population at Risk'!AD77/'Population at Risk'!AD$5","v":1.7688871501650083E-3},{"$f":"'Population at Risk'!AE77/'Population at Risk'!AE$5","v":1.4281600676607062E-3},{"$f":"'Population at Risk'!AF77/'Population at Risk'!AF$5","v":1.0814987533591986E-2},{"$f":"'Population at Risk'!AG77/'Population at Risk'!AG$5","v":1.4281600676607062E-3},{"$f":"'Population at Risk'!AH77/'Population at Risk'!AH$5","v":5.4899563172422601E-3},{"$f":"'Population at Risk'!AI77/'Population at Risk'!AI$5","v":2.6208270193577798E-3},{"$f":"'Population at Risk'!AJ77/'Population at Risk'!AJ$5","v":2.0577774989821874E-3},{"$f":"'Population at Risk'!AK77/'Population at Risk'!AK$5","v":2.5587217958870489E-4},{"$f":"'Population at Risk'!AL77/'Population at Risk'!AL$5","v":8.5111167876749765E-3},{"$f":"'Population at Risk'!AM77/'Population at Risk'!AM$5","v":6.6309500623687942E-3},{"$f":"'Population at Risk'!AN77/'Population at Risk'!AN$5","v":0},{"$f":"'Population at Risk'!AO77/'Population at Risk'!AO$5","v":0},{"$f":"'Population at Risk'!AP77/'Population at Risk'!AP$5","v":9.7919212471282171E-4},{"$f":"'Population at Risk'!AQ77/'Population at Risk'!AQ$5","v":6.7755461268889181E-3},{"$f":"'Population at Risk'!AR77/'Population at Risk'!AR$5","v":4.6233639297158678E-3},{"$f":"'Population at Risk'!AS77/'Population at Risk'!AS$5","v":1.3320579101066599E-3},{"$f":"'Population at Risk'!AT77/'Population at Risk'!AT$5","v":0},{"$f":"'Population at Risk'!AU77/'Population at Risk'!AU$5","v":0},{"$f":"'Population at Risk'!AV77/'Population at Risk'!AV$5","v":4.4806775511101885E-3},{"$f":"'Population at Risk'!AW77/'Population at Risk'!AW$5","v":4.248084554314413E-3},{"$f":"'Population at Risk'!AX77/'Population at Risk'!AX$5","v":2.5288023321810168E-3},{"$f":"'Population at Risk'!AY77/'Population at Risk'!AY$5","v":4.0691802143535891E-3},{"$f":"'Population at Risk'!AZ77/'Population at Risk'!AZ$5","v":3.5441023077370732E-3},{"$f":"'Population at Risk'!BA77/'Population at Risk'!BA$5","v":9.145536960221903E-3},{"$f":"'Population at Risk'!BB77/'Population at Risk'!BB$5","v":2.6171159869820379E-3},{"$f":"'Population at Risk'!BC77/'Population at Risk'!BC$5","v":0},75]
[null,"Female 90+",{"$f":"'Population at Risk'!C78/'Population at Risk'!C$5","v":9.2476883568445194E-4},{"$f":"'Population at Risk'!D78/'Population at Risk'!D$5","v":5.6134588539674527E-4},{"$f":"'Population at Risk'!E78/'Population at Risk'!E$5","v":2.1959304986699557E-4},{"$f":"'Population at Risk'!F78/'Population at Risk'!F$5","v":8.8012755164609726E-4},{"$f":"'Population at Risk'!G78/'Population at Risk'!G$5","v":1.6517023024775015E-3},{"$f":"'Population at Risk'!H78/'Population at Risk'!H$5","v":3.9519333536358423E-3},{"$f":"'Population at Risk'!I78/'Population at Risk'!I$5","v":5.4193960181421008E-4},{"$f":"'Population at Risk'!J78/'Population at Risk'!J$5","v":2.1944332152285121E-3},{"$f":"'Population at Risk'!K78/'Population at Risk'!K$5","v":3.1218658071353886E-3},{"$f":"'Population at Risk'!L78/'Population at Risk'!L$5","v":7.332714017340479E-4},{"$f":"'Population at Risk'!M78/'Population at Risk'!M$5","v":7.3352121452961109E-4},{"$f":"'Population at Risk'!N78/'Population at Risk'!N$5","v":4.3992731088342589E-3},{"$f":"'Population at Risk'!O78/'Population at Risk'!O$5","v":4.2842081221936192E-3},{"$f":"'Population at Risk'!P78/'Population at Risk'!P$5","v":1.4836325178043446E-4},{"$f":"'Population at Risk'!Q78/'Population at Risk'!Q$5","v":1.4890955945441768E-4},{"$f":"'Population at Risk'!R78/'Population at Risk'!R$5","v":9.4013529645797453E-4},{"$f":"'Population at Risk'!S78/'Population at Risk'!S$5","v":1.7621160389055832E-3},{"$f":"'Population at Risk'!T78/'Population at Risk'!T$5","v":1.7349415615290642E-3},{"$f":"'Population at Risk'!U78/'Population at Risk'!U$5","v":0},{"$f":"'Population at Risk'!V78/'Population at Risk'!V$5","v":1.9639529878968196E-3},{"$f":"'Population at Risk'!W78/'Population at Risk'!W$5","v":2.7398420216526087E-3},{"$f":"'Population at Risk'!X78/'Population at Risk'!X$5","v":2.7401102897267235E-3},{"$f":"'Population at Risk'!Y78/'Population at Risk'!Y$5","v":2.0073363771062462E-3},{"$f":"'Population at Risk'!Z78/'Population at Risk'!Z$5","v":5.8392013435625157E-3},{"$f":"'Population at Risk'!AA78/'Population at Risk'!AA$5","v":4.013149369904232E-3},{"$f":"'Population at Risk'!AB78/'Population at Risk'!AB$5","v":4.8002864755621868E-4},{"$f":"'Population at Risk'!AC78/'Population at Risk'!AC$5","v":4.6196999341667142E-3},{"$f":"'Population at Risk'!AD78/'Population at Risk'!AD$5","v":1.0290160825479134E-3},{"$f":"'Population at Risk'!AE78/'Population at Risk'!AE$5","v":7.7261118414431642E-4},{"$f":"'Population at Risk'!AF78/'Population at Risk'!AF$5","v":5.4224729739062311E-3},{"$f":"'Population at Risk'!AG78/'Population at Risk'!AG$5","v":7.7261118414431642E-4},{"$f":"'Population at Risk'!AH78/'Population at Risk'!AH$5","v":3.0257145612073823E-3},{"$f":"'Population at Risk'!AI78/'Population at Risk'!AI$5","v":1.5104239927351414E-3},{"$f":"'Population at Risk'!AJ78/'Population at Risk'!AJ$5","v":1.0860492355739323E-3},{"$f":"'Population at Risk'!AK78/'Population at Risk'!AK$5","v":6.3968044897176222E-5},{"$f":"'Population at Risk'!AL78/'Population at Risk'!AL$5","v":4.8286026808663767E-3},{"$f":"'Population at Risk'!AM78/'Population at Risk'!AM$5","v":3.4415669227506936E-3},{"$f":"'Population at Risk'!AN78/'Population at Risk'!AN$5","v":0},{"$f":"'Population at Risk'!AO78/'Population at Risk'!AO$5","v":0},{"$f":"'Population at Risk'!AP78/'Population at Risk'!AP$5","v":5.0842668013934976E-4},{"$f":"'Population at Risk'!AQ78/'Population at Risk'!AQ$5","v":3.1559387036943966E-3},{"$f":"'Population at Risk'!AR78/'Population at Risk'!AR$5","v":2.5152475996030061E-3},{"$f":"'Population at Risk'!AS78/'Population at Risk'!AS$5","v":5.4185406512813285E-4},{"$f":"'Population at Risk'!AT78/'Population at Risk'!AT$5","v":0},{"$f":"'Population at Risk'!AU78/'Population at Risk'!AU$5","v":0},{"$f":"'Population at Risk'!AV78/'Population at Risk'!AV$5","v":2.507322152952852E-3},{"$f":"'Population at Risk'!AW78/'Population at Risk'!AW$5","v":2.578603853980733E-3},{"$f":"'Population at Risk'!AX78/'Population at Risk'!AX$5","v":1.4450299041034382E-3},{"$f":"'Population at Risk'!AY78/'Population at Risk'!AY$5","v":2.2996661263171708E-3},{"$f":"'Population at Risk'!AZ78/'Population at Risk'!AZ$5","v":1.9383808650619732E-3},{"$f":"'Population at Risk'!BA78/'Population at Risk'!BA$5","v":5.9754581979363968E-3},{"$f":"'Population at Risk'!BB78/'Population at Risk'!BB$5","v":2.0373751037898145E-3},{"$f":"'Population at Risk'!BC78/'Population at Risk'!BC$5","v":0},76]
[null,"Male 0-4",{"$f":"'Population at Risk'!C79/'Population at Risk'!C$5","v":0},{"$f":"'Population at Risk'!D79/'Population at Risk'!D$5","v":0},{"$f":"'Population at Risk'!E79/'Population at Risk'!E$5","v":0},{"$f":"'Population at Risk'!F79/'Population at Risk'!F$5","v":0},{"$f":"'Population at Risk'!G79/'Population at Risk'!G$5","v":0},{"$f":"'Population at Risk'!H79/'Population at Risk'!H$5","v":0},{"$f":"'Population at Risk'!I79/'Population at Risk'!I$5","v":0},{"$f":"'Population at Risk'!J79/'Population at Risk'!J$5","v":0},{"$f":"'Population at Risk'!K79/'Population at Risk'!K$5","v":0},{"$f":"'Population at Risk'!L79/'Population at Risk'!L$5","v":0},{"$f":"'Population at Risk'!M79/'Population at Risk'!M$5","v":0},{"$f":"'Population at Risk'!N79/'Population at Risk'!N$5","v":0},{"$f":"'Population at Risk'!O79/'Population at Risk'!O$5","v":0},{"$f":"'Population at Risk'!P79/'Population at Risk'!P$5","v":0},{"$f":"'Population at Risk'!Q79/'Population at Risk'!Q$5","v":0},{"$f":"'Population at Risk'!R79/'Population at Risk'!R$5","v":0},{"$f":"'Population at Risk'!S79/'Population at Risk'!S$5","v":0},{"$f":"'Population at Risk'!T79/'Population at Risk'!T$5","v":0},{"$f":"'Population at Risk'!U79/'Population at Risk'!U$5","v":0},{"$f":"'Population at Risk'!V79/'Population at Risk'!V$5","v":0},{"$f":"'Population at Risk'!W79/'Population at Risk'!W$5","v":0},{"$f":"'Population at Risk'!X79/'Population at Risk'!X$5","v":0},{"$f":"'Population at Risk'!Y79/'Population at Risk'!Y$5","v":0},{"$f":"'Population at Risk'!Z79/'Population at Risk'!Z$5","v":0},{"$f":"'Population at Risk'!AA79/'Population at Risk'!AA$5","v":0},{"$f":"'Population at Risk'!AB79/'Population at Risk'!AB$5","v":0},{"$f":"'Population at Risk'!AC79/'Population at Risk'!AC$5","v":0},{"$f":"'Population at Risk'!AD79/'Population at Risk'!AD$5","v":0},{"$f":"'Population at Risk'!AE79/'Population at Risk'!AE$5","v":0},{"$f":"'Population at Risk'!AF79/'Population at Risk'!AF$5","v":0},{"$f":"'Population at Risk'!AG79/'Population at Risk'!AG$5","v":0},{"$f":"'Population at Risk'!AH79/'Population at Risk'!AH$5","v":0},{"$f":"'Population at Risk'!AI79/'Population at Risk'!AI$5","v":0},{"$f":"'Population at Risk'!AJ79/'Population at Risk'!AJ$5","v":0},{"$f":"'Population at Risk'!AK79/'Population at Risk'!AK$5","v":0},{"$f":"'Population at Risk'!AL79/'Population at Risk'!AL$5","v":0},{"$f":"'Population at Risk'!AM79/'Population at Risk'!AM$5","v":0},{"$f":"'Population at Risk'!AN79/'Population at Risk'!AN$5","v":0},{"$f":"'Population at Risk'!AO79/'Population at Risk'!AO$5","v":0},{"$f":"'Population at Risk'!AP79/'Population at Risk'!AP$5","v":0},{"$f":"'Population at Risk'!AQ79/'Population at Risk'!AQ$5","v":0},{"$f":"'Population at Risk'!AR79/'Population at Risk'!AR$5","v":0},{"$f":"'Population at Risk'!AS79/'Population at Risk'!AS$5","v":0},{"$f":"'Population at Risk'!AT79/'Population at Risk'!AT$5","v":0},{"$f":"'Population at Risk'!AU79/'Population at Risk'!AU$5","v":0},{"$f":"'Population at Risk'!AV79/'Population at Risk'!AV$5","v":0},{"$f":"'Population at Risk'!AW79/'Population at Risk'!AW$5","v":0},{"$f":"'Population at Risk'!AX79/'Population at Risk'!AX$5","v":0},{"$f":"'Population at Risk'!AY79/'Population at Risk'!AY$5","v":0},{"$f":"'Population at Risk'!AZ79/'Population at Risk'!AZ$5","v":0},{"$f":"'Population at Risk'!BA79/'Population at Risk'!BA$5","v":0},{"$f":"'Population at Risk'!BB79/'Population at Risk'!BB$5","v":0},{"$f":"'Population at Risk'!BC79/'Population at Risk'!BC$5","v":0},77]
[null,"Male 5-9",{"$f":"'Population at Risk'!C80/'Population at Risk'!C$5","v":0},{"$f":"'Population at Risk'!D80/'Population at Risk'!D$5","v":0},{"$f":"'Population at Risk'!E80/'Population at Risk'!E$5","v":0},{"$f":"'Population at Risk'!F80/'Population at Risk'!F$5","v":0},{"$f":"'Population at Risk'!G80/'Population at Risk'!G$5","v":0},{"$f":"'Population at Risk'!H80/'Population at Risk'!H$5","v":0},{"$f":"'Population at Risk'!I80/'Population at Risk'!I$5","v":0},{"$f":"'Population at Risk'!J80/'Population at Risk'!J$5","v":0},{"$f":"'Population at Risk'!K80/'Population at Risk'!K$5","v":0},{"$f":"'Population at Risk'!L80/'Population at Risk'!L$5","v":0},{"$f":"'Population at Risk'!M80/'Population at Risk'!M$5","v":0},{"$f":"'Population at Risk'!N80/'Population at Risk'!N$5","v":0},{"$f":"'Population at Risk'!O80/'Population at Risk'!O$5","v":0},{"$f":"'Population at Risk'!P80/'Population at Risk'!P$5","v":0},{"$f":"'Population at Risk'!Q80/'Population at Risk'!Q$5","v":0},{"$f":"'Population at Risk'!R80/'Population at Risk'!R$5","v":0},{"$f":"'Population at Risk'!S80/'Population at Risk'!S$5","v":0},{"$f":"'Population at Risk'!T80/'Population at Risk'!T$5","v":0},{"$f":"'Population at Risk'!U80/'Population at Risk'!U$5","v":0},{"$f":"'Population at Risk'!V80/'Population at Risk'!V$5","v":0},{"$f":"'Population at Risk'!W80/'Population at Risk'!W$5","v":0},{"$f":"'Population at Risk'!X80/'Population at Risk'!X$5","v":0},{"$f":"'Population at Risk'!Y80/'Population at Risk'!Y$5","v":0},{"$f":"'Population at Risk'!Z80/'Population at Risk'!Z$5","v":0},{"$f":"'Population at Risk'!AA80/'Population at Risk'!AA$5","v":0},{"$f":"'Population at Risk'!AB80/'Population at Risk'!AB$5","v":0},{"$f":"'Population at Risk'!AC80/'Population at Risk'!AC$5","v":0},{"$f":"'Population at Risk'!AD80/'Population at Risk'!AD$5","v":0},{"$f":"'Population at Risk'!AE80/'Population at Risk'!AE$5","v":0},{"$f":"'Population at Risk'!AF80/'Population at Risk'!AF$5","v":0},{"$f":"'Population at Risk'!AG80/'Population at Risk'!AG$5","v":0},{"$f":"'Population at Risk'!AH80/'Population at Risk'!AH$5","v":0},{"$f":"'Population at Risk'!AI80/'Population at Risk'!AI$5","v":0},{"$f":"'Population at Risk'!AJ80/'Population at Risk'!AJ$5","v":0},{"$f":"'Population at Risk'!AK80/'Population at Risk'!AK$5","v":0},{"$f":"'Population at Risk'!AL80/'Population at Risk'!AL$5","v":0},{"$f":"'Population at Risk'!AM80/'Population at Risk'!AM$5","v":0},{"$f":"'Population at Risk'!AN80/'Population at Risk'!AN$5","v":0},{"$f":"'Population at Risk'!AO80/'Population at Risk'!AO$5","v":0},{"$f":"'Population at Risk'!AP80/'Population at Risk'!AP$5","v":0},{"$f":"'Population at Risk'!AQ80/'Population at Risk'!AQ$5","v":0},{"$f":"'Population at Risk'!AR80/'Population at Risk'!AR$5","v":0},{"$f":"'Population at Risk'!AS80/'Population at Risk'!AS$5","v":0},{"$f":"'Population at Risk'!AT80/'Population at Risk'!AT$5","v":0},{"$f":"'Population at Risk'!AU80/'Population at Risk'!AU$5","v":0},{"$f":"'Population at Risk'!AV80/'Population at Risk'!AV$5","v":0},{"$f":"'Population at Risk'!AW80/'Population at Risk'!AW$5","v":0},{"$f":"'Population at Risk'!AX80/'Population at Risk'!AX$5","v":0},{"$f":"'Population at Risk'!AY80/'Population at Risk'!AY$5","v":0},{"$f":"'Population at Risk'!AZ80/'Population at Risk'!AZ$5","v":0},{"$f":"'Population at Risk'!BA80/'Population at Risk'!BA$5","v":0},{"$f":"'Population at Risk'!BB80/'Population at Risk'!BB$5","v":0},{"$f":"'Population at Risk'!BC80/'Population at Risk'!BC$5","v":0},78]
[null,"Male 10-15",{"$f":"'Population at Risk'!C81/'Population at Risk'!C$5","v":0},{"$f":"'Population at Risk'!D81/'Population at Risk'!D$5","v":0},{"$f":"'Population at Risk'!E81/'Population at Risk'!E$5","v":0},{"$f":"'Population at Risk'!F81/'Population at Risk'!F$5","v":0},{"$f":"'Population at Risk'!G81/'Population at Risk'!G$5","v":0},{"$f":"'Population at Risk'!H81/'Population at Risk'!H$5","v":0},{"$f":"'Population at Risk'!I81/'Population at Risk'!I$5","v":0},{"$f":"'Population at Risk'!J81/'Population at Risk'!J$5","v":0},{"$f":"'Population at Risk'!K81/'Population at Risk'!K$5","v":0},{"$f":"'Population at Risk'!L81/'Population at Risk'!L$5","v":0},{"$f":"'Population at Risk'!M81/'Population at Risk'!M$5","v":0},{"$f":"'Population at Risk'!N81/'Population at Risk'!N$5","v":0},{"$f":"'Population at Risk'!O81/'Population at Risk'!O$5","v":0},{"$f":"'Population at Risk'!P81/'Population at Risk'!P$5","v":0},{"$f":"'Population at Risk'!Q81/'Population at Risk'!Q$5","v":0},{"$f":"'Population at Risk'!R81/'Population at Risk'!R$5","v":0},{"$f":"'Population at Risk'!S81/'Population at Risk'!S$5","v":0},{"$f":"'Population at Risk'!T81/'Population at Risk'!T$5","v":0},{"$f":"'Population at Risk'!U81/'Population at Risk'!U$5","v":0},{"$f":"'Population at Risk'!V81/'Population at Risk'!V$5","v":0},{"$f":"'Population at Risk'!W81/'Population at Risk'!W$5","v":0},{"$f":"'Population at Risk'!X81/'Population at Risk'!X$5","v":0},{"$f":"'Population at Risk'!Y81/'Population at Risk'!Y$5","v":0},{"$f":"'Population at Risk'!Z81/'Population at Risk'!Z$5","v":0},{"$f":"'Population at Risk'!AA81/'Population at Risk'!AA$5","v":0},{"$f":"'Population at Risk'!AB81/'Population at Risk'!AB$5","v":0},{"$f":"'Population at Risk'!AC81/'Population at Risk'!AC$5","v":0},{"$f":"'Population at Risk'!AD81/'Population at Risk'!AD$5","v":0},{"$f":"'Population at Risk'!AE81/'Population at Risk'!AE$5","v":0},{"$f":"'Population at Risk'!AF81/'Population at Risk'!AF$5","v":0},{"$f":"'Population at Risk'!AG81/'Population at Risk'!AG$5","v":0},{"$f":"'Population at Risk'!AH81/'Population at Risk'!AH$5","v":0},{"$f":"'Population at Risk'!AI81/'Population at Risk'!AI$5","v":0},{"$f":"'Population at Risk'!AJ81/'Population at Risk'!AJ$5","v":0},{"$f":"'Population at Risk'!AK81/'Population at Risk'!AK$5","v":0},{"$f":"'Population at Risk'!AL81/'Population at Risk'!AL$5","v":0},{"$f":"'Population at Risk'!AM81/'Population at Risk'!AM$5","v":0},{"$f":"'Population at Risk'!AN81/'Population at Risk'!AN$5","v":0},{"$f":"'Population at Risk'!AO81/'Population at Risk'!AO$5","v":0},{"$f":"'Population at Risk'!AP81/'Population at Risk'!AP$5","v":0},{"$f":"'Population at Risk'!AQ81/'Population at Risk'!AQ$5","v":0},{"$f":"'Population at Risk'!AR81/'Population at Risk'!AR$5","v":0},{"$f":"'Population at Risk'!AS81/'Population at Risk'!AS$5","v":0},{"$f":"'Population at Risk'!AT81/'Population at Risk'!AT$5","v":0},{"$f":"'Population at Risk'!AU81/'Population at Risk'!AU$5","v":0},{"$f":"'Population at Risk'!AV81/'Population at Risk'!AV$5","v":0},{"$f":"'Population at Risk'!AW81/'Population at Risk'!AW$5","v":0},{"$f":"'Population at Risk'!AX81/'Population at Risk'!AX$5","v":0},{"$f":"'Population at Risk'!AY81/'Population at Risk'!AY$5","v":0},{"$f":"'Population at Risk'!AZ81/'Population at Risk'!AZ$5","v":0},{"$f":"'Population at Risk'!BA81/'Population at Risk'!BA$5","v":0},{"$f":"'Population at Risk'!BB81/'Population at Risk'!BB$5","v":0},{"$f":"'Population at Risk'!BC81/'Population at Risk'!BC$5","v":0},79]
[null,"Male 16-19",{"$f":"'Population at Risk'!C82/'Population at Risk'!C$5","v":1.6455234657450331E-3},{"$f":"'Population at Risk'!D82/'Population at Risk'!D$5","v":9.4332423816634011E-4},{"$f":"'Population at Risk'!E82/'Population at Risk'!E$5","v":3.3642896905919877E-4},{"$f":"'Population at Risk'!F82/'Population at Risk'!F$5","v":1.7731943816266156E-3},{"$f":"'Population at Risk'!G82/'Population at Risk'!G$5","v":1.6400690991930169E-3},{"$f":"'Population at Risk'!H82/'Population at Risk'!H$5","v":5.7027973996908385E-3},{"$f":"'Population at Risk'!I82/'Population at Risk'!I$5","v":1.3473982200114989E-3},{"$f":"'Population at Risk'!J82/'Population at Risk'!J$5","v":3.752291248644922E-3},{"$f":"'Population at Risk'!K82/'Population at Risk'!K$5","v":5.1692639342705484E-3},{"$f":"'Population at Risk'!L82/'Population at Risk'!L$5","v":1.4600795393667806E-3},{"$f":"'Population at Risk'!M82/'Population at Risk'!M$5","v":1.4595718752740134E-3},{"$f":"'Population at Risk'!N82/'Population at Risk'!N$5","v":6.4262775475012581E-3},{"$f":"'Population at Risk'!O82/'Population at Risk'!O$5","v":6.1300515094514394E-3},{"$f":"'Population at Risk'!P82/'Population at Risk'!P$5","v":1.1433118350621279E-3},{"$f":"'Population at Risk'!Q82/'Population at Risk'!Q$5","v":8.3393751656533639E-4},{"$f":"'Population at Risk'!R82/'Population at Risk'!R$5","v":1.6698369474699077E-3},{"$f":"'Population at Risk'!S82/'Population at Risk'!S$5","v":2.9739518470958261E-3},{"$f":"'Population at Risk'!T82/'Population at Risk'!T$5","v":2.8297186592062167E-3},{"$f":"'Population at Risk'!U82/'Population at Risk'!U$5","v":0},{"$f":"'Population at Risk'!V82/'Population at Risk'!V$5","v":2.5702647641385056E-3},{"$f":"'Population at Risk'!W82/'Population at Risk'!W$5","v":3.9573167396501387E-3},{"$f":"'Population at Risk'!X82/'Population at Risk'!X$5","v":3.9569152732051322E-3},{"$f":"'Population at Risk'!Y82/'Population at Risk'!Y$5","v":3.2562871141162877E-3},{"$f":"'Population at Risk'!Z82/'Population at Risk'!Z$5","v":8.6047894649301342E-3},{"$f":"'Population at Risk'!AA82/'Population at Risk'!AA$5","v":6.4390258981575112E-3},{"$f":"'Population at Risk'!AB82/'Population at Risk'!AB$5","v":8.1086784468854367E-4},{"$f":"'Population at Risk'!AC82/'Population at Risk'!AC$5","v":6.851786235366736E-3},{"$f":"'Population at Risk'!AD82/'Population at Risk'!AD$5","v":1.5317018204171978E-3},{"$f":"'Population at Risk'!AE82/'Population at Risk'!AE$5","v":1.5065409162340329E-3},{"$f":"'Population at Risk'!AF82/'Population at Risk'!AF$5","v":7.9389934556898765E-3},{"$f":"'Population at Risk'!AG82/'Population at Risk'!AG$5","v":1.5065409162340329E-3},{"$f":"'Population at Risk'!AH82/'Population at Risk'!AH$5","v":5.5944169881818225E-3},{"$f":"'Population at Risk'!AI82/'Population at Risk'!AI$5","v":2.7256535712994602E-3},{"$f":"'Population at Risk'!AJ82/'Population at Risk'!AJ$5","v":2.2589976261287066E-3},{"$f":"'Population at Risk'!AK82/'Population at Risk'!AK$5","v":2.1122894705442237E-4},{"$f":"'Population at Risk'!AL82/'Population at Risk'!AL$5","v":7.4242990523408292E-3},{"$f":"'Population at Risk'!AM82/'Population at Risk'!AM$5","v":7.0966014273100408E-3},{"$f":"'Population at Risk'!AN82/'Population at Risk'!AN$5","v":0},{"$f":"'Population at Risk'!AO82/'Population at Risk'!AO$5","v":0},{"$f":"'Population at Risk'!AP82/'Population at Risk'!AP$5","v":1.0004703260114581E-3},{"$f":"'Population at Risk'!AQ82/'Population at Risk'!AQ$5","v":5.2252089527630623E-3},{"$f":"'Population at Risk'!AR82/'Population at Risk'!AR$5","v":4.0436166067336753E-3},{"$f":"'Population at Risk'!AS82/'Population at Risk'!AS$5","v":1.3475690731639049E-3},{"$f":"'Population at Risk'!AT82/'Population at Risk'!AT$5","v":0},{"$f":"'Population at Risk'!AU82/'Population at Risk'!AU$5","v":0},{"$f":"'Population at Risk'!AV82/'Population at Risk'!AV$5","v":3.0053805328017842E-3},{"$f":"'Population at Risk'!AW82/'Population at Risk'!AW$5","v":3.9941517353453042E-3},{"$f":"'Population at Risk'!AX82/'Population at Risk'!AX$5","v":3.2901296902482029E-3},{"$f":"'Population at Risk'!AY82/'Population at Risk'!AY$5","v":3.672498589921734E-3},{"$f":"'Population at Risk'!AZ82/'Population at Risk'!AZ$5","v":3.3735179401979099E-3},{"$f":"'Population at Risk'!BA82/'Population at Risk'!BA$5","v":7.2775569405851099E-3},{"$f":"'Population at Risk'!BB82/'Population at Risk'!BB$5","v":3.6622369229000512E-3},{"$f":"'Population at Risk'!BC82/'Population at Risk'!BC$5","v":0},80]
[null,"Male 20-24",{"$f":"'Population at Risk'!C83/'Population at Risk'!C$5","v":2.6887067769202667E-3},{"$f":"'Population at Risk'!D83/'Population at Risk'!D$5","v":1.7166071973499066E-3},{"$f":"'Population at Risk'!E83/'Population at Risk'!E$5","v":8.7698338001948443E-4},{"$f":"'Population at Risk'!F83/'Population at Risk'!F$5","v":2.5016020321703292E-3},{"$f":"'Population at Risk'!G83/'Population at Risk'!G$5","v":2.5706701049148972E-3},{"$f":"'Population at Risk'!H83/'Population at Risk'!H$5","v":7.9934869060971185E-3},{"$f":"'Population at Risk'!I83/'Population at Risk'!I$5","v":1.6062204769628605E-3},{"$f":"'Population at Risk'!J83/'Population at Risk'!J$5","v":4.7957958754294601E-3},{"$f":"'Population at Risk'!K83/'Population at Risk'!K$5","v":6.4540225144255094E-3},{"$f":"'Population at Risk'!L83/'Population at Risk'!L$5","v":2.1801867951769275E-3},{"$f":"'Population at Risk'!M83/'Population at Risk'!M$5","v":2.1794287525350067E-3},{"$f":"'Population at Risk'!N83/'Population at Risk'!N$5","v":1.0608022629649815E-2},{"$f":"'Population at Risk'!O83/'Population at Risk'!O$5","v":8.4712094795504466E-3},{"$f":"'Population at Risk'!P83/'Population at Risk'!P$5","v":1.4207330891580854E-3},{"$f":"'Population at Risk'!Q83/'Population at Risk'!Q$5","v":1.1277109599008525E-3},{"$f":"'Population at Risk'!R83/'Population at Risk'!R$5","v":1.9874132994427123E-3},{"$f":"'Population at Risk'!S83/'Population at Risk'!S$5","v":4.0687473857329275E-3},{"$f":"'Population at Risk'!T83/'Population at Risk'!T$5","v":4.1437185962260254E-3},{"$f":"'Population at Risk'!U83/'Population at Risk'!U$5","v":0},{"$f":"'Population at Risk'!V83/'Population at Risk'!V$5","v":3.7734763569125069E-3},{"$f":"'Population at Risk'!W83/'Population at Risk'!W$5","v":5.0997035787307557E-3},{"$f":"'Population at Risk'!X83/'Population at Risk'!X$5","v":5.0991862181045955E-3},{"$f":"'Population at Risk'!Y83/'Population at Risk'!Y$5","v":4.4215804960910125E-3},{"$f":"'Population at Risk'!Z83/'Population at Risk'!Z$5","v":1.3429396298952311E-2},{"$f":"'Population at Risk'!AA83/'Population at Risk'!AA$5","v":9.5970282957225615E-3},{"$f":"'Population at Risk'!AB83/'Population at Risk'!AB$5","v":1.445964745538671E-3},{"$f":"'Population at Risk'!AC83/'Population at Risk'!AC$5","v":1.0514902390860441E-2},{"$f":"'Population at Risk'!AD83/'Population at Risk'!AD$5","v":2.2011701330825377E-3},{"$f":"'Population at Risk'!AE83/'Population at Risk'!AE$5","v":2.0797613624108846E-3},{"$f":"'Population at Risk'!AF83/'Population at Risk'!AF$5","v":1.1303321431744501E-2},{"$f":"'Population at Risk'!AG83/'Population at Risk'!AG$5","v":2.0797613624108846E-3},{"$f":"'Population at Risk'!AH83/'Population at Risk'!AH$5","v":7.7626200467268026E-3},{"$f":"'Population at Risk'!AI83/'Population at Risk'!AI$5","v":3.915166681996895E-3},{"$f":"'Population at Risk'!AJ83/'Population at Risk'!AJ$5","v":3.6122135954038742E-3},{"$f":"'Population at Risk'!AK83/'Population at Risk'!AK$5","v":2.2041281431765813E-4},{"$f":"'Population at Risk'!AL83/'Population at Risk'!AL$5","v":1.0144735639402942E-2},{"$f":"'Population at Risk'!AM83/'Population at Risk'!AM$5","v":9.7402804205607048E-3},{"$f":"'Population at Risk'!AN83/'Population at Risk'!AN$5","v":0},{"$f":"'Population at Risk'!AO83/'Population at Risk'!AO$5","v":0},{"$f":"'Population at Risk'!AP83/'Population at Risk'!AP$5","v":1.8078674312136877E-3},{"$f":"'Population at Risk'!AQ83/'Population at Risk'!AQ$5","v":8.5423359845733203E-3},{"$f":"'Population at Risk'!AR83/'Population at Risk'!AR$5","v":5.9285328853013941E-3},{"$f":"'Population at Risk'!AS83/'Population at Risk'!AS$5","v":1.6064241493648811E-3},{"$f":"'Population at Risk'!AT83/'Population at Risk'!AT$5","v":0},{"$f":"'Population at Risk'!AU83/'Population at Risk'!AU$5","v":0},{"$f":"'Population at Risk'!AV83/'Population at Risk'!AV$5","v":4.6789102958468606E-3},{"$f":"'Population at Risk'!AW83/'Population at Risk'!AW$5","v":5.6538469387244841E-3},{"$f":"'Population at Risk'!AX83/'Population at Risk'!AX$5","v":4.299601299756174E-3},{"$f":"'Population at Risk'!AY83/'Population at Risk'!AY$5","v":5.3238686122387838E-3},{"$f":"'Population at Risk'!AZ83/'Population at Risk'!AZ$5","v":5.5024784090909693E-3},{"$f":"'Population at Risk'!BA83/'Population at Risk'!BA$5","v":1.0278790196178016E-2},{"$f":"'Population at Risk'!BB83/'Population at Risk'!BB$5","v":4.9211308651469429E-3},{"$f":"'Population at Risk'!BC83/'Population at Risk'!BC$5","v":0},81]
[null,"Male 25-29",{"$f":"'Population at Risk'!C84/'Population at Risk'!C$5","v":3.3848897816585498E-3},{"$f":"'Population at Risk'!D84/'Population at Risk'!D$5","v":1.9691387396487282E-3},{"$f":"'Population at Risk'!E84/'Population at Risk'!E$5","v":7.4562487805535896E-4},{"$f":"'Population at Risk'!F84/'Population at Risk'!F$5","v":1.7327272899297424E-3},{"$f":"'Population at Risk'!G84/'Population at Risk'!G$5","v":1.554840789263043E-3},{"$f":"'Population at Risk'!H84/'Population at Risk'!H$5","v":5.7719758066735903E-3},{"$f":"'Population at Risk'!I84/'Population at Risk'!I$5","v":9.0207168966871542E-4},{"$f":"'Population at Risk'!J84/'Population at Risk'!J$5","v":3.5076353711216033E-3},{"$f":"'Population at Risk'!K84/'Population at Risk'!K$5","v":3.9222923711789686E-3},{"$f":"'Population at Risk'!L84/'Population at Risk'!L$5","v":1.8474475804232734E-3},{"$f":"'Population at Risk'!M84/'Population at Risk'!M$5","v":1.8468052299385478E-3},{"$f":"'Population at Risk'!N84/'Population at Risk'!N$5","v":1.1174643600426502E-2},{"$f":"'Population at Risk'!O84/'Population at Risk'!O$5","v":6.2702601344016579E-3},{"$f":"'Population at Risk'!P84/'Population at Risk'!P$5","v":1.027719645855479E-3},{"$f":"'Population at Risk'!Q84/'Population at Risk'!Q$5","v":7.462793116990937E-4},{"$f":"'Population at Risk'!R84/'Population at Risk'!R$5","v":1.5059265722581379E-3},{"$f":"'Population at Risk'!S84/'Population at Risk'!S$5","v":3.6284132067254718E-3},{"$f":"'Population at Risk'!T84/'Population at Risk'!T$5","v":4.7154122560556632E-3},{"$f":"'Population at Risk'!U84/'Population at Risk'!U$5","v":0},{"$f":"'Population at Risk'!V84/'Population at Risk'!V$5","v":3.194910782514796E-3},{"$f":"'Population at Risk'!W84/'Population at Risk'!W$5","v":4.0610188459161952E-3},{"$f":"'Population at Risk'!X84/'Population at Risk'!X$5","v":4.0606068589799857E-3},{"$f":"'Population at Risk'!Y84/'Population at Risk'!Y$5","v":3.4652503549260074E-3},{"$f":"'Population at Risk'!Z84/'Population at Risk'!Z$5","v":1.284167031556349E-2},{"$f":"'Population at Risk'!AA84/'Population at Risk'!AA$5","v":8.2230622686523865E-3},{"$f":"'Population at Risk'!AB84/'Population at Risk'!AB$5","v":1.6279540010694844E-3},{"$f":"'Population at Risk'!AC84/'Population at Risk'!AC$5","v":9.5812527834075057E-3},{"$f":"'Population at Risk'!AD84/'Population at Risk'!AD$5","v":1.6059424698761946E-3},{"$f":"'Population at Risk'!AE84/'Population at Risk'!AE$5","v":1.645252915228752E-3},{"$f":"'Population at Risk'!AF84/'Population at Risk'!AF$5","v":8.5467264818521824E-3},{"$f":"'Population at Risk'!AG84/'Population at Risk'!AG$5","v":1.645252915228752E-3},{"$f":"'Population at Risk'!AH84/'Population at Risk'!AH$5","v":5.5640994592439617E-3},{"$f":"'Population at Risk'!AI84/'Population at Risk'!AI$5","v":3.8026742656458701E-3},{"$f":"'Population at Risk'!AJ84/'Population at Risk'!AJ$5","v":2.0871173719667394E-3},{"$f":"'Population at Risk'!AK84/'Population at Risk'!AK$5","v":8.2654805369121787E-5},{"$f":"'Population at Risk'!AL84/'Population at Risk'!AL$5","v":6.9379261764666751E-3},{"$f":"'Population at Risk'!AM84/'Population at Risk'!AM$5","v":6.967926786045628E-3},{"$f":"'Population at Risk'!AN84/'Population at Risk'!AN$5","v":0},{"$f":"'Population at Risk'!AO84/'Population at Risk'!AO$5","v":0},{"$f":"'Population at Risk'!AP84/'Population at Risk'!AP$5","v":1.9438962913292807E-3},{"$f":"'Population at Risk'!AQ84/'Population at Risk'!AQ$5","v":7.5736174708588211E-3},{"$f":"'Population at Risk'!AR84/'Population at Risk'!AR$5","v":5.094583800037104E-3},{"$f":"'Population at Risk'!AS84/'Population at Risk'!AS$5","v":9.021860744063432E-4},{"$f":"'Population at Risk'!AT84/'Population at Risk'!AT$5","v":0},{"$f":"'Population at Risk'!AU84/'Population at Risk'!AU$5","v":0},{"$f":"'Population at Risk'!AV84/'Population at Risk'!AV$5","v":3.7131441617562645E-3},{"$f":"'Population at Risk'!AW84/'Population at Risk'!AW$5","v":4.0669334512311939E-3},{"$f":"'Population at Risk'!AX84/'Population at Risk'!AX$5","v":3.6383039259349804E-3},{"$f":"'Population at Risk'!AY84/'Population at Risk'!AY$5","v":4.8371289342605912E-3},{"$f":"'Population at Risk'!AZ84/'Population at Risk'!AZ$5","v":5.5493624234209471E-3},{"$f":"'Population at Risk'!BA84/'Population at Risk'!BA$5","v":7.6115091959039743E-3},{"$f":"'Population at Risk'!BB84/'Population at Risk'!BB$5","v":3.7878775238555217E-3},{"$f":"'Population at Risk'!BC84/'Population at Risk'!BC$5","v":0},82]
[null,"Male 30-34",{"$f":"'Population at Risk'!C85/'Population at Risk'!C$5","v":2.8382006196305248E-3},{"$f":"'Population at Risk'!D85/'Population at Risk'!D$5","v":1.7307773039318042E-3},{"$f":"'Population at Risk'!E85/'Population at Risk'!E$5","v":7.7397563387495447E-4},{"$f":"'Population at Risk'!F85/'Population at Risk'!F$5","v":1.423705862426349E-3},{"$f":"'Population at Risk'!G85/'Population at Risk'!G$5","v":1.2162310173790911E-3},{"$f":"'Population at Risk'!H85/'Population at Risk'!H$5","v":5.0885139512199451E-3},{"$f":"'Population at Risk'!I85/'Population at Risk'!I$5","v":9.934207215339017E-4},{"$f":"'Population at Risk'!J85/'Population at Risk'!J$5","v":3.0777979730419618E-3},{"$f":"'Population at Risk'!K85/'Population at Risk'!K$5","v":4.1150061582022127E-3},{"$f":"'Population at Risk'!L85/'Population at Risk'!L$5","v":1.288743675053332E-3},{"$f":"'Population at Risk'!M85/'Population at Risk'!M$5","v":1.2882955837877771E-3},{"$f":"'Population at Risk'!N85/'Population at Risk'!N$5","v":8.766847465527975E-3},{"$f":"'Population at Risk'!O85/'Population at Risk'!O$5","v":5.4583543759689941E-3},{"$f":"'Population at Risk'!P85/'Population at Risk'!P$5","v":8.4487381929223421E-4},{"$f":"'Population at Risk'!Q85/'Population at Risk'!Q$5","v":7.8181642178000281E-4},{"$f":"'Population at Risk'!R85/'Population at Risk'!R$5","v":1.4137269862015171E-3},{"$f":"'Population at Risk'!S85/'Population at Risk'!S$5","v":3.2858759085122313E-3},{"$f":"'Population at Risk'!T85/'Population at Risk'!T$5","v":4.0734940658759718E-3},{"$f":"'Population at Risk'!U85/'Population at Risk'!U$5","v":0},{"$f":"'Population at Risk'!V85/'Population at Risk'!V$5","v":2.9337882666361824E-3},{"$f":"'Population at Risk'!W85/'Population at Risk'!W$5","v":3.8048136422000568E-3},{"$f":"'Population at Risk'!X85/'Population at Risk'!X$5","v":3.8044276470656406E-3},{"$f":"'Population at Risk'!Y85/'Population at Risk'!Y$5","v":3.109944779347265E-3},{"$f":"'Population at Risk'!Z85/'Population at Risk'!Z$5","v":1.1244650761347017E-2},{"$f":"'Population at Risk'!AA85/'Population at Risk'!AA$5","v":7.4690396652652832E-3},{"$f":"'Population at Risk'!AB85/'Population at Risk'!AB$5","v":1.4289680269127865E-3},{"$f":"'Population at Risk'!AC85/'Population at Risk'!AC$5","v":8.5631559793337576E-3},{"$f":"'Population at Risk'!AD85/'Population at Risk'!AD$5","v":1.5551462360358281E-3},{"$f":"'Population at Risk'!AE85/'Population at Risk'!AE$5","v":1.708637868411769E-3},{"$f":"'Population at Risk'!AF85/'Population at Risk'!AF$5","v":8.0466929793135758E-3},{"$f":"'Population at Risk'!AG85/'Population at Risk'!AG$5","v":1.708637868411769E-3},{"$f":"'Population at Risk'!AH85/'Population at Risk'!AH$5","v":5.3192271101304769E-3},{"$f":"'Population at Risk'!AI85/'Population at Risk'!AI$5","v":3.3570105300542523E-3},{"$f":"'Population at Risk'!AJ85/'Population at Risk'!AJ$5","v":2.2999214961672699E-3},{"$f":"'Population at Risk'!AK85/'Population at Risk'!AK$5","v":6.199110402684135E-5},{"$f":"'Population at Risk'!AL85/'Population at Risk'!AL$5","v":6.2998158017125638E-3},{"$f":"'Population at Risk'!AM85/'Population at Risk'!AM$5","v":6.5702051675919889E-3},{"$f":"'Population at Risk'!AN85/'Population at Risk'!AN$5","v":0},{"$f":"'Population at Risk'!AO85/'Population at Risk'!AO$5","v":0},{"$f":"'Population at Risk'!AP85/'Population at Risk'!AP$5","v":1.36028860115593E-3},{"$f":"'Population at Risk'!AQ85/'Population at Risk'!AQ$5","v":7.1222827087872916E-3},{"$f":"'Population at Risk'!AR85/'Population at Risk'!AR$5","v":4.5451819695823984E-3},{"$f":"'Population at Risk'!AS85/'Population at Risk'!AS$5","v":9.9354668953609932E-4},{"$f":"'Population at Risk'!AT85/'Population at Risk'!AT$5","v":0},{"$f":"'Population at Risk'!AU85/'Population at Risk'!AU$5","v":0},{"$f":"'Population at Risk'!AV85/'Population at Risk'!AV$5","v":3.1117194031619398E-3},{"$f":"'Population at Risk'!AW85/'Population at Risk'!AW$5","v":3.9832684881100306E-3},{"$f":"'Population at Risk'!AX85/'Population at Risk'!AX$5","v":2.7760469261469216E-3},{"$f":"'Population at Risk'!AY85/'Population at Risk'!AY$5","v":4.0779786465904022E-3},{"$f":"'Population at Risk'!AZ85/'Population at Risk'!AZ$5","v":4.3122637725776826E-3},{"$f":"'Population at Risk'!BA85/'Population at Risk'!BA$5","v":7.4423645471061077E-3},{"$f":"'Population at Risk'!BB85/'Population at Risk'!BB$5","v":3.3064625479172333E-3},{"$f":"'Population at Risk'!BC85/'Population at Risk'!BC$5","v":0},83]
[null,"Male 35-39",{"$f":"'Population at Risk'!C86/'Population at Risk'!C$5","v":4.0074422424184854E-3},{"$f":"'Population at Risk'!D86/'Population at Risk'!D$5","v":2.3243412684835316E-3},{"$f":"'Population at Risk'!E86/'Population at Risk'!E$5","v":8.6975757199777225E-4},{"$f":"'Population at Risk'!F86/'Population at Risk'!F$5","v":2.0936484700010138E-3},{"$f":"'Population at Risk'!G86/'Population at Risk'!G$5","v":1.5362358567419464E-3},{"$f":"'Population at Risk'!H86/'Population at Risk'!H$5","v":6.738961102012238E-3},{"$f":"'Population at Risk'!I86/'Population at Risk'!I$5","v":1.5822999131699575E-3},{"$f":"'Population at Risk'!J86/'Population at Risk'!J$5","v":3.9484526504874598E-3},{"$f":"'Population at Risk'!K86/'Population at Risk'!K$5","v":6.0818494632874079E-3},{"$f":"'Population at Risk'!L86/'Population at Risk'!L$5","v":1.6450153072912858E-3},{"$f":"'Population at Risk'!M86/'Population at Risk'!M$5","v":1.6444433417366377E-3},{"$f":"'Population at Risk'!N86/'Population at Risk'!N$5","v":9.3512406418324728E-3},{"$f":"'Population at Risk'!O86/'Population at Risk'!O$5","v":6.8717777092775359E-3},{"$f":"'Population at Risk'!P86/'Population at Risk'!P$5","v":1.270835078203673E-3},{"$f":"'Population at Risk'!Q86/'Population at Risk'!Q$5","v":9.058864963599159E-4},{"$f":"'Population at Risk'!R86/'Population at Risk'!R$5","v":1.8788620773974179E-3},{"$f":"'Population at Risk'!S86/'Population at Risk'!S$5","v":4.5012328654435319E-3},{"$f":"'Population at Risk'!T86/'Population at Risk'!T$5","v":5.4902023634955249E-3},{"$f":"'Population at Risk'!U86/'Population at Risk'!U$5","v":0},{"$f":"'Population at Risk'!V86/'Population at Risk'!V$5","v":4.1033059963130275E-3},{"$f":"'Population at Risk'!W86/'Population at Risk'!W$5","v":5.2345632409066152E-3},{"$f":"'Population at Risk'!X86/'Population at Risk'!X$5","v":5.2340321988814872E-3},{"$f":"'Population at Risk'!Y86/'Population at Risk'!Y$5","v":4.1702800775016034E-3},{"$f":"'Population at Risk'!Z86/'Population at Risk'!Z$5","v":1.3593290558517927E-2},{"$f":"'Population at Risk'!AA86/'Population at Risk'!AA$5","v":9.4803141950817061E-3},{"$f":"'Population at Risk'!AB86/'Population at Risk'!AB$5","v":1.9519184736099854E-3},{"$f":"'Population at Risk'!AC86/'Population at Risk'!AC$5","v":1.0405528042169749E-2},{"$f":"'Population at Risk'!AD86/'Population at Risk'!AD$5","v":1.7720371374512621E-3},{"$f":"'Population at Risk'!AE86/'Population at Risk'!AE$5","v":1.8869636965641243E-3},{"$f":"'Population at Risk'!AF86/'Population at Risk'!AF$5","v":9.4743625985143371E-3},{"$f":"'Population at Risk'!AG86/'Population at Risk'!AG$5","v":1.8869636965641243E-3},{"$f":"'Population at Risk'!AH86/'Population at Risk'!AH$5","v":7.633031190575337E-3},{"$f":"'Population at Risk'!AI86/'Population at Risk'!AI$5","v":4.556468682491664E-3},{"$f":"'Population at Risk'!AJ86/'Population at Risk'!AJ$5","v":2.887000645120489E-3},{"$f":"'Population at Risk'!AK86/'Population at Risk'!AK$5","v":2.6541376390751335E-4},{"$f":"'Population at Risk'!AL86/'Population at Risk'!AL$5","v":8.3367249796717433E-3},{"$f":"'Population at Risk'!AM86/'Population at Risk'!AM$5","v":9.17105260193226E-3},{"$f":"'Population at Risk'!AN86/'Population at Risk'!AN$5","v":0},{"$f":"'Population at Risk'!AO86/'Population at Risk'!AO$5","v":0},{"$f":"'Population at Risk'!AP86/'Population at Risk'!AP$5","v":1.9835010545721996E-3},{"$f":"'Population at Risk'!AQ86/'Population at Risk'!AQ$5","v":8.7555368540446731E-3},{"$f":"'Population at Risk'!AR86/'Population at Risk'!AR$5","v":5.8460922529749004E-3},{"$f":"'Population at Risk'!AS86/'Population at Risk'!AS$5","v":1.5825005523901982E-3},{"$f":"'Population at Risk'!AT86/'Population at Risk'!AT$5","v":0},{"$f":"'Population at Risk'!AU86/'Population at Risk'!AU$5","v":0},{"$f":"'Population at Risk'!AV86/'Population at Risk'!AV$5","v":4.5109672930233316E-3},{"$f":"'Population at Risk'!AW86/'Population at Risk'!AW$5","v":5.9850639178049021E-3},{"$f":"'Population at Risk'!AX86/'Population at Risk'!AX$5","v":3.0649039198220123E-3},{"$f":"'Population at Risk'!AY86/'Population at Risk'!AY$5","v":5.1126565237477857E-3},{"$f":"'Population at Risk'!AZ86/'Population at Risk'!AZ$5","v":4.9602467510515783E-3},{"$f":"'Population at Risk'!BA86/'Population at Risk'!BA$5","v":9.2173491417099889E-3},{"$f":"'Population at Risk'!BB86/'Population at Risk'!BB$5","v":4.7786680116035296E-3},{"$f":"'Population at Risk'!BC86/'Population at Risk'!BC$5","v":0},84]
[null,"Male 40-44",{"$f":"'Population at Risk'!C87/'Population at Risk'!C$5","v":3.2748468688044521E-3},{"$f":"'Population at Risk'!D87/'Population at Risk'!D$5","v":1.9958283689689182E-3},{"$f":"'Population at Risk'!E87/'Population at Risk'!E$5","v":8.907662090025494E-4},{"$f":"'Population at Risk'!F87/'Population at Risk'!F$5","v":2.0527568983213064E-3},{"$f":"'Population at Risk'!G87/'Population at Risk'!G$5","v":1.7103425871727005E-3},{"$f":"'Population at Risk'!H87/'Population at Risk'!H$5","v":7.3587420132474055E-3},{"$f":"'Population at Risk'!I87/'Population at Risk'!I$5","v":1.6076844037555718E-3},{"$f":"'Population at Risk'!J87/'Population at Risk'!J$5","v":3.804216937227644E-3},{"$f":"'Population at Risk'!K87/'Population at Risk'!K$5","v":5.9138425720363739E-3},{"$f":"'Population at Risk'!L87/'Population at Risk'!L$5","v":1.8823832878735855E-3},{"$f":"'Population at Risk'!M87/'Population at Risk'!M$5","v":1.8817287903764883E-3},{"$f":"'Population at Risk'!N87/'Population at Risk'!N$5","v":7.9055498185354768E-3},{"$f":"'Population at Risk'!O87/'Population at Risk'!O$5","v":8.1403020754416376E-3},{"$f":"'Population at Risk'!P87/'Population at Risk'!P$5","v":1.270835078203673E-3},{"$f":"'Population at Risk'!Q87/'Population at Risk'!Q$5","v":1.400964000184521E-3},{"$f":"'Population at Risk'!R87/'Population at Risk'!R$5","v":1.9244102489706886E-3},{"$f":"'Population at Risk'!S87/'Population at Risk'!S$5","v":4.3768934809616826E-3},{"$f":"'Population at Risk'!T87/'Population at Risk'!T$5","v":4.9663280921696156E-3},{"$f":"'Population at Risk'!U87/'Population at Risk'!U$5","v":0},{"$f":"'Population at Risk'!V87/'Population at Risk'!V$5","v":4.2911133442718758E-3},{"$f":"'Population at Risk'!W87/'Population at Risk'!W$5","v":5.1827847067290175E-3},{"$f":"'Population at Risk'!X87/'Population at Risk'!X$5","v":5.1822589175925049E-3},{"$f":"'Population at Risk'!Y87/'Population at Risk'!Y$5","v":4.197517030112282E-3},{"$f":"'Population at Risk'!Z87/'Population at Risk'!Z$5","v":1.2214261081566835E-2},{"$f":"'Population at Risk'!AA87/'Population at Risk'!AA$5","v":8.8846896794488386E-3},{"$f":"'Population at Risk'!AB87/'Population at Risk'!AB$5","v":1.6901881400381079E-3},{"$f":"'Population at Risk'!AC87/'Population at Risk'!AC$5","v":9.4450537139772577E-3},{"$f":"'Population at Risk'!AD87/'Population at Risk'!AD$5","v":2.0268398630978487E-3},{"$f":"'Population at Risk'!AE87/'Population at Risk'!AE$5","v":2.176951623958178E-3},{"$f":"'Population at Risk'!AF87/'Population at Risk'!AF$5","v":9.7365892408318219E-3},{"$f":"'Population at Risk'!AG87/'Population at Risk'!AG$5","v":2.176951623958178E-3},{"$f":"'Population at Risk'!AH87/'Population at Risk'!AH$5","v":7.7367207274160656E-3},{"$f":"'Population at Risk'!AI87/'Population at Risk'!AI$5","v":4.3757893833697515E-3},{"$f":"'Population at Risk'!AJ87/'Population at Risk'!AJ$5","v":3.2387780346519774E-3},{"$f":"'Population at Risk'!AK87/'Population at Risk'!AK$5","v":3.0624665066251544E-4},{"$f":"'Population at Risk'!AL87/'Population at Risk'!AL$5","v":8.9812550178400077E-3},{"$f":"'Population at Risk'!AM87/'Population at Risk'!AM$5","v":9.2461777965290592E-3},{"$f":"'Population at Risk'!AN87/'Population at Risk'!AN$5","v":0},{"$f":"'Population at Risk'!AO87/'Population at Risk'!AO$5","v":0},{"$f":"'Population at Risk'!AP87/'Population at Risk'!AP$5","v":1.6388271008268666E-3},{"$f":"'Population at Risk'!AQ87/'Population at Risk'!AQ$5","v":7.657016081052734E-3},{"$f":"'Population at Risk'!AR87/'Population at Risk'!AR$5","v":5.6048682790390868E-3},{"$f":"'Population at Risk'!AS87/'Population at Risk'!AS$5","v":1.6078882617868323E-3},{"$f":"'Population at Risk'!AT87/'Population at Risk'!AT$5","v":0},{"$f":"'Population at Risk'!AU87/'Population at Risk'!AU$5","v":0},{"$f":"'Population at Risk'!AV87/'Population at Risk'!AV$5","v":4.4024560522976843E-3},{"$f":"'Population at Risk'!AW87/'Population at Risk'!AW$5","v":6.118132544577725E-3},{"$f":"'Population at Risk'!AX87/'Population at Risk'!AX$5","v":2.9194508524406286E-3},{"$f":"'Population at Risk'!AY87/'Population at Risk'!AY$5","v":4.7295406922314709E-3},{"$f":"'Population at Risk'!AZ87/'Population at Risk'!AZ$5","v":4.2614536318728701E-3},{"$f":"'Population at Risk'!BA87/'Population at Risk'!BA$5","v":8.465306010901015E-3},{"$f":"'Population at Risk'!BB87/'Population at Risk'!BB$5","v":4.9058779239494555E-3},{"$f":"'Population at Risk'!BC87/'Population at Risk'!BC$5","v":0},85]
[null,"Male 45-49",{"$f":"'Population at Risk'!C88/'Population at Risk'!C$5","v":4.9497654741997559E-3},{"$f":"'Population at Risk'!D88/'Population at Risk'!D$5","v":2.9886856939891227E-3},{"$f":"'Population at Risk'!E88/'Population at Risk'!E$5","v":1.2942338114382375E-3},{"$f":"'Population at Risk'!F88/'Population at Risk'!F$5","v":3.6920419946964516E-3},{"$f":"'Population at Risk'!G88/'Population at Risk'!G$5","v":3.3883303107420468E-3},{"$f":"'Population at Risk'!H88/'Population at Risk'!H$5","v":1.3583486292505267E-2},{"$f":"'Population at Risk'!I88/'Population at Risk'!I$5","v":3.47512797760984E-3},{"$f":"'Population at Risk'!J88/'Population at Risk'!J$5","v":7.6397514903966488E-3},{"$f":"'Population at Risk'!K88/'Population at Risk'!K$5","v":1.1636947908711281E-2},{"$f":"'Population at Risk'!L88/'Population at Risk'!L$5","v":3.6526055729323914E-3},{"$f":"'Population at Risk'!M88/'Population at Risk'!M$5","v":3.6513355758915293E-3},{"$f":"'Population at Risk'!N88/'Population at Risk'!N$5","v":1.6164812962765712E-2},{"$f":"'Population at Risk'!O88/'Population at Risk'!O$5","v":1.51214625778154E-2},{"$f":"'Population at Risk'!P88/'Population at Risk'!P$5","v":2.8173777360898902E-3},{"$f":"'Population at Risk'!Q88/'Population at Risk'!Q$5","v":1.6137128325355641E-3},{"$f":"'Population at Risk'!R88/'Population at Risk'!R$5","v":3.39613629101637E-3},{"$f":"'Population at Risk'!S88/'Population at Risk'!S$5","v":7.9390522604407803E-3},{"$f":"'Population at Risk'!T88/'Population at Risk'!T$5","v":7.8719269485997157E-3},{"$f":"'Population at Risk'!U88/'Population at Risk'!U$5","v":0},{"$f":"'Population at Risk'!V88/'Population at Risk'!V$5","v":7.8931665110845844E-3},{"$f":"'Population at Risk'!W88/'Population at Risk'!W$5","v":1.0588492682452339E-2},{"$f":"'Population at Risk'!X88/'Population at Risk'!X$5","v":1.0587418488801724E-2},{"$f":"'Population at Risk'!Y88/'Population at Risk'!Y$5","v":8.0443884015669095E-3},{"$f":"'Population at Risk'!Z88/'Population at Risk'!Z$5","v":2.1727207823045436E-2},{"$f":"'Population at Risk'!AA88/'Population at Risk'!AA$5","v":1.6579927265091891E-2},{"$f":"'Population at Risk'!AB88/'Population at Risk'!AB$5","v":2.5653501387482439E-3},{"$f":"'Population at Risk'!AC88/'Population at Risk'!AC$5","v":1.7552634183395494E-2},{"$f":"'Population at Risk'!AD88/'Population at Risk'!AD$5","v":3.4825777693182698E-3},{"$f":"'Population at Risk'!AE88/'Population at Risk'!AE$5","v":3.5612168177976814E-3},{"$f":"'Population at Risk'!AF88/'Population at Risk'!AF$5","v":2.0773699542388512E-2},{"$f":"'Population at Risk'!AG88/'Population at Risk'!AG$5","v":3.5612168177976814E-3},{"$f":"'Population at Risk'!AH88/'Population at Risk'!AH$5","v":1.4576493645193965E-2},{"$f":"'Population at Risk'!AI88/'Population at Risk'!AI$5","v":7.2816336963700918E-3},{"$f":"'Population at Risk'!AJ88/'Population at Risk'!AJ$5","v":6.1087375605564072E-3},{"$f":"'Population at Risk'!AK88/'Population at Risk'!AK$5","v":6.4884022214760611E-4},{"$f":"'Population at Risk'!AL88/'Population at Risk'!AL$5","v":1.6924650555016737E-2},{"$f":"'Population at Risk'!AM88/'Population at Risk'!AM$5","v":1.7833255486137067E-2},{"$f":"'Population at Risk'!AN88/'Population at Risk'!AN$5","v":0},{"$f":"'Population at Risk'!AO88/'Population at Risk'!AO$5","v":0},{"$f":"'Population at Risk'!AP88/'Population at Risk'!AP$5","v":2.723885100150899E-3},{"$f":"'Population at Risk'!AQ88/'Population at Risk'!AQ$5","v":1.6068590120175353E-2},{"$f":"'Population at Risk'!AR88/'Population at Risk'!AR$5","v":1.0363671354172554E-2},{"$f":"'Population at Risk'!AS88/'Population at Risk'!AS$5","v":3.4755686317246895E-3},{"$f":"'Population at Risk'!AT88/'Population at Risk'!AT$5","v":0},{"$f":"'Population at Risk'!AU88/'Population at Risk'!AU$5","v":0},{"$f":"'Population at Risk'!AV88/'Population at Risk'!AV$5","v":7.5791588307137624E-3},{"$f":"'Population at Risk'!AW88/'Population at Risk'!AW$5","v":1.1094853141373751E-2},{"$f":"'Population at Risk'!AX88/'Population at Risk'!AX$5","v":6.0109936064024353E-3},{"$f":"'Population at Risk'!AY88/'Population at Risk'!AY$5","v":9.4744649173148787E-3},{"$f":"'Population at Risk'!AZ88/'Population at Risk'!AZ$5","v":8.338797345934559E-3},{"$f":"'Population at Risk'!BA88/'Population at Risk'!BA$5","v":1.6546249990480485E-2},{"$f":"'Population at Risk'!BB88/'Population at Risk'!BB$5","v":9.2483347828373648E-3},{"$f":"'Population at Risk'!BC88/'Population at Risk'!BC$5","v":0},86]
[null,"Male 50-54",{"$f":"'Population at Risk'!C89/'Population at Risk'!C$5","v":4.8627887645892173E-3},{"$f":"'Population at Risk'!D89/'Population at Risk'!D$5","v":2.8310004365148501E-3},{"$f":"'Population at Risk'!E89/'Population at Risk'!E$5","v":1.0751042772264724E-3},{"$f":"'Population at Risk'!F89/'Population at Risk'!F$5","v":3.8919720666114222E-3},{"$f":"'Population at Risk'!G89/'Population at Risk'!G$5","v":4.3898072498776272E-3},{"$f":"'Population at Risk'!H89/'Population at Risk'!H$5","v":1.4623731080721543E-2},{"$f":"'Population at Risk'!I89/'Population at Risk'!I$5","v":3.5854495007085659E-3},{"$f":"'Population at Risk'!J89/'Population at Risk'!J$5","v":8.4331102990147632E-3},{"$f":"'Population at Risk'!K89/'Population at Risk'!K$5","v":1.2430998471893932E-2},{"$f":"'Population at Risk'!L89/'Population at Risk'!L$5","v":3.9314991019001357E-3},{"$f":"'Population at Risk'!M89/'Population at Risk'!M$5","v":3.9301321346418682E-3},{"$f":"'Population at Risk'!N89/'Population at Risk'!N$5","v":1.6552529878846808E-2},{"$f":"'Population at Risk'!O89/'Population at Risk'!O$5","v":1.5983858490456436E-2},{"$f":"'Population at Risk'!P89/'Population at Risk'!P$5","v":2.878294011464807E-3},{"$f":"'Population at Risk'!Q89/'Population at Risk'!Q$5","v":2.4549035643892094E-3},{"$f":"'Population at Risk'!R89/'Population at Risk'!R$5","v":4.472507355928663E-3},{"$f":"'Population at Risk'!S89/'Population at Risk'!S$5","v":7.8299367558795196E-3},{"$f":"'Population at Risk'!T89/'Population at Risk'!T$5","v":8.1622149271814836E-3},{"$f":"'Population at Risk'!U89/'Population at Risk'!U$5","v":0},{"$f":"'Population at Risk'!V89/'Population at Risk'!V$5","v":7.958092675100557E-3},{"$f":"'Population at Risk'!W89/'Population at Risk'!W$5","v":9.800885636622866E-3},{"$f":"'Population at Risk'!X89/'Population at Risk'!X$5","v":9.7998913450426592E-3},{"$f":"'Population at Risk'!Y89/'Population at Risk'!Y$5","v":8.4784203938035058E-3},{"$f":"'Population at Risk'!Z89/'Population at Risk'!Z$5","v":2.2252385212899496E-2},{"$f":"'Population at Risk'!AA89/'Population at Risk'!AA$5","v":1.7102432020828274E-2},{"$f":"'Population at Risk'!AB89/'Population at Risk'!AB$5","v":2.3941265346397547E-3},{"$f":"'Population at Risk'!AC89/'Population at Risk'!AC$5","v":1.8485744708839999E-2},{"$f":"'Population at Risk'!AD89/'Population at Risk'!AD$5","v":3.8459361544639433E-3},{"$f":"'Population at Risk'!AE89/'Population at Risk'!AE$5","v":3.6743769783632143E-3},{"$f":"'Population at Risk'!AF89/'Population at Risk'!AF$5","v":2.3876747685124537E-2},{"$f":"'Population at Risk'!AG89/'Population at Risk'!AG$5","v":3.6743769783632143E-3},{"$f":"'Population at Risk'!AH89/'Population at Risk'!AH$5","v":1.431335389571961E-2},{"$f":"'Population at Risk'!AI89/'Population at Risk'!AI$5","v":7.4707923649688871E-3},{"$f":"'Population at Risk'!AJ89/'Population at Risk'!AJ$5","v":6.0296600516818906E-3},{"$f":"'Population at Risk'!AK89/'Population at Risk'!AK$5","v":4.1592321932538853E-4},{"$f":"'Population at Risk'!AL89/'Population at Risk'!AL$5","v":1.8603371694754477E-2},{"$f":"'Population at Risk'!AM89/'Population at Risk'!AM$5","v":1.7823837342231003E-2},{"$f":"'Population at Risk'!AN89/'Population at Risk'!AN$5","v":0},{"$f":"'Population at Risk'!AO89/'Population at Risk'!AO$5","v":0},{"$f":"'Population at Risk'!AP89/'Population at Risk'!AP$5","v":3.1478360885012335E-3},{"$f":"'Population at Risk'!AQ89/'Population at Risk'!AQ$5","v":1.5953371327256279E-2},{"$f":"'Population at Risk'!AR89/'Population at Risk'!AR$5","v":1.0665239805417221E-2},{"$f":"'Population at Risk'!AS89/'Population at Risk'!AS$5","v":3.5859041438429337E-3},{"$f":"'Population at Risk'!AT89/'Population at Risk'!AT$5","v":0},{"$f":"'Population at Risk'!AU89/'Population at Risk'!AU$5","v":0},{"$f":"'Population at Risk'!AV89/'Population at Risk'!AV$5","v":7.9833806350184961E-3},{"$f":"'Population at Risk'!AW89/'Population at Risk'!AW$5","v":1.0567465630877532E-2},{"$f":"'Population at Risk'!AX89/'Population at Risk'!AX$5","v":6.8914771769177209E-3},{"$f":"'Population at Risk'!AY89/'Population at Risk'!AY$5","v":9.2729225979058874E-3},{"$f":"'Population at Risk'!AZ89/'Population at Risk'!AZ$5","v":8.7016894526557864E-3},{"$f":"'Population at Risk'!BA89/'Population at Risk'!BA$5","v":2.1103146948922406E-2},{"$f":"'Population at Risk'!BB89/'Population at Risk'!BB$5","v":8.9508737225706663E-3},{"$f":"'Population at Risk'!BC89/'Population at Risk'!BC$5","v":0},87]
[null,"Male 55-59",{"$f":"'Population at Risk'!C90/'Population at Risk'!C$5","v":5.5947462082736607E-3},{"$f":"'Population at Risk'!D90/'Population at Risk'!D$5","v":3.4350206940003624E-3},{"$f":"'Population at Risk'!E90/'Population at Risk'!E$5","v":1.5691198320952069E-3},{"$f":"'Population at Risk'!F90/'Population at Risk'!F$5","v":3.8932172078944027E-3},{"$f":"'Population at Risk'!G90/'Population at Risk'!G$5","v":4.4761341367755133E-3},{"$f":"'Population at Risk'!H90/'Population at Risk'!H$5","v":1.7932347436989571E-2},{"$f":"'Population at Risk'!I90/'Population at Risk'!I$5","v":3.4203478370265824E-3},{"$f":"'Population at Risk'!J90/'Population at Risk'!J$5","v":1.0037898970867884E-2},{"$f":"'Population at Risk'!K90/'Population at Risk'!K$5","v":1.475460935192985E-2},{"$f":"'Population at Risk'!L90/'Population at Risk'!L$5","v":4.4061586591118635E-3},{"$f":"'Population at Risk'!M90/'Population at Risk'!M$5","v":4.4046266545340607E-3},{"$f":"'Population at Risk'!N90/'Population at Risk'!N$5","v":2.0089029921820711E-2},{"$f":"'Population at Risk'!O90/'Population at Risk'!O$5","v":1.8800296108888483E-2},{"$f":"'Population at Risk'!P90/'Population at Risk'!P$5","v":3.3170593282575967E-3},{"$f":"'Population at Risk'!Q90/'Population at Risk'!Q$5","v":2.4207514903935045E-3},{"$f":"'Population at Risk'!R90/'Population at Risk'!R$5","v":4.5094659934163152E-3},{"$f":"'Population at Risk'!S90/'Population at Risk'!S$5","v":8.5899596842227404E-3},{"$f":"'Population at Risk'!T90/'Population at Risk'!T$5","v":8.1007421787759326E-3},{"$f":"'Population at Risk'!U90/'Population at Risk'!U$5","v":0},{"$f":"'Population at Risk'!V90/'Population at Risk'!V$5","v":8.4896522581406324E-3},{"$f":"'Population at Risk'!W90/'Population at Risk'!W$5","v":1.2208003058416784E-2},{"$f":"'Population at Risk'!X90/'Population at Risk'!X$5","v":1.2206764566804676E-2},{"$f":"'Population at Risk'!Y90/'Population at Risk'!Y$5","v":9.5691969919344828E-3},{"$f":"'Population at Risk'!Z90/'Population at Risk'!Z$5","v":2.4513877670269291E-2},{"$f":"'Population at Risk'!AA90/'Population at Risk'!AA$5","v":1.9193120908034024E-2},{"$f":"'Population at Risk'!AB90/'Population at Risk'!AB$5","v":2.9159289853322025E-3},{"$f":"'Population at Risk'!AC90/'Population at Risk'!AC$5","v":2.0393706879641857E-2},{"$f":"'Population at Risk'!AD90/'Population at Risk'!AD$5","v":4.4381180474360703E-3},{"$f":"'Population at Risk'!AE90/'Population at Risk'!AE$5","v":4.4752744804549844E-3},{"$f":"'Population at Risk'!AF90/'Population at Risk'!AF$5","v":2.6318331391011269E-2},{"$f":"'Population at Risk'!AG90/'Population at Risk'!AG$5","v":4.4752744804549844E-3},{"$f":"'Population at Risk'!AH90/'Population at Risk'!AH$5","v":1.6732123770774519E-2},{"$f":"'Population at Risk'!AI90/'Population at Risk'!AI$5","v":7.5620408141393036E-3},{"$f":"'Population at Risk'!AJ90/'Population at Risk'!AJ$5","v":6.6954389507092689E-3},{"$f":"'Population at Risk'!AK90/'Population at Risk'!AK$5","v":5.6554961058333719E-4},{"$f":"'Population at Risk'!AL90/'Population at Risk'!AL$5","v":2.2989481664095694E-2},{"$f":"'Population at Risk'!AM90/'Population at Risk'!AM$5","v":2.0080952518088717E-2},{"$f":"'Population at Risk'!AN90/'Population at Risk'!AN$5","v":0},{"$f":"'Population at Risk'!AO90/'Population at Risk'!AO$5","v":0},{"$f":"'Population at Risk'!AP90/'Population at Risk'!AP$5","v":3.1091764389266112E-3},{"$f":"'Population at Risk'!AQ90/'Population at Risk'!AQ$5","v":1.8690829093041376E-2},{"$f":"'Population at Risk'!AR90/'Population at Risk'!AR$5","v":1.2092717409350549E-2},{"$f":"'Population at Risk'!AS90/'Population at Risk'!AS$5","v":3.4207815448952742E-3},{"$f":"'Population at Risk'!AT90/'Population at Risk'!AT$5","v":0},{"$f":"'Population at Risk'!AU90/'Population at Risk'!AU$5","v":0},{"$f":"'Population at Risk'!AV90/'Population at Risk'!AV$5","v":1.0417052290274896E-2},{"$f":"'Population at Risk'!AW90/'Population at Risk'!AW$5","v":1.3143341887572265E-2},{"$f":"'Population at Risk'!AX90/'Population at Risk'!AX$5","v":8.2288473102975646E-3},{"$f":"'Population at Risk'!AY90/'Population at Risk'!AY$5","v":1.1152406877751417E-2},{"$f":"'Population at Risk'!AZ90/'Population at Risk'!AZ$5","v":1.0061293082201118E-2},{"$f":"'Population at Risk'!BA90/'Population at Risk'!BA$5","v":2.1821294426244468E-2},{"$f":"'Population at Risk'!BB90/'Population at Risk'!BB$5","v":9.2492725420828814E-3},{"$f":"'Population at Risk'!BC90/'Population at Risk'!BC$5","v":0},88]
[null,"Male 60-64",{"$f":"'Population at Risk'!C91/'Population at Risk'!C$5","v":5.0372626003318014E-3},{"$f":"'Population at Risk'!D91/'Population at Risk'!D$5","v":2.8024967221212632E-3},{"$f":"'Population at Risk'!E91/'Population at Risk'!E$5","v":8.7077529143744987E-4},{"$f":"'Population at Risk'!F91/'Population at Risk'!F$5","v":3.2890972963245811E-3},{"$f":"'Population at Risk'!G91/'Population at Risk'!G$5","v":4.3500458512325405E-3},{"$f":"'Population at Risk'!H91/'Population at Risk'!H$5","v":1.5327198259189285E-2},{"$f":"'Population at Risk'!I91/'Population at Risk'!I$5","v":2.6737744512796632E-3},{"$f":"'Population at Risk'!J91/'Population at Risk'!J$5","v":7.8305477229743316E-3},{"$f":"'Population at Risk'!K91/'Population at Risk'!K$5","v":1.1479637649982805E-2},{"$f":"'Population at Risk'!L91/'Population at Risk'!L$5","v":3.6472572962314141E-3},{"$f":"'Population at Risk'!M91/'Population at Risk'!M$5","v":3.6459891587659835E-3},{"$f":"'Population at Risk'!N91/'Population at Risk'!N$5","v":1.6196389232919627E-2},{"$f":"'Population at Risk'!O91/'Population at Risk'!O$5","v":1.5542966324199731E-2},{"$f":"'Population at Risk'!P91/'Population at Risk'!P$5","v":3.0678005348047138E-3},{"$f":"'Population at Risk'!Q91/'Population at Risk'!Q$5","v":1.8804051755735257E-3},{"$f":"'Population at Risk'!R91/'Population at Risk'!R$5","v":3.4113058810299585E-3},{"$f":"'Population at Risk'!S91/'Population at Risk'!S$5","v":7.1889961364268356E-3},{"$f":"'Population at Risk'!T91/'Population at Risk'!T$5","v":6.922608762117438E-3},{"$f":"'Population at Risk'!U91/'Population at Risk'!U$5","v":0},{"$f":"'Population at Risk'!V91/'Population at Risk'!V$5","v":7.2751765568385331E-3},{"$f":"'Population at Risk'!W91/'Population at Risk'!W$5","v":1.0209593937789087E-2},{"$f":"'Population at Risk'!X91/'Population at Risk'!X$5","v":1.0208558183096494E-2},{"$f":"'Population at Risk'!Y91/'Population at Risk'!Y$5","v":7.8118428396194558E-3},{"$f":"'Population at Risk'!Z91/'Population at Risk'!Z$5","v":1.9755471262659894E-2},{"$f":"'Population at Risk'!AA91/'Population at Risk'!AA$5","v":1.5584427456534414E-2},{"$f":"'Population at Risk'!AB91/'Population at Risk'!AB$5","v":2.3713196806787172E-3},{"$f":"'Population at Risk'!AC91/'Population at Risk'!AC$5","v":1.6448909593102468E-2},{"$f":"'Population at Risk'!AD91/'Population at Risk'!AD$5","v":3.8321099606375706E-3},{"$f":"'Population at Risk'!AE91/'Population at Risk'!AE$5","v":3.6707307536316164E-3},{"$f":"'Population at Risk'!AF91/'Population at Risk'!AF$5","v":2.2551885743053213E-2},{"$f":"'Population at Risk'!AG91/'Population at Risk'!AG$5","v":3.6707307536316164E-3},{"$f":"'Population at Risk'!AH91/'Population at Risk'!AH$5","v":1.3796023577755775E-2},{"$f":"'Population at Risk'!AI91/'Population at Risk'!AI$5","v":6.3589888664353231E-3},{"$f":"'Population at Risk'!AJ91/'Population at Risk'!AJ$5","v":6.0731862601229054E-3},{"$f":"'Population at Risk'!AK91/'Population at Risk'!AK$5","v":4.1892563746913862E-4},{"$f":"'Population at Risk'!AL91/'Population at Risk'!AL$5","v":1.9466899796210062E-2},{"$f":"'Population at Risk'!AM91/'Population at Risk'!AM$5","v":1.6138279525904187E-2},{"$f":"'Population at Risk'!AN91/'Population at Risk'!AN$5","v":0},{"$f":"'Population at Risk'!AO91/'Population at Risk'!AO$5","v":0},{"$f":"'Population at Risk'!AP91/'Population at Risk'!AP$5","v":2.5887563482908265E-3},{"$f":"'Population at Risk'!AQ91/'Population at Risk'!AQ$5","v":1.3345809907628351E-2},{"$f":"'Population at Risk'!AR91/'Population at Risk'!AR$5","v":9.9495522806836573E-3},{"$f":"'Population at Risk'!AS91/'Population at Risk'!AS$5","v":2.6741134919485905E-3},{"$f":"'Population at Risk'!AT91/'Population at Risk'!AT$5","v":0},{"$f":"'Population at Risk'!AU91/'Population at Risk'!AU$5","v":0},{"$f":"'Population at Risk'!AV91/'Population at Risk'!AV$5","v":9.7013769420880719E-3},{"$f":"'Population at Risk'!AW91/'Population at Risk'!AW$5","v":1.1275473186836072E-2},{"$f":"'Population at Risk'!AX91/'Population at Risk'!AX$5","v":6.4381136987302192E-3},{"$f":"'Population at Risk'!AY91/'Population at Risk'!AY$5","v":9.2095048542127477E-3},{"$f":"'Population at Risk'!AZ91/'Population at Risk'!AZ$5","v":8.1851292514138561E-3},{"$f":"'Population at Risk'!BA91/'Population at Risk'!BA$5","v":1.9447264207614064E-2},{"$f":"'Population at Risk'!BB91/'Population at Risk'!BB$5","v":7.3653716316709073E-3},{"$f":"'Population at Risk'!BC91/'Population at Risk'!BC$5","v":0},89]
[null,"Male 65-69",{"$f":"'Population at Risk'!C92/'Population at Risk'!C$5","v":4.4911106424550097E-3},{"$f":"'Population at Risk'!D92/'Population at Risk'!D$5","v":2.6526906667683533E-3},{"$f":"'Population at Risk'!E92/'Population at Risk'!E$5","v":1.0640256741831229E-3},{"$f":"'Population at Risk'!F92/'Population at Risk'!F$5","v":3.5677542557225588E-3},{"$f":"'Population at Risk'!G92/'Population at Risk'!G$5","v":3.7268337687258778E-3},{"$f":"'Population at Risk'!H92/'Population at Risk'!H$5","v":1.5275744568397023E-2},{"$f":"'Population at Risk'!I92/'Population at Risk'!I$5","v":3.6012599100698475E-3},{"$f":"'Population at Risk'!J92/'Population at Risk'!J$5","v":7.9292210879422995E-3},{"$f":"'Population at Risk'!K92/'Population at Risk'!K$5","v":1.204853572534011E-2},{"$f":"'Population at Risk'!L92/'Population at Risk'!L$5","v":4.3581769767088102E-3},{"$f":"'Population at Risk'!M92/'Population at Risk'!M$5","v":4.356661655179163E-3},{"$f":"'Population at Risk'!N92/'Population at Risk'!N$5","v":1.5966490346210754E-2},{"$f":"'Population at Risk'!O92/'Population at Risk'!O$5","v":1.6798322617358672E-2},{"$f":"'Population at Risk'!P92/'Population at Risk'!P$5","v":2.525406416219669E-3},{"$f":"'Population at Risk'!Q92/'Population at Risk'!Q$5","v":2.2639872745391552E-3},{"$f":"'Population at Risk'!R92/'Population at Risk'!R$5","v":3.2955441785366469E-3},{"$f":"'Population at Risk'!S92/'Population at Risk'!S$5","v":6.9766102825380384E-3},{"$f":"'Population at Risk'!T92/'Population at Risk'!T$5","v":5.8594884069367486E-3},{"$f":"'Population at Risk'!U92/'Population at Risk'!U$5","v":0},{"$f":"'Population at Risk'!V92/'Population at Risk'!V$5","v":7.7994105308358602E-3},{"$f":"'Population at Risk'!W92/'Population at Risk'!W$5","v":1.0226324487389065E-2},{"$f":"'Population at Risk'!X92/'Population at Risk'!X$5","v":1.0225287035396328E-2},{"$f":"'Population at Risk'!Y92/'Population at Risk'!Y$5","v":8.1402989163539916E-3},{"$f":"'Population at Risk'!Z92/'Population at Risk'!Z$5","v":1.8254490044024893E-2},{"$f":"'Population at Risk'!AA92/'Population at Risk'!AA$5","v":1.4850412174570239E-2},{"$f":"'Population at Risk'!AB92/'Population at Risk'!AB$5","v":2.2474891782996646E-3},{"$f":"'Population at Risk'!AC92/'Population at Risk'!AC$5","v":1.5298702656632425E-2},{"$f":"'Population at Risk'!AD92/'Population at Risk'!AD$5","v":3.5552855146791249E-3},{"$f":"'Population at Risk'!AE92/'Population at Risk'!AE$5","v":3.5287823768712541E-3},{"$f":"'Population at Risk'!AF92/'Population at Risk'!AF$5","v":2.3728217023423728E-2},{"$f":"'Population at Risk'!AG92/'Population at Risk'!AG$5","v":3.5287823768712541E-3},{"$f":"'Population at Risk'!AH92/'Population at Risk'!AH$5","v":1.3860236257812159E-2},{"$f":"'Population at Risk'!AI92/'Population at Risk'!AI$5","v":5.8743026419181103E-3},{"$f":"'Population at Risk'!AJ92/'Population at Risk'!AJ$5","v":5.2401441589379101E-3},{"$f":"'Population at Risk'!AK92/'Population at Risk'!AK$5","v":4.1274418834965308E-4},{"$f":"'Population at Risk'!AL92/'Population at Risk'!AL$5","v":1.9099540810254122E-2},{"$f":"'Population at Risk'!AM92/'Population at Risk'!AM$5","v":1.6398818179883156E-2},{"$f":"'Population at Risk'!AN92/'Population at Risk'!AN$5","v":0},{"$f":"'Population at Risk'!AO92/'Population at Risk'!AO$5","v":0},{"$f":"'Population at Risk'!AP92/'Population at Risk'!AP$5","v":2.2281054730099985E-3},{"$f":"'Population at Risk'!AQ92/'Population at Risk'!AQ$5","v":1.2440637672484441E-2},{"$f":"'Population at Risk'!AR92/'Population at Risk'!AR$5","v":9.6431603189553877E-3},{"$f":"'Population at Risk'!AS92/'Population at Risk'!AS$5","v":3.6017165580000065E-3},{"$f":"'Population at Risk'!AT92/'Population at Risk'!AT$5","v":0},{"$f":"'Population at Risk'!AU92/'Population at Risk'!AU$5","v":0},{"$f":"'Population at Risk'!AV92/'Population at Risk'!AV$5","v":8.6593096513330001E-3},{"$f":"'Population at Risk'!AW92/'Population at Risk'!AW$5","v":1.1133875861508687E-2},{"$f":"'Population at Risk'!AX92/'Population at Risk'!AX$5","v":6.2568905369236073E-3},{"$f":"'Population at Risk'!AY92/'Population at Risk'!AY$5","v":9.1461122812851164E-3},{"$f":"'Population at Risk'!AZ92/'Population at Risk'!AZ$5","v":8.0451985009520801E-3},{"$f":"'Population at Risk'!BA92/'Population at Risk'!BA$5","v":1.6762835209414555E-2},{"$f":"'Population at Risk'!BB92/'Population at Risk'!BB$5","v":8.1094166101852681E-3},{"$f":"'Population at Risk'!BC92/'Population at Risk'!BC$5","v":0},90]
[null,"Male 70-74",{"$f":"'Population at Risk'!C93/'Population at Risk'!C$5","v":2.6120712472209595E-3},{"$f":"'Population at Risk'!D93/'Population at Risk'!D$5","v":1.5322400963282909E-3},{"$f":"'Population at Risk'!E93/'Population at Risk'!E$5","v":5.9907327874175818E-4},{"$f":"'Population at Risk'!F93/'Population at Risk'!F$5","v":2.3494967049880263E-3},{"$f":"'Population at Risk'!G93/'Population at Risk'!G$5","v":3.3999185258551867E-3},{"$f":"'Population at Risk'!H93/'Population at Risk'!H$5","v":1.1328854380299598E-2},{"$f":"'Population at Risk'!I93/'Population at Risk'!I$5","v":2.5028756374985434E-3},{"$f":"'Population at Risk'!J93/'Population at Risk'!J$5","v":5.6911344905392312E-3},{"$f":"'Population at Risk'!K93/'Population at Risk'!K$5","v":8.7593212246537891E-3},{"$f":"'Population at Risk'!L93/'Population at Risk'!L$5","v":2.6548463523886554E-3},{"$f":"'Population at Risk'!M93/'Population at Risk'!M$5","v":2.6539232724271992E-3},{"$f":"'Population at Risk'!N93/'Population at Risk'!N$5","v":1.13582756527922E-2},{"$f":"'Population at Risk'!O93/'Population at Risk'!O$5","v":1.1522816340832808E-2},{"$f":"'Population at Risk'!P93/'Population at Risk'!P$5","v":1.7498879104514242E-3},{"$f":"'Population at Risk'!Q93/'Population at Risk'!Q$5","v":1.4346057977277814E-3},{"$f":"'Population at Risk'!R93/'Population at Risk'!R$5","v":2.1081789965638844E-3},{"$f":"'Population at Risk'!S93/'Population at Risk'!S$5","v":5.130689384173508E-3},{"$f":"'Population at Risk'!T93/'Population at Risk'!T$5","v":3.9865925691030847E-3},{"$f":"'Population at Risk'!U93/'Population at Risk'!U$5","v":0},{"$f":"'Population at Risk'!V93/'Population at Risk'!V$5","v":4.9170196824834776E-3},{"$f":"'Population at Risk'!W93/'Population at Risk'!W$5","v":7.8179699775319175E-3},{"$f":"'Population at Risk'!X93/'Population at Risk'!X$5","v":7.8171768510726172E-3},{"$f":"'Population at Risk'!Y93/'Population at Risk'!Y$5","v":5.4805335267541517E-3},{"$f":"'Population at Risk'!Z93/'Population at Risk'!Z$5","v":1.3226719574222104E-2},{"$f":"'Population at Risk'!AA93/'Population at Risk'!AA$5","v":1.0701320794224657E-2},{"$f":"'Population at Risk'!AB93/'Population at Risk'!AB$5","v":1.3139770937703101E-3},{"$f":"'Population at Risk'!AC93/'Population at Risk'!AC$5","v":1.0997030385101258E-2},{"$f":"'Population at Risk'!AD93/'Population at Risk'!AD$5","v":2.5817411276439404E-3},{"$f":"'Population at Risk'!AE93/'Population at Risk'!AE$5","v":2.2858861209781767E-3},{"$f":"'Population at Risk'!AF93/'Population at Risk'!AF$5","v":1.6352574922073201E-2},{"$f":"'Population at Risk'!AG93/'Population at Risk'!AG$5","v":2.2858861209781767E-3},{"$f":"'Population at Risk'!AH93/'Population at Risk'!AH$5","v":1.0039766313652883E-2},{"$f":"'Population at Risk'!AI93/'Population at Risk'!AI$5","v":4.1962942149462706E-3},{"$f":"'Population at Risk'!AJ93/'Population at Risk'!AJ$5","v":3.9236547396973524E-3},{"$f":"'Population at Risk'!AK93/'Population at Risk'!AK$5","v":3.25850675012884E-4},{"$f":"'Population at Risk'!AL93/'Population at Risk'!AL$5","v":1.4651526943705008E-2},{"$f":"'Population at Risk'!AM93/'Population at Risk'!AM$5","v":1.155357306336725E-2},{"$f":"'Population at Risk'!AN93/'Population at Risk'!AN$5","v":0},{"$f":"'Population at Risk'!AO93/'Population at Risk'!AO$5","v":0},{"$f":"'Population at Risk'!AP93/'Population at Risk'!AP$5","v":1.64686056700739E-3},{"$f":"'Population at Risk'!AQ93/'Population at Risk'!AQ$5","v":8.9109683793609472E-3},{"$f":"'Population at Risk'!AR93/'Population at Risk'!AR$5","v":6.9241263009106671E-3},{"$f":"'Population at Risk'!AS93/'Population at Risk'!AS$5","v":2.5031930078100047E-3},{"$f":"'Population at Risk'!AT93/'Population at Risk'!AT$5","v":0},{"$f":"'Population at Risk'!AU93/'Population at Risk'!AU$5","v":0},{"$f":"'Population at Risk'!AV93/'Population at Risk'!AV$5","v":6.7954963359032304E-3},{"$f":"'Population at Risk'!AW93/'Population at Risk'!AW$5","v":8.4051109104799678E-3},{"$f":"'Population at Risk'!AX93/'Population at Risk'!AX$5","v":4.4218307681438921E-3},{"$f":"'Population at Risk'!AY93/'Population at Risk'!AY$5","v":6.7570290732540828E-3},{"$f":"'Population at Risk'!AZ93/'Population at Risk'!AZ$5","v":5.6911209947211137E-3},{"$f":"'Population at Risk'!BA93/'Population at Risk'!BA$5","v":1.2269492601260593E-2},{"$f":"'Population at Risk'!BB93/'Population at Risk'!BB$5","v":6.3321714604929963E-3},{"$f":"'Population at Risk'!BC93/'Population at Risk'!BC$5","v":0},91]
[null,"Male 75-79",{"$f":"'Population at Risk'!C94/'Population at Risk'!C$5","v":2.021348132421569E-3},{"$f":"'Population at Risk'!D94/'Population at Risk'!D$5","v":1.2630470001364681E-3},{"$f":"'Population at Risk'!E94/'Population at Risk'!E$5","v":6.07985593263508E-4},{"$f":"'Population at Risk'!F94/'Population at Risk'!F$5","v":2.4892072166715663E-3},{"$f":"'Population at Risk'!G94/'Population at Risk'!G$5","v":2.2995696596074949E-3},{"$f":"'Population at Risk'!H94/'Population at Risk'!H$5","v":1.0356315607292235E-2},{"$f":"'Population at Risk'!I94/'Population at Risk'!I$5","v":1.541017177615498E-3},{"$f":"'Population at Risk'!J94/'Population at Risk'!J$5","v":5.3376363807203717E-3},{"$f":"'Population at Risk'!K94/'Population at Risk'!K$5","v":7.6284430047553978E-3},{"$f":"'Population at Risk'!L94/'Population at Risk'!L$5","v":2.5202416884179892E-3},{"$f":"'Population at Risk'!M94/'Population at Risk'!M$5","v":2.5193654099853369E-3},{"$f":"'Population at Risk'!N94/'Population at Risk'!N$5","v":1.0104913020432706E-2},{"$f":"'Population at Risk'!O94/'Population at Risk'!O$5","v":1.1483437532036412E-2},{"$f":"'Population at Risk'!P94/'Population at Risk'!P$5","v":1.5619333941274379E-3},{"$f":"'Population at Risk'!Q94/'Population at Risk'!Q$5","v":1.6030334753522754E-3},{"$f":"'Population at Risk'!R94/'Population at Risk'!R$5","v":2.8692589983885359E-3},{"$f":"'Population at Risk'!S94/'Population at Risk'!S$5","v":4.3740472773243543E-3},{"$f":"'Population at Risk'!T94/'Population at Risk'!T$5","v":3.7902031623368252E-3},{"$f":"'Population at Risk'!U94/'Population at Risk'!U$5","v":0},{"$f":"'Population at Risk'!V94/'Population at Risk'!V$5","v":4.9694017256386143E-3},{"$f":"'Population at Risk'!W94/'Population at Risk'!W$5","v":6.1513137488956324E-3},{"$f":"'Population at Risk'!X94/'Population at Risk'!X$5","v":6.1506897033048033E-3},{"$f":"'Population at Risk'!Y94/'Population at Risk'!Y$5","v":5.3303794846609118E-3},{"$f":"'Population at Risk'!Z94/'Population at Risk'!Z$5","v":1.1630712794990471E-2},{"$f":"'Population at Risk'!AA94/'Population at Risk'!AA$5","v":9.5214505947442685E-3},{"$f":"'Population at Risk'!AB94/'Population at Risk'!AB$5","v":1.0668199317031783E-3},{"$f":"'Population at Risk'!AC94/'Population at Risk'!AC$5","v":9.8452169842460913E-3},{"$f":"'Population at Risk'!AD94/'Population at Risk'!AD$5","v":2.0298555763889627E-3},{"$f":"'Population at Risk'!AE94/'Population at Risk'!AE$5","v":1.946221914779596E-3},{"$f":"'Population at Risk'!AF94/'Population at Risk'!AF$5","v":1.4392522492871771E-2},{"$f":"'Population at Risk'!AG94/'Population at Risk'!AG$5","v":1.946221914779596E-3},{"$f":"'Population at Risk'!AH94/'Population at Risk'!AH$5","v":8.8174855345687659E-3},{"$f":"'Population at Risk'!AI94/'Population at Risk'!AI$5","v":3.9105709299854978E-3},{"$f":"'Population at Risk'!AJ94/'Population at Risk'!AJ$5","v":3.5104705585079989E-3},{"$f":"'Population at Risk'!AK94/'Population at Risk'!AK$5","v":1.7827299260596481E-4},{"$f":"'Population at Risk'!AL94/'Population at Risk'!AL$5","v":1.2803726876643886E-2},{"$f":"'Population at Risk'!AM94/'Population at Risk'!AM$5","v":1.065428029275263E-2},{"$f":"'Population at Risk'!AN94/'Population at Risk'!AN$5","v":0},{"$f":"'Population at Risk'!AO94/'Population at Risk'!AO$5","v":0},{"$f":"'Population at Risk'!AP94/'Population at Risk'!AP$5","v":1.5575473253533309E-3},{"$f":"'Population at Risk'!AQ94/'Population at Risk'!AQ$5","v":9.2122157508849438E-3},{"$f":"'Population at Risk'!AR94/'Population at Risk'!AR$5","v":6.1525020000565084E-3},{"$f":"'Population at Risk'!AS94/'Population at Risk'!AS$5","v":1.5412125820911734E-3},{"$f":"'Population at Risk'!AT94/'Population at Risk'!AT$5","v":0},{"$f":"'Population at Risk'!AU94/'Population at Risk'!AU$5","v":0},{"$f":"'Population at Risk'!AV94/'Population at Risk'!AV$5","v":5.9557276830111243E-3},{"$f":"'Population at Risk'!AW94/'Population at Risk'!AW$5","v":6.8508785586749088E-3},{"$f":"'Population at Risk'!AX94/'Population at Risk'!AX$5","v":4.5100516844449089E-3},{"$f":"'Population at Risk'!AY94/'Population at Risk'!AY$5","v":5.6924609120579594E-3},{"$f":"'Population at Risk'!AZ94/'Population at Risk'!AZ$5","v":5.2123384896412255E-3},{"$f":"'Population at Risk'!BA94/'Population at Risk'!BA$5","v":9.6215614819141169E-3},{"$f":"'Population at Risk'!BB94/'Population at Risk'!BB$5","v":5.6297706476570973E-3},{"$f":"'Population at Risk'!BC94/'Population at Risk'!BC$5","v":0},92]
[null,"Male 80-84",{"$f":"'Population at Risk'!C95/'Population at Risk'!C$5","v":1.4524657238957385E-3},{"$f":"'Population at Risk'!D95/'Population at Risk'!D$5","v":9.0939384009825711E-4},{"$f":"'Population at Risk'!E95/'Population at Risk'!E$5","v":4.4026542960460917E-4},{"$f":"'Population at Risk'!F95/'Population at Risk'!F$5","v":1.4078303110683448E-3},{"$f":"'Population at Risk'!G95/'Population at Risk'!G$5","v":1.7630034056990793E-3},{"$f":"'Population at Risk'!H95/'Population at Risk'!H$5","v":6.9465203293481064E-3},{"$f":"'Population at Risk'!I95/'Population at Risk'!I$5","v":1.1821501636502449E-3},{"$f":"'Population at Risk'!J95/'Population at Risk'!J$5","v":2.5488713054001772E-3},{"$f":"'Population at Risk'!K95/'Population at Risk'!K$5","v":3.3950762823361934E-3},{"$f":"'Population at Risk'!L95/'Population at Risk'!L$5","v":1.5975302505818949E-3},{"$f":"'Population at Risk'!M95/'Population at Risk'!M$5","v":1.5969747954005411E-3},{"$f":"'Population at Risk'!N95/'Population at Risk'!N$5","v":6.4220983352750024E-3},{"$f":"'Population at Risk'!O95/'Population at Risk'!O$5","v":7.6315128165659312E-3},{"$f":"'Population at Risk'!P95/'Population at Risk'!P$5","v":1.0024348648877588E-3},{"$f":"'Population at Risk'!Q95/'Population at Risk'!Q$5","v":1.0248902547334219E-3},{"$f":"'Population at Risk'!R95/'Population at Risk'!R$5","v":1.3636082368579179E-3},{"$f":"'Population at Risk'!S95/'Population at Risk'!S$5","v":3.0212680732169062E-3},{"$f":"'Population at Risk'!T95/'Population at Risk'!T$5","v":2.5930217496814693E-3},{"$f":"'Population at Risk'!U95/'Population at Risk'!U$5","v":0},{"$f":"'Population at Risk'!V95/'Population at Risk'!V$5","v":3.6347624050385289E-3},{"$f":"'Population at Risk'!W95/'Population at Risk'!W$5","v":4.4597024679493332E-3},{"$f":"'Population at Risk'!X95/'Population at Risk'!X$5","v":4.4592500348959825E-3},{"$f":"'Population at Risk'!Y95/'Population at Risk'!Y$5","v":3.2163479609993604E-3},{"$f":"'Population at Risk'!Z95/'Population at Risk'!Z$5","v":7.9480633165887188E-3},{"$f":"'Population at Risk'!AA95/'Population at Risk'!AA$5","v":6.2965255677535905E-3},{"$f":"'Population at Risk'!AB95/'Population at Risk'!AB$5","v":7.5872969280613969E-4},{"$f":"'Population at Risk'!AC95/'Population at Risk'!AC$5","v":6.5511698487748862E-3},{"$f":"'Population at Risk'!AD95/'Population at Risk'!AD$5","v":1.4158423237446145E-3},{"$f":"'Population at Risk'!AE95/'Population at Risk'!AE$5","v":1.2940847286754379E-3},{"$f":"'Population at Risk'!AF95/'Population at Risk'!AF$5","v":9.2442091110342389E-3},{"$f":"'Population at Risk'!AG95/'Population at Risk'!AG$5","v":1.2940847286754379E-3},{"$f":"'Population at Risk'!AH95/'Population at Risk'!AH$5","v":5.7539082050811268E-3},{"$f":"'Population at Risk'!AI95/'Population at Risk'!AI$5","v":2.5821708812499662E-3},{"$f":"'Population at Risk'!AJ95/'Population at Risk'!AJ$5","v":2.2394381149102752E-3},{"$f":"'Population at Risk'!AK95/'Population at Risk'!AK$5","v":7.6402711116842066E-5},{"$f":"'Population at Risk'!AL95/'Population at Risk'!AL$5","v":8.3404558879546439E-3},{"$f":"'Population at Risk'!AM95/'Population at Risk'!AM$5","v":6.9923219783288564E-3},{"$f":"'Population at Risk'!AN95/'Population at Risk'!AN$5","v":0},{"$f":"'Population at Risk'!AO95/'Population at Risk'!AO$5","v":0},{"$f":"'Population at Risk'!AP95/'Population at Risk'!AP$5","v":1.0383648835688873E-3},{"$f":"'Population at Risk'!AQ95/'Population at Risk'!AQ$5","v":5.7661144243388827E-3},{"$f":"'Population at Risk'!AR95/'Population at Risk'!AR$5","v":4.0839807727843843E-3},{"$f":"'Population at Risk'!AS95/'Population at Risk'!AS$5","v":1.1823000629740507E-3},{"$f":"'Population at Risk'!AT95/'Population at Risk'!AT$5","v":0},{"$f":"'Population at Risk'!AU95/'Population at Risk'!AU$5","v":0},{"$f":"'Population at Risk'!AV95/'Population at Risk'!AV$5","v":4.3894486494919652E-3},{"$f":"'Population at Risk'!AW95/'Population at Risk'!AW$5","v":4.4289269977336688E-3},{"$f":"'Population at Risk'!AX95/'Population at Risk'!AX$5","v":2.3068655167563039E-3},{"$f":"'Population at Risk'!AY95/'Population at Risk'!AY$5","v":3.8715993450766143E-3},{"$f":"'Population at Risk'!AZ95/'Population at Risk'!AZ$5","v":3.2798728591279824E-3},{"$f":"'Population at Risk'!BA95/'Population at Risk'!BA$5","v":6.3983383854728879E-3},{"$f":"'Population at Risk'!BB95/'Population at Risk'!BB$5","v":3.5324051122554334E-3},{"$f":"'Population at Risk'!BC95/'Population at Risk'!BC$5","v":0},93]
[null,"Male 85-89",{"$f":"'Population at Risk'!C96/'Population at Risk'!C$5","v":7.5044062401279814E-4},{"$f":"'Population at Risk'!D96/'Population at Risk'!D$5","v":4.6592400449478605E-4},{"$f":"'Population at Risk'!E96/'Population at Risk'!E$5","v":2.2013271480230459E-4},{"$f":"'Population at Risk'!F96/'Population at Risk'!F$5","v":7.5492350013809794E-4},{"$f":"'Population at Risk'!G96/'Population at Risk'!G$5","v":9.9648018582991428E-4},{"$f":"'Population at Risk'!H96/'Population at Risk'!H$5","v":3.259787363855216E-3},{"$f":"'Population at Risk'!I96/'Population at Risk'!I$5","v":8.0217332533409483E-4},{"$f":"'Population at Risk'!J96/'Population at Risk'!J$5","v":1.5593095044801083E-3},{"$f":"'Population at Risk'!K96/'Population at Risk'!K$5","v":2.3052987102282793E-3},{"$f":"'Population at Risk'!L96/'Population at Risk'!L$5","v":9.2271143783609452E-4},{"$f":"'Population at Risk'!M96/'Population at Risk'!M$5","v":9.2239061458479531E-4},{"$f":"'Population at Risk'!N96/'Population at Risk'!N$5","v":3.408886320145973E-3},{"$f":"'Population at Risk'!O96/'Population at Risk'!O$5","v":3.7615039475016915E-3},{"$f":"'Population at Risk'!P96/'Population at Risk'!P$5","v":5.3618609052135931E-4},{"$f":"'Population at Risk'!Q96/'Population at Risk'!Q$5","v":2.6279237300856975E-4},{"$f":"'Population at Risk'!R96/'Population at Risk'!R$5","v":6.8180411842895896E-4},{"$f":"'Population at Risk'!S96/'Population at Risk'!S$5","v":1.4482263121313116E-3},{"$f":"'Population at Risk'!T96/'Population at Risk'!T$5","v":1.2233207448094031E-3},{"$f":"'Population at Risk'!U96/'Population at Risk'!U$5","v":0},{"$f":"'Population at Risk'!V96/'Population at Risk'!V$5","v":1.4766222270469025E-3},{"$f":"'Population at Risk'!W96/'Population at Risk'!W$5","v":2.1345058708667846E-3},{"$f":"'Population at Risk'!X96/'Population at Risk'!X$5","v":2.134289327046767E-3},{"$f":"'Population at Risk'!Y96/'Population at Risk'!Y$5","v":1.5704234175771526E-3},{"$f":"'Population at Risk'!Z96/'Population at Risk'!Z$5","v":3.8020108532975188E-3},{"$f":"'Population at Risk'!AA96/'Population at Risk'!AA$5","v":2.9847166652338451E-3},{"$f":"'Population at Risk'!AB96/'Population at Risk'!AB$5","v":4.0005747438869184E-4},{"$f":"'Population at Risk'!AC96/'Population at Risk'!AC$5","v":3.1424626655203176E-3},{"$f":"'Population at Risk'!AD96/'Population at Risk'!AD$5","v":7.5126327382367311E-4},{"$f":"'Population at Risk'!AE96/'Population at Risk'!AE$5","v":6.6232682963703526E-4},{"$f":"'Population at Risk'!AF96/'Population at Risk'!AF$5","v":4.0105645681717773E-3},{"$f":"'Population at Risk'!AG96/'Population at Risk'!AG$5","v":6.6232682963703526E-4},{"$f":"'Population at Risk'!AH96/'Population at Risk'!AH$5","v":2.6570712905930188E-3},{"$f":"'Population at Risk'!AI96/'Population at Risk'!AI$5","v":1.2060081341329321E-3},{"$f":"'Population at Risk'!AJ96/'Population at Risk'!AJ$5","v":1.6947099247969651E-3},{"$f":"'Population at Risk'!AK96/'Population at Risk'!AK$5","v":1.0187028148912275E-4},{"$f":"'Population at Risk'!AL96/'Population at Risk'!AL$5","v":3.7719899601380462E-3},{"$f":"'Population at Risk'!AM96/'Population at Risk'!AM$5","v":3.0203947514637021E-3},{"$f":"'Population at Risk'!AN96/'Population at Risk'!AN$5","v":0},{"$f":"'Population at Risk'!AO96/'Population at Risk'!AO$5","v":0},{"$f":"'Population at Risk'!AP96/'Population at Risk'!AP$5","v":5.1918244178444364E-4},{"$f":"'Population at Risk'!AQ96/'Population at Risk'!AQ$5","v":3.0662161409425589E-3},{"$f":"'Population at Risk'!AR96/'Population at Risk'!AR$5","v":1.9672618512470469E-3},{"$f":"'Population at Risk'!AS96/'Population at Risk'!AS$5","v":8.0227504273239171E-4},{"$f":"'Population at Risk'!AT96/'Population at Risk'!AT$5","v":0},{"$f":"'Population at Risk'!AU96/'Population at Risk'!AU$5","v":0},{"$f":"'Population at Risk'!AV96/'Population at Risk'!AV$5","v":2.049698488309023E-3},{"$f":"'Population at Risk'!AW96/'Population at Risk'!AW$5","v":2.2635061317207847E-3},{"$f":"'Population at Risk'!AX96/'Population at Risk'!AX$5","v":1.2700720260793135E-3},{"$f":"'Population at Risk'!AY96/'Population at Risk'!AY$5","v":1.9357996725383071E-3},{"$f":"'Population at Risk'!AZ96/'Population at Risk'!AZ$5","v":1.7315364823864842E-3},{"$f":"'Population at Risk'!BA96/'Population at Risk'!BA$5","v":2.8864684445742347E-3},{"$f":"'Population at Risk'!BB96/'Population at Risk'!BB$5","v":1.43503957685377E-3},{"$f":"'Population at Risk'!BC96/'Population at Risk'!BC$5","v":0},94]
[null,"Male 90+",{"$f":"'Population at Risk'!C97/'Population at Risk'!C$5","v":3.0259702581161217E-4},{"$f":"'Population at Risk'!D97/'Population at Risk'!D$5","v":2.2454168891314992E-4},{"$f":"'Population at Risk'!E97/'Population at Risk'!E$5","v":1.5723765343021758E-4},{"$f":"'Population at Risk'!F97/'Population at Risk'!F$5","v":2.2443671625727238E-4},{"$f":"'Population at Risk'!G97/'Population at Risk'!G$5","v":3.0660928794766599E-4},{"$f":"'Population at Risk'!H97/'Population at Risk'!H$5","v":1.2404500588121619E-3},{"$f":"'Population at Risk'!I97/'Population at Risk'!I$5","v":2.9553754091256123E-4},{"$f":"'Population at Risk'!J97/'Population at Risk'!J$5","v":6.7470122790004691E-4},{"$f":"'Population at Risk'!K97/'Population at Risk'!K$5","v":1.2155211381203654E-3},{"$f":"'Population at Risk'!L97/'Population at Risk'!L$5","v":3.5806712513042474E-4},{"$f":"'Population at Risk'!M97/'Population at Risk'!M$5","v":3.5794262655529374E-4},{"$f":"'Population at Risk'!N97/'Population at Risk'!N$5","v":1.3848600675593016E-3},{"$f":"'Population at Risk'!O97/'Population at Risk'!O$5","v":1.4648164410944085E-3},{"$f":"'Population at Risk'!P97/'Population at Risk'!P$5","v":2.0981194846487973E-4},{"$f":"'Population at Risk'!Q97/'Population at Risk'!Q$5","v":1.8395466110599881E-4},{"$f":"'Population at Risk'!R97/'Population at Risk'!R$5","v":3.1249355427993955E-4},{"$f":"'Population at Risk'!S97/'Population at Risk'!S$5","v":6.8097840532410213E-4},{"$f":"'Population at Risk'!T97/'Population at Risk'!T$5","v":5.750653073890356E-4},{"$f":"'Population at Risk'!U97/'Population at Risk'!U$5","v":0},{"$f":"'Population at Risk'!V97/'Population at Risk'!V$5","v":7.3831111352345123E-4},{"$f":"'Population at Risk'!W97/'Population at Risk'!W$5","v":9.5960494482771864E-4},{"$f":"'Population at Risk'!X97/'Population at Risk'!X$5","v":9.5950759371554934E-4},{"$f":"'Population at Risk'!Y97/'Population at Risk'!Y$5","v":7.3236092069703753E-4},{"$f":"'Population at Risk'!Z97/'Population at Risk'!Z$5","v":1.6289317044598786E-3},{"$f":"'Population at Risk'!AA97/'Population at Risk'!AA$5","v":1.3045358369879092E-3},{"$f":"'Population at Risk'!AB97/'Population at Risk'!AB$5","v":1.9313119453247192E-4},{"$f":"'Population at Risk'!AC97/'Population at Risk'!AC$5","v":1.3856375266023417E-3},{"$f":"'Population at Risk'!AD97/'Population at Risk'!AD$5","v":2.3838161573251166E-4},{"$f":"'Population at Risk'!AE97/'Population at Risk'!AE$5","v":2.1398251419042674E-4},{"$f":"'Population at Risk'!AF97/'Population at Risk'!AF$5","v":1.7919543815235603E-3},{"$f":"'Population at Risk'!AG97/'Population at Risk'!AG$5","v":2.1398251419042674E-4},{"$f":"'Population at Risk'!AH97/'Population at Risk'!AH$5","v":1.138216908904937E-3},{"$f":"'Population at Risk'!AI97/'Population at Risk'!AI$5","v":6.0001889841762221E-4},{"$f":"'Population at Risk'!AJ97/'Population at Risk'!AJ$5","v":9.0788031685551688E-4},{"$f":"'Population at Risk'!AK97/'Population at Risk'!AK$5","v":5.0935140744561377E-5},{"$f":"'Population at Risk'!AL97/'Population at Risk'!AL$5","v":1.3825620571023915E-3},{"$f":"'Population at Risk'!AM97/'Population at Risk'!AM$5","v":1.3552129195111599E-3},{"$f":"'Population at Risk'!AN97/'Population at Risk'!AN$5","v":0},{"$f":"'Population at Risk'!AO97/'Population at Risk'!AO$5","v":0},{"$f":"'Population at Risk'!AP97/'Population at Risk'!AP$5","v":1.4602006175187476E-4},{"$f":"'Population at Risk'!AQ97/'Population at Risk'!AQ$5","v":1.2753288373831882E-3},{"$f":"'Population at Risk'!AR97/'Population at Risk'!AR$5","v":8.4721818543253354E-4},{"$f":"'Population at Risk'!AS97/'Population at Risk'!AS$5","v":2.9557501574351268E-4},{"$f":"'Population at Risk'!AT97/'Population at Risk'!AT$5","v":0},{"$f":"'Population at Risk'!AU97/'Population at Risk'!AU$5","v":0},{"$f":"'Population at Risk'!AV97/'Population at Risk'!AV$5","v":8.1214468404697151E-4},{"$f":"'Population at Risk'!AW97/'Population at Risk'!AW$5","v":9.0540245268831384E-4},{"$f":"'Population at Risk'!AX97/'Population at Risk'!AX$5","v":4.1471739627079623E-4},{"$f":"'Population at Risk'!AY97/'Population at Risk'!AY$5","v":8.0759142588707493E-4},{"$f":"'Population at Risk'!AZ97/'Population at Risk'!AZ$5","v":6.5597457182559635E-4},{"$f":"'Population at Risk'!BA97/'Population at Risk'!BA$5","v":1.7318810667445411E-3},{"$f":"'Population at Risk'!BB97/'Population at Risk'!BB$5","v":7.4511670336638053E-4},{"$f":"'Population at Risk'!BC97/'Population at Risk'!BC$5","v":0},95]
["SIMD Q2","Female 0-4",{"$f":"'Population at Risk'!C98/'Population at Risk'!C$5","v":0},{"$f":"'Population at Risk'!D98/'Population at Risk'!D$5","v":0},{"$f":"'Population at Risk'!E98/'Population at Risk'!E$5","v":0},{"$f":"'Population at Risk'!F98/'Population at Risk'!F$5","v":0},{"$f":"'Population at Risk'!G98/'Population at Risk'!G$5","v":0},{"$f":"'Population at Risk'!H98/'Population at Risk'!H$5","v":0},{"$f":"'Population at Risk'!I98/'Population at Risk'!I$5","v":0},{"$f":"'Population at Risk'!J98/'Population at Risk'!J$5","v":0},{"$f":"'Population at Risk'!K98/'Population at Risk'!K$5","v":0},{"$f":"'Population at Risk'!L98/'Population at Risk'!L$5","v":0},{"$f":"'Population at Risk'!M98/'Population at Risk'!M$5","v":0},{"$f":"'Population at Risk'!N98/'Population at Risk'!N$5","v":0},{"$f":"'Population at Risk'!O98/'Population at Risk'!O$5","v":0},{"$f":"'Population at Risk'!P98/'Population at Risk'!P$5","v":0},{"$f":"'Population at Risk'!Q98/'Population at Risk'!Q$5","v":0},{"$f":"'Population at Risk'!R98/'Population at Risk'!R$5","v":0},{"$f":"'Population at Risk'!S98/'Population at Risk'!S$5","v":0},{"$f":"'Population at Risk'!T98/'Population at Risk'!T$5","v":0},{"$f":"'Population at Risk'!U98/'Population at Risk'!U$5","v":0},{"$f":"'Population at Risk'!V98/'Population at Risk'!V$5","v":0},{"$f":"'Population at Risk'!W98/'Population at Risk'!W$5","v":0},{"$f":"'Population at Risk'!X98/'Population at Risk'!X$5","v":0},{"$f":"'Population at Risk'!Y98/'Population at Risk'!Y$5","v":0},{"$f":"'Population at Risk'!Z98/'Population at Risk'!Z$5","v":0},{"$f":"'Population at Risk'!AA98/'Population at Risk'!AA$5","v":0},{"$f":"'Population at Risk'!AB98/'Population at Risk'!AB$5","v":0},{"$f":"'Population at Risk'!AC98/'Population at Risk'!AC$5","v":0},{"$f":"'Population at Risk'!AD98/'Population at Risk'!AD$5","v":0},{"$f":"'Population at Risk'!AE98/'Population at Risk'!AE$5","v":0},{"$f":"'Population at Risk'!AF98/'Population at Risk'!AF$5","v":0},{"$f":"'Population at Risk'!AG98/'Population at Risk'!AG$5","v":0},{"$f":"'Population at Risk'!AH98/'Population at Risk'!AH$5","v":0},{"$f":"'Population at Risk'!AI98/'Population at Risk'!AI$5","v":0},{"$f":"'Population at Risk'!AJ98/'Population at Risk'!AJ$5","v":0},{"$f":"'Population at Risk'!AK98/'Population at Risk'!AK$5","v":0},{"$f":"'Population at Risk'!AL98/'Population at Risk'!AL$5","v":0},{"$f":"'Population at Risk'!AM98/'Population at Risk'!AM$5","v":0},{"$f":"'Population at Risk'!AN98/'Population at Risk'!AN$5","v":0},{"$f":"'Population at Risk'!AO98/'Population at Risk'!AO$5","v":0},{"$f":"'Population at Risk'!AP98/'Population at Risk'!AP$5","v":0},{"$f":"'Population at Risk'!AQ98/'Population at Risk'!AQ$5","v":0},{"$f":"'Population at Risk'!AR98/'Population at Risk'!AR$5","v":0},{"$f":"'Population at Risk'!AS98/'Population at Risk'!AS$5","v":0},{"$f":"'Population at Risk'!AT98/'Population at Risk'!AT$5","v":0},{"$f":"'Population at Risk'!AU98/'Population at Risk'!AU$5","v":0},{"$f":"'Population at Risk'!AV98/'Population at Risk'!AV$5","v":0},{"$f":"'Population at Risk'!AW98/'Population at Risk'!AW$5","v":0},{"$f":"'Population at Risk'!AX98/'Population at Risk'!AX$5","v":0},{"$f":"'Population at Risk'!AY98/'Population at Risk'!AY$5","v":0},{"$f":"'Population at Risk'!AZ98/'Population at Risk'!AZ$5","v":0},{"$f":"'Population at Risk'!BA98/'Population at Risk'!BA$5","v":0},{"$f":"'Population at Risk'!BB98/'Population at Risk'!BB$5","v":0},{"$f":"'Population at Risk'!BC98/'Population at Risk'!BC$5","v":0},96]
[null,"Female 5-9",{"$f":"'Population at Risk'!C99/'Population at Risk'!C$5","v":0},{"$f":"'Population at Risk'!D99/'Population at Risk'!D$5","v":0},{"$f":"'Population at Risk'!E99/'Population at Risk'!E$5","v":0},{"$f":"'Population at Risk'!F99/'Population at Risk'!F$5","v":0},{"$f":"'Population at Risk'!G99/'Population at Risk'!G$5","v":0},{"$f":"'Population at Risk'!H99/'Population at Risk'!H$5","v":0},{"$f":"'Population at Risk'!I99/'Population at Risk'!I$5","v":0},{"$f":"'Population at Risk'!J99/'Population at Risk'!J$5","v":0},{"$f":"'Population at Risk'!K99/'Population at Risk'!K$5","v":0},{"$f":"'Population at Risk'!L99/'Population at Risk'!L$5","v":0},{"$f":"'Population at Risk'!M99/'Population at Risk'!M$5","v":0},{"$f":"'Population at Risk'!N99/'Population at Risk'!N$5","v":0},{"$f":"'Population at Risk'!O99/'Population at Risk'!O$5","v":0},{"$f":"'Population at Risk'!P99/'Population at Risk'!P$5","v":0},{"$f":"'Population at Risk'!Q99/'Population at Risk'!Q$5","v":0},{"$f":"'Population at Risk'!R99/'Population at Risk'!R$5","v":0},{"$f":"'Population at Risk'!S99/'Population at Risk'!S$5","v":0},{"$f":"'Population at Risk'!T99/'Population at Risk'!T$5","v":0},{"$f":"'Population at Risk'!U99/'Population at Risk'!U$5","v":0},{"$f":"'Population at Risk'!V99/'Population at Risk'!V$5","v":0},{"$f":"'Population at Risk'!W99/'Population at Risk'!W$5","v":0},{"$f":"'Population at Risk'!X99/'Population at Risk'!X$5","v":0},{"$f":"'Population at Risk'!Y99/'Population at Risk'!Y$5","v":0},{"$f":"'Population at Risk'!Z99/'Population at Risk'!Z$5","v":0},{"$f":"'Population at Risk'!AA99/'Population at Risk'!AA$5","v":0},{"$f":"'Population at Risk'!AB99/'Population at Risk'!AB$5","v":0},{"$f":"'Population at Risk'!AC99/'Population at Risk'!AC$5","v":0},{"$f":"'Population at Risk'!AD99/'Population at Risk'!AD$5","v":0},{"$f":"'Population at Risk'!AE99/'Population at Risk'!AE$5","v":0},{"$f":"'Population at Risk'!AF99/'Population at Risk'!AF$5","v":0},{"$f":"'Population at Risk'!AG99/'Population at Risk'!AG$5","v":0},{"$f":"'Population at Risk'!AH99/'Population at Risk'!AH$5","v":0},{"$f":"'Population at Risk'!AI99/'Population at Risk'!AI$5","v":0},{"$f":"'Population at Risk'!AJ99/'Population at Risk'!AJ$5","v":0},{"$f":"'Population at Risk'!AK99/'Population at Risk'!AK$5","v":0},{"$f":"'Population at Risk'!AL99/'Population at Risk'!AL$5","v":0},{"$f":"'Population at Risk'!AM99/'Population at Risk'!AM$5","v":0},{"$f":"'Population at Risk'!AN99/'Population at Risk'!AN$5","v":0},{"$f":"'Population at Risk'!AO99/'Population at Risk'!AO$5","v":0},{"$f":"'Population at Risk'!AP99/'Population at Risk'!AP$5","v":0},{"$f":"'Population at Risk'!AQ99/'Population at Risk'!AQ$5","v":0},{"$f":"'Population at Risk'!AR99/'Population at Risk'!AR$5","v":0},{"$f":"'Population at Risk'!AS99/'Population at Risk'!AS$5","v":0},{"$f":"'Population at Risk'!AT99/'Population at Risk'!AT$5","v":0},{"$f":"'Population at Risk'!AU99/'Population at Risk'!AU$5","v":0},{"$f":"'Population at Risk'!AV99/'Population at Risk'!AV$5","v":0},{"$f":"'Population at Risk'!AW99/'Population at Risk'!AW$5","v":0},{"$f":"'Population at Risk'!AX99/'Population at Risk'!AX$5","v":0},{"$f":"'Population at Risk'!AY99/'Population at Risk'!AY$5","v":0},{"$f":"'Population at Risk'!AZ99/'Population at Risk'!AZ$5","v":0},{"$f":"'Population at Risk'!BA99/'Population at Risk'!BA$5","v":0},{"$f":"'Population at Risk'!BB99/'Population at Risk'!BB$5","v":0},{"$f":"'Population at Risk'!BC99/'Population at Risk'!BC$5","v":0},97]
[null,"Female 10-15",{"$f":"'Population at Risk'!C100/'Population at Risk'!C$5","v":0},{"$f":"'Population at Risk'!D100/'Population at Risk'!D$5","v":0},{"$f":"'Population at Risk'!E100/'Population at Risk'!E$5","v":0},{"$f":"'Population at Risk'!F100/'Population at Risk'!F$5","v":0},{"$f":"'Population at Risk'!G100/'Population at Risk'!G$5","v":0},{"$f":"'Population at Risk'!H100/'Population at Risk'!H$5","v":0},{"$f":"'Population at Risk'!I100/'Population at Risk'!I$5","v":0},{"$f":"'Population at Risk'!J100/'Population at Risk'!J$5","v":0},{"$f":"'Population at Risk'!K100/'Population at Risk'!K$5","v":0},{"$f":"'Population at Risk'!L100/'Population at Risk'!L$5","v":0},{"$f":"'Population at Risk'!M100/'Population at Risk'!M$5","v":0},{"$f":"'Population at Risk'!N100/'Population at Risk'!N$5","v":0},{"$f":"'Population at Risk'!O100/'Population at Risk'!O$5","v":0},{"$f":"'Population at Risk'!P100/'Population at Risk'!P$5","v":0},{"$f":"'Population at Risk'!Q100/'Population at Risk'!Q$5","v":0},{"$f":"'Population at Risk'!R100/'Population at Risk'!R$5","v":0},{"$f":"'Population at Risk'!S100/'Population at Risk'!S$5","v":0},{"$f":"'Population at Risk'!T100/'Population at Risk'!T$5","v":0},{"$f":"'Population at Risk'!U100/'Population at Risk'!U$5","v":0},{"$f":"'Population at Risk'!V100/'Population at Risk'!V$5","v":0},{"$f":"'Population at Risk'!W100/'Population at Risk'!W$5","v":0},{"$f":"'Population at Risk'!X100/'Population at Risk'!X$5","v":0},{"$f":"'Population at Risk'!Y100/'Population at Risk'!Y$5","v":0},{"$f":"'Population at Risk'!Z100/'Population at Risk'!Z$5","v":0},{"$f":"'Population at Risk'!AA100/'Population at Risk'!AA$5","v":0},{"$f":"'Population at Risk'!AB100/'Population at Risk'!AB$5","v":0},{"$f":"'Population at Risk'!AC100/'Population at Risk'!AC$5","v":0},{"$f":"'Population at Risk'!AD100/'Population at Risk'!AD$5","v":0},{"$f":"'Population at Risk'!AE100/'Population at Risk'!AE$5","v":0},{"$f":"'Population at Risk'!AF100/'Population at Risk'!AF$5","v":0},{"$f":"'Population at Risk'!AG100/'Population at Risk'!AG$5","v":0},{"$f":"'Population at Risk'!AH100/'Population at Risk'!AH$5","v":0},{"$f":"'Population at Risk'!AI100/'Population at Risk'!AI$5","v":0},{"$f":"'Population at Risk'!AJ100/'Population at Risk'!AJ$5","v":0},{"$f":"'Population at Risk'!AK100/'Population at Risk'!AK$5","v":0},{"$f":"'Population at Risk'!AL100/'Population at Risk'!AL$5","v":0},{"$f":"'Population at Risk'!AM100/'Population at Risk'!AM$5","v":0},{"$f":"'Population at Risk'!AN100/'Population at Risk'!AN$5","v":0},{"$f":"'Population at Risk'!AO100/'Population at Risk'!AO$5","v":0},{"$f":"'Population at Risk'!AP100/'Population at Risk'!AP$5","v":0},{"$f":"'Population at Risk'!AQ100/'Population at Risk'!AQ$5","v":0},{"$f":"'Population at Risk'!AR100/'Population at Risk'!AR$5","v":0},{"$f":"'Population at Risk'!AS100/'Population at Risk'!AS$5","v":0},{"$f":"'Population at Risk'!AT100/'Population at Risk'!AT$5","v":0},{"$f":"'Population at Risk'!AU100/'Population at Risk'!AU$5","v":0},{"$f":"'Population at Risk'!AV100/'Population at Risk'!AV$5","v":0},{"$f":"'Population at Risk'!AW100/'Population at Risk'!AW$5","v":0},{"$f":"'Population at Risk'!AX100/'Population at Risk'!AX$5","v":0},{"$f":"'Population at Risk'!AY100/'Population at Risk'!AY$5","v":0},{"$f":"'Population at Risk'!AZ100/'Population at Risk'!AZ$5","v":0},{"$f":"'Population at Risk'!BA100/'Population at Risk'!BA$5","v":0},{"$f":"'Population at Risk'!BB100/'Population at Risk'!BB$5","v":0},{"$f":"'Population at Risk'!BC100/'Population at Risk'!BC$5","v":0},98]
[null,"Female 16-19",{"$f":"'Population at Risk'!C101/'Population at Risk'!C$5","v":2.6304348484246687E-3},{"$f":"'Population at Risk'!D101/'Population at Risk'!D$5","v":1.7824902299832836E-3},{"$f":"'Population at Risk'!E101/'Population at Risk'!E$5","v":9.8396344573409267E-4},{"$f":"'Population at Risk'!F101/'Population at Risk'!F$5","v":1.9386033667783819E-3},{"$f":"'Population at Risk'!G101/'Population at Risk'!G$5","v":1.7770903553436547E-3},{"$f":"'Population at Risk'!H101/'Population at Risk'!H$5","v":2.7062148754051513E-3},{"$f":"'Population at Risk'!I101/'Population at Risk'!I$5","v":1.7214020744292745E-3},{"$f":"'Population at Risk'!J101/'Population at Risk'!J$5","v":2.9853069459968686E-3},{"$f":"'Population at Risk'!K101/'Population at Risk'!K$5","v":3.8623907405044159E-3},{"$f":"'Population at Risk'!L101/'Population at Risk'!L$5","v":3.4126451036702601E-3},{"$f":"'Population at Risk'!M101/'Population at Risk'!M$5","v":3.4138077324208111E-3},{"$f":"'Population at Risk'!N101/'Population at Risk'!N$5","v":2.5893668922940204E-3},{"$f":"'Population at Risk'!O101/'Population at Risk'!O$5","v":3.0666041447240449E-3},{"$f":"'Population at Risk'!P101/'Population at Risk'!P$5","v":2.2432872759205885E-3},{"$f":"'Population at Risk'!Q101/'Population at Risk'!Q$5","v":2.8849913236415896E-3},{"$f":"'Population at Risk'!R101/'Population at Risk'!R$5","v":1.6371541576554369E-3},{"$f":"'Population at Risk'!S101/'Population at Risk'!S$5","v":2.6955791193969078E-3},{"$f":"'Population at Risk'!T101/'Population at Risk'!T$5","v":2.1651859798524262E-3},{"$f":"'Population at Risk'!U101/'Population at Risk'!U$5","v":2.397398449528864E-3},{"$f":"'Population at Risk'!V101/'Population at Risk'!V$5","v":3.6944310668591642E-3},{"$f":"'Population at Risk'!W101/'Population at Risk'!W$5","v":2.5521463601625907E-3},{"$f":"'Population at Risk'!X101/'Population at Risk'!X$5","v":2.5523962502597163E-3},{"$f":"'Population at Risk'!Y101/'Population at Risk'!Y$5","v":3.2636580629508563E-3},{"$f":"'Population at Risk'!Z101/'Population at Risk'!Z$5","v":2.3210933354004398E-3},{"$f":"'Population at Risk'!AA101/'Population at Risk'!AA$5","v":2.66068601711609E-3},{"$f":"'Population at Risk'!AB101/'Population at Risk'!AB$5","v":1.7951519936225222E-3},{"$f":"'Population at Risk'!AC101/'Population at Risk'!AC$5","v":2.31384356636052E-3},{"$f":"'Population at Risk'!AD101/'Population at Risk'!AD$5","v":2.2171319584325016E-3},{"$f":"'Population at Risk'!AE101/'Population at Risk'!AE$5","v":2.3591909746430283E-3},{"$f":"'Population at Risk'!AF101/'Population at Risk'!AF$5","v":1.4573534936499761E-3},{"$f":"'Population at Risk'!AG101/'Population at Risk'!AG$5","v":2.3591909746430283E-3},{"$f":"'Population at Risk'!AH101/'Population at Risk'!AH$5","v":3.2121749091212062E-3},{"$f":"'Population at Risk'!AI101/'Population at Risk'!AI$5","v":2.9004603369061615E-3},{"$f":"'Population at Risk'!AJ101/'Population at Risk'!AJ$5","v":4.5741838392407974E-3},{"$f":"'Population at Risk'!AK101/'Population at Risk'!AK$5","v":1.8455157235452387E-3},{"$f":"'Population at Risk'!AL101/'Population at Risk'!AL$5","v":2.2196541662161634E-3},{"$f":"'Population at Risk'!AM101/'Population at Risk'!AM$5","v":3.4300833982315771E-3},{"$f":"'Population at Risk'!AN101/'Population at Risk'!AN$5","v":1.2948394983740693E-3},{"$f":"'Population at Risk'!AO101/'Population at Risk'!AO$5","v":1.2961056736831705E-3},{"$f":"'Population at Risk'!AP101/'Population at Risk'!AP$5","v":1.4355133777633811E-3},{"$f":"'Population at Risk'!AQ101/'Population at Risk'!AQ$5","v":2.3780838366923855E-3},{"$f":"'Population at Risk'!AR101/'Population at Risk'!AR$5","v":2.5381900921244453E-3},{"$f":"'Population at Risk'!AS101/'Population at Risk'!AS$5","v":1.7211303780476847E-3},{"$f":"'Population at Risk'!AT101/'Population at Risk'!AT$5","v":3.8403709104454538E-4},{"$f":"'Population at Risk'!AU101/'Population at Risk'!AU$5","v":3.8359017767507659E-4},{"$f":"'Population at Risk'!AV101/'Population at Risk'!AV$5","v":2.9138470214120056E-3},{"$f":"'Population at Risk'!AW101/'Population at Risk'!AW$5","v":2.9866299932282733E-3},{"$f":"'Population at Risk'!AX101/'Population at Risk'!AX$5","v":2.1923885521000375E-3},{"$f":"'Population at Risk'!AY101/'Population at Risk'!AY$5","v":2.1988649549716049E-3},{"$f":"'Population at Risk'!AZ101/'Population at Risk'!AZ$5","v":1.9089758794677315E-3},{"$f":"'Population at Risk'!BA101/'Population at Risk'!BA$5","v":3.4088000500274228E-3},{"$f":"'Population at Risk'!BB101/'Population at Risk'!BB$5","v":3.753291195507733E-3},{"$f":"'Population at Risk'!BC101/'Population at Risk'!BC$5","v":2.3990802836516729E-3},99]
[null,"Female 20-24",{"$f":"'Population at Risk'!C102/'Population at Risk'!C$5","v":6.0151654041661088E-3},{"$f":"'Population at Risk'!D102/'Population at Risk'!D$5","v":3.7031168116195192E-3},{"$f":"'Population at Risk'!E102/'Population at Risk'!E$5","v":1.5286116193519196E-3},{"$f":"'Population at Risk'!F102/'Population at Risk'!F$5","v":3.7720112020261541E-3},{"$f":"'Population at Risk'!G102/'Population at Risk'!G$5","v":2.3083202124570606E-3},{"$f":"'Population at Risk'!H102/'Population at Risk'!H$5","v":3.6659174977063825E-3},{"$f":"'Population at Risk'!I102/'Population at Risk'!I$5","v":2.6296556551364332E-3},{"$f":"'Population at Risk'!J102/'Population at Risk'!J$5","v":4.7690971645027369E-3},{"$f":"'Population at Risk'!K102/'Population at Risk'!K$5","v":4.4141608462907617E-3},{"$f":"'Population at Risk'!L102/'Population at Risk'!L$5","v":4.2658063795878252E-3},{"$f":"'Population at Risk'!M102/'Population at Risk'!M$5","v":4.2672596655260134E-3},{"$f":"'Population at Risk'!N102/'Population at Risk'!N$5","v":6.2834786413302497E-3},{"$f":"'Population at Risk'!O102/'Population at Risk'!O$5","v":3.9732523266424588E-3},{"$f":"'Population at Risk'!P102/'Population at Risk'!P$5","v":3.2118374925436842E-3},{"$f":"'Population at Risk'!Q102/'Population at Risk'!Q$5","v":4.855356774751878E-3},{"$f":"'Population at Risk'!R102/'Population at Risk'!R$5","v":2.0788050466973686E-3},{"$f":"'Population at Risk'!S102/'Population at Risk'!S$5","v":4.5952033694437395E-3},{"$f":"'Population at Risk'!T102/'Population at Risk'!T$5","v":5.5329534628358384E-3},{"$f":"'Population at Risk'!U102/'Population at Risk'!U$5","v":2.9256387858657322E-3},{"$f":"'Population at Risk'!V102/'Population at Risk'!V$5","v":5.1817477719241032E-3},{"$f":"'Population at Risk'!W102/'Population at Risk'!W$5","v":3.4520361172141402E-3},{"$f":"'Population at Risk'!X102/'Population at Risk'!X$5","v":3.4523741188484023E-3},{"$f":"'Population at Risk'!Y102/'Population at Risk'!Y$5","v":4.8385025885652379E-3},{"$f":"'Population at Risk'!Z102/'Population at Risk'!Z$5","v":4.4159743257431109E-3},{"$f":"'Population at Risk'!AA102/'Population at Risk'!AA$5","v":4.0089768485114859E-3},{"$f":"'Population at Risk'!AB102/'Population at Risk'!AB$5","v":3.7147204620505657E-3},{"$f":"'Population at Risk'!AC102/'Population at Risk'!AC$5","v":3.7659869063769945E-3},{"$f":"'Population at Risk'!AD102/'Population at Risk'!AD$5","v":2.8529008156566839E-3},{"$f":"'Population at Risk'!AE102/'Population at Risk'!AE$5","v":3.0272586383089223E-3},{"$f":"'Population at Risk'!AF102/'Population at Risk'!AF$5","v":1.8232690894581952E-3},{"$f":"'Population at Risk'!AG102/'Population at Risk'!AG$5","v":3.0272586383089223E-3},{"$f":"'Population at Risk'!AH102/'Population at Risk'!AH$5","v":4.3896439325567405E-3},{"$f":"'Population at Risk'!AI102/'Population at Risk'!AI$5","v":5.3891627842214884E-3},{"$f":"'Population at Risk'!AJ102/'Population at Risk'!AJ$5","v":5.7357857878901066E-3},{"$f":"'Population at Risk'!AK102/'Population at Risk'!AK$5","v":3.7449151178509227E-3},{"$f":"'Population at Risk'!AL102/'Population at Risk'!AL$5","v":3.0149313273738257E-3},{"$f":"'Population at Risk'!AM102/'Population at Risk'!AM$5","v":4.3750744983818979E-3},{"$f":"'Population at Risk'!AN102/'Population at Risk'!AN$5","v":2.3254260378962875E-3},{"$f":"'Population at Risk'!AO102/'Population at Risk'!AO$5","v":2.3276999853901834E-3},{"$f":"'Population at Risk'!AP102/'Population at Risk'!AP$5","v":2.2841317834025069E-3},{"$f":"'Population at Risk'!AQ102/'Population at Risk'!AQ$5","v":3.0237887195029007E-3},{"$f":"'Population at Risk'!AR102/'Population at Risk'!AR$5","v":4.0507190955970723E-3},{"$f":"'Population at Risk'!AS102/'Population at Risk'!AS$5","v":2.6292406051391425E-3},{"$f":"'Population at Risk'!AT102/'Population at Risk'!AT$5","v":7.1321174051129849E-4},{"$f":"'Population at Risk'!AU102/'Population at Risk'!AU$5","v":7.1238175853942788E-4},{"$f":"'Population at Risk'!AV102/'Population at Risk'!AV$5","v":4.1360982887828131E-3},{"$f":"'Population at Risk'!AW102/'Population at Risk'!AW$5","v":4.4294716391409996E-3},{"$f":"'Population at Risk'!AX102/'Population at Risk'!AX$5","v":4.5369302529262613E-3},{"$f":"'Population at Risk'!AY102/'Population at Risk'!AY$5","v":3.7382182960109065E-3},{"$f":"'Population at Risk'!AZ102/'Population at Risk'!AZ$5","v":3.9742264251445359E-3},{"$f":"'Population at Risk'!BA102/'Population at Risk'!BA$5","v":4.6198988546298867E-3},{"$f":"'Population at Risk'!BB102/'Population at Risk'!BB$5","v":5.0055509902914462E-3},{"$f":"'Population at Risk'!BC102/'Population at Risk'!BC$5","v":2.9276911936088213E-3},100]
[null,"Female 25-29",{"$f":"'Population at Risk'!C103/'Population at Risk'!C$5","v":1.0024800647364839E-2},{"$f":"'Population at Risk'!D103/'Population at Risk'!D$5","v":6.1473050982368974E-3},{"$f":"'Population at Risk'!E103/'Population at Risk'!E$5","v":2.5006337959690614E-3},{"$f":"'Population at Risk'!F103/'Population at Risk'!F$5","v":5.6896818054140335E-3},{"$f":"'Population at Risk'!G103/'Population at Risk'!G$5","v":3.9618243719918098E-3},{"$f":"'Population at Risk'!H103/'Population at Risk'!H$5","v":5.7667940812692964E-3},{"$f":"'Population at Risk'!I103/'Population at Risk'!I$5","v":3.8977146263814177E-3},{"$f":"'Population at Risk'!J103/'Population at Risk'!J$5","v":6.8925340110032674E-3},{"$f":"'Population at Risk'!K103/'Population at Risk'!K$5","v":7.4575864957510674E-3},{"$f":"'Population at Risk'!L103/'Population at Risk'!L$5","v":6.0573393816656367E-3},{"$f":"'Population at Risk'!M103/'Population at Risk'!M$5","v":6.0594030116954333E-3},{"$f":"'Population at Risk'!N103/'Population at Risk'!N$5","v":8.4935097371810001E-3},{"$f":"'Population at Risk'!O103/'Population at Risk'!O$5","v":6.6092258966268542E-3},{"$f":"'Population at Risk'!P103/'Population at Risk'!P$5","v":5.3413563360989917E-3},{"$f":"'Population at Risk'!Q103/'Population at Risk'!Q$5","v":7.0914235966533816E-3},{"$f":"'Population at Risk'!R103/'Population at Risk'!R$5","v":2.8309558239224112E-3},{"$f":"'Population at Risk'!S103/'Population at Risk'!S$5","v":7.4452420576274431E-3},{"$f":"'Population at Risk'!T103/'Population at Risk'!T$5","v":9.162133369164379E-3},{"$f":"'Population at Risk'!U103/'Population at Risk'!U$5","v":4.6688091952902305E-3},{"$f":"'Population at Risk'!V103/'Population at Risk'!V$5","v":8.2305626190063257E-3},{"$f":"'Population at Risk'!W103/'Population at Risk'!W$5","v":5.7412693614553789E-3},{"$f":"'Population at Risk'!X103/'Population at Risk'!X$5","v":5.7418315103903907E-3},{"$f":"'Population at Risk'!Y103/'Population at Risk'!Y$5","v":7.3792880290707505E-3},{"$f":"'Population at Risk'!Z103/'Population at Risk'!Z$5","v":8.410610201597786E-3},{"$f":"'Population at Risk'!AA103/'Population at Risk'!AA$5","v":6.7652157164091991E-3},{"$f":"'Population at Risk'!AB103/'Population at Risk'!AB$5","v":5.9461120646106024E-3},{"$f":"'Population at Risk'!AC103/'Population at Risk'!AC$5","v":6.7660231200066118E-3},{"$f":"'Population at Risk'!AD103/'Population at Risk'!AD$5","v":4.5270104320348521E-3},{"$f":"'Population at Risk'!AE103/'Population at Risk'!AE$5","v":4.6871469730714512E-3},{"$f":"'Population at Risk'!AF103/'Population at Risk'!AF$5","v":3.2966239008212252E-3},{"$f":"'Population at Risk'!AG103/'Population at Risk'!AG$5","v":4.6871469730714512E-3},{"$f":"'Population at Risk'!AH103/'Population at Risk'!AH$5","v":6.7459581382640146E-3},{"$f":"'Population at Risk'!AI103/'Population at Risk'!AI$5","v":8.7213901730396476E-3},{"$f":"'Population at Risk'!AJ103/'Population at Risk'!AJ$5","v":8.8182490594455303E-3},{"$f":"'Population at Risk'!AK103/'Population at Risk'!AK$5","v":4.8800092604204615E-3},{"$f":"'Population at Risk'!AL103/'Population at Risk'!AL$5","v":4.4187074732033602E-3},{"$f":"'Population at Risk'!AM103/'Population at Risk'!AM$5","v":6.9341465235703541E-3},{"$f":"'Population at Risk'!AN103/'Population at Risk'!AN$5","v":3.8678366044237389E-3},{"$f":"'Population at Risk'!AO103/'Population at Risk'!AO$5","v":3.8716188177515742E-3},{"$f":"'Population at Risk'!AP103/'Population at Risk'!AP$5","v":3.7263355688958253E-3},{"$f":"'Population at Risk'!AQ103/'Population at Risk'!AQ$5","v":4.9514540281859988E-3},{"$f":"'Population at Risk'!AR103/'Population at Risk'!AR$5","v":6.5252744200446338E-3},{"$f":"'Population at Risk'!AS103/'Population at Risk'!AS$5","v":3.8970994331176305E-3},{"$f":"'Population at Risk'!AT103/'Population at Risk'!AT$5","v":9.2346668421166385E-4},{"$f":"'Population at Risk'!AU103/'Population at Risk'!AU$5","v":9.2239202341181596E-4},{"$f":"'Population at Risk'!AV103/'Population at Risk'!AV$5","v":6.5119362495317974E-3},{"$f":"'Population at Risk'!AW103/'Population at Risk'!AW$5","v":6.572522854965371E-3},{"$f":"'Population at Risk'!AX103/'Population at Risk'!AX$5","v":5.9219180053993042E-3},{"$f":"'Population at Risk'!AY103/'Population at Risk'!AY$5","v":5.7442954345842557E-3},{"$f":"'Population at Risk'!AZ103/'Population at Risk'!AZ$5","v":5.7480086122064875E-3},{"$f":"'Population at Risk'!BA103/'Population at Risk'!BA$5","v":7.3760356300691171E-3},{"$f":"'Population at Risk'!BB103/'Population at Risk'!BB$5","v":8.3425784881229065E-3},{"$f":"'Population at Risk'!BC103/'Population at Risk'!BC$5","v":4.6720844800552932E-3},101]
[null,"Female 30-34",{"$f":"'Population at Risk'!C104/'Population at Risk'!C$5","v":8.5393476079074944E-3},{"$f":"'Population at Risk'!D104/'Population at Risk'!D$5","v":5.3366073670652377E-3},{"$f":"'Population at Risk'!E104/'Population at Risk'!E$5","v":2.3238972720434287E-3},{"$f":"'Population at Risk'!F104/'Population at Risk'!F$5","v":5.1764373126576124E-3},{"$f":"'Population at Risk'!G104/'Population at Risk'!G$5","v":3.2953492439931876E-3},{"$f":"'Population at Risk'!H104/'Population at Risk'!H$5","v":5.4815640281607736E-3},{"$f":"'Population at Risk'!I104/'Population at Risk'!I$5","v":3.2991370230442715E-3},{"$f":"'Population at Risk'!J104/'Population at Risk'!J$5","v":5.7223589531980017E-3},{"$f":"'Population at Risk'!K104/'Population at Risk'!K$5","v":6.9249017460545625E-3},{"$f":"'Population at Risk'!L104/'Population at Risk'!L$5","v":6.1646989416018743E-3},{"$f":"'Population at Risk'!M104/'Population at Risk'!M$5","v":6.1667991471639153E-3},{"$f":"'Population at Risk'!N104/'Population at Risk'!N$5","v":6.2750980422993886E-3},{"$f":"'Population at Risk'!O104/'Population at Risk'!O$5","v":6.2839687166747447E-3},{"$f":"'Population at Risk'!P104/'Population at Risk'!P$5","v":4.7194175846354113E-3},{"$f":"'Population at Risk'!Q104/'Population at Risk'!Q$5","v":7.2903200513599487E-3},{"$f":"'Population at Risk'!R104/'Population at Risk'!R$5","v":2.7417918609642248E-3},{"$f":"'Population at Risk'!S104/'Population at Risk'!S$5","v":6.9734920903624653E-3},{"$f":"'Population at Risk'!T104/'Population at Risk'!T$5","v":7.6880619440586745E-3},{"$f":"'Population at Risk'!U104/'Population at Risk'!U$5","v":4.460645727984297E-3},{"$f":"'Population at Risk'!V104/'Population at Risk'!V$5","v":8.760252292506732E-3},{"$f":"'Population at Risk'!W104/'Population at Risk'!W$5","v":5.6884871107441299E-3},{"$f":"'Population at Risk'!X104/'Population at Risk'!X$5","v":5.6890440915735967E-3},{"$f":"'Population at Risk'!Y104/'Population at Risk'!Y$5","v":7.1305820617942189E-3},{"$f":"'Population at Risk'!Z104/'Population at Risk'!Z$5","v":6.9871455544229253E-3},{"$f":"'Population at Risk'!AA104/'Population at Risk'!AA$5","v":6.4177143436881324E-3},{"$f":"'Population at Risk'!AB104/'Population at Risk'!AB$5","v":5.3266237691179472E-3},{"$f":"'Population at Risk'!AC104/'Population at Risk'!AC$5","v":5.9659815598205228E-3},{"$f":"'Population at Risk'!AD104/'Population at Risk'!AD$5","v":4.5034186000207739E-3},{"$f":"'Population at Risk'!AE104/'Population at Risk'!AE$5","v":4.9144681888555163E-3},{"$f":"'Population at Risk'!AF104/'Population at Risk'!AF$5","v":3.4997771944292556E-3},{"$f":"'Population at Risk'!AG104/'Population at Risk'!AG$5","v":4.9144681888555163E-3},{"$f":"'Population at Risk'!AH104/'Population at Risk'!AH$5","v":7.1281449702554544E-3},{"$f":"'Population at Risk'!AI104/'Population at Risk'!AI$5","v":8.0846914876465028E-3},{"$f":"'Population at Risk'!AJ104/'Population at Risk'!AJ$5","v":9.3380059970152463E-3},{"$f":"'Population at Risk'!AK104/'Population at Risk'!AK$5","v":5.2349190248146766E-3},{"$f":"'Population at Risk'!AL104/'Population at Risk'!AL$5","v":4.5519057325528718E-3},{"$f":"'Population at Risk'!AM104/'Population at Risk'!AM$5","v":7.3205200027933641E-3},{"$f":"'Population at Risk'!AN104/'Population at Risk'!AN$5","v":2.398058694742718E-3},{"$f":"'Population at Risk'!AO104/'Population at Risk'!AO$5","v":2.4004036670059758E-3},{"$f":"'Population at Risk'!AP104/'Population at Risk'!AP$5","v":4.0281571414543657E-3},{"$f":"'Population at Risk'!AQ104/'Population at Risk'!AQ$5","v":4.7532114553629091E-3},{"$f":"'Population at Risk'!AR104/'Population at Risk'!AR$5","v":6.1222852980187311E-3},{"$f":"'Population at Risk'!AS104/'Population at Risk'!AS$5","v":3.2986163058888514E-3},{"$f":"'Population at Risk'!AT104/'Population at Risk'!AT$5","v":6.42411606408114E-4},{"$f":"'Population at Risk'!AU104/'Population at Risk'!AU$5","v":6.4166401628648064E-4},{"$f":"'Population at Risk'!AV104/'Population at Risk'!AV$5","v":5.7534030160698519E-3},{"$f":"'Population at Risk'!AW104/'Population at Risk'!AW$5","v":6.9520987872870137E-3},{"$f":"'Population at Risk'!AX104/'Population at Risk'!AX$5","v":4.4844609852852857E-3},{"$f":"'Population at Risk'!AY104/'Population at Risk'!AY$5","v":5.2778690343759259E-3},{"$f":"'Population at Risk'!AZ104/'Population at Risk'!AZ$5","v":4.9415127211627644E-3},{"$f":"'Population at Risk'!BA104/'Population at Risk'!BA$5","v":7.6440978862615458E-3},{"$f":"'Population at Risk'!BB104/'Population at Risk'!BB$5","v":8.664232371079909E-3},{"$f":"'Population at Risk'!BC104/'Population at Risk'!BC$5","v":4.4637749809445472E-3},102]
[null,"Female 35-39",{"$f":"'Population at Risk'!C105/'Population at Risk'!C$5","v":7.5772815502502828E-3},{"$f":"'Population at Risk'!D105/'Population at Risk'!D$5","v":5.0931249805811199E-3},{"$f":"'Population at Risk'!E105/'Population at Risk'!E$5","v":2.754055657505109E-3},{"$f":"'Population at Risk'!F105/'Population at Risk'!F$5","v":4.9260837013054342E-3},{"$f":"'Population at Risk'!G105/'Population at Risk'!G$5","v":4.0984475335678616E-3},{"$f":"'Population at Risk'!H105/'Population at Risk'!H$5","v":6.5525641604234517E-3},{"$f":"'Population at Risk'!I105/'Population at Risk'!I$5","v":3.7591746742509707E-3},{"$f":"'Population at Risk'!J105/'Population at Risk'!J$5","v":6.8086292115974688E-3},{"$f":"'Population at Risk'!K105/'Population at Risk'!K$5","v":8.3016052157515955E-3},{"$f":"'Population at Risk'!L105/'Population at Risk'!L$5","v":7.1432496272159597E-3},{"$f":"'Population at Risk'!M105/'Population at Risk'!M$5","v":7.1456832079536802E-3},{"$f":"'Population at Risk'!N105/'Population at Risk'!N$5","v":5.805394701267565E-3},{"$f":"'Population at Risk'!O105/'Population at Risk'!O$5","v":7.4128842478245532E-3},{"$f":"'Population at Risk'!P105/'Population at Risk'!P$5","v":6.2751720973052549E-3},{"$f":"'Population at Risk'!Q105/'Population at Risk'!Q$5","v":8.1634264349610165E-3},{"$f":"'Population at Risk'!R105/'Population at Risk'!R$5","v":3.5588587677093967E-3},{"$f":"'Population at Risk'!S105/'Population at Risk'!S$5","v":6.8939867593860891E-3},{"$f":"'Population at Risk'!T105/'Population at Risk'!T$5","v":6.1651395054167068E-3},{"$f":"'Population at Risk'!U105/'Population at Risk'!U$5","v":5.4007864039357957E-3},{"$f":"'Population at Risk'!V105/'Population at Risk'!V$5","v":1.0136063567184177E-2},{"$f":"'Population at Risk'!W105/'Population at Risk'!W$5","v":6.3650504399077653E-3},{"$f":"'Population at Risk'!X105/'Population at Risk'!X$5","v":6.3656736655571498E-3},{"$f":"'Population at Risk'!Y105/'Population at Risk'!Y$5","v":8.3345555636868407E-3},{"$f":"'Population at Risk'!Z105/'Population at Risk'!Z$5","v":6.1927128144703683E-3},{"$f":"'Population at Risk'!AA105/'Population at Risk'!AA$5","v":6.4942885547959158E-3},{"$f":"'Population at Risk'!AB105/'Population at Risk'!AB$5","v":5.1068966289062401E-3},{"$f":"'Population at Risk'!AC105/'Population at Risk'!AC$5","v":5.79811081360012E-3},{"$f":"'Population at Risk'!AD105/'Population at Risk'!AD$5","v":5.0562858796076972E-3},{"$f":"'Population at Risk'!AE105/'Population at Risk'!AE$5","v":5.3624449553055387E-3},{"$f":"'Population at Risk'!AF105/'Population at Risk'!AF$5","v":2.7183912611728291E-3},{"$f":"'Population at Risk'!AG105/'Population at Risk'!AG$5","v":5.3624449553055387E-3},{"$f":"'Population at Risk'!AH105/'Population at Risk'!AH$5","v":7.5981674335658745E-3},{"$f":"'Population at Risk'!AI105/'Population at Risk'!AI$5","v":7.5880407104704324E-3},{"$f":"'Population at Risk'!AJ105/'Population at Risk'!AJ$5","v":1.0718431735915794E-2},{"$f":"'Population at Risk'!AK105/'Population at Risk'!AK$5","v":5.1373489422156292E-3},{"$f":"'Population at Risk'!AL105/'Population at Risk'!AL$5","v":5.2932272098286616E-3},{"$f":"'Population at Risk'!AM105/'Population at Risk'!AM$5","v":7.9921752959248114E-3},{"$f":"'Population at Risk'!AN105/'Population at Risk'!AN$5","v":3.259759544361853E-3},{"$f":"'Population at Risk'!AO105/'Population at Risk'!AO$5","v":3.2629471417852094E-3},{"$f":"'Population at Risk'!AP105/'Population at Risk'!AP$5","v":3.6378095116480322E-3},{"$f":"'Population at Risk'!AQ105/'Population at Risk'!AQ$5","v":5.2317316511157124E-3},{"$f":"'Population at Risk'!AR105/'Population at Risk'!AR$5","v":6.2968454746173278E-3},{"$f":"'Population at Risk'!AS105/'Population at Risk'!AS$5","v":3.7585813473508052E-3},{"$f":"'Population at Risk'!AT105/'Population at Risk'!AT$5","v":1.620434238110543E-3},{"$f":"'Population at Risk'!AU105/'Population at Risk'!AU$5","v":1.6185484990966709E-3},{"$f":"'Population at Risk'!AV105/'Population at Risk'!AV$5","v":7.1691933332862336E-3},{"$f":"'Population at Risk'!AW105/'Population at Risk'!AW$5","v":7.1999734028583952E-3},{"$f":"'Population at Risk'!AX105/'Population at Risk'!AX$5","v":5.2991255715960049E-3},{"$f":"'Population at Risk'!AY105/'Population at Risk'!AY$5","v":5.3837218297403261E-3},{"$f":"'Population at Risk'!AZ105/'Population at Risk'!AZ$5","v":4.5783269047215656E-3},{"$f":"'Population at Risk'!BA105/'Population at Risk'!BA$5","v":8.28336134848651E-3},{"$f":"'Population at Risk'!BB105/'Population at Risk'!BB$5","v":8.8361864400979973E-3},{"$f":"'Population at Risk'!BC105/'Population at Risk'!BC$5","v":5.404575188760417E-3},103]
[null,"Female 40-44",{"$f":"'Population at Risk'!C106/'Population at Risk'!C$5","v":6.8290845669865758E-3},{"$f":"'Population at Risk'!D106/'Population at Risk'!D$5","v":4.7169675850964252E-3},{"$f":"'Population at Risk'!E106/'Population at Risk'!E$5","v":2.7272739169134871E-3},{"$f":"'Population at Risk'!F106/'Population at Risk'!F$5","v":5.4482833869561867E-3},{"$f":"'Population at Risk'!G106/'Population at Risk'!G$5","v":4.8236420033144541E-3},{"$f":"'Population at Risk'!H106/'Population at Risk'!H$5","v":7.1686172011470239E-3},{"$f":"'Population at Risk'!I106/'Population at Risk'!I$5","v":4.0813896463296256E-3},{"$f":"'Population at Risk'!J106/'Population at Risk'!J$5","v":7.2662847128487145E-3},{"$f":"'Population at Risk'!K106/'Population at Risk'!K$5","v":9.4234437584207326E-3},{"$f":"'Population at Risk'!L106/'Population at Risk'!L$5","v":8.0286101443920229E-3},{"$f":"'Population at Risk'!M106/'Population at Risk'!M$5","v":8.0313453520380797E-3},{"$f":"'Population at Risk'!N106/'Population at Risk'!N$5","v":5.1655890207334366E-3},{"$f":"'Population at Risk'!O106/'Population at Risk'!O$5","v":7.9147982854376724E-3},{"$f":"'Population at Risk'!P106/'Population at Risk'!P$5","v":5.9711845216572496E-3},{"$f":"'Population at Risk'!Q106/'Population at Risk'!Q$5","v":7.9273317883436778E-3},{"$f":"'Population at Risk'!R106/'Population at Risk'!R$5","v":3.5191688929765781E-3},{"$f":"'Population at Risk'!S106/'Population at Risk'!S$5","v":6.8567604981623819E-3},{"$f":"'Population at Risk'!T106/'Population at Risk'!T$5","v":5.4343174971758206E-3},{"$f":"'Population at Risk'!U106/'Population at Risk'!U$5","v":7.0598515084128056E-3},{"$f":"'Population at Risk'!V106/'Population at Risk'!V$5","v":1.0605901551211801E-2},{"$f":"'Population at Risk'!W106/'Population at Risk'!W$5","v":6.8064745196329112E-3},{"$f":"'Population at Risk'!X106/'Population at Risk'!X$5","v":6.8071409667479141E-3},{"$f":"'Population at Risk'!Y106/'Population at Risk'!Y$5","v":8.7845855617260868E-3},{"$f":"'Population at Risk'!Z106/'Population at Risk'!Z$5","v":5.4318506216428459E-3},{"$f":"'Population at Risk'!AA106/'Population at Risk'!AA$5","v":6.4844412635831853E-3},{"$f":"'Population at Risk'!AB106/'Population at Risk'!AB$5","v":4.8270402376774397E-3},{"$f":"'Population at Risk'!AC106/'Population at Risk'!AC$5","v":5.5713245082858907E-3},{"$f":"'Population at Risk'!AD106/'Population at Risk'!AD$5","v":5.6194783375824627E-3},{"$f":"'Population at Risk'!AE106/'Population at Risk'!AE$5","v":5.8550018002417508E-3},{"$f":"'Population at Risk'!AF106/'Population at Risk'!AF$5","v":3.1897252298439239E-3},{"$f":"'Population at Risk'!AG106/'Population at Risk'!AG$5","v":5.8550018002417508E-3},{"$f":"'Population at Risk'!AH106/'Population at Risk'!AH$5","v":7.9377025160271356E-3},{"$f":"'Population at Risk'!AI106/'Population at Risk'!AI$5","v":7.2839639211083815E-3},{"$f":"'Population at Risk'!AJ106/'Population at Risk'!AJ$5","v":1.0153753381048037E-2},{"$f":"'Population at Risk'!AK106/'Population at Risk'!AK$5","v":5.3479919512358608E-3},{"$f":"'Population at Risk'!AL106/'Population at Risk'!AL$5","v":6.2968780833805894E-3},{"$f":"'Population at Risk'!AM106/'Population at Risk'!AM$5","v":8.3205465050273254E-3},{"$f":"'Population at Risk'!AN106/'Population at Risk'!AN$5","v":4.8207711571548531E-3},{"$f":"'Population at Risk'!AO106/'Population at Risk'!AO$5","v":4.8254852096823514E-3},{"$f":"'Population at Risk'!AP106/'Population at Risk'!AP$5","v":3.169303741208513E-3},{"$f":"'Population at Risk'!AQ106/'Population at Risk'!AQ$5","v":6.0854451841429623E-3},{"$f":"'Population at Risk'!AR106/'Population at Risk'!AR$5","v":6.378479019874983E-3},{"$f":"'Population at Risk'!AS106/'Population at Risk'!AS$5","v":4.0807454628380172E-3},{"$f":"'Population at Risk'!AT106/'Population at Risk'!AT$5","v":6.6723762745728242E-4},{"$f":"'Population at Risk'!AU106/'Population at Risk'!AU$5","v":6.6646114668686451E-4},{"$f":"'Population at Risk'!AV106/'Population at Risk'!AV$5","v":7.4325167851012489E-3},{"$f":"'Population at Risk'!AW106/'Population at Risk'!AW$5","v":7.5537730198825164E-3},{"$f":"'Population at Risk'!AX106/'Population at Risk'!AX$5","v":5.323157887113448E-3},{"$f":"'Population at Risk'!AY106/'Population at Risk'!AY$5","v":5.4505205735118608E-3},{"$f":"'Population at Risk'!AZ106/'Population at Risk'!AZ$5","v":4.3372391382663911E-3},{"$f":"'Population at Risk'!BA106/'Population at Risk'!BA$5","v":8.5810286088410428E-3},{"$f":"'Population at Risk'!BB106/'Population at Risk'!BB$5","v":9.7513196036472412E-3},{"$f":"'Population at Risk'!BC106/'Population at Risk'!BC$5","v":7.0648041683142697E-3},104]
[null,"Female 45-49",{"$f":"'Population at Risk'!C107/'Population at Risk'!C$5","v":7.2077111313764222E-3},{"$f":"'Population at Risk'!D107/'Population at Risk'!D$5","v":5.0886653787685192E-3},{"$f":"'Population at Risk'!E107/'Population at Risk'!E$5","v":3.0915830923889096E-3},{"$f":"'Population at Risk'!F107/'Population at Risk'!F$5","v":5.8435432133297806E-3},{"$f":"'Population at Risk'!G107/'Population at Risk'!G$5","v":5.7687690256369292E-3},{"$f":"'Population at Risk'!H107/'Population at Risk'!H$5","v":9.2194152257672243E-3},{"$f":"'Population at Risk'!I107/'Population at Risk'!I$5","v":5.5388352558752739E-3},{"$f":"'Population at Risk'!J107/'Population at Risk'!J$5","v":8.4307542442943889E-3},{"$f":"'Population at Risk'!K107/'Population at Risk'!K$5","v":1.1223632259980654E-2},{"$f":"'Population at Risk'!L107/'Population at Risk'!L$5","v":1.0604916080772736E-2},{"$f":"'Population at Risk'!M107/'Population at Risk'!M$5","v":1.0608528990981135E-2},{"$f":"'Population at Risk'!N107/'Population at Risk'!N$5","v":5.4330102544080348E-3},{"$f":"'Population at Risk'!O107/'Population at Risk'!O$5","v":1.0353407784930524E-2},{"$f":"'Population at Risk'!P107/'Population at Risk'!P$5","v":8.264915303183188E-3},{"$f":"'Population at Risk'!Q107/'Population at Risk'!Q$5","v":1.0029963965792895E-2},{"$f":"'Population at Risk'!R107/'Population at Risk'!R$5","v":5.1426676918011104E-3},{"$f":"'Population at Risk'!S107/'Population at Risk'!S$5","v":7.7713723242528133E-3},{"$f":"'Population at Risk'!T107/'Population at Risk'!T$5","v":5.1319925382881442E-3},{"$f":"'Population at Risk'!U107/'Population at Risk'!U$5","v":8.3040652099436937E-3},{"$f":"'Population at Risk'!V107/'Population at Risk'!V$5","v":1.2263864442928728E-2},{"$f":"'Population at Risk'!W107/'Population at Risk'!W$5","v":7.8641341235796917E-3},{"$f":"'Population at Risk'!X107/'Population at Risk'!X$5","v":7.8649041300615421E-3},{"$f":"'Population at Risk'!Y107/'Population at Risk'!Y$5","v":1.0170643226683904E-2},{"$f":"'Population at Risk'!Z107/'Population at Risk'!Z$5","v":6.181225595401043E-3},{"$f":"'Population at Risk'!AA107/'Population at Risk'!AA$5","v":7.8748390277687107E-3},{"$f":"'Population at Risk'!AB107/'Population at Risk'!AB$5","v":5.2847709805061939E-3},{"$f":"'Population at Risk'!AC107/'Population at Risk'!AC$5","v":6.6930160233777481E-3},{"$f":"'Population at Risk'!AD107/'Population at Risk'!AD$5","v":6.7041223191966533E-3},{"$f":"'Population at Risk'!AE107/'Population at Risk'!AE$5","v":6.9796124363565607E-3},{"$f":"'Population at Risk'!AF107/'Population at Risk'!AF$5","v":4.4267962659903983E-3},{"$f":"'Population at Risk'!AG107/'Population at Risk'!AG$5","v":6.9796124363565607E-3},{"$f":"'Population at Risk'!AH107/'Population at Risk'!AH$5","v":9.7571312877688093E-3},{"$f":"'Population at Risk'!AI107/'Population at Risk'!AI$5","v":8.0497768787787128E-3},{"$f":"'Population at Risk'!AJ107/'Population at Risk'!AJ$5","v":1.2838379669466911E-2},{"$f":"'Population at Risk'!AK107/'Population at Risk'!AK$5","v":6.2384647644662611E-3},{"$f":"'Population at Risk'!AL107/'Population at Risk'!AL$5","v":7.912321426609881E-3},{"$f":"'Population at Risk'!AM107/'Population at Risk'!AM$5","v":9.8858835334364476E-3},{"$f":"'Population at Risk'!AN107/'Population at Risk'!AN$5","v":4.4037238896931351E-3},{"$f":"'Population at Risk'!AO107/'Population at Risk'!AO$5","v":4.4080301272339494E-3},{"$f":"'Population at Risk'!AP107/'Population at Risk'!AP$5","v":4.0554947677415975E-3},{"$f":"'Population at Risk'!AQ107/'Population at Risk'!AQ$5","v":7.000570627267195E-3},{"$f":"'Population at Risk'!AR107/'Population at Risk'!AR$5","v":7.543062730046993E-3},{"$f":"'Population at Risk'!AS107/'Population at Risk'!AS$5","v":5.5379610373997657E-3},{"$f":"'Population at Risk'!AT107/'Population at Risk'!AT$5","v":1.1067501482536735E-3},{"$f":"'Population at Risk'!AU107/'Population at Risk'!AU$5","v":1.1054621959973672E-3},{"$f":"'Population at Risk'!AV107/'Population at Risk'!AV$5","v":9.596816509743266E-3},{"$f":"'Population at Risk'!AW107/'Population at Risk'!AW$5","v":9.6661085133285911E-3},{"$f":"'Population at Risk'!AX107/'Population at Risk'!AX$5","v":6.0053742779357594E-3},{"$f":"'Population at Risk'!AY107/'Population at Risk'!AY$5","v":6.2021716616781249E-3},{"$f":"'Population at Risk'!AZ107/'Population at Risk'!AZ$5","v":4.8375453623199539E-3},{"$f":"'Population at Risk'!BA107/'Population at Risk'!BA$5","v":1.0695030533691764E-2},{"$f":"'Population at Risk'!BB107/'Population at Risk'!BB$5","v":1.1252741312128296E-2},{"$f":"'Population at Risk'!BC107/'Population at Risk'!BC$5","v":8.3098907164342248E-3},105]
[null,"Female 50-54",{"$f":"'Population at Risk'!C108/'Population at Risk'!C$5","v":7.5156507257743473E-3},{"$f":"'Population at Risk'!D108/'Population at Risk'!D$5","v":5.3472926026894461E-3},{"$f":"'Population at Risk'!E108/'Population at Risk'!E$5","v":3.3033970943455843E-3},{"$f":"'Population at Risk'!F108/'Population at Risk'!F$5","v":5.44811547708942E-3},{"$f":"'Population at Risk'!G108/'Population at Risk'!G$5","v":6.4011148611394396E-3},{"$f":"'Population at Risk'!H108/'Population at Risk'!H$5","v":9.5252726029253793E-3},{"$f":"'Population at Risk'!I108/'Population at Risk'!I$5","v":5.9475746045769126E-3},{"$f":"'Population at Risk'!J108/'Population at Risk'!J$5","v":8.8360789675777721E-3},{"$f":"'Population at Risk'!K108/'Population at Risk'!K$5","v":1.157372721120941E-2},{"$f":"'Population at Risk'!L108/'Population at Risk'!L$5","v":1.1478501121909188E-2},{"$f":"'Population at Risk'!M108/'Population at Risk'!M$5","v":1.1482411647326324E-2},{"$f":"'Population at Risk'!N108/'Population at Risk'!N$5","v":6.4801736826669053E-3},{"$f":"'Population at Risk'!O108/'Population at Risk'!O$5","v":9.776485965589516E-3},{"$f":"'Population at Risk'!P108/'Population at Risk'!P$5","v":8.1114553373415887E-3},{"$f":"'Population at Risk'!Q108/'Population at Risk'!Q$5","v":1.019499079521179E-2},{"$f":"'Population at Risk'!R108/'Population at Risk'!R$5","v":4.8488009665553335E-3},{"$f":"'Population at Risk'!S108/'Population at Risk'!S$5","v":7.8377464653222699E-3},{"$f":"'Population at Risk'!T108/'Population at Risk'!T$5","v":4.8718454510938147E-3},{"$f":"'Population at Risk'!U108/'Population at Risk'!U$5","v":9.6227365093768148E-3},{"$f":"'Population at Risk'!V108/'Population at Risk'!V$5","v":1.2222008250290748E-2},{"$f":"'Population at Risk'!W108/'Population at Risk'!W$5","v":8.4737123444933657E-3},{"$f":"'Population at Risk'!X108/'Population at Risk'!X$5","v":8.4745420370352341E-3},{"$f":"'Population at Risk'!Y108/'Population at Risk'!Y$5","v":1.0330581862128539E-2},{"$f":"'Population at Risk'!Z108/'Population at Risk'!Z$5","v":6.3338484496084767E-3},{"$f":"'Population at Risk'!AA108/'Population at Risk'!AA$5","v":8.1681363219922639E-3},{"$f":"'Population at Risk'!AB108/'Population at Risk'!AB$5","v":5.4718425196391574E-3},{"$f":"'Population at Risk'!AC108/'Population at Risk'!AC$5","v":6.9103623943092994E-3},{"$f":"'Population at Risk'!AD108/'Population at Risk'!AD$5","v":7.323012711362418E-3},{"$f":"'Population at Risk'!AE108/'Population at Risk'!AE$5","v":7.5850311111334617E-3},{"$f":"'Population at Risk'!AF108/'Population at Risk'!AF$5","v":5.3121555191884776E-3},{"$f":"'Population at Risk'!AG108/'Population at Risk'!AG$5","v":7.5850311111334617E-3},{"$f":"'Population at Risk'!AH108/'Population at Risk'!AH$5","v":1.0171960607355084E-2},{"$f":"'Population at Risk'!AI108/'Population at Risk'!AI$5","v":7.8230226005032554E-3},{"$f":"'Population at Risk'!AJ108/'Population at Risk'!AJ$5","v":1.2743358767308028E-2},{"$f":"'Population at Risk'!AK108/'Population at Risk'!AK$5","v":6.0612356518393775E-3},{"$f":"'Population at Risk'!AL108/'Population at Risk'!AL$5","v":8.2524124352975001E-3},{"$f":"'Population at Risk'!AM108/'Population at Risk'!AM$5","v":1.0200982371115268E-2},{"$f":"'Population at Risk'!AN108/'Population at Risk'!AN$5","v":5.6553085741322361E-3},{"$f":"'Population at Risk'!AO108/'Population at Risk'!AO$5","v":5.6608386897109668E-3},{"$f":"'Population at Risk'!AP108/'Population at Risk'!AP$5","v":3.9094134810819517E-3},{"$f":"'Population at Risk'!AQ108/'Population at Risk'!AQ$5","v":7.2657856155140975E-3},{"$f":"'Population at Risk'!AR108/'Population at Risk'!AR$5","v":7.8026503879510857E-3},{"$f":"'Population at Risk'!AS108/'Population at Risk'!AS$5","v":5.9466358729910133E-3},{"$f":"'Population at Risk'!AT108/'Population at Risk'!AT$5","v":9.62391433264064E-4},{"$f":"'Population at Risk'!AU108/'Population at Risk'!AU$5","v":9.6127147478031942E-4},{"$f":"'Population at Risk'!AV108/'Population at Risk'!AV$5","v":1.0831795578021219E-2},{"$f":"'Population at Risk'!AW108/'Population at Risk'!AW$5","v":1.0194294480734103E-2},{"$f":"'Population at Risk'!AX108/'Population at Risk'!AX$5","v":6.4057325631314763E-3},{"$f":"'Population at Risk'!AY108/'Population at Risk'!AY$5","v":6.591266496162324E-3},{"$f":"'Population at Risk'!AZ108/'Population at Risk'!AZ$5","v":5.0455101849306806E-3},{"$f":"'Population at Risk'!BA108/'Population at Risk'!BA$5","v":1.132719803616773E-2},{"$f":"'Population at Risk'!BB108/'Population at Risk'!BB$5","v":1.0781582486117486E-2},{"$f":"'Population at Risk'!BC108/'Population at Risk'!BC$5","v":9.6294870962971707E-3},106]
[null,"Female 55-59",{"$f":"'Population at Risk'!C109/'Population at Risk'!C$5","v":8.5624246893746172E-3},{"$f":"'Population at Risk'!D109/'Population at Risk'!D$5","v":6.0971735344333231E-3},{"$f":"'Population at Risk'!E109/'Population at Risk'!E$5","v":3.773383631008632E-3},{"$f":"'Population at Risk'!F109/'Population at Risk'!F$5","v":7.5487238803218322E-3},{"$f":"'Population at Risk'!G109/'Population at Risk'!G$5","v":8.3370866122957424E-3},{"$f":"'Population at Risk'!H109/'Population at Risk'!H$5","v":1.1464273805374988E-2},{"$f":"'Population at Risk'!I109/'Population at Risk'!I$5","v":7.4008228387751748E-3},{"$f":"'Population at Risk'!J109/'Population at Risk'!J$5","v":9.7141620560054435E-3},{"$f":"'Population at Risk'!K109/'Population at Risk'!K$5","v":1.241807385829052E-2},{"$f":"'Population at Risk'!L109/'Population at Risk'!L$5","v":1.3715712168599768E-2},{"$f":"'Population at Risk'!M109/'Population at Risk'!M$5","v":1.3720384872856168E-2},{"$f":"'Population at Risk'!N109/'Population at Risk'!N$5","v":7.8348856055930841E-3},{"$f":"'Population at Risk'!O109/'Population at Risk'!O$5","v":1.1857635341435756E-2},{"$f":"'Population at Risk'!P109/'Population at Risk'!P$5","v":9.8233927178857094E-3},{"$f":"'Population at Risk'!Q109/'Population at Risk'!Q$5","v":1.2359668622433675E-2},{"$f":"'Population at Risk'!R109/'Population at Risk'!R$5","v":4.925117831797215E-3},{"$f":"'Population at Risk'!S109/'Population at Risk'!S$5","v":9.2941013719848604E-3},{"$f":"'Population at Risk'!T109/'Population at Risk'!T$5","v":5.6649551377104127E-3},{"$f":"'Population at Risk'!U109/'Population at Risk'!U$5","v":1.0540063195727171E-2},{"$f":"'Population at Risk'!V109/'Population at Risk'!V$5","v":1.3664580596559029E-2},{"$f":"'Population at Risk'!W109/'Population at Risk'!W$5","v":9.7920049150854536E-3},{"$f":"'Population at Risk'!X109/'Population at Risk'!X$5","v":9.7929636865326866E-3},{"$f":"'Population at Risk'!Y109/'Population at Risk'!Y$5","v":1.1475990688520697E-2},{"$f":"'Population at Risk'!Z109/'Population at Risk'!Z$5","v":7.2578809996252831E-3},{"$f":"'Population at Risk'!AA109/'Population at Risk'!AA$5","v":9.4892107743874132E-3},{"$f":"'Population at Risk'!AB109/'Population at Risk'!AB$5","v":6.3691826911290578E-3},{"$f":"'Population at Risk'!AC109/'Population at Risk'!AC$5","v":7.944687516084575E-3},{"$f":"'Population at Risk'!AD109/'Population at Risk'!AD$5","v":9.0857367705517375E-3},{"$f":"'Population at Risk'!AE109/'Population at Risk'!AE$5","v":9.2567909403831992E-3},{"$f":"'Population at Risk'!AF109/'Population at Risk'!AF$5","v":6.2058326379818892E-3},{"$f":"'Population at Risk'!AG109/'Population at Risk'!AG$5","v":9.2567909403831992E-3},{"$f":"'Population at Risk'!AH109/'Population at Risk'!AH$5","v":1.1951306459394162E-2},{"$f":"'Population at Risk'!AI109/'Population at Risk'!AI$5","v":9.3370005320448334E-3},{"$f":"'Population at Risk'!AJ109/'Population at Risk'!AJ$5","v":1.5990343367335996E-2},{"$f":"'Population at Risk'!AK109/'Population at Risk'!AK$5","v":7.6994196533943559E-3},{"$f":"'Population at Risk'!AL109/'Population at Risk'!AL$5","v":9.4189250371745515E-3},{"$f":"'Population at Risk'!AM109/'Population at Risk'!AM$5","v":1.1818065068520105E-2},{"$f":"'Population at Risk'!AN109/'Population at Risk'!AN$5","v":6.4687352798717332E-3},{"$f":"'Population at Risk'!AO109/'Population at Risk'!AO$5","v":6.4750608151236061E-3},{"$f":"'Population at Risk'!AP109/'Population at Risk'!AP$5","v":4.5330392347169273E-3},{"$f":"'Population at Risk'!AQ109/'Population at Risk'!AQ$5","v":8.1985427875544241E-3},{"$f":"'Population at Risk'!AR109/'Population at Risk'!AR$5","v":9.1898453931438528E-3},{"$f":"'Population at Risk'!AS109/'Population at Risk'!AS$5","v":7.3996547346953942E-3},{"$f":"'Population at Risk'!AT109/'Population at Risk'!AT$5","v":8.6247436089333617E-4},{"$f":"'Population at Risk'!AU109/'Population at Risk'!AU$5","v":8.6147067835408225E-4},{"$f":"'Population at Risk'!AV109/'Population at Risk'!AV$5","v":1.3571004060805985E-2},{"$f":"'Population at Risk'!AW109/'Population at Risk'!AW$5","v":1.2164009456343864E-2},{"$f":"'Population at Risk'!AX109/'Population at Risk'!AX$5","v":7.2224449190923991E-3},{"$f":"'Population at Risk'!AY109/'Population at Risk'!AY$5","v":7.870620225190559E-3},{"$f":"'Population at Risk'!AZ109/'Population at Risk'!AZ$5","v":6.2931335435069688E-3},{"$f":"'Population at Risk'!BA109/'Population at Risk'!BA$5","v":1.3400472452505582E-2},{"$f":"'Population at Risk'!BB109/'Population at Risk'!BB$5","v":1.2675103902521587E-2},{"$f":"'Population at Risk'!BC109/'Population at Risk'!BC$5","v":1.054745730993569E-2},107]
[null,"Female 60-64",{"$f":"'Population at Risk'!C110/'Population at Risk'!C$5","v":7.6507420605778946E-3},{"$f":"'Population at Risk'!D110/'Population at Risk'!D$5","v":5.5244449049757895E-3},{"$f":"'Population at Risk'!E110/'Population at Risk'!E$5","v":3.5195168423780821E-3},{"$f":"'Population at Risk'!F110/'Population at Risk'!F$5","v":6.3337280843832958E-3},{"$f":"'Population at Risk'!G110/'Population at Risk'!G$5","v":7.4707113425341743E-3},{"$f":"'Population at Risk'!H110/'Population at Risk'!H$5","v":1.0088824192675004E-2},{"$f":"'Population at Risk'!I110/'Population at Risk'!I$5","v":6.7173413644871349E-3},{"$f":"'Population at Risk'!J110/'Population at Risk'!J$5","v":8.2611890989106127E-3},{"$f":"'Population at Risk'!K110/'Population at Risk'!K$5","v":1.1020710982516854E-2},{"$f":"'Population at Risk'!L110/'Population at Risk'!L$5","v":1.3490295912984347E-2},{"$f":"'Population at Risk'!M110/'Population at Risk'!M$5","v":1.3494891821848416E-2},{"$f":"'Population at Risk'!N110/'Population at Risk'!N$5","v":6.7467070492607121E-3},{"$f":"'Population at Risk'!O110/'Population at Risk'!O$5","v":1.03804215110212E-2},{"$f":"'Population at Risk'!P110/'Population at Risk'!P$5","v":7.409644792919506E-3},{"$f":"'Population at Risk'!Q110/'Population at Risk'!Q$5","v":1.0352542948705131E-2},{"$f":"'Population at Risk'!R110/'Population at Risk'!R$5","v":4.2923769992399344E-3},{"$f":"'Population at Risk'!S110/'Population at Risk'!S$5","v":7.9877262507408991E-3},{"$f":"'Population at Risk'!T110/'Population at Risk'!T$5","v":4.6506526411134123E-3},{"$f":"'Population at Risk'!U110/'Population at Risk'!U$5","v":1.1315738842165968E-2},{"$f":"'Population at Risk'!V110/'Population at Risk'!V$5","v":1.273574635993018E-2},{"$f":"'Population at Risk'!W110/'Population at Risk'!W$5","v":8.9269217740910612E-3},{"$f":"'Population at Risk'!X110/'Population at Risk'!X$5","v":8.9277958420457756E-3},{"$f":"'Population at Risk'!Y110/'Population at Risk'!Y$5","v":1.0340491204336168E-2},{"$f":"'Population at Risk'!Z110/'Population at Risk'!Z$5","v":5.7099093715269203E-3},{"$f":"'Population at Risk'!AA110/'Population at Risk'!AA$5","v":8.0607730544185203E-3},{"$f":"'Population at Risk'!AB110/'Population at Risk'!AB$5","v":5.8377937709526029E-3},{"$f":"'Population at Risk'!AC110/'Population at Risk'!AC$5","v":6.3358253137065371E-3},{"$f":"'Population at Risk'!AD110/'Population at Risk'!AD$5","v":8.208937029081936E-3},{"$f":"'Population at Risk'!AE110/'Population at Risk'!AE$5","v":8.3875827001677911E-3},{"$f":"'Population at Risk'!AF110/'Population at Risk'!AF$5","v":4.5056045179868503E-3},{"$f":"'Population at Risk'!AG110/'Population at Risk'!AG$5","v":8.3875827001677911E-3},{"$f":"'Population at Risk'!AH110/'Population at Risk'!AH$5","v":1.0817213962475876E-2},{"$f":"'Population at Risk'!AI110/'Population at Risk'!AI$5","v":7.7435945023840809E-3},{"$f":"'Population at Risk'!AJ110/'Population at Risk'!AJ$5","v":1.3097753781021623E-2},{"$f":"'Population at Risk'!AK110/'Population at Risk'!AK$5","v":7.3817618680873196E-3},{"$f":"'Population at Risk'!AL110/'Population at Risk'!AL$5","v":8.2015734050114256E-3},{"$f":"'Population at Risk'!AM110/'Population at Risk'!AM$5","v":1.0730620672188485E-2},{"$f":"'Population at Risk'!AN110/'Population at Risk'!AN$5","v":6.172004303730827E-3},{"$f":"'Population at Risk'!AO110/'Population at Risk'!AO$5","v":6.1780396768151844E-3},{"$f":"'Population at Risk'!AP110/'Population at Risk'!AP$5","v":4.4350757149096854E-3},{"$f":"'Population at Risk'!AQ110/'Population at Risk'!AQ$5","v":6.6564527722939712E-3},{"$f":"'Population at Risk'!AR110/'Population at Risk'!AR$5","v":8.0481103424222111E-3},{"$f":"'Population at Risk'!AS110/'Population at Risk'!AS$5","v":6.716281137263207E-3},{"$f":"'Population at Risk'!AT110/'Population at Risk'!AT$5","v":1.848159344771435E-3},{"$f":"'Population at Risk'!AU110/'Population at Risk'!AU$5","v":1.8460085964730336E-3},{"$f":"'Population at Risk'!AV110/'Population at Risk'!AV$5","v":1.2110693753292073E-2},{"$f":"'Population at Risk'!AW110/'Population at Risk'!AW$5","v":1.0971842719780599E-2},{"$f":"'Population at Risk'!AX110/'Population at Risk'!AX$5","v":5.8711487729396269E-3},{"$f":"'Population at Risk'!AY110/'Population at Risk'!AY$5","v":7.0752558606618074E-3},{"$f":"'Population at Risk'!AZ110/'Population at Risk'!AZ$5","v":5.5549005701340361E-3},{"$f":"'Population at Risk'!BA110/'Population at Risk'!BA$5","v":1.1476642248928047E-2},{"$f":"'Population at Risk'!BB110/'Population at Risk'!BB$5","v":1.0661814840130953E-2},{"$f":"'Population at Risk'!BC110/'Population at Risk'!BC$5","v":1.1323677111965589E-2},108]
[null,"Female 65-69",{"$f":"'Population at Risk'!C111/'Population at Risk'!C$5","v":8.8044582230885505E-3},{"$f":"'Population at Risk'!D111/'Population at Risk'!D$5","v":6.6982625601101058E-3},{"$f":"'Population at Risk'!E111/'Population at Risk'!E$5","v":4.7093236555103739E-3},{"$f":"'Population at Risk'!F111/'Population at Risk'!F$5","v":8.2244771391325883E-3},{"$f":"'Population at Risk'!G111/'Population at Risk'!G$5","v":9.9686151818381714E-3},{"$f":"'Population at Risk'!H111/'Population at Risk'!H$5","v":1.2632467924052478E-2},{"$f":"'Population at Risk'!I111/'Population at Risk'!I$5","v":8.885577953745576E-3},{"$f":"'Population at Risk'!J111/'Population at Risk'!J$5","v":1.0415167292394851E-2},{"$f":"'Population at Risk'!K111/'Population at Risk'!K$5","v":1.4720712232717335E-2},{"$f":"'Population at Risk'!L111/'Population at Risk'!L$5","v":1.6230552708070417E-2},{"$f":"'Population at Risk'!M111/'Population at Risk'!M$5","v":1.6236082174698938E-2},{"$f":"'Population at Risk'!N111/'Population at Risk'!N$5","v":8.4609618293169687E-3},{"$f":"'Population at Risk'!O111/'Population at Risk'!O$5","v":1.2711919600261114E-2},{"$f":"'Population at Risk'!P111/'Population at Risk'!P$5","v":8.9278721301390054E-3},{"$f":"'Population at Risk'!Q111/'Population at Risk'!Q$5","v":1.2250351487022431E-2},{"$f":"'Population at Risk'!R111/'Population at Risk'!R$5","v":5.1381159055241413E-3},{"$f":"'Population at Risk'!S111/'Population at Risk'!S$5","v":9.9966225787835126E-3},{"$f":"'Population at Risk'!T111/'Population at Risk'!T$5","v":5.5503292396209365E-3},{"$f":"'Population at Risk'!U111/'Population at Risk'!U$5","v":1.3098635104129765E-2},{"$f":"'Population at Risk'!V111/'Population at Risk'!V$5","v":1.543767023469316E-2},{"$f":"'Population at Risk'!W111/'Population at Risk'!W$5","v":1.1185753027985086E-2},{"$f":"'Population at Risk'!X111/'Population at Risk'!X$5","v":1.1186848266469139E-2},{"$f":"'Population at Risk'!Y111/'Population at Risk'!Y$5","v":1.2714218563768899E-2},{"$f":"'Population at Risk'!Z111/'Population at Risk'!Z$5","v":6.045080176727469E-3},{"$f":"'Population at Risk'!AA111/'Population at Risk'!AA$5","v":9.4242059870570695E-3},{"$f":"'Population at Risk'!AB111/'Population at Risk'!AB$5","v":6.9767742197520896E-3},{"$f":"'Population at Risk'!AC111/'Population at Risk'!AC$5","v":7.4144987572693603E-3},{"$f":"'Population at Risk'!AD111/'Population at Risk'!AD$5","v":1.0357324510089189E-2},{"$f":"'Population at Risk'!AE111/'Population at Risk'!AE$5","v":1.0371168954219589E-2},{"$f":"'Population at Risk'!AF111/'Population at Risk'!AF$5","v":6.2045638110266683E-3},{"$f":"'Population at Risk'!AG111/'Population at Risk'!AG$5","v":1.0371168954219589E-2},{"$f":"'Population at Risk'!AH111/'Population at Risk'!AH$5","v":1.263560144069815E-2},{"$f":"'Population at Risk'!AI111/'Population at Risk'!AI$5","v":9.6118830934946546E-3},{"$f":"'Population at Risk'!AJ111/'Population at Risk'!AJ$5","v":1.7116169576460515E-2},{"$f":"'Population at Risk'!AK111/'Population at Risk'!AK$5","v":8.3352996479339903E-3},{"$f":"'Population at Risk'!AL111/'Population at Risk'!AL$5","v":1.0549408239327124E-2},{"$f":"'Population at Risk'!AM111/'Population at Risk'!AM$5","v":1.2528071494069124E-2},{"$f":"'Population at Risk'!AN111/'Population at Risk'!AN$5","v":8.590583200306175E-3},{"$f":"'Population at Risk'!AO111/'Population at Risk'!AO$5","v":8.5989836115947255E-3},{"$f":"'Population at Risk'!AP111/'Population at Risk'!AP$5","v":4.9832460754050253E-3},{"$f":"'Population at Risk'!AQ111/'Population at Risk'!AQ$5","v":9.0865695654782676E-3},{"$f":"'Population at Risk'!AR111/'Population at Risk'!AR$5","v":9.7706721030874112E-3},{"$f":"'Population at Risk'!AS111/'Population at Risk'!AS$5","v":8.8841755043037943E-3},{"$f":"'Population at Risk'!AT111/'Population at Risk'!AT$5","v":1.8734451069511433E-3},{"$f":"'Population at Risk'!AU111/'Population at Risk'!AU$5","v":1.8712649329919431E-3},{"$f":"'Population at Risk'!AV111/'Population at Risk'!AV$5","v":1.5132344702130058E-2},{"$f":"'Population at Risk'!AW111/'Population at Risk'!AW$5","v":1.2823332792447104E-2},{"$f":"'Population at Risk'!AX111/'Population at Risk'!AX$5","v":6.9150476485831209E-3},{"$f":"'Population at Risk'!AY111/'Population at Risk'!AY$5","v":8.8023908297830689E-3},{"$f":"'Population at Risk'!AZ111/'Population at Risk'!AZ$5","v":6.8454083945193832E-3},{"$f":"'Population at Risk'!BA111/'Population at Risk'!BA$5","v":1.3686027074590892E-2},{"$f":"'Population at Risk'!BB111/'Population at Risk'!BB$5","v":1.3712499059386729E-2},{"$f":"'Population at Risk'!BC111/'Population at Risk'!BC$5","v":1.3107824119616401E-2},109]
[null,"Female 70-74",{"$f":"'Population at Risk'!C112/'Population at Risk'!C$5","v":6.0694563069801912E-3},{"$f":"'Population at Risk'!D112/'Population at Risk'!D$5","v":4.836827731650473E-3},{"$f":"'Population at Risk'!E112/'Population at Risk'!E$5","v":3.6706054721787262E-3},{"$f":"'Population at Risk'!F112/'Population at Risk'!F$5","v":6.6370572587010077E-3},{"$f":"'Population at Risk'!G112/'Population at Risk'!G$5","v":8.223675609280709E-3},{"$f":"'Population at Risk'!H112/'Population at Risk'!H$5","v":1.0174820488891444E-2},{"$f":"'Population at Risk'!I112/'Population at Risk'!I$5","v":7.1058642407877638E-3},{"$f":"'Population at Risk'!J112/'Population at Risk'!J$5","v":8.4836271763507158E-3},{"$f":"'Population at Risk'!K112/'Population at Risk'!K$5","v":1.1321157773745575E-2},{"$f":"'Population at Risk'!L112/'Population at Risk'!L$5","v":1.3203802462965668E-2},{"$f":"'Population at Risk'!M112/'Population at Risk'!M$5","v":1.3208300768501021E-2},{"$f":"'Population at Risk'!N112/'Population at Risk'!N$5","v":6.7984198928929835E-3},{"$f":"'Population at Risk'!O112/'Population at Risk'!O$5","v":1.0368652663441252E-2},{"$f":"'Population at Risk'!P112/'Population at Risk'!P$5","v":7.988994563871997E-3},{"$f":"'Population at Risk'!Q112/'Population at Risk'!Q$5","v":9.9087924615309641E-3},{"$f":"'Population at Risk'!R112/'Population at Risk'!R$5","v":3.0371049482045532E-3},{"$f":"'Population at Risk'!S112/'Population at Risk'!S$5","v":7.7885732661906191E-3},{"$f":"'Population at Risk'!T112/'Population at Risk'!T$5","v":4.1839243637753036E-3},{"$f":"'Population at Risk'!U112/'Population at Risk'!U$5","v":9.6019655636205483E-3},{"$f":"'Population at Risk'!V112/'Population at Risk'!V$5","v":1.2602179783422988E-2},{"$f":"'Population at Risk'!W112/'Population at Risk'!W$5","v":8.6064921216122241E-3},{"$f":"'Population at Risk'!X112/'Population at Risk'!X$5","v":8.6073348151135647E-3},{"$f":"'Population at Risk'!Y112/'Population at Risk'!Y$5","v":1.0370635978995825E-2},{"$f":"'Population at Risk'!Z112/'Population at Risk'!Z$5","v":4.6163390777280979E-3},{"$f":"'Population at Risk'!AA112/'Population at Risk'!AA$5","v":7.5730841100812756E-3},{"$f":"'Population at Risk'!AB112/'Population at Risk'!AB$5","v":5.1195381073169972E-3},{"$f":"'Population at Risk'!AC112/'Population at Risk'!AC$5","v":5.7485696733516152E-3},{"$f":"'Population at Risk'!AD112/'Population at Risk'!AD$5","v":7.8377108479749085E-3},{"$f":"'Population at Risk'!AE112/'Population at Risk'!AE$5","v":7.5830754821112059E-3},{"$f":"'Population at Risk'!AF112/'Population at Risk'!AF$5","v":4.7223624561702976E-3},{"$f":"'Population at Risk'!AG112/'Population at Risk'!AG$5","v":7.5830754821112059E-3},{"$f":"'Population at Risk'!AH112/'Population at Risk'!AH$5","v":1.0491160649413323E-2},{"$f":"'Population at Risk'!AI112/'Population at Risk'!AI$5","v":7.5089736860427811E-3},{"$f":"'Population at Risk'!AJ112/'Population at Risk'!AJ$5","v":1.2430186551204753E-2},{"$f":"'Population at Risk'!AK112/'Population at Risk'!AK$5","v":6.5136778705709329E-3},{"$f":"'Population at Risk'!AL112/'Population at Risk'!AL$5","v":8.0741884782554937E-3},{"$f":"'Population at Risk'!AM112/'Population at Risk'!AM$5","v":1.0607897048452261E-2},{"$f":"'Population at Risk'!AN112/'Population at Risk'!AN$5","v":7.4355468036263524E-3},{"$f":"'Population at Risk'!AO112/'Population at Risk'!AO$5","v":7.4428177478508975E-3},{"$f":"'Population at Risk'!AP112/'Population at Risk'!AP$5","v":3.9974300039662056E-3},{"$f":"'Population at Risk'!AQ112/'Population at Risk'!AQ$5","v":7.3570236538673473E-3},{"$f":"'Population at Risk'!AR112/'Population at Risk'!AR$5","v":7.726568326087908E-3},{"$f":"'Population at Risk'!AS112/'Population at Risk'!AS$5","v":7.1047426913072734E-3},{"$f":"'Population at Risk'!AT112/'Population at Risk'!AT$5","v":1.4238182812828688E-3},{"$f":"'Population at Risk'!AU112/'Population at Risk'!AU$5","v":1.4221613490738769E-3},{"$f":"'Population at Risk'!AV112/'Population at Risk'!AV$5","v":1.2567993260992396E-2},{"$f":"'Population at Risk'!AW112/'Population at Risk'!AW$5","v":1.0417472060901595E-2},{"$f":"'Population at Risk'!AX112/'Population at Risk'!AX$5","v":6.0270497264973098E-3},{"$f":"'Population at Risk'!AY112/'Population at Risk'!AY$5","v":6.9037567361630399E-3},{"$f":"'Population at Risk'!AZ112/'Population at Risk'!AZ$5","v":5.5057693323661283E-3},{"$f":"'Population at Risk'!BA112/'Population at Risk'!BA$5","v":1.0264520305943171E-2},{"$f":"'Population at Risk'!BB112/'Population at Risk'!BB$5","v":1.1425494351775324E-2},{"$f":"'Population at Risk'!BC112/'Population at Risk'!BC$5","v":9.608701579210328E-3},110]
[null,"Female 75-79",{"$f":"'Population at Risk'!C113/'Population at Risk'!C$5","v":8.9443457906272957E-3},{"$f":"'Population at Risk'!D113/'Population at Risk'!D$5","v":6.6154074622073959E-3},{"$f":"'Population at Risk'!E113/'Population at Risk'!E$5","v":4.418039933480917E-3},{"$f":"'Population at Risk'!F113/'Population at Risk'!F$5","v":8.6753990863400136E-3},{"$f":"'Population at Risk'!G113/'Population at Risk'!G$5","v":1.1285984673869797E-2},{"$f":"'Population at Risk'!H113/'Population at Risk'!H$5","v":1.2277481499693575E-2},{"$f":"'Population at Risk'!I113/'Population at Risk'!I$5","v":8.5247099365375247E-3},{"$f":"'Population at Risk'!J113/'Population at Risk'!J$5","v":1.0008784077795886E-2},{"$f":"'Population at Risk'!K113/'Population at Risk'!K$5","v":1.1427602904102312E-2},{"$f":"'Population at Risk'!L113/'Population at Risk'!L$5","v":1.536000858657057E-2},{"$f":"'Population at Risk'!M113/'Population at Risk'!M$5","v":1.536524147397871E-2},{"$f":"'Population at Risk'!N113/'Population at Risk'!N$5","v":9.7003159976245899E-3},{"$f":"'Population at Risk'!O113/'Population at Risk'!O$5","v":1.3158763376413642E-2},{"$f":"'Population at Risk'!P113/'Population at Risk'!P$5","v":9.6306950355732369E-3},{"$f":"'Population at Risk'!Q113/'Population at Risk'!Q$5","v":1.2994198533426498E-2},{"$f":"'Population at Risk'!R113/'Population at Risk'!R$5","v":4.8796850491448565E-3},{"$f":"'Population at Risk'!S113/'Population at Risk'!S$5","v":9.68855661200488E-3},{"$f":"'Population at Risk'!T113/'Population at Risk'!T$5","v":5.9492490564491832E-3},{"$f":"'Population at Risk'!U113/'Population at Risk'!U$5","v":1.3678859556075207E-2},{"$f":"'Population at Risk'!V113/'Population at Risk'!V$5","v":1.5516383870848345E-2},{"$f":"'Population at Risk'!W113/'Population at Risk'!W$5","v":1.0490774517318965E-2},{"$f":"'Population at Risk'!X113/'Population at Risk'!X$5","v":1.0491801707884513E-2},{"$f":"'Population at Risk'!Y113/'Population at Risk'!Y$5","v":1.2573010437310178E-2},{"$f":"'Population at Risk'!Z113/'Population at Risk'!Z$5","v":6.7243166859565799E-3},{"$f":"'Population at Risk'!AA113/'Population at Risk'!AA$5","v":9.9753271073734252E-3},{"$f":"'Population at Risk'!AB113/'Population at Risk'!AB$5","v":6.9204554094538014E-3},{"$f":"'Population at Risk'!AC113/'Population at Risk'!AC$5","v":7.9990711090942631E-3},{"$f":"'Population at Risk'!AD113/'Population at Risk'!AD$5","v":1.0692082401250792E-2},{"$f":"'Population at Risk'!AE113/'Population at Risk'!AE$5","v":1.0318449602830917E-2},{"$f":"'Population at Risk'!AF113/'Population at Risk'!AF$5","v":5.168778073248597E-3},{"$f":"'Population at Risk'!AG113/'Population at Risk'!AG$5","v":1.0318449602830917E-2},{"$f":"'Population at Risk'!AH113/'Population at Risk'!AH$5","v":1.3131390184618487E-2},{"$f":"'Population at Risk'!AI113/'Population at Risk'!AI$5","v":9.4841482038592398E-3},{"$f":"'Population at Risk'!AJ113/'Population at Risk'!AJ$5","v":1.467094485328271E-2},{"$f":"'Population at Risk'!AK113/'Population at Risk'!AK$5","v":8.4139803431575177E-3},{"$f":"'Population at Risk'!AL113/'Population at Risk'!AL$5","v":9.1149518439162559E-3},{"$f":"'Population at Risk'!AM113/'Population at Risk'!AM$5","v":1.3113731244544111E-2},{"$f":"'Population at Risk'!AN113/'Population at Risk'!AN$5","v":6.7521797943943867E-3},{"$f":"'Population at Risk'!AO113/'Population at Risk'!AO$5","v":6.7587824994779196E-3},{"$f":"'Population at Risk'!AP113/'Population at Risk'!AP$5","v":4.5355647528666394E-3},{"$f":"'Population at Risk'!AQ113/'Population at Risk'!AQ$5","v":1.0283943443546786E-2},{"$f":"'Population at Risk'!AR113/'Population at Risk'!AR$5","v":9.8697929436952839E-3},{"$f":"'Population at Risk'!AS113/'Population at Risk'!AS$5","v":8.5233644444655306E-3},{"$f":"'Population at Risk'!AT113/'Population at Risk'!AT$5","v":1.1125735359071821E-3},{"$f":"'Population at Risk'!AU113/'Population at Risk'!AU$5","v":1.1112788068320253E-3},{"$f":"'Population at Risk'!AV113/'Population at Risk'!AV$5","v":1.5228786472523046E-2},{"$f":"'Population at Risk'!AW113/'Population at Risk'!AW$5","v":1.3221645412651931E-2},{"$f":"'Population at Risk'!AX113/'Population at Risk'!AX$5","v":8.2468706644773862E-3},{"$f":"'Population at Risk'!AY113/'Population at Risk'!AY$5","v":8.7083884917449443E-3},{"$f":"'Population at Risk'!AZ113/'Population at Risk'!AZ$5","v":7.2453222195861004E-3},{"$f":"'Population at Risk'!BA113/'Population at Risk'!BA$5","v":1.4568434422726919E-2},{"$f":"'Population at Risk'!BB113/'Population at Risk'!BB$5","v":1.2987520905524533E-2},{"$f":"'Population at Risk'!BC113/'Population at Risk'!BC$5","v":1.3688455613320943E-2},111]
[null,"Female 80-84",{"$f":"'Population at Risk'!C114/'Population at Risk'!C$5","v":7.9319882446732114E-3},{"$f":"'Population at Risk'!D114/'Population at Risk'!D$5","v":5.6618837481921605E-3},{"$f":"'Population at Risk'!E114/'Population at Risk'!E$5","v":3.5219280601805425E-3},{"$f":"'Population at Risk'!F114/'Population at Risk'!F$5","v":6.7046409800754206E-3},{"$f":"'Population at Risk'!G114/'Population at Risk'!G$5","v":8.5670883660738904E-3},{"$f":"'Population at Risk'!H114/'Population at Risk'!H$5","v":9.6270668100210989E-3},{"$f":"'Population at Risk'!I114/'Population at Risk'!I$5","v":6.7503359225975883E-3},{"$f":"'Population at Risk'!J114/'Population at Risk'!J$5","v":6.6912657598747777E-3},{"$f":"'Population at Risk'!K114/'Population at Risk'!K$5","v":7.6660169481686342E-3},{"$f":"'Population at Risk'!L114/'Population at Risk'!L$5","v":1.2792178404921667E-2},{"$f":"'Population at Risk'!M114/'Population at Risk'!M$5","v":1.2796536477309488E-2},{"$f":"'Population at Risk'!N114/'Population at Risk'!N$5","v":7.89231544701385E-3},{"$f":"'Population at Risk'!O114/'Population at Risk'!O$5","v":9.7519054611503835E-3},{"$f":"'Population at Risk'!P114/'Population at Risk'!P$5","v":8.8703770064490345E-3},{"$f":"'Population at Risk'!Q114/'Population at Risk'!Q$5","v":1.0238495744934744E-2},{"$f":"'Population at Risk'!R114/'Population at Risk'!R$5","v":4.663496471018185E-3},{"$f":"'Population at Risk'!S114/'Population at Risk'!S$5","v":7.4531625387388688E-3},{"$f":"'Population at Risk'!T114/'Population at Risk'!T$5","v":4.4564687325423574E-3},{"$f":"'Population at Risk'!U114/'Population at Risk'!U$5","v":1.2607623566744015E-2},{"$f":"'Population at Risk'!V114/'Population at Risk'!V$5","v":1.1177602933989504E-2},{"$f":"'Population at Risk'!W114/'Population at Risk'!W$5","v":8.3567196250126357E-3},{"$f":"'Population at Risk'!X114/'Population at Risk'!X$5","v":8.3575378623642806E-3},{"$f":"'Population at Risk'!Y114/'Population at Risk'!Y$5","v":8.8246396785933746E-3},{"$f":"'Population at Risk'!Z114/'Population at Risk'!Z$5","v":6.0577663439084052E-3},{"$f":"'Population at Risk'!AA114/'Population at Risk'!AA$5","v":8.0533110663291285E-3},{"$f":"'Population at Risk'!AB114/'Population at Risk'!AB$5","v":5.7310021359539293E-3},{"$f":"'Population at Risk'!AC114/'Population at Risk'!AC$5","v":6.8347802522121344E-3},{"$f":"'Population at Risk'!AD114/'Population at Risk'!AD$5","v":7.8302070846116515E-3},{"$f":"'Population at Risk'!AE114/'Population at Risk'!AE$5","v":7.4388822718083371E-3},{"$f":"'Population at Risk'!AF114/'Population at Risk'!AF$5","v":3.9917296011226788E-3},{"$f":"'Population at Risk'!AG114/'Population at Risk'!AG$5","v":7.4388822718083371E-3},{"$f":"'Population at Risk'!AH114/'Population at Risk'!AH$5","v":9.9942434552472946E-3},{"$f":"'Population at Risk'!AI114/'Population at Risk'!AI$5","v":7.1396196416629795E-3},{"$f":"'Population at Risk'!AJ114/'Population at Risk'!AJ$5","v":1.1546350941102698E-2},{"$f":"'Population at Risk'!AK114/'Population at Risk'!AK$5","v":6.0373040773954913E-3},{"$f":"'Population at Risk'!AL114/'Population at Risk'!AL$5","v":7.6706813052675529E-3},{"$f":"'Population at Risk'!AM114/'Population at Risk'!AM$5","v":9.6864227405352391E-3},{"$f":"'Population at Risk'!AN114/'Population at Risk'!AN$5","v":6.4306474232327495E-3},{"$f":"'Population at Risk'!AO114/'Population at Risk'!AO$5","v":6.4369357137884949E-3},{"$f":"'Population at Risk'!AP114/'Population at Risk'!AP$5","v":3.7957208570089601E-3},{"$f":"'Population at Risk'!AQ114/'Population at Risk'!AQ$5","v":8.5720820504594959E-3},{"$f":"'Population at Risk'!AR114/'Population at Risk'!AR$5","v":7.7784672137121216E-3},{"$f":"'Population at Risk'!AS114/'Population at Risk'!AS$5","v":6.7492704876989489E-3},{"$f":"'Population at Risk'!AT114/'Population at Risk'!AT$5","v":1.6688603038607732E-3},{"$f":"'Population at Risk'!AU114/'Population at Risk'!AU$5","v":1.666918210248038E-3},{"$f":"'Population at Risk'!AV114/'Population at Risk'!AV$5","v":1.1917318580711394E-2},{"$f":"'Population at Risk'!AW114/'Population at Risk'!AW$5","v":1.0390956779190412E-2},{"$f":"'Population at Risk'!AX114/'Population at Risk'!AX$5","v":5.497913776318258E-3},{"$f":"'Population at Risk'!AY114/'Population at Risk'!AY$5","v":6.9721085548577798E-3},{"$f":"'Population at Risk'!AZ114/'Population at Risk'!AZ$5","v":5.8355988917933302E-3},{"$f":"'Population at Risk'!BA114/'Population at Risk'!BA$5","v":1.0351256037200706E-2},{"$f":"'Population at Risk'!BB114/'Population at Risk'!BB$5","v":9.2383999469580844E-3},{"$f":"'Population at Risk'!BC114/'Population at Risk'!BC$5","v":1.2616468125530748E-2},112]
[null,"Female 85-89",{"$f":"'Population at Risk'!C115/'Population at Risk'!C$5","v":4.4610480871163502E-3},{"$f":"'Population at Risk'!D115/'Population at Risk'!D$5","v":3.1622509611691704E-3},{"$f":"'Population at Risk'!E115/'Population at Risk'!E$5","v":1.9381024236496481E-3},{"$f":"'Population at Risk'!F115/'Population at Risk'!F$5","v":4.9776880003590245E-3},{"$f":"'Population at Risk'!G115/'Population at Risk'!G$5","v":4.7965434863946636E-3},{"$f":"'Population at Risk'!H115/'Population at Risk'!H$5","v":5.2889441116782581E-3},{"$f":"'Population at Risk'!I115/'Population at Risk'!I$5","v":4.1080615757522468E-3},{"$f":"'Population at Risk'!J115/'Population at Risk'!J$5","v":3.8985525995909073E-3},{"$f":"'Population at Risk'!K115/'Population at Risk'!K$5","v":4.8567312342434835E-3},{"$f":"'Population at Risk'!L115/'Population at Risk'!L$5","v":7.1241630039649423E-3},{"$f":"'Population at Risk'!M115/'Population at Risk'!M$5","v":7.1265900822225416E-3},{"$f":"'Population at Risk'!N115/'Population at Risk'!N$5","v":4.3234795775474273E-3},{"$f":"'Population at Risk'!O115/'Population at Risk'!O$5","v":5.2094282407993738E-3},{"$f":"'Population at Risk'!P115/'Population at Risk'!P$5","v":5.1448186637404391E-3},{"$f":"'Population at Risk'!Q115/'Population at Risk'!Q$5","v":5.7657781420750523E-3},{"$f":"'Population at Risk'!R115/'Population at Risk'!R$5","v":2.0692335334981352E-3},{"$f":"'Population at Risk'!S115/'Population at Risk'!S$5","v":4.6723249157512086E-3},{"$f":"'Population at Risk'!T115/'Population at Risk'!T$5","v":3.0402412457589578E-3},{"$f":"'Population at Risk'!U115/'Population at Risk'!U$5","v":5.1913744098357707E-3},{"$f":"'Population at Risk'!V115/'Population at Risk'!V$5","v":6.98398567159806E-3},{"$f":"'Population at Risk'!W115/'Population at Risk'!W$5","v":5.3783501802985067E-3},{"$f":"'Population at Risk'!X115/'Population at Risk'!X$5","v":5.3788767944731126E-3},{"$f":"'Population at Risk'!Y115/'Population at Risk'!Y$5","v":5.3872324133127179E-3},{"$f":"'Population at Risk'!Z115/'Population at Risk'!Z$5","v":3.7640489903896885E-3},{"$f":"'Population at Risk'!AA115/'Population at Risk'!AA$5","v":4.6907408098044549E-3},{"$f":"'Population at Risk'!AB115/'Population at Risk'!AB$5","v":3.2800075117723746E-3},{"$f":"'Population at Risk'!AC115/'Population at Risk'!AC$5","v":3.9705833840385169E-3},{"$f":"'Population at Risk'!AD115/'Population at Risk'!AD$5","v":4.9102226244874562E-3},{"$f":"'Population at Risk'!AE115/'Population at Risk'!AE$5","v":4.8892653641320919E-3},{"$f":"'Population at Risk'!AF115/'Population at Risk'!AF$5","v":2.047040821088553E-3},{"$f":"'Population at Risk'!AG115/'Population at Risk'!AG$5","v":4.8892653641320919E-3},{"$f":"'Population at Risk'!AH115/'Population at Risk'!AH$5","v":5.8380235844880061E-3},{"$f":"'Population at Risk'!AI115/'Population at Risk'!AI$5","v":4.4328083996298612E-3},{"$f":"'Population at Risk'!AJ115/'Population at Risk'!AJ$5","v":7.494143211244246E-3},{"$f":"'Population at Risk'!AK115/'Population at Risk'!AK$5","v":3.8518546376143182E-3},{"$f":"'Population at Risk'!AL115/'Population at Risk'!AL$5","v":3.9155779047809263E-3},{"$f":"'Population at Risk'!AM115/'Population at Risk'!AM$5","v":5.3341843999546584E-3},{"$f":"'Population at Risk'!AN115/'Population at Risk'!AN$5","v":3.1081462545624956E-3},{"$f":"'Population at Risk'!AO115/'Population at Risk'!AO$5","v":3.1111855949977722E-3},{"$f":"'Population at Risk'!AP115/'Population at Risk'!AP$5","v":3.281046842499271E-3},{"$f":"'Population at Risk'!AQ115/'Population at Risk'!AQ$5","v":4.5096050131329382E-3},{"$f":"'Population at Risk'!AR115/'Population at Risk'!AR$5","v":4.6354677825962733E-3},{"$f":"'Population at Risk'!AS115/'Population at Risk'!AS$5","v":4.1074131825139318E-3},{"$f":"'Population at Risk'!AT115/'Population at Risk'!AT$5","v":5.5628676795359104E-4},{"$f":"'Population at Risk'!AU115/'Population at Risk'!AU$5","v":5.5563940341601264E-4},{"$f":"'Population at Risk'!AV115/'Population at Risk'!AV$5","v":7.0790062118368845E-3},{"$f":"'Population at Risk'!AW115/'Population at Risk'!AW$5","v":6.4308163219038489E-3},{"$f":"'Population at Risk'!AX115/'Population at Risk'!AX$5","v":2.9733615320904861E-3},{"$f":"'Population at Risk'!AY115/'Population at Risk'!AY$5","v":4.5970935116546137E-3},{"$f":"'Population at Risk'!AZ115/'Population at Risk'!AZ$5","v":3.9559677880696359E-3},{"$f":"'Population at Risk'!BA115/'Population at Risk'!BA$5","v":6.1580388925013456E-3},{"$f":"'Population at Risk'!BB115/'Population at Risk'!BB$5","v":5.2346217157342896E-3},{"$f":"'Population at Risk'!BC115/'Population at Risk'!BC$5","v":5.195016286983249E-3},113]
[null,"Female 90+",{"$f":"'Population at Risk'!C116/'Population at Risk'!C$5","v":2.169337598473038E-3},{"$f":"'Population at Risk'!D116/'Population at Risk'!D$5","v":1.6646261448062583E-3},{"$f":"'Population at Risk'!E116/'Population at Risk'!E$5","v":1.1878692273981713E-3},{"$f":"'Population at Risk'!F116/'Population at Risk'!F$5","v":3.2710521145216448E-3},{"$f":"'Population at Risk'!G116/'Population at Risk'!G$5","v":2.6675963774601338E-3},{"$f":"'Population at Risk'!H116/'Population at Risk'!H$5","v":3.6844329766747416E-3},{"$f":"'Population at Risk'!I116/'Population at Risk'!I$5","v":2.8351410874909869E-3},{"$f":"'Population at Risk'!J116/'Population at Risk'!J$5","v":2.3616232093675686E-3},{"$f":"'Population at Risk'!K116/'Population at Risk'!K$5","v":2.9045157381260046E-3},{"$f":"'Population at Risk'!L116/'Population at Risk'!L$5","v":4.3214703057018111E-3},{"$f":"'Population at Risk'!M116/'Population at Risk'!M$5","v":4.3229425553701567E-3},{"$f":"'Population at Risk'!N116/'Population at Risk'!N$5","v":2.5940877465284564E-3},{"$f":"'Population at Risk'!O116/'Population at Risk'!O$5","v":3.316729398986452E-3},{"$f":"'Population at Risk'!P116/'Population at Risk'!P$5","v":3.5228068682754735E-3},{"$f":"'Population at Risk'!Q116/'Population at Risk'!Q$5","v":3.1160639223714441E-3},{"$f":"'Population at Risk'!R116/'Population at Risk'!R$5","v":1.0809428906333543E-3},{"$f":"'Population at Risk'!S116/'Population at Risk'!S$5","v":2.6920874860837988E-3},{"$f":"'Population at Risk'!T116/'Population at Risk'!T$5","v":1.8372680909622477E-3},{"$f":"'Population at Risk'!U116/'Population at Risk'!U$5","v":4.6969577993752213E-3},{"$f":"'Population at Risk'!V116/'Population at Risk'!V$5","v":4.4516860170001494E-3},{"$f":"'Population at Risk'!W116/'Population at Risk'!W$5","v":3.2044064115004699E-3},{"$f":"'Population at Risk'!X116/'Population at Risk'!X$5","v":3.2047201667936226E-3},{"$f":"'Population at Risk'!Y116/'Population at Risk'!Y$5","v":3.378576334090035E-3},{"$f":"'Population at Risk'!Z116/'Population at Risk'!Z$5","v":2.2074578974889529E-3},{"$f":"'Population at Risk'!AA116/'Population at Risk'!AA$5","v":2.4226341726651377E-3},{"$f":"'Population at Risk'!AB116/'Population at Risk'!AB$5","v":1.6805532993009558E-3},{"$f":"'Population at Risk'!AC116/'Population at Risk'!AC$5","v":2.1362565810998896E-3},{"$f":"'Population at Risk'!AD116/'Population at Risk'!AD$5","v":2.7311297437977561E-3},{"$f":"'Population at Risk'!AE116/'Population at Risk'!AE$5","v":2.7195913681879939E-3},{"$f":"'Population at Risk'!AF116/'Population at Risk'!AF$5","v":6.6528826685377984E-4},{"$f":"'Population at Risk'!AG116/'Population at Risk'!AG$5","v":2.7195913681879939E-3},{"$f":"'Population at Risk'!AH116/'Population at Risk'!AH$5","v":2.8773829874487373E-3},{"$f":"'Population at Risk'!AI116/'Population at Risk'!AI$5","v":2.4358355790657115E-3},{"$f":"'Population at Risk'!AJ116/'Population at Risk'!AJ$5","v":3.3931137015079812E-3},{"$f":"'Population at Risk'!AK116/'Population at Risk'!AK$5","v":1.7483595518249387E-3},{"$f":"'Population at Risk'!AL116/'Population at Risk'!AL$5","v":2.4713073661322242E-3},{"$f":"'Population at Risk'!AM116/'Population at Risk'!AM$5","v":2.2806489120946278E-3},{"$f":"'Population at Risk'!AN116/'Population at Risk'!AN$5","v":1.2861294846465499E-3},{"$f":"'Population at Risk'!AO116/'Population at Risk'!AO$5","v":1.287387142757699E-3},{"$f":"'Population at Risk'!AP116/'Population at Risk'!AP$5","v":1.5440220435290685E-3},{"$f":"'Population at Risk'!AQ116/'Population at Risk'!AQ$5","v":2.1462142838706336E-3},{"$f":"'Population at Risk'!AR116/'Population at Risk'!AR$5","v":2.6233960402513921E-3},{"$f":"'Population at Risk'!AS116/'Population at Risk'!AS$5","v":2.8346936048335588E-3},{"$f":"'Population at Risk'!AT116/'Population at Risk'!AT$5","v":1.1125735359071821E-4},{"$f":"'Population at Risk'!AU116/'Population at Risk'!AU$5","v":1.1112788068320252E-4},{"$f":"'Population at Risk'!AV116/'Population at Risk'!AV$5","v":5.5918200328795558E-3},{"$f":"'Population at Risk'!AW116/'Population at Risk'!AW$5","v":3.5577732450488915E-3},{"$f":"'Population at Risk'!AX116/'Population at Risk'!AX$5","v":1.8232877319422792E-3},{"$f":"'Population at Risk'!AY116/'Population at Risk'!AY$5","v":2.7108757563834118E-3},{"$f":"'Population at Risk'!AZ116/'Population at Risk'!AZ$5","v":2.3058265284052297E-3},{"$f":"'Population at Risk'!BA116/'Population at Risk'!BA$5","v":2.4440465643390556E-3},{"$f":"'Population at Risk'!BB116/'Population at Risk'!BB$5","v":2.9002633830419711E-3},{"$f":"'Population at Risk'!BC116/'Population at Risk'!BC$5","v":4.7002528310800826E-3},114]
[null,"Male 0-4",{"$f":"'Population at Risk'!C117/'Population at Risk'!C$5","v":0},{"$f":"'Population at Risk'!D117/'Population at Risk'!D$5","v":0},{"$f":"'Population at Risk'!E117/'Population at Risk'!E$5","v":0},{"$f":"'Population at Risk'!F117/'Population at Risk'!F$5","v":0},{"$f":"'Population at Risk'!G117/'Population at Risk'!G$5","v":0},{"$f":"'Population at Risk'!H117/'Population at Risk'!H$5","v":0},{"$f":"'Population at Risk'!I117/'Population at Risk'!I$5","v":0},{"$f":"'Population at Risk'!J117/'Population at Risk'!J$5","v":0},{"$f":"'Population at Risk'!K117/'Population at Risk'!K$5","v":0},{"$f":"'Population at Risk'!L117/'Population at Risk'!L$5","v":0},{"$f":"'Population at Risk'!M117/'Population at Risk'!M$5","v":0},{"$f":"'Population at Risk'!N117/'Population at Risk'!N$5","v":0},{"$f":"'Population at Risk'!O117/'Population at Risk'!O$5","v":0},{"$f":"'Population at Risk'!P117/'Population at Risk'!P$5","v":0},{"$f":"'Population at Risk'!Q117/'Population at Risk'!Q$5","v":0},{"$f":"'Population at Risk'!R117/'Population at Risk'!R$5","v":0},{"$f":"'Population at Risk'!S117/'Population at Risk'!S$5","v":0},{"$f":"'Population at Risk'!T117/'Population at Risk'!T$5","v":0},{"$f":"'Population at Risk'!U117/'Population at Risk'!U$5","v":0},{"$f":"'Population at Risk'!V117/'Population at Risk'!V$5","v":0},{"$f":"'Population at Risk'!W117/'Population at Risk'!W$5","v":0},{"$f":"'Population at Risk'!X117/'Population at Risk'!X$5","v":0},{"$f":"'Population at Risk'!Y117/'Population at Risk'!Y$5","v":0},{"$f":"'Population at Risk'!Z117/'Population at Risk'!Z$5","v":0},{"$f":"'Population at Risk'!AA117/'Population at Risk'!AA$5","v":0},{"$f":"'Population at Risk'!AB117/'Population at Risk'!AB$5","v":0},{"$f":"'Population at Risk'!AC117/'Population at Risk'!AC$5","v":0},{"$f":"'Population at Risk'!AD117/'Population at Risk'!AD$5","v":0},{"$f":"'Population at Risk'!AE117/'Population at Risk'!AE$5","v":0},{"$f":"'Population at Risk'!AF117/'Population at Risk'!AF$5","v":0},{"$f":"'Population at Risk'!AG117/'Population at Risk'!AG$5","v":0},{"$f":"'Population at Risk'!AH117/'Population at Risk'!AH$5","v":0},{"$f":"'Population at Risk'!AI117/'Population at Risk'!AI$5","v":0},{"$f":"'Population at Risk'!AJ117/'Population at Risk'!AJ$5","v":0},{"$f":"'Population at Risk'!AK117/'Population at Risk'!AK$5","v":0},{"$f":"'Population at Risk'!AL117/'Population at Risk'!AL$5","v":0},{"$f":"'Population at Risk'!AM117/'Population at Risk'!AM$5","v":0},{"$f":"'Population at Risk'!AN117/'Population at Risk'!AN$5","v":0},{"$f":"'Population at Risk'!AO117/'Population at Risk'!AO$5","v":0},{"$f":"'Population at Risk'!AP117/'Population at Risk'!AP$5","v":0},{"$f":"'Population at Risk'!AQ117/'Population at Risk'!AQ$5","v":0},{"$f":"'Population at Risk'!AR117/'Population at Risk'!AR$5","v":0},{"$f":"'Population at Risk'!AS117/'Population at Risk'!AS$5","v":0},{"$f":"'Population at Risk'!AT117/'Population at Risk'!AT$5","v":0},{"$f":"'Population at Risk'!AU117/'Population at Risk'!AU$5","v":0},{"$f":"'Population at Risk'!AV117/'Population at Risk'!AV$5","v":0},{"$f":"'Population at Risk'!AW117/'Population at Risk'!AW$5","v":0},{"$f":"'Population at Risk'!AX117/'Population at Risk'!AX$5","v":0},{"$f":"'Population at Risk'!AY117/'Population at Risk'!AY$5","v":0},{"$f":"'Population at Risk'!AZ117/'Population at Risk'!AZ$5","v":0},{"$f":"'Population at Risk'!BA117/'Population at Risk'!BA$5","v":0},{"$f":"'Population at Risk'!BB117/'Population at Risk'!BB$5","v":0},{"$f":"'Population at Risk'!BC117/'Population at Risk'!BC$5","v":0},115]
[null,"Male 5-9",{"$f":"'Population at Risk'!C118/'Population at Risk'!C$5","v":0},{"$f":"'Population at Risk'!D118/'Population at Risk'!D$5","v":0},{"$f":"'Population at Risk'!E118/'Population at Risk'!E$5","v":0},{"$f":"'Population at Risk'!F118/'Population at Risk'!F$5","v":0},{"$f":"'Population at Risk'!G118/'Population at Risk'!G$5","v":0},{"$f":"'Population at Risk'!H118/'Population at Risk'!H$5","v":0},{"$f":"'Population at Risk'!I118/'Population at Risk'!I$5","v":0},{"$f":"'Population at Risk'!J118/'Population at Risk'!J$5","v":0},{"$f":"'Population at Risk'!K118/'Population at Risk'!K$5","v":0},{"$f":"'Population at Risk'!L118/'Population at Risk'!L$5","v":0},{"$f":"'Population at Risk'!M118/'Population at Risk'!M$5","v":0},{"$f":"'Population at Risk'!N118/'Population at Risk'!N$5","v":0},{"$f":"'Population at Risk'!O118/'Population at Risk'!O$5","v":0},{"$f":"'Population at Risk'!P118/'Population at Risk'!P$5","v":0},{"$f":"'Population at Risk'!Q118/'Population at Risk'!Q$5","v":0},{"$f":"'Population at Risk'!R118/'Population at Risk'!R$5","v":0},{"$f":"'Population at Risk'!S118/'Population at Risk'!S$5","v":0},{"$f":"'Population at Risk'!T118/'Population at Risk'!T$5","v":0},{"$f":"'Population at Risk'!U118/'Population at Risk'!U$5","v":0},{"$f":"'Population at Risk'!V118/'Population at Risk'!V$5","v":0},{"$f":"'Population at Risk'!W118/'Population at Risk'!W$5","v":0},{"$f":"'Population at Risk'!X118/'Population at Risk'!X$5","v":0},{"$f":"'Population at Risk'!Y118/'Population at Risk'!Y$5","v":0},{"$f":"'Population at Risk'!Z118/'Population at Risk'!Z$5","v":0},{"$f":"'Population at Risk'!AA118/'Population at Risk'!AA$5","v":0},{"$f":"'Population at Risk'!AB118/'Population at Risk'!AB$5","v":0},{"$f":"'Population at Risk'!AC118/'Population at Risk'!AC$5","v":0},{"$f":"'Population at Risk'!AD118/'Population at Risk'!AD$5","v":0},{"$f":"'Population at Risk'!AE118/'Population at Risk'!AE$5","v":0},{"$f":"'Population at Risk'!AF118/'Population at Risk'!AF$5","v":0},{"$f":"'Population at Risk'!AG118/'Population at Risk'!AG$5","v":0},{"$f":"'Population at Risk'!AH118/'Population at Risk'!AH$5","v":0},{"$f":"'Population at Risk'!AI118/'Population at Risk'!AI$5","v":0},{"$f":"'Population at Risk'!AJ118/'Population at Risk'!AJ$5","v":0},{"$f":"'Population at Risk'!AK118/'Population at Risk'!AK$5","v":0},{"$f":"'Population at Risk'!AL118/'Population at Risk'!AL$5","v":0},{"$f":"'Population at Risk'!AM118/'Population at Risk'!AM$5","v":0},{"$f":"'Population at Risk'!AN118/'Population at Risk'!AN$5","v":0},{"$f":"'Population at Risk'!AO118/'Population at Risk'!AO$5","v":0},{"$f":"'Population at Risk'!AP118/'Population at Risk'!AP$5","v":0},{"$f":"'Population at Risk'!AQ118/'Population at Risk'!AQ$5","v":0},{"$f":"'Population at Risk'!AR118/'Population at Risk'!AR$5","v":0},{"$f":"'Population at Risk'!AS118/'Population at Risk'!AS$5","v":0},{"$f":"'Population at Risk'!AT118/'Population at Risk'!AT$5","v":0},{"$f":"'Population at Risk'!AU118/'Population at Risk'!AU$5","v":0},{"$f":"'Population at Risk'!AV118/'Population at Risk'!AV$5","v":0},{"$f":"'Population at Risk'!AW118/'Population at Risk'!AW$5","v":0},{"$f":"'Population at Risk'!AX118/'Population at Risk'!AX$5","v":0},{"$f":"'Population at Risk'!AY118/'Population at Risk'!AY$5","v":0},{"$f":"'Population at Risk'!AZ118/'Population at Risk'!AZ$5","v":0},{"$f":"'Population at Risk'!BA118/'Population at Risk'!BA$5","v":0},{"$f":"'Population at Risk'!BB118/'Population at Risk'!BB$5","v":0},{"$f":"'Population at Risk'!BC118/'Population at Risk'!BC$5","v":0},116]
[null,"Male 10-15",{"$f":"'Population at Risk'!C119/'Population at Risk'!C$5","v":0},{"$f":"'Population at Risk'!D119/'Population at Risk'!D$5","v":0},{"$f":"'Population at Risk'!E119/'Population at Risk'!E$5","v":0},{"$f":"'Population at Risk'!F119/'Population at Risk'!F$5","v":0},{"$f":"'Population at Risk'!G119/'Population at Risk'!G$5","v":0},{"$f":"'Population at Risk'!H119/'Population at Risk'!H$5","v":0},{"$f":"'Population at Risk'!I119/'Population at Risk'!I$5","v":0},{"$f":"'Population at Risk'!J119/'Population at Risk'!J$5","v":0},{"$f":"'Population at Risk'!K119/'Population at Risk'!K$5","v":0},{"$f":"'Population at Risk'!L119/'Population at Risk'!L$5","v":0},{"$f":"'Population at Risk'!M119/'Population at Risk'!M$5","v":0},{"$f":"'Population at Risk'!N119/'Population at Risk'!N$5","v":0},{"$f":"'Population at Risk'!O119/'Population at Risk'!O$5","v":0},{"$f":"'Population at Risk'!P119/'Population at Risk'!P$5","v":0},{"$f":"'Population at Risk'!Q119/'Population at Risk'!Q$5","v":0},{"$f":"'Population at Risk'!R119/'Population at Risk'!R$5","v":0},{"$f":"'Population at Risk'!S119/'Population at Risk'!S$5","v":0},{"$f":"'Population at Risk'!T119/'Population at Risk'!T$5","v":0},{"$f":"'Population at Risk'!U119/'Population at Risk'!U$5","v":0},{"$f":"'Population at Risk'!V119/'Population at Risk'!V$5","v":0},{"$f":"'Population at Risk'!W119/'Population at Risk'!W$5","v":0},{"$f":"'Population at Risk'!X119/'Population at Risk'!X$5","v":0},{"$f":"'Population at Risk'!Y119/'Population at Risk'!Y$5","v":0},{"$f":"'Population at Risk'!Z119/'Population at Risk'!Z$5","v":0},{"$f":"'Population at Risk'!AA119/'Population at Risk'!AA$5","v":0},{"$f":"'Population at Risk'!AB119/'Population at Risk'!AB$5","v":0},{"$f":"'Population at Risk'!AC119/'Population at Risk'!AC$5","v":0},{"$f":"'Population at Risk'!AD119/'Population at Risk'!AD$5","v":0},{"$f":"'Population at Risk'!AE119/'Population at Risk'!AE$5","v":0},{"$f":"'Population at Risk'!AF119/'Population at Risk'!AF$5","v":0},{"$f":"'Population at Risk'!AG119/'Population at Risk'!AG$5","v":0},{"$f":"'Population at Risk'!AH119/'Population at Risk'!AH$5","v":0},{"$f":"'Population at Risk'!AI119/'Population at Risk'!AI$5","v":0},{"$f":"'Population at Risk'!AJ119/'Population at Risk'!AJ$5","v":0},{"$f":"'Population at Risk'!AK119/'Population at Risk'!AK$5","v":0},{"$f":"'Population at Risk'!AL119/'Population at Risk'!AL$5","v":0},{"$f":"'Population at Risk'!AM119/'Population at Risk'!AM$5","v":0},{"$f":"'Population at Risk'!AN119/'Population at Risk'!AN$5","v":0},{"$f":"'Population at Risk'!AO119/'Population at Risk'!AO$5","v":0},{"$f":"'Population at Risk'!AP119/'Population at Risk'!AP$5","v":0},{"$f":"'Population at Risk'!AQ119/'Population at Risk'!AQ$5","v":0},{"$f":"'Population at Risk'!AR119/'Population at Risk'!AR$5","v":0},{"$f":"'Population at Risk'!AS119/'Population at Risk'!AS$5","v":0},{"$f":"'Population at Risk'!AT119/'Population at Risk'!AT$5","v":0},{"$f":"'Population at Risk'!AU119/'Population at Risk'!AU$5","v":0},{"$f":"'Population at Risk'!AV119/'Population at Risk'!AV$5","v":0},{"$f":"'Population at Risk'!AW119/'Population at Risk'!AW$5","v":0},{"$f":"'Population at Risk'!AX119/'Population at Risk'!AX$5","v":0},{"$f":"'Population at Risk'!AY119/'Population at Risk'!AY$5","v":0},{"$f":"'Population at Risk'!AZ119/'Population at Risk'!AZ$5","v":0},{"$f":"'Population at Risk'!BA119/'Population at Risk'!BA$5","v":0},{"$f":"'Population at Risk'!BB119/'Population at Risk'!BB$5","v":0},{"$f":"'Population at Risk'!BC119/'Population at Risk'!BC$5","v":0},117]
[null,"Male 16-19",{"$f":"'Population at Risk'!C120/'Population at Risk'!C$5","v":4.6896243639652632E-3},{"$f":"'Population at Risk'!D120/'Population at Risk'!D$5","v":3.1742595898020544E-3},{"$f":"'Population at Risk'!E120/'Population at Risk'!E$5","v":1.8660612868949076E-3},{"$f":"'Population at Risk'!F120/'Population at Risk'!F$5","v":3.3330168252151742E-3},{"$f":"'Population at Risk'!G120/'Population at Risk'!G$5","v":3.253488847422483E-3},{"$f":"'Population at Risk'!H120/'Population at Risk'!H$5","v":4.9106186168493809E-3},{"$f":"'Population at Risk'!I120/'Population at Risk'!I$5","v":3.2273730072113764E-3},{"$f":"'Population at Risk'!J120/'Population at Risk'!J$5","v":3.899978970036389E-3},{"$f":"'Population at Risk'!K120/'Population at Risk'!K$5","v":5.3722674167095141E-3},{"$f":"'Population at Risk'!L120/'Population at Risk'!L$5","v":5.2147225913585305E-3},{"$f":"'Population at Risk'!M120/'Population at Risk'!M$5","v":5.2129094521822074E-3},{"$f":"'Population at Risk'!N120/'Population at Risk'!N$5","v":3.5951356569361966E-3},{"$f":"'Population at Risk'!O120/'Population at Risk'!O$5","v":5.5068630487156356E-3},{"$f":"'Population at Risk'!P120/'Population at Risk'!P$5","v":4.0914138287639007E-3},{"$f":"'Population at Risk'!Q120/'Population at Risk'!Q$5","v":6.6924943637089521E-3},{"$f":"'Population at Risk'!R120/'Population at Risk'!R$5","v":2.5940392938562733E-3},{"$f":"'Population at Risk'!S120/'Population at Risk'!S$5","v":4.5607078291065401E-3},{"$f":"'Population at Risk'!T120/'Population at Risk'!T$5","v":3.3218631891989473E-3},{"$f":"'Population at Risk'!U120/'Population at Risk'!U$5","v":4.66186729587602E-3},{"$f":"'Population at Risk'!V120/'Population at Risk'!V$5","v":6.5061648398267906E-3},{"$f":"'Population at Risk'!W120/'Population at Risk'!W$5","v":4.2126687791847394E-3},{"$f":"'Population at Risk'!X120/'Population at Risk'!X$5","v":4.2122414074907254E-3},{"$f":"'Population at Risk'!Y120/'Population at Risk'!Y$5","v":5.42361970997636E-3},{"$f":"'Population at Risk'!Z120/'Population at Risk'!Z$5","v":3.4247278258928314E-3},{"$f":"'Population at Risk'!AA120/'Population at Risk'!AA$5","v":4.5742053155824356E-3},{"$f":"'Population at Risk'!AB120/'Population at Risk'!AB$5","v":3.2666353870278017E-3},{"$f":"'Population at Risk'!AC120/'Population at Risk'!AC$5","v":3.6524800674673473E-3},{"$f":"'Population at Risk'!AD120/'Population at Risk'!AD$5","v":3.9879151346911288E-3},{"$f":"'Population at Risk'!AE120/'Population at Risk'!AE$5","v":4.3278143686352301E-3},{"$f":"'Population at Risk'!AF120/'Population at Risk'!AF$5","v":2.5376848192740363E-3},{"$f":"'Population at Risk'!AG120/'Population at Risk'!AG$5","v":4.3278143686352301E-3},{"$f":"'Population at Risk'!AH120/'Population at Risk'!AH$5","v":6.2845187795923857E-3},{"$f":"'Population at Risk'!AI120/'Population at Risk'!AI$5","v":4.9164775373519596E-3},{"$f":"'Population at Risk'!AJ120/'Population at Risk'!AJ$5","v":9.0886248973644258E-3},{"$f":"'Population at Risk'!AK120/'Population at Risk'!AK$5","v":3.6909256079616566E-3},{"$f":"'Population at Risk'!AL120/'Population at Risk'!AL$5","v":4.173323138837717E-3},{"$f":"'Population at Risk'!AM120/'Population at Risk'!AM$5","v":6.6759043367798192E-3},{"$f":"'Population at Risk'!AN120/'Population at Risk'!AN$5","v":3.1342249997473315E-3},{"$f":"'Population at Risk'!AO120/'Population at Risk'!AO$5","v":3.131866161052372E-3},{"$f":"'Population at Risk'!AP120/'Population at Risk'!AP$5","v":2.5824105850894051E-3},{"$f":"'Population at Risk'!AQ120/'Population at Risk'!AQ$5","v":4.1200644634380315E-3},{"$f":"'Population at Risk'!AR120/'Population at Risk'!AR$5","v":4.3882513711607429E-3},{"$f":"'Population at Risk'!AS120/'Population at Risk'!AS$5","v":3.2277822454336654E-3},{"$f":"'Population at Risk'!AT120/'Population at Risk'!AT$5","v":3.7482540803598609E-4},{"$f":"'Population at Risk'!AU120/'Population at Risk'!AU$5","v":3.751568400973262E-4},{"$f":"'Population at Risk'!AV120/'Population at Risk'!AV$5","v":5.1998500733690988E-3},{"$f":"'Population at Risk'!AW120/'Population at Risk'!AW$5","v":5.8434456631559079E-3},{"$f":"'Population at Risk'!AX120/'Population at Risk'!AX$5","v":3.4199086258010448E-3},{"$f":"'Population at Risk'!AY120/'Population at Risk'!AY$5","v":3.7615108070072015E-3},{"$f":"'Population at Risk'!AZ120/'Population at Risk'!AZ$5","v":3.3021099799107148E-3},{"$f":"'Population at Risk'!BA120/'Population at Risk'!BA$5","v":5.8738898886085003E-3},{"$f":"'Population at Risk'!BB120/'Population at Risk'!BB$5","v":6.2998283354945596E-3},{"$f":"'Population at Risk'!BC120/'Population at Risk'!BC$5","v":4.6589983535368579E-3},118]
[null,"Male 20-24",{"$f":"'Population at Risk'!C121/'Population at Risk'!C$5","v":1.129058752275745E-2},{"$f":"'Population at Risk'!D121/'Population at Risk'!D$5","v":6.6753503521837267E-3},{"$f":"'Population at Risk'!E121/'Population at Risk'!E$5","v":2.6871282531286669E-3},{"$f":"'Population at Risk'!F121/'Population at Risk'!F$5","v":5.1960877685405795E-3},{"$f":"'Population at Risk'!G121/'Population at Risk'!G$5","v":4.2595018462965404E-3},{"$f":"'Population at Risk'!H121/'Population at Risk'!H$5","v":6.305021639448836E-3},{"$f":"'Population at Risk'!I121/'Population at Risk'!I$5","v":4.7747436271072417E-3},{"$f":"'Population at Risk'!J121/'Population at Risk'!J$5","v":6.4811244719445299E-3},{"$f":"'Population at Risk'!K121/'Population at Risk'!K$5","v":7.1279103633466101E-3},{"$f":"'Population at Risk'!L121/'Population at Risk'!L$5","v":7.0375680989573095E-3},{"$f":"'Population at Risk'!M121/'Population at Risk'!M$5","v":7.0351211633432435E-3},{"$f":"'Population at Risk'!N121/'Population at Risk'!N$5","v":1.070254036878701E-2},{"$f":"'Population at Risk'!O121/'Population at Risk'!O$5","v":7.4081321343107184E-3},{"$f":"'Population at Risk'!P121/'Population at Risk'!P$5","v":6.0150618580395296E-3},{"$f":"'Population at Risk'!Q121/'Population at Risk'!Q$5","v":9.3893054148745658E-3},{"$f":"'Population at Risk'!R121/'Population at Risk'!R$5","v":3.5102825306770669E-3},{"$f":"'Population at Risk'!S121/'Population at Risk'!S$5","v":6.7434201566239829E-3},{"$f":"'Population at Risk'!T121/'Population at Risk'!T$5","v":6.4138017674118105E-3},{"$f":"'Population at Risk'!U121/'Population at Risk'!U$5","v":5.1946521296904235E-3},{"$f":"'Population at Risk'!V121/'Population at Risk'!V$5","v":7.8204815030824756E-3},{"$f":"'Population at Risk'!W121/'Population at Risk'!W$5","v":5.23040833134252E-3},{"$f":"'Population at Risk'!X121/'Population at Risk'!X$5","v":5.2298777108294638E-3},{"$f":"'Population at Risk'!Y121/'Population at Risk'!Y$5","v":7.4222947284632752E-3},{"$f":"'Population at Risk'!Z121/'Population at Risk'!Z$5","v":6.4568397954037895E-3},{"$f":"'Population at Risk'!AA121/'Population at Risk'!AA$5","v":6.8187609600837504E-3},{"$f":"'Population at Risk'!AB121/'Population at Risk'!AB$5","v":6.4042232676105194E-3},{"$f":"'Population at Risk'!AC121/'Population at Risk'!AC$5","v":6.0521928463605369E-3},{"$f":"'Population at Risk'!AD121/'Population at Risk'!AD$5","v":5.1618992562845719E-3},{"$f":"'Population at Risk'!AE121/'Population at Risk'!AE$5","v":5.5826244518489953E-3},{"$f":"'Population at Risk'!AF121/'Population at Risk'!AF$5","v":3.8363122620011254E-3},{"$f":"'Population at Risk'!AG121/'Population at Risk'!AG$5","v":5.5826244518489953E-3},{"$f":"'Population at Risk'!AH121/'Population at Risk'!AH$5","v":8.2132159222948753E-3},{"$f":"'Population at Risk'!AI121/'Population at Risk'!AI$5","v":7.7535801650863443E-3},{"$f":"'Population at Risk'!AJ121/'Population at Risk'!AJ$5","v":1.1230853080983098E-2},{"$f":"'Population at Risk'!AK121/'Population at Risk'!AK$5","v":5.1843637152293783E-3},{"$f":"'Population at Risk'!AL121/'Population at Risk'!AL$5","v":5.2371113899139978E-3},{"$f":"'Population at Risk'!AM121/'Population at Risk'!AM$5","v":8.5509548085755081E-3},{"$f":"'Population at Risk'!AN121/'Population at Risk'!AN$5","v":4.2569324623433899E-3},{"$f":"'Population at Risk'!AO121/'Population at Risk'!AO$5","v":4.2537286665039684E-3},{"$f":"'Population at Risk'!AP121/'Population at Risk'!AP$5","v":4.5464017932231897E-3},{"$f":"'Population at Risk'!AQ121/'Population at Risk'!AQ$5","v":5.546459194917956E-3},{"$f":"'Population at Risk'!AR121/'Population at Risk'!AR$5","v":6.6609999709798242E-3},{"$f":"'Population at Risk'!AS121/'Population at Risk'!AS$5","v":4.7753490754361069E-3},{"$f":"'Population at Risk'!AT121/'Population at Risk'!AT$5","v":1.9678333921889272E-3},{"$f":"'Population at Risk'!AU121/'Population at Risk'!AU$5","v":1.9695734105109625E-3},{"$f":"'Population at Risk'!AV121/'Population at Risk'!AV$5","v":6.4714644994110738E-3},{"$f":"'Population at Risk'!AW121/'Population at Risk'!AW$5","v":7.8186503897499822E-3},{"$f":"'Population at Risk'!AX121/'Population at Risk'!AX$5","v":6.7963898404808072E-3},{"$f":"'Population at Risk'!AY121/'Population at Risk'!AY$5","v":6.3169056529935692E-3},{"$f":"'Population at Risk'!AZ121/'Population at Risk'!AZ$5","v":7.3171192658291404E-3},{"$f":"'Population at Risk'!BA121/'Population at Risk'!BA$5","v":8.4128611612145753E-3},{"$f":"'Population at Risk'!BB121/'Population at Risk'!BB$5","v":8.8602172828561102E-3},{"$f":"'Population at Risk'!BC121/'Population at Risk'!BC$5","v":5.1914553082267846E-3},119]
[null,"Male 25-29",{"$f":"'Population at Risk'!C122/'Population at Risk'!C$5","v":1.5489492682201254E-2},{"$f":"'Population at Risk'!D122/'Population at Risk'!D$5","v":9.1262182152070503E-3},{"$f":"'Population at Risk'!E122/'Population at Risk'!E$5","v":3.6273410880504182E-3},{"$f":"'Population at Risk'!F122/'Population at Risk'!F$5","v":6.9817618616625238E-3},{"$f":"'Population at Risk'!G122/'Population at Risk'!G$5","v":4.4760986988088072E-3},{"$f":"'Population at Risk'!H122/'Population at Risk'!H$5","v":7.0834607664442117E-3},{"$f":"'Population at Risk'!I122/'Population at Risk'!I$5","v":5.7706823027246067E-3},{"$f":"'Population at Risk'!J122/'Population at Risk'!J$5","v":7.5117984419987762E-3},{"$f":"'Population at Risk'!K122/'Population at Risk'!K$5","v":7.8067395914221509E-3},{"$f":"'Population at Risk'!L122/'Population at Risk'!L$5","v":6.581646611187218E-3},{"$f":"'Population at Risk'!M122/'Population at Risk'!M$5","v":6.5793581977373382E-3},{"$f":"'Population at Risk'!N122/'Population at Risk'!N$5","v":1.1389092066177711E-2},{"$f":"'Population at Risk'!O122/'Population at Risk'!O$5","v":8.1812610529986528E-3},{"$f":"'Population at Risk'!P122/'Population at Risk'!P$5","v":6.5074360838406073E-3},{"$f":"'Population at Risk'!Q122/'Population at Risk'!Q$5","v":1.0750431403450436E-2},{"$f":"'Population at Risk'!R122/'Population at Risk'!R$5","v":3.5274615988483008E-3},{"$f":"'Population at Risk'!S122/'Population at Risk'!S$5","v":9.1121922272846025E-3},{"$f":"'Population at Risk'!T122/'Population at Risk'!T$5","v":1.0831580928804692E-2},{"$f":"'Population at Risk'!U122/'Population at Risk'!U$5","v":6.7721671581222635E-3},{"$f":"'Population at Risk'!V122/'Population at Risk'!V$5","v":9.108784377237434E-3},{"$f":"'Population at Risk'!W122/'Population at Risk'!W$5","v":6.3857547343407137E-3},{"$f":"'Population at Risk'!X122/'Population at Risk'!X$5","v":6.3851069049096773E-3},{"$f":"'Population at Risk'!Y122/'Population at Risk'!Y$5","v":8.6263753739789263E-3},{"$f":"'Population at Risk'!Z122/'Population at Risk'!Z$5","v":1.0203381741839409E-2},{"$f":"'Population at Risk'!AA122/'Population at Risk'!AA$5","v":8.8949378937791101E-3},{"$f":"'Population at Risk'!AB122/'Population at Risk'!AB$5","v":8.6531474409161212E-3},{"$f":"'Population at Risk'!AC122/'Population at Risk'!AC$5","v":8.4710780768835967E-3},{"$f":"'Population at Risk'!AD122/'Population at Risk'!AD$5","v":5.7537505228825907E-3},{"$f":"'Population at Risk'!AE122/'Population at Risk'!AE$5","v":6.331103940260539E-3},{"$f":"'Population at Risk'!AF122/'Population at Risk'!AF$5","v":4.3805696348628697E-3},{"$f":"'Population at Risk'!AG122/'Population at Risk'!AG$5","v":6.331103940260539E-3},{"$f":"'Population at Risk'!AH122/'Population at Risk'!AH$5","v":9.6184526093142254E-3},{"$f":"'Population at Risk'!AI122/'Population at Risk'!AI$5","v":1.0904477427905164E-2},{"$f":"'Population at Risk'!AJ122/'Population at Risk'!AJ$5","v":1.3574300785591383E-2},{"$f":"'Population at Risk'!AK122/'Population at Risk'!AK$5","v":6.5206870471629748E-3},{"$f":"'Population at Risk'!AL122/'Population at Risk'!AL$5","v":5.6124532690115646E-3},{"$f":"'Population at Risk'!AM122/'Population at Risk'!AM$5","v":1.0047139945788937E-2},{"$f":"'Population at Risk'!AN122/'Population at Risk'!AN$5","v":5.5899926752437318E-3},{"$f":"'Population at Risk'!AO122/'Population at Risk'!AO$5","v":5.5857856093732335E-3},{"$f":"'Population at Risk'!AP122/'Population at Risk'!AP$5","v":5.8953715330659438E-3},{"$f":"'Population at Risk'!AQ122/'Population at Risk'!AQ$5","v":6.6341035246129465E-3},{"$f":"'Population at Risk'!AR122/'Population at Risk'!AR$5","v":8.4296546213355732E-3},{"$f":"'Population at Risk'!AS122/'Population at Risk'!AS$5","v":5.771414038337962E-3},{"$f":"'Population at Risk'!AT122/'Population at Risk'!AT$5","v":2.4763920376947054E-3},{"$f":"'Population at Risk'!AU122/'Population at Risk'!AU$5","v":2.4785817390867216E-3},{"$f":"'Population at Risk'!AV122/'Population at Risk'!AV$5","v":7.7707833524598702E-3},{"$f":"'Population at Risk'!AW122/'Population at Risk'!AW$5","v":9.121668094314684E-3},{"$f":"'Population at Risk'!AX122/'Population at Risk'!AX$5","v":8.1583856167564105E-3},{"$f":"'Population at Risk'!AY122/'Population at Risk'!AY$5","v":7.5376626092839034E-3},{"$f":"'Population at Risk'!AZ122/'Population at Risk'!AZ$5","v":8.592290687050504E-3},{"$f":"'Population at Risk'!BA122/'Population at Risk'!BA$5","v":9.7706222887837171E-3},{"$f":"'Population at Risk'!BB122/'Population at Risk'!BB$5","v":9.9812223401244543E-3},{"$f":"'Population at Risk'!BC122/'Population at Risk'!BC$5","v":6.7679995240274432E-3},120]
[null,"Male 30-34",{"$f":"'Population at Risk'!C123/'Population at Risk'!C$5","v":1.2308874779048986E-2},{"$f":"'Population at Risk'!D123/'Population at Risk'!D$5","v":7.4376787289712875E-3},{"$f":"'Population at Risk'!E123/'Population at Risk'!E$5","v":3.2287876166234601E-3},{"$f":"'Population at Risk'!F123/'Population at Risk'!F$5","v":7.0603189571523967E-3},{"$f":"'Population at Risk'!G123/'Population at Risk'!G$5","v":4.7589291110961768E-3},{"$f":"'Population at Risk'!H123/'Population at Risk'!H$5","v":6.7446986286526815E-3},{"$f":"'Population at Risk'!I123/'Population at Risk'!I$5","v":4.9071118877041997E-3},{"$f":"'Population at Risk'!J123/'Population at Risk'!J$5","v":5.9531543848693478E-3},{"$f":"'Population at Risk'!K123/'Population at Risk'!K$5","v":7.4032905169300507E-3},{"$f":"'Population at Risk'!L123/'Population at Risk'!L$5","v":6.608158782833491E-3},{"$f":"'Population at Risk'!M123/'Population at Risk'!M$5","v":6.6058611512025429E-3},{"$f":"'Population at Risk'!N123/'Population at Risk'!N$5","v":8.7597132547579046E-3},{"$f":"'Population at Risk'!O123/'Population at Risk'!O$5","v":8.3640339063103235E-3},{"$f":"'Population at Risk'!P123/'Population at Risk'!P$5","v":5.6996164320534974E-3},{"$f":"'Population at Risk'!Q123/'Population at Risk'!Q$5","v":1.0510127642667427E-2},{"$f":"'Population at Risk'!R123/'Population at Risk'!R$5","v":3.0079129912659931E-3},{"$f":"'Population at Risk'!S123/'Population at Risk'!S$5","v":8.6810967540015289E-3},{"$f":"'Population at Risk'!T123/'Population at Risk'!T$5","v":9.7849055126879077E-3},{"$f":"'Population at Risk'!U123/'Population at Risk'!U$5","v":5.5860813846658215E-3},{"$f":"'Population at Risk'!V123/'Population at Risk'!V$5","v":9.122450970451593E-3},{"$f":"'Population at Risk'!W123/'Population at Risk'!W$5","v":6.2377307488437105E-3},{"$f":"'Population at Risk'!X123/'Population at Risk'!X$5","v":6.2370979363211357E-3},{"$f":"'Population at Risk'!Y123/'Population at Risk'!Y$5","v":7.8487661363919464E-3},{"$f":"'Population at Risk'!Z123/'Population at Risk'!Z$5","v":9.4667242754638524E-3},{"$f":"'Population at Risk'!AA123/'Population at Risk'!AA$5","v":8.5721005350349686E-3},{"$f":"'Population at Risk'!AB123/'Population at Risk'!AB$5","v":7.1880876951651053E-3},{"$f":"'Population at Risk'!AC123/'Population at Risk'!AC$5","v":8.0071656637076809E-3},{"$f":"'Population at Risk'!AD123/'Population at Risk'!AD$5","v":5.6911719673467063E-3},{"$f":"'Population at Risk'!AE123/'Population at Risk'!AE$5","v":6.1300386718246887E-3},{"$f":"'Population at Risk'!AF123/'Population at Risk'!AF$5","v":4.3668803547539242E-3},{"$f":"'Population at Risk'!AG123/'Population at Risk'!AG$5","v":6.1300386718246887E-3},{"$f":"'Population at Risk'!AH123/'Population at Risk'!AH$5","v":9.5668743686207897E-3},{"$f":"'Population at Risk'!AI123/'Population at Risk'!AI$5","v":1.0397325842654766E-2},{"$f":"'Population at Risk'!AJ123/'Population at Risk'!AJ$5","v":1.3137359773179645E-2},{"$f":"'Population at Risk'!AK123/'Population at Risk'!AK$5","v":6.0671806171911135E-3},{"$f":"'Population at Risk'!AL123/'Population at Risk'!AL$5","v":5.0917101821960587E-3},{"$f":"'Population at Risk'!AM123/'Population at Risk'!AM$5","v":1.0279584136523695E-2},{"$f":"'Population at Risk'!AN123/'Population at Risk'!AN$5","v":3.81624499944524E-3},{"$f":"'Population at Risk'!AO123/'Population at Risk'!AO$5","v":3.8133728679374955E-3},{"$f":"'Population at Risk'!AP123/'Population at Risk'!AP$5","v":5.8719462157160139E-3},{"$f":"'Population at Risk'!AQ123/'Population at Risk'!AQ$5","v":7.1303553630682462E-3},{"$f":"'Population at Risk'!AR123/'Population at Risk'!AR$5","v":7.9050756245520465E-3},{"$f":"'Population at Risk'!AS123/'Population at Risk'!AS$5","v":4.9077341206289361E-3},{"$f":"'Population at Risk'!AT123/'Population at Risk'!AT$5","v":1.2920306283624552E-3},{"$f":"'Population at Risk'!AU123/'Population at Risk'!AU$5","v":1.2931730812626376E-3},{"$f":"'Population at Risk'!AV123/'Population at Risk'!AV$5","v":7.1100341093165761E-3},{"$f":"'Population at Risk'!AW123/'Population at Risk'!AW$5","v":8.7730693136402384E-3},{"$f":"'Population at Risk'!AX123/'Population at Risk'!AX$5","v":5.7133648508783429E-3},{"$f":"'Population at Risk'!AY123/'Population at Risk'!AY$5","v":6.9495560634842335E-3},{"$f":"'Population at Risk'!AZ123/'Population at Risk'!AZ$5","v":7.5854482828082419E-3},{"$f":"'Population at Risk'!BA123/'Population at Risk'!BA$5","v":9.4812081214619252E-3},{"$f":"'Population at Risk'!BB123/'Population at Risk'!BB$5","v":1.0724999387425811E-2},{"$f":"'Population at Risk'!BC123/'Population at Risk'!BC$5","v":5.5826436751864788E-3},121]
[null,"Male 35-39",{"$f":"'Population at Risk'!C124/'Population at Risk'!C$5","v":9.5100243634962649E-3},{"$f":"'Population at Risk'!D124/'Population at Risk'!D$5","v":6.0839975471206021E-3},{"$f":"'Population at Risk'!E124/'Population at Risk'!E$5","v":3.1249075395306343E-3},{"$f":"'Population at Risk'!F124/'Population at Risk'!F$5","v":5.994506317586433E-3},{"$f":"'Population at Risk'!G124/'Population at Risk'!G$5","v":4.6092391397264424E-3},{"$f":"'Population at Risk'!H124/'Population at Risk'!H$5","v":5.9383400728588286E-3},{"$f":"'Population at Risk'!I124/'Population at Risk'!I$5","v":4.7677167785022271E-3},{"$f":"'Population at Risk'!J124/'Population at Risk'!J$5","v":5.2301042478964813E-3},{"$f":"'Population at Risk'!K124/'Population at Risk'!K$5","v":7.7015754162411409E-3},{"$f":"'Population at Risk'!L124/'Population at Risk'!L$5","v":6.1944504790246852E-3},{"$f":"'Population at Risk'!M124/'Population at Risk'!M$5","v":6.1922966921946956E-3},{"$f":"'Population at Risk'!N124/'Population at Risk'!N$5","v":5.9493618896618332E-3},{"$f":"'Population at Risk'!O124/'Population at Risk'!O$5","v":7.3380027397917874E-3},{"$f":"'Population at Risk'!P124/'Population at Risk'!P$5","v":4.9305322887054255E-3},{"$f":"'Population at Risk'!Q124/'Population at Risk'!Q$5","v":1.0034586437307813E-2},{"$f":"'Population at Risk'!R124/'Population at Risk'!R$5","v":2.705112213981749E-3},{"$f":"'Population at Risk'!S124/'Population at Risk'!S$5","v":7.5665610874540191E-3},{"$f":"'Population at Risk'!T124/'Population at Risk'!T$5","v":7.457105535969193E-3},{"$f":"'Population at Risk'!U124/'Population at Risk'!U$5","v":5.4017237186605059E-3},{"$f":"'Population at Risk'!V124/'Population at Risk'!V$5","v":9.069872002322189E-3},{"$f":"'Population at Risk'!W124/'Population at Risk'!W$5","v":6.0781549203286689E-3},{"$f":"'Population at Risk'!X124/'Population at Risk'!X$5","v":6.0775382966392847E-3},{"$f":"'Population at Risk'!Y124/'Population at Risk'!Y$5","v":7.4567048116154031E-3},{"$f":"'Population at Risk'!Z124/'Population at Risk'!Z$5","v":7.3577128826382253E-3},{"$f":"'Population at Risk'!AA124/'Population at Risk'!AA$5","v":7.2919775288639039E-3},{"$f":"'Population at Risk'!AB124/'Population at Risk'!AB$5","v":6.009089420531087E-3},{"$f":"'Population at Risk'!AC124/'Population at Risk'!AC$5","v":6.5084853353472695E-3},{"$f":"'Population at Risk'!AD124/'Population at Risk'!AD$5","v":5.3818459469152525E-3},{"$f":"'Population at Risk'!AE124/'Population at Risk'!AE$5","v":5.7534034427661803E-3},{"$f":"'Population at Risk'!AF124/'Population at Risk'!AF$5","v":4.1783864632249715E-3},{"$f":"'Population at Risk'!AG124/'Population at Risk'!AG$5","v":5.7534034427661803E-3},{"$f":"'Population at Risk'!AH124/'Population at Risk'!AH$5","v":8.714226542517689E-3},{"$f":"'Population at Risk'!AI124/'Population at Risk'!AI$5","v":8.6818723875828636E-3},{"$f":"'Population at Risk'!AJ124/'Population at Risk'!AJ$5","v":1.282994805608996E-2},{"$f":"'Population at Risk'!AK124/'Population at Risk'!AK$5","v":5.6788089996554309E-3},{"$f":"'Population at Risk'!AL124/'Population at Risk'!AL$5","v":4.3360866180621113E-3},{"$f":"'Population at Risk'!AM124/'Population at Risk'!AM$5","v":9.1441479042133362E-3},{"$f":"'Population at Risk'!AN124/'Population at Risk'!AN$5","v":3.8476894827381477E-3},{"$f":"'Population at Risk'!AO124/'Population at Risk'!AO$5","v":3.8447936859019919E-3},{"$f":"'Population at Risk'!AP124/'Population at Risk'!AP$5","v":5.2636080512222256E-3},{"$f":"'Population at Risk'!AQ124/'Population at Risk'!AQ$5","v":5.6220674114701085E-3},{"$f":"'Population at Risk'!AR124/'Population at Risk'!AR$5","v":6.8428503025839632E-3},{"$f":"'Population at Risk'!AS124/'Population at Risk'!AS$5","v":4.768321335810741E-3},{"$f":"'Population at Risk'!AT124/'Population at Risk'!AT$5","v":1.766302678182823E-3},{"$f":"'Population at Risk'!AU124/'Population at Risk'!AU$5","v":1.7678644968990307E-3},{"$f":"'Population at Risk'!AV124/'Population at Risk'!AV$5","v":6.4768820156311862E-3},{"$f":"'Population at Risk'!AW124/'Population at Risk'!AW$5","v":8.2206712638244941E-3},{"$f":"'Population at Risk'!AX124/'Population at Risk'!AX$5","v":4.2789301396611926E-3},{"$f":"'Population at Risk'!AY124/'Population at Risk'!AY$5","v":6.041109575340973E-3},{"$f":"'Population at Risk'!AZ124/'Population at Risk'!AZ$5","v":5.9638187493991452E-3},{"$f":"'Population at Risk'!BA124/'Population at Risk'!BA$5","v":9.2654235872558881E-3},{"$f":"'Population at Risk'!BB124/'Population at Risk'!BB$5","v":9.3294605265464622E-3},{"$f":"'Population at Risk'!BC124/'Population at Risk'!BC$5","v":5.3983994640437703E-3},122]
[null,"Male 40-44",{"$f":"'Population at Risk'!C125/'Population at Risk'!C$5","v":8.2763853930792712E-3},{"$f":"'Population at Risk'!D125/'Population at Risk'!D$5","v":5.4097885474176126E-3},{"$f":"'Population at Risk'!E125/'Population at Risk'!E$5","v":2.9343032273281234E-3},{"$f":"'Population at Risk'!F125/'Population at Risk'!F$5","v":5.6625629710099863E-3},{"$f":"'Population at Risk'!G125/'Population at Risk'!G$5","v":4.401395464990767E-3},{"$f":"'Population at Risk'!H125/'Population at Risk'!H$5","v":6.9266830510473273E-3},{"$f":"'Population at Risk'!I125/'Population at Risk'!I$5","v":5.191962763029967E-3},{"$f":"'Population at Risk'!J125/'Population at Risk'!J$5","v":5.6318680858693237E-3},{"$f":"'Population at Risk'!K125/'Population at Risk'!K$5","v":8.3634295535743638E-3},{"$f":"'Population at Risk'!L125/'Population at Risk'!L$5","v":7.3938015292188269E-3},{"$f":"'Population at Risk'!M125/'Population at Risk'!M$5","v":7.3912307325983495E-3},{"$f":"'Population at Risk'!N125/'Population at Risk'!N$5","v":5.5852638547988082E-3},{"$f":"'Population at Risk'!O125/'Population at Risk'!O$5","v":8.168720031088969E-3},{"$f":"'Population at Risk'!P125/'Population at Risk'!P$5","v":5.5329050117599353E-3},{"$f":"'Population at Risk'!Q125/'Population at Risk'!Q$5","v":1.0336378510610303E-2},{"$f":"'Population at Risk'!R125/'Population at Risk'!R$5","v":3.6022851090711729E-3},{"$f":"'Population at Risk'!S125/'Population at Risk'!S$5","v":7.5208894476922533E-3},{"$f":"'Population at Risk'!T125/'Population at Risk'!T$5","v":6.3839427466599727E-3},{"$f":"'Population at Risk'!U125/'Population at Risk'!U$5","v":7.5700212677002861E-3},{"$f":"'Population at Risk'!V125/'Population at Risk'!V$5","v":9.8239961912793151E-3},{"$f":"'Population at Risk'!W125/'Population at Risk'!W$5","v":6.6668382055905251E-3},{"$f":"'Population at Risk'!X125/'Population at Risk'!X$5","v":6.6661618604784405E-3},{"$f":"'Population at Risk'!Y125/'Population at Risk'!Y$5","v":8.0600331563536656E-3},{"$f":"'Population at Risk'!Z125/'Population at Risk'!Z$5","v":5.6761899156243288E-3},{"$f":"'Population at Risk'!AA125/'Population at Risk'!AA$5","v":7.0064611789033568E-3},{"$f":"'Population at Risk'!AB125/'Population at Risk'!AB$5","v":5.3181871583389368E-3},{"$f":"'Population at Risk'!AC125/'Population at Risk'!AC$5","v":5.6464527727144772E-3},{"$f":"'Population at Risk'!AD125/'Population at Risk'!AD$5","v":5.2885191385872434E-3},{"$f":"'Population at Risk'!AE125/'Population at Risk'!AE$5","v":5.7046457864715515E-3},{"$f":"'Population at Risk'!AF125/'Population at Risk'!AF$5","v":3.5523090127091775E-3},{"$f":"'Population at Risk'!AG125/'Population at Risk'!AG$5","v":5.7046457864715515E-3},{"$f":"'Population at Risk'!AH125/'Population at Risk'!AH$5","v":9.5276486629637374E-3},{"$f":"'Population at Risk'!AI125/'Population at Risk'!AI$5","v":8.2619200213523009E-3},{"$f":"'Population at Risk'!AJ125/'Population at Risk'!AJ$5","v":1.2786505794049023E-2},{"$f":"'Population at Risk'!AK125/'Population at Risk'!AK$5","v":4.9110730190153199E-3},{"$f":"'Population at Risk'!AL125/'Population at Risk'!AL$5","v":5.3428065625541433E-3},{"$f":"'Population at Risk'!AM125/'Population at Risk'!AM$5","v":1.0113406886138628E-2},{"$f":"'Population at Risk'!AN125/'Population at Risk'!AN$5","v":5.450893433879043E-3},{"$f":"'Population at Risk'!AO125/'Population at Risk'!AO$5","v":5.4467910550278211E-3},{"$f":"'Population at Risk'!AP125/'Population at Risk'!AP$5","v":3.9205340204531321E-3},{"$f":"'Population at Risk'!AQ125/'Population at Risk'!AQ$5","v":5.9596511359463738E-3},{"$f":"'Population at Risk'!AR125/'Population at Risk'!AR$5","v":6.7736622116484659E-3},{"$f":"'Population at Risk'!AS125/'Population at Risk'!AS$5","v":5.1926211156922046E-3},{"$f":"'Population at Risk'!AT125/'Population at Risk'!AT$5","v":1.5522053838576322E-3},{"$f":"'Population at Risk'!AU125/'Population at Risk'!AU$5","v":1.5535778912142996E-3},{"$f":"'Population at Risk'!AV125/'Population at Risk'!AV$5","v":7.6057100240697643E-3},{"$f":"'Population at Risk'!AW125/'Population at Risk'!AW$5","v":8.8669163917228615E-3},{"$f":"'Population at Risk'!AX125/'Population at Risk'!AX$5","v":4.564192148971938E-3},{"$f":"'Population at Risk'!AY125/'Population at Risk'!AY$5","v":5.9586123913940546E-3},{"$f":"'Population at Risk'!AZ125/'Population at Risk'!AZ$5","v":5.2370755447544888E-3},{"$f":"'Population at Risk'!BA125/'Population at Risk'!BA$5","v":8.6669117530480538E-3},{"$f":"'Population at Risk'!BB125/'Population at Risk'!BB$5","v":1.0082155855652123E-2},{"$f":"'Population at Risk'!BC125/'Population at Risk'!BC$5","v":7.5653626291881009E-3},123]
[null,"Male 45-49",{"$f":"'Population at Risk'!C126/'Population at Risk'!C$5","v":9.3972618546265506E-3},{"$f":"'Population at Risk'!D126/'Population at Risk'!D$5","v":6.1481133865172663E-3},{"$f":"'Population at Risk'!E126/'Population at Risk'!E$5","v":3.3422924118458089E-3},{"$f":"'Population at Risk'!F126/'Population at Risk'!F$5","v":6.9545102467645581E-3},{"$f":"'Population at Risk'!G126/'Population at Risk'!G$5","v":6.5121516379841654E-3},{"$f":"'Population at Risk'!H126/'Population at Risk'!H$5","v":9.5109226652332762E-3},{"$f":"'Population at Risk'!I126/'Population at Risk'!I$5","v":6.6119131948882389E-3},{"$f":"'Population at Risk'!J126/'Population at Risk'!J$5","v":7.4202162503614871E-3},{"$f":"'Population at Risk'!K126/'Population at Risk'!K$5","v":1.1433595623037885E-2},{"$f":"'Population at Risk'!L126/'Population at Risk'!L$5","v":9.5222055453373644E-3},{"$f":"'Population at Risk'!M126/'Population at Risk'!M$5","v":9.5188947107499467E-3},{"$f":"'Population at Risk'!N126/'Population at Risk'!N$5","v":7.1031410710947346E-3},{"$f":"'Population at Risk'!O126/'Population at Risk'!O$5","v":1.0911968245656128E-2},{"$f":"'Population at Risk'!P126/'Population at Risk'!P$5","v":6.7529765271511786E-3},{"$f":"'Population at Risk'!Q126/'Population at Risk'!Q$5","v":1.2588665875061283E-2},{"$f":"'Population at Risk'!R126/'Population at Risk'!R$5","v":4.1291230001665041E-3},{"$f":"'Population at Risk'!S126/'Population at Risk'!S$5","v":8.6265097250287446E-3},{"$f":"'Population at Risk'!T126/'Population at Risk'!T$5","v":6.263498794812296E-3},{"$f":"'Population at Risk'!U126/'Population at Risk'!U$5","v":9.5613486887864019E-3},{"$f":"'Population at Risk'!V126/'Population at Risk'!V$5","v":1.242576895130061E-2},{"$f":"'Population at Risk'!W126/'Population at Risk'!W$5","v":8.16951627853503E-3},{"$f":"'Population at Risk'!X126/'Population at Risk'!X$5","v":8.168687488000044E-3},{"$f":"'Population at Risk'!Y126/'Population at Risk'!Y$5","v":1.0344104524879574E-2},{"$f":"'Population at Risk'!Z126/'Population at Risk'!Z$5","v":6.4142253402725263E-3},{"$f":"'Population at Risk'!AA126/'Population at Risk'!AA$5","v":8.5819819189370226E-3},{"$f":"'Population at Risk'!AB126/'Population at Risk'!AB$5","v":6.264728997522207E-3},{"$f":"'Population at Risk'!AC126/'Population at Risk'!AC$5","v":6.6907166174774947E-3},{"$f":"'Population at Risk'!AD126/'Population at Risk'!AD$5","v":7.1278237146981142E-3},{"$f":"'Population at Risk'!AE126/'Population at Risk'!AE$5","v":7.4573775353584618E-3},{"$f":"'Population at Risk'!AF126/'Population at Risk'!AF$5","v":4.643743086179244E-3},{"$f":"'Population at Risk'!AG126/'Population at Risk'!AG$5","v":7.4573775353584618E-3},{"$f":"'Population at Risk'!AH126/'Population at Risk'!AH$5","v":1.2098785263755884E-2},{"$f":"'Population at Risk'!AI126/'Population at Risk'!AI$5","v":9.1299954715481479E-3},{"$f":"'Population at Risk'!AJ126/'Population at Risk'!AJ$5","v":1.587531358495968E-2},{"$f":"'Population at Risk'!AK126/'Population at Risk'!AK$5","v":6.8037620942690176E-3},{"$f":"'Population at Risk'!AL126/'Population at Risk'!AL$5","v":7.6295615370894311E-3},{"$f":"'Population at Risk'!AM126/'Population at Risk'!AM$5","v":1.2233629040380776E-2},{"$f":"'Population at Risk'!AN126/'Population at Risk'!AN$5","v":6.0015591388361336E-3},{"$f":"'Population at Risk'!AO126/'Population at Risk'!AO$5","v":5.9970423252927816E-3},{"$f":"'Population at Risk'!AP126/'Population at Risk'!AP$5","v":5.0734376795370517E-3},{"$f":"'Population at Risk'!AQ126/'Population at Risk'!AQ$5","v":7.3671720393521803E-3},{"$f":"'Population at Risk'!AR126/'Population at Risk'!AR$5","v":8.302615068999146E-3},{"$f":"'Population at Risk'!AS126/'Population at Risk'!AS$5","v":6.6127516004880118E-3},{"$f":"'Population at Risk'!AT126/'Population at Risk'!AT$5","v":7.442208122303911E-4},{"$f":"'Population at Risk'!AU126/'Population at Risk'!AU$5","v":7.4487887497801054E-4},{"$f":"'Population at Risk'!AV126/'Population at Risk'!AV$5","v":1.0391171581599601E-2},{"$f":"'Population at Risk'!AW126/'Population at Risk'!AW$5","v":1.1897157755829457E-2},{"$f":"'Population at Risk'!AX126/'Population at Risk'!AX$5","v":5.7572236601233463E-3},{"$f":"'Population at Risk'!AY126/'Population at Risk'!AY$5","v":7.4056419442033285E-3},{"$f":"'Population at Risk'!AZ126/'Population at Risk'!AZ$5","v":6.6206539543549256E-3},{"$f":"'Population at Risk'!BA126/'Population at Risk'!BA$5","v":1.1411859171941709E-2},{"$f":"'Population at Risk'!BB126/'Population at Risk'!BB$5","v":1.1821622704310716E-2},{"$f":"'Population at Risk'!BC126/'Population at Risk'!BC$5","v":9.555464574904176E-3},124]
[null,"Male 50-54",{"$f":"'Population at Risk'!C127/'Population at Risk'!C$5","v":8.722046599416073E-3},{"$f":"'Population at Risk'!D127/'Population at Risk'!D$5","v":5.9326421229711013E-3},{"$f":"'Population at Risk'!E127/'Population at Risk'!E$5","v":3.5246968131343441E-3},{"$f":"'Population at Risk'!F127/'Population at Risk'!F$5","v":6.9649524543422825E-3},{"$f":"'Population at Risk'!G127/'Population at Risk'!G$5","v":6.6952241739917529E-3},{"$f":"'Population at Risk'!H127/'Population at Risk'!H$5","v":1.0057188015456237E-2},{"$f":"'Population at Risk'!I127/'Population at Risk'!I$5","v":7.4870193530352123E-3},{"$f":"'Population at Risk'!J127/'Population at Risk'!J$5","v":7.4969506479867351E-3},{"$f":"'Population at Risk'!K127/'Population at Risk'!K$5","v":1.0682796660924702E-2},{"$f":"'Population at Risk'!L127/'Population at Risk'!L$5","v":1.1150354680032355E-2},{"$f":"'Population at Risk'!M127/'Population at Risk'!M$5","v":1.1146477744194238E-2},{"$f":"'Population at Risk'!N127/'Population at Risk'!N$5","v":6.6046750310179113E-3},{"$f":"'Population at Risk'!O127/'Population at Risk'!O$5","v":1.1421008324970026E-2},{"$f":"'Population at Risk'!P127/'Population at Risk'!P$5","v":8.6619451567345497E-3},{"$f":"'Population at Risk'!Q127/'Population at Risk'!Q$5","v":1.3610822505942326E-2},{"$f":"'Population at Risk'!R127/'Population at Risk'!R$5","v":4.9723945987920582E-3},{"$f":"'Population at Risk'!S127/'Population at Risk'!S$5","v":8.8660567118394092E-3},{"$f":"'Population at Risk'!T127/'Population at Risk'!T$5","v":6.0307245978243988E-3},{"$f":"'Population at Risk'!U127/'Population at Risk'!U$5","v":1.0537826852747565E-2},{"$f":"'Population at Risk'!V127/'Population at Risk'!V$5","v":1.2076975436878136E-2},{"$f":"'Population at Risk'!W127/'Population at Risk'!W$5","v":8.5189637956515577E-3},{"$f":"'Population at Risk'!X127/'Population at Risk'!X$5","v":8.5180995539607379E-3},{"$f":"'Population at Risk'!Y127/'Population at Risk'!Y$5","v":1.0197270019109897E-2},{"$f":"'Population at Risk'!Z127/'Population at Risk'!Z$5","v":6.2004178289301083E-3},{"$f":"'Population at Risk'!AA127/'Population at Risk'!AA$5","v":8.8461636238479167E-3},{"$f":"'Population at Risk'!AB127/'Population at Risk'!AB$5","v":6.0482169510263232E-3},{"$f":"'Population at Risk'!AC127/'Population at Risk'!AC$5","v":6.9960607532832909E-3},{"$f":"'Population at Risk'!AD127/'Population at Risk'!AD$5","v":7.8561335029738028E-3},{"$f":"'Population at Risk'!AE127/'Population at Risk'!AE$5","v":8.4117132619113289E-3},{"$f":"'Population at Risk'!AF127/'Population at Risk'!AF$5","v":6.0994619219721102E-3},{"$f":"'Population at Risk'!AG127/'Population at Risk'!AG$5","v":8.4117132619113289E-3},{"$f":"'Population at Risk'!AH127/'Population at Risk'!AH$5","v":1.2282243473945713E-2},{"$f":"'Population at Risk'!AI127/'Population at Risk'!AI$5","v":9.2262454238084442E-3},{"$f":"'Population at Risk'!AJ127/'Population at Risk'!AJ$5","v":1.7222779225829429E-2},{"$f":"'Population at Risk'!AK127/'Population at Risk'!AK$5","v":6.5821836352602569E-3},{"$f":"'Population at Risk'!AL127/'Population at Risk'!AL$5","v":7.7372368007177098E-3},{"$f":"'Population at Risk'!AM127/'Population at Risk'!AM$5","v":1.2462363962124927E-2},{"$f":"'Population at Risk'!AN127/'Population at Risk'!AN$5","v":6.8017670240142838E-3},{"$f":"'Population at Risk'!AO127/'Population at Risk'!AO$5","v":6.7966479686651527E-3},{"$f":"'Population at Risk'!AP127/'Population at Risk'!AP$5","v":4.9987061916224309E-3},{"$f":"'Population at Risk'!AQ127/'Population at Risk'!AQ$5","v":7.7768451310786454E-3},{"$f":"'Population at Risk'!AR127/'Population at Risk'!AR$5","v":8.5585640889249536E-3},{"$f":"'Population at Risk'!AS127/'Population at Risk'!AS$5","v":7.4879687240820142E-3},{"$f":"'Population at Risk'!AT127/'Population at Risk'!AT$5","v":2.0609191723303137E-3},{"$f":"'Population at Risk'!AU127/'Population at Risk'!AU$5","v":2.0627414999391061E-3},{"$f":"'Population at Risk'!AV127/'Population at Risk'!AV$5","v":1.1539148632519175E-2},{"$f":"'Population at Risk'!AW127/'Population at Risk'!AW$5","v":1.2032308850102105E-2},{"$f":"'Population at Risk'!AX127/'Population at Risk'!AX$5","v":6.3541708138227723E-3},{"$f":"'Population at Risk'!AY127/'Population at Risk'!AY$5","v":7.4660140252702026E-3},{"$f":"'Population at Risk'!AZ127/'Population at Risk'!AZ$5","v":6.4028891829005837E-3},{"$f":"'Population at Risk'!BA127/'Population at Risk'!BA$5","v":1.2015075028926762E-2},{"$f":"'Population at Risk'!BB127/'Population at Risk'!BB$5","v":1.1729817987968998E-2},{"$f":"'Population at Risk'!BC127/'Population at Risk'!BC$5","v":1.0531341808085881E-2},125]
[null,"Male 55-59",{"$f":"'Population at Risk'!C128/'Population at Risk'!C$5","v":1.2113701795854212E-2},{"$f":"'Population at Risk'!D128/'Population at Risk'!D$5","v":8.2425797116873183E-3},{"$f":"'Population at Risk'!E128/'Population at Risk'!E$5","v":4.9008570394666441E-3},{"$f":"'Population at Risk'!F128/'Population at Risk'!F$5","v":8.300649466994315E-3},{"$f":"'Population at Risk'!G128/'Population at Risk'!G$5","v":1.000704391461371E-2},{"$f":"'Population at Risk'!H128/'Population at Risk'!H$5","v":1.313269434583479E-2},{"$f":"'Population at Risk'!I128/'Population at Risk'!I$5","v":1.0235512627814863E-2},{"$f":"'Population at Risk'!J128/'Population at Risk'!J$5","v":9.8700606718886488E-3},{"$f":"'Population at Risk'!K128/'Population at Risk'!K$5","v":1.3568910890353354E-2},{"$f":"'Population at Risk'!L128/'Population at Risk'!L$5","v":1.5225970738035608E-2},{"$f":"'Population at Risk'!M128/'Population at Risk'!M$5","v":1.5220676726022687E-2},{"$f":"'Population at Risk'!N128/'Population at Risk'!N$5","v":8.6654910154750908E-3},{"$f":"'Population at Risk'!O128/'Population at Risk'!O$5","v":1.4844958126750784E-2},{"$f":"'Population at Risk'!P128/'Population at Risk'!P$5","v":1.0478052033198623E-2},{"$f":"'Population at Risk'!Q128/'Population at Risk'!Q$5","v":1.8040095009790789E-2},{"$f":"'Population at Risk'!R128/'Population at Risk'!R$5","v":5.7889519583806939E-3},{"$f":"'Population at Risk'!S128/'Population at Risk'!S$5","v":1.1430582929445484E-2},{"$f":"'Population at Risk'!T128/'Population at Risk'!T$5","v":7.3173960624756621E-3},{"$f":"'Population at Risk'!U128/'Population at Risk'!U$5","v":1.4763719141814367E-2},{"$f":"'Population at Risk'!V128/'Population at Risk'!V$5","v":1.5564103188708373E-2},{"$f":"'Population at Risk'!W128/'Population at Risk'!W$5","v":1.1210253143032457E-2},{"$f":"'Population at Risk'!X128/'Population at Risk'!X$5","v":1.1209115872307608E-2},{"$f":"'Population at Risk'!Y128/'Population at Risk'!Y$5","v":1.3246604463312755E-2},{"$f":"'Population at Risk'!Z128/'Population at Risk'!Z$5","v":7.8615635684846415E-3},{"$f":"'Population at Risk'!AA128/'Population at Risk'!AA$5","v":1.1504973605208789E-2},{"$f":"'Population at Risk'!AB128/'Population at Risk'!AB$5","v":8.3037038348257475E-3},{"$f":"'Population at Risk'!AC128/'Population at Risk'!AC$5","v":8.9749364668842944E-3},{"$f":"'Population at Risk'!AD128/'Population at Risk'!AD$5","v":1.0914788146798271E-2},{"$f":"'Population at Risk'!AE128/'Population at Risk'!AE$5","v":1.1405461623709525E-2},{"$f":"'Population at Risk'!AF128/'Population at Risk'!AF$5","v":7.8309388786915925E-3},{"$f":"'Population at Risk'!AG128/'Population at Risk'!AG$5","v":1.1405461623709525E-2},{"$f":"'Population at Risk'!AH128/'Population at Risk'!AH$5","v":1.6209345011008323E-2},{"$f":"'Population at Risk'!AI128/'Population at Risk'!AI$5","v":1.1702295836766432E-2},{"$f":"'Population at Risk'!AJ128/'Population at Risk'!AJ$5","v":2.2939571044416497E-2},{"$f":"'Population at Risk'!AK128/'Population at Risk'!AK$5","v":8.5942276623696238E-3},{"$f":"'Population at Risk'!AL128/'Population at Risk'!AL$5","v":9.9253415579179903E-3},{"$f":"'Population at Risk'!AM128/'Population at Risk'!AM$5","v":1.5845697186979417E-2},{"$f":"'Population at Risk'!AN128/'Population at Risk'!AN$5","v":8.877257820278716E-3},{"$f":"'Population at Risk'!AO128/'Population at Risk'!AO$5","v":8.8705767366764558E-3},{"$f":"'Population at Risk'!AP128/'Population at Risk'!AP$5","v":6.0378136645021238E-3},{"$f":"'Population at Risk'!AQ128/'Population at Risk'!AQ$5","v":1.0343064775752595E-2},{"$f":"'Population at Risk'!AR128/'Population at Risk'!AR$5","v":1.1194810353609015E-2},{"$f":"'Population at Risk'!AS128/'Population at Risk'!AS$5","v":1.0236810514046997E-2},{"$f":"'Population at Risk'!AT128/'Population at Risk'!AT$5","v":2.1015666296587193E-3},{"$f":"'Population at Risk'!AU128/'Population at Risk'!AU$5","v":2.1034248989893955E-3},{"$f":"'Population at Risk'!AV128/'Population at Risk'!AV$5","v":1.5370190820530991E-2},{"$f":"'Population at Risk'!AW128/'Population at Risk'!AW$5","v":1.6508923307115717E-2},{"$f":"'Population at Risk'!AX128/'Population at Risk'!AX$5","v":8.6719291332030407E-3},{"$f":"'Population at Risk'!AY128/'Population at Risk'!AY$5","v":9.5906825367850796E-3},{"$f":"'Population at Risk'!AZ128/'Population at Risk'!AZ$5","v":7.9685283838117644E-3},{"$f":"'Population at Risk'!BA128/'Population at Risk'!BA$5","v":1.6547217484526863E-2},{"$f":"'Population at Risk'!BB128/'Population at Risk'!BB$5","v":1.4846623512966397E-2},{"$f":"'Population at Risk'!BC128/'Population at Risk'!BC$5","v":1.4754633456563969E-2},126]
[null,"Male 60-64",{"$f":"'Population at Risk'!C129/'Population at Risk'!C$5","v":9.9096203138648534E-3},{"$f":"'Population at Risk'!D129/'Population at Risk'!D$5","v":6.8025620947340711E-3},{"$f":"'Population at Risk'!E129/'Population at Risk'!E$5","v":4.1206587781605162E-3},{"$f":"'Population at Risk'!F129/'Population at Risk'!F$5","v":8.2564186527829767E-3},{"$f":"'Population at Risk'!G129/'Population at Risk'!G$5","v":9.3239062304057638E-3},{"$f":"'Population at Risk'!H129/'Population at Risk'!H$5","v":1.1531756368437786E-2},{"$f":"'Population at Risk'!I129/'Population at Risk'!I$5","v":9.7931432295933572E-3},{"$f":"'Population at Risk'!J129/'Population at Risk'!J$5","v":8.2990850435419369E-3},{"$f":"'Population at Risk'!K129/'Population at Risk'!K$5","v":1.2478551979521387E-2},{"$f":"'Population at Risk'!L129/'Population at Risk'!L$5","v":1.3773034968262276E-2},{"$f":"'Population at Risk'!M129/'Population at Risk'!M$5","v":1.3768246136480653E-2},{"$f":"'Population at Risk'!N129/'Population at Risk'!N$5","v":7.2029144862134327E-3},{"$f":"'Population at Risk'!O129/'Population at Risk'!O$5","v":1.2453560822881597E-2},{"$f":"'Population at Risk'!P129/'Population at Risk'!P$5","v":8.288105466774472E-3},{"$f":"'Population at Risk'!Q129/'Population at Risk'!Q$5","v":1.4223190697192949E-2},{"$f":"'Population at Risk'!R129/'Population at Risk'!R$5","v":5.2757469975313418E-3},{"$f":"'Population at Risk'!S129/'Population at Risk'!S$5","v":9.7301875574857342E-3},{"$f":"'Population at Risk'!T129/'Population at Risk'!T$5","v":5.7949848011552233E-3},{"$f":"'Population at Risk'!U129/'Population at Risk'!U$5","v":1.4878611897781795E-2},{"$f":"'Population at Risk'!V129/'Population at Risk'!V$5","v":1.2814479158007092E-2},{"$f":"'Population at Risk'!W129/'Population at Risk'!W$5","v":1.0090116825806376E-2},{"$f":"'Population at Risk'!X129/'Population at Risk'!X$5","v":1.0089093191966008E-2},{"$f":"'Population at Risk'!Y129/'Population at Risk'!Y$5","v":1.0993372320253379E-2},{"$f":"'Population at Risk'!Z129/'Population at Risk'!Z$5","v":6.2583018146020047E-3},{"$f":"'Population at Risk'!AA129/'Population at Risk'!AA$5","v":9.6694959126355558E-3},{"$f":"'Population at Risk'!AB129/'Population at Risk'!AB$5","v":6.8150846599550246E-3},{"$f":"'Population at Risk'!AC129/'Population at Risk'!AC$5","v":7.308022120742586E-3},{"$f":"'Population at Risk'!AD129/'Population at Risk'!AD$5","v":9.8081716536747732E-3},{"$f":"'Population at Risk'!AE129/'Population at Risk'!AE$5","v":1.0116916895401477E-2},{"$f":"'Population at Risk'!AF129/'Population at Risk'!AF$5","v":5.8988962157073156E-3},{"$f":"'Population at Risk'!AG129/'Population at Risk'!AG$5","v":1.0116916895401477E-2},{"$f":"'Population at Risk'!AH129/'Population at Risk'!AH$5","v":1.4070352366227818E-2},{"$f":"'Population at Risk'!AI129/'Population at Risk'!AI$5","v":9.5430335081759798E-3},{"$f":"'Population at Risk'!AJ129/'Population at Risk'!AJ$5","v":2.0140462280178829E-2},{"$f":"'Population at Risk'!AK129/'Population at Risk'!AK$5","v":6.8827433527328457E-3},{"$f":"'Population at Risk'!AL129/'Population at Risk'!AL$5","v":9.1977727566264107E-3},{"$f":"'Population at Risk'!AM129/'Population at Risk'!AM$5","v":1.4210079528625855E-2},{"$f":"'Population at Risk'!AN129/'Population at Risk'!AN$5","v":8.7965554764580008E-3},{"$f":"'Population at Risk'!AO129/'Population at Risk'!AO$5","v":8.7899351299793975E-3},{"$f":"'Population at Risk'!AP129/'Population at Risk'!AP$5","v":5.533685533291267E-3},{"$f":"'Population at Risk'!AQ129/'Population at Risk'!AQ$5","v":9.0489561971750215E-3},{"$f":"'Population at Risk'!AR129/'Population at Risk'!AR$5","v":9.5793017011416327E-3},{"$f":"'Population at Risk'!AS129/'Population at Risk'!AS$5","v":9.7943850223817745E-3},{"$f":"'Population at Risk'!AT129/'Population at Risk'!AT$5","v":1.6974192008781966E-3},{"$f":"'Population at Risk'!AU129/'Population at Risk'!AU$5","v":1.698920110722204E-3},{"$f":"'Population at Risk'!AV129/'Population at Risk'!AV$5","v":1.3497822120575396E-2},{"$f":"'Population at Risk'!AW129/'Population at Risk'!AW$5","v":1.3853756315515536E-2},{"$f":"'Population at Risk'!AX129/'Population at Risk'!AX$5","v":6.6303734625353695E-3},{"$f":"'Population at Risk'!AY129/'Population at Risk'!AY$5","v":8.6486624425839917E-3},{"$f":"'Population at Risk'!AZ129/'Population at Risk'!AZ$5","v":7.2041304305950947E-3},{"$f":"'Population at Risk'!BA129/'Population at Risk'!BA$5","v":1.3522831095548216E-2},{"$f":"'Population at Risk'!BB129/'Population at Risk'!BB$5","v":1.216445982929416E-2},{"$f":"'Population at Risk'!BC129/'Population at Risk'!BC$5","v":1.4869455506809603E-2},127]
[null,"Male 65-69",{"$f":"'Population at Risk'!C130/'Population at Risk'!C$5","v":1.0206744572385781E-2},{"$f":"'Population at Risk'!D130/'Population at Risk'!D$5","v":7.6453175050331728E-3},{"$f":"'Population at Risk'!E130/'Population at Risk'!E$5","v":5.4370643345345903E-3},{"$f":"'Population at Risk'!F130/'Population at Risk'!F$5","v":9.9504899656092712E-3},{"$f":"'Population at Risk'!G130/'Population at Risk'!G$5","v":1.1398125859724398E-2},{"$f":"'Population at Risk'!H130/'Population at Risk'!H$5","v":1.388049332010177E-2},{"$f":"'Population at Risk'!I130/'Population at Risk'!I$5","v":1.1379629973390466E-2},{"$f":"'Population at Risk'!J130/'Population at Risk'!J$5","v":9.7820760549909725E-3},{"$f":"'Population at Risk'!K130/'Population at Risk'!K$5","v":1.3809817657600511E-2},{"$f":"'Population at Risk'!L130/'Population at Risk'!L$5","v":1.7262632707744165E-2},{"$f":"'Population at Risk'!M130/'Population at Risk'!M$5","v":1.7256630556124294E-2},{"$f":"'Population at Risk'!N130/'Population at Risk'!N$5","v":9.0352035475713653E-3},{"$f":"'Population at Risk'!O130/'Population at Risk'!O$5","v":1.4143563853386215E-2},{"$f":"'Population at Risk'!P130/'Population at Risk'!P$5","v":8.4223540736516767E-3},{"$f":"'Population at Risk'!Q130/'Population at Risk'!Q$5","v":1.6395182417020086E-2},{"$f":"'Population at Risk'!R130/'Population at Risk'!R$5","v":4.6799564245560586E-3},{"$f":"'Population at Risk'!S130/'Population at Risk'!S$5","v":1.1009920141766853E-2},{"$f":"'Population at Risk'!T130/'Population at Risk'!T$5","v":6.0456468573453492E-3},{"$f":"'Population at Risk'!U130/'Population at Risk'!U$5","v":1.6532648589017276E-2},{"$f":"'Population at Risk'!V130/'Population at Risk'!V$5","v":1.6187705504721046E-2},{"$f":"'Population at Risk'!W130/'Population at Risk'!W$5","v":1.1794039265892283E-2},{"$f":"'Population at Risk'!X130/'Population at Risk'!X$5","v":1.1792842770557725E-2},{"$f":"'Population at Risk'!Y130/'Population at Risk'!Y$5","v":1.3533906667013854E-2},{"$f":"'Population at Risk'!Z130/'Population at Risk'!Z$5","v":5.8634997276038213E-3},{"$f":"'Population at Risk'!AA130/'Population at Risk'!AA$5","v":9.8688868577108783E-3},{"$f":"'Population at Risk'!AB130/'Population at Risk'!AB$5","v":7.7027470596057745E-3},{"$f":"'Population at Risk'!AC130/'Population at Risk'!AC$5","v":7.1463190814934369E-3},{"$f":"'Population at Risk'!AD130/'Population at Risk'!AD$5","v":1.179999517806018E-2},{"$f":"'Population at Risk'!AE130/'Population at Risk'!AE$5","v":1.2099360802379082E-2},{"$f":"'Population at Risk'!AF130/'Population at Risk'!AF$5","v":6.2863383481279586E-3},{"$f":"'Population at Risk'!AG130/'Population at Risk'!AG$5","v":1.2099360802379082E-2},{"$f":"'Population at Risk'!AH130/'Population at Risk'!AH$5","v":1.4954542723705997E-2},{"$f":"'Population at Risk'!AI130/'Population at Risk'!AI$5","v":1.057306160312658E-2},{"$f":"'Population at Risk'!AJ130/'Population at Risk'!AJ$5","v":2.1743292870089213E-2},{"$f":"'Population at Risk'!AK130/'Population at Risk'!AK$5","v":7.9755529119251052E-3},{"$f":"'Population at Risk'!AL130/'Population at Risk'!AL$5","v":1.0821801698965657E-2},{"$f":"'Population at Risk'!AM130/'Population at Risk'!AM$5","v":1.5055712874246993E-2},{"$f":"'Population at Risk'!AN130/'Population at Risk'!AN$5","v":1.1020749247900715E-2},{"$f":"'Population at Risk'!AO130/'Population at Risk'!AO$5","v":1.1012454958315416E-2},{"$f":"'Population at Risk'!AP130/'Population at Risk'!AP$5","v":5.7425106485721102E-3},{"$f":"'Population at Risk'!AQ130/'Population at Risk'!AQ$5","v":9.3164075614994984E-3},{"$f":"'Population at Risk'!AR130/'Population at Risk'!AR$5","v":1.071995368517363E-2},{"$f":"'Population at Risk'!AS130/'Population at Risk'!AS$5","v":1.1381072936298751E-2},{"$f":"'Population at Risk'!AT130/'Population at Risk'!AT$5","v":2.0981534843868685E-3},{"$f":"'Population at Risk'!AU130/'Population at Risk'!AU$5","v":2.1000087357103637E-3},{"$f":"'Population at Risk'!AV130/'Population at Risk'!AV$5","v":1.7472938056777559E-2},{"$f":"'Population at Risk'!AW130/'Population at Risk'!AW$5","v":1.4773882545953874E-2},{"$f":"'Population at Risk'!AX130/'Population at Risk'!AX$5","v":8.3708491926891768E-3},{"$f":"'Population at Risk'!AY130/'Population at Risk'!AY$5","v":1.0140747665649551E-2},{"$f":"'Population at Risk'!AZ130/'Population at Risk'!AZ$5","v":8.4824001310851195E-3},{"$f":"'Population at Risk'!BA130/'Population at Risk'!BA$5","v":1.3790593413349332E-2},{"$f":"'Population at Risk'!BB130/'Population at Risk'!BB$5","v":1.4392728900192458E-2},{"$f":"'Population at Risk'!BC130/'Population at Risk'!BC$5","v":1.6522474293503224E-2},128]
[null,"Male 70-74",{"$f":"'Population at Risk'!C131/'Population at Risk'!C$5","v":6.6333968594228677E-3},{"$f":"'Population at Risk'!D131/'Population at Risk'!D$5","v":5.0495719808692149E-3},{"$f":"'Population at Risk'!E131/'Population at Risk'!E$5","v":3.6845514594094474E-3},{"$f":"'Population at Risk'!F131/'Population at Risk'!F$5","v":6.7556838228049572E-3},{"$f":"'Population at Risk'!G131/'Population at Risk'!G$5","v":9.0226480754308294E-3},{"$f":"'Population at Risk'!H131/'Population at Risk'!H$5","v":1.0252744048983646E-2},{"$f":"'Population at Risk'!I131/'Population at Risk'!I$5","v":8.1602792850031473E-3},{"$f":"'Population at Risk'!J131/'Population at Risk'!J$5","v":6.4928529815002573E-3},{"$f":"'Population at Risk'!K131/'Population at Risk'!K$5","v":9.8104397716122435E-3},{"$f":"'Population at Risk'!L131/'Population at Risk'!L$5","v":1.3039633424652555E-2},{"$f":"'Population at Risk'!M131/'Population at Risk'!M$5","v":1.3035099593793304E-2},{"$f":"'Population at Risk'!N131/'Population at Risk'!N$5","v":6.1806749542452468E-3},{"$f":"'Population at Risk'!O131/'Population at Risk'!O$5","v":1.0648230554895565E-2},{"$f":"'Population at Risk'!P131/'Population at Risk'!P$5","v":6.0648554164670094E-3},{"$f":"'Population at Risk'!Q131/'Population at Risk'!Q$5","v":1.1701659607441788E-2},{"$f":"'Population at Risk'!R131/'Population at Risk'!R$5","v":2.8033402345113028E-3},{"$f":"'Population at Risk'!S131/'Population at Risk'!S$5","v":8.1118636639340019E-3},{"$f":"'Population at Risk'!T131/'Population at Risk'!T$5","v":4.3956713046001804E-3},{"$f":"'Population at Risk'!U131/'Population at Risk'!U$5","v":1.0567928313763984E-2},{"$f":"'Population at Risk'!V131/'Population at Risk'!V$5","v":1.1347604717186427E-2},{"$f":"'Population at Risk'!W131/'Population at Risk'!W$5","v":8.4880963155634804E-3},{"$f":"'Population at Risk'!X131/'Population at Risk'!X$5","v":8.4872352053524756E-3},{"$f":"'Population at Risk'!Y131/'Population at Risk'!Y$5","v":9.3037911619007884E-3},{"$f":"'Population at Risk'!Z131/'Population at Risk'!Z$5","v":4.3403640561754846E-3},{"$f":"'Population at Risk'!AA131/'Population at Risk'!AA$5","v":7.7035878512360378E-3},{"$f":"'Population at Risk'!AB131/'Population at Risk'!AB$5","v":5.2539185153396735E-3},{"$f":"'Population at Risk'!AC131/'Population at Risk'!AC$5","v":5.4932672291985478E-3},{"$f":"'Population at Risk'!AD131/'Population at Risk'!AD$5","v":8.8838705584197448E-3},{"$f":"'Population at Risk'!AE131/'Population at Risk'!AE$5","v":8.9332505924158753E-3},{"$f":"'Population at Risk'!AF131/'Population at Risk'!AF$5","v":5.0105132221241293E-3},{"$f":"'Population at Risk'!AG131/'Population at Risk'!AG$5","v":8.9332505924158753E-3},{"$f":"'Population at Risk'!AH131/'Population at Risk'!AH$5","v":1.1835245722691142E-2},{"$f":"'Population at Risk'!AI131/'Population at Risk'!AI$5","v":7.9194495498436015E-3},{"$f":"'Population at Risk'!AJ131/'Population at Risk'!AJ$5","v":1.6782564303814602E-2},{"$f":"'Population at Risk'!AK131/'Population at Risk'!AK$5","v":6.1893613743585459E-3},{"$f":"'Population at Risk'!AL131/'Population at Risk'!AL$5","v":7.4759898486625722E-3},{"$f":"'Population at Risk'!AM131/'Population at Risk'!AM$5","v":1.178707704524218E-2},{"$f":"'Population at Risk'!AN131/'Population at Risk'!AN$5","v":8.9258960850766116E-3},{"$f":"'Population at Risk'!AO131/'Population at Risk'!AO$5","v":8.9191783959909985E-3},{"$f":"'Population at Risk'!AP131/'Population at Risk'!AP$5","v":3.8503930846416679E-3},{"$f":"'Population at Risk'!AQ131/'Population at Risk'!AQ$5","v":7.789490407714544E-3},{"$f":"'Population at Risk'!AR131/'Population at Risk'!AR$5","v":7.9522460613398217E-3},{"$f":"'Population at Risk'!AS131/'Population at Risk'!AS$5","v":8.1613140269373805E-3},{"$f":"'Population at Risk'!AT131/'Population at Risk'!AT$5","v":2.1893775489254278E-3},{"$f":"'Population at Risk'!AU131/'Population at Risk'!AU$5","v":2.1913134633499442E-3},{"$f":"'Population at Risk'!AV131/'Population at Risk'!AV$5","v":1.3357020337626891E-2},{"$f":"'Population at Risk'!AW131/'Population at Risk'!AW$5","v":1.1826489901425799E-2},{"$f":"'Population at Risk'!AX131/'Population at Risk'!AX$5","v":5.1577959672125234E-3},{"$f":"'Population at Risk'!AY131/'Population at Risk'!AY$5","v":7.1214640016371324E-3},{"$f":"'Population at Risk'!AZ131/'Population at Risk'!AZ$5","v":5.759356907185635E-3},{"$f":"'Population at Risk'!BA131/'Population at Risk'!BA$5","v":1.1573897743778245E-2},{"$f":"'Population at Risk'!BB131/'Population at Risk'!BB$5","v":1.1208098502417271E-2},{"$f":"'Population at Risk'!BC131/'Population at Risk'!BC$5","v":1.056142474447461E-2},129]
[null,"Male 75-79",{"$f":"'Population at Risk'!C132/'Population at Risk'!C$5","v":7.8031253234728815E-3},{"$f":"'Population at Risk'!D132/'Population at Risk'!D$5","v":5.7332251230358547E-3},{"$f":"'Population at Risk'!E132/'Population at Risk'!E$5","v":3.948140794285993E-3},{"$f":"'Population at Risk'!F132/'Population at Risk'!F$5","v":7.142554879160168E-3},{"$f":"'Population at Risk'!G132/'Population at Risk'!G$5","v":9.4758642316447352E-3},{"$f":"'Population at Risk'!H132/'Population at Risk'!H$5","v":1.1151839280141651E-2},{"$f":"'Population at Risk'!I132/'Population at Risk'!I$5","v":8.5361571282997067E-3},{"$f":"'Population at Risk'!J132/'Population at Risk'!J$5","v":7.3273863449416759E-3},{"$f":"'Population at Risk'!K132/'Population at Risk'!K$5","v":1.0363060362696092E-2},{"$f":"'Population at Risk'!L132/'Population at Risk'!L$5","v":1.4622322207389238E-2},{"$f":"'Population at Risk'!M132/'Population at Risk'!M$5","v":1.4617238081670456E-2},{"$f":"'Population at Risk'!N132/'Population at Risk'!N$5","v":7.8416796357241407E-3},{"$f":"'Population at Risk'!O132/'Population at Risk'!O$5","v":1.2013671938377671E-2},{"$f":"'Population at Risk'!P132/'Population at Risk'!P$5","v":7.5953283350425399E-3},{"$f":"'Population at Risk'!Q132/'Population at Risk'!Q$5","v":1.4057350850148705E-2},{"$f":"'Population at Risk'!R132/'Population at Risk'!R$5","v":3.2165047043359713E-3},{"$f":"'Population at Risk'!S132/'Population at Risk'!S$5","v":8.5462228519425244E-3},{"$f":"'Population at Risk'!T132/'Population at Risk'!T$5","v":4.5299716402887403E-3},{"$f":"'Population at Risk'!U132/'Population at Risk'!U$5","v":1.3317966918930583E-2},{"$f":"'Population at Risk'!V132/'Population at Risk'!V$5","v":1.1892791508445808E-2},{"$f":"'Population at Risk'!W132/'Population at Risk'!W$5","v":9.0683503387117316E-3},{"$f":"'Population at Risk'!X132/'Population at Risk'!X$5","v":9.0674303622195578E-3},{"$f":"'Population at Risk'!Y132/'Population at Risk'!Y$5","v":1.0013941557227873E-2},{"$f":"'Population at Risk'!Z132/'Population at Risk'!Z$5","v":4.5873009953873159E-3},{"$f":"'Population at Risk'!AA132/'Population at Risk'!AA$5","v":8.198716778687094E-3},{"$f":"'Population at Risk'!AB132/'Population at Risk'!AB$5","v":5.7961234061387652E-3},{"$f":"'Population at Risk'!AC132/'Population at Risk'!AC$5","v":6.0195864710805491E-3},{"$f":"'Population at Risk'!AD132/'Population at Risk'!AD$5","v":8.8966347402565562E-3},{"$f":"'Population at Risk'!AE132/'Population at Risk'!AE$5","v":8.7705130816238021E-3},{"$f":"'Population at Risk'!AF132/'Population at Risk'!AF$5","v":4.9950486751422643E-3},{"$f":"'Population at Risk'!AG132/'Population at Risk'!AG$5","v":8.7705130816238021E-3},{"$f":"'Population at Risk'!AH132/'Population at Risk'!AH$5","v":1.2266472208258172E-2},{"$f":"'Population at Risk'!AI132/'Population at Risk'!AI$5","v":8.2911175377346127E-3},{"$f":"'Population at Risk'!AJ132/'Population at Risk'!AJ$5","v":1.6502854898751026E-2},{"$f":"'Population at Risk'!AK132/'Population at Risk'!AK$5","v":6.0907054464115554E-3},{"$f":"'Population at Risk'!AL132/'Population at Risk'!AL$5","v":8.1255430650217786E-3},{"$f":"'Population at Risk'!AM132/'Population at Risk'!AM$5","v":1.240092607008376E-2},{"$f":"'Population at Risk'!AN132/'Population at Risk'!AN$5","v":1.045149567104634E-2},{"$f":"'Population at Risk'!AO132/'Population at Risk'!AO$5","v":1.0443629805509868E-2},{"$f":"'Population at Risk'!AP132/'Population at Risk'!AP$5","v":4.3300382713023569E-3},{"$f":"'Population at Risk'!AQ132/'Population at Risk'!AQ$5","v":9.2325008821550342E-3},{"$f":"'Population at Risk'!AR132/'Population at Risk'!AR$5","v":8.5289569952051274E-3},{"$f":"'Population at Risk'!AS132/'Population at Risk'!AS$5","v":8.5372395323975777E-3},{"$f":"'Population at Risk'!AT132/'Population at Risk'!AT$5","v":1.0338727314370077E-3},{"$f":"'Population at Risk'!AU132/'Population at Risk'!AU$5","v":1.034786913248585E-3},{"$f":"'Population at Risk'!AV132/'Population at Risk'!AV$5","v":1.4074546223532467E-2},{"$f":"'Population at Risk'!AW132/'Population at Risk'!AW$5","v":1.2064414429446162E-2},{"$f":"'Population at Risk'!AX132/'Population at Risk'!AX$5","v":6.2587599287930659E-3},{"$f":"'Population at Risk'!AY132/'Population at Risk'!AY$5","v":7.8836851226990901E-3},{"$f":"'Population at Risk'!AZ132/'Population at Risk'!AZ$5","v":6.6911357094639242E-3},{"$f":"'Population at Risk'!BA132/'Population at Risk'!BA$5","v":1.1922095514883437E-2},{"$f":"'Population at Risk'!BB132/'Population at Risk'!BB$5","v":1.1462231257952335E-2},{"$f":"'Population at Risk'!BC132/'Population at Risk'!BC$5","v":1.3309770958655378E-2},130]
[null,"Male 80-84",{"$f":"'Population at Risk'!C133/'Population at Risk'!C$5","v":6.3068270983624901E-3},{"$f":"'Population at Risk'!D133/'Population at Risk'!D$5","v":4.6631095740529175E-3},{"$f":"'Population at Risk'!E133/'Population at Risk'!E$5","v":3.2457108370203872E-3},{"$f":"'Population at Risk'!F133/'Population at Risk'!F$5","v":5.351022962275109E-3},{"$f":"'Population at Risk'!G133/'Population at Risk'!G$5","v":6.2286833422960713E-3},{"$f":"'Population at Risk'!H133/'Population at Risk'!H$5","v":6.9257387998010612E-3},{"$f":"'Population at Risk'!I133/'Population at Risk'!I$5","v":5.3899735010121E-3},{"$f":"'Population at Risk'!J133/'Population at Risk'!J$5","v":4.6943775401399384E-3},{"$f":"'Population at Risk'!K133/'Population at Risk'!K$5","v":6.1500404956187091E-3},{"$f":"'Population at Risk'!L133/'Population at Risk'!L$5","v":9.2761848170924109E-3},{"$f":"'Population at Risk'!M133/'Population at Risk'!M$5","v":9.2729595229748378E-3},{"$f":"'Population at Risk'!N133/'Population at Risk'!N$5","v":5.2219256767041923E-3},{"$f":"'Population at Risk'!O133/'Population at Risk'!O$5","v":7.4589232730449193E-3},{"$f":"'Population at Risk'!P133/'Population at Risk'!P$5","v":5.4406252612716069E-3},{"$f":"'Population at Risk'!Q133/'Population at Risk'!Q$5","v":9.8371094502120535E-3},{"$f":"'Population at Risk'!R133/'Population at Risk'!R$5","v":2.6913610791382617E-3},{"$f":"'Population at Risk'!S133/'Population at Risk'!S$5","v":5.8105832789882165E-3},{"$f":"'Population at Risk'!T133/'Population at Risk'!T$5","v":3.297819354130203E-3},{"$f":"'Population at Risk'!U133/'Population at Risk'!U$5","v":8.1744762467918751E-3},{"$f":"'Population at Risk'!V133/'Population at Risk'!V$5","v":8.612021437150414E-3},{"$f":"'Population at Risk'!W133/'Population at Risk'!W$5","v":6.2398210010884796E-3},{"$f":"'Population at Risk'!X133/'Population at Risk'!X$5","v":6.2391879765115767E-3},{"$f":"'Population at Risk'!Y133/'Population at Risk'!Y$5","v":6.9434647034437172E-3},{"$f":"'Population at Risk'!Z133/'Population at Risk'!Z$5","v":3.2447752398849271E-3},{"$f":"'Population at Risk'!AA133/'Population at Risk'!AA$5","v":5.6198262111022274E-3},{"$f":"'Population at Risk'!AB133/'Population at Risk'!AB$5","v":4.6060852365924004E-3},{"$f":"'Population at Risk'!AC133/'Population at Risk'!AC$5","v":4.1964219002049779E-3},{"$f":"'Population at Risk'!AD133/'Population at Risk'!AD$5","v":5.8170304070908237E-3},{"$f":"'Population at Risk'!AE133/'Population at Risk'!AE$5","v":5.7214353794217019E-3},{"$f":"'Population at Risk'!AF133/'Population at Risk'!AF$5","v":3.5162513700014628E-3},{"$f":"'Population at Risk'!AG133/'Population at Risk'!AG$5","v":5.7214353794217019E-3},{"$f":"'Population at Risk'!AH133/'Population at Risk'!AH$5","v":8.2744250398901278E-3},{"$f":"'Population at Risk'!AI133/'Population at Risk'!AI$5","v":5.6596189182289928E-3},{"$f":"'Population at Risk'!AJ133/'Population at Risk'!AJ$5","v":1.0279320636086445E-2},{"$f":"'Population at Risk'!AK133/'Population at Risk'!AK$5","v":4.3547072756952186E-3},{"$f":"'Population at Risk'!AL133/'Population at Risk'!AL$5","v":5.0697832798853827E-3},{"$f":"'Population at Risk'!AM133/'Population at Risk'!AM$5","v":8.3450153943746986E-3},{"$f":"'Population at Risk'!AN133/'Population at Risk'!AN$5","v":4.5160783763780483E-3},{"$f":"'Population at Risk'!AO133/'Population at Risk'!AO$5","v":4.5126795455906832E-3},{"$f":"'Population at Risk'!AP133/'Population at Risk'!AP$5","v":2.8117131631833488E-3},{"$f":"'Population at Risk'!AQ133/'Population at Risk'!AQ$5","v":6.4737230294227999E-3},{"$f":"'Population at Risk'!AR133/'Population at Risk'!AR$5","v":5.7896777254662895E-3},{"$f":"'Population at Risk'!AS133/'Population at Risk'!AS$5","v":5.3906569618853272E-3},{"$f":"'Population at Risk'!AT133/'Population at Risk'!AT$5","v":7.7540454857775575E-4},{"$f":"'Population at Risk'!AU133/'Population at Risk'!AU$5","v":7.7609018493643878E-4},{"$f":"'Population at Risk'!AV133/'Population at Risk'!AV$5","v":8.7128143288534316E-3},{"$f":"'Population at Risk'!AW133/'Population at Risk'!AW$5","v":8.1591704522843977E-3},{"$f":"'Population at Risk'!AX133/'Population at Risk'!AX$5","v":4.3122556447186674E-3},{"$f":"'Population at Risk'!AY133/'Population at Risk'!AY$5","v":5.4235280631334173E-3},{"$f":"'Population at Risk'!AZ133/'Population at Risk'!AZ$5","v":4.6018627226313115E-3},{"$f":"'Population at Risk'!BA133/'Population at Risk'!BA$5","v":7.3644645954408184E-3},{"$f":"'Population at Risk'!BB133/'Population at Risk'!BB$5","v":7.6042897218960553E-3},{"$f":"'Population at Risk'!BC133/'Population at Risk'!BC$5","v":8.1694456228988167E-3},131]
[null,"Male 85-89",{"$f":"'Population at Risk'!C134/'Population at Risk'!C$5","v":3.2303260747710313E-3},{"$f":"'Population at Risk'!D134/'Population at Risk'!D$5","v":2.1661732930927319E-3},{"$f":"'Population at Risk'!E134/'Population at Risk'!E$5","v":1.2474187172130593E-3},{"$f":"'Population at Risk'!F134/'Population at Risk'!F$5","v":2.8758801823681201E-3},{"$f":"'Population at Risk'!G134/'Population at Risk'!G$5","v":3.0700619317478271E-3},{"$f":"'Population at Risk'!H134/'Population at Risk'!H$5","v":3.6661754955636034E-3},{"$f":"'Population at Risk'!I134/'Population at Risk'!I$5","v":3.6827420753521587E-3},{"$f":"'Population at Risk'!J134/'Population at Risk'!J$5","v":2.1999481461172409E-3},{"$f":"'Population at Risk'!K134/'Population at Risk'!K$5","v":3.0023819742390546E-3},{"$f":"'Population at Risk'!L134/'Population at Risk'!L$5","v":4.5187589846556516E-3},{"$f":"'Population at Risk'!M134/'Population at Risk'!M$5","v":4.5171878293736771E-3},{"$f":"'Population at Risk'!N134/'Population at Risk'!N$5","v":2.5494249936771313E-3},{"$f":"'Population at Risk'!O134/'Population at Risk'!O$5","v":3.9906284177915396E-3},{"$f":"'Population at Risk'!P134/'Population at Risk'!P$5","v":3.0973856685457169E-3},{"$f":"'Population at Risk'!Q134/'Population at Risk'!Q$5","v":4.5542173380611357E-3},{"$f":"'Population at Risk'!R134/'Population at Risk'!R$5","v":1.050287250395419E-3},{"$f":"'Population at Risk'!S134/'Population at Risk'!S$5","v":2.9031709886623608E-3},{"$f":"'Population at Risk'!T134/'Population at Risk'!T$5","v":1.6428697148780499E-3},{"$f":"'Population at Risk'!U134/'Population at Risk'!U$5","v":4.5005543381213698E-3},{"$f":"'Population at Risk'!V134/'Population at Risk'!V$5","v":4.1501741401886753E-3},{"$f":"'Population at Risk'!W134/'Population at Risk'!W$5","v":3.0559487818542668E-3},{"$f":"'Population at Risk'!X134/'Population at Risk'!X$5","v":3.0556387584282211E-3},{"$f":"'Population at Risk'!Y134/'Population at Risk'!Y$5","v":3.3147193307897145E-3},{"$f":"'Population at Risk'!Z134/'Population at Risk'!Z$5","v":1.606163743743039E-3},{"$f":"'Population at Risk'!AA134/'Population at Risk'!AA$5","v":2.6586044145508565E-3},{"$f":"'Population at Risk'!AB134/'Population at Risk'!AB$5","v":2.1569441823027853E-3},{"$f":"'Population at Risk'!AC134/'Population at Risk'!AC$5","v":2.0072772492152223E-3},{"$f":"'Population at Risk'!AD134/'Population at Risk'!AD$5","v":3.0378752771607746E-3},{"$f":"'Population at Risk'!AE134/'Population at Risk'!AE$5","v":3.0608502029828033E-3},{"$f":"'Population at Risk'!AF134/'Population at Risk'!AF$5","v":1.6102459544866511E-3},{"$f":"'Population at Risk'!AG134/'Population at Risk'!AG$5","v":3.0608502029828033E-3},{"$f":"'Population at Risk'!AH134/'Population at Risk'!AH$5","v":3.8724992317752047E-3},{"$f":"'Population at Risk'!AI134/'Population at Risk'!AI$5","v":2.7177207236833921E-3},{"$f":"'Population at Risk'!AJ134/'Population at Risk'!AJ$5","v":5.4892970743726935E-3},{"$f":"'Population at Risk'!AK134/'Population at Risk'!AK$5","v":2.1185062422301062E-3},{"$f":"'Population at Risk'!AL134/'Population at Risk'!AL$5","v":2.3612689248781239E-3},{"$f":"'Population at Risk'!AM134/'Population at Risk'!AM$5","v":3.7227763286282341E-3},{"$f":"'Population at Risk'!AN134/'Population at Risk'!AN$5","v":2.0644929720585363E-3},{"$f":"'Population at Risk'!AO134/'Population at Risk'!AO$5","v":2.0629392208414555E-3},{"$f":"'Population at Risk'!AP134/'Population at Risk'!AP$5","v":1.5183251081190084E-3},{"$f":"'Population at Risk'!AQ134/'Population at Risk'!AQ$5","v":2.7274281044057319E-3},{"$f":"'Population at Risk'!AR134/'Population at Risk'!AR$5","v":2.8445182718959063E-3},{"$f":"'Population at Risk'!AS134/'Population at Risk'!AS$5","v":3.6832090554058117E-3},{"$f":"'Population at Risk'!AT134/'Population at Risk'!AT$5","v":1.2923409142962596E-4},{"$f":"'Population at Risk'!AU134/'Population at Risk'!AU$5","v":1.2934836415607313E-4},{"$f":"'Population at Risk'!AV134/'Population at Risk'!AV$5","v":4.9819425521392697E-3},{"$f":"'Population at Risk'!AW134/'Population at Risk'!AW$5","v":4.0098487265500249E-3},{"$f":"'Population at Risk'!AX134/'Population at Risk'!AX$5","v":1.9465042840743983E-3},{"$f":"'Population at Risk'!AY134/'Population at Risk'!AY$5","v":2.7187531141222927E-3},{"$f":"'Population at Risk'!AZ134/'Population at Risk'!AZ$5","v":2.3760359458096384E-3},{"$f":"'Population at Risk'!BA134/'Population at Risk'!BA$5","v":3.5571753517600934E-3},{"$f":"'Population at Risk'!BB134/'Population at Risk'!BB$5","v":3.3318585993213326E-3},{"$f":"'Population at Risk'!BC134/'Population at Risk'!BC$5","v":4.4977846687869897E-3},132]
[null,"Male 90+",{"$f":"'Population at Risk'!C135/'Population at Risk'!C$5","v":1.3005208872454801E-3},{"$f":"'Population at Risk'!D135/'Population at Risk'!D$5","v":9.6634676847550034E-4},{"$f":"'Population at Risk'!E135/'Population at Risk'!E$5","v":6.7820823460127495E-4},{"$f":"'Population at Risk'!F135/'Population at Risk'!F$5","v":1.602949609844526E-3},{"$f":"'Population at Risk'!G135/'Population at Risk'!G$5","v":1.033193919338211E-3},{"$f":"'Population at Risk'!H135/'Population at Risk'!H$5","v":1.4264755564556565E-3},{"$f":"'Population at Risk'!I135/'Population at Risk'!I$5","v":1.365785140527953E-3},{"$f":"'Population at Risk'!J135/'Population at Risk'!J$5","v":6.4092977485305438E-4},{"$f":"'Population at Risk'!K135/'Population at Risk'!K$5","v":9.6851031427066267E-4},{"$f":"'Population at Risk'!L135/'Population at Risk'!L$5","v":1.9729792749904958E-3},{"$f":"'Population at Risk'!M135/'Population at Risk'!M$5","v":1.9722932776138589E-3},{"$f":"'Population at Risk'!N135/'Population at Risk'!N$5","v":1.1780101694921915E-3},{"$f":"'Population at Risk'!O135/'Population at Risk'!O$5","v":1.4625339751068468E-3},{"$f":"'Population at Risk'!P135/'Population at Risk'!P$5","v":1.7237624590167467E-3},{"$f":"'Population at Risk'!Q135/'Population at Risk'!Q$5","v":2.0342170776673071E-3},{"$f":"'Population at Risk'!R135/'Population at Risk'!R$5","v":5.579651017725664E-4},{"$f":"'Population at Risk'!S135/'Population at Risk'!S$5","v":1.2681491973850197E-3},{"$f":"'Population at Risk'!T135/'Population at Risk'!T$5","v":8.7579451712248985E-4},{"$f":"'Population at Risk'!U135/'Population at Risk'!U$5","v":8.2663242945086376E-4},{"$f":"'Population at Risk'!V135/'Population at Risk'!V$5","v":1.5255580831523589E-3},{"$f":"'Population at Risk'!W135/'Population at Risk'!W$5","v":1.3645166653860911E-3},{"$f":"'Population at Risk'!X135/'Population at Risk'!X$5","v":1.3643782363214384E-3},{"$f":"'Population at Risk'!Y135/'Population at Risk'!Y$5","v":1.1339829289543761E-3},{"$f":"'Population at Risk'!Z135/'Population at Risk'!Z$5","v":6.6517892417641009E-4},{"$f":"'Population at Risk'!AA135/'Population at Risk'!AA$5","v":1.012661092938305E-3},{"$f":"'Population at Risk'!AB135/'Population at Risk'!AB$5","v":9.5628067195689974E-4},{"$f":"'Population at Risk'!AC135/'Population at Risk'!AC$5","v":8.3973343535401917E-4},{"$f":"'Population at Risk'!AD135/'Population at Risk'!AD$5","v":1.4271337153694849E-3},{"$f":"'Population at Risk'!AE135/'Population at Risk'!AE$5","v":1.6010601061756202E-3},{"$f":"'Population at Risk'!AF135/'Population at Risk'!AF$5","v":5.9151892205632081E-4},{"$f":"'Population at Risk'!AG135/'Population at Risk'!AG$5","v":1.6010601061756202E-3},{"$f":"'Population at Risk'!AH135/'Population at Risk'!AH$5","v":1.3321055791773579E-3},{"$f":"'Population at Risk'!AI135/'Population at Risk'!AI$5","v":1.2071094584888162E-3},{"$f":"'Population at Risk'!AJ135/'Population at Risk'!AJ$5","v":2.2376752405086141E-3},{"$f":"'Population at Risk'!AK135/'Population at Risk'!AK$5","v":9.1213463207129579E-4},{"$f":"'Population at Risk'!AL135/'Population at Risk'!AL$5","v":9.7228720436158035E-4},{"$f":"'Population at Risk'!AM135/'Population at Risk'!AM$5","v":1.2325970841990574E-3},{"$f":"'Population at Risk'!AN135/'Population at Risk'!AN$5","v":1.1612772967829266E-3},{"$f":"'Population at Risk'!AO135/'Population at Risk'!AO$5","v":1.1604033117233186E-3},{"$f":"'Population at Risk'!AP135/'Population at Risk'!AP$5","v":5.6234263263666979E-4},{"$f":"'Population at Risk'!AQ135/'Population at Risk'!AQ$5","v":1.1442658139173471E-3},{"$f":"'Population at Risk'!AR135/'Population at Risk'!AR$5","v":1.1678464025779527E-3},{"$f":"'Population at Risk'!AS135/'Population at Risk'!AS$5","v":1.3659583251836123E-3},{"$f":"'Population at Risk'!AT135/'Population at Risk'!AT$5","v":0},{"$f":"'Population at Risk'!AU135/'Population at Risk'!AU$5","v":0},{"$f":"'Population at Risk'!AV135/'Population at Risk'!AV$5","v":1.9659683613823128E-3},{"$f":"'Population at Risk'!AW135/'Population at Risk'!AW$5","v":1.4295982416395738E-3},{"$f":"'Population at Risk'!AX135/'Population at Risk'!AX$5","v":5.0908573583484276E-4},{"$f":"'Population at Risk'!AY135/'Population at Risk'!AY$5","v":1.2475512361717976E-3},{"$f":"'Population at Risk'!AZ135/'Population at Risk'!AZ$5","v":1.1265687674097424E-3},{"$f":"'Population at Risk'!BA135/'Population at Risk'!BA$5","v":1.0560364325537777E-3},{"$f":"'Population at Risk'!BB135/'Population at Risk'!BB$5","v":1.1797011308601847E-3},{"$f":"'Population at Risk'!BC135/'Population at Risk'!BC$5","v":8.2612371467516129E-4},133]
["SIMD Q3","Female 0-4",{"$f":"'Population at Risk'!C136/'Population at Risk'!C$5","v":0},{"$f":"'Population at Risk'!D136/'Population at Risk'!D$5","v":0},{"$f":"'Population at Risk'!E136/'Population at Risk'!E$5","v":0},{"$f":"'Population at Risk'!F136/'Population at Risk'!F$5","v":0},{"$f":"'Population at Risk'!G136/'Population at Risk'!G$5","v":0},{"$f":"'Population at Risk'!H136/'Population at Risk'!H$5","v":0},{"$f":"'Population at Risk'!I136/'Population at Risk'!I$5","v":0},{"$f":"'Population at Risk'!J136/'Population at Risk'!J$5","v":0},{"$f":"'Population at Risk'!K136/'Population at Risk'!K$5","v":0},{"$f":"'Population at Risk'!L136/'Population at Risk'!L$5","v":0},{"$f":"'Population at Risk'!M136/'Population at Risk'!M$5","v":0},{"$f":"'Population at Risk'!N136/'Population at Risk'!N$5","v":0},{"$f":"'Population at Risk'!O136/'Population at Risk'!O$5","v":0},{"$f":"'Population at Risk'!P136/'Population at Risk'!P$5","v":0},{"$f":"'Population at Risk'!Q136/'Population at Risk'!Q$5","v":0},{"$f":"'Population at Risk'!R136/'Population at Risk'!R$5","v":0},{"$f":"'Population at Risk'!S136/'Population at Risk'!S$5","v":0},{"$f":"'Population at Risk'!T136/'Population at Risk'!T$5","v":0},{"$f":"'Population at Risk'!U136/'Population at Risk'!U$5","v":0},{"$f":"'Population at Risk'!V136/'Population at Risk'!V$5","v":0},{"$f":"'Population at Risk'!W136/'Population at Risk'!W$5","v":0},{"$f":"'Population at Risk'!X136/'Population at Risk'!X$5","v":0},{"$f":"'Population at Risk'!Y136/'Population at Risk'!Y$5","v":0},{"$f":"'Population at Risk'!Z136/'Population at Risk'!Z$5","v":0},{"$f":"'Population at Risk'!AA136/'Population at Risk'!AA$5","v":0},{"$f":"'Population at Risk'!AB136/'Population at Risk'!AB$5","v":0},{"$f":"'Population at Risk'!AC136/'Population at Risk'!AC$5","v":0},{"$f":"'Population at Risk'!AD136/'Population at Risk'!AD$5","v":0},{"$f":"'Population at Risk'!AE136/'Population at Risk'!AE$5","v":0},{"$f":"'Population at Risk'!AF136/'Population at Risk'!AF$5","v":0},{"$f":"'Population at Risk'!AG136/'Population at Risk'!AG$5","v":0},{"$f":"'Population at Risk'!AH136/'Population at Risk'!AH$5","v":0},{"$f":"'Population at Risk'!AI136/'Population at Risk'!AI$5","v":0},{"$f":"'Population at Risk'!AJ136/'Population at Risk'!AJ$5","v":0},{"$f":"'Population at Risk'!AK136/'Population at Risk'!AK$5","v":0},{"$f":"'Population at Risk'!AL136/'Population at Risk'!AL$5","v":0},{"$f":"'Population at Risk'!AM136/'Population at Risk'!AM$5","v":0},{"$f":"'Population at Risk'!AN136/'Population at Risk'!AN$5","v":0},{"$f":"'Population at Risk'!AO136/'Population at Risk'!AO$5","v":0},{"$f":"'Population at Risk'!AP136/'Population at Risk'!AP$5","v":0},{"$f":"'Population at Risk'!AQ136/'Population at Risk'!AQ$5","v":0},{"$f":"'Population at Risk'!AR136/'Population at Risk'!AR$5","v":0},{"$f":"'Population at Risk'!AS136/'Population at Risk'!AS$5","v":0},{"$f":"'Population at Risk'!AT136/'Population at Risk'!AT$5","v":0},{"$f":"'Population at Risk'!AU136/'Population at Risk'!AU$5","v":0},{"$f":"'Population at Risk'!AV136/'Population at Risk'!AV$5","v":0},{"$f":"'Population at Risk'!AW136/'Population at Risk'!AW$5","v":0},{"$f":"'Population at Risk'!AX136/'Population at Risk'!AX$5","v":0},{"$f":"'Population at Risk'!AY136/'Population at Risk'!AY$5","v":0},{"$f":"'Population at Risk'!AZ136/'Population at Risk'!AZ$5","v":0},{"$f":"'Population at Risk'!BA136/'Population at Risk'!BA$5","v":0},{"$f":"'Population at Risk'!BB136/'Population at Risk'!BB$5","v":0},{"$f":"'Population at Risk'!BC136/'Population at Risk'!BC$5","v":0},134]
[null,"Female 5-9",{"$f":"'Population at Risk'!C137/'Population at Risk'!C$5","v":0},{"$f":"'Population at Risk'!D137/'Population at Risk'!D$5","v":0},{"$f":"'Population at Risk'!E137/'Population at Risk'!E$5","v":0},{"$f":"'Population at Risk'!F137/'Population at Risk'!F$5","v":0},{"$f":"'Population at Risk'!G137/'Population at Risk'!G$5","v":0},{"$f":"'Population at Risk'!H137/'Population at Risk'!H$5","v":0},{"$f":"'Population at Risk'!I137/'Population at Risk'!I$5","v":0},{"$f":"'Population at Risk'!J137/'Population at Risk'!J$5","v":0},{"$f":"'Population at Risk'!K137/'Population at Risk'!K$5","v":0},{"$f":"'Population at Risk'!L137/'Population at Risk'!L$5","v":0},{"$f":"'Population at Risk'!M137/'Population at Risk'!M$5","v":0},{"$f":"'Population at Risk'!N137/'Population at Risk'!N$5","v":0},{"$f":"'Population at Risk'!O137/'Population at Risk'!O$5","v":0},{"$f":"'Population at Risk'!P137/'Population at Risk'!P$5","v":0},{"$f":"'Population at Risk'!Q137/'Population at Risk'!Q$5","v":0},{"$f":"'Population at Risk'!R137/'Population at Risk'!R$5","v":0},{"$f":"'Population at Risk'!S137/'Population at Risk'!S$5","v":0},{"$f":"'Population at Risk'!T137/'Population at Risk'!T$5","v":0},{"$f":"'Population at Risk'!U137/'Population at Risk'!U$5","v":0},{"$f":"'Population at Risk'!V137/'Population at Risk'!V$5","v":0},{"$f":"'Population at Risk'!W137/'Population at Risk'!W$5","v":0},{"$f":"'Population at Risk'!X137/'Population at Risk'!X$5","v":0},{"$f":"'Population at Risk'!Y137/'Population at Risk'!Y$5","v":0},{"$f":"'Population at Risk'!Z137/'Population at Risk'!Z$5","v":0},{"$f":"'Population at Risk'!AA137/'Population at Risk'!AA$5","v":0},{"$f":"'Population at Risk'!AB137/'Population at Risk'!AB$5","v":0},{"$f":"'Population at Risk'!AC137/'Population at Risk'!AC$5","v":0},{"$f":"'Population at Risk'!AD137/'Population at Risk'!AD$5","v":0},{"$f":"'Population at Risk'!AE137/'Population at Risk'!AE$5","v":0},{"$f":"'Population at Risk'!AF137/'Population at Risk'!AF$5","v":0},{"$f":"'Population at Risk'!AG137/'Population at Risk'!AG$5","v":0},{"$f":"'Population at Risk'!AH137/'Population at Risk'!AH$5","v":0},{"$f":"'Population at Risk'!AI137/'Population at Risk'!AI$5","v":0},{"$f":"'Population at Risk'!AJ137/'Population at Risk'!AJ$5","v":0},{"$f":"'Population at Risk'!AK137/'Population at Risk'!AK$5","v":0},{"$f":"'Population at Risk'!AL137/'Population at Risk'!AL$5","v":0},{"$f":"'Population at Risk'!AM137/'Population at Risk'!AM$5","v":0},{"$f":"'Population at Risk'!AN137/'Population at Risk'!AN$5","v":0},{"$f":"'Population at Risk'!AO137/'Population at Risk'!AO$5","v":0},{"$f":"'Population at Risk'!AP137/'Population at Risk'!AP$5","v":0},{"$f":"'Population at Risk'!AQ137/'Population at Risk'!AQ$5","v":0},{"$f":"'Population at Risk'!AR137/'Population at Risk'!AR$5","v":0},{"$f":"'Population at Risk'!AS137/'Population at Risk'!AS$5","v":0},{"$f":"'Population at Risk'!AT137/'Population at Risk'!AT$5","v":0},{"$f":"'Population at Risk'!AU137/'Population at Risk'!AU$5","v":0},{"$f":"'Population at Risk'!AV137/'Population at Risk'!AV$5","v":0},{"$f":"'Population at Risk'!AW137/'Population at Risk'!AW$5","v":0},{"$f":"'Population at Risk'!AX137/'Population at Risk'!AX$5","v":0},{"$f":"'Population at Risk'!AY137/'Population at Risk'!AY$5","v":0},{"$f":"'Population at Risk'!AZ137/'Population at Risk'!AZ$5","v":0},{"$f":"'Population at Risk'!BA137/'Population at Risk'!BA$5","v":0},{"$f":"'Population at Risk'!BB137/'Population at Risk'!BB$5","v":0},{"$f":"'Population at Risk'!BC137/'Population at Risk'!BC$5","v":0},135]
[null,"Female 10-15",{"$f":"'Population at Risk'!C138/'Population at Risk'!C$5","v":0},{"$f":"'Population at Risk'!D138/'Population at Risk'!D$5","v":0},{"$f":"'Population at Risk'!E138/'Population at Risk'!E$5","v":0},{"$f":"'Population at Risk'!F138/'Population at Risk'!F$5","v":0},{"$f":"'Population at Risk'!G138/'Population at Risk'!G$5","v":0},{"$f":"'Population at Risk'!H138/'Population at Risk'!H$5","v":0},{"$f":"'Population at Risk'!I138/'Population at Risk'!I$5","v":0},{"$f":"'Population at Risk'!J138/'Population at Risk'!J$5","v":0},{"$f":"'Population at Risk'!K138/'Population at Risk'!K$5","v":0},{"$f":"'Population at Risk'!L138/'Population at Risk'!L$5","v":0},{"$f":"'Population at Risk'!M138/'Population at Risk'!M$5","v":0},{"$f":"'Population at Risk'!N138/'Population at Risk'!N$5","v":0},{"$f":"'Population at Risk'!O138/'Population at Risk'!O$5","v":0},{"$f":"'Population at Risk'!P138/'Population at Risk'!P$5","v":0},{"$f":"'Population at Risk'!Q138/'Population at Risk'!Q$5","v":0},{"$f":"'Population at Risk'!R138/'Population at Risk'!R$5","v":0},{"$f":"'Population at Risk'!S138/'Population at Risk'!S$5","v":0},{"$f":"'Population at Risk'!T138/'Population at Risk'!T$5","v":0},{"$f":"'Population at Risk'!U138/'Population at Risk'!U$5","v":0},{"$f":"'Population at Risk'!V138/'Population at Risk'!V$5","v":0},{"$f":"'Population at Risk'!W138/'Population at Risk'!W$5","v":0},{"$f":"'Population at Risk'!X138/'Population at Risk'!X$5","v":0},{"$f":"'Population at Risk'!Y138/'Population at Risk'!Y$5","v":0},{"$f":"'Population at Risk'!Z138/'Population at Risk'!Z$5","v":0},{"$f":"'Population at Risk'!AA138/'Population at Risk'!AA$5","v":0},{"$f":"'Population at Risk'!AB138/'Population at Risk'!AB$5","v":0},{"$f":"'Population at Risk'!AC138/'Population at Risk'!AC$5","v":0},{"$f":"'Population at Risk'!AD138/'Population at Risk'!AD$5","v":0},{"$f":"'Population at Risk'!AE138/'Population at Risk'!AE$5","v":0},{"$f":"'Population at Risk'!AF138/'Population at Risk'!AF$5","v":0},{"$f":"'Population at Risk'!AG138/'Population at Risk'!AG$5","v":0},{"$f":"'Population at Risk'!AH138/'Population at Risk'!AH$5","v":0},{"$f":"'Population at Risk'!AI138/'Population at Risk'!AI$5","v":0},{"$f":"'Population at Risk'!AJ138/'Population at Risk'!AJ$5","v":0},{"$f":"'Population at Risk'!AK138/'Population at Risk'!AK$5","v":0},{"$f":"'Population at Risk'!AL138/'Population at Risk'!AL$5","v":0},{"$f":"'Population at Risk'!AM138/'Population at Risk'!AM$5","v":0},{"$f":"'Population at Risk'!AN138/'Population at Risk'!AN$5","v":0},{"$f":"'Population at Risk'!AO138/'Population at Risk'!AO$5","v":0},{"$f":"'Population at Risk'!AP138/'Population at Risk'!AP$5","v":0},{"$f":"'Population at Risk'!AQ138/'Population at Risk'!AQ$5","v":0},{"$f":"'Population at Risk'!AR138/'Population at Risk'!AR$5","v":0},{"$f":"'Population at Risk'!AS138/'Population at Risk'!AS$5","v":0},{"$f":"'Population at Risk'!AT138/'Population at Risk'!AT$5","v":0},{"$f":"'Population at Risk'!AU138/'Population at Risk'!AU$5","v":0},{"$f":"'Population at Risk'!AV138/'Population at Risk'!AV$5","v":0},{"$f":"'Population at Risk'!AW138/'Population at Risk'!AW$5","v":0},{"$f":"'Population at Risk'!AX138/'Population at Risk'!AX$5","v":0},{"$f":"'Population at Risk'!AY138/'Population at Risk'!AY$5","v":0},{"$f":"'Population at Risk'!AZ138/'Population at Risk'!AZ$5","v":0},{"$f":"'Population at Risk'!BA138/'Population at Risk'!BA$5","v":0},{"$f":"'Population at Risk'!BB138/'Population at Risk'!BB$5","v":0},{"$f":"'Population at Risk'!BC138/'Population at Risk'!BC$5","v":0},136]
[null,"Female 16-19",{"$f":"'Population at Risk'!C139/'Population at Risk'!C$5","v":1.22988891946488E-3},{"$f":"'Population at Risk'!D139/'Population at Risk'!D$5","v":1.5097570109778987E-3},{"$f":"'Population at Risk'!E139/'Population at Risk'!E$5","v":1.7682407409584135E-3},{"$f":"'Population at Risk'!F139/'Population at Risk'!F$5","v":2.5637318007583672E-3},{"$f":"'Population at Risk'!G139/'Population at Risk'!G$5","v":3.1457244471805204E-3},{"$f":"'Population at Risk'!H139/'Population at Risk'!H$5","v":1.2861873235090178E-3},{"$f":"'Population at Risk'!I139/'Population at Risk'!I$5","v":2.4181663820951132E-3},{"$f":"'Population at Risk'!J139/'Population at Risk'!J$5","v":1.573718417655111E-3},{"$f":"'Population at Risk'!K139/'Population at Risk'!K$5","v":1.3428613949810315E-3},{"$f":"'Population at Risk'!L139/'Population at Risk'!L$5","v":2.6949018022082273E-3},{"$f":"'Population at Risk'!M139/'Population at Risk'!M$5","v":2.695819908316533E-3},{"$f":"'Population at Risk'!N139/'Population at Risk'!N$5","v":1.2060266698360701E-3},{"$f":"'Population at Risk'!O139/'Population at Risk'!O$5","v":1.2113719505865228E-3},{"$f":"'Population at Risk'!P139/'Population at Risk'!P$5","v":6.6983390003834767E-4},{"$f":"'Population at Risk'!Q139/'Population at Risk'!Q$5","v":1.5509368586470122E-3},{"$f":"'Population at Risk'!R139/'Population at Risk'!R$5","v":1.1497301654918408E-3},{"$f":"'Population at Risk'!S139/'Population at Risk'!S$5","v":1.6722249452371183E-3},{"$f":"'Population at Risk'!T139/'Population at Risk'!T$5","v":1.2654265319540752E-3},{"$f":"'Population at Risk'!U139/'Population at Risk'!U$5","v":4.7674428120235241E-3},{"$f":"'Population at Risk'!V139/'Population at Risk'!V$5","v":1.5544110265971599E-3},{"$f":"'Population at Risk'!W139/'Population at Risk'!W$5","v":1.7281608494929884E-3},{"$f":"'Population at Risk'!X139/'Population at Risk'!X$5","v":1.7283300601187068E-3},{"$f":"'Population at Risk'!Y139/'Population at Risk'!Y$5","v":1.5156084227213441E-3},{"$f":"'Population at Risk'!Z139/'Population at Risk'!Z$5","v":1.4950234871694997E-3},{"$f":"'Population at Risk'!AA139/'Population at Risk'!AA$5","v":1.370293317727807E-3},{"$f":"'Population at Risk'!AB139/'Population at Risk'!AB$5","v":1.6765504747673586E-3},{"$f":"'Population at Risk'!AC139/'Population at Risk'!AC$5","v":1.3154352015650852E-3},{"$f":"'Population at Risk'!AD139/'Population at Risk'!AD$5","v":2.5799739346083171E-3},{"$f":"'Population at Risk'!AE139/'Population at Risk'!AE$5","v":2.3251465032133535E-3},{"$f":"'Population at Risk'!AF139/'Population at Risk'!AF$5","v":1.1381377788324996E-3},{"$f":"'Population at Risk'!AG139/'Population at Risk'!AG$5","v":2.3251465032133535E-3},{"$f":"'Population at Risk'!AH139/'Population at Risk'!AH$5","v":1.4549989759334238E-3},{"$f":"'Population at Risk'!AI139/'Population at Risk'!AI$5","v":1.5289117771425929E-3},{"$f":"'Population at Risk'!AJ139/'Population at Risk'!AJ$5","v":1.8804454968640171E-3},{"$f":"'Population at Risk'!AK139/'Population at Risk'!AK$5","v":2.5094287730545199E-3},{"$f":"'Population at Risk'!AL139/'Population at Risk'!AL$5","v":1.0525668622576154E-3},{"$f":"'Population at Risk'!AM139/'Population at Risk'!AM$5","v":1.4303532588147202E-3},{"$f":"'Population at Risk'!AN139/'Population at Risk'!AN$5","v":2.1245052127580929E-3},{"$f":"'Population at Risk'!AO139/'Population at Risk'!AO$5","v":2.1265826872619437E-3},{"$f":"'Population at Risk'!AP139/'Population at Risk'!AP$5","v":1.7132982205636997E-3},{"$f":"'Population at Risk'!AQ139/'Population at Risk'!AQ$5","v":1.3629220872927005E-3},{"$f":"'Population at Risk'!AR139/'Population at Risk'!AR$5","v":1.6405994930147657E-3},{"$f":"'Population at Risk'!AS139/'Population at Risk'!AS$5","v":2.4177847123702666E-3},{"$f":"'Population at Risk'!AT139/'Population at Risk'!AT$5","v":2.671555709568858E-3},{"$f":"'Population at Risk'!AU139/'Population at Risk'!AU$5","v":2.6684467547524377E-3},{"$f":"'Population at Risk'!AV139/'Population at Risk'!AV$5","v":1.6585198594091075E-3},{"$f":"'Population at Risk'!AW139/'Population at Risk'!AW$5","v":1.4902813450212182E-3},{"$f":"'Population at Risk'!AX139/'Population at Risk'!AX$5","v":1.5641096411207324E-3},{"$f":"'Population at Risk'!AY139/'Population at Risk'!AY$5","v":1.7073952216265693E-3},{"$f":"'Population at Risk'!AZ139/'Population at Risk'!AZ$5","v":1.690692593777992E-3},{"$f":"'Population at Risk'!BA139/'Population at Risk'!BA$5","v":9.5765752593936768E-4},{"$f":"'Population at Risk'!BB139/'Population at Risk'!BB$5","v":1.9448309204526768E-3},{"$f":"'Population at Risk'!BC139/'Population at Risk'!BC$5","v":4.7707872907026428E-3},137]
[null,"Female 20-24",{"$f":"'Population at Risk'!C140/'Population at Risk'!C$5","v":3.6699455074994305E-3},{"$f":"'Population at Risk'!D140/'Population at Risk'!D$5","v":2.922278377775507E-3},{"$f":"'Population at Risk'!E140/'Population at Risk'!E$5","v":2.2149188388643376E-3},{"$f":"'Population at Risk'!F140/'Population at Risk'!F$5","v":2.9206242225753047E-3},{"$f":"'Population at Risk'!G140/'Population at Risk'!G$5","v":2.8067633372346563E-3},{"$f":"'Population at Risk'!H140/'Population at Risk'!H$5","v":1.4710228807966129E-3},{"$f":"'Population at Risk'!I140/'Population at Risk'!I$5","v":2.934124761822348E-3},{"$f":"'Population at Risk'!J140/'Population at Risk'!J$5","v":2.7426800829766619E-3},{"$f":"'Population at Risk'!K140/'Population at Risk'!K$5","v":1.9644143835151093E-3},{"$f":"'Population at Risk'!L140/'Population at Risk'!L$5","v":3.1743318981066948E-3},{"$f":"'Population at Risk'!M140/'Population at Risk'!M$5","v":3.1754133376986878E-3},{"$f":"'Population at Risk'!N140/'Population at Risk'!N$5","v":2.16882107012537E-3},{"$f":"'Population at Risk'!O140/'Population at Risk'!O$5","v":1.4408644783954806E-3},{"$f":"'Population at Risk'!P140/'Population at Risk'!P$5","v":8.8222025858709192E-4},{"$f":"'Population at Risk'!Q140/'Population at Risk'!Q$5","v":2.1419326219640454E-3},{"$f":"'Population at Risk'!R140/'Population at Risk'!R$5","v":1.284114210809069E-3},{"$f":"'Population at Risk'!S140/'Population at Risk'!S$5","v":2.9734734013758379E-3},{"$f":"'Population at Risk'!T140/'Population at Risk'!T$5","v":4.0333267665416455E-3},{"$f":"'Population at Risk'!U140/'Population at Risk'!U$5","v":4.8471215219737787E-3},{"$f":"'Population at Risk'!V140/'Population at Risk'!V$5","v":2.0274926433875998E-3},{"$f":"'Population at Risk'!W140/'Population at Risk'!W$5","v":2.4095683512149598E-3},{"$f":"'Population at Risk'!X140/'Population at Risk'!X$5","v":2.4098042809714637E-3},{"$f":"'Population at Risk'!Y140/'Population at Risk'!Y$5","v":2.2862797297172736E-3},{"$f":"'Population at Risk'!Z140/'Population at Risk'!Z$5","v":3.3369480286315001E-3},{"$f":"'Population at Risk'!AA140/'Population at Risk'!AA$5","v":2.205270786941041E-3},{"$f":"'Population at Risk'!AB140/'Population at Risk'!AB$5","v":2.94503626057012E-3},{"$f":"'Population at Risk'!AC140/'Population at Risk'!AC$5","v":2.4462362248512102E-3},{"$f":"'Population at Risk'!AD140/'Population at Risk'!AD$5","v":2.72629732019182E-3},{"$f":"'Population at Risk'!AE140/'Population at Risk'!AE$5","v":2.6586914277907368E-3},{"$f":"'Population at Risk'!AF140/'Population at Risk'!AF$5","v":1.3154563458245194E-3},{"$f":"'Population at Risk'!AG140/'Population at Risk'!AG$5","v":2.6586914277907368E-3},{"$f":"'Population at Risk'!AH140/'Population at Risk'!AH$5","v":1.8113690681576188E-3},{"$f":"'Population at Risk'!AI140/'Population at Risk'!AI$5","v":3.2211100030082687E-3},{"$f":"'Population at Risk'!AJ140/'Population at Risk'!AJ$5","v":2.0299369798783113E-3},{"$f":"'Population at Risk'!AK140/'Population at Risk'!AK$5","v":3.0377295673817868E-3},{"$f":"'Population at Risk'!AL140/'Population at Risk'!AL$5","v":1.2284256991950055E-3},{"$f":"'Population at Risk'!AM140/'Population at Risk'!AM$5","v":1.7468482696873565E-3},{"$f":"'Population at Risk'!AN140/'Population at Risk'!AN$5","v":2.9190356175294125E-3},{"$f":"'Population at Risk'!AO140/'Population at Risk'!AO$5","v":2.9218900337176293E-3},{"$f":"'Population at Risk'!AP140/'Population at Risk'!AP$5","v":2.3172293633645195E-3},{"$f":"'Population at Risk'!AQ140/'Population at Risk'!AQ$5","v":1.795268972989781E-3},{"$f":"'Population at Risk'!AR140/'Population at Risk'!AR$5","v":2.5049566261872583E-3},{"$f":"'Population at Risk'!AS140/'Population at Risk'!AS$5","v":2.933661656140786E-3},{"$f":"'Population at Risk'!AT140/'Population at Risk'!AT$5","v":3.1018734077544459E-3},{"$f":"'Population at Risk'!AU140/'Population at Risk'!AU$5","v":3.0982636816924277E-3},{"$f":"'Population at Risk'!AV140/'Population at Risk'!AV$5","v":1.8055177660234022E-3},{"$f":"'Population at Risk'!AW140/'Population at Risk'!AW$5","v":1.8929985939811502E-3},{"$f":"'Population at Risk'!AX140/'Population at Risk'!AX$5","v":2.947397358412479E-3},{"$f":"'Population at Risk'!AY140/'Population at Risk'!AY$5","v":2.3636767701600762E-3},{"$f":"'Population at Risk'!AZ140/'Population at Risk'!AZ$5","v":2.3264634545632577E-3},{"$f":"'Population at Risk'!BA140/'Population at Risk'!BA$5","v":1.5214397791133503E-3},{"$f":"'Population at Risk'!BB140/'Population at Risk'!BB$5","v":2.4304686532269086E-3},{"$f":"'Population at Risk'!BC140/'Population at Risk'!BC$5","v":4.8505218972324923E-3},138]
[null,"Female 25-29",{"$f":"'Population at Risk'!C141/'Population at Risk'!C$5","v":3.5261504660070871E-3},{"$f":"'Population at Risk'!D141/'Population at Risk'!D$5","v":2.9175516450722977E-3},{"$f":"'Population at Risk'!E141/'Population at Risk'!E$5","v":2.340460041948429E-3},{"$f":"'Population at Risk'!F141/'Population at Risk'!F$5","v":2.6100189540309471E-3},{"$f":"'Population at Risk'!G141/'Population at Risk'!G$5","v":2.9578720163297629E-3},{"$f":"'Population at Risk'!H141/'Population at Risk'!H$5","v":1.4769409582918046E-3},{"$f":"'Population at Risk'!I141/'Population at Risk'!I$5","v":2.349334739531357E-3},{"$f":"'Population at Risk'!J141/'Population at Risk'!J$5","v":2.5028156241215069E-3},{"$f":"'Population at Risk'!K141/'Population at Risk'!K$5","v":1.9987155561439277E-3},{"$f":"'Population at Risk'!L141/'Population at Risk'!L$5","v":3.2465591311774977E-3},{"$f":"'Population at Risk'!M141/'Population at Risk'!M$5","v":3.2476651773298538E-3},{"$f":"'Population at Risk'!N141/'Population at Risk'!N$5","v":2.3832734530777971E-3},{"$f":"'Population at Risk'!O141/'Population at Risk'!O$5","v":1.5275914501185883E-3},{"$f":"'Population at Risk'!P141/'Population at Risk'!P$5","v":8.029070096352924E-4},{"$f":"'Population at Risk'!Q141/'Population at Risk'!Q$5","v":1.9844388643763724E-3},{"$f":"'Population at Risk'!R141/'Population at Risk'!R$5","v":1.3013003945090244E-3},{"$f":"'Population at Risk'!S141/'Population at Risk'!S$5","v":3.2699999148053135E-3},{"$f":"'Population at Risk'!T141/'Population at Risk'!T$5","v":4.8799044372923638E-3},{"$f":"'Population at Risk'!U141/'Population at Risk'!U$5","v":5.3907981895830589E-3},{"$f":"'Population at Risk'!V141/'Population at Risk'!V$5","v":2.0158288954391168E-3},{"$f":"'Population at Risk'!W141/'Population at Risk'!W$5","v":2.6148001005106758E-3},{"$f":"'Population at Risk'!X141/'Population at Risk'!X$5","v":2.6150561252674372E-3},{"$f":"'Population at Risk'!Y141/'Population at Risk'!Y$5","v":2.1726464316914663E-3},{"$f":"'Population at Risk'!Z141/'Population at Risk'!Z$5","v":3.0910988577457677E-3},{"$f":"'Population at Risk'!AA141/'Population at Risk'!AA$5","v":2.1435009350412476E-3},{"$f":"'Population at Risk'!AB141/'Population at Risk'!AB$5","v":2.9610661764930372E-3},{"$f":"'Population at Risk'!AC141/'Population at Risk'!AC$5","v":2.2982850504890072E-3},{"$f":"'Population at Risk'!AD141/'Population at Risk'!AD$5","v":2.8867978160229675E-3},{"$f":"'Population at Risk'!AE141/'Population at Risk'!AE$5","v":2.8207194238951548E-3},{"$f":"'Population at Risk'!AF141/'Population at Risk'!AF$5","v":1.2443315459457881E-3},{"$f":"'Population at Risk'!AG141/'Population at Risk'!AG$5","v":2.8207194238951548E-3},{"$f":"'Population at Risk'!AH141/'Population at Risk'!AH$5","v":1.8885486428882345E-3},{"$f":"'Population at Risk'!AI141/'Population at Risk'!AI$5","v":3.691856785573502E-3},{"$f":"'Population at Risk'!AJ141/'Population at Risk'!AJ$5","v":2.246575222132269E-3},{"$f":"'Population at Risk'!AK141/'Population at Risk'!AK$5","v":3.1588925700693792E-3},{"$f":"'Population at Risk'!AL141/'Population at Risk'!AL$5","v":1.0930391511505715E-3},{"$f":"'Population at Risk'!AM141/'Population at Risk'!AM$5","v":1.8926000250390415E-3},{"$f":"'Population at Risk'!AN141/'Population at Risk'!AN$5","v":3.1237947538017676E-3},{"$f":"'Population at Risk'!AO141/'Population at Risk'!AO$5","v":3.1268493963215005E-3},{"$f":"'Population at Risk'!AP141/'Population at Risk'!AP$5","v":2.3642394468179266E-3},{"$f":"'Population at Risk'!AQ141/'Population at Risk'!AQ$5","v":1.7868402323203095E-3},{"$f":"'Population at Risk'!AR141/'Population at Risk'!AR$5","v":2.569480661531173E-3},{"$f":"'Population at Risk'!AS141/'Population at Risk'!AS$5","v":2.348963933804237E-3},{"$f":"'Population at Risk'!AT141/'Population at Risk'!AT$5","v":3.700916100848271E-3},{"$f":"'Population at Risk'!AU141/'Population at Risk'!AU$5","v":3.6966092541313236E-3},{"$f":"'Population at Risk'!AV141/'Population at Risk'!AV$5","v":1.8971524699793584E-3},{"$f":"'Population at Risk'!AW141/'Population at Risk'!AW$5","v":1.8941848295399193E-3},{"$f":"'Population at Risk'!AX141/'Population at Risk'!AX$5","v":2.5682122386565648E-3},{"$f":"'Population at Risk'!AY141/'Population at Risk'!AY$5","v":2.4600748088776155E-3},{"$f":"'Population at Risk'!AZ141/'Population at Risk'!AZ$5","v":2.3334327447245748E-3},{"$f":"'Population at Risk'!BA141/'Population at Risk'!BA$5","v":1.4536816146263937E-3},{"$f":"'Population at Risk'!BB141/'Population at Risk'!BB$5","v":2.4808038028499508E-3},{"$f":"'Population at Risk'!BC141/'Population at Risk'!BC$5","v":5.3945799674290406E-3},139]
[null,"Female 30-34",{"$f":"'Population at Risk'!C142/'Population at Risk'!C$5","v":2.7842667347782093E-3},{"$f":"'Population at Risk'!D142/'Population at Risk'!D$5","v":2.6641112126106208E-3},{"$f":"'Population at Risk'!E142/'Population at Risk'!E$5","v":2.5451265054192368E-3},{"$f":"'Population at Risk'!F142/'Population at Risk'!F$5","v":3.2214907188470748E-3},{"$f":"'Population at Risk'!G142/'Population at Risk'!G$5","v":3.3519840844396355E-3},{"$f":"'Population at Risk'!H142/'Population at Risk'!H$5","v":1.5851934823221153E-3},{"$f":"'Population at Risk'!I142/'Population at Risk'!I$5","v":2.8961889896953531E-3},{"$f":"'Population at Risk'!J142/'Population at Risk'!J$5","v":2.0485679485692048E-3},{"$f":"'Population at Risk'!K142/'Population at Risk'!K$5","v":2.0665964618242876E-3},{"$f":"'Population at Risk'!L142/'Population at Risk'!L$5","v":3.1101490836490317E-3},{"$f":"'Population at Risk'!M142/'Population at Risk'!M$5","v":3.1112086572739773E-3},{"$f":"'Population at Risk'!N142/'Population at Risk'!N$5","v":1.5340610732454785E-3},{"$f":"'Population at Risk'!O142/'Population at Risk'!O$5","v":1.5846976725529278E-3},{"$f":"'Population at Risk'!P142/'Population at Risk'!P$5","v":6.4634014275641045E-4},{"$f":"'Population at Risk'!Q142/'Population at Risk'!Q$5","v":2.0381630975912991E-3},{"$f":"'Population at Risk'!R142/'Population at Risk'!R$5","v":1.3746819957031423E-3},{"$f":"'Population at Risk'!S142/'Population at Risk'!S$5","v":2.9551544236798583E-3},{"$f":"'Population at Risk'!T142/'Population at Risk'!T$5","v":3.7391813020573547E-3},{"$f":"'Population at Risk'!U142/'Population at Risk'!U$5","v":5.9129093943852927E-3},{"$f":"'Population at Risk'!V142/'Population at Risk'!V$5","v":2.3454130874690868E-3},{"$f":"'Population at Risk'!W142/'Population at Risk'!W$5","v":2.4979081105160382E-3},{"$f":"'Population at Risk'!X142/'Population at Risk'!X$5","v":2.498152689945373E-3},{"$f":"'Population at Risk'!Y142/'Population at Risk'!Y$5","v":2.1406957488724738E-3},{"$f":"'Population at Risk'!Z142/'Population at Risk'!Z$5","v":2.4544952151519537E-3},{"$f":"'Population at Risk'!AA142/'Population at Risk'!AA$5","v":2.0215180109349933E-3},{"$f":"'Population at Risk'!AB142/'Population at Risk'!AB$5","v":2.8318897537537653E-3},{"$f":"'Population at Risk'!AC142/'Population at Risk'!AC$5","v":1.972017674450374E-3},{"$f":"'Population at Risk'!AD142/'Population at Risk'!AD$5","v":3.1571834225456448E-3},{"$f":"'Population at Risk'!AE142/'Population at Risk'!AE$5","v":3.0392816251851779E-3},{"$f":"'Population at Risk'!AF142/'Population at Risk'!AF$5","v":1.0903100516593388E-3},{"$f":"'Population at Risk'!AG142/'Population at Risk'!AG$5","v":3.0392816251851779E-3},{"$f":"'Population at Risk'!AH142/'Population at Risk'!AH$5","v":2.0958669715628367E-3},{"$f":"'Population at Risk'!AI142/'Population at Risk'!AI$5","v":3.1585833992585125E-3},{"$f":"'Population at Risk'!AJ142/'Population at Risk'!AJ$5","v":2.3780443401227977E-3},{"$f":"'Population at Risk'!AK142/'Population at Risk'!AK$5","v":3.6608535812036914E-3},{"$f":"'Population at Risk'!AL142/'Population at Risk'!AL$5","v":1.1820074541511996E-3},{"$f":"'Population at Risk'!AM142/'Population at Risk'!AM$5","v":2.1605343870143459E-3},{"$f":"'Population at Risk'!AN142/'Population at Risk'!AN$5","v":3.446360516422602E-3},{"$f":"'Population at Risk'!AO142/'Population at Risk'!AO$5","v":3.4497305839851335E-3},{"$f":"'Population at Risk'!AP142/'Population at Risk'!AP$5","v":2.5298381149678889E-3},{"$f":"'Population at Risk'!AQ142/'Population at Risk'!AQ$5","v":1.9689643783099221E-3},{"$f":"'Population at Risk'!AR142/'Population at Risk'!AR$5","v":2.4540261203880426E-3},{"$f":"'Population at Risk'!AS142/'Population at Risk'!AS$5","v":2.8957318715818162E-3},{"$f":"'Population at Risk'!AT142/'Population at Risk'!AT$5","v":3.3132010807594048E-3},{"$f":"'Population at Risk'!AU142/'Population at Risk'!AU$5","v":3.309345427508042E-3},{"$f":"'Population at Risk'!AV142/'Population at Risk'!AV$5","v":2.0856113246130693E-3},{"$f":"'Population at Risk'!AW142/'Population at Risk'!AW$5","v":2.0350746102494998E-3},{"$f":"'Population at Risk'!AX142/'Population at Risk'!AX$5","v":1.8484018880296385E-3},{"$f":"'Population at Risk'!AY142/'Population at Risk'!AY$5","v":2.3664979142360067E-3},{"$f":"'Population at Risk'!AZ142/'Population at Risk'!AZ$5","v":2.2589983174076929E-3},{"$f":"'Population at Risk'!BA142/'Population at Risk'!BA$5","v":1.4574771279805096E-3},{"$f":"'Population at Risk'!BB142/'Population at Risk'!BB$5","v":2.7586896850120045E-3},{"$f":"'Population at Risk'!BC142/'Population at Risk'!BC$5","v":5.9170574461146616E-3},140]
[null,"Female 35-39",{"$f":"'Population at Risk'!C143/'Population at Risk'!C$5","v":3.4448290374904768E-3},{"$f":"'Population at Risk'!D143/'Population at Risk'!D$5","v":4.2075786579223902E-3},{"$f":"'Population at Risk'!E143/'Population at Risk'!E$5","v":4.9118228934563494E-3},{"$f":"'Population at Risk'!F143/'Population at Risk'!F$5","v":6.8527374825654418E-3},{"$f":"'Population at Risk'!G143/'Population at Risk'!G$5","v":6.798724651772203E-3},{"$f":"'Population at Risk'!H143/'Population at Risk'!H$5","v":3.1950742699353766E-3},{"$f":"'Population at Risk'!I143/'Population at Risk'!I$5","v":5.457331790269096E-3},{"$f":"'Population at Risk'!J143/'Population at Risk'!J$5","v":4.1203710723584763E-3},{"$f":"'Population at Risk'!K143/'Population at Risk'!K$5","v":3.5439735452598288E-3},{"$f":"'Population at Risk'!L143/'Population at Risk'!L$5","v":6.0629467512083078E-3},{"$f":"'Population at Risk'!M143/'Population at Risk'!M$5","v":6.065012291571247E-3},{"$f":"'Population at Risk'!N143/'Population at Risk'!N$5","v":2.3748928540469382E-3},{"$f":"'Population at Risk'!O143/'Population at Risk'!O$5","v":3.0852257389961113E-3},{"$f":"'Population at Risk'!P143/'Population at Risk'!P$5","v":1.5520541586254389E-3},{"$f":"'Population at Risk'!Q143/'Population at Risk'!Q$5","v":4.1207654793962503E-3},{"$f":"'Population at Risk'!R143/'Population at Risk'!R$5","v":2.8612443456906495E-3},{"$f":"'Population at Risk'!S143/'Population at Risk'!S$5","v":5.0651451239790953E-3},{"$f":"'Population at Risk'!T143/'Population at Risk'!T$5","v":5.0624291770453274E-3},{"$f":"'Population at Risk'!U143/'Population at Risk'!U$5","v":1.4155569786546808E-2},{"$f":"'Population at Risk'!V143/'Population at Risk'!V$5","v":4.7310827678575069E-3},{"$f":"'Population at Risk'!W143/'Population at Risk'!W$5","v":5.1068750580594907E-3},{"$f":"'Population at Risk'!X143/'Population at Risk'!X$5","v":5.1073750910999895E-3},{"$f":"'Population at Risk'!Y143/'Population at Risk'!Y$5","v":4.3127865165149132E-3},{"$f":"'Population at Risk'!Z143/'Population at Risk'!Z$5","v":3.6891309354156782E-3},{"$f":"'Population at Risk'!AA143/'Population at Risk'!AA$5","v":3.6942434894936603E-3},{"$f":"'Population at Risk'!AB143/'Population at Risk'!AB$5","v":4.5221863623845617E-3},{"$f":"'Population at Risk'!AC143/'Population at Risk'!AC$5","v":3.3538030243485113E-3},{"$f":"'Population at Risk'!AD143/'Population at Risk'!AD$5","v":6.6130366369845347E-3},{"$f":"'Population at Risk'!AE143/'Population at Risk'!AE$5","v":6.452749451318681E-3},{"$f":"'Population at Risk'!AF143/'Population at Risk'!AF$5","v":2.997392210548466E-3},{"$f":"'Population at Risk'!AG143/'Population at Risk'!AG$5","v":6.452749451318681E-3},{"$f":"'Population at Risk'!AH143/'Population at Risk'!AH$5","v":4.2326792556989555E-3},{"$f":"'Population at Risk'!AI143/'Population at Risk'!AI$5","v":4.9727880197885013E-3},{"$f":"'Population at Risk'!AJ143/'Population at Risk'!AJ$5","v":4.7453963069665692E-3},{"$f":"'Population at Risk'!AK143/'Population at Risk'!AK$5","v":6.0826837610107824E-3},{"$f":"'Population at Risk'!AL143/'Population at Risk'!AL$5","v":2.5148078929161338E-3},{"$f":"'Population at Risk'!AM143/'Population at Risk'!AM$5","v":4.4128148050271727E-3},{"$f":"'Population at Risk'!AN143/'Population at Risk'!AN$5","v":4.7795831261382808E-3},{"$f":"'Population at Risk'!AO143/'Population at Risk'!AO$5","v":4.7842569024246157E-3},{"$f":"'Population at Risk'!AP143/'Population at Risk'!AP$5","v":4.6216982139725988E-3},{"$f":"'Population at Risk'!AQ143/'Population at Risk'!AQ$5","v":3.7311694604480611E-3},{"$f":"'Population at Risk'!AR143/'Population at Risk'!AR$5","v":4.4685369092927821E-3},{"$f":"'Population at Risk'!AS143/'Population at Risk'!AS$5","v":5.4564704358402976E-3},{"$f":"'Population at Risk'!AT143/'Population at Risk'!AT$5","v":6.6386619249998793E-3},{"$f":"'Population at Risk'!AU143/'Population at Risk'!AU$5","v":6.6309363515100993E-3},{"$f":"'Population at Risk'!AV143/'Population at Risk'!AV$5","v":4.1598604921931496E-3},{"$f":"'Population at Risk'!AW143/'Population at Risk'!AW$5","v":4.0547087117504274E-3},{"$f":"'Population at Risk'!AX143/'Population at Risk'!AX$5","v":4.0786934972399814E-3},{"$f":"'Population at Risk'!AY143/'Population at Risk'!AY$5","v":4.6296833019314745E-3},{"$f":"'Population at Risk'!AZ143/'Population at Risk'!AZ$5","v":4.2384724052351034E-3},{"$f":"'Population at Risk'!BA143/'Population at Risk'!BA$5","v":2.8218816676253071E-3},{"$f":"'Population at Risk'!BB143/'Population at Risk'!BB$5","v":5.2872368547130797E-3},{"$f":"'Population at Risk'!BC143/'Population at Risk'!BC$5","v":1.416550026777303E-2},141]
[null,"Female 40-44",{"$f":"'Population at Risk'!C144/'Population at Risk'!C$5","v":3.0360612916624989E-3},{"$f":"'Population at Risk'!D144/'Population at Risk'!D$5","v":4.2126541448438901E-3},{"$f":"'Population at Risk'!E144/'Population at Risk'!E$5","v":5.3045069355714481E-3},{"$f":"'Population at Risk'!F144/'Population at Risk'!F$5","v":7.9629575216402897E-3},{"$f":"'Population at Risk'!G144/'Population at Risk'!G$5","v":8.4420182879825466E-3},{"$f":"'Population at Risk'!H144/'Population at Risk'!H$5","v":3.7157668641596584E-3},{"$f":"'Population at Risk'!I144/'Population at Risk'!I$5","v":7.2744233963520366E-3},{"$f":"'Population at Risk'!J144/'Population at Risk'!J$5","v":4.550066912761574E-3},{"$f":"'Population at Risk'!K144/'Population at Risk'!K$5","v":4.3813681382326155E-3},{"$f":"'Population at Risk'!L144/'Population at Risk'!L$5","v":7.7102193883979127E-3},{"$f":"'Population at Risk'!M144/'Population at Risk'!M$5","v":7.7128461258586497E-3},{"$f":"'Population at Risk'!N144/'Population at Risk'!N$5","v":2.083585830369663E-3},{"$f":"'Population at Risk'!O144/'Population at Risk'!O$5","v":3.7249147454301674E-3},{"$f":"'Population at Risk'!P144/'Population at Risk'!P$5","v":1.6953206963447104E-3},{"$f":"'Population at Risk'!Q144/'Population at Risk'!Q$5","v":4.546822007152891E-3},{"$f":"'Population at Risk'!R144/'Population at Risk'!R$5","v":3.0164304796942102E-3},{"$f":"'Population at Risk'!S144/'Population at Risk'!S$5","v":5.0094012363370004E-3},{"$f":"'Population at Risk'!T144/'Population at Risk'!T$5","v":4.0303667837603063E-3},{"$f":"'Population at Risk'!U144/'Population at Risk'!U$5","v":1.4854290781495189E-2},{"$f":"'Population at Risk'!V144/'Population at Risk'!V$5","v":5.0653991090551459E-3},{"$f":"'Population at Risk'!W144/'Population at Risk'!W$5","v":5.0818208877010636E-3},{"$f":"'Population at Risk'!X144/'Population at Risk'!X$5","v":5.0823184675950006E-3},{"$f":"'Population at Risk'!Y144/'Population at Risk'!Y$5","v":4.6796637048842973E-3},{"$f":"'Population at Risk'!Z144/'Population at Risk'!Z$5","v":3.0882311034788122E-3},{"$f":"'Population at Risk'!AA144/'Population at Risk'!AA$5","v":3.6392970821480259E-3},{"$f":"'Population at Risk'!AB144/'Population at Risk'!AB$5","v":4.72452448811078E-3},{"$f":"'Population at Risk'!AC144/'Population at Risk'!AC$5","v":3.1680579304361038E-3},{"$f":"'Population at Risk'!AD144/'Population at Risk'!AD$5","v":7.4137182028974607E-3},{"$f":"'Population at Risk'!AE144/'Population at Risk'!AE$5","v":6.9143329887122792E-3},{"$f":"'Population at Risk'!AF144/'Population at Risk'!AF$5","v":3.3349001806370331E-3},{"$f":"'Population at Risk'!AG144/'Population at Risk'!AG$5","v":6.9143329887122792E-3},{"$f":"'Population at Risk'!AH144/'Population at Risk'!AH$5","v":4.3885154823110487E-3},{"$f":"'Population at Risk'!AI144/'Population at Risk'!AI$5","v":4.617588875517894E-3},{"$f":"'Population at Risk'!AJ144/'Population at Risk'!AJ$5","v":5.0520455028933275E-3},{"$f":"'Population at Risk'!AK144/'Population at Risk'!AK$5","v":7.2837778746095263E-3},{"$f":"'Population at Risk'!AL144/'Population at Risk'!AL$5","v":2.9532613732441973E-3},{"$f":"'Population at Risk'!AM144/'Population at Risk'!AM$5","v":4.5600412683148234E-3},{"$f":"'Population at Risk'!AN144/'Population at Risk'!AN$5","v":6.4961939672161136E-3},{"$f":"'Population at Risk'!AO144/'Population at Risk'!AO$5","v":6.5025463532954299E-3},{"$f":"'Population at Risk'!AP144/'Population at Risk'!AP$5","v":5.2227715336040084E-3},{"$f":"'Population at Risk'!AQ144/'Population at Risk'!AQ$5","v":4.1203344471829667E-3},{"$f":"'Population at Risk'!AR144/'Population at Risk'!AR$5","v":4.6550696951298933E-3},{"$f":"'Population at Risk'!AS144/'Population at Risk'!AS$5","v":7.2732752424463903E-3},{"$f":"'Population at Risk'!AT144/'Population at Risk'!AT$5","v":6.9181845323682952E-3},{"$f":"'Population at Risk'!AU144/'Population at Risk'!AU$5","v":6.9101336715736827E-3},{"$f":"'Population at Risk'!AV144/'Population at Risk'!AV$5","v":4.6518200414195849E-3},{"$f":"'Population at Risk'!AW144/'Population at Risk'!AW$5","v":4.220976154823846E-3},{"$f":"'Population at Risk'!AX144/'Population at Risk'!AX$5","v":4.2284511418470656E-3},{"$f":"'Population at Risk'!AY144/'Population at Risk'!AY$5","v":4.8387536219129199E-3},{"$f":"'Population at Risk'!AZ144/'Population at Risk'!AZ$5","v":4.6400118962573768E-3},{"$f":"'Population at Risk'!BA144/'Population at Risk'!BA$5","v":3.0401071832549973E-3},{"$f":"'Population at Risk'!BB144/'Population at Risk'!BB$5","v":5.7893022031017998E-3},{"$f":"'Population at Risk'!BC144/'Population at Risk'!BC$5","v":1.4864711432727093E-2},142]
[null,"Female 45-49",{"$f":"'Population at Risk'!C145/'Population at Risk'!C$5","v":3.5520470580917059E-3},{"$f":"'Population at Risk'!D145/'Population at Risk'!D$5","v":5.7232941718212893E-3},{"$f":"'Population at Risk'!E145/'Population at Risk'!E$5","v":7.7431236355617336E-3},{"$f":"'Population at Risk'!F145/'Population at Risk'!F$5","v":1.0256074587123055E-2},{"$f":"'Population at Risk'!G145/'Population at Risk'!G$5","v":1.1840885986441174E-2},{"$f":"'Population at Risk'!H145/'Population at Risk'!H$5","v":5.3933576615104442E-3},{"$f":"'Population at Risk'!I145/'Population at Risk'!I$5","v":1.0664786919035035E-2},{"$f":"'Population at Risk'!J145/'Population at Risk'!J$5","v":6.2853730656415715E-3},{"$f":"'Population at Risk'!K145/'Population at Risk'!K$5","v":6.6757427502287785E-3},{"$f":"'Population at Risk'!L145/'Population at Risk'!L$5","v":1.2076505516829239E-2},{"$f":"'Population at Risk'!M145/'Population at Risk'!M$5","v":1.2080619771928591E-2},{"$f":"'Population at Risk'!N145/'Population at Risk'!N$5","v":3.0062746249609027E-3},{"$f":"'Population at Risk'!O145/'Population at Risk'!O$5","v":5.5818104686559955E-3},{"$f":"'Population at Risk'!P145/'Population at Risk'!P$5","v":2.8028436436355495E-3},{"$f":"'Population at Risk'!Q145/'Population at Risk'!Q$5","v":7.1236581365823389E-3},{"$f":"'Population at Risk'!R145/'Population at Risk'!R$5","v":3.933381444180711E-3},{"$f":"'Population at Risk'!S145/'Population at Risk'!S$5","v":6.6680543989880133E-3},{"$f":"'Population at Risk'!T145/'Population at Risk'!T$5","v":4.0848214288215414E-3},{"$f":"'Population at Risk'!U145/'Population at Risk'!U$5","v":2.0842565793269329E-2},{"$f":"'Population at Risk'!V145/'Population at Risk'!V$5","v":6.4963965740259862E-3},{"$f":"'Population at Risk'!W145/'Population at Risk'!W$5","v":7.1815728113806881E-3},{"$f":"'Population at Risk'!X145/'Population at Risk'!X$5","v":7.1822759857578973E-3},{"$f":"'Population at Risk'!Y145/'Population at Risk'!Y$5","v":6.2034218669913578E-3},{"$f":"'Population at Risk'!Z145/'Population at Risk'!Z$5","v":3.8242448266598969E-3},{"$f":"'Population at Risk'!AA145/'Population at Risk'!AA$5","v":4.9551048696823505E-3},{"$f":"'Population at Risk'!AB145/'Population at Risk'!AB$5","v":6.3939815854488352E-3},{"$f":"'Population at Risk'!AC145/'Population at Risk'!AC$5","v":4.3136939501811885E-3},{"$f":"'Population at Risk'!AD145/'Population at Risk'!AD$5","v":1.0834223689386507E-2},{"$f":"'Population at Risk'!AE145/'Population at Risk'!AE$5","v":1.0297805321814299E-2},{"$f":"'Population at Risk'!AF145/'Population at Risk'!AF$5","v":4.4638389640441877E-3},{"$f":"'Population at Risk'!AG145/'Population at Risk'!AG$5","v":1.0297805321814299E-2},{"$f":"'Population at Risk'!AH145/'Population at Risk'!AH$5","v":5.9748734063565642E-3},{"$f":"'Population at Risk'!AI145/'Population at Risk'!AI$5","v":5.8117812836123552E-3},{"$f":"'Population at Risk'!AJ145/'Population at Risk'!AJ$5","v":7.5677457430297392E-3},{"$f":"'Population at Risk'!AK145/'Population at Risk'!AK$5","v":9.7457197813933197E-3},{"$f":"'Population at Risk'!AL145/'Population at Risk'!AL$5","v":4.2593381652196276E-3},{"$f":"'Population at Risk'!AM145/'Population at Risk'!AM$5","v":5.6546585044296637E-3},{"$f":"'Population at Risk'!AN145/'Population at Risk'!AN$5","v":9.9412258374768931E-3},{"$f":"'Population at Risk'!AO145/'Population at Risk'!AO$5","v":9.9509469918851543E-3},{"$f":"'Population at Risk'!AP145/'Population at Risk'!AP$5","v":7.8550482093110875E-3},{"$f":"'Population at Risk'!AQ145/'Population at Risk'!AQ$5","v":6.2756813331568484E-3},{"$f":"'Population at Risk'!AR145/'Population at Risk'!AR$5","v":6.4311788616875773E-3},{"$f":"'Population at Risk'!AS145/'Population at Risk'!AS$5","v":1.066310364929848E-2},{"$f":"'Population at Risk'!AT145/'Population at Risk'!AT$5","v":1.1113475595590753E-2},{"$f":"'Population at Risk'!AU145/'Population at Risk'!AU$5","v":1.1100542571826237E-2},{"$f":"'Population at Risk'!AV145/'Population at Risk'!AV$5","v":6.5930008699017772E-3},{"$f":"'Population at Risk'!AW145/'Population at Risk'!AW$5","v":6.3637940128333792E-3},{"$f":"'Population at Risk'!AX145/'Population at Risk'!AX$5","v":5.4738428236376048E-3},{"$f":"'Population at Risk'!AY145/'Population at Risk'!AY$5","v":6.7911174990464371E-3},{"$f":"'Population at Risk'!AZ145/'Population at Risk'!AZ$5","v":6.4716557493670742E-3},{"$f":"'Population at Risk'!BA145/'Population at Risk'!BA$5","v":4.9579305743938451E-3},{"$f":"'Population at Risk'!BB145/'Population at Risk'!BB$5","v":8.2066755328495441E-3},{"$f":"'Population at Risk'!BC145/'Population at Risk'!BC$5","v":2.0857187367069423E-2},143]
[null,"Female 50-54",{"$f":"'Population at Risk'!C146/'Population at Risk'!C$5","v":3.9528925920216075E-3},{"$f":"'Population at Risk'!D146/'Population at Risk'!D$5","v":5.907792573599276E-3},{"$f":"'Population at Risk'!E146/'Population at Risk'!E$5","v":7.7245371650010953E-3},{"$f":"'Population at Risk'!F146/'Population at Risk'!F$5","v":1.1509997487174142E-2},{"$f":"'Population at Risk'!G146/'Population at Risk'!G$5","v":1.4750779142305388E-2},{"$f":"'Population at Risk'!H146/'Population at Risk'!H$5","v":5.9890862396882886E-3},{"$f":"'Population at Risk'!I146/'Population at Risk'!I$5","v":1.0960648749692138E-2},{"$f":"'Population at Risk'!J146/'Population at Risk'!J$5","v":6.6665073898347299E-3},{"$f":"'Population at Risk'!K146/'Population at Risk'!K$5","v":6.879582223518207E-3},{"$f":"'Population at Risk'!L146/'Population at Risk'!L$5","v":1.3070778403968742E-2},{"$f":"'Population at Risk'!M146/'Population at Risk'!M$5","v":1.3075231390524007E-2},{"$f":"'Population at Risk'!N146/'Population at Risk'!N$5","v":3.701756068048873E-3},{"$f":"'Population at Risk'!O146/'Population at Risk'!O$5","v":5.9547885875293237E-3},{"$f":"'Population at Risk'!P146/'Population at Risk'!P$5","v":2.4050206748614717E-3},{"$f":"'Population at Risk'!Q146/'Population at Risk'!Q$5","v":6.4203670466649746E-3},{"$f":"'Population at Risk'!R146/'Population at Risk'!R$5","v":4.451221578288536E-3},{"$f":"'Population at Risk'!S146/'Population at Risk'!S$5","v":6.7762313622320557E-3},{"$f":"'Population at Risk'!T146/'Population at Risk'!T$5","v":4.0380039912419254E-3},{"$f":"'Population at Risk'!U146/'Population at Risk'!U$5","v":2.1136537102060149E-2},{"$f":"'Population at Risk'!V146/'Population at Risk'!V$5","v":6.881922322883152E-3},{"$f":"'Population at Risk'!W146/'Population at Risk'!W$5","v":7.7579011446585961E-3},{"$f":"'Population at Risk'!X146/'Population at Risk'!X$5","v":7.758660749476249E-3},{"$f":"'Population at Risk'!Y146/'Population at Risk'!Y$5","v":6.5752074211271379E-3},{"$f":"'Population at Risk'!Z146/'Population at Risk'!Z$5","v":4.0018889718631909E-3},{"$f":"'Population at Risk'!AA146/'Population at Risk'!AA$5","v":4.9974756634374494E-3},{"$f":"'Population at Risk'!AB146/'Population at Risk'!AB$5","v":6.6993753766090352E-3},{"$f":"'Population at Risk'!AC146/'Population at Risk'!AC$5","v":4.4096029998688157E-3},{"$f":"'Population at Risk'!AD146/'Population at Risk'!AD$5","v":1.228016887443259E-2},{"$f":"'Population at Risk'!AE146/'Population at Risk'!AE$5","v":1.1153875040288645E-2},{"$f":"'Population at Risk'!AF146/'Population at Risk'!AF$5","v":4.9841637512640629E-3},{"$f":"'Population at Risk'!AG146/'Population at Risk'!AG$5","v":1.1153875040288645E-2},{"$f":"'Population at Risk'!AH146/'Population at Risk'!AH$5","v":5.9309143059319879E-3},{"$f":"'Population at Risk'!AI146/'Population at Risk'!AI$5","v":5.6835879520989382E-3},{"$f":"'Population at Risk'!AJ146/'Population at Risk'!AJ$5","v":7.6199971520725229E-3},{"$f":"'Population at Risk'!AK146/'Population at Risk'!AK$5","v":1.0661817440844292E-2},{"$f":"'Population at Risk'!AL146/'Population at Risk'!AL$5","v":4.5684836772113746E-3},{"$f":"'Population at Risk'!AM146/'Population at Risk'!AM$5","v":5.4874144079757091E-3},{"$f":"'Population at Risk'!AN146/'Population at Risk'!AN$5","v":1.0858877453243992E-2},{"$f":"'Population at Risk'!AO146/'Population at Risk'!AO$5","v":1.0869495944982245E-2},{"$f":"'Population at Risk'!AP146/'Population at Risk'!AP$5","v":8.5894866101816625E-3},{"$f":"'Population at Risk'!AQ146/'Population at Risk'!AQ$5","v":6.056921199539181E-3},{"$f":"'Population at Risk'!AR146/'Population at Risk'!AR$5","v":6.7566453082297086E-3},{"$f":"'Population at Risk'!AS146/'Population at Risk'!AS$5","v":1.0958918782795146E-2},{"$f":"'Population at Risk'!AT146/'Population at Risk'!AT$5","v":1.1192857564130687E-2},{"$f":"'Population at Risk'!AU146/'Population at Risk'!AU$5","v":1.1179832161624997E-2},{"$f":"'Population at Risk'!AV146/'Population at Risk'!AV$5","v":7.7885128302165848E-3},{"$f":"'Population at Risk'!AW146/'Population at Risk'!AW$5","v":6.4569718436504895E-3},{"$f":"'Population at Risk'!AX146/'Population at Risk'!AX$5","v":5.9241589608655613E-3},{"$f":"'Population at Risk'!AY146/'Population at Risk'!AY$5","v":7.5057467506789224E-3},{"$f":"'Population at Risk'!AZ146/'Population at Risk'!AZ$5","v":7.3001056570420773E-3},{"$f":"'Population at Risk'!BA146/'Population at Risk'!BA$5","v":4.8809971689291127E-3},{"$f":"'Population at Risk'!BB146/'Population at Risk'!BB$5","v":8.151156817682666E-3},{"$f":"'Population at Risk'!BC146/'Population at Risk'!BC$5","v":2.1151364903981545E-2},144]
[null,"Female 55-59",{"$f":"'Population at Risk'!C147/'Population at Risk'!C$5","v":5.7614554188731917E-3},{"$f":"'Population at Risk'!D147/'Population at Risk'!D$5","v":8.5238499071110269E-3},{"$f":"'Population at Risk'!E147/'Population at Risk'!E$5","v":1.1090597217236828E-2},{"$f":"'Population at Risk'!F147/'Population at Risk'!F$5","v":1.7908426840218986E-2},{"$f":"'Population at Risk'!G147/'Population at Risk'!G$5","v":2.1802647045355689E-2},{"$f":"'Population at Risk'!H147/'Population at Risk'!H$5","v":8.4924002783703118E-3},{"$f":"'Population at Risk'!I147/'Population at Risk'!I$5","v":1.7308860174610224E-2},{"$f":"'Population at Risk'!J147/'Population at Risk'!J$5","v":9.6211697214024644E-3},{"$f":"'Population at Risk'!K147/'Population at Risk'!K$5","v":1.0506127807668443E-2},{"$f":"'Population at Risk'!L147/'Population at Risk'!L$5","v":1.9448837756669286E-2},{"$f":"'Population at Risk'!M147/'Population at Risk'!M$5","v":1.9455463636962666E-2},{"$f":"'Population at Risk'!N147/'Population at Risk'!N$5","v":5.7336723653755688E-3},{"$f":"'Population at Risk'!O147/'Population at Risk'!O$5","v":8.3255906550794793E-3},{"$f":"'Population at Risk'!P147/'Population at Risk'!P$5","v":4.0419386135053187E-3},{"$f":"'Population at Risk'!Q147/'Population at Risk'!Q$5","v":1.0129937756297192E-2},{"$f":"'Population at Risk'!R147/'Population at Risk'!R$5","v":6.9733791163743642E-3},{"$f":"'Population at Risk'!S147/'Population at Risk'!S$5","v":9.8853079844368075E-3},{"$f":"'Population at Risk'!T147/'Population at Risk'!T$5","v":5.6918661262033285E-3},{"$f":"'Population at Risk'!U147/'Population at Risk'!U$5","v":3.2171697922862827E-2},{"$f":"'Population at Risk'!V147/'Population at Risk'!V$5","v":9.8653090981400769E-3},{"$f":"'Population at Risk'!W147/'Population at Risk'!W$5","v":1.1351343145891315E-2},{"$f":"'Population at Risk'!X147/'Population at Risk'!X$5","v":1.1352454597916761E-2},{"$f":"'Population at Risk'!Y147/'Population at Risk'!Y$5","v":9.4546237941765445E-3},{"$f":"'Population at Risk'!Z147/'Population at Risk'!Z$5","v":5.7264624164011521E-3},{"$f":"'Population at Risk'!AA147/'Population at Risk'!AA$5","v":7.4366662321179878E-3},{"$f":"'Population at Risk'!AB147/'Population at Risk'!AB$5","v":9.5910158196798167E-3},{"$f":"'Population at Risk'!AC147/'Population at Risk'!AC$5","v":6.5229832644245591E-3},{"$f":"'Population at Risk'!AD147/'Population at Risk'!AD$5","v":1.8713435351269132E-2},{"$f":"'Population at Risk'!AE147/'Population at Risk'!AE$5","v":1.7260491926703595E-2},{"$f":"'Population at Risk'!AF147/'Population at Risk'!AF$5","v":8.3518772067708164E-3},{"$f":"'Population at Risk'!AG147/'Population at Risk'!AG$5","v":1.7260491926703595E-2},{"$f":"'Population at Risk'!AH147/'Population at Risk'!AH$5","v":8.8883117553139272E-3},{"$f":"'Population at Risk'!AI147/'Population at Risk'!AI$5","v":8.0748248447500958E-3},{"$f":"'Population at Risk'!AJ147/'Population at Risk'!AJ$5","v":1.0660766892602815E-2},{"$f":"'Population at Risk'!AK147/'Population at Risk'!AK$5","v":1.4928636548532761E-2},{"$f":"'Population at Risk'!AL147/'Population at Risk'!AL$5","v":7.0082708445662325E-3},{"$f":"'Population at Risk'!AM147/'Population at Risk'!AM$5","v":7.7641191307978126E-3},{"$f":"'Population at Risk'!AN147/'Population at Risk'!AN$5","v":1.4948745594043808E-2},{"$f":"'Population at Risk'!AO147/'Population at Risk'!AO$5","v":1.4963363415478029E-2},{"$f":"'Population at Risk'!AP147/'Population at Risk'!AP$5","v":1.2613855474411458E-2},{"$f":"'Population at Risk'!AQ147/'Population at Risk'!AQ$5","v":8.5586031040026794E-3},{"$f":"'Population at Risk'!AR147/'Population at Risk'!AR$5","v":9.9650077527367129E-3},{"$f":"'Population at Risk'!AS147/'Population at Risk'!AS$5","v":1.7306128241874264E-2},{"$f":"'Population at Risk'!AT147/'Population at Risk'!AT$5","v":1.6662551041210456E-2},{"$f":"'Population at Risk'!AU147/'Population at Risk'!AU$5","v":1.6643160422430591E-2},{"$f":"'Population at Risk'!AV147/'Population at Risk'!AV$5","v":1.0518735376309393E-2},{"$f":"'Population at Risk'!AW147/'Population at Risk'!AW$5","v":1.0188742509389368E-2},{"$f":"'Population at Risk'!AX147/'Population at Risk'!AX$5","v":8.2096244391416714E-3},{"$f":"'Population at Risk'!AY147/'Population at Risk'!AY$5","v":1.1208925858994185E-2},{"$f":"'Population at Risk'!AZ147/'Population at Risk'!AZ$5","v":1.109426699891498E-2},{"$f":"'Population at Risk'!BA147/'Population at Risk'!BA$5","v":7.478481486166296E-3},{"$f":"'Population at Risk'!BB147/'Population at Risk'!BB$5","v":1.1119819881397061E-2},{"$f":"'Population at Risk'!BC147/'Population at Risk'!BC$5","v":3.2194267162183897E-2},145]
[null,"Female 60-64",{"$f":"'Population at Risk'!C148/'Population at Risk'!C$5","v":5.3481059682917815E-3},{"$f":"'Population at Risk'!D148/'Population at Risk'!D$5","v":8.1358422885069847E-3},{"$f":"'Population at Risk'!E148/'Population at Risk'!E$5","v":1.0727264010871927E-2},{"$f":"'Population at Risk'!F148/'Population at Risk'!F$5","v":1.5817948998948287E-2},{"$f":"'Population at Risk'!G148/'Population at Risk'!G$5","v":2.1597376662951535E-2},{"$f":"'Population at Risk'!H148/'Population at Risk'!H$5","v":7.8062143358779909E-3},{"$f":"'Population at Risk'!I148/'Population at Risk'!I$5","v":1.5600023660556352E-2},{"$f":"'Population at Risk'!J148/'Population at Risk'!J$5","v":8.9247598863343575E-3},{"$f":"'Population at Risk'!K148/'Population at Risk'!K$5","v":8.8730509463728312E-3},{"$f":"'Population at Risk'!L148/'Population at Risk'!L$5","v":1.9072928329250921E-2},{"$f":"'Population at Risk'!M148/'Population at Risk'!M$5","v":1.9079426143749398E-2},{"$f":"'Population at Risk'!N148/'Population at Risk'!N$5","v":4.7271342698864405E-3},{"$f":"'Population at Risk'!O148/'Population at Risk'!O$5","v":6.8624299211422447E-3},{"$f":"'Population at Risk'!P148/'Population at Risk'!P$5","v":3.4769364417250054E-3},{"$f":"'Population at Risk'!Q148/'Population at Risk'!Q$5","v":8.8334026606945604E-3},{"$f":"'Population at Risk'!R148/'Population at Risk'!R$5","v":6.0553646504212843E-3},{"$f":"'Population at Risk'!S148/'Population at Risk'!S$5","v":8.4711582909506051E-3},{"$f":"'Population at Risk'!T148/'Population at Risk'!T$5","v":4.6447628026019478E-3},{"$f":"'Population at Risk'!U148/'Population at Risk'!U$5","v":3.2642733031543102E-2},{"$f":"'Population at Risk'!V148/'Population at Risk'!V$5","v":8.9433175936410054E-3},{"$f":"'Population at Risk'!W148/'Population at Risk'!W$5","v":9.8084421357701648E-3},{"$f":"'Population at Risk'!X148/'Population at Risk'!X$5","v":9.8094025166465208E-3},{"$f":"'Population at Risk'!Y148/'Population at Risk'!Y$5","v":8.6619342992379621E-3},{"$f":"'Population at Risk'!Z148/'Population at Risk'!Z$5","v":4.218083079321709E-3},{"$f":"'Population at Risk'!AA148/'Population at Risk'!AA$5","v":6.0562072309463862E-3},{"$f":"'Population at Risk'!AB148/'Population at Risk'!AB$5","v":9.0295653769595693E-3},{"$f":"'Population at Risk'!AC148/'Population at Risk'!AC$5","v":5.1670822487857463E-3},{"$f":"'Population at Risk'!AD148/'Population at Risk'!AD$5","v":1.759652518719294E-2},{"$f":"'Population at Risk'!AE148/'Population at Risk'!AE$5","v":1.5803066283885909E-2},{"$f":"'Population at Risk'!AF148/'Population at Risk'!AF$5","v":5.8068218057583431E-3},{"$f":"'Population at Risk'!AG148/'Population at Risk'!AG$5","v":1.5803066283885909E-2},{"$f":"'Population at Risk'!AH148/'Population at Risk'!AH$5","v":7.4719690810895615E-3},{"$f":"'Population at Risk'!AI148/'Population at Risk'!AI$5","v":6.7666224043058049E-3},{"$f":"'Population at Risk'!AJ148/'Population at Risk'!AJ$5","v":9.0560703053654806E-3},{"$f":"'Population at Risk'!AK148/'Population at Risk'!AK$5","v":1.349198951666559E-2},{"$f":"'Population at Risk'!AL148/'Population at Risk'!AL$5","v":6.9899245858108241E-3},{"$f":"'Population at Risk'!AM148/'Population at Risk'!AM$5","v":6.5727034619393792E-3},{"$f":"'Population at Risk'!AN148/'Population at Risk'!AN$5","v":1.3539642525752795E-2},{"$f":"'Population at Risk'!AO148/'Population at Risk'!AO$5","v":1.3552882437789527E-2},{"$f":"'Population at Risk'!AP148/'Population at Risk'!AP$5","v":1.1354308681412646E-2},{"$f":"'Population at Risk'!AQ148/'Population at Risk'!AQ$5","v":7.426705935811199E-3},{"$f":"'Population at Risk'!AR148/'Population at Risk'!AR$5","v":8.8023853377365516E-3},{"$f":"'Population at Risk'!AS148/'Population at Risk'!AS$5","v":1.5597561440924893E-2},{"$f":"'Population at Risk'!AT148/'Population at Risk'!AT$5","v":1.6598953518152399E-2},{"$f":"'Population at Risk'!AU148/'Population at Risk'!AU$5","v":1.6579636909367881E-2},{"$f":"'Population at Risk'!AV148/'Population at Risk'!AV$5","v":9.861314415290057E-3},{"$f":"'Population at Risk'!AW148/'Population at Risk'!AW$5","v":8.514157106856067E-3},{"$f":"'Population at Risk'!AX148/'Population at Risk'!AX$5","v":8.1294523254781797E-3},{"$f":"'Population at Risk'!AY148/'Population at Risk'!AY$5","v":9.7775979660044091E-3},{"$f":"'Population at Risk'!AZ148/'Population at Risk'!AZ$5","v":9.7543344137419729E-3},{"$f":"'Population at Risk'!BA148/'Population at Risk'!BA$5","v":6.7388514490729261E-3},{"$f":"'Population at Risk'!BB148/'Population at Risk'!BB$5","v":9.34064870037353E-3},{"$f":"'Population at Risk'!BC148/'Population at Risk'!BC$5","v":3.2665632713606792E-2},146]
[null,"Female 65-69",{"$f":"'Population at Risk'!C149/'Population at Risk'!C$5","v":5.9008986070211364E-3},{"$f":"'Population at Risk'!D149/'Population at Risk'!D$5","v":9.3713968605811711E-3},{"$f":"'Population at Risk'!E149/'Population at Risk'!E$5","v":1.2599330642205364E-2},{"$f":"'Population at Risk'!F149/'Population at Risk'!F$5","v":1.9585426634571686E-2},{"$f":"'Population at Risk'!G149/'Population at Risk'!G$5","v":2.6662538172998317E-2},{"$f":"'Population at Risk'!H149/'Population at Risk'!H$5","v":9.8295747453337572E-3},{"$f":"'Population at Risk'!I149/'Population at Risk'!I$5","v":1.9519787790344915E-2},{"$f":"'Population at Risk'!J149/'Population at Risk'!J$5","v":1.0304929294406313E-2},{"$f":"'Population at Risk'!K149/'Population at Risk'!K$5","v":1.1419404727087776E-2},{"$f":"'Population at Risk'!L149/'Population at Risk'!L$5","v":2.4026392316023746E-2},{"$f":"'Population at Risk'!M149/'Population at Risk'!M$5","v":2.4034577689430604E-2},{"$f":"'Population at Risk'!N149/'Population at Risk'!N$5","v":5.7555442129754832E-3},{"$f":"'Population at Risk'!O149/'Population at Risk'!O$5","v":9.2723125078713817E-3},{"$f":"'Population at Risk'!P149/'Population at Risk'!P$5","v":3.5724125578707674E-3},{"$f":"'Population at Risk'!Q149/'Population at Risk'!Q$5","v":1.0464984265069631E-2},{"$f":"'Population at Risk'!R149/'Population at Risk'!R$5","v":6.746640603699206E-3},{"$f":"'Population at Risk'!S149/'Population at Risk'!S$5","v":1.0370634827844876E-2},{"$f":"'Population at Risk'!T149/'Population at Risk'!T$5","v":5.1944308519199034E-3},{"$f":"'Population at Risk'!U149/'Population at Risk'!U$5","v":3.8919417732752558E-2},{"$f":"'Population at Risk'!V149/'Population at Risk'!V$5","v":1.094748274113164E-2},{"$f":"'Population at Risk'!W149/'Population at Risk'!W$5","v":1.2537661775253266E-2},{"$f":"'Population at Risk'!X149/'Population at Risk'!X$5","v":1.2538889384126979E-2},{"$f":"'Population at Risk'!Y149/'Population at Risk'!Y$5","v":1.0325106255978761E-2},{"$f":"'Population at Risk'!Z149/'Population at Risk'!Z$5","v":4.1856790763052688E-3},{"$f":"'Population at Risk'!AA149/'Population at Risk'!AA$5","v":6.6230069698013398E-3},{"$f":"'Population at Risk'!AB149/'Population at Risk'!AB$5","v":1.0522525839048768E-2},{"$f":"'Population at Risk'!AC149/'Population at Risk'!AC$5","v":5.6062215016842616E-3},{"$f":"'Population at Risk'!AD149/'Population at Risk'!AD$5","v":2.1069266871708063E-2},{"$f":"'Population at Risk'!AE149/'Population at Risk'!AE$5","v":1.8608911909583633E-2},{"$f":"'Population at Risk'!AF149/'Population at Risk'!AF$5","v":6.7520978873973755E-3},{"$f":"'Population at Risk'!AG149/'Population at Risk'!AG$5","v":1.8608911909583633E-2},{"$f":"'Population at Risk'!AH149/'Population at Risk'!AH$5","v":8.2428473891715814E-3},{"$f":"'Population at Risk'!AI149/'Population at Risk'!AI$5","v":7.984718702180536E-3},{"$f":"'Population at Risk'!AJ149/'Population at Risk'!AJ$5","v":1.1741436317721893E-2},{"$f":"'Population at Risk'!AK149/'Population at Risk'!AK$5","v":1.6278738578480223E-2},{"$f":"'Population at Risk'!AL149/'Population at Risk'!AL$5","v":8.4047969025984482E-3},{"$f":"'Population at Risk'!AM149/'Population at Risk'!AM$5","v":7.5924770887833446E-3},{"$f":"'Population at Risk'!AN149/'Population at Risk'!AN$5","v":1.6253033242901966E-2},{"$f":"'Population at Risk'!AO149/'Population at Risk'!AO$5","v":1.6268926478639676E-2},{"$f":"'Population at Risk'!AP149/'Population at Risk'!AP$5","v":1.3892675958552807E-2},{"$f":"'Population at Risk'!AQ149/'Population at Risk'!AQ$5","v":8.8927613196879678E-3},{"$f":"'Population at Risk'!AR149/'Population at Risk'!AR$5","v":1.0428708711611162E-2},{"$f":"'Population at Risk'!AS149/'Population at Risk'!AS$5","v":1.9516706897280581E-2},{"$f":"'Population at Risk'!AT149/'Population at Risk'!AT$5","v":1.7392006968334171E-2},{"$f":"'Population at Risk'!AU149/'Population at Risk'!AU$5","v":1.737176746382459E-2},{"$f":"'Population at Risk'!AV149/'Population at Risk'!AV$5","v":1.2213499424138635E-2},{"$f":"'Population at Risk'!AW149/'Population at Risk'!AW$5","v":9.011841263213546E-3},{"$f":"'Population at Risk'!AX149/'Population at Risk'!AX$5","v":8.6949072090758747E-3},{"$f":"'Population at Risk'!AY149/'Population at Risk'!AY$5","v":1.223416183423116E-2},{"$f":"'Population at Risk'!AZ149/'Population at Risk'!AZ$5","v":1.1987329602092048E-2},{"$f":"'Population at Risk'!BA149/'Population at Risk'!BA$5","v":7.763475032364478E-3},{"$f":"'Population at Risk'!BB149/'Population at Risk'!BB$5","v":1.1124107040869406E-2},{"$f":"'Population at Risk'!BC149/'Population at Risk'!BC$5","v":3.8946720663892632E-2},147]
[null,"Female 70-74",{"$f":"'Population at Risk'!C150/'Population at Risk'!C$5","v":4.4516854730549888E-3},{"$f":"'Population at Risk'!D150/'Population at Risk'!D$5","v":6.9709660979054254E-3},{"$f":"'Population at Risk'!E150/'Population at Risk'!E$5","v":9.3137593366136879E-3},{"$f":"'Population at Risk'!F150/'Population at Risk'!F$5","v":1.4726394940062563E-2},{"$f":"'Population at Risk'!G150/'Population at Risk'!G$5","v":1.987695647858486E-2},{"$f":"'Population at Risk'!H150/'Population at Risk'!H$5","v":7.9279728458931786E-3},{"$f":"'Population at Risk'!I150/'Population at Risk'!I$5","v":1.4726810194299828E-2},{"$f":"'Population at Risk'!J150/'Population at Risk'!J$5","v":8.2264137866645774E-3},{"$f":"'Population at Risk'!K150/'Population at Risk'!K$5","v":8.8746905817757363E-3},{"$f":"'Population at Risk'!L150/'Population at Risk'!L$5","v":1.9549554740378051E-2},{"$f":"'Population at Risk'!M150/'Population at Risk'!M$5","v":1.9556214933193646E-2},{"$f":"'Population at Risk'!N150/'Population at Risk'!N$5","v":4.3586694313591705E-3},{"$f":"'Population at Risk'!O150/'Population at Risk'!O$5","v":7.3215142919296101E-3},{"$f":"'Population at Risk'!P150/'Population at Risk'!P$5","v":2.7428001629149967E-3},{"$f":"'Population at Risk'!Q150/'Population at Risk'!Q$5","v":8.340833196381613E-3},{"$f":"'Population at Risk'!R150/'Population at Risk'!R$5","v":5.3849333258883568E-3},{"$f":"'Population at Risk'!S150/'Population at Risk'!S$5","v":7.9311393794178116E-3},{"$f":"'Population at Risk'!T150/'Population at Risk'!T$5","v":3.8939966864603493E-3},{"$f":"'Population at Risk'!U150/'Population at Risk'!U$5","v":3.1652991791135392E-2},{"$f":"'Population at Risk'!V150/'Population at Risk'!V$5","v":7.8550343683907141E-3},{"$f":"'Population at Risk'!W150/'Population at Risk'!W$5","v":9.5442561654336764E-3},{"$f":"'Population at Risk'!X150/'Population at Risk'!X$5","v":9.5451906788837672E-3},{"$f":"'Population at Risk'!Y150/'Population at Risk'!Y$5","v":7.7817277165777941E-3},{"$f":"'Population at Risk'!Z150/'Population at Risk'!Z$5","v":3.2531998828355091E-3},{"$f":"'Population at Risk'!AA150/'Population at Risk'!AA$5","v":5.2554067929893415E-3},{"$f":"'Population at Risk'!AB150/'Population at Risk'!AB$5","v":8.1025856861325178E-3},{"$f":"'Population at Risk'!AC150/'Population at Risk'!AC$5","v":4.339364646818695E-3},{"$f":"'Population at Risk'!AD150/'Population at Risk'!AD$5","v":1.6469159779497276E-2},{"$f":"'Population at Risk'!AE150/'Population at Risk'!AE$5","v":1.492186260086498E-2},{"$f":"'Population at Risk'!AF150/'Population at Risk'!AF$5","v":5.6238992530474336E-3},{"$f":"'Population at Risk'!AG150/'Population at Risk'!AG$5","v":1.492186260086498E-2},{"$f":"'Population at Risk'!AH150/'Population at Risk'!AH$5","v":6.7166413678566815E-3},{"$f":"'Population at Risk'!AI150/'Population at Risk'!AI$5","v":6.156772996333883E-3},{"$f":"'Population at Risk'!AJ150/'Population at Risk'!AJ$5","v":8.8876149904978212E-3},{"$f":"'Population at Risk'!AK150/'Population at Risk'!AK$5","v":1.3778528729543237E-2},{"$f":"'Population at Risk'!AL150/'Population at Risk'!AL$5","v":7.0004239507612072E-3},{"$f":"'Population at Risk'!AM150/'Population at Risk'!AM$5","v":5.9504028912092432E-3},{"$f":"'Population at Risk'!AN150/'Population at Risk'!AN$5","v":1.6396231773676433E-2},{"$f":"'Population at Risk'!AO150/'Population at Risk'!AO$5","v":1.6412265037922848E-2},{"$f":"'Population at Risk'!AP150/'Population at Risk'!AP$5","v":1.2023127917726676E-2},{"$f":"'Population at Risk'!AQ150/'Population at Risk'!AQ$5","v":6.7847843082072309E-3},{"$f":"'Population at Risk'!AR150/'Population at Risk'!AR$5","v":8.1969811093403049E-3},{"$f":"'Population at Risk'!AS150/'Population at Risk'!AS$5","v":1.4724485797750301E-2},{"$f":"'Population at Risk'!AT150/'Population at Risk'!AT$5","v":1.6054160278462314E-2},{"$f":"'Population at Risk'!AU150/'Population at Risk'!AU$5","v":1.6035477658915009E-2},{"$f":"'Population at Risk'!AV150/'Population at Risk'!AV$5","v":9.7496047463839861E-3},{"$f":"'Population at Risk'!AW150/'Population at Risk'!AW$5","v":7.6065410557631871E-3},{"$f":"'Population at Risk'!AX150/'Population at Risk'!AX$5","v":7.0833511315316388E-3},{"$f":"'Population at Risk'!AY150/'Population at Risk'!AY$5","v":9.5517412191934107E-3},{"$f":"'Population at Risk'!AZ150/'Population at Risk'!AZ$5","v":9.5599318598900956E-3},{"$f":"'Population at Risk'!BA150/'Population at Risk'!BA$5","v":5.6345220853449406E-3},{"$f":"'Population at Risk'!BB150/'Population at Risk'!BB$5","v":8.7802000348068659E-3},{"$f":"'Population at Risk'!BC150/'Population at Risk'!BC$5","v":3.1675197145315789E-2},148]
[null,"Female 75-79",{"$f":"'Population at Risk'!C151/'Population at Risk'!C$5","v":5.2283687076117762E-3},{"$f":"'Population at Risk'!D151/'Population at Risk'!D$5","v":7.3161659912899845E-3},{"$f":"'Population at Risk'!E151/'Population at Risk'!E$5","v":9.253981228594341E-3},{"$f":"'Population at Risk'!F151/'Population at Risk'!F$5","v":1.4124186202896507E-2},{"$f":"'Population at Risk'!G151/'Population at Risk'!G$5","v":2.0796186222025708E-2},{"$f":"'Population at Risk'!H151/'Population at Risk'!H$5","v":7.4695714961203656E-3},{"$f":"'Population at Risk'!I151/'Population at Risk'!I$5","v":1.5096126093536159E-2},{"$f":"'Population at Risk'!J151/'Population at Risk'!J$5","v":8.5538748560993853E-3},{"$f":"'Population at Risk'!K151/'Population at Risk'!K$5","v":8.7811657783939089E-3},{"$f":"'Population at Risk'!L151/'Population at Risk'!L$5","v":1.892215478897084E-2},{"$f":"'Population at Risk'!M151/'Population at Risk'!M$5","v":1.8928601237550087E-2},{"$f":"'Population at Risk'!N151/'Population at Risk'!N$5","v":5.3445267204543208E-3},{"$f":"'Population at Risk'!O151/'Population at Risk'!O$5","v":6.6332849964263656E-3},{"$f":"'Population at Risk'!P151/'Population at Risk'!P$5","v":2.5631235377587859E-3},{"$f":"'Population at Risk'!Q151/'Population at Risk'!Q$5","v":9.0255835862492612E-3},{"$f":"'Population at Risk'!R151/'Population at Risk'!R$5","v":6.745534562173962E-3},{"$f":"'Population at Risk'!S151/'Population at Risk'!S$5","v":8.0532319403444387E-3},{"$f":"'Population at Risk'!T151/'Population at Risk'!T$5","v":4.145211102971052E-3},{"$f":"'Population at Risk'!U151/'Population at Risk'!U$5","v":3.5645780478642558E-2},{"$f":"'Population at Risk'!V151/'Population at Risk'!V$5","v":8.279439277076155E-3},{"$f":"'Population at Risk'!W151/'Population at Risk'!W$5","v":9.5428642670804305E-3},{"$f":"'Population at Risk'!X151/'Population at Risk'!X$5","v":9.5437986442446013E-3},{"$f":"'Population at Risk'!Y151/'Population at Risk'!Y$5","v":8.1497046567108756E-3},{"$f":"'Population at Risk'!Z151/'Population at Risk'!Z$5","v":3.4588356859778383E-3},{"$f":"'Population at Risk'!AA151/'Population at Risk'!AA$5","v":5.5721771586567442E-3},{"$f":"'Population at Risk'!AB151/'Population at Risk'!AB$5","v":8.4507321256833429E-3},{"$f":"'Population at Risk'!AC151/'Population at Risk'!AC$5","v":4.6345947491597825E-3},{"$f":"'Population at Risk'!AD151/'Population at Risk'!AD$5","v":1.5982145527186294E-2},{"$f":"'Population at Risk'!AE151/'Population at Risk'!AE$5","v":1.3893160419052863E-2},{"$f":"'Population at Risk'!AF151/'Population at Risk'!AF$5","v":6.4369001246047637E-3},{"$f":"'Population at Risk'!AG151/'Population at Risk'!AG$5","v":1.3893160419052863E-2},{"$f":"'Population at Risk'!AH151/'Population at Risk'!AH$5","v":7.0672591161455309E-3},{"$f":"'Population at Risk'!AI151/'Population at Risk'!AI$5","v":6.2954820919868901E-3},{"$f":"'Population at Risk'!AJ151/'Population at Risk'!AJ$5","v":8.9207344486105251E-3},{"$f":"'Population at Risk'!AK151/'Population at Risk'!AK$5","v":1.4138932220146267E-2},{"$f":"'Population at Risk'!AL151/'Population at Risk'!AL$5","v":7.0509093182278999E-3},{"$f":"'Population at Risk'!AM151/'Population at Risk'!AM$5","v":5.8524002590859851E-3},{"$f":"'Population at Risk'!AN151/'Population at Risk'!AN$5","v":1.685092401572319E-2},{"$f":"'Population at Risk'!AO151/'Population at Risk'!AO$5","v":1.6867401906574559E-2},{"$f":"'Population at Risk'!AP151/'Population at Risk'!AP$5","v":1.1632159985216904E-2},{"$f":"'Population at Risk'!AQ151/'Population at Risk'!AQ$5","v":6.9376630116234394E-3},{"$f":"'Population at Risk'!AR151/'Population at Risk'!AR$5","v":8.3353671038200426E-3},{"$f":"'Population at Risk'!AS151/'Population at Risk'!AS$5","v":1.5093743406250854E-2},{"$f":"'Population at Risk'!AT151/'Population at Risk'!AT$5","v":1.5884975542423536E-2},{"$f":"'Population at Risk'!AU151/'Population at Risk'!AU$5","v":1.5866489807297574E-2},{"$f":"'Population at Risk'!AV151/'Population at Risk'!AV$5","v":8.9147320203566468E-3},{"$f":"'Population at Risk'!AW151/'Population at Risk'!AW$5","v":8.4589290906772925E-3},{"$f":"'Population at Risk'!AX151/'Population at Risk'!AX$5","v":7.6285215044433908E-3},{"$f":"'Population at Risk'!AY151/'Population at Risk'!AY$5","v":9.5773752164631451E-3},{"$f":"'Population at Risk'!AZ151/'Population at Risk'!AZ$5","v":9.6077836383411316E-3},{"$f":"'Population at Risk'!BA151/'Population at Risk'!BA$5","v":5.864761225852006E-3},{"$f":"'Population at Risk'!BB151/'Population at Risk'!BB$5","v":8.3202852588667078E-3},{"$f":"'Population at Risk'!BC151/'Population at Risk'!BC$5","v":3.5670786872533791E-2},149]
[null,"Female 80-84",{"$f":"'Population at Risk'!C152/'Population at Risk'!C$5","v":4.7367318671130204E-3},{"$f":"'Population at Risk'!D152/'Population at Risk'!D$5","v":5.3978471237364775E-3},{"$f":"'Population at Risk'!E152/'Population at Risk'!E$5","v":6.0040184430497244E-3},{"$f":"'Population at Risk'!F152/'Population at Risk'!F$5","v":1.0774440330815918E-2},{"$f":"'Population at Risk'!G152/'Population at Risk'!G$5","v":1.4736081641603121E-2},{"$f":"'Population at Risk'!H152/'Population at Risk'!H$5","v":5.4595042510521405E-3},{"$f":"'Population at Risk'!I152/'Population at Risk'!I$5","v":1.1145891143978922E-2},{"$f":"'Population at Risk'!J152/'Population at Risk'!J$5","v":6.148595334179446E-3},{"$f":"'Population at Risk'!K152/'Population at Risk'!K$5","v":5.9889978580751077E-3},{"$f":"'Population at Risk'!L152/'Population at Risk'!L$5","v":1.3985361943184496E-2},{"$f":"'Population at Risk'!M152/'Population at Risk'!M$5","v":1.3990126512422745E-2},{"$f":"'Population at Risk'!N152/'Population at Risk'!N$5","v":5.304442770050914E-3},{"$f":"'Population at Risk'!O152/'Population at Risk'!O$5","v":4.8715580343269846E-3},{"$f":"'Population at Risk'!P152/'Population at Risk'!P$5","v":1.6800305541612209E-3},{"$f":"'Population at Risk'!Q152/'Population at Risk'!Q$5","v":7.0259033904934379E-3},{"$f":"'Population at Risk'!R152/'Population at Risk'!R$5","v":6.5618040488073558E-3},{"$f":"'Population at Risk'!S152/'Population at Risk'!S$5","v":5.9303214327531542E-3},{"$f":"'Population at Risk'!T152/'Population at Risk'!T$5","v":3.2854980378929752E-3},{"$f":"'Population at Risk'!U152/'Population at Risk'!U$5","v":2.668181210680317E-2},{"$f":"'Population at Risk'!V152/'Population at Risk'!V$5","v":5.7435183064485241E-3},{"$f":"'Population at Risk'!W152/'Population at Risk'!W$5","v":6.9099603307515491E-3},{"$f":"'Population at Risk'!X152/'Population at Risk'!X$5","v":6.9106369105453808E-3},{"$f":"'Population at Risk'!Y152/'Population at Risk'!Y$5","v":5.749791628967796E-3},{"$f":"'Population at Risk'!Z152/'Population at Risk'!Z$5","v":3.1222823099819213E-3},{"$f":"'Population at Risk'!AA152/'Population at Risk'!AA$5","v":4.4683781383307005E-3},{"$f":"'Population at Risk'!AB152/'Population at Risk'!AB$5","v":6.459621701870321E-3},{"$f":"'Population at Risk'!AC152/'Population at Risk'!AC$5","v":3.8278905436746331E-3},{"$f":"'Population at Risk'!AD152/'Population at Risk'!AD$5","v":1.1599247371797235E-2},{"$f":"'Population at Risk'!AE152/'Population at Risk'!AE$5","v":1.022230702392697E-2},{"$f":"'Population at Risk'!AF152/'Population at Risk'!AF$5","v":4.6971973882250981E-3},{"$f":"'Population at Risk'!AG152/'Population at Risk'!AG$5","v":1.022230702392697E-2},{"$f":"'Population at Risk'!AH152/'Population at Risk'!AH$5","v":5.4879517125375182E-3},{"$f":"'Population at Risk'!AI152/'Population at Risk'!AI$5","v":4.6834381686312017E-3},{"$f":"'Population at Risk'!AJ152/'Population at Risk'!AJ$5","v":6.1615305377612237E-3},{"$f":"'Population at Risk'!AK152/'Population at Risk'!AK$5","v":1.1794051835524309E-2},{"$f":"'Population at Risk'!AL152/'Population at Risk'!AL$5","v":4.8960859675895863E-3},{"$f":"'Population at Risk'!AM152/'Population at Risk'!AM$5","v":4.4902500607890633E-3},{"$f":"'Population at Risk'!AN152/'Population at Risk'!AN$5","v":9.6551240306305859E-3},{"$f":"'Population at Risk'!AO152/'Population at Risk'!AO$5","v":9.6645654167400175E-3},{"$f":"'Population at Risk'!AP152/'Population at Risk'!AP$5","v":9.1717736193660908E-3},{"$f":"'Population at Risk'!AQ152/'Population at Risk'!AQ$5","v":4.9291064276636015E-3},{"$f":"'Population at Risk'!AR152/'Population at Risk'!AR$5","v":6.3181235033812977E-3},{"$f":"'Population at Risk'!AS152/'Population at Risk'!AS$5","v":1.11441319394686E-2},{"$f":"'Population at Risk'!AT152/'Population at Risk'!AT$5","v":1.1724624805122133E-2},{"$f":"'Population at Risk'!AU152/'Population at Risk'!AU$5","v":1.1710980572052972E-2},{"$f":"'Population at Risk'!AV152/'Population at Risk'!AV$5","v":6.8082263444689704E-3},{"$f":"'Population at Risk'!AW152/'Population at Risk'!AW$5","v":6.6291607412754666E-3},{"$f":"'Population at Risk'!AX152/'Population at Risk'!AX$5","v":5.6737128689297728E-3},{"$f":"'Population at Risk'!AY152/'Population at Risk'!AY$5","v":7.4289645439036909E-3},{"$f":"'Population at Risk'!AZ152/'Population at Risk'!AZ$5","v":7.8571145075269182E-3},{"$f":"'Population at Risk'!BA152/'Population at Risk'!BA$5","v":4.948392284312631E-3},{"$f":"'Population at Risk'!BB152/'Population at Risk'!BB$5","v":5.7352255324847109E-3},{"$f":"'Population at Risk'!BC152/'Population at Risk'!BC$5","v":2.6700530055865177E-2},150]
[null,"Female 85-89",{"$f":"'Population at Risk'!C153/'Population at Risk'!C$5","v":3.1294575808670849E-3},{"$f":"'Population at Risk'!D153/'Population at Risk'!D$5","v":3.7542278553553111E-3},{"$f":"'Population at Risk'!E153/'Population at Risk'!E$5","v":4.3303318859163938E-3},{"$f":"'Population at Risk'!F153/'Population at Risk'!F$5","v":7.0448263701488696E-3},{"$f":"'Population at Risk'!G153/'Population at Risk'!G$5","v":8.8721674972373835E-3},{"$f":"'Population at Risk'!H153/'Population at Risk'!H$5","v":3.0807563303809488E-3},{"$f":"'Population at Risk'!I153/'Population at Risk'!I$5","v":6.507233506117106E-3},{"$f":"'Population at Risk'!J153/'Population at Risk'!J$5","v":3.8707478399108946E-3},{"$f":"'Population at Risk'!K153/'Population at Risk'!K$5","v":4.3703497883250796E-3},{"$f":"'Population at Risk'!L153/'Population at Risk'!L$5","v":9.5409177100506965E-3},{"$f":"'Population at Risk'!M153/'Population at Risk'!M$5","v":9.544168134545299E-3},{"$f":"'Population at Risk'!N153/'Population at Risk'!N$5","v":2.966212329852148E-3},{"$f":"'Population at Risk'!O153/'Population at Risk'!O$5","v":2.2059885438461819E-3},{"$f":"'Population at Risk'!P153/'Population at Risk'!P$5","v":1.0769426629238595E-3},{"$f":"'Population at Risk'!Q153/'Population at Risk'!Q$5","v":5.4405713434077388E-3},{"$f":"'Population at Risk'!R153/'Population at Risk'!R$5","v":4.0420712940653306E-3},{"$f":"'Population at Risk'!S153/'Population at Risk'!S$5","v":3.7806977655548725E-3},{"$f":"'Population at Risk'!T153/'Population at Risk'!T$5","v":2.2817249456937071E-3},{"$f":"'Population at Risk'!U153/'Population at Risk'!U$5","v":1.7157595711723827E-2},{"$f":"'Population at Risk'!V153/'Population at Risk'!V$5","v":3.0156898029085337E-3},{"$f":"'Population at Risk'!W153/'Population at Risk'!W$5","v":4.6047568843520133E-3},{"$f":"'Population at Risk'!X153/'Population at Risk'!X$5","v":4.6052077531434877E-3},{"$f":"'Population at Risk'!Y153/'Population at Risk'!Y$5","v":3.3070230114435892E-3},{"$f":"'Population at Risk'!Z153/'Population at Risk'!Z$5","v":1.88269957859102E-3},{"$f":"'Population at Risk'!AA153/'Population at Risk'!AA$5","v":2.6829805095830678E-3},{"$f":"'Population at Risk'!AB153/'Population at Risk'!AB$5","v":4.1660156559780144E-3},{"$f":"'Population at Risk'!AC153/'Population at Risk'!AC$5","v":2.3498115963695981E-3},{"$f":"'Population at Risk'!AD153/'Population at Risk'!AD$5","v":7.5250040160834654E-3},{"$f":"'Population at Risk'!AE153/'Population at Risk'!AE$5","v":6.8998448075051535E-3},{"$f":"'Population at Risk'!AF153/'Population at Risk'!AF$5","v":3.8055997358305191E-3},{"$f":"'Population at Risk'!AG153/'Population at Risk'!AG$5","v":6.8998448075051535E-3},{"$f":"'Population at Risk'!AH153/'Population at Risk'!AH$5","v":3.2123905073388778E-3},{"$f":"'Population at Risk'!AI153/'Population at Risk'!AI$5","v":2.9887895100725037E-3},{"$f":"'Population at Risk'!AJ153/'Population at Risk'!AJ$5","v":3.2156135803130962E-3},{"$f":"'Population at Risk'!AK153/'Population at Risk'!AK$5","v":6.2220588423632182E-3},{"$f":"'Population at Risk'!AL153/'Population at Risk'!AL$5","v":3.095853801233527E-3},{"$f":"'Population at Risk'!AM153/'Population at Risk'!AM$5","v":2.3743408594819864E-3},{"$f":"'Population at Risk'!AN153/'Population at Risk'!AN$5","v":7.1047139093319408E-3},{"$f":"'Population at Risk'!AO153/'Population at Risk'!AO$5","v":7.111661344393597E-3},{"$f":"'Population at Risk'!AP153/'Population at Risk'!AP$5","v":6.2603164197759607E-3},{"$f":"'Population at Risk'!AQ153/'Population at Risk'!AQ$5","v":2.811979217543773E-3},{"$f":"'Population at Risk'!AR153/'Population at Risk'!AR$5","v":3.9576722597990657E-3},{"$f":"'Population at Risk'!AS153/'Population at Risk'!AS$5","v":6.5062064411309326E-3},{"$f":"'Population at Risk'!AT153/'Population at Risk'!AT$5","v":6.9024000868864168E-3},{"$f":"'Population at Risk'!AU153/'Population at Risk'!AU$5","v":6.8943675948376359E-3},{"$f":"'Population at Risk'!AV153/'Population at Risk'!AV$5","v":4.0276388522972372E-3},{"$f":"'Population at Risk'!AW153/'Population at Risk'!AW$5","v":4.1634728999503838E-3},{"$f":"'Population at Risk'!AX153/'Population at Risk'!AX$5","v":3.2182825096870554E-3},{"$f":"'Population at Risk'!AY153/'Population at Risk'!AY$5","v":4.8498523248880696E-3},{"$f":"'Population at Risk'!AZ153/'Population at Risk'!AZ$5","v":5.0523289504664825E-3},{"$f":"'Population at Risk'!BA153/'Population at Risk'!BA$5","v":2.7287430703616974E-3},{"$f":"'Population at Risk'!BB153/'Population at Risk'!BB$5","v":2.9577892683254484E-3},{"$f":"'Population at Risk'!BC153/'Population at Risk'!BC$5","v":1.7169632188154774E-2},151]
[null,"Female 90+",{"$f":"'Population at Risk'!C154/'Population at Risk'!C$5","v":1.7963653787454565E-3},{"$f":"'Population at Risk'!D154/'Population at Risk'!D$5","v":2.1014519336683998E-3},{"$f":"'Population at Risk'!E154/'Population at Risk'!E$5","v":2.382125311475481E-3},{"$f":"'Population at Risk'!F154/'Population at Risk'!F$5","v":4.7310843760313493E-3},{"$f":"'Population at Risk'!G154/'Population at Risk'!G$5","v":5.9075120190450383E-3},{"$f":"'Population at Risk'!H154/'Population at Risk'!H$5","v":1.8333025375873511E-3},{"$f":"'Population at Risk'!I154/'Population at Risk'!I$5","v":3.8027158020633969E-3},{"$f":"'Population at Risk'!J154/'Population at Risk'!J$5","v":2.2619184908121278E-3},{"$f":"'Population at Risk'!K154/'Population at Risk'!K$5","v":1.820979078468783E-3},{"$f":"'Population at Risk'!L154/'Population at Risk'!L$5","v":5.4956750547432882E-3},{"$f":"'Population at Risk'!M154/'Population at Risk'!M$5","v":5.4975473355191188E-3},{"$f":"'Population at Risk'!N154/'Population at Risk'!N$5","v":1.7636938177499259E-3},{"$f":"'Population at Risk'!O154/'Population at Risk'!O$5","v":1.4859783941186084E-3},{"$f":"'Population at Risk'!P154/'Population at Risk'!P$5","v":1.012326103148428E-3},{"$f":"'Population at Risk'!Q154/'Population at Risk'!Q$5","v":3.0986035465765931E-3},{"$f":"'Population at Risk'!R154/'Population at Risk'!R$5","v":2.1522717280088124E-3},{"$f":"'Population at Risk'!S154/'Population at Risk'!S$5","v":2.2093354357315674E-3},{"$f":"'Population at Risk'!T154/'Population at Risk'!T$5","v":1.3476583182304991E-3},{"$f":"'Population at Risk'!U154/'Population at Risk'!U$5","v":1.2045332499659176E-2},{"$f":"'Population at Risk'!V154/'Population at Risk'!V$5","v":1.4255988159203976E-3},{"$f":"'Population at Risk'!W154/'Population at Risk'!W$5","v":2.5481538096230158E-3},{"$f":"'Population at Risk'!X154/'Population at Risk'!X$5","v":2.5484033087947396E-3},{"$f":"'Population at Risk'!Y154/'Population at Risk'!Y$5","v":1.7570791810261836E-3},{"$f":"'Population at Risk'!Z154/'Population at Risk'!Z$5","v":1.2762370594696648E-3},{"$f":"'Population at Risk'!AA154/'Population at Risk'!AA$5","v":1.696399084335896E-3},{"$f":"'Population at Risk'!AB154/'Population at Risk'!AB$5","v":2.4084778011122889E-3},{"$f":"'Population at Risk'!AC154/'Population at Risk'!AC$5","v":1.7241325176055164E-3},{"$f":"'Population at Risk'!AD154/'Population at Risk'!AD$5","v":4.1112819316748055E-3},{"$f":"'Population at Risk'!AE154/'Population at Risk'!AE$5","v":3.3564515997100194E-3},{"$f":"'Population at Risk'!AF154/'Population at Risk'!AF$5","v":3.3271814833261111E-3},{"$f":"'Population at Risk'!AG154/'Population at Risk'!AG$5","v":3.3564515997100194E-3},{"$f":"'Population at Risk'!AH154/'Population at Risk'!AH$5","v":1.6472346037631955E-3},{"$f":"'Population at Risk'!AI154/'Population at Risk'!AI$5","v":1.8097946530841041E-3},{"$f":"'Population at Risk'!AJ154/'Population at Risk'!AJ$5","v":2.2613024532524353E-3},{"$f":"'Population at Risk'!AK154/'Population at Risk'!AK$5","v":3.9468283701557727E-3},{"$f":"'Population at Risk'!AL154/'Population at Risk'!AL$5","v":2.0320802483867642E-3},{"$f":"'Population at Risk'!AM154/'Population at Risk'!AM$5","v":1.0714145828501483E-3},{"$f":"'Population at Risk'!AN154/'Population at Risk'!AN$5","v":6.1027670759646151E-3},{"$f":"'Population at Risk'!AO154/'Population at Risk'!AO$5","v":6.108734744543219E-3},{"$f":"'Population at Risk'!AP154/'Population at Risk'!AP$5","v":3.9366181853613029E-3},{"$f":"'Population at Risk'!AQ154/'Population at Risk'!AQ$5","v":2.6382662156877869E-3},{"$f":"'Population at Risk'!AR154/'Population at Risk'!AR$5","v":2.3755871925632021E-3},{"$f":"'Population at Risk'!AS154/'Population at Risk'!AS$5","v":3.8021156028775222E-3},{"$f":"'Population at Risk'!AT154/'Population at Risk'!AT$5","v":5.5786521250177894E-3},{"$f":"'Population at Risk'!AU154/'Population at Risk'!AU$5","v":5.5721601108961721E-3},{"$f":"'Population at Risk'!AV154/'Population at Risk'!AV$5","v":1.9716893126308652E-3},{"$f":"'Population at Risk'!AW154/'Population at Risk'!AW$5","v":2.2977091076095057E-3},{"$f":"'Population at Risk'!AX154/'Population at Risk'!AX$5","v":2.312395581034403E-3},{"$f":"'Population at Risk'!AY154/'Population at Risk'!AY$5","v":2.9180666904870412E-3},{"$f":"'Population at Risk'!AZ154/'Population at Risk'!AZ$5","v":3.2227171798012303E-3},{"$f":"'Population at Risk'!BA154/'Population at Risk'!BA$5","v":1.486554060719432E-3},{"$f":"'Population at Risk'!BB154/'Population at Risk'!BB$5","v":1.8275771088840168E-3},{"$f":"'Population at Risk'!BC154/'Population at Risk'!BC$5","v":1.2053782597398451E-2},152]
[null,"Male 0-4",{"$f":"'Population at Risk'!C155/'Population at Risk'!C$5","v":0},{"$f":"'Population at Risk'!D155/'Population at Risk'!D$5","v":0},{"$f":"'Population at Risk'!E155/'Population at Risk'!E$5","v":0},{"$f":"'Population at Risk'!F155/'Population at Risk'!F$5","v":0},{"$f":"'Population at Risk'!G155/'Population at Risk'!G$5","v":0},{"$f":"'Population at Risk'!H155/'Population at Risk'!H$5","v":0},{"$f":"'Population at Risk'!I155/'Population at Risk'!I$5","v":0},{"$f":"'Population at Risk'!J155/'Population at Risk'!J$5","v":0},{"$f":"'Population at Risk'!K155/'Population at Risk'!K$5","v":0},{"$f":"'Population at Risk'!L155/'Population at Risk'!L$5","v":0},{"$f":"'Population at Risk'!M155/'Population at Risk'!M$5","v":0},{"$f":"'Population at Risk'!N155/'Population at Risk'!N$5","v":0},{"$f":"'Population at Risk'!O155/'Population at Risk'!O$5","v":0},{"$f":"'Population at Risk'!P155/'Population at Risk'!P$5","v":0},{"$f":"'Population at Risk'!Q155/'Population at Risk'!Q$5","v":0},{"$f":"'Population at Risk'!R155/'Population at Risk'!R$5","v":0},{"$f":"'Population at Risk'!S155/'Population at Risk'!S$5","v":0},{"$f":"'Population at Risk'!T155/'Population at Risk'!T$5","v":0},{"$f":"'Population at Risk'!U155/'Population at Risk'!U$5","v":0},{"$f":"'Population at Risk'!V155/'Population at Risk'!V$5","v":0},{"$f":"'Population at Risk'!W155/'Population at Risk'!W$5","v":0},{"$f":"'Population at Risk'!X155/'Population at Risk'!X$5","v":0},{"$f":"'Population at Risk'!Y155/'Population at Risk'!Y$5","v":0},{"$f":"'Population at Risk'!Z155/'Population at Risk'!Z$5","v":0},{"$f":"'Population at Risk'!AA155/'Population at Risk'!AA$5","v":0},{"$f":"'Population at Risk'!AB155/'Population at Risk'!AB$5","v":0},{"$f":"'Population at Risk'!AC155/'Population at Risk'!AC$5","v":0},{"$f":"'Population at Risk'!AD155/'Population at Risk'!AD$5","v":0},{"$f":"'Population at Risk'!AE155/'Population at Risk'!AE$5","v":0},{"$f":"'Population at Risk'!AF155/'Population at Risk'!AF$5","v":0},{"$f":"'Population at Risk'!AG155/'Population at Risk'!AG$5","v":0},{"$f":"'Population at Risk'!AH155/'Population at Risk'!AH$5","v":0},{"$f":"'Population at Risk'!AI155/'Population at Risk'!AI$5","v":0},{"$f":"'Population at Risk'!AJ155/'Population at Risk'!AJ$5","v":0},{"$f":"'Population at Risk'!AK155/'Population at Risk'!AK$5","v":0},{"$f":"'Population at Risk'!AL155/'Population at Risk'!AL$5","v":0},{"$f":"'Population at Risk'!AM155/'Population at Risk'!AM$5","v":0},{"$f":"'Population at Risk'!AN155/'Population at Risk'!AN$5","v":0},{"$f":"'Population at Risk'!AO155/'Population at Risk'!AO$5","v":0},{"$f":"'Population at Risk'!AP155/'Population at Risk'!AP$5","v":0},{"$f":"'Population at Risk'!AQ155/'Population at Risk'!AQ$5","v":0},{"$f":"'Population at Risk'!AR155/'Population at Risk'!AR$5","v":0},{"$f":"'Population at Risk'!AS155/'Population at Risk'!AS$5","v":0},{"$f":"'Population at Risk'!AT155/'Population at Risk'!AT$5","v":0},{"$f":"'Population at Risk'!AU155/'Population at Risk'!AU$5","v":0},{"$f":"'Population at Risk'!AV155/'Population at Risk'!AV$5","v":0},{"$f":"'Population at Risk'!AW155/'Population at Risk'!AW$5","v":0},{"$f":"'Population at Risk'!AX155/'Population at Risk'!AX$5","v":0},{"$f":"'Population at Risk'!AY155/'Population at Risk'!AY$5","v":0},{"$f":"'Population at Risk'!AZ155/'Population at Risk'!AZ$5","v":0},{"$f":"'Population at Risk'!BA155/'Population at Risk'!BA$5","v":0},{"$f":"'Population at Risk'!BB155/'Population at Risk'!BB$5","v":0},{"$f":"'Population at Risk'!BC155/'Population at Risk'!BC$5","v":0},153]
[null,"Male 5-9",{"$f":"'Population at Risk'!C156/'Population at Risk'!C$5","v":0},{"$f":"'Population at Risk'!D156/'Population at Risk'!D$5","v":0},{"$f":"'Population at Risk'!E156/'Population at Risk'!E$5","v":0},{"$f":"'Population at Risk'!F156/'Population at Risk'!F$5","v":0},{"$f":"'Population at Risk'!G156/'Population at Risk'!G$5","v":0},{"$f":"'Population at Risk'!H156/'Population at Risk'!H$5","v":0},{"$f":"'Population at Risk'!I156/'Population at Risk'!I$5","v":0},{"$f":"'Population at Risk'!J156/'Population at Risk'!J$5","v":0},{"$f":"'Population at Risk'!K156/'Population at Risk'!K$5","v":0},{"$f":"'Population at Risk'!L156/'Population at Risk'!L$5","v":0},{"$f":"'Population at Risk'!M156/'Population at Risk'!M$5","v":0},{"$f":"'Population at Risk'!N156/'Population at Risk'!N$5","v":0},{"$f":"'Population at Risk'!O156/'Population at Risk'!O$5","v":0},{"$f":"'Population at Risk'!P156/'Population at Risk'!P$5","v":0},{"$f":"'Population at Risk'!Q156/'Population at Risk'!Q$5","v":0},{"$f":"'Population at Risk'!R156/'Population at Risk'!R$5","v":0},{"$f":"'Population at Risk'!S156/'Population at Risk'!S$5","v":0},{"$f":"'Population at Risk'!T156/'Population at Risk'!T$5","v":0},{"$f":"'Population at Risk'!U156/'Population at Risk'!U$5","v":0},{"$f":"'Population at Risk'!V156/'Population at Risk'!V$5","v":0},{"$f":"'Population at Risk'!W156/'Population at Risk'!W$5","v":0},{"$f":"'Population at Risk'!X156/'Population at Risk'!X$5","v":0},{"$f":"'Population at Risk'!Y156/'Population at Risk'!Y$5","v":0},{"$f":"'Population at Risk'!Z156/'Population at Risk'!Z$5","v":0},{"$f":"'Population at Risk'!AA156/'Population at Risk'!AA$5","v":0},{"$f":"'Population at Risk'!AB156/'Population at Risk'!AB$5","v":0},{"$f":"'Population at Risk'!AC156/'Population at Risk'!AC$5","v":0},{"$f":"'Population at Risk'!AD156/'Population at Risk'!AD$5","v":0},{"$f":"'Population at Risk'!AE156/'Population at Risk'!AE$5","v":0},{"$f":"'Population at Risk'!AF156/'Population at Risk'!AF$5","v":0},{"$f":"'Population at Risk'!AG156/'Population at Risk'!AG$5","v":0},{"$f":"'Population at Risk'!AH156/'Population at Risk'!AH$5","v":0},{"$f":"'Population at Risk'!AI156/'Population at Risk'!AI$5","v":0},{"$f":"'Population at Risk'!AJ156/'Population at Risk'!AJ$5","v":0},{"$f":"'Population at Risk'!AK156/'Population at Risk'!AK$5","v":0},{"$f":"'Population at Risk'!AL156/'Population at Risk'!AL$5","v":0},{"$f":"'Population at Risk'!AM156/'Population at Risk'!AM$5","v":0},{"$f":"'Population at Risk'!AN156/'Population at Risk'!AN$5","v":0},{"$f":"'Population at Risk'!AO156/'Population at Risk'!AO$5","v":0},{"$f":"'Population at Risk'!AP156/'Population at Risk'!AP$5","v":0},{"$f":"'Population at Risk'!AQ156/'Population at Risk'!AQ$5","v":0},{"$f":"'Population at Risk'!AR156/'Population at Risk'!AR$5","v":0},{"$f":"'Population at Risk'!AS156/'Population at Risk'!AS$5","v":0},{"$f":"'Population at Risk'!AT156/'Population at Risk'!AT$5","v":0},{"$f":"'Population at Risk'!AU156/'Population at Risk'!AU$5","v":0},{"$f":"'Population at Risk'!AV156/'Population at Risk'!AV$5","v":0},{"$f":"'Population at Risk'!AW156/'Population at Risk'!AW$5","v":0},{"$f":"'Population at Risk'!AX156/'Population at Risk'!AX$5","v":0},{"$f":"'Population at Risk'!AY156/'Population at Risk'!AY$5","v":0},{"$f":"'Population at Risk'!AZ156/'Population at Risk'!AZ$5","v":0},{"$f":"'Population at Risk'!BA156/'Population at Risk'!BA$5","v":0},{"$f":"'Population at Risk'!BB156/'Population at Risk'!BB$5","v":0},{"$f":"'Population at Risk'!BC156/'Population at Risk'!BC$5","v":0},154]
[null,"Male 10-15",{"$f":"'Population at Risk'!C157/'Population at Risk'!C$5","v":0},{"$f":"'Population at Risk'!D157/'Population at Risk'!D$5","v":0},{"$f":"'Population at Risk'!E157/'Population at Risk'!E$5","v":0},{"$f":"'Population at Risk'!F157/'Population at Risk'!F$5","v":0},{"$f":"'Population at Risk'!G157/'Population at Risk'!G$5","v":0},{"$f":"'Population at Risk'!H157/'Population at Risk'!H$5","v":0},{"$f":"'Population at Risk'!I157/'Population at Risk'!I$5","v":0},{"$f":"'Population at Risk'!J157/'Population at Risk'!J$5","v":0},{"$f":"'Population at Risk'!K157/'Population at Risk'!K$5","v":0},{"$f":"'Population at Risk'!L157/'Population at Risk'!L$5","v":0},{"$f":"'Population at Risk'!M157/'Population at Risk'!M$5","v":0},{"$f":"'Population at Risk'!N157/'Population at Risk'!N$5","v":0},{"$f":"'Population at Risk'!O157/'Population at Risk'!O$5","v":0},{"$f":"'Population at Risk'!P157/'Population at Risk'!P$5","v":0},{"$f":"'Population at Risk'!Q157/'Population at Risk'!Q$5","v":0},{"$f":"'Population at Risk'!R157/'Population at Risk'!R$5","v":0},{"$f":"'Population at Risk'!S157/'Population at Risk'!S$5","v":0},{"$f":"'Population at Risk'!T157/'Population at Risk'!T$5","v":0},{"$f":"'Population at Risk'!U157/'Population at Risk'!U$5","v":0},{"$f":"'Population at Risk'!V157/'Population at Risk'!V$5","v":0},{"$f":"'Population at Risk'!W157/'Population at Risk'!W$5","v":0},{"$f":"'Population at Risk'!X157/'Population at Risk'!X$5","v":0},{"$f":"'Population at Risk'!Y157/'Population at Risk'!Y$5","v":0},{"$f":"'Population at Risk'!Z157/'Population at Risk'!Z$5","v":0},{"$f":"'Population at Risk'!AA157/'Population at Risk'!AA$5","v":0},{"$f":"'Population at Risk'!AB157/'Population at Risk'!AB$5","v":0},{"$f":"'Population at Risk'!AC157/'Population at Risk'!AC$5","v":0},{"$f":"'Population at Risk'!AD157/'Population at Risk'!AD$5","v":0},{"$f":"'Population at Risk'!AE157/'Population at Risk'!AE$5","v":0},{"$f":"'Population at Risk'!AF157/'Population at Risk'!AF$5","v":0},{"$f":"'Population at Risk'!AG157/'Population at Risk'!AG$5","v":0},{"$f":"'Population at Risk'!AH157/'Population at Risk'!AH$5","v":0},{"$f":"'Population at Risk'!AI157/'Population at Risk'!AI$5","v":0},{"$f":"'Population at Risk'!AJ157/'Population at Risk'!AJ$5","v":0},{"$f":"'Population at Risk'!AK157/'Population at Risk'!AK$5","v":0},{"$f":"'Population at Risk'!AL157/'Population at Risk'!AL$5","v":0},{"$f":"'Population at Risk'!AM157/'Population at Risk'!AM$5","v":0},{"$f":"'Population at Risk'!AN157/'Population at Risk'!AN$5","v":0},{"$f":"'Population at Risk'!AO157/'Population at Risk'!AO$5","v":0},{"$f":"'Population at Risk'!AP157/'Population at Risk'!AP$5","v":0},{"$f":"'Population at Risk'!AQ157/'Population at Risk'!AQ$5","v":0},{"$f":"'Population at Risk'!AR157/'Population at Risk'!AR$5","v":0},{"$f":"'Population at Risk'!AS157/'Population at Risk'!AS$5","v":0},{"$f":"'Population at Risk'!AT157/'Population at Risk'!AT$5","v":0},{"$f":"'Population at Risk'!AU157/'Population at Risk'!AU$5","v":0},{"$f":"'Population at Risk'!AV157/'Population at Risk'!AV$5","v":0},{"$f":"'Population at Risk'!AW157/'Population at Risk'!AW$5","v":0},{"$f":"'Population at Risk'!AX157/'Population at Risk'!AX$5","v":0},{"$f":"'Population at Risk'!AY157/'Population at Risk'!AY$5","v":0},{"$f":"'Population at Risk'!AZ157/'Population at Risk'!AZ$5","v":0},{"$f":"'Population at Risk'!BA157/'Population at Risk'!BA$5","v":0},{"$f":"'Population at Risk'!BB157/'Population at Risk'!BB$5","v":0},{"$f":"'Population at Risk'!BC157/'Population at Risk'!BC$5","v":0},155]
[null,"Male 16-19",{"$f":"'Population at Risk'!C158/'Population at Risk'!C$5","v":3.6058653517422254E-3},{"$f":"'Population at Risk'!D158/'Population at Risk'!D$5","v":5.000778542435835E-3},{"$f":"'Population at Risk'!E158/'Population at Risk'!E$5","v":6.2154161620001603E-3},{"$f":"'Population at Risk'!F158/'Population at Risk'!F$5","v":9.0831641660166444E-3},{"$f":"'Population at Risk'!G158/'Population at Risk'!G$5","v":1.0022034174530708E-2},{"$f":"'Population at Risk'!H158/'Population at Risk'!H$5","v":4.009610876811228E-3},{"$f":"'Population at Risk'!I158/'Population at Risk'!I$5","v":8.0667636414847501E-3},{"$f":"'Population at Risk'!J158/'Population at Risk'!J$5","v":3.6945636909734617E-3},{"$f":"'Population at Risk'!K158/'Population at Risk'!K$5","v":4.3774224582392943E-3},{"$f":"'Population at Risk'!L158/'Population at Risk'!L$5","v":8.0066758371743797E-3},{"$f":"'Population at Risk'!M158/'Population at Risk'!M$5","v":8.0038919464921494E-3},{"$f":"'Population at Risk'!N158/'Population at Risk'!N$5","v":2.8491040602849709E-3},{"$f":"'Population at Risk'!O158/'Population at Risk'!O$5","v":4.0471131804727372E-3},{"$f":"'Population at Risk'!P158/'Population at Risk'!P$5","v":1.7951547817491331E-3},{"$f":"'Population at Risk'!Q158/'Population at Risk'!Q$5","v":6.5261442402122652E-3},{"$f":"'Population at Risk'!R158/'Population at Risk'!R$5","v":3.3633936175065191E-3},{"$f":"'Population at Risk'!S158/'Population at Risk'!S$5","v":4.9213788558606416E-3},{"$f":"'Population at Risk'!T158/'Population at Risk'!T$5","v":3.2985371887718816E-3},{"$f":"'Population at Risk'!U158/'Population at Risk'!U$5","v":1.4577376764093685E-2},{"$f":"'Population at Risk'!V158/'Population at Risk'!V$5","v":4.2776436760319832E-3},{"$f":"'Population at Risk'!W158/'Population at Risk'!W$5","v":4.9025543996607419E-3},{"$f":"'Population at Risk'!X158/'Population at Risk'!X$5","v":4.9020570396524918E-3},{"$f":"'Population at Risk'!Y158/'Population at Risk'!Y$5","v":4.1351369737102012E-3},{"$f":"'Population at Risk'!Z158/'Population at Risk'!Z$5","v":3.4704000824206235E-3},{"$f":"'Population at Risk'!AA158/'Population at Risk'!AA$5","v":4.0794343579212316E-3},{"$f":"'Population at Risk'!AB158/'Population at Risk'!AB$5","v":5.3290994981396471E-3},{"$f":"'Population at Risk'!AC158/'Population at Risk'!AC$5","v":3.5242378484815493E-3},{"$f":"'Population at Risk'!AD158/'Population at Risk'!AD$5","v":8.7088489787437388E-3},{"$f":"'Population at Risk'!AE158/'Population at Risk'!AE$5","v":8.2878122843069793E-3},{"$f":"'Population at Risk'!AF158/'Population at Risk'!AF$5","v":3.5592128283260822E-3},{"$f":"'Population at Risk'!AG158/'Population at Risk'!AG$5","v":8.2878122843069793E-3},{"$f":"'Population at Risk'!AH158/'Population at Risk'!AH$5","v":5.0973530285308016E-3},{"$f":"'Population at Risk'!AI158/'Population at Risk'!AI$5","v":4.4839096248342576E-3},{"$f":"'Population at Risk'!AJ158/'Population at Risk'!AJ$5","v":6.0006565704545595E-3},{"$f":"'Population at Risk'!AK158/'Population at Risk'!AK$5","v":6.8271103106574754E-3},{"$f":"'Population at Risk'!AL158/'Population at Risk'!AL$5","v":2.7700639201435951E-3},{"$f":"'Population at Risk'!AM158/'Population at Risk'!AM$5","v":5.1588733077997757E-3},{"$f":"'Population at Risk'!AN158/'Population at Risk'!AN$5","v":8.0624894354476909E-3},{"$f":"'Population at Risk'!AO158/'Population at Risk'!AO$5","v":8.0564215519806238E-3},{"$f":"'Population at Risk'!AP158/'Population at Risk'!AP$5","v":6.3014103671314133E-3},{"$f":"'Population at Risk'!AQ158/'Population at Risk'!AQ$5","v":5.125759120886972E-3},{"$f":"'Population at Risk'!AR158/'Population at Risk'!AR$5","v":5.04936545910048E-3},{"$f":"'Population at Risk'!AS158/'Population at Risk'!AS$5","v":8.0677865254231377E-3},{"$f":"'Population at Risk'!AT158/'Population at Risk'!AT$5","v":8.9903797890220835E-3},{"$f":"'Population at Risk'!AU158/'Population at Risk'!AU$5","v":8.998329357119186E-3},{"$f":"'Population at Risk'!AV158/'Population at Risk'!AV$5","v":5.5465711114563868E-3},{"$f":"'Population at Risk'!AW158/'Population at Risk'!AW$5","v":5.0074762348964767E-3},{"$f":"'Population at Risk'!AX158/'Population at Risk'!AX$5","v":3.6800057445613779E-3},{"$f":"'Population at Risk'!AY158/'Population at Risk'!AY$5","v":5.4982139195182125E-3},{"$f":"'Population at Risk'!AZ158/'Population at Risk'!AZ$5","v":6.0325218627057661E-3},{"$f":"'Population at Risk'!BA158/'Population at Risk'!BA$5","v":3.0446370402252578E-3},{"$f":"'Population at Risk'!BB158/'Population at Risk'!BB$5","v":5.8572442474981827E-3},{"$f":"'Population at Risk'!BC158/'Population at Risk'!BC$5","v":1.456840575510992E-2},156]
[null,"Male 20-24",{"$f":"'Population at Risk'!C159/'Population at Risk'!C$5","v":1.1767121180160413E-2},{"$f":"'Population at Risk'!D159/'Population at Risk'!D$5","v":9.5503793341494749E-3},{"$f":"'Population at Risk'!E159/'Population at Risk'!E$5","v":7.6431456862258466E-3},{"$f":"'Population at Risk'!F159/'Population at Risk'!F$5","v":9.652703108318228E-3},{"$f":"'Population at Risk'!G159/'Population at Risk'!G$5","v":1.0108112995661646E-2},{"$f":"'Population at Risk'!H159/'Population at Risk'!H$5","v":5.0092368571796782E-3},{"$f":"'Population at Risk'!I159/'Population at Risk'!I$5","v":9.5297535210487356E-3},{"$f":"'Population at Risk'!J159/'Population at Risk'!J$5","v":6.718044524016197E-3},{"$f":"'Population at Risk'!K159/'Population at Risk'!K$5","v":5.9105289413092779E-3},{"$f":"'Population at Risk'!L159/'Population at Risk'!L$5","v":9.1599553037872462E-3},{"$f":"'Population at Risk'!M159/'Population at Risk'!M$5","v":9.1567704222286009E-3},{"$f":"'Population at Risk'!N159/'Population at Risk'!N$5","v":5.5810213211751874E-3},{"$f":"'Population at Risk'!O159/'Population at Risk'!O$5","v":5.4744821301448421E-3},{"$f":"'Population at Risk'!P159/'Population at Risk'!P$5","v":2.4795575422909902E-3},{"$f":"'Population at Risk'!Q159/'Population at Risk'!Q$5","v":8.0312046366953268E-3},{"$f":"'Population at Risk'!R159/'Population at Risk'!R$5","v":4.4571801597850617E-3},{"$f":"'Population at Risk'!S159/'Population at Risk'!S$5","v":8.2747362668904381E-3},{"$f":"'Population at Risk'!T159/'Population at Risk'!T$5","v":9.2464715245893711E-3},{"$f":"'Population at Risk'!U159/'Population at Risk'!U$5","v":1.7102591636613849E-2},{"$f":"'Population at Risk'!V159/'Population at Risk'!V$5","v":5.6716361838762717E-3},{"$f":"'Population at Risk'!W159/'Population at Risk'!W$5","v":6.7883799748925614E-3},{"$f":"'Population at Risk'!X159/'Population at Risk'!X$5","v":6.7876912994705094E-3},{"$f":"'Population at Risk'!Y159/'Population at Risk'!Y$5","v":6.3989246139751011E-3},{"$f":"'Population at Risk'!Z159/'Population at Risk'!Z$5","v":7.9984780867474355E-3},{"$f":"'Population at Risk'!AA159/'Population at Risk'!AA$5","v":6.428460472973855E-3},{"$f":"'Population at Risk'!AB159/'Population at Risk'!AB$5","v":9.317071796996642E-3},{"$f":"'Population at Risk'!AC159/'Population at Risk'!AC$5","v":6.4741970242009781E-3},{"$f":"'Population at Risk'!AD159/'Population at Risk'!AD$5","v":9.0321715156791351E-3},{"$f":"'Population at Risk'!AE159/'Population at Risk'!AE$5","v":8.7095589449285183E-3},{"$f":"'Population at Risk'!AF159/'Population at Risk'!AF$5","v":5.284062122053337E-3},{"$f":"'Population at Risk'!AG159/'Population at Risk'!AG$5","v":8.7095589449285183E-3},{"$f":"'Population at Risk'!AH159/'Population at Risk'!AH$5","v":6.2818740044559632E-3},{"$f":"'Population at Risk'!AI159/'Population at Risk'!AI$5","v":8.8155301050890748E-3},{"$f":"'Population at Risk'!AJ159/'Population at Risk'!AJ$5","v":8.7242555478210717E-3},{"$f":"'Population at Risk'!AK159/'Population at Risk'!AK$5","v":8.2734281143515189E-3},{"$f":"'Population at Risk'!AL159/'Population at Risk'!AL$5","v":3.8187826366470447E-3},{"$f":"'Population at Risk'!AM159/'Population at Risk'!AM$5","v":6.0574262242221984E-3},{"$f":"'Population at Risk'!AN159/'Population at Risk'!AN$5","v":9.6749873225372273E-3},{"$f":"'Population at Risk'!AO159/'Population at Risk'!AO$5","v":9.6677058623767485E-3},{"$f":"'Population at Risk'!AP159/'Population at Risk'!AP$5","v":8.355029854808689E-3},{"$f":"'Population at Risk'!AQ159/'Population at Risk'!AQ$5","v":5.6415998477023482E-3},{"$f":"'Population at Risk'!AR159/'Population at Risk'!AR$5","v":7.5009476266242941E-3},{"$f":"'Population at Risk'!AS159/'Population at Risk'!AS$5","v":9.530961915424312E-3},{"$f":"'Population at Risk'!AT159/'Population at Risk'!AT$5","v":1.2328125578958427E-2},{"$f":"'Population at Risk'!AU159/'Population at Risk'!AU$5","v":1.2339026483714334E-2},{"$f":"'Population at Risk'!AV159/'Population at Risk'!AV$5","v":6.0211938072353725E-3},{"$f":"'Population at Risk'!AW159/'Population at Risk'!AW$5","v":6.4853898154641825E-3},{"$f":"'Population at Risk'!AX159/'Population at Risk'!AX$5","v":7.9587920848479977E-3},{"$f":"'Population at Risk'!AY159/'Population at Risk'!AY$5","v":7.4357629602592084E-3},{"$f":"'Population at Risk'!AZ159/'Population at Risk'!AZ$5","v":8.0063880450338219E-3},{"$f":"'Population at Risk'!BA159/'Population at Risk'!BA$5","v":4.5264375769128364E-3},{"$f":"'Population at Risk'!BB159/'Population at Risk'!BB$5","v":8.1483431878461108E-3},{"$f":"'Population at Risk'!BC159/'Population at Risk'!BC$5","v":1.7092066594577779E-2},157]
[null,"Male 25-29",{"$f":"'Population at Risk'!C160/'Population at Risk'!C$5","v":1.2289283615158715E-2},{"$f":"'Population at Risk'!D160/'Population at Risk'!D$5","v":8.7777737372036133E-3},{"$f":"'Population at Risk'!E160/'Population at Risk'!E$5","v":5.7481957060932284E-3},{"$f":"'Population at Risk'!F160/'Population at Risk'!F$5","v":7.2220458306122776E-3},{"$f":"'Population at Risk'!G160/'Population at Risk'!G$5","v":7.6677837322945436E-3},{"$f":"'Population at Risk'!H160/'Population at Risk'!H$5","v":3.7409313866026859E-3},{"$f":"'Population at Risk'!I160/'Population at Risk'!I$5","v":7.420820583468807E-3},{"$f":"'Population at Risk'!J160/'Population at Risk'!J$5","v":4.7545381396873216E-3},{"$f":"'Population at Risk'!K160/'Population at Risk'!K$5","v":3.8703206892487193E-3},{"$f":"'Population at Risk'!L160/'Population at Risk'!L$5","v":7.3343974558615441E-3},{"$f":"'Population at Risk'!M160/'Population at Risk'!M$5","v":7.3318473138110369E-3},{"$f":"'Population at Risk'!N160/'Population at Risk'!N$5","v":5.5346278440372779E-3},{"$f":"'Population at Risk'!O160/'Population at Risk'!O$5","v":4.5994448674188506E-3},{"$f":"'Population at Risk'!P160/'Population at Risk'!P$5","v":1.9638062108125963E-3},{"$f":"'Population at Risk'!Q160/'Population at Risk'!Q$5","v":6.3538165925583799E-3},{"$f":"'Population at Risk'!R160/'Population at Risk'!R$5","v":2.8993223676881947E-3},{"$f":"'Population at Risk'!S160/'Population at Risk'!S$5","v":7.8693508209180738E-3},{"$f":"'Population at Risk'!T160/'Population at Risk'!T$5","v":1.07238694782781E-2},{"$f":"'Population at Risk'!U160/'Population at Risk'!U$5","v":1.3232734576931719E-2},{"$f":"'Population at Risk'!V160/'Population at Risk'!V$5","v":4.4449117491747389E-3},{"$f":"'Population at Risk'!W160/'Population at Risk'!W$5","v":5.6899908126539066E-3},{"$f":"'Population at Risk'!X160/'Population at Risk'!X$5","v":5.689413567885806E-3},{"$f":"'Population at Risk'!Y160/'Population at Risk'!Y$5","v":4.75784847849551E-3},{"$f":"'Population at Risk'!Z160/'Population at Risk'!Z$5","v":6.92549168141658E-3},{"$f":"'Population at Risk'!AA160/'Population at Risk'!AA$5","v":5.3614163260207832E-3},{"$f":"'Population at Risk'!AB160/'Population at Risk'!AB$5","v":8.469761456912861E-3},{"$f":"'Population at Risk'!AC160/'Population at Risk'!AC$5","v":5.5456228738574274E-3},{"$f":"'Population at Risk'!AD160/'Population at Risk'!AD$5","v":7.3782180886899171E-3},{"$f":"'Population at Risk'!AE160/'Population at Risk'!AE$5","v":7.3497149771983251E-3},{"$f":"'Population at Risk'!AF160/'Population at Risk'!AF$5","v":4.1931014530827157E-3},{"$f":"'Population at Risk'!AG160/'Population at Risk'!AG$5","v":7.3497149771983251E-3},{"$f":"'Population at Risk'!AH160/'Population at Risk'!AH$5","v":4.9614136367319983E-3},{"$f":"'Population at Risk'!AI160/'Population at Risk'!AI$5","v":8.9875023172921002E-3},{"$f":"'Population at Risk'!AJ160/'Population at Risk'!AJ$5","v":6.9615070657599925E-3},{"$f":"'Population at Risk'!AK160/'Population at Risk'!AK$5","v":7.0858481095159445E-3},{"$f":"'Population at Risk'!AL160/'Population at Risk'!AL$5","v":2.5683655991736278E-3},{"$f":"'Population at Risk'!AM160/'Population at Risk'!AM$5","v":4.828728371576608E-3},{"$f":"'Population at Risk'!AN160/'Population at Risk'!AN$5","v":9.1817891215292477E-3},{"$f":"'Population at Risk'!AO160/'Population at Risk'!AO$5","v":9.174878845633113E-3},{"$f":"'Population at Risk'!AP160/'Population at Risk'!AP$5","v":5.6705919989559926E-3},{"$f":"'Population at Risk'!AQ160/'Population at Risk'!AQ$5","v":5.033121179103435E-3},{"$f":"'Population at Risk'!AR160/'Population at Risk'!AR$5","v":6.4361391354054885E-3},{"$f":"'Population at Risk'!AS160/'Population at Risk'!AS$5","v":7.4217615603613804E-3},{"$f":"'Population at Risk'!AT160/'Population at Risk'!AT$5","v":9.150952759765978E-3},{"$f":"'Population at Risk'!AU160/'Population at Risk'!AU$5","v":9.1590443113827354E-3},{"$f":"'Population at Risk'!AV160/'Population at Risk'!AV$5","v":4.3150248499334706E-3},{"$f":"'Population at Risk'!AW160/'Population at Risk'!AW$5","v":5.0754860654561324E-3},{"$f":"'Population at Risk'!AX160/'Population at Risk'!AX$5","v":5.8260316608569037E-3},{"$f":"'Population at Risk'!AY160/'Population at Risk'!AY$5","v":6.0256631155752704E-3},{"$f":"'Population at Risk'!AZ160/'Population at Risk'!AZ$5","v":6.3065556478620836E-3},{"$f":"'Population at Risk'!BA160/'Population at Risk'!BA$5","v":4.2376239231370714E-3},{"$f":"'Population at Risk'!BB160/'Population at Risk'!BB$5","v":6.7282886209768253E-3},{"$f":"'Population at Risk'!BC160/'Population at Risk'!BC$5","v":1.3224591069173732E-2},158]
[null,"Male 30-34",{"$f":"'Population at Risk'!C161/'Population at Risk'!C$5","v":9.3186789598790273E-3},{"$f":"'Population at Risk'!D161/'Population at Risk'!D$5","v":7.5842147597283754E-3},{"$f":"'Population at Risk'!E161/'Population at Risk'!E$5","v":6.0920685659112128E-3},{"$f":"'Population at Risk'!F161/'Population at Risk'!F$5","v":8.0731564948606348E-3},{"$f":"'Population at Risk'!G161/'Population at Risk'!G$5","v":7.2642161674369363E-3},{"$f":"'Population at Risk'!H161/'Population at Risk'!H$5","v":3.4839029965175543E-3},{"$f":"'Population at Risk'!I161/'Population at Risk'!I$5","v":7.5661592354491873E-3},{"$f":"'Population at Risk'!J161/'Population at Risk'!J$5","v":3.9772956340934813E-3},{"$f":"'Population at Risk'!K161/'Population at Risk'!K$5","v":3.7345199633101673E-3},{"$f":"'Population at Risk'!L161/'Population at Risk'!L$5","v":6.877043393975121E-3},{"$f":"'Population at Risk'!M161/'Population at Risk'!M$5","v":6.8746522721893607E-3},{"$f":"'Population at Risk'!N161/'Population at Risk'!N$5","v":4.5361760503468121E-3},{"$f":"'Population at Risk'!O161/'Population at Risk'!O$5","v":3.8963450150745677E-3},{"$f":"'Population at Risk'!P161/'Population at Risk'!P$5","v":1.6900063064204554E-3},{"$f":"'Population at Risk'!Q161/'Population at Risk'!Q$5","v":5.5875271542598819E-3},{"$f":"'Population at Risk'!R161/'Population at Risk'!R$5","v":2.9223328626698472E-3},{"$f":"'Population at Risk'!S161/'Population at Risk'!S$5","v":7.4106894326216016E-3},{"$f":"'Population at Risk'!T161/'Population at Risk'!T$5","v":9.4916301818599638E-3},{"$f":"'Population at Risk'!U161/'Population at Risk'!U$5","v":1.4456199087694261E-2},{"$f":"'Population at Risk'!V161/'Population at Risk'!V$5","v":4.4564121676719578E-3},{"$f":"'Population at Risk'!W161/'Population at Risk'!W$5","v":5.6426572638621272E-3},{"$f":"'Population at Risk'!X161/'Population at Risk'!X$5","v":5.6420848210426231E-3},{"$f":"'Population at Risk'!Y161/'Population at Risk'!Y$5","v":4.3725728304939452E-3},{"$f":"'Population at Risk'!Z161/'Population at Risk'!Z$5","v":6.3866369601566983E-3},{"$f":"'Population at Risk'!AA161/'Population at Risk'!AA$5","v":5.2869019016460123E-3},{"$f":"'Population at Risk'!AB161/'Population at Risk'!AB$5","v":7.6875935123430729E-3},{"$f":"'Population at Risk'!AC161/'Population at Risk'!AC$5","v":5.1757047996716489E-3},{"$f":"'Population at Risk'!AD161/'Population at Risk'!AD$5","v":7.7614641511872919E-3},{"$f":"'Population at Risk'!AE161/'Population at Risk'!AE$5","v":8.0512599216810404E-3},{"$f":"'Population at Risk'!AF161/'Population at Risk'!AF$5","v":3.7208015641365857E-3},{"$f":"'Population at Risk'!AG161/'Population at Risk'!AG$5","v":8.0512599216810404E-3},{"$f":"'Population at Risk'!AH161/'Population at Risk'!AH$5","v":5.4493233940697454E-3},{"$f":"'Population at Risk'!AI161/'Population at Risk'!AI$5","v":8.243984167556475E-3},{"$f":"'Population at Risk'!AJ161/'Population at Risk'!AJ$5","v":6.9492508913484435E-3},{"$f":"'Population at Risk'!AK161/'Population at Risk'!AK$5","v":8.1688379952498235E-3},{"$f":"'Population at Risk'!AL161/'Population at Risk'!AL$5","v":2.397952715816136E-3},{"$f":"'Population at Risk'!AM161/'Population at Risk'!AM$5","v":5.6257313011052737E-3},{"$f":"'Population at Risk'!AN161/'Population at Risk'!AN$5","v":7.9153354495941786E-3},{"$f":"'Population at Risk'!AO161/'Population at Risk'!AO$5","v":7.909378315200959E-3},{"$f":"'Population at Risk'!AP161/'Population at Risk'!AP$5","v":6.3276710254862346E-3},{"$f":"'Population at Risk'!AQ161/'Population at Risk'!AQ$5","v":5.2199400874981036E-3},{"$f":"'Population at Risk'!AR161/'Population at Risk'!AR$5","v":6.2038722333848731E-3},{"$f":"'Population at Risk'!AS161/'Population at Risk'!AS$5","v":7.5671186416126981E-3},{"$f":"'Population at Risk'!AT161/'Population at Risk'!AT$5","v":1.005698768647548E-2},{"$f":"'Population at Risk'!AU161/'Population at Risk'!AU$5","v":1.006588038181667E-2},{"$f":"'Population at Risk'!AV161/'Population at Risk'!AV$5","v":4.4246625049227063E-3},{"$f":"'Population at Risk'!AW161/'Population at Risk'!AW$5","v":5.2374371560456419E-3},{"$f":"'Population at Risk'!AX161/'Population at Risk'!AX$5","v":4.5663491395905465E-3},{"$f":"'Population at Risk'!AY161/'Population at Risk'!AY$5","v":6.052612615177355E-3},{"$f":"'Population at Risk'!AZ161/'Population at Risk'!AZ$5","v":6.4046842177149657E-3},{"$f":"'Population at Risk'!BA161/'Population at Risk'!BA$5","v":3.6823490642432484E-3},{"$f":"'Population at Risk'!BB161/'Population at Risk'!BB$5","v":6.9518198043979828E-3},{"$f":"'Population at Risk'!BC161/'Population at Risk'!BC$5","v":1.4447302652211693E-2},159]
[null,"Male 35-39",{"$f":"'Population at Risk'!C162/'Population at Risk'!C$5","v":7.4720732652756557E-3},{"$f":"'Population at Risk'!D162/'Population at Risk'!D$5","v":7.1118674926346501E-3},{"$f":"'Population at Risk'!E162/'Population at Risk'!E$5","v":6.8092699939012839E-3},{"$f":"'Population at Risk'!F162/'Population at Risk'!F$5","v":8.8388334878972026E-3},{"$f":"'Population at Risk'!G162/'Population at Risk'!G$5","v":9.019813038094281E-3},{"$f":"'Population at Risk'!H162/'Population at Risk'!H$5","v":4.1199922470738139E-3},{"$f":"'Population at Risk'!I162/'Population at Risk'!I$5","v":7.8965675125641302E-3},{"$f":"'Population at Risk'!J162/'Population at Risk'!J$5","v":4.3122236037824368E-3},{"$f":"'Population at Risk'!K162/'Population at Risk'!K$5","v":4.1685474546874031E-3},{"$f":"'Population at Risk'!L162/'Population at Risk'!L$5","v":7.0580443583267618E-3},{"$f":"'Population at Risk'!M162/'Population at Risk'!M$5","v":7.0555903031953313E-3},{"$f":"'Population at Risk'!N162/'Population at Risk'!N$5","v":3.5996947975466542E-3},{"$f":"'Population at Risk'!O162/'Population at Risk'!O$5","v":4.8446970918845462E-3},{"$f":"'Population at Risk'!P162/'Population at Risk'!P$5","v":1.6501067927194746E-3},{"$f":"'Population at Risk'!Q162/'Population at Risk'!Q$5","v":6.3573156310894208E-3},{"$f":"'Population at Risk'!R162/'Population at Risk'!R$5","v":3.3471207845828504E-3},{"$f":"'Population at Risk'!S162/'Population at Risk'!S$5","v":7.2789392263255624E-3},{"$f":"'Population at Risk'!T162/'Population at Risk'!T$5","v":8.0050453949287448E-3},{"$f":"'Population at Risk'!U162/'Population at Risk'!U$5","v":1.7629201811758217E-2},{"$f":"'Population at Risk'!V162/'Population at Risk'!V$5","v":5.9535933620323772E-3},{"$f":"'Population at Risk'!W162/'Population at Risk'!W$5","v":6.1507677238194468E-3},{"$f":"'Population at Risk'!X162/'Population at Risk'!X$5","v":6.1501437336224001E-3},{"$f":"'Population at Risk'!Y162/'Population at Risk'!Y$5","v":5.3373745959042537E-3},{"$f":"'Population at Risk'!Z162/'Population at Risk'!Z$5","v":5.41645695400791E-3},{"$f":"'Population at Risk'!AA162/'Population at Risk'!AA$5","v":5.2654821944680755E-3},{"$f":"'Population at Risk'!AB162/'Population at Risk'!AB$5","v":7.3151134530907115E-3},{"$f":"'Population at Risk'!AC162/'Population at Risk'!AC$5","v":4.6795687594417329E-3},{"$f":"'Population at Risk'!AD162/'Population at Risk'!AD$5","v":8.964082520574769E-3},{"$f":"'Population at Risk'!AE162/'Population at Risk'!AE$5","v":9.047527232647283E-3},{"$f":"'Population at Risk'!AF162/'Population at Risk'!AF$5","v":4.4216374751897079E-3},{"$f":"'Population at Risk'!AG162/'Population at Risk'!AG$5","v":9.047527232647283E-3},{"$f":"'Population at Risk'!AH162/'Population at Risk'!AH$5","v":6.3308125955461878E-3},{"$f":"'Population at Risk'!AI162/'Population at Risk'!AI$5","v":7.7364102699590811E-3},{"$f":"'Population at Risk'!AJ162/'Population at Risk'!AJ$5","v":7.9446033570863845E-3},{"$f":"'Population at Risk'!AK162/'Population at Risk'!AK$5","v":8.2488436081391628E-3},{"$f":"'Population at Risk'!AL162/'Population at Risk'!AL$5","v":2.807373002972595E-3},{"$f":"'Population at Risk'!AM162/'Population at Risk'!AM$5","v":6.8204158569690806E-3},{"$f":"'Population at Risk'!AN162/'Population at Risk'!AN$5","v":8.1052415408114451E-3},{"$f":"'Population at Risk'!AO162/'Population at Risk'!AO$5","v":8.0991414818239772E-3},{"$f":"'Population at Risk'!AP162/'Population at Risk'!AP$5","v":6.8468084618579002E-3},{"$f":"'Population at Risk'!AQ162/'Population at Risk'!AQ$5","v":5.0508283298688825E-3},{"$f":"'Population at Risk'!AR162/'Population at Risk'!AR$5","v":6.340331890111398E-3},{"$f":"'Population at Risk'!AS162/'Population at Risk'!AS$5","v":7.8975688152470858E-3},{"$f":"'Population at Risk'!AT162/'Population at Risk'!AT$5","v":1.1275015119625528E-2},{"$f":"'Population at Risk'!AU162/'Population at Risk'!AU$5","v":1.1284984831983929E-2},{"$f":"'Population at Risk'!AV162/'Population at Risk'!AV$5","v":5.0156813412724531E-3},{"$f":"'Population at Risk'!AW162/'Population at Risk'!AW$5","v":5.7867062722812418E-3},{"$f":"'Population at Risk'!AX162/'Population at Risk'!AX$5","v":4.8769557886699207E-3},{"$f":"'Population at Risk'!AY162/'Population at Risk'!AY$5","v":6.3266173733514163E-3},{"$f":"'Population at Risk'!AZ162/'Population at Risk'!AZ$5","v":6.4518878957790099E-3},{"$f":"'Population at Risk'!BA162/'Population at Risk'!BA$5","v":3.577592812325042E-3},{"$f":"'Population at Risk'!BB162/'Population at Risk'!BB$5","v":7.6713108010348285E-3},{"$f":"'Population at Risk'!BC162/'Population at Risk'!BC$5","v":1.7618352690521293E-2},160]
[null,"Male 40-44",{"$f":"'Population at Risk'!C163/'Population at Risk'!C$5","v":5.7640158788011759E-3},{"$f":"'Population at Risk'!D163/'Population at Risk'!D$5","v":6.6918951194840188E-3},{"$f":"'Population at Risk'!E163/'Population at Risk'!E$5","v":7.5042851381063808E-3},{"$f":"'Population at Risk'!F163/'Population at Risk'!F$5","v":1.038357274276238E-2},{"$f":"'Population at Risk'!G163/'Population at Risk'!G$5","v":1.0794014841272726E-2},{"$f":"'Population at Risk'!H163/'Population at Risk'!H$5","v":4.6007441654902061E-3},{"$f":"'Population at Risk'!I163/'Population at Risk'!I$5","v":1.0383749854844809E-2},{"$f":"'Population at Risk'!J163/'Population at Risk'!J$5","v":4.8159880434766461E-3},{"$f":"'Population at Risk'!K163/'Population at Risk'!K$5","v":5.4829543097690168E-3},{"$f":"'Population at Risk'!L163/'Population at Risk'!L$5","v":8.4338694386649343E-3},{"$f":"'Population at Risk'!M163/'Population at Risk'!M$5","v":8.43093701439512E-3},{"$f":"'Population at Risk'!N163/'Population at Risk'!N$5","v":3.258814608385039E-3},{"$f":"'Population at Risk'!O163/'Population at Risk'!O$5","v":4.9338135935747297E-3},{"$f":"'Population at Risk'!P163/'Population at Risk'!P$5","v":1.9634182090586152E-3},{"$f":"'Population at Risk'!Q163/'Population at Risk'!Q$5","v":8.2527375136920086E-3},{"$f":"'Population at Risk'!R163/'Population at Risk'!R$5","v":3.3725741745796772E-3},{"$f":"'Population at Risk'!S163/'Population at Risk'!S$5","v":7.1449054380414382E-3},{"$f":"'Population at Risk'!T163/'Population at Risk'!T$5","v":5.9838768238861745E-3},{"$f":"'Population at Risk'!U163/'Population at Risk'!U$5","v":2.001537660244064E-2},{"$f":"'Population at Risk'!V163/'Population at Risk'!V$5","v":6.0680855420714623E-3},{"$f":"'Population at Risk'!W163/'Population at Risk'!W$5","v":6.5723929306941665E-3},{"$f":"'Population at Risk'!X163/'Population at Risk'!X$5","v":6.5717261669755497E-3},{"$f":"'Population at Risk'!Y163/'Population at Risk'!Y$5","v":5.6519346956628693E-3},{"$f":"'Population at Risk'!Z163/'Population at Risk'!Z$5","v":3.9302340093106177E-3},{"$f":"'Population at Risk'!AA163/'Population at Risk'!AA$5","v":4.8556457718961499E-3},{"$f":"'Population at Risk'!AB163/'Population at Risk'!AB$5","v":7.1400121735883991E-3},{"$f":"'Population at Risk'!AC163/'Population at Risk'!AC$5","v":3.963050603344888E-3},{"$f":"'Population at Risk'!AD163/'Population at Risk'!AD$5","v":9.3524182254372135E-3},{"$f":"'Population at Risk'!AE163/'Population at Risk'!AE$5","v":8.8877575791948844E-3},{"$f":"'Population at Risk'!AF163/'Population at Risk'!AF$5","v":4.4471224174098215E-3},{"$f":"'Population at Risk'!AG163/'Population at Risk'!AG$5","v":8.8877575791948844E-3},{"$f":"'Population at Risk'!AH163/'Population at Risk'!AH$5","v":6.5079561488211469E-3},{"$f":"'Population at Risk'!AI163/'Population at Risk'!AI$5","v":6.9621005817470999E-3},{"$f":"'Population at Risk'!AJ163/'Population at Risk'!AJ$5","v":8.6766999121762577E-3},{"$f":"'Population at Risk'!AK163/'Population at Risk'!AK$5","v":9.1843971017317103E-3},{"$f":"'Population at Risk'!AL163/'Population at Risk'!AL$5","v":3.467139320217953E-3},{"$f":"'Population at Risk'!AM163/'Population at Risk'!AM$5","v":6.7848928577140324E-3},{"$f":"'Population at Risk'!AN163/'Population at Risk'!AN$5","v":8.3053709615722223E-3},{"$f":"'Population at Risk'!AO163/'Population at Risk'!AO$5","v":8.2991202838443232E-3},{"$f":"'Population at Risk'!AP163/'Population at Risk'!AP$5","v":6.7087093527546096E-3},{"$f":"'Population at Risk'!AQ163/'Population at Risk'!AQ$5","v":5.1480765287592592E-3},{"$f":"'Population at Risk'!AR163/'Population at Risk'!AR$5","v":6.3054676912592837E-3},{"$f":"'Population at Risk'!AS163/'Population at Risk'!AS$5","v":1.0385066537893773E-2},{"$f":"'Population at Risk'!AT163/'Population at Risk'!AT$5","v":1.1024459228078293E-2},{"$f":"'Population at Risk'!AU163/'Population at Risk'!AU$5","v":1.1034207391273176E-2},{"$f":"'Population at Risk'!AV163/'Population at Risk'!AV$5","v":5.6827063210271667E-3},{"$f":"'Population at Risk'!AW163/'Population at Risk'!AW$5","v":6.1855563541324023E-3},{"$f":"'Population at Risk'!AX163/'Population at Risk'!AX$5","v":4.9350147861540869E-3},{"$f":"'Population at Risk'!AY163/'Population at Risk'!AY$5","v":6.6694390044197208E-3},{"$f":"'Population at Risk'!AZ163/'Population at Risk'!AZ$5","v":6.71663503963535E-3},{"$f":"'Population at Risk'!BA163/'Population at Risk'!BA$5","v":4.3534563137931238E-3},{"$f":"'Population at Risk'!BB163/'Population at Risk'!BB$5","v":8.0978381541947017E-3},{"$f":"'Population at Risk'!BC163/'Population at Risk'!BC$5","v":2.0003059014288824E-2},161]
[null,"Male 45-49",{"$f":"'Population at Risk'!C164/'Population at Risk'!C$5","v":5.8769294763384257E-3},{"$f":"'Population at Risk'!D164/'Population at Risk'!D$5","v":7.9681545761421807E-3},{"$f":"'Population at Risk'!E164/'Population at Risk'!E$5","v":9.789734067243365E-3},{"$f":"'Population at Risk'!F164/'Population at Risk'!F$5","v":1.2968712435554506E-2},{"$f":"'Population at Risk'!G164/'Population at Risk'!G$5","v":1.4851520277340222E-2},{"$f":"'Population at Risk'!H164/'Population at Risk'!H$5","v":6.1549176998094545E-3},{"$f":"'Population at Risk'!I164/'Population at Risk'!I$5","v":1.3329492625674382E-2},{"$f":"'Population at Risk'!J164/'Population at Risk'!J$5","v":6.1443665220412055E-3},{"$f":"'Population at Risk'!K164/'Population at Risk'!K$5","v":7.20569348462477E-3},{"$f":"'Population at Risk'!L164/'Population at Risk'!L$5","v":1.2068195365872916E-2},{"$f":"'Population at Risk'!M164/'Population at Risk'!M$5","v":1.2063999300325409E-2},{"$f":"'Population at Risk'!N164/'Population at Risk'!N$5","v":3.5425155757238176E-3},{"$f":"'Population at Risk'!O164/'Population at Risk'!O$5","v":6.7051827742293504E-3},{"$f":"'Population at Risk'!P164/'Population at Risk'!P$5","v":2.5562848891406064E-3},{"$f":"'Population at Risk'!Q164/'Population at Risk'!Q$5","v":9.792569605577315E-3},{"$f":"'Population at Risk'!R164/'Population at Risk'!R$5","v":4.0258515834765895E-3},{"$f":"'Population at Risk'!S164/'Population at Risk'!S$5","v":8.0951835868036184E-3},{"$f":"'Population at Risk'!T164/'Population at Risk'!T$5","v":5.4410415668230032E-3},{"$f":"'Population at Risk'!U164/'Population at Risk'!U$5","v":2.7887956144972626E-2},{"$f":"'Population at Risk'!V164/'Population at Risk'!V$5","v":7.6525045000323576E-3},{"$f":"'Population at Risk'!W164/'Population at Risk'!W$5","v":8.1370107232183984E-3},{"$f":"'Population at Risk'!X164/'Population at Risk'!X$5","v":8.1361852303445774E-3},{"$f":"'Population at Risk'!Y164/'Population at Risk'!Y$5","v":7.1633918386722695E-3},{"$f":"'Population at Risk'!Z164/'Population at Risk'!Z$5","v":4.2442575530469602E-3},{"$f":"'Population at Risk'!AA164/'Population at Risk'!AA$5","v":5.8143331723120445E-3},{"$f":"'Population at Risk'!AB164/'Population at Risk'!AB$5","v":8.6145620196453523E-3},{"$f":"'Population at Risk'!AC164/'Population at Risk'!AC$5","v":4.6367117397714194E-3},{"$f":"'Population at Risk'!AD164/'Population at Risk'!AD$5","v":1.275080649713012E-2},{"$f":"'Population at Risk'!AE164/'Population at Risk'!AE$5","v":1.206335079999105E-2},{"$f":"'Population at Risk'!AF164/'Population at Risk'!AF$5","v":5.3127819950196569E-3},{"$f":"'Population at Risk'!AG164/'Population at Risk'!AG$5","v":1.206335079999105E-2},{"$f":"'Population at Risk'!AH164/'Population at Risk'!AH$5","v":7.9997528406930054E-3},{"$f":"'Population at Risk'!AI164/'Population at Risk'!AI$5","v":7.3317149723429297E-3},{"$f":"'Population at Risk'!AJ164/'Population at Risk'!AJ$5","v":1.0447339355844774E-2},{"$f":"'Population at Risk'!AK164/'Population at Risk'!AK$5","v":1.1560899368925948E-2},{"$f":"'Population at Risk'!AL164/'Population at Risk'!AL$5","v":4.7061552022123407E-3},{"$f":"'Population at Risk'!AM164/'Population at Risk'!AM$5","v":7.8742981616342321E-3},{"$f":"'Population at Risk'!AN164/'Population at Risk'!AN$5","v":1.12084867540633E-2},{"$f":"'Population at Risk'!AO164/'Population at Risk'!AO$5","v":1.1200051171975371E-2},{"$f":"'Population at Risk'!AP164/'Population at Risk'!AP$5","v":9.0988568144647567E-3},{"$f":"'Population at Risk'!AQ164/'Population at Risk'!AQ$5","v":6.9089877524362063E-3},{"$f":"'Population at Risk'!AR164/'Population at Risk'!AR$5","v":7.7354542565897435E-3},{"$f":"'Population at Risk'!AS164/'Population at Risk'!AS$5","v":1.3331182835592464E-2},{"$f":"'Population at Risk'!AT164/'Population at Risk'!AT$5","v":1.3668871098928208E-2},{"$f":"'Population at Risk'!AU164/'Population at Risk'!AU$5","v":1.3680957531777701E-2},{"$f":"'Population at Risk'!AV164/'Population at Risk'!AV$5","v":7.4032236504962034E-3},{"$f":"'Population at Risk'!AW164/'Population at Risk'!AW$5","v":8.0910664397775157E-3},{"$f":"'Population at Risk'!AX164/'Population at Risk'!AX$5","v":6.1661171817239055E-3},{"$f":"'Population at Risk'!AY164/'Population at Risk'!AY$5","v":8.3239931285733187E-3},{"$f":"'Population at Risk'!AZ164/'Population at Risk'!AZ$5","v":8.4461715745574109E-3},{"$f":"'Population at Risk'!BA164/'Population at Risk'!BA$5","v":5.5210548184534249E-3},{"$f":"'Population at Risk'!BB164/'Population at Risk'!BB$5","v":9.6232279636624552E-3},{"$f":"'Population at Risk'!BC164/'Population at Risk'!BC$5","v":2.7870793722050844E-2},162]
[null,"Male 50-54",{"$f":"'Population at Risk'!C165/'Population at Risk'!C$5","v":6.0062781633774542E-3},{"$f":"'Population at Risk'!D165/'Population at Risk'!D$5","v":7.9785875117574252E-3},{"$f":"'Population at Risk'!E165/'Population at Risk'!E$5","v":9.6971942924783793E-3},{"$f":"'Population at Risk'!F165/'Population at Risk'!F$5","v":1.5092244296347056E-2},{"$f":"'Population at Risk'!G165/'Population at Risk'!G$5","v":1.6608534666665845E-2},{"$f":"'Population at Risk'!H165/'Population at Risk'!H$5","v":6.8840717130272998E-3},{"$f":"'Population at Risk'!I165/'Population at Risk'!I$5","v":1.5310771146929884E-2},{"$f":"'Population at Risk'!J165/'Population at Risk'!J$5","v":6.5902162469965754E-3},{"$f":"'Population at Risk'!K165/'Population at Risk'!K$5","v":7.4004419571821961E-3},{"$f":"'Population at Risk'!L165/'Population at Risk'!L$5","v":1.4039035330183022E-2},{"$f":"'Population at Risk'!M165/'Population at Risk'!M$5","v":1.4034154011089052E-2},{"$f":"'Population at Risk'!N165/'Population at Risk'!N$5","v":4.5395109772748323E-3},{"$f":"'Population at Risk'!O165/'Population at Risk'!O$5","v":7.6042486349342884E-3},{"$f":"'Population at Risk'!P165/'Population at Risk'!P$5","v":2.6212751829323166E-3},{"$f":"'Population at Risk'!Q165/'Population at Risk'!Q$5","v":1.0000142776767855E-2},{"$f":"'Population at Risk'!R165/'Population at Risk'!R$5","v":5.1214111947177595E-3},{"$f":"'Population at Risk'!S165/'Population at Risk'!S$5","v":8.3766217013890778E-3},{"$f":"'Population at Risk'!T165/'Population at Risk'!T$5","v":5.3463091466863528E-3},{"$f":"'Population at Risk'!U165/'Population at Risk'!U$5","v":2.6595136985934159E-2},{"$f":"'Population at Risk'!V165/'Population at Risk'!V$5","v":7.9361749254645911E-3},{"$f":"'Population at Risk'!W165/'Population at Risk'!W$5","v":8.4799827241970448E-3},{"$f":"'Population at Risk'!X165/'Population at Risk'!X$5","v":8.4791224371030434E-3},{"$f":"'Population at Risk'!Y165/'Population at Risk'!Y$5","v":7.5387507645968202E-3},{"$f":"'Population at Risk'!Z165/'Population at Risk'!Z$5","v":4.2589379212166082E-3},{"$f":"'Population at Risk'!AA165/'Population at Risk'!AA$5","v":6.075544791243768E-3},{"$f":"'Population at Risk'!AB165/'Population at Risk'!AB$5","v":8.6743853670039981E-3},{"$f":"'Population at Risk'!AC165/'Population at Risk'!AC$5","v":4.9960907606923597E-3},{"$f":"'Population at Risk'!AD165/'Population at Risk'!AD$5","v":1.4774690760823056E-2},{"$f":"'Population at Risk'!AE165/'Population at Risk'!AE$5","v":1.4217520585703738E-2},{"$f":"'Population at Risk'!AF165/'Population at Risk'!AF$5","v":6.3304044169512829E-3},{"$f":"'Population at Risk'!AG165/'Population at Risk'!AG$5","v":1.4217520585703738E-2},{"$f":"'Population at Risk'!AH165/'Population at Risk'!AH$5","v":8.0718690929593943E-3},{"$f":"'Population at Risk'!AI165/'Population at Risk'!AI$5","v":7.3428110222443195E-3},{"$f":"'Population at Risk'!AJ165/'Population at Risk'!AJ$5","v":1.0531705487924274E-2},{"$f":"'Population at Risk'!AK165/'Population at Risk'!AK$5","v":1.1844892802758316E-2},{"$f":"'Population at Risk'!AL165/'Population at Risk'!AL$5","v":5.2787141437277887E-3},{"$f":"'Population at Risk'!AM165/'Population at Risk'!AM$5","v":7.7704686239861423E-3},{"$f":"'Population at Risk'!AN165/'Population at Risk'!AN$5","v":1.4737084435898044E-2},{"$f":"'Population at Risk'!AO165/'Population at Risk'!AO$5","v":1.4725993207597245E-2},{"$f":"'Population at Risk'!AP165/'Population at Risk'!AP$5","v":1.0696999022142079E-2},{"$f":"'Population at Risk'!AQ165/'Population at Risk'!AQ$5","v":7.9869411335188635E-3},{"$f":"'Population at Risk'!AR165/'Population at Risk'!AR$5","v":8.2973640967473217E-3},{"$f":"'Population at Risk'!AS165/'Population at Risk'!AS$5","v":1.5312712587461249E-2},{"$f":"'Population at Risk'!AT165/'Population at Risk'!AT$5","v":1.5591868173682365E-2},{"$f":"'Population at Risk'!AU165/'Population at Risk'!AU$5","v":1.5605654979214106E-2},{"$f":"'Population at Risk'!AV165/'Population at Risk'!AV$5","v":8.1489367123787088E-3},{"$f":"'Population at Risk'!AW165/'Population at Risk'!AW$5","v":8.3469797197184854E-3},{"$f":"'Population at Risk'!AX165/'Population at Risk'!AX$5","v":6.8164498532338486E-3},{"$f":"'Population at Risk'!AY165/'Population at Risk'!AY$5","v":9.3035344438891394E-3},{"$f":"'Population at Risk'!AZ165/'Population at Risk'!AZ$5","v":1.0030515202164572E-2},{"$f":"'Population at Risk'!BA165/'Population at Risk'!BA$5","v":6.1022184835537842E-3},{"$f":"'Population at Risk'!BB165/'Population at Risk'!BB$5","v":9.7770970317023597E-3},{"$f":"'Population at Risk'!BC165/'Population at Risk'!BC$5","v":2.6578770172021999E-2},163]
[null,"Male 55-59",{"$f":"'Population at Risk'!C166/'Population at Risk'!C$5","v":6.8996822421370863E-3},{"$f":"'Population at Risk'!D166/'Population at Risk'!D$5","v":9.4308599351721565E-3},{"$f":"'Population at Risk'!E166/'Population at Risk'!E$5","v":1.1635382809948164E-2},{"$f":"'Population at Risk'!F166/'Population at Risk'!F$5","v":1.8127672354929843E-2},{"$f":"'Population at Risk'!G166/'Population at Risk'!G$5","v":2.1732049579242095E-2},{"$f":"'Population at Risk'!H166/'Population at Risk'!H$5","v":7.8106062452314414E-3},{"$f":"'Population at Risk'!I166/'Population at Risk'!I$5","v":1.9441533377923415E-2},{"$f":"'Population at Risk'!J166/'Population at Risk'!J$5","v":8.0143151679104609E-3},{"$f":"'Population at Risk'!K166/'Population at Risk'!K$5","v":9.4865178345704595E-3},{"$f":"'Population at Risk'!L166/'Population at Risk'!L$5","v":1.7458379634999934E-2},{"$f":"'Population at Risk'!M166/'Population at Risk'!M$5","v":1.7452309422919275E-2},{"$f":"'Population at Risk'!N166/'Population at Risk'!N$5","v":5.4596553095541782E-3},{"$f":"'Population at Risk'!O166/'Population at Risk'!O$5","v":7.7614378035502129E-3},{"$f":"'Population at Risk'!P166/'Population at Risk'!P$5","v":3.2415606536289185E-3},{"$f":"'Population at Risk'!Q166/'Population at Risk'!Q$5","v":1.3271780251611437E-2},{"$f":"'Population at Risk'!R166/'Population at Risk'!R$5","v":6.4981007403666158E-3},{"$f":"'Population at Risk'!S166/'Population at Risk'!S$5","v":1.0157133377880753E-2},{"$f":"'Population at Risk'!T166/'Population at Risk'!T$5","v":5.8342989367833071E-3},{"$f":"'Population at Risk'!U166/'Population at Risk'!U$5","v":3.3928205727171867E-2},{"$f":"'Population at Risk'!V166/'Population at Risk'!V$5","v":8.734567848637036E-3},{"$f":"'Population at Risk'!W166/'Population at Risk'!W$5","v":1.0760140784136153E-2},{"$f":"'Population at Risk'!X166/'Population at Risk'!X$5","v":1.0759049176930418E-2},{"$f":"'Population at Risk'!Y166/'Population at Risk'!Y$5","v":8.6804304102635552E-3},{"$f":"'Population at Risk'!Z166/'Population at Risk'!Z$5","v":4.8962704024204757E-3},{"$f":"'Population at Risk'!AA166/'Population at Risk'!AA$5","v":7.1342032300504036E-3},{"$f":"'Population at Risk'!AB166/'Population at Risk'!AB$5","v":1.0388101047383904E-2},{"$f":"'Population at Risk'!AC166/'Population at Risk'!AC$5","v":5.9203980769391732E-3},{"$f":"'Population at Risk'!AD166/'Population at Risk'!AD$5","v":1.9045281426396252E-2},{"$f":"'Population at Risk'!AE166/'Population at Risk'!AE$5","v":1.8198307635407196E-2},{"$f":"'Population at Risk'!AF166/'Population at Risk'!AF$5","v":8.7490674549898957E-3},{"$f":"'Population at Risk'!AG166/'Population at Risk'!AG$5","v":1.8198307635407196E-2},{"$f":"'Population at Risk'!AH166/'Population at Risk'!AH$5","v":9.3761891566046928E-3},{"$f":"'Population at Risk'!AI166/'Population at Risk'!AI$5","v":8.5478420415351867E-3},{"$f":"'Population at Risk'!AJ166/'Population at Risk'!AJ$5","v":1.2605727221478673E-2},{"$f":"'Population at Risk'!AK166/'Population at Risk'!AK$5","v":1.4747454051303975E-2},{"$f":"'Population at Risk'!AL166/'Population at Risk'!AL$5","v":6.5311321152523695E-3},{"$f":"'Population at Risk'!AM166/'Population at Risk'!AM$5","v":8.3268189804585214E-3},{"$f":"'Population at Risk'!AN166/'Population at Risk'!AN$5","v":2.036951941864058E-2},{"$f":"'Population at Risk'!AO166/'Population at Risk'!AO$5","v":2.0354189182104819E-2},{"$f":"'Population at Risk'!AP166/'Population at Risk'!AP$5","v":1.293041513385965E-2},{"$f":"'Population at Risk'!AQ166/'Population at Risk'!AQ$5","v":8.9507483121113833E-3},{"$f":"'Population at Risk'!AR166/'Population at Risk'!AR$5","v":9.9932404679449367E-3},{"$f":"'Population at Risk'!AS166/'Population at Risk'!AS$5","v":1.9443998608481013E-2},{"$f":"'Population at Risk'!AT166/'Population at Risk'!AT$5","v":1.8179652861612931E-2},{"$f":"'Population at Risk'!AU166/'Population at Risk'!AU$5","v":1.8195727865316508E-2},{"$f":"'Population at Risk'!AV166/'Population at Risk'!AV$5","v":9.4746458424601384E-3},{"$f":"'Population at Risk'!AW166/'Population at Risk'!AW$5","v":1.042765776254748E-2},{"$f":"'Population at Risk'!AX166/'Population at Risk'!AX$5","v":7.9883428563229091E-3},{"$f":"'Population at Risk'!AY166/'Population at Risk'!AY$5","v":1.1473959211966893E-2},{"$f":"'Population at Risk'!AZ166/'Population at Risk'!AZ$5","v":1.208053512175483E-2},{"$f":"'Population at Risk'!BA166/'Population at Risk'!BA$5","v":7.6159796856355155E-3},{"$f":"'Population at Risk'!BB166/'Population at Risk'!BB$5","v":1.1395650351520637E-2},{"$f":"'Population at Risk'!BC166/'Population at Risk'!BC$5","v":3.3907326096816751E-2},164]
[null,"Male 60-64",{"$f":"'Population at Risk'!C167/'Population at Risk'!C$5","v":6.1929566059308579E-3},{"$f":"'Population at Risk'!D167/'Population at Risk'!D$5","v":8.6976114199688766E-3},{"$f":"'Population at Risk'!E167/'Population at Risk'!E$5","v":1.0878199546827894E-2},{"$f":"'Population at Risk'!F167/'Population at Risk'!F$5","v":1.5425715770861709E-2},{"$f":"'Population at Risk'!G167/'Population at Risk'!G$5","v":2.1070706244558857E-2},{"$f":"'Population at Risk'!H167/'Population at Risk'!H$5","v":7.5258264710611521E-3},{"$f":"'Population at Risk'!I167/'Population at Risk'!I$5","v":1.7154294156991247E-2},{"$f":"'Population at Risk'!J167/'Population at Risk'!J$5","v":7.0215509016152457E-3},{"$f":"'Population at Risk'!K167/'Population at Risk'!K$5","v":7.7708709921481415E-3},{"$f":"'Population at Risk'!L167/'Population at Risk'!L$5","v":1.6894671270716935E-2},{"$f":"'Population at Risk'!M167/'Population at Risk'!M$5","v":1.6888797057886741E-2},{"$f":"'Population at Risk'!N167/'Population at Risk'!N$5","v":4.5802477429145796E-3},{"$f":"'Population at Risk'!O167/'Population at Risk'!O$5","v":7.4022127719693478E-3},{"$f":"'Population at Risk'!P167/'Population at Risk'!P$5","v":2.8626769408670971E-3},{"$f":"'Population at Risk'!Q167/'Population at Risk'!Q$5","v":1.168992324903558E-2},{"$f":"'Population at Risk'!R167/'Population at Risk'!R$5","v":5.0616784714434693E-3},{"$f":"'Population at Risk'!S167/'Population at Risk'!S$5","v":8.6434520194888648E-3},{"$f":"'Population at Risk'!T167/'Population at Risk'!T$5","v":4.7958314884885434E-3},{"$f":"'Population at Risk'!U167/'Population at Risk'!U$5","v":3.268401200515992E-2},{"$f":"'Population at Risk'!V167/'Population at Risk'!V$5","v":7.2389226690758998E-3},{"$f":"'Population at Risk'!W167/'Population at Risk'!W$5","v":9.0013428238936641E-3},{"$f":"'Population at Risk'!X167/'Population at Risk'!X$5","v":9.0004296452573448E-3},{"$f":"'Population at Risk'!Y167/'Population at Risk'!Y$5","v":7.3851829406692548E-3},{"$f":"'Population at Risk'!Z167/'Population at Risk'!Z$5","v":4.0890303101785161E-3},{"$f":"'Population at Risk'!AA167/'Population at Risk'!AA$5","v":6.0066976311657656E-3},{"$f":"'Population at Risk'!AB167/'Population at Risk'!AB$5","v":9.4386955959443412E-3},{"$f":"'Population at Risk'!AC167/'Population at Risk'!AC$5","v":4.8699105303888126E-3},{"$f":"'Population at Risk'!AD167/'Population at Risk'!AD$5","v":1.8166937397142362E-2},{"$f":"'Population at Risk'!AE167/'Population at Risk'!AE$5","v":1.7223069713590632E-2},{"$f":"'Population at Risk'!AF167/'Population at Risk'!AF$5","v":6.5575202255599412E-3},{"$f":"'Population at Risk'!AG167/'Population at Risk'!AG$5","v":1.7223069713590632E-2},{"$f":"'Population at Risk'!AH167/'Population at Risk'!AH$5","v":8.1126837139115799E-3},{"$f":"'Population at Risk'!AI167/'Population at Risk'!AI$5","v":7.2630602337366464E-3},{"$f":"'Population at Risk'!AJ167/'Population at Risk'!AJ$5","v":1.1986370681695039E-2},{"$f":"'Population at Risk'!AK167/'Population at Risk'!AK$5","v":1.2815874830447114E-2},{"$f":"'Population at Risk'!AL167/'Population at Risk'!AL$5","v":5.7984150773916455E-3},{"$f":"'Population at Risk'!AM167/'Population at Risk'!AM$5","v":7.1031801308028136E-3},{"$f":"'Population at Risk'!AN167/'Population at Risk'!AN$5","v":1.626872508023439E-2},{"$f":"'Population at Risk'!AO167/'Population at Risk'!AO$5","v":1.6256481128941805E-2},{"$f":"'Population at Risk'!AP167/'Population at Risk'!AP$5","v":1.2197952040929534E-2},{"$f":"'Population at Risk'!AQ167/'Population at Risk'!AQ$5","v":7.2030657037246721E-3},{"$f":"'Population at Risk'!AR167/'Population at Risk'!AR$5","v":8.8492546500936291E-3},{"$f":"'Population at Risk'!AS167/'Population at Risk'!AS$5","v":1.715646936042442E-2},{"$f":"'Population at Risk'!AT167/'Population at Risk'!AT$5","v":1.7910324671070517E-2},{"$f":"'Population at Risk'!AU167/'Population at Risk'!AU$5","v":1.7926161526571074E-2},{"$f":"'Population at Risk'!AV167/'Population at Risk'!AV$5","v":9.8471134922865806E-3},{"$f":"'Population at Risk'!AW167/'Population at Risk'!AW$5","v":9.128742205017611E-3},{"$f":"'Population at Risk'!AX167/'Population at Risk'!AX$5","v":7.3330491063901704E-3},{"$f":"'Population at Risk'!AY167/'Population at Risk'!AY$5","v":9.8972456801415479E-3},{"$f":"'Population at Risk'!AZ167/'Population at Risk'!AZ$5","v":1.0689637232294836E-2},{"$f":"'Population at Risk'!BA167/'Population at Risk'!BA$5","v":6.7037996092190934E-3},{"$f":"'Population at Risk'!BB167/'Population at Risk'!BB$5","v":9.3108775831302008E-3},{"$f":"'Population at Risk'!BC167/'Population at Risk'!BC$5","v":3.2663898059415858E-2},165]
[null,"Male 65-69",{"$f":"'Population at Risk'!C168/'Population at Risk'!C$5","v":7.095358854223641E-3},{"$f":"'Population at Risk'!D168/'Population at Risk'!D$5","v":1.0668065955228782E-2},{"$f":"'Population at Risk'!E168/'Population at Risk'!E$5","v":1.3776228345556075E-2},{"$f":"'Population at Risk'!F168/'Population at Risk'!F$5","v":2.1848126209810671E-2},{"$f":"'Population at Risk'!G168/'Population at Risk'!G$5","v":2.9302343465126092E-2},{"$f":"'Population at Risk'!H168/'Population at Risk'!H$5","v":9.783723251982724E-3},{"$f":"'Population at Risk'!I168/'Population at Risk'!I$5","v":2.2558350633749231E-2},{"$f":"'Population at Risk'!J168/'Population at Risk'!J$5","v":8.7343915870349773E-3},{"$f":"'Population at Risk'!K168/'Population at Risk'!K$5","v":9.9875155469584878E-3},{"$f":"'Population at Risk'!L168/'Population at Risk'!L$5","v":2.204502353178156E-2},{"$f":"'Population at Risk'!M168/'Population at Risk'!M$5","v":2.2037358561093633E-2},{"$f":"'Population at Risk'!N168/'Population at Risk'!N$5","v":5.5950997785232243E-3},{"$f":"'Population at Risk'!O168/'Population at Risk'!O$5","v":9.3717300987969064E-3},{"$f":"'Population at Risk'!P168/'Population at Risk'!P$5","v":3.7828231004315214E-3},{"$f":"'Population at Risk'!Q168/'Population at Risk'!Q$5","v":1.3272910149470421E-2},{"$f":"'Population at Risk'!R168/'Population at Risk'!R$5","v":5.4195625911666687E-3},{"$f":"'Population at Risk'!S168/'Population at Risk'!S$5","v":1.0541235941556109E-2},{"$f":"'Population at Risk'!T168/'Population at Risk'!T$5","v":5.2503295794954722E-3},{"$f":"'Population at Risk'!U168/'Population at Risk'!U$5","v":4.317420577673866E-2},{"$f":"'Population at Risk'!V168/'Population at Risk'!V$5","v":9.4543089370870675E-3},{"$f":"'Population at Risk'!W168/'Population at Risk'!W$5","v":1.1663078564026059E-2},{"$f":"'Population at Risk'!X168/'Population at Risk'!X$5","v":1.1661895354544233E-2},{"$f":"'Population at Risk'!Y168/'Population at Risk'!Y$5","v":9.4257657962757146E-3},{"$f":"'Population at Risk'!Z168/'Population at Risk'!Z$5","v":3.9388425966817419E-3},{"$f":"'Population at Risk'!AA168/'Population at Risk'!AA$5","v":6.5971493061225033E-3},{"$f":"'Population at Risk'!AB168/'Population at Risk'!AB$5","v":1.165957677795613E-2},{"$f":"'Population at Risk'!AC168/'Population at Risk'!AC$5","v":5.2444161924663441E-3},{"$f":"'Population at Risk'!AD168/'Population at Risk'!AD$5","v":2.2878253019402713E-2},{"$f":"'Population at Risk'!AE168/'Population at Risk'!AE$5","v":2.0586019528444157E-2},{"$f":"'Population at Risk'!AF168/'Population at Risk'!AF$5","v":7.4429444410215977E-3},{"$f":"'Population at Risk'!AG168/'Population at Risk'!AG$5","v":2.0586019528444157E-2},{"$f":"'Population at Risk'!AH168/'Population at Risk'!AH$5","v":9.1082980378445581E-3},{"$f":"'Population at Risk'!AI168/'Population at Risk'!AI$5","v":8.2935810264254065E-3},{"$f":"'Population at Risk'!AJ168/'Population at Risk'!AJ$5","v":1.4643358190598782E-2},{"$f":"'Population at Risk'!AK168/'Population at Risk'!AK$5","v":1.6176428474897062E-2},{"$f":"'Population at Risk'!AL168/'Population at Risk'!AL$5","v":8.3810164886167857E-3},{"$f":"'Population at Risk'!AM168/'Population at Risk'!AM$5","v":8.6885176981759005E-3},{"$f":"'Population at Risk'!AN168/'Population at Risk'!AN$5","v":1.9101826555245695E-2},{"$f":"'Population at Risk'!AO168/'Population at Risk'!AO$5","v":1.908745039283663E-2},{"$f":"'Population at Risk'!AP168/'Population at Risk'!AP$5","v":1.4325582929917015E-2},{"$f":"'Population at Risk'!AQ168/'Population at Risk'!AQ$5","v":9.1035830395470706E-3},{"$f":"'Population at Risk'!AR168/'Population at Risk'!AR$5","v":1.0785600650930195E-2},{"$f":"'Population at Risk'!AS168/'Population at Risk'!AS$5","v":2.2561211083808923E-2},{"$f":"'Population at Risk'!AT168/'Population at Risk'!AT$5","v":2.2647615165432618E-2},{"$f":"'Population at Risk'!AU168/'Population at Risk'!AU$5","v":2.266764087771837E-2},{"$f":"'Population at Risk'!AV168/'Population at Risk'!AV$5","v":1.1985476874772321E-2},{"$f":"'Population at Risk'!AW168/'Population at Risk'!AW$5","v":9.5021317671347156E-3},{"$f":"'Population at Risk'!AX168/'Population at Risk'!AX$5","v":8.9233623396453039E-3},{"$f":"'Population at Risk'!AY168/'Population at Risk'!AY$5","v":1.275650200732004E-2},{"$f":"'Population at Risk'!AZ168/'Population at Risk'!AZ$5","v":1.3718918313431489E-2},{"$f":"'Population at Risk'!BA168/'Population at Risk'!BA$5","v":6.9975174569540874E-3},{"$f":"'Population at Risk'!BB168/'Population at Risk'!BB$5","v":1.0832037907021233E-2},{"$f":"'Population at Risk'!BC168/'Population at Risk'!BC$5","v":4.314763610002946E-2},166]
[null,"Male 70-74",{"$f":"'Population at Risk'!C169/'Population at Risk'!C$5","v":4.3881521093452943E-3},{"$f":"'Population at Risk'!D169/'Population at Risk'!D$5","v":7.2624910541365167E-3},{"$f":"'Population at Risk'!E169/'Population at Risk'!E$5","v":9.7613542337254954E-3},{"$f":"'Population at Risk'!F169/'Population at Risk'!F$5","v":1.4272120670845604E-2},{"$f":"'Population at Risk'!G169/'Population at Risk'!G$5","v":2.1159690978959755E-2},{"$f":"'Population at Risk'!H169/'Population at Risk'!H$5","v":7.4263520029058516E-3},{"$f":"'Population at Risk'!I169/'Population at Risk'!I$5","v":1.664874167839632E-2},{"$f":"'Population at Risk'!J169/'Population at Risk'!J$5","v":6.2576381382647081E-3},{"$f":"'Population at Risk'!K169/'Population at Risk'!K$5","v":7.6285011386278022E-3},{"$f":"'Population at Risk'!L169/'Population at Risk'!L$5","v":1.766621748779755E-2},{"$f":"'Population at Risk'!M169/'Population at Risk'!M$5","v":1.7660075011287364E-2},{"$f":"'Population at Risk'!N169/'Population at Risk'!N$5","v":3.9377044166942774E-3},{"$f":"'Population at Risk'!O169/'Population at Risk'!O$5","v":7.2039392155773124E-3},{"$f":"'Population at Risk'!P169/'Population at Risk'!P$5","v":2.0958884745634104E-3},{"$f":"'Population at Risk'!Q169/'Population at Risk'!Q$5","v":1.0103546655023794E-2},{"$f":"'Population at Risk'!R169/'Population at Risk'!R$5","v":4.5059198554910614E-3},{"$f":"'Population at Risk'!S169/'Population at Risk'!S$5","v":7.5077964018006853E-3},{"$f":"'Population at Risk'!T169/'Population at Risk'!T$5","v":3.1142784623644907E-3},{"$f":"'Population at Risk'!U169/'Population at Risk'!U$5","v":3.1145860425749555E-2},{"$f":"'Population at Risk'!V169/'Population at Risk'!V$5","v":7.1296490008549021E-3},{"$f":"'Population at Risk'!W169/'Population at Risk'!W$5","v":8.5427329497492332E-3},{"$f":"'Population at Risk'!X169/'Population at Risk'!X$5","v":8.5418662966977813E-3},{"$f":"'Population at Risk'!Y169/'Population at Risk'!Y$5","v":6.9423965876550644E-3},{"$f":"'Population at Risk'!Z169/'Population at Risk'!Z$5","v":2.7943971255937569E-3},{"$f":"'Population at Risk'!AA169/'Population at Risk'!AA$5","v":4.8413960932812937E-3},{"$f":"'Population at Risk'!AB169/'Population at Risk'!AB$5","v":8.0934738775780817E-3},{"$f":"'Population at Risk'!AC169/'Population at Risk'!AC$5","v":3.853765203185588E-3},{"$f":"'Population at Risk'!AD169/'Population at Risk'!AD$5","v":1.7186409780326758E-2},{"$f":"'Population at Risk'!AE169/'Population at Risk'!AE$5","v":1.5804462170534914E-2},{"$f":"'Population at Risk'!AF169/'Population at Risk'!AF$5","v":6.2578946277863159E-3},{"$f":"'Population at Risk'!AG169/'Population at Risk'!AG$5","v":1.5804462170534914E-2},{"$f":"'Population at Risk'!AH169/'Population at Risk'!AH$5","v":6.6745564802828889E-3},{"$f":"'Population at Risk'!AI169/'Population at Risk'!AI$5","v":5.7101556290858422E-3},{"$f":"'Population at Risk'!AJ169/'Population at Risk'!AJ$5","v":1.0396341917796717E-2},{"$f":"'Population at Risk'!AK169/'Population at Risk'!AK$5","v":1.1876365209418096E-2},{"$f":"'Population at Risk'!AL169/'Population at Risk'!AL$5","v":6.3049848813447381E-3},{"$f":"'Population at Risk'!AM169/'Population at Risk'!AM$5","v":6.1119954699114867E-3},{"$f":"'Population at Risk'!AN169/'Population at Risk'!AN$5","v":1.5918188796038076E-2},{"$f":"'Population at Risk'!AO169/'Population at Risk'!AO$5","v":1.5906208660697193E-2},{"$f":"'Population at Risk'!AP169/'Population at Risk'!AP$5","v":1.1503158478492967E-2},{"$f":"'Population at Risk'!AQ169/'Population at Risk'!AQ$5","v":6.7334780869852517E-3},{"$f":"'Population at Risk'!AR169/'Population at Risk'!AR$5","v":7.8977836296823672E-3},{"$f":"'Population at Risk'!AS169/'Population at Risk'!AS$5","v":1.6650852776627791E-2},{"$f":"'Population at Risk'!AT169/'Population at Risk'!AT$5","v":1.6924391116406323E-2},{"$f":"'Population at Risk'!AU169/'Population at Risk'!AU$5","v":1.6939356179377987E-2},{"$f":"'Population at Risk'!AV169/'Population at Risk'!AV$5","v":9.073910558495081E-3},{"$f":"'Population at Risk'!AW169/'Population at Risk'!AW$5","v":7.2300027549121373E-3},{"$f":"'Population at Risk'!AX169/'Population at Risk'!AX$5","v":6.1004727672309723E-3},{"$f":"'Population at Risk'!AY169/'Population at Risk'!AY$5","v":9.2434895827738454E-3},{"$f":"'Population at Risk'!AZ169/'Population at Risk'!AZ$5","v":9.8529133101187757E-3},{"$f":"'Population at Risk'!BA169/'Population at Risk'!BA$5","v":5.3448374545578955E-3},{"$f":"'Population at Risk'!BB169/'Population at Risk'!BB$5","v":8.12907127845355E-3},{"$f":"'Population at Risk'!BC169/'Population at Risk'!BC$5","v":3.1126693068123535E-2},167]
[null,"Male 75-79",{"$f":"'Population at Risk'!C170/'Population at Risk'!C$5","v":5.9924283688534826E-3},{"$f":"'Population at Risk'!D170/'Population at Risk'!D$5","v":8.2260972305698028E-3},{"$f":"'Population at Risk'!E170/'Population at Risk'!E$5","v":1.0171378857122534E-2},{"$f":"'Population at Risk'!F170/'Population at Risk'!F$5","v":1.6085668949507005E-2},{"$f":"'Population at Risk'!G170/'Population at Risk'!G$5","v":2.3975379185685815E-2},{"$f":"'Population at Risk'!H170/'Population at Risk'!H$5","v":8.2829239194650885E-3},{"$f":"'Population at Risk'!I170/'Population at Risk'!I$5","v":1.8597872367283882E-2},{"$f":"'Population at Risk'!J170/'Population at Risk'!J$5","v":6.6128830473791032E-3},{"$f":"'Population at Risk'!K170/'Population at Risk'!K$5","v":7.6257107127523528E-3},{"$f":"'Population at Risk'!L170/'Population at Risk'!L$5","v":1.9999021178834508E-2},{"$f":"'Population at Risk'!M170/'Population at Risk'!M$5","v":1.9992067595369194E-2},{"$f":"'Population at Risk'!N170/'Population at Risk'!N$5","v":5.1682924531339354E-3},{"$f":"'Population at Risk'!O170/'Population at Risk'!O$5","v":8.1156715084110265E-3},{"$f":"'Population at Risk'!P170/'Population at Risk'!P$5","v":1.7479479016815225E-3},{"$f":"'Population at Risk'!Q170/'Population at Risk'!Q$5","v":1.0112768079485815E-2},{"$f":"'Population at Risk'!R170/'Population at Risk'!R$5","v":5.3877655544368854E-3},{"$f":"'Population at Risk'!S170/'Population at Risk'!S$5","v":8.4174435934503897E-3},{"$f":"'Population at Risk'!T170/'Population at Risk'!T$5","v":3.7526437336106219E-3},{"$f":"'Population at Risk'!U170/'Population at Risk'!U$5","v":3.6202795614745813E-2},{"$f":"'Population at Risk'!V170/'Population at Risk'!V$5","v":7.6399013016792425E-3},{"$f":"'Population at Risk'!W170/'Population at Risk'!W$5","v":9.7534582397711192E-3},{"$f":"'Population at Risk'!X170/'Population at Risk'!X$5","v":9.7524687596603123E-3},{"$f":"'Population at Risk'!Y170/'Population at Risk'!Y$5","v":7.3926178642961604E-3},{"$f":"'Population at Risk'!Z170/'Population at Risk'!Z$5","v":3.003851652145572E-3},{"$f":"'Population at Risk'!AA170/'Population at Risk'!AA$5","v":5.3817745287228699E-3},{"$f":"'Population at Risk'!AB170/'Population at Risk'!AB$5","v":9.5981075967150678E-3},{"$f":"'Population at Risk'!AC170/'Population at Risk'!AC$5","v":4.0628454647457495E-3},{"$f":"'Population at Risk'!AD170/'Population at Risk'!AD$5","v":1.8263951190490738E-2},{"$f":"'Population at Risk'!AE170/'Population at Risk'!AE$5","v":1.6201533217275171E-2},{"$f":"'Population at Risk'!AF170/'Population at Risk'!AF$5","v":6.7116922908791437E-3},{"$f":"'Population at Risk'!AG170/'Population at Risk'!AG$5","v":1.6201533217275171E-2},{"$f":"'Population at Risk'!AH170/'Population at Risk'!AH$5","v":7.8399130875354116E-3},{"$f":"'Population at Risk'!AI170/'Population at Risk'!AI$5","v":6.3263631674715373E-3},{"$f":"'Population at Risk'!AJ170/'Population at Risk'!AJ$5","v":1.1478830746816772E-2},{"$f":"'Population at Risk'!AK170/'Population at Risk'!AK$5","v":1.583793232111403E-2},{"$f":"'Population at Risk'!AL170/'Population at Risk'!AL$5","v":7.1086308627066287E-3},{"$f":"'Population at Risk'!AM170/'Population at Risk'!AM$5","v":6.7243747843983006E-3},{"$f":"'Population at Risk'!AN170/'Population at Risk'!AN$5","v":1.7240251184732526E-2},{"$f":"'Population at Risk'!AO170/'Population at Risk'!AO$5","v":1.7227276056396609E-2},{"$f":"'Population at Risk'!AP170/'Population at Risk'!AP$5","v":1.3274121471230299E-2},{"$f":"'Population at Risk'!AQ170/'Population at Risk'!AQ$5","v":7.1657508472231972E-3},{"$f":"'Population at Risk'!AR170/'Population at Risk'!AR$5","v":8.8473362850850206E-3},{"$f":"'Population at Risk'!AS170/'Population at Risk'!AS$5","v":1.8600230619710525E-2},{"$f":"'Population at Risk'!AT170/'Population at Risk'!AT$5","v":1.9240830755224744E-2},{"$f":"'Population at Risk'!AU170/'Population at Risk'!AU$5","v":1.9257844084797346E-2},{"$f":"'Population at Risk'!AV170/'Population at Risk'!AV$5","v":9.9357783864632964E-3},{"$f":"'Population at Risk'!AW170/'Population at Risk'!AW$5","v":8.9683189549053625E-3},{"$f":"'Population at Risk'!AX170/'Population at Risk'!AX$5","v":6.7163295386868495E-3},{"$f":"'Population at Risk'!AY170/'Population at Risk'!AY$5","v":1.0682409953962503E-2},{"$f":"'Population at Risk'!AZ170/'Population at Risk'!AZ$5","v":1.150113230899753E-2},{"$f":"'Population at Risk'!BA170/'Population at Risk'!BA$5","v":4.9597414622356535E-3},{"$f":"'Population at Risk'!BB170/'Population at Risk'!BB$5","v":8.7940765491314934E-3},{"$f":"'Population at Risk'!BC170/'Population at Risk'!BC$5","v":3.6180516187524221E-2},168]
[null,"Male 80-84",{"$f":"'Population at Risk'!C171/'Population at Risk'!C$5","v":4.2307345054043519E-3},{"$f":"'Population at Risk'!D171/'Population at Risk'!D$5","v":5.669755502785508E-3},{"$f":"'Population at Risk'!E171/'Population at Risk'!E$5","v":6.9234726538822712E-3},{"$f":"'Population at Risk'!F171/'Population at Risk'!F$5","v":1.0573796372403205E-2},{"$f":"'Population at Risk'!G171/'Population at Risk'!G$5","v":1.431197723422843E-2},{"$f":"'Population at Risk'!H171/'Population at Risk'!H$5","v":5.1084392529419861E-3},{"$f":"'Population at Risk'!I171/'Population at Risk'!I$5","v":1.2150299594145415E-2},{"$f":"'Population at Risk'!J171/'Population at Risk'!J$5","v":4.678614756020715E-3},{"$f":"'Population at Risk'!K171/'Population at Risk'!K$5","v":4.8527249990242246E-3},{"$f":"'Population at Risk'!L171/'Population at Risk'!L$5","v":1.3545274784753517E-2},{"$f":"'Population at Risk'!M171/'Population at Risk'!M$5","v":1.3540565144319909E-2},{"$f":"'Population at Risk'!N171/'Population at Risk'!N$5","v":3.5238357635004099E-3},{"$f":"'Population at Risk'!O171/'Population at Risk'!O$5","v":5.1645182326251985E-3},{"$f":"'Population at Risk'!P171/'Population at Risk'!P$5","v":1.7736530178827214E-3},{"$f":"'Population at Risk'!Q171/'Population at Risk'!Q$5","v":7.9395371168455957E-3},{"$f":"'Population at Risk'!R171/'Population at Risk'!R$5","v":4.0408241658276643E-3},{"$f":"'Population at Risk'!S171/'Population at Risk'!S$5","v":5.7256426847490148E-3},{"$f":"'Population at Risk'!T171/'Population at Risk'!T$5","v":3.1416141855880016E-3},{"$f":"'Population at Risk'!U171/'Population at Risk'!U$5","v":2.147623468671362E-2},{"$f":"'Population at Risk'!V171/'Population at Risk'!V$5","v":4.5401052817356149E-3},{"$f":"'Population at Risk'!W171/'Population at Risk'!W$5","v":6.172216271343337E-3},{"$f":"'Population at Risk'!X171/'Population at Risk'!X$5","v":6.1715901052092374E-3},{"$f":"'Population at Risk'!Y171/'Population at Risk'!Y$5","v":4.7702365272992119E-3},{"$f":"'Population at Risk'!Z171/'Population at Risk'!Z$5","v":2.0709544251261355E-3},{"$f":"'Population at Risk'!AA171/'Population at Risk'!AA$5","v":3.6545348501327546E-3},{"$f":"'Population at Risk'!AB171/'Population at Risk'!AB$5","v":6.2466289271806462E-3},{"$f":"'Population at Risk'!AC171/'Population at Risk'!AC$5","v":2.9421344003670432E-3},{"$f":"'Population at Risk'!AD171/'Population at Risk'!AD$5","v":1.2114901770927351E-2},{"$f":"'Population at Risk'!AE171/'Population at Risk'!AE$5","v":1.1381520907836163E-2},{"$f":"'Population at Risk'!AF171/'Population at Risk'!AF$5","v":4.4221897804390614E-3},{"$f":"'Population at Risk'!AG171/'Population at Risk'!AG$5","v":1.1381520907836163E-2},{"$f":"'Population at Risk'!AH171/'Population at Risk'!AH$5","v":4.9753294593974729E-3},{"$f":"'Population at Risk'!AI171/'Population at Risk'!AI$5","v":4.5982983064296245E-3},{"$f":"'Population at Risk'!AJ171/'Population at Risk'!AJ$5","v":7.4412187690120367E-3},{"$f":"'Population at Risk'!AK171/'Population at Risk'!AK$5","v":8.8737351302695631E-3},{"$f":"'Population at Risk'!AL171/'Population at Risk'!AL$5","v":4.5402444204699676E-3},{"$f":"'Population at Risk'!AM171/'Population at Risk'!AM$5","v":4.0616495447133947E-3},{"$f":"'Population at Risk'!AN171/'Population at Risk'!AN$5","v":1.2930188388549394E-2},{"$f":"'Population at Risk'!AO171/'Population at Risk'!AO$5","v":1.2920457042297457E-2},{"$f":"'Population at Risk'!AP171/'Population at Risk'!AP$5","v":9.4636256850145935E-3},{"$f":"'Population at Risk'!AQ171/'Population at Risk'!AQ$5","v":5.0115376488930503E-3},{"$f":"'Population at Risk'!AR171/'Population at Risk'!AR$5","v":5.8975741047276754E-3},{"$f":"'Population at Risk'!AS171/'Population at Risk'!AS$5","v":1.2151840279710755E-2},{"$f":"'Population at Risk'!AT171/'Population at Risk'!AT$5","v":1.1470495257922445E-2},{"$f":"'Population at Risk'!AU171/'Population at Risk'!AU$5","v":1.1480637819783032E-2},{"$f":"'Population at Risk'!AV171/'Population at Risk'!AV$5","v":5.7567814685516956E-3},{"$f":"'Population at Risk'!AW171/'Population at Risk'!AW$5","v":5.906777790336556E-3},{"$f":"'Population at Risk'!AX171/'Population at Risk'!AX$5","v":5.0872623739840819E-3},{"$f":"'Population at Risk'!AY171/'Population at Risk'!AY$5","v":7.0671329042917711E-3},{"$f":"'Population at Risk'!AZ171/'Population at Risk'!AZ$5","v":7.8781127261065217E-3},{"$f":"'Population at Risk'!BA171/'Population at Risk'!BA$5","v":4.3497197850622844E-3},{"$f":"'Population at Risk'!BB171/'Population at Risk'!BB$5","v":5.401206185020207E-3},{"$f":"'Population at Risk'!BC171/'Population at Risk'!BC$5","v":2.1463018077344877E-2},169]
[null,"Male 85-89",{"$f":"'Population at Risk'!C172/'Population at Risk'!C$5","v":2.1086941698860808E-3},{"$f":"'Population at Risk'!D172/'Population at Risk'!D$5","v":2.5811004854383807E-3},{"$f":"'Population at Risk'!E172/'Population at Risk'!E$5","v":2.9936217318122004E-3},{"$f":"'Population at Risk'!F172/'Population at Risk'!F$5","v":6.0068162370886299E-3},{"$f":"'Population at Risk'!G172/'Population at Risk'!G$5","v":6.9024299653267038E-3},{"$f":"'Population at Risk'!H172/'Population at Risk'!H$5","v":2.379273076712706E-3},{"$f":"'Population at Risk'!I172/'Population at Risk'!I$5","v":6.0285969250644875E-3},{"$f":"'Population at Risk'!J172/'Population at Risk'!J$5","v":2.0499937446875217E-3},{"$f":"'Population at Risk'!K172/'Population at Risk'!K$5","v":2.5881199994795866E-3},{"$f":"'Population at Risk'!L172/'Population at Risk'!L$5","v":6.2715229664834105E-3},{"$f":"'Population at Risk'!M172/'Population at Risk'!M$5","v":6.2693423818431871E-3},{"$f":"'Population at Risk'!N172/'Population at Risk'!N$5","v":2.4163445235431385E-3},{"$f":"'Population at Risk'!O172/'Population at Risk'!O$5","v":2.113663832657417E-3},{"$f":"'Population at Risk'!P172/'Population at Risk'!P$5","v":5.1410232402397725E-4},{"$f":"'Population at Risk'!Q172/'Population at Risk'!Q$5","v":4.0566977969284067E-3},{"$f":"'Population at Risk'!R172/'Population at Risk'!R$5","v":2.2240195021222026E-3},{"$f":"'Population at Risk'!S172/'Population at Risk'!S$5","v":2.8597854766880021E-3},{"$f":"'Population at Risk'!T172/'Population at Risk'!T$5","v":1.429578565184999E-3},{"$f":"'Population at Risk'!U172/'Population at Risk'!U$5","v":1.3061057013552365E-2},{"$f":"'Population at Risk'!V172/'Population at Risk'!V$5","v":1.9569419317825927E-3},{"$f":"'Population at Risk'!W172/'Population at Risk'!W$5","v":3.1674999985904814E-3},{"$f":"'Population at Risk'!X172/'Population at Risk'!X$5","v":3.1671786583875976E-3},{"$f":"'Population at Risk'!Y172/'Population at Risk'!Y$5","v":2.0729300092452072E-3},{"$f":"'Population at Risk'!Z172/'Population at Risk'!Z$5","v":9.1741345561662446E-4},{"$f":"'Population at Risk'!AA172/'Population at Risk'!AA$5","v":1.7850021800764075E-3},{"$f":"'Population at Risk'!AB172/'Population at Risk'!AB$5","v":3.0776816224015032E-3},{"$f":"'Population at Risk'!AC172/'Population at Risk'!AC$5","v":1.4871385825598895E-3},{"$f":"'Population at Risk'!AD172/'Population at Risk'!AD$5","v":5.8941665420685343E-3},{"$f":"'Population at Risk'!AE172/'Population at Risk'!AE$5","v":5.5615526647373155E-3},{"$f":"'Population at Risk'!AF172/'Population at Risk'!AF$5","v":2.7913112798516062E-3},{"$f":"'Population at Risk'!AG172/'Population at Risk'!AG$5","v":5.5615526647373155E-3},{"$f":"'Population at Risk'!AH172/'Population at Risk'!AH$5","v":2.3348597708720332E-3},{"$f":"'Population at Risk'!AI172/'Population at Risk'!AI$5","v":2.2612963038777033E-3},{"$f":"'Population at Risk'!AJ172/'Population at Risk'!AJ$5","v":4.0376119778047365E-3},{"$f":"'Population at Risk'!AK172/'Population at Risk'!AK$5","v":5.3354736542760035E-3},{"$f":"'Population at Risk'!AL172/'Population at Risk'!AL$5","v":1.9387175080108989E-3},{"$f":"'Population at Risk'!AM172/'Population at Risk'!AM$5","v":1.9394177865167677E-3},{"$f":"'Population at Risk'!AN172/'Population at Risk'!AN$5","v":6.5266665199344553E-3},{"$f":"'Population at Risk'!AO172/'Population at Risk'!AO$5","v":6.5217545070644306E-3},{"$f":"'Population at Risk'!AP172/'Population at Risk'!AP$5","v":5.1164403514445626E-3},{"$f":"'Population at Risk'!AQ172/'Population at Risk'!AQ$5","v":3.1116412864768796E-3},{"$f":"'Population at Risk'!AR172/'Population at Risk'!AR$5","v":2.9346476964579931E-3},{"$f":"'Population at Risk'!AS172/'Population at Risk'!AS$5","v":6.0293613648373292E-3},{"$f":"'Population at Risk'!AT172/'Population at Risk'!AT$5","v":7.0303035451782722E-3},{"$f":"'Population at Risk'!AU172/'Population at Risk'!AU$5","v":7.036519954060569E-3},{"$f":"'Population at Risk'!AV172/'Population at Risk'!AV$5","v":3.2195333398196517E-3},{"$f":"'Population at Risk'!AW172/'Population at Risk'!AW$5","v":2.7370843563672208E-3},{"$f":"'Population at Risk'!AX172/'Population at Risk'!AX$5","v":1.9434485473647056E-3},{"$f":"'Population at Risk'!AY172/'Population at Risk'!AY$5","v":3.8820871640375754E-3},{"$f":"'Population at Risk'!AZ172/'Population at Risk'!AZ$5","v":4.541806923156531E-3},{"$f":"'Population at Risk'!BA172/'Population at Risk'!BA$5","v":1.8300650315201073E-3},{"$f":"'Population at Risk'!BB172/'Population at Risk'!BB$5","v":2.708210425165062E-3},{"$f":"'Population at Risk'!BC172/'Population at Risk'!BC$5","v":1.3053019157242395E-2},170]
[null,"Male 90+",{"$f":"'Population at Risk'!C173/'Population at Risk'!C$5","v":8.4080843482799421E-4},{"$f":"'Population at Risk'!D173/'Population at Risk'!D$5","v":1.1512822309149612E-3},{"$f":"'Population at Risk'!E173/'Population at Risk'!E$5","v":1.4216813629841724E-3},{"$f":"'Population at Risk'!F173/'Population at Risk'!F$5","v":2.6322003735556919E-3},{"$f":"'Population at Risk'!G173/'Population at Risk'!G$5","v":2.8454915367265186E-3},{"$f":"'Population at Risk'!H173/'Population at Risk'!H$5","v":9.4789221505399261E-4},{"$f":"'Population at Risk'!I173/'Population at Risk'!I$5","v":2.1647085483822294E-3},{"$f":"'Population at Risk'!J173/'Population at Risk'!J$5","v":9.2580362663307431E-4},{"$f":"'Population at Risk'!K173/'Population at Risk'!K$5","v":1.2478435711776577E-3},{"$f":"'Population at Risk'!L173/'Population at Risk'!L$5","v":3.0370571266263493E-3},{"$f":"'Population at Risk'!M173/'Population at Risk'!M$5","v":3.036001153434957E-3},{"$f":"'Population at Risk'!N173/'Population at Risk'!N$5","v":8.7256885572391111E-4},{"$f":"'Population at Risk'!O173/'Population at Risk'!O$5","v":6.979078692736755E-4},{"$f":"'Population at Risk'!P173/'Population at Risk'!P$5","v":3.0846139441438635E-4},{"$f":"'Population at Risk'!Q173/'Population at Risk'!Q$5","v":1.7096083572769713E-3},{"$f":"'Population at Risk'!R173/'Population at Risk'!R$5","v":1.0963476418912267E-3},{"$f":"'Population at Risk'!S173/'Population at Risk'!S$5","v":1.1597006922450283E-3},{"$f":"'Population at Risk'!T173/'Population at Risk'!T$5","v":6.0526511832429395E-4},{"$f":"'Population at Risk'!U173/'Population at Risk'!U$5","v":5.2594860457257841E-3},{"$f":"'Population at Risk'!V173/'Population at Risk'!V$5","v":1.0019542690726875E-3},{"$f":"'Population at Risk'!W173/'Population at Risk'!W$5","v":1.3361830829171839E-3},{"$f":"'Population at Risk'!X173/'Population at Risk'!X$5","v":1.3360475282705713E-3},{"$f":"'Population at Risk'!Y173/'Population at Risk'!Y$5","v":9.9900241409407579E-4},{"$f":"'Population at Risk'!Z173/'Population at Risk'!Z$5","v":4.6451314208436679E-4},{"$f":"'Population at Risk'!AA173/'Population at Risk'!AA$5","v":8.4530489979940367E-4},{"$f":"'Population at Risk'!AB173/'Population at Risk'!AB$5","v":1.3182820787881234E-3},{"$f":"'Population at Risk'!AC173/'Population at Risk'!AC$5","v":7.7571205603268003E-4},{"$f":"'Population at Risk'!AD173/'Population at Risk'!AD$5","v":2.2939458974536994E-3},{"$f":"'Population at Risk'!AE173/'Population at Risk'!AE$5","v":2.1010310066785416E-3},{"$f":"'Population at Risk'!AF173/'Population at Risk'!AF$5","v":1.1917958273523711E-3},{"$f":"'Population at Risk'!AG173/'Population at Risk'!AG$5","v":2.1010310066785416E-3},{"$f":"'Population at Risk'!AH173/'Population at Risk'!AH$5","v":9.6980213868681287E-4},{"$f":"'Population at Risk'!AI173/'Population at Risk'!AI$5","v":9.3150924890449799E-4},{"$f":"'Population at Risk'!AJ173/'Population at Risk'!AJ$5","v":1.268010373194876E-3},{"$f":"'Population at Risk'!AK173/'Population at Risk'!AK$5","v":2.078026581139075E-3},{"$f":"'Population at Risk'!AL173/'Population at Risk'!AL$5","v":9.7764387156105146E-4},{"$f":"'Population at Risk'!AM173/'Population at Risk'!AM$5","v":7.1535901961684053E-4},{"$f":"'Population at Risk'!AN173/'Population at Risk'!AN$5","v":2.5860376777098789E-3},{"$f":"'Population at Risk'!AO173/'Population at Risk'!AO$5","v":2.5840914084594912E-3},{"$f":"'Population at Risk'!AP173/'Population at Risk'!AP$5","v":2.3793236599375061E-3},{"$f":"'Population at Risk'!AQ173/'Population at Risk'!AQ$5","v":1.9896552456799277E-3},{"$f":"'Population at Risk'!AR173/'Population at Risk'!AR$5","v":1.2642534435812552E-3},{"$f":"'Population at Risk'!AS173/'Population at Risk'!AS$5","v":2.1649830383392728E-3},{"$f":"'Population at Risk'!AT173/'Population at Risk'!AT$5","v":2.466773173746762E-3},{"$f":"'Population at Risk'!AU173/'Population at Risk'!AU$5","v":2.4689543698458135E-3},{"$f":"'Population at Risk'!AV173/'Population at Risk'!AV$5","v":1.1726777065568269E-3},{"$f":"'Population at Risk'!AW173/'Population at Risk'!AW$5","v":1.2312719900983242E-3},{"$f":"'Population at Risk'!AX173/'Population at Risk'!AX$5","v":8.2882364519965381E-4},{"$f":"'Population at Risk'!AY173/'Population at Risk'!AY$5","v":1.6642280883631874E-3},{"$f":"'Population at Risk'!AZ173/'Population at Risk'!AZ$5","v":1.9678991259587842E-3},{"$f":"'Population at Risk'!BA173/'Population at Risk'!BA$5","v":6.3654435878960258E-4},{"$f":"'Population at Risk'!BB173/'Population at Risk'!BB$5","v":1.2323878901032025E-3},{"$f":"'Population at Risk'!BC173/'Population at Risk'!BC$5","v":5.2562493250640514E-3},171]
["SIMD Q4","Female 0-4",{"$f":"'Population at Risk'!C174/'Population at Risk'!C$5","v":0},{"$f":"'Population at Risk'!D174/'Population at Risk'!D$5","v":0},{"$f":"'Population at Risk'!E174/'Population at Risk'!E$5","v":0},{"$f":"'Population at Risk'!F174/'Population at Risk'!F$5","v":0},{"$f":"'Population at Risk'!G174/'Population at Risk'!G$5","v":0},{"$f":"'Population at Risk'!H174/'Population at Risk'!H$5","v":0},{"$f":"'Population at Risk'!I174/'Population at Risk'!I$5","v":0},{"$f":"'Population at Risk'!J174/'Population at Risk'!J$5","v":0},{"$f":"'Population at Risk'!K174/'Population at Risk'!K$5","v":0},{"$f":"'Population at Risk'!L174/'Population at Risk'!L$5","v":0},{"$f":"'Population at Risk'!M174/'Population at Risk'!M$5","v":0},{"$f":"'Population at Risk'!N174/'Population at Risk'!N$5","v":0},{"$f":"'Population at Risk'!O174/'Population at Risk'!O$5","v":0},{"$f":"'Population at Risk'!P174/'Population at Risk'!P$5","v":0},{"$f":"'Population at Risk'!Q174/'Population at Risk'!Q$5","v":0},{"$f":"'Population at Risk'!R174/'Population at Risk'!R$5","v":0},{"$f":"'Population at Risk'!S174/'Population at Risk'!S$5","v":0},{"$f":"'Population at Risk'!T174/'Population at Risk'!T$5","v":0},{"$f":"'Population at Risk'!U174/'Population at Risk'!U$5","v":0},{"$f":"'Population at Risk'!V174/'Population at Risk'!V$5","v":0},{"$f":"'Population at Risk'!W174/'Population at Risk'!W$5","v":0},{"$f":"'Population at Risk'!X174/'Population at Risk'!X$5","v":0},{"$f":"'Population at Risk'!Y174/'Population at Risk'!Y$5","v":0},{"$f":"'Population at Risk'!Z174/'Population at Risk'!Z$5","v":0},{"$f":"'Population at Risk'!AA174/'Population at Risk'!AA$5","v":0},{"$f":"'Population at Risk'!AB174/'Population at Risk'!AB$5","v":0},{"$f":"'Population at Risk'!AC174/'Population at Risk'!AC$5","v":0},{"$f":"'Population at Risk'!AD174/'Population at Risk'!AD$5","v":0},{"$f":"'Population at Risk'!AE174/'Population at Risk'!AE$5","v":0},{"$f":"'Population at Risk'!AF174/'Population at Risk'!AF$5","v":0},{"$f":"'Population at Risk'!AG174/'Population at Risk'!AG$5","v":0},{"$f":"'Population at Risk'!AH174/'Population at Risk'!AH$5","v":0},{"$f":"'Population at Risk'!AI174/'Population at Risk'!AI$5","v":0},{"$f":"'Population at Risk'!AJ174/'Population at Risk'!AJ$5","v":0},{"$f":"'Population at Risk'!AK174/'Population at Risk'!AK$5","v":0},{"$f":"'Population at Risk'!AL174/'Population at Risk'!AL$5","v":0},{"$f":"'Population at Risk'!AM174/'Population at Risk'!AM$5","v":0},{"$f":"'Population at Risk'!AN174/'Population at Risk'!AN$5","v":0},{"$f":"'Population at Risk'!AO174/'Population at Risk'!AO$5","v":0},{"$f":"'Population at Risk'!AP174/'Population at Risk'!AP$5","v":0},{"$f":"'Population at Risk'!AQ174/'Population at Risk'!AQ$5","v":0},{"$f":"'Population at Risk'!AR174/'Population at Risk'!AR$5","v":0},{"$f":"'Population at Risk'!AS174/'Population at Risk'!AS$5","v":0},{"$f":"'Population at Risk'!AT174/'Population at Risk'!AT$5","v":0},{"$f":"'Population at Risk'!AU174/'Population at Risk'!AU$5","v":0},{"$f":"'Population at Risk'!AV174/'Population at Risk'!AV$5","v":0},{"$f":"'Population at Risk'!AW174/'Population at Risk'!AW$5","v":0},{"$f":"'Population at Risk'!AX174/'Population at Risk'!AX$5","v":0},{"$f":"'Population at Risk'!AY174/'Population at Risk'!AY$5","v":0},{"$f":"'Population at Risk'!AZ174/'Population at Risk'!AZ$5","v":0},{"$f":"'Population at Risk'!BA174/'Population at Risk'!BA$5","v":0},{"$f":"'Population at Risk'!BB174/'Population at Risk'!BB$5","v":0},{"$f":"'Population at Risk'!BC174/'Population at Risk'!BC$5","v":0},172]
[null,"Female 5-9",{"$f":"'Population at Risk'!C175/'Population at Risk'!C$5","v":0},{"$f":"'Population at Risk'!D175/'Population at Risk'!D$5","v":0},{"$f":"'Population at Risk'!E175/'Population at Risk'!E$5","v":0},{"$f":"'Population at Risk'!F175/'Population at Risk'!F$5","v":0},{"$f":"'Population at Risk'!G175/'Population at Risk'!G$5","v":0},{"$f":"'Population at Risk'!H175/'Population at Risk'!H$5","v":0},{"$f":"'Population at Risk'!I175/'Population at Risk'!I$5","v":0},{"$f":"'Population at Risk'!J175/'Population at Risk'!J$5","v":0},{"$f":"'Population at Risk'!K175/'Population at Risk'!K$5","v":0},{"$f":"'Population at Risk'!L175/'Population at Risk'!L$5","v":0},{"$f":"'Population at Risk'!M175/'Population at Risk'!M$5","v":0},{"$f":"'Population at Risk'!N175/'Population at Risk'!N$5","v":0},{"$f":"'Population at Risk'!O175/'Population at Risk'!O$5","v":0},{"$f":"'Population at Risk'!P175/'Population at Risk'!P$5","v":0},{"$f":"'Population at Risk'!Q175/'Population at Risk'!Q$5","v":0},{"$f":"'Population at Risk'!R175/'Population at Risk'!R$5","v":0},{"$f":"'Population at Risk'!S175/'Population at Risk'!S$5","v":0},{"$f":"'Population at Risk'!T175/'Population at Risk'!T$5","v":0},{"$f":"'Population at Risk'!U175/'Population at Risk'!U$5","v":0},{"$f":"'Population at Risk'!V175/'Population at Risk'!V$5","v":0},{"$f":"'Population at Risk'!W175/'Population at Risk'!W$5","v":0},{"$f":"'Population at Risk'!X175/'Population at Risk'!X$5","v":0},{"$f":"'Population at Risk'!Y175/'Population at Risk'!Y$5","v":0},{"$f":"'Population at Risk'!Z175/'Population at Risk'!Z$5","v":0},{"$f":"'Population at Risk'!AA175/'Population at Risk'!AA$5","v":0},{"$f":"'Population at Risk'!AB175/'Population at Risk'!AB$5","v":0},{"$f":"'Population at Risk'!AC175/'Population at Risk'!AC$5","v":0},{"$f":"'Population at Risk'!AD175/'Population at Risk'!AD$5","v":0},{"$f":"'Population at Risk'!AE175/'Population at Risk'!AE$5","v":0},{"$f":"'Population at Risk'!AF175/'Population at Risk'!AF$5","v":0},{"$f":"'Population at Risk'!AG175/'Population at Risk'!AG$5","v":0},{"$f":"'Population at Risk'!AH175/'Population at Risk'!AH$5","v":0},{"$f":"'Population at Risk'!AI175/'Population at Risk'!AI$5","v":0},{"$f":"'Population at Risk'!AJ175/'Population at Risk'!AJ$5","v":0},{"$f":"'Population at Risk'!AK175/'Population at Risk'!AK$5","v":0},{"$f":"'Population at Risk'!AL175/'Population at Risk'!AL$5","v":0},{"$f":"'Population at Risk'!AM175/'Population at Risk'!AM$5","v":0},{"$f":"'Population at Risk'!AN175/'Population at Risk'!AN$5","v":0},{"$f":"'Population at Risk'!AO175/'Population at Risk'!AO$5","v":0},{"$f":"'Population at Risk'!AP175/'Population at Risk'!AP$5","v":0},{"$f":"'Population at Risk'!AQ175/'Population at Risk'!AQ$5","v":0},{"$f":"'Population at Risk'!AR175/'Population at Risk'!AR$5","v":0},{"$f":"'Population at Risk'!AS175/'Population at Risk'!AS$5","v":0},{"$f":"'Population at Risk'!AT175/'Population at Risk'!AT$5","v":0},{"$f":"'Population at Risk'!AU175/'Population at Risk'!AU$5","v":0},{"$f":"'Population at Risk'!AV175/'Population at Risk'!AV$5","v":0},{"$f":"'Population at Risk'!AW175/'Population at Risk'!AW$5","v":0},{"$f":"'Population at Risk'!AX175/'Population at Risk'!AX$5","v":0},{"$f":"'Population at Risk'!AY175/'Population at Risk'!AY$5","v":0},{"$f":"'Population at Risk'!AZ175/'Population at Risk'!AZ$5","v":0},{"$f":"'Population at Risk'!BA175/'Population at Risk'!BA$5","v":0},{"$f":"'Population at Risk'!BB175/'Population at Risk'!BB$5","v":0},{"$f":"'Population at Risk'!BC175/'Population at Risk'!BC$5","v":0},173]
[null,"Female 10-15",{"$f":"'Population at Risk'!C176/'Population at Risk'!C$5","v":0},{"$f":"'Population at Risk'!D176/'Population at Risk'!D$5","v":0},{"$f":"'Population at Risk'!E176/'Population at Risk'!E$5","v":0},{"$f":"'Population at Risk'!F176/'Population at Risk'!F$5","v":0},{"$f":"'Population at Risk'!G176/'Population at Risk'!G$5","v":0},{"$f":"'Population at Risk'!H176/'Population at Risk'!H$5","v":0},{"$f":"'Population at Risk'!I176/'Population at Risk'!I$5","v":0},{"$f":"'Population at Risk'!J176/'Population at Risk'!J$5","v":0},{"$f":"'Population at Risk'!K176/'Population at Risk'!K$5","v":0},{"$f":"'Population at Risk'!L176/'Population at Risk'!L$5","v":0},{"$f":"'Population at Risk'!M176/'Population at Risk'!M$5","v":0},{"$f":"'Population at Risk'!N176/'Population at Risk'!N$5","v":0},{"$f":"'Population at Risk'!O176/'Population at Risk'!O$5","v":0},{"$f":"'Population at Risk'!P176/'Population at Risk'!P$5","v":0},{"$f":"'Population at Risk'!Q176/'Population at Risk'!Q$5","v":0},{"$f":"'Population at Risk'!R176/'Population at Risk'!R$5","v":0},{"$f":"'Population at Risk'!S176/'Population at Risk'!S$5","v":0},{"$f":"'Population at Risk'!T176/'Population at Risk'!T$5","v":0},{"$f":"'Population at Risk'!U176/'Population at Risk'!U$5","v":0},{"$f":"'Population at Risk'!V176/'Population at Risk'!V$5","v":0},{"$f":"'Population at Risk'!W176/'Population at Risk'!W$5","v":0},{"$f":"'Population at Risk'!X176/'Population at Risk'!X$5","v":0},{"$f":"'Population at Risk'!Y176/'Population at Risk'!Y$5","v":0},{"$f":"'Population at Risk'!Z176/'Population at Risk'!Z$5","v":0},{"$f":"'Population at Risk'!AA176/'Population at Risk'!AA$5","v":0},{"$f":"'Population at Risk'!AB176/'Population at Risk'!AB$5","v":0},{"$f":"'Population at Risk'!AC176/'Population at Risk'!AC$5","v":0},{"$f":"'Population at Risk'!AD176/'Population at Risk'!AD$5","v":0},{"$f":"'Population at Risk'!AE176/'Population at Risk'!AE$5","v":0},{"$f":"'Population at Risk'!AF176/'Population at Risk'!AF$5","v":0},{"$f":"'Population at Risk'!AG176/'Population at Risk'!AG$5","v":0},{"$f":"'Population at Risk'!AH176/'Population at Risk'!AH$5","v":0},{"$f":"'Population at Risk'!AI176/'Population at Risk'!AI$5","v":0},{"$f":"'Population at Risk'!AJ176/'Population at Risk'!AJ$5","v":0},{"$f":"'Population at Risk'!AK176/'Population at Risk'!AK$5","v":0},{"$f":"'Population at Risk'!AL176/'Population at Risk'!AL$5","v":0},{"$f":"'Population at Risk'!AM176/'Population at Risk'!AM$5","v":0},{"$f":"'Population at Risk'!AN176/'Population at Risk'!AN$5","v":0},{"$f":"'Population at Risk'!AO176/'Population at Risk'!AO$5","v":0},{"$f":"'Population at Risk'!AP176/'Population at Risk'!AP$5","v":0},{"$f":"'Population at Risk'!AQ176/'Population at Risk'!AQ$5","v":0},{"$f":"'Population at Risk'!AR176/'Population at Risk'!AR$5","v":0},{"$f":"'Population at Risk'!AS176/'Population at Risk'!AS$5","v":0},{"$f":"'Population at Risk'!AT176/'Population at Risk'!AT$5","v":0},{"$f":"'Population at Risk'!AU176/'Population at Risk'!AU$5","v":0},{"$f":"'Population at Risk'!AV176/'Population at Risk'!AV$5","v":0},{"$f":"'Population at Risk'!AW176/'Population at Risk'!AW$5","v":0},{"$f":"'Population at Risk'!AX176/'Population at Risk'!AX$5","v":0},{"$f":"'Population at Risk'!AY176/'Population at Risk'!AY$5","v":0},{"$f":"'Population at Risk'!AZ176/'Population at Risk'!AZ$5","v":0},{"$f":"'Population at Risk'!BA176/'Population at Risk'!BA$5","v":0},{"$f":"'Population at Risk'!BB176/'Population at Risk'!BB$5","v":0},{"$f":"'Population at Risk'!BC176/'Population at Risk'!BC$5","v":0},174]
[null,"Female 16-19",{"$f":"'Population at Risk'!C177/'Population at Risk'!C$5","v":3.1999300228772384E-3},{"$f":"'Population at Risk'!D177/'Population at Risk'!D$5","v":4.2619843159756475E-3},{"$f":"'Population at Risk'!E177/'Population at Risk'!E$5","v":5.2464367734955083E-3},{"$f":"'Population at Risk'!F177/'Population at Risk'!F$5","v":3.0732263064902851E-3},{"$f":"'Population at Risk'!G177/'Population at Risk'!G$5","v":2.9525371062190863E-3},{"$f":"'Population at Risk'!H177/'Population at Risk'!H$5","v":1.726711659105483E-3},{"$f":"'Population at Risk'!I177/'Population at Risk'!I$5","v":4.4862769733517022E-3},{"$f":"'Population at Risk'!J177/'Population at Risk'!J$5","v":4.384735732640122E-3},{"$f":"'Population at Risk'!K177/'Population at Risk'!K$5","v":2.2657793705694595E-3},{"$f":"'Population at Risk'!L177/'Population at Risk'!L$5","v":2.0021112952110843E-3},{"$f":"'Population at Risk'!M177/'Population at Risk'!M$5","v":2.0027933796596289E-3},{"$f":"'Population at Risk'!N177/'Population at Risk'!N$5","v":3.8074988718413282E-3},{"$f":"'Population at Risk'!O177/'Population at Risk'!O$5","v":1.6148894840660394E-3},{"$f":"'Population at Risk'!P177/'Population at Risk'!P$5","v":2.4389522232686664E-3},{"$f":"'Population at Risk'!Q177/'Population at Risk'!Q$5","v":4.9251690799784467E-3},{"$f":"'Population at Risk'!R177/'Population at Risk'!R$5","v":2.8489502687369683E-3},{"$f":"'Population at Risk'!S177/'Population at Risk'!S$5","v":2.5933030419198013E-3},{"$f":"'Population at Risk'!T177/'Population at Risk'!T$5","v":1.9304209333021283E-3},{"$f":"'Population at Risk'!U177/'Population at Risk'!U$5","v":6.3527313332132588E-4},{"$f":"'Population at Risk'!V177/'Population at Risk'!V$5","v":2.5941286270562466E-3},{"$f":"'Population at Risk'!W177/'Population at Risk'!W$5","v":2.1844379498034304E-3},{"$f":"'Population at Risk'!X177/'Population at Risk'!X$5","v":2.1846518362089915E-3},{"$f":"'Population at Risk'!Y177/'Population at Risk'!Y$5","v":3.3178353077308854E-3},{"$f":"'Population at Risk'!Z177/'Population at Risk'!Z$5","v":1.4446676664819514E-3},{"$f":"'Population at Risk'!AA177/'Population at Risk'!AA$5","v":1.9877789888806566E-3},{"$f":"'Population at Risk'!AB177/'Population at Risk'!AB$5","v":4.492739226862206E-3},{"$f":"'Population at Risk'!AC177/'Population at Risk'!AC$5","v":1.8043149898258016E-3},{"$f":"'Population at Risk'!AD177/'Population at Risk'!AD$5","v":3.7576645819268856E-3},{"$f":"'Population at Risk'!AE177/'Population at Risk'!AE$5","v":4.021558275771794E-3},{"$f":"'Population at Risk'!AF177/'Population at Risk'!AF$5","v":2.2107547435051564E-3},{"$f":"'Population at Risk'!AG177/'Population at Risk'!AG$5","v":4.021558275771794E-3},{"$f":"'Population at Risk'!AH177/'Population at Risk'!AH$5","v":2.2779511343775207E-3},{"$f":"'Population at Risk'!AI177/'Population at Risk'!AI$5","v":2.4782029112068154E-3},{"$f":"'Population at Risk'!AJ177/'Population at Risk'!AJ$5","v":1.8624567556555936E-3},{"$f":"'Population at Risk'!AK177/'Population at Risk'!AK$5","v":5.6282472444089014E-3},{"$f":"'Population at Risk'!AL177/'Population at Risk'!AL$5","v":1.9666526268012092E-3},{"$f":"'Population at Risk'!AM177/'Population at Risk'!AM$5","v":1.9064395918227193E-3},{"$f":"'Population at Risk'!AN177/'Population at Risk'!AN$5","v":5.6129395243051505E-3},{"$f":"'Population at Risk'!AO177/'Population at Risk'!AO$5","v":5.6184282087684192E-3},{"$f":"'Population at Risk'!AP177/'Population at Risk'!AP$5","v":6.2082553000231298E-3},{"$f":"'Population at Risk'!AQ177/'Population at Risk'!AQ$5","v":2.197297027426947E-3},{"$f":"'Population at Risk'!AR177/'Population at Risk'!AR$5","v":2.7706783911297488E-3},{"$f":"'Population at Risk'!AS177/'Population at Risk'!AS$5","v":4.4855688847310502E-3},{"$f":"'Population at Risk'!AT177/'Population at Risk'!AT$5","v":1.0736334621504307E-2},{"$f":"'Population at Risk'!AU177/'Population at Risk'!AU$5","v":1.0723840485929042E-2},{"$f":"'Population at Risk'!AV177/'Population at Risk'!AV$5","v":1.5550586795029478E-3},{"$f":"'Population at Risk'!AW177/'Population at Risk'!AW$5","v":2.7041600816068759E-3},{"$f":"'Population at Risk'!AX177/'Population at Risk'!AX$5","v":5.2273377223493699E-3},{"$f":"'Population at Risk'!AY177/'Population at Risk'!AY$5","v":3.3226881436848924E-3},{"$f":"'Population at Risk'!AZ177/'Population at Risk'!AZ$5","v":4.2589136493799617E-3},{"$f":"'Population at Risk'!BA177/'Population at Risk'!BA$5","v":1.3695202315568667E-3},{"$f":"'Population at Risk'!BB177/'Population at Risk'!BB$5","v":2.5424414638091771E-3},{"$f":"'Population at Risk'!BC177/'Population at Risk'!BC$5","v":6.357187930877004E-4},175]
[null,"Female 20-24",{"$f":"'Population at Risk'!C178/'Population at Risk'!C$5","v":7.6064880026250068E-3},{"$f":"'Population at Risk'!D178/'Population at Risk'!D$5","v":6.8111550426008666E-3},{"$f":"'Population at Risk'!E178/'Population at Risk'!E$5","v":6.0497454663749686E-3},{"$f":"'Population at Risk'!F178/'Population at Risk'!F$5","v":3.4242978529259067E-3},{"$f":"'Population at Risk'!G178/'Population at Risk'!G$5","v":3.1434632932263252E-3},{"$f":"'Population at Risk'!H178/'Population at Risk'!H$5","v":2.083744444977248E-3},{"$f":"'Population at Risk'!I178/'Population at Risk'!I$5","v":4.3068258944176339E-3},{"$f":"'Population at Risk'!J178/'Population at Risk'!J$5","v":6.2482484190121744E-3},{"$f":"'Population at Risk'!K178/'Population at Risk'!K$5","v":2.4176751942947862E-3},{"$f":"'Population at Risk'!L178/'Population at Risk'!L$5","v":2.5973335721657309E-3},{"$f":"'Population at Risk'!M178/'Population at Risk'!M$5","v":2.5982184384773562E-3},{"$f":"'Population at Risk'!N178/'Population at Risk'!N$5","v":8.3171490175238671E-3},{"$f":"'Population at Risk'!O178/'Population at Risk'!O$5","v":2.1324208320753343E-3},{"$f":"'Population at Risk'!P178/'Population at Risk'!P$5","v":3.7055903944689687E-3},{"$f":"'Population at Risk'!Q178/'Population at Risk'!Q$5","v":6.2550774356705686E-3},{"$f":"'Population at Risk'!R178/'Population at Risk'!R$5","v":2.9310525819570541E-3},{"$f":"'Population at Risk'!S178/'Population at Risk'!S$5","v":4.0113620403918688E-3},{"$f":"'Population at Risk'!T178/'Population at Risk'!T$5","v":5.0237460432922855E-3},{"$f":"'Population at Risk'!U178/'Population at Risk'!U$5","v":1.095298505726424E-3},{"$f":"'Population at Risk'!V178/'Population at Risk'!V$5","v":3.4516918095541787E-3},{"$f":"'Population at Risk'!W178/'Population at Risk'!W$5","v":2.8242167020921375E-3},{"$f":"'Population at Risk'!X178/'Population at Risk'!X$5","v":2.8244932316035345E-3},{"$f":"'Population at Risk'!Y178/'Population at Risk'!Y$5","v":4.6002847802140692E-3},{"$f":"'Population at Risk'!Z178/'Population at Risk'!Z$5","v":5.1459771063646423E-3},{"$f":"'Population at Risk'!AA178/'Population at Risk'!AA$5","v":3.4724173353153464E-3},{"$f":"'Population at Risk'!AB178/'Population at Risk'!AB$5","v":6.6594588380042294E-3},{"$f":"'Population at Risk'!AC178/'Population at Risk'!AC$5","v":4.0302965235871268E-3},{"$f":"'Population at Risk'!AD178/'Population at Risk'!AD$5","v":4.111031806229363E-3},{"$f":"'Population at Risk'!AE178/'Population at Risk'!AE$5","v":4.4335487138052561E-3},{"$f":"'Population at Risk'!AF178/'Population at Risk'!AF$5","v":2.7005219482201448E-3},{"$f":"'Population at Risk'!AG178/'Population at Risk'!AG$5","v":4.4335487138052561E-3},{"$f":"'Population at Risk'!AH178/'Population at Risk'!AH$5","v":2.5647976821965325E-3},{"$f":"'Population at Risk'!AI178/'Population at Risk'!AI$5","v":4.4811233051616443E-3},{"$f":"'Population at Risk'!AJ178/'Population at Risk'!AJ$5","v":2.1544795919082125E-3},{"$f":"'Population at Risk'!AK178/'Population at Risk'!AK$5","v":5.8388526251674285E-3},{"$f":"'Population at Risk'!AL178/'Population at Risk'!AL$5","v":2.2823409009515116E-3},{"$f":"'Population at Risk'!AM178/'Population at Risk'!AM$5","v":2.1422183399280028E-3},{"$f":"'Population at Risk'!AN178/'Population at Risk'!AN$5","v":6.6386543612340105E-3},{"$f":"'Population at Risk'!AO178/'Population at Risk'!AO$5","v":6.6451460540255924E-3},{"$f":"'Population at Risk'!AP178/'Population at Risk'!AP$5","v":6.340800695547039E-3},{"$f":"'Population at Risk'!AQ178/'Population at Risk'!AQ$5","v":2.7644509742280293E-3},{"$f":"'Population at Risk'!AR178/'Population at Risk'!AR$5","v":4.122993865269247E-3},{"$f":"'Population at Risk'!AS178/'Population at Risk'!AS$5","v":4.3061461293418084E-3},{"$f":"'Population at Risk'!AT178/'Population at Risk'!AT$5","v":1.0736334621504307E-2},{"$f":"'Population at Risk'!AU178/'Population at Risk'!AU$5","v":1.0723840485929042E-2},{"$f":"'Population at Risk'!AV178/'Population at Risk'!AV$5","v":1.7869996350898282E-3},{"$f":"'Population at Risk'!AW178/'Population at Risk'!AW$5","v":3.0494518616316258E-3},{"$f":"'Population at Risk'!AX178/'Population at Risk'!AX$5","v":7.926761767271584E-3},{"$f":"'Population at Risk'!AY178/'Population at Risk'!AY$5","v":4.547969256171379E-3},{"$f":"'Population at Risk'!AZ178/'Population at Risk'!AZ$5","v":5.9656747469316179E-3},{"$f":"'Population at Risk'!BA178/'Population at Risk'!BA$5","v":1.7580817856264895E-3},{"$f":"'Population at Risk'!BB178/'Population at Risk'!BB$5","v":3.1028316681103126E-3},{"$f":"'Population at Risk'!BC178/'Population at Risk'!BC$5","v":1.0960668846339663E-3},176]
[null,"Female 25-29",{"$f":"'Population at Risk'!C179/'Population at Risk'!C$5","v":5.4279257009360307E-3},{"$f":"'Population at Risk'!D179/'Population at Risk'!D$5","v":5.5904707567703748E-3},{"$f":"'Population at Risk'!E179/'Population at Risk'!E$5","v":5.7291970235168362E-3},{"$f":"'Population at Risk'!F179/'Population at Risk'!F$5","v":2.9842900470584484E-3},{"$f":"'Population at Risk'!G179/'Population at Risk'!G$5","v":2.4241690220789588E-3},{"$f":"'Population at Risk'!H179/'Population at Risk'!H$5","v":1.66415848038037E-3},{"$f":"'Population at Risk'!I179/'Population at Risk'!I$5","v":3.5557613639033542E-3},{"$f":"'Population at Risk'!J179/'Population at Risk'!J$5","v":4.3063299247030782E-3},{"$f":"'Population at Risk'!K179/'Population at Risk'!K$5","v":1.9396886816392678E-3},{"$f":"'Population at Risk'!L179/'Population at Risk'!L$5","v":2.2123876530612901E-3},{"$f":"'Population at Risk'!M179/'Population at Risk'!M$5","v":2.2131413750026805E-3},{"$f":"'Population at Risk'!N179/'Population at Risk'!N$5","v":3.6524253068284723E-3},{"$f":"'Population at Risk'!O179/'Population at Risk'!O$5","v":1.7287791546340041E-3},{"$f":"'Population at Risk'!P179/'Population at Risk'!P$5","v":2.5722347868681263E-3},{"$f":"'Population at Risk'!Q179/'Population at Risk'!Q$5","v":3.8340707805172469E-3},{"$f":"'Population at Risk'!R179/'Population at Risk'!R$5","v":2.7463011071825307E-3},{"$f":"'Population at Risk'!S179/'Population at Risk'!S$5","v":4.0208487902761358E-3},{"$f":"'Population at Risk'!T179/'Population at Risk'!T$5","v":6.1174031927752033E-3},{"$f":"'Population at Risk'!U179/'Population at Risk'!U$5","v":7.8645837784232077E-4},{"$f":"'Population at Risk'!V179/'Population at Risk'!V$5","v":2.9135820208681068E-3},{"$f":"'Population at Risk'!W179/'Population at Risk'!W$5","v":2.4451624887088228E-3},{"$f":"'Population at Risk'!X179/'Population at Risk'!X$5","v":2.4454019036190839E-3},{"$f":"'Population at Risk'!Y179/'Population at Risk'!Y$5","v":3.4491340919819771E-3},{"$f":"'Population at Risk'!Z179/'Population at Risk'!Z$5","v":3.7384714306753805E-3},{"$f":"'Population at Risk'!AA179/'Population at Risk'!AA$5","v":2.7097377705042639E-3},{"$f":"'Population at Risk'!AB179/'Population at Risk'!AB$5","v":5.6121399680593709E-3},{"$f":"'Population at Risk'!AC179/'Population at Risk'!AC$5","v":3.0173949825276418E-3},{"$f":"'Population at Risk'!AD179/'Population at Risk'!AD$5","v":3.8500609214731198E-3},{"$f":"'Population at Risk'!AE179/'Population at Risk'!AE$5","v":4.3547038113235081E-3},{"$f":"'Population at Risk'!AF179/'Population at Risk'!AF$5","v":1.9001036106354174E-3},{"$f":"'Population at Risk'!AG179/'Population at Risk'!AG$5","v":4.3547038113235081E-3},{"$f":"'Population at Risk'!AH179/'Population at Risk'!AH$5","v":2.2070973030973383E-3},{"$f":"'Population at Risk'!AI179/'Population at Risk'!AI$5","v":4.7788711624026474E-3},{"$f":"'Population at Risk'!AJ179/'Population at Risk'!AJ$5","v":2.1877335452822888E-3},{"$f":"'Population at Risk'!AK179/'Population at Risk'!AK$5","v":5.6787443716159692E-3},{"$f":"'Population at Risk'!AL179/'Population at Risk'!AL$5","v":1.8603106377984718E-3},{"$f":"'Population at Risk'!AM179/'Population at Risk'!AM$5","v":1.8197895929816595E-3},{"$f":"'Population at Risk'!AN179/'Population at Risk'!AN$5","v":6.4118987496158894E-3},{"$f":"'Population at Risk'!AO179/'Population at Risk'!AO$5","v":6.4181687065421435E-3},{"$f":"'Population at Risk'!AP179/'Population at Risk'!AP$5","v":5.1928862354990871E-3},{"$f":"'Population at Risk'!AQ179/'Population at Risk'!AQ$5","v":2.2303609182785888E-3},{"$f":"'Population at Risk'!AR179/'Population at Risk'!AR$5","v":3.4651860131867406E-3},{"$f":"'Population at Risk'!AS179/'Population at Risk'!AS$5","v":3.5552001426112918E-3},{"$f":"'Population at Risk'!AT179/'Population at Risk'!AT$5","v":1.1939323913084393E-2},{"$f":"'Population at Risk'!AU179/'Population at Risk'!AU$5","v":1.1925429829404446E-2},{"$f":"'Population at Risk'!AV179/'Population at Risk'!AV$5","v":1.3524517543329676E-3},{"$f":"'Population at Risk'!AW179/'Population at Risk'!AW$5","v":2.6505266771628434E-3},{"$f":"'Population at Risk'!AX179/'Population at Risk'!AX$5","v":5.3021006331632802E-3},{"$f":"'Population at Risk'!AY179/'Population at Risk'!AY$5","v":3.2082727836507939E-3},{"$f":"'Population at Risk'!AZ179/'Population at Risk'!AZ$5","v":3.8361501861601571E-3},{"$f":"'Population at Risk'!BA179/'Population at Risk'!BA$5","v":1.5896600060955901E-3},{"$f":"'Population at Risk'!BB179/'Population at Risk'!BB$5","v":3.2999045942186485E-3},{"$f":"'Population at Risk'!BC179/'Population at Risk'!BC$5","v":7.8701009778536345E-4},177]
[null,"Female 30-34",{"$f":"'Population at Risk'!C180/'Population at Risk'!C$5","v":4.2962446268382031E-3},{"$f":"'Population at Risk'!D180/'Population at Risk'!D$5","v":5.6845230911709531E-3},{"$f":"'Population at Risk'!E180/'Population at Risk'!E$5","v":6.9710890116796717E-3},{"$f":"'Population at Risk'!F180/'Population at Risk'!F$5","v":3.3437291018547119E-3},{"$f":"'Population at Risk'!G180/'Population at Risk'!G$5","v":2.5435862152848186E-3},{"$f":"'Population at Risk'!H180/'Population at Risk'!H$5","v":1.8080258801805016E-3},{"$f":"'Population at Risk'!I180/'Population at Risk'!I$5","v":4.1304298671604621E-3},{"$f":"'Population at Risk'!J180/'Population at Risk'!J$5","v":3.9005663147766477E-3},{"$f":"'Population at Risk'!K180/'Population at Risk'!K$5","v":2.6047248010584454E-3},{"$f":"'Population at Risk'!L180/'Population at Risk'!L$5","v":2.2743490865078176E-3},{"$f":"'Population at Risk'!M180/'Population at Risk'!M$5","v":2.2751239176304321E-3},{"$f":"'Population at Risk'!N180/'Population at Risk'!N$5","v":2.8582606860050467E-3},{"$f":"'Population at Risk'!O180/'Population at Risk'!O$5","v":1.9343863841899899E-3},{"$f":"'Population at Risk'!P180/'Population at Risk'!P$5","v":2.7551230400628783E-3},{"$f":"'Population at Risk'!Q180/'Population at Risk'!Q$5","v":4.2584338270095033E-3},{"$f":"'Population at Risk'!R180/'Population at Risk'!R$5","v":2.4515410407048247E-3},{"$f":"'Population at Risk'!S180/'Population at Risk'!S$5","v":3.9519838998410915E-3},{"$f":"'Population at Risk'!T180/'Population at Risk'!T$5","v":5.1602065217458753E-3},{"$f":"'Population at Risk'!U180/'Population at Risk'!U$5","v":1.1700966109361359E-3},{"$f":"'Population at Risk'!V180/'Population at Risk'!V$5","v":3.3115713175330798E-3},{"$f":"'Population at Risk'!W180/'Population at Risk'!W$5","v":2.5782536115119613E-3},{"$f":"'Population at Risk'!X180/'Population at Risk'!X$5","v":2.5785060578667049E-3},{"$f":"'Population at Risk'!Y180/'Population at Risk'!Y$5","v":3.4745672985592693E-3},{"$f":"'Population at Risk'!Z180/'Population at Risk'!Z$5","v":2.9809198468227029E-3},{"$f":"'Population at Risk'!AA180/'Population at Risk'!AA$5","v":2.6125261137895195E-3},{"$f":"'Population at Risk'!AB180/'Population at Risk'!AB$5","v":5.817705177130505E-3},{"$f":"'Population at Risk'!AC180/'Population at Risk'!AC$5","v":2.6486450532653295E-3},{"$f":"'Population at Risk'!AD180/'Population at Risk'!AD$5","v":4.5094916458361051E-3},{"$f":"'Population at Risk'!AE180/'Population at Risk'!AE$5","v":5.2158691828840089E-3},{"$f":"'Population at Risk'!AF180/'Population at Risk'!AF$5","v":1.6975847305049968E-3},{"$f":"'Population at Risk'!AG180/'Population at Risk'!AG$5","v":5.2158691828840089E-3},{"$f":"'Population at Risk'!AH180/'Population at Risk'!AH$5","v":2.5474259704874793E-3},{"$f":"'Population at Risk'!AI180/'Population at Risk'!AI$5","v":4.5224439292981151E-3},{"$f":"'Population at Risk'!AJ180/'Population at Risk'!AJ$5","v":2.7332463254046259E-3},{"$f":"'Population at Risk'!AK180/'Population at Risk'!AK$5","v":6.4482046952055909E-3},{"$f":"'Population at Risk'!AL180/'Population at Risk'!AL$5","v":1.7519792954367134E-3},{"$f":"'Population at Risk'!AM180/'Population at Risk'!AM$5","v":2.0129763325931645E-3},{"$f":"'Population at Risk'!AN180/'Population at Risk'!AN$5","v":7.2352164878934158E-3},{"$f":"'Population at Risk'!AO180/'Population at Risk'!AO$5","v":7.2422915365650655E-3},{"$f":"'Population at Risk'!AP180/'Population at Risk'!AP$5","v":6.2561736838637159E-3},{"$f":"'Population at Risk'!AQ180/'Population at Risk'!AQ$5","v":2.5545067050684101E-3},{"$f":"'Population at Risk'!AR180/'Population at Risk'!AR$5","v":3.5071625135109901E-3},{"$f":"'Population at Risk'!AS180/'Population at Risk'!AS$5","v":4.1297779434373598E-3},{"$f":"'Population at Risk'!AT180/'Population at Risk'!AT$5","v":1.1317753904594099E-2},{"$f":"'Population at Risk'!AU180/'Population at Risk'!AU$5","v":1.1304583157157794E-2},{"$f":"'Population at Risk'!AV180/'Population at Risk'!AV$5","v":1.7401853630837159E-3},{"$f":"'Population at Risk'!AW180/'Population at Risk'!AW$5","v":3.1566408845814151E-3},{"$f":"'Population at Risk'!AX180/'Population at Risk'!AX$5","v":4.3030595040081301E-3},{"$f":"'Population at Risk'!AY180/'Population at Risk'!AY$5","v":3.3681279767439247E-3},{"$f":"'Population at Risk'!AZ180/'Population at Risk'!AZ$5","v":4.0180366174005101E-3},{"$f":"'Population at Risk'!BA180/'Population at Risk'!BA$5","v":1.5840822516882372E-3},{"$f":"'Population at Risk'!BB180/'Population at Risk'!BB$5","v":3.9453949140458499E-3},{"$f":"'Population at Risk'!BC180/'Population at Risk'!BC$5","v":1.1709174625587114E-3},178]
[null,"Female 35-39",{"$f":"'Population at Risk'!C181/'Population at Risk'!C$5","v":4.3454175049444385E-3},{"$f":"'Population at Risk'!D181/'Population at Risk'!D$5","v":6.9853243832754533E-3},{"$f":"'Population at Risk'!E181/'Population at Risk'!E$5","v":9.4410658955888672E-3},{"$f":"'Population at Risk'!F181/'Population at Risk'!F$5","v":4.6975583726331926E-3},{"$f":"'Population at Risk'!G181/'Population at Risk'!G$5","v":4.0495854098389567E-3},{"$f":"'Population at Risk'!H181/'Population at Risk'!H$5","v":2.5841453184400069E-3},{"$f":"'Population at Risk'!I181/'Population at Risk'!I$5","v":5.5288465651751675E-3},{"$f":"'Population at Risk'!J181/'Population at Risk'!J$5","v":5.5661153082737311E-3},{"$f":"'Population at Risk'!K181/'Population at Risk'!K$5","v":3.5206251371224296E-3},{"$f":"'Population at Risk'!L181/'Population at Risk'!L$5","v":2.8705418697294637E-3},{"$f":"'Population at Risk'!M181/'Population at Risk'!M$5","v":2.8715198133497425E-3},{"$f":"'Population at Risk'!N181/'Population at Risk'!N$5","v":3.1443487836708564E-3},{"$f":"'Population at Risk'!O181/'Population at Risk'!O$5","v":2.9660475356548806E-3},{"$f":"'Population at Risk'!P181/'Population at Risk'!P$5","v":3.8553500062661603E-3},{"$f":"'Population at Risk'!Q181/'Population at Risk'!Q$5","v":6.1537605393358966E-3},{"$f":"'Population at Risk'!R181/'Population at Risk'!R$5","v":3.7809604139902608E-3},{"$f":"'Population at Risk'!S181/'Population at Risk'!S$5","v":4.7142907317493099E-3},{"$f":"'Population at Risk'!T181/'Population at Risk'!T$5","v":5.0173591084358643E-3},{"$f":"'Population at Risk'!U181/'Population at Risk'!U$5","v":1.1486446505649132E-3},{"$f":"'Population at Risk'!V181/'Population at Risk'!V$5","v":4.599293524371037E-3},{"$f":"'Population at Risk'!W181/'Population at Risk'!W$5","v":3.6020864225844587E-3},{"$f":"'Population at Risk'!X181/'Population at Risk'!X$5","v":3.6024391161995446E-3},{"$f":"'Population at Risk'!Y181/'Population at Risk'!Y$5","v":4.8923904249863993E-3},{"$f":"'Population at Risk'!Z181/'Population at Risk'!Z$5","v":2.8527404122240031E-3},{"$f":"'Population at Risk'!AA181/'Population at Risk'!AA$5","v":3.3467421167725935E-3},{"$f":"'Population at Risk'!AB181/'Population at Risk'!AB$5","v":7.1910587597840058E-3},{"$f":"'Population at Risk'!AC181/'Population at Risk'!AC$5","v":3.0249378148285858E-3},{"$f":"'Population at Risk'!AD181/'Population at Risk'!AD$5","v":5.8769474661025216E-3},{"$f":"'Population at Risk'!AE181/'Population at Risk'!AE$5","v":6.5111428812789649E-3},{"$f":"'Population at Risk'!AF181/'Population at Risk'!AF$5","v":3.1248388291616929E-3},{"$f":"'Population at Risk'!AG181/'Population at Risk'!AG$5","v":6.5111428812789649E-3},{"$f":"'Population at Risk'!AH181/'Population at Risk'!AH$5","v":3.8560888029747576E-3},{"$f":"'Population at Risk'!AI181/'Population at Risk'!AI$5","v":5.069636909271643E-3},{"$f":"'Population at Risk'!AJ181/'Population at Risk'!AJ$5","v":3.6394417727096725E-3},{"$f":"'Population at Risk'!AK181/'Population at Risk'!AK$5","v":8.1788789640295425E-3},{"$f":"'Population at Risk'!AL181/'Population at Risk'!AL$5","v":2.4897862484449013E-3},{"$f":"'Population at Risk'!AM181/'Population at Risk'!AM$5","v":2.925680927636543E-3},{"$f":"'Population at Risk'!AN181/'Population at Risk'!AN$5","v":1.0230575446052104E-2},{"$f":"'Population at Risk'!AO181/'Population at Risk'!AO$5","v":1.0240579544663515E-2},{"$f":"'Population at Risk'!AP181/'Population at Risk'!AP$5","v":7.7006149898230063E-3},{"$f":"'Population at Risk'!AQ181/'Population at Risk'!AQ$5","v":3.3021659165614185E-3},{"$f":"'Population at Risk'!AR181/'Population at Risk'!AR$5","v":4.4254865415995839E-3},{"$f":"'Population at Risk'!AS181/'Population at Risk'!AS$5","v":5.5279739232581872E-3},{"$f":"'Population at Risk'!AT181/'Population at Risk'!AT$5","v":1.6048030396721778E-2},{"$f":"'Population at Risk'!AU181/'Population at Risk'!AU$5","v":1.6029354910667998E-2},{"$f":"'Population at Risk'!AV181/'Population at Risk'!AV$5","v":2.28335655759105E-3},{"$f":"'Population at Risk'!AW181/'Population at Risk'!AW$5","v":4.9135432562994854E-3},{"$f":"'Population at Risk'!AX181/'Population at Risk'!AX$5","v":6.2561294671772379E-3},{"$f":"'Population at Risk'!AY181/'Population at Risk'!AY$5","v":4.3536490174419847E-3},{"$f":"'Population at Risk'!AZ181/'Population at Risk'!AZ$5","v":4.972279954617913E-3},{"$f":"'Population at Risk'!BA181/'Population at Risk'!BA$5","v":1.9168992661482789E-3},{"$f":"'Population at Risk'!BB181/'Population at Risk'!BB$5","v":5.1531656857597185E-3},{"$f":"'Population at Risk'!BC181/'Population at Risk'!BC$5","v":1.149450453108367E-3},179]
[null,"Female 40-44",{"$f":"'Population at Risk'!C182/'Population at Risk'!C$5","v":3.479030927154896E-3},{"$f":"'Population at Risk'!D182/'Population at Risk'!D$5","v":6.9836919167217543E-3},{"$f":"'Population at Risk'!E182/'Population at Risk'!E$5","v":1.0249397958890122E-2},{"$f":"'Population at Risk'!F182/'Population at Risk'!F$5","v":5.0731167746392537E-3},{"$f":"'Population at Risk'!G182/'Population at Risk'!G$5","v":4.9900841326614397E-3},{"$f":"'Population at Risk'!H182/'Population at Risk'!H$5","v":3.1784087017746429E-3},{"$f":"'Population at Risk'!I182/'Population at Risk'!I$5","v":7.2938694644171347E-3},{"$f":"'Population at Risk'!J182/'Population at Risk'!J$5","v":6.7872528503950093E-3},{"$f":"'Population at Risk'!K182/'Population at Risk'!K$5","v":4.6749284607691278E-3},{"$f":"'Population at Risk'!L182/'Population at Risk'!L$5","v":3.5537782816981297E-3},{"$f":"'Population at Risk'!M182/'Population at Risk'!M$5","v":3.5549889920643914E-3},{"$f":"'Population at Risk'!N182/'Population at Risk'!N$5","v":3.0824146409621877E-3},{"$f":"'Population at Risk'!O182/'Population at Risk'!O$5","v":3.053444884771783E-3},{"$f":"'Population at Risk'!P182/'Population at Risk'!P$5","v":4.5849481150217085E-3},{"$f":"'Population at Risk'!Q182/'Population at Risk'!Q$5","v":7.4256233647936295E-3},{"$f":"'Population at Risk'!R182/'Population at Risk'!R$5","v":4.3331303754393334E-3},{"$f":"'Population at Risk'!S182/'Population at Risk'!S$5","v":4.92608083117898E-3},{"$f":"'Population at Risk'!T182/'Population at Risk'!T$5","v":4.2799995300825096E-3},{"$f":"'Population at Risk'!U182/'Population at Risk'!U$5","v":1.2984678658559889E-3},{"$f":"'Population at Risk'!V182/'Population at Risk'!V$5","v":5.6550293386793734E-3},{"$f":"'Population at Risk'!W182/'Population at Risk'!W$5","v":4.154084006358587E-3},{"$f":"'Population at Risk'!X182/'Population at Risk'!X$5","v":4.1544907481003701E-3},{"$f":"'Population at Risk'!Y182/'Population at Risk'!Y$5","v":5.9900584484997455E-3},{"$f":"'Population at Risk'!Z182/'Population at Risk'!Z$5","v":2.4036209304161425E-3},{"$f":"'Population at Risk'!AA182/'Population at Risk'!AA$5","v":3.5023145417197006E-3},{"$f":"'Population at Risk'!AB182/'Population at Risk'!AB$5","v":7.5569603636613776E-3},{"$f":"'Population at Risk'!AC182/'Population at Risk'!AC$5","v":3.0694314101989673E-3},{"$f":"'Population at Risk'!AD182/'Population at Risk'!AD$5","v":7.0281248162042519E-3},{"$f":"'Population at Risk'!AE182/'Population at Risk'!AE$5","v":7.7291416892241232E-3},{"$f":"'Population at Risk'!AF182/'Population at Risk'!AF$5","v":3.6133372069214612E-3},{"$f":"'Population at Risk'!AG182/'Population at Risk'!AG$5","v":7.7291416892241232E-3},{"$f":"'Population at Risk'!AH182/'Population at Risk'!AH$5","v":4.1901284244834315E-3},{"$f":"'Population at Risk'!AI182/'Population at Risk'!AI$5","v":4.8929136508146388E-3},{"$f":"'Population at Risk'!AJ182/'Population at Risk'!AJ$5","v":3.4914969852011496E-3},{"$f":"'Population at Risk'!AK182/'Population at Risk'!AK$5","v":1.040571949168536E-2},{"$f":"'Population at Risk'!AL182/'Population at Risk'!AL$5","v":3.2143529496524996E-3},{"$f":"'Population at Risk'!AM182/'Population at Risk'!AM$5","v":3.2961903889448456E-3},{"$f":"'Population at Risk'!AN182/'Population at Risk'!AN$5","v":1.0977569843700352E-2},{"$f":"'Population at Risk'!AO182/'Population at Risk'!AO$5","v":1.0988304400305611E-2},{"$f":"'Population at Risk'!AP182/'Population at Risk'!AP$5","v":9.7427401042127788E-3},{"$f":"'Population at Risk'!AQ182/'Population at Risk'!AQ$5","v":3.9370489298276232E-3},{"$f":"'Population at Risk'!AR182/'Population at Risk'!AR$5","v":4.8309312689625945E-3},{"$f":"'Population at Risk'!AS182/'Population at Risk'!AS$5","v":7.2927182412539293E-3},{"$f":"'Population at Risk'!AT182/'Population at Risk'!AT$5","v":1.7160603932628957E-2},{"$f":"'Population at Risk'!AU182/'Population at Risk'!AU$5","v":1.7140633717500024E-2},{"$f":"'Population at Risk'!AV182/'Population at Risk'!AV$5","v":3.2748140102292693E-3},{"$f":"'Population at Risk'!AW182/'Population at Risk'!AW$5","v":5.2087408920719405E-3},{"$f":"'Population at Risk'!AX182/'Population at Risk'!AX$5","v":7.4036532145534979E-3},{"$f":"'Population at Risk'!AY182/'Population at Risk'!AY$5","v":5.0270061290939375E-3},{"$f":"'Population at Risk'!AZ182/'Population at Risk'!AZ$5","v":5.7455249558855002E-3},{"$f":"'Population at Risk'!BA182/'Population at Risk'!BA$5","v":2.4106460468228353E-3},{"$f":"'Population at Risk'!BB182/'Population at Risk'!BB$5","v":5.4489796893515815E-3},{"$f":"'Population at Risk'!BC182/'Population at Risk'!BC$5","v":1.2993787730790234E-3},180]
[null,"Female 45-49",{"$f":"'Population at Risk'!C183/'Population at Risk'!C$5","v":3.7520944010885644E-3},{"$f":"'Population at Risk'!D183/'Population at Risk'!D$5","v":8.4264658568803993E-3},{"$f":"'Population at Risk'!E183/'Population at Risk'!E$5","v":1.2784276788648899E-2},{"$f":"'Population at Risk'!F183/'Population at Risk'!F$5","v":7.0398730290791925E-3},{"$f":"'Population at Risk'!G183/'Population at Risk'!G$5","v":6.945311022958923E-3},{"$f":"'Population at Risk'!H183/'Population at Risk'!H$5","v":4.0218125065769952E-3},{"$f":"'Population at Risk'!I183/'Population at Risk'!I$5","v":1.0168460567040183E-2},{"$f":"'Population at Risk'!J183/'Population at Risk'!J$5","v":8.3789914372763476E-3},{"$f":"'Population at Risk'!K183/'Population at Risk'!K$5","v":6.0752426802680283E-3},{"$f":"'Population at Risk'!L183/'Population at Risk'!L$5","v":5.1064804748699759E-3},{"$f":"'Population at Risk'!M183/'Population at Risk'!M$5","v":5.1082201638308431E-3},{"$f":"'Population at Risk'!N183/'Population at Risk'!N$5","v":3.7467774256332489E-3},{"$f":"'Population at Risk'!O183/'Population at Risk'!O$5","v":3.8484876450196057E-3},{"$f":"'Population at Risk'!P183/'Population at Risk'!P$5","v":6.1447520717401484E-3},{"$f":"'Population at Risk'!Q183/'Population at Risk'!Q$5","v":9.3819154026378321E-3},{"$f":"'Population at Risk'!R183/'Population at Risk'!R$5","v":5.5422890028837433E-3},{"$f":"'Population at Risk'!S183/'Population at Risk'!S$5","v":5.8818817058273196E-3},{"$f":"'Population at Risk'!T183/'Population at Risk'!T$5","v":4.2452027859354964E-3},{"$f":"'Population at Risk'!U183/'Population at Risk'!U$5","v":1.3633912591487882E-3},{"$f":"'Population at Risk'!V183/'Population at Risk'!V$5","v":6.6921920229211724E-3},{"$f":"'Population at Risk'!W183/'Population at Risk'!W$5","v":5.4109865337917205E-3},{"$f":"'Population at Risk'!X183/'Population at Risk'!X$5","v":5.4115163435125031E-3},{"$f":"'Population at Risk'!Y183/'Population at Risk'!Y$5","v":7.2442269361543783E-3},{"$f":"'Population at Risk'!Z183/'Population at Risk'!Z$5","v":2.8144820859959253E-3},{"$f":"'Population at Risk'!AA183/'Population at Risk'!AA$5","v":4.3800023057962963E-3},{"$f":"'Population at Risk'!AB183/'Population at Risk'!AB$5","v":9.1060348403750515E-3},{"$f":"'Population at Risk'!AC183/'Population at Risk'!AC$5","v":3.9453912356738775E-3},{"$f":"'Population at Risk'!AD183/'Population at Risk'!AD$5","v":8.8309389817889956E-3},{"$f":"'Population at Risk'!AE183/'Population at Risk'!AE$5","v":9.448580304917846E-3},{"$f":"'Population at Risk'!AF183/'Population at Risk'!AF$5","v":5.0396749305549422E-3},{"$f":"'Population at Risk'!AG183/'Population at Risk'!AG$5","v":9.448580304917846E-3},{"$f":"'Population at Risk'!AH183/'Population at Risk'!AH$5","v":5.0682691394555541E-3},{"$f":"'Population at Risk'!AI183/'Population at Risk'!AI$5","v":5.4196471406045424E-3},{"$f":"'Population at Risk'!AJ183/'Population at Risk'!AJ$5","v":4.2874399419970035E-3},{"$f":"'Population at Risk'!AK183/'Population at Risk'!AK$5","v":1.2481896459477471E-2},{"$f":"'Population at Risk'!AL183/'Population at Risk'!AL$5","v":4.3298938976862105E-3},{"$f":"'Population at Risk'!AM183/'Population at Risk'!AM$5","v":4.1846452008281734E-3},{"$f":"'Population at Risk'!AN183/'Population at Risk'!AN$5","v":1.3470257670635265E-2},{"$f":"'Population at Risk'!AO183/'Population at Risk'!AO$5","v":1.3483429733806958E-2},{"$f":"'Population at Risk'!AP183/'Population at Risk'!AP$5","v":1.3034265631666552E-2},{"$f":"'Population at Risk'!AQ183/'Population at Risk'!AQ$5","v":5.3370821112161768E-3},{"$f":"'Population at Risk'!AR183/'Population at Risk'!AR$5","v":5.9768961673390859E-3},{"$f":"'Population at Risk'!AS183/'Population at Risk'!AS$5","v":1.016685563465196E-2},{"$f":"'Population at Risk'!AT183/'Population at Risk'!AT$5","v":1.9328436610169315E-2},{"$f":"'Population at Risk'!AU183/'Population at Risk'!AU$5","v":1.9305943635054539E-2},{"$f":"'Population at Risk'!AV183/'Population at Risk'!AV$5","v":3.8360390167529635E-3},{"$f":"'Population at Risk'!AW183/'Population at Risk'!AW$5","v":6.0801086959263555E-3},{"$f":"'Population at Risk'!AX183/'Population at Risk'!AX$5","v":8.9608854406226131E-3},{"$f":"'Population at Risk'!AY183/'Population at Risk'!AY$5","v":6.6246617375296758E-3},{"$f":"'Population at Risk'!AZ183/'Population at Risk'!AZ$5","v":7.6235830772725666E-3},{"$f":"'Population at Risk'!BA183/'Population at Risk'!BA$5","v":3.6747830249910744E-3},{"$f":"'Population at Risk'!BB183/'Population at Risk'!BB$5","v":6.3021244243484063E-3},{"$f":"'Population at Risk'!BC183/'Population at Risk'!BC$5","v":1.3643477117329743E-3},181]
[null,"Female 50-54",{"$f":"'Population at Risk'!C184/'Population at Risk'!C$5","v":3.964477103036974E-3},{"$f":"'Population at Risk'!D184/'Population at Risk'!D$5","v":8.6715807099182161E-3},{"$f":"'Population at Risk'!E184/'Population at Risk'!E$5","v":1.3059457020354773E-2},{"$f":"'Population at Risk'!F184/'Population at Risk'!F$5","v":8.003087979798016E-3},{"$f":"'Population at Risk'!G184/'Population at Risk'!G$5","v":7.4105081185037629E-3},{"$f":"'Population at Risk'!H184/'Population at Risk'!H$5","v":4.3356916208655621E-3},{"$f":"'Population at Risk'!I184/'Population at Risk'!I$5","v":1.1064414244039499E-2},{"$f":"'Population at Risk'!J184/'Population at Risk'!J$5","v":8.8322322552357811E-3},{"$f":"'Population at Risk'!K184/'Population at Risk'!K$5","v":5.4692334353535115E-3},{"$f":"'Population at Risk'!L184/'Population at Risk'!L$5","v":5.6544930136365103E-3},{"$f":"'Population at Risk'!M184/'Population at Risk'!M$5","v":5.6564194009248846E-3},{"$f":"'Population at Risk'!N184/'Population at Risk'!N$5","v":4.171979136152376E-3},{"$f":"'Population at Risk'!O184/'Population at Risk'!O$5","v":3.9689321167713371E-3},{"$f":"'Population at Risk'!P184/'Population at Risk'!P$5","v":6.8785741695463866E-3},{"$f":"'Population at Risk'!Q184/'Population at Risk'!Q$5","v":9.1458499539733285E-3},{"$f":"'Population at Risk'!R184/'Population at Risk'!R$5","v":5.5619425099861673E-3},{"$f":"'Population at Risk'!S184/'Population at Risk'!S$5","v":6.0748460186410185E-3},{"$f":"'Population at Risk'!T184/'Population at Risk'!T$5","v":4.6140482738938268E-3},{"$f":"'Population at Risk'!U184/'Population at Risk'!U$5","v":1.7304581366119234E-3},{"$f":"'Population at Risk'!V184/'Population at Risk'!V$5","v":6.2508358005506038E-3},{"$f":"'Population at Risk'!W184/'Population at Risk'!W$5","v":5.6563635619073733E-3},{"$f":"'Population at Risk'!X184/'Population at Risk'!X$5","v":5.6569173974012638E-3},{"$f":"'Population at Risk'!Y184/'Population at Risk'!Y$5","v":7.2174856037950045E-3},{"$f":"'Population at Risk'!Z184/'Population at Risk'!Z$5","v":2.9704263505125439E-3},{"$f":"'Population at Risk'!AA184/'Population at Risk'!AA$5","v":4.5677341051541115E-3},{"$f":"'Population at Risk'!AB184/'Population at Risk'!AB$5","v":9.3898816442784319E-3},{"$f":"'Population at Risk'!AC184/'Population at Risk'!AC$5","v":4.2316229213840411E-3},{"$f":"'Population at Risk'!AD184/'Population at Risk'!AD$5","v":9.5450871485968473E-3},{"$f":"'Population at Risk'!AE184/'Population at Risk'!AE$5","v":1.0250278027759359E-2},{"$f":"'Population at Risk'!AF184/'Population at Risk'!AF$5","v":5.6177313442373348E-3},{"$f":"'Population at Risk'!AG184/'Population at Risk'!AG$5","v":1.0250278027759359E-2},{"$f":"'Population at Risk'!AH184/'Population at Risk'!AH$5","v":5.0968794816603005E-3},{"$f":"'Population at Risk'!AI184/'Population at Risk'!AI$5","v":5.481500281064494E-3},{"$f":"'Population at Risk'!AJ184/'Population at Risk'!AJ$5","v":4.1864676245224365E-3},{"$f":"'Population at Risk'!AK184/'Population at Risk'!AK$5","v":1.2959963524429602E-2},{"$f":"'Population at Risk'!AL184/'Population at Risk'!AL$5","v":5.0345228574511843E-3},{"$f":"'Population at Risk'!AM184/'Population at Risk'!AM$5","v":4.1584407751967829E-3},{"$f":"'Population at Risk'!AN184/'Population at Risk'!AN$5","v":1.4015888361091378E-2},{"$f":"'Population at Risk'!AO184/'Population at Risk'!AO$5","v":1.4029593976189011E-2},{"$f":"'Population at Risk'!AP184/'Population at Risk'!AP$5","v":1.3223613031890997E-2},{"$f":"'Population at Risk'!AQ184/'Population at Risk'!AQ$5","v":5.6947844918612822E-3},{"$f":"'Population at Risk'!AR184/'Population at Risk'!AR$5","v":6.2440849172881617E-3},{"$f":"'Population at Risk'!AS184/'Population at Risk'!AS$5","v":1.1062667899382912E-2},{"$f":"'Population at Risk'!AT184/'Population at Risk'!AT$5","v":2.0107238085304343E-2},{"$f":"'Population at Risk'!AU184/'Population at Risk'!AU$5","v":2.0083838799836957E-2},{"$f":"'Population at Risk'!AV184/'Population at Risk'!AV$5","v":3.8802039396432118E-3},{"$f":"'Population at Risk'!AW184/'Population at Risk'!AW$5","v":6.1699514546397112E-3},{"$f":"'Population at Risk'!AX184/'Population at Risk'!AX$5","v":9.9962068660331936E-3},{"$f":"'Population at Risk'!AY184/'Population at Risk'!AY$5","v":6.9939176920772745E-3},{"$f":"'Population at Risk'!AZ184/'Population at Risk'!AZ$5","v":8.0947326813639846E-3},{"$f":"'Population at Risk'!BA184/'Population at Risk'!BA$5","v":4.1169768329775529E-3},{"$f":"'Population at Risk'!BB184/'Population at Risk'!BB$5","v":5.8609757146440176E-3},{"$f":"'Population at Risk'!BC184/'Population at Risk'!BC$5","v":1.7316720956610829E-3},182]
[null,"Female 55-59",{"$f":"'Population at Risk'!C185/'Population at Risk'!C$5","v":5.5934187154412836E-3},{"$f":"'Population at Risk'!D185/'Population at Risk'!D$5","v":1.155263930721284E-2},{"$f":"'Population at Risk'!E185/'Population at Risk'!E$5","v":1.7106327289612793E-2},{"$f":"'Population at Risk'!F185/'Population at Risk'!F$5","v":1.0806231265590799E-2},{"$f":"'Population at Risk'!G185/'Population at Risk'!G$5","v":1.0546022042359878E-2},{"$f":"'Population at Risk'!H185/'Population at Risk'!H$5","v":6.3244030371855794E-3},{"$f":"'Population at Risk'!I185/'Population at Risk'!I$5","v":1.581273495426843E-2},{"$f":"'Population at Risk'!J185/'Population at Risk'!J$5","v":1.1159493222139008E-2},{"$f":"'Population at Risk'!K185/'Population at Risk'!K$5","v":7.4337134042847374E-3},{"$f":"'Population at Risk'!L185/'Population at Risk'!L$5","v":8.6467363692478948E-3},{"$f":"'Population at Risk'!M185/'Population at Risk'!M$5","v":8.649682161733176E-3},{"$f":"'Population at Risk'!N185/'Population at Risk'!N$5","v":6.4106601868295521E-3},{"$f":"'Population at Risk'!O185/'Population at Risk'!O$5","v":5.7682250417155703E-3},{"$f":"'Population at Risk'!P185/'Population at Risk'!P$5","v":1.1231202886780147E-2},{"$f":"'Population at Risk'!Q185/'Population at Risk'!Q$5","v":1.3062930514398205E-2},{"$f":"'Population at Risk'!R185/'Population at Risk'!R$5","v":7.8164805390214514E-3},{"$f":"'Population at Risk'!S185/'Population at Risk'!S$5","v":8.3460987330803097E-3},{"$f":"'Population at Risk'!T185/'Population at Risk'!T$5","v":6.3071584248184532E-3},{"$f":"'Population at Risk'!U185/'Population at Risk'!U$5","v":2.3172657298353031E-3},{"$f":"'Population at Risk'!V185/'Population at Risk'!V$5","v":8.344223065681439E-3},{"$f":"'Population at Risk'!W185/'Population at Risk'!W$5","v":7.9584352370121059E-3},{"$f":"'Population at Risk'!X185/'Population at Risk'!X$5","v":7.9592144768650345E-3},{"$f":"'Population at Risk'!Y185/'Population at Risk'!Y$5","v":9.3518259451067474E-3},{"$f":"'Population at Risk'!Z185/'Population at Risk'!Z$5","v":3.9788659277200092E-3},{"$f":"'Population at Risk'!AA185/'Population at Risk'!AA$5","v":6.2699557214503767E-3},{"$f":"'Population at Risk'!AB185/'Population at Risk'!AB$5","v":1.2615413506816827E-2},{"$f":"'Population at Risk'!AC185/'Population at Risk'!AC$5","v":6.004003359500667E-3},{"$f":"'Population at Risk'!AD185/'Population at Risk'!AD$5","v":1.3245362948321552E-2},{"$f":"'Population at Risk'!AE185/'Population at Risk'!AE$5","v":1.4121514537489532E-2},{"$f":"'Population at Risk'!AF185/'Population at Risk'!AF$5","v":7.3321280318990002E-3},{"$f":"'Population at Risk'!AG185/'Population at Risk'!AG$5","v":1.4121514537489532E-2},{"$f":"'Population at Risk'!AH185/'Population at Risk'!AH$5","v":6.681599776690729E-3},{"$f":"'Population at Risk'!AI185/'Population at Risk'!AI$5","v":7.3545436852813983E-3},{"$f":"'Population at Risk'!AJ185/'Population at Risk'!AJ$5","v":5.468039346315021E-3},{"$f":"'Population at Risk'!AK185/'Population at Risk'!AK$5","v":1.790744025808574E-2},{"$f":"'Population at Risk'!AL185/'Population at Risk'!AL$5","v":6.9169374214609926E-3},{"$f":"'Population at Risk'!AM185/'Population at Risk'!AM$5","v":5.2032582587047812E-3},{"$f":"'Population at Risk'!AN185/'Population at Risk'!AN$5","v":2.0733966237332264E-2},{"$f":"'Population at Risk'!AO185/'Population at Risk'!AO$5","v":2.0754241210518058E-2},{"$f":"'Population at Risk'!AP185/'Population at Risk'!AP$5","v":1.8075975236870614E-2},{"$f":"'Population at Risk'!AQ185/'Population at Risk'!AQ$5","v":8.1079206279557284E-3},{"$f":"'Population at Risk'!AR185/'Population at Risk'!AR$5","v":8.5949424959632127E-3},{"$f":"'Population at Risk'!AS185/'Population at Risk'!AS$5","v":1.5810239161487688E-2},{"$f":"'Population at Risk'!AT185/'Population at Risk'!AT$5","v":2.6971479658355932E-2},{"$f":"'Population at Risk'!AU185/'Population at Risk'!AU$5","v":2.6940092286836977E-2},{"$f":"'Population at Risk'!AV185/'Population at Risk'!AV$5","v":6.2107298366476564E-3},{"$f":"'Population at Risk'!AW185/'Population at Risk'!AW$5","v":8.3647886588739707E-3},{"$f":"'Population at Risk'!AX185/'Population at Risk'!AX$5","v":1.2321854994049085E-2},{"$f":"'Population at Risk'!AY185/'Population at Risk'!AY$5","v":9.7777631867409214E-3},{"$f":"'Population at Risk'!AZ185/'Population at Risk'!AZ$5","v":1.1275137388933112E-2},{"$f":"'Population at Risk'!BA185/'Population at Risk'!BA$5","v":6.4942223622841697E-3},{"$f":"'Population at Risk'!BB185/'Population at Risk'!BB$5","v":7.120114451671997E-3},{"$f":"'Population at Risk'!BC185/'Population at Risk'!BC$5","v":2.3188913488794882E-3},183]
[null,"Female 60-64",{"$f":"'Population at Risk'!C186/'Population at Risk'!C$5","v":5.1726986963434819E-3},{"$f":"'Population at Risk'!D186/'Population at Risk'!D$5","v":1.0434726211240176E-2},{"$f":"'Population at Risk'!E186/'Population at Risk'!E$5","v":1.5338100901141299E-2},{"$f":"'Population at Risk'!F186/'Population at Risk'!F$5","v":1.0894887675244689E-2},{"$f":"'Population at Risk'!G186/'Population at Risk'!G$5","v":9.9863864386969137E-3},{"$f":"'Population at Risk'!H186/'Population at Risk'!H$5","v":5.8806863776290508E-3},{"$f":"'Population at Risk'!I186/'Population at Risk'!I$5","v":1.4251098799707325E-2},{"$f":"'Population at Risk'!J186/'Population at Risk'!J$5","v":9.2965485067167796E-3},{"$f":"'Population at Risk'!K186/'Population at Risk'!K$5","v":6.0947215488545677E-3},{"$f":"'Population at Risk'!L186/'Population at Risk'!L$5","v":8.3278927103291843E-3},{"$f":"'Population at Risk'!M186/'Population at Risk'!M$5","v":8.3307298783330073E-3},{"$f":"'Population at Risk'!N186/'Population at Risk'!N$5","v":4.5812208945119632E-3},{"$f":"'Population at Risk'!O186/'Population at Risk'!O$5","v":5.1477038629855624E-3},{"$f":"'Population at Risk'!P186/'Population at Risk'!P$5","v":8.9702167476471643E-3},{"$f":"'Population at Risk'!Q186/'Population at Risk'!Q$5","v":1.0914895520291814E-2},{"$f":"'Population at Risk'!R186/'Population at Risk'!R$5","v":6.9779309026513341E-3},{"$f":"'Population at Risk'!S186/'Population at Risk'!S$5","v":7.2784076921459757E-3},{"$f":"'Population at Risk'!T186/'Population at Risk'!T$5","v":5.2917562908523039E-3},{"$f":"'Population at Risk'!U186/'Population at Risk'!U$5","v":1.5182085816162331E-3},{"$f":"'Population at Risk'!V186/'Population at Risk'!V$5","v":6.944395578561499E-3},{"$f":"'Population at Risk'!W186/'Population at Risk'!W$5","v":7.2525229984921995E-3},{"$f":"'Population at Risk'!X186/'Population at Risk'!X$5","v":7.2532331198648563E-3},{"$f":"'Population at Risk'!Y186/'Population at Risk'!Y$5","v":7.7870759830496704E-3},{"$f":"'Population at Risk'!Z186/'Population at Risk'!Z$5","v":3.1081919693369403E-3},{"$f":"'Population at Risk'!AA186/'Population at Risk'!AA$5","v":5.1739828173453829E-3},{"$f":"'Population at Risk'!AB186/'Population at Risk'!AB$5","v":1.1357148886916135E-2},{"$f":"'Population at Risk'!AC186/'Population at Risk'!AC$5","v":4.8609566277320031E-3},{"$f":"'Population at Risk'!AD186/'Population at Risk'!AD$5","v":1.2618488551937281E-2},{"$f":"'Population at Risk'!AE186/'Population at Risk'!AE$5","v":1.3476762929701647E-2},{"$f":"'Population at Risk'!AF186/'Population at Risk'!AF$5","v":5.7565269150611437E-3},{"$f":"'Population at Risk'!AG186/'Population at Risk'!AG$5","v":1.3476762929701647E-2},{"$f":"'Population at Risk'!AH186/'Population at Risk'!AH$5","v":5.6643431649664264E-3},{"$f":"'Population at Risk'!AI186/'Population at Risk'!AI$5","v":6.2049499636014898E-3},{"$f":"'Population at Risk'!AJ186/'Population at Risk'!AJ$5","v":4.9946160262877466E-3},{"$f":"'Population at Risk'!AK186/'Population at Risk'!AK$5","v":1.5947158336342623E-2},{"$f":"'Population at Risk'!AL186/'Population at Risk'!AL$5","v":6.9324985855137742E-3},{"$f":"'Population at Risk'!AM186/'Population at Risk'!AM$5","v":4.438434583133654E-3},{"$f":"'Population at Risk'!AN186/'Population at Risk'!AN$5","v":1.9175021407457655E-2},{"$f":"'Population at Risk'!AO186/'Population at Risk'!AO$5","v":1.9193771946569332E-2},{"$f":"'Population at Risk'!AP186/'Population at Risk'!AP$5","v":1.7077819572366971E-2},{"$f":"'Population at Risk'!AQ186/'Population at Risk'!AQ$5","v":7.0301680005574879E-3},{"$f":"'Population at Risk'!AR186/'Population at Risk'!AR$5","v":7.5688772504889281E-3},{"$f":"'Population at Risk'!AS186/'Population at Risk'!AS$5","v":1.424884948675768E-2},{"$f":"'Population at Risk'!AT186/'Population at Risk'!AT$5","v":2.4328274651837054E-2},{"$f":"'Population at Risk'!AU186/'Population at Risk'!AU$5","v":2.429996324272695E-2},{"$f":"'Population at Risk'!AV186/'Population at Risk'!AV$5","v":5.3935285423519124E-3},{"$f":"'Population at Risk'!AW186/'Population at Risk'!AW$5","v":7.060785189548691E-3},{"$f":"'Population at Risk'!AX186/'Population at Risk'!AX$5","v":1.0322613620842445E-2},{"$f":"'Population at Risk'!AY186/'Population at Risk'!AY$5","v":8.9373844325496554E-3},{"$f":"'Population at Risk'!AZ186/'Population at Risk'!AZ$5","v":1.0324062595082787E-2},{"$f":"'Population at Risk'!BA186/'Population at Risk'!BA$5","v":4.8561448075756398E-3},{"$f":"'Population at Risk'!BB186/'Population at Risk'!BB$5","v":5.9334287097266639E-3},{"$f":"'Population at Risk'!BC186/'Population at Risk'!BC$5","v":1.5192736423693197E-3},184]
[null,"Female 65-69",{"$f":"'Population at Risk'!C187/'Population at Risk'!C$5","v":5.2382829650548211E-3},{"$f":"'Population at Risk'!D187/'Population at Risk'!D$5","v":1.0179838819787717E-2},{"$f":"'Population at Risk'!E187/'Population at Risk'!E$5","v":1.4783664331444431E-2},{"$f":"'Population at Risk'!F187/'Population at Risk'!F$5","v":1.1493486350275211E-2},{"$f":"'Population at Risk'!G187/'Population at Risk'!G$5","v":1.1258638843236263E-2},{"$f":"'Population at Risk'!H187/'Population at Risk'!H$5","v":5.8909018143012484E-3},{"$f":"'Population at Risk'!I187/'Population at Risk'!I$5","v":1.521229775425839E-2},{"$f":"'Population at Risk'!J187/'Population at Risk'!J$5","v":9.4775247048197401E-3},{"$f":"'Population at Risk'!K187/'Population at Risk'!K$5","v":6.6489183150372127E-3},{"$f":"'Population at Risk'!L187/'Population at Risk'!L$5","v":7.79044790646999E-3},{"$f":"'Population at Risk'!M187/'Population at Risk'!M$5","v":7.7931019763895354E-3},{"$f":"'Population at Risk'!N187/'Population at Risk'!N$5","v":4.9751740148462602E-3},{"$f":"'Population at Risk'!O187/'Population at Risk'!O$5","v":4.9998235756729828E-3},{"$f":"'Population at Risk'!P187/'Population at Risk'!P$5","v":8.6240590994930925E-3},{"$f":"'Population at Risk'!Q187/'Population at Risk'!Q$5","v":1.0738948656512924E-2},{"$f":"'Population at Risk'!R187/'Population at Risk'!R$5","v":6.255515626431906E-3},{"$f":"'Population at Risk'!S187/'Population at Risk'!S$5","v":7.2865217284228245E-3},{"$f":"'Population at Risk'!T187/'Population at Risk'!T$5","v":5.0008946749498535E-3},{"$f":"'Population at Risk'!U187/'Population at Risk'!U$5","v":2.3170387249636494E-3},{"$f":"'Population at Risk'!V187/'Population at Risk'!V$5","v":7.5870347655287284E-3},{"$f":"'Population at Risk'!W187/'Population at Risk'!W$5","v":7.338014860504726E-3},{"$f":"'Population at Risk'!X187/'Population at Risk'!X$5","v":7.3387333527020482E-3},{"$f":"'Population at Risk'!Y187/'Population at Risk'!Y$5","v":8.2030831344204296E-3},{"$f":"'Population at Risk'!Z187/'Population at Risk'!Z$5","v":2.6740107329196574E-3},{"$f":"'Population at Risk'!AA187/'Population at Risk'!AA$5","v":4.6110512802369072E-3},{"$f":"'Population at Risk'!AB187/'Population at Risk'!AB$5","v":1.1358961018332892E-2},{"$f":"'Population at Risk'!AC187/'Population at Risk'!AC$5","v":4.4331458657930253E-3},{"$f":"'Population at Risk'!AD187/'Population at Risk'!AD$5","v":1.2621490057282579E-2},{"$f":"'Population at Risk'!AE187/'Population at Risk'!AE$5","v":1.298496354671067E-2},{"$f":"'Population at Risk'!AF187/'Population at Risk'!AF$5","v":5.2925591917689632E-3},{"$f":"'Population at Risk'!AG187/'Population at Risk'!AG$5","v":1.298496354671067E-2},{"$f":"'Population at Risk'!AH187/'Population at Risk'!AH$5","v":4.8853088221818171E-3},{"$f":"'Population at Risk'!AI187/'Population at Risk'!AI$5","v":6.0332087106859259E-3},{"$f":"'Population at Risk'!AJ187/'Population at Risk'!AJ$5","v":5.3399326098587758E-3},{"$f":"'Population at Risk'!AK187/'Population at Risk'!AK$5","v":1.7250676578300254E-2},{"$f":"'Population at Risk'!AL187/'Population at Risk'!AL$5","v":6.9902340407777801E-3},{"$f":"'Population at Risk'!AM187/'Population at Risk'!AM$5","v":3.6411847851362026E-3},{"$f":"'Population at Risk'!AN187/'Population at Risk'!AN$5","v":1.9512202277858558E-2},{"$f":"'Population at Risk'!AO187/'Population at Risk'!AO$5","v":1.9531282533582477E-2},{"$f":"'Population at Risk'!AP187/'Population at Risk'!AP$5","v":1.700901027962131E-2},{"$f":"'Population at Risk'!AQ187/'Population at Risk'!AQ$5","v":6.4354402820882162E-3},{"$f":"'Population at Risk'!AR187/'Population at Risk'!AR$5","v":7.4031521014843241E-3},{"$f":"'Population at Risk'!AS187/'Population at Risk'!AS$5","v":1.5209896731094248E-2},{"$f":"'Population at Risk'!AT187/'Population at Risk'!AT$5","v":2.2481954271587768E-2},{"$f":"'Population at Risk'!AU187/'Population at Risk'!AU$5","v":2.2455791470728015E-2},{"$f":"'Population at Risk'!AV187/'Population at Risk'!AV$5","v":5.5189492757545203E-3},{"$f":"'Population at Risk'!AW187/'Population at Risk'!AW$5","v":6.2978607068988239E-3},{"$f":"'Population at Risk'!AX187/'Population at Risk'!AX$5","v":1.0266976105818136E-2},{"$f":"'Population at Risk'!AY187/'Population at Risk'!AY$5","v":9.1266117420760878E-3},{"$f":"'Population at Risk'!AZ187/'Population at Risk'!AZ$5","v":1.0598589407095987E-2},{"$f":"'Population at Risk'!BA187/'Population at Risk'!BA$5","v":4.9903409579915977E-3},{"$f":"'Population at Risk'!BB187/'Population at Risk'!BB$5","v":5.7783504593588069E-3},{"$f":"'Population at Risk'!BC187/'Population at Risk'!BC$5","v":2.31866418475832E-3},185]
[null,"Female 70-74",{"$f":"'Population at Risk'!C188/'Population at Risk'!C$5","v":3.6901264612127084E-3},{"$f":"'Population at Risk'!D188/'Population at Risk'!D$5","v":7.3659413805727521E-3},{"$f":"'Population at Risk'!E188/'Population at Risk'!E$5","v":1.079103211025487E-2},{"$f":"'Population at Risk'!F188/'Population at Risk'!F$5","v":9.1308825849279896E-3},{"$f":"'Population at Risk'!G188/'Population at Risk'!G$5","v":8.9115610387831019E-3},{"$f":"'Population at Risk'!H188/'Population at Risk'!H$5","v":4.9619519128152826E-3},{"$f":"'Population at Risk'!I188/'Population at Risk'!I$5","v":1.216983820340671E-2},{"$f":"'Population at Risk'!J188/'Population at Risk'!J$5","v":7.5391431205163624E-3},{"$f":"'Population at Risk'!K188/'Population at Risk'!K$5","v":5.1512097526056223E-3},{"$f":"'Population at Risk'!L188/'Population at Risk'!L$5","v":6.7159033676465439E-3},{"$f":"'Population at Risk'!M188/'Population at Risk'!M$5","v":6.7181913589564957E-3},{"$f":"'Population at Risk'!N188/'Population at Risk'!N$5","v":3.4916130887324656E-3},{"$f":"'Population at Risk'!O188/'Population at Risk'!O$5","v":3.7026184898884119E-3},{"$f":"'Population at Risk'!P188/'Population at Risk'!P$5","v":6.1238066714887924E-3},{"$f":"'Population at Risk'!Q188/'Population at Risk'!Q$5","v":7.6879961689617447E-3},{"$f":"'Population at Risk'!R188/'Population at Risk'!R$5","v":4.8866616187656304E-3},{"$f":"'Population at Risk'!S188/'Population at Risk'!S$5","v":5.5223886409512439E-3},{"$f":"'Population at Risk'!T188/'Population at Risk'!T$5","v":3.7656554483077322E-3},{"$f":"'Population at Risk'!U188/'Population at Risk'!U$5","v":1.8065047686157264E-3},{"$f":"'Population at Risk'!V188/'Population at Risk'!V$5","v":5.680667367503273E-3},{"$f":"'Population at Risk'!W188/'Population at Risk'!W$5","v":5.6809415565133746E-3},{"$f":"'Population at Risk'!X188/'Population at Risk'!X$5","v":5.6814977985296953E-3},{"$f":"'Population at Risk'!Y188/'Population at Risk'!Y$5","v":6.3405667000915721E-3},{"$f":"'Population at Risk'!Z188/'Population at Risk'!Z$5","v":1.9153466116300832E-3},{"$f":"'Population at Risk'!AA188/'Population at Risk'!AA$5","v":3.277522590295109E-3},{"$f":"'Population at Risk'!AB188/'Population at Risk'!AB$5","v":8.3012747253071745E-3},{"$f":"'Population at Risk'!AC188/'Population at Risk'!AC$5","v":3.2750875304647007E-3},{"$f":"'Population at Risk'!AD188/'Population at Risk'!AD$5","v":9.6686291086095014E-3},{"$f":"'Population at Risk'!AE188/'Population at Risk'!AE$5","v":9.8352164258388337E-3},{"$f":"'Population at Risk'!AF188/'Population at Risk'!AF$5","v":4.4267257756039954E-3},{"$f":"'Population at Risk'!AG188/'Population at Risk'!AG$5","v":9.8352164258388337E-3},{"$f":"'Population at Risk'!AH188/'Population at Risk'!AH$5","v":3.2727442466988005E-3},{"$f":"'Population at Risk'!AI188/'Population at Risk'!AI$5","v":4.4217327684180239E-3},{"$f":"'Population at Risk'!AJ188/'Population at Risk'!AJ$5","v":4.1183793984531734E-3},{"$f":"'Population at Risk'!AK188/'Population at Risk'!AK$5","v":1.2980320414011585E-2},{"$f":"'Population at Risk'!AL188/'Population at Risk'!AL$5","v":5.6977290594961124E-3},{"$f":"'Population at Risk'!AM188/'Population at Risk'!AM$5","v":2.3851873799814261E-3},{"$f":"'Population at Risk'!AN188/'Population at Risk'!AN$5","v":1.4761849367280427E-2},{"$f":"'Population at Risk'!AO188/'Population at Risk'!AO$5","v":1.4776284429856899E-2},{"$f":"'Population at Risk'!AP188/'Population at Risk'!AP$5","v":1.2938805476341041E-2},{"$f":"'Population at Risk'!AQ188/'Population at Risk'!AQ$5","v":4.6271850656452651E-3},{"$f":"'Population at Risk'!AR188/'Population at Risk'!AR$5","v":5.5850425163685904E-3},{"$f":"'Population at Risk'!AS188/'Population at Risk'!AS$5","v":1.2167917384875399E-2},{"$f":"'Population at Risk'!AT188/'Population at Risk'!AT$5","v":1.8134029153025984E-2},{"$f":"'Population at Risk'!AU188/'Population at Risk'!AU$5","v":1.8112926139124956E-2},{"$f":"'Population at Risk'!AV188/'Population at Risk'!AV$5","v":5.4433472308811704E-3},{"$f":"'Population at Risk'!AW188/'Population at Risk'!AW$5","v":4.2793156085338159E-3},{"$f":"'Population at Risk'!AX188/'Population at Risk'!AX$5","v":8.2483388766794157E-3},{"$f":"'Population at Risk'!AY188/'Population at Risk'!AY$5","v":6.9885893233247844E-3},{"$f":"'Population at Risk'!AZ188/'Population at Risk'!AZ$5","v":8.064823438274268E-3},{"$f":"'Population at Risk'!BA188/'Population at Risk'!BA$5","v":3.8369669608356452E-3},{"$f":"'Population at Risk'!BB188/'Population at Risk'!BB$5","v":3.9780942485667398E-3},{"$f":"'Population at Risk'!BC188/'Population at Risk'!BC$5","v":1.8077720762522493E-3},186]
[null,"Female 75-79",{"$f":"'Population at Risk'!C189/'Population at Risk'!C$5","v":5.0800226082205399E-3},{"$f":"'Population at Risk'!D189/'Population at Risk'!D$5","v":9.5490389028336248E-3},{"$f":"'Population at Risk'!E189/'Population at Risk'!E$5","v":1.3711791903328946E-2},{"$f":"'Population at Risk'!F189/'Population at Risk'!F$5","v":1.1502945272769852E-2},{"$f":"'Population at Risk'!G189/'Population at Risk'!G$5","v":1.1099439472648812E-2},{"$f":"'Population at Risk'!H189/'Population at Risk'!H$5","v":5.6610544891767785E-3},{"$f":"'Population at Risk'!I189/'Population at Risk'!I$5","v":1.5888393973188374E-2},{"$f":"'Population at Risk'!J189/'Population at Risk'!J$5","v":8.9491568203154282E-3},{"$f":"'Population at Risk'!K189/'Population at Risk'!K$5","v":5.4724471207432115E-3},{"$f":"'Population at Risk'!L189/'Population at Risk'!L$5","v":8.5628846277790126E-3},{"$f":"'Population at Risk'!M189/'Population at Risk'!M$5","v":8.5658018534363767E-3},{"$f":"'Population at Risk'!N189/'Population at Risk'!N$5","v":4.9356747573984956E-3},{"$f":"'Population at Risk'!O189/'Population at Risk'!O$5","v":4.2407577355587957E-3},{"$f":"'Population at Risk'!P189/'Population at Risk'!P$5","v":9.3835393126072437E-3},{"$f":"'Population at Risk'!Q189/'Population at Risk'!Q$5","v":9.3199865446764955E-3},{"$f":"'Population at Risk'!R189/'Population at Risk'!R$5","v":7.1943747211299838E-3},{"$f":"'Population at Risk'!S189/'Population at Risk'!S$5","v":6.9341647368825138E-3},{"$f":"'Population at Risk'!T189/'Population at Risk'!T$5","v":4.9854244341537585E-3},{"$f":"'Population at Risk'!U189/'Population at Risk'!U$5","v":2.4153318343894618E-3},{"$f":"'Population at Risk'!V189/'Population at Risk'!V$5","v":7.2408547264177789E-3},{"$f":"'Population at Risk'!W189/'Population at Risk'!W$5","v":6.7126129530488913E-3},{"$f":"'Population at Risk'!X189/'Population at Risk'!X$5","v":6.7132702098304719E-3},{"$f":"'Population at Risk'!Y189/'Population at Risk'!Y$5","v":7.785779433601943E-3},{"$f":"'Population at Risk'!Z189/'Population at Risk'!Z$5","v":2.7824237256783282E-3},{"$f":"'Population at Risk'!AA189/'Population at Risk'!AA$5","v":4.4190730784161546E-3},{"$f":"'Population at Risk'!AB189/'Population at Risk'!AB$5","v":1.0502418627438143E-2},{"$f":"'Population at Risk'!AC189/'Population at Risk'!AC$5","v":4.4425231331399733E-3},{"$f":"'Population at Risk'!AD189/'Population at Risk'!AD$5","v":1.2085261122326453E-2},{"$f":"'Population at Risk'!AE189/'Population at Risk'!AE$5","v":1.2308894330495979E-2},{"$f":"'Population at Risk'!AF189/'Population at Risk'!AF$5","v":4.7764285825399573E-3},{"$f":"'Population at Risk'!AG189/'Population at Risk'!AG$5","v":1.2308894330495979E-2},{"$f":"'Population at Risk'!AH189/'Population at Risk'!AH$5","v":4.3695795367248401E-3},{"$f":"'Population at Risk'!AI189/'Population at Risk'!AI$5","v":5.6457320125979666E-3},{"$f":"'Population at Risk'!AJ189/'Population at Risk'!AJ$5","v":4.9521155236943882E-3},{"$f":"'Population at Risk'!AK189/'Population at Risk'!AK$5","v":1.5256002425359488E-2},{"$f":"'Population at Risk'!AL189/'Population at Risk'!AL$5","v":6.3376377233142949E-3},{"$f":"'Population at Risk'!AM189/'Population at Risk'!AM$5","v":3.3082323827414886E-3},{"$f":"'Population at Risk'!AN189/'Population at Risk'!AN$5","v":1.8766388899020825E-2},{"$f":"'Population at Risk'!AO189/'Population at Risk'!AO$5","v":1.8784739851625192E-2},{"$f":"'Population at Risk'!AP189/'Population at Risk'!AP$5","v":1.7232009101507274E-2},{"$f":"'Population at Risk'!AQ189/'Population at Risk'!AQ$5","v":5.6168142415347162E-3},{"$f":"'Population at Risk'!AR189/'Population at Risk'!AR$5","v":7.1119825623515449E-3},{"$f":"'Population at Risk'!AS189/'Population at Risk'!AS$5","v":1.5885886238815379E-2},{"$f":"'Population at Risk'!AT189/'Population at Risk'!AT$5","v":2.0682220992566572E-2},{"$f":"'Population at Risk'!AU189/'Population at Risk'!AU$5","v":2.0658152585406354E-2},{"$f":"'Population at Risk'!AV189/'Population at Risk'!AV$5","v":6.3933983612549415E-3},{"$f":"'Population at Risk'!AW189/'Population at Risk'!AW$5","v":5.5756960559076602E-3},{"$f":"'Population at Risk'!AX189/'Population at Risk'!AX$5","v":1.0169301357219917E-2},{"$f":"'Population at Risk'!AY189/'Population at Risk'!AY$5","v":8.879953704538316E-3},{"$f":"'Population at Risk'!AZ189/'Population at Risk'!AZ$5","v":1.0663164471441677E-2},{"$f":"'Population at Risk'!BA189/'Population at Risk'!BA$5","v":5.0087574488750491E-3},{"$f":"'Population at Risk'!BB189/'Population at Risk'!BB$5","v":5.1290016960064957E-3},{"$f":"'Population at Risk'!BC189/'Population at Risk'!BC$5","v":2.417026249223918E-3},187]
[null,"Female 80-84",{"$f":"'Population at Risk'!C190/'Population at Risk'!C$5","v":3.9215715066837614E-3},{"$f":"'Population at Risk'!D190/'Population at Risk'!D$5","v":7.1804783394675822E-3},{"$f":"'Population at Risk'!E190/'Population at Risk'!E$5","v":1.0215526089760311E-2},{"$f":"'Population at Risk'!F190/'Population at Risk'!F$5","v":9.2619082509631922E-3},{"$f":"'Population at Risk'!G190/'Population at Risk'!G$5","v":7.5776921889919692E-3},{"$f":"'Population at Risk'!H190/'Population at Risk'!H$5","v":4.3134026512674888E-3},{"$f":"'Population at Risk'!I190/'Population at Risk'!I$5","v":1.0845167796305547E-2},{"$f":"'Population at Risk'!J190/'Population at Risk'!J$5","v":7.0263169865481378E-3},{"$f":"'Population at Risk'!K190/'Population at Risk'!K$5","v":4.0400616327634442E-3},{"$f":"'Population at Risk'!L190/'Population at Risk'!L$5","v":6.7754277520226036E-3},{"$f":"'Population at Risk'!M190/'Population at Risk'!M$5","v":6.7777360222536073E-3},{"$f":"'Population at Risk'!N190/'Population at Risk'!N$5","v":4.9114208273867092E-3},{"$f":"'Population at Risk'!O190/'Population at Risk'!O$5","v":2.6556876311204262E-3},{"$f":"'Population at Risk'!P190/'Population at Risk'!P$5","v":6.5880265590596686E-3},{"$f":"'Population at Risk'!Q190/'Population at Risk'!Q$5","v":7.2434281391082237E-3},{"$f":"'Population at Risk'!R190/'Population at Risk'!R$5","v":6.1223652428159135E-3},{"$f":"'Population at Risk'!S190/'Population at Risk'!S$5","v":5.1785175153476774E-3},{"$f":"'Population at Risk'!T190/'Population at Risk'!T$5","v":4.2726184025361743E-3},{"$f":"'Population at Risk'!U190/'Population at Risk'!U$5","v":1.2076659171947309E-3},{"$f":"'Population at Risk'!V190/'Population at Risk'!V$5","v":5.2626830743551893E-3},{"$f":"'Population at Risk'!W190/'Population at Risk'!W$5","v":5.004973447040274E-3},{"$f":"'Population at Risk'!X190/'Population at Risk'!X$5","v":5.005463502516838E-3},{"$f":"'Population at Risk'!Y190/'Population at Risk'!Y$5","v":5.8928172399202042E-3},{"$f":"'Population at Risk'!Z190/'Population at Risk'!Z$5","v":2.0898421678736141E-3},{"$f":"'Population at Risk'!AA190/'Population at Risk'!AA$5","v":3.2537223312546944E-3},{"$f":"'Population at Risk'!AB190/'Population at Risk'!AB$5","v":8.0523176571059476E-3},{"$f":"'Population at Risk'!AC190/'Population at Risk'!AC$5","v":3.3929072546458609E-3},{"$f":"'Population at Risk'!AD190/'Population at Risk'!AD$5","v":9.1661971238414831E-3},{"$f":"'Population at Risk'!AE190/'Population at Risk'!AE$5","v":9.6635617770121935E-3},{"$f":"'Population at Risk'!AF190/'Population at Risk'!AF$5","v":4.4606316514629353E-3},{"$f":"'Population at Risk'!AG190/'Population at Risk'!AG$5","v":9.6635617770121935E-3},{"$f":"'Population at Risk'!AH190/'Population at Risk'!AH$5","v":3.0209438772418645E-3},{"$f":"'Population at Risk'!AI190/'Population at Risk'!AI$5","v":4.3757263003073171E-3},{"$f":"'Population at Risk'!AJ190/'Population at Risk'!AJ$5","v":3.3516219133749091E-3},{"$f":"'Population at Risk'!AK190/'Population at Risk'!AK$5","v":1.2411305840520357E-2},{"$f":"'Population at Risk'!AL190/'Population at Risk'!AL$5","v":4.716093696450676E-3},{"$f":"'Population at Risk'!AM190/'Population at Risk'!AM$5","v":2.0963540505112236E-3},{"$f":"'Population at Risk'!AN190/'Population at Risk'!AN$5","v":1.1077956442593791E-2},{"$f":"'Population at Risk'!AO190/'Population at Risk'!AO$5","v":1.1088789163514433E-2},{"$f":"'Population at Risk'!AP190/'Population at Risk'!AP$5","v":1.2592144879791132E-2},{"$f":"'Population at Risk'!AQ190/'Population at Risk'!AQ$5","v":4.3259323719890188E-3},{"$f":"'Population at Risk'!AR190/'Population at Risk'!AR$5","v":5.3693613762702359E-3},{"$f":"'Population at Risk'!AS190/'Population at Risk'!AS$5","v":1.0843456056270049E-2},{"$f":"'Population at Risk'!AT190/'Population at Risk'!AT$5","v":1.4760755231209337E-2},{"$f":"'Population at Risk'!AU190/'Population at Risk'!AU$5","v":1.4743577778796237E-2},{"$f":"'Population at Risk'!AV190/'Population at Risk'!AV$5","v":5.6439330031174007E-3},{"$f":"'Population at Risk'!AW190/'Population at Risk'!AW$5","v":4.0674267126592015E-3},{"$f":"'Population at Risk'!AX190/'Population at Risk'!AX$5","v":8.1354410857759334E-3},{"$f":"'Population at Risk'!AY190/'Population at Risk'!AY$5","v":6.9092007594310882E-3},{"$f":"'Population at Risk'!AZ190/'Population at Risk'!AZ$5","v":8.4757406134660929E-3},{"$f":"'Population at Risk'!BA190/'Population at Risk'!BA$5","v":3.2714024666084269E-3},{"$f":"'Population at Risk'!BB190/'Population at Risk'!BB$5","v":3.1865287132636102E-3},{"$f":"'Population at Risk'!BC190/'Population at Risk'!BC$5","v":1.208513124611959E-3},188]
[null,"Female 85-89",{"$f":"'Population at Risk'!C191/'Population at Risk'!C$5","v":2.4027133957799851E-3},{"$f":"'Population at Risk'!D191/'Population at Risk'!D$5","v":4.5168865480331374E-3},{"$f":"'Population at Risk'!E191/'Population at Risk'!E$5","v":6.4861758886204336E-3},{"$f":"'Population at Risk'!F191/'Population at Risk'!F$5","v":5.4693840602134591E-3},{"$f":"'Population at Risk'!G191/'Population at Risk'!G$5","v":4.9462742747989358E-3},{"$f":"'Population at Risk'!H191/'Population at Risk'!H$5","v":2.5302850834215238E-3},{"$f":"'Population at Risk'!I191/'Population at Risk'!I$5","v":7.0515905836060757E-3},{"$f":"'Population at Risk'!J191/'Population at Risk'!J$5","v":4.322775265386612E-3},{"$f":"'Population at Risk'!K191/'Population at Risk'!K$5","v":2.5342204787334333E-3},{"$f":"'Population at Risk'!L191/'Population at Risk'!L$5","v":3.9613909138385278E-3},{"$f":"'Population at Risk'!M191/'Population at Risk'!M$5","v":3.9627404907293818E-3},{"$f":"'Population at Risk'!N191/'Population at Risk'!N$5","v":3.9291366619093682E-3},{"$f":"'Population at Risk'!O191/'Population at Risk'!O$5","v":1.6128783518846565E-3},{"$f":"'Population at Risk'!P191/'Population at Risk'!P$5","v":5.0436523805263934E-3},{"$f":"'Population at Risk'!Q191/'Population at Risk'!Q$5","v":4.1367659575493919E-3},{"$f":"'Population at Risk'!R191/'Population at Risk'!R$5","v":4.0259911518906203E-3},{"$f":"'Population at Risk'!S191/'Population at Risk'!S$5","v":3.4071821382995319E-3},{"$f":"'Population at Risk'!T191/'Population at Risk'!T$5","v":3.5218522863945758E-3},{"$f":"'Population at Risk'!U191/'Population at Risk'!U$5","v":1.3983500093833726E-3},{"$f":"'Population at Risk'!V191/'Population at Risk'!V$5","v":3.1600981108421233E-3},{"$f":"'Population at Risk'!W191/'Population at Risk'!W$5","v":3.0358035662375431E-3},{"$f":"'Population at Risk'!X191/'Population at Risk'!X$5","v":3.0361008130020163E-3},{"$f":"'Population at Risk'!Y191/'Population at Risk'!Y$5","v":3.5849592229657569E-3},{"$f":"'Population at Risk'!Z191/'Population at Risk'!Z$5","v":1.345846258616148E-3},{"$f":"'Population at Risk'!AA191/'Population at Risk'!AA$5","v":2.0686699653753734E-3},{"$f":"'Population at Risk'!AB191/'Population at Risk'!AB$5","v":5.0878692490302583E-3},{"$f":"'Population at Risk'!AC191/'Population at Risk'!AC$5","v":2.2667236524926042E-3},{"$f":"'Population at Risk'!AD191/'Population at Risk'!AD$5","v":5.6140155978540128E-3},{"$f":"'Population at Risk'!AE191/'Population at Risk'!AE$5","v":5.7996795341685309E-3},{"$f":"'Population at Risk'!AF191/'Population at Risk'!AF$5","v":2.8421723796931979E-3},{"$f":"'Population at Risk'!AG191/'Population at Risk'!AG$5","v":5.7996795341685309E-3},{"$f":"'Population at Risk'!AH191/'Population at Risk'!AH$5","v":1.7442354529313144E-3},{"$f":"'Population at Risk'!AI191/'Population at Risk'!AI$5","v":3.005755916566241E-3},{"$f":"'Population at Risk'!AJ191/'Population at Risk'!AJ$5","v":1.8076163128314118E-3},{"$f":"'Population at Risk'!AK191/'Population at Risk'!AK$5","v":7.9440786109952026E-3},{"$f":"'Population at Risk'!AL191/'Population at Risk'!AL$5","v":2.7974729013067003E-3},{"$f":"'Population at Risk'!AM191/'Population at Risk'!AM$5","v":8.698158997459157E-4},{"$f":"'Population at Risk'!AN191/'Population at Risk'!AN$5","v":8.101789040105908E-3},{"$f":"'Population at Risk'!AO191/'Population at Risk'!AO$5","v":8.1097114777941362E-3},{"$f":"'Population at Risk'!AP191/'Population at Risk'!AP$5","v":8.6346136318567763E-3},{"$f":"'Population at Risk'!AQ191/'Population at Risk'!AQ$5","v":2.89709366142317E-3},{"$f":"'Population at Risk'!AR191/'Population at Risk'!AR$5","v":3.4302917632203604E-3},{"$f":"'Population at Risk'!AS191/'Population at Risk'!AS$5","v":7.0504776003731178E-3},{"$f":"'Population at Risk'!AT191/'Population at Risk'!AT$5","v":9.5258362247920714E-3},{"$f":"'Population at Risk'!AU191/'Population at Risk'!AU$5","v":9.5147507758510594E-3},{"$f":"'Population at Risk'!AV191/'Population at Risk'!AV$5","v":3.2119943920180328E-3},{"$f":"'Population at Risk'!AW191/'Population at Risk'!AW$5","v":2.727952855478259E-3},{"$f":"'Population at Risk'!AX191/'Population at Risk'!AX$5","v":4.9764666216182574E-3},{"$f":"'Population at Risk'!AY191/'Population at Risk'!AY$5","v":4.5359701001822447E-3},{"$f":"'Population at Risk'!AZ191/'Population at Risk'!AZ$5","v":5.7699099452188365E-3},{"$f":"'Population at Risk'!BA191/'Population at Risk'!BA$5","v":2.0515574790595219E-3},{"$f":"'Population at Risk'!BB191/'Population at Risk'!BB$5","v":1.5168749696700065E-3},{"$f":"'Population at Risk'!BC191/'Population at Risk'!BC$5","v":1.3993309863927945E-3},189]
[null,"Female 90+",{"$f":"'Population at Risk'!C192/'Population at Risk'!C$5","v":1.1069643859129216E-3},{"$f":"'Population at Risk'!D192/'Population at Risk'!D$5","v":2.4641340597825671E-3},{"$f":"'Population at Risk'!E192/'Population at Risk'!E$5","v":3.729350201139878E-3},{"$f":"'Population at Risk'!F192/'Population at Risk'!F$5","v":4.4350592809180769E-3},{"$f":"'Population at Risk'!G192/'Population at Risk'!G$5","v":3.1656155358713188E-3},{"$f":"'Population at Risk'!H192/'Population at Risk'!H$5","v":1.567676627772031E-3},{"$f":"'Population at Risk'!I192/'Population at Risk'!I$5","v":4.150619773894716E-3},{"$f":"'Population at Risk'!J192/'Population at Risk'!J$5","v":3.137264991936103E-3},{"$f":"'Population at Risk'!K192/'Population at Risk'!K$5","v":1.6527524861305002E-3},{"$f":"'Population at Risk'!L192/'Population at Risk'!L$5","v":2.0652373361780127E-3},{"$f":"'Population at Risk'!M192/'Population at Risk'!M$5","v":2.0659409265692814E-3},{"$f":"'Population at Risk'!N192/'Population at Risk'!N$5","v":2.2677424561020113E-3},{"$f":"'Population at Risk'!O192/'Population at Risk'!O$5","v":9.8719278434319501E-4},{"$f":"'Population at Risk'!P192/'Population at Risk'!P$5","v":2.5218261902631967E-3},{"$f":"'Population at Risk'!Q192/'Population at Risk'!Q$5","v":2.1092601127425756E-3},{"$f":"'Population at Risk'!R192/'Population at Risk'!R$5","v":4.0021687190391966E-3},{"$f":"'Population at Risk'!S192/'Population at Risk'!S$5","v":2.0251982571725976E-3},{"$f":"'Population at Risk'!T192/'Population at Risk'!T$5","v":2.079369074482067E-3},{"$f":"'Population at Risk'!U192/'Population at Risk'!U$5","v":6.9917500469168629E-4},{"$f":"'Population at Risk'!V192/'Population at Risk'!V$5","v":2.1523502880932571E-3},{"$f":"'Population at Risk'!W192/'Population at Risk'!W$5","v":2.0871149517883111E-3},{"$f":"'Population at Risk'!X192/'Population at Risk'!X$5","v":2.0873193089388864E-3},{"$f":"'Population at Risk'!Y192/'Population at Risk'!Y$5","v":2.5282714230680744E-3},{"$f":"'Population at Risk'!Z192/'Population at Risk'!Z$5","v":8.2867837047376301E-4},{"$f":"'Population at Risk'!AA192/'Population at Risk'!AA$5","v":1.1673209090332464E-3},{"$f":"'Population at Risk'!AB192/'Population at Risk'!AB$5","v":2.7455032149821743E-3},{"$f":"'Population at Risk'!AC192/'Population at Risk'!AC$5","v":1.3750287040454783E-3},{"$f":"'Population at Risk'!AD192/'Population at Risk'!AD$5","v":3.6530321055896378E-3},{"$f":"'Population at Risk'!AE192/'Population at Risk'!AE$5","v":3.7944711845889858E-3},{"$f":"'Population at Risk'!AF192/'Population at Risk'!AF$5","v":1.4802981144235406E-3},{"$f":"'Population at Risk'!AG192/'Population at Risk'!AG$5","v":3.7944711845889858E-3},{"$f":"'Population at Risk'!AH192/'Population at Risk'!AH$5","v":8.2973203431047809E-4},{"$f":"'Population at Risk'!AI192/'Population at Risk'!AI$5","v":1.6675924737412102E-3},{"$f":"'Population at Risk'!AJ192/'Population at Risk'!AJ$5","v":1.3368828980315649E-3},{"$f":"'Population at Risk'!AK192/'Population at Risk'!AK$5","v":4.1511498312096955E-3},{"$f":"'Population at Risk'!AL192/'Population at Risk'!AL$5","v":1.8567298017522348E-3},{"$f":"'Population at Risk'!AM192/'Population at Risk'!AM$5","v":3.8604188808947945E-4},{"$f":"'Population at Risk'!AN192/'Population at Risk'!AN$5","v":3.9682232033171798E-3},{"$f":"'Population at Risk'!AO192/'Population at Risk'!AO$5","v":3.9721035809603938E-3},{"$f":"'Population at Risk'!AP192/'Population at Risk'!AP$5","v":5.6323485472169199E-3},{"$f":"'Population at Risk'!AQ192/'Population at Risk'!AQ$5","v":1.5865036717317359E-3},{"$f":"'Population at Risk'!AR192/'Population at Risk'!AR$5","v":2.0599609527228394E-3},{"$f":"'Population at Risk'!AS192/'Population at Risk'!AS$5","v":4.1499646635107593E-3},{"$f":"'Population at Risk'!AT192/'Population at Risk'!AT$5","v":5.5781923838872502E-3},{"$f":"'Population at Risk'!AU192/'Population at Risk'!AU$5","v":5.5717009047776475E-3},{"$f":"'Population at Risk'!AV192/'Population at Risk'!AV$5","v":1.8507205782580093E-3},{"$f":"'Population at Risk'!AW192/'Population at Risk'!AW$5","v":1.3285838258217471E-3},{"$f":"'Population at Risk'!AX192/'Population at Risk'!AX$5","v":3.721531560514523E-3},{"$f":"'Population at Risk'!AY192/'Population at Risk'!AY$5","v":3.0787232041522526E-3},{"$f":"'Population at Risk'!AZ192/'Population at Risk'!AZ$5","v":3.8943731113091342E-3},{"$f":"'Population at Risk'!BA192/'Population at Risk'!BA$5","v":1.0165374896240875E-3},{"$f":"'Population at Risk'!BB192/'Population at Risk'!BB$5","v":4.4742355220482198E-4},{"$f":"'Population at Risk'!BC192/'Population at Risk'!BC$5","v":6.9966549319639727E-4},190]
[null,"Male 0-4",{"$f":"'Population at Risk'!C193/'Population at Risk'!C$5","v":0},{"$f":"'Population at Risk'!D193/'Population at Risk'!D$5","v":0},{"$f":"'Population at Risk'!E193/'Population at Risk'!E$5","v":0},{"$f":"'Population at Risk'!F193/'Population at Risk'!F$5","v":0},{"$f":"'Population at Risk'!G193/'Population at Risk'!G$5","v":0},{"$f":"'Population at Risk'!H193/'Population at Risk'!H$5","v":0},{"$f":"'Population at Risk'!I193/'Population at Risk'!I$5","v":0},{"$f":"'Population at Risk'!J193/'Population at Risk'!J$5","v":0},{"$f":"'Population at Risk'!K193/'Population at Risk'!K$5","v":0},{"$f":"'Population at Risk'!L193/'Population at Risk'!L$5","v":0},{"$f":"'Population at Risk'!M193/'Population at Risk'!M$5","v":0},{"$f":"'Population at Risk'!N193/'Population at Risk'!N$5","v":0},{"$f":"'Population at Risk'!O193/'Population at Risk'!O$5","v":0},{"$f":"'Population at Risk'!P193/'Population at Risk'!P$5","v":0},{"$f":"'Population at Risk'!Q193/'Population at Risk'!Q$5","v":0},{"$f":"'Population at Risk'!R193/'Population at Risk'!R$5","v":0},{"$f":"'Population at Risk'!S193/'Population at Risk'!S$5","v":0},{"$f":"'Population at Risk'!T193/'Population at Risk'!T$5","v":0},{"$f":"'Population at Risk'!U193/'Population at Risk'!U$5","v":0},{"$f":"'Population at Risk'!V193/'Population at Risk'!V$5","v":0},{"$f":"'Population at Risk'!W193/'Population at Risk'!W$5","v":0},{"$f":"'Population at Risk'!X193/'Population at Risk'!X$5","v":0},{"$f":"'Population at Risk'!Y193/'Population at Risk'!Y$5","v":0},{"$f":"'Population at Risk'!Z193/'Population at Risk'!Z$5","v":0},{"$f":"'Population at Risk'!AA193/'Population at Risk'!AA$5","v":0},{"$f":"'Population at Risk'!AB193/'Population at Risk'!AB$5","v":0},{"$f":"'Population at Risk'!AC193/'Population at Risk'!AC$5","v":0},{"$f":"'Population at Risk'!AD193/'Population at Risk'!AD$5","v":0},{"$f":"'Population at Risk'!AE193/'Population at Risk'!AE$5","v":0},{"$f":"'Population at Risk'!AF193/'Population at Risk'!AF$5","v":0},{"$f":"'Population at Risk'!AG193/'Population at Risk'!AG$5","v":0},{"$f":"'Population at Risk'!AH193/'Population at Risk'!AH$5","v":0},{"$f":"'Population at Risk'!AI193/'Population at Risk'!AI$5","v":0},{"$f":"'Population at Risk'!AJ193/'Population at Risk'!AJ$5","v":0},{"$f":"'Population at Risk'!AK193/'Population at Risk'!AK$5","v":0},{"$f":"'Population at Risk'!AL193/'Population at Risk'!AL$5","v":0},{"$f":"'Population at Risk'!AM193/'Population at Risk'!AM$5","v":0},{"$f":"'Population at Risk'!AN193/'Population at Risk'!AN$5","v":0},{"$f":"'Population at Risk'!AO193/'Population at Risk'!AO$5","v":0},{"$f":"'Population at Risk'!AP193/'Population at Risk'!AP$5","v":0},{"$f":"'Population at Risk'!AQ193/'Population at Risk'!AQ$5","v":0},{"$f":"'Population at Risk'!AR193/'Population at Risk'!AR$5","v":0},{"$f":"'Population at Risk'!AS193/'Population at Risk'!AS$5","v":0},{"$f":"'Population at Risk'!AT193/'Population at Risk'!AT$5","v":0},{"$f":"'Population at Risk'!AU193/'Population at Risk'!AU$5","v":0},{"$f":"'Population at Risk'!AV193/'Population at Risk'!AV$5","v":0},{"$f":"'Population at Risk'!AW193/'Population at Risk'!AW$5","v":0},{"$f":"'Population at Risk'!AX193/'Population at Risk'!AX$5","v":0},{"$f":"'Population at Risk'!AY193/'Population at Risk'!AY$5","v":0},{"$f":"'Population at Risk'!AZ193/'Population at Risk'!AZ$5","v":0},{"$f":"'Population at Risk'!BA193/'Population at Risk'!BA$5","v":0},{"$f":"'Population at Risk'!BB193/'Population at Risk'!BB$5","v":0},{"$f":"'Population at Risk'!BC193/'Population at Risk'!BC$5","v":0},191]
[null,"Male 5-9",{"$f":"'Population at Risk'!C194/'Population at Risk'!C$5","v":0},{"$f":"'Population at Risk'!D194/'Population at Risk'!D$5","v":0},{"$f":"'Population at Risk'!E194/'Population at Risk'!E$5","v":0},{"$f":"'Population at Risk'!F194/'Population at Risk'!F$5","v":0},{"$f":"'Population at Risk'!G194/'Population at Risk'!G$5","v":0},{"$f":"'Population at Risk'!H194/'Population at Risk'!H$5","v":0},{"$f":"'Population at Risk'!I194/'Population at Risk'!I$5","v":0},{"$f":"'Population at Risk'!J194/'Population at Risk'!J$5","v":0},{"$f":"'Population at Risk'!K194/'Population at Risk'!K$5","v":0},{"$f":"'Population at Risk'!L194/'Population at Risk'!L$5","v":0},{"$f":"'Population at Risk'!M194/'Population at Risk'!M$5","v":0},{"$f":"'Population at Risk'!N194/'Population at Risk'!N$5","v":0},{"$f":"'Population at Risk'!O194/'Population at Risk'!O$5","v":0},{"$f":"'Population at Risk'!P194/'Population at Risk'!P$5","v":0},{"$f":"'Population at Risk'!Q194/'Population at Risk'!Q$5","v":0},{"$f":"'Population at Risk'!R194/'Population at Risk'!R$5","v":0},{"$f":"'Population at Risk'!S194/'Population at Risk'!S$5","v":0},{"$f":"'Population at Risk'!T194/'Population at Risk'!T$5","v":0},{"$f":"'Population at Risk'!U194/'Population at Risk'!U$5","v":0},{"$f":"'Population at Risk'!V194/'Population at Risk'!V$5","v":0},{"$f":"'Population at Risk'!W194/'Population at Risk'!W$5","v":0},{"$f":"'Population at Risk'!X194/'Population at Risk'!X$5","v":0},{"$f":"'Population at Risk'!Y194/'Population at Risk'!Y$5","v":0},{"$f":"'Population at Risk'!Z194/'Population at Risk'!Z$5","v":0},{"$f":"'Population at Risk'!AA194/'Population at Risk'!AA$5","v":0},{"$f":"'Population at Risk'!AB194/'Population at Risk'!AB$5","v":0},{"$f":"'Population at Risk'!AC194/'Population at Risk'!AC$5","v":0},{"$f":"'Population at Risk'!AD194/'Population at Risk'!AD$5","v":0},{"$f":"'Population at Risk'!AE194/'Population at Risk'!AE$5","v":0},{"$f":"'Population at Risk'!AF194/'Population at Risk'!AF$5","v":0},{"$f":"'Population at Risk'!AG194/'Population at Risk'!AG$5","v":0},{"$f":"'Population at Risk'!AH194/'Population at Risk'!AH$5","v":0},{"$f":"'Population at Risk'!AI194/'Population at Risk'!AI$5","v":0},{"$f":"'Population at Risk'!AJ194/'Population at Risk'!AJ$5","v":0},{"$f":"'Population at Risk'!AK194/'Population at Risk'!AK$5","v":0},{"$f":"'Population at Risk'!AL194/'Population at Risk'!AL$5","v":0},{"$f":"'Population at Risk'!AM194/'Population at Risk'!AM$5","v":0},{"$f":"'Population at Risk'!AN194/'Population at Risk'!AN$5","v":0},{"$f":"'Population at Risk'!AO194/'Population at Risk'!AO$5","v":0},{"$f":"'Population at Risk'!AP194/'Population at Risk'!AP$5","v":0},{"$f":"'Population at Risk'!AQ194/'Population at Risk'!AQ$5","v":0},{"$f":"'Population at Risk'!AR194/'Population at Risk'!AR$5","v":0},{"$f":"'Population at Risk'!AS194/'Population at Risk'!AS$5","v":0},{"$f":"'Population at Risk'!AT194/'Population at Risk'!AT$5","v":0},{"$f":"'Population at Risk'!AU194/'Population at Risk'!AU$5","v":0},{"$f":"'Population at Risk'!AV194/'Population at Risk'!AV$5","v":0},{"$f":"'Population at Risk'!AW194/'Population at Risk'!AW$5","v":0},{"$f":"'Population at Risk'!AX194/'Population at Risk'!AX$5","v":0},{"$f":"'Population at Risk'!AY194/'Population at Risk'!AY$5","v":0},{"$f":"'Population at Risk'!AZ194/'Population at Risk'!AZ$5","v":0},{"$f":"'Population at Risk'!BA194/'Population at Risk'!BA$5","v":0},{"$f":"'Population at Risk'!BB194/'Population at Risk'!BB$5","v":0},{"$f":"'Population at Risk'!BC194/'Population at Risk'!BC$5","v":0},192]
[null,"Male 10-15",{"$f":"'Population at Risk'!C195/'Population at Risk'!C$5","v":0},{"$f":"'Population at Risk'!D195/'Population at Risk'!D$5","v":0},{"$f":"'Population at Risk'!E195/'Population at Risk'!E$5","v":0},{"$f":"'Population at Risk'!F195/'Population at Risk'!F$5","v":0},{"$f":"'Population at Risk'!G195/'Population at Risk'!G$5","v":0},{"$f":"'Population at Risk'!H195/'Population at Risk'!H$5","v":0},{"$f":"'Population at Risk'!I195/'Population at Risk'!I$5","v":0},{"$f":"'Population at Risk'!J195/'Population at Risk'!J$5","v":0},{"$f":"'Population at Risk'!K195/'Population at Risk'!K$5","v":0},{"$f":"'Population at Risk'!L195/'Population at Risk'!L$5","v":0},{"$f":"'Population at Risk'!M195/'Population at Risk'!M$5","v":0},{"$f":"'Population at Risk'!N195/'Population at Risk'!N$5","v":0},{"$f":"'Population at Risk'!O195/'Population at Risk'!O$5","v":0},{"$f":"'Population at Risk'!P195/'Population at Risk'!P$5","v":0},{"$f":"'Population at Risk'!Q195/'Population at Risk'!Q$5","v":0},{"$f":"'Population at Risk'!R195/'Population at Risk'!R$5","v":0},{"$f":"'Population at Risk'!S195/'Population at Risk'!S$5","v":0},{"$f":"'Population at Risk'!T195/'Population at Risk'!T$5","v":0},{"$f":"'Population at Risk'!U195/'Population at Risk'!U$5","v":0},{"$f":"'Population at Risk'!V195/'Population at Risk'!V$5","v":0},{"$f":"'Population at Risk'!W195/'Population at Risk'!W$5","v":0},{"$f":"'Population at Risk'!X195/'Population at Risk'!X$5","v":0},{"$f":"'Population at Risk'!Y195/'Population at Risk'!Y$5","v":0},{"$f":"'Population at Risk'!Z195/'Population at Risk'!Z$5","v":0},{"$f":"'Population at Risk'!AA195/'Population at Risk'!AA$5","v":0},{"$f":"'Population at Risk'!AB195/'Population at Risk'!AB$5","v":0},{"$f":"'Population at Risk'!AC195/'Population at Risk'!AC$5","v":0},{"$f":"'Population at Risk'!AD195/'Population at Risk'!AD$5","v":0},{"$f":"'Population at Risk'!AE195/'Population at Risk'!AE$5","v":0},{"$f":"'Population at Risk'!AF195/'Population at Risk'!AF$5","v":0},{"$f":"'Population at Risk'!AG195/'Population at Risk'!AG$5","v":0},{"$f":"'Population at Risk'!AH195/'Population at Risk'!AH$5","v":0},{"$f":"'Population at Risk'!AI195/'Population at Risk'!AI$5","v":0},{"$f":"'Population at Risk'!AJ195/'Population at Risk'!AJ$5","v":0},{"$f":"'Population at Risk'!AK195/'Population at Risk'!AK$5","v":0},{"$f":"'Population at Risk'!AL195/'Population at Risk'!AL$5","v":0},{"$f":"'Population at Risk'!AM195/'Population at Risk'!AM$5","v":0},{"$f":"'Population at Risk'!AN195/'Population at Risk'!AN$5","v":0},{"$f":"'Population at Risk'!AO195/'Population at Risk'!AO$5","v":0},{"$f":"'Population at Risk'!AP195/'Population at Risk'!AP$5","v":0},{"$f":"'Population at Risk'!AQ195/'Population at Risk'!AQ$5","v":0},{"$f":"'Population at Risk'!AR195/'Population at Risk'!AR$5","v":0},{"$f":"'Population at Risk'!AS195/'Population at Risk'!AS$5","v":0},{"$f":"'Population at Risk'!AT195/'Population at Risk'!AT$5","v":0},{"$f":"'Population at Risk'!AU195/'Population at Risk'!AU$5","v":0},{"$f":"'Population at Risk'!AV195/'Population at Risk'!AV$5","v":0},{"$f":"'Population at Risk'!AW195/'Population at Risk'!AW$5","v":0},{"$f":"'Population at Risk'!AX195/'Population at Risk'!AX$5","v":0},{"$f":"'Population at Risk'!AY195/'Population at Risk'!AY$5","v":0},{"$f":"'Population at Risk'!AZ195/'Population at Risk'!AZ$5","v":0},{"$f":"'Population at Risk'!BA195/'Population at Risk'!BA$5","v":0},{"$f":"'Population at Risk'!BB195/'Population at Risk'!BB$5","v":0},{"$f":"'Population at Risk'!BC195/'Population at Risk'!BC$5","v":0},193]
[null,"Male 16-19",{"$f":"'Population at Risk'!C196/'Population at Risk'!C$5","v":4.9605431324838654E-3},{"$f":"'Population at Risk'!D196/'Population at Risk'!D$5","v":8.0840613765183963E-3},{"$f":"'Population at Risk'!E196/'Population at Risk'!E$5","v":1.0799806072274428E-2},{"$f":"'Population at Risk'!F196/'Population at Risk'!F$5","v":6.8037349568618047E-3},{"$f":"'Population at Risk'!G196/'Population at Risk'!G$5","v":6.1326110145538022E-3},{"$f":"'Population at Risk'!H196/'Population at Risk'!H$5","v":3.3497553025142184E-3},{"$f":"'Population at Risk'!I196/'Population at Risk'!I$5","v":8.5112703728236153E-3},{"$f":"'Population at Risk'!J196/'Population at Risk'!J$5","v":6.308316113064906E-3},{"$f":"'Population at Risk'!K196/'Population at Risk'!K$5","v":4.5728104033931774E-3},{"$f":"'Population at Risk'!L196/'Population at Risk'!L$5","v":3.462245124354038E-3},{"$f":"'Population at Risk'!M196/'Population at Risk'!M$5","v":3.4610413149158514E-3},{"$f":"'Population at Risk'!N196/'Population at Risk'!N$5","v":5.515040425118271E-3},{"$f":"'Population at Risk'!O196/'Population at Risk'!O$5","v":3.0881012350395306E-3},{"$f":"'Population at Risk'!P196/'Population at Risk'!P$5","v":4.9761224947981186E-3},{"$f":"'Population at Risk'!Q196/'Population at Risk'!Q$5","v":9.2368056522299253E-3},{"$f":"'Population at Risk'!R196/'Population at Risk'!R$5","v":4.7298387647046409E-3},{"$f":"'Population at Risk'!S196/'Population at Risk'!S$5","v":4.4969762889841289E-3},{"$f":"'Population at Risk'!T196/'Population at Risk'!T$5","v":3.112139460149389E-3},{"$f":"'Population at Risk'!U196/'Population at Risk'!U$5","v":1.3198332907198669E-3},{"$f":"'Population at Risk'!V196/'Population at Risk'!V$5","v":5.5023594759959884E-3},{"$f":"'Population at Risk'!W196/'Population at Risk'!W$5","v":4.0645253507023199E-3},{"$f":"'Population at Risk'!X196/'Population at Risk'!X$5","v":4.0641130080341587E-3},{"$f":"'Population at Risk'!Y196/'Population at Risk'!Y$5","v":6.1025853129641136E-3},{"$f":"'Population at Risk'!Z196/'Population at Risk'!Z$5","v":2.1564803511294052E-3},{"$f":"'Population at Risk'!AA196/'Population at Risk'!AA$5","v":3.7200433216757005E-3},{"$f":"'Population at Risk'!AB196/'Population at Risk'!AB$5","v":8.4390334305190495E-3},{"$f":"'Population at Risk'!AC196/'Population at Risk'!AC$5","v":3.156346722647474E-3},{"$f":"'Population at Risk'!AD196/'Population at Risk'!AD$5","v":8.0556815482200721E-3},{"$f":"'Population at Risk'!AE196/'Population at Risk'!AE$5","v":8.9175633464776034E-3},{"$f":"'Population at Risk'!AF196/'Population at Risk'!AF$5","v":5.342843180734403E-3},{"$f":"'Population at Risk'!AG196/'Population at Risk'!AG$5","v":8.9175633464776034E-3},{"$f":"'Population at Risk'!AH196/'Population at Risk'!AH$5","v":4.7574584192349011E-3},{"$f":"'Population at Risk'!AI196/'Population at Risk'!AI$5","v":4.1375182730059266E-3},{"$f":"'Population at Risk'!AJ196/'Population at Risk'!AJ$5","v":3.9475794637198972E-3},{"$f":"'Population at Risk'!AK196/'Population at Risk'!AK$5","v":1.0062904650593006E-2},{"$f":"'Population at Risk'!AL196/'Population at Risk'!AL$5","v":3.6782170195527528E-3},{"$f":"'Population at Risk'!AM196/'Population at Risk'!AM$5","v":3.9322250512271607E-3},{"$f":"'Population at Risk'!AN196/'Population at Risk'!AN$5","v":1.3084932422094298E-2},{"$f":"'Population at Risk'!AO196/'Population at Risk'!AO$5","v":1.3075084614447861E-2},{"$f":"'Population at Risk'!AP196/'Population at Risk'!AP$5","v":1.2528966851897336E-2},{"$f":"'Population at Risk'!AQ196/'Population at Risk'!AQ$5","v":4.5627996847021094E-3},{"$f":"'Population at Risk'!AR196/'Population at Risk'!AR$5","v":5.1874012661058191E-3},{"$f":"'Population at Risk'!AS196/'Population at Risk'!AS$5","v":8.5123496212244076E-3},{"$f":"'Population at Risk'!AT196/'Population at Risk'!AT$5","v":1.9844026610540938E-2},{"$f":"'Population at Risk'!AU196/'Population at Risk'!AU$5","v":1.9861573304291721E-2},{"$f":"'Population at Risk'!AV196/'Population at Risk'!AV$5","v":3.1919361903617453E-3},{"$f":"'Population at Risk'!AW196/'Population at Risk'!AW$5","v":5.5974214876739117E-3},{"$f":"'Population at Risk'!AX196/'Population at Risk'!AX$5","v":8.0777141676205179E-3},{"$f":"'Population at Risk'!AY196/'Population at Risk'!AY$5","v":6.4390845487611774E-3},{"$f":"'Population at Risk'!AZ196/'Population at Risk'!AZ$5","v":8.6759196377863019E-3},{"$f":"'Population at Risk'!BA196/'Population at Risk'!BA$5","v":2.5443758945203261E-3},{"$f":"'Population at Risk'!BB196/'Population at Risk'!BB$5","v":4.2609100804155168E-3},{"$f":"'Population at Risk'!BC196/'Population at Risk'!BC$5","v":1.3190210570443754E-3},194]
[null,"Male 20-24",{"$f":"'Population at Risk'!C197/'Population at Risk'!C$5","v":1.2292271813249947E-2},{"$f":"'Population at Risk'!D197/'Population at Risk'!D$5","v":1.2213962297131054E-2},{"$f":"'Population at Risk'!E197/'Population at Risk'!E$5","v":1.2162212547321938E-2},{"$f":"'Population at Risk'!F197/'Population at Risk'!F$5","v":8.1393187748517466E-3},{"$f":"'Population at Risk'!G197/'Population at Risk'!G$5","v":6.8597980913783644E-3},{"$f":"'Population at Risk'!H197/'Population at Risk'!H$5","v":3.6398484904770507E-3},{"$f":"'Population at Risk'!I197/'Population at Risk'!I$5","v":8.8116681506879794E-3},{"$f":"'Population at Risk'!J197/'Population at Risk'!J$5","v":9.167327474341222E-3},{"$f":"'Population at Risk'!K197/'Population at Risk'!K$5","v":5.98441709313629E-3},{"$f":"'Population at Risk'!L197/'Population at Risk'!L$5","v":4.1938893770477213E-3},{"$f":"'Population at Risk'!M197/'Population at Risk'!M$5","v":4.192431177690522E-3},{"$f":"'Population at Risk'!N197/'Population at Risk'!N$5","v":1.2047908991521456E-2},{"$f":"'Population at Risk'!O197/'Population at Risk'!O$5","v":3.4483797124608092E-3},{"$f":"'Population at Risk'!P197/'Population at Risk'!P$5","v":6.6016558430988369E-3},{"$f":"'Population at Risk'!Q197/'Population at Risk'!Q$5","v":1.1605217357929905E-2},{"$f":"'Population at Risk'!R197/'Population at Risk'!R$5","v":4.8376413576323822E-3},{"$f":"'Population at Risk'!S197/'Population at Risk'!S$5","v":6.7067199136582271E-3},{"$f":"'Population at Risk'!T197/'Population at Risk'!T$5","v":7.3476248768307873E-3},{"$f":"'Population at Risk'!U197/'Population at Risk'!U$5","v":1.7723475618238213E-3},{"$f":"'Population at Risk'!V197/'Population at Risk'!V$5","v":6.438501418668501E-3},{"$f":"'Population at Risk'!W197/'Population at Risk'!W$5","v":5.3162707745725967E-3},{"$f":"'Population at Risk'!X197/'Population at Risk'!X$5","v":5.3157314433871054E-3},{"$f":"'Population at Risk'!Y197/'Population at Risk'!Y$5","v":8.0400845232420394E-3},{"$f":"'Population at Risk'!Z197/'Population at Risk'!Z$5","v":7.0389516943814637E-3},{"$f":"'Population at Risk'!AA197/'Population at Risk'!AA$5","v":6.1097681208557731E-3},{"$f":"'Population at Risk'!AB197/'Population at Risk'!AB$5","v":1.2286656840039753E-2},{"$f":"'Population at Risk'!AC197/'Population at Risk'!AC$5","v":6.3062406336540219E-3},{"$f":"'Population at Risk'!AD197/'Population at Risk'!AD$5","v":8.9499958332415249E-3},{"$f":"'Population at Risk'!AE197/'Population at Risk'!AE$5","v":9.8890702476385779E-3},{"$f":"'Population at Risk'!AF197/'Population at Risk'!AF$5","v":5.5991917171837819E-3},{"$f":"'Population at Risk'!AG197/'Population at Risk'!AG$5","v":9.8890702476385779E-3},{"$f":"'Population at Risk'!AH197/'Population at Risk'!AH$5","v":5.6795008394698154E-3},{"$f":"'Population at Risk'!AI197/'Population at Risk'!AI$5","v":7.08135827628427E-3},{"$f":"'Population at Risk'!AJ197/'Population at Risk'!AJ$5","v":4.2920954896445429E-3},{"$f":"'Population at Risk'!AK197/'Population at Risk'!AK$5","v":1.2636012322353282E-2},{"$f":"'Population at Risk'!AL197/'Population at Risk'!AL$5","v":4.1771999485618475E-3},{"$f":"'Population at Risk'!AM197/'Population at Risk'!AM$5","v":5.1666017846993392E-3},{"$f":"'Population at Risk'!AN197/'Population at Risk'!AN$5","v":1.372063764098147E-2},{"$f":"'Population at Risk'!AO197/'Population at Risk'!AO$5","v":1.3710311397336018E-2},{"$f":"'Population at Risk'!AP197/'Population at Risk'!AP$5","v":1.3213904228935952E-2},{"$f":"'Population at Risk'!AQ197/'Population at Risk'!AQ$5","v":5.8885214548694362E-3},{"$f":"'Population at Risk'!AR197/'Population at Risk'!AR$5","v":7.3888796620724482E-3},{"$f":"'Population at Risk'!AS197/'Population at Risk'!AS$5","v":8.812785490208799E-3},{"$f":"'Population at Risk'!AT197/'Population at Risk'!AT$5","v":2.3823443711585242E-2},{"$f":"'Population at Risk'!AU197/'Population at Risk'!AU$5","v":2.3844509127344874E-2},{"$f":"'Population at Risk'!AV197/'Population at Risk'!AV$5","v":3.1369028077693011E-3},{"$f":"'Population at Risk'!AW197/'Population at Risk'!AW$5","v":6.1879422967955205E-3},{"$f":"'Population at Risk'!AX197/'Population at Risk'!AX$5","v":1.2147308367745921E-2},{"$f":"'Population at Risk'!AY197/'Population at Risk'!AY$5","v":8.6787037512157678E-3},{"$f":"'Population at Risk'!AZ197/'Population at Risk'!AZ$5","v":1.1849147757325589E-2},{"$f":"'Population at Risk'!BA197/'Population at Risk'!BA$5","v":3.7424004188460406E-3},{"$f":"'Population at Risk'!BB197/'Population at Risk'!BB$5","v":5.2885028340641125E-3},{"$f":"'Population at Risk'!BC197/'Population at Risk'!BC$5","v":1.7712568480310182E-3},195]
[null,"Male 25-29",{"$f":"'Population at Risk'!C198/'Population at Risk'!C$5","v":8.0198704108656003E-3},{"$f":"'Population at Risk'!D198/'Population at Risk'!D$5","v":7.4695926118719478E-3},{"$f":"'Population at Risk'!E198/'Population at Risk'!E$5","v":7.0028547701771393E-3},{"$f":"'Population at Risk'!F198/'Population at Risk'!F$5","v":3.891236301307843E-3},{"$f":"'Population at Risk'!G198/'Population at Risk'!G$5","v":3.2113885429747449E-3},{"$f":"'Population at Risk'!H198/'Population at Risk'!H$5","v":1.8649042135034238E-3},{"$f":"'Population at Risk'!I198/'Population at Risk'!I$5","v":4.0663494521142344E-3},{"$f":"'Population at Risk'!J198/'Population at Risk'!J$5","v":3.7812174131697791E-3},{"$f":"'Population at Risk'!K198/'Population at Risk'!K$5","v":2.8630932159561919E-3},{"$f":"'Population at Risk'!L198/'Population at Risk'!L$5","v":2.2840770700934105E-3},{"$f":"'Population at Risk'!M198/'Population at Risk'!M$5","v":2.2832829051987347E-3},{"$f":"'Population at Risk'!N198/'Population at Risk'!N$5","v":4.5614412878964379E-3},{"$f":"'Population at Risk'!O198/'Population at Risk'!O$5","v":1.9567004024358663E-3},{"$f":"'Population at Risk'!P198/'Population at Risk'!P$5","v":3.00012656221464E-3},{"$f":"'Population at Risk'!Q198/'Population at Risk'!Q$5","v":4.7102890358728831E-3},{"$f":"'Population at Risk'!R198/'Population at Risk'!R$5","v":2.9418366212587482E-3},{"$f":"'Population at Risk'!S198/'Population at Risk'!S$5","v":4.2804942439929527E-3},{"$f":"'Population at Risk'!T198/'Population at Risk'!T$5","v":6.2764705743472747E-3},{"$f":"'Population at Risk'!U198/'Population at Risk'!U$5","v":5.4303917767713824E-4},{"$f":"'Population at Risk'!V198/'Population at Risk'!V$5","v":3.037587420572546E-3},{"$f":"'Population at Risk'!W198/'Population at Risk'!W$5","v":2.6757276327096309E-3},{"$f":"'Population at Risk'!X198/'Population at Risk'!X$5","v":2.6754561823984272E-3},{"$f":"'Population at Risk'!Y198/'Population at Risk'!Y$5","v":3.5193577498277276E-3},{"$f":"'Population at Risk'!Z198/'Population at Risk'!Z$5","v":3.8944119633324776E-3},{"$f":"'Population at Risk'!AA198/'Population at Risk'!AA$5","v":3.2882590978794237E-3},{"$f":"'Population at Risk'!AB198/'Population at Risk'!AB$5","v":7.3048133778258716E-3},{"$f":"'Population at Risk'!AC198/'Population at Risk'!AC$5","v":3.4700574112241293E-3},{"$f":"'Population at Risk'!AD198/'Population at Risk'!AD$5","v":4.88697841672251E-3},{"$f":"'Population at Risk'!AE198/'Population at Risk'!AE$5","v":5.6128118007896695E-3},{"$f":"'Population at Risk'!AF198/'Population at Risk'!AF$5","v":2.5568971518765055E-3},{"$f":"'Population at Risk'!AG198/'Population at Risk'!AG$5","v":5.6128118007896695E-3},{"$f":"'Population at Risk'!AH198/'Population at Risk'!AH$5","v":2.9120614422632812E-3},{"$f":"'Population at Risk'!AI198/'Population at Risk'!AI$5","v":5.0879777534024624E-3},{"$f":"'Population at Risk'!AJ198/'Population at Risk'!AJ$5","v":2.7204090141635055E-3},{"$f":"'Population at Risk'!AK198/'Population at Risk'!AK$5","v":6.5688670277285668E-3},{"$f":"'Population at Risk'!AL198/'Population at Risk'!AL$5","v":1.8354192876195424E-3},{"$f":"'Population at Risk'!AM198/'Population at Risk'!AM$5","v":2.5486777157608075E-3},{"$f":"'Population at Risk'!AN198/'Population at Risk'!AN$5","v":7.7203176936051568E-3},{"$f":"'Population at Risk'!AO198/'Population at Risk'!AO$5","v":7.714507330879276E-3},{"$f":"'Population at Risk'!AP198/'Population at Risk'!AP$5","v":6.4101659471047252E-3},{"$f":"'Population at Risk'!AQ198/'Population at Risk'!AQ$5","v":3.5921053465132499E-3},{"$f":"'Population at Risk'!AR198/'Population at Risk'!AR$5","v":4.0737327295318725E-3},{"$f":"'Population at Risk'!AS198/'Population at Risk'!AS$5","v":4.0668650744539112E-3},{"$f":"'Population at Risk'!AT198/'Population at Risk'!AT$5","v":1.4028492496207768E-2},{"$f":"'Population at Risk'!AU198/'Population at Risk'!AU$5","v":1.404089691726843E-2},{"$f":"'Population at Risk'!AV198/'Population at Risk'!AV$5","v":1.7963625565506293E-3},{"$f":"'Population at Risk'!AW198/'Population at Risk'!AW$5","v":3.2778457033698642E-3},{"$f":"'Population at Risk'!AX198/'Population at Risk'!AX$5","v":4.7662662200917512E-3},{"$f":"'Population at Risk'!AY198/'Population at Risk'!AY$5","v":3.9941851682199101E-3},{"$f":"'Population at Risk'!AZ198/'Population at Risk'!AZ$5","v":5.2332805624756831E-3},{"$f":"'Population at Risk'!BA198/'Population at Risk'!BA$5","v":2.1491378956429463E-3},{"$f":"'Population at Risk'!BB198/'Population at Risk'!BB$5","v":3.2385802613080867E-3},{"$f":"'Population at Risk'!BC198/'Population at Risk'!BC$5","v":5.4270498796520875E-4},196]
[null,"Male 30-34",{"$f":"'Population at Risk'!C199/'Population at Risk'!C$5","v":5.929743359456504E-3},{"$f":"'Population at Risk'!D199/'Population at Risk'!D$5","v":6.8023908077314349E-3},{"$f":"'Population at Risk'!E199/'Population at Risk'!E$5","v":7.5670929663836399E-3},{"$f":"'Population at Risk'!F199/'Population at Risk'!F$5","v":3.7964640704736975E-3},{"$f":"'Population at Risk'!G199/'Population at Risk'!G$5","v":2.7925117764997787E-3},{"$f":"'Population at Risk'!H199/'Population at Risk'!H$5","v":1.7655897879322354E-3},{"$f":"'Population at Risk'!I199/'Population at Risk'!I$5","v":4.1009566814939301E-3},{"$f":"'Population at Risk'!J199/'Population at Risk'!J$5","v":3.5313211377598582E-3},{"$f":"'Population at Risk'!K199/'Population at Risk'!K$5","v":3.5616879606495022E-3},{"$f":"'Population at Risk'!L199/'Population at Risk'!L$5","v":2.4120154891760725E-3},{"$f":"'Population at Risk'!M199/'Population at Risk'!M$5","v":2.4111768405805419E-3},{"$f":"'Population at Risk'!N199/'Population at Risk'!N$5","v":2.8940411452834281E-3},{"$f":"'Population at Risk'!O199/'Population at Risk'!O$5","v":2.0802294682462116E-3},{"$f":"'Population at Risk'!P199/'Population at Risk'!P$5","v":2.713490266461649E-3},{"$f":"'Population at Risk'!Q199/'Population at Risk'!Q$5","v":4.9616001887014677E-3},{"$f":"'Population at Risk'!R199/'Population at Risk'!R$5","v":2.3053442652080426E-3},{"$f":"'Population at Risk'!S199/'Population at Risk'!S$5","v":4.3406769398663158E-3},{"$f":"'Population at Risk'!T199/'Population at Risk'!T$5","v":5.9450774989607087E-3},{"$f":"'Population at Risk'!U199/'Population at Risk'!U$5","v":4.9959604346296721E-4},{"$f":"'Population at Risk'!V199/'Population at Risk'!V$5","v":3.146211236378461E-3},{"$f":"'Population at Risk'!W199/'Population at Risk'!W$5","v":2.6774083661472627E-3},{"$f":"'Population at Risk'!X199/'Population at Risk'!X$5","v":2.6771367453270693E-3},{"$f":"'Population at Risk'!Y199/'Population at Risk'!Y$5","v":3.4512810758861598E-3},{"$f":"'Population at Risk'!Z199/'Population at Risk'!Z$5","v":3.2267984839040526E-3},{"$f":"'Population at Risk'!AA199/'Population at Risk'!AA$5","v":3.036202290504018E-3},{"$f":"'Population at Risk'!AB199/'Population at Risk'!AB$5","v":6.7796307166749911E-3},{"$f":"'Population at Risk'!AC199/'Population at Risk'!AC$5","v":2.8965819706545715E-3},{"$f":"'Population at Risk'!AD199/'Population at Risk'!AD$5","v":4.9521118124219625E-3},{"$f":"'Population at Risk'!AE199/'Population at Risk'!AE$5","v":5.8717361546951454E-3},{"$f":"'Population at Risk'!AF199/'Population at Risk'!AF$5","v":2.720103353060113E-3},{"$f":"'Population at Risk'!AG199/'Population at Risk'!AG$5","v":5.8717361546951454E-3},{"$f":"'Population at Risk'!AH199/'Population at Risk'!AH$5","v":3.2735447974402074E-3},{"$f":"'Population at Risk'!AI199/'Population at Risk'!AI$5","v":5.1801453529751584E-3},{"$f":"'Population at Risk'!AJ199/'Population at Risk'!AJ$5","v":3.1917260774076391E-3},{"$f":"'Population at Risk'!AK199/'Population at Risk'!AK$5","v":6.6871623025923218E-3},{"$f":"'Population at Risk'!AL199/'Population at Risk'!AL$5","v":1.5562056152299923E-3},{"$f":"'Population at Risk'!AM199/'Population at Risk'!AM$5","v":2.7712438532267823E-3},{"$f":"'Population at Risk'!AN199/'Population at Risk'!AN$5","v":7.7203176936051568E-3},{"$f":"'Population at Risk'!AO199/'Population at Risk'!AO$5","v":7.714507330879276E-3},{"$f":"'Population at Risk'!AP199/'Population at Risk'!AP$5","v":7.0618218213954528E-3},{"$f":"'Population at Risk'!AQ199/'Population at Risk'!AQ$5","v":2.8284585958613102E-3},{"$f":"'Population at Risk'!AR199/'Population at Risk'!AR$5","v":3.9079707832444972E-3},{"$f":"'Population at Risk'!AS199/'Population at Risk'!AS$5","v":4.1014766921088379E-3},{"$f":"'Population at Risk'!AT199/'Population at Risk'!AT$5","v":1.2500334272219993E-2},{"$f":"'Population at Risk'!AU199/'Population at Risk'!AU$5","v":1.25113874491564E-2},{"$f":"'Population at Risk'!AV199/'Population at Risk'!AV$5","v":1.6906941708711807E-3},{"$f":"'Population at Risk'!AW199/'Population at Risk'!AW$5","v":3.7829225570337739E-3},{"$f":"'Population at Risk'!AX199/'Population at Risk'!AX$5","v":3.9022476779651629E-3},{"$f":"'Population at Risk'!AY199/'Population at Risk'!AY$5","v":3.771046332006507E-3},{"$f":"'Population at Risk'!AZ199/'Population at Risk'!AZ$5","v":4.7956936965605611E-3},{"$f":"'Population at Risk'!BA199/'Population at Risk'!BA$5","v":1.6759332213729396E-3},{"$f":"'Population at Risk'!BB199/'Population at Risk'!BB$5","v":4.1924345175490011E-3},{"$f":"'Population at Risk'!BC199/'Population at Risk'!BC$5","v":4.9928858892799206E-4},197]
[null,"Male 35-39",{"$f":"'Population at Risk'!C200/'Population at Risk'!C$5","v":6.4383917525253544E-3},{"$f":"'Population at Risk'!D200/'Population at Risk'!D$5","v":9.3010711018093918E-3},{"$f":"'Population at Risk'!E200/'Population at Risk'!E$5","v":1.1792518691434415E-2},{"$f":"'Population at Risk'!F200/'Population at Risk'!F$5","v":5.0032040643406585E-3},{"$f":"'Population at Risk'!G200/'Population at Risk'!G$5","v":4.8195634721315975E-3},{"$f":"'Population at Risk'!H200/'Population at Risk'!H$5","v":2.8578484159851648E-3},{"$f":"'Population at Risk'!I200/'Population at Risk'!I$5","v":6.7134511572306968E-3},{"$f":"'Population at Risk'!J200/'Population at Risk'!J$5","v":5.7468033204695259E-3},{"$f":"'Population at Risk'!K200/'Population at Risk'!K$5","v":4.9809101876776953E-3},{"$f":"'Population at Risk'!L200/'Population at Risk'!L$5","v":2.8419214309935515E-3},{"$f":"'Population at Risk'!M200/'Population at Risk'!M$5","v":2.8409333057400421E-3},{"$f":"'Population at Risk'!N200/'Population at Risk'!N$5","v":3.2552263958675492E-3},{"$f":"'Population at Risk'!O200/'Population at Risk'!O$5","v":3.1928438500291754E-3},{"$f":"'Population at Risk'!P200/'Population at Risk'!P$5","v":3.7289555235872482E-3},{"$f":"'Population at Risk'!Q200/'Population at Risk'!Q$5","v":8.3177977613785974E-3},{"$f":"'Population at Risk'!R200/'Population at Risk'!R$5","v":3.8046119784732016E-3},{"$f":"'Population at Risk'!S200/'Population at Risk'!S$5","v":5.7660928901099228E-3},{"$f":"'Population at Risk'!T200/'Population at Risk'!T$5","v":6.4630060692141295E-3},{"$f":"'Population at Risk'!U200/'Population at Risk'!U$5","v":1.4995599627226559E-3},{"$f":"'Population at Risk'!V200/'Population at Risk'!V$5","v":5.0189086641694459E-3},{"$f":"'Population at Risk'!W200/'Population at Risk'!W$5","v":4.0471378646825575E-3},{"$f":"'Population at Risk'!X200/'Population at Risk'!X$5","v":4.0467272859601852E-3},{"$f":"'Population at Risk'!Y200/'Population at Risk'!Y$5","v":5.5627470273102581E-3},{"$f":"'Population at Risk'!Z200/'Population at Risk'!Z$5","v":3.299075560225859E-3},{"$f":"'Population at Risk'!AA200/'Population at Risk'!AA$5","v":4.0094317706007368E-3},{"$f":"'Population at Risk'!AB200/'Population at Risk'!AB$5","v":9.27917517332872E-3},{"$f":"'Population at Risk'!AC200/'Population at Risk'!AC$5","v":3.4194187427621049E-3},{"$f":"'Population at Risk'!AD200/'Population at Risk'!AD$5","v":7.221681529020905E-3},{"$f":"'Population at Risk'!AE200/'Population at Risk'!AE$5","v":8.264776058289517E-3},{"$f":"'Population at Risk'!AF200/'Population at Risk'!AF$5","v":3.6269096717466928E-3},{"$f":"'Population at Risk'!AG200/'Population at Risk'!AG$5","v":8.264776058289517E-3},{"$f":"'Population at Risk'!AH200/'Population at Risk'!AH$5","v":5.0942059511397877E-3},{"$f":"'Population at Risk'!AI200/'Population at Risk'!AI$5","v":6.4641943246421521E-3},{"$f":"'Population at Risk'!AJ200/'Population at Risk'!AJ$5","v":5.4001040242886442E-3},{"$f":"'Population at Risk'!AK200/'Population at Risk'!AK$5","v":9.1946053234204621E-3},{"$f":"'Population at Risk'!AL200/'Population at Risk'!AL$5","v":2.6759158044237083E-3},{"$f":"'Population at Risk'!AM200/'Population at Risk'!AM$5","v":4.1526216162646682E-3},{"$f":"'Population at Risk'!AN200/'Population at Risk'!AN$5","v":1.0153934821757291E-2},{"$f":"'Population at Risk'!AO200/'Population at Risk'!AO$5","v":1.0146292902505934E-2},{"$f":"'Population at Risk'!AP200/'Population at Risk'!AP$5","v":9.805419292342259E-3},{"$f":"'Population at Risk'!AQ200/'Population at Risk'!AQ$5","v":4.2635657724043631E-3},{"$f":"'Population at Risk'!AR200/'Population at Risk'!AR$5","v":5.3415622557106985E-3},{"$f":"'Population at Risk'!AS200/'Population at Risk'!AS$5","v":6.714302438074549E-3},{"$f":"'Population at Risk'!AT200/'Population at Risk'!AT$5","v":1.9158294696832712E-2},{"$f":"'Population at Risk'!AU200/'Population at Risk'!AU$5","v":1.9175235045504391E-2},{"$f":"'Population at Risk'!AV200/'Population at Risk'!AV$5","v":2.7209877506330347E-3},{"$f":"'Population at Risk'!AW200/'Population at Risk'!AW$5","v":6.0542667196961161E-3},{"$f":"'Population at Risk'!AX200/'Population at Risk'!AX$5","v":6.8546285871831881E-3},{"$f":"'Population at Risk'!AY200/'Population at Risk'!AY$5","v":5.2067238695724365E-3},{"$f":"'Population at Risk'!AZ200/'Population at Risk'!AZ$5","v":6.2848185139454575E-3},{"$f":"'Population at Risk'!BA200/'Population at Risk'!BA$5","v":2.0235972026594411E-3},{"$f":"'Population at Risk'!BB200/'Population at Risk'!BB$5","v":5.9915543369887386E-3},{"$f":"'Population at Risk'!BC200/'Population at Risk'!BC$5","v":1.4986371241272767E-3},198]
[null,"Male 40-44",{"$f":"'Population at Risk'!C201/'Population at Risk'!C$5","v":5.3972901074361476E-3},{"$f":"'Population at Risk'!D201/'Population at Risk'!D$5","v":9.4704895189643892E-3},{"$f":"'Population at Risk'!E201/'Population at Risk'!E$5","v":1.3010525316840786E-2},{"$f":"'Population at Risk'!F201/'Population at Risk'!F$5","v":5.9114780329440385E-3},{"$f":"'Population at Risk'!G201/'Population at Risk'!G$5","v":6.0340934671087596E-3},{"$f":"'Population at Risk'!H201/'Population at Risk'!H$5","v":3.4106995185443668E-3},{"$f":"'Population at Risk'!I201/'Population at Risk'!I$5","v":8.728282880575141E-3},{"$f":"'Population at Risk'!J201/'Population at Risk'!J$5","v":6.385965500797338E-3},{"$f":"'Population at Risk'!K201/'Population at Risk'!K$5","v":5.376220520033068E-3},{"$f":"'Population at Risk'!L201/'Population at Risk'!L$5","v":3.7043692510025637E-3},{"$f":"'Population at Risk'!M201/'Population at Risk'!M$5","v":3.7030812559280626E-3},{"$f":"'Population at Risk'!N201/'Population at Risk'!N$5","v":3.3183789361753849E-3},{"$f":"'Population at Risk'!O201/'Population at Risk'!O$5","v":3.7932076508893613E-3},{"$f":"'Population at Risk'!P201/'Population at Risk'!P$5","v":4.4501214503187437E-3},{"$f":"'Population at Risk'!Q201/'Population at Risk'!Q$5","v":1.1054045892654513E-2},{"$f":"'Population at Risk'!R201/'Population at Risk'!R$5","v":4.6191204583716904E-3},{"$f":"'Population at Risk'!S201/'Population at Risk'!S$5","v":5.901814543341764E-3},{"$f":"'Population at Risk'!T201/'Population at Risk'!T$5","v":5.3960282591912906E-3},{"$f":"'Population at Risk'!U201/'Population at Risk'!U$5","v":1.6495159589949213E-3},{"$f":"'Population at Risk'!V201/'Population at Risk'!V$5","v":5.5116937197762653E-3},{"$f":"'Population at Risk'!W201/'Population at Risk'!W$5","v":4.3116870140941458E-3},{"$f":"'Population at Risk'!X201/'Population at Risk'!X$5","v":4.3112495970837293E-3},{"$f":"'Population at Risk'!Y201/'Population at Risk'!Y$5","v":6.1466503251078018E-3},{"$f":"'Population at Risk'!Z201/'Population at Risk'!Z$5","v":2.8673217936125992E-3},{"$f":"'Population at Risk'!AA201/'Population at Risk'!AA$5","v":4.1950089804686473E-3},{"$f":"'Population at Risk'!AB201/'Population at Risk'!AB$5","v":9.7787830345959989E-3},{"$f":"'Population at Risk'!AC201/'Population at Risk'!AC$5","v":3.4700061984333287E-3},{"$f":"'Population at Risk'!AD201/'Population at Risk'!AD$5","v":8.1645878720553334E-3},{"$f":"'Population at Risk'!AE201/'Population at Risk'!AE$5","v":9.1104740735563506E-3},{"$f":"'Population at Risk'!AF201/'Population at Risk'!AF$5","v":4.3887753128532469E-3},{"$f":"'Population at Risk'!AG201/'Population at Risk'!AG$5","v":9.1104740735563506E-3},{"$f":"'Population at Risk'!AH201/'Population at Risk'!AH$5","v":5.534755781616026E-3},{"$f":"'Population at Risk'!AI201/'Population at Risk'!AI$5","v":6.2716198944132665E-3},{"$f":"'Population at Risk'!AJ201/'Population at Risk'!AJ$5","v":5.1717698160734802E-3},{"$f":"'Population at Risk'!AK201/'Population at Risk'!AK$5","v":1.1193014839900562E-2},{"$f":"'Population at Risk'!AL201/'Population at Risk'!AL$5","v":3.3959185738343246E-3},{"$f":"'Population at Risk'!AM201/'Population at Risk'!AM$5","v":4.6611613950737658E-3},{"$f":"'Population at Risk'!AN201/'Population at Risk'!AN$5","v":1.2976812967225087E-2},{"$f":"'Population at Risk'!AO201/'Population at Risk'!AO$5","v":1.2967046531003435E-2},{"$f":"'Population at Risk'!AP201/'Population at Risk'!AP$5","v":1.0962238422337693E-2},{"$f":"'Population at Risk'!AQ201/'Population at Risk'!AQ$5","v":4.6935051780249712E-3},{"$f":"'Population at Risk'!AR201/'Population at Risk'!AR$5","v":5.7297392448440411E-3},{"$f":"'Population at Risk'!AS201/'Population at Risk'!AS$5","v":8.7293896466544545E-3},{"$f":"'Population at Risk'!AT201/'Population at Risk'!AT$5","v":2.3251586735583314E-2},{"$f":"'Population at Risk'!AU201/'Population at Risk'!AU$5","v":2.327214649795797E-2},{"$f":"'Population at Risk'!AV201/'Population at Risk'!AV$5","v":3.0054878103506978E-3},{"$f":"'Population at Risk'!AW201/'Population at Risk'!AW$5","v":6.4214507379569529E-3},{"$f":"'Population at Risk'!AX201/'Population at Risk'!AX$5","v":7.7151240446327188E-3},{"$f":"'Population at Risk'!AY201/'Population at Risk'!AY$5","v":5.6996681412479332E-3},{"$f":"'Population at Risk'!AZ201/'Population at Risk'!AZ$5","v":6.9937834970723303E-3},{"$f":"'Population at Risk'!BA201/'Population at Risk'!BA$5","v":2.7677002099153795E-3},{"$f":"'Population at Risk'!BB201/'Population at Risk'!BB$5","v":6.5849836979068235E-3},{"$f":"'Population at Risk'!BC201/'Population at Risk'!BC$5","v":1.6485008365400046E-3},199]
[null,"Male 45-49",{"$f":"'Population at Risk'!C202/'Population at Risk'!C$5","v":5.9522219956596508E-3},{"$f":"'Population at Risk'!D202/'Population at Risk'!D$5","v":1.1582738549317437E-2},{"$f":"'Population at Risk'!E202/'Population at Risk'!E$5","v":1.647426073553843E-2},{"$f":"'Population at Risk'!F202/'Population at Risk'!F$5","v":8.9197393726254265E-3},{"$f":"'Population at Risk'!G202/'Population at Risk'!G$5","v":8.6978945485292579E-3},{"$f":"'Population at Risk'!H202/'Population at Risk'!H$5","v":5.1008772408426576E-3},{"$f":"'Population at Risk'!I202/'Population at Risk'!I$5","v":1.4119281130342139E-2},{"$f":"'Population at Risk'!J202/'Population at Risk'!J$5","v":9.3894621180899748E-3},{"$f":"'Population at Risk'!K202/'Population at Risk'!K$5","v":7.943412325446781E-3},{"$f":"'Population at Risk'!L202/'Population at Risk'!L$5","v":5.7700265208257074E-3},{"$f":"'Population at Risk'!M202/'Population at Risk'!M$5","v":5.7680203045888797E-3},{"$f":"'Population at Risk'!N202/'Population at Risk'!N$5","v":4.6739634110184542E-3},{"$f":"'Population at Risk'!O202/'Population at Risk'!O$5","v":5.0404875259384661E-3},{"$f":"'Population at Risk'!P202/'Population at Risk'!P$5","v":6.911604577570148E-3},{"$f":"'Population at Risk'!Q202/'Population at Risk'!Q$5","v":1.4369384900818105E-2},{"$f":"'Population at Risk'!R202/'Population at Risk'!R$5","v":5.6359952092047095E-3},{"$f":"'Population at Risk'!S202/'Population at Risk'!S$5","v":7.7970704866864079E-3},{"$f":"'Population at Risk'!T202/'Population at Risk'!T$5","v":5.9213381998005554E-3},{"$f":"'Population at Risk'!U202/'Population at Risk'!U$5","v":2.5404309956713221E-3},{"$f":"'Population at Risk'!V202/'Population at Risk'!V$5","v":7.8139829789316499E-3},{"$f":"'Population at Risk'!W202/'Population at Risk'!W$5","v":6.8143929507876828E-3},{"$f":"'Population at Risk'!X202/'Population at Risk'!X$5","v":6.8137016363711694E-3},{"$f":"'Population at Risk'!Y202/'Population at Risk'!Y$5","v":8.8833724101078232E-3},{"$f":"'Population at Risk'!Z202/'Population at Risk'!Z$5","v":3.4855040632041211E-3},{"$f":"'Population at Risk'!AA202/'Population at Risk'!AA$5","v":5.698028433163544E-3},{"$f":"'Population at Risk'!AB202/'Population at Risk'!AB$5","v":1.2502441822399292E-2},{"$f":"'Population at Risk'!AC202/'Population at Risk'!AC$5","v":4.7301211747824094E-3},{"$f":"'Population at Risk'!AD202/'Population at Risk'!AD$5","v":1.1487362893887638E-2},{"$f":"'Population at Risk'!AE202/'Population at Risk'!AE$5","v":1.2735217171077035E-2},{"$f":"'Population at Risk'!AF202/'Population at Risk'!AF$5","v":7.1452519116207043E-3},{"$f":"'Population at Risk'!AG202/'Population at Risk'!AG$5","v":1.2735217171077035E-2},{"$f":"'Population at Risk'!AH202/'Population at Risk'!AH$5","v":7.4857387427161165E-3},{"$f":"'Population at Risk'!AI202/'Population at Risk'!AI$5","v":7.3770514448877845E-3},{"$f":"'Population at Risk'!AJ202/'Population at Risk'!AJ$5","v":6.3262007099613281E-3},{"$f":"'Population at Risk'!AK202/'Population at Risk'!AK$5","v":1.669485778190672E-2},{"$f":"'Population at Risk'!AL202/'Population at Risk'!AL$5","v":5.2157680933682454E-3},{"$f":"'Population at Risk'!AM202/'Population at Risk'!AM$5","v":6.3699446342177701E-3},{"$f":"'Population at Risk'!AN202/'Population at Risk'!AN$5","v":2.0124469307461361E-2},{"$f":"'Population at Risk'!AO202/'Population at Risk'!AO$5","v":2.0109323497278054E-2},{"$f":"'Population at Risk'!AP202/'Population at Risk'!AP$5","v":1.6115538206845838E-2},{"$f":"'Population at Risk'!AQ202/'Population at Risk'!AQ$5","v":6.8344709436889365E-3},{"$f":"'Population at Risk'!AR202/'Population at Risk'!AR$5","v":7.8198641568326833E-3},{"$f":"'Population at Risk'!AS202/'Population at Risk'!AS$5","v":1.4121071487235149E-2},{"$f":"'Population at Risk'!AT202/'Population at Risk'!AT$5","v":2.6709413181902047E-2},{"$f":"'Population at Risk'!AU202/'Population at Risk'!AU$5","v":2.6733030459915423E-2},{"$f":"'Population at Risk'!AV202/'Population at Risk'!AV$5","v":4.9948426773960761E-3},{"$f":"'Population at Risk'!AW202/'Population at Risk'!AW$5","v":8.6161831188794526E-3},{"$f":"'Population at Risk'!AX202/'Population at Risk'!AX$5","v":1.1319886766448364E-2},{"$f":"'Population at Risk'!AY202/'Population at Risk'!AY$5","v":8.6063881419161502E-3},{"$f":"'Population at Risk'!AZ202/'Population at Risk'!AZ$5","v":1.0268582718985231E-2},{"$f":"'Population at Risk'!BA202/'Population at Risk'!BA$5","v":4.601268237120649E-3},{"$f":"'Population at Risk'!BB202/'Population at Risk'!BB$5","v":8.0409984611501117E-3},{"$f":"'Population at Risk'!BC202/'Population at Risk'!BC$5","v":2.5388675985215038E-3},200]
[null,"Male 50-54",{"$f":"'Population at Risk'!C203/'Population at Risk'!C$5","v":6.1456154901034657E-3},{"$f":"'Population at Risk'!D203/'Population at Risk'!D$5","v":1.2399933267359192E-2},{"$f":"'Population at Risk'!E203/'Population at Risk'!E$5","v":1.7832770799016889E-2},{"$f":"'Population at Risk'!F203/'Population at Risk'!F$5","v":1.0576909225610659E-2},{"$f":"'Population at Risk'!G203/'Population at Risk'!G$5","v":9.8092291844560729E-3},{"$f":"'Population at Risk'!H203/'Population at Risk'!H$5","v":5.4926614867507537E-3},{"$f":"'Population at Risk'!I203/'Population at Risk'!I$5","v":1.6199228317426383E-2},{"$f":"'Population at Risk'!J203/'Population at Risk'!J$5","v":9.695567899402617E-3},{"$f":"'Population at Risk'!K203/'Population at Risk'!K$5","v":7.4411356678658371E-3},{"$f":"'Population at Risk'!L203/'Population at Risk'!L$5","v":6.8396818610211504E-3},{"$f":"'Population at Risk'!M203/'Population at Risk'!M$5","v":6.8373037296980471E-3},{"$f":"'Population at Risk'!N203/'Population at Risk'!N$5","v":5.1670260251865862E-3},{"$f":"'Population at Risk'!O203/'Population at Risk'!O$5","v":5.3133801626930963E-3},{"$f":"'Population at Risk'!P203/'Population at Risk'!P$5","v":7.4082468226650093E-3},{"$f":"'Population at Risk'!Q203/'Population at Risk'!Q$5","v":1.5570721463142995E-2},{"$f":"'Population at Risk'!R203/'Population at Risk'!R$5","v":7.0481461341061133E-3},{"$f":"'Population at Risk'!S203/'Population at Risk'!S$5","v":8.0870879449729365E-3},{"$f":"'Population at Risk'!T203/'Population at Risk'!T$5","v":5.8656516336582304E-3},{"$f":"'Population at Risk'!U203/'Population at Risk'!U$5","v":1.9758907744110285E-3},{"$f":"'Population at Risk'!V203/'Population at Risk'!V$5","v":7.4547918258678564E-3},{"$f":"'Population at Risk'!W203/'Population at Risk'!W$5","v":6.9863908497859294E-3},{"$f":"'Population at Risk'!X203/'Population at Risk'!X$5","v":6.9856820863276525E-3},{"$f":"'Population at Risk'!Y203/'Population at Risk'!Y$5","v":8.8465119436758402E-3},{"$f":"'Population at Risk'!Z203/'Population at Risk'!Z$5","v":3.3966914876106319E-3},{"$f":"'Population at Risk'!AA203/'Population at Risk'!AA$5","v":5.954916060574281E-3},{"$f":"'Population at Risk'!AB203/'Population at Risk'!AB$5","v":1.320654603864607E-2},{"$f":"'Population at Risk'!AC203/'Population at Risk'!AC$5","v":5.0259693810096821E-3},{"$f":"'Population at Risk'!AD203/'Population at Risk'!AD$5","v":1.2503688329936306E-2},{"$f":"'Population at Risk'!AE203/'Population at Risk'!AE$5","v":1.3725633563287926E-2},{"$f":"'Population at Risk'!AF203/'Population at Risk'!AF$5","v":8.1425573904511557E-3},{"$f":"'Population at Risk'!AG203/'Population at Risk'!AG$5","v":1.3725633563287926E-2},{"$f":"'Population at Risk'!AH203/'Population at Risk'!AH$5","v":7.6661575117123433E-3},{"$f":"'Population at Risk'!AI203/'Population at Risk'!AI$5","v":7.4711194500219503E-3},{"$f":"'Population at Risk'!AJ203/'Population at Risk'!AJ$5","v":6.5142406461385213E-3},{"$f":"'Population at Risk'!AK203/'Population at Risk'!AK$5","v":1.688701254310673E-2},{"$f":"'Population at Risk'!AL203/'Population at Risk'!AL$5","v":5.9160950112757456E-3},{"$f":"'Population at Risk'!AM203/'Population at Risk'!AM$5","v":6.4947200439287155E-3},{"$f":"'Population at Risk'!AN203/'Population at Risk'!AN$5","v":2.1908905009600792E-2},{"$f":"'Population at Risk'!AO203/'Population at Risk'!AO$5","v":2.1892416221174632E-2},{"$f":"'Population at Risk'!AP203/'Population at Risk'!AP$5","v":1.8232592823830947E-2},{"$f":"'Population at Risk'!AQ203/'Population at Risk'!AQ$5","v":7.5630797403289027E-3},{"$f":"'Population at Risk'!AR203/'Population at Risk'!AR$5","v":8.293224402435264E-3},{"$f":"'Population at Risk'!AS203/'Population at Risk'!AS$5","v":1.6201282416343447E-2},{"$f":"'Population at Risk'!AT203/'Population at Risk'!AT$5","v":2.9390283649973998E-2},{"$f":"'Population at Risk'!AU203/'Population at Risk'!AU$5","v":2.9416271435445968E-2},{"$f":"'Population at Risk'!AV203/'Population at Risk'!AV$5","v":5.1149935321787993E-3},{"$f":"'Population at Risk'!AW203/'Population at Risk'!AW$5","v":8.8539402123269609E-3},{"$f":"'Population at Risk'!AX203/'Population at Risk'!AX$5","v":1.2159675113959267E-2},{"$f":"'Population at Risk'!AY203/'Population at Risk'!AY$5","v":9.42930436886898E-3},{"$f":"'Population at Risk'!AZ203/'Population at Risk'!AZ$5","v":1.1711167775292226E-2},{"$f":"'Population at Risk'!BA203/'Population at Risk'!BA$5","v":5.0283000920738419E-3},{"$f":"'Population at Risk'!BB203/'Population at Risk'!BB$5","v":7.9062673368962642E-3},{"$f":"'Population at Risk'!BC203/'Population at Risk'!BC$5","v":1.9746747988500591E-3},201]
[null,"Male 55-59",{"$f":"'Population at Risk'!C204/'Population at Risk'!C$5","v":7.0573516605239193E-3},{"$f":"'Population at Risk'!D204/'Population at Risk'!D$5","v":1.4202183966028263E-2},{"$f":"'Population at Risk'!E204/'Population at Risk'!E$5","v":2.0408618700841361E-2},{"$f":"'Population at Risk'!F204/'Population at Risk'!F$5","v":1.1747483524940134E-2},{"$f":"'Population at Risk'!G204/'Population at Risk'!G$5","v":1.1524958342568215E-2},{"$f":"'Population at Risk'!H204/'Population at Risk'!H$5","v":6.6599720846233735E-3},{"$f":"'Population at Risk'!I204/'Population at Risk'!I$5","v":1.8901344391412937E-2},{"$f":"'Population at Risk'!J204/'Population at Risk'!J$5","v":1.0830779489202698E-2},{"$f":"'Population at Risk'!K204/'Population at Risk'!K$5","v":7.8873131385757619E-3},{"$f":"'Population at Risk'!L204/'Population at Risk'!L$5","v":7.9834490355015653E-3},{"$f":"'Population at Risk'!M204/'Population at Risk'!M$5","v":7.9806732206897796E-3},{"$f":"'Population at Risk'!N204/'Population at Risk'!N$5","v":7.0780657977372128E-3},{"$f":"'Population at Risk'!O204/'Population at Risk'!O$5","v":6.3895252527627127E-3},{"$f":"'Population at Risk'!P204/'Population at Risk'!P$5","v":1.0017720285580423E-2},{"$f":"'Population at Risk'!Q204/'Population at Risk'!Q$5","v":1.8437199434746181E-2},{"$f":"'Population at Risk'!R204/'Population at Risk'!R$5","v":6.7022006787312719E-3},{"$f":"'Population at Risk'!S204/'Population at Risk'!S$5","v":9.4031643603153144E-3},{"$f":"'Population at Risk'!T204/'Population at Risk'!T$5","v":6.8305229040435417E-3},{"$f":"'Population at Risk'!U204/'Population at Risk'!U$5","v":2.3221127069808184E-3},{"$f":"'Population at Risk'!V204/'Population at Risk'!V$5","v":8.7331302963248834E-3},{"$f":"'Population at Risk'!W204/'Population at Risk'!W$5","v":8.2547473802707695E-3},{"$f":"'Population at Risk'!X204/'Population at Risk'!X$5","v":8.2539099431124079E-3},{"$f":"'Population at Risk'!Y204/'Population at Risk'!Y$5","v":1.0097935250765071E-2},{"$f":"'Population at Risk'!Z204/'Population at Risk'!Z$5","v":3.7310046148172635E-3},{"$f":"'Population at Risk'!AA204/'Population at Risk'!AA$5","v":6.6280676176252301E-3},{"$f":"'Population at Risk'!AB204/'Population at Risk'!AB$5","v":1.5022675718160855E-2},{"$f":"'Population at Risk'!AC204/'Population at Risk'!AC$5","v":5.8446462731143621E-3},{"$f":"'Population at Risk'!AD204/'Population at Risk'!AD$5","v":1.5001270016897984E-2},{"$f":"'Population at Risk'!AE204/'Population at Risk'!AE$5","v":1.6564459771955187E-2},{"$f":"'Population at Risk'!AF204/'Population at Risk'!AF$5","v":9.0432094506449536E-3},{"$f":"'Population at Risk'!AG204/'Population at Risk'!AG$5","v":1.6564459771955187E-2},{"$f":"'Population at Risk'!AH204/'Population at Risk'!AH$5","v":8.0563387273327319E-3},{"$f":"'Population at Risk'!AI204/'Population at Risk'!AI$5","v":8.6138676787655827E-3},{"$f":"'Population at Risk'!AJ204/'Population at Risk'!AJ$5","v":7.8876037514326747E-3},{"$f":"'Population at Risk'!AK204/'Population at Risk'!AK$5","v":1.876899888074212E-2},{"$f":"'Population at Risk'!AL204/'Population at Risk'!AL$5","v":7.0063956385299541E-3},{"$f":"'Population at Risk'!AM204/'Population at Risk'!AM$5","v":6.4341819745537335E-3},{"$f":"'Population at Risk'!AN204/'Population at Risk'!AN$5","v":2.4466286384802357E-2},{"$f":"'Population at Risk'!AO204/'Population at Risk'!AO$5","v":2.4447872894050714E-2},{"$f":"'Population at Risk'!AP204/'Population at Risk'!AP$5","v":2.1161770114359772E-2},{"$f":"'Population at Risk'!AQ204/'Population at Risk'!AQ$5","v":9.3357706413482212E-3},{"$f":"'Population at Risk'!AR204/'Population at Risk'!AR$5","v":9.5584713726514139E-3},{"$f":"'Population at Risk'!AS204/'Population at Risk'!AS$5","v":1.890374112478101E-2},{"$f":"'Population at Risk'!AT204/'Population at Risk'!AT$5","v":3.3301437845581289E-2},{"$f":"'Population at Risk'!AU204/'Population at Risk'!AU$5","v":3.3330883992918489E-2},{"$f":"'Population at Risk'!AV204/'Population at Risk'!AV$5","v":6.473663689163793E-3},{"$f":"'Population at Risk'!AW204/'Population at Risk'!AW$5","v":9.7139260371296166E-3},{"$f":"'Population at Risk'!AX204/'Population at Risk'!AX$5","v":1.3846262028491551E-2},{"$f":"'Population at Risk'!AY204/'Population at Risk'!AY$5","v":1.1152411072879004E-2},{"$f":"'Population at Risk'!AZ204/'Population at Risk'!AZ$5","v":1.3859267085699359E-2},{"$f":"'Population at Risk'!BA204/'Population at Risk'!BA$5","v":6.5666156258153818E-3},{"$f":"'Population at Risk'!BB204/'Population at Risk'!BB$5","v":8.5104522222221139E-3},{"$f":"'Population at Risk'!BC204/'Population at Risk'!BC$5","v":2.3206836642735624E-3},202]
[null,"Male 60-64",{"$f":"'Population at Risk'!C205/'Population at Risk'!C$5","v":6.7921910490013442E-3},{"$f":"'Population at Risk'!D205/'Population at Risk'!D$5","v":1.2824218958667173E-2},{"$f":"'Population at Risk'!E205/'Population at Risk'!E$5","v":1.806510160824619E-2},{"$f":"'Population at Risk'!F205/'Population at Risk'!F$5","v":1.1781866403549715E-2},{"$f":"'Population at Risk'!G205/'Population at Risk'!G$5","v":1.1309672694824101E-2},{"$f":"'Population at Risk'!H205/'Population at Risk'!H$5","v":6.0701351408757069E-3},{"$f":"'Population at Risk'!I205/'Population at Risk'!I$5","v":1.8095013513987544E-2},{"$f":"'Population at Risk'!J205/'Population at Risk'!J$5","v":8.5736652566161323E-3},{"$f":"'Population at Risk'!K205/'Population at Risk'!K$5","v":6.0508641092954351E-3},{"$f":"'Population at Risk'!L205/'Population at Risk'!L$5","v":8.0917516386963539E-3},{"$f":"'Population at Risk'!M205/'Population at Risk'!M$5","v":8.0889381674820824E-3},{"$f":"'Population at Risk'!N205/'Population at Risk'!N$5","v":5.3256461255921294E-3},{"$f":"'Population at Risk'!O205/'Population at Risk'!O$5","v":5.9324050041548873E-3},{"$f":"'Population at Risk'!P205/'Population at Risk'!P$5","v":9.0094007274239621E-3},{"$f":"'Population at Risk'!Q205/'Population at Risk'!Q$5","v":1.412682134431713E-2},{"$f":"'Population at Risk'!R205/'Population at Risk'!R$5","v":6.9415649886859603E-3},{"$f":"'Population at Risk'!S205/'Population at Risk'!S$5","v":7.9761929266885159E-3},{"$f":"'Population at Risk'!T205/'Population at Risk'!T$5","v":5.9377976405743937E-3},{"$f":"'Population at Risk'!U205/'Population at Risk'!U$5","v":2.0095206118103236E-3},{"$f":"'Population at Risk'!V205/'Population at Risk'!V$5","v":6.7711667776984711E-3},{"$f":"'Population at Risk'!W205/'Population at Risk'!W$5","v":7.0592084126802779E-3},{"$f":"'Population at Risk'!X205/'Population at Risk'!X$5","v":7.0584922619416702E-3},{"$f":"'Population at Risk'!Y205/'Population at Risk'!Y$5","v":7.9180365868031875E-3},{"$f":"'Population at Risk'!Z205/'Population at Risk'!Z$5","v":3.1610995758731887E-3},{"$f":"'Population at Risk'!AA205/'Population at Risk'!AA$5","v":5.6297306326640283E-3},{"$f":"'Population at Risk'!AB205/'Population at Risk'!AB$5","v":1.3780257042019973E-2},{"$f":"'Population at Risk'!AC205/'Population at Risk'!AC$5","v":5.0193656264063951E-3},{"$f":"'Population at Risk'!AD205/'Population at Risk'!AD$5","v":1.3938155939422388E-2},{"$f":"'Population at Risk'!AE205/'Population at Risk'!AE$5","v":1.5150699729220934E-2},{"$f":"'Population at Risk'!AF205/'Population at Risk'!AF$5","v":7.573288479868742E-3},{"$f":"'Population at Risk'!AG205/'Population at Risk'!AG$5","v":1.5150699729220934E-2},{"$f":"'Population at Risk'!AH205/'Population at Risk'!AH$5","v":6.7381797240201099E-3},{"$f":"'Population at Risk'!AI205/'Population at Risk'!AI$5","v":6.9873440952727623E-3},{"$f":"'Population at Risk'!AJ205/'Population at Risk'!AJ$5","v":6.6636652382793286E-3},{"$f":"'Population at Risk'!AK205/'Population at Risk'!AK$5","v":1.8139550747546501E-2},{"$f":"'Population at Risk'!AL205/'Population at Risk'!AL$5","v":6.4745848852439452E-3},{"$f":"'Population at Risk'!AM205/'Population at Risk'!AM$5","v":5.3570942431306412E-3},{"$f":"'Population at Risk'!AN205/'Population at Risk'!AN$5","v":2.2646998422855516E-2},{"$f":"'Population at Risk'!AO205/'Population at Risk'!AO$5","v":2.262995414039053E-2},{"$f":"'Population at Risk'!AP205/'Population at Risk'!AP$5","v":1.952132281867297E-2},{"$f":"'Population at Risk'!AQ205/'Population at Risk'!AQ$5","v":7.6362793327599326E-3},{"$f":"'Population at Risk'!AR205/'Population at Risk'!AR$5","v":8.4002676980243426E-3},{"$f":"'Population at Risk'!AS205/'Population at Risk'!AS$5","v":1.8097308002770277E-2},{"$f":"'Population at Risk'!AT205/'Population at Risk'!AT$5","v":3.0473957273786649E-2},{"$f":"'Population at Risk'!AU205/'Population at Risk'!AU$5","v":3.0500903276538614E-2},{"$f":"'Population at Risk'!AV205/'Population at Risk'!AV$5","v":5.6698866539320473E-3},{"$f":"'Population at Risk'!AW205/'Population at Risk'!AW$5","v":8.1500348034032506E-3},{"$f":"'Population at Risk'!AX205/'Population at Risk'!AX$5","v":1.1079921560128358E-2},{"$f":"'Population at Risk'!AY205/'Population at Risk'!AY$5","v":9.9155196558991243E-3},{"$f":"'Population at Risk'!AZ205/'Population at Risk'!AZ$5","v":1.2591185642169501E-2},{"$f":"'Population at Risk'!BA205/'Population at Risk'!BA$5","v":5.3505756951088288E-3},{"$f":"'Population at Risk'!BB205/'Population at Risk'!BB$5","v":6.1696903177493653E-3},{"$f":"'Population at Risk'!BC205/'Population at Risk'!BC$5","v":2.0082839402367366E-3},203]
[null,"Male 65-69",{"$f":"'Population at Risk'!C206/'Population at Risk'!C$5","v":7.1817479967937695E-3},{"$f":"'Population at Risk'!D206/'Population at Risk'!D$5","v":1.4622732486369585E-2},{"$f":"'Population at Risk'!E206/'Population at Risk'!E$5","v":2.1086201764929688E-2},{"$f":"'Population at Risk'!F206/'Population at Risk'!F$5","v":1.3895776718064686E-2},{"$f":"'Population at Risk'!G206/'Population at Risk'!G$5","v":1.3545454014359267E-2},{"$f":"'Population at Risk'!H206/'Population at Risk'!H$5","v":7.0029033317310415E-3},{"$f":"'Population at Risk'!I206/'Population at Risk'!I$5","v":2.2028292020644318E-2},{"$f":"'Population at Risk'!J206/'Population at Risk'!J$5","v":9.4183674873851222E-3},{"$f":"'Population at Risk'!K206/'Population at Risk'!K$5","v":7.1635464271309979E-3},{"$f":"'Population at Risk'!L206/'Population at Risk'!L$5","v":9.3527033758928207E-3},{"$f":"'Population at Risk'!M206/'Population at Risk'!M$5","v":9.3494514765638959E-3},{"$f":"'Population at Risk'!N206/'Population at Risk'!N$5","v":5.7416677062964907E-3},{"$f":"'Population at Risk'!O206/'Population at Risk'!O$5","v":6.274774902289143E-3},{"$f":"'Population at Risk'!P206/'Population at Risk'!P$5","v":1.0329091693149663E-2},{"$f":"'Population at Risk'!Q206/'Population at Risk'!Q$5","v":1.5863765940117878E-2},{"$f":"'Population at Risk'!R206/'Population at Risk'!R$5","v":7.1088244941604718E-3},{"$f":"'Population at Risk'!S206/'Population at Risk'!S$5","v":9.1057640840070952E-3},{"$f":"'Population at Risk'!T206/'Population at Risk'!T$5","v":5.7452874412151841E-3},{"$f":"'Population at Risk'!U206/'Population at Risk'!U$5","v":2.6661294043113094E-3},{"$f":"'Population at Risk'!V206/'Population at Risk'!V$5","v":8.158897071361056E-3},{"$f":"'Population at Risk'!W206/'Population at Risk'!W$5","v":8.7358040040314919E-3},{"$f":"'Population at Risk'!X206/'Population at Risk'!X$5","v":8.7349177640844485E-3},{"$f":"'Population at Risk'!Y206/'Population at Risk'!Y$5","v":9.0813403413284588E-3},{"$f":"'Population at Risk'!Z206/'Population at Risk'!Z$5","v":3.1380930287416516E-3},{"$f":"'Population at Risk'!AA206/'Population at Risk'!AA$5","v":5.967693101093261E-3},{"$f":"'Population at Risk'!AB206/'Population at Risk'!AB$5","v":1.5543004907313874E-2},{"$f":"'Population at Risk'!AC206/'Population at Risk'!AC$5","v":5.3029901480924806E-3},{"$f":"'Population at Risk'!AD206/'Population at Risk'!AD$5","v":1.6110220932602313E-2},{"$f":"'Population at Risk'!AE206/'Population at Risk'!AE$5","v":1.732295931205163E-2},{"$f":"'Population at Risk'!AF206/'Population at Risk'!AF$5","v":7.3928030144553986E-3},{"$f":"'Population at Risk'!AG206/'Population at Risk'!AG$5","v":1.732295931205163E-2},{"$f":"'Population at Risk'!AH206/'Population at Risk'!AH$5","v":7.1763359304872227E-3},{"$f":"'Population at Risk'!AI206/'Population at Risk'!AI$5","v":7.4545581815124128E-3},{"$f":"'Population at Risk'!AJ206/'Population at Risk'!AJ$5","v":8.3925413479084901E-3},{"$f":"'Population at Risk'!AK206/'Population at Risk'!AK$5","v":1.9742842036309081E-2},{"$f":"'Population at Risk'!AL206/'Population at Risk'!AL$5","v":8.112224347743717E-3},{"$f":"'Population at Risk'!AM206/'Population at Risk'!AM$5","v":5.3882880955583787E-3},{"$f":"'Population at Risk'!AN206/'Population at Risk'!AN$5","v":2.5353857267897753E-2},{"$f":"'Population at Risk'!AO206/'Population at Risk'!AO$5","v":2.5334775785363851E-2},{"$f":"'Population at Risk'!AP206/'Population at Risk'!AP$5","v":2.2622645813070157E-2},{"$f":"'Population at Risk'!AQ206/'Population at Risk'!AQ$5","v":8.2600753453791198E-3},{"$f":"'Population at Risk'!AR206/'Population at Risk'!AR$5","v":9.443415468738333E-3},{"$f":"'Population at Risk'!AS206/'Population at Risk'!AS$5","v":2.2031085258068822E-2},{"$f":"'Population at Risk'!AT206/'Population at Risk'!AT$5","v":3.419506133493861E-2},{"$f":"'Population at Risk'!AU206/'Population at Risk'!AU$5","v":3.4225297651428663E-2},{"$f":"'Population at Risk'!AV206/'Population at Risk'!AV$5","v":6.3228046360046817E-3},{"$f":"'Population at Risk'!AW206/'Population at Risk'!AW$5","v":9.0119565904544872E-3},{"$f":"'Population at Risk'!AX206/'Population at Risk'!AX$5","v":1.1852124201589586E-2},{"$f":"'Population at Risk'!AY206/'Population at Risk'!AY$5","v":1.1714159632065986E-2},{"$f":"'Population at Risk'!AZ206/'Population at Risk'!AZ$5","v":1.4494660230954574E-2},{"$f":"'Population at Risk'!BA206/'Population at Risk'!BA$5","v":6.5621117742201722E-3},{"$f":"'Population at Risk'!BB206/'Population at Risk'!BB$5","v":7.1371133761345944E-3},{"$f":"'Population at Risk'!BC206/'Population at Risk'!BC$5","v":2.6644886515733495E-3},204]
[null,"Male 70-74",{"$f":"'Population at Risk'!C207/'Population at Risk'!C$5","v":5.1755423063850753E-3},{"$f":"'Population at Risk'!D207/'Population at Risk'!D$5","v":9.8257231908905809E-3},{"$f":"'Population at Risk'!E207/'Population at Risk'!E$5","v":1.3865918505889963E-2},{"$f":"'Population at Risk'!F207/'Population at Risk'!F$5","v":1.1395589619170473E-2},{"$f":"'Population at Risk'!G207/'Population at Risk'!G$5","v":1.1123091800112537E-2},{"$f":"'Population at Risk'!H207/'Population at Risk'!H$5","v":5.7861395753675722E-3},{"$f":"'Population at Risk'!I207/'Population at Risk'!I$5","v":1.6909232811891373E-2},{"$f":"'Population at Risk'!J207/'Population at Risk'!J$5","v":7.7648347970947166E-3},{"$f":"'Population at Risk'!K207/'Population at Risk'!K$5","v":5.5956758883627042E-3},{"$f":"'Population at Risk'!L207/'Population at Risk'!L$5","v":7.3364985645654988E-3},{"$f":"'Population at Risk'!M207/'Population at Risk'!M$5","v":7.333947691967501E-3},{"$f":"'Population at Risk'!N207/'Population at Risk'!N$5","v":4.0240748027035233E-3},{"$f":"'Population at Risk'!O207/'Population at Risk'!O$5","v":5.1201230150649327E-3},{"$f":"'Population at Risk'!P207/'Population at Risk'!P$5","v":7.2017975560679593E-3},{"$f":"'Population at Risk'!Q207/'Population at Risk'!Q$5","v":1.2609660106247544E-2},{"$f":"'Population at Risk'!R207/'Population at Risk'!R$5","v":5.0751143940269347E-3},{"$f":"'Population at Risk'!S207/'Population at Risk'!S$5","v":6.8068309260323461E-3},{"$f":"'Population at Risk'!T207/'Population at Risk'!T$5","v":4.0426054237189006E-3},{"$f":"'Population at Risk'!U207/'Population at Risk'!U$5","v":2.1534122111745192E-3},{"$f":"'Population at Risk'!V207/'Population at Risk'!V$5","v":5.8879582681090449E-3},{"$f":"'Population at Risk'!W207/'Population at Risk'!W$5","v":6.5538366097456962E-3},{"$f":"'Population at Risk'!X207/'Population at Risk'!X$5","v":6.5531717285501872E-3},{"$f":"'Population at Risk'!Y207/'Population at Risk'!Y$5","v":7.041082109147963E-3},{"$f":"'Population at Risk'!Z207/'Population at Risk'!Z$5","v":2.0286662003986436E-3},{"$f":"'Population at Risk'!AA207/'Population at Risk'!AA$5","v":4.098771815083938E-3},{"$f":"'Population at Risk'!AB207/'Population at Risk'!AB$5","v":1.0815748692420092E-2},{"$f":"'Population at Risk'!AC207/'Population at Risk'!AC$5","v":3.7124691133656176E-3},{"$f":"'Population at Risk'!AD207/'Population at Risk'!AD$5","v":1.2485654164075821E-2},{"$f":"'Population at Risk'!AE207/'Population at Risk'!AE$5","v":1.317622663909845E-2},{"$f":"'Population at Risk'!AF207/'Population at Risk'!AF$5","v":5.6317382765206144E-3},{"$f":"'Population at Risk'!AG207/'Population at Risk'!AG$5","v":1.317622663909845E-2},{"$f":"'Population at Risk'!AH207/'Population at Risk'!AH$5","v":4.7953463607241092E-3},{"$f":"'Population at Risk'!AI207/'Population at Risk'!AI$5","v":5.4985067578510981E-3},{"$f":"'Population at Risk'!AJ207/'Population at Risk'!AJ$5","v":6.8896909204923182E-3},{"$f":"'Population at Risk'!AK207/'Population at Risk'!AK$5","v":1.5324518818532756E-2},{"$f":"'Population at Risk'!AL207/'Population at Risk'!AL$5","v":6.5711924824017201E-3},{"$f":"'Population at Risk'!AM207/'Population at Risk'!AM$5","v":3.6867234338031009E-3},{"$f":"'Population at Risk'!AN207/'Population at Risk'!AN$5","v":1.9951756997749082E-2},{"$f":"'Population at Risk'!AO207/'Population at Risk'!AO$5","v":1.9936741172005078E-2},{"$f":"'Population at Risk'!AP207/'Population at Risk'!AP$5","v":1.6532738383279764E-2},{"$f":"'Population at Risk'!AQ207/'Population at Risk'!AQ$5","v":6.3000574668145822E-3},{"$f":"'Population at Risk'!AR207/'Population at Risk'!AR$5","v":6.9469590148718303E-3},{"$f":"'Population at Risk'!AS207/'Population at Risk'!AS$5","v":1.6911376940989788E-2},{"$f":"'Population at Risk'!AT207/'Population at Risk'!AT$5","v":2.2147434240139562E-2},{"$f":"'Population at Risk'!AU207/'Population at Risk'!AU$5","v":2.2167017677191141E-2},{"$f":"'Population at Risk'!AV207/'Population at Risk'!AV$5","v":5.4623045967851095E-3},{"$f":"'Population at Risk'!AW207/'Population at Risk'!AW$5","v":5.9317360063520629E-3},{"$f":"'Population at Risk'!AX207/'Population at Risk'!AX$5","v":9.9631396673446997E-3},{"$f":"'Population at Risk'!AY207/'Population at Risk'!AY$5","v":8.7939103449381304E-3},{"$f":"'Population at Risk'!AZ207/'Population at Risk'!AZ$5","v":1.0885287830556473E-2},{"$f":"'Population at Risk'!BA207/'Population at Risk'!BA$5","v":4.3902544494191691E-3},{"$f":"'Population at Risk'!BB207/'Population at Risk'!BB$5","v":4.9835205618894924E-3},{"$f":"'Population at Risk'!BC207/'Population at Risk'!BC$5","v":2.1520869878092438E-3},205]
[null,"Male 75-79",{"$f":"'Population at Risk'!C208/'Population at Risk'!C$5","v":5.3473301213714944E-3},{"$f":"'Population at Risk'!D208/'Population at Risk'!D$5","v":1.0777977710512655E-2},{"$f":"'Population at Risk'!E208/'Population at Risk'!E$5","v":1.5495345484210648E-2},{"$f":"'Population at Risk'!F208/'Population at Risk'!F$5","v":1.3701959157902529E-2},{"$f":"'Population at Risk'!G208/'Population at Risk'!G$5","v":1.141396663084236E-2},{"$f":"'Population at Risk'!H208/'Population at Risk'!H$5","v":5.8260621979745048E-3},{"$f":"'Population at Risk'!I208/'Population at Risk'!I$5","v":1.8964322522035379E-2},{"$f":"'Population at Risk'!J208/'Population at Risk'!J$5","v":7.7919101861754934E-3},{"$f":"'Population at Risk'!K208/'Population at Risk'!K$5","v":5.2906474598526099E-3},{"$f":"'Population at Risk'!L208/'Population at Risk'!L$5","v":8.2707087973086929E-3},{"$f":"'Population at Risk'!M208/'Population at Risk'!M$5","v":8.2678331033722192E-3},{"$f":"'Population at Risk'!N208/'Population at Risk'!N$5","v":4.757273262821605E-3},{"$f":"'Population at Risk'!O208/'Population at Risk'!O$5","v":4.5118332883578279E-3},{"$f":"'Population at Risk'!P208/'Population at Risk'!P$5","v":8.574935763404453E-3},{"$f":"'Population at Risk'!Q208/'Population at Risk'!Q$5","v":1.2724144273185117E-2},{"$f":"'Population at Risk'!R208/'Population at Risk'!R$5","v":5.7989993491689143E-3},{"$f":"'Population at Risk'!S208/'Population at Risk'!S$5","v":7.4140193381293145E-3},{"$f":"'Population at Risk'!T208/'Population at Risk'!T$5","v":4.9130560607311179E-3},{"$f":"'Population at Risk'!U208/'Population at Risk'!U$5","v":1.7247144806549833E-3},{"$f":"'Population at Risk'!V208/'Population at Risk'!V$5","v":6.6506486934468038E-3},{"$f":"'Population at Risk'!W208/'Population at Risk'!W$5","v":6.927368951707067E-3},{"$f":"'Population at Risk'!X208/'Population at Risk'!X$5","v":6.9266661759705616E-3},{"$f":"'Population at Risk'!Y208/'Population at Risk'!Y$5","v":7.4602861410244187E-3},{"$f":"'Population at Risk'!Z208/'Population at Risk'!Z$5","v":2.4198943602868695E-3},{"$f":"'Population at Risk'!AA208/'Population at Risk'!AA$5","v":4.3759201781747728E-3},{"$f":"'Population at Risk'!AB208/'Population at Risk'!AB$5","v":1.1898748990034663E-2},{"$f":"'Population at Risk'!AC208/'Population at Risk'!AC$5","v":4.1835809667641376E-3},{"$f":"'Population at Risk'!AD208/'Population at Risk'!AD$5","v":1.2608587061358126E-2},{"$f":"'Population at Risk'!AE208/'Population at Risk'!AE$5","v":1.3233633479640124E-2},{"$f":"'Population at Risk'!AF208/'Population at Risk'!AF$5","v":6.1988768668555247E-3},{"$f":"'Population at Risk'!AG208/'Population at Risk'!AG$5","v":1.3233633479640124E-2},{"$f":"'Population at Risk'!AH208/'Population at Risk'!AH$5","v":4.7010878049899996E-3},{"$f":"'Population at Risk'!AI208/'Population at Risk'!AI$5","v":6.0141128706756143E-3},{"$f":"'Population at Risk'!AJ208/'Population at Risk'!AJ$5","v":6.1774896622211932E-3},{"$f":"'Population at Risk'!AK208/'Population at Risk'!AK$5","v":1.7002411367525925E-2},{"$f":"'Population at Risk'!AL208/'Population at Risk'!AL$5","v":6.8317516133767709E-3},{"$f":"'Population at Risk'!AM208/'Population at Risk'!AM$5","v":3.5969511258067393E-3},{"$f":"'Population at Risk'!AN208/'Population at Risk'!AN$5","v":2.4669823582077633E-2},{"$f":"'Population at Risk'!AO208/'Population at Risk'!AO$5","v":2.4651256907870164E-2},{"$f":"'Population at Risk'!AP208/'Population at Risk'!AP$5","v":1.9455299878130508E-2},{"$f":"'Population at Risk'!AQ208/'Population at Risk'!AQ$5","v":6.6093022231157482E-3},{"$f":"'Population at Risk'!AR208/'Population at Risk'!AR$5","v":7.5370862380364743E-3},{"$f":"'Population at Risk'!AS208/'Population at Risk'!AS$5","v":1.8966727241173351E-2},{"$f":"'Population at Risk'!AT208/'Population at Risk'!AT$5","v":2.5039609429132463E-2},{"$f":"'Population at Risk'!AU208/'Population at Risk'!AU$5","v":2.5061750215723568E-2},{"$f":"'Population at Risk'!AV208/'Population at Risk'!AV$5","v":5.9112611389866253E-3},{"$f":"'Population at Risk'!AW208/'Population at Risk'!AW$5","v":5.833253083533641E-3},{"$f":"'Population at Risk'!AX208/'Population at Risk'!AX$5","v":1.0198575193365629E-2},{"$f":"'Population at Risk'!AY208/'Population at Risk'!AY$5","v":1.0010061051140809E-2},{"$f":"'Population at Risk'!AZ208/'Population at Risk'!AZ$5","v":1.2902562708669763E-2},{"$f":"'Population at Risk'!BA208/'Population at Risk'!BA$5","v":4.4831338778714893E-3},{"$f":"'Population at Risk'!BB208/'Population at Risk'!BB$5","v":5.3339745884997862E-3},{"$f":"'Population at Risk'!BC208/'Population at Risk'!BC$5","v":1.7236530805587397E-3},206]
[null,"Male 80-84",{"$f":"'Population at Risk'!C209/'Population at Risk'!C$5","v":3.6404814442372903E-3},{"$f":"'Population at Risk'!D209/'Population at Risk'!D$5","v":7.0413906768218267E-3},{"$f":"'Population at Risk'!E209/'Population at Risk'!E$5","v":9.9959967199677764E-3},{"$f":"'Population at Risk'!F209/'Population at Risk'!F$5","v":8.2292236352160576E-3},{"$f":"'Population at Risk'!G209/'Population at Risk'!G$5","v":7.735293058871091E-3},{"$f":"'Population at Risk'!H209/'Population at Risk'!H$5","v":3.9940387333770528E-3},{"$f":"'Population at Risk'!I209/'Population at Risk'!I$5","v":1.2365321161458854E-2},{"$f":"'Population at Risk'!J209/'Population at Risk'!J$5","v":5.3523178128947416E-3},{"$f":"'Population at Risk'!K209/'Population at Risk'!K$5","v":3.8026528617690633E-3},{"$f":"'Population at Risk'!L209/'Population at Risk'!L$5","v":6.1928459960143914E-3},{"$f":"'Population at Risk'!M209/'Population at Risk'!M$5","v":6.1906927670570319E-3},{"$f":"'Population at Risk'!N209/'Population at Risk'!N$5","v":4.1719935869539626E-3},{"$f":"'Population at Risk'!O209/'Population at Risk'!O$5","v":2.7819999722680675E-3},{"$f":"'Population at Risk'!P209/'Population at Risk'!P$5","v":6.2070580593008105E-3},{"$f":"'Population at Risk'!Q209/'Population at Risk'!Q$5","v":8.4741245974165637E-3},{"$f":"'Population at Risk'!R209/'Population at Risk'!R$5","v":4.3982748686933314E-3},{"$f":"'Population at Risk'!S209/'Population at Risk'!S$5","v":4.9233722167264975E-3},{"$f":"'Population at Risk'!T209/'Population at Risk'!T$5","v":3.5881290852768709E-3},{"$f":"'Population at Risk'!U209/'Population at Risk'!U$5","v":1.6463183678979386E-3},{"$f":"'Population at Risk'!V209/'Population at Risk'!V$5","v":4.7744656936112842E-3},{"$f":"'Population at Risk'!W209/'Population at Risk'!W$5","v":4.367518078134053E-3},{"$f":"'Population at Risk'!X209/'Population at Risk'!X$5","v":4.3670749971092861E-3},{"$f":"'Population at Risk'!Y209/'Population at Risk'!Y$5","v":5.2341129312776114E-3},{"$f":"'Population at Risk'!Z209/'Population at Risk'!Z$5","v":1.734430721750675E-3},{"$f":"'Population at Risk'!AA209/'Population at Risk'!AA$5","v":2.974819332182735E-3},{"$f":"'Population at Risk'!AB209/'Population at Risk'!AB$5","v":7.7949502720539576E-3},{"$f":"'Population at Risk'!AC209/'Population at Risk'!AC$5","v":2.9187328503810263E-3},{"$f":"'Population at Risk'!AD209/'Population at Risk'!AD$5","v":8.7618994833166645E-3},{"$f":"'Population at Risk'!AE209/'Population at Risk'!AE$5","v":9.27459658444027E-3},{"$f":"'Population at Risk'!AF209/'Population at Risk'!AF$5","v":3.7305458067501576E-3},{"$f":"'Population at Risk'!AG209/'Population at Risk'!AG$5","v":9.27459658444027E-3},{"$f":"'Population at Risk'!AH209/'Population at Risk'!AH$5","v":3.0538849461873023E-3},{"$f":"'Population at Risk'!AI209/'Population at Risk'!AI$5","v":4.1389342614634918E-3},{"$f":"'Population at Risk'!AJ209/'Population at Risk'!AJ$5","v":4.7151853460432299E-3},{"$f":"'Population at Risk'!AK209/'Population at Risk'!AK$5","v":1.1226112084614607E-2},{"$f":"'Population at Risk'!AL209/'Population at Risk'!AL$5","v":4.5792001052785726E-3},{"$f":"'Population at Risk'!AM209/'Population at Risk'!AM$5","v":2.1467969169834695E-3},{"$f":"'Population at Risk'!AN209/'Population at Risk'!AN$5","v":1.3876775764918669E-2},{"$f":"'Population at Risk'!AO209/'Population at Risk'!AO$5","v":1.3866332010676967E-2},{"$f":"'Population at Risk'!AP209/'Population at Risk'!AP$5","v":1.3679507726810513E-2},{"$f":"'Population at Risk'!AQ209/'Population at Risk'!AQ$5","v":4.1074003694261839E-3},{"$f":"'Population at Risk'!AR209/'Population at Risk'!AR$5","v":5.1074278915893096E-3},{"$f":"'Population at Risk'!AS209/'Population at Risk'!AS$5","v":1.2366889112246949E-2},{"$f":"'Population at Risk'!AT209/'Population at Risk'!AT$5","v":1.4670784379183337E-2},{"$f":"'Population at Risk'!AU209/'Population at Risk'!AU$5","v":1.4683756734322619E-2},{"$f":"'Population at Risk'!AV209/'Population at Risk'!AV$5","v":4.5192544836768723E-3},{"$f":"'Population at Risk'!AW209/'Population at Risk'!AW$5","v":3.9880403734362654E-3},{"$f":"'Population at Risk'!AX209/'Population at Risk'!AX$5","v":6.9012914842323811E-3},{"$f":"'Population at Risk'!AY209/'Population at Risk'!AY$5","v":6.746948181668805E-3},{"$f":"'Population at Risk'!AZ209/'Population at Risk'!AZ$5","v":8.9863377130843611E-3},{"$f":"'Population at Risk'!BA209/'Population at Risk'!BA$5","v":3.6766441855559822E-3},{"$f":"'Population at Risk'!BB209/'Population at Risk'!BB$5","v":3.0615925571746221E-3},{"$f":"'Population at Risk'!BC209/'Population at Risk'!BC$5","v":1.6453052132606152E-3},207]
[null,"Male 85-89",{"$f":"'Population at Risk'!C210/'Population at Risk'!C$5","v":1.6829766676637963E-3},{"$f":"'Population at Risk'!D210/'Population at Risk'!D$5","v":3.7864081941400389E-3},{"$f":"'Population at Risk'!E210/'Population at Risk'!E$5","v":5.6130571033531562E-3},{"$f":"'Population at Risk'!F210/'Population at Risk'!F$5","v":5.030087796586832E-3},{"$f":"'Population at Risk'!G210/'Population at Risk'!G$5","v":3.5274952059998464E-3},{"$f":"'Population at Risk'!H210/'Population at Risk'!H$5","v":1.8434024923278706E-3},{"$f":"'Population at Risk'!I210/'Population at Risk'!I$5","v":7.1610614133701105E-3},{"$f":"'Population at Risk'!J210/'Population at Risk'!J$5","v":2.9570816645827299E-3},{"$f":"'Population at Risk'!K210/'Population at Risk'!K$5","v":1.7359936977641376E-3},{"$f":"'Population at Risk'!L210/'Population at Risk'!L$5","v":3.1100038006300341E-3},{"$f":"'Population at Risk'!M210/'Population at Risk'!M$5","v":3.1089224641580272E-3},{"$f":"'Population at Risk'!N210/'Population at Risk'!N$5","v":2.2810900187661956E-3},{"$f":"'Population at Risk'!O210/'Population at Risk'!O$5","v":1.123499988800566E-3},{"$f":"'Population at Risk'!P210/'Population at Risk'!P$5","v":3.3104309649604324E-3},{"$f":"'Population at Risk'!Q210/'Population at Risk'!Q$5","v":5.1052065617463709E-3},{"$f":"'Population at Risk'!R210/'Population at Risk'!R$5","v":2.1291012103228863E-3},{"$f":"'Population at Risk'!S210/'Population at Risk'!S$5","v":2.7331956056091955E-3},{"$f":"'Population at Risk'!T210/'Population at Risk'!T$5","v":2.2116485310111748E-3},{"$f":"'Population at Risk'!U210/'Population at Risk'!U$5","v":9.4075335308453634E-4},{"$f":"'Population at Risk'!V210/'Population at Risk'!V$5","v":2.3942335296408494E-3},{"$f":"'Population at Risk'!W210/'Population at Risk'!W$5","v":2.1837590390670265E-3},{"$f":"'Population at Risk'!X210/'Population at Risk'!X$5","v":2.183537498554643E-3},{"$f":"'Population at Risk'!Y210/'Population at Risk'!Y$5","v":2.7622416749701192E-3},{"$f":"'Population at Risk'!Z210/'Population at Risk'!Z$5","v":8.8625601750134291E-4},{"$f":"'Population at Risk'!AA210/'Population at Risk'!AA$5","v":1.5170192613079259E-3},{"$f":"'Population at Risk'!AB210/'Population at Risk'!AB$5","v":4.072056628449363E-3},{"$f":"'Population at Risk'!AC210/'Population at Risk'!AC$5","v":1.5178177396597326E-3},{"$f":"'Population at Risk'!AD210/'Population at Risk'!AD$5","v":4.5519136340157309E-3},{"$f":"'Population at Risk'!AE210/'Population at Risk'!AE$5","v":5.0141101794536243E-3},{"$f":"'Population at Risk'!AF210/'Population at Risk'!AF$5","v":2.1597896775921968E-3},{"$f":"'Population at Risk'!AG210/'Population at Risk'!AG$5","v":5.0141101794536243E-3},{"$f":"'Population at Risk'!AH210/'Population at Risk'!AH$5","v":1.5014326943068837E-3},{"$f":"'Population at Risk'!AI210/'Population at Risk'!AI$5","v":2.3726749749214608E-3},{"$f":"'Population at Risk'!AJ210/'Population at Risk'!AJ$5","v":2.0890061659685193E-3},{"$f":"'Population at Risk'!AK210/'Population at Risk'!AK$5","v":5.3744697675783574E-3},{"$f":"'Population at Risk'!AL210/'Population at Risk'!AL$5","v":2.267370925914633E-3},{"$f":"'Population at Risk'!AM210/'Population at Risk'!AM$5","v":9.1700927910883282E-4},{"$f":"'Population at Risk'!AN210/'Population at Risk'!AN$5","v":7.4890535874164253E-3},{"$f":"'Population at Risk'!AO210/'Population at Risk'!AO$5","v":7.4834172756034429E-3},{"$f":"'Population at Risk'!AP210/'Population at Risk'!AP$5","v":7.4557316967177765E-3},{"$f":"'Population at Risk'!AQ210/'Population at Risk'!AQ$5","v":2.4082477736049285E-3},{"$f":"'Population at Risk'!AR210/'Population at Risk'!AR$5","v":2.6965196005795519E-3},{"$f":"'Population at Risk'!AS210/'Population at Risk'!AS$5","v":7.1619694522103549E-3},{"$f":"'Population at Risk'!AT210/'Population at Risk'!AT$5","v":6.7287056175201771E-3},{"$f":"'Population at Risk'!AU210/'Population at Risk'!AU$5","v":6.7346553443133825E-3},{"$f":"'Population at Risk'!AV210/'Population at Risk'!AV$5","v":2.0594071064856632E-3},{"$f":"'Population at Risk'!AW210/'Population at Risk'!AW$5","v":2.1056257941836996E-3},{"$f":"'Population at Risk'!AX210/'Population at Risk'!AX$5","v":4.0385335352174671E-3},{"$f":"'Population at Risk'!AY210/'Population at Risk'!AY$5","v":3.6627994549466372E-3},{"$f":"'Population at Risk'!AZ210/'Population at Risk'!AZ$5","v":5.0584572859644784E-3},{"$f":"'Population at Risk'!BA210/'Population at Risk'!BA$5","v":1.3994968190180837E-3},{"$f":"'Population at Risk'!BB210/'Population at Risk'!BB$5","v":1.496778583507593E-3},{"$f":"'Population at Risk'!BC210/'Population at Risk'!BC$5","v":9.4017440757749433E-4},208]
[null,"Male 90+",{"$f":"'Population at Risk'!C211/'Population at Risk'!C$5","v":4.8937619414337339E-4},{"$f":"'Population at Risk'!D211/'Population at Risk'!D$5","v":1.4946348134763311E-3},{"$f":"'Population at Risk'!E211/'Population at Risk'!E$5","v":2.3672008778413867E-3},{"$f":"'Population at Risk'!F211/'Population at Risk'!F$5","v":1.911433362702996E-3},{"$f":"'Population at Risk'!G211/'Population at Risk'!G$5","v":1.7637476029999232E-3},{"$f":"'Population at Risk'!H211/'Population at Risk'!H$5","v":7.9653194112932688E-4},{"$f":"'Population at Risk'!I211/'Population at Risk'!I$5","v":2.5604957960596616E-3},{"$f":"'Population at Risk'!J211/'Population at Risk'!J$5","v":1.1236910325414374E-3},{"$f":"'Population at Risk'!K211/'Population at Risk'!K$5","v":6.6133093248157623E-4},{"$f":"'Population at Risk'!L211/'Population at Risk'!L$5","v":1.1679490255641176E-3},{"$f":"'Population at Risk'!M211/'Population at Risk'!M$5","v":1.167542934137949E-3},{"$f":"'Population at Risk'!N211/'Population at Risk'!N$5","v":1.2455952076157514E-3},{"$f":"'Population at Risk'!O211/'Population at Risk'!O$5","v":5.8849999413362972E-4},{"$f":"'Population at Risk'!P211/'Population at Risk'!P$5","v":1.4253244432468528E-3},{"$f":"'Population at Risk'!Q211/'Population at Risk'!Q$5","v":1.6067147554734772E-3},{"$f":"'Population at Risk'!R211/'Population at Risk'!R$5","v":1.3727099908660717E-3},{"$f":"'Population at Risk'!S211/'Population at Risk'!S$5","v":1.0787977357238944E-3},{"$f":"'Population at Risk'!T211/'Population at Risk'!T$5","v":1.08778051292158E-3},{"$f":"'Population at Risk'!U211/'Population at Risk'!U$5","v":1.5679222551408939E-4},{"$f":"'Population at Risk'!V211/'Population at Risk'!V$5","v":9.8009559692900259E-4},{"$f":"'Population at Risk'!W211/'Population at Risk'!W$5","v":9.6449357558793666E-4},{"$f":"'Population at Risk'!X211/'Population at Risk'!X$5","v":9.6439572852830056E-4},{"$f":"'Population at Risk'!Y211/'Population at Risk'!Y$5","v":1.0870277211472705E-3},{"$f":"'Population at Risk'!Z211/'Population at Risk'!Z$5","v":3.6004150710992053E-4},{"$f":"'Population at Risk'!AA211/'Population at Risk'!AA$5","v":6.274714220360026E-4},{"$f":"'Population at Risk'!AB211/'Population at Risk'!AB$5","v":1.6687269925048614E-3},{"$f":"'Population at Risk'!AC211/'Population at Risk'!AC$5","v":6.6117060629117144E-4},{"$f":"'Population at Risk'!AD211/'Population at Risk'!AD$5","v":1.9803317531398644E-3},{"$f":"'Population at Risk'!AE211/'Population at Risk'!AE$5","v":2.0900499345217513E-3},{"$f":"'Population at Risk'!AF211/'Population at Risk'!AF$5","v":8.1342728117108699E-4},{"$f":"'Population at Risk'!AG211/'Population at Risk'!AG$5","v":2.0900499345217513E-3},{"$f":"'Population at Risk'!AH211/'Population at Risk'!AH$5","v":5.5757087919648836E-4},{"$f":"'Population at Risk'!AI211/'Population at Risk'!AI$5","v":9.2434235995699594E-4},{"$f":"'Population at Risk'!AJ211/'Population at Risk'!AJ$5","v":5.3717301410619077E-4},{"$f":"'Population at Risk'!AK211/'Population at Risk'!AK$5","v":2.4612057814143882E-3},{"$f":"'Population at Risk'!AL211/'Population at Risk'!AL$5","v":7.4097089082177548E-4},{"$f":"'Population at Risk'!AM211/'Population at Risk'!AM$5","v":3.8386434939439513E-4},{"$f":"'Population at Risk'!AN211/'Population at Risk'!AN$5","v":3.6343936527167943E-3},{"$f":"'Population at Risk'!AO211/'Population at Risk'!AO$5","v":3.6316583837487293E-3},{"$f":"'Population at Risk'!AP211/'Population at Risk'!AP$5","v":3.1038883029254265E-3},{"$f":"'Population at Risk'!AQ211/'Population at Risk'!AQ$5","v":1.0168157266331921E-3},{"$f":"'Population at Risk'!AR211/'Population at Risk'!AR$5","v":1.1093056054130627E-3},{"$f":"'Population at Risk'!AS211/'Population at Risk'!AS$5","v":2.5608204727380047E-3},{"$f":"'Population at Risk'!AT211/'Population at Risk'!AT$5","v":2.7576662366885969E-3},{"$f":"'Population at Risk'!AU211/'Population at Risk'!AU$5","v":2.7601046493087632E-3},{"$f":"'Population at Risk'!AV211/'Population at Risk'!AV$5","v":1.0869093062007666E-3},{"$f":"'Population at Risk'!AW211/'Population at Risk'!AW$5","v":7.3659700927274302E-4},{"$f":"'Population at Risk'!AX211/'Population at Risk'!AX$5","v":1.5336203298294182E-3},{"$f":"'Population at Risk'!AY211/'Population at Risk'!AY$5","v":1.5838326633360459E-3},{"$f":"'Population at Risk'!AZ211/'Population at Risk'!AZ$5","v":2.1679102654133479E-3},{"$f":"'Population at Risk'!BA211/'Population at Risk'!BA$5","v":5.9300712670257779E-4},{"$f":"'Population at Risk'!BB211/'Population at Risk'!BB$5","v":3.1296279473340578E-4},{"$f":"'Population at Risk'!BC211/'Population at Risk'!BC$5","v":1.5669573459624908E-4},209]
["SIMD Q5 (least deprived)","Female 0-4",{"$f":"'Population at Risk'!C212/'Population at Risk'!C$5","v":0},{"$f":"'Population at Risk'!D212/'Population at Risk'!D$5","v":0},{"$f":"'Population at Risk'!E212/'Population at Risk'!E$5","v":0},{"$f":"'Population at Risk'!F212/'Population at Risk'!F$5","v":0},{"$f":"'Population at Risk'!G212/'Population at Risk'!G$5","v":0},{"$f":"'Population at Risk'!H212/'Population at Risk'!H$5","v":0},{"$f":"'Population at Risk'!I212/'Population at Risk'!I$5","v":0},{"$f":"'Population at Risk'!J212/'Population at Risk'!J$5","v":0},{"$f":"'Population at Risk'!K212/'Population at Risk'!K$5","v":0},{"$f":"'Population at Risk'!L212/'Population at Risk'!L$5","v":0},{"$f":"'Population at Risk'!M212/'Population at Risk'!M$5","v":0},{"$f":"'Population at Risk'!N212/'Population at Risk'!N$5","v":0},{"$f":"'Population at Risk'!O212/'Population at Risk'!O$5","v":0},{"$f":"'Population at Risk'!P212/'Population at Risk'!P$5","v":0},{"$f":"'Population at Risk'!Q212/'Population at Risk'!Q$5","v":0},{"$f":"'Population at Risk'!R212/'Population at Risk'!R$5","v":0},{"$f":"'Population at Risk'!S212/'Population at Risk'!S$5","v":0},{"$f":"'Population at Risk'!T212/'Population at Risk'!T$5","v":0},{"$f":"'Population at Risk'!U212/'Population at Risk'!U$5","v":0},{"$f":"'Population at Risk'!V212/'Population at Risk'!V$5","v":0},{"$f":"'Population at Risk'!W212/'Population at Risk'!W$5","v":0},{"$f":"'Population at Risk'!X212/'Population at Risk'!X$5","v":0},{"$f":"'Population at Risk'!Y212/'Population at Risk'!Y$5","v":0},{"$f":"'Population at Risk'!Z212/'Population at Risk'!Z$5","v":0},{"$f":"'Population at Risk'!AA212/'Population at Risk'!AA$5","v":0},{"$f":"'Population at Risk'!AB212/'Population at Risk'!AB$5","v":0},{"$f":"'Population at Risk'!AC212/'Population at Risk'!AC$5","v":0},{"$f":"'Population at Risk'!AD212/'Population at Risk'!AD$5","v":0},{"$f":"'Population at Risk'!AE212/'Population at Risk'!AE$5","v":0},{"$f":"'Population at Risk'!AF212/'Population at Risk'!AF$5","v":0},{"$f":"'Population at Risk'!AG212/'Population at Risk'!AG$5","v":0},{"$f":"'Population at Risk'!AH212/'Population at Risk'!AH$5","v":0},{"$f":"'Population at Risk'!AI212/'Population at Risk'!AI$5","v":0},{"$f":"'Population at Risk'!AJ212/'Population at Risk'!AJ$5","v":0},{"$f":"'Population at Risk'!AK212/'Population at Risk'!AK$5","v":0},{"$f":"'Population at Risk'!AL212/'Population at Risk'!AL$5","v":0},{"$f":"'Population at Risk'!AM212/'Population at Risk'!AM$5","v":0},{"$f":"'Population at Risk'!AN212/'Population at Risk'!AN$5","v":0},{"$f":"'Population at Risk'!AO212/'Population at Risk'!AO$5","v":0},{"$f":"'Population at Risk'!AP212/'Population at Risk'!AP$5","v":0},{"$f":"'Population at Risk'!AQ212/'Population at Risk'!AQ$5","v":0},{"$f":"'Population at Risk'!AR212/'Population at Risk'!AR$5","v":0},{"$f":"'Population at Risk'!AS212/'Population at Risk'!AS$5","v":0},{"$f":"'Population at Risk'!AT212/'Population at Risk'!AT$5","v":0},{"$f":"'Population at Risk'!AU212/'Population at Risk'!AU$5","v":0},{"$f":"'Population at Risk'!AV212/'Population at Risk'!AV$5","v":0},{"$f":"'Population at Risk'!AW212/'Population at Risk'!AW$5","v":0},{"$f":"'Population at Risk'!AX212/'Population at Risk'!AX$5","v":0},{"$f":"'Population at Risk'!AY212/'Population at Risk'!AY$5","v":0},{"$f":"'Population at Risk'!AZ212/'Population at Risk'!AZ$5","v":0},{"$f":"'Population at Risk'!BA212/'Population at Risk'!BA$5","v":0},{"$f":"'Population at Risk'!BB212/'Population at Risk'!BB$5","v":0},{"$f":"'Population at Risk'!BC212/'Population at Risk'!BC$5","v":0},210]
[null,"Female 5-9",{"$f":"'Population at Risk'!C213/'Population at Risk'!C$5","v":0},{"$f":"'Population at Risk'!D213/'Population at Risk'!D$5","v":0},{"$f":"'Population at Risk'!E213/'Population at Risk'!E$5","v":0},{"$f":"'Population at Risk'!F213/'Population at Risk'!F$5","v":0},{"$f":"'Population at Risk'!G213/'Population at Risk'!G$5","v":0},{"$f":"'Population at Risk'!H213/'Population at Risk'!H$5","v":0},{"$f":"'Population at Risk'!I213/'Population at Risk'!I$5","v":0},{"$f":"'Population at Risk'!J213/'Population at Risk'!J$5","v":0},{"$f":"'Population at Risk'!K213/'Population at Risk'!K$5","v":0},{"$f":"'Population at Risk'!L213/'Population at Risk'!L$5","v":0},{"$f":"'Population at Risk'!M213/'Population at Risk'!M$5","v":0},{"$f":"'Population at Risk'!N213/'Population at Risk'!N$5","v":0},{"$f":"'Population at Risk'!O213/'Population at Risk'!O$5","v":0},{"$f":"'Population at Risk'!P213/'Population at Risk'!P$5","v":0},{"$f":"'Population at Risk'!Q213/'Population at Risk'!Q$5","v":0},{"$f":"'Population at Risk'!R213/'Population at Risk'!R$5","v":0},{"$f":"'Population at Risk'!S213/'Population at Risk'!S$5","v":0},{"$f":"'Population at Risk'!T213/'Population at Risk'!T$5","v":0},{"$f":"'Population at Risk'!U213/'Population at Risk'!U$5","v":0},{"$f":"'Population at Risk'!V213/'Population at Risk'!V$5","v":0},{"$f":"'Population at Risk'!W213/'Population at Risk'!W$5","v":0},{"$f":"'Population at Risk'!X213/'Population at Risk'!X$5","v":0},{"$f":"'Population at Risk'!Y213/'Population at Risk'!Y$5","v":0},{"$f":"'Population at Risk'!Z213/'Population at Risk'!Z$5","v":0},{"$f":"'Population at Risk'!AA213/'Population at Risk'!AA$5","v":0},{"$f":"'Population at Risk'!AB213/'Population at Risk'!AB$5","v":0},{"$f":"'Population at Risk'!AC213/'Population at Risk'!AC$5","v":0},{"$f":"'Population at Risk'!AD213/'Population at Risk'!AD$5","v":0},{"$f":"'Population at Risk'!AE213/'Population at Risk'!AE$5","v":0},{"$f":"'Population at Risk'!AF213/'Population at Risk'!AF$5","v":0},{"$f":"'Population at Risk'!AG213/'Population at Risk'!AG$5","v":0},{"$f":"'Population at Risk'!AH213/'Population at Risk'!AH$5","v":0},{"$f":"'Population at Risk'!AI213/'Population at Risk'!AI$5","v":0},{"$f":"'Population at Risk'!AJ213/'Population at Risk'!AJ$5","v":0},{"$f":"'Population at Risk'!AK213/'Population at Risk'!AK$5","v":0},{"$f":"'Population at Risk'!AL213/'Population at Risk'!AL$5","v":0},{"$f":"'Population at Risk'!AM213/'Population at Risk'!AM$5","v":0},{"$f":"'Population at Risk'!AN213/'Population at Risk'!AN$5","v":0},{"$f":"'Population at Risk'!AO213/'Population at Risk'!AO$5","v":0},{"$f":"'Population at Risk'!AP213/'Population at Risk'!AP$5","v":0},{"$f":"'Population at Risk'!AQ213/'Population at Risk'!AQ$5","v":0},{"$f":"'Population at Risk'!AR213/'Population at Risk'!AR$5","v":0},{"$f":"'Population at Risk'!AS213/'Population at Risk'!AS$5","v":0},{"$f":"'Population at Risk'!AT213/'Population at Risk'!AT$5","v":0},{"$f":"'Population at Risk'!AU213/'Population at Risk'!AU$5","v":0},{"$f":"'Population at Risk'!AV213/'Population at Risk'!AV$5","v":0},{"$f":"'Population at Risk'!AW213/'Population at Risk'!AW$5","v":0},{"$f":"'Population at Risk'!AX213/'Population at Risk'!AX$5","v":0},{"$f":"'Population at Risk'!AY213/'Population at Risk'!AY$5","v":0},{"$f":"'Population at Risk'!AZ213/'Population at Risk'!AZ$5","v":0},{"$f":"'Population at Risk'!BA213/'Population at Risk'!BA$5","v":0},{"$f":"'Population at Risk'!BB213/'Population at Risk'!BB$5","v":0},{"$f":"'Population at Risk'!BC213/'Population at Risk'!BC$5","v":0},211]
[null,"Female 10-15",{"$f":"'Population at Risk'!C214/'Population at Risk'!C$5","v":0},{"$f":"'Population at Risk'!D214/'Population at Risk'!D$5","v":0},{"$f":"'Population at Risk'!E214/'Population at Risk'!E$5","v":0},{"$f":"'Population at Risk'!F214/'Population at Risk'!F$5","v":0},{"$f":"'Population at Risk'!G214/'Population at Risk'!G$5","v":0},{"$f":"'Population at Risk'!H214/'Population at Risk'!H$5","v":0},{"$f":"'Population at Risk'!I214/'Population at Risk'!I$5","v":0},{"$f":"'Population at Risk'!J214/'Population at Risk'!J$5","v":0},{"$f":"'Population at Risk'!K214/'Population at Risk'!K$5","v":0},{"$f":"'Population at Risk'!L214/'Population at Risk'!L$5","v":0},{"$f":"'Population at Risk'!M214/'Population at Risk'!M$5","v":0},{"$f":"'Population at Risk'!N214/'Population at Risk'!N$5","v":0},{"$f":"'Population at Risk'!O214/'Population at Risk'!O$5","v":0},{"$f":"'Population at Risk'!P214/'Population at Risk'!P$5","v":0},{"$f":"'Population at Risk'!Q214/'Population at Risk'!Q$5","v":0},{"$f":"'Population at Risk'!R214/'Population at Risk'!R$5","v":0},{"$f":"'Population at Risk'!S214/'Population at Risk'!S$5","v":0},{"$f":"'Population at Risk'!T214/'Population at Risk'!T$5","v":0},{"$f":"'Population at Risk'!U214/'Population at Risk'!U$5","v":0},{"$f":"'Population at Risk'!V214/'Population at Risk'!V$5","v":0},{"$f":"'Population at Risk'!W214/'Population at Risk'!W$5","v":0},{"$f":"'Population at Risk'!X214/'Population at Risk'!X$5","v":0},{"$f":"'Population at Risk'!Y214/'Population at Risk'!Y$5","v":0},{"$f":"'Population at Risk'!Z214/'Population at Risk'!Z$5","v":0},{"$f":"'Population at Risk'!AA214/'Population at Risk'!AA$5","v":0},{"$f":"'Population at Risk'!AB214/'Population at Risk'!AB$5","v":0},{"$f":"'Population at Risk'!AC214/'Population at Risk'!AC$5","v":0},{"$f":"'Population at Risk'!AD214/'Population at Risk'!AD$5","v":0},{"$f":"'Population at Risk'!AE214/'Population at Risk'!AE$5","v":0},{"$f":"'Population at Risk'!AF214/'Population at Risk'!AF$5","v":0},{"$f":"'Population at Risk'!AG214/'Population at Risk'!AG$5","v":0},{"$f":"'Population at Risk'!AH214/'Population at Risk'!AH$5","v":0},{"$f":"'Population at Risk'!AI214/'Population at Risk'!AI$5","v":0},{"$f":"'Population at Risk'!AJ214/'Population at Risk'!AJ$5","v":0},{"$f":"'Population at Risk'!AK214/'Population at Risk'!AK$5","v":0},{"$f":"'Population at Risk'!AL214/'Population at Risk'!AL$5","v":0},{"$f":"'Population at Risk'!AM214/'Population at Risk'!AM$5","v":0},{"$f":"'Population at Risk'!AN214/'Population at Risk'!AN$5","v":0},{"$f":"'Population at Risk'!AO214/'Population at Risk'!AO$5","v":0},{"$f":"'Population at Risk'!AP214/'Population at Risk'!AP$5","v":0},{"$f":"'Population at Risk'!AQ214/'Population at Risk'!AQ$5","v":0},{"$f":"'Population at Risk'!AR214/'Population at Risk'!AR$5","v":0},{"$f":"'Population at Risk'!AS214/'Population at Risk'!AS$5","v":0},{"$f":"'Population at Risk'!AT214/'Population at Risk'!AT$5","v":0},{"$f":"'Population at Risk'!AU214/'Population at Risk'!AU$5","v":0},{"$f":"'Population at Risk'!AV214/'Population at Risk'!AV$5","v":0},{"$f":"'Population at Risk'!AW214/'Population at Risk'!AW$5","v":0},{"$f":"'Population at Risk'!AX214/'Population at Risk'!AX$5","v":0},{"$f":"'Population at Risk'!AY214/'Population at Risk'!AY$5","v":0},{"$f":"'Population at Risk'!AZ214/'Population at Risk'!AZ$5","v":0},{"$f":"'Population at Risk'!BA214/'Population at Risk'!BA$5","v":0},{"$f":"'Population at Risk'!BB214/'Population at Risk'!BB$5","v":0},{"$f":"'Population at Risk'!BC214/'Population at Risk'!BC$5","v":0},212]
[null,"Female 16-19",{"$f":"'Population at Risk'!C215/'Population at Risk'!C$5","v":4.5594551370378988E-3},{"$f":"'Population at Risk'!D215/'Population at Risk'!D$5","v":4.2392039872490364E-3},{"$f":"'Population at Risk'!E215/'Population at Risk'!E$5","v":3.9289932941888898E-3},{"$f":"'Population at Risk'!F215/'Population at Risk'!F$5","v":1.8753853019399535E-3},{"$f":"'Population at Risk'!G215/'Population at Risk'!G$5","v":6.9120649937261659E-4},{"$f":"'Population at Risk'!H215/'Population at Risk'!H$5","v":1.2691697811680704E-3},{"$f":"'Population at Risk'!I215/'Population at Risk'!I$5","v":8.1450334272665083E-4},{"$f":"'Population at Risk'!J215/'Population at Risk'!J$5","v":4.6625767945494062E-3},{"$f":"'Population at Risk'!K215/'Population at Risk'!K$5","v":1.560801732735461E-3},{"$f":"'Population at Risk'!L215/'Population at Risk'!L$5","v":8.1552719956386112E-4},{"$f":"'Population at Risk'!M215/'Population at Risk'!M$5","v":8.1580503547713833E-4},{"$f":"'Population at Risk'!N215/'Population at Risk'!N$5","v":1.9981773482567293E-3},{"$f":"'Population at Risk'!O215/'Population at Risk'!O$5","v":1.1527511718180542E-3},{"$f":"'Population at Risk'!P215/'Population at Risk'!P$5","v":6.7327592747965315E-3},{"$f":"'Population at Risk'!Q215/'Population at Risk'!Q$5","v":1.5218556976241482E-3},{"$f":"'Population at Risk'!R215/'Population at Risk'!R$5","v":8.1300007713696488E-3},{"$f":"'Population at Risk'!S215/'Population at Risk'!S$5","v":3.1862083556261933E-3},{"$f":"'Population at Risk'!T215/'Population at Risk'!T$5","v":5.0660293596648653E-3},{"$f":"'Population at Risk'!U215/'Population at Risk'!U$5","v":0},{"$f":"'Population at Risk'!V215/'Population at Risk'!V$5","v":2.1959393804264413E-3},{"$f":"'Population at Risk'!W215/'Population at Risk'!W$5","v":3.0723225835582318E-3},{"$f":"'Population at Risk'!X215/'Population at Risk'!X$5","v":3.0726234060348698E-3},{"$f":"'Population at Risk'!Y215/'Population at Risk'!Y$5","v":3.2349371774168254E-3},{"$f":"'Population at Risk'!Z215/'Population at Risk'!Z$5","v":1.1748611360327314E-3},{"$f":"'Population at Risk'!AA215/'Population at Risk'!AA$5","v":1.7821064029778888E-3},{"$f":"'Population at Risk'!AB215/'Population at Risk'!AB$5","v":3.922358451577854E-3},{"$f":"'Population at Risk'!AC215/'Population at Risk'!AC$5","v":2.1480265898111825E-3},{"$f":"'Population at Risk'!AD215/'Population at Risk'!AD$5","v":8.3992124579384837E-4},{"$f":"'Population at Risk'!AE215/'Population at Risk'!AE$5","v":8.8672626920349251E-4},{"$f":"'Population at Risk'!AF215/'Population at Risk'!AF$5","v":1.0034306504199569E-3},{"$f":"'Population at Risk'!AG215/'Population at Risk'!AG$5","v":8.8672626920349251E-4},{"$f":"'Population at Risk'!AH215/'Population at Risk'!AH$5","v":1.1881021440432937E-3},{"$f":"'Population at Risk'!AI215/'Population at Risk'!AI$5","v":3.5900705176343871E-3},{"$f":"'Population at Risk'!AJ215/'Population at Risk'!AJ$5","v":1.3892688023357186E-3},{"$f":"'Population at Risk'!AK215/'Population at Risk'!AK$5","v":2.2853901028675842E-3},{"$f":"'Population at Risk'!AL215/'Population at Risk'!AL$5","v":8.2615634607489865E-4},{"$f":"'Population at Risk'!AM215/'Population at Risk'!AM$5","v":1.002644326972363E-3},{"$f":"'Population at Risk'!AN215/'Population at Risk'!AN$5","v":5.603934255875002E-4},{"$f":"'Population at Risk'!AO215/'Population at Risk'!AO$5","v":5.609414134421744E-4},{"$f":"'Population at Risk'!AP215/'Population at Risk'!AP$5","v":1.6301555046350283E-3},{"$f":"'Population at Risk'!AQ215/'Population at Risk'!AQ$5","v":1.9216824864959996E-3},{"$f":"'Population at Risk'!AR215/'Population at Risk'!AR$5","v":2.262498103414382E-3},{"$f":"'Population at Risk'!AS215/'Population at Risk'!AS$5","v":8.1437478611904647E-4},{"$f":"'Population at Risk'!AT215/'Population at Risk'!AT$5","v":0},{"$f":"'Population at Risk'!AU215/'Population at Risk'!AU$5","v":0},{"$f":"'Population at Risk'!AV215/'Population at Risk'!AV$5","v":1.9459878949192237E-3},{"$f":"'Population at Risk'!AW215/'Population at Risk'!AW$5","v":1.4011386597523807E-3},{"$f":"'Population at Risk'!AX215/'Population at Risk'!AX$5","v":6.0584617401881124E-3},{"$f":"'Population at Risk'!AY215/'Population at Risk'!AY$5","v":2.3476957944210159E-3},{"$f":"'Population at Risk'!AZ215/'Population at Risk'!AZ$5","v":1.7526334771771753E-3},{"$f":"'Population at Risk'!BA215/'Population at Risk'!BA$5","v":4.9150247712603573E-4},{"$f":"'Population at Risk'!BB215/'Population at Risk'!BB$5","v":2.3159235469612299E-3},{"$f":"'Population at Risk'!BC215/'Population at Risk'!BC$5","v":0},213]
[null,"Female 20-24",{"$f":"'Population at Risk'!C216/'Population at Risk'!C$5","v":8.0360956095388292E-3},{"$f":"'Population at Risk'!D216/'Population at Risk'!D$5","v":6.1177574536149526E-3},{"$f":"'Population at Risk'!E216/'Population at Risk'!E$5","v":4.3061766504310225E-3},{"$f":"'Population at Risk'!F216/'Population at Risk'!F$5","v":1.7323820654085846E-3},{"$f":"'Population at Risk'!G216/'Population at Risk'!G$5","v":9.4911937227284667E-4},{"$f":"'Population at Risk'!H216/'Population at Risk'!H$5","v":1.236902752833289E-3},{"$f":"'Population at Risk'!I216/'Population at Risk'!I$5","v":7.87353231302429E-4},{"$f":"'Population at Risk'!J216/'Population at Risk'!J$5","v":4.8585784059613458E-3},{"$f":"'Population at Risk'!K216/'Population at Risk'!K$5","v":1.39801872993483E-3},{"$f":"'Population at Risk'!L216/'Population at Risk'!L$5","v":9.6981612921107801E-4},{"$f":"'Population at Risk'!M216/'Population at Risk'!M$5","v":9.7014652867551587E-4},{"$f":"'Population at Risk'!N216/'Population at Risk'!N$5","v":2.4534582630494021E-3},{"$f":"'Population at Risk'!O216/'Population at Risk'!O$5","v":1.1527511718180542E-3},{"$f":"'Population at Risk'!P216/'Population at Risk'!P$5","v":7.0844325450167894E-3},{"$f":"'Population at Risk'!Q216/'Population at Risk'!Q$5","v":1.5261185987379413E-3},{"$f":"'Population at Risk'!R216/'Population at Risk'!R$5","v":8.533705928083956E-3},{"$f":"'Population at Risk'!S216/'Population at Risk'!S$5","v":5.9920349691814801E-3},{"$f":"'Population at Risk'!T216/'Population at Risk'!T$5","v":1.1302072880103211E-2},{"$f":"'Population at Risk'!U216/'Population at Risk'!U$5","v":0},{"$f":"'Population at Risk'!V216/'Population at Risk'!V$5","v":2.598149843015627E-3},{"$f":"'Population at Risk'!W216/'Population at Risk'!W$5","v":5.5710914733190396E-3},{"$f":"'Population at Risk'!X216/'Population at Risk'!X$5","v":5.571636959507094E-3},{"$f":"'Population at Risk'!Y216/'Population at Risk'!Y$5","v":3.5324026649953843E-3},{"$f":"'Population at Risk'!Z216/'Population at Risk'!Z$5","v":3.0467539796177677E-3},{"$f":"'Population at Risk'!AA216/'Population at Risk'!AA$5","v":2.5394823623930483E-3},{"$f":"'Population at Risk'!AB216/'Population at Risk'!AB$5","v":5.510691638368332E-3},{"$f":"'Population at Risk'!AC216/'Population at Risk'!AC$5","v":3.2746488612145699E-3},{"$f":"'Population at Risk'!AD216/'Population at Risk'!AD$5","v":9.8745523853328962E-4},{"$f":"'Population at Risk'!AE216/'Population at Risk'!AE$5","v":9.8927284455355645E-4},{"$f":"'Population at Risk'!AF216/'Population at Risk'!AF$5","v":1.2607205607840482E-3},{"$f":"'Population at Risk'!AG216/'Population at Risk'!AG$5","v":9.8927284455355645E-4},{"$f":"'Population at Risk'!AH216/'Population at Risk'!AH$5","v":1.3488374961122852E-3},{"$f":"'Population at Risk'!AI216/'Population at Risk'!AI$5","v":6.9568352135977365E-3},{"$f":"'Population at Risk'!AJ216/'Population at Risk'!AJ$5","v":1.7132678869793846E-3},{"$f":"'Population at Risk'!AK216/'Population at Risk'!AK$5","v":2.3897709008350943E-3},{"$f":"'Population at Risk'!AL216/'Population at Risk'!AL$5","v":8.0356613348691317E-4},{"$f":"'Population at Risk'!AM216/'Population at Risk'!AM$5","v":1.0943729058059211E-3},{"$f":"'Population at Risk'!AN216/'Population at Risk'!AN$5","v":9.4835810484038491E-4},{"$f":"'Population at Risk'!AO216/'Population at Risk'!AO$5","v":9.4928546890214131E-4},{"$f":"'Population at Risk'!AP216/'Population at Risk'!AP$5","v":1.859800426914963E-3},{"$f":"'Population at Risk'!AQ216/'Population at Risk'!AQ$5","v":2.2685102079892617E-3},{"$f":"'Population at Risk'!AR216/'Population at Risk'!AR$5","v":3.4036861011987854E-3},{"$f":"'Population at Risk'!AS216/'Population at Risk'!AS$5","v":7.8722895991507826E-4},{"$f":"'Population at Risk'!AT216/'Population at Risk'!AT$5","v":0},{"$f":"'Population at Risk'!AU216/'Population at Risk'!AU$5","v":0},{"$f":"'Population at Risk'!AV216/'Population at Risk'!AV$5","v":1.8662342926684357E-3},{"$f":"'Population at Risk'!AW216/'Population at Risk'!AW$5","v":1.6396303465187434E-3},{"$f":"'Population at Risk'!AX216/'Population at Risk'!AX$5","v":6.4476925223789687E-3},{"$f":"'Population at Risk'!AY216/'Population at Risk'!AY$5","v":3.5833568996788273E-3},{"$f":"'Population at Risk'!AZ216/'Population at Risk'!AZ$5","v":1.9504228351031262E-3},{"$f":"'Population at Risk'!BA216/'Population at Risk'!BA$5","v":5.6860090491051192E-4},{"$f":"'Population at Risk'!BB216/'Population at Risk'!BB$5","v":2.1622873411431629E-3},{"$f":"'Population at Risk'!BC216/'Population at Risk'!BC$5","v":0},214]
[null,"Female 25-29",{"$f":"'Population at Risk'!C217/'Population at Risk'!C$5","v":1.1214021190857782E-2},{"$f":"'Population at Risk'!D217/'Population at Risk'!D$5","v":8.2434218343957113E-3},{"$f":"'Population at Risk'!E217/'Population at Risk'!E$5","v":5.4411139060704071E-3},{"$f":"'Population at Risk'!F217/'Population at Risk'!F$5","v":2.0474929153779038E-3},{"$f":"'Population at Risk'!G217/'Population at Risk'!G$5","v":9.3880285735683806E-4},{"$f":"'Population at Risk'!H217/'Population at Risk'!H$5","v":1.2945937766038476E-3},{"$f":"'Population at Risk'!I217/'Population at Risk'!I$5","v":7.6392231322399166E-4},{"$f":"'Population at Risk'!J217/'Population at Risk'!J$5","v":3.7448390070794896E-3},{"$f":"'Population at Risk'!K217/'Population at Risk'!K$5","v":1.2652738477154605E-3},{"$f":"'Population at Risk'!L217/'Population at Risk'!L$5","v":1.3895061726741545E-3},{"$f":"'Population at Risk'!M217/'Population at Risk'!M$5","v":1.3899795532268764E-3},{"$f":"'Population at Risk'!N217/'Population at Risk'!N$5","v":2.518467457598852E-3},{"$f":"'Population at Risk'!O217/'Population at Risk'!O$5","v":1.5409245116173888E-3},{"$f":"'Population at Risk'!P217/'Population at Risk'!P$5","v":6.7155840465904244E-3},{"$f":"'Population at Risk'!Q217/'Population at Risk'!Q$5","v":1.9343059793600521E-3},{"$f":"'Population at Risk'!R217/'Population at Risk'!R$5","v":8.7178193019785358E-3},{"$f":"'Population at Risk'!S217/'Population at Risk'!S$5","v":5.7350548321823082E-3},{"$f":"'Population at Risk'!T217/'Population at Risk'!T$5","v":1.2097140825048435E-2},{"$f":"'Population at Risk'!U217/'Population at Risk'!U$5","v":0},{"$f":"'Population at Risk'!V217/'Population at Risk'!V$5","v":3.1134431190481941E-3},{"$f":"'Population at Risk'!W217/'Population at Risk'!W$5","v":3.21990043790634E-3},{"$f":"'Population at Risk'!X217/'Population at Risk'!X$5","v":3.2202157102769703E-3},{"$f":"'Population at Risk'!Y217/'Population at Risk'!Y$5","v":3.3015010999563944E-3},{"$f":"'Population at Risk'!Z217/'Population at Risk'!Z$5","v":3.3684717228993264E-3},{"$f":"'Population at Risk'!AA217/'Population at Risk'!AA$5","v":2.6447699237090181E-3},{"$f":"'Population at Risk'!AB217/'Population at Risk'!AB$5","v":7.4206781516337819E-3},{"$f":"'Population at Risk'!AC217/'Population at Risk'!AC$5","v":3.4117700324014732E-3},{"$f":"'Population at Risk'!AD217/'Population at Risk'!AD$5","v":1.3656849321126907E-3},{"$f":"'Population at Risk'!AE217/'Population at Risk'!AE$5","v":1.5139323039325568E-3},{"$f":"'Population at Risk'!AF217/'Population at Risk'!AF$5","v":1.0969009027878437E-3},{"$f":"'Population at Risk'!AG217/'Population at Risk'!AG$5","v":1.5139323039325568E-3},{"$f":"'Population at Risk'!AH217/'Population at Risk'!AH$5","v":1.4025810858622942E-3},{"$f":"'Population at Risk'!AI217/'Population at Risk'!AI$5","v":7.5927143834213628E-3},{"$f":"'Population at Risk'!AJ217/'Population at Risk'!AJ$5","v":2.1357175029469056E-3},{"$f":"'Population at Risk'!AK217/'Population at Risk'!AK$5","v":3.1913281316584175E-3},{"$f":"'Population at Risk'!AL217/'Population at Risk'!AL$5","v":7.3217045182429801E-4},{"$f":"'Population at Risk'!AM217/'Population at Risk'!AM$5","v":1.1672880508528407E-3},{"$f":"'Population at Risk'!AN217/'Population at Risk'!AN$5","v":1.4508816087128436E-3},{"$f":"'Population at Risk'!AO217/'Population at Risk'!AO$5","v":1.452300371788644E-3},{"$f":"'Population at Risk'!AP217/'Population at Risk'!AP$5","v":2.1450067484885581E-3},{"$f":"'Population at Risk'!AQ217/'Population at Risk'!AQ$5","v":2.3442808913352788E-3},{"$f":"'Population at Risk'!AR217/'Population at Risk'!AR$5","v":3.6132000167042495E-3},{"$f":"'Population at Risk'!AS217/'Population at Risk'!AS$5","v":7.6380174004042113E-4},{"$f":"'Population at Risk'!AT217/'Population at Risk'!AT$5","v":0},{"$f":"'Population at Risk'!AU217/'Population at Risk'!AU$5","v":0},{"$f":"'Population at Risk'!AV217/'Population at Risk'!AV$5","v":1.7199465208687036E-3},{"$f":"'Population at Risk'!AW217/'Population at Risk'!AW$5","v":1.6723004405963286E-3},{"$f":"'Population at Risk'!AX217/'Population at Risk'!AX$5","v":4.8590869197822619E-3},{"$f":"'Population at Risk'!AY217/'Population at Risk'!AY$5","v":2.6348990006986742E-3},{"$f":"'Population at Risk'!AZ217/'Population at Risk'!AZ$5","v":2.1546546470010953E-3},{"$f":"'Population at Risk'!BA217/'Population at Risk'!BA$5","v":4.0846324583076961E-4},{"$f":"'Population at Risk'!BB217/'Population at Risk'!BB$5","v":2.6422543311607934E-3},{"$f":"'Population at Risk'!BC217/'Population at Risk'!BC$5","v":0},215]
[null,"Female 30-34",{"$f":"'Population at Risk'!C218/'Population at Risk'!C$5","v":9.5936913445786552E-3},{"$f":"'Population at Risk'!D218/'Population at Risk'!D$5","v":8.6458693616974676E-3},{"$f":"'Population at Risk'!E218/'Population at Risk'!E$5","v":7.7371960584640175E-3},{"$f":"'Population at Risk'!F218/'Population at Risk'!F$5","v":2.5058868516565388E-3},{"$f":"'Population at Risk'!G218/'Population at Risk'!G$5","v":7.20177534410725E-4},{"$f":"'Population at Risk'!H218/'Population at Risk'!H$5","v":1.5210359561709187E-3},{"$f":"'Population at Risk'!I218/'Population at Risk'!I$5","v":1.3489514265157827E-3},{"$f":"'Population at Risk'!J218/'Population at Risk'!J$5","v":3.1903960926059891E-3},{"$f":"'Population at Risk'!K218/'Population at Risk'!K$5","v":1.6830529483762258E-3},{"$f":"'Population at Risk'!L218/'Population at Risk'!L$5","v":1.3895061726741545E-3},{"$f":"'Population at Risk'!M218/'Population at Risk'!M$5","v":1.3899795532268764E-3},{"$f":"'Population at Risk'!N218/'Population at Risk'!N$5","v":2.4396421850605469E-3},{"$f":"'Population at Risk'!O218/'Population at Risk'!O$5","v":1.7804230427485369E-3},{"$f":"'Population at Risk'!P218/'Population at Risk'!P$5","v":7.1666781500037829E-3},{"$f":"'Population at Risk'!Q218/'Population at Risk'!Q$5","v":2.242519569477863E-3},{"$f":"'Population at Risk'!R218/'Population at Risk'!R$5","v":8.6249118138579835E-3},{"$f":"'Population at Risk'!S218/'Population at Risk'!S$5","v":5.2140654495448791E-3},{"$f":"'Population at Risk'!T218/'Population at Risk'!T$5","v":9.8778466612236878E-3},{"$f":"'Population at Risk'!U218/'Population at Risk'!U$5","v":0},{"$f":"'Population at Risk'!V218/'Population at Risk'!V$5","v":4.1849527639154296E-3},{"$f":"'Population at Risk'!W218/'Population at Risk'!W$5","v":3.3965616420564807E-3},{"$f":"'Population at Risk'!X218/'Population at Risk'!X$5","v":3.3968942119795369E-3},{"$f":"'Population at Risk'!Y218/'Population at Risk'!Y$5","v":3.6112143492822335E-3},{"$f":"'Population at Risk'!Z218/'Population at Risk'!Z$5","v":2.5192276118444624E-3},{"$f":"'Population at Risk'!AA218/'Population at Risk'!AA$5","v":2.495899567272183E-3},{"$f":"'Population at Risk'!AB218/'Population at Risk'!AB$5","v":7.8069600280201981E-3},{"$f":"'Population at Risk'!AC218/'Population at Risk'!AC$5","v":3.015173151260746E-3},{"$f":"'Population at Risk'!AD218/'Population at Risk'!AD$5","v":1.4021031969690288E-3},{"$f":"'Population at Risk'!AE218/'Population at Risk'!AE$5","v":1.6492838675291762E-3},{"$f":"'Population at Risk'!AF218/'Population at Risk'!AF$5","v":1.1482179040878597E-3},{"$f":"'Population at Risk'!AG218/'Population at Risk'!AG$5","v":1.6492838675291762E-3},{"$f":"'Population at Risk'!AH218/'Population at Risk'!AH$5","v":1.6530419940519897E-3},{"$f":"'Population at Risk'!AI218/'Population at Risk'!AI$5","v":6.595169198941906E-3},{"$f":"'Population at Risk'!AJ218/'Population at Risk'!AJ$5","v":2.6069216511615521E-3},{"$f":"'Population at Risk'!AK218/'Population at Risk'!AK$5","v":3.4926552513858218E-3},{"$f":"'Population at Risk'!AL218/'Population at Risk'!AL$5","v":1.0580265320318152E-3},{"$f":"'Population at Risk'!AM218/'Population at Risk'!AM$5","v":1.3721590148800737E-3},{"$f":"'Population at Risk'!AN218/'Population at Risk'!AN$5","v":1.0478589396259426E-3},{"$f":"'Population at Risk'!AO218/'Population at Risk'!AO$5","v":1.0488836018473541E-3},{"$f":"'Population at Risk'!AP218/'Population at Risk'!AP$5","v":2.6893223707553917E-3},{"$f":"'Population at Risk'!AQ218/'Population at Risk'!AQ$5","v":2.4019271427615564E-3},{"$f":"'Population at Risk'!AR218/'Population at Risk'!AR$5","v":3.5308256194867484E-3},{"$f":"'Population at Risk'!AS218/'Population at Risk'!AS$5","v":1.3487385156409971E-3},{"$f":"'Population at Risk'!AT218/'Population at Risk'!AT$5","v":0},{"$f":"'Population at Risk'!AU218/'Population at Risk'!AU$5","v":0},{"$f":"'Population at Risk'!AV218/'Population at Risk'!AV$5","v":1.8094235075034918E-3},{"$f":"'Population at Risk'!AW218/'Population at Risk'!AW$5","v":1.9749071869899497E-3},{"$f":"'Population at Risk'!AX218/'Population at Risk'!AX$5","v":3.7831964729997929E-3},{"$f":"'Population at Risk'!AY218/'Population at Risk'!AY$5","v":2.8686946038990412E-3},{"$f":"'Population at Risk'!AZ218/'Population at Risk'!AZ$5","v":2.4354583358982499E-3},{"$f":"'Population at Risk'!BA218/'Population at Risk'!BA$5","v":4.9255861997239865E-4},{"$f":"'Population at Risk'!BB218/'Population at Risk'!BB$5","v":3.1139587956499014E-3},{"$f":"'Population at Risk'!BC218/'Population at Risk'!BC$5","v":0},216]
[null,"Female 35-39",{"$f":"'Population at Risk'!C219/'Population at Risk'!C$5","v":6.86826657051342E-3},{"$f":"'Population at Risk'!D219/'Population at Risk'!D$5","v":6.8165273416230365E-3},{"$f":"'Population at Risk'!E219/'Population at Risk'!E$5","v":6.7515820767341875E-3},{"$f":"'Population at Risk'!F219/'Population at Risk'!F$5","v":2.3493388858724911E-3},{"$f":"'Population at Risk'!G219/'Population at Risk'!G$5","v":8.6658725294477303E-4},{"$f":"'Population at Risk'!H219/'Population at Risk'!H$5","v":1.4735276272883529E-3},{"$f":"'Population at Risk'!I219/'Population at Risk'!I$5","v":1.2062406647047066E-3},{"$f":"'Population at Risk'!J219/'Population at Risk'!J$5","v":3.1209487355593436E-3},{"$f":"'Population at Risk'!K219/'Population at Risk'!K$5","v":1.857641326077788E-3},{"$f":"'Population at Risk'!L219/'Population at Risk'!L$5","v":1.0957662758618674E-3},{"$f":"'Population at Risk'!M219/'Population at Risk'!M$5","v":1.0961395843476606E-3},{"$f":"'Population at Risk'!N219/'Population at Risk'!N$5","v":1.8084769670931159E-3},{"$f":"'Population at Risk'!O219/'Population at Risk'!O$5","v":1.4645014887248234E-3},{"$f":"'Population at Risk'!P219/'Population at Risk'!P$5","v":8.2464833509619893E-3},{"$f":"'Population at Risk'!Q219/'Population at Risk'!Q$5","v":2.3445956125862223E-3},{"$f":"'Population at Risk'!R219/'Population at Risk'!R$5","v":1.0676448682952198E-2},{"$f":"'Population at Risk'!S219/'Population at Risk'!S$5","v":4.3310718784378456E-3},{"$f":"'Population at Risk'!T219/'Population at Risk'!T$5","v":7.6633728255924563E-3},{"$f":"'Population at Risk'!U219/'Population at Risk'!U$5","v":0},{"$f":"'Population at Risk'!V219/'Population at Risk'!V$5","v":3.4998797510784781E-3},{"$f":"'Population at Risk'!W219/'Population at Risk'!W$5","v":3.0656378085722477E-3},{"$f":"'Population at Risk'!X219/'Population at Risk'!X$5","v":3.0659379765178227E-3},{"$f":"'Population at Risk'!Y219/'Population at Risk'!Y$5","v":3.2231061637063145E-3},{"$f":"'Population at Risk'!Z219/'Population at Risk'!Z$5","v":1.5935532590081545E-3},{"$f":"'Population at Risk'!AA219/'Population at Risk'!AA$5","v":2.3324816762999262E-3},{"$f":"'Population at Risk'!AB219/'Population at Risk'!AB$5","v":6.0697341804389114E-3},{"$f":"'Population at Risk'!AC219/'Population at Risk'!AC$5","v":2.7651943457220824E-3},{"$f":"'Population at Risk'!AD219/'Population at Risk'!AD$5","v":1.2649944327956047E-3},{"$f":"'Population at Risk'!AE219/'Population at Risk'!AE$5","v":1.4034805802812648E-3},{"$f":"'Population at Risk'!AF219/'Population at Risk'!AF$5","v":1.1938251840893845E-3},{"$f":"'Population at Risk'!AG219/'Population at Risk'!AG$5","v":1.4034805802812648E-3},{"$f":"'Population at Risk'!AH219/'Population at Risk'!AH$5","v":1.6294546315993991E-3},{"$f":"'Population at Risk'!AI219/'Population at Risk'!AI$5","v":5.3569704275672984E-3},{"$f":"'Population at Risk'!AJ219/'Population at Risk'!AJ$5","v":2.3416297481064939E-3},{"$f":"'Population at Risk'!AK219/'Population at Risk'!AK$5","v":2.2359465669882376E-3},{"$f":"'Population at Risk'!AL219/'Population at Risk'!AL$5","v":1.0197867396862031E-3},{"$f":"'Population at Risk'!AM219/'Population at Risk'!AM$5","v":1.3198723287717513E-3},{"$f":"'Population at Risk'!AN219/'Population at Risk'!AN$5","v":1.2716620042177889E-3},{"$f":"'Population at Risk'!AO219/'Population at Risk'!AO$5","v":1.2729055151187805E-3},{"$f":"'Population at Risk'!AP219/'Population at Risk'!AP$5","v":2.2220572057227469E-3},{"$f":"'Population at Risk'!AQ219/'Population at Risk'!AQ$5","v":2.399534013886716E-3},{"$f":"'Population at Risk'!AR219/'Population at Risk'!AR$5","v":3.0153508837495145E-3},{"$f":"'Population at Risk'!AS219/'Population at Risk'!AS$5","v":1.206050278490588E-3},{"$f":"'Population at Risk'!AT219/'Population at Risk'!AT$5","v":0},{"$f":"'Population at Risk'!AU219/'Population at Risk'!AU$5","v":0},{"$f":"'Population at Risk'!AV219/'Population at Risk'!AV$5","v":2.0456798977327084E-3},{"$f":"'Population at Risk'!AW219/'Population at Risk'!AW$5","v":1.9831719429321943E-3},{"$f":"'Population at Risk'!AX219/'Population at Risk'!AX$5","v":3.5764103754927965E-3},{"$f":"'Population at Risk'!AY219/'Population at Risk'!AY$5","v":2.4888108254753484E-3},{"$f":"'Population at Risk'!AZ219/'Population at Risk'!AZ$5","v":2.0152537913121879E-3},{"$f":"'Population at Risk'!BA219/'Population at Risk'!BA$5","v":6.0233146706622023E-4},{"$f":"'Population at Risk'!BB219/'Population at Risk'!BB$5","v":2.9816804388395199E-3},{"$f":"'Population at Risk'!BC219/'Population at Risk'!BC$5","v":0},217]
[null,"Female 40-44",{"$f":"'Population at Risk'!C220/'Population at Risk'!C$5","v":6.3290964586262101E-3},{"$f":"'Population at Risk'!D220/'Population at Risk'!D$5","v":6.778609595762132E-3},{"$f":"'Population at Risk'!E220/'Population at Risk'!E$5","v":7.1832474733224076E-3},{"$f":"'Population at Risk'!F220/'Population at Risk'!F$5","v":2.8968369914497325E-3},{"$f":"'Population at Risk'!G220/'Population at Risk'!G$5","v":1.0007019468528926E-3},{"$f":"'Population at Risk'!H220/'Population at Risk'!H$5","v":1.8786580941583867E-3},{"$f":"'Population at Risk'!I220/'Population at Risk'!I$5","v":1.865600513578662E-3},{"$f":"'Population at Risk'!J220/'Population at Risk'!J$5","v":3.9690326310917743E-3},{"$f":"'Population at Risk'!K220/'Population at Risk'!K$5","v":2.3938676882445721E-3},{"$f":"'Population at Risk'!L220/'Population at Risk'!L$5","v":1.1839313785174199E-3},{"$f":"'Population at Risk'!M220/'Population at Risk'!M$5","v":1.1843347233181621E-3},{"$f":"'Population at Risk'!N220/'Population at Risk'!N$5","v":2.1246442690324718E-3},{"$f":"'Population at Risk'!O220/'Population at Risk'!O$5","v":1.9140019456601652E-3},{"$f":"'Population at Risk'!P220/'Population at Risk'!P$5","v":9.5767257209255739E-3},{"$f":"'Population at Risk'!Q220/'Population at Risk'!Q$5","v":2.7239938117138113E-3},{"$f":"'Population at Risk'!R220/'Population at Risk'!R$5","v":1.2055257064345676E-2},{"$f":"'Population at Risk'!S220/'Population at Risk'!S$5","v":4.5374373396786594E-3},{"$f":"'Population at Risk'!T220/'Population at Risk'!T$5","v":7.3037914058810592E-3},{"$f":"'Population at Risk'!U220/'Population at Risk'!U$5","v":0},{"$f":"'Population at Risk'!V220/'Population at Risk'!V$5","v":4.2621334503402412E-3},{"$f":"'Population at Risk'!W220/'Population at Risk'!W$5","v":3.5215394626163547E-3},{"$f":"'Population at Risk'!X220/'Population at Risk'!X$5","v":3.5218842695804381E-3},{"$f":"'Population at Risk'!Y220/'Population at Risk'!Y$5","v":4.0005727789684566E-3},{"$f":"'Population at Risk'!Z220/'Population at Risk'!Z$5","v":1.4839521194722151E-3},{"$f":"'Population at Risk'!AA220/'Population at Risk'!AA$5","v":2.5451325051896352E-3},{"$f":"'Population at Risk'!AB220/'Population at Risk'!AB$5","v":6.1558104227350287E-3},{"$f":"'Population at Risk'!AC220/'Population at Risk'!AC$5","v":2.99143373872446E-3},{"$f":"'Population at Risk'!AD220/'Population at Risk'!AD$5","v":1.4607326013806059E-3},{"$f":"'Population at Risk'!AE220/'Population at Risk'!AE$5","v":1.620638033963753E-3},{"$f":"'Population at Risk'!AF220/'Population at Risk'!AF$5","v":1.5591768568063943E-3},{"$f":"'Population at Risk'!AG220/'Population at Risk'!AG$5","v":1.620638033963753E-3},{"$f":"'Population at Risk'!AH220/'Population at Risk'!AH$5","v":1.8196581315477053E-3},{"$f":"'Population at Risk'!AI220/'Population at Risk'!AI$5","v":5.3830326454811601E-3},{"$f":"'Population at Risk'!AJ220/'Population at Risk'!AJ$5","v":2.4250840577874381E-3},{"$f":"'Population at Risk'!AK220/'Population at Risk'!AK$5","v":2.9501309741343574E-3},{"$f":"'Population at Risk'!AL220/'Population at Risk'!AL$5","v":1.3070051568763045E-3},{"$f":"'Population at Risk'!AM220/'Population at Risk'!AM$5","v":1.4205189638807939E-3},{"$f":"'Population at Risk'!AN220/'Population at Risk'!AN$5","v":9.2680451154855789E-4},{"$f":"'Population at Risk'!AO220/'Population at Risk'!AO$5","v":9.277107991543654E-4},{"$f":"'Population at Risk'!AP220/'Population at Risk'!AP$5","v":2.78808342260991E-3},{"$f":"'Population at Risk'!AQ220/'Population at Risk'!AQ$5","v":2.7360853584468443E-3},{"$f":"'Population at Risk'!AR220/'Population at Risk'!AR$5","v":3.2689283188005488E-3},{"$f":"'Population at Risk'!AS220/'Population at Risk'!AS$5","v":1.8653060577298159E-3},{"$f":"'Population at Risk'!AT220/'Population at Risk'!AT$5","v":0},{"$f":"'Population at Risk'!AU220/'Population at Risk'!AU$5","v":0},{"$f":"'Population at Risk'!AV220/'Population at Risk'!AV$5","v":2.5481275919126715E-3},{"$f":"'Population at Risk'!AW220/'Population at Risk'!AW$5","v":2.2741885845221012E-3},{"$f":"'Population at Risk'!AX220/'Population at Risk'!AX$5","v":4.5297437405689518E-3},{"$f":"'Population at Risk'!AY220/'Population at Risk'!AY$5","v":2.9411025916751335E-3},{"$f":"'Population at Risk'!AZ220/'Population at Risk'!AZ$5","v":2.4646751657105984E-3},{"$f":"'Population at Risk'!BA220/'Population at Risk'!BA$5","v":5.9269416359316077E-4},{"$f":"'Population at Risk'!BB220/'Population at Risk'!BB$5","v":3.7356358933170694E-3},{"$f":"'Population at Risk'!BC220/'Population at Risk'!BC$5","v":0},218]
[null,"Female 45-49",{"$f":"'Population at Risk'!C221/'Population at Risk'!C$5","v":1.0430840823138934E-2},{"$f":"'Population at Risk'!D221/'Population at Risk'!D$5","v":1.1222406164004682E-2},{"$f":"'Population at Risk'!E221/'Population at Risk'!E$5","v":1.1936676321136132E-2},{"$f":"'Population at Risk'!F221/'Population at Risk'!F$5","v":5.1545530600220872E-3},{"$f":"'Population at Risk'!G221/'Population at Risk'!G$5","v":2.1079607737971686E-3},{"$f":"'Population at Risk'!H221/'Population at Risk'!H$5","v":3.6924219720209472E-3},{"$f":"'Population at Risk'!I221/'Population at Risk'!I$5","v":2.959893458575277E-3},{"$f":"'Population at Risk'!J221/'Population at Risk'!J$5","v":7.9875820022636476E-3},{"$f":"'Population at Risk'!K221/'Population at Risk'!K$5","v":4.3725796924730317E-3},{"$f":"'Population at Risk'!L221/'Population at Risk'!L$5","v":2.446797266750917E-3},{"$f":"'Population at Risk'!M221/'Population at Risk'!M$5","v":2.4476308479651006E-3},{"$f":"'Population at Risk'!N221/'Population at Risk'!N$5","v":4.17955848928106E-3},{"$f":"'Population at Risk'!O221/'Population at Risk'!O$5","v":3.3948407797596831E-3},{"$f":"'Population at Risk'!P221/'Population at Risk'!P$5","v":1.7853789356254549E-2},{"$f":"'Population at Risk'!Q221/'Population at Risk'!Q$5","v":5.153613862953225E-3},{"$f":"'Population at Risk'!R221/'Population at Risk'!R$5","v":2.1881585214971359E-2},{"$f":"'Population at Risk'!S221/'Population at Risk'!S$5","v":7.7051815512348071E-3},{"$f":"'Population at Risk'!T221/'Population at Risk'!T$5","v":1.205482738162464E-2},{"$f":"'Population at Risk'!U221/'Population at Risk'!U$5","v":0},{"$f":"'Population at Risk'!V221/'Population at Risk'!V$5","v":7.1046665837050209E-3},{"$f":"'Population at Risk'!W221/'Population at Risk'!W$5","v":5.9830201280717844E-3},{"$f":"'Population at Risk'!X221/'Population at Risk'!X$5","v":5.9836059477192177E-3},{"$f":"'Population at Risk'!Y221/'Population at Risk'!Y$5","v":7.2836443546321567E-3},{"$f":"'Population at Risk'!Z221/'Population at Risk'!Z$5","v":2.5936704081075635E-3},{"$f":"'Population at Risk'!AA221/'Population at Risk'!AA$5","v":4.7280683409824014E-3},{"$f":"'Population at Risk'!AB221/'Population at Risk'!AB$5","v":1.0249762825249271E-2},{"$f":"'Population at Risk'!AC221/'Population at Risk'!AC$5","v":5.5466479387152367E-3},{"$f":"'Population at Risk'!AD221/'Population at Risk'!AD$5","v":2.591259594706654E-3},{"$f":"'Population at Risk'!AE221/'Population at Risk'!AE$5","v":2.7452073539724572E-3},{"$f":"'Population at Risk'!AF221/'Population at Risk'!AF$5","v":3.1383729833507077E-3},{"$f":"'Population at Risk'!AG221/'Population at Risk'!AG$5","v":2.7452073539724572E-3},{"$f":"'Population at Risk'!AH221/'Population at Risk'!AH$5","v":3.397286621375545E-3},{"$f":"'Population at Risk'!AI221/'Population at Risk'!AI$5","v":9.1715882112503172E-3},{"$f":"'Population at Risk'!AJ221/'Population at Risk'!AJ$5","v":4.2706280343255808E-3},{"$f":"'Population at Risk'!AK221/'Population at Risk'!AK$5","v":5.2384560814148721E-3},{"$f":"'Population at Risk'!AL221/'Population at Risk'!AL$5","v":2.6825766928601745E-3},{"$f":"'Population at Risk'!AM221/'Population at Risk'!AM$5","v":2.8299558030356929E-3},{"$f":"'Population at Risk'!AN221/'Population at Risk'!AN$5","v":2.502283604770319E-3},{"$f":"'Population at Risk'!AO221/'Population at Risk'!AO$5","v":2.5047304946904264E-3},{"$f":"'Population at Risk'!AP221/'Population at Risk'!AP$5","v":5.1318971875503432E-3},{"$f":"'Population at Risk'!AQ221/'Population at Risk'!AQ$5","v":5.4760771478511473E-3},{"$f":"'Population at Risk'!AR221/'Population at Risk'!AR$5","v":5.791530468653952E-3},{"$f":"'Population at Risk'!AS221/'Population at Risk'!AS$5","v":2.9594262857081518E-3},{"$f":"'Population at Risk'!AT221/'Population at Risk'!AT$5","v":0},{"$f":"'Population at Risk'!AU221/'Population at Risk'!AU$5","v":0},{"$f":"'Population at Risk'!AV221/'Population at Risk'!AV$5","v":5.2714946057572125E-3},{"$f":"'Population at Risk'!AW221/'Population at Risk'!AW$5","v":4.04770797730523E-3},{"$f":"'Population at Risk'!AX221/'Population at Risk'!AX$5","v":9.3781668033048899E-3},{"$f":"'Population at Risk'!AY221/'Population at Risk'!AY$5","v":5.2135816457993638E-3},{"$f":"'Population at Risk'!AZ221/'Population at Risk'!AZ$5","v":4.5823007548351459E-3},{"$f":"'Population at Risk'!BA221/'Population at Risk'!BA$5","v":1.3500806022910036E-3},{"$f":"'Population at Risk'!BB221/'Population at Risk'!BB$5","v":6.9496414013807154E-3},{"$f":"'Population at Risk'!BC221/'Population at Risk'!BC$5","v":0},219]
[null,"Female 50-54",{"$f":"'Population at Risk'!C222/'Population at Risk'!C$5","v":1.1113070452009573E-2},{"$f":"'Population at Risk'!D222/'Population at Risk'!D$5","v":1.1339795349820631E-2},{"$f":"'Population at Risk'!E222/'Population at Risk'!E$5","v":1.1524731241575183E-2},{"$f":"'Population at Risk'!F222/'Population at Risk'!F$5","v":5.2873697646361531E-3},{"$f":"'Population at Risk'!G222/'Population at Risk'!G$5","v":2.2037771726061309E-3},{"$f":"'Population at Risk'!H222/'Population at Risk'!H$5","v":3.8015667096708652E-3},{"$f":"'Population at Risk'!I222/'Population at Risk'!I$5","v":2.6657052649237791E-3},{"$f":"'Population at Risk'!J222/'Population at Risk'!J$5","v":7.8358821249379686E-3},{"$f":"'Population at Risk'!K222/'Population at Risk'!K$5","v":4.6542034692763799E-3},{"$f":"'Population at Risk'!L222/'Population at Risk'!L$5","v":2.9439552771266019E-3},{"$f":"'Population at Risk'!M222/'Population at Risk'!M$5","v":2.9449582314161771E-3},{"$f":"'Population at Risk'!N222/'Population at Risk'!N$5","v":4.4487338018225795E-3},{"$f":"'Population at Risk'!O222/'Population at Risk'!O$5","v":3.243335488762144E-3},{"$f":"'Population at Risk'!P222/'Population at Risk'!P$5","v":1.9486902213852735E-2},{"$f":"'Population at Risk'!Q222/'Population at Risk'!Q$5","v":4.8434732079483574E-3},{"$f":"'Population at Risk'!R222/'Population at Risk'!R$5","v":2.1910427374745047E-2},{"$f":"'Population at Risk'!S222/'Population at Risk'!S$5","v":7.5992763144060033E-3},{"$f":"'Population at Risk'!T222/'Population at Risk'!T$5","v":1.2274408394365331E-2},{"$f":"'Population at Risk'!U222/'Population at Risk'!U$5","v":0},{"$f":"'Population at Risk'!V222/'Population at Risk'!V$5","v":6.537297450165327E-3},{"$f":"'Population at Risk'!W222/'Population at Risk'!W$5","v":5.8009012172207577E-3},{"$f":"'Population at Risk'!X222/'Population at Risk'!X$5","v":5.8014692049314998E-3},{"$f":"'Population at Risk'!Y222/'Population at Risk'!Y$5","v":6.919985387213382E-3},{"$f":"'Population at Risk'!Z222/'Population at Risk'!Z$5","v":2.6351691346372845E-3},{"$f":"'Population at Risk'!AA222/'Population at Risk'!AA$5","v":4.9431431726036472E-3},{"$f":"'Population at Risk'!AB222/'Population at Risk'!AB$5","v":1.0294644107461637E-2},{"$f":"'Population at Risk'!AC222/'Population at Risk'!AC$5","v":5.7944960650389791E-3},{"$f":"'Population at Risk'!AD222/'Population at Risk'!AD$5","v":2.7246665022875372E-3},{"$f":"'Population at Risk'!AE222/'Population at Risk'!AE$5","v":2.8914939136512616E-3},{"$f":"'Population at Risk'!AF222/'Population at Risk'!AF$5","v":3.1782000516673405E-3},{"$f":"'Population at Risk'!AG222/'Population at Risk'!AG$5","v":2.8914939136512616E-3},{"$f":"'Population at Risk'!AH222/'Population at Risk'!AH$5","v":3.5590128078066049E-3},{"$f":"'Population at Risk'!AI222/'Population at Risk'!AI$5","v":9.1284946747184001E-3},{"$f":"'Population at Risk'!AJ222/'Population at Risk'!AJ$5","v":4.027460601766117E-3},{"$f":"'Population at Risk'!AK222/'Population at Risk'!AK$5","v":4.91530456989902E-3},{"$f":"'Population at Risk'!AL222/'Population at Risk'!AL$5","v":2.592657921032459E-3},{"$f":"'Population at Risk'!AM222/'Population at Risk'!AM$5","v":2.7845976264016712E-3},{"$f":"'Population at Risk'!AN222/'Population at Risk'!AN$5","v":2.2353733535948181E-3},{"$f":"'Population at Risk'!AO222/'Population at Risk'!AO$5","v":2.2375592419234475E-3},{"$f":"'Population at Risk'!AP222/'Population at Risk'!AP$5","v":5.6576037287140368E-3},{"$f":"'Population at Risk'!AQ222/'Population at Risk'!AQ$5","v":5.9214806631447776E-3},{"$f":"'Population at Risk'!AR222/'Population at Risk'!AR$5","v":5.8806522609560806E-3},{"$f":"'Population at Risk'!AS222/'Population at Risk'!AS$5","v":2.6652845250596741E-3},{"$f":"'Population at Risk'!AT222/'Population at Risk'!AT$5","v":0},{"$f":"'Population at Risk'!AU222/'Population at Risk'!AU$5","v":0},{"$f":"'Population at Risk'!AV222/'Population at Risk'!AV$5","v":5.9134564781210888E-3},{"$f":"'Population at Risk'!AW222/'Population at Risk'!AW$5","v":4.4410520207024268E-3},{"$f":"'Population at Risk'!AX222/'Population at Risk'!AX$5","v":8.9852268534457453E-3},{"$f":"'Population at Risk'!AY222/'Population at Risk'!AY$5","v":5.3003968817992462E-3},{"$f":"'Population at Risk'!AZ222/'Population at Risk'!AZ$5","v":4.8901687713997933E-3},{"$f":"'Population at Risk'!BA222/'Population at Risk'!BA$5","v":1.529096814749479E-3},{"$f":"'Population at Risk'!BB222/'Population at Risk'!BB$5","v":6.5224454470499613E-3},{"$f":"'Population at Risk'!BC222/'Population at Risk'!BC$5","v":0},220]
[null,"Female 55-59",{"$f":"'Population at Risk'!C223/'Population at Risk'!C$5","v":1.3543887013400917E-2},{"$f":"'Population at Risk'!D223/'Population at Risk'!D$5","v":1.3185684644507548E-2},{"$f":"'Population at Risk'!E223/'Population at Risk'!E$5","v":1.2818292182647904E-2},{"$f":"'Population at Risk'!F223/'Population at Risk'!F$5","v":6.4881491918549377E-3},{"$f":"'Population at Risk'!G223/'Population at Risk'!G$5","v":3.1374924335660329E-3},{"$f":"'Population at Risk'!H223/'Population at Risk'!H$5","v":5.2102656042318047E-3},{"$f":"'Population at Risk'!I223/'Population at Risk'!I$5","v":3.103294927721999E-3},{"$f":"'Population at Risk'!J223/'Population at Risk'!J$5","v":9.0090003049377761E-3},{"$f":"'Population at Risk'!K223/'Population at Risk'!K$5","v":5.1988247647060497E-3},{"$f":"'Population at Risk'!L223/'Population at Risk'!L$5","v":3.4383958699546842E-3},{"$f":"'Population at Risk'!M223/'Population at Risk'!M$5","v":3.4395672715428205E-3},{"$f":"'Population at Risk'!N223/'Population at Risk'!N$5","v":5.8144033038433716E-3},{"$f":"'Population at Risk'!O223/'Population at Risk'!O$5","v":4.1434288694967899E-3},{"$f":"'Population at Risk'!P223/'Population at Risk'!P$5","v":2.3167218492018398E-2},{"$f":"'Population at Risk'!Q223/'Population at Risk'!Q$5","v":5.3772117857575248E-3},{"$f":"'Population at Risk'!R223/'Population at Risk'!R$5","v":2.5810244712640446E-2},{"$f":"'Population at Risk'!S223/'Population at Risk'!S$5","v":9.0875474491356051E-3},{"$f":"'Population at Risk'!T223/'Population at Risk'!T$5","v":1.5129940689158636E-2},{"$f":"'Population at Risk'!U223/'Population at Risk'!U$5","v":0},{"$f":"'Population at Risk'!V223/'Population at Risk'!V$5","v":7.0840050873391402E-3},{"$f":"'Population at Risk'!W223/'Population at Risk'!W$5","v":7.0759167376981073E-3},{"$f":"'Population at Risk'!X223/'Population at Risk'!X$5","v":7.0766095668980452E-3},{"$f":"'Population at Risk'!Y223/'Population at Risk'!Y$5","v":7.7308844560919198E-3},{"$f":"'Population at Risk'!Z223/'Population at Risk'!Z$5","v":3.1270619004268468E-3},{"$f":"'Population at Risk'!AA223/'Population at Risk'!AA$5","v":5.8066053125220892E-3},{"$f":"'Population at Risk'!AB223/'Population at Risk'!AB$5","v":1.1952458881039957E-2},{"$f":"'Population at Risk'!AC223/'Population at Risk'!AC$5","v":6.8426079346755025E-3},{"$f":"'Population at Risk'!AD223/'Population at Risk'!AD$5","v":3.3005153078016626E-3},{"$f":"'Population at Risk'!AE223/'Population at Risk'!AE$5","v":3.3201898305860976E-3},{"$f":"'Population at Risk'!AF223/'Population at Risk'!AF$5","v":3.6550675156709254E-3},{"$f":"'Population at Risk'!AG223/'Population at Risk'!AG$5","v":3.3201898305860976E-3},{"$f":"'Population at Risk'!AH223/'Population at Risk'!AH$5","v":4.1228250830006611E-3},{"$f":"'Population at Risk'!AI223/'Population at Risk'!AI$5","v":1.0867595967411934E-2},{"$f":"'Population at Risk'!AJ223/'Population at Risk'!AJ$5","v":4.9899086921397461E-3},{"$f":"'Population at Risk'!AK223/'Population at Risk'!AK$5","v":5.6066109939289744E-3},{"$f":"'Population at Risk'!AL223/'Population at Risk'!AL$5","v":3.5174419858623402E-3},{"$f":"'Population at Risk'!AM223/'Population at Risk'!AM$5","v":3.2062593830983221E-3},{"$f":"'Population at Risk'!AN223/'Population at Risk'!AN$5","v":2.3316263866514707E-3},{"$f":"'Population at Risk'!AO223/'Population at Risk'!AO$5","v":2.3339063972354335E-3},{"$f":"'Population at Risk'!AP223/'Population at Risk'!AP$5","v":6.9252809178614819E-3},{"$f":"'Population at Risk'!AQ223/'Population at Risk'!AQ$5","v":7.0109173903437046E-3},{"$f":"'Population at Risk'!AR223/'Population at Risk'!AR$5","v":7.0022604245765299E-3},{"$f":"'Population at Risk'!AS223/'Population at Risk'!AS$5","v":3.1028051211768612E-3},{"$f":"'Population at Risk'!AT223/'Population at Risk'!AT$5","v":0},{"$f":"'Population at Risk'!AU223/'Population at Risk'!AU$5","v":0},{"$f":"'Population at Risk'!AV223/'Population at Risk'!AV$5","v":8.4810854645567275E-3},{"$f":"'Population at Risk'!AW223/'Population at Risk'!AW$5","v":5.1662892162556507E-3},{"$f":"'Population at Risk'!AX223/'Population at Risk'!AX$5","v":1.0420056546461396E-2},{"$f":"'Population at Risk'!AY223/'Population at Risk'!AY$5","v":6.5495895653773376E-3},{"$f":"'Population at Risk'!AZ223/'Population at Risk'!AZ$5","v":6.1184045582098265E-3},{"$f":"'Population at Risk'!BA223/'Population at Risk'!BA$5","v":1.6720061436479303E-3},{"$f":"'Population at Risk'!BB223/'Population at Risk'!BB$5","v":6.573696489833007E-3},{"$f":"'Population at Risk'!BC223/'Population at Risk'!BC$5","v":0},221]
[null,"Female 60-64",{"$f":"'Population at Risk'!C224/'Population at Risk'!C$5","v":1.0676199540570242E-2},{"$f":"'Population at Risk'!D224/'Population at Risk'!D$5","v":1.1299488266549315E-2},{"$f":"'Population at Risk'!E224/'Population at Risk'!E$5","v":1.1855957934701363E-2},{"$f":"'Population at Risk'!F224/'Population at Risk'!F$5","v":6.0544939759468955E-3},{"$f":"'Population at Risk'!G224/'Population at Risk'!G$5","v":2.3057410837280575E-3},{"$f":"'Population at Risk'!H224/'Population at Risk'!H$5","v":4.8614510061956865E-3},{"$f":"'Population at Risk'!I224/'Population at Risk'!I$5","v":2.8737144356201162E-3},{"$f":"'Population at Risk'!J224/'Population at Risk'!J$5","v":8.5089277004792314E-3},{"$f":"'Population at Risk'!K224/'Population at Risk'!K$5","v":6.0392362868201856E-3},{"$f":"'Population at Risk'!L224/'Population at Risk'!L$5","v":3.309857706591892E-3},{"$f":"'Population at Risk'!M224/'Population at Risk'!M$5","v":3.3109853174664535E-3},{"$f":"'Population at Risk'!N224/'Population at Risk'!N$5","v":4.3366026861073759E-3},{"$f":"'Population at Risk'!O224/'Population at Risk'!O$5","v":3.714288022298908E-3},{"$f":"'Population at Risk'!P224/'Population at Risk'!P$5","v":2.0753749839055546E-2},{"$f":"'Population at Risk'!Q224/'Population at Risk'!Q$5","v":4.6985345700793907E-3},{"$f":"'Population at Risk'!R224/'Population at Risk'!R$5","v":2.240014853007646E-2},{"$f":"'Population at Risk'!S224/'Population at Risk'!S$5","v":7.9172619834126136E-3},{"$f":"'Population at Risk'!T224/'Population at Risk'!T$5","v":1.287874197810299E-2},{"$f":"'Population at Risk'!U224/'Population at Risk'!U$5","v":0},{"$f":"'Population at Risk'!V224/'Population at Risk'!V$5","v":5.9055444279500118E-3},{"$f":"'Population at Risk'!W224/'Population at Risk'!W$5","v":6.5601634544644235E-3},{"$f":"'Population at Risk'!X224/'Population at Risk'!X$5","v":6.5608057843512917E-3},{"$f":"'Population at Risk'!Y224/'Population at Risk'!Y$5","v":6.892595780130145E-3},{"$f":"'Population at Risk'!Z224/'Population at Risk'!Z$5","v":2.7472437797368128E-3},{"$f":"'Population at Risk'!AA224/'Population at Risk'!AA$5","v":5.0601391244719431E-3},{"$f":"'Population at Risk'!AB224/'Population at Risk'!AB$5","v":1.038419567028305E-2},{"$f":"'Population at Risk'!AC224/'Population at Risk'!AC$5","v":6.0446856596978356E-3},{"$f":"'Population at Risk'!AD224/'Population at Risk'!AD$5","v":2.9725508237382634E-3},{"$f":"'Population at Risk'!AE224/'Population at Risk'!AE$5","v":3.192963767856593E-3},{"$f":"'Population at Risk'!AF224/'Population at Risk'!AF$5","v":4.2012270295068103E-3},{"$f":"'Population at Risk'!AG224/'Population at Risk'!AG$5","v":3.192963767856593E-3},{"$f":"'Population at Risk'!AH224/'Population at Risk'!AH$5","v":3.4612046121212455E-3},{"$f":"'Population at Risk'!AI224/'Population at Risk'!AI$5","v":9.2668954377808956E-3},{"$f":"'Population at Risk'!AJ224/'Population at Risk'!AJ$5","v":4.3085556980323111E-3},{"$f":"'Population at Risk'!AK224/'Population at Risk'!AK$5","v":5.6626771038682643E-3},{"$f":"'Population at Risk'!AL224/'Population at Risk'!AL$5","v":3.1090498451816942E-3},{"$f":"'Population at Risk'!AM224/'Population at Risk'!AM$5","v":2.5171606511266635E-3},{"$f":"'Population at Risk'!AN224/'Population at Risk'!AN$5","v":2.4636052387260821E-3},{"$f":"'Population at Risk'!AO224/'Population at Risk'!AO$5","v":2.4660143065129109E-3},{"$f":"'Population at Risk'!AP224/'Population at Risk'!AP$5","v":6.5159697482643306E-3},{"$f":"'Population at Risk'!AQ224/'Population at Risk'!AQ$5","v":5.8625322680660157E-3},{"$f":"'Population at Risk'!AR224/'Population at Risk'!AR$5","v":6.1487719821593356E-3},{"$f":"'Population at Risk'!AS224/'Population at Risk'!AS$5","v":2.8732608647632669E-3},{"$f":"'Population at Risk'!AT224/'Population at Risk'!AT$5","v":0},{"$f":"'Population at Risk'!AU224/'Population at Risk'!AU$5","v":0},{"$f":"'Population at Risk'!AV224/'Population at Risk'!AV$5","v":8.2938830022872417E-3},{"$f":"'Population at Risk'!AW224/'Population at Risk'!AW$5","v":4.5317309782522928E-3},{"$f":"'Population at Risk'!AX224/'Population at Risk'!AX$5","v":9.1765580856682117E-3},{"$f":"'Population at Risk'!AY224/'Population at Risk'!AY$5","v":5.8947536982883048E-3},{"$f":"'Population at Risk'!AZ224/'Population at Risk'!AZ$5","v":5.3491183545932687E-3},{"$f":"'Population at Risk'!BA224/'Population at Risk'!BA$5","v":1.3179342544048392E-3},{"$f":"'Population at Risk'!BB224/'Population at Risk'!BB$5","v":5.5574448240019326E-3},{"$f":"'Population at Risk'!BC224/'Population at Risk'!BC$5","v":0},222]
[null,"Female 65-69",{"$f":"'Population at Risk'!C225/'Population at Risk'!C$5","v":9.9258879243434121E-3},{"$f":"'Population at Risk'!D225/'Population at Risk'!D$5","v":1.0168968076600593E-2},{"$f":"'Population at Risk'!E225/'Population at Risk'!E$5","v":1.0372054312103413E-2},{"$f":"'Population at Risk'!F225/'Population at Risk'!F$5","v":7.1321395008686105E-3},{"$f":"'Population at Risk'!G225/'Population at Risk'!G$5","v":2.5653851526244676E-3},{"$f":"'Population at Risk'!H225/'Population at Risk'!H$5","v":5.0649248241424142E-3},{"$f":"'Population at Risk'!I225/'Population at Risk'!I$5","v":3.0497385435427128E-3},{"$f":"'Population at Risk'!J225/'Population at Risk'!J$5","v":8.7431382666975054E-3},{"$f":"'Population at Risk'!K225/'Population at Risk'!K$5","v":5.7221963853140425E-3},{"$f":"'Population at Risk'!L225/'Population at Risk'!L$5","v":3.0143708984990045E-3},{"$f":"'Population at Risk'!M225/'Population at Risk'!M$5","v":3.015397842164389E-3},{"$f":"'Population at Risk'!N225/'Population at Risk'!N$5","v":4.779388495885049E-3},{"$f":"'Population at Risk'!O225/'Population at Risk'!O$5","v":3.6341903381366561E-3},{"$f":"'Population at Risk'!P225/'Population at Risk'!P$5","v":2.0308276084709642E-2},{"$f":"'Population at Risk'!Q225/'Population at Risk'!Q$5","v":4.9273297284881789E-3},{"$f":"'Population at Risk'!R225/'Population at Risk'!R$5","v":2.0804130609148395E-2},{"$f":"'Population at Risk'!S225/'Population at Risk'!S$5","v":7.9217697813441998E-3},{"$f":"'Population at Risk'!T225/'Population at Risk'!T$5","v":1.2831352126550392E-2},{"$f":"'Population at Risk'!U225/'Population at Risk'!U$5","v":0},{"$f":"'Population at Risk'!V225/'Population at Risk'!V$5","v":5.5153976132389718E-3},{"$f":"'Population at Risk'!W225/'Population at Risk'!W$5","v":7.0512563280580335E-3},{"$f":"'Population at Risk'!X225/'Population at Risk'!X$5","v":7.0519467426659807E-3},{"$f":"'Population at Risk'!Y225/'Population at Risk'!Y$5","v":6.794324277793036E-3},{"$f":"'Population at Risk'!Z225/'Population at Risk'!Z$5","v":2.1978879152647645E-3},{"$f":"'Population at Risk'!AA225/'Population at Risk'!AA$5","v":4.568423661809237E-3},{"$f":"'Population at Risk'!AB225/'Population at Risk'!AB$5","v":9.4309338679834688E-3},{"$f":"'Population at Risk'!AC225/'Population at Risk'!AC$5","v":5.5223473713589821E-3},{"$f":"'Population at Risk'!AD225/'Population at Risk'!AD$5","v":2.9346117961736389E-3},{"$f":"'Population at Risk'!AE225/'Population at Risk'!AE$5","v":3.0395295218218019E-3},{"$f":"'Population at Risk'!AF225/'Population at Risk'!AF$5","v":4.0967250316671488E-3},{"$f":"'Population at Risk'!AG225/'Population at Risk'!AG$5","v":3.0395295218218019E-3},{"$f":"'Population at Risk'!AH225/'Population at Risk'!AH$5","v":3.0201090075478994E-3},{"$f":"'Population at Risk'!AI225/'Population at Risk'!AI$5","v":9.029621338358081E-3},{"$f":"'Population at Risk'!AJ225/'Population at Risk'!AJ$5","v":4.0047645264096971E-3},{"$f":"'Population at Risk'!AK225/'Population at Risk'!AK$5","v":5.6156417767379884E-3},{"$f":"'Population at Risk'!AL225/'Population at Risk'!AL$5","v":3.3495405623610321E-3},{"$f":"'Population at Risk'!AM225/'Population at Risk'!AM$5","v":2.1738067584380371E-3},{"$f":"'Population at Risk'!AN225/'Population at Risk'!AN$5","v":2.1608215411813079E-3},{"$f":"'Population at Risk'!AO225/'Population at Risk'!AO$5","v":2.1629345280698396E-3},{"$f":"'Population at Risk'!AP225/'Population at Risk'!AP$5","v":7.4135477601390987E-3},{"$f":"'Population at Risk'!AQ225/'Population at Risk'!AQ$5","v":5.5855276008033618E-3},{"$f":"'Population at Risk'!AR225/'Population at Risk'!AR$5","v":5.9432775565088688E-3},{"$f":"'Population at Risk'!AS225/'Population at Risk'!AS$5","v":3.0492571900347875E-3},{"$f":"'Population at Risk'!AT225/'Population at Risk'!AT$5","v":0},{"$f":"'Population at Risk'!AU225/'Population at Risk'!AU$5","v":0},{"$f":"'Population at Risk'!AV225/'Population at Risk'!AV$5","v":8.7637737465072977E-3},{"$f":"'Population at Risk'!AW225/'Population at Risk'!AW$5","v":3.9793535840417149E-3},{"$f":"'Population at Risk'!AX225/'Population at Risk'!AX$5","v":9.7138464772848557E-3},{"$f":"'Population at Risk'!AY225/'Population at Risk'!AY$5","v":6.5271360672854483E-3},{"$f":"'Population at Risk'!AZ225/'Population at Risk'!AZ$5","v":6.0977601058205249E-3},{"$f":"'Population at Risk'!BA225/'Population at Risk'!BA$5","v":8.9986670956495923E-4},{"$f":"'Population at Risk'!BB225/'Population at Risk'!BB$5","v":4.5637202324891844E-3},{"$f":"'Population at Risk'!BC225/'Population at Risk'!BC$5","v":0},223]
[null,"Female 70-74",{"$f":"'Population at Risk'!C226/'Population at Risk'!C$5","v":7.6390196387171065E-3},{"$f":"'Population at Risk'!D226/'Population at Risk'!D$5","v":7.562304846075122E-3},{"$f":"'Population at Risk'!E226/'Population at Risk'!E$5","v":7.4721630350101636E-3},{"$f":"'Population at Risk'!F226/'Population at Risk'!F$5","v":5.1322490327196414E-3},{"$f":"'Population at Risk'!G226/'Population at Risk'!G$5","v":2.109091350774266E-3},{"$f":"'Population at Risk'!H226/'Population at Risk'!H$5","v":3.9020594308444108E-3},{"$f":"'Population at Risk'!I226/'Population at Risk'!I$5","v":2.3101769467336044E-3},{"$f":"'Population at Risk'!J226/'Population at Risk'!J$5","v":6.735180241040706E-3},{"$f":"'Population at Risk'!K226/'Population at Risk'!K$5","v":3.9151870004780296E-3},{"$f":"'Population at Risk'!L226/'Population at Risk'!L$5","v":2.9029567790472962E-3},{"$f":"'Population at Risk'!M226/'Population at Risk'!M$5","v":2.9039457658626253E-3},{"$f":"'Population at Risk'!N226/'Population at Risk'!N$5","v":3.840912991491495E-3},{"$f":"'Population at Risk'!O226/'Population at Risk'!O$5","v":2.4940521928388817E-3},{"$f":"'Population at Risk'!P226/'Population at Risk'!P$5","v":1.6992025771912951E-2},{"$f":"'Population at Risk'!Q226/'Population at Risk'!Q$5","v":4.1563869818539746E-3},{"$f":"'Population at Risk'!R226/'Population at Risk'!R$5","v":1.7910598358932335E-2},{"$f":"'Population at Risk'!S226/'Population at Risk'!S$5","v":5.9307289173119414E-3},{"$f":"'Population at Risk'!T226/'Population at Risk'!T$5","v":9.5521807694114204E-3},{"$f":"'Population at Risk'!U226/'Population at Risk'!U$5","v":0},{"$f":"'Population at Risk'!V226/'Population at Risk'!V$5","v":3.9022235136442203E-3},{"$f":"'Population at Risk'!W226/'Population at Risk'!W$5","v":5.3088102059922569E-3},{"$f":"'Population at Risk'!X226/'Population at Risk'!X$5","v":5.3093300112505709E-3},{"$f":"'Population at Risk'!Y226/'Population at Risk'!Y$5","v":5.0533825068573143E-3},{"$f":"'Population at Risk'!Z226/'Population at Risk'!Z$5","v":1.3159427644991431E-3},{"$f":"'Population at Risk'!AA226/'Population at Risk'!AA$5","v":3.4764245038367125E-3},{"$f":"'Population at Risk'!AB226/'Population at Risk'!AB$5","v":7.1297503821601185E-3},{"$f":"'Population at Risk'!AC226/'Population at Risk'!AC$5","v":4.2609140635859388E-3},{"$f":"'Population at Risk'!AD226/'Population at Risk'!AD$5","v":2.3574523333253989E-3},{"$f":"'Population at Risk'!AE226/'Population at Risk'!AE$5","v":2.4229279543260917E-3},{"$f":"'Population at Risk'!AF226/'Population at Risk'!AF$5","v":3.2571492844365975E-3},{"$f":"'Population at Risk'!AG226/'Population at Risk'!AG$5","v":2.4229279543260917E-3},{"$f":"'Population at Risk'!AH226/'Population at Risk'!AH$5","v":2.2038633298322504E-3},{"$f":"'Population at Risk'!AI226/'Population at Risk'!AI$5","v":6.7428158827120112E-3},{"$f":"'Population at Risk'!AJ226/'Population at Risk'!AJ$5","v":2.8757104310122641E-3},{"$f":"'Population at Risk'!AK226/'Population at Risk'!AK$5","v":4.8812886213184048E-3},{"$f":"'Population at Risk'!AL226/'Population at Risk'!AL$5","v":2.6073128241105754E-3},{"$f":"'Population at Risk'!AM226/'Population at Risk'!AM$5","v":1.4450305295146859E-3},{"$f":"'Population at Risk'!AN226/'Population at Risk'!AN$5","v":1.9066072422188008E-3},{"$f":"'Population at Risk'!AO226/'Population at Risk'!AO$5","v":1.9084716424145646E-3},{"$f":"'Population at Risk'!AP226/'Population at Risk'!AP$5","v":6.008407061176199E-3},{"$f":"'Population at Risk'!AQ226/'Population at Risk'!AQ$5","v":4.196721009283538E-3},{"$f":"'Population at Risk'!AR226/'Population at Risk'!AR$5","v":4.5274236009157469E-3},{"$f":"'Population at Risk'!AS226/'Population at Risk'!AS$5","v":2.3098123214513517E-3},{"$f":"'Population at Risk'!AT226/'Population at Risk'!AT$5","v":0},{"$f":"'Population at Risk'!AU226/'Population at Risk'!AU$5","v":0},{"$f":"'Population at Risk'!AV226/'Population at Risk'!AV$5","v":7.0549162538967496E-3},{"$f":"'Population at Risk'!AW226/'Population at Risk'!AW$5","v":3.0612558777656112E-3},{"$f":"'Population at Risk'!AX226/'Population at Risk'!AX$5","v":7.7732949549962141E-3},{"$f":"'Population at Risk'!AY226/'Population at Risk'!AY$5","v":5.0050069880274543E-3},{"$f":"'Population at Risk'!AZ226/'Population at Risk'!AZ$5","v":4.7563824842425774E-3},{"$f":"'Population at Risk'!BA226/'Population at Risk'!BA$5","v":4.4519721420582196E-4},{"$f":"'Population at Risk'!BB226/'Population at Risk'!BB$5","v":3.232635164679839E-3},{"$f":"'Population at Risk'!BC226/'Population at Risk'!BC$5","v":0},224]
[null,"Female 75-79",{"$f":"'Population at Risk'!C227/'Population at Risk'!C$5","v":1.232164448414327E-2},{"$f":"'Population at Risk'!D227/'Population at Risk'!D$5","v":1.1353804880972372E-2},{"$f":"'Population at Risk'!E227/'Population at Risk'!E$5","v":1.0419833741058135E-2},{"$f":"'Population at Risk'!F227/'Population at Risk'!F$5","v":7.4410656707452798E-3},{"$f":"'Population at Risk'!G227/'Population at Risk'!G$5","v":2.7596677400324628E-3},{"$f":"'Population at Risk'!H227/'Population at Risk'!H$5","v":5.4652586196263031E-3},{"$f":"'Population at Risk'!I227/'Population at Risk'!I$5","v":3.7663474042749826E-3},{"$f":"'Population at Risk'!J227/'Population at Risk'!J$5","v":1.0331391577295835E-2},{"$f":"'Population at Risk'!K227/'Population at Risk'!K$5","v":5.7544644100432562E-3},{"$f":"'Population at Risk'!L227/'Population at Risk'!L$5","v":4.1422285815897039E-3},{"$f":"'Population at Risk'!M227/'Population at Risk'!M$5","v":4.1436397667244046E-3},{"$f":"'Population at Risk'!N227/'Population at Risk'!N$5","v":5.8275480676979732E-3},{"$f":"'Population at Risk'!O227/'Population at Risk'!O$5","v":3.2145837472060726E-3},{"$f":"'Population at Risk'!P227/'Population at Risk'!P$5","v":2.8612114923359928E-2},{"$f":"'Population at Risk'!Q227/'Population at Risk'!Q$5","v":6.076531954089439E-3},{"$f":"'Population at Risk'!R227/'Population at Risk'!R$5","v":2.5535521013793139E-2},{"$f":"'Population at Risk'!S227/'Population at Risk'!S$5","v":8.7651329323306781E-3},{"$f":"'Population at Risk'!T227/'Population at Risk'!T$5","v":1.5082392670587192E-2},{"$f":"'Population at Risk'!U227/'Population at Risk'!U$5","v":0},{"$f":"'Population at Risk'!V227/'Population at Risk'!V$5","v":5.3843193029607904E-3},{"$f":"'Population at Risk'!W227/'Population at Risk'!W$5","v":7.0008366416568994E-3},{"$f":"'Population at Risk'!X227/'Population at Risk'!X$5","v":7.0015221194867179E-3},{"$f":"'Population at Risk'!Y227/'Population at Risk'!Y$5","v":7.4381999946018552E-3},{"$f":"'Population at Risk'!Z227/'Population at Risk'!Z$5","v":2.1439028462393751E-3},{"$f":"'Population at Risk'!AA227/'Population at Risk'!AA$5","v":5.1356051195268499E-3},{"$f":"'Population at Risk'!AB227/'Population at Risk'!AB$5","v":1.0564788219008147E-2},{"$f":"'Population at Risk'!AC227/'Population at Risk'!AC$5","v":6.4325860653798072E-3},{"$f":"'Population at Risk'!AD227/'Population at Risk'!AD$5","v":3.2437268266685372E-3},{"$f":"'Population at Risk'!AE227/'Population at Risk'!AE$5","v":3.3892979040626788E-3},{"$f":"'Population at Risk'!AF227/'Population at Risk'!AF$5","v":4.8083254823864646E-3},{"$f":"'Population at Risk'!AG227/'Population at Risk'!AG$5","v":3.3892979040626788E-3},{"$f":"'Population at Risk'!AH227/'Population at Risk'!AH$5","v":3.0333293067677284E-3},{"$f":"'Population at Risk'!AI227/'Population at Risk'!AI$5","v":1.0285995504541854E-2},{"$f":"'Population at Risk'!AJ227/'Population at Risk'!AJ$5","v":4.1194217367288019E-3},{"$f":"'Population at Risk'!AK227/'Population at Risk'!AK$5","v":6.4822206437862052E-3},{"$f":"'Population at Risk'!AL227/'Population at Risk'!AL$5","v":3.5240289558733191E-3},{"$f":"'Population at Risk'!AM227/'Population at Risk'!AM$5","v":2.0167721784638448E-3},{"$f":"'Population at Risk'!AN227/'Population at Risk'!AN$5","v":1.8165545579173323E-3},{"$f":"'Population at Risk'!AO227/'Population at Risk'!AO$5","v":1.8183308989478291E-3},{"$f":"'Population at Risk'!AP227/'Population at Risk'!AP$5","v":9.2565778603932568E-3},{"$f":"'Population at Risk'!AQ227/'Population at Risk'!AQ$5","v":5.0553967654189107E-3},{"$f":"'Population at Risk'!AR227/'Population at Risk'!AR$5","v":6.6573337350394578E-3},{"$f":"'Population at Risk'!AS227/'Population at Risk'!AS$5","v":3.7657529452716195E-3},{"$f":"'Population at Risk'!AT227/'Population at Risk'!AT$5","v":0},{"$f":"'Population at Risk'!AU227/'Population at Risk'!AU$5","v":0},{"$f":"'Population at Risk'!AV227/'Population at Risk'!AV$5","v":1.0345571733066243E-2},{"$f":"'Population at Risk'!AW227/'Population at Risk'!AW$5","v":4.1823554364678441E-3},{"$f":"'Population at Risk'!AX227/'Population at Risk'!AX$5","v":1.2071795273745408E-2},{"$f":"'Population at Risk'!AY227/'Population at Risk'!AY$5","v":7.0935457961936125E-3},{"$f":"'Population at Risk'!AZ227/'Population at Risk'!AZ$5","v":7.1712565776017295E-3},{"$f":"'Population at Risk'!BA227/'Population at Risk'!BA$5","v":5.8269381101666432E-4},{"$f":"'Population at Risk'!BB227/'Population at Risk'!BB$5","v":3.9408739095113743E-3},{"$f":"'Population at Risk'!BC227/'Population at Risk'!BC$5","v":0},225]
[null,"Female 80-84",{"$f":"'Population at Risk'!C228/'Population at Risk'!C$5","v":9.6162933998004355E-3},{"$f":"'Population at Risk'!D228/'Population at Risk'!D$5","v":8.697967305667997E-3},{"$f":"'Population at Risk'!E228/'Population at Risk'!E$5","v":7.8167949509190728E-3},{"$f":"'Population at Risk'!F228/'Population at Risk'!F$5","v":5.8690095431230375E-3},{"$f":"'Population at Risk'!G228/'Population at Risk'!G$5","v":2.3060237279723321E-3},{"$f":"'Population at Risk'!H228/'Population at Risk'!H$5","v":4.0814271101696437E-3},{"$f":"'Population at Risk'!I228/'Population at Risk'!I$5","v":2.2598084425649897E-3},{"$f":"'Population at Risk'!J228/'Population at Risk'!J$5","v":7.0993787041845708E-3},{"$f":"'Population at Risk'!K228/'Population at Risk'!K$5","v":3.614084355088143E-3},{"$f":"'Population at Risk'!L228/'Population at Risk'!L$5","v":3.3460899405599277E-3},{"$f":"'Population at Risk'!M228/'Population at Risk'!M$5","v":3.3472298951255641E-3},{"$f":"'Population at Risk'!N228/'Population at Risk'!N$5","v":4.6805753863816725E-3},{"$f":"'Population at Risk'!O228/'Population at Risk'!O$5","v":2.5769803593304881E-3},{"$f":"'Population at Risk'!P228/'Population at Risk'!P$5","v":2.1104236203261566E-2},{"$f":"'Population at Risk'!Q228/'Population at Risk'!Q$5","v":4.3269906202642022E-3},{"$f":"'Population at Risk'!R228/'Population at Risk'!R$5","v":2.1234082982057929E-2},{"$f":"'Population at Risk'!S228/'Population at Risk'!S$5","v":6.8657710004685658E-3},{"$f":"'Population at Risk'!T228/'Population at Risk'!T$5","v":1.2721109714411904E-2},{"$f":"'Population at Risk'!U228/'Population at Risk'!U$5","v":0},{"$f":"'Population at Risk'!V228/'Population at Risk'!V$5","v":3.5420025436695701E-3},{"$f":"'Population at Risk'!W228/'Population at Risk'!W$5","v":5.1587690578479457E-3},{"$f":"'Population at Risk'!X228/'Population at Risk'!X$5","v":5.1592741720220521E-3},{"$f":"'Population at Risk'!Y228/'Population at Risk'!Y$5","v":5.0289911703719466E-3},{"$f":"'Population at Risk'!Z228/'Population at Risk'!Z$5","v":1.8231842263841586E-3},{"$f":"'Population at Risk'!AA228/'Population at Risk'!AA$5","v":3.9234630279104702E-3},{"$f":"'Population at Risk'!AB228/'Population at Risk'!AB$5","v":8.1543431382413607E-3},{"$f":"'Population at Risk'!AC228/'Population at Risk'!AC$5","v":5.0031224952954059E-3},{"$f":"'Population at Risk'!AD228/'Population at Risk'!AD$5","v":2.7673379032799239E-3},{"$f":"'Population at Risk'!AE228/'Population at Risk'!AE$5","v":2.9103753741407785E-3},{"$f":"'Population at Risk'!AF228/'Population at Risk'!AF$5","v":3.5072491753877742E-3},{"$f":"'Population at Risk'!AG228/'Population at Risk'!AG$5","v":2.9103753741407785E-3},{"$f":"'Population at Risk'!AH228/'Population at Risk'!AH$5","v":2.1743768331684526E-3},{"$f":"'Population at Risk'!AI228/'Population at Risk'!AI$5","v":8.3065002734504477E-3},{"$f":"'Population at Risk'!AJ228/'Population at Risk'!AJ$5","v":2.7702661460970984E-3},{"$f":"'Population at Risk'!AK228/'Population at Risk'!AK$5","v":5.3347468031159761E-3},{"$f":"'Population at Risk'!AL228/'Population at Risk'!AL$5","v":2.7671905223971703E-3},{"$f":"'Population at Risk'!AM228/'Population at Risk'!AM$5","v":1.2838248821239752E-3},{"$f":"'Population at Risk'!AN228/'Population at Risk'!AN$5","v":2.1324770897290421E-3},{"$f":"'Population at Risk'!AO228/'Population at Risk'!AO$5","v":2.1345623596344082E-3},{"$f":"'Population at Risk'!AP228/'Population at Risk'!AP$5","v":7.1350318462954426E-3},{"$f":"'Population at Risk'!AQ228/'Population at Risk'!AQ$5","v":3.5867898838447018E-3},{"$f":"'Population at Risk'!AR228/'Population at Risk'!AR$5","v":5.1316263980294282E-3},{"$f":"'Population at Risk'!AS228/'Population at Risk'!AS$5","v":2.2594517671629716E-3},{"$f":"'Population at Risk'!AT228/'Population at Risk'!AT$5","v":0},{"$f":"'Population at Risk'!AU228/'Population at Risk'!AU$5","v":0},{"$f":"'Population at Risk'!AV228/'Population at Risk'!AV$5","v":7.3646442845556317E-3},{"$f":"'Population at Risk'!AW228/'Population at Risk'!AW$5","v":3.1783820543306628E-3},{"$f":"'Population at Risk'!AX228/'Population at Risk'!AX$5","v":8.4957326327215112E-3},{"$f":"'Population at Risk'!AY228/'Population at Risk'!AY$5","v":5.4162868369067117E-3},{"$f":"'Population at Risk'!AZ228/'Population at Risk'!AZ$5","v":5.6290941580500941E-3},{"$f":"'Population at Risk'!BA228/'Population at Risk'!BA$5","v":3.8846254067777621E-4},{"$f":"'Population at Risk'!BB228/'Population at Risk'!BB$5","v":2.4917165724159221E-3},{"$f":"'Population at Risk'!BC228/'Population at Risk'!BC$5","v":0},226]
[null,"Female 85-89",{"$f":"'Population at Risk'!C229/'Population at Risk'!C$5","v":7.0503088864692027E-3},{"$f":"'Population at Risk'!D229/'Population at Risk'!D$5","v":5.9786119408197181E-3},{"$f":"'Population at Risk'!E229/'Population at Risk'!E$5","v":4.9603630042178003E-3},{"$f":"'Population at Risk'!F229/'Population at Risk'!F$5","v":3.7879066694135933E-3},{"$f":"'Population at Risk'!G229/'Population at Risk'!G$5","v":1.3231283685087151E-3},{"$f":"'Population at Risk'!H229/'Population at Risk'!H$5","v":2.4217051415491553E-3},{"$f":"'Population at Risk'!I229/'Population at Risk'!I$5","v":1.1938610639965984E-3},{"$f":"'Population at Risk'!J229/'Population at Risk'!J$5","v":3.9778619976754016E-3},{"$f":"'Population at Risk'!K229/'Population at Risk'!K$5","v":1.578968892999674E-3},{"$f":"'Population at Risk'!L229/'Population at Risk'!L$5","v":1.7999656231977542E-3},{"$f":"'Population at Risk'!M229/'Population at Risk'!M$5","v":1.8005788401365102E-3},{"$f":"'Population at Risk'!N229/'Population at Risk'!N$5","v":3.0470082342039105E-3},{"$f":"'Population at Risk'!O229/'Population at Risk'!O$5","v":1.5674416618608122E-3},{"$f":"'Population at Risk'!P229/'Population at Risk'!P$5","v":1.2307691732698561E-2},{"$f":"'Population at Risk'!Q229/'Population at Risk'!Q$5","v":2.8430046674660101E-3},{"$f":"'Population at Risk'!R229/'Population at Risk'!R$5","v":1.4747787537377854E-2},{"$f":"'Population at Risk'!S229/'Population at Risk'!S$5","v":4.5740014384943392E-3},{"$f":"'Population at Risk'!T229/'Population at Risk'!T$5","v":8.8810027908026098E-3},{"$f":"'Population at Risk'!U229/'Population at Risk'!U$5","v":0},{"$f":"'Population at Risk'!V229/'Population at Risk'!V$5","v":1.913632246747654E-3},{"$f":"'Population at Risk'!W229/'Population at Risk'!W$5","v":3.194223576179355E-3},{"$f":"'Population at Risk'!X229/'Population at Risk'!X$5","v":3.194536334433408E-3},{"$f":"'Population at Risk'!Y229/'Population at Risk'!Y$5","v":2.7808091570160147E-3},{"$f":"'Population at Risk'!Z229/'Population at Risk'!Z$5","v":1.2221979837725818E-3},{"$f":"'Population at Risk'!AA229/'Population at Risk'!AA$5","v":2.4045209969564049E-3},{"$f":"'Population at Risk'!AB229/'Population at Risk'!AB$5","v":5.5314070310708901E-3},{"$f":"'Population at Risk'!AC229/'Population at Risk'!AC$5","v":3.1880999878641449E-3},{"$f":"'Population at Risk'!AD229/'Population at Risk'!AD$5","v":1.6593322050614629E-3},{"$f":"'Population at Risk'!AE229/'Population at Risk'!AE$5","v":1.768329341250093E-3},{"$f":"'Population at Risk'!AF229/'Population at Risk'!AF$5","v":2.4890155438235819E-3},{"$f":"'Population at Risk'!AG229/'Population at Risk'!AG$5","v":1.768329341250093E-3},{"$f":"'Population at Risk'!AH229/'Population at Risk'!AH$5","v":1.1362714150756135E-3},{"$f":"'Population at Risk'!AI229/'Population at Risk'!AI$5","v":5.6888782902308919E-3},{"$f":"'Population at Risk'!AJ229/'Population at Risk'!AJ$5","v":1.1332906961306311E-3},{"$f":"'Population at Risk'!AK229/'Population at Risk'!AK$5","v":3.2209792018813438E-3},{"$f":"'Population at Risk'!AL229/'Population at Risk'!AL$5","v":1.5728048695676225E-3},{"$f":"'Population at Risk'!AM229/'Population at Risk'!AM$5","v":5.7421985636817803E-4},{"$f":"'Population at Risk'!AN229/'Population at Risk'!AN$5","v":1.1057288613409849E-3},{"$f":"'Population at Risk'!AO229/'Population at Risk'!AO$5","v":1.1068101124030263E-3},{"$f":"'Population at Risk'!AP229/'Population at Risk'!AP$5","v":4.5986583992734748E-3},{"$f":"'Population at Risk'!AQ229/'Population at Risk'!AQ$5","v":2.0711122688867045E-3},{"$f":"'Population at Risk'!AR229/'Population at Risk'!AR$5","v":3.2692791195629944E-3},{"$f":"'Population at Risk'!AS229/'Population at Risk'!AS$5","v":1.1936726317087398E-3},{"$f":"'Population at Risk'!AT229/'Population at Risk'!AT$5","v":0},{"$f":"'Population at Risk'!AU229/'Population at Risk'!AU$5","v":0},{"$f":"'Population at Risk'!AV229/'Population at Risk'!AV$5","v":4.4129416149519853E-3},{"$f":"'Population at Risk'!AW229/'Population at Risk'!AW$5","v":1.7686577716406308E-3},{"$f":"'Population at Risk'!AX229/'Population at Risk'!AX$5","v":5.0230244032879005E-3},{"$f":"'Population at Risk'!AY229/'Population at Risk'!AY$5","v":3.4384913579056887E-3},{"$f":"'Population at Risk'!AZ229/'Population at Risk'!AZ$5","v":3.6399864941897603E-3},{"$f":"'Population at Risk'!BA229/'Population at Risk'!BA$5","v":1.7657388212626192E-4},{"$f":"'Population at Risk'!BB229/'Population at Risk'!BB$5","v":1.7932018847512073E-3},{"$f":"'Population at Risk'!BC229/'Population at Risk'!BC$5","v":0},227]
[null,"Female 90+",{"$f":"'Population at Risk'!C230/'Population at Risk'!C$5","v":4.2957696005928633E-3},{"$f":"'Population at Risk'!D230/'Population at Risk'!D$5","v":3.7277002738577126E-3},{"$f":"'Population at Risk'!E230/'Population at Risk'!E$5","v":3.1866109082823329E-3},{"$f":"'Population at Risk'!F230/'Population at Risk'!F$5","v":1.9313832425073263E-3},{"$f":"'Population at Risk'!G230/'Population at Risk'!G$5","v":8.3168068877690672E-4},{"$f":"'Population at Risk'!H230/'Population at Risk'!H$5","v":1.5765169095075875E-3},{"$f":"'Population at Risk'!I230/'Population at Risk'!I$5","v":9.8067158828292001E-4},{"$f":"'Population at Risk'!J230/'Population at Risk'!J$5","v":2.2375473736924137E-3},{"$f":"'Population at Risk'!K230/'Population at Risk'!K$5","v":6.3158755719986965E-4},{"$f":"'Population at Risk'!L230/'Population at Risk'!L$5","v":1.0499799468653567E-3},{"$f":"'Population at Risk'!M230/'Population at Risk'!M$5","v":1.0503376567462977E-3},{"$f":"'Population at Risk'!N230/'Population at Risk'!N$5","v":1.3555131688283556E-3},{"$f":"'Population at Risk'!O230/'Population at Risk'!O$5","v":7.0402040744595813E-4},{"$f":"'Population at Risk'!P230/'Population at Risk'!P$5","v":7.2837629374088589E-3},{"$f":"'Population at Risk'!Q230/'Population at Risk'!Q$5","v":1.7807831433578304E-3},{"$f":"'Population at Risk'!R230/'Population at Risk'!R$5","v":8.1021795730038832E-3},{"$f":"'Population at Risk'!S230/'Population at Risk'!S$5","v":2.910356589998186E-3},{"$f":"'Population at Risk'!T230/'Population at Risk'!T$5","v":5.5123465598085159E-3},{"$f":"'Population at Risk'!U230/'Population at Risk'!U$5","v":0},{"$f":"'Population at Risk'!V230/'Population at Risk'!V$5","v":1.4619674928569033E-3},{"$f":"'Population at Risk'!W230/'Population at Risk'!W$5","v":2.116418075014542E-3},{"$f":"'Population at Risk'!X230/'Population at Risk'!X$5","v":2.1166253013423808E-3},{"$f":"'Population at Risk'!Y230/'Population at Risk'!Y$5","v":1.7651015807339957E-3},{"$f":"'Population at Risk'!Z230/'Population at Risk'!Z$5","v":7.9746251423459238E-4},{"$f":"'Population at Risk'!AA230/'Population at Risk'!AA$5","v":1.3664831653936202E-3},{"$f":"'Population at Risk'!AB230/'Population at Risk'!AB$5","v":3.4596195236349745E-3},{"$f":"'Population at Risk'!AC230/'Population at Risk'!AC$5","v":1.8561691133931783E-3},{"$f":"'Population at Risk'!AD230/'Population at Risk'!AD$5","v":9.3136710864740184E-4},{"$f":"'Population at Risk'!AE230/'Population at Risk'!AE$5","v":9.5784505984380052E-4},{"$f":"'Population at Risk'!AF230/'Population at Risk'!AF$5","v":1.6970560526069875E-3},{"$f":"'Population at Risk'!AG230/'Population at Risk'!AG$5","v":9.5784505984380052E-4},{"$f":"'Population at Risk'!AH230/'Population at Risk'!AH$5","v":5.742710823492302E-4},{"$f":"'Population at Risk'!AI230/'Population at Risk'!AI$5","v":3.5487661215289996E-3},{"$f":"'Population at Risk'!AJ230/'Population at Risk'!AJ$5","v":8.274820955874449E-4},{"$f":"'Population at Risk'!AK230/'Population at Risk'!AK$5","v":2.0735053612111151E-3},{"$f":"'Population at Risk'!AL230/'Population at Risk'!AL$5","v":8.6326883818373253E-4},{"$f":"'Population at Risk'!AM230/'Population at Risk'!AM$5","v":3.0811797170975406E-4},{"$f":"'Population at Risk'!AN230/'Population at Risk'!AN$5","v":5.5286443067049246E-4},{"$f":"'Population at Risk'!AO230/'Population at Risk'!AO$5","v":5.5340505620151315E-4},{"$f":"'Population at Risk'!AP230/'Population at Risk'!AP$5","v":3.1289840654850445E-3},{"$f":"'Population at Risk'!AQ230/'Population at Risk'!AQ$5","v":9.3200052099901714E-4},{"$f":"'Population at Risk'!AR230/'Population at Risk'!AR$5","v":1.9873568473698371E-3},{"$f":"'Population at Risk'!AS230/'Population at Risk'!AS$5","v":9.8051680461789343E-4},{"$f":"'Population at Risk'!AT230/'Population at Risk'!AT$5","v":0},{"$f":"'Population at Risk'!AU230/'Population at Risk'!AU$5","v":0},{"$f":"'Population at Risk'!AV230/'Population at Risk'!AV$5","v":3.4192991321151146E-3},{"$f":"'Population at Risk'!AW230/'Population at Risk'!AW$5","v":8.7392501657537053E-4},{"$f":"'Population at Risk'!AX230/'Population at Risk'!AX$5","v":2.9766070538002373E-3},{"$f":"'Population at Risk'!AY230/'Population at Risk'!AY$5","v":2.0816573644904619E-3},{"$f":"'Population at Risk'!AZ230/'Population at Risk'!AZ$5","v":2.053532203580506E-3},{"$f":"'Population at Risk'!BA230/'Population at Risk'!BA$5","v":1.2360171748838333E-4},{"$f":"'Population at Risk'!BB230/'Population at Risk'!BB$5","v":1.1155383817929023E-3},{"$f":"'Population at Risk'!BC230/'Population at Risk'!BC$5","v":0},228]
[null,"Male 0-4",{"$f":"'Population at Risk'!C231/'Population at Risk'!C$5","v":0},{"$f":"'Population at Risk'!D231/'Population at Risk'!D$5","v":0},{"$f":"'Population at Risk'!E231/'Population at Risk'!E$5","v":0},{"$f":"'Population at Risk'!F231/'Population at Risk'!F$5","v":0},{"$f":"'Population at Risk'!G231/'Population at Risk'!G$5","v":0},{"$f":"'Population at Risk'!H231/'Population at Risk'!H$5","v":0},{"$f":"'Population at Risk'!I231/'Population at Risk'!I$5","v":0},{"$f":"'Population at Risk'!J231/'Population at Risk'!J$5","v":0},{"$f":"'Population at Risk'!K231/'Population at Risk'!K$5","v":0},{"$f":"'Population at Risk'!L231/'Population at Risk'!L$5","v":0},{"$f":"'Population at Risk'!M231/'Population at Risk'!M$5","v":0},{"$f":"'Population at Risk'!N231/'Population at Risk'!N$5","v":0},{"$f":"'Population at Risk'!O231/'Population at Risk'!O$5","v":0},{"$f":"'Population at Risk'!P231/'Population at Risk'!P$5","v":0},{"$f":"'Population at Risk'!Q231/'Population at Risk'!Q$5","v":0},{"$f":"'Population at Risk'!R231/'Population at Risk'!R$5","v":0},{"$f":"'Population at Risk'!S231/'Population at Risk'!S$5","v":0},{"$f":"'Population at Risk'!T231/'Population at Risk'!T$5","v":0},{"$f":"'Population at Risk'!U231/'Population at Risk'!U$5","v":0},{"$f":"'Population at Risk'!V231/'Population at Risk'!V$5","v":0},{"$f":"'Population at Risk'!W231/'Population at Risk'!W$5","v":0},{"$f":"'Population at Risk'!X231/'Population at Risk'!X$5","v":0},{"$f":"'Population at Risk'!Y231/'Population at Risk'!Y$5","v":0},{"$f":"'Population at Risk'!Z231/'Population at Risk'!Z$5","v":0},{"$f":"'Population at Risk'!AA231/'Population at Risk'!AA$5","v":0},{"$f":"'Population at Risk'!AB231/'Population at Risk'!AB$5","v":0},{"$f":"'Population at Risk'!AC231/'Population at Risk'!AC$5","v":0},{"$f":"'Population at Risk'!AD231/'Population at Risk'!AD$5","v":0},{"$f":"'Population at Risk'!AE231/'Population at Risk'!AE$5","v":0},{"$f":"'Population at Risk'!AF231/'Population at Risk'!AF$5","v":0},{"$f":"'Population at Risk'!AG231/'Population at Risk'!AG$5","v":0},{"$f":"'Population at Risk'!AH231/'Population at Risk'!AH$5","v":0},{"$f":"'Population at Risk'!AI231/'Population at Risk'!AI$5","v":0},{"$f":"'Population at Risk'!AJ231/'Population at Risk'!AJ$5","v":0},{"$f":"'Population at Risk'!AK231/'Population at Risk'!AK$5","v":0},{"$f":"'Population at Risk'!AL231/'Population at Risk'!AL$5","v":0},{"$f":"'Population at Risk'!AM231/'Population at Risk'!AM$5","v":0},{"$f":"'Population at Risk'!AN231/'Population at Risk'!AN$5","v":0},{"$f":"'Population at Risk'!AO231/'Population at Risk'!AO$5","v":0},{"$f":"'Population at Risk'!AP231/'Population at Risk'!AP$5","v":0},{"$f":"'Population at Risk'!AQ231/'Population at Risk'!AQ$5","v":0},{"$f":"'Population at Risk'!AR231/'Population at Risk'!AR$5","v":0},{"$f":"'Population at Risk'!AS231/'Population at Risk'!AS$5","v":0},{"$f":"'Population at Risk'!AT231/'Population at Risk'!AT$5","v":0},{"$f":"'Population at Risk'!AU231/'Population at Risk'!AU$5","v":0},{"$f":"'Population at Risk'!AV231/'Population at Risk'!AV$5","v":0},{"$f":"'Population at Risk'!AW231/'Population at Risk'!AW$5","v":0},{"$f":"'Population at Risk'!AX231/'Population at Risk'!AX$5","v":0},{"$f":"'Population at Risk'!AY231/'Population at Risk'!AY$5","v":0},{"$f":"'Population at Risk'!AZ231/'Population at Risk'!AZ$5","v":0},{"$f":"'Population at Risk'!BA231/'Population at Risk'!BA$5","v":0},{"$f":"'Population at Risk'!BB231/'Population at Risk'!BB$5","v":0},{"$f":"'Population at Risk'!BC231/'Population at Risk'!BC$5","v":0},229]
[null,"Male 5-9",{"$f":"'Population at Risk'!C232/'Population at Risk'!C$5","v":0},{"$f":"'Population at Risk'!D232/'Population at Risk'!D$5","v":0},{"$f":"'Population at Risk'!E232/'Population at Risk'!E$5","v":0},{"$f":"'Population at Risk'!F232/'Population at Risk'!F$5","v":0},{"$f":"'Population at Risk'!G232/'Population at Risk'!G$5","v":0},{"$f":"'Population at Risk'!H232/'Population at Risk'!H$5","v":0},{"$f":"'Population at Risk'!I232/'Population at Risk'!I$5","v":0},{"$f":"'Population at Risk'!J232/'Population at Risk'!J$5","v":0},{"$f":"'Population at Risk'!K232/'Population at Risk'!K$5","v":0},{"$f":"'Population at Risk'!L232/'Population at Risk'!L$5","v":0},{"$f":"'Population at Risk'!M232/'Population at Risk'!M$5","v":0},{"$f":"'Population at Risk'!N232/'Population at Risk'!N$5","v":0},{"$f":"'Population at Risk'!O232/'Population at Risk'!O$5","v":0},{"$f":"'Population at Risk'!P232/'Population at Risk'!P$5","v":0},{"$f":"'Population at Risk'!Q232/'Population at Risk'!Q$5","v":0},{"$f":"'Population at Risk'!R232/'Population at Risk'!R$5","v":0},{"$f":"'Population at Risk'!S232/'Population at Risk'!S$5","v":0},{"$f":"'Population at Risk'!T232/'Population at Risk'!T$5","v":0},{"$f":"'Population at Risk'!U232/'Population at Risk'!U$5","v":0},{"$f":"'Population at Risk'!V232/'Population at Risk'!V$5","v":0},{"$f":"'Population at Risk'!W232/'Population at Risk'!W$5","v":0},{"$f":"'Population at Risk'!X232/'Population at Risk'!X$5","v":0},{"$f":"'Population at Risk'!Y232/'Population at Risk'!Y$5","v":0},{"$f":"'Population at Risk'!Z232/'Population at Risk'!Z$5","v":0},{"$f":"'Population at Risk'!AA232/'Population at Risk'!AA$5","v":0},{"$f":"'Population at Risk'!AB232/'Population at Risk'!AB$5","v":0},{"$f":"'Population at Risk'!AC232/'Population at Risk'!AC$5","v":0},{"$f":"'Population at Risk'!AD232/'Population at Risk'!AD$5","v":0},{"$f":"'Population at Risk'!AE232/'Population at Risk'!AE$5","v":0},{"$f":"'Population at Risk'!AF232/'Population at Risk'!AF$5","v":0},{"$f":"'Population at Risk'!AG232/'Population at Risk'!AG$5","v":0},{"$f":"'Population at Risk'!AH232/'Population at Risk'!AH$5","v":0},{"$f":"'Population at Risk'!AI232/'Population at Risk'!AI$5","v":0},{"$f":"'Population at Risk'!AJ232/'Population at Risk'!AJ$5","v":0},{"$f":"'Population at Risk'!AK232/'Population at Risk'!AK$5","v":0},{"$f":"'Population at Risk'!AL232/'Population at Risk'!AL$5","v":0},{"$f":"'Population at Risk'!AM232/'Population at Risk'!AM$5","v":0},{"$f":"'Population at Risk'!AN232/'Population at Risk'!AN$5","v":0},{"$f":"'Population at Risk'!AO232/'Population at Risk'!AO$5","v":0},{"$f":"'Population at Risk'!AP232/'Population at Risk'!AP$5","v":0},{"$f":"'Population at Risk'!AQ232/'Population at Risk'!AQ$5","v":0},{"$f":"'Population at Risk'!AR232/'Population at Risk'!AR$5","v":0},{"$f":"'Population at Risk'!AS232/'Population at Risk'!AS$5","v":0},{"$f":"'Population at Risk'!AT232/'Population at Risk'!AT$5","v":0},{"$f":"'Population at Risk'!AU232/'Population at Risk'!AU$5","v":0},{"$f":"'Population at Risk'!AV232/'Population at Risk'!AV$5","v":0},{"$f":"'Population at Risk'!AW232/'Population at Risk'!AW$5","v":0},{"$f":"'Population at Risk'!AX232/'Population at Risk'!AX$5","v":0},{"$f":"'Population at Risk'!AY232/'Population at Risk'!AY$5","v":0},{"$f":"'Population at Risk'!AZ232/'Population at Risk'!AZ$5","v":0},{"$f":"'Population at Risk'!BA232/'Population at Risk'!BA$5","v":0},{"$f":"'Population at Risk'!BB232/'Population at Risk'!BB$5","v":0},{"$f":"'Population at Risk'!BC232/'Population at Risk'!BC$5","v":0},230]
[null,"Male 10-15",{"$f":"'Population at Risk'!C233/'Population at Risk'!C$5","v":0},{"$f":"'Population at Risk'!D233/'Population at Risk'!D$5","v":0},{"$f":"'Population at Risk'!E233/'Population at Risk'!E$5","v":0},{"$f":"'Population at Risk'!F233/'Population at Risk'!F$5","v":0},{"$f":"'Population at Risk'!G233/'Population at Risk'!G$5","v":0},{"$f":"'Population at Risk'!H233/'Population at Risk'!H$5","v":0},{"$f":"'Population at Risk'!I233/'Population at Risk'!I$5","v":0},{"$f":"'Population at Risk'!J233/'Population at Risk'!J$5","v":0},{"$f":"'Population at Risk'!K233/'Population at Risk'!K$5","v":0},{"$f":"'Population at Risk'!L233/'Population at Risk'!L$5","v":0},{"$f":"'Population at Risk'!M233/'Population at Risk'!M$5","v":0},{"$f":"'Population at Risk'!N233/'Population at Risk'!N$5","v":0},{"$f":"'Population at Risk'!O233/'Population at Risk'!O$5","v":0},{"$f":"'Population at Risk'!P233/'Population at Risk'!P$5","v":0},{"$f":"'Population at Risk'!Q233/'Population at Risk'!Q$5","v":0},{"$f":"'Population at Risk'!R233/'Population at Risk'!R$5","v":0},{"$f":"'Population at Risk'!S233/'Population at Risk'!S$5","v":0},{"$f":"'Population at Risk'!T233/'Population at Risk'!T$5","v":0},{"$f":"'Population at Risk'!U233/'Population at Risk'!U$5","v":0},{"$f":"'Population at Risk'!V233/'Population at Risk'!V$5","v":0},{"$f":"'Population at Risk'!W233/'Population at Risk'!W$5","v":0},{"$f":"'Population at Risk'!X233/'Population at Risk'!X$5","v":0},{"$f":"'Population at Risk'!Y233/'Population at Risk'!Y$5","v":0},{"$f":"'Population at Risk'!Z233/'Population at Risk'!Z$5","v":0},{"$f":"'Population at Risk'!AA233/'Population at Risk'!AA$5","v":0},{"$f":"'Population at Risk'!AB233/'Population at Risk'!AB$5","v":0},{"$f":"'Population at Risk'!AC233/'Population at Risk'!AC$5","v":0},{"$f":"'Population at Risk'!AD233/'Population at Risk'!AD$5","v":0},{"$f":"'Population at Risk'!AE233/'Population at Risk'!AE$5","v":0},{"$f":"'Population at Risk'!AF233/'Population at Risk'!AF$5","v":0},{"$f":"'Population at Risk'!AG233/'Population at Risk'!AG$5","v":0},{"$f":"'Population at Risk'!AH233/'Population at Risk'!AH$5","v":0},{"$f":"'Population at Risk'!AI233/'Population at Risk'!AI$5","v":0},{"$f":"'Population at Risk'!AJ233/'Population at Risk'!AJ$5","v":0},{"$f":"'Population at Risk'!AK233/'Population at Risk'!AK$5","v":0},{"$f":"'Population at Risk'!AL233/'Population at Risk'!AL$5","v":0},{"$f":"'Population at Risk'!AM233/'Population at Risk'!AM$5","v":0},{"$f":"'Population at Risk'!AN233/'Population at Risk'!AN$5","v":0},{"$f":"'Population at Risk'!AO233/'Population at Risk'!AO$5","v":0},{"$f":"'Population at Risk'!AP233/'Population at Risk'!AP$5","v":0},{"$f":"'Population at Risk'!AQ233/'Population at Risk'!AQ$5","v":0},{"$f":"'Population at Risk'!AR233/'Population at Risk'!AR$5","v":0},{"$f":"'Population at Risk'!AS233/'Population at Risk'!AS$5","v":0},{"$f":"'Population at Risk'!AT233/'Population at Risk'!AT$5","v":0},{"$f":"'Population at Risk'!AU233/'Population at Risk'!AU$5","v":0},{"$f":"'Population at Risk'!AV233/'Population at Risk'!AV$5","v":0},{"$f":"'Population at Risk'!AW233/'Population at Risk'!AW$5","v":0},{"$f":"'Population at Risk'!AX233/'Population at Risk'!AX$5","v":0},{"$f":"'Population at Risk'!AY233/'Population at Risk'!AY$5","v":0},{"$f":"'Population at Risk'!AZ233/'Population at Risk'!AZ$5","v":0},{"$f":"'Population at Risk'!BA233/'Population at Risk'!BA$5","v":0},{"$f":"'Population at Risk'!BB233/'Population at Risk'!BB$5","v":0},{"$f":"'Population at Risk'!BC233/'Population at Risk'!BC$5","v":0},231]
[null,"Male 16-19",{"$f":"'Population at Risk'!C234/'Population at Risk'!C$5","v":5.6312257276683137E-3},{"$f":"'Population at Risk'!D234/'Population at Risk'!D$5","v":5.7533279885273155E-3},{"$f":"'Population at Risk'!E234/'Population at Risk'!E$5","v":5.8666437100225828E-3},{"$f":"'Population at Risk'!F234/'Population at Risk'!F$5","v":2.6048638626611602E-3},{"$f":"'Population at Risk'!G234/'Population at Risk'!G$5","v":2.1790096968707911E-3},{"$f":"'Population at Risk'!H234/'Population at Risk'!H$5","v":1.691370039549931E-3},{"$f":"'Population at Risk'!I234/'Population at Risk'!I$5","v":1.5645278419064417E-3},{"$f":"'Population at Risk'!J234/'Population at Risk'!J$5","v":4.5514103358923553E-3},{"$f":"'Population at Risk'!K234/'Population at Risk'!K$5","v":1.670244288073854E-3},{"$f":"'Population at Risk'!L234/'Population at Risk'!L$5","v":9.9621204049809555E-4},{"$f":"'Population at Risk'!M234/'Population at Risk'!M$5","v":9.9586566136729651E-4},{"$f":"'Population at Risk'!N234/'Population at Risk'!N$5","v":2.4566169322688567E-3},{"$f":"'Population at Risk'!O234/'Population at Risk'!O$5","v":1.5422447103647708E-3},{"$f":"'Population at Risk'!P234/'Population at Risk'!P$5","v":8.6270249988763155E-3},{"$f":"'Population at Risk'!Q234/'Population at Risk'!Q$5","v":2.3745350231293063E-3},{"$f":"'Population at Risk'!R234/'Population at Risk'!R$5","v":1.0794089230682601E-2},{"$f":"'Population at Risk'!S234/'Population at Risk'!S$5","v":4.1915338326309042E-3},{"$f":"'Population at Risk'!T234/'Population at Risk'!T$5","v":6.5655331584397103E-3},{"$f":"'Population at Risk'!U234/'Population at Risk'!U$5","v":0},{"$f":"'Population at Risk'!V234/'Population at Risk'!V$5","v":2.5514387365985387E-3},{"$f":"'Population at Risk'!W234/'Population at Risk'!W$5","v":3.4036131858313774E-3},{"$f":"'Population at Risk'!X234/'Population at Risk'!X$5","v":3.4032678921448239E-3},{"$f":"'Population at Risk'!Y234/'Population at Risk'!Y$5","v":3.6486835340422117E-3},{"$f":"'Population at Risk'!Z234/'Population at Risk'!Z$5","v":1.1726181444642963E-3},{"$f":"'Population at Risk'!AA234/'Population at Risk'!AA$5","v":2.3819788291234191E-3},{"$f":"'Population at Risk'!AB234/'Population at Risk'!AB$5","v":5.4178140782845073E-3},{"$f":"'Population at Risk'!AC234/'Population at Risk'!AC$5","v":2.6710031042263592E-3},{"$f":"'Population at Risk'!AD234/'Population at Risk'!AD$5","v":1.5291169233105275E-3},{"$f":"'Population at Risk'!AE234/'Population at Risk'!AE$5","v":1.2879652894941119E-3},{"$f":"'Population at Risk'!AF234/'Population at Risk'!AF$5","v":1.4799808163894141E-3},{"$f":"'Population at Risk'!AG234/'Population at Risk'!AG$5","v":1.2879652894941119E-3},{"$f":"'Population at Risk'!AH234/'Population at Risk'!AH$5","v":1.8102870744822971E-3},{"$f":"'Population at Risk'!AI234/'Population at Risk'!AI$5","v":4.9438491738810946E-3},{"$f":"'Population at Risk'!AJ234/'Population at Risk'!AJ$5","v":2.6883834625333267E-3},{"$f":"'Population at Risk'!AK234/'Population at Risk'!AK$5","v":3.9042739089999012E-3},{"$f":"'Population at Risk'!AL234/'Population at Risk'!AL$5","v":1.1938698074649922E-3},{"$f":"'Population at Risk'!AM234/'Population at Risk'!AM$5","v":1.505793243682358E-3},{"$f":"'Population at Risk'!AN234/'Population at Risk'!AN$5","v":8.503951393008225E-4},{"$f":"'Population at Risk'!AO234/'Population at Risk'!AO$5","v":8.4975512623196184E-4},{"$f":"'Population at Risk'!AP234/'Population at Risk'!AP$5","v":2.3719652749486226E-3},{"$f":"'Population at Risk'!AQ234/'Population at Risk'!AQ$5","v":2.8616148122786551E-3},{"$f":"'Population at Risk'!AR234/'Population at Risk'!AR$5","v":3.0198186871663048E-3},{"$f":"'Population at Risk'!AS234/'Population at Risk'!AS$5","v":1.56472622758771E-3},{"$f":"'Population at Risk'!AT234/'Population at Risk'!AT$5","v":0},{"$f":"'Population at Risk'!AU234/'Population at Risk'!AU$5","v":0},{"$f":"'Population at Risk'!AV234/'Population at Risk'!AV$5","v":2.483421618564872E-3},{"$f":"'Population at Risk'!AW234/'Population at Risk'!AW$5","v":2.1199414501624054E-3},{"$f":"'Population at Risk'!AX234/'Population at Risk'!AX$5","v":6.8353954208339434E-3},{"$f":"'Population at Risk'!AY234/'Population at Risk'!AY$5","v":2.9902240152353873E-3},{"$f":"'Population at Risk'!AZ234/'Population at Risk'!AZ$5","v":2.5724324261174329E-3},{"$f":"'Population at Risk'!BA234/'Population at Risk'!BA$5","v":6.5936387353866365E-4},{"$f":"'Population at Risk'!BB234/'Population at Risk'!BB$5","v":3.0504542738911357E-3},{"$f":"'Population at Risk'!BC234/'Population at Risk'!BC$5","v":0},232]
[null,"Male 20-24",{"$f":"'Population at Risk'!C235/'Population at Risk'!C$5","v":9.3730876678210732E-3},{"$f":"'Population at Risk'!D235/'Population at Risk'!D$5","v":7.7394942133928619E-3},{"$f":"'Population at Risk'!E235/'Population at Risk'!E$5","v":6.3349109630674695E-3},{"$f":"'Population at Risk'!F235/'Population at Risk'!F$5","v":2.7187942900538946E-3},{"$f":"'Population at Risk'!G235/'Population at Risk'!G$5","v":5.7717816375446544E-3},{"$f":"'Population at Risk'!H235/'Population at Risk'!H$5","v":1.8480597315255524E-3},{"$f":"'Population at Risk'!I235/'Population at Risk'!I$5","v":1.2859132947176232E-3},{"$f":"'Population at Risk'!J235/'Population at Risk'!J$5","v":5.1564891347275427E-3},{"$f":"'Population at Risk'!K235/'Population at Risk'!K$5","v":1.7447137786249177E-3},{"$f":"'Population at Risk'!L235/'Population at Risk'!L$5","v":1.0940855041259787E-3},{"$f":"'Population at Risk'!M235/'Population at Risk'!M$5","v":1.0937050947647854E-3},{"$f":"'Population at Risk'!N235/'Population at Risk'!N$5","v":3.1171224282090684E-3},{"$f":"'Population at Risk'!O235/'Population at Risk'!O$5","v":1.7487953412171956E-3},{"$f":"'Population at Risk'!P235/'Population at Risk'!P$5","v":1.024829032788325E-2},{"$f":"'Population at Risk'!Q235/'Population at Risk'!Q$5","v":3.0148590743102428E-3},{"$f":"'Population at Risk'!R235/'Population at Risk'!R$5","v":1.1832398415197157E-2},{"$f":"'Population at Risk'!S235/'Population at Risk'!S$5","v":6.8158430556174415E-3},{"$f":"'Population at Risk'!T235/'Population at Risk'!T$5","v":1.1987272949342027E-2},{"$f":"'Population at Risk'!U235/'Population at Risk'!U$5","v":0},{"$f":"'Population at Risk'!V235/'Population at Risk'!V$5","v":2.9983008882061928E-3},{"$f":"'Population at Risk'!W235/'Population at Risk'!W$5","v":5.5831746571252325E-3},{"$f":"'Population at Risk'!X235/'Population at Risk'!X$5","v":5.5826082487660045E-3},{"$f":"'Population at Risk'!Y235/'Population at Risk'!Y$5","v":4.1910036181461744E-3},{"$f":"'Population at Risk'!Z235/'Population at Risk'!Z$5","v":2.7996703722696194E-3},{"$f":"'Population at Risk'!AA235/'Population at Risk'!AA$5","v":3.2566142140309567E-3},{"$f":"'Population at Risk'!AB235/'Population at Risk'!AB$5","v":7.2583769394337239E-3},{"$f":"'Population at Risk'!AC235/'Population at Risk'!AC$5","v":3.848414814251903E-3},{"$f":"'Population at Risk'!AD235/'Population at Risk'!AD$5","v":2.5155256819928587E-3},{"$f":"'Population at Risk'!AE235/'Population at Risk'!AE$5","v":1.2465848785866704E-3},{"$f":"'Population at Risk'!AF235/'Population at Risk'!AF$5","v":1.3500312812918067E-3},{"$f":"'Population at Risk'!AG235/'Population at Risk'!AG$5","v":1.2465848785866704E-3},{"$f":"'Population at Risk'!AH235/'Population at Risk'!AH$5","v":2.101058573492407E-3},{"$f":"'Population at Risk'!AI235/'Population at Risk'!AI$5","v":8.1935302630421706E-3},{"$f":"'Population at Risk'!AJ235/'Population at Risk'!AJ$5","v":3.0186705736445635E-3},{"$f":"'Population at Risk'!AK235/'Population at Risk'!AK$5","v":5.0871913350710634E-3},{"$f":"'Population at Risk'!AL235/'Population at Risk'!AL$5","v":1.2587125765605347E-3},{"$f":"'Population at Risk'!AM235/'Population at Risk'!AM$5","v":1.6924164646490657E-3},{"$f":"'Population at Risk'!AN235/'Population at Risk'!AN$5","v":1.3322857182379551E-3},{"$f":"'Population at Risk'!AO235/'Population at Risk'!AO$5","v":1.3312830310967404E-3},{"$f":"'Population at Risk'!AP235/'Population at Risk'!AP$5","v":2.7384668538903366E-3},{"$f":"'Population at Risk'!AQ235/'Population at Risk'!AQ$5","v":3.3161673456369974E-3},{"$f":"'Population at Risk'!AR235/'Population at Risk'!AR$5","v":4.2725490616469337E-3},{"$f":"'Population at Risk'!AS235/'Population at Risk'!AS$5","v":1.2860763514419536E-3},{"$f":"'Population at Risk'!AT235/'Population at Risk'!AT$5","v":0},{"$f":"'Population at Risk'!AU235/'Population at Risk'!AU$5","v":0},{"$f":"'Population at Risk'!AV235/'Population at Risk'!AV$5","v":2.7042792723898112E-3},{"$f":"'Population at Risk'!AW235/'Population at Risk'!AW$5","v":2.5182682989734083E-3},{"$f":"'Population at Risk'!AX235/'Population at Risk'!AX$5","v":7.835376271620044E-3},{"$f":"'Population at Risk'!AY235/'Population at Risk'!AY$5","v":4.2784386230826227E-3},{"$f":"'Population at Risk'!AZ235/'Population at Risk'!AZ$5","v":2.995421314843448E-3},{"$f":"'Population at Risk'!BA235/'Population at Risk'!BA$5","v":8.3641528402589739E-4},{"$f":"'Population at Risk'!BB235/'Population at Risk'!BB$5","v":3.2745978715134458E-3},{"$f":"'Population at Risk'!BC235/'Population at Risk'!BC$5","v":0},233]
[null,"Male 25-29",{"$f":"'Population at Risk'!C236/'Population at Risk'!C$5","v":1.3399231329754353E-2},{"$f":"'Population at Risk'!D236/'Population at Risk'!D$5","v":9.4029790826063511E-3},{"$f":"'Population at Risk'!E236/'Population at Risk'!E$5","v":5.9544147422702252E-3},{"$f":"'Population at Risk'!F236/'Population at Risk'!F$5","v":2.0819045238092645E-3},{"$f":"'Population at Risk'!G236/'Population at Risk'!G$5","v":4.4150036442061986E-3},{"$f":"'Population at Risk'!H236/'Population at Risk'!H$5","v":1.261927773600098E-3},{"$f":"'Population at Risk'!I236/'Population at Risk'!I$5","v":8.6998241437248353E-4},{"$f":"'Population at Risk'!J236/'Population at Risk'!J$5","v":2.6354210514479511E-3},{"$f":"'Population at Risk'!K236/'Population at Risk'!K$5","v":1.1966857634610804E-3},{"$f":"'Population at Risk'!L236/'Population at Risk'!L$5","v":8.9237906854626686E-4},{"$f":"'Population at Risk'!M236/'Population at Risk'!M$5","v":8.9206879174419992E-4},{"$f":"'Population at Risk'!N236/'Population at Risk'!N$5","v":2.8336325321948502E-3},{"$f":"'Population at Risk'!O236/'Population at Risk'!O$5","v":1.3738438681615926E-3},{"$f":"'Population at Risk'!P236/'Population at Risk'!P$5","v":8.108557655120063E-3},{"$f":"'Population at Risk'!Q236/'Population at Risk'!Q$5","v":2.2378173821923941E-3},{"$f":"'Population at Risk'!R236/'Population at Risk'!R$5","v":8.1108054657074245E-3},{"$f":"'Population at Risk'!S236/'Population at Risk'!S$5","v":5.7208336698376461E-3},{"$f":"'Population at Risk'!T236/'Population at Risk'!T$5","v":1.1491633507255473E-2},{"$f":"'Population at Risk'!U236/'Population at Risk'!U$5","v":0},{"$f":"'Population at Risk'!V236/'Population at Risk'!V$5","v":2.8798899011791873E-3},{"$f":"'Population at Risk'!W236/'Population at Risk'!W$5","v":3.0421104588297071E-3},{"$f":"'Population at Risk'!X236/'Population at Risk'!X$5","v":3.0418018392898583E-3},{"$f":"'Population at Risk'!Y236/'Population at Risk'!Y$5","v":2.8585187000768389E-3},{"$f":"'Population at Risk'!Z236/'Population at Risk'!Z$5","v":2.9049454104772316E-3},{"$f":"'Population at Risk'!AA236/'Population at Risk'!AA$5","v":2.7505353096913057E-3},{"$f":"'Population at Risk'!AB236/'Population at Risk'!AB$5","v":8.5176137570442002E-3},{"$f":"'Population at Risk'!AC236/'Population at Risk'!AC$5","v":3.3426103382007679E-3},{"$f":"'Population at Risk'!AD236/'Population at Risk'!AD$5","v":2.1287629571526906E-3},{"$f":"'Population at Risk'!AE236/'Population at Risk'!AE$5","v":1.2421048272691648E-3},{"$f":"'Population at Risk'!AF236/'Population at Risk'!AF$5","v":1.3982001891103193E-3},{"$f":"'Population at Risk'!AG236/'Population at Risk'!AG$5","v":1.2421048272691648E-3},{"$f":"'Population at Risk'!AH236/'Population at Risk'!AH$5","v":1.5991509849578229E-3},{"$f":"'Population at Risk'!AI236/'Population at Risk'!AI$5","v":7.7046498972749202E-3},{"$f":"'Population at Risk'!AJ236/'Population at Risk'!AJ$5","v":2.8249642554620306E-3},{"$f":"'Population at Risk'!AK236/'Population at Risk'!AK$5","v":4.5144359209427281E-3},{"$f":"'Population at Risk'!AL236/'Population at Risk'!AL$5","v":7.9095255597481701E-4},{"$f":"'Population at Risk'!AM236/'Population at Risk'!AM$5","v":1.394135248838461E-3},{"$f":"'Population at Risk'!AN236/'Population at Risk'!AN$5","v":1.2477109011053058E-3},{"$f":"'Population at Risk'!AO236/'Population at Risk'!AO$5","v":1.2467718655370594E-3},{"$f":"'Population at Risk'!AP236/'Population at Risk'!AP$5","v":2.1509436928054712E-3},{"$f":"'Population at Risk'!AQ236/'Population at Risk'!AQ$5","v":2.5397059619656423E-3},{"$f":"'Population at Risk'!AR236/'Population at Risk'!AR$5","v":3.7632090462361482E-3},{"$f":"'Population at Risk'!AS236/'Population at Risk'!AS$5","v":8.700927301171726E-4},{"$f":"'Population at Risk'!AT236/'Population at Risk'!AT$5","v":0},{"$f":"'Population at Risk'!AU236/'Population at Risk'!AU$5","v":0},{"$f":"'Population at Risk'!AV236/'Population at Risk'!AV$5","v":1.7426433239323717E-3},{"$f":"'Population at Risk'!AW236/'Population at Risk'!AW$5","v":1.8057400095479049E-3},{"$f":"'Population at Risk'!AX236/'Population at Risk'!AX$5","v":3.8159680532208928E-3},{"$f":"'Population at Risk'!AY236/'Population at Risk'!AY$5","v":2.7686709372488831E-3},{"$f":"'Population at Risk'!AZ236/'Population at Risk'!AZ$5","v":2.4868609034592237E-3},{"$f":"'Population at Risk'!BA236/'Population at Risk'!BA$5","v":5.4940317088821684E-4},{"$f":"'Population at Risk'!BB236/'Population at Risk'!BB$5","v":2.8193444647307011E-3},{"$f":"'Population at Risk'!BC236/'Population at Risk'!BC$5","v":0},234]
[null,"Male 30-34",{"$f":"'Population at Risk'!C237/'Population at Risk'!C$5","v":1.15962398971792E-2},{"$f":"'Population at Risk'!D237/'Population at Risk'!D$5","v":9.1033436145819893E-3},{"$f":"'Population at Risk'!E237/'Population at Risk'!E$5","v":6.9563595306330033E-3},{"$f":"'Population at Risk'!F237/'Population at Risk'!F$5","v":2.3453085024907287E-3},{"$f":"'Population at Risk'!G237/'Population at Risk'!G$5","v":2.0806339012925763E-3},{"$f":"'Population at Risk'!H237/'Population at Risk'!H$5","v":1.1401753777362975E-3},{"$f":"'Population at Risk'!I237/'Population at Risk'!I$5","v":9.6955871481270754E-4},{"$f":"'Population at Risk'!J237/'Population at Risk'!J$5","v":2.1775724789506374E-3},{"$f":"'Population at Risk'!K237/'Population at Risk'!K$5","v":1.2279036529426737E-3},{"$f":"'Population at Risk'!L237/'Population at Risk'!L$5","v":1.0325612210765234E-3},{"$f":"'Population at Risk'!M237/'Population at Risk'!M$5","v":1.0322022034741317E-3},{"$f":"'Population at Risk'!N237/'Population at Risk'!N$5","v":1.9533173588596499E-3},{"$f":"'Population at Risk'!O237/'Population at Risk'!O$5","v":1.4726169567222298E-3},{"$f":"'Population at Risk'!P237/'Population at Risk'!P$5","v":6.8468406181349294E-3},{"$f":"'Population at Risk'!Q237/'Population at Risk'!Q$5","v":2.4335448500226323E-3},{"$f":"'Population at Risk'!R237/'Population at Risk'!R$5","v":6.6085432359720489E-3},{"$f":"'Population at Risk'!S237/'Population at Risk'!S$5","v":4.8632098872476784E-3},{"$f":"'Population at Risk'!T237/'Population at Risk'!T$5","v":9.129449976285859E-3},{"$f":"'Population at Risk'!U237/'Population at Risk'!U$5","v":0},{"$f":"'Population at Risk'!V237/'Population at Risk'!V$5","v":3.4262582422841742E-3},{"$f":"'Population at Risk'!W237/'Population at Risk'!W$5","v":2.970333756236837E-3},{"$f":"'Population at Risk'!X237/'Population at Risk'!X$5","v":2.9700324183829191E-3},{"$f":"'Population at Risk'!Y237/'Population at Risk'!Y$5","v":2.9185007318161559E-3},{"$f":"'Population at Risk'!Z237/'Population at Risk'!Z$5","v":2.2678271701355407E-3},{"$f":"'Population at Risk'!AA237/'Population at Risk'!AA$5","v":2.3146875971419047E-3},{"$f":"'Population at Risk'!AB237/'Population at Risk'!AB$5","v":8.0929317683536162E-3},{"$f":"'Population at Risk'!AC237/'Population at Risk'!AC$5","v":2.7342050788948837E-3},{"$f":"'Population at Risk'!AD237/'Population at Risk'!AD$5","v":1.5459087355228468E-3},{"$f":"'Population at Risk'!AE237/'Population at Risk'!AE$5","v":1.3508838650951812E-3},{"$f":"'Population at Risk'!AF237/'Population at Risk'!AF$5","v":1.3346456350598504E-3},{"$f":"'Population at Risk'!AG237/'Population at Risk'!AG$5","v":1.3508838650951812E-3},{"$f":"'Population at Risk'!AH237/'Population at Risk'!AH$5","v":1.4954768247167247E-3},{"$f":"'Population at Risk'!AI237/'Population at Risk'!AI$5","v":6.3306194134784893E-3},{"$f":"'Population at Risk'!AJ237/'Population at Risk'!AJ$5","v":2.8700434723045102E-3},{"$f":"'Population at Risk'!AK237/'Population at Risk'!AK$5","v":3.5217658374861339E-3},{"$f":"'Population at Risk'!AL237/'Population at Risk'!AL$5","v":7.349889317313158E-4},{"$f":"'Population at Risk'!AM237/'Population at Risk'!AM$5","v":1.2348566388941439E-3},{"$f":"'Population at Risk'!AN237/'Population at Risk'!AN$5","v":1.1368032654515007E-3},{"$f":"'Population at Risk'!AO237/'Population at Risk'!AO$5","v":1.135947699711543E-3},{"$f":"'Population at Risk'!AP237/'Population at Risk'!AP$5","v":2.2878951638829735E-3},{"$f":"'Population at Risk'!AQ237/'Population at Risk'!AQ$5","v":2.263504517826143E-3},{"$f":"'Population at Risk'!AR237/'Population at Risk'!AR$5","v":3.3113604921431498E-3},{"$f":"'Population at Risk'!AS237/'Population at Risk'!AS$5","v":9.6968165705829472E-4},{"$f":"'Population at Risk'!AT237/'Population at Risk'!AT$5","v":0},{"$f":"'Population at Risk'!AU237/'Population at Risk'!AU$5","v":0},{"$f":"'Population at Risk'!AV237/'Population at Risk'!AV$5","v":1.3009816550569498E-3},{"$f":"'Population at Risk'!AW237/'Population at Risk'!AW$5","v":1.7607838267375837E-3},{"$f":"'Population at Risk'!AX237/'Population at Risk'!AX$5","v":3.0051552796866053E-3},{"$f":"'Population at Risk'!AY237/'Population at Risk'!AY$5","v":2.6229909367535527E-3},{"$f":"'Population at Risk'!AZ237/'Population at Risk'!AZ$5","v":2.2711862410353264E-3},{"$f":"'Population at Risk'!BA237/'Population at Risk'!BA$5","v":5.0162898211532846E-4},{"$f":"'Population at Risk'!BB237/'Population at Risk'!BB$5","v":2.5795460290913949E-3},{"$f":"'Population at Risk'!BC237/'Population at Risk'!BC$5","v":0},235]
[null,"Male 35-39",{"$f":"'Population at Risk'!C238/'Population at Risk'!C$5","v":1.3745073289740202E-2},{"$f":"'Population at Risk'!D238/'Population at Risk'!D$5","v":1.2417170968442883E-2},{"$f":"'Population at Risk'!E238/'Population at Risk'!E$5","v":1.1283484505405859E-2},{"$f":"'Population at Risk'!F238/'Population at Risk'!F$5","v":3.5727914181855258E-3},{"$f":"'Population at Risk'!G238/'Population at Risk'!G$5","v":2.6328991744521252E-3},{"$f":"'Population at Risk'!H238/'Population at Risk'!H$5","v":2.1852854605096E-3},{"$f":"'Population at Risk'!I238/'Population at Risk'!I$5","v":1.9842063748409227E-3},{"$f":"'Population at Risk'!J238/'Population at Risk'!J$5","v":3.7737727209340485E-3},{"$f":"'Population at Risk'!K238/'Population at Risk'!K$5","v":2.1887402960558489E-3},{"$f":"'Population at Risk'!L238/'Population at Risk'!L$5","v":1.5485744177797353E-3},{"$f":"'Population at Risk'!M238/'Population at Risk'!M$5","v":1.5480359843549195E-3},{"$f":"'Population at Risk'!N238/'Population at Risk'!N$5","v":2.9827122087303587E-3},{"$f":"'Population at Risk'!O238/'Population at Risk'!O$5","v":2.4175077114851366E-3},{"$f":"'Population at Risk'!P238/'Population at Risk'!P$5","v":1.1410678915849412E-2},{"$f":"'Population at Risk'!Q238/'Population at Risk'!Q$5","v":4.1168375216807142E-3},{"$f":"'Population at Risk'!R238/'Population at Risk'!R$5","v":1.3984155506709173E-2},{"$f":"'Population at Risk'!S238/'Population at Risk'!S$5","v":6.9279906071662307E-3},{"$f":"'Population at Risk'!T238/'Population at Risk'!T$5","v":1.2064545310719469E-2},{"$f":"'Population at Risk'!U238/'Population at Risk'!U$5","v":0},{"$f":"'Population at Risk'!V238/'Population at Risk'!V$5","v":5.2640999496298222E-3},{"$f":"'Population at Risk'!W238/'Population at Risk'!W$5","v":4.5312914744222634E-3},{"$f":"'Population at Risk'!X238/'Population at Risk'!X$5","v":4.5308317787245951E-3},{"$f":"'Population at Risk'!Y238/'Population at Risk'!Y$5","v":4.6995838093967712E-3},{"$f":"'Population at Risk'!Z238/'Population at Risk'!Z$5","v":2.6972778474803932E-3},{"$f":"'Population at Risk'!AA238/'Population at Risk'!AA$5","v":3.6745262224066265E-3},{"$f":"'Population at Risk'!AB238/'Population at Risk'!AB$5","v":1.092557364354119E-2},{"$f":"'Population at Risk'!AC238/'Population at Risk'!AC$5","v":4.1289719593100129E-3},{"$f":"'Population at Risk'!AD238/'Population at Risk'!AD$5","v":2.5223085321526076E-3},{"$f":"'Population at Risk'!AE238/'Population at Risk'!AE$5","v":2.5079383806017141E-3},{"$f":"'Population at Risk'!AF238/'Population at Risk'!AF$5","v":1.8516822492035164E-3},{"$f":"'Population at Risk'!AG238/'Population at Risk'!AG$5","v":2.5079383806017141E-3},{"$f":"'Population at Risk'!AH238/'Population at Risk'!AH$5","v":2.7762860675272006E-3},{"$f":"'Population at Risk'!AI238/'Population at Risk'!AI$5","v":8.787640928919014E-3},{"$f":"'Population at Risk'!AJ238/'Population at Risk'!AJ$5","v":4.5407027534788104E-3},{"$f":"'Population at Risk'!AK238/'Population at Risk'!AK$5","v":4.1758691220268995E-3},{"$f":"'Population at Risk'!AL238/'Population at Risk'!AL$5","v":1.4700820787777956E-3},{"$f":"'Population at Risk'!AM238/'Population at Risk'!AM$5","v":2.2987069790946953E-3},{"$f":"'Population at Risk'!AN238/'Population at Risk'!AN$5","v":2.3716575551611828E-3},{"$f":"'Population at Risk'!AO238/'Population at Risk'!AO$5","v":2.3698726298246936E-3},{"$f":"'Population at Risk'!AP238/'Population at Risk'!AP$5","v":3.7165019816329369E-3},{"$f":"'Population at Risk'!AQ238/'Population at Risk'!AQ$5","v":3.7879754127380779E-3},{"$f":"'Population at Risk'!AR238/'Population at Risk'!AR$5","v":4.9128450868573753E-3},{"$f":"'Population at Risk'!AS238/'Population at Risk'!AS$5","v":1.9844579767126862E-3},{"$f":"'Population at Risk'!AT238/'Population at Risk'!AT$5","v":0},{"$f":"'Population at Risk'!AU238/'Population at Risk'!AU$5","v":0},{"$f":"'Population at Risk'!AV238/'Population at Risk'!AV$5","v":2.8474948001888608E-3},{"$f":"'Population at Risk'!AW238/'Population at Risk'!AW$5","v":3.2622742880947793E-3},{"$f":"'Population at Risk'!AX238/'Population at Risk'!AX$5","v":5.1704143623313723E-3},{"$f":"'Population at Risk'!AY238/'Population at Risk'!AY$5","v":4.0434317709329964E-3},{"$f":"'Population at Risk'!AZ238/'Population at Risk'!AZ$5","v":3.5468248630987909E-3},{"$f":"'Population at Risk'!BA238/'Population at Risk'!BA$5","v":7.2852301692287989E-4},{"$f":"'Population at Risk'!BB238/'Population at Risk'!BB$5","v":4.5442282002243171E-3},{"$f":"'Population at Risk'!BC238/'Population at Risk'!BC$5","v":0},236]
[null,"Male 40-44",{"$f":"'Population at Risk'!C239/'Population at Risk'!C$5","v":1.2468323686186774E-2},{"$f":"'Population at Risk'!D239/'Population at Risk'!D$5","v":1.2501202814782677E-2},{"$f":"'Population at Risk'!E239/'Population at Risk'!E$5","v":1.254612539766667E-2},{"$f":"'Population at Risk'!F239/'Population at Risk'!F$5","v":4.6453391401457926E-3},{"$f":"'Population at Risk'!G239/'Population at Risk'!G$5","v":3.0509608676928344E-3},{"$f":"'Population at Risk'!H239/'Population at Risk'!H$5","v":2.8521188914739266E-3},{"$f":"'Population at Risk'!I239/'Population at Risk'!I$5","v":2.7558421872790595E-3},{"$f":"'Population at Risk'!J239/'Population at Risk'!J$5","v":5.2822378887762891E-3},{"$f":"'Population at Risk'!K239/'Population at Risk'!K$5","v":3.0934196184256003E-3},{"$f":"'Population at Risk'!L239/'Population at Risk'!L$5","v":1.6828161629742634E-3},{"$f":"'Population at Risk'!M239/'Population at Risk'!M$5","v":1.68223105420612E-3},{"$f":"'Population at Risk'!N239/'Population at Risk'!N$5","v":2.9986058794695971E-3},{"$f":"'Population at Risk'!O239/'Population at Risk'!O$5","v":3.0344758253537385E-3},{"$f":"'Population at Risk'!P239/'Population at Risk'!P$5","v":1.4080745319344758E-2},{"$f":"'Population at Risk'!Q239/'Population at Risk'!Q$5","v":5.5897505016598136E-3},{"$f":"'Population at Risk'!R239/'Population at Risk'!R$5","v":1.7069768320070743E-2},{"$f":"'Population at Risk'!S239/'Population at Risk'!S$5","v":7.5535673277358426E-3},{"$f":"'Population at Risk'!T239/'Population at Risk'!T$5","v":1.1926228001379496E-2},{"$f":"'Population at Risk'!U239/'Population at Risk'!U$5","v":0},{"$f":"'Population at Risk'!V239/'Population at Risk'!V$5","v":6.0055224777466991E-3},{"$f":"'Population at Risk'!W239/'Population at Risk'!W$5","v":5.5249206068097544E-3},{"$f":"'Population at Risk'!X239/'Population at Risk'!X$5","v":5.52436010827479E-3},{"$f":"'Population at Risk'!Y239/'Population at Risk'!Y$5","v":5.8534525411222654E-3},{"$f":"'Population at Risk'!Z239/'Population at Risk'!Z$5","v":2.4369605926034912E-3},{"$f":"'Population at Risk'!AA239/'Population at Risk'!AA$5","v":4.1371224300452772E-3},{"$f":"'Population at Risk'!AB239/'Population at Risk'!AB$5","v":1.1164095324550368E-2},{"$f":"'Population at Risk'!AC239/'Population at Risk'!AC$5","v":4.5558736971970555E-3},{"$f":"'Population at Risk'!AD239/'Population at Risk'!AD$5","v":2.6078105162933738E-3},{"$f":"'Population at Risk'!AE239/'Population at Risk'!AE$5","v":2.4618235306047946E-3},{"$f":"'Population at Risk'!AF239/'Population at Risk'!AF$5","v":2.4260008077800085E-3},{"$f":"'Population at Risk'!AG239/'Population at Risk'!AG$5","v":2.4618235306047946E-3},{"$f":"'Population at Risk'!AH239/'Population at Risk'!AH$5","v":3.3024681813449137E-3},{"$f":"'Population at Risk'!AI239/'Population at Risk'!AI$5","v":9.2137209644981045E-3},{"$f":"'Population at Risk'!AJ239/'Population at Risk'!AJ$5","v":4.9937195015056987E-3},{"$f":"'Population at Risk'!AK239/'Population at Risk'!AK$5","v":5.1156613235870943E-3},{"$f":"'Population at Risk'!AL239/'Population at Risk'!AL$5","v":1.8415263050881997E-3},{"$f":"'Population at Risk'!AM239/'Population at Risk'!AM$5","v":2.6977183433698664E-3},{"$f":"'Population at Risk'!AN239/'Population at Risk'!AN$5","v":1.788463074383843E-3},{"$f":"'Population at Risk'!AO239/'Population at Risk'!AO$5","v":1.7871170651137032E-3},{"$f":"'Population at Risk'!AP239/'Population at Risk'!AP$5","v":4.0440963812297609E-3},{"$f":"'Population at Risk'!AQ239/'Population at Risk'!AQ$5","v":4.4397716807653281E-3},{"$f":"'Population at Risk'!AR239/'Population at Risk'!AR$5","v":5.4051301749905379E-3},{"$f":"'Population at Risk'!AS239/'Population at Risk'!AS$5","v":2.7561916343231754E-3},{"$f":"'Population at Risk'!AT239/'Population at Risk'!AT$5","v":0},{"$f":"'Population at Risk'!AU239/'Population at Risk'!AU$5","v":0},{"$f":"'Population at Risk'!AV239/'Population at Risk'!AV$5","v":3.944756389859745E-3},{"$f":"'Population at Risk'!AW239/'Population at Risk'!AW$5","v":3.9189317534922786E-3},{"$f":"'Population at Risk'!AX239/'Population at Risk'!AX$5","v":7.2187286036040112E-3},{"$f":"'Population at Risk'!AY239/'Population at Risk'!AY$5","v":4.7552442389409916E-3},{"$f":"'Population at Risk'!AZ239/'Population at Risk'!AZ$5","v":3.9829773404636074E-3},{"$f":"'Population at Risk'!BA239/'Population at Risk'!BA$5","v":7.8713981138793911E-4},{"$f":"'Population at Risk'!BB239/'Population at Risk'!BB$5","v":5.8988501372890714E-3},{"$f":"'Population at Risk'!BC239/'Population at Risk'!BC$5","v":0},237]
[null,"Male 45-49",{"$f":"'Population at Risk'!C240/'Population at Risk'!C$5","v":1.1926435786260393E-2},{"$f":"'Population at Risk'!D240/'Population at Risk'!D$5","v":1.2172448556309801E-2},{"$f":"'Population at Risk'!E240/'Population at Risk'!E$5","v":1.2401522004137596E-2},{"$f":"'Population at Risk'!F240/'Population at Risk'!F$5","v":4.8627294886880159E-3},{"$f":"'Population at Risk'!G240/'Population at Risk'!G$5","v":2.4459284621067847E-3},{"$f":"'Population at Risk'!H240/'Population at Risk'!H$5","v":3.3386003344015565E-3},{"$f":"'Population at Risk'!I240/'Population at Risk'!I$5","v":3.4911140581862471E-3},{"$f":"'Population at Risk'!J240/'Population at Risk'!J$5","v":6.4191962778719028E-3},{"$f":"'Population at Risk'!K240/'Population at Risk'!K$5","v":4.1645943513638492E-3},{"$f":"'Population at Risk'!L240/'Population at Risk'!L$5","v":2.1548206828237207E-3},{"$f":"'Population at Risk'!M240/'Population at Risk'!M$5","v":2.1540714598824169E-3},{"$f":"'Population at Risk'!N240/'Population at Risk'!N$5","v":3.9333985616732871E-3},{"$f":"'Population at Risk'!O240/'Population at Risk'!O$5","v":3.4682948552533796E-3},{"$f":"'Population at Risk'!P240/'Population at Risk'!P$5","v":1.5767809279130861E-2},{"$f":"'Population at Risk'!Q240/'Population at Risk'!Q$5","v":5.8727716911759773E-3},{"$f":"'Population at Risk'!R240/'Population at Risk'!R$5","v":1.8651976259254358E-2},{"$f":"'Population at Risk'!S240/'Population at Risk'!S$5","v":7.8355018731882803E-3},{"$f":"'Population at Risk'!T240/'Population at Risk'!T$5","v":1.1846954404031312E-2},{"$f":"'Population at Risk'!U240/'Population at Risk'!U$5","v":0},{"$f":"'Population at Risk'!V240/'Population at Risk'!V$5","v":6.1772213628104727E-3},{"$f":"'Population at Risk'!W240/'Population at Risk'!W$5","v":5.7565546820975717E-3},{"$f":"'Population at Risk'!X240/'Population at Risk'!X$5","v":5.7559706844810673E-3},{"$f":"'Population at Risk'!Y240/'Population at Risk'!Y$5","v":6.5172865037707532E-3},{"$f":"'Population at Risk'!Z240/'Population at Risk'!Z$5","v":2.3930217394151332E-3},{"$f":"'Population at Risk'!AA240/'Population at Risk'!AA$5","v":4.5382063140425501E-3},{"$f":"'Population at Risk'!AB240/'Population at Risk'!AB$5","v":1.0983566575047819E-2},{"$f":"'Population at Risk'!AC240/'Population at Risk'!AC$5","v":4.9806649290210876E-3},{"$f":"'Population at Risk'!AD240/'Population at Risk'!AD$5","v":2.730272521467101E-3},{"$f":"'Population at Risk'!AE240/'Population at Risk'!AE$5","v":2.875853762143183E-3},{"$f":"'Population at Risk'!AF240/'Population at Risk'!AF$5","v":2.7134756900678838E-3},{"$f":"'Population at Risk'!AG240/'Population at Risk'!AG$5","v":2.875853762143183E-3},{"$f":"'Population at Risk'!AH240/'Population at Risk'!AH$5","v":3.6547512044096744E-3},{"$f":"'Population at Risk'!AI240/'Population at Risk'!AI$5","v":9.4558549907417799E-3},{"$f":"'Population at Risk'!AJ240/'Population at Risk'!AJ$5","v":5.793980533459803E-3},{"$f":"'Population at Risk'!AK240/'Population at Risk'!AK$5","v":5.6073161252677807E-3},{"$f":"'Population at Risk'!AL240/'Population at Risk'!AL$5","v":2.3463869778725891E-3},{"$f":"'Population at Risk'!AM240/'Population at Risk'!AM$5","v":2.9625161579687766E-3},{"$f":"'Population at Risk'!AN240/'Population at Risk'!AN$5","v":2.5068843232139361E-3},{"$f":"'Population at Risk'!AO240/'Population at Risk'!AO$5","v":2.5049976253074813E-3},{"$f":"'Population at Risk'!AP240/'Population at Risk'!AP$5","v":4.6647660288241842E-3},{"$f":"'Population at Risk'!AQ240/'Population at Risk'!AQ$5","v":5.4055923185841017E-3},{"$f":"'Population at Risk'!AR240/'Population at Risk'!AR$5","v":5.7449402023579104E-3},{"$f":"'Population at Risk'!AS240/'Population at Risk'!AS$5","v":3.4915567393723965E-3},{"$f":"'Population at Risk'!AT240/'Population at Risk'!AT$5","v":0},{"$f":"'Population at Risk'!AU240/'Population at Risk'!AU$5","v":0},{"$f":"'Population at Risk'!AV240/'Population at Risk'!AV$5","v":4.4617268980721957E-3},{"$f":"'Population at Risk'!AW240/'Population at Risk'!AW$5","v":4.3610218137820449E-3},{"$f":"'Population at Risk'!AX240/'Population at Risk'!AX$5","v":8.5218385359916507E-3},{"$f":"'Population at Risk'!AY240/'Population at Risk'!AY$5","v":5.2028727424499694E-3},{"$f":"'Population at Risk'!AZ240/'Population at Risk'!AZ$5","v":4.6350257859143684E-3},{"$f":"'Population at Risk'!BA240/'Population at Risk'!BA$5","v":1.310120386250927E-3},{"$f":"'Population at Risk'!BB240/'Population at Risk'!BB$5","v":6.7138203354745636E-3},{"$f":"'Population at Risk'!BC240/'Population at Risk'!BC$5","v":0},238]
[null,"Male 50-54",{"$f":"'Population at Risk'!C241/'Population at Risk'!C$5","v":1.2182144962247215E-2},{"$f":"'Population at Risk'!D241/'Population at Risk'!D$5","v":1.2113152110305551E-2},{"$f":"'Population at Risk'!E241/'Population at Risk'!E$5","v":1.2069338379026769E-2},{"$f":"'Population at Risk'!F241/'Population at Risk'!F$5","v":5.7315551175533257E-3},{"$f":"'Population at Risk'!G241/'Population at Risk'!G$5","v":2.6820870722412331E-3},{"$f":"'Population at Risk'!H241/'Population at Risk'!H$5","v":3.6376078942994714E-3},{"$f":"'Population at Risk'!I241/'Population at Risk'!I$5","v":2.8848726947886347E-3},{"$f":"'Population at Risk'!J241/'Population at Risk'!J$5","v":6.1865808383499447E-3},{"$f":"'Population at Risk'!K241/'Population at Risk'!K$5","v":3.998564011774593E-3},{"$f":"'Population at Risk'!L241/'Population at Risk'!L$5","v":2.5094114280985102E-3},{"$f":"'Population at Risk'!M241/'Population at Risk'!M$5","v":2.5085389153061059E-3},{"$f":"'Population at Risk'!N241/'Population at Risk'!N$5","v":3.8831635864284182E-3},{"$f":"'Population at Risk'!O241/'Population at Risk'!O$5","v":3.1698185338030023E-3},{"$f":"'Population at Risk'!P241/'Population at Risk'!P$5","v":1.7599306891836156E-2},{"$f":"'Population at Risk'!Q241/'Population at Risk'!Q$5","v":6.7749404590966593E-3},{"$f":"'Population at Risk'!R241/'Population at Risk'!R$5","v":1.8220608281413381E-2},{"$f":"'Population at Risk'!S241/'Population at Risk'!S$5","v":7.6391901961922236E-3},{"$f":"'Population at Risk'!T241/'Population at Risk'!T$5","v":1.1741686491628413E-2},{"$f":"'Population at Risk'!U241/'Population at Risk'!U$5","v":0},{"$f":"'Population at Risk'!V241/'Population at Risk'!V$5","v":5.9991224160830083E-3},{"$f":"'Population at Risk'!W241/'Population at Risk'!W$5","v":5.3930896774783601E-3},{"$f":"'Population at Risk'!X241/'Population at Risk'!X$5","v":5.39254255307997E-3},{"$f":"'Population at Risk'!Y241/'Population at Risk'!Y$5","v":6.3054435390210344E-3},{"$f":"'Population at Risk'!Z241/'Population at Risk'!Z$5","v":2.3536208972165309E-3},{"$f":"'Population at Risk'!AA241/'Population at Risk'!AA$5","v":4.7946402767691174E-3},{"$f":"'Population at Risk'!AB241/'Population at Risk'!AB$5","v":1.0821150651397998E-2},{"$f":"'Population at Risk'!AC241/'Population at Risk'!AC$5","v":5.2834565115169605E-3},{"$f":"'Population at Risk'!AD241/'Population at Risk'!AD$5","v":2.7898854586170378E-3},{"$f":"'Population at Risk'!AE241/'Population at Risk'!AE$5","v":2.8657630471882944E-3},{"$f":"'Population at Risk'!AF241/'Population at Risk'!AF$5","v":4.0185729942873857E-3},{"$f":"'Population at Risk'!AG241/'Population at Risk'!AG$5","v":2.8657630471882944E-3},{"$f":"'Population at Risk'!AH241/'Population at Risk'!AH$5","v":3.8206544633548399E-3},{"$f":"'Population at Risk'!AI241/'Population at Risk'!AI$5","v":9.3987020531153698E-3},{"$f":"'Population at Risk'!AJ241/'Population at Risk'!AJ$5","v":5.3444475610361971E-3},{"$f":"'Population at Risk'!AK241/'Population at Risk'!AK$5","v":4.9768083150802493E-3},{"$f":"'Population at Risk'!AL241/'Population at Risk'!AL$5","v":2.6043407259685189E-3},{"$f":"'Population at Risk'!AM241/'Population at Risk'!AM$5","v":3.2004692630265099E-3},{"$f":"'Population at Risk'!AN241/'Population at Risk'!AN$5","v":2.3225545935658524E-3},{"$f":"'Population at Risk'!AO241/'Population at Risk'!AO$5","v":2.3208066234466371E-3},{"$f":"'Population at Risk'!AP241/'Population at Risk'!AP$5","v":5.8376520911806659E-3},{"$f":"'Population at Risk'!AQ241/'Population at Risk'!AQ$5","v":6.140072136519307E-3},{"$f":"'Population at Risk'!AR241/'Population at Risk'!AR$5","v":5.8449245525348751E-3},{"$f":"'Population at Risk'!AS241/'Population at Risk'!AS$5","v":2.8852385031939562E-3},{"$f":"'Population at Risk'!AT241/'Population at Risk'!AT$5","v":0},{"$f":"'Population at Risk'!AU241/'Population at Risk'!AU$5","v":0},{"$f":"'Population at Risk'!AV241/'Population at Risk'!AV$5","v":5.4510940929236845E-3},{"$f":"'Population at Risk'!AW241/'Population at Risk'!AW$5","v":4.4506830275434115E-3},{"$f":"'Population at Risk'!AX241/'Population at Risk'!AX$5","v":8.2223763384417434E-3},{"$f":"'Population at Risk'!AY241/'Population at Risk'!AY$5","v":5.3616247604982414E-3},{"$f":"'Population at Risk'!AZ241/'Population at Risk'!AZ$5","v":5.2943855147186848E-3},{"$f":"'Population at Risk'!BA241/'Population at Risk'!BA$5","v":1.3974617453343221E-3},{"$f":"'Population at Risk'!BB241/'Population at Risk'!BB$5","v":6.4587498206939821E-3},{"$f":"'Population at Risk'!BC241/'Population at Risk'!BC$5","v":0},239]
[null,"Male 55-59",{"$f":"'Population at Risk'!C242/'Population at Risk'!C$5","v":1.6929988826102339E-2},{"$f":"'Population at Risk'!D242/'Population at Risk'!D$5","v":1.607357232758044E-2},{"$f":"'Population at Risk'!E242/'Population at Risk'!E$5","v":1.535302468999628E-2},{"$f":"'Population at Risk'!F242/'Population at Risk'!F$5","v":7.3313918741904011E-3},{"$f":"'Population at Risk'!G242/'Population at Risk'!G$5","v":3.4303951772230779E-3},{"$f":"'Population at Risk'!H242/'Population at Risk'!H$5","v":5.4644939919469039E-3},{"$f":"'Population at Risk'!I242/'Population at Risk'!I$5","v":3.5968095726200055E-3},{"$f":"'Population at Risk'!J242/'Population at Risk'!J$5","v":7.795715713212195E-3},{"$f":"'Population at Risk'!K242/'Population at Risk'!K$5","v":4.9316126638780837E-3},{"$f":"'Population at Risk'!L242/'Population at Risk'!L$5","v":3.3281561870652518E-3},{"$f":"'Population at Risk'!M242/'Population at Risk'!M$5","v":3.3269989998396662E-3},{"$f":"'Population at Risk'!N242/'Population at Risk'!N$5","v":6.055214158927809E-3},{"$f":"'Population at Risk'!O242/'Population at Risk'!O$5","v":4.776423768608251E-3},{"$f":"'Population at Risk'!P242/'Population at Risk'!P$5","v":2.373018727343883E-2},{"$f":"'Population at Risk'!Q242/'Population at Risk'!Q$5","v":7.6209059206124603E-3},{"$f":"'Population at Risk'!R242/'Population at Risk'!R$5","v":2.7156166625470039E-2},{"$f":"'Population at Risk'!S242/'Population at Risk'!S$5","v":1.0257005085118995E-2},{"$f":"'Population at Risk'!T242/'Population at Risk'!T$5","v":1.6015688449891589E-2},{"$f":"'Population at Risk'!U242/'Population at Risk'!U$5","v":0},{"$f":"'Population at Risk'!V242/'Population at Risk'!V$5","v":7.3476646398663754E-3},{"$f":"'Population at Risk'!W242/'Population at Risk'!W$5","v":7.6549985555743527E-3},{"$f":"'Population at Risk'!X242/'Population at Risk'!X$5","v":7.6542219624283342E-3},{"$f":"'Population at Risk'!Y242/'Population at Risk'!Y$5","v":7.8328491167963185E-3},{"$f":"'Population at Risk'!Z242/'Population at Risk'!Z$5","v":3.0542177311992484E-3},{"$f":"'Population at Risk'!AA242/'Population at Risk'!AA$5","v":6.5454173551058497E-3},{"$f":"'Population at Risk'!AB242/'Population at Risk'!AB$5","v":1.4273519036483218E-2},{"$f":"'Population at Risk'!AC242/'Population at Risk'!AC$5","v":7.255353808518817E-3},{"$f":"'Population at Risk'!AD242/'Population at Risk'!AD$5","v":3.6924353460481146E-3},{"$f":"'Population at Risk'!AE242/'Population at Risk'!AE$5","v":3.8404639281529184E-3},{"$f":"'Population at Risk'!AF242/'Population at Risk'!AF$5","v":5.3046552177791872E-3},{"$f":"'Population at Risk'!AG242/'Population at Risk'!AG$5","v":3.8404639281529184E-3},{"$f":"'Population at Risk'!AH242/'Population at Risk'!AH$5","v":5.1347181656325762E-3},{"$f":"'Population at Risk'!AI242/'Population at Risk'!AI$5","v":1.2457783643317325E-2},{"$f":"'Population at Risk'!AJ242/'Population at Risk'!AJ$5","v":6.9144970817156936E-3},{"$f":"'Population at Risk'!AK242/'Population at Risk'!AK$5","v":6.1297368822803089E-3},{"$f":"'Population at Risk'!AL242/'Population at Risk'!AL$5","v":3.4042557990475097E-3},{"$f":"'Population at Risk'!AM242/'Population at Risk'!AM$5","v":4.1035112947502318E-3},{"$f":"'Population at Risk'!AN242/'Population at Risk'!AN$5","v":3.9802829689387868E-3},{"$f":"'Population at Risk'!AO242/'Population at Risk'!AO$5","v":3.9772873813581962E-3},{"$f":"'Population at Risk'!AP242/'Population at Risk'!AP$5","v":7.0813316678338678E-3},{"$f":"'Population at Risk'!AQ242/'Population at Risk'!AQ$5","v":8.6042075166846907E-3},{"$f":"'Population at Risk'!AR242/'Population at Risk'!AR$5","v":7.8626863813726858E-3},{"$f":"'Population at Risk'!AS242/'Population at Risk'!AS$5","v":3.5972656562372751E-3},{"$f":"'Population at Risk'!AT242/'Population at Risk'!AT$5","v":0},{"$f":"'Population at Risk'!AU242/'Population at Risk'!AU$5","v":0},{"$f":"'Population at Risk'!AV242/'Population at Risk'!AV$5","v":8.8267967245736507E-3},{"$f":"'Population at Risk'!AW242/'Population at Risk'!AW$5","v":6.1883818125492533E-3},{"$f":"'Population at Risk'!AX242/'Population at Risk'!AX$5","v":1.0427180249094307E-2},{"$f":"'Population at Risk'!AY242/'Population at Risk'!AY$5","v":7.37456443905821E-3},{"$f":"'Population at Risk'!AZ242/'Population at Risk'!AZ$5","v":7.0542409253411967E-3},{"$f":"'Population at Risk'!BA242/'Population at Risk'!BA$5","v":1.655816017581004E-3},{"$f":"'Population at Risk'!BB242/'Population at Risk'!BB$5","v":8.1579695735704994E-3},{"$f":"'Population at Risk'!BC242/'Population at Risk'!BC$5","v":0},240]
[null,"Male 60-64",{"$f":"'Population at Risk'!C243/'Population at Risk'!C$5","v":1.5003574739781445E-2},{"$f":"'Population at Risk'!D243/'Population at Risk'!D$5","v":1.4486769535138994E-2},{"$f":"'Population at Risk'!E243/'Population at Risk'!E$5","v":1.4058252941139927E-2},{"$f":"'Population at Risk'!F243/'Population at Risk'!F$5","v":6.8034519702065812E-3},{"$f":"'Population at Risk'!G243/'Population at Risk'!G$5","v":2.8316352917441409E-3},{"$f":"'Population at Risk'!H243/'Population at Risk'!H$5","v":5.1293008037810875E-3},{"$f":"'Population at Risk'!I243/'Population at Risk'!I$5","v":3.7926244204130716E-3},{"$f":"'Population at Risk'!J243/'Population at Risk'!J$5","v":7.4077599077659534E-3},{"$f":"'Population at Risk'!K243/'Population at Risk'!K$5","v":5.5045801103037533E-3},{"$f":"'Population at Risk'!L243/'Population at Risk'!L$5","v":3.1667910386014822E-3},{"$f":"'Population at Risk'!M243/'Population at Risk'!M$5","v":3.1656899574231978E-3},{"$f":"'Population at Risk'!N243/'Population at Risk'!N$5","v":4.9258981440112115E-3},{"$f":"'Population at Risk'!O243/'Population at Risk'!O$5","v":4.1407444500504058E-3},{"$f":"'Population at Risk'!P243/'Population at Risk'!P$5","v":2.0975892155850245E-2},{"$f":"'Population at Risk'!Q243/'Population at Risk'!Q$5","v":6.4405635894738298E-3},{"$f":"'Population at Risk'!R243/'Population at Risk'!R$5","v":2.2981495453730263E-2},{"$f":"'Population at Risk'!S243/'Population at Risk'!S$5","v":8.7416638655718835E-3},{"$f":"'Population at Risk'!T243/'Population at Risk'!T$5","v":1.3777320518329052E-2},{"$f":"'Population at Risk'!U243/'Population at Risk'!U$5","v":0},{"$f":"'Population at Risk'!V243/'Population at Risk'!V$5","v":5.9821080983063039E-3},{"$f":"'Population at Risk'!W243/'Population at Risk'!W$5","v":6.588884594323316E-3},{"$f":"'Population at Risk'!X243/'Population at Risk'!X$5","v":6.5882161575393349E-3},{"$f":"'Population at Risk'!Y243/'Population at Risk'!Y$5","v":6.9113374559967517E-3},{"$f":"'Population at Risk'!Z243/'Population at Risk'!Z$5","v":2.7182880593052791E-3},{"$f":"'Population at Risk'!AA243/'Population at Risk'!AA$5","v":5.6689938933767231E-3},{"$f":"'Population at Risk'!AB243/'Population at Risk'!AB$5","v":1.2917557177716959E-2},{"$f":"'Population at Risk'!AC243/'Population at Risk'!AC$5","v":6.2638741786113809E-3},{"$f":"'Population at Risk'!AD243/'Population at Risk'!AD$5","v":3.3150804443984982E-3},{"$f":"'Population at Risk'!AE243/'Population at Risk'!AE$5","v":3.5469569699132517E-3},{"$f":"'Population at Risk'!AF243/'Population at Risk'!AF$5","v":4.4020306388377018E-3},{"$f":"'Population at Risk'!AG243/'Population at Risk'!AG$5","v":3.5469569699132517E-3},{"$f":"'Population at Risk'!AH243/'Population at Risk'!AH$5","v":4.4852105972461647E-3},{"$f":"'Population at Risk'!AI243/'Population at Risk'!AI$5","v":1.0483017986240234E-2},{"$f":"'Population at Risk'!AJ243/'Population at Risk'!AJ$5","v":5.821179167085435E-3},{"$f":"'Population at Risk'!AK243/'Population at Risk'!AK$5","v":5.8188982979861751E-3},{"$f":"'Population at Risk'!AL243/'Population at Risk'!AL$5","v":3.4776233809235336E-3},{"$f":"'Population at Risk'!AM243/'Population at Risk'!AM$5","v":3.4031693156290517E-3},{"$f":"'Population at Risk'!AN243/'Population at Risk'!AN$5","v":2.9443189085300615E-3},{"$f":"'Population at Risk'!AO243/'Population at Risk'!AO$5","v":2.9421029944293508E-3},{"$f":"'Population at Risk'!AP243/'Population at Risk'!AP$5","v":7.1050945257796188E-3},{"$f":"'Population at Risk'!AQ243/'Population at Risk'!AQ$5","v":7.0211393130760365E-3},{"$f":"'Population at Risk'!AR243/'Population at Risk'!AR$5","v":6.908292430133087E-3},{"$f":"'Population at Risk'!AS243/'Population at Risk'!AS$5","v":3.7931053337974712E-3},{"$f":"'Population at Risk'!AT243/'Population at Risk'!AT$5","v":0},{"$f":"'Population at Risk'!AU243/'Population at Risk'!AU$5","v":0},{"$f":"'Population at Risk'!AV243/'Population at Risk'!AV$5","v":8.2886925392253105E-3},{"$f":"'Population at Risk'!AW243/'Population at Risk'!AW$5","v":5.5953285555132839E-3},{"$f":"'Population at Risk'!AX243/'Population at Risk'!AX$5","v":9.4021783071323653E-3},{"$f":"'Population at Risk'!AY243/'Population at Risk'!AY$5","v":6.5520509443534793E-3},{"$f":"'Population at Risk'!AZ243/'Population at Risk'!AZ$5","v":6.4714365625931714E-3},{"$f":"'Population at Risk'!BA243/'Population at Risk'!BA$5","v":1.6323292655585782E-3},{"$f":"'Population at Risk'!BB243/'Population at Risk'!BB$5","v":6.0561640352104693E-3},{"$f":"'Population at Risk'!BC243/'Population at Risk'!BC$5","v":0},241]
[null,"Male 65-69",{"$f":"'Population at Risk'!C244/'Population at Risk'!C$5","v":1.5075291493971025E-2},{"$f":"'Population at Risk'!D244/'Population at Risk'!D$5","v":1.4961141103172986E-2},{"$f":"'Population at Risk'!E244/'Population at Risk'!E$5","v":1.4881965977916849E-2},{"$f":"'Population at Risk'!F244/'Population at Risk'!F$5","v":9.2253649602661442E-3},{"$f":"'Population at Risk'!G244/'Population at Risk'!G$5","v":3.4303951772230775E-3},{"$f":"'Population at Risk'!H244/'Population at Risk'!H$5","v":6.4785238048855037E-3},{"$f":"'Population at Risk'!I244/'Population at Risk'!I$5","v":4.7196999797012957E-3},{"$f":"'Population at Risk'!J244/'Population at Risk'!J$5","v":9.3162629095152119E-3},{"$f":"'Population at Risk'!K244/'Population at Risk'!K$5","v":7.0923324334346257E-3},{"$f":"'Population at Risk'!L244/'Population at Risk'!L$5","v":3.9118823870004796E-3},{"$f":"'Population at Risk'!M244/'Population at Risk'!M$5","v":3.9105222403992409E-3},{"$f":"'Population at Risk'!N244/'Population at Risk'!N$5","v":5.5469544093914814E-3},{"$f":"'Population at Risk'!O244/'Population at Risk'!O$5","v":4.9361462236499317E-3},{"$f":"'Population at Risk'!P244/'Population at Risk'!P$5","v":2.3823307694394114E-2},{"$f":"'Population at Risk'!Q244/'Population at Risk'!Q$5","v":7.4062982240417994E-3},{"$f":"'Population at Risk'!R244/'Population at Risk'!R$5","v":2.3499073984687424E-2},{"$f":"'Population at Risk'!S244/'Population at Risk'!S$5","v":1.0144501121665709E-2},{"$f":"'Population at Risk'!T244/'Population at Risk'!T$5","v":1.5606740229783889E-2},{"$f":"'Population at Risk'!U244/'Population at Risk'!U$5","v":0},{"$f":"'Population at Risk'!V244/'Population at Risk'!V$5","v":6.600925137444277E-3},{"$f":"'Population at Risk'!W244/'Population at Risk'!W$5","v":8.2620419340229279E-3},{"$f":"'Population at Risk'!X244/'Population at Risk'!X$5","v":8.2612037568382413E-3},{"$f":"'Population at Risk'!Y244/'Population at Risk'!Y$5","v":8.2014537811161449E-3},{"$f":"'Population at Risk'!Z244/'Population at Risk'!Z$5","v":2.7422830358691344E-3},{"$f":"'Population at Risk'!AA244/'Population at Risk'!AA$5","v":5.9415896604768145E-3},{"$f":"'Population at Risk'!AB244/'Population at Risk'!AB$5","v":1.3451962073439332E-2},{"$f":"'Population at Risk'!AC244/'Population at Risk'!AC$5","v":6.7126491689905362E-3},{"$f":"'Population at Risk'!AD244/'Population at Risk'!AD$5","v":3.9635088968932725E-3},{"$f":"'Population at Risk'!AE244/'Population at Risk'!AE$5","v":4.2228370147347942E-3},{"$f":"'Population at Risk'!AF244/'Population at Risk'!AF$5","v":5.5388326435045661E-3},{"$f":"'Population at Risk'!AG244/'Population at Risk'!AG$5","v":4.2228370147347942E-3},{"$f":"'Population at Risk'!AH244/'Population at Risk'!AH$5","v":4.4202598404075233E-3},{"$f":"'Population at Risk'!AI244/'Population at Risk'!AI$5","v":1.1821433462106908E-2},{"$f":"'Population at Risk'!AJ244/'Population at Risk'!AJ$5","v":7.1522332867397171E-3},{"$f":"'Population at Risk'!AK244/'Population at Risk'!AK$5","v":6.6265134560885685E-3},{"$f":"'Population at Risk'!AL244/'Population at Risk'!AL$5","v":4.2102987326581897E-3},{"$f":"'Population at Risk'!AM244/'Population at Risk'!AM$5","v":3.3673363774556517E-3},{"$f":"'Population at Risk'!AN244/'Population at Risk'!AN$5","v":3.9034530984300058E-3},{"$f":"'Population at Risk'!AO244/'Population at Risk'!AO$5","v":3.9005153335237601E-3},{"$f":"'Population at Risk'!AP244/'Population at Risk'!AP$5","v":9.4781399306348661E-3},{"$f":"'Population at Risk'!AQ244/'Population at Risk'!AQ$5","v":7.8054475425169906E-3},{"$f":"'Population at Risk'!AR244/'Population at Risk'!AR$5","v":7.7735486435813531E-3},{"$f":"'Population at Risk'!AS244/'Population at Risk'!AS$5","v":4.7202984483707411E-3},{"$f":"'Population at Risk'!AT244/'Population at Risk'!AT$5","v":0},{"$f":"'Population at Risk'!AU244/'Population at Risk'!AU$5","v":0},{"$f":"'Population at Risk'!AV244/'Population at Risk'!AV$5","v":1.1017404273380091E-2},{"$f":"'Population at Risk'!AW244/'Population at Risk'!AW$5","v":5.5002257181342787E-3},{"$f":"'Population at Risk'!AX244/'Population at Risk'!AX$5","v":1.1719649027763486E-2},{"$f":"'Population at Risk'!AY244/'Population at Risk'!AY$5","v":8.2996404129459678E-3},{"$f":"'Population at Risk'!AZ244/'Population at Risk'!AZ$5","v":8.2784710617617233E-3},{"$f":"'Population at Risk'!BA244/'Population at Risk'!BA$5","v":1.2944403103268647E-3},{"$f":"'Population at Risk'!BB244/'Population at Risk'!BB$5","v":6.3002110943702798E-3},{"$f":"'Population at Risk'!BC244/'Population at Risk'!BC$5","v":0},242]
[null,"Male 70-74",{"$f":"'Population at Risk'!C245/'Population at Risk'!C$5","v":9.8509811232318466E-3},{"$f":"'Population at Risk'!D245/'Population at Risk'!D$5","v":9.8817028976619248E-3},{"$f":"'Population at Risk'!E245/'Population at Risk'!E$5","v":9.9213106519445652E-3},{"$f":"'Population at Risk'!F245/'Population at Risk'!F$5","v":6.8369575901849724E-3},{"$f":"'Population at Risk'!G245/'Population at Risk'!G$5","v":2.8633877099134781E-3},{"$f":"'Population at Risk'!H245/'Population at Risk'!H$5","v":4.9005039255334525E-3},{"$f":"'Population at Risk'!I245/'Population at Risk'!I$5","v":3.0449677288395456E-3},{"$f":"'Population at Risk'!J245/'Population at Risk'!J$5","v":6.3383860152237429E-3},{"$f":"'Population at Risk'!K245/'Population at Risk'!K$5","v":4.5809491455299058E-3},{"$f":"'Population at Risk'!L245/'Population at Risk'!L$5","v":2.7887442797952639E-3},{"$f":"'Population at Risk'!M245/'Population at Risk'!M$5","v":2.7877746440346149E-3},{"$f":"'Population at Risk'!N245/'Population at Risk'!N$5","v":4.3311835799358144E-3},{"$f":"'Population at Risk'!O245/'Population at Risk'!O$5","v":3.2105016088780042E-3},{"$f":"'Population at Risk'!P245/'Population at Risk'!P$5","v":1.8921552202442231E-2},{"$f":"'Population at Risk'!Q245/'Population at Risk'!Q$5","v":6.1962140653893001E-3},{"$f":"'Population at Risk'!R245/'Population at Risk'!R$5","v":1.7998620047292448E-2},{"$f":"'Population at Risk'!S245/'Population at Risk'!S$5","v":7.2779310897957061E-3},{"$f":"'Population at Risk'!T245/'Population at Risk'!T$5","v":1.0884983475632586E-2},{"$f":"'Population at Risk'!U245/'Population at Risk'!U$5","v":0},{"$f":"'Population at Risk'!V245/'Population at Risk'!V$5","v":4.3323494338834753E-3},{"$f":"'Population at Risk'!W245/'Population at Risk'!W$5","v":6.4806351229696572E-3},{"$f":"'Population at Risk'!X245/'Population at Risk'!X$5","v":6.4799776680032305E-3},{"$f":"'Population at Risk'!Y245/'Population at Risk'!Y$5","v":5.495560449859235E-3},{"$f":"'Population at Risk'!Z245/'Population at Risk'!Z$5","v":1.6399164177569681E-3},{"$f":"'Population at Risk'!AA245/'Population at Risk'!AA$5","v":4.2998905846399847E-3},{"$f":"'Population at Risk'!AB245/'Population at Risk'!AB$5","v":9.0487596196641967E-3},{"$f":"'Population at Risk'!AC245/'Population at Risk'!AC$5","v":4.9078026047614711E-3},{"$f":"'Population at Risk'!AD245/'Population at Risk'!AD$5","v":2.9295500542254617E-3},{"$f":"'Population at Risk'!AE245/'Population at Risk'!AE$5","v":2.990469586070557E-3},{"$f":"'Population at Risk'!AF245/'Population at Risk'!AF$5","v":4.6867045445038637E-3},{"$f":"'Population at Risk'!AG245/'Population at Risk'!AG$5","v":2.990469586070557E-3},{"$f":"'Population at Risk'!AH245/'Population at Risk'!AH$5","v":3.1040229120486967E-3},{"$f":"'Population at Risk'!AI245/'Population at Risk'!AI$5","v":8.2607607325566341E-3},{"$f":"'Population at Risk'!AJ245/'Population at Risk'!AJ$5","v":4.7681555244931447E-3},{"$f":"'Population at Risk'!AK245/'Population at Risk'!AK$5","v":5.2842559330002646E-3},{"$f":"'Population at Risk'!AL245/'Population at Risk'!AL$5","v":3.2181689322892306E-3},{"$f":"'Population at Risk'!AM245/'Population at Risk'!AM$5","v":2.0196019841034491E-3},{"$f":"'Population at Risk'!AN245/'Population at Risk'!AN$5","v":2.5403424926290518E-3},{"$f":"'Population at Risk'!AO245/'Population at Risk'!AO$5","v":2.5384306138805423E-3},{"$f":"'Population at Risk'!AP245/'Population at Risk'!AP$5","v":7.2548725394982931E-3},{"$f":"'Population at Risk'!AQ245/'Population at Risk'!AQ$5","v":5.7129553372906429E-3},{"$f":"'Population at Risk'!AR245/'Population at Risk'!AR$5","v":5.5595787966891E-3},{"$f":"'Population at Risk'!AS245/'Population at Risk'!AS$5","v":3.0453538376585426E-3},{"$f":"'Population at Risk'!AT245/'Population at Risk'!AT$5","v":0},{"$f":"'Population at Risk'!AU245/'Population at Risk'!AU$5","v":0},{"$f":"'Population at Risk'!AV245/'Population at Risk'!AV$5","v":8.8503977853345434E-3},{"$f":"'Population at Risk'!AW245/'Population at Risk'!AW$5","v":4.2235371001502955E-3},{"$f":"'Population at Risk'!AX245/'Population at Risk'!AX$5","v":8.1246646634188582E-3},{"$f":"'Population at Risk'!AY245/'Population at Risk'!AY$5","v":6.4135110510067702E-3},{"$f":"'Population at Risk'!AZ245/'Population at Risk'!AZ$5","v":6.304752416541699E-3},{"$f":"'Population at Risk'!BA245/'Population at Risk'!BA$5","v":6.5389252789707598E-4},{"$f":"'Population at Risk'!BB245/'Population at Risk'!BB$5","v":4.0266233725865944E-3},{"$f":"'Population at Risk'!BC245/'Population at Risk'!BC$5","v":0},243]
[null,"Male 75-79",{"$f":"'Population at Risk'!C246/'Population at Risk'!C$5","v":1.3478183552355848E-2},{"$f":"'Population at Risk'!D246/'Population at Risk'!D$5","v":1.3086451573933599E-2},{"$f":"'Population at Risk'!E246/'Population at Risk'!E$5","v":1.2764411678628421E-2},{"$f":"'Population at Risk'!F246/'Population at Risk'!F$5","v":8.1113596933157246E-3},{"$f":"'Population at Risk'!G246/'Population at Risk'!G$5","v":3.2238627072555559E-3},{"$f":"'Population at Risk'!H246/'Population at Risk'!H$5","v":6.1530772100921571E-3},{"$f":"'Population at Risk'!I246/'Population at Risk'!I$5","v":3.7416212109550088E-3},{"$f":"'Population at Risk'!J246/'Population at Risk'!J$5","v":9.1886633800223865E-3},{"$f":"'Population at Risk'!K246/'Population at Risk'!K$5","v":5.0786913610632433E-3},{"$f":"'Population at Risk'!L246/'Population at Risk'!L$5","v":4.288974096395809E-3},{"$f":"'Population at Risk'!M246/'Population at Risk'!M$5","v":4.2874828364439753E-3},{"$f":"'Population at Risk'!N246/'Population at Risk'!N$5","v":6.431005545171363E-3},{"$f":"'Population at Risk'!O246/'Population at Risk'!O$5","v":3.9115948977167378E-3},{"$f":"'Population at Risk'!P246/'Population at Risk'!P$5","v":2.8550656397931824E-2},{"$f":"'Population at Risk'!Q246/'Population at Risk'!Q$5","v":8.5789135117577079E-3},{"$f":"'Population at Risk'!R246/'Population at Risk'!R$5","v":2.676947998548726E-2},{"$f":"'Population at Risk'!S246/'Population at Risk'!S$5","v":9.2987814966858876E-3},{"$f":"'Population at Risk'!T246/'Population at Risk'!T$5","v":1.4668798634743969E-2},{"$f":"'Population at Risk'!U246/'Population at Risk'!U$5","v":0},{"$f":"'Population at Risk'!V246/'Population at Risk'!V$5","v":5.2606537625801428E-3},{"$f":"'Population at Risk'!W246/'Population at Risk'!W$5","v":7.41645385041607E-3},{"$f":"'Population at Risk'!X246/'Population at Risk'!X$5","v":7.4157014574291625E-3},{"$f":"'Population at Risk'!Y246/'Population at Risk'!Y$5","v":7.4244937903810903E-3},{"$f":"'Population at Risk'!Z246/'Population at Risk'!Z$5","v":2.053050705802821E-3},{"$f":"'Population at Risk'!AA246/'Population at Risk'!AA$5","v":5.7538043795289243E-3},{"$f":"'Population at Risk'!AB246/'Population at Risk'!AB$5","v":1.2050603350440786E-2},{"$f":"'Population at Risk'!AC246/'Population at Risk'!AC$5","v":6.7412420787177491E-3},{"$f":"'Population at Risk'!AD246/'Population at Risk'!AD$5","v":3.5228139971492183E-3},{"$f":"'Population at Risk'!AE246/'Population at Risk'!AE$5","v":3.6835632034622023E-3},{"$f":"'Population at Risk'!AF246/'Population at Risk'!AF$5","v":5.6966341433195098E-3},{"$f":"'Population at Risk'!AG246/'Population at Risk'!AG$5","v":3.6835632034622023E-3},{"$f":"'Population at Risk'!AH246/'Population at Risk'!AH$5","v":3.8227559319709893E-3},{"$f":"'Population at Risk'!AI246/'Population at Risk'!AI$5","v":1.0994678376842353E-2},{"$f":"'Population at Risk'!AJ246/'Population at Risk'!AJ$5","v":5.5154463779973351E-3},{"$f":"'Population at Risk'!AK246/'Population at Risk'!AK$5","v":7.370336059277869E-3},{"$f":"'Population at Risk'!AL246/'Population at Risk'!AL$5","v":3.7772215689593192E-3},{"$f":"'Population at Risk'!AM246/'Population at Risk'!AM$5","v":2.5986878599414281E-3},{"$f":"'Population at Risk'!AN246/'Population at Risk'!AN$5","v":2.4604146434707226E-3},{"$f":"'Population at Risk'!AO246/'Population at Risk'!AO$5","v":2.4585629189560082E-3},{"$f":"'Population at Risk'!AP246/'Population at Risk'!AP$5","v":1.0008123671485561E-2},{"$f":"'Population at Risk'!AQ246/'Population at Risk'!AQ$5","v":6.5756943896756927E-3},{"$f":"'Population at Risk'!AR246/'Population at Risk'!AR$5","v":7.2950306455099728E-3},{"$f":"'Population at Risk'!AS246/'Population at Risk'!AS$5","v":3.7420956570166897E-3},{"$f":"'Population at Risk'!AT246/'Population at Risk'!AT$5","v":0},{"$f":"'Population at Risk'!AU246/'Population at Risk'!AU$5","v":0},{"$f":"'Population at Risk'!AV246/'Population at Risk'!AV$5","v":1.1579431352136063E-2},{"$f":"'Population at Risk'!AW246/'Population at Risk'!AW$5","v":5.0848414722141451E-3},{"$f":"'Population at Risk'!AX246/'Population at Risk'!AX$5","v":1.274429147128899E-2},{"$f":"'Population at Risk'!AY246/'Population at Risk'!AY$5","v":7.9932199039273663E-3},{"$f":"'Population at Risk'!AZ246/'Population at Risk'!AZ$5","v":8.4921539732271956E-3},{"$f":"'Population at Risk'!BA246/'Population at Risk'!BA$5","v":7.7079249819051235E-4},{"$f":"'Population at Risk'!BB246/'Population at Risk'!BB$5","v":5.084875112180455E-3},{"$f":"'Population at Risk'!BC246/'Population at Risk'!BC$5","v":0},244]
[null,"Male 80-84",{"$f":"'Population at Risk'!C247/'Population at Risk'!C$5","v":9.9753103089827901E-3},{"$f":"'Population at Risk'!D247/'Population at Risk'!D$5","v":9.0615807290296228E-3},{"$f":"'Population at Risk'!E247/'Population at Risk'!E$5","v":8.2821717223995252E-3},{"$f":"'Population at Risk'!F247/'Population at Risk'!F$5","v":6.7424400473405262E-3},{"$f":"'Population at Risk'!G247/'Population at Risk'!G$5","v":1.9445521091382718E-3},{"$f":"'Population at Risk'!H247/'Population at Risk'!H$5","v":4.4140384868642333E-3},{"$f":"'Population at Risk'!I247/'Population at Risk'!I$5","v":2.7480833752776901E-3},{"$f":"'Population at Risk'!J247/'Population at Risk'!J$5","v":6.3960303919763676E-3},{"$f":"'Population at Risk'!K247/'Population at Risk'!K$5","v":3.3997851260010141E-3},{"$f":"'Population at Risk'!L247/'Population at Risk'!L$5","v":2.7995554391265251E-3},{"$f":"'Population at Risk'!M247/'Population at Risk'!M$5","v":2.798582044366968E-3},{"$f":"'Population at Risk'!N247/'Population at Risk'!N$5","v":4.9832673300261509E-3},{"$f":"'Population at Risk'!O247/'Population at Risk'!O$5","v":2.4447468110729612E-3},{"$f":"'Population at Risk'!P247/'Population at Risk'!P$5","v":2.1267087472212502E-2},{"$f":"'Population at Risk'!Q247/'Population at Risk'!Q$5","v":5.8947135786310634E-3},{"$f":"'Population at Risk'!R247/'Population at Risk'!R$5","v":1.9515263836391353E-2},{"$f":"'Population at Risk'!S247/'Population at Risk'!S$5","v":6.8633425792894061E-3},{"$f":"'Population at Risk'!T247/'Population at Risk'!T$5","v":1.155390384970733E-2},{"$f":"'Population at Risk'!U247/'Population at Risk'!U$5","v":0},{"$f":"'Population at Risk'!V247/'Population at Risk'!V$5","v":3.8530734315114024E-3},{"$f":"'Population at Risk'!W247/'Population at Risk'!W$5","v":5.3713851807000107E-3},{"$f":"'Population at Risk'!X247/'Population at Risk'!X$5","v":5.3708402582045098E-3},{"$f":"'Population at Risk'!Y247/'Population at Risk'!Y$5","v":5.2697272626228316E-3},{"$f":"'Population at Risk'!Z247/'Population at Risk'!Z$5","v":1.3640131401566685E-3},{"$f":"'Population at Risk'!AA247/'Population at Risk'!AA$5","v":3.9945246326193685E-3},{"$f":"'Population at Risk'!AB247/'Population at Risk'!AB$5","v":8.3161595914772856E-3},{"$f":"'Population at Risk'!AC247/'Population at Risk'!AC$5","v":4.7445577909682075E-3},{"$f":"'Population at Risk'!AD247/'Population at Risk'!AD$5","v":2.4956279856601241E-3},{"$f":"'Population at Risk'!AE247/'Population at Risk'!AE$5","v":2.7448157942696187E-3},{"$f":"'Population at Risk'!AF247/'Population at Risk'!AF$5","v":4.0161270710402548E-3},{"$f":"'Population at Risk'!AG247/'Population at Risk'!AG$5","v":2.7448157942696187E-3},{"$f":"'Population at Risk'!AH247/'Population at Risk'!AH$5","v":2.5312343247513619E-3},{"$f":"'Population at Risk'!AI247/'Population at Risk'!AI$5","v":8.1667920950335253E-3},{"$f":"'Population at Risk'!AJ247/'Population at Risk'!AJ$5","v":3.4244254984269165E-3},{"$f":"'Population at Risk'!AK247/'Population at Risk'!AK$5","v":4.9475612301034828E-3},{"$f":"'Population at Risk'!AL247/'Population at Risk'!AL$5","v":2.8592513868616362E-3},{"$f":"'Population at Risk'!AM247/'Population at Risk'!AM$5","v":1.414841168190333E-3},{"$f":"'Population at Risk'!AN247/'Population at Risk'!AN$5","v":1.7893924679787073E-3},{"$f":"'Population at Risk'!AO247/'Population at Risk'!AO$5","v":1.788045759240733E-3},{"$f":"'Population at Risk'!AP247/'Population at Risk'!AP$5","v":7.7822909718207531E-3},{"$f":"'Population at Risk'!AQ247/'Population at Risk'!AQ$5","v":3.9535683210653438E-3},{"$f":"'Population at Risk'!AR247/'Population at Risk'!AR$5","v":5.2351530999614213E-3},{"$f":"'Population at Risk'!AS247/'Population at Risk'!AS$5","v":2.7484318384868346E-3},{"$f":"'Population at Risk'!AT247/'Population at Risk'!AT$5","v":0},{"$f":"'Population at Risk'!AU247/'Population at Risk'!AU$5","v":0},{"$f":"'Population at Risk'!AV247/'Population at Risk'!AV$5","v":8.5006193371032299E-3},{"$f":"'Population at Risk'!AW247/'Population at Risk'!AW$5","v":3.687076728737746E-3},{"$f":"'Population at Risk'!AX247/'Population at Risk'!AX$5","v":8.9547465531460337E-3},{"$f":"'Population at Risk'!AY247/'Population at Risk'!AY$5","v":6.081995288778382E-3},{"$f":"'Population at Risk'!AZ247/'Population at Risk'!AZ$5","v":6.7227086505826433E-3},{"$f":"'Population at Risk'!BA247/'Population at Risk'!BA$5","v":5.0583257693752369E-4},{"$f":"'Population at Risk'!BB247/'Population at Risk'!BB$5","v":2.5977079377443634E-3},{"$f":"'Population at Risk'!BC247/'Population at Risk'!BC$5","v":0},245]
[null,"Male 85-89",{"$f":"'Population at Risk'!C248/'Population at Risk'!C$5","v":5.5027835726344926E-3},{"$f":"'Population at Risk'!D248/'Population at Risk'!D$5","v":4.9242833242121274E-3},{"$f":"'Population at Risk'!E248/'Population at Risk'!E$5","v":4.4297547108397969E-3},{"$f":"'Population at Risk'!F248/'Population at Risk'!F$5","v":2.9421556570213207E-3},{"$f":"'Population at Risk'!G248/'Population at Risk'!G$5","v":1.3304830220419754E-3},{"$f":"'Population at Risk'!H248/'Population at Risk'!H$5","v":2.2705721535833034E-3},{"$f":"'Population at Risk'!I248/'Population at Risk'!I$5","v":1.6911282309401167E-3},{"$f":"'Population at Risk'!J248/'Population at Risk'!J$5","v":2.6575055853986316E-3},{"$f":"'Population at Risk'!K248/'Population at Risk'!K$5","v":1.4270702998028949E-3},{"$f":"'Population at Risk'!L248/'Population at Risk'!L$5","v":1.4480459167895818E-3},{"$f":"'Population at Risk'!M248/'Population at Risk'!M$5","v":1.4475424367415351E-3},{"$f":"'Population at Risk'!N248/'Population at Risk'!N$5","v":2.8497583813911018E-3},{"$f":"'Population at Risk'!O248/'Population at Risk'!O$5","v":1.358192672818312E-3},{"$f":"'Population at Risk'!P248/'Population at Risk'!P$5","v":1.0435113172424796E-2},{"$f":"'Population at Risk'!Q248/'Population at Risk'!Q$5","v":2.6578842475077562E-3},{"$f":"'Population at Risk'!R248/'Population at Risk'!R$5","v":1.0184350515201317E-2},{"$f":"'Population at Risk'!S248/'Population at Risk'!S$5","v":3.6320206043588283E-3},{"$f":"'Population at Risk'!T248/'Population at Risk'!T$5","v":6.4287240269327601E-3},{"$f":"'Population at Risk'!U248/'Population at Risk'!U$5","v":0},{"$f":"'Population at Risk'!V248/'Population at Risk'!V$5","v":1.5639781456319344E-3},{"$f":"'Population at Risk'!W248/'Population at Risk'!W$5","v":2.6240941364428952E-3},{"$f":"'Population at Risk'!X248/'Population at Risk'!X$5","v":2.6238279243063316E-3},{"$f":"'Population at Risk'!Y248/'Population at Risk'!Y$5","v":2.1698876963741074E-3},{"$f":"'Population at Risk'!Z248/'Population at Risk'!Z$5","v":6.6794457894269865E-4},{"$f":"'Population at Risk'!AA248/'Population at Risk'!AA$5","v":1.9345679835107254E-3},{"$f":"'Population at Risk'!AB248/'Population at Risk'!AB$5","v":4.581715832513788E-3},{"$f":"'Population at Risk'!AC248/'Population at Risk'!AC$5","v":2.3547641210301604E-3},{"$f":"'Population at Risk'!AD248/'Population at Risk'!AD$5","v":1.3961049311084172E-3},{"$f":"'Population at Risk'!AE248/'Population at Risk'!AE$5","v":1.438732442349503E-3},{"$f":"'Population at Risk'!AF248/'Population at Risk'!AF$5","v":1.9083724380120359E-3},{"$f":"'Population at Risk'!AG248/'Population at Risk'!AG$5","v":1.438732442349503E-3},{"$f":"'Population at Risk'!AH248/'Population at Risk'!AH$5","v":1.1175917632674141E-3},{"$f":"'Population at Risk'!AI248/'Population at Risk'!AI$5","v":4.3942841799777749E-3},{"$f":"'Population at Risk'!AJ248/'Population at Risk'!AJ$5","v":1.69706042399918E-3},{"$f":"'Population at Risk'!AK248/'Population at Risk'!AK$5","v":3.0348442597026518E-3},{"$f":"'Population at Risk'!AL248/'Population at Risk'!AL$5","v":1.3694309273916258E-3},{"$f":"'Population at Risk'!AM248/'Population at Risk'!AM$5","v":6.2801623281917845E-4},{"$f":"'Population at Risk'!AN248/'Population at Risk'!AN$5","v":1.1183702924866922E-3},{"$f":"'Population at Risk'!AO248/'Population at Risk'!AO$5","v":1.1175285995254582E-3},{"$f":"'Population at Risk'!AP248/'Population at Risk'!AP$5","v":4.3054428132202494E-3},{"$f":"'Population at Risk'!AQ248/'Population at Risk'!AQ$5","v":1.9292326515164223E-3},{"$f":"'Population at Risk'!AR248/'Population at Risk'!AR$5","v":2.6864310122190595E-3},{"$f":"'Population at Risk'!AS248/'Population at Risk'!AS$5","v":1.691342669838052E-3},{"$f":"'Population at Risk'!AT248/'Population at Risk'!AT$5","v":0},{"$f":"'Population at Risk'!AU248/'Population at Risk'!AU$5","v":0},{"$f":"'Population at Risk'!AV248/'Population at Risk'!AV$5","v":4.3955366503927859E-3},{"$f":"'Population at Risk'!AW248/'Population at Risk'!AW$5","v":1.6244292964725726E-3},{"$f":"'Population at Risk'!AX248/'Population at Risk'!AX$5","v":3.7116775568112543E-3},{"$f":"'Population at Risk'!AY248/'Population at Risk'!AY$5","v":3.0955175224758498E-3},{"$f":"'Population at Risk'!AZ248/'Population at Risk'!AZ$5","v":3.5270548906225839E-3},{"$f":"'Population at Risk'!BA248/'Population at Risk'!BA$5","v":1.4452359341072109E-4},{"$f":"'Population at Risk'!BB248/'Population at Risk'!BB$5","v":1.1744956101503768E-3},{"$f":"'Population at Risk'!BC248/'Population at Risk'!BC$5","v":0},246]
[null,"Male 90+",{"$f":"'Population at Risk'!C249/'Population at Risk'!C$5","v":2.6907884430062939E-3},{"$f":"'Population at Risk'!D249/'Population at Risk'!D$5","v":2.3216084622141651E-3},{"$f":"'Population at Risk'!E249/'Population at Risk'!E$5","v":2.0049363738635102E-3},{"$f":"'Population at Risk'!F249/'Population at Risk'!F$5","v":1.0624450983688102E-3},{"$f":"'Population at Risk'!G249/'Population at Risk'!G$5","v":3.5820696747283955E-4},{"$f":"'Population at Risk'!H249/'Population at Risk'!H$5","v":1.1035096217160583E-3},{"$f":"'Population at Risk'!I249/'Population at Risk'!I$5","v":4.8619936639528362E-4},{"$f":"'Population at Risk'!J249/'Population at Risk'!J$5","v":1.0810192211791044E-3},{"$f":"'Population at Risk'!K249/'Population at Risk'!K$5","v":3.7775390288900161E-4},{"$f":"'Population at Risk'!L249/'Population at Risk'!L$5","v":6.0680019370230095E-4},{"$f":"'Population at Risk'!M249/'Population at Risk'!M$5","v":6.0658921158692912E-4},{"$f":"'Population at Risk'!N249/'Population at Risk'!N$5","v":9.2960032761955718E-4},{"$f":"'Population at Risk'!O249/'Population at Risk'!O$5","v":5.4327706912732474E-4},{"$f":"'Population at Risk'!P249/'Population at Risk'!P$5","v":4.4355067175854829E-3},{"$f":"'Population at Risk'!Q249/'Population at Risk'!Q$5","v":1.6578881939899866E-3},{"$f":"'Population at Risk'!R249/'Population at Risk'!R$5","v":4.2387380635893757E-3},{"$f":"'Population at Risk'!S249/'Population at Risk'!S$5","v":1.7130785441611478E-3},{"$f":"'Population at Risk'!T249/'Population at Risk'!T$5","v":3.1096596677508631E-3},{"$f":"'Population at Risk'!U249/'Population at Risk'!U$5","v":0},{"$f":"'Population at Risk'!V249/'Population at Risk'!V$5","v":7.1089915710542478E-4},{"$f":"'Population at Risk'!W249/'Population at Risk'!W$5","v":1.1210918611094061E-3},{"$f":"'Population at Risk'!X249/'Population at Risk'!X$5","v":1.1209781272858035E-3},{"$f":"'Population at Risk'!Y249/'Population at Risk'!Y$5","v":9.2239128556669361E-4},{"$f":"'Population at Risk'!Z249/'Population at Risk'!Z$5","v":3.5154977839089394E-4},{"$f":"'Population at Risk'!AA249/'Population at Risk'!AA$5","v":8.1118789784775133E-4},{"$f":"'Population at Risk'!AB249/'Population at Risk'!AB$5","v":2.118180183875721E-3},{"$f":"'Population at Risk'!AC249/'Population at Risk'!AC$5","v":1.0139108322782756E-3},{"$f":"'Population at Risk'!AD249/'Population at Risk'!AD$5","v":5.0635930143828607E-4},{"$f":"'Population at Risk'!AE249/'Population at Risk'!AE$5","v":5.714114664650508E-4},{"$f":"'Population at Risk'!AF249/'Population at Risk'!AF$5","v":1.1962931700970972E-3},{"$f":"'Population at Risk'!AG249/'Population at Risk'!AG$5","v":5.714114664650508E-4},{"$f":"'Population at Risk'!AH249/'Population at Risk'!AH$5","v":4.1817175248085362E-4},{"$f":"'Population at Risk'!AI249/'Population at Risk'!AI$5","v":2.1732276182611174E-3},{"$f":"'Population at Risk'!AJ249/'Population at Risk'!AJ$5","v":7.2731161028536284E-4},{"$f":"'Population at Risk'!AK249/'Population at Risk'!AK$5","v":1.1986359681178541E-3},{"$f":"'Population at Risk'!AL249/'Population at Risk'!AL$5","v":6.3204504341151963E-4},{"$f":"'Population at Risk'!AM249/'Population at Risk'!AM$5","v":2.8874309554904757E-4},{"$f":"'Population at Risk'!AN249/'Population at Risk'!AN$5","v":4.4734811699467683E-4},{"$f":"'Population at Risk'!AO249/'Population at Risk'!AO$5","v":4.4701143981018326E-4},{"$f":"'Population at Risk'!AP249/'Population at Risk'!AP$5","v":1.7546710333124036E-3},{"$f":"'Population at Risk'!AQ249/'Population at Risk'!AQ$5","v":5.1627352646214117E-4},{"$f":"'Population at Risk'!AR249/'Population at Risk'!AR$5","v":1.1858022499954906E-3},{"$f":"'Population at Risk'!AS249/'Population at Risk'!AS$5","v":4.8626101757843994E-4},{"$f":"'Population at Risk'!AT249/'Population at Risk'!AT$5","v":0},{"$f":"'Population at Risk'!AU249/'Population at Risk'!AU$5","v":0},{"$f":"'Population at Risk'!AV249/'Population at Risk'!AV$5","v":2.3042681118799185E-3},{"$f":"'Population at Risk'!AW249/'Population at Risk'!AW$5","v":5.5155041229068742E-4},{"$f":"'Population at Risk'!AX249/'Population at Risk'!AX$5","v":1.6352145879657972E-3},{"$f":"'Population at Risk'!AY249/'Population at Risk'!AY$5","v":1.2206394927179723E-3},{"$f":"'Population at Risk'!AZ249/'Population at Risk'!AZ$5","v":1.3078508906503206E-3},{"$f":"'Population at Risk'!BA249/'Population at Risk'!BA$5","v":4.8174531136907022E-5},{"$f":"'Population at Risk'!BB249/'Population at Risk'!BB$5","v":6.3560938902255688E-4},{"$f":"'Population at Risk'!BC249/'Population at Risk'!BC$5","v":0},247]

{"sheet":"Targeting","index":18,"n_rows":249,"n_cols":7,"rows_kept":249,"cut":false,"hidden":true,"merged":[]}
["Calculating how many will be treated in each group, for each targeting strategy"]
[]
["SIMD","group","Even distribution","Targeting to SIMD Q1","Targeting to SIMD Q1 & Q2","Proportionate to need",1]
[null,null,null,null,null,null,2]
["All quintiles","16+ Males and Females",null,null,null,null,3]
["Q1 and Q2","16+ Males and Females",null,null,null,null,4]
["SIMD Q1 (most deprived)","16+ Males and Females",null,null,null,null,5]
["SIMD Q2",null,null,null,null,null,6]
["SIMD Q3",null,null,null,null,null,7]
["SIMD Q4",null,null,null,null,null,8]
["SIMD Q5 (least deprived)",null,null,null,null,null,9]
["SIMD Q1 (most deprived)","16+ Females",null,null,null,null,10]
["SIMD Q2",null,null,null,null,null,11]
["SIMD Q3",null,null,null,null,null,12]
["SIMD Q4",null,null,null,null,null,13]
["SIMD Q5 (least deprived)",null,null,null,null,null,14]
["SIMD Q1 (most deprived)","16+ Males",null,null,null,null,15]
["SIMD Q2",null,null,null,null,null,16]
["SIMD Q3",null,null,null,null,null,17]
["SIMD Q4",null,null,null,null,null,18]
["SIMD Q5 (least deprived)",null,null,null,null,null,19]
["All quintiles","Female 0-4",null,null,null,null,20]
[null,"Female 5-9",null,null,null,null,21]
[null,"Female 10-15",null,null,null,null,22]
[null,"Female 16-19",null,null,null,null,23]
[null,"Female 20-24",null,null,null,null,24]
[null,"Female 25-29",null,null,null,null,25]
[null,"Female 30-34",null,null,null,null,26]
[null,"Female 35-39",null,null,null,null,27]
[null,"Female 40-44",null,null,null,null,28]
[null,"Female 45-49",null,null,null,null,29]
[null,"Female 50-54",null,null,null,null,30]
[null,"Female 55-59",null,null,null,null,31]
[null,"Female 60-64",null,null,null,null,32]
[null,"Female 65-69",null,null,null,null,33]
[null,"Female 70-74",null,null,null,null,34]
[null,"Female 75-79",null,null,null,null,35]
[null,"Female 80-84",null,null,null,null,36]
[null,"Female 85-89",null,null,null,null,37]
[null,"Female 90+",null,null,null,null,38]
[null,"Male 0-4",null,null,null,null,39]
[null,"Male 5-9",null,null,null,null,40]
[null,"Male 10-15",null,null,null,null,41]
[null,"Male 16-19",null,null,null,null,42]
[null,"Male 20-24",null,null,null,null,43]
[null,"Male 25-29",null,null,null,null,44]
[null,"Male 30-34",null,null,null,null,45]
[null,"Male 35-39",null,null,null,null,46]
[null,"Male 40-44",null,null,null,null,47]
[null,"Male 45-49",null,null,null,null,48]
[null,"Male 50-54",null,null,null,null,49]
[null,"Male 55-59",null,null,null,null,50]
[null,"Male 60-64",null,null,null,null,51]
[null,"Male 65-69",null,null,null,null,52]
[null,"Male 70-74",null,null,null,null,53]
[null,"Male 75-79",null,null,null,null,54]
[null,"Male 80-84",null,null,null,null,55]
[null,"Male 85-89",null,null,null,null,56]
[null,"Male 90+",null,null,null,null,57]
["SIMD Q1 (most deprived)","Female 0-4",{"$f":"ROUND(Options!$B$21*HLOOKUP(Calculations!$E$2,Pop2016fraction!$C$3:$BC$251,Pop2016fraction!$BD60,FALSE),0)","v":0},{"$f":"ROUND(Options!$B$21*HLOOKUP(Calculations!$E$2,Pop2016fractionQ1!$C$3:$BC$251,Pop2016fractionQ1!$BD60,FALSE),0)","v":0},{"$f":"ROUND(Options!$B$21*HLOOKUP(Calculations!$E$2,'Pop2016fractionQ1&2'!$C$3:$BC$251,'Pop2016fractionQ1&2'!$BD60,FALSE),0)","v":0},{"$f":"ROUND(Options!$B$21*HLOOKUP(Calculations!$E$2,PARfraction!$C$3:$BC$251,PARfraction!$BD60,FALSE),0)","v":0},58]
[null,"Female 5-9",{"$f":"ROUND(Options!$B$21*HLOOKUP(Calculations!$E$2,Pop2016fraction!$C$3:$BC$251,Pop2016fraction!$BD61,FALSE),0)","v":0},{"$f":"ROUND(Options!$B$21*HLOOKUP(Calculations!$E$2,Pop2016fractionQ1!$C$3:$BC$251,Pop2016fractionQ1!$BD61,FALSE),0)","v":0},{"$f":"ROUND(Options!$B$21*HLOOKUP(Calculations!$E$2,'Pop2016fractionQ1&2'!$C$3:$BC$251,'Pop2016fractionQ1&2'!$BD61,FALSE),0)","v":0},{"$f":"ROUND(Options!$B$21*HLOOKUP(Calculations!$E$2,PARfraction!$C$3:$BC$251,PARfraction!$BD61,FALSE),0)","v":0},59]
[null,"Female 10-15",{"$f":"ROUND(Options!$B$21*HLOOKUP(Calculations!$E$2,Pop2016fraction!$C$3:$BC$251,Pop2016fraction!$BD62,FALSE),0)","v":0},{"$f":"ROUND(Options!$B$21*HLOOKUP(Calculations!$E$2,Pop2016fractionQ1!$C$3:$BC$251,Pop2016fractionQ1!$BD62,FALSE),0)","v":0},{"$f":"ROUND(Options!$B$21*HLOOKUP(Calculations!$E$2,'Pop2016fractionQ1&2'!$C$3:$BC$251,'Pop2016fractionQ1&2'!$BD62,FALSE),0)","v":0},{"$f":"ROUND(Options!$B$21*HLOOKUP(Calculations!$E$2,PARfraction!$C$3:$BC$251,PARfraction!$BD62,FALSE),0)","v":0},60]
[null,"Female 16-19",{"$f":"ROUND(Options!$B$21*HLOOKUP(Calculations!$E$2,Pop2016fraction!$C$3:$BC$251,Pop2016fraction!$BD63,FALSE),0)","v":3964},{"$f":"ROUND(Options!$B$21*HLOOKUP(Calculations!$E$2,Pop2016fractionQ1!$C$3:$BC$251,Pop2016fractionQ1!$BD63,FALSE),0)","v":20399},{"$f":"ROUND(Options!$B$21*HLOOKUP(Calculations!$E$2,'Pop2016fractionQ1&2'!$C$3:$BC$251,'Pop2016fractionQ1&2'!$BD63,FALSE),0)","v":10057},{"$f":"ROUND(Options!$B$21*HLOOKUP(Calculations!$E$2,PARfraction!$C$3:$BC$251,PARfraction!$BD63,FALSE),0)","v":4321},61]
[null,"Female 20-24",{"$f":"ROUND(Options!$B$21*HLOOKUP(Calculations!$E$2,Pop2016fraction!$C$3:$BC$251,Pop2016fraction!$BD64,FALSE),0)","v":6177},{"$f":"ROUND(Options!$B$21*HLOOKUP(Calculations!$E$2,Pop2016fractionQ1!$C$3:$BC$251,Pop2016fractionQ1!$BD64,FALSE),0)","v":31791},{"$f":"ROUND(Options!$B$21*HLOOKUP(Calculations!$E$2,'Pop2016fractionQ1&2'!$C$3:$BC$251,'Pop2016fractionQ1&2'!$BD64,FALSE),0)","v":15673},{"$f":"ROUND(Options!$B$21*HLOOKUP(Calculations!$E$2,PARfraction!$C$3:$BC$251,PARfraction!$BD64,FALSE),0)","v":6734},62]
[null,"Female 25-29",{"$f":"ROUND(Options!$B$21*HLOOKUP(Calculations!$E$2,Pop2016fraction!$C$3:$BC$251,Pop2016fraction!$BD65,FALSE),0)","v":7410},{"$f":"ROUND(Options!$B$21*HLOOKUP(Calculations!$E$2,Pop2016fractionQ1!$C$3:$BC$251,Pop2016fractionQ1!$BD65,FALSE),0)","v":38133},{"$f":"ROUND(Options!$B$21*HLOOKUP(Calculations!$E$2,'Pop2016fractionQ1&2'!$C$3:$BC$251,'Pop2016fractionQ1&2'!$BD65,FALSE),0)","v":18799},{"$f":"ROUND(Options!$B$21*HLOOKUP(Calculations!$E$2,PARfraction!$C$3:$BC$251,PARfraction!$BD65,FALSE),0)","v":7037},63]
[null,"Female 30-34",{"$f":"ROUND(Options!$B$21*HLOOKUP(Calculations!$E$2,Pop2016fraction!$C$3:$BC$251,Pop2016fraction!$BD66,FALSE),0)","v":6771},{"$f":"ROUND(Options!$B$21*HLOOKUP(Calculations!$E$2,Pop2016fractionQ1!$C$3:$BC$251,Pop2016fractionQ1!$BD66,FALSE),0)","v":34846},{"$f":"ROUND(Options!$B$21*HLOOKUP(Calculations!$E$2,'Pop2016fractionQ1&2'!$C$3:$BC$251,'Pop2016fractionQ1&2'!$BD66,FALSE),0)","v":17179},{"$f":"ROUND(Options!$B$21*HLOOKUP(Calculations!$E$2,PARfraction!$C$3:$BC$251,PARfraction!$BD66,FALSE),0)","v":6431},64]
[null,"Female 35-39",{"$f":"ROUND(Options!$B$21*HLOOKUP(Calculations!$E$2,Pop2016fraction!$C$3:$BC$251,Pop2016fraction!$BD67,FALSE),0)","v":5753},{"$f":"ROUND(Options!$B$21*HLOOKUP(Calculations!$E$2,Pop2016fractionQ1!$C$3:$BC$251,Pop2016fractionQ1!$BD67,FALSE),0)","v":29606},{"$f":"ROUND(Options!$B$21*HLOOKUP(Calculations!$E$2,'Pop2016fractionQ1&2'!$C$3:$BC$251,'Pop2016fractionQ1&2'!$BD67,FALSE),0)","v":14596},{"$f":"ROUND(Options!$B$21*HLOOKUP(Calculations!$E$2,PARfraction!$C$3:$BC$251,PARfraction!$BD67,FALSE),0)","v":5337},65]
[null,"Female 40-44",{"$f":"ROUND(Options!$B$21*HLOOKUP(Calculations!$E$2,Pop2016fraction!$C$3:$BC$251,Pop2016fraction!$BD68,FALSE),0)","v":5527},{"$f":"ROUND(Options!$B$21*HLOOKUP(Calculations!$E$2,Pop2016fractionQ1!$C$3:$BC$251,Pop2016fractionQ1!$BD68,FALSE),0)","v":28444},{"$f":"ROUND(Options!$B$21*HLOOKUP(Calculations!$E$2,'Pop2016fractionQ1&2'!$C$3:$BC$251,'Pop2016fractionQ1&2'!$BD68,FALSE),0)","v":14023},{"$f":"ROUND(Options!$B$21*HLOOKUP(Calculations!$E$2,PARfraction!$C$3:$BC$251,PARfraction!$BD68,FALSE),0)","v":5128},66]
[null,"Female 45-49",{"$f":"ROUND(Options!$B$21*HLOOKUP(Calculations!$E$2,Pop2016fraction!$C$3:$BC$251,Pop2016fraction!$BD69,FALSE),0)","v":6436},{"$f":"ROUND(Options!$B$21*HLOOKUP(Calculations!$E$2,Pop2016fractionQ1!$C$3:$BC$251,Pop2016fractionQ1!$BD69,FALSE),0)","v":33120},{"$f":"ROUND(Options!$B$21*HLOOKUP(Calculations!$E$2,'Pop2016fractionQ1&2'!$C$3:$BC$251,'Pop2016fractionQ1&2'!$BD69,FALSE),0)","v":16328},{"$f":"ROUND(Options!$B$21*HLOOKUP(Calculations!$E$2,PARfraction!$C$3:$BC$251,PARfraction!$BD69,FALSE),0)","v":8486},67]
[null,"Female 50-54",{"$f":"ROUND(Options!$B$21*HLOOKUP(Calculations!$E$2,Pop2016fraction!$C$3:$BC$251,Pop2016fraction!$BD70,FALSE),0)","v":6519},{"$f":"ROUND(Options!$B$21*HLOOKUP(Calculations!$E$2,Pop2016fractionQ1!$C$3:$BC$251,Pop2016fractionQ1!$BD70,FALSE),0)","v":33549},{"$f":"ROUND(Options!$B$21*HLOOKUP(Calculations!$E$2,'Pop2016fractionQ1&2'!$C$3:$BC$251,'Pop2016fractionQ1&2'!$BD70,FALSE),0)","v":16539},{"$f":"ROUND(Options!$B$21*HLOOKUP(Calculations!$E$2,PARfraction!$C$3:$BC$251,PARfraction!$BD70,FALSE),0)","v":8596},68]
[null,"Female 55-59",{"$f":"ROUND(Options!$B$21*HLOOKUP(Calculations!$E$2,Pop2016fraction!$C$3:$BC$251,Pop2016fraction!$BD71,FALSE),0)","v":5833},{"$f":"ROUND(Options!$B$21*HLOOKUP(Calculations!$E$2,Pop2016fractionQ1!$C$3:$BC$251,Pop2016fractionQ1!$BD71,FALSE),0)","v":30020},{"$f":"ROUND(Options!$B$21*HLOOKUP(Calculations!$E$2,'Pop2016fractionQ1&2'!$C$3:$BC$251,'Pop2016fractionQ1&2'!$BD71,FALSE),0)","v":14800},{"$f":"ROUND(Options!$B$21*HLOOKUP(Calculations!$E$2,PARfraction!$C$3:$BC$251,PARfraction!$BD71,FALSE),0)","v":9523},69]
[null,"Female 60-64",{"$f":"ROUND(Options!$B$21*HLOOKUP(Calculations!$E$2,Pop2016fraction!$C$3:$BC$251,Pop2016fraction!$BD72,FALSE),0)","v":4796},{"$f":"ROUND(Options!$B$21*HLOOKUP(Calculations!$E$2,Pop2016fractionQ1!$C$3:$BC$251,Pop2016fractionQ1!$BD72,FALSE),0)","v":24683},{"$f":"ROUND(Options!$B$21*HLOOKUP(Calculations!$E$2,'Pop2016fractionQ1&2'!$C$3:$BC$251,'Pop2016fractionQ1&2'!$BD72,FALSE),0)","v":12169},{"$f":"ROUND(Options!$B$21*HLOOKUP(Calculations!$E$2,PARfraction!$C$3:$BC$251,PARfraction!$BD72,FALSE),0)","v":7830},70]
[null,"Female 65-69",{"$f":"ROUND(Options!$B$21*HLOOKUP(Calculations!$E$2,Pop2016fraction!$C$3:$BC$251,Pop2016fraction!$BD73,FALSE),0)","v":4558},{"$f":"ROUND(Options!$B$21*HLOOKUP(Calculations!$E$2,Pop2016fractionQ1!$C$3:$BC$251,Pop2016fractionQ1!$BD73,FALSE),0)","v":23458},{"$f":"ROUND(Options!$B$21*HLOOKUP(Calculations!$E$2,'Pop2016fractionQ1&2'!$C$3:$BC$251,'Pop2016fractionQ1&2'!$BD73,FALSE),0)","v":11565},{"$f":"ROUND(Options!$B$21*HLOOKUP(Calculations!$E$2,PARfraction!$C$3:$BC$251,PARfraction!$BD73,FALSE),0)","v":8784},71]
[null,"Female 70-74",{"$f":"ROUND(Options!$B$21*HLOOKUP(Calculations!$E$2,Pop2016fraction!$C$3:$BC$251,Pop2016fraction!$BD74,FALSE),0)","v":3577},{"$f":"ROUND(Options!$B$21*HLOOKUP(Calculations!$E$2,Pop2016fractionQ1!$C$3:$BC$251,Pop2016fractionQ1!$BD74,FALSE),0)","v":18408},{"$f":"ROUND(Options!$B$21*HLOOKUP(Calculations!$E$2,'Pop2016fractionQ1&2'!$C$3:$BC$251,'Pop2016fractionQ1&2'!$BD74,FALSE),0)","v":9075},{"$f":"ROUND(Options!$B$21*HLOOKUP(Calculations!$E$2,PARfraction!$C$3:$BC$251,PARfraction!$BD74,FALSE),0)","v":6893},72]
[null,"Female 75-79",{"$f":"ROUND(Options!$B$21*HLOOKUP(Calculations!$E$2,Pop2016fraction!$C$3:$BC$251,Pop2016fraction!$BD75,FALSE),0)","v":3142},{"$f":"ROUND(Options!$B$21*HLOOKUP(Calculations!$E$2,Pop2016fractionQ1!$C$3:$BC$251,Pop2016fractionQ1!$BD75,FALSE),0)","v":16171},{"$f":"ROUND(Options!$B$21*HLOOKUP(Calculations!$E$2,'Pop2016fractionQ1&2'!$C$3:$BC$251,'Pop2016fractionQ1&2'!$BD75,FALSE),0)","v":7972},{"$f":"ROUND(Options!$B$21*HLOOKUP(Calculations!$E$2,PARfraction!$C$3:$BC$251,PARfraction!$BD75,FALSE),0)","v":7353},73]
[null,"Female 80-84",{"$f":"ROUND(Options!$B$21*HLOOKUP(Calculations!$E$2,Pop2016fraction!$C$3:$BC$251,Pop2016fraction!$BD76,FALSE),0)","v":2426},{"$f":"ROUND(Options!$B$21*HLOOKUP(Calculations!$E$2,Pop2016fractionQ1!$C$3:$BC$251,Pop2016fractionQ1!$BD76,FALSE),0)","v":12485},{"$f":"ROUND(Options!$B$21*HLOOKUP(Calculations!$E$2,'Pop2016fractionQ1&2'!$C$3:$BC$251,'Pop2016fractionQ1&2'!$BD76,FALSE),0)","v":6155},{"$f":"ROUND(Options!$B$21*HLOOKUP(Calculations!$E$2,PARfraction!$C$3:$BC$251,PARfraction!$BD76,FALSE),0)","v":5677},74]
[null,"Female 85-89",{"$f":"ROUND(Options!$B$21*HLOOKUP(Calculations!$E$2,Pop2016fraction!$C$3:$BC$251,Pop2016fraction!$BD77,FALSE),0)","v":1456},{"$f":"ROUND(Options!$B$21*HLOOKUP(Calculations!$E$2,Pop2016fractionQ1!$C$3:$BC$251,Pop2016fractionQ1!$BD77,FALSE),0)","v":7494},{"$f":"ROUND(Options!$B$21*HLOOKUP(Calculations!$E$2,'Pop2016fractionQ1&2'!$C$3:$BC$251,'Pop2016fractionQ1&2'!$BD77,FALSE),0)","v":3694},{"$f":"ROUND(Options!$B$21*HLOOKUP(Calculations!$E$2,PARfraction!$C$3:$BC$251,PARfraction!$BD77,FALSE),0)","v":3407},75]
[null,"Female 90+",{"$f":"ROUND(Options!$B$21*HLOOKUP(Calculations!$E$2,Pop2016fraction!$C$3:$BC$251,Pop2016fraction!$BD78,FALSE),0)","v":792},{"$f":"ROUND(Options!$B$21*HLOOKUP(Calculations!$E$2,Pop2016fractionQ1!$C$3:$BC$251,Pop2016fractionQ1!$BD78,FALSE),0)","v":4077},{"$f":"ROUND(Options!$B$21*HLOOKUP(Calculations!$E$2,'Pop2016fractionQ1&2'!$C$3:$BC$251,'Pop2016fractionQ1&2'!$BD78,FALSE),0)","v":2010},{"$f":"ROUND(Options!$B$21*HLOOKUP(Calculations!$E$2,PARfraction!$C$3:$BC$251,PARfraction!$BD78,FALSE),0)","v":1854},76]
[null,"Male 0-4",{"$f":"ROUND(Options!$B$21*HLOOKUP(Calculations!$E$2,Pop2016fraction!$C$3:$BC$251,Pop2016fraction!$BD79,FALSE),0)","v":0},{"$f":"ROUND(Options!$B$21*HLOOKUP(Calculations!$E$2,Pop2016fractionQ1!$C$3:$BC$251,Pop2016fractionQ1!$BD79,FALSE),0)","v":0},{"$f":"ROUND(Options!$B$21*HLOOKUP(Calculations!$E$2,'Pop2016fractionQ1&2'!$C$3:$BC$251,'Pop2016fractionQ1&2'!$BD79,FALSE),0)","v":0},{"$f":"ROUND(Options!$B$21*HLOOKUP(Calculations!$E$2,PARfraction!$C$3:$BC$251,PARfraction!$BD79,FALSE),0)","v":0},77]
[null,"Male 5-9",{"$f":"ROUND(Options!$B$21*HLOOKUP(Calculations!$E$2,Pop2016fraction!$C$3:$BC$251,Pop2016fraction!$BD80,FALSE),0)","v":0},{"$f":"ROUND(Options!$B$21*HLOOKUP(Calculations!$E$2,Pop2016fractionQ1!$C$3:$BC$251,Pop2016fractionQ1!$BD80,FALSE),0)","v":0},{"$f":"ROUND(Options!$B$21*HLOOKUP(Calculations!$E$2,'Pop2016fractionQ1&2'!$C$3:$BC$251,'Pop2016fractionQ1&2'!$BD80,FALSE),0)","v":0},{"$f":"ROUND(Options!$B$21*HLOOKUP(Calculations!$E$2,PARfraction!$C$3:$BC$251,PARfraction!$BD80,FALSE),0)","v":0},78]
[null,"Male 10-15",{"$f":"ROUND(Options!$B$21*HLOOKUP(Calculations!$E$2,Pop2016fraction!$C$3:$BC$251,Pop2016fraction!$BD81,FALSE),0)","v":0},{"$f":"ROUND(Options!$B$21*HLOOKUP(Calculations!$E$2,Pop2016fractionQ1!$C$3:$BC$251,Pop2016fractionQ1!$BD81,FALSE),0)","v":0},{"$f":"ROUND(Options!$B$21*HLOOKUP(Calculations!$E$2,'Pop2016fractionQ1&2'!$C$3:$BC$251,'Pop2016fractionQ1&2'!$BD81,FALSE),0)","v":0},{"$f":"ROUND(Options!$B$21*HLOOKUP(Calculations!$E$2,PARfraction!$C$3:$BC$251,PARfraction!$BD81,FALSE),0)","v":0},79]
[null,"Male 16-19",{"$f":"ROUND(Options!$B$21*HLOOKUP(Calculations!$E$2,Pop2016fraction!$C$3:$BC$251,Pop2016fraction!$BD82,FALSE),0)","v":4164},{"$f":"ROUND(Options!$B$21*HLOOKUP(Calculations!$E$2,Pop2016fractionQ1!$C$3:$BC$251,Pop2016fractionQ1!$BD82,FALSE),0)","v":21428},{"$f":"ROUND(Options!$B$21*HLOOKUP(Calculations!$E$2,'Pop2016fractionQ1&2'!$C$3:$BC$251,'Pop2016fractionQ1&2'!$BD82,FALSE),0)","v":10564},{"$f":"ROUND(Options!$B$21*HLOOKUP(Calculations!$E$2,PARfraction!$C$3:$BC$251,PARfraction!$BD82,FALSE),0)","v":2980},80]
[null,"Male 20-24",{"$f":"ROUND(Options!$B$21*HLOOKUP(Calculations!$E$2,Pop2016fraction!$C$3:$BC$251,Pop2016fraction!$BD83,FALSE),0)","v":6105},{"$f":"ROUND(Options!$B$21*HLOOKUP(Calculations!$E$2,Pop2016fractionQ1!$C$3:$BC$251,Pop2016fractionQ1!$BD83,FALSE),0)","v":31416},{"$f":"ROUND(Options!$B$21*HLOOKUP(Calculations!$E$2,'Pop2016fractionQ1&2'!$C$3:$BC$251,'Pop2016fractionQ1&2'!$BD83,FALSE),0)","v":15488},{"$f":"ROUND(Options!$B$21*HLOOKUP(Calculations!$E$2,PARfraction!$C$3:$BC$251,PARfraction!$BD83,FALSE),0)","v":4369},81]
[null,"Male 25-29",{"$f":"ROUND(Options!$B$21*HLOOKUP(Calculations!$E$2,Pop2016fraction!$C$3:$BC$251,Pop2016fraction!$BD84,FALSE),0)","v":6994},{"$f":"ROUND(Options!$B$21*HLOOKUP(Calculations!$E$2,Pop2016fractionQ1!$C$3:$BC$251,Pop2016fractionQ1!$BD84,FALSE),0)","v":35996},{"$f":"ROUND(Options!$B$21*HLOOKUP(Calculations!$E$2,'Pop2016fractionQ1&2'!$C$3:$BC$251,'Pop2016fractionQ1&2'!$BD84,FALSE),0)","v":17746},{"$f":"ROUND(Options!$B$21*HLOOKUP(Calculations!$E$2,PARfraction!$C$3:$BC$251,PARfraction!$BD84,FALSE),0)","v":3755},82]
[null,"Male 30-34",{"$f":"ROUND(Options!$B$21*HLOOKUP(Calculations!$E$2,Pop2016fraction!$C$3:$BC$251,Pop2016fraction!$BD85,FALSE),0)","v":6240},{"$f":"ROUND(Options!$B$21*HLOOKUP(Calculations!$E$2,Pop2016fractionQ1!$C$3:$BC$251,Pop2016fractionQ1!$BD85,FALSE),0)","v":32114},{"$f":"ROUND(Options!$B$21*HLOOKUP(Calculations!$E$2,'Pop2016fractionQ1&2'!$C$3:$BC$251,'Pop2016fractionQ1&2'!$BD85,FALSE),0)","v":15832},{"$f":"ROUND(Options!$B$21*HLOOKUP(Calculations!$E$2,PARfraction!$C$3:$BC$251,PARfraction!$BD85,FALSE),0)","v":3350},83]
[null,"Male 35-39",{"$f":"ROUND(Options!$B$21*HLOOKUP(Calculations!$E$2,Pop2016fraction!$C$3:$BC$251,Pop2016fraction!$BD86,FALSE),0)","v":5416},{"$f":"ROUND(Options!$B$21*HLOOKUP(Calculations!$E$2,Pop2016fractionQ1!$C$3:$BC$251,Pop2016fractionQ1!$BD86,FALSE),0)","v":27870},{"$f":"ROUND(Options!$B$21*HLOOKUP(Calculations!$E$2,'Pop2016fractionQ1&2'!$C$3:$BC$251,'Pop2016fractionQ1&2'!$BD86,FALSE),0)","v":13740},{"$f":"ROUND(Options!$B$21*HLOOKUP(Calculations!$E$2,PARfraction!$C$3:$BC$251,PARfraction!$BD86,FALSE),0)","v":4309},84]
[null,"Male 40-44",{"$f":"ROUND(Options!$B$21*HLOOKUP(Calculations!$E$2,Pop2016fraction!$C$3:$BC$251,Pop2016fraction!$BD87,FALSE),0)","v":5192},{"$f":"ROUND(Options!$B$21*HLOOKUP(Calculations!$E$2,Pop2016fractionQ1!$C$3:$BC$251,Pop2016fractionQ1!$BD87,FALSE),0)","v":26720},{"$f":"ROUND(Options!$B$21*HLOOKUP(Calculations!$E$2,'Pop2016fractionQ1&2'!$C$3:$BC$251,'Pop2016fractionQ1&2'!$BD87,FALSE),0)","v":13173},{"$f":"ROUND(Options!$B$21*HLOOKUP(Calculations!$E$2,PARfraction!$C$3:$BC$251,PARfraction!$BD87,FALSE),0)","v":4131},85]
[null,"Male 45-49",{"$f":"ROUND(Options!$B$21*HLOOKUP(Calculations!$E$2,Pop2016fraction!$C$3:$BC$251,Pop2016fraction!$BD88,FALSE),0)","v":5891},{"$f":"ROUND(Options!$B$21*HLOOKUP(Calculations!$E$2,Pop2016fractionQ1!$C$3:$BC$251,Pop2016fractionQ1!$BD88,FALSE),0)","v":30316},{"$f":"ROUND(Options!$B$21*HLOOKUP(Calculations!$E$2,'Pop2016fractionQ1&2'!$C$3:$BC$251,'Pop2016fractionQ1&2'!$BD88,FALSE),0)","v":14945},{"$f":"ROUND(Options!$B$21*HLOOKUP(Calculations!$E$2,PARfraction!$C$3:$BC$251,PARfraction!$BD88,FALSE),0)","v":7638},86]
[null,"Male 50-54",{"$f":"ROUND(Options!$B$21*HLOOKUP(Calculations!$E$2,Pop2016fraction!$C$3:$BC$251,Pop2016fraction!$BD89,FALSE),0)","v":6062},{"$f":"ROUND(Options!$B$21*HLOOKUP(Calculations!$E$2,Pop2016fractionQ1!$C$3:$BC$251,Pop2016fractionQ1!$BD89,FALSE),0)","v":31198},{"$f":"ROUND(Options!$B$21*HLOOKUP(Calculations!$E$2,'Pop2016fractionQ1&2'!$C$3:$BC$251,'Pop2016fractionQ1&2'!$BD89,FALSE),0)","v":15380},{"$f":"ROUND(Options!$B$21*HLOOKUP(Calculations!$E$2,PARfraction!$C$3:$BC$251,PARfraction!$BD89,FALSE),0)","v":7860},87]
[null,"Male 55-59",{"$f":"ROUND(Options!$B$21*HLOOKUP(Calculations!$E$2,Pop2016fraction!$C$3:$BC$251,Pop2016fraction!$BD90,FALSE),0)","v":5459},{"$f":"ROUND(Options!$B$21*HLOOKUP(Calculations!$E$2,Pop2016fractionQ1!$C$3:$BC$251,Pop2016fractionQ1!$BD90,FALSE),0)","v":28096},{"$f":"ROUND(Options!$B$21*HLOOKUP(Calculations!$E$2,'Pop2016fractionQ1&2'!$C$3:$BC$251,'Pop2016fractionQ1&2'!$BD90,FALSE),0)","v":13851},{"$f":"ROUND(Options!$B$21*HLOOKUP(Calculations!$E$2,PARfraction!$C$3:$BC$251,PARfraction!$BD90,FALSE),0)","v":8912},88]
[null,"Male 60-64",{"$f":"ROUND(Options!$B$21*HLOOKUP(Calculations!$E$2,Pop2016fraction!$C$3:$BC$251,Pop2016fraction!$BD91,FALSE),0)","v":4492},{"$f":"ROUND(Options!$B$21*HLOOKUP(Calculations!$E$2,Pop2016fractionQ1!$C$3:$BC$251,Pop2016fractionQ1!$BD91,FALSE),0)","v":23117},{"$f":"ROUND(Options!$B$21*HLOOKUP(Calculations!$E$2,'Pop2016fractionQ1&2'!$C$3:$BC$251,'Pop2016fractionQ1&2'!$BD91,FALSE),0)","v":11396},{"$f":"ROUND(Options!$B$21*HLOOKUP(Calculations!$E$2,PARfraction!$C$3:$BC$251,PARfraction!$BD91,FALSE),0)","v":7333},89]
[null,"Male 65-69",{"$f":"ROUND(Options!$B$21*HLOOKUP(Calculations!$E$2,Pop2016fraction!$C$3:$BC$251,Pop2016fraction!$BD92,FALSE),0)","v":4198},{"$f":"ROUND(Options!$B$21*HLOOKUP(Calculations!$E$2,Pop2016fractionQ1!$C$3:$BC$251,Pop2016fractionQ1!$BD92,FALSE),0)","v":21603},{"$f":"ROUND(Options!$B$21*HLOOKUP(Calculations!$E$2,'Pop2016fractionQ1&2'!$C$3:$BC$251,'Pop2016fractionQ1&2'!$BD92,FALSE),0)","v":10650},{"$f":"ROUND(Options!$B$21*HLOOKUP(Calculations!$E$2,PARfraction!$C$3:$BC$251,PARfraction!$BD92,FALSE),0)","v":7107},90]
[null,"Male 70-74",{"$f":"ROUND(Options!$B$21*HLOOKUP(Calculations!$E$2,Pop2016fraction!$C$3:$BC$251,Pop2016fraction!$BD93,FALSE),0)","v":3014},{"$f":"ROUND(Options!$B$21*HLOOKUP(Calculations!$E$2,Pop2016fractionQ1!$C$3:$BC$251,Pop2016fractionQ1!$BD93,FALSE),0)","v":15512},{"$f":"ROUND(Options!$B$21*HLOOKUP(Calculations!$E$2,'Pop2016fractionQ1&2'!$C$3:$BC$251,'Pop2016fractionQ1&2'!$BD93,FALSE),0)","v":7647},{"$f":"ROUND(Options!$B$21*HLOOKUP(Calculations!$E$2,PARfraction!$C$3:$BC$251,PARfraction!$BD93,FALSE),0)","v":5103},91]
[null,"Male 75-79",{"$f":"ROUND(Options!$B$21*HLOOKUP(Calculations!$E$2,Pop2016fraction!$C$3:$BC$251,Pop2016fraction!$BD94,FALSE),0)","v":2285},{"$f":"ROUND(Options!$B$21*HLOOKUP(Calculations!$E$2,Pop2016fractionQ1!$C$3:$BC$251,Pop2016fractionQ1!$BD94,FALSE),0)","v":11757},{"$f":"ROUND(Options!$B$21*HLOOKUP(Calculations!$E$2,'Pop2016fractionQ1&2'!$C$3:$BC$251,'Pop2016fractionQ1&2'!$BD94,FALSE),0)","v":5796},{"$f":"ROUND(Options!$B$21*HLOOKUP(Calculations!$E$2,PARfraction!$C$3:$BC$251,PARfraction!$BD94,FALSE),0)","v":4534},92]
[null,"Male 80-84",{"$f":"ROUND(Options!$B$21*HLOOKUP(Calculations!$E$2,Pop2016fraction!$C$3:$BC$251,Pop2016fraction!$BD95,FALSE),0)","v":1516},{"$f":"ROUND(Options!$B$21*HLOOKUP(Calculations!$E$2,Pop2016fractionQ1!$C$3:$BC$251,Pop2016fractionQ1!$BD95,FALSE),0)","v":7804},{"$f":"ROUND(Options!$B$21*HLOOKUP(Calculations!$E$2,'Pop2016fractionQ1&2'!$C$3:$BC$251,'Pop2016fractionQ1&2'!$BD95,FALSE),0)","v":3847},{"$f":"ROUND(Options!$B$21*HLOOKUP(Calculations!$E$2,PARfraction!$C$3:$BC$251,PARfraction!$BD95,FALSE),0)","v":3010},93]
[null,"Male 85-89",{"$f":"ROUND(Options!$B$21*HLOOKUP(Calculations!$E$2,Pop2016fraction!$C$3:$BC$251,Pop2016fraction!$BD96,FALSE),0)","v":730},{"$f":"ROUND(Options!$B$21*HLOOKUP(Calculations!$E$2,Pop2016fractionQ1!$C$3:$BC$251,Pop2016fractionQ1!$BD96,FALSE),0)","v":3759},{"$f":"ROUND(Options!$B$21*HLOOKUP(Calculations!$E$2,'Pop2016fractionQ1&2'!$C$3:$BC$251,'Pop2016fractionQ1&2'!$BD96,FALSE),0)","v":1853},{"$f":"ROUND(Options!$B$21*HLOOKUP(Calculations!$E$2,PARfraction!$C$3:$BC$251,PARfraction!$BD96,FALSE),0)","v":1450},94]
[null,"Male 90+",{"$f":"ROUND(Options!$B$21*HLOOKUP(Calculations!$E$2,Pop2016fraction!$C$3:$BC$251,Pop2016fraction!$BD97,FALSE),0)","v":315},{"$f":"ROUND(Options!$B$21*HLOOKUP(Calculations!$E$2,Pop2016fractionQ1!$C$3:$BC$251,Pop2016fractionQ1!$BD97,FALSE),0)","v":1619},{"$f":"ROUND(Options!$B$21*HLOOKUP(Calculations!$E$2,'Pop2016fractionQ1&2'!$C$3:$BC$251,'Pop2016fractionQ1&2'!$BD97,FALSE),0)","v":798},{"$f":"ROUND(Options!$B$21*HLOOKUP(Calculations!$E$2,PARfraction!$C$3:$BC$251,PARfraction!$BD97,FALSE),0)","v":624},95]
["SIMD Q2","Female 0-4",{"$f":"ROUND(Options!$B$21*HLOOKUP(Calculations!$E$2,Pop2016fraction!$C$3:$BC$251,Pop2016fraction!$BD98,FALSE),0)","v":0},{"$f":"ROUND(Options!$B$21*HLOOKUP(Calculations!$E$2,Pop2016fractionQ1!$C$3:$BC$251,Pop2016fractionQ1!$BD98,FALSE),0)","v":0},{"$f":"ROUND(Options!$B$21*HLOOKUP(Calculations!$E$2,'Pop2016fractionQ1&2'!$C$3:$BC$251,'Pop2016fractionQ1&2'!$BD98,FALSE),0)","v":0},{"$f":"ROUND(Options!$B$21*HLOOKUP(Calculations!$E$2,PARfraction!$C$3:$BC$251,PARfraction!$BD98,FALSE),0)","v":0},96]
[null,"Female 5-9",{"$f":"ROUND(Options!$B$21*HLOOKUP(Calculations!$E$2,Pop2016fraction!$C$3:$BC$251,Pop2016fraction!$BD99,FALSE),0)","v":0},{"$f":"ROUND(Options!$B$21*HLOOKUP(Calculations!$E$2,Pop2016fractionQ1!$C$3:$BC$251,Pop2016fractionQ1!$BD99,FALSE),0)","v":0},{"$f":"ROUND(Options!$B$21*HLOOKUP(Calculations!$E$2,'Pop2016fractionQ1&2'!$C$3:$BC$251,'Pop2016fractionQ1&2'!$BD99,FALSE),0)","v":0},{"$f":"ROUND(Options!$B$21*HLOOKUP(Calculations!$E$2,PARfraction!$C$3:$BC$251,PARfraction!$BD99,FALSE),0)","v":0},97]
[null,"Female 10-15",{"$f":"ROUND(Options!$B$21*HLOOKUP(Calculations!$E$2,Pop2016fraction!$C$3:$BC$251,Pop2016fraction!$BD100,FALSE),0)","v":0},{"$f":"ROUND(Options!$B$21*HLOOKUP(Calculations!$E$2,Pop2016fractionQ1!$C$3:$BC$251,Pop2016fractionQ1!$BD100,FALSE),0)","v":0},{"$f":"ROUND(Options!$B$21*HLOOKUP(Calculations!$E$2,'Pop2016fractionQ1&2'!$C$3:$BC$251,'Pop2016fractionQ1&2'!$BD100,FALSE),0)","v":0},{"$f":"ROUND(Options!$B$21*HLOOKUP(Calculations!$E$2,PARfraction!$C$3:$BC$251,PARfraction!$BD100,FALSE),0)","v":0},98]
[null,"Female 16-19",{"$f":"ROUND(Options!$B$21*HLOOKUP(Calculations!$E$2,Pop2016fraction!$C$3:$BC$251,Pop2016fraction!$BD101,FALSE),0)","v":3796},{"$f":"ROUND(Options!$B$21*HLOOKUP(Calculations!$E$2,Pop2016fractionQ1!$C$3:$BC$251,Pop2016fractionQ1!$BD101,FALSE),0)","v":0},{"$f":"ROUND(Options!$B$21*HLOOKUP(Calculations!$E$2,'Pop2016fractionQ1&2'!$C$3:$BC$251,'Pop2016fractionQ1&2'!$BD101,FALSE),0)","v":9631},{"$f":"ROUND(Options!$B$21*HLOOKUP(Calculations!$E$2,PARfraction!$C$3:$BC$251,PARfraction!$BD101,FALSE),0)","v":1871},99]
[null,"Female 20-24",{"$f":"ROUND(Options!$B$21*HLOOKUP(Calculations!$E$2,Pop2016fraction!$C$3:$BC$251,Pop2016fraction!$BD102,FALSE),0)","v":6058},{"$f":"ROUND(Options!$B$21*HLOOKUP(Calculations!$E$2,Pop2016fractionQ1!$C$3:$BC$251,Pop2016fractionQ1!$BD102,FALSE),0)","v":0},{"$f":"ROUND(Options!$B$21*HLOOKUP(Calculations!$E$2,'Pop2016fractionQ1&2'!$C$3:$BC$251,'Pop2016fractionQ1&2'!$BD102,FALSE),0)","v":15371},{"$f":"ROUND(Options!$B$21*HLOOKUP(Calculations!$E$2,PARfraction!$C$3:$BC$251,PARfraction!$BD102,FALSE),0)","v":2985},100]
[null,"Female 25-29",{"$f":"ROUND(Options!$B$21*HLOOKUP(Calculations!$E$2,Pop2016fraction!$C$3:$BC$251,Pop2016fraction!$BD103,FALSE),0)","v":6668},{"$f":"ROUND(Options!$B$21*HLOOKUP(Calculations!$E$2,Pop2016fractionQ1!$C$3:$BC$251,Pop2016fractionQ1!$BD103,FALSE),0)","v":0},{"$f":"ROUND(Options!$B$21*HLOOKUP(Calculations!$E$2,'Pop2016fractionQ1&2'!$C$3:$BC$251,'Pop2016fractionQ1&2'!$BD103,FALSE),0)","v":16917},{"$f":"ROUND(Options!$B$21*HLOOKUP(Calculations!$E$2,PARfraction!$C$3:$BC$251,PARfraction!$BD103,FALSE),0)","v":4809},101]
[null,"Female 30-34",{"$f":"ROUND(Options!$B$21*HLOOKUP(Calculations!$E$2,Pop2016fraction!$C$3:$BC$251,Pop2016fraction!$BD104,FALSE),0)","v":6256},{"$f":"ROUND(Options!$B$21*HLOOKUP(Calculations!$E$2,Pop2016fractionQ1!$C$3:$BC$251,Pop2016fractionQ1!$BD104,FALSE),0)","v":0},{"$f":"ROUND(Options!$B$21*HLOOKUP(Calculations!$E$2,'Pop2016fractionQ1&2'!$C$3:$BC$251,'Pop2016fractionQ1&2'!$BD104,FALSE),0)","v":15872},{"$f":"ROUND(Options!$B$21*HLOOKUP(Calculations!$E$2,PARfraction!$C$3:$BC$251,PARfraction!$BD104,FALSE),0)","v":4512},102]
[null,"Female 35-39",{"$f":"ROUND(Options!$B$21*HLOOKUP(Calculations!$E$2,Pop2016fraction!$C$3:$BC$251,Pop2016fraction!$BD105,FALSE),0)","v":5421},{"$f":"ROUND(Options!$B$21*HLOOKUP(Calculations!$E$2,Pop2016fractionQ1!$C$3:$BC$251,Pop2016fractionQ1!$BD105,FALSE),0)","v":0},{"$f":"ROUND(Options!$B$21*HLOOKUP(Calculations!$E$2,'Pop2016fractionQ1&2'!$C$3:$BC$251,'Pop2016fractionQ1&2'!$BD105,FALSE),0)","v":13752},{"$f":"ROUND(Options!$B$21*HLOOKUP(Calculations!$E$2,PARfraction!$C$3:$BC$251,PARfraction!$BD105,FALSE),0)","v":4641},103]
[null,"Female 40-44",{"$f":"ROUND(Options!$B$21*HLOOKUP(Calculations!$E$2,Pop2016fraction!$C$3:$BC$251,Pop2016fraction!$BD106,FALSE),0)","v":5491},{"$f":"ROUND(Options!$B$21*HLOOKUP(Calculations!$E$2,Pop2016fractionQ1!$C$3:$BC$251,Pop2016fractionQ1!$BD106,FALSE),0)","v":0},{"$f":"ROUND(Options!$B$21*HLOOKUP(Calculations!$E$2,'Pop2016fractionQ1&2'!$C$3:$BC$251,'Pop2016fractionQ1&2'!$BD106,FALSE),0)","v":13931},{"$f":"ROUND(Options!$B$21*HLOOKUP(Calculations!$E$2,PARfraction!$C$3:$BC$251,PARfraction!$BD106,FALSE),0)","v":4701},104]
[null,"Female 45-49",{"$f":"ROUND(Options!$B$21*HLOOKUP(Calculations!$E$2,Pop2016fraction!$C$3:$BC$251,Pop2016fraction!$BD107,FALSE),0)","v":6431},{"$f":"ROUND(Options!$B$21*HLOOKUP(Calculations!$E$2,Pop2016fractionQ1!$C$3:$BC$251,Pop2016fractionQ1!$BD107,FALSE),0)","v":0},{"$f":"ROUND(Options!$B$21*HLOOKUP(Calculations!$E$2,'Pop2016fractionQ1&2'!$C$3:$BC$251,'Pop2016fractionQ1&2'!$BD107,FALSE),0)","v":16317},{"$f":"ROUND(Options!$B$21*HLOOKUP(Calculations!$E$2,PARfraction!$C$3:$BC$251,PARfraction!$BD107,FALSE),0)","v":5559},105]
[null,"Female 50-54",{"$f":"ROUND(Options!$B$21*HLOOKUP(Calculations!$E$2,Pop2016fraction!$C$3:$BC$251,Pop2016fraction!$BD108,FALSE),0)","v":6653},{"$f":"ROUND(Options!$B$21*HLOOKUP(Calculations!$E$2,Pop2016fractionQ1!$C$3:$BC$251,Pop2016fractionQ1!$BD108,FALSE),0)","v":0},{"$f":"ROUND(Options!$B$21*HLOOKUP(Calculations!$E$2,'Pop2016fractionQ1&2'!$C$3:$BC$251,'Pop2016fractionQ1&2'!$BD108,FALSE),0)","v":16878},{"$f":"ROUND(Options!$B$21*HLOOKUP(Calculations!$E$2,PARfraction!$C$3:$BC$251,PARfraction!$BD108,FALSE),0)","v":5751},106]
[null,"Female 55-59",{"$f":"ROUND(Options!$B$21*HLOOKUP(Calculations!$E$2,Pop2016fraction!$C$3:$BC$251,Pop2016fraction!$BD109,FALSE),0)","v":6120},{"$f":"ROUND(Options!$B$21*HLOOKUP(Calculations!$E$2,Pop2016fractionQ1!$C$3:$BC$251,Pop2016fractionQ1!$BD109,FALSE),0)","v":0},{"$f":"ROUND(Options!$B$21*HLOOKUP(Calculations!$E$2,'Pop2016fractionQ1&2'!$C$3:$BC$251,'Pop2016fractionQ1&2'!$BD109,FALSE),0)","v":15527},{"$f":"ROUND(Options!$B$21*HLOOKUP(Calculations!$E$2,PARfraction!$C$3:$BC$251,PARfraction!$BD109,FALSE),0)","v":6773},107]
[null,"Female 60-64",{"$f":"ROUND(Options!$B$21*HLOOKUP(Calculations!$E$2,Pop2016fraction!$C$3:$BC$251,Pop2016fraction!$BD110,FALSE),0)","v":5360},{"$f":"ROUND(Options!$B$21*HLOOKUP(Calculations!$E$2,Pop2016fractionQ1!$C$3:$BC$251,Pop2016fractionQ1!$BD110,FALSE),0)","v":0},{"$f":"ROUND(Options!$B$21*HLOOKUP(Calculations!$E$2,'Pop2016fractionQ1&2'!$C$3:$BC$251,'Pop2016fractionQ1&2'!$BD110,FALSE),0)","v":13598},{"$f":"ROUND(Options!$B$21*HLOOKUP(Calculations!$E$2,PARfraction!$C$3:$BC$251,PARfraction!$BD110,FALSE),0)","v":5932},108]
[null,"Female 65-69",{"$f":"ROUND(Options!$B$21*HLOOKUP(Calculations!$E$2,Pop2016fraction!$C$3:$BC$251,Pop2016fraction!$BD111,FALSE),0)","v":5349},{"$f":"ROUND(Options!$B$21*HLOOKUP(Calculations!$E$2,Pop2016fractionQ1!$C$3:$BC$251,Pop2016fractionQ1!$BD111,FALSE),0)","v":0},{"$f":"ROUND(Options!$B$21*HLOOKUP(Calculations!$E$2,'Pop2016fractionQ1&2'!$C$3:$BC$251,'Pop2016fractionQ1&2'!$BD111,FALSE),0)","v":13572},{"$f":"ROUND(Options!$B$21*HLOOKUP(Calculations!$E$2,PARfraction!$C$3:$BC$251,PARfraction!$BD111,FALSE),0)","v":7201},109]
[null,"Female 70-74",{"$f":"ROUND(Options!$B$21*HLOOKUP(Calculations!$E$2,Pop2016fraction!$C$3:$BC$251,Pop2016fraction!$BD112,FALSE),0)","v":4230},{"$f":"ROUND(Options!$B$21*HLOOKUP(Calculations!$E$2,Pop2016fractionQ1!$C$3:$BC$251,Pop2016fractionQ1!$BD112,FALSE),0)","v":0},{"$f":"ROUND(Options!$B$21*HLOOKUP(Calculations!$E$2,'Pop2016fractionQ1&2'!$C$3:$BC$251,'Pop2016fractionQ1&2'!$BD112,FALSE),0)","v":10732},{"$f":"ROUND(Options!$B$21*HLOOKUP(Calculations!$E$2,PARfraction!$C$3:$BC$251,PARfraction!$BD112,FALSE),0)","v":5695},110]
[null,"Female 75-79",{"$f":"ROUND(Options!$B$21*HLOOKUP(Calculations!$E$2,Pop2016fraction!$C$3:$BC$251,Pop2016fraction!$BD113,FALSE),0)","v":3640},{"$f":"ROUND(Options!$B$21*HLOOKUP(Calculations!$E$2,Pop2016fractionQ1!$C$3:$BC$251,Pop2016fractionQ1!$BD113,FALSE),0)","v":0},{"$f":"ROUND(Options!$B$21*HLOOKUP(Calculations!$E$2,'Pop2016fractionQ1&2'!$C$3:$BC$251,'Pop2016fractionQ1&2'!$BD113,FALSE),0)","v":9234},{"$f":"ROUND(Options!$B$21*HLOOKUP(Calculations!$E$2,PARfraction!$C$3:$BC$251,PARfraction!$BD113,FALSE),0)","v":7274},111]
[null,"Female 80-84",{"$f":"ROUND(Options!$B$21*HLOOKUP(Calculations!$E$2,Pop2016fraction!$C$3:$BC$251,Pop2016fraction!$BD114,FALSE),0)","v":2868},{"$f":"ROUND(Options!$B$21*HLOOKUP(Calculations!$E$2,Pop2016fractionQ1!$C$3:$BC$251,Pop2016fractionQ1!$BD114,FALSE),0)","v":0},{"$f":"ROUND(Options!$B$21*HLOOKUP(Calculations!$E$2,'Pop2016fractionQ1&2'!$C$3:$BC$251,'Pop2016fractionQ1&2'!$BD114,FALSE),0)","v":7277},{"$f":"ROUND(Options!$B$21*HLOOKUP(Calculations!$E$2,PARfraction!$C$3:$BC$251,PARfraction!$BD114,FALSE),0)","v":5733},112]
[null,"Female 85-89",{"$f":"ROUND(Options!$B$21*HLOOKUP(Calculations!$E$2,Pop2016fraction!$C$3:$BC$251,Pop2016fraction!$BD115,FALSE),0)","v":1709},{"$f":"ROUND(Options!$B$21*HLOOKUP(Calculations!$E$2,Pop2016fractionQ1!$C$3:$BC$251,Pop2016fractionQ1!$BD115,FALSE),0)","v":0},{"$f":"ROUND(Options!$B$21*HLOOKUP(Calculations!$E$2,'Pop2016fractionQ1&2'!$C$3:$BC$251,'Pop2016fractionQ1&2'!$BD115,FALSE),0)","v":4337},{"$f":"ROUND(Options!$B$21*HLOOKUP(Calculations!$E$2,PARfraction!$C$3:$BC$251,PARfraction!$BD115,FALSE),0)","v":3416},113]
[null,"Female 90+",{"$f":"ROUND(Options!$B$21*HLOOKUP(Calculations!$E$2,Pop2016fraction!$C$3:$BC$251,Pop2016fraction!$BD116,FALSE),0)","v":967},{"$f":"ROUND(Options!$B$21*HLOOKUP(Calculations!$E$2,Pop2016fractionQ1!$C$3:$BC$251,Pop2016fractionQ1!$BD116,FALSE),0)","v":0},{"$f":"ROUND(Options!$B$21*HLOOKUP(Calculations!$E$2,'Pop2016fractionQ1&2'!$C$3:$BC$251,'Pop2016fractionQ1&2'!$BD116,FALSE),0)","v":2454},{"$f":"ROUND(Options!$B$21*HLOOKUP(Calculations!$E$2,PARfraction!$C$3:$BC$251,PARfraction!$BD116,FALSE),0)","v":1933},114]
[null,"Male 0-4",{"$f":"ROUND(Options!$B$21*HLOOKUP(Calculations!$E$2,Pop2016fraction!$C$3:$BC$251,Pop2016fraction!$BD117,FALSE),0)","v":0},{"$f":"ROUND(Options!$B$21*HLOOKUP(Calculations!$E$2,Pop2016fractionQ1!$C$3:$BC$251,Pop2016fractionQ1!$BD117,FALSE),0)","v":0},{"$f":"ROUND(Options!$B$21*HLOOKUP(Calculations!$E$2,'Pop2016fractionQ1&2'!$C$3:$BC$251,'Pop2016fractionQ1&2'!$BD117,FALSE),0)","v":0},{"$f":"ROUND(Options!$B$21*HLOOKUP(Calculations!$E$2,PARfraction!$C$3:$BC$251,PARfraction!$BD117,FALSE),0)","v":0},115]
[null,"Male 5-9",{"$f":"ROUND(Options!$B$21*HLOOKUP(Calculations!$E$2,Pop2016fraction!$C$3:$BC$251,Pop2016fraction!$BD118,FALSE),0)","v":0},{"$f":"ROUND(Options!$B$21*HLOOKUP(Calculations!$E$2,Pop2016fractionQ1!$C$3:$BC$251,Pop2016fractionQ1!$BD118,FALSE),0)","v":0},{"$f":"ROUND(Options!$B$21*HLOOKUP(Calculations!$E$2,'Pop2016fractionQ1&2'!$C$3:$BC$251,'Pop2016fractionQ1&2'!$BD118,FALSE),0)","v":0},{"$f":"ROUND(Options!$B$21*HLOOKUP(Calculations!$E$2,PARfraction!$C$3:$BC$251,PARfraction!$BD118,FALSE),0)","v":0},116]
[null,"Male 10-15",{"$f":"ROUND(Options!$B$21*HLOOKUP(Calculations!$E$2,Pop2016fraction!$C$3:$BC$251,Pop2016fraction!$BD119,FALSE),0)","v":0},{"$f":"ROUND(Options!$B$21*HLOOKUP(Calculations!$E$2,Pop2016fractionQ1!$C$3:$BC$251,Pop2016fractionQ1!$BD119,FALSE),0)","v":0},{"$f":"ROUND(Options!$B$21*HLOOKUP(Calculations!$E$2,'Pop2016fractionQ1&2'!$C$3:$BC$251,'Pop2016fractionQ1&2'!$BD119,FALSE),0)","v":0},{"$f":"ROUND(Options!$B$21*HLOOKUP(Calculations!$E$2,PARfraction!$C$3:$BC$251,PARfraction!$BD119,FALSE),0)","v":0},117]
[null,"Male 16-19",{"$f":"ROUND(Options!$B$21*HLOOKUP(Calculations!$E$2,Pop2016fraction!$C$3:$BC$251,Pop2016fraction!$BD120,FALSE),0)","v":3890},{"$f":"ROUND(Options!$B$21*HLOOKUP(Calculations!$E$2,Pop2016fractionQ1!$C$3:$BC$251,Pop2016fractionQ1!$BD120,FALSE),0)","v":0},{"$f":"ROUND(Options!$B$21*HLOOKUP(Calculations!$E$2,'Pop2016fractionQ1&2'!$C$3:$BC$251,'Pop2016fractionQ1&2'!$BD120,FALSE),0)","v":9870},{"$f":"ROUND(Options!$B$21*HLOOKUP(Calculations!$E$2,PARfraction!$C$3:$BC$251,PARfraction!$BD120,FALSE),0)","v":3234},118]
[null,"Male 20-24",{"$f":"ROUND(Options!$B$21*HLOOKUP(Calculations!$E$2,Pop2016fraction!$C$3:$BC$251,Pop2016fraction!$BD121,FALSE),0)","v":5905},{"$f":"ROUND(Options!$B$21*HLOOKUP(Calculations!$E$2,Pop2016fractionQ1!$C$3:$BC$251,Pop2016fractionQ1!$BD121,FALSE),0)","v":0},{"$f":"ROUND(Options!$B$21*HLOOKUP(Calculations!$E$2,'Pop2016fractionQ1&2'!$C$3:$BC$251,'Pop2016fractionQ1&2'!$BD121,FALSE),0)","v":14981},{"$f":"ROUND(Options!$B$21*HLOOKUP(Calculations!$E$2,PARfraction!$C$3:$BC$251,PARfraction!$BD121,FALSE),0)","v":4909},119]
[null,"Male 25-29",{"$f":"ROUND(Options!$B$21*HLOOKUP(Calculations!$E$2,Pop2016fraction!$C$3:$BC$251,Pop2016fraction!$BD122,FALSE),0)","v":6504},{"$f":"ROUND(Options!$B$21*HLOOKUP(Calculations!$E$2,Pop2016fractionQ1!$C$3:$BC$251,Pop2016fractionQ1!$BD122,FALSE),0)","v":0},{"$f":"ROUND(Options!$B$21*HLOOKUP(Calculations!$E$2,'Pop2016fractionQ1&2'!$C$3:$BC$251,'Pop2016fractionQ1&2'!$BD122,FALSE),0)","v":16500},{"$f":"ROUND(Options!$B$21*HLOOKUP(Calculations!$E$2,PARfraction!$C$3:$BC$251,PARfraction!$BD122,FALSE),0)","v":6213},120]
[null,"Male 30-34",{"$f":"ROUND(Options!$B$21*HLOOKUP(Calculations!$E$2,Pop2016fraction!$C$3:$BC$251,Pop2016fraction!$BD123,FALSE),0)","v":6099},{"$f":"ROUND(Options!$B$21*HLOOKUP(Calculations!$E$2,Pop2016fractionQ1!$C$3:$BC$251,Pop2016fractionQ1!$BD123,FALSE),0)","v":0},{"$f":"ROUND(Options!$B$21*HLOOKUP(Calculations!$E$2,'Pop2016fractionQ1&2'!$C$3:$BC$251,'Pop2016fractionQ1&2'!$BD123,FALSE),0)","v":15474},{"$f":"ROUND(Options!$B$21*HLOOKUP(Calculations!$E$2,PARfraction!$C$3:$BC$251,PARfraction!$BD123,FALSE),0)","v":5826},121]
[null,"Male 35-39",{"$f":"ROUND(Options!$B$21*HLOOKUP(Calculations!$E$2,Pop2016fraction!$C$3:$BC$251,Pop2016fraction!$BD124,FALSE),0)","v":5310},{"$f":"ROUND(Options!$B$21*HLOOKUP(Calculations!$E$2,Pop2016fractionQ1!$C$3:$BC$251,Pop2016fractionQ1!$BD124,FALSE),0)","v":0},{"$f":"ROUND(Options!$B$21*HLOOKUP(Calculations!$E$2,'Pop2016fractionQ1&2'!$C$3:$BC$251,'Pop2016fractionQ1&2'!$BD124,FALSE),0)","v":13472},{"$f":"ROUND(Options!$B$21*HLOOKUP(Calculations!$E$2,PARfraction!$C$3:$BC$251,PARfraction!$BD124,FALSE),0)","v":5043},122]
[null,"Male 40-44",{"$f":"ROUND(Options!$B$21*HLOOKUP(Calculations!$E$2,Pop2016fraction!$C$3:$BC$251,Pop2016fraction!$BD125,FALSE),0)","v":5256},{"$f":"ROUND(Options!$B$21*HLOOKUP(Calculations!$E$2,Pop2016fractionQ1!$C$3:$BC$251,Pop2016fractionQ1!$BD125,FALSE),0)","v":0},{"$f":"ROUND(Options!$B$21*HLOOKUP(Calculations!$E$2,'Pop2016fractionQ1&2'!$C$3:$BC$251,'Pop2016fractionQ1&2'!$BD125,FALSE),0)","v":13336},{"$f":"ROUND(Options!$B$21*HLOOKUP(Calculations!$E$2,PARfraction!$C$3:$BC$251,PARfraction!$BD125,FALSE),0)","v":4992},123]
[null,"Male 45-49",{"$f":"ROUND(Options!$B$21*HLOOKUP(Calculations!$E$2,Pop2016fraction!$C$3:$BC$251,Pop2016fraction!$BD126,FALSE),0)","v":6024},{"$f":"ROUND(Options!$B$21*HLOOKUP(Calculations!$E$2,Pop2016fractionQ1!$C$3:$BC$251,Pop2016fractionQ1!$BD126,FALSE),0)","v":0},{"$f":"ROUND(Options!$B$21*HLOOKUP(Calculations!$E$2,'Pop2016fractionQ1&2'!$C$3:$BC$251,'Pop2016fractionQ1&2'!$BD126,FALSE),0)","v":15283},{"$f":"ROUND(Options!$B$21*HLOOKUP(Calculations!$E$2,PARfraction!$C$3:$BC$251,PARfraction!$BD126,FALSE),0)","v":6119},124]
[null,"Male 50-54",{"$f":"ROUND(Options!$B$21*HLOOKUP(Calculations!$E$2,Pop2016fraction!$C$3:$BC$251,Pop2016fraction!$BD127,FALSE),0)","v":6209},{"$f":"ROUND(Options!$B$21*HLOOKUP(Calculations!$E$2,Pop2016fractionQ1!$C$3:$BC$251,Pop2016fractionQ1!$BD127,FALSE),0)","v":0},{"$f":"ROUND(Options!$B$21*HLOOKUP(Calculations!$E$2,'Pop2016fractionQ1&2'!$C$3:$BC$251,'Pop2016fractionQ1&2'!$BD127,FALSE),0)","v":15754},{"$f":"ROUND(Options!$B$21*HLOOKUP(Calculations!$E$2,PARfraction!$C$3:$BC$251,PARfraction!$BD127,FALSE),0)","v":6308},125]
[null,"Male 55-59",{"$f":"ROUND(Options!$B$21*HLOOKUP(Calculations!$E$2,Pop2016fraction!$C$3:$BC$251,Pop2016fraction!$BD128,FALSE),0)","v":5753},{"$f":"ROUND(Options!$B$21*HLOOKUP(Calculations!$E$2,Pop2016fractionQ1!$C$3:$BC$251,Pop2016fractionQ1!$BD128,FALSE),0)","v":0},{"$f":"ROUND(Options!$B$21*HLOOKUP(Calculations!$E$2,'Pop2016fractionQ1&2'!$C$3:$BC$251,'Pop2016fractionQ1&2'!$BD128,FALSE),0)","v":14595},{"$f":"ROUND(Options!$B$21*HLOOKUP(Calculations!$E$2,PARfraction!$C$3:$BC$251,PARfraction!$BD128,FALSE),0)","v":8251},126]
[null,"Male 60-64",{"$f":"ROUND(Options!$B$21*HLOOKUP(Calculations!$E$2,Pop2016fraction!$C$3:$BC$251,Pop2016fraction!$BD129,FALSE),0)","v":4922},{"$f":"ROUND(Options!$B$21*HLOOKUP(Calculations!$E$2,Pop2016fractionQ1!$C$3:$BC$251,Pop2016fractionQ1!$BD129,FALSE),0)","v":0},{"$f":"ROUND(Options!$B$21*HLOOKUP(Calculations!$E$2,'Pop2016fractionQ1&2'!$C$3:$BC$251,'Pop2016fractionQ1&2'!$BD129,FALSE),0)","v":12489},{"$f":"ROUND(Options!$B$21*HLOOKUP(Calculations!$E$2,PARfraction!$C$3:$BC$251,PARfraction!$BD129,FALSE),0)","v":7060},127]
[null,"Male 65-69",{"$f":"ROUND(Options!$B$21*HLOOKUP(Calculations!$E$2,Pop2016fraction!$C$3:$BC$251,Pop2016fraction!$BD130,FALSE),0)","v":4881},{"$f":"ROUND(Options!$B$21*HLOOKUP(Calculations!$E$2,Pop2016fractionQ1!$C$3:$BC$251,Pop2016fractionQ1!$BD130,FALSE),0)","v":0},{"$f":"ROUND(Options!$B$21*HLOOKUP(Calculations!$E$2,'Pop2016fractionQ1&2'!$C$3:$BC$251,'Pop2016fractionQ1&2'!$BD130,FALSE),0)","v":12383},{"$f":"ROUND(Options!$B$21*HLOOKUP(Calculations!$E$2,PARfraction!$C$3:$BC$251,PARfraction!$BD130,FALSE),0)","v":7901},128]
[null,"Male 70-74",{"$f":"ROUND(Options!$B$21*HLOOKUP(Calculations!$E$2,Pop2016fraction!$C$3:$BC$251,Pop2016fraction!$BD131,FALSE),0)","v":3621},{"$f":"ROUND(Options!$B$21*HLOOKUP(Calculations!$E$2,Pop2016fractionQ1!$C$3:$BC$251,Pop2016fractionQ1!$BD131,FALSE),0)","v":0},{"$f":"ROUND(Options!$B$21*HLOOKUP(Calculations!$E$2,'Pop2016fractionQ1&2'!$C$3:$BC$251,'Pop2016fractionQ1&2'!$BD131,FALSE),0)","v":9186},{"$f":"ROUND(Options!$B$21*HLOOKUP(Calculations!$E$2,PARfraction!$C$3:$BC$251,PARfraction!$BD131,FALSE),0)","v":5861},129]
[null,"Male 75-79",{"$f":"ROUND(Options!$B$21*HLOOKUP(Calculations!$E$2,Pop2016fraction!$C$3:$BC$251,Pop2016fraction!$BD132,FALSE),0)","v":2741},{"$f":"ROUND(Options!$B$21*HLOOKUP(Calculations!$E$2,Pop2016fractionQ1!$C$3:$BC$251,Pop2016fractionQ1!$BD132,FALSE),0)","v":0},{"$f":"ROUND(Options!$B$21*HLOOKUP(Calculations!$E$2,'Pop2016fractionQ1&2'!$C$3:$BC$251,'Pop2016fractionQ1&2'!$BD132,FALSE),0)","v":6955},{"$f":"ROUND(Options!$B$21*HLOOKUP(Calculations!$E$2,PARfraction!$C$3:$BC$251,PARfraction!$BD132,FALSE),0)","v":6286},130]
[null,"Male 80-84",{"$f":"ROUND(Options!$B$21*HLOOKUP(Calculations!$E$2,Pop2016fraction!$C$3:$BC$251,Pop2016fraction!$BD133,FALSE),0)","v":1861},{"$f":"ROUND(Options!$B$21*HLOOKUP(Calculations!$E$2,Pop2016fractionQ1!$C$3:$BC$251,Pop2016fractionQ1!$BD133,FALSE),0)","v":0},{"$f":"ROUND(Options!$B$21*HLOOKUP(Calculations!$E$2,'Pop2016fractionQ1&2'!$C$3:$BC$251,'Pop2016fractionQ1&2'!$BD133,FALSE),0)","v":4721},{"$f":"ROUND(Options!$B$21*HLOOKUP(Calculations!$E$2,PARfraction!$C$3:$BC$251,PARfraction!$BD133,FALSE),0)","v":4267},131]
[null,"Male 85-89",{"$f":"ROUND(Options!$B$21*HLOOKUP(Calculations!$E$2,Pop2016fraction!$C$3:$BC$251,Pop2016fraction!$BD134,FALSE),0)","v":914},{"$f":"ROUND(Options!$B$21*HLOOKUP(Calculations!$E$2,Pop2016fractionQ1!$C$3:$BC$251,Pop2016fractionQ1!$BD134,FALSE),0)","v":0},{"$f":"ROUND(Options!$B$21*HLOOKUP(Calculations!$E$2,'Pop2016fractionQ1&2'!$C$3:$BC$251,'Pop2016fractionQ1&2'!$BD134,FALSE),0)","v":2319},{"$f":"ROUND(Options!$B$21*HLOOKUP(Calculations!$E$2,PARfraction!$C$3:$BC$251,PARfraction!$BD134,FALSE),0)","v":2096},132]
[null,"Male 90+",{"$f":"ROUND(Options!$B$21*HLOOKUP(Calculations!$E$2,Pop2016fraction!$C$3:$BC$251,Pop2016fraction!$BD135,FALSE),0)","v":375},{"$f":"ROUND(Options!$B$21*HLOOKUP(Calculations!$E$2,Pop2016fractionQ1!$C$3:$BC$251,Pop2016fractionQ1!$BD135,FALSE),0)","v":0},{"$f":"ROUND(Options!$B$21*HLOOKUP(Calculations!$E$2,'Pop2016fractionQ1&2'!$C$3:$BC$251,'Pop2016fractionQ1&2'!$BD135,FALSE),0)","v":952},{"$f":"ROUND(Options!$B$21*HLOOKUP(Calculations!$E$2,PARfraction!$C$3:$BC$251,PARfraction!$BD135,FALSE),0)","v":861},133]
["SIMD Q3","Female 0-4",{"$f":"ROUND(Options!$B$21*HLOOKUP(Calculations!$E$2,Pop2016fraction!$C$3:$BC$251,Pop2016fraction!$BD136,FALSE),0)","v":0},{"$f":"ROUND(Options!$B$21*HLOOKUP(Calculations!$E$2,Pop2016fractionQ1!$C$3:$BC$251,Pop2016fractionQ1!$BD136,FALSE),0)","v":0},{"$f":"ROUND(Options!$B$21*HLOOKUP(Calculations!$E$2,'Pop2016fractionQ1&2'!$C$3:$BC$251,'Pop2016fractionQ1&2'!$BD136,FALSE),0)","v":0},{"$f":"ROUND(Options!$B$21*HLOOKUP(Calculations!$E$2,PARfraction!$C$3:$BC$251,PARfraction!$BD136,FALSE),0)","v":0},134]
[null,"Female 5-9",{"$f":"ROUND(Options!$B$21*HLOOKUP(Calculations!$E$2,Pop2016fraction!$C$3:$BC$251,Pop2016fraction!$BD137,FALSE),0)","v":0},{"$f":"ROUND(Options!$B$21*HLOOKUP(Calculations!$E$2,Pop2016fractionQ1!$C$3:$BC$251,Pop2016fractionQ1!$BD137,FALSE),0)","v":0},{"$f":"ROUND(Options!$B$21*HLOOKUP(Calculations!$E$2,'Pop2016fractionQ1&2'!$C$3:$BC$251,'Pop2016fractionQ1&2'!$BD137,FALSE),0)","v":0},{"$f":"ROUND(Options!$B$21*HLOOKUP(Calculations!$E$2,PARfraction!$C$3:$BC$251,PARfraction!$BD137,FALSE),0)","v":0},135]
[null,"Female 10-15",{"$f":"ROUND(Options!$B$21*HLOOKUP(Calculations!$E$2,Pop2016fraction!$C$3:$BC$251,Pop2016fraction!$BD138,FALSE),0)","v":0},{"$f":"ROUND(Options!$B$21*HLOOKUP(Calculations!$E$2,Pop2016fractionQ1!$C$3:$BC$251,Pop2016fractionQ1!$BD138,FALSE),0)","v":0},{"$f":"ROUND(Options!$B$21*HLOOKUP(Calculations!$E$2,'Pop2016fractionQ1&2'!$C$3:$BC$251,'Pop2016fractionQ1&2'!$BD138,FALSE),0)","v":0},{"$f":"ROUND(Options!$B$21*HLOOKUP(Calculations!$E$2,PARfraction!$C$3:$BC$251,PARfraction!$BD138,FALSE),0)","v":0},136]
[null,"Female 16-19",{"$f":"ROUND(Options!$B$21*HLOOKUP(Calculations!$E$2,Pop2016fraction!$C$3:$BC$251,Pop2016fraction!$BD139,FALSE),0)","v":3754},{"$f":"ROUND(Options!$B$21*HLOOKUP(Calculations!$E$2,Pop2016fractionQ1!$C$3:$BC$251,Pop2016fractionQ1!$BD139,FALSE),0)","v":0},{"$f":"ROUND(Options!$B$21*HLOOKUP(Calculations!$E$2,'Pop2016fractionQ1&2'!$C$3:$BC$251,'Pop2016fractionQ1&2'!$BD139,FALSE),0)","v":0},{"$f":"ROUND(Options!$B$21*HLOOKUP(Calculations!$E$2,PARfraction!$C$3:$BC$251,PARfraction!$BD139,FALSE),0)","v":1209},137]
[null,"Female 20-24",{"$f":"ROUND(Options!$B$21*HLOOKUP(Calculations!$E$2,Pop2016fraction!$C$3:$BC$251,Pop2016fraction!$BD140,FALSE),0)","v":5732},{"$f":"ROUND(Options!$B$21*HLOOKUP(Calculations!$E$2,Pop2016fractionQ1!$C$3:$BC$251,Pop2016fractionQ1!$BD140,FALSE),0)","v":0},{"$f":"ROUND(Options!$B$21*HLOOKUP(Calculations!$E$2,'Pop2016fractionQ1&2'!$C$3:$BC$251,'Pop2016fractionQ1&2'!$BD140,FALSE),0)","v":0},{"$f":"ROUND(Options!$B$21*HLOOKUP(Calculations!$E$2,PARfraction!$C$3:$BC$251,PARfraction!$BD140,FALSE),0)","v":1846},138]
[null,"Female 25-29",{"$f":"ROUND(Options!$B$21*HLOOKUP(Calculations!$E$2,Pop2016fraction!$C$3:$BC$251,Pop2016fraction!$BD141,FALSE),0)","v":5982},{"$f":"ROUND(Options!$B$21*HLOOKUP(Calculations!$E$2,Pop2016fractionQ1!$C$3:$BC$251,Pop2016fractionQ1!$BD141,FALSE),0)","v":0},{"$f":"ROUND(Options!$B$21*HLOOKUP(Calculations!$E$2,'Pop2016fractionQ1&2'!$C$3:$BC$251,'Pop2016fractionQ1&2'!$BD141,FALSE),0)","v":0},{"$f":"ROUND(Options!$B$21*HLOOKUP(Calculations!$E$2,PARfraction!$C$3:$BC$251,PARfraction!$BD141,FALSE),0)","v":1894},139]
[null,"Female 30-34",{"$f":"ROUND(Options!$B$21*HLOOKUP(Calculations!$E$2,Pop2016fraction!$C$3:$BC$251,Pop2016fraction!$BD142,FALSE),0)","v":5713},{"$f":"ROUND(Options!$B$21*HLOOKUP(Calculations!$E$2,Pop2016fractionQ1!$C$3:$BC$251,Pop2016fractionQ1!$BD142,FALSE),0)","v":0},{"$f":"ROUND(Options!$B$21*HLOOKUP(Calculations!$E$2,'Pop2016fractionQ1&2'!$C$3:$BC$251,'Pop2016fractionQ1&2'!$BD142,FALSE),0)","v":0},{"$f":"ROUND(Options!$B$21*HLOOKUP(Calculations!$E$2,PARfraction!$C$3:$BC$251,PARfraction!$BD142,FALSE),0)","v":1809},140]
[null,"Female 35-39",{"$f":"ROUND(Options!$B$21*HLOOKUP(Calculations!$E$2,Pop2016fraction!$C$3:$BC$251,Pop2016fraction!$BD143,FALSE),0)","v":5247},{"$f":"ROUND(Options!$B$21*HLOOKUP(Calculations!$E$2,Pop2016fractionQ1!$C$3:$BC$251,Pop2016fractionQ1!$BD143,FALSE),0)","v":0},{"$f":"ROUND(Options!$B$21*HLOOKUP(Calculations!$E$2,'Pop2016fractionQ1&2'!$C$3:$BC$251,'Pop2016fractionQ1&2'!$BD143,FALSE),0)","v":0},{"$f":"ROUND(Options!$B$21*HLOOKUP(Calculations!$E$2,PARfraction!$C$3:$BC$251,PARfraction!$BD143,FALSE),0)","v":3293},141]
[null,"Female 40-44",{"$f":"ROUND(Options!$B$21*HLOOKUP(Calculations!$E$2,Pop2016fraction!$C$3:$BC$251,Pop2016fraction!$BD144,FALSE),0)","v":5466},{"$f":"ROUND(Options!$B$21*HLOOKUP(Calculations!$E$2,Pop2016fractionQ1!$C$3:$BC$251,Pop2016fractionQ1!$BD144,FALSE),0)","v":0},{"$f":"ROUND(Options!$B$21*HLOOKUP(Calculations!$E$2,'Pop2016fractionQ1&2'!$C$3:$BC$251,'Pop2016fractionQ1&2'!$BD144,FALSE),0)","v":0},{"$f":"ROUND(Options!$B$21*HLOOKUP(Calculations!$E$2,PARfraction!$C$3:$BC$251,PARfraction!$BD144,FALSE),0)","v":3431},142]
[null,"Female 45-49",{"$f":"ROUND(Options!$B$21*HLOOKUP(Calculations!$E$2,Pop2016fraction!$C$3:$BC$251,Pop2016fraction!$BD145,FALSE),0)","v":6648},{"$f":"ROUND(Options!$B$21*HLOOKUP(Calculations!$E$2,Pop2016fractionQ1!$C$3:$BC$251,Pop2016fractionQ1!$BD145,FALSE),0)","v":0},{"$f":"ROUND(Options!$B$21*HLOOKUP(Calculations!$E$2,'Pop2016fractionQ1&2'!$C$3:$BC$251,'Pop2016fractionQ1&2'!$BD145,FALSE),0)","v":0},{"$f":"ROUND(Options!$B$21*HLOOKUP(Calculations!$E$2,PARfraction!$C$3:$BC$251,PARfraction!$BD145,FALSE),0)","v":4740},143]
[null,"Female 50-54",{"$f":"ROUND(Options!$B$21*HLOOKUP(Calculations!$E$2,Pop2016fraction!$C$3:$BC$251,Pop2016fraction!$BD146,FALSE),0)","v":6984},{"$f":"ROUND(Options!$B$21*HLOOKUP(Calculations!$E$2,Pop2016fractionQ1!$C$3:$BC$251,Pop2016fractionQ1!$BD146,FALSE),0)","v":0},{"$f":"ROUND(Options!$B$21*HLOOKUP(Calculations!$E$2,'Pop2016fractionQ1&2'!$C$3:$BC$251,'Pop2016fractionQ1&2'!$BD146,FALSE),0)","v":0},{"$f":"ROUND(Options!$B$21*HLOOKUP(Calculations!$E$2,PARfraction!$C$3:$BC$251,PARfraction!$BD146,FALSE),0)","v":4980},144]
[null,"Female 55-59",{"$f":"ROUND(Options!$B$21*HLOOKUP(Calculations!$E$2,Pop2016fraction!$C$3:$BC$251,Pop2016fraction!$BD147,FALSE),0)","v":6429},{"$f":"ROUND(Options!$B$21*HLOOKUP(Calculations!$E$2,Pop2016fractionQ1!$C$3:$BC$251,Pop2016fractionQ1!$BD147,FALSE),0)","v":0},{"$f":"ROUND(Options!$B$21*HLOOKUP(Calculations!$E$2,'Pop2016fractionQ1&2'!$C$3:$BC$251,'Pop2016fractionQ1&2'!$BD147,FALSE),0)","v":0},{"$f":"ROUND(Options!$B$21*HLOOKUP(Calculations!$E$2,PARfraction!$C$3:$BC$251,PARfraction!$BD147,FALSE),0)","v":7344},145]
[null,"Female 60-64",{"$f":"ROUND(Options!$B$21*HLOOKUP(Calculations!$E$2,Pop2016fraction!$C$3:$BC$251,Pop2016fraction!$BD148,FALSE),0)","v":5678},{"$f":"ROUND(Options!$B$21*HLOOKUP(Calculations!$E$2,Pop2016fractionQ1!$C$3:$BC$251,Pop2016fractionQ1!$BD148,FALSE),0)","v":0},{"$f":"ROUND(Options!$B$21*HLOOKUP(Calculations!$E$2,'Pop2016fractionQ1&2'!$C$3:$BC$251,'Pop2016fractionQ1&2'!$BD148,FALSE),0)","v":0},{"$f":"ROUND(Options!$B$21*HLOOKUP(Calculations!$E$2,PARfraction!$C$3:$BC$251,PARfraction!$BD148,FALSE),0)","v":6487},146]
[null,"Female 65-69",{"$f":"ROUND(Options!$B$21*HLOOKUP(Calculations!$E$2,Pop2016fraction!$C$3:$BC$251,Pop2016fraction!$BD149,FALSE),0)","v":5757},{"$f":"ROUND(Options!$B$21*HLOOKUP(Calculations!$E$2,Pop2016fractionQ1!$C$3:$BC$251,Pop2016fractionQ1!$BD149,FALSE),0)","v":0},{"$f":"ROUND(Options!$B$21*HLOOKUP(Calculations!$E$2,'Pop2016fractionQ1&2'!$C$3:$BC$251,'Pop2016fractionQ1&2'!$BD149,FALSE),0)","v":0},{"$f":"ROUND(Options!$B$21*HLOOKUP(Calculations!$E$2,PARfraction!$C$3:$BC$251,PARfraction!$BD149,FALSE),0)","v":7686},147]
[null,"Female 70-74",{"$f":"ROUND(Options!$B$21*HLOOKUP(Calculations!$E$2,Pop2016fraction!$C$3:$BC$251,Pop2016fraction!$BD150,FALSE),0)","v":4525},{"$f":"ROUND(Options!$B$21*HLOOKUP(Calculations!$E$2,Pop2016fractionQ1!$C$3:$BC$251,Pop2016fractionQ1!$BD150,FALSE),0)","v":0},{"$f":"ROUND(Options!$B$21*HLOOKUP(Calculations!$E$2,'Pop2016fractionQ1&2'!$C$3:$BC$251,'Pop2016fractionQ1&2'!$BD150,FALSE),0)","v":0},{"$f":"ROUND(Options!$B$21*HLOOKUP(Calculations!$E$2,PARfraction!$C$3:$BC$251,PARfraction!$BD150,FALSE),0)","v":6041},148]
[null,"Female 75-79",{"$f":"ROUND(Options!$B$21*HLOOKUP(Calculations!$E$2,Pop2016fraction!$C$3:$BC$251,Pop2016fraction!$BD151,FALSE),0)","v":3617},{"$f":"ROUND(Options!$B$21*HLOOKUP(Calculations!$E$2,Pop2016fractionQ1!$C$3:$BC$251,Pop2016fractionQ1!$BD151,FALSE),0)","v":0},{"$f":"ROUND(Options!$B$21*HLOOKUP(Calculations!$E$2,'Pop2016fractionQ1&2'!$C$3:$BC$251,'Pop2016fractionQ1&2'!$BD151,FALSE),0)","v":0},{"$f":"ROUND(Options!$B$21*HLOOKUP(Calculations!$E$2,PARfraction!$C$3:$BC$251,PARfraction!$BD151,FALSE),0)","v":6143},149]
[null,"Female 80-84",{"$f":"ROUND(Options!$B$21*HLOOKUP(Calculations!$E$2,Pop2016fraction!$C$3:$BC$251,Pop2016fraction!$BD152,FALSE),0)","v":2741},{"$f":"ROUND(Options!$B$21*HLOOKUP(Calculations!$E$2,Pop2016fractionQ1!$C$3:$BC$251,Pop2016fractionQ1!$BD152,FALSE),0)","v":0},{"$f":"ROUND(Options!$B$21*HLOOKUP(Calculations!$E$2,'Pop2016fractionQ1&2'!$C$3:$BC$251,'Pop2016fractionQ1&2'!$BD152,FALSE),0)","v":0},{"$f":"ROUND(Options!$B$21*HLOOKUP(Calculations!$E$2,PARfraction!$C$3:$BC$251,PARfraction!$BD152,FALSE),0)","v":4657},150]
[null,"Female 85-89",{"$f":"ROUND(Options!$B$21*HLOOKUP(Calculations!$E$2,Pop2016fraction!$C$3:$BC$251,Pop2016fraction!$BD153,FALSE),0)","v":1717},{"$f":"ROUND(Options!$B$21*HLOOKUP(Calculations!$E$2,Pop2016fractionQ1!$C$3:$BC$251,Pop2016fractionQ1!$BD153,FALSE),0)","v":0},{"$f":"ROUND(Options!$B$21*HLOOKUP(Calculations!$E$2,'Pop2016fractionQ1&2'!$C$3:$BC$251,'Pop2016fractionQ1&2'!$BD153,FALSE),0)","v":0},{"$f":"ROUND(Options!$B$21*HLOOKUP(Calculations!$E$2,PARfraction!$C$3:$BC$251,PARfraction!$BD153,FALSE),0)","v":2917},151]
[null,"Female 90+",{"$f":"ROUND(Options!$B$21*HLOOKUP(Calculations!$E$2,Pop2016fraction!$C$3:$BC$251,Pop2016fraction!$BD154,FALSE),0)","v":1031},{"$f":"ROUND(Options!$B$21*HLOOKUP(Calculations!$E$2,Pop2016fractionQ1!$C$3:$BC$251,Pop2016fractionQ1!$BD154,FALSE),0)","v":0},{"$f":"ROUND(Options!$B$21*HLOOKUP(Calculations!$E$2,'Pop2016fractionQ1&2'!$C$3:$BC$251,'Pop2016fractionQ1&2'!$BD154,FALSE),0)","v":0},{"$f":"ROUND(Options!$B$21*HLOOKUP(Calculations!$E$2,PARfraction!$C$3:$BC$251,PARfraction!$BD154,FALSE),0)","v":1751},152]
[null,"Male 0-4",{"$f":"ROUND(Options!$B$21*HLOOKUP(Calculations!$E$2,Pop2016fraction!$C$3:$BC$251,Pop2016fraction!$BD155,FALSE),0)","v":0},{"$f":"ROUND(Options!$B$21*HLOOKUP(Calculations!$E$2,Pop2016fractionQ1!$C$3:$BC$251,Pop2016fractionQ1!$BD155,FALSE),0)","v":0},{"$f":"ROUND(Options!$B$21*HLOOKUP(Calculations!$E$2,'Pop2016fractionQ1&2'!$C$3:$BC$251,'Pop2016fractionQ1&2'!$BD155,FALSE),0)","v":0},{"$f":"ROUND(Options!$B$21*HLOOKUP(Calculations!$E$2,PARfraction!$C$3:$BC$251,PARfraction!$BD155,FALSE),0)","v":0},153]
[null,"Male 5-9",{"$f":"ROUND(Options!$B$21*HLOOKUP(Calculations!$E$2,Pop2016fraction!$C$3:$BC$251,Pop2016fraction!$BD156,FALSE),0)","v":0},{"$f":"ROUND(Options!$B$21*HLOOKUP(Calculations!$E$2,Pop2016fractionQ1!$C$3:$BC$251,Pop2016fractionQ1!$BD156,FALSE),0)","v":0},{"$f":"ROUND(Options!$B$21*HLOOKUP(Calculations!$E$2,'Pop2016fractionQ1&2'!$C$3:$BC$251,'Pop2016fractionQ1&2'!$BD156,FALSE),0)","v":0},{"$f":"ROUND(Options!$B$21*HLOOKUP(Calculations!$E$2,PARfraction!$C$3:$BC$251,PARfraction!$BD156,FALSE),0)","v":0},154]
[null,"Male 10-15",{"$f":"ROUND(Options!$B$21*HLOOKUP(Calculations!$E$2,Pop2016fraction!$C$3:$BC$251,Pop2016fraction!$BD157,FALSE),0)","v":0},{"$f":"ROUND(Options!$B$21*HLOOKUP(Calculations!$E$2,Pop2016fractionQ1!$C$3:$BC$251,Pop2016fractionQ1!$BD157,FALSE),0)","v":0},{"$f":"ROUND(Options!$B$21*HLOOKUP(Calculations!$E$2,'Pop2016fractionQ1&2'!$C$3:$BC$251,'Pop2016fractionQ1&2'!$BD157,FALSE),0)","v":0},{"$f":"ROUND(Options!$B$21*HLOOKUP(Calculations!$E$2,PARfraction!$C$3:$BC$251,PARfraction!$BD157,FALSE),0)","v":0},155]
[null,"Male 16-19",{"$f":"ROUND(Options!$B$21*HLOOKUP(Calculations!$E$2,Pop2016fraction!$C$3:$BC$251,Pop2016fraction!$BD158,FALSE),0)","v":3896},{"$f":"ROUND(Options!$B$21*HLOOKUP(Calculations!$E$2,Pop2016fractionQ1!$C$3:$BC$251,Pop2016fractionQ1!$BD158,FALSE),0)","v":0},{"$f":"ROUND(Options!$B$21*HLOOKUP(Calculations!$E$2,'Pop2016fractionQ1&2'!$C$3:$BC$251,'Pop2016fractionQ1&2'!$BD158,FALSE),0)","v":0},{"$f":"ROUND(Options!$B$21*HLOOKUP(Calculations!$E$2,PARfraction!$C$3:$BC$251,PARfraction!$BD158,FALSE),0)","v":3721},156]
[null,"Male 20-24",{"$f":"ROUND(Options!$B$21*HLOOKUP(Calculations!$E$2,Pop2016fraction!$C$3:$BC$251,Pop2016fraction!$BD159,FALSE),0)","v":5787},{"$f":"ROUND(Options!$B$21*HLOOKUP(Calculations!$E$2,Pop2016fractionQ1!$C$3:$BC$251,Pop2016fractionQ1!$BD159,FALSE),0)","v":0},{"$f":"ROUND(Options!$B$21*HLOOKUP(Calculations!$E$2,'Pop2016fractionQ1&2'!$C$3:$BC$251,'Pop2016fractionQ1&2'!$BD159,FALSE),0)","v":0},{"$f":"ROUND(Options!$B$21*HLOOKUP(Calculations!$E$2,PARfraction!$C$3:$BC$251,PARfraction!$BD159,FALSE),0)","v":5528},157]
[null,"Male 25-29",{"$f":"ROUND(Options!$B$21*HLOOKUP(Calculations!$E$2,Pop2016fraction!$C$3:$BC$251,Pop2016fraction!$BD160,FALSE),0)","v":5901},{"$f":"ROUND(Options!$B$21*HLOOKUP(Calculations!$E$2,Pop2016fractionQ1!$C$3:$BC$251,Pop2016fractionQ1!$BD160,FALSE),0)","v":0},{"$f":"ROUND(Options!$B$21*HLOOKUP(Calculations!$E$2,'Pop2016fractionQ1&2'!$C$3:$BC$251,'Pop2016fractionQ1&2'!$BD160,FALSE),0)","v":0},{"$f":"ROUND(Options!$B$21*HLOOKUP(Calculations!$E$2,PARfraction!$C$3:$BC$251,PARfraction!$BD160,FALSE),0)","v":4743},158]
[null,"Male 30-34",{"$f":"ROUND(Options!$B$21*HLOOKUP(Calculations!$E$2,Pop2016fraction!$C$3:$BC$251,Pop2016fraction!$BD161,FALSE),0)","v":5688},{"$f":"ROUND(Options!$B$21*HLOOKUP(Calculations!$E$2,Pop2016fractionQ1!$C$3:$BC$251,Pop2016fractionQ1!$BD161,FALSE),0)","v":0},{"$f":"ROUND(Options!$B$21*HLOOKUP(Calculations!$E$2,'Pop2016fractionQ1&2'!$C$3:$BC$251,'Pop2016fractionQ1&2'!$BD161,FALSE),0)","v":0},{"$f":"ROUND(Options!$B$21*HLOOKUP(Calculations!$E$2,PARfraction!$C$3:$BC$251,PARfraction!$BD161,FALSE),0)","v":4572},159]
[null,"Male 35-39",{"$f":"ROUND(Options!$B$21*HLOOKUP(Calculations!$E$2,Pop2016fraction!$C$3:$BC$251,Pop2016fraction!$BD162,FALSE),0)","v":5255},{"$f":"ROUND(Options!$B$21*HLOOKUP(Calculations!$E$2,Pop2016fractionQ1!$C$3:$BC$251,Pop2016fractionQ1!$BD162,FALSE),0)","v":0},{"$f":"ROUND(Options!$B$21*HLOOKUP(Calculations!$E$2,'Pop2016fractionQ1&2'!$C$3:$BC$251,'Pop2016fractionQ1&2'!$BD162,FALSE),0)","v":0},{"$f":"ROUND(Options!$B$21*HLOOKUP(Calculations!$E$2,PARfraction!$C$3:$BC$251,PARfraction!$BD162,FALSE),0)","v":4673},160]
[null,"Male 40-44",{"$f":"ROUND(Options!$B$21*HLOOKUP(Calculations!$E$2,Pop2016fraction!$C$3:$BC$251,Pop2016fraction!$BD163,FALSE),0)","v":5226},{"$f":"ROUND(Options!$B$21*HLOOKUP(Calculations!$E$2,Pop2016fractionQ1!$C$3:$BC$251,Pop2016fractionQ1!$BD163,FALSE),0)","v":0},{"$f":"ROUND(Options!$B$21*HLOOKUP(Calculations!$E$2,'Pop2016fractionQ1&2'!$C$3:$BC$251,'Pop2016fractionQ1&2'!$BD163,FALSE),0)","v":0},{"$f":"ROUND(Options!$B$21*HLOOKUP(Calculations!$E$2,PARfraction!$C$3:$BC$251,PARfraction!$BD163,FALSE),0)","v":4647},161]
[null,"Male 45-49",{"$f":"ROUND(Options!$B$21*HLOOKUP(Calculations!$E$2,Pop2016fraction!$C$3:$BC$251,Pop2016fraction!$BD164,FALSE),0)","v":6182},{"$f":"ROUND(Options!$B$21*HLOOKUP(Calculations!$E$2,Pop2016fractionQ1!$C$3:$BC$251,Pop2016fractionQ1!$BD164,FALSE),0)","v":0},{"$f":"ROUND(Options!$B$21*HLOOKUP(Calculations!$E$2,'Pop2016fractionQ1&2'!$C$3:$BC$251,'Pop2016fractionQ1&2'!$BD164,FALSE),0)","v":0},{"$f":"ROUND(Options!$B$21*HLOOKUP(Calculations!$E$2,PARfraction!$C$3:$BC$251,PARfraction!$BD164,FALSE),0)","v":5701},162]
[null,"Male 50-54",{"$f":"ROUND(Options!$B$21*HLOOKUP(Calculations!$E$2,Pop2016fraction!$C$3:$BC$251,Pop2016fraction!$BD165,FALSE),0)","v":6631},{"$f":"ROUND(Options!$B$21*HLOOKUP(Calculations!$E$2,Pop2016fractionQ1!$C$3:$BC$251,Pop2016fractionQ1!$BD165,FALSE),0)","v":0},{"$f":"ROUND(Options!$B$21*HLOOKUP(Calculations!$E$2,'Pop2016fractionQ1&2'!$C$3:$BC$251,'Pop2016fractionQ1&2'!$BD165,FALSE),0)","v":0},{"$f":"ROUND(Options!$B$21*HLOOKUP(Calculations!$E$2,PARfraction!$C$3:$BC$251,PARfraction!$BD165,FALSE),0)","v":6115},163]
[null,"Male 55-59",{"$f":"ROUND(Options!$B$21*HLOOKUP(Calculations!$E$2,Pop2016fraction!$C$3:$BC$251,Pop2016fraction!$BD166,FALSE),0)","v":6164},{"$f":"ROUND(Options!$B$21*HLOOKUP(Calculations!$E$2,Pop2016fractionQ1!$C$3:$BC$251,Pop2016fractionQ1!$BD166,FALSE),0)","v":0},{"$f":"ROUND(Options!$B$21*HLOOKUP(Calculations!$E$2,'Pop2016fractionQ1&2'!$C$3:$BC$251,'Pop2016fractionQ1&2'!$BD166,FALSE),0)","v":0},{"$f":"ROUND(Options!$B$21*HLOOKUP(Calculations!$E$2,PARfraction!$C$3:$BC$251,PARfraction!$BD166,FALSE),0)","v":7365},164]
[null,"Male 60-64",{"$f":"ROUND(Options!$B$21*HLOOKUP(Calculations!$E$2,Pop2016fraction!$C$3:$BC$251,Pop2016fraction!$BD167,FALSE),0)","v":5459},{"$f":"ROUND(Options!$B$21*HLOOKUP(Calculations!$E$2,Pop2016fractionQ1!$C$3:$BC$251,Pop2016fractionQ1!$BD167,FALSE),0)","v":0},{"$f":"ROUND(Options!$B$21*HLOOKUP(Calculations!$E$2,'Pop2016fractionQ1&2'!$C$3:$BC$251,'Pop2016fractionQ1&2'!$BD167,FALSE),0)","v":0},{"$f":"ROUND(Options!$B$21*HLOOKUP(Calculations!$E$2,PARfraction!$C$3:$BC$251,PARfraction!$BD167,FALSE),0)","v":6522},165]
[null,"Male 65-69",{"$f":"ROUND(Options!$B$21*HLOOKUP(Calculations!$E$2,Pop2016fraction!$C$3:$BC$251,Pop2016fraction!$BD168,FALSE),0)","v":5479},{"$f":"ROUND(Options!$B$21*HLOOKUP(Calculations!$E$2,Pop2016fractionQ1!$C$3:$BC$251,Pop2016fractionQ1!$BD168,FALSE),0)","v":0},{"$f":"ROUND(Options!$B$21*HLOOKUP(Calculations!$E$2,'Pop2016fractionQ1&2'!$C$3:$BC$251,'Pop2016fractionQ1&2'!$BD168,FALSE),0)","v":0},{"$f":"ROUND(Options!$B$21*HLOOKUP(Calculations!$E$2,PARfraction!$C$3:$BC$251,PARfraction!$BD168,FALSE),0)","v":7949},166]
[null,"Male 70-74",{"$f":"ROUND(Options!$B$21*HLOOKUP(Calculations!$E$2,Pop2016fraction!$C$3:$BC$251,Pop2016fraction!$BD169,FALSE),0)","v":4012},{"$f":"ROUND(Options!$B$21*HLOOKUP(Calculations!$E$2,Pop2016fractionQ1!$C$3:$BC$251,Pop2016fractionQ1!$BD169,FALSE),0)","v":0},{"$f":"ROUND(Options!$B$21*HLOOKUP(Calculations!$E$2,'Pop2016fractionQ1&2'!$C$3:$BC$251,'Pop2016fractionQ1&2'!$BD169,FALSE),0)","v":0},{"$f":"ROUND(Options!$B$21*HLOOKUP(Calculations!$E$2,PARfraction!$C$3:$BC$251,PARfraction!$BD169,FALSE),0)","v":5821},167]
[null,"Male 75-79",{"$f":"ROUND(Options!$B$21*HLOOKUP(Calculations!$E$2,Pop2016fraction!$C$3:$BC$251,Pop2016fraction!$BD170,FALSE),0)","v":2979},{"$f":"ROUND(Options!$B$21*HLOOKUP(Calculations!$E$2,Pop2016fractionQ1!$C$3:$BC$251,Pop2016fractionQ1!$BD170,FALSE),0)","v":0},{"$f":"ROUND(Options!$B$21*HLOOKUP(Calculations!$E$2,'Pop2016fractionQ1&2'!$C$3:$BC$251,'Pop2016fractionQ1&2'!$BD170,FALSE),0)","v":0},{"$f":"ROUND(Options!$B$21*HLOOKUP(Calculations!$E$2,PARfraction!$C$3:$BC$251,PARfraction!$BD170,FALSE),0)","v":6521},168]
[null,"Male 80-84",{"$f":"ROUND(Options!$B$21*HLOOKUP(Calculations!$E$2,Pop2016fraction!$C$3:$BC$251,Pop2016fraction!$BD171,FALSE),0)","v":1986},{"$f":"ROUND(Options!$B$21*HLOOKUP(Calculations!$E$2,Pop2016fractionQ1!$C$3:$BC$251,Pop2016fractionQ1!$BD171,FALSE),0)","v":0},{"$f":"ROUND(Options!$B$21*HLOOKUP(Calculations!$E$2,'Pop2016fractionQ1&2'!$C$3:$BC$251,'Pop2016fractionQ1&2'!$BD171,FALSE),0)","v":0},{"$f":"ROUND(Options!$B$21*HLOOKUP(Calculations!$E$2,PARfraction!$C$3:$BC$251,PARfraction!$BD171,FALSE),0)","v":4347},169]
[null,"Male 85-89",{"$f":"ROUND(Options!$B$21*HLOOKUP(Calculations!$E$2,Pop2016fraction!$C$3:$BC$251,Pop2016fraction!$BD172,FALSE),0)","v":988},{"$f":"ROUND(Options!$B$21*HLOOKUP(Calculations!$E$2,Pop2016fractionQ1!$C$3:$BC$251,Pop2016fractionQ1!$BD172,FALSE),0)","v":0},{"$f":"ROUND(Options!$B$21*HLOOKUP(Calculations!$E$2,'Pop2016fractionQ1&2'!$C$3:$BC$251,'Pop2016fractionQ1&2'!$BD172,FALSE),0)","v":0},{"$f":"ROUND(Options!$B$21*HLOOKUP(Calculations!$E$2,PARfraction!$C$3:$BC$251,PARfraction!$BD172,FALSE),0)","v":2163},170]
[null,"Male 90+",{"$f":"ROUND(Options!$B$21*HLOOKUP(Calculations!$E$2,Pop2016fraction!$C$3:$BC$251,Pop2016fraction!$BD173,FALSE),0)","v":426},{"$f":"ROUND(Options!$B$21*HLOOKUP(Calculations!$E$2,Pop2016fractionQ1!$C$3:$BC$251,Pop2016fractionQ1!$BD173,FALSE),0)","v":0},{"$f":"ROUND(Options!$B$21*HLOOKUP(Calculations!$E$2,'Pop2016fractionQ1&2'!$C$3:$BC$251,'Pop2016fractionQ1&2'!$BD173,FALSE),0)","v":0},{"$f":"ROUND(Options!$B$21*HLOOKUP(Calculations!$E$2,PARfraction!$C$3:$BC$251,PARfraction!$BD173,FALSE),0)","v":932},171]
["SIMD Q4","Female 0-4",{"$f":"ROUND(Options!$B$21*HLOOKUP(Calculations!$E$2,Pop2016fraction!$C$3:$BC$251,Pop2016fraction!$BD174,FALSE),0)","v":0},{"$f":"ROUND(Options!$B$21*HLOOKUP(Calculations!$E$2,Pop2016fractionQ1!$C$3:$BC$251,Pop2016fractionQ1!$BD174,FALSE),0)","v":0},{"$f":"ROUND(Options!$B$21*HLOOKUP(Calculations!$E$2,'Pop2016fractionQ1&2'!$C$3:$BC$251,'Pop2016fractionQ1&2'!$BD174,FALSE),0)","v":0},{"$f":"ROUND(Options!$B$21*HLOOKUP(Calculations!$E$2,PARfraction!$C$3:$BC$251,PARfraction!$BD174,FALSE),0)","v":0},172]
[null,"Female 5-9",{"$f":"ROUND(Options!$B$21*HLOOKUP(Calculations!$E$2,Pop2016fraction!$C$3:$BC$251,Pop2016fraction!$BD175,FALSE),0)","v":0},{"$f":"ROUND(Options!$B$21*HLOOKUP(Calculations!$E$2,Pop2016fractionQ1!$C$3:$BC$251,Pop2016fractionQ1!$BD175,FALSE),0)","v":0},{"$f":"ROUND(Options!$B$21*HLOOKUP(Calculations!$E$2,'Pop2016fractionQ1&2'!$C$3:$BC$251,'Pop2016fractionQ1&2'!$BD175,FALSE),0)","v":0},{"$f":"ROUND(Options!$B$21*HLOOKUP(Calculations!$E$2,PARfraction!$C$3:$BC$251,PARfraction!$BD175,FALSE),0)","v":0},173]
[null,"Female 10-15",{"$f":"ROUND(Options!$B$21*HLOOKUP(Calculations!$E$2,Pop2016fraction!$C$3:$BC$251,Pop2016fraction!$BD176,FALSE),0)","v":0},{"$f":"ROUND(Options!$B$21*HLOOKUP(Calculations!$E$2,Pop2016fractionQ1!$C$3:$BC$251,Pop2016fractionQ1!$BD176,FALSE),0)","v":0},{"$f":"ROUND(Options!$B$21*HLOOKUP(Calculations!$E$2,'Pop2016fractionQ1&2'!$C$3:$BC$251,'Pop2016fractionQ1&2'!$BD176,FALSE),0)","v":0},{"$f":"ROUND(Options!$B$21*HLOOKUP(Calculations!$E$2,PARfraction!$C$3:$BC$251,PARfraction!$BD176,FALSE),0)","v":0},174]
[null,"Female 16-19",{"$f":"ROUND(Options!$B$21*HLOOKUP(Calculations!$E$2,Pop2016fraction!$C$3:$BC$251,Pop2016fraction!$BD177,FALSE),0)","v":3843},{"$f":"ROUND(Options!$B$21*HLOOKUP(Calculations!$E$2,Pop2016fractionQ1!$C$3:$BC$251,Pop2016fractionQ1!$BD177,FALSE),0)","v":0},{"$f":"ROUND(Options!$B$21*HLOOKUP(Calculations!$E$2,'Pop2016fractionQ1&2'!$C$3:$BC$251,'Pop2016fractionQ1&2'!$BD177,FALSE),0)","v":0},{"$f":"ROUND(Options!$B$21*HLOOKUP(Calculations!$E$2,PARfraction!$C$3:$BC$251,PARfraction!$BD177,FALSE),0)","v":2042},175]
[null,"Female 20-24",{"$f":"ROUND(Options!$B$21*HLOOKUP(Calculations!$E$2,Pop2016fraction!$C$3:$BC$251,Pop2016fraction!$BD178,FALSE),0)","v":5719},{"$f":"ROUND(Options!$B$21*HLOOKUP(Calculations!$E$2,Pop2016fractionQ1!$C$3:$BC$251,Pop2016fractionQ1!$BD178,FALSE),0)","v":0},{"$f":"ROUND(Options!$B$21*HLOOKUP(Calculations!$E$2,'Pop2016fractionQ1&2'!$C$3:$BC$251,'Pop2016fractionQ1&2'!$BD178,FALSE),0)","v":0},{"$f":"ROUND(Options!$B$21*HLOOKUP(Calculations!$E$2,PARfraction!$C$3:$BC$251,PARfraction!$BD178,FALSE),0)","v":3039},176]
[null,"Female 25-29",{"$f":"ROUND(Options!$B$21*HLOOKUP(Calculations!$E$2,Pop2016fraction!$C$3:$BC$251,Pop2016fraction!$BD179,FALSE),0)","v":5489},{"$f":"ROUND(Options!$B$21*HLOOKUP(Calculations!$E$2,Pop2016fractionQ1!$C$3:$BC$251,Pop2016fractionQ1!$BD179,FALSE),0)","v":0},{"$f":"ROUND(Options!$B$21*HLOOKUP(Calculations!$E$2,'Pop2016fractionQ1&2'!$C$3:$BC$251,'Pop2016fractionQ1&2'!$BD179,FALSE),0)","v":0},{"$f":"ROUND(Options!$B$21*HLOOKUP(Calculations!$E$2,PARfraction!$C$3:$BC$251,PARfraction!$BD179,FALSE),0)","v":2554},177]
[null,"Female 30-34",{"$f":"ROUND(Options!$B$21*HLOOKUP(Calculations!$E$2,Pop2016fraction!$C$3:$BC$251,Pop2016fraction!$BD180,FALSE),0)","v":5556},{"$f":"ROUND(Options!$B$21*HLOOKUP(Calculations!$E$2,Pop2016fractionQ1!$C$3:$BC$251,Pop2016fractionQ1!$BD180,FALSE),0)","v":0},{"$f":"ROUND(Options!$B$21*HLOOKUP(Calculations!$E$2,'Pop2016fractionQ1&2'!$C$3:$BC$251,'Pop2016fractionQ1&2'!$BD180,FALSE),0)","v":0},{"$f":"ROUND(Options!$B$21*HLOOKUP(Calculations!$E$2,PARfraction!$C$3:$BC$251,PARfraction!$BD180,FALSE),0)","v":2585},178]
[null,"Female 35-39",{"$f":"ROUND(Options!$B$21*HLOOKUP(Calculations!$E$2,Pop2016fraction!$C$3:$BC$251,Pop2016fraction!$BD181,FALSE),0)","v":5385},{"$f":"ROUND(Options!$B$21*HLOOKUP(Calculations!$E$2,Pop2016fractionQ1!$C$3:$BC$251,Pop2016fractionQ1!$BD181,FALSE),0)","v":0},{"$f":"ROUND(Options!$B$21*HLOOKUP(Calculations!$E$2,'Pop2016fractionQ1&2'!$C$3:$BC$251,'Pop2016fractionQ1&2'!$BD181,FALSE),0)","v":0},{"$f":"ROUND(Options!$B$21*HLOOKUP(Calculations!$E$2,PARfraction!$C$3:$BC$251,PARfraction!$BD181,FALSE),0)","v":3262},179]
[null,"Female 40-44",{"$f":"ROUND(Options!$B$21*HLOOKUP(Calculations!$E$2,Pop2016fraction!$C$3:$BC$251,Pop2016fraction!$BD182,FALSE),0)","v":5879},{"$f":"ROUND(Options!$B$21*HLOOKUP(Calculations!$E$2,Pop2016fractionQ1!$C$3:$BC$251,Pop2016fractionQ1!$BD182,FALSE),0)","v":0},{"$f":"ROUND(Options!$B$21*HLOOKUP(Calculations!$E$2,'Pop2016fractionQ1&2'!$C$3:$BC$251,'Pop2016fractionQ1&2'!$BD182,FALSE),0)","v":0},{"$f":"ROUND(Options!$B$21*HLOOKUP(Calculations!$E$2,PARfraction!$C$3:$BC$251,PARfraction!$BD182,FALSE),0)","v":3560},180]
[null,"Female 45-49",{"$f":"ROUND(Options!$B$21*HLOOKUP(Calculations!$E$2,Pop2016fraction!$C$3:$BC$251,Pop2016fraction!$BD183,FALSE),0)","v":6927},{"$f":"ROUND(Options!$B$21*HLOOKUP(Calculations!$E$2,Pop2016fractionQ1!$C$3:$BC$251,Pop2016fractionQ1!$BD183,FALSE),0)","v":0},{"$f":"ROUND(Options!$B$21*HLOOKUP(Calculations!$E$2,'Pop2016fractionQ1&2'!$C$3:$BC$251,'Pop2016fractionQ1&2'!$BD183,FALSE),0)","v":0},{"$f":"ROUND(Options!$B$21*HLOOKUP(Calculations!$E$2,PARfraction!$C$3:$BC$251,PARfraction!$BD183,FALSE),0)","v":4405},181]
[null,"Female 50-54",{"$f":"ROUND(Options!$B$21*HLOOKUP(Calculations!$E$2,Pop2016fraction!$C$3:$BC$251,Pop2016fraction!$BD184,FALSE),0)","v":7237},{"$f":"ROUND(Options!$B$21*HLOOKUP(Calculations!$E$2,Pop2016fractionQ1!$C$3:$BC$251,Pop2016fractionQ1!$BD184,FALSE),0)","v":0},{"$f":"ROUND(Options!$B$21*HLOOKUP(Calculations!$E$2,'Pop2016fractionQ1&2'!$C$3:$BC$251,'Pop2016fractionQ1&2'!$BD184,FALSE),0)","v":0},{"$f":"ROUND(Options!$B$21*HLOOKUP(Calculations!$E$2,PARfraction!$C$3:$BC$251,PARfraction!$BD184,FALSE),0)","v":4602},182]
[null,"Female 55-59",{"$f":"ROUND(Options!$B$21*HLOOKUP(Calculations!$E$2,Pop2016fraction!$C$3:$BC$251,Pop2016fraction!$BD185,FALSE),0)","v":6537},{"$f":"ROUND(Options!$B$21*HLOOKUP(Calculations!$E$2,Pop2016fractionQ1!$C$3:$BC$251,Pop2016fractionQ1!$BD185,FALSE),0)","v":0},{"$f":"ROUND(Options!$B$21*HLOOKUP(Calculations!$E$2,'Pop2016fractionQ1&2'!$C$3:$BC$251,'Pop2016fractionQ1&2'!$BD185,FALSE),0)","v":0},{"$f":"ROUND(Options!$B$21*HLOOKUP(Calculations!$E$2,PARfraction!$C$3:$BC$251,PARfraction!$BD185,FALSE),0)","v":6335},183]
[null,"Female 60-64",{"$f":"ROUND(Options!$B$21*HLOOKUP(Calculations!$E$2,Pop2016fraction!$C$3:$BC$251,Pop2016fraction!$BD186,FALSE),0)","v":5757},{"$f":"ROUND(Options!$B$21*HLOOKUP(Calculations!$E$2,Pop2016fractionQ1!$C$3:$BC$251,Pop2016fractionQ1!$BD186,FALSE),0)","v":0},{"$f":"ROUND(Options!$B$21*HLOOKUP(Calculations!$E$2,'Pop2016fractionQ1&2'!$C$3:$BC$251,'Pop2016fractionQ1&2'!$BD186,FALSE),0)","v":0},{"$f":"ROUND(Options!$B$21*HLOOKUP(Calculations!$E$2,PARfraction!$C$3:$BC$251,PARfraction!$BD186,FALSE),0)","v":5578},184]
[null,"Female 65-69",{"$f":"ROUND(Options!$B$21*HLOOKUP(Calculations!$E$2,Pop2016fraction!$C$3:$BC$251,Pop2016fraction!$BD187,FALSE),0)","v":5728},{"$f":"ROUND(Options!$B$21*HLOOKUP(Calculations!$E$2,Pop2016fractionQ1!$C$3:$BC$251,Pop2016fractionQ1!$BD187,FALSE),0)","v":0},{"$f":"ROUND(Options!$B$21*HLOOKUP(Calculations!$E$2,'Pop2016fractionQ1&2'!$C$3:$BC$251,'Pop2016fractionQ1&2'!$BD187,FALSE),0)","v":0},{"$f":"ROUND(Options!$B$21*HLOOKUP(Calculations!$E$2,PARfraction!$C$3:$BC$251,PARfraction!$BD187,FALSE),0)","v":5456},185]
[null,"Female 70-74",{"$f":"ROUND(Options!$B$21*HLOOKUP(Calculations!$E$2,Pop2016fraction!$C$3:$BC$251,Pop2016fraction!$BD188,FALSE),0)","v":4321},{"$f":"ROUND(Options!$B$21*HLOOKUP(Calculations!$E$2,Pop2016fractionQ1!$C$3:$BC$251,Pop2016fractionQ1!$BD188,FALSE),0)","v":0},{"$f":"ROUND(Options!$B$21*HLOOKUP(Calculations!$E$2,'Pop2016fractionQ1&2'!$C$3:$BC$251,'Pop2016fractionQ1&2'!$BD188,FALSE),0)","v":0},{"$f":"ROUND(Options!$B$21*HLOOKUP(Calculations!$E$2,PARfraction!$C$3:$BC$251,PARfraction!$BD188,FALSE),0)","v":4116},186]
[null,"Female 75-79",{"$f":"ROUND(Options!$B$21*HLOOKUP(Calculations!$E$2,Pop2016fraction!$C$3:$BC$251,Pop2016fraction!$BD189,FALSE),0)","v":3400},{"$f":"ROUND(Options!$B$21*HLOOKUP(Calculations!$E$2,Pop2016fractionQ1!$C$3:$BC$251,Pop2016fractionQ1!$BD189,FALSE),0)","v":0},{"$f":"ROUND(Options!$B$21*HLOOKUP(Calculations!$E$2,'Pop2016fractionQ1&2'!$C$3:$BC$251,'Pop2016fractionQ1&2'!$BD189,FALSE),0)","v":0},{"$f":"ROUND(Options!$B$21*HLOOKUP(Calculations!$E$2,PARfraction!$C$3:$BC$251,PARfraction!$BD189,FALSE),0)","v":5242},187]
[null,"Female 80-84",{"$f":"ROUND(Options!$B$21*HLOOKUP(Calculations!$E$2,Pop2016fraction!$C$3:$BC$251,Pop2016fraction!$BD190,FALSE),0)","v":2567},{"$f":"ROUND(Options!$B$21*HLOOKUP(Calculations!$E$2,Pop2016fractionQ1!$C$3:$BC$251,Pop2016fractionQ1!$BD190,FALSE),0)","v":0},{"$f":"ROUND(Options!$B$21*HLOOKUP(Calculations!$E$2,'Pop2016fractionQ1&2'!$C$3:$BC$251,'Pop2016fractionQ1&2'!$BD190,FALSE),0)","v":0},{"$f":"ROUND(Options!$B$21*HLOOKUP(Calculations!$E$2,PARfraction!$C$3:$BC$251,PARfraction!$BD190,FALSE),0)","v":3957},188]
[null,"Female 85-89",{"$f":"ROUND(Options!$B$21*HLOOKUP(Calculations!$E$2,Pop2016fraction!$C$3:$BC$251,Pop2016fraction!$BD191,FALSE),0)","v":1640},{"$f":"ROUND(Options!$B$21*HLOOKUP(Calculations!$E$2,Pop2016fractionQ1!$C$3:$BC$251,Pop2016fractionQ1!$BD191,FALSE),0)","v":0},{"$f":"ROUND(Options!$B$21*HLOOKUP(Calculations!$E$2,'Pop2016fractionQ1&2'!$C$3:$BC$251,'Pop2016fractionQ1&2'!$BD191,FALSE),0)","v":0},{"$f":"ROUND(Options!$B$21*HLOOKUP(Calculations!$E$2,PARfraction!$C$3:$BC$251,PARfraction!$BD191,FALSE),0)","v":2528},189]
[null,"Female 90+",{"$f":"ROUND(Options!$B$21*HLOOKUP(Calculations!$E$2,Pop2016fraction!$C$3:$BC$251,Pop2016fraction!$BD192,FALSE),0)","v":985},{"$f":"ROUND(Options!$B$21*HLOOKUP(Calculations!$E$2,Pop2016fractionQ1!$C$3:$BC$251,Pop2016fractionQ1!$BD192,FALSE),0)","v":0},{"$f":"ROUND(Options!$B$21*HLOOKUP(Calculations!$E$2,'Pop2016fractionQ1&2'!$C$3:$BC$251,'Pop2016fractionQ1&2'!$BD192,FALSE),0)","v":0},{"$f":"ROUND(Options!$B$21*HLOOKUP(Calculations!$E$2,PARfraction!$C$3:$BC$251,PARfraction!$BD192,FALSE),0)","v":1518},190]
[null,"Male 0-4",{"$f":"ROUND(Options!$B$21*HLOOKUP(Calculations!$E$2,Pop2016fraction!$C$3:$BC$251,Pop2016fraction!$BD193,FALSE),0)","v":0},{"$f":"ROUND(Options!$B$21*HLOOKUP(Calculations!$E$2,Pop2016fractionQ1!$C$3:$BC$251,Pop2016fractionQ1!$BD193,FALSE),0)","v":0},{"$f":"ROUND(Options!$B$21*HLOOKUP(Calculations!$E$2,'Pop2016fractionQ1&2'!$C$3:$BC$251,'Pop2016fractionQ1&2'!$BD193,FALSE),0)","v":0},{"$f":"ROUND(Options!$B$21*HLOOKUP(Calculations!$E$2,PARfraction!$C$3:$BC$251,PARfraction!$BD193,FALSE),0)","v":0},191]
[null,"Male 5-9",{"$f":"ROUND(Options!$B$21*HLOOKUP(Calculations!$E$2,Pop2016fraction!$C$3:$BC$251,Pop2016fraction!$BD194,FALSE),0)","v":0},{"$f":"ROUND(Options!$B$21*HLOOKUP(Calculations!$E$2,Pop2016fractionQ1!$C$3:$BC$251,Pop2016fractionQ1!$BD194,FALSE),0)","v":0},{"$f":"ROUND(Options!$B$21*HLOOKUP(Calculations!$E$2,'Pop2016fractionQ1&2'!$C$3:$BC$251,'Pop2016fractionQ1&2'!$BD194,FALSE),0)","v":0},{"$f":"ROUND(Options!$B$21*HLOOKUP(Calculations!$E$2,PARfraction!$C$3:$BC$251,PARfraction!$BD194,FALSE),0)","v":0},192]
[null,"Male 10-15",{"$f":"ROUND(Options!$B$21*HLOOKUP(Calculations!$E$2,Pop2016fraction!$C$3:$BC$251,Pop2016fraction!$BD195,FALSE),0)","v":0},{"$f":"ROUND(Options!$B$21*HLOOKUP(Calculations!$E$2,Pop2016fractionQ1!$C$3:$BC$251,Pop2016fractionQ1!$BD195,FALSE),0)","v":0},{"$f":"ROUND(Options!$B$21*HLOOKUP(Calculations!$E$2,'Pop2016fractionQ1&2'!$C$3:$BC$251,'Pop2016fractionQ1&2'!$BD195,FALSE),0)","v":0},{"$f":"ROUND(Options!$B$21*HLOOKUP(Calculations!$E$2,PARfraction!$C$3:$BC$251,PARfraction!$BD195,FALSE),0)","v":0},193]
[null,"Male 16-19",{"$f":"ROUND(Options!$B$21*HLOOKUP(Calculations!$E$2,Pop2016fraction!$C$3:$BC$251,Pop2016fraction!$BD196,FALSE),0)","v":4061},{"$f":"ROUND(Options!$B$21*HLOOKUP(Calculations!$E$2,Pop2016fractionQ1!$C$3:$BC$251,Pop2016fractionQ1!$BD196,FALSE),0)","v":0},{"$f":"ROUND(Options!$B$21*HLOOKUP(Calculations!$E$2,'Pop2016fractionQ1&2'!$C$3:$BC$251,'Pop2016fractionQ1&2'!$BD196,FALSE),0)","v":0},{"$f":"ROUND(Options!$B$21*HLOOKUP(Calculations!$E$2,PARfraction!$C$3:$BC$251,PARfraction!$BD196,FALSE),0)","v":3823},194]
[null,"Male 20-24",{"$f":"ROUND(Options!$B$21*HLOOKUP(Calculations!$E$2,Pop2016fraction!$C$3:$BC$251,Pop2016fraction!$BD197,FALSE),0)","v":5784},{"$f":"ROUND(Options!$B$21*HLOOKUP(Calculations!$E$2,Pop2016fractionQ1!$C$3:$BC$251,Pop2016fractionQ1!$BD197,FALSE),0)","v":0},{"$f":"ROUND(Options!$B$21*HLOOKUP(Calculations!$E$2,'Pop2016fractionQ1&2'!$C$3:$BC$251,'Pop2016fractionQ1&2'!$BD197,FALSE),0)","v":0},{"$f":"ROUND(Options!$B$21*HLOOKUP(Calculations!$E$2,PARfraction!$C$3:$BC$251,PARfraction!$BD197,FALSE),0)","v":5446},195]
[null,"Male 25-29",{"$f":"ROUND(Options!$B$21*HLOOKUP(Calculations!$E$2,Pop2016fraction!$C$3:$BC$251,Pop2016fraction!$BD198,FALSE),0)","v":5536},{"$f":"ROUND(Options!$B$21*HLOOKUP(Calculations!$E$2,Pop2016fractionQ1!$C$3:$BC$251,Pop2016fractionQ1!$BD198,FALSE),0)","v":0},{"$f":"ROUND(Options!$B$21*HLOOKUP(Calculations!$E$2,'Pop2016fractionQ1&2'!$C$3:$BC$251,'Pop2016fractionQ1&2'!$BD198,FALSE),0)","v":0},{"$f":"ROUND(Options!$B$21*HLOOKUP(Calculations!$E$2,PARfraction!$C$3:$BC$251,PARfraction!$BD198,FALSE),0)","v":3002},196]
[null,"Male 30-34",{"$f":"ROUND(Options!$B$21*HLOOKUP(Calculations!$E$2,Pop2016fraction!$C$3:$BC$251,Pop2016fraction!$BD199,FALSE),0)","v":5311},{"$f":"ROUND(Options!$B$21*HLOOKUP(Calculations!$E$2,Pop2016fractionQ1!$C$3:$BC$251,Pop2016fractionQ1!$BD199,FALSE),0)","v":0},{"$f":"ROUND(Options!$B$21*HLOOKUP(Calculations!$E$2,'Pop2016fractionQ1&2'!$C$3:$BC$251,'Pop2016fractionQ1&2'!$BD199,FALSE),0)","v":0},{"$f":"ROUND(Options!$B$21*HLOOKUP(Calculations!$E$2,PARfraction!$C$3:$BC$251,PARfraction!$BD199,FALSE),0)","v":2880},197]
[null,"Male 35-39",{"$f":"ROUND(Options!$B$21*HLOOKUP(Calculations!$E$2,Pop2016fraction!$C$3:$BC$251,Pop2016fraction!$BD200,FALSE),0)","v":5258},{"$f":"ROUND(Options!$B$21*HLOOKUP(Calculations!$E$2,Pop2016fractionQ1!$C$3:$BC$251,Pop2016fractionQ1!$BD200,FALSE),0)","v":0},{"$f":"ROUND(Options!$B$21*HLOOKUP(Calculations!$E$2,'Pop2016fractionQ1&2'!$C$3:$BC$251,'Pop2016fractionQ1&2'!$BD200,FALSE),0)","v":0},{"$f":"ROUND(Options!$B$21*HLOOKUP(Calculations!$E$2,PARfraction!$C$3:$BC$251,PARfraction!$BD200,FALSE),0)","v":3937},198]
[null,"Male 40-44",{"$f":"ROUND(Options!$B$21*HLOOKUP(Calculations!$E$2,Pop2016fraction!$C$3:$BC$251,Pop2016fraction!$BD201,FALSE),0)","v":5640},{"$f":"ROUND(Options!$B$21*HLOOKUP(Calculations!$E$2,Pop2016fractionQ1!$C$3:$BC$251,Pop2016fractionQ1!$BD201,FALSE),0)","v":0},{"$f":"ROUND(Options!$B$21*HLOOKUP(Calculations!$E$2,'Pop2016fractionQ1&2'!$C$3:$BC$251,'Pop2016fractionQ1&2'!$BD201,FALSE),0)","v":0},{"$f":"ROUND(Options!$B$21*HLOOKUP(Calculations!$E$2,PARfraction!$C$3:$BC$251,PARfraction!$BD201,FALSE),0)","v":4223},199]
[null,"Male 45-49",{"$f":"ROUND(Options!$B$21*HLOOKUP(Calculations!$E$2,Pop2016fraction!$C$3:$BC$251,Pop2016fraction!$BD202,FALSE),0)","v":6542},{"$f":"ROUND(Options!$B$21*HLOOKUP(Calculations!$E$2,Pop2016fractionQ1!$C$3:$BC$251,Pop2016fractionQ1!$BD202,FALSE),0)","v":0},{"$f":"ROUND(Options!$B$21*HLOOKUP(Calculations!$E$2,'Pop2016fractionQ1&2'!$C$3:$BC$251,'Pop2016fractionQ1&2'!$BD202,FALSE),0)","v":0},{"$f":"ROUND(Options!$B$21*HLOOKUP(Calculations!$E$2,PARfraction!$C$3:$BC$251,PARfraction!$BD202,FALSE),0)","v":5763},200]
[null,"Male 50-54",{"$f":"ROUND(Options!$B$21*HLOOKUP(Calculations!$E$2,Pop2016fraction!$C$3:$BC$251,Pop2016fraction!$BD203,FALSE),0)","v":6938},{"$f":"ROUND(Options!$B$21*HLOOKUP(Calculations!$E$2,Pop2016fractionQ1!$C$3:$BC$251,Pop2016fractionQ1!$BD203,FALSE),0)","v":0},{"$f":"ROUND(Options!$B$21*HLOOKUP(Calculations!$E$2,'Pop2016fractionQ1&2'!$C$3:$BC$251,'Pop2016fractionQ1&2'!$BD203,FALSE),0)","v":0},{"$f":"ROUND(Options!$B$21*HLOOKUP(Calculations!$E$2,PARfraction!$C$3:$BC$251,PARfraction!$BD203,FALSE),0)","v":6112},201]
[null,"Male 55-59",{"$f":"ROUND(Options!$B$21*HLOOKUP(Calculations!$E$2,Pop2016fraction!$C$3:$BC$251,Pop2016fraction!$BD204,FALSE),0)","v":6318},{"$f":"ROUND(Options!$B$21*HLOOKUP(Calculations!$E$2,Pop2016fractionQ1!$C$3:$BC$251,Pop2016fractionQ1!$BD204,FALSE),0)","v":0},{"$f":"ROUND(Options!$B$21*HLOOKUP(Calculations!$E$2,'Pop2016fractionQ1&2'!$C$3:$BC$251,'Pop2016fractionQ1&2'!$BD204,FALSE),0)","v":0},{"$f":"ROUND(Options!$B$21*HLOOKUP(Calculations!$E$2,PARfraction!$C$3:$BC$251,PARfraction!$BD204,FALSE),0)","v":7045},202]
[null,"Male 60-64",{"$f":"ROUND(Options!$B$21*HLOOKUP(Calculations!$E$2,Pop2016fraction!$C$3:$BC$251,Pop2016fraction!$BD205,FALSE),0)","v":5553},{"$f":"ROUND(Options!$B$21*HLOOKUP(Calculations!$E$2,Pop2016fractionQ1!$C$3:$BC$251,Pop2016fractionQ1!$BD205,FALSE),0)","v":0},{"$f":"ROUND(Options!$B$21*HLOOKUP(Calculations!$E$2,'Pop2016fractionQ1&2'!$C$3:$BC$251,'Pop2016fractionQ1&2'!$BD205,FALSE),0)","v":0},{"$f":"ROUND(Options!$B$21*HLOOKUP(Calculations!$E$2,PARfraction!$C$3:$BC$251,PARfraction!$BD205,FALSE),0)","v":6191},203]
[null,"Male 65-69",{"$f":"ROUND(Options!$B$21*HLOOKUP(Calculations!$E$2,Pop2016fraction!$C$3:$BC$251,Pop2016fraction!$BD206,FALSE),0)","v":5437},{"$f":"ROUND(Options!$B$21*HLOOKUP(Calculations!$E$2,Pop2016fractionQ1!$C$3:$BC$251,Pop2016fractionQ1!$BD206,FALSE),0)","v":0},{"$f":"ROUND(Options!$B$21*HLOOKUP(Calculations!$E$2,'Pop2016fractionQ1&2'!$C$3:$BC$251,'Pop2016fractionQ1&2'!$BD206,FALSE),0)","v":0},{"$f":"ROUND(Options!$B$21*HLOOKUP(Calculations!$E$2,PARfraction!$C$3:$BC$251,PARfraction!$BD206,FALSE),0)","v":6960},204]
[null,"Male 70-74",{"$f":"ROUND(Options!$B$21*HLOOKUP(Calculations!$E$2,Pop2016fraction!$C$3:$BC$251,Pop2016fraction!$BD207,FALSE),0)","v":4000},{"$f":"ROUND(Options!$B$21*HLOOKUP(Calculations!$E$2,Pop2016fractionQ1!$C$3:$BC$251,Pop2016fractionQ1!$BD207,FALSE),0)","v":0},{"$f":"ROUND(Options!$B$21*HLOOKUP(Calculations!$E$2,'Pop2016fractionQ1&2'!$C$3:$BC$251,'Pop2016fractionQ1&2'!$BD207,FALSE),0)","v":0},{"$f":"ROUND(Options!$B$21*HLOOKUP(Calculations!$E$2,PARfraction!$C$3:$BC$251,PARfraction!$BD207,FALSE),0)","v":5120},205]
[null,"Male 75-79",{"$f":"ROUND(Options!$B$21*HLOOKUP(Calculations!$E$2,Pop2016fraction!$C$3:$BC$251,Pop2016fraction!$BD208,FALSE),0)","v":2838},{"$f":"ROUND(Options!$B$21*HLOOKUP(Calculations!$E$2,Pop2016fractionQ1!$C$3:$BC$251,Pop2016fractionQ1!$BD208,FALSE),0)","v":0},{"$f":"ROUND(Options!$B$21*HLOOKUP(Calculations!$E$2,'Pop2016fractionQ1&2'!$C$3:$BC$251,'Pop2016fractionQ1&2'!$BD208,FALSE),0)","v":0},{"$f":"ROUND(Options!$B$21*HLOOKUP(Calculations!$E$2,PARfraction!$C$3:$BC$251,PARfraction!$BD208,FALSE),0)","v":5555},206]
[null,"Male 80-84",{"$f":"ROUND(Options!$B$21*HLOOKUP(Calculations!$E$2,Pop2016fraction!$C$3:$BC$251,Pop2016fraction!$BD209,FALSE),0)","v":1923},{"$f":"ROUND(Options!$B$21*HLOOKUP(Calculations!$E$2,Pop2016fractionQ1!$C$3:$BC$251,Pop2016fractionQ1!$BD209,FALSE),0)","v":0},{"$f":"ROUND(Options!$B$21*HLOOKUP(Calculations!$E$2,'Pop2016fractionQ1&2'!$C$3:$BC$251,'Pop2016fractionQ1&2'!$BD209,FALSE),0)","v":0},{"$f":"ROUND(Options!$B$21*HLOOKUP(Calculations!$E$2,PARfraction!$C$3:$BC$251,PARfraction!$BD209,FALSE),0)","v":3764},207]
[null,"Male 85-89",{"$f":"ROUND(Options!$B$21*HLOOKUP(Calculations!$E$2,Pop2016fraction!$C$3:$BC$251,Pop2016fraction!$BD210,FALSE),0)","v":1015},{"$f":"ROUND(Options!$B$21*HLOOKUP(Calculations!$E$2,Pop2016fractionQ1!$C$3:$BC$251,Pop2016fractionQ1!$BD210,FALSE),0)","v":0},{"$f":"ROUND(Options!$B$21*HLOOKUP(Calculations!$E$2,'Pop2016fractionQ1&2'!$C$3:$BC$251,'Pop2016fractionQ1&2'!$BD210,FALSE),0)","v":0},{"$f":"ROUND(Options!$B$21*HLOOKUP(Calculations!$E$2,PARfraction!$C$3:$BC$251,PARfraction!$BD210,FALSE),0)","v":1987},208]
[null,"Male 90+",{"$f":"ROUND(Options!$B$21*HLOOKUP(Calculations!$E$2,Pop2016fraction!$C$3:$BC$251,Pop2016fraction!$BD211,FALSE),0)","v":418},{"$f":"ROUND(Options!$B$21*HLOOKUP(Calculations!$E$2,Pop2016fractionQ1!$C$3:$BC$251,Pop2016fractionQ1!$BD211,FALSE),0)","v":0},{"$f":"ROUND(Options!$B$21*HLOOKUP(Calculations!$E$2,'Pop2016fractionQ1&2'!$C$3:$BC$251,'Pop2016fractionQ1&2'!$BD211,FALSE),0)","v":0},{"$f":"ROUND(Options!$B$21*HLOOKUP(Calculations!$E$2,PARfraction!$C$3:$BC$251,PARfraction!$BD211,FALSE),0)","v":818},209]
["SIMD Q5 (least deprived)","Female 0-4",{"$f":"ROUND(Options!$B$21*HLOOKUP(Calculations!$E$2,Pop2016fraction!$C$3:$BC$251,Pop2016fraction!$BD212,FALSE),0)","v":0},{"$f":"ROUND(Options!$B$21*HLOOKUP(Calculations!$E$2,Pop2016fractionQ1!$C$3:$BC$251,Pop2016fractionQ1!$BD212,FALSE),0)","v":0},{"$f":"ROUND(Options!$B$21*HLOOKUP(Calculations!$E$2,'Pop2016fractionQ1&2'!$C$3:$BC$251,'Pop2016fractionQ1&2'!$BD212,FALSE),0)","v":0},{"$f":"ROUND(Options!$B$21*HLOOKUP(Calculations!$E$2,PARfraction!$C$3:$BC$251,PARfraction!$BD212,FALSE),0)","v":0},210]
[null,"Female 5-9",{"$f":"ROUND(Options!$B$21*HLOOKUP(Calculations!$E$2,Pop2016fraction!$C$3:$BC$251,Pop2016fraction!$BD213,FALSE),0)","v":0},{"$f":"ROUND(Options!$B$21*HLOOKUP(Calculations!$E$2,Pop2016fractionQ1!$C$3:$BC$251,Pop2016fractionQ1!$BD213,FALSE),0)","v":0},{"$f":"ROUND(Options!$B$21*HLOOKUP(Calculations!$E$2,'Pop2016fractionQ1&2'!$C$3:$BC$251,'Pop2016fractionQ1&2'!$BD213,FALSE),0)","v":0},{"$f":"ROUND(Options!$B$21*HLOOKUP(Calculations!$E$2,PARfraction!$C$3:$BC$251,PARfraction!$BD213,FALSE),0)","v":0},211]
[null,"Female 10-15",{"$f":"ROUND(Options!$B$21*HLOOKUP(Calculations!$E$2,Pop2016fraction!$C$3:$BC$251,Pop2016fraction!$BD214,FALSE),0)","v":0},{"$f":"ROUND(Options!$B$21*HLOOKUP(Calculations!$E$2,Pop2016fractionQ1!$C$3:$BC$251,Pop2016fractionQ1!$BD214,FALSE),0)","v":0},{"$f":"ROUND(Options!$B$21*HLOOKUP(Calculations!$E$2,'Pop2016fractionQ1&2'!$C$3:$BC$251,'Pop2016fractionQ1&2'!$BD214,FALSE),0)","v":0},{"$f":"ROUND(Options!$B$21*HLOOKUP(Calculations!$E$2,PARfraction!$C$3:$BC$251,PARfraction!$BD214,FALSE),0)","v":0},212]
[null,"Female 16-19",{"$f":"ROUND(Options!$B$21*HLOOKUP(Calculations!$E$2,Pop2016fraction!$C$3:$BC$251,Pop2016fraction!$BD215,FALSE),0)","v":4149},{"$f":"ROUND(Options!$B$21*HLOOKUP(Calculations!$E$2,Pop2016fractionQ1!$C$3:$BC$251,Pop2016fractionQ1!$BD215,FALSE),0)","v":0},{"$f":"ROUND(Options!$B$21*HLOOKUP(Calculations!$E$2,'Pop2016fractionQ1&2'!$C$3:$BC$251,'Pop2016fractionQ1&2'!$BD215,FALSE),0)","v":0},{"$f":"ROUND(Options!$B$21*HLOOKUP(Calculations!$E$2,PARfraction!$C$3:$BC$251,PARfraction!$BD215,FALSE),0)","v":1667},213]
[null,"Female 20-24",{"$f":"ROUND(Options!$B$21*HLOOKUP(Calculations!$E$2,Pop2016fraction!$C$3:$BC$251,Pop2016fraction!$BD216,FALSE),0)","v":6241},{"$f":"ROUND(Options!$B$21*HLOOKUP(Calculations!$E$2,Pop2016fractionQ1!$C$3:$BC$251,Pop2016fractionQ1!$BD216,FALSE),0)","v":0},{"$f":"ROUND(Options!$B$21*HLOOKUP(Calculations!$E$2,'Pop2016fractionQ1&2'!$C$3:$BC$251,'Pop2016fractionQ1&2'!$BD216,FALSE),0)","v":0},{"$f":"ROUND(Options!$B$21*HLOOKUP(Calculations!$E$2,PARfraction!$C$3:$BC$251,PARfraction!$BD216,FALSE),0)","v":2509},214]
[null,"Female 25-29",{"$f":"ROUND(Options!$B$21*HLOOKUP(Calculations!$E$2,Pop2016fraction!$C$3:$BC$251,Pop2016fraction!$BD217,FALSE),0)","v":5315},{"$f":"ROUND(Options!$B$21*HLOOKUP(Calculations!$E$2,Pop2016fractionQ1!$C$3:$BC$251,Pop2016fractionQ1!$BD217,FALSE),0)","v":0},{"$f":"ROUND(Options!$B$21*HLOOKUP(Calculations!$E$2,'Pop2016fractionQ1&2'!$C$3:$BC$251,'Pop2016fractionQ1&2'!$BD217,FALSE),0)","v":0},{"$f":"ROUND(Options!$B$21*HLOOKUP(Calculations!$E$2,PARfraction!$C$3:$BC$251,PARfraction!$BD217,FALSE),0)","v":2663},215]
[null,"Female 30-34",{"$f":"ROUND(Options!$B$21*HLOOKUP(Calculations!$E$2,Pop2016fraction!$C$3:$BC$251,Pop2016fraction!$BD218,FALSE),0)","v":5194},{"$f":"ROUND(Options!$B$21*HLOOKUP(Calculations!$E$2,Pop2016fractionQ1!$C$3:$BC$251,Pop2016fractionQ1!$BD218,FALSE),0)","v":0},{"$f":"ROUND(Options!$B$21*HLOOKUP(Calculations!$E$2,'Pop2016fractionQ1&2'!$C$3:$BC$251,'Pop2016fractionQ1&2'!$BD218,FALSE),0)","v":0},{"$f":"ROUND(Options!$B$21*HLOOKUP(Calculations!$E$2,PARfraction!$C$3:$BC$251,PARfraction!$BD218,FALSE),0)","v":2602},216]
[null,"Female 35-39",{"$f":"ROUND(Options!$B$21*HLOOKUP(Calculations!$E$2,Pop2016fraction!$C$3:$BC$251,Pop2016fraction!$BD219,FALSE),0)","v":5529},{"$f":"ROUND(Options!$B$21*HLOOKUP(Calculations!$E$2,Pop2016fractionQ1!$C$3:$BC$251,Pop2016fractionQ1!$BD219,FALSE),0)","v":0},{"$f":"ROUND(Options!$B$21*HLOOKUP(Calculations!$E$2,'Pop2016fractionQ1&2'!$C$3:$BC$251,'Pop2016fractionQ1&2'!$BD219,FALSE),0)","v":0},{"$f":"ROUND(Options!$B$21*HLOOKUP(Calculations!$E$2,PARfraction!$C$3:$BC$251,PARfraction!$BD219,FALSE),0)","v":2222},217]
[null,"Female 40-44",{"$f":"ROUND(Options!$B$21*HLOOKUP(Calculations!$E$2,Pop2016fraction!$C$3:$BC$251,Pop2016fraction!$BD220,FALSE),0)","v":5994},{"$f":"ROUND(Options!$B$21*HLOOKUP(Calculations!$E$2,Pop2016fractionQ1!$C$3:$BC$251,Pop2016fractionQ1!$BD220,FALSE),0)","v":0},{"$f":"ROUND(Options!$B$21*HLOOKUP(Calculations!$E$2,'Pop2016fractionQ1&2'!$C$3:$BC$251,'Pop2016fractionQ1&2'!$BD220,FALSE),0)","v":0},{"$f":"ROUND(Options!$B$21*HLOOKUP(Calculations!$E$2,PARfraction!$C$3:$BC$251,PARfraction!$BD220,FALSE),0)","v":2409},218]
[null,"Female 45-49",{"$f":"ROUND(Options!$B$21*HLOOKUP(Calculations!$E$2,Pop2016fraction!$C$3:$BC$251,Pop2016fraction!$BD221,FALSE),0)","v":6861},{"$f":"ROUND(Options!$B$21*HLOOKUP(Calculations!$E$2,Pop2016fractionQ1!$C$3:$BC$251,Pop2016fractionQ1!$BD221,FALSE),0)","v":0},{"$f":"ROUND(Options!$B$21*HLOOKUP(Calculations!$E$2,'Pop2016fractionQ1&2'!$C$3:$BC$251,'Pop2016fractionQ1&2'!$BD221,FALSE),0)","v":0},{"$f":"ROUND(Options!$B$21*HLOOKUP(Calculations!$E$2,PARfraction!$C$3:$BC$251,PARfraction!$BD221,FALSE),0)","v":4268},219]
[null,"Female 50-54",{"$f":"ROUND(Options!$B$21*HLOOKUP(Calculations!$E$2,Pop2016fraction!$C$3:$BC$251,Pop2016fraction!$BD222,FALSE),0)","v":6966},{"$f":"ROUND(Options!$B$21*HLOOKUP(Calculations!$E$2,Pop2016fractionQ1!$C$3:$BC$251,Pop2016fractionQ1!$BD222,FALSE),0)","v":0},{"$f":"ROUND(Options!$B$21*HLOOKUP(Calculations!$E$2,'Pop2016fractionQ1&2'!$C$3:$BC$251,'Pop2016fractionQ1&2'!$BD222,FALSE),0)","v":0},{"$f":"ROUND(Options!$B$21*HLOOKUP(Calculations!$E$2,PARfraction!$C$3:$BC$251,PARfraction!$BD222,FALSE),0)","v":4334},220]
[null,"Female 55-59",{"$f":"ROUND(Options!$B$21*HLOOKUP(Calculations!$E$2,Pop2016fraction!$C$3:$BC$251,Pop2016fraction!$BD223,FALSE),0)","v":6291},{"$f":"ROUND(Options!$B$21*HLOOKUP(Calculations!$E$2,Pop2016fractionQ1!$C$3:$BC$251,Pop2016fractionQ1!$BD223,FALSE),0)","v":0},{"$f":"ROUND(Options!$B$21*HLOOKUP(Calculations!$E$2,'Pop2016fractionQ1&2'!$C$3:$BC$251,'Pop2016fractionQ1&2'!$BD223,FALSE),0)","v":0},{"$f":"ROUND(Options!$B$21*HLOOKUP(Calculations!$E$2,PARfraction!$C$3:$BC$251,PARfraction!$BD223,FALSE),0)","v":5161},221]
[null,"Female 60-64",{"$f":"ROUND(Options!$B$21*HLOOKUP(Calculations!$E$2,Pop2016fraction!$C$3:$BC$251,Pop2016fraction!$BD224,FALSE),0)","v":5524},{"$f":"ROUND(Options!$B$21*HLOOKUP(Calculations!$E$2,Pop2016fractionQ1!$C$3:$BC$251,Pop2016fractionQ1!$BD224,FALSE),0)","v":0},{"$f":"ROUND(Options!$B$21*HLOOKUP(Calculations!$E$2,'Pop2016fractionQ1&2'!$C$3:$BC$251,'Pop2016fractionQ1&2'!$BD224,FALSE),0)","v":0},{"$f":"ROUND(Options!$B$21*HLOOKUP(Calculations!$E$2,PARfraction!$C$3:$BC$251,PARfraction!$BD224,FALSE),0)","v":4532},222]
[null,"Female 65-69",{"$f":"ROUND(Options!$B$21*HLOOKUP(Calculations!$E$2,Pop2016fraction!$C$3:$BC$251,Pop2016fraction!$BD225,FALSE),0)","v":5544},{"$f":"ROUND(Options!$B$21*HLOOKUP(Calculations!$E$2,Pop2016fractionQ1!$C$3:$BC$251,Pop2016fractionQ1!$BD225,FALSE),0)","v":0},{"$f":"ROUND(Options!$B$21*HLOOKUP(Calculations!$E$2,'Pop2016fractionQ1&2'!$C$3:$BC$251,'Pop2016fractionQ1&2'!$BD225,FALSE),0)","v":0},{"$f":"ROUND(Options!$B$21*HLOOKUP(Calculations!$E$2,PARfraction!$C$3:$BC$251,PARfraction!$BD225,FALSE),0)","v":4380},223]
[null,"Female 70-74",{"$f":"ROUND(Options!$B$21*HLOOKUP(Calculations!$E$2,Pop2016fraction!$C$3:$BC$251,Pop2016fraction!$BD226,FALSE),0)","v":4223},{"$f":"ROUND(Options!$B$21*HLOOKUP(Calculations!$E$2,Pop2016fractionQ1!$C$3:$BC$251,Pop2016fractionQ1!$BD226,FALSE),0)","v":0},{"$f":"ROUND(Options!$B$21*HLOOKUP(Calculations!$E$2,'Pop2016fractionQ1&2'!$C$3:$BC$251,'Pop2016fractionQ1&2'!$BD226,FALSE),0)","v":0},{"$f":"ROUND(Options!$B$21*HLOOKUP(Calculations!$E$2,PARfraction!$C$3:$BC$251,PARfraction!$BD226,FALSE),0)","v":3337},224]
[null,"Female 75-79",{"$f":"ROUND(Options!$B$21*HLOOKUP(Calculations!$E$2,Pop2016fraction!$C$3:$BC$251,Pop2016fraction!$BD227,FALSE),0)","v":3331},{"$f":"ROUND(Options!$B$21*HLOOKUP(Calculations!$E$2,Pop2016fractionQ1!$C$3:$BC$251,Pop2016fractionQ1!$BD227,FALSE),0)","v":0},{"$f":"ROUND(Options!$B$21*HLOOKUP(Calculations!$E$2,'Pop2016fractionQ1&2'!$C$3:$BC$251,'Pop2016fractionQ1&2'!$BD227,FALSE),0)","v":0},{"$f":"ROUND(Options!$B$21*HLOOKUP(Calculations!$E$2,PARfraction!$C$3:$BC$251,PARfraction!$BD227,FALSE),0)","v":4907},225]
[null,"Female 80-84",{"$f":"ROUND(Options!$B$21*HLOOKUP(Calculations!$E$2,Pop2016fraction!$C$3:$BC$251,Pop2016fraction!$BD228,FALSE),0)","v":2568},{"$f":"ROUND(Options!$B$21*HLOOKUP(Calculations!$E$2,Pop2016fractionQ1!$C$3:$BC$251,Pop2016fractionQ1!$BD228,FALSE),0)","v":0},{"$f":"ROUND(Options!$B$21*HLOOKUP(Calculations!$E$2,'Pop2016fractionQ1&2'!$C$3:$BC$251,'Pop2016fractionQ1&2'!$BD228,FALSE),0)","v":0},{"$f":"ROUND(Options!$B$21*HLOOKUP(Calculations!$E$2,PARfraction!$C$3:$BC$251,PARfraction!$BD228,FALSE),0)","v":3782},226]
[null,"Female 85-89",{"$f":"ROUND(Options!$B$21*HLOOKUP(Calculations!$E$2,Pop2016fraction!$C$3:$BC$251,Pop2016fraction!$BD229,FALSE),0)","v":1636},{"$f":"ROUND(Options!$B$21*HLOOKUP(Calculations!$E$2,Pop2016fractionQ1!$C$3:$BC$251,Pop2016fractionQ1!$BD229,FALSE),0)","v":0},{"$f":"ROUND(Options!$B$21*HLOOKUP(Calculations!$E$2,'Pop2016fractionQ1&2'!$C$3:$BC$251,'Pop2016fractionQ1&2'!$BD229,FALSE),0)","v":0},{"$f":"ROUND(Options!$B$21*HLOOKUP(Calculations!$E$2,PARfraction!$C$3:$BC$251,PARfraction!$BD229,FALSE),0)","v":2409},227]
[null,"Female 90+",{"$f":"ROUND(Options!$B$21*HLOOKUP(Calculations!$E$2,Pop2016fraction!$C$3:$BC$251,Pop2016fraction!$BD230,FALSE),0)","v":994},{"$f":"ROUND(Options!$B$21*HLOOKUP(Calculations!$E$2,Pop2016fractionQ1!$C$3:$BC$251,Pop2016fractionQ1!$BD230,FALSE),0)","v":0},{"$f":"ROUND(Options!$B$21*HLOOKUP(Calculations!$E$2,'Pop2016fractionQ1&2'!$C$3:$BC$251,'Pop2016fractionQ1&2'!$BD230,FALSE),0)","v":0},{"$f":"ROUND(Options!$B$21*HLOOKUP(Calculations!$E$2,PARfraction!$C$3:$BC$251,PARfraction!$BD230,FALSE),0)","v":1465},228]
[null,"Male 0-4",{"$f":"ROUND(Options!$B$21*HLOOKUP(Calculations!$E$2,Pop2016fraction!$C$3:$BC$251,Pop2016fraction!$BD231,FALSE),0)","v":0},{"$f":"ROUND(Options!$B$21*HLOOKUP(Calculations!$E$2,Pop2016fractionQ1!$C$3:$BC$251,Pop2016fractionQ1!$BD231,FALSE),0)","v":0},{"$f":"ROUND(Options!$B$21*HLOOKUP(Calculations!$E$2,'Pop2016fractionQ1&2'!$C$3:$BC$251,'Pop2016fractionQ1&2'!$BD231,FALSE),0)","v":0},{"$f":"ROUND(Options!$B$21*HLOOKUP(Calculations!$E$2,PARfraction!$C$3:$BC$251,PARfraction!$BD231,FALSE),0)","v":0},229]
[null,"Male 5-9",{"$f":"ROUND(Options!$B$21*HLOOKUP(Calculations!$E$2,Pop2016fraction!$C$3:$BC$251,Pop2016fraction!$BD232,FALSE),0)","v":0},{"$f":"ROUND(Options!$B$21*HLOOKUP(Calculations!$E$2,Pop2016fractionQ1!$C$3:$BC$251,Pop2016fractionQ1!$BD232,FALSE),0)","v":0},{"$f":"ROUND(Options!$B$21*HLOOKUP(Calculations!$E$2,'Pop2016fractionQ1&2'!$C$3:$BC$251,'Pop2016fractionQ1&2'!$BD232,FALSE),0)","v":0},{"$f":"ROUND(Options!$B$21*HLOOKUP(Calculations!$E$2,PARfraction!$C$3:$BC$251,PARfraction!$BD232,FALSE),0)","v":0},230]
[null,"Male 10-15",{"$f":"ROUND(Options!$B$21*HLOOKUP(Calculations!$E$2,Pop2016fraction!$C$3:$BC$251,Pop2016fraction!$BD233,FALSE),0)","v":0},{"$f":"ROUND(Options!$B$21*HLOOKUP(Calculations!$E$2,Pop2016fractionQ1!$C$3:$BC$251,Pop2016fractionQ1!$BD233,FALSE),0)","v":0},{"$f":"ROUND(Options!$B$21*HLOOKUP(Calculations!$E$2,'Pop2016fractionQ1&2'!$C$3:$BC$251,'Pop2016fractionQ1&2'!$BD233,FALSE),0)","v":0},{"$f":"ROUND(Options!$B$21*HLOOKUP(Calculations!$E$2,PARfraction!$C$3:$BC$251,PARfraction!$BD233,FALSE),0)","v":0},231]
[null,"Male 16-19",{"$f":"ROUND(Options!$B$21*HLOOKUP(Calculations!$E$2,Pop2016fraction!$C$3:$BC$251,Pop2016fraction!$BD234,FALSE),0)","v":4418},{"$f":"ROUND(Options!$B$21*HLOOKUP(Calculations!$E$2,Pop2016fractionQ1!$C$3:$BC$251,Pop2016fractionQ1!$BD234,FALSE),0)","v":0},{"$f":"ROUND(Options!$B$21*HLOOKUP(Calculations!$E$2,'Pop2016fractionQ1&2'!$C$3:$BC$251,'Pop2016fractionQ1&2'!$BD234,FALSE),0)","v":0},{"$f":"ROUND(Options!$B$21*HLOOKUP(Calculations!$E$2,PARfraction!$C$3:$BC$251,PARfraction!$BD234,FALSE),0)","v":2226},232]
[null,"Male 20-24",{"$f":"ROUND(Options!$B$21*HLOOKUP(Calculations!$E$2,Pop2016fraction!$C$3:$BC$251,Pop2016fraction!$BD235,FALSE),0)","v":6251},{"$f":"ROUND(Options!$B$21*HLOOKUP(Calculations!$E$2,Pop2016fractionQ1!$C$3:$BC$251,Pop2016fractionQ1!$BD235,FALSE),0)","v":0},{"$f":"ROUND(Options!$B$21*HLOOKUP(Calculations!$E$2,'Pop2016fractionQ1&2'!$C$3:$BC$251,'Pop2016fractionQ1&2'!$BD235,FALSE),0)","v":0},{"$f":"ROUND(Options!$B$21*HLOOKUP(Calculations!$E$2,PARfraction!$C$3:$BC$251,PARfraction!$BD235,FALSE),0)","v":3149},233]
[null,"Male 25-29",{"$f":"ROUND(Options!$B$21*HLOOKUP(Calculations!$E$2,Pop2016fraction!$C$3:$BC$251,Pop2016fraction!$BD236,FALSE),0)","v":5628},{"$f":"ROUND(Options!$B$21*HLOOKUP(Calculations!$E$2,Pop2016fractionQ1!$C$3:$BC$251,Pop2016fractionQ1!$BD236,FALSE),0)","v":0},{"$f":"ROUND(Options!$B$21*HLOOKUP(Calculations!$E$2,'Pop2016fractionQ1&2'!$C$3:$BC$251,'Pop2016fractionQ1&2'!$BD236,FALSE),0)","v":0},{"$f":"ROUND(Options!$B$21*HLOOKUP(Calculations!$E$2,PARfraction!$C$3:$BC$251,PARfraction!$BD236,FALSE),0)","v":2774},234]
[null,"Male 30-34",{"$f":"ROUND(Options!$B$21*HLOOKUP(Calculations!$E$2,Pop2016fraction!$C$3:$BC$251,Pop2016fraction!$BD237,FALSE),0)","v":4953},{"$f":"ROUND(Options!$B$21*HLOOKUP(Calculations!$E$2,Pop2016fractionQ1!$C$3:$BC$251,Pop2016fractionQ1!$BD237,FALSE),0)","v":0},{"$f":"ROUND(Options!$B$21*HLOOKUP(Calculations!$E$2,'Pop2016fractionQ1&2'!$C$3:$BC$251,'Pop2016fractionQ1&2'!$BD237,FALSE),0)","v":0},{"$f":"ROUND(Options!$B$21*HLOOKUP(Calculations!$E$2,PARfraction!$C$3:$BC$251,PARfraction!$BD237,FALSE),0)","v":2441},235]
[null,"Male 35-39",{"$f":"ROUND(Options!$B$21*HLOOKUP(Calculations!$E$2,Pop2016fraction!$C$3:$BC$251,Pop2016fraction!$BD238,FALSE),0)","v":5240},{"$f":"ROUND(Options!$B$21*HLOOKUP(Calculations!$E$2,Pop2016fractionQ1!$C$3:$BC$251,Pop2016fractionQ1!$BD238,FALSE),0)","v":0},{"$f":"ROUND(Options!$B$21*HLOOKUP(Calculations!$E$2,'Pop2016fractionQ1&2'!$C$3:$BC$251,'Pop2016fractionQ1&2'!$BD238,FALSE),0)","v":0},{"$f":"ROUND(Options!$B$21*HLOOKUP(Calculations!$E$2,PARfraction!$C$3:$BC$251,PARfraction!$BD238,FALSE),0)","v":3621},236]
[null,"Male 40-44",{"$f":"ROUND(Options!$B$21*HLOOKUP(Calculations!$E$2,Pop2016fraction!$C$3:$BC$251,Pop2016fraction!$BD239,FALSE),0)","v":5765},{"$f":"ROUND(Options!$B$21*HLOOKUP(Calculations!$E$2,Pop2016fractionQ1!$C$3:$BC$251,Pop2016fractionQ1!$BD239,FALSE),0)","v":0},{"$f":"ROUND(Options!$B$21*HLOOKUP(Calculations!$E$2,'Pop2016fractionQ1&2'!$C$3:$BC$251,'Pop2016fractionQ1&2'!$BD239,FALSE),0)","v":0},{"$f":"ROUND(Options!$B$21*HLOOKUP(Calculations!$E$2,PARfraction!$C$3:$BC$251,PARfraction!$BD239,FALSE),0)","v":3984},237]
[null,"Male 45-49",{"$f":"ROUND(Options!$B$21*HLOOKUP(Calculations!$E$2,Pop2016fraction!$C$3:$BC$251,Pop2016fraction!$BD240,FALSE),0)","v":6462},{"$f":"ROUND(Options!$B$21*HLOOKUP(Calculations!$E$2,Pop2016fractionQ1!$C$3:$BC$251,Pop2016fractionQ1!$BD240,FALSE),0)","v":0},{"$f":"ROUND(Options!$B$21*HLOOKUP(Calculations!$E$2,'Pop2016fractionQ1&2'!$C$3:$BC$251,'Pop2016fractionQ1&2'!$BD240,FALSE),0)","v":0},{"$f":"ROUND(Options!$B$21*HLOOKUP(Calculations!$E$2,PARfraction!$C$3:$BC$251,PARfraction!$BD240,FALSE),0)","v":4234},238]
[null,"Male 50-54",{"$f":"ROUND(Options!$B$21*HLOOKUP(Calculations!$E$2,Pop2016fraction!$C$3:$BC$251,Pop2016fraction!$BD241,FALSE),0)","v":6575},{"$f":"ROUND(Options!$B$21*HLOOKUP(Calculations!$E$2,Pop2016fractionQ1!$C$3:$BC$251,Pop2016fractionQ1!$BD241,FALSE),0)","v":0},{"$f":"ROUND(Options!$B$21*HLOOKUP(Calculations!$E$2,'Pop2016fractionQ1&2'!$C$3:$BC$251,'Pop2016fractionQ1&2'!$BD241,FALSE),0)","v":0},{"$f":"ROUND(Options!$B$21*HLOOKUP(Calculations!$E$2,PARfraction!$C$3:$BC$251,PARfraction!$BD241,FALSE),0)","v":4308},239]
[null,"Male 55-59",{"$f":"ROUND(Options!$B$21*HLOOKUP(Calculations!$E$2,Pop2016fraction!$C$3:$BC$251,Pop2016fraction!$BD242,FALSE),0)","v":5980},{"$f":"ROUND(Options!$B$21*HLOOKUP(Calculations!$E$2,Pop2016fractionQ1!$C$3:$BC$251,Pop2016fractionQ1!$BD242,FALSE),0)","v":0},{"$f":"ROUND(Options!$B$21*HLOOKUP(Calculations!$E$2,'Pop2016fractionQ1&2'!$C$3:$BC$251,'Pop2016fractionQ1&2'!$BD242,FALSE),0)","v":0},{"$f":"ROUND(Options!$B$21*HLOOKUP(Calculations!$E$2,PARfraction!$C$3:$BC$251,PARfraction!$BD242,FALSE),0)","v":5795},240]
[null,"Male 60-64",{"$f":"ROUND(Options!$B$21*HLOOKUP(Calculations!$E$2,Pop2016fraction!$C$3:$BC$251,Pop2016fraction!$BD243,FALSE),0)","v":5254},{"$f":"ROUND(Options!$B$21*HLOOKUP(Calculations!$E$2,Pop2016fractionQ1!$C$3:$BC$251,Pop2016fractionQ1!$BD243,FALSE),0)","v":0},{"$f":"ROUND(Options!$B$21*HLOOKUP(Calculations!$E$2,'Pop2016fractionQ1&2'!$C$3:$BC$251,'Pop2016fractionQ1&2'!$BD243,FALSE),0)","v":0},{"$f":"ROUND(Options!$B$21*HLOOKUP(Calculations!$E$2,PARfraction!$C$3:$BC$251,PARfraction!$BD243,FALSE),0)","v":5091},241]
[null,"Male 65-69",{"$f":"ROUND(Options!$B$21*HLOOKUP(Calculations!$E$2,Pop2016fraction!$C$3:$BC$251,Pop2016fraction!$BD244,FALSE),0)","v":5203},{"$f":"ROUND(Options!$B$21*HLOOKUP(Calculations!$E$2,Pop2016fractionQ1!$C$3:$BC$251,Pop2016fractionQ1!$BD244,FALSE),0)","v":0},{"$f":"ROUND(Options!$B$21*HLOOKUP(Calculations!$E$2,'Pop2016fractionQ1&2'!$C$3:$BC$251,'Pop2016fractionQ1&2'!$BD244,FALSE),0)","v":0},{"$f":"ROUND(Options!$B$21*HLOOKUP(Calculations!$E$2,PARfraction!$C$3:$BC$251,PARfraction!$BD244,FALSE),0)","v":5729},242]
[null,"Male 70-74",{"$f":"ROUND(Options!$B$21*HLOOKUP(Calculations!$E$2,Pop2016fraction!$C$3:$BC$251,Pop2016fraction!$BD245,FALSE),0)","v":3721},{"$f":"ROUND(Options!$B$21*HLOOKUP(Calculations!$E$2,Pop2016fractionQ1!$C$3:$BC$251,Pop2016fractionQ1!$BD245,FALSE),0)","v":0},{"$f":"ROUND(Options!$B$21*HLOOKUP(Calculations!$E$2,'Pop2016fractionQ1&2'!$C$3:$BC$251,'Pop2016fractionQ1&2'!$BD245,FALSE),0)","v":0},{"$f":"ROUND(Options!$B$21*HLOOKUP(Calculations!$E$2,PARfraction!$C$3:$BC$251,PARfraction!$BD245,FALSE),0)","v":4097},243]
[null,"Male 75-79",{"$f":"ROUND(Options!$B$21*HLOOKUP(Calculations!$E$2,Pop2016fraction!$C$3:$BC$251,Pop2016fraction!$BD246,FALSE),0)","v":2705},{"$f":"ROUND(Options!$B$21*HLOOKUP(Calculations!$E$2,Pop2016fractionQ1!$C$3:$BC$251,Pop2016fractionQ1!$BD246,FALSE),0)","v":0},{"$f":"ROUND(Options!$B$21*HLOOKUP(Calculations!$E$2,'Pop2016fractionQ1&2'!$C$3:$BC$251,'Pop2016fractionQ1&2'!$BD246,FALSE),0)","v":0},{"$f":"ROUND(Options!$B$21*HLOOKUP(Calculations!$E$2,PARfraction!$C$3:$BC$251,PARfraction!$BD246,FALSE),0)","v":5377},244]
[null,"Male 80-84",{"$f":"ROUND(Options!$B$21*HLOOKUP(Calculations!$E$2,Pop2016fraction!$C$3:$BC$251,Pop2016fraction!$BD247,FALSE),0)","v":1941},{"$f":"ROUND(Options!$B$21*HLOOKUP(Calculations!$E$2,Pop2016fractionQ1!$C$3:$BC$251,Pop2016fractionQ1!$BD247,FALSE),0)","v":0},{"$f":"ROUND(Options!$B$21*HLOOKUP(Calculations!$E$2,'Pop2016fractionQ1&2'!$C$3:$BC$251,'Pop2016fractionQ1&2'!$BD247,FALSE),0)","v":0},{"$f":"ROUND(Options!$B$21*HLOOKUP(Calculations!$E$2,PARfraction!$C$3:$BC$251,PARfraction!$BD247,FALSE),0)","v":3858},245]
[null,"Male 85-89",{"$f":"ROUND(Options!$B$21*HLOOKUP(Calculations!$E$2,Pop2016fraction!$C$3:$BC$251,Pop2016fraction!$BD248,FALSE),0)","v":996},{"$f":"ROUND(Options!$B$21*HLOOKUP(Calculations!$E$2,Pop2016fractionQ1!$C$3:$BC$251,Pop2016fractionQ1!$BD248,FALSE),0)","v":0},{"$f":"ROUND(Options!$B$21*HLOOKUP(Calculations!$E$2,'Pop2016fractionQ1&2'!$C$3:$BC$251,'Pop2016fractionQ1&2'!$BD248,FALSE),0)","v":0},{"$f":"ROUND(Options!$B$21*HLOOKUP(Calculations!$E$2,PARfraction!$C$3:$BC$251,PARfraction!$BD248,FALSE),0)","v":1980},246]
[null,"Male 90+",{"$f":"ROUND(Options!$B$21*HLOOKUP(Calculations!$E$2,Pop2016fraction!$C$3:$BC$251,Pop2016fraction!$BD249,FALSE),0)","v":440},{"$f":"ROUND(Options!$B$21*HLOOKUP(Calculations!$E$2,Pop2016fractionQ1!$C$3:$BC$251,Pop2016fractionQ1!$BD249,FALSE),0)","v":0},{"$f":"ROUND(Options!$B$21*HLOOKUP(Calculations!$E$2,'Pop2016fractionQ1&2'!$C$3:$BC$251,'Pop2016fractionQ1&2'!$BD249,FALSE),0)","v":0},{"$f":"ROUND(Options!$B$21*HLOOKUP(Calculations!$E$2,PARfraction!$C$3:$BC$251,PARfraction!$BD249,FALSE),0)","v":874},247]